{"text_format":"1","workbook":"xlsx","n_sheets":78,"sheets":["ACS_Notes","StartInstruction","ACS_B08303","EmploymentAndWages","PopulationCharacteristics","SchoolEnrolEduAttain","HousingCharacteristics","CntyDataLink","CntyQuery","BuildingPermitsSince2000","EmpVsHUxCounty","HHIncome-10YearComparison","HHIncomeByAge","HHIncomeByTenure","Updates","CntyDataLinkPrior5YearEstimates","CntyDataLinkPrior10YearEstimate","StatisticallySignificantCalcs","ACS_Source_Table_List","SData_B08303Comuuting","ACS_Table_B01001","ACS_Table_B01002","ACS_Tbl_B11001_B11002_B25010","ACS_Table_B19001","ACS_Table_B19037","DisabilityByAge","DisabilityByAgePrior5YearEst","DisabilityByAgePrior10YearEst","ACS_Table_B18101","ACS_Table_B18102","ACS_Table_B18103","ACS_Table_B18104","ACS_Table_B18105","ACS_Table_B18106","ACS_Table_B18107","ACS_Table_C18108","ACS_TableB19201_ACS_Tbl_B19202","ACS_Table_B19049","ACS_Table_B25118","ACS_TableB19101_ACS_Tbl_B19113","ACS_Table_B25119","ACS_Table_B25001","ACS_Table_B25003","ACS_Table_B25004","ACS_Table_B25008","ACS_Table_B25024","ACS_Table_B25032","ACS_Table_B25034","ACS_Table_B25041","PovertyCharacteristics","ACS_Table_ B17001","ACS_Table_B17010","ACS_Table_B17017","ACS_Table_B03002","RentalHousingCost","RentalHousingCost-Prior5Yr","RentalHousingCost-Prior10Yr","ACS_Table_B25063_&_B25064","ACS_Table_B25070","ACS_Table_B25074","OwnerHousingCost","OwnerHousingCostPrior5Year","OwnerHousingCostPrior10Year","ACS_Table_B25075_&_B25077","ACS_Table_B25088","ACS_Table_B25091","ACS_Table_B25106","PlaceOfBirthAndPriorRes","ACS_Table_B05002","ACS_Table_B07003","ACS_Table_B14001","ACS_Table_B15002","PopComparison","HousingComparison","Housing_EmploymentComparison","DropDownList","CntyQryCensus","SmallTownEmploymentandWages"],"not_rendered":{"charts":456,"images":168,"macros":1,"external_links":1,"defined_names":71,"comments":0,"pivot_tables":0},"unopened":[],"bounds":{"document_bytes":16777216,"sheet_cells":100000,"rows_first":2000,"rows_last":500,"rows_between":2000,"halvings":0,"cell_chars":16384,"cell_head_chars":4096},"cells_cut":0,"cells_raw":0,"read":"whole","date_system":"1900"}

{"sheet":"ACS_Notes","index":0,"n_rows":28,"n_cols":1,"rows_kept":28,"cut":false,"hidden":true,"merged":[[31,150,31,164],[31,165,31,179],[31,240,31,254],[31,180,31,194],[31,195,31,209],[31,210,31,224],[31,225,31,239],[31,75,31,89],[31,90,31,104],[31,105,31,119],[31,120,31,134],[31,135,31,149],[20,0,21,14],[22,0,22,14],[23,0,23,14],[24,0,24,14],[31,60,31,74],[29,0,29,14],[31,15,31,29],[31,30,31,44],[31,45,31,59],[25,0,25,14],[10,0,12,14],[14,0,14,14],[18,0,19,14],[3,0,5,14],[7,0,8,14]]}
["NOTES:"]
[]
[]
["Data are based on a sample and are subject to sampling variability. The degree of uncertainty for an estimate arising from sampling variability is represented through the use of a margin of error. The value shown here is the 90 percent margin of error. The margin of error can be interpreted roughly as providing a 90 percent probability that the interval defined by the estimate minus the margin of error and the estimate plus the margin of error (the lower and upper confidence bounds) contains the true value. In addition to sampling variability, the ACS estimates are subject to nonsampling error (for a discussion of nonsampling variability, see Accuracy of the Data). The effect of nonsampling error is not represented in these tables."]
[]
[]
[]
["In addition to sampling variability, the ACS estimates are subject to nonsampling error (for a discussion of nonsampling variability, see Accuracy of the Data. The link is located at the end of this worksheet.).  The effect of nonsampling error is not represented in these tables."]
[]
[]
["While the 2005-2009 American Community Survey (ACS) data generally reflect the November 2008 Office of Management and Budget (OMB) definitions of metropolitan and micropolitan statistical areas; in certain instances the names, codes, and boundaries of the principal cities shown in ACS tables may differ from the OMB definitions due to differences in the effective dates of the geographic entities."]
[]
[]
[]
["Estimates of urban and rural population, housing units, and characteristics reflect boundaries of urban areas defined based on Census 2000 data.  Boundaries for urban areas have not been updated since Census 2000.  As a result, data for urban and rural areas from the ACS do not necessarily reflect the results of ongoing urbanization."]
[]
["Explanation of Symbols:"]
[]
["1. An '**' entry in the margin of error column indicates that either no sample observations or too few sample observations were available to compute a standard error and thus the margin of error. A statistical test is not appropriate."]
[]
["2. An '-' entry in the estimate column indicates that either no sample observations or too few sample observations were available to compute an estimate, or a ratio of medians cannot be calculated because one or both of the median estimates falls in the lowest interval or upper interval of an open-ended distribution."]
[]
["3. An '-' following a median estimate means the median falls in the lowest interval of an open-ended distribution."]
["4. An '+' following a median estimate means the median falls in the upper interval of an open-ended distribution."]
["5. An '***' entry in the margin of error column indicates that the median falls in the lowest interval or upper interval of an open-ended distribution. A statistical test is not appropriate."]
["6. An '*****' entry in the margin of error column indicates that the estimate is controlled. A statistical test for sampling variability is not appropriate."]
[]
["Accuracy of Data "]

{"sheet":"StartInstruction","index":1,"n_rows":30,"n_cols":16,"rows_kept":30,"cut":false,"hidden":false,"merged":[[30,1,32,3],[29,15,31,18]]}
["Demographic Profiles for Municipalities in Merrimack County"]
[]
["To view or print a Demographic Profile follow the steps below"]
[]
[]
["Step 1. ",null,"Select the municipality you wish to"]
[null,null,"Profile from the drop down box below. "]
[]
[]
[]
[]
["Step 2. ",null,"Click one of the profile topic buttons below to review or print"]
[null,null,"the information for the selected geography."]
[null,null,"Don't forget to adjust the axis on charts as necessary. "]
[]
[]
[]
[]
[]
[]
[]
[]
[]
[]
[]
[]
[]
[null,null,null,null,null,null,null,null,null,null,null,null,null,"Updated:",null,"2024-07-18"]
[]
[null,null,null,null,null,null,null,null,null,null,null,null,null,"Next Update:",null,"Spring 2024 Annual Employment Date"]

{"sheet":"ACS_B08303","index":2,"n_rows":19,"n_cols":56,"rows_kept":19,"cut":false,"hidden":true,"merged":[]}
[null,"B08303: TRAVEL TIME TO WORK"]
[null,"Universe: Workers 16 years and over who did not work at home"]
[null,"Data Set: 2008-2010 American Community Survey 3-Year Estimates"]
[]
[null,null,"Allenstown",null,"Andover",null,"Boscawen",null,"Bow",null,"Bradford",null,"Canterbury",null,"Chichester",null,"Concord",null,"Danbury",null,"Dunbarton",null,"Epsom",null,"Franklin",null,"Henniker",null,"Hill",null,"Hooksett",null,"Hopkinton",null,"Loudon",null,"Newbury",null,"New London",null,"Northfield",null,"Pembroke",null,"Pittsfield",null,"Salisbury",null,"Sutton",null,"Warner",null,"Webster",null,"Wilmot"]
[null,null,"Esitimate","Margin Of Error","Esitimate","Margin Of Error","Esitimate","Margin Of Error","Esitimate","Margin Of Error","Esitimate","Margin Of Error","Esitimate","Margin Of Error","Esitimate","Margin Of Error","Esitimate","Margin Of Error","Esitimate","Margin Of Error","Esitimate","Margin Of Error","Esitimate","Margin Of Error","Esitimate","Margin Of Error","Esitimate","Margin Of Error","Esitimate","Margin Of Error","Esitimate","Margin Of Error","Esitimate","Margin Of Error","Esitimate","Margin Of Error","Esitimate","Margin Of Error","Esitimate","Margin Of Error","Esitimate","Margin Of Error","Esitimate","Margin Of Error","Esitimate","Margin Of Error","Esitimate","Margin Of Error","Esitimate","Margin Of Error","Esitimate","Margin Of Error","Esitimate","Margin Of Error","Esitimate"]
[null,"Population Older than 16 not working at hom",2372,301,958,177,1632,257,3696,307,728,120,996,155,1261,145,18923,759,633,122,1521,117,2208,200,4096,379,2663,307,474,141,7294,391,2431,340,2393,356,776,135,1250,247,2716,224,3394,336,2033,234,570,136,1157,297,1269,133,1053,163,771,139]
[null,"Less than 5 minutes",42,39,43,31,10,15,43,45,77,44,27,30,3,5,857,215,0,12,2,5,70,56,64,51,328,223,0,12,38,37,143,109,45,63,60,40,44,37,58,44,54,56,151,87,15,15,40,66,6,8,15,14,31,20]
[null,"5 to 9 minutes",387,296,116,49,120,84,210,78,17,20,23,18,84,33,3070,363,27,22,19,16,116,63,516,176,316,161,8,8,365,192,170,91,133,97,23,22,305,155,279,99,172,101,293,181,19,16,51,28,93,50,44,43,14,10]
[null,"10 to 14 minutes",232,117,69,40,10,15,420,117,43,19,94,52,121,56,2924,376,25,17,71,38,108,65,463,203,351,203,25,20,1071,280,351,147,221,133,78,42,122,75,596,192,554,195,163,132,12,12,112,48,77,40,57,27,125,37]
[null,"15 to 19 minutes",285,122,65,31,244,90,721,162,39,34,141,46,177,52,3168,403,43,24,127,48,213,112,247,118,108,71,69,36,1446,319,238,135,443,210,65,36,66,47,207,93,526,234,284,144,148,97,150,138,69,47,125,67,124,53]
[null,"20 to 24 minutes",399,146,94,39,416,135,623,195,61,34,191,53,184,73,2142,303,76,43,422,107,340,129,459,207,486,217,76,38,1600,278,403,196,209,133,120,59,75,42,317,127,636,232,127,63,40,21,124,68,167,74,166,46,21,11]
[null,"25 to 29 minutes",210,148,85,63,137,86,423,141,49,42,67,33,52,30,1198,258,38,23,206,78,115,59,404,274,136,97,62,52,450,157,261,174,248,158,47,28,43,39,384,148,167,96,138,82,56,31,11,16,136,52,107,34,45,27]
[null,"30 to 34 minutes",364,100,70,56,281,157,601,161,138,46,65,36,331,81,2019,362,46,32,255,94,532,228,696,162,386,175,53,42,803,229,541,215,352,185,74,40,220,101,384,126,312,149,154,77,85,29,206,96,194,58,231,63,89,87]
[null,"35 to 39 minutes",9,13,55,28,45,35,235,104,18,18,40,38,39,33,531,153,42,23,71,37,86,54,133,81,148,104,10,9,339,158,40,57,86,87,43,27,85,65,64,50,39,51,61,45,73,40,96,55,106,50,54,25,59,28]
[null,"40 to 44 minutes",86,72,56,37,75,60,68,43,49,22,78,58,40,28,632,155,87,40,56,36,73,49,274,139,42,41,22,12,164,92,62,69,117,96,70,39,67,47,172,106,234,145,155,87,28,15,72,37,107,69,74,59,44,44]
[null,"45 to 59 minutes",235,96,156,90,96,67,156,76,136,55,148,63,105,44,1155,242,156,48,81,38,378,114,425,159,137,88,76,45,378,130,155,102,341,143,89,41,102,54,115,100,360,129,286,124,35,22,211,113,144,59,104,31,145,58]
[null,"60 to 89 minutes",101,56,41,23,52,39,124,70,81,48,102,56,69,34,880,180,69,31,114,76,141,75,290,122,186,95,50,23,473,172,67,65,50,49,72,34,97,52,93,64,198,111,186,91,20,14,67,34,142,70,57,36,50,23]
[null,"90 or more minutes",22,21,108,59,146,87,72,47,20,13,20,22,56,64,347,143,24,21,97,53,36,33,125,94,39,38,23,15,167,124,0,17,148,115,35,32,24,22,47,40,142,94,35,31,39,32,17,12,28,27,19,15,24,17]

{"sheet":"EmploymentAndWages","index":3,"n_rows":115,"n_cols":14,"rows_kept":115,"cut":false,"hidden":true,"merged":[[3,1,3,3],[35,1,35,2],[73,1,73,2],[66,1,67,3]]}
[]
[null,{"$f":"CntyDataLink!A35","v":"Allenstown"}]
[]
[null,"EMPLOYMENT CHARACTERISTICS"]
[]
[]
[]
[]
[]
[]
[]
[]
[]
[]
[]
[]
[]
[]
[]
[]
[]
[]
[]
[]
[]
[]
[]
[]
[null,"Annual Average Covered Private Employment "]
[null,null,null,null,"Source: NH Department of Employment Security, Covered Private Employment by location of employment"]
[null,null,2011,{"$f":"C31+1","v":2012},{"$f":"D31+1","v":2013},2014,2015,2016,2017,2018,2019,2020,2021,"Total Change  "]
[null,"Goods Producing",{"$f":"IF((CntyDataLink!$CG$25)=\"n\",NA(),IF(VALUE(CntyDataLink!$CG$25)=\"\",NA(),VALUE(CntyDataLink!$CG$25)))","v":147},{"$f":"IF((CntyDataLink!$CO$25)=\"n\",NA(),IF(VALUE(CntyDataLink!$CO$25)=\"\",NA(),VALUE(CntyDataLink!$CO$25)))","v":157},{"$f":"IF((CntyDataLink!$CW$25)=\"n\",NA(),IF(VALUE(CntyDataLink!$CW$25)=\"\",NA(),VALUE(CntyDataLink!$CW$25)))","v":197},{"$f":"IF((CntyDataLink!$DE$25)=\"n\",NA(),IF(VALUE(CntyDataLink!$DE$25)=\"\",NA(),VALUE(CntyDataLink!$DE$25)))","v":182},{"$f":"IF((CntyDataLink!$DM$25)=\"n\",NA(),IF(VALUE(CntyDataLink!$DM$25)=\"\",NA(),VALUE(CntyDataLink!$DM$25)))","v":170},{"$f":"IF((CntyDataLink!$DU$25)=\"n\",NA(),IF(VALUE(CntyDataLink!$DU$25)=\"\",NA(),VALUE(CntyDataLink!$DU$25)))","v":127},{"$f":"IF((CntyDataLink!$EC$25)=\"n\",NA(),IF(VALUE(CntyDataLink!$EC$25)=\"\",NA(),VALUE(CntyDataLink!$EC$25)))","v":126},{"$f":"IF((CntyDataLink!$EK$25)=\"n\",NA(),IF(VALUE(CntyDataLink!$EK$25)=\"\",NA(),VALUE(CntyDataLink!$EK$25)))","v":114},{"$f":"IF((CntyDataLink!$ET$25)=\"n\",NA(),IF(VALUE(CntyDataLink!$ET$25)=\"\",NA(),VALUE(CntyDataLink!$ET$25)))","v":117},{"$f":"IF((CntyDataLink!$FD$25)=\"n\",NA(),IF(VALUE(CntyDataLink!$FD$25)=\"\",NA(),VALUE(CntyDataLink!$FD$25)))","v":120},{"$f":"IF((CntyDataLink!$FN$25)=\"n\",NA(),IF(VALUE(CntyDataLink!$FN$25)=\"\",NA(),VALUE(CntyDataLink!$FN$25)))","v":123},{"$f":"$M32-C32","v":-24}]
[null,"Service Providing",{"$f":"IF((CntyDataLink!$CH$25)=\"n\",NA(),IF(VALUE(CntyDataLink!$CH$25)=\"\",NA(),VALUE(CntyDataLink!$CH$25)))","v":341},{"$f":"IF((CntyDataLink!$CP$25)=\"n\",NA(),IF(VALUE(CntyDataLink!$CP$25)=\"\",NA(),VALUE(CntyDataLink!$CP$25)))","v":372},{"$f":"IF((CntyDataLink!$CX$25)=\"n\",NA(),IF(VALUE(CntyDataLink!$CX$25)=\"\",NA(),VALUE(CntyDataLink!$CX$25)))","v":379},{"$f":"IF((CntyDataLink!$DF$25)=\"n\",NA(),IF(VALUE(CntyDataLink!$DF$25)=\"\",NA(),VALUE(CntyDataLink!$DF$25)))","v":373},{"$f":"IF((CntyDataLink!$DN$25)=\"n\",NA(),IF(VALUE(CntyDataLink!$DN$25)=\"\",NA(),VALUE(CntyDataLink!$DN$25)))","v":310},{"$f":"IF((CntyDataLink!$DV$25)=\"n\",NA(),IF(VALUE(CntyDataLink!$DV$25)=\"\",NA(),VALUE(CntyDataLink!$DV$25)))","v":320},{"$f":"IF((CntyDataLink!$ED$25)=\"n\",NA(),IF(VALUE(CntyDataLink!$ED$25)=\"\",NA(),VALUE(CntyDataLink!$ED$25)))","v":264},{"$f":"IF((CntyDataLink!$EL$25)=\"n\",NA(),IF(VALUE(CntyDataLink!$EL$25)=\"\",NA(),VALUE(CntyDataLink!$EL$25)))","v":256},{"$f":"IF((CntyDataLink!$EU$25)=\"n\",NA(),IF(VALUE(CntyDataLink!$EU$25)=\"\",NA(),VALUE(CntyDataLink!$EU$25)))","v":277},{"$f":"IF((CntyDataLink!$FE$25)=\"n\",NA(),IF(VALUE(CntyDataLink!$FE$25)=\"\",NA(),VALUE(CntyDataLink!$FE$25)))","v":271},{"$f":"IF((CntyDataLink!$FO$25)=\"n\",NA(),IF(VALUE(CntyDataLink!$FO$25)=\"\",NA(),VALUE(CntyDataLink!$FO$25)))","v":337},{"$f":"$M33-C33","v":-4}]
[null,"Total Private Emp",{"$f":"IF((CntyDataLink!$CF$25)=\"n\",NA(),IF(VALUE(CntyDataLink!$CF$25)=\"\",NA(),VALUE(CntyDataLink!$CF$25)))","v":487},{"$f":"IF((CntyDataLink!$CN$25)=\"n\",NA(),IF(VALUE(CntyDataLink!$CN$25)=\"\",NA(),VALUE(CntyDataLink!$CN$25)))","v":528},{"$f":"IF((CntyDataLink!$CV$25)=\"n\",NA(),IF(VALUE(CntyDataLink!$CV$25)=\"\",NA(),VALUE(CntyDataLink!$CV$25)))","v":576},{"$f":"IF((CntyDataLink!$DD$25)=\"n\",NA(),IF(VALUE(CntyDataLink!$DD$25)=\"\",NA(),VALUE(CntyDataLink!$DD$25)))","v":555},{"$f":"IF((CntyDataLink!$DL$25)=\"n\",NA(),IF(VALUE(CntyDataLink!$DL$25)=\"\",NA(),VALUE(CntyDataLink!$DL$25)))","v":480},{"$f":"IF((CntyDataLink!$DT$25)=\"n\",NA(),IF(VALUE(CntyDataLink!$DT$25)=\"\",NA(),VALUE(CntyDataLink!$DT$25)))","v":447},{"$f":"IF((CntyDataLink!$EB$25)=\"n\",NA(),IF(VALUE(CntyDataLink!$EB$25)=\"\",NA(),VALUE(CntyDataLink!$EB$25)))","v":390},{"$f":"IF((CntyDataLink!$EJ$25)=\"n\",NA(),IF(VALUE(CntyDataLink!$EJ$25)=\"\",NA(),VALUE(CntyDataLink!$EJ$25)))","v":370},{"$f":"IF((CntyDataLink!$ER$25)=\"n\",NA(),IF(VALUE(CntyDataLink!$ER$25)=\"\",NA(),VALUE(CntyDataLink!$ER$25)))","v":394},{"$f":"IF((CntyDataLink!$FB$25)=\"n\",NA(),IF(VALUE(CntyDataLink!$FB$25)=\"\",NA(),VALUE(CntyDataLink!$FB$25)))","v":391},{"$f":"IF((CntyDataLink!$FL$25)=\"n\",NA(),IF(VALUE(CntyDataLink!$FL$25)=\"\",NA(),VALUE(CntyDataLink!$FL$25)))","v":460},{"$f":"$M34-C34","v":-27}]
[]
[null,"% Change from prior Year",null,"11-12","12-13","13-14","14-15","15-16","16-17","17-18","18-19","19-20","20-21","Total % Change"]
[null,"Goods Producing",null,{"$f":"(D32-C32)/C32","v":6.8027210884353748E-2},0.25477707006369427,-7.6142131979695438E-2,-6.5934065934065936E-2,-0.25294117647058822,{"$f":"(I32-H32)/H32","v":-7.874015748031496E-3},-9.5238095238095233E-2,2.6315789473684209E-2,2.564102564102564E-2,2.5000000000000001E-2,{"$f":"N32/C32","v":-0.16326530612244897}]
[null,"Service Providing",null,9.0909090909090912E-2,1.8817204301075269E-2,-1.5831134564643801E-2,{"$f":"(G33-F33)/F33","v":-0.16890080428954424},3.2258064516129031E-2,-0.17499999999999999,-3.0303030303030304E-2,8.203125E-2,-2.1660649819494584E-2,0.24354243542435425,{"$f":"N33/C33","v":-1.1730205278592375E-2}]
[null,"Total Private Emp",null,8.4188911704312114E-2,9.0909090909090912E-2,-3.6458333333333336E-2,-0.13513513513513514,-6.8750000000000006E-2,-0.12751677852348994,-5.128205128205128E-2,6.4864864864864868E-2,-7.6142131979695434E-3,0.17647058823529413,{"$f":"N34/C34","v":-5.5441478439425054E-2}]
[]
[]
[null,"EMPLOYMENT CHARACTERISTICS"]
[]
[]
[]
[]
[]
[]
[]
[]
[]
[]
[]
[]
[]
[]
[]
[]
[]
[]
[]
[]
[]
[]
[]
[]
[null,"Covered Private Employment Average Wages",null,null,null,null,"Source: NH Department of Employment Security, Covered Private Employment"]
[]
[null,null,2011,{"$f":"C69+1","v":2012},{"$f":"D69+1","v":2013},{"$f":"E69+1","v":2014},2015,2016,2017,2018,2019,2020,2021,"Total $ Change"]
[null,"Goods Producing",{"$f":"IF((CntyDataLink!$CK$25)=\"n\",NA(),IF(VALUE(CntyDataLink!$CK$25)=\"\",NA(),VALUE(CntyDataLink!$CK$25)))","v":628.24},{"$f":"IF((CntyDataLink!$CS$25)=\"n\",NA(),IF(VALUE(CntyDataLink!$CS$25)=\"\",NA(),VALUE(CntyDataLink!$CS$25)))","v":653.44000000000005},{"$f":"IF((CntyDataLink!$DA$25)=\"n\",NA(),IF(VALUE(CntyDataLink!$DA$25)=\"\",NA(),VALUE(CntyDataLink!$DA$25)))","v":655.93},{"$f":"IF((CntyDataLink!$DI$25)=\"n\",NA(),IF(VALUE(CntyDataLink!$DI$25)=\"\",NA(),VALUE(CntyDataLink!$DI$25)))","v":730.28},{"$f":"IF((CntyDataLink!$DQ$25)=\"n\",NA(),IF(VALUE(CntyDataLink!$DQ$25)=\"\",NA(),VALUE(CntyDataLink!$DQ$25)))","v":809.33},{"$f":"IF((CntyDataLink!$DY$25)=\"n\",NA(),IF(VALUE(CntyDataLink!$DY$25)=\"\",NA(),VALUE(CntyDataLink!$DY$25)))","v":998.41},{"$f":"IF((CntyDataLink!$EG$25)=\"n\",NA(),IF(VALUE(CntyDataLink!$EG$25)=\"\",NA(),VALUE(CntyDataLink!$EG$25)))","v":985.01},{"$f":"IF((CntyDataLink!$EO$25)=\"n\",NA(),IF(VALUE(CntyDataLink!$EO$25)=\"\",NA(),VALUE(CntyDataLink!$EO$25)))","v":1084.3599999999999},{"$f":"IF((CntyDataLink!$EY$25)=\"n\",NA(),IF(VALUE(CntyDataLink!$EY$25)=\"\",NA(),VALUE(CntyDataLink!$EY$25)))","v":1054.58},{"$f":"IF((CntyDataLink!$FI$25)=\"n\",NA(),IF(VALUE(CntyDataLink!$FI$25)=\"\",NA(),VALUE(CntyDataLink!$FI$25)))","v":1133.03},{"$f":"IF((CntyDataLink!$FI$25)=\"n\",NA(),IF(VALUE(CntyDataLink!$FI$25)=\"\",NA(),VALUE(CntyDataLink!$FI$25)))","v":1133.03},{"$f":"M70-C70","v":504.78999999999996}]
[null,"Service Providing",{"$f":"IF((CntyDataLink!$CL$25)=\"n\",NA(),IF(VALUE(CntyDataLink!$CL$25)=\"\",NA(),VALUE(CntyDataLink!$CL$25)))","v":656.56},{"$f":"IF((CntyDataLink!$CT$25)=\"n\",NA(),IF(VALUE(CntyDataLink!$CT$25)=\"\",NA(),VALUE(CntyDataLink!$CT$25)))","v":663.82},{"$f":"IF((CntyDataLink!$DB$25)=\"n\",NA(),IF(VALUE(CntyDataLink!$DB$25)=\"\",NA(),VALUE(CntyDataLink!$DB$25)))","v":687.74},{"$f":"IF((CntyDataLink!$DJ$25)=\"n\",NA(),IF(VALUE(CntyDataLink!$DJ$25)=\"\",NA(),VALUE(CntyDataLink!$DJ$25)))","v":679.41},{"$f":"IF((CntyDataLink!$DR$25)=\"n\",NA(),IF(VALUE(CntyDataLink!$DR$25)=\"\",NA(),VALUE(CntyDataLink!$DR$25)))","v":651.65},{"$f":"IF((CntyDataLink!$DZ$25)=\"n\",NA(),IF(VALUE(CntyDataLink!$DZ$25)=\"\",NA(),VALUE(CntyDataLink!$DZ$25)))","v":662.94},{"$f":"IF((CntyDataLink!EE$25)=\"n\",NA(),IF(VALUE(CntyDataLink!$EE$25)=\"\",NA(),VALUE(CntyDataLink!$EE$25)))","v":787.98},{"$f":"IF((CntyDataLink!EM$25)=\"n\",NA(),IF(VALUE(CntyDataLink!$EM$25)=\"\",NA(),VALUE(CntyDataLink!$EM$25)))","v":881.97},{"$f":"IF((CntyDataLink!EX$25)=\"n\",NA(),IF(VALUE(CntyDataLink!$EX$25)=\"\",NA(),VALUE(CntyDataLink!$EZ$25)))","v":744.63},{"$f":"IF((CntyDataLink!FI$25)=\"n\",NA(),IF(VALUE(CntyDataLink!$FI$25)=\"\",NA(),VALUE(CntyDataLink!$FI$25)))","v":1133.03},{"$f":"IF((CntyDataLink!FJ$25)=\"n\",NA(),IF(VALUE(CntyDataLink!$FJ$25)=\"\",NA(),VALUE(CntyDataLink!$FJ$25)))","v":859.35},{"$f":"M71-C71","v":202.79000000000008}]
[null,"Total Private Emp",{"$f":"IF((CntyDataLink!$CJ$25)=\"n\",NA(),IF(VALUE(CntyDataLink!$CJ$25)=\"\",NA(),VALUE(CntyDataLink!$CJ$25)))","v":648.04999999999995},{"$f":"IF((CntyDataLink!$CR$25)=\"n\",NA(),IF(VALUE(CntyDataLink!$CR$25)=\"\",NA(),VALUE(CntyDataLink!$CR$25)))","v":660.75},{"$f":"IF((CntyDataLink!$CZ$25)=\"n\",NA(),IF(VALUE(CntyDataLink!$CZ$25)=\"\",NA(),VALUE(CntyDataLink!$CZ$25)))","v":676.87},{"$f":"IF((CntyDataLink!$DH$25)=\"n\",NA(),IF(VALUE(CntyDataLink!$DH$25)=\"\",NA(),VALUE(CntyDataLink!$DH$25)))","v":696.05},{"$f":"IF((CntyDataLink!$DP$25)=\"n\",NA(),IF(VALUE(CntyDataLink!$DP$25)=\"\",NA(),VALUE(CntyDataLink!$DP$25)))","v":707.52},{"$f":"IF((CntyDataLink!$DX$25)=\"n\",NA(),IF(VALUE(CntyDataLink!$DX$25)=\"\",NA(),VALUE(CntyDataLink!$DX$25)))","v":758.48},{"$f":"IF((CntyDataLink!$EF$25)=\"n\",NA(),IF(VALUE(CntyDataLink!$EF$25)=\"\",NA(),VALUE(CntyDataLink!$EF$25)))","v":810.13},{"$f":"IF((CntyDataLink!$EN$25)=\"n\",NA(),IF(VALUE(CntyDataLink!$EN$25)=\"\",NA(),VALUE(CntyDataLink!$EN$25)))","v":877.59},{"$f":"IF((CntyDataLink!$EW$25)=\"n\",NA(),IF(VALUE(CntyDataLink!$EW$25)=\"\",NA(),VALUE(CntyDataLink!$EW$25)))","v":836.77},{"$f":"IF((CntyDataLink!$FG$25)=\"n\",NA(),IF(VALUE(CntyDataLink!$FG$25)=\"\",NA(),VALUE(CntyDataLink!$FG$25)))","v":943.55},{"$f":"IF((CntyDataLink!$FG$25)=\"n\",NA(),IF(VALUE(CntyDataLink!$FG$25)=\"\",NA(),VALUE(CntyDataLink!$FG$25)))","v":943.55},{"$f":"M72-C72","v":295.5}]
[]
[null,"% Change from prior Year",null,{"$f":"D36","v":"11-12"},"12-13","13-14","14-15","15-16","16-17","17-18","18-19","19-20","20-21","Total % Change"]
[null,"Goods Producing",null,{"$f":"(D70-C70)/C70","v":4.0112059085699807E-2},3.8106023506364706E-3,0.11335050996295341,0.10824615216081512,0.23362534442069355,-1.3421339930489455E-2,0.10086192018355135,-2.7463204101958738E-2,7.4389804471922519E-2,0,{"$f":"N70/C70","v":0.80349866293136374}]
[null,"Service Providing",null,1.1057633727306119E-2,3.6033864601849833E-2,-1.2112135400005875E-2,-4.0858980586096751E-2,1.7325251285199229E-2,0.18861435424020268,0.11927967714916624,-0.15571958229871768,0.52160133220525629,-0.24154700228590589,{"$f":"N71/C71","v":0.30886743024247609}]
[null,"Total Private Emp",null,1.9597253298356678E-2,2.4396519107075298E-2,2.8336312733611993E-2,1.6478701242726854E-2,7.2026232473993715E-2,6.8096719755300045E-2,8.3270586202214503E-2,-4.6513747877710607E-2,0.12760973744278592,0,{"$f":"N72/C72","v":0.4559833346192424}]
[]
[]
[null,"LABOR FORCE AND UNEMPLOYMENT CHARACTERISTICS"]
[]
[]
[]
[]
[]
[]
[]
[]
[]
[]
[]
[]
[]
[]
[]
[]
[]
[]
[]
[]
[]
[]
[]
[]
[]
[]
[]
[]
[]
[null,"Annual Average Labor Force and Unemployment ",null,null,null,null,"Source: NH Department of Employment Security, Local Area Unemployment Statistics"]
[null,null,2011,{"$f":"C111+1","v":2012},{"$f":"D111+1","v":2013},2014,2015,2016,2017,2018,2019,2020,2021,"Total Change  "]
[null,"Civilian Labor Force",{"$f":"CntyDataLink!$CH$30","v":{"$error":"#N/A"}},{"$f":"CntyDataLink!$CL$30","v":{"$error":"#N/A"}},{"$f":"CntyDataLink!$CP$30","v":{"$error":"#N/A"}},{"$f":"CntyDataLink!$CT$30","v":{"$error":"#N/A"}},{"$f":"CntyDataLink!$CX$30","v":{"$error":"#N/A"}},{"$f":"CntyDataLink!$DB$30","v":{"$error":"#N/A"}},{"$f":"CntyDataLink!$DF$30","v":{"$error":"#N/A"}},{"$f":"CntyDataLink!$DJ$30","v":{"$error":"#N/A"}},{"$f":"CntyDataLink!$DN$30","v":{"$error":"#N/A"}},{"$f":"CntyDataLink!$DR$30","v":{"$error":"#N/A"}},{"$f":"CntyDataLink!$DV$30","v":{"$error":"#N/A"}},{"$f":"$M112-$C112","v":{"$error":"#N/A"}}]
[null,"Employed Labor Force",{"$f":"CntyDataLink!$CI$30","v":{"$error":"#N/A"}},{"$f":"CntyDataLink!$CM$30","v":{"$error":"#N/A"}},{"$f":"CntyDataLink!$CQ$30","v":{"$error":"#N/A"}},{"$f":"CntyDataLink!$CU$30","v":{"$error":"#N/A"}},{"$f":"CntyDataLink!$CY$30","v":{"$error":"#N/A"}},{"$f":"CntyDataLink!$DC$30","v":{"$error":"#N/A"}},{"$f":"CntyDataLink!$DG$30","v":{"$error":"#N/A"}},{"$f":"CntyDataLink!$DK$30","v":{"$error":"#N/A"}},{"$f":"CntyDataLink!$DO$30","v":{"$error":"#N/A"}},{"$f":"CntyDataLink!$DS$30","v":{"$error":"#N/A"}},{"$f":"CntyDataLink!$DW$30","v":{"$error":"#N/A"}},{"$f":"$M113-C113","v":{"$error":"#N/A"}}]
[null,"Unemployed Labor Force",{"$f":"CntyDataLink!$CJ$30","v":{"$error":"#N/A"}},{"$f":"CntyDataLink!$CN$30","v":{"$error":"#N/A"}},{"$f":"CntyDataLink!$CR$30","v":{"$error":"#N/A"}},{"$f":"CntyDataLink!$CV$30","v":{"$error":"#N/A"}},{"$f":"CntyDataLink!$CZ$30","v":{"$error":"#N/A"}},{"$f":"CntyDataLink!$DD$30","v":{"$error":"#N/A"}},{"$f":"CntyDataLink!$DH$30","v":{"$error":"#N/A"}},{"$f":"CntyDataLink!$DL$30","v":{"$error":"#N/A"}},{"$f":"CntyDataLink!$DP$30","v":{"$error":"#N/A"}},{"$f":"CntyDataLink!$DT$30","v":{"$error":"#N/A"}},{"$f":"CntyDataLink!$DX$30","v":{"$error":"#N/A"}},{"$f":"$M114-C114","v":{"$error":"#N/A"}}]
[null,"Unemployment Rate",{"$f":"CntyDataLink!$CK$30","v":{"$error":"#N/A"}},{"$f":"CntyDataLink!$CO$30","v":{"$error":"#N/A"}},{"$f":"CntyDataLink!$CS$30","v":{"$error":"#N/A"}},{"$f":"CntyDataLink!$CW$30","v":{"$error":"#N/A"}},{"$f":"CntyDataLink!$DA$30","v":{"$error":"#N/A"}},{"$f":"CntyDataLink!$DE$30","v":{"$error":"#N/A"}},{"$f":"CntyDataLink!$DI$30","v":{"$error":"#N/A"}},{"$f":"CntyDataLink!$DM$30","v":{"$error":"#N/A"}},{"$f":"CntyDataLink!$DQ$30","v":{"$error":"#N/A"}},{"$f":"CntyDataLink!$DU$30","v":{"$error":"#N/A"}},{"$f":"CntyDataLink!$DY$30","v":{"$error":"#N/A"}}]

{"sheet":"PopulationCharacteristics","index":4,"n_rows":64,"n_cols":23,"rows_kept":64,"cut":false,"hidden":true,"merged":[[62,1,62,8],[63,1,63,3],[19,11,19,13],[19,18,19,20],[45,1,45,8],[48,3,48,4],[48,6,48,7],[48,9,48,10],[33,11,33,12],[3,1,3,3],[19,15,19,17],[2,8,2,12],[18,15,18,21],[18,2,18,8]]}
[]
[null,{"$f":"CntyDataLink!$A35","v":"Allenstown"}]
[null,null,null,null,null,null,"Land Area:",null,{"$f":"((CntyDataLink!F35*10.764)/43560)/640","v":20.525904820506195},null,"Water Area:",{"$f":"((CntyDataLink!G35*10.764)/43560)/640","v":0.10725698347107437}]
[null,"POPULATION CHARACTERISTICS"]
[]
[]
[]
[]
[]
[]
[]
[]
[]
[]
[]
[]
[]
[]
[null,"Population ",{"$f":"\"Source:  US Census; Office of Planning and Development, NH BEA; \"& L20&\", \"&P20&\", and \"&S20&\" American Community Survey Table B01001\"","v":"Source:  US Census; Office of Planning and Development, NH BEA; 2008-2012, 2013-2017, and 2018-2022 American Community Survey Table B01001"},null,null,null,null,null,null,null,null,null,null,"Population by Age ",null,{"$f":"\"Source: \"& L20&\", \"&P20&\", and \"&S20&\"  American Community Survey Tables B01001 and B01002\"","v":"Source: 2008-2012, 2013-2017, and 2018-2022  American Community Survey Tables B01001 and B01002"}]
[null,null,null,null,null,null,null,null,null,null,null,"2008-2012",null,null,null,"2013-2017",null,null,"2018-2022"]
[null,null,1990,2000,2010,2020,"2018-2022",2025,2030,null,null,"Estimate",null,"Margin of Error","Percent Change","Estimate","Margin of Error","Percent Change","Estimate","Margin of Error",null,"Percent Change","Statistically Significant Change"]
[null,null,{"$f":"CntyDataLink!$F$20","v":4649},{"$f":"CntyDataLink!$G$20","v":4843},{"$f":"CntyDataLink!$H$20","v":4322},{"$f":"CntyDataLink!$I$20","v":4707},{"$f":"CntyDataLink!$B$132","v":4697},{"$f":"CntyDataLink!$J$20","v":4883},{"$f":"CntyDataLink!$K$20","v":5031},null,"Under 15 yrs.",{"$f":"CntyDataLinkPrior10YearEstimate!$D$132","v":741},null,{"$f":"CntyDataLinkPrior10YearEstimate!$E$132","v":208.83246873989685},{"$f":"L22/SUM($L$22:$L$29)","v":0.16979835013748854},{"$f":"CntyDataLinkPrior5YearEstimates!$D$132","v":683},{"$f":"CntyDataLinkPrior5YearEstimates!$E$132","v":150.94038558318314},{"$f":"P22/SUM($P$22:$P$29)","v":0.15828505214368482},{"$f":"CntyDataLink!$D$132","v":775},{"$f":"CntyDataLink!$E$132","v":167.90175698902021},{"$f":"S22/SUM($S$22:$S$29)","v":0.16499893549073877},{"$f":"(S22-P22)/P22","v":0.13469985358711567},{"$f":"StatisticallySignificantCalcs!$A3","v":"Y"}]
[null,null,null,null,null,null,null,null,null,null,"15 to 24 yrs.",{"$f":"CntyDataLinkPrior10YearEstimate!$F$132","v":613},null,{"$f":"CntyDataLinkPrior10YearEstimate!$G$132","v":165.35114151405185},{"$f":"L23/SUM($L$22:$L$29)","v":0.14046746104491292},{"$f":"CntyDataLinkPrior5YearEstimates!$F$132","v":535},{"$f":"CntyDataLinkPrior5YearEstimates!$G$132","v":147.65161699080713},0.12398609501738123,{"$f":"CntyDataLink!$F$132","v":868},{"$f":"CntyDataLink!$G$132","v":256.02538936597676},0.18479880774962743,0.6224299065420561,{"$f":"StatisticallySignificantCalcs!$A4","v":"Y"}]
[null,"Percent Change",null,null,null,null,null,null,null,null,"25 to 34 yrs.",{"$f":"CntyDataLinkPrior10YearEstimate!$H$132","v":591},null,{"$f":"CntyDataLinkPrior10YearEstimate!$I$132","v":155.13220168617474},{"$f":"L24/SUM($L$22:$L$29)","v":0.13542621448212649},{"$f":"CntyDataLinkPrior5YearEstimates!$H$132","v":495},{"$f":"CntyDataLinkPrior5YearEstimates!$I$132","v":112.89818421923357},0.11471610660486674,{"$f":"CntyDataLink!$H$132","v":550},{"$f":"CntyDataLink!$I$132","v":153.67823528398549},0.117096018735363,0.1111111111111111,{"$f":"StatisticallySignificantCalcs!$A5","v":"Y"}]
[null,null,null,{"$f":"C21&\"-2020\"","v":"1990-2020"},{"$f":"D21&\"-2020\"","v":"2000-2020"},{"$f":"E21&\"-2020\"","v":"2010-2020"},{"$f":"F21&\"-2030\"","v":"2020-2030"},{"$f":"G21&\"-\"&H21","v":"2018-2022-2025"},{"$f":"H21&\"-\"&I21","v":"2025-2030"},null,"35 to 44 yrs.",{"$f":"CntyDataLinkPrior10YearEstimate!$J$132","v":730},null,{"$f":"CntyDataLinkPrior10YearEstimate!$K$132","v":184.53725911045714},0.16727772685609532,{"$f":"CntyDataLinkPrior5YearEstimates!$J$132","v":563},{"$f":"CntyDataLinkPrior5YearEstimates!$K$132","v":106.72862783714592},0.13047508690614137,{"$f":"CntyDataLink!$J$132","v":615},{"$f":"CntyDataLink!$K$132","v":156.67163112701672},0.13093463913136044,9.236234458259325E-2,{"$f":"StatisticallySignificantCalcs!$A6","v":"Y"}]
[null,null,null,{"$f":"(D22-C22)/C22","v":4.1729404172940417E-2},-0.10757794755316952,8.9079130032392415E-2,-2.1244954323348204E-3,3.9599744517777306E-2,3.0309236125332786E-2,null,"45 to 54 yrs.",{"$f":"CntyDataLinkPrior10YearEstimate!$L$132","v":788},null,{"$f":"CntyDataLinkPrior10YearEstimate!$M$132","v":161.32575739788115},0.18056828597616864,{"$f":"CntyDataLinkPrior5YearEstimates!$L$132","v":760},{"$f":"CntyDataLinkPrior5YearEstimates!$M$132","v":150.60876468519353},0.1761297798377752,{"$f":"CntyDataLink!$L$132","v":599},{"$f":"CntyDataLink!$M$132","v":169.33398950004101},0.12752820949542262,-0.21184210526315789,{"$f":"StatisticallySignificantCalcs!$A7","v":"Y"}]
[null,null,null,null,null,null,null,null,null,null,"55 to 64 yrs.",{"$f":"CntyDataLinkPrior10YearEstimate!$N$132","v":408},null,{"$f":"CntyDataLinkPrior10YearEstimate!$O$132","v":123.12595177297108},9.3492208982584785E-2,{"$f":"CntyDataLinkPrior5YearEstimates!$N$132","v":687},{"$f":"CntyDataLinkPrior5YearEstimates!$O$132","v":146.31814651641812},0.15921205098493627,{"$f":"CntyDataLink!$N$132","v":715},{"$f":"CntyDataLink!$O$132","v":170.63997187060247},0.1522248243559719,4.0756914119359534E-2,{"$f":"StatisticallySignificantCalcs!$A8","v":"Y"}]
[null,null,null,null,null,null,null,null,null,null,"65 to 74 yrs.",{"$f":"CntyDataLinkPrior10YearEstimate!$P$132","v":237},null,{"$f":"CntyDataLinkPrior10YearEstimate!$Q$132","v":76.400261779656233},5.4307974335472041E-2,{"$f":"CntyDataLinkPrior5YearEstimates!$P$132","v":331},{"$f":"CntyDataLinkPrior5YearEstimates!$Q$132","v":91.547801721286575},7.670915411355736E-2,{"$f":"CntyDataLink!$P$132","v":432},{"$f":"CntyDataLink!$Q$132","v":148.29362764461592},9.1973600170321482E-2,0.30513595166163143,{"$f":"StatisticallySignificantCalcs!$A9","v":"Y"}]
[null,null,null,null,null,null,null,null,null,null,"Over 74 yrs. ",{"$f":"CntyDataLinkPrior10YearEstimate!$R$132","v":256},null,{"$f":"CntyDataLinkPrior10YearEstimate!$S$132","v":93.397002093214965},5.8661778185151239E-2,{"$f":"CntyDataLinkPrior5YearEstimates!$R$132","v":261},{"$f":"CntyDataLinkPrior5YearEstimates!$S$132","v":93.423765713013296},6.048667439165701E-2,{"$f":"CntyDataLink!$R$132","v":143},{"$f":"CntyDataLink!$S$132","v":72.027772421476428},3.0444964871194378E-2,-0.45210727969348657,{"$f":"StatisticallySignificantCalcs!$A10","v":"Y"}]
[null,null,null,null,null,null,null,null,null,null,"Median Age (years)",{"$f":"CntyDataLinkPrior10YearEstimate!$AX$132","v":38.5},null,{"$f":"CntyDataLinkPrior10YearEstimate!$AY$132","v":2.2999999999999998},null,{"$f":"CntyDataLinkPrior5YearEstimates!$AX132","v":43.8},{"$f":"CntyDataLinkPrior5YearEstimates!$AY$132","v":2.2000000000000002},null,{"$f":"CntyDataLink!$AX$132","v":37.200000000000003},{"$f":"CntyDataLink!$AY$132","v":4.0999999999999996}]
[]
[null,"Population By Race",null,null,null,null,null,null,null,null,null,null,"Statistically Significant Change"]
[null,null,null,null,null,null,null,null,null,null,null,null,{"$f":"IF(L36=\"\",\"-\",StatisticallySignificantCalcs!A20)","v":"N"}]
[null,null,{"$f":"L20","v":"2008-2012"},null,null,{"$f":"P20","v":"2013-2017"},null,null,{"$f":"S20","v":"2018-2022"},null,null,"Statistically Significant Change"]
[null,null,"Estimate","Margin of Error",null,"Estimate","Margin of Error",null,"Estimate","Margin of Error",null,"2012-2022","2017-2022"]
[null,"White",{"$f":"CntyDataLinkPrior10YearEstimate!$AL$132","v":4052},{"$f":"CntyDataLinkPrior10YearEstimate!$AM$132","v":179},{"$f":"IF(C$36=\"-\",\"-\",VALUE(C36/$C$41))","v":0.92850595783684697},{"$f":"CntyDataLinkPrior5YearEstimates!$AL$132","v":4093},{"$f":"CntyDataLinkPrior5YearEstimates!$AM$132","v":142},{"$f":"IF(F$36=\"-\",\"-\",VALUE(F36/$F$41))","v":0.94855156431054466},{"$f":"CntyDataLink!$AL$132","v":4093},{"$f":"CntyDataLink!$AM$132","v":142},{"$f":"IF(I$36=\"-\",\"-\",VALUE(I36/$I$41))","v":0.87140728124334677},{"$f":"StatisticallySignificantCalcs!A20","v":"N"},{"$f":"StatisticallySignificantCalcs!J20","v":"N"}]
[null,"Black",{"$f":"CntyDataLinkPrior10YearEstimate!$AN132","v":12},{"$f":"CntyDataLinkPrior10YearEstimate!$AO$132","v":14},{"$f":"IF(C$37=\"-\",\"-\",VALUE(C37/$C$41))","v":2.7497708524289641E-3},{"$f":"CntyDataLinkPrior5YearEstimates!$AN132","v":15},{"$f":"CntyDataLinkPrior5YearEstimates!$AO$132","v":18},{"$f":"IF(F$37=\"-\",\"-\",VALUE(F37/$F$41))","v":3.4762456546929316E-3},{"$f":"CntyDataLink!$AN$132","v":15},{"$f":"CntyDataLink!$AO$132","v":18},{"$f":"IF(I$37=\"-\",\"-\",VALUE(I37/$I$41))","v":3.1935277836917181E-3},{"$f":"StatisticallySignificantCalcs!A21","v":"N"},{"$f":"StatisticallySignificantCalcs!J21","v":"N"}]
[null,"American Indian",{"$f":"CntyDataLinkPrior10YearEstimate!$AP$132","v":19},{"$f":"CntyDataLinkPrior10YearEstimate!$AQ$132","v":31},{"$f":"IF(C$38=\"-\",\"-\",VALUE(C38/$C$41))","v":4.3538038496791932E-3},{"$f":"CntyDataLinkPrior5YearEstimates!$AP$132","v":0},{"$f":"CntyDataLinkPrior5YearEstimates!$AQ$132","v":11},{"$f":"IF(F$38=\"-\",\"-\",VALUE(F38/$F$41))","v":0},{"$f":"CntyDataLink!$AP$132","v":0},{"$f":"CntyDataLink!$AQ$132","v":11},{"$f":"IF(I$38=\"-\",\"-\",VALUE(I38/$I$41))","v":0},{"$f":"StatisticallySignificantCalcs!A22","v":"N"},{"$f":"StatisticallySignificantCalcs!J22","v":"N"}]
[null,"Asian &Pacific Is.",{"$f":"CntyDataLinkPrior10YearEstimate!$AR$132","v":76},{"$f":"CntyDataLinkPrior10YearEstimate!$AS$132","v":118.10588469674151},{"$f":"IF(C$39=\"-\",\"-\",VALUE(C39/$C$41))","v":1.7415215398716773E-2},{"$f":"CntyDataLinkPrior5YearEstimates!$AR$132","v":14},{"$f":"CntyDataLinkPrior5YearEstimates!$AS$132","v":24.596747752497688},{"$f":"IF(F$39=\"-\",\"-\",VALUE(F39/$F$41))","v":3.2444959443800694E-3},{"$f":"CntyDataLink!$AR$132","v":14},{"$f":"CntyDataLink!$AS$132","v":24.596747752497688},{"$f":"IF(I$39=\"-\",\"-\",VALUE(I39/$I$41))","v":2.9806259314456036E-3},{"$f":"StatisticallySignificantCalcs!A23","v":"N"},{"$f":"StatisticallySignificantCalcs!J23","v":"N"}]
[null,"Other*",{"$f":"CntyDataLinkPrior10YearEstimate!$AT$132","v":40},{"$f":"CntyDataLinkPrior10YearEstimate!$AU$132","v":91.547801721286575},{"$f":"IF(C$40=\"-\",\"-\",VALUE(C40/$C$41))","v":9.1659028414298807E-3},{"$f":"CntyDataLinkPrior5YearEstimates!$AT$132","v":50},{"$f":"CntyDataLinkPrior5YearEstimates!$AU$132","v":47.296934361541872},{"$f":"IF(F$40=\"-\",\"-\",VALUE(F40/$F$41))","v":1.1587485515643106E-2},{"$f":"CntyDataLink!$AT$132","v":50},{"$f":"CntyDataLink!$AU$132","v":47.296934361541872},{"$f":"IF(I$40=\"-\",\"-\",VALUE(I40/$I$41))","v":1.0645092612305727E-2},{"$f":"StatisticallySignificantCalcs!A24","v":"N"},{"$f":"StatisticallySignificantCalcs!J24","v":"N"}]
[null,"Total Population",{"$f":"CntyDataLinkPrior10YearEstimate!$B$132","v":4364},{"$f":"CntyDataLinkPrior10YearEstimate!$C$132","v":28},null,{"$f":"CntyDataLinkPrior5YearEstimates!$B$132","v":4315},{"$f":"CntyDataLinkPrior5YearEstimates!$C$132","v":21},null,{"$f":"CntyDataLink!$B$132","v":4697},{"$f":"CntyDataLink!$C$132","v":20}]
[null,"Hispanic",{"$f":"CntyDataLinkPrior10YearEstimate!$AV$132","v":238},{"$f":"CntyDataLinkPrior10YearEstimate!$AW$132","v":149},{"$f":"IF(C$42=\"-\",\"-\",VALUE(C42/$C$41))","v":5.4537121906507793E-2},{"$f":"CntyDataLinkPrior5YearEstimates!$AV132","v":192},{"$f":"CntyDataLinkPrior5YearEstimates!$AW$132","v":131},{"$f":"IF(F$42=\"-\",\"-\",VALUE(F42/$F$41))","v":4.4495944380069527E-2},{"$f":"CntyDataLink!$AV$132","v":192},{"$f":"CntyDataLink!$AW$132","v":131},{"$f":"IF(I$42=\"-\",\"-\",VALUE(I42/$I$41))","v":4.0877155631253992E-2},{"$f":"StatisticallySignificantCalcs!A26","v":"Y"},{"$f":"StatisticallySignificantCalcs!J26","v":"Y"}]
[]
[null,"*","Other includes population of 2 or more races"]
[]
[null,{"$f":"\"Source: \"& L20&\", \"&P20&\", and \"&S20&\" American Community Survey Table B03002\"","v":"Source: 2008-2012, 2013-2017, and 2018-2022 American Community Survey Table B03002"}]
[]
[null,null,"Households and Families"]
[null,null,null,{"$f":"C34","v":"2008-2012"},null,null,{"$f":"F34","v":"2013-2017"},null,null,{"$f":"I34","v":"2018-2022"},null,null,null,"Percent Change",null,"Percent Change"]
[null,null,null,"Estimate","Margin of Error",null,"Estimate","Margin of Error",null,"Estimate","Margin of Error",null,null,{"$f":"L35","v":"2012-2022"},null,{"$f":"M35","v":"2017-2022"}]
[null,null,"Total Households",{"$f":"CntyDataLinkPrior10YearEstimate!$T$132","v":4324},{"$f":"CntyDataLinkPrior10YearEstimate!$U$132","v":44},null,{"$f":"CntyDataLinkPrior5YearEstimates!$T$132","v":1744},{"$f":"CntyDataLinkPrior5YearEstimates!$U$132","v":113},null,{"$f":"CntyDataLink!$T$132","v":1812},{"$f":"CntyDataLink!$U$132","v":193},null,null,{"$f":"(J51-D51)/D51","v":-0.58094357076780756},null,{"$f":"(J51-G51)/G51","v":3.8990825688073397E-2}]
[null,null,"Persons per Household",{"$f":"CntyDataLinkPrior10YearEstimate!$BD$132","v":2.4907834101382487},{"$f":"CntyDataLinkPrior10YearEstimate!$BE$132","v":0.17},null,{"$f":"CntyDataLinkPrior5YearEstimates!$BD$132","v":2.460435779816514},{"$f":"CntyDataLinkPrior5YearEstimates!$BE$132","v":0.16},null,{"$f":"CntyDataLink!$BD$132","v":2.5662251655629138},{"$f":"CntyDataLink!$BE$132","v":0.27},null,null,3.0288364342557512E-2,null,4.2996198727970475E-2]
[null,null,"Family Households",{"$f":"CntyDataLinkPrior10YearEstimate!$V$132","v":3712},{"$f":"CntyDataLinkPrior10YearEstimate!$U$132","v":44},null,{"$f":"CntyDataLinkPrior5YearEstimates!$V$132","v":1121},{"$f":"CntyDataLinkPrior5YearEstimates!$U$132","v":113},null,{"$f":"CntyDataLink!$V$132","v":1077},{"$f":"CntyDataLink!$U$132","v":193},null,null,-0.70985991379310343,null,-3.9250669045495096E-2]
[null,null,"Persons per Family Household",{"$f":"CntyDataLinkPrior10YearEstimate!$BF$132","v":3.0451189499589826},{"$f":"CntyDataLinkPrior10YearEstimate!$BG$132","v":0.27884959097028839},null,{"$f":"CntyDataLinkPrior5YearEstimates!$BF$132","v":3.1231043710972348},{"$f":"CntyDataLinkPrior5YearEstimates!$BG$132","v":0.47447687297371782},null,{"$f":"CntyDataLink!$BF$132","v":3.4818941504178271},{"$f":"CntyDataLink!$BG$132","v":0.47447687297371782},null,null,0.14343452838344062,null,0.11488241720033818]
[null,null,"Married-Couple Family Hh",{"$f":"CntyDataLinkPrior10YearEstimate!$X$132","v":2669},{"$f":"CntyDataLinkPrior10YearEstimate!$Y$132","v":353},null,{"$f":"CntyDataLinkPrior5YearEstimates!$X$132","v":850},{"$f":"CntyDataLinkPrior5YearEstimates!$Y$132","v":105},null,{"$f":"CntyDataLink!$X$132","v":775},{"$f":"CntyDataLink!$Y$132","v":132},null,null,-0.70962907455976021,null,-8.8235294117647065E-2]
[null,null,"Single-Parent Family Hh",{"$f":"CntyDataLinkPrior10YearEstimate!$Z$132","v":2669},{"$f":"CntyDataLinkPrior10YearEstimate!$AA$132","v":353},null,{"$f":"CntyDataLinkPrior5YearEstimates!$Z$132","v":271},{"$f":"CntyDataLinkPrior5YearEstimates!$AA$132","v":80},null,{"$f":"CntyDataLink!$Z$132","v":302},{"$f":"CntyDataLink!$AA$132","v":127},null,null,-0.88684900711877113,null,0.11439114391143912]
[null,null,"Non-Family Households*",{"$f":"CntyDataLinkPrior10YearEstimate!$AF$132","v":179},{"$f":"CntyDataLinkPrior10YearEstimate!$AG$132","v":123},null,{"$f":"CntyDataLinkPrior5YearEstimates!$AF$132","v":623},{"$f":"CntyDataLinkPrior5YearEstimates!$AG$132","v":136},null,{"$f":"CntyDataLink!$AF$132","v":735},{"$f":"CntyDataLink!$AG$132","v":209},null,null,3.1061452513966481,null,0.1797752808988764]
[null,null,"Persons per Non-Family Hh",{"$f":"CntyDataLinkPrior10YearEstimate!$BH$132","v":1.183752417794971},{"$f":"CntyDataLinkPrior10YearEstimate!$BI$132","v":0.48308453863655443},null,{"$f":"CntyDataLinkPrior5YearEstimates!$BH$132","v":1.2680577849117174},{"$f":"CntyDataLinkPrior5YearEstimates!$BI$132","v":0.48580233342381313},null,{"$f":"CntyDataLink!$BH$132","v":1.2244897959183674},{"$f":"CntyDataLink!$BI$132","v":0.48580233342381313},null,null,3.4413765506202509E-2,null,-3.4358047016274762E-2]
[]
[]
[null,"As a result of changes in the American Community Survey, direct comparisons between the data should be made with caution."]
[]
[null,{"$f":"\"Source: \"&L20&\", \"&P20&\", and \"&S20&\"  American Community Survey Table B11001\"","v":"Source: 2008-2012, 2013-2017, and 2018-2022  American Community Survey Table B11001"}]
[null,"POPULATION CHARACTERISTICS"]

{"sheet":"SchoolEnrolEduAttain","index":5,"n_rows":67,"n_cols":17,"rows_kept":67,"cut":false,"hidden":true,"merged":[[20,15,20,16],[49,15,49,16],[49,5,49,7],[20,5,20,7],[20,8,20,10],[20,11,20,13],[49,8,49,10]]}
[]
[null,null,{"$f":"CntyDataLink!A50","v":"Allenstown"}]
[null,null,"SOCIAL CHARACTERISTICS"]
[]
[]
[]
[]
[]
[]
[]
[]
[]
[]
[]
[]
[]
[]
[]
[]
[]
[null,null,"School Enrollment",null,null,"2008-2012",null,null,"2013-2017",null,null,"2018-2022",null,null,null,"Statistically Significant Change"]
[null,null,null,null,null,"Estimate"," Margin of Error","Percent of Population","Estimate"," Margin of Error","Percent of Population","Estimate"," Margin of Error","Percent of Population",null,"2012-2022","2017-2022"]
[null,null,"Population 3 years and over",null,null,{"$f":"CntyDataLinkPrior10YearEstimate!$B$140","v":4304},{"$f":"CntyDataLinkPrior10YearEstimate!$C$140","v":49},null,{"$f":"CntyDataLinkPrior5YearEstimates!$B$140","v":4209},{"$f":"CntyDataLinkPrior5YearEstimates!$C$140","v":54},null,{"$f":"CntyDataLink!$B$140","v":4535},{"$f":"CntyDataLink!$C$140","v":81},null,null,{"$f":"StatisticallySignificantCalcs!$A$45","v":"Y"},{"$f":"StatisticallySignificantCalcs!$J$45","v":"Y"}]
[null,null,"Population 3 years & over enrolled in school",null,null,{"$f":"CntyDataLinkPrior10YearEstimate!$D$140","v":912},{"$f":"CntyDataLinkPrior10YearEstimate!$E$140","v":152},{"$f":"F24/$F$23","v":0.21189591078066913},{"$f":"CntyDataLinkPrior5YearEstimates!$D$140","v":917},{"$f":"CntyDataLinkPrior5YearEstimates!$E$140","v":188},{"$f":"I24/$I$23","v":0.2178664765977667},{"$f":"CntyDataLink!$D$140","v":1052},{"$f":"CntyDataLink!$E$140","v":223},{"$f":"L24/$L$23","v":0.23197353914002206},null,{"$f":"StatisticallySignificantCalcs!$A$46","v":"N"},{"$f":"StatisticallySignificantCalcs!$J$46","v":"N"}]
[null,null,"Preprimary (Nursery, Preschool, Kindergarten)",null,null,{"$f":"CntyDataLinkPrior10YearEstimate!$F$140","v":62},{"$f":"CntyDataLinkPrior10YearEstimate!$G$140","v":43.416586692184822},1.4405204460966542E-2,{"$f":"CntyDataLinkPrior5YearEstimates!$F$140","v":84},{"$f":"CntyDataLinkPrior5YearEstimates!$G$140","v":62.177166226839255},{"$f":"I25/$I$23","v":1.9957234497505347E-2},{"$f":"CntyDataLink!$F$140","v":158},{"$f":"CntyDataLink!$G$140","v":76.05918747922567},3.4840132304299887E-2,null,{"$f":"StatisticallySignificantCalcs!$A$47","v":"Y"},{"$f":"StatisticallySignificantCalcs!$J$47","v":"N"}]
[null,null,"        Nursery school and Preschool",null,null,{"$f":"CntyDataLinkPrior10YearEstimate!$H$140","v":20},{"$f":"CntyDataLinkPrior10YearEstimate!$I$140","v":21},4.646840148698885E-3,{"$f":"CntyDataLinkPrior5YearEstimates!$H$140","v":51},{"$f":"CntyDataLinkPrior5YearEstimates!$I$140","v":55},1.2116892373485389E-2,{"$f":"CntyDataLink!$H$140","v":35},{"$f":"CntyDataLink!$I$140","v":32},7.717750826901874E-3,null,{"$f":"StatisticallySignificantCalcs!$A$48","v":"N"},{"$f":"StatisticallySignificantCalcs!$J$48","v":"N"}]
[null,null,"        Kindergarten",null,null,{"$f":"CntyDataLinkPrior10YearEstimate!$J$140","v":42},{"$f":"CntyDataLinkPrior10YearEstimate!$K$140","v":38},9.7583643122676582E-3,{"$f":"CntyDataLinkPrior5YearEstimates!$J$140","v":33},{"$f":"CntyDataLinkPrior5YearEstimates!$K$140","v":29},7.8403421240199576E-3,{"$f":"CntyDataLink!$J$140","v":123},{"$f":"CntyDataLink!$K$140","v":69},2.7122381477398014E-2,null,{"$f":"StatisticallySignificantCalcs!$A$49","v":"Y"},{"$f":"StatisticallySignificantCalcs!$J$49","v":"Y"}]
[null,null,"Elementary through High school",null,null,{"$f":"CntyDataLinkPrior10YearEstimate!$P$140","v":662},{"$f":"CntyDataLinkPrior10YearEstimate!$Q$140","v":225.07109987734987},0.15381040892193309,{"$f":"CntyDataLinkPrior5YearEstimates!$P$140","v":536},{"$f":"CntyDataLinkPrior5YearEstimates!$Q$140","v":125.67418191498204},0.12734616298408172,{"$f":"CntyDataLink!$P$140","v":772},{"$f":"CntyDataLink!$Q$140","v":186.22029964533942},0.17023153252480705,null,{"$f":"StatisticallySignificantCalcs!$A$50","v":"N"},{"$f":"StatisticallySignificantCalcs!$J$50","v":"Y"}]
[null,null,"        Elementary school (grades 1-8)",null,null,{"$f":"CntyDataLinkPrior10YearEstimate!$L$140","v":407},{"$f":"CntyDataLinkPrior10YearEstimate!$M$140","v":167.80047675736802},9.4563197026022311E-2,{"$f":"CntyDataLinkPrior5YearEstimates!$L$140","v":384},{"$f":"CntyDataLinkPrior5YearEstimates!$M$140","v":112.0044641967453},9.1233071988595871E-2,{"$f":"CntyDataLink!$L$140","v":372},{"$f":"CntyDataLink!$M$140","v":96.938124595021947},8.2028665931642777E-2,null,{"$f":"StatisticallySignificantCalcs!$A$51","v":"N"},{"$f":"StatisticallySignificantCalcs!$J$51","v":"N"}]
[null,null,"        High school (grades 9-12)",null,null,{"$f":"CntyDataLinkPrior10YearEstimate!$N$140","v":255},{"$f":"CntyDataLinkPrior10YearEstimate!$O$140","v":150},5.9247211895910784E-2,{"$f":"CntyDataLinkPrior5YearEstimates!$N$140","v":152},{"$f":"CntyDataLinkPrior5YearEstimates!$O$140","v":57},3.6113090995485861E-2,{"$f":"CntyDataLink!$N$140","v":400},{"$f":"CntyDataLink!$O$140","v":159},8.8202866593164272E-2,null,{"$f":"StatisticallySignificantCalcs!$A$52","v":"N"},{"$f":"StatisticallySignificantCalcs!$J$52","v":"Y"}]
[null,null,"College or Graduate School",null,null,{"$f":"CntyDataLinkPrior10YearEstimate!$R$140","v":188},{"$f":"CntyDataLinkPrior10YearEstimate!$S$140","v":87.658428003244509},4.3680297397769519E-2,{"$f":"CntyDataLinkPrior5YearEstimates!$R$140","v":297},{"$f":"CntyDataLinkPrior5YearEstimates!$S$140","v":140.24621207005913},7.0563079116179608E-2,{"$f":"CntyDataLink!$R$140","v":122},{"$f":"CntyDataLink!$S$140","v":73.430239002743278},2.6901874310915105E-2,null,{"$f":"StatisticallySignificantCalcs!$A$53","v":"N"},{"$f":"StatisticallySignificantCalcs!$J$53","v":"Y"}]
[]
[null,null,{"$f":"\"Source: \"&F21&\", \"& I21&\" and \"&L21&\" American Community Survey Table B14001\"","v":"Source: 2008-2012, 2013-2017 and 2018-2022 American Community Survey Table B14001"}]
[]
[]
[]
[]
[]
[]
[]
[]
[]
[]
[]
[]
[]
[]
[]
[]
[null,null,"Educational Attainment",null,null,{"$f":"F21","v":"2008-2012"},null,null,{"$f":"I21","v":"2013-2017"},null,null,{"$f":"L21","v":"2018-2022"},null,null,null,"Statistically Significant Change"]
[null,null,null,null,null,"Estimate"," Margin of Error","Percent of Population","Estimate"," Margin of Error","Percent of Population","Estimate"," Margin of Error","Percent of Population",null,{"$f":"P22","v":"2012-2022"},"2017-2022"]
[null,null,"Population 25 years and over",null,null,{"$f":"CntyDataLinkPrior10YearEstimate!$V$140","v":3010},{"$f":"CntyDataLinkPrior10YearEstimate!$W$140","v":158},null,{"$f":"CntyDataLinkPrior5YearEstimates!$V$140","v":3097},{"$f":"CntyDataLinkPrior5YearEstimates!$W$140","v":166},null,{"$f":"CntyDataLink!$V$140","v":3054},{"$f":"CntyDataLink!$W$140","v":293},null,null,{"$f":"StatisticallySignificantCalcs!A54","v":"N"},{"$f":"StatisticallySignificantCalcs!$J$54","v":"N"}]
[null,null,"Less than 9th Grade",null,null,{"$f":"CntyDataLinkPrior10YearEstimate!$X$140","v":90},{"$f":"CntyDataLinkPrior10YearEstimate!$Y$140","v":61.351446600711867},{"$f":"F53/$F$52","v":2.9900332225913623E-2},{"$f":"CntyDataLinkPrior5YearEstimates!$X$140","v":43},{"$f":"CntyDataLinkPrior5YearEstimates!$Y$140","v":54.827000647491197},{"$f":"I53/$I$52","v":1.3884404262189216E-2},{"$f":"CntyDataLink!$X$140","v":42},{"$f":"CntyDataLink!$Y$140","v":56.745043836444431},{"$f":"L53/$L$52","v":1.37524557956778E-2},null,{"$f":"StatisticallySignificantCalcs!A55","v":"N"},{"$f":"StatisticallySignificantCalcs!$J$55","v":"N"}]
[null,null,"9th to 12th Grade, no Diploma",null,null,{"$f":"CntyDataLinkPrior10YearEstimate!$Z$140","v":263},{"$f":"CntyDataLinkPrior10YearEstimate!$AA$140","v":115.50324670761424},{"$f":"F54/$F$52","v":8.7375415282392024E-2},{"$f":"CntyDataLinkPrior5YearEstimates!$Z$140","v":256},{"$f":"CntyDataLinkPrior5YearEstimates!$AA$140","v":89.827612681179502},8.2660639328382302E-2,{"$f":"CntyDataLink!$Z$140","v":317},{"$f":"CntyDataLink!$AA$140","v":139.97856978837868},0.10379829731499672,null,{"$f":"StatisticallySignificantCalcs!A56","v":"N"},{"$f":"StatisticallySignificantCalcs!$J$56","v":"N"}]
[null,null,"High School Graduate ",null,null,{"$f":"CntyDataLinkPrior10YearEstimate!$AB$140","v":1336},{"$f":"CntyDataLinkPrior10YearEstimate!$AC$140","v":206.55265672462312},0.44385382059800665,{"$f":"CntyDataLinkPrior5YearEstimates!$AB$140","v":1405},{"$f":"CntyDataLinkPrior5YearEstimates!$AC$140","v":166.71232707871366},0.45366483693897319,{"$f":"CntyDataLink!$AB$140","v":1032},{"$f":"CntyDataLink!$AC$140","v":235.51857676200407},0.33791748526522591,null,{"$f":"StatisticallySignificantCalcs!A57","v":"Y"},{"$f":"StatisticallySignificantCalcs!$J$57","v":"Y"}]
[null,null,"Some College, No Degree",null,null,{"$f":"CntyDataLinkPrior10YearEstimate!$AD$140","v":646},{"$f":"CntyDataLinkPrior10YearEstimate!$AE$140","v":146.95917800532229},0.21461794019933556,{"$f":"CntyDataLinkPrior5YearEstimates!$AD$140","v":612},{"$f":"CntyDataLinkPrior5YearEstimates!$AE$140","v":150.12328267127654},0.19761059089441396,{"$f":"CntyDataLink!$AD$140","v":523},{"$f":"CntyDataLink!$AE$140","v":145.99657530229948},0.17125081859855926,null,{"$f":"StatisticallySignificantCalcs!A58","v":"N"},{"$f":"StatisticallySignificantCalcs!$J$58","v":"N"}]
[null,null,"Associate Degree",null,null,{"$f":"CntyDataLinkPrior10YearEstimate!$AF$140","v":289},{"$f":"CntyDataLinkPrior10YearEstimate!$AG$140","v":105.58882516630251},9.6013289036544852E-2,{"$f":"CntyDataLinkPrior5YearEstimates!$AF$140","v":332},{"$f":"CntyDataLinkPrior5YearEstimates!$AG$140","v":108.30050784737807},0.1072005166289958,{"$f":"CntyDataLink!$AF$140","v":554},{"$f":"CntyDataLink!$AG$140","v":178.66449003649271},0.18140144073346431,null,{"$f":"StatisticallySignificantCalcs!A59","v":"Y"},{"$f":"StatisticallySignificantCalcs!$J$59","v":"Y"}]
[null,null,"Bachelor's Degree",null,null,{"$f":"CntyDataLinkPrior10YearEstimate!$AH$140","v":279},{"$f":"CntyDataLinkPrior10YearEstimate!$AI$140","v":129.80754985747168},9.269102990033222E-2,{"$f":"CntyDataLinkPrior5YearEstimates!$AH$140","v":323},{"$f":"CntyDataLinkPrior5YearEstimates!$AI$140","v":84.958813551037778},0.10429447852760736,{"$f":"CntyDataLink!$AH$140","v":408},{"$f":"CntyDataLink!$AI$140","v":125.2078272313676},0.13359528487229863,null,{"$f":"StatisticallySignificantCalcs!A60","v":"N"},{"$f":"StatisticallySignificantCalcs!$J$60","v":"N"}]
[null,null,"Graduate or Professional Degree",null,null,{"$f":"CntyDataLinkPrior10YearEstimate!$AJ$140","v":37},{"$f":"CntyDataLinkPrior10YearEstimate!$AK$140","v":36.537651812890218},1.229235880398671E-2,{"$f":"CntyDataLinkPrior5YearEstimates!$AJ$140","v":114},{"$f":"CntyDataLinkPrior5YearEstimates!$AK$140","v":56.356011214421486},3.6809815950920248E-2,{"$f":"CntyDataLink!$AJ$140","v":178},{"$f":"CntyDataLink!$AK$140","v":75.418830539859215},5.8284217419777344E-2,null,{"$f":"StatisticallySignificantCalcs!A61","v":"N"},{"$f":"StatisticallySignificantCalcs!$J$61","v":"N"}]
[]
[null,null,"Percent of High School Graduate or Higher",null,null,null,null,{"$f":"SUM(F55:F59)/F52","v":0.85946843853820598},null,null,{"$f":"SUM(I55:I59)/I52","v":0.89958023894091055},null,null,{"$f":"SUM(L55:L59)/L52","v":0.88244924688932547}]
[null,null,"Percent of Bachelor's Degree or Higher",null,null,null,null,{"$f":"SUM(F58:F59)/F52","v":0.10498338870431893},null,null,{"$f":"SUM(I58:I59)/I52","v":0.1411042944785276},null,null,{"$f":"SUM(L58:L59)/L52","v":0.19187950229207595}]
[]
[null,null,{"$f":"\"Source: \"&F21&\", \"&I21&\" and \"&L21&\" American Community Survey Table B15002\"","v":"Source: 2008-2012, 2013-2017 and 2018-2022 American Community Survey Table B15002"},null,null,null,null,"Data from the American Community Survey are estimates"]
[]
[null,null,"As a result of changes in the American Community Survey, direct comparisons between the data should be made with caution."]
[null,null,"be made with caution."]

{"sheet":"HousingCharacteristics","index":6,"n_rows":112,"n_cols":16,"rows_kept":112,"cut":false,"hidden":true,"merged":[[29,14,29,15],[68,9,68,11],[68,12,68,13],[68,14,68,15],[85,14,85,15],[85,2,85,4],[85,6,85,8],[85,10,85,12],[29,2,29,4],[29,5,29,7],[29,8,29,10],[68,3,68,5],[68,6,68,8],[29,11,29,12]]}
[]
[null,{"$f":"CntyDataLink!$A35","v":"Allenstown"}]
[]
[null,"HOUSING CHARACTERISTICS"]
[]
[]
[]
[]
[]
[]
[]
[]
[]
[]
[]
[]
[]
[]
[]
[]
[]
[]
[]
[]
[]
[]
[null,null,null,{"$f":"\"Source:  \"& \" \"&D69&\", \"&G69&\" and \"&J69& \" American Community Survey Table B25004; B25024; B25032\"","v":"Source:   2008-2012, 2013-2017 and 2018-2022 American Community Survey Table B25004; B25024; B25032"}]
[null,"Units by Tenure & Vacancy"]
[]
[null,null,"2008-2012",null,null,"2013-2017",null,null,"2018-2022",null,null,"Percent Change",null,null,"Statistically Significant Change"]
[null,null,"Estimate","Margin of Error","%","Estimate","Margin of Error","%","Estimate","Margin of Error","%","2012-2022","2017-2022",null,{"$f":"L31","v":"2012-2022"},"2017-2022"]
[null,"Total Units",{"$f":"CntyDataLinkPrior10YearEstimate!$B$108","v":1763},{"$f":"CntyDataLinkPrior5YearEstimates!$C$108","v":132},null,{"$f":"CntyDataLinkPrior5YearEstimates!$B$108","v":1769},{"$f":"CntyDataLinkPrior5YearEstimates!$C$108","v":132},null,{"$f":"CntyDataLink!$B$108","v":1881},{"$f":"CntyDataLink!$C$108","v":198},null,{"$f":"IF(I32=\"-\",\"-\",(I32-C32)/C32)","v":6.6931366988088492E-2},{"$f":"IF(I32=\"-\",\"-\",(I32-F32)/F32)","v":6.3312605992085921E-2},null,{"$f":"StatisticallySignificantCalcs!$A62","v":"N"},{"$f":"StatisticallySignificantCalcs!$J62","v":"N"}]
[null,"Occupied Units",{"$f":"CntyDataLinkPrior10YearEstimate!$D$108","v":1693},{"$f":"CntyDataLinkPrior5YearEstimates!$E$108","v":118},{"$f":"ROUND(C33/C32,2)*100&\"% of Total\"","v":"96% of Total"},{"$f":"CntyDataLinkPrior5YearEstimates!$D$108","v":1690},{"$f":"CntyDataLinkPrior5YearEstimates!$E$108","v":118},{"$f":"ROUND(F33/F32,2)*100&\"% of Total\"","v":"96% of Total"},{"$f":"CntyDataLink!$D$108","v":1812},{"$f":"CntyDataLink!$E$108","v":193},{"$f":"ROUND(I33/I32,2)*100&\"% of Total\"","v":"96% of Total"},{"$f":"IF(I33=\"-\",\"-\",(I33-C33)/C33)","v":7.0289427052569409E-2},7.2189349112426041E-2,null,{"$f":"StatisticallySignificantCalcs!$A63","v":"N"},{"$f":"StatisticallySignificantCalcs!$J63","v":"N"}]
[null,"Owner Occupied",{"$f":"CntyDataLinkPrior10YearEstimate!$F$108","v":1072},{"$f":"CntyDataLinkPrior5YearEstimates!$G$108","v":125},{"$f":"ROUND(C34/C33,2)*100&\"% of Occ.\"","v":"63% of Occ."},{"$f":"CntyDataLinkPrior5YearEstimates!$F$108","v":1223},{"$f":"CntyDataLinkPrior5YearEstimates!$G$108","v":125},{"$f":"ROUND(F34/F33,2)*100&\"% of Occ.\"","v":"72% of Occ."},{"$f":"CntyDataLink!$F$108","v":1439},{"$f":"CntyDataLink!$G$108","v":167},{"$f":"ROUND(I34/I33,2)*100&\"% of Occ.\"","v":"79% of Occ."},{"$f":"IF(I34=\"-\",\"-\",(I34-C34)/C34)","v":0.34235074626865669},0.17661488143908421,null,{"$f":"StatisticallySignificantCalcs!$A64","v":"Y"},{"$f":"StatisticallySignificantCalcs!$J64","v":"Y"}]
[null,"Renter Occupied",{"$f":"CntyDataLinkPrior10YearEstimate!$H$108","v":621},{"$f":"CntyDataLinkPrior5YearEstimates!$I$108","v":107},{"$f":"ROUND(C35/C33,2)*100&\"% of Occ.\"","v":"37% of Occ."},{"$f":"CntyDataLinkPrior5YearEstimates!$H$108","v":467},{"$f":"CntyDataLinkPrior5YearEstimates!$I$108","v":107},{"$f":"ROUND(F35/F33,2)*100&\"% of Occ.\"","v":"28% of Occ."},{"$f":"CntyDataLink!$H$108","v":373},{"$f":"CntyDataLink!$I$108","v":153},{"$f":"ROUND(I35/I33,2)*100&\"% of Occ.\"","v":"21% of Occ."},{"$f":"IF(I35=\"-\",\"-\",(I35-C35)/C35)","v":-0.39935587761674718},-0.2012847965738758,null,{"$f":"StatisticallySignificantCalcs!$A65","v":"Y"},{"$f":"StatisticallySignificantCalcs!$J65","v":"N"}]
[null,"Vacant Units",{"$f":"CntyDataLinkPrior10YearEstimate!$J$108","v":70},{"$f":"CntyDataLinkPrior5YearEstimates!$K$108","v":71},{"$f":"ROUND(C36/C32,2)*100&\"% of Total\"","v":"4% of Total"},{"$f":"CntyDataLinkPrior5YearEstimates!$J$108","v":79},{"$f":"CntyDataLinkPrior5YearEstimates!$K$108","v":71},{"$f":"ROUND(F36/F32,2)*100&\"% of Total\"","v":"4% of Total"},{"$f":"CntyDataLink!$J$108","v":69},{"$f":"CntyDataLink!$K$108","v":71},{"$f":"ROUND(I36/I32,2)*100&\"% of Total\"","v":"4% of Total"},{"$f":"IF(I36=\"-\",I36,VALUE((I36-C36)/C36))","v":-1.4285714285714285E-2},-0.12658227848101267,null,{"$f":"StatisticallySignificantCalcs!$A66","v":"N"},{"$f":"StatisticallySignificantCalcs!$J66","v":"N"}]
[null,"Vacant For Sale",{"$f":"CntyDataLinkPrior10YearEstimate!$P$108","v":36},{"$f":"CntyDataLinkPrior5YearEstimates!$Q$108","v":48},{"$f":"ROUND(C37/(C$36),3)*100&\"% Vac.\"","v":"51.4% Vac."},{"$f":"CntyDataLinkPrior5YearEstimates!$P$108","v":30},{"$f":"CntyDataLinkPrior5YearEstimates!$Q$108","v":48},{"$f":"ROUND(F37/(F$36),3)*100&\"% Vac.\"","v":"38% Vac."},{"$f":"CntyDataLink!$P$108","v":0},{"$f":"CntyDataLink!$Q$108","v":12},{"$f":"ROUND(I37/(I$36),3)*100&\"% Vac.\"","v":"0% Vac."},{"$f":"IF(I37=\"-\",I37,VALUE((I37-C37)/C37))","v":-1},-1,null,{"$f":"StatisticallySignificantCalcs!$A67","v":"N"},{"$f":"StatisticallySignificantCalcs!$J67","v":"N"}]
[null,"Vacant For Rent",{"$f":"CntyDataLinkPrior10YearEstimate!$L$108","v":0},{"$f":"CntyDataLinkPrior5YearEstimates!$M$108","v":11},{"$f":"ROUND(C38/(C$36),3)*100&\"% Vac.\"","v":"0% Vac."},{"$f":"CntyDataLinkPrior5YearEstimates!$L$108","v":0},{"$f":"CntyDataLinkPrior5YearEstimates!$M$108","v":11},{"$f":"ROUND(F38/(F$36),3)*100&\"% Vac.\"","v":"0% Vac."},{"$f":"CntyDataLink!$L$108","v":0},{"$f":"CntyDataLink!$M$108","v":12},{"$f":"ROUND(I38/(I$36),3)*100&\"% Vac.\"","v":"0% Vac."},{"$f":"IF(I38=\"-\",I38,VALUE((I38-C38)/C38))","v":{"$error":"#DIV/0!"}},{"$error":"#DIV/0!"},null,{"$f":"StatisticallySignificantCalcs!$A68","v":"N"},{"$f":"StatisticallySignificantCalcs!$J68","v":"N"}]
[null,"Vacant Seasonal",{"$f":"CntyDataLinkPrior10YearEstimate!$T$108","v":0},{"$f":"CntyDataLinkPrior5YearEstimates!$U$108","v":11},{"$f":"ROUND(C39/(C$36),3)*100&\"% Vac.\"","v":"0% Vac."},{"$f":"CntyDataLinkPrior5YearEstimates!$T$108","v":0},{"$f":"CntyDataLinkPrior5YearEstimates!$U$108","v":11},{"$f":"ROUND(F39/(F$36),3)*100&\"% Vac.\"","v":"0% Vac."},{"$f":"CntyDataLink!$T$108","v":0},{"$f":"CntyDataLink!$U$108","v":12},{"$f":"ROUND(I39/(I$36),3)*100&\"% Vac.\"","v":"0% Vac."},{"$f":"IF(I39=\"-\",I39,VALUE((I39-C39)/C39))","v":{"$error":"#DIV/0!"}},{"$error":"#DIV/0!"},null,{"$f":"StatisticallySignificantCalcs!$A69","v":"N"},{"$f":"StatisticallySignificantCalcs!$J69","v":"N"}]
[]
[null,"Data from the American Community Survey are estimates"]
[]
[]
[null,"HOUSING CHARACTERISTICS"]
[]
[]
[]
[]
[]
[]
[]
[]
[]
[]
[]
[]
[]
[]
[]
[]
[]
[]
[]
[]
[null,null,null,{"$f":"\"Source: \"& \" \"&D69&\", \"&G69&\" and \"&J69& \"  American Community Survey Table B25024; B25032\"","v":"Source:  2008-2012, 2013-2017 and 2018-2022  American Community Survey Table B25024; B25032"}]
[]
[null,null,"Units by Type"]
[]
[null,null,null,{"$f":"C30","v":"2008-2012"},null,null,{"$f":"F30","v":"2013-2017"},null,null,{"$f":"I30","v":"2018-2022"},null,null,"Percent Change",null,"Statistically Significant Change"]
[null,null,null,"Estimate","Margin of Error","% of Total","Estimate","Margin of Error","% of Total","Estimate","Margin of Error","% of Total",{"$f":"O31","v":"2012-2022"},"2017-2022",{"$f":"O31","v":"2012-2022"},"2017-2022"]
[null,null,"Total Units",{"$f":"CntyDataLinkPrior10YearEstimate!$B$108","v":1763},{"$f":"CntyDataLinkPrior10YearEstimate!$C$108","v":147},null,{"$f":"CntyDataLinkPrior5YearEstimates!$B$108","v":1769},{"$f":"CntyDataLinkPrior5YearEstimates!$C$108","v":132},null,{"$f":"CntyDataLink!$B$108","v":1881},{"$f":"CntyDataLink!$C$108","v":198},null,null,null,{"$f":"StatisticallySignificantCalcs!$A70","v":"N"},{"$f":"StatisticallySignificantCalcs!$J70","v":"N"}]
[null,null,"Single Family Units",{"$f":"CntyDataLinkPrior10YearEstimate!$AT$108","v":755},{"$f":"CntyDataLinkPrior10YearEstimate!$AU$108","v":157},{"$f":"IF(D72=\"-\",\"-\",($D$72/$D$71))","v":0.42824730572887126},{"$f":"CntyDataLinkPrior5YearEstimates!$AT$108","v":788},{"$f":"CntyDataLinkPrior5YearEstimates!$AU$108","v":117},{"$f":"IF(G72=\"-\",\"-\",($G$72/$G$71))","v":0.44544940644431885},{"$f":"CntyDataLink!$AT$108","v":1241},{"$f":"CntyDataLink!$AU$108","v":204.61915843830459},{"$f":"IF(J72=\"-\",\"-\",($J$72/$J$71))","v":0.65975544922913343},{"$f":"IF(J72=\"-\",\"-\",($J72-$D72)/$D72)","v":0.64370860927152318},{"$f":"IF(J72=\"-\",\"-\",($J72-$G72)/$G72)","v":0.57487309644670048},{"$f":"StatisticallySignificantCalcs!$A71","v":"Y"},{"$f":"StatisticallySignificantCalcs!$J71","v":"Y"}]
[null,null,"SF Owner Occ.",{"$f":"CntyDataLinkPrior10YearEstimate!$AF$108","v":615},{"$f":"CntyDataLinkPrior10YearEstimate!$AG$108","v":142},null,{"$f":"CntyDataLinkPrior5YearEstimates!$AF$108","v":649},{"$f":"CntyDataLinkPrior5YearEstimates!$AG$108","v":98},null,{"$f":"CntyDataLink!$AF$108","v":672},{"$f":"CntyDataLink!$AG$108","v":127},null,null,null,{"$f":"StatisticallySignificantCalcs!$A72","v":"N"},{"$f":"StatisticallySignificantCalcs!$J72","v":"N"}]
[null,null,"SF Renter Occ.",{"$f":"CntyDataLinkPrior10YearEstimate!$AN$108","v":104},{"$f":"CntyDataLinkPrior10YearEstimate!$AO$108","v":76},null,{"$f":"CntyDataLinkPrior5YearEstimates!$AN$108","v":90},{"$f":"CntyDataLinkPrior5YearEstimates!$AO$108","v":56},null,{"$f":"CntyDataLink!$AN$108","v":29},{"$f":"CntyDataLink!$AO$108","v":33},null,null,null,{"$f":"StatisticallySignificantCalcs!$A73","v":"N"},{"$f":"StatisticallySignificantCalcs!$J73","v":"N"}]
[null,null,"Multi-family Units",{"$f":"CntyDataLinkPrior10YearEstimate!$AV$108","v":648},{"$f":"CntyDataLinkPrior10YearEstimate!$AW$108","v":192.98186443290467},{"$f":"IF(D75=\"-\",\"-\",$D$75/$D$71)","v":0.36755530346001136},{"$f":"CntyDataLinkPrior5YearEstimates!$AV$108","v":490},{"$f":"CntyDataLinkPrior5YearEstimates!$AW$108","v":127.32242536175629},{"$f":"IF(G75=\"-\",\"-\",$G$75/$G$71)","v":0.27699265121537592},{"$f":"CntyDataLink!$AV$108","v":640},{"$f":"CntyDataLink!$AW$108","v":160.44936896105264},{"$f":"IF(J75=\"-\",\"-\",$J$75/$J$71)","v":0.34024455077086657},{"$f":"IF(J75=\"-\",\"-\",($J75-$D75)/$D75)","v":-1.2345679012345678E-2},{"$f":"IF(J75=\"-\",\"-\",($J75-$G75)/$G75)","v":0.30612244897959184},{"$f":"StatisticallySignificantCalcs!$A74","v":"N"},{"$f":"StatisticallySignificantCalcs!$J74","v":"N"}]
[null,null,"MF Owner Occ.",{"$f":"CntyDataLinkPrior10YearEstimate!$AH$108","v":167},{"$f":"CntyDataLinkPrior10YearEstimate!$AI$108","v":163.2237727783548},null,{"$f":"CntyDataLinkPrior5YearEstimates!$AH$108","v":124},{"$f":"CntyDataLinkPrior5YearEstimates!$AI$108","v":60.099916805266879},null,{"$f":"CntyDataLink!$AH$108","v":166},{"$f":"CntyDataLink!$AI$108","v":84.107074613257112},null,null,null,{"$f":"StatisticallySignificantCalcs!$A75","v":"N"},{"$f":"StatisticallySignificantCalcs!$J75","v":"N"}]
[null,null,"MF Renter Occ.",{"$f":"CntyDataLinkPrior10YearEstimate!$AP$108","v":447},{"$f":"CntyDataLinkPrior10YearEstimate!$AQ$108","v":186.21492958406961},null,{"$f":"CntyDataLinkPrior5YearEstimates!$AP$108","v":366},{"$f":"CntyDataLinkPrior5YearEstimates!$AQ$108","v":118.4694053331914},null,{"$f":"CntyDataLink!$AP$108","v":344},{"$f":"CntyDataLink!$AQ$108","v":141.33294025102569},null,null,null,{"$f":"StatisticallySignificantCalcs!$A76","v":"N"},{"$f":"StatisticallySignificantCalcs!$J76","v":"N"}]
[null,null,"Mobile Home & Other",{"$f":"CntyDataLinkPrior10YearEstimate!$AX$108","v":360},{"$f":"CntyDataLinkPrior10YearEstimate!$AY$108","v":134.31678971744373},{"$f":"IF(D78=\"-\",\"-\",($D$78/$D$71))","v":0.2041973908111174},{"$f":"CntyDataLinkPrior5YearEstimates!$AX$108","v":491},{"$f":"CntyDataLinkPrior5YearEstimates!$AY$108","v":101.59724405711013},{"$f":"IF(G78=\"-\",\"-\",($G$78/$G$71))","v":0.27755794234030523},{"$f":"CntyDataLink!$AX$108","v":0},{"$f":"CntyDataLink!$AY$108","v":0},{"$f":"IF(J78=\"-\",\"-\",($J$78/$J$71))","v":0},{"$f":"IF(J78=\"-\",\"-\",($J78-$D78)/$D78)","v":-1},{"$f":"IF(J78=\"-\",\"-\",($J78-$G78)/$G78)","v":-1},{"$f":"StatisticallySignificantCalcs!$A77","v":"Y"},{"$f":"StatisticallySignificantCalcs!$J77","v":"Y"}]
[]
[null,"Data from the American Community Survey are estimates"]
[]
[]
[null,"Units by Number of Bedrooms "]
[null,null,null,{"$f":"\"Source: \"& \" \"&D69&\", \"&G69&\" and \"&J69& \" American Community Survey Table B25041\"","v":"Source:  2008-2012, 2013-2017 and 2018-2022 American Community Survey Table B25041"}]
[]
[null,null,{"$f":"D69","v":"2008-2012"},null,null,null,{"$f":"G69","v":"2013-2017"},null,null,null,{"$f":"J69","v":"2018-2022"},null,null,null,"Statistically Significant Change"]
[null,"Bedrooms","Estimate","Margin of Error","% of Total",null,"Estimate","Margin of Error","% of Total",null,"Estimate","Margin of Error","% of Total",null,{"$f":"O70","v":"2012-2022"},{"$f":"P70","v":"2017-2022"}]
[null,"No Bedrooms",{"$f":"CntyDataLinkPrior10YearEstimate!$BR$108","v":147},{"$f":"CntyDataLinkPrior10YearEstimate!$BS$108","v":87},{"$f":"C88/SUM($C$88:$C$92)","v":8.3380601247872943E-2},null,{"$f":"CntyDataLinkPrior5YearEstimates!$BR$108","v":16},{"$f":"CntyDataLinkPrior5YearEstimates!$BS$108","v":15},{"$f":"G88/SUM($G$88:$G$92)","v":9.0446579988694171E-3},null,{"$f":"CntyDataLink!$BT$108","v":93},{"$f":"CntyDataLink!$BU$108","v":92},{"$f":"K88/SUM($K$88:$K$92)","v":4.9441786283891544E-2},null,{"$f":"StatisticallySignificantCalcs!$A78","v":"N"},{"$f":"StatisticallySignificantCalcs!$J78","v":"N"}]
[null,"1 Bedroom",{"$f":"CntyDataLinkPrior10YearEstimate!$BT$108","v":268},{"$f":"CntyDataLinkPrior10YearEstimate!$BU$108","v":105},{"$f":"C89/SUM($C$88:$C$92)","v":0.15201361315938741},null,{"$f":"CntyDataLinkPrior5YearEstimates!$BT$108","v":279},{"$f":"CntyDataLinkPrior5YearEstimates!$BU$108","v":103},{"$f":"G89/SUM($G$88:$G$92)","v":0.15771622385528547},null,{"$f":"CntyDataLink!$BV$108","v":197},{"$f":"CntyDataLink!$BW$108","v":108},{"$f":"K89/SUM($K$88:$K$92)","v":0.10473152578415737},null,{"$f":"StatisticallySignificantCalcs!$A79","v":"N"},{"$f":"StatisticallySignificantCalcs!$J79","v":"N"}]
[null,"2 Bedrooms",{"$f":"CntyDataLinkPrior10YearEstimate!$BV$108","v":506},{"$f":"CntyDataLinkPrior10YearEstimate!$BW$108","v":139},{"$f":"C90/SUM($C$88:$C$92)","v":0.28701077708451506},null,{"$f":"CntyDataLinkPrior5YearEstimates!$BV$108","v":571},{"$f":"CntyDataLinkPrior5YearEstimates!$BW$108","v":127},{"$f":"G90/SUM($G$88:$G$92)","v":0.32278123233465233},null,{"$f":"CntyDataLink!$BX$108","v":618},{"$f":"CntyDataLink!$BY$108","v":147},{"$f":"K90/SUM($K$88:$K$92)","v":0.32854864433811803},null,{"$f":"StatisticallySignificantCalcs!$A80","v":"Y"},{"$f":"StatisticallySignificantCalcs!$J80","v":"N"}]
[null,"3 Bedrooms",{"$f":"CntyDataLinkPrior10YearEstimate!$BX$108","v":659},{"$f":"CntyDataLinkPrior10YearEstimate!$BY$108","v":141},{"$f":"C91/SUM($C$88:$C$92)","v":0.37379466817923995},null,{"$f":"CntyDataLinkPrior5YearEstimates!$BX$108","v":669},{"$f":"CntyDataLinkPrior5YearEstimates!$BY$108","v":120},{"$f":"G91/SUM($G$88:$G$92)","v":0.37817976257772751},null,{"$f":"CntyDataLink!$BZ$108","v":834},{"$f":"CntyDataLink!$CA$108","v":149},{"$f":"K91/SUM($K$88:$K$92)","v":0.44338118022328549},null,{"$f":"StatisticallySignificantCalcs!$A81","v":"Y"},{"$f":"StatisticallySignificantCalcs!$J81","v":"N"}]
[null,"4+ Bedrooms",{"$f":"CntyDataLinkPrior10YearEstimate!$BZ$108","v":183},{"$f":"CntyDataLinkPrior10YearEstimate!$CA$108","v":92.477024173575131},{"$f":"C92/SUM($C$88:$C$92)","v":0.10380034032898469},null,{"$f":"CntyDataLinkPrior5YearEstimates!$BZ$108","v":234},{"$f":"CntyDataLinkPrior5YearEstimates!$CA$108","v":80.777472107017559},{"$f":"G92/SUM($G$88:$G$92)","v":0.13227812323346524},null,{"$f":"CntyDataLink!$CB$108","v":139},{"$f":"CntyDataLink!$CC$108","v":72.17340230306452},{"$f":"K92/SUM($K$88:$K$92)","v":7.3896863370547586E-2},null,{"$f":"StatisticallySignificantCalcs!$A82","v":"N"},{"$f":"StatisticallySignificantCalcs!$J82","v":"N"}]
[]
[]
[null,"Data from the American Community Survey are estimates"]
[]
[null,"Units by Year Built   "]
[null,{"$f":"\"Source: \"&K86& \" American Community Survey Table B25034\"","v":"Source: 2018-2022 American Community Survey Table B25034"}]
[]
[null,null,null,"Year Built",null,null,"Units  ",null,"% of Total",null,"Margin of Error"]
[null,null,null,null,null,"2020 or later",{"$f":"CntyDataLink!$AZ$108","v":0},null,{"$f":"G101/SUM($G$101:$G$110)","v":0},null,{"$f":"CntyDataLink!$BA$108","v":12}]
[null,null,null,null,null,"2010 through 2019",{"$f":"CntyDataLink!$BB$108","v":148},null,7.8681552365762894E-2,null,{"$f":"CntyDataLink!$BC$108","v":76}]
[null,null,null,null,null,"2000 through 2009",{"$f":"CntyDataLink!$BD$108","v":251},null,0.13343965975544922,null,{"$f":"CntyDataLink!$BE$108","v":105}]
[null,null,null,null,null,"1990 through 1999",{"$f":"CntyDataLink!$BF$108","v":181},null,9.62254120148857E-2,null,{"$f":"CntyDataLink!$BG$108","v":94}]
[null,null,null,null,null,"1980 through 1989",{"$f":"CntyDataLink!$BH$108","v":276},null,0.14673046251993621,null,{"$f":"CntyDataLink!$BI$108","v":139}]
[null,null,null,null,null,"1970 through 1979",{"$f":"CntyDataLink!$BJ$108","v":351},null,0.18660287081339713,null,{"$f":"CntyDataLink!$BK$108","v":117}]
[null,null,null,null,null,"1960 through 1969",{"$f":"CntyDataLink!$BL$108","v":136},null,7.2301967038809145E-2,null,{"$f":"CntyDataLink!$BM$108","v":64}]
[null,null,null,null,null,"1950 through 1959",{"$f":"CntyDataLink!$BN$108","v":94},null,4.9973418394471024E-2,null,{"$f":"CntyDataLink!$BO$108","v":54}]
[null,null,null,null,null,"1940 through 1949",{"$f":"CntyDataLink!$BP$108","v":76},null,4.0404040404040407E-2,null,{"$f":"CntyDataLink!$BQ$108","v":66}]
[null,null,null,null,null,"1939 and earlier",{"$f":"CntyDataLink!$BR$108","v":368},null,0.19564061669324828,null,{"$f":"CntyDataLink!$BS$108","v":155}]
[]
[null,"Data from the American Community Survey are estimates"]

{"sheet":"CntyDataLink","index":7,"n_rows":167,"n_cols":301,"rows_kept":167,"cut":false,"hidden":true,"merged":[]}
[1,{"$f":"A1+1","v":2},{"$f":"B1+1","v":3},4,5,6,7,8,9,10,11,12,13,14,15,{"$f":"O1+1","v":16},17,18,19,20,21,22,23,24,25,26,27,28,29,30,31,32,33,34,35,36,37,38,39,40,41,42,43,44,45,46,47,48,49,50,51,52,53,54,55,56,57,58,59,60,61,62,63,64,65,66,{"$f":"BN1+1","v":67},68,69,70,71,72,73,74,75,76,77,78,79,80,81,82,83,84,85,86,87,88,89,90,91,92,93,94,95,96,97,98,99,100,101,102,103,104,105,106,107,108,109,110,111,112,113,114,115,116,117,118,119,120,121,122,123,124,125,126,127,128,129,130,{"$f":"DZ1+1","v":131},132,133,134,135,136,137,138,139,140,141,142,143,144,145,146,147,148,149,150,151,152,153,154,155,156,157,158,159,160,161,162,163,164,165,166,167,168,169,170,171,172,173,174,175,176,177,178,179,180,181,182,183,184,185,186,187,188,189,190,191,192,193,194,{"$f":"GL1+1","v":195},196,197,198,199,200,201,202,203,204,205,206,207,208,209,210,211,212,213,214,215,216,217,218,219,220,221,222,223,224,225,226,227,228,229,230,231,232,233,234,235,236,237,238,239,240,241,242,243,244,245,246,247,248,249,250,251,252,253,254,255]
[]
["Census 1990 Data -           Query Name:  DPCnty90Census"]
["TownName","Cnty_Code","Census_Cnty_Code","LandAcres","WaterAcres","HousingUnits90Cen","Persons90Cen","Families90Cen","Households90cen","MalePop90cen","FemalePop90cen","WhitePop","BlackPop","AmerIndianPop","AsianPIPop","OtherRacePop","HispanicOrPop","AgeUnder15_90cen","Age15to24_90cen","Age25to34_90cen","Age35to44_90cen","Age45to54_90cen","Age55to64_90cen","Age65to74_90cen","Age75andOver_90cen","PersonsInHH90cen","PersonsInFamHH90cen","PersonsInGC","PersonsPerHH90cen","PersonsPerFam90Cen","SinglePersonHH90cen","MarriedCoupleHH90cen","SingleParentHH90cen","NonFamilyHH90cen","TotalHousingUnits","OccupiedHousingUnits","VacantHousingUnits","OwnerOccHU","RenterOccHU","VacantForRent90","VacantForSale90","VacantSeasonalRec","SingFamHU90cen","MultiFamHU90cen","MobileHom90cen","SingFamOwnHU90cen","MultiFamOwnHU90cen","MobileHomOwnHU90cen","SingFamRntrHU90cen","MultiFamRntrHU90cen","MobileHomRntrHU90cen","HU<5yrs90cen","HU5to20yrs90cen","HU20to50yrs90cen","HU>50yrs90cen","Units0Bedroom90cen","Units1Bedroom90cen","Units2Bedroom90cen","Units3Bedroom90cen","Units4+Bedroom90cen","HI<5K","HI5Kto10K","HI10Kto15K","HI15Kto25K","HI25Kto35K","HI35Kto50K","HI50Kto75K","HI75Kto100K","HI>100K","MedHI","HH<25HI<5K","HH<25HI5Kto10K","HH<25HI10Kto15K","HH<25HI15Kto25K","HH<25HI25Kto35K","HH<25HI35Kto50K","HH<25HI50Kto75K","HH<25HI75Kto100K","HH<25HI>100K","HH25to34HI<5K","HH25to34HI5Kto10K","HH25to34HI10Kto15K","HH25to34HI15Kto25K","HH25to34HI25Kto35K","HH25to34HI35Kto50K","HH25to34HI50Kto75K","HH25to34HI75Kto100K","HH25to34HI>100K","HH35to44HI<5K","HH35to44HI5Kto10K","HH35to44HI10Kto15K","HH35to44HI15Kto25K","HH35to44HI25Kto35K","HH35to44HI35Kto50K","HH35to44HI50Kto75K","HH35to44HI75Kto100K","HH35to44HI>100K","HH45to54HI<5K","HH45to54HI5Kto10K","HH45to54HI10Kto15K","HH45to54HI15Kto25K","HH45to54HI25Kto35K","HH45to54HI35Kto50K","HH45to54HI50Kto75K","HH45to54HI75Kto100K","HH45to54HI>100K","HH55to64HI<5K","HH55to64HI5Kto10K","HH55to64HI10Kto15K","HH55to64HI15Kto25K","HH55to64HI25Kto35K","HH55to64HI35Kto50K","HH55to64HI50Kto75K","HH55to64HI75Kto100K","HH55to64HI>100K","HH65to74HI<5K","HH65to74HI5Kto10K","HH65to74HI10Kto15K","HH65to74HI15Kto25K","HH65to74HI25Kto35K","HH65to74HI35Kto50K","HH65to74HI50Kto75K","HH65to74HI75Kto100K","HH65to74HI>100K","HH>75HI<5K","HH>75HI5Kto10K","HH>75HI10Kto15K","HH>75HI15Kto25K","HH>75HI25Kto35K","HH>75HI35Kto50K","HH>75HI50Kto75K","HH>75HI75Kto100K","HH>75HI>100K","SchoolEnrollment1thru12","Pop25andOver","HSGradorHigher","CollGradorHigher","NativePop","ForeignBornPop","BornStateOfRes","NativePop2","ForeignBornPop2","DroveAlone","CarPooled","PublicTranspt","Walked","OtherMeans","WorkedAtHome","HHInc<10K","HHInc10to15K","HHInc15to25K","HHInc25to35K","HHInc35to50K","HHInc50to75K","HHInc75to100K","HHInc100to150K","HHInc>150K"]
[{"$f":"VLOOKUP(DropDownList!$A$47,CntyQuery!$A$4:$FI$46,A1)","v":"Allenstown"},{"$f":"VLOOKUP(DropDownList!$A$47,CntyQuery!$A$4:$FA$46,B1)","v":13005},{"$f":"VLOOKUP(DropDownList!$A$47,CntyQuery!$A$4:$FA$46,C1)","v":"00660"},{"$f":"VLOOKUP(DropDownList!$A$47,CntyQuery!$A$4:$FA$46,D1)","v":13097.95},{"$f":"VLOOKUP(DropDownList!$A$47,CntyQuery!$A$4:$FA$46,E1)","v":69.48},{"$f":"VLOOKUP(DropDownList!$A$47,CntyQuery!$A$4:$FA$46,F1)","v":1868},{"$f":"VLOOKUP(DropDownList!$A$47,CntyQuery!$A$4:$FA$46,G1)","v":4649},{"$f":"VLOOKUP(DropDownList!$A$47,CntyQuery!$A$4:$FA$46,H1)","v":1253},{"$f":"VLOOKUP(DropDownList!$A$47,CntyQuery!$A$4:$FA$46,I1)","v":1762},{"$f":"VLOOKUP(DropDownList!$A$47,CntyQuery!$A$4:$FA$46,J1)","v":2301},{"$f":"VLOOKUP(DropDownList!$A$47,CntyQuery!$A$4:$FA$46,K1)","v":2348},{"$f":"VLOOKUP(DropDownList!$A$47,CntyQuery!$A$4:$FA$46,L1)","v":4587},{"$f":"VLOOKUP(DropDownList!$A$47,CntyQuery!$A$4:$FA$46,M1)","v":24},{"$f":"VLOOKUP(DropDownList!$A$47,CntyQuery!$A$4:$FA$46,N1)","v":9},{"$f":"VLOOKUP(DropDownList!$A$47,CntyQuery!$A$4:$FA$46,O1)","v":24},{"$f":"VLOOKUP(DropDownList!$A$47,CntyQuery!$A$4:$FA$46,P1)","v":5},{"$f":"VLOOKUP(DropDownList!$A$47,CntyQuery!$A$4:$FA$46,Q1)","v":25},{"$f":"VLOOKUP(DropDownList!$A$47,CntyQuery!$A$4:$FA$46,R1)","v":1104},{"$f":"VLOOKUP(DropDownList!$A$47,CntyQuery!$A$4:$FA$46,S1)","v":557},{"$f":"VLOOKUP(DropDownList!$A$47,CntyQuery!$A$4:$FA$46,T1)","v":1093},{"$f":"VLOOKUP(DropDownList!$A$47,CntyQuery!$A$4:$FA$46,U1)","v":692},{"$f":"VLOOKUP(DropDownList!$A$47,CntyQuery!$A$4:$FA$46,V1)","v":426},{"$f":"VLOOKUP(DropDownList!$A$47,CntyQuery!$A$4:$FA$46,W1)","v":360},{"$f":"VLOOKUP(DropDownList!$A$47,CntyQuery!$A$4:$FA$46,X1)","v":238},{"$f":"VLOOKUP(DropDownList!$A$47,CntyQuery!$A$4:$FA$46,Y1)","v":179},{"$f":"VLOOKUP(DropDownList!$A$47,CntyQuery!$A$4:$FA$46,Z1)","v":4649},{"$f":"VLOOKUP(DropDownList!$A$47,CntyQuery!$A$4:$FA$46,AA1)","v":3987},{"$f":"VLOOKUP(DropDownList!$A$47,CntyQuery!$A$4:$FA$46,AB1)","v":0},{"$f":"VLOOKUP(DropDownList!$A$47,CntyQuery!$A$4:$FA$46,AC1)","v":2.6384790011350736},{"$f":"VLOOKUP(DropDownList!$A$47,CntyQuery!$A$4:$FA$46,AD1)","v":3.1819632881085393},{"$f":"VLOOKUP(DropDownList!$A$47,CntyQuery!$A$4:$FA$46,AE1)","v":399},{"$f":"VLOOKUP(DropDownList!$A$47,CntyQuery!$A$4:$FA$46,AF1)","v":1035},{"$f":"VLOOKUP(DropDownList!$A$47,CntyQuery!$A$4:$FA$46,AG1)","v":218},{"$f":"VLOOKUP(DropDownList!$A$47,CntyQuery!$A$4:$FA$46,AH1)","v":110},{"$f":"VLOOKUP(DropDownList!$A$47,CntyQuery!$A$4:$FA$46,AI1)","v":1868},{"$f":"VLOOKUP(DropDownList!$A$47,CntyQuery!$A$4:$FA$46,AJ1)","v":1762},{"$f":"VLOOKUP(DropDownList!$A$47,CntyQuery!$A$4:$FA$46,AK1)","v":106},{"$f":"VLOOKUP(DropDownList!$A$47,CntyQuery!$A$4:$FA$46,AL1)","v":1305},{"$f":"VLOOKUP(DropDownList!$A$47,CntyQuery!$A$4:$FA$46,AM1)","v":457},{"$f":"VLOOKUP(DropDownList!$A$47,CntyQuery!$A$4:$FA$46,AN1)","v":33},{"$f":"VLOOKUP(DropDownList!$A$47,CntyQuery!$A$4:$FA$46,AO1)","v":46},{"$f":"VLOOKUP(DropDownList!$A$47,CntyQuery!$A$4:$FA$46,AP1)","v":8},{"$f":"VLOOKUP(DropDownList!$A$47,CntyQuery!$A$4:$FA$46,AQ1)","v":701},{"$f":"VLOOKUP(DropDownList!$A$47,CntyQuery!$A$4:$FA$46,AR1)","v":542},{"$f":"VLOOKUP(DropDownList!$A$47,CntyQuery!$A$4:$FA$46,AS1)","v":625},{"$f":"VLOOKUP(DropDownList!$A$47,CntyQuery!$A$4:$FA$46,AT1)","v":645},{"$f":"VLOOKUP(DropDownList!$A$47,CntyQuery!$A$4:$FA$46,AU1)","v":113},{"$f":"VLOOKUP(DropDownList!$A$47,CntyQuery!$A$4:$FA$46,AV1)","v":625},{"$f":"VLOOKUP(DropDownList!$A$47,CntyQuery!$A$4:$FA$46,AW1)","v":38},{"$f":"VLOOKUP(DropDownList!$A$47,CntyQuery!$A$4:$FA$46,AX1)","v":392},{"$f":"VLOOKUP(DropDownList!$A$47,CntyQuery!$A$4:$FA$46,AY1)","v":27},{"$f":"VLOOKUP(DropDownList!$A$47,CntyQuery!$A$4:$FA$46,AZ1)","v":339},{"$f":"VLOOKUP(DropDownList!$A$47,CntyQuery!$A$4:$FA$46,BA1)","v":843},{"$f":"VLOOKUP(DropDownList!$A$47,CntyQuery!$A$4:$FA$46,BB1)","v":426},{"$f":"VLOOKUP(DropDownList!$A$47,CntyQuery!$A$4:$FA$46,BC1)","v":296},{"$f":"VLOOKUP(DropDownList!$A$47,CntyQuery!$A$4:$FA$46,BD1)","v":62},{"$f":"VLOOKUP(DropDownList!$A$47,CntyQuery!$A$4:$FA$46,BE1)","v":274},{"$f":"VLOOKUP(DropDownList!$A$47,CntyQuery!$A$4:$FA$46,BF1)","v":707},{"$f":"VLOOKUP(DropDownList!$A$47,CntyQuery!$A$4:$FA$46,BG1)","v":638},{"$f":"VLOOKUP(DropDownList!$A$47,CntyQuery!$A$4:$FA$46,BH1)","v":223},{"$f":"VLOOKUP(DropDownList!$A$47,CntyQuery!$A$4:$FA$46,BI1)","v":87},{"$f":"VLOOKUP(DropDownList!$A$47,CntyQuery!$A$4:$FA$46,BJ1)","v":118},{"$f":"VLOOKUP(DropDownList!$A$47,CntyQuery!$A$4:$FA$46,BK1)","v":115},{"$f":"VLOOKUP(DropDownList!$A$47,CntyQuery!$A$4:$FA$46,BL1)","v":304},{"$f":"VLOOKUP(DropDownList!$A$47,CntyQuery!$A$4:$FA$46,BM1)","v":326},{"$f":"VLOOKUP(DropDownList!$A$47,CntyQuery!$A$4:$FA$46,BN1)","v":489},{"$f":"VLOOKUP(DropDownList!$A$47,CntyQuery!$A$4:$FA$46,BO1)","v":271},{"$f":"VLOOKUP(DropDownList!$A$47,CntyQuery!$A$4:$FA$46,BP1)","v":21},{"$f":"VLOOKUP(DropDownList!$A$47,CntyQuery!$A$4:$FA$46,BQ1)","v":49},{"$f":"VLOOKUP(DropDownList!$A$47,CntyQuery!$A$4:$FA$46,BR1)","v":33469},{"$f":"VLOOKUP(DropDownList!$A$47,CntyQuery!$A$4:$FA$46,BS1)","v":18},{"$f":"VLOOKUP(DropDownList!$A$47,CntyQuery!$A$4:$FA$46,BT1)","v":0},{"$f":"VLOOKUP(DropDownList!$A$47,CntyQuery!$A$4:$FA$46,BU1)","v":0},{"$f":"VLOOKUP(DropDownList!$A$47,CntyQuery!$A$4:$FA$46,BV1)","v":17},{"$f":"VLOOKUP(DropDownList!$A$47,CntyQuery!$A$4:$FA$46,BW1)","v":18},{"$f":"VLOOKUP(DropDownList!$A$47,CntyQuery!$A$4:$FA$46,BX1)","v":29},{"$f":"VLOOKUP(DropDownList!$A$47,CntyQuery!$A$4:$FA$46,BY1)","v":8},{"$f":"VLOOKUP(DropDownList!$A$47,CntyQuery!$A$4:$FA$46,BZ1)","v":0},{"$f":"VLOOKUP(DropDownList!$A$47,CntyQuery!$A$4:$FA$46,CA1)","v":0},{"$f":"VLOOKUP(DropDownList!$A$47,CntyQuery!$A$4:$FA$46,CB1)","v":4},{"$f":"VLOOKUP(DropDownList!$A$47,CntyQuery!$A$4:$FA$46,CC1)","v":12},{"$f":"VLOOKUP(DropDownList!$A$47,CntyQuery!$A$4:$FA$46,CD1)","v":14},{"$f":"VLOOKUP(DropDownList!$A$47,CntyQuery!$A$4:$FA$46,CE1)","v":76},{"$f":"VLOOKUP(DropDownList!$A$47,CntyQuery!$A$4:$FA$46,CF1)","v":117},{"$f":"VLOOKUP(DropDownList!$A$47,CntyQuery!$A$4:$FA$46,CG1)","v":189},{"$f":"VLOOKUP(DropDownList!$A$47,CntyQuery!$A$4:$FA$46,CH1)","v":71},{"$f":"VLOOKUP(DropDownList!$A$47,CntyQuery!$A$4:$FA$46,CI1)","v":7},{"$f":"VLOOKUP(DropDownList!$A$47,CntyQuery!$A$4:$FA$46,CJ1)","v":13},{"$f":"VLOOKUP(DropDownList!$A$47,CntyQuery!$A$4:$FA$46,CK1)","v":13},{"$f":"VLOOKUP(DropDownList!$A$47,CntyQuery!$A$4:$FA$46,CL1)","v":9},{"$f":"VLOOKUP(DropDownList!$A$47,CntyQuery!$A$4:$FA$46,CM1)","v":14},{"$f":"VLOOKUP(DropDownList!$A$47,CntyQuery!$A$4:$FA$46,CN1)","v":69},{"$f":"VLOOKUP(DropDownList!$A$47,CntyQuery!$A$4:$FA$46,CO1)","v":82},{"$f":"VLOOKUP(DropDownList!$A$47,CntyQuery!$A$4:$FA$46,CP1)","v":148},{"$f":"VLOOKUP(DropDownList!$A$47,CntyQuery!$A$4:$FA$46,CQ1)","v":96},{"$f":"VLOOKUP(DropDownList!$A$47,CntyQuery!$A$4:$FA$46,CR1)","v":0},{"$f":"VLOOKUP(DropDownList!$A$47,CntyQuery!$A$4:$FA$46,CS1)","v":9},{"$f":"VLOOKUP(DropDownList!$A$47,CntyQuery!$A$4:$FA$46,CT1)","v":14},{"$f":"VLOOKUP(DropDownList!$A$47,CntyQuery!$A$4:$FA$46,CU1)","v":12},{"$f":"VLOOKUP(DropDownList!$A$47,CntyQuery!$A$4:$FA$46,CV1)","v":6},{"$f":"VLOOKUP(DropDownList!$A$47,CntyQuery!$A$4:$FA$46,CW1)","v":33},{"$f":"VLOOKUP(DropDownList!$A$47,CntyQuery!$A$4:$FA$46,CX1)","v":22},{"$f":"VLOOKUP(DropDownList!$A$47,CntyQuery!$A$4:$FA$46,CY1)","v":53},{"$f":"VLOOKUP(DropDownList!$A$47,CntyQuery!$A$4:$FA$46,CZ1)","v":76},{"$f":"VLOOKUP(DropDownList!$A$47,CntyQuery!$A$4:$FA$46,DA1)","v":12},{"$f":"VLOOKUP(DropDownList!$A$47,CntyQuery!$A$4:$FA$46,DB1)","v":27},{"$f":"VLOOKUP(DropDownList!$A$47,CntyQuery!$A$4:$FA$46,DC1)","v":24},{"$f":"VLOOKUP(DropDownList!$A$47,CntyQuery!$A$4:$FA$46,DD1)","v":0},{"$f":"VLOOKUP(DropDownList!$A$47,CntyQuery!$A$4:$FA$46,DE1)","v":26},{"$f":"VLOOKUP(DropDownList!$A$47,CntyQuery!$A$4:$FA$46,DF1)","v":48},{"$f":"VLOOKUP(DropDownList!$A$47,CntyQuery!$A$4:$FA$46,DG1)","v":33},{"$f":"VLOOKUP(DropDownList!$A$47,CntyQuery!$A$4:$FA$46,DH1)","v":59},{"$f":"VLOOKUP(DropDownList!$A$47,CntyQuery!$A$4:$FA$46,DI1)","v":20},{"$f":"VLOOKUP(DropDownList!$A$47,CntyQuery!$A$4:$FA$46,DJ1)","v":2},{"$f":"VLOOKUP(DropDownList!$A$47,CntyQuery!$A$4:$FA$46,DK1)","v":0},{"$f":"VLOOKUP(DropDownList!$A$47,CntyQuery!$A$4:$FA$46,DL1)","v":7},{"$f":"VLOOKUP(DropDownList!$A$47,CntyQuery!$A$4:$FA$46,DM1)","v":44},{"$f":"VLOOKUP(DropDownList!$A$47,CntyQuery!$A$4:$FA$46,DN1)","v":37},{"$f":"VLOOKUP(DropDownList!$A$47,CntyQuery!$A$4:$FA$46,DO1)","v":35},{"$f":"VLOOKUP(DropDownList!$A$47,CntyQuery!$A$4:$FA$46,DP1)","v":42},{"$f":"VLOOKUP(DropDownList!$A$47,CntyQuery!$A$4:$FA$46,DQ1)","v":6},{"$f":"VLOOKUP(DropDownList!$A$47,CntyQuery!$A$4:$FA$46,DR1)","v":0},{"$f":"VLOOKUP(DropDownList!$A$47,CntyQuery!$A$4:$FA$46,DS1)","v":0},{"$f":"VLOOKUP(DropDownList!$A$47,CntyQuery!$A$4:$FA$46,DT1)","v":0},{"$f":"VLOOKUP(DropDownList!$A$47,CntyQuery!$A$4:$FA$46,DU1)","v":7},{"$f":"VLOOKUP(DropDownList!$A$47,CntyQuery!$A$4:$FA$46,DV1)","v":41},{"$f":"VLOOKUP(DropDownList!$A$47,CntyQuery!$A$4:$FA$46,DW1)","v":18},{"$f":"VLOOKUP(DropDownList!$A$47,CntyQuery!$A$4:$FA$46,DX1)","v":26},{"$f":"VLOOKUP(DropDownList!$A$47,CntyQuery!$A$4:$FA$46,DY1)","v":12},{"$f":"VLOOKUP(DropDownList!$A$47,CntyQuery!$A$4:$FA$46,DZ1)","v":5},{"$f":"VLOOKUP(DropDownList!$A$47,CntyQuery!$A$4:$FA$46,EA1)","v":0},{"$f":"VLOOKUP(DropDownList!$A$47,CntyQuery!$A$4:$FA$46,EB1)","v":0},{"$f":"VLOOKUP(DropDownList!$A$47,CntyQuery!$A$4:$FA$46,EC1)","v":0},{"$f":"VLOOKUP(DropDownList!$A$47,CntyQuery!$A$4:$FA$46,ED1)","v":774},{"$f":"VLOOKUP(DropDownList!$A$47,CntyQuery!$A$4:$FA$46,EE1)","v":2967},{"$f":"VLOOKUP(DropDownList!$A$47,CntyQuery!$A$4:$FA$46,EF1)","v":2088},{"$f":"VLOOKUP(DropDownList!$A$47,CntyQuery!$A$4:$FA$46,EG1)","v":243},{"$f":"VLOOKUP(DropDownList!$A$47,CntyQuery!$A$4:$FA$46,EH1)","v":4618},{"$f":"VLOOKUP(DropDownList!$A$47,CntyQuery!$A$4:$FA$46,EI1)","v":94},{"$f":"VLOOKUP(DropDownList!$A$47,CntyQuery!$A$4:$FA$46,EJ1)","v":2913},{"$f":"VLOOKUP(DropDownList!$A$47,CntyQuery!$A$4:$FA$46,EK1)","v":4618},{"$f":"VLOOKUP(DropDownList!$A$47,CntyQuery!$A$4:$FA$46,EL1)","v":94},{"$f":"VLOOKUP(DropDownList!$A$47,CntyQuery!$A$4:$FA$46,EM1)","v":1908},{"$f":"VLOOKUP(DropDownList!$A$47,CntyQuery!$A$4:$FA$46,EN1)","v":399},{"$f":"VLOOKUP(DropDownList!$A$47,CntyQuery!$A$4:$FA$46,EO1)","v":6},{"$f":"VLOOKUP(DropDownList!$A$47,CntyQuery!$A$4:$FA$46,EP1)","v":15},{"$f":"VLOOKUP(DropDownList!$A$47,CntyQuery!$A$4:$FA$46,EQ1)","v":20},{"$f":"VLOOKUP(DropDownList!$A$47,CntyQuery!$A$4:$FA$46,ER1)","v":31},{"$f":"VLOOKUP(DropDownList!$A$47,CntyQuery!$A$4:$FA$46,ES1)","v":205},{"$f":"VLOOKUP(DropDownList!$A$47,CntyQuery!$A$4:$FA$46,ET1)","v":115},{"$f":"VLOOKUP(DropDownList!$A$47,CntyQuery!$A$4:$FA$46,EU1)","v":304},{"$f":"VLOOKUP(DropDownList!$A$47,CntyQuery!$A$4:$FA$46,EV1)","v":326},{"$f":"VLOOKUP(DropDownList!$A$47,CntyQuery!$A$4:$FA$46,EW1)","v":489},{"$f":"VLOOKUP(DropDownList!$A$47,CntyQuery!$A$4:$FA$46,EX1)","v":271},{"$f":"VLOOKUP(DropDownList!$A$47,CntyQuery!$A$4:$FA$46,EY1)","v":21},{"$f":"VLOOKUP(DropDownList!$A$47,CntyQuery!$A$4:$FA$46,EZ1)","v":33},{"$f":"VLOOKUP(DropDownList!$A$47,CntyQuery!$A$4:$FA$46,FA1)","v":16}]
[]
[]
["Census 1990 Data -    Query Name:  TownSTF1Qry1"]
["NAME","COUSUBFP","Census_Cnty_Code","FIPS","LandAcres","WaterAcres","HousingUnits90Cen","P01Persons90Cen","P02Families90Cen","P03Households90cen","P05MalePop90cen","P05FemalePop90cen","P06WhitePop","P06BlackPop","P06AmerIndianPop","P06AsianPIPop","P06OtherRacePop","P08HispanicOrPop","P11AgeUnder15_90cen","P11Age15to24_90cen","P11Age25to34_90cen","P11Age35to44_90cen","P11Age45to54_90cen","P11Age55to64_90cen","P11Age65to74_90cen","P11Age75andOver_90cen","P15PersonsInHH90cen","P15PersonsInFamHH90cen","P15PersonsInGC","PersonsPerHH90cen","PersonsPerFam90Cen","P16SinglePersonHH90cen","P16MarriedCoupleHH90cen","P16SingleParentHH90cen","P16NonFamilyHH90cen","H01TotalHousingUnits","H02OccupiedHousingUnits","H02VacantHousingUnits","H03OwnerOccHU","H03RenterOccHU","H05VacantForRent90","H05VacantForSale90","H05VacantSeasonalRec","H23OOHUVal<15k","H23OOHUVal15to19k","H23OOHUVal20to24k","H23OOHUVal25to29k","H23OOHUVal30to34k","H23OOHUVal35to39k","H23OOHUVal40to44k","H23OOHUVal45to49k","H23OOHUVal50to59k","H23OOHUVal60to74k","H23OOHUVal75to99k","H23OOHUVal100to124k","H23OOHUVal125to149k","H23OOHUVal150to174k","H23OOHUVal175to199k","H23OOHUVal200to249k","H23OOHUVal250to299k","H23OOHUVal300to399k","H23OOHUVal400to499k","H23OOHUVal500kOrMore","H23BOOHUMedVal","H41SingFamHU90cen","H41MultiFamHU90cen","H41MobileHom90cen","H43SingFamOwnHU90cen","H43MultiFamOwnHU90cen","H43MobileHomOwnHU90cen","H43SingFamRntrHU90cen","H43MultiFamRntrHU90cen","H43MobileHomRntrHU90cen","H41HU1UnitDet","H41HU1UnitAtt","H41HU2Unit","H41HU3to4Unit","H41HU5to9Unit","H41HU10to19Unit","H41HU20to49Unit","H41HU50PlusUnit","H41HUMobilH","H41HUOther"]
[{"$f":"VLOOKUP(DropDownList!$B$47,CntyQuery!$A$51:$CE$93,A$1)","v":"Allenstown"},{"$f":"VLOOKUP(DropDownList!$B$47,CntyQuery!$A$51:$CE$93,B$1)","v":701},{"$f":"VLOOKUP(DropDownList!$B$47,CntyQuery!$A$51:$CE$93,C$1)","v":13005},{"$f":"VLOOKUP(DropDownList!$B$47,CntyQuery!$A$51:$CE$93,D$1)","v":"00660"},{"$f":"VLOOKUP(DropDownList!$B$47,CntyQuery!$A$51:$CE$93,E$1)","v":13097.95},{"$f":"VLOOKUP(DropDownList!$B$47,CntyQuery!$A$51:$CE$93,F$1)","v":69.48},{"$f":"VLOOKUP(DropDownList!$B$47,CntyQuery!$A$51:$CE$93,G$1)","v":1868},{"$f":"VLOOKUP(DropDownList!$B$47,CntyQuery!$A$51:$CE$93,H$1)","v":4649},{"$f":"VLOOKUP(DropDownList!$B$47,CntyQuery!$A$51:$CE$93,I$1)","v":1253},{"$f":"VLOOKUP(DropDownList!$B$47,CntyQuery!$A$51:$CE$93,J$1)","v":1762},{"$f":"VLOOKUP(DropDownList!$B$47,CntyQuery!$A$51:$CE$93,K$1)","v":2301},{"$f":"VLOOKUP(DropDownList!$B$47,CntyQuery!$A$51:$CE$93,L$1)","v":2348},{"$f":"VLOOKUP(DropDownList!$B$47,CntyQuery!$A$51:$CE$93,M$1)","v":4587},{"$f":"VLOOKUP(DropDownList!$B$47,CntyQuery!$A$51:$CE$93,N$1)","v":24},{"$f":"VLOOKUP(DropDownList!$B$47,CntyQuery!$A$51:$CE$93,O$1)","v":9},{"$f":"VLOOKUP(DropDownList!$B$47,CntyQuery!$A$51:$CE$93,P$1)","v":24},{"$f":"VLOOKUP(DropDownList!$B$47,CntyQuery!$A$51:$CE$93,Q$1)","v":5},{"$f":"VLOOKUP(DropDownList!$B$47,CntyQuery!$A$51:$CE$93,R$1)","v":25},{"$f":"VLOOKUP(DropDownList!$B$47,CntyQuery!$A$51:$CE$93,S$1)","v":1104},{"$f":"VLOOKUP(DropDownList!$B$47,CntyQuery!$A$51:$CE$93,T$1)","v":557},{"$f":"VLOOKUP(DropDownList!$B$47,CntyQuery!$A$51:$CE$93,U$1)","v":1093},{"$f":"VLOOKUP(DropDownList!$B$47,CntyQuery!$A$51:$CE$93,V$1)","v":692},{"$f":"VLOOKUP(DropDownList!$B$47,CntyQuery!$A$51:$CE$93,W$1)","v":426},{"$f":"VLOOKUP(DropDownList!$B$47,CntyQuery!$A$51:$CE$93,X$1)","v":360},{"$f":"VLOOKUP(DropDownList!$B$47,CntyQuery!$A$51:$CE$93,Y$1)","v":238},{"$f":"VLOOKUP(DropDownList!$B$47,CntyQuery!$A$51:$CE$93,Z$1)","v":179},{"$f":"VLOOKUP(DropDownList!$B$47,CntyQuery!$A$51:$CE$93,AA$1)","v":4649},{"$f":"VLOOKUP(DropDownList!$B$47,CntyQuery!$A$51:$CE$93,AB$1)","v":3987},{"$f":"VLOOKUP(DropDownList!$B$47,CntyQuery!$A$51:$CE$93,AC$1)","v":0},{"$f":"VLOOKUP(DropDownList!$B$47,CntyQuery!$A$51:$CE$93,AD$1)","v":2.6384790011350736},{"$f":"VLOOKUP(DropDownList!$B$47,CntyQuery!$A$51:$CE$93,AE$1)","v":3.1819632881085393},{"$f":"VLOOKUP(DropDownList!$B$47,CntyQuery!$A$51:$CE$93,AF$1)","v":399},{"$f":"VLOOKUP(DropDownList!$B$47,CntyQuery!$A$51:$CE$93,AG$1)","v":1035},{"$f":"VLOOKUP(DropDownList!$B$47,CntyQuery!$A$51:$CE$93,AH$1)","v":218},{"$f":"VLOOKUP(DropDownList!$B$47,CntyQuery!$A$51:$CE$93,AI$1)","v":110},{"$f":"VLOOKUP(DropDownList!$B$47,CntyQuery!$A$51:$CE$93,AJ$1)","v":1868},{"$f":"VLOOKUP(DropDownList!$B$47,CntyQuery!$A$51:$CE$93,AK$1)","v":1762},{"$f":"VLOOKUP(DropDownList!$B$47,CntyQuery!$A$51:$CE$93,AL$1)","v":106},{"$f":"VLOOKUP(DropDownList!$B$47,CntyQuery!$A$51:$CE$93,AM$1)","v":1305},{"$f":"VLOOKUP(DropDownList!$B$47,CntyQuery!$A$51:$CE$93,AN$1)","v":457},{"$f":"VLOOKUP(DropDownList!$B$47,CntyQuery!$A$51:$CE$93,AO$1)","v":33},{"$f":"VLOOKUP(DropDownList!$B$47,CntyQuery!$A$51:$CE$93,AP$1)","v":46},{"$f":"VLOOKUP(DropDownList!$B$47,CntyQuery!$A$51:$CE$93,AQ$1)","v":8},{"$f":"VLOOKUP(DropDownList!$B$47,CntyQuery!$A$51:$CE$93,AR$1)","v":1},{"$f":"VLOOKUP(DropDownList!$B$47,CntyQuery!$A$51:$CE$93,AS$1)","v":1},{"$f":"VLOOKUP(DropDownList!$B$47,CntyQuery!$A$51:$CE$93,AT$1)","v":0},{"$f":"VLOOKUP(DropDownList!$B$47,CntyQuery!$A$51:$CE$93,AU$1)","v":0},{"$f":"VLOOKUP(DropDownList!$B$47,CntyQuery!$A$51:$CE$93,AV$1)","v":3},{"$f":"VLOOKUP(DropDownList!$B$47,CntyQuery!$A$51:$CE$93,AW$1)","v":1},{"$f":"VLOOKUP(DropDownList!$B$47,CntyQuery!$A$51:$CE$93,AX$1)","v":2},{"$f":"VLOOKUP(DropDownList!$B$47,CntyQuery!$A$51:$CE$93,AY$1)","v":1},{"$f":"VLOOKUP(DropDownList!$B$47,CntyQuery!$A$51:$CE$93,AZ$1)","v":5},{"$f":"VLOOKUP(DropDownList!$B$47,CntyQuery!$A$51:$CE$93,BA$1)","v":30},{"$f":"VLOOKUP(DropDownList!$B$47,CntyQuery!$A$51:$CE$93,BB$1)","v":200},{"$f":"VLOOKUP(DropDownList!$B$47,CntyQuery!$A$51:$CE$93,BC$1)","v":200},{"$f":"VLOOKUP(DropDownList!$B$47,CntyQuery!$A$51:$CE$93,BD$1)","v":107},{"$f":"VLOOKUP(DropDownList!$B$47,CntyQuery!$A$51:$CE$93,BE$1)","v":32},{"$f":"VLOOKUP(DropDownList!$B$47,CntyQuery!$A$51:$CE$93,BF$1)","v":12},{"$f":"VLOOKUP(DropDownList!$B$47,CntyQuery!$A$51:$CE$93,BG$1)","v":7},{"$f":"VLOOKUP(DropDownList!$B$47,CntyQuery!$A$51:$CE$93,BH$1)","v":4},{"$f":"VLOOKUP(DropDownList!$B$47,CntyQuery!$A$51:$CE$93,BI$1)","v":1},{"$f":"VLOOKUP(DropDownList!$B$47,CntyQuery!$A$51:$CE$93,BJ$1)","v":0},{"$f":"VLOOKUP(DropDownList!$B$47,CntyQuery!$A$51:$CE$93,BK$1)","v":0},{"$f":"VLOOKUP(DropDownList!$B$47,CntyQuery!$A$51:$CE$93,BL$1)","v":107400},{"$f":"VLOOKUP(DropDownList!$B$47,CntyQuery!$A$51:$CE$93,BM$1)","v":701},{"$f":"VLOOKUP(DropDownList!$B$47,CntyQuery!$A$51:$CE$93,BN$1)","v":542},{"$f":"VLOOKUP(DropDownList!$B$47,CntyQuery!$A$51:$CE$93,BO$1)","v":625},{"$f":"VLOOKUP(DropDownList!$B$47,CntyQuery!$A$51:$CE$93,BP$1)","v":645},{"$f":"VLOOKUP(DropDownList!$B$47,CntyQuery!$A$51:$CE$93,BQ$1)","v":113},{"$f":"VLOOKUP(DropDownList!$B$47,CntyQuery!$A$51:$CE$93,BR$1)","v":547},{"$f":"VLOOKUP(DropDownList!$B$47,CntyQuery!$A$51:$CE$93,BS$1)","v":38},{"$f":"VLOOKUP(DropDownList!$B$47,CntyQuery!$A$51:$CE$93,BT$1)","v":392},{"$f":"VLOOKUP(DropDownList!$B$47,CntyQuery!$A$51:$CE$93,BU$1)","v":27},{"$f":"VLOOKUP(DropDownList!$B$47,CntyQuery!$A$51:$CE$93,BV$1)","v":701},{"$f":"VLOOKUP(DropDownList!$B$47,CntyQuery!$A$51:$CE$93,BW$1)","v":42},{"$f":"VLOOKUP(DropDownList!$B$47,CntyQuery!$A$51:$CE$93,BX$1)","v":185},{"$f":"VLOOKUP(DropDownList!$B$47,CntyQuery!$A$51:$CE$93,BY$1)","v":106},{"$f":"VLOOKUP(DropDownList!$B$47,CntyQuery!$A$51:$CE$93,BZ$1)","v":158},{"$f":"VLOOKUP(DropDownList!$B$47,CntyQuery!$A$51:$CE$93,CA$1)","v":10},{"$f":"VLOOKUP(DropDownList!$B$47,CntyQuery!$A$51:$CE$93,CB$1)","v":41},{"$f":"VLOOKUP(DropDownList!$B$47,CntyQuery!$A$51:$CE$93,CC$1)","v":0},{"$f":"VLOOKUP(DropDownList!$B$47,CntyQuery!$A$51:$CE$93,CD$1)","v":610},{"$f":"VLOOKUP(DropDownList!$B$47,CntyQuery!$A$51:$CE$93,CE$1)","v":15}]
[]
[]
["Census 1990 Data -          Query Name: TownSTF3Qry1"]
["NAME","FIPS","COUSUBFP","LandAcres","WaterAcres","HousingUnits90Cen","P01Persons90Cen","P02Families90Cen","P03Households90cen","H25HU<5yrs90cen","H25HU5to20yrs90cen","H25HU20to50yrs90cen","H25HU>50yrs90cen","H31Units0Bedroom90cen","H31Units1Bedroom90cen","H31Units2Bedroom90cen","H31Units3Bedroom90cen","H31Units4Bedroom90cen","H31Units5+Bedroom90cen","P80HI<5K","P80HI5Kto10K","P80HI10Kto15K","P80HI15Kto25K","P80HI25Kto35K","P80HI35Kto50K","P80HI50Kto75K","P80HI75Kto100K","P80HI>100K","P80AMedHI","P86HH<25HI<5K","P86HH<25HI5Kto10K","P86HH<25HI10Kto15K","P86HH<25HI15Kto25K","P86HH<25HI25Kto35K","P86HH<25HI35Kto50K","P86HH<25HI50Kto75K","P86HH<25HI75Kto100K","P86HH<25HI>100K","P86HH25to34HI<5K","P86HH25to34HI5Kto10K","P86HH25to34HI10Kto15K","P86HH25to34HI15Kto25K","P86HH25to34HI25Kto35K","P86HH25to34HI35Kto50K","P86HH25to34HI50Kto75K","P86HH25to34HI75Kto100K","P86HH25to34HI>100K","P86HH35to44HI<5K","P86HH35to44HI5Kto10K","P86HH35to44HI10Kto15K","P86HH35to44HI15Kto25K","P86HH35to44HI25Kto35K","P86HH35to44HI35Kto50K","P86HH35to44HI50Kto75K","P86HH35to44HI75Kto100K","P86HH35to44HI>100K","P86HH45to54HI<5K","P86HH45to54HI5Kto10K","P86HH45to54HI10Kto15K","P86HH45to54HI15Kto25K","P86HH45to54HI25Kto35K","P86HH45to54HI35Kto50K","P86HH45to54HI50Kto75K","P86HH45to54HI75Kto100K","P86HH45to54HI>100K","P86HH55to64HI<5K","P86HH55to64HI5Kto10K","P86HH55to64HI10Kto15K","P86HH55to64HI15Kto25K","P86HH55to64HI25Kto35K","P86HH55to64HI35Kto50K","P86HH55to64HI50Kto75K","P86HH55to64HI75Kto100K","P86HH55to64HI>100K","P86HH65to74HI<5K","P86HH65to74HI5Kto10K","P86HH65to74HI10Kto15K","P86HH65to74HI15Kto25K","P86HH65to74HI25Kto35K","P86HH65to74HI35Kto50K","P86HH65to74HI50Kto75K","P86HH65to74HI75Kto100K","P86HH65to74HI>100K","P86HH>75HI<5K","P86HH>75HI5Kto10K","P86HH>75HI10Kto15K","P86HH>75HI15Kto25K","P86HH>75HI25Kto35K","P86HH>75HI35Kto50K","P86HH>75HI50Kto75K","P86HH>75HI75Kto100K","P86HH>75HI>100K","P54SchlEnrlPrePrim","P54SchlEnrlElemThrHS","P54SchlEnrlCollege","P54NotEnrlInSch","P57Pop25andOver","P57LessThan9thGrade","P579thto12thNoDip","P57HSGrad","P57SomeCollege","P57AssocDeg","P57BachelDeg","P57GradorProfDeg","P57HSGradorHigher","P57CollGradorHigher","P42NativePop","P42ForeignBornPop","P42BornStateOfRes","P37NativePop2","P37ForeignBornPop2","P49DroveAlone","P49CarPooled","P49PublicTranspt","P49Walked","P49OtherMeans","P49WorkedAtHome","P80HHInc<10K","P80HHInc10to15K","P80HHInc15to25K","P80HHInc25to35K","P80HHInc35to50K","P80HHInc50to75K","P80HHInc75to100K","P80HHInc100to150K","P80HHInc>150K","H25YearStBlt89to90","H25YearStBlt85to88","H25YearStBlt80to84","H25YearStBlt70to79","H25YearStBlt60to69","H25YearStBlt50to59","H25YearStBlt40to49","H25YearStBlt39earlier","P107FamInc<10K","P107FamInc10to15K","P107FamInc15to25K","P107FamInc25to35K","P107FamInc35to50K","P107FamInc50to75K","P107FamInc75to100K","P107FamInc100to150K","P107FamInc>150K","P107AMedFamInc","P110NonFamInc<10K","P110NonFamInc10to15K","P110NonFamInc15to25K","P110NonFamInc25to35K","P110NonFamInc35to50K","P110NonFamInc50to75K","P110NonFamInc75to100K","P110NonFamInc100to150K","P110NonFamInc>150K","P110AMedNonFamInc","H16HU1Room","H16HU2Room","H16HU3Room","H16HU4Room","H16HU5Room","H16HU6Room","H16HU7Room","H16HU8Room","H16HU9+Room","H43GrossRnt<100","H43GrossRnt100to149","H43GrossRnt150to199","H43GrossRnt200to249","H43GrossRnt250to299","H43GrossRnt300to349","H43GrossRnt350to399","H43GrossRnt400to449","H43GrossRnt450to499","H43GrossRnt500to549","H43GrossRnt550to599","H43GrossRnt600to649","H43GrossRnt650to699","H43GrossRnt700to749","H43GrossRnt750to999","H43GrossRnt1000Plus","H43NoCashRent","H43MedGrossRent","H51GrossRnt<20PctHHInc","H51GrossRnt20to24PctHHInc","H51GrossRnt25to29PctHHInc","H51GrossRnt30to34PctHHInc","H51GrossRnt35PctOrMoreHHInc","H51GrossRntAsPctHHIncNotComp","H52HUwMtgMoOwnCst<200","H52HUwMtgMoOwnCst200to299","H52HUwMtgMoOwnCst300to399","H52HUwMtgMoOwnCst400to499","H52HUwMtgMoOwnCst500to599","H52HUwMtgMoOwnCst600to699","H52HUwMtgMoOwnCst700to799","H52HUwMtgMoOwnCst800to899","H52HUwMtgMoOwnCst900to999","H52HUwMtgMoOwnCst1000to1249","H52HUwMtgMoOwnCst1250to1499","H52HUwMtgMoOwnCst1500to1999","H52HUwMtgMoOwnCst2000More","H52HUwNoMtgMoOwnCst<100","H52HUwNoMtgMoOwnCst100to149","H52HUwNoMtgMoOwnCst150to199","H52HUwNoMtgMoOwnCst200to249","H52HUwNoMtgMoOwnCst250to299","H52HUwNoMtgMoOwnCst300to349","H52HUwNoMtgMoOwnCst350to399","H52HUwNoMtgMoOwnCst400More","H52AMedMoOwnCstWMortg","H52AMedMoOwnCstWNoMortg","H58HUwMtgMOC<20pHHInc","H58HUwMtgMOC20to24pHHInc","H58HUwMtgMOC25to29pHHInc","H58HUwMtgMOC30to34pHHInc","H58wMtgMOC>35pHHInc","H58HUwMtgMOCNotComp","H58HUwNoMtgMOC<20pHHInc","H58HUwNoMtgMOC20to24pHHInc","H58HUwNoMtgMOC25to29pHHInc","H58HUwNoMtgMOC30to34pHHInc","H58wNoMtgMOC>35pHHInc","H58HUwNoMtgMOCNotComp","H61OOHUVal<15k","H61OOHUVal15to19k","H61OOHUVal20to24k","H61OOHUVal25to29k","H61OOHUVal30to34k","H61OOHUVal35to39k","H61OOHUVal40to44k","H61OOHUVal45to49k","H61OOHUVal50to59k","H61OOHUVal60to74k","H61OOHUVal75to99k","H61OOHUVal100to124k","H61OOHUVal125to149k","H61OOHUVal150to174k","H61OOHUVal175to199k","H61OOHUVal200to249k","H61OOHUVal250to299k","H61OOHUVal300to399k","H61OOHUVal400to499k","H61OOHUVal500kOrMore","H61aOOHUMedVal"]
[]
[]
[]
["Other Demo Data -             Query Name: QryAllTowns-ACSDemographicSheet"]
["TOWN_NAME","FIPS","TOWNCNTY","COUSUB","POP80","POP90CDCEN","POP2000CEN","POP2010CEN","POP2020CEN","POP2025-Proj","POP2030-Proj","POP2035-Proj","SF80","MF80","MH80","SF81","MF81","MH81","SF82","MF82","MH82","SF83","MF83","MH83","SF84_OSP","MF84_OSP","MH84_OSP","SF85_OSP","MF85_OSP","MH85_OSP","SF86_OSP","MF86_OSP","MH86_OSP","SF87_OSP","MF87_OSP","MH87_OSP","SF88_OSP","MF88_OSP","MH88_OSP","SF89_OSP","MF89_OSP","MH89_OSP","SF90_OSP","MF90_OSP","MH90_OSP","SF91_OSP","MF91_OSP","MH91_OSP","SF92_OSP","MF92_OSP","MH92_OSP","SF93_OSP","MF93_OSP","MH93_OSP","SF94_OSP","MF94_OSP","MH94_OSP","SF95_OSP","MF95_OSP","MH95_OSP","SF96_OSP","MF96_OSP","MH96_OSP","SF97_OSP","MF97_OSP","MH97_OSP","SF98_OSP","MF98_OSP","MH98_OSP","SF99_OSP","MF99_OSP","MH99_OSP","SF00_OSP","MF00_OSP","MH00_OSP","SF01_OSP","MF01_OSP","MH01_OSP","SF02_OSP","MF02_OSP","MH02_OSP","SF03_OSP","MF03_OSP","MH03_OSP","SF04_OSP","MF04_OSP","MH04_OSP","SF05_OSP","MF05_OSP","MH05_OSP","SF06_OSP","MF06_OSP","MH06_OSP","SF07_OSP","MF07_OSP","MH07_OSP","SF08_OSP","MF08_OSP","MH08_OSP","SF09_OSP","MF09_OSP","MH09_OSP","SF10_OSP","MF10_OSP","MH10_OSP","SF11_OSP","MF11_OSP","MH11_OSP","SF12_OSP","MF12_OSP","MH12_OSP","SF13_OSP","MF13_OSP","MH13_OSP","SF14_OSP","MF14_OSP","MH14_OSP","SF15_OSP","MF15_OSP","MH15_OSP","SF16_OSP","MF16_OSP","MH16_OSP","SF17_OSP","MF17_OSP","MH17_OSP","SF18_OSP","MF18_OSP","MH18_OSP","SF19_OSP","MF19_OSP","MH19_OSP","SF20_OSP","MF20_OSP","MH20_OSP","SF20 Census_OSP","MF20 Census OSP","MH20 Census_OSP","SF21_OSP","MF21_OSP","MH21_OSP","COMMENTS","CNTY_CODE"]
[{"$f":"VLOOKUP(DropDownList!$B$47,CntyQuery!$A$118:$FZ$144,A$1)","v":"Allenstown"},{"$f":"VLOOKUP(DropDownList!$B$47,CntyQuery!$A$118:$FZ$144,B$1)","v":13005},{"$f":"VLOOKUP(DropDownList!$B$47,CntyQuery!$A$118:$FZ$144,C$1)","v":701},{"$f":"VLOOKUP(DropDownList!$B$47,CntyQuery!$A$118:$FZ$144,D$1)","v":"00660"},{"$f":"VLOOKUP(DropDownList!$B$47,CntyQuery!$A$118:$FZ$144,E$1)","v":4398},{"$f":"VLOOKUP(DropDownList!$B$47,CntyQuery!$A$118:$FZ$144,F$1)","v":4649},{"$f":"VLOOKUP(DropDownList!$B$47,CntyQuery!$A$118:$FZ$144,G$1)","v":4843},{"$f":"VLOOKUP(DropDownList!$B$47,CntyQuery!$A$118:$FZ$144,H$1)","v":4322},{"$f":"VLOOKUP(DropDownList!$B$47,CntyQuery!$A$118:$FZ$144,I$1)","v":4707},{"$f":"VLOOKUP(DropDownList!$B$47,CntyQuery!$A$118:$FZ$144,J$1)","v":4883},{"$f":"VLOOKUP(DropDownList!$B$47,CntyQuery!$A$118:$FZ$144,K$1)","v":5031},{"$f":"VLOOKUP(DropDownList!$B$47,CntyQuery!$A$118:$FZ$144,L$1)","v":5131},{"$f":"VLOOKUP(DropDownList!$B$47,CntyQuery!$A$118:$FZ$144,M$1)","v":4},{"$f":"VLOOKUP(DropDownList!$B$47,CntyQuery!$A$118:$FZ$144,N$1)","v":0},{"$f":"VLOOKUP(DropDownList!$B$47,CntyQuery!$A$118:$FZ$144,O$1)","v":0},{"$f":"VLOOKUP(DropDownList!$B$47,CntyQuery!$A$118:$FZ$144,P$1)","v":2},{"$f":"VLOOKUP(DropDownList!$B$47,CntyQuery!$A$118:$FZ$144,Q$1)","v":0},{"$f":"VLOOKUP(DropDownList!$B$47,CntyQuery!$A$118:$FZ$144,R$1)","v":0},{"$f":"VLOOKUP(DropDownList!$B$47,CntyQuery!$A$118:$FZ$144,S$1)","v":2},{"$f":"VLOOKUP(DropDownList!$B$47,CntyQuery!$A$118:$FZ$144,T$1)","v":0},{"$f":"VLOOKUP(DropDownList!$B$47,CntyQuery!$A$118:$FZ$144,U$1)","v":2},{"$f":"VLOOKUP(DropDownList!$B$47,CntyQuery!$A$118:$FZ$144,V$1)","v":3},{"$f":"VLOOKUP(DropDownList!$B$47,CntyQuery!$A$118:$FZ$144,W$1)","v":0},{"$f":"VLOOKUP(DropDownList!$B$47,CntyQuery!$A$118:$FZ$144,X$1)","v":0},{"$f":"VLOOKUP(DropDownList!$B$47,CntyQuery!$A$118:$FZ$144,Y$1)","v":2},{"$f":"VLOOKUP(DropDownList!$B$47,CntyQuery!$A$118:$FZ$144,Z$1)","v":74},{"$f":"VLOOKUP(DropDownList!$B$47,CntyQuery!$A$118:$FZ$144,AA$1)","v":3},{"$f":"VLOOKUP(DropDownList!$B$47,CntyQuery!$A$118:$FZ$144,AB$1)","v":24},{"$f":"VLOOKUP(DropDownList!$B$47,CntyQuery!$A$118:$FZ$144,AC$1)","v":76},{"$f":"VLOOKUP(DropDownList!$B$47,CntyQuery!$A$118:$FZ$144,AD$1)","v":3},{"$f":"VLOOKUP(DropDownList!$B$47,CntyQuery!$A$118:$FZ$144,AE$1)","v":52},{"$f":"VLOOKUP(DropDownList!$B$47,CntyQuery!$A$118:$FZ$144,AF$1)","v":35},{"$f":"VLOOKUP(DropDownList!$B$47,CntyQuery!$A$118:$FZ$144,AG$1)","v":0},{"$f":"VLOOKUP(DropDownList!$B$47,CntyQuery!$A$118:$FZ$144,AH$1)","v":11},{"$f":"VLOOKUP(DropDownList!$B$47,CntyQuery!$A$118:$FZ$144,AI$1)","v":2},{"$f":"VLOOKUP(DropDownList!$B$47,CntyQuery!$A$118:$FZ$144,AJ$1)","v":0},{"$f":"VLOOKUP(DropDownList!$B$47,CntyQuery!$A$118:$FZ$144,AK$1)","v":29},{"$f":"VLOOKUP(DropDownList!$B$47,CntyQuery!$A$118:$FZ$144,AL$1)","v":7},{"$f":"VLOOKUP(DropDownList!$B$47,CntyQuery!$A$118:$FZ$144,AM$1)","v":17},{"$f":"VLOOKUP(DropDownList!$B$47,CntyQuery!$A$118:$FZ$144,AN$1)","v":13},{"$f":"VLOOKUP(DropDownList!$B$47,CntyQuery!$A$118:$FZ$144,AO$1)","v":1},{"$f":"VLOOKUP(DropDownList!$B$47,CntyQuery!$A$118:$FZ$144,AP$1)","v":0},{"$f":"VLOOKUP(DropDownList!$B$47,CntyQuery!$A$118:$FZ$144,AQ$1)","v":3},{"$f":"VLOOKUP(DropDownList!$B$47,CntyQuery!$A$118:$FZ$144,AR$1)","v":1},{"$f":"VLOOKUP(DropDownList!$B$47,CntyQuery!$A$118:$FZ$144,AS$1)","v":0},{"$f":"VLOOKUP(DropDownList!$B$47,CntyQuery!$A$118:$FZ$144,AT$1)","v":4},{"$f":"VLOOKUP(DropDownList!$B$47,CntyQuery!$A$118:$FZ$144,AU$1)","v":0},{"$f":"VLOOKUP(DropDownList!$B$47,CntyQuery!$A$118:$FZ$144,AV$1)","v":0},{"$f":"VLOOKUP(DropDownList!$B$47,CntyQuery!$A$118:$FZ$144,AW$1)","v":4},{"$f":"VLOOKUP(DropDownList!$B$47,CntyQuery!$A$118:$FZ$144,AX$1)","v":0},{"$f":"VLOOKUP(DropDownList!$B$47,CntyQuery!$A$118:$FZ$144,AY$1)","v":0},{"$f":"VLOOKUP(DropDownList!$B$47,CntyQuery!$A$118:$FZ$144,AZ$1)","v":17},{"$f":"VLOOKUP(DropDownList!$B$47,CntyQuery!$A$118:$FZ$144,BA$1)","v":0},{"$f":"VLOOKUP(DropDownList!$B$47,CntyQuery!$A$118:$FZ$144,BB$1)","v":2},{"$f":"VLOOKUP(DropDownList!$B$47,CntyQuery!$A$118:$FZ$144,BC$1)","v":6},{"$f":"VLOOKUP(DropDownList!$B$47,CntyQuery!$A$118:$FZ$144,BD$1)","v":0},{"$f":"VLOOKUP(DropDownList!$B$47,CntyQuery!$A$118:$FZ$144,BE$1)","v":11},{"$f":"VLOOKUP(DropDownList!$B$47,CntyQuery!$A$118:$FZ$144,BF$1)","v":5},{"$f":"VLOOKUP(DropDownList!$B$47,CntyQuery!$A$118:$FZ$144,BG$1)","v":0},{"$f":"VLOOKUP(DropDownList!$B$47,CntyQuery!$A$118:$FZ$144,BH$1)","v":18},{"$f":"VLOOKUP(DropDownList!$B$47,CntyQuery!$A$118:$FZ$144,BI$1)","v":2},{"$f":"VLOOKUP(DropDownList!$B$47,CntyQuery!$A$118:$FZ$144,BJ$1)","v":0},{"$f":"VLOOKUP(DropDownList!$B$47,CntyQuery!$A$118:$FZ$144,BK$1)","v":40},{"$f":"VLOOKUP(DropDownList!$B$47,CntyQuery!$A$118:$FZ$144,BL$1)","v":2},{"$f":"VLOOKUP(DropDownList!$B$47,CntyQuery!$A$118:$FZ$144,BM$1)","v":0},{"$f":"VLOOKUP(DropDownList!$B$47,CntyQuery!$A$118:$FZ$144,BN$1)","v":15},{"$f":"VLOOKUP(DropDownList!$B$47,CntyQuery!$A$118:$FZ$144,BO$1)","v":10},{"$f":"VLOOKUP(DropDownList!$B$47,CntyQuery!$A$118:$FZ$144,BP$1)","v":7},{"$f":"VLOOKUP(DropDownList!$B$47,CntyQuery!$A$118:$FZ$144,BQ$1)","v":38},{"$f":"VLOOKUP(DropDownList!$B$47,CntyQuery!$A$118:$FZ$144,BR$1)","v":9},{"$f":"VLOOKUP(DropDownList!$B$47,CntyQuery!$A$118:$FZ$144,BS$1)","v":1},{"$f":"VLOOKUP(DropDownList!$B$47,CntyQuery!$A$118:$FZ$144,BT$1)","v":30},{"$f":"VLOOKUP(DropDownList!$B$47,CntyQuery!$A$118:$FZ$144,BU$1)","v":3},{"$f":"VLOOKUP(DropDownList!$B$47,CntyQuery!$A$118:$FZ$144,BV$1)","v":0},{"$f":"VLOOKUP(DropDownList!$B$47,CntyQuery!$A$118:$FZ$144,BW$1)","v":24},{"$f":"VLOOKUP(DropDownList!$B$47,CntyQuery!$A$118:$FZ$144,BX$1)","v":8},{"$f":"VLOOKUP(DropDownList!$B$47,CntyQuery!$A$118:$FZ$144,BY$1)","v":2},{"$f":"VLOOKUP(DropDownList!$B$47,CntyQuery!$A$118:$FZ$144,BZ$1)","v":17},{"$f":"VLOOKUP(DropDownList!$B$47,CntyQuery!$A$118:$FZ$144,CA$1)","v":7},{"$f":"VLOOKUP(DropDownList!$B$47,CntyQuery!$A$118:$FZ$144,CB$1)","v":1},{"$f":"VLOOKUP(DropDownList!$B$47,CntyQuery!$A$118:$FZ$144,CC$1)","v":14},{"$f":"VLOOKUP(DropDownList!$B$47,CntyQuery!$A$118:$FZ$144,CD$1)","v":1},{"$f":"VLOOKUP(DropDownList!$B$47,CntyQuery!$A$118:$FZ$144,CE$1)","v":2},{"$f":"VLOOKUP(DropDownList!$B$47,CntyQuery!$A$118:$FZ$144,CF$1)","v":7},{"$f":"VLOOKUP(DropDownList!$B$47,CntyQuery!$A$118:$FZ$144,CG$1)","v":9},{"$f":"VLOOKUP(DropDownList!$B$47,CntyQuery!$A$118:$FZ$144,CH$1)","v":0},{"$f":"VLOOKUP(DropDownList!$B$47,CntyQuery!$A$118:$FZ$144,CI$1)","v":7},{"$f":"VLOOKUP(DropDownList!$B$47,CntyQuery!$A$118:$FZ$144,CJ$1)","v":9},{"$f":"VLOOKUP(DropDownList!$B$47,CntyQuery!$A$118:$FZ$144,CK$1)","v":0},{"$f":"VLOOKUP(DropDownList!$B$47,CntyQuery!$A$118:$FZ$144,CL$1)","v":0},{"$f":"VLOOKUP(DropDownList!$B$47,CntyQuery!$A$118:$FZ$144,CM$1)","v":16},{"$f":"VLOOKUP(DropDownList!$B$47,CntyQuery!$A$118:$FZ$144,CN$1)","v":0},{"$f":"VLOOKUP(DropDownList!$B$47,CntyQuery!$A$118:$FZ$144,CO$1)","v":11},{"$f":"VLOOKUP(DropDownList!$B$47,CntyQuery!$A$118:$FZ$144,CP$1)","v":9},{"$f":"VLOOKUP(DropDownList!$B$47,CntyQuery!$A$118:$FZ$144,CQ$1)","v":0},{"$f":"VLOOKUP(DropDownList!$B$47,CntyQuery!$A$118:$FZ$144,CR$1)","v":14},{"$f":"VLOOKUP(DropDownList!$B$47,CntyQuery!$A$118:$FZ$144,CS$1)","v":-3},{"$f":"VLOOKUP(DropDownList!$B$47,CntyQuery!$A$118:$FZ$144,CT$1)","v":0},{"$f":"VLOOKUP(DropDownList!$B$47,CntyQuery!$A$118:$FZ$144,CU$1)","v":11},{"$f":"VLOOKUP(DropDownList!$B$47,CntyQuery!$A$118:$FZ$144,CV$1)","v":4},{"$f":"VLOOKUP(DropDownList!$B$47,CntyQuery!$A$118:$FZ$144,CW$1)","v":0},{"$f":"VLOOKUP(DropDownList!$B$47,CntyQuery!$A$118:$FZ$144,CX$1)","v":5},{"$f":"VLOOKUP(DropDownList!$B$47,CntyQuery!$A$118:$FZ$144,CY$1)","v":3},{"$f":"VLOOKUP(DropDownList!$B$47,CntyQuery!$A$118:$FZ$144,CZ$1)","v":0},{"$f":"VLOOKUP(DropDownList!$B$47,CntyQuery!$A$118:$FZ$144,DA$1)","v":3},{"$f":"VLOOKUP(DropDownList!$B$47,CntyQuery!$A$118:$FZ$144,DB$1)","v":-1},{"$f":"VLOOKUP(DropDownList!$B$47,CntyQuery!$A$118:$FZ$144,DC$1)","v":2},{"$f":"VLOOKUP(DropDownList!$B$47,CntyQuery!$A$118:$FZ$144,DD$1)","v":3},{"$f":"VLOOKUP(DropDownList!$B$47,CntyQuery!$A$118:$FZ$144,DE$1)","v":1},{"$f":"VLOOKUP(DropDownList!$B$47,CntyQuery!$A$118:$FZ$144,DF$1)","v":0},{"$f":"VLOOKUP(DropDownList!$B$47,CntyQuery!$A$118:$FZ$144,DG$1)","v":1},{"$f":"VLOOKUP(DropDownList!$B$47,CntyQuery!$A$118:$FZ$144,DH$1)","v":3},{"$f":"VLOOKUP(DropDownList!$B$47,CntyQuery!$A$118:$FZ$144,DI$1)","v":-6},{"$f":"VLOOKUP(DropDownList!$B$47,CntyQuery!$A$118:$FZ$144,DJ$1)","v":0},{"$f":"VLOOKUP(DropDownList!$B$47,CntyQuery!$A$118:$FZ$144,DK$1)","v":0},{"$f":"VLOOKUP(DropDownList!$B$47,CntyQuery!$A$118:$FZ$144,DL$1)","v":0},{"$f":"VLOOKUP(DropDownList!$B$47,CntyQuery!$A$118:$FZ$144,DM$1)","v":2},{"$f":"VLOOKUP(DropDownList!$B$47,CntyQuery!$A$118:$FZ$144,DN$1)","v":1},{"$f":"VLOOKUP(DropDownList!$B$47,CntyQuery!$A$118:$FZ$144,DO$1)","v":8},{"$f":"VLOOKUP(DropDownList!$B$47,CntyQuery!$A$118:$FZ$144,DP$1)","v":-1},{"$f":"VLOOKUP(DropDownList!$B$47,CntyQuery!$A$118:$FZ$144,DQ$1)","v":1},{"$f":"VLOOKUP(DropDownList!$B$47,CntyQuery!$A$118:$FZ$144,DR$1)","v":0},{"$f":"VLOOKUP(DropDownList!$B$47,CntyQuery!$A$118:$FZ$144,DS$1)","v":9},{"$f":"VLOOKUP(DropDownList!$B$47,CntyQuery!$A$118:$FZ$144,DT$1)","v":9},{"$f":"VLOOKUP(DropDownList!$B$47,CntyQuery!$A$118:$FZ$144,DU$1)","v":0},{"$f":"VLOOKUP(DropDownList!$B$47,CntyQuery!$A$118:$FZ$144,DV$1)","v":-3},{"$f":"VLOOKUP(DropDownList!$B$47,CntyQuery!$A$118:$FZ$144,DW$1)","v":8},{"$f":"VLOOKUP(DropDownList!$B$47,CntyQuery!$A$118:$FZ$144,DX$1)","v":0},{"$f":"VLOOKUP(DropDownList!$B$47,CntyQuery!$A$118:$FZ$144,DY$1)","v":0},{"$f":"VLOOKUP(DropDownList!$B$47,CntyQuery!$A$118:$FZ$144,DZ$1)","v":5},{"$f":"VLOOKUP(DropDownList!$B$47,CntyQuery!$A$118:$FZ$144,EA$1)","v":0},{"$f":"VLOOKUP(DropDownList!$B$47,CntyQuery!$A$118:$FZ$144,EB$1)","v":2},{"$f":"VLOOKUP(DropDownList!$B$47,CntyQuery!$A$118:$FZ$144,EC$1)","v":3},{"$f":"VLOOKUP(DropDownList!$B$47,CntyQuery!$A$118:$FZ$144,ED$1)","v":39},{"$f":"VLOOKUP(DropDownList!$B$47,CntyQuery!$A$118:$FZ$144,EE$1)","v":7},{"$f":"VLOOKUP(DropDownList!$B$47,CntyQuery!$A$118:$FZ$144,EF$1)","v":0},{"$f":"VLOOKUP(DropDownList!$B$47,CntyQuery!$A$118:$FZ$144,EG$1)","v":0},{"$f":"VLOOKUP(DropDownList!$B$47,CntyQuery!$A$118:$FZ$144,EH$1)","v":0},{"$f":"VLOOKUP(DropDownList!$B$47,CntyQuery!$A$118:$FZ$144,EI$1)","v":3},{"$f":"VLOOKUP(DropDownList!$B$47,CntyQuery!$A$118:$FZ$144,EJ$1)","v":0},{"$f":"VLOOKUP(DropDownList!$B$47,CntyQuery!$A$118:$FZ$144,EK$1)","v":8},{"$f":"VLOOKUP(DropDownList!$B$47,CntyQuery!$A$118:$FZ$144,EL$1)","v":""},{"$f":"VLOOKUP(DropDownList!$B$47,CntyQuery!$A$118:$FZ$144,EM$1)","v":7}]
[]
[]
["NH Employment Data","Query Name: DPQryEmploymentByCnty"]
["AreaName","COUNTYCODE","TOTP & G2001","TOT2001","GOODPRO2001","SERVICEPROMAN2001","WAGEP & G2001","WAGETOT2001","WAGEGOODPRO2001","WAGESERVICEPRO2001","TOTP & G2002","TOT2002","GOODPRO2002","SERVICEPROMAN2002","WAGEP & G2002","WAGETOT2002","WAGEGOODPRO2002","WAGESERVICEPRO2002","TOTP & G2003","TOT2003","GOODPRO2003","SERVICEPROMAN2003","WAGEP & G2003","WAGETOT2003","WAGEGOODPRO2003","WAGESERVICEPRO2003","TOTP & G2004","TOT2004","GOODPRO2004","SERVICEPROMAN2004","WAGEP & G2004","WAGETOT2004","WAGEGOODPRO2004","WAGESERVICEPRO2004","TOTP & G2005","TOT2005","GOODPRO2005","SERVICEPROMAN2005","WAGEP & G2005","WAGETOT2005","WAGEGOODPRO2005","WAGESERVICEPRO2005","TOTP & G2006","TOT2006","GOODPRO2006","SERVICEPROMAN2006","WAGEP & G2006","WAGETOT2006","WAGEGOODPRO2006","WAGESERVICEPRO2006","TOTP & G2007","TOT2007","GOODPRO2007","SERVICEPROMAN2007","WAGEP & G2007","WAGETOT2007","WAGEGOODPRO2007","WAGESERVICEPRO2007","TOTP & G2008","TOT2008","GOODPRO2008","SERVICEPROMAN2008","WAGEP & G2008","WAGETOT2008","WAGEGOODPRO2008","WAGESERVICEPRO2008","TOTP & G2009","TOT2009","GOODPRO2009","SERVICEPROMAN2009","WAGEP & G2009","WAGETOT2009","WAGEGOODPRO2009","WAGESERVICEPRO2009","TOTP & G2010","TOT2010","GOODPRO2010","SERVICEPROMAN2010","WAGEP & G2010","WAGETOT2010","WAGEGOODPRO2010","WAGESERVICEPRO2010","TOTP & G2011","TOT2011","GOODPRO2011","SERVICEPROMAN2011","WAGEP & G2011","WAGETOT2011","WAGEGOODPRO2011","WAGESERVICEPRO2011","TOTP & G2012","TOT2012","GOODPRO2012","SERVICEPROMAN2012","WAGEP & G2012","WAGETOT2012","WAGEGOODPRO2012","WAGESERVICEPRO2012","TOTP & G2013","TOT2013","GOODPRO2013","SERVICEPROMAN2013","WAGEP & G2013","WAGETOT2013","WAGEGOODPRO2013","WAGESERVICEPRO2013","TOTP & G2014","TOT2014","GOODPRO2014","SERVICEPROMAN2014","WAGEP & G2014","WAGETOT2014","WAGEGOODPRO2014","WAGESERVICEPRO2014","TOTP & G2015","TOT2015","GOODPRO2015","SERVICEPROMAN2015","WAGEP & G2015","WAGETOT2015","WAGEGOODPRO2015","WAGESERVICEPRO2015","TOTP & G2016","TOT2016","GOODPRO2016","SERVICEPROMAN2016","WAGEP & G2016","WAGETOT2016","WAGEGOODPRO2016","WAGESERVICEPRO2016","TOTP & G2017","TOT2017","GOODPRO2017","SERVICEPROMAN2017","WAGEP & G2017","WAGETOT2017","WAGEGOODPRO2017","WAGESERVICEPRO2017","TOTP & G2018","TOT2018","GOODPRO2018","SERVICEPROMAN2018","WAGEP & G2018","WAGETOT2018","WAGEGOODPRO2018","WAGESERVICEPRO2018","TOTP & G2019","TOT2019","TOTGov2019","GOODPRO2019","SERVICEPROMAN2019","WAGEP & G2019","WAGETOT2019","WAGEGov2019","WAGEGOODPRO2019","WAGESERVICEPRO2019","TOTP & G2020","TOT2020","TOTGov2020","GOODPRO2020","SERVICEPROMAN2020","WAGEP & G2020","WAGETOT2020","WAGEGov2020","WAGEGOODPRO2020","WAGESERVICEPRO2020","TOTP & G2021","TOT2021","TOTGov2021","GOODPRO2021","SERVICEPROMAN2021","WAGEP & G2021","WAGETOT2021","WAGEGov2021","WAGEGOODPRO2021","WAGESERVICEPRO2021","TOTP & G2022","TOT2022","TOTGov2022","GOODPRO2022","SERVICEPROMAN2022","WAGEP & G2022","WAGETOT2022","WAGEGov2022","WAGEGOODPRO2022","WAGESERVICEPRO2022","COUNTYCODE"]
[{"$f":"VLOOKUP(DropDownList!$B$47,CntyQuery!$A$171:$GZ$197,A$1)","v":"Allenstown"},{"$f":"VLOOKUP(DropDownList!$B$47,CntyQuery!$A$171:$GZ$197,B$1)","v":7},{"$f":"VLOOKUP(DropDownList!$B$47,CntyQuery!$A$171:$GZ$197,C$1)","v":567},{"$f":"VLOOKUP(DropDownList!$B$47,CntyQuery!$A$171:$GZ$197,D$1)","v":420},{"$f":"VLOOKUP(DropDownList!$B$47,CntyQuery!$A$171:$GZ$197,E$1)","v":75},{"$f":"VLOOKUP(DropDownList!$B$47,CntyQuery!$A$171:$GZ$197,F$1)","v":345},{"$f":"VLOOKUP(DropDownList!$B$47,CntyQuery!$A$171:$GZ$197,G$1)","v":458.23},{"$f":"VLOOKUP(DropDownList!$B$47,CntyQuery!$A$171:$GZ$197,H$1)","v":450.68},{"$f":"VLOOKUP(DropDownList!$B$47,CntyQuery!$A$171:$GZ$197,I$1)","v":690.66},{"$f":"VLOOKUP(DropDownList!$B$47,CntyQuery!$A$171:$GZ$197,J$1)","v":398.54},{"$f":"VLOOKUP(DropDownList!$B$47,CntyQuery!$A$171:$GZ$197,K$1)","v":547},{"$f":"VLOOKUP(DropDownList!$B$47,CntyQuery!$A$171:$GZ$197,L$1)","v":394},{"$f":"VLOOKUP(DropDownList!$B$47,CntyQuery!$A$171:$GZ$197,M$1)","v":75},{"$f":"VLOOKUP(DropDownList!$B$47,CntyQuery!$A$171:$GZ$197,N$1)","v":319},{"$f":"VLOOKUP(DropDownList!$B$47,CntyQuery!$A$171:$GZ$197,O$1)","v":467.99},{"$f":"VLOOKUP(DropDownList!$B$47,CntyQuery!$A$171:$GZ$197,P$1)","v":451.45},{"$f":"VLOOKUP(DropDownList!$B$47,CntyQuery!$A$171:$GZ$197,Q$1)","v":650.45000000000005},{"$f":"VLOOKUP(DropDownList!$B$47,CntyQuery!$A$171:$GZ$197,R$1)","v":404.38},{"$f":"VLOOKUP(DropDownList!$B$47,CntyQuery!$A$171:$GZ$197,S$1)","v":575},{"$f":"VLOOKUP(DropDownList!$B$47,CntyQuery!$A$171:$GZ$197,T$1)","v":417},{"$f":"VLOOKUP(DropDownList!$B$47,CntyQuery!$A$171:$GZ$197,U$1)","v":85},{"$f":"VLOOKUP(DropDownList!$B$47,CntyQuery!$A$171:$GZ$197,V$1)","v":332},{"$f":"VLOOKUP(DropDownList!$B$47,CntyQuery!$A$171:$GZ$197,W$1)","v":481.57},{"$f":"VLOOKUP(DropDownList!$B$47,CntyQuery!$A$171:$GZ$197,X$1)","v":465.16},{"$f":"VLOOKUP(DropDownList!$B$47,CntyQuery!$A$171:$GZ$197,Y$1)","v":625.29999999999995},{"$f":"VLOOKUP(DropDownList!$B$47,CntyQuery!$A$171:$GZ$197,Z$1)","v":424.06},{"$f":"VLOOKUP(DropDownList!$B$47,CntyQuery!$A$171:$GZ$197,AA$1)","v":580},{"$f":"VLOOKUP(DropDownList!$B$47,CntyQuery!$A$171:$GZ$197,AB$1)","v":414},{"$f":"VLOOKUP(DropDownList!$B$47,CntyQuery!$A$171:$GZ$197,AC$1)","v":79},{"$f":"VLOOKUP(DropDownList!$B$47,CntyQuery!$A$171:$GZ$197,AD$1)","v":335},{"$f":"VLOOKUP(DropDownList!$B$47,CntyQuery!$A$171:$GZ$197,AE$1)","v":559.34},{"$f":"VLOOKUP(DropDownList!$B$47,CntyQuery!$A$171:$GZ$197,AF$1)","v":570.74},{"$f":"VLOOKUP(DropDownList!$B$47,CntyQuery!$A$171:$GZ$197,AG$1)","v":713.84},{"$f":"VLOOKUP(DropDownList!$B$47,CntyQuery!$A$171:$GZ$197,AH$1)","v":536.88},{"$f":"VLOOKUP(DropDownList!$B$47,CntyQuery!$A$171:$GZ$197,AI$1)","v":783},{"$f":"VLOOKUP(DropDownList!$B$47,CntyQuery!$A$171:$GZ$197,AJ$1)","v":609},{"$f":"VLOOKUP(DropDownList!$B$47,CntyQuery!$A$171:$GZ$197,AK$1)","v":"n"},{"$f":"VLOOKUP(DropDownList!$B$47,CntyQuery!$A$171:$GZ$197,AL$1)","v":"n"},{"$f":"VLOOKUP(DropDownList!$B$47,CntyQuery!$A$171:$GZ$197,AM$1)","v":541.73},{"$f":"VLOOKUP(DropDownList!$B$47,CntyQuery!$A$171:$GZ$197,AN$1)","v":541.84},{"$f":"VLOOKUP(DropDownList!$B$47,CntyQuery!$A$171:$GZ$197,AO$1)","v":"n"},{"$f":"VLOOKUP(DropDownList!$B$47,CntyQuery!$A$171:$GZ$197,AP$1)","v":"n"},{"$f":"VLOOKUP(DropDownList!$B$47,CntyQuery!$A$171:$GZ$197,AQ$1)","v":722},{"$f":"VLOOKUP(DropDownList!$B$47,CntyQuery!$A$171:$GZ$197,AR$1)","v":535},{"$f":"VLOOKUP(DropDownList!$B$47,CntyQuery!$A$171:$GZ$197,AS$1)","v":165},{"$f":"VLOOKUP(DropDownList!$B$47,CntyQuery!$A$171:$GZ$197,AT$1)","v":370},{"$f":"VLOOKUP(DropDownList!$B$47,CntyQuery!$A$171:$GZ$197,AU$1)","v":542.58000000000004},{"$f":"VLOOKUP(DropDownList!$B$47,CntyQuery!$A$171:$GZ$197,AV$1)","v":544.84},{"$f":"VLOOKUP(DropDownList!$B$47,CntyQuery!$A$171:$GZ$197,AW$1)","v":526.5},{"$f":"VLOOKUP(DropDownList!$B$47,CntyQuery!$A$171:$GZ$197,AX$1)","v":553},{"$f":"VLOOKUP(DropDownList!$B$47,CntyQuery!$A$171:$GZ$197,AY$1)","v":709},{"$f":"VLOOKUP(DropDownList!$B$47,CntyQuery!$A$171:$GZ$197,AZ$1)","v":516},{"$f":"VLOOKUP(DropDownList!$B$47,CntyQuery!$A$171:$GZ$197,BA$1)","v":120},{"$f":"VLOOKUP(DropDownList!$B$47,CntyQuery!$A$171:$GZ$197,BB$1)","v":395},{"$f":"VLOOKUP(DropDownList!$B$47,CntyQuery!$A$171:$GZ$197,BC$1)","v":566.6},{"$f":"VLOOKUP(DropDownList!$B$47,CntyQuery!$A$171:$GZ$197,BD$1)","v":574.70000000000005},{"$f":"VLOOKUP(DropDownList!$B$47,CntyQuery!$A$171:$GZ$197,BE$1)","v":577.92999999999995},{"$f":"VLOOKUP(DropDownList!$B$47,CntyQuery!$A$171:$GZ$197,BF$1)","v":573.71},{"$f":"VLOOKUP(DropDownList!$B$47,CntyQuery!$A$171:$GZ$197,BG$1)","v":720},{"$f":"VLOOKUP(DropDownList!$B$47,CntyQuery!$A$171:$GZ$197,BH$1)","v":525},{"$f":"VLOOKUP(DropDownList!$B$47,CntyQuery!$A$171:$GZ$197,BI$1)","v":141},{"$f":"VLOOKUP(DropDownList!$B$47,CntyQuery!$A$171:$GZ$197,BJ$1)","v":385},{"$f":"VLOOKUP(DropDownList!$B$47,CntyQuery!$A$171:$GZ$197,BK$1)","v":603.02},{"$f":"VLOOKUP(DropDownList!$B$47,CntyQuery!$A$171:$GZ$197,BL$1)","v":610.47},{"$f":"VLOOKUP(DropDownList!$B$47,CntyQuery!$A$171:$GZ$197,BM$1)","v":623.51},{"$f":"VLOOKUP(DropDownList!$B$47,CntyQuery!$A$171:$GZ$197,BN$1)","v":605.70000000000005},{"$f":"VLOOKUP(DropDownList!$B$47,CntyQuery!$A$171:$GZ$197,BO$1)","v":630},{"$f":"VLOOKUP(DropDownList!$B$47,CntyQuery!$A$171:$GZ$197,BP$1)","v":466},{"$f":"VLOOKUP(DropDownList!$B$47,CntyQuery!$A$171:$GZ$197,BQ$1)","v":137},{"$f":"VLOOKUP(DropDownList!$B$47,CntyQuery!$A$171:$GZ$197,BR$1)","v":329},{"$f":"VLOOKUP(DropDownList!$B$47,CntyQuery!$A$171:$GZ$197,BS$1)","v":632.92999999999995},{"$f":"VLOOKUP(DropDownList!$B$47,CntyQuery!$A$171:$GZ$197,BT$1)","v":611.41999999999996},{"$f":"VLOOKUP(DropDownList!$B$47,CntyQuery!$A$171:$GZ$197,BU$1)","v":615.41999999999996},{"$f":"VLOOKUP(DropDownList!$B$47,CntyQuery!$A$171:$GZ$197,BV$1)","v":609.76},{"$f":"VLOOKUP(DropDownList!$B$47,CntyQuery!$A$171:$GZ$197,BW$1)","v":646},{"$f":"VLOOKUP(DropDownList!$B$47,CntyQuery!$A$171:$GZ$197,BX$1)","v":472},{"$f":"VLOOKUP(DropDownList!$B$47,CntyQuery!$A$171:$GZ$197,BY$1)","v":147},{"$f":"VLOOKUP(DropDownList!$B$47,CntyQuery!$A$171:$GZ$197,BZ$1)","v":325},{"$f":"VLOOKUP(DropDownList!$B$47,CntyQuery!$A$171:$GZ$197,CA$1)","v":628.92999999999995},{"$f":"VLOOKUP(DropDownList!$B$47,CntyQuery!$A$171:$GZ$197,CB$1)","v":628.46},{"$f":"VLOOKUP(DropDownList!$B$47,CntyQuery!$A$171:$GZ$197,CC$1)","v":630.44000000000005},{"$f":"VLOOKUP(DropDownList!$B$47,CntyQuery!$A$171:$GZ$197,CD$1)","v":627.57000000000005},{"$f":"VLOOKUP(DropDownList!$B$47,CntyQuery!$A$171:$GZ$197,CE$1)","v":669},{"$f":"VLOOKUP(DropDownList!$B$47,CntyQuery!$A$171:$GZ$197,CF$1)","v":487},{"$f":"VLOOKUP(DropDownList!$B$47,CntyQuery!$A$171:$GZ$197,CG$1)","v":147},{"$f":"VLOOKUP(DropDownList!$B$47,CntyQuery!$A$171:$GZ$197,CH$1)","v":341},{"$f":"VLOOKUP(DropDownList!$B$47,CntyQuery!$A$171:$GZ$197,CI$1)","v":644.14},{"$f":"VLOOKUP(DropDownList!$B$47,CntyQuery!$A$171:$GZ$197,CJ$1)","v":648.04999999999995},{"$f":"VLOOKUP(DropDownList!$B$47,CntyQuery!$A$171:$GZ$197,CK$1)","v":628.24},{"$f":"VLOOKUP(DropDownList!$B$47,CntyQuery!$A$171:$GZ$197,CL$1)","v":656.56},{"$f":"VLOOKUP(DropDownList!$B$47,CntyQuery!$A$171:$GZ$197,CM$1)","v":708},{"$f":"VLOOKUP(DropDownList!$B$47,CntyQuery!$A$171:$GZ$197,CN$1)","v":528},{"$f":"VLOOKUP(DropDownList!$B$47,CntyQuery!$A$171:$GZ$197,CO$1)","v":157},{"$f":"VLOOKUP(DropDownList!$B$47,CntyQuery!$A$171:$GZ$197,CP$1)","v":372},{"$f":"VLOOKUP(DropDownList!$B$47,CntyQuery!$A$171:$GZ$197,CQ$1)","v":648.84},{"$f":"VLOOKUP(DropDownList!$B$47,CntyQuery!$A$171:$GZ$197,CR$1)","v":660.75},{"$f":"VLOOKUP(DropDownList!$B$47,CntyQuery!$A$171:$GZ$197,CS$1)","v":653.44000000000005},{"$f":"VLOOKUP(DropDownList!$B$47,CntyQuery!$A$171:$GZ$197,CT$1)","v":663.82},{"$f":"VLOOKUP(DropDownList!$B$47,CntyQuery!$A$171:$GZ$197,CU$1)","v":735},{"$f":"VLOOKUP(DropDownList!$B$47,CntyQuery!$A$171:$GZ$197,CV$1)","v":576},{"$f":"VLOOKUP(DropDownList!$B$47,CntyQuery!$A$171:$GZ$197,CW$1)","v":197},{"$f":"VLOOKUP(DropDownList!$B$47,CntyQuery!$A$171:$GZ$197,CX$1)","v":379},{"$f":"VLOOKUP(DropDownList!$B$47,CntyQuery!$A$171:$GZ$197,CY$1)","v":681.85},{"$f":"VLOOKUP(DropDownList!$B$47,CntyQuery!$A$171:$GZ$197,CZ$1)","v":676.87},{"$f":"VLOOKUP(DropDownList!$B$47,CntyQuery!$A$171:$GZ$197,DA$1)","v":655.93},{"$f":"VLOOKUP(DropDownList!$B$47,CntyQuery!$A$171:$GZ$197,DB$1)","v":687.74},{"$f":"VLOOKUP(DropDownList!$B$47,CntyQuery!$A$171:$GZ$197,DC$1)","v":719},{"$f":"VLOOKUP(DropDownList!$B$47,CntyQuery!$A$171:$GZ$197,DD$1)","v":555},{"$f":"VLOOKUP(DropDownList!$B$47,CntyQuery!$A$171:$GZ$197,DE$1)","v":182},{"$f":"VLOOKUP(DropDownList!$B$47,CntyQuery!$A$171:$GZ$197,DF$1)","v":373},{"$f":"VLOOKUP(DropDownList!$B$47,CntyQuery!$A$171:$GZ$197,DG$1)","v":697.28},{"$f":"VLOOKUP(DropDownList!$B$47,CntyQuery!$A$171:$GZ$197,DH$1)","v":696.05},{"$f":"VLOOKUP(DropDownList!$B$47,CntyQuery!$A$171:$GZ$197,DI$1)","v":730.28},{"$f":"VLOOKUP(DropDownList!$B$47,CntyQuery!$A$171:$GZ$197,DJ$1)","v":679.41},{"$f":"VLOOKUP(DropDownList!$B$47,CntyQuery!$A$171:$GZ$197,DK$1)","v":649},{"$f":"VLOOKUP(DropDownList!$B$47,CntyQuery!$A$171:$GZ$197,DL$1)","v":480},{"$f":"VLOOKUP(DropDownList!$B$47,CntyQuery!$A$171:$GZ$197,DM$1)","v":170},{"$f":"VLOOKUP(DropDownList!$B$47,CntyQuery!$A$171:$GZ$197,DN$1)","v":310},{"$f":"VLOOKUP(DropDownList!$B$47,CntyQuery!$A$171:$GZ$197,DO$1)","v":714.69},{"$f":"VLOOKUP(DropDownList!$B$47,CntyQuery!$A$171:$GZ$197,DP$1)","v":707.52},{"$f":"VLOOKUP(DropDownList!$B$47,CntyQuery!$A$171:$GZ$197,DQ$1)","v":809.33},{"$f":"VLOOKUP(DropDownList!$B$47,CntyQuery!$A$171:$GZ$197,DR$1)","v":651.65},{"$f":"VLOOKUP(DropDownList!$B$47,CntyQuery!$A$171:$GZ$197,DS$1)","v":618},{"$f":"VLOOKUP(DropDownList!$B$47,CntyQuery!$A$171:$GZ$197,DT$1)","v":447},{"$f":"VLOOKUP(DropDownList!$B$47,CntyQuery!$A$171:$GZ$197,DU$1)","v":127},{"$f":"VLOOKUP(DropDownList!$B$47,CntyQuery!$A$171:$GZ$197,DV$1)","v":320},{"$f":"VLOOKUP(DropDownList!$B$47,CntyQuery!$A$171:$GZ$197,DW$1)","v":744.13},{"$f":"VLOOKUP(DropDownList!$B$47,CntyQuery!$A$171:$GZ$197,DX$1)","v":758.48},{"$f":"VLOOKUP(DropDownList!$B$47,CntyQuery!$A$171:$GZ$197,DY$1)","v":998.41},{"$f":"VLOOKUP(DropDownList!$B$47,CntyQuery!$A$171:$GZ$197,DZ$1)","v":662.94},{"$f":"VLOOKUP(DropDownList!$B$47,CntyQuery!$A$171:$GZ$197,EA$1)","v":555},{"$f":"VLOOKUP(DropDownList!$B$47,CntyQuery!$A$171:$GZ$197,EB$1)","v":390},{"$f":"VLOOKUP(DropDownList!$B$47,CntyQuery!$A$171:$GZ$197,EC$1)","v":126},{"$f":"VLOOKUP(DropDownList!$B$47,CntyQuery!$A$171:$GZ$197,ED$1)","v":264},{"$f":"VLOOKUP(DropDownList!$B$47,CntyQuery!$A$171:$GZ$197,EE$1)","v":787.98},{"$f":"VLOOKUP(DropDownList!$B$47,CntyQuery!$A$171:$GZ$197,EF$1)","v":810.13},{"$f":"VLOOKUP(DropDownList!$B$47,CntyQuery!$A$171:$GZ$197,EG$1)","v":985.01},{"$f":"VLOOKUP(DropDownList!$B$47,CntyQuery!$A$171:$GZ$197,EH$1)","v":726.91},{"$f":"VLOOKUP(DropDownList!$B$47,CntyQuery!$A$171:$GZ$197,EI$1)","v":704},{"$f":"VLOOKUP(DropDownList!$B$47,CntyQuery!$A$171:$GZ$197,EJ$1)","v":370},{"$f":"VLOOKUP(DropDownList!$B$47,CntyQuery!$A$171:$GZ$197,EK$1)","v":114},{"$f":"VLOOKUP(DropDownList!$B$47,CntyQuery!$A$171:$GZ$197,EL$1)","v":256},{"$f":"VLOOKUP(DropDownList!$B$47,CntyQuery!$A$171:$GZ$197,EM$1)","v":881.97},{"$f":"VLOOKUP(DropDownList!$B$47,CntyQuery!$A$171:$GZ$197,EN$1)","v":877.59},{"$f":"VLOOKUP(DropDownList!$B$47,CntyQuery!$A$171:$GZ$197,EO$1)","v":1084.3599999999999},{"$f":"VLOOKUP(DropDownList!$B$47,CntyQuery!$A$171:$GZ$197,EP$1)","v":785.18},{"$f":"VLOOKUP(DropDownList!$B$47,CntyQuery!$A$171:$GZ$197,EQ$1)","v":741},{"$f":"VLOOKUP(DropDownList!$B$47,CntyQuery!$A$171:$GZ$197,ER$1)","v":394},{"$f":"VLOOKUP(DropDownList!$B$47,CntyQuery!$A$171:$GZ$197,ES$1)","v":348},{"$f":"VLOOKUP(DropDownList!$B$47,CntyQuery!$A$171:$GZ$197,ET$1)","v":117},{"$f":"VLOOKUP(DropDownList!$B$47,CntyQuery!$A$171:$GZ$197,EU$1)","v":277},{"$f":"VLOOKUP(DropDownList!$B$47,CntyQuery!$A$171:$GZ$197,EV$1)","v":851.29},{"$f":"VLOOKUP(DropDownList!$B$47,CntyQuery!$A$171:$GZ$197,EW$1)","v":836.77},{"$f":"VLOOKUP(DropDownList!$B$47,CntyQuery!$A$171:$GZ$197,EX$1)","v":867.73},{"$f":"VLOOKUP(DropDownList!$B$47,CntyQuery!$A$171:$GZ$197,EY$1)","v":1054.58},{"$f":"VLOOKUP(DropDownList!$B$47,CntyQuery!$A$171:$GZ$197,EZ$1)","v":744.63},{"$f":"VLOOKUP(DropDownList!$B$47,CntyQuery!$A$171:$GZ$197,FA$1)","v":716},{"$f":"VLOOKUP(DropDownList!$B$47,CntyQuery!$A$171:$GZ$197,FB$1)","v":391},{"$f":"VLOOKUP(DropDownList!$B$47,CntyQuery!$A$171:$GZ$197,FC$1)","v":325},{"$f":"VLOOKUP(DropDownList!$B$47,CntyQuery!$A$171:$GZ$197,FD$1)","v":120},{"$f":"VLOOKUP(DropDownList!$B$47,CntyQuery!$A$171:$GZ$197,FE$1)","v":271},{"$f":"VLOOKUP(DropDownList!$B$47,CntyQuery!$A$171:$GZ$197,FF$1)","v":951.37},{"$f":"VLOOKUP(DropDownList!$B$47,CntyQuery!$A$171:$GZ$197,FG$1)","v":943.55},{"$f":"VLOOKUP(DropDownList!$B$47,CntyQuery!$A$171:$GZ$197,FH$1)","v":960.79},{"$f":"VLOOKUP(DropDownList!$B$47,CntyQuery!$A$171:$GZ$197,FI$1)","v":1133.03},{"$f":"VLOOKUP(DropDownList!$B$47,CntyQuery!$A$171:$GZ$197,FJ$1)","v":859.35},{"$f":"VLOOKUP(DropDownList!$B$47,CntyQuery!$A$171:$GZ$197,FK$1)","v":792},{"$f":"VLOOKUP(DropDownList!$B$47,CntyQuery!$A$171:$GZ$197,FL$1)","v":460},{"$f":"VLOOKUP(DropDownList!$B$47,CntyQuery!$A$171:$GZ$197,FM$1)","v":333},{"$f":"VLOOKUP(DropDownList!$B$47,CntyQuery!$A$171:$GZ$197,FN$1)","v":123},{"$f":"VLOOKUP(DropDownList!$B$47,CntyQuery!$A$171:$GZ$197,FO$1)","v":337},{"$f":"VLOOKUP(DropDownList!$B$47,CntyQuery!$A$171:$GZ$197,FP$1)","v":909.17},{"$f":"VLOOKUP(DropDownList!$B$47,CntyQuery!$A$171:$GZ$197,FQ$1)","v":895.01},{"$f":"VLOOKUP(DropDownList!$B$47,CntyQuery!$A$171:$GZ$197,FR$1)","v":928.76},{"$f":"VLOOKUP(DropDownList!$B$47,CntyQuery!$A$171:$GZ$197,FS$1)","v":1184.06},{"$f":"VLOOKUP(DropDownList!$B$47,CntyQuery!$A$171:$GZ$197,FT$1)","v":789.1},{"$f":"VLOOKUP(DropDownList!$B$47,CntyQuery!$A$171:$GZ$197,FU$1)","v":842},{"$f":"VLOOKUP(DropDownList!$B$47,CntyQuery!$A$171:$GZ$197,FV$1)","v":503},{"$f":"VLOOKUP(DropDownList!$B$47,CntyQuery!$A$171:$GZ$197,FW$1)","v":339},{"$f":"VLOOKUP(DropDownList!$B$47,CntyQuery!$A$171:$GZ$197,FX$1)","v":125},{"$f":"VLOOKUP(DropDownList!$B$47,CntyQuery!$A$171:$GZ$197,FY$1)","v":378},{"$f":"VLOOKUP(DropDownList!$B$47,CntyQuery!$A$171:$GZ$197,FZ$1)","v":930},{"$f":"VLOOKUP(DropDownList!$B$47,CntyQuery!$A$171:$GZ$197,GA$1)","v":939},{"$f":"VLOOKUP(DropDownList!$B$47,CntyQuery!$A$171:$GZ$197,GB$1)","v":916},{"$f":"VLOOKUP(DropDownList!$B$47,CntyQuery!$A$171:$GZ$197,GC$1)","v":1343},{"$f":"VLOOKUP(DropDownList!$B$47,CntyQuery!$A$171:$GZ$197,GD$1)","v":806},{"$f":"VLOOKUP(DropDownList!$B$47,CntyQuery!$A$171:$GZ$197,GE$1)","v":7}]
[]
[]
[]
[null,"LaborForce1990","LaborForce1991","LaborForce1992","LaborForce1993","LaborForce1994","LaborForce1995","LaborForce1996","LaborForce1997","LaborForce1998","LaborForce1999","LaborForce2000","LaborForce2001","LaborForce2002","LaborForce2003","NumberEmployed1990","NumberEmployed1991","NumberEmployed1992","NumberEmployed1993","NumberEmployed1994","NumberEmployed1995","NumberEmployed1996","NumberEmployed1997","NumberEmployed1998","NumberEmployed1999","NumberEmployed2000","NumberEmployed2001","NumberEmployed2002","NumberEmployed2003","UnempRate1990","UnempRate1991","UnempRate1992","UnempRate1993","UnempRate1994","UnempRate1995","UnempRate1996","UnempRate1997","UnempRate1998","UnempRate1999","UnempRate2000","UnempRate2001","UnempRate2002","UnempRate2003","NumbUnEmployed1990","NumbUnEmployed1991","NumbUnEmployed1992","NumbUnEmployed1993","NumbUnEmployed1994","NumbUnEmployed1995","NumbUnEmployed1996","NumbUnEmployed1997","NumbUnEmployed1998","NumbUnEmployed1999","NumbUnEmployed2000","NumbUnEmployed2001","NumbUnEmployed2002","NumbUnEmployed2003","LaborForce2004","NumberEmployed2004","UnempRate2004","NumbUnEmployed2004","LaborForce2005","NumberEmployed2005","NumbUnEmp2005","UnempRate2005","LaborForce2006","NumberEmployed2006","NumbUnEmp2006","UnempRate2006","LaborForce2007","NumberEmployed2007","NumbUnEmp2007","UnempRate2007","LaborForce2008","NumberEmployed2008","NumbUnEmp2008","UnempRate2008","LaborForce2009","NumberEmployed2009","NumbUnEmp2009","UnempRate2009","LaborForce2010","NumbEmployed2010","NumbUnEmp2010","UnempRate2010","LaborForce2011","NumbEmployed2011","NumbUnEmp2011","UnempRate2011","LaborForce2012","NumbEmployed2012","NumbUnEmp2012","UnempRate2012","LaborForce2013","NumbEmployed2013","NumbUnEmp2013","UnempRate2013","LaborForce2014","NumbEmployed2014","NumbUnEmp2014","UnempRate2014","LaborForce2015","NumbEmployed2015","NumbUnEmp2015","UnempRate2015","LaborForce2016","NumbEmployed2016","NumbUnEmp2016","UnempRate2016","LaborForce2017","NumbEmployed2017","NumbUnEmp2017","UnempRate2017","LaborForce2018","NumbEmployed2018","NumbUnEmp2018","UnempRate2018","LaborForce2019","NumbEmployed2019","NumbUnEmp2019","UnempRate2019","LaborForce2020","NumbEmployed2020","NumbUnEmp2020","UnempRate2020","LaborForce2021","NumbEmployed2021","NumbUnEmp2021","UnempRate2021"]
[{"$f":"VLOOKUP(DropDownList!$B$47,CntyQryCensus!$A$4:$EF$46,A$1)","v":"Allenstown"},{"$f":"VLOOKUP(DropDownList!$B$47,CntyQuery!$A$220:$EF$229,B$1)","v":{"$error":"#N/A"}},{"$f":"VLOOKUP(DropDownList!$B$47,CntyQuery!$A$220:$EF$229,C$1)","v":{"$error":"#N/A"}},{"$f":"VLOOKUP(DropDownList!$B$47,CntyQuery!$A$220:$EF$229,D$1)","v":{"$error":"#N/A"}},{"$f":"VLOOKUP(DropDownList!$B$47,CntyQuery!$A$220:$EF$229,E$1)","v":{"$error":"#N/A"}},{"$f":"VLOOKUP(DropDownList!$B$47,CntyQuery!$A$220:$EF$229,F$1)","v":{"$error":"#N/A"}},{"$f":"VLOOKUP(DropDownList!$B$47,CntyQuery!$A$220:$EF$229,G$1)","v":{"$error":"#N/A"}},{"$f":"VLOOKUP(DropDownList!$B$47,CntyQuery!$A$220:$EF$229,H$1)","v":{"$error":"#N/A"}},{"$f":"VLOOKUP(DropDownList!$B$47,CntyQuery!$A$220:$EF$229,I$1)","v":{"$error":"#N/A"}},{"$f":"VLOOKUP(DropDownList!$B$47,CntyQuery!$A$220:$EF$229,J$1)","v":{"$error":"#N/A"}},{"$f":"VLOOKUP(DropDownList!$B$47,CntyQuery!$A$220:$EF$229,K$1)","v":{"$error":"#N/A"}},{"$f":"VLOOKUP(DropDownList!$B$47,CntyQuery!$A$220:$EF$229,L$1)","v":{"$error":"#N/A"}},{"$f":"VLOOKUP(DropDownList!$B$47,CntyQuery!$A$220:$EF$229,M$1)","v":{"$error":"#N/A"}},{"$f":"VLOOKUP(DropDownList!$B$47,CntyQuery!$A$220:$EF$229,N$1)","v":{"$error":"#N/A"}},{"$f":"VLOOKUP(DropDownList!$B$47,CntyQuery!$A$220:$EF$229,O$1)","v":{"$error":"#N/A"}},{"$f":"VLOOKUP(DropDownList!$B$47,CntyQuery!$A$220:$EF$229,P$1)","v":{"$error":"#N/A"}},{"$f":"VLOOKUP(DropDownList!$B$47,CntyQuery!$A$220:$EF$229,Q$1)","v":{"$error":"#N/A"}},{"$f":"VLOOKUP(DropDownList!$B$47,CntyQuery!$A$220:$EF$229,R$1)","v":{"$error":"#N/A"}},{"$f":"VLOOKUP(DropDownList!$B$47,CntyQuery!$A$220:$EF$229,S$1)","v":{"$error":"#N/A"}},{"$f":"VLOOKUP(DropDownList!$B$47,CntyQuery!$A$220:$EF$229,T$1)","v":{"$error":"#N/A"}},{"$f":"VLOOKUP(DropDownList!$B$47,CntyQuery!$A$220:$EF$229,U$1)","v":{"$error":"#N/A"}},{"$f":"VLOOKUP(DropDownList!$B$47,CntyQuery!$A$220:$EF$229,V$1)","v":{"$error":"#N/A"}},{"$f":"VLOOKUP(DropDownList!$B$47,CntyQuery!$A$220:$EF$229,W$1)","v":{"$error":"#N/A"}},{"$f":"VLOOKUP(DropDownList!$B$47,CntyQuery!$A$220:$EF$229,X$1)","v":{"$error":"#N/A"}},{"$f":"VLOOKUP(DropDownList!$B$47,CntyQuery!$A$220:$EF$229,Y$1)","v":{"$error":"#N/A"}},{"$f":"VLOOKUP(DropDownList!$B$47,CntyQuery!$A$220:$EF$229,Z$1)","v":{"$error":"#N/A"}},{"$f":"VLOOKUP(DropDownList!$B$47,CntyQuery!$A$220:$EF$229,AA$1)","v":{"$error":"#N/A"}},{"$f":"VLOOKUP(DropDownList!$B$47,CntyQuery!$A$220:$EF$229,AB$1)","v":{"$error":"#N/A"}},{"$f":"VLOOKUP(DropDownList!$B$47,CntyQuery!$A$220:$EF$229,AC$1)","v":{"$error":"#N/A"}},{"$f":"VLOOKUP(DropDownList!$B$47,CntyQuery!$A$220:$EF$229,AD$1)","v":{"$error":"#N/A"}},{"$f":"VLOOKUP(DropDownList!$B$47,CntyQuery!$A$220:$EF$229,AE$1)","v":{"$error":"#N/A"}},{"$f":"VLOOKUP(DropDownList!$B$47,CntyQuery!$A$220:$EF$229,AF$1)","v":{"$error":"#N/A"}},{"$f":"VLOOKUP(DropDownList!$B$47,CntyQuery!$A$220:$EF$229,AG$1)","v":{"$error":"#N/A"}},{"$f":"VLOOKUP(DropDownList!$B$47,CntyQuery!$A$220:$EF$229,AH$1)","v":{"$error":"#N/A"}},{"$f":"VLOOKUP(DropDownList!$B$47,CntyQuery!$A$220:$EF$229,AI$1)","v":{"$error":"#N/A"}},{"$f":"VLOOKUP(DropDownList!$B$47,CntyQuery!$A$220:$EF$229,AJ$1)","v":{"$error":"#N/A"}},{"$f":"VLOOKUP(DropDownList!$B$47,CntyQuery!$A$220:$EF$229,AK$1)","v":{"$error":"#N/A"}},{"$f":"VLOOKUP(DropDownList!$B$47,CntyQuery!$A$220:$EF$229,AL$1)","v":{"$error":"#N/A"}},{"$f":"VLOOKUP(DropDownList!$B$47,CntyQuery!$A$220:$EF$229,AM$1)","v":{"$error":"#N/A"}},{"$f":"VLOOKUP(DropDownList!$B$47,CntyQuery!$A$220:$EF$229,AN$1)","v":{"$error":"#N/A"}},{"$f":"VLOOKUP(DropDownList!$B$47,CntyQuery!$A$220:$EF$229,AO$1)","v":{"$error":"#N/A"}},{"$f":"VLOOKUP(DropDownList!$B$47,CntyQuery!$A$220:$EF$229,AP$1)","v":{"$error":"#N/A"}},{"$f":"VLOOKUP(DropDownList!$B$47,CntyQuery!$A$220:$EF$229,AQ$1)","v":{"$error":"#N/A"}},{"$f":"VLOOKUP(DropDownList!$B$47,CntyQuery!$A$220:$EF$229,AR$1)","v":{"$error":"#N/A"}},{"$f":"VLOOKUP(DropDownList!$B$47,CntyQuery!$A$220:$EF$229,AS$1)","v":{"$error":"#N/A"}},{"$f":"VLOOKUP(DropDownList!$B$47,CntyQuery!$A$220:$EF$229,AT$1)","v":{"$error":"#N/A"}},{"$f":"VLOOKUP(DropDownList!$B$47,CntyQuery!$A$220:$EF$229,AU$1)","v":{"$error":"#N/A"}},{"$f":"VLOOKUP(DropDownList!$B$47,CntyQuery!$A$220:$EF$229,AV$1)","v":{"$error":"#N/A"}},{"$f":"VLOOKUP(DropDownList!$B$47,CntyQuery!$A$220:$EF$229,AW$1)","v":{"$error":"#N/A"}},{"$f":"VLOOKUP(DropDownList!$B$47,CntyQuery!$A$220:$EF$229,AX$1)","v":{"$error":"#N/A"}},{"$f":"VLOOKUP(DropDownList!$B$47,CntyQuery!$A$220:$EF$229,AY$1)","v":{"$error":"#N/A"}},{"$f":"VLOOKUP(DropDownList!$B$47,CntyQuery!$A$220:$EF$229,AZ$1)","v":{"$error":"#N/A"}},{"$f":"VLOOKUP(DropDownList!$B$47,CntyQuery!$A$220:$EF$229,BA$1)","v":{"$error":"#N/A"}},{"$f":"VLOOKUP(DropDownList!$B$47,CntyQuery!$A$220:$EF$229,BB$1)","v":{"$error":"#N/A"}},{"$f":"VLOOKUP(DropDownList!$B$47,CntyQuery!$A$220:$EF$229,BC$1)","v":{"$error":"#N/A"}},{"$f":"VLOOKUP(DropDownList!$B$47,CntyQuery!$A$220:$EF$229,BD$1)","v":{"$error":"#N/A"}},{"$f":"VLOOKUP(DropDownList!$B$47,CntyQuery!$A$220:$EF$229,BE$1)","v":{"$error":"#N/A"}},{"$f":"VLOOKUP(DropDownList!$B$47,CntyQuery!$A$220:$EF$229,BF$1)","v":{"$error":"#N/A"}},{"$f":"VLOOKUP(DropDownList!$B$47,CntyQuery!$A$220:$EF$229,BG$1)","v":{"$error":"#N/A"}},{"$f":"VLOOKUP(DropDownList!$B$47,CntyQuery!$A$220:$EF$229,BH$1)","v":{"$error":"#N/A"}},{"$f":"VLOOKUP(DropDownList!$B$47,CntyQuery!$A$220:$EF$229,BI$1)","v":{"$error":"#N/A"}},{"$f":"VLOOKUP(DropDownList!$B$47,CntyQuery!$A$220:$EF$229,BJ$1)","v":{"$error":"#N/A"}},{"$f":"VLOOKUP(DropDownList!$B$47,CntyQuery!$A$220:$EF$229,BK$1)","v":{"$error":"#N/A"}},{"$f":"VLOOKUP(DropDownList!$B$47,CntyQuery!$A$220:$EF$229,BL$1)","v":{"$error":"#N/A"}},{"$f":"VLOOKUP(DropDownList!$B$47,CntyQuery!$A$220:$EF$229,BM$1)","v":{"$error":"#N/A"}},{"$f":"VLOOKUP(DropDownList!$B$47,CntyQuery!$A$220:$EF$229,BN$1)","v":{"$error":"#N/A"}},{"$f":"VLOOKUP(DropDownList!$B$47,CntyQuery!$A$220:$EF$229,BO$1)","v":{"$error":"#N/A"}},{"$f":"VLOOKUP(DropDownList!$B$47,CntyQuery!$A$220:$EF$229,BP$1)","v":{"$error":"#N/A"}},{"$f":"VLOOKUP(DropDownList!$B$47,CntyQuery!$A$220:$EF$229,BQ$1)","v":{"$error":"#N/A"}},{"$f":"VLOOKUP(DropDownList!$B$47,CntyQuery!$A$220:$EF$229,BR$1)","v":{"$error":"#N/A"}},{"$f":"VLOOKUP(DropDownList!$B$47,CntyQuery!$A$220:$EF$229,BS$1)","v":{"$error":"#N/A"}},{"$f":"VLOOKUP(DropDownList!$B$47,CntyQuery!$A$220:$EF$229,BT$1)","v":{"$error":"#N/A"}},{"$f":"VLOOKUP(DropDownList!$B$47,CntyQuery!$A$220:$EF$229,BU$1)","v":{"$error":"#N/A"}},{"$f":"VLOOKUP(DropDownList!$B$47,CntyQuery!$A$220:$EF$229,BV$1)","v":{"$error":"#N/A"}},{"$f":"VLOOKUP(DropDownList!$B$47,CntyQuery!$A$220:$EF$229,BW$1)","v":{"$error":"#N/A"}},{"$f":"VLOOKUP(DropDownList!$B$47,CntyQuery!$A$220:$EF$229,BX$1)","v":{"$error":"#N/A"}},{"$f":"VLOOKUP(DropDownList!$B$47,CntyQuery!$A$220:$EF$229,BY$1)","v":{"$error":"#N/A"}},{"$f":"VLOOKUP(DropDownList!$B$47,CntyQuery!$A$220:$EF$229,BZ$1)","v":{"$error":"#N/A"}},{"$f":"VLOOKUP(DropDownList!$B$47,CntyQuery!$A$220:$EF$229,CA$1)","v":{"$error":"#N/A"}},{"$f":"VLOOKUP(DropDownList!$B$47,CntyQuery!$A$220:$EF$229,CB$1)","v":{"$error":"#N/A"}},{"$f":"VLOOKUP(DropDownList!$B$47,CntyQuery!$A$220:$EF$229,CC$1)","v":{"$error":"#N/A"}},{"$f":"VLOOKUP(DropDownList!$B$47,CntyQuery!$A$220:$EF$229,CD$1)","v":{"$error":"#N/A"}},{"$f":"VLOOKUP(DropDownList!$B$47,CntyQuery!$A$220:$EF$229,CE$1)","v":{"$error":"#N/A"}},{"$f":"VLOOKUP(DropDownList!$B$47,CntyQuery!$A$220:$EF$229,CF$1)","v":{"$error":"#N/A"}},{"$f":"VLOOKUP(DropDownList!$B$47,CntyQuery!$A$220:$EF$229,CG$1)","v":{"$error":"#N/A"}},{"$f":"VLOOKUP(DropDownList!$B$47,CntyQuery!$A$220:$EF$229,CH$1)","v":{"$error":"#N/A"}},{"$f":"VLOOKUP(DropDownList!$B$47,CntyQuery!$A$220:$EF$229,CI$1)","v":{"$error":"#N/A"}},{"$f":"VLOOKUP(DropDownList!$B$47,CntyQuery!$A$220:$EF$229,CJ$1)","v":{"$error":"#N/A"}},{"$f":"VLOOKUP(DropDownList!$B$47,CntyQuery!$A$220:$EF$229,CK$1)","v":{"$error":"#N/A"}},{"$f":"VLOOKUP(DropDownList!$B$47,CntyQuery!$A$220:$EF$229,CL$1)","v":{"$error":"#N/A"}},{"$f":"VLOOKUP(DropDownList!$B$47,CntyQuery!$A$220:$EF$229,CM$1)","v":{"$error":"#N/A"}},{"$f":"VLOOKUP(DropDownList!$B$47,CntyQuery!$A$220:$EF$229,CN$1)","v":{"$error":"#N/A"}},{"$f":"VLOOKUP(DropDownList!$B$47,CntyQuery!$A$220:$EF$229,CO$1)","v":{"$error":"#N/A"}},{"$f":"VLOOKUP(DropDownList!$B$47,CntyQuery!$A$220:$EF$229,CP$1)","v":{"$error":"#N/A"}},{"$f":"VLOOKUP(DropDownList!$B$47,CntyQuery!$A$220:$EF$229,CQ$1)","v":{"$error":"#N/A"}},{"$f":"VLOOKUP(DropDownList!$B$47,CntyQuery!$A$220:$EF$229,CR$1)","v":{"$error":"#N/A"}},{"$f":"VLOOKUP(DropDownList!$B$47,CntyQuery!$A$220:$EF$229,CS$1)","v":{"$error":"#N/A"}},{"$f":"VLOOKUP(DropDownList!$B$47,CntyQuery!$A$220:$EF$229,CT$1)","v":{"$error":"#N/A"}},{"$f":"VLOOKUP(DropDownList!$B$47,CntyQuery!$A$220:$EF$229,CU$1)","v":{"$error":"#N/A"}},{"$f":"VLOOKUP(DropDownList!$B$47,CntyQuery!$A$220:$EF$229,CV$1)","v":{"$error":"#N/A"}},{"$f":"VLOOKUP(DropDownList!$B$47,CntyQuery!$A$220:$EF$229,CW$1)","v":{"$error":"#N/A"}},{"$f":"VLOOKUP(DropDownList!$B$47,CntyQuery!$A$220:$EF$229,CX$1)","v":{"$error":"#N/A"}},{"$f":"VLOOKUP(DropDownList!$B$47,CntyQuery!$A$220:$EF$229,CY$1)","v":{"$error":"#N/A"}},{"$f":"VLOOKUP(DropDownList!$B$47,CntyQuery!$A$220:$EF$229,CZ$1)","v":{"$error":"#N/A"}},{"$f":"VLOOKUP(DropDownList!$B$47,CntyQuery!$A$220:$EF$229,DA$1)","v":{"$error":"#N/A"}},{"$f":"VLOOKUP(DropDownList!$B$47,CntyQuery!$A$220:$EF$229,DB$1)","v":{"$error":"#N/A"}},{"$f":"VLOOKUP(DropDownList!$B$47,CntyQuery!$A$220:$EF$229,DC$1)","v":{"$error":"#N/A"}},{"$f":"VLOOKUP(DropDownList!$B$47,CntyQuery!$A$220:$EF$229,DD$1)","v":{"$error":"#N/A"}},{"$f":"VLOOKUP(DropDownList!$B$47,CntyQuery!$A$220:$EF$229,DE$1)","v":{"$error":"#N/A"}},{"$f":"VLOOKUP(DropDownList!$B$47,CntyQuery!$A$220:$EF$229,DF$1)","v":{"$error":"#N/A"}},{"$f":"VLOOKUP(DropDownList!$B$47,CntyQuery!$A$220:$EF$229,DG$1)","v":{"$error":"#N/A"}},{"$f":"VLOOKUP(DropDownList!$B$47,CntyQuery!$A$220:$EF$229,DH$1)","v":{"$error":"#N/A"}},{"$f":"VLOOKUP(DropDownList!$B$47,CntyQuery!$A$220:$EF$229,DI$1)","v":{"$error":"#N/A"}},{"$f":"VLOOKUP(DropDownList!$B$47,CntyQuery!$A$220:$EF$229,DJ$1)","v":{"$error":"#N/A"}},{"$f":"VLOOKUP(DropDownList!$B$47,CntyQuery!$A$220:$EF$229,DK$1)","v":{"$error":"#N/A"}},{"$f":"VLOOKUP(DropDownList!$B$47,CntyQuery!$A$220:$EF$229,DL$1)","v":{"$error":"#N/A"}},{"$f":"VLOOKUP(DropDownList!$B$47,CntyQuery!$A$220:$EF$229,DM$1)","v":{"$error":"#N/A"}},{"$f":"VLOOKUP(DropDownList!$B$47,CntyQuery!$A$220:$EF$229,DN$1)","v":{"$error":"#N/A"}},{"$f":"VLOOKUP(DropDownList!$B$47,CntyQuery!$A$220:$EF$229,DO$1)","v":{"$error":"#N/A"}},{"$f":"VLOOKUP(DropDownList!$B$47,CntyQuery!$A$220:$EF$229,DP$1)","v":{"$error":"#N/A"}},{"$f":"VLOOKUP(DropDownList!$B$47,CntyQuery!$A$220:$EF$229,DQ$1)","v":{"$error":"#N/A"}},{"$f":"VLOOKUP(DropDownList!$B$47,CntyQuery!$A$220:$EF$229,DR$1)","v":{"$error":"#N/A"}},{"$f":"VLOOKUP(DropDownList!$B$47,CntyQuery!$A$220:$EF$229,DS$1)","v":{"$error":"#N/A"}},{"$f":"VLOOKUP(DropDownList!$B$47,CntyQuery!$A$220:$EF$229,DT$1)","v":{"$error":"#N/A"}},{"$f":"VLOOKUP(DropDownList!$B$47,CntyQuery!$A$220:$EF$229,DU$1)","v":{"$error":"#N/A"}},{"$f":"VLOOKUP(DropDownList!$B$47,CntyQuery!$A$220:$EF$229,DV$1)","v":{"$error":"#N/A"}},{"$f":"VLOOKUP(DropDownList!$B$47,CntyQuery!$A$220:$EF$229,DW$1)","v":{"$error":"#N/A"}},{"$f":"VLOOKUP(DropDownList!$B$47,CntyQuery!$A$220:$EF$229,DX$1)","v":{"$error":"#N/A"}},{"$f":"VLOOKUP(DropDownList!$B$47,CntyQuery!$A$220:$EF$229,DY$1)","v":{"$error":"#N/A"}}]
[]
[null,null,null,null,null,null,null,null,null,null,null,null,{"$f":"IF((CntyDataLink!$BL$25)=\"n\",NA(),IF(VALUE(CntyDataLink!$BL$25)=\"\",NA(),VALUE(CntyDataLink!$BL$25)))","v":610.47}]
["Census 2000   -           Query Name:  TownAllQuery3",2,{"$f":"B33+1","v":3},{"$f":"C33+1","v":4},5,6,7,8,9,10,11,12,13,14,15,16,17,18,19,20,21,22,23,24,25,26,27,28,29,30,31,32,33,34,35,36,37,38,39,40,41,42,43,44,45,46,47,48,49,50,51,52,53,54,55,56,57,58,59,60,61,62,63,64,65,66,67,{"$f":"BO33+1","v":68},69,70,71,72,73,74,75,76,77,78,79,80,81,82,83,84,85,86,87,88,89,90,91,92,93,94,95,96,97,98,99,100,101,102]
["NAME","COUNTY","LOGRECNO","COUSUB","TRACT","AREALAND","AREAWATR","POP100","HU100","2000Population","PopOfOneRace","PopWhite","PopBlack","PopAmIndian","PopAsian","PopHawaiian","PopOtherRace","Pop2orMoreRaces","PopHispanicLatino","PopNotHispanicLatino","PopMale","PopMale<15","PopMale15to24","PopMale25to34","PopMale35to44","PopMale45to54","PopMale55to64","PopMale65to74","PopMale75to84","PopMale85andOver","PopFemale","PopFemale<15","PopFemale15to24","PopFemale25to34","PopFemale35t44","PopFemale45to54","PopFemale55to64","PopFemale65to74","PopFemale75to84","PopFemale85andOver","Households2000","PopInHH","AvgHHSize","HHs1Person","HHs2orMorePerson","HHsFamily","HHMarriedCoupleFam","HHSingleParentFam","HHsNonFamily","Families","PopInFam","AvgFamSize","TotHsUnits","OccHsUnits","OwnerOccHU","RenterOccHU","VctHsUnits","VctHUForRent","VctHUForSale","VctHUSeasonal","PopInOccHU","PopInOwnOccHU","PopInRntOccHU","AvgHHSize2","AvgHHSizOwnOcc","AvgHHSizRntOcc","OwnOccWhtHsHldr","OwnOccBlkHsHldr","OwnOccAmIHsHldr","OwnOccAsnHsHldr","OwnOccPIsHsHldr","OwnOccORHsHldr","OwnOcc2RcHsHldr","RntOccWhtHsHldr","RntOccBlkHsHldr","RntOccAmIHsHldr","RntOccAsnHsHldr","RntOccPIsHsHldr","RntOccORHsHldr","RntOcc2RcHsHldr","OwnOccHH15to24","OwnOccHH25to34","OwnOccHH35to44","OwnOccHH45to54","OwnOccHH55to64","OwnOccHH65to74","OwnOccHH75to84","OwnOccHH85Over","RntOccHH15to24","RntOccHH25to34","RntOccHH35to44","RntOccHH45to54","RntOccHH55to64","RntOccHH65to74","RntOccHH75to84","RntOccHH85Over","P27TotalPop","P27PopInHseHlds","P27PopInGrpQtrs","Median Age Total","Median Age (Male)","Median Age (Female)"]
[{"$f":"VLOOKUP(DropDownList!$B$47,CntyQryCensus!$A$4:$CW$46,A$1)","v":"Allenstown"},{"$f":"VLOOKUP(DropDownList!$B$47,CntyQryCensus!$A$4:$CW$46,B$1)","v":"013"},{"$f":"VLOOKUP(DropDownList!$B$47,CntyQryCensus!$A$4:$CW$46,C$1)","v":"0022469"},{"$f":"VLOOKUP(DropDownList!$B$47,CntyQryCensus!$A$4:$CW$46,D$1)","v":"00660"},{"$f":"VLOOKUP(DropDownList!$B$47,CntyQryCensus!$A$4:$CW$46,E$1)","v":""},{"$f":"VLOOKUP(DropDownList!$B$47,CntyQryCensus!$A$4:$CW$46,F$1)","v":"      53161407"},{"$f":"VLOOKUP(DropDownList!$B$47,CntyQryCensus!$A$4:$CW$46,G$1)","v":"        277792"},{"$f":"VLOOKUP(DropDownList!$B$47,CntyQryCensus!$A$4:$CW$46,H$1)","v":4843},{"$f":"VLOOKUP(DropDownList!$B$47,CntyQryCensus!$A$4:$CW$46,I$1)","v":1962},{"$f":"VLOOKUP(DropDownList!$B$47,CntyQryCensus!$A$4:$CW$46,J$1)","v":4843},{"$f":"VLOOKUP(DropDownList!$B$47,CntyQryCensus!$A$4:$CW$46,K$1)","v":4804},{"$f":"VLOOKUP(DropDownList!$B$47,CntyQryCensus!$A$4:$CW$46,L$1)","v":4738},{"$f":"VLOOKUP(DropDownList!$B$47,CntyQryCensus!$A$4:$CW$46,M$1)","v":24},{"$f":"VLOOKUP(DropDownList!$B$47,CntyQryCensus!$A$4:$CW$46,N$1)","v":11},{"$f":"VLOOKUP(DropDownList!$B$47,CntyQryCensus!$A$4:$CW$46,O$1)","v":18},{"$f":"VLOOKUP(DropDownList!$B$47,CntyQryCensus!$A$4:$CW$46,P$1)","v":0},{"$f":"VLOOKUP(DropDownList!$B$47,CntyQryCensus!$A$4:$CW$46,Q$1)","v":13},{"$f":"VLOOKUP(DropDownList!$B$47,CntyQryCensus!$A$4:$CW$46,R$1)","v":39},{"$f":"VLOOKUP(DropDownList!$B$47,CntyQryCensus!$A$4:$CW$46,S$1)","v":57},{"$f":"VLOOKUP(DropDownList!$B$47,CntyQryCensus!$A$4:$CW$46,T$1)","v":4786},{"$f":"VLOOKUP(DropDownList!$B$47,CntyQryCensus!$A$4:$CW$46,U$1)","v":2343},{"$f":"VLOOKUP(DropDownList!$B$47,CntyQryCensus!$A$4:$CW$46,V$1)","v":565},{"$f":"VLOOKUP(DropDownList!$B$47,CntyQryCensus!$A$4:$CW$46,W$1)","v":266},{"$f":"VLOOKUP(DropDownList!$B$47,CntyQryCensus!$A$4:$CW$46,X$1)","v":347},{"$f":"VLOOKUP(DropDownList!$B$47,CntyQryCensus!$A$4:$CW$46,Y$1)","v":477},{"$f":"VLOOKUP(DropDownList!$B$47,CntyQryCensus!$A$4:$CW$46,Z$1)","v":318},{"$f":"VLOOKUP(DropDownList!$B$47,CntyQryCensus!$A$4:$CW$46,AA$1)","v":192},{"$f":"VLOOKUP(DropDownList!$B$47,CntyQryCensus!$A$4:$CW$46,AB$1)","v":109},{"$f":"VLOOKUP(DropDownList!$B$47,CntyQryCensus!$A$4:$CW$46,AC$1)","v":62},{"$f":"VLOOKUP(DropDownList!$B$47,CntyQryCensus!$A$4:$CW$46,AD$1)","v":7},{"$f":"VLOOKUP(DropDownList!$B$47,CntyQryCensus!$A$4:$CW$46,AE$1)","v":2500},{"$f":"VLOOKUP(DropDownList!$B$47,CntyQryCensus!$A$4:$CW$46,AF$1)","v":563},{"$f":"VLOOKUP(DropDownList!$B$47,CntyQryCensus!$A$4:$CW$46,AG$1)","v":251},{"$f":"VLOOKUP(DropDownList!$B$47,CntyQryCensus!$A$4:$CW$46,AH$1)","v":387},{"$f":"VLOOKUP(DropDownList!$B$47,CntyQryCensus!$A$4:$CW$46,AI$1)","v":450},{"$f":"VLOOKUP(DropDownList!$B$47,CntyQryCensus!$A$4:$CW$46,AJ$1)","v":313},{"$f":"VLOOKUP(DropDownList!$B$47,CntyQryCensus!$A$4:$CW$46,AK$1)","v":201},{"$f":"VLOOKUP(DropDownList!$B$47,CntyQryCensus!$A$4:$CW$46,AL$1)","v":153},{"$f":"VLOOKUP(DropDownList!$B$47,CntyQryCensus!$A$4:$CW$46,AM$1)","v":127},{"$f":"VLOOKUP(DropDownList!$B$47,CntyQryCensus!$A$4:$CW$46,AN$1)","v":55},{"$f":"VLOOKUP(DropDownList!$B$47,CntyQryCensus!$A$4:$CW$46,AO$1)","v":1902},{"$f":"VLOOKUP(DropDownList!$B$47,CntyQryCensus!$A$4:$CW$46,AP$1)","v":4808},{"$f":"VLOOKUP(DropDownList!$B$47,CntyQryCensus!$A$4:$CW$46,AQ$1)","v":2.5299999999999998},{"$f":"VLOOKUP(DropDownList!$B$47,CntyQryCensus!$A$4:$CW$46,AR$1)","v":517},{"$f":"VLOOKUP(DropDownList!$B$47,CntyQryCensus!$A$4:$CW$46,AS$1)","v":1385},{"$f":"VLOOKUP(DropDownList!$B$47,CntyQryCensus!$A$4:$CW$46,AT$1)","v":1254},{"$f":"VLOOKUP(DropDownList!$B$47,CntyQryCensus!$A$4:$CW$46,AU$1)","v":965},{"$f":"VLOOKUP(DropDownList!$B$47,CntyQryCensus!$A$4:$CW$46,AV$1)","v":289},{"$f":"VLOOKUP(DropDownList!$B$47,CntyQryCensus!$A$4:$CW$46,AW$1)","v":131},{"$f":"VLOOKUP(DropDownList!$B$47,CntyQryCensus!$A$4:$CW$46,AX$1)","v":1254},{"$f":"VLOOKUP(DropDownList!$B$47,CntyQryCensus!$A$4:$CW$46,AY$1)","v":3831},{"$f":"VLOOKUP(DropDownList!$B$47,CntyQryCensus!$A$4:$CW$46,AZ$1)","v":3.06},{"$f":"VLOOKUP(DropDownList!$B$47,CntyQryCensus!$A$4:$CW$46,BA$1)","v":1962},{"$f":"VLOOKUP(DropDownList!$B$47,CntyQryCensus!$A$4:$CW$46,BB$1)","v":1902},{"$f":"VLOOKUP(DropDownList!$B$47,CntyQryCensus!$A$4:$CW$46,BC$1)","v":1356},{"$f":"VLOOKUP(DropDownList!$B$47,CntyQryCensus!$A$4:$CW$46,BD$1)","v":546},{"$f":"VLOOKUP(DropDownList!$B$47,CntyQryCensus!$A$4:$CW$46,BE$1)","v":60},{"$f":"VLOOKUP(DropDownList!$B$47,CntyQryCensus!$A$4:$CW$46,BF$1)","v":6},{"$f":"VLOOKUP(DropDownList!$B$47,CntyQryCensus!$A$4:$CW$46,BG$1)","v":7},{"$f":"VLOOKUP(DropDownList!$B$47,CntyQryCensus!$A$4:$CW$46,BH$1)","v":23},{"$f":"VLOOKUP(DropDownList!$B$47,CntyQryCensus!$A$4:$CW$46,BI$1)","v":4808},{"$f":"VLOOKUP(DropDownList!$B$47,CntyQryCensus!$A$4:$CW$46,BJ$1)","v":3736},{"$f":"VLOOKUP(DropDownList!$B$47,CntyQryCensus!$A$4:$CW$46,BK$1)","v":1072},{"$f":"VLOOKUP(DropDownList!$B$47,CntyQryCensus!$A$4:$CW$46,BL$1)","v":2.5299999999999998},{"$f":"VLOOKUP(DropDownList!$B$47,CntyQryCensus!$A$4:$CW$46,BM$1)","v":2.76},{"$f":"VLOOKUP(DropDownList!$B$47,CntyQryCensus!$A$4:$CW$46,BN$1)","v":1.96},{"$f":"VLOOKUP(DropDownList!$B$47,CntyQryCensus!$A$4:$CW$46,BO$1)","v":1335},{"$f":"VLOOKUP(DropDownList!$B$47,CntyQryCensus!$A$4:$CW$46,BP$1)","v":2},{"$f":"VLOOKUP(DropDownList!$B$47,CntyQryCensus!$A$4:$CW$46,BQ$1)","v":3},{"$f":"VLOOKUP(DropDownList!$B$47,CntyQryCensus!$A$4:$CW$46,BR$1)","v":4},{"$f":"VLOOKUP(DropDownList!$B$47,CntyQryCensus!$A$4:$CW$46,BS$1)","v":0},{"$f":"VLOOKUP(DropDownList!$B$47,CntyQryCensus!$A$4:$CW$46,BT$1)","v":3},{"$f":"VLOOKUP(DropDownList!$B$47,CntyQryCensus!$A$4:$CW$46,BU$1)","v":9},{"$f":"VLOOKUP(DropDownList!$B$47,CntyQryCensus!$A$4:$CW$46,BV$1)","v":532},{"$f":"VLOOKUP(DropDownList!$B$47,CntyQryCensus!$A$4:$CW$46,BW$1)","v":4},{"$f":"VLOOKUP(DropDownList!$B$47,CntyQryCensus!$A$4:$CW$46,BX$1)","v":2},{"$f":"VLOOKUP(DropDownList!$B$47,CntyQryCensus!$A$4:$CW$46,BY$1)","v":4},{"$f":"VLOOKUP(DropDownList!$B$47,CntyQryCensus!$A$4:$CW$46,BZ$1)","v":0},{"$f":"VLOOKUP(DropDownList!$B$47,CntyQryCensus!$A$4:$CW$46,CA$1)","v":0},{"$f":"VLOOKUP(DropDownList!$B$47,CntyQryCensus!$A$4:$CW$46,CB$1)","v":4},{"$f":"VLOOKUP(DropDownList!$B$47,CntyQryCensus!$A$4:$CW$46,CC$1)","v":27},{"$f":"VLOOKUP(DropDownList!$B$47,CntyQryCensus!$A$4:$CW$46,CD$1)","v":225},{"$f":"VLOOKUP(DropDownList!$B$47,CntyQryCensus!$A$4:$CW$46,CE$1)","v":393},{"$f":"VLOOKUP(DropDownList!$B$47,CntyQryCensus!$A$4:$CW$46,CF$1)","v":294},{"$f":"VLOOKUP(DropDownList!$B$47,CntyQryCensus!$A$4:$CW$46,CG$1)","v":188},{"$f":"VLOOKUP(DropDownList!$B$47,CntyQryCensus!$A$4:$CW$46,CH$1)","v":143},{"$f":"VLOOKUP(DropDownList!$B$47,CntyQryCensus!$A$4:$CW$46,CI$1)","v":68},{"$f":"VLOOKUP(DropDownList!$B$47,CntyQryCensus!$A$4:$CW$46,CJ$1)","v":18},{"$f":"VLOOKUP(DropDownList!$B$47,CntyQryCensus!$A$4:$CW$46,CK$1)","v":37},{"$f":"VLOOKUP(DropDownList!$B$47,CntyQryCensus!$A$4:$CW$46,CL$1)","v":133},{"$f":"VLOOKUP(DropDownList!$B$47,CntyQryCensus!$A$4:$CW$46,CM$1)","v":127},{"$f":"VLOOKUP(DropDownList!$B$47,CntyQryCensus!$A$4:$CW$46,CN$1)","v":66},{"$f":"VLOOKUP(DropDownList!$B$47,CntyQryCensus!$A$4:$CW$46,CO$1)","v":43},{"$f":"VLOOKUP(DropDownList!$B$47,CntyQryCensus!$A$4:$CW$46,CP$1)","v":40},{"$f":"VLOOKUP(DropDownList!$B$47,CntyQryCensus!$A$4:$CW$46,CQ$1)","v":76},{"$f":"VLOOKUP(DropDownList!$B$47,CntyQryCensus!$A$4:$CW$46,CR$1)","v":24},{"$f":"VLOOKUP(DropDownList!$B$47,CntyQryCensus!$A$4:$CW$46,CS$1)","v":4843},{"$f":"VLOOKUP(DropDownList!$B$47,CntyQryCensus!$A$4:$CW$46,CT$1)","v":4808},{"$f":"VLOOKUP(DropDownList!$B$47,CntyQryCensus!$A$4:$CW$46,CU$1)","v":35},{"$f":"VLOOKUP(DropDownList!$B$47,CntyQryCensus!$A$4:$CW$46,CV$1)","v":35.5},{"$f":"VLOOKUP(DropDownList!$B$47,CntyQryCensus!$A$4:$CW$46,CW$1)","v":34.9},{"$f":"VLOOKUP(DropDownList!$B$47,CntyQryCensus!$A$4:$CW$46,CX$1)","v":{"$error":"#REF!"}}]
[]
[]
["Census 2000 DemoProfile Sample Data Tables 2&3   -  DPTab23TownQry"]
["NAME","COUSUB","AREANAME","PopInSchool","Preschool","Kindergarten","Elementary","HighSchool","College","Pop25andOver","HighSchoolGrad","SomeCollege","AssocDegree","BachelDegree","GradDegree","HSGradorHigher","CollegeGradorHigher","Pop5to20yrs","Pop5to20wDis","Pop21to64","Pop21to64wDis","Pop65over","Pop65overwDis","Pop5yrsOver","SameHUin95","DiffHUinUSin95","HUinSameCountyin95","HUinSameStatein95","TotalPop","NativePop","NatPopBornUS","NatPopBornInStatRes","NatPopBornDiffState","NatPopBornOutUS","FornBornPop","FornPopEnt90to00","FornPopNatCit","FornPopNotCit","Households","HHIncLessThn10k","HHInc10to15K","HHInc15to25K","HHInc25to35K","HHInc35to50K","HHInc50to75K","HHInc75to100K","HHInc100to150K","HHInc150to200K","HHIncOver200K","MedianHHInc","HHwithPubAssistInc","MeanPubAssist","FamilyHH","FHHIncLessThn10k","FHHInc10to15K","FHHInc15to25K","FHHInc25to35K","FHHInc35to50K","FHHInc50to75K","FHHInc75to100K","FHHInc100to150K","FHHInc150to200K","FHHIncOver200K","MedianFHHInc","PerCapitaInc","PovStatFamilies","PovStatFHHwChilUnd18","PovStatFHHwChilUnd5","PovStFmalHH","DP3088","DP3089","PovStatIndiv","PovStatIndiv18yrOver","PovStatIndiv65yrOver","DP3093","DP3094","DP3095"]
[{"$f":"VLOOKUP(DropDownList!$B$47,CntyQryCensus!$A$53:$BY$96,A$1)","v":"Allenstown"},{"$f":"VLOOKUP(DropDownList!$B$47,CntyQryCensus!$A$53:$BY$96,B$1)","v":"00660"},{"$f":"VLOOKUP(DropDownList!$B$47,CntyQryCensus!$A$53:$BY$96,C$1)","v":"Allenstown town, Merrimack County, New Hampshire"},{"$f":"VLOOKUP(DropDownList!$B$47,CntyQryCensus!$A$53:$BY$96,D$1)","v":1228},{"$f":"VLOOKUP(DropDownList!$B$47,CntyQryCensus!$A$53:$BY$96,E$1)","v":89},{"$f":"VLOOKUP(DropDownList!$B$47,CntyQryCensus!$A$53:$BY$96,F$1)","v":44},{"$f":"VLOOKUP(DropDownList!$B$47,CntyQryCensus!$A$53:$BY$96,G$1)","v":682},{"$f":"VLOOKUP(DropDownList!$B$47,CntyQryCensus!$A$53:$BY$96,H$1)","v":302},{"$f":"VLOOKUP(DropDownList!$B$47,CntyQryCensus!$A$53:$BY$96,I$1)","v":111},{"$f":"VLOOKUP(DropDownList!$B$47,CntyQryCensus!$A$53:$BY$96,J$1)","v":3202},{"$f":"VLOOKUP(DropDownList!$B$47,CntyQryCensus!$A$53:$BY$96,K$1)","v":1283},{"$f":"VLOOKUP(DropDownList!$B$47,CntyQryCensus!$A$53:$BY$96,L$1)","v":755},{"$f":"VLOOKUP(DropDownList!$B$47,CntyQryCensus!$A$53:$BY$96,M$1)","v":207},{"$f":"VLOOKUP(DropDownList!$B$47,CntyQryCensus!$A$53:$BY$96,N$1)","v":219},{"$f":"VLOOKUP(DropDownList!$B$47,CntyQryCensus!$A$53:$BY$96,O$1)","v":92},{"$f":"VLOOKUP(DropDownList!$B$47,CntyQryCensus!$A$53:$BY$96,P$1)","v":2556},{"$f":"VLOOKUP(DropDownList!$B$47,CntyQryCensus!$A$53:$BY$96,Q$1)","v":311},{"$f":"VLOOKUP(DropDownList!$B$47,CntyQryCensus!$A$53:$BY$96,R$1)","v":1138},{"$f":"VLOOKUP(DropDownList!$B$47,CntyQryCensus!$A$53:$BY$96,S$1)","v":140},{"$f":"VLOOKUP(DropDownList!$B$47,CntyQryCensus!$A$53:$BY$96,T$1)","v":2853},{"$f":"VLOOKUP(DropDownList!$B$47,CntyQryCensus!$A$53:$BY$96,U$1)","v":577},{"$f":"VLOOKUP(DropDownList!$B$47,CntyQryCensus!$A$53:$BY$96,V$1)","v":506},{"$f":"VLOOKUP(DropDownList!$B$47,CntyQryCensus!$A$53:$BY$96,W$1)","v":219},{"$f":"VLOOKUP(DropDownList!$B$47,CntyQryCensus!$A$53:$BY$96,X$1)","v":4524},{"$f":"VLOOKUP(DropDownList!$B$47,CntyQryCensus!$A$53:$BY$96,Y$1)","v":2494},{"$f":"VLOOKUP(DropDownList!$B$47,CntyQryCensus!$A$53:$BY$96,Z$1)","v":1996},{"$f":"VLOOKUP(DropDownList!$B$47,CntyQryCensus!$A$53:$BY$96,AA$1)","v":875},{"$f":"VLOOKUP(DropDownList!$B$47,CntyQryCensus!$A$53:$BY$96,AB$1)","v":1121},{"$f":"VLOOKUP(DropDownList!$B$47,CntyQryCensus!$A$53:$BY$96,AC$1)","v":4843},{"$f":"VLOOKUP(DropDownList!$B$47,CntyQryCensus!$A$53:$BY$96,AD$1)","v":4727},{"$f":"VLOOKUP(DropDownList!$B$47,CntyQryCensus!$A$53:$BY$96,AE$1)","v":4689},{"$f":"VLOOKUP(DropDownList!$B$47,CntyQryCensus!$A$53:$BY$96,AF$1)","v":2983},{"$f":"VLOOKUP(DropDownList!$B$47,CntyQryCensus!$A$53:$BY$96,AG$1)","v":1706},{"$f":"VLOOKUP(DropDownList!$B$47,CntyQryCensus!$A$53:$BY$96,AH$1)","v":38},{"$f":"VLOOKUP(DropDownList!$B$47,CntyQryCensus!$A$53:$BY$96,AI$1)","v":116},{"$f":"VLOOKUP(DropDownList!$B$47,CntyQryCensus!$A$53:$BY$96,AJ$1)","v":24},{"$f":"VLOOKUP(DropDownList!$B$47,CntyQryCensus!$A$53:$BY$96,AK$1)","v":72},{"$f":"VLOOKUP(DropDownList!$B$47,CntyQryCensus!$A$53:$BY$96,AL$1)","v":44},{"$f":"VLOOKUP(DropDownList!$B$47,CntyQryCensus!$A$53:$BY$96,AM$1)","v":1901},{"$f":"VLOOKUP(DropDownList!$B$47,CntyQryCensus!$A$53:$BY$96,AN$1)","v":121},{"$f":"VLOOKUP(DropDownList!$B$47,CntyQryCensus!$A$53:$BY$96,AO$1)","v":100},{"$f":"VLOOKUP(DropDownList!$B$47,CntyQryCensus!$A$53:$BY$96,AP$1)","v":208},{"$f":"VLOOKUP(DropDownList!$B$47,CntyQryCensus!$A$53:$BY$96,AQ$1)","v":292},{"$f":"VLOOKUP(DropDownList!$B$47,CntyQryCensus!$A$53:$BY$96,AR$1)","v":381},{"$f":"VLOOKUP(DropDownList!$B$47,CntyQryCensus!$A$53:$BY$96,AS$1)","v":497},{"$f":"VLOOKUP(DropDownList!$B$47,CntyQryCensus!$A$53:$BY$96,AT$1)","v":182},{"$f":"VLOOKUP(DropDownList!$B$47,CntyQryCensus!$A$53:$BY$96,AU$1)","v":114},{"$f":"VLOOKUP(DropDownList!$B$47,CntyQryCensus!$A$53:$BY$96,AV$1)","v":6},{"$f":"VLOOKUP(DropDownList!$B$47,CntyQryCensus!$A$53:$BY$96,AW$1)","v":0},{"$f":"VLOOKUP(DropDownList!$B$47,CntyQryCensus!$A$53:$BY$96,AX$1)","v":41958},{"$f":"VLOOKUP(DropDownList!$B$47,CntyQryCensus!$A$53:$BY$96,AY$1)","v":61},{"$f":"VLOOKUP(DropDownList!$B$47,CntyQryCensus!$A$53:$BY$96,AZ$1)","v":1997},{"$f":"VLOOKUP(DropDownList!$B$47,CntyQryCensus!$A$53:$BY$96,BA$1)","v":1277},{"$f":"VLOOKUP(DropDownList!$B$47,CntyQryCensus!$A$53:$BY$96,BB$1)","v":5},{"$f":"VLOOKUP(DropDownList!$B$47,CntyQryCensus!$A$53:$BY$96,BC$1)","v":48},{"$f":"VLOOKUP(DropDownList!$B$47,CntyQryCensus!$A$53:$BY$96,BD$1)","v":116},{"$f":"VLOOKUP(DropDownList!$B$47,CntyQryCensus!$A$53:$BY$96,BE$1)","v":195},{"$f":"VLOOKUP(DropDownList!$B$47,CntyQryCensus!$A$53:$BY$96,BF$1)","v":240},{"$f":"VLOOKUP(DropDownList!$B$47,CntyQryCensus!$A$53:$BY$96,BG$1)","v":413},{"$f":"VLOOKUP(DropDownList!$B$47,CntyQryCensus!$A$53:$BY$96,BH$1)","v":165},{"$f":"VLOOKUP(DropDownList!$B$47,CntyQryCensus!$A$53:$BY$96,BI$1)","v":89},{"$f":"VLOOKUP(DropDownList!$B$47,CntyQryCensus!$A$53:$BY$96,BJ$1)","v":6},{"$f":"VLOOKUP(DropDownList!$B$47,CntyQryCensus!$A$53:$BY$96,BK$1)","v":0},{"$f":"VLOOKUP(DropDownList!$B$47,CntyQryCensus!$A$53:$BY$96,BL$1)","v":51659},{"$f":"VLOOKUP(DropDownList!$B$47,CntyQryCensus!$A$53:$BY$96,BM$1)","v":18851},{"$f":"VLOOKUP(DropDownList!$B$47,CntyQryCensus!$A$53:$BY$96,BN$1)","v":28},{"$f":"VLOOKUP(DropDownList!$B$47,CntyQryCensus!$A$53:$BY$96,BO$1)","v":28},{"$f":"VLOOKUP(DropDownList!$B$47,CntyQryCensus!$A$53:$BY$96,BP$1)","v":8},{"$f":"VLOOKUP(DropDownList!$B$47,CntyQryCensus!$A$53:$BY$96,BQ$1)","v":11},{"$f":"VLOOKUP(DropDownList!$B$47,CntyQryCensus!$A$53:$BY$96,BR$1)","v":11},{"$f":"VLOOKUP(DropDownList!$B$47,CntyQryCensus!$A$53:$BY$96,BS$1)","v":0},{"$f":"VLOOKUP(DropDownList!$B$47,CntyQryCensus!$A$53:$BY$96,BT$1)","v":184},{"$f":"VLOOKUP(DropDownList!$B$47,CntyQryCensus!$A$53:$BY$96,BU$1)","v":129},{"$f":"VLOOKUP(DropDownList!$B$47,CntyQryCensus!$A$53:$BY$96,BV$1)","v":24},{"$f":"VLOOKUP(DropDownList!$B$47,CntyQryCensus!$A$53:$BY$96,BW$1)","v":47},{"$f":"VLOOKUP(DropDownList!$B$47,CntyQryCensus!$A$53:$BY$96,BX$1)","v":40},{"$f":"VLOOKUP(DropDownList!$B$47,CntyQryCensus!$A$53:$BY$96,BY$1)","v":94}]
[]
[]
["Census 2000 DemoProfile Sample Data Table 4   -  DPTab4TownQry"]
["NAME","COUSUB","TotHousingUnits","1UnitDet","1UnitAtt","2Units","3to4Units","5to9Units","10to19Units","20orMoreUnits","MobileHomes","BoatRvVan","SingleFamilyUnits","MultiFamUnits","MobileHomeUnits","YearBuilt99to00","YearBuilt95to98","YearBUilt90to94","YearBuilt80to89","YearBuilt70to79","YearBuilt60to69","YearBuilt40to59","YearBuilt39orEarlier","Rooms1","Rooms2","Rooms3","Rooms4","Rooms5","Rooms6","Rooms7","Rooms8","Rooms9orMore","MedianRooms","OccHU1","YrHHMvdIn99to00","YrHHMvdIn95to98","YrHHMvdIn90to94","YrHHMvdIn80to89","YrHHMvdIn70to79","YrHHMvdIn69orBefore","HeatFuelNatGas","HeatFuelBotGas","HeatFuelElectric","HeatFuelOil","HeatFuelCoal","HeatFuelWood","HeatFuelSolar","HeatFuelOther","HeatFuelNone","LackCompPlumb","LackCompKit","NoTelephone","OccHU","OccPerRm1orLess","OccPerRm1to1_5","OccPerRm1_5orMore","SpecOwnOccUnits","Value<50K","Value50to100K","Value100to150K","Value150to200K","Value200to300K","Value300to500K","Value500Kto1mil","Value1MilorMore","MedianValue","WithMortg","MnthOwnCst<300","MnthOwnCst300to500","MnthOwnCst500to700","MnthOwnCst700to1000","MnthOwnCst1000to1500","MnthOwnCst1500to2000","MnthOwnCst2000orMore","MediMnthOwnCst","NotMrtg","NotMrtgMediMnthOwnCst","OwnCst%HHInc<15","OwnCst%HHInc15to20","OwnCst%HHInc20to25","OwnCst%HHInc25to30","OwnCst%HHInc30to35","OwnCst%HHInc35orMor","NotComputed","SpecRntOccUnits","Rnt<200","Rnt200to300","Rnt300to500","Rnt500to750","Rnt750to1000","Rnt1000to1500","Rnt1500orMore","NoRent","MedianRent","Rnt%HHInc<15","Rnt%HHInc15to20","Rnt%HHInc20to25","Rnt%HHInc25to30","Rnt%HHInc30to35","Rnt%HHInc35orMore","Rnt%NotCompute"]
[{"$f":"VLOOKUP(DropDownList!$B$47,CntyQryCensus!$A$103:$CX$146,A$1)","v":"Allenstown"},{"$f":"VLOOKUP(DropDownList!$B$47,CntyQryCensus!$A$103:$CX$146,B$1)","v":"00660"},{"$f":"VLOOKUP(DropDownList!$B$47,CntyQryCensus!$A$103:$CX$146,C$1)","v":1962},{"$f":"VLOOKUP(DropDownList!$B$47,CntyQryCensus!$A$103:$CX$146,D$1)","v":829},{"$f":"VLOOKUP(DropDownList!$B$47,CntyQryCensus!$A$103:$CX$146,E$1)","v":42},{"$f":"VLOOKUP(DropDownList!$B$47,CntyQryCensus!$A$103:$CX$146,F$1)","v":136},{"$f":"VLOOKUP(DropDownList!$B$47,CntyQryCensus!$A$103:$CX$146,G$1)","v":116},{"$f":"VLOOKUP(DropDownList!$B$47,CntyQryCensus!$A$103:$CX$146,H$1)","v":193},{"$f":"VLOOKUP(DropDownList!$B$47,CntyQryCensus!$A$103:$CX$146,I$1)","v":6},{"$f":"VLOOKUP(DropDownList!$B$47,CntyQryCensus!$A$103:$CX$146,J$1)","v":14},{"$f":"VLOOKUP(DropDownList!$B$47,CntyQryCensus!$A$103:$CX$146,K$1)","v":626},{"$f":"VLOOKUP(DropDownList!$B$47,CntyQryCensus!$A$103:$CX$146,L$1)","v":0},{"$f":"VLOOKUP(DropDownList!$B$47,CntyQryCensus!$A$103:$CX$146,M$1)","v":829},{"$f":"VLOOKUP(DropDownList!$B$47,CntyQryCensus!$A$103:$CX$146,N$1)","v":507},{"$f":"VLOOKUP(DropDownList!$B$47,CntyQryCensus!$A$103:$CX$146,O$1)","v":626},{"$f":"VLOOKUP(DropDownList!$B$47,CntyQryCensus!$A$103:$CX$146,P$1)","v":81},{"$f":"VLOOKUP(DropDownList!$B$47,CntyQryCensus!$A$103:$CX$146,Q$1)","v":159},{"$f":"VLOOKUP(DropDownList!$B$47,CntyQryCensus!$A$103:$CX$146,R$1)","v":75},{"$f":"VLOOKUP(DropDownList!$B$47,CntyQryCensus!$A$103:$CX$146,S$1)","v":338},{"$f":"VLOOKUP(DropDownList!$B$47,CntyQryCensus!$A$103:$CX$146,T$1)","v":596},{"$f":"VLOOKUP(DropDownList!$B$47,CntyQryCensus!$A$103:$CX$146,U$1)","v":258},{"$f":"VLOOKUP(DropDownList!$B$47,CntyQryCensus!$A$103:$CX$146,V$1)","v":196},{"$f":"VLOOKUP(DropDownList!$B$47,CntyQryCensus!$A$103:$CX$146,W$1)","v":259},{"$f":"VLOOKUP(DropDownList!$B$47,CntyQryCensus!$A$103:$CX$146,X$1)","v":0},{"$f":"VLOOKUP(DropDownList!$B$47,CntyQryCensus!$A$103:$CX$146,Y$1)","v":73},{"$f":"VLOOKUP(DropDownList!$B$47,CntyQryCensus!$A$103:$CX$146,Z$1)","v":162},{"$f":"VLOOKUP(DropDownList!$B$47,CntyQryCensus!$A$103:$CX$146,AA$1)","v":419},{"$f":"VLOOKUP(DropDownList!$B$47,CntyQryCensus!$A$103:$CX$146,AB$1)","v":634},{"$f":"VLOOKUP(DropDownList!$B$47,CntyQryCensus!$A$103:$CX$146,AC$1)","v":336},{"$f":"VLOOKUP(DropDownList!$B$47,CntyQryCensus!$A$103:$CX$146,AD$1)","v":197},{"$f":"VLOOKUP(DropDownList!$B$47,CntyQryCensus!$A$103:$CX$146,AE$1)","v":51},{"$f":"VLOOKUP(DropDownList!$B$47,CntyQryCensus!$A$103:$CX$146,AF$1)","v":90},{"$f":"VLOOKUP(DropDownList!$B$47,CntyQryCensus!$A$103:$CX$146,AG$1)","v":5},{"$f":"VLOOKUP(DropDownList!$B$47,CntyQryCensus!$A$103:$CX$146,AH$1)","v":1902},{"$f":"VLOOKUP(DropDownList!$B$47,CntyQryCensus!$A$103:$CX$146,AI$1)","v":432},{"$f":"VLOOKUP(DropDownList!$B$47,CntyQryCensus!$A$103:$CX$146,AJ$1)","v":448},{"$f":"VLOOKUP(DropDownList!$B$47,CntyQryCensus!$A$103:$CX$146,AK$1)","v":247},{"$f":"VLOOKUP(DropDownList!$B$47,CntyQryCensus!$A$103:$CX$146,AL$1)","v":389},{"$f":"VLOOKUP(DropDownList!$B$47,CntyQryCensus!$A$103:$CX$146,AM$1)","v":213},{"$f":"VLOOKUP(DropDownList!$B$47,CntyQryCensus!$A$103:$CX$146,AN$1)","v":173},{"$f":"VLOOKUP(DropDownList!$B$47,CntyQryCensus!$A$103:$CX$146,AO$1)","v":254},{"$f":"VLOOKUP(DropDownList!$B$47,CntyQryCensus!$A$103:$CX$146,AP$1)","v":192},{"$f":"VLOOKUP(DropDownList!$B$47,CntyQryCensus!$A$103:$CX$146,AQ$1)","v":161},{"$f":"VLOOKUP(DropDownList!$B$47,CntyQryCensus!$A$103:$CX$146,AR$1)","v":1233},{"$f":"VLOOKUP(DropDownList!$B$47,CntyQryCensus!$A$103:$CX$146,AS$1)","v":6},{"$f":"VLOOKUP(DropDownList!$B$47,CntyQryCensus!$A$103:$CX$146,AT$1)","v":56},{"$f":"VLOOKUP(DropDownList!$B$47,CntyQryCensus!$A$103:$CX$146,AU$1)","v":0},{"$f":"VLOOKUP(DropDownList!$B$47,CntyQryCensus!$A$103:$CX$146,AV$1)","v":0},{"$f":"VLOOKUP(DropDownList!$B$47,CntyQryCensus!$A$103:$CX$146,AW$1)","v":0},{"$f":"VLOOKUP(DropDownList!$B$47,CntyQryCensus!$A$103:$CX$146,AX$1)","v":15},{"$f":"VLOOKUP(DropDownList!$B$47,CntyQryCensus!$A$103:$CX$146,AY$1)","v":8},{"$f":"VLOOKUP(DropDownList!$B$47,CntyQryCensus!$A$103:$CX$146,AZ$1)","v":15},{"$f":"VLOOKUP(DropDownList!$B$47,CntyQryCensus!$A$103:$CX$146,BA$1)","v":1902},{"$f":"VLOOKUP(DropDownList!$B$47,CntyQryCensus!$A$103:$CX$146,BB$1)","v":1850},{"$f":"VLOOKUP(DropDownList!$B$47,CntyQryCensus!$A$103:$CX$146,BC$1)","v":45},{"$f":"VLOOKUP(DropDownList!$B$47,CntyQryCensus!$A$103:$CX$146,BD$1)","v":7},{"$f":"VLOOKUP(DropDownList!$B$47,CntyQryCensus!$A$103:$CX$146,BE$1)","v":735},{"$f":"VLOOKUP(DropDownList!$B$47,CntyQryCensus!$A$103:$CX$146,BF$1)","v":14},{"$f":"VLOOKUP(DropDownList!$B$47,CntyQryCensus!$A$103:$CX$146,BG$1)","v":390},{"$f":"VLOOKUP(DropDownList!$B$47,CntyQryCensus!$A$103:$CX$146,BH$1)","v":247},{"$f":"VLOOKUP(DropDownList!$B$47,CntyQryCensus!$A$103:$CX$146,BI$1)","v":63},{"$f":"VLOOKUP(DropDownList!$B$47,CntyQryCensus!$A$103:$CX$146,BJ$1)","v":21},{"$f":"VLOOKUP(DropDownList!$B$47,CntyQryCensus!$A$103:$CX$146,BK$1)","v":0},{"$f":"VLOOKUP(DropDownList!$B$47,CntyQryCensus!$A$103:$CX$146,BL$1)","v":0},{"$f":"VLOOKUP(DropDownList!$B$47,CntyQryCensus!$A$103:$CX$146,BM$1)","v":0},{"$f":"VLOOKUP(DropDownList!$B$47,CntyQryCensus!$A$103:$CX$146,BN$1)","v":97900},{"$f":"VLOOKUP(DropDownList!$B$47,CntyQryCensus!$A$103:$CX$146,BO$1)","v":510},{"$f":"VLOOKUP(DropDownList!$B$47,CntyQryCensus!$A$103:$CX$146,BP$1)","v":0},{"$f":"VLOOKUP(DropDownList!$B$47,CntyQryCensus!$A$103:$CX$146,BQ$1)","v":7},{"$f":"VLOOKUP(DropDownList!$B$47,CntyQryCensus!$A$103:$CX$146,BR$1)","v":41},{"$f":"VLOOKUP(DropDownList!$B$47,CntyQryCensus!$A$103:$CX$146,BS$1)","v":179},{"$f":"VLOOKUP(DropDownList!$B$47,CntyQryCensus!$A$103:$CX$146,BT$1)","v":250},{"$f":"VLOOKUP(DropDownList!$B$47,CntyQryCensus!$A$103:$CX$146,BU$1)","v":26},{"$f":"VLOOKUP(DropDownList!$B$47,CntyQryCensus!$A$103:$CX$146,BV$1)","v":7},{"$f":"VLOOKUP(DropDownList!$B$47,CntyQryCensus!$A$103:$CX$146,BW$1)","v":1041},{"$f":"VLOOKUP(DropDownList!$B$47,CntyQryCensus!$A$103:$CX$146,BX$1)","v":225},{"$f":"VLOOKUP(DropDownList!$B$47,CntyQryCensus!$A$103:$CX$146,BY$1)","v":409},{"$f":"VLOOKUP(DropDownList!$B$47,CntyQryCensus!$A$103:$CX$146,BZ$1)","v":201},{"$f":"VLOOKUP(DropDownList!$B$47,CntyQryCensus!$A$103:$CX$146,CA$1)","v":214},{"$f":"VLOOKUP(DropDownList!$B$47,CntyQryCensus!$A$103:$CX$146,CB$1)","v":125},{"$f":"VLOOKUP(DropDownList!$B$47,CntyQryCensus!$A$103:$CX$146,CC$1)","v":63},{"$f":"VLOOKUP(DropDownList!$B$47,CntyQryCensus!$A$103:$CX$146,CD$1)","v":48},{"$f":"VLOOKUP(DropDownList!$B$47,CntyQryCensus!$A$103:$CX$146,CE$1)","v":84},{"$f":"VLOOKUP(DropDownList!$B$47,CntyQryCensus!$A$103:$CX$146,CF$1)","v":0},{"$f":"VLOOKUP(DropDownList!$B$47,CntyQryCensus!$A$103:$CX$146,CG$1)","v":536},{"$f":"VLOOKUP(DropDownList!$B$47,CntyQryCensus!$A$103:$CX$146,CH$1)","v":33},{"$f":"VLOOKUP(DropDownList!$B$47,CntyQryCensus!$A$103:$CX$146,CI$1)","v":14},{"$f":"VLOOKUP(DropDownList!$B$47,CntyQryCensus!$A$103:$CX$146,CJ$1)","v":101},{"$f":"VLOOKUP(DropDownList!$B$47,CntyQryCensus!$A$103:$CX$146,CK$1)","v":232},{"$f":"VLOOKUP(DropDownList!$B$47,CntyQryCensus!$A$103:$CX$146,CL$1)","v":91},{"$f":"VLOOKUP(DropDownList!$B$47,CntyQryCensus!$A$103:$CX$146,CM$1)","v":43},{"$f":"VLOOKUP(DropDownList!$B$47,CntyQryCensus!$A$103:$CX$146,CN$1)","v":0},{"$f":"VLOOKUP(DropDownList!$B$47,CntyQryCensus!$A$103:$CX$146,CO$1)","v":22},{"$f":"VLOOKUP(DropDownList!$B$47,CntyQryCensus!$A$103:$CX$146,CP$1)","v":597},{"$f":"VLOOKUP(DropDownList!$B$47,CntyQryCensus!$A$103:$CX$146,CQ$1)","v":88},{"$f":"VLOOKUP(DropDownList!$B$47,CntyQryCensus!$A$103:$CX$146,CR$1)","v":89},{"$f":"VLOOKUP(DropDownList!$B$47,CntyQryCensus!$A$103:$CX$146,CS$1)","v":91},{"$f":"VLOOKUP(DropDownList!$B$47,CntyQryCensus!$A$103:$CX$146,CT$1)","v":36},{"$f":"VLOOKUP(DropDownList!$B$47,CntyQryCensus!$A$103:$CX$146,CU$1)","v":69},{"$f":"VLOOKUP(DropDownList!$B$47,CntyQryCensus!$A$103:$CX$146,CV$1)","v":141},{"$f":"VLOOKUP(DropDownList!$B$47,CntyQryCensus!$A$103:$CX$146,CW$1)","v":22}]
[]
[]
["Census 2000 SummaryFile3 Sample Data  -  SF3TownQry1SocialChar"]
["NAME","LOGRECNO","COUNTY","P01TotalPopulation","P02SampleCountOfPop","P03Pop100pctCount","P05UrbanPopulation","P05RuralPopulation","P06WhiteAlone","P06BlackOrAfAm","P06AmIndAlone","P06AsianAlone","P06HawaiianOrPI","P06OtherRace","P06TwoPlusRaces","P07NotHispanicOrLatino","P07HispanicOrLatino","P08MalePop","P08FemalePop","P09PopInHouseholds","P09PopInFamHH","P09PopInNonFamHH","P09PopInGroupQtr","P13TotalHH","P13FamilyHH","P13FamHHolder15to24yrs","P13FamHHolder25to34yrs","P13FamHHolder35to44yrs","P13FamHHolder45to54yrs","P13FamHHolder55to64yrs","P13FamHHolder65to74yrs","P13FamHHolder75to84yrs","P13FamHHolder85yrsOver","P13NonFamilyHH","P13NonFamHHolder15to24yrs","P13NonFamHHolder25to34yrs","P13NonFamHHolder35to44yrs","P13NonFamHHolder45to54yrs","P13NonFamHHolder55to64yrs","P13NonFamHHolder65to74yrs","P13NonFamHHolder75to84yrs","P13NonFamHHolder85yrsOver","P18Pop15yrsOver","P18MaritalStatNeverMarried","P18MaritalStatNowMarried","P18MaritalStatSeparated","P18MaritalStatWidowed","P18MaritalStatWidowFemale","P18MaritalStatDivorced","P18MaritalStatDivorcedFemale","P21NativeBornPop","P21NatPopBornInState","P21NatPopBornOtherState","P021005","P021006","P021007","P021008","P21NatPopBornOutUS","P21ForeignBornPop","P021014","P021015","P24Pop5YrsPlus","P24ResSameHouseIn95","P24ResDiffHouseIn95","P24ResDiffHouseInUSIn95","P24ResDiffHouseSameCountyIn95","P24ResDiffHouseDiffCountyIn95","P24ResDiffHouseDiffCntySamStIn95","P24ResDiffHouseDiffCntyDifStIn95","P24ResDiffHouseDiffCntyNEStIn95","P24ResDiffHouseDiffCntyMWStIn95","P24ResDiffHouseDiffCntySoStIn95","P24ResDiffHouseDiffCntyWstStIn95","P24ResDiffInPR","P24ResDiffElsewhereIn95","P26Workers16yrsOver","P26WorkedInState","P26WorkedInCnty","P26WorkedOutsideCnty","P26WorkedOutsideState","P30Workers16Over","P30TranspToWrkCar","P30TranspToWrkPublic","P30TranspToWrkOther","P30WrkdAtHome","P31WrkrsNotWrkAtHom","P31TravTim<5min","P31TravTim5to9Min","P31TravTim10to14Min","P31TravTim15to19Min","P31TravTim20to24Min","P31TravTim25to29Min","P31TravTim30to34Min","P31TravTim35to39Min","P31TravTim40to44Min","P31TravTim45to59Min","P31TravTim60to89Min","P31TravTim90MinMore","P31WorkAtHome","P36SchEnrlPop3yrOver","P36NurserSchEnrl","P36KinderSchEnrl","P36ElemSchEnrl","P36HighSchEnrl","P36CollGradSchEnrl","P37Pop25yrsOver","P37EduAtain<9grd","P37EduAtainHSnoDip","P37EduAtainHSgrad","P37EduAtainCollNoDeg","P37EduAtainAssocDeg","P37EduAtainBachDeg","P37EduAtainGradProfDeg","P42NIPop5to15","P42NIPop5to15wDisabl","P42NIPop16to20","P42NIPop16to20wDisab","P42NIPop16to20wDisEmp","P42NIPop16to21NoDis","P42NIPop16to21NoDisEmpl","P42NIPop21to64","P42NIPop21to64wDis","P42NIPop21to64wDisEmp","P42NIPop21to64NoDis","P42NIPop21to64NoDisEmp","P42NIPop65to74","P42NIPop65to74wDis","P42NIPop75Over","P42NIPop75OverwDis","P43Pop16YrsOver","P43Pop16OvrInLaborForce","P43Pop16OvrCivlLabFrc","P43Pop16OvrCivlLbrFrcEmp","P48Families","P48MarriedFam","P48MarrFamNoWorkers","P48MarrFam1Worker","P48MarrFam2Worker","P48MarrFamHusbWifeWorked","P48MarrFamOther","P48MarrFam3PlusWorker","P48MarrFam3WorkHsbWif","P48MarrFam3PlsWrkOther","P48OtherFam","P48MaleHHNoWif","P48MaleHHNoWifNoWorker","P48MaleHHNoWif1Worker","P48MaleHHNoWif2Worker","P48MaleHHNoWif3PlusWorker","P48FemaleHHNoHsb","P48FemaleHHNoHsbNoWorker","P48FemaleHHNoHsb1Worker","P48FemaleHHNoHsb2Worker","P48FemaleHHNoHsb3Worker","P49EmpCivPop16YrOver","P49IndustAgricult","P49IndustConst","P49IndustMnftg","P49IndustWhlslTrd","P49IndustRtlTrd","P49IndustTrspWrhsUtlt","P49IndustInfrm","P49IndustFinInsRE","P49IndustPrfsScntfMngmt","P49IndustEduHlthSocSrv","P49IndustArtsEntRec","P49IndustOthrSrvc","P49IndustPubAdm","P50OccupMngmtProfs","P50OccupService","P50OccupSalesOff","P50OccupFarmFishForest","P50OccupConstExtrctMaint","P50OccupPrdctTrnspMatMv"]
[{"$f":"VLOOKUP(DropDownList!$B$47,CntyQryCensus!$A$156:$FR$198,A$1)","v":"Allenstown"},{"$f":"VLOOKUP(DropDownList!$B$47,CntyQryCensus!$A$156:$FR$198,B$1)","v":"0002575"},{"$f":"VLOOKUP(DropDownList!$B$47,CntyQryCensus!$A$156:$FR$198,C$1)","v":"00660"},{"$f":"VLOOKUP(DropDownList!$B$47,CntyQryCensus!$A$156:$FR$198,D$1)","v":4843},{"$f":"VLOOKUP(DropDownList!$B$47,CntyQryCensus!$A$156:$FR$198,E$1)","v":707},{"$f":"VLOOKUP(DropDownList!$B$47,CntyQryCensus!$A$156:$FR$198,F$1)","v":4843},{"$f":"VLOOKUP(DropDownList!$B$47,CntyQryCensus!$A$156:$FR$198,G$1)","v":2951},{"$f":"VLOOKUP(DropDownList!$B$47,CntyQryCensus!$A$156:$FR$198,H$1)","v":1892},{"$f":"VLOOKUP(DropDownList!$B$47,CntyQryCensus!$A$156:$FR$198,I$1)","v":4695},{"$f":"VLOOKUP(DropDownList!$B$47,CntyQryCensus!$A$156:$FR$198,J$1)","v":44},{"$f":"VLOOKUP(DropDownList!$B$47,CntyQryCensus!$A$156:$FR$198,K$1)","v":7},{"$f":"VLOOKUP(DropDownList!$B$47,CntyQryCensus!$A$156:$FR$198,L$1)","v":0},{"$f":"VLOOKUP(DropDownList!$B$47,CntyQryCensus!$A$156:$FR$198,M$1)","v":0},{"$f":"VLOOKUP(DropDownList!$B$47,CntyQryCensus!$A$156:$FR$198,N$1)","v":16},{"$f":"VLOOKUP(DropDownList!$B$47,CntyQryCensus!$A$156:$FR$198,O$1)","v":81},{"$f":"VLOOKUP(DropDownList!$B$47,CntyQryCensus!$A$156:$FR$198,P$1)","v":4812},{"$f":"VLOOKUP(DropDownList!$B$47,CntyQryCensus!$A$156:$FR$198,Q$1)","v":31},{"$f":"VLOOKUP(DropDownList!$B$47,CntyQryCensus!$A$156:$FR$198,R$1)","v":2344},{"$f":"VLOOKUP(DropDownList!$B$47,CntyQryCensus!$A$156:$FR$198,S$1)","v":2499},{"$f":"VLOOKUP(DropDownList!$B$47,CntyQryCensus!$A$156:$FR$198,T$1)","v":4808},{"$f":"VLOOKUP(DropDownList!$B$47,CntyQryCensus!$A$156:$FR$198,U$1)","v":4014},{"$f":"VLOOKUP(DropDownList!$B$47,CntyQryCensus!$A$156:$FR$198,V$1)","v":794},{"$f":"VLOOKUP(DropDownList!$B$47,CntyQryCensus!$A$156:$FR$198,W$1)","v":35},{"$f":"VLOOKUP(DropDownList!$B$47,CntyQryCensus!$A$156:$FR$198,X$1)","v":1901},{"$f":"VLOOKUP(DropDownList!$B$47,CntyQryCensus!$A$156:$FR$198,Y$1)","v":1277},{"$f":"VLOOKUP(DropDownList!$B$47,CntyQryCensus!$A$156:$FR$198,Z$1)","v":29},{"$f":"VLOOKUP(DropDownList!$B$47,CntyQryCensus!$A$156:$FR$198,AA$1)","v":259},{"$f":"VLOOKUP(DropDownList!$B$47,CntyQryCensus!$A$156:$FR$198,AB$1)","v":413},{"$f":"VLOOKUP(DropDownList!$B$47,CntyQryCensus!$A$156:$FR$198,AC$1)","v":305},{"$f":"VLOOKUP(DropDownList!$B$47,CntyQryCensus!$A$156:$FR$198,AD$1)","v":121},{"$f":"VLOOKUP(DropDownList!$B$47,CntyQryCensus!$A$156:$FR$198,AE$1)","v":105},{"$f":"VLOOKUP(DropDownList!$B$47,CntyQryCensus!$A$156:$FR$198,AF$1)","v":36},{"$f":"VLOOKUP(DropDownList!$B$47,CntyQryCensus!$A$156:$FR$198,AG$1)","v":9},{"$f":"VLOOKUP(DropDownList!$B$47,CntyQryCensus!$A$156:$FR$198,AH$1)","v":624},{"$f":"VLOOKUP(DropDownList!$B$47,CntyQryCensus!$A$156:$FR$198,AI$1)","v":17},{"$f":"VLOOKUP(DropDownList!$B$47,CntyQryCensus!$A$156:$FR$198,AJ$1)","v":99},{"$f":"VLOOKUP(DropDownList!$B$47,CntyQryCensus!$A$156:$FR$198,AK$1)","v":89},{"$f":"VLOOKUP(DropDownList!$B$47,CntyQryCensus!$A$156:$FR$198,AL$1)","v":91},{"$f":"VLOOKUP(DropDownList!$B$47,CntyQryCensus!$A$156:$FR$198,AM$1)","v":101},{"$f":"VLOOKUP(DropDownList!$B$47,CntyQryCensus!$A$156:$FR$198,AN$1)","v":96},{"$f":"VLOOKUP(DropDownList!$B$47,CntyQryCensus!$A$156:$FR$198,AO$1)","v":83},{"$f":"VLOOKUP(DropDownList!$B$47,CntyQryCensus!$A$156:$FR$198,AP$1)","v":48},{"$f":"VLOOKUP(DropDownList!$B$47,CntyQryCensus!$A$156:$FR$198,AQ$1)","v":3705},{"$f":"VLOOKUP(DropDownList!$B$47,CntyQryCensus!$A$156:$FR$198,AR$1)","v":820},{"$f":"VLOOKUP(DropDownList!$B$47,CntyQryCensus!$A$156:$FR$198,AS$1)","v":2029},{"$f":"VLOOKUP(DropDownList!$B$47,CntyQryCensus!$A$156:$FR$198,AT$1)","v":66},{"$f":"VLOOKUP(DropDownList!$B$47,CntyQryCensus!$A$156:$FR$198,AU$1)","v":311},{"$f":"VLOOKUP(DropDownList!$B$47,CntyQryCensus!$A$156:$FR$198,AV$1)","v":275},{"$f":"VLOOKUP(DropDownList!$B$47,CntyQryCensus!$A$156:$FR$198,AW$1)","v":479},{"$f":"VLOOKUP(DropDownList!$B$47,CntyQryCensus!$A$156:$FR$198,AX$1)","v":245},{"$f":"VLOOKUP(DropDownList!$B$47,CntyQryCensus!$A$156:$FR$198,AY$1)","v":4727},{"$f":"VLOOKUP(DropDownList!$B$47,CntyQryCensus!$A$156:$FR$198,AZ$1)","v":2983},{"$f":"VLOOKUP(DropDownList!$B$47,CntyQryCensus!$A$156:$FR$198,BA$1)","v":1706},{"$f":"VLOOKUP(DropDownList!$B$47,CntyQryCensus!$A$156:$FR$198,BB$1)","v":1484},{"$f":"VLOOKUP(DropDownList!$B$47,CntyQryCensus!$A$156:$FR$198,BC$1)","v":89},{"$f":"VLOOKUP(DropDownList!$B$47,CntyQryCensus!$A$156:$FR$198,BD$1)","v":62},{"$f":"VLOOKUP(DropDownList!$B$47,CntyQryCensus!$A$156:$FR$198,BE$1)","v":71},{"$f":"VLOOKUP(DropDownList!$B$47,CntyQryCensus!$A$156:$FR$198,BF$1)","v":38},{"$f":"VLOOKUP(DropDownList!$B$47,CntyQryCensus!$A$156:$FR$198,BG$1)","v":116},{"$f":"VLOOKUP(DropDownList!$B$47,CntyQryCensus!$A$156:$FR$198,BH$1)","v":72},{"$f":"VLOOKUP(DropDownList!$B$47,CntyQryCensus!$A$156:$FR$198,BI$1)","v":44},{"$f":"VLOOKUP(DropDownList!$B$47,CntyQryCensus!$A$156:$FR$198,BJ$1)","v":4524},{"$f":"VLOOKUP(DropDownList!$B$47,CntyQryCensus!$A$156:$FR$198,BK$1)","v":2494},{"$f":"VLOOKUP(DropDownList!$B$47,CntyQryCensus!$A$156:$FR$198,BL$1)","v":2030},{"$f":"VLOOKUP(DropDownList!$B$47,CntyQryCensus!$A$156:$FR$198,BM$1)","v":1996},{"$f":"VLOOKUP(DropDownList!$B$47,CntyQryCensus!$A$156:$FR$198,BN$1)","v":875},{"$f":"VLOOKUP(DropDownList!$B$47,CntyQryCensus!$A$156:$FR$198,BO$1)","v":1121},{"$f":"VLOOKUP(DropDownList!$B$47,CntyQryCensus!$A$156:$FR$198,BP$1)","v":900},{"$f":"VLOOKUP(DropDownList!$B$47,CntyQryCensus!$A$156:$FR$198,BQ$1)","v":221},{"$f":"VLOOKUP(DropDownList!$B$47,CntyQryCensus!$A$156:$FR$198,BR$1)","v":121},{"$f":"VLOOKUP(DropDownList!$B$47,CntyQryCensus!$A$156:$FR$198,BS$1)","v":16},{"$f":"VLOOKUP(DropDownList!$B$47,CntyQryCensus!$A$156:$FR$198,BT$1)","v":63},{"$f":"VLOOKUP(DropDownList!$B$47,CntyQryCensus!$A$156:$FR$198,BU$1)","v":21},{"$f":"VLOOKUP(DropDownList!$B$47,CntyQryCensus!$A$156:$FR$198,BV$1)","v":0},{"$f":"VLOOKUP(DropDownList!$B$47,CntyQryCensus!$A$156:$FR$198,BW$1)","v":34},{"$f":"VLOOKUP(DropDownList!$B$47,CntyQryCensus!$A$156:$FR$198,BX$1)","v":2647},{"$f":"VLOOKUP(DropDownList!$B$47,CntyQryCensus!$A$156:$FR$198,BY$1)","v":2582},{"$f":"VLOOKUP(DropDownList!$B$47,CntyQryCensus!$A$156:$FR$198,BZ$1)","v":1592},{"$f":"VLOOKUP(DropDownList!$B$47,CntyQryCensus!$A$156:$FR$198,CA$1)","v":990},{"$f":"VLOOKUP(DropDownList!$B$47,CntyQryCensus!$A$156:$FR$198,CB$1)","v":65},{"$f":"VLOOKUP(DropDownList!$B$47,CntyQryCensus!$A$156:$FR$198,CC$1)","v":2647},{"$f":"VLOOKUP(DropDownList!$B$47,CntyQryCensus!$A$156:$FR$198,CD$1)","v":2537},{"$f":"VLOOKUP(DropDownList!$B$47,CntyQryCensus!$A$156:$FR$198,CE$1)","v":0},{"$f":"VLOOKUP(DropDownList!$B$47,CntyQryCensus!$A$156:$FR$198,CF$1)","v":642},{"$f":"VLOOKUP(DropDownList!$B$47,CntyQryCensus!$A$156:$FR$198,CG$1)","v":74},{"$f":"VLOOKUP(DropDownList!$B$47,CntyQryCensus!$A$156:$FR$198,CH$1)","v":2573},{"$f":"VLOOKUP(DropDownList!$B$47,CntyQryCensus!$A$156:$FR$198,CI$1)","v":65},{"$f":"VLOOKUP(DropDownList!$B$47,CntyQryCensus!$A$156:$FR$198,CJ$1)","v":113},{"$f":"VLOOKUP(DropDownList!$B$47,CntyQryCensus!$A$156:$FR$198,CK$1)","v":213},{"$f":"VLOOKUP(DropDownList!$B$47,CntyQryCensus!$A$156:$FR$198,CL$1)","v":366},{"$f":"VLOOKUP(DropDownList!$B$47,CntyQryCensus!$A$156:$FR$198,CM$1)","v":591},{"$f":"VLOOKUP(DropDownList!$B$47,CntyQryCensus!$A$156:$FR$198,CN$1)","v":167},{"$f":"VLOOKUP(DropDownList!$B$47,CntyQryCensus!$A$156:$FR$198,CO$1)","v":486},{"$f":"VLOOKUP(DropDownList!$B$47,CntyQryCensus!$A$156:$FR$198,CP$1)","v":80},{"$f":"VLOOKUP(DropDownList!$B$47,CntyQryCensus!$A$156:$FR$198,CQ$1)","v":63},{"$f":"VLOOKUP(DropDownList!$B$47,CntyQryCensus!$A$156:$FR$198,CR$1)","v":226},{"$f":"VLOOKUP(DropDownList!$B$47,CntyQryCensus!$A$156:$FR$198,CS$1)","v":144},{"$f":"VLOOKUP(DropDownList!$B$47,CntyQryCensus!$A$156:$FR$198,CT$1)","v":59},{"$f":"VLOOKUP(DropDownList!$B$47,CntyQryCensus!$A$156:$FR$198,CU$1)","v":74},{"$f":"VLOOKUP(DropDownList!$B$47,CntyQryCensus!$A$156:$FR$198,CV$1)","v":4676},{"$f":"VLOOKUP(DropDownList!$B$47,CntyQryCensus!$A$156:$FR$198,CW$1)","v":89},{"$f":"VLOOKUP(DropDownList!$B$47,CntyQryCensus!$A$156:$FR$198,CX$1)","v":44},{"$f":"VLOOKUP(DropDownList!$B$47,CntyQryCensus!$A$156:$FR$198,CY$1)","v":682},{"$f":"VLOOKUP(DropDownList!$B$47,CntyQryCensus!$A$156:$FR$198,CZ$1)","v":302},{"$f":"VLOOKUP(DropDownList!$B$47,CntyQryCensus!$A$156:$FR$198,DA$1)","v":111},{"$f":"VLOOKUP(DropDownList!$B$47,CntyQryCensus!$A$156:$FR$198,DB$1)","v":3202},{"$f":"VLOOKUP(DropDownList!$B$47,CntyQryCensus!$A$156:$FR$198,DC$1)","v":323},{"$f":"VLOOKUP(DropDownList!$B$47,CntyQryCensus!$A$156:$FR$198,DD$1)","v":323},{"$f":"VLOOKUP(DropDownList!$B$47,CntyQryCensus!$A$156:$FR$198,DE$1)","v":1283},{"$f":"VLOOKUP(DropDownList!$B$47,CntyQryCensus!$A$156:$FR$198,DF$1)","v":755},{"$f":"VLOOKUP(DropDownList!$B$47,CntyQryCensus!$A$156:$FR$198,DG$1)","v":207},{"$f":"VLOOKUP(DropDownList!$B$47,CntyQryCensus!$A$156:$FR$198,DH$1)","v":219},{"$f":"VLOOKUP(DropDownList!$B$47,CntyQryCensus!$A$156:$FR$198,DI$1)","v":92},{"$f":"VLOOKUP(DropDownList!$B$47,CntyQryCensus!$A$156:$FR$198,DJ$1)","v":882},{"$f":"VLOOKUP(DropDownList!$B$47,CntyQryCensus!$A$156:$FR$198,DK$1)","v":115},{"$f":"VLOOKUP(DropDownList!$B$47,CntyQryCensus!$A$156:$FR$198,DL$1)","v":256},{"$f":"VLOOKUP(DropDownList!$B$47,CntyQryCensus!$A$156:$FR$198,DM$1)","v":25},{"$f":"VLOOKUP(DropDownList!$B$47,CntyQryCensus!$A$156:$FR$198,DN$1)","v":25},{"$f":"VLOOKUP(DropDownList!$B$47,CntyQryCensus!$A$156:$FR$198,DO$1)","v":231},{"$f":"VLOOKUP(DropDownList!$B$47,CntyQryCensus!$A$156:$FR$198,DP$1)","v":190},{"$f":"VLOOKUP(DropDownList!$B$47,CntyQryCensus!$A$156:$FR$198,DQ$1)","v":2853},{"$f":"VLOOKUP(DropDownList!$B$47,CntyQryCensus!$A$156:$FR$198,DR$1)","v":577},{"$f":"VLOOKUP(DropDownList!$B$47,CntyQryCensus!$A$156:$FR$198,DS$1)","v":425},{"$f":"VLOOKUP(DropDownList!$B$47,CntyQryCensus!$A$156:$FR$198,DT$1)","v":2276},{"$f":"VLOOKUP(DropDownList!$B$47,CntyQryCensus!$A$156:$FR$198,DU$1)","v":1964},{"$f":"VLOOKUP(DropDownList!$B$47,CntyQryCensus!$A$156:$FR$198,DV$1)","v":267},{"$f":"VLOOKUP(DropDownList!$B$47,CntyQryCensus!$A$156:$FR$198,DW$1)","v":99},{"$f":"VLOOKUP(DropDownList!$B$47,CntyQryCensus!$A$156:$FR$198,DX$1)","v":239},{"$f":"VLOOKUP(DropDownList!$B$47,CntyQryCensus!$A$156:$FR$198,DY$1)","v":120},{"$f":"VLOOKUP(DropDownList!$B$47,CntyQryCensus!$A$156:$FR$198,DZ$1)","v":3615},{"$f":"VLOOKUP(DropDownList!$B$47,CntyQryCensus!$A$156:$FR$198,EA$1)","v":2731},{"$f":"VLOOKUP(DropDownList!$B$47,CntyQryCensus!$A$156:$FR$198,EB$1)","v":2731},{"$f":"VLOOKUP(DropDownList!$B$47,CntyQryCensus!$A$156:$FR$198,EC$1)","v":2664},{"$f":"VLOOKUP(DropDownList!$B$47,CntyQryCensus!$A$156:$FR$198,ED$1)","v":1277},{"$f":"VLOOKUP(DropDownList!$B$47,CntyQryCensus!$A$156:$FR$198,EE$1)","v":998},{"$f":"VLOOKUP(DropDownList!$B$47,CntyQryCensus!$A$156:$FR$198,EF$1)","v":107},{"$f":"VLOOKUP(DropDownList!$B$47,CntyQryCensus!$A$156:$FR$198,EG$1)","v":197},{"$f":"VLOOKUP(DropDownList!$B$47,CntyQryCensus!$A$156:$FR$198,EH$1)","v":552},{"$f":"VLOOKUP(DropDownList!$B$47,CntyQryCensus!$A$156:$FR$198,EI$1)","v":533},{"$f":"VLOOKUP(DropDownList!$B$47,CntyQryCensus!$A$156:$FR$198,EJ$1)","v":19},{"$f":"VLOOKUP(DropDownList!$B$47,CntyQryCensus!$A$156:$FR$198,EK$1)","v":142},{"$f":"VLOOKUP(DropDownList!$B$47,CntyQryCensus!$A$156:$FR$198,EL$1)","v":124},{"$f":"VLOOKUP(DropDownList!$B$47,CntyQryCensus!$A$156:$FR$198,EM$1)","v":18},{"$f":"VLOOKUP(DropDownList!$B$47,CntyQryCensus!$A$156:$FR$198,EN$1)","v":279},{"$f":"VLOOKUP(DropDownList!$B$47,CntyQryCensus!$A$156:$FR$198,EO$1)","v":102},{"$f":"VLOOKUP(DropDownList!$B$47,CntyQryCensus!$A$156:$FR$198,EP$1)","v":0},{"$f":"VLOOKUP(DropDownList!$B$47,CntyQryCensus!$A$156:$FR$198,EQ$1)","v":72},{"$f":"VLOOKUP(DropDownList!$B$47,CntyQryCensus!$A$156:$FR$198,ER$1)","v":27},{"$f":"VLOOKUP(DropDownList!$B$47,CntyQryCensus!$A$156:$FR$198,ES$1)","v":3},{"$f":"VLOOKUP(DropDownList!$B$47,CntyQryCensus!$A$156:$FR$198,ET$1)","v":177},{"$f":"VLOOKUP(DropDownList!$B$47,CntyQryCensus!$A$156:$FR$198,EU$1)","v":4},{"$f":"VLOOKUP(DropDownList!$B$47,CntyQryCensus!$A$156:$FR$198,EV$1)","v":97},{"$f":"VLOOKUP(DropDownList!$B$47,CntyQryCensus!$A$156:$FR$198,EW$1)","v":37},{"$f":"VLOOKUP(DropDownList!$B$47,CntyQryCensus!$A$156:$FR$198,EX$1)","v":39},{"$f":"VLOOKUP(DropDownList!$B$47,CntyQryCensus!$A$156:$FR$198,EY$1)","v":2664},{"$f":"VLOOKUP(DropDownList!$B$47,CntyQryCensus!$A$156:$FR$198,EZ$1)","v":21},{"$f":"VLOOKUP(DropDownList!$B$47,CntyQryCensus!$A$156:$FR$198,FA$1)","v":327},{"$f":"VLOOKUP(DropDownList!$B$47,CntyQryCensus!$A$156:$FR$198,FB$1)","v":506},{"$f":"VLOOKUP(DropDownList!$B$47,CntyQryCensus!$A$156:$FR$198,FC$1)","v":71},{"$f":"VLOOKUP(DropDownList!$B$47,CntyQryCensus!$A$156:$FR$198,FD$1)","v":470},{"$f":"VLOOKUP(DropDownList!$B$47,CntyQryCensus!$A$156:$FR$198,FE$1)","v":46},{"$f":"VLOOKUP(DropDownList!$B$47,CntyQryCensus!$A$156:$FR$198,FF$1)","v":52},{"$f":"VLOOKUP(DropDownList!$B$47,CntyQryCensus!$A$156:$FR$198,FG$1)","v":227},{"$f":"VLOOKUP(DropDownList!$B$47,CntyQryCensus!$A$156:$FR$198,FH$1)","v":191},{"$f":"VLOOKUP(DropDownList!$B$47,CntyQryCensus!$A$156:$FR$198,FI$1)","v":362},{"$f":"VLOOKUP(DropDownList!$B$47,CntyQryCensus!$A$156:$FR$198,FJ$1)","v":112},{"$f":"VLOOKUP(DropDownList!$B$47,CntyQryCensus!$A$156:$FR$198,FK$1)","v":90},{"$f":"VLOOKUP(DropDownList!$B$47,CntyQryCensus!$A$156:$FR$198,FL$1)","v":189},{"$f":"VLOOKUP(DropDownList!$B$47,CntyQryCensus!$A$156:$FR$198,FM$1)","v":581},{"$f":"VLOOKUP(DropDownList!$B$47,CntyQryCensus!$A$156:$FR$198,FN$1)","v":376},{"$f":"VLOOKUP(DropDownList!$B$47,CntyQryCensus!$A$156:$FR$198,FO$1)","v":794},{"$f":"VLOOKUP(DropDownList!$B$47,CntyQryCensus!$A$156:$FR$198,FP$1)","v":8},{"$f":"VLOOKUP(DropDownList!$B$47,CntyQryCensus!$A$156:$FR$198,FQ$1)","v":417},{"$f":"VLOOKUP(DropDownList!$B$47,CntyQryCensus!$A$156:$FR$198,FR$1)","v":488}]
[]
[]
["Census 2000 SummaryFile3 Sample Data  -  SF3TownQry2aIncomeChar"]
["NAME","LOGRECNO","COUNTY","TotalPop","P52Households1","P52HHInc<10K","P52HHInc10to15K","P52HHInc15to20K","P52HHInc20to25K","P52HHInc25to30K","P52HHInc30to35K","P52HHInc35to40K","P52HHInc40to45K","P52HHInc45to50K","P52HHInc50to60K","P52HHInc60to75K","P52HHInc75to100K","P52HHInc100to125K","P52HHInc125to150K","P52HHInc150to200K","P52HHInc>200K","P53MedianHHInc","P54AggregHHInc","P55Households2","P55HHUnder25yrs","P55HH<25HHInc<10K","P55HH<25HHInc10to15K","P55HH<25HHInc15to20K","P55HH<25HHInc20to25K","P55HH<25HHInc25to30K","P55HH<25HHInc30to35K","P55HH<25HHInc35to40K","P55HH<25HHInc40to45K","P55HH<25HHInc45to50K","P55HH<25HHInc50to60K","P55HH<25HHInc60to75K","P55HH<25HHInc75to100K","P55HH<25HHInc100to125K","P55HH<25HHInc125to150K","P55HH<25HHInc150to200K","P55HH<25HHInc>200K","P55HH25to34yrs","P55HH25to34HHInc<10K","P55HH25to34HHInc10to15K","P55HH25to34HHInc15to20K","P55HH25to34HHInc20to25K","P55HH25to34HHInc25to30K","P55HH25to34HHInc30to35K","P55HH25to34HHInc35to40K","P55HH25to34HHInc40to45K","P55HH25to34HHInc45to50K","P55HH25to34HHInc50to60K","P55HH25to34HHInc60to75K","P55HH25to34HHInc75to100K","P55HH25to34HHInc100to125K","P55HH25to34HHInc125to150K","P55HH25to34HHInc150to200K","P55HH25to34HHInc>200K","P55HH35to44yrs","P55HH35to44HHInc<10K","P55HH35to44HHInc10to15K","P55HH35to44HHInc15to20K","P55HH35to44HHInc20to25K","P55HH35to44HHInc25to30K","P55HH35to44HHInc30to35K","P55HH35to44HHInc35to40K","P55HH35to44HHInc40to45K","P55HH35to44HHInc45to50K","P55HH35to44HHInc50to60K","P55HH35to44HHInc60to75K","P55HH35to44HHInc75to100K","P55HH35to44HHInc100to125K","P55HH35to44HHInc125to150K","P55HH35to44HHInc150to200K","P55HH35to44HHInc>200K","P55HH45to54yrs","P55HH45to55HHInc<10K","P55HH45to55HHInc10to15K","P55HH45to55HHInc15to20K","P55HH45to55HHInc20to25K","P55HH45to55HHInc25to30K","P55HH45to55HHInc30to35K","P55HH45to55HHInc35to40K","P55HH45to55HHInc40to45K","P55HH45to55HHInc45to50K","P55HH45to55HHInc50to60K","P55HH45to55HHInc60to75K","P55HH45to55HHInc75to100K","P55HH45to55HHInc100to125K","P55HH45to55HHInc125to150K","P55HH45to55HHInc150to200K","P55HH45to55HHInc>200K","P55HH55to64yrs","P55HH55to64HHInc<10K","P55HH55to64HHInc10to15K","P55HH55to64HHInc15to20K","P55HH55to64HHInc20to25K","P55HH55to64HHInc25to30K","P55HH55to64HHInc30to35K","P55HH55to64HHInc35to40K","P55HH55to64HHInc40to45K","P55HH55to64HHInc45to50K","P55HH55to64HHInc50to60K","P55HH55to64HHInc60to75K","P55HH55to64HHInc75to100K","P55HH55to64HHInc100to125K","P55HH55to64HHInc125to150K","P55HH55to64HHInc150to200K","P55HH55to64HHInc>200K","P55HH65to74yrs","P55HH65to74HHInc<10K","P55HH65to74HHInc10to15K","P55HH65to74HHInc15to20K","P55HH65to74HHInc20to25K","P55HH65to74HHInc25to30K","P55HH65to74HHInc30to35K","P55HH65to74HHInc35to40K","P55HH65to74HHInc40to45K","P55HH65to74HHInc45to50K","P55HH65to74HHInc50to60K","P55HH65to74HHInc60to75K","P55HH65to74HHInc75to100K","P55HH65to74HHInc100to125K","P55HH65to74HHInc125to150K","P55HH65to74HHInc150to200K","P55HH65to74HHInc>200K","P55HH>75yrs","P55HH>75HHInc<10K","P55HH>75HHInc10to15K","P55HH>75HHInc15to20K","P55HH>75HHInc20to25K","P55HH>75HHInc25to30K","P55HH>75HHInc30to35K","P55HH>75HHInc35to40K","P55HH>75HHInc40to45K","P55HH>75HHInc45to50K","P55HH>75HHInc50to60K","P55HH>75HHInc60to75K","P55HH>75HHInc75to100K","P55HH>75HHInc100to125K","P55HH>75HHInc125to150K","P55HH>75HHInc150to200K","P55HH>75HHInc>200K","P56MedHHInc","P56MedHHIncHH<25y","P56MedHHIncHH25to34y","P56MedHHIncHH35to44y","P56MedHHIncHH45to54y","P56MedHHIncHH55to64y","P56MedHHIncHH65to74y","P56MedHHIncHH>75y","P58Households3","P58HHwithEarnings","P58HHNoEarnings","P59HHwWageSalInc","P59HHNoWageSalInc","P60HHwSelfEmpInc","P60HHNoSelfEmpInc","P61HHwIndDivInc","P61HHNoIndDivInc","P62HHwSocSecInc","P62HHNoSocSecInc","P63HHwSSI","P63HHNoSSI","P64HHwPubAssInc","P64HHNoPubAssInc","P65HHwRetInc","P65HHNoRetInc","P66HHwOtherTypInc","P66HHNoOtherTypInc","P67AggregEarnings","P68AggregWageSalInc","P69AggregSelfEmpInc","P70AggregIntDivInc","P71AggregSocSecInc","P72AggregSSIInc","P73AggregPublicAssInc","P74AggregRetireInc","P76Families1","P76FamInc<10K","P76FamInc10to15K","P76FamInc15to20K","P76FamInc20to25K","P76FamInc25to30K","P76FamInc30to35K","P76FamInc35to40K","P76FamInc40to45K","P76FamInc45to50K","P76FamInc50to60K","P76FamInc60to75K","P76FamInc75to100K","P76FamInc100to125K","P76FamInc125to150K","P76FamInc150to200K","P76FamInc>200K","P77MedFamInc","P78AggregFamInc","P79NonFamHH","P79NonFamHHwInc<10K","P79NonFamHHwInc10to15K","P79NonFamHHwInc15to20K","P79NonFamHHwInc20to25K","P79NonFamHHwInc25to30K","P79NonFamHHwInc30to35K","P79NonFamHHwInc35to40K","P79NonFamHHwInc40to45K","P79NonFamHHwInc45to50K","P79NonFamHHwInc50to60K","P79NonFamHHwInc60to75K","P79NonFamHHwInc75to100K","P79NonFamHHwInc100to125K","P79NonFamHHwInc125to150K","P79NonFamHHwInc150to200K","P79NonFamHHwInc200KorMore","P80MedNonFamInc","P82PerCapitaInc"]
[{"$f":"VLOOKUP(DropDownList!$B$47,CntyQryCensus!$A$206:$HH$248,A$1)","v":"Allenstown"},{"$f":"VLOOKUP(DropDownList!$B$47,CntyQryCensus!$A$206:$HH$248,B$1)","v":"0002575"},{"$f":"VLOOKUP(DropDownList!$B$47,CntyQryCensus!$A$206:$HH$248,C$1)","v":"00660"},{"$f":"VLOOKUP(DropDownList!$B$47,CntyQryCensus!$A$206:$HH$248,D$1)","v":4843},{"$f":"VLOOKUP(DropDownList!$B$47,CntyQryCensus!$A$206:$HH$248,E$1)","v":1901},{"$f":"VLOOKUP(DropDownList!$B$47,CntyQryCensus!$A$206:$HH$248,F$1)","v":121},{"$f":"VLOOKUP(DropDownList!$B$47,CntyQryCensus!$A$206:$HH$248,G$1)","v":100},{"$f":"VLOOKUP(DropDownList!$B$47,CntyQryCensus!$A$206:$HH$248,H$1)","v":91},{"$f":"VLOOKUP(DropDownList!$B$47,CntyQryCensus!$A$206:$HH$248,I$1)","v":117},{"$f":"VLOOKUP(DropDownList!$B$47,CntyQryCensus!$A$206:$HH$248,J$1)","v":174},{"$f":"VLOOKUP(DropDownList!$B$47,CntyQryCensus!$A$206:$HH$248,K$1)","v":118},{"$f":"VLOOKUP(DropDownList!$B$47,CntyQryCensus!$A$206:$HH$248,L$1)","v":159},{"$f":"VLOOKUP(DropDownList!$B$47,CntyQryCensus!$A$206:$HH$248,M$1)","v":146},{"$f":"VLOOKUP(DropDownList!$B$47,CntyQryCensus!$A$206:$HH$248,N$1)","v":76},{"$f":"VLOOKUP(DropDownList!$B$47,CntyQryCensus!$A$206:$HH$248,O$1)","v":234},{"$f":"VLOOKUP(DropDownList!$B$47,CntyQryCensus!$A$206:$HH$248,P$1)","v":263},{"$f":"VLOOKUP(DropDownList!$B$47,CntyQryCensus!$A$206:$HH$248,Q$1)","v":182},{"$f":"VLOOKUP(DropDownList!$B$47,CntyQryCensus!$A$206:$HH$248,R$1)","v":81},{"$f":"VLOOKUP(DropDownList!$B$47,CntyQryCensus!$A$206:$HH$248,S$1)","v":33},{"$f":"VLOOKUP(DropDownList!$B$47,CntyQryCensus!$A$206:$HH$248,T$1)","v":6},{"$f":"VLOOKUP(DropDownList!$B$47,CntyQryCensus!$A$206:$HH$248,U$1)","v":0},{"$f":"VLOOKUP(DropDownList!$B$47,CntyQryCensus!$A$206:$HH$248,V$1)","v":41958},{"$f":"VLOOKUP(DropDownList!$B$47,CntyQryCensus!$A$206:$HH$248,W$1)","v":90891700},{"$f":"VLOOKUP(DropDownList!$B$47,CntyQryCensus!$A$206:$HH$248,X$1)","v":1901},{"$f":"VLOOKUP(DropDownList!$B$47,CntyQryCensus!$A$206:$HH$248,Y$1)","v":46},{"$f":"VLOOKUP(DropDownList!$B$47,CntyQryCensus!$A$206:$HH$248,Z$1)","v":0},{"$f":"VLOOKUP(DropDownList!$B$47,CntyQryCensus!$A$206:$HH$248,AA$1)","v":0},{"$f":"VLOOKUP(DropDownList!$B$47,CntyQryCensus!$A$206:$HH$248,AB$1)","v":16},{"$f":"VLOOKUP(DropDownList!$B$47,CntyQryCensus!$A$206:$HH$248,AC$1)","v":8},{"$f":"VLOOKUP(DropDownList!$B$47,CntyQryCensus!$A$206:$HH$248,AD$1)","v":0},{"$f":"VLOOKUP(DropDownList!$B$47,CntyQryCensus!$A$206:$HH$248,AE$1)","v":0},{"$f":"VLOOKUP(DropDownList!$B$47,CntyQryCensus!$A$206:$HH$248,AF$1)","v":10},{"$f":"VLOOKUP(DropDownList!$B$47,CntyQryCensus!$A$206:$HH$248,AG$1)","v":0},{"$f":"VLOOKUP(DropDownList!$B$47,CntyQryCensus!$A$206:$HH$248,AH$1)","v":0},{"$f":"VLOOKUP(DropDownList!$B$47,CntyQryCensus!$A$206:$HH$248,AI$1)","v":12},{"$f":"VLOOKUP(DropDownList!$B$47,CntyQryCensus!$A$206:$HH$248,AJ$1)","v":0},{"$f":"VLOOKUP(DropDownList!$B$47,CntyQryCensus!$A$206:$HH$248,AK$1)","v":0},{"$f":"VLOOKUP(DropDownList!$B$47,CntyQryCensus!$A$206:$HH$248,AL$1)","v":0},{"$f":"VLOOKUP(DropDownList!$B$47,CntyQryCensus!$A$206:$HH$248,AM$1)","v":0},{"$f":"VLOOKUP(DropDownList!$B$47,CntyQryCensus!$A$206:$HH$248,AN$1)","v":0},{"$f":"VLOOKUP(DropDownList!$B$47,CntyQryCensus!$A$206:$HH$248,AO$1)","v":0},{"$f":"VLOOKUP(DropDownList!$B$47,CntyQryCensus!$A$206:$HH$248,AP$1)","v":358},{"$f":"VLOOKUP(DropDownList!$B$47,CntyQryCensus!$A$206:$HH$248,AQ$1)","v":8},{"$f":"VLOOKUP(DropDownList!$B$47,CntyQryCensus!$A$206:$HH$248,AR$1)","v":8},{"$f":"VLOOKUP(DropDownList!$B$47,CntyQryCensus!$A$206:$HH$248,AS$1)","v":0},{"$f":"VLOOKUP(DropDownList!$B$47,CntyQryCensus!$A$206:$HH$248,AT$1)","v":27},{"$f":"VLOOKUP(DropDownList!$B$47,CntyQryCensus!$A$206:$HH$248,AU$1)","v":46},{"$f":"VLOOKUP(DropDownList!$B$47,CntyQryCensus!$A$206:$HH$248,AV$1)","v":19},{"$f":"VLOOKUP(DropDownList!$B$47,CntyQryCensus!$A$206:$HH$248,AW$1)","v":44},{"$f":"VLOOKUP(DropDownList!$B$47,CntyQryCensus!$A$206:$HH$248,AX$1)","v":57},{"$f":"VLOOKUP(DropDownList!$B$47,CntyQryCensus!$A$206:$HH$248,AY$1)","v":10},{"$f":"VLOOKUP(DropDownList!$B$47,CntyQryCensus!$A$206:$HH$248,AZ$1)","v":48},{"$f":"VLOOKUP(DropDownList!$B$47,CntyQryCensus!$A$206:$HH$248,BA$1)","v":40},{"$f":"VLOOKUP(DropDownList!$B$47,CntyQryCensus!$A$206:$HH$248,BB$1)","v":51},{"$f":"VLOOKUP(DropDownList!$B$47,CntyQryCensus!$A$206:$HH$248,BC$1)","v":0},{"$f":"VLOOKUP(DropDownList!$B$47,CntyQryCensus!$A$206:$HH$248,BD$1)","v":0},{"$f":"VLOOKUP(DropDownList!$B$47,CntyQryCensus!$A$206:$HH$248,BE$1)","v":0},{"$f":"VLOOKUP(DropDownList!$B$47,CntyQryCensus!$A$206:$HH$248,BF$1)","v":0},{"$f":"VLOOKUP(DropDownList!$B$47,CntyQryCensus!$A$206:$HH$248,BG$1)","v":502},{"$f":"VLOOKUP(DropDownList!$B$47,CntyQryCensus!$A$206:$HH$248,BH$1)","v":17},{"$f":"VLOOKUP(DropDownList!$B$47,CntyQryCensus!$A$206:$HH$248,BI$1)","v":21},{"$f":"VLOOKUP(DropDownList!$B$47,CntyQryCensus!$A$206:$HH$248,BJ$1)","v":0},{"$f":"VLOOKUP(DropDownList!$B$47,CntyQryCensus!$A$206:$HH$248,BK$1)","v":24},{"$f":"VLOOKUP(DropDownList!$B$47,CntyQryCensus!$A$206:$HH$248,BL$1)","v":19},{"$f":"VLOOKUP(DropDownList!$B$47,CntyQryCensus!$A$206:$HH$248,BM$1)","v":24},{"$f":"VLOOKUP(DropDownList!$B$47,CntyQryCensus!$A$206:$HH$248,BN$1)","v":55},{"$f":"VLOOKUP(DropDownList!$B$47,CntyQryCensus!$A$206:$HH$248,BO$1)","v":24},{"$f":"VLOOKUP(DropDownList!$B$47,CntyQryCensus!$A$206:$HH$248,BP$1)","v":34},{"$f":"VLOOKUP(DropDownList!$B$47,CntyQryCensus!$A$206:$HH$248,BQ$1)","v":91},{"$f":"VLOOKUP(DropDownList!$B$47,CntyQryCensus!$A$206:$HH$248,BR$1)","v":111},{"$f":"VLOOKUP(DropDownList!$B$47,CntyQryCensus!$A$206:$HH$248,BS$1)","v":41},{"$f":"VLOOKUP(DropDownList!$B$47,CntyQryCensus!$A$206:$HH$248,BT$1)","v":35},{"$f":"VLOOKUP(DropDownList!$B$47,CntyQryCensus!$A$206:$HH$248,BU$1)","v":6},{"$f":"VLOOKUP(DropDownList!$B$47,CntyQryCensus!$A$206:$HH$248,BV$1)","v":0},{"$f":"VLOOKUP(DropDownList!$B$47,CntyQryCensus!$A$206:$HH$248,BW$1)","v":0},{"$f":"VLOOKUP(DropDownList!$B$47,CntyQryCensus!$A$206:$HH$248,BX$1)","v":396},{"$f":"VLOOKUP(DropDownList!$B$47,CntyQryCensus!$A$206:$HH$248,BY$1)","v":13},{"$f":"VLOOKUP(DropDownList!$B$47,CntyQryCensus!$A$206:$HH$248,BZ$1)","v":7},{"$f":"VLOOKUP(DropDownList!$B$47,CntyQryCensus!$A$206:$HH$248,CA$1)","v":9},{"$f":"VLOOKUP(DropDownList!$B$47,CntyQryCensus!$A$206:$HH$248,CB$1)","v":12},{"$f":"VLOOKUP(DropDownList!$B$47,CntyQryCensus!$A$206:$HH$248,CC$1)","v":37},{"$f":"VLOOKUP(DropDownList!$B$47,CntyQryCensus!$A$206:$HH$248,CD$1)","v":44},{"$f":"VLOOKUP(DropDownList!$B$47,CntyQryCensus!$A$206:$HH$248,CE$1)","v":21},{"$f":"VLOOKUP(DropDownList!$B$47,CntyQryCensus!$A$206:$HH$248,CF$1)","v":37},{"$f":"VLOOKUP(DropDownList!$B$47,CntyQryCensus!$A$206:$HH$248,CG$1)","v":15},{"$f":"VLOOKUP(DropDownList!$B$47,CntyQryCensus!$A$206:$HH$248,CH$1)","v":69},{"$f":"VLOOKUP(DropDownList!$B$47,CntyQryCensus!$A$206:$HH$248,CI$1)","v":48},{"$f":"VLOOKUP(DropDownList!$B$47,CntyQryCensus!$A$206:$HH$248,CJ$1)","v":49},{"$f":"VLOOKUP(DropDownList!$B$47,CntyQryCensus!$A$206:$HH$248,CK$1)","v":35},{"$f":"VLOOKUP(DropDownList!$B$47,CntyQryCensus!$A$206:$HH$248,CL$1)","v":0},{"$f":"VLOOKUP(DropDownList!$B$47,CntyQryCensus!$A$206:$HH$248,CM$1)","v":0},{"$f":"VLOOKUP(DropDownList!$B$47,CntyQryCensus!$A$206:$HH$248,CN$1)","v":0},{"$f":"VLOOKUP(DropDownList!$B$47,CntyQryCensus!$A$206:$HH$248,CO$1)","v":222},{"$f":"VLOOKUP(DropDownList!$B$47,CntyQryCensus!$A$206:$HH$248,CP$1)","v":0},{"$f":"VLOOKUP(DropDownList!$B$47,CntyQryCensus!$A$206:$HH$248,CQ$1)","v":7},{"$f":"VLOOKUP(DropDownList!$B$47,CntyQryCensus!$A$206:$HH$248,CR$1)","v":0},{"$f":"VLOOKUP(DropDownList!$B$47,CntyQryCensus!$A$206:$HH$248,CS$1)","v":14},{"$f":"VLOOKUP(DropDownList!$B$47,CntyQryCensus!$A$206:$HH$248,CT$1)","v":27},{"$f":"VLOOKUP(DropDownList!$B$47,CntyQryCensus!$A$206:$HH$248,CU$1)","v":23},{"$f":"VLOOKUP(DropDownList!$B$47,CntyQryCensus!$A$206:$HH$248,CV$1)","v":20},{"$f":"VLOOKUP(DropDownList!$B$47,CntyQryCensus!$A$206:$HH$248,CW$1)","v":28},{"$f":"VLOOKUP(DropDownList!$B$47,CntyQryCensus!$A$206:$HH$248,CX$1)","v":4},{"$f":"VLOOKUP(DropDownList!$B$47,CntyQryCensus!$A$206:$HH$248,CY$1)","v":14},{"$f":"VLOOKUP(DropDownList!$B$47,CntyQryCensus!$A$206:$HH$248,CZ$1)","v":36},{"$f":"VLOOKUP(DropDownList!$B$47,CntyQryCensus!$A$206:$HH$248,DA$1)","v":20},{"$f":"VLOOKUP(DropDownList!$B$47,CntyQryCensus!$A$206:$HH$248,DB$1)","v":11},{"$f":"VLOOKUP(DropDownList!$B$47,CntyQryCensus!$A$206:$HH$248,DC$1)","v":12},{"$f":"VLOOKUP(DropDownList!$B$47,CntyQryCensus!$A$206:$HH$248,DD$1)","v":6},{"$f":"VLOOKUP(DropDownList!$B$47,CntyQryCensus!$A$206:$HH$248,DE$1)","v":0},{"$f":"VLOOKUP(DropDownList!$B$47,CntyQryCensus!$A$206:$HH$248,DF$1)","v":201},{"$f":"VLOOKUP(DropDownList!$B$47,CntyQryCensus!$A$206:$HH$248,DG$1)","v":12},{"$f":"VLOOKUP(DropDownList!$B$47,CntyQryCensus!$A$206:$HH$248,DH$1)","v":30},{"$f":"VLOOKUP(DropDownList!$B$47,CntyQryCensus!$A$206:$HH$248,DI$1)","v":41},{"$f":"VLOOKUP(DropDownList!$B$47,CntyQryCensus!$A$206:$HH$248,DJ$1)","v":20},{"$f":"VLOOKUP(DropDownList!$B$47,CntyQryCensus!$A$206:$HH$248,DK$1)","v":33},{"$f":"VLOOKUP(DropDownList!$B$47,CntyQryCensus!$A$206:$HH$248,DL$1)","v":8},{"$f":"VLOOKUP(DropDownList!$B$47,CntyQryCensus!$A$206:$HH$248,DM$1)","v":9},{"$f":"VLOOKUP(DropDownList!$B$47,CntyQryCensus!$A$206:$HH$248,DN$1)","v":0},{"$f":"VLOOKUP(DropDownList!$B$47,CntyQryCensus!$A$206:$HH$248,DO$1)","v":6},{"$f":"VLOOKUP(DropDownList!$B$47,CntyQryCensus!$A$206:$HH$248,DP$1)","v":0},{"$f":"VLOOKUP(DropDownList!$B$47,CntyQryCensus!$A$206:$HH$248,DQ$1)","v":19},{"$f":"VLOOKUP(DropDownList!$B$47,CntyQryCensus!$A$206:$HH$248,DR$1)","v":15},{"$f":"VLOOKUP(DropDownList!$B$47,CntyQryCensus!$A$206:$HH$248,DS$1)","v":0},{"$f":"VLOOKUP(DropDownList!$B$47,CntyQryCensus!$A$206:$HH$248,DT$1)","v":8},{"$f":"VLOOKUP(DropDownList!$B$47,CntyQryCensus!$A$206:$HH$248,DU$1)","v":0},{"$f":"VLOOKUP(DropDownList!$B$47,CntyQryCensus!$A$206:$HH$248,DV$1)","v":0},{"$f":"VLOOKUP(DropDownList!$B$47,CntyQryCensus!$A$206:$HH$248,DW$1)","v":176},{"$f":"VLOOKUP(DropDownList!$B$47,CntyQryCensus!$A$206:$HH$248,DX$1)","v":71},{"$f":"VLOOKUP(DropDownList!$B$47,CntyQryCensus!$A$206:$HH$248,DY$1)","v":27},{"$f":"VLOOKUP(DropDownList!$B$47,CntyQryCensus!$A$206:$HH$248,DZ$1)","v":25},{"$f":"VLOOKUP(DropDownList!$B$47,CntyQryCensus!$A$206:$HH$248,EA$1)","v":12},{"$f":"VLOOKUP(DropDownList!$B$47,CntyQryCensus!$A$206:$HH$248,EB$1)","v":12},{"$f":"VLOOKUP(DropDownList!$B$47,CntyQryCensus!$A$206:$HH$248,EC$1)","v":0},{"$f":"VLOOKUP(DropDownList!$B$47,CntyQryCensus!$A$206:$HH$248,ED$1)","v":0},{"$f":"VLOOKUP(DropDownList!$B$47,CntyQryCensus!$A$206:$HH$248,EE$1)","v":0},{"$f":"VLOOKUP(DropDownList!$B$47,CntyQryCensus!$A$206:$HH$248,EF$1)","v":7},{"$f":"VLOOKUP(DropDownList!$B$47,CntyQryCensus!$A$206:$HH$248,EG$1)","v":0},{"$f":"VLOOKUP(DropDownList!$B$47,CntyQryCensus!$A$206:$HH$248,EH$1)","v":9},{"$f":"VLOOKUP(DropDownList!$B$47,CntyQryCensus!$A$206:$HH$248,EI$1)","v":6},{"$f":"VLOOKUP(DropDownList!$B$47,CntyQryCensus!$A$206:$HH$248,EJ$1)","v":0},{"$f":"VLOOKUP(DropDownList!$B$47,CntyQryCensus!$A$206:$HH$248,EK$1)","v":7},{"$f":"VLOOKUP(DropDownList!$B$47,CntyQryCensus!$A$206:$HH$248,EL$1)","v":0},{"$f":"VLOOKUP(DropDownList!$B$47,CntyQryCensus!$A$206:$HH$248,EM$1)","v":0},{"$f":"VLOOKUP(DropDownList!$B$47,CntyQryCensus!$A$206:$HH$248,EN$1)","v":41958},{"$f":"VLOOKUP(DropDownList!$B$47,CntyQryCensus!$A$206:$HH$248,EO$1)","v":22188},{"$f":"VLOOKUP(DropDownList!$B$47,CntyQryCensus!$A$206:$HH$248,EP$1)","v":41378},{"$f":"VLOOKUP(DropDownList!$B$47,CntyQryCensus!$A$206:$HH$248,EQ$1)","v":52292},{"$f":"VLOOKUP(DropDownList!$B$47,CntyQryCensus!$A$206:$HH$248,ER$1)","v":50395},{"$f":"VLOOKUP(DropDownList!$B$47,CntyQryCensus!$A$206:$HH$248,ES$1)","v":44091},{"$f":"VLOOKUP(DropDownList!$B$47,CntyQryCensus!$A$206:$HH$248,ET$1)","v":24583},{"$f":"VLOOKUP(DropDownList!$B$47,CntyQryCensus!$A$206:$HH$248,EU$1)","v":12917},{"$f":"VLOOKUP(DropDownList!$B$47,CntyQryCensus!$A$206:$HH$248,EV$1)","v":1901},{"$f":"VLOOKUP(DropDownList!$B$47,CntyQryCensus!$A$206:$HH$248,EW$1)","v":1564},{"$f":"VLOOKUP(DropDownList!$B$47,CntyQryCensus!$A$206:$HH$248,EX$1)","v":337},{"$f":"VLOOKUP(DropDownList!$B$47,CntyQryCensus!$A$206:$HH$248,EY$1)","v":1512},{"$f":"VLOOKUP(DropDownList!$B$47,CntyQryCensus!$A$206:$HH$248,EZ$1)","v":389},{"$f":"VLOOKUP(DropDownList!$B$47,CntyQryCensus!$A$206:$HH$248,FA$1)","v":198},{"$f":"VLOOKUP(DropDownList!$B$47,CntyQryCensus!$A$206:$HH$248,FB$1)","v":1703},{"$f":"VLOOKUP(DropDownList!$B$47,CntyQryCensus!$A$206:$HH$248,FC$1)","v":534},{"$f":"VLOOKUP(DropDownList!$B$47,CntyQryCensus!$A$206:$HH$248,FD$1)","v":1367},{"$f":"VLOOKUP(DropDownList!$B$47,CntyQryCensus!$A$206:$HH$248,FE$1)","v":514},{"$f":"VLOOKUP(DropDownList!$B$47,CntyQryCensus!$A$206:$HH$248,FF$1)","v":1387},{"$f":"VLOOKUP(DropDownList!$B$47,CntyQryCensus!$A$206:$HH$248,FG$1)","v":27},{"$f":"VLOOKUP(DropDownList!$B$47,CntyQryCensus!$A$206:$HH$248,FH$1)","v":1874},{"$f":"VLOOKUP(DropDownList!$B$47,CntyQryCensus!$A$206:$HH$248,FI$1)","v":61},{"$f":"VLOOKUP(DropDownList!$B$47,CntyQryCensus!$A$206:$HH$248,FJ$1)","v":1840},{"$f":"VLOOKUP(DropDownList!$B$47,CntyQryCensus!$A$206:$HH$248,FK$1)","v":270},{"$f":"VLOOKUP(DropDownList!$B$47,CntyQryCensus!$A$206:$HH$248,FL$1)","v":1631},{"$f":"VLOOKUP(DropDownList!$B$47,CntyQryCensus!$A$206:$HH$248,FM$1)","v":243},{"$f":"VLOOKUP(DropDownList!$B$47,CntyQryCensus!$A$206:$HH$248,FN$1)","v":1658},{"$f":"VLOOKUP(DropDownList!$B$47,CntyQryCensus!$A$206:$HH$248,FO$1)","v":76573000},{"$f":"VLOOKUP(DropDownList!$B$47,CntyQryCensus!$A$206:$HH$248,FP$1)","v":70553900},{"$f":"VLOOKUP(DropDownList!$B$47,CntyQryCensus!$A$206:$HH$248,FQ$1)","v":6019100},{"$f":"VLOOKUP(DropDownList!$B$47,CntyQryCensus!$A$206:$HH$248,FR$1)","v":1634700},{"$f":"VLOOKUP(DropDownList!$B$47,CntyQryCensus!$A$206:$HH$248,FS$1)","v":5806400},{"$f":"VLOOKUP(DropDownList!$B$47,CntyQryCensus!$A$206:$HH$248,FT$1)","v":156000},{"$f":"VLOOKUP(DropDownList!$B$47,CntyQryCensus!$A$206:$HH$248,FU$1)","v":121800},{"$f":"VLOOKUP(DropDownList!$B$47,CntyQryCensus!$A$206:$HH$248,FV$1)","v":4808300},{"$f":"VLOOKUP(DropDownList!$B$47,CntyQryCensus!$A$206:$HH$248,FW$1)","v":1277},{"$f":"VLOOKUP(DropDownList!$B$47,CntyQryCensus!$A$206:$HH$248,FX$1)","v":5},{"$f":"VLOOKUP(DropDownList!$B$47,CntyQryCensus!$A$206:$HH$248,FY$1)","v":48},{"$f":"VLOOKUP(DropDownList!$B$47,CntyQryCensus!$A$206:$HH$248,FZ$1)","v":44},{"$f":"VLOOKUP(DropDownList!$B$47,CntyQryCensus!$A$206:$HH$248,GA$1)","v":72},{"$f":"VLOOKUP(DropDownList!$B$47,CntyQryCensus!$A$206:$HH$248,GB$1)","v":101},{"$f":"VLOOKUP(DropDownList!$B$47,CntyQryCensus!$A$206:$HH$248,GC$1)","v":94},{"$f":"VLOOKUP(DropDownList!$B$47,CntyQryCensus!$A$206:$HH$248,GD$1)","v":92},{"$f":"VLOOKUP(DropDownList!$B$47,CntyQryCensus!$A$206:$HH$248,GE$1)","v":78},{"$f":"VLOOKUP(DropDownList!$B$47,CntyQryCensus!$A$206:$HH$248,GF$1)","v":70},{"$f":"VLOOKUP(DropDownList!$B$47,CntyQryCensus!$A$206:$HH$248,GG$1)","v":196},{"$f":"VLOOKUP(DropDownList!$B$47,CntyQryCensus!$A$206:$HH$248,GH$1)","v":217},{"$f":"VLOOKUP(DropDownList!$B$47,CntyQryCensus!$A$206:$HH$248,GI$1)","v":165},{"$f":"VLOOKUP(DropDownList!$B$47,CntyQryCensus!$A$206:$HH$248,GJ$1)","v":56},{"$f":"VLOOKUP(DropDownList!$B$47,CntyQryCensus!$A$206:$HH$248,GK$1)","v":33},{"$f":"VLOOKUP(DropDownList!$B$47,CntyQryCensus!$A$206:$HH$248,GL$1)","v":6},{"$f":"VLOOKUP(DropDownList!$B$47,CntyQryCensus!$A$206:$HH$248,GM$1)","v":0},{"$f":"VLOOKUP(DropDownList!$B$47,CntyQryCensus!$A$206:$HH$248,GN$1)","v":51659},{"$f":"VLOOKUP(DropDownList!$B$47,CntyQryCensus!$A$206:$HH$248,GO$1)","v":69787400},{"$f":"VLOOKUP(DropDownList!$B$47,CntyQryCensus!$A$206:$HH$248,GP$1)","v":624},{"$f":"VLOOKUP(DropDownList!$B$47,CntyQryCensus!$A$206:$HH$248,GQ$1)","v":116},{"$f":"VLOOKUP(DropDownList!$B$47,CntyQryCensus!$A$206:$HH$248,GR$1)","v":62},{"$f":"VLOOKUP(DropDownList!$B$47,CntyQryCensus!$A$206:$HH$248,GS$1)","v":53},{"$f":"VLOOKUP(DropDownList!$B$47,CntyQryCensus!$A$206:$HH$248,GT$1)","v":59},{"$f":"VLOOKUP(DropDownList!$B$47,CntyQryCensus!$A$206:$HH$248,GU$1)","v":85},{"$f":"VLOOKUP(DropDownList!$B$47,CntyQryCensus!$A$206:$HH$248,GV$1)","v":30},{"$f":"VLOOKUP(DropDownList!$B$47,CntyQryCensus!$A$206:$HH$248,GW$1)","v":62},{"$f":"VLOOKUP(DropDownList!$B$47,CntyQryCensus!$A$206:$HH$248,GX$1)","v":40},{"$f":"VLOOKUP(DropDownList!$B$47,CntyQryCensus!$A$206:$HH$248,GY$1)","v":6},{"$f":"VLOOKUP(DropDownList!$B$47,CntyQryCensus!$A$206:$HH$248,GZ$1)","v":42},{"$f":"VLOOKUP(DropDownList!$B$47,CntyQryCensus!$A$206:$HH$248,HA$1)","v":47},{"$f":"VLOOKUP(DropDownList!$B$47,CntyQryCensus!$A$206:$HH$248,HB$1)","v":15},{"$f":"VLOOKUP(DropDownList!$B$47,CntyQryCensus!$A$206:$HH$248,HC$1)","v":7},{"$f":"VLOOKUP(DropDownList!$B$47,CntyQryCensus!$A$206:$HH$248,HD$1)","v":0},{"$f":"VLOOKUP(DropDownList!$B$47,CntyQryCensus!$A$206:$HH$248,HE$1)","v":0},{"$f":"VLOOKUP(DropDownList!$B$47,CntyQryCensus!$A$206:$HH$248,HF$1)","v":0},{"$f":"VLOOKUP(DropDownList!$B$47,CntyQryCensus!$A$206:$HH$248,HG$1)","v":26375},{"$f":"VLOOKUP(DropDownList!$B$47,CntyQryCensus!$A$206:$HH$248,HH$1)","v":18851}]
[]
[]
["Census 2000 SummaryFile3 Sample Data  -  SF3TownQry2bPovertyChar"]
["NAME","LOGRECNO","COUNTY","TotalPop","P52Households1","P82PerCapitaInc","P87PopForPovStatus","P87PopWIncBelowPovStatus","P87PopUnder5yrBelowPoverty","P87Pop5yrBelowPoverty","P87Pop5to11yrBelowPoverty","P87Pop12to17yrBelowPoverty","P87Pop18to64yrBelowPoverty","P87Pop65to74yrBelowPoverty","P87PopOver75yrBelowPoverty","P87PopWIncAbovePovStatus","P87PopUnder5yrAbovePoverty","P87Pop5yrAbovePoverty","P87Pop5to11yrAbovePoverty","P87Pop12to17yrAbovePoverty","P87Pop18to64yrAbovePoverty","P87Pop65to74yrAbovePoverty","P87PopOver75yrAbovePoverty","P90Families","P90FamWIncBelowPov","P90MarCupFamWIncBelowPov","P90MCFamWRltdChld<18WIncBelowPov","P90MCFamWRltdChld<5WIncBelowPov","P90MaleHhlrWIncBelowPov","P90MaleHhlrWRltdChld<18yrWIncBelowPov","P90MaleHhlrWRltdChld<5yrWIncBelowPov","P90FemaleHhlrWIncBelowPov","P90FemaleHhlrWRltdChld<18yWIncBelowPov","P90FemaleHhlrWRltdChld<5yWIncBelowPov","P90FamWIncAbovePov","P90MarCupFamWIncAbovePov","P90MCFamWRltdChld<18WIncAbovePov","P90MCFamWRltdChld<5WIncAbovePov","P90MaleHhlrWIncAbovePov","P90MaleHhlrWRltdChld<18yrWIncAbovePov","P90MaleHhlrWRltdChld<5yrWIncAbovePov","P90FemaleHhlrWIncAbovePov","P90FemaleHhlrWRltdChld<18yWIncAbovePov","P90FemaleHhlrWRltdChld<5yWIncAbovePov","P92Households","P92HHwIncBelowPov","P92FamHHwIncBelowPov","P92MCFamHHwIncBelowPov","P92MaleFamHHwIncBelowPov","P92FemaleFamHHwIncBelowPov","P92NonFamHHwIncBelowPov","P92NonFamMaleHHwIncBelowPov","P92NonFamFemaleHHwIncBelowPov","P92HHwIncAbovePov","P92FamHHwIncAbovePov","P92MCFamHHwIncAbovePov","P92MaleFamHHwIncAbovePov","P92FemaleFamHHwIncAbovePov","P92NonFamHHwIncAbovePov","P92NonFamMaleHHwIncAbovePov","P92NonFamFemaleHHwIncAbovePov"]
[{"$f":"VLOOKUP(DropDownList!$B$47,CntyQryCensus!$A$256:$BI$298,A$1)","v":"Allenstown"},{"$f":"VLOOKUP(DropDownList!$B$47,CntyQryCensus!$A$256:$BI$298,B$1)","v":"0002575"},{"$f":"VLOOKUP(DropDownList!$B$47,CntyQryCensus!$A$256:$BI$298,C$1)","v":"00660"},{"$f":"VLOOKUP(DropDownList!$B$47,CntyQryCensus!$A$256:$BI$298,D$1)","v":4843},{"$f":"VLOOKUP(DropDownList!$B$47,CntyQryCensus!$A$256:$BI$298,E$1)","v":1901},{"$f":"VLOOKUP(DropDownList!$B$47,CntyQryCensus!$A$256:$BI$298,F$1)","v":18851},{"$f":"VLOOKUP(DropDownList!$B$47,CntyQryCensus!$A$256:$BI$298,G$1)","v":4772},{"$f":"VLOOKUP(DropDownList!$B$47,CntyQryCensus!$A$256:$BI$298,H$1)","v":184},{"$f":"VLOOKUP(DropDownList!$B$47,CntyQryCensus!$A$256:$BI$298,I$1)","v":7},{"$f":"VLOOKUP(DropDownList!$B$47,CntyQryCensus!$A$256:$BI$298,J$1)","v":8},{"$f":"VLOOKUP(DropDownList!$B$47,CntyQryCensus!$A$256:$BI$298,K$1)","v":19},{"$f":"VLOOKUP(DropDownList!$B$47,CntyQryCensus!$A$256:$BI$298,L$1)","v":21},{"$f":"VLOOKUP(DropDownList!$B$47,CntyQryCensus!$A$256:$BI$298,M$1)","v":105},{"$f":"VLOOKUP(DropDownList!$B$47,CntyQryCensus!$A$256:$BI$298,N$1)","v":12},{"$f":"VLOOKUP(DropDownList!$B$47,CntyQryCensus!$A$256:$BI$298,O$1)","v":12},{"$f":"VLOOKUP(DropDownList!$B$47,CntyQryCensus!$A$256:$BI$298,P$1)","v":4588},{"$f":"VLOOKUP(DropDownList!$B$47,CntyQryCensus!$A$256:$BI$298,Q$1)","v":312},{"$f":"VLOOKUP(DropDownList!$B$47,CntyQryCensus!$A$256:$BI$298,R$1)","v":55},{"$f":"VLOOKUP(DropDownList!$B$47,CntyQryCensus!$A$256:$BI$298,S$1)","v":392},{"$f":"VLOOKUP(DropDownList!$B$47,CntyQryCensus!$A$256:$BI$298,T$1)","v":443},{"$f":"VLOOKUP(DropDownList!$B$47,CntyQryCensus!$A$256:$BI$298,U$1)","v":2904},{"$f":"VLOOKUP(DropDownList!$B$47,CntyQryCensus!$A$256:$BI$298,V$1)","v":255},{"$f":"VLOOKUP(DropDownList!$B$47,CntyQryCensus!$A$256:$BI$298,W$1)","v":227},{"$f":"VLOOKUP(DropDownList!$B$47,CntyQryCensus!$A$256:$BI$298,X$1)","v":1277},{"$f":"VLOOKUP(DropDownList!$B$47,CntyQryCensus!$A$256:$BI$298,Y$1)","v":28},{"$f":"VLOOKUP(DropDownList!$B$47,CntyQryCensus!$A$256:$BI$298,Z$1)","v":17},{"$f":"VLOOKUP(DropDownList!$B$47,CntyQryCensus!$A$256:$BI$298,AA$1)","v":17},{"$f":"VLOOKUP(DropDownList!$B$47,CntyQryCensus!$A$256:$BI$298,AB$1)","v":0},{"$f":"VLOOKUP(DropDownList!$B$47,CntyQryCensus!$A$256:$BI$298,AC$1)","v":0},{"$f":"VLOOKUP(DropDownList!$B$47,CntyQryCensus!$A$256:$BI$298,AD$1)","v":0},{"$f":"VLOOKUP(DropDownList!$B$47,CntyQryCensus!$A$256:$BI$298,AE$1)","v":0},{"$f":"VLOOKUP(DropDownList!$B$47,CntyQryCensus!$A$256:$BI$298,AF$1)","v":11},{"$f":"VLOOKUP(DropDownList!$B$47,CntyQryCensus!$A$256:$BI$298,AG$1)","v":11},{"$f":"VLOOKUP(DropDownList!$B$47,CntyQryCensus!$A$256:$BI$298,AH$1)","v":0},{"$f":"VLOOKUP(DropDownList!$B$47,CntyQryCensus!$A$256:$BI$298,AI$1)","v":1249},{"$f":"VLOOKUP(DropDownList!$B$47,CntyQryCensus!$A$256:$BI$298,AJ$1)","v":981},{"$f":"VLOOKUP(DropDownList!$B$47,CntyQryCensus!$A$256:$BI$298,AK$1)","v":475},{"$f":"VLOOKUP(DropDownList!$B$47,CntyQryCensus!$A$256:$BI$298,AL$1)","v":82},{"$f":"VLOOKUP(DropDownList!$B$47,CntyQryCensus!$A$256:$BI$298,AM$1)","v":102},{"$f":"VLOOKUP(DropDownList!$B$47,CntyQryCensus!$A$256:$BI$298,AN$1)","v":75},{"$f":"VLOOKUP(DropDownList!$B$47,CntyQryCensus!$A$256:$BI$298,AO$1)","v":23},{"$f":"VLOOKUP(DropDownList!$B$47,CntyQryCensus!$A$256:$BI$298,AP$1)","v":166},{"$f":"VLOOKUP(DropDownList!$B$47,CntyQryCensus!$A$256:$BI$298,AQ$1)","v":114},{"$f":"VLOOKUP(DropDownList!$B$47,CntyQryCensus!$A$256:$BI$298,AR$1)","v":12},{"$f":"VLOOKUP(DropDownList!$B$47,CntyQryCensus!$A$256:$BI$298,AS$1)","v":1901},{"$f":"VLOOKUP(DropDownList!$B$47,CntyQryCensus!$A$256:$BI$298,AT$1)","v":80},{"$f":"VLOOKUP(DropDownList!$B$47,CntyQryCensus!$A$256:$BI$298,AU$1)","v":28},{"$f":"VLOOKUP(DropDownList!$B$47,CntyQryCensus!$A$256:$BI$298,AV$1)","v":17},{"$f":"VLOOKUP(DropDownList!$B$47,CntyQryCensus!$A$256:$BI$298,AW$1)","v":0},{"$f":"VLOOKUP(DropDownList!$B$47,CntyQryCensus!$A$256:$BI$298,AX$1)","v":11},{"$f":"VLOOKUP(DropDownList!$B$47,CntyQryCensus!$A$256:$BI$298,AY$1)","v":52},{"$f":"VLOOKUP(DropDownList!$B$47,CntyQryCensus!$A$256:$BI$298,AZ$1)","v":8},{"$f":"VLOOKUP(DropDownList!$B$47,CntyQryCensus!$A$256:$BI$298,BA$1)","v":44},{"$f":"VLOOKUP(DropDownList!$B$47,CntyQryCensus!$A$256:$BI$298,BB$1)","v":1821},{"$f":"VLOOKUP(DropDownList!$B$47,CntyQryCensus!$A$256:$BI$298,BC$1)","v":1249},{"$f":"VLOOKUP(DropDownList!$B$47,CntyQryCensus!$A$256:$BI$298,BD$1)","v":981},{"$f":"VLOOKUP(DropDownList!$B$47,CntyQryCensus!$A$256:$BI$298,BE$1)","v":102},{"$f":"VLOOKUP(DropDownList!$B$47,CntyQryCensus!$A$256:$BI$298,BF$1)","v":166},{"$f":"VLOOKUP(DropDownList!$B$47,CntyQryCensus!$A$256:$BI$298,BG$1)","v":572},{"$f":"VLOOKUP(DropDownList!$B$47,CntyQryCensus!$A$256:$BI$298,BH$1)","v":232},{"$f":"VLOOKUP(DropDownList!$B$47,CntyQryCensus!$A$256:$BI$298,BI$1)","v":340}]
[null,null,null,null,null,null,null,null,null,null,null,null,null,null,null,null,null,null,{"$f":"SUM(R60:T60)","v":890}]
[]
["Census 2000 SummaryFile3 Sample Data  -  SF3TownQry7HousingA"]
["NAME","LOGRECNO","COUNTY","TotalPop","H1HousingUnitsTotal","H2SampleHU","H2SampleOccHU","H2SampleVacHU","H3HU100pctCount","H5HUTotal","H5HUUrban","H5HUUrbanInUrbanAreas","H5HUUrbanInUrbanClusters","H5HURural","H5HURuralFarm","H5HURuralNonFarm","H7HUOcc","H7HUOwnrOcc","H7HURentrOcc","H8HUVacant","H8HUVacantForRent","H8HUVacantForSale","H8HUVacRentedorSold","H8HUVacSeasonal","H8HUVacForMigrantWrkrs","H8HUOtherVacant","H14OccHUa","H14OwnerOccHU","H14OwnOccHuHh15to24","H14OwnOccHuHh25to34","H14OwnOccHuHh35to44","H14OwnOccHuHh45to54","H14OwnOccHuHh55to59","H14OwnOccHuHh60to64","H14OwnOccHuHh65to74","H14OwnOccHuHh75to84","H14OwnOccHuHh85Over","H14RenterOccHU1","H14RntrOccHuHh15to24","H14RntrOccHuHh25to34","H14RntrOccHuHh35to44","H14RntrOccHuHh45to54","H14RntrOccHuHh55to59","H14RntrOccHuHh60to64","H14RntrOccHuHh65to74","H14RntrOccHuHh75to84","H14RntrOccHuHh85Over","H15PopInOccHU","H15PopInOwnOccHU1","H15PopInRentOccHU1","H17OccupHUb","H17OwnOccHU2","H17OwnOccHU1PersonHH","H17OwnOccHU2PersonHH","H17OwnOccHU3PersonHH","H17OwnOccHU4PersonHH","H17OwnOccHU5PersonHH","H17OwnOccHU6PersonHH","H17OwnOccHU7PlusPersonHH","H17RentOccHU2","H17RntOccHU1PersonHH","H17RntOccHU2PersonHH","H17RntOccHU3PersonHH","H17RntOccHU4PersonHH","H17RntOccHU5PersonHH","H17RntOccHU6PersonHH","H17RntOccHU7PlusPersonHH","H18AvgHHSize","H18AvgHHSizeOwnOcc","H18AvgHHSizeRentOcc","H23TotHU","H23HU1Room","H23HU2Room","H23HU3Room","H23HU4Room","H23HU5Room","H23HU6Room","H23HU7Room","H23HU8Room","H23HU9orMoreRoom","H24MedianNumRooms","H25AggregNumRooms","H30TotalHU","H30Det1HU","H30Att1HU","H30Units2","H30Units3or4","H30Units5to9","H30Units10to19","H30Units20to49","H30Units50orMore","H30UnitsMobileHome","H30UnitsBoatRv","H32OccHUcTotal","H32OwnerOccHU3","H32OwnOccHU1Det","H32OwnOccHU1Att","H32OwnOccHU2Unit","H32OwnOccHU3to4Unit","H32OwnOccHU5to9Unit","H32OwnOccHU10to19Unit","H32OwnOccHU20to49Unit","H32OwnOccHU50plusUnit","H32OwnOccHUMobHom","H32OwnOccHUBoatRVOth","H32RentrOccHU3","H32RntrOccHU1Det","H32RntrOccHU1Att","H32RntrOccHU2Unit","H32RntrOccHU3to4Unit","H32RntrOccHU5to9Unit","H32RntrOccHU10to19Unit","H32RntrOccHU20to49Unit","H32RntrOccHU50PlusUnit","H32RntrOccHUMobHom","H32RntrOccHUBoatRVOth","H33TotPopInOccHU","H33PopInOwnOccHU2","H33PopInOOHU1Det","H33PopInOOHU1Att","H33PopInOOHU2unit","H33PopInOOHU3to4Unit","H33PopInOOHU5to9Unit","H33PopInOOHU10to19Unit","H33PopInOOHU20to49Unit","H33PopInOOHU50PlusUnit","H33PopInOOHUMobilHome","H33PopInOOHUOtherUnit","H33PopInRentOccHU2","H33PopInROHU1Det","H33PopInROHU1Att","H33PopInROHU2Unit","H33PopInROHU3to4Unit","H33PopInROHU5to9Unit","H33PopInROHU10to19Unit","H33PopInROHU20to49Unit","H33PopInROHU50PlusUnit","H33PopInROHUMobilHome","H33PopInROHUOtherUnit","H36OccHousingUnitsdTotal","H36OwnerOccHU4","H36OOHUBuilt99to0300","H36OOHUBuilt95to98","H36OOHUBuilt90to94","H36OOHUBuilt80to89","H36OOHUBuilt70to79","H36OOHUBuilt60to69","H36OOHUBuilt50to59","H36OOHUBuilt40to49","H36OOHUBuilt39Earlier","H36RentOccHU4","H36ROHUBuilt99to0300","H36ROHUBuilt95to98","H36ROHUBuilt90to94","H36ROHUBuilt80to89","H36ROHUBuilt70to79","H36ROHUBuilt60to69","H36ROHUBuilt50to59","H36ROHUBuilt40to49","H36ROHUBuilt39Earlier","H40OccupHousUnitse","H40HeatFuelUtilGas","H40HeatFuelBotGas","H40HeatFuelElect","H40HeatFuelOilKero","H40HeatFuelCoal","H40HeatFuelWood","H40HeatFuelSolar","H40HeatFuelOther","H40HeatFuelNone","H41TotalHU","H41HUNoBdrm","H41HU1Bdrm","H41HU2Bdrm","H41HU3Bdrm","H41HU4Bdrm","H41HU5MoreBdrm","H42OccuHousUnitf","H42OwnerOccHU5","H42OOHUNoBdrm","H42OOHU1Bdrm","H42OOHU2Bdrm","H42OOHU3Bdrm","H42OOHU4Bdrm","H42OOHU5PlusBdrm","H42RentOccHU5","H42ROHUNoBdrm","H42ROHU1Bdrm","H42ROHU2Bdrm","H42ROHU3Bdrm","H42ROHU4Bdrm","H42ROHU5PlusBdrm","H48OccupHousUnitsg","H48OwnerOccHU6","H48OOHUwCompltPlumFacil","H48OOHULackCompltPlumFacil","H48RentOccHU6","H48ROHUwCompltPlumFacil","H48ROHULackCompltPlumFacil","H51OccupHousUnitf","H51OwnerOccHU7","H51OOHUwCompleteKitFacil","H51OOHULackCompleteKitFacil","H51RenterOccHU7","H51ROHUwCompleteKitFacil","H51ROHULackCompleteKitFacil"]
[{"$f":"VLOOKUP(DropDownList!$B47,CntyQryCensus!$A$306:$GX$348,A$1)","v":"Allenstown"},{"$f":"VLOOKUP(DropDownList!$B47,CntyQryCensus!$A$306:$GX$348,B$1)","v":"0002575"},{"$f":"VLOOKUP(DropDownList!$B47,CntyQryCensus!$A$306:$GX$348,C$1)","v":"00660"},{"$f":"VLOOKUP(DropDownList!$B47,CntyQryCensus!$A$306:$GX$348,D$1)","v":4843},{"$f":"VLOOKUP(DropDownList!$B47,CntyQryCensus!$A$306:$GX$348,E$1)","v":1962},{"$f":"VLOOKUP(DropDownList!$B47,CntyQryCensus!$A$306:$GX$348,F$1)","v":278},{"$f":"VLOOKUP(DropDownList!$B47,CntyQryCensus!$A$306:$GX$348,G$1)","v":274},{"$f":"VLOOKUP(DropDownList!$B47,CntyQryCensus!$A$306:$GX$348,H$1)","v":4},{"$f":"VLOOKUP(DropDownList!$B47,CntyQryCensus!$A$306:$GX$348,I$1)","v":1962},{"$f":"VLOOKUP(DropDownList!$B47,CntyQryCensus!$A$306:$GX$348,J$1)","v":1962},{"$f":"VLOOKUP(DropDownList!$B47,CntyQryCensus!$A$306:$GX$348,K$1)","v":1277},{"$f":"VLOOKUP(DropDownList!$B47,CntyQryCensus!$A$306:$GX$348,L$1)","v":0},{"$f":"VLOOKUP(DropDownList!$B47,CntyQryCensus!$A$306:$GX$348,M$1)","v":1277},{"$f":"VLOOKUP(DropDownList!$B47,CntyQryCensus!$A$306:$GX$348,N$1)","v":685},{"$f":"VLOOKUP(DropDownList!$B47,CntyQryCensus!$A$306:$GX$348,O$1)","v":0},{"$f":"VLOOKUP(DropDownList!$B47,CntyQryCensus!$A$306:$GX$348,P$1)","v":685},{"$f":"VLOOKUP(DropDownList!$B47,CntyQryCensus!$A$306:$GX$348,Q$1)","v":1902},{"$f":"VLOOKUP(DropDownList!$B47,CntyQryCensus!$A$306:$GX$348,R$1)","v":1356},{"$f":"VLOOKUP(DropDownList!$B47,CntyQryCensus!$A$306:$GX$348,S$1)","v":546},{"$f":"VLOOKUP(DropDownList!$B47,CntyQryCensus!$A$306:$GX$348,T$1)","v":60},{"$f":"VLOOKUP(DropDownList!$B47,CntyQryCensus!$A$306:$GX$348,U$1)","v":0},{"$f":"VLOOKUP(DropDownList!$B47,CntyQryCensus!$A$306:$GX$348,V$1)","v":15},{"$f":"VLOOKUP(DropDownList!$B47,CntyQryCensus!$A$306:$GX$348,W$1)","v":15},{"$f":"VLOOKUP(DropDownList!$B47,CntyQryCensus!$A$306:$GX$348,X$1)","v":0},{"$f":"VLOOKUP(DropDownList!$B47,CntyQryCensus!$A$306:$GX$348,Y$1)","v":0},{"$f":"VLOOKUP(DropDownList!$B47,CntyQryCensus!$A$306:$GX$348,Z$1)","v":30},{"$f":"VLOOKUP(DropDownList!$B47,CntyQryCensus!$A$306:$GX$348,AA$1)","v":1902},{"$f":"VLOOKUP(DropDownList!$B47,CntyQryCensus!$A$306:$GX$348,AB$1)","v":1356},{"$f":"VLOOKUP(DropDownList!$B47,CntyQryCensus!$A$306:$GX$348,AC$1)","v":34},{"$f":"VLOOKUP(DropDownList!$B47,CntyQryCensus!$A$306:$GX$348,AD$1)","v":204},{"$f":"VLOOKUP(DropDownList!$B47,CntyQryCensus!$A$306:$GX$348,AE$1)","v":386},{"$f":"VLOOKUP(DropDownList!$B47,CntyQryCensus!$A$306:$GX$348,AF$1)","v":297},{"$f":"VLOOKUP(DropDownList!$B47,CntyQryCensus!$A$306:$GX$348,AG$1)","v":86},{"$f":"VLOOKUP(DropDownList!$B47,CntyQryCensus!$A$306:$GX$348,AH$1)","v":90},{"$f":"VLOOKUP(DropDownList!$B47,CntyQryCensus!$A$306:$GX$348,AI$1)","v":180},{"$f":"VLOOKUP(DropDownList!$B47,CntyQryCensus!$A$306:$GX$348,AJ$1)","v":60},{"$f":"VLOOKUP(DropDownList!$B47,CntyQryCensus!$A$306:$GX$348,AK$1)","v":19},{"$f":"VLOOKUP(DropDownList!$B47,CntyQryCensus!$A$306:$GX$348,AL$1)","v":546},{"$f":"VLOOKUP(DropDownList!$B47,CntyQryCensus!$A$306:$GX$348,AM$1)","v":10},{"$f":"VLOOKUP(DropDownList!$B47,CntyQryCensus!$A$306:$GX$348,AN$1)","v":116},{"$f":"VLOOKUP(DropDownList!$B47,CntyQryCensus!$A$306:$GX$348,AO$1)","v":144},{"$f":"VLOOKUP(DropDownList!$B47,CntyQryCensus!$A$306:$GX$348,AP$1)","v":87},{"$f":"VLOOKUP(DropDownList!$B47,CntyQryCensus!$A$306:$GX$348,AQ$1)","v":32},{"$f":"VLOOKUP(DropDownList!$B47,CntyQryCensus!$A$306:$GX$348,AR$1)","v":29},{"$f":"VLOOKUP(DropDownList!$B47,CntyQryCensus!$A$306:$GX$348,AS$1)","v":28},{"$f":"VLOOKUP(DropDownList!$B47,CntyQryCensus!$A$306:$GX$348,AT$1)","v":60},{"$f":"VLOOKUP(DropDownList!$B47,CntyQryCensus!$A$306:$GX$348,AU$1)","v":40},{"$f":"VLOOKUP(DropDownList!$B47,CntyQryCensus!$A$306:$GX$348,AV$1)","v":4808},{"$f":"VLOOKUP(DropDownList!$B47,CntyQryCensus!$A$306:$GX$348,AW$1)","v":3709},{"$f":"VLOOKUP(DropDownList!$B47,CntyQryCensus!$A$306:$GX$348,AX$1)","v":1099},{"$f":"VLOOKUP(DropDownList!$B47,CntyQryCensus!$A$306:$GX$348,AY$1)","v":1902},{"$f":"VLOOKUP(DropDownList!$B47,CntyQryCensus!$A$306:$GX$348,AZ$1)","v":1356},{"$f":"VLOOKUP(DropDownList!$B47,CntyQryCensus!$A$306:$GX$348,BA$1)","v":276},{"$f":"VLOOKUP(DropDownList!$B47,CntyQryCensus!$A$306:$GX$348,BB$1)","v":383},{"$f":"VLOOKUP(DropDownList!$B47,CntyQryCensus!$A$306:$GX$348,BC$1)","v":301},{"$f":"VLOOKUP(DropDownList!$B47,CntyQryCensus!$A$306:$GX$348,BD$1)","v":288},{"$f":"VLOOKUP(DropDownList!$B47,CntyQryCensus!$A$306:$GX$348,BE$1)","v":84},{"$f":"VLOOKUP(DropDownList!$B47,CntyQryCensus!$A$306:$GX$348,BF$1)","v":18},{"$f":"VLOOKUP(DropDownList!$B47,CntyQryCensus!$A$306:$GX$348,BG$1)","v":6},{"$f":"VLOOKUP(DropDownList!$B47,CntyQryCensus!$A$306:$GX$348,BH$1)","v":546},{"$f":"VLOOKUP(DropDownList!$B47,CntyQryCensus!$A$306:$GX$348,BI$1)","v":243},{"$f":"VLOOKUP(DropDownList!$B47,CntyQryCensus!$A$306:$GX$348,BJ$1)","v":176},{"$f":"VLOOKUP(DropDownList!$B47,CntyQryCensus!$A$306:$GX$348,BK$1)","v":31},{"$f":"VLOOKUP(DropDownList!$B47,CntyQryCensus!$A$306:$GX$348,BL$1)","v":50},{"$f":"VLOOKUP(DropDownList!$B47,CntyQryCensus!$A$306:$GX$348,BM$1)","v":28},{"$f":"VLOOKUP(DropDownList!$B47,CntyQryCensus!$A$306:$GX$348,BN$1)","v":18},{"$f":"VLOOKUP(DropDownList!$B47,CntyQryCensus!$A$306:$GX$348,BO$1)","v":0},{"$f":"VLOOKUP(DropDownList!$B47,CntyQryCensus!$A$306:$GX$348,BP$1)","v":3},{"$f":"VLOOKUP(DropDownList!$B47,CntyQryCensus!$A$306:$GX$348,BQ$1)","v":3},{"$f":"VLOOKUP(DropDownList!$B47,CntyQryCensus!$A$306:$GX$348,BR$1)","v":2},{"$f":"VLOOKUP(DropDownList!$B47,CntyQryCensus!$A$306:$GX$348,BS$1)","v":1962},{"$f":"VLOOKUP(DropDownList!$B47,CntyQryCensus!$A$306:$GX$348,BT$1)","v":0},{"$f":"VLOOKUP(DropDownList!$B47,CntyQryCensus!$A$306:$GX$348,BU$1)","v":73},{"$f":"VLOOKUP(DropDownList!$B47,CntyQryCensus!$A$306:$GX$348,BV$1)","v":162},{"$f":"VLOOKUP(DropDownList!$B47,CntyQryCensus!$A$306:$GX$348,BW$1)","v":419},{"$f":"VLOOKUP(DropDownList!$B47,CntyQryCensus!$A$306:$GX$348,BX$1)","v":634},{"$f":"VLOOKUP(DropDownList!$B47,CntyQryCensus!$A$306:$GX$348,BY$1)","v":336},{"$f":"VLOOKUP(DropDownList!$B47,CntyQryCensus!$A$306:$GX$348,BZ$1)","v":197},{"$f":"VLOOKUP(DropDownList!$B47,CntyQryCensus!$A$306:$GX$348,CA$1)","v":51},{"$f":"VLOOKUP(DropDownList!$B47,CntyQryCensus!$A$306:$GX$348,CB$1)","v":90},{"$f":"VLOOKUP(DropDownList!$B47,CntyQryCensus!$A$306:$GX$348,CC$1)","v":5},{"$f":"VLOOKUP(DropDownList!$B47,CntyQryCensus!$A$306:$GX$348,CD$1)","v":10181},{"$f":"VLOOKUP(DropDownList!$B47,CntyQryCensus!$A$306:$GX$348,CE$1)","v":1962},{"$f":"VLOOKUP(DropDownList!$B47,CntyQryCensus!$A$306:$GX$348,CF$1)","v":829},{"$f":"VLOOKUP(DropDownList!$B47,CntyQryCensus!$A$306:$GX$348,CG$1)","v":42},{"$f":"VLOOKUP(DropDownList!$B47,CntyQryCensus!$A$306:$GX$348,CH$1)","v":136},{"$f":"VLOOKUP(DropDownList!$B47,CntyQryCensus!$A$306:$GX$348,CI$1)","v":116},{"$f":"VLOOKUP(DropDownList!$B47,CntyQryCensus!$A$306:$GX$348,CJ$1)","v":193},{"$f":"VLOOKUP(DropDownList!$B47,CntyQryCensus!$A$306:$GX$348,CK$1)","v":6},{"$f":"VLOOKUP(DropDownList!$B47,CntyQryCensus!$A$306:$GX$348,CL$1)","v":14},{"$f":"VLOOKUP(DropDownList!$B47,CntyQryCensus!$A$306:$GX$348,CM$1)","v":0},{"$f":"VLOOKUP(DropDownList!$B47,CntyQryCensus!$A$306:$GX$348,CN$1)","v":626},{"$f":"VLOOKUP(DropDownList!$B47,CntyQryCensus!$A$306:$GX$348,CO$1)","v":0},{"$f":"VLOOKUP(DropDownList!$B47,CntyQryCensus!$A$306:$GX$348,CP$1)","v":1902},{"$f":"VLOOKUP(DropDownList!$B47,CntyQryCensus!$A$306:$GX$348,CQ$1)","v":1356},{"$f":"VLOOKUP(DropDownList!$B47,CntyQryCensus!$A$306:$GX$348,CR$1)","v":769},{"$f":"VLOOKUP(DropDownList!$B47,CntyQryCensus!$A$306:$GX$348,CS$1)","v":13},{"$f":"VLOOKUP(DropDownList!$B47,CntyQryCensus!$A$306:$GX$348,CT$1)","v":22},{"$f":"VLOOKUP(DropDownList!$B47,CntyQryCensus!$A$306:$GX$348,CU$1)","v":14},{"$f":"VLOOKUP(DropDownList!$B47,CntyQryCensus!$A$306:$GX$348,CV$1)","v":25},{"$f":"VLOOKUP(DropDownList!$B47,CntyQryCensus!$A$306:$GX$348,CW$1)","v":0},{"$f":"VLOOKUP(DropDownList!$B47,CntyQryCensus!$A$306:$GX$348,CX$1)","v":0},{"$f":"VLOOKUP(DropDownList!$B47,CntyQryCensus!$A$306:$GX$348,CY$1)","v":0},{"$f":"VLOOKUP(DropDownList!$B47,CntyQryCensus!$A$306:$GX$348,CZ$1)","v":513},{"$f":"VLOOKUP(DropDownList!$B47,CntyQryCensus!$A$306:$GX$348,DA$1)","v":0},{"$f":"VLOOKUP(DropDownList!$B47,CntyQryCensus!$A$306:$GX$348,DB$1)","v":546},{"$f":"VLOOKUP(DropDownList!$B47,CntyQryCensus!$A$306:$GX$348,DC$1)","v":60},{"$f":"VLOOKUP(DropDownList!$B47,CntyQryCensus!$A$306:$GX$348,DD$1)","v":29},{"$f":"VLOOKUP(DropDownList!$B47,CntyQryCensus!$A$306:$GX$348,DE$1)","v":114},{"$f":"VLOOKUP(DropDownList!$B47,CntyQryCensus!$A$306:$GX$348,DF$1)","v":102},{"$f":"VLOOKUP(DropDownList!$B47,CntyQryCensus!$A$306:$GX$348,DG$1)","v":153},{"$f":"VLOOKUP(DropDownList!$B47,CntyQryCensus!$A$306:$GX$348,DH$1)","v":6},{"$f":"VLOOKUP(DropDownList!$B47,CntyQryCensus!$A$306:$GX$348,DI$1)","v":14},{"$f":"VLOOKUP(DropDownList!$B47,CntyQryCensus!$A$306:$GX$348,DJ$1)","v":0},{"$f":"VLOOKUP(DropDownList!$B47,CntyQryCensus!$A$306:$GX$348,DK$1)","v":68},{"$f":"VLOOKUP(DropDownList!$B47,CntyQryCensus!$A$306:$GX$348,DL$1)","v":0},{"$f":"VLOOKUP(DropDownList!$B47,CntyQryCensus!$A$306:$GX$348,DM$1)","v":4808},{"$f":"VLOOKUP(DropDownList!$B47,CntyQryCensus!$A$306:$GX$348,DN$1)","v":3709},{"$f":"VLOOKUP(DropDownList!$B47,CntyQryCensus!$A$306:$GX$348,DO$1)","v":2157},{"$f":"VLOOKUP(DropDownList!$B47,CntyQryCensus!$A$306:$GX$348,DP$1)","v":36},{"$f":"VLOOKUP(DropDownList!$B47,CntyQryCensus!$A$306:$GX$348,DQ$1)","v":56},{"$f":"VLOOKUP(DropDownList!$B47,CntyQryCensus!$A$306:$GX$348,DR$1)","v":20},{"$f":"VLOOKUP(DropDownList!$B47,CntyQryCensus!$A$306:$GX$348,DS$1)","v":25},{"$f":"VLOOKUP(DropDownList!$B47,CntyQryCensus!$A$306:$GX$348,DT$1)","v":0},{"$f":"VLOOKUP(DropDownList!$B47,CntyQryCensus!$A$306:$GX$348,DU$1)","v":0},{"$f":"VLOOKUP(DropDownList!$B47,CntyQryCensus!$A$306:$GX$348,DV$1)","v":0},{"$f":"VLOOKUP(DropDownList!$B47,CntyQryCensus!$A$306:$GX$348,DW$1)","v":1415},{"$f":"VLOOKUP(DropDownList!$B47,CntyQryCensus!$A$306:$GX$348,DX$1)","v":0},{"$f":"VLOOKUP(DropDownList!$B47,CntyQryCensus!$A$306:$GX$348,DY$1)","v":1099},{"$f":"VLOOKUP(DropDownList!$B47,CntyQryCensus!$A$306:$GX$348,DZ$1)","v":178},{"$f":"VLOOKUP(DropDownList!$B47,CntyQryCensus!$A$306:$GX$348,EA$1)","v":60},{"$f":"VLOOKUP(DropDownList!$B47,CntyQryCensus!$A$306:$GX$348,EB$1)","v":223},{"$f":"VLOOKUP(DropDownList!$B47,CntyQryCensus!$A$306:$GX$348,EC$1)","v":257},{"$f":"VLOOKUP(DropDownList!$B47,CntyQryCensus!$A$306:$GX$348,ED$1)","v":239},{"$f":"VLOOKUP(DropDownList!$B47,CntyQryCensus!$A$306:$GX$348,EE$1)","v":6},{"$f":"VLOOKUP(DropDownList!$B47,CntyQryCensus!$A$306:$GX$348,EF$1)","v":13},{"$f":"VLOOKUP(DropDownList!$B47,CntyQryCensus!$A$306:$GX$348,EG$1)","v":0},{"$f":"VLOOKUP(DropDownList!$B47,CntyQryCensus!$A$306:$GX$348,EH$1)","v":123},{"$f":"VLOOKUP(DropDownList!$B47,CntyQryCensus!$A$306:$GX$348,EI$1)","v":0},{"$f":"VLOOKUP(DropDownList!$B47,CntyQryCensus!$A$306:$GX$348,EJ$1)","v":1902},{"$f":"VLOOKUP(DropDownList!$B47,CntyQryCensus!$A$306:$GX$348,EK$1)","v":1356},{"$f":"VLOOKUP(DropDownList!$B47,CntyQryCensus!$A$306:$GX$348,EL$1)","v":66},{"$f":"VLOOKUP(DropDownList!$B47,CntyQryCensus!$A$306:$GX$348,EM$1)","v":114},{"$f":"VLOOKUP(DropDownList!$B47,CntyQryCensus!$A$306:$GX$348,EN$1)","v":54},{"$f":"VLOOKUP(DropDownList!$B47,CntyQryCensus!$A$306:$GX$348,EO$1)","v":200},{"$f":"VLOOKUP(DropDownList!$B47,CntyQryCensus!$A$306:$GX$348,EP$1)","v":417},{"$f":"VLOOKUP(DropDownList!$B47,CntyQryCensus!$A$306:$GX$348,EQ$1)","v":209},{"$f":"VLOOKUP(DropDownList!$B47,CntyQryCensus!$A$306:$GX$348,ER$1)","v":91},{"$f":"VLOOKUP(DropDownList!$B47,CntyQryCensus!$A$306:$GX$348,ES$1)","v":52},{"$f":"VLOOKUP(DropDownList!$B47,CntyQryCensus!$A$306:$GX$348,ET$1)","v":153},{"$f":"VLOOKUP(DropDownList!$B47,CntyQryCensus!$A$306:$GX$348,EU$1)","v":546},{"$f":"VLOOKUP(DropDownList!$B47,CntyQryCensus!$A$306:$GX$348,EV$1)","v":0},{"$f":"VLOOKUP(DropDownList!$B47,CntyQryCensus!$A$306:$GX$348,EW$1)","v":30},{"$f":"VLOOKUP(DropDownList!$B47,CntyQryCensus!$A$306:$GX$348,EX$1)","v":21},{"$f":"VLOOKUP(DropDownList!$B47,CntyQryCensus!$A$306:$GX$348,EY$1)","v":138},{"$f":"VLOOKUP(DropDownList!$B47,CntyQryCensus!$A$306:$GX$348,EZ$1)","v":164},{"$f":"VLOOKUP(DropDownList!$B47,CntyQryCensus!$A$306:$GX$348,FA$1)","v":49},{"$f":"VLOOKUP(DropDownList!$B47,CntyQryCensus!$A$306:$GX$348,FB$1)","v":24},{"$f":"VLOOKUP(DropDownList!$B47,CntyQryCensus!$A$306:$GX$348,FC$1)","v":14},{"$f":"VLOOKUP(DropDownList!$B47,CntyQryCensus!$A$306:$GX$348,FD$1)","v":106},{"$f":"VLOOKUP(DropDownList!$B47,CntyQryCensus!$A$306:$GX$348,FE$1)","v":1902},{"$f":"VLOOKUP(DropDownList!$B47,CntyQryCensus!$A$306:$GX$348,FF$1)","v":254},{"$f":"VLOOKUP(DropDownList!$B47,CntyQryCensus!$A$306:$GX$348,FG$1)","v":192},{"$f":"VLOOKUP(DropDownList!$B47,CntyQryCensus!$A$306:$GX$348,FH$1)","v":161},{"$f":"VLOOKUP(DropDownList!$B47,CntyQryCensus!$A$306:$GX$348,FI$1)","v":1233},{"$f":"VLOOKUP(DropDownList!$B47,CntyQryCensus!$A$306:$GX$348,FJ$1)","v":6},{"$f":"VLOOKUP(DropDownList!$B47,CntyQryCensus!$A$306:$GX$348,FK$1)","v":56},{"$f":"VLOOKUP(DropDownList!$B47,CntyQryCensus!$A$306:$GX$348,FL$1)","v":0},{"$f":"VLOOKUP(DropDownList!$B47,CntyQryCensus!$A$306:$GX$348,FM$1)","v":0},{"$f":"VLOOKUP(DropDownList!$B47,CntyQryCensus!$A$306:$GX$348,FN$1)","v":0},{"$f":"VLOOKUP(DropDownList!$B47,CntyQryCensus!$A$306:$GX$348,FO$1)","v":1962},{"$f":"VLOOKUP(DropDownList!$B47,CntyQryCensus!$A$306:$GX$348,FP$1)","v":0},{"$f":"VLOOKUP(DropDownList!$B47,CntyQryCensus!$A$306:$GX$348,FQ$1)","v":245},{"$f":"VLOOKUP(DropDownList!$B47,CntyQryCensus!$A$306:$GX$348,FR$1)","v":674},{"$f":"VLOOKUP(DropDownList!$B47,CntyQryCensus!$A$306:$GX$348,FS$1)","v":854},{"$f":"VLOOKUP(DropDownList!$B47,CntyQryCensus!$A$306:$GX$348,FT$1)","v":163},{"$f":"VLOOKUP(DropDownList!$B47,CntyQryCensus!$A$306:$GX$348,FU$1)","v":26},{"$f":"VLOOKUP(DropDownList!$B47,CntyQryCensus!$A$306:$GX$348,FV$1)","v":1902},{"$f":"VLOOKUP(DropDownList!$B47,CntyQryCensus!$A$306:$GX$348,FW$1)","v":1356},{"$f":"VLOOKUP(DropDownList!$B47,CntyQryCensus!$A$306:$GX$348,FX$1)","v":0},{"$f":"VLOOKUP(DropDownList!$B47,CntyQryCensus!$A$306:$GX$348,FY$1)","v":34},{"$f":"VLOOKUP(DropDownList!$B47,CntyQryCensus!$A$306:$GX$348,FZ$1)","v":401},{"$f":"VLOOKUP(DropDownList!$B47,CntyQryCensus!$A$306:$GX$348,GA$1)","v":753},{"$f":"VLOOKUP(DropDownList!$B47,CntyQryCensus!$A$306:$GX$348,GB$1)","v":142},{"$f":"VLOOKUP(DropDownList!$B47,CntyQryCensus!$A$306:$GX$348,GC$1)","v":26},{"$f":"VLOOKUP(DropDownList!$B47,CntyQryCensus!$A$306:$GX$348,GD$1)","v":546},{"$f":"VLOOKUP(DropDownList!$B47,CntyQryCensus!$A$306:$GX$348,GE$1)","v":0},{"$f":"VLOOKUP(DropDownList!$B47,CntyQryCensus!$A$306:$GX$348,GF$1)","v":211},{"$f":"VLOOKUP(DropDownList!$B47,CntyQryCensus!$A$306:$GX$348,GG$1)","v":228},{"$f":"VLOOKUP(DropDownList!$B47,CntyQryCensus!$A$306:$GX$348,GH$1)","v":86},{"$f":"VLOOKUP(DropDownList!$B47,CntyQryCensus!$A$306:$GX$348,GI$1)","v":21},{"$f":"VLOOKUP(DropDownList!$B47,CntyQryCensus!$A$306:$GX$348,GJ$1)","v":0},{"$f":"VLOOKUP(DropDownList!$B47,CntyQryCensus!$A$306:$GX$348,GK$1)","v":1902},{"$f":"VLOOKUP(DropDownList!$B47,CntyQryCensus!$A$306:$GX$348,GL$1)","v":1356},{"$f":"VLOOKUP(DropDownList!$B47,CntyQryCensus!$A$306:$GX$348,GM$1)","v":1349},{"$f":"VLOOKUP(DropDownList!$B47,CntyQryCensus!$A$306:$GX$348,GN$1)","v":7},{"$f":"VLOOKUP(DropDownList!$B47,CntyQryCensus!$A$306:$GX$348,GO$1)","v":546},{"$f":"VLOOKUP(DropDownList!$B47,CntyQryCensus!$A$306:$GX$348,GP$1)","v":538},{"$f":"VLOOKUP(DropDownList!$B47,CntyQryCensus!$A$306:$GX$348,GQ$1)","v":8},{"$f":"VLOOKUP(DropDownList!$B47,CntyQryCensus!$A$306:$GX$348,GR$1)","v":1902},{"$f":"VLOOKUP(DropDownList!$B47,CntyQryCensus!$A$306:$GX$348,GS$1)","v":1356},{"$f":"VLOOKUP(DropDownList!$B47,CntyQryCensus!$A$306:$GX$348,GT$1)","v":1356},{"$f":"VLOOKUP(DropDownList!$B47,CntyQryCensus!$A$306:$GX$348,GU$1)","v":0},{"$f":"VLOOKUP(DropDownList!$B47,CntyQryCensus!$A$306:$GX$348,GV$1)","v":546},{"$f":"VLOOKUP(DropDownList!$B47,CntyQryCensus!$A$306:$GX$348,GW$1)","v":538},{"$f":"VLOOKUP(DropDownList!$B47,CntyQryCensus!$A$306:$GX$348,GX$1)","v":8}]
[]
[]
["Census 2000 SummaryFile3 Sample Data  -  SF3TownQry8HousingCostA"]
["NAME","LOGRECNO","COUNTY","TotalPop","H62RntrOccHU","H62RntrOccHUwRent","H62ROHUGRent<100","H62ROHUGRent100to149","H62ROHUGRent150to199","H62ROHUGRent200to249","H62ROHUGRent250to299","H62ROHUGRent300to349","H62ROHUGRent350to399","H62ROHUGRent400to449","H62ROHUGRent450to499","H62ROHUGRent500to549","H62ROHUGRent550to599","H62ROHUGRent600to649","H62ROHUGRent650to699","H62ROHUGRent700to749","H62ROHUGRent750to799","H62ROHUGRent800to899","H62ROHUGRent900to999","H62ROHUGRent1000to1249","H62ROHUGRent1250to1499","H62ROHUGRent1500to1999","H62ROHUGRent2000>","H62ROHUNoGRent","H63MedianGrossRnt","H69RenterOccHsU","H69GRnt<10PctHHInc","H69GRnt10to15PctHHInc","H69GRnt15to20PctHHInc","H69GRnt20to25PctHHInc","H69GRnt25to30PctHHInc","H69GRnt30to35PctHHInc","H69GRnt35to40PctHHInc","H69GRnt40to50PctHHInc","H69GRnt>50PctHHInc","H69GRntPctNotcomputed","H73RenterOccHU","H73ROHUHhInc<10k","H73ROHUHhInc<10kRnt<20pct","H73ROHUHhInc<10kRnt20to25pct","H73ROHUHhInc<10kRnt25to30pct","H73ROHUHhInc<10kRnt30to35pct","H73ROHUHhInc<10kRnt>35pct","H73ROHUHhInc<10kPctNotComput","H73ROHUHhInc10to20k","H73ROHUHhInc10to20kRnt<20pct","H73ROHUHhInc10to20kRnt20to25pct","H73ROHUHhInc10to20kRnt25to30pct","H73ROHUHhInc10to20kRnt30to35pct","H73ROHUHhInc10to20kRnt>35pct","H73ROHUHhInc10to20kRntPctNC","H73ROHUHhInc20to35k","H73ROHUHhInc20to35kRnt<20pct","H73ROHUHhInc20to35kRnt20to25pct","H73ROHUHhInc20to35kRnt25to30pct","H73ROHUHhInc20to35kRnt30to35pct","H73ROHUHhInc20to35kRnt>35pct","H73ROHUHhInc20to35kRntPctNC","H73ROHUHhInc35to40k","H73ROHUHhInc35to40kRnt<20pct","H73ROHUHhInc35to40kRnt20to25pct","H73ROHUHhInc35to40kRnt25to30pct","H73ROHUHhInc35to40kRnt30to35pct","H73ROHUHhInc35to40kRnt>35pct","H73ROHUHhInc35to40kRntPctNC","H73ROHUHhInc50to75k","H73ROHUHhInc50to75kRnt<20pct","H73ROHUHhInc50to75kRnt20to25pct","H73ROHUHhInc50to75kRnt25to30pct","H73ROHUHhInc50to75kRnt30to35pct","H73ROHUHhInc50to75kRnt>35pct","H73ROHUHhInc50to75kRntPctNC","H73ROHUHhInc75to100k","H73ROHUHhInc75to100kRnt<20pct","H73ROHUHhInc75to100kRnt20to25pct","H73ROHUHhInc75to100kRnt25to30pct","H73ROHUHhInc75to100kRnt30to35pct","H73ROHUHhInc75to100kRnt>35pct","H73ROHUHhInc75to100kRntPctNC","H73ROHUHhInc>100k","H73ROHUHhInc>100kRnt<20pct","H73ROHUHhInc>100kRnt20to25pct","H73ROHUHhInc>100kRnt25to30pct","H73ROHUHhInc>100kRnt30to35pct","H73ROHUHhInc>100kRnt>35pct","H73ROHUHhInc>100kRntPctNC","H73ROHUHhInc>100kRntPctNC"]
[{"$f":"VLOOKUP(DropDownList!$B$47,CntyQryCensus!$A$357:$CM$399,A$1)","v":"Allenstown"},{"$f":"VLOOKUP(DropDownList!$B$47,CntyQryCensus!$A$357:$CM$399,B$1)","v":"0002575"},{"$f":"VLOOKUP(DropDownList!$B$47,CntyQryCensus!$A$357:$CM$399,C$1)","v":"00660"},{"$f":"VLOOKUP(DropDownList!$B$47,CntyQryCensus!$A$357:$CM$399,D$1)","v":4843},{"$f":"VLOOKUP(DropDownList!$B$47,CntyQryCensus!$A$357:$CM$399,E$1)","v":536},{"$f":"VLOOKUP(DropDownList!$B$47,CntyQryCensus!$A$357:$CM$399,F$1)","v":514},{"$f":"VLOOKUP(DropDownList!$B$47,CntyQryCensus!$A$357:$CM$399,G$1)","v":12},{"$f":"VLOOKUP(DropDownList!$B$47,CntyQryCensus!$A$357:$CM$399,H$1)","v":14},{"$f":"VLOOKUP(DropDownList!$B$47,CntyQryCensus!$A$357:$CM$399,I$1)","v":7},{"$f":"VLOOKUP(DropDownList!$B$47,CntyQryCensus!$A$357:$CM$399,J$1)","v":8},{"$f":"VLOOKUP(DropDownList!$B$47,CntyQryCensus!$A$357:$CM$399,K$1)","v":6},{"$f":"VLOOKUP(DropDownList!$B$47,CntyQryCensus!$A$357:$CM$399,L$1)","v":0},{"$f":"VLOOKUP(DropDownList!$B$47,CntyQryCensus!$A$357:$CM$399,M$1)","v":24},{"$f":"VLOOKUP(DropDownList!$B$47,CntyQryCensus!$A$357:$CM$399,N$1)","v":42},{"$f":"VLOOKUP(DropDownList!$B$47,CntyQryCensus!$A$357:$CM$399,O$1)","v":35},{"$f":"VLOOKUP(DropDownList!$B$47,CntyQryCensus!$A$357:$CM$399,P$1)","v":54},{"$f":"VLOOKUP(DropDownList!$B$47,CntyQryCensus!$A$357:$CM$399,Q$1)","v":58},{"$f":"VLOOKUP(DropDownList!$B$47,CntyQryCensus!$A$357:$CM$399,R$1)","v":49},{"$f":"VLOOKUP(DropDownList!$B$47,CntyQryCensus!$A$357:$CM$399,S$1)","v":18},{"$f":"VLOOKUP(DropDownList!$B$47,CntyQryCensus!$A$357:$CM$399,T$1)","v":53},{"$f":"VLOOKUP(DropDownList!$B$47,CntyQryCensus!$A$357:$CM$399,U$1)","v":46},{"$f":"VLOOKUP(DropDownList!$B$47,CntyQryCensus!$A$357:$CM$399,V$1)","v":12},{"$f":"VLOOKUP(DropDownList!$B$47,CntyQryCensus!$A$357:$CM$399,W$1)","v":33},{"$f":"VLOOKUP(DropDownList!$B$47,CntyQryCensus!$A$357:$CM$399,X$1)","v":36},{"$f":"VLOOKUP(DropDownList!$B$47,CntyQryCensus!$A$357:$CM$399,Y$1)","v":7},{"$f":"VLOOKUP(DropDownList!$B$47,CntyQryCensus!$A$357:$CM$399,Z$1)","v":0},{"$f":"VLOOKUP(DropDownList!$B$47,CntyQryCensus!$A$357:$CM$399,AA$1)","v":0},{"$f":"VLOOKUP(DropDownList!$B$47,CntyQryCensus!$A$357:$CM$399,AB$1)","v":22},{"$f":"VLOOKUP(DropDownList!$B$47,CntyQryCensus!$A$357:$CM$399,AC$1)","v":597},{"$f":"VLOOKUP(DropDownList!$B$47,CntyQryCensus!$A$357:$CM$399,AD$1)","v":536},{"$f":"VLOOKUP(DropDownList!$B$47,CntyQryCensus!$A$357:$CM$399,AE$1)","v":35},{"$f":"VLOOKUP(DropDownList!$B$47,CntyQryCensus!$A$357:$CM$399,AF$1)","v":53},{"$f":"VLOOKUP(DropDownList!$B$47,CntyQryCensus!$A$357:$CM$399,AG$1)","v":89},{"$f":"VLOOKUP(DropDownList!$B$47,CntyQryCensus!$A$357:$CM$399,AH$1)","v":91},{"$f":"VLOOKUP(DropDownList!$B$47,CntyQryCensus!$A$357:$CM$399,AI$1)","v":36},{"$f":"VLOOKUP(DropDownList!$B$47,CntyQryCensus!$A$357:$CM$399,AJ$1)","v":69},{"$f":"VLOOKUP(DropDownList!$B$47,CntyQryCensus!$A$357:$CM$399,AK$1)","v":36},{"$f":"VLOOKUP(DropDownList!$B$47,CntyQryCensus!$A$357:$CM$399,AL$1)","v":55},{"$f":"VLOOKUP(DropDownList!$B$47,CntyQryCensus!$A$357:$CM$399,AM$1)","v":50},{"$f":"VLOOKUP(DropDownList!$B$47,CntyQryCensus!$A$357:$CM$399,AN$1)","v":22},{"$f":"VLOOKUP(DropDownList!$B$47,CntyQryCensus!$A$357:$CM$399,AO$1)","v":536},{"$f":"VLOOKUP(DropDownList!$B$47,CntyQryCensus!$A$357:$CM$399,AP$1)","v":82},{"$f":"VLOOKUP(DropDownList!$B$47,CntyQryCensus!$A$357:$CM$399,AQ$1)","v":12},{"$f":"VLOOKUP(DropDownList!$B$47,CntyQryCensus!$A$357:$CM$399,AR$1)","v":14},{"$f":"VLOOKUP(DropDownList!$B$47,CntyQryCensus!$A$357:$CM$399,AS$1)","v":0},{"$f":"VLOOKUP(DropDownList!$B$47,CntyQryCensus!$A$357:$CM$399,AT$1)","v":21},{"$f":"VLOOKUP(DropDownList!$B$47,CntyQryCensus!$A$357:$CM$399,AU$1)","v":28},{"$f":"VLOOKUP(DropDownList!$B$47,CntyQryCensus!$A$357:$CM$399,AV$1)","v":7},{"$f":"VLOOKUP(DropDownList!$B$47,CntyQryCensus!$A$357:$CM$399,AW$1)","v":70},{"$f":"VLOOKUP(DropDownList!$B$47,CntyQryCensus!$A$357:$CM$399,AX$1)","v":0},{"$f":"VLOOKUP(DropDownList!$B$47,CntyQryCensus!$A$357:$CM$399,AY$1)","v":0},{"$f":"VLOOKUP(DropDownList!$B$47,CntyQryCensus!$A$357:$CM$399,AZ$1)","v":0},{"$f":"VLOOKUP(DropDownList!$B$47,CntyQryCensus!$A$357:$CM$399,BA$1)","v":6},{"$f":"VLOOKUP(DropDownList!$B$47,CntyQryCensus!$A$357:$CM$399,BB$1)","v":64},{"$f":"VLOOKUP(DropDownList!$B$47,CntyQryCensus!$A$357:$CM$399,BC$1)","v":0},{"$f":"VLOOKUP(DropDownList!$B$47,CntyQryCensus!$A$357:$CM$399,BD$1)","v":163},{"$f":"VLOOKUP(DropDownList!$B$47,CntyQryCensus!$A$357:$CM$399,BE$1)","v":17},{"$f":"VLOOKUP(DropDownList!$B$47,CntyQryCensus!$A$357:$CM$399,BF$1)","v":26},{"$f":"VLOOKUP(DropDownList!$B$47,CntyQryCensus!$A$357:$CM$399,BG$1)","v":36},{"$f":"VLOOKUP(DropDownList!$B$47,CntyQryCensus!$A$357:$CM$399,BH$1)","v":35},{"$f":"VLOOKUP(DropDownList!$B$47,CntyQryCensus!$A$357:$CM$399,BI$1)","v":49},{"$f":"VLOOKUP(DropDownList!$B$47,CntyQryCensus!$A$357:$CM$399,BJ$1)","v":0},{"$f":"VLOOKUP(DropDownList!$B$47,CntyQryCensus!$A$357:$CM$399,BK$1)","v":104},{"$f":"VLOOKUP(DropDownList!$B$47,CntyQryCensus!$A$357:$CM$399,BL$1)","v":50},{"$f":"VLOOKUP(DropDownList!$B$47,CntyQryCensus!$A$357:$CM$399,BM$1)","v":32},{"$f":"VLOOKUP(DropDownList!$B$47,CntyQryCensus!$A$357:$CM$399,BN$1)","v":0},{"$f":"VLOOKUP(DropDownList!$B$47,CntyQryCensus!$A$357:$CM$399,BO$1)","v":7},{"$f":"VLOOKUP(DropDownList!$B$47,CntyQryCensus!$A$357:$CM$399,BP$1)","v":0},{"$f":"VLOOKUP(DropDownList!$B$47,CntyQryCensus!$A$357:$CM$399,BQ$1)","v":15},{"$f":"VLOOKUP(DropDownList!$B$47,CntyQryCensus!$A$357:$CM$399,BR$1)","v":80},{"$f":"VLOOKUP(DropDownList!$B$47,CntyQryCensus!$A$357:$CM$399,BS$1)","v":61},{"$f":"VLOOKUP(DropDownList!$B$47,CntyQryCensus!$A$357:$CM$399,BT$1)","v":19},{"$f":"VLOOKUP(DropDownList!$B$47,CntyQryCensus!$A$357:$CM$399,BU$1)","v":0},{"$f":"VLOOKUP(DropDownList!$B$47,CntyQryCensus!$A$357:$CM$399,BV$1)","v":0},{"$f":"VLOOKUP(DropDownList!$B$47,CntyQryCensus!$A$357:$CM$399,BW$1)","v":0},{"$f":"VLOOKUP(DropDownList!$B$47,CntyQryCensus!$A$357:$CM$399,BX$1)","v":0},{"$f":"VLOOKUP(DropDownList!$B$47,CntyQryCensus!$A$357:$CM$399,BY$1)","v":21},{"$f":"VLOOKUP(DropDownList!$B$47,CntyQryCensus!$A$357:$CM$399,BZ$1)","v":21},{"$f":"VLOOKUP(DropDownList!$B$47,CntyQryCensus!$A$357:$CM$399,CA$1)","v":0},{"$f":"VLOOKUP(DropDownList!$B$47,CntyQryCensus!$A$357:$CM$399,CB$1)","v":0},{"$f":"VLOOKUP(DropDownList!$B$47,CntyQryCensus!$A$357:$CM$399,CC$1)","v":0},{"$f":"VLOOKUP(DropDownList!$B$47,CntyQryCensus!$A$357:$CM$399,CD$1)","v":0},{"$f":"VLOOKUP(DropDownList!$B$47,CntyQryCensus!$A$357:$CM$399,CE$1)","v":0},{"$f":"VLOOKUP(DropDownList!$B$47,CntyQryCensus!$A$357:$CM$399,CF$1)","v":16},{"$f":"VLOOKUP(DropDownList!$B$47,CntyQryCensus!$A$357:$CM$399,CG$1)","v":16},{"$f":"VLOOKUP(DropDownList!$B$47,CntyQryCensus!$A$357:$CM$399,CH$1)","v":0},{"$f":"VLOOKUP(DropDownList!$B$47,CntyQryCensus!$A$357:$CM$399,CI$1)","v":0},{"$f":"VLOOKUP(DropDownList!$B$47,CntyQryCensus!$A$357:$CM$399,CJ$1)","v":0},{"$f":"VLOOKUP(DropDownList!$B$47,CntyQryCensus!$A$357:$CM$399,CK$1)","v":0},{"$f":"VLOOKUP(DropDownList!$B$47,CntyQryCensus!$A$357:$CM$399,CL$1)","v":0},{"$f":"VLOOKUP(DropDownList!$B$47,CntyQryCensus!$A$357:$CM$399,CM$1)","v":0}]
[]
[]
["Census 2000 SummaryFile3 Sample Data  -  SF3TownQry8HousingCostB"]
["NAME","LOGRECNO","COUNTY","TotalPop","H74SpecOwnerOccHU","H74OOHU<10k","H74OOHU10to15k","H74OOHU15to20k","H74OOHU20to25k","H74OOHU25to30k","H74OOHU30to35k","H74OOHU35to40k","H74OOHU40to50k","H74OOHU50to60k","H74OOHU60to70k","H74OOHU70to80k","H74OOHU80to90k","H74OOHU90to100k","H74OOHU100to125k","H74OOHU125to150k","H74OOHU150to175k","H74OOHU175to200k","H74OOHU200to250k","H74OOHU250to300k","H74OOHU300to400k","H74OOHU400to500k","H74OOHU500to750k","H74OOHU750to1000k","H74OOHU1000kmore","H76OOHUMedianVal","H84OwnerOccHU","H84AllOOHU<10k","H84AllOOHU10to15k","H84AllOOHU15to20k","H84AllOOHU20to25k","H84AllOOHU25to30k","H84AllOOHU30to35k","H84AllOOHU35to40k","H84AllOOHU40to50k","H84AllOOHU50to60k","H84AllOOHU60to70k","H84AllOOHU70to80k","H84AllOOHU80to90k","H84AllOOHU90to100k","H84AllOOHU100to125k","H84AllOOHU125to150k","H84AllOOHU150to175k","H84AllOOHU175to200k","H84AllOOHU200to250k","H84AllOOHU250to300k","H84AllOOHU300to400k","H84AllOOHU400to500k","H84AllOOHU500to750k","H84AllOOHU750to1000k","H84AllOOHU1000kmore","H85OOHUMedVal","H90SOOHU","H90HUwMorgt","H90HUwMtgHC<200","H90HUwMtgHC200to300","H90HUwMtgHC300to400","H90HUwMtgHC400to500","H90HUwMtgHC500to600","H90HUwMtgHC600to700","H90HUwMtgHC700to800","H90HUwMtgHC800to900","H90HUwMtgHC900to1000","H90HUwMtgHC1000to1250","H90HUwMtgHC1250to1500","H90HUwMtgHC1500to2000","H90HUwMtgHC2000to2500","H90HUwMtgHC2500to3000","H90HUwMtgHC3000orMore","H90HUwOutMorgt","H90HUwOutMtgHC<100","H90HUwOutMtgHC100to150","H90HUwOutMtgHC150to200","H90HUwOutMtgHC200to250","H90HUwOutMtgHC250to300","H90HUwOutMtgHC300to350","H90HUwOutMtgHC350to400","H90HUwOutMtgHC400to500","H90HUwOutMtgHC500to600","H90HUwOutMtgHC600to700","H90HUwOutMtgHC700to800","H90HUwOutMtgHC800to900","H90HUwOutMtgHC900to1000","H90HUwOutMtgHC1000orMore","H91MedianOCHUwMtg","H91MedianOCHUwOutMtg","H94SpecOOHU","H94HUwMortg","H94HUwMtgHC<10pct","H94HUwMtgHC10to15pct","H94HUwMtgHC15to20pct","H94HUwMtgHC20to25pct","H94HUwMtgHC25to30pct","H94HUwMtgHC30to35pct","H94HUwMtgHC35to40pct","H94HUwMtgHC40to50pct","H94HUwMtgHC50pctOrMore","H94HUwMtgHCpctNotComp","H94HUWOutMortg","H94HUWOutMortgHC<10pct","H94HUWOutMortgHC10to15pct","H94HUWOutMortgHC15to20pct","H94HUWOutMortgHC20to25pct","H94HUWOutMortgHC25to30pct","H94HUWOutMortgHC30to35pct","H94HUWOutMortgHC35to40pct","H94HUWOutMortgHC40to50pct","H94HUWOutMortgHC50pctOrMore","H94HUWOutMortgHCpctNotComp","H97SpecifOwnOccHU","H97SOOHUInc<10k","H97SOOHUInc<10kHC<20pct","H97SOOHUInc<10kHC20to25pct","H97SOOHUInc<10kHC25to30pct","H97SOOHUInc<10kHC30to35pct","H97SOOHUInc<10kHC>35pct","H97SOOHUInc<10kHCpctNotComput","H97SOOHUInc10to20k","H97SOOHUInc10to20kHC<20pct","H97SOOHUInc10to20kHC20to25pct","H97SOOHUInc10to20kHC25to30pct","H97SOOHUInc10to20kHC30to35pct","H97SOOHUInc10to20kHC>35pct","H97SOOHUInc10to20kHCpctNotComput","H97SOOHUInc20to35k","H97SOOHUInc20to35kRC<20pct","H97SOOHUInc20to35kRC20to25pct","H97SOOHUInc20to35kRC25to30pct","H97SOOHUInc20to35kRC30to35pct","H97SOOHUInc20to35kRC>35pct","H97SOOHUInc20to35kRCpctNotComput","H97SOOHUInc35to50k","H97SOOHUInc35to50kRC<20pct","H97SOOHUInc35to50kRC20to25pct","H97SOOHUInc35to50kRC25to30pct","H97SOOHUInc35to50kRC30to35pct","H97SOOHUInc35to50kRC>35pct","H97SOOHUInc35to50kRCpctNotCompute","H97SOOHUInc50to75k","H97SOOHUInc50to75kRC<20pct","H97SOOHUInc50to75kRC20to25pct","H97SOOHUInc50to75kRC25to30pct","H97SOOHUInc50to75kRC30to35pct","H97SOOHUInc50to75kRC>35pct","H97SOOHUInc50to75kRCpctNotComput","H97SOOHUInc75to100k","H97SOOHUInc75to100kRC<20pct","H97SOOHUInc75to100kRC20to25pct","H97SOOHUInc75to100kRC25to30pct","H97SOOHUInc75to100kRC30to35pct","H97SOOHUInc75to100kRC>35pct","H97SOOHUInc75to100kRCpctNotCompute","H97SOOHUInc100to150k","H97SOOHUInc100to150kRC<20pct","H97SOOHUInc100to150kRC20to25pct","H97SOOHUInc100to150kRC25to30pct","H97SOOHUInc100to150kRC30to35pct","H97SOOHUInc100to150kRC>35pct","H97SOOHUInc100to150kRCpctNotCompute","H97SOOHUInc>150k","H97SOOHUInc>150kRC<20pct","H97SOOHUInc>150kRC20to25pct","H97SOOHUInc>150kRC25to30pct","H97SOOHUInc>150kRC30to35pct","H97SOOHUInc>150kRC>35pct","H97SOOHUInc>150kRCpctNotCompute"]
[{"$f":"VLOOKUP(DropDownList!$B$47,CntyQryCensus!$A$408:$FN$450,A$1)","v":"Allenstown"},{"$f":"VLOOKUP(DropDownList!$B$47,CntyQryCensus!$A$408:$FN$450,B$1)","v":"0002575"},{"$f":"VLOOKUP(DropDownList!$B$47,CntyQryCensus!$A$408:$FN$450,C$1)","v":"00660"},{"$f":"VLOOKUP(DropDownList!$B$47,CntyQryCensus!$A$408:$FN$450,D$1)","v":4843},{"$f":"VLOOKUP(DropDownList!$B$47,CntyQryCensus!$A$408:$FN$450,E$1)","v":735},{"$f":"VLOOKUP(DropDownList!$B$47,CntyQryCensus!$A$408:$FN$450,F$1)","v":0},{"$f":"VLOOKUP(DropDownList!$B$47,CntyQryCensus!$A$408:$FN$450,G$1)","v":7},{"$f":"VLOOKUP(DropDownList!$B$47,CntyQryCensus!$A$408:$FN$450,H$1)","v":0},{"$f":"VLOOKUP(DropDownList!$B$47,CntyQryCensus!$A$408:$FN$450,I$1)","v":0},{"$f":"VLOOKUP(DropDownList!$B$47,CntyQryCensus!$A$408:$FN$450,J$1)","v":0},{"$f":"VLOOKUP(DropDownList!$B$47,CntyQryCensus!$A$408:$FN$450,K$1)","v":0},{"$f":"VLOOKUP(DropDownList!$B$47,CntyQryCensus!$A$408:$FN$450,L$1)","v":0},{"$f":"VLOOKUP(DropDownList!$B$47,CntyQryCensus!$A$408:$FN$450,M$1)","v":7},{"$f":"VLOOKUP(DropDownList!$B$47,CntyQryCensus!$A$408:$FN$450,N$1)","v":7},{"$f":"VLOOKUP(DropDownList!$B$47,CntyQryCensus!$A$408:$FN$450,O$1)","v":33},{"$f":"VLOOKUP(DropDownList!$B$47,CntyQryCensus!$A$408:$FN$450,P$1)","v":84},{"$f":"VLOOKUP(DropDownList!$B$47,CntyQryCensus!$A$408:$FN$450,Q$1)","v":94},{"$f":"VLOOKUP(DropDownList!$B$47,CntyQryCensus!$A$408:$FN$450,R$1)","v":172},{"$f":"VLOOKUP(DropDownList!$B$47,CntyQryCensus!$A$408:$FN$450,S$1)","v":225},{"$f":"VLOOKUP(DropDownList!$B$47,CntyQryCensus!$A$408:$FN$450,T$1)","v":22},{"$f":"VLOOKUP(DropDownList!$B$47,CntyQryCensus!$A$408:$FN$450,U$1)","v":28},{"$f":"VLOOKUP(DropDownList!$B$47,CntyQryCensus!$A$408:$FN$450,V$1)","v":35},{"$f":"VLOOKUP(DropDownList!$B$47,CntyQryCensus!$A$408:$FN$450,W$1)","v":15},{"$f":"VLOOKUP(DropDownList!$B$47,CntyQryCensus!$A$408:$FN$450,X$1)","v":6},{"$f":"VLOOKUP(DropDownList!$B$47,CntyQryCensus!$A$408:$FN$450,Y$1)","v":0},{"$f":"VLOOKUP(DropDownList!$B$47,CntyQryCensus!$A$408:$FN$450,Z$1)","v":0},{"$f":"VLOOKUP(DropDownList!$B$47,CntyQryCensus!$A$408:$FN$450,AA$1)","v":0},{"$f":"VLOOKUP(DropDownList!$B$47,CntyQryCensus!$A$408:$FN$450,AB$1)","v":0},{"$f":"VLOOKUP(DropDownList!$B$47,CntyQryCensus!$A$408:$FN$450,AC$1)","v":0},{"$f":"VLOOKUP(DropDownList!$B$47,CntyQryCensus!$A$408:$FN$450,AD$1)","v":97900},{"$f":"VLOOKUP(DropDownList!$B$47,CntyQryCensus!$A$408:$FN$450,AE$1)","v":1356},{"$f":"VLOOKUP(DropDownList!$B$47,CntyQryCensus!$A$408:$FN$450,AF$1)","v":92},{"$f":"VLOOKUP(DropDownList!$B$47,CntyQryCensus!$A$408:$FN$450,AG$1)","v":62},{"$f":"VLOOKUP(DropDownList!$B$47,CntyQryCensus!$A$408:$FN$450,AH$1)","v":109},{"$f":"VLOOKUP(DropDownList!$B$47,CntyQryCensus!$A$408:$FN$450,AI$1)","v":66},{"$f":"VLOOKUP(DropDownList!$B$47,CntyQryCensus!$A$408:$FN$450,AJ$1)","v":57},{"$f":"VLOOKUP(DropDownList!$B$47,CntyQryCensus!$A$408:$FN$450,AK$1)","v":59},{"$f":"VLOOKUP(DropDownList!$B$47,CntyQryCensus!$A$408:$FN$450,AL$1)","v":43},{"$f":"VLOOKUP(DropDownList!$B$47,CntyQryCensus!$A$408:$FN$450,AM$1)","v":17},{"$f":"VLOOKUP(DropDownList!$B$47,CntyQryCensus!$A$408:$FN$450,AN$1)","v":27},{"$f":"VLOOKUP(DropDownList!$B$47,CntyQryCensus!$A$408:$FN$450,AO$1)","v":73},{"$f":"VLOOKUP(DropDownList!$B$47,CntyQryCensus!$A$408:$FN$450,AP$1)","v":93},{"$f":"VLOOKUP(DropDownList!$B$47,CntyQryCensus!$A$408:$FN$450,AQ$1)","v":94},{"$f":"VLOOKUP(DropDownList!$B$47,CntyQryCensus!$A$408:$FN$450,AR$1)","v":172},{"$f":"VLOOKUP(DropDownList!$B$47,CntyQryCensus!$A$408:$FN$450,AS$1)","v":264},{"$f":"VLOOKUP(DropDownList!$B$47,CntyQryCensus!$A$408:$FN$450,AT$1)","v":36},{"$f":"VLOOKUP(DropDownList!$B$47,CntyQryCensus!$A$408:$FN$450,AU$1)","v":36},{"$f":"VLOOKUP(DropDownList!$B$47,CntyQryCensus!$A$408:$FN$450,AV$1)","v":35},{"$f":"VLOOKUP(DropDownList!$B$47,CntyQryCensus!$A$408:$FN$450,AW$1)","v":15},{"$f":"VLOOKUP(DropDownList!$B$47,CntyQryCensus!$A$408:$FN$450,AX$1)","v":6},{"$f":"VLOOKUP(DropDownList!$B$47,CntyQryCensus!$A$408:$FN$450,AY$1)","v":0},{"$f":"VLOOKUP(DropDownList!$B$47,CntyQryCensus!$A$408:$FN$450,AZ$1)","v":0},{"$f":"VLOOKUP(DropDownList!$B$47,CntyQryCensus!$A$408:$FN$450,BA$1)","v":0},{"$f":"VLOOKUP(DropDownList!$B$47,CntyQryCensus!$A$408:$FN$450,BB$1)","v":0},{"$f":"VLOOKUP(DropDownList!$B$47,CntyQryCensus!$A$408:$FN$450,BC$1)","v":0},{"$f":"VLOOKUP(DropDownList!$B$47,CntyQryCensus!$A$408:$FN$450,BD$1)","v":77800},{"$f":"VLOOKUP(DropDownList!$B$47,CntyQryCensus!$A$408:$FN$450,BE$1)","v":735},{"$f":"VLOOKUP(DropDownList!$B$47,CntyQryCensus!$A$408:$FN$450,BF$1)","v":510},{"$f":"VLOOKUP(DropDownList!$B$47,CntyQryCensus!$A$408:$FN$450,BG$1)","v":0},{"$f":"VLOOKUP(DropDownList!$B$47,CntyQryCensus!$A$408:$FN$450,BH$1)","v":0},{"$f":"VLOOKUP(DropDownList!$B$47,CntyQryCensus!$A$408:$FN$450,BI$1)","v":0},{"$f":"VLOOKUP(DropDownList!$B$47,CntyQryCensus!$A$408:$FN$450,BJ$1)","v":7},{"$f":"VLOOKUP(DropDownList!$B$47,CntyQryCensus!$A$408:$FN$450,BK$1)","v":13},{"$f":"VLOOKUP(DropDownList!$B$47,CntyQryCensus!$A$408:$FN$450,BL$1)","v":28},{"$f":"VLOOKUP(DropDownList!$B$47,CntyQryCensus!$A$408:$FN$450,BM$1)","v":70},{"$f":"VLOOKUP(DropDownList!$B$47,CntyQryCensus!$A$408:$FN$450,BN$1)","v":60},{"$f":"VLOOKUP(DropDownList!$B$47,CntyQryCensus!$A$408:$FN$450,BO$1)","v":49},{"$f":"VLOOKUP(DropDownList!$B$47,CntyQryCensus!$A$408:$FN$450,BP$1)","v":170},{"$f":"VLOOKUP(DropDownList!$B$47,CntyQryCensus!$A$408:$FN$450,BQ$1)","v":80},{"$f":"VLOOKUP(DropDownList!$B$47,CntyQryCensus!$A$408:$FN$450,BR$1)","v":26},{"$f":"VLOOKUP(DropDownList!$B$47,CntyQryCensus!$A$408:$FN$450,BS$1)","v":0},{"$f":"VLOOKUP(DropDownList!$B$47,CntyQryCensus!$A$408:$FN$450,BT$1)","v":7},{"$f":"VLOOKUP(DropDownList!$B$47,CntyQryCensus!$A$408:$FN$450,BU$1)","v":0},{"$f":"VLOOKUP(DropDownList!$B$47,CntyQryCensus!$A$408:$FN$450,BV$1)","v":225},{"$f":"VLOOKUP(DropDownList!$B$47,CntyQryCensus!$A$408:$FN$450,BW$1)","v":0},{"$f":"VLOOKUP(DropDownList!$B$47,CntyQryCensus!$A$408:$FN$450,BX$1)","v":0},{"$f":"VLOOKUP(DropDownList!$B$47,CntyQryCensus!$A$408:$FN$450,BY$1)","v":0},{"$f":"VLOOKUP(DropDownList!$B$47,CntyQryCensus!$A$408:$FN$450,BZ$1)","v":0},{"$f":"VLOOKUP(DropDownList!$B$47,CntyQryCensus!$A$408:$FN$450,CA$1)","v":18},{"$f":"VLOOKUP(DropDownList!$B$47,CntyQryCensus!$A$408:$FN$450,CB$1)","v":33},{"$f":"VLOOKUP(DropDownList!$B$47,CntyQryCensus!$A$408:$FN$450,CC$1)","v":57},{"$f":"VLOOKUP(DropDownList!$B$47,CntyQryCensus!$A$408:$FN$450,CD$1)","v":48},{"$f":"VLOOKUP(DropDownList!$B$47,CntyQryCensus!$A$408:$FN$450,CE$1)","v":42},{"$f":"VLOOKUP(DropDownList!$B$47,CntyQryCensus!$A$408:$FN$450,CF$1)","v":15},{"$f":"VLOOKUP(DropDownList!$B$47,CntyQryCensus!$A$408:$FN$450,CG$1)","v":6},{"$f":"VLOOKUP(DropDownList!$B$47,CntyQryCensus!$A$408:$FN$450,CH$1)","v":6},{"$f":"VLOOKUP(DropDownList!$B$47,CntyQryCensus!$A$408:$FN$450,CI$1)","v":0},{"$f":"VLOOKUP(DropDownList!$B$47,CntyQryCensus!$A$408:$FN$450,CJ$1)","v":0},{"$f":"VLOOKUP(DropDownList!$B$47,CntyQryCensus!$A$408:$FN$450,CK$1)","v":1041},{"$f":"VLOOKUP(DropDownList!$B$47,CntyQryCensus!$A$408:$FN$450,CL$1)","v":409},{"$f":"VLOOKUP(DropDownList!$B$47,CntyQryCensus!$A$408:$FN$450,CM$1)","v":735},{"$f":"VLOOKUP(DropDownList!$B$47,CntyQryCensus!$A$408:$FN$450,CN$1)","v":510},{"$f":"VLOOKUP(DropDownList!$B$47,CntyQryCensus!$A$408:$FN$450,CO$1)","v":13},{"$f":"VLOOKUP(DropDownList!$B$47,CntyQryCensus!$A$408:$FN$450,CP$1)","v":70},{"$f":"VLOOKUP(DropDownList!$B$47,CntyQryCensus!$A$408:$FN$450,CQ$1)","v":166},{"$f":"VLOOKUP(DropDownList!$B$47,CntyQryCensus!$A$408:$FN$450,CR$1)","v":98},{"$f":"VLOOKUP(DropDownList!$B$47,CntyQryCensus!$A$408:$FN$450,CS$1)","v":57},{"$f":"VLOOKUP(DropDownList!$B$47,CntyQryCensus!$A$408:$FN$450,CT$1)","v":35},{"$f":"VLOOKUP(DropDownList!$B$47,CntyQryCensus!$A$408:$FN$450,CU$1)","v":14},{"$f":"VLOOKUP(DropDownList!$B$47,CntyQryCensus!$A$408:$FN$450,CV$1)","v":19},{"$f":"VLOOKUP(DropDownList!$B$47,CntyQryCensus!$A$408:$FN$450,CW$1)","v":38},{"$f":"VLOOKUP(DropDownList!$B$47,CntyQryCensus!$A$408:$FN$450,CX$1)","v":0},{"$f":"VLOOKUP(DropDownList!$B$47,CntyQryCensus!$A$408:$FN$450,CY$1)","v":225},{"$f":"VLOOKUP(DropDownList!$B$47,CntyQryCensus!$A$408:$FN$450,CZ$1)","v":77},{"$f":"VLOOKUP(DropDownList!$B$47,CntyQryCensus!$A$408:$FN$450,DA$1)","v":41},{"$f":"VLOOKUP(DropDownList!$B$47,CntyQryCensus!$A$408:$FN$450,DB$1)","v":48},{"$f":"VLOOKUP(DropDownList!$B$47,CntyQryCensus!$A$408:$FN$450,DC$1)","v":27},{"$f":"VLOOKUP(DropDownList!$B$47,CntyQryCensus!$A$408:$FN$450,DD$1)","v":6},{"$f":"VLOOKUP(DropDownList!$B$47,CntyQryCensus!$A$408:$FN$450,DE$1)","v":13},{"$f":"VLOOKUP(DropDownList!$B$47,CntyQryCensus!$A$408:$FN$450,DF$1)","v":6},{"$f":"VLOOKUP(DropDownList!$B$47,CntyQryCensus!$A$408:$FN$450,DG$1)","v":0},{"$f":"VLOOKUP(DropDownList!$B$47,CntyQryCensus!$A$408:$FN$450,DH$1)","v":7},{"$f":"VLOOKUP(DropDownList!$B$47,CntyQryCensus!$A$408:$FN$450,DI$1)","v":0},{"$f":"VLOOKUP(DropDownList!$B$47,CntyQryCensus!$A$408:$FN$450,DJ$1)","v":735},{"$f":"VLOOKUP(DropDownList!$B$47,CntyQryCensus!$A$408:$FN$450,DK$1)","v":9},{"$f":"VLOOKUP(DropDownList!$B$47,CntyQryCensus!$A$408:$FN$450,DL$1)","v":0},{"$f":"VLOOKUP(DropDownList!$B$47,CntyQryCensus!$A$408:$FN$450,DM$1)","v":0},{"$f":"VLOOKUP(DropDownList!$B$47,CntyQryCensus!$A$408:$FN$450,DN$1)","v":0},{"$f":"VLOOKUP(DropDownList!$B$47,CntyQryCensus!$A$408:$FN$450,DO$1)","v":0},{"$f":"VLOOKUP(DropDownList!$B$47,CntyQryCensus!$A$408:$FN$450,DP$1)","v":9},{"$f":"VLOOKUP(DropDownList!$B$47,CntyQryCensus!$A$408:$FN$450,DQ$1)","v":0},{"$f":"VLOOKUP(DropDownList!$B$47,CntyQryCensus!$A$408:$FN$450,DR$1)","v":45},{"$f":"VLOOKUP(DropDownList!$B$47,CntyQryCensus!$A$408:$FN$450,DS$1)","v":0},{"$f":"VLOOKUP(DropDownList!$B$47,CntyQryCensus!$A$408:$FN$450,DT$1)","v":13},{"$f":"VLOOKUP(DropDownList!$B$47,CntyQryCensus!$A$408:$FN$450,DU$1)","v":6},{"$f":"VLOOKUP(DropDownList!$B$47,CntyQryCensus!$A$408:$FN$450,DV$1)","v":13},{"$f":"VLOOKUP(DropDownList!$B$47,CntyQryCensus!$A$408:$FN$450,DW$1)","v":13},{"$f":"VLOOKUP(DropDownList!$B$47,CntyQryCensus!$A$408:$FN$450,DX$1)","v":0},{"$f":"VLOOKUP(DropDownList!$B$47,CntyQryCensus!$A$408:$FN$450,DY$1)","v":116},{"$f":"VLOOKUP(DropDownList!$B$47,CntyQryCensus!$A$408:$FN$450,DZ$1)","v":52},{"$f":"VLOOKUP(DropDownList!$B$47,CntyQryCensus!$A$408:$FN$450,EA$1)","v":8},{"$f":"VLOOKUP(DropDownList!$B$47,CntyQryCensus!$A$408:$FN$450,EB$1)","v":7},{"$f":"VLOOKUP(DropDownList!$B$47,CntyQryCensus!$A$408:$FN$450,EC$1)","v":0},{"$f":"VLOOKUP(DropDownList!$B$47,CntyQryCensus!$A$408:$FN$450,ED$1)","v":49},{"$f":"VLOOKUP(DropDownList!$B$47,CntyQryCensus!$A$408:$FN$450,EE$1)","v":0},{"$f":"VLOOKUP(DropDownList!$B$47,CntyQryCensus!$A$408:$FN$450,EF$1)","v":124},{"$f":"VLOOKUP(DropDownList!$B$47,CntyQryCensus!$A$408:$FN$450,EG$1)","v":41},{"$f":"VLOOKUP(DropDownList!$B$47,CntyQryCensus!$A$408:$FN$450,EH$1)","v":24},{"$f":"VLOOKUP(DropDownList!$B$47,CntyQryCensus!$A$408:$FN$450,EI$1)","v":18},{"$f":"VLOOKUP(DropDownList!$B$47,CntyQryCensus!$A$408:$FN$450,EJ$1)","v":28},{"$f":"VLOOKUP(DropDownList!$B$47,CntyQryCensus!$A$408:$FN$450,EK$1)","v":13},{"$f":"VLOOKUP(DropDownList!$B$47,CntyQryCensus!$A$408:$FN$450,EL$1)","v":0},{"$f":"VLOOKUP(DropDownList!$B$47,CntyQryCensus!$A$408:$FN$450,EM$1)","v":247},{"$f":"VLOOKUP(DropDownList!$B$47,CntyQryCensus!$A$408:$FN$450,EN$1)","v":149},{"$f":"VLOOKUP(DropDownList!$B$47,CntyQryCensus!$A$408:$FN$450,EO$1)","v":66},{"$f":"VLOOKUP(DropDownList!$B$47,CntyQryCensus!$A$408:$FN$450,EP$1)","v":32},{"$f":"VLOOKUP(DropDownList!$B$47,CntyQryCensus!$A$408:$FN$450,EQ$1)","v":0},{"$f":"VLOOKUP(DropDownList!$B$47,CntyQryCensus!$A$408:$FN$450,ER$1)","v":0},{"$f":"VLOOKUP(DropDownList!$B$47,CntyQryCensus!$A$408:$FN$450,ES$1)","v":0},{"$f":"VLOOKUP(DropDownList!$B$47,CntyQryCensus!$A$408:$FN$450,ET$1)","v":105},{"$f":"VLOOKUP(DropDownList!$B$47,CntyQryCensus!$A$408:$FN$450,EU$1)","v":91},{"$f":"VLOOKUP(DropDownList!$B$47,CntyQryCensus!$A$408:$FN$450,EV$1)","v":14},{"$f":"VLOOKUP(DropDownList!$B$47,CntyQryCensus!$A$408:$FN$450,EW$1)","v":0},{"$f":"VLOOKUP(DropDownList!$B$47,CntyQryCensus!$A$408:$FN$450,EX$1)","v":0},{"$f":"VLOOKUP(DropDownList!$B$47,CntyQryCensus!$A$408:$FN$450,EY$1)","v":0},{"$f":"VLOOKUP(DropDownList!$B$47,CntyQryCensus!$A$408:$FN$450,EZ$1)","v":0},{"$f":"VLOOKUP(DropDownList!$B$47,CntyQryCensus!$A$408:$FN$450,FA$1)","v":89},{"$f":"VLOOKUP(DropDownList!$B$47,CntyQryCensus!$A$408:$FN$450,FB$1)","v":82},{"$f":"VLOOKUP(DropDownList!$B$47,CntyQryCensus!$A$408:$FN$450,FC$1)","v":0},{"$f":"VLOOKUP(DropDownList!$B$47,CntyQryCensus!$A$408:$FN$450,FD$1)","v":0},{"$f":"VLOOKUP(DropDownList!$B$47,CntyQryCensus!$A$408:$FN$450,FE$1)","v":7},{"$f":"VLOOKUP(DropDownList!$B$47,CntyQryCensus!$A$408:$FN$450,FF$1)","v":0},{"$f":"VLOOKUP(DropDownList!$B$47,CntyQryCensus!$A$408:$FN$450,FG$1)","v":0},{"$f":"VLOOKUP(DropDownList!$B$47,CntyQryCensus!$A$408:$FN$450,FH$1)","v":0},{"$f":"VLOOKUP(DropDownList!$B$47,CntyQryCensus!$A$408:$FN$450,FI$1)","v":0},{"$f":"VLOOKUP(DropDownList!$B$47,CntyQryCensus!$A$408:$FN$450,FJ$1)","v":0},{"$f":"VLOOKUP(DropDownList!$B$47,CntyQryCensus!$A$408:$FN$450,FK$1)","v":0},{"$f":"VLOOKUP(DropDownList!$B$47,CntyQryCensus!$A$408:$FN$450,FL$1)","v":0},{"$f":"VLOOKUP(DropDownList!$B$47,CntyQryCensus!$A$408:$FN$450,FM$1)","v":0},{"$f":"VLOOKUP(DropDownList!$B$47,CntyQryCensus!$A$408:$FN$450,FN$1)","v":0}]
[]
[]
["Census 2000 SummaryFile3 Sample Data  -  SF3TownQry9HHIncomeByTenure"]
["NAME","LOGRECNO","COUNTY","TotalPop","HCT11OccHU","HCT11OwnOccHU","HCT11OOHUInc<5K","HCT11OOHUInc5to10K","HCT11OOHUInc10to15K","HCT11OOHUInc15to20K","HCT11OOHUInc20to25K","HCT11OOHUInc25to35K","HCT11OOHUInc35to50K","HCT11OOHUInc50to75K","HCT11OOHUInc75to100K","HCT11OOHUInc100to150K","HCT11OOHUInc>150K","HCT11RentOccHU","HCT11ROHUInc<5K","HCT11ROHUInc5to10K","HCT11ROHUInc10to15K","HCT11ROHUInc15to20K","HCT11ROHUInc20to25K","HCT11ROHUInc25to35K","HCT11ROHUInc35to50K","HCT11ROHUInc50to75K","HCT11ROHUInc75to100K","HCT11ROHUInc100to150K","HCT11ROHUInc>150K","HCT12MedHHInc","HCT12MedOwnOccHHInc","HCT12MedRentOccHHInc","Summary Level"]
[{"$f":"VLOOKUP(DropDownList!$B$47,CntyQryCensus!$A$459:$AG$501,A$1)","v":"Allenstown"},{"$f":"VLOOKUP(DropDownList!$B$47,CntyQryCensus!$A$459:$AG$501,B$1)","v":"0002575"},{"$f":"VLOOKUP(DropDownList!$B$47,CntyQryCensus!$A$459:$AG$501,C$1)","v":"00660"},{"$f":"VLOOKUP(DropDownList!$B$47,CntyQryCensus!$A$459:$AG$501,D$1)","v":"Allenstown town"},{"$f":"VLOOKUP(DropDownList!$B$47,CntyQryCensus!$A$459:$AG$501,E$1)","v":"013"},{"$f":"VLOOKUP(DropDownList!$B$47,CntyQryCensus!$A$459:$AG$501,F$1)","v":4843},{"$f":"VLOOKUP(DropDownList!$B$47,CntyQryCensus!$A$459:$AG$501,G$1)","v":1902},{"$f":"VLOOKUP(DropDownList!$B$47,CntyQryCensus!$A$459:$AG$501,H$1)","v":1356},{"$f":"VLOOKUP(DropDownList!$B$47,CntyQryCensus!$A$459:$AG$501,I$1)","v":6},{"$f":"VLOOKUP(DropDownList!$B$47,CntyQryCensus!$A$459:$AG$501,J$1)","v":41},{"$f":"VLOOKUP(DropDownList!$B$47,CntyQryCensus!$A$459:$AG$501,K$1)","v":59},{"$f":"VLOOKUP(DropDownList!$B$47,CntyQryCensus!$A$459:$AG$501,L$1)","v":61},{"$f":"VLOOKUP(DropDownList!$B$47,CntyQryCensus!$A$459:$AG$501,M$1)","v":57},{"$f":"VLOOKUP(DropDownList!$B$47,CntyQryCensus!$A$459:$AG$501,N$1)","v":186},{"$f":"VLOOKUP(DropDownList!$B$47,CntyQryCensus!$A$459:$AG$501,O$1)","v":278},{"$f":"VLOOKUP(DropDownList!$B$47,CntyQryCensus!$A$459:$AG$501,P$1)","v":416},{"$f":"VLOOKUP(DropDownList!$B$47,CntyQryCensus!$A$459:$AG$501,Q$1)","v":141},{"$f":"VLOOKUP(DropDownList!$B$47,CntyQryCensus!$A$459:$AG$501,R$1)","v":103},{"$f":"VLOOKUP(DropDownList!$B$47,CntyQryCensus!$A$459:$AG$501,S$1)","v":8},{"$f":"VLOOKUP(DropDownList!$B$47,CntyQryCensus!$A$459:$AG$501,T$1)","v":546},{"$f":"VLOOKUP(DropDownList!$B$47,CntyQryCensus!$A$459:$AG$501,U$1)","v":7},{"$f":"VLOOKUP(DropDownList!$B$47,CntyQryCensus!$A$459:$AG$501,V$1)","v":75},{"$f":"VLOOKUP(DropDownList!$B$47,CntyQryCensus!$A$459:$AG$501,W$1)","v":44},{"$f":"VLOOKUP(DropDownList!$B$47,CntyQryCensus!$A$459:$AG$501,X$1)","v":26},{"$f":"VLOOKUP(DropDownList!$B$47,CntyQryCensus!$A$459:$AG$501,Y$1)","v":64},{"$f":"VLOOKUP(DropDownList!$B$47,CntyQryCensus!$A$459:$AG$501,Z$1)","v":109},{"$f":"VLOOKUP(DropDownList!$B$47,CntyQryCensus!$A$459:$AG$501,AA$1)","v":104},{"$f":"VLOOKUP(DropDownList!$B$47,CntyQryCensus!$A$459:$AG$501,AB$1)","v":80},{"$f":"VLOOKUP(DropDownList!$B$47,CntyQryCensus!$A$459:$AG$501,AC$1)","v":21},{"$f":"VLOOKUP(DropDownList!$B$47,CntyQryCensus!$A$459:$AG$501,AD$1)","v":16},{"$f":"VLOOKUP(DropDownList!$B$47,CntyQryCensus!$A$459:$AG$501,AE$1)","v":0},{"$f":"VLOOKUP(DropDownList!$B$47,CntyQryCensus!$A$459:$AG$501,AF$1)","v":41875},{"$f":"VLOOKUP(DropDownList!$B$47,CntyQryCensus!$A$459:$AG$501,AG$1)","v":49138}]
[]
[]
[]
[]
[]
[{"$f":"VLOOKUP(DropDownList!$B$47,CntyQryCensus!$A$510:$DA$552,A$1)","v":"Allenstown"}]
[]
[]
[]
[]
[]
[]
[]
["Census 2000 SummaryFile3 Sample Data - SF3TownQry10Disabil"]
["NAME","LOGRECNO","COUNTY","TotalPop","PCT026001-NonInstPop5yrs+","PCT026002-MaleNonInstPop5yrs+","PCT026003","PCT026004","PCT026005","PCT026006","PCT026007","PCT026008","PCT026009","PCT026010","PCT026011","PCT026012","PCT026013","PCT026014","PCT026015","PCT026016","PCT026017","PCT026018","PCT026019","PCT026020","PCT026021","PCT026022","PCT026023","PCT026024","PCT026025","PCT026026","PCT026027","PCT026028","PCT026029","PCT026030","PCT026031","PCT026032","PCT026033","PCT026034","PCT026035","PCT026036","PCT026037","PCT026038","PCT026039","PCT026040","PCT026041","PCT026042","PCT026043","PCT026044","PCT026045","PCT026046","PCT026047","PCT026048","PCT026049","PCT026050","PCT026051","PCT026052","PCT026053","PCT026054","PCT026055","PCT026056","PCT026057","PCT026058","PCT026059","PCT026060","PCT026061","PCT026062","PCT026063","PCT026064","PCT026065","PCT026066","PCT026067","PCT026068","PCT026069","PCT026070","PCT026071","PCT026072","PCT026073","PCT026074","PCT026075","PCT026076","PCT026077","PCT026078","PCT026079","PCT026080","PCT026081","PCT026082","PCT026083","PCT026084","PCT026085","PCT026086","PCT026087","PCT026088","PCT026089","PCT026090","PCT026091","PCT026092","PCT026093","PCT026094","PCT026095","PCT026096","PCT026097","PCT026098","PCT026099","PCT026100","PCT026101"]
[{"$f":"VLOOKUP(DropDownList!$B$47,CntyQryCensus!$A$510:$DA$552,A$1)","v":"Allenstown"},{"$f":"VLOOKUP(DropDownList!$B$47,CntyQryCensus!$A$510:$DA$552,B$1)","v":"0002575"},{"$f":"VLOOKUP(DropDownList!$B$47,CntyQryCensus!$A$510:$DA$552,C$1)","v":"00660"},{"$f":"VLOOKUP(DropDownList!$B$47,CntyQryCensus!$A$510:$DA$552,D$1)","v":4843},{"$f":"VLOOKUP(DropDownList!$B$47,CntyQryCensus!$A$510:$DA$552,E$1)","v":4497},{"$f":"VLOOKUP(DropDownList!$B$47,CntyQryCensus!$A$510:$DA$552,F$1)","v":2142},{"$f":"VLOOKUP(DropDownList!$B$47,CntyQryCensus!$A$510:$DA$552,G$1)","v":429},{"$f":"VLOOKUP(DropDownList!$B$47,CntyQryCensus!$A$510:$DA$552,H$1)","v":52},{"$f":"VLOOKUP(DropDownList!$B$47,CntyQryCensus!$A$510:$DA$552,I$1)","v":9},{"$f":"VLOOKUP(DropDownList!$B$47,CntyQryCensus!$A$510:$DA$552,J$1)","v":0},{"$f":"VLOOKUP(DropDownList!$B$47,CntyQryCensus!$A$510:$DA$552,K$1)","v":43},{"$f":"VLOOKUP(DropDownList!$B$47,CntyQryCensus!$A$510:$DA$552,L$1)","v":0},{"$f":"VLOOKUP(DropDownList!$B$47,CntyQryCensus!$A$510:$DA$552,M$1)","v":13},{"$f":"VLOOKUP(DropDownList!$B$47,CntyQryCensus!$A$510:$DA$552,N$1)","v":7},{"$f":"VLOOKUP(DropDownList!$B$47,CntyQryCensus!$A$510:$DA$552,O$1)","v":6},{"$f":"VLOOKUP(DropDownList!$B$47,CntyQryCensus!$A$510:$DA$552,P$1)","v":364},{"$f":"VLOOKUP(DropDownList!$B$47,CntyQryCensus!$A$510:$DA$552,Q$1)","v":133},{"$f":"VLOOKUP(DropDownList!$B$47,CntyQryCensus!$A$510:$DA$552,R$1)","v":8},{"$f":"VLOOKUP(DropDownList!$B$47,CntyQryCensus!$A$510:$DA$552,S$1)","v":5},{"$f":"VLOOKUP(DropDownList!$B$47,CntyQryCensus!$A$510:$DA$552,T$1)","v":0},{"$f":"VLOOKUP(DropDownList!$B$47,CntyQryCensus!$A$510:$DA$552,U$1)","v":0},{"$f":"VLOOKUP(DropDownList!$B$47,CntyQryCensus!$A$510:$DA$552,V$1)","v":0},{"$f":"VLOOKUP(DropDownList!$B$47,CntyQryCensus!$A$510:$DA$552,W$1)","v":0},{"$f":"VLOOKUP(DropDownList!$B$47,CntyQryCensus!$A$510:$DA$552,X$1)","v":3},{"$f":"VLOOKUP(DropDownList!$B$47,CntyQryCensus!$A$510:$DA$552,Y$1)","v":0},{"$f":"VLOOKUP(DropDownList!$B$47,CntyQryCensus!$A$510:$DA$552,Z$1)","v":0},{"$f":"VLOOKUP(DropDownList!$B$47,CntyQryCensus!$A$510:$DA$552,AA$1)","v":0},{"$f":"VLOOKUP(DropDownList!$B$47,CntyQryCensus!$A$510:$DA$552,AB$1)","v":0},{"$f":"VLOOKUP(DropDownList!$B$47,CntyQryCensus!$A$510:$DA$552,AC$1)","v":0},{"$f":"VLOOKUP(DropDownList!$B$47,CntyQryCensus!$A$510:$DA$552,AD$1)","v":125},{"$f":"VLOOKUP(DropDownList!$B$47,CntyQryCensus!$A$510:$DA$552,AE$1)","v":1401},{"$f":"VLOOKUP(DropDownList!$B$47,CntyQryCensus!$A$510:$DA$552,AF$1)","v":129},{"$f":"VLOOKUP(DropDownList!$B$47,CntyQryCensus!$A$510:$DA$552,AG$1)","v":30},{"$f":"VLOOKUP(DropDownList!$B$47,CntyQryCensus!$A$510:$DA$552,AH$1)","v":18},{"$f":"VLOOKUP(DropDownList!$B$47,CntyQryCensus!$A$510:$DA$552,AI$1)","v":0},{"$f":"VLOOKUP(DropDownList!$B$47,CntyQryCensus!$A$510:$DA$552,AJ$1)","v":0},{"$f":"VLOOKUP(DropDownList!$B$47,CntyQryCensus!$A$510:$DA$552,AK$1)","v":0},{"$f":"VLOOKUP(DropDownList!$B$47,CntyQryCensus!$A$510:$DA$552,AL$1)","v":81},{"$f":"VLOOKUP(DropDownList!$B$47,CntyQryCensus!$A$510:$DA$552,AM$1)","v":165},{"$f":"VLOOKUP(DropDownList!$B$47,CntyQryCensus!$A$510:$DA$552,AN$1)","v":3},{"$f":"VLOOKUP(DropDownList!$B$47,CntyQryCensus!$A$510:$DA$552,AO$1)","v":162},{"$f":"VLOOKUP(DropDownList!$B$47,CntyQryCensus!$A$510:$DA$552,AP$1)","v":46},{"$f":"VLOOKUP(DropDownList!$B$47,CntyQryCensus!$A$510:$DA$552,AQ$1)","v":116},{"$f":"VLOOKUP(DropDownList!$B$47,CntyQryCensus!$A$510:$DA$552,AR$1)","v":1107},{"$f":"VLOOKUP(DropDownList!$B$47,CntyQryCensus!$A$510:$DA$552,AS$1)","v":179},{"$f":"VLOOKUP(DropDownList!$B$47,CntyQryCensus!$A$510:$DA$552,AT$1)","v":7},{"$f":"VLOOKUP(DropDownList!$B$47,CntyQryCensus!$A$510:$DA$552,AU$1)","v":0},{"$f":"VLOOKUP(DropDownList!$B$47,CntyQryCensus!$A$510:$DA$552,AV$1)","v":7},{"$f":"VLOOKUP(DropDownList!$B$47,CntyQryCensus!$A$510:$DA$552,AW$1)","v":0},{"$f":"VLOOKUP(DropDownList!$B$47,CntyQryCensus!$A$510:$DA$552,AX$1)","v":0},{"$f":"VLOOKUP(DropDownList!$B$47,CntyQryCensus!$A$510:$DA$552,AY$1)","v":0},{"$f":"VLOOKUP(DropDownList!$B$47,CntyQryCensus!$A$510:$DA$552,AZ$1)","v":57},{"$f":"VLOOKUP(DropDownList!$B$47,CntyQryCensus!$A$510:$DA$552,BA$1)","v":41},{"$f":"VLOOKUP(DropDownList!$B$47,CntyQryCensus!$A$510:$DA$552,BB$1)","v":16},{"$f":"VLOOKUP(DropDownList!$B$47,CntyQryCensus!$A$510:$DA$552,BC$1)","v":115},{"$f":"VLOOKUP(DropDownList!$B$47,CntyQryCensus!$A$510:$DA$552,BD$1)","v":2355},{"$f":"VLOOKUP(DropDownList!$B$47,CntyQryCensus!$A$510:$DA$552,BE$1)","v":453},{"$f":"VLOOKUP(DropDownList!$B$47,CntyQryCensus!$A$510:$DA$552,BF$1)","v":39},{"$f":"VLOOKUP(DropDownList!$B$47,CntyQryCensus!$A$510:$DA$552,BG$1)","v":7},{"$f":"VLOOKUP(DropDownList!$B$47,CntyQryCensus!$A$510:$DA$552,BH$1)","v":0},{"$f":"VLOOKUP(DropDownList!$B$47,CntyQryCensus!$A$510:$DA$552,BI$1)","v":32},{"$f":"VLOOKUP(DropDownList!$B$47,CntyQryCensus!$A$510:$DA$552,BJ$1)","v":0},{"$f":"VLOOKUP(DropDownList!$B$47,CntyQryCensus!$A$510:$DA$552,BK$1)","v":11},{"$f":"VLOOKUP(DropDownList!$B$47,CntyQryCensus!$A$510:$DA$552,BL$1)","v":5},{"$f":"VLOOKUP(DropDownList!$B$47,CntyQryCensus!$A$510:$DA$552,BM$1)","v":6},{"$f":"VLOOKUP(DropDownList!$B$47,CntyQryCensus!$A$510:$DA$552,BN$1)","v":403},{"$f":"VLOOKUP(DropDownList!$B$47,CntyQryCensus!$A$510:$DA$552,BO$1)","v":123},{"$f":"VLOOKUP(DropDownList!$B$47,CntyQryCensus!$A$510:$DA$552,BP$1)","v":17},{"$f":"VLOOKUP(DropDownList!$B$47,CntyQryCensus!$A$510:$DA$552,BQ$1)","v":0},{"$f":"VLOOKUP(DropDownList!$B$47,CntyQryCensus!$A$510:$DA$552,BR$1)","v":6},{"$f":"VLOOKUP(DropDownList!$B$47,CntyQryCensus!$A$510:$DA$552,BS$1)","v":0},{"$f":"VLOOKUP(DropDownList!$B$47,CntyQryCensus!$A$510:$DA$552,BT$1)","v":0},{"$f":"VLOOKUP(DropDownList!$B$47,CntyQryCensus!$A$510:$DA$552,BU$1)","v":6},{"$f":"VLOOKUP(DropDownList!$B$47,CntyQryCensus!$A$510:$DA$552,BV$1)","v":5},{"$f":"VLOOKUP(DropDownList!$B$47,CntyQryCensus!$A$510:$DA$552,BW$1)","v":0},{"$f":"VLOOKUP(DropDownList!$B$47,CntyQryCensus!$A$510:$DA$552,BX$1)","v":0},{"$f":"VLOOKUP(DropDownList!$B$47,CntyQryCensus!$A$510:$DA$552,BY$1)","v":0},{"$f":"VLOOKUP(DropDownList!$B$47,CntyQryCensus!$A$510:$DA$552,BZ$1)","v":0},{"$f":"VLOOKUP(DropDownList!$B$47,CntyQryCensus!$A$510:$DA$552,CA$1)","v":0},{"$f":"VLOOKUP(DropDownList!$B$47,CntyQryCensus!$A$510:$DA$552,CB$1)","v":106},{"$f":"VLOOKUP(DropDownList!$B$47,CntyQryCensus!$A$510:$DA$552,CC$1)","v":1452},{"$f":"VLOOKUP(DropDownList!$B$47,CntyQryCensus!$A$510:$DA$552,CD$1)","v":153},{"$f":"VLOOKUP(DropDownList!$B$47,CntyQryCensus!$A$510:$DA$552,CE$1)","v":8},{"$f":"VLOOKUP(DropDownList!$B$47,CntyQryCensus!$A$510:$DA$552,CF$1)","v":73},{"$f":"VLOOKUP(DropDownList!$B$47,CntyQryCensus!$A$510:$DA$552,CG$1)","v":34},{"$f":"VLOOKUP(DropDownList!$B$47,CntyQryCensus!$A$510:$DA$552,CH$1)","v":0},{"$f":"VLOOKUP(DropDownList!$B$47,CntyQryCensus!$A$510:$DA$552,CI$1)","v":7},{"$f":"VLOOKUP(DropDownList!$B$47,CntyQryCensus!$A$510:$DA$552,CJ$1)","v":31},{"$f":"VLOOKUP(DropDownList!$B$47,CntyQryCensus!$A$510:$DA$552,CK$1)","v":130},{"$f":"VLOOKUP(DropDownList!$B$47,CntyQryCensus!$A$510:$DA$552,CL$1)","v":29},{"$f":"VLOOKUP(DropDownList!$B$47,CntyQryCensus!$A$510:$DA$552,CM$1)","v":101},{"$f":"VLOOKUP(DropDownList!$B$47,CntyQryCensus!$A$510:$DA$552,CN$1)","v":12},{"$f":"VLOOKUP(DropDownList!$B$47,CntyQryCensus!$A$510:$DA$552,CO$1)","v":89},{"$f":"VLOOKUP(DropDownList!$B$47,CntyQryCensus!$A$510:$DA$552,CP$1)","v":1169},{"$f":"VLOOKUP(DropDownList!$B$47,CntyQryCensus!$A$510:$DA$552,CQ$1)","v":327},{"$f":"VLOOKUP(DropDownList!$B$47,CntyQryCensus!$A$510:$DA$552,CR$1)","v":52},{"$f":"VLOOKUP(DropDownList!$B$47,CntyQryCensus!$A$510:$DA$552,CS$1)","v":6},{"$f":"VLOOKUP(DropDownList!$B$47,CntyQryCensus!$A$510:$DA$552,CT$1)","v":21},{"$f":"VLOOKUP(DropDownList!$B$47,CntyQryCensus!$A$510:$DA$552,CU$1)","v":0},{"$f":"VLOOKUP(DropDownList!$B$47,CntyQryCensus!$A$510:$DA$552,CV$1)","v":0},{"$f":"VLOOKUP(DropDownList!$B$47,CntyQryCensus!$A$510:$DA$552,CW$1)","v":25},{"$f":"VLOOKUP(DropDownList!$B$47,CntyQryCensus!$A$510:$DA$552,CX$1)","v":103},{"$f":"VLOOKUP(DropDownList!$B$47,CntyQryCensus!$A$510:$DA$552,CY$1)","v":26},{"$f":"VLOOKUP(DropDownList!$B$47,CntyQryCensus!$A$510:$DA$552,CZ$1)","v":77},{"$f":"VLOOKUP(DropDownList!$B$47,CntyQryCensus!$A$510:$DA$552,DA$1)","v":172}]
[]
[]
[]
[]
[{"$f":"VLOOKUP(DropDownList!$B$47,CntyQryCensus!$A$510:$DA$552,A$1)","v":"Allenstown"}]
[]
[]
[]
["ACS",2,{"$f":"B105+1","v":3},{"$f":"C105+1","v":4},5,6,7,8,9,10,11,{"$f":"K105+1","v":12},13,14,15,{"$f":"O105+1","v":16},17,18,19,20,21,22,23,24,25,26,27,28,29,30,31,32,33,34,35,36,37,38,39,40,41,42,43,44,45,46,47,48,49,50,51,52,53,54,55,56,57,58,59,60,61,62,63,64,65,66,67,{"$f":"BO105+1","v":68},69,70,71,72,73,74,75,76,77,78,79,80,81,82,83,84,85,86,87,88,89,90,91,92,93,94,95,96,97,98,99,100,101,102,103,104,105,106,107,108,109,110,111,112,113,114,115,116,117,118,119,120,121,122,123,124,125]
["Househould Data (Housing Unit Type)"]
["NAME","TotalHU",{"$f":"\"MOE \"&B107","v":"MOE TotalHU"},"TotalOccHU",{"$f":"\"MOE \"&D107","v":"MOE TotalOccHU"},"TotalOwnerOccUn",{"$f":"\"MOE \"&F107","v":"MOE TotalOwnerOccUn"},"TotalRenterOccn",{"$f":"\"MOE \"&H107","v":"MOE TotalRenterOccn"},"TotalVacantUntis",{"$f":"\"MOE \"&J107","v":"MOE TotalVacantUntis"},"VacantUnitsForRent",{"$f":"\"MOE \"&L107","v":"MOE VacantUnitsForRent"},"VacantUnitRentedNotOcc",{"$f":"\"MOE \"&N107","v":"MOE VacantUnitRentedNotOcc"},"VacantUnitForSale",{"$f":"\"MOE \"&P107","v":"MOE VacantUnitForSale"},"VacantUnitSoldNotOcc",{"$f":"\"MOE \"&R107","v":"MOE VacantUnitSoldNotOcc"},"VacantUnitSeasonalRec",{"$f":"\"MOE \"&T107","v":"MOE VacantUnitSeasonalRec"},"TotalPopInHousingUnits",{"$f":"\"MOE \"&V107","v":"MOE TotalPopInHousingUnits"},"OwnerOccPopHousingUnits",{"$f":"\"MOE \"&X107","v":"MOE OwnerOccPopHousingUnits"},"RenterOccPopHousingUnits",{"$f":"\"MOE \"&Z107","v":"MOE RenterOccPopHousingUnits"},"TotalUntis",{"$f":"\"MOE \"&AB107","v":"MOE TotalUntis"},"TotalOwnerOccUnits",{"$f":"\"MOE \"&AD107","v":"MOE TotalOwnerOccUnits"},"SigFamOwnerOcc",{"$f":"\"MOE \"&AF107","v":"MOE SigFamOwnerOcc"},"MultiFamOwnerOcc",{"$f":"\"MOE \"&AH107","v":"MOE MultiFamOwnerOcc"},"MobileOwnerOcc",{"$f":"\"MOE \"&AJ107","v":"MOE MobileOwnerOcc"},"TotalRenterOccUnits",{"$f":"\"MOE \"&AL107","v":"MOE TotalRenterOccUnits"},"SigFamRenterOcc",{"$f":"\"MOE \"&AN107","v":"MOE SigFamRenterOcc"},"MultiFamRenterOcc",{"$f":"\"MOE \"&AP107","v":"MOE MultiFamRenterOcc"},"MobileRenterOcc",{"$f":"\"MOE \"&AR107","v":"MOE MobileRenterOcc"},"TotalSigFamilyUnits",{"$f":"\"MOE \"&AT107","v":"MOE TotalSigFamilyUnits"},"TotalMultiFamilyUnits",{"$f":"\"MOE \"&AV107","v":"MOE TotalMultiFamilyUnits"},"TotalMobileUnits",{"$f":"\"MOE \"&AX107","v":"MOE TotalMobileUnits"},"YrHouseBuilt2014Later",{"$f":"\"MOE \"&AZ107","v":"MOE YrHouseBuilt2014Later"},"YrHouseBuilt2010-2013",{"$f":"\"MOE \"&BB107","v":"MOE YrHouseBuilt2010-2013"},"YrHouseBuilt2000-2009",{"$f":"\"MOE \"&BD107","v":"MOE YrHouseBuilt2000-2009"},"YrHouseBuilt1990-1999",{"$f":"\"MOE \"&BF107","v":"MOE YrHouseBuilt1990-1999"},"YrHouseBuilt1980-1989",{"$f":"\"MOE \"&BH107","v":"MOE YrHouseBuilt1980-1989"},"YrHouseBuilt1970-1979",{"$f":"\"MOE \"&BJ107","v":"MOE YrHouseBuilt1970-1979"},"YrHouseBuilt1960-1969",{"$f":"\"MOE \"&BL107","v":"MOE YrHouseBuilt1960-1969"},"YrHouseBuilt1950-1959",{"$f":"\"MOE \"&BN107","v":"MOE YrHouseBuilt1950-1959"},"YrHouseBuilt1940-1949",{"$f":"\"MOE \"&BP107","v":"MOE YrHouseBuilt1940-1949"},"YrHouseBuilt1939orEarlier",{"$f":"\"MOE \"&BR107","v":"MOE YrHouseBuilt1939orEarlier"},"NoBedrooms",{"$f":"\"MOE \"&BT107","v":"MOE NoBedrooms"},"1Bedroom",{"$f":"\"MOE \"&BV107","v":"MOE 1Bedroom"},"2Bedroom",{"$f":"\"MOE \"&BX107","v":"MOE 2Bedroom"},"3Bedroom",{"$f":"\"MOE \"&BZ107","v":"MOE 3Bedroom"},"4+Bedroom",{"$f":"\"MOE \"&CB107","v":"MOE 4+Bedroom"}]
[{"$f":"VLOOKUP(DropDownList!$B$47,CntyQryCensus!$A$510:$DA$552,A$1)","v":"Allenstown"},1881,198,1812,193,1439,167,373,153,69,71,0,12,9,15,0,12,21,36,0,12,4650,22,3918,324,732,324,1812,193,1439,167,672,127,166,84.107074613257112,601,153.46986674914396,373,153,29,33,344,141.33294025102569,0,16.970562748477139,1241,204.61915843830459,640,160.44936896105264,null,null,0,12,148,76,251,105,181,94,276,139,351,117,136,64,94,54,76,66,368,155,93,92,197,108,618,147,834,149,139,72.17340230306452,81,79,36,74,28,76,114,30,114,142,91,44,40,134,119,76,105,14,132,142,84,108,151,154,137,30,701,207.10383868967759,300,141.01418368376991,207.27517941133232,197.81304304822774]
[]
["Disability Data"]
["NAME","TotalPop",{"$f":"\"MOE \"&B111","v":"MOE TotalPop"},"PopUnder 5 years:",{"$f":"\"MOE \"&D111","v":"MOE PopUnder 5 years:"},{"$f":"D$111&\"-WithDisability\"","v":"PopUnder 5 years:-WithDisability"},{"$f":"\"MOE \"&F111","v":"MOE PopUnder 5 years:-WithDisability"},{"$f":"D111&\"-NoDisability\"","v":"PopUnder 5 years:-NoDisability"},{"$f":"\"MOE \"&H111","v":"MOE PopUnder 5 years:-NoDisability"},"PopUnder 5 to 17years:",{"$f":"\"MOE \"&J111","v":"MOE PopUnder 5 to 17years:"},{"$f":"J$111&\"-WithDisability\"","v":"PopUnder 5 to 17years:-WithDisability"},{"$f":"\"MOE \"&L111","v":"MOE PopUnder 5 to 17years:-WithDisability"},{"$f":"J111&\"-NoDisability\"","v":"PopUnder 5 to 17years:-NoDisability"},{"$f":"\"MOE \"&N111","v":"MOE PopUnder 5 to 17years:-NoDisability"},"PopUnder 18 to 34 years:",{"$f":"\"MOE \"&P111","v":"MOE PopUnder 18 to 34 years:"},{"$f":"P$111&\"-WithDisability\"","v":"PopUnder 18 to 34 years:-WithDisability"},{"$f":"\"MOE \"&R111","v":"MOE PopUnder 18 to 34 years:-WithDisability"},{"$f":"P111&\"-NoDisability\"","v":"PopUnder 18 to 34 years:-NoDisability"},{"$f":"\"MOE \"&T111","v":"MOE PopUnder 18 to 34 years:-NoDisability"},"Pop 35 years to 64:",{"$f":"\"MOE \"&V111","v":"MOE Pop 35 years to 64:"},{"$f":"$V$111&\"-WithDisability\"","v":"Pop 35 years to 64:-WithDisability"},{"$f":"\"MOE \"&X111","v":"MOE Pop 35 years to 64:-WithDisability"},{"$f":"$V$111&\"-NoDisability\"","v":"Pop 35 years to 64:-NoDisability"},{"$f":"\"MOE \"&Z111","v":"MOE Pop 35 years to 64:-NoDisability"},"Pop 65 years to 74:",{"$f":"\"MOE \"&AB111","v":"MOE Pop 65 years to 74:"},{"$f":"$AB$111&\"-WithDisability\"","v":"Pop 65 years to 74:-WithDisability"},{"$f":"\"MOE \"&AD111","v":"MOE Pop 65 years to 74:-WithDisability"},{"$f":"$AB$111&\"-NoDisability\"","v":"Pop 65 years to 74:-NoDisability"},{"$f":"\"MOE \"&AF111","v":"MOE Pop 65 years to 74:-NoDisability"},"Pop 75 and older:",{"$f":"\"MOE \"&AH111","v":"MOE Pop 75 and older:"},{"$f":"$AH$111&\"-WithDisability\"","v":"Pop 75 and older:-WithDisability"},{"$f":"\"MOE \"&AJ111","v":"MOE Pop 75 and older:-WithDisability"},{"$f":"$AH$111&\"-NoDisability\"","v":"Pop 75 and older:-NoDisability"},{"$f":"\"MOE \"&AL111","v":"MOE Pop 75 and older:-NoDisability"},"TotalPopUnder5_HearingDisability",{"$f":"\"MOE \"&AN111","v":"MOE TotalPopUnder5_HearingDisability"},"TotalPopUnder5_HearingDisability",{"$f":"\"MOE \"&AP111","v":"MOE TotalPopUnder5_HearingDisability"},"TotalPop18To34_HearingDisability",{"$f":"\"MOE \"&AR111","v":"MOE TotalPop18To34_HearingDisability"},"TotalPop35To64_HearingDisability",{"$f":"\"MOE \"&AT111","v":"MOE TotalPop35To64_HearingDisability"},"TotalPop65To74_HearingDisability",{"$f":"\"MOE \"&AV111","v":"MOE TotalPop65To74_HearingDisability"},"TotalPop75andOlder_HearingDisability",{"$f":"\"MOE \"&AX111","v":"MOE TotalPop75andOlder_HearingDisability"},"TotalPopUnder5_VisionDisability",{"$f":"\"MOE \"&AZ111","v":"MOE TotalPopUnder5_VisionDisability"},"TotalPop5To17_VisionDisability",{"$f":"\"MOE \"&BB111","v":"MOE TotalPop5To17_VisionDisability"},"TotalPop18To34_VisionDisability",{"$f":"\"MOE \"&BD111","v":"MOE TotalPop18To34_VisionDisability"},"TotalPop35To64_VisionDisability",{"$f":"\"MOE \"&BF111","v":"MOE TotalPop35To64_VisionDisability"},"TotalPop65To74_VisionDisability",{"$f":"\"MOE \"&BH111","v":"MOE TotalPop65To74_VisionDisability"},"TotalPop75andOlder_VisionDisability",{"$f":"\"MOE \"&BJ111","v":"MOE TotalPop75andOlder_VisionDisability"},"TotalPop5To17_CongnitiveDisability",{"$f":"\"MOE \"&BL111","v":"MOE TotalPop5To17_CongnitiveDisability"},"TotalPop18To34_CongnitiveDisability",{"$f":"\"MOE \"&BN111","v":"MOE TotalPop18To34_CongnitiveDisability"},"TotalPop35To64_CongnitiveDisability",{"$f":"\"MOE \"&BP111","v":"MOE TotalPop35To64_CongnitiveDisability"},"TotalPop65To74_CongnitiveDisability",{"$f":"\"MOE \"&BR111","v":"MOE TotalPop65To74_CongnitiveDisability"},"TotalPop75andOlder_CongnitiveDisability",{"$f":"\"MOE \"&BT111","v":"MOE TotalPop75andOlder_CongnitiveDisability"},"TotalPop5To17_AmbulatoryDisability",{"$f":"\"MOE \"&BV111","v":"MOE TotalPop5To17_AmbulatoryDisability"},"TotalPop18To34_AmbulatoryDisability",{"$f":"\"MOE \"&BX111","v":"MOE TotalPop18To34_AmbulatoryDisability"},"TotalPop35To64_AmbulatoryDisability",{"$f":"\"MOE \"&BZ111","v":"MOE TotalPop35To64_AmbulatoryDisability"},"TotalPop65To74_AmbulatoryDisability",{"$f":"\"MOE \"&CB111","v":"MOE TotalPop65To74_AmbulatoryDisability"},"TotalPop75andOlder_AmbulatoryDisability",{"$f":"\"MOE \"&CD111","v":"MOE TotalPop75andOlder_AmbulatoryDisability"},"TotalPop5To17_SelfCareDisability",{"$f":"\"MOE \"&CF111","v":"MOE TotalPop5To17_SelfCareDisability"},"TotalPop18To34_SelfCareDisability",{"$f":"\"MOE \"&CH111","v":"MOE TotalPop18To34_SelfCareDisability"},"TotalPop35To64_SelfCareDisability",{"$f":"\"MOE \"&CJ111","v":"MOE TotalPop35To64_SelfCareDisability"},"TotalPop65To74_SelfCareDisability",{"$f":"\"MOE \"&CL111","v":"MOE TotalPop65To74_SelfCareDisability"},"TotalPop75andOlder_SelfCareDisability",{"$f":"\"MOE \"&CN111","v":"MOE TotalPop75andOlder_SelfCareDisability"},"TotalPop18To34_IndependantLivingDisability",{"$f":"\"MOE \"&CP111","v":"MOE TotalPop18To34_IndependantLivingDisability"},"TotalPop35To64_IndependantLivingDisability",{"$f":"\"MOE \"&CR111","v":"MOE TotalPop35To64_IndependantLivingDisability"},"TotalPop65To74_IndependantLivingDisability",{"$f":"\"MOE \"&CT111","v":"MOE TotalPop65To74_IndependantLivingDisability"},"TotalPop75andOlder_IndependantLivingDisability",{"$f":"\"MOE \"&CV111","v":"MOE TotalPop75andOlder_IndependantLivingDisability"},"TotalUnder5_HearingorVisionDisability",{"$f":"\"MOE \"&CX111","v":"MOE TotalUnder5_HearingorVisionDisability"},"TotalUnder5_HearingandVisionDisability",{"$f":"\"MOE \"&CZ111","v":"MOE TotalUnder5_HearingandVisionDisability"},"5to17YearWIthOneDisability",{"$f":"\"MOE \"&DB111","v":"MOE 5to17YearWIthOneDisability"},"5to17YearWIthTwoOrMoreDisability",{"$f":"\"MOE \"&DD111","v":"MOE 5to17YearWIthTwoOrMoreDisability"},"18to34YearWIthOneDisability",{"$f":"\"MOE \"&DF111","v":"MOE 18to34YearWIthOneDisability"},"18to34YearWIthTwoOrMoreDisability",{"$f":"\"MOE \"&DH111","v":"MOE 18to34YearWIthTwoOrMoreDisability"},"35to64YearWIthOneDisability",{"$f":"\"MOE \"&DJ111","v":"MOE 35to64YearWIthOneDisability"},"35to64YearWIthTwoOrMoreDisability",{"$f":"\"MOE \"&DL111","v":"MOE 35to64YearWIthTwoOrMoreDisability"},"65to74YearWIthOneDisability",{"$f":"\"MOE \"&DN111","v":"MOE 65to74YearWIthOneDisability"},"65to74YearWIthTwoOrMoreDisability",{"$f":"\"MOE \"&DP111","v":"MOE 65to74YearWIthTwoOrMoreDisability"},"75AndOlderWIthOneDisability",{"$f":"\"MOE \"&DR111","v":"MOE 75AndOlderWIthOneDisability"},"75AndOlderWIthTwoOrMoreDisability",{"$f":"\"MOE \"&DT111","v":"MOE 75AndOlderWIthTwoOrMoreDisability"}]
[{"$f":"VLOOKUP(DropDownList!$B$47,CntyQryCensus!$A$510:$DA$552,A$1)","v":"Allenstown"},4653,22,242,104.23531071570709,35,53.366656256505337,207,91.35097153287424,716,134.31678971744373,30,30.675723300355934,686,135.72398461583714,1191,206.63494380186523,147,82.861329943466387,1044,204.83163818121457,1929,204.38444167793205,342,134.46560898608982,1587,190.21303845951255,432,138.42326394071193,137,86.452298986203942,295,100.89598604503551,143,71.119617546778187,87,63.324560795950255,56,34.985711369071801,35,53.366656256505337,19,30.463092423455635,0,16.970562748477139,46,51.264022471905186,40,40.80441152620633,44,42.154477816715982,0,16.970562748477139,19,30.463092423455635,6,16.278820596099706,88,76.216796049164913,38,42.953463189829058,10,19.209372712298546,163,83.952367447261423,52,37.802116342871599,184,85.603738236130781,41,48.764741360946438,7,15.556349186104045,0,16.970562748477139,0,16.970562748477139,185,100.24470060806208,97,76.655071586947201,23,23.345235059857504,19,30.463092423455635,5,15.620499351813308,46,55.542776307995261,0,16.970562748477139,11,15.132745950421556,48,44.922154890432402,100,72.013887549555335,0,16.970562748477139,50,49.648766349225639,46,53,19,28,347,124,142,90,161,111,63,47]
[]
["Househould Income By Age"]
["NAME","TotalHouseholds",{"$f":"\"MOE \"&B115","v":"MOE TotalHouseholds"},"HHInc<10K",{"$f":"\"MOE \"&D115","v":"MOE HHInc<10K"},"HHInc10to15K",{"$f":"\"MOE \"&F115","v":"MOE HHInc10to15K"},"HHInc15to20K",{"$f":"\"MOE \"&H115","v":"MOE HHInc15to20K"},"HHInc20to25K",{"$f":"\"MOE \"&J115","v":"MOE HHInc20to25K"},"HHInc25to30K",{"$f":"\"MOE \"&L115","v":"MOE HHInc25to30K"},"HHInc30to35K",{"$f":"\"MOE \"&N115","v":"MOE HHInc30to35K"},"HHInc35to40K",{"$f":"\"MOE \"&P115","v":"MOE HHInc35to40K"},"HHInc40to45K",{"$f":"\"MOE \"&R115","v":"MOE HHInc40to45K"},"HHInc45to50K",{"$f":"\"MOE \"&T115","v":"MOE HHInc45to50K"},"HHInc50to60K",{"$f":"\"MOE \"&V115","v":"MOE HHInc50to60K"},"HHInc60to75K",{"$f":"\"MOE \"&X115","v":"MOE HHInc60to75K"},"HHInc75to100K",{"$f":"\"MOE \"&Z115","v":"MOE HHInc75to100K"},"HHInc100to125K",{"$f":"\"MOE \"&AB115","v":"MOE HHInc100to125K"},"HHInc125to150K",{"$f":"\"MOE \"&AD115","v":"MOE HHInc125to150K"},"HHInc150to200K",{"$f":"\"MOE \"&AF115","v":"MOE HHInc150to200K"},"HHInc>200K",{"$f":"\"MOE \"&AH115","v":"MOE HHInc>200K"},"TotalHH",{"$f":"\"MOE \"&AJ115","v":"MOE TotalHH"},"HHAgeHHUnder25yrs",{"$f":"\"MOE \"&AL115","v":"MOE HHAgeHHUnder25yrs"},"HHAgeHH<25HHInc<10K",{"$f":"\"MOE \"&AN115","v":"MOE HHAgeHH<25HHInc<10K"},"HHAgeHH<25HHInc10to15K",{"$f":"\"MOE \"&AP115","v":"MOE HHAgeHH<25HHInc10to15K"},"HHAgeHH<25HHInc15to20K",{"$f":"\"MOE \"&AR115","v":"MOE HHAgeHH<25HHInc15to20K"},"HHAgeHH<25HHInc20to25K",{"$f":"\"MOE \"&AT115","v":"MOE HHAgeHH<25HHInc20to25K"},"HHAgeHH<25HHInc25to30K",{"$f":"\"MOE \"&AV115","v":"MOE HHAgeHH<25HHInc25to30K"},"HHAgeHH<25HHInc30to35K",{"$f":"\"MOE \"&AX115","v":"MOE HHAgeHH<25HHInc30to35K"},"HHAgeHH<25HHInc35to40K",{"$f":"\"MOE \"&AZ115","v":"MOE HHAgeHH<25HHInc35to40K"},"HHAgeHH<25HHInc40to45K",{"$f":"\"MOE \"&BB115","v":"MOE HHAgeHH<25HHInc40to45K"},"HHAgeHH<25HHInc45to50K",{"$f":"\"MOE \"&BD115","v":"MOE HHAgeHH<25HHInc45to50K"},"HHAgeHH<25HHInc50to60K",{"$f":"\"MOE \"&BF115","v":"MOE HHAgeHH<25HHInc50to60K"},"HHAgeHH<25HHInc60to75K",{"$f":"\"MOE \"&BH115","v":"MOE HHAgeHH<25HHInc60to75K"},"HHAgeHH<25HHInc75to100K",{"$f":"\"MOE \"&BJ115","v":"MOE HHAgeHH<25HHInc75to100K"},"HHAgeHH<25HHInc100to125K",{"$f":"\"MOE \"&BL115","v":"MOE HHAgeHH<25HHInc100to125K"},"HHAgeHH<25HHInc125to150K",{"$f":"\"MOE \"&BN115","v":"MOE HHAgeHH<25HHInc125to150K"},"HHAgeHH<25HHInc150to200K",{"$f":"\"MOE \"&BP115","v":"MOE HHAgeHH<25HHInc150to200K"},"HHAge<25HHInc>200K",{"$f":"\"MOE \"&BR115","v":"MOE HHAge<25HHInc>200K"},"HHAgeHH25to44yrs",{"$f":"\"MOE \"&BT115","v":"MOE HHAgeHH25to44yrs"},"HHAgeHH25To44yrsHHInc<10K",{"$f":"\"MOE \"&BV115","v":"MOE HHAgeHH25To44yrsHHInc<10K"},"HHAgeHH25To44yrsHHInc10to15K",{"$f":"\"MOE \"&BX115","v":"MOE HHAgeHH25To44yrsHHInc10to15K"},"HHAgeHH25To44yrsHHInc15to20K",{"$f":"\"MOE \"&BZ115","v":"MOE HHAgeHH25To44yrsHHInc15to20K"},"HHAgeHH25To44yrsHHInc20to25K",{"$f":"\"MOE \"&CB115","v":"MOE HHAgeHH25To44yrsHHInc20to25K"},"HHAgeHH25To44yrsHHInc25to30K",{"$f":"\"MOE \"&CD115","v":"MOE HHAgeHH25To44yrsHHInc25to30K"},"HHAgeHH25To44yrsHHInc30to35K",{"$f":"\"MOE \"&CF115","v":"MOE HHAgeHH25To44yrsHHInc30to35K"},"HHAgeHH25To44yrsHHInc35to40K",{"$f":"\"MOE \"&CH115","v":"MOE HHAgeHH25To44yrsHHInc35to40K"},"HHAgeHH25To44yrsHHInc40to45K",{"$f":"\"MOE \"&CJ115","v":"MOE HHAgeHH25To44yrsHHInc40to45K"},"HHAgeHH25To44yrsHHInc45to50K",{"$f":"\"MOE \"&CL115","v":"MOE HHAgeHH25To44yrsHHInc45to50K"},"HHAgeHH25To44yrsHHInc50to60K",{"$f":"\"MOE \"&CN115","v":"MOE HHAgeHH25To44yrsHHInc50to60K"},"HHAgeHH25To44yrsHHInc60to75K",{"$f":"\"MOE \"&CP115","v":"MOE HHAgeHH25To44yrsHHInc60to75K"},"HHAgeHH25To44yrsHHInc75to100K",{"$f":"\"MOE \"&CR115","v":"MOE HHAgeHH25To44yrsHHInc75to100K"},"HHAgeHH25To44yrsHHInc100to125K",{"$f":"\"MOE \"&CT115","v":"MOE HHAgeHH25To44yrsHHInc100to125K"},"HHAgeHH25To44yrsHHInc125to150K",{"$f":"\"MOE \"&CV115","v":"MOE HHAgeHH25To44yrsHHInc125to150K"},"HHAgeHH25To44yrsHHInc150to200K",{"$f":"\"MOE \"&CX115","v":"MOE HHAgeHH25To44yrsHHInc150to200K"},"HHAge25To44yrsHHInc>200K",{"$f":"\"MOE \"&CZ115","v":"MOE HHAge25To44yrsHHInc>200K"},"HHAgeHH45To64yrs",{"$f":"\"MOE \"&DB115","v":"MOE HHAgeHH45To64yrs"},"HHAgeHH45To64yrsHHInc<10K",{"$f":"\"MOE \"&DD115","v":"MOE HHAgeHH45To64yrsHHInc<10K"},"HHAgeHH45To64yrsHHInc10to15K",{"$f":"\"MOE \"&DF115","v":"MOE HHAgeHH45To64yrsHHInc10to15K"},"HHAgeHH45To64yrsHHInc15to20K",{"$f":"\"MOE \"&DH115","v":"MOE HHAgeHH45To64yrsHHInc15to20K"},"HHAgeHH45To64yrsHHInc20to25K",{"$f":"\"MOE \"&DJ115","v":"MOE HHAgeHH45To64yrsHHInc20to25K"},"HHAgeHH45To64yrsHHInc25to30K",{"$f":"\"MOE \"&DL115","v":"MOE HHAgeHH45To64yrsHHInc25to30K"},"HHAgeHH45To64yrsHHInc30to35K",{"$f":"\"MOE \"&DN115","v":"MOE HHAgeHH45To64yrsHHInc30to35K"},"HHAgeHH45To64yrsHHInc35to40K",{"$f":"\"MOE \"&DP115","v":"MOE HHAgeHH45To64yrsHHInc35to40K"},"HHAgeHH45To64yrsHHInc40to45K",{"$f":"\"MOE \"&DR115","v":"MOE HHAgeHH45To64yrsHHInc40to45K"},"HHAgeHH45To64yrsHHInc45to50K",{"$f":"\"MOE \"&DT115","v":"MOE HHAgeHH45To64yrsHHInc45to50K"},"HHAgeHH45To64yrsHHInc50to60K",{"$f":"\"MOE \"&DV115","v":"MOE HHAgeHH45To64yrsHHInc50to60K"},"HHAgeHH45To64yrsHHInc60to75K",{"$f":"\"MOE \"&DX115","v":"MOE HHAgeHH45To64yrsHHInc60to75K"},"HHAgeHH45To64yrsHHInc75to100K",{"$f":"\"MOE \"&DZ115","v":"MOE HHAgeHH45To64yrsHHInc75to100K"},"HHAgeHH45To64yrsHHInc100to125K",{"$f":"\"MOE \"&EB115","v":"MOE HHAgeHH45To64yrsHHInc100to125K"},"HHAgeHH45To64yrsHHInc125to150K",{"$f":"\"MOE \"&ED115","v":"MOE HHAgeHH45To64yrsHHInc125to150K"},"HHAgeHH45To64yrsHHInc150to200K",{"$f":"\"MOE \"&EF115","v":"MOE HHAgeHH45To64yrsHHInc150to200K"},"HHAge45To64yrsHHInc>200K",{"$f":"\"MOE \"&EH115","v":"MOE HHAge45To64yrsHHInc>200K"},"HHAgeHH65yrsorOlder",{"$f":"\"MOE \"&EJ115","v":"MOE HHAgeHH65yrsorOlder"},"HHAgeHH65yrsorOlderHHInc<10K",{"$f":"\"MOE \"&EL115","v":"MOE HHAgeHH65yrsorOlderHHInc<10K"},"HHAgeHH65yrsorOlderHHInc10to15K",{"$f":"\"MOE \"&EN115","v":"MOE HHAgeHH65yrsorOlderHHInc10to15K"},"HHAgeHH65yrsorOlderHHInc15to20K",{"$f":"\"MOE \"&EP115","v":"MOE HHAgeHH65yrsorOlderHHInc15to20K"},"HHAgeHH65yrsorOlderHHInc20to25K",{"$f":"\"MOE \"&ER115","v":"MOE HHAgeHH65yrsorOlderHHInc20to25K"},"HHAgeHH65yrsorOlderHHInc25to30K",{"$f":"\"MOE \"&ET115","v":"MOE HHAgeHH65yrsorOlderHHInc25to30K"},"HHAgeHH65yrsorOlderHHInc30to35K",{"$f":"\"MOE \"&EV115","v":"MOE HHAgeHH65yrsorOlderHHInc30to35K"},"HHAgeHH65yrsorOlderHHInc35to40K",{"$f":"\"MOE \"&EX115","v":"MOE HHAgeHH65yrsorOlderHHInc35to40K"},"HHAgeHH65yrsorOlderHHInc40to45K",{"$f":"\"MOE \"&EZ115","v":"MOE HHAgeHH65yrsorOlderHHInc40to45K"},"HHAgeHH65yrsorOlderHHInc45to50K",{"$f":"\"MOE \"&FB115","v":"MOE HHAgeHH65yrsorOlderHHInc45to50K"},"HHAgeHH65yrsorOlderHHInc50to60K",{"$f":"\"MOE \"&FD115","v":"MOE HHAgeHH65yrsorOlderHHInc50to60K"},"HHAgeHH65yrsorOlderHHInc60to75K",{"$f":"\"MOE \"&FF115","v":"MOE HHAgeHH65yrsorOlderHHInc60to75K"},"HHAgeHH65yrsorOlderHHInc75to100K",{"$f":"\"MOE \"&FH115","v":"MOE HHAgeHH65yrsorOlderHHInc75to100K"},"HHAgeHH65yrsorOlderHHInc100to125K",{"$f":"\"MOE \"&FJ115","v":"MOE HHAgeHH65yrsorOlderHHInc100to125K"},"HHAgeHH65yrsorOlderHHInc125to150K",{"$f":"\"MOE \"&FL115","v":"MOE HHAgeHH65yrsorOlderHHInc125to150K"},"HHAgeHH65yrsorOlderHHInc150to200K",{"$f":"\"MOE \"&FN115","v":"MOE HHAgeHH65yrsorOlderHHInc150to200K"},"HHAge65yrsorOlderHHInc>200K",{"$f":"\"MOE \"&FP115","v":"MOE HHAge65yrsorOlderHHInc>200K"},"MedianHHInc",{"$f":"\"MOE \"&FR115","v":"MOE MedianHHInc"},"HH under 25 years",{"$f":"\"MOE \"&FT115","v":"MOE HH under 25 years"},"Householder 25 to 44 years",{"$f":"\"MOE \"&FV115","v":"MOE Householder 25 to 44 years"},"Householder 45 to 64 years",{"$f":"\"MOE \"&FX115","v":"MOE Householder 45 to 64 years"},"Householder 65 years and over",{"$f":"\"MOE \"&FZ115","v":"MOE Householder 65 years and over"}]
[{"$f":"VLOOKUP(DropDownList!$B$47,CntyQryCensus!$A$510:$DA$552,A$1)","v":"Allenstown"},1812,193,42,48,126,107,72,46,89,87,28,28,120,92,58,64,121,82,22,24,134,69,97,61,277,109,163,68,173,96,251,88,39,33,1812,193,135,113,0,12,57,90,0,12,0,12,0,12,0,12,0,12,12,19,0,12,17,28,0,12,49,61,0,12,0,12,0,12,0,12,517,111,31,45,30,48,0,12,0,12,8,15,0,12,41,60,53,57,22,24,21,23,44,37,65,41,91,55,58,47,36,30,17,20,808,152,11,17,0,12,24,27,34,51,11,17,75,76,11,18,56,60,0,12,44,42,42,38,116,74,42,32,115,86,205,86,22,26,352,146,0,12,39,41,48,34,55,67,9,14,45,48,6,11,0,12,0,12,52,44,11,17,47,34,30,28,0,12,10,18,0,12,74659,20163,"-","**",80231,32604,97917,39392,33611,19672]
[]
["Number of Households by Income"]
["NAME","HHIncLessThn10k",{"$f":"\"MOE \"&B119","v":"MOE HHIncLessThn10k"},"HHInc10to15K",{"$f":"\"MOE \"&D119","v":"MOE HHInc10to15K"},"HHInc15to25K",{"$f":"\"MOE \"&F119","v":"MOE HHInc15to25K"},"HHInc25to35K",{"$f":"\"MOE \"&H119","v":"MOE HHInc25to35K"},"HHInc35to50K",{"$f":"\"MOE \"&J119","v":"MOE HHInc35to50K"},"HHInc50to75K",{"$f":"\"MOE \"&L119","v":"MOE HHInc50to75K"},"HHInc75to100K",{"$f":"\"MOE \"&N119","v":"MOE HHInc75to100K"},"HHInc100to150K",{"$f":"\"MOE \"&P119","v":"MOE HHInc100to150K"},"HHInc150to200K",{"$f":"\"MOE \"&R119","v":"MOE HHInc150to200K"},"HHIncOver200K",{"$f":"\"MOE \"&T119","v":"MOE HHIncOver200K"}]
[{"$f":"VLOOKUP(DropDownList!$B$47,CntyQryCensus!$A$510:$DA$552,A$1)","v":"Allenstown"},42,48,126,107,161,98.412397592986224,148,96.166522241370458,201,106.75204916066015,231,92.097774131626011,277,109,336,117.64352935882194,251,88,39,33,181,74,234,105,177,68,91,60,57,63,20,32]
[]
[]
["NAME","TotalPop",{"$f":"\"MOE \"&B123","v":"MOE TotalPop"},"Total Individuals living in Poverty",{"$f":"\"MOE \"&D123","v":"MOE Total Individuals living in Poverty"},"Under 5 yrs.",{"$f":"\"MOE \"&F123","v":"MOE Under 5 yrs."},"5 to 17 yrs.",{"$f":"\"MOE \"&H123","v":"MOE 5 to 17 yrs."},"18 to 64 yrs.",{"$f":"\"MOE \"&J123","v":"MOE 18 to 64 yrs."},"65 to 74 yrs.",{"$f":"\"MOE \"&L123","v":"MOE 65 to 74 yrs."},"75 yrs. & Over",{"$f":"\"MOE \"&N123","v":"MOE 75 yrs. & Over"},"Total Individuals  Not living Poverty",{"$f":"\"MOE \"&P123","v":"MOE Total Individuals  Not living Poverty"},"Under 5 yrs.",{"$f":"\"MOE \"&R123","v":"MOE Under 5 yrs."},"5 to 17 yrs.",{"$f":"\"MOE \"&T123","v":"MOE 5 to 17 yrs."},"18 to 64 yrs.",{"$f":"\"MOE \"&V123","v":"MOE 18 to 64 yrs."},"65 to 74 yrs.",{"$f":"\"MOE \"&X123","v":"MOE 65 to 74 yrs."},"75 yrs. & Over",{"$f":"\"MOE \"&Z123","v":"MOE 75 yrs. & Over"},"Total HH",{"$f":"\"MOE \"&AB123","v":"MOE Total HH"},"Total Households Below Poverty",{"$f":"\"MOE \"&AD123","v":"MOE Total Households Below Poverty"},"Family Households in Poverty",{"$f":"\"MOE \"&AF123","v":"MOE Family Households in Poverty"},"Married Couple Fam HH",{"$f":"\"MOE \"&AH123","v":"MOE Married Couple Fam HH"},"Other Family",{"$f":"\"MOE \"&AJ123","v":"MOE Other Family"},"Male Head of Family HH no wife",{"$f":"\"MOE \"&AL123","v":"MOE Male Head of Family HH no wife"},"Female Head of Family HH no husband",{"$f":"\"MOE \"&AN123","v":"MOE Female Head of Family HH no husband"},"Non-Family HH",{"$f":"\"MOE \"&AP123","v":"MOE Non-Family HH"},"Non-Family Male HH",{"$f":"\"MOE \"&AR123","v":"MOE Non-Family Male HH"},"Non-Family Female HH",{"$f":"\"MOE \"&AT123","v":"MOE Non-Family Female HH"},"Total Households at or Above Poverty",{"$f":"\"MOE \"&AV123","v":"MOE Total Households at or Above Poverty"},"Family Households above Poverty",{"$f":"\"MOE \"&AX123","v":"MOE Family Households above Poverty"},"Married Couple Fam HH",{"$f":"\"MOE \"&AZ123","v":"MOE Married Couple Fam HH"},"Other Family",{"$f":"\"MOE \"&BB123","v":"MOE Other Family"},"Male Head of Family HH no wife",{"$f":"\"MOE \"&BD123","v":"MOE Male Head of Family HH no wife"},"Female Head of Family HH no husband",{"$f":"\"MOE \"&BF123","v":"MOE Female Head of Family HH no husband"},"Non-Family HH",{"$f":"\"MOE \"&BH123","v":"MOE Non-Family HH"},"Non-Family Male HH",{"$f":"\"MOE \"&BJ123","v":"MOE Non-Family Male HH"},"Non-Family Female HH",{"$f":"\"MOE \"&BL123","v":"MOE Non-Family Female HH"},"Married Couple with Children Below Poverty",{"$f":"\"MOE \"&BN123","v":"MOE Married Couple with Children Below Poverty"},"Male HH with children below poverty",{"$f":"\"MOE \"&BP123","v":"MOE Male HH with children below poverty"},"Female HH with children below poverty",{"$f":"\"MOE \"&BR123","v":"MOE Female HH with children below poverty"},"Married Couple with Children At or Above Poverty",{"$f":"\"MOE \"&BT123","v":"MOE Married Couple with Children At or Above Poverty"},"Male HH with children at or above poverty",{"$f":"\"MOE \"&BV123","v":"MOE Male HH with children at or above poverty"},"Female HH with children at or above poverty",{"$f":"\"MOE \"&BX123","v":"MOE Female HH with children at or above poverty"}]
[{"$f":"VLOOKUP(DropDownList!$B$47,CntyQryCensus!$A$510:$DA$552,A$1)","v":"Allenstown"},4624,50,515,299,21,36.715119501371639,88,63.2771680782255,330,160.44936896105264,55,54.571054598569013,21,21.377558326431949,4109,301,191,94.752308678997366,627,153.46335067370319,2792,353.78807215619918,377,133.71985641631537,122,68.47627326307996,167,119,80,72,42,48,13,17,38,49,0,12,38,49,87,91,11,17,76,91,1645,182,997,127,733,124,264,117,47,36,217,115,648,184,303,124,345,123,0,12,0,12,38,49,352,112,35,30,79,71]
[]
["Household Income By Tenure"]
["NAME","TotalOccHU",{"$f":"\"MOE \"&B127","v":"MOE TotalOccHU"},"OwnOccHU",{"$f":"\"MOE \"&D127","v":"MOE OwnOccHU"},"OOHUInc<5K",{"$f":"\"MOE \"&F127","v":"MOE OOHUInc<5K"},"OOHUInc5to10K",{"$f":"\"MOE \"&H127","v":"MOE OOHUInc5to10K"},"OOHUInc10to15K",{"$f":"\"MOE \"&J127","v":"MOE OOHUInc10to15K"},"OOHUInc15to20K",{"$f":"\"MOE \"&L127","v":"MOE OOHUInc15to20K"},"OOHUInc20to25K",{"$f":"\"MOE \"&N127","v":"MOE OOHUInc20to25K"},"OOHUInc25to35K",{"$f":"\"MOE \"&P127","v":"MOE OOHUInc25to35K"},"OOHUInc35to50K",{"$f":"\"MOE \"&R127","v":"MOE OOHUInc35to50K"},"OOHUInc50to75K",{"$f":"\"MOE \"&T127","v":"MOE OOHUInc50to75K"},"OOHUInc75to100K",{"$f":"\"MOE \"&V127","v":"MOE OOHUInc75to100K"},"OOHUInc100to150K",{"$f":"\"MOE \"&X127","v":"MOE OOHUInc100to150K"},"OOHUInc>150K",{"$f":"\"MOE \"&Z127","v":"MOE OOHUInc>150K"},"RentOccHU",{"$f":"\"MOE \"&AB127","v":"MOE RentOccHU"},"ROHUInc<5K",{"$f":"\"MOE \"&AD127","v":"MOE ROHUInc<5K"},"ROHUInc5to10K",{"$f":"\"MOE \"&AF127","v":"MOE ROHUInc5to10K"},"ROHUInc10to15K",{"$f":"\"MOE \"&AH127","v":"MOE ROHUInc10to15K"},"ROHUInc15to20K",{"$f":"\"MOE \"&AJ127","v":"MOE ROHUInc15to20K"},"ROHUInc20to25K",{"$f":"\"MOE \"&AL127","v":"MOE ROHUInc20to25K"},"ROHUInc25to35K",{"$f":"\"MOE \"&AN127","v":"MOE ROHUInc25to35K"},"ROHUInc35to50K",{"$f":"\"MOE \"&AP127","v":"MOE ROHUInc35to50K"},"ROHUInc50to75K",{"$f":"\"MOE \"&AR127","v":"MOE ROHUInc50to75K"},"ROHUInc75to100K",{"$f":"\"MOE \"&AT127","v":"MOE ROHUInc75to100K"},"ROHUInc100to150K",{"$f":"\"MOE \"&AV127","v":"MOE ROHUInc100to150K"},"ROHUInc>150K",{"$f":"\"MOE \"&AX127","v":"MOE ROHUInc>150K"},"Total OCC HUInc<5K",{"$f":"\"MOE \"&AZ127","v":"MOE Total OCC HUInc<5K"},"Total OCC HUInc5to10K",{"$f":"\"MOE \"&BB127","v":"MOE Total OCC HUInc5to10K"},"Total OCC HUInc10to15K",{"$f":"\"MOE \"&BD127","v":"MOE Total OCC HUInc10to15K"},"Total OCC HUInc15to20K",{"$f":"\"MOE \"&BF127","v":"MOE Total OCC HUInc15to20K"},"Total OCC HUInc20to25K",{"$f":"\"MOE \"&BH127","v":"MOE Total OCC HUInc20to25K"},"Total OCC HUInc25to35K",{"$f":"\"MOE \"&BJ127","v":"MOE Total OCC HUInc25to35K"},"Total OCC HUInc35to50K",{"$f":"\"MOE \"&BL127","v":"MOE Total OCC HUInc35to50K"},"Total OCC HUInc50to75K",{"$f":"\"MOE \"&BN127","v":"MOE Total OCC HUInc50to75K"},"Total OCC HUInc75to100K",{"$f":"\"MOE \"&BP127","v":"MOE Total OCC HUInc75to100K"},"Total OCC HUInc100to150K",{"$f":"\"MOE \"&BR127","v":"MOE Total OCC HUInc100to150K"},"Total OCC HUInc>150K",{"$f":"\"MOE \"&BT127","v":"MOE Total OCC HUInc>150K"},"MedHHInc",{"$f":"\"MOE \"&BV127","v":"MOE MedHHInc"},"MedOwnOccHHInc",{"$f":"\"MOE \"&BX127","v":"MOE MedOwnOccHHInc"},"MedRentOccHHInc",{"$f":"\"MOE \"&BZ127","v":"MOE MedRentOccHHInc"}]
[{"$f":"VLOOKUP(DropDownList!$B$47,CntyQryCensus!$A$510:$DA$552,A$1)","v":"Allenstown"},1812,193,1439,167,0,12,42,48,0,12,72,46,34,51,139,98,144,92,180,86,243,102,319,106,266,95,373,153,0,12,0,12,126,107,0,12,55,67,9,14,57,62,51,43,34,31,17,21,24,33,0,16.970562748477139,42,49.477267507411923,126,107.67079455451233,72,47.539457296018853,89,84.202137740083529,148,98.994949366116657,201,110.94142598686931,231,96.150923032490951,277,106.60675400742676,336,108.06016842481785,290,100.56838469419701,86591,16611,95333,16900,41042,17580,344,101.25709851659784,245,87.31551981177229,268,86.092973000123536,70,43.416586692184822,null,null,null,null,null,null,null,null,null,null,null,null,null,null,null,null,null,null,null,null,null,null,null,null,null,null,null,24,48,37,91,62,108,63,241,106,202,94,200,84,98,69,621,150,43,73,17,27,35,32,55,66,176,102,64,50,34,29,75,55,52,60,70,50,0,85,null,null,null,null,null,null,null,null,null,null,null,null,null,null,null,null,"Allenstown",null,"Estimate","Margin Of Error",1693,132,60,77.833154889160184,32,36.124783736376884,71,44.553338819890925,71,70.228199464317754,224,108.50345616615168,155,79.649231006959511,142,69.354163537598808,316,119.41942890501528,254,111.51681487560519,270,97.754795278799492,98,109.48059188732951]
[]
["Population Data"]
["NAME","Total Population","MOE Total Population","Under 15 Years","MOE Under 15 yrs.","15 to 24 yrs.","MOE 15 to 24 yrs.","25 to 34 yrs.","MOE 25 to 34 yrs.","35 to 44 yrs.","MOE 35 to 44 yrs.","45 to 54 yrs.","MOE 45 to 54 yrs.","55 to 64 yrs.","MOE 55 to 64 yrs.","65 to 74 yrs.","MOE 65 to 74 yrs.","Over 74 yrs. ","MOE Over 74 yrs. ","TotalHH","MOE TotalHH","FamilyHH","MOE FamilyHH","MarriedFamilyHH","MOE MarriedFamilyHH","SingleFamilyHH","MOE SingleFamilyHH","Sfamily-MaleHH","MOE Sfamily-MaleHH","Sfamily-FemaleHH","MOE Sfamily-FemaleHH","NonFamilyHH","MOE NonFamilyHH","NonFamilyHH-LivingAlone","MOE NonFamilyHH-LivingAlone","NonFamilyHH-NotLivingAlone","MOE NonFamilyHH-NotLivingAlone","PopRaceWhite","MOE PopRaceWhite","PopRaceBlack","MOE PopRaceBlack","PopRaceAmerican Indian","MOE PopRaceAmerican Indian","PopRaceAsian &Pacific Is.","MOE PopRaceAsian &Pacific Is.","PopRaceOther*","MOE PopRaceOther*","PopRaceHispanic or Latino:","MOE PopRaceHispanic or Latino:","MedianAgeTotalPop","MOE MedianAgeTotalPop","MedianAgeMale","MOE MedianAgeMale","MedianAgeFemale","MOE MedianAgeFemale","AvgHHSizeTotal","MOE AvgHHSizeTotal","AvgHHSizeFamilyHH","MOE AvgHHSizeFamilyHH","AvgHHSizeNonFamilyHH","MOE AvgHHSizeNonFamilyHH"]
[{"$f":"VLOOKUP(DropDownList!$B$47,CntyQryCensus!$A$510:$DA$552,A$1)","v":"Allenstown"},4697,20,775,167.90175698902021,868,256.02538936597676,550,153.67823528398549,615,156.67163112701672,599,169.33398950004101,715,170.63997187060247,432,148.29362764461592,143,72.027772421476428,1812,193,1077,128,775,132,302,127,47,36,255,128,735,209,571,189,164,74,4093,142,15,18,0,11,14,24.596747752497688,50,47.296934361541872,192,131,37.200000000000003,4.0999999999999996,36.200000000000003,4.9000000000000004,38.700000000000003,5.0999999999999996,2.5662251655629138,0.27,3.4818941504178271,0.47447687297371782,1.2244897959183674,0.48580233342381313]
[]
["Nativity and Prior Place of Residence"]
["NAME","TotalPop",{"$f":"\"MOE \"&B135","v":"MOE TotalPop"},"Native:",{"$f":"\"MOE \"&D135","v":"MOE Native:"},"NatBornInStateOfResidence",{"$f":"\"MOE \"&F135","v":"MOE NatBornInStateOfResidence"},"Born in other state in the United States:",{"$f":"\"MOE \"&H135","v":"MOE Born in other state in the United States:"},"Northeast",{"$f":"\"MOE \"&J135","v":"MOE Northeast"},"Midwest",{"$f":"\"MOE \"&L135","v":"MOE Midwest"},"South",{"$f":"\"MOE \"&N135","v":"MOE South"},"West",{"$f":"\"MOE \"&P135","v":"MOE West"},"Born outside the United States:",{"$f":"\"MOE \"&R135","v":"MOE Born outside the United States:"},"Puerto Rico",{"$f":"\"MOE \"&T135","v":"MOE Puerto Rico"},"U.S. Island Areas",{"$f":"\"MOE \"&V135","v":"MOE U.S. Island Areas"},"Born abroad of American parent(s)",{"$f":"\"MOE \"&X135","v":"MOE Born abroad of American parent(s)"},"Foreign born:",{"$f":"\"MOE \"&Z135","v":"MOE Foreign born:"},"Naturalized U.S. citizen",{"$f":"\"MOE \"&AB135","v":"MOE Naturalized U.S. citizen"},"Not a U.S. citizen",{"$f":"\"MOE \"&AD135","v":"MOE Not a U.S. citizen"},"CurrentResidenceTotal:",{"$f":"\"MOE \"&AF135","v":"MOE CurrentResidenceTotal:"},"SameHouse:",{"$f":"\"MOE \"&AH135","v":"MOE SameHouse:"},"DifferentHouse:",{"$f":"\"MOE \"&AJ135","v":"MOE DifferentHouse:"},"DiffHouseInNH",{"$f":"\"MOE \"&AL135","v":"MOE DiffHouseInNH"},"DiffHouseInNHSameCnty",{"$f":"\"MOE \"&AN135","v":"MOE DiffHouseInNHSameCnty"},"DiffHouseInNHDiffCnty",{"$f":"\"MOE \"&AP135","v":"MOE DiffHouseInNHDiffCnty"},"DiffHouseInDiffState",{"$f":"\"MOE \"&AR135","v":"MOE DiffHouseInDiffState"},"DiffHouseInElsewhere",{"$f":"\"MOE \"&AT135","v":"MOE DiffHouseInElsewhere"}]
[{"$f":"VLOOKUP(DropDownList!$B$47,CntyQryCensus!$A$510:$DA$552,A$1)","v":"Allenstown"},4697,20,4509,111,2550,368,1891,382,1485,283,66,70,248,186,92,95,68,74,57,72,0,12,11,17,188,111,103,78,85,87,4654,45,4048,269,606,242.70352284217054,486,229.2705825002414,108,74,378,217,111,78,9,16]
[]
["School Enrollment - Education"]
["NAME","Total Pop 3 Years and Older","MOE Total Pop 3 Years and Older","SchEnrlPop3yrOver",{"$f":"\"MOE \"&D139","v":"MOE SchEnrlPop3yrOver"},"TotalEnrollNursy&Kinder",{"$f":"\"MOE \"&F139","v":"MOE TotalEnrollNursy&Kinder"},"NurserSchEnrl",{"$f":"\"MOE \"&H139","v":"MOE NurserSchEnrl"},"KinderSchEnrl",{"$f":"\"MOE \"&J139","v":"MOE KinderSchEnrl"},"ElemSchEnrl (1-8)",{"$f":"\"MOE \"&L139","v":"MOE ElemSchEnrl (1-8)"},"HighSchEnrl(9-12)",{"$f":"\"MOE \"&N139","v":"MOE HighSchEnrl(9-12)"},"TotalElementry&HSEnroll",{"$f":"\"MOE \"&P139","v":"MOE TotalElementry&HSEnroll"},"CollGradSchEnrl",{"$f":"\"MOE \"&R139","v":"MOE CollGradSchEnrl"},"PopNotEnrolled","MOE PopNotEnrolled","Pop25yrsOver",{"$f":"\"MOE \"&V139","v":"MOE Pop25yrsOver"},"EduAtain<9grd",{"$f":"\"MOE \"&X139","v":"MOE EduAtain<9grd"},"EduAtainHSnoDip",{"$f":"\"MOE \"&Z139","v":"MOE EduAtainHSnoDip"},"EduAtainHSgrad",{"$f":"\"MOE \"&AB139","v":"MOE EduAtainHSgrad"},"EduAtainCollNoDeg",{"$f":"\"MOE \"&AD139","v":"MOE EduAtainCollNoDeg"},"EduAtainAssocDeg",{"$f":"\"MOE \"&AF139","v":"MOE EduAtainAssocDeg"},"EduAtainBachDeg",{"$f":"\"MOE \"&AH139","v":"MOE EduAtainBachDeg"},"EduAtainGradProfDeg",{"$f":"\"MOE \"&AJ139","v":"MOE EduAtainGradProfDeg"}]
[{"$f":"VLOOKUP(DropDownList!$B$47,CntyQryCensus!$A$510:$DA$552,A$1)","v":"Allenstown"},4535,81,1052,223,158,76.05918747922567,35,32,123,69,372,96.938124595021947,400,159,772,186.22029964533942,122,73.430239002743278,3483,199,3054,293,42,56.745043836444431,317,139.97856978837868,1032,235.51857676200407,523,145.99657530229948,554,178.66449003649271,408,125.2078272313676,178,75.418830539859215]
[]
["Occupied Owner Housing Value"]
["NAME","Estimate; Total:","Margin of Error; Total:","Estimate; Total: - Less than $10,000","Margin of Error; Total: - Less than $10,000","Estimate; Total: - $10,000 to $14,999","Margin of Error; Total: - $10,000 to $14,999","Estimate; Total: - $15,000 to $19,999","Margin of Error; Total: - $15,000 to $19,999","Estimate; Total: - $20,000 to $24,999","Margin of Error; Total: - $20,000 to $24,999","Estimate; Total: - $25,000 to $29,999","Margin of Error; Total: - $25,000 to $29,999","Estimate; Total: - $30,000 to $34,999","Margin of Error; Total: - $30,000 to $34,999","Estimate; Total: - $35,000 to $39,999","Margin of Error; Total: - $35,000 to $39,999","Estimate; Total: - $40,000 to $49,999","Margin of Error; Total: - $40,000 to $49,999","Estimate; Total: - $50,000 to $59,999","Margin of Error; Total: - $50,000 to $59,999","Estimate; Total: - $60,000 to $69,999","Margin of Error; Total: - $60,000 to $69,999","Estimate; Total: - $70,000 to $79,999","Margin of Error; Total: - $70,000 to $79,999","Estimate; Total: - $80,000 to $89,999","Margin of Error; Total: - $80,000 to $89,999","Estimate; Total: - $90,000 to $99,999","Margin of Error; Total: - $90,000 to $99,999","Estimate; Total: - $100,000 to $124,999","Margin of Error; Total: - $100,000 to $124,999","Estimate; Total: - $125,000 to $149,999","Margin of Error; Total: - $125,000 to $149,999","Estimate; Total: - $150,000 to $174,999","Margin of Error; Total: - $150,000 to $174,999","Estimate; Total: - $175,000 to $199,999","Margin of Error; Total: - $175,000 to $199,999","Estimate; Total: - $200,000 to $249,999","Margin of Error; Total: - $200,000 to $249,999","Estimate; Total: - $250,000 to $299,999","Margin of Error; Total: - $250,000 to $299,999","Estimate; Total: - $300,000 to $399,999","Margin of Error; Total: - $300,000 to $399,999","Estimate; Total: - $400,000 to $499,999","Margin of Error; Total: - $400,000 to $499,999","Estimate; Total: - $500,000 to $749,999","Margin of Error; Total: - $500,000 to $749,999","Estimate; Total: - $750,000 to $999,999","Margin of Error; Total: - $750,000 to $999,999","Estimate; Total: - $1,000,000 to $1,499,999","Margin of Error; Total: - $1,000,000 to $1,499,999","Estimate; Total: - $1,500,000 to $1,999,999","Margin of Error; Total: - $1,500,000 to $1,999,999","Estimate; Total: - $2,000,000 or more","Margin of Error; Total: - $2,000,000 or more","MedianOwnOCCHomeValue","MOE MedianOwnOCCHomeValue","OnwerOccHsU","MOE OnwerOccHsU","OwnerCosts>20PctHHInc","MOE OwnerCosts>20PctHHInc","OwnerCosts20to29.9PctHHInc","MOE OwnerCosts20to29.9PctHHInc","OwnerCosts<30PctHHInc","MOE OwnerCosts<30PctHHInc","OwnerCosts>30PctHHInc","MOE OwnerCosts>30PctHHInc","OwnerCosts30to34.9PctHHInc","MOE OwnerCosts30to34.9PctHHInc","OwnerCosts<35PctHHInc","MOE OwnerCosts<35PctHHInc","OwnerCosts>35PctHHInc","MOE OwnerCosts>35PctHHInc","OwnerCosts>50PctHHInc","MOE OwnerCosts>50PctHHInc","OwnerCostsPctNotcomputed","MOE OwnerCostsPctNotcomputed","OwnerOHUHhInc<20k","MOE OwnerOHUHhInc<20k","OwnerOHUHhInc<20kHCosts<20pct","MOE OwnerOHUHhInc<20kHCosts<20pct","OwnerOHUHhInc<20kHCosts20to29pct","MOE OwnerOHUHhInc<20kHCosts20to29pct","OwnerOHUHhInc>20kHCosts30pct","MOE OwnerOHUHhInc>20kHCosts30pct","OwnerOHUHhInc20kTo34999","MOE OwnerOHUHhInc20kTo34999","OwnerOHUHhInc20kTo34999HCosts<20pct","MOE OwnerOHUHhInc20kTo34999HCosts<20pct","OwnerOHUHhInc20kTo34999HCosts20to29pct","MOE OwnerOHUHhInc20kTo34999HCosts20to29pct","OwnerOHUHhInc20kTo34999HCosts30pct","MOE OwnerOHUHhInc20kTo34999HCosts30pct","OwnerOHUHhInc35kTo49999","MOE OwnerOHUHhInc35kTo49999","OwnerOHUHhInc35kTo49999HCosts<20pct","MOE OwnerOHUHhInc35kTo49999HCosts<20pct","OwnerOHUHhInc35kTo49999HCosts20to29pct","MOE OwnerOHUHhInc35kTo49999HCosts20to29pct","OwnerOHUHhInc35kTo49999HCosts30pct","MOE OwnerOHUHhInc35kTo49999HCosts30pct","OwnerOHUHhInc50kTo74999","MOE OwnerOHUHhInc50kTo74999","OwnerOHUHhInc50kTo74999HCosts<20pct","MOE OwnerOHUHhInc50kTo74999HCosts<20pct","OwnerOHUHhInc50kTo74999HCosts20to29pct","MOE OwnerOHUHhInc50kTo74999HCosts20to29pct","OwnerOHUHhInc50kTo74999HCosts30pct","MOE OwnerOHUHhInc50kTo74999HCosts30pct","OwnerOHUHhInc>75000","MOE OwnerOHUHhInc>75000","OwnerOHUHhInc>75000HCosts<20pct","MOE OwnerOHUHhInc>75000HCosts<20pct","OwnerOHUHhInc>75000HCosts20to29pct","MOE OwnerOHUHhInc>75000HCosts20to29pct","OwnerOHUHhInc>75000HCosts30pct","MOE OwnerOHUHhInc>75000HCosts30pct","ZeroOrNegativeIncome","MOE ZeroOrNegativeIncome"]
[{"$f":"VLOOKUP(DropDownList!$B$47,CntyQryCensus!$A$510:$DA$552,A$1)","v":"Allenstown"},1439,167,39,38,39,35,69,56,34,44,35,33,16,19,0,12,44,26,65,52,0,12,172,110,11,17,99,93,52,52,8,12,33,35,46,34,113,56,209,97,212,91,123,85,9,15,11,17,0,12,0,12,0,12,176900,82429,1439,167,671,164.89996967859031,323,129.81910491141124,994,209.86900676374299,445,143.71151658791996,176,96.74709297958259,1170,231.09521847065551,269,106.26852779633299,130,70.455659815234142,0,16.970562748477139,114,68,11,17,0,12,103,66,173,109,33,54,34,51,106,80,144,92,45,58,34,33,65,61,180,86,59,56,45,34,76,62,828,144,523,121,210,110,95,69,0,12]
[]
["Occupied Rental Housing Value"]
["NAME","RntrOccHU","MOE RntrOccHU","RntrOccHUwRent","MOE RntrOccHUwRent","ROHUGRent<100","MOE ROHUGRent<100","ROHUGRent100to149","MOE ROHUGRent100to149","ROHUGRent150to199","MOE ROHUGRent150to199","ROHUGRent200to249","MOE ROHUGRent200to249","ROHUGRent250to299","MOE ROHUGRent250to299","ROHUGRent300to349","MOE ROHUGRent300to349","ROHUGRent350to399","MOE ROHUGRent350to399","ROHUGRent400to449","MOE ROHUGRent400to449","ROHUGRent450to499","MOE ROHUGRent450to499","ROHUGRent500to549","MOE ROHUGRent500to549","ROHUGRent550to599","MOE ROHUGRent550to599","ROHUGRent600to649","MOE ROHUGRent600to649","ROHUGRent650to699","MOE ROHUGRent650to699","ROHUGRent700to749","MOE ROHUGRent700to749","ROHUGRent750to799","MOE ROHUGRent750to799","ROHUGRent800to899","MOE ROHUGRent800to899","ROHUGRent900to999","MOE ROHUGRent900to999","ROHUGRent1000to1249","MOE ROHUGRent1000to1249","ROHUGRent1250to1499","MOE ROHUGRent1250to1499","ROHUGRent1500to1999","MOE ROHUGRent1500to1999","ROHUGRent$2,000 to $2,499","MOE ROHUGRent$2,000 to $2,499","ROHUGRent$2,500 to $2,999","MOE ROHUGRent$2,500 to $2,999","ROHUGRent$3,000 to $3,499","MOE ROHUGRent$3,000 to $3,499","ROHUGRent$3,500 or more","MOE ROHUGRent$3,500 or more","ROHUNoGRent","MOE ROHUNoGRent","MedianGrossRnt","MOE MedianGrossRnt","H73RenterOccHU","MOE H73RenterOccHU","H73ROHUHhInc<10k","MOE H73ROHUHhInc<10k","H73ROHUHhInc<10kRnt<20pct","MOE H73ROHUHhInc<10kRnt<20pct","H73ROHUHhInc<10kRnt20to25pct","MOE H73ROHUHhInc<10kRnt20to25pct","H73ROHUHhInc<10kRnt25to30pct","MOE H73ROHUHhInc<10kRnt25to30pct","H73ROHUHhInc<10kRnt30to35pct","MOE H73ROHUHhInc<10kRnt30to35pct","H73ROHUHhInc<10kRnt35to39.9","MOE H73ROHUHhInc<10kRnt35to39.9","H73ROHUHhInc<10kRnt40to49.9","MOE H73ROHUHhInc<10kRnt40to49.9","H73ROHUHhInc<10kRnt>50pct","MOE H73ROHUHhInc<10kRnt>50pct","H73ROHUHhInc<10kPctNotComput","MOE H73ROHUHhInc<10kPctNotComput","H73ROHUHhInc10to20k","MOE H73ROHUHhInc10to20k","H73ROHUHhInc10to20kRnt<20pct","MOE H73ROHUHhInc10to20kRnt<20pct","H73ROHUHhInc10to20kRnt20to25pct","MOE H73ROHUHhInc10to20kRnt20to25pct","H73ROHUHhInc10to20kRnt25to30pct","MOE H73ROHUHhInc10to20kRnt25to30pct","H73ROHUHhInc10to20kRnt30to35pct","MOE H73ROHUHhInc10to20kRnt30to35pct","H73ROHUHhInc10to20kRnt35to39.9","MOE H73ROHUHhInc10to20kRnt35to39.9","H73ROHUHhInc10to20kRnt40to49.9","MOE H73ROHUHhInc10to20kRnt40to49.9","H73ROHUHhInc10to20kRnt>50pct","MOE H73ROHUHhInc10to20kRnt>50pct","H73ROHUHhInc10to20kRntPctNC","MOE H73ROHUHhInc10to20kRntPctNC","H73ROHUHhInc20to34.9k","MOE H73ROHUHhInc20to34.9k","H73ROHUHhInc20to34.9kRnt<20pct","MOE H73ROHUHhInc20to34.9kRnt<20pct","H73ROHUHhInc20to34.9kRnt20to25pct","MOE H73ROHUHhInc20to34.9kRnt20to25pct","H73ROHUHhInc20to34.9kRnt25to30pct","MOE H73ROHUHhInc20to34.9kRnt25to30pct","H73ROHUHhInc20to34.9kRnt30to35pct","MOE H73ROHUHhInc20to34.9kRnt30to35pct","H73ROHUHhInc20to34.9kRnt35to39.9","MOE H73ROHUHhInc20to34.9kRnt35to39.9","H73ROHUHhInc20to34.9kRnt40to49.9","MOE H73ROHUHhInc20to34.9kRnt40to49.9","H73ROHUHhInc20to34.9kRnt>50pct","MOE H73ROHUHhInc20to34.9kRnt>50pct","H73ROHUHhInc20to34.9kRntPctNC","MOE H73ROHUHhInc20to34.9kRntPctNC","H73ROHUHhInc35to49.9k","MOE H73ROHUHhInc35to49.9k","H73ROHUHhInc35to49.9kRnt<20pct","MOE H73ROHUHhInc35to49.9kRnt<20pct","H73ROHUHhInc35to49.9kRnt20to25pct","MOE H73ROHUHhInc35to49.9kRnt20to25pct","H73ROHUHhInc35to49.9kRnt25to30pct","MOE H73ROHUHhInc35to49.9kRnt25to30pct","H73ROHUHhInc35to49.9kRnt30to35pct","MOE H73ROHUHhInc35to49.9kRnt30to35pct","H73ROHUHhInc35to49.9kRnt35to39.9","MOE H73ROHUHhInc35to49.9kRnt35to39.9","H73ROHUHhInc35to49.9kRnt40to49.9","MOE H73ROHUHhInc35to49.9kRnt40to49.9","H73ROHUHhInc35to49.9kRnt>50pct","MOE H73ROHUHhInc35to49.9kRnt>50pct","H73ROHUHhInc35to49.9kRntPctNC","MOE H73ROHUHhInc35to49.9kRntPctNC","H73ROHUHhInc50to74.9k","MOE H73ROHUHhInc50to74.9k","H73ROHUHhInc50to74.9kRnt<20pct","MOE H73ROHUHhInc50to74.9kRnt<20pct","H73ROHUHhInc50to74.9kRnt20to25pct","MOE H73ROHUHhInc50to74.9kRnt20to25pct","H73ROHUHhInc50to74.9kRnt25to30pct","MOE H73ROHUHhInc50to74.9kRnt25to30pct","H73ROHUHhInc50to74.9kRnt30to35pct","MOE H73ROHUHhInc50to74.9kRnt30to35pct","H73ROHUHhInc50to74.9kRnt35to39.9","MOE H73ROHUHhInc50to74.9kRnt35to39.9","H73ROHUHhInc50to74.9kRnt40to49.9","MOE H73ROHUHhInc50to74.9kRnt40to49.9","H73ROHUHhInc50to74.9kRnt>50pct","MOE H73ROHUHhInc50to74.9kRnt>50pct","H73ROHUHhInc50to74.9kRntPctNC","MOE H73ROHUHhInc50to74.9kRntPctNC","H73ROHUHhInc75to99.9k","MOE H73ROHUHhInc75to99.9k","H73ROHUHhInc75to99.9kRnt<20pct","MOE H73ROHUHhInc75to99.9kRnt<20pct","H73ROHUHhInc75to99.9kRnt20to25pct","MOE H73ROHUHhInc75to99.9kRnt20to25pct","H73ROHUHhInc75to99.9kRnt25to30pct","MOE H73ROHUHhInc75to99.9kRnt25to30pct","H73ROHUHhInc75to99.9kRnt30to35pct","MOE H73ROHUHhInc75to99.9kRnt30to35pct","H73ROHUHhInc75to99.9kRnt35to39.9","MOE H73ROHUHhInc75to99.9kRnt35to39.9","H73ROHUHhInc75to99.9kRnt40to49.9","MOE H73ROHUHhInc75to99.9kRnt40to49.9","H73ROHUHhInc75to99.9kRnt>50pct","MOE H73ROHUHhInc75to99.9kRnt>50pct","H73ROHUHhInc75to99.9kRntPctNC","MOE H73ROHUHhInc75to99.9kRntPctNC","H73ROHUHhInc>100k","MOE H73ROHUHhInc>100k","H73ROHUHhInc>100kRnt<20pct","MOE H73ROHUHhInc>100kRnt<20pct","H73ROHUHhInc>100kRnt20to25pct","MOE H73ROHUHhInc>100kRnt20to25pct","H73ROHUHhInc>100kRnt25to30pct","MOE H73ROHUHhInc>100kRnt25to30pct","H73ROHUHhInc>100kRnt30to35pct","MOE H73ROHUHhInc>100kRnt30to35pct","H73ROHUHhInc>100kRnt35to39.9","MOE H73ROHUHhInc>100kRnt35to39.9","H73ROHUHhInc>100kRnt40to49.9","MOE H73ROHUHhInc>100kRnt40to49.9","H73ROHUHhInc>100kRnt>50pct","MOE H73ROHUHhInc>100kRnt>50pct","H73ROHUHhInc>100kRntPctNC","MOE H73ROHUHhInc>100kRntPctNC"]
[{"$f":"VLOOKUP(DropDownList!$B$47,CntyQryCensus!$A$510:$DA$552,A$1)","v":"Allenstown"},373,153,373,153,0,12,0,12,0,12,10,15,0,12,0,12,0,12,5,8,31,31,41,60,0,12,0,12,0,12,17,28,0,12,54,69,0,12,64,39,86,95,50,54,15,26,0,12,0,12,0,12,0,12,1111,263,373,153,0,12,0,12,0,12,0,12,0,12,0,12,0,12,0,12,0,12,126,107,10,15,0,12,0,12,0,12,0,12,22,35,94,100,0,12,64,68,0,12,5,8,9,13,0,12,0,12,9,14,41,66,0,12,57,62,41,60,0,12,16,21,0,12,0,12,0,12,0,12,0,12,51,43,17,28,8,13,0,12,0,12,26,31,0,12,0,12,0,12,34,31,29,30,5,8,0,12,0,12,0,12,0,12,0,12,0,12,41,34,41,34,0,12,0,12,0,12,0,12,0,12,0,12,0,12,null,null,null,null,null,null,null,null,null,null,null,null,null,null,null,null,null,null,null,null,null,null,null,null,null,null,null,null,null,null,null,null,"Allenstown",null,"Estimate","Margin Of Error",621,150,579,153,0,85,0,85,11,17,0,85,22,30,5,12,5,8,10,16,8,12,10,16,0,85,54,75,119,88,23,26,21,26,107,83,79,50,19,31,32,40,54,50,0,85,null,null,null,null,null,null,42,55,null,null,null,null,null,null,null,null,null,null,null,null,null,null,null,null,null,null,null,null,"Allenstown",null,"Estimate","Margin Of Error",801,118]
[]
[]
[null,34.700000000000003,33,39.200000000000003,3,4.0999999999999996,2.7]
[]
[]
["Occupied Rental Housing Cost Burdern All Incomes"]
["NAME","RenterOccHsU",{"$f":"\"MOE \"&B155","v":"MOE RenterOccHsU"},"GRnt<20PctHHInc",{"$f":"\"MOE \"&D155","v":"MOE GRnt<20PctHHInc"},"GRnt20to249PctHHInc",{"$f":"\"MOE \"&F155","v":"MOE GRnt20to249PctHHInc"},"GRnt25to29.9PctHHInc",{"$f":"\"MOE \"&H155","v":"MOE GRnt25to29.9PctHHInc"},"GRnt<30PctHHInc",{"$f":"\"MOE \"&J155","v":"MOE GRnt<30PctHHInc"},"GRnt>30PctHHInc",{"$f":"\"MOE \"&L155","v":"MOE GRnt>30PctHHInc"},"GRnt30to349PctHHInc",{"$f":"\"MOE \"&N155","v":"MOE GRnt30to349PctHHInc"},"GRnt<35PctHHInc",{"$f":"\"MOE \"&P155","v":"MOE GRnt<35PctHHInc"},"GRnt>35PctHHInc",{"$f":"\"MOE \"&R155","v":"MOE GRnt>35PctHHInc"},"GRnt>50PctHHInc",{"$f":"\"MOE \"&T155","v":"MOE GRnt>50PctHHInc"},"HCB Not Calculated",{"$f":"\"MOE \"&V155","v":"MOE HCB Not Calculated"}]
[{"$f":"VLOOKUP(DropDownList!$B$47,CntyQryCensus!$A$510:$DA$552,A$1)","v":"Allenstown"},373,153,138,82.510605378945073,18,18,25,22,181,87.26969691708571,192,129.89996150884727,0,12,181,88.090862182180956,192,129.34450123604017,135,120,0,12]
[]
["Income By Household Type and Tenure"]
["NAME","TotalFamilyHouseholds",{"$f":"\"MOE \"&B159","v":"MOE TotalFamilyHouseholds"},"FamInc<10K",{"$f":"\"MOE \"&D159","v":"MOE FamInc<10K"},"FamInc10to15K",{"$f":"\"MOE \"&F159","v":"MOE FamInc10to15K"},"FamInc15to20K",{"$f":"\"MOE \"&H159","v":"MOE FamInc15to20K"},"FamInc20to25K",{"$f":"\"MOE \"&J159","v":"MOE FamInc20to25K"},"FamInc25to30K",{"$f":"\"MOE \"&L159","v":"MOE FamInc25to30K"},"FamInc30to35K",{"$f":"\"MOE \"&N159","v":"MOE FamInc30to35K"},"FamInc35to40K",{"$f":"\"MOE \"&P159","v":"MOE FamInc35to40K"},"FamInc40to45K",{"$f":"\"MOE \"&R159","v":"MOE FamInc40to45K"},"FamInc45to50K",{"$f":"\"MOE \"&T159","v":"MOE FamInc45to50K"},"FamInc50to60K",{"$f":"\"MOE \"&V159","v":"MOE FamInc50to60K"},"FamInc60to75K",{"$f":"\"MOE \"&X159","v":"MOE FamInc60to75K"},"FamInc75to100K",{"$f":"\"MOE \"&Z159","v":"MOE FamInc75to100K"},"FamInc100to125K",{"$f":"\"MOE \"&AB159","v":"MOE FamInc100to125K"},"FamInc125to150K",{"$f":"\"MOE \"&AD159","v":"MOE FamInc125to150K"},"FamInc150to200K",{"$f":"\"MOE \"&AF159","v":"MOE FamInc150to200K"},"FamInc>200K",{"$f":"\"MOE \"&AH159","v":"MOE FamInc>200K"},"MedFamInc",{"$f":"\"MOE \"&AJ159","v":"MOE MedFamInc"},"TotalNonNonFamilyHouseholds",{"$f":"\"MOE \"&AL159","v":"MOE TotalNonNonFamilyHouseholds"},"NonFamInc<10K",{"$f":"\"MOE \"&AN159","v":"MOE NonFamInc<10K"},"NonFamInc10to15K",{"$f":"\"MOE \"&AP159","v":"MOE NonFamInc10to15K"},"NonFamInc15to20K",{"$f":"\"MOE \"&AR159","v":"MOE NonFamInc15to20K"},"NonFamInc20to25K",{"$f":"\"MOE \"&AT159","v":"MOE NonFamInc20to25K"},"NonFamInc25to30K",{"$f":"\"MOE \"&AV159","v":"MOE NonFamInc25to30K"},"NonFamInc30to35K",{"$f":"\"MOE \"&AX159","v":"MOE NonFamInc30to35K"},"NonFamInc35to40K",{"$f":"\"MOE \"&AZ159","v":"MOE NonFamInc35to40K"},"NonFamInc40to45K",{"$f":"\"MOE \"&BB159","v":"MOE NonFamInc40to45K"},"NonFamInc45to50K",{"$f":"\"MOE \"&BD159","v":"MOE NonFamInc45to50K"},"NonFamInc50to60K",{"$f":"\"MOE \"&BF159","v":"MOE NonFamInc50to60K"},"NonFamInc60to75K",{"$f":"\"MOE \"&BH159","v":"MOE NonFamInc60to75K"},"NonFamInc75to100K",{"$f":"\"MOE \"&BJ159","v":"MOE NonFamInc75to100K"},"NonFamInc100to125K",{"$f":"\"MOE \"&BL159","v":"MOE NonFamInc100to125K"},"NonFamInc125to150K",{"$f":"\"MOE \"&BN159","v":"MOE NonFamInc125to150K"},"NonFamInc150to200K",{"$f":"\"MOE \"&BP159","v":"MOE NonFamInc150to200K"},"NonFamInc>200K",{"$f":"\"MOE \"&BR159","v":"MOE NonFamInc>200K"},"MedNonFamInc",{"$f":"\"MOE \"&BT159","v":"MOE MedNonFamInc"},"PerCapitaIncome","MOE PerCapitaIncome"]
[{"$f":"VLOOKUP(DropDownList!$B$47,CntyQryCensus!$A$510:$DA$552,A$1)","v":"Allenstown"},1077,128,61,66,0,12,29,29,0,12,11,16,56,65,47,61,23,26,29,34,43,41,79,50,238,103,67,42,118,77,237,84,39,33,93198,14133,735,209,11,17,96,96,51,38,89,87,20,22,64,60,11,18,98,80,5,11,79,63,19,22,71,45,98,60,9,14,14,24,0,12,40981,8030]
[]
[]
[]
["2010 Census"]
[]
["TownName","LOGRECNO","COUNTY","TotalPop","TotalPop1Race","TotalPopWhite","TotalPopAfricanAmerican","TotalPopAmericanIndAlaska","TotalPopAsian","TotalPopNativeHawaiianPIsland","TotalPopSomeOtherRace","TotalPopTwoOrMoreRaces","TotalPopHispanicLatino","TotalNonHispanicLatino","TotPopUnder15yrs","TotPop15to24yrs","TotPop25to34yrs","TotPop35to44yrs","TotPop45to54yrs","TotPop55to64yrs","TotPop65to74yrs","TotPopOver74yrs","MedianAge","MedianAgeMale","MedianAgeFemale","TotalHH","TotalPopInHouseholds","TotalPopInFamilyHH","TotalPopInNonFamilyHH","AvgHHSize","TotalFamilyHH","TotalFamilyHHSpouse","TotalSingleParentHH","TotalNonFamilyHH","AvgFamilyHHSize","AvgNonFamilyHHSize","AverageHHSizeOwnerOccupied","AverageHHSizeRentalOccupied","TotalHousingUnits","TotalOccupiedHU","TotalOwnerOccupiedHUs","TotalRentalOccupiedHU","TotalVacantHU","VacantHUForRent","VacantHURentNotOccupied","VacantHUForSale","VacantHUsSoldNotOccupied","VacantHUSeasonalRecreational","VacantHUsAllOtherVacants","HomeOwnerVacancyRate","HomeRentalVacancyRate","Total HH","Total Single Family HU","Total Multi-Family HU","Total Manufacture HU"]
[{"$f":"VLOOKUP(DropDownList!$B$47,CntyQryCensus!$A$542:$DA$568,A$1)","v":"Allenstown"},{"$f":"VLOOKUP(DropDownList!$B$47,CntyQryCensus!$A$542:$DA$568,B$1)","v":"0000153"},{"$f":"VLOOKUP(DropDownList!$B$47,CntyQryCensus!$A$542:$DA$568,C$1)","v":"013"},{"$f":"VLOOKUP(DropDownList!$B$47,CntyQryCensus!$A$542:$DA$568,D$1)","v":4322},{"$f":"VLOOKUP(DropDownList!$B$47,CntyQryCensus!$A$542:$DA$568,E$1)","v":4245},{"$f":"VLOOKUP(DropDownList!$B$47,CntyQryCensus!$A$542:$DA$568,F$1)","v":4142},{"$f":"VLOOKUP(DropDownList!$B$47,CntyQryCensus!$A$542:$DA$568,G$1)","v":35},{"$f":"VLOOKUP(DropDownList!$B$47,CntyQryCensus!$A$542:$DA$568,H$1)","v":15},{"$f":"VLOOKUP(DropDownList!$B$47,CntyQryCensus!$A$542:$DA$568,I$1)","v":34},{"$f":"VLOOKUP(DropDownList!$B$47,CntyQryCensus!$A$542:$DA$568,J$1)","v":2},{"$f":"VLOOKUP(DropDownList!$B$47,CntyQryCensus!$A$542:$DA$568,K$1)","v":17},{"$f":"VLOOKUP(DropDownList!$B$47,CntyQryCensus!$A$542:$DA$568,L$1)","v":77},{"$f":"VLOOKUP(DropDownList!$B$47,CntyQryCensus!$A$542:$DA$568,M$1)","v":79},{"$f":"VLOOKUP(DropDownList!$B$47,CntyQryCensus!$A$542:$DA$568,N$1)","v":4243},{"$f":"VLOOKUP(DropDownList!$B$47,CntyQryCensus!$A$542:$DA$568,O$1)","v":755},{"$f":"VLOOKUP(DropDownList!$B$47,CntyQryCensus!$A$542:$DA$568,P$1)","v":513},{"$f":"VLOOKUP(DropDownList!$B$47,CntyQryCensus!$A$542:$DA$568,Q$1)","v":546},{"$f":"VLOOKUP(DropDownList!$B$47,CntyQryCensus!$A$542:$DA$568,R$1)","v":604},{"$f":"VLOOKUP(DropDownList!$B$47,CntyQryCensus!$A$542:$DA$568,S$1)","v":798},{"$f":"VLOOKUP(DropDownList!$B$47,CntyQryCensus!$A$542:$DA$568,T$1)","v":582},{"$f":"VLOOKUP(DropDownList!$B$47,CntyQryCensus!$A$542:$DA$568,U$1)","v":295},{"$f":"VLOOKUP(DropDownList!$B$47,CntyQryCensus!$A$542:$DA$568,V$1)","v":229},{"$f":"VLOOKUP(DropDownList!$B$47,CntyQryCensus!$A$542:$DA$568,W$1)","v":41},{"$f":"VLOOKUP(DropDownList!$B$47,CntyQryCensus!$A$542:$DA$568,X$1)","v":39.799999999999997},{"$f":"VLOOKUP(DropDownList!$B$47,CntyQryCensus!$A$542:$DA$568,Y$1)","v":42.2},{"$f":"VLOOKUP(DropDownList!$B$47,CntyQryCensus!$A$542:$DA$568,Z$1)","v":1756},{"$f":"VLOOKUP(DropDownList!$B$47,CntyQryCensus!$A$542:$DA$568,AA$1)","v":4299},{"$f":"VLOOKUP(DropDownList!$B$47,CntyQryCensus!$A$542:$DA$568,AB$1)","v":2219},{"$f":"VLOOKUP(DropDownList!$B$47,CntyQryCensus!$A$542:$DA$568,AC$1)","v":2080},{"$f":"VLOOKUP(DropDownList!$B$47,CntyQryCensus!$A$542:$DA$568,AD$1)","v":2.4500000000000002},{"$f":"VLOOKUP(DropDownList!$B$47,CntyQryCensus!$A$542:$DA$568,AE$1)","v":1150},{"$f":"VLOOKUP(DropDownList!$B$47,CntyQryCensus!$A$542:$DA$568,AF$1)","v":846},{"$f":"VLOOKUP(DropDownList!$B$47,CntyQryCensus!$A$542:$DA$568,AG$1)","v":304},{"$f":"VLOOKUP(DropDownList!$B$47,CntyQryCensus!$A$542:$DA$568,AH$1)","v":606},{"$f":"VLOOKUP(DropDownList!$B$47,CntyQryCensus!$A$542:$DA$568,AI$1)","v":2.93},{"$f":"VLOOKUP(DropDownList!$B$47,CntyQryCensus!$A$542:$DA$568,AJ$1)","v":3.4323432343234321},{"$f":"VLOOKUP(DropDownList!$B$47,CntyQryCensus!$A$542:$DA$568,AK$1)","v":2.6},{"$f":"VLOOKUP(DropDownList!$B$47,CntyQryCensus!$A$542:$DA$568,AL$1)","v":1.98},{"$f":"VLOOKUP(DropDownList!$B$47,CntyQryCensus!$A$542:$DA$568,AM$1)","v":1881},{"$f":"VLOOKUP(DropDownList!$B$47,CntyQryCensus!$A$542:$DA$568,AN$1)","v":1756},{"$f":"VLOOKUP(DropDownList!$B$47,CntyQryCensus!$A$542:$DA$568,AO$1)","v":1324},{"$f":"VLOOKUP(DropDownList!$B$47,CntyQryCensus!$A$542:$DA$568,AP$1)","v":432},{"$f":"VLOOKUP(DropDownList!$B$47,CntyQryCensus!$A$542:$DA$568,AQ$1)","v":125},{"$f":"VLOOKUP(DropDownList!$B$47,CntyQryCensus!$A$542:$DA$568,AR$1)","v":43},{"$f":"VLOOKUP(DropDownList!$B$47,CntyQryCensus!$A$542:$DA$568,AS$1)","v":1},{"$f":"VLOOKUP(DropDownList!$B$47,CntyQryCensus!$A$542:$DA$568,AT$1)","v":32},{"$f":"VLOOKUP(DropDownList!$B$47,CntyQryCensus!$A$542:$DA$568,AU$1)","v":3},{"$f":"VLOOKUP(DropDownList!$B$47,CntyQryCensus!$A$542:$DA$568,AV$1)","v":14},{"$f":"VLOOKUP(DropDownList!$B$47,CntyQryCensus!$A$542:$DA$568,AW$1)","v":32},{"$f":"VLOOKUP(DropDownList!$B$47,CntyQryCensus!$A$542:$DA$568,AX$1)","v":2.4},{"$f":"VLOOKUP(DropDownList!$B$47,CntyQryCensus!$A$542:$DA$568,AY$1)","v":9},{"$f":"VLOOKUP(DropDownList!$B$47,CntyQryCensus!$A$542:$DA$568,AZ$1)","v":1881},{"$f":"VLOOKUP(DropDownList!$B$47,CntyQryCensus!$A$542:$DA$568,BA$1)","v":806},{"$f":"VLOOKUP(DropDownList!$B$47,CntyQryCensus!$A$542:$DA$568,BB$1)","v":679},{"$f":"VLOOKUP(DropDownList!$B$47,CntyQryCensus!$A$542:$DA$568,BC$1)","v":396}]

{"sheet":"CntyQuery","index":8,"n_rows":245,"n_cols":243,"rows_kept":245,"cut":false,"hidden":true,"merged":[]}
["CountyName","Cnty_Code","Census_Cnty_Code","LandAcres","WaterAcres","HousingUnits90Cen","Persons90Cen","Families90Cen","Households90cen","MalePop90cen","FemalePop90cen","WhitePop","BlackPop","AmerIndianPop","AsianPIPop","OtherRacePop","HispanicOrPop","AgeUnder15_90cen","Age15to24_90cen","Age25to34_90cen","Age35to44_90cen","Age45to54_90cen","Age55to64_90cen","Age65to74_90cen","Age75andOver_90cen","PersonsInHH90cen","PersonsInFamHH90cen","PersonsInGC","PersonsPerHH90cen","PersonsPerFam90Cen","SinglePersonHH90cen","MarriedCoupleHH90cen","SingleParentHH90cen","NonFamilyHH90cen","TotalHousingUnits","OccupiedHousingUnits","VacantHousingUnits","OwnerOccHU","RenterOccHU","VacantForRent90","VacantForSale90","VacantSeasonalRec","SingFamHU90cen","MultiFamHU90cen","MobileHom90cen","SingFamOwnHU90cen","MultiFamOwnHU90cen","MobileHomOwnHU90cen","SingFamRntrHU90cen","MultiFamRntrHU90cen","MobileHomRntrHU90cen","HU<5yrs90cen","HU5to20yrs90cen","HU20to50yrs90cen","HU>50yrs90cen","Units0Bedroom90cen","Units1Bedroom90cen","Units2Bedroom90cen","Units3Bedroom90cen","Units4+Bedroom90cen","HI<5K","HI5Kto10K","HI10Kto15K","HI15Kto25K","HI25Kto35K","HI35Kto50K","HI50Kto75K","HI75Kto100K","HI>100K","MedHI","HH<25HI<5K","HH<25HI5Kto10K","HH<25HI10Kto15K","HH<25HI15Kto25K","HH<25HI25Kto35K","HH<25HI35Kto50K","HH<25HI50Kto75K","HH<25HI75Kto100K","HH<25HI>100K","HH25to34HI<5K","HH25to34HI5Kto10K","HH25to34HI10Kto15K","HH25to34HI15Kto25K","HH25to34HI25Kto35K","HH25to34HI35Kto50K","HH25to34HI50Kto75K","HH25to34HI75Kto100K","HH25to34HI>100K","HH35to44HI<5K","HH35to44HI5Kto10K","HH35to44HI10Kto15K","HH35to44HI15Kto25K","HH35to44HI25Kto35K","HH35to44HI35Kto50K","HH35to44HI50Kto75K","HH35to44HI75Kto100K","HH35to44HI>100K","HH45to54HI<5K","HH45to54HI5Kto10K","HH45to54HI10Kto15K","HH45to54HI15Kto25K","HH45to54HI25Kto35K","HH45to54HI35Kto50K","HH45to54HI50Kto75K","HH45to54HI75Kto100K","HH45to54HI>100K","HH55to64HI<5K","HH55to64HI5Kto10K","HH55to64HI10Kto15K","HH55to64HI15Kto25K","HH55to64HI25Kto35K","HH55to64HI35Kto50K","HH55to64HI50Kto75K","HH55to64HI75Kto100K","HH55to64HI>100K","HH65to74HI<5K","HH65to74HI5Kto10K","HH65to74HI10Kto15K","HH65to74HI15Kto25K","HH65to74HI25Kto35K","HH65to74HI35Kto50K","HH65to74HI50Kto75K","HH65to74HI75Kto100K","HH65to74HI>100K","HH>75HI<5K","HH>75HI5Kto10K","HH>75HI10Kto15K","HH>75HI15Kto25K","HH>75HI25Kto35K","HH>75HI35Kto50K","HH>75HI50Kto75K","HH>75HI75Kto100K","HH>75HI>100K","SchoolEnrollment1thru12","Pop25andOver","HSGradorHigher","CollGradorHigher","NativePop","ForeignBornPop","BornStateOfRes","NativePop2","ForeignBornPop2","DroveAlone","CarPooled","PublicTranspt","Walked","OtherMeans","WorkedAtHome","HHInc<10K","HHInc10to15K","HHInc15to25K","HHInc25to35K","HHInc35to50K","HHInc50to75K","HHInc75to100K","HHInc100to150K","HHInc>150K"]
["Census 1990 Data -           Query Name:  DPCnty90Census"]
["NAME","FIPS","COUSUBFP","LandAcres","WaterAcres","HousingUnits90Cen","Persons90Cen","Families90Cen","Households90cen","MalePop90cen","FemalePop90cen","WhitePop","BlackPop","AmerIndianPop","AsianPIPop","OtherRacePop","HispanicOrPop","AgeUnder15_90cen","Age15to24_90cen","Age25to34_90cen","Age35to44_90cen","Age45to54_90cen","Age55to64_90cen","Age65to74_90cen","Age75andOver_90cen","PersonsInHH90cen","PersonsInFamHH90cen","PersonsInGC","PersonsPerHH90cen","PersonsPerFam90Cen","SinglePersonHH90cen","MarriedCoupleHH90cen","SingleParentHH90cen","NonFamilyHH90cen","TotalHousingUnits","OccupiedHousingUnits","VacantHousingUnits","OwnerOccHU","RenterOccHU","VacantForRent90","VacantForSale90","VacantSeasonalRec","SingFamHU90cen","MultiFamHU90cen","MobileHom90cen","SingFamOwnHU90cen","MultiFamOwnHU90cen","MobileHomOwnHU90cen","SingFamRntrHU90cen","MultiFamRntrHU90cen","MobileHomRntrHU90cen","HU<5yrs90cen","HU5to20yrs90cen","HU20to50yrs90cen","HU>50yrs90cen","Units0Bedroom90cen","Units1Bedroom90cen","Units2Bedroom90cen","Units3Bedroom90cen","Units4+Bedroom90cen","HI<5K","HI5Kto10K","HI10Kto15K","HI15Kto25K","HI25Kto35K","HI35Kto50K","HI50Kto75K","HI75Kto100K","HI>100K","MedHI","HH<25HI<5K","HH<25HI5Kto10K","HH<25HI10Kto15K","HH<25HI15Kto25K","HH<25HI25Kto35K","HH<25HI35Kto50K","HH<25HI50Kto75K","HH<25HI75Kto100K","HH<25HI>100K","HH25to34HI<5K","HH25to34HI5Kto10K","HH25to34HI10Kto15K","HH25to34HI15Kto25K","HH25to34HI25Kto35K","HH25to34HI35Kto50K","HH25to34HI50Kto75K","HH25to34HI75Kto100K","HH25to34HI>100K","HH35to44HI<5K","HH35to44HI5Kto10K","HH35to44HI10Kto15K","HH35to44HI15Kto25K","HH35to44HI25Kto35K","HH35to44HI35Kto50K","HH35to44HI50Kto75K","HH35to44HI75Kto100K","HH35to44HI>100K","HH45to54HI<5K","HH45to54HI5Kto10K","HH45to54HI10Kto15K","HH45to54HI15Kto25K","HH45to54HI25Kto35K","HH45to54HI35Kto50K","HH45to54HI50Kto75K","HH45to54HI75Kto100K","HH45to54HI>100K","HH55to64HI<5K","HH55to64HI5Kto10K","HH55to64HI10Kto15K","HH55to64HI15Kto25K","HH55to64HI25Kto35K","HH55to64HI35Kto50K","HH55to64HI50Kto75K","HH55to64HI75Kto100K","HH55to64HI>100K","HH65to74HI<5K","HH65to74HI5Kto10K","HH65to74HI10Kto15K","HH65to74HI15Kto25K","HH65to74HI25Kto35K","HH65to74HI35Kto50K","HH65to74HI50Kto75K","HH65to74HI75Kto100K","HH65to74HI>100K","HH>75HI<5K","HH>75HI5Kto10K","HH>75HI10Kto15K","HH>75HI15Kto25K","HH>75HI25Kto35K","HH>75HI35Kto50K","HH>75HI50Kto75K","HH>75HI75Kto100K","HH>75HI>100K","SchoolEnrollment1thru12","Pop25andOver","HSGradorHigher","CollGradorHigher","NativePop","ForeignBornPop","BornStateOfRes","NativePop2","ForeignBornPop2","DroveAlone","CarPooled","PublicTranspt","Walked","OtherMeans","WorkedAtHome","HHInc<10K","HHInc10to15K","HHInc15to25K","HHInc25to35K","HHInc35to50K","HHInc50to75K","HHInc75to100K","HHInc100to150K","HHInc>150K"]
["Allenstown",13005,"00660",13097.95,69.48,1868,4649,1253,1762,2301,2348,4587,24,9,24,5,25,1104,557,1093,692,426,360,238,179,4649,3987,0,2.6384790011350736,3.1819632881085393,399,1035,218,110,1868,1762,106,1305,457,33,46,8,701,542,625,645,113,625,38,392,27,339,843,426,296,62,274,707,638,223,87,118,115,304,326,489,271,21,49,33469,18,0,0,17,18,29,8,0,0,4,12,14,76,117,189,71,7,13,13,9,14,69,82,148,96,0,9,14,12,6,33,22,53,76,12,27,24,0,26,48,33,59,20,2,0,7,44,37,35,42,6,0,0,0,7,41,18,26,12,5,0,0,0,774,2967,2088,243,4618,94,2913,4618,94,1908,399,6,15,20,31,205,115,304,326,489,271,21,33,16,73,266,189,654,221,134,71,296]
["Andover",13010,"01460",25720.11,551.4,855,1883,524,686,931,952,1856,4,5,17,1,12,416,224,278,334,216,159,147,109,1874,1658,9,2.7317784256559765,3.16412213740458,122,459,65,40,855,686,169,581,105,8,11,123,693,59,103,492,14,103,62,35,8,108,167,218,362,8,78,225,373,171,25,35,48,96,136,168,108,26,38,35000,0,0,5,2,8,7,0,0,0,2,3,4,21,27,39,17,0,0,2,0,4,17,35,48,32,8,11,0,3,2,8,19,43,31,9,12,3,3,5,12,21,16,16,7,4,6,11,14,24,14,15,5,2,7,12,15,14,12,12,0,7,0,4,341,1243,1014,316,1854,29,1101,1854,29,688,145,0,49,11,64,60,48,96,136,168,108,26,21,17,11,97,70,97,89,83,46,362]
["Boscawen",13015,"06260",15912.75,339.31,1221,3586,887,1153,1751,1835,3544,16,9,16,1,20,680,458,630,520,336,305,275,382,3095,2743,491,2.6843018213356462,3.0924464487034951,197,719,168,69,1221,1153,68,866,287,21,17,5,742,266,213,662,45,213,55,192,40,118,348,417,338,0,70,517,518,116,52,65,134,231,193,258,174,39,6,31304,0,0,0,5,25,15,12,0,0,6,0,37,78,50,67,50,0,0,13,6,11,44,32,97,57,17,6,0,0,16,33,21,25,31,18,0,8,0,25,44,33,44,8,4,0,7,24,26,27,22,10,13,0,0,18,35,19,0,10,0,3,0,0,537,2448,1769,333,3524,62,2373,3524,62,1258,234,0,68,4,85,117,134,231,193,258,174,39,0,6,6,112,122,226,243,99,75,338]
["Bow",13020,"06500",18029.64,239.65,1860,5500,1613,1813,2744,2756,5454,9,2,26,9,17,1338,607,657,1192,762,481,287,176,5500,5252,0,3.033645890788748,3.2560446373217609,160,1482,131,40,1860,1813,47,1739,74,3,26,4,1825,30,5,1717,17,5,62,12,0,470,725,512,153,0,32,202,975,651,27,44,59,132,196,284,562,225,258,54633,5,0,0,0,6,0,0,0,0,8,0,9,0,15,35,97,22,34,0,8,14,17,45,88,237,60,117,0,0,7,10,43,85,157,68,80,0,0,0,47,39,22,58,69,21,0,7,21,53,31,36,8,6,6,14,29,8,5,17,18,5,0,0,1041,3555,3272,1392,5409,91,2855,5409,91,2471,324,12,21,17,103,71,59,132,196,284,562,225,218,40,64,406,146,579,373,86,53,153]
["Bradford",13025,"06980",22549.14,444.54,757,1405,389,514,718,687,1401,1,1,0,2,9,335,167,235,258,131,128,91,60,1405,1242,0,2.7334630350194553,3.1928020565552697,97,339,50,28,757,514,243,409,105,16,7,184,634,70,53,372,11,53,60,40,5,110,208,192,247,25,71,258,263,140,11,33,25,84,94,126,92,18,35,36667,0,2,2,7,2,5,3,0,0,0,7,0,10,18,50,15,3,3,0,7,13,23,31,31,41,4,8,0,2,4,4,16,13,11,2,7,8,2,2,12,5,15,14,9,12,0,7,4,13,11,10,3,0,5,3,6,0,15,11,2,5,0,0,224,903,794,286,1364,41,579,1364,41,511,85,7,26,0,56,44,25,84,94,126,92,18,21,14,14,96,62,146,91,74,27,247]
["Canterbury",13030,"09860",28123.99,572.6,724,1687,484,606,848,839,1671,6,2,8,0,4,393,150,223,426,197,137,94,67,1680,1510,7,2.7722772277227721,3.1198347107438016,85,428,56,37,724,606,118,535,71,2,15,89,663,35,26,511,11,26,46,22,3,122,273,161,168,2,66,170,325,161,9,27,43,52,76,135,149,67,51,45724,0,0,0,0,1,0,0,0,0,2,0,11,14,15,15,27,3,0,0,2,2,18,27,44,74,29,23,2,3,2,3,13,20,30,30,18,0,0,10,0,9,32,14,2,5,2,8,7,5,6,21,2,3,5,3,14,11,12,5,3,2,0,0,280,1144,1032,419,1673,14,938,1673,14,720,115,0,29,0,52,36,43,52,76,135,149,67,33,18,16,106,94,179,75,45,41,168]
["Chichester",13035,"12420",13564.57,63.53,724,1942,545,679,964,978,1928,1,5,8,0,5,467,219,324,366,233,173,85,75,1942,1776,0,2.8600883652430045,3.2587155963302754,109,484,61,25,724,679,45,606,73,13,9,8,607,61,56,544,19,56,38,31,4,114,254,154,202,6,46,182,343,147,5,26,42,86,117,191,157,38,17,39957,0,0,2,0,3,3,0,0,0,0,0,0,21,39,43,22,7,2,2,0,6,16,32,60,63,7,4,0,2,10,14,8,44,30,20,6,0,4,3,12,17,31,33,4,3,0,4,9,17,14,5,5,0,2,3,16,12,6,4,5,4,0,0,373,1256,1081,271,1907,35,1222,1907,35,868,97,0,45,6,47,31,42,86,117,191,157,38,9,8,4,110,83,171,93,47,14,202]
["Concord",13040,"14200",40933.93,2065.85,15697,36006,8782,14222,17466,18540,35350,226,101,243,86,356,6996,4970,7373,5805,3117,2690,2445,2610,33471,26684,2535,2.3534664604134439,3.0384878159872466,4321,6944,1838,1119,15697,14222,1475,7443,6779,996,210,72,6014,8439,1244,5262,1215,1244,549,6037,193,2790,4100,2929,5878,289,2978,5770,4750,1910,545,963,1040,2538,2496,3121,2421,581,476,32733,39,72,102,161,219,229,50,0,0,110,145,142,691,836,969,538,99,54,85,52,48,359,467,959,868,229,163,37,32,89,310,274,397,462,98,107,13,66,139,276,259,259,307,100,107,112,245,214,347,271,209,124,31,38,149,351,306,394,170,99,72,24,7,5328,24144,20401,6792,34935,1071,19729,34935,1071,13352,2417,171,1045,266,524,1508,1040,2538,2496,3121,2421,581,316,160,69,2721,1669,2431,1343,922,664,5878]
["Danbury",13045,"16980",24161.8,181.59,541,881,245,333,450,431,872,2,3,0,4,9,203,95,157,145,82,88,68,43,881,769,0,2.6456456456456459,3.1387755102040815,68,205,40,20,541,333,208,296,37,10,17,166,444,18,79,251,3,79,22,9,6,97,204,77,163,22,84,220,126,89,18,41,36,52,74,68,35,2,9,27768,2,0,0,4,1,4,0,0,0,2,4,4,11,25,17,13,0,0,6,3,2,10,20,35,8,1,0,2,6,3,2,5,8,14,1,2,3,8,6,2,14,1,0,0,4,0,8,14,15,2,3,0,0,3,3,12,7,8,7,0,0,0,0,154,583,428,95,873,8,486,873,8,287,46,1,13,3,11,59,36,52,74,68,35,2,7,2,8,89,98,106,46,20,11,163]
["Dunbarton",13050,"19460",19734.04,311.60000000000002,685,1759,501,642,904,855,1746,0,8,5,0,6,393,191,319,357,219,142,88,50,1759,1587,0,2.7398753894080996,3.1676646706586826,117,448,53,24,685,642,43,568,74,10,11,16,619,43,23,539,10,23,43,27,4,117,197,213,158,0,30,157,329,169,16,28,24,63,84,164,144,70,39,44250,0,6,0,5,0,0,0,0,0,0,3,0,3,38,55,31,6,3,7,0,0,10,12,54,56,36,16,0,0,7,13,18,20,38,17,8,3,7,0,15,8,20,12,6,10,6,3,15,3,2,12,7,2,2,0,9,2,14,6,3,0,3,0,300,1186,1031,417,1704,55,909,1704,55,815,67,3,2,6,59,44,24,63,84,164,144,70,33,6,11,106,54,143,81,97,35,158]
["Epsom",13055,"24900",22066.77,85.96,1396,3591,968,1251,1755,1836,3565,8,10,8,0,18,783,467,621,605,347,272,236,260,3493,3130,98,2.7921662669864107,3.2334710743801653,222,857,111,61,1396,1251,145,1024,227,31,32,73,927,162,307,769,14,307,65,127,35,285,613,238,254,8,143,410,583,246,30,53,83,197,204,299,278,74,20,36398,0,0,0,7,7,21,0,0,0,8,6,0,33,64,132,68,22,0,0,7,15,26,62,73,107,33,14,0,7,8,21,5,23,64,19,6,0,0,8,52,42,24,26,0,0,6,6,19,29,15,6,6,0,0,16,27,33,29,9,20,7,0,0,649,2316,1914,438,3397,98,2039,3397,98,1287,270,14,46,7,82,83,83,197,204,299,278,74,20,0,51,234,217,396,137,63,38,254]
["Franklin",13060,"27380",17708.91,952.65,3744,8304,2162,3143,3941,4363,8230,15,10,43,6,53,1916,1098,1394,1164,741,709,616,666,8109,6936,195,2.5800190900413615,3.208140610545791,836,1707,455,145,3744,3143,601,1876,1267,289,33,191,1951,1547,246,1552,166,246,143,1076,48,467,772,961,1544,26,734,1111,1257,616,145,358,256,660,541,667,386,122,28,27011,35,58,0,21,69,9,0,0,0,17,26,32,137,135,197,78,17,17,0,8,0,108,117,199,138,18,0,24,29,53,103,50,124,56,35,11,0,10,15,93,81,88,71,26,0,0,96,104,84,52,33,43,16,0,69,131,52,114,37,17,0,10,0,1498,5290,3835,642,8118,186,5794,8118,186,2970,617,17,102,9,85,503,256,660,541,667,386,122,17,11,23,444,215,557,378,304,279,1544]
["Henniker",13065,"35540",28231.91,439.83,1558,4151,905,1405,2132,2019,4087,20,6,25,13,48,822,1099,685,709,292,224,187,133,3580,2866,571,2.5480427046263343,3.1668508287292818,351,758,147,149,1558,1405,153,949,456,34,27,54,998,441,119,819,57,119,87,339,30,357,524,247,425,13,264,482,536,258,52,122,119,220,188,325,330,77,33,36951,19,26,10,23,0,0,6,0,0,6,0,15,62,52,95,100,15,13,6,18,7,70,41,126,108,37,13,0,0,12,19,35,38,57,6,0,0,0,12,15,17,26,53,19,0,6,35,40,23,14,33,6,0,7,15,43,23,8,29,7,0,0,0,464,2358,2096,895,4042,152,1654,4042,152,1411,204,6,204,21,145,174,119,220,188,325,330,77,27,6,78,279,199,325,125,67,55,425]
["Hill",13070,"35860",17068.46,38.61,360,814,237,300,395,419,812,0,0,2,0,3,188,83,143,144,77,79,62,38,814,743,0,2.7133333333333334,3.1350210970464136,55,197,40,8,360,300,60,278,22,1,2,48,310,12,38,240,7,38,14,5,3,51,112,136,54,2,30,104,161,56,14,44,18,39,66,82,46,4,3,31591,0,0,0,3,0,9,0,0,0,0,5,3,3,18,16,8,0,0,0,4,2,14,26,34,15,0,3,3,3,0,2,2,8,10,0,0,4,10,0,6,10,8,10,2,0,2,9,10,0,7,7,0,2,0,5,13,3,11,3,0,3,0,0,135,543,467,82,814,10,490,814,10,351,43,0,2,0,20,58,18,39,66,82,46,4,3,0,2,49,23,89,43,30,63,54]
["Hooksett",13075,"37300",23164.34,596.23,3484,8767,2492,3253,4365,4402,8618,48,5,89,7,42,1852,1062,1738,1530,1004,740,537,304,8767,7748,0,2.695050722410083,3.1091492776886036,553,2127,365,208,3484,3253,231,2551,702,129,70,13,2043,1102,339,1843,431,339,148,521,33,976,1115,1016,379,19,264,1209,1396,598,67,168,223,313,446,783,853,247,140,42715,26,11,23,23,0,19,22,0,0,0,8,21,81,100,242,218,84,15,0,0,19,39,158,211,341,71,32,0,21,8,34,65,111,147,52,59,14,24,42,37,47,109,104,29,17,27,69,52,72,56,61,21,11,17,0,35,58,27,20,30,0,0,0,1418,5858,4806,1293,8407,355,5337,8407,355,4235,333,26,65,19,143,235,223,313,446,783,853,247,98,42,95,881,365,750,622,289,105,379]
["Hopkinton",13080,"37540",27698.32,1153.29,1924,4806,1390,1759,2358,2448,4782,6,1,16,1,10,1036,522,597,930,660,418,396,247,4806,4339,0,2.7322342239909041,3.1215827338129496,293,1263,127,76,1924,1759,165,1525,234,21,28,91,1658,179,87,1425,42,87,112,107,15,263,620,599,442,0,88,433,825,578,17,58,68,243,221,324,406,149,276,46810,0,0,0,0,8,0,0,4,0,10,14,0,66,45,60,89,6,8,0,0,2,26,78,115,63,55,108,0,0,8,25,8,62,100,51,102,0,7,9,30,28,40,76,33,36,0,7,36,62,33,23,66,0,15,7,30,13,34,21,24,12,0,7,828,3248,3073,1378,4705,101,2140,4705,101,1907,251,22,21,8,188,75,68,243,221,324,406,149,174,102,32,231,229,391,334,197,68,442]
["Loudon",13085,"43380",29452.44,444.13,1476,4114,1156,1376,2045,2069,4095,5,8,6,0,18,1063,473,886,716,416,299,160,101,4114,3814,0,2.9898255813953489,3.2993079584775087,151,1014,142,69,1476,1376,100,1237,139,14,22,41,1106,99,271,965,32,271,65,60,14,355,552,270,285,14,72,398,716,262,42,38,72,155,300,430,297,74,18,38923,0,0,0,24,0,27,0,0,0,17,0,14,51,73,147,52,15,6,7,0,12,13,115,96,120,26,7,7,6,6,11,47,93,76,21,0,11,6,11,26,40,36,49,12,0,0,20,14,15,16,26,0,0,5,0,6,15,15,9,5,0,0,0,784,2588,2101,339,4159,52,2802,4159,52,1912,264,11,35,6,129,80,72,155,300,430,297,74,6,12,63,292,229,323,153,52,65,285]
["Newbury",13090,"50900",22917.85,1464.69,1184,1347,389,506,680,667,1338,3,4,2,0,2,319,120,226,248,143,122,112,57,1347,1204,0,2.6620553359683794,3.0951156812339331,95,342,47,22,1184,506,678,425,81,14,52,548,1137,23,24,414,3,24,71,9,1,275,363,275,278,11,57,337,477,309,8,23,27,79,100,123,92,23,22,35821,0,0,0,3,0,0,0,0,0,0,3,2,15,22,27,22,0,0,2,2,2,14,33,61,34,15,1,4,5,3,3,11,16,17,4,13,2,4,3,18,14,12,17,2,6,0,6,13,17,14,4,0,2,2,0,3,4,9,6,3,2,0,0,261,864,805,281,1306,39,569,1306,39,507,92,2,6,11,46,31,27,79,100,123,92,23,12,10,25,250,85,278,129,63,83,278]
["New London",13095,"52100",14304.58,1963.28,1806,3180,876,1265,1323,1857,3157,7,0,16,0,11,426,518,259,406,307,397,425,442,2844,2409,336,2.2482213438735177,2.75,352,776,100,37,1806,1265,541,1031,234,20,25,461,1425,355,26,848,171,26,103,123,8,375,581,451,391,8,118,448,732,492,25,27,67,148,172,155,251,146,162,46681,0,8,0,0,0,0,0,0,0,0,5,0,7,6,14,37,30,0,0,0,6,16,57,26,64,22,54,0,0,6,13,14,6,31,12,18,7,0,14,28,36,21,60,10,32,6,7,0,33,26,57,19,50,38,12,7,41,51,33,31,40,22,20,412,2121,1964,990,2997,101,840,2997,101,949,140,14,125,0,35,52,67,148,172,155,251,146,74,88,58,317,104,477,212,131,108,391]
["Northfield",13100,"54260",18299.62,186.06,1671,4263,1165,1514,2080,2183,4240,13,2,8,0,16,1088,531,865,740,397,286,209,147,4252,3785,11,2.8084544253632759,3.2489270386266096,253,961,204,96,1671,1514,157,1074,440,59,14,65,960,478,233,847,49,233,55,347,38,367,547,348,416,11,204,632,562,269,20,84,96,320,311,368,236,61,15,31563,0,0,9,26,21,15,8,0,0,6,14,19,56,111,112,61,0,0,0,0,5,96,86,129,96,13,15,8,0,0,53,47,66,40,17,0,0,5,17,24,24,22,31,18,0,6,45,35,60,13,10,0,13,0,0,20,11,5,9,14,0,0,0,812,2701,2066,478,4219,83,2629,4219,83,1831,264,8,79,25,110,104,96,320,311,368,236,61,15,0,39,328,166,381,235,35,78,416]
["Pembroke",13105,"60020",14486.98,110.27,2536,6561,1812,2444,3250,3311,6502,22,15,12,10,39,1544,812,1385,1127,648,492,336,217,6561,5734,0,2.6845335515548281,3.1644591611479029,474,1527,285,158,2536,2444,92,1658,786,52,19,3,1472,948,116,1348,235,116,94,658,34,558,704,568,668,8,311,750,1062,367,28,123,131,350,420,535,553,170,85,39059,0,18,9,38,17,11,0,0,0,0,25,9,92,182,180,193,44,9,8,7,6,77,93,161,195,16,25,10,0,0,44,71,79,102,62,19,0,11,23,36,39,88,46,22,20,0,9,39,47,18,10,17,19,12,10,53,45,16,0,6,0,7,0,1151,4221,3549,1018,6301,202,3734,6301,202,3107,332,11,82,8,76,151,131,350,420,535,553,170,58,27,18,540,168,536,208,208,152,668]
["Pittsfield",13110,"61940",15440.24,118.46,1527,3701,1010,1337,1789,1912,3682,8,5,3,3,25,885,553,680,544,352,311,197,179,3680,3268,21,2.7524308152580406,3.2356435643564359,256,798,212,71,1527,1337,190,843,494,114,31,26,776,591,160,667,53,160,42,426,26,338,408,228,573,25,181,561,498,282,61,140,87,282,267,277,174,40,5,29627,0,9,6,32,22,24,9,0,0,0,50,9,52,75,62,75,12,0,5,0,13,50,68,84,37,8,5,7,8,9,35,24,55,29,13,0,6,0,21,41,49,25,18,7,0,15,20,19,57,20,16,6,0,0,28,53,10,15,9,11,0,0,0,656,2278,1646,255,3675,25,2395,3675,25,1204,326,0,122,0,74,201,87,282,267,277,174,40,5,0,97,241,152,256,88,85,55,573]
["Salisbury",13115,"66980",25318.42,149.87,422,1061,306,378,547,514,1060,0,1,0,0,7,244,126,181,204,135,77,59,35,1061,974,0,2.806878306878307,3.1830065359477122,58,275,31,14,422,378,44,350,28,2,1,33,385,10,27,322,6,27,23,2,3,89,127,92,113,0,21,142,171,87,12,21,22,51,66,112,80,6,8,36771,0,0,0,9,0,0,0,0,0,0,3,0,7,19,26,12,2,2,6,3,3,8,11,45,19,4,2,3,0,2,3,15,16,28,0,2,3,2,2,9,11,15,12,0,0,0,2,4,8,8,3,7,0,2,0,11,11,7,2,7,2,0,0,193,695,580,131,1056,7,639,1056,7,444,59,0,4,0,20,33,22,51,66,112,80,6,8,0,9,80,40,87,43,31,18,113]
["Sutton",13120,"75460",27233.59,501.19,776,1457,423,559,743,714,1440,3,2,6,6,4,316,132,247,264,170,159,109,60,1457,1284,0,2.6064400715563507,3.0354609929078014,104,374,49,32,776,559,217,485,74,9,6,185,722,28,26,461,11,26,55,14,5,152,187,154,283,8,52,199,329,188,17,14,37,88,116,125,89,37,30,35536,0,0,0,0,0,3,2,5,0,3,0,0,12,27,41,14,3,3,5,2,12,26,18,40,29,10,2,3,3,3,12,18,16,23,4,19,4,0,0,7,28,13,18,13,6,0,1,17,22,21,6,3,0,0,2,8,5,9,4,6,0,2,0,234,1009,891,307,1434,23,523,1434,23,583,81,9,20,10,43,31,37,88,116,125,89,37,20,10,15,137,37,150,101,26,27,283]
["Warner",13125,"78580",35352.339999999997,149.68,1039,2250,627,845,1120,1130,2243,1,1,4,1,15,503,220,414,400,267,213,140,93,2239,1970,11,2.6497041420118341,3.1419457735247209,173,545,82,45,1039,845,194,675,170,21,20,127,758,133,148,583,12,148,53,102,15,150,203,193,493,29,93,349,360,208,18,49,53,162,102,179,203,46,32,37917,2,3,0,6,0,6,2,0,0,0,3,8,46,39,34,50,3,7,0,4,2,35,29,65,50,16,13,3,11,7,18,12,29,45,14,6,5,2,13,16,10,29,38,10,2,5,14,11,24,8,15,12,2,2,3,12,12,17,4,1,6,1,2,363,1527,1298,424,2205,45,1037,2205,45,930,122,7,68,12,53,67,53,162,102,179,203,46,21,11,11,139,62,141,94,62,37,493]
["Webster",13130,"80020",18089.45,336.32,577,1405,392,491,680,725,1399,1,2,3,0,5,328,143,275,282,156,94,74,53,1393,1259,12,2.8370672097759675,3.2117346938775508,74,345,47,25,577,491,86,440,51,0,5,65,529,11,37,408,6,37,39,5,7,115,163,170,129,8,38,123,302,106,5,21,27,70,82,153,111,13,15,40043,0,2,0,7,0,3,0,0,0,0,0,3,15,30,27,30,4,0,0,0,3,14,16,67,38,3,7,0,2,0,7,5,38,27,3,8,5,2,5,8,15,10,10,0,0,0,8,9,15,14,6,0,0,0,0,7,7,4,2,2,6,3,0,262,941,847,225,1387,18,833,1387,18,579,112,6,2,6,50,26,27,70,82,153,111,13,13,2,31,84,45,118,125,29,16,129]
["Wilmot",13135,"84900",18819.189999999999,136.19,458,935,268,359,463,472,921,2,7,5,0,1,204,85,145,174,121,85,63,58,935,823,0,2.604456824512535,3.0708955223880596,74,232,36,17,458,359,99,319,40,5,8,73,417,22,19,301,8,19,23,13,4,67,157,72,169,10,43,130,168,114,15,31,17,52,50,55,93,24,9,37000,0,0,0,2,0,0,0,0,0,3,0,2,18,10,14,13,0,2,2,2,4,5,14,28,33,6,0,7,7,0,8,11,6,19,4,7,0,2,4,9,0,1,20,11,0,1,2,4,8,6,6,3,3,0,2,18,3,2,9,0,5,0,0,186,646,559,212,915,10,411,915,10,374,34,2,10,0,47,46,17,52,50,55,93,24,4,5,0,67,45,112,30,36,6,169]
[]
[]
[]
[]
[]
[]
[]
[]
[]
[]
[]
[]
[]
[]
[]
[]
[]
[]
["Census 1990 Data -    Query Name:  CountySTF1Qry1"]
["NAME","COUSUBFP","Census_Cnty_Code","FIPS","LandAcres","WaterAcres","HousingUnits90Cen","P01Persons90Cen","P02Families90Cen","P03Households90cen","P05MalePop90cen","P05FemalePop90cen","P06WhitePop","P06BlackPop","P06AmerIndianPop","P06AsianPIPop","P06OtherRacePop","P08HispanicOrPop","P11AgeUnder15_90cen","P11Age15to24_90cen","P11Age25to34_90cen","P11Age35to44_90cen","P11Age45to54_90cen","P11Age55to64_90cen","P11Age65to74_90cen","P11Age75andOver_90cen","P15PersonsInHH90cen","P15PersonsInFamHH90cen","P15PersonsInGC","PersonsPerHH90cen","PersonsPerFam90Cen","P16SinglePersonHH90cen","P16MarriedCoupleHH90cen","P16SingleParentHH90cen","P16NonFamilyHH90cen","H01TotalHousingUnits","H02OccupiedHousingUnits","H02VacantHousingUnits","H03OwnerOccHU","H03RenterOccHU","H05VacantForRent90","H05VacantForSale90","H05VacantSeasonalRec","H23OOHUVal<15k","H23OOHUVal15to19k","H23OOHUVal20to24k","H23OOHUVal25to29k","H23OOHUVal30to34k","H23OOHUVal35to39k","H23OOHUVal40to44k","H23OOHUVal45to49k","H23OOHUVal50to59k","H23OOHUVal60to74k","H23OOHUVal75to99k","H23OOHUVal100to124k","H23OOHUVal125to149k","H23OOHUVal150to174k","H23OOHUVal175to199k","H23OOHUVal200to249k","H23OOHUVal250to299k","H23OOHUVal300to399k","H23OOHUVal400to499k","H23OOHUVal500kOrMore","H23BOOHUMedVal","H41SingFamHU90cen","H41MultiFamHU90cen","H41MobileHom90cen","H43SingFamOwnHU90cen","H43MultiFamOwnHU90cen","H43MobileHomOwnHU90cen","H43SingFamRntrHU90cen","H43MultiFamRntrHU90cen","H43MobileHomRntrHU90cen","H41HU1UnitDet","H41HU1UnitAtt","H41HU2Unit","H41HU3to4Unit","H41HU5to9Unit","H41HU10to19Unit","H41HU20to49Unit","H41HU50PlusUnit","H41HUMobilH","H41HUOther"]
["Allenstown",701,13005,"00660",13097.95,69.48,1868,4649,1253,1762,2301,2348,4587,24,9,24,5,25,1104,557,1093,692,426,360,238,179,4649,3987,0,2.6384790011350736,3.1819632881085393,399,1035,218,110,1868,1762,106,1305,457,33,46,8,1,1,0,0,3,1,2,1,5,30,200,200,107,32,12,7,4,1,0,0,107400,701,542,625,645,113,547,38,392,27,701,42,185,106,158,10,41,0,610,15]
["Andover",702,13010,"01460",25720.11,551.4,855,1883,524,686,931,952,1856,4,5,17,1,12,416,224,278,334,216,159,147,109,1874,1658,9,2.7317784256559765,3.16412213740458,122,459,65,40,855,686,169,581,105,8,11,123,1,0,1,0,1,1,5,5,11,33,100,75,37,25,15,8,4,1,0,0,101200,693,59,103,492,14,75,62,35,8,693,11,29,13,6,0,0,0,84,19]
["Boscawen",703,13015,"06260",15912.75,339.31,1221,3586,887,1153,1751,1835,3544,16,9,16,1,20,680,458,630,520,336,305,275,382,3095,2743,491,2.6843018213356462,3.0924464487034951,197,719,168,69,1221,1153,68,866,287,21,17,5,1,0,0,2,2,2,8,2,7,35,190,158,72,38,16,7,1,2,0,0,103600,742,266,213,662,45,159,55,192,40,742,18,99,85,50,14,0,0,200,13]
["Bow",704,13020,"06500",18029.64,239.65,1860,5500,1613,1813,2744,2756,5454,9,2,26,9,17,1338,607,657,1192,762,481,287,176,5500,5252,0,3.033645890788748,3.2560446373217609,160,1482,131,40,1860,1813,47,1739,74,3,26,4,2,3,0,5,4,3,2,2,7,22,84,175,281,284,240,280,75,34,8,7,164900,1825,30,5,1717,17,5,62,12,0,1825,12,8,9,1,0,0,0,4,1]
["Bradford",705,13025,"06980",22549.14,444.54,757,1405,389,514,718,687,1401,1,1,0,2,9,335,167,235,258,131,128,91,60,1405,1242,0,2.7334630350194553,3.1928020565552697,97,339,50,28,757,514,243,409,105,16,7,184,2,2,0,0,0,0,3,4,10,19,58,53,38,25,5,8,5,2,0,0,109000,634,70,53,372,11,26,60,40,5,634,7,18,31,11,3,0,0,37,16]
["Canterbury",706,13030,"09860",28123.99,572.6,724,1687,484,606,848,839,1671,6,2,8,0,4,393,150,223,426,197,137,94,67,1680,1510,7,2.7722772277227721,3.1198347107438016,85,428,56,37,724,606,118,535,71,2,15,89,2,2,3,0,3,1,0,1,6,14,39,68,50,40,37,18,3,4,0,0,128300,663,35,26,511,11,13,46,22,3,663,12,21,1,0,1,0,0,20,6]
["Chichester",707,13035,"12420",13564.57,63.53,724,1942,545,679,964,978,1928,1,5,8,0,5,467,219,324,366,233,173,85,75,1942,1776,0,2.8600883652430045,3.2587155963302754,109,484,61,25,724,679,45,606,73,13,9,8,1,1,0,0,0,1,1,1,7,15,83,109,83,43,16,16,3,1,0,0,118500,607,61,56,544,19,43,38,31,4,607,12,26,23,0,0,0,0,52,4]
["Concord",708,13040,"14200",40933.93,2065.85,15697,36006,8782,14222,17466,18540,35350,226,101,243,86,356,6996,4970,7373,5805,3117,2690,2445,2610,33471,26684,2535,2.3534664604134439,3.0384878159872466,4321,6944,1838,1119,15697,14222,1475,7443,6779,996,210,72,15,12,19,22,17,14,24,29,79,330,1227,1589,771,393,216,199,106,62,16,10,112400,6014,8439,1244,5262,1215,966,549,6037,193,6014,685,1819,1496,1058,1250,1750,381,1046,198]
["Danbury",709,13045,"16980",24161.8,181.59,541,881,245,333,450,431,872,2,3,0,4,9,203,95,157,145,82,88,68,43,881,769,0,2.6456456456456459,3.1387755102040815,68,205,40,20,541,333,208,296,37,10,17,166,3,3,1,0,4,2,4,6,19,35,55,17,10,4,1,3,1,0,0,1,78400,444,18,79,251,3,42,22,9,6,444,4,5,9,0,0,0,0,71,8]
["Dunbarton",710,13050,"19460",19734.04,311.60000000000002,685,1759,501,642,904,855,1746,0,8,5,0,6,393,191,319,357,219,142,88,50,1759,1587,0,2.7398753894080996,3.1676646706586826,117,448,53,24,685,642,43,568,74,10,11,16,0,0,0,1,1,4,1,3,14,8,47,73,89,49,31,32,7,6,0,3,134100,619,43,23,539,10,19,43,27,4,619,8,14,20,1,0,0,0,18,5]
["Epsom",711,13055,"24900",22066.77,85.96,1396,3591,968,1251,1755,1836,3565,8,10,8,0,18,783,467,621,605,347,272,236,260,3493,3130,98,2.7921662669864107,3.2334710743801653,222,857,111,61,1396,1251,145,1024,227,31,32,73,1,1,1,1,2,1,4,4,9,19,137,182,108,64,23,15,4,3,1,0,115100,927,162,307,769,14,241,65,127,35,927,17,58,24,14,12,37,0,284,23]
["Franklin",712,13060,"27380",17708.91,952.65,3744,8304,2162,3143,3941,4363,8230,15,10,43,6,53,1916,1098,1394,1164,741,709,616,666,8109,6936,195,2.5800190900413615,3.208140610545791,836,1707,455,145,3744,3143,601,1876,1267,289,33,191,6,1,7,5,3,9,12,13,87,213,603,247,101,49,24,16,6,3,2,1,89400,1951,1547,246,1552,166,158,143,1076,48,1951,47,382,329,316,322,151,0,218,28]
["Henniker",713,13065,"35540",28231.91,439.83,1558,4151,905,1405,2132,2019,4087,20,6,25,13,48,822,1099,685,709,292,224,187,133,3580,2866,571,2.5480427046263343,3.1668508287292818,351,758,147,149,1558,1405,153,949,456,34,27,54,0,1,1,2,3,3,1,1,5,20,108,181,146,73,35,36,11,5,2,3,124000,998,441,119,819,57,73,87,339,30,998,52,74,99,137,79,0,0,95,24]
["Hill",714,13070,"35860",17068.46,38.61,360,814,237,300,395,419,812,0,0,2,0,3,188,83,143,144,77,79,62,38,814,743,0,2.7133333333333334,3.1350210970464136,55,197,40,8,360,300,60,278,22,1,2,48,0,0,2,0,4,6,2,4,11,17,71,37,16,7,2,1,0,2,0,0,90800,310,12,38,240,7,31,14,5,3,310,7,1,3,1,0,0,0,35,3]
["Hooksett",715,13075,"37300",23164.34,596.23,3484,8767,2492,3253,4365,4402,8618,48,5,89,7,42,1852,1062,1738,1530,1004,740,537,304,8767,7748,0,2.695050722410083,3.1091492776886036,553,2127,365,208,3484,3253,231,2551,702,129,70,13,8,0,4,1,1,2,3,6,14,31,245,569,452,261,156,92,31,11,0,4,128400,2043,1102,339,1843,431,277,148,521,33,2043,311,237,176,72,20,286,0,270,69]
["Hopkinton",716,13080,"37540",27698.32,1153.29,1924,4806,1390,1759,2358,2448,4782,6,1,16,1,10,1036,522,597,930,660,418,396,247,4806,4339,0,2.7322342239909041,3.1215827338129496,293,1263,127,76,1924,1759,165,1525,234,21,28,91,1,1,2,5,2,4,2,6,17,34,141,198,186,137,103,123,69,74,11,6,144900,1658,179,87,1425,42,58,112,107,15,1658,42,52,32,53,0,0,0,57,30]
["Loudon",717,13085,"43380",29452.44,444.13,1476,4114,1156,1376,2045,2069,4095,5,8,6,0,18,1063,473,886,716,416,299,160,101,4114,3814,0,2.9898255813953489,3.2993079584775087,151,1014,142,69,1476,1376,100,1237,139,14,22,41,1,1,0,1,1,1,5,6,13,48,171,241,133,48,26,15,6,8,1,1,112000,1106,99,271,965,32,240,65,60,14,1106,17,37,13,19,13,0,0,260,11]
["Newbury",718,13090,"50900",22917.85,1464.69,1184,1347,389,506,680,667,1338,3,4,2,0,2,319,120,226,248,143,122,112,57,1347,1204,0,2.6620553359683794,3.0951156812339331,95,342,47,22,1184,506,678,425,81,14,52,548,0,0,1,1,0,3,1,0,3,18,58,51,40,43,30,25,9,17,9,7,138800,1137,23,24,414,3,8,71,9,1,1137,15,5,2,0,1,0,0,17,7]
["New London",719,13095,"52100",14304.58,1963.28,1806,3180,876,1265,1323,1857,3157,7,0,16,0,11,426,518,259,406,307,397,425,442,2844,2409,336,2.2482213438735177,2.75,352,776,100,37,1806,1265,541,1031,234,20,25,461,0,0,0,0,0,0,0,0,1,6,17,46,96,105,89,117,112,83,22,46,204300,1425,355,26,848,171,12,103,123,8,1425,137,75,42,49,24,28,0,0,26]
["Northfield",720,13100,"54260",18299.62,186.06,1671,4263,1165,1514,2080,2183,4240,13,2,8,0,16,1088,531,865,740,397,286,209,147,4252,3785,11,2.8084544253632759,3.2489270386266096,253,961,204,96,1671,1514,157,1074,440,59,14,65,0,0,2,0,2,4,6,6,26,64,277,172,95,32,14,12,1,2,0,0,97300,960,478,233,847,49,178,55,347,38,960,30,69,72,119,16,172,0,231,2]
["Pembroke",721,13105,"60020",14486.98,110.27,2536,6561,1812,2444,3250,3311,6502,22,15,12,10,39,1544,812,1385,1127,648,492,336,217,6561,5734,0,2.6845335515548281,3.1644591611479029,474,1527,285,158,2536,2444,92,1658,786,52,19,3,5,0,0,0,1,2,2,5,9,24,234,438,280,130,70,46,13,5,0,0,120000,1472,948,116,1348,235,75,94,658,34,1472,117,328,216,192,27,6,62,99,17]
["Pittsfield",722,13110,"61940",15440.24,118.46,1527,3701,1010,1337,1789,1912,3682,8,5,3,3,25,885,553,680,544,352,311,197,179,3680,3268,21,2.7524308152580406,3.2356435643564359,256,798,212,71,1527,1337,190,843,494,114,31,26,2,2,0,5,5,3,6,5,19,44,189,121,63,29,8,9,3,4,0,0,97200,776,591,160,667,53,123,42,426,26,776,18,99,189,122,105,58,0,152,8]
["Salisbury",723,13115,"66980",25318.42,149.87,422,1061,306,378,547,514,1060,0,1,0,0,7,244,126,181,204,135,77,59,35,1061,974,0,2.806878306878307,3.1830065359477122,58,275,31,14,422,378,44,350,28,2,1,33,1,1,0,3,1,1,2,2,4,9,62,53,37,24,4,2,4,0,0,0,109000,385,10,27,322,6,22,23,2,3,385,2,5,3,0,0,0,0,20,7]
["Sutton",724,13120,"75460",27233.59,501.19,776,1457,423,559,743,714,1440,3,2,6,6,4,316,132,247,264,170,159,109,60,1457,1284,0,2.6064400715563507,3.0354609929078014,104,374,49,32,776,559,217,485,74,9,6,185,1,0,0,1,3,1,3,1,16,19,62,64,43,40,22,27,14,7,3,7,123400,722,28,26,461,11,13,55,14,5,722,7,19,1,0,1,0,0,12,14]
["Warner",725,13125,"78580",35352.339999999997,149.68,1039,2250,627,845,1120,1130,2243,1,1,4,1,15,503,220,414,400,267,213,140,93,2239,1970,11,2.6497041420118341,3.1419457735247209,173,545,82,45,1039,845,194,675,170,21,20,127,3,1,3,2,4,6,4,7,14,26,85,78,76,49,21,30,4,1,1,0,116800,758,133,148,583,12,80,53,102,15,758,11,19,53,31,19,0,0,134,14]
["Webster",726,13130,"80020",18089.45,336.32,577,1405,392,491,680,725,1399,1,2,3,0,5,328,143,275,282,156,94,74,53,1393,1259,12,2.8370672097759675,3.2117346938775508,74,345,47,25,577,491,86,440,51,0,5,65,0,0,0,1,1,2,2,2,4,6,71,73,66,34,11,14,7,1,0,0,120000,529,11,37,408,6,26,39,5,7,529,5,4,1,0,1,0,0,32,5]
["Wilmot",727,13135,"84900",18819.189999999999,136.19,458,935,268,359,463,472,921,2,7,5,0,1,204,85,145,174,121,85,63,58,935,823,0,2.604456824512535,3.0708955223880596,74,232,36,17,458,359,99,319,40,5,8,73,1,0,3,1,5,1,3,2,4,12,28,33,47,21,13,11,8,5,0,0,128200,417,22,19,301,8,10,23,13,4,417,4,4,4,10,0,0,0,14,5]
[]
[]
[]
[]
[]
[]
[]
[]
[]
[]
[]
[]
[]
[]
[]
[]
[]
[]
[]
["Census 1990 Data -          Query Name: CountySTF3Qry1"]
[]
["NAME","FIPS","COUSUBFP","LandAcres","WaterAcres","HousingUnits90Cen","P01Persons90Cen","P02Families90Cen","P03Households90cen","H25HU<5yrs90cen","H25HU5to20yrs90cen","H25HU20to50yrs90cen","H25HU>50yrs90cen","H31Units0Bedroom90cen","H31Units1Bedroom90cen","H31Units2Bedroom90cen","H31Units3Bedroom90cen","H31Units4Bedroom90cen","H31Units5+Bedroom90cen","P80HI<5K","P80HI5Kto10K","P80HI10Kto15K","P80HI15Kto25K","P80HI25Kto35K","P80HI35Kto50K","P80HI50Kto75K","P80HI75Kto100K","P80HI>100K","P80AMedHI","P86HH<25HI<5K","P86HH<25HI5Kto10K","P86HH<25HI10Kto15K","P86HH<25HI15Kto25K","P86HH<25HI25Kto35K","P86HH<25HI35Kto50K","P86HH<25HI50Kto75K","P86HH<25HI75Kto100K","P86HH<25HI>100K","P86HH25to34HI<5K","P86HH25to34HI5Kto10K","P86HH25to34HI10Kto15K","P86HH25to34HI15Kto25K","P86HH25to34HI25Kto35K","P86HH25to34HI35Kto50K","P86HH25to34HI50Kto75K","P86HH25to34HI75Kto100K","P86HH25to34HI>100K","P86HH35to44HI<5K","P86HH35to44HI5Kto10K","P86HH35to44HI10Kto15K","P86HH35to44HI15Kto25K","P86HH35to44HI25Kto35K","P86HH35to44HI35Kto50K","P86HH35to44HI50Kto75K","P86HH35to44HI75Kto100K","P86HH35to44HI>100K","P86HH45to54HI<5K","P86HH45to54HI5Kto10K","P86HH45to54HI10Kto15K","P86HH45to54HI15Kto25K","P86HH45to54HI25Kto35K","P86HH45to54HI35Kto50K","P86HH45to54HI50Kto75K","P86HH45to54HI75Kto100K","P86HH45to54HI>100K","P86HH55to64HI<5K","P86HH55to64HI5Kto10K","P86HH55to64HI10Kto15K","P86HH55to64HI15Kto25K","P86HH55to64HI25Kto35K","P86HH55to64HI35Kto50K","P86HH55to64HI50Kto75K","P86HH55to64HI75Kto100K","P86HH55to64HI>100K","P86HH65to74HI<5K","P86HH65to74HI5Kto10K","P86HH65to74HI10Kto15K","P86HH65to74HI15Kto25K","P86HH65to74HI25Kto35K","P86HH65to74HI35Kto50K","P86HH65to74HI50Kto75K","P86HH65to74HI75Kto100K","P86HH65to74HI>100K","P86HH>75HI<5K","P86HH>75HI5Kto10K","P86HH>75HI10Kto15K","P86HH>75HI15Kto25K","P86HH>75HI25Kto35K","P86HH>75HI35Kto50K","P86HH>75HI50Kto75K","P86HH>75HI75Kto100K","P86HH>75HI>100K","P54SchlEnrlPrePrim","P54SchlEnrlElemThrHS","P54SchlEnrlCollege","P54NotEnrlInSch","P57Pop25andOver","P57LessThan9thGrade","P579thto12thNoDip","P57HSGrad","P57SomeCollege","P57AssocDeg","P57BachelDeg","P57GradorProfDeg","P57HSGradorHigher","P57CollGradorHigher","P42NativePop","P42ForeignBornPop","P42BornStateOfRes","P37NativePop2","P37ForeignBornPop2","P49DroveAlone","P49CarPooled","P49PublicTranspt","P49Walked","P49OtherMeans","P49WorkedAtHome","P80HHInc<10K","P80HHInc10to15K","P80HHInc15to25K","P80HHInc25to35K","P80HHInc35to50K","P80HHInc50to75K","P80HHInc75to100K","P80HHInc100to150K","P80HHInc>150K","H25YearStBlt89to90","H25YearStBlt85to88","H25YearStBlt80to84","H25YearStBlt70to79","H25YearStBlt60to69","H25YearStBlt50to59","H25YearStBlt40to49","H25YearStBlt39earlier","P107FamInc<10K","P107FamInc10to15K","P107FamInc15to25K","P107FamInc25to35K","P107FamInc35to50K","P107FamInc50to75K","P107FamInc75to100K","P107FamInc100to150K","P107FamInc>150K","P107AMedFamInc","P110NonFamInc<10K","P110NonFamInc10to15K","P110NonFamInc15to25K","P110NonFamInc25to35K","P110NonFamInc35to50K","P110NonFamInc50to75K","P110NonFamInc75to100K","P110NonFamInc100to150K","P110NonFamInc>150K","P110AMedNonFamInc","H16HU1Room","H16HU2Room","H16HU3Room","H16HU4Room","H16HU5Room","H16HU6Room","H16HU7Room","H16HU8Room","H16HU9+Room","H43GrossRnt<100","H43GrossRnt100to149","H43GrossRnt150to199","H43GrossRnt200to249","H43GrossRnt250to299","H43GrossRnt300to349","H43GrossRnt350to399","H43GrossRnt400to449","H43GrossRnt450to499","H43GrossRnt500to549","H43GrossRnt550to599","H43GrossRnt600to649","H43GrossRnt650to699","H43GrossRnt700to749","H43GrossRnt750to999","H43GrossRnt1000Plus","H43NoCashRent","H43MedGrossRent","H51GrossRnt<20PctHHInc","H51GrossRnt20to24PctHHInc","H51GrossRnt25to29PctHHInc","H51GrossRnt30to34PctHHInc","H51GrossRnt35PctOrMoreHHInc","H51GrossRntAsPctHHIncNotComp","H52HUwMtgMoOwnCst<200","H52HUwMtgMoOwnCst200to299","H52HUwMtgMoOwnCst300to399","H52HUwMtgMoOwnCst400to499","H52HUwMtgMoOwnCst500to599","H52HUwMtgMoOwnCst600to699","H52HUwMtgMoOwnCst700to799","H52HUwMtgMoOwnCst800to899","H52HUwMtgMoOwnCst900to999","H52HUwMtgMoOwnCst1000to1249","H52HUwMtgMoOwnCst1250to1499","H52HUwMtgMoOwnCst1500to1999","H52HUwMtgMoOwnCst2000More","H52HUwNoMtgMoOwnCst<100","H52HUwNoMtgMoOwnCst100to149","H52HUwNoMtgMoOwnCst150to199","H52HUwNoMtgMoOwnCst200to249","H52HUwNoMtgMoOwnCst250to299","H52HUwNoMtgMoOwnCst300to349","H52HUwNoMtgMoOwnCst350to399","H52HUwNoMtgMoOwnCst400More","H52AMedMoOwnCstWMortg","H52AMedMoOwnCstWNoMortg","H58HUwMtgMOC<20pHHInc","H58HUwMtgMOC20to24pHHInc","H58HUwMtgMOC25to29pHHInc","H58HUwMtgMOC30to34pHHInc","H58wMtgMOC>35pHHInc","H58HUwMtgMOCNotComp","H58HUwNoMtgMOC<20pHHInc","H58HUwNoMtgMOC20to24pHHInc","H58HUwNoMtgMOC25to29pHHInc","H58HUwNoMtgMOC30to34pHHInc","H58wNoMtgMOC>35pHHInc","H58HUwNoMtgMOCNotComp","H61OOHUVal<15k","H61OOHUVal15to19k","H61OOHUVal20to24k","H61OOHUVal25to29k","H61OOHUVal30to34k","H61OOHUVal35to39k","H61OOHUVal40to44k","H61OOHUVal45to49k","H61OOHUVal50to59k","H61OOHUVal60to74k","H61OOHUVal75to99k","H61OOHUVal100to124k","H61OOHUVal125to149k","H61OOHUVal150to174k","H61OOHUVal175to199k","H61OOHUVal200to249k","H61OOHUVal250to299k","H61OOHUVal300to399k","H61OOHUVal400to499k","H61OOHUVal500kOrMore","H61aOOHUMedVal"]
[]
[]
[]
[]
[]
[]
[]
[]
[]
[]
[]
[]
[]
[]
[]
["Other Demo Data -             Query Name: QryAllTowns-ACSDemographicSheet",null,null,null,"2023-01-25"]
[]
["TOWN_NAME","FIPS","TOWNCNTY","COUSUB","POP80","POP90CDCEN","POP2000CEN","POP2010CEN","POP2020CEN","POP2025-Proj","POP2030-Proj","POP2035-Proj","SF80","MF80","MH80","SF81","MF81","MH81","SF82","MF82","MH82","SF83","MF83","MH83","SF84_OSP","MF84_OSP","MH84_OSP","SF85_OSP","MF85_OSP","MH85_OSP","SF86_OSP","MF86_OSP","MH86_OSP","SF87_OSP","MF87_OSP","MH87_OSP","SF88_OSP","MF88_OSP","MH88_OSP","SF89_OSP","MF89_OSP","MH89_OSP","SF90_OSP","MF90_OSP","MH90_OSP","SF91_OSP","MF91_OSP","MH91_OSP","SF92_OSP","MF92_OSP","MH92_OSP","SF93_OSP","MF93_OSP","MH93_OSP","SF94_OSP","MF94_OSP","MH94_OSP","SF95_OSP","MF95_OSP","MH95_OSP","SF96_OSP","MF96_OSP","MH96_OSP","SF97_OSP","MF97_OSP","MH97_OSP","SF98_OSP","MF98_OSP","MH98_OSP","SF99_OSP","MF99_OSP","MH99_OSP","SF00_OSP","MF00_OSP","MH00_OSP","SF01_OSP","MF01_OSP","MH01_OSP","SF02_OSP","MF02_OSP","MH02_OSP","SF03_OSP","MF03_OSP","MH03_OSP","SF04_OSP","MF04_OSP","MH04_OSP","SF05_OSP","MF05_OSP","MH05_OSP","SF06_OSP","MF06_OSP","MH06_OSP","SF07_OSP","MF07_OSP","MH07_OSP","SF08_OSP","MF08_OSP","MH08_OSP","SF09_OSP","MF09_OSP","MH09_OSP","SF10_OSP","MF10_OSP","MH10_OSP","SF11_OSP","MF11_OSP","MH11_OSP","SF12_OSP","MF12_OSP","MH12_OSP","SF13_OSP","MF13_OSP","MH13_OSP","SF14_OSP","MF14_OSP","MH14_OSP","SF15_OSP","MF15_OSP","MH15_OSP","SF16_OSP","MF16_OSP","MH16_OSP","SF17_OSP","MF17_OSP","MH17_OSP","SF18_OSP","MF18_OSP","MH18_OSP","SF19_OSP","MF19_OSP","MH19_OSP","SF20_OSP","MF20_OSP","MH20_OSP","SF20 Census_OSP","MF20 Census OSP","MH20 Census_OSP","SF21_OSP","MF21_OSP","MH21_OSP","COMMENTS","CNTY_CODE"]
["Allenstown",13005,701,"00660",4398,4649,4843,4322,4707,4883,5031,5131,4,0,0,2,0,0,2,0,2,3,0,0,2,74,3,24,76,3,52,35,0,11,2,0,29,7,17,13,1,0,3,1,0,4,0,0,4,0,0,17,0,2,6,0,11,5,0,18,2,0,40,2,0,15,10,7,38,9,1,30,3,0,24,8,2,17,7,1,14,1,2,7,9,0,7,9,0,0,16,0,11,9,0,14,-3,0,11,4,0,5,3,0,3,-1,2,3,1,0,1,3,-6,0,0,0,2,1,8,-1,1,0,9,9,0,-3,8,0,0,5,0,2,3,39,7,null,null,null,3,0,8,"",7]
["Andover",13010,702,"01460",1587,1883,2109,2371,2406,2493,2567,2616,3,0,1,7,0,1,5,0,1,8,0,2,2,0,3,3,2,1,22,2,-2,37,3,4,25,1,2,13,0,15,10,3,1,10,0,4,5,0,5,-1,0,2,0,2,4,7,0,9,11,0,0,9,-1,0,8,0,1,8,0,2,7,0,6,16,0,0,10,0,-1,14,2,-2,17,0,0,18,0,-5,11,0,0,6,1,-2,5,0,0,2,0,1,3,0,0,1,0,0,0,0,0,1,0,0,1,0,0,2,0,0,4,0,1,1,0,0,1,0,0,4,0,0,2,0,0,null,null,null,0,0,5,"",7]
["Boscawen",13015,703,"06260",3435,3586,3672,3965,3998,4143,4265,4346,4,0,0,3,0,0,1,0,0,16,1,4,8,0,9,43,0,3,16,0,11,8,0,3,2,0,2,7,0,5,5,0,4,3,0,3,4,0,3,3,0,-2,3,3,4,3,3,11,1,0,3,8,2,1,6,0,2,6,0,0,12,0,0,16,0,0,10,6,-1,8,4,0,18,0,7,21,3,0,22,0,2,5,0,0,4,0,0,0,0,0,2,0,0,1,1,-1,0,0,0,4,-2,0,7,-1,0,3,0,-4,0,50,0,6,0,0,5,1,-5,7,0,-1,6,2,0,null,null,null,4,2,6,"",7]
["Bow",13020,704,"06500",4015,5500,7138,7519,8229,8530,8783,8953,33,0,0,17,0,0,27,0,0,35,0,0,58,0,0,117,0,0,157,0,0,109,63,0,46,0,0,45,0,0,31,0,0,31,0,0,37,0,0,47,0,0,49,0,0,65,0,0,91,0,0,54,0,0,42,0,0,32,1,0,34,0,0,30,1,0,56,75,0,28,56,0,22,9,0,17,20,0,11,0,0,4,12,0,11,0,0,0,0,0,31,0,0,5,0,0,19,0,0,16,0,0,9,16,0,16,0,0,27,0,0,18,5,0,17,0,0,20,0,0,12,1,0,null,null,null,20,1,0,"",7]
["Bradford",13025,705,"06980",1115,1405,1454,1650,1662,1722,1773,1807,0,0,0,4,0,0,0,0,0,6,0,2,3,0,2,6,0,0,11,0,0,17,0,0,7,0,3,5,0,1,4,0,3,8,0,0,4,0,0,0,0,0,1,0,0,1,0,0,1,0,2,0,0,2,8,0,1,10,0,1,10,0,4,6,0,7,16,0,2,14,0,0,9,0,0,17,0,1,7,0,0,12,0,0,0,0,0,1,0,0,4,0,0,1,0,0,5,0,0,4,0,0,2,0,1,5,0,0,2,0,0,2,0,0,3,0,0,5,0,0,11,0,0,null,null,null,5,0,0,"",7]
["Canterbury",13030,706,"09860",1410,1687,1979,2352,2389,2473,2543,2591,17,0,0,14,2,0,18,0,0,14,0,0,16,0,0,25,0,0,25,0,0,22,0,0,24,0,0,25,0,0,5,1,0,12,0,0,10,0,0,4,0,0,12,0,0,13,0,0,7,0,0,7,0,0,18,0,0,20,0,0,20,0,0,15,0,0,27,0,0,32,2,0,24,0,0,14,0,0,12,2,0,13,0,0,5,0,0,4,1,0,2,1,0,4,0,-1,0,0,0,4,0,0,4,0,0,2,0,0,5,0,0,5,0,0,6,0,0,8,0,0,13,0,0,null,null,null,9,0,0,"",7]
["Chichester",13035,707,"12420",1492,1942,2236,2523,2665,2759,2838,2891,21,0,0,7,0,0,7,0,0,16,2,2,12,0,0,37,0,5,41,2,0,29,0,0,24,0,0,5,0,0,8,0,3,10,0,1,8,0,1,6,0,1,8,0,0,9,0,2,8,0,0,19,0,4,15,0,0,41,0,2,33,0,0,28,0,1,16,0,0,12,0,3,13,0,0,7,1,0,5,0,0,20,0,0,15,0,0,5,1,0,8,3,0,0,0,0,2,0,1,5,0,0,9,0,0,3,-1,1,3,0,0,5,0,2,10,0,0,3,0,0,8,0,1,null,null,null,14,0,0,"",7]
["Concord",13040,708,"14200",30400,36006,40687,42695,43976,45611,46986,47907,93,89,0,49,37,3,41,22,1,81,76,6,97,465,11,496,903,13,442,544,25,395,383,1,82,42,0,39,171,0,69,14,0,58,18,0,40,40,0,49,10,1,67,1,4,43,19,3,31,62,2,29,38,0,62,3,0,73,210,1,99,44,0,111,5,0,155,39,0,100,161,0,131,49,0,76,38,0,58,89,0,52,109,0,16,85,0,20,9,0,10,77,0,-1,16,0,11,-14,0,26,-35,0,31,49,-9,30,140,-1,31,38,10,20,6,8,22,18,6,26,45,14,27,29,0,null,null,null,17,117,0,"",7]
["Danbury",13045,709,"16980",680,881,1071,1164,1250,1293,1328,1352,7,0,6,6,0,2,0,0,0,3,0,2,0,0,0,0,2,3,0,0,0,6,2,5,4,0,3,0,0,0,3,0,0,2,1,2,8,0,4,4,0,2,9,0,4,8,0,5,6,0,4,5,0,4,4,0,1,2,0,4,4,0,1,7,4,0,2,0,7,18,0,0,24,0,0,7,0,0,8,0,2,12,0,0,3,-4,2,-1,0,0,2,0,1,1,0,-3,3,1,1,1,0,0,3,0,0,4,0,0,5,0,2,4,0,1,2,0,0,4,0,2,1,0,0,null,null,null,10,0,0,"",7]
["Dunbarton",13050,710,"19460",1174,1759,2226,2758,3005,3108,3195,3254,5,0,0,8,0,-1,9,0,0,7,0,0,12,0,0,43,11,0,25,4,0,24,1,0,14,1,0,21,0,0,13,0,0,12,2,0,11,0,0,14,0,0,9,0,0,27,0,0,23,0,0,37,4,0,30,2,0,25,2,27,30,2,0,18,0,0,27,0,0,20,0,0,28,0,0,20,0,0,19,0,0,9,2,2,9,0,0,3,0,0,4,0,0,5,0,0,1,0,1,4,2,0,10,0,0,4,0,0,8,0,0,20,2,0,10,0,1,9,3,0,11,2,0,null,null,null,2,8,0,"",7]
["Epsom",13055,711,"24900",2743,3591,4021,4566,4834,5006,5151,5249,13,2,2,8,0,0,26,0,2,21,0,0,40,1,3,59,0,4,45,6,10,31,4,2,19,2,0,30,10,3,16,1,6,18,1,6,16,0,4,17,0,0,12,1,1,16,0,0,21,0,10,15,0,8,18,2,12,19,-2,17,38,2,12,39,0,18,31,0,0,31,1,7,31,0,8,40,0,10,25,12,4,24,4,0,7,2,5,13,2,0,12,1,5,10,3,2,8,2,2,8,5,1,10,2,1,11,2,5,7,0,6,9,2,0,2,0,1,29,1,8,7,2,3,null,null,null,2,0,4,"2002 Did not submit data to OEP. Used Census Data",7]
["Franklin",13060,712,"27380",7901,8304,8405,8477,8741,9055,9319,9496,43,0,1,13,0,1,9,0,0,10,40,1,14,0,2,37,100,2,24,98,5,86,39,6,17,8,0,8,26,2,5,1,3,2,0,2,5,-4,1,2,-2,0,-1,-5,4,2,-3,6,1,2,7,3,0,6,10,0,9,18,0,10,11,0,8,28,0,0,24,2,5,42,-5,7,49,2,9,36,4,3,23,1,7,12,-1,0,11,0,3,4,1,2,2,0,2,3,2,2,3,1,5,0,0,10,9,1,6,0,0,21,1,48,16,2,0,11,5,-6,0,5,-4,2,3,-1,2,null,null,null,4,2,0,"",7]
["Henniker",13065,713,"35540",3246,4151,4433,4836,6185,6393,6567,6684,25,0,3,0,0,0,0,0,0,21,0,0,15,1,2,32,6,2,117,13,3,38,4,0,59,3,6,22,10,0,7,2,0,10,0,0,5,0,3,6,1,1,6,4,3,3,5,0,3,13,3,8,3,2,9,2,3,14,2,0,15,0,0,37,0,4,25,4,1,9,0,0,24,2,0,32,2,1,15,4,0,6,0,0,6,0,0,0,-8,0,-1,1,0,3,0,0,1,0,0,4,0,0,-1,3,-1,5,0,-1,5,0,0,10,14,1,9,0,0,15,0,-1,16,-2,0,null,null,null,5,0,-1,"",7]
["Hill",13070,714,"35860",736,814,992,1089,1017,1054,1085,1106,9,0,0,2,0,0,6,0,0,3,0,1,4,0,0,5,0,0,9,0,0,12,0,1,11,0,5,3,0,1,3,0,-1,2,0,3,8,0,4,3,2,0,0,0,0,5,0,0,3,0,1,2,0,2,4,0,0,5,0,0,8,0,7,3,0,1,7,0,2,10,0,1,6,0,2,3,0,0,4,0,2,7,0,0,2,0,-2,1,0,0,2,0,0,1,0,0,0,0,0,2,0,0,1,0,1,1,0,0,0,0,0,0,1,2,0,0,1,3,0,0,3,0,-1,null,null,null,3,0,0,"",7]
["Hooksett",13075,715,"37300",7303,8767,11721,13451,14871,15430,15899,16214,26,4,0,16,3,0,9,50,1,47,41,6,29,83,9,65,187,0,581,88,0,113,6,0,209,12,0,49,10,0,23,4,1,22,0,0,23,0,0,20,0,0,55,0,0,45,0,0,50,8,0,99,33,0,124,31,3,89,14,0,75,4,0,125,0,0,140,12,0,82,32,0,42,50,22,36,0,19,40,8,24,49,2,23,16,12,0,10,0,1,29,0,0,27,16,0,14,192,-1,33,2,0,15,6,-17,26,0,-1,14,7,0,31,0,0,36,6,0,64,10,0,34,4,0,null,null,null,65,18,0,"",7]
["Hopkinton",13080,716,"37540",3861,4806,5399,5589,5914,6128,6309,6429,23,4,0,20,8,0,19,0,2,39,0,8,40,3,0,53,8,0,45,0,4,57,0,8,59,0,21,9,2,4,3,31,1,11,0,2,14,0,1,11,1,2,11,0,5,14,2,3,15,2,11,18,2,21,19,6,26,21,0,17,16,2,8,19,2,0,21,10,0,29,0,0,18,2,0,13,1,0,10,15,0,8,1,0,8,0,0,8,0,0,5,0,0,4,0,0,3,0,0,8,5,0,5,-1,0,10,0,0,11,0,0,10,0,0,10,9,0,13,0,0,11,2,0,null,null,null,13,4,0,"",7]
["Loudon",13085,717,"43380",2454,4114,4481,5317,5576,5767,5928,6035,43,0,0,46,0,0,29,0,0,64,0,0,45,0,5,45,0,2,52,12,31,44,0,30,44,0,0,45,9,29,40,0,19,15,0,0,17,2,0,10,0,1,15,0,0,21,2,4,29,0,6,24,0,7,25,0,2,42,0,5,41,0,3,48,2,3,47,0,1,47,0,2,36,0,0,32,0,0,32,0,0,37,0,1,38,2,3,13,2,3,6,0,0,1,4,0,10,0,2,20,2,0,20,2,0,24,0,0,29,0,9,30,2,-2,12,4,0,15,8,0,22,2,0,null,null,null,13,4,2,"",7]
["Newbury",13090,718,"50900",961,1347,1702,2072,2172,4554,4683,4770,15,0,0,11,0,0,3,0,0,8,0,0,6,0,0,14,0,1,27,0,0,40,0,0,40,0,1,17,0,0,13,0,0,20,0,0,12,0,0,17,0,0,11,0,1,14,0,0,16,4,1,15,0,0,16,3,0,26,6,0,24,4,0,24,5,0,28,52,0,47,0,0,36,0,0,22,2,0,23,1,0,17,0,0,14,0,0,8,0,0,7,0,0,0,0,0,2,4,0,-1,4,0,9,1,0,3,0,0,3,0,0,4,0,0,-1,6,0,10,13,0,14,0,0,null,null,null,8,2,0,"",7]
["New London",13095,719,"52100",2935,3180,4116,4397,4400,2253,2321,2367,11,0,0,7,32,0,13,0,0,21,0,0,17,8,0,48,0,0,64,4,0,46,0,0,68,3,0,11,4,0,12,3,0,13,0,0,10,0,0,20,0,0,16,2,0,25,0,0,23,0,0,20,0,0,33,0,0,33,0,0,24,0,0,15,0,0,42,0,0,29,0,0,33,0,0,16,0,0,12,0,0,9,0,0,6,0,0,3,2,0,9,0,0,12,0,0,7,0,0,8,0,0,7,34,0,7,0,0,7,0,0,7,0,0,13,4,0,8,0,1,15,0,0,null,null,null,18,1,0,"",7]
["Northfield",13100,720,"54260",3051,4263,4548,4829,4872,5049,5197,5297,0,0,0,11,0,1,17,0,4,22,0,6,20,1,6,29,240,3,91,13,4,0,0,0,37,2,3,23,17,6,12,17,6,11,0,0,8,0,0,14,0,3,14,2,2,6,1,5,12,0,1,8,0,1,8,1,0,15,0,3,28,0,0,33,0,7,27,0,2,36,0,1,30,2,0,26,70,0,8,0,0,6,0,0,2,0,1,2,0,1,0,0,0,2,0,0,0,1,1,1,1,0,4,2,0,3,0,1,4,1,0,10,2,-1,8,2,2,6,0,2,7,2,0,null,null,null,16,0,1,"",7]
["Pembroke",13105,721,"60020",4861,6561,6897,7115,7207,7463,7678,7822,19,2,6,9,0,3,9,40,2,49,4,1,61,6,0,117,117,0,65,24,0,56,10,0,70,9,2,30,0,0,7,0,0,8,0,0,7,0,0,7,-1,0,11,0,0,9,0,0,9,0,1,10,0,0,12,0,0,31,0,0,26,1,0,40,2,0,40,4,0,27,0,0,28,29,0,28,0,0,10,8,0,8,8,0,1,16,0,4,44,-1,1,-2,0,0,0,1,2,4,0,2,0,0,8,2,0,1,0,0,2,2,1,-2,0,0,1,0,0,1,0,0,0,55,0,null,null,null,5,0,0,"",7]
["Pittsfield",13110,722,"61940",2889,3701,3931,4106,4075,4220,4342,4423,6,5,3,8,0,2,0,0,0,5,0,6,11,-10,10,0,0,0,12,-2,2,29,6,6,28,75,0,15,0,2,14,0,4,14,1,2,10,1,1,7,0,0,6,2,1,10,-2,6,10,2,1,7,0,7,9,0,2,13,2,6,36,-1,0,40,0,1,32,0,0,35,-3,1,32,3,-3,23,1,0,8,2,0,8,0,1,1,0,0,1,-4,1,-2,0,1,2,0,0,1,0,0,1,0,1,1,0,0,3,0,0,-1,0,0,1,0,2,0,2,-1,5,4,1,11,0,3,null,null,null,18,0,0,"2002 Did not submit data to OEP. Used Census Data",7]
["Salisbury",13115,723,"66980",781,1061,1137,1382,1422,1472,1515,1543,8,1,1,6,0,0,4,0,1,3,0,0,9,0,0,9,1,0,27,0,1,23,2,0,17,0,0,7,0,0,4,0,0,6,0,0,1,0,0,5,0,0,5,0,0,5,0,1,7,0,0,6,1,2,2,0,0,9,0,0,11,0,0,11,0,0,9,0,5,10,1,3,10,0,2,12,0,0,6,2,0,2,1,0,2,0,0,2,1,0,2,0,0,4,0,0,2,0,0,2,0,0,2,0,1,4,0,0,2,0,0,6,0,0,2,0,0,7,0,0,8,0,0,null,null,null,12,0,0,"",7]
["Sutton",13120,724,"75460",1091,1457,1544,1837,1978,2047,2105,2144,8,0,0,7,0,0,5,0,0,4,0,1,0,0,0,8,2,0,19,3,0,25,2,0,35,3,0,13,0,0,9,0,0,5,0,0,7,0,0,6,0,0,6,0,0,2,0,0,4,0,0,0,0,0,10,0,0,11,0,0,25,0,0,17,0,0,33,0,0,30,0,0,27,0,0,20,2,0,13,0,0,9,0,0,13,0,0,8,0,0,3,0,0,2,0,0,5,0,0,3,0,0,3,0,0,3,0,0,4,0,0,8,0,0,5,0,0,6,0,-2,7,0,0,null,null,null,12,1,0,"",7]
["Warner",13125,725,"78580",1963,2250,2760,2833,2937,3043,3133,3193,7,0,0,9,0,0,2,0,0,10,0,0,7,0,3,10,2,4,15,0,2,25,6,4,25,2,6,23,2,2,9,0,1,6,0,0,5,0,0,4,32,2,2,0,3,3,0,6,10,0,0,11,0,2,14,0,1,12,2,1,11,4,0,23,0,0,14,2,6,24,0,0,19,0,0,14,2,0,11,0,0,0,0,0,3,0,0,8,0,0,6,0,0,5,0,0,7,0,1,2,0,0,4,0,0,5,0,0,3,0,0,3,0,1,3,0,1,6,2,1,7,10,0,null,null,null,4,6,0,"",7]
["Webster",13130,726,"80020",1095,1405,1579,1872,1913,1980,2036,2073,6,0,0,5,0,1,5,0,1,3,0,1,4,0,0,15,0,0,18,0,0,16,0,1,17,0,2,18,0,2,4,0,2,3,0,0,1,0,0,4,0,0,7,0,0,8,0,3,10,0,1,10,0,4,10,5,1,4,0,3,16,2,1,17,1,1,8,1,0,23,0,-2,19,0,-1,14,2,0,7,0,1,12,-1,0,7,0,0,2,0,0,3,0,0,2,0,0,0,0,-1,0,0,0,2,0,0,3,0,0,3,0,-1,6,0,0,3,0,0,4,0,0,10,0,0,null,null,null,7,0,0,"",7]
["Wilmot",13135,727,"84900",725,935,1144,1358,1407,1455,1496,1523,1,0,2,6,0,0,3,0,1,9,0,1,5,0,0,6,1,0,12,0,2,27,0,2,12,0,0,6,0,0,3,0,1,2,0,0,5,0,0,9,0,0,12,0,0,3,0,0,7,0,0,3,2,0,8,0,1,12,0,0,8,0,0,12,-1,0,8,0,1,26,0,0,13,0,1,10,0,1,10,0,0,12,0,0,4,1,0,1,2,0,4,0,0,2,0,0,0,0,0,1,0,0,0,0,0,4,0,0,4,0,0,3,0,0,2,0,0,2,0,1,3,0,0,null,null,null,5,1,0,"",7]
[]
[]
[]
[]
[]
[]
[]
[]
[]
[]
[]
[]
[]
[]
[]
[]
[]
[]
[]
[]
[]
[]
[]
["NH Employment Data","Query Name: DPQryEmploymentByCnty-Good-Serv-Total","Updated:","2022-09-14"]
[]
["AreaName","COUNTYCODE","TOTP & G2001","TOT2001","GOODPRO2001","SERVICEPROMAN2001","WAGEP & G2001","WAGETOT2001","WAGEGOODPRO2001","WAGESERVICEPRO2001","TOTP & G2002","TOT2002","GOODPRO2002","SERVICEPROMAN2002","WAGEP & G2002","WAGETOT2002","WAGEGOODPRO2002","WAGESERVICEPRO2002","TOTP & G2003","TOT2003","GOODPRO2003","SERVICEPROMAN2003","WAGEP & G2003","WAGETOT2003","WAGEGOODPRO2003","WAGESERVICEPRO2003","TOTP & G2004","TOT2004","GOODPRO2004","SERVICEPROMAN2004","WAGEP & G2004","WAGETOT2004","WAGEGOODPRO2004","WAGESERVICEPRO2004","TOTP & G2005","TOT2005","GOODPRO2005","SERVICEPROMAN2005","WAGEP & G2005","WAGETOT2005","WAGEGOODPRO2005","WAGESERVICEPRO2005","TOTP & G2006","TOT2006","GOODPRO2006","SERVICEPROMAN2006","WAGEP & G2006","WAGETOT2006","WAGEGOODPRO2006","WAGESERVICEPRO2006","TOTP & G2007","TOT2007","GOODPRO2007","SERVICEPROMAN2007","WAGEP & G2007","WAGETOT2007","WAGEGOODPRO2007","WAGESERVICEPRO2007","TOTP & G2008","TOT2008","GOODPRO2008","SERVICEPROMAN2008","WAGEP & G2008","WAGETOT2008","WAGEGOODPRO2008","WAGESERVICEPRO2008","TOTP & G2009","TOT2009","GOODPRO2009","SERVICEPROMAN2009","WAGEP & G2009","WAGETOT2009","WAGEGOODPRO2009","WAGESERVICEPRO2009","TOTP & G2010","TOT2010","GOODPRO2010","SERVICEPROMAN2010","WAGEP & G2010","WAGETOT2010","WAGEGOODPRO2010","WAGESERVICEPRO2010","TOTP & G2011","TOT2011","GOODPRO2011","SERVICEPROMAN2011","WAGEP & G2011","WAGETOT2011","WAGEGOODPRO2011","WAGESERVICEPRO2011","TOTP & G2012","TOT2012","GOODPRO2012","SERVICEPROMAN2012","WAGEP & G2012","WAGETOT2012","WAGEGOODPRO2012","WAGESERVICEPRO2012","TOTP & G2013","TOT2013","GOODPRO2013","SERVICEPROMAN2013","WAGEP & G2013","WAGETOT2013","WAGEGOODPRO2013","WAGESERVICEPRO2013","TOTP & G2014","TOT2014","GOODPRO2014","SERVICEPROMAN2014","WAGEP & G2014","WAGETOT2014","WAGEGOODPRO2014","WAGESERVICEPRO2014","TOTP & G2015","TOT2015","GOODPRO2015","SERVICEPROMAN2015","WAGEP & G2015","WAGETOT2015","WAGEGOODPRO2015","WAGESERVICEPRO2015","TOTP & G2016","TOT2016","GOODPRO2016","SERVICEPROMAN2016","WAGEP & G2016","WAGETOT2016","WAGEGOODPRO2016","WAGESERVICEPRO2016","TOTP & G2017","TOT2017","GOODPRO2017","SERVICEPROMAN2017","WAGEP & G2017","WAGETOT2017","WAGEGOODPRO2017","WAGESERVICEPRO2017","TOTP & G2018","TOT2018","GOODPRO2018","SERVICEPROMAN2018","WAGEP & G2018","WAGETOT2018","WAGEGOODPRO2018","WAGESERVICEPRO2018","TOTP & G2019","TOT2019","TOTGov2019","GOODPRO2019","SERVICEPROMAN2019","WAGEP & G2019","WAGETOT2019","WAGEGov2019","WAGEGOODPRO2019","WAGESERVICEPRO2019","TOTP & G2020","TOT2020","TOTGov2020","GOODPRO2020","SERVICEPROMAN2020","WAGEP & G2020","WAGETOT2020","WAGEGov2020","WAGEGOODPRO2020","WAGESERVICEPRO2020","TOTP & G2021","TOT2021","TOTGov2021","GOODPRO2021","SERVICEPROMAN2021","WAGEP & G2021","WAGETOT2021","WAGEGov2021","WAGEGOODPRO2021","WAGESERVICEPRO2021","TOTP & G2022","TOT2022","TOTGov2022","GOODPRO2022","SERVICEPROMAN2022","WAGEP & G2022","WAGETOT2022","WAGEGov2022","WAGEGOODPRO2022","WAGESERVICEPRO2022","COUNTYCODE"]
["Allenstown",7,567,420,75,345,458.23,450.68,690.66,398.54,547,394,75,319,467.99,451.45,650.45000000000005,404.38,575,417,85,332,481.57,465.16,625.29999999999995,424.06,580,414,79,335,559.34,570.74,713.84,536.88,783,609,"n","n",541.73,541.84,"n","n",722,535,165,370,542.58000000000004,544.84,526.5,553,709,516,120,395,566.6,574.70000000000005,577.92999999999995,573.71,720,525,141,385,603.02,610.47,623.51,605.70000000000005,630,466,137,329,632.92999999999995,611.41999999999996,615.41999999999996,609.76,646,472,147,325,628.92999999999995,628.46,630.44000000000005,627.57000000000005,669,487,147,341,644.14,648.04999999999995,628.24,656.56,708,528,157,372,648.84,660.75,653.44000000000005,663.82,735,576,197,379,681.85,676.87,655.93,687.74,719,555,182,373,697.28,696.05,730.28,679.41,649,480,170,310,714.69,707.52,809.33,651.65,618,447,127,320,744.13,758.48,998.41,662.94,555,390,126,264,787.98,810.13,985.01,726.91,704,370,114,256,881.97,877.59,1084.3599999999999,785.18,741,394,348,117,277,851.29,836.77,867.73,1054.58,744.63,716,391,325,120,271,951.37,943.55,960.79,1133.03,859.35,792,460,333,123,337,909.17,895.01,928.76,1184.06,789.1,842,503,339,125,378,930,939,916,1343,806,7]
["Andover",7,545,482,81,401,542.46,561.54,680.45,537.42999999999995,582,516,91,425,535.96,552.24,635.95000000000005,534.30999999999995,593,528,78,450,540.49,551.05999999999995,662.67,531.66999999999996,595,528,80,449,581.61,597.5,716.85,576.26,581,515,89,426,608.52,622.59,764.44,592.85,520,452,84,368,686.74,714.5,1018.03,644.92999999999995,567,495,92,403,654.64,671.31,780.15,646.36,567,493,88,405,671.1,686.24,791.26,663.39,550,474,71,403,690.48,703.66,943.68,661.41,531,459,76,383,709.36,719.72,941.5,675.74,507,433,67,366,711.59,723.36,969.38,678.42,522,452,79,373,750.76,767.32,1133.05,689.98,541,468,92,376,743.17,757.89,971,705.63,539,466,96,370,755.46,768.62,984.2,712.97,550,474,102,372,766.96,782.02,933.65,740.33,550,475,103,372,768.17,776.55,1003.55,713.42,543,470,103,367,806.98,812.78,1055.08,744.55,545,468,107,362,864.33,879.94,1110.42,811.99,584,508,77,107,401,884.92,901.25,776.61,1269.0999999999999,803.31,554,481,74,107,374,943.76,955.1,869.6,1294.23,858.09,547,473,74,99,374,964.85,983.63,844.18,1406.47,871.8,575,504,71,105,399,1000,1013,905,1482,889,7]
["Boscawen",7,644,583,307,277,617.42999999999995,632.52,825.82,418.09,721,662,294,369,643.62,654.28,813.08,527.85,766,704,293,411,654.63,663.13,825.04,547.53,781,718,278,440,680.56,690.41,870.07,577.08000000000004,744,681,273,408,695.51,703.69,882.78,583.83000000000004,709,639,246,393,732.01,747.66,916.66,641.65,711,638,247,391,733,746.51,951.43,617.03,670,595,244,351,717.4,726.05,931.7,583.36,1307,578,241,338,716.48,733.93,926.66,596.54,1349,602,254,348,758.3,808.9,950.13,705.85,1408,662,266,396,759.33,799.11,929.95,711.09,1418,664,255,409,769.62,831.77,992.23,731.86,1418,657,271,386,807.99,912.23,1012.14,842.22,1450,676,271,405,808.86,869.07,1035.6300000000001,757.64,1461,690,263,427,832.76,930.66,1097.57,827.77,1474,720,268,451,857.31,956.36,1084.5,880.25,1465,717,278,439,901.16,1013.3,1134.33,936.7,1373,642,286,356,878.82,949.43,1164.76,776.23,1356,635,720,294,342,922.21,1016.33,839.21,1212.05,848.07,1325,655,670,288,367,977.84,1021.33,935.35,1240.18,849.68,1288,682,606,318,364,1031.21,1093.25,961.4,1267.94,940.78,1264,714,0,351,550,1086,1127,0,964,1033,7]
["Bow",7,3245,2757,1411,1346,729.04,752.6,751.83,753.41,3269,2777,1357,1420,780.06,809.08,837.56,781.87,3411,2863,1417,1445,847.64,893.3,973.74,814.42,3256,2749,1351,1398,838.52,867.34,878.33,856.71,3089,2636,1222,1414,853.47,861.07,881.9,843.06,3223,2752,1117,1635,926.55,943.68,950.81,938.81,3238,2755,993,1762,1078.3599999999999,1121.17,1375.24,977.91,3305,2812,1022,1790,1013.63,1030.94,1140.8499999999999,968.2,3340,2820,1011,1808,976.86,986.4,1052.28,949.55,3201,2743,1163,1580,1006.7,1034.05,1006.76,1054.1300000000001,3349,2905,1238,1666,990.84,1007.51,963.88,1039.93,3482,3022,1219,1804,983.28,1002.33,986.7,1012.89,3603,3159,1269,1890,969.16,979.76,975.69,982.49,3830,3373,1329,2044,994.05,1008.17,1045.3900000000001,983.97,3894,3452,1332,2120,1005.67,1013.41,1016.91,1011.2,4016,3561,1469,2092,997.05,1006.59,1047.45,977.9,4020,3560,1421,2139,1047.3499999999999,1062.32,1099,1037.94,3996,3539,1358,2181,1068.49,1081.24,1148.72,1039.24,4004,3566,438,1316,2250,1117.1600000000001,1128.1500000000001,1027.74,1204.81,1083.3399999999999,3799,3372,426,1242,2130,1217.3,1231.06,1108.46,1327.93,1174.5899999999999,3697,3238,458,1204,2035,1250.3499999999999,1282.8900000000001,1020.38,1350.88,1242.67,3876,3407,468,1323,2084,1312,1348,1050,1399,1316,7]
["Bradford",7,278,195,72,123,512.55999999999995,539.63,652.58000000000004,473.99,301,212,84,128,569.32000000000005,606.92999999999995,675.34,561.82000000000005,327,236,82,155,488.43,498.35,700.77,391.63,335,249,85,164,514.80999999999995,516.92999999999995,741.01,400.17,328,245,98,148,557.38,558.38,748.66,432.27,377,291,101,190,553.49,555.30999999999995,774.88,438.78,370,283,100,183,639.87,644.62,899.91,505.59,377,283,92,191,619.99,631.38,870.13,516.23,325,237,74,164,629.14,646.65,863.22,549.44000000000005,337,254,68,186,579.91999999999996,572.24,813.47,483.77,359,273,67,206,549.64,530.42999999999995,843.71,429.2,377,295,83,213,564.91999999999996,547.48,862.31,424.81,376,299,77,222,543.54999999999995,512.80999999999995,839.35,400.12,360,285,59,226,548.73,506.85,758.87,440.66,367,297,57,240,593.79,554.29999999999995,752.09,507.12,340,271,56,215,670.64,647.41,810.51,605.28,381,315,"n","n",674.57,648.17999999999995,"n","n",368,303,"n","n",720.45,699.58,"n","n",383,317,15,48,270,718.97,692.85,1630.65,779.48,677.51,397,326,71,44,282,784.24,767.84,859.52,924.48,743.71,454,376,77,"n","n",841.7,846.91,816.32,"n","n",444,362,82,40,322,864,875,817,1052,852,7]
["Canterbury",7,268,223,55,167,461.87,489.57,471.91,495.4,304,229,56,172,496.06,527.12,478.71,542.92999999999995,303,229,51,177,493.37,503.61,480.44,510.33,275,208,43,166,523.19000000000005,533.76,532.65,534.04,279,211,44,167,499.02,500.13,531.79999999999995,491.87,282,207,47,160,522.54999999999995,537.54,513.27,544.65,288,210,34,176,550.80999999999995,576.36,557.05999999999995,580.11,267,186,24,162,508.56,517.39,516.59,517.51,272,201,19,182,537.69000000000005,527.22,454.49,534.71,263,191,18,172,563.70000000000005,564.63,472.53,574.47,258,191,18,173,592.78,592,493.32,602.01,283,216,23,193,647.9,661.92,555.9,674.61,265,199,37,162,723.21,752.09,554.04,797.67,284,221,45,176,788.44,820.6,511.29,899.21,292,231,48,183,903.89,961.27,569.44000000000005,1063.68,318,257,52,205,828.66,859.47,536.38,941.83,348,285,54,231,807.27,826.81,520.5,898.54,329,267,48,219,833.11,858.91,602.16999999999996,914.61,316,255,61,56,200,833.15,846.45,777.15,592.78,917.45,316,258,58,70,188,912.22,930.46,831.64,570.25,1064.58,403,289,115,60,229,926.24,1012.49,709.02,655.61,1105.68,376,298,78,59,240,969,1034,720,696,1117,7]
["Chichester",7,460,374,80,294,585.84,629.01,506.38,662.12,521,443,81,362,644.94000000000005,671.12,463.17,717.64,991,908,54,855,688.02,703.73,552.05999999999995,713.25,562,482,50,432,678.47,699.39,551.45000000000005,716.6,580,499,41,459,651.76,663.82,575.21,671.64,612,533,53,479,698.6,705.76,604.74,716.94,638,549,57,492,687.82,697.74,524.34,717.69,608,520,105,414,679.28,680.19,587.1,703.84,508,422,83,339,681.89,672.45,607.15,688.51,520,435,67,368,655.86,645.77,714.66,633.21,529,436,72,364,644.55999999999995,636.07000000000005,669.23,629.51,552,467,76,391,673.07,665.11,642.66,669.5,605,524,78,446,706.53,706.22,622.88,720.69,624,541,80,461,765.66,777.13,825.8,768.63,654,570,114,456,811.96,831.84,868.45,822.71,702,619,157,462,869.39,896.96,943.49,881.13,708,628,"n",0,886.99,902.77,"n",0,788,703,"n",0,893.27,916.41,"n",0,808,707,0,"n",0,930.13,971.5,0,"n",0,777,681,96,190,491,1034.3699999999999,1078.47,721.11,1127.19,1059.58,838,741,97,205,536,1099.48,1147.92,729.97,1201.3499999999999,1127.53,869,774,0,0,0,1142,1189,0,0,0,7]
["Concord",7,40212,28898,2591,26307,644.67999999999995,636.65,824.25,618.16999999999996,40321,28715,2321,26394,664.57,654.45000000000005,823.12,639.62,40370,28529,2156,26372,682.63,670.6,815.48,658.76,40010,28509,2066,26443,701.69,686.68,805.7,677.38,40546,28855,2050,26805,717.32,707.43,816.15,699.11,40963,29115,2002,27113,744.7,732.05,858.11,722.74,41069,29205,1944,27261,782.82,764.44,914.87,753.72,41267,29264,1855,27409,819.59,800.52,996.41,787.26,40199,28900,1766,27135,850.6,808.25,981.71,796.96,40179,28965,1691,27274,854.9,819.23,999.77,808.04,39526,28600,1700,26900,878.75,847.1,1035.08,835.22,39575,28881,1778,27103,892.89,867.75,1083.28,853.6,39226,28710,1686,27023,906.45,881.12,1116.21,866.45,39653,28803,1626,27177,933.23,903.03,1097.1199999999999,891.42,39959,29086,1630,27456,968.67,933.45,1160.68,919.97,40396,29381,1589,27793,989.69,957.51,1134.3599999999999,947.4,40503,29403,1659,27744,1026.1300000000001,994.89,1205.3800000000001,982.3,40594,29665,1686,27979,1064.6199999999999,1037.03,1219.81,1026.01,40427,29393,11035,1650,27742,1089.6300000000001,1059.29,1170.46,1219.99,1049.73,38152,27365,10787,1512,25853,1188.75,1161.69,1257.42,1336.8,1151.45,38240,27761,10479,1547,26214,1229.77,1216.02,1266.21,1313.84,1210.25,38724,28127,10597,1587,26539,1274,1267,1292,1384,1260,7]
["Danbury",7,136,104,18,85,387.84,388.93,444.58,376.98,149,111,23,88,437.33,467.74,486.09,463.04,168,130,26,104,439.62,440.31,619.97,395.76,164,126,26,99,478.43,498.25,710.99,442.03,155,120,29,92,630.54999999999995,673.41,719.83,658.96,136,101,"n","n",481.12,456.66,"n","n",133,93,25,68,572.49,570.61,834.67,472.29,166,127,29,98,597.14,603.96,775.9,553,167,132,31,101,586.41999999999996,582.07000000000005,817.68,509.12,159,126,"n","n",503.51,483.62,"n","n",142,110,"n","n",517.39,500.1,"n","n",138,108,25,83,523.33000000000004,524.26,899.07,413.1,160,128,32,96,516.33000000000004,520.97,897,394.86,192,154,64,90,669.59,726.55,781.45,687.72,227,188,93,95,653.83000000000004,687.55,898.53,481.91,214,175,"n","n",690.88,731.23,"n","n",232,196,94,102,712.18,753.57,1105.29,430.25,223,190,86,104,713.74,749.3,1183.9000000000001,387.65,213,177,36,73,105,715.71,764.05,475.3,1222.1099999999999,446.28,186,152,34,61,91,833.51,896.15,553.53,1555.17,455,195,159,36,56,103,746.14,783.77,581.04999999999995,1317.3,493.7,238,199,40,85,113,816,856,614,1207,592,7]
["Dunbarton",7,203,146,93,53,657.96,768.32,828.52,662.65,193,137,88,49,706.17,782.63,860.95,643.1,207,146,92,54,698.12,802.47,920.17,600.70000000000005,227,168,99,69,793.75,899.26,1129.52,570.9,242,178,106,72,756.83,853.79,1050.53,563.37,245,176,105,72,788.14,907.48,1156.94,542.29,246,175,104,71,704.77,791.81,912.3,614.62,185,122,60,62,700.55,759.88,839.57,682.33,166,102,38,64,713.22,793.34,953.31,698.19,173,105,40,65,743.91,854.39,1022.01,751.93,184,122,54,69,873.19,974.66,1178.47,815.19,195,132,60,72,949.79,1078.1099999999999,1431.06,783.1,203,138,69,69,924.73,1040.1500000000001,1243.47,835.35,242,174,81,93,999.25,1141.9000000000001,1615.41,726.3,272,203,81,122,980.01,1094.07,1553.33,786.85,311,231,103,128,977.88,1124.1600000000001,1488.41,829.09,341,257,119,138,1023.96,1173.96,1467.39,920.93,355,266,125,140,1103.7,1273.47,1507.82,1063.6500000000001,382,299,83,141,158,1079.5,1188.9100000000001,686.06,1513.19,900.32,338,258,80,136,122,1367.52,1553.28,768.01,1622.25,1476.44,355,266,89,133,133,1396.04,1634.81,684.86,1738.8,1530.56,345,256,0,124,132,1240,1431,0,1693,529,7]
["Epsom",7,958,860,335,525,543.05999999999995,549.29999999999995,797.73,390.68,1050,947,283,664,554.23,559.12,865.46,428.32,990,879,206,673,528.29999999999995,531.28,763.45,460.14,987,877,190,686,566.74,571.02,856.97,491.68,992,882,175,706,551.35,549.22,905,460.93,980,863,175,688,564.64,565.16,904.37,479.01,1005,871,162,709,572.29,572.97,894.43,499.47,843,717,171,546,695.57,705.87,1188.8900000000001,554.14,862,740,169,572,714.33,716.56,1143.54,590.53,902,779,180,599,705.23,707.09,1191.8900000000001,561.75,965,840,175,665,724.71,728.63,1260.83,588.54,1103,977,172,805,698.85,699.41,1027.8,629.23,1133,1009,162,847,683.83,678.06,1065.04,603.83000000000004,1110,983,167,815,706.29,701.97,1050.22,630.51,1078,953,146,807,736.03,728.26,1138.26,654.15,1102,980,152,828,731.63,724.99,1002.58,673.92,1138,1008,165,842,779.9,778.12,1095.03,715.93,1205,1072,167,904,806.73,807.31,1147.8699999999999,744.26,1233,1096,137,170,926,842.42,849.64,784.75,1225.8399999999999,780.34,1182,1038,144,178,860,932.17,947.77,820.16,1284.21,878.04,1250,1087,162,187,900,955.99,984.05,767.85,1189.6099999999999,941.25,1286,1125,161,200,925,1025,1055,815,1386,983,7]
["Franklin",7,3494,3131,1622,1509,589.45000000000005,592.69000000000005,717.52,458.52,3270,2885,1411,1474,609.17999999999995,614.52,737.34,496.97,3091,2689,1241,1447,634.66999999999996,642.98,776.63,528.35,2938,2510,1069,1440,668.35,684.66,818.44,585.32000000000005,2884,2468,1078,1390,684.55,700.25,829.47,600.05999999999995,3024,2576,1174,1403,713.47,735.35,885.52,609.74,2893,2435,1033,1402,719.58,734.53,868.73,635.67999999999995,2875,2401,959,1441,710.33,725.83,830.44,656.2,2722,2254,842,1413,709.31,723.78,809.64,672.63,2563,2088,754,1334,738.82,762.01,896.02,686.3,2589,2144,818,1326,742.76,754.54,904.12,662.25,2609,2165,842,1323,757.25,776.34,922.82,683.17,2590,2167,842,1326,797.18,814.34,963.73,719.49,2701,2289,912,1377,817.03,835.29,951,758.63,2691,2283,916,1367,847.96,866.28,1012.52,768.28,2615,2226,846,1379,858.58,872.55,1014.48,785.46,2546,2173,778,1395,864.14,874.36,961.47,825.74,2548,2196,789,1407,898.23,904.7,971.95,866.96,2517,2171,346,796,1375,914.93,920.33,881.01,1004.49,871.63,2353,2022,331,747,1276,948.31,950.59,934.35,999.59,921.92,2380,2039,340,758,1281,1056.06,1075.93,937.02,1155.92,1028.57,2326,1975,351,747,1228,1108,1136,953,1229,1079,7]
["Henniker",7,1799,1640,457,1183,587.95000000000005,592.75,795.15,514.66999999999996,1709,1511,443,1067,512.45000000000005,510.44,871.96,360.28,1716,1518,443,1076,523.63,517.22,833.7,386.99,1735,1546,"n","n",561,555.33000000000004,"n","n",1752,1570,"n","n",589.32000000000005,580.15,"n","n",1753,1576,"n","n",596.72,584.15,"n","n",1731,1549,"n","n",602.25,585.54999999999995,"n","n",1756,1555,"n","n",596.12,579.55999999999995,"n","n",1693,1502,"n","n",575.95000000000005,552.46,"n","n",1684,1482,"n","n",594.99,575.79,"n","n",1728,1516,"n","n",582.88,563.66,"n","n",1673,1455,307,1149,608.84,594.23,870.97,520.38,1700,1476,"n","n",623.85,614.75,"n","n",1648,1427,"n","n",652.64,641.88,"n","n",1627,1410,"n","n",716.68,712.73,"n","n",1623,1407,"n","n",733.74,732.41,"n","n",1606,1390,"n","n",734.85,729.41,"n","n",1632,1414,283,1131,760.05,757.86,1054.05,683.86,1626,1416,210,293,1123,857.38,860.96,833.15,1097.79,799.22,1494,1293,201,298,996,890.88,888.13,908.59,1175.08,802.36,1520,1339,181,312,1026,930.69,924.12,979.28,1207.6199999999999,837.88,1682,1501,181,310,1191,915,911,951,1209,833,7]
["Hill",7,68,38,20,19,531.09,614.28,945.6,269.70999999999998,83,52,26,26,654.6,796.68,1271.19,329.76,96,65,30,35,635.91,707.39,1041.71,422.86,93,58,31,27,804.92,1066.05,1617.32,445.66,86,51,23,28,654.59,838.11,1375.42,406.37,100,62,23,39,745.52,965.72,1795.86,472.61,104,63,"n","n",686.59,846.42,"n","n",87,45,"n","n",682.7,920.23,"n","n",77,37,"n","n",600.32000000000005,825.54,"n","n",64,28,14,15,795.91,1253.02,2269.71,327.72,49,16,"n","n",444.52,423.38,"n","n",54,18,5,13,450.77,526.70000000000005,600.01,499.92,60,23,"n","n",444.44,520.99,"n","n",58,23,5,19,489.82,537.53,472,554.64,55,22,4,18,545.54999999999995,580.16,560.49,584.9,60,29,4,25,569.77,663.08,599.94000000000005,674.06,68,33,5,27,558.4,658.41,502.16,689.47,69,30,"n","n",601.59,746.65,"n","n",54,18,37,"n","n",543.86,601.9,516.09,"n","n",54,17,36,0,17,531.05999999999995,604.88,495.84,0,604.88,55,21,35,0,21,578.02,634.61,544.28,0,634.61,60,21,39,0,21,554,677,488,0,677,7]
["Hooksett",7,6906,6381,1901,4480,728.81,744.47,930.4,665.56,6814,6283,1693,4590,769.14,787.93,991.47,712.86,7248,6688,1690,4998,723.13,736.12,1002.42,646.09,7761,7181,1715,5466,760.15,773.4,1043.7,688.6,7999,7420,1900,5521,781.19,793.85,1066.49,700.05,8034,7444,1890,5554,802.99,814.28,1113.73,712.41,8033,7426,1842,5584,834.06,846.77,1178.99,737.18,8105,7497,1828,5670,864.56,876.25,1229.68,762.32,7793,7164,1607,5557,843.95,853.71,1261.3599999999999,735.82,7722,7087,1515,5572,853.87,864.06,1269.93,753.7,7934,7310,1607,5703,867.74,877.55,1292.97,760.47,8337,7716,1696,6019,882.17,893.5,1318.47,773.75,8845,8221,1792,6430,918.82,930.63,1322.57,821.42,9286,8646,1763,6883,934.42,946.47,1409.63,827.85,9518,8865,"n",7106,990.09,1007.48,"n",895.17,9767,9132,1852,7280,1014.91,1031.5,1455.82,923.55,9908,9291,1941,7350,1055.99,1071.45,1493.47,959.98,10179,9567,1996,7570,1089.55,1105.03,1530.8,992.74,10407,9805,602,2081,7724,1126.6099999999999,1141.8499999999999,878.33,1525.09,1038.6099999999999,9471,8910,560,1856,7054,1220.05,1235.19,979.38,1477.23,1171.52,8874,8515,359,1860,6656,1256.77,1266.96,1015.06,1507.29,1199.81,9397,8860,537,1897,6964,1621,1656,1037,1595,1673,7]
["Hopkinton",7,1715,1446,344,1103,643.74,655.48,617.71,667.26,1905,1636,296,1340,701.7,713.28,609.04,736.31,1821,1523,271,1252,647.15,653.74,612.05999999999995,662.75,1785,1497,297,1201,689.73,693.97,614.27,713.66,1623,1327,301,1026,674.63,667.47,642.53,674.79,1698,1373,325,1048,685.44,686.23,629.69000000000005,703.76,1678,1380,285,1096,697.5,678.42,623.24,692.76,1664,1366,289,1077,724.32,703.11,660.92,714.44,1579,1281,238,1043,729.79,701.59,617.91999999999996,720.71,1540,1239,259,980,746.63,727.47,635.5,751.78,1552,1253,277,977,767.34,750.57,745.95,751.87,1611,1312,306,1006,783.17,769.33,827.4,751.64,1638,1341,312,1029,800.06,786.36,907.07,749.75,1635,1335,326,1009,815.95,800.23,929.34,758.52,1605,1318,290,1028,902.87,893.42,890.17,894.33,1664,1381,291,1090,900,891.01,905.65,887.1,1673,1397,303,1094,937.83,931.8,932.85,931.51,1688,1419,324,1095,956.42,942.52,903.07,954.2,1751,1454,297,373,1080,951.3,946.11,976.73,909.43,958.79,1635,1375,259,378,998,1106.07,1101.6400000000001,1129.58,1264.01,1040.18,1740,1475,265,399,1076,1093.58,1087.47,1127.55,1072.5899999999999,1092.98,1888,1612,276,449,1164,1147,1149,1135,1057,1184,7]
["Loudon",7,1373,1244,322,922,441.97,453.52,711.13,363.49,1389,1256,414,842,462.92,474.61,657.43,384.75,1281,1149,389,760,614.47,639.59,658.67,629.80999999999995,1344,1200,387,813,640.37,670.31,725.07,644.23,1063,922,391,532,844.1,909.27,735.8,1036.76,1031,881,384,497,936.61,1024.42,802.07,1196.25,928,801,346,455,1041.95,1123.0899999999999,770.2,1391.07,937,806,337,469,626.75,641.04,723.26,582.04,852,745,301,444,636.28,632.98,712.2,579.29,833,724,288,436,626.6,627.98,718.75,567.95000000000005,961,845,310,535,573.92999999999995,571.78,685.7,505.69,944,835,312,523,683.55,690.5,710.32,678.68,947,842,314,528,648.04999999999995,647.87,719.79,605.11,916,816,322,495,745.36,748.11,803.5,712.09,921,819,330,489,821.57,833.63,833.26,833.88,998,889,368,521,750.07,756.06,866.93,677.64,979,875,380,496,832.99,842.1,953.66,756.64,950,852,380,472,901.64,909.87,999.9,837.37,955,860,95,392,468,952.83,964.35,848.7,1068,877.52,916,818,98,401,417,1033,1054.5899999999999,852.07,1176.67,937.24,922,814,108,398,416,1109.3,1145.06,839.42,1172.95,1118.3399999999999,927,820,107,389,431,1081,1110,858,1232,999,7]
["New London",7,2682,2423,160,2263,554.04,560.47,659.61,553.45000000000005,2649,2382,138,2244,556.38,562.58000000000004,605.07000000000005,559.97,2701,2442,122,2321,563.55999999999995,564.16,713.56,556.32000000000005,2712,2457,127,2330,583.05999999999995,578.5,682.94,572.82000000000005,2879,2640,212,2427,616.22,609.78,794.45,593.62,2842,2591,208,2383,656.66,655.61,824.16,640.89,2831,2568,201,2366,702.76,705.91,831,695.27,2753,2466,196,2270,713.53,716.11,816.3,707.47,2665,2437,161,2276,715.95,721.57,754.1,719.27,2625,2376,147,2229,755.67,768.25,833.02,763.96,2600,2362,143,2219,760.22,769.78,869.43,763.35,2564,2341,141,2201,789.14,799.93,931.32,791.54,2603,2396,145,2251,809.7,816.69,925.26,809.69,2688,2462,155,2307,822.01,833.5,1034.43,819.98,2698,2466,167,2299,842.82,854.74,1011.15,843.4,2745,2513,174,2339,884.61,896.83,1083.6600000000001,882.94,2701,2465,164,2301,885.69,899.92,1015.47,891.67,2690,2462,145,2317,905.25,916.24,1071.58,906.52,2734,2506,227,153,2354,915.83,924.76,817.4,1134.3800000000001,911.17,2496,2283,213,167,2116,1003.77,1012.01,915.31,1140.17,1001.91,2567,2349,218,173,2177,1057.0899999999999,1070.42,913.53,1704.33,1020.11,554,487,68,25,462,672,667,707,903,655,7]
["Newbury",7,482,447,20,427,317.11,307.27999999999997,448.11,300.69,457,425,16,409,319.52,301.23,540.95000000000005,291.60000000000002,486,449,19,430,330.68,314.12,689.72,297.68,519,482,21,461,354.99,341.06,708.55,324.24,532,489,15,474,357.71,346.22,606.36,337.93,543,496,21,476,364.85,348.02,573.32000000000005,338.23,589,530,30,499,365.17,350.26,540.79999999999995,338.65,573,509,31,478,380.99,364.46,542.66,352.97,575,509,28,480,397.46,384.72,520.91,376.69,575,510,25,485,404.43,389.98,476.69,385.48,626,563,26,536,394.97,380.63,492.45,375.12,555,493,"n","n",419.34,411.04,"n","n",596,532,25,507,386.03,370.17,537.83000000000004,362.05,591,524,29,495,419.6,408.82,607.88,397.2,621,560,27,532,413.13,396.91,562.75,388.37,586,518,27,491,407.62,390.54,553.91,381.59,606,537,27,510,444.02,430.98,549.91999999999996,424.61,570,503,25,479,454.84,445.09,667.82,433.61,564,498,66,"n","n",494.34,480.89,596.30999999999995,"n","n",438,376,62,24,352,610.92999999999995,603.87,654.07000000000005,615.71,603.05999999999995,480,414,66,25,389,612.04999999999995,602.71,670.86,644.03,600.03,2644,2415,230,177,2238,1106,1125,905,1711,1079,7]
["Northfield",7,774,628,320,308,575.04,584.4,755.14,406.73,897,742,426,316,595.33000000000004,605.35,718.75,452.46,956,796,482,314,605.07000000000005,613.72,717.39,454.54,902,734,401,333,652.80999999999995,675.76,836.09,482.89,1035,861,535,326,631.75,646.02,729.52,508.93,1027,900,513,387,674.95,681.14,822.49,494,998,868,461,407,682.38,692.66,847.99,517.05999999999995,1010,881,475,406,719.47,731.32,870.31,568.75,904,782,376,406,774.64,788.58,962.18,627.47,1045,930,508,422,871.79,891.99,1048.17,703.85,1184,1074,558,516,827.01,839.37,1013.15,651.34,1137,1023,576,447,855.51,873.19,1014.71,690.77,1114,996,580,417,874.66,896.83,1055.57,676.1,1167,1050,619,431,916.9,939.13,1107.7,696.69,1199,1087,658,428,887.67,896.65,1023.12,702.22,1178,1073,642,431,886.97,892.65,1011.82,715.36,1178,1070,618,452,914.76,918.55,1062.17,722.33,1304,1199,"n","n",944.91,947.66,"n","n",1370,1266,104,"n","n",930.64,930.21,935.84,"n","n",1280,1168,112,616,552,1052.78,1062.8800000000001,947.66,1157.5899999999999,957.01,1392,1275,117,663,612,1036.2,1057.47,804.84,1157.02,949.61,1457,1360,96,699,661,1094,1110,870,1243,970,7]
["Pembroke",7,1995,1598,787,811,645.39,663.55,639.48,686.91,1985,1554,753,801,662.66,691.14,682.88,698.91,2041,1613,806,807,662.11,681.25,696.6,665.91,2127,1716,907,809,679.53,687.54,705.56,667.33,1935,1526,707,818,736.43,754.56,801.21,714.25,2304,1892,641,1251,767.81,781.97,837.97,753.25,2287,1804,553,1250,759.92,809.11,835.22,797.55,2237,1767,486,1281,787.86,812.17,813.98,811.48,2106,1666,358,1309,812.46,818.44,793.9,825.15,2204,1638,302,1336,800.43,814.95,825.89,812.48,2239,1662,327,1334,801.73,824.31,818.09,825.84,2267,1712,354,1358,832.73,860.4,926.33,843.19,2244,1693,373,1320,854.16,874.26,969.2,847.42,2303,1748,448,1300,884.62,912.01,992.25,884.35,2316,1729,422,1307,920.74,961.92,1024.47,941.74,2287,1723,358,1365,912.94,952.51,1062.1500000000001,923.75,2381,1815,368,1447,926.88,953.76,1089.72,919.24,2395,1866,354,1512,951,967.61,1073.82,942.75,2405,1844,561,369,1474,974.58,1013.11,847.99,1156.0999999999999,977.29,2337,1812,525,360,1453,1075.1400000000001,1114.5999999999999,938.85,1268.06,1076.6300000000001,2497,1976,521,379,1597,1133.98,1184.1199999999999,943.74,1315.35,1152.98,2527,2008,519,389,1618,1175,1226,976,1340,1198,7]
["Pittsfield",7,1089,870,588,282,564.09,596.25,669.02,444.66,1086,869,595,274,621.24,662.98,749.25,475.44,1087,862,584,278,631.5,675.1,757.99,501.05,1042,816,548,268,687.75,742.83,836.17,552.04999999999995,1046,819,539,280,756.05,818.11,932.57,597.62,1076,853,558,295,723.62,767.01,872.6,567.19000000000005,1092,873,521,352,696.24,720.02,852.7,523.30999999999995,1106,870,534,336,756.55,798.82,941.09,572.82000000000005,1048,802,489,313,688.8,715.24,820.13,551.04999999999995,965,721,438,283,735.17,780.62,908.56,583.01,946,718,441,277,772.84,817.53,958.45,593.41999999999996,1019,789,453,336,741.96,779.61,919.78,590.87,1124,893,463,430,823.2,876.82,968.93,777.71,1163,936,482,454,835.9,887.8,1020.66,746.89,1211,980,500,479,863.33,917.2,1038.3599999999999,790.76,1137,914,522,392,954.89,1026.74,1058.43,984.57,1195,984,544,440,982.56,1048.3900000000001,1127.47,950.53,1207,1003,540,464,952.53,1008.02,987.48,1031.92,1224,1020,204,544,475,973.96,1029.42,696.87,1020.83,1039.26,1205,1003,202,547,456,1007.05,1061.77,735.82,1027.28,1103.21,1202,1004,199,535,469,1035.78,1088.8599999999999,767.54,1097.73,1078.74,1230,1025,205,534,491,1047,1108,741,1137,1077,7]
["Salisbury",7,82,46,"n","n",450.72,588.42999999999995,"n","n",89,51,"n","n",471.54,602.83000000000004,"n","n",86,55,21,34,559.95000000000005,644.72,496.64,737.5,97,62,24,38,559.13,674.6,572.57000000000005,739.16,115,78,"n","n",587.14,701.6,"n","n",123,85,35,50,564.03,652.48,613.79,680.02,127,88,39,49,577.59,654.99,602.66999999999996,696.95,122,82,32,50,576.65,667.8,624.02,695.16,112,75,22,52,641.24,722.63,667.06,746.12,114,73,20,53,627.85,724.31,652.33000000000004,750.71,94,58,16,42,564.70000000000005,606.16999999999996,651.04999999999995,589.15,103,64,15,49,571.66999999999996,623.87,685.17,604.69000000000005,109,74,20,54,627.6,670.74,671.77,670.35,102,65,"n","n",641.91,719.97,"n","n",103,69,"n","n",687.56,758.71,"n","n",102,66,23,43,661.82,728.43,809.01,684.46,113,78,24,53,701,757.88,860.56,711.42,126,84,29,55,697.35,788.85,912.43,725.3,134,85,49,32,54,667.59,759.02,507.12,896.45,677.03,126,75,51,32,43,717.34,868.71,496.55,880.05,860.3,124,82,43,34,48,748.68,850.81,553.39,849.31,851.86,140,94,46,39,55,733,833,529,925,769,7]
["Sutton",7,387,224,"n","n",630.24,734.46,"n","n",352,197,"n","n",661.21,787.11,"n","n",329,180,102,78,677.17,791.82,977.09,550.14,327,167,"n","n",716.72,845.21,"n","n",306,146,89,57,744.59,864.02,977.97,684.9,325,157,90,66,782.41,884.13,1034.3599999999999,678.84,379,202,82,120,721.36,741.89,1127.42,478.54,377,196,"n","n",724.76,748.28,"n","n",441,180,75,106,811.75,823.84,1159.05,586.07000000000005,452,201,"n","n",829.85,848.05,"n","n",461,211,"n","n",861.38,913.35,"n","n",457,221,"n","n",875.09,897.82,"n","n",450,219,"n","n",863.34,834.99,"n","n",446,218,96,122,877.28,831.25,1292.1600000000001,467.87,446,219,100,120,898.76,871.49,1314.35,501.21,431,209,"n","n",942.91,919.19,"n","n",446,220,"n","n",937.34,911.93,"n","n",444,221,"n","n",988.97,992.72,"n","n",422,200,222,"n","n",992.72,980.24,1003.98,"n","n",398,173,225,"n","n",1060.6500000000001,1039.55,1076.9100000000001,"n","n",388,169,219,"n","n",1112.9000000000001,1128.3599999999999,1100.93,"n","n",388,173,215,98,76,1154,1187,1128,1634,610,7]
["Warner",7,893,773,193,580,468.51,470.18,702.2,393.06,910,792,183,609,456.14,452.16,711.33,374.48,900,782,187,595,494.88,497.37,758.97,415.24,927,810,205,605,525.54999999999995,534.04,807.36,441.59,1072,962,210,752,618.5,629.86,833.9,572.94000000000005,1104,999,231,768,664.73,673.46,866.81,615.26,1084,978,254,725,703.89,710.98,945.35,628.95000000000005,1051,941,247,694,707.95,713.89,954.36,628.52,932,828,171,657,683.04,678.67,987.94,597.91999999999996,925,839,182,657,714.8,707.46,1089.81,601.4,946,861,207,653,754.62,754.02,1187.03,616.61,907,816,151,664,754.47,759.7,1244.19,649.28,906,818,142,677,736.43,735.55,1154.56,647.71,852,773,133,640,759.92,758.11,1126.6099999999999,681.54,935,854,168,687,804.2,804.99,1302.04,683.49,862,772,181,591,691.98,682.67,1287.83,497.44,852,756,171,586,698.88,685.98,1224.4100000000001,529,876,775,176,599,697.62,687.79,1125.05,559.45000000000005,901,801,100,173,627,708.39,698.26,789.59,1198.94,560.01,871,765,106,159,606,721.99,710.4,805.94,1188.3399999999999,585.21,786,683,103,130,552,769.4,763.28,810.02,1293.07,638.29999999999995,829,714,115,118,596,811,826,719,1384,715,7]
["Webster",7,147,111,66,45,505.83,559.85,740.37,290.42,142,109,63,46,518.71,549.80999999999995,755.43,268.58,151,117,58,59,569.70000000000005,613.53,906.77,327.72,152,116,58,58,557,598.69000000000005,824.61,374.4,153,117,59,58,566.69000000000005,607.88,859.63,350.68,153,110,58,51,639.16,733.41,1071.8800000000001,349.4,160,113,61,52,651.04999999999995,753.65,1106.54,342.98,157,112,66,46,696.52,796.9,1062.1300000000001,417.92,141,99,58,41,612.91,679.9,884.04,386.3,156,109,57,52,670.16,784.01,1057.28,485.73,173,122,56,66,896.85,1110.49,1645.04,658.08,149,97,26,70,667.35,825.22,1225.6300000000001,676.43,159,107,33,74,736.14,907.46,1123.4100000000001,809.76,157,108,"n","n",833.84,1002.03,"n","n",148,104,"n","n",944.82,1120.49,"n","n",149,106,51,55,853.28,992.57,1193.3499999999999,806.13,148,107,56,52,933.77,1081.73,1221.8599999999999,931.94,145,106,54,52,958.65,1075,1230.47,915.55,146,105,41,49,56,901.89,1021.94,596.29999999999995,1261.73,810.11,151,116,35,50,66,1072.3699999999999,1187.04,694.32,1352.23,1063.46,186,149,37,51,98,1047.57,1144.7,659.04,1324.73,1050.3,175,140,35,48,93,1018,1095,709,1358,959,7]
["Wilmot",7,139,127,47,81,450.77,462.51,591.84,387.98,155,140,47,93,437.31,452.43,567.47,395.07,149,136,52,84,527.39,548.75,663.35,477.92,150,137,"n","n",522.55999999999995,541.13,"n","n",167,153,41,112,504.92,518.09,657.49,466.39,174,159,42,117,527.53,545.70000000000005,725.67,481.95,182,163,40,123,597.76,619.85,741.39,580.03,175,156,"n","n",582.91,597.76,"n","n",169,148,35,114,558.65,581.78,663.15,557.1,155,133,"n","n",609.53,649.14,"n","n",163,139,"n","n",577.28,614.29,"n","n",167,146,40,106,630.73,663.1,681.7,656.11,161,143,"n","n",617.83000000000004,635.30999999999995,"n","n",169,150,36,114,629.07000000000005,653.97,722.07,632.83000000000004,174,155,35,120,637.67999999999995,664.35,753.23,638.27,165,145,36,109,660.99,689.51,738.65,673.15,170,149,36,113,695.56,728.84,716.56,732.73,166,146,35,111,657.48,677.19,772.76,647.53,160,140,20,39,101,682.62,700.06,560.84,773.07,672.09,134,114,20,"n","n",746.28,775.63,583.11,"n","n",162,143,19,45,98,729.22,742.14,632.16,839.91,697.25,155,138,17,33,105,777,780,756,860,755,7]
[]
[]
[]
[]
[]
[]
[]
[]
[]
[]
[]
[]
[]
[]
[]
[]
[]
[]
[]
["Labor Force and Unemployment Rate","Query Name: DPQryUnempByTown",null,"2023-04-21"]
[]
["PlaceName","LaborForce1990","LaborForce1991","LaborForce1992","LaborForce1993","LaborForce1994","LaborForce1995","LaborForce1996","LaborForce1997","LaborForce1998","LaborForce1999","LaborForce2000","LaborForce2001","LaborForce2002","LaborForce2003","NumbEmployed1990","NumbEmployed1991","NumbEmployed1992","NumbEmployed1993","NumbEmployed1994","NumbEmployed1995","NumbEmployed1996","NumbEmployed1997","NumbEmployed1998","NumbEmployed1999","NumbEmployed2000","NumbEmployed2001","NumbEmployed2002","NumbEmployed2003","UnempRate1990","UnempRate1991","UnempRate1992","UnempRate1993","UnempRate1994","UnempRate1995","UnempRate1996","UnempRate1997","UnempRate1998","UnempRate1999","UnempRate2000","UnempRate2001","UnempRate2002","UnempRate2003","NumbUnEmp1990","NumbUnEmp1991","NumbUnEmp1992","NumbUnEmp1993","NumbUnEmp1994","NumbUnEmp1995","NumbUnEmp1996","NumbUnEmp1997","NumbUnEmp1998","NumbUnEmp1999","NumbUnEmp2000","NumbUnEmp2001","NumbUnEmp2002","NumbUnEmp2003","LaborForce2004","NumbEmployed2004","UnempRate2004","NumbUnEmp2004","LaborForce2005","NumbEmployed2005","NumbUnEmp2005","UnempRate2005","LaborForce2006","NumbEmployed2006","NumbUnEmp2006","UnempRate2006","LaborForce2007","NumbEmployed2007","NumbUnEmp2007","UnempRate2007","LaborForce2008","NumbEmployed2008","NumbUnEmp2008","UnempRate2008","LaborForce2009","NumbEmployed2009","NumbUnEmp2009","UnempRate2009","LaborForce2010","NumbEmployed2010","NumbUnEmp2010","UnempRate2010","LaborForce2011","NumbEmployed2011","NumbUnEmp2011","UnempRate2011","LaborForce2012","NumbEmployed2012","NumbUnEmp2012","UnempRate2012","LaborForce2013","NumbEmployed2013","NumbUnEmp2013","UnempRate2013","LaborForce2014","NumbEmployed2014","NumbUnEmp2014","UnempRate2014","LaborForce2015","NumbEmployed2015","NumbUnEmp2015","UnempRate2015","LaborForce2016","NumbEmployed2016","NumbUnEmp2016","UnempRate2016","LaborForce2017","NumbEmployed2017","NumbUnEmp2017","UnempRate2017","LaborForce2018","NumbEmployed2018","NumbUnEmp2018","UnempRate2018","LaborForce2019","NumbEmployed2019","NumbUnEmp2019","UnempRate2019","LaborForce2020","NumbEmployed2020","NumbUnEmp2020","UnempRate2020","LaborForce2021","NumbEmployed2021","NumbUnEmp2021","UnempRate2021","LaborForce2022","NumbEmployed2022","NumbUnEmp2022","UnempRate2022","Place-TownIDNumber"]
["Concord",17158,19156,19345,19473,20493,20901,20846,21269,21945,22040,21450,21610,21650,21670,16236,17796,18081,18604,19817,20347,20327,20750,21448,21597,20940,20990,20950,20910,5.4,7.1000000000000005,6.5,4.5,3.3000000000000003,2.7,2.5,2.4,2.3000000000000003,2,2.4,2.9,3.2,3.5000000000000004,922,1360,1264,869,676,554,519,519,497,443,510,620,700,760,21380,20700,3.2,680,21470,20780,690,3.2,21760,21080,680,3.1,21910,21160,750,3.4000000000000004,22110,21300,810,3.7000000000000006,22350,21100,1250,5.6,22810,21650,1160,5.0999999999999996,22550,21470,1080,4.8,22600,21520,1080,4.8,22470,21450,1020,4.5,22380,21540,840,3.7000000000000006,22440,21760,680,3,22660,22090,570,2.5,22600,22050,550,2.4,22960,22440,520,2.2999999999999998,23190,22670,520,2.2000000000000002,22760,21350,1410,6.2,22260,21560,700,3.2,22530,22020,510,2.2999999999999998,708]
["Derry",17958,17746,18152,18497,18838,18314,18802,19008,19268,21920,19660,19960,19850,20060,16803,16278,16445,16998,17576,17406,17960,18213,18522,21159,19050,19020,18590,18830,6.4,8.3000000000000007,9.4,8.1,6.7,5,4.5,4.2,3.9,3.5,3.1,4.7,6.3,6.1,1155,1468,1707,1499,1262,908,842,795,746,761,610,940,1260,1230,20040,19040,5,1000,20230,19300,930,4.5999999999999996,19950,19140,810,4.0999999999999996,20050,19250,800,4,20240,19350,890,4.4000000000000004,20170,18770,1400,7.0000000000000009,19820,18424,1396,7.0000000000000009,19604,18375,1229,6.3,19895,18602,1293,6.5,19948,18720,1228,6.2000000000000011,19931,18897,1034,5.2,19840,19019,821,4.0999999999999996,19988,19275,713,3.6000000000000005,20216,19489,727,3.6000000000000005,20460,19790,670,3.3000000000000003,20630,20030,600,2.9,20290,18650,1640,8.1,19960,19210,750,3.7000000000000006,20290,19720,570,2.8,808]
["Dover",14442,14804,14525,14590,14159,14543,14597,14771,14778,14852,15820,15990,16200,16680,13728,13847,13574,13803,13638,14026,14138,14390,14439,14536,15420,15520,15600,16060,4.9000000000000004,6.5,6.5,5.4,3.7,3.6,3.1,2.6,2.3000000000000003,2.1,2.5,2.9,3.7000000000000006,3.7000000000000006,714,957,951,787,521,517,459,381,339,316,400,470,600,620,16980,16440,3.2,540,16980,16460,520,3.1,16890,16410,480,2.9,17220,16720,500,2.9,17420,16870,550,3.2,17280,16330,950,5.5,17390,16458,932,5.4,17411,16583,828,4.8,17494,16662,832,4.8,17600,16846,754,4.3,17731,17090,641,3.6000000000000005,17854,17338,516,2.9,18226,17798,428,2.2999999999999998,18297,17871,426,2.2999999999999998,18670,18250,420,2.2000000000000002,19040,18630,410,2.2000000000000002,18640,17420,1220,6.5,18560,17970,590,3.2,18790,18380,410,2.2000000000000002,902]
["Hudson",12484,12026,12188,12214,12119,12078,12442,12876,13125,13345,13500,13680,13660,14010,11727,11098,11160,11343,11344,11442,11918,12438,12722,12888,13130,13130,12920,13300,6.1000000000000005,7.7,8.4,7.1000000000000005,6.4,5.3,4.2,3.4,3.1,3.4,2.8,4,5.4,5.0999999999999996,757,928,1028,871,775,636,524,438,403,457,370,550,740,710,14420,13770,4.5,650,14750,14150,600,4.0999999999999996,14750,14200,550,3.8,14920,14350,570,3.8,14950,14330,620,4.0999999999999996,14930,13930,1000,6.7,14240,13290,950,6.7,14150,13280,870,6.1,14320,13400,920,6.5,14360,13500,860,6,14460,13690,770,5.3,14510,13890,620,4.2,14680,14180,500,3.4000000000000004,14720,14210,510,3.5000000000000004,15130,14630,500,3.3000000000000003,15410,14920,490,3.2,30920,13920,1190,7.9,14890,14330,560,3.8,15150,14720,430,2.9,614]
["Londonderry",11797,11497,11671,11945,12109,11969,12248,12747,13057,13288,13370,13700,13730,13880,11223,10806,10886,11198,11492,11495,11820,12345,12706,12914,13030,13180,13020,13200,4.9000000000000004,6,6.7,6.3,5.1000000000000005,4,3.5,3.2,2.7,2.8000000000000003,2.5,3.8,5.2,4.9000000000000004,574,691,785,747,617,474,428,402,351,374,340,520,710,680,14070,13500,4.0999999999999996,570,14490,13960,530,3.7000000000000006,14430,13940,490,3.4000000000000004,14620,14120,500,3.4000000000000004,14670,14120,550,3.7000000000000006,14540,13680,860,5.9,14270,13470,800,5.6,14160,13420,740,5.2,14410,13600,810,5.6,14440,13690,750,5.2,14510,13850,660,4.5,14960,14440,520,3.5000000000000004,15440,15000,440,2.8,15620,15170,450,2.9,15940,15480,460,2.9,16310,15860,450,2.8,15930,14880,1050,6.6000000000000005,15810,15320,490,3.1,16140,15730,410,2.6,819]
["Manchester",57227,54398,53484,53029,52584,54444,54748,56302,57027,57867,58440,59230,59350,60270,53493,49879,48873,49490,49803,52144,52888,54663,55481,56389,56950,57140,56610,57550,6.5,8.3000000000000007,8.6,6.7,5.3,4.2,3.4,2.9,2.7,2.6,2.6,3.5000000000000004,4.5999999999999996,4.5,3734,4519,4611,3539,2781,2300,1860,1639,1546,1478,1490,2090,2740,2720,60940,58510,4,2430,61140,58810,2330,3.8,61080,58710,2370,3.9,61520,59130,2390,3.9,61910,59230,2680,4.3,62170,57720,4450,7.2000000000000011,61300,57130,4170,6.8000000000000007,60990,57330,3660,6,61290,57460,3830,6.3,61390,57990,3400,5.5,61890,59020,2870,4.5999999999999996,61940,59690,2250,3.6000000000000005,62710,60800,1910,3,63570,61680,1890,3,65350,63610,1740,2.7,66170,64440,1730,2.6,64820,59710,5110,7.9,63710,61250,2460,3.9,64460,62770,1690,2.6,617]
["Merrimack",13981,13473,13706,13893,13686,13315,13754,14250,14570,14810,15420,15760,15890,16040,13416,12714,12773,12999,12979,12783,13294,13866,14217,14403,15070,15270,15160,15360,4,5.6000000000000005,6.8,6.4,5.2,4,3.3000000000000003,2.7,2.4,2.7,2.2999999999999998,3.1,4.5999999999999996,4.2,565,759,933,894,707,532,460,384,353,407,350,490,730,680,16250,15710,3.3000000000000003,540,16520,16020,500,3,16440,15950,490,3,16550,16060,490,3,16510,15970,540,3.3000000000000003,16470,15520,950,5.8,61300,57130,4170,6.8000000000000007,60990,57330,3660,6,61290,57460,3830,6.3,61390,57990,3400,5.5,61890,59020,2870,4.5999999999999996,61940,59690,2250,3.6000000000000005,62710,60800,1910,3,15810,15380,430,2.7,16190,15770,420,2.6,16770,16360,410,2.4,16820,15810,1010,6,16770,16280,490,2.9,17110,16720,390,2.2999999999999998,619]
["Nashua",48381,45637,45669,45204,43405,44276,45430,46753,47362,48054,48150,48730,48350,48550,45749,42390,42064,41756,40901,42188,43654,45410,45982,46581,46830,46750,45610,46000,5.4,7.1000000000000005,7.9,7.6000000000000005,5.8,4.7,3.9,2.9,2.9,3.1,2.7,4.0999999999999996,5.7,5.2,2632,3247,3605,3448,2504,2088,1776,1343,1380,1473,1320,1980,2740,2550,48910,46770,4.4000000000000004,2140,49460,47490,1970,4,49190,47270,1920,3.9,49360,47510,1850,3.7000000000000006,49270,47280,1990,4,49520,46070,3450,7.0000000000000009,48410,45220,3190,6.6000000000000005,48090,45080,3010,6.2,48600,45500,3100,6.4,48830,45940,2890,5.9,48860,46380,2480,5.0999999999999996,49150,47210,1940,3.9,49440,47750,1690,3.4000000000000004,49710,48040,1670,3.4000000000000004,50710,49170,1540,3,51630,50090,1540,3,50730,46610,4120,8.1,50030,48000,2030,4.0999999999999996,50740,49280,1460,2.9,622]
["Rochester",14242,14280,14153,14123,13917,14056,14172,14407,14297,14288,15280,15450,15670,15900,13158,12952,12771,13032,13177,13387,13529,13825,13799,13892,14820,14880,14870,15210,7.6000000000000005,9.3000000000000007,9.8000000000000007,7.7,5.3,4.8,4.5,4,3.5,2.8000000000000003,3,3.7000000000000006,5.0999999999999996,4.3,1084,1328,1382,1091,740,669,643,582,498,396,460,570,800,690,16150,15550,3.7000000000000006,600,16360,15740,620,3.8,16340,15790,550,3.3000000000000003,16700,16100,600,3.6000000000000005,17120,16410,710,4.0999999999999996,17210,15950,1260,7.3,16940,15815,1125,6.6000000000000005,16868,15894,974,5.8,16840,15863,977,5.8,16849,15932,917,5.4,16923,16214,709,4.2,16914,16360,554,3.3000000000000003,17257,16818,439,2.5,17433,17005,428,2.5,17920,17480,440,2.4,18140,17700,440,2.4,17760,16520,1240,7.0000000000000009,17640,17040,600,3.4000000000000004,17850,17430,420,2.2999999999999998,910]
["Salem",15853,15251,15792,16067,15973,15983,16536,16695,17028,19224,16440,16840,17070,17060,14545,13832,14010,14242,14652,14897,15474,15785,16115,18409,15780,15940,15860,15880,8.3000000000000007,9.3000000000000007,11.3,11.4,8.3000000000000007,6.8,6.4,5.5,5.4,4.2,4,5.3,7.1,6.9,1308,1419,1782,1825,1321,1086,1062,910,913,815,660,900,1210,1180,17300,16210,6.3,1090,17440,16490,950,5.5,17510,16680,830,4.7,17840,16970,870,4.9000000000000004,17830,16880,950,5.3,17830,16410,1420,8,17320,16110,1210,7.0000000000000009,17300,16160,1140,6.6000000000000005,17530,16330,1200,6.8000000000000007,17580,16480,1100,6.2,17660,16730,930,5.2,17680,16920,760,4.3,17770,17130,640,3.6000000000000005,17850,17180,670,3.7000000000000006,18390,17770,620,3.4000000000000004,18780,18150,630,3.4000000000000004,18630,17040,1590,8.5,18560,17820,740,4,18980,18400,580,3,832]
[]
[]
["NH Employment Data","Query Name: DPQryEmploymentByCnty-Good-Serv-Total","Updated:","2022-09-14"]
[]
["AreaName","COUNTYCODE","TOTP & G2001","TOT2001","GOODPRO2001","SERVICEPROMAN2001","WAGEP & G2001","WAGETOT2001","WAGEGOODPRO2001","WAGESERVICEPRO2001","TOTP & G2002","TOT2002","GOODPRO2002","SERVICEPROMAN2002","WAGEP & G2002","WAGETOT2002","WAGEGOODPRO2002","WAGESERVICEPRO2002","TOTP & G2003","TOT2003","GOODPRO2003","SERVICEPROMAN2003","WAGEP & G2003","WAGETOT2003","WAGEGOODPRO2003","WAGESERVICEPRO2003","TOTP & G2004","TOT2004","GOODPRO2004","SERVICEPROMAN2004","WAGEP & G2004","WAGETOT2004","WAGEGOODPRO2004","WAGESERVICEPRO2004","TOTP & G2005","TOT2005","GOODPRO2005","SERVICEPROMAN2005","WAGEP & G2005","WAGETOT2005","WAGEGOODPRO2005","WAGESERVICEPRO2005","TOTP & G2006","TOT2006","GOODPRO2006","SERVICEPROMAN2006","WAGEP & G2006","WAGETOT2006","WAGEGOODPRO2006","WAGESERVICEPRO2006","TOTP & G2007","TOT2007","GOODPRO2007","SERVICEPROMAN2007","WAGEP & G2007","WAGETOT2007","WAGEGOODPRO2007","WAGESERVICEPRO2007","TOTP & G2008","TOT2008","GOODPRO2008","SERVICEPROMAN2008","WAGEP & G2008","WAGETOT2008","WAGEGOODPRO2008","WAGESERVICEPRO2008","TOTP & G2009","TOT2009","GOODPRO2009","SERVICEPROMAN2009","WAGEP & G2009","WAGETOT2009","WAGEGOODPRO2009","WAGESERVICEPRO2009","TOTP & G2010","TOT2010","GOODPRO2010","SERVICEPROMAN2010","WAGEP & G2010","WAGETOT2010","WAGEGOODPRO2010","WAGESERVICEPRO2010","TOTP & G2011","TOT2011","GOODPRO2011","SERVICEPROMAN2011","WAGEP & G2011","WAGETOT2011","WAGEGOODPRO2011","WAGESERVICEPRO2011","TOTP & G2012","TOT2012","GOODPRO2012","SERVICEPROMAN2012","WAGEP & G2012","WAGETOT2012","WAGEGOODPRO2012","WAGESERVICEPRO2012","TOTP & G2013","TOT2013","GOODPRO2013","SERVICEPROMAN2013","WAGEP & G2013","WAGETOT2013","WAGEGOODPRO2013","WAGESERVICEPRO2013","TOTP & G2014","TOT2014","GOODPRO2014","SERVICEPROMAN2014","WAGEP & G2014","WAGETOT2014","WAGEGOODPRO2014","WAGESERVICEPRO2014","TOTP & G2015","TOT2015","GOODPRO2015","SERVICEPROMAN2015","WAGEP & G2015","WAGETOT2015","WAGEGOODPRO2015","WAGESERVICEPRO2015","TOTP & G2016","TOT2016","GOODPRO2016","SERVICEPROMAN2016","WAGEP & G2016","WAGETOT2016","WAGEGOODPRO2016","WAGESERVICEPRO2016","TOTP & G2017","TOT2017","GOODPRO2017","SERVICEPROMAN2017","WAGEP & G2017","WAGETOT2017","WAGEGOODPRO2017","WAGESERVICEPRO2017","TOTP & G2018","TOT2018","GOODPRO2018","SERVICEPROMAN2018","WAGEP & G2018","WAGETOT2018","WAGEGOODPRO2018","WAGESERVICEPRO2018","TOTP & G2019","TOT2019","TOTGov2019","GOODPRO2019","SERVICEPROMAN2019","WAGEP & G2019","WAGETOT2019","WAGEGov2019","WAGEGOODPRO2019","WAGESERVICEPRO2019","TOTP & G2021","TOT2021","TOTGov2021","GOODPRO2021","SERVICEPROMAN2021","WAGEP & G2021","WAGETOT2021","WAGEGov2021","WAGEGOODPRO2021","WAGESERVICEPRO2021","TOTP & G2021","TOT2021","TOTGov2021","GOODPRO2021","SERVICEPROMAN2021","WAGEP & G2021","WAGETOT2021","WAGEGov2021","WAGEGOODPRO2021","WAGESERVICEPRO2021","TOTP & G2022","TOT2022","GOODPRO2022","SERVICEPROMAN2022","WAGEP & G2022","WAGETOT2022","WAGEGOODPRO2022","WAGESERVICEPRO2022","PlaceTownIDNumber","COUNTYCODE"]
["Belknap County",1,26173,22708,6138,16570,541.07000000000005,538.34,689.88,482.21,26052,22334,5408,16926,561.11,555.84,731.15,499.83,26286,22376,5281,17095,579.91,573.04,754.28,517.04999999999995,26931,23030,5431,17599,610.04,602.01,777.41,547.89,26940,22891,5467,17424,636.41999999999996,634.14,819.42,576,27237,23042,5133,17909,657.93,655.07000000000005,862.32,595.66999999999996,27266,23032,4820,18212,674.29,668.31,921.91,601.17999999999995,26793,22507,4572,17935,689.74,680.53,938.61,614.74,25570,21280,3944,17337,692.98,680.87,934.72,623.12,24943,20713,3480,17234,698.61,690.71,945.91,639.19000000000005,24953,20748,3411,17337,706.01,697.17,959.24,645.61,25196,20972,3400,17572,708.66,703.81,960.55,654.13,25517,21311,3517,17794,718.36,714.81,997.67,658.89,25490,21315,3554,17761,748.41,745.98,1036.05,687.93,25584,21457,3597,17859,776.57,774.35,1066.24,715.55,25708,21577,3626,17951,797.95,796.89,1088.81,737.93,25829,21725,3676,18049,823.13,823.31,1139.79,758.85,25898,21803,3774,18029,851.06,851.82,1167.98,785.64,26080,22008,4072,3799,18209,854.12,849.87,877.08,1177.3,781.56,23895,20018,3878,3578,16439,949.48,948,957.09,1212.92,890.34,24938,21021,3917,3619,17402,965.32,969.25,944.22,1287.7,903.02,25226,21338,3632,17706,1005,1007,1332,941,1016,1]
["Carroll County",2,19495,16938,2563,14374,467.52,460.32,627.98,430.42,19756,17153,2497,14656,481.01,472.65,645.74,443.16,20167,17534,2567,14967,492.28,481.72,647.55999999999995,453.27,20405,17701,2526,15175,519.72,511.1,687.06,481.81,20215,17448,2541,14906,533.86,524.08000000000004,703.81,493.43,20294,17504,2588,14916,575.59,568.1,737.84,538.66,20402,17510,2544,14966,573.29999999999995,562.55999999999995,760.1,528.99,20584,17636,2552,15084,584.17999999999995,570.32000000000005,770.38,536.47,19942,16904,2265,14639,587.36,570.99,765.31,540.91999999999996,19810,16754,2124,14630,600.19000000000005,586.5,775.97,558.99,19997,17005,2189,14816,617.28,603.41999999999996,798.39,574.61,20082,17083,2162,14921,627.16999999999996,615.41,800.29,588.62,19971,16958,2084,14874,645.66999999999996,633.79,805.62,609.71,20015,16952,2024,14928,640.24,627.02,843.7,597.64,19806,16828,1996,14832,667.3,653.87,884.26,622.86,19997,17053,2030,15023,686.74,674.21,909.04,642.48,20005,17047,2057,14991,692.33,677.15,941.62,640.87,20015,17037,2078,14959,710.33,694.81,905.58,665.54,20228,17268,2960,2128,15140,735.27,721.26,816.99,942.12,690.22,17882,15000,2883,2074,12926,841.07,832.06,888,1019.76,801.94,18856,16033,2823,2145,13888,872.88,865.29,916,1033.17,839.36,19410,16536,2187,14349,918,915,1060,893,1017,2]
["Cheshire County",3,32349,27819,"n","n",571.92999999999995,577.30999999999995,"n","n",32369,27595,7795,19800,584.33000000000004,590.97,743.2,531.04,32548,27626,7754,19873,598.89,603.04,763.11,540.59,33075,28132,7648,20484,631.09,634.67999999999995,807.42,570.17999999999995,33995,28886,8110,20776,656.03,666.98,828.9,603.78,34194,29151,7889,21262,723.95,741.43,987.42,650.15,33638,28601,7473,21128,707.44,717.07,867.3,663.94,33220,28351,7351,21000,746.75,752.8,902.94,700.24,32207,27212,6761,20451,742.41,745.7,870.79,704.34,31527,26585,6300,20286,754.45,756.21,900.6,711.38,31690,26854,6240,20614,768.13,768.69,935.64,718.15,32021,27158,6245,20914,790.24,793.9,933.87,752.11,31923,27008,6032,20975,796.52,797.61,965.3,749.39,31904,26935,6025,20910,810.83,815.88,993.69,764.64,32067,27097,6073,21024,830.63,834.25,1010.79,783.25,32005,27109,6177,20932,838.96,843.47,1028.03,789.01,31743,26953,6194,20759,867.06,873.07,1043.75,822.14,31642,26825,6445,20380,895.81,907.01,1090.07,849.12,31737,26923,4814,6652,20272,913.17,927.09,835.36,1100.44,870.2,29801,25226,4575,6410,18816,1000.19,1013.03,929.37,1159.32,963.2,30189,26304,3884,6689,19615,1014.16,1025.44,937.75,1193.71,968.06,31326,26866,7145,19722,1081,1104,1278,1041,1018,3]
["Coos County",4,13872,11234,"n","n",489.02,487.7,"n","n",13737,11021,2332,8689,490.8,484.33,650.88,439.63,13946,11225,2578,8647,525.08000000000004,519.66,703.37,464.89,14103,11341,2590,8751,542.98,540.59,726.42,485.6,14026,11222,2533,8689,556.04,552.64,754.89,493.68,13898,10991,2334,8657,572.86,571.41999999999996,766.73,518.76,13876,11050,2184,8866,583.63,572.30999999999995,758.88,526.34,13566,10747,1988,8759,602.53,587.51,755.51,549.38,13002,10134,1720,8414,609.67999999999995,592.77,751.35,560.36,12832,9977,1593,8384,608.57000000000005,589.54,744.88,560.02,12555,9785,1473,8312,620.23,600.46,757.95,572.54,12371,9564,1568,7995,640.94000000000005,622.74,825.56,582.97,12515,9564,1649,7915,667.37,647.75,855.89,604.39,12064,9083,1293,7789,675.59,651.58000000000004,777.89,630.61,11974,9046,1222,7824,694.46,666.94,788.97,647.89,11990,9038,1167,7870,706.62,682.98,853.55,657.68,11999,9070,1223,7846,729.45,705.37,867.99,680.02,11970,9060,1296,7764,749.69,723.06,852.68,701.43,12083,9226,2857,1304,7921,766.79,735.31,868.44,914.39,705.82,10860,8144,2716,1260,6884,857.08,825.46,951.91,905.94,810.72,11341,8617,2724,1357,7260,875.17,849.5,956.35,872.32,845.23,11633,8928,1393,7535,954,944,1180,900,1019,4]
["Grafton County",5,49352,43256,8085,35171,617.73,624.04999999999995,672.45,612.92999999999995,49690,43362,7763,35599,658.93,668.77,701.81,661.56,50615,44009,7790,36220,704.15,717.01,753.77,709.11,51355,44704,7636,37069,728.96,740.6,770.78,734.38,51541,44954,7698,37256,768.82,783.94,809.26,778.7,52267,45531,7761,37770,803.4,820.96,855.22,813.92,52729,45992,7672,38320,843.04,860.73,901.98,852.47,52901,46166,7347,38819,867.61,884.82,928.14,876.62,51401,44646,6446,38200,879.4,895.26,899.95,894.47,51256,44376,6289,38086,905.77,925.54,949.83,921.53,51663,44867,6681,38186,926.58,946.3,981.6,940.12,52026,45246,6818,38428,950.95,973.52,996.15,969.5,52153,45454,6717,38736,965.05,986.68,1028.75,979.39,52226,45565,6778,38787,1004.06,1029.1500000000001,1069.54,1022.09,52654,46056,6882,39174,1037.55,1061.83,1078.8900000000001,1058.83,53361,46686,6801,39885,1058.5999999999999,1086.92,1082.4000000000001,1087.69,53790,47161,6781,40380,1079.6300000000001,1108.6099999999999,1125.3,1105.81,54119,47417,6926,40491,1105.33,1135.81,1167.74,1130.3399999999999,54388,47685,6703,6855,40830,1142.8,1174.8,915.17,1156.02,1177.95,50622,44208,6414,6338,37870,1251.72,1287.53,1004.85,1194.47,1303.1099999999999,52299,45834,6465,6526,39308,1284.3900000000001,1324,1003.57,1309.54,1326.4,53193,47047,6756,40292,1320,1356,1348,1358,1020,5]
["Hillsborough County",6,192842,173003,47169,125834,756.14,762.49,941.37,695.43,188573,168164,42086,126078,768.52,773.3,968.23,708.23,190864,169969,41006,128962,801.91,806.79,1014.82,740.64,193543,172567,40910,131656,839.56,844.4,1064.01,776.16,196190,174854,40181,134673,866.71,873.18,1101.58,805.03,196502,175094,39123,135971,897.24,904,1171.1600000000001,827.13,197183,175821,38588,137233,946.54,951.14,1248.82,867.44,195976,174253,36628,137625,973.54,979.17,1267.17,902.52,187240,165260,33003,132257,959.3,962.96,1236.24,894.76,184628,162829,32117,130712,980.99,986.25,1287.9100000000001,912.12,186437,165030,32694,132336,1013.7,1018.86,1329.81,942.03,188425,167133,31642,135492,1029.82,1035.95,1325.69,968.28,190568,169383,30861,138522,1038.74,1045.24,1365.43,973.9,193565,172574,31422,141152,1092.9000000000001,1101.22,1393.55,1036.1500000000001,196842,175848,31842,144005,1099.51,1106.52,1401.46,1041.3,199729,178867,32654,146213,1118.6300000000001,1126.21,1436.51,1056.9100000000001,201740,180839,33513,147327,1147.78,1156.08,1490.14,1080.0899999999999,203961,182874,34296,148577,1182,1189.98,1525.57,1112.51,205989,184819,21170,35047,149772,1219.73,1229.8399999999999,1131.48,1558.29,1152.98,192746,172283,20463,33774,138510,1350.41,1366.74,1212.8699999999999,1698.45,1285.8599999999999,196932,176563,20368,33764,142800,1406.98,1425.94,1242.6500000000001,1745.36,1350.42,200919,180392,34516,145876,1452,1472,1832,1386,1021,6]
["Merrimack County",7,71543,56168,12137,44031,631.86,633.92999999999995,772.48,595.74,71850,56025,11403,44622,653.27,655.12,799.93,618.12,72840,56631,11036,45595,667.06,666.91,826.68,628.24,72381,56515,10742,45773,690.51,689.4,845.49,652.77,72963,56979,11012,45967,710.07,710.67,861.87,674.44,74077,57818,10760,47058,739.28,739.89,906.79,701.73,74070,57629,10051,47579,774.05,772.96,972.47,730.82,73959,57295,9822,47472,795.3,789.49,978.78,750.33,72134,55582,8724,46857,810.16,788.36,966.04,755.28,71882,55306,8662,46645,821.15,806.64,998.67,770.98,72140,55913,9059,46854,835.3,821.63,1012.78,784.67,72901,56946,9282,47664,850.4,842.26,1036.72,804.39,73510,57805,9457,48348,866.04,857.51,1050.8699999999999,819.69,74884,58800,9698,49103,892.44,882.46,1086.78,842.11,75670,59563,9801,49762,929.04,918.53,1114.06,880.02,76413,60219,9936,50283,946.35,937.29,1126.3800000000001,899.92,76803,60570,10042,50528,980.03,971.23,1164.72,932.78,77469,61326,10142,51184,1012.33,1004.39,1186.1199999999999,968.39,77816,61536,16281,10313,51222,1038.6300000000001,1030.98,1067.56,1209.32,995.07,73101,57299,15802,9711,47587,1132,1126.1500000000001,1153.22,1268.4000000000001,1097.1199999999999,73335,57980,15355,9834,48146,1169.23,1172.8,1155.74,1298.8699999999999,1147.05,75215,59610,10148,49462,1250,1269,1360,1250,1022,7]
["New Hampshire",1026,610446,531225,127190,404035,682.38,691.51,842.11,644.1,603100,521320,115244,406076,695.8,703.84,868.13,657.22,604198,520362,111472,408890,717.94,724.91,888.81,680.22,613327,529515,111893,417622,753.7,760.58,928.63,715.56,620909,536173,112033,424140,779.84,788.93,958.48,744.15,627301,541435,110189,431246,816.3,827.48,1013.11,780.04,630171,543800,107673,436127,843.46,852.45,1054.1600000000001,802.65,628819,541768,104441,437326,863.66,870.64,1074.5999999999999,821.93,604915,517658,92952,424706,864.05,867.37,1066.42,823.81,600540,513386,89428,423957,883.88,890.13,1119.47,841.75,605864,520338,90996,429342,909.31,916.27,1140.95,868.65,612432,527263,90404,436858,928.33,938.02,1152.07,893.72,618756,534106,90890,443216,941.75,950.79,1173.1099999999999,905.2,626567,541441,92176,449265,983.96,996.35,1200.71,954.42,636798,552276,93968,458308,1010.64,1021.89,1224.55,980.34,647375,562836,96138,466699,1030.04,1042.6300000000001,1251.03,999.7,653496,569023,97995,471029,1060.3399999999999,1073.99,1294.46,1028.1199999999999,658816,574044,100089,473955,1091.97,1106.44,1317.59,1061.8499999999999,665374,580394,84980,101907,478487,1128.27,1145.04,1013.77,1346.98,1102.03,624442,542824,81618,97843,444981,1247.45,1269.51,1100.73,1431.08,1233.99,647978,567574,80404,99578,467996,1386.82,1425,1117.32,1483.75,1412.5,670634,589201,102750,486451,1389,1423,1549,1396,1026]
["Rockingham County",8,130960,117604,24384,93220,704.6,714.62,913.02,662.73,130242,116589,22286,94302,712.56,720.57,945.47,667.42,130329,116466,21075,95392,725.68,731.51,920.38,689.79,133803,119786,21944,97841,774.11,781.14,964.22,740.08,136154,122028,22051,99976,796.86,803.2,996.54,760.55,138063,123549,22274,101275,842.13,851.8,1013.05,816.33,138382,123679,22407,101273,849.04,856.27,1052.77,812.8,137191,122378,22407,99970,839.01,841.86,1081.82,788.07,131375,116492,19644,96848,839.06,840.45,1104.3599999999999,786.93,131892,117079,18689,98391,862.17,865.32,1199.72,801.8,133444,119079,18941,100138,880.6,883.65,1146.49,833.93,135396,121125,18942,102183,907.06,912.95,1200.98,859.56,137505,123255,19558,103698,919.22,924.42,1204.8699999999999,871.53,139972,125705,20107,105598,967.99,976.63,1214.5999999999999,931.32,143650,129571,20954,108617,999.45,1007.52,1260.8800000000001,958.65,146926,132843,21711,111132,1008.63,1016.49,1289.1199999999999,963.24,149059,134948,22384,112564,1040.5999999999999,1049.82,1335.62,992.99,149817,135525,22957,112568,1068.69,1079.1600000000001,1345.67,1024.8,151694,137342,14352,23611,113731,1110.28,1122.81,990.42,1388.53,1067.6400000000001,141876,128387,13488,23301,105086,1204.1600000000001,1216.3900000000001,1087.78,1435.04,1167.9100000000001,147153,133559,13593,23930,109629,1266.5,1282.33,1110.97,1480.19,1239.1400000000001,151310,137387,24619,112767,1327,1345,1543,1301,1023,8]
["Strafford County",9,43645,34821,9068,25753,655.37,655.92,770.85,615.45000000000005,42874,33684,7630,26054,655.35,652.99,800.21,609.88,43046,33530,7366,26164,668.52,656.47,806.84,614.13,43436,33873,7230,26643,693.72,673.65,820.17,633.9,43773,34267,7211,27056,709.03,692.76,828.02,656.71,44557,35064,7140,27925,723.22,705.71,858.22,666.71,45570,35960,6960,29000,746.96,729.16,880.17,692.91,46580,36991,6754,30237,803.35,784.14,900.05,758.25,44375,35115,5981,29133,822.2,798.7,916.04,774.61,44144,34793,5960,28833,843.68,824.98,964.85,796.07,44154,34870,6008,28863,879.87,868.02,1098.93,819.95,45017,35667,6036,29631,875.8,864.35,1039.17,828.73,45379,36187,6365,29822,896.63,880.93,1050.44,844.76,46249,36899,6431,30469,915.86,906.58,1082.2,869.52,46826,37517,6657,30860,954.37,941.53,1121.8,902.65,47632,38313,6879,31434,967.61,953.88,1119.03,917.74,48165,38780,6935,31845,990.95,980.7,1148.01,944.26,48371,39036,6997,32039,1004.47,991.1,1131.83,960.36,48714,39366,9348,7127,32239,1034.79,1028.5999999999999,1060.8599999999999,1146.21,1002.6,45799,36761,9038,6439,30321,1109.92,1099.0999999999999,1153.96,1214.9000000000001,1074.5,46804,37871,8933,6556,31316,1140.3699999999999,1132.99,1171.6600000000001,1259.19,1106.57,47470,38529,6974,31554,1186,1184,1296,1159,1024,9]
["Sullivan County",10,14086,11544,"n","n",536.78,549.33000000000004,"n","n",13793,11231,4452,6779,561.15,569.74,685.65,493.64,13370,10809,4059,6750,577.41,588.45000000000005,688.92,528.03,13551,11127,4066,7061,602.70000000000005,607.34,721.67,541.5,13862,11386,4086,7300,615.79,621.85,741.34,554.98,13826,11306,3928,7377,642.61,650.96,800.27,571.45000000000005,13873,11351,3958,7393,676.8,687.32,843.22,603.85,13799,11227,3909,7318,687.34,698.53,866.24,608.95000000000005,13185,10586,3466,7121,698.02,705.82,887.35,617.47,13076,10479,3303,7176,714.38,723.66,917.55,634.42999999999995,13190,10617,3204,7413,723.57,732.12,955.94,635.39,13597,11070,3448,7622,757.15,771.77,1038.8399999999999,650.94000000000005,13793,11373,3704,7670,768.35,784.88,1012.65,674.88,13873,11439,3932,7507,795.94,816.28,1039.17,699.53,14090,11709,3948,7761,803.2,815.31,1021.57,710.37,14204,11783,4061,7722,810.76,830.28,1066.2,706.22,13997,11636,4031,7605,821.95,836.22,1048.48,723.72,13966,11628,3919,7708,836.09,849.04,1063.6199999999999,739.94,13735,11390,2344,3818,7573,854.16,864.16,805.53,1081.23,754.74,13162,10897,2266,3666,7231,933.76,950.68,852.41,1145.6400000000001,851.82,13487,11250,2237,3748,7502,996.61,1021.24,872.79,1258.53,902.68,13460,11234,3901,7333,1031,1058,1256,952,1025,10]

{"sheet":"BuildingPermitsSince2000","index":9,"n_rows":41,"n_cols":25,"rows_kept":41,"cut":false,"hidden":true,"merged":[[3,1,3,3]]}
[]
[null,{"$f":"CntyDataLink!A35","v":"Allenstown"}]
[]
[null,"HOUSING CHARACTERISTICS"]
[]
[]
[]
[]
[]
[]
[]
[]
[]
[]
[]
[]
[]
[]
[]
[]
[]
[]
[]
[]
[]
[]
[]
[]
[]
[]
[]
[]
[]
[]
[null,"Housing Units Authorized by Permit",null,null,null,"Source:  Office of Planning and Development, NH BEA"]
[]
[null,"Year",2000,{"$f":"C37+1","v":2001},{"$f":"D37+1","v":2002},2003,2004,2005,2006,2007,2008,2009,2010,2011,2012,2013,2014,2015,2016,2017,2018,2019,2020,2021,"Total"]
[null,"Single Family",{"$f":"CntyDataLink!$BU$20","v":3},{"$f":"CntyDataLink!$BX$20","v":8},{"$f":"CntyDataLink!$CA$20","v":7},{"$f":"CntyDataLink!$CD$20","v":1},{"$f":"CntyDataLink!$CG$20","v":9},{"$f":"CntyDataLink!$CJ$20","v":9},{"$f":"CntyDataLink!$CM$20","v":16},{"$f":"CntyDataLink!$CO$20","v":11},{"$f":"CntyDataLink!$CS$20","v":-3},{"$f":"CntyDataLink!$CV$20","v":4},{"$f":"CntyDataLink!$CY$20","v":3},{"$f":"CntyDataLink!$DB$20","v":-1},{"$f":"CntyDataLink!$DE$20","v":1},{"$f":"CntyDataLink!$DH$20","v":3},{"$f":"CntyDataLink!$DK$20","v":0},{"$f":"CntyDataLink!$DN$20","v":1},{"$f":"CntyDataLink!$DQ$20","v":1},{"$f":"CntyDataLink!$DT$20","v":9},{"$f":"CntyDataLink!$DW$20","v":8},{"$f":"CntyDataLink!$DZ$20","v":5},{"$f":"CntyDataLink!$EC$20","v":3},{"$f":"CntyDataLink!$EI$20","v":3},{"$f":"SUM(C38:X38)","v":101}]
[null,"Multi-family",{"$f":"CntyDataLink!$BV$20","v":0},{"$f":"CntyDataLink!$BY$20","v":2},{"$f":"CntyDataLink!$CB$20","v":1},{"$f":"CntyDataLink!$CE$20","v":2},{"$f":"CntyDataLink!$CH$20","v":0},{"$f":"CntyDataLink!$CK$20","v":0},{"$f":"CntyDataLink!$CN$20","v":0},{"$f":"CntyDataLink!$CP$20","v":9},{"$f":"CntyDataLink!$CT$20","v":0},{"$f":"CntyDataLink!$CW$20","v":0},{"$f":"CntyDataLink!$CZ$20","v":0},{"$f":"CntyDataLink!$DC$20","v":2},{"$f":"CntyDataLink!$DF$20","v":0},{"$f":"CntyDataLink!$DI$20","v":-6},{"$f":"CntyDataLink!$DL$20","v":0},{"$f":"CntyDataLink!$DO$20","v":8},{"$f":"CntyDataLink!$DR$20","v":0},{"$f":"CntyDataLink!$DU$20","v":0},{"$f":"CntyDataLink!$DX$20","v":0},{"$f":"CntyDataLink!$EA$20","v":0},{"$f":"CntyDataLink!$ED$20","v":39},{"$f":"CntyDataLink!$EJ$20","v":0},{"$f":"SUM(C39:X39)","v":57}]
[null,"Manufactured",{"$f":"CntyDataLink!$BW$20","v":24},{"$f":"CntyDataLink!$BZ$20","v":17},{"$f":"CntyDataLink!$CC$20","v":14},{"$f":"CntyDataLink!$CF$20","v":7},{"$f":"CntyDataLink!$CI$20","v":7},{"$f":"CntyDataLink!$CL$20","v":0},{"$f":"CntyDataLink!$CO$20","v":11},{"$f":"CntyDataLink!$CR$20","v":14},{"$f":"CntyDataLink!$CU$20","v":11},{"$f":"CntyDataLink!$CX$20","v":5},{"$f":"CntyDataLink!$DA$20","v":3},{"$f":"CntyDataLink!$DD$20","v":3},{"$f":"CntyDataLink!$DG$20","v":1},{"$f":"CntyDataLink!$DJ$20","v":0},{"$f":"CntyDataLink!$DM$20","v":2},{"$f":"CntyDataLink!$DP$20","v":-1},{"$f":"CntyDataLink!$DR$20","v":0},{"$f":"CntyDataLink!$DV$20","v":-3},{"$f":"CntyDataLink!$DY$20","v":0},{"$f":"CntyDataLink!$EB$20","v":2},{"$f":"CntyDataLink!$EE$20","v":7},{"$f":"CntyDataLink!$EK$20","v":8},{"$f":"SUM(C40:X40)","v":132}]
[null,"Total",{"$f":"SUM(C38:C40)","v":27},{"$f":"SUM(D38:D40)","v":27},22,10,16,9,27,34,8,9,6,4,2,-3,2,8,1,6,{"$f":"SUM(U38:U40)","v":8},{"$f":"SUM(V38:V40)","v":7},{"$f":"SUM(W38:W40)","v":49},{"$f":"SUM(X38:X40)","v":11},{"$f":"SUM(C41:W41)","v":279}]

{"sheet":"EmpVsHUxCounty","index":10,"n_rows":124,"n_cols":14,"rows_kept":124,"cut":false,"hidden":true,"merged":[[64,0,64,11],[79,0,80,9]]}
[]
[{"$f":"A45","v":"Allenstown"}]
[]
[]
[]
[]
[]
[]
[]
[]
[]
[]
[]
[]
[]
[]
[]
[]
[]
[]
[]
[]
[]
[]
[]
[]
[]
[]
[]
[]
[]
[]
[]
[]
[]
[]
[]
[]
[]
[]
[]
[]
[]
["Housing Units "]
[{"$f":"CntyDataLink!A20","v":"Allenstown"}]
[null,null,null,"Source:  Office of Planning and Development, NH BEA"]
["Units Authorized By Permit",2010,{"$f":"B47+1","v":2011},{"$f":"C47+1","v":2012},2013,2014,2015,2016,2017,2018,2019,2020,2021]
["Single Family",{"$f":"CntyDataLink!$CY$20","v":3},{"$f":"CntyDataLink!$DB$20","v":-1},{"$f":"CntyDataLink!$DE$20","v":1},{"$f":"CntyDataLink!$DH$20","v":3},{"$f":"CntyDataLink!$DK$20","v":0},{"$f":"CntyDataLink!$DN$20","v":1},{"$f":"CntyDataLink!$DQ$20","v":1},{"$f":"CntyDataLink!$DT$20","v":9},{"$f":"CntyDataLink!$DW$20","v":8},{"$f":"CntyDataLink!$DZ$20","v":5},{"$f":"CntyDataLink!$EC$20","v":3},{"$f":"CntyDataLink!$EI$20","v":3}]
["Multi-family",{"$f":"CntyDataLink!$CZ$20","v":0},{"$f":"CntyDataLink!$DC$20","v":2},{"$f":"CntyDataLink!$DF$20","v":0},{"$f":"CntyDataLink!$DI$20","v":-6},{"$f":"CntyDataLink!$DL$20","v":0},{"$f":"CntyDataLink!$DO$20","v":8},{"$f":"CntyDataLink!$DR$20","v":0},{"$f":"CntyDataLink!$DU$20","v":0},{"$f":"CntyDataLink!$DX$20","v":0},{"$f":"CntyDataLink!$EA$20","v":0},{"$f":"CntyDataLink!$ED$20","v":39},{"$f":"CntyDataLink!$EJ$20","v":0}]
["Mobile Home",{"$f":"CntyDataLink!$DA$20","v":3},{"$f":"CntyDataLink!$DD$20","v":3},{"$f":"CntyDataLink!$DG$20","v":1},{"$f":"CntyDataLink!$DJ$20","v":0},{"$f":"CntyDataLink!$DM$20","v":2},{"$f":"CntyDataLink!$DP$20","v":-1},{"$f":"CntyDataLink!$DR$20","v":0},{"$f":"CntyDataLink!$DV$20","v":-3},{"$f":"CntyDataLink!$DY$20","v":0},{"$f":"CntyDataLink!$EB$20","v":2},{"$f":"CntyDataLink!$EE$20","v":7},{"$f":"CntyDataLink!$EK$20","v":8}]
["Total",{"$f":"SUM(B48:B50)","v":6},4,2,-3,2,8,1,6,{"$f":"SUM(J48:J50)","v":8},{"$f":"SUM(K48:K50)","v":7},{"$f":"SUM(L48:L50)","v":49},{"$f":"SUM(M48:M50)","v":11}]
[]
["Total Housing Units","2010 Census",2011,{"$f":"C53+1","v":2012},2013,2014,2015,2016,2017,2018,2019,2020,2021,2022]
["Single Family",{"$f":"CntyDataLink!$BA$167","v":806},{"$f":"B48+B54","v":809},808,809,812,812,813,814,823,831,{"$f":"K54+K48","v":836},839,842]
["Multi Family",{"$f":"CntyDataLink!$BB$167","v":679},{"$f":"B49+B55","v":679},{"$f":"C49+C55","v":681},681,675,675,683,683,683,683,683,722,722]
["Mobile Home",{"$f":"CntyDataLink!$BC$167","v":396},399,402,403,403,405,404,404,401,401,403,410,418]
["Total",{"$f":"SUM(B54:B56)","v":1881},1887,1891,1893,1890,1892,1900,1901,1907,1915,1922,1971,{"$f":"SUM(N54:N56)","v":1982}]
[]
["Percent Change","2000-2010 Census"," 10-11"," 11-12","12-13","13-14","14-15","15-16","16-17","17-18","18-19","19-20","20-21","21-22"]
["Single Family",{"$f":"(B54-CntyDataLink!CF$65)/CntyDataLink!CF$65","v":-2.7744270205066344E-2},{"$f":"(C54-B54)/B54","v":3.7220843672456576E-3},-1.2360939431396785E-3,1.2376237623762376E-3,3.708281829419036E-3,0,1.2315270935960591E-3,1.2300123001230013E-3,1.1056511056511056E-2,9.7205346294046164E-3,6.0168471720818293E-3,3.5885167464114833E-3,3.5756853396901071E-3]
["Multi Family",{"$f":"(B55-SUM(CntyDataLink!CG65:CM65))/SUM(CntyDataLink!CG65:CM65)","v":0.33925049309664695},0,2.9455081001472753E-3,0,-8.8105726872246704E-3,0,1.1851851851851851E-2,0,0,0,0,5.7101024890190338E-2,0]
["Mobile Home",{"$f":"(B56-SUM(CntyDataLink!CN65))/(CntyDataLink!CN65)","v":-0.36741214057507987},7.575757575757576E-3,7.5187969924812026E-3,2.4875621890547263E-3,0,4.9627791563275434E-3,-2.4691358024691358E-3,0,-7.4257425742574254E-3,0,4.9875311720698253E-3,1.7369727047146403E-2,1.9512195121951219E-2]
["Total",{"$f":"(B57-CntyDataLink!$CE65)/CntyDataLink!$CE65","v":-4.1284403669724773E-2},3.189792663476874E-3,2.1197668256491787E-3,1.0576414595452142E-3,-1.5847860538827259E-3,1.0582010582010583E-3,4.2283298097251587E-3,5.263157894736842E-4,3.1562335612835349E-3,4.195070791819612E-3,3.6553524804177544E-3,2.5494276795005204E-2,5.5809233891425669E-3]
[]
[]
[]
[]
["Private Employment"]
[{"$f":"CntyDataLink!A25","v":"Allenstown"}]
[null,null,2011,2012,2013,2014,2015,2016,2017,2018,2019,2020,2021,{"$f":"M70+1","v":2022}]
["Goods Producing",null,1700,1778,1686,1626,1630,1589,1659,1686,1650,1512,1547,{"$f":"IF((CntyDataLink!$FX$25)=\"n\",NA(),IF(VALUE(CntyDataLink!$FX$25)=\"\",NA(),VALUE(CntyDataLink!$FX$25)))","v":125}]
["Service Providing",null,26900,27103,27023,27177,27456,27793,27744,27979,27742,25853,26214,{"$f":"IF((CntyDataLink!$FY$25)=\"n\",NA(),IF(VALUE(CntyDataLink!$FY$25)=\"\",NA(),VALUE(CntyDataLink!$FY$25)))","v":378}]
["Total Private Emp",null,28600,28881,28710,28803,29086,29381,29403,29665,29393,27365,27761,{"$f":"IF((CntyDataLink!$FV$25)=\"n\",NA(),IF(VALUE(CntyDataLink!$FV$25)=\"\",NA(),VALUE(CntyDataLink!$FV$25)))","v":503}]
[]
["Percent Change",null,null,{"$f":"D59","v":" 11-12"},"12-13","13-14","14-15","15-16","16-17","17-18","18-19","19-20","20-21","21-22"]
["Goods Producing",null,null,{"$f":"(D71-C71)/C71","v":4.5882352941176471E-2},-5.1743532058492692E-2,-3.5587188612099648E-2,2.4600246002460025E-3,-2.5153374233128835E-2,4.405286343612335E-2,1.62748643761302E-2,-2.1352313167259787E-2,-8.3636363636363634E-2,2.3148148148148147E-2,{"$f":"(N71-M71)/M71","v":-0.91919844861021327}]
["Service Providing",null,null,7.5464684014869892E-3,-2.9517027635317123E-3,5.6988491285201491E-3,1.0266033778562755E-2,1.227418414918415E-2,-1.7630338574461195E-3,8.4702998846597471E-3,-8.4706386933056932E-3,-6.8091702112320671E-2,1.3963563222836808E-2,-0.98558022430762193]
["Total Private Emp",null,null,9.8251748251748251E-3,{"$f":"(E73-D73)/D73","v":-5.9208476160797757E-3},3.2392894461859981E-3,9.8253654133250001E-3,1.014233651928763E-2,7.4878322725570952E-4,8.9106553753018399E-3,-9.1690544412607444E-3,-6.8996019460415739E-2,1.4471039649186918E-2,{"$f":"(N73-M73)/M73","v":-0.98188105615791943}]
[]
["Source: New Hampshire Department of Employment Security"]
[]
[]
[]
[{"$f":"A2","v":"Allenstown"}]
[]
[]
[]
[]
[]
[]
[]
[]
[]
[]
[]
[]
[]
[]
[]
[]
[]
[]
[]
[]
[]
[]
[]
[]
[]
[]
[]
[]
[]
[]
[]
[]
[]
[]
[]
[null,null,2012,{"$f":"C120+1","v":2013},{"$f":"D120+1","v":2014},{"$f":"E120+1","v":2015},{"$f":"F120+1","v":2016},{"$f":"G120+1","v":2017},{"$f":"H120+1","v":2018},{"$f":"I120+1","v":2019},{"$f":"J120+1","v":2020},{"$f":"K120+1","v":2021},2022]
["Total Housing Units",null,{"$f":"C$57","v":1887},1891,1893,1890,1892,1900,1901,1907,1915,1922,1971]
["Private & Government Emp.",null,{"$f":"VALUE(CntyDataLink!$CM$25)","v":708},{"$f":"VALUE(CntyDataLink!$CU$25)","v":735},{"$f":"VALUE(CntyDataLink!$DC$25)","v":719},{"$f":"VALUE(CntyDataLink!$DK$25)","v":649},{"$f":"VALUE(CntyDataLink!$DS$25)","v":618},{"$f":"VALUE(CntyDataLink!$EA$25)","v":555},{"$f":"VALUE(CntyDataLink!$EI$25)","v":704},{"$f":"VALUE(CntyDataLink!$EQ$25)","v":741},{"$f":"VALUE(CntyDataLink!$FA$25)","v":716},{"$f":"VALUE(CntyDataLink!$FA$25)","v":716},{"$f":"VALUE(CntyDataLink!$FU$25)","v":842}]
[]
["Source: New Hampshire Department of Employment Security and Office of Planning and Development, NH BEA"]

{"sheet":"HHIncome-10YearComparison","index":11,"n_rows":50,"n_cols":17,"rows_kept":50,"cut":false,"hidden":true,"merged":[[28,1,28,2],[27,15,27,16],[3,1,3,3],[26,1,26,4],[27,4,27,7],[27,8,27,10],[27,11,27,13]]}
[]
[null,{"$f":"CntyDataLink!A35","v":"Allenstown"}]
[]
[null,"INCOME CHARACTERISTICS"]
[]
[]
[]
[]
[]
[]
[]
[]
[]
[]
[]
[]
[]
[]
[]
[]
[]
[]
[]
[]
[]
[]
[null,"Households By Household Income"]
[null,null,null,null,"2008-2012",null,null,null,"2013-2017",null,null,"2018-2022",null,null,null,"Statistically Significant Change"]
[null,"Household Income",null,null,"Estimate","Margin of Error",null,null,"Estimate"," Margin of Error",null,"Estimate"," Margin of Error",null,null,"2012-2022","2017-2022"]
[null,"Less than $10,000",null,null,{"$f":"CntyDataLinkPrior10YearEstimate!$B$120","v":92},{"$f":"CntyDataLinkPrior10YearEstimate!$C$120","v":85},{"$f":"E30/SUM($E$30:$E$39)","v":5.4341405788541054E-2},null,{"$f":"CntyDataLinkPrior5YearEstimates!$B$120","v":62},{"$f":"CntyDataLinkPrior5YearEstimates!$C$120","v":38},{"$f":"I30/SUM($I$30:$I$39)","v":3.6686390532544376E-2},{"$f":"CntyDataLink!$B$120","v":42},{"$f":"CntyDataLink!$C$120","v":48},{"$f":"L30/SUM($L$30:$L$39)","v":2.3178807947019868E-2},null,{"$f":"StatisticallySignificantCalcs!$A$83","v":"N"},{"$f":"StatisticallySignificantCalcs!$J$83","v":"N"}]
[null,"$10,000 to $14,999",null,null,{"$f":"CntyDataLinkPrior10YearEstimate!$D$120","v":71},{"$f":"CntyDataLinkPrior10YearEstimate!$E$120","v":40},{"$f":"E31/SUM($E$30:$E$39)","v":4.1937389249852332E-2},null,{"$f":"CntyDataLinkPrior5YearEstimates!$D$120","v":202},{"$f":"CntyDataLinkPrior5YearEstimates!$E$120","v":89},{"$f":"I31/SUM($I$30:$I$39)","v":0.11952662721893491},{"$f":"CntyDataLink!$D$120","v":126},{"$f":"CntyDataLink!$E$120","v":107},{"$f":"L31/SUM($L$30:$L$39)","v":6.9536423841059597E-2},null,{"$f":"StatisticallySignificantCalcs!$A$84","v":"N"},{"$f":"StatisticallySignificantCalcs!$J$84","v":"Y"}]
[null,"$15,000 to $24,999",null,null,{"$f":"CntyDataLinkPrior10YearEstimate!$F$120","v":295},{"$f":"CntyDataLinkPrior10YearEstimate!$G$120","v":125.4312560727987},0.17424689899586532,null,{"$f":"CntyDataLinkPrior5YearEstimates!$F$120","v":126},{"$f":"CntyDataLinkPrior5YearEstimates!$G$120","v":78.089692021418557},7.4556213017751477E-2,{"$f":"CntyDataLink!$F$120","v":161},{"$f":"CntyDataLink!$G$120","v":98.412397592986224},8.8852097130242821E-2,null,{"$f":"StatisticallySignificantCalcs!$A$85","v":"N"},{"$f":"StatisticallySignificantCalcs!$J$85","v":"Y"}]
[null,"$25,000 to $34,999",null,null,{"$f":"CntyDataLinkPrior10YearEstimate!$H$120","v":155},{"$f":"CntyDataLinkPrior10YearEstimate!$I$120","v":80.230916734136841},9.1553455404607201E-2,null,{"$f":"CntyDataLinkPrior5YearEstimates!$H$120","v":183},{"$f":"CntyDataLinkPrior5YearEstimates!$I$120","v":77.336925203941234},0.10828402366863905,{"$f":"CntyDataLink!$H$120","v":148},{"$f":"CntyDataLink!$I$120","v":96.166522241370458},8.1677704194260486E-2,null,{"$f":"StatisticallySignificantCalcs!$A$86","v":"N"},{"$f":"StatisticallySignificantCalcs!$J$86","v":"N"}]
[null,"$35,000 to $49,999",null,null,{"$f":"CntyDataLinkPrior10YearEstimate!$J$120","v":142},{"$f":"CntyDataLinkPrior10YearEstimate!$K$120","v":65.886265640116534},8.3874778499704664E-2,null,{"$f":"CntyDataLinkPrior5YearEstimates!$J$120","v":198},{"$f":"CntyDataLinkPrior5YearEstimates!$K$120","v":68},0.11715976331360947,{"$f":"CntyDataLink!$J$120","v":201},{"$f":"CntyDataLink!$K$120","v":106.75204916066015},0.11092715231788079,null,{"$f":"StatisticallySignificantCalcs!$A$87","v":"N"},{"$f":"StatisticallySignificantCalcs!$J$87","v":"N"}]
[null,"$50,000 to $74,999",null,null,{"$f":"CntyDataLinkPrior10YearEstimate!$L$120","v":316},{"$f":"CntyDataLinkPrior10YearEstimate!$M$120","v":123.98790263570072},0.18665091553455404,null,{"$f":"CntyDataLinkPrior5YearEstimates!$L$120","v":366},{"$f":"CntyDataLinkPrior5YearEstimates!$M$120","v":91.923881554251182},0.21656804733727811,{"$f":"CntyDataLink!$L$120","v":231},{"$f":"CntyDataLink!$M$120","v":92.097774131626011},0.12748344370860928,null,{"$f":"StatisticallySignificantCalcs!$A$88","v":"N"},{"$f":"StatisticallySignificantCalcs!$J$88","v":"N"}]
[null,"$75,000 to $99,999",null,null,{"$f":"CntyDataLinkPrior10YearEstimate!$N$120","v":254},{"$f":"CntyDataLinkPrior10YearEstimate!$O$120","v":102},0.15002953337271116,null,{"$f":"CntyDataLinkPrior5YearEstimates!$N$120","v":213},{"$f":"CntyDataLinkPrior5YearEstimates!$O$120","v":76},0.12603550295857988,{"$f":"CntyDataLink!$N$120","v":277},{"$f":"CntyDataLink!$O$120","v":109},0.15286975717439294,null,{"$f":"StatisticallySignificantCalcs!$A$89","v":"N"},{"$f":"StatisticallySignificantCalcs!$J$89","v":"N"}]
[null,"$100,000 to $149,999",null,null,{"$f":"CntyDataLinkPrior10YearEstimate!$P$120","v":270},{"$f":"CntyDataLinkPrior10YearEstimate!$Q$120","v":95.383436717283359},0.15948021264028353,null,{"$f":"CntyDataLinkPrior5YearEstimates!$P$120","v":241},{"$f":"CntyDataLinkPrior5YearEstimates!$Q$120","v":77.077882690172544},0.142603550295858,{"$f":"CntyDataLink!$P$120","v":336},{"$f":"CntyDataLink!$Q$120","v":117.64352935882194},0.18543046357615894,null,{"$f":"StatisticallySignificantCalcs!$A$90","v":"N"},{"$f":"StatisticallySignificantCalcs!$J$90","v":"N"}]
[null,"$150,000 to $199,999",null,null,{"$f":"CntyDataLinkPrior10YearEstimate!$R$120","v":83},{"$f":"CntyDataLinkPrior10YearEstimate!$S$120","v":68},4.9025398700531603E-2,null,{"$f":"CntyDataLinkPrior5YearEstimates!$R$120","v":99},{"$f":"CntyDataLinkPrior5YearEstimates!$S$120","v":55},5.8579881656804736E-2,{"$f":"CntyDataLink!$R$120","v":251},{"$f":"CntyDataLink!$S$120","v":88},0.13852097130242827,null,{"$f":"StatisticallySignificantCalcs!$A$91","v":"Y"},{"$f":"StatisticallySignificantCalcs!$J$91","v":"N"}]
[null,"Greater than $200,000",null,null,{"$f":"CntyDataLinkPrior10YearEstimate!$T$120","v":15},{"$f":"CntyDataLinkPrior10YearEstimate!$U$120","v":24},8.8600118133490852E-3,null,{"$f":"CntyDataLinkPrior5YearEstimates!$T$120","v":0},{"$f":"CntyDataLinkPrior5YearEstimates!$U$120","v":11},0,{"$f":"CntyDataLink!$T$120","v":39},{"$f":"CntyDataLink!$U$120","v":33},2.1523178807947019E-2,null,{"$f":"StatisticallySignificantCalcs!$A$92","v":"N"},{"$f":"StatisticallySignificantCalcs!$J$92","v":"N"}]
[null,null,null,null,491895,null,null,null,491895]
[null,null,"Median HH Income",null,{"$f":"CntyDataLinkPrior10YearEstimate!$BV$128","v":58159},{"$f":"CntyDataLinkPrior10YearEstimate!$BW$128","v":9075},null,null,{"$f":"CntyDataLinkPrior5YearEstimates!$BV$128","v":53448},{"$f":"CntyDataLinkPrior5YearEstimates!$BW$128","v":4985},null,{"$f":"CntyDataLink!$BV$128","v":86591},{"$f":"CntyDataLink!$BW$128","v":16611}]
[null,null,"HH Income in 2022 Dollars",null,{"$f":"($E$50)*E41","v":74133.131288274089},{"$f":"($E$50)*F41","v":11567.567641140449},null,null,{"$f":"($E$49)*I41","v":63812.926077023498},{"$f":"($E$49)*J41","v":5951.7182400456923}]
[]
[null,{"$f":"\"Source:  \"& \" \"&E28&\", \"&I28&\" and \"&L28& \"  American Community Survey; Tables B25119; B19001\"","v":"Source:   2008-2012, 2013-2017 and 2018-2022  American Community Survey; Tables B25119; B19001"}]
[]
[null,"Data from the American Community Survey are estimates."]
[]
[null,"CPI Adjustment Factor"]
[null,"2013-2017",null,null,1.1939254242819843]
[null,"2008-2012",null,null,1.2746631009521157]

{"sheet":"HHIncomeByAge","index":12,"n_rows":80,"n_cols":22,"rows_kept":80,"cut":false,"hidden":true,"merged":[[21,6,21,15]]}
[]
[null,null,{"$f":"CntyDataLink!A55","v":"Allenstown"}]
[null,null,"INCOME CHARACTERISTICS"]
[]
[]
[]
[]
[]
[]
[]
[]
[]
[]
[]
[]
[]
[]
[]
[]
[]
[null,null,{"$f":"HHIncomeByAge!C2","v":"Allenstown"},"Household Income in 2022"]
[null,null,null,null,null,null,"Households by Age of Householder "]
[null,null,null,"Households","Margin of Error Households",null,"Under 25","Margin of Error Under 25",null,"25 to 44","Margin of Error 25 to 44",null,"45 to 64","Margin of Error 45 to 64",null,"65 & Over","Margin of Error 65 & Over",null,"Family Households","MOE Family HH","Non-Family HH","MOE Non-Family HH"]
[null,null,"Less Than $10,000",{"$f":"CntyDataLink!$D$116","v":42},{"$f":"CntyDataLink!$E$116","v":48},null,{"$f":"CntyDataLink!$AN$116","v":0},{"$f":"CntyDataLink!$AO$116","v":12},null,{"$f":"CntyDataLink!$BV$116","v":31},{"$f":"CntyDataLink!$BW$116","v":45},null,{"$f":"CntyDataLink!$DD$116","v":11},{"$f":"CntyDataLink!$DE$116","v":17},null,{"$f":"CntyDataLink!$EL$116","v":0},{"$f":"CntyDataLink!$EM$116","v":12},null,{"$f":"CntyDataLink!$D$160","v":61},{"$f":"CntyDataLink!$E$160","v":66},{"$f":"CntyDataLink!$AN$160","v":11},{"$f":"CntyDataLink!$AO$160","v":17}]
[null,null,"$10,000 to $14,999",{"$f":"CntyDataLink!$F$116","v":126},{"$f":"CntyDataLink!$G$116","v":107},null,{"$f":"CntyDataLink!$AP$116","v":57},{"$f":"CntyDataLink!$AQ$116","v":90},null,{"$f":"CntyDataLink!$BX$116","v":30},{"$f":"CntyDataLink!$BY$116","v":48},null,{"$f":"CntyDataLink!$DF$116","v":0},{"$f":"CntyDataLink!$DG$116","v":12},null,{"$f":"CntyDataLink!$EN$116","v":39},{"$f":"CntyDataLink!$EO$116","v":41},null,{"$f":"CntyDataLink!$F$160","v":0},{"$f":"CntyDataLink!$G$160","v":12},{"$f":"CntyDataLink!$AP$160","v":96},{"$f":"CntyDataLink!$AQ$160","v":96}]
[null,null,"$15,000 to $19,999",{"$f":"CntyDataLink!$H$116","v":72},{"$f":"CntyDataLink!$I$116","v":46},null,{"$f":"CntyDataLink!$AR$116","v":0},{"$f":"CntyDataLink!$AS$116","v":12},null,{"$f":"CntyDataLink!$BZ$116","v":0},{"$f":"CntyDataLink!$CA$116","v":12},null,{"$f":"CntyDataLink!$DH$116","v":24},{"$f":"CntyDataLink!$DI$116","v":27},null,{"$f":"CntyDataLink!$EP$116","v":48},{"$f":"CntyDataLink!$EQ$116","v":34},null,{"$f":"CntyDataLink!$H$160","v":29},{"$f":"CntyDataLink!$I$160","v":29},{"$f":"CntyDataLink!$AR$160","v":51},{"$f":"CntyDataLink!$AS$160","v":38}]
[null,null,"$20,000 to $24,999",{"$f":"CntyDataLink!$J$116","v":89},{"$f":"CntyDataLink!$K$116","v":87},null,{"$f":"CntyDataLink!$AT$116","v":0},{"$f":"CntyDataLink!$AU$116","v":12},null,{"$f":"CntyDataLink!$CB$116","v":0},{"$f":"CntyDataLink!$CC$116","v":12},null,{"$f":"CntyDataLink!$DJ$116","v":34},{"$f":"CntyDataLink!$DK$116","v":51},null,{"$f":"CntyDataLink!$ER$116","v":55},{"$f":"CntyDataLink!$ES$116","v":67},null,{"$f":"CntyDataLink!$J$160","v":0},{"$f":"CntyDataLink!$K$160","v":12},{"$f":"CntyDataLink!$AT$160","v":89},{"$f":"CntyDataLink!$AU$160","v":87}]
[null,null,"$25,000 to $29,999",{"$f":"CntyDataLink!$L$116","v":28},{"$f":"CntyDataLink!$M$116","v":28},null,{"$f":"CntyDataLink!$AV$116","v":0},{"$f":"CntyDataLink!$AW$116","v":12},null,{"$f":"CntyDataLink!$CD$116","v":8},{"$f":"CntyDataLink!$CE$116","v":15},null,{"$f":"CntyDataLink!$DL$116","v":11},{"$f":"CntyDataLink!$DM$116","v":17},null,{"$f":"CntyDataLink!$ET$116","v":9},{"$f":"CntyDataLink!$EU$116","v":14},null,{"$f":"CntyDataLink!$L$160","v":11},{"$f":"CntyDataLink!$M$160","v":16},{"$f":"CntyDataLink!$AV$160","v":20},{"$f":"CntyDataLink!$AW$160","v":22}]
[null,null,"$30,000 to $34,999",{"$f":"CntyDataLink!$N$116","v":120},{"$f":"CntyDataLink!$O$116","v":92},null,{"$f":"CntyDataLink!$AX$116","v":0},{"$f":"CntyDataLink!$AY$116","v":12},null,{"$f":"CntyDataLink!$CF$116","v":0},{"$f":"CntyDataLink!$CG$116","v":12},null,{"$f":"CntyDataLink!$DN$116","v":75},{"$f":"CntyDataLink!$DO$116","v":76},null,{"$f":"CntyDataLink!$EV$116","v":45},{"$f":"CntyDataLink!$EW$116","v":48},null,{"$f":"CntyDataLink!$N$160","v":56},{"$f":"CntyDataLink!$O$160","v":65},{"$f":"CntyDataLink!$AX$160","v":64},{"$f":"CntyDataLink!$AY$160","v":60}]
[null,null,"$35,000 to $39,999",{"$f":"CntyDataLink!$P$116","v":58},{"$f":"CntyDataLink!$Q$116","v":64},null,{"$f":"CntyDataLink!$AZ$116","v":0},{"$f":"CntyDataLink!$BA$116","v":12},null,{"$f":"CntyDataLink!$CH$116","v":41},{"$f":"CntyDataLink!$CI$116","v":60},null,{"$f":"CntyDataLink!$DP$116","v":11},{"$f":"CntyDataLink!$DQ$116","v":18},null,{"$f":"CntyDataLink!$EX$116","v":6},{"$f":"CntyDataLink!$EY$116","v":11},null,{"$f":"CntyDataLink!$P$160","v":47},{"$f":"CntyDataLink!$Q$160","v":61},{"$f":"CntyDataLink!$AZ$160","v":11},{"$f":"CntyDataLink!$BA$160","v":18}]
[null,null,"$40,000 to $44,999",{"$f":"CntyDataLink!$R$116","v":121},{"$f":"CntyDataLink!$S$116","v":82},null,{"$f":"CntyDataLink!$BB$116","v":12},{"$f":"CntyDataLink!$BC$116","v":19},null,{"$f":"CntyDataLink!$CJ$116","v":53},{"$f":"CntyDataLink!$CK$116","v":57},null,{"$f":"CntyDataLink!$DR$116","v":56},{"$f":"CntyDataLink!$DS$116","v":60},null,{"$f":"CntyDataLink!$EZ$116","v":0},{"$f":"CntyDataLink!$FA$116","v":12},null,{"$f":"CntyDataLink!$R$160","v":23},{"$f":"CntyDataLink!$S$160","v":26},{"$f":"CntyDataLink!$BB$160","v":98},{"$f":"CntyDataLink!$BC$160","v":80}]
[null,null,"$45,000 to $49,999",{"$f":"CntyDataLink!$T$116","v":22},{"$f":"CntyDataLink!$U$116","v":24},null,{"$f":"CntyDataLink!$BD$116","v":0},{"$f":"CntyDataLink!$BE$116","v":12},null,{"$f":"CntyDataLink!$CL$116","v":22},{"$f":"CntyDataLink!$CM$116","v":24},null,{"$f":"CntyDataLink!$DT$116","v":0},{"$f":"CntyDataLink!$DU$116","v":12},null,{"$f":"CntyDataLink!$FB$116","v":0},{"$f":"CntyDataLink!$FC$116","v":12},null,{"$f":"CntyDataLink!$T$160","v":29},{"$f":"CntyDataLink!$U$160","v":34},{"$f":"CntyDataLink!$BD$160","v":5},{"$f":"CntyDataLink!$BE$160","v":11}]
[null,null,"$50,000 to $59,999",{"$f":"CntyDataLink!$V$116","v":134},{"$f":"CntyDataLink!$W$116","v":69},null,{"$f":"CntyDataLink!$BF$116","v":17},{"$f":"CntyDataLink!$BG$116","v":28},null,{"$f":"CntyDataLink!$CN$116","v":21},{"$f":"CntyDataLink!$CO$116","v":23},null,{"$f":"CntyDataLink!$DV$116","v":44},{"$f":"CntyDataLink!$DW$116","v":42},null,{"$f":"CntyDataLink!$FD$116","v":52},{"$f":"CntyDataLink!$FE$116","v":44},null,{"$f":"CntyDataLink!$V$160","v":43},{"$f":"CntyDataLink!$W$160","v":41},{"$f":"CntyDataLink!$BF$160","v":79},{"$f":"CntyDataLink!$BG$160","v":63}]
[null,null,"$60,000 to $74,999",{"$f":"CntyDataLink!$X$116","v":97},{"$f":"CntyDataLink!$Y$116","v":61},null,{"$f":"CntyDataLink!$BH$116","v":0},{"$f":"CntyDataLink!$BI$116","v":12},null,{"$f":"CntyDataLink!$CP$116","v":44},{"$f":"CntyDataLink!$CQ$116","v":37},null,{"$f":"CntyDataLink!$DX$116","v":42},{"$f":"CntyDataLink!$DY$116","v":38},null,{"$f":"CntyDataLink!$FF$116","v":11},{"$f":"CntyDataLink!$FG$116","v":17},null,{"$f":"CntyDataLink!$X$160","v":79},{"$f":"CntyDataLink!$Y$160","v":50},{"$f":"CntyDataLink!$BH$160","v":19},{"$f":"CntyDataLink!$BI$160","v":22}]
[null,null,"$75,000 to $99,999",{"$f":"CntyDataLink!$Z$116","v":277},{"$f":"CntyDataLink!$AA$116","v":109},null,{"$f":"CntyDataLink!$BJ$116","v":49},{"$f":"CntyDataLink!$BK$116","v":61},null,{"$f":"CntyDataLink!$CR$116","v":65},{"$f":"CntyDataLink!$CS$116","v":41},null,{"$f":"CntyDataLink!$DZ$116","v":116},{"$f":"CntyDataLink!$EA$116","v":74},null,{"$f":"CntyDataLink!$FH$116","v":47},{"$f":"CntyDataLink!$FI$116","v":34},null,{"$f":"CntyDataLink!$Z$160","v":238},{"$f":"CntyDataLink!$AA$160","v":103},{"$f":"CntyDataLink!$BJ$160","v":71},{"$f":"CntyDataLink!$BK$160","v":45}]
[null,null,"$100,000 to $124,999",{"$f":"CntyDataLink!$AB$116","v":163},{"$f":"CntyDataLink!$AC$116","v":68},null,{"$f":"CntyDataLink!$BL$116","v":0},{"$f":"CntyDataLink!$BM$116","v":12},null,{"$f":"CntyDataLink!$CT$116","v":91},{"$f":"CntyDataLink!$CU$116","v":55},null,{"$f":"CntyDataLink!$EB$116","v":42},{"$f":"CntyDataLink!$EC$116","v":32},null,{"$f":"CntyDataLink!$FJ$116","v":30},{"$f":"CntyDataLink!$FK$116","v":28},null,{"$f":"CntyDataLink!$AB$160","v":67},{"$f":"CntyDataLink!$AC$160","v":42},{"$f":"CntyDataLink!$BL$160","v":98},{"$f":"CntyDataLink!$BM$160","v":60}]
[null,null,"$125,000 to $149,999",{"$f":"CntyDataLink!$AD$116","v":173},{"$f":"CntyDataLink!$AE$116","v":96},null,{"$f":"CntyDataLink!$BN$116","v":0},{"$f":"CntyDataLink!$BO$116","v":12},null,{"$f":"CntyDataLink!$CV$116","v":58},{"$f":"CntyDataLink!$CW$116","v":47},null,{"$f":"CntyDataLink!$ED$116","v":115},{"$f":"CntyDataLink!$EE$116","v":86},null,{"$f":"CntyDataLink!$FL$116","v":0},{"$f":"CntyDataLink!$FM$116","v":12},null,{"$f":"CntyDataLink!$AD$160","v":118},{"$f":"CntyDataLink!$AE$160","v":77},{"$f":"CntyDataLink!$BN$160","v":9},{"$f":"CntyDataLink!$BO$160","v":14}]
[null,null,"$150,000 to $199,999",{"$f":"CntyDataLink!$AF$116","v":251},{"$f":"CntyDataLink!$AG$116","v":88},null,{"$f":"CntyDataLink!$BP$116","v":0},{"$f":"CntyDataLink!$BQ$116","v":12},null,{"$f":"CntyDataLink!$CX$116","v":36},{"$f":"CntyDataLink!$CY$116","v":30},null,{"$f":"CntyDataLink!$EF$116","v":205},{"$f":"CntyDataLink!$EG$116","v":86},null,{"$f":"CntyDataLink!$FN$116","v":10},{"$f":"CntyDataLink!$FO$116","v":18},null,{"$f":"CntyDataLink!$AF$160","v":237},{"$f":"CntyDataLink!$AG$160","v":84},{"$f":"CntyDataLink!$BP$160","v":14},{"$f":"CntyDataLink!$BQ$160","v":24}]
[null,null,"$200,000 or More",{"$f":"CntyDataLink!$AH$116","v":39},{"$f":"CntyDataLink!$AI$116","v":33},null,{"$f":"CntyDataLink!$BR$116","v":0},{"$f":"CntyDataLink!$BS$116","v":12},null,{"$f":"CntyDataLink!$CZ$116","v":17},{"$f":"CntyDataLink!$DA$116","v":20},null,{"$f":"CntyDataLink!$EH$116","v":22},{"$f":"CntyDataLink!$EI$116","v":26},null,{"$f":"CntyDataLink!$FP$116","v":0},{"$f":"CntyDataLink!$FQ$116","v":12},null,{"$f":"CntyDataLink!$AH$160","v":39},{"$f":"CntyDataLink!$AI$160","v":33},{"$f":"CntyDataLink!$BR$160","v":0},{"$f":"CntyDataLink!$BS$160","v":12}]
[]
[null,null,"Total Households",{"$f":"CntyDataLink!$B$116","v":1812},{"$f":"CntyDataLink!$C$116","v":193},null,{"$f":"CntyDataLink!$AL$116","v":135},{"$f":"CntyDataLink!$AM$116","v":113},null,{"$f":"CntyDataLink!$BT$116","v":517},{"$f":"CntyDataLink!$BU$116","v":111},null,{"$f":"CntyDataLink!$DB$116","v":808},{"$f":"CntyDataLink!$DC$116","v":152},null,{"$f":"CntyDataLink!$EJ$116","v":352},{"$f":"CntyDataLink!$EK$116","v":146},null,{"$f":"CntyDataLink!$B$160","v":1077},{"$f":"CntyDataLink!$C$160","v":128},{"$f":"CntyDataLink!$AL$160","v":735},{"$f":"CntyDataLink!$AM$160","v":209}]
[null,null,"Median Household Inc ",{"$f":"CntyDataLink!$FR$116","v":74659},{"$f":"CntyDataLink!$FS$116","v":20163},null,{"$f":"CntyDataLink!$FT$116","v":"-"},{"$f":"CntyDataLink!$FU$116","v":"**"},null,{"$f":"CntyDataLink!$FV$116","v":80231},{"$f":"CntyDataLink!$FW$116","v":32604},null,{"$f":"CntyDataLink!$FX$116","v":97917},{"$f":"CntyDataLink!$FY$116","v":39392},null,{"$f":"CntyDataLink!$FZ$116","v":33611},{"$f":"CntyDataLink!$GA$116","v":19672},null,{"$f":"CntyDataLink!$AJ$160","v":93198},{"$f":"CntyDataLink!$AK$160","v":14133},{"$f":"CntyDataLink!BT$160","v":40981},{"$f":"CntyDataLink!$BU$160","v":8030}]
[]
[null,null,"Source: 2018-2022 American Community Survey Table B19001; B19037; B19101;  B19102; B19112; B19113; B19049"]
[null,null,"Data from the American Community Survey are estimates"]
[]
[null,null,{"$f":"C2","v":"Allenstown"}]
[null,null,"INCOME CHARACTERISTICS"]
[]
[]
[]
[]
[]
[]
[]
[]
[]
[]
[]
[]
[]
[]
[]
[]
[]
[]
[]
[]
[]
[]
[]
[]
[]
[]
[]
[]
[]
[]
[]
[null,null,"Source: 2018-2022 American Community Survey Tables B19001; B19102",null,null,null,null,null,null,null,null,null,null,null,null,"Data from the American Community Survey are estimates"]

{"sheet":"HHIncomeByTenure","index":13,"n_rows":64,"n_cols":17,"rows_kept":64,"cut":false,"hidden":true,"merged":[[63,3,63,4],[63,8,63,9],[63,13,63,14],[61,3,61,4],[61,8,61,9],[61,13,61,14],[62,3,62,4],[62,8,62,9],[62,13,62,14],[2,3,2,5],[58,3,58,6],[58,8,58,11],[58,13,58,16],[59,3,59,6],[59,8,59,11],[59,13,59,16]]}
[]
[null,null,null,{"$f":"CntyDataLink!A80","v":"Allenstown"}]
[null,null,null,"INCOME CHARACTERISTICS"]
[]
[]
[]
[]
[]
[]
[]
[]
[]
[]
[]
[]
[]
[]
[]
[]
[]
[]
[]
[]
[]
[]
[]
[]
[null,null,null,{"$f":"D2","v":"Allenstown"}]
[null,null,null,"Household Income By Tenure"]
[null,null,null,null,null,"2020 Household Income 1",null,"Occupied Housing Units","Margin of Error Occupied Housing Units","Owner Occupied Housing Units","Margin of Error Owner Occupied Housing Units","Renter Occupied Housing Units","Margin of Error Renter Occupied Housing Units"]
[]
[null,null,null,null,null,"Total",null,{"$f":"CntyDataLink!$B$128","v":1812},{"$f":"CntyDataLink!$C$128","v":193},{"$f":"CntyDataLink!$D$128","v":1439},{"$f":"CntyDataLink!$E$128","v":167},{"$f":"CntyDataLink!$AB$128","v":373},{"$f":"CntyDataLink!$AC$128","v":153}]
[null,null,null,4999,{"$f":"VALUE(RIGHT(F33,7))","v":5000},"Less Than $5,000",null,{"$f":"CntyDataLink!$AZ$128","v":0},{"$f":"CntyDataLink!$BA$128","v":16.970562748477139},{"$f":"CntyDataLink!$F$128","v":0},{"$f":"CntyDataLink!$G$128","v":12},{"$f":"CntyDataLink!$AD$128","v":0},{"$f":"CntyDataLink!$AE$128","v":12}]
[null,null,{"$f":"VALUE(RIGHT($F33,7))","v":5000},4999,10000,"$5,000 to $10,000",null,{"$f":"CntyDataLink!$BB$128","v":42},{"$f":"CntyDataLink!$BC$128","v":49.477267507411923},{"$f":"CntyDataLink!$H$128","v":42},{"$f":"CntyDataLink!$I$128","v":48},{"$f":"CntyDataLink!$AF$128","v":0},{"$f":"CntyDataLink!$AG$128","v":12}]
[null,null,10000,4999,15000,"$10,000 to $15,000",null,{"$f":"CntyDataLink!$BD$128","v":126},{"$f":"CntyDataLink!$BE$128","v":107.67079455451233},{"$f":"CntyDataLink!$J$128","v":0},{"$f":"CntyDataLink!$K$128","v":12},{"$f":"CntyDataLink!$AH$128","v":126},{"$f":"CntyDataLink!$AI$128","v":107}]
[null,null,15000,4999,20000,"$15,000 to $20,000",null,{"$f":"CntyDataLink!$BF$128","v":72},{"$f":"CntyDataLink!$BG$128","v":47.539457296018853},{"$f":"CntyDataLink!$L$128","v":72},{"$f":"CntyDataLink!$M$128","v":46},{"$f":"CntyDataLink!$AJ$128","v":0},{"$f":"CntyDataLink!$AK$128","v":12}]
[null,null,20000,4999,25000,"$20,000 to $25,000",null,{"$f":"CntyDataLink!$BH$128","v":89},{"$f":"CntyDataLink!$BI$128","v":84.202137740083529},{"$f":"CntyDataLink!$N$128","v":34},{"$f":"CntyDataLink!$O$128","v":51},{"$f":"CntyDataLink!$AL$128","v":55},{"$f":"CntyDataLink!$AM$128","v":67}]
[null,null,25000,9999,35000,"$25,000 to $35,000",null,{"$f":"CntyDataLink!$BJ$128","v":148},{"$f":"CntyDataLink!$BK$128","v":98.994949366116657},{"$f":"CntyDataLink!$P$128","v":139},{"$f":"CntyDataLink!$Q$128","v":98},{"$f":"CntyDataLink!$AN$128","v":9},{"$f":"CntyDataLink!$AO$128","v":14}]
[null,null,35000,14999,50000,"$35,000 to $50,000",null,{"$f":"CntyDataLink!$BL$128","v":201},{"$f":"CntyDataLink!$BM$128","v":110.94142598686931},{"$f":"CntyDataLink!$R$128","v":144},{"$f":"CntyDataLink!$S$128","v":92},{"$f":"CntyDataLink!$AP$128","v":57},{"$f":"CntyDataLink!$AQ$128","v":62}]
[null,null,50000,24999,75000,"$50,000 to $75,000",null,{"$f":"CntyDataLink!$BN$128","v":231},{"$f":"CntyDataLink!$BO$128","v":96.150923032490951},{"$f":"CntyDataLink!$T$128","v":180},{"$f":"CntyDataLink!$U$128","v":86},{"$f":"CntyDataLink!$AR$128","v":51},{"$f":"CntyDataLink!$AS$128","v":43}]
[null,null,75000,24999,100000,"$75,000 to $100,000",null,{"$f":"CntyDataLink!$BP$128","v":277},{"$f":"CntyDataLink!$BQ$128","v":106.60675400742676},{"$f":"CntyDataLink!$V$128","v":243},{"$f":"CntyDataLink!$W$128","v":102},{"$f":"CntyDataLink!$AT$128","v":34},{"$f":"CntyDataLink!$AU$128","v":31}]
[null,null,100000,49999,150000,"$100,000 to $150,000",null,{"$f":"CntyDataLink!$BR$128","v":336},{"$f":"CntyDataLink!$BS$128","v":108.06016842481785},{"$f":"CntyDataLink!$X$128","v":319},{"$f":"CntyDataLink!$Y$128","v":106},{"$f":"CntyDataLink!$AV$128","v":17},{"$f":"CntyDataLink!$AW$128","v":21}]
[null,null,150000,null,null,"$150,000 and More",null,{"$f":"CntyDataLink!$BT$128","v":290},{"$f":"CntyDataLink!$BU$128","v":100.56838469419701},{"$f":"CntyDataLink!$Z$128","v":266},{"$f":"CntyDataLink!$AA$128","v":95},{"$f":"CntyDataLink!$AX$128","v":24},{"$f":"CntyDataLink!$AY$128","v":33}]
[]
[]
[null,null,null,null,null,"Median Household Income 2",null,{"$f":"CntyDataLink!$BV$128","v":86591},{"$f":"CntyDataLink!$BW$128","v":16611},{"$f":"CntyDataLink!$BX$128","v":95333},{"$f":"CntyDataLink!$BY$128","v":16900},{"$f":"CntyDataLink!$BZ$128","v":41042},{"$f":"CntyDataLink!$CA$128","v":17580}]
[]
[]
[null,null,null,null,null,"Data from the American Community Survey are estimates"]
[]
[null,null,null,"Source:",1,"2017-2021 American Community Survey Table B25118;  2021 Inflation Adjusted dollars"]
[null,null,null,null,2,"2017-2021 American Community Survey Table B25119;  2021 Inflation Adjusted dollars"]
[]
[]
[]
[null,null,null,"HOUSEHOLD INCOME IN THE PAST 12 MONTHS BY PERCENT OF MEDIAN THRESHOLD"]
[]
[]
[null,null,null,"All Occupied Housing Units",null,null,null,null,"Owner Occupied Households",null,null,null,null,"Renter Occupied Households"]
[]
[null,null,null,"HOUSEHOLD INCOME",null,"Estimate","Margin Of Error",null,"HOUSEHOLD INCOME",null,"Estimate","Margin Of Error",null,"HOUSEHOLD INCOME",null,"Estimate","Margin Of Error"]
[null,null,{"$f":"$H$46*0.3","v":25977.3},"30% of Median Household Income",null,{"$f":"IF($C$62<$C$36,((($C$62-$C$35)/$D$35)*$H$35)+SUM($H$33:$H$34),IF($C$62<$C$37,((($C$62-$C$36)/$D$36)*$H$36)+SUM($H$33:$H$35),IF($C$62<$C$38,((($C$62-$C$37)/$D$37)*$H$37)+SUM($H$33:$H$36),IF($C$62<$C$39,((($C$62-$C$38)/$D$38)*$H$38)+SUM($H$33:$H$37),IF($C$62<$C$40,((($C$62-$C$39)/$D$39)*$H$39)+SUM($H$33:$H$38),IF($C$62<$C$41,((($C$62-$C$40)/$D$40)*$H$40)+SUM($H$33:$H$39),IF($C$62<$C$42,((($C$62-$C$41)/$D$41)*$H$41)+SUM($H$33:$H$40),\"False\")))))))","v":343.46548654865484},{"$f":"IF($C$62<$C$36,((($C$62-$C$35)/$D$35)*$I$35)+SQRT(SUM(($I$33^2),($I$34^2))),IF($C$62<$C$37,((($C$62-$C$36)/$D$36)*$I$36)+SQRT(SUM(($I$33^2),($I$34^2),($I$35^2))),IF($C$62<$C$38,((($C$62-$C$37)/$D$37)*$I$37)+SQRT(SUM(($I$33^2),($I$34^2),($I$35^2),($I$36^2))),IF($C$62<$C$39,((($C$62-$C$38)/$D$38)*$I$38)+SQRT(SUM(($I$33^2),($I$34^2),($I$35^2),($I$36^2),($I$37^2))),IF($C$62<$C$40,((($C$62-$C$39)/$D$39)*$I$39)+SQRT(SUM(($I$33^2),($I$34^2),($I$35^2),($I$36^2),($I$37^2),($I$38^2))),IF($C$62<$C$41,((($C$62-$C$40)/$D$40)*$I$40)+SQRT(SUM(($I$33^2),($I$34^2),($I$35^2),($I$36^2),($I$37^2),($I$38^2),($I$39^2))),IF($C$62<$C$42,((($C$62-$C$41)/$D$41)*$I$41)+SQRT((($I$33^2)+($I$34^2)+($I$35^2)+($I$36^2)+($I$37^2)+($I$38^2)+($I$39^2)+($I$40^2))),\"False\")))))))","v":163.55556721473408},{"$f":"$J$46*0.3","v":28599.899999999998},"30% of Median Household Income",null,{"$f":"IF($H$62<$C$36,((($H$62-$C$35)/$D$35)*$J$35)+SUM($J$33:$J$34),IF($H$62<$C$37,((($H$62-$C$36)/$D$36)*$J$36)+SUM($J$33:$J$35),IF($H$62<$C$38,((($H$62-$C$37)/$D$37)*$J$37)+SUM($J$33:$J$36),IF($H$62<$C$39,((($H$62-$C$38)/$D$38)*$J$38)+SUM($J$33:$J$37),IF($H$62<$C$40,((($H$62-$C$39)/$D$39)*$J$39)+SUM($J$33:$J$38),IF($H$62<$C$41,((($H$62-$C$40)/$D$40)*$J$40)+SUM($J$33:$J$39),IF($H$62<$C$42,((($H$62-$C$41)/$D$41)*$J$41)+SUM($J$33:$J$40),\"False\")))))))","v":198.04361436143611},{"$f":"IF($H$62<$C$36,((($H$62-$C$35)/$D$35)*$K$35)+SQRT(SUM(($K$33^2),($K$34^2))),IF($H$62<$C$37,((($H$62-$C$36)/$D$36)*$K$36)+SQRT(SUM(($K$33^2),($K$34^2),($K$35^2))),IF($H$62<$C$38,((($H$62-$C$37)/$D$37)*$K$37)+SQRT(SUM(($K$33^2),($K$34^2),($K$35^2),($K$36^2))),IF($H$62<$C$39,((($H$62-$C$38)/$D$38)*$K$38)+SQRT(SUM(($K$33^2),($K$34^2),($K$35^2),($K$36^2),($K$37^2))),IF($H$62<$C$40,((($H$62-$C$39)/$D$39)*$K$39)+SQRT(SUM(($K$33^2),($K$34^2),($K$35^2),($K$36^2),($K$37^2),($K$38^2))),IF($H$62<$C$41,((($H$62-$C$40)/$D$40)*$K$40)+SQRT(SUM(($K$33^2),($K$34^2),($K$35^2),($K$36^2),($K$37^2),($K$38^2),($K$39^2))),IF($H$62<$C$42,((($H$62-$C$41)/$D$41)*$K$41)+SQRT((($K$33^2)+($K$34^2)+($K$35^2)+($K$36^2)+($K$37^2)+($K$38^2)+($K$39^2)+($K$40^2))),\"False\")))))))","v":120.77523800079146},{"$f":"$L$46*0.3","v":12312.6},"30% of Median Household Income",null,{"$f":"IF($M$62<$C$36,((($M$62-$C$35)/$D$35)*$L$35)+SUM($L$33:$L$34),IF($M$62<$C$37,((($M$62-$C$36)/$D$36)*$L$36)+SUM($L$33:$L$35),IF($M$62<$C$38,((($M$62-$C$37)/$D$37)*$L$37)+SUM($L$33:$L$36),IF($M$62<$C$39,((($M$62-$C$38)/$D$38)*$L$38)+SUM($L$33:$L$37),IF($M$62<$C$40,((($M$62-$C$39)/$D$39)*$L$39)+SUM($L$33:$L$38),IF($M$62<$C$41,((($M$62-$C$40)/$D$40)*$L$40)+SUM($L$33:$L$39),IF($M$62<$C$42,((($M$62-$C$41)/$D$41)*$L$41)+SUM($L$33:$L$40),\"False\")))))))","v":58.289177835567124},{"$f":"IF($M$62<$C$36,((($M$62-$C$35)/$D$35)*$M$35)+SQRT(SUM(($M$33^2),($M$34^2))),IF($M$62<$C$37,((($M$62-$C$36)/$D$36)*$M$36)+SQRT(SUM(($M$33^2),($M$34^2),($M$35^2))),IF($M$62<$C$38,((($M$62-$C$37)/$D$37)*$M$37)+SQRT(SUM(($M$33^2),($M$34^2),($M$35^2),($M$36^2))),IF($M$62<$C$39,((($M$62-$C$38)/$D$38)*$M$38)+SQRT(SUM(($M$33^2),($M$34^2),($M$35^2),($M$36^2),($M$37^2))),IF($M$62<$C$40,((($M$62-$C$39)/$D$39)*$M$39)+SQRT(SUM(($M$33^2),($M$34^2),($M$35^2),($M$36^2),($M$37^2),($M$38^2))),IF($M$62<$C$41,((($M$62-$C$40)/$D$40)*$M$40)+SQRT(SUM(($M$33^2),($M$34^2),($M$35^2),($M$36^2),($M$37^2),($M$38^2),($M$39^2))),IF($M$62<$C$42,((($M$62-$C$41)/$D$41)*$M$41)+SQRT((($M$33^2)+($M$34^2)+($M$35^2)+($M$36^2)+($M$37^2)+($M$38^2)+($M$39^2)+($M$40^2))),\"False\")))))))","v":66.470102656458749}]
[490,null,{"$f":"$H$46*0.5","v":43295.5},"50% of Median Household Income",null,{"$f":"IF($C$63<$C$36,((($C$63-$C$35)/$D$35)*$H$35)+SUM($H$33:$H$34),IF($C$63<$C$37,((($C$63-$C$36)/$D$36)*$H$36)+SUM($H$33:$H$35),IF($C$63<$C$38,((($C$63-$C$37)/$D$37)*$H$37)+SUM($H$33:$H$36),IF($C$63<$C$39,((($C$63-$C$38)/$D$38)*$H$38)+SUM($H$33:$H$37),IF($C$63<$C$40,((($C$63-$C$39)/$D$39)*$H$39)+SUM($H$33:$H$38),IF($C$63<$C$41,((($C$63-$C$40)/$D$40)*$H$40)+SUM($H$33:$H$39),IF($C$63<$C$42,((($C$63-$C$41)/$D$41)*$H$41)+SUM($H$33:$H$40),\"False\")))))))","v":588.16711114074269},{"$f":"IF($C$63<$C$36,((($C$63-$C$35)/$D$35)*$I$35)+SQRT(SUM(($I$33^2),($I$34^2))),IF($C$63<$C$37,((($C$63-$C$36)/$D$36)*$I$36)+SQRT(SUM(($I$33^2),($I$34^2),($I$35^2))),IF($C$63<$C$38,((($C$63-$C$37)/$D$37)*$I$37)+SQRT(SUM(($I$33^2),($I$34^2),($I$35^2),($I$36^2))),IF($C$63<$C$39,((($C$63-$C$38)/$D$38)*$I$38)+SQRT(SUM(($I$33^2),($I$34^2),($I$35^2),($I$36^2),($I$37^2))),IF($C$63<$C$40,((($C$63-$C$39)/$D$39)*$I$39)+SQRT(SUM(($I$33^2),($I$34^2),($I$35^2),($I$36^2),($I$37^2),($I$38^2))),IF($C$63<$C$41,((($C$63-$C$40)/$D$40)*$I$40)+SQRT(SUM(($I$33^2),($I$34^2),($I$35^2),($I$36^2),($I$37^2),($I$38^2),($I$39^2))),IF($C$63<$C$42,((($C$63-$C$41)/$D$41)*$I$41)+SQRT((($I$33^2)+($I$34^2)+($I$35^2)+($I$36^2)+($I$37^2)+($I$38^2)+($I$39^2)+($I$40^2))),\"False\")))))))","v":244.33107273375219},{"$f":"$J$46*0.5","v":47666.5},"50% of Median Household Income",null,{"$f":"IF($H$63<$C$36,((($H$63-$C$35)/$D$35)*$J$35)+SUM($J$33:$J$34),IF($H$63<$C$37,((($H$63-$C$36)/$D$36)*$J$36)+SUM($J$33:$J$35),IF($H$63<$C$38,((($H$63-$C$37)/$D$37)*$J$37)+SUM($J$33:$J$36),IF($H$63<$C$39,((($H$63-$C$38)/$D$38)*$J$38)+SUM($J$33:$J$37),IF($H$63<$C$40,((($H$63-$C$39)/$D$39)*$J$39)+SUM($J$33:$J$38),IF($H$63<$C$41,((($H$63-$C$40)/$D$40)*$J$40)+SUM($J$33:$J$39),IF($H$63<$C$42,((($H$63-$C$41)/$D$41)*$J$41)+SUM($J$33:$J$40),\"False\")))))))","v":408.60650710047338},{"$f":"IF($H$63<$C$36,((($H$63-$C$35)/$D$35)*$K$35)+SQRT(SUM(($K$33^2),($K$34^2))),IF($H$63<$C$37,((($H$63-$C$36)/$D$36)*$K$36)+SQRT(SUM(($K$33^2),($K$34^2),($K$35^2))),IF($H$63<$C$38,((($H$63-$C$37)/$D$37)*$K$37)+SQRT(SUM(($K$33^2),($K$34^2),($K$35^2),($K$36^2))),IF($H$63<$C$39,((($H$63-$C$38)/$D$38)*$K$38)+SQRT(SUM(($K$33^2),($K$34^2),($K$35^2),($K$36^2),($K$37^2))),IF($H$63<$C$40,((($H$63-$C$39)/$D$39)*$K$39)+SQRT(SUM(($K$33^2),($K$34^2),($K$35^2),($K$36^2),($K$37^2),($K$38^2))),IF($H$63<$C$41,((($H$63-$C$40)/$D$40)*$K$40)+SQRT(SUM(($K$33^2),($K$34^2),($K$35^2),($K$36^2),($K$37^2),($K$38^2),($K$39^2))),IF($H$63<$C$42,((($H$63-$C$41)/$D$41)*$K$41)+SQRT((($K$33^2)+($K$34^2)+($K$35^2)+($K$36^2)+($K$37^2)+($K$38^2)+($K$39^2)+($K$40^2))),\"False\")))))))","v":207.74303659139204},{"$f":"$L$46*0.5","v":20521},"50% of Median Household Income",null,{"$f":"IF($M$63<$C$36,((($M$63-$C$35)/$D$35)*$L$35)+SUM($L$33:$L$34),IF($M$63<$C$37,((($M$63-$C$36)/$D$36)*$L$36)+SUM($L$33:$L$35),IF($M$63<$C$38,((($M$63-$C$37)/$D$37)*$L$37)+SUM($L$33:$L$36),IF($M$63<$C$39,((($M$63-$C$38)/$D$38)*$L$38)+SUM($L$33:$L$37),IF($M$63<$C$40,((($M$63-$C$39)/$D$39)*$L$39)+SUM($L$33:$L$38),IF($M$63<$C$41,((($M$63-$C$40)/$D$40)*$L$40)+SUM($L$33:$L$39),IF($M$63<$C$42,((($M$63-$C$41)/$D$41)*$L$41)+SUM($L$33:$L$40),\"False\")))))))","v":131.73214642928585},{"$f":"IF($M$63<$C$36,((($M$63-$C$35)/$D$35)*$M$35)+SQRT(SUM(($M$33^2),($M$34^2))),IF($M$63<$C$37,((($M$63-$C$36)/$D$36)*$M$36)+SQRT(SUM(($M$33^2),($M$34^2),($M$35^2))),IF($M$63<$C$38,((($M$63-$C$37)/$D$37)*$M$37)+SQRT(SUM(($M$33^2),($M$34^2),($M$35^2),($M$36^2))),IF($M$63<$C$39,((($M$63-$C$38)/$D$38)*$M$38)+SQRT(SUM(($M$33^2),($M$34^2),($M$35^2),($M$36^2),($M$37^2))),IF($M$63<$C$40,((($M$63-$C$39)/$D$39)*$M$39)+SQRT(SUM(($M$33^2),($M$34^2),($M$35^2),($M$36^2),($M$37^2),($M$38^2))),IF($M$63<$C$41,((($M$63-$C$40)/$D$40)*$M$40)+SQRT(SUM(($M$33^2),($M$34^2),($M$35^2),($M$36^2),($M$37^2),($M$38^2),($M$39^2))),IF($M$63<$C$42,((($M$63-$C$41)/$D$41)*$M$41)+SQRT((($M$33^2)+($M$34^2)+($M$35^2)+($M$36^2)+($M$37^2)+($M$38^2)+($M$39^2)+($M$40^2))),\"False\")))))))","v":115.98279655931186}]
[null,null,{"$f":"$H$46*0.8","v":69272.800000000003},"80% of Median Household Income",null,{"$f":"IF($C$64<$C$36,((($C$64-$C$35)/$D$35)*$H$35)+SUM($H$33:$H$34),IF($C$64<$C$37,((($C$64-$C$36)/$D$36)*$H$36)+SUM($H$33:$H$35),IF($C$64<$C$38,((($C$64-$C$37)/$D$37)*$H$37)+SUM($H$33:$H$36),IF($C$64<$C$39,((($C$64-$C$38)/$D$38)*$H$38)+SUM($H$33:$H$37),IF($C$64<$C$40,((($C$64-$C$39)/$D$39)*$H$39)+SUM($H$33:$H$38),IF($C$64<$C$41,((($C$64-$C$40)/$D$40)*$H$40)+SUM($H$33:$H$39),IF($C$64<$C$42,((($C$64-$C$41)/$D$41)*$H$41)+SUM($H$33:$H$40),\"False\")))))))","v":856.08779551182056},{"$f":"IF($C$64<$C$36,((($C$64-$C$35)/$D$35)*$I$35)+SQRT(SUM(($I$33^2),($I$34^2))),IF($C$64<$C$37,((($C$64-$C$36)/$D$36)*$I$36)+SQRT(SUM(($I$33^2),($I$34^2),($I$35^2))),IF($C$64<$C$38,((($C$64-$C$37)/$D$37)*$I$37)+SQRT(SUM(($I$33^2),($I$34^2),($I$35^2),($I$36^2))),IF($C$64<$C$39,((($C$64-$C$38)/$D$38)*$I$38)+SQRT(SUM(($I$33^2),($I$34^2),($I$35^2),($I$36^2),($I$37^2))),IF($C$64<$C$40,((($C$64-$C$39)/$D$39)*$I$39)+SQRT(SUM(($I$33^2),($I$34^2),($I$35^2),($I$36^2),($I$37^2),($I$38^2))),IF($C$64<$C$41,((($C$64-$C$40)/$D$40)*$I$40)+SQRT(SUM(($I$33^2),($I$34^2),($I$35^2),($I$36^2),($I$37^2),($I$38^2),($I$39^2))),IF($C$64<$C$42,((($C$64-$C$41)/$D$41)*$I$41)+SQRT((($I$33^2)+($I$34^2)+($I$35^2)+($I$36^2)+($I$37^2)+($I$38^2)+($I$39^2)+($I$40^2))),\"False\")))))))","v":288.10583638083},{"$f":"$J$46*0.8","v":76266.400000000009},"80% of Median Household Income",null,{"$f":"IF($H$64<$C$36,((($H$64-$C$35)/$D$35)*$J$35)+SUM($J$33:$J$34),IF($H$64<$C$37,((($H$64-$C$36)/$D$36)*$J$36)+SUM($J$33:$J$35),IF($H$64<$C$38,((($H$64-$C$37)/$D$37)*$J$37)+SUM($J$33:$J$36),IF($H$64<$C$39,((($H$64-$C$38)/$D$38)*$J$38)+SUM($J$33:$J$37),IF($H$64<$C$40,((($H$64-$C$39)/$D$39)*$J$39)+SUM($J$33:$J$38),IF($H$64<$C$41,((($H$64-$C$40)/$D$40)*$J$40)+SUM($J$33:$J$39),IF($H$64<$C$42,((($H$64-$C$41)/$D$41)*$J$41)+SUM($J$33:$J$40),\"False\")))))))","v":623.30990039601591},{"$f":"IF($H$64<$C$36,((($H$64-$C$35)/$D$35)*$K$35)+SQRT(SUM(($K$33^2),($K$34^2))),IF($H$64<$C$37,((($H$64-$C$36)/$D$36)*$K$36)+SQRT(SUM(($K$33^2),($K$34^2),($K$35^2))),IF($H$64<$C$38,((($H$64-$C$37)/$D$37)*$K$37)+SQRT(SUM(($K$33^2),($K$34^2),($K$35^2),($K$36^2))),IF($H$64<$C$39,((($H$64-$C$38)/$D$38)*$K$38)+SQRT(SUM(($K$33^2),($K$34^2),($K$35^2),($K$36^2),($K$37^2))),IF($H$64<$C$40,((($H$64-$C$39)/$D$39)*$K$39)+SQRT(SUM(($K$33^2),($K$34^2),($K$35^2),($K$36^2),($K$37^2),($K$38^2))),IF($H$64<$C$41,((($H$64-$C$40)/$D$40)*$K$40)+SQRT(SUM(($K$33^2),($K$34^2),($K$35^2),($K$36^2),($K$37^2),($K$38^2),($K$39^2))),IF($H$64<$C$42,((($H$64-$C$41)/$D$41)*$K$41)+SQRT((($K$33^2)+($K$34^2)+($K$35^2)+($K$36^2)+($K$37^2)+($K$38^2)+($K$39^2)+($K$40^2))),\"False\")))))))","v":186.20026482102824},{"$f":"$L$46*0.8","v":32833.599999999999},"80% of Median Household Income",null,{"$f":"IF($M$64<$C$36,((($M$64-$C$35)/$D$35)*$L$35)+SUM($L$33:$L$34),IF($M$64<$C$37,((($M$64-$C$36)/$D$36)*$L$36)+SUM($L$33:$L$35),IF($M$64<$C$38,((($M$64-$C$37)/$D$37)*$L$37)+SUM($L$33:$L$36),IF($M$64<$C$39,((($M$64-$C$38)/$D$38)*$L$38)+SUM($L$33:$L$37),IF($M$64<$C$40,((($M$64-$C$39)/$D$39)*$L$39)+SUM($L$33:$L$38),IF($M$64<$C$41,((($M$64-$C$40)/$D$40)*$L$40)+SUM($L$33:$L$39),IF($M$64<$C$42,((($M$64-$C$41)/$D$41)*$L$41)+SUM($L$33:$L$40),\"False\")))))))","v":188.05094509450944},{"$f":"IF($M$64<$C$36,((($M$64-$C$35)/$D$35)*$M$35)+SQRT(SUM(($M$33^2),($M$34^2))),IF($M$64<$C$37,((($M$64-$C$36)/$D$36)*$M$36)+SQRT(SUM(($M$33^2),($M$34^2),($M$35^2))),IF($M$64<$C$38,((($M$64-$C$37)/$D$37)*$M$37)+SQRT(SUM(($M$33^2),($M$34^2),($M$35^2),($M$36^2))),IF($M$64<$C$39,((($M$64-$C$38)/$D$38)*$M$38)+SQRT(SUM(($M$33^2),($M$34^2),($M$35^2),($M$36^2),($M$37^2))),IF($M$64<$C$40,((($M$64-$C$39)/$D$39)*$M$39)+SQRT(SUM(($M$33^2),($M$34^2),($M$35^2),($M$36^2),($M$37^2),($M$38^2))),IF($M$64<$C$41,((($M$64-$C$40)/$D$40)*$M$40)+SQRT(SUM(($M$33^2),($M$34^2),($M$35^2),($M$36^2),($M$37^2),($M$38^2),($M$39^2))),IF($M$64<$C$42,((($M$64-$C$41)/$D$41)*$M$41)+SQRT((($M$33^2)+($M$34^2)+($M$35^2)+($M$36^2)+($M$37^2)+($M$38^2)+($M$39^2)+($M$40^2))),\"False\")))))))","v":138.913437626177}]

{"sheet":"Updates","index":14,"n_rows":65,"n_cols":3,"rows_kept":65,"cut":false,"hidden":false,"merged":[[14,2,14,11],[11,2,11,11],[8,2,8,11],[7,2,7,11],[5,2,5,11],[25,2,25,11],[24,2,24,11],[23,2,23,11],[22,2,22,11],[15,2,15,11],[35,2,35,11],[2,2,2,11],[33,2,33,11],[10,2,10,11],[32,2,32,11],[21,2,21,11],[20,2,20,11],[9,2,9,11],[6,2,6,11],[34,2,34,11],[31,2,31,11],[30,2,30,11],[29,2,29,11],[28,2,28,11],[27,2,27,11],[26,2,26,11],[0,2,0,11],[1,2,1,11],[54,2,54,11],[55,2,55,11],[53,2,53,11],[48,2,48,11],[47,2,47,11],[45,2,45,11],[43,2,43,11],[36,2,36,11],[42,2,42,11],[41,2,41,11],[40,2,40,11],[38,2,38,11],[37,2,37,11],[39,2,39,12],[4,2,4,11],[46,2,46,11],[44,2,44,11],[63,2,63,11],[64,2,64,11],[56,2,56,11],[57,2,57,11],[58,2,58,11],[59,2,59,11],[60,2,60,11],[61,2,61,11],[62,2,62,11],[49,2,49,11],[50,2,50,11],[51,2,51,11],[52,2,52,11]]}
["Important Notes"]
[]
["Date",null,"Task"]
[]
["2024-07-18",null,"Updated a programming problem. A reference worksheet was deleted before the file was uploaded in December."]
["2023-12-07",null,"Updated 2018-2022 Amreican Community Survey Data. Updated CPI Adjustement Factor  factor 1.19 for 2013-2017 and 1.27 for 2008-2012"]
["2023-10-26",null,"Updated Employment and Wage Information for 2022."]
["2023-10-12",null,"Updated error on the Poverty Worksheet"]
["2023-09-12",null,"Updated 2008-2012 and 2013-2017 ACS Data; Added 10 Year Disability Comparison Worksheet"]
["2023-01-25",null,"Updated Permit Data and appropriate worksheets."]
["2022-12-14",null,"Updated 2017-2021 Amreican Community Survey Data."]
["2022-11-01",null,"Updated NH Population Estimates through 2030"]
["2022-09-14",null,"Updated Employment and Wage Information for 2021. Updated CPI Adjustment factor 1.08 for 2012-2016 and 1.15 for 2007-2011"]
[]
["2022-08-17",null,"Updated 2007-2011 and 2012-2016 Amreican Community Survey Data."]
["2022-03-21",null,"Updated 2016-2020 Amreican Community Survey Data."]
["2022-03-14",null,"Updated CPI Adjustement factor to adjust 2010 (1.19) and 2015 (1.09) dollars to 2020 dollars. "]
["2022-02-17",null,"Updated Permit Data and all appropriate charts."]
["2021-11-02",null,"Updated 2020 Annual Wage and Employment count"]
["2021-09-09",null,"Updated with 2020 Decennial Population data"]
["2020-12-18",null,"Updated 2015-2019 ACS data and 2019 NH Permit Data"]
["2020-09-10",null,"Updated 2005-2009 amd 2010-2014 Historical Data"]
["2020-07-10",null,"Updated 2019 Unemployment Rate and Labor Force Data to Employment, Wages, LaborForce & Unemp. Worksheet for large communities."]
["2019-12-31",null,"Updated Visual Basic Code changing the footer font from Gotham Medium to Verdana."]
["2019-12-27",null,"Updated with 2014-2018 ACS Data. Updated 2018 Permit data. Updated CPI Adjustment Factor (1.02437673) to the 2009-2013 and 2014-2018 Income Comparison Table. This factor was provided by Census"]
["2019-11-27",null,"Updated the 2009-2013 ACS data for comparison purposes."]
["2019-09-17",null,"Updated 2018 Annual Employment and Wage data; updated Housing and Employment worksheet."]
["2018-12-19",null,"Updated 2017 Annual Employment and Wage data; updated Housing and Employment worksheet. Updated 2017 Permit data"]
["2018-12-13",null,"Updated the 2008-2012 ACS data for comparison purposes. Updated CPI Adjustment Factor (1.0676) to the 2008-2012 and 2013-2017  Income Comparison Table. This factor was provided by Census."]
["2018-12-06",null,"Updated labels in workbook to reflect 2013-2017 data set and 2008-2012 comparison data set. Updated footer text.; updated 2013-2017 ACS Data"]
["2018-08-16",null,"Updated Charts with new format."]
["2018-05-09",null,"Updated 2017 Unemployment Rate and Labor Force Data to Employment, Wages, LaborForce & Unemp. Worksheet for large communities."]
["2017-12-18",null,"Updated 2016 NH Permit Data"]
["2017-12-12",null,"Updated Charts with 2012-2016 data; updated code to reflect additional data points in various tables. Updated CPI Adjustment Factor (1.06686838) to the 2007-2011 and 2012-2016 Income Comparison Table. This factor was provided by Census."]
["2017-11-16",null,"Updated the 2007-2011 ACS data for comparison purposes."]
["2017-10-13",null,"Updated 2016 Annual Employment and Wage data; updated Housing and Employment worksheet"]
["2017-05-15",null,"Updated 2016 Unemployment Rate and Labor Force Data to Employment, Wages, LaborForce & Unemp. Worksheet for large communities."]
["2017-01-05",null,"Verified Charts; Added 2015 Permit Data; Updated Housing and Permit data"]
["2016-12-29",null,"Updated the 2006-2010 ACS data for comparison purposes."]
["2016-12-23",null,"Updated Town Comparisons: Employment and Housing with 2015 data"]
["2016-12-20",null,"Updated Charts with 2011-2015 data; updated code to reflect additional data points in various tables. Updated CPI Adjustment Factor (1.08710584) to the 2006-2010 and 2011-2015 Income Comparison Table. This factor was provided by Census."]
["2016-12-16",null,"Updated 2011-2015 ACS Data"]
["2016-10-31",null,"Updated 2015 Annual Employment and Wage data"]
["2016-08-09",null,"Updated Labor Force and Unemployment data for the specific towns: Concord; Derry; Dover; Hudson; Londonderry; Manchester; Merrimack; Nashua; Rochester; and Salem"]
["2016-01-14",null,"Fixed error in School Attainment worksheet - Graduate or Professional Degree data."]
["2016-01-07",null,"Fixed formula in Poverty worksheet; fixed Non-Family Persons per Household data; fixed legend of Rental Cost Charts."]
["2015-12-23",null,"Fixed Table ACS_B25074"]
["2015-12-17",null,"Updated Code to correct an error on the OwnerHousingCost "]
["2015-12-11",null,"Updated Code to correct an error on the RentalHousingCost worksheet; updated column names on CntyDataLink."]
["2015-12-09",null,"Updated 2010-2014 ACS Data"]
["2015-12-07",null,"Updated Permit Data and all appropriate charts."]
["2015-12-03",null,"Updated the CPI Adjustment Factor (1.1034264) to the 2005-2009 and 2011-2015 Income Comparison Table."]
["2015-12-02",null,"Updated Color scheme on charts and added correct logo to the charts; Updated RentalHousingCost and OwnerCost worksheet to eliminate a printed page. Charts were moved and reduced in size."]
["2015-10-06",null,"Added County Comparison Employment and Housing data. Added Visual basic code to automatically update footer. Visual basic code will run when Ctrl-j is selected. "]
["2015-09-29",null,"Updated Employment Data"]
["2015-09-18",null,"Updated RentalHousingCost worksheet to accommodate changes to Table B25074; Updated Charts and code to allow for prior 5 year estimates to be update."]
["2015-09-01",null,"Updated   Prior 5 year estimate code on worksheets."]
["2015-08-18",null,"Updated Owner Cost Chart and data. Added Table B25106. Housing Cost burden by Income. Updated 2006-2010 ACS Estimate data."]
["2015-08-06",null,"Corrected the Employment vs. Housing worksheet."]
["2015-03-17",null,"Added Labor Force Data"]
["2014-12-30",null,"Corrected Rental Cost formula."]
["2014-12-17",null,"Corrected and verified household pie charts. All Permit data and employment data has been updated through 2013."]
["2011-10-14",null,"Reformatted the code in the worksheet and corrected an error in the Income Comparison Sheet"]
["2010-12-21",null,"Added Margin of Error information on all applicable ACS Sheets"]
["2010-12-07",null,"Created a calculated Table B19001 in anticipation for the 5 year data.  Table C19001 will not be provided"]

{"sheet":"CntyDataLinkPrior5YearEstimates","index":15,"n_rows":167,"n_cols":185,"rows_kept":167,"cut":false,"hidden":true,"merged":[]}
[1,{"$f":"A1+1","v":2},3,4,5,6,7,8,9,10,11,12,13,14,15,16,17,18,19,20,21,22,23,24,25,26,27,28,29,30,31,32,33,34,35,36,37,38,39,40,41,42,43,44,45,46,47,48,49,50,51,52,53,54,55,56,57,58,59,60,61,62,63,64,65,{"$f":"BM1+1","v":66},67,68,69,70,71,72,73,74,75,76,77,78,79,80,81,82,83,84,85,86,87,88,89,90,91,92,93,94,95,96,97,98,99,100,101,102,103,104,105,106,107,108,109,110,111,112,113,114,115,116,117,118,119,120,121,122,123,124,125,126,127,128,129,{"$f":"DY1+1","v":130},131,132,133,134,135,136,137,138,139,140,141,142,143,144,145,146,147,148,149,150,151,152,153,154,155,156,157,158,159,160,161,162,163,164,165,166,167,168,169,170,171,172,173,174,175,176,177,178,179,180,181,182,183]
[]
["Census 1990 Data -           Query Name:  DPCnty90Census"]
["TownName"]
[{"$f":"VLOOKUP(DropDownList!$A$47,CntyQuery!$A$4:$FI$46,A1)","v":"Allenstown"}]
[]
[]
["Census 1990 Data -    Query Name:  TownSTF1Qry1"]
["NAME"]
[{"$f":"VLOOKUP(DropDownList!$B$47,CntyQuery!$A$51:$CE$93,A$1)","v":"Allenstown"}]
[]
[]
["Census 1990 Data -          Query Name: TownSTF3Qry1"]
["NAME"]
[]
[]
[]
["Other Demo Data -             Query Name: QryAllTowns-ACSDemographicSheet"]
["TOWN_NAME"]
[{"$f":"VLOOKUP(DropDownList!$B$47,CntyQuery!$A$118:$DZ$144,A$1)","v":"Allenstown"}]
[]
[]
["NH Employment Data"]
["AreaName"]
[{"$f":"VLOOKUP(DropDownList!$B$47,CntyQuery!$A$170:$FJ$213,A$1)","v":"Allenstown"}]
[]
[]
[]
["PlaceName"]
[{"$f":"VLOOKUP(DropDownList!$B$47,CntyQryCensus!$A$4:$EF$46,A$1)","v":"Allenstown"}]
[]
[]
["Census 2000   -           Query Name:  TownAllQuery3"]
["NAME"]
[{"$f":"VLOOKUP(DropDownList!$B$47,CntyQryCensus!$A$4:$CW$46,A$1)","v":"Allenstown"}]
[]
[]
["Census 2000 DemoProfile Sample Data Tables 2&3   -  DPTab23TownQry"]
["NAME"]
[{"$f":"VLOOKUP(DropDownList!$B$47,CntyQryCensus!$A$53:$BY$96,A$1)","v":"Allenstown"}]
[]
[]
["Census 2000 DemoProfile Sample Data Table 4   -  DPTab4TownQry"]
["NAME"]
[{"$f":"VLOOKUP(DropDownList!$B$47,CntyQryCensus!$A$103:$CX$146,A$1)","v":"Allenstown"}]
[]
[]
["Census 2000 SummaryFile3 Sample Data  -  SF3TownQry1SocialChar"]
["NAME"]
[{"$f":"VLOOKUP(DropDownList!$B$47,CntyQryCensus!$A$156:$FR$198,A$1)","v":"Allenstown"}]
[]
[]
["Census 2000 SummaryFile3 Sample Data  -  SF3TownQry2aIncomeChar"]
["NAME"]
[{"$f":"VLOOKUP(DropDownList!$B$47,CntyQryCensus!$A$206:$HH$248,A$1)","v":"Allenstown"}]
[]
[]
["Census 2000 SummaryFile3 Sample Data  -  SF3TownQry2bPovertyChar"]
["NAME"]
[{"$f":"VLOOKUP(DropDownList!$B$47,CntyQryCensus!$A$256:$BI$298,A$1)","v":"Allenstown"}]
[]
[]
["Census 2000 SummaryFile3 Sample Data  -  SF3TownQry7HousingA"]
["NAME"]
[{"$f":"VLOOKUP(DropDownList!$B47,CntyQryCensus!$A$306:$GX$348,A$1)","v":"Allenstown"}]
[]
[]
["Census 2000 SummaryFile3 Sample Data  -  SF3TownQry8HousingCostA"]
["NAME"]
[{"$f":"VLOOKUP(DropDownList!$B$47,CntyQryCensus!$A$357:$CM$399,A$1)","v":"Allenstown"}]
[]
[]
["Census 2000 SummaryFile3 Sample Data  -  SF3TownQry8HousingCostB"]
["NAME"]
[{"$f":"VLOOKUP(DropDownList!$B$47,CntyQryCensus!$A$408:$FN$450,A$1)","v":"Allenstown"}]
[]
[]
["Census 2000 SummaryFile3 Sample Data  -  SF3TownQry9HHIncomeByTenure"]
["NAME"]
[{"$f":"VLOOKUP(DropDownList!$B$47,CntyQryCensus!$A$459:$AG$501,A$1)","v":"Allenstown"}]
[]
[]
[]
[]
[]
[{"$f":"VLOOKUP(DropDownList!$B$47,CntyQryCensus!$A$510:$DA$552,A$1)","v":"Allenstown"}]
[]
[]
[]
[]
[]
[]
[]
["Census 2000 SummaryFile3 Sample Data - SF3TownQry10Disabil"]
["NAME"]
[{"$f":"VLOOKUP(DropDownList!$B$47,CntyQryCensus!$A$510:$DA$552,A$1)","v":"Allenstown"}]
[]
[]
[]
[]
[{"$f":"VLOOKUP(DropDownList!$B$47,CntyQryCensus!$A$510:$DA$552,A$1)","v":"Allenstown"}]
[]
[]
[]
["ACS",2,{"$f":"B105+1","v":3},{"$f":"C105+1","v":4},5,6,7,8,9,10,11,{"$f":"K105+1","v":12},13,14,15,{"$f":"O105+1","v":16},17,18,19,20,21,22,23,24,25,26,27,28,29,30,31,32,33,34,35,36,37,38,39,40,41,42,43,44,45,46,47,48,49,50,51,52,53,54,55,56,57,58,59,60,61,62,63,64,65,66,67,{"$f":"BO105+1","v":68},69,70,71,72,73,74,75,76,77,78,79,80,81,82,83,84,85,86,87,88,89,90,91,92,93,94,95,96,97,98,99,100,101,102,103,104,105,106,107,108,109,110,111,112,113,114,115,116,117,118,119,120,121,122,123,124,125]
["Househould Data (Housing Unit Type)"]
["NAME","TotalHU",{"$f":"\"MOE \"&B107","v":"MOE TotalHU"},"TotalOccHU",{"$f":"\"MOE \"&D107","v":"MOE TotalOccHU"},"TotalOwnerOccUn",{"$f":"\"MOE \"&F107","v":"MOE TotalOwnerOccUn"},"TotalRenterOccn",{"$f":"\"MOE \"&H107","v":"MOE TotalRenterOccn"},"TotalVacantUntis",{"$f":"\"MOE \"&J107","v":"MOE TotalVacantUntis"},"VacantUnitsForRent",{"$f":"\"MOE \"&L107","v":"MOE VacantUnitsForRent"},"VacantUnitRentedNotOcc",{"$f":"\"MOE \"&N107","v":"MOE VacantUnitRentedNotOcc"},"VacantUnitForSale",{"$f":"\"MOE \"&P107","v":"MOE VacantUnitForSale"},"VacantUnitSoldNotOcc",{"$f":"\"MOE \"&R107","v":"MOE VacantUnitSoldNotOcc"},"VacantUnitSeasonalRec",{"$f":"\"MOE \"&T107","v":"MOE VacantUnitSeasonalRec"},"TotalPopInHousingUnits",{"$f":"\"MOE \"&V107","v":"MOE TotalPopInHousingUnits"},"OwnerOccPopHousingUnits",{"$f":"\"MOE \"&X107","v":"MOE OwnerOccPopHousingUnits"},"RenterOccPopHousingUnits",{"$f":"\"MOE \"&Z107","v":"MOE RenterOccPopHousingUnits"},"TotalUntis",{"$f":"\"MOE \"&AB107","v":"MOE TotalUntis"},"TotalOwnerOccUnits",{"$f":"\"MOE \"&AD107","v":"MOE TotalOwnerOccUnits"},"SigFamOwnerOcc",{"$f":"\"MOE \"&AF107","v":"MOE SigFamOwnerOcc"},"MultiFamOwnerOcc",{"$f":"\"MOE \"&AH107","v":"MOE MultiFamOwnerOcc"},"MobileOwnerOcc",{"$f":"\"MOE \"&AJ107","v":"MOE MobileOwnerOcc"},"TotalRenterOccUnits",{"$f":"\"MOE \"&AL107","v":"MOE TotalRenterOccUnits"},"SigFamRenterOcc",{"$f":"\"MOE \"&AN107","v":"MOE SigFamRenterOcc"},"MultiFamRenterOcc",{"$f":"\"MOE \"&AP107","v":"MOE MultiFamRenterOcc"},"MobileRenterOcc",{"$f":"\"MOE \"&AR107","v":"MOE MobileRenterOcc"},"TotalSigFamilyUnits",{"$f":"\"MOE \"&AT107","v":"MOE TotalSigFamilyUnits"},"TotalMultiFamilyUnits",{"$f":"\"MOE \"&AV107","v":"MOE TotalMultiFamilyUnits"},"TotalMobileUnits",{"$f":"\"MOE \"&AX107","v":"MOE TotalMobileUnits"},"YrHouseBuilt2005Later",{"$f":"\"MOE \"&AZ107","v":"MOE YrHouseBuilt2005Later"},"YrHouseBuilt2000-2004",{"$f":"\"MOE \"&BB107","v":"MOE YrHouseBuilt2000-2004"},"YrHouseBuilt1990-1999",{"$f":"\"MOE \"&BD107","v":"MOE YrHouseBuilt1990-1999"},"YrHouseBuilt1980-1989",{"$f":"\"MOE \"&BF107","v":"MOE YrHouseBuilt1980-1989"},"YrHouseBuilt1970-1979",{"$f":"\"MOE \"&BH107","v":"MOE YrHouseBuilt1970-1979"},"YrHouseBuilt1960-1969",{"$f":"\"MOE \"&BJ107","v":"MOE YrHouseBuilt1960-1969"},"YrHouseBuilt1950-1959",{"$f":"\"MOE \"&BL107","v":"MOE YrHouseBuilt1950-1959"},"YrHouseBuilt1940-1949",{"$f":"\"MOE \"&BN107","v":"MOE YrHouseBuilt1940-1949"},"YrHouseBuilt1939orEarlier",{"$f":"\"MOE \"&BP107","v":"MOE YrHouseBuilt1939orEarlier"},"NoBedrooms",{"$f":"\"MOE \"&BR107","v":"MOE NoBedrooms"},"1Bedroom",{"$f":"\"MOE \"&BT107","v":"MOE 1Bedroom"},"2Bedroom",{"$f":"\"MOE \"&BV107","v":"MOE 2Bedroom"},"3Bedroom",{"$f":"\"MOE \"&BX107","v":"MOE 3Bedroom"},"4+Bedroom",{"$f":"\"MOE \"&BZ107","v":"MOE 4+Bedroom"}]
[{"$f":"VLOOKUP(DropDownList!$B$47,CntyQryCensus!$A$510:$DA$552,A$1)","v":"Allenstown"},1769,132,1690,118,1223,125,467,107,79,71,0,11,0,11,30,48,0,11,0,11,4273,22,3247,255,1026,255,1690,118,1223,125,649,98,124,60.099916805266879,450,88.68483523128404,467,107,90,56,366,118.4694053331914,11,19.416487838947599,788,117,490,127.32242536175629,491,101.59724405711013,6,11,41,42,199,69,131,61,333,95,390,103,127,66,231,95,92,61,16,15,279,103,571,127,669,120,234,80.777472107017559]
[]
["Disability Data"]
["NAME","TotalPop",{"$f":"\"MOE \"&B111","v":"MOE TotalPop"},"PopUnder 5 years:",{"$f":"\"MOE \"&D111","v":"MOE PopUnder 5 years:"},{"$f":"D$111&\"-WithDisability\"","v":"PopUnder 5 years:-WithDisability"},{"$f":"\"MOE \"&F111","v":"MOE PopUnder 5 years:-WithDisability"},{"$f":"D111&\"-NoDisability\"","v":"PopUnder 5 years:-NoDisability"},{"$f":"\"MOE \"&H111","v":"MOE PopUnder 5 years:-NoDisability"},"PopUnder 5 to 17years:",{"$f":"\"MOE \"&J111","v":"MOE PopUnder 5 to 17years:"},{"$f":"J$111&\"-WithDisability\"","v":"PopUnder 5 to 17years:-WithDisability"},{"$f":"\"MOE \"&L111","v":"MOE PopUnder 5 to 17years:-WithDisability"},{"$f":"J111&\"-NoDisability\"","v":"PopUnder 5 to 17years:-NoDisability"},{"$f":"\"MOE \"&N111","v":"MOE PopUnder 5 to 17years:-NoDisability"},"PopUnder 18 to 34 years:",{"$f":"\"MOE \"&P111","v":"MOE PopUnder 18 to 34 years:"},{"$f":"P$111&\"-WithDisability\"","v":"PopUnder 18 to 34 years:-WithDisability"},{"$f":"\"MOE \"&R111","v":"MOE PopUnder 18 to 34 years:-WithDisability"},{"$f":"P111&\"-NoDisability\"","v":"PopUnder 18 to 34 years:-NoDisability"},{"$f":"\"MOE \"&T111","v":"MOE PopUnder 18 to 34 years:-NoDisability"},"Pop 35 years to 64:",{"$f":"\"MOE \"&V111","v":"MOE Pop 35 years to 64:"},{"$f":"$V$111&\"-WithDisability\"","v":"Pop 35 years to 64:-WithDisability"},{"$f":"\"MOE \"&X111","v":"MOE Pop 35 years to 64:-WithDisability"},{"$f":"$V$111&\"-NoDisability\"","v":"Pop 35 years to 64:-NoDisability"},{"$f":"\"MOE \"&Z111","v":"MOE Pop 35 years to 64:-NoDisability"},"Pop 65 years to 74:",{"$f":"\"MOE \"&AB111","v":"MOE Pop 65 years to 74:"},{"$f":"$AB$111&\"-WithDisability\"","v":"Pop 65 years to 74:-WithDisability"},{"$f":"\"MOE \"&AD111","v":"MOE Pop 65 years to 74:-WithDisability"},{"$f":"$AB$111&\"-NoDisability\"","v":"Pop 65 years to 74:-NoDisability"},{"$f":"\"MOE \"&AF111","v":"MOE Pop 65 years to 74:-NoDisability"},"Pop 75 and older:",{"$f":"\"MOE \"&AH111","v":"MOE Pop 75 and older:"},{"$f":"$AH$111&\"-WithDisability\"","v":"Pop 75 and older:-WithDisability"},{"$f":"\"MOE \"&AJ111","v":"MOE Pop 75 and older:-WithDisability"},{"$f":"$AH$111&\"-NoDisability\"","v":"Pop 75 and older:-NoDisability"},{"$f":"\"MOE \"&AL111","v":"MOE Pop 75 and older:-NoDisability"},"TotalPopUnder5_HearingDisability",{"$f":"\"MOE \"&AN111","v":"MOE TotalPopUnder5_HearingDisability"},"TotalUnder5_HearingDisability",{"$f":"\"MOE \"&AP111","v":"MOE TotalUnder5_HearingDisability"},"TotalPop18To34_HearingDisability",{"$f":"\"MOE \"&AR111","v":"MOE TotalPop18To34_HearingDisability"},"TotalPop35To64_HearingDisability",{"$f":"\"MOE \"&AT111","v":"MOE TotalPop35To64_HearingDisability"},"TotalPop65To74_HearingDisability",{"$f":"\"MOE \"&AV111","v":"MOE TotalPop65To74_HearingDisability"},"TotalPop75andOlder_HearingDisability",{"$f":"\"MOE \"&AX111","v":"MOE TotalPop75andOlder_HearingDisability"},"TotalUnder5_VisionDisability",{"$f":"\"MOE \"&AZ111","v":"MOE TotalUnder5_VisionDisability"},"Total5To17_VisionDisability",{"$f":"\"MOE \"&BB111","v":"MOE Total5To17_VisionDisability"},"Total18To34_VisionDisability",{"$f":"\"MOE \"&BD111","v":"MOE Total18To34_VisionDisability"},"Total35To64_VisionDisability",{"$f":"\"MOE \"&BF111","v":"MOE Total35To64_VisionDisability"},"Total65To74_VisionDisability",{"$f":"\"MOE \"&BH111","v":"MOE Total65To74_VisionDisability"},"Total75andOlder_VisionDisability",{"$f":"\"MOE \"&BJ111","v":"MOE Total75andOlder_VisionDisability"},"Total5To17_CongnitiveDisability",{"$f":"\"MOE \"&BL111","v":"MOE Total5To17_CongnitiveDisability"},"Total18To34_CongnitiveDisability",{"$f":"\"MOE \"&BN111","v":"MOE Total18To34_CongnitiveDisability"},"Total35To64_CongnitiveDisability",{"$f":"\"MOE \"&BP111","v":"MOE Total35To64_CongnitiveDisability"},"Total65To74_CongnitiveDisability",{"$f":"\"MOE \"&BR111","v":"MOE Total65To74_CongnitiveDisability"},"Total75andOlder_CongnitiveDisability",{"$f":"\"MOE \"&BT111","v":"MOE Total75andOlder_CongnitiveDisability"},"Total5To17_AmbulatoryDisability",{"$f":"\"MOE \"&BV111","v":"MOE Total5To17_AmbulatoryDisability"},"Total18To34_AmbulatoryDisability",{"$f":"\"MOE \"&BX111","v":"MOE Total18To34_AmbulatoryDisability"},"Total35To64_AmbulatoryDisability",{"$f":"\"MOE \"&BZ111","v":"MOE Total35To64_AmbulatoryDisability"},"Total65To74_AmbulatoryDisability",{"$f":"\"MOE \"&CB111","v":"MOE Total65To74_AmbulatoryDisability"},"Total75andOlder_AmbulatoryDisability",{"$f":"\"MOE \"&CD111","v":"MOE Total75andOlder_AmbulatoryDisability"},"Total5To17_SelfCareDisability",{"$f":"\"MOE \"&CF111","v":"MOE Total5To17_SelfCareDisability"},"Total18To34_SelfCareDisability",{"$f":"\"MOE \"&CH111","v":"MOE Total18To34_SelfCareDisability"},"Total35To64_SelfCareDisability",{"$f":"\"MOE \"&CJ111","v":"MOE Total35To64_SelfCareDisability"},"Total65To74_SelfCareDisability",{"$f":"\"MOE \"&CL111","v":"MOE Total65To74_SelfCareDisability"},"Total75andOlder_SelfCareDisability",{"$f":"\"MOE \"&CN111","v":"MOE Total75andOlder_SelfCareDisability"},"Total18To34_IndependantLivingDisability",{"$f":"\"MOE \"&CP111","v":"MOE Total18To34_IndependantLivingDisability"},"Total35To64_IndependantLivingDisability",{"$f":"\"MOE \"&CR111","v":"MOE Total35To64_IndependantLivingDisability"},"Total65To74_IndependantLivingDisability",{"$f":"\"MOE \"&CT111","v":"MOE Total65To74_IndependantLivingDisability"},"Total75andOlder_IndependantLivingDisability",{"$f":"\"MOE \"&CV111","v":"MOE Total75andOlder_IndependantLivingDisability"},"TotalUnder18_OneDisability",{"$f":"\"MOE \"&CX111","v":"MOE TotalUnder18_OneDisability"},"TotalUnder18_TwoDisability",{"$f":"\"MOE \"&CZ111","v":"MOE TotalUnder18_TwoDisability"},"18to6YearWIthOneDisability",{"$f":"\"MOE \"&DB111","v":"MOE 18to6YearWIthOneDisability"},"18to64YearWIthTwoOrMoreDisability",{"$f":"\"MOE \"&DD111","v":"MOE 18to64YearWIthTwoOrMoreDisability"},"Over64YearsWIthOneDisability",{"$f":"\"MOE \"&DF111","v":"MOE Over64YearsWIthOneDisability"},"Over64YearsWIthTwoOrMoreDisability",{"$f":"\"MOE \"&DH111","v":"MOE Over64YearsWIthTwoOrMoreDisability"}]
[{"$f":"VLOOKUP(DropDownList!$B$47,CntyQryCensus!$A$510:$DA$552,A$1)","v":"Allenstown"},5235,76,248,104.0096149401583,0,22.627416997969522,248,104.0096149401583,1112,221.00904958847272,45,38.013155617496423,1067,218.80585001320233,866,186.93581786270923,14,23.345235059857504,852,186.10212250267324,2431,149.91330828182001,254,84.148677945645701,2177,165.6804152578089,378,89.10667763978185,96,41.868842830916641,282,91.678787077491378,200,64.660652641308843,125,52.773099207835045,75,41.868842830916641,0,15.556349186104045,41,48.764741360946438,15,21.095023109728988,92,67.94115100585212,43,25.238858928247925,57,36.069377593742864,0,15.556349186104045,24,42.449970553582247,0,15.556349186104045,73,74.330343736592525,9,17.804493814764857,45,45.177427992306072,170,98.994949366116657,52,36.069377593742864,191,96.566039579139826,43,44.922154890432402,14,18.601075237738275,4,13.601470508735444,28,45.354161881794269,174,82.927679335671755,64,35.227829907617071,78,40.496913462633174,0,15.556349186104045,28,45.354161881794269,43,50.219518117958877,33,23.853720883753127,1,11.180339887498949,67,51.195702944680818,158,81.541400527584756,52,31.240998703626616,36,48.041648597857254,114,63,56,49,269,86,203,95,167,74,108,57]
[]
["Househould Income By Age"]
["NAME","TotalHouseholds",{"$f":"\"MOE \"&B115","v":"MOE TotalHouseholds"},"HHInc<10K",{"$f":"\"MOE \"&D115","v":"MOE HHInc<10K"},"HHInc10to15K",{"$f":"\"MOE \"&F115","v":"MOE HHInc10to15K"},"HHInc15to20K",{"$f":"\"MOE \"&H115","v":"MOE HHInc15to20K"},"HHInc20to25K",{"$f":"\"MOE \"&J115","v":"MOE HHInc20to25K"},"HHInc25to30K",{"$f":"\"MOE \"&L115","v":"MOE HHInc25to30K"},"HHInc30to35K",{"$f":"\"MOE \"&N115","v":"MOE HHInc30to35K"},"HHInc35to40K",{"$f":"\"MOE \"&P115","v":"MOE HHInc35to40K"},"HHInc40to45K",{"$f":"\"MOE \"&R115","v":"MOE HHInc40to45K"},"HHInc45to50K",{"$f":"\"MOE \"&T115","v":"MOE HHInc45to50K"},"HHInc50to60K",{"$f":"\"MOE \"&V115","v":"MOE HHInc50to60K"},"HHInc60to75K",{"$f":"\"MOE \"&X115","v":"MOE HHInc60to75K"},"HHInc75to100K",{"$f":"\"MOE \"&Z115","v":"MOE HHInc75to100K"},"HHInc100to125K",{"$f":"\"MOE \"&AB115","v":"MOE HHInc100to125K"},"HHInc125to150K",{"$f":"\"MOE \"&AD115","v":"MOE HHInc125to150K"},"HHInc150to200K",{"$f":"\"MOE \"&AF115","v":"MOE HHInc150to200K"},"HHInc>200K",{"$f":"\"MOE \"&AH115","v":"MOE HHInc>200K"},"TotalHH",{"$f":"\"MOE \"&AJ115","v":"MOE TotalHH"},"HHAgeHHUnder25yrs",{"$f":"\"MOE \"&AL115","v":"MOE HHAgeHHUnder25yrs"},"HHAgeHH<25HHInc<10K",{"$f":"\"MOE \"&AN115","v":"MOE HHAgeHH<25HHInc<10K"},"HHAgeHH<25HHInc10to15K",{"$f":"\"MOE \"&AP115","v":"MOE HHAgeHH<25HHInc10to15K"},"HHAgeHH<25HHInc15to20K",{"$f":"\"MOE \"&AR115","v":"MOE HHAgeHH<25HHInc15to20K"},"HHAgeHH<25HHInc20to25K",{"$f":"\"MOE \"&AT115","v":"MOE HHAgeHH<25HHInc20to25K"},"HHAgeHH<25HHInc25to30K",{"$f":"\"MOE \"&AV115","v":"MOE HHAgeHH<25HHInc25to30K"},"HHAgeHH<25HHInc30to35K",{"$f":"\"MOE \"&AX115","v":"MOE HHAgeHH<25HHInc30to35K"},"HHAgeHH<25HHInc35to40K",{"$f":"\"MOE \"&AZ115","v":"MOE HHAgeHH<25HHInc35to40K"},"HHAgeHH<25HHInc40to45K",{"$f":"\"MOE \"&BB115","v":"MOE HHAgeHH<25HHInc40to45K"},"HHAgeHH<25HHInc45to50K",{"$f":"\"MOE \"&BD115","v":"MOE HHAgeHH<25HHInc45to50K"},"HHAgeHH<25HHInc50to60K",{"$f":"\"MOE \"&BF115","v":"MOE HHAgeHH<25HHInc50to60K"},"HHAgeHH<25HHInc60to75K",{"$f":"\"MOE \"&BH115","v":"MOE HHAgeHH<25HHInc60to75K"},"HHAgeHH<25HHInc75to100K",{"$f":"\"MOE \"&BJ115","v":"MOE HHAgeHH<25HHInc75to100K"},"HHAgeHH<25HHInc100to125K",{"$f":"\"MOE \"&BL115","v":"MOE HHAgeHH<25HHInc100to125K"},"HHAgeHH<25HHInc125to150K",{"$f":"\"MOE \"&BN115","v":"MOE HHAgeHH<25HHInc125to150K"},"HHAgeHH<25HHInc150to200K",{"$f":"\"MOE \"&BP115","v":"MOE HHAgeHH<25HHInc150to200K"},"HHAge<25HHInc>200K",{"$f":"\"MOE \"&BR115","v":"MOE HHAge<25HHInc>200K"},"HHAgeHH25to44yrs",{"$f":"\"MOE \"&BT115","v":"MOE HHAgeHH25to44yrs"},"HHAgeHH25To44yrsHHInc<10K",{"$f":"\"MOE \"&BV115","v":"MOE HHAgeHH25To44yrsHHInc<10K"},"HHAgeHH25To44yrsHHInc10to15K",{"$f":"\"MOE \"&BX115","v":"MOE HHAgeHH25To44yrsHHInc10to15K"},"HHAgeHH25To44yrsHHInc15to20K",{"$f":"\"MOE \"&BZ115","v":"MOE HHAgeHH25To44yrsHHInc15to20K"},"HHAgeHH25To44yrsHHInc20to25K",{"$f":"\"MOE \"&CB115","v":"MOE HHAgeHH25To44yrsHHInc20to25K"},"HHAgeHH25To44yrsHHInc25to30K",{"$f":"\"MOE \"&CD115","v":"MOE HHAgeHH25To44yrsHHInc25to30K"},"HHAgeHH25To44yrsHHInc30to35K",{"$f":"\"MOE \"&CF115","v":"MOE HHAgeHH25To44yrsHHInc30to35K"},"HHAgeHH25To44yrsHHInc35to40K",{"$f":"\"MOE \"&CH115","v":"MOE HHAgeHH25To44yrsHHInc35to40K"},"HHAgeHH25To44yrsHHInc40to45K",{"$f":"\"MOE \"&CJ115","v":"MOE HHAgeHH25To44yrsHHInc40to45K"},"HHAgeHH25To44yrsHHInc45to50K",{"$f":"\"MOE \"&CL115","v":"MOE HHAgeHH25To44yrsHHInc45to50K"},"HHAgeHH25To44yrsHHInc50to60K",{"$f":"\"MOE \"&CN115","v":"MOE HHAgeHH25To44yrsHHInc50to60K"},"HHAgeHH25To44yrsHHInc60to75K",{"$f":"\"MOE \"&CP115","v":"MOE HHAgeHH25To44yrsHHInc60to75K"},"HHAgeHH25To44yrsHHInc75to100K",{"$f":"\"MOE \"&CR115","v":"MOE HHAgeHH25To44yrsHHInc75to100K"},"HHAgeHH25To44yrsHHInc100to125K",{"$f":"\"MOE \"&CT115","v":"MOE HHAgeHH25To44yrsHHInc100to125K"},"HHAgeHH25To44yrsHHInc125to150K",{"$f":"\"MOE \"&CV115","v":"MOE HHAgeHH25To44yrsHHInc125to150K"},"HHAgeHH25To44yrsHHInc150to200K",{"$f":"\"MOE \"&CX115","v":"MOE HHAgeHH25To44yrsHHInc150to200K"},"HHAge25To44yrsHHInc>200K",{"$f":"\"MOE \"&CZ115","v":"MOE HHAge25To44yrsHHInc>200K"},"HHAgeHH45To64yrs",{"$f":"\"MOE \"&DB115","v":"MOE HHAgeHH45To64yrs"},"HHAgeHH45To64yrsHHInc<10K",{"$f":"\"MOE \"&DD115","v":"MOE HHAgeHH45To64yrsHHInc<10K"},"HHAgeHH45To64yrsHHInc10to15K",{"$f":"\"MOE \"&DF115","v":"MOE HHAgeHH45To64yrsHHInc10to15K"},"HHAgeHH45To64yrsHHInc15to20K",{"$f":"\"MOE \"&DH115","v":"MOE HHAgeHH45To64yrsHHInc15to20K"},"HHAgeHH45To64yrsHHInc20to25K",{"$f":"\"MOE \"&DJ115","v":"MOE HHAgeHH45To64yrsHHInc20to25K"},"HHAgeHH45To64yrsHHInc25to30K",{"$f":"\"MOE \"&DL115","v":"MOE HHAgeHH45To64yrsHHInc25to30K"},"HHAgeHH45To64yrsHHInc30to35K",{"$f":"\"MOE \"&DN115","v":"MOE HHAgeHH45To64yrsHHInc30to35K"},"HHAgeHH45To64yrsHHInc35to40K",{"$f":"\"MOE \"&DP115","v":"MOE HHAgeHH45To64yrsHHInc35to40K"},"HHAgeHH45To64yrsHHInc40to45K",{"$f":"\"MOE \"&DR115","v":"MOE HHAgeHH45To64yrsHHInc40to45K"},"HHAgeHH45To64yrsHHInc45to50K",{"$f":"\"MOE \"&DT115","v":"MOE HHAgeHH45To64yrsHHInc45to50K"},"HHAgeHH45To64yrsHHInc50to60K",{"$f":"\"MOE \"&DV115","v":"MOE HHAgeHH45To64yrsHHInc50to60K"},"HHAgeHH45To64yrsHHInc60to75K",{"$f":"\"MOE \"&DX115","v":"MOE HHAgeHH45To64yrsHHInc60to75K"},"HHAgeHH45To64yrsHHInc75to100K",{"$f":"\"MOE \"&DZ115","v":"MOE HHAgeHH45To64yrsHHInc75to100K"},"HHAgeHH45To64yrsHHInc100to125K",{"$f":"\"MOE \"&EB115","v":"MOE HHAgeHH45To64yrsHHInc100to125K"},"HHAgeHH45To64yrsHHInc125to150K",{"$f":"\"MOE \"&ED115","v":"MOE HHAgeHH45To64yrsHHInc125to150K"},"HHAgeHH45To64yrsHHInc150to200K",{"$f":"\"MOE \"&EF115","v":"MOE HHAgeHH45To64yrsHHInc150to200K"},"HHAge45To64yrsHHInc>200K",{"$f":"\"MOE \"&EH115","v":"MOE HHAge45To64yrsHHInc>200K"},"HHAgeHH65yrsorOlder",{"$f":"\"MOE \"&EJ115","v":"MOE HHAgeHH65yrsorOlder"},"HHAgeHH65yrsorOlderHHInc<10K",{"$f":"\"MOE \"&EL115","v":"MOE HHAgeHH65yrsorOlderHHInc<10K"},"HHAgeHH65yrsorOlderHHInc10to15K",{"$f":"\"MOE \"&EN115","v":"MOE HHAgeHH65yrsorOlderHHInc10to15K"},"HHAgeHH65yrsorOlderHHInc15to20K",{"$f":"\"MOE \"&EP115","v":"MOE HHAgeHH65yrsorOlderHHInc15to20K"},"HHAgeHH65yrsorOlderHHInc20to25K",{"$f":"\"MOE \"&ER115","v":"MOE HHAgeHH65yrsorOlderHHInc20to25K"},"HHAgeHH65yrsorOlderHHInc25to30K",{"$f":"\"MOE \"&ET115","v":"MOE HHAgeHH65yrsorOlderHHInc25to30K"},"HHAgeHH65yrsorOlderHHInc30to35K",{"$f":"\"MOE \"&EV115","v":"MOE HHAgeHH65yrsorOlderHHInc30to35K"},"HHAgeHH65yrsorOlderHHInc35to40K",{"$f":"\"MOE \"&EX115","v":"MOE HHAgeHH65yrsorOlderHHInc35to40K"},"HHAgeHH65yrsorOlderHHInc40to45K",{"$f":"\"MOE \"&EZ115","v":"MOE HHAgeHH65yrsorOlderHHInc40to45K"},"HHAgeHH65yrsorOlderHHInc45to50K",{"$f":"\"MOE \"&FB115","v":"MOE HHAgeHH65yrsorOlderHHInc45to50K"},"HHAgeHH65yrsorOlderHHInc50to60K",{"$f":"\"MOE \"&FD115","v":"MOE HHAgeHH65yrsorOlderHHInc50to60K"},"HHAgeHH65yrsorOlderHHInc60to75K",{"$f":"\"MOE \"&FF115","v":"MOE HHAgeHH65yrsorOlderHHInc60to75K"},"HHAgeHH65yrsorOlderHHInc75to100K",{"$f":"\"MOE \"&FH115","v":"MOE HHAgeHH65yrsorOlderHHInc75to100K"},"HHAgeHH65yrsorOlderHHInc100to125K",{"$f":"\"MOE \"&FJ115","v":"MOE HHAgeHH65yrsorOlderHHInc100to125K"},"HHAgeHH65yrsorOlderHHInc125to150K",{"$f":"\"MOE \"&FL115","v":"MOE HHAgeHH65yrsorOlderHHInc125to150K"},"HHAgeHH65yrsorOlderHHInc150to200K",{"$f":"\"MOE \"&FN115","v":"MOE HHAgeHH65yrsorOlderHHInc150to200K"},"HHAge65yrsorOlderHHInc>200K",{"$f":"\"MOE \"&FP115","v":"MOE HHAge65yrsorOlderHHInc>200K"},"MedianHHInc",{"$f":"\"MOE \"&FR115","v":"MOE MedianHHInc"},"HH under 25 years",{"$f":"\"MOE \"&FT115","v":"MOE HH under 25 years"},"Householder 25 to 44 years",{"$f":"\"MOE \"&FV115","v":"MOE Householder 25 to 44 years"},"Householder 45 to 64 years",{"$f":"\"MOE \"&FX115","v":"MOE Householder 45 to 64 years"},"Householder 65 years and over",{"$f":"\"MOE \"&FZ115","v":"MOE Householder 65 years and over"}]
[{"$f":"VLOOKUP(DropDownList!$B$47,CntyQryCensus!$A$510:$DA$552,A$1)","v":"Allenstown"},1690,118,62,38,202,89,8,13,118,77,61,50,122,59,82,48,49,32,67,36,179,65,187,65,213,76,188,71,53,30,99,55,0,11,1690,118,68,51,11,18,11,16,0,11,0,11,0,11,10,16,0,11,0,11,0,11,14,22,22,35,0,11,0,11,0,11,0,11,0,11,436,68,20,23,28,43,0,11,17,20,9,14,26,23,32,38,16,20,7,12,22,21,63,41,79,40,87,48,14,15,16,16,0,11,796,109,14,17,88,60,8,13,52,34,9,14,47,48,35,25,27,22,46,31,102,53,74,41,117,68,81,53,24,22,72,49,0,11,390,84,17,19,75,60,0,11,49,53,43,46,39,26,15,17,6,10,14,17,41,40,28,22,17,17,20,21,15,18,11,12,0,11,53448,4985,52857,49425,68750,14641,57308,8921,30705,6236]
[]
["Number of Households by Income"]
["NAME","HHIncLessThn10k",{"$f":"\"MOE \"&B119","v":"MOE HHIncLessThn10k"},"HHInc10to15K",{"$f":"\"MOE \"&D119","v":"MOE HHInc10to15K"},"HHInc15to25K",{"$f":"\"MOE \"&F119","v":"MOE HHInc15to25K"},"HHInc25to35K",{"$f":"\"MOE \"&H119","v":"MOE HHInc25to35K"},"HHInc35to50K",{"$f":"\"MOE \"&J119","v":"MOE HHInc35to50K"},"HHInc50to75K",{"$f":"\"MOE \"&L119","v":"MOE HHInc50to75K"},"HHInc75to100K",{"$f":"\"MOE \"&N119","v":"MOE HHInc75to100K"},"HHInc100to150K",{"$f":"\"MOE \"&P119","v":"MOE HHInc100to150K"},"HHInc150to200K",{"$f":"\"MOE \"&R119","v":"MOE HHInc150to200K"},"HHIncOver200K",{"$f":"\"MOE \"&T119","v":"MOE HHIncOver200K"}]
[{"$f":"VLOOKUP(DropDownList!$B$47,CntyQryCensus!$A$510:$DA$552,A$1)","v":"Allenstown"},62,38,202,89,126,78.089692021418557,183,77.336925203941234,198,68,366,91.923881554251182,213,76,241,77.077882690172544,99,55,0,11]
[]
[]
["NAME","TotalPop",{"$f":"\"MOE \"&B123","v":"MOE TotalPop"},"Total Individuals living in Poverty",{"$f":"\"MOE \"&D123","v":"MOE Total Individuals living in Poverty"},"Under 5 yrs.",{"$f":"\"MOE \"&F123","v":"MOE Under 5 yrs."},"5 to 17 yrs.",{"$f":"\"MOE \"&H123","v":"MOE 5 to 17 yrs."},"18 to 64 yrs.",{"$f":"\"MOE \"&J123","v":"MOE 18 to 64 yrs."},"65 to 74 yrs.",{"$f":"\"MOE \"&L123","v":"MOE 65 to 74 yrs."},"75 yrs. & Over",{"$f":"\"MOE \"&N123","v":"MOE 75 yrs. & Over"},"Total Individuals  Not living Poverty",{"$f":"\"MOE \"&P123","v":"MOE Total Individuals  Not living Poverty"},"Under 5 yrs.",{"$f":"\"MOE \"&R123","v":"MOE Under 5 yrs."},"5 to 17 yrs.",{"$f":"\"MOE \"&T123","v":"MOE 5 to 17 yrs."},"18 to 64 yrs.",{"$f":"\"MOE \"&V123","v":"MOE 18 to 64 yrs."},"65 to 74 yrs.",{"$f":"\"MOE \"&X123","v":"MOE 65 to 74 yrs."},"75 yrs. & Over",{"$f":"\"MOE \"&Z123","v":"MOE 75 yrs. & Over"},"Total HH",{"$f":"\"MOE \"&AB123","v":"MOE Total HH"},"Total Households Below Poverty",{"$f":"\"MOE \"&AD123","v":"MOE Total Households Below Poverty"},"Family Households in Poverty",{"$f":"\"MOE \"&AF123","v":"MOE Family Households in Poverty"},"Married Couple Fam HH",{"$f":"\"MOE \"&AH123","v":"MOE Married Couple Fam HH"},"Other Family",{"$f":"\"MOE \"&AJ123","v":"MOE Other Family"},"Male Head of Family HH no wife",{"$f":"\"MOE \"&AL123","v":"MOE Male Head of Family HH no wife"},"Female Head of Family HH no husband",{"$f":"\"MOE \"&AN123","v":"MOE Female Head of Family HH no husband"},"Non-Family HH",{"$f":"\"MOE \"&AP123","v":"MOE Non-Family HH"},"Non-Family Male HH",{"$f":"\"MOE \"&AR123","v":"MOE Non-Family Male HH"},"Non-Family Female HH",{"$f":"\"MOE \"&AT123","v":"MOE Non-Family Female HH"},"Total Households at or Above Poverty",{"$f":"\"MOE \"&AV123","v":"MOE Total Households at or Above Poverty"},"Family Households above Poverty",{"$f":"\"MOE \"&AX123","v":"MOE Family Households above Poverty"},"Married Couple Fam HH",{"$f":"\"MOE \"&AZ123","v":"MOE Married Couple Fam HH"},"Other Family",{"$f":"\"MOE \"&BB123","v":"MOE Other Family"},"Male Head of Family HH no wife",{"$f":"\"MOE \"&BD123","v":"MOE Male Head of Family HH no wife"},"Female Head of Family HH no husband",{"$f":"\"MOE \"&BF123","v":"MOE Female Head of Family HH no husband"},"Non-Family HH",{"$f":"\"MOE \"&BH123","v":"MOE Non-Family HH"},"Non-Family Male HH",{"$f":"\"MOE \"&BJ123","v":"MOE Non-Family Male HH"},"Non-Family Female HH",{"$f":"\"MOE \"&BL123","v":"MOE Non-Family Female HH"},"Married Couple with Children Below Poverty",{"$f":"\"MOE \"&BN123","v":"MOE Married Couple with Children Below Poverty"},"Male HH with children below poverty",{"$f":"\"MOE \"&BP123","v":"MOE Male HH with children below poverty"},"Female HH with children below poverty",{"$f":"\"MOE \"&BR123","v":"MOE Female HH with children below poverty"},"Married Couple with Children At or Above Poverty",{"$f":"\"MOE \"&BT123","v":"MOE Married Couple with Children At or Above Poverty"},"Male HH with children at or above poverty",{"$f":"\"MOE \"&BV123","v":"MOE Male HH with children at or above poverty"},"Female HH with children at or above poverty",{"$f":"\"MOE \"&BX123","v":"MOE Female HH with children at or above poverty"}]
[{"$f":"VLOOKUP(DropDownList!$B$47,CntyQryCensus!$A$510:$DA$552,A$1)","v":"Allenstown"},4248,35,470,169,9,49.040799340956916,95,62.297672508690084,339,109.98636279102969,0,15.556349186104045,27,23.600847442411894,3778,173,217,91.35097153287424,444,127.63620176109912,2570,248.32639811345067,305,91.285267157411553,242,86.284413424441851,210,84,121,63,57,46,11,16,64,51,0,11,64,51,89,56,13,19,76,53,1480,114,975,101,775,104,200,62,71,36,129,54,505,114,505,114,307,94,12,19,0,11,52,47,320,70,40,28,67,38]
[]
["Household Income By Tenure"]
["NAME","TotalOccHU",{"$f":"\"MOE \"&B127","v":"MOE TotalOccHU"},"OwnOccHU",{"$f":"\"MOE \"&D127","v":"MOE OwnOccHU"},"OOHUInc<5K",{"$f":"\"MOE \"&F127","v":"MOE OOHUInc<5K"},"OOHUInc5to10K",{"$f":"\"MOE \"&H127","v":"MOE OOHUInc5to10K"},"OOHUInc10to15K",{"$f":"\"MOE \"&J127","v":"MOE OOHUInc10to15K"},"OOHUInc15to20K",{"$f":"\"MOE \"&L127","v":"MOE OOHUInc15to20K"},"OOHUInc20to25K",{"$f":"\"MOE \"&N127","v":"MOE OOHUInc20to25K"},"OOHUInc25to35K",{"$f":"\"MOE \"&P127","v":"MOE OOHUInc25to35K"},"OOHUInc35to50K",{"$f":"\"MOE \"&R127","v":"MOE OOHUInc35to50K"},"OOHUInc50to75K",{"$f":"\"MOE \"&T127","v":"MOE OOHUInc50to75K"},"OOHUInc75to100K",{"$f":"\"MOE \"&V127","v":"MOE OOHUInc75to100K"},"OOHUInc100to150K",{"$f":"\"MOE \"&X127","v":"MOE OOHUInc100to150K"},"OOHUInc>150K",{"$f":"\"MOE \"&Z127","v":"MOE OOHUInc>150K"},"RentOccHU",{"$f":"\"MOE \"&AB127","v":"MOE RentOccHU"},"ROHUInc<5K",{"$f":"\"MOE \"&AD127","v":"MOE ROHUInc<5K"},"ROHUInc5to10K",{"$f":"\"MOE \"&AF127","v":"MOE ROHUInc5to10K"},"ROHUInc10to15K",{"$f":"\"MOE \"&AH127","v":"MOE ROHUInc10to15K"},"ROHUInc15to20K",{"$f":"\"MOE \"&AJ127","v":"MOE ROHUInc15to20K"},"ROHUInc20to25K",{"$f":"\"MOE \"&AL127","v":"MOE ROHUInc20to25K"},"ROHUInc25to35K",{"$f":"\"MOE \"&AN127","v":"MOE ROHUInc25to35K"},"ROHUInc35to50K",{"$f":"\"MOE \"&AP127","v":"MOE ROHUInc35to50K"},"ROHUInc50to75K",{"$f":"\"MOE \"&AR127","v":"MOE ROHUInc50to75K"},"ROHUInc75to100K",{"$f":"\"MOE \"&AT127","v":"MOE ROHUInc75to100K"},"ROHUInc100to150K",{"$f":"\"MOE \"&AV127","v":"MOE ROHUInc100to150K"},"ROHUInc>150K",{"$f":"\"MOE \"&AX127","v":"MOE ROHUInc>150K"},"Total OCC HUInc<5K",{"$f":"\"MOE \"&AZ127","v":"MOE Total OCC HUInc<5K"},"Total OCC HUInc5to10K",{"$f":"\"MOE \"&BB127","v":"MOE Total OCC HUInc5to10K"},"Total OCC HUInc10to15K",{"$f":"\"MOE \"&BD127","v":"MOE Total OCC HUInc10to15K"},"Total OCC HUInc15to20K",{"$f":"\"MOE \"&BF127","v":"MOE Total OCC HUInc15to20K"},"Total OCC HUInc20to25K",{"$f":"\"MOE \"&BH127","v":"MOE Total OCC HUInc20to25K"},"Total OCC HUInc25to35K",{"$f":"\"MOE \"&BJ127","v":"MOE Total OCC HUInc25to35K"},"Total OCC HUInc35to50K",{"$f":"\"MOE \"&BL127","v":"MOE Total OCC HUInc35to50K"},"Total OCC HUInc50to75K",{"$f":"\"MOE \"&BN127","v":"MOE Total OCC HUInc50to75K"},"Total OCC HUInc75to100K",{"$f":"\"MOE \"&BP127","v":"MOE Total OCC HUInc75to100K"},"Total OCC HUInc100to150K",{"$f":"\"MOE \"&BR127","v":"MOE Total OCC HUInc100to150K"},"Total OCC HUInc>150K",{"$f":"\"MOE \"&BT127","v":"MOE Total OCC HUInc>150K"},"MedHHInc",{"$f":"\"MOE \"&BV127","v":"MOE MedHHInc"},"MedOwnOccHHInc",{"$f":"\"MOE \"&BX127","v":"MOE MedOwnOccHHInc"},"MedRentOccHHInc",{"$f":"\"MOE \"&BZ127","v":"MOE MedRentOccHHInc"}]
[{"$f":"VLOOKUP(DropDownList!$B$47,CntyQryCensus!$A$510:$DA$552,A$1)","v":"Allenstown"},1690,118,1223,125,21,22,25,23,54,45,8,13,101,72,102,61,190,63,273,72,169,71,181,61,99,55,467,107,16,20,0,11,148,84,0,11,17,20,81,59,8,13,93,54,44,32,60,49,0,11,37,29.732137494637012,25,25.495097567963924,202,95.294281045611541,8,17.029386365926403,118,74.726166769077622,183,84.864598037108507,198,64.327288144301562,366,90,213,77.878109889750149,241,78.243210568074218,99,56.089214649520635,53448,4985,58705,7938,30817,13271]
[]
["Population Data"]
["NAME","Total Population","MOE Total Population","Under 15 Years","MOE Under 15 yrs.","15 to 24 yrs.","MOE 15 to 24 yrs.","25 to 34 yrs.","MOE 25 to 34 yrs.","35 to 44 yrs.","MOE 35 to 44 yrs.","45 to 54 yrs.","MOE 45 to 54 yrs.","55 to 64 yrs.","MOE 55 to 64 yrs.","65 to 74 yrs.","MOE 65 to 74 yrs.","Over 74 yrs. ","MOE Over 74 yrs. ","TotalHH","MOE TotalHH","FamilyHH","MOE FamilyHH","MarriedFamilyHH","MOE MarriedFamilyHH","SingleFamilyHH","MOE SingleFamilyHH","Sfamily-MaleHH","MOE Sfamily-MaleHH","Sfamily-FemaleHH","MOE Sfamily-FemaleHH","NonFamilyHH","MOE NonFamilyHH","NonFamilyHH-LivingAlone","MOE NonFamilyHH-LivingAlone","NonFamilyHH-NotLivingAlone","MOE NonFamilyHH-NotLivingAlone","PopRaceWhite","MOE PopRaceWhite","PopRaceBlack","MOE PopRaceBlack","PopRaceAmerican Indian","MOE PopRaceAmerican Indian","PopRaceAsian &Pacific Is.","MOE PopRaceAsian &Pacific Is.","PopRaceOther*","MOE PopRaceOther*","PopRaceHispanic or Latino:","MOE PopRaceHispanic or Latino:","AvgAgeTotalPop","MOE AvgAgeTotalPop","AvgAgeMale","MOE AvgAgeMale","AvgAgeFemale","MOE AvgAgeFemale","AvgHHSizeTotal","MOE AvgHHSizeTotal","AvgHHSizeFamilyHH","MOE AvgHHSizeFamilyHH","AvgHHSizeNonFamilyHH","MOE AvgHHSizeNonFamilyHH"]
[{"$f":"VLOOKUP(DropDownList!$B$47,CntyQryCensus!$A$510:$DA$552,A$1)","v":"Allenstown"},4315,21,683,150.94038558318314,535,147.65161699080713,495,112.89818421923357,563,106.72862783714592,760,150.60876468519353,687,146.31814651641812,331,91.547801721286575,261,93.423765713013296,1744,113,1121,86,850,105,271,80,97,53,174,71,623,136,491,107,132,75,4093,142,15,18,0,11,14,24.596747752497688,50,47.296934361541872,192,131,43.8,2.2000000000000002,42.3,1.5,46.6,4.3,2.460435779816514,0.16,3.1231043710972348,0.47447687297371782,1.2680577849117174,0.48580233342381313]
[]
["Nativity and Prior Place of Residence"]
["NAME","TotalPop",{"$f":"\"MOE \"&B135","v":"MOE TotalPop"},"Native:",{"$f":"\"MOE \"&D135","v":"MOE Native:"},"NatBornInStateOfResidence",{"$f":"\"MOE \"&F135","v":"MOE NatBornInStateOfResidence"},"Born in other state in the United States:",{"$f":"\"MOE \"&H135","v":"MOE Born in other state in the United States:"},"Northeast",{"$f":"\"MOE \"&J135","v":"MOE Northeast"},"Midwest",{"$f":"\"MOE \"&L135","v":"MOE Midwest"},"South",{"$f":"\"MOE \"&N135","v":"MOE South"},"West",{"$f":"\"MOE \"&P135","v":"MOE West"},"Born outside the United States:",{"$f":"\"MOE \"&R135","v":"MOE Born outside the United States:"},"Puerto Rico",{"$f":"\"MOE \"&T135","v":"MOE Puerto Rico"},"U.S. Island Areas",{"$f":"\"MOE \"&V135","v":"MOE U.S. Island Areas"},"Born abroad of American parent(s)",{"$f":"\"MOE \"&X135","v":"MOE Born abroad of American parent(s)"},"Foreign born:",{"$f":"\"MOE \"&Z135","v":"MOE Foreign born:"},"Naturalized U.S. citizen",{"$f":"\"MOE \"&AB135","v":"MOE Naturalized U.S. citizen"},"Not a U.S. citizen",{"$f":"\"MOE \"&AD135","v":"MOE Not a U.S. citizen"},"CurrentResideneTotal:",{"$f":"\"MOE \"&AF135","v":"MOE CurrentResideneTotal:"},"SameHouse:",{"$f":"\"MOE \"&AH135","v":"MOE SameHouse:"},"DifferentHouse:",{"$f":"\"MOE \"&AJ135","v":"MOE DifferentHouse:"},"DiffHouseInNH",{"$f":"\"MOE \"&AL135","v":"MOE DiffHouseInNH"},"DiffHouseInNHSameCnty",{"$f":"\"MOE \"&AN135","v":"MOE DiffHouseInNHSameCnty"},"DiffHouseInNHDiffCnty",{"$f":"\"MOE \"&AP135","v":"MOE DiffHouseInNHDiffCnty"},"DiffHouseInDiffState",{"$f":"\"MOE \"&AR135","v":"MOE DiffHouseInDiffState"},"DiffHouseInElsewhere",{"$f":"\"MOE \"&AT135","v":"MOE DiffHouseInElsewhere"}]
[{"$f":"VLOOKUP(DropDownList!$B$47,CntyQryCensus!$A$510:$DA$552,A$1)","v":"Allenstown"},4315,21,4036,103,2557,252,1457,252,1193,262,48,48,148,99,68,56,22,23,0,11,0,11,22,23,279,99,215,92,64,51,4261,41,3619,211,642,211.87496312684044,535,197.42593547961221,251,121,284,156,96,75,11,17,35,43]
[]
["School Enrollment - Education"]
["NAME","Total Pop 3 Years and Older","MOE Total Pop 3 Years and Older","SchEnrlPop3yrOver",{"$f":"\"MOE \"&D139","v":"MOE SchEnrlPop3yrOver"},"TotalEnrollNursy&Kinder",{"$f":"\"MOE \"&F139","v":"MOE TotalEnrollNursy&Kinder"},"NurserSchEnrl",{"$f":"\"MOE \"&H139","v":"MOE NurserSchEnrl"},"KinderSchEnrl",{"$f":"\"MOE \"&J139","v":"MOE KinderSchEnrl"},"ElemSchEnrl (1-8)",{"$f":"\"MOE \"&L139","v":"MOE ElemSchEnrl (1-8)"},"HighSchEnrl(9-12)",{"$f":"\"MOE \"&N139","v":"MOE HighSchEnrl(9-12)"},"TotalElementry&HSEnroll",{"$f":"\"MOE \"&P139","v":"MOE TotalElementry&HSEnroll"},"CollGradSchEnrl",{"$f":"\"MOE \"&R139","v":"MOE CollGradSchEnrl"},"PopNotEnrolled","MOE PopNotEnrolled","Pop25yrsOver",{"$f":"\"MOE \"&V139","v":"MOE Pop25yrsOver"},"EduAtain<9grd",{"$f":"\"MOE \"&X139","v":"MOE EduAtain<9grd"},"EduAtainHSnoDip",{"$f":"\"MOE \"&Z139","v":"MOE EduAtainHSnoDip"},"EduAtainHSgrad",{"$f":"\"MOE \"&AB139","v":"MOE EduAtainHSgrad"},"EduAtainCollNoDeg",{"$f":"\"MOE \"&AD139","v":"MOE EduAtainCollNoDeg"},"EduAtainAssocDeg",{"$f":"\"MOE \"&AF139","v":"MOE EduAtainAssocDeg"},"EduAtainBachDeg",{"$f":"\"MOE \"&AH139","v":"MOE EduAtainBachDeg"},"EduAtainGradProfDeg",{"$f":"\"MOE \"&AJ139","v":"MOE EduAtainGradProfDeg"}]
[{"$f":"VLOOKUP(DropDownList!$B$47,CntyQryCensus!$A$510:$DA$552,A$1)","v":"Allenstown"},4209,54,917,188,84,62.177166226839255,51,55,33,29,384,112.0044641967453,152,57,536,125.67418191498204,297,140.24621207005913,3292,181,3097,166,43,54.827000647491197,256,89.827612681179502,1405,166.71232707871366,612,150.12328267127654,332,108.30050784737807,323,84.958813551037778,114,56.356011214421486]
[]
["Occupied Owner Housing Value"]
["NAME","Estimate; Total:","Margin of Error; Total:","Estimate; Total: - Less than $10,000","Margin of Error; Total: - Less than $10,000","Estimate; Total: - $10,000 to $14,999","Margin of Error; Total: - $10,000 to $14,999","Estimate; Total: - $15,000 to $19,999","Margin of Error; Total: - $15,000 to $19,999","Estimate; Total: - $20,000 to $24,999","Margin of Error; Total: - $20,000 to $24,999","Estimate; Total: - $25,000 to $29,999","Margin of Error; Total: - $25,000 to $29,999","Estimate; Total: - $30,000 to $34,999","Margin of Error; Total: - $30,000 to $34,999","Estimate; Total: - $35,000 to $39,999","Margin of Error; Total: - $35,000 to $39,999","Estimate; Total: - $40,000 to $49,999","Margin of Error; Total: - $40,000 to $49,999","Estimate; Total: - $50,000 to $59,999","Margin of Error; Total: - $50,000 to $59,999","Estimate; Total: - $60,000 to $69,999","Margin of Error; Total: - $60,000 to $69,999","Estimate; Total: - $70,000 to $79,999","Margin of Error; Total: - $70,000 to $79,999","Estimate; Total: - $80,000 to $89,999","Margin of Error; Total: - $80,000 to $89,999","Estimate; Total: - $90,000 to $99,999","Margin of Error; Total: - $90,000 to $99,999","Estimate; Total: - $100,000 to $124,999","Margin of Error; Total: - $100,000 to $124,999","Estimate; Total: - $125,000 to $149,999","Margin of Error; Total: - $125,000 to $149,999","Estimate; Total: - $150,000 to $174,999","Margin of Error; Total: - $150,000 to $174,999","Estimate; Total: - $175,000 to $199,999","Margin of Error; Total: - $175,000 to $199,999","Estimate; Total: - $200,000 to $249,999","Margin of Error; Total: - $200,000 to $249,999","Estimate; Total: - $250,000 to $299,999","Margin of Error; Total: - $250,000 to $299,999","Estimate; Total: - $300,000 to $399,999","Margin of Error; Total: - $300,000 to $399,999","Estimate; Total: - $400,000 to $499,999","Margin of Error; Total: - $400,000 to $499,999","Estimate; Total: - $500,000 to $749,999","Margin of Error; Total: - $500,000 to $749,999","Estimate; Total: - $750,000 to $999,999","Margin of Error; Total: - $750,000 to $999,999","Estimate; Total: - $1,000,000 to $1,499,999","Margin of Error; Total: - $1,000,000 to $1,499,999","Estimate; Total: - $1,500,000 to $1,999,999","Margin of Error; Total: - $1,500,000 to $1,999,999","Estimate; Total: - $2,000,000 or more","Margin of Error; Total: - $2,000,000 or more","MedianOwnOCCHomeValue","MOE MedianOwnOCCHomeValue","OnwerOccHsU","MOE OnwerOccHsU","OwnerCosts>20PctHHInc","MOE OwnerCosts>20PctHHInc","OwnerCosts20to29.9PctHHInc","MOE OwnerCosts20to29.9PctHHInc","OwnerCosts<30PctHHInc","MOE OwnerCosts<30PctHHInc","OwnerCosts>30PctHHInc","MOE OwnerCosts>30PctHHInc","OwnerCosts30to34.9PctHHInc","MOE OwnerCosts30to34.9PctHHInc","OwnerCosts<35PctHHInc","MOE OwnerCosts<35PctHHInc","OwnerCosts>35PctHHInc","MOE OwnerCosts>35PctHHInc","OwnerCosts>50PctHHInc","MOE OwnerCosts>50PctHHInc","OwnerCostsPctNotcomputed","MOE OwnerCostsPctNotcomputed","OwnerOHUHhInc<20k","MOE OwnerOHUHhInc<20k","OwnerOHUHhInc<20kHCosts<20pct","MOE OwnerOHUHhInc<20kHCosts<20pct","OwnerOHUHhInc<20kHCosts20to29pct","MOE OwnerOHUHhInc<20kHCosts20to29pct","OwnerOHUHhInc>20kHCosts30pct","MOE OwnerOHUHhInc>20kHCosts30pct","OwnerOHUHhInc20kTo34999","MOE OwnerOHUHhInc20kTo34999","OwnerOHUHhInc20kTo34999HCosts<20pct","MOE OwnerOHUHhInc20kTo34999HCosts<20pct","OwnerOHUHhInc20kTo34999HCosts20to29pct","MOE OwnerOHUHhInc20kTo34999HCosts20to29pct","OwnerOHUHhInc20kTo34999HCosts30pct","MOE OwnerOHUHhInc20kTo34999HCosts30pct","OwnerOHUHhInc35kTo49999","MOE OwnerOHUHhInc35kTo49999","OwnerOHUHhInc35kTo49999HCosts<20pct","MOE OwnerOHUHhInc35kTo49999HCosts<20pct","OwnerOHUHhInc35kTo49999HCosts20to29pct","MOE OwnerOHUHhInc35kTo49999HCosts20to29pct","OwnerOHUHhInc35kTo49999HCosts30pct","MOE OwnerOHUHhInc35kTo49999HCosts30pct","OwnerOHUHhInc50kTo74999","MOE OwnerOHUHhInc50kTo74999","OwnerOHUHhInc50kTo74999HCosts<20pct","MOE OwnerOHUHhInc50kTo74999HCosts<20pct","OwnerOHUHhInc50kTo74999HCosts20to29pct","MOE OwnerOHUHhInc50kTo74999HCosts20to29pct","OwnerOHUHhInc50kTo74999HCosts30pct","MOE OwnerOHUHhInc50kTo74999HCosts30pct","OwnerOHUHhInc>75000","MOE OwnerOHUHhInc>75000","OwnerOHUHhInc>75000HCosts<20pct","MOE OwnerOHUHhInc>75000HCosts<20pct","OwnerOHUHhInc>75000HCosts20to29pct","MOE OwnerOHUHhInc>75000HCosts20to29pct","OwnerOHUHhInc>75000HCosts30pct","MOE OwnerOHUHhInc>75000HCosts30pct","ZeroOrNegativeIncome","MOE ZeroOrNegativeIncome"]
[{"$f":"VLOOKUP(DropDownList!$B$47,CntyQryCensus!$A$510:$DA$552,A$1)","v":"Allenstown"},1223,125,49,30,33,39,61,50,31,25,39,31,28,22,32,41,50,36,55,46,36,30,44,28,24,25,25,25,23,22,57,32,131,58,110,40,257,99,93,61,37,27,0,11,0,11,0,11,0,11,0,11,8,13,154700,20346,1223,125,494,121.309521472966,268,72.560319734686942,762,141.35416513141735,440,117.53722814495839,110,62.128898268036266,872,154.40531078949326,330,99.774746303861875,220,83.096329642168911,21,22.472205054244231,87,54,0,11,0,11,87,54,203,87,69,60,42,33,92,63,190,63,48,29,44,25,98,50,273,72,103,53,79,40,91,45,449,111,274,89,103,44,72,55,21,22]
[]
["Occupied Rental Housing Value"]
["NAME","RntrOccHU","MOE RntrOccHU","RntrOccHUwRent","MOE RntrOccHUwRent","ROHUGRent<100","MOE ROHUGRent<100","ROHUGRent100to149","MOE ROHUGRent100to149","ROHUGRent150to199","MOE ROHUGRent150to199","ROHUGRent200to249","MOE ROHUGRent200to249","ROHUGRent250to299","MOE ROHUGRent250to299","ROHUGRent300to349","MOE ROHUGRent300to349","ROHUGRent350to399","MOE ROHUGRent350to399","ROHUGRent400to449","MOE ROHUGRent400to449","ROHUGRent450to499","MOE ROHUGRent450to499","ROHUGRent500to549","MOE ROHUGRent500to549","ROHUGRent550to599","MOE ROHUGRent550to599","ROHUGRent600to649","MOE ROHUGRent600to649","ROHUGRent650to699","MOE ROHUGRent650to699","ROHUGRent700to749","MOE ROHUGRent700to749","ROHUGRent750to799","MOE ROHUGRent750to799","ROHUGRent800to899","MOE ROHUGRent800to899","ROHUGRent900to999","MOE ROHUGRent900to999","ROHUGRent1000to1249","MOE ROHUGRent1000to1249","ROHUGRent1250to1499","MOE ROHUGRent1250to1499","ROHUGRent1500to1999","MOE ROHUGRent1500to1999","ROHUGRent$2,000 to $2,499","MOE ROHUGRent$2,000 to $2,499","ROHUGRent$2,500 to $2,999","MOE ROHUGRent$2,500 to $2,999","ROHUGRent$3,000 to $3,499","MOE ROHUGRent$3,000 to $3,499","ROHUGRent$3,500 or more","MOE ROHUGRent$3,500 or more","ROHUNoGRent","MOE ROHUNoGRent","MedianGrossRnt","MOE MedianGrossRnt","H73RenterOccHU","MOE H73RenterOccHU","H73ROHUHhInc<10k","MOE H73ROHUHhInc<10k","H73ROHUHhInc<10kRnt<20pct","MOE H73ROHUHhInc<10kRnt<20pct","H73ROHUHhInc<10kRnt20to25pct","MOE H73ROHUHhInc<10kRnt20to25pct","H73ROHUHhInc<10kRnt25to30pct","MOE H73ROHUHhInc<10kRnt25to30pct","H73ROHUHhInc<10kRnt30to35pct","MOE H73ROHUHhInc<10kRnt30to35pct","H73ROHUHhInc<10kRnt35to39.9","MOE H73ROHUHhInc<10kRnt35to39.9","H73ROHUHhInc<10kRnt40to49.9","MOE H73ROHUHhInc<10kRnt40to49.9","H73ROHUHhInc<10kRnt>50pct","MOE H73ROHUHhInc<10kRnt>50pct","H73ROHUHhInc<10kPctNotComput","MOE H73ROHUHhInc<10kPctNotComput","H73ROHUHhInc10to20k","MOE H73ROHUHhInc10to20k","H73ROHUHhInc10to20kRnt<20pct","MOE H73ROHUHhInc10to20kRnt<20pct","H73ROHUHhInc10to20kRnt20to25pct","MOE H73ROHUHhInc10to20kRnt20to25pct","H73ROHUHhInc10to20kRnt25to30pct","MOE H73ROHUHhInc10to20kRnt25to30pct","H73ROHUHhInc10to20kRnt30to35pct","MOE H73ROHUHhInc10to20kRnt30to35pct","H73ROHUHhInc10to20kRnt35to39.9","MOE H73ROHUHhInc10to20kRnt35to39.9","H73ROHUHhInc10to20kRnt40to49.9","MOE H73ROHUHhInc10to20kRnt40to49.9","H73ROHUHhInc10to20kRnt>50pct","MOE H73ROHUHhInc10to20kRnt>50pct","H73ROHUHhInc10to20kRntPctNC","MOE H73ROHUHhInc10to20kRntPctNC","H73ROHUHhInc20to34.9k","MOE H73ROHUHhInc20to34.9k","H73ROHUHhInc20to34.9kRnt<20pct","MOE H73ROHUHhInc20to34.9kRnt<20pct","H73ROHUHhInc20to34.9kRnt20to25pct","MOE H73ROHUHhInc20to34.9kRnt20to25pct","H73ROHUHhInc20to34.9kRnt25to30pct","MOE H73ROHUHhInc20to34.9kRnt25to30pct","H73ROHUHhInc20to34.9kRnt30to35pct","MOE H73ROHUHhInc20to34.9kRnt30to35pct","H73ROHUHhInc20to34.9kRnt35to39.9","MOE H73ROHUHhInc20to34.9kRnt35to39.9","H73ROHUHhInc20to34.9kRnt40to49.9","MOE H73ROHUHhInc20to34.9kRnt40to49.9","H73ROHUHhInc20to34.9kRnt>50pct","MOE H73ROHUHhInc20to34.9kRnt>50pct","H73ROHUHhInc20to34.9kRntPctNC","MOE H73ROHUHhInc20to34.9kRntPctNC","H73ROHUHhInc35to49.9k","MOE H73ROHUHhInc35to49.9k","H73ROHUHhInc35to49.9kRnt<20pct","MOE H73ROHUHhInc35to49.9kRnt<20pct","H73ROHUHhInc35to49.9kRnt20to25pct","MOE H73ROHUHhInc35to49.9kRnt20to25pct","H73ROHUHhInc35to49.9kRnt25to30pct","MOE H73ROHUHhInc35to49.9kRnt25to30pct","H73ROHUHhInc35to49.9kRnt30to35pct","MOE H73ROHUHhInc35to49.9kRnt30to35pct","H73ROHUHhInc35to49.9kRnt35to39.9","MOE H73ROHUHhInc35to49.9kRnt35to39.9","H73ROHUHhInc35to49.9kRnt40to49.9","MOE H73ROHUHhInc35to49.9kRnt40to49.9","H73ROHUHhInc35to49.9kRnt>50pct","MOE H73ROHUHhInc35to49.9kRnt>50pct","H73ROHUHhInc35to49.9kRntPctNC","MOE H73ROHUHhInc35to49.9kRntPctNC","H73ROHUHhInc50to74.9k","MOE H73ROHUHhInc50to74.9k","H73ROHUHhInc50to74.9kRnt<20pct","MOE H73ROHUHhInc50to74.9kRnt<20pct","H73ROHUHhInc50to74.9kRnt20to25pct","MOE H73ROHUHhInc50to74.9kRnt20to25pct","H73ROHUHhInc50to74.9kRnt25to30pct","MOE H73ROHUHhInc50to74.9kRnt25to30pct","H73ROHUHhInc50to74.9kRnt30to35pct","MOE H73ROHUHhInc50to74.9kRnt30to35pct","H73ROHUHhInc50to74.9kRnt35to39.9","MOE H73ROHUHhInc50to74.9kRnt35to39.9","H73ROHUHhInc50to74.9kRnt40to49.9","MOE H73ROHUHhInc50to74.9kRnt40to49.9","H73ROHUHhInc50to74.9kRnt>50pct","MOE H73ROHUHhInc50to74.9kRnt>50pct","H73ROHUHhInc50to74.9kRntPctNC","MOE H73ROHUHhInc50to74.9kRntPctNC","H73ROHUHhInc75to99.9k","MOE H73ROHUHhInc75to99.9k","H73ROHUHhInc75to99.9kRnt<20pct","MOE H73ROHUHhInc75to99.9kRnt<20pct","H73ROHUHhInc75to99.9kRnt20to25pct","MOE H73ROHUHhInc75to99.9kRnt20to25pct","H73ROHUHhInc75to99.9kRnt25to30pct","MOE H73ROHUHhInc75to99.9kRnt25to30pct","H73ROHUHhInc75to99.9kRnt30to35pct","MOE H73ROHUHhInc75to99.9kRnt30to35pct","H73ROHUHhInc75to99.9kRnt35to39.9","MOE H73ROHUHhInc75to99.9kRnt35to39.9","H73ROHUHhInc75to99.9kRnt40to49.9","MOE H73ROHUHhInc75to99.9kRnt40to49.9","H73ROHUHhInc75to99.9kRnt>50pct","MOE H73ROHUHhInc75to99.9kRnt>50pct","H73ROHUHhInc75to99.9kRntPctNC","MOE H73ROHUHhInc75to99.9kRntPctNC","H73ROHUHhInc>100k","MOE H73ROHUHhInc>100k","H73ROHUHhInc>100kRnt<20pct","MOE H73ROHUHhInc>100kRnt<20pct","H73ROHUHhInc>100kRnt20to25pct","MOE H73ROHUHhInc>100kRnt20to25pct","H73ROHUHhInc>100kRnt25to30pct","MOE H73ROHUHhInc>100kRnt25to30pct","H73ROHUHhInc>100kRnt30to35pct","MOE H73ROHUHhInc>100kRnt30to35pct","H73ROHUHhInc>100kRnt35to39.9","MOE H73ROHUHhInc>100kRnt35to39.9","H73ROHUHhInc>100kRnt40to49.9","MOE H73ROHUHhInc>100kRnt40to49.9","H73ROHUHhInc>100kRnt>50pct","MOE H73ROHUHhInc>100kRnt>50pct","H73ROHUHhInc>100kRntPctNC","MOE H73ROHUHhInc>100kRntPctNC"]
[{"$f":"VLOOKUP(DropDownList!$B$47,CntyQryCensus!$A$510:$DA$552,A$1)","v":"Allenstown"},506,105,496,108,0,11,0,11,29,45,0,11,22,20,11,17,31,50,8,13,0,11,11,17,0,11,23,28,9,16,32,51,55,51,25,23,53,38,71,58,71,58,45,36,0,11,0,11,0,11,0,11,10,17,868,195,467,107,16,20,0,11,0,11,0,11,0,11,0,11,0,11,16,20,0,11,148,84,28,43,10,16,17,20,0,11,0,11,0,11,93,76,0,11,98,56,27,42,11,18,9,13,17,20,9,14,25,20,0,11,0,11,8,13,0,11,0,11,0,11,0,11,0,11,0,11,0,11,8,13,93,54,55,41,8,14,0,11,30,36,0,11,0,11,0,11,0,11,44,32,7,13,13,17,14,15,0,11,0,11,0,11,0,11,10,15,60,49,60,49,0,11,0,11,0,11,0,11,0,11,0,11,0,11]
[]
[]
[]
[]
[]
["Occupied Rental Housing Cost Burdern All Incomes"]
["NAME","RntrOccHU","MOE RntrOccHU","RntrOccHUwRent","MOE RntrOccHUwRent","ROHUGRent<100","MOE ROHUGRent<100","ROHUGRent100to149","MOE ROHUGRent100to149","ROHUGRent150to199","MOE ROHUGRent150to199","ROHUGRent200to249","MOE ROHUGRent200to249","ROHUGRent250to299","MOE ROHUGRent250to299","ROHUGRent300to349","MOE ROHUGRent300to349","ROHUGRent350to399","MOE ROHUGRent350to399","ROHUGRent400to449","MOE ROHUGRent400to449","ROHUGRent450to499","MOE ROHUGRent450to499","ROHUGRent500to549","MOE ROHUGRent500to549","ROHUGRent550to599","MOE ROHUGRent550to599","ROHUGRent600to649","MOE ROHUGRent600to649","ROHUGRent650to699","MOE ROHUGRent650to699","ROHUGRent700to749","MOE ROHUGRent700to749","ROHUGRent750to799","MOE ROHUGRent750to799","ROHUGRent800to899","MOE ROHUGRent800to899","ROHUGRent900to999","MOE ROHUGRent900to999","ROHUGRent1000to1249","MOE ROHUGRent1000to1249","ROHUGRent1250to1499","MOE ROHUGRent1250to1499","ROHUGRent1500to1999","MOE ROHUGRent1500to1999","ROHUGRent2000>","MOE ROHUGRent2000>","ROHUNoGRent","MOE ROHUNoGRent","MedianGrossRnt","MOE MedianGrossRnt","H73RenterOccHU","MOE H73RenterOccHU","H73ROHUHhInc<10k","MOE H73ROHUHhInc<10k","H73ROHUHhInc<10kRnt<20pct","MOE H73ROHUHhInc<10kRnt<20pct","H73ROHUHhInc<10kRnt20to25pct","MOE H73ROHUHhInc<10kRnt20to25pct","H73ROHUHhInc<10kRnt25to30pct","MOE H73ROHUHhInc<10kRnt25to30pct","H73ROHUHhInc<10kRnt30to35pct","MOE H73ROHUHhInc<10kRnt30to35pct","H73ROHUHhInc<10kRnt35to39.9","MOE H73ROHUHhInc<10kRnt35to39.9","H73ROHUHhInc<10kRnt40to49.9","MOE H73ROHUHhInc<10kRnt40to49.9","H73ROHUHhInc<10kRnt>50pct","MOE H73ROHUHhInc<10kRnt>50pct","H73ROHUHhInc<10kPctNotComput","MOE H73ROHUHhInc<10kPctNotComput","H73ROHUHhInc10to20k","MOE H73ROHUHhInc10to20k","H73ROHUHhInc10to20kRnt<20pct","MOE H73ROHUHhInc10to20kRnt<20pct","H73ROHUHhInc10to20kRnt20to25pct","MOE H73ROHUHhInc10to20kRnt20to25pct","H73ROHUHhInc10to20kRnt25to30pct","MOE H73ROHUHhInc10to20kRnt25to30pct","H73ROHUHhInc10to20kRnt30to35pct","MOE H73ROHUHhInc10to20kRnt30to35pct","H73ROHUHhInc10to20kRnt35to39.9","MOE H73ROHUHhInc10to20kRnt35to39.9","H73ROHUHhInc10to20kRnt40to49.9","MOE H73ROHUHhInc10to20kRnt40to49.9","H73ROHUHhInc10to20kRnt>50pct","MOE H73ROHUHhInc10to20kRnt>50pct","H73ROHUHhInc10to20kRntPctNC","MOE H73ROHUHhInc10to20kRntPctNC","H73ROHUHhInc20to34.9k","MOE H73ROHUHhInc20to34.9k","H73ROHUHhInc20to34.9kRnt<20pct","MOE H73ROHUHhInc20to34.9kRnt<20pct","H73ROHUHhInc20to34.9kRnt20to25pct","MOE H73ROHUHhInc20to34.9kRnt20to25pct","H73ROHUHhInc20to34.9kRnt25to30pct","MOE H73ROHUHhInc20to34.9kRnt25to30pct","H73ROHUHhInc20to34.9kRnt30to35pct","MOE H73ROHUHhInc20to34.9kRnt30to35pct","H73ROHUHhInc20to34.9kRnt35to39.9","MOE H73ROHUHhInc20to34.9kRnt35to39.9","H73ROHUHhInc20to34.9kRnt40to49.9","MOE H73ROHUHhInc20to34.9kRnt40to49.9","H73ROHUHhInc20to34.9kRnt>50pct","MOE H73ROHUHhInc20to34.9kRnt>50pct","H73ROHUHhInc20to34.9kRntPctNC","MOE H73ROHUHhInc20to34.9kRntPctNC","H73ROHUHhInc35to49.9k","MOE H73ROHUHhInc35to49.9k","H73ROHUHhInc35to49.9kRnt<20pct","MOE H73ROHUHhInc35to49.9kRnt<20pct","H73ROHUHhInc35to49.9kRnt20to25pct","MOE H73ROHUHhInc35to49.9kRnt20to25pct","H73ROHUHhInc35to49.9kRnt25to30pct","MOE H73ROHUHhInc35to49.9kRnt25to30pct","H73ROHUHhInc35to49.9kRnt30to35pct","MOE H73ROHUHhInc35to49.9kRnt30to35pct","H73ROHUHhInc35to49.9kRnt35to39.9","MOE H73ROHUHhInc35to49.9kRnt35to39.9","H73ROHUHhInc35to49.9kRnt40to49.9","MOE H73ROHUHhInc35to49.9kRnt40to49.9","H73ROHUHhInc35to49.9kRnt>50pct","MOE H73ROHUHhInc35to49.9kRnt>50pct","H73ROHUHhInc35to49.9kRntPctNC","MOE H73ROHUHhInc35to49.9kRntPctNC","H73ROHUHhInc50to74.9k","MOE H73ROHUHhInc50to74.9k","H73ROHUHhInc50to74.9kRnt<20pct","MOE H73ROHUHhInc50to74.9kRnt<20pct","H73ROHUHhInc50to74.9kRnt20to25pct","MOE H73ROHUHhInc50to74.9kRnt20to25pct","H73ROHUHhInc50to74.9kRnt25to30pct","MOE H73ROHUHhInc50to74.9kRnt25to30pct","H73ROHUHhInc50to74.9kRnt30to35pct","MOE H73ROHUHhInc50to74.9kRnt30to35pct","H73ROHUHhInc50to74.9kRnt35to39.9","MOE H73ROHUHhInc50to74.9kRnt35to39.9","H73ROHUHhInc50to74.9kRnt40to49.9","MOE H73ROHUHhInc50to74.9kRnt40to49.9","H73ROHUHhInc50to74.9kRnt>50pct","MOE H73ROHUHhInc50to74.9kRnt>50pct","H73ROHUHhInc50to74.9kRntPctNC","MOE H73ROHUHhInc50to74.9kRntPctNC","H73ROHUHhInc75to99.9k","MOE H73ROHUHhInc75to99.9k","H73ROHUHhInc75to99.9kRnt<20pct","MOE H73ROHUHhInc75to99.9kRnt<20pct","H73ROHUHhInc75to99.9kRnt20to25pct","MOE H73ROHUHhInc75to99.9kRnt20to25pct","H73ROHUHhInc75to99.9kRnt25to30pct","MOE H73ROHUHhInc75to99.9kRnt25to30pct","H73ROHUHhInc75to99.9kRnt30to35pct","MOE H73ROHUHhInc75to99.9kRnt30to35pct","H73ROHUHhInc75to99.9kRnt35to39.9","MOE H73ROHUHhInc75to99.9kRnt35to39.9","H73ROHUHhInc75to99.9kRnt40to49.9","MOE H73ROHUHhInc75to99.9kRnt40to49.9","H73ROHUHhInc75to99.9kRnt>50pct","MOE H73ROHUHhInc75to99.9kRnt>50pct","H73ROHUHhInc75to99.9kRntPctNC","MOE H73ROHUHhInc75to99.9kRntPctNC","H73ROHUHhInc>100k","MOE H73ROHUHhInc>100k","H73ROHUHhInc>100kRnt<20pct","MOE H73ROHUHhInc>100kRnt<20pct","H73ROHUHhInc>100kRnt20to25pct","MOE H73ROHUHhInc>100kRnt20to25pct","H73ROHUHhInc>100kRnt25to30pct","MOE H73ROHUHhInc>100kRnt25to30pct","H73ROHUHhInc>100kRnt30to35pct","MOE H73ROHUHhInc>100kRnt30to35pct","H73ROHUHhInc>100kRnt35to39.9","MOE H73ROHUHhInc>100kRnt35to39.9","H73ROHUHhInc>100kRnt40to49.9","MOE H73ROHUHhInc>100kRnt40to49.9","H73ROHUHhInc>100kRnt>50pct","MOE H73ROHUHhInc>100kRnt>50pct","H73ROHUHhInc>100kRntPctNC","MOE H73ROHUHhInc>100kRntPctNC"]
[{"$f":"VLOOKUP(DropDownList!$B$47,CntyQryCensus!$A$510:$DA$552,A$1)","v":"Allenstown"},467,107,10,15,22,35,145,87,42,32,40,28,47,41,9,14,25,20,109,77,18,20]
[]
["Income By Household Type and Tenure"]
["NAME","TotalFamilyHouseholds",{"$f":"\"MOE \"&B159","v":"MOE TotalFamilyHouseholds"},"FamInc<10K",{"$f":"\"MOE \"&D159","v":"MOE FamInc<10K"},"FamInc10to15K",{"$f":"\"MOE \"&F159","v":"MOE FamInc10to15K"},"FamInc15to20K",{"$f":"\"MOE \"&H159","v":"MOE FamInc15to20K"},"FamInc20to25K",{"$f":"\"MOE \"&J159","v":"MOE FamInc20to25K"},"FamInc25to30K",{"$f":"\"MOE \"&L159","v":"MOE FamInc25to30K"},"FamInc30to35K",{"$f":"\"MOE \"&N159","v":"MOE FamInc30to35K"},"FamInc35to40K",{"$f":"\"MOE \"&P159","v":"MOE FamInc35to40K"},"FamInc40to45K",{"$f":"\"MOE \"&R159","v":"MOE FamInc40to45K"},"FamInc45to50K",{"$f":"\"MOE \"&T159","v":"MOE FamInc45to50K"},"FamInc50to60K",{"$f":"\"MOE \"&V159","v":"MOE FamInc50to60K"},"FamInc60to75K",{"$f":"\"MOE \"&X159","v":"MOE FamInc60to75K"},"FamInc75to100K",{"$f":"\"MOE \"&Z159","v":"MOE FamInc75to100K"},"FamInc100to125K",{"$f":"\"MOE \"&AB159","v":"MOE FamInc100to125K"},"FamInc125to150K",{"$f":"\"MOE \"&AD159","v":"MOE FamInc125to150K"},"FamInc150to200K",{"$f":"\"MOE \"&AF159","v":"MOE FamInc150to200K"},"FamInc>200K",{"$f":"\"MOE \"&AH159","v":"MOE FamInc>200K"},"MedFamInc",{"$f":"\"MOE \"&AJ159","v":"MOE MedFamInc"},"TotalNonNonFamilyHouseholds",{"$f":"\"MOE \"&AL159","v":"MOE TotalNonNonFamilyHouseholds"},"NonFamInc<10K",{"$f":"\"MOE \"&AN159","v":"MOE NonFamInc<10K"},"NonFamInc10to15K",{"$f":"\"MOE \"&AP159","v":"MOE NonFamInc10to15K"},"NonFamInc15to20K",{"$f":"\"MOE \"&AR159","v":"MOE NonFamInc15to20K"},"NonFamInc20to25K",{"$f":"\"MOE \"&AT159","v":"MOE NonFamInc20to25K"},"NonFamInc25to30K",{"$f":"\"MOE \"&AV159","v":"MOE NonFamInc25to30K"},"NonFamInc30to35K",{"$f":"\"MOE \"&AX159","v":"MOE NonFamInc30to35K"},"NonFamInc35to40K",{"$f":"\"MOE \"&AZ159","v":"MOE NonFamInc35to40K"},"NonFamInc40to45K",{"$f":"\"MOE \"&BB159","v":"MOE NonFamInc40to45K"},"NonFamInc45to50K",{"$f":"\"MOE \"&BD159","v":"MOE NonFamInc45to50K"},"NonFamInc50to60K",{"$f":"\"MOE \"&BF159","v":"MOE NonFamInc50to60K"},"NonFamInc60to75K",{"$f":"\"MOE \"&BH159","v":"MOE NonFamInc60to75K"},"NonFamInc75to100K",{"$f":"\"MOE \"&BJ159","v":"MOE NonFamInc75to100K"},"NonFamInc100to125K",{"$f":"\"MOE \"&BL159","v":"MOE NonFamInc100to125K"},"NonFamInc125to150K",{"$f":"\"MOE \"&BN159","v":"MOE NonFamInc125to150K"},"NonFamInc150to200K",{"$f":"\"MOE \"&BP159","v":"MOE NonFamInc150to200K"},"NonFamInc>200K",{"$f":"\"MOE \"&BR159","v":"MOE NonFamInc>200K"},"MedNonFamInc",{"$f":"\"MOE \"&BT159","v":"MOE MedNonFamInc"}]
[{"$f":"VLOOKUP(DropDownList!$B$47,CntyQryCensus!$A$510:$DA$552,A$1)","v":"Allenstown"},1096,102,24,22,85,60,0,11,66,48,9,14,61,49,69,45,28,25,41,29,110,50,142,56,208,70,126,49,36,24,91,54,0,11,66290,9650,594,136,46,32,117,71,8,13,59,49,52,48,46,30,21,21,27,22,26,24,75,50,49,36,9,14,42,47,17,19,0,11,0,11,null,null,31389,7265]
[]
[]
[]
["2010 Census"]
[]
["TownName"]
[{"$f":"VLOOKUP(DropDownList!$B$47,CntyQryCensus!$A$542:$DA$568,A$1)","v":"Allenstown"}]

{"sheet":"CntyDataLinkPrior10YearEstimate","index":16,"n_rows":167,"n_cols":185,"rows_kept":167,"cut":false,"hidden":true,"merged":[]}
[1,{"$f":"A1+1","v":2},3,4,5,6,7,8,9,10,11,12,13,14,15,16,17,18,19,20,21,22,23,24,25,26,27,28,29,30,31,32,33,34,35,36,37,38,39,40,41,42,43,44,45,46,47,48,49,50,51,52,53,54,55,56,57,58,59,60,61,62,63,64,65,{"$f":"BM1+1","v":66},67,68,69,70,71,72,73,74,75,76,77,78,79,80,81,82,83,84,85,86,87,88,89,90,91,92,93,94,95,96,97,98,99,100,101,102,103,104,105,106,107,108,109,110,111,112,113,114,115,116,117,118,119,120,121,122,123,124,125,126,127,128,129,{"$f":"DY1+1","v":130},131,132,133,134,135,136,137,138,139,140,141,142,143,144,145,146,147,148,149,150,151,152,153,154,155,156,157,158,159,160,161,162,163,164,165,166,167,168,169,170,171,172,173,174,175,176,177,178,179,180,181,182,183]
[]
["Census 1990 Data -           Query Name:  DPCnty90Census"]
["TownName"]
[{"$f":"VLOOKUP(DropDownList!$A$47,CntyQuery!$A$4:$FI$46,A1)","v":"Allenstown"}]
[]
[]
["Census 1990 Data -    Query Name:  TownSTF1Qry1"]
["NAME"]
[{"$f":"VLOOKUP(DropDownList!$B$47,CntyQuery!$A$51:$CE$93,A$1)","v":"Allenstown"}]
[]
[]
["Census 1990 Data -          Query Name: TownSTF3Qry1"]
["NAME"]
[]
[]
[]
["Other Demo Data -             Query Name: QryAllTowns-ACSDemographicSheet"]
["TOWN_NAME"]
[{"$f":"VLOOKUP(DropDownList!$B$47,CntyQuery!$A$118:$DZ$144,A$1)","v":"Allenstown"}]
[]
[]
["NH Employment Data"]
["AreaName"]
[{"$f":"VLOOKUP(DropDownList!$B$47,CntyQuery!$A$170:$FJ$213,A$1)","v":"Allenstown"}]
[]
[]
[]
["PlaceName"]
[{"$f":"VLOOKUP(DropDownList!$B$47,CntyQryCensus!$A$4:$EF$46,A$1)","v":"Allenstown"}]
[]
[]
["Census 2000   -           Query Name:  TownAllQuery3"]
["NAME"]
[{"$f":"VLOOKUP(DropDownList!$B$47,CntyQryCensus!$A$4:$CW$46,A$1)","v":"Allenstown"}]
[]
[]
["Census 2000 DemoProfile Sample Data Tables 2&3   -  DPTab23TownQry"]
["NAME"]
[{"$f":"VLOOKUP(DropDownList!$B$47,CntyQryCensus!$A$53:$BY$96,A$1)","v":"Allenstown"}]
[]
[]
["Census 2000 DemoProfile Sample Data Table 4   -  DPTab4TownQry"]
["NAME"]
[{"$f":"VLOOKUP(DropDownList!$B$47,CntyQryCensus!$A$103:$CX$146,A$1)","v":"Allenstown"}]
[]
[]
["Census 2000 SummaryFile3 Sample Data  -  SF3TownQry1SocialChar"]
["NAME"]
[{"$f":"VLOOKUP(DropDownList!$B$47,CntyQryCensus!$A$156:$FR$198,A$1)","v":"Allenstown"}]
[]
[]
["Census 2000 SummaryFile3 Sample Data  -  SF3TownQry2aIncomeChar"]
["NAME"]
[{"$f":"VLOOKUP(DropDownList!$B$47,CntyQryCensus!$A$206:$HH$248,A$1)","v":"Allenstown"}]
[]
[]
["Census 2000 SummaryFile3 Sample Data  -  SF3TownQry2bPovertyChar"]
["NAME"]
[{"$f":"VLOOKUP(DropDownList!$B$47,CntyQryCensus!$A$256:$BI$298,A$1)","v":"Allenstown"}]
[]
[]
["Census 2000 SummaryFile3 Sample Data  -  SF3TownQry7HousingA"]
["NAME"]
[{"$f":"VLOOKUP(DropDownList!$B47,CntyQryCensus!$A$306:$GX$348,A$1)","v":"Allenstown"}]
[]
[]
["Census 2000 SummaryFile3 Sample Data  -  SF3TownQry8HousingCostA"]
["NAME"]
[{"$f":"VLOOKUP(DropDownList!$B$47,CntyQryCensus!$A$357:$CM$399,A$1)","v":"Allenstown"}]
[]
[]
["Census 2000 SummaryFile3 Sample Data  -  SF3TownQry8HousingCostB"]
["NAME"]
[{"$f":"VLOOKUP(DropDownList!$B$47,CntyQryCensus!$A$408:$FN$450,A$1)","v":"Allenstown"}]
[]
[]
["Census 2000 SummaryFile3 Sample Data  -  SF3TownQry9HHIncomeByTenure"]
["NAME"]
[{"$f":"VLOOKUP(DropDownList!$B$47,CntyQryCensus!$A$459:$AG$501,A$1)","v":"Allenstown"}]
[]
[]
[]
[]
[]
[{"$f":"VLOOKUP(DropDownList!$B$47,CntyQryCensus!$A$510:$DA$552,A$1)","v":"Allenstown"}]
[]
[]
[]
[]
[]
[]
[]
["Census 2000 SummaryFile3 Sample Data - SF3TownQry10Disabil"]
["NAME"]
[{"$f":"VLOOKUP(DropDownList!$B$47,CntyQryCensus!$A$510:$DA$552,A$1)","v":"Allenstown"}]
[]
[]
[]
[]
[{"$f":"VLOOKUP(DropDownList!$B$47,CntyQryCensus!$A$510:$DA$552,A$1)","v":"Allenstown"}]
[]
[]
[]
["ACS",2,{"$f":"B105+1","v":3},{"$f":"C105+1","v":4},5,6,7,8,9,10,11,{"$f":"K105+1","v":12},13,14,15,{"$f":"O105+1","v":16},17,18,19,20,21,22,23,24,25,26,27,28,29,30,31,32,33,34,35,36,37,38,39,40,41,42,43,44,45,46,47,48,49,50,51,52,53,54,55,56,57,58,59,60,61,62,63,64,65,66,67,{"$f":"BO105+1","v":68},69,70,71,72,73,74,75,76,77,78,79,80,81,82,83,84,85,86,87,88,89,90,91,92,93,94,95,96,97,98,99,100,101,102,103,104,105,106,107,108,109,110,111,112,113,114,115,116,117,118,119,120,121,122,123,124,125]
["Househould Data (Housing Unit Type)"]
["NAME","TotalHU",{"$f":"\"MOE \"&B107","v":"MOE TotalHU"},"TotalOccHU",{"$f":"\"MOE \"&D107","v":"MOE TotalOccHU"},"TotalOwnerOccUn",{"$f":"\"MOE \"&F107","v":"MOE TotalOwnerOccUn"},"TotalRenterOccn",{"$f":"\"MOE \"&H107","v":"MOE TotalRenterOccn"},"TotalVacantUntis",{"$f":"\"MOE \"&J107","v":"MOE TotalVacantUntis"},"VacantUnitsForRent",{"$f":"\"MOE \"&L107","v":"MOE VacantUnitsForRent"},"VacantUnitRentedNotOcc",{"$f":"\"MOE \"&N107","v":"MOE VacantUnitRentedNotOcc"},"VacantUnitForSale",{"$f":"\"MOE \"&P107","v":"MOE VacantUnitForSale"},"VacantUnitSoldNotOcc",{"$f":"\"MOE \"&R107","v":"MOE VacantUnitSoldNotOcc"},"VacantUnitSeasonalRec",{"$f":"\"MOE \"&T107","v":"MOE VacantUnitSeasonalRec"},"TotalPopInHousingUnits",{"$f":"\"MOE \"&V107","v":"MOE TotalPopInHousingUnits"},"OwnerOccPopHousingUnits",{"$f":"\"MOE \"&X107","v":"MOE OwnerOccPopHousingUnits"},"RenterOccPopHousingUnits",{"$f":"\"MOE \"&Z107","v":"MOE RenterOccPopHousingUnits"},"TotalUntis",{"$f":"\"MOE \"&AB107","v":"MOE TotalUntis"},"TotalOwnerOccUnits",{"$f":"\"MOE \"&AD107","v":"MOE TotalOwnerOccUnits"},"SigFamOwnerOcc",{"$f":"\"MOE \"&AF107","v":"MOE SigFamOwnerOcc"},"MultiFamOwnerOcc",{"$f":"\"MOE \"&AH107","v":"MOE MultiFamOwnerOcc"},"MobileOwnerOcc",{"$f":"\"MOE \"&AJ107","v":"MOE MobileOwnerOcc"},"TotalRenterOccUnits",{"$f":"\"MOE \"&AL107","v":"MOE TotalRenterOccUnits"},"SigFamRenterOcc",{"$f":"\"MOE \"&AN107","v":"MOE SigFamRenterOcc"},"MultiFamRenterOcc",{"$f":"\"MOE \"&AP107","v":"MOE MultiFamRenterOcc"},"MobileRenterOcc",{"$f":"\"MOE \"&AR107","v":"MOE MobileRenterOcc"},"TotalSigFamilyUnits",{"$f":"\"MOE \"&AT107","v":"MOE TotalSigFamilyUnits"},"TotalMultiFamilyUnits",{"$f":"\"MOE \"&AV107","v":"MOE TotalMultiFamilyUnits"},"TotalMobileUnits",{"$f":"\"MOE \"&AX107","v":"MOE TotalMobileUnits"},"YrHouseBuilt2005Later",{"$f":"\"MOE \"&AZ107","v":"MOE YrHouseBuilt2005Later"},"YrHouseBuilt2000-2004",{"$f":"\"MOE \"&BB107","v":"MOE YrHouseBuilt2000-2004"},"YrHouseBuilt1990-1999",{"$f":"\"MOE \"&BD107","v":"MOE YrHouseBuilt1990-1999"},"YrHouseBuilt1980-1989",{"$f":"\"MOE \"&BF107","v":"MOE YrHouseBuilt1980-1989"},"YrHouseBuilt1970-1979",{"$f":"\"MOE \"&BH107","v":"MOE YrHouseBuilt1970-1979"},"YrHouseBuilt1960-1969",{"$f":"\"MOE \"&BJ107","v":"MOE YrHouseBuilt1960-1969"},"YrHouseBuilt1950-1959",{"$f":"\"MOE \"&BL107","v":"MOE YrHouseBuilt1950-1959"},"YrHouseBuilt1940-1949",{"$f":"\"MOE \"&BN107","v":"MOE YrHouseBuilt1940-1949"},"YrHouseBuilt1939orEarlier",{"$f":"\"MOE \"&BP107","v":"MOE YrHouseBuilt1939orEarlier"},"NoBedrooms",{"$f":"\"MOE \"&BR107","v":"MOE NoBedrooms"},"1Bedroom",{"$f":"\"MOE \"&BT107","v":"MOE 1Bedroom"},"2Bedroom",{"$f":"\"MOE \"&BV107","v":"MOE 2Bedroom"},"3Bedroom",{"$f":"\"MOE \"&BX107","v":"MOE 3Bedroom"},"4+Bedroom",{"$f":"\"MOE \"&BZ107","v":"MOE 4+Bedroom"}]
[{"$f":"VLOOKUP(DropDownList!$B$47,CntyQryCensus!$A$510:$DA$552,A$1)","v":"Allenstown"},1763,147,1693,132,1072,170,621,150,70,73,0,85,34,54,36,56,0,85,0,85,4393,46,2711,417,1682,418,1693,132,1072,170,615,142,167,163.2237727783548,290,123.79418403139947,621,150,104,76,447,186.21492958406961,70,104.62313319720452,755,157,648,192.98186443290467,360,134.31678971744373,114,99,64,41,111,63,512,125,341,128,143,70,119,78,11,19,348,110,147,87,268,105,506,139,659,141,183,92.477024173575131]
[]
["Disability Data"]
["NAME","TotalPop",{"$f":"\"MOE \"&B111","v":"MOE TotalPop"},"PopUnder 5 years:",{"$f":"\"MOE \"&D111","v":"MOE PopUnder 5 years:"},{"$f":"D$111&\"-WithDisability\"","v":"PopUnder 5 years:-WithDisability"},{"$f":"\"MOE \"&F111","v":"MOE PopUnder 5 years:-WithDisability"},{"$f":"D111&\"-NoDisability\"","v":"PopUnder 5 years:-NoDisability"},{"$f":"\"MOE \"&H111","v":"MOE PopUnder 5 years:-NoDisability"},"PopUnder 5 to 17years:",{"$f":"\"MOE \"&J111","v":"MOE PopUnder 5 to 17years:"},{"$f":"J$111&\"-WithDisability\"","v":"PopUnder 5 to 17years:-WithDisability"},{"$f":"\"MOE \"&L111","v":"MOE PopUnder 5 to 17years:-WithDisability"},{"$f":"J111&\"-NoDisability\"","v":"PopUnder 5 to 17years:-NoDisability"},{"$f":"\"MOE \"&N111","v":"MOE PopUnder 5 to 17years:-NoDisability"},"PopUnder 18 to 34 years:",{"$f":"\"MOE \"&P111","v":"MOE PopUnder 18 to 34 years:"},{"$f":"P$111&\"-WithDisability\"","v":"PopUnder 18 to 34 years:-WithDisability"},{"$f":"\"MOE \"&R111","v":"MOE PopUnder 18 to 34 years:-WithDisability"},{"$f":"P111&\"-NoDisability\"","v":"PopUnder 18 to 34 years:-NoDisability"},{"$f":"\"MOE \"&T111","v":"MOE PopUnder 18 to 34 years:-NoDisability"},"Pop 35 years to 64:",{"$f":"\"MOE \"&V111","v":"MOE Pop 35 years to 64:"},{"$f":"$V$111&\"-WithDisability\"","v":"Pop 35 years to 64:-WithDisability"},{"$f":"\"MOE \"&X111","v":"MOE Pop 35 years to 64:-WithDisability"},{"$f":"$V$111&\"-NoDisability\"","v":"Pop 35 years to 64:-NoDisability"},{"$f":"\"MOE \"&Z111","v":"MOE Pop 35 years to 64:-NoDisability"},"Pop 65 years to 74:",{"$f":"\"MOE \"&AB111","v":"MOE Pop 65 years to 74:"},{"$f":"$AB$111&\"-WithDisability\"","v":"Pop 65 years to 74:-WithDisability"},{"$f":"\"MOE \"&AD111","v":"MOE Pop 65 years to 74:-WithDisability"},{"$f":"$AB$111&\"-NoDisability\"","v":"Pop 65 years to 74:-NoDisability"},{"$f":"\"MOE \"&AF111","v":"MOE Pop 65 years to 74:-NoDisability"},"Pop 75 and older:",{"$f":"\"MOE \"&AH111","v":"MOE Pop 75 and older:"},{"$f":"$AH$111&\"-WithDisability\"","v":"Pop 75 and older:-WithDisability"},{"$f":"\"MOE \"&AJ111","v":"MOE Pop 75 and older:-WithDisability"},{"$f":"$AH$111&\"-NoDisability\"","v":"Pop 75 and older:-NoDisability"},{"$f":"\"MOE \"&AL111","v":"MOE Pop 75 and older:-NoDisability"},"TotalPopUnder5_HearingDisability",{"$f":"\"MOE \"&AN111","v":"MOE TotalPopUnder5_HearingDisability"},"TotalPopUnder5_HearingDisability",{"$f":"\"MOE \"&AP111","v":"MOE TotalPopUnder5_HearingDisability"},"TotalPop18To34_HearingDisability",{"$f":"\"MOE \"&AR111","v":"MOE TotalPop18To34_HearingDisability"},"TotalPop35To64_HearingDisability",{"$f":"\"MOE \"&AT111","v":"MOE TotalPop35To64_HearingDisability"},"TotalPop65To74_HearingDisability",{"$f":"\"MOE \"&AV111","v":"MOE TotalPop65To74_HearingDisability"},"TotalPop75andOlder_HearingDisability",{"$f":"\"MOE \"&AX111","v":"MOE TotalPop75andOlder_HearingDisability"},"TotalPopUnder5_VisionDisability",{"$f":"\"MOE \"&AZ111","v":"MOE TotalPopUnder5_VisionDisability"},"TotalPop5To17_VisionDisability",{"$f":"\"MOE \"&BB111","v":"MOE TotalPop5To17_VisionDisability"},"TotalPop18To34_VisionDisability",{"$f":"\"MOE \"&BD111","v":"MOE TotalPop18To34_VisionDisability"},"TotalPop35To64_VisionDisability",{"$f":"\"MOE \"&BF111","v":"MOE TotalPop35To64_VisionDisability"},"TotalPop65To74_VisionDisability",{"$f":"\"MOE \"&BH111","v":"MOE TotalPop65To74_VisionDisability"},"TotalPop75andOlder_VisionDisability",{"$f":"\"MOE \"&BJ111","v":"MOE TotalPop75andOlder_VisionDisability"},"TotalPop5To17_CongnitiveDisability",{"$f":"\"MOE \"&BL111","v":"MOE TotalPop5To17_CongnitiveDisability"},"TotalPop18To34_CongnitiveDisability",{"$f":"\"MOE \"&BN111","v":"MOE TotalPop18To34_CongnitiveDisability"},"TotalPop35To64_CongnitiveDisability",{"$f":"\"MOE \"&BP111","v":"MOE TotalPop35To64_CongnitiveDisability"},"TotalPop65To74_CongnitiveDisability",{"$f":"\"MOE \"&BR111","v":"MOE TotalPop65To74_CongnitiveDisability"},"TotalPop75andOlder_CongnitiveDisability",{"$f":"\"MOE \"&BT111","v":"MOE TotalPop75andOlder_CongnitiveDisability"},"TotalPop5To17_AmbulatoryDisability",{"$f":"\"MOE \"&BV111","v":"MOE TotalPop5To17_AmbulatoryDisability"},"TotalPop18To34_AmbulatoryDisability",{"$f":"\"MOE \"&BX111","v":"MOE TotalPop18To34_AmbulatoryDisability"},"TotalPop35To64_AmbulatoryDisability",{"$f":"\"MOE \"&BZ111","v":"MOE TotalPop35To64_AmbulatoryDisability"},"TotalPop65To74_AmbulatoryDisability",{"$f":"\"MOE \"&CB111","v":"MOE TotalPop65To74_AmbulatoryDisability"},"TotalPop75andOlder_AmbulatoryDisability",{"$f":"\"MOE \"&CD111","v":"MOE TotalPop75andOlder_AmbulatoryDisability"},"TotalPop5To17_SelfCareDisability",{"$f":"\"MOE \"&CF111","v":"MOE TotalPop5To17_SelfCareDisability"},"TotalPop18To34_SelfCareDisability",{"$f":"\"MOE \"&CH111","v":"MOE TotalPop18To34_SelfCareDisability"},"TotalPop35To64_SelfCareDisability",{"$f":"\"MOE \"&CJ111","v":"MOE TotalPop35To64_SelfCareDisability"},"TotalPop65To74_SelfCareDisability",{"$f":"\"MOE \"&CL111","v":"MOE TotalPop65To74_SelfCareDisability"},"TotalPop75andOlder_SelfCareDisability",{"$f":"\"MOE \"&CN111","v":"MOE TotalPop75andOlder_SelfCareDisability"},"TotalPop18To34_IndependantLivingDisability",{"$f":"\"MOE \"&CP111","v":"MOE TotalPop18To34_IndependantLivingDisability"},"TotalPop35To64_IndependantLivingDisability",{"$f":"\"MOE \"&CR111","v":"MOE TotalPop35To64_IndependantLivingDisability"},"TotalPop65To74_IndependantLivingDisability",{"$f":"\"MOE \"&CT111","v":"MOE TotalPop65To74_IndependantLivingDisability"},"TotalPop75andOlder_IndependantLivingDisability",{"$f":"\"MOE \"&CV111","v":"MOE TotalPop75andOlder_IndependantLivingDisability"},"TotalUnder18",{"$f":"\"MOE \"&CX111","v":"MOE TotalUnder18"},"Under 18_Total",{"$f":"\"MOE \"&CZ111","v":"MOE Under 18_Total"},"Under18_OneDisability",{"$f":"\"MOE \"&DB111","v":"MOE Under18_OneDisability"},"Under18_TwoDisability",{"$f":"\"MOE \"&DD111","v":"MOE Under18_TwoDisability"},"Under18_NoDisability",{"$f":"\"MOE \"&DF111","v":"MOE Under18_NoDisability"},"18-64._Total",{"$f":"\"MOE \"&DH111","v":"MOE 18-64._Total"},"18-64._OneDisability",{"$f":"\"MOE \"&DJ111","v":"MOE 18-64._OneDisability"},"18-64_TwoDisability",{"$f":"\"MOE \"&DL111","v":"MOE 18-64_TwoDisability"},"18-64_NoDisability",{"$f":"\"MOE \"&DN111","v":"MOE 18-64_NoDisability"},"64 and Over_Total",{"$f":"\"MOE \"&DP111","v":"MOE 64 and Over_Total"},"64 and Over_OneDisability",{"$f":"\"MOE \"&DR111","v":"MOE 64 and Over_OneDisability"},"64 and Over_TwoDisability",{"$f":"\"MOE \"&DT111","v":"MOE 64 and Over_TwoDisability"},"64 and Over_NoDisability",{"$f":"\"MOE \"&DV111","v":"MOE 64 and Over_NoDisability"}]
[{"$f":"VLOOKUP(DropDownList!$B$47,CntyQryCensus!$A$510:$DA$552,A$1)","v":"Allenstown"},4336,43,223,99.488692824863264,0,15.556349186104045,223,99.488692824863264,698,172.7917822120022,50,48.703182647543684,648,171.4322023425004,1008,159.17600321656528,31,27.294688127912362,977,160.63934760823702,1926,185.26737435393204,250,102.88342918079665,1676,180.23595645708434,233,69.202601107183824,61,40,172,63.134776470658387,248,83.600239234107462,121,67.178865724273734,127,70.292247083159893,0,15.556349186104045,0,15.556349186104045,0,15.556349186104045,102,59.203040462462738,42,34.539832078341085,40,29.698484809834994,0,15.556349186104045,24,42.449970553582247,0,15.556349186104045,73,74.330343736592525,9,17.804493814764857,45,45.177427992306072,37,44.011362169330773,20,26.40075756488817,103,79.831071645068121,0,15.556349186104045,48,44.283179650969061,698,172.7917822120022,1008,159.17600321656528,1926,185.26737435393204,233,69.202601107183824,248,83.600239234107462,37,47.296934361541872,0,15.556349186104045,22,26.40075756488817,8,17.029386365926403,56,46.141087980237309,18,25.495097567963924,97,77.466121627457255,8,17.029386365926403,73,56.727418414731339,26,28,24,41,117,66,164,95,61,38,121,73]
[]
["Househould Income By Age"]
["NAME","TotalHouseholds",{"$f":"\"MOE \"&B115","v":"MOE TotalHouseholds"},"HHInc<10K",{"$f":"\"MOE \"&D115","v":"MOE HHInc<10K"},"HHInc10to15K",{"$f":"\"MOE \"&F115","v":"MOE HHInc10to15K"},"HHInc15to20K",{"$f":"\"MOE \"&H115","v":"MOE HHInc15to20K"},"HHInc20to25K",{"$f":"\"MOE \"&J115","v":"MOE HHInc20to25K"},"HHInc25to30K",{"$f":"\"MOE \"&L115","v":"MOE HHInc25to30K"},"HHInc30to35K",{"$f":"\"MOE \"&N115","v":"MOE HHInc30to35K"},"HHInc35to40K",{"$f":"\"MOE \"&P115","v":"MOE HHInc35to40K"},"HHInc40to45K",{"$f":"\"MOE \"&R115","v":"MOE HHInc40to45K"},"HHInc45to50K",{"$f":"\"MOE \"&T115","v":"MOE HHInc45to50K"},"HHInc50to60K",{"$f":"\"MOE \"&V115","v":"MOE HHInc50to60K"},"HHInc60to75K",{"$f":"\"MOE \"&X115","v":"MOE HHInc60to75K"},"HHInc75to100K",{"$f":"\"MOE \"&Z115","v":"MOE HHInc75to100K"},"HHInc100to125K",{"$f":"\"MOE \"&AB115","v":"MOE HHInc100to125K"},"HHInc125to150K",{"$f":"\"MOE \"&AD115","v":"MOE HHInc125to150K"},"HHInc150to200K",{"$f":"\"MOE \"&AF115","v":"MOE HHInc150to200K"},"HHInc>200K",{"$f":"\"MOE \"&AH115","v":"MOE HHInc>200K"},"TotalHH",{"$f":"\"MOE \"&AJ115","v":"MOE TotalHH"},"HHAgeHHUnder25yrs",{"$f":"\"MOE \"&AL115","v":"MOE HHAgeHHUnder25yrs"},"HHAgeHH<25HHInc<10K",{"$f":"\"MOE \"&AN115","v":"MOE HHAgeHH<25HHInc<10K"},"HHAgeHH<25HHInc10to15K",{"$f":"\"MOE \"&AP115","v":"MOE HHAgeHH<25HHInc10to15K"},"HHAgeHH<25HHInc15to20K",{"$f":"\"MOE \"&AR115","v":"MOE HHAgeHH<25HHInc15to20K"},"HHAgeHH<25HHInc20to25K",{"$f":"\"MOE \"&AT115","v":"MOE HHAgeHH<25HHInc20to25K"},"HHAgeHH<25HHInc25to30K",{"$f":"\"MOE \"&AV115","v":"MOE HHAgeHH<25HHInc25to30K"},"HHAgeHH<25HHInc30to35K",{"$f":"\"MOE \"&AX115","v":"MOE HHAgeHH<25HHInc30to35K"},"HHAgeHH<25HHInc35to40K",{"$f":"\"MOE \"&AZ115","v":"MOE HHAgeHH<25HHInc35to40K"},"HHAgeHH<25HHInc40to45K",{"$f":"\"MOE \"&BB115","v":"MOE HHAgeHH<25HHInc40to45K"},"HHAgeHH<25HHInc45to50K",{"$f":"\"MOE \"&BD115","v":"MOE HHAgeHH<25HHInc45to50K"},"HHAgeHH<25HHInc50to60K",{"$f":"\"MOE \"&BF115","v":"MOE HHAgeHH<25HHInc50to60K"},"HHAgeHH<25HHInc60to75K",{"$f":"\"MOE \"&BH115","v":"MOE HHAgeHH<25HHInc60to75K"},"HHAgeHH<25HHInc75to100K",{"$f":"\"MOE \"&BJ115","v":"MOE HHAgeHH<25HHInc75to100K"},"HHAgeHH<25HHInc100to125K",{"$f":"\"MOE \"&BL115","v":"MOE HHAgeHH<25HHInc100to125K"},"HHAgeHH<25HHInc125to150K",{"$f":"\"MOE \"&BN115","v":"MOE HHAgeHH<25HHInc125to150K"},"HHAgeHH<25HHInc150to200K",{"$f":"\"MOE \"&BP115","v":"MOE HHAgeHH<25HHInc150to200K"},"HHAge<25HHInc>200K",{"$f":"\"MOE \"&BR115","v":"MOE HHAge<25HHInc>200K"},"HHAgeHH25to44yrs",{"$f":"\"MOE \"&BT115","v":"MOE HHAgeHH25to44yrs"},"HHAgeHH25To44yrsHHInc<10K",{"$f":"\"MOE \"&BV115","v":"MOE HHAgeHH25To44yrsHHInc<10K"},"HHAgeHH25To44yrsHHInc10to15K",{"$f":"\"MOE \"&BX115","v":"MOE HHAgeHH25To44yrsHHInc10to15K"},"HHAgeHH25To44yrsHHInc15to20K",{"$f":"\"MOE \"&BZ115","v":"MOE HHAgeHH25To44yrsHHInc15to20K"},"HHAgeHH25To44yrsHHInc20to25K",{"$f":"\"MOE \"&CB115","v":"MOE HHAgeHH25To44yrsHHInc20to25K"},"HHAgeHH25To44yrsHHInc25to30K",{"$f":"\"MOE \"&CD115","v":"MOE HHAgeHH25To44yrsHHInc25to30K"},"HHAgeHH25To44yrsHHInc30to35K",{"$f":"\"MOE \"&CF115","v":"MOE HHAgeHH25To44yrsHHInc30to35K"},"HHAgeHH25To44yrsHHInc35to40K",{"$f":"\"MOE \"&CH115","v":"MOE HHAgeHH25To44yrsHHInc35to40K"},"HHAgeHH25To44yrsHHInc40to45K",{"$f":"\"MOE \"&CJ115","v":"MOE HHAgeHH25To44yrsHHInc40to45K"},"HHAgeHH25To44yrsHHInc45to50K",{"$f":"\"MOE \"&CL115","v":"MOE HHAgeHH25To44yrsHHInc45to50K"},"HHAgeHH25To44yrsHHInc50to60K",{"$f":"\"MOE \"&CN115","v":"MOE HHAgeHH25To44yrsHHInc50to60K"},"HHAgeHH25To44yrsHHInc60to75K",{"$f":"\"MOE \"&CP115","v":"MOE HHAgeHH25To44yrsHHInc60to75K"},"HHAgeHH25To44yrsHHInc75to100K",{"$f":"\"MOE \"&CR115","v":"MOE HHAgeHH25To44yrsHHInc75to100K"},"HHAgeHH25To44yrsHHInc100to125K",{"$f":"\"MOE \"&CT115","v":"MOE HHAgeHH25To44yrsHHInc100to125K"},"HHAgeHH25To44yrsHHInc125to150K",{"$f":"\"MOE \"&CV115","v":"MOE HHAgeHH25To44yrsHHInc125to150K"},"HHAgeHH25To44yrsHHInc150to200K",{"$f":"\"MOE \"&CX115","v":"MOE HHAgeHH25To44yrsHHInc150to200K"},"HHAge25To44yrsHHInc>200K",{"$f":"\"MOE \"&CZ115","v":"MOE HHAge25To44yrsHHInc>200K"},"HHAgeHH45To64yrs",{"$f":"\"MOE \"&DB115","v":"MOE HHAgeHH45To64yrs"},"HHAgeHH45To64yrsHHInc<10K",{"$f":"\"MOE \"&DD115","v":"MOE HHAgeHH45To64yrsHHInc<10K"},"HHAgeHH45To64yrsHHInc10to15K",{"$f":"\"MOE \"&DF115","v":"MOE HHAgeHH45To64yrsHHInc10to15K"},"HHAgeHH45To64yrsHHInc15to20K",{"$f":"\"MOE \"&DH115","v":"MOE HHAgeHH45To64yrsHHInc15to20K"},"HHAgeHH45To64yrsHHInc20to25K",{"$f":"\"MOE \"&DJ115","v":"MOE HHAgeHH45To64yrsHHInc20to25K"},"HHAgeHH45To64yrsHHInc25to30K",{"$f":"\"MOE \"&DL115","v":"MOE HHAgeHH45To64yrsHHInc25to30K"},"HHAgeHH45To64yrsHHInc30to35K",{"$f":"\"MOE \"&DN115","v":"MOE HHAgeHH45To64yrsHHInc30to35K"},"HHAgeHH45To64yrsHHInc35to40K",{"$f":"\"MOE \"&DP115","v":"MOE HHAgeHH45To64yrsHHInc35to40K"},"HHAgeHH45To64yrsHHInc40to45K",{"$f":"\"MOE \"&DR115","v":"MOE HHAgeHH45To64yrsHHInc40to45K"},"HHAgeHH45To64yrsHHInc45to50K",{"$f":"\"MOE \"&DT115","v":"MOE HHAgeHH45To64yrsHHInc45to50K"},"HHAgeHH45To64yrsHHInc50to60K",{"$f":"\"MOE \"&DV115","v":"MOE HHAgeHH45To64yrsHHInc50to60K"},"HHAgeHH45To64yrsHHInc60to75K",{"$f":"\"MOE \"&DX115","v":"MOE HHAgeHH45To64yrsHHInc60to75K"},"HHAgeHH45To64yrsHHInc75to100K",{"$f":"\"MOE \"&DZ115","v":"MOE HHAgeHH45To64yrsHHInc75to100K"},"HHAgeHH45To64yrsHHInc100to125K",{"$f":"\"MOE \"&EB115","v":"MOE HHAgeHH45To64yrsHHInc100to125K"},"HHAgeHH45To64yrsHHInc125to150K",{"$f":"\"MOE \"&ED115","v":"MOE HHAgeHH45To64yrsHHInc125to150K"},"HHAgeHH45To64yrsHHInc150to200K",{"$f":"\"MOE \"&EF115","v":"MOE HHAgeHH45To64yrsHHInc150to200K"},"HHAge45To64yrsHHInc>200K",{"$f":"\"MOE \"&EH115","v":"MOE HHAge45To64yrsHHInc>200K"},"HHAgeHH65yrsorOlder",{"$f":"\"MOE \"&EJ115","v":"MOE HHAgeHH65yrsorOlder"},"HHAgeHH65yrsorOlderHHInc<10K",{"$f":"\"MOE \"&EL115","v":"MOE HHAgeHH65yrsorOlderHHInc<10K"},"HHAgeHH65yrsorOlderHHInc10to15K",{"$f":"\"MOE \"&EN115","v":"MOE HHAgeHH65yrsorOlderHHInc10to15K"},"HHAgeHH65yrsorOlderHHInc15to20K",{"$f":"\"MOE \"&EP115","v":"MOE HHAgeHH65yrsorOlderHHInc15to20K"},"HHAgeHH65yrsorOlderHHInc20to25K",{"$f":"\"MOE \"&ER115","v":"MOE HHAgeHH65yrsorOlderHHInc20to25K"},"HHAgeHH65yrsorOlderHHInc25to30K",{"$f":"\"MOE \"&ET115","v":"MOE HHAgeHH65yrsorOlderHHInc25to30K"},"HHAgeHH65yrsorOlderHHInc30to35K",{"$f":"\"MOE \"&EV115","v":"MOE HHAgeHH65yrsorOlderHHInc30to35K"},"HHAgeHH65yrsorOlderHHInc35to40K",{"$f":"\"MOE \"&EX115","v":"MOE HHAgeHH65yrsorOlderHHInc35to40K"},"HHAgeHH65yrsorOlderHHInc40to45K",{"$f":"\"MOE \"&EZ115","v":"MOE HHAgeHH65yrsorOlderHHInc40to45K"},"HHAgeHH65yrsorOlderHHInc45to50K",{"$f":"\"MOE \"&FB115","v":"MOE HHAgeHH65yrsorOlderHHInc45to50K"},"HHAgeHH65yrsorOlderHHInc50to60K",{"$f":"\"MOE \"&FD115","v":"MOE HHAgeHH65yrsorOlderHHInc50to60K"},"HHAgeHH65yrsorOlderHHInc60to75K",{"$f":"\"MOE \"&FF115","v":"MOE HHAgeHH65yrsorOlderHHInc60to75K"},"HHAgeHH65yrsorOlderHHInc75to100K",{"$f":"\"MOE \"&FH115","v":"MOE HHAgeHH65yrsorOlderHHInc75to100K"},"HHAgeHH65yrsorOlderHHInc100to125K",{"$f":"\"MOE \"&FJ115","v":"MOE HHAgeHH65yrsorOlderHHInc100to125K"},"HHAgeHH65yrsorOlderHHInc125to150K",{"$f":"\"MOE \"&FL115","v":"MOE HHAgeHH65yrsorOlderHHInc125to150K"},"HHAgeHH65yrsorOlderHHInc150to200K",{"$f":"\"MOE \"&FN115","v":"MOE HHAgeHH65yrsorOlderHHInc150to200K"},"HHAge65yrsorOlderHHInc>200K",{"$f":"\"MOE \"&FP115","v":"MOE HHAge65yrsorOlderHHInc>200K"},"MedianHHInc",{"$f":"\"MOE \"&FR115","v":"MOE MedianHHInc"},"HH under 25 years",{"$f":"\"MOE \"&FT115","v":"MOE HH under 25 years"},"Householder 25 to 44 years",{"$f":"\"MOE \"&FV115","v":"MOE Householder 25 to 44 years"},"Householder 45 to 64 years",{"$f":"\"MOE \"&FX115","v":"MOE Householder 45 to 64 years"},"Householder 65 years and over",{"$f":"\"MOE \"&FZ115","v":"MOE Householder 65 years and over"}]
[{"$f":"VLOOKUP(DropDownList!$B$47,CntyQryCensus!$A$510:$DA$552,A$1)","v":"Allenstown"},1693,132,92,85,71,40,71,73,224,102,38,31,117,74,51,44,80,46,11,17,146,93,170,82,254,102,194,83,76,47,83,68,15,24,1693,132,50,38,0,85,0,85,0,85,7,11,0,85,0,85,0,85,0,85,0,85,0,85,6,10,37,36,0,85,0,85,0,85,0,85,645,133,43,73,14,21,0,85,152,98,15,24,33,52,10,17,12,14,3,12,75,54,70,51,73,65,79,64,0,85,51,59,15,24,736,142,17,27,0,85,45,64,38,33,23,21,44,47,32,35,43,30,8,13,71,78,79,60,137,75,99,51,68,44,32,31,0,85,262,60,32,36,57,34,26,28,27,28,0,85,40,36,9,13,25,26,0,85,0,85,15,23,7,11,16,24,8,13,0,85,0,85,58159,9075,79079,17627,55288,20365,66685,13020,21481,14894]
[]
["Number of Households by Income"]
["NAME","HHIncLessThn10k",{"$f":"\"MOE \"&B119","v":"MOE HHIncLessThn10k"},"HHInc10to15K",{"$f":"\"MOE \"&D119","v":"MOE HHInc10to15K"},"HHInc15to25K",{"$f":"\"MOE \"&F119","v":"MOE HHInc15to25K"},"HHInc25to35K",{"$f":"\"MOE \"&H119","v":"MOE HHInc25to35K"},"HHInc35to50K",{"$f":"\"MOE \"&J119","v":"MOE HHInc35to50K"},"HHInc50to75K",{"$f":"\"MOE \"&L119","v":"MOE HHInc50to75K"},"HHInc75to100K",{"$f":"\"MOE \"&N119","v":"MOE HHInc75to100K"},"HHInc100to150K",{"$f":"\"MOE \"&P119","v":"MOE HHInc100to150K"},"HHInc150to200K",{"$f":"\"MOE \"&R119","v":"MOE HHInc150to200K"},"HHIncOver200K",{"$f":"\"MOE \"&T119","v":"MOE HHIncOver200K"}]
[{"$f":"VLOOKUP(DropDownList!$B$47,CntyQryCensus!$A$510:$DA$552,A$1)","v":"Allenstown"},92,85,71,40,295,125.4312560727987,155,80.230916734136841,142,65.886265640116534,316,123.98790263570072,254,102,270,95.383436717283359,83,68,15,24,181,74,234,105,177,68,91,60,57,63,20,32]
[]
[]
["NAME","TotalPop",{"$f":"\"MOE \"&B123","v":"MOE TotalPop"},"Total Individuals living in Poverty",{"$f":"\"MOE \"&D123","v":"MOE Total Individuals living in Poverty"},"Under 5 yrs.",{"$f":"\"MOE \"&F123","v":"MOE Under 5 yrs."},"5 to 17 yrs.",{"$f":"\"MOE \"&H123","v":"MOE 5 to 17 yrs."},"18 to 64 yrs.",{"$f":"\"MOE \"&J123","v":"MOE 18 to 64 yrs."},"65 to 74 yrs.",{"$f":"\"MOE \"&L123","v":"MOE 65 to 74 yrs."},"75 yrs. & Over",{"$f":"\"MOE \"&N123","v":"MOE 75 yrs. & Over"},"Total Individuals  Not living Poverty",{"$f":"\"MOE \"&P123","v":"MOE Total Individuals  Not living Poverty"},"Under 5 yrs.",{"$f":"\"MOE \"&R123","v":"MOE Under 5 yrs."},"5 to 17 yrs.",{"$f":"\"MOE \"&T123","v":"MOE 5 to 17 yrs."},"18 to 64 yrs.",{"$f":"\"MOE \"&V123","v":"MOE 18 to 64 yrs."},"65 to 74 yrs.",{"$f":"\"MOE \"&X123","v":"MOE 65 to 74 yrs."},"75 yrs. & Over",{"$f":"\"MOE \"&Z123","v":"MOE 75 yrs. & Over"},"Total HH",{"$f":"\"MOE \"&AB123","v":"MOE Total HH"},"Total Households Below Poverty",{"$f":"\"MOE \"&AD123","v":"MOE Total Households Below Poverty"},"Family Households in Poverty",{"$f":"\"MOE \"&AF123","v":"MOE Family Households in Poverty"},"Married Couple Fam HH",{"$f":"\"MOE \"&AH123","v":"MOE Married Couple Fam HH"},"Other Family",{"$f":"\"MOE \"&AJ123","v":"MOE Other Family"},"Male Head of Family HH no wife",{"$f":"\"MOE \"&AL123","v":"MOE Male Head of Family HH no wife"},"Female Head of Family HH no husband",{"$f":"\"MOE \"&AN123","v":"MOE Female Head of Family HH no husband"},"Non-Family HH",{"$f":"\"MOE \"&AP123","v":"MOE Non-Family HH"},"Non-Family Male HH",{"$f":"\"MOE \"&AR123","v":"MOE Non-Family Male HH"},"Non-Family Female HH",{"$f":"\"MOE \"&AT123","v":"MOE Non-Family Female HH"},"Total Households at or Above Poverty",{"$f":"\"MOE \"&AV123","v":"MOE Total Households at or Above Poverty"},"Family Households above Poverty",{"$f":"\"MOE \"&AX123","v":"MOE Family Households above Poverty"},"Married Couple Fam HH",{"$f":"\"MOE \"&AZ123","v":"MOE Married Couple Fam HH"},"Other Family",{"$f":"\"MOE \"&BB123","v":"MOE Other Family"},"Male Head of Family HH no wife",{"$f":"\"MOE \"&BD123","v":"MOE Male Head of Family HH no wife"},"Female Head of Family HH no husband",{"$f":"\"MOE \"&BF123","v":"MOE Female Head of Family HH no husband"},"Non-Family HH",{"$f":"\"MOE \"&BH123","v":"MOE Non-Family HH"},"Non-Family Male HH",{"$f":"\"MOE \"&BJ123","v":"MOE Non-Family Male HH"},"Non-Family Female HH",{"$f":"\"MOE \"&BL123","v":"MOE Non-Family Female HH"},"Married Couple with Children Below Poverty",{"$f":"\"MOE \"&BN123","v":"MOE Married Couple with Children Below Poverty"},"Male HH with children below poverty",{"$f":"\"MOE \"&BP123","v":"MOE Male HH with children below poverty"},"Female HH with children below poverty",{"$f":"\"MOE \"&BR123","v":"MOE Female HH with children below poverty"},"Married Couple with Children At or Above Poverty",{"$f":"\"MOE \"&BT123","v":"MOE Married Couple with Children At or Above Poverty"},"Male HH with children at or above poverty",{"$f":"\"MOE \"&BV123","v":"MOE Male HH with children at or above poverty"},"Female HH with children at or above poverty",{"$f":"\"MOE \"&BX123","v":"MOE Female HH with children at or above poverty"}]
[{"$f":"VLOOKUP(DropDownList!$B$47,CntyQryCensus!$A$510:$DA$552,A$1)","v":"Allenstown"},4405,41,312,214,38,26.90724809414742,75,232.64350410015751,150,151.28450019747561,30,33.241540277189323,19,27.294688127912362,4093,216,186,85.440037453175307,688,235.68623209682826,2818,304.20387900222443,258,69.404610797842537,143,70.604532432415411,139,93,44,38,30,32,null,null,14,21,0,85,14,21,95,84,24,29,71,81,1554,129,1166,103,1074,172,388,135,90,67,249,84,212,91,388,135,176,84,null,null,44,38,15,24,320,70,1166,103,528,113]
[]
["Household Income By Tenure"]
["NAME","TotalOccHU",{"$f":"\"MOE \"&B127","v":"MOE TotalOccHU"},"OwnOccHU",{"$f":"\"MOE \"&D127","v":"MOE OwnOccHU"},"OOHUInc<5K",{"$f":"\"MOE \"&F127","v":"MOE OOHUInc<5K"},"OOHUInc5to10K",{"$f":"\"MOE \"&H127","v":"MOE OOHUInc5to10K"},"OOHUInc10to15K",{"$f":"\"MOE \"&J127","v":"MOE OOHUInc10to15K"},"OOHUInc15to20K",{"$f":"\"MOE \"&L127","v":"MOE OOHUInc15to20K"},"OOHUInc20to25K",{"$f":"\"MOE \"&N127","v":"MOE OOHUInc20to25K"},"OOHUInc25to35K",{"$f":"\"MOE \"&P127","v":"MOE OOHUInc25to35K"},"OOHUInc35to50K",{"$f":"\"MOE \"&R127","v":"MOE OOHUInc35to50K"},"OOHUInc50to75K",{"$f":"\"MOE \"&T127","v":"MOE OOHUInc50to75K"},"OOHUInc75to100K",{"$f":"\"MOE \"&V127","v":"MOE OOHUInc75to100K"},"OOHUInc100to150K",{"$f":"\"MOE \"&X127","v":"MOE OOHUInc100to150K"},"OOHUInc>150K",{"$f":"\"MOE \"&Z127","v":"MOE OOHUInc>150K"},"RentOccHU",{"$f":"\"MOE \"&AB127","v":"MOE RentOccHU"},"ROHUInc<5K",{"$f":"\"MOE \"&AD127","v":"MOE ROHUInc<5K"},"ROHUInc5to10K",{"$f":"\"MOE \"&AF127","v":"MOE ROHUInc5to10K"},"ROHUInc10to15K",{"$f":"\"MOE \"&AH127","v":"MOE ROHUInc10to15K"},"ROHUInc15to20K",{"$f":"\"MOE \"&AJ127","v":"MOE ROHUInc15to20K"},"ROHUInc20to25K",{"$f":"\"MOE \"&AL127","v":"MOE ROHUInc20to25K"},"ROHUInc25to35K",{"$f":"\"MOE \"&AN127","v":"MOE ROHUInc25to35K"},"ROHUInc35to50K",{"$f":"\"MOE \"&AP127","v":"MOE ROHUInc35to50K"},"ROHUInc50to75K",{"$f":"\"MOE \"&AR127","v":"MOE ROHUInc50to75K"},"ROHUInc75to100K",{"$f":"\"MOE \"&AT127","v":"MOE ROHUInc75to100K"},"ROHUInc100to150K",{"$f":"\"MOE \"&AV127","v":"MOE ROHUInc100to150K"},"ROHUInc>150K",{"$f":"\"MOE \"&AX127","v":"MOE ROHUInc>150K"},"Total OCC HUInc<5K",{"$f":"\"MOE \"&AZ127","v":"MOE Total OCC HUInc<5K"},"Total OCC HUInc5to10K",{"$f":"\"MOE \"&BB127","v":"MOE Total OCC HUInc5to10K"},"Total OCC HUInc10to15K",{"$f":"\"MOE \"&BD127","v":"MOE Total OCC HUInc10to15K"},"Total OCC HUInc15to20K",{"$f":"\"MOE \"&BF127","v":"MOE Total OCC HUInc15to20K"},"Total OCC HUInc20to25K",{"$f":"\"MOE \"&BH127","v":"MOE Total OCC HUInc20to25K"},"Total OCC HUInc25to35K",{"$f":"\"MOE \"&BJ127","v":"MOE Total OCC HUInc25to35K"},"Total OCC HUInc35to50K",{"$f":"\"MOE \"&BL127","v":"MOE Total OCC HUInc35to50K"},"Total OCC HUInc50to75K",{"$f":"\"MOE \"&BN127","v":"MOE Total OCC HUInc50to75K"},"Total OCC HUInc75to100K",{"$f":"\"MOE \"&BP127","v":"MOE Total OCC HUInc75to100K"},"Total OCC HUInc100to150K",{"$f":"\"MOE \"&BR127","v":"MOE Total OCC HUInc100to150K"},"Total OCC HUInc>150K",{"$f":"\"MOE \"&BT127","v":"MOE Total OCC HUInc>150K"},"MedHHInc",{"$f":"\"MOE \"&BV127","v":"MOE MedHHInc"},"MedOwnOccHHInc",{"$f":"\"MOE \"&BX127","v":"MOE MedOwnOccHHInc"},"MedRentOccHHInc",{"$f":"\"MOE \"&BZ127","v":"MOE MedRentOccHHInc"}]
[{"$f":"VLOOKUP(DropDownList!$B$47,CntyQryCensus!$A$510:$DA$552,A$1)","v":"Allenstown"},1693,132,1072,170,17,27,15,24,36,31,16,24,48,37,91,62,108,63,241,106,202,94,200,84,98,69,621,150,43,73,17,27,35,32,55,66,176,102,64,50,34,29,75,55,52,60,70,50,0,85,60,77.833154889160184,32,36.124783736376884,71,44.553338819890925,71,70.228199464317754,224,108.50345616615168,155,79.649231006959511,142,69.354163537598808,316,119.41942890501528,254,111.51681487560519,270,97.754795278799492,98,109.48059188732951,58159,9075,71216,12731,24588,8048,131,60.207972893961475,97,130.24976007655445,256,116.97008164483771,418,127.05904139414872,510,129.71121771072848,449,123.0690862889621,508,128.41339493993607,207,136.45878498652991]
[]
["Population Data"]
["NAME","Total Population","MOE Total Population","Under 15 Years","MOE Under 15 yrs.","15 to 24 yrs.","MOE 15 to 24 yrs.","25 to 34 yrs.","MOE 25 to 34 yrs.","35 to 44 yrs.","MOE 35 to 44 yrs.","45 to 54 yrs.","MOE 45 to 54 yrs.","55 to 64 yrs.","MOE 55 to 64 yrs.","65 to 74 yrs.","MOE 65 to 74 yrs.","Over 74 yrs. ","MOE Over 74 yrs. ","TotalHH","MOE TotalHH","FamilyHH","MOE FamilyHH","MarriedFamilyHH","MOE MarriedFamilyHH","SingleFamilyHH","MOE SingleFamilyHH","Sfamily-MaleHH","MOE Sfamily-MaleHH","Sfamily-FemaleHH","MOE Sfamily-FemaleHH","NonFamilyHH","MOE NonFamilyHH","NonFamilyHH-LivingAlone","MOE NonFamilyHH-LivingAlone","NonFamilyHH-NotLivingAlone","MOE NonFamilyHH-NotLivingAlone","PopRaceWhite","MOE PopRaceWhite","PopRaceBlack","MOE PopRaceBlack","PopRaceAmerican Indian","MOE PopRaceAmerican Indian","PopRaceAsian &Pacific Is.","MOE PopRaceAsian &Pacific Is.","PopRaceOther*","MOE PopRaceOther*","PopRaceHispanic or Latino:","MOE PopRaceHispanic or Latino:","AvgAgeTotalPop","MOE AvgAgeTotalPop","AvgAgeMale","MOE AvgAgeMale","AvgAgeFemale","MOE AvgAgeFemale","AvgHHSizeTotal","MOE AvgHHSizeTotal","AvgHHSizeFamilyHH","MOE AvgHHSizeFamilyHH","AvgHHSizeNonFamilyHH","MOE AvgHHSizeNonFamilyHH"]
[{"$f":"VLOOKUP(DropDownList!$B$47,CntyQryCensus!$A$510:$DA$552,A$1)","v":"Allenstown"},4364,28,741,208.83246873989685,613,165.35114151405185,591,155.13220168617474,730,184.53725911045714,788,161.32575739788115,408,123.12595177297108,237,76.400261779656233,256,93.397002093214965,4324,44,3712,188,2669,353,2669,353,0,11,226,169,179,123,47,57,817,362,4052,179,12,14,19,31,76,118.10588469674151,40,91.547801721286575,238,149,38.5,2.2999999999999998,37.700000000000003,3.1,39,2.9,2.4907834101382487,0.17,3.0451189499589826,0.27884959097028839,1.183752417794971,0.48308453863655443]
[]
["Nativity and Prior Place of Residence"]
["NAME","TotalPop",{"$f":"\"MOE \"&B135","v":"MOE TotalPop"},"Native:",{"$f":"\"MOE \"&D135","v":"MOE Native:"},"NatBornInStateOfResidence",{"$f":"\"MOE \"&F135","v":"MOE NatBornInStateOfResidence"},"Born in other state in the United States:",{"$f":"\"MOE \"&H135","v":"MOE Born in other state in the United States:"},"Northeast",{"$f":"\"MOE \"&J135","v":"MOE Northeast"},"Midwest",{"$f":"\"MOE \"&L135","v":"MOE Midwest"},"South",{"$f":"\"MOE \"&N135","v":"MOE South"},"West",{"$f":"\"MOE \"&P135","v":"MOE West"},"Born outside the United States:",{"$f":"\"MOE \"&R135","v":"MOE Born outside the United States:"},"Puerto Rico",{"$f":"\"MOE \"&T135","v":"MOE Puerto Rico"},"U.S. Island Areas",{"$f":"\"MOE \"&V135","v":"MOE U.S. Island Areas"},"Born abroad of American parent(s)",{"$f":"\"MOE \"&X135","v":"MOE Born abroad of American parent(s)"},"Foreign born:",{"$f":"\"MOE \"&Z135","v":"MOE Foreign born:"},"Naturalized U.S. citizen",{"$f":"\"MOE \"&AB135","v":"MOE Naturalized U.S. citizen"},"Not a U.S. citizen",{"$f":"\"MOE \"&AD135","v":"MOE Not a U.S. citizen"},"CurrentResideneTotal:",{"$f":"\"MOE \"&AF135","v":"MOE CurrentResideneTotal:"},"SameHouse:",{"$f":"\"MOE \"&AH135","v":"MOE SameHouse:"},"DifferentHouse:",{"$f":"\"MOE \"&AJ135","v":"MOE DifferentHouse:"},"DiffHouseInNH",{"$f":"\"MOE \"&AL135","v":"MOE DiffHouseInNH"},"DiffHouseInNHSameCnty",{"$f":"\"MOE \"&AN135","v":"MOE DiffHouseInNHSameCnty"},"DiffHouseInNHDiffCnty",{"$f":"\"MOE \"&AP135","v":"MOE DiffHouseInNHDiffCnty"},"DiffHouseInDiffState",{"$f":"\"MOE \"&AR135","v":"MOE DiffHouseInDiffState"},"DiffHouseInElsewhere",{"$f":"\"MOE \"&AT135","v":"MOE DiffHouseInElsewhere"}]
[{"$f":"VLOOKUP(DropDownList!$B$47,CntyQryCensus!$A$510:$DA$552,A$1)","v":"Allenstown"},4364,28,4163,98,2550,299,1572,275,1349,288,109,69,60,51,54,42,41,34,9,14,0,11,32,31,201,96,96,58,105,84,4349,32,3778,320,571,332.27849764918585,540,330.12118986820582,483,326,57,52,18,30,13,23]
[]
["School Enrollment - Education"]
["NAME","Total Pop 3 Years and Older","MOE Total Pop 3 Years and Older","SchEnrlPop3yrOver",{"$f":"\"MOE \"&D139","v":"MOE SchEnrlPop3yrOver"},"TotalEnrollNursy&Kinder",{"$f":"\"MOE \"&F139","v":"MOE TotalEnrollNursy&Kinder"},"NurserSchEnrl",{"$f":"\"MOE \"&H139","v":"MOE NurserSchEnrl"},"KinderSchEnrl",{"$f":"\"MOE \"&J139","v":"MOE KinderSchEnrl"},"ElemSchEnrl (1-8)",{"$f":"\"MOE \"&L139","v":"MOE ElemSchEnrl (1-8)"},"HighSchEnrl(9-12)",{"$f":"\"MOE \"&N139","v":"MOE HighSchEnrl(9-12)"},"TotalElementry&HSEnroll",{"$f":"\"MOE \"&P139","v":"MOE TotalElementry&HSEnroll"},"CollGradSchEnrl",{"$f":"\"MOE \"&R139","v":"MOE CollGradSchEnrl"},"PopNotEnrolled","MOE PopNotEnrolled","Pop25yrsOver",{"$f":"\"MOE \"&V139","v":"MOE Pop25yrsOver"},"EduAtain<9grd",{"$f":"\"MOE \"&X139","v":"MOE EduAtain<9grd"},"EduAtainHSnoDip",{"$f":"\"MOE \"&Z139","v":"MOE EduAtainHSnoDip"},"EduAtainHSgrad",{"$f":"\"MOE \"&AB139","v":"MOE EduAtainHSgrad"},"EduAtainCollNoDeg",{"$f":"\"MOE \"&AD139","v":"MOE EduAtainCollNoDeg"},"EduAtainAssocDeg",{"$f":"\"MOE \"&AF139","v":"MOE EduAtainAssocDeg"},"EduAtainBachDeg",{"$f":"\"MOE \"&AH139","v":"MOE EduAtainBachDeg"},"EduAtainGradProfDeg",{"$f":"\"MOE \"&AJ139","v":"MOE EduAtainGradProfDeg"}]
[{"$f":"VLOOKUP(DropDownList!$B$47,CntyQryCensus!$A$510:$DA$552,A$1)","v":"Allenstown"},4304,49,912,152,62,43.416586692184822,20,21,42,38,407,167.80047675736802,255,150,662,225.07109987734987,188,87.658428003244509,3392,157,3010,158,90,61.351446600711867,263,115.50324670761424,1336,206.55265672462312,646,146.95917800532229,289,105.58882516630251,279,129.80754985747168,37,36.537651812890218]
[]
["Occupied Owner Housing Value"]
["NAME","Estimate; Total:","Margin of Error; Total:","Estimate; Total: - Less than $10,000","Margin of Error; Total: - Less than $10,000","Estimate; Total: - $10,000 to $14,999","Margin of Error; Total: - $10,000 to $14,999","Estimate; Total: - $15,000 to $19,999","Margin of Error; Total: - $15,000 to $19,999","Estimate; Total: - $20,000 to $24,999","Margin of Error; Total: - $20,000 to $24,999","Estimate; Total: - $25,000 to $29,999","Margin of Error; Total: - $25,000 to $29,999","Estimate; Total: - $30,000 to $34,999","Margin of Error; Total: - $30,000 to $34,999","Estimate; Total: - $35,000 to $39,999","Margin of Error; Total: - $35,000 to $39,999","Estimate; Total: - $40,000 to $49,999","Margin of Error; Total: - $40,000 to $49,999","Estimate; Total: - $50,000 to $59,999","Margin of Error; Total: - $50,000 to $59,999","Estimate; Total: - $60,000 to $69,999","Margin of Error; Total: - $60,000 to $69,999","Estimate; Total: - $70,000 to $79,999","Margin of Error; Total: - $70,000 to $79,999","Estimate; Total: - $80,000 to $89,999","Margin of Error; Total: - $80,000 to $89,999","Estimate; Total: - $90,000 to $99,999","Margin of Error; Total: - $90,000 to $99,999","Estimate; Total: - $100,000 to $124,999","Margin of Error; Total: - $100,000 to $124,999","Estimate; Total: - $125,000 to $149,999","Margin of Error; Total: - $125,000 to $149,999","Estimate; Total: - $150,000 to $174,999","Margin of Error; Total: - $150,000 to $174,999","Estimate; Total: - $175,000 to $199,999","Margin of Error; Total: - $175,000 to $199,999","Estimate; Total: - $200,000 to $249,999","Margin of Error; Total: - $200,000 to $249,999","Estimate; Total: - $250,000 to $299,999","Margin of Error; Total: - $250,000 to $299,999","Estimate; Total: - $300,000 to $399,999","Margin of Error; Total: - $300,000 to $399,999","Estimate; Total: - $400,000 to $499,999","Margin of Error; Total: - $400,000 to $499,999","Estimate; Total: - $500,000 to $749,999","Margin of Error; Total: - $500,000 to $749,999","Estimate; Total: - $750,000 to $999,999","Margin of Error; Total: - $750,000 to $999,999","Estimate; Total: - $1,000,000 to $1,499,999","Margin of Error; Total: - $1,000,000 to $1,499,999","Estimate; Total: - $1,500,000 to $1,999,999","Margin of Error; Total: - $1,500,000 to $1,999,999","Estimate; Total: - $2,000,000 or more","Margin of Error; Total: - $2,000,000 or more","MedianOwnOCCHomeValue","MOE MedianOwnOCCHomeValue","OnwerOccHsU","MOE OnwerOccHsU","OwnerCosts>20PctHHInc","MOE OwnerCosts>20PctHHInc","OwnerCosts20to29.9PctHHInc","MOE OwnerCosts20to29.9PctHHInc","OwnerCosts<30PctHHInc","MOE OwnerCosts<30PctHHInc","OwnerCosts>30PctHHInc","MOE OwnerCosts>30PctHHInc","OwnerCosts30to34.9PctHHInc","MOE OwnerCosts30to34.9PctHHInc","OwnerCosts<35PctHHInc","MOE OwnerCosts<35PctHHInc","OwnerCosts>35PctHHInc","MOE OwnerCosts>35PctHHInc","OwnerCosts>50PctHHInc","MOE OwnerCosts>50PctHHInc","OwnerCostsPctNotcomputed","MOE OwnerCostsPctNotcomputed","OwnerOHUHhInc<20k","MOE OwnerOHUHhInc<20k","OwnerOHUHhInc<20kHCosts<20pct","MOE OwnerOHUHhInc<20kHCosts<20pct","OwnerOHUHhInc<20kHCosts20to29pct","MOE OwnerOHUHhInc<20kHCosts20to29pct","OwnerOHUHhInc>20kHCosts30pct","MOE OwnerOHUHhInc>20kHCosts30pct","OwnerOHUHhInc20kTo34999","MOE OwnerOHUHhInc20kTo34999","OwnerOHUHhInc20kTo34999HCosts<20pct","MOE OwnerOHUHhInc20kTo34999HCosts<20pct","OwnerOHUHhInc20kTo34999HCosts20to29pct","MOE OwnerOHUHhInc20kTo34999HCosts20to29pct","OwnerOHUHhInc20kTo34999HCosts30pct","MOE OwnerOHUHhInc20kTo34999HCosts30pct","OwnerOHUHhInc35kTo49999","MOE OwnerOHUHhInc35kTo49999","OwnerOHUHhInc35kTo49999HCosts<20pct","MOE OwnerOHUHhInc35kTo49999HCosts<20pct","OwnerOHUHhInc35kTo49999HCosts20to29pct","MOE OwnerOHUHhInc35kTo49999HCosts20to29pct","OwnerOHUHhInc35kTo49999HCosts30pct","MOE OwnerOHUHhInc35kTo49999HCosts30pct","OwnerOHUHhInc50kTo74999","MOE OwnerOHUHhInc50kTo74999","OwnerOHUHhInc50kTo74999HCosts<20pct","MOE OwnerOHUHhInc50kTo74999HCosts<20pct","OwnerOHUHhInc50kTo74999HCosts20to29pct","MOE OwnerOHUHhInc50kTo74999HCosts20to29pct","OwnerOHUHhInc50kTo74999HCosts30pct","MOE OwnerOHUHhInc50kTo74999HCosts30pct","OwnerOHUHhInc>75000","MOE OwnerOHUHhInc>75000","OwnerOHUHhInc>75000HCosts<20pct","MOE OwnerOHUHhInc>75000HCosts<20pct","OwnerOHUHhInc>75000HCosts20to29pct","MOE OwnerOHUHhInc>75000HCosts20to29pct","OwnerOHUHhInc>75000HCosts30pct","MOE OwnerOHUHhInc>75000HCosts30pct","ZeroOrNegativeIncome","MOE ZeroOrNegativeIncome"]
[{"$f":"VLOOKUP(DropDownList!$B$47,CntyQryCensus!$A$510:$DA$552,A$1)","v":"Allenstown"},1072,170,24,28,23,28,50,44,23,28,84,66,44,38,28,32,22,27,9,14,0,85,0,85,70,61,10,18,72,50,74,53,98,76,62,41,162,75,143,77,63,62,0,85,11,18,0,85,0,85,null,null,null,null,150800,28841,1072,170,289,96.95359714832658,425,143.45382532369084,714,173.14444836609692,358,110.76100396800311,113,65.551506466289538,827,185.13778652668395,245,89.280456988077745,111,58.796258384356399,0,120.20815280171308,84,50,0,85,0,85,84,50,139,67,26,33,49,58,64,35,108,63,44,39,29,23,35,32,241,106,19,27,136,79,86,56,500,133,200,77,211,91,89,61,0,85]
[]
["Occupied Rental Housing Value"]
["NAME","RntrOccHU","MOE RntrOccHU","RntrOccHUwRent","MOE RntrOccHUwRent","ROHUGRent<100","MOE ROHUGRent<100","ROHUGRent100to149","MOE ROHUGRent100to149","ROHUGRent150to199","MOE ROHUGRent150to199","ROHUGRent200to249","MOE ROHUGRent200to249","ROHUGRent250to299","MOE ROHUGRent250to299","ROHUGRent300to349","MOE ROHUGRent300to349","ROHUGRent350to399","MOE ROHUGRent350to399","ROHUGRent400to449","MOE ROHUGRent400to449","ROHUGRent450to499","MOE ROHUGRent450to499","ROHUGRent500to549","MOE ROHUGRent500to549","ROHUGRent550to599","MOE ROHUGRent550to599","ROHUGRent600to649","MOE ROHUGRent600to649","ROHUGRent650to699","MOE ROHUGRent650to699","ROHUGRent700to749","MOE ROHUGRent700to749","ROHUGRent750to799","MOE ROHUGRent750to799","ROHUGRent800to899","MOE ROHUGRent800to899","ROHUGRent900to999","MOE ROHUGRent900to999","ROHUGRent1000to1249","MOE ROHUGRent1000to1249","ROHUGRent1250to1499","MOE ROHUGRent1250to1499","ROHUGRent1500to1999","MOE ROHUGRent1500to1999","ROHUGRent$2,000 to $2,499","MOE ROHUGRent$2,000 to $2,499","ROHUGRent$2,500 to $2,999","MOE ROHUGRent$2,500 to $2,999","ROHUGRent$3,000 to $3,499","MOE ROHUGRent$3,000 to $3,499","ROHUGRent$3,500 or more","MOE ROHUGRent$3,500 or more","ROHUNoGRent","MOE ROHUNoGRent","MedianGrossRnt","MOE MedianGrossRnt","H73RenterOccHU","MOE H73RenterOccHU","H73ROHUHhInc<10k","MOE H73ROHUHhInc<10k","H73ROHUHhInc<10kRnt<20pct","MOE H73ROHUHhInc<10kRnt<20pct","H73ROHUHhInc<10kRnt20to25pct","MOE H73ROHUHhInc<10kRnt20to25pct","H73ROHUHhInc<10kRnt25to30pct","MOE H73ROHUHhInc<10kRnt25to30pct","H73ROHUHhInc<10kRnt30to35pct","MOE H73ROHUHhInc<10kRnt30to35pct","H73ROHUHhInc<10kRnt35to39.9","MOE H73ROHUHhInc<10kRnt35to39.9","H73ROHUHhInc<10kRnt40to49.9","MOE H73ROHUHhInc<10kRnt40to49.9","H73ROHUHhInc<10kRnt>50pct","MOE H73ROHUHhInc<10kRnt>50pct","H73ROHUHhInc<10kPctNotComput","MOE H73ROHUHhInc<10kPctNotComput","H73ROHUHhInc10to20k","MOE H73ROHUHhInc10to20k","H73ROHUHhInc10to20kRnt<20pct","MOE H73ROHUHhInc10to20kRnt<20pct","H73ROHUHhInc10to20kRnt20to25pct","MOE H73ROHUHhInc10to20kRnt20to25pct","H73ROHUHhInc10to20kRnt25to30pct","MOE H73ROHUHhInc10to20kRnt25to30pct","H73ROHUHhInc10to20kRnt30to35pct","MOE H73ROHUHhInc10to20kRnt30to35pct","H73ROHUHhInc10to20kRnt35to39.9","MOE H73ROHUHhInc10to20kRnt35to39.9","H73ROHUHhInc10to20kRnt40to49.9","MOE H73ROHUHhInc10to20kRnt40to49.9","H73ROHUHhInc10to20kRnt>50pct","MOE H73ROHUHhInc10to20kRnt>50pct","H73ROHUHhInc10to20kRntPctNC","MOE H73ROHUHhInc10to20kRntPctNC","H73ROHUHhInc20to34.9k","MOE H73ROHUHhInc20to34.9k","H73ROHUHhInc20to34.9kRnt<20pct","MOE H73ROHUHhInc20to34.9kRnt<20pct","H73ROHUHhInc20to34.9kRnt20to25pct","MOE H73ROHUHhInc20to34.9kRnt20to25pct","H73ROHUHhInc20to34.9kRnt25to30pct","MOE H73ROHUHhInc20to34.9kRnt25to30pct","H73ROHUHhInc20to34.9kRnt30to35pct","MOE H73ROHUHhInc20to34.9kRnt30to35pct","H73ROHUHhInc20to34.9kRnt35to39.9","MOE H73ROHUHhInc20to34.9kRnt35to39.9","H73ROHUHhInc20to34.9kRnt40to49.9","MOE H73ROHUHhInc20to34.9kRnt40to49.9","H73ROHUHhInc20to34.9kRnt>50pct","MOE H73ROHUHhInc20to34.9kRnt>50pct","H73ROHUHhInc20to34.9kRntPctNC","MOE H73ROHUHhInc20to34.9kRntPctNC","H73ROHUHhInc35to49.9k","MOE H73ROHUHhInc35to49.9k","H73ROHUHhInc35to49.9kRnt<20pct","MOE H73ROHUHhInc35to49.9kRnt<20pct","H73ROHUHhInc35to49.9kRnt20to25pct","MOE H73ROHUHhInc35to49.9kRnt20to25pct","H73ROHUHhInc35to49.9kRnt25to30pct","MOE H73ROHUHhInc35to49.9kRnt25to30pct","H73ROHUHhInc35to49.9kRnt30to35pct","MOE H73ROHUHhInc35to49.9kRnt30to35pct","H73ROHUHhInc35to49.9kRnt35to39.9","MOE H73ROHUHhInc35to49.9kRnt35to39.9","H73ROHUHhInc35to49.9kRnt40to49.9","MOE H73ROHUHhInc35to49.9kRnt40to49.9","H73ROHUHhInc35to49.9kRnt>50pct","MOE H73ROHUHhInc35to49.9kRnt>50pct","H73ROHUHhInc35to49.9kRntPctNC","MOE H73ROHUHhInc35to49.9kRntPctNC","H73ROHUHhInc50to74.9k","MOE H73ROHUHhInc50to74.9k","H73ROHUHhInc50to74.9kRnt<20pct","MOE H73ROHUHhInc50to74.9kRnt<20pct","H73ROHUHhInc50to74.9kRnt20to25pct","MOE H73ROHUHhInc50to74.9kRnt20to25pct","H73ROHUHhInc50to74.9kRnt25to30pct","MOE H73ROHUHhInc50to74.9kRnt25to30pct","H73ROHUHhInc50to74.9kRnt30to35pct","MOE H73ROHUHhInc50to74.9kRnt30to35pct","H73ROHUHhInc50to74.9kRnt35to39.9","MOE H73ROHUHhInc50to74.9kRnt35to39.9","H73ROHUHhInc50to74.9kRnt40to49.9","MOE H73ROHUHhInc50to74.9kRnt40to49.9","H73ROHUHhInc50to74.9kRnt>50pct","MOE H73ROHUHhInc50to74.9kRnt>50pct","H73ROHUHhInc50to74.9kRntPctNC","MOE H73ROHUHhInc50to74.9kRntPctNC","H73ROHUHhInc75to99.9k","MOE H73ROHUHhInc75to99.9k","H73ROHUHhInc75to99.9kRnt<20pct","MOE H73ROHUHhInc75to99.9kRnt<20pct","H73ROHUHhInc75to99.9kRnt20to25pct","MOE H73ROHUHhInc75to99.9kRnt20to25pct","H73ROHUHhInc75to99.9kRnt25to30pct","MOE H73ROHUHhInc75to99.9kRnt25to30pct","H73ROHUHhInc75to99.9kRnt30to35pct","MOE H73ROHUHhInc75to99.9kRnt30to35pct","H73ROHUHhInc75to99.9kRnt35to39.9","MOE H73ROHUHhInc75to99.9kRnt35to39.9","H73ROHUHhInc75to99.9kRnt40to49.9","MOE H73ROHUHhInc75to99.9kRnt40to49.9","H73ROHUHhInc75to99.9kRnt>50pct","MOE H73ROHUHhInc75to99.9kRnt>50pct","H73ROHUHhInc75to99.9kRntPctNC","MOE H73ROHUHhInc75to99.9kRntPctNC","H73ROHUHhInc>100k","MOE H73ROHUHhInc>100k","H73ROHUHhInc>100kRnt<20pct","MOE H73ROHUHhInc>100kRnt<20pct","H73ROHUHhInc>100kRnt20to25pct","MOE H73ROHUHhInc>100kRnt20to25pct","H73ROHUHhInc>100kRnt25to30pct","MOE H73ROHUHhInc>100kRnt25to30pct","H73ROHUHhInc>100kRnt30to35pct","MOE H73ROHUHhInc>100kRnt30to35pct","H73ROHUHhInc>100kRnt35to39.9","MOE H73ROHUHhInc>100kRnt35to39.9","H73ROHUHhInc>100kRnt40to49.9","MOE H73ROHUHhInc>100kRnt40to49.9","H73ROHUHhInc>100kRnt>50pct","MOE H73ROHUHhInc>100kRnt>50pct","H73ROHUHhInc>100kRntPctNC","MOE H73ROHUHhInc>100kRntPctNC"]
[{"$f":"VLOOKUP(DropDownList!$B$47,CntyQryCensus!$A$510:$DA$552,A$1)","v":"Allenstown"},621,150,579,153,0,85,0,85,11,17,0,85,22,30,5,12,5,8,10,16,8,12,10,16,0,85,54,75,119,88,23,26,21,26,107,83,79,50,19,31,32,40,54,50,0,85,null,null,null,null,null,null,42,55,801,118,null,null,null,null,null,null,null,null,null,null,"Allenstown",null,"Esitimate","Margin Of Error",621,150,60,78,0,85,0,85,0,85,0,85,17,27,43,73,90,71,16,17,0,85,5,8,0,85,69,69,0,85,240,106,10,16,0,85,22,20,57,60,151,90,0,85,34,29,16,20,0,85,9,15,0,85,0,85,9,15,75,55,13,20,0,85,8,13,11,17,43,47,0,85,52,60,19,31,0,85,0,85,0,85,0,85,33,53]
[]
[]
[]
[]
[]
["Occupied Rental Housing Cost Burdern All Incomes"]
["NAME","RenterOccHsU",{"$f":"\"MOE \"&B155","v":"MOE RenterOccHsU"},"GRnt<20PctHHInc",{"$f":"\"MOE \"&D155","v":"MOE GRnt<20PctHHInc"},"GRnt20to249PctHHInc",{"$f":"\"MOE \"&F155","v":"MOE GRnt20to249PctHHInc"},"GRnt25to29.9PctHHInc",{"$f":"\"MOE \"&H155","v":"MOE GRnt25to29.9PctHHInc"},"GRnt<30PctHHInc",{"$f":"\"MOE \"&J155","v":"MOE GRnt<30PctHHInc"},"GRnt>30PctHHInc",{"$f":"\"MOE \"&L155","v":"MOE GRnt>30PctHHInc"},"GRnt30to349PctHHInc",{"$f":"\"MOE \"&N155","v":"MOE GRnt30to349PctHHInc"},"GRnt<35PctHHInc",{"$f":"\"MOE \"&P155","v":"MOE GRnt<35PctHHInc"},"GRnt>35PctHHInc",{"$f":"\"MOE \"&R155","v":"MOE GRnt>35PctHHInc"},"GRnt>50PctHHInc",{"$f":"\"MOE \"&T155","v":"MOE GRnt>50PctHHInc"},"HCB Not Calculated",{"$f":"\"MOE \"&V155","v":"MOE HCB Not Calculated"}]
[{"$f":"VLOOKUP(DropDownList!$B$47,CntyQryCensus!$A$510:$DA$552,A$1)","v":"Allenstown"}]
[]
["Income By Household Type and Tenure"]
["NAME","TotalFamilyHouseholds",{"$f":"\"MOE \"&B159","v":"MOE TotalFamilyHouseholds"},"FamInc<10K",{"$f":"\"MOE \"&D159","v":"MOE FamInc<10K"},"FamInc10to15K",{"$f":"\"MOE \"&F159","v":"MOE FamInc10to15K"},"FamInc15to20K",{"$f":"\"MOE \"&H159","v":"MOE FamInc15to20K"},"FamInc20to25K",{"$f":"\"MOE \"&J159","v":"MOE FamInc20to25K"},"FamInc25to30K",{"$f":"\"MOE \"&L159","v":"MOE FamInc25to30K"},"FamInc30to35K",{"$f":"\"MOE \"&N159","v":"MOE FamInc30to35K"},"FamInc35to40K",{"$f":"\"MOE \"&P159","v":"MOE FamInc35to40K"},"FamInc40to45K",{"$f":"\"MOE \"&R159","v":"MOE FamInc40to45K"},"FamInc45to50K",{"$f":"\"MOE \"&T159","v":"MOE FamInc45to50K"},"FamInc50to60K",{"$f":"\"MOE \"&V159","v":"MOE FamInc50to60K"},"FamInc60to75K",{"$f":"\"MOE \"&X159","v":"MOE FamInc60to75K"},"FamInc75to100K",{"$f":"\"MOE \"&Z159","v":"MOE FamInc75to100K"},"FamInc100to125K",{"$f":"\"MOE \"&AB159","v":"MOE FamInc100to125K"},"FamInc125to150K",{"$f":"\"MOE \"&AD159","v":"MOE FamInc125to150K"},"FamInc150to200K",{"$f":"\"MOE \"&AF159","v":"MOE FamInc150to200K"},"FamInc>200K",{"$f":"\"MOE \"&AH159","v":"MOE FamInc>200K"},"MedFamInc",{"$f":"\"MOE \"&AJ159","v":"MOE MedFamInc"},"TotalNonNonFamilyHouseholds",{"$f":"\"MOE \"&AL159","v":"MOE TotalNonNonFamilyHouseholds"},"NonFamInc<10K",{"$f":"\"MOE \"&AN159","v":"MOE NonFamInc<10K"},"NonFamInc10to15K",{"$f":"\"MOE \"&AP159","v":"MOE NonFamInc10to15K"},"NonFamInc15to20K",{"$f":"\"MOE \"&AR159","v":"MOE NonFamInc15to20K"},"NonFamInc20to25K",{"$f":"\"MOE \"&AT159","v":"MOE NonFamInc20to25K"},"NonFamInc25to30K",{"$f":"\"MOE \"&AV159","v":"MOE NonFamInc25to30K"},"NonFamInc30to35K",{"$f":"\"MOE \"&AX159","v":"MOE NonFamInc30to35K"},"NonFamInc35to40K",{"$f":"\"MOE \"&AZ159","v":"MOE NonFamInc35to40K"},"NonFamInc40to45K",{"$f":"\"MOE \"&BB159","v":"MOE NonFamInc40to45K"},"NonFamInc45to50K",{"$f":"\"MOE \"&BD159","v":"MOE NonFamInc45to50K"},"NonFamInc50to60K",{"$f":"\"MOE \"&BF159","v":"MOE NonFamInc50to60K"},"NonFamInc60to75K",{"$f":"\"MOE \"&BH159","v":"MOE NonFamInc60to75K"},"NonFamInc75to100K",{"$f":"\"MOE \"&BJ159","v":"MOE NonFamInc75to100K"},"NonFamInc100to125K",{"$f":"\"MOE \"&BL159","v":"MOE NonFamInc100to125K"},"NonFamInc125to150K",{"$f":"\"MOE \"&BN159","v":"MOE NonFamInc125to150K"},"NonFamInc150to200K",{"$f":"\"MOE \"&BP159","v":"MOE NonFamInc150to200K"},"NonFamInc>200K",{"$f":"\"MOE \"&BR159","v":"MOE NonFamInc>200K"},"MedNonFamInc",{"$f":"\"MOE \"&BT159","v":"MOE MedNonFamInc"}]
[{"$f":"VLOOKUP(DropDownList!$B$47,CntyQryCensus!$A$510:$DA$552,A$1)","v":"Allenstown"},1210,95,29,31,18,27,16,24,149,84,0,85,77,66,45,38,67,41,3,12,144,95,131,79,211,93,197,82,67,45,41,36,15,24,64884,14026,"Allenstown",null,"Estimate","Margin Of Error",483,159,77,80,39,29,55,66,75,68,38,31,40,40,21,28,43,36,8,13,22,31,39,31,20,23,6,9,0,85,"Allenstown"]
[]
[]
[]
["2010 Census"]
[]
["TownName"]
[{"$f":"VLOOKUP(DropDownList!$B$47,CntyQryCensus!$A$542:$DA$568,A$1)","v":"Allenstown"}]

{"sheet":"StatisticallySignificantCalcs","index":17,"n_rows":271,"n_cols":16,"rows_kept":271,"cut":false,"hidden":true,"merged":[]}
[]
["Statistically Significant Change  10 Year","Standard Error Estimate  1","Standard Error Estimate  2","Square Root of Sum of Squared SE","Difference between the estimates","Value","Test Statistic (90%) Confidence Interval",null,null,"Statistically Significant Change  5Year","Standard Error Estimate  1","Standard Error Estimate  2","Square Root of Sum of Squared SE","Difference between the estimates","Value","Test Statistic (90%) Confidence Interval"]
[{"$f":"IF(F3>G3,\"Y\",\"N\")","v":"Y"},{"$f":"PopulationCharacteristics!Q22/1.645","v":91.757073302846891},{"$f":"PopulationCharacteristics!T22/1.645","v":102.06793737934359},{"$f":"SQRT((B3^2)+(C3^2))","v":137.24876808910753},{"$f":"(PopulationCharacteristics!M22-PopulationCharacteristics!S22)","v":-775},{"$f":"ABS((E3/D3))","v":5.6466809195463101},1.645,"Population By Age Under 15 yrs.",null,{"$f":"IF(O3>P3,\"Y\",\"N\")","v":"N"},{"$f":"PopulationCharacteristics!P22/1.645","v":415.19756838905772},{"$f":"PopulationCharacteristics!T22/1.645","v":102.06793737934359},{"$f":"SQRT((K3^2)+(L3^2))","v":427.55921769628577},{"$f":"(PopulationCharacteristics!P22-PopulationCharacteristics!S22)","v":-92},{"$f":"ABS((N3/M3))","v":0.21517487213982056},1.645]
["Y",{"$f":"PopulationCharacteristics!Q23/1.645","v":89.757821878910107},{"$f":"PopulationCharacteristics!T23/1.645","v":155.63853456898283},179.66585660950335,{"$f":"(PopulationCharacteristics!M23-PopulationCharacteristics!S23)","v":-868},4.8311906133983138,1.645,"Population By Age 15 to 24 yrs.",null,{"$f":"IF(O4>P4,\"Y\",\"N\")","v":"N"},{"$f":"PopulationCharacteristics!P23/1.645","v":325.22796352583589},{"$f":"PopulationCharacteristics!T23/1.645","v":155.63853456898283},360.5503871887297,{"$f":"(PopulationCharacteristics!P23-PopulationCharacteristics!S23)","v":-333},0.92358796948314337,1.645]
["Y",{"$f":"PopulationCharacteristics!Q24/1.645","v":68.631115026889702},{"$f":"PopulationCharacteristics!T24/1.645","v":93.421419625523086},115.9214889254026,{"$f":"(PopulationCharacteristics!M24-PopulationCharacteristics!S24)","v":-550},4.7445905422585986,1.645,"Population By Age 25 to 34 yrs.",null,"N",{"$f":"PopulationCharacteristics!P24/1.645","v":300.91185410334344},{"$f":"PopulationCharacteristics!T24/1.645","v":93.421419625523086},315.08015739611392,{"$f":"(PopulationCharacteristics!P24-PopulationCharacteristics!S24)","v":-55},0.17455875499914406,1.645]
["Y",{"$f":"PopulationCharacteristics!Q25/1.645","v":64.880624825012717},{"$f":"PopulationCharacteristics!T25/1.645","v":95.241113147122633},115.24046646550453,{"$f":"(PopulationCharacteristics!M25-PopulationCharacteristics!S25)","v":-615},5.336667048150928,1.645,"Population By Age 35 to 44 yrs.",null,"N",{"$f":"PopulationCharacteristics!P25/1.645","v":342.24924012158056},{"$f":"PopulationCharacteristics!T25/1.645","v":95.241113147122633},355.25401052951156,{"$f":"(PopulationCharacteristics!P25-PopulationCharacteristics!S25)","v":-52},0.14637413923207568,1.645]
["Y",{"$f":"PopulationCharacteristics!Q26/1.645","v":91.555480051789388},{"$f":"PopulationCharacteristics!T26/1.645","v":102.93859544075441},137.76342170122268,{"$f":"(PopulationCharacteristics!M26-PopulationCharacteristics!S26)","v":-599},4.348033698662725,1.645,"Population By Age 45 to 54 yrs.",null,"N",{"$f":"PopulationCharacteristics!P26/1.645","v":462.00607902735561},{"$f":"PopulationCharacteristics!T26/1.645","v":102.93859544075441},473.33494640639668,{"$f":"(PopulationCharacteristics!P26-PopulationCharacteristics!S26)","v":161},0.3401396859081019,1.645]
["Y",{"$f":"PopulationCharacteristics!Q27/1.645","v":88.947201529737455},{"$f":"PopulationCharacteristics!T27/1.645","v":103.73250569641488},136.64566366346381,{"$f":"(PopulationCharacteristics!M27-PopulationCharacteristics!S27)","v":-715},5.2325114521082021,1.645,"Population By Age 55 to 64 yrs.",null,"N",{"$f":"PopulationCharacteristics!P27/1.645","v":417.629179331307},{"$f":"PopulationCharacteristics!T27/1.645","v":103.73250569641488},430.31914222701937,{"$f":"(PopulationCharacteristics!P27-PopulationCharacteristics!S27)","v":-28},6.5067986181354454E-2,1.645]
["Y",{"$f":"PopulationCharacteristics!Q28/1.645","v":55.652159101086063},{"$f":"PopulationCharacteristics!T28/1.645","v":90.148101911620628},105.94264056969948,{"$f":"(PopulationCharacteristics!M28-PopulationCharacteristics!S28)","v":-432},4.0776782386860368,1.645,"Population By Age 65 to 74 yrs.",null,"N",{"$f":"PopulationCharacteristics!P28/1.645","v":201.21580547112461},{"$f":"PopulationCharacteristics!T28/1.645","v":90.148101911620628},220.4869171848103,{"$f":"(PopulationCharacteristics!P28-PopulationCharacteristics!S28)","v":-101},0.45807706547659988,1.645]
["Y",{"$f":"PopulationCharacteristics!Q29/1.645","v":56.792562743473127},{"$f":"PopulationCharacteristics!T29/1.645","v":43.785879891475034},71.711912963203048,{"$f":"(PopulationCharacteristics!M29-PopulationCharacteristics!S29)","v":-143},1.9940898811802221,1.645,"Population By Age Over 74 yrs. ",null,"N",{"$f":"PopulationCharacteristics!P29/1.645","v":158.66261398176292},{"$f":"PopulationCharacteristics!T29/1.645","v":43.785879891475034},164.59352463993409,{"$f":"(PopulationCharacteristics!P29-PopulationCharacteristics!S29)","v":118},0.71691763244111573,1.645]
["Y",{"$f":"PopulationCharacteristics!Q$30/1.645","v":1.3373860182370823},{"$f":"PopulationCharacteristics!T$30/1.645","v":2.4924012158054709},2.8285447110350979,{"$f":"(PopulationCharacteristics!P30-PopulationCharacteristics!S30)","v":6.5999999999999943},2.3333553732600336,1.645,"Population By Age Median Age        ",null,"N",{"$f":"PopulationCharacteristics!P30/1.645","v":26.626139817629177},{"$f":"PopulationCharacteristics!T30/1.645","v":2.4924012158054709},{"$f":"SQRT((K11^2)+(L11^2))","v":26.742538873646353},{"$f":"(PopulationCharacteristics!P30-PopulationCharacteristics!S30)","v":6.5999999999999943},0.24679780895837145,1.645]
["Y",{"$f":"PopulationCharacteristics!E51/1.645","v":26.747720364741642},{"$f":"PopulationCharacteristics!K51/1.645","v":117.32522796352583},120.33557105612505,{"$f":"PopulationCharacteristics!D51-PopulationCharacteristics!J51","v":2512},20.874958068951965,1.645,"Total Households",null,"N",{"$f":"PopulationCharacteristics!H51/1.645","v":68.693009118541028},{"$f":"PopulationCharacteristics!K51/1.645","v":117.32522796352583},135.95564945397916,{"$f":"PopulationCharacteristics!G51-PopulationCharacteristics!J51","v":-68},0.50016310666823682,1.645]
["N",{"$f":"PopulationCharacteristics!E52/1.645","v":0.10334346504559271},{"$f":"PopulationCharacteristics!K52/1.645","v":0.16413373860182373},0.19395812928320752,{"$f":"PopulationCharacteristics!D52-PopulationCharacteristics!J52","v":-7.5441755424665136E-2},0.38895897637014754,1.645,"Persons per Household",null,"N",{"$f":"PopulationCharacteristics!H52/1.645","v":9.7264437689969604E-2},{"$f":"PopulationCharacteristics!K52/1.645","v":0.16413373860182373},0.19078850852857407,{"$f":"PopulationCharacteristics!G52-PopulationCharacteristics!J52","v":-0.10578938574639984},0.55448510270499829,1.645]
["Y",{"$f":"PopulationCharacteristics!E53/1.645","v":26.747720364741642},{"$f":"PopulationCharacteristics!K53/1.645","v":117.32522796352583},120.33557105612505,{"$f":"PopulationCharacteristics!D53-PopulationCharacteristics!J53","v":2635},21.897099725990614,1.645,"Family Households",null,"N",{"$f":"PopulationCharacteristics!H53/1.645","v":68.693009118541028},{"$f":"PopulationCharacteristics!K53/1.645","v":117.32522796352583},135.95564945397916,{"$f":"PopulationCharacteristics!G53-PopulationCharacteristics!J53","v":44},0.32363495137356502,1.645]
["N",{"$f":"PopulationCharacteristics!E54/1.645","v":0.16951342916126955},{"$f":"PopulationCharacteristics!K54/1.645","v":0.28843578904177375},0.33455942232459002,{"$f":"PopulationCharacteristics!D54-PopulationCharacteristics!J54","v":-0.43677520045884455},1.3055235372659288,1.645,"Persons per Family Household",null,"N",{"$f":"PopulationCharacteristics!H54/1.645","v":0.28843578904177375},{"$f":"PopulationCharacteristics!K54/1.645","v":0.28843578904177375},0.40790980473666139,{"$f":"PopulationCharacteristics!G54-PopulationCharacteristics!J54","v":-0.35878977932059231},0.87958116023276267,1.645]
["Y",{"$f":"PopulationCharacteristics!E55/1.645","v":214.58966565349544},{"$f":"PopulationCharacteristics!K55/1.645","v":80.243161094224916},229.10191947618574,{"$f":"PopulationCharacteristics!D55-PopulationCharacteristics!J55","v":1894},8.2670629924463555,1.645,"Married-Couple Family Hh",null,"N",{"$f":"PopulationCharacteristics!H55/1.645","v":63.829787234042556},{"$f":"PopulationCharacteristics!K55/1.645","v":80.243161094224916},102.53392921729311,{"$f":"PopulationCharacteristics!G55-PopulationCharacteristics!J55","v":75},0.73146518984030795,1.645]
["Y",{"$f":"PopulationCharacteristics!E56/1.645","v":214.58966565349544},{"$f":"PopulationCharacteristics!K56/1.645","v":77.203647416413375},228.0550981225301,{"$f":"PopulationCharacteristics!D56-PopulationCharacteristics!J56","v":2367},10.379070757402019,1.645,"Single-Parent Family Hh",null,"N",{"$f":"PopulationCharacteristics!H56/1.645","v":48.632218844984799},{"$f":"PopulationCharacteristics!K56/1.645","v":77.203647416413375},91.244155342599157,{"$f":"PopulationCharacteristics!G56-PopulationCharacteristics!J56","v":-31},0.33974778859646071,1.645]
["Y",{"$f":"PopulationCharacteristics!E57/1.645","v":74.772036474164139},{"$f":"PopulationCharacteristics!K57/1.645","v":127.05167173252279},147.42111357781309,{"$f":"PopulationCharacteristics!D57-PopulationCharacteristics!J57","v":-556},3.7715086157352031,1.645,"Non-Family Households*",null,"N",{"$f":"PopulationCharacteristics!H57/1.645","v":82.674772036474167},{"$f":"PopulationCharacteristics!K57/1.645","v":127.05167173252279},151.58247003302097,{"$f":"PopulationCharacteristics!G57-PopulationCharacteristics!J57","v":-112},0.73887171765707305,1.645]
["N",{"$f":"PopulationCharacteristics!E58/1.645","v":0.29366841254501791},{"$f":"PopulationCharacteristics!K58/1.645","v":0.29532056743088941},0.41647974029286627,{"$f":"PopulationCharacteristics!D58-PopulationCharacteristics!J58","v":-4.0737378123396395E-2},9.7813588950929745E-2,1.645,"Persons per Non-Family Hh",null,"N",{"$f":"PopulationCharacteristics!H58/1.645","v":0.29532056743088941},{"$f":"PopulationCharacteristics!K58/1.645","v":0.29532056743088941},0.41764635170848191,{"$f":"PopulationCharacteristics!G58-PopulationCharacteristics!J58","v":4.3567988993350015E-2},0.10431789674475732,1.645]
["N",{"$f":"PopulationCharacteristics!D36/1.645","v":108.8145896656535},{"$f":"PopulationCharacteristics!J36/1.645","v":86.322188449848028},138.89613076999527,{"$f":"PopulationCharacteristics!C36-PopulationCharacteristics!I36","v":-41},0.29518460861875162,1.645,"Ethnicity -White",null,"N",{"$f":"PopulationCharacteristics!G36/1.645","v":86.322188449848028},{"$f":"PopulationCharacteristics!J36/1.645","v":86.322188449848028},122.07800963950122,{"$f":"PopulationCharacteristics!F36-PopulationCharacteristics!I36","v":0},{"$f":"ABS((N20/M20))","v":0},1.645]
["N",{"$f":"PopulationCharacteristics!D37/1.645","v":8.5106382978723403},{"$f":"PopulationCharacteristics!J37/1.645","v":10.94224924012158},13.862315198773713,{"$f":"PopulationCharacteristics!C37-PopulationCharacteristics!I37","v":-3},0.21641406626400947,1.645,"Ethnicity -Black",null,"N",{"$f":"PopulationCharacteristics!G37/1.645","v":10.94224924012158},{"$f":"PopulationCharacteristics!J37/1.645","v":10.94224924012158},15.474677278246631,{"$f":"PopulationCharacteristics!F37-PopulationCharacteristics!I37","v":0},{"$f":"ABS((N21/M21))","v":0},1.645]
["N",{"$f":"PopulationCharacteristics!D38/1.645","v":18.844984802431611},{"$f":"PopulationCharacteristics!J38/1.645","v":6.6869300911854106},19.996211797445017,{"$f":"PopulationCharacteristics!C38-PopulationCharacteristics!I38","v":19},0.95017997371020513,1.645,"Ethnicity -American Indian",null,"N",{"$f":"PopulationCharacteristics!G38/1.645","v":6.6869300911854106},{"$f":"PopulationCharacteristics!J38/1.645","v":6.6869300911854106},9.4567472255951639,{"$f":"PopulationCharacteristics!F38-PopulationCharacteristics!I38","v":0},0,1.645]
["N",{"$f":"PopulationCharacteristics!D39/1.645","v":71.796890393155934},{"$f":"PopulationCharacteristics!J39/1.645","v":14.952430244679446},73.337361831121598,{"$f":"PopulationCharacteristics!C39-PopulationCharacteristics!I39","v":62},0.84540810375441611,1.645,"Ethnicity -Asian &Pacific Is",null,"N",{"$f":"PopulationCharacteristics!G39/1.645","v":14.952430244679446},{"$f":"PopulationCharacteristics!J39/1.645","v":14.952430244679446},21.145929642463329,{"$f":"PopulationCharacteristics!F39-PopulationCharacteristics!I39","v":0},0,1.645]
["N",{"$f":"PopulationCharacteristics!D40/1.645","v":55.652159101086063},{"$f":"PopulationCharacteristics!J40/1.645","v":28.751935782092325},62.640534989974007,{"$f":"PopulationCharacteristics!C40-PopulationCharacteristics!I40","v":-10},0.1596410375741612,1.645,"Ethnicity -Other*",null,"N",{"$f":"PopulationCharacteristics!G40/1.645","v":28.751935782092325},{"$f":"PopulationCharacteristics!J40/1.645","v":28.751935782092325},40.661377527515249,{"$f":"PopulationCharacteristics!F40-PopulationCharacteristics!I40","v":0},0,1.645]
["N",{"$f":"PopulationCharacteristics!D42/1.645","v":90.577507598784194},{"$f":"PopulationCharacteristics!J42/1.645","v":79.635258358662611},120.60704480526314,{"$f":"PopulationCharacteristics!C42-PopulationCharacteristics!I42","v":46},0.38140392274989743,1.645,"Ethnicity -Hispanic",null,"Y",{"$f":"PopulationCharacteristics!G42/1.645","v":79.635258358662611},{"$f":"PopulationCharacteristics!J42/1.645","v":79.635258358662611},112.62126241390605,{"$f":"PopulationCharacteristics!F42-PopulationCharacteristics!I41","v":-4505},40.001327488615857,1.645]
["Y",{"$f":"PlaceOfBirthAndPriorRes!E8/1.645","v":59.574468085106382},{"$f":"PlaceOfBirthAndPriorRes!M8/1.645","v":67.477203647416417},90.012722765719431,{"$f":"PlaceOfBirthAndPriorRes!D8-PlaceOfBirthAndPriorRes!L8","v":-346},3.8439010549714325,1.645,"Place of Birth - United States Native",null,"Y",{"$f":"PlaceOfBirthAndPriorRes!I8/1.645","v":62.61398176291793},{"$f":"PlaceOfBirthAndPriorRes!M8/1.645","v":67.477203647416417},92.052613891632248,{"$f":"PlaceOfBirthAndPriorRes!H8-PlaceOfBirthAndPriorRes!L8","v":-473},5.138365767177814,1.645]
["N",{"$f":"PlaceOfBirthAndPriorRes!E9/1.645","v":181.76291793313069},{"$f":"PlaceOfBirthAndPriorRes!M9/1.645","v":223.70820668693008},288.24142671491245,{"$f":"PlaceOfBirthAndPriorRes!D9-PlaceOfBirthAndPriorRes!L9","v":0},0,1.645,"Place of Birth - New Hampshire Native",null,"N",{"$f":"PlaceOfBirthAndPriorRes!I9/1.645","v":153.19148936170214},{"$f":"PlaceOfBirthAndPriorRes!M9/1.645","v":223.70820668693008},271.13279800116169,{"$f":"PlaceOfBirthAndPriorRes!H9-PlaceOfBirthAndPriorRes!L9","v":7},2.5817606912941635E-2,1.645]
["N",{"$f":"PlaceOfBirthAndPriorRes!E10/1.645","v":167.17325227963525},{"$f":"PlaceOfBirthAndPriorRes!M10/1.645","v":232.21884498480242},286.13368945971087,{"$f":"PlaceOfBirthAndPriorRes!D10-PlaceOfBirthAndPriorRes!L10","v":-319},1.1148634772869586,1.645,"Place of Birth - Born in Different State",null,"N",{"$f":"PlaceOfBirthAndPriorRes!I10/1.645","v":153.19148936170214},{"$f":"PlaceOfBirthAndPriorRes!M10/1.645","v":232.21884498480242},278.19637736486106,{"$f":"PlaceOfBirthAndPriorRes!H10-PlaceOfBirthAndPriorRes!L10","v":-434},1.5600490707713237,1.645]
["N",{"$f":"PlaceOfBirthAndPriorRes!E11/1.645","v":175.07598784194528},{"$f":"PlaceOfBirthAndPriorRes!M11/1.645","v":172.03647416413375},245.45498561174028,{"$f":"PlaceOfBirthAndPriorRes!D11-PlaceOfBirthAndPriorRes!L11","v":-136},0.55407308049193282,1.645,"Place of Birth - Northeast",null,"N",{"$f":"PlaceOfBirthAndPriorRes!I11/1.645","v":159.27051671732522},{"$f":"PlaceOfBirthAndPriorRes!M11/1.645","v":172.03647416413375},234.44326805909876,{"$f":"PlaceOfBirthAndPriorRes!H11-PlaceOfBirthAndPriorRes!L11","v":-292},1.2455038799680624,1.645]
["N",{"$f":"PlaceOfBirthAndPriorRes!E12/1.645","v":41.945288753799389},{"$f":"PlaceOfBirthAndPriorRes!M12/1.645","v":42.553191489361701},59.750994590633333,{"$f":"PlaceOfBirthAndPriorRes!D12-PlaceOfBirthAndPriorRes!L12","v":43},0.71965329271256606,1.645,"Place of Birth - Midwest",null,"N",{"$f":"PlaceOfBirthAndPriorRes!I12/1.645","v":29.179331306990882},{"$f":"PlaceOfBirthAndPriorRes!M12/1.645","v":42.553191489361701},51.596584009539079,{"$f":"PlaceOfBirthAndPriorRes!H12-PlaceOfBirthAndPriorRes!L12","v":-18},0.34886030433084864,1.645]
["N",{"$f":"PlaceOfBirthAndPriorRes!E13/1.645","v":31.003039513677813},{"$f":"PlaceOfBirthAndPriorRes!M13/1.645","v":113.06990881458967},117.24330572969312,{"$f":"PlaceOfBirthAndPriorRes!D13-PlaceOfBirthAndPriorRes!L13","v":-188},1.6035030642469081,1.645,"Place of Birth - South",null,"N",{"$f":"PlaceOfBirthAndPriorRes!I13/1.645","v":60.182370820668694},{"$f":"PlaceOfBirthAndPriorRes!M13/1.645","v":113.06990881458967},128.08872720476262,{"$f":"PlaceOfBirthAndPriorRes!H13-PlaceOfBirthAndPriorRes!L13","v":-100},0.78070882725019208,1.645]
["N",{"$f":"PlaceOfBirthAndPriorRes!E14/1.645","v":25.531914893617021},{"$f":"PlaceOfBirthAndPriorRes!M14/1.645","v":57.750759878419451},63.142924739591884,{"$f":"PlaceOfBirthAndPriorRes!D14-PlaceOfBirthAndPriorRes!L14","v":-38},0.60180931049228448,1.645,"Place of Birth - West",null,"N",{"$f":"PlaceOfBirthAndPriorRes!I14/1.645","v":34.042553191489361},{"$f":"PlaceOfBirthAndPriorRes!M14/1.645","v":57.750759878419451},67.037643860224122,{"$f":"PlaceOfBirthAndPriorRes!H14-PlaceOfBirthAndPriorRes!L14","v":-24},0.35800780901609336,1.645]
["N",{"$f":"PlaceOfBirthAndPriorRes!E15/1.645","v":20.668693009118542},{"$f":"PlaceOfBirthAndPriorRes!M15/1.645","v":44.984802431610944},49.505831176905374,{"$f":"PlaceOfBirthAndPriorRes!D15-PlaceOfBirthAndPriorRes!L15","v":-27},0.54539029763014235,1.645,"Place of Birth - Native Born Outside US",null,"N",{"$f":"PlaceOfBirthAndPriorRes!I15/1.645","v":13.98176291793313},{"$f":"PlaceOfBirthAndPriorRes!M15/1.645","v":44.984802431610944},47.107559309566867,{"$f":"PlaceOfBirthAndPriorRes!H15-PlaceOfBirthAndPriorRes!L15","v":-46},0.97648871379031654,1.645]
["N",{"$f":"PlaceOfBirthAndPriorRes!E16/1.645","v":58.358662613981764},{"$f":"PlaceOfBirthAndPriorRes!M16/1.645","v":67.477203647416417},89.212703771197624,{"$f":"PlaceOfBirthAndPriorRes!D16-PlaceOfBirthAndPriorRes!L16","v":13},0.14571915714314509,1.645,"Place of Birth - Foreign Born",null,"N",{"$f":"PlaceOfBirthAndPriorRes!I16/1.645","v":60.182370820668694},{"$f":"PlaceOfBirthAndPriorRes!M16/1.645","v":67.477203647416417},90.416208556162005,{"$f":"PlaceOfBirthAndPriorRes!H16-PlaceOfBirthAndPriorRes!L16","v":91},1.0064567122771508,1.645]
["N",{"$f":"PlaceOfBirthAndPriorRes!E17/1.645","v":35.258358662613979},{"$f":"PlaceOfBirthAndPriorRes!M17/1.645","v":47.416413373860181},59.08864622600786,{"$f":"PlaceOfBirthAndPriorRes!D17-PlaceOfBirthAndPriorRes!L17","v":-7},0.11846607507685547,1.645,"Place of Birth - Naturalized Citizen",null,"N",{"$f":"PlaceOfBirthAndPriorRes!I17/1.645","v":55.927051671732521},{"$f":"PlaceOfBirthAndPriorRes!M17/1.645","v":47.416413373860181},73.322243323110527,{"$f":"PlaceOfBirthAndPriorRes!H17-PlaceOfBirthAndPriorRes!L17","v":112},1.5275037277084862,1.645]
["N",{"$f":"PlaceOfBirthAndPriorRes!E18/1.645","v":51.063829787234042},{"$f":"PlaceOfBirthAndPriorRes!M18/1.645","v":52.887537993920972},73.516028099986769,{"$f":"PlaceOfBirthAndPriorRes!D18-PlaceOfBirthAndPriorRes!L18","v":20},0.27204951786566389,1.645,"Place of Birth - Not a Citizen",null,"N",{"$f":"PlaceOfBirthAndPriorRes!I18/1.645","v":31.003039513677813},{"$f":"PlaceOfBirthAndPriorRes!M18/1.645","v":52.887537993920972},61.304813303239918,{"$f":"PlaceOfBirthAndPriorRes!H18-PlaceOfBirthAndPriorRes!L18","v":-21},0.34255059054050108,1.645]
["Y",{"$f":"PlaceOfBirthAndPriorRes!E43/1.645","v":19.45288753799392},{"$f":"PlaceOfBirthAndPriorRes!I43/1.645","v":24.924012158054712},31.616786927527887,{"$f":"PlaceOfBirthAndPriorRes!D43-PlaceOfBirthAndPriorRes!H43","v":88},2.7833315321292424,1.645,"Place of Residence for Population Total:",null,"Y",{"$f":"PlaceOfBirthAndPriorRes!I43/1.645","v":24.924012158054712},{"$f":"PlaceOfBirthAndPriorRes!M43/1.645","v":27.355623100303951},{"$f":"SQRT((K37^2)+(L37^2))","v":37.007249252825346},{"$f":"PlaceOfBirthAndPriorRes!H43-PlaceOfBirthAndPriorRes!L43","v":-393},10.61954098006882,1.645]
["N",{"$f":"PlaceOfBirthAndPriorRes!E44/1.645","v":194.52887537993919},{"$f":"PlaceOfBirthAndPriorRes!I44/1.645","v":128.26747720364742},233.01079173457208,{"$f":"PlaceOfBirthAndPriorRes!D44-PlaceOfBirthAndPriorRes!H44","v":159},0.68237182843067856,1.645,"Place of Residence for Population  Same house ",null,"Y",{"$f":"PlaceOfBirthAndPriorRes!I8/1.645","v":62.61398176291793},{"$f":"PlaceOfBirthAndPriorRes!M8/1.645","v":67.477203647416417},{"$f":"SQRT((K38^2)+(L38^2))","v":92.052613891632248},{"$f":"PlaceOfBirthAndPriorRes!H8-PlaceOfBirthAndPriorRes!L8","v":-473},5.138365767177814,1.645]
["N",{"$f":"PlaceOfBirthAndPriorRes!E45/1.645","v":201.99300768947467},{"$f":"PlaceOfBirthAndPriorRes!I45/1.645","v":128.79936968196986},239.56304553480888,{"$f":"PlaceOfBirthAndPriorRes!D45-PlaceOfBirthAndPriorRes!H45","v":-71},0.29637292279991317,1.645,"Place of Residence for Population  Different house",null,"N",{"$f":"PlaceOfBirthAndPriorRes!I9/1.645","v":153.19148936170214},{"$f":"PlaceOfBirthAndPriorRes!M9/1.645","v":223.70820668693008},271.13279800116169,{"$f":"PlaceOfBirthAndPriorRes!H9-PlaceOfBirthAndPriorRes!L9","v":7},2.5817606912941635E-2,1.645]
["N",{"$f":"PlaceOfBirthAndPriorRes!E46/1.645","v":200.68157438796706},{"$f":"PlaceOfBirthAndPriorRes!I46/1.645","v":120.01576624900439},233.83087573536739,{"$f":"PlaceOfBirthAndPriorRes!D46-PlaceOfBirthAndPriorRes!H46","v":5},2.1382975983285597E-2,1.645,"Place of Residence for Population in New Hampshire",null,"N",{"$f":"PlaceOfBirthAndPriorRes!I10/1.645","v":153.19148936170214},{"$f":"PlaceOfBirthAndPriorRes!M10/1.645","v":232.21884498480242},278.19637736486106,{"$f":"PlaceOfBirthAndPriorRes!H10-PlaceOfBirthAndPriorRes!L10","v":-434},1.5600490707713237,1.645]
["N",{"$f":"PlaceOfBirthAndPriorRes!E47/1.645","v":198.17629179331306},{"$f":"PlaceOfBirthAndPriorRes!I47/1.645","v":73.556231003039514},211.38675868729544,{"$f":"PlaceOfBirthAndPriorRes!D47-PlaceOfBirthAndPriorRes!H47","v":232},1.0975143449888352,1.645,"Place of Residence for Population Same county",null,"N",{"$f":"PlaceOfBirthAndPriorRes!I11/1.645","v":159.27051671732522},{"$f":"PlaceOfBirthAndPriorRes!M11/1.645","v":172.03647416413375},234.44326805909876,{"$f":"PlaceOfBirthAndPriorRes!H11-PlaceOfBirthAndPriorRes!L11","v":-292},1.2455038799680624,1.645]
["Y",{"$f":"PlaceOfBirthAndPriorRes!E48/1.645","v":31.610942249240122},{"$f":"PlaceOfBirthAndPriorRes!I48/1.645","v":94.832826747720361},99.962576491644811,{"$f":"PlaceOfBirthAndPriorRes!D48-PlaceOfBirthAndPriorRes!H48","v":-227},2.2708498316764913,1.645,"Place of Residence for Population Different county",null,"N",{"$f":"PlaceOfBirthAndPriorRes!I12/1.645","v":29.179331306990882},{"$f":"PlaceOfBirthAndPriorRes!M12/1.645","v":42.553191489361701},51.596584009539079,{"$f":"PlaceOfBirthAndPriorRes!H12-PlaceOfBirthAndPriorRes!L12","v":-18},0.34886030433084864,1.645]
["N",{"$f":"PlaceOfBirthAndPriorRes!E49/1.645","v":18.237082066869302},{"$f":"PlaceOfBirthAndPriorRes!I49/1.645","v":45.59270516717325},49.104846265664165,{"$f":"PlaceOfBirthAndPriorRes!D49-PlaceOfBirthAndPriorRes!H49","v":-78},1.5884379227665018,1.645,"Place of Residence for Population in Different state",null,"N",{"$f":"PlaceOfBirthAndPriorRes!I13/1.645","v":60.182370820668694},{"$f":"PlaceOfBirthAndPriorRes!M13/1.645","v":113.06990881458967},128.08872720476262,{"$f":"PlaceOfBirthAndPriorRes!H13-PlaceOfBirthAndPriorRes!L13","v":-100},0.78070882725019208,1.645]
["N",{"$f":"PlaceOfBirthAndPriorRes!E50/1.645","v":13.98176291793313},{"$f":"PlaceOfBirthAndPriorRes!I50/1.645","v":10.334346504559271},17.38644333869312,{"$f":"PlaceOfBirthAndPriorRes!D50-PlaceOfBirthAndPriorRes!H50","v":2},0.1150321524097483,1.645,"Place of Residence for Population Elsewhere",null,"N",{"$f":"PlaceOfBirthAndPriorRes!I14/1.645","v":34.042553191489361},{"$f":"PlaceOfBirthAndPriorRes!M14/1.645","v":57.750759878419451},67.037643860224122,{"$f":"PlaceOfBirthAndPriorRes!H14-PlaceOfBirthAndPriorRes!L14","v":-24},0.35800780901609336,1.645]
["Y",{"$f":"SchoolEnrolEduAttain!G23/1.645","v":29.787234042553191},{"$f":"SchoolEnrolEduAttain!M23/1.645","v":49.240121580547111},{"$f":"SQRT((B45^2)+(C45^2))","v":57.548839129672295},{"$f":"SchoolEnrolEduAttain!F23-SchoolEnrolEduAttain!L23","v":-231},4.0139819237621417,1.645,"Total Population 3 years & over",null,"Y",{"$f":"SchoolEnrolEduAttain!J23/1.645","v":32.826747720364743},{"$f":"SchoolEnrolEduAttain!M23/1.645","v":49.240121580547111},{"$f":"SQRT((K45^2)+(L45^2))","v":59.179261056247846},{"$f":"SchoolEnrolEduAttain!I23-SchoolEnrolEduAttain!L23","v":-326},5.5086865598093269,1.645]
["N",{"$f":"SchoolEnrolEduAttain!G24/1.645","v":92.401215805471125},{"$f":"SchoolEnrolEduAttain!M24/1.645","v":135.56231003039514},{"$f":"SQRT((B46^2)+(C46^2))","v":164.05829629465927},{"$f":"SchoolEnrolEduAttain!F24-SchoolEnrolEduAttain!L24","v":-140},0.85335519849938568,1.645,"Population 3 years & over enrolled in school",null,"N",{"$f":"SchoolEnrolEduAttain!J24/1.645","v":114.28571428571428},{"$f":"SchoolEnrolEduAttain!M24/1.645","v":135.56231003039514},{"$f":"SQRT((K46^2)+(L46^2))","v":177.30866981220316},{"$f":"SchoolEnrolEduAttain!I24-SchoolEnrolEduAttain!L24","v":-135},0.76138408879264352,1.645]
["Y",{"$f":"SchoolEnrolEduAttain!G25/1.645","v":26.393061818957339},{"$f":"SchoolEnrolEduAttain!M25/1.645","v":46.236588133267887},53.239231722337543,{"$f":"SchoolEnrolEduAttain!F25-SchoolEnrolEduAttain!L25","v":-96},1.8031815429019677,1.645,"Preprimary (Nursery, Preschool, Kindergarten)",null,"N",{"$f":"SchoolEnrolEduAttain!J25/1.645","v":37.797669438808057},{"$f":"SchoolEnrolEduAttain!M25/1.645","v":46.236588133267887},59.720062769649303,{"$f":"SchoolEnrolEduAttain!I25-SchoolEnrolEduAttain!L25","v":-74},1.2391145716880927,1.645]
["N",{"$f":"SchoolEnrolEduAttain!G26/1.645","v":12.76595744680851},{"$f":"SchoolEnrolEduAttain!M26/1.645","v":19.45288753799392},23.267670770826307,{"$f":"SchoolEnrolEduAttain!F26-SchoolEnrolEduAttain!L26","v":-15},0.64467131874701633,1.645,"Nursery school and Preschool",null,"N",{"$f":"SchoolEnrolEduAttain!J26/1.645","v":33.434650455927049},{"$f":"SchoolEnrolEduAttain!M26/1.645","v":19.45288753799392},38.681916765794604,{"$f":"SchoolEnrolEduAttain!I26-SchoolEnrolEduAttain!L26","v":16},0.41362996815474196,1.645]
["Y",{"$f":"SchoolEnrolEduAttain!G27/1.645","v":23.100303951367781},{"$f":"SchoolEnrolEduAttain!M27/1.645","v":41.945288753799389},47.885606305916056,{"$f":"SchoolEnrolEduAttain!F27-SchoolEnrolEduAttain!L27","v":-81},1.6915312606158399,1.645,"Kindergarten",null,"Y",{"$f":"SchoolEnrolEduAttain!J27/1.645","v":17.62917933130699},{"$f":"SchoolEnrolEduAttain!M27/1.645","v":41.945288753799389},45.499397935961646,{"$f":"SchoolEnrolEduAttain!I27-SchoolEnrolEduAttain!L27","v":-90},1.9780481519045801,1.645]
["N",{"$f":"SchoolEnrolEduAttain!G28/1.645","v":136.82133731145888},{"$f":"SchoolEnrolEduAttain!M28/1.645","v":113.20382957163491},177.58148938833622,{"$f":"SchoolEnrolEduAttain!F28-SchoolEnrolEduAttain!L28","v":-110},0.61943393074855546,1.645,"Elementary through High school",null,"Y",{"$f":"SchoolEnrolEduAttain!J28/1.645","v":76.397678975672974},{"$f":"SchoolEnrolEduAttain!M28/1.645","v":113.20382957163491},136.57127217154326,{"$f":"SchoolEnrolEduAttain!I28-SchoolEnrolEduAttain!L28","v":-236},1.7280354517278507,1.645]
["N",{"$f":"SchoolEnrolEduAttain!G29/1.645","v":102.00636884946384},{"$f":"SchoolEnrolEduAttain!M29/1.645","v":58.92895112159389},117.80458635445424,{"$f":"SchoolEnrolEduAttain!F29-SchoolEnrolEduAttain!L29","v":35},0.29710218492420037,1.645,"Elementary school (grades 1-8)",null,"N",{"$f":"SchoolEnrolEduAttain!J29/1.645","v":68.087820180392285},{"$f":"SchoolEnrolEduAttain!M29/1.645","v":58.92895112159389},90.047612612487598,{"$f":"SchoolEnrolEduAttain!I29-SchoolEnrolEduAttain!L29","v":12},0.13326283342614534,1.645]
["N",{"$f":"SchoolEnrolEduAttain!G30/1.645","v":91.1854103343465},{"$f":"SchoolEnrolEduAttain!M30/1.645","v":96.656534954407292},132.88064120569146,{"$f":"SchoolEnrolEduAttain!F30-SchoolEnrolEduAttain!L30","v":-145},1.091204848835343,1.645,"High school (grades 9-12)",null,"Y",{"$f":"SchoolEnrolEduAttain!J30/1.645","v":34.650455927051674},{"$f":"SchoolEnrolEduAttain!M30/1.645","v":96.656534954407292},102.67979278000666,{"$f":"SchoolEnrolEduAttain!I30-SchoolEnrolEduAttain!L30","v":-248},2.4152756183618771,1.645]
["N",{"$f":"SchoolEnrolEduAttain!G31/1.645","v":53.28779817826414},{"$f":"SchoolEnrolEduAttain!M31/1.645","v":44.638443162761874},69.51388381239056,{"$f":"SchoolEnrolEduAttain!F31-SchoolEnrolEduAttain!L31","v":66},0.94945061878754899,1.645,"College or Graduate School",null,"Y",{"$f":"SchoolEnrolEduAttain!J31/1.645","v":85.256055969640812},{"$f":"SchoolEnrolEduAttain!M31/1.645","v":44.638443162761874},96.235054359072549,{"$f":"SchoolEnrolEduAttain!I31-SchoolEnrolEduAttain!L31","v":175},1.818464188184894,1.645]
["N",{"$f":"SchoolEnrolEduAttain!G52/1.645","v":96.048632218844986},{"$f":"SchoolEnrolEduAttain!M52/1.645","v":178.11550151975683},{"$f":"SQRT((B54^2)+(C54^2))","v":202.36222876995956},{"$f":"SchoolEnrolEduAttain!I52-SchoolEnrolEduAttain!L52","v":43},0.21249024712453307,1.645,"Population 25 years and over",null,"N",{"$f":"SchoolEnrolEduAttain!J52/1.645","v":100.91185410334346},{"$f":"SchoolEnrolEduAttain!M52/1.645","v":178.11550151975683},{"$f":"SQRT((K54^2)+(L54^2))","v":204.71525145970188},{"$f":"SchoolEnrolEduAttain!I52-SchoolEnrolEduAttain!L52","v":43},0.2100478576627425,1.645]
["N",{"$f":"SchoolEnrolEduAttain!G53/1.645","v":37.295712219277732},{"$f":"SchoolEnrolEduAttain!M53/1.645","v":34.495467377777771},{"$f":"SQRT((B55^2)+(C55^2))","v":50.802632014045422},{"$f":"SchoolEnrolEduAttain!I53-SchoolEnrolEduAttain!L53","v":1},1.9684019515436319E-2,1.645,"Less than 9th Grade",null,"N",{"$f":"SchoolEnrolEduAttain!J53/1.645","v":33.329483676286443},{"$f":"SchoolEnrolEduAttain!M53/1.645","v":34.495467377777771},{"$f":"SQRT((K55^2)+(L55^2))","v":47.966569105358943},{"$f":"SchoolEnrolEduAttain!I53-SchoolEnrolEduAttain!L53","v":1},2.084785338312382E-2,1.645]
["N",{"$f":"SchoolEnrolEduAttain!G54/1.645","v":70.214739639887071},{"$f":"SchoolEnrolEduAttain!M54/1.645","v":85.093355494455125},110.32220452838514,{"$f":"SchoolEnrolEduAttain!I54-SchoolEnrolEduAttain!L54","v":-61},0.55292586166826574,1.645,"9th to 12th Grade, no Diploma",null,"N",{"$f":"SchoolEnrolEduAttain!J54/1.645","v":54.606451477920672},{"$f":"SchoolEnrolEduAttain!M54/1.645","v":85.093355494455125},101.10758474177999,{"$f":"SchoolEnrolEduAttain!I54-SchoolEnrolEduAttain!L54","v":-61},0.60331774471508459,1.645]
["Y",{"$f":"SchoolEnrolEduAttain!G55/1.645","v":125.56392506056116},{"$f":"SchoolEnrolEduAttain!M55/1.645","v":143.17238708936418},190.43274850056898,{"$f":"SchoolEnrolEduAttain!I55-SchoolEnrolEduAttain!L55","v":373},1.9586967206897481,1.645,"High School Graduate ",null,"Y",{"$f":"SchoolEnrolEduAttain!J55/1.645","v":101.3448796831086},{"$f":"SchoolEnrolEduAttain!M55/1.645","v":143.17238708936418},175.41127974805522,{"$f":"SchoolEnrolEduAttain!I55-SchoolEnrolEduAttain!L55","v":373},2.126431096881245,1.645]
["N",{"$f":"SchoolEnrolEduAttain!G56/1.645","v":89.336886325423876},{"$f":"SchoolEnrolEduAttain!M56/1.645","v":88.751717508996634},125.92833922163211,{"$f":"SchoolEnrolEduAttain!I56-SchoolEnrolEduAttain!L56","v":89},0.70675116141539229,1.645,"Some College, No Degree",null,"N",{"$f":"SchoolEnrolEduAttain!J56/1.645","v":91.260354207462939},{"$f":"SchoolEnrolEduAttain!M56/1.645","v":88.751717508996634},127.30011630343603,{"$f":"SchoolEnrolEduAttain!I56-SchoolEnrolEduAttain!L56","v":89},0.69913526070830267,1.645]
["Y",{"$f":"SchoolEnrolEduAttain!G57/1.645","v":64.187735663405789},{"$f":"SchoolEnrolEduAttain!M57/1.645","v":108.61063224102899},126.15995737709846,{"$f":"SchoolEnrolEduAttain!I57-SchoolEnrolEduAttain!L57","v":-222},1.7596708544885666,1.645,"Associate Degree",null,"Y",{"$f":"SchoolEnrolEduAttain!J57/1.645","v":65.836174983208551},{"$f":"SchoolEnrolEduAttain!M57/1.645","v":108.61063224102899},127.00658003511354,{"$f":"SchoolEnrolEduAttain!I57-SchoolEnrolEduAttain!L57","v":-222},1.7479409329707454,1.645]
["N",{"$f":"SchoolEnrolEduAttain!G58/1.645","v":78.910364654997977},{"$f":"SchoolEnrolEduAttain!M58/1.645","v":76.114180687761461},109.63673723599199,{"$f":"SchoolEnrolEduAttain!I58-SchoolEnrolEduAttain!L58","v":-85},0.77528757369930068,1.645,"Bachelor's Degree",null,"N",{"$f":"SchoolEnrolEduAttain!J58/1.645","v":51.646695167804118},{"$f":"SchoolEnrolEduAttain!M58/1.645","v":76.114180687761461},91.982333214184564,{"$f":"SchoolEnrolEduAttain!I58-SchoolEnrolEduAttain!L58","v":-85},0.92409049683567035,1.645]
["N",{"$f":"SchoolEnrolEduAttain!G59/1.645","v":22.211338488079161},{"$f":"SchoolEnrolEduAttain!M59/1.645","v":45.847313398090705},50.94428037822081,{"$f":"SchoolEnrolEduAttain!I59-SchoolEnrolEduAttain!L59","v":-64},1.2562744929332761,1.645,"Graduate or Professional Degree",null,"N",{"$f":"SchoolEnrolEduAttain!J59/1.645","v":34.25897338262704},{"$f":"SchoolEnrolEduAttain!M59/1.645","v":45.847313398090705},57.23332423557359,{"$f":"SchoolEnrolEduAttain!I59-SchoolEnrolEduAttain!L59","v":-64},1.118229647758614,1.645]
["N",{"$f":"HousingCharacteristics!D32/1.645","v":80.243161094224916},{"$f":"HousingCharacteristics!J32/1.645","v":120.36474164133739},144.66041591527252,{"$f":"HousingCharacteristics!C32-HousingCharacteristics!I32","v":-118},0.81570344764605474,1.645,"Total Housing Units",null,"N",{"$f":"HousingCharacteristics!G32/1.645","v":80.243161094224916},{"$f":"HousingCharacteristics!J32/1.645","v":120.36474164133739},{"$f":"SQRT((K62^2)+(L62^2))","v":144.66041591527252},{"$f":"HousingCharacteristics!F32-HousingCharacteristics!I32","v":-112},{"$f":"ABS((N62/M62))","v":0.7742270011555773},1.645]
["N",{"$f":"HousingCharacteristics!D33/1.645","v":71.732522796352583},{"$f":"HousingCharacteristics!J33/1.645","v":117.32522796352583},137.51641336008785,{"$f":"HousingCharacteristics!C33-HousingCharacteristics!I33","v":-119},0.86535124856985268,1.645,"Occupied Units",null,"N",{"$f":"HousingCharacteristics!G33/1.645","v":71.732522796352583},{"$f":"HousingCharacteristics!J33/1.645","v":117.32522796352583},{"$f":"SQRT((K63^2)+(L63^2))","v":137.51641336008785},{"$f":"HousingCharacteristics!F33-HousingCharacteristics!I33","v":-122},{"$f":"ABS((N63/M63))","v":0.88716682626489107},1.645]
["Y",{"$f":"HousingCharacteristics!D34/1.645","v":75.98784194528875},{"$f":"HousingCharacteristics!J34/1.645","v":101.51975683890578},126.8085689223435,{"$f":"HousingCharacteristics!C34-HousingCharacteristics!I34","v":-367},2.8941261865729886,1.645,"Owner Occupied",null,"Y",{"$f":"HousingCharacteristics!G34/1.645","v":75.98784194528875},{"$f":"HousingCharacteristics!J34/1.645","v":101.51975683890578},126.8085689223435,{"$f":"HousingCharacteristics!F34-HousingCharacteristics!I34","v":-216},1.7033549217977264,1.645]
["Y",{"$f":"HousingCharacteristics!D35/1.645","v":65.045592705167167},{"$f":"HousingCharacteristics!J35/1.645","v":93.00911854103343},113.49724781749778,{"$f":"HousingCharacteristics!C35-HousingCharacteristics!I35","v":248},2.1850750107948085,1.645,"Renter Occupied",null,"N",{"$f":"HousingCharacteristics!G35/1.645","v":65.045592705167167},{"$f":"HousingCharacteristics!J35/1.645","v":93.00911854103343},113.49724781749778,{"$f":"HousingCharacteristics!F35-HousingCharacteristics!I35","v":94},0.82821391538190314,1.645]
["N",{"$f":"HousingCharacteristics!D36/1.645","v":43.161094224924014},{"$f":"HousingCharacteristics!J36/1.645","v":43.161094224924014},61.039004819750609,{"$f":"HousingCharacteristics!C36-HousingCharacteristics!I36","v":1},1.6382966972561558E-2,1.645,"Vacant Units",null,"N",{"$f":"HousingCharacteristics!G36/1.645","v":43.161094224924014},{"$f":"HousingCharacteristics!J36/1.645","v":43.161094224924014},61.039004819750609,{"$f":"HousingCharacteristics!F36-HousingCharacteristics!I36","v":10},0.16382966972561558,1.645]
["N",{"$f":"HousingCharacteristics!D37/1.645","v":29.179331306990882},{"$f":"HousingCharacteristics!J37/1.645","v":7.2948328267477205},30.077366265903908,{"$f":"HousingCharacteristics!C37-HousingCharacteristics!I37","v":36},1.1969133095543032,1.645,"Vacant For Sale",null,"N",{"$f":"HousingCharacteristics!G37/1.645","v":29.179331306990882},{"$f":"HousingCharacteristics!J37/1.645","v":7.2948328267477205},30.077366265903908,{"$f":"HousingCharacteristics!F37-HousingCharacteristics!I37","v":30},0.99742775796191929,1.645]
[{"$f":"IF(F68>G68,\"Y\",\"N\")","v":"N"},{"$f":"HousingCharacteristics!D38/1.645","v":6.6869300911854106},{"$f":"HousingCharacteristics!J38/1.645","v":7.2948328267477205},9.8959395720970864,{"$f":"HousingCharacteristics!C38-HousingCharacteristics!I38","v":0},{"$f":"ABS((E68/D68))","v":0},1.645,"Vacant For Rent",null,"N",{"$f":"HousingCharacteristics!G38/1.645","v":6.6869300911854106},{"$f":"HousingCharacteristics!J38/1.645","v":7.2948328267477205},9.8959395720970864,{"$f":"HousingCharacteristics!F38-HousingCharacteristics!I38","v":0},0,1.645]
["N",{"$f":"HousingCharacteristics!D39/1.645","v":6.6869300911854106},{"$f":"HousingCharacteristics!J39/1.645","v":7.2948328267477205},9.8959395720970864,{"$f":"HousingCharacteristics!C39-HousingCharacteristics!I39","v":0},0,1.645,"Vacant Seasonal",null,{"$f":"IF(O69>P69,\"Y\",\"N\")","v":"N"},{"$f":"HousingCharacteristics!G39/1.645","v":6.6869300911854106},{"$f":"HousingCharacteristics!J39/1.645","v":7.2948328267477205},9.8959395720970864,{"$f":"HousingCharacteristics!F39-HousingCharacteristics!I39","v":0},0,1.645]
["N",{"$f":"HousingCharacteristics!E71/1.645","v":89.361702127659569},{"$f":"HousingCharacteristics!K71/1.645","v":120.36474164133739},149.91058947765649,{"$f":"HousingCharacteristics!D71-HousingCharacteristics!J71","v":-118},0.78713585485291804,1.645,"Total Housing Units",null,"N",{"$f":"HousingCharacteristics!H71/1.645","v":80.243161094224916},{"$f":"HousingCharacteristics!K71/1.645","v":120.36474164133739},144.66041591527252,{"$f":"HousingCharacteristics!G71-HousingCharacteristics!J71","v":-112},0.7742270011555773,1.645]
["Y",{"$f":"HousingCharacteristics!E72/1.645","v":95.440729483282681},{"$f":"HousingCharacteristics!K72/1.645","v":124.3885461631031},156.78470352962233,{"$f":"HousingCharacteristics!D72-HousingCharacteristics!J72","v":-486},3.0997921931087933,1.645,"Single Family Units",null,"Y",{"$f":"HousingCharacteristics!H72/1.645","v":71.124620060790278},{"$f":"HousingCharacteristics!K72/1.645","v":124.3885461631031},143.28720108705522,{"$f":"HousingCharacteristics!G72-HousingCharacteristics!J72","v":-453},3.1614826485777781,1.645]
["N",{"$f":"HousingCharacteristics!E73/1.645","v":86.322188449848028},{"$f":"HousingCharacteristics!K73/1.645","v":77.203647416413375},115.80985879090323,{"$f":"HousingCharacteristics!D73-HousingCharacteristics!J73","v":-57},0.49218607634186412,1.645,"SF Owner Occ.",null,"N",{"$f":"HousingCharacteristics!H73/1.645","v":59.574468085106382},{"$f":"HousingCharacteristics!K73/1.645","v":77.203647416413375},97.516769952768783,{"$f":"HousingCharacteristics!G73-HousingCharacteristics!J73","v":-23},0.23585686863028593,1.645]
["N",{"$f":"HousingCharacteristics!E74/1.645","v":46.200607902735563},{"$f":"HousingCharacteristics!K74/1.645","v":20.060790273556229},50.367960818182027,{"$f":"HousingCharacteristics!D74-HousingCharacteristics!J74","v":75},1.4890418190788897,1.645,"SF Renter Occ.",null,"N",{"$f":"HousingCharacteristics!H74/1.645","v":34.042553191489361},{"$f":"HousingCharacteristics!K74/1.645","v":20.060790273556229},39.513677811550146,{"$f":"HousingCharacteristics!G74-HousingCharacteristics!J74","v":61},1.543769230769231,1.645]
["N",{"$f":"HousingCharacteristics!E75/1.645","v":117.31420330267761},{"$f":"HousingCharacteristics!K75/1.645","v":97.537610310670303},152.56542112044312,{"$f":"HousingCharacteristics!D75-HousingCharacteristics!J75","v":8},5.2436521600031386E-2,1.645,"Multi-family Units",null,"N",{"$f":"HousingCharacteristics!H75/1.645","v":77.399650675839695},{"$f":"HousingCharacteristics!K75/1.645","v":97.537610310670303},124.51622926292858,{"$f":"HousingCharacteristics!G75-HousingCharacteristics!J75","v":-150},1.2046622427286957,1.645]
["N",{"$f":"HousingCharacteristics!E76/1.645","v":99.224177980762789},{"$f":"HousingCharacteristics!K76/1.645","v":51.128920737542316},111.62259642090385,{"$f":"HousingCharacteristics!D76-HousingCharacteristics!J76","v":1},8.9587595349352352E-3,1.645,"MF Owner Occ.",null,"N",{"$f":"HousingCharacteristics!H76/1.645","v":36.534903832988981},{"$f":"HousingCharacteristics!K76/1.645","v":51.128920737542316},62.840796731674544,{"$f":"HousingCharacteristics!G76-HousingCharacteristics!J76","v":-42},0.66835562539629834,1.645]
["N",{"$f":"HousingCharacteristics!E77/1.645","v":113.20056509669885},{"$f":"HousingCharacteristics!K77/1.645","v":85.91668100366303},142.11278624000425,{"$f":"HousingCharacteristics!D77-HousingCharacteristics!J77","v":103},0.7247764449994708,1.645,"MF Renter Occ.",null,"N",{"$f":"HousingCharacteristics!H77/1.645","v":72.017875582487179},{"$f":"HousingCharacteristics!K77/1.645","v":85.91668100366303},112.10820878998912,{"$f":"HousingCharacteristics!G77-HousingCharacteristics!J77","v":22},0.19623897516026073,1.645]
["Y",{"$f":"HousingCharacteristics!E78/1.645","v":81.651543901181597},{"$f":"HousingCharacteristics!K78/1.645","v":0},81.651543901181597,{"$f":"HousingCharacteristics!D78-HousingCharacteristics!J78","v":360},4.4089797057075657,1.645,"Mobile Home & Other",null,"Y",{"$f":"HousingCharacteristics!H78/1.645","v":61.761242587908896},{"$f":"HousingCharacteristics!K78/1.645","v":0},61.761242587908896,{"$f":"HousingCharacteristics!G78-HousingCharacteristics!J78","v":491},7.9499695832888557,1.645]
["N",{"$f":"HousingCharacteristics!$D88/1.645","v":52.887537993920972},{"$f":"HousingCharacteristics!L88/1.645","v":55.927051671732521},76.973545999590499,{"$f":"HousingCharacteristics!$D88-HousingCharacteristics!$K88","v":-6},7.7948857910637506E-2,1.645,"No Bedrooms",null,"N",{"$f":"HousingCharacteristics!H88/1.645","v":9.1185410334346511},{"$f":"HousingCharacteristics!L88/1.645","v":55.927051671732521},56.665535374432586,{"$f":"HousingCharacteristics!G88-HousingCharacteristics!K88","v":-77},1.3588506574799308,1.645]
["N",{"$f":"HousingCharacteristics!$D89/1.645","v":63.829787234042556},{"$f":"HousingCharacteristics!L89/1.645","v":65.653495440729486},91.567588162673744,{"$f":"HousingCharacteristics!$D89-HousingCharacteristics!$K89","v":-92},1.0047223241979253,1.645,"1 Bedroom",null,"N",{"$f":"HousingCharacteristics!H89/1.645","v":62.61398176291793},{"$f":"HousingCharacteristics!L89/1.645","v":65.653495440729486},90.72426453707358,{"$f":"HousingCharacteristics!G89-HousingCharacteristics!K89","v":82},0.90383758323542551,1.645]
["Y",{"$f":"HousingCharacteristics!$D90/1.645","v":84.498480243161097},{"$f":"HousingCharacteristics!L90/1.645","v":89.361702127659569},122.98579987362949,{"$f":"HousingCharacteristics!$D90-HousingCharacteristics!$K90","v":-479},3.89475858588701,1.645,"2 Bedrooms",null,"N",{"$f":"HousingCharacteristics!H90/1.645","v":77.203647416413375},{"$f":"HousingCharacteristics!L90/1.645","v":89.361702127659569},118.09283204983454,{"$f":"HousingCharacteristics!G90-HousingCharacteristics!K90","v":-47},0.39799197956541726,1.645]
["Y",{"$f":"HousingCharacteristics!$D91/1.645","v":85.714285714285708},{"$f":"HousingCharacteristics!L91/1.645","v":90.577507598784194},124.70454545973058,{"$f":"HousingCharacteristics!$D91-HousingCharacteristics!$K91","v":-693},5.5571350462424212,1.645,"3 Bedrooms",null,"N",{"$f":"HousingCharacteristics!H91/1.645","v":72.948328267477208},{"$f":"HousingCharacteristics!L91/1.645","v":90.577507598784194},116.3002299216447,{"$f":"HousingCharacteristics!G91-HousingCharacteristics!K91","v":-165},1.4187418211568965,1.645]
["N",{"$f":"HousingCharacteristics!$D92/1.645","v":56.217035971778195},{"$f":"HousingCharacteristics!L92/1.645","v":43.874408694872045},71.311421748390813,{"$f":"HousingCharacteristics!$D92-HousingCharacteristics!$K92","v":-46.522975826424869},0.65239164618779588,1.645,"4+ Bedrooms",null,"N",{"$f":"HousingCharacteristics!H92/1.645","v":49.104846265664172},{"$f":"HousingCharacteristics!L92/1.645","v":43.874408694872045},65.850206264666909,{"$f":"HousingCharacteristics!G92-HousingCharacteristics!K92","v":95},1.4426682221491223,1.645]
["N",{"$f":"'HHIncome-10YearComparison'!$F$30/1.645","v":51.671732522796354},{"$f":"'HHIncome-10YearComparison'!$M$30/1.645","v":29.179331306990882},{"$f":"SQRT((B83^2)+(C83^2))","v":59.341396321880971},{"$f":"'HHIncome-10YearComparison'!$E$30-'HHIncome-10YearComparison'!$L$30","v":50},0.84258212814523015,1.645,"Household Income Less than $10,000",null,"N",{"$f":"'HHIncome-10YearComparison'!$F$30/1.645","v":51.671732522796354},{"$f":"'HHIncome-10YearComparison'!$J$30/1.645","v":23.100303951367781},{"$f":"SQRT((K83^2)+(L83^2))","v":56.600282548349426},{"$f":"'HHIncome-10YearComparison'!$E$30-'HHIncome-10YearComparison'!$I$30","v":30},0.53003268975509488,1.645]
["N",{"$f":"'HHIncome-10YearComparison'!$F$31/1.645","v":24.316109422492399},{"$f":"'HHIncome-10YearComparison'!$M$31/1.645","v":65.045592705167167},{"$f":"SQRT((B84^2)+(C84^2))","v":69.442078798183445},{"$f":"'HHIncome-10YearComparison'!$E$31-'HHIncome-10YearComparison'!$L$31","v":-55},0.79202698064158128,1.645,"Household Income $10,000 to $14,999",null,"Y",{"$f":"'HHIncome-10YearComparison'!$F$31/1.645","v":24.316109422492399},{"$f":"'HHIncome-10YearComparison'!$J$31/1.645","v":54.10334346504559},{"$f":"SQRT((K84^2)+(L84^2))","v":59.316481280865908},{"$f":"'HHIncome-10YearComparison'!$E$31-'HHIncome-10YearComparison'!$I$31","v":-131},2.2084924319719805,1.645]
["N",{"$f":"'HHIncome-10YearComparison'!$F$32/1.645","v":76.25000369167094},{"$f":"'HHIncome-10YearComparison'!$M$32/1.645","v":59.82516571002202},96.91807630783552,{"$f":"'HHIncome-10YearComparison'!$E$32-'HHIncome-10YearComparison'!$L$32","v":134},1.3826110164876078,1.645,"Household Income $15,000 to $24,999",null,"Y",{"$f":"'HHIncome-10YearComparison'!$F$32/1.645","v":76.25000369167094},{"$f":"'HHIncome-10YearComparison'!$J$32/1.645","v":47.470937399038633},89.819557784055448,{"$f":"'HHIncome-10YearComparison'!$E$32-'HHIncome-10YearComparison'!$I$32","v":169},1.8815501230401346,1.645]
["N",{"$f":"'HHIncome-10YearComparison'!$F$33/1.645","v":48.772593759353704},{"$f":"'HHIncome-10YearComparison'!$M$33/1.645","v":58.45989194004283},76.133598809306477,{"$f":"'HHIncome-10YearComparison'!$E$33-'HHIncome-10YearComparison'!$L$33","v":7},9.1943637362172467E-2,1.645,"Household Income $25,000 to $34,999",null,"N",{"$f":"'HHIncome-10YearComparison'!$F$33/1.645","v":48.772593759353704},{"$f":"'HHIncome-10YearComparison'!$J$33/1.645","v":47.013328391453641},67.742298074818876,{"$f":"'HHIncome-10YearComparison'!$E$33-'HHIncome-10YearComparison'!$I$33","v":-28},0.41333112096485169,1.645]
["N",{"$f":"'HHIncome-10YearComparison'!$F$34/1.645","v":40.052441118611874},{"$f":"'HHIncome-10YearComparison'!$M$34/1.645","v":64.894862711647505},76.259696078095203,{"$f":"'HHIncome-10YearComparison'!$E$34-'HHIncome-10YearComparison'!$L$34","v":-59},0.77367211035800509,1.645,"Household Income $35,000 to $49,999",null,"N",{"$f":"'HHIncome-10YearComparison'!$F$34/1.645","v":40.052441118611874},{"$f":"'HHIncome-10YearComparison'!$J$34/1.645","v":41.337386018237083},57.558470465958472,{"$f":"'HHIncome-10YearComparison'!$E$34-'HHIncome-10YearComparison'!$I$34","v":-56},0.97292369909516285,1.645]
["N",{"$f":"'HHIncome-10YearComparison'!$F$35/1.645","v":75.372585188875817},{"$f":"'HHIncome-10YearComparison'!$M$35/1.645","v":55.986488833815201},93.890966178824982,{"$f":"'HHIncome-10YearComparison'!$E$35-'HHIncome-10YearComparison'!$L$35","v":85},0.90530541392138597,1.645,"Household Income $50,000 to $74,999",null,"N",{"$f":"'HHIncome-10YearComparison'!$F$35/1.645","v":75.372585188875817},{"$f":"'HHIncome-10YearComparison'!$J$35/1.645","v":55.880779060335065},93.827970597494669,{"$f":"'HHIncome-10YearComparison'!$E$35-'HHIncome-10YearComparison'!$I$35","v":-50},0.53289013586887779,1.645]
["N",{"$f":"'HHIncome-10YearComparison'!$F$36/1.645","v":62.006079027355625},{"$f":"'HHIncome-10YearComparison'!$M$36/1.645","v":66.261398176291792},90.748700952816705,{"$f":"'HHIncome-10YearComparison'!$E$36-'HHIncome-10YearComparison'!$L$36","v":-23},0.25344715415770491,1.645,"Household Income $75,000 to $99,999",null,"N",{"$f":"'HHIncome-10YearComparison'!$F$36/1.645","v":62.006079027355625},{"$f":"'HHIncome-10YearComparison'!$J$36/1.645","v":46.200607902735563},77.325610291345143,{"$f":"'HHIncome-10YearComparison'!$E$36-'HHIncome-10YearComparison'!$I$36","v":41},0.53022536576848756,1.645]
["N",{"$f":"'HHIncome-10YearComparison'!$F$37/1.645","v":57.983852107771035},{"$f":"'HHIncome-10YearComparison'!$M$37/1.645","v":71.515823318432794},92.068670513748373,{"$f":"'HHIncome-10YearComparison'!$E$37-'HHIncome-10YearComparison'!$L$37","v":-66},0.71685622950474115,1.645,"Household Income $100,000 to $149,999",null,"N",{"$f":"'HHIncome-10YearComparison'!$F$37/1.645","v":57.983852107771035},{"$f":"'HHIncome-10YearComparison'!$J$37/1.645","v":46.855855738706715},74.549301286211644,{"$f":"'HHIncome-10YearComparison'!$E$37-'HHIncome-10YearComparison'!$I$37","v":29},0.38900431660200857,1.645]
["Y",{"$f":"'HHIncome-10YearComparison'!$F$38/1.645","v":41.337386018237083},{"$f":"'HHIncome-10YearComparison'!$M$38/1.645","v":53.495440729483285},67.605781273959124,{"$f":"'HHIncome-10YearComparison'!$E$38-'HHIncome-10YearComparison'!$L$38","v":-168},2.4849945793720369,1.645,"Household Income $150,000 to $199,999",null,"N",{"$f":"'HHIncome-10YearComparison'!$F$38/1.645","v":41.337386018237083},{"$f":"'HHIncome-10YearComparison'!$J$38/1.645","v":33.434650455927049},53.166298854920925,{"$f":"'HHIncome-10YearComparison'!$E$38-'HHIncome-10YearComparison'!$I$38","v":-16},0.30094252081869499,1.645]
["N",{"$f":"'HHIncome-10YearComparison'!$F$39/1.645","v":14.589665653495441},{"$f":"'HHIncome-10YearComparison'!$M$39/1.645","v":20.060790273556229},24.805113389791082,{"$f":"'HHIncome-10YearComparison'!$E$39-'HHIncome-10YearComparison'!$L$39","v":-24},0.96754244267545098,1.645,"Household Income Greater than $200,000",null,"N",{"$f":"'HHIncome-10YearComparison'!$F$39/1.645","v":14.589665653495441},{"$f":"'HHIncome-10YearComparison'!$J$39/1.645","v":6.6869300911854106},16.049092744612871,{"$f":"'HHIncome-10YearComparison'!$E$39-'HHIncome-10YearComparison'!$I$39","v":15},0.93463227103818591,1.645]
[{"$error":"#REF!"},{"$f":"'HHIncome-10YearComparison'!#REF!/1.645","v":{"$error":"#REF!"}},{"$f":"'HHIncome-10YearComparison'!$M$41/1.645","v":10097.872340425532},{"$error":"#REF!"},{"$f":"'HHIncome-10YearComparison'!$E$41-'HHIncome-10YearComparison'!$I$41","v":4711},{"$error":"#REF!"},1.645,"Median Household Income",null,{"$error":"#REF!"},{"$f":"'HHIncome-10YearComparison'!#REF!/1.645","v":{"$error":"#REF!"}},{"$f":"'HHIncome-10YearComparison'!$J$41/1.645","v":3030.3951367781156},{"$error":"#REF!"},{"$f":"'HHIncome-10YearComparison'!$E$41-'HHIncome-10YearComparison'!$I$41","v":4711},{"$error":"#REF!"},1.645]
["N",{"$f":"PovertyCharacteristics!$E$54/1.645","v":23.100303951367781},{"$f":"PovertyCharacteristics!$M54/1.645","v":43.768996960486319},49.490899542972933,{"$f":"PovertyCharacteristics!$D54-PovertyCharacteristics!$L54","v":-36},0.72740645921663261,1.645,"Total Households Below Poverty Level",null,"N",{"$f":"PovertyCharacteristics!$I$54/1.645","v":38.297872340425535},{"$f":"PovertyCharacteristics!$M54/1.645","v":43.768996960486319},58.158852470888654,{"$f":"PovertyCharacteristics!$H54-PovertyCharacteristics!$L54","v":41},0.70496576631257468,1.645]
["N",{"$f":"PovertyCharacteristics!$E$55/1.645","v":19.45288753799392},{"$f":"PovertyCharacteristics!$M55/1.645","v":29.179331306990882},35.069191737035766,{"$f":"PovertyCharacteristics!$D55-PovertyCharacteristics!$L55","v":-12},0.34218068354643816,1.645,"Family Households Below Poverty Level",null,"N",{"$f":"PovertyCharacteristics!$I$55/1.645","v":27.96352583586626},{"$f":"PovertyCharacteristics!$M55/1.645","v":29.179331306990882},40.415246537616198,{"$f":"PovertyCharacteristics!$H55-PovertyCharacteristics!$L55","v":15},0.37114706169214773,1.645]
["N",{"$f":"PovertyCharacteristics!$E$56/1.645","v":0},{"$f":"PovertyCharacteristics!$M56/1.645","v":10.334346504559271},10.334346504559271,{"$f":"PovertyCharacteristics!$D56-PovertyCharacteristics!$L56","v":-13},1.2579411764705881,1.645,"Married Couple Fam HH Below Poverty Level",null,"N",{"$f":"PovertyCharacteristics!$I$56/1.645","v":9.7264437689969601},{"$f":"PovertyCharacteristics!$M56/1.645","v":10.334346504559271},14.191632255232525,{"$f":"PovertyCharacteristics!$H56-PovertyCharacteristics!$L56","v":-2},0.14092811623290127,1.645]
["N",{"$f":"PovertyCharacteristics!$E$57/1.645","v":0},{"$f":"PovertyCharacteristics!$M57/1.645","v":7.2948328267477205},7.2948328267477205,{"$f":"PovertyCharacteristics!$D57-PovertyCharacteristics!$L57","v":0},0,1.645,"M C Fam HH w/Children Below Poverty Level",null,"N",{"$f":"PovertyCharacteristics!$I$57/1.645","v":11.550151975683891},{"$f":"PovertyCharacteristics!$M57/1.645","v":7.2948328267477205},13.660914926592238,{"$f":"PovertyCharacteristics!$H57-PovertyCharacteristics!$L57","v":12},0.87841847083322999,1.645]
["N",{"$f":"PovertyCharacteristics!$E$58/1.645","v":51.671732522796354},{"$f":"PovertyCharacteristics!$M58/1.645","v":7.2948328267477205},52.184121415212182,{"$f":"PovertyCharacteristics!$D58-PovertyCharacteristics!$L58","v":0},0,1.645,"Male Head of Family HH  Below Poverty Level",null,"N",{"$f":"PovertyCharacteristics!$I$58/1.645","v":6.6869300911854106},{"$f":"PovertyCharacteristics!$M58/1.645","v":7.2948328267477205},9.8959395720970864,{"$f":"PovertyCharacteristics!$H58-PovertyCharacteristics!$L58","v":0},0,1.645]
["Y",{"$f":"PovertyCharacteristics!$E$59/1.645","v":23.100303951367781},{"$f":"PovertyCharacteristics!$M59/1.645","v":7.2948328267477205},24.224752395345014,{"$f":"PovertyCharacteristics!$D59-PovertyCharacteristics!$L59","v":44},1.8163240342739257,1.645,"Male Head of HH w/Children Below Poverty Level",null,"N",{"$f":"PovertyCharacteristics!$I$59/1.645","v":6.6869300911854106},{"$f":"PovertyCharacteristics!$M59/1.645","v":7.2948328267477205},9.8959395720970864,{"$f":"PovertyCharacteristics!$H59-PovertyCharacteristics!$L59","v":0},0,1.645]
["N",{"$f":"PovertyCharacteristics!$E$60/1.645","v":12.76595744680851},{"$f":"PovertyCharacteristics!$M60/1.645","v":29.787234042553191},32.40754513133578,{"$f":"PovertyCharacteristics!$D60-PovertyCharacteristics!$L60","v":-24},0.74056828132883523,1.645,"Female Head of Family HH  Below Poverty Level",null,"N",{"$f":"PovertyCharacteristics!$I$60/1.645","v":31.003039513677813},{"$f":"PovertyCharacteristics!$M60/1.645","v":29.787234042553191},42.993810845196165,{"$f":"PovertyCharacteristics!$H60-PovertyCharacteristics!$L60","v":26},0.60473820507830289,1.645]
["N",{"$f":"PovertyCharacteristics!$E$61/1.645","v":14.589665653495441},{"$f":"PovertyCharacteristics!$M61/1.645","v":29.787234042553191},33.168323077699064,{"$f":"PovertyCharacteristics!$D61-PovertyCharacteristics!$L61","v":-23},0.69343270523869804,1.645,"Female Head of HH w/Children Below Poverty Level",null,"N",{"$f":"PovertyCharacteristics!$I$61/1.645","v":28.571428571428569},{"$f":"PovertyCharacteristics!$M61/1.645","v":29.787234042553191},41.274760356882567,{"$f":"PovertyCharacteristics!$H61-PovertyCharacteristics!$L61","v":14},0.33919034002738918,1.645]
["N",{"$f":"PovertyCharacteristics!$E$62/1.645","v":51.063829787234042},{"$f":"PovertyCharacteristics!$M62/1.645","v":55.319148936170215},75.284280906187803,{"$f":"PovertyCharacteristics!$D62-PovertyCharacteristics!$L62","v":8},0.10626388276151363,1.645,"Non-Family HH  Below Poverty Level",null,"N",{"$f":"PovertyCharacteristics!$I$62/1.645","v":34.042553191489361},{"$f":"PovertyCharacteristics!$M62/1.645","v":55.319148936170215},64.95462775520744,{"$f":"PovertyCharacteristics!$H62-PovertyCharacteristics!$L62","v":2},3.0790723757779661E-2,1.645]
["N",{"$f":"PovertyCharacteristics!$E$68/1.645","v":78.419452887538},{"$f":"PovertyCharacteristics!$M68/1.645","v":110.63829787234043},135.61136953540998,{"$f":"PovertyCharacteristics!$D68-PovertyCharacteristics!$L68","v":-91},0.67103518172374665,1.645,"Total Households At or Above Poverty Level",null,"N",{"$f":"PovertyCharacteristics!$I$68/1.645","v":69.300911854103347},{"$f":"PovertyCharacteristics!$M68/1.645","v":110.63829787234043},130.5505623882905,{"$f":"PovertyCharacteristics!$H68-PovertyCharacteristics!$L68","v":-165},1.2638781249309989,1.645]
["Y",{"$f":"PovertyCharacteristics!$E$69/1.645","v":62.61398176291793},{"$f":"PovertyCharacteristics!$M69/1.645","v":77.203647416413375},99.402786110877656,{"$f":"PovertyCharacteristics!$D69-PovertyCharacteristics!$L69","v":169},1.7001535531558538,1.645,"Family Households At or Above Poverty Level",null,"N",{"$f":"PovertyCharacteristics!$I$69/1.645","v":61.398176291793312},{"$f":"PovertyCharacteristics!$M69/1.645","v":77.203647416413375},98.64146808698662,{"$f":"PovertyCharacteristics!$H69-PovertyCharacteristics!$L69","v":-22},0.22302993281283465,1.645]
["Y",{"$f":"PovertyCharacteristics!$E$70/1.645","v":104.55927051671732},{"$f":"PovertyCharacteristics!$M70/1.645","v":75.379939209726444},128.8983176238159,{"$f":"PovertyCharacteristics!$D70-PovertyCharacteristics!$L70","v":341},2.6454961266072812,1.645,"Married Couple Fam HH At or Above Poverty Level",null,"N",{"$f":"PovertyCharacteristics!$I$70/1.645","v":63.221884498480243},{"$f":"PovertyCharacteristics!$M70/1.645","v":75.379939209726444},98.382630147812321,{"$f":"PovertyCharacteristics!$H70-PovertyCharacteristics!$L70","v":42},0.42690462673033069,1.645]
["N",{"$f":"PovertyCharacteristics!$E$71/1.645","v":42.553191489361701},{"$f":"PovertyCharacteristics!$M71/1.645","v":68.085106382978722},80.289201123885988,{"$f":"PovertyCharacteristics!$D71-PovertyCharacteristics!$L71","v":-32},0.39855920288239138,1.645,"M C Fam HH w/Children At or Above Poverty Level",null,"N",{"$f":"PovertyCharacteristics!$I$71/1.645","v":42.553191489361701},{"$f":"PovertyCharacteristics!$M71/1.645","v":68.085106382978722},80.289201123885988,{"$f":"PovertyCharacteristics!$H71-PovertyCharacteristics!$L71","v":-32},0.39855920288239138,1.645]
["N",{"$f":"PovertyCharacteristics!$E$72/1.645","v":40.729483282674771},{"$f":"PovertyCharacteristics!$M72/1.645","v":21.88449848024316},46.236588133267887,{"$f":"PovertyCharacteristics!$D72-PovertyCharacteristics!$L72","v":43},0.92999941682679832,1.645,"Male Head of Family HH  At or Above Poverty Level",null,"N",{"$f":"PovertyCharacteristics!$I$72/1.645","v":21.88449848024316},{"$f":"PovertyCharacteristics!$M72/1.645","v":21.88449848024316},30.949354556493262,{"$f":"PovertyCharacteristics!$H72-PovertyCharacteristics!$L72","v":24},0.7754604367012472,1.645]
["Y",{"$f":"PovertyCharacteristics!$E$73/1.645","v":62.61398176291793},{"$f":"PovertyCharacteristics!$M73/1.645","v":18.237082066869302},65.215810004329043,{"$f":"PovertyCharacteristics!$D73-PovertyCharacteristics!$L73","v":1131},17.342420494737762,1.645,"Male Head of HH w/Children At or Above Poverty Level",null,"N",{"$f":"PovertyCharacteristics!$I$73/1.645","v":17.021276595744681},{"$f":"PovertyCharacteristics!$M73/1.645","v":18.237082066869302},24.946242588064671,{"$f":"PovertyCharacteristics!$H73-PovertyCharacteristics!$L73","v":5},0.20043098604325327,1.645]
["N",{"$f":"PovertyCharacteristics!$E$74/1.645","v":51.063829787234042},{"$f":"PovertyCharacteristics!$M74/1.645","v":69.908814589665653},86.572265015256818,{"$f":"PovertyCharacteristics!$D74-PovertyCharacteristics!$L74","v":32},0.36963339233830339,1.645,"Female Head of Family HH  At or Above Poverty Level",null,"N",{"$f":"PovertyCharacteristics!$I$74/1.645","v":32.826747720364743},{"$f":"PovertyCharacteristics!$M74/1.645","v":69.908814589665653},77.23236189078203,{"$f":"PovertyCharacteristics!$H74-PovertyCharacteristics!$L74","v":-88},1.1394187338779695,1.645]
["Y",{"$f":"PovertyCharacteristics!$E$75/1.645","v":68.693009118541028},{"$f":"PovertyCharacteristics!$M75/1.645","v":43.161094224924014},81.127119734726989,{"$f":"PovertyCharacteristics!$D75-PovertyCharacteristics!$L75","v":449},5.5345241081916861,1.645,"Female Head of HH w/Children At or Above Poverty Level",null,"N",{"$f":"PovertyCharacteristics!$I$75/1.645","v":23.100303951367781},{"$f":"PovertyCharacteristics!$M75/1.645","v":43.161094224924014},48.954101945989642,{"$f":"PovertyCharacteristics!$H75-PovertyCharacteristics!$L75","v":-12},0.24512756894691742,1.645]
["Y",{"$f":"PovertyCharacteristics!$E$76/1.645","v":55.319148936170215},{"$f":"PovertyCharacteristics!$M76/1.645","v":111.85410334346504},124.78601153091135,{"$f":"PovertyCharacteristics!$D76-PovertyCharacteristics!$L76","v":-436},3.4939813738016325,1.645,"Non-Family HH  At or Above Poverty Level",null,"N",{"$f":"PovertyCharacteristics!$I$76/1.645","v":69.300911854103347},{"$f":"PovertyCharacteristics!$M76/1.645","v":111.85410334346504},131.58250954659877,{"$f":"PovertyCharacteristics!$H76-PovertyCharacteristics!$L76","v":-143},1.0867705783446684,1.645]
["N",{"$f":"PovertyCharacteristics!$E24/1.645","v":130.09118541033433},{"$f":"PovertyCharacteristics!M24/1.645","v":181.76291793313069},223.52063631135266,{"$f":"PovertyCharacteristics!H24-PovertyCharacteristics!L24","v":-45},0.20132369316145526,1.645,"Total Individuals Living in Poverty",null,{"$f":"IF(O112>P112,\"Y\",\"N\")","v":"N"},{"$f":"PovertyCharacteristics!$I24/1.645","v":102.73556231003039},{"$f":"PovertyCharacteristics!$M24/1.645","v":181.76291793313069},208.78782076242891,{"$f":"PovertyCharacteristics!$H24-PovertyCharacteristics!$L24","v":-45},0.21552981316474226,1.645]
["N",{"$f":"PovertyCharacteristics!$E25/1.645","v":16.35698972288597},{"$f":"PovertyCharacteristics!M25/1.645","v":22.319221581380937},27.671262435844483,{"$f":"PovertyCharacteristics!H25-PovertyCharacteristics!L25","v":-12},0.43366290308661803,1.645,"Individuals Under 5 yrs. Living in Poverty",null,"N",{"$f":"PovertyCharacteristics!$I25/1.645","v":29.812036073530038},{"$f":"PovertyCharacteristics!$M25/1.645","v":22.319221581380937},37.24117542248414,{"$f":"PovertyCharacteristics!$H25-PovertyCharacteristics!$L25","v":-12},0.32222398632334981,1.645]
["N",{"$f":"PovertyCharacteristics!$E26/1.645","v":141.42462255328724},{"$f":"PovertyCharacteristics!M26/1.645","v":38.466363573389359},146.56256340177711,{"$f":"PovertyCharacteristics!H26-PovertyCharacteristics!L26","v":7},4.7761173368745288E-2,1.645,"Individuals 5 to 17 yrs. Living in Poverty",null,"N",{"$f":"PovertyCharacteristics!$I26/1.645","v":37.870925537197621},{"$f":"PovertyCharacteristics!$M26/1.645","v":38.466363573389359},53.98025683158744,{"$f":"PovertyCharacteristics!$H26-PovertyCharacteristics!$L26","v":7},0.12967704140125236,1.645]
["N",{"$f":"PovertyCharacteristics!$E27/1.645","v":91.966261518222254},{"$f":"PovertyCharacteristics!M27/1.645","v":97.537610310670303},134.05737086320255,{"$f":"PovertyCharacteristics!H27-PovertyCharacteristics!L27","v":9},6.7135435687336847E-2,1.645,"Individuals 18 to 64 yrs. Living in Poverty",null,"N",{"$f":"PovertyCharacteristics!$I27/1.645","v":66.861010815215622},{"$f":"PovertyCharacteristics!$M27/1.645","v":97.537610310670303},118.25388024225064,{"$f":"PovertyCharacteristics!$H27-PovertyCharacteristics!$L27","v":9},7.610743919407062E-2,1.645]
["N",{"$f":"PovertyCharacteristics!$E28/1.645","v":20.207623268808099},{"$f":"PovertyCharacteristics!M28/1.645","v":33.173893372990278},38.843985888379208,{"$f":"PovertyCharacteristics!H28-PovertyCharacteristics!L28","v":-55},1.4159206050081004,1.645,"Individuals 65 to 74 yrs. Living in Poverty",null,"N",{"$f":"PovertyCharacteristics!$I28/1.645","v":9.4567472255951639},{"$f":"PovertyCharacteristics!$M28/1.645","v":33.173893372990278},34.495467377777764,{"$f":"PovertyCharacteristics!$H28-PovertyCharacteristics!$L28","v":-55},1.5944123730131399,1.645]
["N",{"$f":"PovertyCharacteristics!$E29/1.645","v":16.592515579278032},{"$f":"PovertyCharacteristics!M29/1.645","v":12.99547618628082},21.075909815634915,{"$f":"PovertyCharacteristics!H29-PovertyCharacteristics!L29","v":6},0.28468521892938498,1.645,"Individuals 75 yrs. & Over Living in Poverty",null,"N",{"$f":"PovertyCharacteristics!$I29/1.645","v":14.347019721830938},{"$f":"PovertyCharacteristics!$M29/1.645","v":12.99547618628082},19.357669699806269,{"$f":"PovertyCharacteristics!$H29-PovertyCharacteristics!$L29","v":6},0.30995466360602525,1.645]
[null,null,null,null,null,null,null,"Under 5",null,"N",{"$f":"DisabilityByAgePrior5YearEst!$E$31/1.645","v":63.227729446904739},{"$f":"DisabilityByAge!$E$31/1.645","v":63.364930526265702},{"$f":"SQRT((K118^2)+(L118^2))","v":89.51458088830816},{"$f":"DisabilityByAge!$D$31-DisabilityByAgePrior5YearEst!$D$31","v":-6},6.7028186251427591E-2,1.645]
[null,null,null,null,null,null,null,"5 to 17",null,"N",{"$f":"DisabilityByAgePrior5YearEst!$F$31/1.645","v":675.98784194528878},{"$f":"DisabilityByAge!$F$31/1.645","v":435.258358662614},{"$f":"SQRT((K119^2)+(L119^2))","v":803.99589628524939},{"$f":"DisabilityByAge!$D$31-DisabilityByAgePrior5YearEst!$D$31","v":-6},7.4627246578274353E-3,1.645]
[null,null,null,null,null,null,null,"18 to 34",null,"N",{"$f":"DisabilityByAgePrior5YearEst!$I$31/1.645","v":113.63879505331867},{"$f":"DisabilityByAge!$I$31/1.645","v":125.61394759991808},169.38901845398695,{"$f":"DisabilityByAge!$D$31-DisabilityByAgePrior5YearEst!$D$31","v":-6},3.5421422561875505E-2,1.645]
[null,null,null,null,null,null,null,"35 to 64",null,"N",{"$f":"DisabilityByAgePrior5YearEst!$K$31/1.645","v":91.132710201714289},{"$f":"DisabilityByAge!$K$31/1.645","v":124.2458612023903},154.08505733728134,{"$f":"DisabilityByAge!$D$31-DisabilityByAgePrior5YearEst!$D$31","v":-6},3.8939531864315841E-2,1.645]
[null,null,null,null,null,null,null,"65 to 74",null,"N",{"$f":"DisabilityByAgePrior5YearEst!$M$31/1.645","v":54.16819309409231},{"$f":"DisabilityByAge!$M$31/1.645","v":84.147880815022447},100.07526661837126,{"$f":"DisabilityByAge!$D$31-DisabilityByAgePrior5YearEst!$D$31","v":-6},5.9954873993796121E-2,1.645]
[null,null,null,null,null,null,null,"75 and Over",null,"N",{"$f":"DisabilityByAgePrior5YearEst!$O$31/1.645","v":39.307387623895956},{"$f":"DisabilityByAge!$O$31/1.645","v":43.233810058831722},58.43143891791771,{"$f":"DisabilityByAge!$D$31-DisabilityByAgePrior5YearEst!$D$31","v":-6},0.10268444712492147,1.645]
[null,null,null,null,null,null,null,"With a Disability -Under 5",null,"N",{"$f":"DisabilityByAgePrior5YearEst!$E$33/1.645","v":13.755268691774786},{"$f":"DisabilityByAge!$E$33/1.645","v":32.441736326143058},35.237390264290426,{"$f":"DisabilityByAge!$D$31-DisabilityByAgePrior5YearEst!$D$31","v":-6},0.17027367676772592,1.645]
[null,null,null,null,null,null,null,"With a Disability -5 to 17",null,"N",{"$f":"DisabilityByAgePrior5YearEst!$F$33/1.645","v":27.355623100303951},{"$f":"DisabilityByAge!$F$33/1.645","v":18.237082066869302},32.877367253471029,{"$f":"DisabilityByAge!$D$31-DisabilityByAgePrior5YearEst!$D$31","v":-6},0.18249636455810037,1.645]
[null,null,null,null,null,null,null,"With a Disability -18 to 34",null,"N",{"$f":"DisabilityByAgePrior5YearEst!$I$33/1.645","v":14.191632255232525},{"$f":"DisabilityByAge!$I$33/1.645","v":50.371629144964366},52.332623178908008,{"$f":"DisabilityByAge!$D$31-DisabilityByAgePrior5YearEst!$D$31","v":-6},0.11465123732643738,1.645]
[null,null,null,null,null,null,null,"With a Disability -35 to 64",null,"N",{"$f":"DisabilityByAgePrior5YearEst!$K$33/1.645","v":51.15421151710985},{"$f":"DisabilityByAge!$K$33/1.645","v":81.742011541695945},96.428781008680005,{"$f":"DisabilityByAge!$D$31-DisabilityByAgePrior5YearEst!$D$31","v":-6},{"$f":"ABS((N127/M127))","v":6.2222086987285589E-2},1.645]
[null,null,null,null,null,null,null,"With a Disability -65 to 74",null,"N",{"$f":"DisabilityByAgePrior5YearEst!$M$33/1.645","v":25.452184091742637},{"$f":"DisabilityByAge!$M$33/1.645","v":52.554589049364097},58.393479988672517,{"$f":"DisabilityByAge!$D$31-DisabilityByAgePrior5YearEst!$D$31","v":-6},0.10275119758513986,1.645]
[null,null,null,null,null,null,null,"With a Disability -75 and Over",null,"N",{"$f":"DisabilityByAgePrior5YearEst!$O$33/1.645","v":32.080911372544101},{"$f":"DisabilityByAge!$O$33/1.645","v":38.495173736139975},50.110510628695756,{"$f":"DisabilityByAge!$D$31-DisabilityByAgePrior5YearEst!$D$31","v":-6},0.11973535940310501,1.645]
[null,null,null,null,null,null,null,"Hearing Disability - Under 5",null,"N",{"$f":"DisabilityByAgePrior5YearEst!$E$38/1.645","v":9.4567472255951639},{"$f":"DisabilityByAge!$E$38/1.645","v":32.441736326143058},33.791956497719866,{"$f":"DisabilityByAge!$D$31-DisabilityByAgePrior5YearEst!$D$31","v":-6},0.17755704676066489,1.645]
[null,null,null,null,null,null,null,"Hearing Disability - 5 to 17",null,"N",{"$f":"DisabilityByAgePrior5YearEst!$F$38/1.645","v":24.924012158054712},{"$f":"DisabilityByAge!$F$38/1.645","v":11.550151975683891},27.470209185884507,{"$f":"DisabilityByAge!$D$31-DisabilityByAgePrior5YearEst!$D$31","v":-6},0.21841843137776629,1.645]
[null,null,null,null,null,null,null,"Hearing Disability - 18 to 34",null,"N",{"$f":"DisabilityByAgePrior5YearEst!$I$38/1.645","v":12.823722255154399},{"$f":"DisabilityByAge!$I$38/1.645","v":10.316451518831087},16.458342092013229,{"$f":"DisabilityByAge!$D$31-DisabilityByAgePrior5YearEst!$D$31","v":-6},0.36455676801806369,1.645]
[null,null,null,null,null,null,null,"Hearing Disability - 35 to 64",null,"N",{"$f":"DisabilityByAgePrior5YearEst!$K$38/1.645","v":41.301611553709492},{"$f":"DisabilityByAge!$K$38/1.645","v":31.163539496598897},51.739629984080764,{"$f":"DisabilityByAge!$D$31-DisabilityByAgePrior5YearEst!$D$31","v":-6},0.11596526689205312,1.645]
[null,null,null,null,null,null,null,"Hearing Disability - 65 to 74",null,"N",{"$f":"DisabilityByAgePrior5YearEst!$M$38/1.645","v":15.342771384953146},{"$f":"DisabilityByAge!$M$38/1.645","v":24.805113389791082},29.166663917070288,{"$f":"DisabilityByAge!$D$31-DisabilityByAgePrior5YearEst!$D$31","v":-6},0.20571430510735914,1.645]
[null,null,null,null,null,null,null,"Hearing Disability - 75 and Over",null,"N",{"$f":"DisabilityByAgePrior5YearEst!$O$38/1.645","v":21.926673309266178},{"$f":"DisabilityByAge!$O$38/1.645","v":25.62582238098236},33.726277219891053,{"$f":"DisabilityByAge!$D$31-DisabilityByAgePrior5YearEst!$D$31","v":-6},0.17790282517340295,1.645]
[null,null,null,null,null,null,null,"Visual Disability - Under 5",null,"N",{"$f":"DisabilityByAgePrior5YearEst!$E$39/1.645","v":9.4567472255951639},{"$f":"DisabilityByAge!$E$39/1.645","v":10.316451518831087},13.994971955284301,{"$f":"DisabilityByAge!$D$31-DisabilityByAgePrior5YearEst!$D$31","v":-6},0.4287254036071495,1.645]
[null,null,null,null,null,null,null,"Visual Disability - 5 to 17",null,"N",{"$f":"DisabilityByAgePrior5YearEst!$F$39/1.645","v":14.589665653495441},{"$f":"DisabilityByAge!$F$39/1.645","v":11.550151975683891},18.608179775092971,{"$f":"DisabilityByAge!$D$31-DisabilityByAgePrior5YearEst!$D$31","v":-6},0.32243884530989936,1.645]
[null,null,null,null,null,null,null,"Visual Disability - 18 to 34",null,"N",{"$f":"DisabilityByAgePrior5YearEst!$I$39/1.645","v":9.4567472255951639},{"$f":"DisabilityByAge!$I$39/1.645","v":9.8959395720970864},13.687939512702373,{"$f":"DisabilityByAge!$D$31-DisabilityByAgePrior5YearEst!$D$31","v":-6},0.43834208899243127,1.645]
[null,null,null,null,null,null,null,"Visual Disability - 35 to 64",null,"N",{"$f":"DisabilityByAgePrior5YearEst!$K$39/1.645","v":45.185619292761416},{"$f":"DisabilityByAge!$K$39/1.645","v":46.332398814082012},{"$f":"SQRT((K140^2)+(L140^2))","v":28.265843009270931},{"$f":"DisabilityByAge!$D$31-DisabilityByAgePrior5YearEst!$D$31","v":-6},{"$f":"ABS((N140/M140))","v":0.21227033625114441},1.645]
[null,null,null,null,null,null,null,"Visual Disability - 65 to 74",null,"N",{"$f":"DisabilityByAgePrior5YearEst!$M$39/1.645","v":10.823400495297786},{"$f":"DisabilityByAge!$M$39/1.645","v":26.111527774972071},28.265843009270931,{"$f":"DisabilityByAge!$D$31-DisabilityByAgePrior5YearEst!$D$31","v":-6},0.21227033625114441,1.645]
[null,null,null,null,null,null,null,"Visual Disability - 75 and Over",null,"N",{"$f":"DisabilityByAgePrior5YearEst!$O$39/1.645","v":27.463482062192142},{"$f":"DisabilityByAge!$O$39/1.645","v":11.677430220242277},29.843009625856727,{"$f":"DisabilityByAge!$D$31-DisabilityByAgePrior5YearEst!$D$31","v":-6},0.20105210818956579,1.645]
[null,null,null,null,null,null,null,"Cognative Disability - 5 to 17",null,"N",{"$f":"DisabilityByAgePrior5YearEst!$F$40/1.645","v":103.34346504559271},{"$f":"DisabilityByAge!$F$40/1.645","v":99.088145896656528},143.17238708936418,{"$f":"DisabilityByAge!$D$31-DisabilityByAgePrior5YearEst!$D$31","v":-6},4.1907522267229984E-2,1.645]
[null,null,null,null,null,null,null,"Cognative Disability - 18 to 34",null,"N",{"$f":"DisabilityByAgePrior5YearEst!$I$40/1.645","v":21.926673309266178},{"$f":"DisabilityByAge!$I$40/1.645","v":22.980009934876353},31.762554352858675,{"$f":"DisabilityByAge!$D$31-DisabilityByAgePrior5YearEst!$D$31","v":-6},0.18890168383009762,1.645]
[null,null,null,null,null,null,null,"Cognative Disability - 35 to 64",null,{"$f":"IF(O144>P144,\"Y\",\"N\")","v":"N"},{"$f":"DisabilityByAgePrior5YearEst!$K$40/1.645","v":58.702759622577403},{"$f":"DisabilityByAge!$K$40/1.645","v":52.038746648103817},{"$f":"SQRT((K145^2)+(L145^2))","v":40.305372533132584},{"$f":"DisabilityByAge!$D$31-DisabilityByAgePrior5YearEst!$D$31","v":-6},{"$f":"ABS((N145/M145))","v":0.14886352917511844},1.645]
[null,null,null,null,null,null,null,"Cognative Disability - 65 to 74",null,"N",{"$f":"DisabilityByAgePrior5YearEst!$M$40/1.645","v":27.308300845247661},{"$f":"DisabilityByAge!$M$40/1.645","v":29.644219672307866},{"$f":"SQRT((K145^2)+(L145^2))","v":40.305372533132584},{"$f":"DisabilityByAge!$D$31-DisabilityByAgePrior5YearEst!$D$31","v":-6},{"$f":"ABS((N145/M145))","v":0.14886352917511844},1.645]
[null,null,null,null,null,null,null,"Cognative Disability - 75 and Over",null,"N",{"$f":"DisabilityByAgePrior5YearEst!$O$40/1.645","v":11.307644521421444},{"$f":"DisabilityByAge!$O$40/1.645","v":9.4567472255951639},{"$f":"SQRT((K146^2)+(L146^2))","v":14.740857936756402},{"$f":"DisabilityByAge!$D$31-DisabilityByAgePrior5YearEst!$D$31","v":-6},{"$f":"ABS((N146/M146))","v":0.40703193977868618},1.645]
[null,null,null,null,null,null,null,"Amblatory Disability - 5 to 17",null,"Y",{"$f":"DisabilityByAgePrior5YearEst!$F$41/1.645","v":2.43161094224924},{"$f":"DisabilityByAge!$F$41/1.645","v":0},{"$f":"SQRT((K147^2)+(L147^2))","v":2.43161094224924},{"$f":"DisabilityByAge!$D$31-DisabilityByAgePrior5YearEst!$D$31","v":-6},{"$f":"ABS((N147/M147))","v":2.4675000000000002},1.645]
[null,null,null,null,null,null,null,"Amblatory Disability - 18 to 34",null,"N",{"$f":"DisabilityByAgePrior5YearEst!$I$41/1.645","v":27.570919077078582},{"$f":"DisabilityByAge!$I$41/1.645","v":10.316451518831087},{"$f":"SQRT((K148^2)+(L148^2))","v":29.437811581284503},{"$f":"DisabilityByAge!$D$31-DisabilityByAgePrior5YearEst!$D$31","v":-6},{"$f":"ABS((N148/M148))","v":0.20381949872301591},1.645]
[null,null,null,null,null,null,null,"Amblatory Disability - 35 to 64",null,"N",{"$f":"DisabilityByAgePrior5YearEst!$K$41/1.645","v":50.411963121988911},{"$f":"DisabilityByAge!$K$41/1.645","v":60.939027725265696},{"$f":"SQRT((K150^2)+(L150^2))","v":51.284081374533393},{"$f":"DisabilityByAge!$D$31-DisabilityByAgePrior5YearEst!$D$31","v":-6},{"$f":"ABS((N150/M150))","v":0.11699536852734727},1.645]
[null,null,null,null,null,null,null,"Amblatory Disability - 65 to 74",null,"N",{"$f":"DisabilityByAgePrior5YearEst!$M$41/1.645","v":21.415094168764178},{"$f":"DisabilityByAge!$M$41/1.645","v":46.598827712429909},{"$f":"SQRT((K150^2)+(L150^2))","v":51.284081374533393},{"$f":"DisabilityByAge!$D$31-DisabilityByAgePrior5YearEst!$D$31","v":-6},{"$f":"ABS((N150/M150))","v":0.11699536852734727},1.645]
[null,null,null,null,null,null,null,"Amblatory Disability - 75 and Over",null,"N",{"$f":"DisabilityByAgePrior5YearEst!$O$41/1.645","v":24.618184475764846},{"$f":"DisabilityByAge!$O$41/1.645","v":14.191632255232525},{"$f":"SQRT((K151^2)+(L151^2))","v":28.415795483331898},{"$f":"DisabilityByAge!$D$31-DisabilityByAgePrior5YearEst!$D$31","v":-6},{"$f":"ABS((N151/M151))","v":0.21115016834631542},1.645]
[null,null,null,null,null,null,null,"Self Care Disability - 5 to 17",null,"N",{"$f":"DisabilityByAgePrior5YearEst!$F$42/1.645","v":0},{"$f":"DisabilityByAge!$F$42/1.645","v":11.550151975683891},{"$f":"SQRT((K152^2)+(L152^2))","v":11.550151975683891},{"$f":"DisabilityByAge!$D$31-DisabilityByAgePrior5YearEst!$D$31","v":-6},{"$f":"ABS((N152/M152))","v":0.51947368421052631},1.645]
[null,null,null,null,null,null,null,"Self Care Disability - 18 to 34",null,"N",{"$f":"DisabilityByAgePrior5YearEst!$I$42/1.645","v":27.570919077078582},{"$f":"DisabilityByAge!$I$42/1.645","v":9.4957442868166009},{"$f":"SQRT((K153^2)+(L153^2))","v":29.160328158568891},{"$f":"DisabilityByAge!$D$31-DisabilityByAgePrior5YearEst!$D$31","v":-6},{"$f":"ABS((N153/M153))","v":0.20575900131757857},1.645]
[null,null,null,null,null,null,null,"Self Care Disability - 35 to 64",null,"N",{"$f":"DisabilityByAgePrior5YearEst!$K$42/1.645","v":30.528582442528194},{"$f":"DisabilityByAge!$K$42/1.645","v":33.764605658355784},{"$f":"SQRT((K155^2)+(L155^2))","v":17.796086526813916},{"$f":"DisabilityByAge!$D$31-DisabilityByAgePrior5YearEst!$D$31","v":-6},{"$f":"ABS((N155/M155))","v":0.33715277743562405},1.645]
[null,null,null,null,null,null,null,"Self Care Disability - 65 to 74",null,"N",{"$f":"DisabilityByAgePrior5YearEst!$M$42/1.645","v":14.500742178573329},{"$f":"DisabilityByAge!$M$42/1.645","v":10.316451518831087},{"$f":"SQRT((K155^2)+(L155^2))","v":17.796086526813916},{"$f":"DisabilityByAge!$D$31-DisabilityByAgePrior5YearEst!$D$31","v":-6},{"$f":"ABS((N155/M155))","v":0.33715277743562405},1.645]
[null,null,null,null,null,null,null,"Self Care Disability - 75 and Over",null,"N",{"$f":"DisabilityByAgePrior5YearEst!$O$42/1.645","v":6.7965592021270202},{"$f":"DisabilityByAge!$O$42/1.645","v":9.1992376598307342},{"$f":"SQRT((K156^2)+(L156^2))","v":11.437621715639381},{"$f":"DisabilityByAge!$D$31-DisabilityByAgePrior5YearEst!$D$31","v":-6},{"$f":"ABS((N156/M156))","v":0.52458458140784825},1.645]
[null,null,null,null,null,null,null,"Independant Living Disability - 18 to 34",null,"N",{"$f":"DisabilityByAgePrior5YearEst!$I$43/1.645","v":31.122007869106881},{"$f":"DisabilityByAge!$I$43/1.645","v":27.308300845247661},{"$f":"SQRT((K157^2)+(L157^2))","v":41.404379827009905},{"$f":"DisabilityByAge!$D$31-DisabilityByAgePrior5YearEst!$D$31","v":-6},{"$f":"ABS((N157/M157))","v":0.144912205546089},1.645]
[null,null,null,null,null,null,null,"Independant Living Disability - 35 to 64",null,"N",{"$f":"DisabilityByAgePrior5YearEst!$K$43/1.645","v":49.56924044230076},{"$f":"DisabilityByAge!$K$43/1.645","v":43.777439239851269},{"$f":"SQRT((K159^2)+(L159^2))","v":21.612630801983194},{"$f":"DisabilityByAge!$D$31-DisabilityByAgePrior5YearEst!$D$31","v":-6},{"$f":"ABS((N159/M159))","v":0.27761543955349643},1.645]
[null,null,null,null,null,null,null,"Independant Living Disability - 65 to 74",null,"N",{"$f":"DisabilityByAgePrior5YearEst!$M$43/1.645","v":18.991488573633202},{"$f":"DisabilityByAge!$M$43/1.645","v":10.316451518831087},{"$f":"SQRT((K159^2)+(L159^2))","v":21.612630801983194},{"$f":"DisabilityByAge!$D$31-DisabilityByAgePrior5YearEst!$D$31","v":-6},{"$f":"ABS((N159/M159))","v":0.27761543955349643},1.645]
[null,null,null,null,null,null,null,"Independant Living Disability - 75 and Over",null,"N",{"$f":"DisabilityByAgePrior5YearEst!$O$43/1.645","v":29.20464960356064},{"$f":"DisabilityByAge!$O$43/1.645","v":30.18162088098823},{"$f":"SQRT((K160^2)+(L160^2))","v":41.998116594324316},{"$f":"DisabilityByAge!$D$31-DisabilityByAgePrior5YearEst!$D$31","v":-6},0.14286354928618034,1.645]
[null,null,null,null,null,null,null,"No Disability - Under 5",null,"N",{"$f":"DisabilityByAgePrior5YearEst!$E$47/1.645","v":63.227729446904739},{"$f":"DisabilityByAge!$E$47/1.645","v":55.532505491108957},{"$f":"SQRT((K161^2)+(L161^2))","v":84.152272323039682},{"$f":"DisabilityByAge!$D$47-DisabilityByAgePrior5YearEst!$D$47","v":-41},0.48721203680170605,1.645]
[null,null,null,null,null,null,null,"No Disability - 5 to 17",null,"N",{"$f":"DisabilityByAgePrior5YearEst!$F$47/1.645","v":648.63221884498478},{"$f":"DisabilityByAge!$F$47/1.645","v":417.02127659574467},{"$f":"SQRT((K162^2)+(L162^2))","v":771.12288285156785},{"$f":"DisabilityByAge!$D$47-DisabilityByAgePrior5YearEst!$D$47","v":-41},5.3169217140054736E-2,1.645]
[null,null,null,null,null,null,null,"No Disability - 18 to 34",null,"N",{"$f":"DisabilityByAgePrior5YearEst!$I$47/1.645","v":113.13198936332719},{"$f":"DisabilityByAge!$I$47/1.645","v":124.51771318006965},168.23646427840211,{"$f":"DisabilityByAge!$D$47-DisabilityByAgePrior5YearEst!$D$47","v":-41},0.24370459861871638,1.645]
[null,null,null,null,null,null,null,"No Disability - 35 to 64",null,"N",{"$f":"DisabilityByAgePrior5YearEst!$K$47/1.645","v":100.71757766432152},{"$f":"DisabilityByAge!$K$47/1.645","v":115.63102641915656},153.344594692204,{"$f":"DisabilityByAge!$D$47-DisabilityByAgePrior5YearEst!$D$47","v":-41},0.2673716675980391,1.645]
[null,null,null,null,null,null,null,"No Disability - 65 to 74",null,{"$f":"IF(O165>P165,\"Y\",\"N\")","v":"N"},{"$f":"DisabilityByAgePrior5YearEst!$M$47/1.645","v":55.731785457441568},{"$f":"DisabilityByAge!$M$47/1.645","v":61.334945924033747},82.873442680863931,{"$f":"DisabilityByAge!$D$47-DisabilityByAgePrior5YearEst!$D$47","v":-41},0.4947302618751615,1.645]
[null,null,null,null,null,null,null,"No Disability - 75 and Over",null,"N",{"$f":"DisabilityByAgePrior5YearEst!$O$47/1.645","v":25.452184091742637},{"$f":"DisabilityByAge!$O$47/1.645","v":21.267909646852157},33.168323077699057,{"$f":"DisabilityByAge!$D$47-DisabilityByAgePrior5YearEst!$D$47","v":-41},{"$f":"ABS((N166/M166))","v":1.236119170208114},1.645]
[{"$f":"IF(F167>G167,\"Y\",\"N\")","v":"N"},null,null,null,null,null,null,"Renter Total:",null,"N",{"$f":"'RentalHousingCost-Prior5Yr'!$F$52/1.645","v":65.045592705167167},{"$f":"RentalHousingCost!$F$52/1.645","v":93.00911854103343},113.49724781749778,{"$f":"'RentalHousingCost-Prior5Yr'!$E$52-RentalHousingCost!$E$52","v":94},{"$f":"ABS((N167/M167))","v":0.82821391538190314},1.645]
["N",null,null,null,null,null,null,"Renter Less than 20.0 percent",null,"Y",{"$f":"'RentalHousingCost-Prior5Yr'!$F$53/1.645","v":9.1185410334346511},{"$f":"RentalHousingCost!$F$53/1.645","v":50.158422722762964},50.980537076553198,{"$f":"'RentalHousingCost-Prior5Yr'!$E$53-RentalHousingCost!$E$53","v":-128},2.5107620935376405,1.645]
["N",null,null,null,null,null,null,"Renter 20.0 to 24.9 percent",null,"N",{"$f":"'RentalHousingCost-Prior5Yr'!$F$54/1.645","v":21.276595744680851},{"$f":"RentalHousingCost!$F$54/1.645","v":10.94224924012158},23.925433014169514,{"$f":"'RentalHousingCost-Prior5Yr'!$E$54-RentalHousingCost!$E$54","v":4},0.16718610683581167,1.645]
["N",null,null,null,null,null,null,"Renter 25.0 to 29.9 percent",null,"Y",{"$f":"'RentalHousingCost-Prior5Yr'!$F$55/1.645","v":52.887537993920972},{"$f":"RentalHousingCost!$F$55/1.645","v":13.373860182370821},54.552285114704752,{"$f":"'RentalHousingCost-Prior5Yr'!$E$55-RentalHousingCost!$E$55","v":120},2.1997245348692753,1.645]
["N",null,null,null,null,null,null,"Renter 30.0 to 34.9 percent",null,"Y",{"$f":"'RentalHousingCost-Prior5Yr'!$F$56/1.645","v":19.45288753799392},{"$f":"RentalHousingCost!$F$56/1.645","v":53.051487487590094},56.505532102722185,{"$f":"'RentalHousingCost-Prior5Yr'!$E$56-RentalHousingCost!$E$56","v":-139},2.4599361306307137,1.645]
["N",null,null,null,null,null,null,"Renter 35.0 to 39.9 percent",null,"Y",{"$f":"'RentalHousingCost-Prior5Yr'!$F$57/1.645","v":17.021276595744681},{"$f":"RentalHousingCost!$F$57/1.645","v":78.966541950667036},80.780186955684272,{"$f":"'RentalHousingCost-Prior5Yr'!$E$57-RentalHousingCost!$E$57","v":-152},1.8816495198678689,1.645]
["N",null,null,null,null,null,null,"Renter 40.0 to 49.9 percent",null,"Y",{"$f":"'RentalHousingCost-Prior5Yr'!$F$58/1.645","v":24.924012158054712},{"$f":"RentalHousingCost!$F$58/1.645","v":7.2948328267477205},25.969616247165749,{"$f":"'RentalHousingCost-Prior5Yr'!$E$58-RentalHousingCost!$E$58","v":47},1.8098072590937668,1.645]
["N",null,null,null,null,null,null,"Renter 50.0 percent or more",null,"Y",{"$f":"'RentalHousingCost-Prior5Yr'!$F$59/1.645","v":8.5106382978723403},{"$f":"RentalHousingCost!$F$59/1.645","v":53.550676098590245},54.222743151313693,{"$f":"'RentalHousingCost-Prior5Yr'!$E$59-RentalHousingCost!$E$59","v":-172},3.1721006722219443,1.645]
["N",null,null,null,null,null,null,"Renter Not computed",null,"Y",{"$f":"'RentalHousingCost-Prior5Yr'!$F$60/1.645","v":12.1580547112462},{"$f":"RentalHousingCost!$F$60/1.645","v":78.62887613133141},{"$f":"SQRT((K175^2)+(L175^2))","v":79.563298423569108},{"$f":"'RentalHousingCost-Prior5Yr'!$E$60-RentalHousingCost!$E$60","v":-167},2.0989577268522273,1.645]
["N",null,null,null,null,null,null,"Renter Less than $10,000:",null,"N",{"$f":"'RentalHousingCost-Prior5Yr'!$I$52/1.645","v":12.1580547112462},{"$f":"RentalHousingCost!$I$52/1.645","v":7.2948328267477205},{"$f":"SQRT((K176^2)+(L176^2))","v":14.178606431234773},{"$f":"'RentalHousingCost-Prior5Yr'!$H$52-RentalHousingCost!$H$52","v":16},1.1284606902377081,1.645]
["N",null,null,null,null,null,null,"Renter Less than 20.0 percent",null,"N",{"$f":"'RentalHousingCost-Prior5Yr'!$I$53/1.645","v":6.6869300911854106},{"$f":"RentalHousingCost!$I$53/1.645","v":7.2948328267477205},9.8959395720970864,{"$f":"'RentalHousingCost-Prior5Yr'!$H$53-RentalHousingCost!$H$53","v":0},0,1.645]
["N",null,null,null,null,null,null,"Renter 20.0 to 24.9 percent",null,"N",{"$f":"'RentalHousingCost-Prior5Yr'!$I$54/1.645","v":6.6869300911854106},{"$f":"RentalHousingCost!$I$54/1.645","v":7.2948328267477205},9.8959395720970864,{"$f":"'RentalHousingCost-Prior5Yr'!$H$54-RentalHousingCost!$H$54","v":0},0,1.645]
["N",null,null,null,null,null,null,"Renter 25.0 to 29.9 percent",null,"N",{"$f":"'RentalHousingCost-Prior5Yr'!$I$55/1.645","v":6.6869300911854106},{"$f":"RentalHousingCost!$I$55/1.645","v":7.2948328267477205},9.8959395720970864,{"$f":"'RentalHousingCost-Prior5Yr'!$H$55-RentalHousingCost!$H$55","v":0},0,1.645]
["N",null,null,null,null,null,null,"Renter 30.0 to 34.9 percent",null,"N",{"$f":"'RentalHousingCost-Prior5Yr'!$I$56/1.645","v":11.582102664594316},{"$f":"RentalHousingCost!$I$56/1.645","v":12.635021088648346},17.140270127503566,{"$f":"'RentalHousingCost-Prior5Yr'!$H$56-RentalHousingCost!$H$56","v":0},0,1.645]
["N",null,null,null,null,null,null,"Renter 35.0 to 39.9 percent",null,"N",{"$f":"'RentalHousingCost-Prior5Yr'!$I$57/1.645","v":16.79176573487311},{"$f":"RentalHousingCost!$I$57/1.645","v":14.589665653495441},22.24458901341275,{"$f":"'RentalHousingCost-Prior5Yr'!$H$57-RentalHousingCost!$H$57","v":16},0.71927604463056294,1.645]
["N",null,null,null,null,null,null,"Renter 40.0 to 49.9 percent",null,"N",{"$f":"'RentalHousingCost-Prior5Yr'!$I$58/1.645","v":6.6869300911854106},{"$f":"RentalHousingCost!$I$58/1.645","v":7.2948328267477205},9.8959395720970864,{"$f":"'RentalHousingCost-Prior5Yr'!$H$58-RentalHousingCost!$H$58","v":0},0,1.645]
["N",null,null,null,null,null,null,"Renter 50.0 percent or more",null,"N",{"$f":"'RentalHousingCost-Prior5Yr'!$I$59/1.645","v":13.373860182370821},{"$f":"RentalHousingCost!$I$59/1.645","v":14.589665653495441},19.791879144194173,{"$f":"'RentalHousingCost-Prior5Yr'!$H$59-RentalHousingCost!$H$59","v":0},0,1.645]
["N",null,null,null,null,null,null,"Renter Not computed",null,"N",{"$f":"'RentalHousingCost-Prior5Yr'!$I$60/1.645","v":15.402868643550063},{"$f":"RentalHousingCost!$I$60/1.645","v":12.635021088648346},{"$f":"SQRT((K184^2)+(L184^2))","v":19.922151499299623},{"$f":"'RentalHousingCost-Prior5Yr'!$H$60-RentalHousingCost!$H$60","v":16},0.80312610816971708,1.645]
["N",null,null,null,null,null,null,"Renter $10,000 to $19,999:",null,"N",{"$f":"'RentalHousingCost-Prior5Yr'!$K$52/1.645","v":51.063829787234042},{"$f":"RentalHousingCost!$K$52/1.645","v":65.045592705167167},{"$f":"SQRT((K185^2)+(L185^2))","v":82.694884018941011},{"$f":"'RentalHousingCost-Prior5Yr'!$J$52-RentalHousingCost!$J$52","v":22},0.26603822305332658,1.645]
["N",null,null,null,null,null,null,"Renter Less than 20.0 percent",null,"N",{"$f":"'RentalHousingCost-Prior5Yr'!$K$53/1.645","v":26.13981762917933},{"$f":"RentalHousingCost!$K$53/1.645","v":9.1185410334346511},27.684614071089847,{"$f":"'RentalHousingCost-Prior5Yr'!$J$53-RentalHousingCost!$J$53","v":18},0.65018063657231262,1.645]
["N",null,null,null,null,null,null,"Renter 20.0 to 24.9 percent",null,"N",{"$f":"'RentalHousingCost-Prior5Yr'!$K$54/1.645","v":9.7264437689969601},{"$f":"RentalHousingCost!$K$54/1.645","v":7.2948328267477205},12.158054711246201,{"$f":"'RentalHousingCost-Prior5Yr'!$J$54-RentalHousingCost!$J$54","v":10},0.8224999999999999,1.645]
["N",null,null,null,null,null,null,"Renter 25.0 to 29.9 percent",null,"N",{"$f":"'RentalHousingCost-Prior5Yr'!$K$55/1.645","v":12.1580547112462},{"$f":"RentalHousingCost!$K$55/1.645","v":7.2948328267477205},14.178606431234773,{"$f":"'RentalHousingCost-Prior5Yr'!$J$55-RentalHousingCost!$J$55","v":17},1.1989894833775649,1.645]
["N",null,null,null,null,null,null,"Renter 30.0 to 34.9 percent",null,"N",{"$f":"'RentalHousingCost-Prior5Yr'!$K$56/1.645","v":30.425516732503826},{"$f":"RentalHousingCost!$K$56/1.645","v":13.768695018730851},33.395943330870203,{"$f":"'RentalHousingCost-Prior5Yr'!$J$56-RentalHousingCost!$J$56","v":45},1.3474690489848615,1.645]
["N",null,null,null,null,null,null,"Renter 35.0 to 39.9 percent",null,"N",{"$f":"'RentalHousingCost-Prior5Yr'!$K$57/1.645","v":47.630255853979143},{"$f":"RentalHousingCost!$K$57/1.645","v":65.227142030479627},80.766461666832214,{"$f":"'RentalHousingCost-Prior5Yr'!$J$57-RentalHousingCost!$J$57","v":-23},0.28477166790934516,1.645]
["N",null,null,null,null,null,null,"Renter 40.0 to 49.9 percent",null,"N",{"$f":"'RentalHousingCost-Prior5Yr'!$K$58/1.645","v":6.6869300911854106},{"$f":"RentalHousingCost!$K$58/1.645","v":7.2948328267477205},9.8959395720970864,{"$f":"'RentalHousingCost-Prior5Yr'!$J$58-RentalHousingCost!$J$58","v":0},0,1.645]
["N",null,null,null,null,null,null,"Renter 50.0 percent or more",null,"N",{"$f":"'RentalHousingCost-Prior5Yr'!$K$59/1.645","v":31.151678967340928},{"$f":"RentalHousingCost!$K$59/1.645","v":15.581769748299449},34.831288390946597,{"$f":"'RentalHousingCost-Prior5Yr'!$J$59-RentalHousingCost!$J$59","v":45},1.2919418740679276,1.645]
["N",null,null,null,null,null,null,"Renter Not computed",null,"N",{"$f":"'RentalHousingCost-Prior5Yr'!$K$60/1.645","v":47.158522439439444},{"$f":"RentalHousingCost!$K$60/1.645","v":64.81794096925762},{"$f":"SQRT((K193^2)+(L193^2))","v":80.157917326769905},{"$f":"'RentalHousingCost-Prior5Yr'!$J$60-RentalHousingCost!$J$60","v":-23},0.28693360265635065,1.645]
["N",null,null,null,null,null,null,"Renter $20,000 to $34,999:",null,"N",{"$f":"'RentalHousingCost-Prior5Yr'!$M$52/1.645","v":34.042553191489361},{"$f":"RentalHousingCost!$M$52/1.645","v":41.337386018237083},{"$f":"SQRT((K194^2)+(L194^2))","v":53.550676098590252},{"$f":"'RentalHousingCost-Prior5Yr'!$L$52-RentalHousingCost!$L$52","v":34},0.63491261879502336,1.645]
["N",null,null,null,null,null,null,"Renter Less than 20.0 percent",null,"N",{"$f":"'RentalHousingCost-Prior5Yr'!$M$53/1.645","v":25.531914893617021},{"$f":"RentalHousingCost!$M$53/1.645","v":7.2948328267477205},26.553592301327118,{"$f":"'RentalHousingCost-Prior5Yr'!$L$53-RentalHousingCost!$L$53","v":27},1.0168115746301705,1.645]
["N",null,null,null,null,null,null,"Renter 20.0 to 24.9 percent",null,"N",{"$f":"'RentalHousingCost-Prior5Yr'!$M$54/1.645","v":10.94224924012158},{"$f":"RentalHousingCost!$M$54/1.645","v":4.86322188449848},11.974295199752103,{"$f":"'RentalHousingCost-Prior5Yr'!$L$54-RentalHousingCost!$L$54","v":6},0.50107333249344099,1.645]
["N",null,null,null,null,null,null,"Renter 25.0 to 29.9 percent",null,"N",{"$f":"'RentalHousingCost-Prior5Yr'!$M$55/1.645","v":7.9027355623100304},{"$f":"RentalHousingCost!$M$55/1.645","v":7.9027355623100304},11.176155812067012,{"$f":"'RentalHousingCost-Prior5Yr'!$L$55-RentalHousingCost!$L$55","v":0},0,1.645]
["N",null,null,null,null,null,null,"Renter 30.0 to 34.9 percent",null,"N",{"$f":"'RentalHousingCost-Prior5Yr'!$M$56/1.645","v":28.880178772570705},{"$f":"RentalHousingCost!$M$56/1.645","v":11.803336072308571},31.199094031261616,{"$f":"'RentalHousingCost-Prior5Yr'!$L$56-RentalHousingCost!$L$56","v":33},1.0577230212817677,1.645]
["N",null,null,null,null,null,null,"Renter 35.0 to 39.9 percent",null,"N",{"$f":"'RentalHousingCost-Prior5Yr'!$M$57/1.645","v":20.317051631694106},{"$f":"RentalHousingCost!$M$57/1.645","v":42.291859284926652},46.918908222388986,{"$f":"'RentalHousingCost-Prior5Yr'!$L$57-RentalHousingCost!$L$57","v":1},2.131336891430085E-2,1.645]
["N",null,null,null,null,null,null,"Renter 40.0 to 49.9 percent",null,"N",{"$f":"'RentalHousingCost-Prior5Yr'!$M$58/1.645","v":12.1580547112462},{"$f":"RentalHousingCost!$M$58/1.645","v":7.2948328267477205},14.178606431234773,{"$f":"'RentalHousingCost-Prior5Yr'!$L$58-RentalHousingCost!$L$58","v":17},1.1989894833775649,1.645]
["N",null,null,null,null,null,null,"Renter 50.0 percent or more",null,"N",{"$f":"'RentalHousingCost-Prior5Yr'!$M$59/1.645","v":31.335012690236773},{"$f":"RentalHousingCost!$M$59/1.645","v":13.875637945912858},34.269758515393079,{"$f":"'RentalHousingCost-Prior5Yr'!$L$59-RentalHousingCost!$L$59","v":50},1.4590123235779822,1.645]
["N",null,null,null,null,null,null,"Renter Not computed",null,"N",{"$f":"'RentalHousingCost-Prior5Yr'!$M$60/1.645","v":16.277723816408368},{"$f":"RentalHousingCost!$M$60/1.645","v":41.65797373619894},44.725284442349931,{"$f":"'RentalHousingCost-Prior5Yr'!$L$60-RentalHousingCost!$L$60","v":-16},0.35773948001658223,1.645]
["N",null,null,null,null,null,null,"Renter $35,000 to $49,999:",null,"N",{"$f":"'RentalHousingCost-Prior5Yr'!$O$52/1.645","v":7.9027355623100304},{"$f":"RentalHousingCost!$O$52/1.645","v":37.689969604863222},38.509570734861654,{"$f":"'RentalHousingCost-Prior5Yr'!$N$52-RentalHousingCost!$N$52","v":-49},1.2724109634294534,1.645]
["N",null,null,null,null,null,null,"Renter Less than 20.0 percent",null,"N",{"$f":"'RentalHousingCost-Prior5Yr'!$O$53/1.645","v":6.6869300911854106},{"$f":"RentalHousingCost!$O$53/1.645","v":36.474164133738604},37.08206686930091,{"$f":"'RentalHousingCost-Prior5Yr'!$N$53-RentalHousingCost!$N$53","v":-41},1.1056557377049181,1.645]
["N",null,null,null,null,null,null,"Renter 20.0 to 24.9 percent",null,"N",{"$f":"'RentalHousingCost-Prior5Yr'!$O$54/1.645","v":6.6869300911854106},{"$f":"RentalHousingCost!$O$54/1.645","v":7.2948328267477205},9.8959395720970864,{"$f":"'RentalHousingCost-Prior5Yr'!$N$54-RentalHousingCost!$N$54","v":0},0,1.645]
["N",null,null,null,null,null,null,"Renter 25.0 to 29.9 percent",null,"N",{"$f":"'RentalHousingCost-Prior5Yr'!$O$55/1.645","v":6.6869300911854106},{"$f":"RentalHousingCost!$O$55/1.645","v":12.76595744680851},14.411270019610575,{"$f":"'RentalHousingCost-Prior5Yr'!$N$55-RentalHousingCost!$N$55","v":-16},1.1102421908844615,1.645]
["N",null,null,null,null,null,null,"Renter 30.0 to 34.9 percent",null,"N",{"$f":"'RentalHousingCost-Prior5Yr'!$O$56/1.645","v":11.582102664594316},{"$f":"RentalHousingCost!$O$56/1.645","v":39.326185993035544},40.996268206899366,{"$f":"'RentalHousingCost-Prior5Yr'!$N$56-RentalHousingCost!$N$56","v":-57},1.3903704530454635,1.645]
["N",null,null,null,null,null,null,"Renter 35.0 to 39.9 percent",null,{"$f":"IF(O208>P208,\"Y\",\"N\")","v":"N"},{"$f":"'RentalHousingCost-Prior5Yr'!$O$57/1.645","v":13.373860182370821},{"$f":"RentalHousingCost!$O$57/1.645","v":14.589665653495441},19.791879144194173,{"$f":"'RentalHousingCost-Prior5Yr'!$N$57-RentalHousingCost!$N$57","v":0},0,1.645]
["N",null,null,null,null,null,null,"Renter 40.0 to 49.9 percent",null,"N",{"$f":"'RentalHousingCost-Prior5Yr'!$O$58/1.645","v":6.6869300911854106},{"$f":"RentalHousingCost!$O$58/1.645","v":7.2948328267477205},9.8959395720970864,{"$f":"'RentalHousingCost-Prior5Yr'!$N$58-RentalHousingCost!$N$58","v":0},0,1.645]
["N",null,null,null,null,null,null,"Renter 50.0 percent or more",null,"N",{"$f":"'RentalHousingCost-Prior5Yr'!$O$59/1.645","v":18.269032755779726},{"$f":"RentalHousingCost!$O$59/1.645","v":46.621018819783259},50.072716659138216,{"$f":"'RentalHousingCost-Prior5Yr'!$N$59-RentalHousingCost!$N$59","v":-57},1.138344467866965,1.645]
["N",null,null,null,null,null,null,"Renter Not computed",null,"N",{"$f":"'RentalHousingCost-Prior5Yr'!$O$60/1.645","v":11.582102664594316},{"$f":"RentalHousingCost!$O$60/1.645","v":12.635021088648346},17.140270127503566,{"$f":"'RentalHousingCost-Prior5Yr'!$N$60-RentalHousingCost!$N$60","v":0},0,1.645]
["N",null,null,null,null,null,null,"Renter $50,000 to $74,999:",null,"N",{"$f":"'RentalHousingCost-Prior5Yr'!$Q$52/1.645","v":32.826747720364743},{"$f":"RentalHousingCost!$Q$52/1.645","v":26.13981762917933},41.96290542351931,{"$f":"'RentalHousingCost-Prior5Yr'!$P$52-RentalHousingCost!$P$52","v":42},1.0008839849411357,1.645]
["N",null,null,null,null,null,null,"Renter Less than 20.0 percent",null,"N",{"$f":"'RentalHousingCost-Prior5Yr'!$Q$53/1.645","v":24.924012158054712},{"$f":"RentalHousingCost!$Q$53/1.645","v":17.021276595744681},30.181620880988227,{"$f":"'RentalHousingCost-Prior5Yr'!$P$53-RentalHousingCost!$P$53","v":38},1.2590443750466915,1.645]
["N",null,null,null,null,null,null,"Renter 20.0 to 24.9 percent",null,"N",{"$f":"'RentalHousingCost-Prior5Yr'!$Q$54/1.645","v":8.5106382978723403},{"$f":"RentalHousingCost!$Q$54/1.645","v":7.9027355623100304},11.613965455649119,{"$f":"'RentalHousingCost-Prior5Yr'!$P$54-RentalHousingCost!$P$54","v":0},0,1.645]
["N",null,null,null,null,null,null,"Renter 25.0 to 29.9 percent",null,"N",{"$f":"'RentalHousingCost-Prior5Yr'!$Q$55/1.645","v":6.6869300911854106},{"$f":"RentalHousingCost!$Q$55/1.645","v":7.2948328267477205},9.8959395720970864,{"$f":"'RentalHousingCost-Prior5Yr'!$P$55-RentalHousingCost!$P$55","v":0},0,1.645]
["N",null,null,null,null,null,null,"Renter 30.0 to 34.9 percent",null,"N",{"$f":"'RentalHousingCost-Prior5Yr'!$Q$56/1.645","v":27.172640290124022},{"$f":"RentalHousingCost!$Q$56/1.645","v":20.134340622102364},33.819285217510327,{"$f":"'RentalHousingCost-Prior5Yr'!$P$56-RentalHousingCost!$P$56","v":38},1.1236192532042357,1.645]
["N",null,null,null,null,null,null,"Renter 35.0 to 39.9 percent",null,"N",{"$f":"'RentalHousingCost-Prior5Yr'!$Q$57/1.645","v":24.760379154305532},{"$f":"RentalHousingCost!$Q$57/1.645","v":22.688702257169027},33.583531469746227,{"$f":"'RentalHousingCost-Prior5Yr'!$P$57-RentalHousingCost!$P$57","v":4},0.11910599704511141,1.645]
["N",null,null,null,null,null,null,"Renter 40.0 to 49.9 percent",null,"N",{"$f":"'RentalHousingCost-Prior5Yr'!$Q$58/1.645","v":21.88449848024316},{"$f":"RentalHousingCost!$Q$58/1.645","v":7.2948328267477205},23.068286882687264,{"$f":"'RentalHousingCost-Prior5Yr'!$P$58-RentalHousingCost!$P$58","v":30},1.300486687744246,1.645]
["N",null,null,null,null,null,null,"Renter 50.0 percent or more",null,"Y",{"$f":"'RentalHousingCost-Prior5Yr'!$Q$59/1.645","v":34.889592345973846},{"$f":"RentalHousingCost!$Q$59/1.645","v":21.415094168764181},40.937634425126156,{"$f":"'RentalHousingCost-Prior5Yr'!$P$59-RentalHousingCost!$P$59","v":68},1.6610632479111658,1.645]
["N",null,null,null,null,null,null,"Renter Not computed",null,"N",{"$f":"'RentalHousingCost-Prior5Yr'!$Q$60/1.645","v":11.582102664594316},{"$f":"RentalHousingCost!$Q$60/1.645","v":21.484008567869047},24.407124498340099,{"$f":"'RentalHousingCost-Prior5Yr'!$P$60-RentalHousingCost!$P$60","v":-26},1.0652627269454962,1.645]
["N",null,null,null,null,null,null,"Renter $75,000 to $99,999:",null,"N",{"$f":"'RentalHousingCost-Prior5Yr'!$S$52/1.645","v":19.45288753799392},{"$f":"RentalHousingCost!$S$52/1.645","v":18.844984802431611},27.084096547046155,{"$f":"'RentalHousingCost-Prior5Yr'!$R$52-RentalHousingCost!$R$52","v":10},0.36922036452755963,1.645]
["N",null,null,null,null,null,null,"Renter Less than 20.0 percent",null,"N",{"$f":"'RentalHousingCost-Prior5Yr'!$S$53/1.645","v":7.9027355623100304},{"$f":"RentalHousingCost!$S$53/1.645","v":18.237082066869302},19.875723676926221,{"$f":"'RentalHousingCost-Prior5Yr'!$R$53-RentalHousingCost!$R$53","v":-22},1.1068779359988716,1.645]
["N",null,null,null,null,null,null,"Renter 20.0 to 24.9 percent",null,"N",{"$f":"'RentalHousingCost-Prior5Yr'!$S$54/1.645","v":10.334346504559271},{"$f":"RentalHousingCost!$S$54/1.645","v":4.86322188449848},11.421455457784763,{"$f":"'RentalHousingCost-Prior5Yr'!$R$54-RentalHousingCost!$R$54","v":8},0.70043612476265193,1.645]
["N",null,null,null,null,null,null,"Renter 25.0 to 29.9 percent",null,"N",{"$f":"'RentalHousingCost-Prior5Yr'!$S$55/1.645","v":9.1185410334346511},{"$f":"RentalHousingCost!$S$55/1.645","v":7.2948328267477205},11.677430220242277,{"$f":"'RentalHousingCost-Prior5Yr'!$R$55-RentalHousingCost!$R$55","v":14},1.1988939120981992,1.645]
["N",null,null,null,null,null,null,"Renter 30.0 to 34.9 percent",null,"N",{"$f":"'RentalHousingCost-Prior5Yr'!$S$56/1.645","v":15.887093429023682},{"$f":"RentalHousingCost!$S$56/1.645","v":20.235035838411232},25.726570175682461,{"$f":"'RentalHousingCost-Prior5Yr'!$R$56-RentalHousingCost!$R$56","v":0},0,1.645]
["N",null,null,null,null,null,null,"Renter 35.0 to 39.9 percent",null,"N",{"$f":"'RentalHousingCost-Prior5Yr'!$S$57/1.645","v":13.373860182370821},{"$f":"RentalHousingCost!$S$57/1.645","v":14.589665653495441},19.791879144194173,{"$f":"'RentalHousingCost-Prior5Yr'!$R$57-RentalHousingCost!$R$57","v":0},0,1.645]
["N",null,null,null,null,null,null,"Renter 40.0 to 49.9 percent",null,"N",{"$f":"'RentalHousingCost-Prior5Yr'!$S$58/1.645","v":6.6869300911854106},{"$f":"RentalHousingCost!$S$58/1.645","v":7.2948328267477205},9.8959395720970864,{"$f":"'RentalHousingCost-Prior5Yr'!$R$58-RentalHousingCost!$R$58","v":0},0,1.645]
["N",null,null,null,null,null,null,"Renter 50.0 percent or more",null,"N",{"$f":"'RentalHousingCost-Prior5Yr'!$S$59/1.645","v":17.23701748177243},{"$f":"RentalHousingCost!$S$59/1.645","v":21.509794544625084},27.56421653192616,{"$f":"'RentalHousingCost-Prior5Yr'!$R$59-RentalHousingCost!$R$59","v":0},0,1.645]
["N",null,null,null,null,null,null,"Renter Not computed",null,"N",{"$f":"'RentalHousingCost-Prior5Yr'!$S$60/1.645","v":11.582102664594316},{"$f":"RentalHousingCost!$S$60/1.645","v":12.635021088648346},17.140270127503566,{"$f":"'RentalHousingCost-Prior5Yr'!$R$60-RentalHousingCost!$R$60","v":0},0,1.645]
["N",null,null,null,null,null,null,"Renter $100,000 or more:",null,"N",{"$f":"'RentalHousingCost-Prior5Yr'!$U$52/1.645","v":29.787234042553191},{"$f":"RentalHousingCost!$U$52/1.645","v":20.668693009118542},36.255677936166428,{"$f":"'RentalHousingCost-Prior5Yr'!$T$52-RentalHousingCost!$T$52","v":19},0.52405584674081551,1.645]
[{"$f":"IF(F231>G231,\"Y\",\"N\")","v":"N"},null,null,null,null,null,null,"Renter Less than 20.0 percent",null,"N",{"$f":"'RentalHousingCost-Prior5Yr'!$U$53/1.645","v":29.787234042553191},{"$f":"RentalHousingCost!$U$53/1.645","v":20.668693009118542},36.255677936166428,{"$f":"'RentalHousingCost-Prior5Yr'!$T$53-RentalHousingCost!$T$53","v":19},{"$f":"ABS((N231/M231))","v":0.52405584674081551},1.645]
["N",null,null,null,null,null,null,"Renter 20.0 to 24.9 percent",null,"N",{"$f":"'RentalHousingCost-Prior5Yr'!$U$54/1.645","v":6.6869300911854106},{"$f":"RentalHousingCost!$U$54/1.645","v":7.2948328267477205},9.8959395720970864,{"$f":"'RentalHousingCost-Prior5Yr'!$T$54-RentalHousingCost!$T$54","v":0},0,1.645]
["N",null,null,null,null,null,null,"Renter 25.0 to 29.9 percent",null,"N",{"$f":"'RentalHousingCost-Prior5Yr'!$U$55/1.645","v":6.6869300911854106},{"$f":"RentalHousingCost!$U$55/1.645","v":7.2948328267477205},9.8959395720970864,{"$f":"'RentalHousingCost-Prior5Yr'!$T$55-RentalHousingCost!$T$55","v":0},0,1.645]
["N",null,null,null,null,null,null,"Renter 30.0 to 34.9 percent",null,"N",{"$f":"'RentalHousingCost-Prior5Yr'!$U$56/1.645","v":31.252349991554901},{"$f":"RentalHousingCost!$U$56/1.645","v":23.100303951367781},38.86300840954312,{"$f":"'RentalHousingCost-Prior5Yr'!$T$56-RentalHousingCost!$T$56","v":19},0.48889678842604473,1.645]
["N",null,null,null,null,null,null,"Renter 35.0 to 39.9 percent",null,"N",{"$f":"'RentalHousingCost-Prior5Yr'!$U$57/1.645","v":13.373860182370821},{"$f":"RentalHousingCost!$U$57/1.645","v":14.589665653495441},19.791879144194173,{"$f":"'RentalHousingCost-Prior5Yr'!$T$57-RentalHousingCost!$T$57","v":0},0,1.645]
["N",null,null,null,null,null,null,"Renter 40.0 to 49.9 percent",null,"N",{"$f":"'RentalHousingCost-Prior5Yr'!$U$58/1.645","v":6.6869300911854106},{"$f":"RentalHousingCost!$U$58/1.645","v":7.2948328267477205},9.8959395720970864,{"$f":"'RentalHousingCost-Prior5Yr'!$T$58-RentalHousingCost!$T$58","v":0},0,1.645]
["N",null,null,null,null,null,null,"Renter 50.0 percent or more",null,"N",{"$f":"'RentalHousingCost-Prior5Yr'!$U$59/1.645","v":31.959731132145688},{"$f":"RentalHousingCost!$U$59/1.645","v":24.224752395345014},40.103155021205204,{"$f":"'RentalHousingCost-Prior5Yr'!$T$59-RentalHousingCost!$T$59","v":19},0.47377818503191177,1.645]
["N",null,null,null,null,null,null,"Renter Not computed",null,"N",{"$f":"'RentalHousingCost-Prior5Yr'!$U$60/1.645","v":11.582102664594316},{"$f":"RentalHousingCost!$U$60/1.645","v":12.635021088648346},17.140270127503566,{"$f":"'RentalHousingCost-Prior5Yr'!$T$60-RentalHousingCost!$T$60","v":0},0,1.645]
[null,null,null,null,null,null,null,"Total Owner Housing",null,"Y",{"$f":"OwnerHousingCostPrior5Year!$F$50/1.645","v":75.98784194528875},{"$f":"OwnerHousingCost!$F$50/1.645","v":101.51975683890578},126.8085689223435,{"$f":"OwnerHousingCostPrior5Year!$E$50-OwnerHousingCost!$E$50","v":-216},1.7033549217977264,1.645]
[null,null,null,null,null,null,null,"Monthly Costs Less than 20% of HH Income",null,"N",{"$f":"OwnerHousingCostPrior5Year!$F$51/1.645","v":73.744389953170824},{"$f":"OwnerHousingCost!$F$51/1.645","v":100.24314266175702},124.44646519797455,{"$f":"OwnerHousingCostPrior5Year!$E$51-OwnerHousingCost!$E$51","v":-177},1.4222983330094683,1.645]
[null,null,null,null,null,null,null,"Monthly Costs 20% to 29.9% of HH Income",null,"N",{"$f":"OwnerHousingCostPrior5Year!$F$52/1.645","v":44.109616859992059},{"$f":"OwnerHousingCost!$F$52/1.645","v":78.917389003897412},90.408033861641755,{"$f":"OwnerHousingCostPrior5Year!$E$52-OwnerHousingCost!$E$52","v":-55},0.60835301522175178,1.645]
[null,null,null,null,null,null,null,"Monthly Costs Less Than 30% of HH Income",null,"N",{"$f":"OwnerHousingCostPrior5Year!$F$53/1.645","v":85.9295836665151},{"$f":"OwnerHousingCost!$F$53/1.645","v":127.57994332142431},153.81981435107267,{"$f":"OwnerHousingCostPrior5Year!$E$53-OwnerHousingCost!$E$53","v":-232},1.5082582239404592,1.645]
[null,null,null,null,null,null,null,"Monthly Costs 30% or More of HH Income",null,"N",{"$f":"OwnerHousingCostPrior5Year!$F$54/1.645","v":71.451202519731538},{"$f":"OwnerHousingCost!$F$54/1.645","v":87.362624065604834},112.86054414694219,{"$f":"OwnerHousingCostPrior5Year!$E$54-OwnerHousingCost!$E$54","v":-5},4.4302462280264208E-2,1.645]
[null,null,null,null,null,null,null,"Monthly Costs 35% or More of HH Income",null,"N",{"$f":"OwnerHousingCostPrior5Year!$F$56/1.645","v":60.653341218153116},{"$f":"OwnerHousingCost!$F$56/1.645","v":64.600928751570208},88.612119918728737,{"$f":"OwnerHousingCostPrior5Year!$E$56-OwnerHousingCost!$E$56","v":61},0.68839341679159238,1.645]
[null,null,null,null,null,null,null,"Monthly Costs 50% or More of HH Income",null,"N",{"$f":"OwnerHousingCostPrior5Year!$F$57/1.645","v":50.514486104661948},{"$f":"OwnerHousingCost!$F$57/1.645","v":42.830188337528355},66.227927186695453,{"$f":"OwnerHousingCostPrior5Year!$E$57-OwnerHousingCost!$E$57","v":90},1.3589433313576531,1.645]
[null,null,null,null,null,null,null,"Percent not computed",null,"N",{"$f":"OwnerHousingCostPrior5Year!$F$58/1.645","v":13.660914926592238},{"$f":"OwnerHousingCost!$F$58/1.645","v":10.316451518831087},17.11869646240574,{"$f":"OwnerHousingCostPrior5Year!$E$58-OwnerHousingCost!$E$58","v":21},1.2267289186485646,1.645]
[null,null,null,null,null,null,null,"Owner Less than $20,000:",null,"N",{"$f":"OwnerHousingCostPrior5Year!$I$50/1.645","v":32.826747720364743},{"$f":"OwnerHousingCost!$I$50/1.645","v":41.337386018237083},52.78612363791467,{"$f":"OwnerHousingCostPrior5Year!$H$50-OwnerHousingCost!$H$50","v":-27},0.51149806311230472,1.645]
[null,null,null,null,null,null,null,"Owner Less than 20.0 percent",null,"N",{"$f":"OwnerHousingCostPrior5Year!$I$51/1.645","v":6.6869300911854106},{"$f":"OwnerHousingCost!$I$51/1.645","v":10.334346504559271},12.309092237882425,{"$f":"OwnerHousingCostPrior5Year!$H$51-OwnerHousingCost!$H$51","v":-11},0.89364835256871611,1.645]
[null,null,null,null,null,null,null,"Owner 20.0 to 24.9 percent",null,"N",{"$f":"OwnerHousingCostPrior5Year!$I$52/1.645","v":6.6869300911854106},{"$f":"OwnerHousingCost!$I$52/1.645","v":7.2948328267477205},9.8959395720970864,{"$f":"OwnerHousingCostPrior5Year!$H$52-OwnerHousingCost!$H$52","v":0},0,1.645]
[null,null,null,null,null,null,null,"Owner 25.0 to 29.9 percent",null,"N",{"$f":"OwnerHousingCostPrior5Year!$I$53/1.645","v":9.4567472255951639},{"$f":"OwnerHousingCost!$I$53/1.645","v":12.649636502543959},15.793776360810432,{"$f":"OwnerHousingCostPrior5Year!$H$53-OwnerHousingCost!$H$53","v":-11},0.69647687473241848,1.645]
[null,null,null,null,null,null,null,"Owner 30.0 or more",null,"N",{"$f":"OwnerHousingCostPrior5Year!$I$54/1.645","v":32.826747720364743},{"$f":"OwnerHousingCost!$I$54/1.645","v":40.121580547112458},51.839527307788067,{"$f":"OwnerHousingCostPrior5Year!$H$54-OwnerHousingCost!$H$54","v":-16},0.30864478962168801,1.645]
[null,null,null,null,null,null,null,"Owner $20,000 to $34,999:",null,"N",{"$f":"OwnerHousingCostPrior5Year!$J$50/1.645","v":123.40425531914893},{"$f":"OwnerHousingCost!$J$50/1.645","v":105.16717325227964},162.13804168284722,{"$f":"OwnerHousingCostPrior5Year!$K$50-OwnerHousingCost!$K$50","v":-22},0.13568684912966608,1.645]
[null,null,null,null,null,null,null,"Owner Less than 20.0 percent",null,"N",{"$f":"OwnerHousingCostPrior5Year!$J$51/1.645","v":41.945288753799389},{"$f":"OwnerHousingCost!$J$51/1.645","v":20.060790273556229},46.495618664979794,{"$f":"OwnerHousingCostPrior5Year!$K$51-OwnerHousingCost!$K$51","v":6},0.12904441692092511,1.645]
[null,null,null,null,null,null,null,"Owner 20.0 to 24.9 percent",null,"N",{"$f":"OwnerHousingCostPrior5Year!$J$52/1.645","v":25.531914893617021},{"$f":"OwnerHousingCost!$J$52/1.645","v":20.668693009118542},32.84925492062321,{"$f":"OwnerHousingCostPrior5Year!$K$52-OwnerHousingCost!$K$52","v":-18},0.54795763384877738,1.645]
[null,null,null,null,null,null,null,"Owner 25.0 to 29.9 percent",null,"N",{"$f":"OwnerHousingCostPrior5Year!$J$53/1.645","v":67.477203647416417},{"$f":"OwnerHousingCost!$J$53/1.645","v":40.729483282674771},78.816646849181495,{"$f":"OwnerHousingCostPrior5Year!$K$53-OwnerHousingCost!$K$53","v":-5.8002371557597172},7.3591523969024977E-2,1.645]
[null,null,null,null,null,null,null,"Owner 30.0 or more",null,"N",{"$f":"OwnerHousingCostPrior5Year!$J$54/1.645","v":55.927051671732521},{"$f":"OwnerHousingCost!$J$54/1.645","v":64.437689969604861},85.323214879137993,{"$f":"OwnerHousingCostPrior5Year!$K$54-OwnerHousingCost!$K$54","v":-17},0.19924237529118932,1.645]
[null,null,null,null,null,null,null,"Owner $35,000 to $49,999:",null,"N",{"$f":"OwnerHousingCostPrior5Year!$M$50/1.645","v":38.297872340425535},{"$f":"OwnerHousingCost!$M$50/1.645","v":55.927051671732521},67.783199500290422,{"$f":"OwnerHousingCostPrior5Year!$L$50-OwnerHousingCost!$L$50","v":46},0.67863423885446583,1.645]
[null,null,null,null,null,null,null,"Owner Less than 20.0 percent",null,"N",{"$f":"OwnerHousingCostPrior5Year!$M$51/1.645","v":17.62917933130699},{"$f":"OwnerHousingCost!$M$51/1.645","v":35.258358662613979},{"$f":"SQRT((K258^2)+(L258^2))","v":39.420043372336714},{"$f":"OwnerHousingCostPrior5Year!$L$51-OwnerHousingCost!$L$51","v":3},7.610341702732043E-2,1.645]
[null,null,null,null,null,null,null,"Owner 20.0 to 24.9 percent",null,"N",{"$f":"OwnerHousingCostPrior5Year!$M$52/1.645","v":15.19756838905775},{"$f":"OwnerHousingCost!$M$52/1.645","v":20.060790273556229},25.167466923385348,{"$f":"OwnerHousingCostPrior5Year!$L$52-OwnerHousingCost!$L$52","v":10},0.3973383587010143,1.645]
[null,null,null,null,null,null,null,"Owner 25.0 to 29.9 percent",null,"N",{"$f":"OwnerHousingCostPrior5Year!$M$53/1.645","v":23.275610600701089},{"$f":"OwnerHousingCost!$M$53/1.645","v":40.565837375569288},46.769019776093266,{"$f":"OwnerHousingCostPrior5Year!$L$53-OwnerHousingCost!$L$53","v":13},0.2779617803032331,1.645]
[null,null,null,null,null,null,null,"Owner 30.0 or more",null,"N",{"$f":"OwnerHousingCostPrior5Year!$M$54/1.645","v":30.3951367781155},{"$f":"OwnerHousingCost!$M$54/1.645","v":37.08206686930091},47.947304648537376,{"$f":"OwnerHousingCostPrior5Year!$L$54-OwnerHousingCost!$L$54","v":33},0.68825558061910075,1.645]
[null,null,null,null,null,null,null,"Owner $50,000 to $74,999:",null,"N",{"$f":"OwnerHousingCostPrior5Year!$O$50/1.645","v":43.768996960486319},{"$f":"OwnerHousingCost!$O$50/1.645","v":52.27963525835866},68.182735041021047,{"$f":"OwnerHousingCostPrior5Year!$N$50-OwnerHousingCost!$N$50","v":93},1.3639816581726745,1.645]
[null,null,null,null,null,null,null,"Owner Less than 20.0 percent",null,"N",{"$f":"OwnerHousingCostPrior5Year!$O$51/1.645","v":32.218844984802431},{"$f":"OwnerHousingCost!$O$51/1.645","v":34.042553191489361},46.871626811431575,{"$f":"OwnerHousingCostPrior5Year!$N$51-OwnerHousingCost!$N$51","v":44},0.93873421925412648,1.645]
[null,null,null,null,null,null,null,"Owner 20.0 to 24.9 percent",null,"N",{"$f":"OwnerHousingCostPrior5Year!$O$52/1.645","v":24.316109422492399},{"$f":"OwnerHousingCost!$O$52/1.645","v":20.668693009118542},31.913446196733585,{"$f":"OwnerHousingCostPrior5Year!$N$52-OwnerHousingCost!$N$52","v":34},1.0653816510571641,1.645]
[null,null,null,null,null,null,null,"Owner 25.0 to 29.9 percent",null,"N",{"$f":"OwnerHousingCostPrior5Year!$O$53/1.645","v":40.364924744155694},{"$f":"OwnerHousingCost!$O$53/1.645","v":39.825749189444856},56.704651027071137,{"$f":"OwnerHousingCostPrior5Year!$N$53-OwnerHousingCost!$N$53","v":78},1.375548541208063,1.645]
[null,null,null,null,null,null,null,"Owner 30.0 or more",null,"N",{"$f":"OwnerHousingCostPrior5Year!$O$54/1.645","v":27.355623100303951},{"$f":"OwnerHousingCost!$O$54/1.645","v":37.689969604863222},46.571063161811082,{"$f":"OwnerHousingCostPrior5Year!$N$54-OwnerHousingCost!$N$54","v":15},0.32208841674673661,1.645]
[null,null,null,null,null,null,null,"Owner $75,000 or more",null,"Y",{"$f":"OwnerHousingCostPrior5Year!$Q$50/1.645","v":67.477203647416417},{"$f":"OwnerHousingCost!$Q$50/1.645","v":87.537993920972639},110.52634704803715,{"$f":"OwnerHousingCostPrior5Year!$P$50-OwnerHousingCost!$P$50","v":-379},3.4290466492598219,1.645]
[null,null,null,null,null,null,null,"Owner Less than 20.0 percent",null,"Y",{"$f":"OwnerHousingCostPrior5Year!$Q$51/1.645","v":54.10334346504559},{"$f":"OwnerHousingCost!$Q$51/1.645","v":73.556231003039514},91.310957138063145,{"$f":"OwnerHousingCostPrior5Year!$P$51-OwnerHousingCost!$P$51","v":-249},2.7269454598259149,1.645]
[null,null,null,null,null,null,null,"Owner 20.0 to 24.9 percent",null,"N",{"$f":"OwnerHousingCostPrior5Year!$Q$52/1.645","v":26.747720364741642},{"$f":"OwnerHousingCost!$Q$52/1.645","v":66.869300911854097},72.020441189640778,{"$f":"OwnerHousingCostPrior5Year!$P$52-OwnerHousingCost!$P$52","v":-107},1.485689315874263,1.645]
[null,null,null,null,null,null,null,"Owner 25.0 to 29.9 percent",null,"Y",{"$f":"OwnerHousingCostPrior5Year!$Q$53/1.645","v":60.354058014412807},{"$f":"OwnerHousingCost!$Q$53/1.645","v":99.408362444075109},116.29546355133424,{"$f":"OwnerHousingCostPrior5Year!$P$53-OwnerHousingCost!$P$53","v":-356},3.0611684164520936,1.645]
[null,null,null,null,null,null,null,"Owner 30.0 or more",null,"N",{"$f":"OwnerHousingCostPrior5Year!$Q$54/1.645","v":33.434650455927049},{"$f":"OwnerHousingCost!$Q$54/1.645","v":41.945288753799389},53.640312263722258,{"$f":"OwnerHousingCostPrior5Year!$P$54-OwnerHousingCost!$P$54","v":-23},0.42878199304509351,1.645]

{"sheet":"ACS_Source_Table_List","index":18,"n_rows":45,"n_cols":4,"rows_kept":45,"cut":false,"hidden":true,"merged":[]}
[]
["ACS Table B01001","x"]
["ACS Table B01002","x"]
["ACS Table B03002","x"]
["ACS Table B05002 ","x"]
["ACS Table B07003","x","Replaces C07001"]
["ACS Table B11001","x"]
["ACS Table B11002","x"]
["ACS Table B14001 & B15002","x","Replaces C15002"]
["ACS Table B17001 ","x"]
["ACS Table B17010 ","x","Replaces C17010","Poverty Status by family type"]
["ACS Table B17017","x","Replaces C17017","Poverty Status by HH type"]
["ACS Table B18001 ",null,"Removed Disability Tables"]
["ACS Table C18001 ",null,"Removed Disability Tables"]
["ACS Table B18003",null,"Removed Disability Tables"]
["ACS Table B18004",null,"Removed Disability Tables"]
["ACS Table B18005",null,"Removed Disability Tables"]
["ACS Table B18006",null,"Removed Disability Tables"]
["ACS Table B18007",null,"Removed Disability Tables"]
["ACS Table B18008",null,"Removed Disability Tables"]
["ACS Table B19001","x"]
["ACS Table B19037 ","x"]
["ACS Table B19049 ","x"]
["ACS Table B19101& B19113 ","s"]
["ACS Table B19201 & B19202","s"]
["ACS Table B25001, B25003 & B25004 ","x"]
["ACS Table B25008","x"]
["ACS Table B25010","x"]
["ACS Table B25024","x"]
["ACS Table B25075 & B25077","x"]
["ACS Table B25088","x"]
["ACS Table B25091","x"]
["ACS Table B25118 & B25119","x"]
[]
[]
[]
[]
[]
[]
["Tables Removed from 5 Year Estimates"]
["ACS Table C19001 ","x","May have to consolidate this table from Table B19001. This has already been done. For 5 year estimates remove worksheet."]
["ACS Table B25094","x","No Comparison Table for B25094 Removed"]
["ACS Table B25101",null,"No Comparison Table for B25101 Removed"]
["ACS Table B25104 & B25105",null,"No Comparison Table for B25104 & B25105 Removed"]
["ACS Table B25106","x","No Comparison Table for  B25106 Removed"]

{"sheet":"SData_B08303Comuuting","index":19,"n_rows":112,"n_cols":58,"rows_kept":112,"cut":false,"hidden":true,"merged":[]}
["GEO_ID","GEO_ID2","SUMLEVEL",null,"VD01","VD01","VD02","VD02","VD03","VD03","VD04","VD04","VD05","VD05","VD06","VD06","VD07","VD07","VD08","VD08","VD09","VD09","VD10","VD10","VD11","VD11","VD12","VD12","VD13","VD13"]
["Geography Identifier","Geography Identifier","Geographic Summary Level","Geography",{"$f":"[1]ACS_16_5YR_B08303_with_ann!E$2","v":"Margin of Error Total:"},{"$f":"[1]ACS_16_5YR_B08303_with_ann!F$2","v":"Estimate Total: Less than 5 minutes"},{"$f":"[1]ACS_16_5YR_B08303_with_ann!G$2","v":"Margin of Error Total: Less than 5 minutes"},{"$f":"[1]ACS_16_5YR_B08303_with_ann!H$2","v":"Estimate Total: 5 to 9 minutes"},{"$f":"[1]ACS_16_5YR_B08303_with_ann!I$2","v":"Margin of Error Total: 5 to 9 minutes"},{"$f":"[1]ACS_16_5YR_B08303_with_ann!J$2","v":"Estimate Total: 10 to 14 minutes"},{"$f":"[1]ACS_16_5YR_B08303_with_ann!K$2","v":"Margin of Error Total: 10 to 14 minutes"},{"$f":"[1]ACS_16_5YR_B08303_with_ann!L$2","v":"Estimate Total: 15 to 19 minutes"},{"$f":"[1]ACS_16_5YR_B08303_with_ann!M$2","v":"Margin of Error Total: 15 to 19 minutes"},{"$f":"[1]ACS_16_5YR_B08303_with_ann!N$2","v":"Estimate Total: 20 to 24 minutes"},{"$f":"[1]ACS_16_5YR_B08303_with_ann!O$2","v":"Margin of Error Total: 20 to 24 minutes"},{"$f":"[1]ACS_16_5YR_B08303_with_ann!P$2","v":"Estimate Total: 25 to 29 minutes"},{"$f":"[1]ACS_16_5YR_B08303_with_ann!Q$2","v":"Margin of Error Total: 25 to 29 minutes"},{"$f":"[1]ACS_16_5YR_B08303_with_ann!R$2","v":"Estimate Total: 30 to 34 minutes"},{"$f":"[1]ACS_16_5YR_B08303_with_ann!S$2","v":"Margin of Error Total: 30 to 34 minutes"},{"$f":"[1]ACS_16_5YR_B08303_with_ann!T$2","v":"Estimate Total: 35 to 39 minutes"},{"$f":"[1]ACS_16_5YR_B08303_with_ann!U$2","v":"Margin of Error Total: 35 to 39 minutes"},{"$f":"[1]ACS_16_5YR_B08303_with_ann!V$2","v":"Estimate Total: 40 to 44 minutes"},{"$f":"[1]ACS_16_5YR_B08303_with_ann!W$2","v":"Margin of Error Total: 40 to 44 minutes"},{"$f":"[1]ACS_16_5YR_B08303_with_ann!X$2","v":"Estimate Total: 45 to 59 minutes"},{"$f":"[1]ACS_16_5YR_B08303_with_ann!Y$2","v":"Margin of Error Total: 45 to 59 minutes"},{"$f":"[1]ACS_16_5YR_B08303_with_ann!Z$2","v":"Estimate Total: 60 to 89 minutes"},{"$f":"[1]ACS_16_5YR_B08303_with_ann!AA$2","v":"Margin of Error Total: 60 to 89 minutes"},{"$f":"[1]ACS_16_5YR_B08303_with_ann!AB$2","v":"Estimate Total: 90 or more minutes"},{"$f":"[1]ACS_16_5YR_B08303_with_ann!AC$2","v":"Margin of Error Total: 90 or more minutes"}]
["06000US3301101300","3301101300","060","Allenstown",{"$f":"[1]ACS_16_5YR_B08303_with_ann!D181","v":2282},{"$f":"[1]ACS_16_5YR_B08303_with_ann!E181","v":239},{"$f":"[1]ACS_16_5YR_B08303_with_ann!F181","v":63},{"$f":"[1]ACS_16_5YR_B08303_with_ann!G181","v":51},{"$f":"[1]ACS_16_5YR_B08303_with_ann!H181","v":113},{"$f":"[1]ACS_16_5YR_B08303_with_ann!I181","v":66},{"$f":"[1]ACS_16_5YR_B08303_with_ann!J181","v":248},{"$f":"[1]ACS_16_5YR_B08303_with_ann!K181","v":122},{"$f":"[1]ACS_16_5YR_B08303_with_ann!L181","v":255},{"$f":"[1]ACS_16_5YR_B08303_with_ann!M181","v":96},{"$f":"[1]ACS_16_5YR_B08303_with_ann!N181","v":413},{"$f":"[1]ACS_16_5YR_B08303_with_ann!O181","v":119},{"$f":"[1]ACS_16_5YR_B08303_with_ann!P181","v":205},{"$f":"[1]ACS_16_5YR_B08303_with_ann!Q181","v":100},{"$f":"[1]ACS_16_5YR_B08303_with_ann!R181","v":414},{"$f":"[1]ACS_16_5YR_B08303_with_ann!S181","v":138},{"$f":"[1]ACS_16_5YR_B08303_with_ann!T181","v":64},{"$f":"[1]ACS_16_5YR_B08303_with_ann!U181","v":47},{"$f":"[1]ACS_16_5YR_B08303_with_ann!V181","v":137},{"$f":"[1]ACS_16_5YR_B08303_with_ann!W181","v":84},{"$f":"[1]ACS_16_5YR_B08303_with_ann!X181","v":216},{"$f":"[1]ACS_16_5YR_B08303_with_ann!Y181","v":82},{"$f":"[1]ACS_16_5YR_B08303_with_ann!Z181","v":118},{"$f":"[1]ACS_16_5YR_B08303_with_ann!AA181","v":59},{"$f":"[1]ACS_16_5YR_B08303_with_ann!AB181","v":36},{"$f":"[1]ACS_16_5YR_B08303_with_ann!AC181","v":34}]
["06000US3301101700","3301101700","060","Andover",{"$f":"[1]ACS_16_5YR_B08303_with_ann!D182","v":1429},{"$f":"[1]ACS_16_5YR_B08303_with_ann!E182","v":198},{"$f":"[1]ACS_16_5YR_B08303_with_ann!F182","v":92},{"$f":"[1]ACS_16_5YR_B08303_with_ann!G182","v":57},{"$f":"[1]ACS_16_5YR_B08303_with_ann!H182","v":132},{"$f":"[1]ACS_16_5YR_B08303_with_ann!I182","v":52},{"$f":"[1]ACS_16_5YR_B08303_with_ann!J182","v":163},{"$f":"[1]ACS_16_5YR_B08303_with_ann!K182","v":68},{"$f":"[1]ACS_16_5YR_B08303_with_ann!L182","v":94},{"$f":"[1]ACS_16_5YR_B08303_with_ann!M182","v":62},{"$f":"[1]ACS_16_5YR_B08303_with_ann!N182","v":131},{"$f":"[1]ACS_16_5YR_B08303_with_ann!O182","v":48},{"$f":"[1]ACS_16_5YR_B08303_with_ann!P182","v":108},{"$f":"[1]ACS_16_5YR_B08303_with_ann!Q182","v":80},{"$f":"[1]ACS_16_5YR_B08303_with_ann!R182","v":106},{"$f":"[1]ACS_16_5YR_B08303_with_ann!S182","v":39},{"$f":"[1]ACS_16_5YR_B08303_with_ann!T182","v":55},{"$f":"[1]ACS_16_5YR_B08303_with_ann!U182","v":32},{"$f":"[1]ACS_16_5YR_B08303_with_ann!V182","v":50},{"$f":"[1]ACS_16_5YR_B08303_with_ann!W182","v":25},{"$f":"[1]ACS_16_5YR_B08303_with_ann!X182","v":336},{"$f":"[1]ACS_16_5YR_B08303_with_ann!Y182","v":137},{"$f":"[1]ACS_16_5YR_B08303_with_ann!Z182","v":61},{"$f":"[1]ACS_16_5YR_B08303_with_ann!AA182","v":28},{"$f":"[1]ACS_16_5YR_B08303_with_ann!AB182","v":101},{"$f":"[1]ACS_16_5YR_B08303_with_ann!AC182","v":56}]
["06000US3301104500","3301104500","060","Boscawen",{"$f":"[1]ACS_16_5YR_B08303_with_ann!D183","v":1855},{"$f":"[1]ACS_16_5YR_B08303_with_ann!E183","v":192},{"$f":"[1]ACS_16_5YR_B08303_with_ann!F183","v":10},{"$f":"[1]ACS_16_5YR_B08303_with_ann!G183","v":18},{"$f":"[1]ACS_16_5YR_B08303_with_ann!H183","v":49},{"$f":"[1]ACS_16_5YR_B08303_with_ann!I183","v":47},{"$f":"[1]ACS_16_5YR_B08303_with_ann!J183","v":181},{"$f":"[1]ACS_16_5YR_B08303_with_ann!K183","v":103},{"$f":"[1]ACS_16_5YR_B08303_with_ann!L183","v":298},{"$f":"[1]ACS_16_5YR_B08303_with_ann!M183","v":101},{"$f":"[1]ACS_16_5YR_B08303_with_ann!N183","v":472},{"$f":"[1]ACS_16_5YR_B08303_with_ann!O183","v":150},{"$f":"[1]ACS_16_5YR_B08303_with_ann!P183","v":205},{"$f":"[1]ACS_16_5YR_B08303_with_ann!Q183","v":132},{"$f":"[1]ACS_16_5YR_B08303_with_ann!R183","v":305},{"$f":"[1]ACS_16_5YR_B08303_with_ann!S183","v":111},{"$f":"[1]ACS_16_5YR_B08303_with_ann!T183","v":44},{"$f":"[1]ACS_16_5YR_B08303_with_ann!U183","v":35},{"$f":"[1]ACS_16_5YR_B08303_with_ann!V183","v":70},{"$f":"[1]ACS_16_5YR_B08303_with_ann!W183","v":53},{"$f":"[1]ACS_16_5YR_B08303_with_ann!X183","v":85},{"$f":"[1]ACS_16_5YR_B08303_with_ann!Y183","v":61},{"$f":"[1]ACS_16_5YR_B08303_with_ann!Z183","v":81},{"$f":"[1]ACS_16_5YR_B08303_with_ann!AA183","v":63},{"$f":"[1]ACS_16_5YR_B08303_with_ann!AB183","v":55},{"$f":"[1]ACS_16_5YR_B08303_with_ann!AC183","v":36}]
["06000US3301104900","3301104900","060","Bow",{"$f":"[1]ACS_16_5YR_B08303_with_ann!D184","v":3829},{"$f":"[1]ACS_16_5YR_B08303_with_ann!E184","v":203},{"$f":"[1]ACS_16_5YR_B08303_with_ann!F184","v":67},{"$f":"[1]ACS_16_5YR_B08303_with_ann!G184","v":61},{"$f":"[1]ACS_16_5YR_B08303_with_ann!H184","v":55},{"$f":"[1]ACS_16_5YR_B08303_with_ann!I184","v":40},{"$f":"[1]ACS_16_5YR_B08303_with_ann!J184","v":568},{"$f":"[1]ACS_16_5YR_B08303_with_ann!K184","v":123},{"$f":"[1]ACS_16_5YR_B08303_with_ann!L184","v":901},{"$f":"[1]ACS_16_5YR_B08303_with_ann!M184","v":129},{"$f":"[1]ACS_16_5YR_B08303_with_ann!N184","v":468},{"$f":"[1]ACS_16_5YR_B08303_with_ann!O184","v":95},{"$f":"[1]ACS_16_5YR_B08303_with_ann!P184","v":255},{"$f":"[1]ACS_16_5YR_B08303_with_ann!Q184","v":84},{"$f":"[1]ACS_16_5YR_B08303_with_ann!R184","v":640},{"$f":"[1]ACS_16_5YR_B08303_with_ann!S184","v":141},{"$f":"[1]ACS_16_5YR_B08303_with_ann!T184","v":146},{"$f":"[1]ACS_16_5YR_B08303_with_ann!U184","v":63},{"$f":"[1]ACS_16_5YR_B08303_with_ann!V184","v":87},{"$f":"[1]ACS_16_5YR_B08303_with_ann!W184","v":56},{"$f":"[1]ACS_16_5YR_B08303_with_ann!X184","v":369},{"$f":"[1]ACS_16_5YR_B08303_with_ann!Y184","v":112},{"$f":"[1]ACS_16_5YR_B08303_with_ann!Z184","v":184},{"$f":"[1]ACS_16_5YR_B08303_with_ann!AA184","v":71},{"$f":"[1]ACS_16_5YR_B08303_with_ann!AB184","v":89},{"$f":"[1]ACS_16_5YR_B08303_with_ann!AC184","v":46}]
["06000US3301108100","3301108100","060","Bradford",{"$f":"[1]ACS_16_5YR_B08303_with_ann!D185","v":815},{"$f":"[1]ACS_16_5YR_B08303_with_ann!E185","v":143},{"$f":"[1]ACS_16_5YR_B08303_with_ann!F185","v":37},{"$f":"[1]ACS_16_5YR_B08303_with_ann!G185","v":24},{"$f":"[1]ACS_16_5YR_B08303_with_ann!H185","v":43},{"$f":"[1]ACS_16_5YR_B08303_with_ann!I185","v":28},{"$f":"[1]ACS_16_5YR_B08303_with_ann!J185","v":63},{"$f":"[1]ACS_16_5YR_B08303_with_ann!K185","v":28},{"$f":"[1]ACS_16_5YR_B08303_with_ann!L185","v":78},{"$f":"[1]ACS_16_5YR_B08303_with_ann!M185","v":53},{"$f":"[1]ACS_16_5YR_B08303_with_ann!N185","v":129},{"$f":"[1]ACS_16_5YR_B08303_with_ann!O185","v":45},{"$f":"[1]ACS_16_5YR_B08303_with_ann!P185","v":49},{"$f":"[1]ACS_16_5YR_B08303_with_ann!Q185","v":22},{"$f":"[1]ACS_16_5YR_B08303_with_ann!R185","v":86},{"$f":"[1]ACS_16_5YR_B08303_with_ann!S185","v":35},{"$f":"[1]ACS_16_5YR_B08303_with_ann!T185","v":41},{"$f":"[1]ACS_16_5YR_B08303_with_ann!U185","v":26},{"$f":"[1]ACS_16_5YR_B08303_with_ann!V185","v":68},{"$f":"[1]ACS_16_5YR_B08303_with_ann!W185","v":27},{"$f":"[1]ACS_16_5YR_B08303_with_ann!X185","v":145},{"$f":"[1]ACS_16_5YR_B08303_with_ann!Y185","v":42},{"$f":"[1]ACS_16_5YR_B08303_with_ann!Z185","v":44},{"$f":"[1]ACS_16_5YR_B08303_with_ann!AA185","v":41},{"$f":"[1]ACS_16_5YR_B08303_with_ann!AB185","v":32},{"$f":"[1]ACS_16_5YR_B08303_with_ann!AC185","v":20}]
["06000US3301117780","3301117780","060","Canterbury",{"$f":"[1]ACS_16_5YR_B08303_with_ann!D186","v":1180},{"$f":"[1]ACS_16_5YR_B08303_with_ann!E186","v":116},{"$f":"[1]ACS_16_5YR_B08303_with_ann!F186","v":45},{"$f":"[1]ACS_16_5YR_B08303_with_ann!G186","v":33},{"$f":"[1]ACS_16_5YR_B08303_with_ann!H186","v":35},{"$f":"[1]ACS_16_5YR_B08303_with_ann!I186","v":24},{"$f":"[1]ACS_16_5YR_B08303_with_ann!J186","v":72},{"$f":"[1]ACS_16_5YR_B08303_with_ann!K186","v":33},{"$f":"[1]ACS_16_5YR_B08303_with_ann!L186","v":143},{"$f":"[1]ACS_16_5YR_B08303_with_ann!M186","v":47},{"$f":"[1]ACS_16_5YR_B08303_with_ann!N186","v":209},{"$f":"[1]ACS_16_5YR_B08303_with_ann!O186","v":68},{"$f":"[1]ACS_16_5YR_B08303_with_ann!P186","v":97},{"$f":"[1]ACS_16_5YR_B08303_with_ann!Q186","v":42},{"$f":"[1]ACS_16_5YR_B08303_with_ann!R186","v":122},{"$f":"[1]ACS_16_5YR_B08303_with_ann!S186","v":54},{"$f":"[1]ACS_16_5YR_B08303_with_ann!T186","v":47},{"$f":"[1]ACS_16_5YR_B08303_with_ann!U186","v":24},{"$f":"[1]ACS_16_5YR_B08303_with_ann!V186","v":75},{"$f":"[1]ACS_16_5YR_B08303_with_ann!W186","v":34},{"$f":"[1]ACS_16_5YR_B08303_with_ann!X186","v":163},{"$f":"[1]ACS_16_5YR_B08303_with_ann!Y186","v":62},{"$f":"[1]ACS_16_5YR_B08303_with_ann!Z186","v":122},{"$f":"[1]ACS_16_5YR_B08303_with_ann!AA186","v":52},{"$f":"[1]ACS_16_5YR_B08303_with_ann!AB186","v":50},{"$f":"[1]ACS_16_5YR_B08303_with_ann!AC186","v":35}]
["06000US3301127140","3301127140","060","Chichester",{"$f":"[1]ACS_16_5YR_B08303_with_ann!D187","v":1360},{"$f":"[1]ACS_16_5YR_B08303_with_ann!E187","v":114},{"$f":"[1]ACS_16_5YR_B08303_with_ann!F187","v":32},{"$f":"[1]ACS_16_5YR_B08303_with_ann!G187","v":23},{"$f":"[1]ACS_16_5YR_B08303_with_ann!H187","v":48},{"$f":"[1]ACS_16_5YR_B08303_with_ann!I187","v":26},{"$f":"[1]ACS_16_5YR_B08303_with_ann!J187","v":92},{"$f":"[1]ACS_16_5YR_B08303_with_ann!K187","v":43},{"$f":"[1]ACS_16_5YR_B08303_with_ann!L187","v":295},{"$f":"[1]ACS_16_5YR_B08303_with_ann!M187","v":84},{"$f":"[1]ACS_16_5YR_B08303_with_ann!N187","v":206},{"$f":"[1]ACS_16_5YR_B08303_with_ann!O187","v":68},{"$f":"[1]ACS_16_5YR_B08303_with_ann!P187","v":95},{"$f":"[1]ACS_16_5YR_B08303_with_ann!Q187","v":43},{"$f":"[1]ACS_16_5YR_B08303_with_ann!R187","v":224},{"$f":"[1]ACS_16_5YR_B08303_with_ann!S187","v":68},{"$f":"[1]ACS_16_5YR_B08303_with_ann!T187","v":30},{"$f":"[1]ACS_16_5YR_B08303_with_ann!U187","v":27},{"$f":"[1]ACS_16_5YR_B08303_with_ann!V187","v":92},{"$f":"[1]ACS_16_5YR_B08303_with_ann!W187","v":49},{"$f":"[1]ACS_16_5YR_B08303_with_ann!X187","v":134},{"$f":"[1]ACS_16_5YR_B08303_with_ann!Y187","v":52},{"$f":"[1]ACS_16_5YR_B08303_with_ann!Z187","v":96},{"$f":"[1]ACS_16_5YR_B08303_with_ann!AA187","v":51},{"$f":"[1]ACS_16_5YR_B08303_with_ann!AB187","v":16},{"$f":"[1]ACS_16_5YR_B08303_with_ann!AC187","v":12}]
["06000US3301129860","3301129860","060","Concord",{"$f":"[1]ACS_16_5YR_B08303_with_ann!D188","v":20605},{"$f":"[1]ACS_16_5YR_B08303_with_ann!E188","v":653},{"$f":"[1]ACS_16_5YR_B08303_with_ann!F188","v":730},{"$f":"[1]ACS_16_5YR_B08303_with_ann!G188","v":170},{"$f":"[1]ACS_16_5YR_B08303_with_ann!H188","v":3714},{"$f":"[1]ACS_16_5YR_B08303_with_ann!I188","v":424},{"$f":"[1]ACS_16_5YR_B08303_with_ann!J188","v":3445},{"$f":"[1]ACS_16_5YR_B08303_with_ann!K188","v":350},{"$f":"[1]ACS_16_5YR_B08303_with_ann!L188","v":3215},{"$f":"[1]ACS_16_5YR_B08303_with_ann!M188","v":376},{"$f":"[1]ACS_16_5YR_B08303_with_ann!N188","v":2539},{"$f":"[1]ACS_16_5YR_B08303_with_ann!O188","v":306},{"$f":"[1]ACS_16_5YR_B08303_with_ann!P188","v":1093},{"$f":"[1]ACS_16_5YR_B08303_with_ann!Q188","v":179},{"$f":"[1]ACS_16_5YR_B08303_with_ann!R188","v":2049},{"$f":"[1]ACS_16_5YR_B08303_with_ann!S188","v":323},{"$f":"[1]ACS_16_5YR_B08303_with_ann!T188","v":540},{"$f":"[1]ACS_16_5YR_B08303_with_ann!U188","v":138},{"$f":"[1]ACS_16_5YR_B08303_with_ann!V188","v":574},{"$f":"[1]ACS_16_5YR_B08303_with_ann!W188","v":144},{"$f":"[1]ACS_16_5YR_B08303_with_ann!X188","v":1399},{"$f":"[1]ACS_16_5YR_B08303_with_ann!Y188","v":217},{"$f":"[1]ACS_16_5YR_B08303_with_ann!Z188","v":751},{"$f":"[1]ACS_16_5YR_B08303_with_ann!AA188","v":158},{"$f":"[1]ACS_16_5YR_B08303_with_ann!AB188","v":556},{"$f":"[1]ACS_16_5YR_B08303_with_ann!AC188","v":181}]
["06000US3301131540","3301131540","060","Danbury",{"$f":"[1]ACS_16_5YR_B08303_with_ann!D189","v":574},{"$f":"[1]ACS_16_5YR_B08303_with_ann!E189","v":105},{"$f":"[1]ACS_16_5YR_B08303_with_ann!F189","v":0},{"$f":"[1]ACS_16_5YR_B08303_with_ann!G189","v":11},{"$f":"[1]ACS_16_5YR_B08303_with_ann!H189","v":40},{"$f":"[1]ACS_16_5YR_B08303_with_ann!I189","v":37},{"$f":"[1]ACS_16_5YR_B08303_with_ann!J189","v":51},{"$f":"[1]ACS_16_5YR_B08303_with_ann!K189","v":36},{"$f":"[1]ACS_16_5YR_B08303_with_ann!L189","v":64},{"$f":"[1]ACS_16_5YR_B08303_with_ann!M189","v":28},{"$f":"[1]ACS_16_5YR_B08303_with_ann!N189","v":38},{"$f":"[1]ACS_16_5YR_B08303_with_ann!O189","v":23},{"$f":"[1]ACS_16_5YR_B08303_with_ann!P189","v":24},{"$f":"[1]ACS_16_5YR_B08303_with_ann!Q189","v":14},{"$f":"[1]ACS_16_5YR_B08303_with_ann!R189","v":53},{"$f":"[1]ACS_16_5YR_B08303_with_ann!S189","v":26},{"$f":"[1]ACS_16_5YR_B08303_with_ann!T189","v":40},{"$f":"[1]ACS_16_5YR_B08303_with_ann!U189","v":23},{"$f":"[1]ACS_16_5YR_B08303_with_ann!V189","v":42},{"$f":"[1]ACS_16_5YR_B08303_with_ann!W189","v":26},{"$f":"[1]ACS_16_5YR_B08303_with_ann!X189","v":133},{"$f":"[1]ACS_16_5YR_B08303_with_ann!Y189","v":46},{"$f":"[1]ACS_16_5YR_B08303_with_ann!Z189","v":73},{"$f":"[1]ACS_16_5YR_B08303_with_ann!AA189","v":31},{"$f":"[1]ACS_16_5YR_B08303_with_ann!AB189","v":16},{"$f":"[1]ACS_16_5YR_B08303_with_ann!AC189","v":11}]
["06000US3301131940","3301131940","060","Dunbarton",{"$f":"[1]ACS_16_5YR_B08303_with_ann!D190","v":1511},{"$f":"[1]ACS_16_5YR_B08303_with_ann!E190","v":93},{"$f":"[1]ACS_16_5YR_B08303_with_ann!F190","v":8},{"$f":"[1]ACS_16_5YR_B08303_with_ann!G190","v":9},{"$f":"[1]ACS_16_5YR_B08303_with_ann!H190","v":43},{"$f":"[1]ACS_16_5YR_B08303_with_ann!I190","v":25},{"$f":"[1]ACS_16_5YR_B08303_with_ann!J190","v":123},{"$f":"[1]ACS_16_5YR_B08303_with_ann!K190","v":52},{"$f":"[1]ACS_16_5YR_B08303_with_ann!L190","v":130},{"$f":"[1]ACS_16_5YR_B08303_with_ann!M190","v":39},{"$f":"[1]ACS_16_5YR_B08303_with_ann!N190","v":367},{"$f":"[1]ACS_16_5YR_B08303_with_ann!O190","v":77},{"$f":"[1]ACS_16_5YR_B08303_with_ann!P190","v":225},{"$f":"[1]ACS_16_5YR_B08303_with_ann!Q190","v":62},{"$f":"[1]ACS_16_5YR_B08303_with_ann!R190","v":254},{"$f":"[1]ACS_16_5YR_B08303_with_ann!S190","v":71},{"$f":"[1]ACS_16_5YR_B08303_with_ann!T190","v":47},{"$f":"[1]ACS_16_5YR_B08303_with_ann!U190","v":24},{"$f":"[1]ACS_16_5YR_B08303_with_ann!V190","v":33},{"$f":"[1]ACS_16_5YR_B08303_with_ann!W190","v":20},{"$f":"[1]ACS_16_5YR_B08303_with_ann!X190","v":70},{"$f":"[1]ACS_16_5YR_B08303_with_ann!Y190","v":29},{"$f":"[1]ACS_16_5YR_B08303_with_ann!Z190","v":149},{"$f":"[1]ACS_16_5YR_B08303_with_ann!AA190","v":46},{"$f":"[1]ACS_16_5YR_B08303_with_ann!AB190","v":62},{"$f":"[1]ACS_16_5YR_B08303_with_ann!AC190","v":31}]
["06000US3301133700","3301133700","060","Epsom",{"$f":"[1]ACS_16_5YR_B08303_with_ann!D191","v":2280},{"$f":"[1]ACS_16_5YR_B08303_with_ann!E191","v":218},{"$f":"[1]ACS_16_5YR_B08303_with_ann!F191","v":56},{"$f":"[1]ACS_16_5YR_B08303_with_ann!G191","v":37},{"$f":"[1]ACS_16_5YR_B08303_with_ann!H191","v":83},{"$f":"[1]ACS_16_5YR_B08303_with_ann!I191","v":59},{"$f":"[1]ACS_16_5YR_B08303_with_ann!J191","v":129},{"$f":"[1]ACS_16_5YR_B08303_with_ann!K191","v":64},{"$f":"[1]ACS_16_5YR_B08303_with_ann!L191","v":233},{"$f":"[1]ACS_16_5YR_B08303_with_ann!M191","v":98},{"$f":"[1]ACS_16_5YR_B08303_with_ann!N191","v":423},{"$f":"[1]ACS_16_5YR_B08303_with_ann!O191","v":151},{"$f":"[1]ACS_16_5YR_B08303_with_ann!P191","v":165},{"$f":"[1]ACS_16_5YR_B08303_with_ann!Q191","v":66},{"$f":"[1]ACS_16_5YR_B08303_with_ann!R191","v":359},{"$f":"[1]ACS_16_5YR_B08303_with_ann!S191","v":143},{"$f":"[1]ACS_16_5YR_B08303_with_ann!T191","v":128},{"$f":"[1]ACS_16_5YR_B08303_with_ann!U191","v":71},{"$f":"[1]ACS_16_5YR_B08303_with_ann!V191","v":83},{"$f":"[1]ACS_16_5YR_B08303_with_ann!W191","v":46},{"$f":"[1]ACS_16_5YR_B08303_with_ann!X191","v":338},{"$f":"[1]ACS_16_5YR_B08303_with_ann!Y191","v":101},{"$f":"[1]ACS_16_5YR_B08303_with_ann!Z191","v":221},{"$f":"[1]ACS_16_5YR_B08303_with_ann!AA191","v":92},{"$f":"[1]ACS_16_5YR_B08303_with_ann!AB191","v":62},{"$f":"[1]ACS_16_5YR_B08303_with_ann!AC191","v":49}]
["06000US3301136180","3301136180","060","Franklin",{"$f":"[1]ACS_16_5YR_B08303_with_ann!D192","v":4180},{"$f":"[1]ACS_16_5YR_B08303_with_ann!E192","v":293},{"$f":"[1]ACS_16_5YR_B08303_with_ann!F192","v":374},{"$f":"[1]ACS_16_5YR_B08303_with_ann!G192","v":139},{"$f":"[1]ACS_16_5YR_B08303_with_ann!H192","v":706},{"$f":"[1]ACS_16_5YR_B08303_with_ann!I192","v":196},{"$f":"[1]ACS_16_5YR_B08303_with_ann!J192","v":456},{"$f":"[1]ACS_16_5YR_B08303_with_ann!K192","v":151},{"$f":"[1]ACS_16_5YR_B08303_with_ann!L192","v":466},{"$f":"[1]ACS_16_5YR_B08303_with_ann!M192","v":157},{"$f":"[1]ACS_16_5YR_B08303_with_ann!N192","v":365},{"$f":"[1]ACS_16_5YR_B08303_with_ann!O192","v":206},{"$f":"[1]ACS_16_5YR_B08303_with_ann!P192","v":339},{"$f":"[1]ACS_16_5YR_B08303_with_ann!Q192","v":161},{"$f":"[1]ACS_16_5YR_B08303_with_ann!R192","v":576},{"$f":"[1]ACS_16_5YR_B08303_with_ann!S192","v":134},{"$f":"[1]ACS_16_5YR_B08303_with_ann!T192","v":117},{"$f":"[1]ACS_16_5YR_B08303_with_ann!U192","v":54},{"$f":"[1]ACS_16_5YR_B08303_with_ann!V192","v":179},{"$f":"[1]ACS_16_5YR_B08303_with_ann!W192","v":94},{"$f":"[1]ACS_16_5YR_B08303_with_ann!X192","v":301},{"$f":"[1]ACS_16_5YR_B08303_with_ann!Y192","v":108},{"$f":"[1]ACS_16_5YR_B08303_with_ann!Z192","v":192},{"$f":"[1]ACS_16_5YR_B08303_with_ann!AA192","v":89},{"$f":"[1]ACS_16_5YR_B08303_with_ann!AB192","v":109},{"$f":"[1]ACS_16_5YR_B08303_with_ann!AC192","v":83}]
["06000US3301137140","3301137140","060","Henniker",{"$f":"[1]ACS_16_5YR_B08303_with_ann!D193","v":2289},{"$f":"[1]ACS_16_5YR_B08303_with_ann!E193","v":225},{"$f":"[1]ACS_16_5YR_B08303_with_ann!F193","v":155},{"$f":"[1]ACS_16_5YR_B08303_with_ann!G193","v":96},{"$f":"[1]ACS_16_5YR_B08303_with_ann!H193","v":334},{"$f":"[1]ACS_16_5YR_B08303_with_ann!I193","v":115},{"$f":"[1]ACS_16_5YR_B08303_with_ann!J193","v":135},{"$f":"[1]ACS_16_5YR_B08303_with_ann!K193","v":82},{"$f":"[1]ACS_16_5YR_B08303_with_ann!L193","v":170},{"$f":"[1]ACS_16_5YR_B08303_with_ann!M193","v":84},{"$f":"[1]ACS_16_5YR_B08303_with_ann!N193","v":212},{"$f":"[1]ACS_16_5YR_B08303_with_ann!O193","v":79},{"$f":"[1]ACS_16_5YR_B08303_with_ann!P193","v":145},{"$f":"[1]ACS_16_5YR_B08303_with_ann!Q193","v":73},{"$f":"[1]ACS_16_5YR_B08303_with_ann!R193","v":422},{"$f":"[1]ACS_16_5YR_B08303_with_ann!S193","v":167},{"$f":"[1]ACS_16_5YR_B08303_with_ann!T193","v":144},{"$f":"[1]ACS_16_5YR_B08303_with_ann!U193","v":76},{"$f":"[1]ACS_16_5YR_B08303_with_ann!V193","v":51},{"$f":"[1]ACS_16_5YR_B08303_with_ann!W193","v":43},{"$f":"[1]ACS_16_5YR_B08303_with_ann!X193","v":160},{"$f":"[1]ACS_16_5YR_B08303_with_ann!Y193","v":86},{"$f":"[1]ACS_16_5YR_B08303_with_ann!Z193","v":304},{"$f":"[1]ACS_16_5YR_B08303_with_ann!AA193","v":123},{"$f":"[1]ACS_16_5YR_B08303_with_ann!AB193","v":57},{"$f":"[1]ACS_16_5YR_B08303_with_ann!AC193","v":47}]
["06000US3301137940","3301137940","060","Hill",{"$f":"[1]ACS_16_5YR_B08303_with_ann!D194","v":487},{"$f":"[1]ACS_16_5YR_B08303_with_ann!E194","v":81},{"$f":"[1]ACS_16_5YR_B08303_with_ann!F194","v":3},{"$f":"[1]ACS_16_5YR_B08303_with_ann!G194","v":5},{"$f":"[1]ACS_16_5YR_B08303_with_ann!H194","v":8},{"$f":"[1]ACS_16_5YR_B08303_with_ann!I194","v":8},{"$f":"[1]ACS_16_5YR_B08303_with_ann!J194","v":17},{"$f":"[1]ACS_16_5YR_B08303_with_ann!K194","v":10},{"$f":"[1]ACS_16_5YR_B08303_with_ann!L194","v":57},{"$f":"[1]ACS_16_5YR_B08303_with_ann!M194","v":24},{"$f":"[1]ACS_16_5YR_B08303_with_ann!N194","v":55},{"$f":"[1]ACS_16_5YR_B08303_with_ann!O194","v":20},{"$f":"[1]ACS_16_5YR_B08303_with_ann!P194","v":33},{"$f":"[1]ACS_16_5YR_B08303_with_ann!Q194","v":18},{"$f":"[1]ACS_16_5YR_B08303_with_ann!R194","v":53},{"$f":"[1]ACS_16_5YR_B08303_with_ann!S194","v":29},{"$f":"[1]ACS_16_5YR_B08303_with_ann!T194","v":19},{"$f":"[1]ACS_16_5YR_B08303_with_ann!U194","v":16},{"$f":"[1]ACS_16_5YR_B08303_with_ann!V194","v":41},{"$f":"[1]ACS_16_5YR_B08303_with_ann!W194","v":20},{"$f":"[1]ACS_16_5YR_B08303_with_ann!X194","v":98},{"$f":"[1]ACS_16_5YR_B08303_with_ann!Y194","v":33},{"$f":"[1]ACS_16_5YR_B08303_with_ann!Z194","v":85},{"$f":"[1]ACS_16_5YR_B08303_with_ann!AA194","v":40},{"$f":"[1]ACS_16_5YR_B08303_with_ann!AB194","v":18},{"$f":"[1]ACS_16_5YR_B08303_with_ann!AC194","v":12}]
["06000US3301142260","3301142260","060","Hooksett",{"$f":"[1]ACS_16_5YR_B08303_with_ann!D195","v":7562},{"$f":"[1]ACS_16_5YR_B08303_with_ann!E195","v":361},{"$f":"[1]ACS_16_5YR_B08303_with_ann!F195","v":83},{"$f":"[1]ACS_16_5YR_B08303_with_ann!G195","v":53},{"$f":"[1]ACS_16_5YR_B08303_with_ann!H195","v":453},{"$f":"[1]ACS_16_5YR_B08303_with_ann!I195","v":184},{"$f":"[1]ACS_16_5YR_B08303_with_ann!J195","v":932},{"$f":"[1]ACS_16_5YR_B08303_with_ann!K195","v":218},{"$f":"[1]ACS_16_5YR_B08303_with_ann!L195","v":1405},{"$f":"[1]ACS_16_5YR_B08303_with_ann!M195","v":291},{"$f":"[1]ACS_16_5YR_B08303_with_ann!N195","v":1459},{"$f":"[1]ACS_16_5YR_B08303_with_ann!O195","v":256},{"$f":"[1]ACS_16_5YR_B08303_with_ann!P195","v":797},{"$f":"[1]ACS_16_5YR_B08303_with_ann!Q195","v":212},{"$f":"[1]ACS_16_5YR_B08303_with_ann!R195","v":848},{"$f":"[1]ACS_16_5YR_B08303_with_ann!S195","v":172},{"$f":"[1]ACS_16_5YR_B08303_with_ann!T195","v":168},{"$f":"[1]ACS_16_5YR_B08303_with_ann!U195","v":90},{"$f":"[1]ACS_16_5YR_B08303_with_ann!V195","v":241},{"$f":"[1]ACS_16_5YR_B08303_with_ann!W195","v":98},{"$f":"[1]ACS_16_5YR_B08303_with_ann!X195","v":606},{"$f":"[1]ACS_16_5YR_B08303_with_ann!Y195","v":192},{"$f":"[1]ACS_16_5YR_B08303_with_ann!Z195","v":317},{"$f":"[1]ACS_16_5YR_B08303_with_ann!AA195","v":124},{"$f":"[1]ACS_16_5YR_B08303_with_ann!AB195","v":253},{"$f":"[1]ACS_16_5YR_B08303_with_ann!AC195","v":94}]
["06000US3301144580","3301144580","060","Hopkinton",{"$f":"[1]ACS_16_5YR_B08303_with_ann!D196","v":2605},{"$f":"[1]ACS_16_5YR_B08303_with_ann!E196","v":233},{"$f":"[1]ACS_16_5YR_B08303_with_ann!F196","v":196},{"$f":"[1]ACS_16_5YR_B08303_with_ann!G196","v":107},{"$f":"[1]ACS_16_5YR_B08303_with_ann!H196","v":126},{"$f":"[1]ACS_16_5YR_B08303_with_ann!I196","v":72},{"$f":"[1]ACS_16_5YR_B08303_with_ann!J196","v":248},{"$f":"[1]ACS_16_5YR_B08303_with_ann!K196","v":114},{"$f":"[1]ACS_16_5YR_B08303_with_ann!L196","v":462},{"$f":"[1]ACS_16_5YR_B08303_with_ann!M196","v":143},{"$f":"[1]ACS_16_5YR_B08303_with_ann!N196","v":459},{"$f":"[1]ACS_16_5YR_B08303_with_ann!O196","v":141},{"$f":"[1]ACS_16_5YR_B08303_with_ann!P196","v":177},{"$f":"[1]ACS_16_5YR_B08303_with_ann!Q196","v":88},{"$f":"[1]ACS_16_5YR_B08303_with_ann!R196","v":467},{"$f":"[1]ACS_16_5YR_B08303_with_ann!S196","v":176},{"$f":"[1]ACS_16_5YR_B08303_with_ann!T196","v":92},{"$f":"[1]ACS_16_5YR_B08303_with_ann!U196","v":74},{"$f":"[1]ACS_16_5YR_B08303_with_ann!V196","v":21},{"$f":"[1]ACS_16_5YR_B08303_with_ann!W196","v":32},{"$f":"[1]ACS_16_5YR_B08303_with_ann!X196","v":222},{"$f":"[1]ACS_16_5YR_B08303_with_ann!Y196","v":114},{"$f":"[1]ACS_16_5YR_B08303_with_ann!Z196","v":99},{"$f":"[1]ACS_16_5YR_B08303_with_ann!AA196","v":76},{"$f":"[1]ACS_16_5YR_B08303_with_ann!AB196","v":36},{"$f":"[1]ACS_16_5YR_B08303_with_ann!AC196","v":41}]
["06000US3301145140","3301145140","060","Loudon",{"$f":"[1]ACS_16_5YR_B08303_with_ann!D197","v":2624},{"$f":"[1]ACS_16_5YR_B08303_with_ann!E197","v":299},{"$f":"[1]ACS_16_5YR_B08303_with_ann!F197","v":108},{"$f":"[1]ACS_16_5YR_B08303_with_ann!G197","v":150},{"$f":"[1]ACS_16_5YR_B08303_with_ann!H197","v":110},{"$f":"[1]ACS_16_5YR_B08303_with_ann!I197","v":88},{"$f":"[1]ACS_16_5YR_B08303_with_ann!J197","v":342},{"$f":"[1]ACS_16_5YR_B08303_with_ann!K197","v":142},{"$f":"[1]ACS_16_5YR_B08303_with_ann!L197","v":419},{"$f":"[1]ACS_16_5YR_B08303_with_ann!M197","v":173},{"$f":"[1]ACS_16_5YR_B08303_with_ann!N197","v":340},{"$f":"[1]ACS_16_5YR_B08303_with_ann!O197","v":148},{"$f":"[1]ACS_16_5YR_B08303_with_ann!P197","v":239},{"$f":"[1]ACS_16_5YR_B08303_with_ann!Q197","v":87},{"$f":"[1]ACS_16_5YR_B08303_with_ann!R197","v":566},{"$f":"[1]ACS_16_5YR_B08303_with_ann!S197","v":204},{"$f":"[1]ACS_16_5YR_B08303_with_ann!T197","v":52},{"$f":"[1]ACS_16_5YR_B08303_with_ann!U197","v":67},{"$f":"[1]ACS_16_5YR_B08303_with_ann!V197","v":52},{"$f":"[1]ACS_16_5YR_B08303_with_ann!W197","v":49},{"$f":"[1]ACS_16_5YR_B08303_with_ann!X197","v":279},{"$f":"[1]ACS_16_5YR_B08303_with_ann!Y197","v":133},{"$f":"[1]ACS_16_5YR_B08303_with_ann!Z197","v":77},{"$f":"[1]ACS_16_5YR_B08303_with_ann!AA197","v":59},{"$f":"[1]ACS_16_5YR_B08303_with_ann!AB197","v":40},{"$f":"[1]ACS_16_5YR_B08303_with_ann!AC197","v":42}]
["06000US3301146260","3301146260","060","Newbury",{"$f":"[1]ACS_16_5YR_B08303_with_ann!D198","v":1112},{"$f":"[1]ACS_16_5YR_B08303_with_ann!E198","v":178},{"$f":"[1]ACS_16_5YR_B08303_with_ann!F198","v":70},{"$f":"[1]ACS_16_5YR_B08303_with_ann!G198","v":41},{"$f":"[1]ACS_16_5YR_B08303_with_ann!H198","v":72},{"$f":"[1]ACS_16_5YR_B08303_with_ann!I198","v":41},{"$f":"[1]ACS_16_5YR_B08303_with_ann!J198","v":51},{"$f":"[1]ACS_16_5YR_B08303_with_ann!K198","v":29},{"$f":"[1]ACS_16_5YR_B08303_with_ann!L198","v":136},{"$f":"[1]ACS_16_5YR_B08303_with_ann!M198","v":51},{"$f":"[1]ACS_16_5YR_B08303_with_ann!N198","v":140},{"$f":"[1]ACS_16_5YR_B08303_with_ann!O198","v":45},{"$f":"[1]ACS_16_5YR_B08303_with_ann!P198","v":67},{"$f":"[1]ACS_16_5YR_B08303_with_ann!Q198","v":45},{"$f":"[1]ACS_16_5YR_B08303_with_ann!R198","v":95},{"$f":"[1]ACS_16_5YR_B08303_with_ann!S198","v":41},{"$f":"[1]ACS_16_5YR_B08303_with_ann!T198","v":77},{"$f":"[1]ACS_16_5YR_B08303_with_ann!U198","v":47},{"$f":"[1]ACS_16_5YR_B08303_with_ann!V198","v":111},{"$f":"[1]ACS_16_5YR_B08303_with_ann!W198","v":55},{"$f":"[1]ACS_16_5YR_B08303_with_ann!X198","v":131},{"$f":"[1]ACS_16_5YR_B08303_with_ann!Y198","v":63},{"$f":"[1]ACS_16_5YR_B08303_with_ann!Z198","v":115},{"$f":"[1]ACS_16_5YR_B08303_with_ann!AA198","v":51},{"$f":"[1]ACS_16_5YR_B08303_with_ann!AB198","v":47},{"$f":"[1]ACS_16_5YR_B08303_with_ann!AC198","v":35}]
["06000US3301147540","3301147540","060","New London",{"$f":"[1]ACS_16_5YR_B08303_with_ann!D199","v":1540},{"$f":"[1]ACS_16_5YR_B08303_with_ann!E199","v":164},{"$f":"[1]ACS_16_5YR_B08303_with_ann!F199","v":172},{"$f":"[1]ACS_16_5YR_B08303_with_ann!G199","v":81},{"$f":"[1]ACS_16_5YR_B08303_with_ann!H199","v":290},{"$f":"[1]ACS_16_5YR_B08303_with_ann!I199","v":106},{"$f":"[1]ACS_16_5YR_B08303_with_ann!J199","v":223},{"$f":"[1]ACS_16_5YR_B08303_with_ann!K199","v":89},{"$f":"[1]ACS_16_5YR_B08303_with_ann!L199","v":54},{"$f":"[1]ACS_16_5YR_B08303_with_ann!M199","v":37},{"$f":"[1]ACS_16_5YR_B08303_with_ann!N199","v":165},{"$f":"[1]ACS_16_5YR_B08303_with_ann!O199","v":81},{"$f":"[1]ACS_16_5YR_B08303_with_ann!P199","v":73},{"$f":"[1]ACS_16_5YR_B08303_with_ann!Q199","v":42},{"$f":"[1]ACS_16_5YR_B08303_with_ann!R199","v":191},{"$f":"[1]ACS_16_5YR_B08303_with_ann!S199","v":92},{"$f":"[1]ACS_16_5YR_B08303_with_ann!T199","v":119},{"$f":"[1]ACS_16_5YR_B08303_with_ann!U199","v":62},{"$f":"[1]ACS_16_5YR_B08303_with_ann!V199","v":50},{"$f":"[1]ACS_16_5YR_B08303_with_ann!W199","v":46},{"$f":"[1]ACS_16_5YR_B08303_with_ann!X199","v":80},{"$f":"[1]ACS_16_5YR_B08303_with_ann!Y199","v":51},{"$f":"[1]ACS_16_5YR_B08303_with_ann!Z199","v":88},{"$f":"[1]ACS_16_5YR_B08303_with_ann!AA199","v":52},{"$f":"[1]ACS_16_5YR_B08303_with_ann!AB199","v":35},{"$f":"[1]ACS_16_5YR_B08303_with_ann!AC199","v":33}]
["06000US3301148020","3301148020","060","Northfield",{"$f":"[1]ACS_16_5YR_B08303_with_ann!D200","v":2780},{"$f":"[1]ACS_16_5YR_B08303_with_ann!E200","v":269},{"$f":"[1]ACS_16_5YR_B08303_with_ann!F200","v":118},{"$f":"[1]ACS_16_5YR_B08303_with_ann!G200","v":73},{"$f":"[1]ACS_16_5YR_B08303_with_ann!H200","v":355},{"$f":"[1]ACS_16_5YR_B08303_with_ann!I200","v":114},{"$f":"[1]ACS_16_5YR_B08303_with_ann!J200","v":484},{"$f":"[1]ACS_16_5YR_B08303_with_ann!K200","v":134},{"$f":"[1]ACS_16_5YR_B08303_with_ann!L200","v":238},{"$f":"[1]ACS_16_5YR_B08303_with_ann!M200","v":104},{"$f":"[1]ACS_16_5YR_B08303_with_ann!N200","v":179},{"$f":"[1]ACS_16_5YR_B08303_with_ann!O200","v":76},{"$f":"[1]ACS_16_5YR_B08303_with_ann!P200","v":412},{"$f":"[1]ACS_16_5YR_B08303_with_ann!Q200","v":135},{"$f":"[1]ACS_16_5YR_B08303_with_ann!R200","v":430},{"$f":"[1]ACS_16_5YR_B08303_with_ann!S200","v":146},{"$f":"[1]ACS_16_5YR_B08303_with_ann!T200","v":137},{"$f":"[1]ACS_16_5YR_B08303_with_ann!U200","v":87},{"$f":"[1]ACS_16_5YR_B08303_with_ann!V200","v":117},{"$f":"[1]ACS_16_5YR_B08303_with_ann!W200","v":68},{"$f":"[1]ACS_16_5YR_B08303_with_ann!X200","v":112},{"$f":"[1]ACS_16_5YR_B08303_with_ann!Y200","v":77},{"$f":"[1]ACS_16_5YR_B08303_with_ann!Z200","v":124},{"$f":"[1]ACS_16_5YR_B08303_with_ann!AA200","v":61},{"$f":"[1]ACS_16_5YR_B08303_with_ann!AB200","v":74},{"$f":"[1]ACS_16_5YR_B08303_with_ann!AC200","v":44}]
["06000US3301149140","3301149140","060","Pembroke",{"$f":"[1]ACS_16_5YR_B08303_with_ann!D201","v":3856},{"$f":"[1]ACS_16_5YR_B08303_with_ann!E201","v":351},{"$f":"[1]ACS_16_5YR_B08303_with_ann!F201","v":65},{"$f":"[1]ACS_16_5YR_B08303_with_ann!G201","v":60},{"$f":"[1]ACS_16_5YR_B08303_with_ann!H201","v":244},{"$f":"[1]ACS_16_5YR_B08303_with_ann!I201","v":115},{"$f":"[1]ACS_16_5YR_B08303_with_ann!J201","v":236},{"$f":"[1]ACS_16_5YR_B08303_with_ann!K201","v":116},{"$f":"[1]ACS_16_5YR_B08303_with_ann!L201","v":720},{"$f":"[1]ACS_16_5YR_B08303_with_ann!M201","v":187},{"$f":"[1]ACS_16_5YR_B08303_with_ann!N201","v":648},{"$f":"[1]ACS_16_5YR_B08303_with_ann!O201","v":175},{"$f":"[1]ACS_16_5YR_B08303_with_ann!P201","v":197},{"$f":"[1]ACS_16_5YR_B08303_with_ann!Q201","v":105},{"$f":"[1]ACS_16_5YR_B08303_with_ann!R201","v":475},{"$f":"[1]ACS_16_5YR_B08303_with_ann!S201","v":185},{"$f":"[1]ACS_16_5YR_B08303_with_ann!T201","v":205},{"$f":"[1]ACS_16_5YR_B08303_with_ann!U201","v":93},{"$f":"[1]ACS_16_5YR_B08303_with_ann!V201","v":239},{"$f":"[1]ACS_16_5YR_B08303_with_ann!W201","v":138},{"$f":"[1]ACS_16_5YR_B08303_with_ann!X201","v":359},{"$f":"[1]ACS_16_5YR_B08303_with_ann!Y201","v":137},{"$f":"[1]ACS_16_5YR_B08303_with_ann!Z201","v":192},{"$f":"[1]ACS_16_5YR_B08303_with_ann!AA201","v":142},{"$f":"[1]ACS_16_5YR_B08303_with_ann!AB201","v":276},{"$f":"[1]ACS_16_5YR_B08303_with_ann!AC201","v":150}]
["06000US3301150260","3301150260","060","Pittsfield",{"$f":"[1]ACS_16_5YR_B08303_with_ann!D202","v":1619},{"$f":"[1]ACS_16_5YR_B08303_with_ann!E202","v":233},{"$f":"[1]ACS_16_5YR_B08303_with_ann!F202","v":90},{"$f":"[1]ACS_16_5YR_B08303_with_ann!G202","v":50},{"$f":"[1]ACS_16_5YR_B08303_with_ann!H202","v":164},{"$f":"[1]ACS_16_5YR_B08303_with_ann!I202","v":87},{"$f":"[1]ACS_16_5YR_B08303_with_ann!J202","v":98},{"$f":"[1]ACS_16_5YR_B08303_with_ann!K202","v":71},{"$f":"[1]ACS_16_5YR_B08303_with_ann!L202","v":100},{"$f":"[1]ACS_16_5YR_B08303_with_ann!M202","v":54},{"$f":"[1]ACS_16_5YR_B08303_with_ann!N202","v":118},{"$f":"[1]ACS_16_5YR_B08303_with_ann!O202","v":70},{"$f":"[1]ACS_16_5YR_B08303_with_ann!P202","v":87},{"$f":"[1]ACS_16_5YR_B08303_with_ann!Q202","v":82},{"$f":"[1]ACS_16_5YR_B08303_with_ann!R202","v":175},{"$f":"[1]ACS_16_5YR_B08303_with_ann!S202","v":88},{"$f":"[1]ACS_16_5YR_B08303_with_ann!T202","v":142},{"$f":"[1]ACS_16_5YR_B08303_with_ann!U202","v":69},{"$f":"[1]ACS_16_5YR_B08303_with_ann!V202","v":147},{"$f":"[1]ACS_16_5YR_B08303_with_ann!W202","v":76},{"$f":"[1]ACS_16_5YR_B08303_with_ann!X202","v":250},{"$f":"[1]ACS_16_5YR_B08303_with_ann!Y202","v":107},{"$f":"[1]ACS_16_5YR_B08303_with_ann!Z202","v":135},{"$f":"[1]ACS_16_5YR_B08303_with_ann!AA202","v":68},{"$f":"[1]ACS_16_5YR_B08303_with_ann!AB202","v":113},{"$f":"[1]ACS_16_5YR_B08303_with_ann!AC202","v":64}]
["06000US3301150740","3301150740","060","Salisbury",{"$f":"[1]ACS_16_5YR_B08303_with_ann!D203","v":649},{"$f":"[1]ACS_16_5YR_B08303_with_ann!E203","v":101},{"$f":"[1]ACS_16_5YR_B08303_with_ann!F203","v":9},{"$f":"[1]ACS_16_5YR_B08303_with_ann!G203","v":9},{"$f":"[1]ACS_16_5YR_B08303_with_ann!H203","v":40},{"$f":"[1]ACS_16_5YR_B08303_with_ann!I203","v":18},{"$f":"[1]ACS_16_5YR_B08303_with_ann!J203","v":24},{"$f":"[1]ACS_16_5YR_B08303_with_ann!K203","v":23},{"$f":"[1]ACS_16_5YR_B08303_with_ann!L203","v":70},{"$f":"[1]ACS_16_5YR_B08303_with_ann!M203","v":26},{"$f":"[1]ACS_16_5YR_B08303_with_ann!N203","v":40},{"$f":"[1]ACS_16_5YR_B08303_with_ann!O203","v":27},{"$f":"[1]ACS_16_5YR_B08303_with_ann!P203","v":85},{"$f":"[1]ACS_16_5YR_B08303_with_ann!Q203","v":35},{"$f":"[1]ACS_16_5YR_B08303_with_ann!R203","v":112},{"$f":"[1]ACS_16_5YR_B08303_with_ann!S203","v":36},{"$f":"[1]ACS_16_5YR_B08303_with_ann!T203","v":49},{"$f":"[1]ACS_16_5YR_B08303_with_ann!U203","v":26},{"$f":"[1]ACS_16_5YR_B08303_with_ann!V203","v":34},{"$f":"[1]ACS_16_5YR_B08303_with_ann!W203","v":22},{"$f":"[1]ACS_16_5YR_B08303_with_ann!X203","v":107},{"$f":"[1]ACS_16_5YR_B08303_with_ann!Y203","v":41},{"$f":"[1]ACS_16_5YR_B08303_with_ann!Z203","v":33},{"$f":"[1]ACS_16_5YR_B08303_with_ann!AA203","v":18},{"$f":"[1]ACS_16_5YR_B08303_with_ann!AB203","v":46},{"$f":"[1]ACS_16_5YR_B08303_with_ann!AC203","v":31}]
["06000US3301151940","3301151940","060","Sutton",{"$f":"[1]ACS_16_5YR_B08303_with_ann!D204","v":894},{"$f":"[1]ACS_16_5YR_B08303_with_ann!E204","v":143},{"$f":"[1]ACS_16_5YR_B08303_with_ann!F204","v":14},{"$f":"[1]ACS_16_5YR_B08303_with_ann!G204","v":19},{"$f":"[1]ACS_16_5YR_B08303_with_ann!H204","v":103},{"$f":"[1]ACS_16_5YR_B08303_with_ann!I204","v":54},{"$f":"[1]ACS_16_5YR_B08303_with_ann!J204","v":116},{"$f":"[1]ACS_16_5YR_B08303_with_ann!K204","v":45},{"$f":"[1]ACS_16_5YR_B08303_with_ann!L204","v":70},{"$f":"[1]ACS_16_5YR_B08303_with_ann!M204","v":33},{"$f":"[1]ACS_16_5YR_B08303_with_ann!N204","v":63},{"$f":"[1]ACS_16_5YR_B08303_with_ann!O204","v":34},{"$f":"[1]ACS_16_5YR_B08303_with_ann!P204","v":20},{"$f":"[1]ACS_16_5YR_B08303_with_ann!Q204","v":22},{"$f":"[1]ACS_16_5YR_B08303_with_ann!R204","v":104},{"$f":"[1]ACS_16_5YR_B08303_with_ann!S204","v":35},{"$f":"[1]ACS_16_5YR_B08303_with_ann!T204","v":73},{"$f":"[1]ACS_16_5YR_B08303_with_ann!U204","v":37},{"$f":"[1]ACS_16_5YR_B08303_with_ann!V204","v":85},{"$f":"[1]ACS_16_5YR_B08303_with_ann!W204","v":46},{"$f":"[1]ACS_16_5YR_B08303_with_ann!X204","v":157},{"$f":"[1]ACS_16_5YR_B08303_with_ann!Y204","v":56},{"$f":"[1]ACS_16_5YR_B08303_with_ann!Z204","v":79},{"$f":"[1]ACS_16_5YR_B08303_with_ann!AA204","v":38},{"$f":"[1]ACS_16_5YR_B08303_with_ann!AB204","v":10},{"$f":"[1]ACS_16_5YR_B08303_with_ann!AC204","v":9}]
["06000US3301159940","3301159940","060","Warner",{"$f":"[1]ACS_16_5YR_B08303_with_ann!D205","v":1333},{"$f":"[1]ACS_16_5YR_B08303_with_ann!E205","v":113},{"$f":"[1]ACS_16_5YR_B08303_with_ann!F205","v":52},{"$f":"[1]ACS_16_5YR_B08303_with_ann!G205","v":35},{"$f":"[1]ACS_16_5YR_B08303_with_ann!H205","v":36},{"$f":"[1]ACS_16_5YR_B08303_with_ann!I205","v":36},{"$f":"[1]ACS_16_5YR_B08303_with_ann!J205","v":88},{"$f":"[1]ACS_16_5YR_B08303_with_ann!K205","v":39},{"$f":"[1]ACS_16_5YR_B08303_with_ann!L205","v":137},{"$f":"[1]ACS_16_5YR_B08303_with_ann!M205","v":58},{"$f":"[1]ACS_16_5YR_B08303_with_ann!N205","v":209},{"$f":"[1]ACS_16_5YR_B08303_with_ann!O205","v":77},{"$f":"[1]ACS_16_5YR_B08303_with_ann!P205","v":124},{"$f":"[1]ACS_16_5YR_B08303_with_ann!Q205","v":43},{"$f":"[1]ACS_16_5YR_B08303_with_ann!R205","v":218},{"$f":"[1]ACS_16_5YR_B08303_with_ann!S205","v":76},{"$f":"[1]ACS_16_5YR_B08303_with_ann!T205","v":82},{"$f":"[1]ACS_16_5YR_B08303_with_ann!U205","v":36},{"$f":"[1]ACS_16_5YR_B08303_with_ann!V205","v":97},{"$f":"[1]ACS_16_5YR_B08303_with_ann!W205","v":38},{"$f":"[1]ACS_16_5YR_B08303_with_ann!X205","v":93},{"$f":"[1]ACS_16_5YR_B08303_with_ann!Y205","v":40},{"$f":"[1]ACS_16_5YR_B08303_with_ann!Z205","v":127},{"$f":"[1]ACS_16_5YR_B08303_with_ann!AA205","v":84},{"$f":"[1]ACS_16_5YR_B08303_with_ann!AB205","v":70},{"$f":"[1]ACS_16_5YR_B08303_with_ann!AC205","v":34}]
["06000US3301160580","3301160580","060","Webster",{"$f":"[1]ACS_16_5YR_B08303_with_ann!D206","v":1028},{"$f":"[1]ACS_16_5YR_B08303_with_ann!E206","v":123},{"$f":"[1]ACS_16_5YR_B08303_with_ann!F206","v":19},{"$f":"[1]ACS_16_5YR_B08303_with_ann!G206","v":18},{"$f":"[1]ACS_16_5YR_B08303_with_ann!H206","v":25},{"$f":"[1]ACS_16_5YR_B08303_with_ann!I206","v":12},{"$f":"[1]ACS_16_5YR_B08303_with_ann!J206","v":61},{"$f":"[1]ACS_16_5YR_B08303_with_ann!K206","v":30},{"$f":"[1]ACS_16_5YR_B08303_with_ann!L206","v":76},{"$f":"[1]ACS_16_5YR_B08303_with_ann!M206","v":50},{"$f":"[1]ACS_16_5YR_B08303_with_ann!N206","v":181},{"$f":"[1]ACS_16_5YR_B08303_with_ann!O206","v":52},{"$f":"[1]ACS_16_5YR_B08303_with_ann!P206","v":124},{"$f":"[1]ACS_16_5YR_B08303_with_ann!Q206","v":28},{"$f":"[1]ACS_16_5YR_B08303_with_ann!R206","v":220},{"$f":"[1]ACS_16_5YR_B08303_with_ann!S206","v":59},{"$f":"[1]ACS_16_5YR_B08303_with_ann!T206","v":37},{"$f":"[1]ACS_16_5YR_B08303_with_ann!U206","v":18},{"$f":"[1]ACS_16_5YR_B08303_with_ann!V206","v":62},{"$f":"[1]ACS_16_5YR_B08303_with_ann!W206","v":27},{"$f":"[1]ACS_16_5YR_B08303_with_ann!X206","v":101},{"$f":"[1]ACS_16_5YR_B08303_with_ann!Y206","v":32},{"$f":"[1]ACS_16_5YR_B08303_with_ann!Z206","v":95},{"$f":"[1]ACS_16_5YR_B08303_with_ann!AA206","v":41},{"$f":"[1]ACS_16_5YR_B08303_with_ann!AB206","v":27},{"$f":"[1]ACS_16_5YR_B08303_with_ann!AC206","v":25}]
["06000US3301168820","3301168820","060","Wilmot",{"$f":"[1]ACS_16_5YR_B08303_with_ann!D207","v":876},{"$f":"[1]ACS_16_5YR_B08303_with_ann!E207","v":135},{"$f":"[1]ACS_16_5YR_B08303_with_ann!F207","v":46},{"$f":"[1]ACS_16_5YR_B08303_with_ann!G207","v":31},{"$f":"[1]ACS_16_5YR_B08303_with_ann!H207","v":54},{"$f":"[1]ACS_16_5YR_B08303_with_ann!I207","v":30},{"$f":"[1]ACS_16_5YR_B08303_with_ann!J207","v":141},{"$f":"[1]ACS_16_5YR_B08303_with_ann!K207","v":47},{"$f":"[1]ACS_16_5YR_B08303_with_ann!L207","v":160},{"$f":"[1]ACS_16_5YR_B08303_with_ann!M207","v":62},{"$f":"[1]ACS_16_5YR_B08303_with_ann!N207","v":41},{"$f":"[1]ACS_16_5YR_B08303_with_ann!O207","v":23},{"$f":"[1]ACS_16_5YR_B08303_with_ann!P207","v":42},{"$f":"[1]ACS_16_5YR_B08303_with_ann!Q207","v":32},{"$f":"[1]ACS_16_5YR_B08303_with_ann!R207","v":103},{"$f":"[1]ACS_16_5YR_B08303_with_ann!S207","v":38},{"$f":"[1]ACS_16_5YR_B08303_with_ann!T207","v":61},{"$f":"[1]ACS_16_5YR_B08303_with_ann!U207","v":28},{"$f":"[1]ACS_16_5YR_B08303_with_ann!V207","v":52},{"$f":"[1]ACS_16_5YR_B08303_with_ann!W207","v":25},{"$f":"[1]ACS_16_5YR_B08303_with_ann!X207","v":95},{"$f":"[1]ACS_16_5YR_B08303_with_ann!Y207","v":35},{"$f":"[1]ACS_16_5YR_B08303_with_ann!Z207","v":60},{"$f":"[1]ACS_16_5YR_B08303_with_ann!AA207","v":26},{"$f":"[1]ACS_16_5YR_B08303_with_ann!AB207","v":21},{"$f":"[1]ACS_16_5YR_B08303_with_ann!AC207","v":15}]
[]
[]
[]
[null,null,null,null,{"$f":"$D3","v":"Allenstown"},null,{"$f":"$D$4","v":"Andover"},null,{"$f":"$D$5","v":"Boscawen"},null,{"$f":"$D$6","v":"Bow"},null,{"$f":"$D$7","v":"Bradford"},null,{"$f":"$D$8","v":"Canterbury"},null,{"$f":"$D$9","v":"Chichester"},null,{"$f":"$D$10","v":"Concord"},null,{"$f":"$D$11","v":"Danbury"},null,{"$f":"$D$12","v":"Dunbarton"},null,{"$f":"$D$13","v":"Epsom"},null,{"$f":"$D$14","v":"Franklin"},null,{"$f":"$D$15","v":"Henniker"},null,{"$f":"$D$16","v":"Hill"},null,{"$f":"$D$17","v":"Hooksett"},null,{"$f":"$D$18","v":"Hopkinton"},null,{"$f":"$D$19","v":"Loudon"},null,{"$f":"$D$20","v":"Newbury"},null,{"$f":"$D$21","v":"New London"},null,{"$f":"$D$22","v":"Northfield"},null,{"$f":"$D$23","v":"Pembroke"},null,{"$f":"$D$24","v":"Pittsfield"},null,{"$f":"$D$25","v":"Salisbury"},null,{"$f":"$D$26","v":"Sutton"},null,{"$f":"$D$27","v":"Warner"},null,{"$f":"$D$28","v":"Webster"},null,{"$f":"$D$29","v":"Wilmot"}]
[null,null,null,null,"Esitimate","Margin Of Error","Esitimate","Margin Of Error","Esitimate","Margin Of Error","Esitimate","Margin Of Error","Esitimate","Margin Of Error","Esitimate","Margin Of Error","Esitimate","Margin Of Error","Esitimate","Margin Of Error","Esitimate","Margin Of Error","Esitimate","Margin Of Error","Esitimate","Margin Of Error","Esitimate","Margin Of Error","Esitimate","Margin Of Error","Esitimate","Margin Of Error","Esitimate","Margin Of Error","Esitimate","Margin Of Error","Esitimate","Margin Of Error","Esitimate","Margin Of Error","Esitimate","Margin Of Error","Esitimate","Margin Of Error","Esitimate","Margin Of Error","Esitimate","Margin Of Error","Esitimate","Margin Of Error","Esitimate","Margin Of Error","Esitimate","Margin Of Error","Esitimate","Margin Of Error","Esitimate","Margin Of Error"]
[null,null,null,"Margin of Error!!Total:",2372,301,958,177,1632,257,3696,307,728,120,996,155,1261,145,18923,759,633,122,1521,117,2208,200,4096,379,2663,307,474,141,7294,391,2431,340,2393,356,776,135,1250,247,2716,224,3394,336,2033,234,570,136,1157,297,1269,133,1053,163,771,139]
[null,null,null,"Margin of Error!!Total:!!Less than 5 minutes",42,39,43,31,10,15,43,45,77,44,27,30,3,5,857,215,0,12,2,5,70,56,64,51,328,223,0,12,38,37,143,109,45,63,60,40,44,37,58,44,54,56,151,87,15,15,40,66,6,8,15,14,31,20]
[null,null,null,"Margin of Error!!Total:!!5 to 9 minutes",387,296,116,49,120,84,210,78,17,20,23,18,84,33,3070,363,27,22,19,16,116,63,516,176,316,161,8,8,365,192,170,91,133,97,23,22,305,155,279,99,172,101,293,181,19,16,51,28,93,50,44,43,14,10]
[null,null,null,"Margin of Error!!Total:!!10 to 14 minutes",232,117,69,40,10,15,420,117,43,19,94,52,121,56,2924,376,25,17,71,38,108,65,463,203,351,203,25,20,1071,280,351,147,221,133,78,42,122,75,596,192,554,195,163,132,12,12,112,48,77,40,57,27,125,37]
[" ",null,null,"Margin of Error!!Total:!!15 to 19 minutes",285,122,65,31,244,90,721,162,39,34,141,46,177,52,3168,403,43,24,127,48,213,112,247,118,108,71,69,36,1446,319,238,135,443,210,65,36,66,47,207,93,526,234,284,144,148,97,150,138,69,47,125,67,124,53]
[null,null,null,"Margin of Error!!Total:!!20 to 24 minutes",399,146,94,39,416,135,623,195,61,34,191,53,184,73,2142,303,76,43,422,107,340,129,459,207,486,217,76,38,1600,278,403,196,209,133,120,59,75,42,317,127,636,232,127,63,40,21,124,68,167,74,166,46,21,11]
[null,null,null,"Margin of Error!!Total:!!25 to 29 minutes",210,148,85,63,137,86,423,141,49,42,67,33,52,30,1198,258,38,23,206,78,115,59,404,274,136,97,62,52,450,157,261,174,248,158,47,28,43,39,384,148,167,96,138,82,56,31,11,16,136,52,107,34,45,27]
[null,null,null,"Margin of Error!!Total:!!30 to 34 minutes",364,100,70,56,281,157,601,161,138,46,65,36,331,81,2019,362,46,32,255,94,532,228,696,162,386,175,53,42,803,229,541,215,352,185,74,40,220,101,384,126,312,149,154,77,85,29,206,96,194,58,231,63,89,87]
[null,null,null,"Margin of Error!!Total:!!35 to 39 minutes",9,13,55,28,45,35,235,104,18,18,40,38,39,33,531,153,42,23,71,37,86,54,133,81,148,104,10,9,339,158,40,57,86,87,43,27,85,65,64,50,39,51,61,45,73,40,96,55,106,50,54,25,59,28]
[null,null,null,"Margin of Error!!Total:!!40 to 44 minutes",86,72,56,37,75,60,68,43,49,22,78,58,40,28,632,155,87,40,56,36,73,49,274,139,42,41,22,12,164,92,62,69,117,96,70,39,67,47,172,106,234,145,155,87,28,15,72,37,107,69,74,59,44,44]
[null,null,null,"Margin of Error!!Total:!!45 to 59 minutes",235,96,156,90,96,67,156,76,136,55,148,63,105,44,1155,242,156,48,81,38,378,114,425,159,137,88,76,45,378,130,155,102,341,143,89,41,102,54,115,100,360,129,286,124,35,22,211,113,144,59,104,31,145,58]
[null,null,null,"Margin of Error!!Total:!!60 to 89 minutes",101,56,41,23,52,39,124,70,81,48,102,56,69,34,880,180,69,31,114,76,141,75,290,122,186,95,50,23,473,172,67,65,50,49,72,34,97,52,93,64,198,111,186,91,20,14,67,34,142,70,57,36,50,23]
[null,null,null,"Margin of Error!!Total:!!90 or more minutes",22,21,108,59,146,87,72,47,20,13,20,22,56,64,347,143,24,21,97,53,36,33,125,94,39,38,23,15,167,124,0,17,148,115,35,32,24,22,47,40,142,94,35,31,39,32,17,12,28,27,19,15,24,17]
[]
[]
[]
[]
[]
[]
[]
[]
[]
[]
[]
[]
[]
[]
[]
[]
[]
[]
[]
[]
[]
[]
[]
[]
[]
[]
[]
[]
[]
[]
[]
[]
[]
[]
[]
[]
[]
[]
[]
[]
[]
[]
[]
[]
[]
[]
[]
[]
[]
[]
[]
[]
[]
[]
[]
[]
[]
[]
[]
[]
[]
[]
[]
[]
[null,4296,33,230,86.278618440491968,0,15.556349186104045,230,86.278618440491968,547,134.61797799699713,170,98.994949366116657,377,108.81176406988355,917,147.10540438746634,96,59.506302187247357,821,142.13022197970423,2010,140.80127840328723,376,112.0714058089752,1634,154.15576538034509,331,82.855295545909442,117,49.678969393496885,214,77.89736837660179,261,83.234608186739251,158,61.522353661088097,103,54.626001134990652]

{"sheet":"ACS_Table_B01001","index":20,"n_rows":265,"n_cols":56,"rows_kept":265,"cut":false,"hidden":true,"merged":[[177,2,177,3],[177,4,177,5],[177,6,177,7],[177,8,177,9],[177,10,177,11],[177,12,177,13],[177,14,177,15],[177,16,177,17],[177,18,177,19],[177,20,177,21],[177,22,177,23],[239,2,239,3],[239,4,239,5],[239,6,239,7],[239,8,239,9],[239,10,239,11],[239,12,239,13],[239,14,239,15],[239,16,239,17],[239,18,239,19],[239,20,239,21],[239,22,239,23],[65103,10,65103,11],[65103,12,65103,13],[65103,14,65103,15],[65103,2,65103,3],[65103,4,65103,5],[65103,6,65103,7],[65103,8,65103,9],[64919,2,64919,3],[64919,4,64919,5],[64919,6,64919,7],[64919,8,64919,9],[64919,10,64919,11],[64919,12,64919,13],[64919,14,64919,15],[64857,2,64857,3],[64857,4,64857,5],[65001,12,65001,13],[65001,14,65001,15],[64939,2,64939,3],[64939,4,64939,5],[64939,6,64939,7],[64939,8,64939,9],[64939,10,64939,11],[64939,12,64939,13],[65021,6,65021,7],[65021,8,65021,9],[65021,10,65021,11],[65021,12,65021,13],[64939,14,64939,15],[65001,2,65001,3],[65001,4,65001,5],[65001,6,65001,7],[65001,8,65001,9],[65001,10,65001,11],[65021,14,65021,15],[65083,2,65083,3],[65083,4,65083,5],[65083,6,65083,7],[65083,8,65083,9],[65083,10,65083,11],[65083,12,65083,13],[65083,14,65083,15],[65021,2,65021,3],[65021,4,65021,5],[64693,6,64693,7],[64693,8,64693,9],[64693,10,64693,11],[64693,12,64693,13],[64611,14,64611,15],[64673,2,64673,3],[64673,4,64673,5],[64673,6,64673,7],[64673,8,64673,9],[64673,10,64673,11],[64693,14,64693,15],[64755,2,64755,3],[64755,4,64755,5],[64755,6,64755,7],[64755,8,64755,9],[64755,10,64755,11],[64755,12,64755,13],[64755,14,64755,15],[64693,2,64693,3],[64693,4,64693,5],[64837,12,64837,13],[64837,14,64837,15],[64775,2,64775,3],[64775,4,64775,5],[64775,6,64775,7],[64775,8,64775,9],[64775,10,64775,11],[64775,12,64775,13],[64857,6,64857,7],[64857,8,64857,9],[64857,10,64857,11],[64857,12,64857,13],[64775,14,64775,15],[64837,2,64837,3],[64837,4,64837,5],[64837,6,64837,7],[64837,8,64837,9],[64837,10,64837,11],[64857,14,64857,15],[64509,12,64509,13],[64509,14,64509,15],[64447,2,64447,3],[64447,4,64447,5],[64447,6,64447,7],[64447,8,64447,9],[64447,10,64447,11],[64447,12,64447,13],[64529,6,64529,7],[64529,8,64529,9],[64529,10,64529,11],[64529,12,64529,13],[64447,14,64447,15],[64509,2,64509,3],[64509,4,64509,5],[64509,6,64509,7],[64509,8,64509,9],[64509,10,64509,11],[64529,14,64529,15],[64591,2,64591,3],[64591,4,64591,5],[64591,6,64591,7],[64591,8,64591,9],[64591,10,64591,11],[64591,12,64591,13],[64591,14,64591,15],[64529,2,64529,3],[64529,4,64529,5],[64673,12,64673,13],[64673,14,64673,15],[64611,2,64611,3],[64611,4,64611,5],[64611,6,64611,7],[64611,8,64611,9],[64611,10,64611,11],[64611,12,64611,13],[64263,2,64263,3],[64263,4,64263,5],[64263,6,64263,7],[64263,8,64263,9],[64263,10,64263,11],[64263,12,64263,13],[64263,14,64263,15],[64201,2,64201,3],[64201,4,64201,5],[64345,12,64345,13],[64345,14,64345,15],[64283,2,64283,3],[64283,4,64283,5],[64283,6,64283,7],[64283,8,64283,9],[64283,10,64283,11],[64283,12,64283,13],[64365,6,64365,7],[64365,8,64365,9],[64365,10,64365,11],[64365,12,64365,13],[64283,14,64283,15],[64345,2,64345,3],[64345,4,64345,5],[64345,6,64345,7],[64345,8,64345,9],[64345,10,64345,11],[64365,14,64365,15],[64427,2,64427,3],[64427,4,64427,5],[64427,6,64427,7],[64427,8,64427,9],[64427,10,64427,11],[64427,12,64427,13],[64427,14,64427,15],[64365,2,64365,3],[64365,4,64365,5],[64037,6,64037,7],[64037,8,64037,9],[64037,10,64037,11],[64037,12,64037,13],[63955,14,63955,15],[64017,2,64017,3],[64017,4,64017,5],[64017,6,64017,7],[64017,8,64017,9],[64017,10,64017,11],[64037,14,64037,15],[64099,2,64099,3],[64099,4,64099,5],[64099,6,64099,7],[64099,8,64099,9],[64099,10,64099,11],[64099,12,64099,13],[64099,14,64099,15],[64037,2,64037,3],[64037,4,64037,5],[64181,12,64181,13],[64181,14,64181,15],[64119,2,64119,3],[64119,4,64119,5],[64119,6,64119,7],[64119,8,64119,9],[64119,10,64119,11],[64119,12,64119,13],[64201,6,64201,7],[64201,8,64201,9],[64201,10,64201,11],[64201,12,64201,13],[64119,14,64119,15],[64181,2,64181,3],[64181,4,64181,5],[64181,6,64181,7],[64181,8,64181,9],[64181,10,64181,11],[64201,14,64201,15],[63853,12,63853,13],[63853,14,63853,15],[63791,2,63791,3],[63791,4,63791,5],[63791,6,63791,7],[63791,8,63791,9],[63791,10,63791,11],[63791,12,63791,13],[63873,6,63873,7],[63873,8,63873,9],[63873,10,63873,11],[63873,12,63873,13],[63791,14,63791,15],[63853,2,63853,3],[63853,4,63853,5],[63853,6,63853,7],[63853,8,63853,9],[63853,10,63853,11],[63873,14,63873,15],[63935,2,63935,3],[63935,4,63935,5],[63935,6,63935,7],[63935,8,63935,9],[63935,10,63935,11],[63935,12,63935,13],[63935,14,63935,15],[63873,2,63873,3],[63873,4,63873,5],[64017,12,64017,13],[64017,14,64017,15],[63955,2,63955,3],[63955,4,63955,5],[63955,6,63955,7],[63955,8,63955,9],[63955,10,63955,11],[63955,12,63955,13],[63607,2,63607,3],[63607,4,63607,5],[63607,6,63607,7],[63607,8,63607,9],[63607,10,63607,11],[63607,12,63607,13],[63607,14,63607,15],[63545,2,63545,3],[63545,4,63545,5],[63689,12,63689,13],[63689,14,63689,15],[63627,2,63627,3],[63627,4,63627,5],[63627,6,63627,7],[63627,8,63627,9],[63627,10,63627,11],[63627,12,63627,13],[63709,6,63709,7],[63709,8,63709,9],[63709,10,63709,11],[63709,12,63709,13],[63627,14,63627,15],[63689,2,63689,3],[63689,4,63689,5],[63689,6,63689,7],[63689,8,63689,9],[63689,10,63689,11],[63709,14,63709,15],[63771,2,63771,3],[63771,4,63771,5],[63771,6,63771,7],[63771,8,63771,9],[63771,10,63771,11],[63771,12,63771,13],[63771,14,63771,15],[63709,2,63709,3],[63709,4,63709,5],[63381,6,63381,7],[63381,8,63381,9],[63381,10,63381,11],[63381,12,63381,13],[63299,14,63299,15],[63361,2,63361,3],[63361,4,63361,5],[63361,6,63361,7],[63361,8,63361,9],[63361,10,63361,11],[63381,14,63381,15],[63443,2,63443,3],[63443,4,63443,5],[63443,6,63443,7],[63443,8,63443,9],[63443,10,63443,11],[63443,12,63443,13],[63443,14,63443,15],[63381,2,63381,3],[63381,4,63381,5],[63525,12,63525,13],[63525,14,63525,15],[63463,2,63463,3],[63463,4,63463,5],[63463,6,63463,7],[63463,8,63463,9],[63463,10,63463,11],[63463,12,63463,13],[63545,6,63545,7],[63545,8,63545,9],[63545,10,63545,11],[63545,12,63545,13],[63463,14,63463,15],[63525,2,63525,3],[63525,4,63525,5],[63525,6,63525,7],[63525,8,63525,9],[63525,10,63525,11],[63545,14,63545,15],[63197,12,63197,13],[63197,14,63197,15],[63135,2,63135,3],[63135,4,63135,5],[63135,6,63135,7],[63135,8,63135,9],[63135,10,63135,11],[63135,12,63135,13],[63217,6,63217,7],[63217,8,63217,9],[63217,10,63217,11],[63217,12,63217,13],[63135,14,63135,15],[63197,2,63197,3],[63197,4,63197,5],[63197,6,63197,7],[63197,8,63197,9],[63197,10,63197,11],[63217,14,63217,15],[63279,2,63279,3],[63279,4,63279,5],[63279,6,63279,7],[63279,8,63279,9],[63279,10,63279,11],[63279,12,63279,13],[63279,14,63279,15],[63217,2,63217,3],[63217,4,63217,5],[63361,12,63361,13],[63361,14,63361,15],[63299,2,63299,3],[63299,4,63299,5],[63299,6,63299,7],[63299,8,63299,9],[63299,10,63299,11],[63299,12,63299,13],[62951,2,62951,3],[62951,4,62951,5],[62951,6,62951,7],[62951,8,62951,9],[62951,10,62951,11],[62951,12,62951,13],[62951,14,62951,15],[62889,2,62889,3],[62889,4,62889,5],[63033,12,63033,13],[63033,14,63033,15],[62971,2,62971,3],[62971,4,62971,5],[62971,6,62971,7],[62971,8,62971,9],[62971,10,62971,11],[62971,12,62971,13],[63053,6,63053,7],[63053,8,63053,9],[63053,10,63053,11],[63053,12,63053,13],[62971,14,62971,15],[63033,2,63033,3],[63033,4,63033,5],[63033,6,63033,7],[63033,8,63033,9],[63033,10,63033,11],[63053,14,63053,15],[63115,2,63115,3],[63115,4,63115,5],[63115,6,63115,7],[63115,8,63115,9],[63115,10,63115,11],[63115,12,63115,13],[63115,14,63115,15],[63053,2,63053,3],[63053,4,63053,5],[62725,6,62725,7],[62725,8,62725,9],[62725,10,62725,11],[62725,12,62725,13],[62643,14,62643,15],[62705,2,62705,3],[62705,4,62705,5],[62705,6,62705,7],[62705,8,62705,9],[62705,10,62705,11],[62725,14,62725,15],[62787,2,62787,3],[62787,4,62787,5],[62787,6,62787,7],[62787,8,62787,9],[62787,10,62787,11],[62787,12,62787,13],[62787,14,62787,15],[62725,2,62725,3],[62725,4,62725,5],[62869,12,62869,13],[62869,14,62869,15],[62807,2,62807,3],[62807,4,62807,5],[62807,6,62807,7],[62807,8,62807,9],[62807,10,62807,11],[62807,12,62807,13],[62889,6,62889,7],[62889,8,62889,9],[62889,10,62889,11],[62889,12,62889,13],[62807,14,62807,15],[62869,2,62869,3],[62869,4,62869,5],[62869,6,62869,7],[62869,8,62869,9],[62869,10,62869,11],[62889,14,62889,15],[62541,12,62541,13],[62541,14,62541,15],[62479,2,62479,3],[62479,4,62479,5],[62479,6,62479,7],[62479,8,62479,9],[62479,10,62479,11],[62479,12,62479,13],[62561,6,62561,7],[62561,8,62561,9],[62561,10,62561,11],[62561,12,62561,13],[62479,14,62479,15],[62541,2,62541,3],[62541,4,62541,5],[62541,6,62541,7],[62541,8,62541,9],[62541,10,62541,11],[62561,14,62561,15],[62623,2,62623,3],[62623,4,62623,5],[62623,6,62623,7],[62623,8,62623,9],[62623,10,62623,11],[62623,12,62623,13],[62623,14,62623,15],[62561,2,62561,3],[62561,4,62561,5],[62705,12,62705,13],[62705,14,62705,15],[62643,2,62643,3],[62643,4,62643,5],[62643,6,62643,7],[62643,8,62643,9],[62643,10,62643,11],[62643,12,62643,13],[62295,2,62295,3],[62295,4,62295,5],[62295,6,62295,7],[62295,8,62295,9],[62295,10,62295,11],[62295,12,62295,13],[62295,14,62295,15],[62233,2,62233,3],[62233,4,62233,5],[62377,12,62377,13],[62377,14,62377,15],[62315,2,62315,3],[62315,4,62315,5],[62315,6,62315,7],[62315,8,62315,9],[62315,10,62315,11],[62315,12,62315,13],[62397,6,62397,7],[62397,8,62397,9],[62397,10,62397,11],[62397,12,62397,13],[62315,14,62315,15],[62377,2,62377,3],[62377,4,62377,5],[62377,6,62377,7],[62377,8,62377,9],[62377,10,62377,11],[62397,14,62397,15],[62459,2,62459,3],[62459,4,62459,5],[62459,6,62459,7],[62459,8,62459,9],[62459,10,62459,11],[62459,12,62459,13],[62459,14,62459,15],[62397,2,62397,3],[62397,4,62397,5],[62069,6,62069,7],[62069,8,62069,9],[62069,10,62069,11],[62069,12,62069,13],[61987,14,61987,15],[62049,2,62049,3],[62049,4,62049,5],[62049,6,62049,7],[62049,8,62049,9],[62049,10,62049,11],[62069,14,62069,15],[62131,2,62131,3],[62131,4,62131,5],[62131,6,62131,7],[62131,8,62131,9],[62131,10,62131,11],[62131,12,62131,13],[62131,14,62131,15],[62069,2,62069,3],[62069,4,62069,5],[62213,12,62213,13],[62213,14,62213,15],[62151,2,62151,3],[62151,4,62151,5],[62151,6,62151,7],[62151,8,62151,9],[62151,10,62151,11],[62151,12,62151,13],[62233,6,62233,7],[62233,8,62233,9],[62233,10,62233,11],[62233,12,62233,13],[62151,14,62151,15],[62213,2,62213,3],[62213,4,62213,5],[62213,6,62213,7],[62213,8,62213,9],[62213,10,62213,11],[62233,14,62233,15],[61885,12,61885,13],[61885,14,61885,15],[61823,2,61823,3],[61823,4,61823,5],[61823,6,61823,7],[61823,8,61823,9],[61823,10,61823,11],[61823,12,61823,13],[61905,6,61905,7],[61905,8,61905,9],[61905,10,61905,11],[61905,12,61905,13],[61823,14,61823,15],[61885,2,61885,3],[61885,4,61885,5],[61885,6,61885,7],[61885,8,61885,9],[61885,10,61885,11],[61905,14,61905,15],[61967,2,61967,3],[61967,4,61967,5],[61967,6,61967,7],[61967,8,61967,9],[61967,10,61967,11],[61967,12,61967,13],[61967,14,61967,15],[61905,2,61905,3],[61905,4,61905,5],[62049,12,62049,13],[62049,14,62049,15],[61987,2,61987,3],[61987,4,61987,5],[61987,6,61987,7],[61987,8,61987,9],[61987,10,61987,11],[61987,12,61987,13],[61639,2,61639,3],[61639,4,61639,5],[61639,6,61639,7],[61639,8,61639,9],[61639,10,61639,11],[61639,12,61639,13],[61639,14,61639,15],[61577,2,61577,3],[61577,4,61577,5],[61721,12,61721,13],[61721,14,61721,15],[61659,2,61659,3],[61659,4,61659,5],[61659,6,61659,7],[61659,8,61659,9],[61659,10,61659,11],[61659,12,61659,13],[61741,6,61741,7],[61741,8,61741,9],[61741,10,61741,11],[61741,12,61741,13],[61659,14,61659,15],[61721,2,61721,3],[61721,4,61721,5],[61721,6,61721,7],[61721,8,61721,9],[61721,10,61721,11],[61741,14,61741,15],[61803,2,61803,3],[61803,4,61803,5],[61803,6,61803,7],[61803,8,61803,9],[61803,10,61803,11],[61803,12,61803,13],[61803,14,61803,15],[61741,2,61741,3],[61741,4,61741,5],[61413,6,61413,7],[61413,8,61413,9],[61413,10,61413,11],[61413,12,61413,13],[61331,14,61331,15],[61393,2,61393,3],[61393,4,61393,5],[61393,6,61393,7],[61393,8,61393,9],[61393,10,61393,11],[61413,14,61413,15],[61475,2,61475,3],[61475,4,61475,5],[61475,6,61475,7],[61475,8,61475,9],[61475,10,61475,11],[61475,12,61475,13],[61475,14,61475,15],[61413,2,61413,3],[61413,4,61413,5],[61557,12,61557,13],[61557,14,61557,15],[61495,2,61495,3],[61495,4,61495,5],[61495,6,61495,7],[61495,8,61495,9],[61495,10,61495,11],[61495,12,61495,13],[61577,6,61577,7],[61577,8,61577,9],[61577,10,61577,11],[61577,12,61577,13],[61495,14,61495,15],[61557,2,61557,3],[61557,4,61557,5],[61557,6,61557,7],[61557,8,61557,9],[61557,10,61557,11],[61577,14,61577,15],[61229,12,61229,13],[61229,14,61229,15],[61167,2,61167,3],[61167,4,61167,5],[61167,6,61167,7],[61167,8,61167,9],[61167,10,61167,11],[61167,12,61167,13],[61249,6,61249,7],[61249,8,61249,9],[61249,10,61249,11],[61249,12,61249,13],[61167,14,61167,15],[61229,2,61229,3],[61229,4,61229,5],[61229,6,61229,7],[61229,8,61229,9],[61229,10,61229,11],[61249,14,61249,15],[61311,2,61311,3],[61311,4,61311,5],[61311,6,61311,7],[61311,8,61311,9],[61311,10,61311,11],[61311,12,61311,13],[61311,14,61311,15],[61249,2,61249,3],[61249,4,61249,5],[61393,12,61393,13],[61393,14,61393,15],[61331,2,61331,3],[61331,4,61331,5],[61331,6,61331,7],[61331,8,61331,9],[61331,10,61331,11],[61331,12,61331,13],[60983,2,60983,3],[60983,4,60983,5],[60983,6,60983,7],[60983,8,60983,9],[60983,10,60983,11],[60983,12,60983,13],[60983,14,60983,15],[60921,2,60921,3],[60921,4,60921,5],[61065,12,61065,13],[61065,14,61065,15],[61003,2,61003,3],[61003,4,61003,5],[61003,6,61003,7],[61003,8,61003,9],[61003,10,61003,11],[61003,12,61003,13],[61085,6,61085,7],[61085,8,61085,9],[61085,10,61085,11],[61085,12,61085,13],[61003,14,61003,15],[61065,2,61065,3],[61065,4,61065,5],[61065,6,61065,7],[61065,8,61065,9],[61065,10,61065,11],[61085,14,61085,15],[61147,2,61147,3],[61147,4,61147,5],[61147,6,61147,7],[61147,8,61147,9],[61147,10,61147,11],[61147,12,61147,13],[61147,14,61147,15],[61085,2,61085,3],[61085,4,61085,5],[60757,6,60757,7],[60757,8,60757,9],[60757,10,60757,11],[60757,12,60757,13],[60675,14,60675,15],[60737,2,60737,3],[60737,4,60737,5],[60737,6,60737,7],[60737,8,60737,9],[60737,10,60737,11],[60757,14,60757,15],[60819,2,60819,3],[60819,4,60819,5],[60819,6,60819,7],[60819,8,60819,9],[60819,10,60819,11],[60819,12,60819,13],[60819,14,60819,15],[60757,2,60757,3],[60757,4,60757,5],[60901,12,60901,13],[60901,14,60901,15],[60839,2,60839,3],[60839,4,60839,5],[60839,6,60839,7],[60839,8,60839,9],[60839,10,60839,11],[60839,12,60839,13],[60921,6,60921,7],[60921,8,60921,9],[60921,10,60921,11],[60921,12,60921,13],[60839,14,60839,15],[60901,2,60901,3],[60901,4,60901,5],[60901,6,60901,7],[60901,8,60901,9],[60901,10,60901,11],[60921,14,60921,15],[60573,12,60573,13],[60573,14,60573,15],[60511,2,60511,3],[60511,4,60511,5],[60511,6,60511,7],[60511,8,60511,9],[60511,10,60511,11],[60511,12,60511,13],[60593,6,60593,7],[60593,8,60593,9],[60593,10,60593,11],[60593,12,60593,13],[60511,14,60511,15],[60573,2,60573,3],[60573,4,60573,5],[60573,6,60573,7],[60573,8,60573,9],[60573,10,60573,11],[60593,14,60593,15],[60655,2,60655,3],[60655,4,60655,5],[60655,6,60655,7],[60655,8,60655,9],[60655,10,60655,11],[60655,12,60655,13],[60655,14,60655,15],[60593,2,60593,3],[60593,4,60593,5],[60737,12,60737,13],[60737,14,60737,15],[60675,2,60675,3],[60675,4,60675,5],[60675,6,60675,7],[60675,8,60675,9],[60675,10,60675,11],[60675,12,60675,13],[60327,2,60327,3],[60327,4,60327,5],[60327,6,60327,7],[60327,8,60327,9],[60327,10,60327,11],[60327,12,60327,13],[60327,14,60327,15],[60265,2,60265,3],[60265,4,60265,5],[60409,12,60409,13],[60409,14,60409,15],[60347,2,60347,3],[60347,4,60347,5],[60347,6,60347,7],[60347,8,60347,9],[60347,10,60347,11],[60347,12,60347,13],[60429,6,60429,7],[60429,8,60429,9],[60429,10,60429,11],[60429,12,60429,13],[60347,14,60347,15],[60409,2,60409,3],[60409,4,60409,5],[60409,6,60409,7],[60409,8,60409,9],[60409,10,60409,11],[60429,14,60429,15],[60491,2,60491,3],[60491,4,60491,5],[60491,6,60491,7],[60491,8,60491,9],[60491,10,60491,11],[60491,12,60491,13],[60491,14,60491,15],[60429,2,60429,3],[60429,4,60429,5],[60101,6,60101,7],[60101,8,60101,9],[60101,10,60101,11],[60101,12,60101,13],[60019,14,60019,15],[60081,2,60081,3],[60081,4,60081,5],[60081,6,60081,7],[60081,8,60081,9],[60081,10,60081,11],[60101,14,60101,15],[60163,2,60163,3],[60163,4,60163,5],[60163,6,60163,7],[60163,8,60163,9],[60163,10,60163,11],[60163,12,60163,13],[60163,14,60163,15],[60101,2,60101,3],[60101,4,60101,5],[60245,12,60245,13],[60245,14,60245,15],[60183,2,60183,3],[60183,4,60183,5],[60183,6,60183,7],[60183,8,60183,9],[60183,10,60183,11],[60183,12,60183,13],[60265,6,60265,7],[60265,8,60265,9],[60265,10,60265,11],[60265,12,60265,13],[60183,14,60183,15],[60245,2,60245,3],[60245,4,60245,5],[60245,6,60245,7],[60245,8,60245,9],[60245,10,60245,11],[60265,14,60265,15],[59917,12,59917,13],[59917,14,59917,15],[59855,2,59855,3],[59855,4,59855,5],[59855,6,59855,7],[59855,8,59855,9],[59855,10,59855,11],[59855,12,59855,13],[59937,6,59937,7],[59937,8,59937,9],[59937,10,59937,11],[59937,12,59937,13],[59855,14,59855,15],[59917,2,59917,3],[59917,4,59917,5],[59917,6,59917,7],[59917,8,59917,9],[59917,10,59917,11],[59937,14,59937,15],[59999,2,59999,3],[59999,4,59999,5],[59999,6,59999,7],[59999,8,59999,9],[59999,10,59999,11],[59999,12,59999,13],[59999,14,59999,15],[59937,2,59937,3],[59937,4,59937,5],[60081,12,60081,13],[60081,14,60081,15],[60019,2,60019,3],[60019,4,60019,5],[60019,6,60019,7],[60019,8,60019,9],[60019,10,60019,11],[60019,12,60019,13],[59671,2,59671,3],[59671,4,59671,5],[59671,6,59671,7],[59671,8,59671,9],[59671,10,59671,11],[59671,12,59671,13],[59671,14,59671,15],[59609,2,59609,3],[59609,4,59609,5],[59753,12,59753,13],[59753,14,59753,15],[59691,2,59691,3],[59691,4,59691,5],[59691,6,59691,7],[59691,8,59691,9],[59691,10,59691,11],[59691,12,59691,13],[59773,6,59773,7],[59773,8,59773,9],[59773,10,59773,11],[59773,12,59773,13],[59691,14,59691,15],[59753,2,59753,3],[59753,4,59753,5],[59753,6,59753,7],[59753,8,59753,9],[59753,10,59753,11],[59773,14,59773,15],[59835,2,59835,3],[59835,4,59835,5],[59835,6,59835,7],[59835,8,59835,9],[59835,10,59835,11],[59835,12,59835,13],[59835,14,59835,15],[59773,2,59773,3],[59773,4,59773,5],[59445,6,59445,7],[59445,8,59445,9],[59445,10,59445,11],[59445,12,59445,13],[59363,14,59363,15],[59425,2,59425,3],[59425,4,59425,5],[59425,6,59425,7],[59425,8,59425,9],[59425,10,59425,11],[59445,14,59445,15],[59507,2,59507,3],[59507,4,59507,5],[59507,6,59507,7],[59507,8,59507,9],[59507,10,59507,11],[59507,12,59507,13],[59507,14,59507,15],[59445,2,59445,3],[59445,4,59445,5],[59589,12,59589,13],[59589,14,59589,15],[59527,2,59527,3],[59527,4,59527,5],[59527,6,59527,7],[59527,8,59527,9],[59527,10,59527,11],[59527,12,59527,13],[59609,6,59609,7],[59609,8,59609,9],[59609,10,59609,11],[59609,12,59609,13],[59527,14,59527,15],[59589,2,59589,3],[59589,4,59589,5],[59589,6,59589,7],[59589,8,59589,9],[59589,10,59589,11]],"merged_total":17446,"flags":["merged_cut"]}
[null,"B01001. GENDER BY AGE"]
[null,"Universe:  TOTAL POPULATION"]
[null,"Data Set: 2018-2022 American Community Survey 5-Year Estimates"]
[]
[null,null,"Allenstown",null,"Andover",null,"Boscawen",null,"Bow",null,"Bradford",null,"Canterbury",null,"Chichester",null,"Concord",null,"Danbury",null,"Dunbarton",null,"Epsom",null,"Franklin",null,"Henniker",null,"Hill",null,"Hooksett",null,"Hopkinton",null,"Loudon",null,"Newbury",null,"New London",null,"Northfield",null,"Pembroke",null,"Pittsfield",null,"Salisbury",null,"Sutton",null,"Warner",null,"Webster",null,"Wilmot"]
[null,null,"Estimate","Margin Of Error","Estimate","Margin Of Error","Estimate","Margin Of Error","Estimate","Margin Of Error","Estimate","Margin Of Error","Estimate","Margin Of Error","Estimate","Margin Of Error","Estimate","Margin Of Error","Estimate","Margin Of Error","Estimate","Margin Of Error","Estimate","Margin Of Error","Estimate","Margin Of Error","Estimate","Margin Of Error","Estimate","Margin Of Error","Estimate","Margin Of Error","Estimate","Margin Of Error","Estimate","Margin Of Error","Estimate","Margin Of Error","Estimate","Margin Of Error","Estimate","Margin Of Error","Estimate","Margin Of Error","Estimate","Margin Of Error","Estimate","Margin Of Error","Estimate","Margin Of Error","Estimate","Margin Of Error","Estimate","Margin Of Error","Estimate","Margin Of Error"]
[null,"Total:",4697,20,2151,307,3992,38,8235,19,1565,172,2316,242,2691,27,44049,56,1491,261,3000,55,4846,26,8746,19,6094,15,839,182,14699,26,5925,20,5608,21,1911,255,4389,29,4892,24,7299,36,4093,17,1594,365,2254,451,2920,28,2120,317,1502,217]
[null,"Male:",2445,159,1048,168,1971,132,4045,189,835,112,1133,153,1404,102,22879,555,747,113,1506,91,2283,142,3864,349,3259,210,486,119,7109,295,2777,244,2762,198,981,161,1947,147,2344,169,3831,257,1906,160,884,264,1141,236,1367,105,1061,204,708,117]
[null,"Under 5 years",130,79,23,29,93,57,307,100,41,30,33,23,58,39,1079,210,36,26,65,39,125,83,148,86,209,149,20,14,380,171,98,77,35,52,79,41,68,59,104,79,113,62,0,12,17,16,20,19,79,53,136,151,41,27]
[null,"5 to 9 years",153,71,48,48,127,72,302,100,62,29,25,18,97,54,1089,216,44,25,126,52,127,65,128,81,187,79,8,7,327,179,170,97,17,32,28,25,93,54,178,154,309,131,67,62,16,14,50,36,68,33,31,18,50,35]
[null,"10 to 14 years",127,66,42,30,88,52,332,119,37,23,34,31,149,61,1204,234,35,24,92,49,112,70,223,107,162,81,18,13,324,116,173,145,219,119,61,30,92,66,87,52,265,109,98,58,152,160,45,26,48,28,44,21,29,15]
[null,"15 to 17 years",166,78,40,27,117,79,220,110,52,29,43,31,73,52,771,164,17,16,38,24,44,33,99,71,92,76,14,10,279,136,68,66,78,68,33,25,29,30,129,83,159,105,60,55,19,16,26,18,101,52,35,17,3,5]
[null,"18 and 19 years",93,85,8,12,61,59,78,84,2,4,39,24,24,21,502,156,0,12,12,13,12,20,196,121,142,110,48,51,352,124,105,102,138,137,21,23,100,70,82,77,75,66,39,44,26,23,22,35,6,12,14,11,1,3]
[null,"20 years",15,25,17,19,15,20,41,38,0,12,13,13,12,13,275,147,0,12,38,28,0,12,33,44,108,72,14,19,192,102,28,40,12,30,15,24,75,47,23,37,22,39,0,12,0,12,28,25,5,12,4,6,9,9]
[null,"21 years",0,12,66,106,18,28,45,58,0,12,5,9,11,16,278,118,0,12,0,12,21,24,7,13,102,68,14,18,235,117,38,66,18,32,30,32,51,45,0,12,104,109,50,58,18,23,0,12,7,11,14,15,9,12]
[null,"22 to 24 years",216,125,23,20,97,59,29,33,69,41,38,39,13,16,943,225,24,22,37,27,106,73,24,24,286,164,29,25,431,139,65,67,0,17,19,16,123,94,39,45,139,80,16,24,22,19,99,78,33,29,50,33,21,19]
[null,"25 to 29 years",81,48,59,53,125,51,223,105,39,24,75,49,74,37,2185,268,48,25,60,26,97,67,111,80,276,155,9,8,310,134,179,144,185,119,25,17,108,57,184,77,218,158,167,86,45,33,33,18,119,61,18,13,57,46]
[null,"30 to 34 years",190,98,99,52,104,57,209,77,56,27,57,22,121,46,1964,238,37,22,90,47,170,92,214,95,178,122,14,11,539,206,120,93,153,104,54,29,96,68,133,64,118,63,103,70,46,34,52,33,166,63,26,15,60,29]
[null,"35 to 39 years",173,85,32,27,166,77,260,99,31,20,73,40,28,19,1879,357,25,17,58,29,105,59,355,186,139,75,20,10,374,120,150,97,123,104,66,34,60,41,165,73,198,78,148,85,20,14,34,22,54,27,106,55,47,25]
[null,"40 to 44 years",226,94,93,46,46,39,253,76,43,24,104,60,101,62,1268,263,80,36,113,53,140,103,391,166,174,103,30,14,461,166,181,95,129,70,41,23,99,67,128,64,353,152,85,64,18,10,133,63,70,30,82,38,32,40]
[null,"45 to 49 years",196,108,101,93,238,74,196,69,30,17,93,44,136,61,1347,226,48,29,96,49,174,88,226,100,161,90,27,23,463,135,164,101,240,125,69,29,31,25,103,63,219,128,151,71,12,13,86,54,84,46,42,18,28,19]
[null,"50 to 54 years",95,55,48,24,80,66,390,118,60,37,70,35,145,64,1371,224,53,26,189,75,161,87,332,127,64,49,30,22,474,136,242,133,198,118,78,55,107,63,126,64,483,241,150,78,145,99,59,36,62,40,60,25,87,37]
[null,"55 to 59 years",173,68,82,44,116,70,267,100,64,29,77,32,101,43,1428,277,67,33,185,60,182,78,230,94,308,132,44,20,491,146,218,103,249,134,102,36,71,48,233,80,310,144,248,113,37,20,81,67,147,61,111,39,55,18]
[null,"60 and 61 years",23,25,17,11,23,23,140,79,23,12,38,27,34,30,739,205,25,21,25,17,133,72,154,87,0,17,17,11,168,71,264,146,245,250,43,29,6,12,49,47,91,98,42,47,25,22,36,29,34,21,58,47,15,18]
[null,"62 to 64 years",98,64,16,13,40,32,143,59,36,18,63,39,52,23,1059,201,33,19,25,18,96,62,231,101,58,50,27,19,301,141,54,71,135,115,46,24,82,43,196,104,231,143,62,56,42,23,76,31,59,37,67,34,39,21]
[null,"65 and 66 years",108,101,15,13,122,81,78,39,36,21,37,30,22,13,395,112,41,25,16,13,71,47,190,84,317,255,23,19,147,71,70,49,101,103,16,19,74,51,87,64,81,50,149,70,27,19,24,21,27,19,29,15,15,12]
[null,"67 to 69 years",23,27,27,23,90,84,191,53,66,45,63,32,32,14,615,136,14,10,98,72,62,33,142,70,111,68,9,7,155,64,84,51,16,26,19,17,115,53,113,48,47,38,101,76,46,22,26,20,65,25,68,31,33,19]
[null,"70 to 74 years",121,71,65,37,70,59,128,51,56,26,64,27,53,24,1110,271,42,34,74,34,193,68,157,58,73,47,29,16,322,124,202,95,163,92,63,28,152,71,46,35,134,73,49,36,108,86,113,82,77,41,26,10,37,14]
[null,"75 to 79 years",22,23,34,22,73,50,91,38,16,9,56,29,35,18,627,155,63,68,23,12,46,45,95,49,112,64,14,11,165,75,52,50,201,91,29,19,154,86,114,75,70,47,43,53,16,14,68,53,27,29,14,8,20,16]
[null,"80 to 84 years",13,17,66,87,11,23,47,32,11,12,25,20,16,11,449,169,15,14,34,16,57,40,52,35,0,17,26,23,104,56,29,32,57,70,14,13,101,60,8,13,81,43,66,46,14,17,24,17,19,16,16,15,7,7]
[null,"85 years and over",3,5,27,23,51,45,75,54,5,5,8,7,17,20,302,87,0,12,12,10,49,40,126,78,0,17,2,3,115,75,23,28,50,66,30,24,60,36,17,19,11,19,12,20,13,19,6,5,10,10,10,9,13,15]
[null,"Female:",2252,156,1103,175,2021,127,4190,187,730,98,1183,164,1287,103,21170,552,744,166,1494,94,2563,142,4882,350,2835,210,353,74,7590,300,3148,243,2846,200,930,122,2442,141,2548,171,3468,257,2187,160,710,127,1113,246,1553,104,1059,175,794,125]
[null,"Under 5 years",112,68,37,25,124,83,322,133,39,26,76,47,55,25,1006,224,34,22,116,61,83,71,155,85,107,108,22,13,200,118,91,76,85,96,38,25,96,62,71,49,237,124,89,77,28,21,40,25,58,43,31,17,69,35]
[null,"5 to 9 years",148,75,53,35,116,96,186,80,38,20,56,29,30,25,924,194,37,24,122,63,224,140,255,92,149,67,11,11,608,205,208,142,28,42,94,44,95,54,141,66,183,121,34,27,20,18,74,48,76,37,90,74,40,25]
[null,"10 to 14 years",105,48,70,49,55,34,257,96,55,33,54,44,48,27,1059,182,52,29,119,56,173,103,160,87,71,66,13,10,310,197,170,93,147,119,18,17,12,19,140,86,296,101,277,162,29,21,119,59,48,31,39,21,23,21]
[null,"15 to 17 years",46,33,22,18,49,38,163,78,25,21,60,40,23,18,647,143,22,17,53,34,144,106,218,117,35,32,8,7,357,142,62,46,195,88,36,21,32,25,113,67,141,59,66,51,31,32,50,34,31,19,67,65,18,11]
[null,"18 and 19 years",168,144,0,12,113,103,116,77,13,19,19,21,23,22,300,131,11,9,19,23,46,51,240,124,278,133,8,9,259,84,149,140,0,17,9,13,240,109,71,73,160,119,0,12,3,7,0,12,31,46,21,17,14,13]
[null,"20 years",82,71,0,12,0,12,13,22,0,12,0,12,7,10,333,121,0,12,9,15,0,12,12,19,100,77,12,16,273,130,0,17,0,17,23,20,137,68,9,15,40,51,22,37,0,12,4,8,37,22,10,9,5,7]
[null,"21 years",0,12,0,12,0,12,13,20,0,12,42,43,14,18,259,143,5,6,8,11,34,35,126,167,234,149,0,12,154,93,35,54,13,33,0,12,138,77,0,12,0,17,24,35,21,26,64,93,17,21,20,19,14,21]
[null,"22 to 24 years",82,94,74,47,45,39,182,116,9,9,36,27,34,28,807,199,12,17,27,24,104,64,32,31,105,75,0,12,214,101,143,191,106,97,14,16,55,59,120,65,118,138,36,39,3,7,5,7,69,51,26,27,9,9]
[null,"25 to 29 years",106,75,68,55,129,65,201,86,43,26,60,50,34,24,1654,267,12,11,36,20,79,48,140,73,96,64,4,6,524,176,274,191,65,88,44,32,51,34,143,93,245,100,138,85,12,12,18,14,167,70,27,13,79,56]
[null,"30 to 34 years",173,78,49,27,90,41,192,73,33,19,66,29,71,34,1675,238,32,18,122,68,190,92,371,151,131,79,15,12,457,122,137,113,107,77,35,22,37,30,119,58,200,86,108,56,35,20,32,24,54,36,69,57,48,30]
[null,"35 to 39 years",177,86,11,11,141,61,270,88,42,26,45,28,101,48,1117,227,30,14,61,34,115,74,322,94,129,74,26,14,346,134,157,89,148,92,46,25,72,40,196,119,220,108,208,101,28,18,52,25,58,32,79,27,34,19]
[null,"40 to 44 years",39,33,101,43,112,81,305,89,35,18,39,20,108,56,1346,202,71,40,114,47,130,84,432,284,158,67,19,16,524,159,159,105,168,88,45,35,46,31,222,125,341,149,63,53,83,89,62,32,73,35,35,18,29,21]
[null,"45 to 49 years",155,88,55,33,146,87,313,116,33,20,88,33,121,64,1149,234,63,45,104,48,226,96,260,98,174,87,37,23,588,182,197,104,133,67,43,24,69,58,73,41,140,92,108,57,15,11,83,45,92,44,83,35,24,20]
[null,"50 to 54 years",153,79,103,51,81,45,348,116,67,35,100,51,127,63,1439,236,137,104,99,40,116,54,326,135,78,43,36,23,432,135,175,96,255,142,64,50,91,58,236,96,373,162,78,52,84,34,114,92,86,50,50,22,95,34]
[null,"55 to 59 years",238,100,32,27,199,105,308,84,80,33,100,32,152,56,1317,208,35,21,145,50,200,89,285,133,179,144,40,18,559,168,427,135,229,129,102,44,124,58,293,101,125,71,135,75,69,27,82,34,128,51,129,46,26,17]
[null,"60 and 61 years",71,62,11,11,62,40,124,57,34,20,46,34,37,25,560,141,9,10,30,22,124,74,103,56,91,67,17,9,188,79,86,76,268,276,30,21,170,79,80,53,109,71,183,117,13,9,41,26,31,18,62,48,24,13]
[null,"62 to 64 years",112,77,59,28,34,33,131,59,19,13,57,39,35,22,1150,240,41,24,66,30,61,37,241,113,127,49,24,15,277,94,135,83,232,129,63,41,49,39,112,67,90,55,111,63,57,28,77,40,60,32,62,46,71,54]
[null,"65 and 66 years",36,32,18,13,32,31,115,51,31,18,16,13,31,15,398,105,19,13,28,15,85,54,108,59,238,261,12,8,126,64,74,39,109,83,22,16,65,40,72,59,103,85,91,65,41,36,26,20,57,36,46,25,36,23]
[null,"67 to 69 years",94,64,67,39,124,64,158,52,29,14,60,24,45,26,732,138,51,40,44,21,68,40,158,71,138,88,11,10,276,113,96,52,114,78,16,13,120,64,38,27,70,58,151,90,18,12,20,14,82,43,33,16,22,15]
[null,"70 to 74 years",50,30,61,40,97,63,200,75,57,19,64,23,97,45,1305,266,35,23,81,67,213,85,281,117,136,88,25,14,370,102,198,105,358,142,59,26,166,76,168,102,102,59,80,71,63,32,50,27,78,36,35,14,22,17]
[null,"75 to 79 years",24,24,78,43,83,45,135,84,36,23,60,41,28,21,624,138,32,21,59,27,87,51,456,247,81,58,3,4,202,91,58,48,59,81,75,41,284,126,43,32,79,59,86,48,40,33,92,76,97,47,22,14,63,29]
[null,"80 to 84 years",9,13,97,114,18,24,35,29,6,6,22,16,47,25,519,180,4,5,22,12,35,22,108,82,0,17,10,14,237,134,64,50,0,17,21,16,82,54,33,24,72,56,36,38,15,11,8,12,44,31,6,6,13,19]
[null,"85 years and over",72,60,37,32,171,59,103,45,6,6,17,14,19,14,850,197,0,12,10,11,26,22,93,64,0,17,0,12,109,76,53,54,27,32,33,21,211,95,55,39,24,33,63,76,2,4,0,12,79,54,17,11,16,22]
[]
[]
[]
[]
[]
[]
[]
[]
[]
[]
[]
[]
[]
[null,"Calculated B01001. GENDER BY AGE"]
[null,"Universe:  TOTAL POPULATION"]
[null,"Data Set: 2018-2022 American Community Survey 5-Year Estimates"]
[]
[null,null,"Allenstown",null,"Andover",null,"Boscawen",null,"Bow",null,"Bradford",null,"Canterbury",null,"Chichester",null,"Concord",null,"Danbury",null,"Dunbarton",null,"Epsom",null,"Franklin",null,"Henniker",null,"Hill",null,"Hooksett",null,"Hopkinton",null,"Loudon",null,"Newbury",null,"New London",null,"Northfield",null,"Pembroke",null,"Pittsfield",null,"Salisbury",null,"Sutton",null,"Warner",null,"Webster",null,"Wilmot"]
[null,null,"Estimate","Margin Of Error","Estimate","Margin Of Error","Estimate","Margin Of Error","Estimate","Margin Of Error","Estimate","Margin Of Error","Estimate","Margin Of Error","Estimate","Margin Of Error","Estimate","Margin Of Error","Estimate","Margin Of Error","Estimate","Margin Of Error","Estimate","Margin Of Error","Estimate","Margin Of Error","Estimate","Margin Of Error","Estimate","Margin Of Error","Estimate","Margin Of Error","Estimate","Margin Of Error","Estimate","Margin Of Error","Estimate","Margin Of Error","Estimate","Margin Of Error","Estimate","Margin Of Error","Estimate","Margin Of Error","Estimate","Margin Of Error","Estimate","Margin Of Error","Estimate","Margin Of Error","Estimate","Margin Of Error","Estimate","Margin Of Error","Estimate","Margin Of Error"]
[null,"Total",{"$f":"C7","v":4697},20,2151,307,3992,38,8235,19,1565,172,2316,242,2691,27,44049,56,1491,261,3000,55,4846,26,{"$f":"Y7","v":8746},19,6094,15,839,182,14699,26,5925,20,5608,21,1911,255,4389,29,{"$f":"AO7","v":4892},24,7299,36,4093,17,1594,365,2254,451,2920,28,2120,317,1502,{"$f":"BD7","v":217}]
[null,"Under 15 yrs.",{"$f":"C9+C10+C11+C33+C34+C35","v":775},{"$f":"SQRT((D9^2)+(D10^2)+(D11^2)+(D33^2)+(D34^2)+(D35^2))","v":167.90175698902021},{"$f":"E9+E10+E11+E33+E34+E35","v":273},{"$f":"SQRT((F9^2)+(F10^2)+(F11^2)+(F33^2)+(F34^2)+(F35^2))","v":91.082380293885606},{"$f":"G9+G10+G11+G33+G34+G35","v":603},{"$f":"SQRT((H9^2)+(H10^2)+(H11^2)+(H33^2)+(H34^2)+(H35^2))","v":168.5170614507623},{"$f":"I9+I10+I11+I33+I34+I35","v":1706},{"$f":"SQRT((J9^2)+(J10^2)+(J11^2)+(J33^2)+(J34^2)+(J35^2))","v":259.74217986303262},{"$f":"K9+K10+K11+K33+K34+K35","v":272},{"$f":"SQRT((L9^2)+(L10^2)+(L11^2)+(L33^2)+(L34^2)+(L35^2))","v":66.595795663089717},{"$f":"M9+M10+M11+M33+M34+M35","v":278},{"$f":"SQRT((N9^2)+(N10^2)+(N11^2)+(N33^2)+(N34^2)+(N35^2))","v":82.462112512353215},{"$f":"O9+O10+O11+O33+O34+O35","v":437},{"$f":"SQRT((P9^2)+(P10^2)+(P11^2)+(P33^2)+(P34^2)+(P35^2))","v":100.68266980965493},{"$f":"Q9+Q10+Q11+Q33+Q34+Q35","v":6361},{"$f":"SQRT((R9^2)+(R10^2)+(R11^2)+(R33^2)+(R34^2)+(R35^2))","v":516.18601298369174},{"$f":"S9+S10+S11+S33+S34+S35","v":238},{"$f":"SQRT((T9^2)+(T10^2)+(T11^2)+(T33^2)+(T34^2)+(T35^2))","v":61.465437442517235},{"$f":"U9+U10+U11+U33+U34+U35","v":640},{"$f":"SQRT((V9^2)+(V10^2)+(V11^2)+(V33^2)+(V34^2)+(V35^2))","v":132.1060180309739},{"$f":"W9+W10+W11+W33+W34+W35","v":844},{"$f":"SQRT((X9^2)+(X10^2)+(X11^2)+(X33^2)+(X34^2)+(X35^2))","v":226.41554716935849},{"$f":"Y9+Y10+Y11+Y33+Y34+Y35","v":1069},{"$f":"SQRT((Z9^2)+(Z10^2)+(Z11^2)+(Z33^2)+(Z34^2)+(Z35^2))","v":220.59918404200863},{"$f":"AA9+AA10+AA11+AA33+AA34+AA35","v":885},{"$f":"SQRT((AB9^2)+(AB10^2)+(AB11^2)+(AB33^2)+(AB34^2)+(AB35^2))","v":235.60984699286234},{"$f":"AC9+AC10+AC11+AC33+AC34+AC35","v":92},{"$f":"SQRT((AD9^2)+(AD10^2)+(AD11^2)+(AD33^2)+(AD34^2)+(AD35^2))","v":28.354893757515651},{"$f":"AE9+AE10+AE11+AE33+AE34+AE35","v":2149},{"$f":"SQRT((AF9^2)+(AF10^2)+(AF11^2)+(AF33^2)+(AF34^2)+(AF35^2))","v":411.69891911444216},{"$f":"AG9+AG10+AG11+AG33+AG34+AG35","v":910},{"$f":"SQRT((AH9^2)+(AH10^2)+(AH11^2)+(AH33^2)+(AH34^2)+(AH35^2))","v":266.36816626616627},{"$f":"AI9+AI10+AI11+AI33+AI34+AI35","v":531},{"$f":"SQRT((AJ9^2)+(AJ10^2)+(AJ11^2)+(AJ33^2)+(AJ34^2)+(AJ35^2))","v":207.43673734418405},{"$f":"AK9+AK10+AK11+AK33+AK34+AK35","v":318},{"$f":"SQRT((AL9^2)+(AL10^2)+(AL11^2)+(AL33^2)+(AL34^2)+(AL35^2))","v":77.820305833374874},{"$f":"AM9+AM10+AM11+AM33+AM34+AM35","v":456},{"$f":"SQRT((AN9^2)+(AN10^2)+(AN11^2)+(AN33^2)+(AN34^2)+(AN35^2))","v":133.69367973094316},{"$f":"AO9+AO10+AO11+AO33+AO34+AO35","v":721},{"$f":"SQRT((AP9^2)+(AP10^2)+(AP11^2)+(AP33^2)+(AP34^2)+(AP35^2))","v":216.36543161974836},{"$f":"AQ9+AQ10+AQ11+AQ33+AQ34+AQ35","v":1403},{"$f":"SQRT((AR9^2)+(AR10^2)+(AR11^2)+(AR33^2)+(AR34^2)+(AR35^2))","v":270.37751385793899},{"$f":"AS9+AS10+AS11+AS33+AS34+AS35","v":565},{"$f":"SQRT((AT9^2)+(AT10^2)+(AT11^2)+(AT33^2)+(AT34^2)+(AT35^2))","v":200.63399512545226},{"$f":"AU9+AU10+AU11+AU33+AU34+AU35","v":262},{"$f":"SQRT((AV9^2)+(AV10^2)+(AV11^2)+(AV33^2)+(AV34^2)+(AV35^2))","v":165.09996971532127},{"$f":"AW9+AW10+AW11+AW33+AW34+AW35","v":348},{"$f":"SQRT((AX9^2)+(AX10^2)+(AX11^2)+(AX33^2)+(AX34^2)+(AX35^2))","v":93.504010609171203},{"$f":"AY9+AY10+AY11+AY33+AY34+AY35","v":377},{"$f":"SQRT((AZ9^2)+(AZ10^2)+(AZ11^2)+(AZ33^2)+(AZ34^2)+(AZ35^2))","v":94.132884795909661},{"$f":"BA9+BA10+BA11+BA33+BA34+BA35","v":371},{"$f":"SQRT((BB9^2)+(BB10^2)+(BB11^2)+(BB33^2)+(BB34^2)+(BB35^2))","v":172.54564613458086},{"$f":"BC9+BC10+BC11+BC33+BC34+BC35","v":252},{"$f":"SQRT((BD9^2)+(BD10^2)+(BD11^2)+(BD33^2)+(BD34^2)+(BD35^2))","v":66.858058601787121}]
[null,"15 to 24 yrs.",{"$f":"C12+C13+C14+C15+C16+C36+C37+C38+C39+C40","v":868},{"$f":"SQRT((D12^2)+(D13^2)+(D14^2)+(D15^2)+(D16^2)+(D36^2)+(D37^2)+(D38^2)+(D39^2)+(D40^2))","v":256.02538936597676},{"$f":"E12+E13+E14+E15+E16+E36+E37+E38+E39+E40","v":250},{"$f":"SQRT((F12^2)+(F13^2)+(F14^2)+(F15^2)+(F16^2)+(F36^2)+(F37^2)+(F38^2)+(F39^2)+(F40^2))","v":125.83719640869309},{"$f":"G12+G13+G14+G15+G16+G36+G37+G38+G39+G40","v":515},{"$f":"SQRT((H12^2)+(H13^2)+(H14^2)+(H15^2)+(H16^2)+(H36^2)+(H37^2)+(H38^2)+(H39^2)+(H40^2))","v":168.07438829280326},{"$f":"I12+I13+I14+I15+I16+I36+I37+I38+I39+I40","v":900},{"$f":"SQRT((J12^2)+(J13^2)+(J14^2)+(J15^2)+(J16^2)+(J36^2)+(J37^2)+(J38^2)+(J39^2)+(J40^2))","v":226.72891302169646},{"$f":"K12+K13+K14+K15+K16+K36+K37+K38+K39+K40","v":170},{"$f":"SQRT((L12^2)+(L13^2)+(L14^2)+(L15^2)+(L16^2)+(L36^2)+(L37^2)+(L38^2)+(L39^2)+(L40^2))","v":63.221831672294975},{"$f":"M12+M13+M14+M15+M16+M36+M37+M38+M39+M40","v":295},{"$f":"SQRT((N12^2)+(N13^2)+(N14^2)+(N15^2)+(N16^2)+(N36^2)+(N37^2)+(N38^2)+(N39^2)+(N40^2))","v":89.838744425776568},{"$f":"O12+O13+O14+O15+O16+O36+O37+O38+O39+O40","v":234},{"$f":"SQRT((P12^2)+(P13^2)+(P14^2)+(P15^2)+(P16^2)+(P36^2)+(P37^2)+(P38^2)+(P39^2)+(P40^2))","v":76.432977176085458},{"$f":"Q12+Q13+Q14+Q15+Q16+Q36+Q37+Q38+Q39+Q40","v":5115},{"$f":"SQRT((R12^2)+(R13^2)+(R14^2)+(R15^2)+(R16^2)+(R36^2)+(R37^2)+(R38^2)+(R39^2)+(R40^2))","v":499.69090445994709},{"$f":"S12+S13+S14+S15+S16+S36+S37+S38+S39+S40","v":91},{"$f":"SQRT((T12^2)+(T13^2)+(T14^2)+(T15^2)+(T16^2)+(T36^2)+(T37^2)+(T38^2)+(T39^2)+(T40^2))","v":44.844174649557324},{"$f":"U12+U13+U14+U15+U16+U36+U37+U38+U39+U40","v":241},{"$f":"SQRT((V12^2)+(V13^2)+(V14^2)+(V15^2)+(V16^2)+(V36^2)+(V37^2)+(V38^2)+(V39^2)+(V40^2))","v":70.774289116881988},{"$f":"W12+W13+W14+W15+W16+W36+W37+W38+W39+W40","v":511},{"$f":"SQRT((X12^2)+(X13^2)+(X14^2)+(X15^2)+(X16^2)+(X36^2)+(X37^2)+(X38^2)+(X39^2)+(X40^2))","v":163.82917933017916},{"$f":"Y12+Y13+Y14+Y15+Y16+Y36+Y37+Y38+Y39+Y40","v":987},{"$f":"SQRT((Z12^2)+(Z13^2)+(Z14^2)+(Z15^2)+(Z16^2)+(Z36^2)+(Z37^2)+(Z38^2)+(Z39^2)+(Z40^2))","v":283.97006884529219},{"$f":"AA12+AA13+AA14+AA15+AA16+AA36+AA37+AA38+AA39+AA40","v":1482},{"$f":"SQRT((AB12^2)+(AB13^2)+(AB14^2)+(AB15^2)+(AB16^2)+(AB36^2)+(AB37^2)+(AB38^2)+(AB39^2)+(AB40^2))","v":327.18190659020252},{"$f":"AC12+AC13+AC14+AC15+AC16+AC36+AC37+AC38+AC39+AC40","v":147},{"$f":"SQRT((AD12^2)+(AD13^2)+(AD14^2)+(AD15^2)+(AD16^2)+(AD36^2)+(AD37^2)+(AD38^2)+(AD39^2)+(AD40^2))","v":68.447059834590405},{"$f":"AE12+AE13+AE14+AE15+AE16+AE36+AE37+AE38+AE39+AE40","v":2746},{"$f":"SQRT((AF12^2)+(AF13^2)+(AF14^2)+(AF15^2)+(AF16^2)+(AF36^2)+(AF37^2)+(AF38^2)+(AF39^2)+(AF40^2))","v":374.50767682385361},{"$f":"AG12+AG13+AG14+AG15+AG16+AG36+AG37+AG38+AG39+AG40","v":693},{"$f":"SQRT((AH12^2)+(AH13^2)+(AH14^2)+(AH15^2)+(AH16^2)+(AH36^2)+(AH37^2)+(AH38^2)+(AH39^2)+(AH40^2))","v":294.2906726350667},{"$f":"AI12+AI13+AI14+AI15+AI16+AI36+AI37+AI38+AI39+AI40","v":560},{"$f":"SQRT((AJ12^2)+(AJ13^2)+(AJ14^2)+(AJ15^2)+(AJ16^2)+(AJ36^2)+(AJ37^2)+(AJ38^2)+(AJ39^2)+(AJ40^2))","v":210.77476129745705},{"$f":"AK12+AK13+AK14+AK15+AK16+AK36+AK37+AK38+AK39+AK40","v":200},{"$f":"SQRT((AL12^2)+(AL13^2)+(AL14^2)+(AL15^2)+(AL16^2)+(AL36^2)+(AL37^2)+(AL38^2)+(AL39^2)+(AL40^2))","v":66.483080554378645},{"$f":"AM12+AM13+AM14+AM15+AM16+AM36+AM37+AM38+AM39+AM40","v":980},{"$f":"SQRT((AN12^2)+(AN13^2)+(AN14^2)+(AN15^2)+(AN16^2)+(AN36^2)+(AN37^2)+(AN38^2)+(AN39^2)+(AN40^2))","v":213.09622239730106},{"$f":"AO12+AO13+AO14+AO15+AO16+AO36+AO37+AO38+AO39+AO40","v":586},{"$f":"SQRT((AP12^2)+(AP13^2)+(AP14^2)+(AP15^2)+(AP16^2)+(AP36^2)+(AP37^2)+(AP38^2)+(AP39^2)+(AP40^2))","v":175.40809559424559},{"$f":"AQ12+AQ13+AQ14+AQ15+AQ16+AQ36+AQ37+AQ38+AQ39+AQ40","v":958},{"$f":"SQRT((AR12^2)+(AR13^2)+(AR14^2)+(AR15^2)+(AR16^2)+(AR36^2)+(AR37^2)+(AR38^2)+(AR39^2)+(AR40^2))","v":273.42092092595988},{"$f":"AS12+AS13+AS14+AS15+AS16+AS36+AS37+AS38+AS39+AS40","v":313},{"$f":"SQRT((AT12^2)+(AT13^2)+(AT14^2)+(AT15^2)+(AT16^2)+(AT36^2)+(AT37^2)+(AT38^2)+(AT39^2)+(AT40^2))","v":126.11502686040232},{"$f":"AU12+AU13+AU14+AU15+AU16+AU36+AU37+AU38+AU39+AU40","v":143},{"$f":"SQRT((AV12^2)+(AV13^2)+(AV14^2)+(AV15^2)+(AV16^2)+(AV36^2)+(AV37^2)+(AV38^2)+(AV39^2)+(AV40^2))","v":61.326992425847855},{"$f":"AW12+AW13+AW14+AW15+AW16+AW36+AW37+AW38+AW39+AW40","v":298},{"$f":"SQRT((AX12^2)+(AX13^2)+(AX14^2)+(AX15^2)+(AX16^2)+(AX36^2)+(AX37^2)+(AX38^2)+(AX39^2)+(AX40^2))","v":135.88230201170424},{"$f":"AY12+AY13+AY14+AY15+AY16+AY36+AY37+AY38+AY39+AY40","v":337},{"$f":"SQRT((AZ12^2)+(AZ13^2)+(AZ14^2)+(AZ15^2)+(AZ16^2)+(AZ36^2)+(AZ37^2)+(AZ38^2)+(AZ39^2)+(AZ40^2))","v":99.784768376741752},{"$f":"BA12+BA13+BA14+BA15+BA16+BA36+BA37+BA38+BA39+BA40","v":261},{"$f":"SQRT((BB12^2)+(BB13^2)+(BB14^2)+(BB15^2)+(BB16^2)+(BB36^2)+(BB37^2)+(BB38^2)+(BB39^2)+(BB40^2))","v":86.284413424441851},{"$f":"BC12+BC13+BC14+BC15+BC16+BC36+BC37+BC38+BC39+BC40","v":103},{"$f":"SQRT((BD12^2)+(BD13^2)+(BD14^2)+(BD15^2)+(BD16^2)+(BD36^2)+(BD37^2)+(BD38^2)+(BD39^2)+(BD40^2))","v":38.483762809787713}]
[null,"25 to 34 yrs.",{"$f":"C17+C18+C41+C42","v":550},{"$f":"SQRT((D17^2)+(D18^2)+(D41^2)+(D42^2))","v":153.67823528398549},{"$f":"E17+E18+E41+E42","v":275},{"$f":"SQRT((F17^2)+(F18^2)+(F41^2)+(F42^2))","v":96.265258530790845},{"$f":"G17+G18+G41+G42","v":448},{"$f":"SQRT((H17^2)+(H18^2)+(H41^2)+(H42^2))","v":108.4250893474384},{"$f":"I17+I18+I41+I42","v":825},{"$f":"SQRT((J17^2)+(J18^2)+(J41^2)+(J42^2))","v":172.27594144279112},{"$f":"K17+K18+K41+K42","v":171},{"$f":"SQRT((L17^2)+(L18^2)+(L41^2)+(L42^2))","v":48.394214530251446},{"$f":"M17+M18+M41+M42","v":258},{"$f":"SQRT((N17^2)+(N18^2)+(N41^2)+(N42^2))","v":78.90500617831546},{"$f":"O17+O18+O41+O42","v":300},{"$f":"SQRT((P17^2)+(P18^2)+(P41^2)+(P42^2))","v":72.22880311897741},{"$f":"Q17+Q18+Q41+Q42","v":7478},{"$f":"SQRT((R17^2)+(R18^2)+(R41^2)+(R42^2))","v":506.36054348655563},{"$f":"S17+S18+S41+S42","v":129},{"$f":"SQRT((T17^2)+(T18^2)+(T41^2)+(T42^2))","v":39.42080668885405},{"$f":"U17+U18+U41+U42","v":308},{"$f":"SQRT((V17^2)+(V18^2)+(V41^2)+(V42^2))","v":88.932558717266204},{"$f":"W17+W18+W41+W42","v":536},{"$f":"SQRT((X17^2)+(X18^2)+(X41^2)+(X42^2))","v":154.01623291069029},{"$f":"Y17+Y18+Y41+Y42","v":836},{"$f":"SQRT((Z17^2)+(Z18^2)+(Z41^2)+(Z42^2))","v":208.69834690289235},{"$f":"AA17+AA18+AA41+AA42","v":681},{"$f":"SQRT((AB17^2)+(AB18^2)+(AB41^2)+(AB42^2))","v":221.91439791054569},{"$f":"AC17+AC18+AC41+AC42","v":42},{"$f":"SQRT((AD17^2)+(AD18^2)+(AD41^2)+(AD42^2))","v":19.104973174542799},{"$f":"AE17+AE18+AE41+AE42","v":1830},{"$f":"SQRT((AF17^2)+(AF18^2)+(AF41^2)+(AF42^2))","v":325.963188105651},{"$f":"AG17+AG18+AG41+AG42","v":710},{"$f":"SQRT((AH17^2)+(AH18^2)+(AH41^2)+(AH42^2))","v":280.41932886304397},{"$f":"AI17+AI18+AI41+AI42","v":510},{"$f":"SQRT((AJ17^2)+(AJ18^2)+(AJ41^2)+(AJ42^2))","v":196.59603251337501},{"$f":"AK17+AK18+AK41+AK42","v":158},{"$f":"SQRT((AL17^2)+(AL18^2)+(AL41^2)+(AL42^2))","v":51.361464153585032},{"$f":"AM17+AM18+AM41+AM42","v":292},{"$f":"SQRT((AN17^2)+(AN18^2)+(AN41^2)+(AN42^2))","v":99.644367628080218},{"$f":"AO17+AO18+AO41+AO42","v":579},{"$f":"SQRT((AP17^2)+(AP18^2)+(AP41^2)+(AP42^2))","v":148.45201244846766},{"$f":"AQ17+AQ18+AQ41+AQ42","v":781},{"$f":"SQRT((AR17^2)+(AR18^2)+(AR41^2)+(AR42^2))","v":215.24172457959912},{"$f":"AS17+AS18+AS41+AS42","v":516},{"$f":"SQRT((AT17^2)+(AT18^2)+(AT41^2)+(AT42^2))","v":150.52242357868147},{"$f":"AU17+AU18+AU41+AU42","v":138},{"$f":"SQRT((AV17^2)+(AV18^2)+(AV41^2)+(AV42^2))","v":52.810983706043572},{"$f":"AW17+AW18+AW41+AW42","v":135},{"$f":"SQRT((AX17^2)+(AX18^2)+(AX41^2)+(AX42^2))","v":46.743983570080971},{"$f":"AY17+AY18+AY41+AY42","v":506},{"$f":"SQRT((AZ17^2)+(AZ18^2)+(AZ41^2)+(AZ42^2))","v":117.83887304281215},{"$f":"BA17+BA18+BA41+BA42","v":140},{"$f":"SQRT((BB17^2)+(BB18^2)+(BB41^2)+(BB42^2))","v":61.741396161732524},{"$f":"BC17+BC18+BC41+BC42","v":244},{"$f":"SQRT((BD17^2)+(BD18^2)+(BD41^2)+(BD42^2))","v":83.624159188598128}]
[null,"35 to 44 yrs.",{"$f":"C19+C20+C43+C44","v":615},{"$f":"SQRT((D19^2)+(D20^2)+(D43^2)+(D44^2))","v":156.67163112701672},{"$f":"E19+E20+E43+E44","v":237},{"$f":"SQRT((F19^2)+(F20^2)+(F43^2)+(F44^2))","v":69.390201037322271},{"$f":"G19+G20+G43+G44","v":465},{"$f":"SQRT((H19^2)+(H20^2)+(H43^2)+(H44^2))","v":133.16155601373845},{"$f":"I19+I20+I43+I44","v":1088},{"$f":"SQRT((J19^2)+(J20^2)+(J43^2)+(J44^2))","v":176.75406643129884},{"$f":"K19+K20+K43+K44","v":151},{"$f":"SQRT((L19^2)+(L20^2)+(L43^2)+(L44^2))","v":44.45222154178574},{"$f":"M19+M20+M43+M44","v":261},{"$f":"SQRT((N19^2)+(N20^2)+(N43^2)+(N44^2))","v":79.899937421752711},{"$f":"O19+O20+O43+O44","v":338},{"$f":"SQRT((P19^2)+(P20^2)+(P43^2)+(P44^2))","v":98.208960894614904},{"$f":"Q19+Q20+Q43+Q44","v":5610},{"$f":"SQRT((R19^2)+(R20^2)+(R43^2)+(R44^2))","v":537.54162629511768},{"$f":"S19+S20+S43+S44","v":206},{"$f":"SQRT((T19^2)+(T20^2)+(T43^2)+(T44^2))","v":58.146367040426526},{"$f":"U19+U20+U43+U44","v":346},{"$f":"SQRT((V19^2)+(V20^2)+(V43^2)+(V44^2))","v":83.755596827913536},{"$f":"W19+W20+W43+W44","v":490},{"$f":"SQRT((X19^2)+(X20^2)+(X43^2)+(X44^2))","v":163.16249569064578},{"$f":"Y19+Y20+Y43+Y44","v":1500},{"$f":"SQRT((Z19^2)+(Z20^2)+(Z43^2)+(Z44^2))","v":389.41494578405695},{"$f":"AA19+AA20+AA43+AA44","v":600},{"$f":"SQRT((AB19^2)+(AB20^2)+(AB43^2)+(AB44^2))","v":161.86105152259452},{"$f":"AC19+AC20+AC43+AC44","v":95},{"$f":"SQRT((AD19^2)+(AD20^2)+(AD43^2)+(AD44^2))","v":27.349588662354687},{"$f":"AE19+AE20+AE43+AE44","v":1705},{"$f":"SQRT((AF19^2)+(AF20^2)+(AF43^2)+(AF44^2))","v":291.87839933780646},{"$f":"AG19+AG20+AG43+AG44","v":647},{"$f":"SQRT((AH19^2)+(AH20^2)+(AH43^2)+(AH44^2))","v":193.33908037435162},{"$f":"AI19+AI20+AI43+AI44","v":568},{"$f":"SQRT((AJ19^2)+(AJ20^2)+(AJ43^2)+(AJ44^2))","v":178.6728854639114},{"$f":"AK19+AK20+AK43+AK44","v":198},{"$f":"SQRT((AL19^2)+(AL20^2)+(AL43^2)+(AL44^2))","v":59.455865984778995},{"$f":"AM19+AM20+AM43+AM44","v":277},{"$f":"SQRT((AN19^2)+(AN20^2)+(AN43^2)+(AN44^2))","v":93.439820205306475},{"$f":"AO19+AO20+AO43+AO44","v":711},{"$f":"SQRT((AP19^2)+(AP20^2)+(AP43^2)+(AP44^2))","v":198.0176759786863},{"$f":"AQ19+AQ20+AQ43+AQ44","v":1112},{"$f":"SQRT((AR19^2)+(AR20^2)+(AR43^2)+(AR44^2))","v":251.10356429170812},{"$f":"AS19+AS20+AS43+AS44","v":504},{"$f":"SQRT((AT19^2)+(AT20^2)+(AT43^2)+(AT44^2))","v":155.98397353574501},{"$f":"AU19+AU20+AU43+AU44","v":149},{"$f":"SQRT((AV19^2)+(AV20^2)+(AV43^2)+(AV44^2))","v":92.417530804496181},{"$f":"AW19+AW20+AW43+AW44","v":281},{"$f":"SQRT((AX19^2)+(AX20^2)+(AX43^2)+(AX44^2))","v":78.115299397749226},{"$f":"AY19+AY20+AY43+AY44","v":255},{"$f":"SQRT((AZ19^2)+(AZ20^2)+(AZ43^2)+(AZ44^2))","v":62.273589907761057},{"$f":"BA19+BA20+BA43+BA44","v":302},{"$f":"SQRT((BB19^2)+(BB20^2)+(BB43^2)+(BB44^2))","v":74.310160812637193},{"$f":"BC19+BC20+BC43+BC44","v":142},{"$f":"SQRT((BD19^2)+(BD20^2)+(BD43^2)+(BD44^2))","v":55.018178813915675}]
[null,"45 to 54 yrs.",{"$f":"C21+C22+C45+C46","v":599},{"$f":"SQRT((D21^2)+(D22^2)+(D45^2)+(D46^2))","v":169.33398950004101},{"$f":"E21+E22+E45+E46","v":307},{"$f":"SQRT((F21^2)+(F22^2)+(F45^2)+(F46^2))","v":113.64418154925487},{"$f":"G21+G22+G45+G46","v":545},{"$f":"SQRT((H21^2)+(H22^2)+(H45^2)+(H46^2))","v":139.37718608151047},{"$f":"I21+I22+I45+I46","v":1247},{"$f":"SQRT((J21^2)+(J22^2)+(J45^2)+(J46^2))","v":213.53454053150278},{"$f":"K21+K22+K45+K46","v":190},{"$f":"SQRT((L21^2)+(L22^2)+(L45^2)+(L46^2))","v":57.297469403107151},{"$f":"M21+M22+M45+M46","v":351},{"$f":"SQRT((N21^2)+(N22^2)+(N45^2)+(N46^2))","v":82.770767786701114},{"$f":"O21+O22+O45+O46","v":529},{"$f":"SQRT((P21^2)+(P22^2)+(P45^2)+(P46^2))","v":126.02380727465743},{"$f":"Q21+Q22+Q45+Q46","v":5306},{"$f":"SQRT((R21^2)+(R22^2)+(R45^2)+(R46^2))","v":460.11302959164283},{"$f":"S21+S22+S45+S46","v":301},{"$f":"SQRT((T21^2)+(T22^2)+(T45^2)+(T46^2))","v":119.82487220940401},{"$f":"U21+U22+U45+U46","v":488},{"$f":"SQRT((V21^2)+(V22^2)+(V45^2)+(V46^2))","v":109.22453936730518},{"$f":"W21+W22+W45+W46","v":677},{"$f":"SQRT((X21^2)+(X22^2)+(X45^2)+(X46^2))","v":165.66532527961306},{"$f":"Y21+Y22+Y45+Y46","v":1144},{"$f":"SQRT((Z21^2)+(Z22^2)+(Z45^2)+(Z46^2))","v":232.2886135823278},{"$f":"AA21+AA22+AA45+AA46","v":477},{"$f":"SQRT((AB21^2)+(AB22^2)+(AB45^2)+(AB46^2))","v":141.13468744429912},{"$f":"AC21+AC22+AC45+AC46","v":130},{"$f":"SQRT((AD21^2)+(AD22^2)+(AD45^2)+(AD46^2))","v":45.508241011931013},{"$f":"AE21+AE22+AE45+AE46","v":1957},{"$f":"SQRT((AF21^2)+(AF22^2)+(AF45^2)+(AF46^2))","v":296.76590100616346},{"$f":"AG21+AG22+AG45+AG46","v":778},{"$f":"SQRT((AH21^2)+(AH22^2)+(AH45^2)+(AH46^2))","v":218.91094079556646},{"$f":"AI21+AI22+AI45+AI46","v":826},{"$f":"SQRT((AJ21^2)+(AJ22^2)+(AJ45^2)+(AJ46^2))","v":232.81322986462774},{"$f":"AK21+AK22+AK45+AK46","v":254},{"$f":"SQRT((AL21^2)+(AL22^2)+(AL45^2)+(AL46^2))","v":83.318665375772795},{"$f":"AM21+AM22+AM45+AM46","v":298},{"$f":"SQRT((AN21^2)+(AN22^2)+(AN45^2)+(AN46^2))","v":106.40488710580919},{"$f":"AO21+AO22+AO45+AO46","v":538},{"$f":"SQRT((AP21^2)+(AP22^2)+(AP45^2)+(AP46^2))","v":137.70257804413103},{"$f":"AQ21+AQ22+AQ45+AQ46","v":1215},{"$f":"SQRT((AR21^2)+(AR22^2)+(AR45^2)+(AR46^2))","v":330.41337745315337},{"$f":"AS21+AS22+AS45+AS46","v":487},{"$f":"SQRT((AT21^2)+(AT22^2)+(AT45^2)+(AT46^2))","v":130.68282213053098},{"$f":"AU21+AU22+AU45+AU46","v":256},{"$f":"SQRT((AV21^2)+(AV22^2)+(AV45^2)+(AV46^2))","v":106.05187409942363},{"$f":"AW21+AW22+AW45+AW46","v":342},{"$f":"SQRT((AX21^2)+(AX22^2)+(AX45^2)+(AX46^2))","v":121.24768039018313},{"$f":"AY21+AY22+AY45+AY46","v":324},{"$f":"SQRT((AZ21^2)+(AZ22^2)+(AZ45^2)+(AZ46^2))","v":90.288426722365699},{"$f":"BA21+BA22+BA45+BA46","v":235},{"$f":"SQRT((BB21^2)+(BB22^2)+(BB45^2)+(BB46^2))","v":51.555795018600968},{"$f":"BC21+BC22+BC45+BC46","v":234},{"$f":"SQRT((BD21^2)+(BD22^2)+(BD45^2)+(BD46^2))","v":57.323642591866054}]
[null,"55 to 64 yrs.",{"$f":"C23+C24+C25+C47+C48+C49","v":715},{"$f":"SQRT((D23^2)+(D24^2)+(D25^2)+(D47^2)+(D48^2)+(D49^2))","v":170.63997187060247},{"$f":"E23+E24+E25+E47+E48+E49","v":217},{"$f":"SQRT((F23^2)+(F24^2)+(F25^2)+(F47^2)+(F48^2)+(F49^2))","v":62.128898268036266},{"$f":"G23+G24+G25+G47+G48+G49","v":474},{"$f":"SQRT((H23^2)+(H24^2)+(H25^2)+(H47^2)+(H48^2)+(H49^2))","v":142.01056298740596},{"$f":"I23+I24+I25+I47+I48+I49","v":1113},{"$f":"SQRT((J23^2)+(J24^2)+(J25^2)+(J47^2)+(J48^2)+(J49^2))","v":183.05190520723897},{"$f":"K23+K24+K25+K47+K48+K49","v":256},{"$f":"SQRT((L23^2)+(L24^2)+(L25^2)+(L47^2)+(L48^2)+(L49^2))","v":54.470175325585288},{"$f":"M23+M24+M25+M47+M48+M49","v":381},{"$f":"SQRT((N23^2)+(N24^2)+(N25^2)+(N47^2)+(N48^2)+(N49^2))","v":83.516465442450325},{"$f":"O23+O24+O25+O47+O48+O49","v":411},{"$f":"SQRT((P23^2)+(P24^2)+(P25^2)+(P47^2)+(P48^2)+(P49^2))","v":86.73522929006414},{"$f":"Q23+Q24+Q25+Q47+Q48+Q49","v":6253},{"$f":"SQRT((R23^2)+(R24^2)+(R25^2)+(R47^2)+(R48^2)+(R49^2))","v":529.05576265645198},{"$f":"S23+S24+S25+S47+S48+S49","v":210},{"$f":"SQRT((T23^2)+(T24^2)+(T25^2)+(T47^2)+(T48^2)+(T49^2))","v":54.845236803208351},{"$f":"U23+U24+U25+U47+U48+U49","v":476},{"$f":"SQRT((V23^2)+(V24^2)+(V25^2)+(V47^2)+(V48^2)+(V49^2))","v":89.983331789837607},{"$f":"W23+W24+W25+W47+W48+W49","v":796},{"$f":"SQRT((X23^2)+(X24^2)+(X25^2)+(X47^2)+(X48^2)+(X49^2))","v":172.85253830939249},{"$f":"Y23+Y24+Y25+Y47+Y48+Y49","v":1244},{"$f":"SQRT((Z23^2)+(Z24^2)+(Z25^2)+(Z47^2)+(Z48^2)+(Z49^2))","v":245.35688292770595},{"$f":"AA23+AA24+AA25+AA47+AA48+AA49","v":763},{"$f":"SQRT((AB23^2)+(AB24^2)+(AB25^2)+(AB47^2)+(AB48^2)+(AB49^2))","v":218.72128382944354},{"$f":"AC23+AC24+AC25+AC47+AC48+AC49","v":169},{"$f":"SQRT((AD23^2)+(AD24^2)+(AD25^2)+(AD47^2)+(AD48^2)+(AD49^2))","v":38.884444190447162},{"$f":"AE23+AE24+AE25+AE47+AE48+AE49","v":1984},{"$f":"SQRT((AF23^2)+(AF24^2)+(AF25^2)+(AF47^2)+(AF48^2)+(AF49^2))","v":299.23068024519142},{"$f":"AG23+AG24+AG25+AG47+AG48+AG49","v":1184},{"$f":"SQRT((AH23^2)+(AH24^2)+(AH25^2)+(AH47^2)+(AH48^2)+(AH49^2))","v":260.49184248263896},{"$f":"AI23+AI24+AI25+AI47+AI48+AI49","v":1358},{"$f":"SQRT((AJ23^2)+(AJ24^2)+(AJ25^2)+(AJ47^2)+(AJ48^2)+(AJ49^2))","v":450.70944077088069},{"$f":"AK23+AK24+AK25+AK47+AK48+AK49","v":386},{"$f":"SQRT((AL23^2)+(AL24^2)+(AL25^2)+(AL47^2)+(AL48^2)+(AL49^2))","v":82.286086308682826},{"$f":"AM23+AM24+AM25+AM47+AM48+AM49","v":502},{"$f":"SQRT((AN23^2)+(AN24^2)+(AN25^2)+(AN47^2)+(AN48^2)+(AN49^2))","v":124.18937152590796},{"$f":"AO23+AO24+AO25+AO47+AO48+AO49","v":963},{"$f":"SQRT((AP23^2)+(AP24^2)+(AP25^2)+(AP47^2)+(AP48^2)+(AP49^2))","v":192.1561864733998},{"$f":"AQ23+AQ24+AQ25+AQ47+AQ48+AQ49","v":956},{"$f":"SQRT((AR23^2)+(AR24^2)+(AR25^2)+(AR47^2)+(AR48^2)+(AR49^2))","v":252.77658119374905},{"$f":"AS23+AS24+AS25+AS47+AS48+AS49","v":781},{"$f":"SQRT((AT23^2)+(AT24^2)+(AT25^2)+(AT47^2)+(AT48^2)+(AT49^2))","v":203.46252726239297},{"$f":"AU23+AU24+AU25+AU47+AU48+AU49","v":243},{"$f":"SQRT((AV23^2)+(AV24^2)+(AV25^2)+(AV47^2)+(AV48^2)+(AV49^2))","v":54.836119483420781},{"$f":"AW23+AW24+AW25+AW47+AW48+AW49","v":393},{"$f":"SQRT((AX23^2)+(AX24^2)+(AX25^2)+(AX47^2)+(AX48^2)+(AX49^2))","v":98.605273692637752},{"$f":"AY23+AY24+AY25+AY47+AY48+AY49","v":459},{"$f":"SQRT((AZ23^2)+(AZ24^2)+(AZ25^2)+(AZ47^2)+(AZ48^2)+(AZ49^2))","v":97.365291557104683},{"$f":"BA23+BA24+BA25+BA47+BA48+BA49","v":489},{"$f":"SQRT((BB23^2)+(BB24^2)+(BB25^2)+(BB47^2)+(BB48^2)+(BB49^2))","v":106.87375730271674},{"$f":"BC23+BC24+BC25+BC47+BC48+BC49","v":230},{"$f":"SQRT((BD23^2)+(BD24^2)+(BD25^2)+(BD47^2)+(BD48^2)+(BD49^2))","v":66.805688380556333}]
[null,"65 to 74 yrs.",{"$f":"C26+C27+C28+C50+C51+C52","v":432},{"$f":"SQRT((D26^2)+(D27^2)+(D28^2)+(D50^2)+(D51^2)+(D52^2))","v":148.29362764461592},{"$f":"E26+E27+E28+E50+E51+E52","v":253},{"$f":"SQRT((F26^2)+(F27^2)+(F28^2)+(F50^2)+(F51^2)+(F52^2))","v":73.191529564560952},{"$f":"G26+G27+G28+G50+G51+G52","v":535},{"$f":"SQRT((H26^2)+(H27^2)+(H28^2)+(H50^2)+(H51^2)+(H52^2))","v":161.62920528171881},{"$f":"I26+I27+I28+I50+I51+I52","v":870},{"$f":"SQRT((J26^2)+(J27^2)+(J28^2)+(J50^2)+(J51^2)+(J52^2))","v":133.64505228402584},{"$f":"K26+K27+K28+K50+K51+K52","v":275},{"$f":"SQRT((L26^2)+(L27^2)+(L28^2)+(L50^2)+(L51^2)+(L52^2))","v":63.427123535597921},{"$f":"M26+M27+M28+M50+M51+M52","v":304},{"$f":"SQRT((N26^2)+(N27^2)+(N28^2)+(N50^2)+(N51^2)+(N52^2))","v":62.665780135573193},{"$f":"O26+O27+O28+O50+O51+O52","v":280},{"$f":"SQRT((P26^2)+(P27^2)+(P28^2)+(P50^2)+(P51^2)+(P52^2))","v":62.185207244167003},{"$f":"Q26+Q27+Q28+Q50+Q51+Q52","v":4555},{"$f":"SQRT((R26^2)+(R27^2)+(R28^2)+(R50^2)+(R51^2)+(R52^2))","v":453.10705136865835},{"$f":"S26+S27+S28+S50+S51+S52","v":202},{"$f":"SQRT((T26^2)+(T27^2)+(T28^2)+(T50^2)+(T51^2)+(T52^2))","v":64.645185435575939},{"$f":"U26+U27+U28+U50+U51+U52","v":341},{"$f":"SQRT((V26^2)+(V27^2)+(V28^2)+(V50^2)+(V51^2)+(V52^2))","v":108},{"$f":"W26+W27+W28+W50+W51+W52","v":692},{"$f":"SQRT((X26^2)+(X27^2)+(X28^2)+(X50^2)+(X51^2)+(X52^2))","v":140.22481948642331},{"$f":"Y26+Y27+Y28+Y50+Y51+Y52","v":1036},{"$f":"SQRT((Z26^2)+(Z27^2)+(Z28^2)+(Z50^2)+(Z51^2)+(Z52^2))","v":193.72919243108407},{"$f":"AA26+AA27+AA28+AA50+AA51+AA52","v":1013},{"$f":"SQRT((AB26^2)+(AB27^2)+(AB28^2)+(AB50^2)+(AB51^2)+(AB52^2))","v":394.29303823425539},{"$f":"AC26+AC27+AC28+AC50+AC51+AC52","v":109},{"$f":"SQRT((AD26^2)+(AD27^2)+(AD28^2)+(AD50^2)+(AD51^2)+(AD52^2))","v":32.03123475609393},{"$f":"AE26+AE27+AE28+AE50+AE51+AE52","v":1396},{"$f":"SQRT((AF26^2)+(AF27^2)+(AF28^2)+(AF50^2)+(AF51^2)+(AF52^2))","v":227.55658636919301},{"$f":"AG26+AG27+AG28+AG50+AG51+AG52","v":724},{"$f":"SQRT((AH26^2)+(AH27^2)+(AH28^2)+(AH50^2)+(AH51^2)+(AH52^2))","v":171.10523077919038},{"$f":"AI26+AI27+AI28+AI50+AI51+AI52","v":861},{"$f":"SQRT((AJ26^2)+(AJ27^2)+(AJ28^2)+(AJ50^2)+(AJ51^2)+(AJ52^2))","v":229.96956320348133},{"$f":"AK26+AK27+AK28+AK50+AK51+AK52","v":195},{"$f":"SQRT((AL26^2)+(AL27^2)+(AL28^2)+(AL50^2)+(AL51^2)+(AL52^2))","v":50.34878350069642},{"$f":"AM26+AM27+AM28+AM50+AM51+AM52","v":692},{"$f":"SQRT((AN26^2)+(AN27^2)+(AN28^2)+(AN50^2)+(AN51^2)+(AN52^2))","v":148.06417527545278},{"$f":"AO26+AO27+AO28+AO50+AO51+AO52","v":524},{"$f":"SQRT((AP26^2)+(AP27^2)+(AP28^2)+(AP50^2)+(AP51^2)+(AP52^2))","v":149.1274622596388},{"$f":"AQ26+AQ27+AQ28+AQ50+AQ51+AQ52","v":537},{"$f":"SQRT((AR26^2)+(AR27^2)+(AR28^2)+(AR50^2)+(AR51^2)+(AR52^2))","v":152.78416148279246},{"$f":"AS26+AS27+AS28+AS50+AS51+AS52","v":621},{"$f":"SQRT((AT26^2)+(AT27^2)+(AT28^2)+(AT50^2)+(AT51^2)+(AT52^2))","v":171.28339090524801},{"$f":"AU26+AU27+AU28+AU50+AU51+AU52","v":303},{"$f":"SQRT((AV26^2)+(AV27^2)+(AV28^2)+(AV50^2)+(AV51^2)+(AV52^2))","v":103.46496991735899},{"$f":"AW26+AW27+AW28+AW50+AW51+AW52","v":259},{"$f":"SQRT((AX26^2)+(AX27^2)+(AX28^2)+(AX50^2)+(AX51^2)+(AX52^2))","v":94.286796530585335},{"$f":"AY26+AY27+AY28+AY50+AY51+AY52","v":386},{"$f":"SQRT((AZ26^2)+(AZ27^2)+(AZ28^2)+(AZ50^2)+(AZ51^2)+(AZ52^2))","v":84.308955633431964},{"$f":"BA26+BA27+BA28+BA50+BA51+BA52","v":237},{"$f":"SQRT((BB26^2)+(BB27^2)+(BB28^2)+(BB50^2)+(BB51^2)+(BB52^2))","v":48.610698410946533},{"$f":"BC26+BC27+BC28+BC50+BC51+BC52","v":165},{"$f":"SQRT((BD26^2)+(BD27^2)+(BD28^2)+(BD50^2)+(BD51^2)+(BD52^2))","v":41.761226035642203}]
[null,"Over 74 yrs. ",{"$f":"C29+C30+C31+C53+C54+C55","v":143},{"$f":"SQRT((D29^2)+(D30^2)+(D31^2)+(D53^2)+(D54^2)+(D55^2))","v":72.027772421476428},{"$f":"E29+E30+E31+E53+E54+E55","v":339},{"$f":"SQRT((F29^2)+(F30^2)+(F31^2)+(F53^2)+(F54^2)+(F55^2))","v":156.36815532582074},{"$f":"G29+G30+G31+G53+G54+G55","v":407},{"$f":"SQRT((H29^2)+(H30^2)+(H31^2)+(H53^2)+(H54^2)+(H55^2))","v":105.52724766618336},{"$f":"I29+I30+I31+I53+I54+I55","v":486},{"$f":"SQRT((J29^2)+(J30^2)+(J31^2)+(J53^2)+(J54^2)+(J55^2))","v":123.71741995369932},{"$f":"K29+K30+K31+K53+K54+K55","v":80},{"$f":"SQRT((L29^2)+(L30^2)+(L31^2)+(L53^2)+(L54^2)+(L55^2))","v":29.171904291629644},{"$f":"M29+M30+M31+M53+M54+M55","v":188},{"$f":"SQRT((N29^2)+(N30^2)+(N31^2)+(N53^2)+(N54^2)+(N55^2))","v":58.506409905240297},{"$f":"O29+O30+O31+O53+O54+O55","v":162},{"$f":"SQRT((P29^2)+(P30^2)+(P31^2)+(P53^2)+(P54^2)+(P55^2))","v":45.902069670114003},{"$f":"Q29+Q30+Q31+Q53+Q54+Q55","v":3371},{"$f":"SQRT((R29^2)+(R30^2)+(R31^2)+(R53^2)+(R54^2)+(R55^2))","v":387.82470266861549},{"$f":"S29+S30+S31+S53+S54+S55","v":114},{"$f":"SQRT((T29^2)+(T30^2)+(T31^2)+(T53^2)+(T54^2)+(T55^2))","v":74.659225819720362},{"$f":"U29+U30+U31+U53+U54+U55","v":160},{"$f":"SQRT((V29^2)+(V30^2)+(V31^2)+(V53^2)+(V54^2)+(V55^2))","v":38.652296180175377},{"$f":"W29+W30+W31+W53+W54+W55","v":300},{"$f":"SQRT((X29^2)+(X30^2)+(X31^2)+(X53^2)+(X54^2)+(X55^2))","v":93.776329636001435},{"$f":"Y29+Y30+Y31+Y53+Y54+Y55","v":930},{"$f":"SQRT((Z29^2)+(Z30^2)+(Z31^2)+(Z53^2)+(Z54^2)+(Z55^2))","v":285.5503458236393},{"$f":"AA29+AA30+AA31+AA53+AA54+AA55","v":193},{"$f":"SQRT((AB29^2)+(AB30^2)+(AB31^2)+(AB53^2)+(AB54^2)+(AB55^2))","v":92.822411086978349},{"$f":"AC29+AC30+AC31+AC53+AC54+AC55","v":55},{"$f":"SQRT((AD29^2)+(AD30^2)+(AD31^2)+(AD53^2)+(AD54^2)+(AD55^2))","v":31.859064644147981},{"$f":"AE29+AE30+AE31+AE53+AE54+AE55","v":932},{"$f":"SQRT((AF29^2)+(AF30^2)+(AF31^2)+(AF53^2)+(AF54^2)+(AF55^2))","v":215.40427108114639},{"$f":"AG29+AG30+AG31+AG53+AG54+AG55","v":279},{"$f":"SQRT((AH29^2)+(AH30^2)+(AH31^2)+(AH53^2)+(AH54^2)+(AH55^2))","v":109.67223896684156},{"$f":"AI29+AI30+AI31+AI53+AI54+AI55","v":394},{"$f":"SQRT((AJ29^2)+(AJ30^2)+(AJ31^2)+(AJ53^2)+(AJ54^2)+(AJ55^2))","v":159.40828083885731},{"$f":"AK29+AK30+AK31+AK53+AK54+AK55","v":202},{"$f":"SQRT((AL29^2)+(AL30^2)+(AL31^2)+(AL53^2)+(AL54^2)+(AL55^2))","v":59.025418253494827},{"$f":"AM29+AM30+AM31+AM53+AM54+AM55","v":892},{"$f":"SQRT((AN29^2)+(AN30^2)+(AN31^2)+(AN53^2)+(AN54^2)+(AN55^2))","v":200.2723146118804},{"$f":"AO29+AO30+AO31+AO53+AO54+AO55","v":270},{"$f":"SQRT((AP29^2)+(AP30^2)+(AP31^2)+(AP53^2)+(AP54^2)+(AP55^2))","v":96.311993022676049},{"$f":"AQ29+AQ30+AQ31+AQ53+AQ54+AQ55","v":337},{"$f":"SQRT((AR29^2)+(AR30^2)+(AR31^2)+(AR53^2)+(AR54^2)+(AR55^2))","v":110.11357772772621},{"$f":"AS29+AS30+AS31+AS53+AS54+AS55","v":306},{"$f":"SQRT((AT29^2)+(AT30^2)+(AT31^2)+(AT53^2)+(AT54^2)+(AT55^2))","v":121.85647295076286},{"$f":"AU29+AU30+AU31+AU53+AU54+AU55","v":100},{"$f":"SQRT((AV29^2)+(AV30^2)+(AV31^2)+(AV53^2)+(AV54^2)+(AV55^2))","v":45.519226706964169},{"$f":"AW29+AW30+AW31+AW53+AW54+AW55","v":198},{"$f":"SQRT((AX29^2)+(AX30^2)+(AX31^2)+(AX53^2)+(AX54^2)+(AX55^2))","v":95.848839325262574},{"$f":"AY29+AY30+AY31+AY53+AY54+AY55","v":276},{"$f":"SQRT((AZ29^2)+(AZ30^2)+(AZ31^2)+(AZ53^2)+(AZ54^2)+(AZ55^2))","v":85.340494491185126},{"$f":"BA29+BA30+BA31+BA53+BA54+BA55","v":85},{"$f":"SQRT((BB29^2)+(BB30^2)+(BB31^2)+(BB53^2)+(BB54^2)+(BB55^2))","v":26.888659319497503},{"$f":"BC29+BC30+BC31+BC53+BC54+BC55","v":132},{"$f":"SQRT((BD29^2)+(BD30^2)+(BD31^2)+(BD53^2)+(BD54^2)+(BD55^2))","v":47.074409183759279}]
[]
[]
[]
[]
[]
[]
[]
[]
[]
[]
[]
[]
[]
[]
[]
[]
[]
[]
[]
[]
[]
[]
[]
[]
[]
[]
[]
[]
[]
[]
[]
[]
[]
[]
[]
[]
[]
[]
[]
[]
[]
[]
[]
[]
[]
[]
[]
[]
[]
[]
[]
[]
[]
[]
[]
[]
[]
[]
[]
[]
[]
[]
[]
[]
[]
[]
[]
[]
[]
[]
[]
[]
[]
[]
[]
[]
[null,"Calculated B01001. GENDER BY AGE"]
[null,"Universe:  TOTAL POPULATION"]
[null,"Data Set: 2013-2017 American Community Survey 5-Year Estimates"]
[]
[null,null,"Allenstown",null,"Andover",null,"Boscawen",null,"Bow",null,"Bradford",null,"Canterbury",null,"Chichester",null,"Concord",null,"Danbury",null,"Dunbarton",null,"Epsom",null,"Franklin",null,"Henniker",null,"Hill",null,"Hooksett",null,"Hopkinton",null,"Loudon",null,"Newbury",null,"New London",null,"Northfield",null,"Pembroke",null,"Pittsfield",null,"Salisbury",null,"Sutton",null,"Warner",null,"Webster",null,"Wilmot"]
[null,null,"Estimate","Margin Of Error","Estimate","Margin Of Error","Estimate","Margin Of Error","Estimate","Margin Of Error","Estimate","Margin Of Error","Estimate","Margin Of Error","Estimate","Margin Of Error","Estimate","Margin Of Error","Estimate","Margin Of Error","Estimate","Margin Of Error","Estimate","Margin Of Error","Estimate","Margin Of Error","Estimate","Margin Of Error","Estimate","Margin Of Error","Estimate","Margin Of Error","Estimate","Margin Of Error","Estimate","Margin Of Error","Estimate","Margin Of Error","Estimate","Margin Of Error","Estimate","Margin Of Error","Estimate","Margin Of Error","Estimate","Margin Of Error","Estimate","Margin Of Error","Estimate","Margin Of Error","Estimate","Margin Of Error","Estimate","Margin Of Error","Estimate"]
[null,"Total",4315,21,2783,308,3983,29,7692,22,1680,186,2248,248,2590,30,42717,52,1281,174,2788,21,4652,18,8491,28,4893,18,946,132,13987,51,5614,16,5403,15,1892,203,4525,38,4820,17,7137,43,4091,22,1262,164,1932,270,2887,23,1872,186,1477]
[null,"Under 15 yrs.",683,150.94038558318314,408,91.427566958767969,725,182.62256158536383,1464,194.08503291083525,278,55.812185049503306,281,75.306042254257392,473,94.477510551453463,6638,484.23134966666504,222,61.975801729384671,533,86.348132579691608,813,184.23626136024362,1402,297.88252718143775,968,222.34657631724397,97,36.041642581880197,2092,312.69473932255403,1020,254.11217995208338,620,234.66145827553362,182,53.916602266834282,430,112.76080879454528,912,195.45076106272904,1125,275.81696829600605,883,187.14432932899678,183,51,330,85.434185195388849,431,86.833173384369644,268,56.621550667568265,174]
[null,"15 to 24 yrs.",535,147.65161699080713,459,141.68980203246809,437,119.77061409210525,932,167.35292050036057,174,50.754310161798081,214,61.554853586049575,284,89.342039376768199,5424,453.39056011346332,99,42.059481689626182,323,68.716810170437924,345,109.77704678119193,1124,265.21123656436578,1103,225.02444311674233,84,38.561638969317684,2564,386.96382259844393,631,181.23465452280368,570,210.91467469097546,182,57.043842787806646,1378,217.74526401279087,536,157.49920634720672,902,230.75094799371897,462,146.91494137765565,142,55.389529696504916,170,66.977608198561398,439,113.74972527439353,200,62.112800613078136,162]
[null,"25 to 34 yrs.",495,112.89818421923357,219,58.523499553598128,498,123.97580409095961,492,114.58184847522752,124,35.818989377144632,204,51.594573358057723,329,84.628600366542756,6678,407.21861450577131,147,50.259327492516249,239,66.105975524153635,502,119.50732195141852,1019,225.16438439504591,573,167.08979621748301,86,28.106938645110393,1475,228.19290085364182,443,150.55563755635322,412,155.77226967595999,115,45.14421336118285,210,83.630138108220294,685,173.70377082838473,786,216.86170708541422,425,130.25743740761985,101,35.580893749314392,187,59.899916527487747,239,63.071388124885914,173,46.904157598234299,106]
[null,"35 to 44 yrs.",563,106.72862783714592,507,142.07744367069671,455,119.13437790998869,856,140.6911511076656,157,44.48595283907045,251,66.460514593253038,252,63.694583757176716,5427,369.54431398683431,158,46.904157598234299,343,65.536249511243781,575,127.85147633093644,798,184.56977000581651,563,134.6291201783626,82,23.874672772626646,1680,249.64374616641211,464,140.63783274780653,988,225.65681908597401,196,55.695601262577284,257,75.557924799454355,458,111.92408141235737,1011,250.09798079952586,478,110.57124400132251,151,44.440972086577943,254,73.184697854127947,271,63.039670049897943,269,55.614746245937326,183]
[null,"45 to 54 yrs.",760,150.60876468519353,291,65.772334609621396,455,108.30512453249847,1322,159.44277970482077,274,59.941638282582836,343,68.622153857191051,460,83.360662185469707,6314,418.13753718124855,263,66.475559418481012,596,93.053747909474339,833,166.64933243190626,1449,234.04273114113158,498,128.16395749195638,192,42.355637169094742,2238,253.67498891297896,1016,213.4713095476767,710,168.4606779043703,285,62.641839053463301,329,78.828928700065433,824,166.12946758477256,1071,190.79308163557712,696,166.95208893571831,166,40.80441152620633,200,62.048368229954285,439,72.677369242426494,251,56.542019772908716,235]
[null,"55 to 64 yrs.",687,146.31814651641812,425,80.814602640859405,541,122.64990827554662,1381,168.71573726241425,305,56.586217403180434,566,81.516869419771027,407,80.39900496896712,5576,384.70118273797914,250,55.865910893853687,440,65.757128891094382,777,175.83515006960354,1388,211.99056582782168,688,151.31424255502191,176,38.40572873934304,1962,264.25555812508469,746,182.21690371642254,1080,220.53571139386926,412,87.218117383947245,455,114.37657102746174,903,149.63288408635316,1181,226.57669783099939,596,134.19016357393713,294,59.607046563304912,367,88.825671964809814,546,92.265920035514739,389,61.684682053164543,249]
[null,"65 to 74 yrs.",331,91.547801721286575,297,75.624070242218522,357,83.94641147779933,688,118.37229405566153,255,57.358521598799946,271,57.654141221598294,314,70.028565600046392,3448,284.19535534557912,71,27.784887978899608,252,54.194095619356915,473,106.49882628461216,714,144.03818938045563,318,102.96601381038309,161,46.162755550335163,1161,162.58228685807074,816,187.39797224089699,678,182.98633828786237,374,75.066637063345254,621,121.94670967270909,343,84.664041954066903,736,171.33300907881119,339,99.277389167926856,135,37.722672227720032,252,69.238717492455038,345,81.154174261093928,233,46.37887450122092,173]
[null,"Over 74 yrs. ",261,93.423765713013296,177,61.684682053164543,515,136.09555466656508,557,109.82258419833327,113,36.097091295560091,118,39.012818406262319,71,30.199337741082999,3212,323.64023235685642,71,31.160872901765767,62,25.059928172283335,334,112.88489712977551,597,129.67266481413884,182,81.804645344870238,68,38.742741255621034,815,163.81086655042151,478,147.20054347725758,345,128.34328965707556,146,49.547956567349978,845,162.33607116103309,159,62.465990746965666,325,112.66765285564442,212,78.409183135650636,90,33.151168908501553,172,58.129166517334482,177,59.908263203000637,89,32.155870381627054,195]
[]
[]
[]
[]
[]
[]
[]
[]
[]
[]
[]
[]
[]
[]
[]
[]
[]
[]
[]
[]
[]
[]
[]
[]
[]
[]
[]
[]
[]
[]
[]
[]
[]
[]
[]
[]
[]
[]
[]
[]
[]
[]
[]
[]
[]
[]
[]
[]
[]
[]
[]
[]
[]
[]
[]
[]
[]
[]
[]
[]
[]
[]
[]
[]
[]
[]
[]
[]
[]
[]
[]
[]
[]
[]
[]
[]
[null,"Calculated B01001. GENDER BY AGE"]
[null,"Universe:  TOTAL POPULATION"]
[null,"Data Set: 2008-2012 American Community Survey 5-Year Estimates"]
[]
[null,null,"Allenstown",null,"Andover",null,"Boscawen",null,"Bow",null,"Bradford",null,"Canterbury",null,"Chichester",null,"Concord",null,"Danbury",null,"Dunbarton",null,"Epsom",null,"Franklin",null,"Henniker",null,"Hill",null,"Hooksett",null,"Hopkinton",null,"Loudon",null,"Newbury",null,"New London",null,"Northfield",null,"Pembroke",null,"Pittsfield",null,"Salisbury",null,"Sutton",null,"Warner",null,"Webster",null,"Wilmot"]
[null,null,"Estimate","Margin Of Error","Estimate","Margin Of Error","Estimate","Margin Of Error","Estimate","Margin Of Error","Estimate","Margin Of Error","Estimate","Margin Of Error","Estimate","Margin Of Error","Estimate","Margin Of Error","Estimate","Margin Of Error","Estimate","Margin Of Error","Estimate","Margin Of Error","Estimate","Margin Of Error","Estimate","Margin Of Error","Estimate","Margin Of Error","Estimate","Margin Of Error","Estimate","Margin Of Error","Estimate","Margin Of Error","Estimate","Margin Of Error","Estimate","Margin Of Error","Estimate","Margin Of Error","Estimate","Margin Of Error","Estimate","Margin Of Error","Estimate","Margin Of Error","Estimate","Margin Of Error","Estimate","Margin Of Error","Estimate","Margin Of Error","Estimate"]
[null,"Total",4364,28,2503,234,3969,17,7571,34,1466,204,2419,143,2532,16,42767,36,1218,225,2756,18,4572,18,8499,24,4839,14,1210,201,13469,37,5608,16,5307,16,2103,252,4410,16,4848,31,7140,24,4104,33,1289,174,1794,251,2846,19,1749,161,1390]
[null,"Under 15 yrs.",741,208.83246873989685,339,85.158675424175073,645,175.18561584787719,1471,230.67292862405853,200,63.647466563878254,467,97.257390464683965,394,98.58498871532116,6905,521.14105576129771,228,65.230361029201731,477,80.678373806119822,804,170.54911316098949,1612,293.83668933610045,921,226.43542125736423,237,59.177698502053964,2283,333.39166156339303,1032,201.49689823915404,970,194.3784967531131,326,91.4166286842826,472,121.55657119218195,1151,259.87689393249258,1457,271.56030637779151,780,155.283611498445,257,63.631753079732135,403,97.580735803743565,454,104.69957019969088,303,64.660652641308843,239]
[null,"15 to 24 yrs.",613,165.35114151405185,264,88.893194340174318,348,115.8576713040617,973,175.05998971781074,125,45.110974274559844,214,65.757128891094382,298,74.498322128756698,5463,469.809535875976,125,49.739320461783549,278,80.081208782085696,415,116.92732785794773,1004,194.61757371830529,1106,221.79720467129428,158,56.169386679934469,2183,288.26723712555332,721,183.67362358270171,875,184.12224200242619,269,82.746601138657056,1194,215.63163033284334,512,141.51678345694549,1045,256.4858670570369,471,135,139,44.50842616853577,121,51.215232109207513,349,92.579695398073113,155,46.151923036857305,149]
[null,"25 to 34 yrs.",591,155.13220168617474,234,65.498091575251266,559,153.0686120666154,332,123.5637487291479,142,47.180504448341793,193,56.293871780150276,189,69.728043139041262,6499,392.26266709948322,168,57.288742349610018,215,77.414468931847622,514,121.16104984688768,1063,217.55688911179072,517,154.81601984290901,114,37.188707963574103,1356,211.01184800858931,261,128.75169901791588,437,130.97327971765844,109,49.457052075512955,146,65.642973729105236,547,148.87914561818255,708,196.30333670113711,476,123.97983707038819,129,35.312887166019152,187,63.914004725099176,213,65.061509358452483,164,46.583258795408462,78]
[null,"35 to 44 yrs.",730,184.53725911045714,244,64.544558252419705,462,131.56747318391427,978,160.86951233841668,152,40.11234224026316,346,77.090855488832133,437,84.622691992160114,5792,412.7032832435429,170,49.527769988159172,431,71.874891304265631,672,131.15258289488622,1239,192.51493448561334,489,131.62826444195031,134,38.483762809787713,1960,250.64716236175505,773,155.33834040570923,647,145.99657530229948,292,68.898476035395731,290,95.98437372822724,679,160.75136080294934,1083,217.41895041601134,691,144.87926007541591,120,38.223029707232783,183,49.345719165901315,481,95.446319991920063,237,50.358713248056688,207]
[null,"45 to 54 yrs.",788,161.32575739788115,480,122.74363527287271,708,158.82694985423601,1648,221.06560112328648,282,60.712436946642157,466,85.088189544730596,574,101.79882121124979,6853,432.55288693985153,233,62.521996129362343,697,111.35528725660043,706,141.83793568717786,1227,195.67575220246377,842,183.38484124921558,296,64.838260309789305,2342,292.96074822405819,950,171.84586116633707,980,155.99358961188116,337,72.208032794142781,317,82.764726786234249,767,161.49612998459128,1098,206.52602741543257,733,150.17656275198203,265,57.714816122032303,270,59.874869519690812,475,92.341756535166695,373,60.991802727907626,222]
[null,"55 to 64 yrs.",408,123.12595177297108,462,95.812316536027879,482,134.70337783441067,1164,182.36227680087788,386,69.656299069071991,425,73.885045848263502,404,92.385063727855922,5275,430.25341369941503,144,37.523326078587438,434,82.915619758885001,781,146.81621163890588,1252,172.07556479639985,695,155.20631430454111,158,39.102429592034305,1596,243.01646034785381,886,187.86165122238228,820,144.28444129565739,355,85.930204235763341,555,118.99579824514814,613,145.00689638772357,987,183.01639270841287,529,134.36145280548286,225,47.486840282335066,280,66.136223055145805,438,99.98499887483122,313,54.854352607609911,235]
[null,"65 to 74 yrs.",237,76.400261779656233,330,88.306285167025337,282,101.24228365658294,652,156.377747777617,76,27.459060435491963,185,48.311489316724654,164,45.869379764718857,2775,270.92803472509081,107,33.61547262794322,169,45.519226706964169,449,113.50330391667019,523,118.25396399275586,106,52.478567053607705,76,25.826343140289914,1151,190.43634106966033,649,155.22564221158822,378,106.85504199615477,219,59.413803110051795,514,113.63098169073433,319,104.60879504133484,369,114.84772527133482,245,75.980260594446506,102,30.28200785945344,227,61.684682053164543,199,55.641710972974224,134,31,145]
[null,"Over 74 yrs. ",256,93.397002093214965,150,61.636028424939909,483,129.18204209564115,353,102.02940752547768,103,33.391615714128001,123,43.116122274620196,72,38.509739027939411,3205,336.17703669346605,43,23.430749027719962,55,35.256205127608389,231,73.545904032787575,579,120.00833304400157,163,75.219678276365954,37,25.079872407968907,598,134.64026143765469,336,105.44666898484751,200,65.992423807585666,196,70.675313936338483,922,166.6343301963914,260,88.334591186012744,393,123.06502346320826,179,74.128267212986984,52,19.570385790780925,123,47.707441767506253,237,72.890328576567683,70,30.04995840263344,115]

{"sheet":"ACS_Table_B01002","index":21,"n_rows":49,"n_cols":56,"rows_kept":49,"cut":false,"hidden":true,"merged":[[64856,24,64856,25],[64856,26,64856,27],[64856,28,64856,29],[64856,30,64856,31],[64856,32,64856,33],[64856,34,64856,35],[64856,36,64856,37],[64856,38,64856,39],[64856,40,64856,41],[64856,42,64856,43],[64856,44,64856,45],[64856,46,64856,47],[64856,48,64856,49],[64856,50,64856,51],[64856,52,64856,53],[64856,54,64856,55],[64918,24,64918,25],[64918,26,64918,27],[64918,28,64918,29],[64918,30,64918,31],[64918,32,64918,33],[64918,34,64918,35],[64918,36,64918,37],[64918,38,64918,39],[64918,40,64918,41],[64918,42,64918,43],[64918,44,64918,45],[64918,46,64918,47],[64918,48,64918,49],[64918,50,64918,51],[64918,52,64918,53],[64918,54,64918,55],[64938,24,64938,25],[64938,26,64938,27],[64938,28,64938,29],[64938,30,64938,31],[64938,32,64938,33],[64938,34,64938,35],[64938,36,64938,37],[64938,38,64938,39],[64938,40,64938,41],[64938,42,64938,43],[64938,44,64938,45],[64938,46,64938,47],[64938,48,64938,49],[64938,50,64938,51],[64938,52,64938,53],[64938,54,64938,55],[64754,24,64754,25],[64754,26,64754,27],[64754,28,64754,29],[64754,30,64754,31],[64754,32,64754,33],[64754,34,64754,35],[64754,36,64754,37],[64754,38,64754,39],[64754,40,64754,41],[64754,42,64754,43],[64754,44,64754,45],[64754,46,64754,47],[64754,48,64754,49],[64754,50,64754,51],[64754,52,64754,53],[64754,54,64754,55],[64774,24,64774,25],[64774,26,64774,27],[64774,28,64774,29],[64774,30,64774,31],[64774,32,64774,33],[64774,34,64774,35],[64774,36,64774,37],[64774,38,64774,39],[64774,40,64774,41],[64774,42,64774,43],[64774,44,64774,45],[64774,46,64774,47],[64774,48,64774,49],[64774,50,64774,51],[64774,52,64774,53],[64774,54,64774,55],[64836,24,64836,25],[64836,26,64836,27],[64836,28,64836,29],[64836,30,64836,31],[64836,32,64836,33],[64836,34,64836,35],[64836,36,64836,37],[64836,38,64836,39],[64836,40,64836,41],[64836,42,64836,43],[64836,44,64836,45],[64836,46,64836,47],[64836,48,64836,49],[64836,50,64836,51],[64836,52,64836,53],[64836,54,64836,55],[64610,24,64610,25],[64610,26,64610,27],[64610,28,64610,29],[64610,30,64610,31],[64610,32,64610,33],[64610,34,64610,35],[64610,36,64610,37],[64610,38,64610,39],[64610,40,64610,41],[64610,42,64610,43],[64610,44,64610,45],[64610,46,64610,47],[64610,48,64610,49],[64610,50,64610,51],[64610,52,64610,53],[64610,54,64610,55],[64672,24,64672,25],[64672,26,64672,27],[64672,28,64672,29],[64672,30,64672,31],[64672,32,64672,33],[64672,34,64672,35],[64672,36,64672,37],[64672,38,64672,39],[64672,40,64672,41],[64672,42,64672,43],[64672,44,64672,45],[64672,46,64672,47],[64672,48,64672,49],[64672,50,64672,51],[64672,52,64672,53],[64672,54,64672,55],[64692,24,64692,25],[64692,26,64692,27],[64692,28,64692,29],[64692,30,64692,31],[64692,32,64692,33],[64692,34,64692,35],[64692,36,64692,37],[64692,38,64692,39],[64692,40,64692,41],[64692,42,64692,43],[64692,44,64692,45],[64692,46,64692,47],[64692,48,64692,49],[64692,50,64692,51],[64692,52,64692,53],[64692,54,64692,55],[64508,24,64508,25],[64508,26,64508,27],[64508,28,64508,29],[64508,30,64508,31],[64508,32,64508,33],[64508,34,64508,35],[64508,36,64508,37],[64508,38,64508,39],[64508,40,64508,41],[64508,42,64508,43],[64508,44,64508,45],[64508,46,64508,47],[64508,48,64508,49],[64508,50,64508,51],[64508,52,64508,53],[64508,54,64508,55],[64528,24,64528,25],[64528,26,64528,27],[64528,28,64528,29],[64528,30,64528,31],[64528,32,64528,33],[64528,34,64528,35],[64528,36,64528,37],[64528,38,64528,39],[64528,40,64528,41],[64528,42,64528,43],[64528,44,64528,45],[64528,46,64528,47],[64528,48,64528,49],[64528,50,64528,51],[64528,52,64528,53],[64528,54,64528,55],[64590,24,64590,25],[64590,26,64590,27],[64590,28,64590,29],[64590,30,64590,31],[64590,32,64590,33],[64590,34,64590,35],[64590,36,64590,37],[64590,38,64590,39],[64590,40,64590,41],[64590,42,64590,43],[64590,44,64590,45],[64590,46,64590,47],[64590,48,64590,49],[64590,50,64590,51],[64590,52,64590,53],[64590,54,64590,55],[64364,24,64364,25],[64364,26,64364,27],[64364,28,64364,29],[64364,30,64364,31],[64364,32,64364,33],[64364,34,64364,35],[64364,36,64364,37],[64364,38,64364,39],[64364,40,64364,41],[64364,42,64364,43],[64364,44,64364,45],[64364,46,64364,47],[64364,48,64364,49],[64364,50,64364,51],[64364,52,64364,53],[64364,54,64364,55],[64426,24,64426,25],[64426,26,64426,27],[64426,28,64426,29],[64426,30,64426,31],[64426,32,64426,33],[64426,34,64426,35],[64426,36,64426,37],[64426,38,64426,39],[64426,40,64426,41],[64426,42,64426,43],[64426,44,64426,45],[64426,46,64426,47],[64426,48,64426,49],[64426,50,64426,51],[64426,52,64426,53],[64426,54,64426,55],[64446,24,64446,25],[64446,26,64446,27],[64446,28,64446,29],[64446,30,64446,31],[64446,32,64446,33],[64446,34,64446,35],[64446,36,64446,37],[64446,38,64446,39],[64446,40,64446,41],[64446,42,64446,43],[64446,44,64446,45],[64446,46,64446,47],[64446,48,64446,49],[64446,50,64446,51],[64446,52,64446,53],[64446,54,64446,55],[64262,24,64262,25],[64262,26,64262,27],[64262,28,64262,29],[64262,30,64262,31],[64262,32,64262,33],[64262,34,64262,35],[64262,36,64262,37],[64262,38,64262,39],[64262,40,64262,41],[64262,42,64262,43],[64262,44,64262,45],[64262,46,64262,47],[64262,48,64262,49],[64262,50,64262,51],[64262,52,64262,53],[64262,54,64262,55],[64282,24,64282,25],[64282,26,64282,27],[64282,28,64282,29],[64282,30,64282,31],[64282,32,64282,33],[64282,34,64282,35],[64282,36,64282,37],[64282,38,64282,39],[64282,40,64282,41],[64282,42,64282,43],[64282,44,64282,45],[64282,46,64282,47],[64282,48,64282,49],[64282,50,64282,51],[64282,52,64282,53],[64282,54,64282,55],[64344,24,64344,25],[64344,26,64344,27],[64344,28,64344,29],[64344,30,64344,31],[64344,32,64344,33],[64344,34,64344,35],[64344,36,64344,37],[64344,38,64344,39],[64344,40,64344,41],[64344,42,64344,43],[64344,44,64344,45],[64344,46,64344,47],[64344,48,64344,49],[64344,50,64344,51],[64344,52,64344,53],[64344,54,64344,55],[64118,24,64118,25],[64118,26,64118,27],[64118,28,64118,29],[64118,30,64118,31],[64118,32,64118,33],[64118,34,64118,35],[64118,36,64118,37],[64118,38,64118,39],[64118,40,64118,41],[64118,42,64118,43],[64118,44,64118,45],[64118,46,64118,47],[64118,48,64118,49],[64118,50,64118,51],[64118,52,64118,53],[64118,54,64118,55],[64180,24,64180,25],[64180,26,64180,27],[64180,28,64180,29],[64180,30,64180,31],[64180,32,64180,33],[64180,34,64180,35],[64180,36,64180,37],[64180,38,64180,39],[64180,40,64180,41],[64180,42,64180,43],[64180,44,64180,45],[64180,46,64180,47],[64180,48,64180,49],[64180,50,64180,51],[64180,52,64180,53],[64180,54,64180,55],[64200,24,64200,25],[64200,26,64200,27],[64200,28,64200,29],[64200,30,64200,31],[64200,32,64200,33],[64200,34,64200,35],[64200,36,64200,37],[64200,38,64200,39],[64200,40,64200,41],[64200,42,64200,43],[64200,44,64200,45],[64200,46,64200,47],[64200,48,64200,49],[64200,50,64200,51],[64200,52,64200,53],[64200,54,64200,55],[64016,24,64016,25],[64016,26,64016,27],[64016,28,64016,29],[64016,30,64016,31],[64016,32,64016,33],[64016,34,64016,35],[64016,36,64016,37],[64016,38,64016,39],[64016,40,64016,41],[64016,42,64016,43],[64016,44,64016,45],[64016,46,64016,47],[64016,48,64016,49],[64016,50,64016,51],[64016,52,64016,53],[64016,54,64016,55],[64036,24,64036,25],[64036,26,64036,27],[64036,28,64036,29],[64036,30,64036,31],[64036,32,64036,33],[64036,34,64036,35],[64036,36,64036,37],[64036,38,64036,39],[64036,40,64036,41],[64036,42,64036,43],[64036,44,64036,45],[64036,46,64036,47],[64036,48,64036,49],[64036,50,64036,51],[64036,52,64036,53],[64036,54,64036,55],[64098,24,64098,25],[64098,26,64098,27],[64098,28,64098,29],[64098,30,64098,31],[64098,32,64098,33],[64098,34,64098,35],[64098,36,64098,37],[64098,38,64098,39],[64098,40,64098,41],[64098,42,64098,43],[64098,44,64098,45],[64098,46,64098,47],[64098,48,64098,49],[64098,50,64098,51],[64098,52,64098,53],[64098,54,64098,55],[63872,24,63872,25],[63872,26,63872,27],[63872,28,63872,29],[63872,30,63872,31],[63872,32,63872,33],[63872,34,63872,35],[63872,36,63872,37],[63872,38,63872,39],[63872,40,63872,41],[63872,42,63872,43],[63872,44,63872,45],[63872,46,63872,47],[63872,48,63872,49],[63872,50,63872,51],[63872,52,63872,53],[63872,54,63872,55],[63934,24,63934,25],[63934,26,63934,27],[63934,28,63934,29],[63934,30,63934,31],[63934,32,63934,33],[63934,34,63934,35],[63934,36,63934,37],[63934,38,63934,39],[63934,40,63934,41],[63934,42,63934,43],[63934,44,63934,45],[63934,46,63934,47],[63934,48,63934,49],[63934,50,63934,51],[63934,52,63934,53],[63934,54,63934,55],[63954,24,63954,25],[63954,26,63954,27],[63954,28,63954,29],[63954,30,63954,31],[63954,32,63954,33],[63954,34,63954,35],[63954,36,63954,37],[63954,38,63954,39],[63954,40,63954,41],[63954,42,63954,43],[63954,44,63954,45],[63954,46,63954,47],[63954,48,63954,49],[63954,50,63954,51],[63954,52,63954,53],[63954,54,63954,55],[63770,24,63770,25],[63770,26,63770,27],[63770,28,63770,29],[63770,30,63770,31],[63770,32,63770,33],[63770,34,63770,35],[63770,36,63770,37],[63770,38,63770,39],[63770,40,63770,41],[63770,42,63770,43],[63770,44,63770,45],[63770,46,63770,47],[63770,48,63770,49],[63770,50,63770,51],[63770,52,63770,53],[63770,54,63770,55],[63790,24,63790,25],[63790,26,63790,27],[63790,28,63790,29],[63790,30,63790,31],[63790,32,63790,33],[63790,34,63790,35],[63790,36,63790,37],[63790,38,63790,39],[63790,40,63790,41],[63790,42,63790,43],[63790,44,63790,45],[63790,46,63790,47],[63790,48,63790,49],[63790,50,63790,51],[63790,52,63790,53],[63790,54,63790,55],[63852,24,63852,25],[63852,26,63852,27],[63852,28,63852,29],[63852,30,63852,31],[63852,32,63852,33],[63852,34,63852,35],[63852,36,63852,37],[63852,38,63852,39],[63852,40,63852,41],[63852,42,63852,43],[63852,44,63852,45],[63852,46,63852,47],[63852,48,63852,49],[63852,50,63852,51],[63852,52,63852,53],[63852,54,63852,55],[63626,24,63626,25],[63626,26,63626,27],[63626,28,63626,29],[63626,30,63626,31],[63626,32,63626,33],[63626,34,63626,35],[63626,36,63626,37],[63626,38,63626,39],[63626,40,63626,41],[63626,42,63626,43],[63626,44,63626,45],[63626,46,63626,47],[63626,48,63626,49],[63626,50,63626,51],[63626,52,63626,53],[63626,54,63626,55],[63688,24,63688,25],[63688,26,63688,27],[63688,28,63688,29],[63688,30,63688,31],[63688,32,63688,33],[63688,34,63688,35],[63688,36,63688,37],[63688,38,63688,39],[63688,40,63688,41],[63688,42,63688,43],[63688,44,63688,45],[63688,46,63688,47],[63688,48,63688,49],[63688,50,63688,51],[63688,52,63688,53],[63688,54,63688,55],[63708,24,63708,25],[63708,26,63708,27],[63708,28,63708,29],[63708,30,63708,31],[63708,32,63708,33],[63708,34,63708,35],[63708,36,63708,37],[63708,38,63708,39],[63708,40,63708,41],[63708,42,63708,43],[63708,44,63708,45],[63708,46,63708,47],[63708,48,63708,49],[63708,50,63708,51],[63708,52,63708,53],[63708,54,63708,55],[63524,24,63524,25],[63524,26,63524,27],[63524,28,63524,29],[63524,30,63524,31],[63524,32,63524,33],[63524,34,63524,35],[63524,36,63524,37],[63524,38,63524,39],[63524,40,63524,41],[63524,42,63524,43],[63524,44,63524,45],[63524,46,63524,47],[63524,48,63524,49],[63524,50,63524,51],[63524,52,63524,53],[63524,54,63524,55],[63544,24,63544,25],[63544,26,63544,27],[63544,28,63544,29],[63544,30,63544,31],[63544,32,63544,33],[63544,34,63544,35],[63544,36,63544,37],[63544,38,63544,39],[63544,40,63544,41],[63544,42,63544,43],[63544,44,63544,45],[63544,46,63544,47],[63544,48,63544,49],[63544,50,63544,51],[63544,52,63544,53],[63544,54,63544,55],[63606,24,63606,25],[63606,26,63606,27],[63606,28,63606,29],[63606,30,63606,31],[63606,32,63606,33],[63606,34,63606,35],[63606,36,63606,37],[63606,38,63606,39],[63606,40,63606,41],[63606,42,63606,43],[63606,44,63606,45],[63606,46,63606,47],[63606,48,63606,49],[63606,50,63606,51],[63606,52,63606,53],[63606,54,63606,55],[63380,24,63380,25],[63380,26,63380,27],[63380,28,63380,29],[63380,30,63380,31],[63380,32,63380,33],[63380,34,63380,35],[63380,36,63380,37],[63380,38,63380,39],[63380,40,63380,41],[63380,42,63380,43],[63380,44,63380,45],[63380,46,63380,47],[63380,48,63380,49],[63380,50,63380,51],[63380,52,63380,53],[63380,54,63380,55],[63442,24,63442,25],[63442,26,63442,27],[63442,28,63442,29],[63442,30,63442,31],[63442,32,63442,33],[63442,34,63442,35],[63442,36,63442,37],[63442,38,63442,39],[63442,40,63442,41],[63442,42,63442,43],[63442,44,63442,45],[63442,46,63442,47],[63442,48,63442,49],[63442,50,63442,51],[63442,52,63442,53],[63442,54,63442,55],[63462,24,63462,25],[63462,26,63462,27],[63462,28,63462,29],[63462,30,63462,31],[63462,32,63462,33],[63462,34,63462,35],[63462,36,63462,37],[63462,38,63462,39],[63462,40,63462,41],[63462,42,63462,43],[63462,44,63462,45],[63462,46,63462,47],[63462,48,63462,49],[63462,50,63462,51],[63462,52,63462,53],[63462,54,63462,55],[63278,24,63278,25],[63278,26,63278,27],[63278,28,63278,29],[63278,30,63278,31],[63278,32,63278,33],[63278,34,63278,35],[63278,36,63278,37],[63278,38,63278,39],[63278,40,63278,41],[63278,42,63278,43],[63278,44,63278,45],[63278,46,63278,47],[63278,48,63278,49],[63278,50,63278,51],[63278,52,63278,53],[63278,54,63278,55],[63298,24,63298,25],[63298,26,63298,27],[63298,28,63298,29],[63298,30,63298,31],[63298,32,63298,33],[63298,34,63298,35],[63298,36,63298,37],[63298,38,63298,39],[63298,40,63298,41],[63298,42,63298,43],[63298,44,63298,45],[63298,46,63298,47],[63298,48,63298,49],[63298,50,63298,51],[63298,52,63298,53],[63298,54,63298,55],[63360,24,63360,25],[63360,26,63360,27],[63360,28,63360,29],[63360,30,63360,31],[63360,32,63360,33],[63360,34,63360,35],[63360,36,63360,37],[63360,38,63360,39],[63360,40,63360,41],[63360,42,63360,43],[63360,44,63360,45],[63360,46,63360,47],[63360,48,63360,49],[63360,50,63360,51],[63360,52,63360,53],[63360,54,63360,55],[63134,24,63134,25],[63134,26,63134,27],[63134,28,63134,29],[63134,30,63134,31],[63134,32,63134,33],[63134,34,63134,35],[63134,36,63134,37],[63134,38,63134,39],[63134,40,63134,41],[63134,42,63134,43],[63134,44,63134,45],[63134,46,63134,47],[63134,48,63134,49],[63134,50,63134,51],[63134,52,63134,53],[63134,54,63134,55],[63196,24,63196,25],[63196,26,63196,27],[63196,28,63196,29],[63196,30,63196,31],[63196,32,63196,33],[63196,34,63196,35],[63196,36,63196,37],[63196,38,63196,39],[63196,40,63196,41],[63196,42,63196,43],[63196,44,63196,45],[63196,46,63196,47],[63196,48,63196,49],[63196,50,63196,51],[63196,52,63196,53],[63196,54,63196,55],[63216,24,63216,25],[63216,26,63216,27],[63216,28,63216,29],[63216,30,63216,31],[63216,32,63216,33],[63216,34,63216,35],[63216,36,63216,37],[63216,38,63216,39],[63216,40,63216,41],[63216,42,63216,43],[63216,44,63216,45],[63216,46,63216,47],[63216,48,63216,49],[63216,50,63216,51],[63216,52,63216,53],[63216,54,63216,55],[63032,24,63032,25],[63032,26,63032,27],[63032,28,63032,29],[63032,30,63032,31],[63032,32,63032,33],[63032,34,63032,35],[63032,36,63032,37],[63032,38,63032,39],[63032,40,63032,41],[63032,42,63032,43],[63032,44,63032,45],[63032,46,63032,47],[63032,48,63032,49],[63032,50,63032,51],[63032,52,63032,53],[63032,54,63032,55],[63052,24,63052,25],[63052,26,63052,27],[63052,28,63052,29],[63052,30,63052,31],[63052,32,63052,33],[63052,34,63052,35],[63052,36,63052,37],[63052,38,63052,39],[63052,40,63052,41],[63052,42,63052,43],[63052,44,63052,45],[63052,46,63052,47],[63052,48,63052,49],[63052,50,63052,51],[63052,52,63052,53],[63052,54,63052,55],[63114,24,63114,25],[63114,26,63114,27],[63114,28,63114,29],[63114,30,63114,31],[63114,32,63114,33],[63114,34,63114,35],[63114,36,63114,37],[63114,38,63114,39],[63114,40,63114,41],[63114,42,63114,43],[63114,44,63114,45],[63114,46,63114,47],[63114,48,63114,49],[63114,50,63114,51],[63114,52,63114,53],[63114,54,63114,55],[62888,24,62888,25],[62888,26,62888,27],[62888,28,62888,29],[62888,30,62888,31],[62888,32,62888,33],[62888,34,62888,35],[62888,36,62888,37],[62888,38,62888,39],[62888,40,62888,41],[62888,42,62888,43],[62888,44,62888,45],[62888,46,62888,47],[62888,48,62888,49],[62888,50,62888,51],[62888,52,62888,53],[62888,54,62888,55],[62950,24,62950,25],[62950,26,62950,27],[62950,28,62950,29],[62950,30,62950,31],[62950,32,62950,33],[62950,34,62950,35],[62950,36,62950,37],[62950,38,62950,39],[62950,40,62950,41],[62950,42,62950,43],[62950,44,62950,45],[62950,46,62950,47],[62950,48,62950,49],[62950,50,62950,51],[62950,52,62950,53],[62950,54,62950,55],[62970,24,62970,25],[62970,26,62970,27],[62970,28,62970,29],[62970,30,62970,31],[62970,32,62970,33],[62970,34,62970,35],[62970,36,62970,37],[62970,38,62970,39],[62970,40,62970,41],[62970,42,62970,43],[62970,44,62970,45],[62970,46,62970,47],[62970,48,62970,49],[62970,50,62970,51],[62970,52,62970,53],[62970,54,62970,55],[62786,24,62786,25],[62786,26,62786,27],[62786,28,62786,29],[62786,30,62786,31],[62786,32,62786,33],[62786,34,62786,35],[62786,36,62786,37],[62786,38,62786,39],[62786,40,62786,41],[62786,42,62786,43],[62786,44,62786,45],[62786,46,62786,47],[62786,48,62786,49],[62786,50,62786,51],[62786,52,62786,53],[62786,54,62786,55],[62806,24,62806,25],[62806,26,62806,27],[62806,28,62806,29],[62806,30,62806,31],[62806,32,62806,33],[62806,34,62806,35],[62806,36,62806,37],[62806,38,62806,39],[62806,40,62806,41],[62806,42,62806,43],[62806,44,62806,45],[62806,46,62806,47],[62806,48,62806,49],[62806,50,62806,51],[62806,52,62806,53],[62806,54,62806,55],[62868,24,62868,25],[62868,26,62868,27],[62868,28,62868,29],[62868,30,62868,31],[62868,32,62868,33],[62868,34,62868,35],[62868,36,62868,37],[62868,38,62868,39],[62868,40,62868,41],[62868,42,62868,43],[62868,44,62868,45],[62868,46,62868,47],[62868,48,62868,49],[62868,50,62868,51],[62868,52,62868,53],[62868,54,62868,55],[62642,24,62642,25],[62642,26,62642,27],[62642,28,62642,29],[62642,30,62642,31],[62642,32,62642,33],[62642,34,62642,35],[62642,36,62642,37],[62642,38,62642,39],[62642,40,62642,41],[62642,42,62642,43],[62642,44,62642,45],[62642,46,62642,47],[62642,48,62642,49],[62642,50,62642,51],[62642,52,62642,53],[62642,54,62642,55],[62704,24,62704,25],[62704,26,62704,27],[62704,28,62704,29],[62704,30,62704,31],[62704,32,62704,33],[62704,34,62704,35],[62704,36,62704,37],[62704,38,62704,39],[62704,40,62704,41],[62704,42,62704,43],[62704,44,62704,45],[62704,46,62704,47],[62704,48,62704,49],[62704,50,62704,51],[62704,52,62704,53],[62704,54,62704,55],[62724,24,62724,25],[62724,26,62724,27],[62724,28,62724,29],[62724,30,62724,31],[62724,32,62724,33],[62724,34,62724,35],[62724,36,62724,37],[62724,38,62724,39],[62724,40,62724,41],[62724,42,62724,43],[62724,44,62724,45],[62724,46,62724,47],[62724,48,62724,49],[62724,50,62724,51],[62724,52,62724,53],[62724,54,62724,55],[62540,24,62540,25],[62540,26,62540,27],[62540,28,62540,29],[62540,30,62540,31],[62540,32,62540,33],[62540,34,62540,35],[62540,36,62540,37],[62540,38,62540,39],[62540,40,62540,41],[62540,42,62540,43],[62540,44,62540,45],[62540,46,62540,47],[62540,48,62540,49],[62540,50,62540,51],[62540,52,62540,53],[62540,54,62540,55],[62560,24,62560,25],[62560,26,62560,27],[62560,28,62560,29],[62560,30,62560,31],[62560,32,62560,33],[62560,34,62560,35],[62560,36,62560,37],[62560,38,62560,39],[62560,40,62560,41],[62560,42,62560,43],[62560,44,62560,45],[62560,46,62560,47],[62560,48,62560,49],[62560,50,62560,51],[62560,52,62560,53],[62560,54,62560,55],[62622,24,62622,25],[62622,26,62622,27],[62622,28,62622,29],[62622,30,62622,31],[62622,32,62622,33],[62622,34,62622,35],[62622,36,62622,37],[62622,38,62622,39],[62622,40,62622,41],[62622,42,62622,43],[62622,44,62622,45],[62622,46,62622,47],[62622,48,62622,49],[62622,50,62622,51],[62622,52,62622,53],[62622,54,62622,55],[62396,24,62396,25],[62396,26,62396,27],[62396,28,62396,29],[62396,30,62396,31],[62396,32,62396,33],[62396,34,62396,35],[62396,36,62396,37],[62396,38,62396,39],[62396,40,62396,41],[62396,42,62396,43],[62396,44,62396,45],[62396,46,62396,47],[62396,48,62396,49],[62396,50,62396,51],[62396,52,62396,53],[62396,54,62396,55],[62458,24,62458,25],[62458,26,62458,27],[62458,28,62458,29],[62458,30,62458,31],[62458,32,62458,33],[62458,34,62458,35],[62458,36,62458,37],[62458,38,62458,39],[62458,40,62458,41],[62458,42,62458,43],[62458,44,62458,45],[62458,46,62458,47],[62458,48,62458,49],[62458,50,62458,51],[62458,52,62458,53],[62458,54,62458,55],[62478,24,62478,25],[62478,26,62478,27],[62478,28,62478,29],[62478,30,62478,31],[62478,32,62478,33],[62478,34,62478,35],[62478,36,62478,37],[62478,38,62478,39]],"merged_total":42768,"flags":["merged_cut"]}
[null,"B01001. GENDER BY AGE"]
[null,"Universe:  TOTAL POPULATION, Median Age"]
[null,"Data Set: 2018-2022 American Community Survey 5-Year Estimates"]
[]
[null,null,"Allenstown",null,"Andover",null,"Boscawen",null,"Bow",null,"Bradford",null,"Canterbury",null,"Chichester",null,"Concord",null,"Danbury",null,"Dunbarton",null,"Epsom",null,"Franklin",null,"Henniker",null,"Hill",null,"Hooksett",null,"Hopkinton",null,"Loudon",null,"Newbury",null,"New London",null,"Northfield",null,"Pembroke",null,"Pittsfield",null,"Salisbury",null,"Sutton",null,"Warner",null,"Webster",null,"Wilmot"]
[null,null,"Estimate","Margin Of Error","Estimate","Margin Of Error","Estimate","Margin Of Error","Estimate","Margin Of Error","Estimate","Margin Of Error","Estimate","Margin Of Error","Estimate","Margin Of Error","Estimate","Margin Of Error","Estimate","Margin Of Error","Estimate","Margin Of Error","Estimate","Margin Of Error","Estimate","Margin Of Error","Estimate","Margin Of Error","Estimate","Margin Of Error","Estimate","Margin Of Error","Estimate","Margin Of Error","Estimate","Margin Of Error","Estimate","Margin Of Error","Estimate","Margin Of Error","Estimate","Margin Of Error","Estimate","Margin Of Error","Estimate","Margin Of Error","Estimate","Margin Of Error","Estimate","Margin Of Error","Estimate","Margin Of Error","Estimate","Margin Of Error","Estimate","Margin Of Error"]
[null,"Total:",37.200000000000003,4.0999999999999996,45.9,4.8,44.6,4.3,41.7,2.1,46.6,7.2,47.7,3.5,45.4,1.7,40.1,1.2,48.4,7.3,43.8,3.5,45.6,3.3,44.8,4.5,34,10.199999999999999,47.9,5.7,39.4,3.5,45.1,4.3,51.7,6.8,48.6,6.8,52.2,6.8,43.5,4.0999999999999996,42.1,5.3,47.8,5.9,51.6,2.5,47.4,5.0999999999999996,44.3,5.3,44.4,6.7,46.9,9.6]
[null,"Male:",36.200000000000003,4.9000000000000004,43.9,6.1,39.299999999999997,7.9,39.799999999999997,2.2999999999999998,42.2,9,47.4,4.3,42.6,3.2,37.9,0.9,47.9,7.2,45.5,2.9,46.7,3.7,46,5,31.5,8,46.8,8.9,36.700000000000003,3,46.8,6.1,50.3,4.9000000000000004,46.5,6.1,41.8,14.4,41,9,43.5,1.7,49,4,51.1,3.6,47.4,5.9,39.799999999999997,5.9,43.4,7.1,44.8,8.6]
[null,"Female:",38.700000000000003,5.0999999999999996,50.5,8.1,45.5,5.8,43,2.8,50,6.3,48,4.9000000000000004,48.9,5,43.3,1.5,49,8.1,41,3.5,43.5,5.8,44.3,6.1,39,5.9,50.4,5.8,41,2.6,44.6,5.6,54.7,5.8,52.3,5.4,57.9,7.9,43.7,3.1,37.6,6.5,46,10.8,53.1,2.9,47.5,5.6,48.1,4.5999999999999996,46.5,7.8,49.3,12.4]
[]
[]
[]
[]
[]
[]
[]
[]
[]
[]
[]
[null,"B01001. GENDER BY AGE"]
[null,"Universe:  TOTAL POPULATION, Median Age"]
[null,"Data Set: 2013-2017 American Community Survey 5-Year Estimates"]
[]
[null,null,"Allenstown",null,"Andover",null,"Boscawen",null,"Bow",null,"Bradford",null,"Canterbury",null,"Chichester",null,"Concord",null,"Danbury",null,"Dunbarton",null,"Epsom",null,"Franklin",null,"Henniker",null,"Hill",null,"Hooksett",null,"Hopkinton",null,"Loudon",null,"Newbury",null,"New London",null,"Northfield",null,"Pembroke",null,"Pittsfield",null,"Salisbury",null,"Sutton",null,"Warner",null,"Webster",null,"Wilmot"]
[null,null,"Estimate","Margin Of Error","Estimate","Margin Of Error","Estimate","Margin Of Error","Estimate","Margin Of Error","Estimate","Margin Of Error","Estimate","Margin Of Error","Estimate","Margin Of Error","Estimate","Margin Of Error","Estimate","Margin Of Error","Estimate","Margin Of Error","Estimate","Margin Of Error","Estimate","Margin Of Error","Estimate","Margin Of Error","Estimate","Margin Of Error","Estimate","Margin Of Error","Estimate","Margin Of Error","Estimate","Margin Of Error","Estimate","Margin Of Error","Estimate","Margin Of Error","Estimate","Margin Of Error","Estimate","Margin Of Error","Estimate","Margin Of Error","Estimate","Margin Of Error","Estimate","Margin Of Error","Estimate","Margin Of Error","Estimate","Margin Of Error","Estimate","Margin Of Error"]
[null,"Total:",43.8,2.2000000000000002,41.1,3.8,42.6,2.8,45.5,1.1000000000000001,49.7,4.7,49.8,3.5,44.2,3,39.6,1.2,46,6,43.8,2.9,45.9,1.9,44.4,3.7,31.3,5.5,52.7,3.6,40.9,1.5,48.1,2.9,48.8,4.8,54.5,3,44.7,6.3,41,3.9,41.7,3.9,39.299999999999997,3.4,49.9,5.0999999999999996,45.7,4.9000000000000004,46.8,3.3,45.9,3,51.1,4.8]
[null,"Male:",42.3,1.5,37.200000000000003,4.4000000000000004,41.1,6.5,43.6,3,48.5,5.6,50.7,3.6,43.5,5.4,37.5,1.6,45.5,8.8000000000000007,45.4,3.2,40.4,4.7,43,6.4,33.6,5.8,52.3,6.5,40.799999999999997,2.2000000000000002,46.9,3.8,51,4.5999999999999996,53.3,3.2,43.2,10.9,41.4,4.8,40.5,4,39.299999999999997,6.9,48.3,7.3,41.5,9.1,47.4,5.5,44.1,3.2,51,6.3]
[null,"Female:",46.6,4.3,43.6,6.6,44.6,6.8,47.2,2.2999999999999998,51.6,3.5,48.3,4.7,44.6,2.8,42.5,1.2,46.2,7.4,42,4.4000000000000004,50.2,4.3,44.9,3.1,30,6.2,53.3,3.2,41,2.2999999999999998,48.8,2.7,45.5,7.6,55.2,2.4,45.8,5.3,40.5,5.0999999999999996,42.7,4.3,39.299999999999997,6.2,50.8,5.4,50,8.5,46.5,4.4000000000000004,47.7,5.3,51.1,5.5]
[]
[]
[]
[]
[]
[]
[]
[]
[]
[]
[]
[null,"B01001. GENDER BY AGE"]
[null,"Universe:  TOTAL POPULATION, Median Age"]
[null,"Data Set: 2008-2012 American Community Survey 5-Year Estimates"]
[]
[null,null,"Allenstown",null,"Andover",null,"Boscawen",null,"Bow",null,"Bradford",null,"Canterbury",null,"Chichester",null,"Concord",null,"Danbury",null,"Dunbarton",null,"Epsom",null,"Franklin",null,"Henniker",null,"Hill",null,"Hooksett",null,"Hopkinton",null,"Loudon",null,"Newbury",null,"New London",null,"Northfield",null,"Pembroke",null,"Pittsfield",null,"Salisbury",null,"Sutton",null,"Warner",null,"Webster",null,"Wilmot"]
[null,null,"Estimate","Margin Of Error","Estimate","Margin Of Error","Estimate","Margin Of Error","Estimate","Margin Of Error","Estimate","Margin Of Error","Estimate","Margin Of Error","Estimate","Margin Of Error","Estimate","Margin Of Error","Estimate","Margin Of Error","Estimate","Margin Of Error","Estimate","Margin Of Error","Estimate","Margin Of Error","Estimate","Margin Of Error","Estimate","Margin Of Error","Estimate","Margin Of Error","Estimate","Margin Of Error","Estimate","Margin Of Error","Estimate","Margin Of Error","Estimate","Margin Of Error","Estimate","Margin Of Error","Estimate","Margin Of Error","Estimate","Margin Of Error","Estimate","Margin Of Error","Estimate","Margin Of Error","Estimate","Margin Of Error","Estimate","Margin Of Error","Estimate","Margin Of Error"]
[null,"Total:",38.5,2.2999999999999998,48.6,2.6,44.6,3.2,45.2,1.2,49.9,4.3,44.7,1.9,43.6,2,40.1,0.8,41.4,5.2,44.6,1.4,43.5,2,38.9,2.7,34.200000000000003,3,43.1,4.5,39.5,2.4,45.1,1.3,41.8,2.4,46.1,2.9,48.5,7.1,37.5,4.2,37.9,3.2,38.799999999999997,3.2,45,4.3,45.1,5.5,44.1,2.2999999999999998,45.5,3.8,47,6.6]
[null,"Male:",37.700000000000003,3.1,48.4,1.9,42.1,3.7,43.8,1.6,51.9,3.4,44.6,3,42.6,2.7,38.5,1.1000000000000001,43.2,5.5,46.1,2.2000000000000002,39.4,3.2,36.799999999999997,2.7,34,6.1,42.1,8.1,39.200000000000003,2.9,43.9,3.3,37.799999999999997,6,45.3,4.5999999999999996,49.5,6.2,38.700000000000003,3.3,37.299999999999997,4.0999999999999996,38.200000000000003,4.4000000000000004,42.8,5.0999999999999996,48.9,4.7,42.5,3.5,44.8,4.4000000000000004,47.1,7.5]
[null,"Female:",39,2.9,48.9,5.9,47.7,6.4,45.9,1.3,47.4,6.3,44.9,2.2999999999999998,45.7,5.6,41.4,2,39.700000000000003,6,43.6,2,48.2,5.0999999999999996,41.7,3.9,34.799999999999997,4.0999999999999996,43.4,3.2,39.9,3,45.7,1.8,42.6,2.7,47.8,4.4000000000000004,47.3,11.1,35.6,5.7,38.200000000000003,3.8,39.5,3.7,45.5,4,42.1,5.8,45.3,3.1,46.3,3.9,46.5,9.1]

{"sheet":"ACS_Tbl_B11001_B11002_B25010","index":22,"n_rows":202,"n_cols":56,"rows_kept":202,"cut":false,"hidden":true,"merged":[]}
[null,"B11001. HOUSEHOLD TYPE (INCLUDING LIVING ALONE)"]
[null,"Universe:  HOUSEHOLDS"]
[null,"Data Set: 2018-2022 American Community Survey 5-Year Estimates"]
[]
[null,null,"Allenstown",null,"Andover",null,"Boscawen",null,"Bow",null,"Bradford",null,"Canterbury",null,"Chichester",null,"Concord",null,"Danbury",null,"Dunbarton",null,"Epsom",null,"Franklin",null,"Henniker",null,"Hill",null,"Hooksett",null,"Hopkinton",null,"Loudon",null,"Newbury",null,"New London",null,"Northfield",null,"Pembroke",null,"Pittsfield",null,"Salisbury",null,"Sutton",null,"Warner",null,"Webster",null,"Wilmot"]
[null,null,"Estimate","Margin Of Error","Estimate","Margin Of Error","Estimate","Margin Of Error","Estimate","Margin Of Error","Estimate","Margin Of Error","Estimate","Margin Of Error","Estimate","Margin Of Error","Estimate","Margin Of Error","Estimate","Margin Of Error","Estimate","Margin Of Error","Estimate","Margin Of Error","Estimate","Margin Of Error","Estimate","Margin Of Error","Estimate","Margin Of Error","Estimate","Margin Of Error","Estimate","Margin Of Error","Estimate","Margin Of Error","Estimate","Margin Of Error","Estimate","Margin Of Error","Estimate","Margin Of Error","Estimate","Margin Of Error","Estimate","Margin Of Error","Estimate","Margin Of Error","Estimate","Margin Of Error","Estimate","Margin Of Error","Estimate","Margin Of Error","Estimate","Margin Of Error"]
[null,"Total:",1812,193,878,119,1380,140,2895,133,632,73,920,96,1011,63,17955,443,672,112,1061,89,1844,139,3717,321,2397,206,318,54,5110,285,2168,194,2276,183,747,99,1636,129,1906,134,2627,196,1801,141,623,122,846,149,1200,89,795,103,624,90]
[null,"Family households:",1077,128,601,120,849,120,2419,105,437,58,689,86,784,72,10699,427,448,91,836,69,1332,111,2330,201,1334,220,198,40,3687,219,1655,158,1792,165,522,84,1054,99,1333,136,1858,180,1128,128,448,104,721,161,821,61,627,88,437,77]
[null,"Married-couple family",775,132,509,114,711,126,2216,117,368,54,629,94,642,86,7855,438,381,94,810,74,1158,106,1873,228,1064,244,160,34,3080,237,1392,147,1546,254,461,85,966,107,974,144,1411,196,853,155,409,101,654,152,609,86,543,93,356,67]
[null,"Other family:",302,127,92,43,138,58,203,75,69,37,60,28,142,70,2844,369,67,29,26,21,174,77,457,129,270,107,38,21,607,143,263,147,246,173,61,31,88,52,359,122,447,198,275,106,39,24,67,34,212,66,84,41,81,36]
[null,"Male householder, no spouse present",47,36,34,20,83,42,52,34,35,27,25,20,85,74,1159,233,34,20,17,17,59,40,201,94,104,70,10,8,227,100,79,59,129,130,20,25,37,29,173,86,205,138,142,83,7,7,31,23,94,45,43,33,28,19]
[null,"Female householder, no husband present",255,128,58,39,55,44,151,65,34,23,35,21,57,35,1685,309,33,20,9,14,115,68,256,104,166,88,28,18,380,127,184,130,117,90,41,22,51,43,186,104,242,115,133,82,32,24,36,25,118,56,41,22,53,30]
[null,"Nonfamily households:",735,209,277,78,531,148,476,107,195,55,231,65,227,75,7256,458,224,62,225,76,512,152,1387,350,1063,311,120,39,1423,263,513,170,484,201,225,61,582,142,573,124,769,175,673,178,175,85,125,42,379,80,168,54,187,67]
[null,"Householder living alone",571,189,221,71,379,132,387,92,173,56,194,56,119,42,5764,425,179,56,170,74,404,134,1219,354,769,275,88,36,991,230,336,152,290,149,177,57,507,133,416,109,568,154,525,167,146,88,83,35,333,79,101,40,146,56]
[null,"Householder not living alone",164,74,56,34,152,79,89,55,22,13,37,29,108,59,1492,236,45,31,55,27,108,63,168,85,294,155,32,15,432,126,177,122,194,120,48,33,75,47,157,81,201,97,148,75,29,16,42,25,46,31,67,35,41,31]
[]
[]
[]
[]
[]
[]
[]
[]
[]
[]
[]
[]
[]
[]
[]
[]
[]
[null,"B11002. HOUSEHOLD TYPE BY RELATIVES AND NONRELATIVES FOR POPULATION IN HOUSEHOLDS "]
[null,"Universe:  POPULATION IN HOUSEHOLDS"]
[null,"Data Set: 2018-2022 American Community Survey 5-Year Estimates"]
[]
[null,null,{"$f":"C5","v":"Allenstown"},null,"Andover",null,"Boscawen",null,"Bow",null,"Bradford",null,"Canterbury",null,"Chichester",null,"Concord",null,"Danbury",null,"Dunbarton",null,"Epsom",null,"Franklin",null,"Henniker",null,"Hill",null,"Hooksett",null,"Hopkinton",null,"Loudon",null,"Newbury",null,"New London",null,"Northfield",null,"Pembroke",null,"Pittsfield",null,"Salisbury",null,"Sutton",null,"Warner",null,"Webster",null,"Wilmot"]
[null,null,"Estimate","Margin Of Error","Estimate","Margin Of Error","Estimate","Margin Of Error","Estimate","Margin Of Error","Estimate","Margin Of Error","Estimate","Margin Of Error","Estimate","Margin Of Error","Estimate","Margin Of Error","Estimate","Margin Of Error","Estimate","Margin Of Error","Estimate","Margin Of Error","Estimate","Margin Of Error","Estimate","Margin Of Error","Estimate","Margin Of Error","Estimate","Margin Of Error","Estimate","Margin Of Error","Estimate","Margin Of Error","Estimate","Margin Of Error","Estimate","Margin Of Error","Estimate","Margin Of Error","Estimate","Margin Of Error","Estimate","Margin Of Error","Estimate","Margin Of Error","Estimate","Margin Of Error","Estimate","Margin Of Error","Estimate","Margin Of Error","Estimate","Margin Of Error"]
[null,"Total:",4650,22,2041,307,3514,45,8235,19,1565,172,2299,242,2679,28,41063,91,1491,261,3000,55,4733,29,8495,22,5478,31,839,182,13957,44,5925,20,5603,21,1911,255,3517,24,4847,27,7299,36,4084,18,1594,365,2254,451,2782,35,2078,315,1495,217]
[null,"In family households:",3750,250,1711,323,2791,232,7663,147,1335,177,2028,247,2340,125,31829,641,1226,249,2710,107,4118,183,6949,368,4076,424,687,182,11967,387,5242,240,4916,300,1620,266,2858,172,4011,224,6308,248,3266,216,1386,367,2079,467,2354,94,1843,303,1261,224]
[null,"In married-couple family:",2752,434,1403,289,2326,294,6968,280,1089,187,1839,268,1875,229,22866,1281,977,227,2553,144,3566,257,5476,549,3249,557,536,145,9685,657,4514,467,4145,638,1454,272,2629,229,2915,400,4841,621,2399,395,1218,354,1838,436,1696,230,1584,308,1000,191]
[null,"Relatives",2691,429,1393,290,2317,294,6920,281,1082,186,1809,266,1862,226,22649,1269,977,227,2553,144,3494,253,5447,541,3249,557,517,139,9685,657,4227,341,4138,637,1454,272,2629,229,2823,410,4601,595,2315,391,1206,353,1834,435,1649,221,1584,308,996,192]
[null,"Nonrelatives",61,67,10,12,9,14,48,42,7,7,30,26,13,15,217,122,0,12,0,12,72,57,29,35,0,17,19,19,0,19,287,367,7,18,0,12,0,12,92,67,240,159,84,92,12,11,4,6,47,40,0,12,4,6]
[null,"In male householder, no spouse present, family:",146,121,101,57,243,132,165,107,106,82,86,68,226,186,4151,956,126,77,88,94,186,116,627,345,294,212,24,19,841,395,268,191,463,470,43,49,97,75,459,234,524,326,468,312,16,14,135,118,369,217,128,103,89,56]
[null,"Relatives",135,108,91,53,206,109,149,95,75,54,82,65,203,172,3513,810,100,60,82,92,186,116,597,335,294,212,21,17,594,241,194,144,369,367,43,49,97,75,392,191,465,301,369,225,14,12,122,105,269,145,125,102,74,43]
[null,"Nonrelatives",11,18,10,12,37,34,16,22,31,29,4,13,23,28,638,226,26,19,6,8,0,12,30,38,0,17,3,4,247,194,74,63,94,112,0,12,0,12,67,59,59,56,99,100,2,3,13,22,100,121,3,5,15,17]
[null,"In female householder, no husband present, family:",852,425,207,147,222,197,530,241,140,98,103,57,239,172,4812,768,123,72,69,71,366,226,846,386,533,297,127,98,1441,642,460,349,308,249,123,63,132,108,637,320,943,445,399,270,152,109,106,81,289,130,131,65,172,97]
[null,"Relatives",730,363,174,122,163,157,509,233,137,97,90,49,216,160,4558,738,107,62,51,57,310,188,678,289,469,260,110,82,1255,548,460,349,277,224,113,58,110,92,623,317,779,345,358,234,119,86,102,80,264,114,99,47,160,92]
[null,"Nonrelatives",122,94,33,30,59,61,21,22,3,4,13,12,23,23,254,117,16,16,18,25,56,48,168,124,64,60,17,18,186,139,0,17,31,51,10,11,22,23,14,23,164,155,41,45,33,27,4,6,25,24,32,21,12,12]
[null,"In nonfamily households",900,249,330,94,723,229,572,146,230,62,271,85,339,125,9234,648,265,81,290,91,615,180,1546,365,1402,426,152,46,1990,394,683,243,687,298,291,88,659,165,836,223,991,244,818,217,208,88,175,65,428,93,235,79,234,87]
[]
[]
[]
[null,"Calculated Average  Household Size by Household Type"]
[null,"Universe:  POPULATION IN HOUSEHOLDS"]
[null,"Data Set: 2018-2022 American Community Survey 5-Year Estimates"]
[]
[null,null,"Allenstown",null,"Andover",null,"Boscawen",null,"Bow",null,"Bradford",null,"Canterbury",null,"Chichester",null,"Concord",null,"Danbury",null,"Dunbarton",null,"Epsom",null,"Franklin",null,"Henniker",null,"Hill",null,"Hooksett",null,"Hopkinton",null,"Loudon",null,"Newbury",null,"New London",null,"Northfield",null,"Pembroke",null,"Pittsfield",null,"Salisbury",null,"Sutton",null,"Warner",null,"Webster",null,"Wilmot"]
[null," ","Estimate","Margin of Error","Estimate","Margin of Error","Estimate","Margin of Error","Estimate","Margin of Error","Estimate","Margin of Error","Estimate","Margin of Error","Estimate","Margin of Error","Estimate","Margin of Error","Estimate","Margin of Error","Estimate","Margin of Error","Estimate","Margin of Error","Estimate","Margin of Error","Estimate","Margin of Error","Estimate","Margin of Error","Estimate","Margin of Error","Estimate","Margin of Error","Estimate","Margin of Error","Estimate","Margin of Error","Estimate","Margin of Error","Estimate","Margin of Error","Estimate","Margin of Error","Estimate","Margin of Error","Estimate","Margin of Error","Estimate","Margin of Error","Estimate","Margin of Error","Estimate","Margin of Error","Estimate","Margin of Error"]
[null,"Total:",{"$f":"C39/C7","v":2.5662251655629138},{"$f":"D73","v":0.27},{"$f":"E39/E7","v":2.3246013667425967},{"$f":"(SQRT((F$39^2)+((E$39^2)/(E$7^2))*(F$7^2)))/E$7","v":0.47066680845735914},{"$f":"G39/G7","v":2.5463768115942029},{"$f":"(SQRT((H$39^2)+((G$39^2)/(G$7^2))*(H$7^2)))/G$7","v":0.26037804276733328},{"$f":"I39/I7","v":2.8445595854922279},{"$f":"(SQRT((J$39^2)+((I$39^2)/(I$7^2))*(J$7^2)))/I$7","v":0.13084740091191702},{"$f":"K39/K7","v":2.4762658227848102},{"$f":"(SQRT((L$39^2)+((K$39^2)/(K$7^2))*(L$7^2)))/K$7","v":0.39481210611637263},{"$f":"M39/M7","v":2.4989130434782609},{"$f":"(SQRT((N$39^2)+((M$39^2)/(M$7^2))*(N$7^2)))/M$7","v":0.37038579605030275},{"$f":"O39/O7","v":2.6498516320474779},{"$f":"(SQRT((P$39^2)+((O$39^2)/(O$7^2))*(P$7^2)))/O$7","v":0.16743076836358162},{"$f":"Q39/Q7","v":2.2869952659426342},{"$f":"(SQRT((R$39^2)+((Q$39^2)/(Q$7^2))*(R$7^2)))/Q$7","v":5.6653717465501054E-2},{"$f":"S39/S7","v":2.21875},{"$f":"(SQRT((T$39^2)+((S$39^2)/(S$7^2))*(T$7^2)))/S$7","v":0.53627874115584984},{"$f":"U39/U7","v":2.827521206409048},{"$f":"(SQRT((V$39^2)+((U$39^2)/(U$7^2))*(V$7^2)))/U$7","v":0.24278004105216447},{"$f":"W39/W7","v":2.5667028199566162},{"$f":"(SQRT((X$39^2)+((W$39^2)/(W$7^2))*(X$7^2)))/W$7","v":0.19411517160364342},{"$f":"Y39/Y7","v":2.2854452515469466},{"$f":"(SQRT((Z$39^2)+((Y$39^2)/(Y$7^2))*(Z$7^2)))/Y$7","v":0.19745970382188702},{"$f":"AA39/AA7","v":2.2853566958698375},{"$f":"(SQRT((AB$39^2)+((AA$39^2)/(AA$7^2))*(AB$7^2)))/AA$7","v":0.19683062763164952},{"$f":"AC39/AC7","v":2.6383647798742138},{"$f":"(SQRT((AD$39^2)+((AC$39^2)/(AC$7^2))*(AD$7^2)))/AC$7","v":0.72683143588443921},{"$f":"AE39/AE7","v":2.731311154598826},{"$f":"(SQRT((AF$39^2)+((AE$39^2)/(AE$7^2))*(AF$7^2)))/AE$7","v":0.15257656088079255},{"$f":"AG39/AG7","v":2.7329335793357932},{"$f":"(SQRT((AH$39^2)+((AG$39^2)/(AG$7^2))*(AH$7^2)))/AG$7","v":0.24472610893950211},{"$f":"AI39/AI7","v":2.461775043936731},{"$f":"(SQRT((AJ$39^2)+((AI$39^2)/(AI$7^2))*(AJ$7^2)))/AI$7","v":0.19815202915460189},{"$f":"AK39/AK7","v":2.5582329317269075},{"$f":"(SQRT((AL$39^2)+((AK$39^2)/(AK$7^2))*(AL$7^2)))/AK$7","v":0.48112418276110114},{"$f":"AM39/AM7","v":2.149755501222494},{"$f":"(SQRT((AN$39^2)+((AM$39^2)/(AM$7^2))*(AN$7^2)))/AM$7","v":0.17014366723299457},{"$f":"AO39/AO7","v":2.5430220356768101},{"$f":"(SQRT((AP$39^2)+((AO$39^2)/(AO$7^2))*(AP$7^2)))/AO$7","v":0.17934571431224952},{"$f":"AQ39/AQ7","v":2.778454510848877},{"$f":"(SQRT((AR$39^2)+((AQ$39^2)/(AQ$7^2))*(AR$7^2)))/AQ$7","v":0.20775245571127415},{"$f":"AS39/AS7","v":2.2676290949472517},{"$f":"(SQRT((AT$39^2)+((AS$39^2)/(AS$7^2))*(AT$7^2)))/AS$7","v":0.17781342034960004},{"$f":"AU39/AU7","v":2.5585874799357944},{"$f":"(SQRT((AV$39^2)+((AU$39^2)/(AU$7^2))*(AV$7^2)))/AU$7","v":0.77090204572901966},{"$f":"AW39/AW7","v":2.6643026004728134},{"$f":"(SQRT((AX$39^2)+((AW$39^2)/(AW$7^2))*(AX$7^2)))/AW$7","v":0.7101992683832351},{"$f":"AY39/AY7","v":2.3183333333333334},{"$f":"(SQRT((AZ$39^2)+((AY$39^2)/(AY$7^2))*(AZ$7^2)))/AY$7","v":0.17439927980993875},{"$f":"BA39/BA7","v":2.6138364779874212},{"$f":"(SQRT((BB$39^2)+((BA$39^2)/(BA$7^2))*(BB$7^2)))/BA$7","v":0.52122724177169522},{"$f":"BC39/BC7","v":2.3958333333333335},{"$f":"(SQRT((BD$39^2)+((BC$39^2)/(BC$7^2))*(BD$7^2)))/BC$7","v":0.49024617993456926}]
[null,"In family households:",{"$f":"C40/C8","v":3.4818941504178271},{"$f":"(SQRT((D$40^2)+((C$40^2)/(C$8^2))*(D$8^2)))/C$8","v":0.47447687297371782},{"$f":"E40/E8","v":2.8469217970049918},{"$f":"(SQRT((F$40^2)+((E$40^2)/(E$8^2))*(F$8^2)))/E$8","v":0.78227856978883747},{"$f":"G40/G8","v":3.2873969375736158},{"$f":"(SQRT((H$40^2)+((G$40^2)/(G$8^2))*(H$8^2)))/G$8","v":0.5390471842585256},{"$f":"I40/I8","v":3.1678379495659361},{"$f":"(SQRT((J$40^2)+((I$40^2)/(I$8^2))*(J$8^2)))/I$8","v":0.15033397059455661},{"$f":"K40/K8","v":3.054919908466819},{"$f":"(SQRT((L$40^2)+((K$40^2)/(K$8^2))*(L$8^2)))/K$8","v":0.57310503522672773},{"$f":"M40/M8","v":2.9433962264150941},{"$f":"(SQRT((N$40^2)+((M$40^2)/(M$8^2))*(N$8^2)))/M$8","v":0.5133140245439255},{"$f":"O40/O8","v":2.9846938775510203},{"$f":"(SQRT((P$40^2)+((O$40^2)/(O$8^2))*(P$8^2)))/O$8","v":0.31710254155636969},{"$f":"Q40/Q8","v":2.9749509299934571},{"$f":"(SQRT((R$40^2)+((Q$40^2)/(Q$8^2))*(R$8^2)))/Q$8","v":0.13299074767482497},{"$f":"S40/S8","v":2.7366071428571428},{"$f":"(SQRT((T$40^2)+((S$40^2)/(S$8^2))*(T$8^2)))/S$8","v":0.78607427413186703},{"$f":"U40/U8","v":3.2416267942583734},{"$f":"(SQRT((V$40^2)+((U$40^2)/(U$8^2))*(V$8^2)))/U$8","v":0.2965886715600517},{"$f":"W40/W8","v":3.0915915915915915},{"$f":"(SQRT((X$40^2)+((W$40^2)/(W$8^2))*(X$8^2)))/W$8","v":0.29197579969982629},{"$f":"Y40/Y8","v":2.9824034334763949},{"$f":"(SQRT((Z$40^2)+((Y$40^2)/(Y$8^2))*(Z$8^2)))/Y$8","v":0.30189098577929696},{"$f":"AA40/AA8","v":3.055472263868066},{"$f":"(SQRT((AB$40^2)+((AA$40^2)/(AA$8^2))*(AB$8^2)))/AA$8","v":0.59576769166758681},{"$f":"AC40/AC8","v":3.4696969696969697},{"$f":"(SQRT((AD$40^2)+((AC$40^2)/(AC$8^2))*(AD$8^2)))/AC$8","v":1.1559598265338289},{"$f":"AE40/AE8","v":3.2457282343368594},{"$f":"(SQRT((AF$40^2)+((AE$40^2)/(AE$8^2))*(AF$8^2)))/AE$8","v":0.21951095942791538},{"$f":"AG40/AG8","v":3.1673716012084592},{"$f":"(SQRT((AH$40^2)+((AG$40^2)/(AG$8^2))*(AH$8^2)))/AG$8","v":0.33535827029140902},{"$f":"AI40/AI8","v":2.7433035714285716},{"$f":"(SQRT((AJ$40^2)+((AI$40^2)/(AI$8^2))*(AJ$8^2)))/AI$8","v":0.30303321473416983},{"$f":"AK40/AK8","v":3.103448275862069},{"$f":"(SQRT((AL$40^2)+((AK$40^2)/(AK$8^2))*(AL$8^2)))/AK$8","v":0.71349570125747308},{"$f":"AM40/AM8","v":2.7115749525616697},{"$f":"(SQRT((AN$40^2)+((AM$40^2)/(AM$8^2))*(AN$8^2)))/AM$8","v":0.30248728578517198},{"$f":"AO40/AO8","v":3.0090022505626406},{"$f":"(SQRT((AP$40^2)+((AO$40^2)/(AO$8^2))*(AP$8^2)))/AO$8","v":0.34997719068017624},{"$f":"AQ40/AQ8","v":3.3950484391819162},{"$f":"(SQRT((AR$40^2)+((AQ$40^2)/(AQ$8^2))*(AR$8^2)))/AQ$8","v":0.35495874909471192},{"$f":"AS40/AS8","v":2.895390070921986},{"$f":"(SQRT((AT$40^2)+((AS$40^2)/(AS$8^2))*(AT$8^2)))/AS$8","v":0.38028476047972848},{"$f":"AU40/AU8","v":3.09375},{"$f":"(SQRT((AV$40^2)+((AU$40^2)/(AU$8^2))*(AV$8^2)))/AU$8","v":1.0894413642545231},{"$f":"AW40/AW8","v":2.883495145631068},{"$f":"(SQRT((AX$40^2)+((AW$40^2)/(AW$8^2))*(AX$8^2)))/AW$8","v":0.91330225731407488},{"$f":"AY40/AY8","v":2.8672350791717416},{"$f":"(SQRT((AZ$40^2)+((AY$40^2)/(AY$8^2))*(AZ$8^2)))/AY$8","v":0.24185264315098393},{"$f":"BA40/BA8","v":2.9393939393939394},{"$f":"(SQRT((BB$40^2)+((BA$40^2)/(BA$8^2))*(BB$8^2)))/BA$8","v":0.63539645904836606},{"$f":"BC40/BC8","v":2.8855835240274601},{"$f":"(SQRT((BD$40^2)+((BC$40^2)/(BC$8^2))*(BD$8^2)))/BC$8","v":0.72198288848411263}]
[null,"In nonfamily households",{"$f":"C50/C13","v":1.2244897959183674},{"$f":"(SQRT((D$50^2)+((C$50^2)/(C$13^2))*(D$13^2)))/C$13","v":0.48580233342381313},{"$f":"E50/E13","v":1.1913357400722022},{"$f":"(SQRT((F$50^2)+((E$50^2)/(E$13^2))*(F$13^2)))/E$13","v":0.47717526994510884},{"$f":"G50/G13","v":1.3615819209039548},{"$f":"(SQRT((H$50^2)+((G$50^2)/(G$13^2))*(H$13^2)))/G$13","v":0.57446185900266711},{"$f":"I50/I13","v":1.2016806722689075},{"$f":"(SQRT((J$50^2)+((I$50^2)/(I$13^2))*(J$13^2)))/I$13","v":0.40871346975111561},{"$f":"K50/K13","v":1.1794871794871795},{"$f":"(SQRT((L$50^2)+((K$50^2)/(K$13^2))*(L$13^2)))/K$13","v":0.46017890269140738},{"$f":"M50/M13","v":1.1731601731601731},{"$f":"(SQRT((N$50^2)+((M$50^2)/(M$13^2))*(N$13^2)))/M$13","v":0.49433908171413432},{"$f":"O50/O13","v":1.4933920704845816},{"$f":"(SQRT((P$50^2)+((O$50^2)/(O$13^2))*(P$13^2)))/O$13","v":0.73937960112601619},{"$f":"Q50/Q13","v":1.2726019845644982},{"$f":"(SQRT((R$50^2)+((Q$50^2)/(Q$13^2))*(R$13^2)))/Q$13","v":0.12011602566936809},{"$f":"S50/S13","v":1.1830357142857142},{"$f":"(SQRT((T$50^2)+((S$50^2)/(S$13^2))*(T$13^2)))/S$13","v":0.48783349192352132},{"$f":"U50/U13","v":1.288888888888889},{"$f":"(SQRT((V$50^2)+((U$50^2)/(U$13^2))*(V$13^2)))/U$13","v":0.59423220907750895},{"$f":"W50/W13","v":1.201171875},{"$f":"(SQRT((X$50^2)+((W$50^2)/(W$13^2))*(X$13^2)))/W$13","v":0.50075767989043574},{"$f":"Y50/Y13","v":1.1146359048305696},{"$f":"(SQRT((Z$50^2)+((Y$50^2)/(Y$13^2))*(Z$13^2)))/Y$13","v":0.38518219993603353},{"$f":"AA50/AA13","v":1.3189087488240827},{"$f":"(SQRT((AB$50^2)+((AA$50^2)/(AA$13^2))*(AB$13^2)))/AA$13","v":0.55632623666839631},{"$f":"AC50/AC13","v":1.2666666666666666},{"$f":"(SQRT((AD$50^2)+((AC$50^2)/(AC$13^2))*(AD$13^2)))/AC$13","v":0.56250679008247439},{"$f":"AE50/AE13","v":1.3984539704848911},{"$f":"(SQRT((AF$50^2)+((AE$50^2)/(AE$13^2))*(AF$13^2)))/AE$13","v":0.37876874401001565},{"$f":"AG50/AG13","v":1.331384015594542},{"$f":"(SQRT((AH$50^2)+((AG$50^2)/(AG$13^2))*(AH$13^2)))/AG$13","v":0.64732806631369022},{"$f":"AI50/AI13","v":1.4194214876033058},{"$f":"(SQRT((AJ$50^2)+((AI$50^2)/(AI$13^2))*(AJ$13^2)))/AI$13","v":0.85238782613719544},{"$f":"AK50/AK13","v":1.2933333333333332},{"$f":"(SQRT((AL$50^2)+((AK$50^2)/(AK$13^2))*(AL$13^2)))/AK$13","v":0.52527538775073057},{"$f":"AM50/AM13","v":1.1323024054982818},{"$f":"(SQRT((AN$50^2)+((AM$50^2)/(AM$13^2))*(AN$13^2)))/AM$13","v":0.39585123276657386},{"$f":"AO50/AO13","v":1.4589877835951135},{"$f":"(SQRT((AP$50^2)+((AO$50^2)/(AO$13^2))*(AP$13^2)))/AO$13","v":0.50114631818571553},{"$f":"AQ50/AQ13","v":1.2886866059817945},{"$f":"(SQRT((AR$50^2)+((AQ$50^2)/(AQ$13^2))*(AR$13^2)))/AQ$13","v":0.43206494557301961},{"$f":"AS50/AS13","v":1.2154531946508171},{"$f":"(SQRT((AT$50^2)+((AS$50^2)/(AS$13^2))*(AT$13^2)))/AS$13","v":0.45531283866920391},{"$f":"AU50/AU13","v":1.1885714285714286},{"$f":"(SQRT((AV$50^2)+((AU$50^2)/(AU$13^2))*(AV$13^2)))/AU$13","v":0.76560281160633492},{"$f":"AW50/AW13","v":1.4},{"$f":"(SQRT((AX$50^2)+((AW$50^2)/(AW$13^2))*(AX$13^2)))/AW$13","v":0.70119623501556261},{"$f":"AY50/AY13","v":1.129287598944591},{"$f":"(SQRT((AZ$50^2)+((AY$50^2)/(AY$13^2))*(AZ$13^2)))/AY$13","v":0.34210210292559862},{"$f":"BA50/BA13","v":1.3988095238095237},{"$f":"(SQRT((BB$50^2)+((BA$50^2)/(BA$13^2))*(BB$13^2)))/BA$13","v":0.65059943504541651},{"$f":"BC50/BC13","v":1.2513368983957218},{"$f":"(SQRT((BD$50^2)+((BC$50^2)/(BC$13^2))*(BD$13^2)))/BC$13","v":0.64610956722707191}]
[]
[]
[]
[null,"B25010. AVERAGE HOUSEHOLD SIZE OF OCCUPIED HOUSING UNITS BY TENURE"]
[null,"Universe:  OCCUPIED HOUSING UNITS"]
[null,"Data Set: 2018-2022 American Community Survey 5-Year Estimates"]
[]
[null,null,"Allenstown",null,"Andover",null,"Boscawen",null,"Bow",null,"Bradford",null,"Canterbury",null,"Chichester",null,"Concord",null,"Danbury",null,"Dunbarton",null,"Epsom",null,"Franklin",null,"Henniker",null,"Hill",null,"Hooksett",null,"Hopkinton",null,"Loudon",null,"Newbury",null,"New London",null,"Northfield",null,"Pembroke",null,"Pittsfield",null,"Salisbury",null,"Sutton",null,"Warner",null,"Webster",null,"Wilmot"]
[null," ","Estimate","Margin of Error","Estimate","Margin of Error","Estimate","Margin of Error","Estimate","Margin of Error","Estimate","Margin of Error","Estimate","Margin of Error","Estimate","Margin of Error","Estimate","Margin of Error","Estimate","Margin of Error","Estimate","Margin of Error","Estimate","Margin of Error","Estimate","Margin of Error","Estimate","Margin of Error","Estimate","Margin of Error","Estimate","Margin of Error","Estimate","Margin of Error","Estimate","Margin of Error","Estimate","Margin of Error","Estimate","Margin of Error","Estimate","Margin of Error","Estimate","Margin of Error","Estimate","Margin of Error","Estimate","Margin of Error","Estimate","Margin of Error","Estimate","Margin of Error","Estimate","Margin of Error","Estimate","Margin of Error"]
[null,"Average household size --"]
[null,"Total:",2.57,0.27,2.3199999999999998,0.2,2.5499999999999998,0.25,2.84,0.13,2.48,0.25,2.5,0.18,2.65,0.17,2.29,0.06,2.2200000000000002,0.26,2.83,0.22,2.57,0.19,2.29,0.2,2.29,0.2,2.64,0.39,2.73,0.15,2.73,0.24,2.46,0.2,2.56,0.25,2.15,0.17,2.54,0.18,2.78,0.21,2.27,0.18,2.56,0.32,2.66,0.27,2.3199999999999998,0.17,2.61,0.22,2.4,0.22]
[null,"In family households:",2.72,0.28999999999999998,2.42,0.21,2.8,0.32,2.96,0.15,2.48,0.23,2.5099999999999998,0.19,2.62,0.17,2.4900000000000002,0.09,2.14,0.23,2.86,0.23,2.7,0.2,2.35,0.25,2.68,0.3,2.7,0.42,2.85,0.17,2.79,0.28000000000000003,2.5499999999999998,0.21,2.76,0.28000000000000003,2.17,0.18,2.73,0.23,2.94,0.26,2.56,0.24,2.4900000000000002,0.33,2.66,0.28000000000000003,2.57,0.22,2.66,0.23,2.4700000000000002,0.23]
[null,"In nonfamily households",1.96,0.51,1.39,0.28000000000000003,1.73,0.35,1.75,0.39,2.4300000000000002,1.18,2.36,1.03,3.08,0.57999999999999996,2.0099999999999998,0.1,3.3,1.1499999999999999,1.95,0.46,1.52,0.34,2.19,0.33,1.57,0.27,1.65,1.29,2.2799999999999998,0.28999999999999998,2.33,0.66,1.93,0.37,1.1499999999999999,0.15,1.94,0.45,2.0099999999999998,0.3,2.25,0.5,1.65,0.35,4.3499999999999996,1.73,2.66,1.02,1.76,0.27,1.59,0.3,2.15,0.54]
[]
[]
[]
[]
[]
[]
[null,"B11001. HOUSEHOLD TYPE (INCLUDING LIVING ALONE)"]
[null,"Universe:  HOUSEHOLDS"]
[null,"Data Set: 2013-2017 American Community Survey 5-Year Estimates"]
[]
[null,null,"Allenstown",null,"Andover",null,"Boscawen",null,"Bow",null,"Bradford",null,"Canterbury",null,"Chichester",null,"Concord",null,"Danbury",null,"Dunbarton",null,"Epsom",null,"Franklin",null,"Henniker",null,"Hill",null,"Hooksett",null,"Hopkinton",null,"Loudon",null,"Newbury",null,"New London",null,"Northfield",null,"Pembroke",null,"Pittsfield",null,"Salisbury",null,"Sutton",null,"Warner",null,"Webster",null,"Wilmot"]
[null,null,"Estimate","Margin Of Error","Estimate","Margin Of Error","Estimate","Margin Of Error","Estimate","Margin Of Error","Estimate","Margin Of Error","Estimate","Margin Of Error","Estimate","Margin Of Error","Estimate","Margin Of Error","Estimate","Margin Of Error","Estimate","Margin Of Error","Estimate","Margin Of Error","Estimate","Margin Of Error","Estimate","Margin Of Error","Estimate","Margin Of Error","Estimate","Margin Of Error","Estimate","Margin Of Error","Estimate","Margin Of Error","Estimate","Margin Of Error","Estimate","Margin Of Error","Estimate","Margin Of Error","Estimate","Margin Of Error","Estimate","Margin Of Error","Estimate","Margin Of Error","Estimate","Margin Of Error","Estimate","Margin Of Error","Estimate","Margin Of Error","Estimate","Margin Of Error"]
[null,"Total:",1744,113,1076,76,1251,124,2747,117,662,68,940,63,967,54,17142,426,560,77,977,47,1792,132,3557,213,1666,144,392,45,5174,184,2137,105,2071,146,849,75,1627,158,1833,110,2639,149,1653,112,516,66,783,94,1051,81,786,73,655,59]
[null,"Family households:",1121,86,687,78,848,114,2266,117,494,64,629,73,748,55,10073,326,356,62,818,43,1249,98,2087,133,1117,109,304,46,3661,193,1592,110,1554,147,616,86,973,105,1342,109,1996,159,969,88,375,56,570,88,726,53,567,66,418,56]
[null,"Married-couple family",850,105,604,78,641,111,2040,116,425,65,554,68,657,62,7365,336,266,56,752,50,1041,101,1397,153,940,125,253,46,3109,213,1437,133,1388,139,555,84,820,115,959,132,1628,156,669,110,322,52,487,78,626,58,455,70,389,54]
[null,"Other family:",271,80,83,35,207,86,226,80,69,28,75,33,91,46,2708,304,90,40,66,33,208,84,690,123,177,93,51,23,552,191,155,79,166,101,61,33,153,63,383,123,368,125,300,106,53,26,83,42,100,44,112,43,29,22]
[null,"Male householder, no wife present",97,53,20,17,50,30,81,47,36,21,46,27,32,25,701,164,41,31,39,22,84,64,266,105,62,55,12,9,246,140,41,48,45,53,23,17,16,20,212,94,177,88,88,46,33,23,27,23,4,6,52,33,13,15]
[null,"Female householder, no husband present",174,71,63,33,157,82,145,61,33,18,29,19,59,45,2007,277,49,27,27,20,124,66,424,128,115,66,39,22,306,120,114,64,121,81,38,25,137,60,171,88,191,99,212,85,20,12,56,38,96,43,60,29,16,15]
[null,"Nonfamily households:",623,136,389,82,403,109,481,104,168,44,311,60,219,62,7069,450,204,56,159,36,543,148,1470,231,549,161,88,25,1513,205,545,121,517,170,233,58,654,161,491,136,643,156,684,137,141,44,213,62,325,72,219,54,237,55]
[null,"Householder living alone",491,107,319,79,315,98,441,97,146,42,261,57,148,51,5578,380,150,49,119,34,445,131,1108,216,359,126,61,24,1129,172,392,109,396,148,194,56,563,146,322,113,411,120,513,142,110,42,183,60,231,75,185,53,187,55]
[null,"Householder not living alone",132,75,70,48,88,56,40,31,22,14,50,31,71,41,1491,227,54,29,40,20,98,50,362,145,190,96,27,14,384,147,153,93,121,84,39,21,91,57,169,79,232,97,171,79,31,17,30,22,94,41,34,21,50,28]
[]
[]
[]
[]
[]
[]
[]
[]
[]
[]
[]
[]
[]
[]
[]
[]
[]
[null,"B11002. HOUSEHOLD TYPE BY RELATIVES AND NONRELATIVES FOR POPULATION IN HOUSEHOLDS "]
[null,"Universe:  POPULATION IN HOUSEHOLDS"]
[null,"Data Set: 2013-2017 American Community Survey 5-Year Estimates"]
[]
[null,null,"Allenstown",null,"Andover",null,"Boscawen",null,"Bow",null,"Bradford",null,"Canterbury",null,"Chichester",null,"Concord",null,"Danbury",null,"Dunbarton",null,"Epsom",null,"Franklin",null,"Henniker",null,"Hill",null,"Hooksett",null,"Hopkinton",null,"Loudon",null,"Newbury",null,"New London",null,"Northfield",null,"Pembroke",null,"Pittsfield",null,"Salisbury",null,"Sutton",null,"Warner",null,"Webster",null,"Wilmot"]
[null,null,"Estimate","Margin Of Error","Estimate","Margin Of Error","Estimate","Margin Of Error","Estimate","Margin Of Error","Estimate","Margin Of Error","Estimate","Margin Of Error","Estimate","Margin Of Error","Estimate","Margin Of Error","Estimate","Margin Of Error","Estimate","Margin Of Error","Estimate","Margin Of Error","Estimate","Margin Of Error","Estimate","Margin Of Error","Estimate","Margin Of Error","Estimate","Margin Of Error","Estimate","Margin Of Error","Estimate","Margin Of Error","Estimate","Margin Of Error","Estimate","Margin Of Error","Estimate","Margin Of Error","Estimate","Margin Of Error","Estimate","Margin Of Error","Estimate","Margin Of Error","Estimate","Margin Of Error","Estimate","Margin Of Error","Estimate","Margin Of Error","Estimate","Margin Of Error"]
[null,"Total:",4291,32,2694,277,3430,226,7692,22,1680,186,2234,248,2581,30,39722,499,1281,174,2788,21,4541,113,8258,112,4372,112,946,132,13186,190,5614,16,5403,15,1892,203,3478,172,4769,58,7137,43,4055,30,1262,164,1932,270,2744,66,1859,185,1468,176]
[null,"In family households:",3501,208,2118,263,2861,314,7159,125,1485,187,1870,273,2267,115,30776,730,1022,175,2584,51,3893,179,6423,318,3513,294,827,134,11176,415,4875,212,4755,232,1616,237,2703,236,4090,199,6124,338,3196,181,1090,162,1687,266,2300,115,1591,189,1161,182]
[null,"In married-couple family:",2635,301,1848,267,2216,335,6534,221,1269,193,1627,258,1957,179,22522,1008,742,158,2342,136,3206,282,4136,433,2970,387,652,117,9402,658,4303,399,4254,366,1435,228,2236,294,2981,407,5145,417,2136,391,926,151,1470,247,1973,175,1264,187,1095,183]
[null,"Relatives",2597,284,1835,266,2197,332,6450,226,1246,191,1564,240,1931,178,22400,1004,722,154,2309,138,3177,284,4074,428,2921,376,649,117,9325,659,4279,399,4030,396,1435,228,2236,294,2949,402,5015,401,2121,384,922,149,1470,247,1945,178,1256,187,1091,183]
[null,"Nonrelatives",38,46,13,14,19,24,84,68,23,20,63,43,26,23,122,63,20,29,33,32,29,31,62,63,49,43,3,4,77,62,24,27,224,194,0,11,0,11,32,37,130,123,15,25,4,6,0,11,28,33,8,8,4,5]
[null,"In male householder, no wife present, family:",291,158,52,43,131,81,211,128,95,51,152,92,130,103,2333,612,116,77,130,76,260,185,975,440,156,133,42,31,861,546,171,199,125,152,63,50,52,60,627,314,501,264,407,258,103,67,84,69,8,12,152,86,28,32]
[null,"Relatives",208,114,40,33,124,76,202,121,87,48,131,79,101,81,1900,492,105,67,118,72,231,167,857,381,149,128,35,26,824,538,171,199,125,152,63,50,52,60,552,256,452,233,229,122,99,66,57,47,8,12,138,83,28,32]
[null,"Nonrelatives",83,76,12,12,7,12,9,15,8,8,21,18,29,24,433,202,11,17,12,16,29,32,118,83,7,11,7,10,37,33,0,16,0,16,0,11,0,11,75,75,49,53,178,173,4,7,27,30,0,11,14,13,0,11]
[null,"In female householder, no husband present, family:",575,230,218,114,514,287,414,168,121,80,91,64,180,150,5921,840,164,81,112,77,427,229,1312,366,387,270,133,100,913,360,401,268,376,255,118,76,415,175,482,243,478,247,653,271,61,36,133,94,319,144,175,96,38,31]
[null,"Relatives",521,207,198,109,484,279,405,161,108,67,86,60,157,121,5551,793,143,69,83,57,385,217,1179,335,377,269,115,83,848,325,297,170,336,232,110,68,373,157,448,231,466,239,653,271,53,31,133,94,262,112,169,95,38,31]
[null,"Nonrelatives",54,48,20,17,30,28,9,14,13,15,5,7,23,32,370,115,21,20,29,23,42,66,133,87,10,17,18,20,65,53,104,122,40,62,8,12,42,40,34,30,12,19,0,11,8,7,0,11,57,40,6,6,0,11]
[null,"In nonfamily households",790,204,576,206,569,210,533,124,195,52,364,79,314,111,8946,673,259,74,204,49,648,180,1835,318,859,270,119,31,2010,390,739,212,648,230,276,69,775,210,679,198,1013,337,859,177,172,51,245,72,444,98,268,74,307,81]
[]
[]
[]
[null,"Calculated Average  Household Size by Household Type"]
[null,"Universe:  POPULATION IN HOUSEHOLDS"]
[null,"Data Set: 2013-2017 American Community Survey 5-Year Estimates"]
[]
[null,null,"Allenstown",null,"Andover",null,"Boscawen",null,"Bow",null,"Bradford",null,"Canterbury",null,"Chichester",null,"Concord",null,"Danbury",null,"Dunbarton",null,"Epsom",null,"Franklin",null,"Henniker",null,"Hill",null,"Hooksett",null,"Hopkinton",null,"Loudon",null,"Newbury",null,"New London",null,"Northfield",null,"Pembroke",null,"Pittsfield",null,"Salisbury",null,"Sutton",null,"Warner",null,"Webster",null,"Wilmot"]
[null," ","Estimate","Margin of Error","Estimate","Margin of Error","Estimate","Margin of Error","Estimate","Margin of Error","Estimate","Margin of Error","Estimate","Margin of Error","Estimate","Margin of Error","Estimate","Margin of Error","Estimate","Margin of Error","Estimate","Margin of Error","Estimate","Margin of Error","Estimate","Margin of Error","Estimate","Margin of Error","Estimate","Margin of Error","Estimate","Margin of Error","Estimate","Margin of Error","Estimate","Margin of Error","Estimate","Margin of Error","Estimate","Margin of Error","Estimate","Margin of Error","Estimate","Margin of Error","Estimate","Margin of Error","Estimate","Margin of Error","Estimate","Margin of Error","Estimate","Margin of Error","Estimate","Margin of Error","Estimate","Margin of Error"]
[null,"Total:",{"$f":"C120/C88","v":2.460435779816514},{"$f":"D154","v":0.16},{"$f":"E120/E88","v":2.503717472118959},{"$f":"(SQRT((F$39^2)+((E$39^2)/(E$7^2))*(F$7^2)))/E$7","v":0.47066680845735914},{"$f":"G120/G88","v":2.7418065547561952},{"$f":"(SQRT((H$39^2)+((G$39^2)/(G$7^2))*(H$7^2)))/G$7","v":0.26037804276733328},{"$f":"I120/I88","v":2.8001456133964324},{"$f":"(SQRT((J$39^2)+((I$39^2)/(I$7^2))*(J$7^2)))/I$7","v":0.13084740091191702},{"$f":"K120/K88","v":2.5377643504531724},{"$f":"(SQRT((L$39^2)+((K$39^2)/(K$7^2))*(L$7^2)))/K$7","v":0.39481210611637263},{"$f":"M120/M88","v":2.3765957446808512},{"$f":"(SQRT((N$39^2)+((M$39^2)/(M$7^2))*(N$7^2)))/M$7","v":0.37038579605030275},{"$f":"O120/O88","v":2.6690796277145812},{"$f":"(SQRT((P$39^2)+((O$39^2)/(O$7^2))*(P$7^2)))/O$7","v":0.16743076836358162},{"$f":"Q120/Q88","v":2.3172325282930815},{"$f":"(SQRT((R$39^2)+((Q$39^2)/(Q$7^2))*(R$7^2)))/Q$7","v":5.6653717465501054E-2},{"$f":"S120/S88","v":2.2875000000000001},{"$f":"(SQRT((T$39^2)+((S$39^2)/(S$7^2))*(T$7^2)))/S$7","v":0.53627874115584984},{"$f":"U120/U88","v":2.8536335721596724},{"$f":"(SQRT((V$39^2)+((U$39^2)/(U$7^2))*(V$7^2)))/U$7","v":0.24278004105216447},{"$f":"W120/W88","v":2.5340401785714284},{"$f":"(SQRT((X$39^2)+((W$39^2)/(W$7^2))*(X$7^2)))/W$7","v":0.19411517160364342},{"$f":"Y120/Y88","v":2.3216193421422546},{"$f":"(SQRT((Z$39^2)+((Y$39^2)/(Y$7^2))*(Z$7^2)))/Y$7","v":0.19745970382188702},{"$f":"AA120/AA88","v":2.624249699879952},{"$f":"(SQRT((AB$39^2)+((AA$39^2)/(AA$7^2))*(AB$7^2)))/AA$7","v":0.19683062763164952},{"$f":"AC120/AC88","v":2.4132653061224492},{"$f":"(SQRT((AD$39^2)+((AC$39^2)/(AC$7^2))*(AD$7^2)))/AC$7","v":0.72683143588443921},{"$f":"AE120/AE88","v":2.54851178971782},{"$f":"(SQRT((AF$39^2)+((AE$39^2)/(AE$7^2))*(AF$7^2)))/AE$7","v":0.15257656088079255},{"$f":"AG120/AG88","v":2.6270472625175478},{"$f":"(SQRT((AH$39^2)+((AG$39^2)/(AG$7^2))*(AH$7^2)))/AG$7","v":0.24472610893950211},{"$f":"AI120/AI88","v":2.6088845968131338},{"$f":"(SQRT((AJ$39^2)+((AI$39^2)/(AI$7^2))*(AJ$7^2)))/AI$7","v":0.19815202915460189},{"$f":"AK120/AK88","v":2.2285041224970552},{"$f":"(SQRT((AL$39^2)+((AK$39^2)/(AK$7^2))*(AL$7^2)))/AK$7","v":0.48112418276110114},{"$f":"AM120/AM88","v":2.1376767055931163},{"$f":"(SQRT((AN$39^2)+((AM$39^2)/(AM$7^2))*(AN$7^2)))/AM$7","v":0.17014366723299457},{"$f":"AO120/AO88","v":2.6017457719585377},{"$f":"(SQRT((AP$39^2)+((AO$39^2)/(AO$7^2))*(AP$7^2)))/AO$7","v":0.17934571431224952},{"$f":"AQ120/AQ88","v":2.7044334975369457},{"$f":"(SQRT((AR$39^2)+((AQ$39^2)/(AQ$7^2))*(AR$7^2)))/AQ$7","v":0.20775245571127415},{"$f":"AS120/AS88","v":2.4531155474894133},{"$f":"(SQRT((AT$39^2)+((AS$39^2)/(AS$7^2))*(AT$7^2)))/AS$7","v":0.17781342034960004},{"$f":"AU120/AU88","v":2.445736434108527},{"$f":"(SQRT((AV$39^2)+((AU$39^2)/(AU$7^2))*(AV$7^2)))/AU$7","v":0.77090204572901966},{"$f":"AW120/AW88","v":2.4674329501915708},{"$f":"(SQRT((AX$39^2)+((AW$39^2)/(AW$7^2))*(AX$7^2)))/AW$7","v":0.7101992683832351},{"$f":"AY120/AY88","v":2.6108468125594673},{"$f":"(SQRT((AZ$39^2)+((AY$39^2)/(AY$7^2))*(AZ$7^2)))/AY$7","v":0.17439927980993875},{"$f":"BA120/BA88","v":2.3651399491094147},{"$f":"(SQRT((BB$39^2)+((BA$39^2)/(BA$7^2))*(BB$7^2)))/BA$7","v":0.52122724177169522},{"$f":"BC120/BC88","v":2.2412213740458014},{"$f":"(SQRT((BD$39^2)+((BC$39^2)/(BC$7^2))*(BD$7^2)))/BC$7","v":0.49024617993456926}]
[null,"In family households:",{"$f":"C121/C89","v":3.1231043710972348},{"$f":"(SQRT((D$40^2)+((C$40^2)/(C$8^2))*(D$8^2)))/C$8","v":0.47447687297371782},{"$f":"E121/E89","v":3.0829694323144103},{"$f":"(SQRT((F$40^2)+((E$40^2)/(E$8^2))*(F$8^2)))/E$8","v":0.78227856978883747},{"$f":"G121/G89","v":3.3738207547169812},{"$f":"(SQRT((H$40^2)+((G$40^2)/(G$8^2))*(H$8^2)))/G$8","v":0.5390471842585256},{"$f":"I121/I89","v":3.1593115622241834},{"$f":"(SQRT((J$40^2)+((I$40^2)/(I$8^2))*(J$8^2)))/I$8","v":0.15033397059455661},{"$f":"K121/K89","v":3.0060728744939271},{"$f":"(SQRT((L$40^2)+((K$40^2)/(K$8^2))*(L$8^2)))/K$8","v":0.57310503522672773},{"$f":"M121/M89","v":2.9729729729729728},{"$f":"(SQRT((N$40^2)+((M$40^2)/(M$8^2))*(N$8^2)))/M$8","v":0.5133140245439255},{"$f":"O121/O89","v":3.0307486631016043},{"$f":"(SQRT((P$40^2)+((O$40^2)/(O$8^2))*(P$8^2)))/O$8","v":0.31710254155636969},{"$f":"Q121/Q89","v":3.0552963367417849},{"$f":"(SQRT((R$40^2)+((Q$40^2)/(Q$8^2))*(R$8^2)))/Q$8","v":0.13299074767482497},{"$f":"S121/S89","v":2.8707865168539324},{"$f":"(SQRT((T$40^2)+((S$40^2)/(S$8^2))*(T$8^2)))/S$8","v":0.78607427413186703},{"$f":"U121/U89","v":3.1589242053789732},{"$f":"(SQRT((V$40^2)+((U$40^2)/(U$8^2))*(V$8^2)))/U$8","v":0.2965886715600517},{"$f":"W121/W89","v":3.1168935148118493},{"$f":"(SQRT((X$40^2)+((W$40^2)/(W$8^2))*(X$8^2)))/W$8","v":0.29197579969982629},{"$f":"Y121/Y89","v":3.0776233828461907},{"$f":"(SQRT((Z$40^2)+((Y$40^2)/(Y$8^2))*(Z$8^2)))/Y$8","v":0.30189098577929696},{"$f":"AA121/AA89","v":3.1450313339301701},{"$f":"(SQRT((AB$40^2)+((AA$40^2)/(AA$8^2))*(AB$8^2)))/AA$8","v":0.59576769166758681},{"$f":"AC121/AC89","v":2.7203947368421053},{"$f":"(SQRT((AD$40^2)+((AC$40^2)/(AC$8^2))*(AD$8^2)))/AC$8","v":1.1559598265338289},{"$f":"AE121/AE89","v":3.052717836656651},{"$f":"(SQRT((AF$40^2)+((AE$40^2)/(AE$8^2))*(AF$8^2)))/AE$8","v":0.21951095942791538},{"$f":"AG121/AG89","v":3.062185929648241},{"$f":"(SQRT((AH$40^2)+((AG$40^2)/(AG$8^2))*(AH$8^2)))/AG$8","v":0.33535827029140902},{"$f":"AI121/AI89","v":3.0598455598455598},{"$f":"(SQRT((AJ$40^2)+((AI$40^2)/(AI$8^2))*(AJ$8^2)))/AI$8","v":0.30303321473416983},{"$f":"AK121/AK89","v":2.6233766233766236},{"$f":"(SQRT((AL$40^2)+((AK$40^2)/(AK$8^2))*(AL$8^2)))/AK$8","v":0.71349570125747308},{"$f":"AM121/AM89","v":2.7780061664953752},{"$f":"(SQRT((AN$40^2)+((AM$40^2)/(AM$8^2))*(AN$8^2)))/AM$8","v":0.30248728578517198},{"$f":"AO121/AO89","v":3.0476900149031296},{"$f":"(SQRT((AP$40^2)+((AO$40^2)/(AO$8^2))*(AP$8^2)))/AO$8","v":0.34997719068017624},{"$f":"AQ121/AQ89","v":3.06813627254509},{"$f":"(SQRT((AR$40^2)+((AQ$40^2)/(AQ$8^2))*(AR$8^2)))/AQ$8","v":0.35495874909471192},{"$f":"AS121/AS89","v":3.2982456140350878},{"$f":"(SQRT((AT$40^2)+((AS$40^2)/(AS$8^2))*(AT$8^2)))/AS$8","v":0.38028476047972848},{"$f":"AU121/AU89","v":2.9066666666666667},{"$f":"(SQRT((AV$40^2)+((AU$40^2)/(AU$8^2))*(AV$8^2)))/AU$8","v":1.0894413642545231},{"$f":"AW121/AW89","v":2.9596491228070176},{"$f":"(SQRT((AX$40^2)+((AW$40^2)/(AW$8^2))*(AX$8^2)))/AW$8","v":0.91330225731407488},{"$f":"AY121/AY89","v":3.168044077134986},{"$f":"(SQRT((AZ$40^2)+((AY$40^2)/(AY$8^2))*(AZ$8^2)))/AY$8","v":0.24185264315098393},{"$f":"BA121/BA89","v":2.8059964726631392},{"$f":"(SQRT((BB$40^2)+((BA$40^2)/(BA$8^2))*(BB$8^2)))/BA$8","v":0.63539645904836606},{"$f":"BC121/BC89","v":2.7775119617224879},{"$f":"(SQRT((BD$40^2)+((BC$40^2)/(BC$8^2))*(BD$8^2)))/BC$8","v":0.72198288848411263}]
[null,"In nonfamily households",{"$f":"C131/C94","v":1.2680577849117174},{"$f":"(SQRT((D$50^2)+((C$50^2)/(C$13^2))*(D$13^2)))/C$13","v":0.48580233342381313},{"$f":"E131/E94","v":1.480719794344473},{"$f":"(SQRT((F$50^2)+((E$50^2)/(E$13^2))*(F$13^2)))/E$13","v":0.47717526994510884},{"$f":"G131/G94","v":1.411910669975186},{"$f":"(SQRT((H$50^2)+((G$50^2)/(G$13^2))*(H$13^2)))/G$13","v":0.57446185900266711},{"$f":"I131/I94","v":1.1081081081081081},{"$f":"(SQRT((J$50^2)+((I$50^2)/(I$13^2))*(J$13^2)))/I$13","v":0.40871346975111561},{"$f":"K131/K94","v":1.1607142857142858},{"$f":"(SQRT((L$50^2)+((K$50^2)/(K$13^2))*(L$13^2)))/K$13","v":0.46017890269140738},{"$f":"M131/M94","v":1.1704180064308682},{"$f":"(SQRT((N$50^2)+((M$50^2)/(M$13^2))*(N$13^2)))/M$13","v":0.49433908171413432},{"$f":"O131/O94","v":1.4337899543378996},{"$f":"(SQRT((P$50^2)+((O$50^2)/(O$13^2))*(P$13^2)))/O$13","v":0.73937960112601619},{"$f":"Q131/Q94","v":1.2655255340217852},{"$f":"(SQRT((R$50^2)+((Q$50^2)/(Q$13^2))*(R$13^2)))/Q$13","v":0.12011602566936809},{"$f":"S131/S94","v":1.2696078431372548},{"$f":"(SQRT((T$50^2)+((S$50^2)/(S$13^2))*(T$13^2)))/S$13","v":0.48783349192352132},{"$f":"U131/U94","v":1.2830188679245282},{"$f":"(SQRT((V$50^2)+((U$50^2)/(U$13^2))*(V$13^2)))/U$13","v":0.59423220907750895},{"$f":"W131/W94","v":1.1933701657458564},{"$f":"(SQRT((X$50^2)+((W$50^2)/(W$13^2))*(X$13^2)))/W$13","v":0.50075767989043574},{"$f":"Y131/Y94","v":1.2482993197278911},{"$f":"(SQRT((Z$50^2)+((Y$50^2)/(Y$13^2))*(Z$13^2)))/Y$13","v":0.38518219993603353},{"$f":"AA131/AA94","v":1.5646630236794172},{"$f":"(SQRT((AB$50^2)+((AA$50^2)/(AA$13^2))*(AB$13^2)))/AA$13","v":0.55632623666839631},{"$f":"AC131/AC94","v":1.3522727272727273},{"$f":"(SQRT((AD$50^2)+((AC$50^2)/(AC$13^2))*(AD$13^2)))/AC$13","v":0.56250679008247439},{"$f":"AE131/AE94","v":1.3284864507600793},{"$f":"(SQRT((AF$50^2)+((AE$50^2)/(AE$13^2))*(AF$13^2)))/AE$13","v":0.37876874401001565},{"$f":"AG131/AG94","v":1.3559633027522935},{"$f":"(SQRT((AH$50^2)+((AG$50^2)/(AG$13^2))*(AH$13^2)))/AG$13","v":0.64732806631369022},{"$f":"AI131/AI94","v":1.253384912959381},{"$f":"(SQRT((AJ$50^2)+((AI$50^2)/(AI$13^2))*(AJ$13^2)))/AI$13","v":0.85238782613719544},{"$f":"AK131/AK94","v":1.1845493562231759},{"$f":"(SQRT((AL$50^2)+((AK$50^2)/(AK$13^2))*(AL$13^2)))/AK$13","v":0.52527538775073057},{"$f":"AM131/AM94","v":1.1850152905198776},{"$f":"(SQRT((AN$50^2)+((AM$50^2)/(AM$13^2))*(AN$13^2)))/AM$13","v":0.39585123276657386},{"$f":"AO131/AO94","v":1.3828920570264767},{"$f":"(SQRT((AP$50^2)+((AO$50^2)/(AO$13^2))*(AP$13^2)))/AO$13","v":0.50114631818571553},{"$f":"AQ131/AQ94","v":1.5754276827371696},{"$f":"(SQRT((AR$50^2)+((AQ$50^2)/(AQ$13^2))*(AR$13^2)))/AQ$13","v":0.43206494557301961},{"$f":"AS131/AS94","v":1.2558479532163742},{"$f":"(SQRT((AT$50^2)+((AS$50^2)/(AS$13^2))*(AT$13^2)))/AS$13","v":0.45531283866920391},{"$f":"AU131/AU94","v":1.2198581560283688},{"$f":"(SQRT((AV$50^2)+((AU$50^2)/(AU$13^2))*(AV$13^2)))/AU$13","v":0.76560281160633492},{"$f":"AW131/AW94","v":1.1502347417840375},{"$f":"(SQRT((AX$50^2)+((AW$50^2)/(AW$13^2))*(AX$13^2)))/AW$13","v":0.70119623501556261},{"$f":"AY131/AY94","v":1.3661538461538461},{"$f":"(SQRT((AZ$50^2)+((AY$50^2)/(AY$13^2))*(AZ$13^2)))/AY$13","v":0.34210210292559862},{"$f":"BA131/BA94","v":1.2237442922374429},{"$f":"(SQRT((BB$50^2)+((BA$50^2)/(BA$13^2))*(BB$13^2)))/BA$13","v":0.65059943504541651},{"$f":"BC131/BC94","v":1.2953586497890295},{"$f":"(SQRT((BD$50^2)+((BC$50^2)/(BC$13^2))*(BD$13^2)))/BC$13","v":0.64610956722707191}]
[]
[]
[]
[null,"B25010. AVERAGE HOUSEHOLD SIZE OF OCCUPIED HOUSING UNITS BY TENURE"]
[null,"Universe:  OCCUPIED HOUSING UNITS"]
[null,"Data Set: 2013-2017 American Community Survey 5-Year Estimates"]
[]
[null,null,"Allenstown",null,"Andover",null,"Boscawen",null,"Bow",null,"Bradford",null,"Canterbury",null,"Chichester",null,"Concord",null,"Danbury",null,"Dunbarton",null,"Epsom",null,"Franklin",null,"Henniker",null,"Hill",null,"Hooksett",null,"Hopkinton",null,"Loudon",null,"Newbury",null,"New London",null,"Northfield",null,"Pembroke",null,"Pittsfield",null,"Salisbury",null,"Sutton",null,"Warner",null,"Webster",null,"Wilmot"]
[null," ","Estimate","Margin of Error","Estimate","Margin of Error","Estimate","Margin of Error","Estimate","Margin of Error","Estimate","Margin of Error","Estimate","Margin of Error","Estimate","Margin of Error","Estimate","Margin of Error","Estimate","Margin of Error","Estimate","Margin of Error","Estimate","Margin of Error","Estimate","Margin of Error","Estimate","Margin of Error","Estimate","Margin of Error","Estimate","Margin of Error","Estimate","Margin of Error","Estimate","Margin of Error","Estimate","Margin of Error","Estimate","Margin of Error","Estimate","Margin of Error","Estimate","Margin of Error","Estimate","Margin of Error","Estimate","Margin of Error","Estimate","Margin of Error","Estimate","Margin of Error","Estimate","Margin of Error","Estimate","Margin of Error"]
[null,"Average household size --"]
[null,"Total:",2.46,0.16,2.5,0.22,2.74,0.22,2.8,0.12,2.54,0.16,2.38,0.2,2.67,0.15,2.3199999999999998,0.05,2.29,0.22,2.85,0.13,2.5299999999999998,0.17,2.3199999999999998,0.14000000000000001,2.62,0.2,2.41,0.19,2.5499999999999998,0.08,2.63,0.13,2.61,0.19,2.23,0.16,2.14,0.16,2.6,0.15,2.7,0.15,2.4500000000000002,0.17,2.4500000000000002,0.18,2.4700000000000002,0.2,2.61,0.2,2.37,0.15,2.2400000000000002,0.21]
[null,"Owner occupied",2.65,0.19,2.44,0.19,2.8,0.28000000000000003,2.86,0.13,2.5299999999999998,0.18,2.4500000000000002,0.2,2.57,0.16,2.58,7.0000000000000007E-2,2.33,0.25,2.88,0.15,2.58,0.21,2.44,0.16,2.66,0.17,2.41,0.21,2.67,0.1,2.64,0.17,2.67,0.21,2.23,0.16,2.27,0.19,2.71,0.16,2.84,0.19,2.59,0.28000000000000003,2.48,0.2,2.5099999999999998,0.21,2.71,0.15,2.4300000000000002,0.16,2.2400000000000002,0.24]
[null,"Renter occupied",1.99,0.38,2.78,1,2.5499999999999998,0.54,2.37,0.49,2.63,0.77,1.1200000000000001,0.2,3.66,0.75,2.0099999999999998,0.08,2.0499999999999998,0.31,2.58,0.59,2.38,0.48,2.15,0.28000000000000003,2.54,0.53,2.48,0.55000000000000004,2.1,0.21,2.5299999999999998,0.69,2.2400000000000002,0.46,2.2000000000000002,0.65,1.68,0.28999999999999998,2.31,0.4,2.2999999999999998,0.35,2.27,0.31,2.11,0.99,2.2000000000000002,0.68,2.2799999999999998,0.79,1.84,0.6,2.2599999999999998,0.54]
[]
[]
[]
[]
[]
[]
[null,"B11001. HOUSEHOLD TYPE (INCLUDING LIVING ALONE)"]
[null,"Universe:  HOUSEHOLDS"]
[null,"Data Set: 2008-2012 American Community Survey 5-Year Estimates"]
[]
[null,null,"Allenstown",null,"Andover",null,"Boscawen",null,"Bow",null,"Bradford",null,"Canterbury",null,"Chichester",null,"Concord",null,"Danbury",null,"Dunbarton",null,"Epsom",null,"Franklin",null,"Henniker",null,"Hill",null,"Hooksett",null,"Hopkinton",null,"Loudon",null,"Newbury",null,"New London",null,"Northfield",null,"Pembroke",null,"Pittsfield",null,"Salisbury",null,"Sutton",null,"Warner",null,"Webster",null,"Wilmot"]
[null," ","Estimate","Margin of Error","Estimate","Margin of Error","Estimate","Margin of Error","Estimate","Margin of Error","Estimate","Margin of Error","Estimate","Margin of Error","Estimate","Margin of Error","Estimate","Margin of Error","Estimate","Margin of Error","Estimate","Margin of Error","Estimate","Margin of Error","Estimate","Margin of Error","Estimate","Margin of Error","Estimate","Margin of Error","Estimate","Margin of Error","Estimate","Margin of Error","Estimate","Margin of Error","Estimate","Margin of Error","Estimate","Margin of Error","Estimate","Margin of Error","Estimate","Margin of Error","Estimate","Margin of Error","Estimate","Margin of Error","Estimate","Margin of Error","Estimate","Margin of Error","Estimate","Margin of Error","Estimate","Margin of Error"]
[null,"Total:",4324,44,2419,214,3504,201,7571,34,1466,204,2410,142,2525,22,39820,387,1218,225,2756,18,4473,86,8291,132,4194,182,1210,201,12574,191,5608,16,5304,16,2103,252,3471,230,4789,74,7140,24,4069,55,1289,174,1786,250,2716,87,1749,161,1383,193]
[null,"Family households:",3712,188,1997,212,2942,241,7150,126,1257,206,2128,173,2275,79,29932,812,1023,223,2321,164,3880,205,6610,344,3397,235,1045,206,11049,342,4829,262,4708,206,1788,240,2824,237,4290,189,6034,238,3331,150,1088,176,1527,246,2402,100,1511,171,1128,187]
[null,"Married-couple family",2669,353,1872,203,1870,408,6364,304,1196,199,1658,211,1905,189,21904,1089,757,188,2173,193,3167,309,4577,562,2821,381,855,191,9975,410,4489,324,3257,441,1507,230,2654,255,3376,303,4308,430,2466,391,900,167,1295,226,1994,201,1181,142,938,186]
[null,"Other family:",2669,353,1858,196,1866,409,6364,304,1180,196,1624,204,1860,183,21804,1078,757,188,2152,192,3129,304,4555,559,2821,381,826,181,9890,407,4479,322,3248,440,1499,230,2634,254,3346,306,4293,425,2455,391,891,166,1295,226,1928,200,1181,142,938,186]
[null,"Male householder, no wife present",0,11,14,22,4,7,0,16,16,17,34,31,45,35,100,69,0,11,21,22,38,40,22,22,0,11,29,21,85,77,10,16,9,14,8,11,20,20,30,39,15,24,11,18,9,7,0,11,66,79,0,11,0,11]
[null,"Female householder, no husband present",226,169,18,19,160,126,134,104,25,36,235,105,163,101,1702,503,151,110,6,10,349,192,431,360,120,121,113,88,364,265,68,58,519,283,55,52,53,76,369,259,535,365,132,119,28,29,106,84,187,157,103,77,19,28]
[null,"Nonfamily households:",179,123,18,19,122,83,134,104,25,36,200,96,130,78,1483,433,127,103,6,10,282,160,323,247,108,108,95,73,364,265,68,58,480,275,47,44,53,76,233,144,381,266,70,66,21,22,87,68,166,136,96,75,16,24]
[null,"Householder living alone",47,57,0,11,38,57,0,16,0,11,35,17,33,30,219,107,24,19,0,11,67,56,108,121,12,19,18,17,0,18,0,16,39,41,8,9,0,11,136,134,154,187,62,61,7,8,19,21,21,24,7,7,3,5]
[null,"Householder not living alone",817,362,107,92,912,329,652,256,36,28,235,162,207,137,6326,909,115,80,142,112,364,201,1602,483,456,257,77,43,710,323,272,249,932,355,226,171,117,80,545,238,1191,354,733,353,160,79,126,106,221,135,227,92,171,100]
[null,null,728,322,102,91,829,301,579,221,29,21,222,150,190,118,5602,759,106,71,110,79,319,176,1462,440,431,241,70,39,689,320,217,176,915,349,174,124,117,80,465,202,1112,326,564,262,155,77,126,106,176,105,199,83,129,68]
[]
[]
[null,"Calculated Average  Household Size by Household Type"]
[null,"Universe:  POPULATION IN HOUSEHOLDS"]
[null,"Data Set: 2008-2012 American Community Survey 5-Year Estimates"]
[]
[null,null,"Allenstown",null,"Andover",null,"Boscawen",null,"Bow",null,"Bradford",null,"Canterbury",null,"Chichester",null,"Concord",null,"Danbury",null,"Dunbarton",null,"Epsom",null,"Franklin",null,"Henniker",null,"Hill",null,"Hooksett",null,"Hopkinton",null,"Loudon",null,"Newbury",null,"New London",null,"Northfield",null,"Pembroke",null,"Pittsfield",null,"Salisbury",null,"Sutton",null,"Warner",null,"Webster",null,"Wilmot"]
[null," ","Estimate","Margin of Error","Estimate","Margin of Error","Estimate","Margin of Error","Estimate","Margin of Error","Estimate","Margin of Error","Estimate","Margin of Error","Estimate","Margin of Error","Estimate","Margin of Error","Estimate","Margin of Error","Estimate","Margin of Error","Estimate","Margin of Error","Estimate","Margin of Error","Estimate","Margin of Error","Estimate","Margin of Error","Estimate","Margin of Error","Estimate","Margin of Error","Estimate","Margin of Error","Estimate","Margin of Error","Estimate","Margin of Error","Estimate","Margin of Error","Estimate","Margin of Error","Estimate","Margin of Error","Estimate","Margin of Error","Estimate","Margin of Error","Estimate","Margin of Error","Estimate","Margin of Error","Estimate","Margin of Error"]
[null,"Total:",2.4907834101382487,0.17,2.4434343434343435,0.28620078948418853,2.4148862853204687,0.24579642756477388,2.7681901279707497,0.12108395047956393,2.4072249589490968,0.44994897609772344,2.5858369098712446,0.22362916528512525,2.5950668036998974,0.16161414037872379,2.2324381902786343,5.9422280011174847E-2,2.4262948207171315,0.57644752310188641,2.6423777564717161,0.14040386642393801,2.6051252184041935,0.1554632599412335,2.4573206876111442,0.15293576914586976,2.4186851211072664,0.20951775151772034,2.800925925925926,0.58229240284264805,2.5572503559080739,0.10957300145735141,2.5855232826187184,0.15513998610572,2.7945205479452055,0.1386574057749195,2.5215827338129495,0.42531731666209571,2.1373152709359604,0.23553532438144834,2.763416041546451,0.22102747806192932,2.5043844265170114,0.14167644208945548,2.5884223918575064,0.20715180862184077,2.6577319587628865,0.46855962016036723,2.4840055632823366,0.46645248080279139,2.5671077504725899,0.20857749993099858,2.4190871369294604,0.30206730179307972,2.4010416666666665,0.46112511962646774]
[null,"In family households:",3.0451189499589826,0.27884959097028839,2.7469050894085281,0.41460051662795405,2.8535402521823472,0.3751171341500189,3.0699871189351655,0.15723399328738197,2.8438914027149322,0.64812516839547218,2.9230769230769229,0.34415739824123298,3.0013192612137205,0.22023764820883779,2.9929007099290073,0.13299829598557425,2.9825072886297375,0.86147460889796057,3.0459317585301839,0.32523255036184751,3.0818109610802225,0.27394667501252934,3.2228181374939053,0.30222544248293925,3.016873889875666,0.39007894348642747,3.4833333333333334,0.90673726747179761,3.0172037138175862,0.17876119301776425,3.0181249999999999,0.29018065990384795,3.1240875912408761,0.26586814176142826,3.1313485113835378,0.56555018728628181,2.6844106463878328,0.36995283083339442,3.1683899556868536,0.28870914797694902,3.1167355371900825,0.2581450330093718,3.3177290836653386,0.34468589625079893,3.0821529745042491,0.66270285861118028,2.9593023255813953,0.67776477125699575,3.0213836477987424,0.24721954045668559,2.8563327032136105,0.45007484074123827,2.9684210526315788,0.71839661225381313]
[null,"In nonfamily households",1.183752417794971,0.48308453863655443,1.6045627376425855,0.76800884765762278,1.338095238095238,0.66812673656272303,1.0369458128078817,0.42374306540239942,1.2514970059880239,0.46076614994664827,1.3823529411764706,0.50640054753385033,1.1627906976744187,0.51401690412958667,1.2618683001531394,0.1343567205045211,1.2264150943396226,0.46935357741283945,1.5480427046263345,0.69080355138750982,1.294759825327511,0.53691627429263966,1.2705971277399848,0.33590452284793609,1.3108552631578947,0.47119813709349362,1.25,0.58069862001033723,1.2151394422310757,0.30597632498731436,1.3690685413005272,0.64466695437654298,1.5242966751918159,0.64819209813721768,1.1977186311787071,0.49048641671480681,1.131118881118881,0.35783725056542587,1.316622691292876,0.63341149923974527,1.208743169398907,0.35396142708895778,1.2992957746478873,0.36169634599785411,1.5227272727272727,0.71291623037721796,1.2758620689655173,0.44352778417406652,1.1939163498098859,0.47953520188169685,1.2268041237113403,0.38182046043845574,1.3010204081632653,0.48012441272083495]
[]
[]
[]
[null,"B25010. AVERAGE HOUSEHOLD SIZE OF OCCUPIED HOUSING UNITS BY TENURE"]
[null,"Universe:  OCCUPIED HOUSING UNITS"]
[null,"Data Set: 2008-2012 American Community Survey 5-Year Estimates"]
[]
[null,null,"Allenstown",null,"Andover",null,"Boscawen",null,"Bow",null,"Bradford",null,"Canterbury",null,"Chichester",null,"Concord",null,"Danbury",null,"Dunbarton",null,"Epsom",null,"Franklin",null,"Henniker",null,"Hill",null,"Hooksett",null,"Hopkinton",null,"Loudon",null,"Newbury",null,"New London",null,"Northfield",null,"Pembroke",null,"Pittsfield",null,"Salisbury",null,"Sutton",null,"Warner",null,"Webster",null,"Wilmot"]
[null," ","Estimate","Margin of Error","Estimate","Margin of Error","Estimate","Margin of Error","Estimate","Margin of Error","Estimate","Margin of Error","Estimate","Margin of Error","Estimate","Margin of Error","Estimate","Margin of Error","Estimate","Margin of Error","Estimate","Margin of Error","Estimate","Margin of Error","Estimate","Margin of Error","Estimate","Margin of Error","Estimate","Margin of Error","Estimate","Margin of Error","Estimate","Margin of Error","Estimate","Margin of Error","Estimate","Margin of Error","Estimate","Margin of Error","Estimate","Margin of Error","Estimate","Margin of Error","Estimate","Margin of Error","Estimate","Margin of Error","Estimate","Margin of Error","Estimate","Margin of Error","Estimate","Margin of Error","Estimate","Margin of Error"]
[null,"Average household size --"]
[null,"Total:",2.4907834101382487,0.17,2.4434343434343435,0.28620078948418853,2.4148862853204687,0.24579642756477388,2.7681901279707497,0.12108395047956393,2.4072249589490968,0.44994897609772344,2.5858369098712446,0.22362916528512525,2.5950668036998974,0.16161414037872379,2.2324381902786343,5.9422280011174847E-2,2.4262948207171315,0.57644752310188641,2.6423777564717161,0.14040386642393801,2.6051252184041935,0.1554632599412335,2.4573206876111442,0.15293576914586976,2.4186851211072664,0.20951775151772034,2.800925925925926,0.58229240284264805,2.5572503559080739,0.10957300145735141,2.5855232826187184,0.15513998610572,2.7945205479452055,0.1386574057749195,2.5215827338129495,0.42531731666209571,2.1373152709359604,0.23553532438144834,2.763416041546451,0.22102747806192932,2.5043844265170114,0.14167644208945548,2.5884223918575064,0.20715180862184077,2.6577319587628865,0.46855962016036723,2.4840055632823366,0.46645248080279139,2.5671077504725899,0.20857749993099858,2.4190871369294604,0.30206730179307972,2.4010416666666665,0.46112511962646774]
[null,"Owner occupied",3.0451189499589826,0.27884959097028839,2.7469050894085281,0.41460051662795405,2.8535402521823472,0.3751171341500189,3.0699871189351655,0.15723399328738197,2.8438914027149322,0.64812516839547218,2.9230769230769229,0.34415739824123298,3.0013192612137205,0.22023764820883779,2.9929007099290073,0.13299829598557425,2.9825072886297375,0.86147460889796057,3.0459317585301839,0.32523255036184751,3.0818109610802225,0.27394667501252934,3.2228181374939053,0.30222544248293925,3.016873889875666,0.39007894348642747,3.4833333333333334,0.90673726747179761,3.0172037138175862,0.17876119301776425,3.0181249999999999,0.29018065990384795,3.1240875912408761,0.26586814176142826,3.1313485113835378,0.56555018728628181,2.6844106463878328,0.36995283083339442,3.1683899556868536,0.28870914797694902,3.1167355371900825,0.2581450330093718,3.3177290836653386,0.34468589625079893,3.0821529745042491,0.66270285861118028,2.9593023255813953,0.67776477125699575,3.0213836477987424,0.24721954045668559,2.8563327032136105,0.45007484074123827,2.9684210526315788,0.71839661225381313]
[null,"Renter occupied",1.183752417794971,0.48308453863655443,1.6045627376425855,0.76800884765762278,1.338095238095238,0.66812673656272303,1.0369458128078817,0.42374306540239942,1.2514970059880239,0.46076614994664827,1.3823529411764706,0.50640054753385033,1.1627906976744187,0.51401690412958667,1.2618683001531394,0.1343567205045211,1.2264150943396226,0.46935357741283945,1.5480427046263345,0.69080355138750982,1.294759825327511,0.53691627429263966,1.2705971277399848,0.33590452284793609,1.3108552631578947,0.47119813709349362,1.25,0.58069862001033723,1.2151394422310757,0.30597632498731436,1.3690685413005272,0.64466695437654298,1.5242966751918159,0.64819209813721768,1.1977186311787071,0.49048641671480681,1.131118881118881,0.35783725056542587,1.316622691292876,0.63341149923974527,1.208743169398907,0.35396142708895778,1.2992957746478873,0.36169634599785411,1.5227272727272727,0.71291623037721796,1.2758620689655173,0.44352778417406652,1.1939163498098859,0.47953520188169685,1.2268041237113403,0.38182046043845574,1.3010204081632653,0.48012441272083495]

{"sheet":"ACS_Table_B19001","index":23,"n_rows":162,"n_cols":56,"rows_kept":162,"cut":false,"hidden":true,"merged":[]}
[null,"B19001. HOUSEHOLD INCOME IN THE PAST 12 MONTHS (IN 2022 INFLATION-ADJUSTED DOLLARS)",null,null,null,null,null,null,null,null,null,null,null,null,{"$f":"B1","v":"B19001. HOUSEHOLD INCOME IN THE PAST 12 MONTHS (IN 2022 INFLATION-ADJUSTED DOLLARS)"}]
[null,"Universe:  HOUSEHOLDS",null,null,null,null,null,null,null,null,null,null,null,null,{"$f":"B3","v":"Data Set: 2018-2022 American Community Survey 5-Year Estimates"}]
[null,"Data Set: 2018-2022 American Community Survey 5-Year Estimates"]
[]
[null,null,"Allenstown",null,"Andover",null,"Boscawen",null,"Bow",null,"Bradford",null,"Canterbury",null,"Chichester",null,"Concord",null,"Danbury",null,"Dunbarton",null,"Epsom",null,"Franklin",null,"Henniker",null,"Hill",null,"Hooksett",null,"Hopkinton",null,"Loudon",null,"Newbury",null,"New London",null,"Northfield",null,"Pembroke",null,"Pittsfield",null,"Salisbury",null,"Sutton",null,"Warner",null,"Webster",null,"Wilmot"]
[null,null,"Estimate","Margin Of Error","Estimate","Margin Of Error","Estimate","Margin Of Error","Estimate","Margin Of Error","Estimate","Margin Of Error","Estimate","Margin Of Error","Estimate","Margin Of Error","Estimate","Margin Of Error","Estimate","Margin Of Error","Estimate","Margin Of Error","Estimate","Margin Of Error","Estimate","Margin Of Error","Estimate","Margin Of Error","Estimate","Margin Of Error","Estimate","Margin Of Error","Estimate","Margin Of Error","Estimate","Margin Of Error","Estimate","Margin Of Error","Estimate","Margin Of Error","Estimate","Margin Of Error","Estimate","Margin Of Error","Estimate","Margin Of Error","Estimate","Margin Of Error","Estimate","Margin Of Error","Estimate","Margin Of Error","Estimate","Margin Of Error","Estimate","Margin Of Error"]
[null,"Total Households",1812,193,878,119,1380,140,2895,133,632,73,920,96,1011,63,17955,443,672,112,1061,89,1844,139,3717,321,2397,206,318,54,5110,285,2168,194,2276,183,747,99,1636,129,1906,134,2627,196,1801,141,623,122,846,149,1200,89,795,103,624,90]
[null,"Households With"]
[null,"Income Less than $10,000 ",42,48,13,11,31,30,42,33,2,4,22,18,13,13,601,185,38,28,39,44,38,48,124,81,39,48,11,16,125,82,12,21,0,17,17,20,37,36,82,91,133,104,79,95,56,83,8,13,25,18,37,41,3,5]
[null,"Income $10,000 to $14,999 ",126,107,10,12,81,66,33,26,13,9,6,8,26,23,720,218,21,14,5,7,36,26,219,96,171,110,7,7,78,57,0,17,77,94,17,15,65,52,31,28,31,43,14,23,3,4,8,9,26,22,2,3,2,3]
[null,"Income $15,000 to $19,999 ",72,46,40,44,45,37,35,31,19,17,37,35,10,8,601,188,14,20,4,6,58,46,105,65,157,128,17,18,76,54,10,16,57,72,4,6,47,51,41,28,47,55,0,12,17,12,20,22,61,35,9,8,11,16]
[null,"Income $20,000 to $24,999 ",89,87,28,24,14,24,61,38,11,9,12,19,18,16,581,168,57,68,5,7,43,35,181,103,60,48,3,5,143,116,37,32,376,273,35,26,57,58,54,37,76,73,98,97,25,23,23,27,57,39,22,20,3,4]
[null,"Income $25,000 to $29,999 ",28,28,33,27,60,56,16,26,60,47,11,11,22,21,610,155,26,21,6,9,48,33,98,44,19,31,31,20,124,81,40,45,20,32,17,17,77,71,16,14,88,100,126,106,7,9,11,13,95,52,12,10,19,20]
[null,"Income $30,000 to $34,999 ",120,92,24,22,0,12,32,25,27,20,7,11,31,31,631,208,13,13,3,5,65,48,294,248,216,150,3,4,84,66,13,21,33,37,16,25,56,37,70,46,78,93,132,106,4,5,14,11,47,27,6,7,45,50]
[null,"Income $35,000 to $39,999 ",58,64,21,15,83,47,16,20,26,13,25,18,28,15,370,115,42,36,8,9,37,48,198,91,49,57,3,4,107,58,11,18,90,67,11,12,67,50,114,93,47,51,130,100,22,29,40,66,11,12,28,24,9,10]
[null,"Income $40,000 to $44,999 ",121,82,26,28,50,34,23,21,20,15,16,16,18,15,562,170,36,23,39,31,19,21,70,48,11,19,4,6,118,62,41,49,72,78,5,8,0,12,23,28,39,34,47,46,11,10,17,16,71,56,7,6,10,9]
[null,"Income $45,000 to $49,999 ",22,24,93,90,9,13,30,28,33,25,11,11,15,11,738,199,29,19,30,20,48,40,124,94,97,81,10,8,167,84,68,63,62,61,20,15,27,32,96,71,83,68,130,62,15,15,27,20,21,17,7,6,10,9]
[null,"Income $50,000 to $59,999 ",134,69,15,13,54,54,63,36,56,33,50,28,41,22,1440,236,56,29,37,24,100,68,171,61,120,115,16,10,375,166,163,90,132,109,27,19,108,44,188,85,213,152,23,27,26,23,19,13,49,33,25,13,30,19]
[null,"Income $60,000 to $74,999 ",97,61,58,35,216,81,156,65,20,11,60,46,37,23,1749,294,56,35,52,32,197,74,406,160,240,114,38,17,484,146,108,81,181,120,48,31,163,105,233,100,249,102,195,96,51,34,48,28,107,50,99,46,66,40]
[null,"Income $75,000 to $99,999 ",277,109,146,49,216,96,207,57,79,28,146,54,126,66,2660,342,108,43,111,43,371,101,644,220,237,120,58,27,660,188,368,138,268,153,79,36,157,53,322,115,318,95,260,96,97,36,80,31,88,32,109,42,64,27]
[null,"Income $100,000 to $124,999 ",163,68,102,56,143,74,386,110,96,43,92,39,160,69,1793,221,91,46,149,58,233,101,463,128,266,100,27,16,589,163,318,159,289,132,139,52,100,53,205,70,361,127,238,118,72,32,84,41,156,39,169,69,101,58]
[null,"Income $125,000 to $149,999 ",173,96,63,39,143,79,377,129,57,26,69,27,120,41,1319,192,19,13,80,41,182,86,186,87,325,261,41,18,453,136,134,94,129,78,61,35,127,63,203,101,308,150,196,95,48,27,141,97,134,58,71,25,68,27]
[null,"Income $150,000 to $199,999 ",251,88,127,45,120,73,551,132,48,21,199,60,228,85,1813,349,40,21,270,85,214,99,207,90,150,87,31,19,539,145,412,141,281,141,108,39,174,73,127,71,373,153,61,39,140,97,140,79,121,51,147,37,81,29]
[null,"Income $200,000 or more ",39,33,79,34,115,60,867,159,65,27,157,53,118,44,1767,253,26,17,223,68,155,73,227,94,240,91,18,16,988,226,433,148,209,116,143,58,374,97,101,49,183,75,72,58,29,16,166,69,131,53,45,18,102,34]
[]
[]
[]
[]
[null,{"$f":"\"Calculated \"&B1","v":"Calculated B19001. HOUSEHOLD INCOME IN THE PAST 12 MONTHS (IN 2022 INFLATION-ADJUSTED DOLLARS)"}]
[null,"Universe:  HOUSEHOLDS"]
[null,"Data Set: 2018-2022 American Community Survey 5-Year Estimates"]
[null,null,"Allenstown",null,"Andover",null,"Boscawen",null,"Bow",null,"Bradford",null,"Canterbury",null,"Chichester",null,"Concord",null,"Danbury",null,"Dunbarton",null,"Epsom",null,"Franklin",null,"Henniker",null,"Hill",null,"Hooksett",null,"Hopkinton",null,"Loudon",null,"Newbury",null,"New London",null,"Northfield",null,"Pembroke",null,"Pittsfield",null,"Salisbury",null,"Sutton",null,"Warner",null,"Webster",null,"Wilmot"]
[null,null,"Estimate","Margin Of Error","Estimate","Margin Of Error","Estimate","Margin Of Error","Estimate","Margin Of Error","Estimate","Margin Of Error","Estimate","Margin Of Error","Estimate","Margin Of Error","Estimate","Margin Of Error","Estimate","Margin Of Error","Estimate","Margin Of Error","Estimate","Margin Of Error","Estimate","Margin Of Error","Estimate","Margin Of Error","Estimate","Margin Of Error","Estimate","Margin Of Error","Estimate","Margin Of Error","Estimate","Margin Of Error","Estimate","Margin Of Error","Estimate","Margin Of Error","Estimate","Margin Of Error","Estimate","Margin Of Error","Estimate","Margin Of Error","Estimate","Margin Of Error","Estimate","Margin Of Error","Estimate","Margin Of Error","Estimate","Margin Of Error","Estimate","Margin Of Error"]
[null,"Total Households",{"$f":"$C$7","v":1812},{"$f":"$D$7","v":193},{"$f":"$E$7","v":878},{"$f":"$F$7","v":119},{"$f":"$G$7","v":1380},{"$f":"$H$7","v":140},{"$f":"$I$7","v":2895},{"$f":"$J$7","v":133},{"$f":"$K$7","v":632},{"$f":"$L$7","v":73},{"$f":"$M$7","v":920},{"$f":"$N$7","v":96},{"$f":"$O$7","v":1011},{"$f":"$P$7","v":63},{"$f":"$Q$7","v":17955},{"$f":"R7","v":443},672,112,1061,89,1844,139,{"$f":"Y7","v":3717},321,2397,206,318,54,5110,285,2168,194,2276,183,747,99,1636,129,{"$f":"AO7","v":1906},134,2627,196,1801,141,623,122,846,149,1200,89,795,103,624,{"$f":"BD7","v":90}]
[null,"Households With"]
[null,"Income Less than $10,000 ",{"$f":"$C$9","v":42},{"$f":"$D$9","v":48},{"$f":"$E$9","v":13},{"$f":"$F$9","v":11},{"$f":"$G$9","v":31},{"$f":"$H$9","v":30},{"$f":"$I$9","v":42},{"$f":"$J$9","v":33},{"$f":"$K$9","v":2},{"$f":"$L$9","v":4},{"$f":"$M$9","v":22},{"$f":"$N$9","v":18},{"$f":"$O$9","v":13},{"$f":"$P$9","v":13},{"$f":"$Q$9","v":601},{"$f":"R9","v":185},38,28,39,44,38,48,{"$f":"Y9","v":124},81,39,48,11,16,125,82,12,21,0,17,17,20,37,36,{"$f":"AO9","v":82},91,133,104,79,95,56,83,8,13,25,18,37,41,3,{"$f":"BD9","v":5}]
[null,"Income $10,000 to $14,999 ",{"$f":"$C$10","v":126},{"$f":"$D$10","v":107},{"$f":"$E$10","v":10},{"$f":"$F$10","v":12},{"$f":"$G$10","v":81},{"$f":"$H$10","v":66},{"$f":"$I$10","v":33},{"$f":"$J$10","v":26},{"$f":"$K$10","v":13},{"$f":"$L$10","v":9},{"$f":"$M$10","v":6},{"$f":"$N$10","v":8},{"$f":"$O$10","v":26},{"$f":"$P$10","v":23},{"$f":"$Q$10","v":720},218,21,14,5,7,36,26,{"$f":"Y10","v":219},96,171,110,7,7,78,57,0,17,77,94,17,15,65,52,{"$f":"AO10","v":31},28,31,43,14,23,3,4,8,9,26,22,2,3,2,{"$f":"BD10","v":3}]
[null,"Income $15,000 to $24,999 ",{"$f":"$C$11+$C$12","v":161},{"$f":"SQRT(($D$11^2)+($D$12^2))","v":98.412397592986224},{"$f":"$E$11+$E$12","v":68},{"$f":"SQRT(($F$11^2)+($F$12^2))","v":50.119856344566671},{"$f":"$G$11+$G$12","v":59},{"$f":"SQRT(($H$11^2)+($H$12^2))","v":44.10215414239989},{"$f":"$I$11+$I$12","v":96},{"$f":"SQRT(($J$11^2)+($J$12^2))","v":49.040799340956916},{"$f":"$K$11+$K$12","v":30},{"$f":"SQRT(($L$11^2)+($L$12^2))","v":19.235384061671343},{"$f":"$M$11+$M$12","v":49},{"$f":"SQRT(($N$11^2)+($N$12^2))","v":39.824615503479755},{"$f":"$O$11+$O$12","v":28},{"$f":"SQRT(($P$11^2)+($P$12^2))","v":17.888543819998318},{"$f":"Q11+Q12","v":1182},{"$f":"SQRT((R11^2)+(R12^2))","v":252.12695214911079},{"$f":"S11+S12","v":71},{"$f":"SQRT((T11^2)+(T12^2))","v":70.880180586677398},{"$f":"U11+U12","v":9},{"$f":"SQRT((V11^2)+(V12^2))","v":9.2195444572928871},{"$f":"W11+W12","v":101},{"$f":"SQRT((X11^2)+(X12^2))","v":57.801384066473702},{"$f":"Y11+Y12","v":286},{"$f":"SQRT((Z11^2)+(Z12^2))","v":121.79490958164057},{"$f":"AA11+AA12","v":217},{"$f":"SQRT((AB11^2)+(AB12^2))","v":136.70405992508049},{"$f":"AC11+AC12","v":20},{"$f":"SQRT((AD11^2)+(AD12^2))","v":18.681541692269406},{"$f":"AE11+AE12","v":219},{"$f":"SQRT((AF11^2)+(AF12^2))","v":127.9531164137865},{"$f":"AG11+AG12","v":47},{"$f":"SQRT((AH11^2)+(AH12^2))","v":35.777087639996637},{"$f":"AI11+AI12","v":433},{"$f":"SQRT((AJ11^2)+(AJ12^2))","v":282.33490751233722},{"$f":"AK11+AK12","v":39},{"$f":"SQRT((AL11^2)+(AL12^2))","v":26.683328128252668},{"$f":"AM11+AM12","v":104},{"$f":"SQRT((AN11^2)+(AN12^2))","v":77.233412458598508},{"$f":"AO11+AO12","v":95},{"$f":"SQRT((AP11^2)+(AP12^2))","v":46.400431032480725},{"$f":"AQ11+AQ12","v":123},{"$f":"SQRT((AR11^2)+(AR12^2))","v":91.400218818118816},{"$f":"AS11+AS12","v":98},{"$f":"SQRT((AT11^2)+(AT12^2))","v":97.739449558507332},{"$f":"AU11+AU12","v":42},{"$f":"SQRT((AV11^2)+(AV12^2))","v":25.942243542145693},{"$f":"AW11+AW12","v":43},{"$f":"SQRT((AX11^2)+(AX12^2))","v":34.828149534535996},{"$f":"AY11+AY12","v":118},{"$f":"SQRT((AZ11^2)+(AZ12^2))","v":52.40229002629561},{"$f":"BA11+BA12","v":31},{"$f":"SQRT((BB11^2)+(BB12^2))","v":21.540659228538015},{"$f":"BC11+BC12","v":14},{"$f":"SQRT((BD11^2)+(BD12^2))","v":16.492422502470642}]
[null,"Income $25,000 to $34,999 ",{"$f":"$C$13+$C$14","v":148},{"$f":"SQRT(($D$13^2)+($D$14^2))","v":96.166522241370458},{"$f":"$E$13+$E$14","v":57},{"$f":"SQRT(($F$13^2)+($F$14^2))","v":34.828149534535996},{"$f":"$G$13+$G$14","v":60},{"$f":"SQRT(($H$13^2)+($H$14^2))","v":57.271284253105414},{"$f":"$I$13+$I$14","v":48},{"$f":"SQRT(($J$13^2)+($J$14^2))","v":36.069377593742864},{"$f":"$K$13+$K$14","v":87},{"$f":"SQRT(($L$13^2)+($L$14^2))","v":51.078371156488537},{"$f":"$M$13+$M$14","v":18},{"$f":"SQRT(($N$13^2)+($N$14^2))","v":15.556349186104045},{"$f":"$O$13+$O$14","v":53},{"$f":"SQRT(($P$13^2)+($P$14^2))","v":37.443290453698111},{"$f":"Q13+Q14","v":1241},{"$f":"SQRT((R13^2)+(R14^2))","v":259.40123361310367},{"$f":"S13+S14","v":39},{"$f":"SQRT((T13^2)+(T14^2))","v":24.698178070456937},{"$f":"U13+U14","v":9},{"$f":"SQRT((V13^2)+(V14^2))","v":10.295630140987001},{"$f":"W13+W14","v":113},{"$f":"SQRT((X13^2)+(X14^2))","v":58.249463516842795},{"$f":"Y13+Y14","v":392},{"$f":"SQRT((Z13^2)+(Z14^2))","v":251.87298386289865},{"$f":"AA13+AA14","v":235},{"$f":"SQRT((AB13^2)+(AB14^2))","v":153.16984037335808},{"$f":"AC13+AC14","v":34},{"$f":"SQRT((AD13^2)+(AD14^2))","v":20.396078054371138},{"$f":"AE13+AE14","v":208},{"$f":"SQRT((AF13^2)+(AF14^2))","v":104.48444860360799},{"$f":"AG13+AG14","v":53},{"$f":"SQRT((AH13^2)+(AH14^2))","v":49.658836071740545},{"$f":"AI13+AI14","v":53},{"$f":"SQRT((AJ13^2)+(AJ14^2))","v":48.918299234540036},{"$f":"AK13+AK14","v":33},{"$f":"SQRT((AL13^2)+(AL14^2))","v":30.232432915661949},{"$f":"AM13+AM14","v":133},{"$f":"SQRT((AN13^2)+(AN14^2))","v":80.062475604992386},{"$f":"AO13+AO14","v":86},{"$f":"SQRT((AP13^2)+(AP14^2))","v":48.083261120685229},{"$f":"AQ13+AQ14","v":166},{"$f":"SQRT((AR13^2)+(AR14^2))","v":136.56134152826706},{"$f":"AS13+AS14","v":258},{"$f":"SQRT((AT13^2)+(AT14^2))","v":149.90663761154806},{"$f":"AU13+AU14","v":11},{"$f":"SQRT((AV13^2)+(AV14^2))","v":10.295630140987001},{"$f":"AW13+AW14","v":25},{"$f":"SQRT((AX13^2)+(AX14^2))","v":17.029386365926403},{"$f":"AY13+AY14","v":142},{"$f":"SQRT((AZ13^2)+(AZ14^2))","v":58.591808301161009},{"$f":"BA13+BA14","v":18},{"$f":"SQRT((BB13^2)+(BB14^2))","v":12.206555615733702},{"$f":"BC13+BC14","v":64},{"$f":"SQRT((BD13^2)+(BD14^2))","v":53.851648071345039}]
[null,"Income $35,000 to $49,999 ",{"$f":"$C$15+$C$16+$C$17","v":201},{"$f":"SQRT(($D$15^2)+($D$16^2)+($D$17^2))","v":106.75204916066015},{"$f":"$E$15+$E$16+$E$17","v":140},{"$f":"SQRT(($F$15^2)+($F$16^2)+($F$17^2))","v":95.44108130150245},{"$f":"$G$15+$G$16+$G$17","v":142},{"$f":"SQRT(($H$15^2)+($H$16^2)+($H$17^2))","v":59.447455790807396},{"$f":"$I$15+$I$16+$I$17","v":69},{"$f":"SQRT(($J$15^2)+($J$16^2)+($J$17^2))","v":40.311288741492746},{"$f":"$K$15+$K$16+$K$17","v":79},{"$f":"SQRT(($L$15^2)+($L$16^2)+($L$17^2))","v":31.921779399024736},{"$f":"$M$15+$M$16+$M$17","v":52},{"$f":"SQRT(($N$15^2)+($N$16^2)+($N$17^2))","v":26.476404589747453},{"$f":"$O$15+$O$16+$O$17","v":61},{"$f":"SQRT(($P$15^2)+($P$16^2)+($P$17^2))","v":23.895606290697042},{"$f":"Q15+Q16+Q17","v":1670},{"$f":"SQRT((R15^2)+(R16^2)+(R17^2))","v":285.87759618410115},{"$f":"S15+S16+S17","v":107},{"$f":"SQRT((T15^2)+(T16^2)+(T17^2))","v":46.75467891024384},{"$f":"U15+U16+U17","v":77},{"$f":"SQRT((V15^2)+(V16^2)+(V17^2))","v":37.97367509209505},{"$f":"W15+W16+W17","v":104},{"$f":"SQRT((X15^2)+(X16^2)+(X17^2))","v":65.916613990707987},{"$f":"Y15+Y16+Y17","v":392},{"$f":"SQRT((Z15^2)+(Z16^2)+(Z17^2))","v":139.35924798878617},{"$f":"AA15+AA16+AA17","v":157},{"$f":"SQRT((AB15^2)+(AB16^2)+(AB17^2))","v":100.85137579626765},{"$f":"AC15+AC16+AC17","v":17},{"$f":"SQRT((AD15^2)+(AD16^2)+(AD17^2))","v":10.770329614269007},{"$f":"AE15+AE16+AE17","v":392},{"$f":"SQRT((AF15^2)+(AF16^2)+(AF17^2))","v":119.43198901466893},{"$f":"AG15+AG16+AG17","v":120},{"$f":"SQRT((AH15^2)+(AH16^2)+(AH17^2))","v":81.81686867633104},{"$f":"AI15+AI16+AI17","v":224},{"$f":"SQRT((AJ15^2)+(AJ16^2)+(AJ17^2))","v":119.55751753863075},{"$f":"AK15+AK16+AK17","v":36},{"$f":"SQRT((AL15^2)+(AL16^2)+(AL17^2))","v":20.808652046684813},{"$f":"AM15+AM16+AM17","v":94},{"$f":"SQRT((AN15^2)+(AN16^2)+(AN17^2))","v":60.56401571890688},{"$f":"AO15+AO16+AO17","v":233},{"$f":"SQRT((AP15^2)+(AP16^2)+(AP17^2))","v":120.30793822520607},{"$f":"AQ15+AQ16+AQ17","v":169},{"$f":"SQRT((AR15^2)+(AR16^2)+(AR17^2))","v":91.547801721286575},{"$f":"AS15+AS16+AS17","v":307},{"$f":"SQRT((AT15^2)+(AT16^2)+(AT17^2))","v":126.33289357883005},{"$f":"AU15+AU16+AU17","v":48},{"$f":"SQRT((AV15^2)+(AV16^2)+(AV17^2))","v":34.146742157927747},{"$f":"AW15+AW16+AW17","v":84},{"$f":"SQRT((AX15^2)+(AX16^2)+(AX17^2))","v":70.795480081711432},{"$f":"AY15+AY16+AY17","v":103},{"$f":"SQRT((AZ15^2)+(AZ16^2)+(AZ17^2))","v":59.741108124975383},{"$f":"BA15+BA16+BA17","v":42},{"$f":"SQRT((BB15^2)+(BB16^2)+(BB17^2))","v":25.45584412271571},{"$f":"BC15+BC16+BC17","v":29},{"$f":"SQRT((BD15^2)+(BD16^2)+(BD17^2))","v":16.186414056238647}]
[null,"Income $50,000 to $74,999 ",{"$f":"$C$18+$C$19","v":231},{"$f":"SQRT(($D$18^2)+($D$19^2))","v":92.097774131626011},{"$f":"$E$18+$E$19","v":73},{"$f":"SQRT(($F$18^2)+($F$19^2))","v":37.336309405188942},{"$f":"$G$18+$G$19","v":270},{"$f":"SQRT(($H$18^2)+($H$19^2))","v":97.349884437527706},{"$f":"$I$18+$I$19","v":219},{"$f":"SQRT(($J$18^2)+($J$19^2))","v":74.303431953039691},{"$f":"$K$18+$K$19","v":76},{"$f":"SQRT(($L$18^2)+($L$19^2))","v":34.785054261852174},{"$f":"$M$18+$M$19","v":110},{"$f":"SQRT(($N$18^2)+($N$19^2))","v":53.851648071345039},{"$f":"$O$18+$O$19","v":78},{"$f":"SQRT(($P$18^2)+($P$19^2))","v":31.827660925679098},{"$f":"Q18+Q19","v":3189},{"$f":"SQRT((R18^2)+(R19^2))","v":377.00397875884545},{"$f":"S18+S19","v":112},{"$f":"SQRT((T18^2)+(T19^2))","v":45.453272709454048},{"$f":"U18+U19","v":89},{"$f":"SQRT((V18^2)+(V19^2))","v":40},{"$f":"W18+W19","v":297},{"$f":"SQRT((X18^2)+(X19^2))","v":100.4987562112089},{"$f":"Y18+Y19","v":577},{"$f":"SQRT((Z18^2)+(Z19^2))","v":171.2337583538947},{"$f":"AA18+AA19","v":360},{"$f":"SQRT((AB18^2)+(AB19^2))","v":161.92899678562824},{"$f":"AC18+AC19","v":54},{"$f":"SQRT((AD18^2)+(AD19^2))","v":19.723082923316021},{"$f":"AE18+AE19","v":859},{"$f":"SQRT((AF18^2)+(AF19^2))","v":221.07012462112559},{"$f":"AG18+AG19","v":271},{"$f":"SQRT((AH18^2)+(AH19^2))","v":121.0826164236634},{"$f":"AI18+AI19","v":313},{"$f":"SQRT((AJ18^2)+(AJ19^2))","v":162.11415730897781},{"$f":"AK18+AK19","v":75},{"$f":"SQRT((AL18^2)+(AL19^2))","v":36.359317925395686},{"$f":"AM18+AM19","v":271},{"$f":"SQRT((AN18^2)+(AN19^2))","v":113.84638773364749},{"$f":"AO18+AO19","v":421},{"$f":"SQRT((AP18^2)+(AP19^2))","v":131.24404748406687},{"$f":"AQ18+AQ19","v":462},{"$f":"SQRT((AR18^2)+(AR19^2))","v":183.05190520723897},{"$f":"AS18+AS19","v":218},{"$f":"SQRT((AT18^2)+(AT19^2))","v":99.724620831567975},{"$f":"AU18+AU19","v":77},{"$f":"SQRT((AV18^2)+(AV19^2))","v":41.048751503547585},{"$f":"AW18+AW19","v":67},{"$f":"SQRT((AX18^2)+(AX19^2))","v":30.870698080866262},{"$f":"AY18+AY19","v":156},{"$f":"SQRT((AZ18^2)+(AZ19^2))","v":59.908263203000637},{"$f":"BA18+BA19","v":124},{"$f":"SQRT((BB18^2)+(BB19^2))","v":47.801673610868477},{"$f":"BC18+BC19","v":96},{"$f":"SQRT((BD18^2)+(BD19^2))","v":44.283179650969061}]
[null,"Income $75,000 to $99,999 ",{"$f":"$C$20","v":277},{"$f":"$D$20","v":109},{"$f":"$E$20","v":146},{"$f":"$F$20","v":49},{"$f":"$G$20","v":216},{"$f":"$H$20","v":96},{"$f":"$I$20","v":207},{"$f":"$J$20","v":57},{"$f":"$K$20","v":79},{"$f":"$L$20","v":28},{"$f":"$M$20","v":146},{"$f":"$N$20","v":54},{"$f":"$O$20","v":126},{"$f":"$P$20","v":66},{"$f":"Q20","v":2660},342,108,43,111,43,371,101,{"$f":"Y20","v":644},220,237,120,58,27,660,188,368,138,268,153,79,36,157,53,{"$f":"AO20","v":322},115,318,95,260,96,97,36,80,31,88,32,109,42,64,{"$f":"BD20","v":27}]
[null,"Income $100,000 to $149,999 ",{"$f":"$C$21+$C$22","v":336},{"$f":"SQRT(($D$21^2)+($D$22^2))","v":117.64352935882194},{"$f":"$E$21+$E$22","v":165},{"$f":"SQRT(($F$21^2)+($F$22^2))","v":68.24221567329127},{"$f":"$G$21+$G$22","v":286},{"$f":"SQRT(($H$21^2)+($H$22^2))","v":108.2450922675019},{"$f":"$I$21+$I$22","v":763},{"$f":"SQRT(($J$21^2)+($J$22^2))","v":169.53170794869024},{"$f":"$K$21+$K$22","v":153},{"$f":"SQRT(($L$21^2)+($L$22^2))","v":50.24937810560445},{"$f":"$M$21+$M$22","v":161},{"$f":"SQRT(($N$21^2)+($N$22^2))","v":47.434164902525687},{"$f":"$O$21+$O$22","v":280},{"$f":"SQRT(($P$21^2)+($P$22^2))","v":80.262070743284468},{"$f":"Q21+Q22","v":3112},{"$f":"SQRT((R21^2)+(R22^2))","v":292.75416307885359},{"$f":"S21+S22","v":110},{"$f":"SQRT((T21^2)+(T22^2))","v":47.801673610868477},{"$f":"U21+U22","v":229},{"$f":"SQRT((V21^2)+(V22^2))","v":71.028163428319047},{"$f":"W21+W22","v":415},{"$f":"SQRT((X21^2)+(X22^2))","v":132.65368445693471},{"$f":"Y21+Y22","v":649},{"$f":"SQRT((Z21^2)+(Z22^2))","v":154.76756766196203},{"$f":"AA21+AA22","v":591},{"$f":"SQRT((AB21^2)+(AB22^2))","v":279.50134167835404},{"$f":"AC21+AC22","v":68},{"$f":"SQRT((AD21^2)+(AD22^2))","v":24.083189157584592},{"$f":"AE21+AE22","v":1042},{"$f":"SQRT((AF21^2)+(AF22^2))","v":212.2851855405836},{"$f":"AG21+AG22","v":452},{"$f":"SQRT((AH21^2)+(AH22^2))","v":184.70787747142785},{"$f":"AI21+AI22","v":418},{"$f":"SQRT((AJ21^2)+(AJ22^2))","v":153.32318807016765},{"$f":"AK21+AK22","v":200},{"$f":"SQRT((AL21^2)+(AL22^2))","v":62.681735776859277},{"$f":"AM21+AM22","v":227},{"$f":"SQRT((AN21^2)+(AN22^2))","v":82.328609851011095},{"$f":"AO21+AO22","v":408},{"$f":"SQRT((AP21^2)+(AP22^2))","v":122.88612614937456},{"$f":"AQ21+AQ22","v":669},{"$f":"SQRT((AR21^2)+(AR22^2))","v":196.54261624390779},{"$f":"AS21+AS22","v":434},{"$f":"SQRT((AT21^2)+(AT22^2))","v":151.48927354766738},{"$f":"AU21+AU22","v":120},{"$f":"SQRT((AV21^2)+(AV22^2))","v":41.868842830916641},{"$f":"AW21+AW22","v":225},{"$f":"SQRT((AX21^2)+(AX22^2))","v":105.30906893520614},{"$f":"AY21+AY22","v":290},{"$f":"SQRT((AZ21^2)+(AZ22^2))","v":69.892775020026207},{"$f":"BA21+BA22","v":240},{"$f":"SQRT((BB21^2)+(BB22^2))","v":73.389372527635089},{"$f":"BC21+BC22","v":169},{"$f":"SQRT((BD21^2)+(BD22^2))","v":63.976558206893252}]
[null,"Income $150,000 to $199,999 ",{"$f":"$C$23","v":251},{"$f":"$D$23","v":88},{"$f":"$E$23","v":127},{"$f":"$F$23","v":45},{"$f":"$G$23","v":120},{"$f":"$H$23","v":73},{"$f":"$I$23","v":551},{"$f":"$J$23","v":132},{"$f":"$K$23","v":48},{"$f":"$L$23","v":21},{"$f":"$M$23","v":199},{"$f":"$N$23","v":60},{"$f":"$O$23","v":228},{"$f":"$P$23","v":85},{"$f":"Q23","v":1813},349,40,21,270,85,214,99,{"$f":"Y23","v":207},90,150,87,31,19,539,145,412,141,281,141,108,39,174,73,{"$f":"AO23","v":127},71,373,153,61,39,140,97,140,79,121,51,147,37,81,{"$f":"BD23","v":29}]
[null,"Income $200,000 or more ",{"$f":"$C$24","v":39},{"$f":"$D$24","v":33},{"$f":"$E$24","v":79},{"$f":"$F$24","v":34},{"$f":"$G$24","v":115},{"$f":"$H$24","v":60},{"$f":"$I$24","v":867},{"$f":"$J$24","v":159},{"$f":"$K$24","v":65},{"$f":"$L$24","v":27},{"$f":"$M$24","v":157},{"$f":"$N$24","v":53},{"$f":"$O$24","v":118},{"$f":"$P$24","v":44},1767,253,26,17,223,68,155,73,{"$f":"Y24","v":227},94,240,91,18,16,988,226,433,148,209,116,143,58,374,97,{"$f":"AO24","v":101},49,183,75,72,58,29,16,166,69,131,53,45,18,102,{"$f":"BD24","v":34}]
[]
[]
[]
[]
[]
[]
[]
[]
[]
[]
[]
[]
[]
[]
[]
[]
[]
[]
[]
[]
[]
[]
[]
[]
[null,"B19001. HOUSEHOLD INCOME IN THE PAST 12 MONTHS (IN 2017 INFLATION-ADJUSTED DOLLARS)",null,null,null,null,null,null,null,null,null,null,null,null,{"$f":"B70","v":"B19001. HOUSEHOLD INCOME IN THE PAST 12 MONTHS (IN 2017 INFLATION-ADJUSTED DOLLARS)"}]
[null,"Universe:  HOUSEHOLDS",null,null,null,null,null,null,null,null,null,null,null,null,{"$f":"B72","v":"Data Set: 2013-2017 American Community Survey 5-Year Estimates"}]
[null,"Data Set: 2013-2017 American Community Survey 5-Year Estimates"]
[]
[null,null,"Allenstown",null,"Andover",null,"Boscawen",null,"Bow",null,"Bradford",null,"Canterbury",null,"Chichester",null,"Concord",null,"Danbury",null,"Dunbarton",null,"Epsom",null,"Franklin",null,"Henniker",null,"Hill",null,"Hooksett",null,"Hopkinton",null,"Loudon",null,"Newbury",null,"New London",null,"Northfield",null,"Pembroke",null,"Pittsfield",null,"Salisbury",null,"Sutton",null,"Warner",null,"Webster",null,"Wilmot"]
[null,null,"Estimate","Margin Of Error","Estimate","Margin Of Error","Estimate","Margin Of Error","Estimate","Margin Of Error","Estimate","Margin Of Error","Estimate","Margin Of Error","Estimate","Margin Of Error","Estimate","Margin Of Error","Estimate","Margin Of Error","Estimate","Margin Of Error","Estimate","Margin Of Error","Estimate","Margin Of Error","Estimate","Margin Of Error","Estimate","Margin Of Error","Estimate","Margin Of Error","Estimate","Margin Of Error","Estimate","Margin Of Error","Estimate","Margin Of Error","Estimate","Margin Of Error","Estimate","Margin Of Error","Estimate","Margin Of Error","Estimate","Margin Of Error","Estimate","Margin Of Error","Estimate","Margin Of Error","Estimate","Margin Of Error","Estimate","Margin Of Error","Estimate","Margin Of Error"]
[null,"Total Households",1690,118,1071,84,1241,126,2846,103,646,79,895,69,991,48,17011,407,568,64,1020,45,1751,119,3494,212,1690,144,400,46,5143,201,2057,114,2024,165,822,89,1678,160,1770,84,2608,145,1586,115,535,63,772,100,1048,93,781,56,652,64]
[null,"Households With"]
[null,"Income Less than $10,000 ",62,38,54,46,81,46,57,37,32,19,18,15,28,28,1031,237,9,7,9,10,33,27,233,85,100,71,12,17,108,72,17,27,82,55,15,13,53,35,15,23,76,79,185,106,5,7,13,16,47,34,25,19,27,25]
[null,"Income $10,000 to $14,999 ",202,89,36,39,53,43,80,57,13,10,21,17,12,13,897,202,7,6,6,8,65,60,230,99,121,76,0,11,182,93,33,39,68,55,5,7,63,44,32,23,117,102,114,64,23,20,8,13,22,25,19,18,16,13]
[null,"Income $15,000 to $19,999 ",8,13,18,16,57,48,92,46,20,12,38,20,18,14,606,141,35,25,0,11,80,53,261,126,109,75,0,11,104,54,33,31,40,34,11,11,71,52,101,71,65,45,60,43,14,11,7,7,51,32,26,18,10,11]
[null,"Income $20,000 to $24,999 ",118,77,64,31,50,41,98,53,11,9,34,31,21,19,950,192,24,16,31,17,83,44,138,69,31,38,29,21,206,81,55,40,109,75,24,15,79,46,52,50,87,59,71,48,25,22,37,28,37,28,24,14,31,25]
[null,"Income $25,000 to $29,999 ",61,50,42,29,67,38,81,43,47,26,15,13,11,12,838,158,37,19,54,37,68,39,308,106,31,36,7,7,185,81,26,30,0,15,33,20,68,45,104,76,118,61,87,71,12,10,27,22,34,29,12,12,28,16]
[null,"Income $30,000 to $34,999 ",122,59,89,50,81,69,48,31,35,22,16,13,17,15,988,196,34,25,16,12,102,69,85,61,118,55,22,16,145,78,90,59,203,84,21,17,62,50,83,62,81,86,45,33,19,19,33,25,21,13,29,17,34,27]
[null,"Income $35,000 to $39,999 ",82,48,49,37,47,31,43,34,26,20,25,21,32,23,682,155,24,22,24,15,33,25,246,95,26,32,33,18,244,121,44,44,120,102,33,23,7,11,73,43,14,24,62,43,15,11,21,17,33,19,45,25,21,16]
[null,"Income $40,000 to $44,999 ",49,32,53,35,8,13,83,49,16,11,26,18,42,24,845,224,41,22,53,26,53,33,277,113,32,27,27,16,191,72,47,37,38,55,11,13,97,52,76,39,100,68,59,43,30,17,59,33,37,28,67,28,42,25]
[null,"Income $45,000 to $49,999 ",67,36,16,13,104,62,76,42,18,11,29,20,56,40,745,152,14,11,36,27,58,47,177,92,46,36,7,7,112,59,106,74,35,40,32,22,53,33,105,65,57,44,152,72,13,10,33,28,73,38,39,18,29,19]
[null,"Income $50,000 to $59,999 ",179,65,56,23,85,50,146,61,87,38,71,36,84,41,1199,196,48,30,68,32,159,79,241,107,40,28,31,17,298,101,178,116,147,82,75,33,115,62,149,70,158,103,126,56,53,29,61,37,71,33,51,24,81,37]
[null,"Income $60,000 to $74,999 ",187,65,104,41,198,92,180,80,79,28,100,40,117,38,1801,260,89,37,101,36,214,104,371,114,296,117,55,20,534,145,200,112,223,119,58,24,185,74,190,60,369,131,156,67,91,37,66,30,139,53,87,34,78,33]
[null,"Income $75,000 to $99,999 ",213,76,177,60,215,88,426,108,118,35,153,49,222,48,2312,269,113,34,179,39,219,86,516,137,261,91,92,30,951,203,300,114,346,109,156,55,150,58,325,88,564,148,187,80,95,28,126,47,136,45,141,41,62,24]
[null,"Income $100,000 to $124,999 ",188,71,145,56,58,42,374,83,46,18,115,44,128,34,1419,224,50,31,143,47,136,63,255,83,187,73,38,20,598,127,280,115,194,97,109,39,275,72,240,86,232,91,76,42,63,32,95,45,92,35,91,28,61,26]
[null,"Income $125,000 to $149,999 ",53,30,67,33,48,36,318,83,44,23,119,41,42,23,927,176,26,20,80,29,242,82,88,48,85,51,31,14,507,133,106,71,116,73,68,28,155,62,94,45,226,89,37,31,31,17,93,41,103,38,48,22,40,17]
[null,"Income $150,000 to $199,999 ",99,55,78,38,38,33,459,100,26,17,60,27,119,40,970,175,10,10,104,43,94,42,37,28,112,60,6,6,402,103,278,117,155,98,95,44,128,56,58,38,188,80,122,74,21,14,45,31,65,38,46,23,32,17]
[null,"Income $200,000 or more ",0,11,23,17,51,37,285,85,28,25,55,26,42,23,801,153,7,7,116,40,112,64,31,43,95,50,10,8,376,142,264,100,148,85,76,38,117,54,73,47,156,85,47,33,25,20,48,30,87,36,31,19,60,30]
[]
[]
[]
[]
[null,{"$f":"\"Calculated \"&B70","v":"Calculated B19001. HOUSEHOLD INCOME IN THE PAST 12 MONTHS (IN 2017 INFLATION-ADJUSTED DOLLARS)"}]
[null,"Universe:  HOUSEHOLDS"]
[null,{"$f":"B72","v":"Data Set: 2013-2017 American Community Survey 5-Year Estimates"}]
[null,null,"Allenstown",null,"Andover",null,"Boscawen",null,"Bow",null,"Bradford",null,"Canterbury",null,"Chichester",null,"Concord",null,"Danbury",null,"Dunbarton",null,"Epsom",null,"Franklin",null,"Henniker",null,"Hill",null,"Hooksett",null,"Hopkinton",null,"Loudon",null,"Newbury",null,"New London",null,"Northfield",null,"Pembroke",null,"Pittsfield",null,"Salisbury",null,"Sutton",null,"Warner",null,"Webster",null,"Wilmot"]
[null,null,"Estimate","Margin Of Error","Estimate","Margin Of Error","Estimate","Margin Of Error","Estimate","Margin Of Error","Estimate","Margin Of Error","Estimate","Margin Of Error","Estimate","Margin Of Error","Estimate","Margin Of Error","Estimate","Margin Of Error","Estimate","Margin Of Error","Estimate","Margin Of Error","Estimate","Margin Of Error","Estimate","Margin Of Error","Estimate","Margin Of Error","Estimate","Margin Of Error","Estimate","Margin Of Error","Estimate","Margin Of Error","Estimate","Margin Of Error","Estimate","Margin Of Error","Estimate","Margin Of Error","Estimate","Margin Of Error","Estimate","Margin Of Error","Estimate","Margin Of Error","Estimate","Margin Of Error","Estimate","Margin Of Error","Estimate","Margin Of Error","Estimate","Margin Of Error"]
[null,"Total Households",{"$f":"C76","v":1690},118,1071,84,1241,126,2846,103,646,79,895,69,991,48,17011,{"$f":"R76","v":407},568,64,1020,45,1751,119,3494,212,1690,144,400,46,5143,201,2057,114,2024,165,822,89,1678,160,1770,84,2608,145,1586,115,535,63,772,100,1048,93,781,56,652,{"$f":"BD76","v":64}]
[null,"Households With"]
[null,"Income Less than 10,000 ",{"$f":"C78","v":62},38,54,46,81,46,57,37,32,19,18,15,28,28,1031,{"$f":"R78","v":237},9,7,9,10,33,27,233,85,100,71,12,17,108,72,17,27,82,55,15,13,53,35,15,23,76,79,185,106,5,7,13,16,47,34,25,19,27,{"$f":"BD78","v":25}]
[null,"Income 10,000 to 14,999 ",{"$f":"C79","v":202},89,36,39,53,43,80,57,13,10,21,17,12,13,897,202,7,6,6,8,65,60,230,99,121,76,0,11,182,93,33,39,68,55,5,7,63,44,32,23,117,102,114,64,23,20,8,13,22,25,19,18,16,{"$f":"BD79","v":13}]
[null,"Income 15,000 to 24,999 ",{"$f":"C80+C81","v":126},{"$f":"SQRT((D80^2)+(D81^2))","v":78.089692021418557},{"$f":"E80+E81","v":82},{"$f":"SQRT((F80^2)+(F81^2))","v":34.885527085024819},{"$f":"G80+G81","v":107},{"$f":"SQRT((H80^2)+(H81^2))","v":63.126856408346519},{"$f":"I80+I81","v":190},{"$f":"SQRT((J80^2)+(J81^2))","v":70.178344238091},{"$f":"K80+K81","v":31},{"$f":"SQRT((L80^2)+(L81^2))","v":15},{"$f":"M80+M81","v":72},{"$f":"SQRT((N80^2)+(N81^2))","v":36.891733491393431},{"$f":"O80+O81","v":39},{"$f":"SQRT((P80^2)+(P81^2))","v":23.600847442411894},{"$f":"Q80+Q81","v":1556},{"$f":"SQRT((R80^2)+(R81^2))","v":238.21209037326381},{"$f":"S80+S81","v":59},{"$f":"SQRT((T80^2)+(T81^2))","v":29.681644159311659},{"$f":"U80+U81","v":31},{"$f":"SQRT((V80^2)+(V81^2))","v":20.248456731316587},{"$f":"W80+W81","v":163},{"$f":"SQRT((X80^2)+(X81^2))","v":68.8839603971781},{"$f":"Y80+Y81","v":399},{"$f":"SQRT((Z80^2)+(Z81^2))","v":143.65583872575453},{"$f":"AA80+AA81","v":140},{"$f":"SQRT((AB80^2)+(AB81^2))","v":84.077345343439575},{"$f":"AC80+AC81","v":29},{"$f":"SQRT((AD80^2)+(AD81^2))","v":23.706539182259394},{"$f":"AE80+AE81","v":310},{"$f":"SQRT((AF80^2)+(AF81^2))","v":97.349884437527706},{"$f":"AG80+AG81","v":88},{"$f":"SQRT((AH80^2)+(AH81^2))","v":50.606323715519977},{"$f":"AI80+AI81","v":149},{"$f":"SQRT((AJ80^2)+(AJ81^2))","v":82.346827504160714},{"$f":"AK80+AK81","v":35},{"$f":"SQRT((AL80^2)+(AL81^2))","v":18.601075237738275},{"$f":"AM80+AM81","v":150},{"$f":"SQRT((AN80^2)+(AN81^2))","v":69.426219830839131},{"$f":"AO80+AO81","v":153},{"$f":"SQRT((AP80^2)+(AP81^2))","v":86.838931361457924},{"$f":"AQ80+AQ81","v":152},{"$f":"SQRT((AR80^2)+(AR81^2))","v":74.202425836356596},{"$f":"AS80+AS81","v":131},{"$f":"SQRT((AT80^2)+(AT81^2))","v":64.443773942872099},{"$f":"AU80+AU81","v":39},{"$f":"SQRT((AV80^2)+(AV81^2))","v":24.596747752497688},{"$f":"AW80+AW81","v":44},{"$f":"SQRT((AX80^2)+(AX81^2))","v":28.861739379323623},{"$f":"AY80+AY81","v":88},{"$f":"SQRT((AZ80^2)+(AZ81^2))","v":42.5205832509386},{"$f":"BA80+BA81","v":50},{"$f":"SQRT((BB80^2)+(BB81^2))","v":22.803508501982758},{"$f":"BC80+BC81","v":41},{"$f":"SQRT((BD80^2)+(BD81^2))","v":27.313000567495326}]
[null,"Income 25,000 to 34,999 ",{"$f":"C82+C83","v":183},{"$f":"SQRT((D82^2)+(D83^2))","v":77.336925203941234},{"$f":"E82+E83","v":131},{"$f":"SQRT((F82^2)+(F83^2))","v":57.801384066473702},{"$f":"G82+G83","v":148},{"$f":"SQRT((H82^2)+(H83^2))","v":78.771822373231913},{"$f":"I82+I83","v":129},{"$f":"SQRT((J82^2)+(J83^2))","v":53.009433122794285},{"$f":"K82+K83","v":82},{"$f":"SQRT((L82^2)+(L83^2))","v":34.058772731852805},{"$f":"M82+M83","v":31},{"$f":"SQRT((N82^2)+(N83^2))","v":18.384776310850235},{"$f":"O82+O83","v":28},{"$f":"SQRT((P82^2)+(P83^2))","v":19.209372712298546},{"$f":"Q82+Q83","v":1826},{"$f":"SQRT((R82^2)+(R83^2))","v":251.75384803414624},{"$f":"S82+S83","v":71},{"$f":"SQRT((T82^2)+(T83^2))","v":31.400636936215164},{"$f":"U82+U83","v":70},{"$f":"SQRT((V82^2)+(V83^2))","v":38.897300677553446},{"$f":"W82+W83","v":170},{"$f":"SQRT((X82^2)+(X83^2))","v":79.259068881737434},{"$f":"Y82+Y83","v":393},{"$f":"SQRT((Z82^2)+(Z83^2))","v":122.29881438509533},{"$f":"AA82+AA83","v":149},{"$f":"SQRT((AB82^2)+(AB83^2))","v":65.73431371817918},{"$f":"AC82+AC83","v":29},{"$f":"SQRT((AD82^2)+(AD83^2))","v":17.464249196572979},{"$f":"AE82+AE83","v":330},{"$f":"SQRT((AF82^2)+(AF83^2))","v":112.44998888394787},{"$f":"AG82+AG83","v":116},{"$f":"SQRT((AH82^2)+(AH83^2))","v":66.189122973491649},{"$f":"AI82+AI83","v":203},{"$f":"SQRT((AJ82^2)+(AJ83^2))","v":85.328775919967356},{"$f":"AK82+AK83","v":54},{"$f":"SQRT((AL82^2)+(AL83^2))","v":26.248809496813376},{"$f":"AM82+AM83","v":130},{"$f":"SQRT((AN82^2)+(AN83^2))","v":67.268120235368556},{"$f":"AO82+AO83","v":187},{"$f":"SQRT((AP82^2)+(AP83^2))","v":98.081598681913832},{"$f":"AQ82+AQ83","v":199},{"$f":"SQRT((AR82^2)+(AR83^2))","v":105.43718509140881},{"$f":"AS82+AS83","v":132},{"$f":"SQRT((AT82^2)+(AT83^2))","v":78.294316524253531},{"$f":"AU82+AU83","v":31},{"$f":"SQRT((AV82^2)+(AV83^2))","v":21.470910553583888},{"$f":"AW82+AW83","v":60},{"$f":"SQRT((AX82^2)+(AX83^2))","v":33.301651610693426},{"$f":"AY82+AY83","v":55},{"$f":"SQRT((AZ82^2)+(AZ83^2))","v":31.780497164141408},{"$f":"BA82+BA83","v":41},{"$f":"SQRT((BB82^2)+(BB83^2))","v":20.808652046684813},{"$f":"BC82+BC83","v":62},{"$f":"SQRT((BD82^2)+(BD83^2))","v":31.384709652950431}]
[null,"Income 35,000 to 49,999 ",{"$f":"C84+C85+C86","v":198},{"$f":"SQRT((D84^2)+(D85^2)+(D86^2))","v":68},{"$f":"E84+E85+E86","v":118},{"$f":"SQRT((F84^2)+(F85^2)+(F86^2))","v":52.564246403805697},{"$f":"G84+G85+G86","v":159},{"$f":"SQRT((H84^2)+(H85^2)+(H86^2))","v":70.526590730021823},{"$f":"I84+I85+I86","v":202},{"$f":"SQRT((J84^2)+(J85^2)+(J86^2))","v":72.945184899347538},{"$f":"K84+K85+K86","v":60},{"$f":"SQRT((L84^2)+(L85^2)+(L86^2))","v":25.337718918639855},{"$f":"M84+M85+M86","v":80},{"$f":"SQRT((N84^2)+(N85^2)+(N86^2))","v":34.132096331752024},{"$f":"O84+O85+O86","v":130},{"$f":"SQRT((P84^2)+(P85^2)+(P86^2))","v":52.009614495783374},{"$f":"Q84+Q85+Q86","v":2272},{"$f":"SQRT((R84^2)+(R85^2)+(R86^2))","v":311.93749373872964},{"$f":"S84+S85+S86","v":79},{"$f":"SQRT((T84^2)+(T85^2)+(T86^2))","v":33},{"$f":"U84+U85+U86","v":113},{"$f":"SQRT((V84^2)+(V85^2)+(V86^2))","v":40.373258476372698},{"$f":"W84+W85+W86","v":144},{"$f":"SQRT((X84^2)+(X85^2)+(X86^2))","v":62.63385665915839},{"$f":"Y84+Y85+Y86","v":700},{"$f":"SQRT((Z84^2)+(Z85^2)+(Z86^2))","v":173.9482681718907},{"$f":"AA84+AA85+AA86","v":104},{"$f":"SQRT((AB84^2)+(AB85^2)+(AB86^2))","v":55.21775076911409},{"$f":"AC84+AC85+AC86","v":67},{"$f":"SQRT((AD84^2)+(AD85^2)+(AD86^2))","v":25.079872407968907},{"$f":"AE84+AE85+AE86","v":547},{"$f":"SQRT((AF84^2)+(AF85^2)+(AF86^2))","v":152.66302761310612},{"$f":"AG84+AG85+AG86","v":197},{"$f":"SQRT((AH84^2)+(AH85^2)+(AH86^2))","v":93.706990134141009},{"$f":"AI84+AI85+AI86","v":193},{"$f":"SQRT((AJ84^2)+(AJ85^2)+(AJ86^2))","v":122.59282197584001},{"$f":"AK84+AK85+AK86","v":76},{"$f":"SQRT((AL84^2)+(AL85^2)+(AL86^2))","v":34.380226875342167},{"$f":"AM84+AM85+AM86","v":157},{"$f":"SQRT((AN84^2)+(AN85^2)+(AN86^2))","v":62.561969278468212},{"$f":"AO84+AO85+AO86","v":254},{"$f":"SQRT((AP84^2)+(AP85^2)+(AP86^2))","v":87.149297185921128},{"$f":"AQ84+AQ85+AQ86","v":171},{"$f":"SQRT((AR84^2)+(AR85^2)+(AR86^2))","v":84.474848327771497},{"$f":"AS84+AS85+AS86","v":273},{"$f":"SQRT((AT84^2)+(AT85^2)+(AT86^2))","v":94.244363226667303},{"$f":"AU84+AU85+AU86","v":58},{"$f":"SQRT((AV84^2)+(AV85^2)+(AV86^2))","v":22.583179581272429},{"$f":"AW84+AW85+AW86","v":113},{"$f":"SQRT((AX84^2)+(AX85^2)+(AX86^2))","v":46.497311750250681},{"$f":"AY84+AY85+AY86","v":143},{"$f":"SQRT((AZ84^2)+(AZ85^2)+(AZ86^2))","v":50.882216932834204},{"$f":"BA84+BA85+BA86","v":151},{"$f":"SQRT((BB84^2)+(BB85^2)+(BB86^2))","v":41.629316592997299},{"$f":"BC84+BC85+BC86","v":92},{"$f":"SQRT((BD84^2)+(BD85^2)+(BD86^2))","v":35.242020373412188}]
[null,"Income 50,000 to 74,999 ",{"$f":"C87+C88","v":366},{"$f":"SQRT((D87^2)+(D88^2))","v":91.923881554251182},{"$f":"E87+E88","v":160},{"$f":"SQRT((F87^2)+(F88^2))","v":47.010637094172637},{"$f":"G87+G88","v":283},{"$f":"SQRT((H87^2)+(H88^2))","v":104.70912090166739},{"$f":"I87+I88","v":326},{"$f":"SQRT((J87^2)+(J88^2))","v":100.60318086422517},{"$f":"K87+K88","v":166},{"$f":"SQRT((L87^2)+(L88^2))","v":47.201694884823787},{"$f":"M87+M88","v":171},{"$f":"SQRT((N87^2)+(N88^2))","v":53.814496188294839},{"$f":"O87+O88","v":201},{"$f":"SQRT((P87^2)+(P88^2))","v":55.901699437494742},{"$f":"Q87+Q88","v":3000},{"$f":"SQRT((R87^2)+(R88^2))","v":325.60098279949955},{"$f":"S87+S88","v":137},{"$f":"SQRT((T87^2)+(T88^2))","v":47.634021455258214},{"$f":"U87+U88","v":169},{"$f":"SQRT((V87^2)+(V88^2))","v":48.166378315169183},{"$f":"W87+W88","v":373},{"$f":"SQRT((X87^2)+(X88^2))","v":130.60245020672468},{"$f":"Y87+Y88","v":612},{"$f":"SQRT((Z87^2)+(Z88^2))","v":156.34896865665601},{"$f":"AA87+AA88","v":336},{"$f":"SQRT((AB87^2)+(AB88^2))","v":120.30378215168466},{"$f":"AC87+AC88","v":86},{"$f":"SQRT((AD87^2)+(AD88^2))","v":26.248809496813376},{"$f":"AE87+AE88","v":832},{"$f":"SQRT((AF87^2)+(AF88^2))","v":176.70880000724355},{"$f":"AG87+AG88","v":378},{"$f":"SQRT((AH87^2)+(AH88^2))","v":161.24515496597098},{"$f":"AI87+AI88","v":370},{"$f":"SQRT((AJ87^2)+(AJ88^2))","v":144.51643505151932},{"$f":"AK87+AK88","v":133},{"$f":"SQRT((AL87^2)+(AL88^2))","v":40.80441152620633},{"$f":"AM87+AM88","v":300},{"$f":"SQRT((AN87^2)+(AN88^2))","v":96.540147089177367},{"$f":"AO87+AO88","v":339},{"$f":"SQRT((AP87^2)+(AP88^2))","v":92.195444572928878},{"$f":"AQ87+AQ88","v":527},{"$f":"SQRT((AR87^2)+(AR88^2))","v":166.6433316997713},{"$f":"AS87+AS88","v":282},{"$f":"SQRT((AT87^2)+(AT88^2))","v":87.321245982864909},{"$f":"AU87+AU88","v":144},{"$f":"SQRT((AV87^2)+(AV88^2))","v":47.010637094172637},{"$f":"AW87+AW88","v":127},{"$f":"SQRT((AX87^2)+(AX88^2))","v":47.634021455258214},{"$f":"AY87+AY88","v":210},{"$f":"SQRT((AZ87^2)+(AZ88^2))","v":62.433965115151864},{"$f":"BA87+BA88","v":138},{"$f":"SQRT((BB87^2)+(BB88^2))","v":41.617304093369626},{"$f":"BC87+BC88","v":159},{"$f":"SQRT((BD87^2)+(BD88^2))","v":49.578221024962161}]
[null,"Income 75,000 to 99,999 ",{"$f":"C89","v":213},76,177,60,215,88,426,108,118,35,153,49,222,48,{"$f":"Q89","v":2312},269,113,34,179,39,219,86,516,137,261,91,92,30,951,203,300,114,346,109,156,55,150,58,325,88,564,148,187,80,95,28,126,47,136,45,141,41,62,{"$f":"BD89","v":24}]
[null,"Income 100,000 to 149,999 ",{"$f":"C90+C91","v":241},{"$f":"SQRT((D90^2)+(D91^2))","v":77.077882690172544},{"$f":"E90+E91","v":212},{"$f":"SQRT((F90^2)+(F91^2))","v":65},{"$f":"G90+G91","v":106},{"$f":"SQRT((H90^2)+(H91^2))","v":55.317266743757322},{"$f":"I90+I91","v":692},{"$f":"SQRT((J90^2)+(J91^2))","v":117.37972567696688},{"$f":"K90+K91","v":90},{"$f":"SQRT((L90^2)+(L91^2))","v":29.206163733020468},{"$f":"M90+M91","v":234},{"$f":"SQRT((N90^2)+(N91^2))","v":60.141499815019579},{"$f":"O90+O91","v":170},{"$f":"SQRT((P90^2)+(P91^2))","v":41.048751503547585},{"$f":"Q90+Q91","v":2346},{"$f":"SQRT((R90^2)+(R91^2))","v":284.87190103623772},{"$f":"S90+S91","v":76},{"$f":"SQRT((T90^2)+(T91^2))","v":36.891733491393431},{"$f":"U90+U91","v":223},{"$f":"SQRT((V90^2)+(V91^2))","v":55.226805085936306},{"$f":"W90+W91","v":378},{"$f":"SQRT((X90^2)+(X91^2))","v":103.40696301506973},{"$f":"Y90+Y91","v":343},{"$f":"SQRT((Z90^2)+(Z91^2))","v":95.880133500115647},{"$f":"AA90+AA91","v":272},{"$f":"SQRT((AB90^2)+(AB91^2))","v":89.050547443572739},{"$f":"AC90+AC91","v":69},{"$f":"SQRT((AD90^2)+(AD91^2))","v":24.413111231467404},{"$f":"AE90+AE91","v":1105},{"$f":"SQRT((AF90^2)+(AF91^2))","v":183.89671013914307},{"$f":"AG90+AG91","v":386},{"$f":"SQRT((AH90^2)+(AH91^2))","v":135.15176654413364},{"$f":"AI90+AI91","v":310},{"$f":"SQRT((AJ90^2)+(AJ91^2))","v":121.40016474453401},{"$f":"AK90+AK91","v":177},{"$f":"SQRT((AL90^2)+(AL91^2))","v":48.010415536631214},{"$f":"AM90+AM91","v":430},{"$f":"SQRT((AN90^2)+(AN91^2))","v":95.015788161757627},{"$f":"AO90+AO91","v":334},{"$f":"SQRT((AP90^2)+(AP91^2))","v":97.061835960381458},{"$f":"AQ90+AQ91","v":458},{"$f":"SQRT((AR90^2)+(AR91^2))","v":127.28707711311466},{"$f":"AS90+AS91","v":113},{"$f":"SQRT((AT90^2)+(AT91^2))","v":52.201532544552748},{"$f":"AU90+AU91","v":94},{"$f":"SQRT((AV90^2)+(AV91^2))","v":36.235341863986875},{"$f":"AW90+AW91","v":188},{"$f":"SQRT((AX90^2)+(AX91^2))","v":60.876925020897694},{"$f":"AY90+AY91","v":195},{"$f":"SQRT((AZ90^2)+(AZ91^2))","v":51.662365412357957},{"$f":"BA90+BA91","v":139},{"$f":"SQRT((BB90^2)+(BB91^2))","v":35.608987629529715},{"$f":"BC90+BC91","v":101},{"$f":"SQRT((BD90^2)+(BD91^2))","v":31.064449134018133}]
[null,"Income 150,000 to 199,999 ",{"$f":"C92","v":99},55,78,38,38,33,459,100,26,17,60,27,119,40,{"$f":"Q92","v":970},175,10,10,104,43,94,42,37,28,112,60,6,6,402,103,278,117,155,98,95,44,128,56,58,38,188,80,122,74,21,14,45,31,65,38,46,23,32,{"$f":"BD92","v":17}]
[null,"Income 200,000 or more ",{"$f":"C93","v":0},11,23,17,51,37,285,85,28,25,55,26,42,23,801,153,7,7,116,40,112,64,31,43,95,50,10,8,376,142,264,100,148,85,76,38,117,54,73,47,156,85,47,33,25,20,48,30,87,36,31,19,60,{"$f":"BD93","v":30}]
[]
[]
[]
[null,"B19001. HOUSEHOLD INCOME IN THE PAST 12 MONTHS (IN 2012 INFLATION-ADJUSTED DOLLARS)",null,null,null,null,null,null,null,null,null,null,null,null,{"$f":"B118","v":"B19001. HOUSEHOLD INCOME IN THE PAST 12 MONTHS (IN 2012 INFLATION-ADJUSTED DOLLARS)"}]
[null,"Universe:  HOUSEHOLDS",null,null,null,null,null,null,null,null,null,null,null,null,{"$f":"B120","v":"Data Set: 2008-2012 American Community Survey 5-Year Estimates"}]
[null,"Data Set: 2008-2012 American Community Survey 5-Year Estimates"]
[]
[null,null,"Allenstown",null,"Andover",null,"Boscawen",null,"Bow",null,"Bradford",null,"Canterbury",null,"Chichester",null,"Concord",null,"Danbury",null,"Dunbarton",null,"Epsom",null,"Franklin",null,"Henniker",null,"Hill",null,"Hooksett",null,"Hopkinton",null,"Loudon",null,"Newbury",null,"New London",null,"Northfield",null,"Pembroke",null,"Pittsfield",null,"Salisbury",null,"Sutton",null,"Warner",null,"Webster",null,"Wilmot"]
[null,null,"Estimate","Margin Of Error","Estimate","Margin Of Error","Estimate","Margin Of Error","Estimate","Margin Of Error","Estimate","Margin Of Error","Estimate","Margin Of Error","Estimate","Margin Of Error","Estimate","Margin Of Error","Estimate","Margin Of Error","Estimate","Margin Of Error","Estimate","Margin Of Error","Estimate","Margin Of Error","Estimate","Margin Of Error","Estimate","Margin Of Error","Estimate","Margin Of Error","Estimate","Margin Of Error","Estimate","Margin Of Error","Estimate","Margin Of Error","Estimate","Margin Of Error","Estimate","Margin Of Error","Estimate","Margin Of Error","Estimate","Margin Of Error","Estimate","Margin Of Error","Estimate","Margin Of Error","Estimate","Margin Of Error","Estimate","Margin Of Error","Estimate","Margin Of Error"]
[null,"Total Households",1693,132,950,87,1392,199,2577,105,607,65,954,55,941,51,18007,432,461,66,1041,59,1626,106,3375,167,1689,158,445,57,4729,192,2373,132,1912,107,823,86,1672,166,1782,150,2980,168,1528,125,508,63,647,81,1069,68,724,75,540,65]
[null,"Households With"]
[null,"Income Less than $10,000 ",92,85,27,28,42,36,36,62,27,21,8,12,15,15,1115,221,43,29,24,18,7,10,212,83,59,46,3,4,55,44,39,53,13,19,24,19,197,107,63,54,149,92,33,37,6,6,24,24,44,39,17,19,33,23]
[null,"Income $10,000 to $14,999 ",71,40,30,28,37,34,72,53,26,13,32,23,30,34,777,217,16,16,11,16,81,75,273,117,90,64,28,21,123,81,0,85,40,40,7,9,63,54,43,34,198,119,117,74,17,16,3,5,6,9,9,7,14,19]
[null,"Income $15,000 to $19,999 ",71,73,28,29,73,47,47,35,16,16,14,15,41,29,711,222,20,14,20,20,59,36,251,91,29,39,9,8,109,56,51,47,17,21,30,30,75,57,109,84,77,56,85,48,5,7,12,16,29,23,30,28,9,7]
[null,"Income $20,000 to $24,999 ",224,102,26,30,103,71,56,47,18,16,20,18,23,19,1088,224,37,23,20,21,78,50,332,116,63,52,29,20,75,45,52,48,40,31,21,16,74,54,74,45,70,59,54,36,24,22,22,21,40,26,17,14,27,18]
[null,"Income $25,000 to $29,999 ",38,31,39,27,52,48,92,58,47,27,31,16,59,34,1059,206,10,11,24,20,68,47,120,61,71,48,48,30,102,62,20,31,66,40,10,13,33,32,135,72,280,133,51,35,6,6,36,27,42,29,22,19,0,85]
[null,"Income $30,000 to $34,999 ",117,74,27,17,76,53,30,32,24,21,28,21,14,13,1006,223,48,23,23,20,99,51,181,85,23,21,19,12,233,100,85,79,105,60,78,49,73,59,97,74,39,36,76,58,7,7,30,20,51,29,20,17,20,12]
[null,"Income $35,000 to $39,999 ",51,44,78,50,46,51,66,64,21,13,36,22,32,23,693,169,32,21,29,22,66,39,135,60,91,73,11,11,230,121,134,69,127,75,9,10,90,59,105,86,131,76,78,64,33,23,21,18,75,49,39,25,15,11]
[null,"Income $40,000 to $44,999 ",80,46,30,31,27,31,39,39,28,18,32,25,34,24,1029,195,9,10,8,10,29,43,207,82,7,12,20,17,140,84,97,66,53,39,31,22,52,37,79,46,118,88,149,79,39,27,18,14,82,44,45,21,53,29]
[null,"Income $45,000 to $49,999 ",11,17,43,33,99,55,48,38,31,16,37,38,38,27,763,159,34,25,31,22,25,29,46,32,55,56,29,14,79,59,49,45,86,59,35,23,9,14,33,27,88,60,33,28,16,12,32,17,32,22,18,11,9,10]
[null,"Income $50,000 to $59,999 ",146,93,78,38,112,64,119,64,37,19,81,40,51,38,1501,232,34,23,46,25,97,58,220,78,197,98,32,23,260,98,173,116,108,53,114,46,101,64,200,94,241,130,143,74,54,29,70,34,152,79,86,28,31,25]
[null,"Income $60,000 to $74,999 ",170,82,143,59,199,86,199,98,86,32,98,41,122,42,1956,246,58,34,84,35,233,80,492,124,177,79,32,19,604,136,297,105,266,98,84,40,130,69,246,91,369,141,175,76,106,32,78,39,111,44,104,32,69,30]
[null,"Income $75,000 to $99,999 ",254,102,137,41,185,81,366,104,89,28,278,56,211,72,2661,304,64,26,218,61,258,88,544,153,265,115,98,28,943,201,466,139,402,109,168,52,150,64,368,98,417,139,260,103,71,25,136,44,150,51,145,42,87,35]
[null,"Income $100,000 to $124,999 ",194,83,131,45,192,73,333,123,49,22,103,42,110,37,1499,267,36,27,113,36,265,71,259,102,271,115,22,13,643,165,350,119,253,105,64,32,134,63,118,57,441,146,147,67,79,23,61,31,122,46,82,26,74,38]
[null,"Income $125,000 to $149,999 ",76,47,61,39,55,46,373,124,30,26,79,48,74,40,817,167,7,7,145,45,121,67,39,35,161,92,38,27,453,157,255,132,93,53,44,33,76,51,65,40,109,61,56,42,19,12,30,15,39,26,52,24,44,24]
[null,"Income $150,000 to $199,999 ",83,68,62,48,35,34,365,114,47,20,27,22,43,27,733,163,9,10,127,44,82,47,25,23,85,50,18,19,404,123,113,60,187,81,62,41,282,92,37,30,122,67,32,29,9,10,47,28,68,33,31,20,25,17]
[null,"Income $200,000 or more ",15,24,10,9,59,59,336,99,31,24,50,28,44,22,599,124,4,8,118,50,58,45,39,31,45,38,9,8,276,117,192,75,56,48,42,22,133,58,10,16,131,87,39,38,17,11,27,21,26,23,7,7,30,20]
[]
[]
[]
[]
[null,{"$f":"\"Calculated \"&B118","v":"Calculated B19001. HOUSEHOLD INCOME IN THE PAST 12 MONTHS (IN 2012 INFLATION-ADJUSTED DOLLARS)"}]
[null,"Universe:  HOUSEHOLDS"]
[null,{"$f":"B120","v":"Data Set: 2008-2012 American Community Survey 5-Year Estimates"}]
[null,null,"Allenstown",null,"Andover",null,"Boscawen",null,"Bow",null,"Bradford",null,"Canterbury",null,"Chichester",null,"Concord",null,"Danbury",null,"Dunbarton",null,"Epsom",null,"Franklin",null,"Henniker",null,"Hill",null,"Hooksett",null,"Hopkinton",null,"Loudon",null,"Newbury",null,"New London",null,"Northfield",null,"Pembroke",null,"Pittsfield",null,"Salisbury",null,"Sutton",null,"Warner",null,"Webster",null,"Wilmot"]
[null,null,"Estimate","Margin Of Error","Estimate","Margin Of Error","Estimate","Margin Of Error","Estimate","Margin Of Error","Estimate","Margin Of Error","Estimate","Margin Of Error","Estimate","Margin Of Error","Estimate","Margin Of Error","Estimate","Margin Of Error","Estimate","Margin Of Error","Estimate","Margin Of Error","Estimate","Margin Of Error","Estimate","Margin Of Error","Estimate","Margin Of Error","Estimate","Margin Of Error","Estimate","Margin Of Error","Estimate","Margin Of Error","Estimate","Margin Of Error","Estimate","Margin Of Error","Estimate","Margin Of Error","Estimate","Margin Of Error","Estimate","Margin Of Error","Estimate","Margin Of Error","Estimate","Margin Of Error","Estimate","Margin Of Error","Estimate","Margin Of Error","Estimate","Margin Of Error"]
[null,"Total Households",{"$f":"C124","v":1693},132,950,87,1392,199,2577,105,607,65,954,55,941,51,18007,{"$f":"R124","v":432},461,66,1041,59,1626,106,3375,167,1689,158,445,57,4729,192,2373,132,1912,107,823,86,1672,166,1782,150,2980,168,1528,125,508,63,647,81,1069,68,724,75,540,{"$f":"BD124","v":65}]
[null,"Households With"]
[null,"Income Less than 10,000 ",{"$f":"C126","v":92},85,27,28,42,36,36,62,27,21,8,12,15,15,1115,{"$f":"R126","v":221},43,29,24,18,7,10,212,83,59,46,3,4,55,44,39,53,13,19,24,19,197,107,63,54,149,92,33,37,6,6,24,24,44,39,17,19,33,{"$f":"BD126","v":23}]
[null,"Income 10,000 to 14,999 ",{"$f":"C127","v":71},40,30,28,37,34,72,53,26,13,32,23,30,34,777,217,16,16,11,16,81,75,273,117,90,64,28,21,123,81,0,85,40,40,7,9,63,54,43,34,198,119,117,74,17,16,3,5,6,9,9,7,14,{"$f":"BD127","v":19}]
[null,"Income 15,000 to 24,999 ",{"$f":"C128+C129","v":295},{"$f":"SQRT((D128^2)+(D129^2))","v":125.4312560727987},{"$f":"E128+E129","v":54},{"$f":"SQRT((F128^2)+(F129^2))","v":41.725292090050132},{"$f":"G128+G129","v":176},{"$f":"SQRT((H128^2)+(H129^2))","v":85.14693182963201},{"$f":"I128+I129","v":103},{"$f":"SQRT((J128^2)+(J129^2))","v":58.600341295934449},{"$f":"K128+K129","v":34},{"$f":"SQRT((L128^2)+(L129^2))","v":22.627416997969522},{"$f":"M128+M129","v":34},{"$f":"SQRT((N128^2)+(N129^2))","v":23.430749027719962},{"$f":"O128+O129","v":64},{"$f":"SQRT((P128^2)+(P129^2))","v":34.669871646719429},{"$f":"Q128+Q129","v":1799},{"$f":"SQRT((R128^2)+(R129^2))","v":315.37279527568637},{"$f":"S128+S129","v":57},{"$f":"SQRT((T128^2)+(T129^2))","v":26.92582403567252},{"$f":"U128+U129","v":40},{"$f":"SQRT((V128^2)+(V129^2))","v":29},{"$f":"W128+W129","v":137},{"$f":"SQRT((X128^2)+(X129^2))","v":61.611687202997452},{"$f":"Y128+Y129","v":583},{"$f":"SQRT((Z128^2)+(Z129^2))","v":147.4347313220328},{"$f":"AA128+AA129","v":92},{"$f":"SQRT((AB128^2)+(AB129^2))","v":65},{"$f":"AC128+AC129","v":38},{"$f":"SQRT((AD128^2)+(AD129^2))","v":21.540659228538015},{"$f":"AE128+AE129","v":184},{"$f":"SQRT((AF128^2)+(AF129^2))","v":71.840100222647237},{"$f":"AG128+AG129","v":103},{"$f":"SQRT((AH128^2)+(AH129^2))","v":67.178865724273734},{"$f":"AI128+AI129","v":57},{"$f":"SQRT((AJ128^2)+(AJ129^2))","v":37.443290453698111},{"$f":"AK128+AK129","v":51},{"$f":"SQRT((AL128^2)+(AL129^2))","v":34},{"$f":"AM128+AM129","v":149},{"$f":"SQRT((AN128^2)+(AN129^2))","v":78.517513969814402},{"$f":"AO128+AO129","v":183},{"$f":"SQRT((AP128^2)+(AP129^2))","v":95.294281045611541},{"$f":"AQ128+AQ129","v":147},{"$f":"SQRT((AR128^2)+(AR129^2))","v":81.344944526380985},{"$f":"AS128+AS129","v":139},{"$f":"SQRT((AT128^2)+(AT129^2))","v":60},{"$f":"AU128+AU129","v":29},{"$f":"SQRT((AV128^2)+(AV129^2))","v":23.086792761230392},{"$f":"AW128+AW129","v":34},{"$f":"SQRT((AX128^2)+(AX129^2))","v":26.40075756488817},{"$f":"AY128+AY129","v":69},{"$f":"SQRT((AZ128^2)+(AZ129^2))","v":34.713109915419565},{"$f":"BA128+BA129","v":47},{"$f":"SQRT((BB128^2)+(BB129^2))","v":31.304951684997057},{"$f":"BC128+BC129","v":36},{"$f":"SQRT((BD128^2)+(BD129^2))","v":19.313207915827967}]
[null,"Income 25,000 to 34,999 ",{"$f":"C130+C131","v":155},{"$f":"SQRT((D130^2)+(D131^2))","v":80.230916734136841},{"$f":"E130+E131","v":66},{"$f":"SQRT((F130^2)+(F131^2))","v":31.906112267087632},{"$f":"G130+G131","v":128},{"$f":"SQRT((H130^2)+(H131^2))","v":71.505244562899023},{"$f":"I130+I131","v":122},{"$f":"SQRT((J130^2)+(J131^2))","v":66.241980646716783},{"$f":"K130+K131","v":71},{"$f":"SQRT((L130^2)+(L131^2))","v":34.205262752974143},{"$f":"M130+M131","v":59},{"$f":"SQRT((N130^2)+(N131^2))","v":26.40075756488817},{"$f":"O130+O131","v":73},{"$f":"SQRT((P130^2)+(P131^2))","v":36.400549446402593},{"$f":"Q130+Q131","v":2065},{"$f":"SQRT((R130^2)+(R131^2))","v":303.58689036254515},{"$f":"S130+S131","v":58},{"$f":"SQRT((T130^2)+(T131^2))","v":25.495097567963924},{"$f":"U130+U131","v":47},{"$f":"SQRT((V130^2)+(V131^2))","v":28.284271247461902},{"$f":"W130+W131","v":167},{"$f":"SQRT((X130^2)+(X131^2))","v":69.354163537598808},{"$f":"Y130+Y131","v":301},{"$f":"SQRT((Z130^2)+(Z131^2))","v":104.62313319720452},{"$f":"AA130+AA131","v":94},{"$f":"SQRT((AB130^2)+(AB131^2))","v":52.392747589718944},{"$f":"AC130+AC131","v":67},{"$f":"SQRT((AD130^2)+(AD131^2))","v":32.310988842807021},{"$f":"AE130+AE131","v":335},{"$f":"SQRT((AF130^2)+(AF131^2))","v":117.66052864066182},{"$f":"AG130+AG131","v":105},{"$f":"SQRT((AH130^2)+(AH131^2))","v":84.864598037108507},{"$f":"AI130+AI131","v":171},{"$f":"SQRT((AJ130^2)+(AJ131^2))","v":72.111025509279784},{"$f":"AK130+AK131","v":88},{"$f":"SQRT((AL130^2)+(AL131^2))","v":50.695167422546305},{"$f":"AM130+AM131","v":106},{"$f":"SQRT((AN130^2)+(AN131^2))","v":67.119296778199342},{"$f":"AO130+AO131","v":232},{"$f":"SQRT((AP130^2)+(AP131^2))","v":103.24727599312246},{"$f":"AQ130+AQ131","v":319},{"$f":"SQRT((AR130^2)+(AR131^2))","v":137.78606605894515},{"$f":"AS130+AS131","v":127},{"$f":"SQRT((AT130^2)+(AT131^2))","v":67.742158217759794},{"$f":"AU130+AU131","v":13},{"$f":"SQRT((AV130^2)+(AV131^2))","v":9.2195444572928871},{"$f":"AW130+AW131","v":66},{"$f":"SQRT((AX130^2)+(AX131^2))","v":33.600595232822883},{"$f":"AY130+AY131","v":93},{"$f":"SQRT((AZ130^2)+(AZ131^2))","v":41.012193308819754},{"$f":"BA130+BA131","v":42},{"$f":"SQRT((BB130^2)+(BB131^2))","v":25.495097567963924},{"$f":"BC130+BC131","v":20},{"$f":"SQRT((BD130^2)+(BD131^2))","v":85.84287972802403}]
[null,"Income 35,000 to 49,999 ",{"$f":"C132+C133+C134","v":142},{"$f":"SQRT((D132^2)+(D133^2)+(D134^2))","v":65.886265640116534},{"$f":"E132+E133+E134","v":151},{"$f":"SQRT((F132^2)+(F133^2)+(F134^2))","v":67.453687816160212},{"$f":"G132+G133+G134","v":172},{"$f":"SQRT((H132^2)+(H133^2)+(H134^2))","v":81.16033513977132},{"$f":"I132+I133+I134","v":153},{"$f":"SQRT((J132^2)+(J133^2)+(J134^2))","v":84.029756634182874},{"$f":"K132+K133+K134","v":80},{"$f":"SQRT((L132^2)+(L133^2)+(L134^2))","v":27.367864366808018},{"$f":"M132+M133+M134","v":105},{"$f":"SQRT((N132^2)+(N133^2)+(N134^2))","v":50.527220386639122},{"$f":"O132+O133+O134","v":104},{"$f":"SQRT((P132^2)+(P133^2)+(P134^2))","v":42.825226210727713},{"$f":"Q132+Q133+Q134","v":2485},{"$f":"SQRT((R132^2)+(R133^2)+(R134^2))","v":303.09569445968708},{"$f":"S132+S133+S134","v":75},{"$f":"SQRT((T132^2)+(T133^2)+(T134^2))","v":34.146742157927747},{"$f":"U132+U133+U134","v":68},{"$f":"SQRT((V132^2)+(V133^2)+(V134^2))","v":32.680269276736382},{"$f":"W132+W133+W134","v":120},{"$f":"SQRT((X132^2)+(X133^2)+(X134^2))","v":64.892218331630488},{"$f":"Y132+Y133+Y134","v":388},{"$f":"SQRT((Z132^2)+(Z133^2)+(Z134^2))","v":106.5269918846862},{"$f":"AA132+AA133+AA134","v":153},{"$f":"SQRT((AB132^2)+(AB133^2)+(AB134^2))","v":92.784697014108957},{"$f":"AC132+AC133+AC134","v":60},{"$f":"SQRT((AD132^2)+(AD133^2)+(AD134^2))","v":24.617067250182341},{"$f":"AE132+AE133+AE134","v":449},{"$f":"SQRT((AF132^2)+(AF133^2)+(AF134^2))","v":158.67577004697347},{"$f":"AG132+AG133+AG134","v":280},{"$f":"SQRT((AH132^2)+(AH133^2)+(AH134^2))","v":105.55567251455508},{"$f":"AI132+AI133+AI134","v":266},{"$f":"SQRT((AJ132^2)+(AJ133^2)+(AJ134^2))","v":103.08734160894828},{"$f":"AK132+AK133+AK134","v":75},{"$f":"SQRT((AL132^2)+(AL133^2)+(AL134^2))","v":33.361654635224554},{"$f":"AM132+AM133+AM134","v":151},{"$f":"SQRT((AN132^2)+(AN133^2)+(AN134^2))","v":71.035202540712163},{"$f":"AO132+AO133+AO134","v":217},{"$f":"SQRT((AP132^2)+(AP133^2)+(AP134^2))","v":101.19782606360673},{"$f":"AQ132+AQ133+AQ134","v":337},{"$f":"SQRT((AR132^2)+(AR133^2)+(AR134^2))","v":130.843417870369},{"$f":"AS132+AS133+AS134","v":260},{"$f":"SQRT((AT132^2)+(AT133^2)+(AT134^2))","v":105.45615202537972},{"$f":"AU132+AU133+AU134","v":88},{"$f":"SQRT((AV132^2)+(AV133^2)+(AV134^2))","v":37.443290453698111},{"$f":"AW132+AW133+AW134","v":71},{"$f":"SQRT((AX132^2)+(AX133^2)+(AX134^2))","v":28.442925306655784},{"$f":"AY132+AY133+AY134","v":189},{"$f":"SQRT((AZ132^2)+(AZ133^2)+(AZ134^2))","v":69.433421347359797},{"$f":"BA132+BA133+BA134","v":102},{"$f":"SQRT((BB132^2)+(BB133^2)+(BB134^2))","v":34.452866353904433},{"$f":"BC132+BC133+BC134","v":77},{"$f":"SQRT((BD132^2)+(BD133^2)+(BD134^2))","v":32.58834147360065}]
[null,"Income 50,000 to 74,999 ",{"$f":"C135+C136","v":316},{"$f":"SQRT((D135^2)+(D136^2))","v":123.98790263570072},{"$f":"E135+E136","v":221},{"$f":"SQRT((F135^2)+(F136^2))","v":70.178344238091},{"$f":"G135+G136","v":311},{"$f":"SQRT((H135^2)+(H136^2))","v":107.20074626605917},{"$f":"I135+I136","v":318},{"$f":"SQRT((J135^2)+(J136^2))","v":117.04699910719626},{"$f":"K135+K136","v":123},{"$f":"SQRT((L135^2)+(L136^2))","v":37.215588131856791},{"$f":"M135+M136","v":179},{"$f":"SQRT((N135^2)+(N136^2))","v":57.280013966478741},{"$f":"O135+O136","v":173},{"$f":"SQRT((P135^2)+(P136^2))","v":56.639209034025185},{"$f":"Q135+Q136","v":3457},{"$f":"SQRT((R135^2)+(R136^2))","v":338.14198201347313},{"$f":"S135+S136","v":92},{"$f":"SQRT((T135^2)+(T136^2))","v":41.048751503547585},{"$f":"U135+U136","v":130},{"$f":"SQRT((V135^2)+(V136^2))","v":43.011626335213137},{"$f":"W135+W136","v":330},{"$f":"SQRT((X135^2)+(X136^2))","v":98.812954616284998},{"$f":"Y135+Y136","v":712},{"$f":"SQRT((Z135^2)+(Z136^2))","v":146.49232061783991},{"$f":"AA135+AA136","v":374},{"$f":"SQRT((AB135^2)+(AB136^2))","v":125.87692401707312},{"$f":"AC135+AC136","v":64},{"$f":"SQRT((AD135^2)+(AD136^2))","v":29.832867780352597},{"$f":"AE135+AE136","v":864},{"$f":"SQRT((AF135^2)+(AF136^2))","v":167.6305461424021},{"$f":"AG135+AG136","v":470},{"$f":"SQRT((AH135^2)+(AH136^2))","v":156.46405337968207},{"$f":"AI135+AI136","v":374},{"$f":"SQRT((AJ135^2)+(AJ136^2))","v":111.4136436887332},{"$f":"AK135+AK136","v":198},{"$f":"SQRT((AL135^2)+(AL136^2))","v":60.959002616512684},{"$f":"AM135+AM136","v":231},{"$f":"SQRT((AN135^2)+(AN136^2))","v":94.111635837445732},{"$f":"AO135+AO136","v":446},{"$f":"SQRT((AP135^2)+(AP136^2))","v":130.83195328359201},{"$f":"AQ135+AQ136","v":610},{"$f":"SQRT((AR135^2)+(AR136^2))","v":191.78373236539119},{"$f":"AS135+AS136","v":318},{"$f":"SQRT((AT135^2)+(AT136^2))","v":106.07544484940895},{"$f":"AU135+AU136","v":160},{"$f":"SQRT((AV135^2)+(AV136^2))","v":43.185645763378368},{"$f":"AW135+AW136","v":148},{"$f":"SQRT((AX135^2)+(AX136^2))","v":51.739733281106119},{"$f":"AY135+AY136","v":263},{"$f":"SQRT((AZ135^2)+(AZ136^2))","v":90.426765949026404},{"$f":"BA135+BA136","v":190},{"$f":"SQRT((BB135^2)+(BB136^2))","v":42.5205832509386},{"$f":"BC135+BC136","v":100},{"$f":"SQRT((BD135^2)+(BD136^2))","v":39.05124837953327}]
[null,"Income 75,000 to 99,999 ",{"$f":"C137","v":254},102,137,41,185,81,366,104,89,28,278,56,211,72,{"$f":"Q137","v":2661},304,64,26,218,61,258,88,544,153,265,115,98,28,943,201,466,139,402,109,168,52,150,64,368,98,417,139,260,103,71,25,136,44,150,51,145,42,87,{"$f":"BD137","v":35}]
[null,"Income 100,000 to 149,999 ",{"$f":"C138+C139","v":270},{"$f":"SQRT((D138^2)+(D139^2))","v":95.383436717283359},{"$f":"E138+E139","v":192},{"$f":"SQRT((F138^2)+(F139^2))","v":59.548299723837623},{"$f":"G138+G139","v":247},{"$f":"SQRT((H138^2)+(H139^2))","v":86.284413424441851},{"$f":"I138+I139","v":706},{"$f":"SQRT((J138^2)+(J139^2))","v":174.65680633745711},{"$f":"K138+K139","v":79},{"$f":"SQRT((L138^2)+(L139^2))","v":34.058772731852805},{"$f":"M138+M139","v":182},{"$f":"SQRT((N138^2)+(N139^2))","v":63.7808748764079},{"$f":"O138+O139","v":184},{"$f":"SQRT((P138^2)+(P139^2))","v":54.488530903301111},{"$f":"Q138+Q139","v":2316},{"$f":"SQRT((R138^2)+(R139^2))","v":314.92538798896476},{"$f":"S138+S139","v":43},{"$f":"SQRT((T138^2)+(T139^2))","v":27.892651361962706},{"$f":"U138+U139","v":258},{"$f":"SQRT((V138^2)+(V139^2))","v":57.628118136895637},{"$f":"W138+W139","v":386},{"$f":"SQRT((X138^2)+(X139^2))","v":97.621718894926246},{"$f":"Y138+Y139","v":298},{"$f":"SQRT((Z138^2)+(Z139^2))","v":107.83784122468327},{"$f":"AA138+AA139","v":432},{"$f":"SQRT((AB138^2)+(AB139^2))","v":147.27185746095552},{"$f":"AC138+AC139","v":60},{"$f":"SQRT((AD138^2)+(AD139^2))","v":29.966648127543394},{"$f":"AE138+AE139","v":1096},{"$f":"SQRT((AF138^2)+(AF139^2))","v":227.75864418282788},{"$f":"AG138+AG139","v":605},{"$f":"SQRT((AH138^2)+(AH139^2))","v":177.72169254201918},{"$f":"AI138+AI139","v":346},{"$f":"SQRT((AJ138^2)+(AJ139^2))","v":117.61802582937702},{"$f":"AK138+AK139","v":108},{"$f":"SQRT((AL138^2)+(AL139^2))","v":45.967379738244816},{"$f":"AM138+AM139","v":210},{"$f":"SQRT((AN138^2)+(AN139^2))","v":81.055536516637773},{"$f":"AO138+AO139","v":183},{"$f":"SQRT((AP138^2)+(AP139^2))","v":69.634761434214738},{"$f":"AQ138+AQ139","v":550},{"$f":"SQRT((AR138^2)+(AR139^2))","v":158.23084402227019},{"$f":"AS138+AS139","v":203},{"$f":"SQRT((AT138^2)+(AT139^2))","v":79.075912893876861},{"$f":"AU138+AU139","v":98},{"$f":"SQRT((AV138^2)+(AV139^2))","v":25.942243542145693},{"$f":"AW138+AW139","v":91},{"$f":"SQRT((AX138^2)+(AX139^2))","v":34.438350715445125},{"$f":"AY138+AY139","v":161},{"$f":"SQRT((AZ138^2)+(AZ139^2))","v":52.839379254491625},{"$f":"BA138+BA139","v":134},{"$f":"SQRT((BB138^2)+(BB139^2))","v":35.383612025908263},{"$f":"BC138+BC139","v":118},{"$f":"SQRT((BD138^2)+(BD139^2))","v":44.944410108488462}]
[null,"Income 150,000 to 199,999 ",{"$f":"C140","v":83},68,62,48,35,34,365,114,47,20,27,22,43,27,{"$f":"Q140","v":733},163,9,10,127,44,82,47,25,23,85,50,18,19,404,123,113,60,187,81,62,41,282,92,37,30,122,67,32,29,9,10,47,28,68,33,31,20,25,{"$f":"BD140","v":17}]
[null,"Income 200,000 or more ",{"$f":"C141","v":15},24,10,9,59,59,336,99,31,24,50,28,44,22,599,124,4,8,118,50,58,45,39,31,45,38,9,8,276,117,192,75,56,48,42,22,133,58,10,16,131,87,39,38,17,11,27,21,26,23,7,7,30,{"$f":"BD141","v":20}]

{"sheet":"ACS_Table_B19037","index":24,"n_rows":253,"n_cols":56,"rows_kept":253,"cut":false,"hidden":true,"merged":[]}
[null,"B19037. AGE OF HOUSEHOLDER BY HOUSEHOLD INCOME IN THE PAST 12 MONTHS (IN 2021 INFLATION-ADJUSTED DOLLARS)"]
[null,"Universe:  HOUSEHOLDS"]
[null,"Data Set: 2018-2022 American Community Survey 5-Year Estimates"]
[]
[null,null,"Allenstown",null,"Andover",null,"Boscawen",null,"Bow",null,"Bradford",null,"Canterbury",null,"Chichester",null,"Concord",null,"Danbury",null,"Dunbarton",null,"Epsom",null,"Franklin",null,"Henniker",null,"Hill",null,"Hooksett",null,"Hopkinton",null,"Loudon",null,"Newbury",null,"New London",null,"Northfield",null,"Pembroke",null,"Pittsfield",null,"Salisbury",null,"Sutton",null,"Warner",null,"Webster",null,"Wilmot"]
[null,null,"Estimate","Margin Of Error","Estimate","Margin Of Error","Estimate","Margin Of Error","Estimate","Margin Of Error","Estimate","Margin Of Error","Estimate","Margin Of Error","Estimate","Margin Of Error","Estimate","Margin Of Error","Estimate","Margin Of Error","Estimate","Margin Of Error","Estimate","Margin Of Error","Estimate","Margin Of Error","Estimate","Margin Of Error","Estimate","Margin Of Error","Estimate","Margin Of Error","Estimate","Margin Of Error","Estimate","Margin Of Error","Estimate","Margin Of Error","Estimate","Margin Of Error","Estimate","Margin Of Error","Estimate","Margin Of Error","Estimate","Margin Of Error","Estimate","Margin Of Error","Estimate","Margin Of Error","Estimate","Margin Of Error","Estimate","Margin Of Error","Estimate","Margin Of Error"]
[null,"Total:",1812,193,878,119,1380,140,2895,133,632,73,920,96,1011,63,17955,443,672,112,1061,89,1844,139,3717,321,2397,206,318,54,5110,285,2168,194,2276,183,747,99,1636,129,1906,134,2627,196,1801,141,623,122,846,149,1200,89,795,103,624,90]
[null,"Householder under 25 years:",135,113,25,30,43,35,0,17,34,28,5,8,12,14,814,248,5,7,0,12,110,78,104,77,265,146,0,12,105,66,38,66,0,17,15,24,25,31,11,18,86,75,37,41,6,9,23,21,29,28,22,25,4,5]
[null,"Less than $10,000",0,12,0,12,0,12,0,17,0,12,0,12,0,12,38,38,0,12,0,12,0,12,0,17,29,44,0,12,35,51,0,17,0,17,0,12,0,12,0,12,0,17,0,12,0,12,8,13,7,10,0,12,0,12]
[null,"$10,000 to $14,999",57,90,0,12,0,12,0,17,0,12,0,12,0,12,144,153,0,12,0,12,10,16,26,33,32,51,0,12,0,19,0,17,0,17,0,12,0,12,0,12,0,17,0,12,0,12,0,12,0,12,0,12,0,12]
[null,"$15,000 to $19,999",0,12,0,12,0,12,0,17,0,12,0,12,0,12,0,25,0,12,0,12,0,12,0,17,83,117,0,12,0,19,0,17,0,17,0,12,0,12,0,12,0,17,0,12,0,12,0,12,0,12,0,12,0,12]
[null,"$20,000 to $24,999",0,12,0,12,0,12,0,17,0,12,0,12,0,12,13,20,0,12,0,12,0,12,11,17,0,17,0,12,0,19,0,17,0,17,0,12,0,12,0,12,0,17,0,12,0,12,0,12,0,12,0,12,0,12]
[null,"$25,000 to $29,999",0,12,0,12,0,12,0,17,0,12,0,12,0,12,63,79,0,12,0,12,0,12,0,17,0,17,0,12,0,19,0,17,0,17,0,12,0,12,0,12,0,17,0,12,0,12,0,12,1,3,0,12,0,12]
[null,"$30,000 to $34,999",0,12,0,12,0,12,0,17,0,12,0,12,0,12,22,32,0,12,0,12,0,12,0,17,0,17,0,12,0,19,0,17,0,17,0,12,0,12,0,12,0,17,16,24,0,12,0,12,0,12,0,12,0,12]
[null,"$35,000 to $39,999",0,12,0,12,13,20,0,17,0,12,0,12,0,12,0,25,0,12,0,12,28,46,0,17,0,17,0,12,0,19,0,17,0,17,0,12,0,12,0,12,0,17,0,12,0,12,0,12,0,12,0,12,0,12]
[null,"$40,000 to $44,999",12,19,7,10,0,12,0,17,0,12,0,12,0,12,42,64,0,12,0,12,0,12,0,17,0,17,0,12,0,19,0,17,0,17,0,12,0,12,0,12,0,17,21,34,0,12,0,12,0,12,2,3,0,12]
[null,"$45,000 to $49,999",0,12,0,12,0,12,0,17,0,12,0,12,0,12,63,56,0,12,0,12,15,29,0,17,0,17,0,12,0,19,0,17,0,17,0,12,17,28,0,12,0,17,0,12,0,12,0,12,0,12,0,12,0,12]
[null,"$50,000 to $59,999",17,28,0,12,0,12,0,17,25,26,0,12,0,12,110,73,0,12,0,12,0,12,28,31,0,17,0,12,22,33,0,17,0,17,0,12,0,12,0,12,37,55,0,12,0,12,0,12,0,12,0,12,0,12]
[null,"$60,000 to $74,999",0,12,0,12,30,30,0,17,0,12,0,12,0,12,96,65,0,12,0,12,18,27,0,17,64,75,0,12,30,39,0,17,0,17,0,12,8,13,0,12,29,45,0,12,0,12,0,12,21,26,0,12,4,5]
[null,"$75,000 to $99,999",49,61,18,29,0,12,0,17,0,12,0,12,5,9,131,83,5,7,0,12,10,17,39,63,0,17,0,12,18,29,38,66,0,17,0,12,0,12,11,18,0,17,0,12,6,9,0,12,0,12,11,16,0,12]
[null,"$100,000 to $124,999",0,12,0,12,0,12,0,17,5,7,0,12,0,12,42,47,0,12,0,12,0,12,0,17,33,49,0,12,0,19,0,17,0,17,0,12,0,12,0,12,0,17,0,12,0,12,0,12,0,12,0,12,0,12]
[null,"$125,000 to $149,999",0,12,0,12,0,12,0,17,4,6,5,8,0,12,0,25,0,12,0,12,0,12,0,17,0,17,0,12,0,19,0,17,0,17,0,12,0,12,0,12,20,33,0,12,0,12,5,7,0,12,0,12,0,12]
[null,"$150,000 to $199,999",0,12,0,12,0,12,0,17,0,12,0,12,0,12,36,56,0,12,0,12,29,46,0,17,0,17,0,12,0,19,0,17,0,17,0,12,0,12,0,12,0,17,0,12,0,12,10,16,0,12,9,14,0,12]
[null,"$200,000 or more",0,12,0,12,0,12,0,17,0,12,0,12,7,10,14,23,0,12,0,12,0,12,0,17,24,40,0,12,0,19,0,17,0,17,15,24,0,12,0,12,0,17,0,12,0,12,0,12,0,12,0,12,0,12]
[null,"Householder 25 to 44 years:",517,111,232,62,418,125,876,131,135,39,241,63,226,59,5970,335,165,47,265,64,423,101,1057,229,708,189,59,23,1432,151,459,119,375,109,131,39,211,74,524,118,828,173,475,133,123,90,194,57,317,74,212,69,169,60]
[null,"Less than $10,000",31,45,0,12,8,14,9,15,0,12,17,17,4,7,261,106,31,27,0,12,0,12,43,42,0,17,0,12,15,23,0,17,0,17,5,9,0,12,0,12,60,89,12,20,4,7,0,12,0,12,0,12,0,12]
[null,"$10,000 to $14,999",30,48,5,9,15,24,0,17,0,12,0,12,0,12,270,111,0,12,0,12,0,12,0,17,28,47,0,12,0,19,0,17,0,17,0,12,0,12,0,12,31,43,0,12,0,12,0,12,0,12,0,12,0,12]
[null,"$15,000 to $19,999",0,12,0,12,0,12,0,17,0,12,19,29,0,12,142,94,0,12,0,12,0,12,0,17,31,50,0,12,20,29,0,17,0,17,0,12,0,12,0,12,28,44,0,12,0,12,20,22,5,7,0,12,0,12]
[null,"$20,000 to $24,999",0,12,0,12,0,12,0,17,5,7,0,12,0,12,143,78,0,12,0,12,0,12,9,15,0,17,0,12,17,27,0,17,0,17,0,12,6,11,0,12,60,68,0,12,0,12,0,12,6,10,0,12,0,12]
[null,"$25,000 to $29,999",8,15,16,24,0,12,0,17,9,15,0,12,0,12,124,69,0,12,0,12,0,12,13,21,19,31,0,12,0,19,0,17,0,17,0,12,0,12,0,12,12,19,11,19,0,12,0,12,10,17,0,12,0,12]
[null,"$30,000 to $34,999",0,12,0,12,0,12,0,17,0,12,0,12,18,27,310,168,2,4,0,12,0,12,9,15,178,148,0,12,5,10,0,17,0,17,0,12,0,12,28,31,0,17,0,12,1,3,0,12,0,12,0,12,0,12]
[null,"$35,000 to $39,999",41,60,0,12,0,12,0,17,0,12,8,11,0,12,51,34,11,14,0,12,0,12,85,67,0,17,0,12,17,25,0,17,41,65,0,12,0,12,9,14,6,11,46,64,0,12,0,12,0,12,3,4,0,12]
[null,"$40,000 to $44,999",53,57,0,12,9,14,0,17,5,7,0,12,5,8,186,125,8,8,9,14,0,12,26,31,0,17,0,12,13,20,0,17,0,17,0,12,0,12,0,12,13,22,12,21,0,12,0,12,45,53,0,12,0,12]
[null,"$45,000 to $49,999",22,24,0,12,0,12,9,13,11,11,0,12,0,12,175,104,16,15,8,14,0,12,52,66,56,64,4,5,0,19,1,14,31,45,0,12,10,15,53,54,34,36,10,18,0,12,4,6,17,17,5,5,3,5]
[null,"$50,000 to $59,999",21,23,6,9,10,16,11,17,16,17,8,11,0,12,404,132,11,13,0,12,19,30,26,27,33,38,2,4,61,49,34,49,43,62,7,10,40,35,56,55,13,17,0,12,0,12,3,5,12,13,2,5,15,14]
[null,"$60,000 to $74,999",44,37,21,22,70,60,13,21,5,7,7,11,15,16,693,191,8,8,13,14,15,17,160,163,12,22,8,9,130,87,0,17,0,17,16,24,0,12,85,65,34,35,60,54,5,9,0,12,24,25,24,18,4,6]
[null,"$75,000 to $99,999",65,41,56,29,113,78,64,40,36,22,15,12,73,52,938,205,31,21,22,19,133,68,326,192,119,97,15,9,199,109,107,79,48,53,11,12,20,23,92,56,161,79,67,61,7,6,43,23,31,19,42,34,34,23]
[null,"$100,000 to $124,999",91,55,56,48,59,48,82,56,13,20,42,26,23,20,808,170,25,16,40,37,94,75,212,108,84,48,0,12,237,110,101,97,37,51,28,18,21,23,62,51,66,53,133,99,18,17,24,20,39,24,59,58,69,53]
[null,"$125,000 to $149,999",58,47,27,25,75,50,214,118,0,12,14,13,59,31,518,129,8,10,35,34,80,63,37,30,27,36,17,10,160,96,35,39,29,38,11,11,13,23,111,103,132,133,107,81,6,8,30,22,73,44,35,18,15,14]
[null,"$150,000 to $199,999",36,30,42,23,22,25,138,68,15,12,93,49,26,21,457,139,10,8,52,35,66,52,9,15,100,73,5,8,211,86,113,79,127,95,16,16,55,41,28,44,116,70,17,20,79,90,22,17,36,27,37,19,13,10]
[null,"$200,000 or more",17,20,3,6,37,43,336,108,20,14,18,15,3,6,490,164,4,5,86,47,16,19,50,40,21,31,8,11,347,127,68,55,19,29,37,26,46,38,0,12,62,45,0,12,3,4,48,39,19,15,5,6,16,15]
[null,"Householder 45 to 64 years:",808,152,278,56,489,121,1243,122,221,45,380,72,508,96,6410,379,296,70,530,84,850,135,1448,250,754,196,146,40,2108,208,991,135,1143,229,335,86,354,99,859,135,1155,195,760,176,228,46,365,118,410,73,392,80,268,77]
[null,"Less than $10,000",11,17,4,6,11,18,0,17,0,12,0,12,5,8,180,158,7,11,39,44,38,48,56,55,10,17,11,16,64,58,0,17,0,17,0,12,0,12,82,91,0,17,8,14,0,12,0,12,15,16,27,38,0,12]
[null,"$10,000 to $14,999",0,12,0,12,31,37,0,17,3,4,0,12,0,12,178,87,7,7,5,7,0,12,121,88,100,88,0,12,15,19,0,17,0,17,6,8,0,12,21,23,0,17,0,12,0,12,3,4,6,8,0,12,2,3]
[null,"$15,000 to $19,999",24,27,0,12,0,12,14,14,9,12,0,12,0,12,101,59,14,20,0,12,43,42,69,62,32,49,6,7,0,19,0,17,18,31,0,12,0,12,0,12,0,17,0,12,11,11,0,12,5,8,3,6,11,16]
[null,"$20,000 to $24,999",34,51,24,24,14,24,12,19,0,12,12,19,10,11,147,109,13,15,5,7,9,15,80,83,29,35,0,12,55,90,0,17,261,251,0,12,0,12,15,21,0,17,0,12,0,12,17,26,15,16,18,19,0,12]
[null,"$25,000 to $29,999",11,17,12,12,0,12,0,17,0,12,0,12,13,19,154,81,13,14,6,9,9,14,23,26,0,17,0,12,44,48,0,17,0,17,12,14,8,13,0,12,58,91,84,97,0,12,11,13,33,30,7,8,3,5]
[null,"$30,000 to $34,999",75,76,5,9,0,12,0,17,0,12,7,11,0,12,159,76,3,4,0,12,21,27,71,73,13,25,3,4,14,18,0,17,14,22,0,12,40,34,11,17,69,91,65,79,0,12,5,7,0,12,0,12,29,47]
[null,"$35,000 to $39,999",11,18,6,9,13,21,10,17,14,12,7,11,9,10,154,71,8,13,4,6,9,13,19,22,0,17,3,4,22,33,0,17,0,17,5,8,0,12,55,49,30,49,70,80,0,12,0,12,6,9,18,23,0,12]
[null,"$40,000 to $44,999",56,60,0,12,21,23,7,11,12,13,4,7,0,12,84,42,12,15,21,26,19,21,9,14,0,17,4,6,55,41,0,17,72,78,0,12,0,12,10,18,0,17,0,12,7,7,9,9,22,25,0,12,4,5]
[null,"$45,000 to $49,999",0,12,0,12,0,12,14,22,13,17,5,7,6,8,311,160,13,13,5,8,10,16,49,70,0,17,2,3,111,66,18,32,14,25,0,12,0,12,33,40,49,59,55,43,0,12,8,12,0,12,0,12,4,5]
[null,"$50,000 to $59,999",44,42,5,7,44,52,6,10,11,11,9,13,4,6,350,109,28,23,6,9,50,49,54,40,77,107,11,10,61,59,33,50,89,87,5,8,5,9,78,54,85,113,11,18,11,13,6,9,0,12,4,5,8,11]
[null,"$60,000 to $74,999",42,38,7,10,108,68,53,46,0,12,15,24,12,11,588,198,41,31,30,25,89,50,100,62,96,64,14,9,189,92,33,51,54,60,16,14,28,29,88,58,96,62,59,52,12,10,18,18,0,12,57,46,37,30]
[null,"$75,000 to $99,999",116,74,57,32,19,22,94,44,11,9,67,42,10,12,919,225,26,16,41,40,142,79,123,75,61,47,20,14,203,87,159,102,134,114,43,32,26,22,130,87,149,91,165,66,47,26,11,14,40,22,27,16,14,10]
[null,"$100,000 to $124,999",42,32,16,16,52,38,133,60,50,32,20,21,112,69,618,148,60,44,79,38,96,61,195,93,33,28,17,12,171,77,196,120,155,102,73,40,17,17,99,58,142,98,78,45,33,20,46,31,71,30,87,36,32,25]
[null,"$125,000 to $149,999",115,86,13,14,27,27,107,55,43,25,45,24,48,30,544,113,10,9,42,21,88,61,140,77,99,59,24,16,258,101,85,84,67,64,17,15,29,27,84,54,142,85,70,49,35,25,88,92,49,35,32,16,27,16]
[null,"$150,000 to $199,999",205,86,53,31,71,67,343,106,18,13,85,32,178,92,910,163,27,20,132,57,109,66,198,89,43,40,21,16,300,95,227,116,143,109,77,30,39,29,70,50,227,141,23,21,51,29,28,22,53,34,83,29,43,17]
[null,"$200,000 or more",22,26,76,32,78,52,450,137,37,20,104,49,101,44,1013,174,14,10,115,46,118,70,141,88,161,86,10,11,546,186,240,141,122,84,81,51,162,79,83,46,108,60,72,58,21,15,115,61,95,52,29,15,54,26]
[null,"Householder 65 years and over:",352,146,343,108,430,119,776,98,242,54,294,58,265,58,4761,352,206,86,266,82,461,109,1108,294,670,255,113,40,1465,181,680,124,758,161,266,56,1046,161,512,119,558,122,529,164,266,85,264,97,444,90,169,35,183,45]
[null,"Less than $10,000",0,12,9,9,12,19,33,29,2,4,5,8,4,6,122,77,0,12,0,12,0,12,25,25,0,17,0,12,11,14,12,21,0,17,12,18,37,36,0,12,73,55,59,93,52,82,0,12,3,6,10,13,3,5]
[null,"$10,000 to $14,999",39,41,5,8,35,44,33,26,10,8,6,8,26,23,128,74,14,12,0,12,26,22,72,56,11,17,7,7,63,55,0,17,77,94,11,12,65,52,10,16,0,17,14,23,3,4,5,8,20,20,2,3,0,12]
[null,"$15,000 to $19,999",48,34,40,44,45,37,21,23,10,12,18,22,10,8,358,167,0,12,4,6,15,19,36,28,11,19,11,18,56,47,10,16,39,64,4,6,47,51,41,28,19,31,0,12,6,7,0,12,51,32,6,6,0,12]
[null,"$20,000 to $24,999",55,67,4,6,0,12,49,33,6,6,0,12,8,8,278,119,44,66,0,12,34,29,81,42,31,31,3,5,71,67,37,32,115,90,35,26,51,54,39,33,16,25,98,97,25,23,6,9,36,33,4,5,3,4]
[null,"$25,000 to $29,999",9,14,5,7,60,56,16,26,51,46,11,11,9,9,269,90,13,16,0,12,39,29,62,33,0,17,31,20,80,69,40,45,20,32,5,8,69,67,16,14,18,30,31,38,7,9,0,12,51,43,5,5,16,20]
[null,"$30,000 to $34,999",45,48,19,24,0,12,32,25,27,20,0,12,13,11,140,77,8,12,3,5,44,39,214,241,25,27,0,12,65,62,13,21,19,31,16,25,16,18,31,30,9,14,51,63,3,5,9,9,47,27,6,7,16,17]
[null,"$35,000 to $39,999",6,11,15,12,57,37,6,10,12,9,10,10,19,14,165,93,23,30,4,6,0,12,94,52,49,57,0,12,68,44,11,18,49,52,6,9,67,50,50,75,11,18,14,20,22,29,40,66,5,7,7,6,9,10]
[null,"$40,000 to $44,999",0,12,19,26,20,21,16,18,3,4,12,14,13,12,250,105,16,14,9,10,0,12,35,31,11,19,0,12,50,39,41,49,0,17,5,8,0,12,13,20,26,31,14,22,4,6,8,12,4,6,5,5,6,7]
[null,"$45,000 to $49,999",0,12,93,90,9,13,7,13,9,15,6,8,9,8,189,91,0,12,17,13,23,20,23,21,41,54,4,5,56,47,49,51,17,25,20,15,0,12,10,16,0,17,65,44,15,15,15,15,4,5,2,3,3,5]
[null,"$50,000 to $59,999",52,44,4,7,0,12,46,31,4,5,33,19,37,22,576,171,17,10,31,23,31,25,63,34,10,15,3,4,231,138,96,51,0,17,15,12,63,33,54,53,78,73,12,19,15,18,10,8,37,31,19,12,7,7]
[null,"$60,000 to $74,999",11,17,30,23,8,13,90,44,15,9,38,36,10,12,372,107,7,7,9,8,75,44,146,76,68,54,16,10,135,64,75,61,127,103,16,16,127,104,60,50,90,52,76,57,34,32,30,23,62,30,18,12,21,24]
[null,"$75,000 to $99,999",47,34,15,14,84,65,49,28,32,16,64,36,38,39,672,172,46,32,48,22,86,47,156,75,57,54,23,23,240,85,64,47,86,74,25,18,111,49,89,47,8,11,28,26,37,19,26,23,17,13,29,19,16,11]
[null,"$100,000 to $124,999",30,28,30,23,32,37,171,75,28,17,30,20,25,16,325,91,6,7,30,25,43,44,56,45,116,76,10,9,181,88,21,33,97,81,38,26,62,46,44,29,153,67,27,25,21,16,14,11,46,24,23,16,0,12]
[null,"$125,000 to $149,999",0,12,23,22,41,48,56,32,10,10,5,7,13,13,257,110,1,3,3,5,14,16,9,14,199,250,0,12,35,30,14,23,33,40,33,25,85,55,8,13,14,23,19,24,7,8,18,15,12,11,4,5,26,20]
[null,"$150,000 to $199,999",10,18,32,24,27,25,70,44,15,12,21,14,24,19,410,240,3,4,86,70,10,16,0,17,7,12,5,6,28,24,72,59,11,19,15,16,80,50,29,24,30,26,21,26,10,9,80,74,32,23,18,13,25,21]
[null,"$200,000 or more",0,12,0,12,0,12,81,38,8,6,35,21,7,9,250,110,8,12,22,17,21,31,36,28,34,31,0,12,95,58,125,76,68,70,10,11,166,61,18,19,13,20,0,12,5,6,3,5,17,15,11,8,32,17]
[]
[]
[]
[]
[]
[]
[]
[]
[]
[]
[]
[]
[]
[]
[null,"B19037. AGE OF HOUSEHOLDER BY HOUSEHOLD INCOME IN THE PAST 12 MONTHS (IN 2016 INFLATION-ADJUSTED DOLLARS)"]
[null,"Universe:  HOUSEHOLDS"]
[null,"Data Set: 2013-2017 American Community Survey 5-Year Estimates"]
[]
[null,null,"Allenstown",null,"Andover",null,"Boscawen",null,"Bow",null,"Bradford",null,"Canterbury",null,"Chichester",null,"Concord",null,"Danbury",null,"Dunbarton",null,"Epsom",null,"Franklin",null,"Henniker",null,"Hill",null,"Hooksett",null,"Hopkinton",null,"Loudon",null,"Newbury",null,"New London",null,"Northfield",null,"Pembroke",null,"Pittsfield",null,"Salisbury",null,"Sutton",null,"Warner",null,"Webster",null,"Wilmot"]
[null,null,"Estimate","Margin Of Error","Estimate","Margin Of Error","Estimate","Margin Of Error","Estimate","Margin Of Error","Estimate","Margin Of Error","Estimate","Margin Of Error","Estimate","Margin Of Error","Estimate","Margin Of Error","Estimate","Margin Of Error","Estimate","Margin Of Error","Estimate","Margin Of Error","Estimate","Margin Of Error","Estimate","Margin Of Error","Estimate","Margin Of Error","Estimate","Margin Of Error","Estimate","Margin Of Error","Estimate","Margin Of Error","Estimate","Margin Of Error","Estimate","Margin Of Error","Estimate","Margin Of Error","Estimate","Margin Of Error","Estimate","Margin Of Error","Estimate","Margin Of Error","Estimate","Margin Of Error","Estimate","Margin Of Error","Estimate","Margin Of Error","Estimate","Margin Of Error"]
[null,"Total:",1690,118,1071,84,1241,126,2846,103,646,79,895,69,991,48,17011,407,568,64,1020,45,1751,119,3494,212,1690,144,400,46,5143,201,2057,114,2024,165,822,89,1678,160,1770,84,2608,145,1586,115,535,63,772,100,1048,93,781,56,652,64]
[null,"Householder under 25 years:",68,51,20,33,6,11,17,26,14,9,12,13,28,39,671,183,0,11,5,7,0,11,136,84,148,86,0,11,154,115,37,35,0,15,5,7,45,44,37,48,0,15,82,52,18,23,0,11,33,31,10,16,19,21]
[null,"Less than $10,000",11,18,20,33,6,11,0,15,0,11,0,11,0,11,110,71,0,11,0,11,0,11,13,21,44,46,0,11,0,17,0,15,0,15,0,11,13,21,0,11,0,15,41,52,0,11,0,11,0,11,0,11,0,11]
[null,"$10,000 to $14,999",11,16,0,11,0,11,17,26,0,11,0,11,0,11,36,45,0,11,0,11,0,11,0,15,45,49,0,11,0,17,0,15,0,15,0,11,0,11,0,11,0,15,0,11,13,21,0,11,0,11,0,11,0,11]
[null,"$15,000 to $19,999",0,11,0,11,0,11,0,15,0,11,0,11,0,11,9,13,0,11,0,11,0,11,0,15,40,54,0,11,12,19,0,15,0,15,0,11,12,18,26,45,0,15,0,11,0,11,0,11,0,11,0,11,0,11]
[null,"$20,000 to $24,999",0,11,0,11,0,11,0,15,0,11,0,11,0,11,159,144,0,11,0,11,0,11,22,25,0,11,0,11,0,17,0,15,0,15,0,11,0,11,0,11,0,15,0,11,0,11,0,11,0,11,0,11,0,11]
[null,"$25,000 to $29,999",0,11,0,11,0,11,0,15,0,11,0,11,0,11,96,67,0,11,0,11,0,11,0,15,0,11,0,11,0,17,0,15,0,15,0,11,0,11,0,11,0,15,10,15,0,11,0,11,17,27,0,11,0,11]
[null,"$30,000 to $34,999",10,16,0,11,0,11,0,15,0,11,0,11,0,11,42,31,0,11,0,11,0,11,0,15,19,21,0,11,13,21,0,15,0,15,0,11,0,11,0,11,0,15,0,11,0,11,0,11,0,11,0,11,12,18]
[null,"$35,000 to $39,999",0,11,0,11,0,11,0,15,4,6,0,11,0,11,21,25,0,11,5,7,0,11,24,29,0,11,0,11,72,95,11,17,0,15,0,11,0,11,0,11,0,15,0,11,0,11,0,11,10,11,0,11,0,11]
[null,"$40,000 to $44,999",0,11,0,11,0,11,0,15,4,5,0,11,0,11,54,60,0,11,0,11,0,11,30,47,0,11,0,11,0,17,0,15,0,15,0,11,0,11,0,11,0,15,0,11,5,7,0,11,0,11,0,11,0,11]
[null,"$45,000 to $49,999",0,11,0,11,0,11,0,15,0,11,7,10,0,11,31,28,0,11,0,11,0,11,38,56,0,11,0,11,0,17,7,11,0,15,5,7,0,11,0,11,0,15,31,40,0,11,0,11,6,9,0,11,0,11]
[null,"$50,000 to $59,999",14,22,0,11,0,11,0,15,0,11,0,11,0,11,42,30,0,11,0,11,0,11,0,15,0,11,0,11,27,42,0,15,0,15,0,11,0,11,0,11,0,15,0,11,0,11,0,11,0,11,0,11,7,11]
[null,"$60,000 to $74,999",22,35,0,11,0,11,0,15,3,4,0,11,0,11,38,46,0,11,0,11,0,11,0,15,0,11,0,11,0,17,0,15,0,15,0,11,0,11,11,17,0,15,0,11,0,11,0,11,0,11,0,11,0,11]
[null,"$75,000 to $99,999",0,11,0,11,0,11,0,15,0,11,5,7,28,39,26,26,0,11,0,11,0,11,9,14,0,11,0,11,30,48,0,15,0,15,0,11,0,11,0,11,0,15,0,11,0,11,0,11,0,11,10,16,0,11]
[null,"$100,000 to $124,999",0,11,0,11,0,11,0,15,0,11,0,11,0,11,7,12,0,11,0,11,0,11,0,15,0,11,0,11,0,17,19,29,0,15,0,11,20,33,0,11,0,15,0,11,0,11,0,11,0,11,0,11,0,11]
[null,"$125,000 to $149,999",0,11,0,11,0,11,0,15,0,11,0,11,0,11,0,23,0,11,0,11,0,11,0,15,0,11,0,11,0,17,0,15,0,15,0,11,0,11,0,11,0,15,0,11,0,11,0,11,0,11,0,11,0,11]
[null,"$150,000 to $199,999",0,11,0,11,0,11,0,15,3,4,0,11,0,11,0,23,0,11,0,11,0,11,0,15,0,11,0,11,0,17,0,15,0,15,0,11,0,11,0,11,0,15,0,11,0,11,0,11,0,11,0,11,0,11]
[null,"$200,000 or more",0,11,0,11,0,11,0,15,0,11,0,11,0,11,0,23,0,11,0,11,0,11,0,15,0,11,0,11,0,17,0,15,0,15,0,11,0,11,0,11,0,15,0,11,0,11,0,11,0,11,0,11,0,11]
[null,"Householder 25 to 44 years:",436,68,274,68,346,94,537,89,123,40,201,57,245,63,5368,310,161,48,269,43,386,85,959,137,493,91,48,18,1533,152,392,82,465,101,125,38,216,56,497,83,819,118,484,76,92,29,240,63,253,54,224,45,157,46]
[null,"Less than $10,000",20,23,0,11,23,27,8,12,4,8,5,8,11,11,393,158,3,4,0,11,0,11,12,18,26,32,0,11,0,17,0,15,17,31,0,11,0,11,15,23,34,37,64,63,0,11,0,11,25,28,7,8,14,23]
[null,"$10,000 to $14,999",28,43,0,11,40,38,18,28,0,11,0,11,0,11,266,99,0,11,0,11,0,11,6,10,37,52,0,11,47,70,0,15,0,15,0,11,0,11,0,11,0,15,9,14,0,11,8,13,0,11,0,11,6,8]
[null,"$15,000 to $19,999",0,11,0,11,0,11,29,32,0,11,5,8,0,11,112,68,3,5,0,11,0,11,34,35,6,10,0,11,0,17,0,15,10,16,0,11,0,11,0,11,0,15,0,11,0,11,0,11,24,32,0,11,0,11]
[null,"$20,000 to $24,999",17,20,12,12,0,11,0,15,0,11,17,27,0,11,123,53,0,11,0,11,5,9,59,50,0,11,3,4,58,58,0,15,0,15,9,9,0,11,24,39,18,28,40,40,0,11,12,16,6,8,3,4,3,4]
[null,"$25,000 to $29,999",9,14,4,6,0,11,0,15,0,11,0,11,0,11,208,85,9,11,15,24,0,11,156,91,17,27,0,11,40,48,16,25,0,15,0,11,0,11,21,25,15,23,54,60,0,11,0,11,8,8,0,11,5,8]
[null,"$30,000 to $34,999",26,23,7,11,24,28,7,12,15,14,6,9,0,11,388,131,0,11,4,6,0,11,10,15,48,47,0,11,12,20,23,28,56,42,0,11,15,24,23,36,55,79,5,8,0,11,9,15,10,10,10,16,0,11]
[null,"$35,000 to $39,999",32,38,22,25,0,11,16,18,19,19,12,13,13,16,166,87,14,21,4,7,0,11,126,79,7,11,0,11,30,27,0,15,108,102,4,6,0,11,12,19,0,15,13,16,3,4,14,15,0,11,0,11,5,7]
[null,"$40,000 to $44,999",16,20,5,7,0,11,13,20,2,3,0,11,17,17,289,109,6,7,23,22,21,24,59,48,0,11,0,11,22,27,10,16,0,15,0,11,16,18,29,29,54,52,7,12,0,11,29,26,20,23,29,21,14,16]
[null,"$45,000 to $49,999",7,12,0,11,60,47,0,15,6,5,7,10,11,18,286,98,4,6,0,11,0,11,19,23,10,17,4,5,29,28,60,70,0,15,0,11,0,11,13,21,0,15,33,38,0,11,0,11,3,6,11,9,0,11]
[null,"$50,000 to $59,999",22,21,11,12,9,14,32,29,2,4,12,10,19,21,452,109,14,19,12,18,80,52,109,78,5,9,0,11,104,60,31,51,0,15,17,19,30,34,41,32,16,26,51,38,16,17,19,19,21,21,16,11,15,22]
[null,"$60,000 to $74,999",63,41,35,24,58,64,60,50,8,9,23,24,50,39,597,132,46,27,27,21,75,54,134,78,110,83,4,5,200,94,58,61,113,100,14,12,17,26,41,47,194,109,66,36,17,12,22,16,22,21,25,17,23,20]
[null,"$75,000 to $99,999",79,40,94,48,83,69,81,56,17,14,22,19,64,33,820,163,39,19,46,20,84,63,119,58,46,38,18,12,301,112,30,35,68,63,32,21,41,34,125,53,195,119,99,57,28,15,52,33,43,24,44,21,27,14]
[null,"$100,000 to $124,999",87,48,41,39,26,29,109,51,16,11,16,12,27,18,552,132,16,18,21,14,60,40,84,49,57,44,6,6,255,85,40,37,36,39,20,20,51,25,88,52,63,47,24,24,5,6,33,22,24,21,44,24,19,15]
[null,"$125,000 to $149,999",14,15,27,24,23,27,58,44,9,16,51,31,21,17,286,105,0,11,28,16,49,43,32,40,45,42,10,9,178,69,14,22,34,40,16,12,10,16,15,19,109,69,9,15,8,7,16,17,20,20,21,17,8,9]
[null,"$150,000 to $199,999",16,16,16,14,0,11,64,42,11,14,21,16,12,13,234,88,0,11,45,29,12,14,0,15,39,44,3,4,115,63,50,38,23,37,6,10,17,19,18,20,12,20,5,9,3,5,8,12,22,21,3,5,7,7]
[null,"$200,000 or more",0,11,0,11,0,11,42,36,14,18,4,7,0,11,196,70,7,7,44,29,0,11,0,15,40,37,0,11,142,109,60,54,0,15,7,10,19,22,32,37,54,56,5,10,12,18,18,18,5,7,11,13,11,17]
[null,"Householder 45 to 64 years:",796,109,458,77,612,104,1533,107,310,51,452,50,465,63,6863,386,303,52,546,45,964,124,1647,209,755,133,232,38,2256,207,1023,114,1043,151,413,66,453,92,917,96,1300,153,725,110,287,59,296,73,491,72,335,52,268,49]
[null,"Less than $10,000",14,17,5,7,29,25,34,31,16,11,8,10,17,26,339,121,3,4,9,10,25,24,139,62,23,26,9,14,46,47,0,15,52,36,15,13,26,29,0,11,42,69,67,68,5,7,13,16,22,21,2,5,6,6]
[null,"$10,000 to $14,999",88,60,0,11,7,11,0,15,11,9,5,7,0,11,336,146,7,6,6,8,23,37,190,93,17,18,0,11,77,50,33,39,52,48,0,11,0,11,14,16,82,94,63,44,5,7,0,11,0,11,13,17,0,11]
[null,"$15,000 to $19,999",8,13,0,11,40,44,8,13,4,5,16,15,5,8,167,81,0,11,0,11,49,48,119,88,41,40,0,11,12,17,10,15,8,13,0,11,28,43,52,50,33,37,41,40,7,7,3,5,9,10,3,4,7,10]
[null,"$20,000 to $24,999",52,34,36,21,7,12,27,34,3,5,7,11,16,16,168,70,18,16,5,8,7,13,40,31,12,21,4,6,86,53,31,35,26,33,5,7,0,11,11,16,18,29,18,28,7,7,20,22,22,23,7,7,13,16]
[null,"$25,000 to $29,999",9,14,21,26,30,27,11,13,4,6,15,13,0,11,140,57,25,18,11,8,14,17,51,42,0,11,3,4,11,18,0,15,0,15,17,12,10,15,68,65,47,41,15,17,4,6,8,7,4,7,8,11,2,5]
[null,"$30,000 to $34,999",47,48,25,19,42,61,9,13,5,8,10,10,7,10,293,97,29,26,7,10,102,69,19,25,27,29,16,15,53,51,14,22,116,77,0,11,23,25,47,44,13,21,31,37,0,11,16,19,5,7,15,10,0,11]
[null,"$35,000 to $39,999",35,25,6,8,13,14,6,10,0,11,0,11,0,11,271,92,7,7,11,8,9,14,52,43,19,29,24,18,75,60,21,34,0,15,17,19,0,11,35,31,14,24,32,30,8,8,0,11,13,10,22,19,13,15]
[null,"$40,000 to $44,999",27,22,44,33,8,13,51,50,6,7,9,11,12,12,266,131,27,19,20,16,7,12,132,72,7,11,21,15,53,39,0,15,0,15,5,8,0,11,17,19,0,15,39,39,18,14,20,18,9,13,28,21,21,19]
[null,"$45,000 to $49,999",46,31,6,8,44,40,44,34,6,6,9,10,19,15,302,104,6,6,10,11,21,23,42,30,27,27,3,4,72,56,10,17,22,34,7,10,4,8,18,21,41,37,53,46,3,5,2,4,37,30,16,11,12,14]
[null,"$50,000 to $59,999",102,53,25,15,58,42,92,55,53,33,48,33,35,28,408,140,26,21,38,20,79,60,96,65,23,25,17,11,90,62,76,87,94,58,42,24,28,32,94,63,93,85,56,40,27,21,8,8,29,15,17,11,36,23]
[null,"$60,000 to $74,999",74,41,60,34,114,63,56,37,56,26,61,33,40,20,826,156,30,20,66,33,105,88,145,75,116,67,40,19,218,92,44,44,48,46,26,16,45,39,89,44,108,72,51,48,55,37,22,20,67,38,50,25,31,18]
[null,"$75,000 to $99,999",117,68,54,26,109,48,192,69,81,30,89,34,73,32,1024,155,63,27,97,30,127,52,356,122,202,86,44,18,437,131,181,98,243,94,91,43,22,22,193,67,321,117,73,55,45,21,35,24,79,34,54,25,16,10]
[null,"$100,000 to $124,999",81,53,74,42,22,21,208,50,26,15,69,35,89,31,695,157,32,24,107,45,54,49,159,60,130,59,29,19,273,87,135,76,116,68,66,38,97,66,146,69,123,72,46,37,58,32,58,33,58,29,32,15,24,17]
[null,"$125,000 to $149,999",24,22,29,19,25,23,207,59,18,11,40,23,21,17,490,126,20,19,43,22,172,76,47,35,27,28,15,9,271,114,82,63,55,49,38,20,78,32,79,41,101,60,19,21,20,13,43,26,63,28,23,16,29,15]
[null,"$150,000 to $199,999",72,49,56,34,20,24,375,91,12,10,27,19,89,38,577,140,10,10,54,33,66,36,29,25,43,34,0,11,270,82,195,99,132,94,56,31,49,35,20,23,176,77,89,66,12,10,28,25,39,30,36,20,23,15]
[null,"$200,000 or more",0,11,17,14,44,38,213,73,9,9,39,22,42,23,561,127,0,11,62,24,104,62,31,43,41,39,7,6,212,82,191,85,79,66,28,26,43,31,34,30,88,51,32,28,13,10,20,20,35,21,9,8,35,19]
[null,"Householder 65 years and over:",390,84,319,62,277,78,759,74,199,44,230,39,253,36,4109,250,104,31,200,32,401,81,752,145,294,84,120,33,1200,159,605,87,516,125,279,61,964,156,319,65,489,109,295,71,138,35,236,60,271,60,212,46,208,51]
[null,"Less than $10,000",17,19,29,29,23,19,15,17,12,13,5,7,0,11,189,73,3,4,0,11,8,13,69,44,7,11,3,4,62,45,17,27,13,21,0,11,14,15,0,11,0,15,13,15,0,11,0,11,0,11,16,16,7,7]
[null,"$10,000 to $14,999",75,60,36,39,6,11,45,43,2,5,16,15,12,13,259,85,0,11,0,11,42,49,34,30,22,16,0,11,58,41,0,15,16,26,5,7,63,44,18,17,35,40,42,47,5,6,0,11,22,25,6,7,10,10]
[null,"$15,000 to $19,999",0,11,18,16,17,19,55,35,16,10,17,15,13,14,318,93,32,24,0,11,31,25,108,75,22,19,0,11,80,46,23,26,22,27,11,11,31,29,23,21,32,37,19,19,7,8,4,5,18,14,23,18,3,4]
[null,"$20,000 to $24,999",49,53,16,15,43,39,71,40,8,8,10,8,5,8,500,128,6,6,26,16,71,40,17,18,19,31,22,19,62,41,24,28,83,68,10,10,79,46,17,27,51,45,13,14,18,21,5,7,9,9,14,11,15,20]
[null,"$25,000 to $29,999",43,46,17,14,37,34,70,39,43,25,0,11,11,12,394,106,3,5,28,24,54,35,101,56,14,23,4,5,134,61,10,17,0,15,16,17,58,38,15,17,56,43,8,12,8,8,19,21,5,7,4,6,21,13]
[null,"$30,000 to $34,999",39,26,57,44,15,17,32,25,15,17,0,11,10,12,265,122,5,5,5,7,0,11,56,46,24,30,6,7,67,59,53,45,31,33,21,17,24,30,13,15,13,21,9,13,19,19,8,8,6,8,4,5,22,21]
[null,"$35,000 to $39,999",15,17,21,25,34,26,21,22,3,4,13,13,19,16,224,78,3,4,4,8,24,21,44,33,0,11,9,8,67,46,12,21,12,19,12,12,7,11,26,24,0,15,17,18,4,5,7,7,10,10,23,14,3,4]
[null,"$40,000 to $44,999",6,10,4,7,0,11,19,20,4,6,17,14,13,15,236,87,8,7,10,10,25,22,56,43,25,28,6,5,116,56,37,33,38,55,6,9,81,47,30,21,46,44,13,14,7,7,10,16,8,10,10,8,7,7]
[null,"$45,000 to $49,999",14,17,10,9,0,11,32,25,6,7,6,9,26,34,126,55,4,5,26,26,37,39,78,53,9,14,0,11,11,18,29,28,13,21,20,19,49,32,74,61,16,25,35,29,10,9,31,28,27,23,12,9,17,19]
[null,"$50,000 to $59,999",41,40,20,15,18,19,22,20,32,15,11,12,30,20,297,82,8,9,18,15,0,11,36,29,12,15,14,13,77,52,71,53,53,51,16,15,57,36,14,17,49,46,19,18,10,9,34,26,21,15,18,18,23,13]
[null,"$60,000 to $74,999",28,22,9,10,26,25,64,41,12,11,16,12,27,19,340,111,13,14,8,9,34,22,92,50,70,51,11,8,116,59,98,78,62,62,18,15,123,51,49,29,67,48,39,30,19,13,22,16,50,31,12,10,24,22]
[null,"$75,000 to $99,999",17,17,29,22,23,28,153,57,20,15,37,23,57,27,442,128,11,9,36,20,8,12,32,27,13,16,30,24,183,84,89,50,35,39,33,26,87,46,7,12,48,46,15,21,22,19,39,25,14,14,33,14,19,17]
[null,"$100,000 to $124,999",20,21,30,17,10,16,57,34,4,6,30,27,12,14,165,64,2,5,15,13,22,24,12,19,0,11,3,4,70,69,86,63,42,44,23,17,107,59,6,9,46,43,6,9,0,11,4,5,10,9,15,11,18,11]
[null,"$125,000 to $149,999",15,18,11,11,0,11,53,33,17,13,28,21,0,11,151,56,6,6,9,8,21,26,9,13,13,20,6,5,58,34,10,18,27,31,14,14,67,52,0,11,16,25,9,13,3,6,34,27,20,15,4,6,3,4]
[null,"$150,000 to $199,999",11,12,6,9,18,20,20,21,0,11,12,11,18,16,159,74,0,11,5,7,16,18,8,13,30,39,3,4,17,22,33,39,0,15,33,32,62,39,20,23,0,15,28,28,6,6,9,10,4,6,7,8,2,4]
[null,"$200,000 or more",0,11,6,8,7,13,30,26,5,8,12,12,0,11,44,31,0,11,10,11,8,13,0,15,14,21,3,4,22,21,13,22,69,52,41,27,55,33,7,12,14,24,10,16,0,11,10,15,47,32,11,10,14,15]
[]
[]
[]
[]
[]
[]
[]
[]
[]
[]
[]
[]
[]
[]
[null,"B19037. AGE OF HOUSEHOLDER BY HOUSEHOLD INCOME IN THE PAST 12 MONTHS (IN 2011 INFLATION-ADJUSTED DOLLARS)"]
[null,"Universe:  HOUSEHOLDS"]
[null,"Data Set: 2008-2012 American Community Survey 5-Year Estimates"]
[]
[null,null,"Allenstown",null,"Andover",null,"Boscawen",null,"Bow",null,"Bradford",null,"Canterbury",null,"Chichester",null,"Concord",null,"Danbury",null,"Dunbarton",null,"Epsom",null,"Franklin",null,"Henniker",null,"Hill",null,"Hooksett",null,"Hopkinton",null,"Loudon",null,"Newbury",null,"New London",null,"Northfield",null,"Pembroke",null,"Pittsfield",null,"Salisbury",null,"Sutton",null,"Warner",null,"Webster",null,"Wilmot"]
[null,null,"Estimate","Margin Of Error","Estimate","Margin Of Error","Estimate","Margin Of Error","Estimate","Margin Of Error","Estimate","Margin Of Error","Estimate","Margin Of Error","Estimate","Margin Of Error","Estimate","Margin Of Error","Estimate","Margin Of Error","Estimate","Margin Of Error","Estimate","Margin Of Error","Estimate","Margin Of Error","Estimate","Margin Of Error","Estimate","Margin Of Error","Estimate","Margin Of Error","Estimate","Margin Of Error","Estimate","Margin Of Error","Estimate","Margin Of Error","Estimate","Margin Of Error","Estimate","Margin Of Error","Estimate","Margin Of Error","Estimate","Margin Of Error","Estimate","Margin Of Error","Estimate","Margin Of Error","Estimate","Margin Of Error","Estimate","Margin Of Error","Estimate","Margin Of Error"]
[null,"Total:",1693,132,950,87,1392,199,2577,105,607,65,954,55,941,51,18007,432,461,66,1041,59,1626,106,3375,167,1689,158,445,57,4729,192,2373,132,1912,107,823,86,1672,166,1782,150,2980,168,1528,125,508,63,647,81,1069,68,724,75,540,65]
[null,"Householder under 25 years:",50,38,20,24,9,12,0,85,3,4,5,8,0,85,775,197,13,14,29,28,0,85,73,67,127,81,6,7,65,59,52,66,19,22,11,15,38,37,17,21,135,107,50,48,0,85,4,6,15,22,16,16,18,20]
[null,"Less than $10,000",0,85,0,85,0,85,0,85,0,85,0,85,0,85,212,119,0,85,0,85,0,85,0,85,12,19,0,85,0,85,0,85,0,85,0,85,0,85,0,85,0,85,0,85,0,85,0,85,0,85,0,85,0,85]
[null,"$10,000 to $14,999",0,85,4,6,0,85,0,85,0,85,0,85,0,85,0,85,0,85,0,85,0,85,10,15,0,85,0,85,0,85,0,85,0,85,0,85,15,25,0,85,0,85,23,39,0,85,0,85,0,85,0,85,0,85]
[null,"$15,000 to $19,999",0,85,0,85,0,85,0,85,0,85,0,85,0,85,82,75,0,85,0,85,0,85,19,27,21,36,0,85,0,85,0,85,0,85,0,85,0,85,9,15,0,85,0,85,0,85,0,85,0,85,0,85,0,85]
[null,"$20,000 to $24,999",7,11,0,85,0,85,0,85,0,85,0,85,0,85,46,35,0,85,0,85,0,85,0,85,28,44,0,85,0,85,0,85,0,85,0,85,0,85,0,85,0,85,0,85,0,85,0,85,15,22,0,85,0,85]
[null,"$25,000 to $29,999",0,85,0,85,0,85,0,85,0,85,0,85,0,85,58,74,0,85,5,7,0,85,0,85,19,28,0,85,0,85,0,85,8,13,0,85,0,85,0,85,55,72,0,85,0,85,0,85,0,85,0,85,0,85]
[null,"$30,000 to $34,999",0,85,0,85,0,85,0,85,0,85,0,85,0,85,78,70,0,85,7,11,0,85,0,85,0,85,0,85,0,85,38,62,11,18,0,85,7,11,0,85,0,85,6,9,0,85,0,85,0,85,9,14,0,85]
[null,"$35,000 to $39,999",0,85,0,85,0,85,0,85,0,85,0,85,0,85,96,58,0,85,0,85,0,85,0,85,0,85,0,85,0,85,0,85,0,85,0,85,0,85,0,85,0,85,0,85,0,85,0,85,0,85,0,85,0,85]
[null,"$40,000 to $44,999",0,85,0,85,0,85,0,85,0,85,0,85,0,85,0,85,0,85,0,85,0,85,0,85,0,85,0,85,0,85,0,85,0,85,0,85,0,85,0,85,33,52,10,15,0,85,0,85,0,85,3,5,4,6]
[null,"$45,000 to $49,999",0,85,0,85,9,12,0,85,0,85,0,85,0,85,28,29,9,13,0,85,0,85,0,85,0,85,0,85,0,85,0,85,0,85,0,85,0,85,8,13,0,85,0,85,0,85,0,85,0,85,0,85,0,85]
[null,"$50,000 to $59,999",0,85,1,2,0,85,0,85,0,85,0,85,0,85,90,77,0,85,0,85,0,85,0,85,0,85,0,85,26,39,14,22,0,85,0,85,16,26,0,85,47,72,0,85,0,85,0,85,0,85,4,6,0,85]
[null,"$60,000 to $74,999",6,10,0,85,0,85,0,85,3,4,5,8,0,85,45,64,4,6,0,85,0,85,10,16,24,36,0,85,39,46,0,85,0,85,0,85,0,85,0,85,0,85,11,19,0,85,4,6,0,85,0,85,0,85]
[null,"$75,000 to $99,999",37,36,0,85,0,85,0,85,0,85,0,85,0,85,40,38,0,85,0,85,0,85,34,54,23,37,6,7,0,85,0,85,0,85,11,15,0,85,0,85,0,85,0,85,0,85,0,85,0,85,0,85,14,22]
[null,"$100,000 to $124,999",0,85,15,23,0,85,0,85,0,85,0,85,0,85,0,85,0,85,0,85,0,85,0,85,0,85,0,85,0,85,0,85,0,85,0,85,0,85,0,85,0,85,0,85,0,85,0,85,0,85,0,85,0,85]
[null,"$125,000 to $149,999",0,85,0,85,0,85,0,85,0,85,0,85,0,85,0,85,0,85,0,85,0,85,0,85,0,85,0,85,0,85,0,85,0,85,0,85,0,85,0,85,0,85,0,85,0,85,0,85,0,85,0,85,0,85]
[null,"$150,000 to $199,999",0,85,0,85,0,85,0,85,0,85,0,85,0,85,0,85,0,85,17,25,0,85,0,85,0,85,0,85,0,85,0,85,0,85,0,85,0,85,0,85,0,85,0,85,0,85,0,85,0,85,0,85,0,85]
[null,"$200,000 or more",0,85,0,85,0,85,0,85,0,85,0,85,0,85,0,85,0,85,0,85,0,85,0,85,0,85,0,85,0,85,0,85,0,85,0,85,0,85,0,85,0,85,0,85,0,85,0,85,0,85,0,85,0,85]
[null,"Householder 25 to 44 years:",645,133,207,52,477,112,535,79,154,47,261,59,273,60,6465,295,146,46,257,42,569,93,1172,160,595,126,126,39,1588,147,448,113,530,89,181,56,241,88,574,112,1156,163,631,102,105,29,200,53,333,52,260,62,152,41]
[null,"Less than $10,000",43,73,0,85,0,85,0,85,0,85,0,85,0,85,259,112,13,16,4,6,7,10,110,66,20,32,0,85,0,85,0,85,0,85,0,85,29,44,0,85,17,31,13,21,0,85,12,17,0,85,11,18,0,85]
[null,"$10,000 to $14,999",14,21,6,10,20,24,0,85,0,85,0,85,0,85,204,132,7,11,11,16,0,85,95,76,0,85,0,85,16,27,0,85,21,32,0,85,21,32,18,21,102,102,0,85,0,85,0,85,0,85,0,85,0,85]
[null,"$15,000 to $19,999",0,85,16,26,0,85,0,85,0,85,0,85,12,20,149,100,11,12,0,85,0,85,37,37,0,85,0,85,0,85,0,85,0,85,0,85,0,85,31,51,0,85,0,85,0,85,0,85,0,85,20,22,0,85]
[null,"$20,000 to $24,999",152,98,0,85,0,85,0,85,0,85,0,85,8,12,423,162,4,7,10,15,11,18,81,51,22,34,0,85,12,20,0,85,23,25,0,85,6,12,9,14,0,85,0,85,0,85,11,17,0,85,0,85,0,85]
[null,"$25,000 to $29,999",15,24,0,85,21,35,17,28,18,18,17,12,0,85,360,143,10,11,0,85,20,24,22,26,6,10,18,20,25,33,0,85,29,26,0,85,0,85,54,63,102,98,12,20,0,85,0,85,30,24,10,15,0,85]
[null,"$30,000 to $34,999",33,52,16,12,31,34,0,85,4,5,6,11,0,85,339,124,22,20,0,85,17,27,82,61,6,10,3,6,97,77,0,85,25,40,0,85,0,85,42,54,0,85,58,52,4,6,5,7,8,12,0,85,0,85]
[null,"$35,000 to $39,999",10,17,16,22,9,16,32,48,3,5,24,22,6,9,157,96,23,21,7,11,10,17,37,30,50,66,7,8,36,54,23,27,76,69,3,5,36,42,13,20,18,30,9,13,13,17,0,85,24,29,19,17,0,85]
[null,"$40,000 to $44,999",12,14,0,85,14,20,12,19,5,7,0,85,0,85,252,120,4,6,0,85,0,85,84,54,0,85,0,85,29,33,9,15,20,25,22,23,21,27,18,21,85,79,117,72,3,5,8,9,7,10,7,8,22,22]
[null,"$45,000 to $49,999",3,12,0,85,19,30,9,15,4,5,0,85,22,20,239,110,10,15,0,85,15,25,11,17,48,55,9,9,12,19,0,85,34,41,0,85,0,85,0,85,0,85,0,85,3,4,3,4,8,12,4,6,4,6]
[null,"$50,000 to $59,999",75,54,33,23,42,44,22,26,3,5,5,9,36,36,698,186,12,14,16,18,31,36,125,78,78,68,16,17,117,74,17,28,18,16,15,13,18,29,79,58,78,73,84,60,13,12,27,25,40,28,21,21,9,14]
[null,"$60,000 to $74,999",70,51,24,19,49,37,11,19,35,26,32,25,5,9,921,188,10,15,4,6,38,33,177,83,60,42,18,17,165,83,69,50,13,16,34,31,0,85,59,45,217,125,113,69,11,9,25,21,43,35,34,15,29,19]
[null,"$75,000 to $99,999",73,65,42,20,96,64,87,50,49,23,97,36,41,24,1072,200,17,13,70,31,132,71,230,118,126,88,41,18,308,117,155,90,132,71,56,40,31,31,192,71,203,120,116,75,31,15,40,22,70,36,84,35,34,23]
[null,"$100,000 to $124,999",79,64,49,27,121,52,44,39,17,12,27,23,96,36,590,170,3,5,29,22,174,67,72,58,60,50,11,10,284,103,52,45,113,83,16,17,0,85,27,25,211,131,51,44,19,14,17,18,35,23,30,17,13,16]
[null,"$125,000 to $149,999",0,85,0,85,0,85,153,68,13,20,31,37,31,30,293,94,0,85,69,32,54,38,0,85,98,74,0,85,227,116,61,47,12,20,14,15,11,20,15,19,7,13,10,16,6,8,17,15,18,19,12,9,19,20]
[null,"$150,000 to $199,999",51,59,0,85,10,16,81,58,0,85,8,12,16,18,295,95,0,85,29,19,54,44,9,15,4,12,0,85,132,70,16,22,14,19,17,16,58,42,17,18,75,48,24,27,2,5,25,25,43,25,8,9,0,85]
[null,"$200,000 or more",15,24,5,8,45,56,67,48,3,5,14,16,0,85,214,80,0,85,8,12,6,11,0,85,17,27,3,5,128,89,46,33,0,85,4,7,10,14,0,85,41,63,24,37,0,85,10,17,7,10,0,85,22,17]
[null,"Householder 45 to 64 years:",736,142,469,73,636,129,1450,104,360,63,484,62,524,74,7193,366,239,54,638,48,705,93,1460,152,789,174,245,49,2164,181,1105,190,962,107,391,74,464,111,847,152,1252,153,605,102,310,58,306,60,487,68,352,51,253,58]
[null,"Less than $10,000",17,27,16,25,24,27,0,85,18,16,0,85,5,8,430,146,21,19,14,14,0,85,57,34,9,14,3,4,30,35,23,36,13,19,18,15,48,53,51,51,115,91,20,30,0,85,12,15,24,22,0,85,15,15]
[null,"$10,000 to $14,999",0,85,20,26,8,14,25,28,13,10,16,17,30,34,202,95,4,7,0,85,0,85,38,26,47,52,18,17,50,45,0,85,9,14,0,85,0,85,13,19,54,51,27,27,14,16,3,5,0,85,3,5,9,15]
[null,"$15,000 to $19,999",45,64,7,9,28,31,0,85,3,4,0,85,29,25,236,113,6,7,11,14,29,22,92,56,0,85,6,6,21,24,16,26,0,85,0,85,0,85,41,66,32,37,45,39,5,7,12,16,14,16,10,18,3,4]
[null,"$20,000 to $24,999",38,33,9,14,64,62,0,85,11,15,0,85,3,4,247,133,16,18,10,13,35,54,163,98,4,12,23,19,9,14,21,33,9,15,6,10,8,14,26,26,49,44,33,28,13,15,8,12,0,85,14,13,18,16]
[null,"$25,000 to $29,999",23,21,15,15,10,17,36,40,16,15,14,11,26,25,161,79,0,85,12,13,24,27,56,53,38,45,22,21,39,34,0,85,17,25,8,12,9,16,20,23,77,65,25,22,4,6,29,25,0,85,9,9,0,85]
[null,"$30,000 to $34,999",44,47,0,85,14,22,30,32,16,19,14,15,9,10,367,134,18,14,16,17,62,48,79,49,9,14,10,7,48,40,33,38,16,24,33,34,29,45,26,29,0,85,12,19,0,85,0,85,36,24,5,6,3,4]
[null,"$35,000 to $39,999",32,35,29,34,0,85,34,40,18,12,5,8,12,13,298,111,7,9,6,9,32,29,74,41,41,32,4,6,137,88,47,44,37,34,0,85,0,85,26,30,80,62,69,60,13,16,6,8,10,17,14,11,3,5]
[null,"$40,000 to $44,999",43,30,30,31,13,21,14,25,20,16,17,18,28,19,576,171,5,7,8,10,29,43,58,43,0,85,14,15,98,73,55,51,10,16,3,5,0,85,42,34,0,85,13,21,25,24,5,8,55,40,22,17,15,17]
[null,"$45,000 to $49,999",8,13,38,32,51,46,13,21,21,15,37,38,8,12,296,115,9,14,25,18,10,16,16,18,7,12,6,6,29,30,33,36,52,42,21,20,0,85,7,10,47,43,22,25,8,9,20,16,24,19,5,6,0,85]
[null,"$50,000 to $59,999",71,78,29,31,60,39,97,60,32,17,47,27,15,13,478,139,16,17,20,16,33,30,81,42,111,68,13,13,70,52,89,95,55,39,65,34,15,18,110,73,48,40,59,42,30,23,33,20,81,57,52,21,22,21]
[null,"$60,000 to $74,999",79,60,51,30,118,71,134,83,39,24,26,18,99,41,762,141,41,25,76,35,136,57,253,97,55,34,14,10,283,112,84,50,172,74,29,20,41,38,176,81,116,61,42,39,73,31,45,34,48,30,53,24,36,22]
[null,"$75,000 to $99,999",137,75,75,32,81,56,181,71,33,20,140,39,152,71,1202,228,43,23,136,52,89,44,259,85,107,57,48,21,438,134,214,92,223,86,95,36,55,33,148,68,200,76,111,63,34,19,47,25,58,29,55,24,35,21]
[null,"$100,000 to $124,999",99,51,52,34,71,51,222,95,32,19,76,36,9,10,798,181,33,26,67,28,79,56,154,87,211,110,5,7,317,106,140,70,127,56,41,23,34,27,91,56,230,86,73,44,57,21,44,25,74,36,49,24,41,32]
[null,"$125,000 to $149,999",68,44,48,33,55,46,192,96,17,16,42,29,43,30,410,123,7,7,68,33,67,58,25,28,63,51,35,26,203,98,159,112,60,40,18,17,11,17,40,28,87,57,46,39,13,10,10,11,19,20,37,21,25,16]
[null,"$150,000 to $199,999",32,31,45,43,25,29,234,81,47,20,19,18,18,15,393,130,9,10,59,34,28,23,16,17,73,49,18,19,253,99,60,38,132,60,33,36,111,51,20,23,37,34,8,13,7,8,15,11,25,21,20,18,25,17]
[null,"$200,000 or more",0,85,5,8,14,20,238,88,24,24,31,24,38,19,337,99,4,8,110,48,52,43,39,31,14,16,6,6,139,65,131,70,30,24,21,17,103,53,10,16,80,59,0,85,14,10,17,13,19,20,4,5,3,4]
[null,"Householder 65 years and over:",262,60,254,71,270,80,592,91,90,30,204,37,144,39,3574,272,63,22,117,33,352,88,670,122,178,64,68,22,912,105,768,134,401,80,240,59,929,136,344,117,437,104,242,69,93,28,137,42,234,47,96,32,117,35]
[null,"Less than $10,000",32,36,11,12,18,21,36,62,9,15,8,12,10,12,214,88,9,13,6,9,0,85,45,35,18,20,0,85,25,29,16,25,0,85,6,8,120,84,12,18,17,28,0,85,6,6,0,85,20,30,6,7,18,17]
[null,"$10,000 to $14,999",57,34,0,85,9,16,47,45,13,9,16,15,0,85,371,116,5,7,0,85,81,75,130,79,43,38,10,8,57,43,0,85,10,16,7,9,27,35,12,19,42,40,67,48,3,5,0,85,6,9,6,7,5,7]
[null,"$15,000 to $19,999",26,28,5,7,45,34,47,35,13,16,14,15,0,85,244,94,3,5,9,14,30,27,103,54,8,12,3,4,88,50,35,39,17,21,30,30,75,57,28,27,45,41,40,29,0,85,0,85,15,17,0,85,6,6]
[null,"$20,000 to $24,999",27,28,17,27,39,42,56,47,7,7,20,18,12,14,372,118,17,12,0,85,32,28,88,49,9,14,6,7,54,42,31,36,8,11,15,13,60,51,39,32,21,33,21,25,11,15,3,4,25,19,3,5,9,8]
[null,"$25,000 to $29,999",0,85,24,23,21,24,39,40,13,10,0,85,33,26,480,115,0,85,7,11,24,28,42,23,8,14,8,8,38,38,20,31,12,19,2,3,24,27,61,38,46,40,14,17,2,5,7,7,12,13,3,5,0,85]
[null,"$30,000 to $34,999",40,36,11,13,31,27,0,85,4,6,8,11,5,8,222,113,8,9,0,85,20,23,20,20,8,13,6,6,88,52,14,22,53,31,45,35,37,37,29,44,39,36,0,85,3,4,25,19,7,10,6,7,17,12]
[null,"$35,000 to $39,999",9,13,33,34,37,48,0,85,0,85,7,10,14,16,142,72,2,3,16,16,24,25,24,23,0,85,0,85,57,40,64,51,14,21,6,8,54,39,66,76,33,36,0,85,7,8,15,16,41,35,6,7,12,11]
[null,"$40,000 to $44,999",25,26,0,85,0,85,13,22,3,5,15,16,6,10,201,71,0,85,0,85,0,85,65,38,7,12,6,7,13,21,33,37,23,26,6,7,31,30,19,24,0,85,9,16,11,9,5,6,20,18,13,10,12,12]
[null,"$45,000 to $49,999",0,85,5,8,20,26,26,31,6,6,0,85,8,12,200,82,6,6,6,9,0,85,19,19,0,85,14,9,38,36,16,25,0,85,14,12,9,14,18,20,41,39,11,13,5,6,9,8,0,85,9,8,5,8]
[null,"$50,000 to $59,999",0,85,15,15,10,18,0,85,2,5,29,29,0,85,235,84,6,7,10,12,33,27,14,13,8,13,3,5,47,32,53,50,35,28,34,28,52,40,11,16,68,50,0,85,11,8,10,13,31,43,9,8,0,85]
[null,"$60,000 to $74,999",15,23,68,51,32,25,54,49,9,8,35,23,18,13,228,83,3,4,4,6,59,37,52,25,38,46,0,85,117,52,144,74,81,57,21,16,89,50,11,17,36,32,9,14,22,13,4,7,20,17,17,10,4,7]
[null,"$75,000 to $99,999",7,11,20,17,8,13,98,52,7,7,41,23,18,15,347,113,4,5,12,11,37,41,21,21,9,15,3,6,197,75,97,62,47,35,6,10,64,40,28,25,14,22,33,35,6,6,49,32,22,22,6,5,4,5]
[null,"$100,000 to $124,999",16,24,15,13,0,85,67,53,0,85,0,85,5,8,111,58,0,85,17,14,12,19,33,23,0,85,6,7,42,36,158,107,13,22,7,8,100,59,0,85,0,85,23,21,3,4,0,85,13,14,3,5,20,19]
[null,"$125,000 to $149,999",8,13,13,18,0,85,28,33,0,85,6,9,0,85,114,64,0,85,8,11,0,85,14,21,0,85,3,5,23,25,35,37,21,21,12,19,54,40,10,15,15,25,0,85,0,85,3,4,2,3,3,5,0,85]
[null,"$150,000 to $199,999",0,85,17,19,0,85,50,61,0,85,0,85,9,10,45,36,0,85,22,17,0,85,0,85,8,13,0,85,19,21,37,41,41,63,12,14,113,73,0,85,10,16,0,85,0,85,7,8,0,85,3,4,0,85]
[null,"$200,000 or more",0,85,0,85,0,85,31,37,4,6,5,8,6,10,48,34,0,85,0,85,0,85,0,85,14,18,0,85,9,14,15,23,26,41,17,11,20,21,0,85,10,16,15,16,3,4,0,85,0,85,3,5,5,8]

{"sheet":"DisabilityByAge","index":25,"n_rows":72,"n_cols":15,"rows_kept":72,"cut":false,"hidden":true,"merged":[[51,13,51,14],[28,3,28,4],[28,5,28,6],[28,7,28,8],[28,9,28,10],[28,11,28,12],[28,13,28,14],[51,3,51,4],[51,5,51,6],[51,7,51,8],[51,9,51,10],[51,11,51,12]]}
[]
[]
[]
[]
[null,{"$f":"CntyDataLink!A20","v":"Allenstown"}]
[null,"SOCIAL CHARACTERISTICS"]
[]
[null,"Disabilities By Age"]
[null,null,"Universe: Civilian Non-institutionalized Population"]
[]
[]
[]
[]
[]
[]
[]
[]
[]
[]
[]
[]
[]
[]
[]
[]
[]
[]
[]
[null,null,null,"Under 5",null,"5 to 17 years",null,"18 to 34 years",null,"35 to 64 years",null,"65 to 74 years",null,"75 years and older"]
[null,null,null,"Estimate","Margin of Error","Estimate","Margin of Error","Estimate","Margin of Error","Estimate","Margin of Error","Estimate","Margin of Error","Estimate","Margin of Error"]
[null,"Total ",null,{"$f":"CntyDataLink!D112","v":242},{"$f":"CntyDataLink!E112","v":104.23531071570709},{"$f":"CntyDataLink!J112","v":716},{"$f":"CntyDataLink!K112","v":134.31678971744373},{"$f":"CntyDataLink!P112","v":1191},{"$f":"CntyDataLink!Q112","v":206.63494380186523},{"$f":"CntyDataLink!V112","v":1929},{"$f":"CntyDataLink!W112","v":204.38444167793205},{"$f":"CntyDataLink!AB112","v":432},{"$f":"CntyDataLink!AC112","v":138.42326394071193},{"$f":"CntyDataLink!AH112","v":143},{"$f":"CntyDataLink!AI112","v":71.119617546778187}]
[]
[null,"With a disability:",null,{"$f":"CntyDataLink!F112","v":35},{"$f":"CntyDataLink!G112","v":53.366656256505337},{"$f":"CntyDataLink!L112","v":30},{"$f":"CntyDataLink!M112","v":30.675723300355934},{"$f":"CntyDataLink!R112","v":147},{"$f":"CntyDataLink!S112","v":82.861329943466387},{"$f":"CntyDataLink!X112","v":342},{"$f":"CntyDataLink!Y112","v":134.46560898608982},{"$f":"CntyDataLink!AD112","v":137},{"$f":"CntyDataLink!AE112","v":86.452298986203942},{"$f":"CntyDataLink!AJ112","v":87},{"$f":"CntyDataLink!AK112","v":63.324560795950255}]
[]
[]
[]
[null,"Type of disability"]
[null,null,"Hearing disability",{"$f":"CntyDataLink!AN112","v":35},{"$f":"CntyDataLink!AO112","v":53.366656256505337},{"$f":"CntyDataLink!AP112","v":19},{"$f":"CntyDataLink!AQ112","v":30.463092423455635},{"$f":"CntyDataLink!AR112","v":0},{"$f":"CntyDataLink!AS112","v":16.970562748477139},{"$f":"CntyDataLink!AT112","v":46},{"$f":"CntyDataLink!AU112","v":51.264022471905186},{"$f":"CntyDataLink!AV112","v":40},{"$f":"CntyDataLink!AW112","v":40.80441152620633},{"$f":"CntyDataLink!AX112","v":44},{"$f":"CntyDataLink!AY112","v":42.154477816715982}]
[null,null,"Visual disability",{"$f":"CntyDataLink!AZ112","v":0},{"$f":"CntyDataLink!BA112","v":16.970562748477139},{"$f":"CntyDataLink!BB112","v":19},{"$f":"CntyDataLink!BC112","v":30.463092423455635},{"$f":"CntyDataLink!BD112","v":6},{"$f":"CntyDataLink!BE112","v":16.278820596099706},{"$f":"CntyDataLink!BF112","v":88},{"$f":"CntyDataLink!BG112","v":76.216796049164913},{"$f":"CntyDataLink!BH112","v":38},{"$f":"CntyDataLink!BI112","v":42.953463189829058},{"$f":"CntyDataLink!BJ112","v":10},{"$f":"CntyDataLink!BK112","v":19.209372712298546}]
[null,null,"Cognitive disability","NA","NA",{"$f":"CntyDataLink!BL112","v":163},{"$f":"CntyDataLink!BM112","v":83.952367447261423},{"$f":"CntyDataLink!BN112","v":52},{"$f":"CntyDataLink!BO112","v":37.802116342871599},{"$f":"CntyDataLink!BP112","v":184},{"$f":"CntyDataLink!BQ112","v":85.603738236130781},{"$f":"CntyDataLink!BR112","v":41},{"$f":"CntyDataLink!BS112","v":48.764741360946438},{"$f":"CntyDataLink!BT112","v":7},{"$f":"CntyDataLink!BU112","v":15.556349186104045}]
[null,null,"Ambulatory disability","NA","NA",{"$f":"CntyDataLink!BV112","v":0},{"$f":"CntyDataLink!BW112","v":16.970562748477139},{"$f":"CntyDataLink!BX112","v":0},{"$f":"CntyDataLink!BY112","v":16.970562748477139},{"$f":"CntyDataLink!BZ112","v":185},{"$f":"CntyDataLink!CA112","v":100.24470060806208},{"$f":"CntyDataLink!CB112","v":97},{"$f":"CntyDataLink!CC112","v":76.655071586947201},{"$f":"CntyDataLink!CD112","v":23},{"$f":"CntyDataLink!CE112","v":23.345235059857504}]
[null,null,"Self-care disability","NA","NA",{"$f":"CntyDataLink!CF112","v":19},{"$f":"CntyDataLink!CG112","v":30.463092423455635},{"$f":"CntyDataLink!CH112","v":5},{"$f":"CntyDataLink!CI112","v":15.620499351813308},{"$f":"CntyDataLink!CJ112","v":46},{"$f":"CntyDataLink!CK112","v":55.542776307995261},{"$f":"CntyDataLink!CL112","v":0},{"$f":"CntyDataLink!CM112","v":16.970562748477139},{"$f":"CntyDataLink!CN112","v":11},{"$f":"CntyDataLink!CO112","v":15.132745950421556}]
[null,null,"Independent living disability","NA","NA","NA","NA",{"$f":"CntyDataLink!CP112","v":48},{"$f":"CntyDataLink!CQ112","v":44.922154890432402},{"$f":"CntyDataLink!CR112","v":100},{"$f":"CntyDataLink!CS112","v":72.013887549555335},{"$f":"CntyDataLink!CT112","v":0},{"$f":"CntyDataLink!CU112","v":16.970562748477139},{"$f":"CntyDataLink!CV112","v":50},{"$f":"CntyDataLink!CW112","v":49.648766349225639}]
[]
[]
[]
[null,"No disability",null,{"$f":"CntyDataLink!H112","v":207},{"$f":"CntyDataLink!I112","v":91.35097153287424},{"$f":"CntyDataLink!N112","v":686},{"$f":"CntyDataLink!O112","v":135.72398461583714},{"$f":"CntyDataLink!T112","v":1044},{"$f":"CntyDataLink!U112","v":204.83163818121457},{"$f":"CntyDataLink!Z112","v":1587},{"$f":"CntyDataLink!AA112","v":190.21303845951255},{"$f":"CntyDataLink!AF112","v":295},{"$f":"CntyDataLink!AG112","v":100.89598604503551},{"$f":"CntyDataLink!AL112","v":56},{"$f":"CntyDataLink!AM112","v":34.985711369071801}]
[null,"Source: 2018-2022 American Community Survey Tables B18101;  B18102; B18103; B18104; B18105; B18106; and B18107"]
[null,"NA indicates that the American Community Survey does not calculate the number for that disability."]
[null,"Percent of Population with Disabilities"]
[]
[null,null,null,"Under 5",null,"5 to 17 years",null,"18 to 34 years",null,"35 to 64 years",null,"65 to 74 years",null,"75 years and older"]
[]
[null,"With a disability:",null,{"$f":"D33/D$31","v":0.14462809917355371},null,{"$f":"F33/F$31","v":4.189944134078212E-2},null,{"$f":"H33/H$31","v":0.12342569269521411},null,{"$f":"J33/J$31","v":0.17729393468118196},null,{"$f":"L33/L$31","v":0.31712962962962965},null,{"$f":"N33/N$31","v":0.60839160839160844}]
[]
[null,"Type of disability"]
[null,null,"Hearing disability",{"$f":"D38/D$31","v":0.14462809917355371},null,{"$f":"F38/F$31","v":2.6536312849162011E-2},null,{"$f":"H38/H$31","v":0},null,{"$f":"J38/J$31","v":2.3846552617936754E-2},null,{"$f":"L38/L$31","v":9.2592592592592587E-2},null,{"$f":"N38/N$31","v":0.30769230769230771}]
[null,null,"Visual disability",{"$f":"D39/D$31","v":0},null,{"$f":"F39/F$31","v":2.6536312849162011E-2},null,5.0377833753148613E-3,null,4.5619491964748578E-2,null,8.7962962962962965E-2,null,6.9930069930069935E-2]
[null,null,"Cognitive disability","NA",null,{"$f":"F40/F$31","v":0.2276536312849162},null,4.3660789252728802E-2,null,9.5386210471747016E-2,null,9.4907407407407413E-2,null,4.8951048951048952E-2]
[null,null,"Ambulatory disability","NA",null,{"$f":"F41/F$31","v":0},null,0,null,9.5904613789528248E-2,null,0.22453703703703703,null,0.16083916083916083]
[null,null,"Self-care disability","NA",null,{"$f":"F42/F$31","v":2.6536312849162011E-2},null,4.1981528127623844E-3,null,2.3846552617936754E-2,null,0,null,7.6923076923076927E-2]
[null,null,"Independent living disability","NA",null,"NA",null,4.0302267002518891E-2,null,5.1840331778123382E-2,null,0,null,0.34965034965034963]
[]
[]
[]
[null,"No disability",null,{"$f":"D47/D$31","v":0.85537190082644632},null,{"$f":"F47/F$31","v":0.95810055865921784},null,{"$f":"H47/H$31","v":0.87657430730478592},null,{"$f":"J47/J$31","v":0.82270606531881807},null,{"$f":"L47/L$31","v":0.68287037037037035},null,{"$f":"N47/N$31","v":0.39160839160839161}]
[]
[]
[null,"Source: 2018-2022 American Community Survey Tables B18101;  B18102; B18103; B18104; B18105; B18106; and B18107"]
[null,"NA indicates that the American Community Survey does not calculate the number for that disability."]
[]
[null,"Data from the American Community Survey are estimates."]

{"sheet":"DisabilityByAgePrior5YearEst","index":26,"n_rows":72,"n_cols":15,"rows_kept":72,"cut":false,"hidden":true,"merged":[[51,13,51,14],[28,3,28,4],[28,5,28,6],[28,7,28,8],[28,9,28,10],[28,11,28,12],[28,13,28,14],[51,3,51,4],[51,5,51,6],[51,7,51,8],[51,9,51,10],[51,11,51,12]]}
[]
[]
[]
[]
[null,{"$f":"CntyDataLink!A20","v":"Allenstown"}]
[null,"SOCIAL CHARACTERISTICS"]
[]
[null,"Disabilities By Age"]
[null,null,"Universe: Civilian Non-institutionalized Population"]
[]
[]
[]
[]
[]
[]
[]
[]
[]
[]
[]
[]
[]
[]
[]
[]
[]
[]
[]
[null,null,null,"Under 5",null,"5 to 17 years",null,"18 to 34 years",null,"35 to 64 years",null,"65 to 74 years",null,"75 years and older"]
[null,null,null,"Estimate","Margin of Error","Estimate","Margin of Error","Estimate","Margin of Error","Estimate","Margin of Error","Estimate","Margin of Error","Estimate","Margin of Error"]
[null,"Total ",null,{"$f":"CntyDataLinkPrior5YearEstimates!D112","v":248},{"$f":"CntyDataLinkPrior5YearEstimates!E112","v":104.0096149401583},{"$f":"CntyDataLinkPrior5YearEstimates!J112","v":1112},{"$f":"CntyDataLinkPrior5YearEstimates!K112","v":221.00904958847272},{"$f":"CntyDataLinkPrior5YearEstimates!P112","v":866},{"$f":"CntyDataLinkPrior5YearEstimates!Q112","v":186.93581786270923},{"$f":"CntyDataLinkPrior5YearEstimates!V112","v":2431},{"$f":"CntyDataLinkPrior5YearEstimates!W112","v":149.91330828182001},{"$f":"CntyDataLinkPrior5YearEstimates!AB112","v":378},{"$f":"CntyDataLinkPrior5YearEstimates!AC112","v":89.10667763978185},{"$f":"CntyDataLinkPrior5YearEstimates!AH112","v":200},{"$f":"CntyDataLinkPrior5YearEstimates!AI112","v":64.660652641308843}]
[]
[null,"With a disability:",null,{"$f":"CntyDataLinkPrior5YearEstimates!F112","v":0},{"$f":"CntyDataLinkPrior5YearEstimates!G112","v":22.627416997969522},{"$f":"CntyDataLinkPrior5YearEstimates!L112","v":45},{"$f":"CntyDataLinkPrior5YearEstimates!M112","v":38.013155617496423},{"$f":"CntyDataLinkPrior5YearEstimates!R112","v":14},{"$f":"CntyDataLinkPrior5YearEstimates!S112","v":23.345235059857504},{"$f":"CntyDataLinkPrior5YearEstimates!X112","v":254},{"$f":"CntyDataLinkPrior5YearEstimates!Y112","v":84.148677945645701},{"$f":"CntyDataLinkPrior5YearEstimates!AD112","v":96},{"$f":"CntyDataLinkPrior5YearEstimates!AE112","v":41.868842830916641},{"$f":"CntyDataLinkPrior5YearEstimates!AJ112","v":125},{"$f":"CntyDataLinkPrior5YearEstimates!AK112","v":52.773099207835045}]
[]
[null,"With one disability:",null,{"$f":"CntyDataLinkPrior5YearEstimates!CX112","v":114},{"$f":"CntyDataLinkPrior5YearEstimates!CY112","v":63},{"$f":"CntyDataLinkPrior5YearEstimates!DB112","v":269},{"$f":"CntyDataLinkPrior5YearEstimates!DC112","v":86},{"$f":"CntyDataLinkPrior5YearEstimates!DF112","v":167},{"$f":"CntyDataLinkPrior5YearEstimates!DG112","v":74},{"$f":"CntyDataLinkPrior5YearEstimates!DJ112","v":0},{"$f":"CntyDataLinkPrior5YearEstimates!DK112","v":0},{"$f":"CntyDataLinkPrior5YearEstimates!DN112","v":0},{"$f":"CntyDataLinkPrior5YearEstimates!DO112","v":0},{"$f":"CntyDataLinkPrior5YearEstimates!DR112","v":0},{"$f":"CntyDataLinkPrior5YearEstimates!DS112","v":0}]
[]
[null,"Type of disability"]
[null,null,"Hearing disability",{"$f":"CntyDataLinkPrior5YearEstimates!AN112","v":0},{"$f":"CntyDataLinkPrior5YearEstimates!AO112","v":15.556349186104045},{"$f":"CntyDataLinkPrior5YearEstimates!AP112","v":41},{"$f":"CntyDataLinkPrior5YearEstimates!AQ112","v":48.764741360946438},{"$f":"CntyDataLinkPrior5YearEstimates!AR112","v":15},{"$f":"CntyDataLinkPrior5YearEstimates!AS112","v":21.095023109728988},{"$f":"CntyDataLinkPrior5YearEstimates!AT112","v":92},{"$f":"CntyDataLinkPrior5YearEstimates!AU112","v":67.94115100585212},{"$f":"CntyDataLinkPrior5YearEstimates!AV112","v":43},{"$f":"CntyDataLinkPrior5YearEstimates!AW112","v":25.238858928247925},{"$f":"CntyDataLinkPrior5YearEstimates!AX112","v":57},{"$f":"CntyDataLinkPrior5YearEstimates!AY112","v":36.069377593742864}]
[null,null,"Visual disability",{"$f":"CntyDataLinkPrior5YearEstimates!AZ112","v":0},{"$f":"CntyDataLinkPrior5YearEstimates!BA112","v":15.556349186104045},{"$f":"CntyDataLinkPrior5YearEstimates!BB112","v":24},{"$f":"CntyDataLinkPrior5YearEstimates!BC112","v":42.449970553582247},{"$f":"CntyDataLinkPrior5YearEstimates!BD112","v":0},{"$f":"CntyDataLinkPrior5YearEstimates!BE112","v":15.556349186104045},{"$f":"CntyDataLinkPrior5YearEstimates!BF112","v":73},{"$f":"CntyDataLinkPrior5YearEstimates!BG112","v":74.330343736592525},{"$f":"CntyDataLinkPrior5YearEstimates!BH112","v":9},{"$f":"CntyDataLinkPrior5YearEstimates!BI112","v":17.804493814764857},{"$f":"CntyDataLinkPrior5YearEstimates!BJ112","v":45},{"$f":"CntyDataLinkPrior5YearEstimates!BK112","v":45.177427992306072}]
[null,null,"Cognitive disability","NA","NA",{"$f":"CntyDataLinkPrior5YearEstimates!BL112","v":170},{"$f":"CntyDataLinkPrior5YearEstimates!BM112","v":98.994949366116657},{"$f":"CntyDataLinkPrior5YearEstimates!BN112","v":52},{"$f":"CntyDataLinkPrior5YearEstimates!BO112","v":36.069377593742864},{"$f":"CntyDataLinkPrior5YearEstimates!BP112","v":191},{"$f":"CntyDataLinkPrior5YearEstimates!BQ112","v":96.566039579139826},{"$f":"CntyDataLinkPrior5YearEstimates!BR112","v":43},{"$f":"CntyDataLinkPrior5YearEstimates!BS112","v":44.922154890432402},{"$f":"CntyDataLinkPrior5YearEstimates!BT112","v":14},{"$f":"CntyDataLinkPrior5YearEstimates!BU112","v":18.601075237738275}]
[null,null,"Ambulatory disability","NA","NA",{"$f":"CntyDataLinkPrior5YearEstimates!BV112","v":4},{"$f":"CntyDataLinkPrior5YearEstimates!BW112","v":13.601470508735444},{"$f":"CntyDataLinkPrior5YearEstimates!BX112","v":28},{"$f":"CntyDataLinkPrior5YearEstimates!BY112","v":45.354161881794269},{"$f":"CntyDataLinkPrior5YearEstimates!BZ112","v":174},{"$f":"CntyDataLinkPrior5YearEstimates!CA112","v":82.927679335671755},{"$f":"CntyDataLinkPrior5YearEstimates!CB112","v":64},{"$f":"CntyDataLinkPrior5YearEstimates!CC112","v":35.227829907617071},{"$f":"CntyDataLinkPrior5YearEstimates!CD112","v":78},{"$f":"CntyDataLinkPrior5YearEstimates!CE112","v":40.496913462633174}]
[null,null,"Self-care disability","NA","NA",{"$f":"CntyDataLinkPrior5YearEstimates!CF112","v":0},{"$f":"CntyDataLinkPrior5YearEstimates!CG112","v":15.556349186104045},{"$f":"CntyDataLinkPrior5YearEstimates!CH112","v":28},{"$f":"CntyDataLinkPrior5YearEstimates!CI112","v":45.354161881794269},{"$f":"CntyDataLinkPrior5YearEstimates!CJ112","v":43},{"$f":"CntyDataLinkPrior5YearEstimates!CK112","v":50.219518117958877},{"$f":"CntyDataLinkPrior5YearEstimates!CL112","v":33},{"$f":"CntyDataLinkPrior5YearEstimates!CM112","v":23.853720883753127},{"$f":"CntyDataLinkPrior5YearEstimates!CN112","v":1},{"$f":"CntyDataLinkPrior5YearEstimates!CO112","v":11.180339887498949}]
[null,null,"Independent living disability","NA","NA","NA","NA",{"$f":"CntyDataLinkPrior5YearEstimates!CP112","v":67},{"$f":"CntyDataLinkPrior5YearEstimates!CQ112","v":51.195702944680818},{"$f":"CntyDataLinkPrior5YearEstimates!CR112","v":158},{"$f":"CntyDataLinkPrior5YearEstimates!CS112","v":81.541400527584756},{"$f":"CntyDataLinkPrior5YearEstimates!CT112","v":52},{"$f":"CntyDataLinkPrior5YearEstimates!CU112","v":31.240998703626616},{"$f":"CntyDataLinkPrior5YearEstimates!CV112","v":36},{"$f":"CntyDataLinkPrior5YearEstimates!CW112","v":48.041648597857254}]
[]
[null,"With two or more types of disability:",null,{"$f":"CntyDataLinkPrior5YearEstimates!CZ112","v":56},{"$f":"CntyDataLinkPrior5YearEstimates!DA112","v":49},{"$f":"CntyDataLinkPrior5YearEstimates!DD112","v":203},{"$f":"CntyDataLinkPrior5YearEstimates!DE112","v":95},{"$f":"CntyDataLinkPrior5YearEstimates!DH112","v":108},{"$f":"CntyDataLinkPrior5YearEstimates!DI112","v":57},{"$f":"CntyDataLinkPrior5YearEstimates!DL112","v":0},{"$f":"CntyDataLinkPrior5YearEstimates!DM112","v":0},{"$f":"CntyDataLinkPrior5YearEstimates!DP112","v":0},{"$f":"CntyDataLinkPrior5YearEstimates!DQ112","v":0},{"$f":"CntyDataLinkPrior5YearEstimates!DT112","v":0},{"$f":"CntyDataLinkPrior5YearEstimates!DU112","v":0}]
[]
[null,"No disability",null,{"$f":"CntyDataLinkPrior5YearEstimates!H112","v":248},{"$f":"CntyDataLinkPrior5YearEstimates!I112","v":104.0096149401583},{"$f":"CntyDataLinkPrior5YearEstimates!N112","v":1067},{"$f":"CntyDataLinkPrior5YearEstimates!O112","v":218.80585001320233},{"$f":"CntyDataLinkPrior5YearEstimates!T112","v":852},{"$f":"CntyDataLinkPrior5YearEstimates!U112","v":186.10212250267324},{"$f":"CntyDataLinkPrior5YearEstimates!Z112","v":2177},{"$f":"CntyDataLinkPrior5YearEstimates!AA112","v":165.6804152578089},{"$f":"CntyDataLinkPrior5YearEstimates!AF112","v":282},{"$f":"CntyDataLinkPrior5YearEstimates!AG112","v":91.678787077491378},{"$f":"CntyDataLinkPrior5YearEstimates!AL112","v":75},{"$f":"CntyDataLinkPrior5YearEstimates!AM112","v":41.868842830916641}]
[null,"Source: 2013-2017 American Community Survey Tables B18101;  B18102; B18103; B18104; B18105; B18106;  and B18107"]
[null,"NA indicates that the American Community Survey does not calculate the number for that disability."]
[null,"Percent of Population with Disabilities"]
[]
[null,null,null,"Under 5",null,"5 to 17 years",null,"18 to 34 years",null,"35 to 64 years",null,"65 to 74 years",null,"75 years and older"]
[]
[null,"With a disability:",null,{"$f":"D33/D$31","v":0},null,{"$f":"F33/F$31","v":4.0467625899280574E-2},null,{"$f":"H33/H$31","v":1.6166281755196306E-2},null,{"$f":"J33/J$31","v":0.10448375154257507},null,{"$f":"L33/L$31","v":0.25396825396825395},null,{"$f":"N33/N$31","v":0.625}]
[]
[null,"Type of disability"]
[null,null,"Hearing disability",{"$f":"D38/D$31","v":0},null,{"$f":"F38/F$31","v":3.6870503597122302E-2},null,{"$f":"H38/H$31","v":1.7321016166281754E-2},null,{"$f":"J38/J$31","v":3.7844508432743729E-2},null,{"$f":"L38/L$31","v":0.11375661375661375},null,{"$f":"N38/N$31","v":0.28499999999999998}]
[null,null,"Visual disability",{"$f":"D39/D$31","v":0},null,{"$f":"F39/F$31","v":2.1582733812949641E-2},null,0,null,3.0028794734677088E-2,null,2.3809523809523808E-2,null,0.22500000000000001]
[null,null,"Cognitive disability","NA",null,{"$f":"F40/F$31","v":0.15287769784172661},null,6.0046189376443418E-2,null,7.8568490333196211E-2,null,0.11375661375661375,null,7.0000000000000007E-2]
[null,null,"Ambulatory disability","NA",null,{"$f":"F41/F$31","v":3.5971223021582736E-3},null,3.2332563510392612E-2,null,7.1575483340189219E-2,null,0.1693121693121693,null,0.39]
[null,null,"Self-care disability","NA",null,{"$f":"F42/F$31","v":0},null,3.2332563510392612E-2,null,1.7688194158782394E-2,null,8.7301587301587297E-2,null,5.0000000000000001E-3]
[null,null,"Independent living disability","NA",null,"NA",null,7.7367205542725179E-2,null,6.4993829699712055E-2,null,0.13756613756613756,null,0.18]
[]
[]
[]
[null,"No disability",null,{"$f":"D47/D$31","v":1},null,{"$f":"F47/F$31","v":0.95953237410071945},null,{"$f":"H47/H$31","v":0.9838337182448037},null,{"$f":"J47/J$31","v":0.89551624845742495},null,{"$f":"L47/L$31","v":0.74603174603174605},null,{"$f":"N47/N$31","v":0.375}]
[]
[]
[null,"Source: 2013-2017 American Community Survey Tables B18101;  B18102; B18103; B18104; B18105; B18106;  and B18107"]
[null,"NA indicates that the American Community Survey does not calculate the number for that disability."]
[]
[null,"Data from the American Community Survey are estimates."]

{"sheet":"DisabilityByAgePrior10YearEst","index":27,"n_rows":72,"n_cols":15,"rows_kept":72,"cut":false,"hidden":true,"merged":[[51,13,51,14],[28,3,28,4],[28,5,28,6],[28,7,28,8],[28,9,28,10],[28,11,28,12],[28,13,28,14],[51,3,51,4],[51,5,51,6],[51,7,51,8],[51,9,51,10],[51,11,51,12]]}
[]
[]
[]
[]
[null,{"$f":"CntyDataLink!A20","v":"Allenstown"}]
[null,"SOCIAL CHARACTERISTICS"]
[]
[null,"Disabilities By Age"]
[null,null,"Universe: Civilian Non-institutionalized Population"]
[]
[]
[]
[]
[]
[]
[]
[]
[]
[]
[]
[]
[]
[]
[]
[]
[]
[]
[]
[null,null,null,"Under 5",null,"5 to 17 years",null,"18 to 34 years",null,"35 to 64 years",null,"65 to 74 years",null,"75 years and older"]
[null,null,null,"Estimate","Margin of Error","Estimate","Margin of Error","Estimate","Margin of Error","Estimate","Margin of Error","Estimate","Margin of Error","Estimate","Margin of Error"]
[null,"Total ",null,{"$f":"CntyDataLinkPrior10YearEstimate!D112","v":223},{"$f":"CntyDataLinkPrior10YearEstimate!E112","v":99.488692824863264},{"$f":"CntyDataLinkPrior10YearEstimate!J112","v":698},{"$f":"CntyDataLinkPrior10YearEstimate!K112","v":172.7917822120022},{"$f":"CntyDataLinkPrior10YearEstimate!P112","v":1008},{"$f":"CntyDataLinkPrior10YearEstimate!Q112","v":159.17600321656528},{"$f":"CntyDataLinkPrior10YearEstimate!V112","v":1926},{"$f":"CntyDataLinkPrior10YearEstimate!W112","v":185.26737435393204},{"$f":"CntyDataLinkPrior10YearEstimate!AB112","v":233},{"$f":"CntyDataLinkPrior10YearEstimate!AC112","v":69.202601107183824},{"$f":"CntyDataLinkPrior10YearEstimate!AH112","v":248},{"$f":"CntyDataLinkPrior10YearEstimate!AI112","v":83.600239234107462}]
[]
[null,"With a disability:",null,{"$f":"CntyDataLinkPrior10YearEstimate!F112","v":0},{"$f":"CntyDataLinkPrior10YearEstimate!G112","v":15.556349186104045},{"$f":"CntyDataLinkPrior10YearEstimate!L112","v":50},{"$f":"CntyDataLinkPrior10YearEstimate!M112","v":48.703182647543684},{"$f":"CntyDataLinkPrior10YearEstimate!R112","v":31},{"$f":"CntyDataLinkPrior10YearEstimate!S112","v":27.294688127912362},{"$f":"CntyDataLinkPrior10YearEstimate!X112","v":250},{"$f":"CntyDataLinkPrior10YearEstimate!Y112","v":102.88342918079665},{"$f":"CntyDataLinkPrior10YearEstimate!AD112","v":61},{"$f":"CntyDataLinkPrior10YearEstimate!AE112","v":40},{"$f":"CntyDataLinkPrior10YearEstimate!AJ112","v":121},{"$f":"CntyDataLinkPrior10YearEstimate!AK112","v":67.178865724273734}]
[]
[null,"With one disability:",null,{"$f":"CntyDataLinkPrior10YearEstimate!CX112","v":26},{"$f":"CntyDataLinkPrior10YearEstimate!CY112","v":28},{"$f":"CntyDataLinkPrior10YearEstimate!DB112","v":117},{"$f":"CntyDataLinkPrior10YearEstimate!DC112","v":66},{"$f":"CntyDataLinkPrior10YearEstimate!DF112","v":61},{"$f":"CntyDataLinkPrior10YearEstimate!DG112","v":38},{"$f":"CntyDataLinkPrior10YearEstimate!DJ112","v":0},{"$f":"CntyDataLinkPrior10YearEstimate!DK112","v":0},{"$f":"CntyDataLinkPrior10YearEstimate!DN112","v":0},{"$f":"CntyDataLinkPrior10YearEstimate!DO112","v":0},{"$f":"CntyDataLinkPrior10YearEstimate!DR112","v":0},{"$f":"CntyDataLinkPrior10YearEstimate!DS112","v":0}]
[]
[null,"Type of disability"]
[null,null,"Hearing disability",{"$f":"CntyDataLinkPrior10YearEstimate!AN112","v":0},{"$f":"CntyDataLinkPrior10YearEstimate!AO112","v":15.556349186104045},{"$f":"CntyDataLinkPrior10YearEstimate!AP112","v":0},{"$f":"CntyDataLinkPrior10YearEstimate!AQ112","v":15.556349186104045},{"$f":"CntyDataLinkPrior10YearEstimate!AR112","v":0},{"$f":"CntyDataLinkPrior10YearEstimate!AS112","v":15.556349186104045},{"$f":"CntyDataLinkPrior10YearEstimate!AT112","v":102},{"$f":"CntyDataLinkPrior10YearEstimate!AU112","v":59.203040462462738},{"$f":"CntyDataLinkPrior10YearEstimate!AV112","v":42},{"$f":"CntyDataLinkPrior10YearEstimate!AW112","v":34.539832078341085},{"$f":"CntyDataLinkPrior10YearEstimate!AX112","v":40},{"$f":"CntyDataLinkPrior10YearEstimate!AY112","v":29.698484809834994}]
[null,null,"Visual disability",{"$f":"CntyDataLinkPrior10YearEstimate!AZ112","v":0},{"$f":"CntyDataLinkPrior10YearEstimate!BA112","v":15.556349186104045},{"$f":"CntyDataLinkPrior10YearEstimate!BB112","v":24},{"$f":"CntyDataLinkPrior10YearEstimate!BC112","v":42.449970553582247},{"$f":"CntyDataLinkPrior10YearEstimate!BD112","v":0},{"$f":"CntyDataLinkPrior10YearEstimate!BE112","v":15.556349186104045},{"$f":"CntyDataLinkPrior10YearEstimate!BF112","v":73},{"$f":"CntyDataLinkPrior10YearEstimate!BG112","v":74.330343736592525},{"$f":"CntyDataLinkPrior10YearEstimate!BH112","v":9},{"$f":"CntyDataLinkPrior10YearEstimate!BI112","v":17.804493814764857},{"$f":"CntyDataLinkPrior10YearEstimate!BJ112","v":45},{"$f":"CntyDataLinkPrior10YearEstimate!BK112","v":45.177427992306072}]
[null,null,"Cognitive disability","NA","NA",{"$f":"CntyDataLinkPrior10YearEstimate!BL112","v":37},{"$f":"CntyDataLinkPrior10YearEstimate!BM112","v":44.011362169330773},{"$f":"CntyDataLinkPrior10YearEstimate!BN112","v":20},{"$f":"CntyDataLinkPrior10YearEstimate!BO112","v":26.40075756488817},{"$f":"CntyDataLinkPrior10YearEstimate!BP112","v":103},{"$f":"CntyDataLinkPrior10YearEstimate!BQ112","v":79.831071645068121},{"$f":"CntyDataLinkPrior10YearEstimate!BR112","v":0},{"$f":"CntyDataLinkPrior10YearEstimate!BS112","v":15.556349186104045},{"$f":"CntyDataLinkPrior10YearEstimate!BT112","v":48},{"$f":"CntyDataLinkPrior10YearEstimate!BU112","v":44.283179650969061}]
[null,null,"Ambulatory disability","NA","NA",{"$f":"CntyDataLinkPrior10YearEstimate!BV112","v":698},{"$f":"CntyDataLinkPrior10YearEstimate!BW112","v":172.7917822120022},{"$f":"CntyDataLinkPrior10YearEstimate!BX112","v":1008},{"$f":"CntyDataLinkPrior10YearEstimate!BY112","v":159.17600321656528},{"$f":"CntyDataLinkPrior10YearEstimate!BZ112","v":1926},{"$f":"CntyDataLinkPrior10YearEstimate!CA112","v":185.26737435393204},{"$f":"CntyDataLinkPrior10YearEstimate!CB112","v":233},{"$f":"CntyDataLinkPrior10YearEstimate!CC112","v":69.202601107183824},{"$f":"CntyDataLinkPrior10YearEstimate!CD112","v":248},{"$f":"CntyDataLinkPrior10YearEstimate!CE112","v":83.600239234107462}]
[null,null,"Self-care disability","NA","NA",{"$f":"CntyDataLinkPrior10YearEstimate!CF112","v":37},{"$f":"CntyDataLinkPrior10YearEstimate!CG112","v":47.296934361541872},{"$f":"CntyDataLinkPrior10YearEstimate!CH112","v":0},{"$f":"CntyDataLinkPrior10YearEstimate!CI112","v":15.556349186104045},{"$f":"CntyDataLinkPrior10YearEstimate!CJ112","v":22},{"$f":"CntyDataLinkPrior10YearEstimate!CK112","v":26.40075756488817},{"$f":"CntyDataLinkPrior10YearEstimate!CL112","v":8},{"$f":"CntyDataLinkPrior10YearEstimate!CM112","v":17.029386365926403},{"$f":"CntyDataLinkPrior10YearEstimate!CN112","v":56},{"$f":"CntyDataLinkPrior10YearEstimate!CO112","v":46.141087980237309}]
[null,null,"Independent living disability","NA","NA","NA","NA",{"$f":"CntyDataLinkPrior10YearEstimate!CP112","v":18},{"$f":"CntyDataLinkPrior10YearEstimate!CQ112","v":25.495097567963924},{"$f":"CntyDataLinkPrior10YearEstimate!CR112","v":97},{"$f":"CntyDataLinkPrior10YearEstimate!CS112","v":77.466121627457255},{"$f":"CntyDataLinkPrior10YearEstimate!CT112","v":8},{"$f":"CntyDataLinkPrior10YearEstimate!CU112","v":17.029386365926403},{"$f":"CntyDataLinkPrior10YearEstimate!CV112","v":73},{"$f":"CntyDataLinkPrior10YearEstimate!CW112","v":56.727418414731339}]
[]
[null,"With two or more types of disability:",null,{"$f":"CntyDataLinkPrior10YearEstimate!CZ112","v":24},{"$f":"CntyDataLinkPrior10YearEstimate!DA112","v":41},{"$f":"CntyDataLinkPrior10YearEstimate!DD112","v":164},{"$f":"CntyDataLinkPrior10YearEstimate!DE112","v":95},{"$f":"CntyDataLinkPrior10YearEstimate!DH112","v":121},{"$f":"CntyDataLinkPrior10YearEstimate!DI112","v":73},{"$f":"CntyDataLinkPrior10YearEstimate!DL112","v":0},{"$f":"CntyDataLinkPrior10YearEstimate!DM112","v":0},{"$f":"CntyDataLinkPrior10YearEstimate!DP112","v":0},{"$f":"CntyDataLinkPrior10YearEstimate!DQ112","v":0},{"$f":"CntyDataLinkPrior10YearEstimate!DT112","v":0},{"$f":"CntyDataLinkPrior10YearEstimate!DU112","v":0}]
[]
[null,"No disability",null,{"$f":"CntyDataLinkPrior10YearEstimate!H112","v":223},{"$f":"CntyDataLinkPrior10YearEstimate!I112","v":99.488692824863264},{"$f":"CntyDataLinkPrior10YearEstimate!N112","v":648},{"$f":"CntyDataLinkPrior10YearEstimate!O112","v":171.4322023425004},{"$f":"CntyDataLinkPrior10YearEstimate!T112","v":977},{"$f":"CntyDataLinkPrior10YearEstimate!U112","v":160.63934760823702},{"$f":"CntyDataLinkPrior10YearEstimate!Z112","v":1676},{"$f":"CntyDataLinkPrior10YearEstimate!AA112","v":180.23595645708434},{"$f":"CntyDataLinkPrior10YearEstimate!AF112","v":172},{"$f":"CntyDataLinkPrior10YearEstimate!AG112","v":63.134776470658387},{"$f":"CntyDataLinkPrior10YearEstimate!AL112","v":127},{"$f":"CntyDataLinkPrior10YearEstimate!AM112","v":70.292247083159893}]
[null,"Source: 2008-2012 American Community Survey Tables B18101;  B18102; B18103; B18104; B18105; B18106;  and B18107"]
[null,"NA indicates that the American Community Survey does not calculate the number for that disability."]
[null,"Percent of Population with Disabilities"]
[]
[null,null,null,"Under 5",null,"5 to 17 years",null,"18 to 34 years",null,"35 to 64 years",null,"65 to 74 years",null,"75 years and older"]
[]
[null,"With a disability:",null,{"$f":"D33/D$31","v":0},null,{"$f":"F33/F$31","v":7.1633237822349566E-2},null,{"$f":"H33/H$31","v":3.0753968253968252E-2},null,{"$f":"J33/J$31","v":0.12980269989615784},null,{"$f":"L33/L$31","v":0.26180257510729615},null,{"$f":"N33/N$31","v":0.48790322580645162}]
[]
[null,"Type of disability"]
[null,null,"Hearing disability",{"$f":"D38/D$31","v":0},null,{"$f":"F38/F$31","v":0},null,{"$f":"H38/H$31","v":0},null,{"$f":"J38/J$31","v":5.2959501557632398E-2},null,{"$f":"L38/L$31","v":0.18025751072961374},null,{"$f":"N38/N$31","v":0.16129032258064516}]
[null,null,"Visual disability",{"$f":"D39/D$31","v":0},null,{"$f":"F39/F$31","v":3.4383954154727794E-2},null,0,null,3.7902388369678089E-2,null,3.8626609442060089E-2,null,0.18145161290322581]
[null,null,"Cognitive disability","NA",null,{"$f":"F40/F$31","v":5.300859598853868E-2},null,1.984126984126984E-2,null,5.3478712357217031E-2,null,0,null,0.19354838709677419]
[null,null,"Ambulatory disability","NA",null,{"$f":"F41/F$31","v":1},null,1,null,1,null,1,null,1]
[null,null,"Self-care disability","NA",null,{"$f":"F42/F$31","v":5.300859598853868E-2},null,0,null,1.142263759086189E-2,null,3.4334763948497854E-2,null,0.22580645161290322]
[null,null,"Independent living disability","NA",null,"NA",null,1.7857142857142856E-2,null,5.0363447559709243E-2,null,3.4334763948497854E-2,null,0.29435483870967744]
[]
[]
[]
[null,"No disability",null,{"$f":"D47/D$31","v":1},null,{"$f":"F47/F$31","v":0.92836676217765046},null,{"$f":"H47/H$31","v":0.96924603174603174},null,{"$f":"J47/J$31","v":0.87019730010384211},null,{"$f":"L47/L$31","v":0.7381974248927039},null,{"$f":"N47/N$31","v":0.51209677419354838}]
[]
[]
[null,"Source: 2008-2012 American Community Survey Tables B18101;  B18102; B18103; B18104; B18105; B18106;  and B18107"]
[null,"NA indicates that the American Community Survey does not calculate the number for that disability."]
[]
[null,"Data from the American Community Survey are estimates."]

{"sheet":"ACS_Table_B18101","index":28,"n_rows":155,"n_cols":56,"rows_kept":155,"cut":false,"hidden":true,"merged":[]}
["B18101. SEX BY AGE BY DISABILITY STATUS\n"]
["Universe:  Civilian non-institutionalized population"]
["Data Set: 2018-2022 American Community Survey 5-Year Estimates"]
[]
[null,null,"Allenstown",null,"Andover",null,"Boscawen",null,"Bow",null,"Bradford",null,"Canterbury",null,"Chichester",null,"Concord",null,"Danbury",null,"Dunbarton",null,"Epsom",null,"Franklin",null,"Henniker",null,"Hill",null,"Hooksett",null,"Hopkinton",null,"Loudon",null,"Newbury",null,"New London",null,"Northfield",null,"Pembroke",null,"Pittsfield",null,"Salisbury",null,"Sutton",null,"Warner",null,"Webster",null,"Wilmot"]
[null,null,"Estimate","Margin Of Error","Estimate","Margin Of Error","Estimate","Margin Of Error","Estimate","Margin Of Error","Estimate","Margin Of Error","Estimate","Margin Of Error","Estimate","Margin Of Error","Estimate","Margin Of Error","Estimate","Margin Of Error","Estimate","Margin Of Error","Estimate","Margin Of Error","Estimate","Margin Of Error","Estimate","Margin Of Error","Estimate","Margin Of Error","Estimate","Margin Of Error","Estimate","Margin Of Error","Estimate","Margin Of Error","Estimate","Margin Of Error","Estimate","Margin Of Error","Estimate","Margin Of Error","Estimate","Margin Of Error","Estimate","Margin Of Error","Estimate","Margin Of Error","Estimate","Margin Of Error","Estimate","Margin Of Error","Estimate","Margin Of Error","Estimate","Margin Of Error"]
[null,"Total",4653,22,2151,307,3514,45,8235,19,1565,172,2311,243,2682,31,41872,80,1491,261,2974,65,4706,40,8594,22,6094,15,839,182,14636,89,5925,20,5608,21,1902,258,4267,31,4849,27,7287,40,4052,61,1579,362,2254,451,2849,33,2096,314,1502,217]
[null,"Male:",2401,159,1048,168,1741,125,4045,189,835,112,1128,153,1395,104,21143,567,747,113,1480,96,2215,133,3819,339,3259,210,486,119,7046,304,2777,244,2762,198,981,161,1916,135,2322,155,3819,252,1865,178,884,264,1141,236,1356,102,1050,203,708,117]
[null,"Under 5 years:",130,79,23,29,93,57,307,100,41,30,33,23,58,39,1079,210,36,26,65,39,125,83,148,86,209,149,20,14,380,171,98,77,35,52,79,41,68,59,104,79,113,62,0,12,17,16,20,19,79,53,136,151,41,27]
[null,"With a disability",35,52,0,12,0,12,0,17,0,12,0,12,0,12,0,25,0,12,0,12,26,38,0,17,0,17,0,12,0,19,0,17,0,17,0,12,0,12,0,12,0,17,0,12,0,12,0,12,0,12,0,12,0,12]
[null,"No disability",95,61,23,29,93,57,307,100,41,30,33,23,58,39,1079,210,36,26,65,39,99,73,148,86,209,149,20,14,380,171,98,77,35,52,79,41,68,59,104,79,113,62,0,12,17,16,20,19,79,53,136,151,41,27]
[null,"5 to 17 years:",417,104,130,70,332,99,854,143,151,53,102,43,319,84,3060,322,96,44,256,43,283,94,450,148,441,131,40,24,930,241,411,146,314,140,122,69,214,97,372,180,733,192,225,80,187,161,121,53,217,65,110,32,82,39]
[null,"With a disability",24,29,5,9,32,30,10,16,3,5,0,12,0,12,181,94,16,15,5,8,35,36,157,89,16,20,2,5,115,67,1,13,65,71,6,8,0,12,55,50,45,47,61,58,0,12,5,7,20,21,11,12,3,4]
[null,"No disability",393,105,125,70,300,94,844,147,148,53,102,43,319,84,2879,323,80,42,251,43,248,106,293,115,425,128,38,24,815,226,410,150,249,128,116,70,214,97,317,172,688,194,164,72,187,161,116,53,197,65,99,31,79,38]
[null,"18 to 34 years:",580,127,272,134,345,112,625,165,166,59,222,64,255,58,5659,376,109,44,237,70,388,133,585,147,1092,273,128,75,1996,319,535,214,506,196,164,47,553,113,461,127,676,206,375,111,157,64,234,112,336,91,123,49,157,63]
[null,"With a disability",112,79,8,10,0,12,51,46,2,4,26,26,36,31,927,285,10,13,13,16,43,53,37,40,107,87,18,16,69,43,0,17,52,63,11,12,41,39,62,59,116,103,103,77,10,11,24,15,61,42,28,26,20,19]
[null,"No disability",468,120,264,136,345,112,574,166,164,59,196,61,219,58,4732,366,99,38,224,67,345,124,548,147,985,274,110,70,1927,312,535,214,454,164,153,45,512,109,399,114,560,189,272,99,147,64,210,110,275,79,95,35,137,58]
[null,"35 to 64 years:",984,142,389,120,653,119,1649,131,287,51,518,104,588,66,8065,465,331,68,665,81,991,161,1919,237,904,214,195,48,2732,227,1273,172,1319,192,445,85,438,84,1000,151,1873,235,845,178,299,105,505,112,510,74,523,86,303,63]
[null,"With a disability",127,84,64,94,71,51,155,69,22,19,55,37,32,28,1444,315,67,35,69,50,134,80,453,160,42,37,53,30,241,121,145,108,183,105,33,20,4,11,248,127,174,109,124,90,0,12,24,23,46,30,44,18,27,20]
[null,"No disability",857,134,325,66,582,129,1494,153,265,49,463,101,556,73,6621,470,264,61,596,82,857,141,1466,220,862,210,142,35,2491,227,1128,169,1136,251,412,79,434,82,752,134,1699,224,721,152,299,105,481,116,464,76,479,82,276,58]
[null,"65 to 74 years:",252,120,107,45,229,104,397,71,158,52,164,42,107,29,2012,301,97,43,188,76,305,85,460,120,501,264,61,25,624,139,356,97,280,127,98,34,333,84,246,76,262,78,299,97,181,89,163,86,169,48,120,33,85,25]
[null,"With a disability",91,75,14,16,41,33,73,39,24,17,28,18,31,22,468,109,30,25,9,9,77,47,157,69,31,27,11,10,146,81,73,64,142,109,9,10,38,36,73,45,59,42,33,49,74,83,24,17,55,30,35,25,15,10]
[null,"No disability",161,78,93,40,188,99,324,67,134,50,136,41,76,25,1544,281,67,30,179,75,228,75,303,105,470,268,50,23,478,126,283,92,138,87,89,35,295,87,173,69,203,70,266,97,107,33,139,86,114,39,85,27,70,23]
[null,"75 years and over:",38,33,127,91,89,56,213,71,32,16,89,32,68,26,1268,203,78,68,69,21,123,73,257,90,112,64,42,24,384,114,104,65,308,123,73,31,310,112,139,76,162,65,121,68,43,30,98,56,45,26,38,21,40,22]
[null,"With a disability",23,23,38,30,43,39,116,60,19,15,45,23,36,24,500,147,29,19,34,14,100,67,128,92,18,22,19,17,143,70,52,50,137,97,29,24,101,59,33,27,71,47,93,63,31,28,45,48,12,10,9,11,18,15]
[null,"No disability",15,18,89,87,46,40,97,44,13,8,44,22,32,18,768,170,49,66,35,18,23,20,129,77,94,59,23,19,241,93,52,42,171,103,44,21,209,88,106,77,91,55,28,24,12,13,53,30,33,24,29,16,22,17]
[null,"Female:",2252,156,1103,175,1773,120,4190,187,730,98,1183,164,1287,103,20729,564,744,166,1494,94,2491,139,4775,340,2835,210,353,74,7590,300,3148,243,2846,200,921,124,2351,137,2527,157,3468,257,2187,160,695,122,1113,246,1493,101,1046,172,794,125]
[null,"Under 5 years:",112,68,37,25,124,83,322,133,39,26,76,47,55,25,1006,224,34,22,116,61,83,71,155,85,107,108,22,13,200,118,91,76,85,96,38,25,96,62,71,49,237,124,89,77,28,21,40,25,58,43,31,17,69,35]
[null,"With a disability",0,12,0,12,0,12,53,81,0,12,0,12,0,12,0,25,0,12,0,12,0,12,0,17,0,17,0,12,0,19,0,17,0,17,0,12,0,12,0,12,0,17,0,12,0,12,0,12,0,12,0,12,0,12]
[null,"No disability",112,68,37,25,124,83,269,131,39,26,76,47,55,25,1006,224,34,22,116,61,83,71,155,85,107,108,22,13,200,118,91,76,85,96,38,25,96,62,71,49,237,124,89,77,28,21,40,25,58,43,31,17,69,35]
[null,"5 to 17 years:",299,85,145,60,220,105,606,139,118,50,170,75,101,32,2630,296,111,53,294,92,541,157,633,167,255,87,32,23,1275,285,440,187,370,190,148,52,139,63,373,89,620,142,377,158,80,37,243,89,155,60,196,108,81,35]
[null,"With a disability",6,10,0,12,0,12,11,17,12,12,0,12,10,16,259,148,0,12,5,9,31,29,41,42,62,69,0,12,15,22,0,17,81,95,0,12,0,12,29,31,26,35,0,12,0,12,0,12,14,18,0,12,0,12]
[null,"No disability",293,86,145,60,220,105,595,138,106,43,170,75,91,31,2371,281,111,53,289,90,510,146,592,180,193,91,32,23,1260,284,440,187,289,114,148,52,139,63,344,91,594,145,377,158,80,37,243,89,141,55,196,108,81,35]
[null,"18 to 34 years:",611,163,191,72,360,147,717,161,98,40,223,82,183,66,4973,416,72,34,221,78,453,111,921,244,944,171,39,21,1881,281,738,331,291,116,116,49,658,109,462,159,763,203,328,110,59,29,123,95,375,114,173,75,169,66]
[null,"With a disability",35,25,12,13,65,56,176,119,9,12,0,12,5,8,784,243,3,5,29,30,16,20,154,122,141,134,2,3,87,59,0,17,0,17,4,7,56,73,90,64,139,101,46,51,5,6,0,12,51,43,6,9,1,3]
[null,"No disability",576,166,179,72,295,130,541,151,89,40,223,82,178,66,4189,349,69,36,192,71,437,111,767,226,803,171,37,21,1794,272,738,331,291,116,112,48,602,125,372,156,624,216,282,98,54,28,123,95,324,112,167,73,168,66]
[null,"35 to 64 years:",945,147,372,75,754,141,1799,133,310,53,475,64,681,86,8012,417,386,121,619,70,956,124,1957,286,936,209,199,45,2914,241,1336,128,1433,195,393,84,598,95,1212,148,1398,206,886,152,349,99,511,115,528,74,498,85,303,81]
[null,"With a disability",215,105,17,13,71,51,36,36,11,10,59,39,65,34,1147,240,41,25,19,15,59,51,289,149,148,93,28,17,359,142,160,163,125,95,12,12,37,38,410,167,74,58,127,99,28,22,9,9,40,22,32,25,6,5]
[null,"No disability",730,135,355,76,683,136,1763,141,299,50,416,60,616,86,6865,364,345,119,600,67,897,127,1668,277,788,200,171,45,2555,273,1176,210,1308,220,381,85,561,94,802,155,1324,207,759,158,321,99,502,116,488,71,466,82,297,81]
[null,"65 to 74 years:",180,69,146,51,220,69,473,87,117,31,140,35,173,51,2410,278,105,48,153,67,363,102,536,131,512,262,48,19,772,152,368,105,581,140,97,27,331,107,278,116,275,114,322,130,122,36,96,36,217,63,105,32,80,31]
[null,"With a disability",46,43,19,16,34,30,65,43,9,8,24,17,46,30,558,153,19,17,43,63,64,44,142,84,207,260,25,13,137,106,100,73,77,63,9,10,38,33,144,109,67,68,135,100,13,10,22,16,38,32,16,16,2,4]
[null,"No disability",134,64,127,48,186,66,408,82,108,29,116,34,127,44,1852,267,86,46,110,37,299,105,394,116,305,114,23,13,635,130,268,80,504,133,88,28,293,99,134,50,208,84,187,116,109,34,74,32,179,56,89,28,78,31]
[null,"75 years and over:",105,63,212,126,95,48,273,97,48,25,99,47,94,37,1698,239,36,22,91,30,95,59,573,254,81,58,13,15,548,163,175,82,86,90,129,49,529,154,131,53,175,78,185,87,57,35,100,76,160,58,43,20,92,34]
[null,"With a disability",64,59,62,33,43,35,83,44,22,17,26,18,48,27,764,189,9,14,22,16,51,44,233,110,15,25,10,14,224,91,51,41,40,39,55,29,187,81,46,35,95,59,129,89,14,10,43,66,61,40,22,14,16,22]
[null,"No disability",41,30,150,123,52,38,190,84,26,18,73,43,46,21,934,206,27,17,69,26,44,40,340,242,66,50,3,4,324,158,124,73,46,79,74,41,342,138,85,44,80,61,56,40,43,33,57,42,99,39,21,15,76,27]
[]
[]
[{"$f":"A1& \"-Calculated\"","v":"B18101. SEX BY AGE BY DISABILITY STATUS\n-Calculated"}]
[{"$f":"A2","v":"Universe:  Civilian non-institutionalized population"}]
[{"$f":"A3","v":"Data Set: 2018-2022 American Community Survey 5-Year Estimates"}]
[]
[]
[null,null,"Allenstown",null,"Andover",null,"Boscawen",null,"Bow",null,"Bradford",null,"Canterbury",null,"Chichester",null,"Concord",null,"Danbury",null,"Dunbarton",null,"Epsom",null,"Franklin",null,"Henniker",null,"Hill",null,"Hooksett",null,"Hopkinton",null,"Loudon",null,"Newbury",null,"New London",null,"Northfield",null,"Pembroke",null,"Pittsfield",null,"Salisbury",null,"Sutton",null,"Warner",null,"Webster",null,"Wilmot"]
[null,null,"Estimate","Margin Of Error","Estimate","Margin Of Error","Estimate","Margin Of Error","Estimate","Margin Of Error","Estimate","Margin Of Error","Estimate","Margin Of Error","Estimate","Margin Of Error","Estimate","Margin Of Error","Estimate","Margin Of Error","Estimate","Margin Of Error","Estimate","Margin Of Error","Estimate","Margin Of Error","Estimate","Margin Of Error","Estimate","Margin Of Error","Estimate","Margin Of Error","Estimate","Margin Of Error","Estimate","Margin Of Error","Estimate","Margin Of Error","Estimate","Margin Of Error","Estimate","Margin Of Error","Estimate","Margin Of Error","Estimate","Margin Of Error","Estimate","Margin Of Error","Estimate","Margin Of Error","Estimate","Margin Of Error","Estimate","Margin Of Error","Estimate","Margin Of Error"]
[null,"Total",{"$f":"C7","v":4653},22,2151,307,3514,45,8235,19,1565,172,2311,243,2682,31,41872,80,1491,261,2974,65,4706,40,{"$f":"Y7","v":8594},22,6094,15,839,182,14636,89,5925,20,5608,21,1902,258,4267,31,4849,27,7287,40,4052,61,1579,362,2254,451,2849,33,2096,314,1502,217]
[null,"Under 5 years:",{"$f":"C28+C9","v":242},{"$f":"SQRT((D28^2)+(D9^2))","v":104.23531071570709},{"$f":"E28+E9","v":60},{"$f":"SQRT((F28^2)+(F9^2))","v":38.288379438153292},{"$f":"G28+G9","v":217},{"$f":"SQRT((H28^2)+(H9^2))","v":100.68763578513501},{"$f":"I28+I9","v":629},{"$f":"SQRT((J28^2)+(J9^2))","v":166.4001201922643},{"$f":"K28+K9","v":80},{"$f":"SQRT((L28^2)+(L9^2))","v":39.698866482558415},{"$f":"M28+M9","v":109},{"$f":"SQRT((N28^2)+(N9^2))","v":52.32590180780452},{"$f":"O28+O9","v":113},{"$f":"SQRT((P28^2)+(P9^2))","v":46.324939287601879},{"$f":"Q28+Q9","v":2085},{"$f":"SQRT((R28^2)+(R9^2))","v":307.04397079245831},{"$f":"S28+S9","v":70},{"$f":"SQRT((T28^2)+(T9^2))","v":34.058772731852805},{"$f":"U28+U9","v":181},{"$f":"SQRT((V28^2)+(V9^2))","v":72.401657439591816},{"$f":"W28+W9","v":208},{"$f":"SQRT((X28^2)+(X9^2))","v":109.22453936730518},303,120.91732712891069,{"$f":"AA28+AA9","v":316},{"$f":"SQRT((AB28^2)+(AB9^2))","v":184.02445489662509},{"$f":"AC28+AC9","v":42},{"$f":"SQRT((AD28^2)+(AD9^2))","v":19.104973174542799},{"$f":"AE28+AE9","v":580},{"$f":"SQRT((AF28^2)+(AF9^2))","v":207.76188293332345},{"$f":"AG28+AG9","v":189},{"$f":"SQRT((AH28^2)+(AH9^2))","v":108.18964830333815},{"$f":"AI28+AI9","v":120},{"$f":"SQRT((AJ28^2)+(AJ9^2))","v":109.17875251164945},{"$f":"AK28+AK9","v":117},{"$f":"SQRT((AL28^2)+(AL9^2))","v":48.020828814171878},{"$f":"AM28+AM9","v":164},{"$f":"SQRT((AN28^2)+(AN9^2))","v":85.586213843118443},{"$f":"AO28+AO9","v":175},{"$f":"SQRT((AP28^2)+(AP9^2))","v":92.962357973536797},{"$f":"AQ28+AQ9","v":350},{"$f":"SQRT((AR28^2)+(AR9^2))","v":138.63621460498698},{"$f":"AS28+AS9","v":89},{"$f":"SQRT((AT28^2)+(AT9^2))","v":77.929455278476055},{"$f":"AU28+AU9","v":45},{"$f":"SQRT((AV28^2)+(AV9^2))","v":26.40075756488817},{"$f":"AW28+AW9","v":60},{"$f":"SQRT((AX28^2)+(AX9^2))","v":31.400636936215164},{"$f":"AY28+AY9","v":137},{"$f":"SQRT((AZ28^2)+(AZ9^2))","v":68.249542123006222},{"$f":"BA28+BA9","v":167},{"$f":"SQRT((BB28^2)+(BB9^2))","v":151.95394038984313},{"$f":"BC28+BC9","v":110},{"$f":"SQRT((BD28^2)+(BD9^2))","v":44.204072210600685}]
[null,"With a disability",{"$f":"C29+C10","v":35},{"$f":"SQRT((D29^2)+(D10^2))","v":53.366656256505337},{"$f":"E29+E10","v":0},{"$f":"SQRT((F29^2)+(F10^2))","v":16.970562748477139},{"$f":"G29+G10","v":0},{"$f":"SQRT((H29^2)+(H10^2))","v":16.970562748477139},{"$f":"I29+I10","v":53},{"$f":"SQRT((J29^2)+(J10^2))","v":82.764726786234249},{"$f":"K29+K10","v":0},{"$f":"SQRT((L29^2)+(L10^2))","v":16.970562748477139},{"$f":"M29+M10","v":0},{"$f":"SQRT((N29^2)+(N10^2))","v":16.970562748477139},{"$f":"O29+O10","v":0},{"$f":"SQRT((P29^2)+(P10^2))","v":16.970562748477139},{"$f":"Q29+Q10","v":0},{"$f":"SQRT((R29^2)+(R10^2))","v":35.355339059327378},{"$f":"S29+S10","v":0},{"$f":"SQRT((T29^2)+(T10^2))","v":16.970562748477139},{"$f":"U29+U10","v":0},{"$f":"SQRT((V29^2)+(V10^2))","v":16.970562748477139},26,39.849717690342551,0,24.041630560342615,0,24.041630560342615,0,16.970562748477139,0,26.870057685088806,0,24.041630560342615,0,24.041630560342615,0,16.970562748477139,0,16.970562748477139,0,16.970562748477139,0,24.041630560342615,0,16.970562748477139,0,16.970562748477139,0,16.970562748477139,0,16.970562748477139,0,16.970562748477139,0,16.970562748477139]
[null,"No disability",{"$f":"C30+C11","v":207},91.35097153287424,60,38.288379438153292,217,100.68763578513501,576,164.80594649465777,80,39.698866482558415,109,52.32590180780452,113,46.324939287601879,2085,307.04397079245831,70,34.058772731852805,181,72.401657439591816,182,101.83319694480774,303,120.91732712891069,316,184.02445489662509,42,19.104973174542799,580,207.76188293332345,189,108.18964830333815,120,109.17875251164945,117,48.020828814171878,164,85.586213843118443,175,92.962357973536797,350,138.63621460498698,89,77.929455278476055,45,26.40075756488817,60,31.400636936215164,137,68.249542123006222,167,151.95394038984313,110,44.204072210600685]
[null,"5 to 17 years:",716,134.31678971744373,275,92.195444572928878,552,144.31216164966833,1460,199.42417105255822,269,72.862884927787476,272,86.452298986203942,420,89.888820216976924,5690,437.37855457258075,207,68.8839603971781,550,101.55294185792945,824,182.98907071188705,1083,223.14345161801185,696,157.25775020646836,72,33.241540277189323,2205,373.23719000121088,851,237.24459951703852,684,236.00847442411893,270,86.400231481171389,353,115.66330446602328,745,200.80089641234176,1353,238.8053600738476,602,177.09884245810304,267,165.19685227025363,364,103.58571330062848,372,88.459030064770658,306,112.64102272262978,163,52.40229002629561]
[null,"With a disability",30,30.675723300355934,5,15,32,32.310988842807021,21,23.345235059857504,15,13,0,16.970562748477139,10,20,440,175.32826355154492,16,19.209372712298546,10,12.041594578792296,66,46.227697325304881,198,98.412397592986224,78,71.840100222647237,2,13,130,70.51950084905593,1,21.400934559032695,146,118.60016863394419,6,14.422205101855956,0,16.970562748477139,84,58.830264320330912,71,58.600341295934449,61,59.22837157984339,0,16.970562748477139,5,13.892443989449804,34,27.658633371878661,11,16.970562748477139,3,12.649110640673518]
[null,"No disability",686,135.72398461583714,270,92.195444572928878,520,140.92906016858268,1439,201.62589119455865,254,68.249542123006222,272,86.452298986203942,410,89.537701556383496,5250,428.12381386697001,191,67.623960250786851,540,99.744674043279119,758,180.42172818150257,885,213.60009363293827,618,157.05094714773293,70,33.241540277189323,2075,362.94903223455492,850,239.7269279826528,538,171.40595088852663,264,87.200917426366559,353,115.66330446602328,661,194.58931111445972,1282,242.20033030530738,541,173.63179432350518,267,165.19685227025363,359,103.58571330062848,338,85.14693182963201,295,112.36102527122117,160,51.662365412357957]
[null,"18 to 34 years:",1191,206.63494380186523,463,152.11837495845134,705,184.80530295421721,1342,230.53416232740864,264,71.28113354878694,445,104.01922899156675,438,87.863530545955186,10632,560.74236508400179,181,55.605755097831377,458,104.80458005259122,841,173.23394586512194,1506,284.85961454723622,2036,322.13351269310681,167,77.884529914483011,3877,425.1141023301862,1273,394.153523389047,797,227.75425352778814,280,67.896980787071826,1211,157.00318468107582,923,203.49447166937975,1439,289.21445330411825,703,156.27219842313605,216,70.263788682364691,357,146.86388255796589,711,145.86637720873168,296,89.587945617700157,326,91.241437954473298]
[null,"With a disability",147,82.861329943466387,20,16.401219466856727,65,57.271284253105414,227,127.58134659894448,11,12.649110640673518,26,28.635642126552707,41,32.015621187164243,1711,374.53170760297451,13,13.928388277184119,42,34,59,56.648036153074187,191,128.39003076563228,248,159.76545308670458,20,16.278820596099706,156,73.006848993775918,0,24.041630560342615,52,65.253352404301808,15,13.892443989449804,97,82.764726786234249,152,87.045964869142551,255,144.25671561490648,149,92.357999112150537,15,12.529964086141668,24,19.209372712298546,112,60.108235708594876,34,27.513632984395208,21,19.235384061671343]
[null,"No disability",1044,204.83163818121457,443,153.88307249337075,640,171.5925406304132,1115,224.4036541591959,253,71.28113354878694,419,102.20078277586722,397,87.863530545955186,8921,505.7242331547896,168,52.345009313209601,416,97.621718894926246,782,166.42415690037308,1315,269.60155785900054,1788,322.98142361442399,147,73.082145562373853,3721,413.91786624884895,1273,394.153523389047,745,200.87807247183551,265,65.79513659838392,1114,165.8493292117879,771,193.21490625725542,1184,287.01393694383552,554,139.30183056945089,201,69.856996786291916,333,145.34441853748632,599,137.05838172107534,262,80.956778592036386,305,87.863530545955186]
[null,"35 to 64 years:",1929,204.38444167793205,761,141.50971698084905,1407,184.50474248647376,3448,186.6815470259447,597,73.552702193733168,993,122.11470017978998,1269,108.40664186294121,16077,624.59106621852993,717,138.7984149765407,1284,107.05606008068857,1947,203.21663317750347,3876,371.43640101637857,1840,299.12706330253701,394,65.79513659838392,5646,331.07400985278201,2609,214.40149253211834,2752,273.65854636754904,838,119.50313803411188,1036,126.81088281373961,2212,211.43556938225885,3271,312.50759990758627,1731,234.06836608136521,648,144.31216164966833,1016,160.52725625263767,1038,104.65180361560904,1021,120.91732712891069,606,102.61578825892242]
[null,"With a disability",342,134.46560898608982,81,94.894678459858852,142,72.124891681027847,191,77.826730626437083,33,21.470910553583888,114,53.758720222862451,97,44.045431091090478,2591,396.01136347332255,108,43.011626335213137,88,52.201532544552748,193,94.873600121424715,742,218.63439802556229,190,100.08995953640904,81,34.481879299133332,600,186.56098198712399,305,195.5326059765992,308,141.59802258506295,45,23.323807579381203,41,39.560080889704963,658,209.80467106334882,248,123.47064428438041,251,133.79461872586654,28,25.059928172283335,33,24.698178070456937,86,37.20215047547655,76,30.805843601498726,33,20.615528128088304]
[null,"No disability",1587,190.21303845951255,680,100.65783625729296,1265,187.44865963777923,3257,208.06249061279644,564,70.007142492748557,879,117.47765745025733,1172,112.80514172678478,13486,594.47119358300279,609,133.7235955244997,1196,105.89145385724005,1754,189.76301009416983,3134,353.73577709923546,1650,290,313,57.008771254956898,5046,355.04647583098188,2304,269.55704405561357,2444,333.76788341600513,793,116.04309544302927,995,124.73972903610141,1554,204.89265482198232,3023,305,1480,219.24415613648634,620,144.31216164966833,983,164.04877323527901,952,104.00480758118829,945,115.96551211459379,573,99.624294225856374]
[null,"65 to 74 years:",432,138.42326394071193,253,68.01470429252781,449,124.80785231707178,870,112.29425630903836,275,60.539243470661241,304,54.671747731346578,280,58.668560575490517,4422,409.73772098746292,202,64.443773942872099,341,101.31633629380802,668,132.77424449041311,996,177.65415840897168,1013,371.94085551334638,109,31.400636936215164,1396,205.9732992404598,724,142.94754282603111,861,189.02116283633427,195,43.416586692184822,664,136.03308421115798,524,138.67948658687772,537,138.13037319865606,621,162.2004932174992,303,96.005208192055917,259,93.23089616645332,386,79.202272694664515,225,45.967379738244816,165,39.824615503479755]
[null,"With a disability",137,86.452298986203942,33,22.627416997969522,75,44.598206241955516,138,58.051701094799967,33,18.788294228055936,52,24.758836806279895,77,37.20215047547655,1026,187.85632808079689,49,30.232432915661949,52,63.63961030678928,141,64.381674411279491,299,108.70602559196064,238,261.39816372729172,36,16.401219466856727,283,133.40539719216761,173,97.082439194738001,219,125.89678312014172,18,14.142135623730951,76,48.836461788299118,217,117.92370414806346,126,79.924964810752343,168,111.35977729862789,87,83.600239234107462,46,23.345235059857504,93,43.863424398922618,51,29.681644159311659,17,10.770329614269007]
[null,"No disability",295,100.89598604503551,220,62.481997407253232,374,118.98319209031165,732,105.89145385724005,242,57.801384066473702,252,53.263495942343098,203,50.606323715519977,3396,387.62094886628614,153,54.918120870983927,289,83.630138108220294,527,129.0348790056394,697,156.46405337968207,775,291.2387336876742,73,26.419689627245813,1113,181.04143172213369,551,121.91800523302537,642,158.927656498169,177,44.82186966202994,588,131.79529581893277,307,85.211501571090736,411,109.34349546269316,453,151.21177202850313,216,47.381430961928537,213,91.760557975635692,293,68.24221567329127,174,38.897300677553446,148,38.600518131237564]
[null,"75 years and over:",143,71.119617546778187,339,155.42522317822161,184,73.756355658343097,486,120.20815280171308,80,29.681644159311659,188,56.859475903318,162,45.221676218380054,2966,313.57614705203582,114,71.470273540822546,160,36.61966684720111,218,93.861600242058515,830,269.47356085523495,193,86.371291526756735,55,28.301943396169811,932,198.90952717253137,279,104.63746938836012,394,152.41062955056645,202,57.982756057296896,839,190.42058712229621,270,92.655275079188016,337,101.53324578678651,306,110.42191811411355,100,46.097722286464439,198,94.403389769647575,205,63.560994328282817,81,29,132,40.496913462633174]
[null,"With a disability",87,63.324560795950255,100,44.598206241955516,86,52.40229002629561,199,74.4043009509531,41,22.671568097509269,71,29.206163733020468,84,36.124783736376884,1264,239.43683927081898,38,23.600847442411894,56,21.2602916254693,151,80.156097709406993,361,143.40153416194681,33,33.301651610693426,29,22.022715545545239,367,114.80853626799707,103,64.660652641308843,177,104.54664030948101,84,37.643060449437421,288,100.20977996183805,79,44.204072210600685,166,75.432088662584434,222,109.04127658827184,45,29.732137494637012,88,81.60882305241266,73,41.231056256176608,31,17.804493814764857,34,26.627053911388696]
[null,"No disability",56,34.985711369071801,239,150.65855435387664,98,55.172456896534889,287,94.826156729037578,39,19.697715603592208,117,48.301138702933287,78,27.658633371878661,1702,267.08800047924279,76,68.154236845554948,104,31.622776601683793,67,44.721359549995796,469,253.95472037353431,160,77.336925203941234,26,19.416487838947599,565,183.33848477611022,176,84.219950130595535,217,129.80754985747168,118,46.065171225124082,551,163.67040050051813,191,88.68483523128404,171,82.134036793524274,84,46.647615158762406,55,35.468295701936398,110,51.61395160225576,132,45.793012567421243,50,21.931712199461309,98,31.906112267087632]
[]
[]
[]
[]
[]
[]
[]
[]
[]
[]
[]
[]
[]
[]
[]
[]
[]
[]
[]
[]
[]
[]
[]
[]
[]
[]
["B18101. SEX BY AGE BY DISABILITY STATUS\n-Calculated"]
["Universe:  Civilian non-institutionalized population"]
["Data Set: 2013-2017 American Community Survey 5-Year Estimates"]
[]
[]
[null,null,"Allenstown",null,"Andover",null,"Boscawen",null,"Bow",null,"Bradford",null,"Canterbury",null,"Chichester",null,"Concord",null,"Danbury",null,"Dunbarton",null,"Epsom",null,"Franklin",null,"Henniker",null,"Hill",null,"Hooksett",null,"Hopkinton",null,"Loudon",null,"Newbury",null,"New London",null,"Northfield",null,"Pembroke",null,"Pittsfield",null,"Salisbury",null,"Sutton",null,"Warner",null,"Webster",null,"Wilmot"]
[null,null,"Estimate","Margin Of Error","Estimate","Margin Of Error","Estimate","Margin Of Error","Estimate","Margin Of Error","Estimate","Margin Of Error","Estimate","Margin Of Error","Estimate","Margin Of Error","Estimate","Margin Of Error","Estimate","Margin Of Error","Estimate","Margin Of Error","Estimate","Margin Of Error","Estimate","Margin Of Error","Estimate","Margin Of Error","Estimate","Margin Of Error","Estimate","Margin Of Error","Estimate","Margin Of Error","Estimate","Margin Of Error","Estimate","Margin Of Error","Estimate","Margin Of Error","Estimate","Margin Of Error","Estimate","Margin Of Error","Estimate","Margin Of Error","Estimate","Margin Of Error","Estimate","Margin Of Error","Estimate","Margin Of Error","Estimate","Margin Of Error","Estimate"]
[null,"Total",4296,33,2783,308,3422,225,7692,22,1675,186,2248,248,2590,30,40414,267,1281,174,2788,21,4541,113,8326,71,4893,18,946,132,13907,136,5614,16,5403,15,1892,203,4426,84,4769,58,7137,43,4091,22,1257,165,1932,270,2849,71,1859,185,1477,174]
[null,"Under 5 years:",230,86.278618440491968,94,50.209560842532767,205,111.82575731914361,348,110.43550153822818,44,19.798989873223331,100,41.109609582188931,163,57.008771254956898,2003,274.52686571627191,117,47.634021455258214,155,44.204072210600685,188,74.060785845142092,472,179.87773625437919,434,156.46085772486356,34,21.470910553583888,662,191.03141102970474,255,124.40257232067189,219,115.36463929644994,39,22.472205054244231,102,63.031738037277698,353,129.634100452003,213,108.93117092916977,295,124.03628501370073,45,20.518284528683193,94,46.324939287601879,116,53.075418038862395,70,29.832867780352597,46,23.259406699226016]
[null,"With a disability",0,15.556349186104045,0,15.556349186104045,0,15.556349186104045,0,22.627416997969522,0,15.556349186104045,0,15.556349186104045,0,15.556349186104045,68,65.215028942721474,0,15.556349186104045,0,15.556349186104045,11,21.095023109728988,0,22.627416997969522,0,15.556349186104045,0,15.556349186104045,0,25.45584412271571,0,22.627416997969522,0,22.627416997969522,0,15.556349186104045,0,15.556349186104045,0,15.556349186104045,0,22.627416997969522,0,15.556349186104045,0,15.556349186104045,0,15.556349186104045,0,15.556349186104045,0,15.556349186104045,0,15.556349186104045]
[null,"No disability",230,86.278618440491968,94,50.209560842532767,205,111.82575731914361,348,110.43550153822818,44,19.798989873223331,100,41.109609582188931,163,57.008771254956898,1935,267.66023238426737,117,47.634021455258214,155,44.204072210600685,177,71.61005515987263,472,179.87773625437919,434,156.46085772486356,34,21.470910553583888,662,191.03141102970474,255,124.40257232067189,219,115.36463929644994,39,22.472205054244231,102,63.031738037277698,353,129.634100452003,213,108.93117092916977,295,124.03628501370073,45,20.518284528683193,94,46.324939287601879,116,53.075418038862395,70,29.832867780352597,46,23.259406699226016]
[null,"5 to 17 years:",547,134.61797799699713,530,129.52991932368366,573,153.80832227158581,1521,166.87720036002523,316,71.589105316381762,268,87.658428003244509,439,80.802227692063042,6140,412.01213574359673,148,59.203040462462738,533,66.603303221386852,735,172.5688268488837,1216,215.67800073257357,636,171.11984104714449,82,33.421549934136806,2069,269.42902590478258,977,268.12683565805196,650,246.00203251192866,235,62.22539674441618,427,114.33722053644648,717,151.34397906755325,1216,231.01947969814148,733,141.48498153514387,187,52.430906915673319,330,104,456,86.833173384369644,267,58.258046654518033,179,65.436992595931542]
[null,"With a disability",170,98.994949366116657,26,29.410882339705484,53,53.851648071345039,75,42.43819034784589,11,10.295630140987001,8,11.401754250991379,10,18.601075237738275,413,136.35981812836215,17,19.924858845171276,6,13.601470508735444,27,30.886890422961002,117,74.330343736592525,21,33.837848631377263,0,15.556349186104045,159,105.47511554864494,110,68.593002558570063,0,22.627416997969522,0,15.556349186104045,29,28.231188426986208,81,70.434366611761334,126,103.09219175087898,46,39.204591567825318,0,15.556349186104045,3,12.083045973594572,23,15.811388300841896,15,15.556349186104045,24,40.521599178709621]
[null,"No disability",377,108.81176406988355,504,115.10864433221339,520,152.30561381643159,1446,171.82840277439584,305,70.837842993699354,260,86.53323061113575,429,80.802227692063042,5727,431.4834875171934,131,49.739320461783549,527,66.603303221386852,708,166.97305171793442,1099,211.45448682872635,615,171.82840277439584,82,33.421549934136806,1910,253.899586451022,867,236.27949551325861,650,246.00203251192866,235,62.22539674441618,398,113.56936206565572,636,162.04937519163718,1090,223.65151463828721,687,143.55835050598765,187,52.430906915673319,327,103.07764064044152,433,85.428332536694171,252,56.727418414731339,155,50.219518117958877]
[null,"18 to 34 years:",917,147.10540438746634,462,129.84991336154215,741,140.92906016858268,1019,156.64609794054877,216,48.010415536631214,331,66.843099868273612,484,104.80935072788114,9641,445.9069409641433,203,52.801515129776341,407,64.536811201050213,737,143.93401265857906,1857,269.87589740471452,1574,234.58047659598614,151,42.5205832509386,3320,320.22023671217283,862,164.19500601419034,733,225.41739063346466,205,55.569775957799216,1470,208.69355524308841,1012,190.21303845951255,1384,235.51857676200407,742,155.05160431288675,189,55.97320787662612,263,70.434366611761334,537,110.53506231056279,304,69.354163537598808,217,81.884064383737083]
[null,"With a disability",96,59.506302187247357,46,41.484937025383083,31,30.016662039607269,62,45.803929962395145,12,9.2195444572928871,14,17.804493814764857,63,43.657759905886145,925,236.76359517459605,4,12.529964086141668,63,33.600595232822883,0,15.556349186104045,154,98.086696345630884,42,34.058772731852805,9,17.804493814764857,222,86.608313688698502,38,39.66106403010388,34,62.096698785040097,5,13.601470508735444,67,46.75467891024384,103,75.690157880665041,45,42.941821107167776,72,55.97320787662612,26,17.088007490635061,3,11.704699910719626,31,21.633307652783937,20,25.495097567963924,2,11.704699910719626]
[null,"No disability",821,142.13022197970423,416,121.07848694132248,710,139.51702405083043,957,160.70469812671936,204,49.406477308142499,317,65.604877867426907,421,99.045444115315064,8716,446.76839637557174,199,51.61395160225576,344,61.522353661088097,737,143.93401265857906,1703,264.90941848111027,1532,235.07658326596462,142,41.773197148410844,3098,305.55032318752342,824,162.40997506310995,699,231.10603626906848,200,55.569775957799216,1403,200.11246837716035,909,174.14074767267999,1339,235.49309968659378,670,152.83978539634239,163,52.40229002629561,260,71.217975259059429,506,109.34349546269316,284,66.068146636635717,215,81.412529748190479]
[null,"35 to 64 years:",2010,140.80127840328723,1223,150.60212481900777,1379,148.49915824677257,3559,123.0690862889621,731,77.077882690172544,1160,99.005050376230813,1119,90.027773492406226,16491,467.20659241924233,671,87.045964869142551,1379,62.936475910238251,2179,189.80516325959101,3635,292.05650138286597,1749,195.90048494069634,450,49.497474683058329,5880,258.897663179875,2226,228.95414388038492,2778,203.82835916525454,893,97.621718894926246,1041,126.90547663517127,2185,149.24141516348604,3263,246.86838598735156,1770,164.62381358722072,611,80.622577482985491,821,101.17806086301516,1250,86.400231481171389,909,90.686272390037075,667,76.419892698171196]
[null,"With a disability",376,112.0714058089752,102,50.803543183522152,311,115.6027681329474,180,65.855903304107827,47,19.416487838947599,148,51.97114584074513,122,49.739320461783549,2329,306.24989795916667,125,41.617304093369626,55,29.206163733020468,249,94.30270409696638,788,196.79684956827941,179,86.313382508160345,72,33.97057550292606,659,174.49641830135081,71,48.754486972995622,267,128.80993750483694,70,35.510561809129406,127,53.814496188294839,379,109.65856099730654,404,135.88230201170424,478,133.80956617521784,75,28.0178514522438,65,40.496913462633174,185,61.326992425847855,113,38.209946349085598,30,19.697715603592208]
[null,"No disability",1634,154.15576538034509,1121,154.20765220960988,1068,150,3379,138.65785228395831,684,77.794601355106892,1012,93.338095116624274,997,98.412397592986224,14162,491.50584940568103,546,77.794601355106892,1324,68.117545463705611,1930,202.2992832414391,2847,291.3417237540823,1570,180.38015411901608,378,46.010868281309364,5221,289.27841260626411,2155,227.90568224596771,2511,213.17832910500073,823,93.509357820487679,914,117.6860229593982,1806,167.59773268156107,2859,263.82759522081841,1292,157.69908052997647,536,75.690157880665041,756,98.595131725658746,1065,83.868945385047027,796,82.462112512353215,637,75.927597090912869]
[null,"65 to 74 years:",331,82.855295545909442,297,71.56116265125938,299,65.069193939989759,688,99.824846606443629,255,55.172456896534889,271,49.040799340956916,314,46.227697325304881,3362,209.46837470128995,71,27.802877548915689,252,36.069377593742864,466,90.609050320594349,697,139.20129309744217,318,83.450584180100265,161,48.826222462934808,1161,135.05924625881784,816,173.51080657987848,678,173.4156855650607,374,66.468037431535464,619,111.80339887498948,343,69.814038702828242,736,146.20875486782589,339,80.05623023850174,135,36.891733491393431,252,66.2872536767062,332,79.208585393251411,233,45.607017003965517,173,42.01190307520001]
[null,"With a disability",117,49.678969393496885,96,48.60041152089147,110,44.204072210600685,133,55.226805085936306,74,32.557641192199412,58,29.732137494637012,20,18.601075237738275,993,155.97435686676192,20,12.206555615733702,42,18.867962264113206,130,58.008620049092706,225,83.93449827097318,20,25.079872407968907,40,19.723082923316021,377,95.775779819325933,164,77.466121627457255,168,101.59724405711013,42,30.528675044947494,47,41.484937025383083,55,30.232432915661949,216,91.049437120720299,95,63.063460101710248,24,13.928388277184119,23,22.627416997969522,98,54.203320931470607,27,13.45362404707371,33,24.041630560342615]
[null,"No disability",214,77.89736837660179,201,61.400325732035007,189,54.451813560247928,555,90.609050320594349,181,44.553338819890925,213,46.690470119715009,294,47.801673610868477,2369,205.54804791094466,51,25.238858928247925,210,36.124783736376884,336,82.462112512353215,472,111.01801655587259,298,81.344944526380985,121,42.201895692018383,784,127.66362050325849,652,158.52129194527782,510,157.07959765672945,332,64.381674411279491,572,108.93117092916977,288,68.505474233815804,520,116.18089343777659,244,57.428216061444921,111,34.409301068170507,229,65.192024052026483,234,60.605280298007038,206,44.204072210600685,140,36.76955262170047]
[null,"75 years and over:",261,83.234608186739251,177,59.464274989274024,225,75.286120898874842,557,99.488692824863264,113,34.409301068170507,118,36.61966684720111,71,28.42534080710379,2777,286.75076285861911,71,26.92582403567252,62,24.839484696748443,236,85.702975444263316,449,98.005101908012932,182,73.552702193733168,68,36.069377593742864,815,149.80654191322887,478,140.08925726121899,345,116.01724009818541,146,49.51767361255979,767,144.25671561490648,159,51.478150704935004,325,113.25193155085701,212,74.303431953039691,90,31.906112267087632,172,54.671747731346578,158,49.091750834534309,76,26.90724809414742,195,55.470712993434653]
[null,"With a disability",158,61.522353661088097,81,42.059481689626182,159,65.79513659838392,242,80.430093870391573,38,25.553864678361276,42,23.345235059857504,19,16.401219466856727,1372,232.33165948703589,47,23.259406699226016,33,18.867962264113206,125,64.498061986388393,257,91.263355187062899,66,44.553338819890925,28,23.345235059857504,484,131.40015220691336,244,106.04244433244644,221,102.41581909060729,55,31.064449134018133,314,83.86298349093002,60,34.058772731852805,150,77.833154889160184,113,50.606323715519977,41,26.419689627245813,44,28.319604517012593,83,40.80441152620633,41,18.357559750685819,83,40.311288741492746]
[null,"No disability",103,54.626001134990652,96,45.607017003965517,66,33.837848631377263,315,79.611556949980567,75,23.600847442411894,76,29.410882339705484,52,26.248809496813376,1405,229.24222996647018,24,13.45362404707371,29,16.278820596099706,111,58.600341295934449,192,72.498275841567434,116,62.241465278381739,40,28.319604517012593,331,104.65180361560904,234,96.005208192055917,124,68.01470429252781,91,38.600518131237564,453,108.04628637764465,99,43.324358044868937,175,88.509886453435243,99,57.384666941614292,49,18.384776310850235,128,52.345009313209601,75,32.310988842807021,35,17,112,36.069377593742864]
[]
[]
[]
[]
["B18101. SEX BY AGE BY DISABILITY STATUS\n-Calculated"]
["Universe:  Civilian non-institutionalized population"]
["Data Set:  2008-2012 American Community Survey 5-Year Estimates"]
[]
[]
[null,null,"Allenstown",null,"Andover",null,"Boscawen",null,"Bow",null,"Bradford",null,"Canterbury",null,"Chichester",null,"Concord",null,"Danbury",null,"Dunbarton",null,"Epsom",null,"Franklin",null,"Henniker",null,"Hill",null,"Hooksett",null,"Hopkinton",null,"Loudon",null,"Newbury",null,"New London",null,"Northfield",null,"Pembroke",null,"Pittsfield",null,"Salisbury",null,"Sutton",null,"Warner",null,"Webster",null,"Wilmot"]
[null,null,"Estimate","Margin Of Error","Estimate","Margin Of Error","Estimate","Margin Of Error","Estimate","Margin Of Error","Estimate","Margin Of Error","Estimate","Margin Of Error","Estimate","Margin Of Error","Estimate","Margin Of Error","Estimate","Margin Of Error","Estimate","Margin Of Error","Estimate","Margin Of Error","Estimate","Margin Of Error","Estimate","Margin Of Error","Estimate","Margin Of Error","Estimate","Margin Of Error","Estimate","Margin Of Error","Estimate","Margin Of Error","Estimate","Margin Of Error","Estimate","Margin Of Error","Estimate","Margin Of Error","Estimate","Margin Of Error","Estimate","Margin Of Error","Estimate","Margin Of Error","Estimate","Margin Of Error","Estimate","Margin Of Error","Estimate","Margin Of Error","Estimate"]
[null,"Total",4336,43,2496,235,3507,201,7571,34,1466,204,2419,143,2529,19,40312,334,1218,225,2756,18,4468,87,8376,74,4800,54,1210,201,13469,37,5608,16,5235,76,2103,252,4358,53,4795,74,7132,28,4088,53,1286,173,1794,251,2831,24,1749,161,1390,196]
[null,"Under 5 years:",223,99.488692824863264,126,50.537115073973112,220,82.800966177937809,209,78.10249675906654,51,23.259406699226016,147,55.865910893853687,95,44.77722635447622,2200,280.7294070809113,33,28.231188426986208,86,36.796738985948195,229,92.913938674452936,459,144.81022063376605,285,99.005050376230813,63,33.105890714493697,706,195.34584715319647,265,102.92715870944851,248,104.0096149401583,121,65.36818798161687,119,70.213958726167832,391,145.7737973711325,510,145.90750494748377,329,90.520715861066847,65,34.409301068170507,121,62.032249677083293,154,60.141499815019579,64,30,36,24.207436873820409]
[null,"With a disability",0,15.556349186104045,0,15.556349186104045,0,15.556349186104045,0,22.627416997969522,0,15.556349186104045,16,28.231188426986208,0,15.556349186104045,17,35.383612025908263,0,15.556349186104045,0,15.556349186104045,0,15.556349186104045,5,17.464249196572979,0,15.556349186104045,0,15.556349186104045,9,23.430749027719962,0,22.627416997969522,0,22.627416997969522,0,15.556349186104045,0,15.556349186104045,0,15.556349186104045,0,22.627416997969522,0,15.556349186104045,3,12.083045973594572,0,15.556349186104045,0,15.556349186104045,3,11.704699910719626,0,15.556349186104045]
[null,"No disability",223,99.488692824863264,126,50.537115073973112,220,82.800966177937809,209,78.10249675906654,51,23.259406699226016,131,49.406477308142499,95,44.77722635447622,2183,277.24357521861532,33,28.231188426986208,86,36.796738985948195,229,92.913938674452936,454,144.81022063376605,285,99.005050376230813,63,33.105890714493697,697,196.82479518597245,265,102.92715870944851,248,104.0096149401583,121,65.36818798161687,119,70.213958726167832,391,145.7737973711325,510,145.90750494748377,329,90.520715861066847,62,33.837848631377263,121,62.032249677083293,154,60.141499815019579,61,30,36,24.207436873820409]
[null,"5 to 17 years:",698,172.7917822120022,298,79.05694150420949,580,206.64946164943183,1791,192.4162155328911,203,73.23933369440222,395,96.607453128627711,447,84.876380695691779,6260,422.40383520986171,249,76.380625815713245,535,82.134036793524274,754,168.21712160181556,1558,304.90162347878703,798,185.69868066305693,275,73.23933369440222,2087,263.88254963146011,963,192.4162155328911,1112,221.00904958847272,307,84.811555816409836,547,112.4144118874444,932,207.20038610002638,1195,218.55205329623422,538,130.09611831257686,246,70.178344238091,356,90.520715861066847,411,99.724620831567975,317,68.8839603971781,259,73.661387442811588]
[null,"With a disability",50,48.703182647543684,0,15.556349186104045,17,30.083217912982647,67,63.063460101710248,4,12.083045973594572,24,22.472205054244231,24,30.083217912982647,363,127.47548783981962,25,18.384776310850235,53,34.785054261852174,59,54.120236510939236,154,81.492330927517344,91,72.835430938520574,12,12.806248474865697,74,54.083269131959838,34,33.241540277189323,45,38.013155617496423,6,13.038404810405298,11,19.416487838947599,89,60.827625302982199,155,90.801982357215081,61,43.600458713183279,10,14.212670403551895,0,15.556349186104045,0,15.556349186104045,7,13.038404810405298,0,15.556349186104045]
[null,"No disability",648,171.4322023425004,298,79.05694150420949,563,211.85136298829894,1724,199.06029237394384,199,72.670489196096653,371,89.554452708952439,423,85.702975444263316,5897,412.62210314039163,224,71.505244562899023,482,72.346388990743691,695,144.49913494550754,1404,307.14817271147814,707,174.66825699021561,263,74.886580907396223,2013,265.63320575560579,929,190.31815467789718,1067,218.80585001320233,301,84.02380615040002,536,115.67627241573788,843,206.63252406143619,1040,221.00904958847272,477,129.49517365523704,236,68.680419334771102,356,90.520715861066847,411,99.724620831567975,310,69.656299069071991,259,73.661387442811588]
[null,"18 to 34 years:",1008,159.17600321656528,413,110.27692415006868,672,167.62159765376299,776,158.61904047118682,213,56.080299571239813,332,69.426219830839131,336,67.357256476195644,9580,403.78831087588458,239,70.767224051816527,349,94.175368329515976,745,152.64337522473747,1662,247.4914139924858,1422,221.77466041006579,171,44.553338819890925,3029,310.48510431259018,786,184.1738309315414,866,186.93581786270923,276,71.847059786744225,1146,197.85348114198041,834,147.8681845428556,1497,243.47895186237352,844,157.76247969653622,211,43.185645763378368,234,65.76473218982953,451,92.617492948146676,241,56.400354608814297,171,63.007936008093459]
[null,"With a disability",31,27.294688127912362,39,51.623637996561229,12,15.556349186104045,37,37.576588456111871,4,12.083045973594572,11,20.248456731316587,8,15.556349186104045,872,217.16583525039107,7,14.212670403551895,18,17.691806012954132,48,51.195702944680818,241,112.64546151532249,25,37.054014627297811,20,17.888543819998318,97,58.600341295934449,0,22.627416997969522,14,23.345235059857504,28,25.709920264364882,26,24.207436873820409,62,43.931765272977593,134,79.705708703956702,115,81.412529748190479,6,12.529964086141668,13,15.297058540778355,42,27.784887978899608,19,21.95449840010015,23,19.924858845171276]
[null,"No disability",977,160.63934760823702,374,96.254870006665115,660,169.11830178901394,739,155.66630977832037,209,55.317266743757322,321,70.092795635500224,328,66.708320320631671,8708,427.89835241561752,232,70.092795635500224,331,96.938124595021947,697,145.05516192124981,1421,225.70112981551509,1397,218.65269264292172,151,41.036569057366385,2932,306.88760157425713,786,184.1738309315414,852,186.10212250267324,248,68.600291544569984,1120,192.40841977418765,772,147.32277488562318,1363,243.79704674175198,729,155.62133529821674,205,43.863424398922618,221,64.350602172784676,409,92.80086206496145,222,54.644304369257,148,56.080299571239813]
[null,"35 to 64 years:",1926,185.26737435393204,1179,140.60227594174995,1557,164.20109622045769,3790,142.89856542317,820,91.967385523347346,1237,82.024386617639507,1415,68.593002558570063,16930,419.56167603821967,547,81.467785044151043,1562,75.073297516493838,2159,118.1397477566293,3710,247.22661669003199,2026,185.53975315279473,588,74.411020689142546,5898,262.68041419184647,2609,152.02960238058901,2431,149.91330828182001,984,119.67038062946069,1162,134.23859355639868,2059,194.60986614249546,3168,233.96153530014288,1953,168.60011862392031,610,72.862884927787476,733,92.097774131626011,1394,105.38026380684383,923,74.518454090245328,664,89.10667763978185]
[null,"With a disability",250,102.88342918079665,236,86.284413424441851,237,87.692645073575008,298,122.53978945632312,89,38.897300677553446,86,43.278170016764804,140,52.630789467763066,2175,300.29319006597535,96,40.311288741492746,94,43.185645763378368,343,111.28791488746656,656,161.96604582442581,261,124.20144926690671,78,32.449961479175904,301,107.56393447619885,249,118.68024266911489,254,84.148677945645701,23,16.401219466856727,136,67.007462271003817,187,89.810912477270818,343,123.17467272130257,401,128.31601614763451,101,43.46262762420146,58,32.649655434629018,167,61.611687202997452,64,26.92582403567252,24,18.601075237738275]
[null,"No disability",1676,180.23595645708434,943,119.75391434103521,1320,176.7993212656655,3492,164.04877323527901,731,85.912746434973201,1151,84.291162051546067,1275,89.375611886017325,14755,429.84881062997022,451,73.878278269055514,1468,81.688432473637292,1816,154.17522498767434,3054,234.86591919646409,1765,182.43354954612926,510,72.47068372797375,5597,278.6000717874997,2360,164.93938280471406,2177,165.6804152578089,961,117.45637488020819,1026,117.64352935882194,1872,199.15069670980316,2825,252.21022976873877,1552,154.02921800749363,509,69.526973183074787,675,87.783825389418979,1227,106.07544484940895,859,73,640,88.391176030189797]
[null,"65 to 74 years:",233,69.202601107183824,330,79.208585393251411,231,87.321245982864909,652,111.73182178770737,76,25.80697580112788,185,36.069377593742864,164,41.725292090050132,2640,197.29419656948858,107,30.232432915661949,169,40.36087214122113,430,108.22661410207751,497,110.34491379306978,106,49.929950931279713,76,23.345235059857504,1151,143.83671297690307,649,137.55726080436466,378,89.10667763978185,219,57.314919523628397,503,105.11898020814318,319,106.21675950620975,369,102.7277956543408,245,72.945184899347538,102,30,227,58.694122363316758,199,52.630789467763066,134,29.832867780352597,145,48.918299234540036]
[null,"With a disability",61,40,82,46.529560496527367,122,76.485292703891773,74,48.104053883222775,23,16.763054614240211,14,14.142135623730951,32,21.023796041628639,553,122.20065466273084,38,21.095023109728988,33,22.360679774997898,80,55.154328932550705,137,58,39,28.600699292150182,24,12.806248474865697,133,63.820059542435402,142,89.050547443572739,96,41.868842830916641,69,40.496913462633174,17,21.095023109728988,88,65.604877867426907,61,49.396356140913873,93,43.139309220245984,10,8.9442719099991592,56,32.280024783137947,58,32.249030993194197,27,14.212670403551895,13,11.180339887498949]
[null,"No disability",172,63.134776470658387,248,69.814038702828242,109,50.24937810560445,578,106.7941945987702,53,19.798989873223331,171,36.124783736376884,132,38.183766184073569,2087,203.76947759662141,69,23.345235059857504,136,38.897300677553446,350,99.322706366671255,360,101.53324578678651,67,44.721359549995796,52,21.633307652783937,1018,141.42842712835352,507,117.06835610018618,282,91.678787077491378,150,43.416586692184822,486,102.6498904042279,231,83.486525858967212,308,96.876209669866839,152,65.299310869258036,92,28.301943396169811,171,52.630789467763066,141,43.931765272977593,107,26.172504656604801,132,47.507894080878813]
[null,"75 years and over:",248,83.600239234107462,150,66.037867924396224,247,76.576758876306585,353,97,103,34.655446902326915,123,41.773197148410844,72,36.878177829171548,2702,254.42091109026396,43,16.278820596099706,55,32.202484376209235,151,60.605280298007038,490,109.55363982999378,163,66.887966032762577,37,17.720045146669349,598,129.00387591076478,336,88.865066252155572,200,64.660652641308843,196,69.426219830839131,881,135.28118864054971,260,91.35097153287424,393,106.82696288858914,179,75.663729752107784,52,18.439088914585774,123,47.634021455258214,222,69.31089380465383,70,29.732137494637012,115,38.013155617496423]
[null,"With a disability",121,67.178865724273734,92,62.177166226839255,83,39.812058474788763,173,77.103826104804938,59,29.068883707497267,39,25,44,31.906112267087632,1351,194.01030900444439,25,13.45362404707371,28,21.213203435596427,110,53.823786563191554,183,75.471849056452825,70,45.354161881794269,16,9.4339811320566032,293,108.22661410207751,176,78.600254452514335,125,52.773099207835045,121,58.694122363316758,295,87.321245982864909,164,74.027022093286988,146,79.605276207045478,92,69.771054170049638,30,12.727922061357855,34,23.409399821439251,110,55.317266743757322,27,20.615528128088304,67,32.802438933713454]
[null,"No disability",127,70.292247083159893,58,25,164,68.622153857191051,180,76.837490849194182,44,20.124611797498108,84,36.878177829171548,28,21.189620100417091,1351,203.06649157357302,18,11.313708498984761,27,24.596747752497688,41,30.610455730027933,307,79.39773296511683,93,63.513778032801667,21,19.416487838947599,305,97.908120194394499,160,65.299310869258036,75,41.868842830916641,75,37.643060449437421,586,125.99206324209474,96,49.648766349225639,247,89.274856482662571,87,39.824615503479755,22,12.529964086141668,89,42.449970553582247,112,53.037722424704477,43,20.591260281974002,48,21.095023109728988]

{"sheet":"ACS_Table_B18102","index":29,"n_rows":155,"n_cols":56,"rows_kept":155,"cut":false,"hidden":true,"merged":[]}
["B18102. SEX BY AGE BY HEARING DIFFICULTY\n\n"]
["Universe:  Civilian non-institutionalized population"]
["Data Set: 2018-2022 American Community Survey 5-Year Estimates"]
[]
[null,null,"Allenstown",null,"Andover",null,"Boscawen",null,"Bow",null,"Bradford",null,"Canterbury",null,"Chichester",null,"Concord",null,"Danbury",null,"Dunbarton",null,"Epsom",null,"Franklin",null,"Henniker",null,"Hill",null,"Hooksett",null,"Hopkinton",null,"Loudon",null,"Newbury",null,"New London",null,"Northfield",null,"Pembroke",null,"Pittsfield",null,"Salisbury",null,"Sutton",null,"Warner",null,"Webster",null,"Wilmot"]
[null,null,"Estimate","Margin Of Error","Estimate","Margin Of Error","Estimate","Margin Of Error","Estimate","Margin Of Error","Estimate","Margin Of Error","Estimate","Margin Of Error","Estimate","Margin Of Error","Estimate","Margin Of Error","Estimate","Margin Of Error","Estimate","Margin Of Error","Estimate","Margin Of Error","Estimate","Margin Of Error","Estimate","Margin Of Error","Estimate","Margin Of Error","Estimate","Margin Of Error","Estimate","Margin Of Error","Estimate","Margin Of Error","Estimate","Margin Of Error","Estimate","Margin Of Error","Estimate","Margin Of Error","Estimate","Margin Of Error","Estimate","Margin Of Error","Estimate","Margin Of Error","Estimate","Margin Of Error","Estimate","Margin Of Error","Estimate","Margin Of Error","Estimate","Margin Of Error"]
[null,"Total:",4653,22,2151,307,3514,45,8235,19,1565,172,2311,243,2682,31,41872,80,1491,261,2974,65,4706,40,8594,22,6094,15,839,182,14636,89,5925,20,5608,21,1902,258,4267,31,4849,27,7287,40,4052,61,1579,362,2254,451,2849,33,2096,314,1502,217]
[null,"Male:",2401,159,1048,168,1741,125,4045,189,835,112,1128,153,1395,104,21143,567,747,113,1480,96,2215,133,3819,339,3259,210,486,119,7046,304,2777,244,2762,198,981,161,1916,135,2322,155,3819,252,1865,178,884,264,1141,236,1356,102,1050,203,708,117]
[null,"Under 5 years:",130,79,23,29,93,57,307,100,41,30,33,23,58,39,1079,210,36,26,65,39,125,83,148,86,209,149,20,14,380,171,98,77,35,52,79,41,68,59,104,79,113,62,0,12,17,16,20,19,79,53,136,151,41,27]
[null,"With hearing difficulty",35,52,0,12,0,12,0,17,0,12,0,12,0,12,0,25,0,12,0,12,26,38,0,17,0,17,0,12,0,19,0,17,0,17,0,12,0,12,0,12,0,17,0,12,0,12,0,12,0,12,0,12,0,12]
[null,"With no hearing difficulty",95,61,23,29,93,57,307,100,41,30,33,23,58,39,1079,210,36,26,65,39,99,73,148,86,209,149,20,14,380,171,98,77,35,52,79,41,68,59,104,79,113,62,0,12,17,16,20,19,79,53,136,151,41,27]
[null,"5 to 17  years:",417,104,130,70,332,99,854,143,151,53,102,43,319,84,3060,322,96,44,256,43,283,94,450,148,441,131,40,24,930,241,411,146,314,140,122,69,214,97,372,180,733,192,225,80,187,161,121,53,217,65,110,32,82,39]
[null,"With hearing difficulty",19,28,0,12,0,12,0,17,0,12,0,12,0,12,0,25,0,12,0,12,0,12,0,17,0,17,0,12,0,19,0,17,0,17,0,12,0,12,0,12,0,17,13,20,0,12,0,12,0,12,7,11,0,12]
[null,"With no hearing difficulty",398,104,130,70,332,99,854,143,151,53,102,43,319,84,3060,322,96,44,256,43,283,94,450,148,441,131,40,24,930,241,411,146,314,140,122,69,214,97,372,180,733,192,212,79,187,161,121,53,217,65,103,31,82,39]
[null,"18 to 34  years:",580,127,272,134,345,112,625,165,166,59,222,64,255,58,5659,376,109,44,237,70,388,133,585,147,1092,273,128,75,1996,319,535,214,506,196,164,47,553,113,461,127,676,206,375,111,157,64,234,112,336,91,123,49,157,63]
[null,"With hearing difficulty",0,12,0,12,0,12,0,17,0,12,0,12,0,12,164,132,10,13,0,12,0,12,17,27,15,25,3,5,17,25,0,17,0,17,5,9,3,7,22,35,54,61,0,12,0,12,0,12,30,35,13,17,19,19]
[null,"With no hearing difficulty",580,127,272,134,345,112,625,165,166,59,222,64,255,58,5495,383,99,38,237,70,388,133,568,148,1077,272,125,75,1979,314,535,214,506,196,159,46,550,112,439,122,622,212,375,111,157,64,234,112,306,92,110,40,138,58]
[null,"35 to 64  years:",984,142,389,120,653,119,1649,131,287,51,518,104,588,66,8065,465,331,68,665,81,991,161,1919,237,904,214,195,48,2732,227,1273,172,1319,192,445,85,438,84,1000,151,1873,235,845,178,299,105,505,112,510,74,523,86,303,63]
[null,"With hearing difficulty",38,48,10,10,0,12,66,44,0,12,26,26,20,26,250,102,4,5,43,37,28,25,168,89,27,30,25,20,159,118,126,107,25,30,16,13,4,11,80,73,18,35,35,35,0,12,0,12,10,11,15,21,5,7]
[null,"With no hearing difficulty",946,141,379,121,653,119,1583,139,287,51,492,103,568,71,7815,491,327,68,622,76,963,159,1751,224,877,211,170,41,2573,243,1147,165,1294,191,429,82,434,82,920,165,1855,235,810,177,299,105,505,112,500,72,508,82,298,61]
[null,"65 to 74  years:",252,120,107,45,229,104,397,71,158,52,164,42,107,29,2012,301,97,43,188,76,305,85,460,120,501,264,61,25,624,139,356,97,280,127,98,34,333,84,246,76,262,78,299,97,181,89,163,86,169,48,120,33,85,25]
[null,"With hearing difficulty",40,39,14,16,41,33,56,33,21,17,22,17,22,20,235,90,4,5,5,8,31,30,101,59,16,21,8,7,73,53,63,59,54,50,5,8,9,10,47,37,11,18,0,12,17,12,10,12,24,17,26,22,9,8]
[null,"With no hearing difficulty",212,117,93,40,188,99,341,68,137,50,142,41,85,27,1777,284,93,43,183,75,274,80,359,111,485,266,53,24,551,130,293,91,226,123,93,35,324,84,199,71,251,73,299,97,164,88,153,86,145,43,94,27,76,24]
[null,"75  years and Older:",38,33,127,91,89,56,213,71,32,16,89,32,68,26,1268,203,78,68,69,21,123,73,257,90,112,64,42,24,384,114,104,65,308,123,73,31,310,112,139,76,162,65,121,68,43,30,98,56,45,26,38,21,40,22]
[null,"With hearing difficulty",12,16,20,22,10,16,50,53,14,13,32,24,32,23,275,103,8,12,15,11,60,52,58,40,8,13,2,3,126,69,24,29,81,80,6,8,66,46,25,23,49,45,20,24,15,20,45,48,4,5,7,10,14,14]
[null,"With no hearing difficulty",26,24,107,88,79,60,163,52,18,10,57,26,36,17,993,182,70,67,54,21,63,47,199,83,104,64,40,25,258,95,80,60,227,119,67,29,244,98,114,77,113,61,101,67,28,21,53,30,41,25,31,17,26,17]
[null,"Female:",2252,156,1103,175,1773,120,4190,187,730,98,1183,164,1287,103,20729,564,744,166,1494,94,2491,139,4775,340,2835,210,353,74,7590,300,3148,243,2846,200,921,124,2351,137,2527,157,3468,257,2187,160,695,122,1113,246,1493,101,1046,172,794,125]
[null,"Under 5 years:",112,68,37,25,124,83,322,133,39,26,76,47,55,25,1006,224,34,22,116,61,83,71,155,85,107,108,22,13,200,118,91,76,85,96,38,25,96,62,71,49,237,124,89,77,28,21,40,25,58,43,31,17,69,35]
[null,"With hearing difficulty",0,12,0,12,0,12,53,81,0,12,0,12,0,12,0,25,0,12,0,12,0,12,0,17,0,17,0,12,0,19,0,17,0,17,0,12,0,12,0,12,0,17,0,12,0,12,0,12,0,12,0,12,0,12]
[null,"With no hearing difficulty",112,68,37,25,124,83,269,131,39,26,76,47,55,25,1006,224,34,22,116,61,83,71,155,85,107,108,22,13,200,118,91,76,85,96,38,25,96,62,71,49,237,124,89,77,28,21,40,25,58,43,31,17,69,35]
[null,"5 to 17  years:",299,85,145,60,220,105,606,139,118,50,170,75,101,32,2630,296,111,53,294,92,541,157,633,167,255,87,32,23,1275,285,440,187,370,190,148,52,139,63,373,89,620,142,377,158,80,37,243,89,155,60,196,108,81,35]
[null,"With hearing difficulty",0,12,0,12,0,12,0,17,0,12,0,12,0,12,0,25,0,12,0,12,0,12,0,17,0,17,0,12,0,19,0,17,0,17,0,12,0,12,0,12,0,17,0,12,0,12,0,12,0,12,0,12,0,12]
[null,"With no hearing difficulty",299,85,145,60,220,105,606,139,118,50,170,75,101,32,2630,296,111,53,294,92,541,157,633,167,255,87,32,23,1275,285,440,187,370,190,148,52,139,63,373,89,620,142,377,158,80,37,243,89,155,60,196,108,81,35]
[null,"18 to 34  years:",611,163,191,72,360,147,717,161,98,40,223,82,183,66,4973,416,72,34,221,78,453,111,921,244,944,171,39,21,1881,281,738,331,291,116,116,49,658,109,462,159,763,203,328,110,59,29,123,95,375,114,173,75,169,66]
[null,"With hearing difficulty",0,12,0,12,0,12,7,11,0,12,0,12,0,12,33,38,0,12,0,12,7,11,0,17,0,17,0,12,5,8,0,17,0,17,0,12,0,12,0,12,0,17,0,12,3,5,0,12,0,12,0,12,0,12]
[null,"With no hearing difficulty",611,163,191,72,360,147,710,160,98,40,223,82,183,66,4940,416,72,34,221,78,446,111,921,244,944,171,39,21,1876,281,738,331,291,116,116,49,658,109,462,159,763,203,328,110,56,28,123,95,375,114,173,75,169,66]
[null,"35 to 64  years:",945,147,372,75,754,141,1799,133,310,53,475,64,681,86,8012,417,386,121,619,70,956,124,1957,286,936,209,199,45,2914,241,1336,128,1433,195,393,84,598,95,1212,148,1398,206,886,152,349,99,511,115,528,74,498,85,303,81]
[null,"With hearing difficulty",8,18,11,11,27,33,29,31,6,8,31,21,9,10,95,58,11,13,3,5,0,12,0,17,69,69,13,13,101,75,109,158,22,33,0,12,0,12,117,121,4,12,16,22,4,5,0,12,0,12,15,15,3,4]
[null,"With no hearing difficulty",937,148,361,76,727,136,1770,140,304,51,444,67,672,84,7917,422,375,120,616,71,956,124,1957,286,867,214,186,44,2813,248,1227,219,1411,202,393,84,598,95,1095,165,1394,206,870,150,345,99,511,115,528,74,483,88,300,81]
[null,"65 to 74  years:",180,69,146,51,220,69,473,87,117,31,140,35,173,51,2410,278,105,48,153,67,363,102,536,131,512,262,48,19,772,152,368,105,581,140,97,27,331,107,278,116,275,114,322,130,122,36,96,36,217,63,105,32,80,31]
[null,"With hearing difficulty",0,12,14,14,12,18,36,37,0,12,14,12,17,13,207,116,15,16,4,7,36,35,10,17,0,17,13,12,29,32,11,18,25,40,0,12,5,7,79,100,14,23,42,54,3,6,9,10,6,8,2,4,0,12]
[null,"With no hearing difficulty",180,69,132,48,208,69,437,86,117,31,126,36,156,53,2203,276,90,46,149,66,327,107,526,127,512,262,35,15,743,149,357,104,556,134,97,27,326,107,199,70,261,115,280,121,119,35,87,35,211,63,103,32,80,31]
[null,"75  years and Older:",105,63,212,126,95,48,273,97,48,25,99,47,94,37,1698,239,36,22,91,30,95,59,573,254,81,58,13,15,548,163,175,82,86,90,129,49,529,154,131,53,175,78,185,87,57,35,100,76,160,58,43,20,92,34]
[null,"With hearing difficulty",32,39,17,14,7,11,17,20,3,5,24,18,24,20,361,135,0,12,12,11,20,21,96,73,15,25,0,12,101,64,51,41,13,23,25,20,106,69,35,32,73,56,48,74,2,4,43,66,48,40,19,13,16,22]
[null,"With no hearing difficulty",73,57,195,126,88,48,256,97,45,24,75,43,70,31,1337,229,36,22,79,28,75,55,477,262,66,50,13,15,447,158,124,73,73,85,104,44,423,143,96,42,102,68,137,57,55,34,57,42,112,42,24,15,76,27]
[]
[]
[{"$f":"A1& \"-Calculated\"","v":"B18102. SEX BY AGE BY HEARING DIFFICULTY\n\n-Calculated"}]
[{"$f":"A2","v":"Universe:  Civilian non-institutionalized population"}]
[{"$f":"A3","v":"Data Set: 2018-2022 American Community Survey 5-Year Estimates"}]
[]
[]
[null,null,"Allenstown",null,"Andover",null,"Boscawen",null,"Bow",null,"Bradford",null,"Canterbury",null,"Chichester",null,"Concord",null,"Danbury",null,"Dunbarton",null,"Epsom",null,"Franklin",null,"Henniker",null,"Hill",null,"Hooksett",null,"Hopkinton",null,"Loudon",null,"Newbury",null,"New London",null,"Northfield",null,"Pembroke",null,"Pittsfield",null,"Salisbury",null,"Sutton",null,"Warner",null,"Webster",null,"Wilmot"]
[null,null,"Estimate","Margin Of Error","Estimate","Margin Of Error","Estimate","Margin Of Error","Estimate","Margin Of Error","Estimate","Margin Of Error","Estimate","Margin Of Error","Estimate","Margin Of Error","Estimate","Margin Of Error","Estimate","Margin Of Error","Estimate","Margin Of Error","Estimate","Margin Of Error","Estimate","Margin Of Error","Estimate","Margin Of Error","Estimate","Margin Of Error","Estimate","Margin Of Error","Estimate","Margin Of Error","Estimate","Margin Of Error","Estimate","Margin Of Error","Estimate","Margin Of Error","Estimate","Margin Of Error","Estimate","Margin Of Error","Estimate","Margin Of Error","Estimate","Margin Of Error","Estimate","Margin Of Error","Estimate","Margin Of Error","Estimate","Margin Of Error","Estimate","Margin Of Error"]
[null,"Total",{"$f":"C7","v":4653},22,2151,307,3514,45,8235,19,1565,172,2311,243,2682,31,41872,80,1491,261,2974,65,4706,40,{"$f":"Y7","v":8594},22,6094,15,839,182,14636,89,5925,20,5608,21,1902,258,4267,31,4849,27,7287,40,4052,61,1579,362,2254,451,2849,33,2096,314,1502,217]
[null,"Under 5 years:",{"$f":"C28+C9","v":242},{"$f":"SQRT((D28^2)+(D9^2))","v":104.23531071570709},{"$f":"E28+E9","v":60},{"$f":"SQRT((F28^2)+(F9^2))","v":38.288379438153292},{"$f":"G28+G9","v":217},{"$f":"SQRT((H28^2)+(H9^2))","v":100.68763578513501},{"$f":"I28+I9","v":629},{"$f":"SQRT((J28^2)+(J9^2))","v":166.4001201922643},{"$f":"K28+K9","v":80},{"$f":"SQRT((L28^2)+(L9^2))","v":39.698866482558415},{"$f":"M28+M9","v":109},{"$f":"SQRT((N28^2)+(N9^2))","v":52.32590180780452},{"$f":"O28+O9","v":113},{"$f":"SQRT((P28^2)+(P9^2))","v":46.324939287601879},{"$f":"Q28+Q9","v":2085},{"$f":"SQRT((R28^2)+(R9^2))","v":307.04397079245831},{"$f":"S28+S9","v":70},{"$f":"SQRT((T28^2)+(T9^2))","v":34.058772731852805},{"$f":"U28+U9","v":181},{"$f":"SQRT((V28^2)+(V9^2))","v":72.401657439591816},{"$f":"W28+W9","v":208},{"$f":"SQRT((X28^2)+(X9^2))","v":109.22453936730518},{"$f":"Y28+Y9","v":303},{"$f":"SQRT((Z28^2)+(Z9^2))","v":120.91732712891069},{"$f":"AA28+AA9","v":316},{"$f":"SQRT((AB28^2)+(AB9^2))","v":184.02445489662509},{"$f":"AC28+AC9","v":42},{"$f":"SQRT((AD28^2)+(AD9^2))","v":19.104973174542799},{"$f":"AE28+AE9","v":580},{"$f":"SQRT((AF28^2)+(AF9^2))","v":207.76188293332345},{"$f":"AG28+AG9","v":189},{"$f":"SQRT((AH28^2)+(AH9^2))","v":108.18964830333815},{"$f":"AI28+AI9","v":120},{"$f":"SQRT((AJ28^2)+(AJ9^2))","v":109.17875251164945},{"$f":"AK28+AK9","v":117},{"$f":"SQRT((AL28^2)+(AL9^2))","v":48.020828814171878},{"$f":"AM28+AM9","v":164},{"$f":"SQRT((AN28^2)+(AN9^2))","v":85.586213843118443},{"$f":"AO28+AO9","v":175},{"$f":"SQRT((AP28^2)+(AP9^2))","v":92.962357973536797},{"$f":"AQ28+AQ9","v":350},{"$f":"SQRT((AR28^2)+(AR9^2))","v":138.63621460498698},{"$f":"AS28+AS9","v":89},{"$f":"SQRT((AT28^2)+(AT9^2))","v":77.929455278476055},{"$f":"AU28+AU9","v":45},{"$f":"SQRT((AV28^2)+(AV9^2))","v":26.40075756488817},{"$f":"AW28+AW9","v":60},{"$f":"SQRT((AX28^2)+(AX9^2))","v":31.400636936215164},{"$f":"AY28+AY9","v":137},{"$f":"SQRT((AZ28^2)+(AZ9^2))","v":68.249542123006222},{"$f":"BA28+BA9","v":167},{"$f":"SQRT((BB28^2)+(BB9^2))","v":151.95394038984313},{"$f":"BC28+BC9","v":110},{"$f":"SQRT((BD28^2)+(BD9^2))","v":44.204072210600685}]
[null,"With hearing difficulty",{"$f":"C29+C10","v":35},{"$f":"SQRT((D29^2)+(D10^2))","v":53.366656256505337},{"$f":"E29+E10","v":0},{"$f":"SQRT((F29^2)+(F10^2))","v":16.970562748477139},{"$f":"G29+G10","v":0},{"$f":"SQRT((H29^2)+(H10^2))","v":16.970562748477139},{"$f":"I29+I10","v":53},{"$f":"SQRT((J29^2)+(J10^2))","v":82.764726786234249},{"$f":"K29+K10","v":0},{"$f":"SQRT((L29^2)+(L10^2))","v":16.970562748477139},{"$f":"M29+M10","v":0},{"$f":"SQRT((N29^2)+(N10^2))","v":16.970562748477139},{"$f":"O29+O10","v":0},{"$f":"SQRT((P29^2)+(P10^2))","v":16.970562748477139},{"$f":"Q29+Q10","v":0},{"$f":"SQRT((R29^2)+(R10^2))","v":35.355339059327378},{"$f":"S29+S10","v":0},{"$f":"SQRT((T29^2)+(T10^2))","v":16.970562748477139},{"$f":"U29+U10","v":0},{"$f":"SQRT((V29^2)+(V10^2))","v":16.970562748477139},26,39.849717690342551,0,{"$f":"SQRT((Z29^2)+(Z10^2))","v":24.041630560342615},0,{"$f":"SQRT((AB29^2)+(AB10^2))","v":24.041630560342615},0,{"$f":"SQRT((AD29^2)+(AD10^2))","v":16.970562748477139},0,{"$f":"SQRT((AF29^2)+(AF10^2))","v":26.870057685088806},0,{"$f":"SQRT((AH29^2)+(AH10^2))","v":24.041630560342615},0,{"$f":"SQRT((AJ29^2)+(AJ10^2))","v":24.041630560342615},0,{"$f":"SQRT((AL29^2)+(AL10^2))","v":16.970562748477139},0,{"$f":"SQRT((AN29^2)+(AN10^2))","v":16.970562748477139},0,{"$f":"SQRT((AP29^2)+(AP10^2))","v":16.970562748477139},0,{"$f":"SQRT((AR29^2)+(AR10^2))","v":24.041630560342615},0,{"$f":"SQRT((AT29^2)+(AT10^2))","v":16.970562748477139},0,{"$f":"SQRT((AV29^2)+(AV10^2))","v":16.970562748477139},0,{"$f":"SQRT((AX29^2)+(AX10^2))","v":16.970562748477139},0,{"$f":"SQRT((AZ29^2)+(AZ10^2))","v":16.970562748477139},0,{"$f":"SQRT((BB29^2)+(BB10^2))","v":16.970562748477139},0,{"$f":"SQRT((BD29^2)+(BD10^2))","v":16.970562748477139}]
[null,"With no hearing difficulty",207,91.35097153287424,60,38.288379438153292,217,100.68763578513501,576,164.80594649465777,80,39.698866482558415,109,52.32590180780452,113,46.324939287601879,2085,307.04397079245831,70,34.058772731852805,181,72.401657439591816,182,101.83319694480774,303,{"$f":"SQRT((Z30^2)+(Z11^2))","v":120.91732712891069},316,184.02445489662509,42,19.104973174542799,580,207.76188293332345,189,108.18964830333815,120,109.17875251164945,117,48.020828814171878,164,85.586213843118443,175,92.962357973536797,350,138.63621460498698,89,77.929455278476055,45,26.40075756488817,60,31.400636936215164,137,68.249542123006222,167,151.95394038984313,110,44.204072210600685]
[null,"5 to 17 years:",716,134.31678971744373,275,92.195444572928878,552,144.31216164966833,1460,199.42417105255822,269,72.862884927787476,272,86.452298986203942,420,89.888820216976924,5690,437.37855457258075,207,68.8839603971781,550,101.55294185792945,824,182.98907071188705,1083,223.14345161801185,696,157.25775020646836,72,33.241540277189323,2205,373.23719000121088,851,237.24459951703852,684,236.00847442411893,270,86.400231481171389,353,115.66330446602328,745,200.80089641234176,1353,238.8053600738476,602,177.09884245810304,267,165.19685227025363,364,103.58571330062848,372,88.459030064770658,306,112.64102272262978,163,52.40229002629561]
[null,"With hearing difficulty",19,30.463092423455635,0,16.970562748477139,0,16.970562748477139,0,24.041630560342615,0,16.970562748477139,0,16.970562748477139,0,16.970562748477139,0,35.355339059327378,0,16.970562748477139,0,16.970562748477139,0,16.970562748477139,0,24.041630560342615,0,24.041630560342615,0,16.970562748477139,0,26.870057685088806,0,24.041630560342615,0,24.041630560342615,0,16.970562748477139,0,16.970562748477139,0,16.970562748477139,0,24.041630560342615,13,23.323807579381203,0,16.970562748477139,0,16.970562748477139,0,16.970562748477139,7,16.278820596099706,0,16.970562748477139]
[null,"With no hearing difficulty",697,134.31678971744373,275,92.195444572928878,552,144.31216164966833,1460,199.42417105255822,269,72.862884927787476,272,86.452298986203942,420,89.888820216976924,5690,437.37855457258075,207,68.8839603971781,550,101.55294185792945,824,182.98907071188705,1083,223.14345161801185,696,157.25775020646836,72,33.241540277189323,2205,373.23719000121088,851,237.24459951703852,684,236.00847442411893,270,86.400231481171389,353,115.66330446602328,745,200.80089641234176,1353,238.8053600738476,589,176.64937022248338,267,165.19685227025363,364,103.58571330062848,372,88.459030064770658,299,112.36102527122117,163,52.40229002629561]
[null,"18 to 34 years:",1191,206.63494380186523,463,152.11837495845134,705,184.80530295421721,1342,230.53416232740864,264,71.28113354878694,445,104.01922899156675,438,87.863530545955186,10632,560.74236508400179,181,55.605755097831377,458,104.80458005259122,841,173.23394586512194,1506,284.85961454723622,2036,322.13351269310681,167,77.884529914483011,3877,425.1141023301862,1273,394.153523389047,797,227.75425352778814,280,67.896980787071826,1211,157.00318468107582,923,203.49447166937975,1439,289.21445330411825,703,156.27219842313605,216,70.263788682364691,357,146.86388255796589,711,145.86637720873168,296,89.587945617700157,326,91.241437954473298]
[null,"With hearing difficulty",0,16.970562748477139,0,16.970562748477139,0,16.970562748477139,7,20.248456731316587,0,16.970562748477139,0,16.970562748477139,0,16.970562748477139,197,137.3608386695422,10,17.691806012954132,0,16.970562748477139,7,16.278820596099706,17,31.906112267087632,15,30.232432915661949,3,13,22,26.248809496813376,0,24.041630560342615,0,24.041630560342615,5,15,3,13.892443989449804,22,37,54,63.324560795950255,0,16.970562748477139,3,13,0,16.970562748477139,30,37,13,20.808652046684813,19,22.472205054244231]
[null,"With no hearing difficulty",1191,206.63494380186523,463,152.11837495845134,705,184.80530295421721,1335,229.83689869122406,264,71.28113354878694,445,104.01922899156675,438,87.863530545955186,10435,565.45998974286408,171,50.990195135927848,458,104.80458005259122,834,173.23394586512194,1489,285.3769437077915,2021,321.2864765283469,164,77.884529914483011,3855,421.37512978342704,1273,394.153523389047,797,227.75425352778814,275,67.208630398186216,1208,156.28499608087785,901,200.4120754844877,1385,293.51831288694746,703,156.27219842313605,213,69.856996786291916,357,146.86388255796589,681,146.49232061783991,283,85,307,87.863530545955186]
[null,"35 to 64 years:",1929,204.38444167793205,761,141.50971698084905,1407,184.50474248647376,3448,186.6815470259447,597,73.552702193733168,993,122.11470017978998,1269,108.40664186294121,16077,624.59106621852993,717,138.7984149765407,1284,107.05606008068857,1947,203.21663317750347,3876,371.43640101637857,1840,299.12706330253701,394,65.79513659838392,5646,331.07400985278201,2609,214.40149253211834,2752,273.65854636754904,838,119.50313803411188,1036,126.81088281373961,2212,211.43556938225885,3271,312.50759990758627,1731,234.06836608136521,648,144.31216164966833,1016,160.52725625263767,1038,104.65180361560904,1021,120.91732712891069,606,102.61578825892242]
[null,"With hearing difficulty",46,51.264022471905186,21,14.866068747318506,27,35.114099732158877,95,53.823786563191554,6,14.422205101855956,57,33.421549934136806,29,27.856776554368238,345,117.33712115098103,15,13.928388277184119,46,37.336309405188942,28,27.730849247724095,168,90.609050320594349,96,75.23961722390672,38,23.853720883753127,260,139.8177385026664,235,190.82190649922771,47,44.598206241955516,16,17.691806012954132,4,16.278820596099706,197,141.315250415516,22,37,51,41.340053217188775,4,13,0,16.970562748477139,10,16.278820596099706,30,25.80697580112788,8,8.0622577482985491]
[null,"With no hearing difficulty",1883,204.41379601191306,740,142.88806808127822,1380,180.71247881648904,3353,197.28405916343064,591,72.124891681027847,936,122.87391912037315,1240,109.98636279102969,15732,647.4295328450811,702,137.92751719653333,1238,104.00480758118829,1919,201.63581031156147,3708,363.27950671624734,1744,300.52786892399848,356,60.141499815019579,5386,347.20743079605887,2374,274.20065645435642,2705,278.0017985553331,822,117.38824472663352,1032,125.49501982150527,2015,233.34523779156069,3249,312.50759990758627,1680,232.01077561182368,644,144.31216164966833,1016,160.52725625263767,1028,103.24727599312246,991,120.28299963003916,598,101.40019723846694]
[null,"65 to 74 years:",432,138.42326394071193,253,68.01470429252781,449,124.80785231707178,870,112.29425630903836,275,60.539243470661241,304,54.671747731346578,280,58.668560575490517,4422,409.73772098746292,202,64.443773942872099,341,101.31633629380802,668,132.77424449041311,996,177.65415840897168,1013,371.94085551334638,109,31.400636936215164,1396,205.9732992404598,724,142.94754282603111,861,189.02116283633427,195,43.416586692184822,664,136.03308421115798,524,138.67948658687772,537,138.13037319865606,621,162.2004932174992,303,96.005208192055917,259,93.23089616645332,386,79.202272694664515,225,45.967379738244816,165,39.824615503479755]
[null,"With hearing difficulty",40,40.80441152620633,28,21.2602916254693,53,37.589892258425003,92,49.578221024962161,21,20.808652046684813,36,20.808652046684813,39,23.853720883753127,442,146.81961721786362,19,16.763054614240211,9,10.63014581273465,67,46.097722286464439,111,61.400325732035007,16,27.018512172212592,21,13.892443989449804,102,61.911226768656427,74,61.684682053164543,79,64.031242374328485,5,14.422205101855956,14,12.206555615733702,126,106.62551289442879,25,29.206163733020468,42,55.317266743757322,20,13.416407864998739,19,15.620499351813308,30,18.788294228055936,28,22.360679774997898,9,14.422205101855956]
[null,"With no hearing difficulty",392,135.83077707206124,225,62.481997407253232,396,120.6731121667126,778,109.63576058932597,254,58.830264320330912,268,54.561891462814962,241,59.481089431852205,3980,396.02020150492325,183,62.968245965724662,332,99.904954832080278,601,133.60014970051492,885,168.67127793432999,997,373.36309405188939,88,28.301943396169811,1294,197.73972792537162,650,138.19189556555045,782,181.89282558693733,190,44.204072210600685,650,136.03308421115798,398,99.704563586628268,512,136.21306838919679,579,155.08062419270823,283,94.70480452437458,240,92.849340331528467,356,76.275815302099531,197,41.868842830916641,156,39.204591567825318]
[null,"75 years and over:",143,71.119617546778187,339,155.42522317822161,184,73.756355658343097,486,120.20815280171308,80,29.681644159311659,188,56.859475903318,162,45.221676218380054,2966,313.57614705203582,114,71.470273540822546,160,36.61966684720111,218,93.861600242058515,830,269.47356085523495,193,86.371291526756735,55,28.301943396169811,932,198.90952717253137,279,104.63746938836012,394,152.41062955056645,202,57.982756057296896,839,190.42058712229621,270,92.655275079188016,337,101.53324578678651,306,110.42191811411355,100,46.097722286464439,198,94.403389769647575,205,63.560994328282817,81,29,132,40.496913462633174]
[null,"With hearing difficulty",44,42.154477816715982,37,26.076809620810597,17,19.416487838947599,67,56.648036153074187,17,13.928388277184119,56,30,56,30.479501308256342,636,169.80577139779436,8,16.970562748477139,27,15.556349186104045,80,56.080299571239813,154,83.240615086627031,23,28.178005607210743,2,12.369316876852981,227,94.111635837445732,75,50.219518117958877,94,83.240615086627031,31,21.540659228538015,172,82.927679335671755,60,39.408120990476064,122,71.840100222647237,68,77.794601355106892,17,20.396078054371138,88,81.60882305241266,52,40.311288741492746,26,16.401219466856727,30,26.076809620810597]
[null,"With no hearing difficulty",99,61.846584384264908,302,153.68799562750502,167,76.837490849194182,419,110.05907504608605,63,26,132,50.24937810560445,106,35.355339059327378,2330,292.51495688254988,106,70.51950084905593,133,35,138,72.346388990743691,676,274.83267636873165,170,81.21576201698781,53,29.154759474226502,705,184.36105879496353,204,94.493386011932074,300,146.23952953972466,171,52.697248505021591,667,173.35801106380978,210,87.709748602991681,215,91.35097153287424,238,87.965902484996988,83,39.962482405376171,110,51.61395160225576,153,48.877397639399746,55,22.671568097509269,102,{"$f":"SQRT((BD45^2)+(BD26^2))","v":31.906112267087632}]
[]
[]
[]
[]
[]
[]
[]
[]
[]
[]
[]
[]
[]
[]
[]
[]
[]
[]
[]
[]
[]
[]
[]
[]
[]
[]
["B18102. SEX BY AGE BY HEARING DIFFICULTY\n\n-Calculated"]
["Universe:  Civilian non-institutionalized population"]
["Data Set: 2013-2017 American Community Survey 5-Year Estimates"]
[]
[]
[null,null,"Allenstown",null,"Andover",null,"Boscawen",null,"Bow",null,"Bradford",null,"Canterbury",null,"Chichester",null,"Concord",null,"Danbury",null,"Dunbarton",null,"Epsom",null,"Franklin",null,"Henniker",null,"Hill",null,"Hooksett",null,"Hopkinton",null,"Loudon",null,"Newbury",null,"New London",null,"Northfield",null,"Pembroke",null,"Pittsfield",null,"Salisbury",null,"Sutton",null,"Warner",null,"Webster",null,"Wilmot"]
[null,null,"Estimate","Margin Of Error","Estimate","Margin Of Error","Estimate","Margin Of Error","Estimate","Margin Of Error","Estimate","Margin Of Error","Estimate","Margin Of Error","Estimate","Margin Of Error","Estimate","Margin Of Error","Estimate","Margin Of Error","Estimate","Margin Of Error","Estimate","Margin Of Error","Estimate","Margin Of Error","Estimate","Margin Of Error","Estimate","Margin Of Error","Estimate","Margin Of Error","Estimate","Margin Of Error","Estimate","Margin Of Error","Estimate","Margin Of Error","Estimate","Margin Of Error","Estimate","Margin Of Error","Estimate","Margin Of Error","Estimate","Margin Of Error","Estimate","Margin Of Error","Estimate","Margin Of Error","Estimate","Margin Of Error","Estimate","Margin Of Error","Estimate"]
[null,"Total",4296,33,2783,308,3422,225,7692,22,1675,186,2248,248,2590,30,40414,267,1281,174,2788,21,4541,113,8326,71,4893,18,946,132,13907,136,5614,16,5403,15,1892,203,4426,84,4769,58,7137,43,4091,22,1257,165,1932,270,2849,71,1859,185,1477,174]
[null,"Under 5 years:",230,86.278618440491968,94,50.209560842532767,205,111.82575731914361,348,110.43550153822818,44,19.798989873223331,100,41.109609582188931,163,57.008771254956898,2003,274.52686571627191,117,47.634021455258214,155,44.204072210600685,188,74.060785845142092,472,179.87773625437919,434,156.46085772486356,34,21.470910553583888,662,191.03141102970474,255,124.40257232067189,219,115.36463929644994,39,22.472205054244231,102,63.031738037277698,353,129.634100452003,213,108.93117092916977,295,124.03628501370073,45,20.518284528683193,94,46.324939287601879,116,53.075418038862395,70,29.832867780352597,46,23.259406699226016]
[null,"With hearing difficulty",0,15.556349186104045,0,15.556349186104045,0,15.556349186104045,0,22.627416997969522,0,15.556349186104045,0,15.556349186104045,0,15.556349186104045,59,58.898217290508889,0,15.556349186104045,0,15.556349186104045,11,21.095023109728988,0,22.627416997969522,0,15.556349186104045,0,15.556349186104045,0,25.45584412271571,0,22.627416997969522,0,22.627416997969522,0,15.556349186104045,0,15.556349186104045,0,15.556349186104045,0,22.627416997969522,0,15.556349186104045,0,15.556349186104045,0,15.556349186104045,0,15.556349186104045,0,15.556349186104045,0,15.556349186104045]
[null,"With no hearing difficulty",230,86.278618440491968,94,50.209560842532767,205,111.82575731914361,348,110.43550153822818,44,19.798989873223331,100,41.109609582188931,163,57.008771254956898,1944,268.40454541605664,117,47.634021455258214,155,44.204072210600685,177,71.61005515987263,472,179.87773625437919,434,156.46085772486356,34,21.470910553583888,662,191.03141102970474,255,124.40257232067189,219,115.36463929644994,39,22.472205054244231,102,63.031738037277698,353,129.634100452003,213,108.93117092916977,295,124.03628501370073,45,20.518284528683193,94,46.324939287601879,116,53.075418038862395,70,29.832867780352597,46,23.259406699226016]
[null,"5 to 17 years:",547,134.61797799699713,530,129.52991932368366,573,153.80832227158581,1521,166.87720036002523,316,71.589105316381762,268,87.658428003244509,439,80.802227692063042,6140,412.01213574359673,148,59.203040462462738,533,66.603303221386852,735,172.5688268488837,1216,215.67800073257357,636,171.11984104714449,82,33.421549934136806,2069,269.42902590478258,977,268.12683565805196,650,246.00203251192866,235,62.22539674441618,427,114.33722053644648,717,151.34397906755325,1216,231.01947969814148,733,141.48498153514387,187,52.430906915673319,330,104,456,86.833173384369644,267,58.258046654518033,179,65.436992595931542]
[null,"With hearing difficulty",41,48.764741360946438,0,15.556349186104045,0,15.556349186104045,7,19.416487838947599,0,15.556349186104045,0,15.556349186104045,0,15.556349186104045,34,32.649655434629018,6,14.212670403551895,0,15.556349186104045,0,15.556349186104045,13,26.40075756488817,0,15.556349186104045,0,15.556349186104045,13,25.45584412271571,28,44.944410108488462,0,22.627416997969522,0,15.556349186104045,0,15.556349186104045,30,45.354161881794269,0,22.627416997969522,0,15.556349186104045,0,15.556349186104045,0,15.556349186104045,0,15.556349186104045,4,12.529964086141668,0,15.556349186104045]
[null,"With no hearing difficulty",506,117.5925167687128,530,129.52991932368366,573,153.80832227158581,1514,167.58579892103029,316,71.589105316381762,268,87.658428003244509,439,80.802227692063042,6106,416.75052489469044,142,55.226805085936306,533,66.603303221386852,735,172.5688268488837,1203,212.84031572989173,636,171.11984104714449,82,33.421549934136806,2056,268.77685912295351,949,251.07170290576354,650,246.00203251192866,235,62.22539674441618,427,114.33722053644648,687,150.08331019803634,1216,231.01947969814148,733,141.48498153514387,187,52.430906915673319,330,104,456,86.833173384369644,263,58.258046654518033,179,65.436992595931542]
[null,"18 to 34 years:",917,147.10540438746634,462,129.84991336154215,741,140.92906016858268,1019,156.64609794054877,216,48.010415536631214,331,66.843099868273612,484,104.80935072788114,9641,445.9069409641433,203,52.801515129776341,407,64.536811201050213,737,143.93401265857906,1857,269.87589740471452,1574,234.58047659598614,151,42.5205832509386,3320,320.22023671217283,862,164.19500601419034,733,225.41739063346466,205,55.569775957799216,1470,208.69355524308841,1012,190.21303845951255,1384,235.51857676200407,742,155.05160431288675,189,55.97320787662612,263,70.434366611761334,537,110.53506231056279,304,69.354163537598808,217,81.884064383737083]
[null,"With hearing difficulty",15,21.095023109728988,0,15.556349186104045,0,15.556349186104045,25,30.413812651491099,3,12.083045973594572,0,15.556349186104045,2,12.083045973594572,54,41.340053217188775,0,15.556349186104045,8,15.556349186104045,0,15.556349186104045,29,48.703182647543684,13,23.706539182259394,0,15.556349186104045,87,71.784399419372448,22,36.674241641784498,0,22.627416997969522,0,15.556349186104045,2,12.529964086141668,0,15.556349186104045,0,22.627416997969522,4,13.601470508735444,6,13.601470508735444,0,15.556349186104045,6,14.212670403551895,0,15.556349186104045,0,15.556349186104045]
[null,"With no hearing difficulty",902,146.38647478507022,462,129.84991336154215,741,140.92906016858268,994,155.08062419270823,213,48.60041152089147,331,66.843099868273612,482,104.80935072788114,9587,446.11769747455662,203,52.801515129776341,399,65.192024052026483,737,143.93401265857906,1828,271.74252519618642,1561,234.58047659598614,151,42.5205832509386,3233,324.44568112397491,840,160.07810593582121,733,225.41739063346466,205,55.569775957799216,1468,208.69355524308841,1012,190.21303845951255,1384,235.51857676200407,738,155.05160431288675,183,55.226805085936306,263,70.434366611761334,531,109.87720418721983,304,69.354163537598808,217,81.884064383737083]
[null,"35 to 64 years:",2010,140.80127840328723,1223,150.60212481900777,1379,148.49915824677257,3559,123.0690862889621,731,77.077882690172544,1160,99.005050376230813,1119,90.027773492406226,16491,467.20659241924233,671,87.045964869142551,1379,62.936475910238251,2179,189.80516325959101,3635,292.05650138286597,1749,195.90048494069634,450,49.497474683058329,5880,258.897663179875,2226,228.95414388038492,2778,203.82835916525454,893,97.621718894926246,1041,126.90547663517127,2185,149.24141516348604,3263,246.86838598735156,1770,164.62381358722072,611,80.622577482985491,821,101.17806086301516,1250,86.400231481171389,909,90.686272390037075,667,76.419892698171196]
[null,"With hearing difficulty",92,67.94115100585212,43,37.643060449437421,103,64.660652641308843,76,38.600518131237564,15,11.313708498984761,65,37.802116342871599,24,19.416487838947599,552,119.97082978791136,60,30.232432915661949,22,15.811388300841896,31,40.521599178709621,127,72.422372233999624,47,41.484937025383083,35,26.627053911388696,120,65.053823869162372,13,24.839484696748443,37,40.311288741492746,17,14.317821063276353,27,22.671568097509269,47,41.484937025383083,56,51.546095875439491,58,48.332183894378289,25,13.45362404707371,24,29.154759474226502,57,31.384709652950431,37,21.95449840010015,7,12.529964086141668]
[null,"With no hearing difficulty",1918,148.92279879185725,1180,149.77316181479245,1276,137.44089638822936,3483,126.73200069437868,716,75.663729752107784,1095,94.752308678997366,1095,91.547801721286575,15939,466.97858623281644,611,85.276022421311367,1357,63.655321851358195,2148,188.21795876058161,3508,301.95529470436514,1702,193.82982226685345,415,47.381430961928537,5760,265.93232221751458,2213,229.73245308401684,2741,201.46711890529431,876,98.35141076771599,1014,124.65151423067431,2138,152.02960238058901,3207,254.80973293812778,1712,172.74258305351347,586,79.93122043357026,797,99.156442049924323,1193,89.403579346690591,872,85.912746434973201,660,77.155686763841331]
[null,"65 to 74 years:",331,82.855295545909442,297,71.56116265125938,299,65.069193939989759,688,99.824846606443629,255,55.172456896534889,271,49.040799340956916,314,46.227697325304881,3362,209.46837470128995,71,27.802877548915689,252,36.069377593742864,466,90.609050320594349,697,139.20129309744217,318,83.450584180100265,161,48.826222462934808,1161,135.05924625881784,816,173.51080657987848,678,173.4156855650607,374,66.468037431535464,619,111.80339887498948,343,69.814038702828242,736,146.20875486782589,339,80.05623023850174,135,36.891733491393431,252,66.2872536767062,332,79.208585393251411,233,45.607017003965517,173,42.01190307520001]
[null,"With hearing difficulty",43,25.238858928247925,35,29.154759474226502,34,28.231188426986208,71,41.725292090050132,42,23.430749027719962,36,21.470910553583888,15,16.278820596099706,324,88.617154095581284,12,8.9442719099991592,30,16.643316977093239,64,37.536648758246919,98,59.236812878479547,20,25.079872407968907,28,18.027756377319946,185,64.404968752418469,40,42.154477816715982,58,51.855568649856693,30,29.068883707497267,28,29.154759474226502,25,19.697715603592208,111,66.843099868273612,25,31.953090617340916,16,15.556349186104045,9,17.804493814764857,43,26.248809496813376,24,12.806248474865697,6,13.038404810405298]
[null,"With no hearing difficulty",288,81.884064383737083,262,70.49113419430843,265,64.350602172784676,617,94.047860156411858,213,49.51767361255979,235,46.690470119715009,299,47.801673610868477,3038,206.95893312442448,59,26.076809620810597,222,35.383612025908263,402,87.206651122491792,599,118.86967653695369,298,81.344944526380985,133,43.829214001622255,976,123.04470732217619,776,171.64206943520577,620,174.72549899771354,344,64.381674411279491,591,108.93117092916977,318,68.818602136341013,625,132.45754036671525,314,77.103826104804938,119,34.409301068170507,243,66.2872536767062,289,76.380625815713245,209,44.204072210600685,167,42.01190307520001]
[null,"75 years and over:",261,83.234608186739251,177,59.464274989274024,225,75.286120898874842,557,99.488692824863264,113,34.409301068170507,118,36.61966684720111,71,28.42534080710379,2777,286.75076285861911,71,26.92582403567252,62,24.839484696748443,236,85.702975444263316,449,98.005101908012932,182,73.552702193733168,68,36.069377593742864,815,149.80654191322887,478,140.08925726121899,345,116.01724009818541,146,49.51767361255979,767,144.25671561490648,159,51.478150704935004,325,113.25193155085701,212,74.303431953039691,90,31.906112267087632,172,54.671747731346578,158,49.091750834534309,76,26.90724809414742,195,55.470712993434653]
[null,"With hearing difficulty",57,36.069377593742864,70,39.560080889704963,65,42.941821107167776,171,65.215028942721474,29,23.769728648009426,22,16.643316977093239,7,15.556349186104045,642,145.98972566588375,10,10,17,14.422205101855956,54,38.078865529319543,119,49.739320461783549,33,32.015621187164243,8,7.0710678118654755,263,97.836598469080073,115,74.060785845142092,64,50.606323715519977,13,12.041594578792296,129,59.169248769948062,18,16.970562748477139,63,48.764741360946438,39,24.083189157584592,13,15.556349186104045,21,19.416487838947599,60,39.11521443121589,33,16.643316977093239,26,18.867962264113206]
[null,"With no hearing difficulty",204,83.52843827104634,107,47.201694884823787,160,64.350602172784676,386,84.64632301523794,84,25.495097567963924,96,34.132096331752024,64,26.90724809414742,2135,254.89017242726328,61,27.294688127912362,45,20.615528128088304,182,80.721744282442259,330,92.649878575203758,149,67.178865724273734,60,36.069377593742864,552,123.14625451064275,363,130.20752666416791,281,114.40279716860073,133,48.795491595023407,638,135.20724832641184,141,49.648766349225639,262,98.979795918156952,173,69.354163537598808,77,30.886890422961002,151,57.314919523628397,98,34.481879299133332,43,20.518284528683193,169,51.312766442669997]
[]
[]
[]
[]
["B18102. SEX BY AGE BY HEARING DIFFICULTY\n\n-Calculated"]
["Universe:  Civilian non-institutionalized population"]
["Data Set:  2008-2012 American Community Survey 5-Year Estimates"]
[]
[]
[null,null,"Allenstown",null,"Andover",null,"Boscawen",null,"Bow",null,"Bradford",null,"Canterbury",null,"Chichester",null,"Concord",null,"Danbury",null,"Dunbarton",null,"Epsom",null,"Franklin",null,"Henniker",null,"Hill",null,"Hooksett",null,"Hopkinton",null,"Loudon",null,"Newbury",null,"New London",null,"Northfield",null,"Pembroke",null,"Pittsfield",null,"Salisbury",null,"Sutton",null,"Warner",null,"Webster",null,"Wilmot"]
[null,null,"Estimate","Margin Of Error","Estimate","Margin Of Error","Estimate","Margin Of Error","Estimate","Margin Of Error","Estimate","Margin Of Error","Estimate","Margin Of Error","Estimate","Margin Of Error","Estimate","Margin Of Error","Estimate","Margin Of Error","Estimate","Margin Of Error","Estimate","Margin Of Error","Estimate","Margin Of Error","Estimate","Margin Of Error","Estimate","Margin Of Error","Estimate","Margin Of Error","Estimate","Margin Of Error","Estimate","Margin Of Error","Estimate","Margin Of Error","Estimate","Margin Of Error","Estimate","Margin Of Error","Estimate","Margin Of Error","Estimate","Margin Of Error","Estimate","Margin Of Error","Estimate","Margin Of Error","Estimate","Margin Of Error","Estimate","Margin Of Error","Estimate"]
[null,"Total",4336,43,2496,235,3507,201,7571,34,1466,204,2419,143,2529,19,40312,334,1218,225,2756,18,4468,87,8376,74,4800,54,1210,201,13469,37,5608,16,5235,76,2103,252,4358,53,4795,74,7132,28,4088,53,1286,173,1794,251,2831,24,1749,161,1390,196]
[null,"Under 5 years:",223,99.488692824863264,126,50.537115073973112,220,82.800966177937809,209,78.10249675906654,51,23.259406699226016,147,55.865910893853687,95,44.77722635447622,2200,280.7294070809113,33,28.231188426986208,86,36.796738985948195,229,92.913938674452936,459,144.81022063376605,285,99.005050376230813,63,33.105890714493697,706,195.34584715319647,265,102.92715870944851,248,104.0096149401583,121,65.36818798161687,119,70.213958726167832,391,145.7737973711325,510,145.90750494748377,329,90.520715861066847,65,34.409301068170507,121,62.032249677083293,154,60.141499815019579,64,30,36,24.207436873820409]
[null,"With hearing difficullty",0,15.556349186104045,0,15.556349186104045,0,15.556349186104045,0,22.627416997969522,0,15.556349186104045,16,28.231188426986208,0,15.556349186104045,0,33.941125496954278,0,15.556349186104045,0,15.556349186104045,0,15.556349186104045,5,17.464249196572979,0,15.556349186104045,0,15.556349186104045,0,25.45584412271571,0,22.627416997969522,0,22.627416997969522,0,15.556349186104045,0,15.556349186104045,0,15.556349186104045,0,22.627416997969522,0,15.556349186104045,0,15.556349186104045,0,15.556349186104045,0,15.556349186104045,3,11.704699910719626,0,15.556349186104045]
[null,"With no hearing difficullty",223,99.488692824863264,126,50.537115073973112,220,82.800966177937809,209,78.10249675906654,51,23.259406699226016,131,49.406477308142499,95,44.77722635447622,2200,280.7294070809113,33,28.231188426986208,86,36.796738985948195,229,92.913938674452936,454,144.81022063376605,285,99.005050376230813,63,33.105890714493697,706,195.34584715319647,265,102.92715870944851,248,104.0096149401583,121,65.36818798161687,119,70.213958726167832,391,145.7737973711325,510,145.90750494748377,329,90.520715861066847,65,34.409301068170507,121,62.032249677083293,154,60.141499815019579,61,30,36,24.207436873820409]
[null,"5 to 17 years:",698,172.7917822120022,298,79.05694150420949,580,206.64946164943183,1791,192.4162155328911,203,73.23933369440222,395,96.607453128627711,447,84.876380695691779,6260,422.40383520986171,249,76.380625815713245,535,82.134036793524274,754,168.21712160181556,1558,304.90162347878703,798,185.69868066305693,275,73.23933369440222,2087,263.88254963146011,963,192.4162155328911,1112,221.00904958847272,307,84.811555816409836,547,112.4144118874444,932,207.20038610002638,1195,218.55205329623422,538,130.09611831257686,246,70.178344238091,356,90.520715861066847,411,99.724620831567975,317,68.8839603971781,259,73.661387442811588]
[null,"With hearing difficullty",0,15.556349186104045,0,15.556349186104045,0,15.556349186104045,12,24.839484696748443,0,15.556349186104045,11,21.095023109728988,0,15.556349186104045,4,25.632011235952593,9,17.029386365926403,4,13.038404810405298,43,49.244289008980523,8,20,0,15.556349186104045,5,13.601470508735444,0,25.45584412271571,0,22.627416997969522,0,22.627416997969522,0,15.556349186104045,0,15.556349186104045,0,15.556349186104045,40,44.407206622349037,0,15.556349186104045,0,15.556349186104045,0,15.556349186104045,0,15.556349186104045,0,15.556349186104045,0,15.556349186104045]
[null,"With no hearing difficullty",698,172.7917822120022,298,79.05694150420949,580,206.64946164943183,1779,195.34584715319647,203,73.23933369440222,384,89.554452708952439,447,84.876380695691779,6256,422.40383520986171,240,73.661387442811588,531,81.394102980498531,711,146.50938536489735,1550,305.58795787792423,798,185.69868066305693,270,73.23933369440222,2087,263.88254963146011,963,192.4162155328911,1112,221.00904958847272,307,84.811555816409836,547,112.4144118874444,932,207.20038610002638,1155,210.05951537600004,538,130.09611831257686,246,70.178344238091,356,90.520715861066847,411,99.724620831567975,317,68.8839603971781,259,73.661387442811588]
[null,"18 to 34 years:",1008,159.17600321656528,413,110.27692415006868,672,167.62159765376299,776,158.61904047118682,213,56.080299571239813,332,69.426219830839131,336,67.357256476195644,9580,403.78831087588458,239,70.767224051816527,349,94.175368329515976,745,152.64337522473747,1662,247.4914139924858,1422,221.77466041006579,171,44.553338819890925,3029,310.48510431259018,786,184.1738309315414,866,186.93581786270923,276,71.847059786744225,1146,197.85348114198041,834,147.8681845428556,1497,243.47895186237352,844,157.76247969653622,211,43.185645763378368,234,65.76473218982953,451,92.617492948146676,241,56.400354608814297,171,63.007936008093459]
[null,"With hearing difficullty",0,15.556349186104045,0,15.556349186104045,6,15.556349186104045,0,22.627416997969522,4,12.083045973594572,11,20.248456731316587,0,15.556349186104045,125,93.005376188691372,0,15.556349186104045,7,16.278820596099706,10,19.416487838947599,26,34.885527085024819,0,15.556349186104045,0,15.556349186104045,0,25.45584412271571,0,22.627416997969522,4,17.464249196572979,0,15.556349186104045,15,19.209372712298546,0,15.556349186104045,15,29.681644159311659,0,15.556349186104045,3,12.083045973594572,0,15.556349186104045,0,15.556349186104045,0,15.556349186104045,4,12.529964086141668]
[null,"With no hearing difficullty",1008,159.17600321656528,413,110.27692415006868,666,166.93112352104984,776,158.61904047118682,209,55.317266743757322,321,70.092795635500224,336,67.357256476195644,9455,409.51800937199329,239,70.767224051816527,342,96.208107766445551,735,154.35025105259791,1636,246.07315985291854,1422,221.77466041006579,171,44.553338819890925,3029,310.48510431259018,786,184.1738309315414,862,186.93581786270923,276,71.847059786744225,1131,194.83326204732086,834,147.8681845428556,1482,242.24367896810023,844,157.76247969653622,208,43.185645763378368,234,65.76473218982953,451,92.617492948146676,241,56.400354608814297,167,60.605280298007038]
[null,"35 to 64 years:",1926,185.26737435393204,1179,140.60227594174995,1557,164.20109622045769,3790,142.89856542317,820,91.967385523347346,1237,82.024386617639507,1415,68.593002558570063,16930,419.56167603821967,547,81.467785044151043,1562,75.073297516493838,2159,118.1397477566293,3710,247.22661669003199,2026,185.53975315279473,588,74.411020689142546,5898,262.68041419184647,2609,152.02960238058901,2431,149.91330828182001,984,119.67038062946069,1162,134.23859355639868,2059,194.60986614249546,3168,233.96153530014288,1953,168.60011862392031,610,72.862884927787476,733,92.097774131626011,1394,105.38026380684383,923,74.518454090245328,664,89.10667763978185]
[null,"With hearing difficullty",102,59.203040462462738,50,33.837848631377263,38,30.886890422961002,40,36.891733491393431,25,13.038404810405298,27,23.706539182259394,46,34.205262752974143,550,166.83225107874077,39,24.839484696748443,22,19.416487838947599,112,62.649820430708338,136,65.299310869258036,21,19.416487838947599,12,9.4339811320566032,94,86.348132579691608,16,31.384709652950431,87,45.276925690687087,6,13.601470508735444,59,47.074409183759279,5,14.212670403551895,106,72.111025509279784,59,53.851648071345039,29,19.313207915827967,11,14.866068747318506,68,42.80186911806539,30,21.023796041628639,17,17]
[null,"With no hearing difficullty",1824,188.22327167489146,1129,140.60227594174995,1519,162.78820596099706,3750,147.07821048680188,795,91.285267157411553,1210,85.632937588290176,1369,79.202272694664515,16380,423.20680523829009,508,76.694197955256044,1540,78.644770964127048,2047,123.0690862889621,3574,243.31872102244824,2005,187.4459922217597,576,75.822160349069449,5804,270.1481075262235,2593,150.6286825275983,2344,151.32085117392117,978,119.67038062946069,1103,119.57006314291216,2054,195.34584715319647,3062,247.89110512481079,1894,173.07223925286226,581,72.138755187485728,722,90.785461391128038,1326,107.56393447619885,893,76.837490849194182,647,89.095454429504983]
[null,"65 to 74 years:",233,69.202601107183824,330,79.208585393251411,231,87.321245982864909,652,111.73182178770737,76,25.80697580112788,185,36.069377593742864,164,41.725292090050132,2640,197.29419656948858,107,30.232432915661949,169,40.36087214122113,430,108.22661410207751,497,110.34491379306978,106,49.929950931279713,76,23.345235059857504,1151,143.83671297690307,649,137.55726080436466,378,89.10667763978185,219,57.314919523628397,503,105.11898020814318,319,106.21675950620975,369,102.7277956543408,245,72.945184899347538,102,30,227,58.694122363316758,199,52.630789467763066,134,29.832867780352597,145,48.918299234540036]
[null,"With hearing difficullty",42,34.539832078341085,21,25.495097567963924,36,37.12142238654117,9,21.2602916254693,16,13,14,14.142135623730951,13,17.029386365926403,192,76.367532368147138,23,12.806248474865697,22,18.027756377319946,17,23.706539182259394,43,34.481879299133332,14,17.804493814764857,9,14.866068747318506,29,31.76476034853718,77,55.226805085936306,31,22.671568097509269,27,31.953090617340916,8,17.029386365926403,51,46.647615158762406,44,44.944410108488462,28,20.248456731316587,6,12.529964086141668,52,31.780497164141408,21,15.620499351813308,10,8.4852813742385695,13,11.180339887498949]
[null,"With no hearing difficullty",191,65.76473218982953,309,76.380625815713245,195,84.970583144992005,643,111.01801655587259,60,21.2602916254693,171,36.124783736376884,151,39.623225512317902,2448,196.62146373170961,84,29.410882339705484,147,39.623225512317902,413,109.07795377618706,454,104.9952379872535,92,49.739320461783549,67,21.400934559032695,1122,148.82204137828509,572,126.24579200908045,347,92.633687176966021,192,53.413481444294568,495,104.29285689825551,268,95.482982777037293,325,96.876209669866839,217,72.401657439591816,96,29.410882339705484,175,53.413481444294568,178,50.447993022517757,124,28.42534080710379,132,47.507894080878813]
[null,"75 years and over:",248,83.600239234107462,150,66.037867924396224,247,76.576758876306585,353,97,103,34.655446902326915,123,41.773197148410844,72,36.878177829171548,2702,254.42091109026396,43,16.278820596099706,55,32.202484376209235,151,60.605280298007038,490,109.55363982999378,163,66.887966032762577,37,17.720045146669349,598,129.00387591076478,336,88.865066252155572,200,64.660652641308843,196,69.426219830839131,881,135.28118864054971,260,91.35097153287424,393,106.82696288858914,179,75.663729752107784,52,18.439088914585774,123,47.634021455258214,222,69.31089380465383,70,29.732137494637012,115,38.013155617496423]
[null,"With hearing difficullty",40,29.698484809834994,27,30.805843601498726,31,26.40075756488817,132,70.604532432415411,51,27.202941017470888,30,22.671568097509269,22,26.92582403567252,671,165.30275254816539,11,9.8994949366116654,0,15.556349186104045,39,42.720018726587654,88,48.846698967279252,15,20.248456731316587,6,12.529964086141668,182,84.504437753291981,144,72.069410986909006,76,42.43819034784589,65,45.803929962395145,143,61.554853586049575,76,55.470712993434653,51,47.507894080878813,39,34.539832078341085,15,14.212670403551895,26,21.840329667841555,59,41.773197148410844,16,11.313708498984761,43,26.683328128252668]
[null,"With no hearing difficullty",208,83.600239234107462,123,54.671747731346578,216,74.330343736592525,221,80.721744282442259,52,21.023796041628639,93,36.235341863986875,50,27.202941017470888,2031,235.77107541002565,32,14.212670403551895,55,32.202484376209235,112,49.51767361255979,402,96.834911060009759,148,66.037867924396224,31,18.681541692269406,416,102.41581909060729,192,72.138755187485728,124,52.478567053607705,131,52.345009313209601,738,132.94359706281458,184,69.202601107183824,342,97.8008179924892,140,70.384657419071104,37,16.278820596099706,97,42.449970553582247,163,60.876925020897694,54,27.658633371878661,72,27.586228448267445]

{"sheet":"ACS_Table_B18103","index":30,"n_rows":155,"n_cols":56,"rows_kept":155,"cut":false,"hidden":true,"merged":[]}
["B18103. SEX BY AGE BY VISION DIFFICULTY\n\n\n"]
["Universe:  Civilian non-institutionalized population"]
["Data Set: 2018-2022 American Community Survey 5-Year Estimates"]
[]
[null,null,"Allenstown",null,"Andover",null,"Boscawen",null,"Bow",null,"Bradford",null,"Canterbury",null,"Chichester",null,"Concord",null,"Danbury",null,"Dunbarton",null,"Epsom",null,"Franklin",null,"Henniker",null,"Hill",null,"Hooksett",null,"Hopkinton",null,"Loudon",null,"Newbury",null,"New London",null,"Northfield",null,"Pembroke",null,"Pittsfield",null,"Salisbury",null,"Sutton",null,"Warner",null,"Webster",null,"Wilmot"]
[null,null,"Estimate","Margin Of Error","Estimate","Margin Of Error","Estimate","Margin Of Error","Estimate","Margin Of Error","Estimate","Margin Of Error","Estimate","Margin Of Error","Estimate","Margin Of Error","Estimate","Margin Of Error","Estimate","Margin Of Error","Estimate","Margin Of Error","Estimate","Margin Of Error","Estimate","Margin Of Error","Estimate","Margin Of Error","Estimate","Margin Of Error","Estimate","Margin Of Error","Estimate","Margin Of Error","Estimate","Margin Of Error","Estimate","Margin Of Error","Estimate","Margin Of Error","Estimate","Margin Of Error","Estimate","Margin Of Error","Estimate","Margin Of Error","Estimate","Margin Of Error","Estimate","Margin Of Error","Estimate","Margin Of Error","Estimate","Margin Of Error","Estimate","Margin Of Error"]
[null,"Total:",4653,22,2151,307,3514,45,8235,19,1565,172,2311,243,2682,31,41872,80,1491,261,2974,65,4706,40,8594,22,6094,15,839,182,14636,89,5925,20,5608,21,1902,258,4267,31,4849,27,7287,40,4052,61,1579,362,2254,451,2849,33,2096,314,1502,217]
[null,"Male:",2401,159,1048,168,1741,125,4045,189,835,112,1128,153,1395,104,21143,567,747,113,1480,96,2215,133,3819,339,3259,210,486,119,7046,304,2777,244,2762,198,981,161,1916,135,2322,155,3819,252,1865,178,884,264,1141,236,1356,102,1050,203,708,117]
[null,"Under 5 years:",130,79,23,29,93,57,307,100,41,30,33,23,58,39,1079,210,36,26,65,39,125,83,148,86,209,149,20,14,380,171,98,77,35,52,79,41,68,59,104,79,113,62,0,12,17,16,20,19,79,53,136,151,41,27]
[null,"With vision difficulty",0,12,0,12,0,12,0,17,0,12,0,12,0,12,0,25,0,12,0,12,26,38,0,17,0,17,0,12,0,19,0,17,0,17,0,12,0,12,0,12,0,17,0,12,0,12,0,12,0,12,0,12,0,12]
[null,"With no vision difficulty",130,79,23,29,93,57,307,100,41,30,33,23,58,39,1079,210,36,26,65,39,99,73,148,86,209,149,20,14,380,171,98,77,35,52,79,41,68,59,104,79,113,62,0,12,17,16,20,19,79,53,136,151,41,27]
[null,"5 to 17  years:",417,104,130,70,332,99,854,143,151,53,102,43,319,84,3060,322,96,44,256,43,283,94,450,148,441,131,40,24,930,241,411,146,314,140,122,69,214,97,372,180,733,192,225,80,187,161,121,53,217,65,110,32,82,39]
[null,"With vision difficulty",19,28,0,12,8,14,0,17,0,12,0,12,0,12,25,24,0,12,0,12,0,12,90,47,9,15,0,12,0,19,0,17,0,17,0,12,0,12,11,17,0,17,0,12,0,12,0,12,0,12,0,12,0,12]
[null,"With no vision difficulty",398,104,130,70,324,98,854,143,151,53,102,43,319,84,3035,321,96,44,256,43,283,94,360,135,432,127,40,24,930,241,411,146,314,140,122,69,214,97,361,180,733,192,225,80,187,161,121,53,217,65,110,32,82,39]
[null,"18 to 34  years:",580,127,272,134,345,112,625,165,166,59,222,64,255,58,5659,376,109,44,237,70,388,133,585,147,1092,273,128,75,1996,319,535,214,506,196,164,47,553,113,461,127,676,206,375,111,157,64,234,112,336,91,123,49,157,63]
[null,"With vision difficulty",0,12,0,12,0,12,0,17,0,12,0,12,4,7,102,64,0,12,13,16,0,12,0,17,32,51,11,15,0,19,0,17,0,17,0,12,17,27,22,35,0,17,0,12,0,12,0,12,0,12,0,12,0,12]
[null,"With no vision difficulty",580,127,272,134,345,112,625,165,166,59,222,64,251,58,5557,376,109,44,224,67,388,133,585,147,1060,269,117,71,1996,319,535,214,506,196,164,47,536,110,439,122,676,206,375,111,157,64,234,112,336,91,123,49,157,63]
[null,"35 to 64  years:",984,142,389,120,653,119,1649,131,287,51,518,104,588,66,8065,465,331,68,665,81,991,161,1919,237,904,214,195,48,2732,227,1273,172,1319,192,445,85,438,84,1000,151,1873,235,845,178,299,105,505,112,510,74,523,86,303,63]
[null,"With vision difficulty",16,25,20,25,0,12,13,20,0,12,1,6,11,12,375,173,9,12,0,12,13,20,51,54,0,17,8,10,54,45,4,11,0,17,17,14,0,12,34,39,39,47,0,12,0,12,0,12,26,24,11,10,9,14]
[null,"With no vision difficulty",968,136,369,115,653,119,1636,133,287,51,517,104,577,71,7690,470,322,69,665,81,978,157,1868,239,904,214,187,45,2678,227,1269,172,1319,192,428,82,438,84,966,152,1834,226,845,178,299,105,505,112,484,79,512,87,294,63]
[null,"65 to 74  years:",252,120,107,45,229,104,397,71,158,52,164,42,107,29,2012,301,97,43,188,76,305,85,460,120,501,264,61,25,624,139,356,97,280,127,98,34,333,84,246,76,262,78,299,97,181,89,163,86,169,48,120,33,85,25]
[null,"With vision difficulty",12,18,0,12,8,12,13,15,9,7,0,12,0,12,43,29,10,12,0,12,8,12,8,13,0,17,3,4,24,27,0,17,0,17,5,8,0,12,15,19,14,24,33,49,9,8,3,4,0,12,7,11,3,4]
[null,"With no vision difficulty",240,117,107,45,221,103,384,69,149,53,164,42,107,29,1969,305,87,42,188,76,297,84,452,118,501,264,58,25,600,144,356,97,280,127,93,35,333,84,231,74,248,78,266,97,172,88,160,86,169,48,113,32,82,25]
[null,"75  years and Older:",38,33,127,91,89,56,213,71,32,16,89,32,68,26,1268,203,78,68,69,21,123,73,257,90,112,64,42,24,384,114,104,65,308,123,73,31,310,112,139,76,162,65,121,68,43,30,98,56,45,26,38,21,40,22]
[null,"With vision difficulty",0,12,0,12,0,12,9,14,0,12,4,6,13,19,60,36,0,12,4,5,0,12,45,74,0,17,11,14,63,42,0,17,39,64,13,18,0,12,0,12,11,18,14,21,0,12,0,12,5,7,6,10,4,5]
[null,"With no vision difficulty",38,33,127,91,89,56,204,71,32,16,85,32,55,21,1208,204,78,68,65,21,123,73,212,83,112,64,31,21,321,104,104,65,269,107,60,24,310,112,139,76,151,64,107,61,43,30,98,56,40,25,32,18,36,21]
[null,"Female:",2252,156,1103,175,1773,120,4190,187,730,98,1183,164,1287,103,20729,564,744,166,1494,94,2491,139,4775,340,2835,210,353,74,7590,300,3148,243,2846,200,921,124,2351,137,2527,157,3468,257,2187,160,695,122,1113,246,1493,101,1046,172,794,125]
[null,"Under 5 years:",112,68,37,25,124,83,322,133,39,26,76,47,55,25,1006,224,34,22,116,61,83,71,155,85,107,108,22,13,200,118,91,76,85,96,38,25,96,62,71,49,237,124,89,77,28,21,40,25,58,43,31,17,69,35]
[null,"With vision difficulty",0,12,0,12,0,12,0,17,0,12,0,12,0,12,0,25,0,12,0,12,0,12,0,17,0,17,0,12,0,19,0,17,0,17,0,12,0,12,0,12,0,17,0,12,0,12,0,12,0,12,0,12,0,12]
[null,"With no vision difficulty",112,68,37,25,124,83,322,133,39,26,76,47,55,25,1006,224,34,22,116,61,83,71,155,85,107,108,22,13,200,118,91,76,85,96,38,25,96,62,71,49,237,124,89,77,28,21,40,25,58,43,31,17,69,35]
[null,"5 to 17  years:",299,85,145,60,220,105,606,139,118,50,170,75,101,32,2630,296,111,53,294,92,541,157,633,167,255,87,32,23,1275,285,440,187,370,190,148,52,139,63,373,89,620,142,377,158,80,37,243,89,155,60,196,108,81,35]
[null,"With vision difficulty",0,12,0,12,0,12,0,17,0,12,0,12,0,12,90,97,0,12,0,12,0,12,23,33,0,17,0,12,15,22,0,17,0,17,0,12,0,12,11,18,0,17,0,12,0,12,0,12,0,12,0,12,0,12]
[null,"With no vision difficulty",299,85,145,60,220,105,606,139,118,50,170,75,101,32,2540,279,111,53,294,92,541,157,610,181,255,87,32,23,1260,284,440,187,370,190,148,52,139,63,362,95,620,142,377,158,80,37,243,89,155,60,196,108,81,35]
[null,"18 to 34  years:",611,163,191,72,360,147,717,161,98,40,223,82,183,66,4973,416,72,34,221,78,453,111,921,244,944,171,39,21,1881,281,738,331,291,116,116,49,658,109,462,159,763,203,328,110,59,29,123,95,375,114,173,75,169,66]
[null,"With vision difficulty",6,11,0,12,8,13,81,104,0,12,0,12,5,8,101,66,0,12,19,26,0,12,0,17,0,17,0,12,0,19,0,17,0,17,0,12,0,12,9,14,52,56,0,12,0,12,0,12,0,12,6,9,0,12]
[null,"With no vision difficulty",605,163,191,72,352,147,636,159,98,40,223,82,178,66,4872,421,72,34,202,71,453,111,921,244,944,171,39,21,1881,281,738,331,291,116,116,49,658,109,453,160,711,202,328,110,59,29,123,95,375,114,167,73,169,66]
[null,"35 to 64  years:",945,147,372,75,754,141,1799,133,310,53,475,64,681,86,8012,417,386,121,619,70,956,124,1957,286,936,209,199,45,2914,241,1336,128,1433,195,393,84,598,95,1212,148,1398,206,886,152,349,99,511,115,528,74,498,85,303,81]
[null,"With vision difficulty",72,72,0,12,19,22,0,17,0,12,21,33,19,15,116,66,0,12,0,12,8,12,19,24,10,17,0,12,19,29,4,11,0,17,6,8,0,12,133,117,0,17,0,12,0,12,0,12,7,9,29,25,0,12]
[null,"With no vision difficulty",873,134,372,75,735,138,1799,133,310,53,454,59,662,86,7896,422,386,121,619,70,948,127,1938,284,926,209,199,45,2895,242,1332,126,1433,195,387,85,598,95,1079,144,1398,206,886,152,349,99,511,115,521,73,469,82,303,81]
[null,"65 to 74  years:",180,69,146,51,220,69,473,87,117,31,140,35,173,51,2410,278,105,48,153,67,363,102,536,131,512,262,48,19,772,152,368,105,581,140,97,27,331,107,278,116,275,114,322,130,122,36,96,36,217,63,105,32,80,31]
[null,"With vision difficulty",26,39,0,12,0,12,19,22,0,12,0,12,26,28,136,105,0,12,0,12,0,12,29,29,0,17,10,10,0,19,0,17,0,17,0,12,0,12,58,90,43,63,0,12,0,12,3,5,0,12,0,12,0,12]
[null,"With no vision difficulty",154,66,146,51,220,69,454,85,117,31,140,35,147,44,2274,284,105,48,153,67,363,102,507,127,512,262,38,17,772,152,368,105,581,140,97,27,331,107,220,68,232,89,322,130,122,36,93,37,217,63,105,32,80,31]
[null,"75  years and Older:",105,63,212,126,95,48,273,97,48,25,99,47,94,37,1698,239,36,22,91,30,95,59,573,254,81,58,13,15,548,163,175,82,86,90,129,49,529,154,131,53,175,78,185,87,57,35,100,76,160,58,43,20,92,34]
[null,"With vision difficulty",10,15,7,13,7,11,13,17,0,12,0,12,0,12,73,37,0,12,0,12,0,12,18,27,0,17,0,12,33,29,0,17,0,17,10,11,50,52,0,12,18,30,0,12,3,5,0,12,0,12,3,4,4,7]
[null,"With no vision difficulty",95,61,205,124,88,48,260,95,48,25,99,47,94,37,1625,236,36,22,91,30,95,59,555,253,81,58,13,15,515,164,175,82,86,90,119,51,479,152,131,53,157,75,185,87,54,35,100,76,160,58,40,19,88,32]
[]
[]
[{"$f":"A1& \"-Calculated\"","v":"B18103. SEX BY AGE BY VISION DIFFICULTY\n\n\n-Calculated"}]
[{"$f":"A2","v":"Universe:  Civilian non-institutionalized population"}]
[{"$f":"A3","v":"Data Set: 2018-2022 American Community Survey 5-Year Estimates"}]
[]
[]
[null,null,"Allenstown",null,"Andover",null,"Boscawen",null,"Bow",null,"Bradford",null,"Canterbury",null,"Chichester",null,"Concord",null,"Danbury",null,"Dunbarton",null,"Epsom",null,"Franklin",null,"Henniker",null,"Hill",null,"Hooksett",null,"Hopkinton",null,"Loudon",null,"Newbury",null,"New London",null,"Northfield",null,"Pembroke",null,"Pittsfield",null,"Salisbury",null,"Sutton",null,"Warner",null,"Webster",null,"Wilmot"]
[null,null,"Estimate","Margin Of Error","Estimate","Margin Of Error","Estimate","Margin Of Error","Estimate","Margin Of Error","Estimate","Margin Of Error","Estimate","Margin Of Error","Estimate","Margin Of Error","Estimate","Margin Of Error","Estimate","Margin Of Error","Estimate","Margin Of Error","Estimate","Margin Of Error","Estimate","Margin Of Error","Estimate","Margin Of Error","Estimate","Margin Of Error","Estimate","Margin Of Error","Estimate","Margin Of Error","Estimate","Margin Of Error","Estimate","Margin Of Error","Estimate","Margin Of Error","Estimate","Margin Of Error","Estimate","Margin Of Error","Estimate","Margin Of Error","Estimate","Margin Of Error","Estimate","Margin Of Error","Estimate","Margin Of Error","Estimate","Margin Of Error","Estimate","Margin Of Error"]
[null,"Total",{"$f":"C7","v":4653},22,2151,307,3514,45,8235,19,1565,172,2311,243,2682,31,41872,80,1491,261,2974,65,4706,40,8594,22,6094,15,839,182,14636,89,5925,20,5608,21,1902,258,4267,31,4849,27,7287,40,4052,61,1579,362,2254,451,2849,33,2096,314,1502,217]
[null,"Under 5 years:",{"$f":"C28+C9","v":242},{"$f":"SQRT((D28^2)+(D9^2))","v":104.23531071570709},{"$f":"E28+E9","v":60},{"$f":"SQRT((F28^2)+(F9^2))","v":38.288379438153292},{"$f":"G28+G9","v":217},{"$f":"SQRT((H28^2)+(H9^2))","v":100.68763578513501},{"$f":"I28+I9","v":629},{"$f":"SQRT((J28^2)+(J9^2))","v":166.4001201922643},{"$f":"K28+K9","v":80},{"$f":"SQRT((L28^2)+(L9^2))","v":39.698866482558415},{"$f":"M28+M9","v":109},{"$f":"SQRT((N28^2)+(N9^2))","v":52.32590180780452},{"$f":"O28+O9","v":113},{"$f":"SQRT((P28^2)+(P9^2))","v":46.324939287601879},{"$f":"Q28+Q9","v":2085},{"$f":"SQRT((R28^2)+(R9^2))","v":307.04397079245831},{"$f":"S28+S9","v":70},{"$f":"SQRT((T28^2)+(T9^2))","v":34.058772731852805},{"$f":"U28+U9","v":181},{"$f":"SQRT((V28^2)+(V9^2))","v":72.401657439591816},{"$f":"W28+W9","v":208},{"$f":"SQRT((X28^2)+(X9^2))","v":109.22453936730518},{"$f":"Y28+Y9","v":303},{"$f":"SQRT((Z28^2)+(Z9^2))","v":120.91732712891069},{"$f":"AA28+AA9","v":316},{"$f":"SQRT((AB28^2)+(AB9^2))","v":184.02445489662509},{"$f":"AC28+AC9","v":42},{"$f":"SQRT((AD28^2)+(AD9^2))","v":19.104973174542799},{"$f":"AE28+AE9","v":580},{"$f":"SQRT((AF28^2)+(AF9^2))","v":207.76188293332345},{"$f":"AG28+AG9","v":189},{"$f":"SQRT((AH28^2)+(AH9^2))","v":108.18964830333815},{"$f":"AI28+AI9","v":120},{"$f":"SQRT((AJ28^2)+(AJ9^2))","v":109.17875251164945},{"$f":"AK28+AK9","v":117},{"$f":"SQRT((AL28^2)+(AL9^2))","v":48.020828814171878},{"$f":"AM28+AM9","v":164},{"$f":"SQRT((AN28^2)+(AN9^2))","v":85.586213843118443},{"$f":"AO28+AO9","v":175},{"$f":"SQRT((AP28^2)+(AP9^2))","v":92.962357973536797},{"$f":"AQ28+AQ9","v":350},{"$f":"SQRT((AR28^2)+(AR9^2))","v":138.63621460498698},{"$f":"AS28+AS9","v":89},{"$f":"SQRT((AT28^2)+(AT9^2))","v":77.929455278476055},{"$f":"AU28+AU9","v":45},{"$f":"SQRT((AV28^2)+(AV9^2))","v":26.40075756488817},{"$f":"AW28+AW9","v":60},{"$f":"SQRT((AX28^2)+(AX9^2))","v":31.400636936215164},{"$f":"AY28+AY9","v":137},{"$f":"SQRT((AZ28^2)+(AZ9^2))","v":68.249542123006222},{"$f":"BA28+BA9","v":167},{"$f":"SQRT((BB28^2)+(BB9^2))","v":151.95394038984313},{"$f":"BC28+BC9","v":110},{"$f":"SQRT((BD28^2)+(BD9^2))","v":44.204072210600685}]
[null,"With vision difficulty",{"$f":"C29+C10","v":0},{"$f":"SQRT((D29^2)+(D10^2))","v":16.970562748477139},{"$f":"E29+E10","v":0},{"$f":"SQRT((F29^2)+(F10^2))","v":16.970562748477139},{"$f":"G29+G10","v":0},{"$f":"SQRT((H29^2)+(H10^2))","v":16.970562748477139},{"$f":"I29+I10","v":0},{"$f":"SQRT((J29^2)+(J10^2))","v":24.041630560342615},{"$f":"K29+K10","v":0},{"$f":"SQRT((L29^2)+(L10^2))","v":16.970562748477139},{"$f":"M29+M10","v":0},{"$f":"SQRT((N29^2)+(N10^2))","v":16.970562748477139},{"$f":"O29+O10","v":0},{"$f":"SQRT((P29^2)+(P10^2))","v":16.970562748477139},{"$f":"Q29+Q10","v":0},{"$f":"SQRT((R29^2)+(R10^2))","v":35.355339059327378},{"$f":"S29+S10","v":0},{"$f":"SQRT((T29^2)+(T10^2))","v":16.970562748477139},{"$f":"U29+U10","v":0},{"$f":"SQRT((V29^2)+(V10^2))","v":16.970562748477139},26,39.849717690342551,0,{"$f":"SQRT((Z29^2)+(Z10^2))","v":24.041630560342615},0,{"$f":"SQRT((AB29^2)+(AB10^2))","v":24.041630560342615},0,{"$f":"SQRT((AD29^2)+(AD10^2))","v":16.970562748477139},0,{"$f":"SQRT((AF29^2)+(AF10^2))","v":26.870057685088806},0,{"$f":"SQRT((AH29^2)+(AH10^2))","v":24.041630560342615},0,{"$f":"SQRT((AJ29^2)+(AJ10^2))","v":24.041630560342615},0,{"$f":"SQRT((AL29^2)+(AL10^2))","v":16.970562748477139},0,{"$f":"SQRT((AN29^2)+(AN10^2))","v":16.970562748477139},0,{"$f":"SQRT((AP29^2)+(AP10^2))","v":16.970562748477139},0,{"$f":"SQRT((AR29^2)+(AR10^2))","v":24.041630560342615},0,{"$f":"SQRT((AT29^2)+(AT10^2))","v":16.970562748477139},0,{"$f":"SQRT((AV29^2)+(AV10^2))","v":16.970562748477139},0,{"$f":"SQRT((AX29^2)+(AX10^2))","v":16.970562748477139},0,{"$f":"SQRT((AZ29^2)+(AZ10^2))","v":16.970562748477139},0,{"$f":"SQRT((BB29^2)+(BB10^2))","v":16.970562748477139},0,{"$f":"SQRT((BD29^2)+(BD10^2))","v":16.970562748477139}]
[null,"With no vision difficulty",242,104.23531071570709,60,38.288379438153292,217,100.68763578513501,629,166.4001201922643,80,39.698866482558415,109,52.32590180780452,113,46.324939287601879,2085,307.04397079245831,70,34.058772731852805,181,72.401657439591816,182,101.83319694480774,303,{"$f":"SQRT((Z30^2)+(Z11^2))","v":120.91732712891069},316,184.02445489662509,42,19.104973174542799,580,207.76188293332345,189,108.18964830333815,120,109.17875251164945,117,48.020828814171878,164,85.586213843118443,175,92.962357973536797,350,138.63621460498698,89,77.929455278476055,45,26.40075756488817,60,31.400636936215164,137,68.249542123006222,167,151.95394038984313,110,44.204072210600685]
[null,"5 to 17 years:",716,134.31678971744373,275,92.195444572928878,552,144.31216164966833,1460,199.42417105255822,269,72.862884927787476,272,86.452298986203942,420,89.888820216976924,5690,437.37855457258075,207,68.8839603971781,550,101.55294185792945,824,182.98907071188705,1083,223.14345161801185,696,157.25775020646836,72,33.241540277189323,2205,373.23719000121088,851,237.24459951703852,684,236.00847442411893,270,86.400231481171389,353,115.66330446602328,745,200.80089641234176,1353,238.8053600738476,602,177.09884245810304,267,165.19685227025363,364,103.58571330062848,372,88.459030064770658,306,112.64102272262978,163,52.40229002629561]
[null,"With vision difficulty",19,30.463092423455635,0,16.970562748477139,8,18.439088914585774,0,24.041630560342615,0,16.970562748477139,0,16.970562748477139,0,16.970562748477139,115,99.924971853886447,0,16.970562748477139,0,16.970562748477139,0,16.970562748477139,113,57.428216061444921,9,22.671568097509269,0,16.970562748477139,15,29.068883707497267,0,24.041630560342615,0,24.041630560342615,0,16.970562748477139,0,16.970562748477139,22,24.758836806279895,0,24.041630560342615,0,16.970562748477139,0,16.970562748477139,0,16.970562748477139,0,16.970562748477139,0,16.970562748477139,0,16.970562748477139]
[null,"With no vision difficulty",697,134.31678971744373,275,92.195444572928878,544,143.62799170078233,1460,199.42417105255822,269,72.862884927787476,272,86.452298986203942,420,89.888820216976924,5575,425.30224546785547,207,68.8839603971781,550,101.55294185792945,824,182.98907071188705,970,225.80079716422614,687,153.94154734833609,72,33.241540277189323,2190,372.47416017758871,851,237.24459951703852,684,236.00847442411893,270,86.400231481171389,353,115.66330446602328,723,203.5313243704762,1353,238.8053600738476,602,177.09884245810304,267,165.19685227025363,364,103.58571330062848,372,88.459030064770658,306,112.64102272262978,163,52.40229002629561]
[null,"18 to 34 years:",1191,206.63494380186523,463,152.11837495845134,705,184.80530295421721,1342,230.53416232740864,264,71.28113354878694,445,104.01922899156675,438,87.863530545955186,10632,560.74236508400179,181,55.605755097831377,458,104.80458005259122,841,173.23394586512194,1506,284.85961454723622,2036,322.13351269310681,167,77.884529914483011,3877,425.1141023301862,1273,394.153523389047,797,227.75425352778814,280,67.896980787071826,1211,157.00318468107582,923,203.49447166937975,1439,289.21445330411825,703,156.27219842313605,216,70.263788682364691,357,146.86388255796589,711,145.86637720873168,296,89.587945617700157,326,91.241437954473298]
[null,"With vision difficulty",6,16.278820596099706,0,16.970562748477139,8,17.691806012954132,81,105.38026380684383,0,16.970562748477139,0,16.970562748477139,9,10.63014581273465,203,91.934759476489631,0,16.970562748477139,32,30.528675044947494,0,16.970562748477139,0,24.041630560342615,32,53.758720222862451,11,19.209372712298546,0,26.870057685088806,0,24.041630560342615,0,24.041630560342615,0,16.970562748477139,17,29.546573405388315,31,37.696153649941529,52,58.523499553598128,0,16.970562748477139,0,16.970562748477139,0,16.970562748477139,0,16.970562748477139,6,15,0,16.970562748477139]
[null,"With no vision difficulty",1185,206.63494380186523,463,152.11837495845134,697,184.80530295421721,1261,229.14187744713973,264,71.28113354878694,445,104.01922899156675,429,87.863530545955186,10429,564.4616904626921,181,55.605755097831377,426,97.621718894926246,841,173.23394586512194,1506,284.85961454723622,2004,318.75068627377101,156,74.040529441651074,3877,425.1141023301862,1273,394.153523389047,797,227.75425352778814,280,67.896980787071826,1194,154.85799947048264,892,201.20636172845033,1387,288.51343122981297,703,156.27219842313605,216,70.263788682364691,357,146.86388255796589,711,145.86637720873168,290,87.920418561333065,326,91.241437954473298]
[null,"35 to 64 years:",1929,204.38444167793205,761,141.50971698084905,1407,184.50474248647376,3448,186.6815470259447,597,73.552702193733168,993,122.11470017978998,1269,108.40664186294121,16077,624.59106621852993,717,138.7984149765407,1284,107.05606008068857,1947,203.21663317750347,3876,371.43640101637857,1840,299.12706330253701,394,65.79513659838392,5646,331.07400985278201,2609,214.40149253211834,2752,273.65854636754904,838,119.50313803411188,1036,126.81088281373961,2212,211.43556938225885,3271,312.50759990758627,1731,234.06836608136521,648,144.31216164966833,1016,160.52725625263767,1038,104.65180361560904,1021,120.91732712891069,606,102.61578825892242]
[null,"With vision difficulty",88,76.216796049164913,20,27.730849247724095,19,25.059928172283335,13,26.248809496813376,0,16.970562748477139,22,33.541019662496844,30,19.209372712298546,491,185.16209115258988,9,16.970562748477139,0,16.970562748477139,21,23.323807579381203,70,59.093146810776631,10,24.041630560342615,8,15.620499351813308,73,53.535035257296691,8,15.556349186104045,0,24.041630560342615,23,16.124515496597098,0,16.970562748477139,167,123.3288287465668,39,49.979995998399197,0,16.970562748477139,0,16.970562748477139,0,16.970562748477139,33,25.632011235952593,40,26.92582403567252,9,18.439088914585774]
[null,"With no vision difficulty",1841,190.92406867652909,741,137.2953021774598,1388,182.22239159883728,3435,188.09040379562165,597,73.552702193733168,971,119.57006314291216,1239,111.5212984142491,15586,631.6518028154436,708,139.29106216839614,1284,107.05606008068857,1926,201.9356333092305,3806,371.18324315626103,1830,299.12706330253701,386,63.63961030678928,5573,331.80265218952064,2601,213.21350801485352,2752,273.65854636754904,815,118.10588469674151,1036,126.81088281373961,2045,209.38003725283841,3232,305.79731849707252,1731,234.06836608136521,648,144.31216164966833,1016,160.52725625263767,1005,107.56393447619885,981,119.55333537798099,597,102.61578825892242]
[null,"65 to 74 years:",432,138.42326394071193,253,68.01470429252781,449,124.80785231707178,870,112.29425630903836,275,60.539243470661241,304,54.671747731346578,280,58.668560575490517,4422,409.73772098746292,202,64.443773942872099,341,101.31633629380802,668,132.77424449041311,996,177.65415840897168,1013,371.94085551334638,109,31.400636936215164,1396,205.9732992404598,724,142.94754282603111,861,189.02116283633427,195,43.416586692184822,664,136.03308421115798,524,138.67948658687772,537,138.13037319865606,621,162.2004932174992,303,96.005208192055917,259,93.23089616645332,386,79.202272694664515,225,45.967379738244816,165,39.824615503479755]
[null,"With vision difficulty",38,42.953463189829058,0,16.970562748477139,8,16.970562748477139,32,26.627053911388696,9,13.892443989449804,0,16.970562748477139,26,30.463092423455635,179,108.93117092916977,10,16.970562748477139,0,16.970562748477139,8,16.970562748477139,37,31.780497164141408,0,24.041630560342615,13,10.770329614269007,24,33.015148038438355,0,24.041630560342615,0,24.041630560342615,5,14.422205101855956,0,16.970562748477139,73,91.983694207180008,57,67.416615162732697,33,50.447993022517757,9,14.422205101855956,6,6.4031242374328485,0,16.970562748477139,7,16.278820596099706,3,12.649110640673518]
[null,"With no vision difficulty",394,134.33167906342868,253,68.01470429252781,441,123.97580409095961,838,109.48059188732951,266,61.400325732035007,304,54.671747731346578,254,52.697248505021591,4243,416.75052489469044,192,63.7808748764079,341,101.31633629380802,660,132.13629327327143,959,173.35801106380978,1013,371.94085551334638,96,30.232432915661949,1372,209.38003725283841,724,142.94754282603111,861,189.02116283633427,190,44.204072210600685,664,136.03308421115798,451,100.4987562112089,480,118.34272263219231,588,162.2004932174992,294,95.078914592037705,253,93.621578709184348,386,79.202272694664515,218,45.254833995939045,162,39.824615503479755]
[null,"75 years and over:",143,71.119617546778187,339,155.42522317822161,184,73.756355658343097,486,120.20815280171308,80,29.681644159311659,188,56.859475903318,162,45.221676218380054,2966,313.57614705203582,114,71.470273540822546,160,36.61966684720111,218,93.861600242058515,830,269.47356085523495,193,86.371291526756735,55,28.301943396169811,932,198.90952717253137,279,104.63746938836012,394,152.41062955056645,202,57.982756057296896,839,190.42058712229621,270,92.655275079188016,337,101.53324578678651,306,110.42191811411355,100,46.097722286464439,198,94.403389769647575,205,63.560994328282817,81,29,132,40.496913462633174]
[null,"With vision difficulty",10,19.209372712298546,7,17.691806012954132,7,16.278820596099706,22,22.022715545545239,0,16.970562748477139,4,13.416407864998739,13,22.472205054244231,133,51.623637996561229,0,16.970562748477139,4,13,0,16.970562748477139,63,78.771822373231913,0,24.041630560342615,11,18.439088914585774,96,51.039200620699383,0,24.041630560342615,39,66.219332524573218,23,21.095023109728988,50,53.366656256505337,0,16.970562748477139,29,34.985711369071801,14,24.186773244895647,3,13,0,16.970562748477139,5,13.892443989449804,9,10.770329614269007,8,8.6023252670426267]
[null,"With no vision difficulty",133,69.354163537598808,332,153.80832227158581,177,73.756355658343097,464,118.60016863394419,80,29.681644159311659,184,56.859475903318,149,42.544094772365298,2833,311.94871373352385,114,71.470273540822546,156,36.61966684720111,218,93.861600242058515,767,266.2667835085706,193,86.371291526756735,44,25.80697580112788,836,194.19577750301369,279,104.63746938836012,355,139.8177385026664,179,56.36488268416781,789,188.80677953929515,270,92.655275079188016,308,98.595131725658746,292,106.25441167311595,97,46.097722286464439,198,94.403389769647575,200,63.158530698552511,72,26.172504656604801,124,{"$f":"SQRT((BD45^2)+(BD26^2))","v":38.275318418009277}]
[]
[]
[]
[]
[]
[]
[]
[]
[]
[]
[]
[]
[]
[]
[]
[]
[]
[]
[]
[]
[]
[]
[]
[]
[]
[]
["B18103. SEX BY AGE BY VISION DIFFICULTY\n\n\n-Calculated"]
["Universe:  Civilian non-institutionalized population"]
["Data Set: 2013-2017 American Community Survey 5-Year Estimates"]
[]
[]
[null,null,"Allenstown",null,"Andover",null,"Boscawen",null,"Bow",null,"Bradford",null,"Canterbury",null,"Chichester",null,"Concord",null,"Danbury",null,"Dunbarton",null,"Epsom",null,"Franklin",null,"Henniker",null,"Hill",null,"Hooksett",null,"Hopkinton",null,"Loudon",null,"Newbury",null,"New London",null,"Northfield",null,"Pembroke",null,"Pittsfield",null,"Salisbury",null,"Sutton",null,"Warner",null,"Webster",null,"Wilmot"]
[null,null,"Estimate","Margin Of Error","Estimate","Margin Of Error","Estimate","Margin Of Error","Estimate","Margin Of Error","Estimate","Margin Of Error","Estimate","Margin Of Error","Estimate","Margin Of Error","Estimate","Margin Of Error","Estimate","Margin Of Error","Estimate","Margin Of Error","Estimate","Margin Of Error","Estimate","Margin Of Error","Estimate","Margin Of Error","Estimate","Margin Of Error","Estimate","Margin Of Error","Estimate","Margin Of Error","Estimate","Margin Of Error","Estimate","Margin Of Error","Estimate","Margin Of Error","Estimate","Margin Of Error","Estimate","Margin Of Error","Estimate","Margin Of Error","Estimate","Margin Of Error","Estimate","Margin Of Error","Estimate","Margin Of Error","Estimate","Margin Of Error","Estimate"]
[null,"Total",4336,43,2496,235,3507,201,7571,34,1466,204,2419,143,2529,19,40312,334,1218,225,2756,18,4468,87,8376,74,4800,54,1210,201,13469,37,5608,16,5235,76,2103,252,4358,53,4795,74,7132,28,4088,53,1286,173,1794,251,2831,24,1749,161,1390,196]
[null,"Under 5 years:",223,99.488692824863264,126,50.537115073973112,220,82.800966177937809,209,78.10249675906654,51,23.259406699226016,147,55.865910893853687,95,44.77722635447622,2200,280.7294070809113,33,28.231188426986208,86,36.796738985948195,229,92.913938674452936,459,144.81022063376605,285,99.005050376230813,63,33.105890714493697,706,195.34584715319647,265,102.92715870944851,248,104.0096149401583,121,65.36818798161687,119,70.213958726167832,391,145.7737973711325,510,145.90750494748377,329,90.520715861066847,65,34.409301068170507,121,62.032249677083293,154,60.141499815019579,64,30,36,24.207436873820409]
[null,"With vision difficulty",0,15.556349186104045,0,15.556349186104045,0,15.556349186104045,0,22.627416997969522,0,15.556349186104045,0,15.556349186104045,0,15.556349186104045,17,35.383612025908263,0,15.556349186104045,0,15.556349186104045,0,15.556349186104045,0,22.627416997969522,0,15.556349186104045,0,15.556349186104045,9,23.430749027719962,0,22.627416997969522,0,22.627416997969522,0,15.556349186104045,0,15.556349186104045,0,15.556349186104045,0,22.627416997969522,0,15.556349186104045,3,12.083045973594572,0,15.556349186104045,0,15.556349186104045,0,15.556349186104045,0,15.556349186104045]
[null,"With no vision difficulty",223,99.488692824863264,126,50.537115073973112,220,82.800966177937809,209,78.10249675906654,51,23.259406699226016,147,55.865910893853687,95,44.77722635447622,2183,277.24357521861532,33,28.231188426986208,86,36.796738985948195,229,92.913938674452936,459,144.81022063376605,285,99.005050376230813,63,33.105890714493697,697,196.82479518597245,265,102.92715870944851,248,104.0096149401583,121,65.36818798161687,119,70.213958726167832,391,145.7737973711325,510,145.90750494748377,329,90.520715861066847,62,33.837848631377263,121,62.032249677083293,154,60.141499815019579,64,30,36,24.207436873820409]
[null,"5 to 17 years:",698,172.7917822120022,298,79.05694150420949,580,206.64946164943183,1791,192.4162155328911,203,73.23933369440222,395,96.607453128627711,447,84.876380695691779,6260,422.40383520986171,249,76.380625815713245,535,82.134036793524274,754,168.21712160181556,1558,304.90162347878703,798,185.69868066305693,275,73.23933369440222,2087,263.88254963146011,963,192.4162155328911,1112,221.00904958847272,307,84.811555816409836,547,112.4144118874444,932,207.20038610002638,1195,218.55205329623422,538,130.09611831257686,246,70.178344238091,356,90.520715861066847,411,99.724620831567975,317,68.8839603971781,259,73.661387442811588]
[null,"With vision difficulty",24,42.449970553582247,0,15.556349186104045,0,15.556349186104045,0,22.627416997969522,0,15.556349186104045,0,15.556349186104045,0,15.556349186104045,30,29,0,15.556349186104045,0,15.556349186104045,0,15.556349186104045,0,22.627416997969522,14,26.40075756488817,0,15.556349186104045,0,25.45584412271571,0,22.627416997969522,20,28.844410203711913,0,15.556349186104045,0,15.556349186104045,0,15.556349186104045,23,39.395431207184416,5,14.212670403551895,0,15.556349186104045,0,15.556349186104045,0,15.556349186104045,3,11.704699910719626,0,15.556349186104045]
[null,"With no vision difficulty",674,171.82840277439584,298,79.05694150420949,580,206.64946164943183,1791,192.4162155328911,203,73.23933369440222,395,96.607453128627711,447,84.876380695691779,6230,427.375712927162,249,76.380625815713245,535,82.134036793524274,754,168.21712160181556,1558,304.90162347878703,784,183.44754018519845,275,73.23933369440222,2087,263.88254963146011,963,192.4162155328911,1092,219.40145851839728,307,84.811555816409836,547,112.4144118874444,932,207.20038610002638,1172,209.48030933717851,533,130.09611831257686,246,70.178344238091,356,90.520715861066847,411,99.724620831567975,314,68.8839603971781,259,73.661387442811588]
[null,"18 to 34 years:",1008,159.17600321656528,413,110.27692415006868,672,167.62159765376299,776,158.61904047118682,213,56.080299571239813,332,69.426219830839131,336,67.357256476195644,9580,403.78831087588458,239,70.767224051816527,349,94.175368329515976,745,152.64337522473747,1662,247.4914139924858,1422,221.77466041006579,171,44.553338819890925,3029,310.48510431259018,786,184.1738309315414,866,186.93581786270923,276,71.847059786744225,1146,197.85348114198041,834,147.8681845428556,1497,243.47895186237352,844,157.76247969653622,211,43.185645763378368,234,65.76473218982953,451,92.617492948146676,241,56.400354608814297,171,63.007936008093459]
[null,"With vision difficulty",0,15.556349186104045,0,15.556349186104045,0,15.556349186104045,0,22.627416997969522,0,15.556349186104045,0,15.556349186104045,0,15.556349186104045,137,88.76936408468859,0,15.556349186104045,0,15.556349186104045,0,15.556349186104045,19,21.931712199461309,0,15.556349186104045,2,11.401754250991379,12,26.90724809414742,0,22.627416997969522,0,22.627416997969522,17,25.495097567963924,0,15.556349186104045,5,14.212670403551895,11,25.612496949731394,0,15.556349186104045,0,15.556349186104045,0,15.556349186104045,12,19.416487838947599,10,20.248456731316587,0,15.556349186104045]
[null,"With no vision difficulty",1008,159.17600321656528,413,110.27692415006868,672,167.62159765376299,776,158.61904047118682,213,56.080299571239813,332,69.426219830839131,336,67.357256476195644,9443,409.4887055829501,239,70.767224051816527,349,94.175368329515976,745,152.64337522473747,1643,248.90560459740556,1422,221.77466041006579,169,43.863424398922618,3017,311.87337173923652,786,184.1738309315414,866,186.93581786270923,259,71.028163428319047,1146,197.85348114198041,829,147.8681845428556,1486,244.72433471152803,844,157.76247969653622,211,43.185645763378368,234,65.76473218982953,439,92.005434622091755,231,55.21775076911409,171,63.007936008093459]
[null,"35 to 64 years:",1926,185.26737435393204,1179,140.60227594174995,1557,164.20109622045769,3790,142.89856542317,820,91.967385523347346,1237,82.024386617639507,1415,68.593002558570063,16930,419.56167603821967,547,81.467785044151043,1562,75.073297516493838,2159,118.1397477566293,3710,247.22661669003199,2026,185.53975315279473,588,74.411020689142546,5898,262.68041419184647,2609,152.02960238058901,2431,149.91330828182001,984,119.67038062946069,1162,134.23859355639868,2059,194.60986614249546,3168,233.96153530014288,1953,168.60011862392031,610,72.862884927787476,733,92.097774131626011,1394,105.38026380684383,923,74.518454090245328,664,89.10667763978185]
[null,"With vision difficulty",73,74.330343736592525,19,19.416487838947599,46,41.146081222881968,127,85.445889310135925,21,18.384776310850235,19,31.016124838541646,18,17.691806012954132,360,172.15400082484288,0,15.556349186104045,14,15,32,31.016124838541646,132,51.224993899462788,28,45.354161881794269,16,11.313708498984761,7,20.591260281974002,25,28.319604517012593,0,22.627416997969522,6,13.601470508735444,0,15.556349186104045,0,15.556349186104045,41,38.013155617496423,10,19.416487838947599,25,24.596747752497688,0,15.556349186104045,47,35.468295701936398,6,13.038404810405298,4,13.601470508735444]
[null,"With no vision difficulty",1853,181.1573901335521,1160,138.80922159568507,1511,165.51737068960466,3663,153.26447729333762,799,91.285267157411553,1218,83.450584180100265,1397,69.31089380465383,16570,432.8325311249144,547,81.467785044151043,1548,77.987178433380961,2127,121.62236636408618,3578,246.10770000144245,1998,181.68654325513489,572,74.411020689142546,5891,264.16850682850139,2584,154.87091398968369,2431,149.91330828182001,978,119.67038062946069,1162,134.23859355639868,2059,194.60986614249546,3127,239.8207664069148,1943,168.60011862392031,585,70.837842993699354,733,92.097774131626011,1347,99.247166206396045,917,74.518454090245328,660,89.805345052507874]
[null,"65 to 74 years:",233,69.202601107183824,330,79.208585393251411,231,87.321245982864909,652,111.73182178770737,76,25.80697580112788,185,36.069377593742864,164,41.725292090050132,2640,197.29419656948858,107,30.232432915661949,169,40.36087214122113,430,108.22661410207751,497,110.34491379306978,106,49.929950931279713,76,23.345235059857504,1151,143.83671297690307,649,137.55726080436466,378,89.10667763978185,219,57.314919523628397,503,105.11898020814318,319,106.21675950620975,369,102.7277956543408,245,72.945184899347538,102,30,227,58.694122363316758,199,52.630789467763066,134,29.832867780352597,145,48.918299234540036]
[null,"With vision difficulty",9,17.804493814764857,11,12.041594578792296,63,68.8839603971781,9,21.2602916254693,3,12.083045973594572,0,15.556349186104045,2,11.704699910719626,101,53.488316481265329,14,19.416487838947599,0,15.556349186104045,0,15.556349186104045,44,34.058772731852805,15,21.095023109728988,5,13.601470508735444,8,22.203603311174518,0,22.627416997969522,10,21.931712199461309,0,15.556349186104045,8,17.029386365926403,0,15.556349186104045,0,22.627416997969522,42,33.837848631377263,0,15.556349186104045,0,15.556349186104045,0,15.556349186104045,3,11.704699910719626,0,15.556349186104045]
[null,"With no vision difficulty",224,69.202601107183824,319,78.492037812761623,168,63.702433234531945,643,112.44998888394787,73,25.80697580112788,185,36.069377593742864,162,41.725292090050132,2539,202.27703774773843,93,23.345235059857504,169,40.36087214122113,430,108.22661410207751,453,109.87720418721983,91,49.091750834534309,71,22.022715545545239,1143,143.17821063276352,649,137.55726080436466,368,94.260277954183863,219,57.314919523628397,495,104.29285689825551,319,106.21675950620975,369,102.7277956543408,203,71.28113354878694,102,30,227,58.694122363316758,199,52.630789467763066,131,29.068883707497267,145,48.918299234540036]
[null,"75 years and over:",248,83.600239234107462,150,66.037867924396224,247,76.576758876306585,353,97,103,34.655446902326915,123,41.773197148410844,72,36.878177829171548,2702,254.42091109026396,43,16.278820596099706,55,32.202484376209235,151,60.605280298007038,490,109.55363982999378,163,66.887966032762577,37,17.720045146669349,598,129.00387591076478,336,88.865066252155572,200,64.660652641308843,196,69.426219830839131,881,135.28118864054971,260,91.35097153287424,393,106.82696288858914,179,75.663729752107784,52,18.439088914585774,123,47.634021455258214,222,69.31089380465383,70,29.732137494637012,115,38.013155617496423]
[null,"With vision difficulty",45,45.177427992306072,0,15.556349186104045,27,27.202941017470888,28,34.539832078341085,7,13.038404810405298,0,15.556349186104045,20,27.313000567495326,228,94.175368329515976,15,11.401754250991379,7,14.866068747318506,17,22.825424421026653,30,25.495097567963924,7,15.556349186104045,3,11.704699910719626,24,28.42534080710379,0,22.627416997969522,12,24.839484696748443,13,22.825424421026653,24,25.495097567963924,36,46.324939287601879,0,22.627416997969522,18,21.400934559032695,3,11.704699910719626,0,15.556349186104045,6,14.212670403551895,0,15.556349186104045,0,15.556349186104045]
[null,"With no vision difficulty",203,75.073297516493838,150,66.037867924396224,220,74.330343736592525,325,94.111635837445732,96,34.655446902326915,123,41.773197148410844,52,28.301943396169811,2474,254.09643838511394,28,14.212670403551895,48,30.528675044947494,134,58.258046654518033,460,102.90286682109493,156,66.887966032762577,34,18.681541692269406,574,127.3184982632139,336,88.865066252155572,188,62.128898268036266,183,67.208630398186216,857,138.2931668593933,224,77.006493232713822,393,106.82696288858914,161,74.303431953039691,49,17.804493814764857,123,47.634021455258214,216,70.035705179572517,70,29.732137494637012,115,38.013155617496423]
[]
[]
[]
[]
["B18103. SEX BY AGE BY VISION DIFFICULTY\n\n\n-Calculated"]
["Universe:  Civilian non-institutionalized population"]
["Data Set:  2008-2012 American Community Survey 5-Year Estimates"]
[]
[]
[null,null,"Allenstown",null,"Andover",null,"Boscawen",null,"Bow",null,"Bradford",null,"Canterbury",null,"Chichester",null,"Concord",null,"Danbury",null,"Dunbarton",null,"Epsom",null,"Franklin",null,"Henniker",null,"Hill",null,"Hooksett",null,"Hopkinton",null,"Loudon",null,"Newbury",null,"New London",null,"Northfield",null,"Pembroke",null,"Pittsfield",null,"Salisbury",null,"Sutton",null,"Warner",null,"Webster",null,"Wilmot"]
[null,null,"Estimate","Margin Of Error","Estimate","Margin Of Error","Estimate","Margin Of Error","Estimate","Margin Of Error","Estimate","Margin Of Error","Estimate","Margin Of Error","Estimate","Margin Of Error","Estimate","Margin Of Error","Estimate","Margin Of Error","Estimate","Margin Of Error","Estimate","Margin Of Error","Estimate","Margin Of Error","Estimate","Margin Of Error","Estimate","Margin Of Error","Estimate","Margin Of Error","Estimate","Margin Of Error","Estimate","Margin Of Error","Estimate","Margin Of Error","Estimate","Margin Of Error","Estimate","Margin Of Error","Estimate","Margin Of Error","Estimate","Margin Of Error","Estimate","Margin Of Error","Estimate","Margin Of Error","Estimate","Margin Of Error","Estimate","Margin Of Error","Estimate"]
[null,"Total",4336,43,2496,235,3507,201,7571,34,1466,204,2419,143,2529,19,40312,334,1218,225,2756,18,4468,87,8376,74,4800,54,1210,201,13469,37,5608,16,5235,76,2103,252,4358,53,4795,74,7132,28,4088,53,1286,173,1794,251,2831,24,1749,161,1390,196]
[null,"Under 5 years:",223,99.488692824863264,126,50.537115073973112,220,82.800966177937809,209,78.10249675906654,51,23.259406699226016,147,55.865910893853687,95,44.77722635447622,2200,280.7294070809113,33,28.231188426986208,86,36.796738985948195,229,92.913938674452936,459,144.81022063376605,285,99.005050376230813,63,33.105890714493697,706,195.34584715319647,265,102.92715870944851,248,104.0096149401583,121,65.36818798161687,119,70.213958726167832,391,145.7737973711325,510,145.90750494748377,329,90.520715861066847,65,34.409301068170507,121,62.032249677083293,154,60.141499815019579,64,30,36,24.207436873820409]
[null,"With vision difficulty",0,15.556349186104045,0,15.556349186104045,0,15.556349186104045,0,22.627416997969522,0,15.556349186104045,0,15.556349186104045,0,15.556349186104045,17,35.383612025908263,0,15.556349186104045,0,15.556349186104045,0,15.556349186104045,0,22.627416997969522,0,15.556349186104045,0,15.556349186104045,9,23.430749027719962,0,22.627416997969522,0,22.627416997969522,0,15.556349186104045,0,15.556349186104045,0,15.556349186104045,0,22.627416997969522,0,15.556349186104045,3,12.083045973594572,0,15.556349186104045,0,15.556349186104045,0,15.556349186104045,0,15.556349186104045]
[null,"With no vision difficulty",223,99.488692824863264,126,50.537115073973112,220,82.800966177937809,209,78.10249675906654,51,23.259406699226016,147,55.865910893853687,95,44.77722635447622,2183,277.24357521861532,33,28.231188426986208,86,36.796738985948195,229,92.913938674452936,459,144.81022063376605,285,99.005050376230813,63,33.105890714493697,697,196.82479518597245,265,102.92715870944851,248,104.0096149401583,121,65.36818798161687,119,70.213958726167832,391,145.7737973711325,510,145.90750494748377,329,90.520715861066847,62,33.837848631377263,121,62.032249677083293,154,60.141499815019579,64,30,36,24.207436873820409]
[null,"5 to 17 years:",698,172.7917822120022,298,79.05694150420949,580,206.64946164943183,1791,192.4162155328911,203,73.23933369440222,395,96.607453128627711,447,84.876380695691779,6260,422.40383520986171,249,76.380625815713245,535,82.134036793524274,754,168.21712160181556,1558,304.90162347878703,798,185.69868066305693,275,73.23933369440222,2087,263.88254963146011,963,192.4162155328911,1112,221.00904958847272,307,84.811555816409836,547,112.4144118874444,932,207.20038610002638,1195,218.55205329623422,538,130.09611831257686,246,70.178344238091,356,90.520715861066847,411,99.724620831567975,317,68.8839603971781,259,73.661387442811588]
[null,"With vision difficulty",24,42.449970553582247,0,15.556349186104045,0,15.556349186104045,0,22.627416997969522,0,15.556349186104045,0,15.556349186104045,0,15.556349186104045,30,29,0,15.556349186104045,0,15.556349186104045,0,15.556349186104045,0,22.627416997969522,14,26.40075756488817,0,15.556349186104045,0,25.45584412271571,0,22.627416997969522,20,28.844410203711913,0,15.556349186104045,0,15.556349186104045,0,15.556349186104045,23,39.395431207184416,5,14.212670403551895,0,15.556349186104045,0,15.556349186104045,0,15.556349186104045,3,11.704699910719626,0,15.556349186104045]
[null,"With no vision difficulty",674,171.82840277439584,298,79.05694150420949,580,206.64946164943183,1791,192.4162155328911,203,73.23933369440222,395,96.607453128627711,447,84.876380695691779,6230,427.375712927162,249,76.380625815713245,535,82.134036793524274,754,168.21712160181556,1558,304.90162347878703,784,183.44754018519845,275,73.23933369440222,2087,263.88254963146011,963,192.4162155328911,1092,219.40145851839728,307,84.811555816409836,547,112.4144118874444,932,207.20038610002638,1172,209.48030933717851,533,130.09611831257686,246,70.178344238091,356,90.520715861066847,411,99.724620831567975,314,68.8839603971781,259,73.661387442811588]
[null,"18 to 34 years:",1008,159.17600321656528,413,110.27692415006868,672,167.62159765376299,776,158.61904047118682,213,56.080299571239813,332,69.426219830839131,336,67.357256476195644,9580,403.78831087588458,239,70.767224051816527,349,94.175368329515976,745,152.64337522473747,1662,247.4914139924858,1422,221.77466041006579,171,44.553338819890925,3029,310.48510431259018,786,184.1738309315414,866,186.93581786270923,276,71.847059786744225,1146,197.85348114198041,834,147.8681845428556,1497,243.47895186237352,844,157.76247969653622,211,43.185645763378368,234,65.76473218982953,451,92.617492948146676,241,56.400354608814297,171,63.007936008093459]
[null,"With vision difficulty",0,15.556349186104045,0,15.556349186104045,0,15.556349186104045,0,22.627416997969522,0,15.556349186104045,0,15.556349186104045,0,15.556349186104045,137,88.76936408468859,0,15.556349186104045,0,15.556349186104045,0,15.556349186104045,19,21.931712199461309,0,15.556349186104045,2,11.401754250991379,12,26.90724809414742,0,22.627416997969522,0,22.627416997969522,17,25.495097567963924,0,15.556349186104045,5,14.212670403551895,11,25.612496949731394,0,15.556349186104045,0,15.556349186104045,0,15.556349186104045,12,19.416487838947599,10,20.248456731316587,0,15.556349186104045]
[null,"With no vision difficulty",1008,159.17600321656528,413,110.27692415006868,672,167.62159765376299,776,158.61904047118682,213,56.080299571239813,332,69.426219830839131,336,67.357256476195644,9443,409.4887055829501,239,70.767224051816527,349,94.175368329515976,745,152.64337522473747,1643,248.90560459740556,1422,221.77466041006579,169,43.863424398922618,3017,311.87337173923652,786,184.1738309315414,866,186.93581786270923,259,71.028163428319047,1146,197.85348114198041,829,147.8681845428556,1486,244.72433471152803,844,157.76247969653622,211,43.185645763378368,234,65.76473218982953,439,92.005434622091755,231,55.21775076911409,171,63.007936008093459]
[null,"35 to 64 years:",1926,185.26737435393204,1179,140.60227594174995,1557,164.20109622045769,3790,142.89856542317,820,91.967385523347346,1237,82.024386617639507,1415,68.593002558570063,16930,419.56167603821967,547,81.467785044151043,1562,75.073297516493838,2159,118.1397477566293,3710,247.22661669003199,2026,185.53975315279473,588,74.411020689142546,5898,262.68041419184647,2609,152.02960238058901,2431,149.91330828182001,984,119.67038062946069,1162,134.23859355639868,2059,194.60986614249546,3168,233.96153530014288,1953,168.60011862392031,610,72.862884927787476,733,92.097774131626011,1394,105.38026380684383,923,74.518454090245328,664,89.10667763978185]
[null,"With vision difficulty",73,74.330343736592525,19,19.416487838947599,46,41.146081222881968,127,85.445889310135925,21,18.384776310850235,19,31.016124838541646,18,17.691806012954132,360,172.15400082484288,0,15.556349186104045,14,15,32,31.016124838541646,132,51.224993899462788,28,45.354161881794269,16,11.313708498984761,7,20.591260281974002,25,28.319604517012593,0,22.627416997969522,6,13.601470508735444,0,15.556349186104045,0,15.556349186104045,41,38.013155617496423,10,19.416487838947599,25,24.596747752497688,0,15.556349186104045,47,35.468295701936398,6,13.038404810405298,4,13.601470508735444]
[null,"With no vision difficulty",1853,181.1573901335521,1160,138.80922159568507,1511,165.51737068960466,3663,153.26447729333762,799,91.285267157411553,1218,83.450584180100265,1397,69.31089380465383,16570,432.8325311249144,547,81.467785044151043,1548,77.987178433380961,2127,121.62236636408618,3578,246.10770000144245,1998,181.68654325513489,572,74.411020689142546,5891,264.16850682850139,2584,154.87091398968369,2431,149.91330828182001,978,119.67038062946069,1162,134.23859355639868,2059,194.60986614249546,3127,239.8207664069148,1943,168.60011862392031,585,70.837842993699354,733,92.097774131626011,1347,99.247166206396045,917,74.518454090245328,660,89.805345052507874]
[null,"65 to 74 years:",233,69.202601107183824,330,79.208585393251411,231,87.321245982864909,652,111.73182178770737,76,25.80697580112788,185,36.069377593742864,164,41.725292090050132,2640,197.29419656948858,107,30.232432915661949,169,40.36087214122113,430,108.22661410207751,497,110.34491379306978,106,49.929950931279713,76,23.345235059857504,1151,143.83671297690307,649,137.55726080436466,378,89.10667763978185,219,57.314919523628397,503,105.11898020814318,319,106.21675950620975,369,102.7277956543408,245,72.945184899347538,102,30,227,58.694122363316758,199,52.630789467763066,134,29.832867780352597,145,48.918299234540036]
[null,"With vision difficulty",9,17.804493814764857,11,12.041594578792296,63,68.8839603971781,9,21.2602916254693,3,12.083045973594572,0,15.556349186104045,2,11.704699910719626,101,53.488316481265329,14,19.416487838947599,0,15.556349186104045,0,15.556349186104045,44,34.058772731852805,15,21.095023109728988,5,13.601470508735444,8,22.203603311174518,0,22.627416997969522,10,21.931712199461309,0,15.556349186104045,8,17.029386365926403,0,15.556349186104045,0,22.627416997969522,42,33.837848631377263,0,15.556349186104045,0,15.556349186104045,0,15.556349186104045,3,11.704699910719626,0,15.556349186104045]
[null,"With no vision difficulty",224,69.202601107183824,319,78.492037812761623,168,63.702433234531945,643,112.44998888394787,73,25.80697580112788,185,36.069377593742864,162,41.725292090050132,2539,202.27703774773843,93,23.345235059857504,169,40.36087214122113,430,108.22661410207751,453,109.87720418721983,91,49.091750834534309,71,22.022715545545239,1143,143.17821063276352,649,137.55726080436466,368,94.260277954183863,219,57.314919523628397,495,104.29285689825551,319,106.21675950620975,369,102.7277956543408,203,71.28113354878694,102,30,227,58.694122363316758,199,52.630789467763066,131,29.068883707497267,145,48.918299234540036]
[null,"75 years and over:",248,83.600239234107462,150,66.037867924396224,247,76.576758876306585,353,97,103,34.655446902326915,123,41.773197148410844,72,36.878177829171548,2702,254.42091109026396,43,16.278820596099706,55,32.202484376209235,151,60.605280298007038,490,109.55363982999378,163,66.887966032762577,37,17.720045146669349,598,129.00387591076478,336,88.865066252155572,200,64.660652641308843,196,69.426219830839131,881,135.28118864054971,260,91.35097153287424,393,106.82696288858914,179,75.663729752107784,52,18.439088914585774,123,47.634021455258214,222,69.31089380465383,70,29.732137494637012,115,38.013155617496423]
[null,"With vision difficulty",45,45.177427992306072,0,15.556349186104045,27,27.202941017470888,28,34.539832078341085,7,13.038404810405298,0,15.556349186104045,20,27.313000567495326,228,94.175368329515976,15,11.401754250991379,7,14.866068747318506,17,22.825424421026653,30,25.495097567963924,7,15.556349186104045,3,11.704699910719626,24,28.42534080710379,0,22.627416997969522,12,24.839484696748443,13,22.825424421026653,24,25.495097567963924,36,46.324939287601879,0,22.627416997969522,18,21.400934559032695,3,11.704699910719626,0,15.556349186104045,6,14.212670403551895,0,15.556349186104045,0,15.556349186104045]
[null,"With no vision difficulty",203,75.073297516493838,150,66.037867924396224,220,74.330343736592525,325,94.111635837445732,96,34.655446902326915,123,41.773197148410844,52,28.301943396169811,2474,254.09643838511394,28,14.212670403551895,48,30.528675044947494,134,58.258046654518033,460,102.90286682109493,156,66.887966032762577,34,18.681541692269406,574,127.3184982632139,336,88.865066252155572,188,62.128898268036266,183,67.208630398186216,857,138.2931668593933,224,77.006493232713822,393,106.82696288858914,161,74.303431953039691,49,17.804493814764857,123,47.634021455258214,216,70.035705179572517,70,29.732137494637012,115,38.013155617496423]

{"sheet":"ACS_Table_B18104","index":31,"n_rows":152,"n_cols":56,"rows_kept":152,"cut":false,"hidden":true,"merged":[]}
["B18104. SEX BY AGE BY COGNITIVE DIFFICULTY\n\n"]
["Universe:  Civilian non-institutionalized population 5 years and over"]
["Data Set: 2018-2022 American Community Survey 5-Year Estimates"]
[]
[null,null,"Allenstown",null,"Andover",null,"Boscawen",null,"Bow",null,"Bradford",null,"Canterbury",null,"Chichester",null,"Concord",null,"Danbury",null,"Dunbarton",null,"Epsom",null,"Franklin",null,"Henniker",null,"Hill",null,"Hooksett",null,"Hopkinton",null,"Loudon",null,"Newbury",null,"New London",null,"Northfield",null,"Pembroke",null,"Pittsfield",null,"Salisbury",null,"Sutton",null,"Warner",null,"Webster",null,"Wilmot"]
[null,null,"Estimate","Margin Of Error","Estimate","Margin Of Error","Estimate","Margin Of Error","Estimate","Margin Of Error","Estimate","Margin Of Error","Estimate","Margin Of Error","Estimate","Margin Of Error","Estimate","Margin Of Error","Estimate","Margin Of Error","Estimate","Margin Of Error","Estimate","Margin Of Error","Estimate","Margin Of Error","Estimate","Margin Of Error","Estimate","Margin Of Error","Estimate","Margin Of Error","Estimate","Margin Of Error","Estimate","Margin Of Error","Estimate","Margin Of Error","Estimate","Margin Of Error","Estimate","Margin Of Error","Estimate","Margin Of Error","Estimate","Margin Of Error","Estimate","Margin Of Error","Estimate","Margin Of Error","Estimate","Margin Of Error","Estimate","Margin Of Error","Estimate","Margin Of Error"]
[null,"Total:",4411,105,2091,305,3297,105,7606,157,1485,159,2202,239,2569,55,39787,356,1421,242,2793,112,4498,126,8291,116,5778,239,797,172,14056,238,5736,114,5488,105,1785,246,4103,108,4674,92,6937,134,3963,92,1534,358,2194,449,2712,62,1929,241,1392,189]
[null,"Male:",2271,160,1025,161,1648,137,3738,200,794,109,1095,151,1337,105,20064,593,711,103,1415,93,2090,129,3671,328,3050,238,466,113,6666,278,2679,219,2727,192,902,141,1848,142,2218,161,3706,258,1865,178,867,262,1121,236,1277,94,914,99,667,104]
[null,"5 to 17  years:",417,104,130,70,332,99,854,143,151,53,102,43,319,84,3060,322,96,44,256,43,283,94,450,148,441,131,40,24,930,241,411,146,314,140,122,69,214,97,372,180,733,192,225,80,187,161,121,53,217,65,110,32,82,39]
[null,"With cognitive difficulty",24,29,5,9,24,27,10,16,3,5,0,12,0,12,156,93,12,12,5,8,35,36,157,89,16,20,2,5,100,66,1,13,19,30,6,8,0,12,44,49,45,47,48,54,0,12,5,7,15,21,11,12,3,4]
[null,"With no cognitive difficulty",393,105,125,70,308,94,844,147,148,53,102,43,319,84,2904,324,84,42,251,43,248,106,293,115,425,128,38,24,830,229,410,150,295,131,116,70,214,97,328,172,688,194,177,73,187,161,116,53,202,64,99,31,79,38]
[null,"18 to 34  years:",580,127,272,134,345,112,625,165,166,59,222,64,255,58,5659,376,109,44,237,70,388,133,585,147,1092,273,128,75,1996,319,535,214,506,196,164,47,553,113,461,127,676,206,375,111,157,64,234,112,336,91,123,49,157,63]
[null,"With cognitive difficulty",92,71,4,7,0,12,38,38,2,4,26,26,32,30,762,261,0,12,0,12,43,53,20,28,60,56,4,6,39,33,0,17,52,63,6,9,30,34,62,59,81,69,103,77,10,11,24,15,25,28,11,17,0,12]
[null,"With no cognitive difficulty",488,121,268,135,345,112,587,164,164,59,196,61,223,58,4897,360,109,44,237,70,345,124,565,147,1032,277,124,74,1957,320,535,214,454,164,158,46,523,107,399,114,595,200,272,99,147,64,210,110,311,81,112,46,157,63]
[null,"35 to 64  years:",984,142,389,120,653,119,1649,131,287,51,518,104,588,66,8065,465,331,68,665,81,991,161,1919,237,904,214,195,48,2732,227,1273,172,1319,192,445,85,438,84,1000,151,1873,235,845,178,299,105,505,112,510,74,523,86,303,63]
[null,"With cognitive difficulty",60,51,34,90,21,24,65,39,11,16,28,27,8,10,658,229,35,27,0,12,21,25,137,81,0,17,22,15,41,49,15,21,14,23,5,8,4,11,98,50,125,100,28,33,0,12,24,23,4,7,12,13,0,12]
[null,"With no cognitive difficulty",924,135,355,74,632,120,1584,138,276,47,490,105,580,69,7407,462,296,66,665,81,970,160,1782,226,904,214,173,44,2691,238,1258,176,1305,191,440,84,434,82,902,152,1748,226,817,171,299,105,481,116,506,74,511,87,303,63]
[null,"65 to 74  years:",252,120,107,45,229,104,397,71,158,52,164,42,107,29,2012,301,97,43,188,76,305,85,460,120,501,264,61,25,624,139,356,97,280,127,98,34,333,84,246,76,262,78,299,97,181,89,163,86,169,48,120,33,85,25]
[null,"With cognitive difficulty",12,18,0,12,0,12,0,17,0,12,10,11,5,7,120,75,14,22,0,12,8,12,35,32,0,17,0,12,65,57,0,17,14,23,4,7,14,22,6,10,0,17,0,12,55,82,0,12,7,8,0,12,3,4]
[null,"With no cognitive difficulty",240,117,107,45,229,104,397,71,158,52,154,41,102,27,1892,305,83,32,188,76,297,84,425,119,501,264,61,25,559,134,356,97,266,126,94,34,319,85,240,74,262,78,299,97,126,37,163,86,162,47,120,33,82,24]
[null,"75  years and Older:",38,33,127,91,89,56,213,71,32,16,89,32,68,26,1268,203,78,68,69,21,123,73,257,90,112,64,42,24,384,114,104,65,308,123,73,31,310,112,139,76,162,65,121,68,43,30,98,56,45,26,38,21,40,22]
[null,"With cognitive difficulty",3,5,0,12,0,12,4,8,2,5,4,6,4,6,131,75,0,12,16,10,47,49,14,15,10,17,0,12,84,54,0,17,70,80,10,10,0,12,0,12,0,17,14,22,0,12,0,12,5,7,8,10,0,12]
[null,"With no cognitive difficulty",35,33,127,91,89,56,209,71,30,15,85,32,64,25,1137,205,78,68,53,20,76,48,243,87,102,59,42,24,300,101,104,65,238,122,63,30,310,112,139,76,162,65,107,66,43,30,98,56,40,25,30,17,40,22]
[null,"Female:",2140,157,1066,177,1649,127,3868,187,691,84,1107,151,1232,101,19723,536,710,158,1378,112,2408,150,4620,340,2728,242,331,71,7390,313,3057,242,2761,209,883,126,2255,135,2456,161,3231,219,2098,158,667,116,1073,244,1435,94,1015,174,725,110]
[null,"5 to 17  years:",299,85,145,60,220,105,606,139,118,50,170,75,101,32,2630,296,111,53,294,92,541,157,633,167,255,87,32,23,1275,285,440,187,370,190,148,52,139,63,373,89,620,142,377,158,80,37,243,89,155,60,196,108,81,35]
[null,"With cognitive difficulty",6,10,0,12,0,12,11,17,12,12,0,12,10,16,142,93,0,12,5,9,31,29,18,29,62,69,0,12,15,22,0,17,81,95,0,12,0,12,18,25,26,35,0,12,0,12,0,12,14,18,0,12,0,12]
[null,"With no cognitive difficulty",293,86,145,60,220,105,595,138,106,43,170,75,91,31,2488,298,111,53,289,90,510,146,615,168,193,91,32,23,1260,284,440,187,289,114,148,52,139,63,355,85,594,145,377,158,80,37,243,89,141,55,196,108,81,35]
[null,"18 to 34  years:",611,163,191,72,360,147,717,161,98,40,223,82,183,66,4973,416,72,34,221,78,453,111,921,244,944,171,39,21,1881,281,738,331,291,116,116,49,658,109,462,159,763,203,328,110,59,29,123,95,375,114,173,75,169,66]
[null,"With cognitive difficulty",16,20,7,10,57,55,88,69,9,12,0,12,5,8,532,194,3,5,10,14,9,15,154,122,138,135,0,12,58,53,0,17,0,17,4,7,52,73,75,61,124,97,46,51,5,6,0,12,29,27,0,12,0,12]
[null,"With no cognitive difficulty",595,163,184,72,303,130,629,159,89,40,223,82,178,66,4441,368,69,36,211,77,444,111,767,226,806,171,39,21,1823,274,738,331,291,116,112,48,606,126,387,160,639,218,282,98,54,28,123,95,346,111,173,75,169,66]
[null,"35 to 64  years:",945,147,372,75,754,141,1799,133,310,53,475,64,681,86,8012,417,386,121,619,70,956,124,1957,286,936,209,199,45,2914,241,1336,128,1433,195,393,84,598,95,1212,148,1398,206,886,152,349,99,511,115,528,74,498,85,303,81]
[null,"With cognitive difficulty",101,69,6,8,26,30,7,10,5,5,0,12,30,22,526,159,5,10,6,9,41,48,121,88,56,56,13,11,156,95,47,61,50,63,6,8,25,34,158,91,13,25,35,47,8,13,0,12,33,20,17,28,0,12]
[null,"With no cognitive difficulty",844,141,366,75,728,141,1792,134,305,52,475,64,651,85,7486,391,381,121,613,68,915,125,1836,288,880,198,186,46,2758,259,1289,123,1383,200,387,84,573,96,1054,149,1385,207,851,147,341,99,511,115,495,72,481,81,303,81]
[null,"65 to 74  years:",180,69,146,51,220,69,473,87,117,31,140,35,173,51,2410,278,105,48,153,67,363,102,536,131,512,262,48,19,772,152,368,105,581,140,97,27,331,107,278,116,275,114,322,130,122,36,96,36,217,63,105,32,80,31]
[null,"With cognitive difficulty",14,16,8,12,12,18,0,17,6,6,0,12,0,12,54,38,4,5,0,12,9,14,36,34,0,17,7,9,63,97,36,40,17,28,0,12,11,15,58,90,24,27,87,81,3,4,8,11,0,12,0,12,0,12]
[null,"With no cognitive difficulty",166,67,138,49,208,65,473,87,111,29,140,35,173,51,2356,279,101,48,153,67,354,102,500,132,512,262,41,17,709,136,332,96,564,139,97,27,320,102,220,68,251,111,235,138,119,36,88,35,217,63,105,32,80,31]
[null,"75  years and Older:",105,63,212,126,95,48,273,97,48,25,99,47,94,37,1698,239,36,22,91,30,95,59,573,254,81,58,13,15,548,163,175,82,86,90,129,49,529,154,131,53,175,78,185,87,57,35,100,76,160,58,43,20,92,34]
[null,"With cognitive difficulty",0,12,17,21,7,11,13,16,0,12,0,12,8,10,173,137,9,14,16,13,10,15,72,64,0,17,0,12,56,53,0,17,14,22,25,20,9,14,9,13,16,25,0,12,8,7,0,12,0,12,4,6,4,7]
[null,"With no cognitive difficulty",105,63,195,128,88,48,260,94,48,25,99,47,86,35,1525,243,27,17,75,28,85,56,501,244,81,58,13,15,492,160,175,82,72,86,104,44,520,154,122,52,159,74,185,87,49,34,100,76,160,58,39,18,88,32]
[]
[]
["B18104. SEX BY AGE BY COGNITIVE DIFFICULTY\n\n-Calculated"]
["Universe:  Civilian non-institutionalized population 5 years and over"]
["Data Set: 2013-2017 American Community Survey 5-Year Estimates"]
[]
[]
[null,null,"Allenstown",null,"Andover",null,"Boscawen",null,"Bow",null,"Bradford",null,"Canterbury",null,"Chichester",null,"Concord",null,"Danbury",null,"Dunbarton",null,"Epsom",null,"Franklin",null,"Henniker",null,"Hill",null,"Hooksett",null,"Hopkinton",null,"Loudon",null,"Newbury",null,"New London",null,"Northfield",null,"Pembroke",null,"Pittsfield",null,"Salisbury",null,"Sutton",null,"Warner",null,"Webster",null,"Wilmot"]
[null,null,"Estimate","Margin Of Error","Estimate","Margin Of Error","Estimate","Margin Of Error","Estimate","Margin Of Error","Estimate","Margin Of Error","Estimate","Margin Of Error","Estimate","Margin Of Error","Estimate","Margin Of Error","Estimate","Margin Of Error","Estimate","Margin Of Error","Estimate","Margin Of Error","Estimate","Margin Of Error","Estimate","Margin Of Error","Estimate","Margin Of Error","Estimate","Margin Of Error","Estimate","Margin Of Error","Estimate","Margin Of Error","Estimate","Margin Of Error","Estimate","Margin Of Error","Estimate","Margin Of Error","Estimate","Margin Of Error","Estimate","Margin Of Error","Estimate","Margin Of Error","Estimate","Margin Of Error","Estimate","Margin Of Error","Estimate","Margin Of Error","Estimate"]
[null,"Total:",4055,78,2568,285,3125,214,7454,85,1589,189,2066,178,2430,69,38156,373,1184,143,2667,66,4331,144,7772,204,4464,129,977,140,13217,184,5448,88,5123,133,1820,209,4425,90,4478,141,6894,108,3860,98,1265,164,1855,264,2729,85,1819,146,1452,167]
[null,"5 to 17  years:",572,126.82271089990152,401,101.31633629380802,519,135.28118864054971,1551,191.04973174542801,281,59.413803110051795,253,73.878278269055514,388,70.455659815234142,6145,377.58442764499705,161,52.630789467763066,487,60.827625302982199,751,171.11984104714449,1283,258.82233288493478,733,178.19652072922187,148,50.447993022517757,1981,253.07113624433742,1040,196.70282153543198,723,238.30442715149042,239,57.314919523628397,426,111.07204868912791,775,152.80052355931247,1368,238.21418933388497,693,129.40247292845683,204,58.898217290508889,366,108.70602559196064,463,88.0056816347672,301,64.637450444769243,208,60.827625302982199]
[null,"With cognitive difficulty",163,83.952367447261423,5,13.601470508735444,47,60.207972893961475,39,33.61547262794322,10,9.4339811320566032,7,9.4868329805051381,10,17.804493814764857,299,106.88779163215975,12,18.601075237738275,4,12.529964086141668,8,17.804493814764857,110,79.762146410437069,29,34.785054261852174,10,17.804493814764857,94,60.745370193949761,72,57.428216061444921,0,21.213203435596427,0,15.556349186104045,27,28.231188426986208,29,26.832815729997478,170,112.80514172678478,55,37.443290453698111,0,15.556349186104045,0,15.556349186104045,20,15.811388300841896,7,13.038404810405298,11,20.248456731316587]
[null,"With no cognitive difficulty",409,102.6498904042279,396,100.00499987500625,472,142.90206436577463,1512,196.82479518597245,271,58.796258384356399,246,72.006944109578768,378,72.111025509279784,5846,366.1912068851463,149,48.020828814171878,483,60.827625302982199,743,169.71151993898351,1173,261.60275227909972,704,178.19652072922187,138,45.967379738244816,1887,239.43683927081898,968,196.4306493396588,723,238.30442715149042,239,57.314919523628397,399,107.48023074035522,746,150.20652449211386,1198,244.1679749680535,638,131.48764200486676,204,58.898217290508889,366,108.70602559196064,443,89.643739324059879,294,64.637450444769243,197,52.801515129776341]
[null,"18 to 34  years:",962,147.00340132119393,339,84.864598037108507,847,148.22280526288793,985,154.62535367784935,207,48.877397639399746,343,70.434366611761334,507,100.26464980241042,9723,429.1037170661657,221,62.481997407253232,385,66.468037431535464,593,129.46814279968643,1718,237.86130412490385,1474,221.96396103872357,137,36.069377593742864,3345,336.34060117684277,948,208.00240383226344,806,218.63439802556229,221,66.708320320631671,1477,219.27608168699112,912,146.49232061783991,1327,212.15088969881791,745,148.49242404917499,215,55.865910893853687,279,79.93122043357026,528,109.07795377618706,292,67.178865724273734,210,72.945184899347538]
[null,"With cognitive difficulty",52,37.802116342871599,39,35.735136770411273,29,27.784887978899608,37,34.058772731852805,9,8.6023252670426267,7,15.556349186104045,68,48.104053883222775,639,205.7692882818036,4,12.083045973594572,24,17.4928556845359,6,14.212670403551895,50,50.960769224963627,3,13.038404810405298,7,15.556349186104045,151,74.027022093286988,19,27.459060435491963,55,63.631753079732135,6,13.601470508735444,40,32.015621187164243,80,59.135437767890075,75,78.339006886735547,106,69.892775020026207,12,17.804493814764857,2,11.704699910719626,31,23.086792761230392,16,23.706539182259394,6,6.4031242374328485]
[null,"With no cognitive difficulty",910,143.40502083260543,300,76.216796049164913,818,146.03081866510234,948,156.02884348735012,198,48.020828814171878,336,69.202601107183824,439,101.41498903022176,9084,432.26149493101974,217,61.220911460055866,361,66.468037431535464,587,129.46814279968643,1668,237.86130412490385,1471,222.81157959136684,130,35.355339059327378,3194,330.49205739321485,929,208.60009587725506,751,221.33458834985552,215,64.443773942872099,1437,217.11057090800531,832,144.04513181638595,1252,223.80795338861395,639,149.24141516348604,203,55.172456896534889,277,79.93122043357026,497,108.22661410207751,276,64.443773942872099,204,72.945184899347538]
[null,"35 to 64  years:",1947,153.63918770938616,1238,148.44864431849825,1295,139.60300856356929,3673,134.35028842544403,756,91.285267157411553,1076,86.313382508160345,1156,74.330343736592525,16401,475.3861588224882,647,75.927597090912869,1459,65.299310869258036,2270,193.07252523339514,3656,271.82715096178305,1781,182.58422713914803,489,55.154328932550705,5890,277.07760645710795,2420,160.51479682571323,2747,217.75444886385216,884,107.62899237658968,1061,124.40257232067189,2209,139.17614738165446,3256,236.88182707839789,1904,183.86136081297778,636,75.822160349069449,788,118.10588469674151,1257,96.400207468656419,924,82.134036793524274,687,80.65977932030313]
[null,"With cognitive difficulty",184,85.603738236130781,60,93.434469014384618,60,50.328918128646478,78,42.201895692018383,10,8.6023252670426267,29,19.849433241279208,27,18.867962264113206,1022,243.90571949013415,20,12.206555615733702,12,11.661903789690601,95,72.124891681027847,349,110.34491379306978,41,32.249030993194197,10,14.212670403551895,107,67.067130548428864,21,25,108,93.171884171138231,7,14.212670403551895,80,39.05124837953327,29,31.827660925679098,137,90.603531939985658,171,89.308454247064432,19,12.083045973594572,19,24.738633753705962,55,37,45,22.561028345356956,7,6.4031242374328485]
[null,"With no cognitive difficulty",1763,156.40012787718558,1178,120.20815280171308,1235,138.77319625922004,3595,133.30416347586447,746,92.021736562618727,1047,86.977008456258133,1129,79.208585393251411,15379,504.94554161810362,627,76.694197955256044,1447,66.068146636635717,2175,195.16659550240661,3307,264.49196585151691,1740,178.75122377203465,479,54.451813560247928,5783,279.40114530903412,2399,161.92899678562824,2639,217.40745157422734,877,106.96261028976434,981,122.00409829181969,2180,143.28293687665675,3119,251.73398658107331,1733,158.25612152457168,617,76.485292703891773,769,115.96551211459379,1202,85.0411665018772,879,79.906195003891909,680,79.981247802219244]
[null,"65 to 74  years:",305,91.285267157411553,362,76.419892698171196,266,64.350602172784676,712,101.21264743103995,231,53.150729063673246,291,48.795491595023407,300,48.918299234540036,3200,231.24878378058554,88,29.154759474226502,255,39.824615503479755,511,84.202137740083529,681,141.99295757184581,274,83.240615086627031,141,36.796738985948195,1245,170.44940598312451,701,134.31678971744373,521,126.73200069437868,371,72.47068372797375,610,112.43220179290273,371,75.166481891864535,547,127.80062597655773,325,83.815273071201048,122,34.205262752974143,261,65.855903304107827,323,82.462112512353215,212,43.266615305567875,179,43.139309220245984]
[null,"With cognitive difficulty",41,48.764741360946438,6,13.601470508735444,19,22.825424421026653,26,27.018512172212592,6,12.529964086141668,0,15.556349186104045,0,15.556349186104045,209,114.61239025515522,3,11.704699910719626,13,15.556349186104045,9,17.804493814764857,47,35.693136595149497,0,15.556349186104045,6,12.529964086141668,91,58.051701094799967,0,21.213203435596427,56,59.808026217222718,0,15.556349186104045,16,29.154759474226502,0,15.556349186104045,27,35.341194094144583,11,19.416487838947599,0,15.556349186104045,0,15.556349186104045,21,36.687872655688281,3,12.083045973594572,0,15.556349186104045]
[null,"With no cognitive difficulty",264,85.492689745966004,356,76.419892698171196,247,62.289646009589745,686,101.01980003939822,225,52.40229002629561,291,48.795491595023407,300,48.918299234540036,2991,220.09543384632039,85,29.154759474226502,242,41.400483088968905,502,84.202137740083529,634,136.69308687713507,274,83.240615086627031,135,36.069377593742864,1154,172.00290695217916,701,134.31678971744373,465,118.44407963254221,371,72.47068372797375,594,114.56002793295748,371,75.166481891864535,520,127.00393694685216,314,78.243210568074218,122,34.205262752974143,261,65.855903304107827,302,72.945184899347538,209,43.266615305567875,179,43.139309220245984]
[null,"75  years and Older:",269,92.439169187092972,228,106.4377752492037,198,83.630138108220294,533,115.42096863222038,114,36.891733491393431,103,35.383612025908263,79,33.241540277189323,2687,255,67,25.942243542145693,81,35.341194094144583,206,67.801179930735714,434,117.64352935882194,202,70.604532432415411,62,33.941125496954278,756,151.81897114655993,339,114.0175425099138,326,116.50321883965266,105,37.483329627982627,851,146.50938536489735,211,70.724818840347695,396,102.34256201600583,193,64.140470843298303,88,30,161,49.040799340956916,158,47.801673610868477,90,31.400636936215164,168,49.578221024962161]
[null,"With cognitive difficulty",7,15.556349186104045,92,99.327740334712132,7,15.556349186104045,105,61.854668376768458,19,20.880613017821101,0,15.556349186104045,8,10.770329614269007,499,174.40183485273312,10,18.601075237738275,0,15.556349186104045,0,15.556349186104045,46,48.383881613611777,11,21.095023109728988,0,15.556349186104045,147,86.313382508160345,74,57.384666941614292,107,75.802374632988901,5,13.038404810405298,80,42.43819034784589,37,26.870057685088806,31,38.078865529319543,19,26.40075756488817,0,15.556349186104045,11,20.248456731316587,26,33.837848631377263,7,7.810249675906654,3,11.704699910719626]
[null,"With no cognitive difficulty",262,93.295230317524812,136,49.396356140913873,191,83.630138108220294,428,101.83319694480774,95,28.319604517012593,103,35.383612025908263,71,31.11269837220809,2188,229.24222996647018,57,22.472205054244231,81,35.341194094144583,206,67.801179930735714,388,111.64676439557037,191,67.675697262754525,62,33.941125496954278,609,128.89142717807107,265,100.12492197250393,219,94.810336989170125,100,36.796738985948195,771,141.53444810363305,174,66.528189513919585,365,99.864908751773257,174,60.745370193949761,88,30,150,49.040799340956916,132,41.012193308819754,83,30,165,49.578221024962161]
[]
[]
[]
[]
[]
[]
[]
[]
[]
[]
[]
[]
[]
[]
[]
[]
[]
[]
[]
[]
[]
[]
[]
[]
[]
[]
[]
[]
[]
[]
[]
[]
[]
[]
[]
["B18104. SEX BY AGE BY COGNITIVE DIFFICULTY\n\n-Calculated"]
["Universe:  Civilian non-institutionalized population 5 years and over"]
["Data Set:  2009-2013 American Community Survey 5-Year Estimates"]
[]
[]
[null,null,"Allenstown",null,"Andover",null,"Boscawen",null,"Bow",null,"Bradford",null,"Canterbury",null,"Chichester",null,"Concord",null,"Danbury",null,"Dunbarton",null,"Epsom",null,"Franklin",null,"Henniker",null,"Hill",null,"Hooksett",null,"Hopkinton",null,"Loudon",null,"Newbury",null,"New London",null,"Northfield",null,"Pembroke",null,"Pittsfield",null,"Salisbury",null,"Sutton",null,"Warner",null,"Webster",null,"Wilmot"]
[null,null,"Estimate","Margin Of Error","Estimate","Margin Of Error","Estimate","Margin Of Error","Estimate","Margin Of Error","Estimate","Margin Of Error","Estimate","Margin Of Error","Estimate","Margin Of Error","Estimate","Margin Of Error","Estimate","Margin Of Error","Estimate","Margin Of Error","Estimate","Margin Of Error","Estimate","Margin Of Error","Estimate","Margin Of Error","Estimate","Margin Of Error","Estimate","Margin Of Error","Estimate","Margin Of Error","Estimate","Margin Of Error","Estimate","Margin Of Error","Estimate","Margin Of Error","Estimate","Margin Of Error","Estimate","Margin Of Error","Estimate","Margin Of Error","Estimate","Margin Of Error","Estimate","Margin Of Error","Estimate","Margin Of Error","Estimate","Margin Of Error","Estimate","Margin Of Error"]
[null,"Total:",4066,89,2689,296,3217,228,7344,105,1631,182,2148,227,2427,76,38411,348,1164,151,2633,47,4353,127,7854,224,4459,156,912,124,13245,226,5359,106,5184,124,1853,201,4324,100,4416,120,6924,110,3796,144,1212,163,1838,249,2733,70,1789,177,1431,170]
[null,"5 to 17  years:",547,134.61797799699713,530,129.52991932368366,573,153.80832227158581,1521,166.87720036002523,316,71.589105316381762,268,87.658428003244509,439,80.802227692063042,6140,412.01213574359673,148,59.203040462462738,533,66.603303221386852,735,172.5688268488837,1216,215.67800073257357,636,171.11984104714449,82,33.421549934136806,2069,269.42902590478258,977,268.12683565805196,650,246.00203251192866,235,62.22539674441618,427,114.33722053644648,717,151.34397906755325,1216,231.01947969814148,733,141.48498153514387,187,52.430906915673319,330,104,456,86.833173384369644,267,58.258046654518033,179,65.436992595931542]
[null,"With cognitive difficulty",170,98.994949366116657,6,14.212670403551895,53,53.851648071345039,46,32.449961479175904,11,10.295630140987001,8,11.401754250991379,10,18.601075237738275,329,118.20744477400736,0,15.556349186104045,6,13.601470508735444,27,30.886890422961002,104,71.021123618258812,21,33.837848631377263,0,15.556349186104045,110,69.892775020026207,56,45,0,22.627416997969522,0,15.556349186104045,29,28.231188426986208,0,15.556349186104045,126,103.09219175087898,46,39.204591567825318,0,15.556349186104045,0,15.556349186104045,23,15.811388300841896,4,12.529964086141668,12,21.95449840010015]
[null,"With no cognitive difficulty",377,108.81176406988355,524,129.52991932368366,520,152.30561381643159,1475,169,305,70.837842993699354,260,86.53323061113575,429,80.802227692063042,5811,425.6994244769424,148,59.203040462462738,527,66.603303221386852,708,166.97305171793442,1112,213.62116000059544,615,171.82840277439584,82,33.421549934136806,1959,260.4611295375953,921,263.42361321643131,650,246.00203251192866,235,62.22539674441618,398,113.56936206565572,717,151.34397906755325,1090,223.65151463828721,687,143.55835050598765,187,52.430906915673319,330,104,433,85.428332536694171,263,57.489129407219238,167,55.226805085936306]
[null,"18 to 34  years:",917,147.10540438746634,462,129.84991336154215,741,140.92906016858268,1019,156.64609794054877,216,48.010415536631214,331,66.843099868273612,484,104.80935072788114,9641,445.9069409641433,203,52.801515129776341,407,64.536811201050213,737,143.93401265857906,1857,269.87589740471452,1574,234.58047659598614,151,42.5205832509386,3320,320.22023671217283,862,164.19500601419034,733,225.41739063346466,205,55.569775957799216,1470,208.69355524308841,1012,190.21303845951255,1384,235.51857676200407,742,155.05160431288675,189,55.97320787662612,263,70.434366611761334,537,110.53506231056279,304,69.354163537598808,217,81.884064383737083]
[null,"With cognitive difficulty",52,36.069377593742864,46,41.484937025383083,31,30.016662039607269,37,35.383612025908263,9,8.6023252670426267,7,14.866068747318506,63,43.657759905886145,725,218.96118377465902,4,12.529964086141668,41,28.844410203711913,0,15.556349186104045,90,73.389372527635089,18,23.409399821439251,9,17.804493814764857,129,72.945184899347538,16,27.202941017470888,34,62.096698785040097,5,13.601470508735444,37,32.557641192199412,77,68.963758598266665,45,42.941821107167776,63,53.413481444294568,17,13.416407864998739,3,11.704699910719626,25,19.697715603592208,17,24.596747752497688,2,11.704699910719626]
[null,"With no cognitive difficulty",865,144.25671561490648,416,121.07848694132248,710,139.51702405083043,982,163.04907236779974,207,48.60041152089147,324,66.843099868273612,421,99.045444115315064,8916,447.21918563496354,199,51.61395160225576,366,61.554853586049575,737,143.93401265857906,1767,265.22443326360411,1556,235.84740829612693,142,41.773197148410844,3191,309.99516125255889,846,166.4692163734785,699,231.10603626906848,200,55.569775957799216,1433,204.35508312738395,935,173.51080657987848,1339,235.49309968659378,679,150.65523555456014,172,54.671747731346578,260,71.217975259059429,512,109.98636279102969,287,66.708320320631671,215,81.412529748190479]
[null,"35 to 64  years:",2010,140.80127840328723,1223,150.60212481900777,1379,148.49915824677257,3559,123.0690862889621,731,77.077882690172544,1160,99.005050376230813,1119,90.027773492406226,16491,467.20659241924233,671,87.045964869142551,1379,62.936475910238251,2179,189.80516325959101,3635,292.05650138286597,1749,195.90048494069634,450,49.497474683058329,5880,258.897663179875,2226,228.95414388038492,2778,203.82835916525454,893,97.621718894926246,1041,126.90547663517127,2185,149.24141516348604,3263,246.86838598735156,1770,164.62381358722072,611,80.622577482985491,821,101.17806086301516,1250,86.400231481171389,909,90.686272390037075,667,76.419892698171196]
[null,"With cognitive difficulty",191,96.566039579139826,11,12.041594578792296,52,42.544094772365298,71,37.735924528226413,14,9.8994949366116654,36,23.430749027719962,22,17.691806012954132,1083,235.77955806218657,21,11.401754250991379,13,12.206555615733702,102,67.779052811322174,311,122.78843593759146,37,26.248809496813376,14,17.029386365926403,127,83.198557679805958,22,29.681644159311659,121,95.189285111298105,27,19.209372712298546,63,31.622776601683793,39,36.235341863986875,171,102.61578825892242,151,83.648072302952684,7,7.810249675906654,29,26.40075756488817,70,41.43669871020132,53,30.479501308256342,7,7.810249675906654]
[null,"With no cognitive difficulty",1819,142.1724305201258,1212,149.77316181479245,1327,152.3975065412817,3488,128.8875478857442,717,77.794601355106892,1124,100.44899203078147,1097,89.274856482662571,15408,478.87889909662965,650,87,1366,62.936475910238251,2077,193.98195792392653,3324,282.15775729190932,1712,188.86238376129853,436,48.795491595023407,5753,271.49401466699038,2204,225.85836269662454,2657,202.00247523235947,866,98.310731865854805,978,125.25174649480941,2146,152.79397893896211,3092,263.68541863364385,1619,166.29191201017565,604,79.93122043357026,792,101.31633629380802,1180,80.280757345705197,856,86.833173384369644,660,77.103826104804938]
[null,"65 to 74  years:",331,82.855295545909442,297,71.56116265125938,299,65.069193939989759,688,99.824846606443629,255,55.172456896534889,271,49.040799340956916,314,46.227697325304881,3362,209.46837470128995,71,27.802877548915689,252,36.069377593742864,466,90.609050320594349,697,139.20129309744217,318,83.450584180100265,161,48.826222462934808,1161,135.05924625881784,816,173.51080657987848,678,173.4156855650607,374,66.468037431535464,619,111.80339887498948,343,69.814038702828242,736,146.20875486782589,339,80.05623023850174,135,36.891733491393431,252,66.2872536767062,332,79.208585393251411,233,45.607017003965517,173,42.01190307520001]
[null,"With cognitive difficulty",43,44.922154890432402,5,13.038404810405298,26,23.706539182259394,23,24.207436873820409,6,12.529964086141668,5,14.212670403551895,0,15.556349186104045,259,111.01801655587259,7,13.038404810405298,8,14.212670403551895,19,20,39,30.016662039607269,0,15.556349186104045,6,12.529964086141668,113,54.451813560247928,17,30.528675044947494,50,58.694122363316758,0,15.556349186104045,18,29.154759474226502,0,15.556349186104045,30,35.777087639996637,10,20.248456731316587,4,12.529964086141668,0,15.556349186104045,25,41.484937025383083,0,15.556349186104045,0,15.556349186104045]
[null,"With no cognitive difficulty",288,80.131142510262507,292,71.56116265125938,273,65.069193939989759,665,97.948966303887048,249,55.901699437494742,266,49.678969393496885,314,46.227697325304881,3103,211.4000946073582,64,26.627053911388696,244,36.796738985948195,447,88.865066252155572,658,135.87126259809321,318,83.450584180100265,155,48.010415536631214,1048,131.52946437965906,799,171.18703221914913,628,161.94134740701648,374,66.468037431535464,601,109.62207806824317,343,69.814038702828242,706,143.84018909887459,329,79.309520235593411,131,36.055512754639892,252,66.2872536767062,307,69.06518659932803,233,45.607017003965517,173,42.01190307520001]
[null,"75  years and Older:",261,83.234608186739251,177,59.464274989274024,225,75.286120898874842,557,99.488692824863264,113,34.409301068170507,118,36.61966684720111,71,28.42534080710379,2777,286.75076285861911,71,26.92582403567252,62,24.839484696748443,236,85.702975444263316,449,98.005101908012932,182,73.552702193733168,68,36.069377593742864,815,149.80654191322887,478,140.08925726121899,345,116.01724009818541,146,49.51767361255979,767,144.25671561490648,159,51.478150704935004,325,113.25193155085701,212,74.303431953039691,90,31.906112267087632,172,54.671747731346578,158,49.091750834534309,76,26.90724809414742,195,55.470712993434653]
[null,"With cognitive difficulty",14,18.601075237738275,22,26,18,27.313000567495326,68,43.139309220245984,20,21.189620100417091,0,15.556349186104045,12,13,400,139.03237033151669,9,18.601075237738275,0,15.556349186104045,10,19.416487838947599,57,44.147480109288232,14,24.596747752497688,0,15.556349186104045,151,84.219950130595535,105,73.552702193733168,80,56.080299571239813,6,13.601470508735444,83,41.677331968349414,36,26.248809496813376,0,22.627416997969522,5,16.278820596099706,0,15.556349186104045,10,19.416487838947599,39,34.481879299133332,3,12.083045973594572,3,11.704699910719626]
[null,"With no cognitive difficulty",247,82.419657849326214,155,56.568542494923804,207,71.505244562899023,489,95.801878895979911,93,27.658633371878661,118,36.61966684720111,59,26.90724809414742,2377,270.97232330996462,62,22.022715545545239,62,24.839484696748443,226,81.320354155647891,392,94.339811320566042,168,71.505244562899023,68,36.069377593742864,664,129.00387591076478,373,120.34118164618461,265,106.25441167311595,140,49.51767361255979,684,140.03570973148243,123,48.846698967279252,325,113.25193155085701,207,73.430239002743278,90,31.906112267087632,162,53.413481444294568,119,39.698866482558415,73,26.90724809414742,192,54.644304369257]
[]
[]
[]
[]
[]
[]
[]
["B18104. SEX BY AGE BY COGNITIVE DIFFICULTY\n\n-Calculated"]
["Universe:  Civilian non-institutionalized population 5 years and over"]
["Data Set:  2008-2012 American Community Survey 5-Year Estimates"]
[]
[]
[null,null,"Allenstown",null,"Andover",null,"Boscawen",null,"Bow",null,"Bradford",null,"Canterbury",null,"Chichester",null,"Concord",null,"Danbury",null,"Dunbarton",null,"Epsom",null,"Franklin",null,"Henniker",null,"Hill",null,"Hooksett",null,"Hopkinton",null,"Loudon",null,"Newbury",null,"New London",null,"Northfield",null,"Pembroke",null,"Pittsfield",null,"Salisbury",null,"Sutton",null,"Warner",null,"Webster",null,"Wilmot"]
[null,null,"Estimate","Margin Of Error","Estimate","Margin Of Error","Estimate","Margin Of Error","Estimate","Margin Of Error","Estimate","Margin Of Error","Estimate","Margin Of Error","Estimate","Margin Of Error","Estimate","Margin Of Error","Estimate","Margin Of Error","Estimate","Margin Of Error","Estimate","Margin Of Error","Estimate","Margin Of Error","Estimate","Margin Of Error","Estimate","Margin Of Error","Estimate","Margin Of Error","Estimate","Margin Of Error","Estimate","Margin Of Error","Estimate","Margin Of Error","Estimate","Margin Of Error","Estimate","Margin Of Error","Estimate","Margin Of Error","Estimate","Margin Of Error","Estimate","Margin Of Error","Estimate","Margin Of Error","Estimate","Margin Of Error","Estimate","Margin Of Error","Estimate"]
[null,"Total:",4113,97,2370,240,3287,211,7362,99,1415,201,2272,134,2434,46,38112,389,1185,216,2670,45,4239,106,7917,164,4515,126,1147,180,12763,180,5343,106,4987,114,1982,242,4239,86,4404,145,6622,148,3759,104,1221,171,1673,221,2677,69,1685,150,1354,197]
[null,"5 to 17  years:",698,172.7917822120022,298,79.05694150420949,580,206.64946164943183,1791,192.4162155328911,203,73.23933369440222,395,96.607453128627711,447,84.876380695691779,6260,422.40383520986171,249,76.380625815713245,535,82.134036793524274,754,168.21712160181556,1558,304.90162347878703,798,185.69868066305693,275,73.23933369440222,2087,263.88254963146011,963,192.4162155328911,1112,221.00904958847272,307,84.811555816409836,547,112.4144118874444,932,207.20038610002638,1195,218.55205329623422,538,130.09611831257686,246,70.178344238091,356,90.520715861066847,411,99.724620831567975,317,68.8839603971781,259,73.661387442811588]
[null,"With cognitive difficullty",37,44.011362169330773,0,15.556349186104045,17,30.083217912982647,38,40.311288741492746,4,12.083045973594572,13,14.422205101855956,24,30.083217912982647,290,118.70130580579136,11,11.180339887498949,35,24.596747752497688,16,27.313000567495326,146,80.529497701152962,62,54.12947441089743,7,14.866068747318506,60,49.203658400570177,34,33.241540277189323,45,38.013155617496423,2,12.083045973594572,11,19.416487838947599,89,60.827625302982199,155,90.801982357215081,56,43.011626335213137,6,13.038404810405298,0,15.556349186104045,0,15.556349186104045,4,12.529964086141668,0,15.556349186104045]
[null,"With no cognitive difficullty",661,170.95028517086482,298,79.05694150420949,563,211.85136298829894,1753,190.24457942343588,199,72.670489196096653,382,96.607453128627711,423,85.702975444263316,5970,416.3195887776601,238,73.53910524340094,500,77.077882690172544,738,166.4692163734785,1412,306.47185841443911,736,181.95878654244757,268,74.886580907396223,2027,266.81266836490352,929,190.31815467789718,1067,218.80585001320233,305,84.811555816409836,536,115.67627241573788,843,206.63252406143619,1040,221.00904958847272,482,129.49517365523704,240,69.426219830839131,356,90.520715861066847,411,99.724620831567975,313,70.434366611761334,259,73.661387442811588]
[null,"18 to 34  years:",1008,159.17600321656528,413,110.27692415006868,672,167.62159765376299,776,158.61904047118682,213,56.080299571239813,332,69.426219830839131,336,67.357256476195644,9580,403.78831087588458,239,70.767224051816527,349,94.175368329515976,745,152.64337522473747,1662,247.4914139924858,1422,221.77466041006579,171,44.553338819890925,3029,310.48510431259018,786,184.1738309315414,866,186.93581786270923,276,71.847059786744225,1146,197.85348114198041,834,147.8681845428556,1497,243.47895186237352,844,157.76247969653622,211,43.185645763378368,234,65.76473218982953,451,92.617492948146676,241,56.400354608814297,171,63.007936008093459]
[null,"With cognitive difficullty",20,26.40075756488817,39,51.623637996561229,12,15.556349186104045,37,37.576588456111871,0,15.556349186104045,0,15.556349186104045,6,14.866068747318506,570,177.65415840897168,0,15.556349186104045,3,12.083045973594572,38,48.270073544588683,157,94.111635837445732,1,11.180339887498949,15,17,70,50.289163842720633,0,22.627416997969522,10,22.627416997969522,24,27.313000567495326,20,21.213203435596427,29,23.409399821439251,108,70.661163307718056,97,81.412529748190479,3,12.083045973594572,13,15.297058540778355,24,20.808652046684813,9,13.601470508735444,16,21.095023109728988]
[null,"With no cognitive difficullty",988,161.37533888422976,374,96.254870006665115,660,169.11830178901394,739,155.66630977832037,213,56.080299571239813,332,69.426219830839131,330,66.708320320631671,9010,421.58747609481952,239,70.767224051816527,346,94.175368329515976,707,142.56226709757388,1505,231.23364807051763,1421,221.77466041006579,156,42.426406871192853,2959,301.93542355940946,786,184.1738309315414,856,186.10212250267324,252,68.600291544569984,1126,194.83326204732086,805,147.13938969562162,1389,242.53865671269807,747,157.8131806916013,208,43.863424398922618,221,64.350602172784676,427,93.407708461347028,232,55.21775076911409,155,58.668560575490517]
[null,"35 to 64  years:",1926,185.26737435393204,1179,140.60227594174995,1557,164.20109622045769,3790,142.89856542317,820,91.967385523347346,1237,82.024386617639507,1415,68.593002558570063,16930,419.56167603821967,547,81.467785044151043,1562,75.073297516493838,2159,118.1397477566293,3710,247.22661669003199,2026,185.53975315279473,588,74.411020689142546,5898,262.68041419184647,2609,152.02960238058901,2431,149.91330828182001,984,119.67038062946069,1162,134.23859355639868,2059,194.60986614249546,3168,233.96153530014288,1953,168.60011862392031,610,72.862884927787476,733,92.097774131626011,1394,105.38026380684383,923,74.518454090245328,664,89.10667763978185]
[null,"With cognitive difficullty",103,79.831071645068121,81,48.466483264210538,31,30.066592756745816,148,96.772930099279307,14,10.816653826391969,10,14.317821063276353,45,30.413812651491099,961,247.63077353188558,14,12.041594578792296,5,13.601470508735444,114,72.249567472753768,307,126.62148316932637,51,56.515484603779164,13,9.2195444572928871,105,59.941638282582836,50,41.036569057366385,96,57.140178508646613,7,14.866068747318506,55,35.777087639996637,39,30.805843601498726,91,54.037024344425184,184,111.01801655587259,23,20.248456731316587,7,6.4031242374328485,36,27.730849247724095,24,16.552945357246848,3,12.083045973594572]
[null,"With no cognitive difficullty",1823,179.13402803487674,1098,135.42894816101909,1526,164.93938280471406,3642,153.48289807011074,806,91.285267157411553,1227,84.899941107164494,1370,77.466121627457255,15969,433.67268763434942,533,80.919713296575637,1557,73.756355658343097,2045,132.65368445693471,3403,248.1954874690513,1975,182.22239159883728,575,74.411020689142546,5793,266.1766330841233,2559,152.10851389715174,2335,161.52399202595259,977,119.67038062946069,1107,129.86531484580476,2020,191.65855055279948,3077,237.7666923688009,1769,145.42695761102891,587,70.837842993699354,726,92.097774131626011,1358,106.10372283760829,899,74.518454090245328,661,89.10667763978185]
[null,"65 to 74  years:",233,69.202601107183824,330,79.208585393251411,231,87.321245982864909,652,111.73182178770737,76,25.80697580112788,185,36.069377593742864,164,41.725292090050132,2640,197.29419656948858,107,30.232432915661949,169,40.36087214122113,430,108.22661410207751,497,110.34491379306978,106,49.929950931279713,76,23.345235059857504,1151,143.83671297690307,649,137.55726080436466,378,89.10667763978185,219,57.314919523628397,503,105.11898020814318,319,106.21675950620975,369,102.7277956543408,245,72.945184899347538,102,30,227,58.694122363316758,199,52.630789467763066,134,29.832867780352597,145,48.918299234540036]
[null,"With cognitive difficullty",0,15.556349186104045,19,27.313000567495326,0,15.556349186104045,0,22.627416997969522,0,15.556349186104045,7,14.866068747318506,17,20.248456731316587,106,58.898217290508889,8,14.212670403551895,5,14.866068747318506,12,23.706539182259394,74,46.690470119715009,0,15.556349186104045,6,6.4031242374328485,18,28.42534080710379,45,41.109609582188931,8,20,5,13.601470508735444,0,15.556349186104045,0,15.556349186104045,16,30.528675044947494,29,26.076809620810597,0,15.556349186104045,0,15.556349186104045,37,27.730849247724095,5,6.4031242374328485,0,15.556349186104045]
[null,"With no cognitive difficullty",233,69.202601107183824,311,75.006666370396701,231,87.321245982864909,652,111.73182178770737,76,25.80697580112788,178,35.383612025908263,147,41.725292090050132,2534,195.20758181996928,99,28.600699292150182,164,39.623225512317902,418,106.17438485811914,423,106.88779163215975,106,49.929950931279713,70,23.430749027719962,1133,141.59802258506295,604,133.77593206552515,370,89.10667763978185,214,56.586217403180434,503,105.11898020814318,319,106.21675950620975,353,99.76472322419383,216,70.83078426785913,102,30,227,58.694122363316758,162,47.507894080878813,129,29.068883707497267,145,48.918299234540036]
[null,"75  years and Older:",248,83.600239234107462,150,66.037867924396224,247,76.576758876306585,353,97,103,34.655446902326915,123,41.773197148410844,72,36.878177829171548,2702,254.42091109026396,43,16.278820596099706,55,32.202484376209235,151,60.605280298007038,490,109.55363982999378,163,66.887966032762577,37,17.720045146669349,598,129.00387591076478,336,88.865066252155572,200,64.660652641308843,196,69.426219830839131,881,135.28118864054971,260,91.35097153287424,393,106.82696288858914,179,75.663729752107784,52,18.439088914585774,123,47.634021455258214,222,69.31089380465383,70,29.732137494637012,115,38.013155617496423]
[null,"With cognitive difficullty",48,44.283179650969061,48,43.185645763378368,34,29.120439557122072,97,58,33,22.671568097509269,7,14.866068747318506,16,27.313000567495326,338,103.23274674249446,7,8.6023252670426267,0,15.556349186104045,40,42.720018726587654,19,22.472205054244231,37,39.560080889704963,3,11.704699910719626,34,31.622776601683793,31,34.713109915419565,17,24.839484696748443,15,17.804493814764857,42,38.470768123342687,38,31.384709652950431,43,46.818799642878503,20,22.022715545545239,6,6.4031242374328485,3,12.083045973594572,47,38.470768123342687,7,7.2111025509279782,0,15.556349186104045]
[null,"With no cognitive difficullty",200,78.600254452514335,102,45.453272709454048,213,73.593477971896391,256,93.005376188691372,70,26.90724809414742,116,42.449970553582247,56,28.844410203711913,2364,247.31558786295699,36,14.866068747318506,55,32.202484376209235,111,48.083261120685229,471,104.30723848324239,126,61.032778078668514,34,18.681541692269406,564,124.86793023030373,305,84.504437753291981,183,65.513357416636794,181,67.208630398186216,839,133.68993978605869,222,86.313382508160345,350,97.672923576598237,159,69.115844782509896,46,17.804493814764857,120,47.634021455258214,175,60.207972893961475,63,29.068883707497267,115,38.013155617496423]

{"sheet":"ACS_Table_B18105","index":32,"n_rows":153,"n_cols":56,"rows_kept":153,"cut":false,"hidden":true,"merged":[]}
["B18105. SEX BY AGE BY AMBULATORY DIFFICULTY\n\n"]
["Universe:  Civilian non-institutionalized population 5 years and over"]
["Data Set: 2018-2022 American Community Survey 5-Year Estimates"]
[]
[null,null,"Allenstown",null,"Andover",null,"Boscawen",null,"Bow",null,"Bradford",null,"Canterbury",null,"Chichester",null,"Concord",null,"Danbury",null,"Dunbarton",null,"Epsom",null,"Franklin",null,"Henniker",null,"Hill",null,"Hooksett",null,"Hopkinton",null,"Loudon",null,"Newbury",null,"New London",null,"Northfield",null,"Pembroke",null,"Pittsfield",null,"Salisbury",null,"Sutton",null,"Warner",null,"Webster",null,"Wilmot"]
[null,null,"Estimate","Margin Of Error","Estimate","Margin Of Error","Estimate","Margin Of Error","Estimate","Margin Of Error","Estimate","Margin Of Error","Estimate","Margin Of Error","Estimate","Margin Of Error","Estimate","Margin Of Error","Estimate","Margin Of Error","Estimate","Margin Of Error","Estimate","Margin Of Error","Estimate","Margin Of Error","Estimate","Margin Of Error","Estimate","Margin Of Error","Estimate","Margin Of Error","Estimate","Margin Of Error","Estimate","Margin Of Error","Estimate","Margin Of Error","Estimate","Margin Of Error","Estimate","Margin Of Error","Estimate","Margin Of Error","Estimate","Margin Of Error","Estimate","Margin Of Error","Estimate","Margin Of Error","Estimate","Margin Of Error","Estimate","Margin Of Error","Estimate"]
[null,"Total:",4411,105,2091,305,3297,105,7606,157,1485,159,2202,239,2569,55,39787,356,1421,242,2793,112,4498,126,8291,116,5778,239,797,172,14056,238,5736,114,5488,105,1785,246,4103,108,4674,92,6937,134,3963,92,1534,358,2194,449,2712,62,1929,241,1392,189]
[null,"Male:",2271,160,1025,161,1648,137,3738,200,794,109,1095,151,1337,105,20064,593,711,103,1415,93,2090,129,3671,328,3050,238,466,113,6666,278,2679,219,2727,192,902,141,1848,142,2218,161,3706,258,1865,178,867,262,1121,236,1277,94,914,99,667,104]
[null,"5 to 17  years:",417,104,130,70,332,99,854,143,151,53,102,43,319,84,3060,322,96,44,256,43,283,94,450,148,441,131,40,24,930,241,411,146,314,140,122,69,214,97,372,180,733,192,225,80,187,161,121,53,217,65,110,32,82,39]
[null,"With ambulatory difficulty",0,12,0,12,0,12,0,17,0,12,0,12,0,12,27,30,4,5,0,12,0,12,90,47,9,15,0,12,0,19,0,17,46,64,0,12,0,12,0,12,0,17,0,12,0,12,0,12,5,7,0,12,0,12]
[null,"With no ambulatory difficulty",417,104,130,70,332,99,854,143,151,53,102,43,319,84,3033,321,92,43,256,43,283,94,360,135,432,127,40,24,930,241,411,146,268,137,122,69,214,97,372,180,733,192,225,80,187,161,121,53,212,66,110,32,82,39]
[null,"18 to 34  years:",580,127,272,134,345,112,625,165,166,59,222,64,255,58,5659,376,109,44,237,70,388,133,585,147,1092,273,128,75,1996,319,535,214,506,196,164,47,553,113,461,127,676,206,375,111,157,64,234,112,336,91,123,49,157,63]
[null,"With ambulatory difficulty",0,12,4,8,0,12,13,20,0,12,0,12,18,27,121,83,0,12,0,12,0,12,17,27,0,17,0,12,0,19,0,17,52,63,0,12,0,12,36,41,35,56,0,12,0,12,0,12,0,12,0,12,0,12]
[null,"With no ambulatory difficulty",580,127,268,135,345,112,612,166,166,59,222,64,237,61,5538,367,109,44,237,70,388,133,568,148,1092,273,128,75,1996,319,535,214,454,164,164,47,553,113,425,118,641,187,375,111,157,64,234,112,336,91,123,49,157,63]
[null,"35 to 64  years:",984,142,389,120,653,119,1649,131,287,51,518,104,588,66,8065,465,331,68,665,81,991,161,1919,237,904,214,195,48,2732,227,1273,172,1319,192,445,85,438,84,1000,151,1873,235,845,178,299,105,505,112,510,74,523,86,303,63]
[null,"With ambulatory difficulty",38,32,0,12,50,46,19,21,20,19,18,20,3,6,589,192,33,26,26,37,91,65,194,116,0,17,5,5,97,102,6,11,113,105,0,12,0,12,113,102,89,70,73,76,0,12,0,12,30,26,17,11,11,11]
[null,"With no ambulatory difficulty",946,140,389,120,603,128,1630,134,267,50,500,101,585,66,7476,467,298,63,639,88,900,145,1725,246,904,214,190,47,2635,227,1267,175,1206,240,445,85,438,84,887,136,1784,231,772,157,299,105,505,112,480,76,506,87,292,61]
[null,"65 to 74  years:",252,120,107,45,229,104,397,71,158,52,164,42,107,29,2012,301,97,43,188,76,305,85,460,120,501,264,61,25,624,139,356,97,280,127,98,34,333,84,246,76,262,78,299,97,181,89,163,86,169,48,120,33,85,25]
[null,"With ambulatory difficulty",77,74,0,12,8,12,29,25,5,5,10,9,9,10,271,98,22,24,4,6,46,36,72,50,20,20,3,5,67,61,10,17,74,101,4,7,21,26,26,22,25,30,0,12,3,5,14,12,24,23,9,11,0,12]
[null,"With no ambulatory difficulty",175,80,107,45,221,103,368,69,153,53,154,43,98,27,1741,304,75,30,184,76,259,78,388,116,481,267,58,24,557,132,346,97,206,100,94,34,312,86,220,73,237,77,299,97,178,89,149,87,145,44,111,32,85,25]
[null,"75  years and Older:",38,33,127,91,89,56,213,71,32,16,89,32,68,26,1268,203,78,68,69,21,123,73,257,90,112,64,42,24,384,114,104,65,308,123,73,31,310,112,139,76,162,65,121,68,43,30,98,56,45,26,38,21,40,22]
[null,"With ambulatory difficulty",10,16,34,28,43,39,101,59,17,14,13,21,11,11,337,146,21,16,23,12,21,19,62,76,0,17,9,14,67,47,40,46,126,98,23,21,49,36,24,23,11,19,45,55,27,27,0,12,7,7,8,10,2,5]
[null,"With no ambulatory difficulty",28,24,93,87,46,40,112,48,15,9,76,36,57,24,931,179,57,68,46,19,102,65,195,79,112,64,33,20,317,108,64,46,182,108,50,22,261,96,115,77,151,65,76,47,16,14,98,56,38,25,30,17,38,21]
[null,"Female:",2140,157,1066,177,1649,127,3868,187,691,84,1107,151,1232,101,19723,536,710,158,1378,112,2408,150,4620,340,2728,242,331,71,7390,313,3057,242,2761,209,883,126,2255,135,2456,161,3231,219,2098,158,667,116,1073,244,1435,94,1015,174,725,110]
[null,"5 to 17  years:",299,85,145,60,220,105,606,139,118,50,170,75,101,32,2630,296,111,53,294,92,541,157,633,167,255,87,32,23,1275,285,440,187,370,190,148,52,139,63,373,89,620,142,377,158,80,37,243,89,155,60,196,108,81,35]
[null,"With ambulatory difficulty",0,12,0,12,0,12,0,17,0,12,0,12,0,12,21,35,0,12,0,12,0,12,0,17,0,17,0,12,0,19,0,17,0,17,0,12,0,12,0,12,0,17,0,12,0,12,0,12,0,12,0,12,0,12]
[null,"With no ambulatory difficulty",299,85,145,60,220,105,606,139,118,50,170,75,101,32,2609,290,111,53,294,92,541,157,633,167,255,87,32,23,1275,285,440,187,370,190,148,52,139,63,373,89,620,142,377,158,80,37,243,89,155,60,196,108,81,35]
[null,"18 to 34  years:",611,163,191,72,360,147,717,161,98,40,223,82,183,66,4973,416,72,34,221,78,453,111,921,244,944,171,39,21,1881,281,738,331,291,116,116,49,658,109,462,159,763,203,328,110,59,29,123,95,375,114,173,75,169,66]
[null,"With ambulatory difficulty",0,12,5,9,28,44,0,17,0,12,0,12,5,8,181,121,0,12,0,12,0,12,0,17,0,17,0,12,34,48,0,17,0,17,0,12,0,12,18,25,0,17,0,12,0,12,0,12,22,34,0,12,0,12]
[null,"With no ambulatory difficulty",611,163,186,72,332,129,717,161,98,40,223,82,178,66,4792,407,72,34,221,78,453,111,921,244,944,171,39,21,1847,274,738,331,291,116,116,49,658,109,444,152,763,203,328,110,59,29,123,95,353,114,173,75,169,66]
[null,"35 to 64  years:",945,147,372,75,754,141,1799,133,310,53,475,64,681,86,8012,417,386,121,619,70,956,124,1957,286,936,209,199,45,2914,241,1336,128,1433,195,393,84,598,95,1212,148,1398,206,886,152,349,99,511,115,528,74,498,85,303,81]
[null,"With ambulatory difficulty",147,95,6,8,19,22,0,17,5,5,7,12,22,20,561,189,25,20,10,11,10,15,189,102,65,58,15,10,207,107,0,17,80,77,0,12,12,18,103,64,44,47,78,59,21,20,9,9,19,17,0,12,3,4]
[null,"With no ambulatory difficulty",798,135,366,75,735,139,1799,133,305,52,468,64,659,85,7451,386,361,121,609,69,946,123,1768,286,871,196,184,46,2707,270,1336,128,1353,208,393,84,586,94,1109,161,1354,208,808,150,328,98,502,116,509,70,498,85,300,80]
[null,"65 to 74  years:",180,69,146,51,220,69,473,87,117,31,140,35,173,51,2410,278,105,48,153,67,363,102,536,131,512,262,48,19,772,152,368,105,581,140,97,27,331,107,278,116,275,114,322,130,122,36,96,36,217,63,105,32,80,31]
[null,"With ambulatory difficulty",20,20,13,14,22,24,39,35,9,8,10,11,29,29,298,101,0,12,39,63,19,21,130,84,201,260,22,13,108,102,89,75,61,58,9,10,5,8,123,100,24,27,56,57,10,9,5,8,32,31,14,16,2,4]
[null,"With no ambulatory difficulty",160,67,133,48,198,66,434,83,108,29,130,33,144,44,2112,266,105,48,114,39,344,100,406,114,311,114,26,13,664,134,279,84,520,134,88,28,326,105,155,47,251,111,266,119,112,34,91,35,185,56,91,28,78,31]
[null,"75  years and Older:",105,63,212,126,95,48,273,97,48,25,99,47,94,37,1698,239,36,22,91,30,95,59,573,254,81,58,13,15,548,163,175,82,86,90,129,49,529,154,131,53,175,78,185,87,57,35,100,76,160,58,43,20,92,34]
[null,"With ambulatory difficulty",13,17,52,31,43,35,66,42,19,17,14,14,25,18,505,161,9,14,10,11,50,44,129,84,0,17,10,14,106,55,26,28,40,39,40,26,75,55,20,21,43,42,129,89,8,8,40,66,53,39,13,11,4,7]
[null,"With no ambulatory difficulty",92,60,160,122,52,38,207,85,29,19,85,46,69,30,1193,199,27,17,81,27,45,40,444,238,81,58,3,4,442,163,149,78,46,79,89,42,454,148,111,54,132,73,56,40,49,33,60,42,107,40,30,16,88,32]
[]
[]
[{"$f":"A1& \"-Calculated\"","v":"B18105. SEX BY AGE BY AMBULATORY DIFFICULTY\n\n-Calculated"}]
[{"$f":"A2","v":"Universe:  Civilian non-institutionalized population 5 years and over"}]
[{"$f":"A3","v":"Data Set: 2018-2022 American Community Survey 5-Year Estimates"}]
[]
[]
[null,null,"Allenstown",null,"Andover",null,"Boscawen",null,"Bow",null,"Bradford",null,"Canterbury",null,"Chichester",null,"Concord",null,"Danbury",null,"Dunbarton",null,"Epsom",null,"Franklin",null,"Henniker",null,"Hill",null,"Hooksett",null,"Hopkinton",null,"Loudon",null,"Newbury",null,"New London",null,"Northfield",null,"Pembroke",null,"Pittsfield",null,"Salisbury",null,"Sutton",null,"Warner",null,"Webster",null,"Wilmot"]
[null,null,"Estimate","Margin Of Error","Estimate","Margin Of Error","Estimate","Margin Of Error","Estimate","Margin Of Error","Estimate","Margin Of Error","Estimate","Margin Of Error","Estimate","Margin Of Error","Estimate","Margin Of Error","Estimate","Margin Of Error","Estimate","Margin Of Error","Estimate","Margin Of Error","Estimate","Margin Of Error","Estimate","Margin Of Error","Estimate","Margin Of Error","Estimate","Margin Of Error","Estimate","Margin Of Error","Estimate","Margin Of Error","Estimate","Margin Of Error","Estimate","Margin Of Error","Estimate","Margin Of Error","Estimate","Margin Of Error","Estimate","Margin Of Error","Estimate","Margin Of Error","Estimate","Margin Of Error","Estimate","Margin Of Error","Estimate","Margin Of Error","Estimate","Margin Of Error"]
[null,"Total:",{"$f":"C7","v":4411},105,2091,305,3297,105,7606,157,1485,159,2202,239,2569,55,39787,356,1421,242,2793,112,4498,126,{"$f":"Y7","v":8291},116,5778,239,797,172,14056,238,5736,114,5488,105,1785,246,4103,108,4674,92,6937,134,3963,92,1534,358,2194,449,2712,62,1929,241,1392,189]
[null,"5 to 17  years:",{"$f":"C25+C9","v":716},{"$f":"SQRT((D25^2)+(D9^2))","v":134.31678971744373},{"$f":"E25+E9","v":275},{"$f":"SQRT((F25^2)+(F9^2))","v":92.195444572928878},{"$f":"G25+G9","v":552},{"$f":"SQRT((H25^2)+(H9^2))","v":144.31216164966833},{"$f":"I25+I9","v":1460},{"$f":"SQRT((J25^2)+(J9^2))","v":199.42417105255822},{"$f":"K25+K9","v":269},{"$f":"SQRT((L25^2)+(L9^2))","v":72.862884927787476},{"$f":"M25+M9","v":272},{"$f":"SQRT((N25^2)+(N9^2))","v":86.452298986203942},{"$f":"O25+O9","v":420},{"$f":"SQRT((P25^2)+(P9^2))","v":89.888820216976924},{"$f":"Q25+Q9","v":5690},{"$f":"SQRT((R25^2)+(R9^2))","v":437.37855457258075},{"$f":"S25+S9","v":207},{"$f":"SQRT((T25^2)+(T9^2))","v":68.8839603971781},{"$f":"U25+U9","v":550},{"$f":"SQRT((V25^2)+(V9^2))","v":101.55294185792945},{"$f":"W25+W9","v":824},{"$f":"SQRT((X25^2)+(X9^2))","v":182.98907071188705},{"$f":"Y25+Y9","v":1083},{"$f":"SQRT((Z25^2)+(Z9^2))","v":223.14345161801185},{"$f":"AA25+AA9","v":696},{"$f":"SQRT((AB25^2)+(AB9^2))","v":157.25775020646836},{"$f":"AC25+AC9","v":72},{"$f":"SQRT((AD25^2)+(AD9^2))","v":33.241540277189323},{"$f":"AE25+AE9","v":2205},{"$f":"SQRT((AF25^2)+(AF9^2))","v":373.23719000121088},{"$f":"AG25+AG9","v":851},{"$f":"SQRT((AH25^2)+(AH9^2))","v":237.24459951703852},{"$f":"AI25+AI9","v":684},{"$f":"SQRT((AJ25^2)+(AJ9^2))","v":236.00847442411893},{"$f":"AK25+AK9","v":270},{"$f":"SQRT((AL25^2)+(AL9^2))","v":86.400231481171389},{"$f":"AM25+AM9","v":353},{"$f":"SQRT((AN25^2)+(AN9^2))","v":115.66330446602328},{"$f":"AO25+AO9","v":745},200.80089641234176,{"$f":"AQ25+AQ9","v":1353},238.8053600738476,{"$f":"AS25+AS9","v":602},177.09884245810304,{"$f":"AU25+AU9","v":267},165.19685227025363,{"$f":"AW25+AW9","v":364},103.58571330062848,{"$f":"AY25+AY9","v":372},88.459030064770658,{"$f":"BA25+BA9","v":306},112.64102272262978,{"$f":"BC25+BC9","v":163},52.40229002629561]
[null,"With ambulatory difficulty",0,16.970562748477139,0,16.970562748477139,0,16.970562748477139,0,24.041630560342615,0,16.970562748477139,0,16.970562748477139,0,16.970562748477139,48,46.097722286464439,4,13,0,16.970562748477139,0,16.970562748477139,90,49.979995998399197,9,22.671568097509269,0,16.970562748477139,0,26.870057685088806,0,24.041630560342615,46,66.219332524573218,0,16.970562748477139,0,16.970562748477139,0,16.970562748477139,0,24.041630560342615,0,16.970562748477139,0,16.970562748477139,0,16.970562748477139,5,13.892443989449804,0,16.970562748477139,0,16.970562748477139]
[null,"With no ambulatory difficulty",716,134.31678971744373,275,92.195444572928878,552,144.31216164966833,1460,199.42417105255822,269,72.862884927787476,272,86.452298986203942,420,89.888820216976924,5642,432.59796578347431,203,68.249542123006222,550,101.55294185792945,824,182.98907071188705,993,214.74170531128786,687,153.94154734833609,72,33.241540277189323,2205,373.23719000121088,851,237.24459951703852,638,234.24132854814499,270,86.400231481171389,353,115.66330446602328,745,200.80089641234176,1353,238.8053600738476,602,177.09884245810304,267,165.19685227025363,364,103.58571330062848,367,89.196412483911033,306,112.64102272262978,163,52.40229002629561]
[null,"18 to 34  years:",1191,206.63494380186523,463,152.11837495845134,705,184.80530295421721,1342,230.53416232740864,264,71.28113354878694,445,104.01922899156675,438,87.863530545955186,10632,560.74236508400179,181,55.605755097831377,458,104.80458005259122,841,173.23394586512194,1506,284.85961454723622,2036,322.13351269310681,167,77.884529914483011,3877,425.1141023301862,1273,394.153523389047,797,227.75425352778814,280,67.896980787071826,1211,157.00318468107582,923,203.49447166937975,1439,289.21445330411825,703,156.27219842313605,216,70.263788682364691,357,146.86388255796589,711,145.86637720873168,296,89.587945617700157,326,91.241437954473298]
[null,"With ambulatory difficulty",0,16.970562748477139,9,12.041594578792296,28,45.607017003965517,13,26.248809496813376,0,16.970562748477139,0,16.970562748477139,23,28.160255680657446,302,146.73104647619741,0,16.970562748477139,0,16.970562748477139,0,16.970562748477139,17,31.906112267087632,0,24.041630560342615,0,16.970562748477139,34,51.623637996561229,0,24.041630560342615,52,65.253352404301808,0,16.970562748477139,0,16.970562748477139,54,48.020828814171878,35,58.523499553598128,0,16.970562748477139,0,16.970562748477139,0,16.970562748477139,22,36.055512754639892,0,16.970562748477139,0,16.970562748477139]
[null,"With no ambulatory difficulty",1191,206.63494380186523,454,153,677,170.83617883809038,1329,231.25094594401122,264,71.28113354878694,445,104.01922899156675,415,89.872131386765275,10330,548.03102101979596,181,55.605755097831377,458,104.80458005259122,841,173.23394586512194,1489,285.3769437077915,2036,322.13351269310681,167,77.884529914483011,3843,420.51991629410372,1273,394.153523389047,745,200.87807247183551,280,67.896980787071826,1211,157.00318468107582,869,192.42660938653989,1404,276.0036231646244,703,156.27219842313605,216,70.263788682364691,357,146.86388255796589,689,145.86637720873168,296,89.587945617700157,326,91.241437954473298]
[null,"35 to 64  years:",1929,204.38444167793205,761,141.50971698084905,1407,184.50474248647376,3448,186.6815470259447,597,73.552702193733168,993,122.11470017978998,1269,108.40664186294121,16077,624.59106621852993,717,138.7984149765407,1284,107.05606008068857,1947,203.21663317750347,3876,371.43640101637857,1840,299.12706330253701,394,65.79513659838392,5646,331.07400985278201,2609,214.40149253211834,2752,273.65854636754904,838,119.50313803411188,1036,126.81088281373961,2212,211.43556938225885,3271,312.50759990758627,1731,234.06836608136521,648,144.31216164966833,1016,160.52725625263767,1038,104.65180361560904,1021,120.91732712891069,606,102.61578825892242]
[null,"With ambulatory difficulty",185,100.24470060806208,6,14.422205101855956,69,50.990195135927848,19,27.018512172212592,25,19.646882704388499,25,23.323807579381203,25,20.880613017821101,1150,269.41603515752359,58,32.802438933713454,36,38.600518131237564,101,66.708320320631671,383,154.46682491719702,65,60.440052945046304,20,11.180339887498949,304,147.82760229402356,6,20.248456731316587,193,130.20752666416791,0,16.970562748477139,12,21.633307652783937,216,120.41594578792295,133,84.314885992925355,151,96.213304693269947,21,23.323807579381203,9,15,49,31.064449134018133,17,16.278820596099706,14,11.704699910719626]
[null,"With no ambulatory difficulty",1744,194.48650338776724,755,141.50971698084905,1338,188.95766721676048,3429,188.79883474216678,572,72.138755187485728,968,119.57006314291216,1244,107.61505470890214,14927,605.87539973166099,659,136.41847382227965,1248,111.82575731914361,1846,190.14205216100936,3493,377.24262749588627,1775,290.19303919977131,374,65.76473218982953,5342,352.7449503536514,2603,216.81558984537989,2559,317.59093186046732,838,119.50313803411188,1024,126.0634760745554,1996,210.75341041131458,3138,310.84562084739105,1580,217.13820483738002,627,143.62799170078233,1007,161.24515496597098,989,103.32473082471591,1004,121.63058825805291,592,100.60318086422517]
[null,"65 to 74  years:",432,138.42326394071193,253,68.01470429252781,449,124.80785231707178,870,112.29425630903836,275,60.539243470661241,304,54.671747731346578,280,58.668560575490517,4422,409.73772098746292,202,64.443773942872099,341,101.31633629380802,668,132.77424449041311,996,177.65415840897168,1013,371.94085551334638,109,31.400636936215164,1396,205.9732992404598,724,142.94754282603111,861,189.02116283633427,195,43.416586692184822,664,136.03308421115798,524,138.67948658687772,537,138.13037319865606,621,162.2004932174992,303,96.005208192055917,259,93.23089616645332,386,79.202272694664515,225,45.967379738244816,165,39.824615503479755]
[null,"With ambulatory difficulty",97,76.655071586947201,13,18.439088914585774,30,26.832815729997478,68,43.011626335213137,14,9.4339811320566032,20,14.212670403551895,38,30.675723300355934,569,140.73023839957068,22,26.832815729997478,43,63.28506932918696,65,41.677331968349414,202,97.754795278799492,221,260.76809620810593,25,13.928388277184119,175,118.84864324004712,99,76.902535718921513,135,116.46887996370532,13,12.206555615733702,26,27.202941017470888,149,102.39140588936164,49,40.36087214122113,56,58.249463516842795,13,10.295630140987001,19,14.422205101855956,56,38.600518131237564,23,19.416487838947599,2,12.649110640673518]
[null,"With no ambulatory difficulty",335,104.35037134576953,240,65.79513659838392,419,122.3315167894194,802,107.93516572461452,261,60.415229867972862,284,54.203320931470607,242,51.623637996561229,3853,403.94554088391669,180,56.603886792339623,298,85.422479477008864,603,126.82271089990152,794,162.64070831129578,792,290.31879029783795,84,27.294688127912362,1221,188.09572031282372,625,128.31601614763451,726,167.20047846821492,182,44.045431091090478,638,135.72398461583714,375,86.821656284592962,488,135.09256086106296,565,153.52524222420234,290,95.273291115611201,240,93.776329636001435,330,71.217975259059429,202,42.5205832509386,163,39.824615503479755]
[null,"75  years and Older:",143,71.119617546778187,339,155.42522317822161,184,73.756355658343097,486,120.20815280171308,80,29.681644159311659,188,56.859475903318,162,45.221676218380054,2966,313.57614705203582,114,71.470273540822546,160,36.61966684720111,218,93.861600242058515,830,269.47356085523495,193,86.371291526756735,55,28.301943396169811,932,198.90952717253137,279,104.63746938836012,394,152.41062955056645,202,57.982756057296896,839,190.42058712229621,270,92.655275079188016,337,101.53324578678651,306,110.42191811411355,100,46.097722286464439,198,94.403389769647575,205,63.560994328282817,81,29,132,40.496913462633174]
[null,"With ambulatory difficulty",23,23.345235059857504,86,41.773197148410844,86,52.40229002629561,167,72.422372233999624,36,22.022715545545239,27,25.238858928247925,36,21.095023109728988,842,217.34074629484459,30,21.2602916254693,33,16.278820596099706,71,47.927027865287037,191,113.27841806805037,0,24.041630560342615,19,19.798989873223331,173,72.346388990743691,66,53.851648071345039,166,105.47511554864494,63,33.421549934136806,124,65.73431371817918,44,31.144823004794873,54,46.097722286464439,174,104.62313319720452,35,28.160255680657446,40,67.082039324993687,60,39.623225512317902,21,14.866068747318506,6,8.6023252670426267]
[null,"With no ambulatory difficulty",120,64.621977685614041,253,149.84325143295575,98,55.172456896534889,319,97.616596949494195,44,21.023796041628639,161,58.412327466040935,126,38.418745424597091,2124,267.66023238426737,84,70.092795635500224,127,33.015148038438355,147,76.321687612368734,639,250.76881783826315,193,86.371291526756735,36,20.396078054371138,759,195.5326059765992,213,90.553851381374173,228,133.80956617521784,139,47.413078364518789,715,176.40861656959956,226,94.047860156411858,283,97.744565066299216,132,61.71709649683789,65,35.846896657869841,158,70,145,47.169905660283021,60,23.345235059857504,126,38.275318418009277]
[]
[]
[]
[]
[]
[]
[]
[]
[]
[]
[]
[]
[]
[]
[]
[]
[]
[]
[]
[]
[]
[]
[]
[]
[]
[]
[]
[]
[]
[]
[]
[]
[]
[]
[]
["B18105. SEX BY AGE BY AMBULATORY DIFFICULTY\n\n-Calculated"]
["Universe:  Civilian non-institutionalized population 5 years and over"]
["Data Set: 2013-2017 American Community Survey 5-Year Estimates"]
[]
[]
[null,null,"Allenstown",null,"Andover",null,"Boscawen",null,"Bow",null,"Bradford",null,"Canterbury",null,"Chichester",null,"Concord",null,"Danbury",null,"Dunbarton",null,"Epsom",null,"Franklin",null,"Henniker",null,"Hill",null,"Hooksett",null,"Hopkinton",null,"Loudon",null,"Newbury",null,"New London",null,"Northfield",null,"Pembroke",null,"Pittsfield",null,"Salisbury",null,"Sutton",null,"Warner",null,"Webster",null,"Wilmot"]
[null,null,"Estimate","Margin Of Error","Estimate","Margin Of Error","Estimate","Margin Of Error","Estimate","Margin Of Error","Estimate","Margin Of Error","Estimate","Margin Of Error","Estimate","Margin Of Error","Estimate","Margin Of Error","Estimate","Margin Of Error","Estimate","Margin Of Error","Estimate","Margin Of Error","Estimate","Margin Of Error","Estimate","Margin Of Error","Estimate","Margin Of Error","Estimate","Margin Of Error","Estimate","Margin Of Error","Estimate","Margin Of Error","Estimate","Margin Of Error","Estimate","Margin Of Error","Estimate","Margin Of Error","Estimate","Margin Of Error","Estimate","Margin Of Error","Estimate","Margin Of Error","Estimate","Margin Of Error","Estimate","Margin Of Error","Estimate","Margin Of Error","Estimate"]
[null,"Total:",4066,89,2689,296,3217,228,7344,105,1631,182,2148,227,2427,76,38411,348,1164,151,2633,47,4353,127,7854,224,4459,156,912,124,13245,226,5359,106,5184,124,1853,201,4324,100,4416,120,6924,110,3796,144,1212,163,1838,249,2733,70,1789,177,1431,170]
[null,"5 to 17  years:",547,134.61797799699713,530,129.52991932368366,573,153.80832227158581,1521,166.87720036002523,316,71.589105316381762,268,87.658428003244509,439,80.802227692063042,6140,412.01213574359673,148,59.203040462462738,533,66.603303221386852,735,172.5688268488837,1216,215.67800073257357,636,171.11984104714449,82,33.421549934136806,2069,269.42902590478258,977,268.12683565805196,650,246.00203251192866,235,62.22539674441618,427,114.33722053644648,717,151.34397906755325,1216,231.01947969814148,733,141.48498153514387,187,52.430906915673319,330,104,456,86.833173384369644,267,58.258046654518033,179,65.436992595931542]
[null,"With ambulatory difficulty",4,13.601470508735444,0,15.556349186104045,0,15.556349186104045,8,20.615528128088304,0,15.556349186104045,0,15.556349186104045,0,15.556349186104045,22,35.383612025908263,0,15.556349186104045,0,15.556349186104045,0,15.556349186104045,16,17.691806012954132,0,15.556349186104045,0,15.556349186104045,0,25.45584412271571,19,31.384709652950431,0,22.627416997969522,0,15.556349186104045,15,25.495097567963924,43,54.12947441089743,0,22.627416997969522,0,15.556349186104045,0,15.556349186104045,0,15.556349186104045,0,15.556349186104045,4,12.529964086141668,0,15.556349186104045]
[null,"With no ambulatory difficulty",543,133.86933928274988,530,129.52991932368366,573,153.80832227158581,1513,166.17159805454119,316,71.589105316381762,268,87.658428003244509,439,80.802227692063042,6118,412.01213574359673,148,59.203040462462738,533,66.603303221386852,735,172.5688268488837,1200,215.6965461012299,636,171.11984104714449,82,33.421549934136806,2069,269.42902590478258,958,262.09158704544484,650,246.00203251192866,235,62.22539674441618,412,114.33722053644648,674,162.40997506310995,1216,231.01947969814148,733,141.48498153514387,187,52.430906915673319,330,104,456,86.833173384369644,263,58.258046654518033,179,65.436992595931542]
[null,"18 to 34  years:",917,147.10540438746634,462,129.84991336154215,741,140.92906016858268,1019,156.64609794054877,216,48.010415536631214,331,66.843099868273612,484,104.80935072788114,9641,445.9069409641433,203,52.801515129776341,407,64.536811201050213,737,143.93401265857906,1857,269.87589740471452,1574,234.58047659598614,151,42.5205832509386,3320,320.22023671217283,862,164.19500601419034,733,225.41739063346466,205,55.569775957799216,1470,208.69355524308841,1012,190.21303845951255,1384,235.51857676200407,742,155.05160431288675,189,55.97320787662612,263,70.434366611761334,537,110.53506231056279,304,69.354163537598808,217,81.884064383737083]
[null,"With ambulatory difficulty",28,45.354161881794269,0,15.556349186104045,9,17.029386365926403,8,21.2602916254693,0,15.556349186104045,0,15.556349186104045,8,9.4339811320566032,208,119.03780911962384,0,15.556349186104045,4,13.038404810405298,0,15.556349186104045,29,34.713109915419565,3,13.038404810405298,0,15.556349186104045,66,57.870545184921149,0,22.627416997969522,0,22.627416997969522,0,15.556349186104045,34,29.206163733020468,11,19.416487838947599,0,22.627416997969522,14,21.95449840010015,3,12.083045973594572,0,15.556349186104045,6,13.601470508735444,0,15.556349186104045,0,15.556349186104045]
[null,"With no ambulatory difficulty",889,145.67086187704115,462,129.84991336154215,732,141.67568598739871,1011,156.64609794054877,216,48.010415536631214,331,66.843099868273612,476,104.01922899156675,9433,444.05855469746331,203,52.801515129776341,403,64.536811201050213,737,143.93401265857906,1828,268.63357943488745,1571,233.80547470065795,151,42.5205832509386,3254,317.92137392757979,862,164.19500601419034,733,225.41739063346466,205,55.569775957799216,1436,202.27703774773843,1001,190.91883092036784,1384,235.51857676200407,728,157.07959765672945,186,55.226805085936306,263,70.434366611761334,531,109.22453936730518,304,69.354163537598808,217,81.884064383737083]
[null,"35 to 64  years:",2010,140.80127840328723,1223,150.60212481900777,1379,148.49915824677257,3559,123.0690862889621,731,77.077882690172544,1160,99.005050376230813,1119,90.027773492406226,16491,467.20659241924233,671,87.045964869142551,1379,62.936475910238251,2179,189.80516325959101,3635,292.05650138286597,1749,195.90048494069634,450,49.497474683058329,5880,258.897663179875,2226,228.95414388038492,2778,203.82835916525454,893,97.621718894926246,1041,126.90547663517127,2185,149.24141516348604,3263,246.86838598735156,1770,164.62381358722072,611,80.622577482985491,821,101.17806086301516,1250,86.400231481171389,909,90.686272390037075,667,76.419892698171196]
[null,"With ambulatory difficulty",174,82.927679335671755,49,33.015148038438355,193,94.51454914456292,80,41.725292090050132,24,14.422205101855956,92,47.885279575251516,59,41.109609582188931,913,182.58422713914803,57,29.832867780352597,22,15.811388300841896,132,58.137767414994535,484,154.01298646542764,101,61.854668376768458,47,29.206163733020468,470,144.61673485458036,22,29.681644159311659,213,118.71394189394942,15,15.556349186104045,23,19.723082923316021,262,94.175368329515976,186,103.58571330062848,278,102.17631819555841,35,25.495097567963924,8,16.278820596099706,68,28.178005607210743,46,26,16,16.492422502470642]
[null,"With no ambulatory difficulty",1836,151.32745950421557,1174,153.37861650177967,1186,153.48289807011074,3479,132.38202294873727,707,77.781745930520231,1068,89.140338792266206,1060,98.310731865854805,15578,469.61473571428741,614,80.65977932030313,1357,62.936475910238251,2047,200.4120754844877,3151,285.28056365620142,1648,183.98369492974098,403,48.104053883222775,5410,279.11646314755421,2204,227.40272645683032,2565,208.47062143141417,878,97.621718894926246,1018,124.73972903610141,1923,162.63455967290594,3077,258.21115390315731,1492,161.83942659315127,576,75.822160349069449,813,101.17806086301516,1182,86.214847909162373,863,90.686272390037075,651,73.756355658343097]
[null,"65 to 74  years:",331,82.855295545909442,297,71.56116265125938,299,65.069193939989759,688,99.824846606443629,255,55.172456896534889,271,49.040799340956916,314,46.227697325304881,3362,209.46837470128995,71,27.802877548915689,252,36.069377593742864,466,90.609050320594349,697,139.20129309744217,318,83.450584180100265,161,48.826222462934808,1161,135.05924625881784,816,173.51080657987848,678,173.4156855650607,374,66.468037431535464,619,111.80339887498948,343,69.814038702828242,736,146.20875486782589,339,80.05623023850174,135,36.891733491393431,252,66.2872536767062,332,79.208585393251411,233,45.607017003965517,173,42.01190307520001]
[null,"With ambulatory difficulty",64,35.227829907617071,40,39.05124837953327,36,27.294688127912362,51,32.202484376209235,32,21.931712199461309,24,23.086792761230392,5,13.601470508735444,613,129.9576854210631,10,9.4339811320566032,16,11.661903789690601,72,41.868842830916641,110,53.712196007983138,0,15.556349186104045,15,14.866068747318506,236,83.450584180100265,72,51.623637996561229,125,91.787798753429101,6,14.212670403551895,37,41.484937025383083,30,24.758836806279895,72,52.153619241621193,43,33.61547262794322,10,11.704699910719626,10,19.416487838947599,55,50.219518117958877,3,12.083045973594572,27,25.495097567963924]
[null,"With no ambulatory difficulty",267,84.077345343439575,257,64.202803677098089,263,61.619802012015583,637,99.03534722511958,223,50.931326312987373,247,46.690470119715009,309,47.010637094172637,2749,216.93316943243141,61,25.80697580112788,236,36.796738985948195,394,86.556340033529608,587,133.40539719216761,318,83.450584180100265,146,45.803929962395145,925,134.35773144854747,744,171.47886167105261,553,155.58920271021378,368,66.468037431535464,582,109.62207806824317,313,65.215028942721474,664,134.31678971744373,296,75.432088662584434,125,36.891733491393431,242,65.192024052026483,277,62.625873247404705,230,45.607017003965517,146,36.76955262170047]
[null,"75  years and Older:",261,83.234608186739251,177,59.464274989274024,225,75.286120898874842,557,99.488692824863264,113,34.409301068170507,118,36.61966684720111,71,28.42534080710379,2777,286.75076285861911,71,26.92582403567252,62,24.839484696748443,236,85.702975444263316,449,98.005101908012932,182,73.552702193733168,68,36.069377593742864,815,149.80654191322887,478,140.08925726121899,345,116.01724009818541,146,49.51767361255979,767,144.25671561490648,159,51.478150704935004,325,113.25193155085701,212,74.303431953039691,90,31.906112267087632,172,54.671747731346578,158,49.091750834534309,76,26.90724809414742,195,55.470712993434653]
[null,"With ambulatory difficulty",78,40.496913462633174,36,28.178005607210743,93,55.21775076911409,144,62.649820430708338,9,14.212670403551895,31,20.808652046684813,10,13,787,191.06281689538653,45,21.470910553583888,21,14.317821063276353,106,61.400325732035007,181,85.440037453175307,33,31.240998703626616,28,23.345235059857504,292,101.04454463255303,143,83.52843827104634,190,97.652444925869617,48,29.410882339705484,149,53.338541412378348,46,30.413812651491099,80,51.419840528729765,69,44.598206241955516,35,24.596747752497688,13,21.95449840010015,59,37.589892258425003,10,7.810249675906654,47,31.953090617340916]
[null,"With no ambulatory difficulty",183,69.526973183074787,141,55.154328932550705,132,59.464274989274024,413,92.80086206496145,104,33.286633954186478,87,30.610455730027933,61,26.172504656604801,1990,235.07658326596462,26,14.866068747318506,41,21.2602916254693,130,61.611687202997452,268,79.259068881737434,149,68.680419334771102,40,28.319604517012593,523,128.99612397277679,335,113.37107214805724,155,71.217975259059429,98,39.824615503479755,618,130.87398519186308,113,45.221676218380054,245,99.644367628080218,143,64.350602172784676,55,21.2602916254693,159,51.662365412357957,99,39.698866482558415,66,25.495097567963924,148,41.725292090050132]
[]
[]
[]
[]
[]
[]
[]
[]
["B18105. SEX BY AGE BY AMBULATORY DIFFICULTY\n\n-Calculated"]
["Universe:  Civilian non-institutionalized population 5 years and over"]
["Data Set:  2008-2012 American Community Survey 5-Year Estimates"]
[]
[]
[null,null,"Allenstown",null,"Andover",null,"Boscawen",null,"Bow",null,"Bradford",null,"Canterbury",null,"Chichester",null,"Concord",null,"Danbury",null,"Dunbarton",null,"Epsom",null,"Franklin",null,"Henniker",null,"Hill",null,"Hooksett",null,"Hopkinton",null,"Loudon",null,"Newbury",null,"New London",null,"Northfield",null,"Pembroke",null,"Pittsfield",null,"Salisbury",null,"Sutton",null,"Warner",null,"Webster",null,"Wilmot"]
[null,null,"Estimate","Margin Of Error","Estimate","Margin Of Error","Estimate","Margin Of Error","Estimate","Margin Of Error","Estimate","Margin Of Error","Estimate","Margin Of Error","Estimate","Margin Of Error","Estimate","Margin Of Error","Estimate","Margin Of Error","Estimate","Margin Of Error","Estimate","Margin Of Error","Estimate","Margin Of Error","Estimate","Margin Of Error","Estimate","Margin Of Error","Estimate","Margin Of Error","Estimate","Margin Of Error","Estimate","Margin Of Error","Estimate","Margin Of Error","Estimate","Margin Of Error","Estimate","Margin Of Error","Estimate","Margin Of Error","Estimate","Margin Of Error","Estimate","Margin Of Error","Estimate","Margin Of Error","Estimate","Margin Of Error","Estimate","Margin Of Error","Estimate"]
[null,"Total:",4113,97,2370,240,3287,211,7362,99,1415,201,2272,134,2434,46,38112,389,1185,216,2670,45,4239,106,7917,164,4515,126,1147,180,12763,180,5343,106,4987,114,1982,242,4239,86,4404,145,6622,148,3759,104,1221,171,1673,221,2677,69,1685,150,1354,197]
[null,"5 to 17  years:",698,172.7917822120022,298,79.05694150420949,580,206.64946164943183,1791,192.4162155328911,203,73.23933369440222,395,96.607453128627711,447,84.876380695691779,6260,422.40383520986171,249,76.380625815713245,535,82.134036793524274,754,168.21712160181556,1558,304.90162347878703,798,185.69868066305693,275,73.23933369440222,2087,263.88254963146011,963,192.4162155328911,1112,221.00904958847272,307,84.811555816409836,547,112.4144118874444,932,207.20038610002638,1195,218.55205329623422,538,130.09611831257686,246,70.178344238091,356,90.520715861066847,411,99.724620831567975,317,68.8839603971781,259,73.661387442811588]
[null,"With ambulatory difficullty",24,42.449970553582247,0,15.556349186104045,17,30.083217912982647,17,29.681644159311659,0,15.556349186104045,5,13.601470508735444,0,15.556349186104045,7,27.294688127912362,0,15.556349186104045,14,26.40075756488817,0,15.556349186104045,28,45.880278987817846,14,26.40075756488817,0,15.556349186104045,14,28.42534080710379,0,22.627416997969522,10,21.931712199461309,4,12.529964086141668,0,15.556349186104045,8,17.804493814764857,0,22.627416997969522,0,15.556349186104045,0,15.556349186104045,0,15.556349186104045,0,15.556349186104045,0,15.556349186104045,0,15.556349186104045]
[null,"With no ambulatory difficullty",674,171.82840277439584,298,79.05694150420949,563,211.85136298829894,1774,194.60986614249546,203,73.23933369440222,390,96.607453128627711,447,84.876380695691779,6253,422.40383520986171,249,76.380625815713245,521,78.492037812761623,754,168.21712160181556,1530,302.72429700967183,784,183.44754018519845,275,73.23933369440222,2073,262.7279962242319,963,192.4162155328911,1102,220.20445045457188,303,84.02380615040002,547,112.4144118874444,924,206.00970850908945,1195,218.55205329623422,538,130.09611831257686,246,70.178344238091,356,90.520715861066847,411,99.724620831567975,317,68.8839603971781,259,73.661387442811588]
[null,"18 to 34  years:",1008,159.17600321656528,413,110.27692415006868,672,167.62159765376299,776,158.61904047118682,213,56.080299571239813,332,69.426219830839131,336,67.357256476195644,9580,403.78831087588458,239,70.767224051816527,349,94.175368329515976,745,152.64337522473747,1662,247.4914139924858,1422,221.77466041006579,171,44.553338819890925,3029,310.48510431259018,786,184.1738309315414,866,186.93581786270923,276,71.847059786744225,1146,197.85348114198041,834,147.8681845428556,1497,243.47895186237352,844,157.76247969653622,211,43.185645763378368,234,65.76473218982953,451,92.617492948146676,241,56.400354608814297,171,63.007936008093459]
[null,"With ambulatory difficullty",11,14.560219778561036,0,15.556349186104045,6,15.556349186104045,8,20.615528128088304,0,15.556349186104045,0,15.556349186104045,2,11.704699910719626,292,124.03628501370073,7,14.212670403551895,8,16.278820596099706,0,15.556349186104045,113,82.225300242686856,24,38.600518131237564,9,18.601075237738275,39,42.047592083257278,0,22.627416997969522,0,22.627416997969522,0,15.556349186104045,0,15.556349186104045,42,38.897300677553446,14,28.0178514522438,5,16.278820596099706,3,12.083045973594572,0,15.556349186104045,0,15.556349186104045,3,12.083045973594572,3,12.083045973594572]
[null,"With no ambulatory difficullty",997,159.17600321656528,413,110.27692415006868,666,169.79988221432899,768,158.61904047118682,213,56.080299571239813,332,69.426219830839131,334,67.357256476195644,9288,418.62871377868959,232,70.092795635500224,341,94.921019800674287,745,152.64337522473747,1549,239.26972228010797,1398,218.65269264292172,162,43.863424398922618,2990,306.89737698455491,786,184.1738309315414,866,186.93581786270923,276,71.847059786744225,1146,197.85348114198041,792,146.75489770362009,1483,246.61102976144437,839,157.0350279396288,208,43.863424398922618,234,65.76473218982953,451,92.617492948146676,238,55.803225713214822,168,63.007936008093459]
[null,"35 to 64  years:",1926,185.26737435393204,1179,140.60227594174995,1557,164.20109622045769,3790,142.89856542317,820,91.967385523347346,1237,82.024386617639507,1415,68.593002558570063,16930,419.56167603821967,547,81.467785044151043,1562,75.073297516493838,2159,118.1397477566293,3710,247.22661669003199,2026,185.53975315279473,588,74.411020689142546,5898,262.68041419184647,2609,152.02960238058901,2431,149.91330828182001,984,119.67038062946069,1162,134.23859355639868,2059,194.60986614249546,3168,233.96153530014288,1953,168.60011862392031,610,72.862884927787476,733,92.097774131626011,1394,105.38026380684383,923,74.518454090245328,664,89.10667763978185]
[null,"With ambulatory difficullty",103,54.561891462814962,130,57.384666941614292,126,69.656299069071991,136,91.214034007931033,47,30.413812651491099,35,27.018512172212592,74,43.863424398922618,1000,198.69826370655582,66,31.240998703626616,65,34.205262752974143,171,92.763139231054481,311,114.76933388322858,240,123.00406497347964,47,28.0178514522438,152,69.462219947249025,145,106.73799698326739,108,55.605755097831377,0,15.556349186104045,39,39.395431207184416,164,85.603738236130781,177,92.282175960474618,224,95.462034338264544,69,34.885527085024819,29,25,100,49.648766349225639,30,17.691806012954132,7,13.038404810405298]
[null,"With no ambulatory difficullty",1823,193.82982226685345,1049,123.3288287465668,1431,179.62739212046696,3654,143.55835050598765,773,87.321245982864909,1202,79.208585393251411,1341,82.024386617639507,15930,427.61898928836172,481,75.822160349069449,1497,80.430093870391573,1988,150.61540425866141,3399,246.80559150878247,1786,180.32470712578461,541,70.936591403872796,5746,272.24437551582218,2464,164.79381056338249,2323,161.24515496597098,984,119.67038062946069,1123,135.83077707206124,1895,198.31288409984865,2991,234.61670869739862,1729,170.58135888777531,541,71.589105316381762,704,90.553851381374173,1294,106.10372283760829,893,72.249567472753768,657,88.41379982785493]
[null,"65 to 74  years:",233,69.202601107183824,330,79.208585393251411,231,87.321245982864909,652,111.73182178770737,76,25.80697580112788,185,36.069377593742864,164,41.725292090050132,2640,197.29419656948858,107,30.232432915661949,169,40.36087214122113,430,108.22661410207751,497,110.34491379306978,106,49.929950931279713,76,23.345235059857504,1151,143.83671297690307,649,137.55726080436466,378,89.10667763978185,219,57.314919523628397,503,105.11898020814318,319,106.21675950620975,369,102.7277956543408,245,72.945184899347538,102,30,227,58.694122363316758,199,52.630789467763066,134,29.832867780352597,145,48.918299234540036]
[null,"With ambulatory difficullty",18,22.825424421026653,53,37.443290453698111,64,61.660360037871982,65,46.669047558312137,10,14.212670403551895,0,15.556349186104045,10,11.401754250991379,282,95.963534741067136,19,16.124515496597098,16,18.601075237738275,51,48.270073544588683,117,54.037024344425184,9,18.601075237738275,14,11.313708498984761,78,47.201694884823787,65,75.709972922990801,65,38.013155617496423,36,25.553864678361276,9,17.804493814764857,70,60.959002616512684,16,30.528675044947494,57,34.828149534535996,4,6.4031242374328485,4,12.083045973594572,10,15.556349186104045,16,10.63014581273465,5,13.601470508735444]
[null,"With no ambulatory difficullty",215,69.202601107183824,277,73.661387442811588,167,59.413803110051795,587,107.5174404457249,66,24.207436873820409,185,36.069377593742864,154,40.36087214122113,2358,205.65018842685265,88,23.345235059857504,153,38.897300677553446,379,100.68763578513501,380,104.80458005259122,97,48.259714048054619,62,22.803508501982758,1073,139.34489585198304,584,131.54847015454038,313,90.271811768680038,183,49.51767361255979,494,104.29285689825551,249,85.211501571090736,353,99.76472322419383,188,68.095521144932874,98,28.844410203711913,223,58,189,52.009614495783374,118,26.90724809414742,140,48.270073544588683]
[null,"75  years and Older:",248,83.600239234107462,150,66.037867924396224,247,76.576758876306585,353,97,103,34.655446902326915,123,41.773197148410844,72,36.878177829171548,2702,254.42091109026396,43,16.278820596099706,55,32.202484376209235,151,60.605280298007038,490,109.55363982999378,163,66.887966032762577,37,17.720045146669349,598,129.00387591076478,336,88.865066252155572,200,64.660652641308843,196,69.426219830839131,881,135.28118864054971,260,91.35097153287424,393,106.82696288858914,179,75.663729752107784,52,18.439088914585774,123,47.634021455258214,222,69.31089380465383,70,29.732137494637012,115,38.013155617496423]
[null,"With ambulatory difficullty",99,59.405386961116584,52,46.227697325304881,62,34.928498393145958,108,61.554853586049575,26,18.788294228055936,15,18.601075237738275,34,29.966648127543394,794,168.07438829280326,15,11.180339887498949,21,18.027756377319946,82,48.764741360946438,145,68.818602136341013,34,37.643060449437421,13,8.6023252670426267,183,81.706792863261981,56,46.097722286464439,77,39.962482405376171,98,51.400389103585589,142,66.219332524573218,93,49.678969393496885,105,68.8839603971781,76,61.911226768656427,9,7.810249675906654,24,17,84,49.497474683058329,25,20.615528128088304,36,22.825424421026653]
[null,"With no ambulatory difficullty",149,73.593477971896391,98,49.244289008980523,185,69.31089380465383,245,81.344944526380985,77,28.319604517012593,108,39.204591567825318,38,24.166091947189145,1908,238.59798825639751,28,13.601470508735444,34,26.627053911388696,69,38.600518131237564,345,87.200917426366559,129,59.405386961116584,24,20.248456731316587,415,111.30588483993108,280,80.448741444475061,123,54.378304497290095,98,48.373546489791295,739,129.72663566130126,167,76.837490849194182,288,95.482982777037293,103,43.829214001622255,43,17.204650534085253,99,44.687805943008662,138,54.451813560247928,45,21.095023109728988,79,31.953090617340916]

{"sheet":"ACS_Table_B18106","index":33,"n_rows":152,"n_cols":56,"rows_kept":152,"cut":false,"hidden":true,"merged":[]}
["B18106. SEX BY AGE BY SELF-CARE DIFFICULTY\n\n\n\n"]
["Universe:  Civilian non-institutionalized population 5 years and over"]
["Data Set: 2018-2022 American Community Survey 5-Year Estimates"]
[]
[null,null,"Allenstown",null,"Andover",null,"Boscawen",null,"Bow",null,"Bradford",null,"Canterbury",null,"Chichester",null,"Concord",null,"Danbury",null,"Dunbarton",null,"Epsom",null,"Franklin",null,"Henniker",null,"Hill",null,"Hooksett",null,"Hopkinton",null,"Loudon",null,"Newbury",null,"New London",null,"Northfield",null,"Pembroke",null,"Pittsfield",null,"Salisbury",null,"Sutton",null,"Warner",null,"Webster",null,"Wilmot"]
[null,null,"Estimate","Margin Of Error","Estimate","Margin Of Error","Estimate","Margin Of Error","Estimate","Margin Of Error","Estimate","Margin Of Error","Estimate","Margin Of Error","Estimate","Margin Of Error","Estimate","Margin Of Error","Estimate","Margin Of Error","Estimate","Margin Of Error","Estimate","Margin Of Error","Estimate","Margin Of Error","Estimate","Margin Of Error","Estimate","Margin Of Error","Estimate","Margin Of Error","Estimate","Margin Of Error","Estimate","Margin Of Error","Estimate","Margin Of Error","Estimate","Margin Of Error","Estimate","Margin Of Error","Estimate","Margin Of Error","Estimate","Margin Of Error","Estimate","Margin Of Error","Estimate","Margin Of Error","Estimate","Margin Of Error","Estimate","Margin Of Error","Estimate"]
[null,"Total:",4411,105,2091,305,3297,105,7606,157,1485,159,2202,239,2569,55,39787,356,1421,242,2793,112,4498,126,8291,116,5778,239,797,172,14056,238,5736,114,5488,105,1785,246,4103,108,4674,92,6937,134,3963,92,1534,358,2194,449,2712,62,1929,241,1392,189]
[null,"Male:",2271,160,1025,161,1648,137,3738,200,794,109,1095,151,1337,105,20064,593,711,103,1415,93,2090,129,3671,328,3050,238,466,113,6666,278,2679,219,2727,192,902,141,1848,142,2218,161,3706,258,1865,178,867,262,1121,236,1277,94,914,99,667,104]
[null,"5 to 17  years:",417,104,130,70,332,99,854,143,151,53,102,43,319,84,3060,322,96,44,256,43,283,94,450,148,441,131,40,24,930,241,411,146,314,140,122,69,214,97,372,180,733,192,225,80,187,161,121,53,217,65,110,32,82,39]
[null,"With self care difficulty",19,28,0,12,0,12,0,17,0,12,0,12,0,12,14,21,0,12,0,12,0,12,90,47,9,15,2,5,17,24,1,13,0,17,0,12,0,12,0,12,0,17,0,12,0,12,0,12,15,21,0,12,0,12]
[null,"With no self care difficulty",398,104,130,70,332,99,854,143,151,53,102,43,319,84,3046,321,96,44,256,43,283,94,360,135,432,127,38,24,913,243,410,150,314,140,122,69,214,97,372,180,733,192,225,80,187,161,121,53,202,64,110,32,82,39]
[null,"18 to 34  years:",580,127,272,134,345,112,625,165,166,59,222,64,255,58,5659,376,109,44,237,70,388,133,585,147,1092,273,128,75,1996,319,535,214,506,196,164,47,553,113,461,127,676,206,375,111,157,64,234,112,336,91,123,49,157,63]
[null,"With self care difficulty",0,12,4,8,0,12,0,17,0,12,0,12,0,12,121,115,0,12,0,12,0,12,0,17,19,30,0,12,0,19,0,17,0,17,0,12,0,12,36,41,35,56,0,12,0,12,0,12,0,12,0,12,0,12]
[null,"With no self care difficulty",580,127,268,135,345,112,625,165,166,59,222,64,255,58,5538,389,109,44,237,70,388,133,585,147,1073,275,128,75,1996,319,535,214,506,196,164,47,553,113,425,118,641,187,375,111,157,64,234,112,336,91,123,49,157,63]
[null,"35 to 64  years:",984,142,389,120,653,119,1649,131,287,51,518,104,588,66,8065,465,331,68,665,81,991,161,1919,237,904,214,195,48,2732,227,1273,172,1319,192,445,85,438,84,1000,151,1873,235,845,178,299,105,505,112,510,74,523,86,303,63]
[null,"With self care difficulty",14,22,0,12,0,12,9,14,12,16,6,9,0,12,131,79,10,12,0,12,9,14,93,82,0,17,3,5,24,39,0,17,68,67,0,12,0,12,0,12,115,107,14,21,0,12,21,22,0,12,9,8,0,12]
[null,"With no self care difficulty",970,140,389,120,653,119,1640,132,275,48,512,104,588,66,7934,469,321,67,665,81,982,158,1826,252,904,214,192,47,2708,222,1273,172,1251,214,445,85,438,84,1000,151,1758,224,831,178,299,105,484,116,510,74,514,86,303,63]
[null,"65 to 74  years:",252,120,107,45,229,104,397,71,158,52,164,42,107,29,2012,301,97,43,188,76,305,85,460,120,501,264,61,25,624,139,356,97,280,127,98,34,333,84,246,76,262,78,299,97,181,89,163,86,169,48,120,33,85,25]
[null,"With self care difficulty",0,12,0,12,8,12,12,19,3,5,4,6,0,12,54,65,14,22,0,12,16,18,27,29,0,17,3,5,56,56,10,17,74,101,4,7,0,12,9,14,15,24,0,12,0,12,10,10,17,22,7,11,0,12]
[null,"With no self care difficulty",252,120,107,45,221,103,385,70,155,53,160,42,107,29,1958,310,83,32,188,76,289,80,433,122,501,264,58,24,568,133,346,97,206,100,94,34,333,84,237,76,247,78,299,97,181,89,153,87,152,45,113,32,85,25]
[null,"75  years and Older:",38,33,127,91,89,56,213,71,32,16,89,32,68,26,1268,203,78,68,69,21,123,73,257,90,112,64,42,24,384,114,104,65,308,123,73,31,310,112,139,76,162,65,121,68,43,30,98,56,45,26,38,21,40,22]
[null,"With self care difficulty",1,2,0,12,10,16,8,12,11,12,0,12,8,8,47,53,0,12,16,11,8,13,9,23,0,17,17,17,35,40,0,17,84,91,18,20,15,16,0,12,0,17,0,12,16,18,0,12,9,9,8,10,0,12]
[null,"With no self care difficulty",37,33,127,91,79,60,205,72,21,10,89,32,60,24,1221,212,78,68,53,21,115,68,248,84,112,64,25,19,349,114,104,65,224,96,55,25,295,112,139,76,162,65,121,68,27,24,98,56,36,24,30,17,40,22]
[null,"Female:",2140,157,1066,177,1649,127,3868,187,691,84,1107,151,1232,101,19723,536,710,158,1378,112,2408,150,4620,340,2728,242,331,71,7390,313,3057,242,2761,209,883,126,2255,135,2456,161,3231,219,2098,158,667,116,1073,244,1435,94,1015,174,725,110]
[null,"5 to 17  years:",299,85,145,60,220,105,606,139,118,50,170,75,101,32,2630,296,111,53,294,92,541,157,633,167,255,87,32,23,1275,285,440,187,370,190,148,52,139,63,373,89,620,142,377,158,80,37,243,89,155,60,196,108,81,35]
[null,"With self care difficulty",0,12,0,12,0,12,0,17,0,12,0,12,0,12,27,44,0,12,0,12,0,12,18,29,0,17,0,12,0,19,0,17,0,17,0,12,0,12,0,12,0,17,0,12,0,12,0,12,14,18,0,12,0,12]
[null,"With no self care difficulty",299,85,145,60,220,105,606,139,118,50,170,75,101,32,2603,293,111,53,294,92,541,157,615,168,255,87,32,23,1275,285,440,187,370,190,148,52,139,63,373,89,620,142,377,158,80,37,243,89,141,55,196,108,81,35]
[null,"18 to 34  years:",611,163,191,72,360,147,717,161,98,40,223,82,183,66,4973,416,72,34,221,78,453,111,921,244,944,171,39,21,1881,281,738,331,291,116,116,49,658,109,462,159,763,203,328,110,59,29,123,95,375,114,173,75,169,66]
[null,"With self care difficulty",5,10,0,12,0,12,0,17,0,12,0,12,0,12,20,22,0,12,0,12,0,12,0,17,0,17,0,12,34,48,0,17,0,17,0,12,0,12,18,25,0,17,0,12,3,5,0,12,0,12,0,12,0,12]
[null,"With no self care difficulty",606,163,191,72,360,147,717,161,98,40,223,82,183,66,4953,417,72,34,221,78,453,111,921,244,944,171,39,21,1847,274,738,331,291,116,116,49,658,109,444,152,763,203,328,110,56,28,123,95,375,114,173,75,169,66]
[null,"35 to 64  years:",945,147,372,75,754,141,1799,133,310,53,475,64,681,86,8012,417,386,121,619,70,956,124,1957,286,936,209,199,45,2914,241,1336,128,1433,195,393,84,598,95,1212,148,1398,206,886,152,349,99,511,115,528,74,498,85,303,81]
[null,"With self care difficulty",32,51,6,8,0,12,0,17,0,12,0,12,6,8,179,149,3,4,0,12,10,16,37,61,0,17,0,12,33,27,0,17,0,17,0,12,0,12,55,44,32,38,44,50,9,14,0,12,0,12,0,12,0,12]
[null,"With no self care difficulty",913,143,366,75,754,141,1799,133,310,53,475,64,675,86,7833,410,383,121,619,70,946,122,1920,273,936,209,199,45,2881,242,1336,128,1433,195,393,84,598,95,1157,163,1366,205,842,151,340,99,511,115,528,74,498,85,303,81]
[null,"65 to 74  years:",180,69,146,51,220,69,473,87,117,31,140,35,173,51,2410,278,105,48,153,67,363,102,536,131,512,262,48,19,772,152,368,105,581,140,97,27,331,107,278,116,275,114,322,130,122,36,96,36,217,63,105,32,80,31]
[null,"With self care difficulty",0,12,8,12,12,18,29,33,6,6,4,6,4,6,74,57,0,12,0,12,9,15,37,48,192,261,7,9,18,23,48,43,42,49,0,12,17,27,0,12,10,15,0,12,3,6,0,12,17,21,11,16,0,12]
[null,"With no self care difficulty",180,69,138,49,208,65,444,83,111,29,136,35,169,51,2336,273,105,48,153,67,354,99,499,126,320,114,41,17,754,149,320,96,539,133,97,27,314,106,278,116,265,110,322,130,119,35,96,36,200,59,94,28,80,31]
[null,"75  years and Older:",105,63,212,126,95,48,273,97,48,25,99,47,94,37,1698,239,36,22,91,30,95,59,573,254,81,58,13,15,548,163,175,82,86,90,129,49,529,154,131,53,175,78,185,87,57,35,100,76,160,58,43,20,92,34]
[null,"With self care difficulty",10,15,14,22,0,12,4,7,0,12,0,12,12,12,120,95,0,12,0,12,0,12,103,92,0,17,0,12,22,26,0,17,14,22,17,14,13,20,9,13,18,30,36,31,8,7,0,12,0,12,4,6,4,7]
[null,"With no self care difficulty",95,61,198,124,95,48,269,97,48,25,99,47,82,33,1578,235,36,22,91,30,95,59,470,240,81,58,13,15,526,164,175,82,72,86,112,51,516,155,122,52,157,75,149,85,49,34,100,76,160,58,39,18,88,32]
[]
[]
[{"$f":"A1& \"-Calculated\"","v":"B18106. SEX BY AGE BY SELF-CARE DIFFICULTY\n\n\n\n-Calculated"}]
[{"$f":"A2","v":"Universe:  Civilian non-institutionalized population 5 years and over"}]
[{"$f":"A3","v":"Data Set: 2018-2022 American Community Survey 5-Year Estimates"}]
[]
[]
[null,null,"Allenstown",null,"Andover",null,"Boscawen",null,"Bow",null,"Bradford",null,"Canterbury",null,"Chichester",null,"Concord",null,"Danbury",null,"Dunbarton",null,"Epsom",null,"Franklin",null,"Henniker",null,"Hill",null,"Hooksett",null,"Hopkinton",null,"Loudon",null,"Newbury",null,"New London",null,"Northfield",null,"Pembroke",null,"Pittsfield",null,"Salisbury",null,"Sutton",null,"Warner",null,"Webster",null,"Wilmot"]
[null,null,"Estimate","Margin Of Error","Estimate","Margin Of Error","Estimate","Margin Of Error","Estimate","Margin Of Error","Estimate","Margin Of Error","Estimate","Margin Of Error","Estimate","Margin Of Error","Estimate","Margin Of Error","Estimate","Margin Of Error","Estimate","Margin Of Error","Estimate","Margin Of Error","Estimate","Margin Of Error","Estimate","Margin Of Error","Estimate","Margin Of Error","Estimate","Margin Of Error","Estimate","Margin Of Error","Estimate","Margin Of Error","Estimate","Margin Of Error","Estimate","Margin Of Error","Estimate","Margin Of Error","Estimate","Margin Of Error","Estimate","Margin Of Error","Estimate","Margin Of Error","Estimate","Margin Of Error","Estimate","Margin Of Error","Estimate","Margin Of Error","Estimate","Margin Of Error"]
[null,"Total:",{"$f":"C7","v":4411},105,2091,305,3297,105,7606,157,1485,159,2202,239,2569,55,39787,356,1421,242,2793,112,4498,126,8291,116,5778,239,797,172,14056,238,5736,114,5488,105,1785,246,4103,108,4674,92,6937,134,3963,92,1534,358,2194,449,2712,62,1929,241,1392,189]
[null,"5 to 17  years:",{"$f":"C25+C9","v":716},{"$f":"SQRT((D25^2)+(D9^2))","v":134.31678971744373},{"$f":"E25+E9","v":275},{"$f":"SQRT((F25^2)+(F9^2))","v":92.195444572928878},{"$f":"G25+G9","v":552},{"$f":"SQRT((H25^2)+(H9^2))","v":144.31216164966833},{"$f":"I25+I9","v":1460},{"$f":"SQRT((J25^2)+(J9^2))","v":199.42417105255822},{"$f":"K25+K9","v":269},{"$f":"SQRT((L25^2)+(L9^2))","v":72.862884927787476},{"$f":"M25+M9","v":272},{"$f":"SQRT((N25^2)+(N9^2))","v":86.452298986203942},{"$f":"O25+O9","v":420},{"$f":"SQRT((P25^2)+(P9^2))","v":89.888820216976924},{"$f":"Q25+Q9","v":5690},{"$f":"SQRT((R25^2)+(R9^2))","v":437.37855457258075},{"$f":"S25+S9","v":207},{"$f":"SQRT((T25^2)+(T9^2))","v":68.8839603971781},{"$f":"U25+U9","v":550},{"$f":"SQRT((V25^2)+(V9^2))","v":101.55294185792945},{"$f":"W25+W9","v":824},{"$f":"SQRT((X25^2)+(X9^2))","v":182.98907071188705},{"$f":"Y25+Y9","v":1083},{"$f":"SQRT((Z25^2)+(Z9^2))","v":223.14345161801185},{"$f":"AA25+AA9","v":696},{"$f":"SQRT((AB25^2)+(AB9^2))","v":157.25775020646836},{"$f":"AC25+AC9","v":72},{"$f":"SQRT((AD25^2)+(AD9^2))","v":33.241540277189323},{"$f":"AE25+AE9","v":2205},{"$f":"SQRT((AF25^2)+(AF9^2))","v":373.23719000121088},{"$f":"AG25+AG9","v":851},{"$f":"SQRT((AH25^2)+(AH9^2))","v":237.24459951703852},{"$f":"AI25+AI9","v":684},{"$f":"SQRT((AJ25^2)+(AJ9^2))","v":236.00847442411893},{"$f":"AK25+AK9","v":270},{"$f":"SQRT((AL25^2)+(AL9^2))","v":86.400231481171389},{"$f":"AM25+AM9","v":353},{"$f":"SQRT((AN25^2)+(AN9^2))","v":115.66330446602328},{"$f":"AO25+AO9","v":745},200.80089641234176,{"$f":"AQ25+AQ9","v":1353},238.8053600738476,{"$f":"AS25+AS9","v":602},177.09884245810304,{"$f":"AU25+AU9","v":267},165.19685227025363,{"$f":"AW25+AW9","v":364},103.58571330062848,{"$f":"AY25+AY9","v":372},88.459030064770658,{"$f":"BA25+BA9","v":306},112.64102272262978,{"$f":"BC25+BC9","v":163},52.40229002629561]
[null,"With self care difficulty",19,30.463092423455635,0,16.970562748477139,0,16.970562748477139,0,24.041630560342615,0,16.970562748477139,0,16.970562748477139,0,16.970562748477139,41,48.754486972995622,0,16.970562748477139,0,16.970562748477139,0,16.970562748477139,108,55.226805085936306,9,22.671568097509269,2,13,17,30.610455730027933,1,21.400934559032695,0,24.041630560342615,0,16.970562748477139,0,16.970562748477139,0,16.970562748477139,0,24.041630560342615,0,16.970562748477139,0,16.970562748477139,0,16.970562748477139,29,27.658633371878661,0,16.970562748477139,0,16.970562748477139]
[null,"With no self care difficulty",697,134.31678971744373,275,92.195444572928878,552,144.31216164966833,1460,199.42417105255822,269,72.862884927787476,272,86.452298986203942,420,89.888820216976924,5649,434.61477195327819,207,68.8839603971781,550,101.55294185792945,824,182.98907071188705,975,215.52030066794171,687,153.94154734833609,70,33.241540277189323,2188,374.53170760297451,850,239.7269279826528,684,236.00847442411893,270,86.400231481171389,353,115.66330446602328,745,200.80089641234176,1353,238.8053600738476,602,177.09884245810304,267,165.19685227025363,364,103.58571330062848,343,84.38601779915912,306,112.64102272262978,163,52.40229002629561]
[null,"18 to 34  years:",1191,206.63494380186523,463,152.11837495845134,705,184.80530295421721,1342,230.53416232740864,264,71.28113354878694,445,104.01922899156675,438,87.863530545955186,10632,560.74236508400179,181,55.605755097831377,458,104.80458005259122,841,173.23394586512194,1506,284.85961454723622,2036,322.13351269310681,167,77.884529914483011,3877,425.1141023301862,1273,394.153523389047,797,227.75425352778814,280,67.896980787071826,1211,157.00318468107582,923,203.49447166937975,1439,289.21445330411825,703,156.27219842313605,216,70.263788682364691,357,146.86388255796589,711,145.86637720873168,296,89.587945617700157,326,91.241437954473298]
[null,"With self care difficulty",5,15.620499351813308,4,14.422205101855956,0,16.970562748477139,0,24.041630560342615,0,16.970562748477139,0,16.970562748477139,0,16.970562748477139,141,117.08543888972702,0,16.970562748477139,0,16.970562748477139,0,16.970562748477139,0,24.041630560342615,19,34.481879299133332,0,16.970562748477139,34,51.623637996561229,0,24.041630560342615,0,24.041630560342615,0,16.970562748477139,0,16.970562748477139,54,48.020828814171878,35,58.523499553598128,0,16.970562748477139,3,13,0,16.970562748477139,0,16.970562748477139,0,16.970562748477139,0,16.970562748477139]
[null,"With no self care difficulty",1186,206.63494380186523,459,153,705,184.80530295421721,1342,230.53416232740864,264,71.28113354878694,445,104.01922899156675,438,87.863530545955186,10491,570.27186499072525,181,55.605755097831377,458,104.80458005259122,841,173.23394586512194,1506,284.85961454723622,2017,323.83020242096012,167,77.884529914483011,3843,420.51991629410372,1273,394.153523389047,797,227.75425352778814,280,67.896980787071826,1211,157.00318468107582,869,192.42660938653989,1404,276.0036231646244,703,156.27219842313605,213,69.856996786291916,357,146.86388255796589,711,145.86637720873168,296,89.587945617700157,326,91.241437954473298]
[null,"35 to 64  years:",1929,204.38444167793205,761,141.50971698084905,1407,184.50474248647376,3448,186.6815470259447,597,73.552702193733168,993,122.11470017978998,1269,108.40664186294121,16077,624.59106621852993,717,138.7984149765407,1284,107.05606008068857,1947,203.21663317750347,3876,371.43640101637857,1840,299.12706330253701,394,65.79513659838392,5646,331.07400985278201,2609,214.40149253211834,2752,273.65854636754904,838,119.50313803411188,1036,126.81088281373961,2212,211.43556938225885,3271,312.50759990758627,1731,234.06836608136521,648,144.31216164966833,1016,160.52725625263767,1038,104.65180361560904,1021,120.91732712891069,606,102.61578825892242]
[null,"With self care difficulty",46,55.542776307995261,6,14.422205101855956,0,16.970562748477139,9,22.022715545545239,12,20,6,15,6,14.422205101855956,310,168.64756150030749,13,12.649110640673518,0,16.970562748477139,19,21.2602916254693,130,102.20078277586722,0,24.041630560342615,3,13,57,47.434164902525687,0,24.041630560342615,68,69.123078635141823,0,16.970562748477139,0,16.970562748477139,55,45.607017003965517,147,113.54734695271397,58,54.230987451824994,9,18.439088914585774,21,25.059928172283335,0,16.970562748477139,9,14.422205101855956,0,16.970562748477139]
[null,"With no self care difficulty",1883,200.12246250733574,755,141.50971698084905,1407,184.50474248647376,3439,187.3846311734236,585,71.505244562899023,987,122.11470017978998,1263,108.40664186294121,15767,622.9454229705841,704,138.31124321616085,1284,107.05606008068857,1928,199.61963831246663,3746,371.52792627203678,1840,299.12706330253701,391,65.069193939989759,5589,328.40219244091537,2609,214.40149253211834,2684,289.5185658986311,838,119.50313803411188,1036,126.81088281373961,2157,222.19360926903366,3124,303.64617567161946,1673,233.42022191746798,639,144.31216164966833,995,163.3431969810803,1038,104.65180361560904,1012,120.91732712891069,606,102.61578825892242]
[null,"65 to 74  years:",432,138.42326394071193,253,68.01470429252781,449,124.80785231707178,870,112.29425630903836,275,60.539243470661241,304,54.671747731346578,280,58.668560575490517,4422,409.73772098746292,202,64.443773942872099,341,101.31633629380802,668,132.77424449041311,996,177.65415840897168,1013,371.94085551334638,109,31.400636936215164,1396,205.9732992404598,724,142.94754282603111,861,189.02116283633427,195,43.416586692184822,664,136.03308421115798,524,138.67948658687772,537,138.13037319865606,621,162.2004932174992,303,96.005208192055917,259,93.23089616645332,386,79.202272694664515,225,45.967379738244816,165,39.824615503479755]
[null,"With self care difficulty",0,16.970562748477139,8,16.970562748477139,20,21.633307652783937,41,38.078865529319543,9,7.810249675906654,8,8.4852813742385695,4,13.416407864998739,128,86.452298986203942,14,25.059928172283335,0,16.970562748477139,25,23.430749027719962,64,56.080299571239813,192,261.55305389155751,10,10.295630140987001,74,60.539243470661241,58,46.238512086787566,116,112.25862995778988,4,13.892443989449804,17,29.546573405388315,9,18.439088914585774,25,28.301943396169811,0,16.970562748477139,3,13.416407864998739,10,15.620499351813308,34,30.413812651491099,18,19.416487838947599,0,16.970562748477139]
[null,"With no self care difficulty",432,138.42326394071193,245,66.528189513919585,429,121.79490958164057,829,108.57716150277645,266,60.415229867972862,296,54.671747731346578,276,58.668560575490517,4294,413.07263283834237,188,57.688820407423826,341,101.31633629380802,643,127.28314892396401,932,175.38529014715002,821,287.56216719172221,99,29.410882339705484,1322,199.7248106770914,666,136.4734406395618,745,166.4001201922643,191,43.416586692184822,647,135.2479205015737,515,138.67948658687772,512,134.84806264830058,621,162.2004932174992,300,95.634721728041853,249,94.154128958851288,352,74.202425836356596,207,42.5205832509386,165,39.824615503479755]
[null,"75  years and Older:",143,71.119617546778187,339,155.42522317822161,184,73.756355658343097,486,120.20815280171308,80,29.681644159311659,188,56.859475903318,162,45.221676218380054,2966,313.57614705203582,114,71.470273540822546,160,36.61966684720111,218,93.861600242058515,830,269.47356085523495,193,86.371291526756735,55,28.301943396169811,932,198.90952717253137,279,104.63746938836012,394,152.41062955056645,202,57.982756057296896,839,190.42058712229621,270,92.655275079188016,337,101.53324578678651,306,110.42191811411355,100,46.097722286464439,198,94.403389769647575,205,63.560994328282817,81,29,132,40.496913462633174]
[null,"With self care difficulty",11,15.132745950421556,14,25.059928172283335,10,20,12,13.892443989449804,11,16.970562748477139,0,16.970562748477139,20,14.422205101855956,167,108.78419002777932,0,16.970562748477139,16,16.278820596099706,8,17.691806012954132,112,94.831429389206193,0,24.041630560342615,17,20.808652046684813,57,47.707441767506253,0,24.041630560342615,98,93.621578709184348,35,24.413111231467404,28,25.612496949731394,9,17.691806012954132,18,34.481879299133332,36,33.241540277189323,24,19.313207915827967,0,16.970562748477139,9,15,12,11.661903789690601,4,13.892443989449804]
[null,"With no self care difficulty",132,69.354163537598808,325,153.80832227158581,174,76.837490849194182,474,120.80149005703531,69,26.92582403567252,188,56.859475903318,142,40.80441152620633,2799,316.49486567715439,114,71.470273540822546,144,36.61966684720111,210,90.027773492406226,718,254.27544120500508,193,86.371291526756735,38,24.207436873820409,875,199.72981750354651,279,104.63746938836012,296,128.8875478857442,167,56.797887284651708,811,191.23022773609824,261,92.086915465770701,319,99.247166206396045,270,108.85311203635843,76,41.617304093369626,198,94.403389769647575,196,62.769419305900861,69,24.758836806279895,128,38.832975677895199]
[]
[]
[]
[]
[]
[]
[]
[]
[]
[]
[]
[]
[]
[]
[]
[]
[]
[]
[]
[]
[]
[]
[]
[]
[]
[]
[]
[]
[]
[]
[]
[]
[]
[]
[]
["B18106. SEX BY AGE BY SELF-CARE DIFFICULTY\n\n\n\n-Calculated"]
["Universe:  Civilian non-institutionalized population 5 years and over"]
["Data Set: 2013-2017 American Community Survey 5-Year Estimates"]
[]
[]
[null,null,"Allenstown",null,"Andover",null,"Boscawen",null,"Bow",null,"Bradford",null,"Canterbury",null,"Chichester",null,"Concord",null,"Danbury",null,"Dunbarton",null,"Epsom",null,"Franklin",null,"Henniker",null,"Hill",null,"Hooksett",null,"Hopkinton",null,"Loudon",null,"Newbury",null,"New London",null,"Northfield",null,"Pembroke",null,"Pittsfield",null,"Salisbury",null,"Sutton",null,"Warner",null,"Webster",null,"Wilmot"]
[null,null,"Estimate","Margin Of Error","Estimate","Margin Of Error","Estimate","Margin Of Error","Estimate","Margin Of Error","Estimate","Margin Of Error","Estimate","Margin Of Error","Estimate","Margin Of Error","Estimate","Margin Of Error","Estimate","Margin Of Error","Estimate","Margin Of Error","Estimate","Margin Of Error","Estimate","Margin Of Error","Estimate","Margin Of Error","Estimate","Margin Of Error","Estimate","Margin Of Error","Estimate","Margin Of Error","Estimate","Margin Of Error","Estimate","Margin Of Error","Estimate","Margin Of Error","Estimate","Margin Of Error","Estimate","Margin Of Error","Estimate","Margin Of Error","Estimate","Margin Of Error","Estimate","Margin Of Error","Estimate","Margin Of Error","Estimate","Margin Of Error","Estimate"]
[null,"Total:",4066,89,2689,296,3217,228,7344,105,1631,182,2148,227,2427,76,38411,348,1164,151,2633,47,4353,127,7854,224,4459,156,912,124,13245,226,5359,106,5184,124,1853,201,4324,100,4416,120,6924,110,3796,144,1212,163,1838,249,2733,70,1789,177,1431,170]
[null,"5 to 17  years:",547,134.61797799699713,530,129.52991932368366,573,153.80832227158581,1521,166.87720036002523,316,71.589105316381762,268,87.658428003244509,439,80.802227692063042,6140,412.01213574359673,148,59.203040462462738,533,66.603303221386852,735,172.5688268488837,1216,215.67800073257357,636,171.11984104714449,82,33.421549934136806,2069,269.42902590478258,977,268.12683565805196,650,246.00203251192866,235,62.22539674441618,427,114.33722053644648,717,151.34397906755325,1216,231.01947969814148,733,141.48498153514387,187,52.430906915673319,330,104,456,86.833173384369644,267,58.258046654518033,179,65.436992595931542]
[null,"With self care difficulty",0,15.556349186104045,0,15.556349186104045,10,19.416487838947599,8,20.615528128088304,0,15.556349186104045,0,15.556349186104045,0,15.556349186104045,49,38.600518131237564,0,15.556349186104045,6,13.601470508735444,0,15.556349186104045,16,17.691806012954132,0,15.556349186104045,0,15.556349186104045,37,44.294469180700204,38,40.36087214122113,0,22.627416997969522,0,15.556349186104045,21,26.40075756488817,0,15.556349186104045,0,22.627416997969522,0,15.556349186104045,0,15.556349186104045,0,15.556349186104045,0,15.556349186104045,3,11.704699910719626,0,15.556349186104045]
[null,"With no self care difficulty",547,134.61797799699713,530,129.52991932368366,563,154.46682491719702,1513,166.17159805454119,316,71.589105316381762,268,87.658428003244509,439,80.802227692063042,6091,414.65648433371928,148,59.203040462462738,527,66.603303221386852,735,172.5688268488837,1200,215.6965461012299,636,171.11984104714449,82,33.421549934136806,2032,263.50332066218823,939,264.09278672466615,650,246.00203251192866,235,62.22539674441618,406,113.56936206565572,717,151.34397906755325,1216,231.01947969814148,733,141.48498153514387,187,52.430906915673319,330,104,456,86.833173384369644,264,56.727418414731339,179,65.436992595931542]
[null,"18 to 34  years:",917,147.10540438746634,462,129.84991336154215,741,140.92906016858268,1019,156.64609794054877,216,48.010415536631214,331,66.843099868273612,484,104.80935072788114,9641,445.9069409641433,203,52.801515129776341,407,64.536811201050213,737,143.93401265857906,1857,269.87589740471452,1574,234.58047659598614,151,42.5205832509386,3320,320.22023671217283,862,164.19500601419034,733,225.41739063346466,205,55.569775957799216,1470,208.69355524308841,1012,190.21303845951255,1384,235.51857676200407,742,155.05160431288675,189,55.97320787662612,263,70.434366611761334,537,110.53506231056279,304,69.354163537598808,217,81.884064383737083]
[null,"With self care difficulty",28,45.354161881794269,0,15.556349186104045,22,28.231188426986208,8,21.2602916254693,0,15.556349186104045,7,14.866068747318506,8,9.4339811320566032,138,90.520715861066847,0,15.556349186104045,4,13.038404810405298,0,15.556349186104045,0,22.627416997969522,0,15.556349186104045,0,15.556349186104045,74,52.924474489596967,0,22.627416997969522,0,22.627416997969522,5,13.601470508735444,13,21.095023109728988,0,15.556349186104045,0,22.627416997969522,6,17.804493814764857,3,12.083045973594572,0,15.556349186104045,6,13.601470508735444,0,15.556349186104045,0,15.556349186104045]
[null,"With no self care difficulty",889,145.67086187704115,462,129.84991336154215,719,140.18559127100045,1011,156.64609794054877,216,48.010415536631214,324,66.843099868273612,476,104.01922899156675,9503,451.10641760010463,203,52.801515129776341,403,64.536811201050213,737,143.93401265857906,1857,269.87589740471452,1574,234.58047659598614,151,42.5205832509386,3246,317.40352865083275,862,164.19500601419034,733,225.41739063346466,200,55.569775957799216,1457,206.64946164943183,1012,190.21303845951255,1384,235.51857676200407,736,155.72411502397438,186,55.226805085936306,263,70.434366611761334,531,109.22453936730518,304,69.354163537598808,217,81.884064383737083]
[null,"35 to 64  years:",2010,140.80127840328723,1223,150.60212481900777,1379,148.49915824677257,3559,123.0690862889621,731,77.077882690172544,1160,99.005050376230813,1119,90.027773492406226,16491,467.20659241924233,671,87.045964869142551,1379,62.936475910238251,2179,189.80516325959101,3635,292.05650138286597,1749,195.90048494069634,450,49.497474683058329,5880,258.897663179875,2226,228.95414388038492,2778,203.82835916525454,893,97.621718894926246,1041,126.90547663517127,2185,149.24141516348604,3263,246.86838598735156,1770,164.62381358722072,611,80.622577482985491,821,101.17806086301516,1250,86.400231481171389,909,90.686272390037075,667,76.419892698171196]
[null,"With self care difficulty",43,50.219518117958877,23,21.95449840010015,53,55.154328932550705,38,28.284271247461902,8,8.9442719099991592,0,15.556349186104045,31,19.235384061671343,316,103.58571330062848,13,9.2195444572928871,10,9.8994949366116654,48,47.296934361541872,59,36.878177829171548,47,34.409301068170507,21,22.671568097509269,67,45.343136195018538,0,22.627416997969522,25,43.08131845707603,4,12.083045973594572,16,20.248456731316587,51,38.418745424597091,70,48.60041152089147,45,40.311288741492746,3,11.704699910719626,0,15.556349186104045,23,20.248456731316587,9,15.556349186104045,13,16.492422502470642]
[null,"With no self care difficulty",1967,144.95861478366851,1200,150.60212481900777,1326,152.04275714416653,3521,125.39936203984452,723,77.781745930520231,1160,99.005050376230813,1088,90.686272390037075,16175,466.34429341421128,658,87.045964869142551,1369,62.936475910238251,2131,192.87560758167425,3576,296.28533544541148,1702,188.13824704190267,429,48.083261120685229,5813,263.79727064547126,2226,228.95414388038492,2753,198.43638779215871,889,97.621718894926246,1025,125.39936203984452,2134,152.76125163142649,3193,246.98582955303326,1725,165.07574019219177,608,80.622577482985491,821,101.17806086301516,1227,86.05230967266364,900,90.686272390037075,654,74.518454090245328]
[null,"65 to 74  years:",331,82.855295545909442,297,71.56116265125938,299,65.069193939989759,688,99.824846606443629,255,55.172456896534889,271,49.040799340956916,314,46.227697325304881,3362,209.46837470128995,71,27.802877548915689,252,36.069377593742864,466,90.609050320594349,697,139.20129309744217,318,83.450584180100265,161,48.826222462934808,1161,135.05924625881784,816,173.51080657987848,678,173.4156855650607,374,66.468037431535464,619,111.80339887498948,343,69.814038702828242,736,146.20875486782589,339,80.05623023850174,135,36.891733491393431,252,66.2872536767062,332,79.208585393251411,233,45.607017003965517,173,42.01190307520001]
[null,"With self care difficulty",33,23.853720883753127,5,13.601470508735444,9,17.029386365926403,19,21.470910553583888,3,11.704699910719626,7,14.866068747318506,0,15.556349186104045,170,66.468037431535464,4,12.083045973594572,0,15.556349186104045,29,25.942243542145693,14,18.027756377319946,0,15.556349186104045,3,12.083045973594572,105,54.037024344425184,0,22.627416997969522,13,26.40075756488817,6,14.212670403551895,18,29.154759474226502,9,17.804493814764857,14,26.40075756488817,25,27.018512172212592,2,12.083045973594572,0,15.556349186104045,31,44.283179650969061,0,15.556349186104045,13,21.95449840010015]
[null,"With no self care difficulty",298,80.950602221354728,292,70.724818840347695,290,64.350602172784676,669,96.426137535421375,252,55.172456896534889,264,46.010868281309364,314,46.227697325304881,3192,209.22953902353271,67,27.202941017470888,252,36.069377593742864,437,89.498603341057787,683,139.20129309744217,318,83.450584180100265,158,48.826222462934808,1056,135.10366390294527,816,173.51080657987848,665,171.9447585708852,368,66.468037431535464,601,109.62207806824317,334,68.600291544569984,722,146.20875486782589,314,77.336925203941234,133,36.891733491393431,252,66.2872536767062,301,66.610809933523555,233,45.607017003965517,160,37.483329627982627]
[null,"75  years and Older:",261,83.234608186739251,177,59.464274989274024,225,75.286120898874842,557,99.488692824863264,113,34.409301068170507,118,36.61966684720111,71,28.42534080710379,2777,286.75076285861911,71,26.92582403567252,62,24.839484696748443,236,85.702975444263316,449,98.005101908012932,182,73.552702193733168,68,36.069377593742864,815,149.80654191322887,478,140.08925726121899,345,116.01724009818541,146,49.51767361255979,767,144.25671561490648,159,51.478150704935004,325,113.25193155085701,212,74.303431953039691,90,31.906112267087632,172,54.671747731346578,158,49.091750834534309,76,26.90724809414742,195,55.470712993434653]
[null,"With self care difficulty",1,11.180339887498949,27,27.294688127912362,48,45.486261662176638,59,41.785164831552358,4,12.529964086141668,7,14.866068747318506,8,12.083045973594572,332,113.53413583587978,21,17.464249196572979,5,13.038404810405298,40,38.470768123342687,14,24.839484696748443,0,15.556349186104045,0,15.556349186104045,103,59.203040462462738,54,48.836461788299118,17,31.384709652950431,6,13.601470508735444,52,35.846896657869841,25,22.472205054244231,20,34.885527085024819,33,35.735136770411273,3,12.083045973594572,0,15.556349186104045,27,33.541019662496844,3,12.083045973594572,15,17.464249196572979]
[null,"With no self care difficulty",260,83.234608186739251,150,55.865910893853687,177,60.901559914340453,498,99.201814499534237,109,33.837848631377263,111,34.205262752974143,63,26.90724809414742,2445,271.09039082933208,50,20.808652046684813,57,24.839484696748443,196,74.966659255965254,435,95.131487952202235,182,73.552702193733168,68,36.069377593742864,712,141.73566946961517,424,131.50285168010618,328,114.28473213863697,140,49.51767361255979,715,140.73023839957068,134,50.328918128646478,305,109.77249200050075,179,67.416615162732697,87,31.906112267087632,172,54.671747731346578,131,40.36087214122113,73,26.90724809414742,180,51.61395160225576]
[]
[]
[]
[]
[]
[]
[]
["B18105. SEX BY AGE BY AMBULATORY DIFFICULTY\n\n-Calculated"]
["Universe:  Civilian non-institutionalized population 5 years and over"]
["Data Set:  2008-2012 American Community Survey 5-Year Estimates"]
[]
[]
[null,null,"Allenstown",null,"Andover",null,"Boscawen",null,"Bow",null,"Bradford",null,"Canterbury",null,"Chichester",null,"Concord",null,"Danbury",null,"Dunbarton",null,"Epsom",null,"Franklin",null,"Henniker",null,"Hill",null,"Hooksett",null,"Hopkinton",null,"Loudon",null,"Newbury",null,"New London",null,"Northfield",null,"Pembroke",null,"Pittsfield",null,"Salisbury",null,"Sutton",null,"Warner",null,"Webster",null,"Wilmot"]
[null,null,"Estimate","Margin Of Error","Estimate","Margin Of Error","Estimate","Margin Of Error","Estimate","Margin Of Error","Estimate","Margin Of Error","Estimate","Margin Of Error","Estimate","Margin Of Error","Estimate","Margin Of Error","Estimate","Margin Of Error","Estimate","Margin Of Error","Estimate","Margin Of Error","Estimate","Margin Of Error","Estimate","Margin Of Error","Estimate","Margin Of Error","Estimate","Margin Of Error","Estimate","Margin Of Error","Estimate","Margin Of Error","Estimate","Margin Of Error","Estimate","Margin Of Error","Estimate","Margin Of Error","Estimate","Margin Of Error","Estimate","Margin Of Error","Estimate","Margin Of Error","Estimate","Margin Of Error","Estimate","Margin Of Error","Estimate","Margin Of Error","Estimate"]
[null,"Total:",4113,97,2370,240,3287,211,7362,99,1415,201,2272,134,2434,46,38112,389,1185,216,2670,45,4239,106,7917,164,4515,126,1147,180,12763,180,5343,106,4987,114,1982,242,4239,86,4404,145,6622,148,3759,104,1221,171,1673,221,2677,69,1685,150,1354,197]
[null,"5 to 17  years:",698,172.7917822120022,298,79.05694150420949,580,206.64946164943183,1791,192.4162155328911,203,73.23933369440222,395,96.607453128627711,447,84.876380695691779,6260,422.40383520986171,249,76.380625815713245,535,82.134036793524274,754,168.21712160181556,1558,304.90162347878703,798,185.69868066305693,275,73.23933369440222,2087,263.88254963146011,963,192.4162155328911,1112,221.00904958847272,307,84.811555816409836,547,112.4144118874444,932,207.20038610002638,1195,218.55205329623422,538,130.09611831257686,246,70.178344238091,356,90.520715861066847,411,99.724620831567975,317,68.8839603971781,259,73.661387442811588]
[null,"With ambulatory difficullty",37,47.296934361541872,0,15.556349186104045,0,15.556349186104045,15,28.844410203711913,0,15.556349186104045,5,13.601470508735444,0,15.556349186104045,43,40.36087214122113,0,15.556349186104045,0,15.556349186104045,0,15.556349186104045,44,53.450912059571067,26,33.837848631377263,0,15.556349186104045,14,28.42534080710379,7,19.416487838947599,20,28.844410203711913,4,12.529964086141668,0,15.556349186104045,8,17.804493814764857,23,39.395431207184416,0,15.556349186104045,4,12.529964086141668,0,15.556349186104045,0,15.556349186104045,0,15.556349186104045,0,15.556349186104045]
[null,"With no ambulatory difficullty",661,172.30786401090347,298,79.05694150420949,580,206.64946164943183,1776,187.3846311734236,203,73.23933369440222,390,96.607453128627711,447,84.876380695691779,6217,415.24571039325622,249,76.380625815713245,535,82.134036793524274,754,168.21712160181556,1514,307.09281984442424,772,182.70194306574848,275,73.23933369440222,2073,262.7279962242319,956,191.73158320944412,1092,219.40145851839728,303,84.02380615040002,547,112.4144118874444,924,206.00970850908945,1172,209.48030933717851,538,130.09611831257686,242,69.426219830839131,356,90.520715861066847,411,99.724620831567975,317,68.8839603971781,259,73.661387442811588]
[null,"18 to 34  years:",1008,159.17600321656528,413,110.27692415006868,672,167.62159765376299,776,158.61904047118682,213,56.080299571239813,332,69.426219830839131,336,67.357256476195644,9580,403.78831087588458,239,70.767224051816527,349,94.175368329515976,745,152.64337522473747,1662,247.4914139924858,1422,221.77466041006579,171,44.553338819890925,3029,310.48510431259018,786,184.1738309315414,866,186.93581786270923,276,71.847059786744225,1146,197.85348114198041,834,147.8681845428556,1497,243.47895186237352,844,157.76247969653622,211,43.185645763378368,234,65.76473218982953,451,92.617492948146676,241,56.400354608814297,171,63.007936008093459]
[null,"With ambulatory difficullty",0,15.556349186104045,0,15.556349186104045,0,15.556349186104045,8,20.615528128088304,0,15.556349186104045,0,15.556349186104045,0,15.556349186104045,180,98.655967888415148,3,12.529964086141668,0,15.556349186104045,0,15.556349186104045,70,69.231495722683903,0,15.556349186104045,9,18.601075237738275,39,42.047592083257278,0,22.627416997969522,0,22.627416997969522,0,15.556349186104045,0,15.556349186104045,0,15.556349186104045,14,28.0178514522438,15,27.313000567495326,3,12.083045973594572,0,15.556349186104045,0,15.556349186104045,3,12.083045973594572,0,15.556349186104045]
[null,"With no ambulatory difficullty",1008,159.17600321656528,413,110.27692415006868,672,167.62159765376299,768,158.61904047118682,213,56.080299571239813,332,69.426219830839131,336,67.357256476195644,9400,407.33278777923096,236,70.767224051816527,349,94.175368329515976,745,152.64337522473747,1592,237.92856070678022,1422,221.77466041006579,162,43.863424398922618,2990,306.89737698455491,786,184.1738309315414,866,186.93581786270923,276,71.847059786744225,1146,197.85348114198041,834,147.8681845428556,1483,246.61102976144437,829,155.72411502397438,208,43.863424398922618,234,65.76473218982953,451,92.617492948146676,238,55.803225713214822,171,63.007936008093459]
[null,"35 to 64  years:",1926,185.26737435393204,1179,140.60227594174995,1557,164.20109622045769,3790,142.89856542317,820,91.967385523347346,1237,82.024386617639507,1415,68.593002558570063,16930,419.56167603821967,547,81.467785044151043,1562,75.073297516493838,2159,118.1397477566293,3710,247.22661669003199,2026,185.53975315279473,588,74.411020689142546,5898,262.68041419184647,2609,152.02960238058901,2431,149.91330828182001,984,119.67038062946069,1162,134.23859355639868,2059,194.60986614249546,3168,233.96153530014288,1953,168.60011862392031,610,72.862884927787476,733,92.097774131626011,1394,105.38026380684383,923,74.518454090245328,664,89.10667763978185]
[null,"With ambulatory difficullty",22,26.40075756488817,50,37.802116342871599,39,52.172789842982326,24,32.249030993194197,22,19.416487838947599,16,19.416487838947599,51,38.418745424597091,140,71.700767080973407,12,15.556349186104045,9,17.804493814764857,39,47.296934361541872,110,51.400389103585589,76,71.217975259059429,7,13.601470508735444,78,45.486261662176638,0,22.627416997969522,9,10,4,12.529964086141668,25,37.643060449437421,57,64.443773942872099,42,41.231056256176608,43,40.521599178709621,7,7.810249675906654,13,21.095023109728988,28,30.479501308256342,3,12.529964086141668,1,11.704699910719626]
[null,"With no ambulatory difficullty",1904,189.58902921846507,1129,140.41723540933285,1518,173.25414857947845,3766,142.89856542317,798,87.965902484996988,1221,80.622577482985491,1364,81.320354155647891,16790,424.60334431089916,535,81.467785044151043,1553,75.073297516493838,2120,128.68954891520912,3600,240.36014644695155,1950,184.62935844550833,581,75.073297516493838,5820,265.50517885721177,2609,152.02960238058901,2422,150.6286825275983,980,119.67038062946069,1137,136.69308687713507,2002,205.91503102007877,3126,237.7666923688009,1910,171.35343591536179,603,72.862884927787476,720,91.438503924769023,1366,109.71326264403953,920,74.518454090245328,663,88.41379982785493]
[null,"65 to 74  years:",233,69.202601107183824,330,79.208585393251411,231,87.321245982864909,652,111.73182178770737,76,25.80697580112788,185,36.069377593742864,164,41.725292090050132,2640,197.29419656948858,107,30.232432915661949,169,40.36087214122113,430,108.22661410207751,497,110.34491379306978,106,49.929950931279713,76,23.345235059857504,1151,143.83671297690307,649,137.55726080436466,378,89.10667763978185,219,57.314919523628397,503,105.11898020814318,319,106.21675950620975,369,102.7277956543408,245,72.945184899347538,102,30,227,58.694122363316758,199,52.630789467763066,134,29.832867780352597,145,48.918299234540036]
[null,"With ambulatory difficullty",8,17.029386365926403,12,14.212670403551895,0,15.556349186104045,9,21.2602916254693,0,15.556349186104045,0,15.556349186104045,4,13.038404810405298,69,42.01190307520001,6,13.038404810405298,11,16.278820596099706,0,15.556349186104045,56,41.048751503547585,0,15.556349186104045,5,13.601470508735444,8,21.633307652783937,14,28.0178514522438,8,20,19,22.825424421026653,0,15.556349186104045,0,15.556349186104045,16,30.528675044947494,12,18.601075237738275,0,15.556349186104045,0,15.556349186104045,0,15.556349186104045,3,11.704699910719626,0,15.556349186104045]
[null,"With no ambulatory difficullty",225,71.61005515987263,318,77.794601355106892,231,87.321245982864909,643,112.44998888394787,76,25.80697580112788,185,36.069377593742864,160,41.725292090050132,2571,203.69094236121546,101,30.232432915661949,158,39.623225512317902,430,108.22661410207751,441,109.65856099730654,106,49.929950931279713,71,22.022715545545239,1143,145.16542288024377,635,138.42326394071193,370,89.10667763978185,200,52.40229002629561,503,105.11898020814318,319,106.21675950620975,353,99.76472322419383,233,71.344235926947874,102,30,227,58.694122363316758,199,52.630789467763066,131,29.068883707497267,145,48.918299234540036]
[null,"75  years and Older:",248,83.600239234107462,150,66.037867924396224,247,76.576758876306585,353,97,103,34.655446902326915,123,41.773197148410844,72,36.878177829171548,2702,254.42091109026396,43,16.278820596099706,55,32.202484376209235,151,60.605280298007038,490,109.55363982999378,163,66.887966032762577,37,17.720045146669349,598,129.00387591076478,336,88.865066252155572,200,64.660652641308843,196,69.426219830839131,881,135.28118864054971,260,91.35097153287424,393,106.82696288858914,179,75.663729752107784,52,18.439088914585774,123,47.634021455258214,222,69.31089380465383,70,29.732137494637012,115,38.013155617496423]
[null,"With ambulatory difficullty",56,46.141087980237309,16,27.513632984395208,31,31.016124838541646,84,52.801515129776341,15,18.601075237738275,1,11.401754250991379,11,14.7648230602334,270,86.977008456258133,12,10.295630140987001,0,15.556349186104045,54,43.863424398922618,49,51.855568649856693,27,35.735136770411273,3,11.704699910719626,95,62.032249677083293,24,34,10,14.317821063276353,27,28.635642126552707,26,27.459060435491963,28,24.839484696748443,43,46.818799642878503,15,16.643316977093239,6,6.4031242374328485,8,7.810249675906654,26,27.459060435491963,11,20.248456731316587,3,12.083045973594572]
[null,"With no ambulatory difficullty",192,77.801028270839709,134,59.363288318623319,216,72.138755187485728,269,85.586213843118443,88,31.240998703626616,122,41.773197148410844,61,34.828149534535996,2432,256.08787554275193,31,14.212670403551895,55,32.202484376209235,97,46.75467891024384,441,98.473346647709704,136,60.21627686929839,34,18.681541692269406,503,118.22436297142819,312,86.556340033529608,190,62.968245965724662,169,63.411355449950761,855,136.78084661238211,232,87.783825389418979,350,97.672923576598237,164,70.724818840347695,46,17.804493814764857,115,47.634021455258214,196,63.655321851358195,59,23.323807579381203,112,38.013155617496423]

{"sheet":"ACS_Table_B18107","index":34,"n_rows":149,"n_cols":56,"rows_kept":149,"cut":false,"hidden":true,"merged":[]}
["B18107. SEX BY AGE BY INDEPENDENT LIVING DIFFICULTY\n\n\n"]
["Universe:  Civilian non-institutionalized population 18 years and over"]
["Data Set: 2018-2022 American Community Survey 5-Year Estimates"]
[]
[null,null,"Allenstown",null,"Andover",null,"Boscawen",null,"Bow",null,"Bradford",null,"Canterbury",null,"Chichester",null,"Concord",null,"Danbury",null,"Dunbarton",null,"Epsom",null,"Franklin",null,"Henniker",null,"Hill",null,"Hooksett",null,"Hopkinton",null,"Loudon",null,"Newbury",null,"New London",null,"Northfield",null,"Pembroke",null,"Pittsfield",null,"Salisbury",null,"Sutton",null,"Warner",null,"Webster",null,"Wilmot"]
[null,null,"Estimate","Margin Of Error","Estimate","Margin Of Error","Estimate","Margin Of Error","Estimate","Margin Of Error","Estimate","Margin Of Error","Estimate","Margin Of Error","Estimate","Margin Of Error","Estimate","Margin Of Error","Estimate","Margin Of Error","Estimate","Margin Of Error","Estimate","Margin Of Error","Estimate","Margin Of Error","Estimate","Margin Of Error","Estimate","Margin Of Error","Estimate","Margin Of Error","Estimate","Margin Of Error","Estimate","Margin Of Error","Estimate","Margin Of Error","Estimate","Margin Of Error","Estimate","Margin Of Error","Estimate","Margin Of Error","Estimate","Margin Of Error","Estimate","Margin Of Error","Estimate","Margin Of Error","Estimate","Margin Of Error","Estimate","Margin Of Error","Estimate"]
[null,"Total:",3695,157,1816,268,2745,159,6146,157,1216,128,1930,203,2149,83,34097,468,1214,220,2243,90,3674,134,7208,200,5082,260,725,153,11851,364,4885,240,4804,198,1515,195,3750,144,3929,169,5584,207,3361,235,1267,222,1830,406,2340,94,1623,190,1229,174]
[null,"Male:",1854,152,895,145,1316,152,2884,153,643,91,993,134,1018,58,17004,522,615,100,1159,83,1807,108,3221,305,2609,228,426,106,5736,322,2268,183,2413,204,780,104,1634,136,1846,158,2973,251,1640,198,680,142,1000,229,1060,96,804,100,585,89]
[null,"18 to 34  years:",580,127,272,134,345,112,625,165,166,59,222,64,255,58,5659,376,109,44,237,70,388,133,585,147,1092,273,128,75,1996,319,535,214,506,196,164,47,553,113,461,127,676,206,375,111,157,64,234,112,336,91,123,49,157,63]
[null,"With independent living difficulty",35,43,0,12,0,12,38,38,0,12,26,26,14,14,428,196,0,12,0,12,0,12,3,7,21,30,0,12,19,21,0,17,0,17,0,12,8,14,36,41,54,61,82,79,3,6,6,10,6,12,4,5,1,3]
[null,"With no independent living difficulty",545,127,272,134,345,112,587,164,166,59,196,61,241,54,5231,393,109,44,237,70,388,133,582,148,1071,274,128,75,1977,319,535,214,506,196,164,47,545,116,425,118,622,212,293,101,154,64,228,113,330,90,119,48,156,63]
[null,"35 to 64  years:",984,142,389,120,653,119,1649,131,287,51,518,104,588,66,8065,465,331,68,665,81,991,161,1919,237,904,214,195,48,2732,227,1273,172,1319,192,445,85,438,84,1000,151,1873,235,845,178,299,105,505,112,510,74,523,86,303,63]
[null,"With independent living difficulty",31,31,0,12,61,48,55,38,9,16,3,8,3,6,499,259,25,27,0,12,18,14,152,86,15,23,3,4,17,27,0,17,158,107,7,10,4,11,81,47,134,103,20,28,0,12,21,22,0,12,16,11,11,15]
[null,"With no independent living difficulty",953,138,389,120,592,128,1594,138,278,48,515,104,585,67,7566,445,306,65,665,81,973,158,1767,256,889,214,192,47,2715,229,1273,172,1161,254,438,83,434,82,919,154,1739,225,825,170,299,105,484,116,510,74,507,84,292,62]
[null,"65 to 74  years:",252,120,107,45,229,104,397,71,158,52,164,42,107,29,2012,301,97,43,188,76,305,85,460,120,501,264,61,25,624,139,356,97,280,127,98,34,333,84,246,76,262,78,299,97,181,89,163,86,169,48,120,33,85,25]
[null,"With independent living difficulty",0,12,0,12,0,12,0,17,3,5,10,9,0,12,90,72,28,26,0,12,16,17,17,24,0,17,3,5,56,56,10,17,0,17,4,7,6,9,9,14,19,21,0,12,52,82,14,12,20,22,7,11,3,4]
[null,"With no independent living difficulty",252,120,107,45,229,104,397,71,155,53,154,43,107,29,1922,308,69,31,188,76,289,83,443,123,501,264,58,24,568,133,346,97,280,127,94,34,327,85,237,76,243,76,299,97,129,37,149,87,149,44,113,32,82,24]
[null,"75  years and Older:",38,33,127,91,89,56,213,71,32,16,89,32,68,26,1268,203,78,68,69,21,123,73,257,90,112,64,42,24,384,114,104,65,308,123,73,31,310,112,139,76,162,65,121,68,43,30,98,56,45,26,38,21,40,22]
[null,"With independent living difficulty",11,16,0,12,10,16,11,14,9,12,17,21,20,20,118,58,0,12,20,12,53,50,34,33,0,17,9,14,72,43,0,17,115,99,23,21,28,22,17,19,0,17,28,30,16,18,0,12,0,12,8,10,2,5]
[null,"With no independent living difficulty",27,29,127,91,79,60,202,70,23,11,72,36,48,20,1150,214,78,68,49,21,70,48,223,77,112,64,33,20,312,103,104,65,193,109,50,22,282,107,122,77,162,65,93,59,27,24,98,56,45,26,30,17,38,21]
[null,"Female:",1841,162,921,162,1429,133,3262,149,573,70,937,114,1131,98,17093,468,599,132,1084,72,1867,139,3987,345,2473,236,299,60,6115,272,2617,247,2391,162,735,108,2116,139,2083,143,2611,181,1721,177,587,104,830,206,1280,104,819,111,644,106]
[null,"18 to 34  years:",611,163,191,72,360,147,717,161,98,40,223,82,183,66,4973,416,72,34,221,78,453,111,921,244,944,171,39,21,1881,281,738,331,291,116,116,49,658,109,462,159,763,203,328,110,59,29,123,95,375,114,173,75,169,66]
[null,"With independent living difficulty",13,13,7,10,28,44,88,69,0,12,0,12,5,8,279,107,0,12,10,14,0,12,96,115,112,121,2,3,58,53,0,17,0,17,4,7,31,61,59,54,116,97,22,37,3,5,0,12,22,22,0,12,1,3]
[null,"With no independent living difficulty",598,165,184,72,332,129,629,159,98,40,223,82,178,66,4694,410,72,34,211,77,453,111,825,223,832,160,37,21,1823,272,738,331,291,116,112,48,627,113,403,146,647,218,306,101,56,28,123,95,353,111,173,75,168,66]
[null,"35 to 64  years:",945,147,372,75,754,141,1799,133,310,53,475,64,681,86,8012,417,386,121,619,70,956,124,1957,286,936,209,199,45,2914,241,1336,128,1433,195,393,84,598,95,1212,148,1398,206,886,152,349,99,511,115,528,74,498,85,303,81]
[null,"With independent living difficulty",69,65,6,8,25,31,7,10,2,3,7,12,10,10,402,143,3,4,4,8,20,22,104,84,32,49,0,12,143,90,0,17,50,63,6,8,0,12,162,93,32,40,87,90,11,14,0,12,19,17,17,28,0,12]
[null,"With no independent living difficulty",876,145,366,75,729,143,1792,134,308,52,468,64,671,84,7610,407,383,121,615,68,936,122,1853,273,904,199,199,45,2771,266,1336,128,1383,200,387,84,598,95,1050,160,1366,209,799,157,338,98,511,115,509,70,481,81,303,81]
[null,"65 to 74  years:",180,69,146,51,220,69,473,87,117,31,140,35,173,51,2410,278,105,48,153,67,363,102,536,131,512,262,48,19,772,152,368,105,581,140,97,27,331,107,278,116,275,114,322,130,122,36,96,36,217,63,105,32,80,31]
[null,"With independent living difficulty",0,12,8,12,0,12,29,33,9,8,4,6,26,28,209,85,4,5,0,12,9,14,97,80,198,261,10,10,81,99,48,43,58,57,4,6,17,27,58,90,24,27,38,60,6,7,5,8,17,21,11,16,0,12]
[null,"With no independent living difficulty",180,69,138,49,220,69,444,83,108,29,136,35,147,44,2201,270,101,48,153,67,354,102,439,117,314,114,38,17,691,133,320,96,523,132,93,28,314,106,220,68,251,111,284,110,116,35,91,35,200,59,94,28,80,31]
[null,"75  years and Older:",105,63,212,126,95,48,273,97,48,25,99,47,94,37,1698,239,36,22,91,30,95,59,573,254,81,58,13,15,548,163,175,82,86,90,129,49,529,154,131,53,175,78,185,87,57,35,100,76,160,58,43,20,92,34]
[null,"With independent living difficulty",39,47,31,29,7,11,51,35,9,13,2,4,28,18,333,145,0,12,22,16,0,12,116,87,0,17,0,12,60,41,0,17,40,39,21,13,76,55,20,21,34,39,84,79,11,9,0,12,23,27,11,9,4,7]
[null,"With no independent living difficulty",66,41,181,127,88,48,222,90,39,22,97,47,66,29,1365,219,36,22,69,26,95,59,457,238,81,58,13,15,488,158,175,82,46,79,108,49,453,146,111,54,141,71,101,52,46,33,100,76,137,47,32,16,88,32]
[]
[]
[{"$f":"A1& \"-Calculated\"","v":"B18107. SEX BY AGE BY INDEPENDENT LIVING DIFFICULTY\n\n\n-Calculated"}]
[{"$f":"A2","v":"Universe:  Civilian non-institutionalized population 18 years and over"}]
[{"$f":"A3","v":"Data Set: 2018-2022 American Community Survey 5-Year Estimates"}]
[]
[]
[null,null,"Allenstown",null,"Andover",null,"Boscawen",null,"Bow",null,"Bradford",null,"Canterbury",null,"Chichester",null,"Concord",null,"Danbury",null,"Dunbarton",null,"Epsom",null,"Franklin",null,"Henniker",null,"Hill",null,"Hooksett",null,"Hopkinton",null,"Loudon",null,"Newbury",null,"New London",null,"Northfield",null,"Pembroke",null,"Pittsfield",null,"Salisbury",null,"Sutton",null,"Warner",null,"Webster",null,"Wilmot"]
[null,null,"Estimate","Margin Of Error","Estimate","Margin Of Error","Estimate","Margin Of Error","Estimate","Margin Of Error","Estimate","Margin Of Error","Estimate","Margin Of Error","Estimate","Margin Of Error","Estimate","Margin Of Error","Estimate","Margin Of Error","Estimate","Margin Of Error","Estimate","Margin Of Error","Estimate","Margin Of Error","Estimate","Margin Of Error","Estimate","Margin Of Error","Estimate","Margin Of Error","Estimate","Margin Of Error","Estimate","Margin Of Error","Estimate","Margin Of Error","Estimate","Margin Of Error","Estimate","Margin Of Error","Estimate","Margin Of Error","Estimate","Margin Of Error","Estimate","Margin Of Error","Estimate","Margin Of Error","Estimate","Margin Of Error","Estimate","Margin Of Error","Estimate"]
[null,"Total:",{"$f":"C7","v":3695},157,1816,268,2745,159,6146,157,1216,128,1930,203,2149,83,34097,468,1214,220,2243,90,3674,134,{"$f":"Y7","v":7208},200,5082,260,725,153,11851,364,4885,240,4804,198,1515,195,3750,144,3929,169,5584,207,3361,235,1267,222,1830,406,2340,94,1623,190,1229,174]
[null,"18 to 34  years:",{"$f":"C22+C9","v":1191},{"$f":"SQRT((D22^2)+(D9^2))","v":206.63494380186523},{"$f":"E22+E9","v":463},{"$f":"SQRT((F22^2)+(F9^2))","v":152.11837495845134},{"$f":"G22+G9","v":705},{"$f":"SQRT((H22^2)+(H9^2))","v":184.80530295421721},{"$f":"I22+I9","v":1342},{"$f":"SQRT((J22^2)+(J9^2))","v":230.53416232740864},{"$f":"K22+K9","v":264},{"$f":"SQRT((L22^2)+(L9^2))","v":71.28113354878694},{"$f":"M22+M9","v":445},{"$f":"SQRT((N22^2)+(N9^2))","v":104.01922899156675},{"$f":"O22+O9","v":438},{"$f":"SQRT((P22^2)+(P9^2))","v":87.863530545955186},{"$f":"Q22+Q9","v":10632},{"$f":"SQRT((R22^2)+(R9^2))","v":560.74236508400179},{"$f":"S22+S9","v":181},{"$f":"SQRT((T22^2)+(T9^2))","v":55.605755097831377},{"$f":"U22+U9","v":458},{"$f":"SQRT((V22^2)+(V9^2))","v":104.80458005259122},{"$f":"W22+W9","v":841},{"$f":"SQRT((X22^2)+(X9^2))","v":173.23394586512194},{"$f":"Y22+Y9","v":1506},{"$f":"SQRT((Z22^2)+(Z9^2))","v":284.85961454723622},{"$f":"AA22+AA9","v":2036},{"$f":"SQRT((AB22^2)+(AB9^2))","v":322.13351269310681},{"$f":"AC22+AC9","v":167},{"$f":"SQRT((AD22^2)+(AD9^2))","v":77.884529914483011},{"$f":"AE22+AE9","v":3877},{"$f":"SQRT((AF22^2)+(AF9^2))","v":425.1141023301862},{"$f":"AG22+AG9","v":1273},{"$f":"SQRT((AH22^2)+(AH9^2))","v":394.153523389047},{"$f":"AI22+AI9","v":797},{"$f":"SQRT((AJ22^2)+(AJ9^2))","v":227.75425352778814},{"$f":"AK22+AK9","v":280},{"$f":"SQRT((AL22^2)+(AL9^2))","v":67.896980787071826},{"$f":"AM22+AM9","v":1211},{"$f":"SQRT((AN22^2)+(AN9^2))","v":157.00318468107582},{"$f":"AO22+AO9","v":923},{"$f":"SQRT((AP22^2)+(AP9^2))","v":203.49447166937975},{"$f":"AQ22+AQ9","v":1439},{"$f":"SQRT((AR22^2)+(AR9^2))","v":289.21445330411825},{"$f":"AS22+AS9","v":703},{"$f":"SQRT((AT22^2)+(AT9^2))","v":156.27219842313605},{"$f":"AU22+AU9","v":216},{"$f":"SQRT((AV22^2)+(AV9^2))","v":70.263788682364691},{"$f":"AW22+AW9","v":357},{"$f":"SQRT((AX22^2)+(AX9^2))","v":146.86388255796589},{"$f":"AY22+AY9","v":711},{"$f":"SQRT((AZ22^2)+(AZ9^2))","v":145.86637720873168},{"$f":"BA22+BA9","v":296},{"$f":"SQRT((BB22^2)+(BB9^2))","v":89.587945617700157},{"$f":"BC22+BC9","v":326},{"$f":"SQRT((BD22^2)+(BD9^2))","v":91.241437954473298}]
[null,"With independent living difficulty",{"$f":"C23+C10","v":48},{"$f":"SQRT((D23^2)+(D10^2))","v":44.922154890432402},7,15.620499351813308,28,45.607017003965517,126,78.771822373231913,0,16.970562748477139,26,28.635642126552707,19,16.124515496597098,707,223.30472453577869,0,16.970562748477139,10,18.439088914585774,0,16.970562748477139,99,115.21284650593439,133,124.66354719804824,2,12.369316876852981,77,57.008771254956898,0,24.041630560342615,0,24.041630560342615,4,13.892443989449804,39,62.585940913275401,95,67.801179930735714,170,114.58621208504974,104,87.235313950257549,6,7.810249675906654,6,15.620499351813308,28,25.059928172283335,4,13,2,4.2426406871192848]
[null,"With no independent living difficulty",1143,208.21623375712088,456,152.11837495845134,677,170.83617883809038,1216,228.42285349763057,264,71.28113354878694,419,102.20078277586722,419,85.276022421311367,9925,567.93397503583105,181,55.605755097831377,448,104.06248123122954,841,173.23394586512194,1407,267.64341949691197,1903,317.29481558953967,165,77.884529914483011,3800,419.21951290463568,1273,394.153523389047,797,227.75425352778814,276,67.178865724273734,1172,161.94134740701648,828,187.72320048411703,1269,304.08551428833306,599,142.83556979968259,210,69.856996786291916,351,147.62791064023091,683,142.90206436577463,292,89.044932477934978,324,91.241437954473298]
[null,"35 to 64  years:",1929,204.38444167793205,761,141.50971698084905,1407,184.50474248647376,3448,186.6815470259447,597,73.552702193733168,993,122.11470017978998,1269,108.40664186294121,16077,624.59106621852993,717,138.7984149765407,1284,107.05606008068857,1947,203.21663317750347,3876,371.43640101637857,1840,299.12706330253701,394,65.79513659838392,5646,331.07400985278201,2609,214.40149253211834,2752,273.65854636754904,838,119.50313803411188,1036,126.81088281373961,2212,211.43556938225885,3271,312.50759990758627,1731,234.06836608136521,648,144.31216164966833,1016,160.52725625263767,1038,104.65180361560904,1021,120.91732712891069,606,102.61578825892242]
[null,"With independent living difficulty",100,72.013887549555335,6,14.422205101855956,86,57.140178508646613,62,39.293765408776999,11,16.278820596099706,10,14.422205101855956,13,11.661903789690601,901,295.85469406450187,28,27.294688127912362,4,14.422205101855956,38,26.076809620810597,256,120.21647141718975,47,54.12947441089743,3,12.649110640673518,160,93.962758580194958,0,24.041630560342615,208,124.16923934694937,13,12.806248474865697,4,16.278820596099706,243,104.20172743289815,166,110.4943437466371,107,94.254973343585434,11,18.439088914585774,21,25.059928172283335,19,20.808652046684813,33,30.083217912982647,11,19.209372712298546]
[null,"With no independent living difficulty",1829,200.17242567346781,755,141.50971698084905,1321,191.91925385432282,3386,192.35384061671346,586,70.767224051816527,983,122.11470017978998,1256,107.44766167767449,15176,603.05389477226663,689,137.35355838128112,1280,105.75916035975324,1909,199.61963831246663,3620,374.25258850140233,1793,292.22765098463901,391,65.069193939989759,5486,350.9943019480516,2609,214.40149253211834,2544,323.28934408668653,825,118.0889495253472,1032,125.49501982150527,1969,222.07206037680652,3105,307.09281984442424,1624,231.40656861895687,637,143.62799170078233,995,163.3431969810803,1019,101.86265262597475,988,116.69190203266035,595,102.00490184299969]
[null,"65 to 74  years:",432,138.42326394071193,253,68.01470429252781,449,124.80785231707178,870,112.29425630903836,275,60.539243470661241,304,54.671747731346578,280,58.668560575490517,4422,409.73772098746292,202,64.443773942872099,341,101.31633629380802,668,132.77424449041311,996,177.65415840897168,1013,371.94085551334638,109,31.400636936215164,1396,205.9732992404598,724,142.94754282603111,861,189.02116283633427,195,43.416586692184822,664,136.03308421115798,524,138.67948658687772,537,138.13037319865606,621,162.2004932174992,303,96.005208192055917,259,93.23089616645332,386,79.202272694664515,225,45.967379738244816,165,39.824615503479755]
[null,"With independent living difficulty",0,16.970562748477139,8,16.970562748477139,0,16.970562748477139,29,37.12142238654117,12,9.4339811320566032,14,10.816653826391969,26,30.463092423455635,299,111.39569111954016,32,26.476404589747453,0,16.970562748477139,25,22.022715545545239,114,83.522452071284405,198,261.55305389155751,13,11.180339887498949,137,113.74093370462545,58,46.238512086787566,58,59.481089431852205,8,9.2195444572928871,23,28.460498941515414,67,91.082380293885606,43,34.205262752974143,38,61.188234163113421,58,82.29823813423954,19,14.422205101855956,37,30.413812651491099,18,19.416487838947599,3,12.649110640673518]
[null,"With no independent living difficulty",432,138.42326394071193,245,66.528189513919585,449,124.80785231707178,841,109.22453936730518,263,60.415229867972862,290,55.443665102516448,254,52.697248505021591,4123,409.59003894137857,170,57.140178508646613,341,101.31633629380802,643,131.50285168010618,882,169.75865220954131,815,287.56216719172221,96,29.410882339705484,1259,188.09040379562165,666,136.4734406395618,803,183.17477992343814,187,44.045431091090478,641,135.87126259809321,457,101.9803902718557,494,134.52509059651288,583,146.65946952038249,245,50.931326312987373,240,93.776329636001435,349,73.600271738628791,207,42.5205832509386,162,39.204591567825318]
[null,"75  years and Older:",143,71.119617546778187,339,155.42522317822161,184,73.756355658343097,486,120.20815280171308,80,29.681644159311659,188,56.859475903318,162,45.221676218380054,2966,313.57614705203582,114,71.470273540822546,160,36.61966684720111,218,93.861600242058515,830,269.47356085523495,193,86.371291526756735,55,28.301943396169811,932,198.90952717253137,279,104.63746938836012,394,152.41062955056645,202,57.982756057296896,839,190.42058712229621,270,92.655275079188016,337,101.53324578678651,306,110.42191811411355,100,46.097722286464439,198,94.403389769647575,205,63.560994328282817,81,29,132,40.496913462633174]
[null,"With independent living difficulty",50,49.648766349225639,31,31.384709652950431,17,19.416487838947599,62,37.696153649941529,18,17.691806012954132,19,21.377558326431949,48,26.90724809414742,451,156.16977940690063,0,16.970562748477139,42,20,53,51.419840528729765,150,93.048374515624943,0,24.041630560342615,9,18.439088914585774,132,59.413803110051795,0,24.041630560342615,155,106.40488710580919,44,24.698178070456937,104,59.236812878479547,37,28.319604517012593,34,42.544094772365298,112,84.504437753291981,27,20.124611797498108,0,16.970562748477139,23,29.546573405388315,19,13.45362404707371,6,8.6023252670426267]
[null,"With no independent living difficulty",{"$f":"C33+C20","v":93},50.219518117958877,308,156.23699945915499,167,76.837490849194182,424,114.0175425099138,62,24.596747752497688,169,59.203040462462738,114,35.227829907617071,2515,306.19764858666042,114,71.470273540822546,118,33.421549934136806,165,76.05918747922567,680,250.14595739287893,193,86.371291526756735,46,25,800,188.60805921274945,279,104.63746938836012,239,134.61797799699713,158,53.712196007983138,735,181.01104938649465,233,94.047860156411858,303,96.260064408871031,194,78.644770964127048,73,40.80441152620633,198,94.403389769647575,182,53.712196007983138,62,23.345235059857504,126,38.275318418009277]
[]
[]
[]
[]
[]
[]
[]
[]
[]
[]
[]
[]
[]
[]
[]
[]
[]
[]
[]
[]
[]
[]
[]
[]
[]
[]
[]
[]
[]
[]
[]
[]
[]
[]
[]
[]
[]
[]
[]
[]
[]
[]
[]
[]
["B18107. SEX BY AGE BY INDEPENDENT LIVING DIFFICULTY\n\n\n-Calculated"]
["Universe:  Civilian non-institutionalized population 18 years and over"]
["Data Set: 2013-2017 American Community Survey 5-Year Estimates"]
[]
[]
[null,null,"Allenstown",null,"Andover",null,"Boscawen",null,"Bow",null,"Bradford",null,"Canterbury",null,"Chichester",null,"Concord",null,"Danbury",null,"Dunbarton",null,"Epsom",null,"Franklin",null,"Henniker",null,"Hill",null,"Hooksett",null,"Hopkinton",null,"Loudon",null,"Newbury",null,"New London",null,"Northfield",null,"Pembroke",null,"Pittsfield",null,"Salisbury",null,"Sutton",null,"Warner",null,"Webster",null,"Wilmot"]
[null,null,"Estimate","Margin Of Error","Estimate","Margin Of Error","Estimate","Margin Of Error","Estimate","Margin Of Error","Estimate","Margin Of Error","Estimate","Margin Of Error","Estimate","Margin Of Error","Estimate","Margin Of Error","Estimate","Margin Of Error","Estimate","Margin Of Error","Estimate","Margin Of Error","Estimate","Margin Of Error","Estimate","Margin Of Error","Estimate","Margin Of Error","Estimate","Margin Of Error","Estimate","Margin Of Error","Estimate","Margin Of Error","Estimate","Margin Of Error","Estimate","Margin Of Error","Estimate","Margin Of Error","Estimate","Margin Of Error","Estimate","Margin Of Error","Estimate","Margin Of Error","Estimate","Margin Of Error","Estimate","Margin Of Error","Estimate","Margin Of Error","Estimate"]
[null,"Total:",3519,115,2159,221,2644,218,5823,172,1315,148,1880,153,1988,60,32271,407,1016,124,2100,65,3618,176,6638,301,3823,208,830,109,11176,205,4382,151,4534,184,1618,161,3897,151,3699,123,5708,172,3063,153,1025,139,1508,200,2277,94,1522,157,1252,128]
[null,"18 to 34  years:",917,147.10540438746634,462,129.84991336154215,741,140.92906016858268,1019,156.64609794054877,216,48.010415536631214,331,66.843099868273612,484,104.80935072788114,9641,445.9069409641433,203,52.801515129776341,407,64.536811201050213,737,143.93401265857906,1857,269.87589740471452,1574,234.58047659598614,151,42.5205832509386,3320,320.22023671217283,862,164.19500601419034,733,225.41739063346466,205,55.569775957799216,1470,208.69355524308841,1012,190.21303845951255,1384,235.51857676200407,742,155.05160431288675,189,55.97320787662612,263,70.434366611761334,537,110.53506231056279,304,69.354163537598808,217,81.884064383737083]
[null,"With independent living difficulty",67,51.195702944680818,7,14.866068747318506,22,28.231188426986208,37,35.468295701936398,6,12.529964086141668,14,17.804493814764857,8,9.4339811320566032,414,153.52524222420234,0,15.556349186104045,35,21.470910553583888,0,15.556349186104045,28,25.632011235952593,22,25.059928172283335,0,15.556349186104045,86,58.523499553598128,16,27.202941017470888,34,62.096698785040097,5,13.601470508735444,39,36.400549446402593,75,68.8839603971781,22,37.576588456111871,47,38.600518131237564,7,7.810249675906654,3,11.704699910719626,19,17,6,13.601470508735444,0,15.556349186104045]
[null,"With no independent living difficulty",850,144.95861478366851,455,128.70508925446578,719,140.18559127100045,982,156.33937443907084,210,48.826222462934808,317,65.604877867426907,476,104.01922899156675,9227,449.28832613367553,203,52.801515129776341,372,65.115282384398824,737,143.93401265857906,1829,267.52569970004748,1552,235.84740829612693,151,42.5205832509386,3234,316.63543705656195,846,166.4692163734785,699,231.10603626906848,200,55.569775957799216,1431,205.8275977608445,937,179.96110690924303,1362,233.36237914453991,695,160.52725625263767,182,53.907327887774215,260,71.217975259059429,518,109.22453936730518,298,68.680419334771102,217,81.884064383737083]
[null,"35 to 64  years:",2010,140.80127840328723,1223,150.60212481900777,1379,148.49915824677257,3559,123.0690862889621,731,77.077882690172544,1160,99.005050376230813,1119,90.027773492406226,16491,467.20659241924233,671,87.045964869142551,1379,62.936475910238251,2179,189.80516325959101,3635,292.05650138286597,1749,195.90048494069634,450,49.497474683058329,5880,258.897663179875,2226,228.95414388038492,2778,203.82835916525454,893,97.621718894926246,1041,126.90547663517127,2185,149.24141516348604,3263,246.86838598735156,1770,164.62381358722072,611,80.622577482985491,821,101.17806086301516,1250,86.400231481171389,909,90.686272390037075,667,76.419892698171196]
[null,"With independent living difficulty",158,81.541400527584756,27,20.248456731316587,118,74.886580907396223,67,37.536648758246919,6,5.6568542494923806,58,35.383612025908263,46,26.90724809414742,804,272.62061550807192,23,13.038404810405298,28,23.706539182259394,39,29.732137494637012,288,121.26417442921878,47,35.227829907617071,17,21.095023109728988,141,86.406018308911797,23,31.384709652950431,114,89.537701556383496,15,15.556349186104045,49,30,86,51.224993899462788,125,62.481997407253232,204,108.75660899458019,7,13.038404810405298,16,19.416487838947599,66,42.059481689626182,16,16.15549442140351,3,11.704699910719626]
[null,"With no independent living difficulty",1852,139.31618714277246,1196,150.04665940966495,1261,152.89865924853626,3492,128.08200498118384,725,77.781745930520231,1102,92.633687176966021,1073,90.027773492406226,15687,525.02380898393551,648,87.783825389418979,1351,67.357256476195644,2140,195.68597292601225,3347,294.88472323943807,1702,188.86238376129853,433,48.795491595023407,5739,276.21006498677775,2203,226.62965384079817,2664,206.30559856678636,878,97.621718894926246,992,119.09659944767525,2099,153.45683432157722,3138,244.49335369289693,1566,171.82840277439584,604,80.622577482985491,805,102.6498904042279,1184,85.14693182963201,893,90.13878188659973,664,76.419892698171196]
[null,"65 to 74  years:",331,82.855295545909442,297,71.56116265125938,299,65.069193939989759,688,99.824846606443629,255,55.172456896534889,271,49.040799340956916,314,46.227697325304881,3362,209.46837470128995,71,27.802877548915689,252,36.069377593742864,466,90.609050320594349,697,139.20129309744217,318,83.450584180100265,161,48.826222462934808,1161,135.05924625881784,816,173.51080657987848,678,173.4156855650607,374,66.468037431535464,619,111.80339887498948,343,69.814038702828242,736,146.20875486782589,339,80.05623023850174,135,36.891733491393431,252,66.2872536767062,332,79.208585393251411,233,45.607017003965517,173,42.01190307520001]
[null,"With independent living difficulty",52,31.240998703626616,46,40.024992192379003,45,30.413812651491099,36,28.42534080710379,11,13.601470508735444,13,17.029386365926403,0,15.556349186104045,329,103.58571330062848,6,13.601470508735444,4,12.529964086141668,29,29.546573405388315,29,26.248809496813376,0,15.556349186104045,6,12.529964086141668,129,58.258046654518033,45,41.182520563948003,13,26.40075756488817,12,12.041594578792296,18,29.154759474226502,6,14.866068747318506,30,35.777087639996637,25,27.018512172212592,5,6.4031242374328485,0,15.556349186104045,36,45.188494110780013,0,15.556349186104045,13,21.95449840010015]
[null,"With no independent living difficulty",279,85,251,63.411355449950761,254,58.051701094799967,652,97.185389848474657,244,53.150729063673246,258,46.75467891024384,314,46.227697325304881,3033,212.92721761202816,65,26.627053911388696,248,36.069377593742864,437,88.238313673823114,668,137.43725841270262,318,83.450584180100265,155,48.010415536631214,1032,132.24598292575845,771,172.10461934532728,665,171.9447585708852,362,66.468037431535464,601,109.62207806824317,337,72.201108024738787,706,143.84018909887459,314,77.336925203941234,130,36.891733491393431,252,66.2872536767062,296,66.030296076876709,233,45.607017003965517,160,37.483329627982627]
[null,"75  years and Older:",261,83.234608186739251,177,59.464274989274024,225,75.286120898874842,557,99.488692824863264,113,34.409301068170507,118,36.61966684720111,71,28.42534080710379,2777,286.75076285861911,71,26.92582403567252,62,24.839484696748443,236,85.702975444263316,449,98.005101908012932,182,73.552702193733168,68,36.069377593742864,815,149.80654191322887,478,140.08925726121899,345,116.01724009818541,146,49.51767361255979,767,144.25671561490648,159,51.478150704935004,325,113.25193155085701,212,74.303431953039691,90,31.906112267087632,172,54.671747731346578,158,49.091750834534309,76,26.90724809414742,195,55.470712993434653]
[null,"With independent living difficulty",36,48.041648597857254,40,31.240998703626616,50,46.324939287601879,128,59.506302187247357,17,20.880613017821101,14,18.601075237738275,10,13,719,163.78339354159201,29,18.867962264113206,14,15.556349186104045,32,35.846896657869841,122,76.550636836018555,26,31.953090617340916,8,7.0710678118654755,138,61.846584384264908,103,72.124891681027847,68,51.884487084291386,11,14.866068747318506,119,59.640590204993778,30,24.186773244895647,97,64.031242374328485,41,36.687872655688281,12,11.180339887498949,0,15.556349186104045,34,33.541019662496844,7,7.0710678118654755,9,7.2111025509279782]
[null,"With no independent living difficulty",225,87.367041840730764,137,53.814496188294839,175,60.901559914340453,429,92.617492948146676,96,28.319604517012593,104,32.649655434629018,61,26.172504656604801,2058,284.29737951659001,42,19.723082923316021,48,22.627416997969522,204,75.690157880665041,327,86.821656284592962,156,69.526973183074787,60,36.069377593742864,677,138.45215780189199,375,125.60652849274993,277,110.6752004741803,135,49.51767361255979,648,134.06341782902598,129,49.648766349225639,228,100.40418317978589,171,67.416615162732697,78,28.600699292150182,172,54.671747731346578,124,40.36087214122113,69,26.248809496813376,186,54.083269131959838]
[]
[]
[]
[]
[]
[]
[]
[]
[]
[]
["B18107. SEX BY AGE BY INDEPENDENT LIVING DIFFICULTY\n\n\n-Calculated"]
["Universe:  Civilian non-institutionalized population 18 years and over"]
["Data Set:  2008-2012 American Community Survey 5-Year Estimates"]
[]
[]
[null,null,"Allenstown",null,"Andover",null,"Boscawen",null,"Bow",null,"Bradford",null,"Canterbury",null,"Chichester",null,"Concord",null,"Danbury",null,"Dunbarton",null,"Epsom",null,"Franklin",null,"Henniker",null,"Hill",null,"Hooksett",null,"Hopkinton",null,"Loudon",null,"Newbury",null,"New London",null,"Northfield",null,"Pembroke",null,"Pittsfield",null,"Salisbury",null,"Sutton",null,"Warner",null,"Webster",null,"Wilmot"]
[null,null,"Estimate","Margin Of Error","Estimate","Margin Of Error","Estimate","Margin Of Error","Estimate","Margin Of Error","Estimate","Margin Of Error","Estimate","Margin Of Error","Estimate","Margin Of Error","Estimate","Margin Of Error","Estimate","Margin Of Error","Estimate","Margin Of Error","Estimate","Margin Of Error","Estimate","Margin Of Error","Estimate","Margin Of Error","Estimate","Margin Of Error","Estimate","Margin Of Error","Estimate","Margin Of Error","Estimate","Margin Of Error","Estimate","Margin Of Error","Estimate","Margin Of Error","Estimate","Margin Of Error","Estimate","Margin Of Error","Estimate","Margin Of Error","Estimate","Margin Of Error","Estimate","Margin Of Error","Estimate","Margin Of Error","Estimate","Margin Of Error","Estimate","Margin Of Error"]
[null,"Total:",3415,161,2072,207,2707,194,5571,126,1212,156,1877,103,1987,65,31852,472,936,143,2135,66,3485,134,6359,225,3717,157,872,126,10676,229,4380,141,3875,177,1675,202,3692,139,3472,191,5427,196,3221,175,975,114,1317,179,2266,100,1368,128,1095,164]
[null,"18 to 34  years:",1008,159.17600321656528,413,110.27692415006868,672,167.62159765376299,776,158.61904047118682,213,56.080299571239813,332,69.426219830839131,336,67.357256476195644,9580,403.78831087588458,239,70.767224051816527,349,94.175368329515976,745,152.64337522473747,1662,247.4914139924858,1422,221.77466041006579,171,44.553338819890925,3029,310.48510431259018,786,184.1738309315414,866,186.93581786270923,276,71.847059786744225,1146,197.85348114198041,834,147.8681845428556,1497,243.47895186237352,844,157.76247969653622,211,43.185645763378368,234,65.76473218982953,451,92.617492948146676,241,56.400354608814297,171,63.007936008093459]
[null,"With independent living difficulty",18,25.495097567963924,0,15.556349186104045,6,15.556349186104045,37,37.576588456111871,0,15.556349186104045,0,15.556349186104045,2,11.704699910719626,451,167.20047846821492,4,12.529964086141668,0,15.556349186104045,0,15.556349186104045,124,80.777472107017559,0,15.556349186104045,18,17.888543819998318,39,42.047592083257278,0,22.627416997969522,0,22.627416997969522,21,23.769728648009426,9,18.601075237738275,14,19.416487838947599,44,40.607881008493905,57,43.416586692184822,3,12.083045973594572,0,15.556349186104045,30,22.022715545545239,9,13.601470508735444,13,21.095023109728988]
[null,"With no independent living difficulty",990,161.37533888422976,413,110.27692415006868,666,169.79988221432899,739,155.66630977832037,213,56.080299571239813,332,69.426219830839131,334,67.357256476195644,9129,419.36261159049457,235,70.767224051816527,349,94.175368329515976,745,152.64337522473747,1538,235.71593073019056,1422,221.77466041006579,153,41.725292090050132,2990,306.89737698455491,786,184.1738309315414,866,186.93581786270923,255,71.028163428319047,1137,197.27392123643713,820,147.18695594379278,1453,244.93468517137379,787,157.8131806916013,208,43.863424398922618,234,65.76473218982953,421,93.407708461347028,232,55.21775076911409,158,58.668560575490517]
[null,"35 to 64  years:",1926,185.26737435393204,1179,140.60227594174995,1557,164.20109622045769,3790,142.89856542317,820,91.967385523347346,1237,82.024386617639507,1415,68.593002558570063,16930,419.56167603821967,547,81.467785044151043,1562,75.073297516493838,2159,118.1397477566293,3710,247.22661669003199,2026,185.53975315279473,588,74.411020689142546,5898,262.68041419184647,2609,152.02960238058901,2431,149.91330828182001,984,119.67038062946069,1162,134.23859355639868,2059,194.60986614249546,3168,233.96153530014288,1953,168.60011862392031,610,72.862884927787476,733,92.097774131626011,1394,105.38026380684383,923,74.518454090245328,664,89.10667763978185]
[null,"With independent living difficulty",97,77.466121627457255,87,47.381430961928537,72,52.172789842982326,100,84.528101836016646,35,21.023796041628639,18,19.235384061671343,49,34.713109915419565,552,159.92810884894499,18,14.212670403551895,21,18.973665961010276,80,64.031242374328485,202,89.308454247064432,76,71.217975259059429,29,17.888543819998318,153,65.741919655574407,27,38.483762809787713,45,36.359317925395686,12,12.041594578792296,43,41.761226035642203,51,53.225933528685054,71,49.678969393496885,59,45.354161881794269,9,14.212670403551895,21,20.591260281974002,37,32.015621187164243,15,11.661903789690601,3,12.083045973594572]
[null,"With no independent living difficulty",1829,175.06855799943062,1092,135.80132547217644,1485,165.01212076693034,3690,147.78700890132393,785,88.729927307532492,1219,79.93122043357026,1366,78.644770964127048,16378,428.16468794145089,529,82.219219164377861,1541,77.233412458598508,2079,136.20939761998804,3508,241.24883419407439,1950,184.62935844550833,559,73.109506905736964,5745,271.70940359141048,2582,156.31058825300352,2386,157.76247969653622,972,118.1905241548577,1119,135.83077707206124,2008,201.8836298465034,3097,236.48467180770933,1894,170.41713528867922,601,72.862884927787476,712,90.686272390037075,1357,109.04127658827184,908,72.346388990743691,661,89.10667763978185]
[null,"65 to 74  years:",233,69.202601107183824,330,79.208585393251411,231,87.321245982864909,652,111.73182178770737,76,25.80697580112788,185,36.069377593742864,164,41.725292090050132,2640,197.29419656948858,107,30.232432915661949,169,40.36087214122113,430,108.22661410207751,497,110.34491379306978,106,49.929950931279713,76,23.345235059857504,1151,143.83671297690307,649,137.55726080436466,378,89.10667763978185,219,57.314919523628397,503,105.11898020814318,319,106.21675950620975,369,102.7277956543408,245,72.945184899347538,102,30,227,58.694122363316758,199,52.630789467763066,134,29.832867780352597,145,48.918299234540036]
[null,"With independent living difficulty",8,17.029386365926403,27,28.231188426986208,27,34.205262752974143,0,22.627416997969522,8,13.601470508735444,7,14.866068747318506,4,12.529964086141668,189,74.330343736592525,16,15.652475842498529,0,15.556349186104045,12,23.706539182259394,76,45.276925690687087,9,17.804493814764857,11,10,47,35.805027579936315,14,28.0178514522438,8,20,35,25.059928172283335,0,15.556349186104045,0,15.556349186104045,33,36.76955262170047,46,33.837848631377263,0,15.556349186104045,0,15.556349186104045,31,26.570660511172846,6,12.529964086141668,0,15.556349186104045]
[null,"With no independent living difficulty",225,71.61005515987263,303,74.276510418839678,204,86.452298986203942,652,111.73182178770737,68,23.430749027719962,178,35.383612025908263,160,41.012193308819754,2451,200.86313748420838,91,23.345235059857504,169,40.36087214122113,418,106.17438485811914,421,110.39021695784459,97,47.885279575251516,65,22.022715545545239,1104,142.1724305201258,635,138.42326394071193,370,89.10667763978185,184,50.24937810560445,503,105.11898020814318,319,106.21675950620975,336,99.76472322419383,199,70.327803890068964,102,30,227,58.694122363316758,168,48.166378315169183,128,29.068883707497267,145,48.918299234540036]
[null,"75  years and Older:",248,83.600239234107462,150,66.037867924396224,247,76.576758876306585,353,97,103,34.655446902326915,123,41.773197148410844,72,36.878177829171548,2702,254.42091109026396,43,16.278820596099706,55,32.202484376209235,151,60.605280298007038,490,109.55363982999378,163,66.887966032762577,37,17.720045146669349,598,129.00387591076478,336,88.865066252155572,200,64.660652641308843,196,69.426219830839131,881,135.28118864054971,260,91.35097153287424,393,106.82696288858914,179,75.663729752107784,52,18.439088914585774,123,47.634021455258214,222,69.31089380465383,70,29.732137494637012,115,38.013155617496423]
[null,"With independent living difficulty",73,56.727418414731339,20,27.313000567495326,60,37.8549864614954,74,48.166378315169183,29,22.671568097509269,1,11.401754250991379,27,29.154759474226502,637,146.99659860010368,15,11.401754250991379,7,14.866068747318506,74,47.507894080878813,88,60.440052945046304,55,42.449970553582247,3,11.704699910719626,146,74,39,37.802116342871599,61,38.483762809787713,64,42.80186911806539,61,42.047592083257278,44,33.120990323358392,93,66.940271884718243,26,22.803508501982758,6,12.529964086141668,8,7.810249675906654,33,30.016662039607269,6,6.4031242374328485,4,6.4031242374328485]
[null,"With no independent living difficulty",175,67.623960250786851,130,59.405386961116584,187,69.31089380465383,279,90.785461391128038,74,26.870057685088806,122,41.773197148410844,45,26,2065,240.48284762119729,28,14.212670403551895,48,30.016662039607269,77,41.868842830916641,402,92.417530804496181,108,65.192024052026483,34,18.681541692269406,452,118.1905241548577,297,85.276022421311367,139,56.0357029044876,132,54.451813560247928,820,136.61991070118586,216,86.683331731077345,300,95.482982777037293,153,70.178344238091,46,17.204650534085253,115,47.634021455258214,189,59.464274989274024,64,29.068883707497267,111,38.013155617496423]

{"sheet":"ACS_Table_C18108","index":35,"n_rows":148,"n_cols":56,"rows_kept":148,"cut":false,"hidden":true,"merged":[]}
["B18108. AGE BY NUMBER OF DISABILITIES\n\n"]
["Universe:  Civilian non-institutionalized population"]
["Data Set: 2018-2022 American Community Survey 5-Year Estimates"]
[]
[null,null,"Allenstown",null,"Andover",null,"Boscawen",null,"Bow",null,"Bradford",null,"Canterbury",null,"Chichester",null,"Concord",null,"Danbury",null,"Dunbarton",null,"Epsom",null,"Franklin",null,"Henniker",null,"Hill",null,"Hooksett",null,"Hopkinton",null,"Loudon",null,"Newbury",null,"New London",null,"Northfield",null,"Pembroke",null,"Pittsfield",null,"Salisbury",null,"Sutton",null,"Warner",null,"Webster",null,"Wilmot"]
[null,null,"Estimate","Margin Of Error","Estimate","Margin Of Error","Estimate","Margin Of Error","Estimate","Margin Of Error","Estimate","Margin Of Error","Estimate","Margin Of Error","Estimate","Margin Of Error","Estimate","Margin Of Error","Estimate","Margin Of Error","Estimate","Margin Of Error","Estimate","Margin Of Error","Estimate","Margin Of Error","Estimate","Margin Of Error","Estimate","Margin Of Error","Estimate","Margin Of Error","Estimate","Margin Of Error","Estimate","Margin Of Error","Estimate","Margin Of Error","Estimate","Margin Of Error","Estimate","Margin Of Error","Estimate","Margin Of Error","Estimate","Margin Of Error","Estimate","Margin Of Error","Estimate","Margin Of Error","Estimate","Margin Of Error","Estimate","Margin Of Error","Estimate","Margin Of Error"]
[null,"Total:",4653,22,2151,307,3514,45,8235,19,1565,172,2311,243,2682,31,41872,80,1491,261,2974,65,4706,40,8594,22,6094,15,839,182,14636,89,5925,20,5608,21,1902,258,4267,31,4849,27,7287,40,4052,61,1579,362,2254,451,2849,33,2096,314,1502,217]
[null,"Under 18 years:",958,160,335,115,769,158,2089,158,349,90,381,86,533,80,7775,463,277,104,731,77,1032,136,1386,198,1012,258,114,60,2785,352,1040,238,804,197,387,124,517,132,920,168,1703,206,691,191,312,168,424,140,509,89,473,172,273,100]
[null,"With one type of disability",46,53,5,9,32,30,74,87,15,13,0,12,10,16,378,199,16,15,10,12,66,63,90,75,69,70,0,12,88,63,0,17,146,108,6,8,0,12,84,61,71,75,61,58,0,12,5,7,5,7,4,7,3,4]
[null,"With two or more types of disability",19,28,0,12,0,12,0,17,0,12,0,12,0,12,62,52,0,12,0,12,26,38,108,55,9,15,2,5,42,36,1,13,0,17,0,12,0,12,0,12,0,17,0,12,0,12,0,12,29,38,7,11,0,12]
[null,"No disability",893,135,330,115,737,152,2015,151,334,87,381,86,523,77,7335,469,261,106,721,77,940,139,1188,210,934,262,112,59,2655,360,1039,238,658,165,381,125,517,132,836,162,1632,211,630,155,312,168,419,140,475,82,462,171,270,99]
[null,"18 to 64  years:",3120,228,1224,189,2112,188,4790,218,861,123,1438,193,1707,90,26709,605,898,180,1742,126,2788,198,5382,383,3876,432,561,151,9523,334,3882,340,3549,261,1118,166,2247,224,3135,217,4710,193,2434,248,864,217,1373,377,1749,122,1317,177,932,163]
[null,"With one type of disability",347,124,84,95,83,53,241,123,27,19,85,48,74,42,2199,339,89,46,116,58,204,88,526,185,266,122,78,38,445,132,299,180,93,72,38,22,90,63,398,170,132,75,214,110,20,14,30,19,133,74,54,31,45,25]
[null,"With two or more types of disability",142,90,17,14,124,106,177,82,17,17,55,38,64,38,2103,483,32,27,14,13,48,30,407,158,172,134,23,18,311,129,6,11,267,128,22,16,48,68,412,199,371,170,186,112,23,21,27,25,65,38,56,29,9,14]
[null,"No disability",2631,254,1123,205,1905,214,4372,194,817,122,1298,170,1569,100,22407,587,777,168,1612,122,2536,206,4449,372,3438,432,460,130,8767,363,3577,286,3189,313,1058,163,2109,225,2325,237,4207,230,2034,236,821,215,1316,380,1551,130,1207,168,878,159]
[null,"65 years and over:",575,216,592,206,633,159,1356,169,355,73,492,83,442,80,7388,557,316,112,501,149,886,198,1826,333,1206,491,164,50,2328,271,1003,167,1255,227,397,82,1503,244,794,184,874,157,927,224,403,99,457,155,591,108,306,60,297,68]
[null,"With one type of disability",161,111,59,30,124,68,173,59,34,27,70,37,77,36,1170,227,46,26,66,65,178,76,234,111,74,48,32,19,322,118,180,82,125,69,31,22,253,82,155,67,206,107,222,128,29,15,69,53,76,35,39,23,42,21]
[null,"With two or more types of disability",63,47,74,38,37,34,164,77,40,25,53,29,84,43,1120,197,41,31,42,20,114,65,426,159,197,260,33,21,328,139,96,63,271,140,71,45,111,67,141,91,86,54,168,102,103,78,65,67,90,53,43,27,9,10]
[null,"No disability",351,126,459,206,472,143,1019,144,281,62,369,74,281,58,5098,555,229,92,393,100,594,141,1166,318,935,273,99,34,1678,257,727,156,859,192,295,65,1139,221,498,119,582,143,537,148,271,57,323,120,425,94,224,52,246,63]
[]
[]
[]
[]
[]
[]
[]
[]
[]
[]
[]
[]
[]
[]
[]
[]
[]
[]
[]
[]
[]
[]
[]
[]
[]
[]
[]
[]
[]
[]
[]
[]
[]
[]
[]
[]
[]
[]
[]
[]
[]
[]
[]
[]
[]
[]
[]
[]
[]
[]
[]
[]
[]
[]
[]
[]
[]
[]
[]
[]
[]
[]
[]
[]
[]
[]
[]
[]
[]
[]
[]
[]
[]
[]
[]
[]
[]
[]
[]
[]
["B18108. AGE BY NUMBER OF DISABILITIES\n\n"]
["Universe:  Civilian non-institutionalized population"]
["Data Set: 2013-2017 American Community Survey 5-Year Estimates"]
[]
[null,null,"Allenstown",null,"Andover",null,"Boscawen",null,"Bow",null,"Bradford",null,"Canterbury",null,"Chichester",null,"Concord",null,"Danbury",null,"Dunbarton",null,"Epsom",null,"Franklin",null,"Henniker",null,"Hill",null,"Hooksett",null,"Hopkinton",null,"Loudon",null,"Newbury",null,"New London",null,"Northfield",null,"Pembroke",null,"Pittsfield",null,"Salisbury",null,"Sutton",null,"Warner",null,"Webster",null,"Wilmot"]
[null,null,"Estimate","Margin Of Error","Estimate","Margin Of Error","Estimate","Margin Of Error","Estimate","Margin Of Error","Estimate","Margin Of Error","Estimate","Margin Of Error","Estimate","Margin Of Error","Estimate","Margin Of Error","Estimate","Margin Of Error","Estimate","Margin Of Error","Estimate","Margin Of Error","Estimate","Margin Of Error","Estimate","Margin Of Error","Estimate","Margin Of Error","Estimate","Margin Of Error","Estimate","Margin Of Error","Estimate","Margin Of Error","Estimate","Margin Of Error","Estimate","Margin Of Error","Estimate","Margin Of Error","Estimate","Margin Of Error","Estimate","Margin Of Error","Estimate","Margin Of Error","Estimate","Margin Of Error","Estimate","Margin Of Error","Estimate","Margin Of Error","Estimate"]
[null,"Total:",4296,33,2783,308,3422,225,7692,22,1675,186,2248,248,2590,30,40414,267,1281,174,2788,21,4541,113,8326,71,4893,18,946,132,13907,136,5614,16,5403,15,1892,203,4426,84,4769,58,7137,43,4091,22,1257,165,1932,270,2849,71,1859,185,1477,174]
[null,"Under 18 years:",777,117,624,147,778,168,1869,175,360,84,368,125,602,54,8143,373,265,97,688,63,923,145,1688,290,1070,208,116,42,2731,192,1232,149,869,184,274,82,529,134,1070,112,1429,171,1028,153,232,59,424,134,572,74,337,72,225,87]
[null,"With one type of disability",114,63,26,29,43,51,67,43,7,7,1,3,10,15,297,103,17,21,0,11,9,15,101,72,21,32,0,11,132,98,62,53,0,16,0,11,8,13,81,63,126,106,32,47,0,11,3,5,23,16,15,11,24,39]
[null,"With two or more types of disability",56,49,0,11,10,16,8,13,4,7,7,11,0,11,184,98,0,11,6,8,29,30,16,18,0,11,0,11,27,39,48,58,0,16,0,11,21,24,0,11,0,16,14,21,0,11,0,11,0,11,0,11,0,11]
[null,"No disability",607,139,598,138,725,182,1794,170,349,82,360,122,592,54,7662,396,248,83,682,64,885,146,1571,279,1049,207,116,42,2572,229,1122,127,869,184,274,82,500,135,989,137,1303,139,982,162,232,59,421,133,549,74,322,70,201,65]
[null,"18 to 64  years:",2927,125,1685,213,2120,182,4578,140,947,126,1491,154,1603,62,26132,447,874,127,1786,66,2916,179,5492,313,3323,191,601,94,9200,261,3088,241,3511,238,1098,137,2511,156,3197,134,4647,167,2512,167,800,131,1084,169,1787,106,1213,143,884,128]
[null,"With one type of disability",269,86,118,60,154,67,130,55,31,16,85,39,138,84,1678,235,91,46,71,33,163,78,522,145,141,79,42,32,570,144,71,47,94,73,48,31,105,50,332,104,193,107,298,113,80,32,39,31,114,35,77,32,16,11]
[null,"With two or more types of disability",203,95,30,21,188,82,112,55,28,17,77,49,47,26,1576,389,38,18,47,30,86,48,420,155,80,54,39,28,311,115,38,37,207,116,27,18,89,53,150,77,256,129,252,120,21,13,29,27,102,43,56,32,16,17]
[null,"No disability",2455,174,1537,214,1778,185,4336,153,888,125,1329,144,1418,110,22878,597,745,113,1668,79,2667,197,4550,376,3102,196,520,84,8319,302,2979,242,3210,251,1023,133,2317,157,2715,170,4198,214,1962,191,699,117,1016,163,1571,93,1080,131,852,126]
[null,"65 years and over:",592,106,474,101,524,93,1245,109,368,77,389,47,385,42,6139,318,142,44,314,39,702,122,1146,187,500,111,229,76,1976,201,1294,248,1023,183,520,101,1386,180,502,68,1061,141,551,83,225,53,424,90,490,77,309,66,368,74]
[null,"With one type of disability",167,74,93,44,146,56,181,58,73,38,57,21,29,20,976,181,25,18,47,21,132,68,203,75,60,41,39,27,413,100,243,100,226,117,63,31,228,82,36,26,243,80,134,72,32,23,60,28,93,41,58,20,82,39]
[null,"With two or more types of disability",108,57,84,47,123,54,194,78,39,26,43,26,10,12,1389,220,42,23,28,17,123,71,279,108,26,30,29,17,448,119,165,80,163,73,34,29,133,68,79,40,123,69,74,45,33,21,7,6,88,50,10,8,34,27]
[null,"No disability",317,79,297,78,255,54,870,113,256,54,289,45,346,41,3774,275,75,33,239,35,447,102,664,145,414,111,161,65,1115,187,886,189,634,184,423,91,1025,163,387,68,695,129,343,79,160,40,357,86,309,68,241,58,252,53]
[]
[]
[]
[]
[]
[]
[]
[]
[]
[]
[]
["B18108. AGE BY NUMBER OF DISABILITIES\n\n"]
["Universe:  Civilian non-institutionalized population"]
["Data Set:  2008-2012 American Community Survey 5-Year Estimates"]
[]
[null,null,"Allenstown",null,"Andover",null,"Boscawen",null,"Bow",null,"Bradford",null,"Canterbury",null,"Chichester",null,"Concord",null,"Danbury",null,"Dunbarton",null,"Epsom",null,"Franklin",null,"Henniker",null,"Hill",null,"Hooksett",null,"Hopkinton",null,"Loudon",null,"Newbury",null,"New London",null,"Northfield",null,"Pembroke",null,"Pittsfield",null,"Salisbury",null,"Sutton",null,"Warner",null,"Webster",null,"Wilmot"]
[null,null,"Estimate","Margin Of Error","Estimate","Margin Of Error","Estimate","Margin Of Error","Estimate","Margin Of Error","Estimate","Margin Of Error","Estimate","Margin Of Error","Estimate","Margin Of Error","Estimate","Margin Of Error","Estimate","Margin Of Error","Estimate","Margin Of Error","Estimate","Margin Of Error","Estimate","Margin Of Error","Estimate","Margin Of Error","Estimate","Margin Of Error","Estimate","Margin Of Error","Estimate","Margin Of Error","Estimate","Margin Of Error","Estimate","Margin Of Error","Estimate","Margin Of Error","Estimate","Margin Of Error","Estimate","Margin Of Error","Estimate","Margin Of Error","Estimate","Margin Of Error","Estimate","Margin Of Error","Estimate","Margin Of Error","Estimate","Margin Of Error","Estimate"]
[null,"Total:",4336,43,2496,235,3507,201,7571,34,1466,204,2419,143,2529,19,40312,334,1218,225,2756,18,4468,87,8376,74,4800,54,1210,201,13469,37,5608,16,5235,76,2103,252,4358,53,4795,74,7132,28,4088,53,1286,173,1794,251,2831,24,1749,161,1390,196]
[null,"Under 18 years:",921,169,424,106,800,124,2000,126,254,88,542,84,542,63,8460,403,282,109,621,66,983,116,2017,221,1083,169,338,99,2793,227,1228,140,1360,170,428,105,666,134,1323,185,1705,196,867,167,311,85,477,139,565,100,381,74,295,75]
[null,"With one type of disability",26,28,0,11,0,11,35,36,4,5,35,33,15,18,361,133,22,18,36,31,59,52,115,69,65,65,12,13,69,42,27,31,25,40,2,5,11,16,81,60,115,80,61,43,13,11,0,11,0,11,10,11,0,11]
[null,"With two or more types of disability",24,41,0,11,17,28,32,34,0,11,5,8,9,13,19,21,3,5,17,17,0,11,44,51,26,32,0,11,14,22,7,11,20,24,4,6,0,11,8,14,40,45,0,11,0,11,0,11,0,11,0,11,0,11]
[null,"No disability",871,170,424,106,783,127,1933,141,250,86,502,76,518,63,8080,426,257,102,568,70,924,101,1858,237,992,172,326,100,2710,226,1194,135,1315,170,422,105,655,134,1234,191,1550,191,806,144,298,84,477,139,565,100,371,75,295,75]
[null,"18 to 64  years:",2934,138,1592,210,2229,174,4566,121,1033,146,1569,94,1751,49,26510,438,786,137,1911,96,2904,153,5372,225,3448,159,759,124,8927,242,3395,166,3297,145,1260,182,2308,178,2893,183,4665,198,2797,174,821,107,967,133,1845,113,1164,122,835,140]
[null,"With one type of disability",117,66,151,97,141,75,173,77,59,29,68,43,85,50,1715,326,64,35,77,40,274,128,440,122,171,120,51,27,207,106,235,118,210,74,28,18,101,53,145,79,320,133,347,180,67,41,50,31,95,46,39,25,26,20]
[null,"With two or more types of disability",164,95,124,56,108,68,162,103,34,21,29,19,63,48,1332,281,39,26,35,25,117,97,457,145,115,111,47,23,191,80,14,20,58,45,23,25,61,50,104,98,157,72,169,90,40,26,21,21,114,56,44,25,21,19]
[null,"No disability",2653,126,1317,181,1980,178,4231,156,940,134,1472,93,1603,78,23463,558,683,128,1799,107,2513,169,4475,261,3162,209,661,110,8529,287,3146,150,3029,158,1209,173,2146,174,2644,203,4188,219,2281,179,714,107,896,126,1636,122,1081,121,788,131]
[null,"65 years and over:",481,75,480,118,478,105,1005,90,179,53,308,42,236,45,5342,282,150,39,224,61,581,118,987,163,269,89,113,30,1749,161,985,122,578,92,415,93,1384,189,579,154,762,124,424,97,154,43,350,102,421,93,204,46,260,78]
[null,"With one type of disability",61,38,101,67,61,39,115,53,35,21,32,22,32,24,882,155,21,13,33,24,105,60,103,53,64,35,26,13,208,70,205,105,145,49,77,63,196,76,133,72,116,67,63,58,34,15,69,37,54,27,19,13,62,31]
[null,"With two or more types of disability",121,73,73,63,144,77,132,66,47,27,21,18,44,32,1022,171,42,23,28,22,85,50,217,103,45,41,14,11,218,91,113,56,76,45,113,54,116,54,119,87,91,61,122,58,6,6,21,17,114,74,35,22,18,16]
[null,"No disability",299,86,306,81,273,80,758,102,97,33,255,45,160,51,3438,272,87,25,163,52,391,94,667,116,160,88,73,26,1323,167,667,125,357,85,225,65,1072,176,327,110,555,113,239,76,114,36,260,83,253,69,150,37,180,63]

{"sheet":"ACS_TableB19201_ACS_Tbl_B19202","index":36,"n_rows":117,"n_cols":56,"rows_kept":117,"cut":false,"hidden":true,"merged":[]}
[null,"B19102. NON-FAMILY INCOME IN THE PAST 12 MONTHS (IN 2021 INFLATION-ADJUSTED DOLLARS)"]
[null,"Universe:  FAMILIES"]
[null,"Data Set: 2018-2022 American Community Survey 5-Year Estimates"]
[]
[null,null,"Allenstown",null,"Andover",null,"Boscawen",null,"Bow",null,"Bradford",null,"Canterbury",null,"Chichester",null,"Concord",null,"Danbury",null,"Dunbarton",null,"Epsom",null,"Franklin",null,"Henniker",null,"Hill",null,"Hooksett",null,"Hopkinton",null,"Loudon",null,"Newbury",null,"New London",null,"Northfield",null,"Pembroke",null,"Pittsfield",null,"Salisbury",null,"Sutton",null,"Warner",null,"Webster",null,"Wilmot"]
[null,null,"Estimate","Margin Of Error","Estimate","Margin Of Error","Estimate","Margin Of Error","Estimate","Margin Of Error","Estimate","Margin Of Error","Estimate","Margin Of Error","Estimate","Margin Of Error","Estimate","Margin Of Error","Estimate","Margin Of Error","Estimate","Margin Of Error","Estimate","Margin Of Error","Estimate","Margin Of Error","Estimate","Margin Of Error","Estimate","Margin Of Error","Estimate","Margin Of Error","Estimate","Margin Of Error","Estimate","Margin Of Error","Estimate","Margin Of Error","Estimate","Margin Of Error","Estimate","Margin Of Error","Estimate","Margin Of Error","Estimate","Margin Of Error","Estimate","Margin Of Error","Estimate","Margin Of Error","Estimate","Margin Of Error","Estimate","Margin Of Error","Estimate","Margin Of Error"]
[null,"Total:",735,209,328,74,531,148,469,102,195,55,265,52,227,75,7171,442,224,62,214,57,512,152,1360,223,1063,311,81,30,1423,263,556,147,484,201,219,72,582,142,409,118,769,175,545,111,175,85,225,61,379,80,192,46,187,67]
[null,"Less than $10,000",11,17,26,27,23,26,6,10,2,4,14,13,13,13,740,169,22,25,4,7,29,46,174,72,29,44,11,15,105,78,12,19,0,17,4,8,37,36,0,11,133,104,89,65,52,82,10,15,8,9,11,8,0,12]
[null,"$10,000 to $14,999",96,96,33,36,81,66,51,43,13,9,20,14,26,23,618,164,12,11,5,7,36,26,194,106,171,110,3,4,47,47,26,30,77,94,9,13,65,52,22,22,0,17,95,64,0,12,3,7,26,22,12,15,2,3]
[null,"$15,000 to $19,999",51,38,21,16,45,37,45,39,3,5,27,18,6,9,465,110,14,20,0,11,50,44,236,104,157,128,0,11,76,54,37,35,0,17,6,9,47,51,42,34,19,31,17,17,9,9,8,8,57,34,21,17,11,16]
[null,"$20,000 to $24,999",89,87,27,17,14,24,59,37,5,7,28,29,8,9,621,129,4,5,15,15,34,29,74,33,41,36,8,8,71,67,12,19,64,54,0,11,57,58,32,31,16,25,36,33,15,20,33,26,47,36,16,11,0,12]
[null,"$25,000 to $29,999",20,22,21,18,32,47,49,34,41,44,11,11,9,9,481,129,26,21,27,26,39,30,105,74,0,17,6,7,74,61,12,20,20,32,6,9,69,67,15,19,88,100,52,40,3,4,26,22,61,41,4,6,19,20]
[null,"$30,000 to $34,999",64,60,29,26,0,12,9,15,6,6,5,7,5,7,708,167,3,4,16,14,17,21,30,24,177,143,16,15,30,25,40,38,19,31,22,26,47,36,40,48,78,93,47,39,4,5,9,10,43,28,25,21,45,50]
[null,"$35,000 to $39,999",11,18,35,29,55,41,31,30,12,9,14,10,5,7,464,114,12,14,11,12,37,48,48,34,29,50,0,11,65,49,26,30,49,52,5,9,6,9,52,46,11,18,29,29,0,12,21,17,8,11,7,9,6,7]
[null,"$40,000 to $44,999",98,80,35,31,32,27,36,26,9,9,9,10,14,13,465,165,21,19,9,10,10,15,90,55,0,17,6,6,81,47,30,34,0,17,6,8,0,12,19,23,24,31,13,17,7,7,15,12,4,6,30,19,10,9]
[null,"$45,000 to $49,999",5,11,15,15,0,12,23,22,20,19,10,15,0,12,324,102,25,18,17,27,32,37,29,24,97,81,3,4,81,57,60,70,14,25,16,12,17,28,36,43,49,59,76,51,6,6,0,11,12,15,4,6,0,12]
[null,"$50,000 to $59,999",79,63,22,17,44,52,33,37,42,31,37,30,27,20,513,129,33,24,21,15,26,26,77,57,64,103,8,8,237,150,73,66,75,78,41,23,51,31,56,52,68,54,11,14,8,12,21,20,19,19,11,15,14,13]
[null,"$60,000 to $74,999",19,22,4,7,77,61,37,31,3,4,36,25,12,11,589,190,31,26,16,14,37,30,196,115,148,96,3,4,135,73,76,71,0,17,17,11,54,42,31,28,108,73,21,24,27,32,22,21,23,14,19,12,30,27]
[null,"$75,000 to $99,999",71,45,21,16,12,30,34,34,11,9,20,16,12,17,595,157,21,17,10,11,105,57,52,42,24,28,14,10,220,107,45,37,0,17,30,29,51,34,37,31,66,47,53,45,14,10,32,25,37,19,19,13,6,7]
[null,"$100,000 to $124,999",98,60,28,25,56,44,15,18,6,6,18,14,0,12,258,92,0,12,14,12,43,45,17,19,83,69,0,11,107,77,31,51,83,68,3,6,17,20,7,12,69,56,0,11,25,17,9,15,23,22,6,7,9,14]
[null,"$125,000 to $149,999",9,14,5,7,13,21,18,21,10,9,12,13,20,25,114,62,0,12,8,9,8,12,31,37,13,21,3,4,13,18,0,15,40,39,19,25,9,14,20,16,40,47,0,11,3,5,16,16,0,12,4,6,17,18]
[null,"$150,000 to $199,999",14,24,6,8,20,23,12,19,5,5,4,6,50,55,126,90,0,12,17,24,9,14,7,12,18,29,0,11,40,35,28,45,43,70,0,11,26,24,0,11,0,17,0,11,2,5,0,11,11,12,0,11,6,7]
[null,"$200,000 or more",0,12,0,11,27,40,11,18,7,7,0,11,20,21,90,52,0,12,24,16,0,12,0,15,12,19,0,11,41,35,48,56,0,17,35,33,29,33,0,11,0,17,6,11,0,12,0,11,0,12,3,5,12,18]
[]
[]
[null,"B19112. MEDIAN NON-FAMILY INCOME IN THE PAST 12 MONTHS (IN 2021 INFLATION-ADJUSTED DOLLARS)"]
[null,"Universe:  FAMILIES"]
[null,"Data Set: 2018-2022 American Community Survey 5-Year Estimates"]
[]
[null,null,"Allenstown",null,"Andover",null,"Boscawen",null,"Bow",null,"Bradford",null,"Canterbury",null,"Chichester",null,"Concord",null,"Danbury",null,"Dunbarton",null,"Epsom",null,"Franklin",null,"Henniker",null,"Hill",null,"Hooksett",null,"Hopkinton",null,"Loudon",null,"Newbury",null,"New London",null,"Northfield",null,"Pembroke",null,"Pittsfield",null,"Salisbury",null,"Sutton",null,"Warner",null,"Webster",null,"Wilmot"]
[null,null,"Estimate","Margin Of Error","Estimate","Margin Of Error","Estimate","Margin Of Error","Estimate","Margin Of Error","Estimate","Margin Of Error","Estimate","Margin Of Error","Estimate","Margin Of Error","Estimate","Margin Of Error","Estimate","Margin Of Error","Estimate","Margin Of Error","Estimate","Margin Of Error","Estimate","Margin Of Error","Estimate","Margin Of Error","Estimate","Margin Of Error","Estimate","Margin Of Error","Estimate","Margin Of Error","Estimate","Margin Of Error","Estimate","Margin Of Error","Estimate","Margin Of Error","Estimate","Margin Of Error","Estimate","Margin Of Error","Estimate","Margin Of Error","Estimate","Margin Of Error","Estimate","Margin Of Error","Estimate","Margin Of Error","Estimate","Margin Of Error","Estimate","Margin Of Error"]
[null,"Median family income in the past 12 months",40981,8030,37667,7071,43711,23689,38063,14212,46083,10771,47708,16944,62708,40760,34486,2850,44615,5121,53750,17568,45400,14227,25075,5450,32153,14051,33906,9065,53040,3787,51307,11218,47321,23705,57083,13288,33063,14437,42697,9646,46845,14011,27276,7586,"-","**",40417,14766,27841,5505,40000,6486,50156,28994]
[]
[]
[]
[]
[]
[]
[]
[]
[]
[]
[]
[]
[]
[]
[]
[]
[]
[null,"B19102. NON-FAMILY INCOME IN THE PAST 12 MONTHS (IN 2016 INFLATION-ADJUSTED DOLLARS)"]
[null,"Universe:  FAMILIES"]
[null,"Data Set: 2013-2017 American Community Survey 5-Year Estimates"]
[]
[null,null,"Allenstown",null,"Andover",null,"Boscawen",null,"Bow",null,"Bradford",null,"Canterbury",null,"Chichester",null,"Concord",null,"Danbury",null,"Dunbarton",null,"Epsom",null,"Franklin",null,"Henniker",null,"Hill",null,"Hooksett",null,"Hopkinton",null,"Loudon",null,"Newbury",null,"New London",null,"Northfield",null,"Pembroke",null,"Pittsfield",null,"Salisbury",null,"Sutton",null,"Warner",null,"Webster",null,"Wilmot"]
[null,null,"Estimate","Margin Of Error","Estimate","Margin Of Error","Estimate","Margin Of Error","Estimate","Margin Of Error","Estimate","Margin Of Error","Estimate","Margin Of Error","Estimate","Margin Of Error","Estimate","Margin Of Error","Estimate","Margin Of Error","Estimate","Margin Of Error","Estimate","Margin Of Error","Estimate","Margin Of Error","Estimate","Margin Of Error","Estimate","Margin Of Error","Estimate","Margin Of Error","Estimate","Margin Of Error","Estimate","Margin Of Error","Estimate","Margin Of Error","Estimate","Margin Of Error","Estimate","Margin Of Error","Estimate","Margin Of Error","Estimate","Margin Of Error","Estimate","Margin Of Error","Estimate","Margin Of Error","Estimate","Margin Of Error","Estimate","Margin Of Error","Estimate","Margin Of Error"]
[null,"Total:",594,136,328,74,346,99,469,102,191,44,265,52,265,65,7171,442,204,46,214,57,508,120,1360,223,610,146,81,30,1517,212,556,147,544,160,219,72,648,172,409,118,683,158,545,111,171,51,225,61,320,69,192,46,219,56]
[null,"Less than $10,000",46,32,26,27,60,38,6,10,29,18,14,13,22,27,740,169,9,7,4,7,16,20,174,72,100,71,11,15,97,71,12,19,47,41,4,8,35,28,0,11,34,37,89,65,5,7,10,15,37,33,11,8,24,24]
[null,"$10,000 to $14,999",117,71,33,36,13,16,51,43,11,9,20,14,12,13,618,164,7,6,5,7,57,56,194,106,84,57,3,4,152,88,26,30,68,55,9,13,63,44,22,22,104,99,95,64,18,22,3,7,16,24,12,15,10,10]
[null,"$15,000 to $19,999",8,13,21,16,30,37,45,39,13,10,27,18,6,9,465,110,35,25,0,11,55,50,236,104,109,75,0,11,89,49,37,35,32,30,6,9,43,33,42,34,49,45,17,17,14,11,8,8,38,30,21,17,0,11]
[null,"$20,000 to $24,999",59,49,27,17,36,38,59,37,4,6,28,29,11,14,621,129,6,6,15,15,23,23,74,33,19,31,8,8,132,61,12,19,57,58,0,11,32,26,32,31,69,53,36,33,23,22,33,26,15,12,16,11,25,24]
[null,"$25,000 to $29,999",52,48,21,18,31,26,49,34,36,24,11,11,11,12,481,129,29,20,27,26,38,28,105,74,14,23,6,7,60,44,12,20,0,15,6,9,43,30,15,19,33,37,52,40,8,8,26,22,25,29,4,6,15,12]
[null,"$30,000 to $34,999",46,30,29,26,8,12,9,15,14,12,5,7,7,10,708,167,25,25,16,14,93,69,30,24,52,35,16,15,126,77,40,38,46,43,22,26,39,47,40,48,13,21,47,39,10,17,9,10,11,11,25,21,12,18]
[null,"$35,000 to $39,999",21,21,35,29,31,26,31,30,4,6,14,10,19,16,464,114,3,4,11,12,0,11,48,34,19,29,0,11,135,106,26,30,57,66,5,9,0,11,52,46,14,24,29,29,4,6,21,17,10,11,7,9,13,14]
[null,"$40,000 to $44,999",27,22,35,31,8,13,36,26,11,9,9,10,7,10,465,165,14,12,9,10,30,25,90,55,18,16,6,6,102,53,30,34,38,55,6,8,52,44,19,23,34,41,13,17,8,8,15,12,4,8,30,19,31,24]
[null,"$45,000 to $49,999",26,24,15,15,8,12,23,22,3,5,10,15,8,10,324,102,3,4,17,27,29,30,29,24,14,21,3,4,7,12,60,70,22,34,16,12,43,30,36,43,16,25,76,51,6,6,0,11,35,27,4,6,20,20]
[null,"$50,000 to $59,999",75,50,22,17,7,12,33,37,23,13,37,30,39,30,513,129,19,20,21,15,49,54,77,57,11,14,8,8,165,85,73,66,11,19,41,23,71,53,56,52,44,43,11,14,19,20,21,20,23,15,11,15,39,21]
[null,"$60,000 to $74,999",49,36,4,7,15,16,37,31,13,10,36,25,49,36,589,190,16,16,16,14,48,37,196,115,74,54,3,4,108,60,76,71,33,39,17,11,53,36,31,28,129,77,21,24,27,19,22,21,10,10,19,12,13,15]
[null,"$75,000 to $99,999",9,14,21,16,69,67,34,34,10,11,20,16,45,25,595,157,33,20,10,11,17,19,52,42,20,33,14,10,232,120,45,37,31,36,30,29,9,14,37,31,104,82,53,45,13,10,32,25,35,25,19,13,9,7]
[null,"$100,000 to $124,999",42,47,28,25,6,10,15,18,0,11,18,14,15,22,258,92,0,11,14,12,10,15,17,19,7,11,0,11,60,45,31,51,62,51,3,6,86,59,7,12,25,29,0,11,7,7,9,15,9,9,6,7,5,6]
[null,"$125,000 to $149,999",17,19,5,7,24,22,18,21,9,9,12,13,2,4,114,62,5,7,8,9,43,31,31,37,21,23,3,4,0,17,0,15,23,37,19,25,49,48,20,16,0,15,0,11,6,8,16,16,21,21,4,6,0,11]
[null,"$150,000 to $199,999",0,11,6,8,0,11,12,19,0,11,4,6,5,7,126,90,0,11,17,24,0,11,7,12,25,37,0,11,24,29,28,45,0,15,0,11,15,24,0,11,0,15,0,11,3,5,0,11,8,9,0,11,0,11]
[null,"$200,000 or more",0,11,0,11,0,11,11,18,11,17,0,11,7,10,90,52,0,11,24,16,0,11,0,15,23,34,0,11,28,37,48,56,17,27,35,33,15,24,0,11,15,24,6,11,0,11,0,11,23,25,3,5,3,5]
[]
[]
[null,"B19112. MEDIAN NON-FAMILY INCOME IN THE PAST 12 MONTHS (IN 2015 INFLATION-ADJUSTED DOLLARS)"]
[null,"Universe:  FAMILIES"]
[null,"Data Set: 2013-2017 American Community Survey 5-Year Estimates"]
[]
[null,null,"Allenstown",null,"Andover",null,"Boscawen",null,"Bow",null,"Bradford",null,"Canterbury",null,"Chichester",null,"Concord",null,"Danbury",null,"Dunbarton",null,"Epsom",null,"Franklin",null,"Henniker",null,"Hill",null,"Hooksett",null,"Hopkinton",null,"Loudon",null,"Newbury",null,"New London",null,"Northfield",null,"Pembroke",null,"Pittsfield",null,"Salisbury",null,"Sutton",null,"Warner",null,"Webster",null,"Wilmot"]
[null,null,"Estimate","Margin Of Error","Estimate","Margin Of Error","Estimate","Margin Of Error","Estimate","Margin Of Error","Estimate","Margin Of Error","Estimate","Margin Of Error","Estimate","Margin Of Error","Estimate","Margin Of Error","Estimate","Margin Of Error","Estimate","Margin Of Error","Estimate","Margin Of Error","Estimate","Margin Of Error","Estimate","Margin Of Error","Estimate","Margin Of Error","Estimate","Margin Of Error","Estimate","Margin Of Error","Estimate","Margin Of Error","Estimate","Margin Of Error","Estimate","Margin Of Error","Estimate","Margin Of Error","Estimate","Margin Of Error","Estimate","Margin Of Error","Estimate","Margin Of Error","Estimate","Margin Of Error","Estimate","Margin Of Error","Estimate","Margin Of Error","Estimate","Margin Of Error"]
[null,"Median family income in the past 12 months",31389,7265,37667,7071,30938,14378,38063,14212,31563,10792,47708,16944,54875,12024,34486,2850,33929,9406,53750,17568,33205,7907,25075,5450,21579,19253,33906,9065,37488,6200,51307,11218,38056,6804,57083,13288,47361,12164,42697,9646,43988,23568,27276,7586,43594,20395,40417,14766,45625,17278,40000,6486,41544,7105]
[]
[]
[]
[]
[null,"B19102. NON-FAMILY INCOME IN THE PAST 12 MONTHS (IN 2011 INFLATION-ADJUSTED DOLLARS)"]
[null,"Universe:  FAMILIES"]
[null,"Data Set: 2008-2012 American Community Survey 5-Year Estimates"]
[]
[null,null,"Allenstown",null,"Andover",null,"Boscawen",null,"Bow",null,"Bradford",null,"Canterbury",null,"Chichester",null,"Concord",null,"Danbury",null,"Dunbarton",null,"Epsom",null,"Franklin",null,"Henniker",null,"Hill",null,"Hooksett",null,"Hopkinton",null,"Loudon",null,"Newbury",null,"New London",null,"Northfield",null,"Pembroke",null,"Pittsfield",null,"Salisbury",null,"Sutton",null,"Warner",null,"Webster",null,"Wilmot"]
[null,null,"Estimate","Margin Of Error","Estimate","Margin Of Error","Estimate","Margin Of Error","Estimate","Margin Of Error","Estimate","Margin Of Error","Estimate","Margin Of Error","Estimate","Margin Of Error","Estimate","Margin Of Error","Estimate","Margin Of Error","Estimate","Margin Of Error","Estimate","Margin Of Error","Estimate","Margin Of Error","Estimate","Margin Of Error","Estimate","Margin Of Error","Estimate","Margin Of Error","Estimate","Margin Of Error","Estimate","Margin Of Error","Estimate","Margin Of Error","Estimate","Margin Of Error","Estimate","Margin Of Error","Estimate","Margin Of Error","Estimate","Margin Of Error","Estimate","Margin Of Error","Estimate","Margin Of Error","Estimate","Margin Of Error","Estimate","Margin Of Error","Estimate","Margin Of Error"]
[null,"Total:",483,159,251,74,401,148,338,115,137,43,209,51,188,58,7823,533,163,50,252,59,388,127,1301,205,539,130,133,43,1137,203,568,199,379,122,274,81,651,155,399,136,997,193,492,117,115,40,191,58,259,69,171,42,173,45]
[null,"Less than $10,000",77,80,27,28,42,36,36,62,24,21,8,12,15,15,734,173,33,26,9,13,0,85,153,74,59,46,0,85,55,44,39,53,0,85,13,13,158,98,52,51,129,87,20,30,3,4,24,24,44,39,6,7,21,18]
[null,"$10,000 to $14,999",39,29,10,11,9,16,47,45,17,11,16,17,17,27,649,190,16,16,0,85,81,75,138,73,90,64,28,21,87,67,0,85,10,16,7,9,27,35,25,26,110,69,97,70,14,16,3,5,6,9,9,7,5,7]
[null,"$15,000 to $19,999",55,66,12,12,35,29,20,25,6,6,14,15,5,8,518,193,6,7,16,18,48,36,174,73,0,85,6,6,109,56,35,39,17,21,30,30,26,22,19,22,77,56,57,41,0,85,12,16,15,14,20,22,6,6]
[null,"$20,000 to $24,999",75,68,9,14,25,27,39,38,5,6,15,16,20,18,731,197,20,17,10,13,44,57,127,61,37,46,14,17,35,32,38,42,32,29,9,11,65,53,22,25,53,52,35,25,19,21,11,12,27,22,0,85,21,16]
[null,"$25,000 to $29,999",38,31,12,12,21,25,56,47,10,9,31,16,18,15,568,149,0,85,13,17,24,27,81,51,36,35,22,20,52,43,0,85,58,39,0,85,0,85,40,32,118,96,24,21,0,85,24,24,16,16,3,5,0,85]
[null,"$30,000 to $34,999",40,40,8,10,32,34,0,85,16,19,14,15,0,85,629,184,32,20,16,17,53,40,116,68,15,16,13,10,97,54,33,38,0,85,36,38,39,48,25,29,0,85,27,34,0,85,5,8,7,10,2,5,11,10]
[null,"$35,000 to $39,999",21,28,16,25,39,50,12,18,8,9,21,17,16,18,386,122,24,21,7,11,12,19,63,43,18,22,0,85,102,71,32,37,10,16,6,8,73,57,60,77,62,52,49,55,6,7,6,6,0,85,26,21,0,85]
[null,"$40,000 to $44,999",43,36,25,29,0,85,13,22,8,8,8,12,17,20,608,171,5,7,7,10,0,85,73,41,7,12,12,15,79,73,28,35,19,21,0,85,32,30,30,30,33,52,36,34,18,22,13,12,33,23,23,15,17,12]
[null,"$45,000 to $49,999",8,13,16,14,36,40,13,21,14,12,9,14,15,16,333,127,0,85,16,15,0,85,18,21,0,85,10,7,36,31,0,85,26,25,20,18,0,85,18,21,13,20,6,10,6,6,13,12,16,16,4,6,0,85]
[null,"$50,000 to $59,999",22,31,36,33,44,33,21,20,13,12,21,20,22,31,675,172,3,4,5,8,27,26,79,47,94,71,0,85,97,73,105,96,35,32,52,36,87,60,9,15,161,118,10,16,22,19,23,19,26,28,33,20,19,22]
[null,"$60,000 to $74,999",39,31,10,10,34,34,36,37,5,6,10,13,7,9,671,179,10,15,36,27,30,28,139,70,95,63,3,4,107,58,76,66,48,49,21,17,58,44,53,39,66,48,34,34,12,9,31,30,27,22,16,10,23,20]
[null,"$75,000 to $99,999",20,23,5,8,42,46,14,25,3,5,19,20,14,13,722,175,8,9,23,20,37,41,140,91,62,61,7,7,204,97,86,61,99,74,25,19,21,23,37,30,34,40,72,64,9,8,7,6,14,11,26,17,29,27]
[null,"$100,000 to $124,999",6,9,31,30,17,25,0,85,1,5,11,12,0,85,301,133,0,85,6,8,4,8,0,85,18,20,2,4,39,30,16,26,8,15,14,14,31,27,9,14,97,110,0,85,0,85,2,4,7,11,0,85,0,85]
[null,"$125,000 to $149,999",0,85,11,12,0,85,12,20,3,5,5,9,19,25,221,89,0,85,7,10,15,23,0,85,8,14,13,16,7,12,80,95,5,10,18,21,0,85,0,85,16,26,0,85,4,5,14,15,14,17,0,85,16,18]
[null,"$150,000 to $199,999",0,85,18,28,11,18,0,85,4,5,0,85,3,6,37,32,6,9,54,37,13,20,0,85,0,85,3,5,22,25,0,85,12,19,23,35,34,35,0,85,28,33,10,16,2,5,3,4,7,11,3,5,0,85]
[null,"$200,000 or more",0,85,5,8,14,20,19,23,0,85,7,10,0,85,40,32,0,85,27,25,0,85,0,85,0,85,0,85,9,14,0,85,0,85,0,85,0,85,0,85,0,85,15,16,0,85,0,85,0,85,0,85,5,8]
[]
[]
[null,"B19112. MEDIAN NON-FAMILY INCOME IN THE PAST 12 MONTHS (IN 2011 INFLATION-ADJUSTED DOLLARS)"]
[null,"Universe:  FAMILIES"]
[null,"Data Set: 2008-2012 American Community Survey 5-Year Estimates"]
[]
[null,null,"Allenstown",null,"Andover",null,"Boscawen",null,"Bow",null,"Bradford",null,"Canterbury",null,"Chichester",null,"Concord",null,"Danbury",null,"Dunbarton",null,"Epsom",null,"Franklin",null,"Henniker",null,"Hill",null,"Hooksett",null,"Hopkinton",null,"Loudon",null,"Newbury",null,"New London",null,"Northfield",null,"Pembroke",null,"Pittsfield",null,"Salisbury",null,"Sutton",null,"Warner",null,"Webster",null,"Wilmot"]
[null,null,"Estimate","Margin Of Error","Estimate","Margin Of Error","Estimate","Margin Of Error","Estimate","Margin Of Error","Estimate","Margin Of Error","Estimate","Margin Of Error","Estimate","Margin Of Error","Estimate","Margin Of Error","Estimate","Margin Of Error","Estimate","Margin Of Error","Estimate","Margin Of Error","Estimate","Margin Of Error","Estimate","Margin Of Error","Estimate","Margin Of Error","Estimate","Margin Of Error","Estimate","Margin Of Error","Estimate","Margin Of Error","Estimate","Margin Of Error","Estimate","Margin Of Error","Estimate","Margin Of Error","Estimate","Margin Of Error","Estimate","Margin Of Error","Estimate","Margin Of Error","Estimate","Margin Of Error","Estimate","Margin Of Error","Estimate","Margin Of Error","Estimate","Margin Of Error"]
[null,"Median family income in the past 12 months",24795,7121,46016,10811,39306,20820,26875,8961,32321,8134,35774,5260,40682,9101,36036,3769,32031,14138,69423,24367,29375,10775,29047,4808,50368,23606,27434,8745,41141,5140,56585,11871,54250,15209,51379,7080,35972,11005,35688,5236,35653,15185,33333,15397,42917,11586,44375,12493,41394,13298,42120,9900,51375,19839]

{"sheet":"ACS_Table_B19049","index":37,"n_rows":56,"n_cols":56,"rows_kept":56,"cut":false,"hidden":true,"merged":[]}
[null,"B19049. MEDIAN HOUSEHOLD INCOME IN THE PAST 12 MONTHS (IN 2021 INFLATION-ADJUSTED DOLLARS) BY AGE OF HOUSEHOLDER "]
[null,"Universe:  HOUSEHOLDS"]
[null,"Data Set: 2018-2022 American Community Survey 5-Year Estimates"]
[]
[null,null,"Allenstown",null,"Andover",null,"Boscawen",null,"Bow",null,"Bradford",null,"Canterbury",null,"Chichester",null,"Concord",null,"Danbury",null,"Dunbarton",null,"Epsom",null,"Franklin",null,"Henniker",null,"Hill",null,"Hooksett",null,"Hopkinton",null,"Loudon",null,"Newbury",null,"New London",null,"Northfield",null,"Pembroke",null,"Pittsfield",null,"Salisbury",null,"Sutton",null,"Warner",null,"Webster",null,"Wilmot"]
[null,null,"Estimate","Margin Of Error","Estimate","Margin Of Error","Estimate","Margin Of Error","Estimate","Margin Of Error","Estimate","Margin Of Error","Estimate","Margin Of Error","Estimate","Margin Of Error","Estimate","Margin Of Error","Estimate","Margin Of Error","Estimate","Margin Of Error","Estimate","Margin Of Error","Estimate","Margin Of Error","Estimate","Margin Of Error","Estimate","Margin Of Error","Estimate","Margin Of Error","Estimate","Margin Of Error","Estimate","Margin Of Error","Estimate","Margin Of Error","Estimate","Margin Of Error","Estimate","Margin Of Error","Estimate","Margin Of Error","Estimate","Margin Of Error","Estimate","Margin Of Error","Estimate","Margin Of Error","Estimate","Margin Of Error","Estimate","Margin Of Error","Estimate","Margin Of Error"]
[null,"Median household income in the past 12 months"]
[null,"Total:",74659,20163,86591,16611,84292,13752,147951,9841,83833,17670,111094,23093,119306,16698,77874,3907,62500,14281,138036,25084,90805,9170,66942,10987,76681,20413,84167,17029,100321,11287,115682,13812,77065,21543,116250,12319,87237,31377,75108,8458,95396,12478,64564,12824,97917,16715,130568,24292,82500,23896,105417,13271,110917,13775]
[null,"Householder under 25 years","-","**","-","**",66250,22419,"-","**",58333,26711,"-","**","-","**",51571,12584,"-","**","-","**",70278,59245,"-","**","-","**","-","**",54489,44410,"-","**","-","**","-","**","-","**","-","**",70517,44892,"-","**","-","**","-","**",65774,50230,"-","**","-","**"]
[null,"Householder 25 to 44 years",80231,32604,104808,16982,98000,11962,155407,31970,84750,22128,139750,47432,99167,36152,82474,9003,66458,30157,151058,49623,111417,15091,86925,17661,71875,37157,125179,47011,125263,16384,119952,56141,118884,57394,122159,20526,134135,51376,87000,24366,95288,24057,107867,37397,170570,35944,128750,34049,107596,32136,111402,3871,111792,5827]
[null,"Householder 45 to 64 years",97917,39392,135833,66522,83194,38903,176504,10022,120938,14248,149808,26211,150753,9016,97692,8673,68036,18959,142083,32112,94569,20098,88500,21871,79773,43159,98750,23652,128152,15483,129688,52607,83083,35034,135893,43575,190714,73101,76170,14998,107830,19099,79500,21928,121250,19879,148381,18023,123889,24271,111750,17358,108750,45743]
[null,"Householder 65 years and over",33611,19672,47071,3100,43250,40595,88000,35065,43750,27660,85313,21395,56719,11108,57872,6240,40833,20880,113125,39404,65625,14050,37794,15648,105357,47109,50417,44692,58458,10166,63659,16283,68117,30087,71250,32694,74312,12526,59355,20112,63409,6413,39554,18912,48889,22505,90417,58739,50125,26189,80313,31200,88750,63274]
[]
[]
[]
[]
[]
[]
[]
[]
[]
[]
[]
[]
[]
[]
[]
[]
[]
[null,"B19049. MEDIAN HOUSEHOLD INCOME IN THE PAST 12 MONTHS (IN 2016 INFLATION-ADJUSTED DOLLARS) BY AGE OF HOUSEHOLDER "]
[null,"Universe:  HOUSEHOLDS"]
[null,"Data Set: 2013-2017 American Community Survey 5-Year Estimates"]
[]
[null,null,"Allenstown",null,"Andover",null,"Boscawen",null,"Bow",null,"Bradford",null,"Canterbury",null,"Chichester",null,"Concord",null,"Danbury",null,"Dunbarton",null,"Epsom",null,"Franklin",null,"Henniker",null,"Hill",null,"Hooksett",null,"Hopkinton",null,"Loudon",null,"Newbury",null,"New London",null,"Northfield",null,"Pembroke",null,"Pittsfield",null,"Salisbury",null,"Sutton",null,"Warner",null,"Webster",null,"Wilmot"]
[null,null,"Estimate","Margin Of Error","Estimate","Margin Of Error","Estimate","Margin Of Error","Estimate","Margin Of Error","Estimate","Margin Of Error","Estimate","Margin Of Error","Estimate","Margin Of Error","Estimate","Margin Of Error","Estimate","Margin Of Error","Estimate","Margin Of Error","Estimate","Margin Of Error","Estimate","Margin Of Error","Estimate","Margin Of Error","Estimate","Margin Of Error","Estimate","Margin Of Error","Estimate","Margin Of Error","Estimate","Margin Of Error","Estimate","Margin Of Error","Estimate","Margin Of Error","Estimate","Margin Of Error","Estimate","Margin Of Error","Estimate","Margin Of Error","Estimate","Margin Of Error","Estimate","Margin Of Error","Estimate","Margin Of Error","Estimate","Margin Of Error","Estimate","Margin Of Error"]
[null,"Median household income in the past 12 months"]
[null,"Total:",53448,4985,69489,9741,57235,9883,101413,7198,61324,5546,82847,8312,82928,9645,57566,3221,61058,5829,88333,8462,69583,8686,44490,3944,65776,5946,67917,9120,84159,3288,90701,16457,68750,14705,91324,9931,70893,18270,65690,7885,77845,11284,49087,3610,67438,6901,82321,12032,72865,5281,69250,8218,60673,7986]
[null,"Householder under 25 years",52857,49425,"-","**","-","**","-","**",41875,39508,"-","**","-","**",27443,5356,"-","**","-","**","-","**",43250,7214,13370,4390,"-","**",37167,20751,"-","**","-","**","-","**","-","**","-","**","-","**","-","**","-","**","-","**",29926,12997,"-","**","-","**"]
[null,"Householder 25 to 44 years",68750,14641,84722,13364,68350,24792,103438,18238,82813,25587,92159,25968,83250,27167,60032,5502,68036,7846,102188,40011,82500,30396,49375,15947,67344,21906,86250,19527,94583,10482,74444,44098,64096,16999,93173,11864,95536,12128,86125,14977,78750,19840,53293,13000,79375,15346,80893,25603,65982,19176,81607,9219,64792,26239]
[null,"Householder 45 to 64 years",57308,8921,75500,17117,62059,13875,127695,12963,66964,15552,83000,11303,100817,16102,73820,3708,60673,16223,96333,12018,81250,16771,51936,10253,83449,4306,67500,9377,95263,13187,110179,28264,92884,9999,97566,14396,110547,19004,76607,17980,89167,9894,50350,16287,76023,16737,100500,16498,77457,14898,70625,11557,69000,27535]
[null,"Householder 65 years and over",30705,6236,34088,3029,34107,9098,57109,23672,42813,24488,80000,14825,54688,14961,38276,3861,40000,19727,50278,10735,29556,15695,33676,9171,56042,25509,52273,18359,42553,7620,65148,10923,56310,16535,76023,36358,62500,9791,46509,5209,46797,24697,48464,9225,45250,15843,60000,13953,72375,25145,47500,12691,49583,7450]
[]
[]
[]
[null,"B19049. MEDIAN HOUSEHOLD INCOME IN THE PAST 12 MONTHS (IN 2011 INFLATION-ADJUSTED DOLLARS) BY AGE OF HOUSEHOLDER "]
[null,"Universe:  HOUSEHOLDS"]
[null,"Data Set: 2008-2012 American Community Survey 5-Year Estimates"]
[]
[null,null,"Allenstown",null,"Andover",null,"Boscawen",null,"Bow",null,"Bradford",null,"Canterbury",null,"Chichester",null,"Concord",null,"Danbury",null,"Dunbarton",null,"Epsom",null,"Franklin",null,"Henniker",null,"Hill",null,"Hooksett",null,"Hopkinton",null,"Loudon",null,"Newbury",null,"New London",null,"Northfield",null,"Pembroke",null,"Pittsfield",null,"Salisbury",null,"Sutton",null,"Warner",null,"Webster",null,"Wilmot"]
[null,null,"Estimate","Margin Of Error","Estimate","Margin Of Error","Estimate","Margin Of Error","Estimate","Margin Of Error","Estimate","Margin Of Error","Estimate","Margin Of Error","Estimate","Margin Of Error","Estimate","Margin Of Error","Estimate","Margin Of Error","Estimate","Margin Of Error","Estimate","Margin Of Error","Estimate","Margin Of Error","Estimate","Margin Of Error","Estimate","Margin Of Error","Estimate","Margin Of Error","Estimate","Margin Of Error","Estimate","Margin Of Error","Estimate","Margin Of Error","Estimate","Margin Of Error","Estimate","Margin Of Error","Estimate","Margin Of Error","Estimate","Margin Of Error","Estimate","Margin Of Error","Estimate","Margin Of Error","Estimate","Margin Of Error","Estimate","Margin Of Error","Estimate","Margin Of Error"]
[null,"Median household income in the past 12 months"]
[null,"Total:",58159,9075,67900,7535,61368,7684,106593,12039,63750,11002,79453,4721,76917,9782,54163,2574,46845,8999,99190,6456,73092,6647,44332,9161,70417,23303,56979,14318,85064,4044,84042,4058,77903,11306,66771,11481,66776,11364,58368,5618,64575,9359,58302,4985,68387,4329,71146,13218,58221,10254,67105,5885,74138,8021]
[null,"Householder under 25 years",79079,17627,108333,67325,"-","**","-","**","-","**","-","**","-","**",27813,7374,46806,17085,162868,239379,"-","**",61875,89361,25329,36110,"-","**",72031,17799,34211,31048,30341,6614,"-","**",33929,45631,19861,50838,40947,24446,30833,42332,"-","**","-","**","-","**",32222,19989,78393,40693]
[null,"Householder 25 to 44 years",55288,20365,71875,14617,81806,21917,127264,8026,77083,28828,82679,8035,100560,18345,62651,5839,38152,6339,101625,31628,100547,10565,52847,12980,85408,41854,72778,28321,98777,10468,86480,7543,76071,38159,82917,15804,51042,42069,63750,22600,71228,23396,64844,10507,78750,27626,80500,17141,76354,9969,76111,12150,81731,15901]
[null,"Householder 45 to 64 years",66685,13020,73967,9261,62170,13799,119091,15011,63214,14170,92500,9135,74444,11741,64782,5695,68250,16705,99148,7632,71378,6308,60519,8099,85341,25406,65208,25428,89760,8342,87083,17506,86190,7245,76953,20942,113250,67167,61618,6020,75690,15765,58692,10743,70526,4317,70250,22605,59844,16184,72500,10248,75781,11928]
[null,"Householder 65 years and over",21481,14894,60882,17968,30375,7710,66638,20729,25750,12580,56667,10584,37143,12505,31699,3183,23438,13477,77708,43628,31125,16486,23450,4304,33438,37298,40417,15586,49828,17910,67016,12126,63964,11008,45536,18041,54635,18944,34224,6802,36417,12879,22188,17879,48125,12635,55781,28064,38393,8613,48889,9183,36750,7588]

{"sheet":"ACS_Table_B25118","index":38,"n_rows":191,"n_cols":56,"rows_kept":191,"cut":false,"hidden":true,"merged":[]}
[null,"B25118. TENURE BY HOUSEHOLD INCOME IN THE PAST 12 MONTHS (IN 2020 INFLATION-ADJUSTED DOLLARS) "]
[null,"Universe:  OCCUPIED HOUSING UNITS"]
[null,"Data Set: 2017-2021 American Community Survey 5-Year Estimates"]
[]
[null,null,"Allenstown",null,"Andover",null,"Boscawen",null,"Bow",null,"Bradford",null,"Canterbury",null,"Chichester",null,"Concord",null,"Danbury",null,"Dunbarton",null,"Epsom",null,"Franklin",null,"Henniker",null,"Hill",null,"Hooksett",null,"Hopkinton",null,"Loudon",null,"Newbury",null,"New London",null,"Northfield",null,"Pembroke",null,"Pittsfield",null,"Salisbury",null,"Sutton",null,"Warner",null,"Webster",null,"Wilmot"]
[null,null,"Estimate","Margin Of Error","Estimate","Margin Of Error","Estimate","Margin Of Error","Estimate","Margin Of Error","Estimate","Margin Of Error","Estimate","Margin Of Error","Estimate","Margin Of Error","Estimate","Margin Of Error","Estimate","Margin Of Error","Estimate","Margin Of Error","Estimate","Margin Of Error","Estimate","Margin Of Error","Estimate","Margin Of Error","Estimate","Margin Of Error","Estimate","Margin Of Error","Estimate","Margin Of Error","Estimate","Margin Of Error","Estimate","Margin Of Error","Estimate","Margin Of Error","Estimate","Margin Of Error","Estimate","Margin Of Error","Estimate","Margin Of Error","Estimate","Margin Of Error","Estimate","Margin Of Error","Estimate","Margin Of Error","Estimate","Margin Of Error","Estimate","Margin Of Error"]
[null,"Total:",1812,193,878,119,1380,140,2895,133,632,73,920,96,1011,63,17955,443,672,112,1061,89,1844,139,3717,321,2397,206,318,54,5110,285,2168,194,2276,183,747,99,1636,129,1906,134,2627,196,1801,141,623,122,846,149,1200,89,795,103,624,90]
[null,"Owner occupied:",1439,167,794,120,1056,125,2630,153,564,66,865,95,939,81,10275,455,625,114,1018,88,1640,126,2308,311,1545,230,298,49,4044,282,1912,206,1957,195,653,97,1485,137,1410,135,1997,205,1221,146,600,122,808,150,824,76,758,99,488,77]
[null,"Less than $5,000",0,12,4,6,19,22,7,13,0,12,11,11,9,10,47,38,12,16,5,8,38,48,35,30,10,17,0,12,20,29,0,17,0,17,5,9,16,26,41,62,22,36,8,14,52,82,8,13,3,6,23,38,0,12]
[null,"$5,000 to $9,999",42,48,4,6,0,12,18,20,2,4,0,12,4,7,18,23,26,25,34,43,0,12,0,17,0,17,0,12,6,11,12,21,0,17,12,18,0,12,0,12,35,43,0,12,4,7,0,12,0,12,4,5,0,12]
[null,"$10,000 to $14,999",0,12,5,8,26,30,23,21,13,9,0,12,26,23,155,87,21,14,5,7,26,21,15,18,51,70,7,7,67,52,0,17,0,17,6,8,55,50,0,12,0,17,0,12,3,4,5,8,9,10,2,3,2,3]
[null,"$15,000 to $19,999",72,46,40,44,19,23,14,14,19,17,18,22,10,8,195,116,14,20,4,6,36,30,26,25,11,19,17,18,48,43,0,17,18,31,0,12,42,51,30,22,0,17,0,12,17,12,20,22,22,15,6,7,11,16]
[null,"$20,000 to $24,999",34,51,28,24,0,12,12,19,11,9,12,19,18,16,173,75,57,68,5,7,16,18,42,29,13,21,3,5,88,73,26,24,346,260,9,9,57,58,43,32,0,17,60,77,25,23,23,27,21,19,22,20,3,4]
[null,"$25,000 to $34,999",139,98,35,25,28,26,40,33,78,52,18,16,31,24,476,135,34,24,3,5,79,51,277,248,57,53,34,21,119,78,53,49,53,38,12,14,126,77,58,38,108,87,124,88,7,6,21,16,66,39,18,12,19,18]
[null,"$35,000 to $49,999",144,92,116,91,108,51,59,35,66,26,48,26,61,25,662,170,83,51,64,36,54,27,233,93,72,67,17,12,288,105,99,65,179,107,26,18,67,50,91,54,101,71,137,65,48,33,79,62,50,31,38,25,23,14]
[null,"$50,000 to $74,999",180,86,61,33,186,81,166,53,51,25,110,53,74,33,1621,308,102,39,84,39,255,100,438,163,185,91,48,16,699,208,204,97,236,126,59,34,245,110,296,95,338,165,142,80,77,34,60,30,90,34,121,48,72,37]
[null,"$75,000 to $99,999",243,102,130,48,205,97,190,56,71,27,146,54,116,65,1510,293,108,43,102,43,352,103,286,123,211,115,55,26,431,130,275,122,268,153,79,36,123,50,264,96,263,88,205,73,81,31,72,26,66,26,92,40,49,22]
[null,"$100,000 to $149,999",319,106,165,66,240,92,705,151,140,40,151,49,266,80,2320,255,102,45,223,63,415,118,522,150,545,268,68,24,837,178,408,177,367,151,200,64,206,71,370,113,614,165,412,131,117,43,225,104,245,58,240,75,137,61]
[null,"$150,000 or more",266,95,206,51,225,90,1396,150,113,36,351,84,324,84,3098,334,66,27,489,93,369,115,434,131,390,122,49,24,1441,237,835,155,490,169,245,68,548,92,217,78,516,146,133,68,169,96,295,96,252,66,192,40,172,44]
[null,"Renter occupied:",373,153,84,44,324,94,265,91,68,35,55,36,72,45,7680,442,47,32,43,22,204,81,1409,255,852,272,20,20,1066,219,256,146,319,181,94,40,151,69,496,124,630,156,580,158,23,21,38,21,376,90,37,23,136,56]
[null,"Less than $5,000",0,12,5,7,12,19,17,20,0,12,11,15,0,12,360,125,0,12,0,12,0,12,27,34,29,44,0,12,98,76,0,17,0,17,0,12,8,12,30,46,76,91,0,12,0,12,0,12,22,19,6,10,3,5]
[null,"$5,000 to $9,999",0,12,0,12,0,12,0,17,0,12,0,12,0,12,176,155,0,12,0,12,0,12,62,64,0,17,11,16,1,4,0,17,0,17,0,12,13,20,11,18,0,17,71,95,0,12,0,12,0,12,4,6,0,12]
[null,"$10,000 to $14,999",126,107,5,9,55,54,10,16,0,12,6,8,0,12,565,201,0,12,0,12,10,17,204,96,120,91,0,12,11,19,0,17,77,94,11,12,10,17,31,28,31,43,14,23,0,12,3,4,17,23,0,12,0,12]
[null,"$15,000 to $19,999",0,12,0,12,26,29,21,23,0,12,19,29,0,12,406,145,0,12,0,12,22,35,79,60,146,127,0,12,28,32,10,16,39,64,4,6,5,9,11,16,47,55,0,12,0,12,0,12,39,28,3,4,0,12]
[null,"$20,000 to $24,999",55,67,0,12,14,24,49,33,0,12,0,12,0,12,408,154,0,12,0,12,27,24,139,100,47,42,0,12,55,90,11,19,30,37,26,26,0,12,11,20,76,73,38,60,0,12,0,12,36,33,0,12,0,12]
[null,"$25,000 to $34,999",9,14,22,25,32,47,8,13,9,15,0,12,22,28,765,223,5,6,6,9,34,31,115,79,178,148,0,12,89,65,0,17,0,17,21,27,7,12,28,31,58,91,134,105,4,8,4,6,76,45,0,12,45,51]
[null,"$35,000 to $49,999",57,62,24,27,34,32,10,17,13,9,4,6,0,12,1008,240,24,19,13,15,50,62,159,100,85,80,0,12,104,62,21,29,45,55,10,10,27,32,142,99,68,66,170,101,0,12,5,8,53,56,4,4,6,8]
[null,"$50,000 to $74,999",51,43,12,18,84,62,53,43,25,25,0,12,4,6,1568,261,10,17,5,7,42,35,139,67,175,137,6,9,160,83,67,70,77,107,16,14,26,24,125,66,124,84,76,64,0,12,7,8,66,46,3,5,24,24]
[null,"$75,000 to $99,999",34,31,16,13,11,16,17,19,8,8,0,12,10,11,1150,225,0,12,9,11,19,23,358,206,26,29,3,4,229,116,93,90,0,17,0,12,34,31,58,56,55,54,55,60,16,18,8,11,22,17,17,18,15,15]
[null,"$100,000 to $149,999",17,21,0,12,46,44,58,53,13,20,10,12,14,21,792,135,8,10,6,8,0,12,127,83,46,54,0,12,205,98,44,72,51,51,0,12,21,23,38,34,55,47,22,25,3,6,0,12,45,44,0,12,32,25]
[null,"$150,000 or more",24,33,0,12,10,15,22,31,0,12,5,7,22,20,482,166,0,12,4,7,0,12,0,17,0,17,0,12,86,85,10,16,0,17,6,9,0,12,11,16,40,46,0,12,0,12,11,12,0,12,0,12,11,11]
[]
[]
[]
[]
[]
[null,{"$f":"\"Calculated \"&B1","v":"Calculated B25118. TENURE BY HOUSEHOLD INCOME IN THE PAST 12 MONTHS (IN 2020 INFLATION-ADJUSTED DOLLARS) "}]
[null,"Universe:  OCCUPIED HOUSING UNITS"]
[null,"Data Set: 2017-2021 American Community Survey 5-Year Estimates"]
[null,null,"Allenstown",null,"Andover",null,"Boscawen",null,"Bow",null,"Bradford",null,"Canterbury",null,"Chichester",null,"Concord",null,"Danbury",null,"Dunbarton",null,"Epsom",null,"Franklin",null,"Henniker",null,"Hill",null,"Hooksett",null,"Hopkinton",null,"Loudon",null,"Newbury",null,"New London",null,"Northfield",null,"Pembroke",null,"Pittsfield",null,"Salisbury",null,"Sutton",null,"Warner",null,"Webster",null,"Wilmot"]
[null,null,"Estimate","Margin Of Error","Estimate","Margin Of Error","Estimate","Margin Of Error","Estimate","Margin Of Error","Estimate","Margin Of Error","Estimate","Margin Of Error","Estimate","Margin Of Error","Estimate","Margin Of Error","Estimate","Margin Of Error","Estimate","Margin Of Error","Estimate","Margin Of Error","Estimate","Margin Of Error","Estimate","Margin Of Error","Estimate","Margin Of Error","Estimate","Margin Of Error","Estimate","Margin Of Error","Estimate","Margin Of Error","Estimate","Margin Of Error","Estimate","Margin Of Error","Estimate","Margin Of Error","Estimate","Margin Of Error","Estimate","Margin Of Error","Estimate","Margin Of Error","Estimate","Margin Of Error","Estimate","Margin Of Error","Estimate","Margin Of Error","Estimate","Margin Of Error"]
[null,{"$f":"B7","v":"Total:"},1812,193,878,119,1380,140,2895,133,632,73,920,96,1011,63,17955,443,672,112,1061,89,1844,139,{"$f":"Y7","v":3717},321,2397,206,318,54,5110,285,2168,194,2276,183,747,99,1636,129,{"$f":"AO7","v":1906},134,2627,196,1801,141,623,122,846,149,1200,89,795,103,624,90]
[null,"Less than $5,000",{"$f":"C9+C21","v":0},{"$f":"SQRT((D9^2)+(D21^2))","v":16.970562748477139},{"$f":"E9+E21","v":9},{"$f":"SQRT((F9^2)+(F21^2))","v":9.2195444572928871},{"$f":"G9+G21","v":31},{"$f":"SQRT((H9^2)+(H21^2))","v":29.068883707497267},{"$f":"I9+I21","v":24},{"$f":"SQRT((J9^2)+(J21^2))","v":23.853720883753127},{"$f":"K9+K21","v":0},{"$f":"SQRT((L9^2)+(L21^2))","v":16.970562748477139},{"$f":"M9+M21","v":22},{"$f":"SQRT((N9^2)+(N21^2))","v":18.601075237738275},{"$f":"O9+O21","v":9},{"$f":"SQRT((P9^2)+(P21^2))","v":15.620499351813308},{"$f":"Q9+Q21","v":407},{"$f":"SQRT((R9^2)+(R21^2))","v":130.64838307457157},{"$f":"S9+S21","v":12},{"$f":"SQRT((T9^2)+(T21^2))","v":20},{"$f":"U9+U21","v":5},{"$f":"SQRT((V9^2)+(V21^2))","v":14.422205101855956},{"$f":"W9+W21","v":38},{"$f":"SQRT((X9^2)+(X21^2))","v":49.477267507411923},{"$f":"Y9+Y21","v":62},{"$f":"SQRT((Z9^2)+(Z21^2))","v":45.343136195018538},{"$f":"AA9+AA21","v":39},{"$f":"SQRT((AB9^2)+(AB21^2))","v":47.169905660283021},{"$f":"AC9+AC21","v":0},{"$f":"SQRT((AD9^2)+(AD21^2))","v":16.970562748477139},{"$f":"AE9+AE21","v":118},{"$f":"SQRT((AF9^2)+(AF21^2))","v":81.344944526380985},{"$f":"AG9+AG21","v":0},{"$f":"SQRT((AH9^2)+(AH21^2))","v":24.041630560342615},{"$f":"AI9+AI21","v":0},{"$f":"SQRT((AJ9^2)+(AJ21^2))","v":24.041630560342615},{"$f":"AK9+AK21","v":5},{"$f":"SQRT((AL9^2)+(AL21^2))","v":15},{"$f":"AM9+AM21","v":24},{"$f":"SQRT((AN9^2)+(AN21^2))","v":28.635642126552707},71,77.201036262475128,{"$f":"AQ9+AQ21","v":98},{"$f":"SQRT((AR9^2)+(AR21^2))","v":97.862147942909985},{"$f":"AS9+AS21","v":8},{"$f":"SQRT((AT9^2)+(AT21^2))","v":18.439088914585774},{"$f":"AU9+AU21","v":52},{"$f":"SQRT((AV9^2)+(AV21^2))","v":82.87339742040264},{"$f":"AW9+AW21","v":8},{"$f":"SQRT((AX9^2)+(AX21^2))","v":17.691806012954132},{"$f":"AY9+AY21","v":25},{"$f":"SQRT((AZ9^2)+(AZ21^2))","v":19.924858845171276},{"$f":"BA9+BA21","v":29},{"$f":"SQRT((BB9^2)+(BB21^2))","v":39.293765408776999},{"$f":"BC9+BC21","v":3},{"$f":"SQRT((BD9^2)+(BD21^2))","v":13}]
[null,"$5,000 to $9,999",{"$f":"C10+C22","v":42},{"$f":"SQRT((D10^2)+(D22^2))","v":49.477267507411923},{"$f":"E10+E22","v":4},13.416407864998739,{"$f":"G10+G22","v":0},16.970562748477139,{"$f":"I10+I22","v":18},26.248809496813376,{"$f":"K10+K22","v":2},12.649110640673518,{"$f":"M10+M22","v":0},16.970562748477139,{"$f":"O10+O22","v":4},13.892443989449804,{"$f":"Q10+Q22","v":194},156.69716015295236,26,27.730849247724095,34,44.643028571099428,0,16.970562748477139,62,66.219332524573218,0,24.041630560342615,11,20,7,11.704699910719626,12,27.018512172212592,0,24.041630560342615,12,21.633307652783937,13,23.323807579381203,11,21.633307652783937,35,46.238512086787566,71,95.75489543621255,4,13.892443989449804,0,16.970562748477139,0,16.970562748477139,8,7.810249675906654,0,16.970562748477139]
[null,"$10,000 to $14,999",{"$f":"C11+C23","v":126},107.67079455451233,{"$f":"E11+E23","v":10},12.041594578792296,{"$f":"G11+G23","v":81},61.773780845922005,{"$f":"I11+I23","v":33},26.40075756488817,{"$f":"K11+K23","v":13},15,{"$f":"M11+M23","v":6},14.422205101855956,{"$f":"O11+O23","v":26},25.942243542145693,{"$f":"Q11+Q23","v":720},219.02054698132775,21,18.439088914585774,5,13.892443989449804,36,27.018512172212592,219,97.672923576598237,171,114.80853626799707,7,13.892443989449804,78,55.362442142665635,0,24.041630560342615,77,95.524865872714003,17,14.422205101855956,65,52.810983706043572,31,30.463092423455635,31,46.238512086787566,14,25.942243542145693,3,12.649110640673518,8,8.9442719099991592,26,25.079872407968907,2,12.369316876852981,2,12.369316876852981]
[null,"$15,000 to $19,999",{"$f":"C12+C24","v":72},47.539457296018853,40,45.607017003965517,45,37.013511046643494,35,26.92582403567252,19,20.808652046684813,37,36.400549446402593,10,14.422205101855956,601,185.69060288555261,14,23.323807579381203,4,13.416407864998739,58,46.097722286464439,105,65,157,128.41339493993607,17,21.633307652783937,76,53.600373133029585,10,23.345235059857504,57,71.112586790244109,4,13.416407864998739,47,51.788029504896208,41,27.202941017470888,47,57.56735185849702,0,16.970562748477139,17,16.970562748477139,20,25.059928172283335,61,31.76476034853718,9,8.0622577482985491,11,20]
[null,"$20,000 to $24,999",89,84.202137740083529,28,26.832815729997478,14,26.832815729997478,61,38.078865529319543,11,15,12,22.472205054244231,18,20,581,171.29214809792072,57,69.050706006528273,5,13.892443989449804,43,30,181,104.12012293500234,60,46.957427527495582,3,13,143,115.88356225108029,37,30.610455730027933,376,262.6194966105906,35,27.513632984395208,57,59.22837157984339,54,37.735924528226413,76,74.953318805774032,98,97.616596949494195,25,25.942243542145693,23,29.546573405388315,57,38.078865529319543,22,23.323807579381203,3,12.649110640673518]
[null,"$25,000 to $34,999",148,98.994949366116657,57,35.355339059327378,60,53.712196007983138,48,35.468295701936398,87,54.120236510939236,18,20,53,36.878177829171548,1241,260.67988031300001,39,24.738633753705962,9,10.295630140987001,113,59.682493245507096,392,260.27869678481181,235,157.20368952413298,34,24.186773244895647,208,101.53324578678651,53,51.86520991955976,53,41.629316592997299,33,30.413812651491099,133,77.929455278476055,86,49.040799340956916,166,125.89678312014172,258,137,11,10,25,17.088007490635061,142,59.548299723837623,18,16.970562748477139,64,54.083269131959838]
[null,"$35,000 to $49,999",201,110.94142598686931,140,94.921019800674287,142,60.207972893961475,69,38.910152916687437,79,27.513632984395208,52,26.683328128252668,61,27.730849247724095,1670,294.10882339705483,107,54.42425929675111,77,39,104,67.623960250786851,392,136.56134152826706,157,104.35037134576953,17,16.970562748477139,392,121.93850909372314,120,71.175838597096984,224,120.30793822520607,36,20.591260281974002,94,59.363288318623319,233,112.76967677527502,169,96.938124595021947,307,120.10828447696687,48,35.114099732158877,84,62.513998432351137,103,64.007812023221035,42,25.317977802344327,29,16.124515496597098]
[null,"$50,000 to $74,999",231,96.150923032490951,73,37.589892258425003,270,102.00490184299969,219,68.249542123006222,76,35.355339059327378,110,54.341512676774101,78,33.541019662496844,3189,403.71400768365714,112,42.544094772365298,89,39.623225512317902,297,105.94810050208545,577,176.23280057923384,360,164.46884203398528,54,18.357559750685819,859,223.94865482962831,271,119.6202324023825,313,165.30275254816539,75,36.76955262170047,271,112.58774356030055,421,115.67627241573788,462,185.15128949051368,218,102.44998779892558,77,36.055512754639892,67,31.048349392520048,156,57.201398584300364,124,48.259714048054619,96,44.10215414239989]
[null,"$75,000 to $99,999",277,106.60675400742676,146,49.729267036625423,216,98.310731865854805,207,59.135437767890075,79,28.160255680657446,146,55.317266743757322,126,65.924198895398035,2660,369.42387578498494,108,44.643028571099428,111,44.384682042344295,371,105.53672346628922,644,239.92707225321615,237,118.60016863394419,58,26.305892875931811,660,174.22973339817747,368,151.6047492659778,268,153.94154734833609,79,37.947331922020552,157,58.830264320330912,322,111.13955191559843,318,103.24727599312246,260,94.493386011932074,97,35.846896657869841,80,28.231188426986208,88,31.064449134018133,109,43.863424398922618,64,26.627053911388696]
[null,"$100,000 to $149,999",336,108.06016842481785,165,67.082039324993687,286,101.9803902718557,763,160.03124694883809,153,44.721359549995796,161,50.447993022517757,280,82.710337927008865,3112,288.53076092507018,110,46.097722286464439,229,63.505905237229712,415,118.6086000254619,649,171.4322023425004,591,273.38617375427015,68,26.832815729997478,1042,203.19448811422026,452,191.08375127153016,418,159.38004893963358,200,65.115282384398824,227,74.632432628181164,408,118.00423721205946,669,171.56339936011994,434,133.3641631023867,120,43.416586692184822,225,104.6900186264192,290,72.801098892805186,240,75.953933407032977,169,65.924198895398035]
[null,"$150,000 or more",290,100.56838469419701,{"$f":"E19+E31","v":206},52.392747589718944,235,91.241437954473298,1418,153.16984037335808,113,37.947331922020552,356,84.291162051546067,346,86.348132579691608,3580,372.97721110008854,66,29.546573405388315,493,93.263068789312314,369,115.62439189029277,434,132.09844813622905,390,123.17873193047572,49,26.832815729997478,1527,251.78165143631892,845,155.82361823549087,490,169.85287751463028,251,68.593002558570063,548,92.779308037945611,228,79.624116949577527,556,153.07514494521962,133,69.050706006528273,169,96.74709297958259,306,96.74709297958259,252,67.082039324993687,192,41.761226035642203,183,45.354161881794269]
[]
[]
[]
[]
[]
[]
[]
[]
[]
[]
[]
[]
[]
[]
[]
[]
[null,"B25118. TENURE BY HOUSEHOLD INCOME IN THE PAST 12 MONTHS (IN 2016 INFLATION-ADJUSTED DOLLARS) "]
[null,"Universe:  OCCUPIED HOUSING UNITS"]
[null,"Data Set: 2012-2016 American Community Survey 5-Year Estimates"]
[]
[null,null,"Allenstown",null,"Andover",null,"Boscawen",null,"Bow",null,"Bradford",null,"Canterbury",null,"Chichester",null,"Concord",null,"Danbury",null,"Dunbarton",null,"Epsom",null,"Franklin",null,"Henniker",null,"Hill",null,"Hooksett",null,"Hopkinton",null,"Loudon",null,"Newbury",null,"New London",null,"Northfield",null,"Pembroke",null,"Pittsfield",null,"Salisbury",null,"Sutton",null,"Warner",null,"Webster",null,"Wilmot"]
[null,null,"Estimate","Margin Of Error","Estimate","Margin Of Error","Estimate","Margin Of Error","Estimate","Margin Of Error","Estimate","Margin Of Error","Estimate","Margin Of Error","Estimate","Margin Of Error","Estimate","Margin Of Error","Estimate","Margin Of Error","Estimate","Margin Of Error","Estimate","Margin Of Error","Estimate","Margin Of Error","Estimate","Margin Of Error","Estimate","Margin Of Error","Estimate","Margin Of Error","Estimate","Margin Of Error","Estimate","Margin Of Error","Estimate","Margin Of Error","Estimate","Margin Of Error","Estimate","Margin Of Error","Estimate","Margin Of Error","Estimate","Margin Of Error","Estimate","Margin Of Error","Estimate","Margin Of Error","Estimate","Margin Of Error","Estimate","Margin Of Error","Estimate","Margin Of Error"]
[null,"Total:",1690,118,1071,84,1241,126,2846,103,646,79,895,69,991,48,17011,407,568,64,1020,45,1751,119,3494,212,1690,144,400,46,5143,201,2057,114,2024,165,822,89,1678,160,1770,84,2608,145,1586,115,535,63,772,100,1048,93,781,56,652,64]
[null,"Owner occupied:",1223,125,914,83,856,140,2501,111,584,82,846,67,903,62,9069,391,487,62,922,51,1419,117,1974,176,1168,141,366,46,4146,207,1822,132,1745,167,773,92,1267,123,1311,101,1881,195,921,128,503,61,667,99,783,85,685,54,509,63]
[null,"Less than $5,000",21,22,23,28,15,18,17,19,3,5,13,13,6,8,176,67,6,6,0,11,7,11,30,31,36,40,9,14,58,39,17,27,51,46,11,11,18,27,0,11,0,15,7,11,5,7,0,11,4,6,6,7,20,24]
[null,"$5,000 to $9,999",25,23,6,8,16,19,6,11,15,11,5,7,22,27,94,69,0,11,4,6,10,16,53,35,13,21,3,4,35,45,0,15,7,10,4,6,22,20,0,11,0,15,0,11,0,11,3,4,4,6,10,9,3,4]
[null,"$10,000 to $14,999",54,45,18,28,0,11,34,35,9,8,16,14,12,13,117,67,7,6,6,8,8,12,62,44,16,18,0,11,90,78,14,23,54,50,5,7,16,16,18,17,31,32,14,15,10,9,8,13,6,8,9,9,6,9]
[null,"$15,000 to $19,999",8,13,5,8,8,14,71,40,16,10,16,14,18,14,233,77,35,25,0,11,57,50,68,55,40,54,0,11,24,24,33,31,30,30,5,7,16,18,53,34,15,23,20,20,14,11,4,5,13,10,16,10,10,11]
[null,"$20,000 to $24,999",101,72,58,29,22,21,61,44,7,8,17,14,21,19,292,88,24,16,31,17,62,41,36,28,0,11,22,19,53,33,55,40,109,75,24,15,52,32,11,16,35,38,31,31,25,22,24,22,37,28,24,14,22,24]
[null,"$25,000 to $34,999",102,61,103,46,104,78,62,37,72,32,31,19,28,19,673,154,59,30,48,29,88,41,122,72,49,40,29,16,254,97,83,57,172,91,54,27,81,46,102,64,99,60,32,25,31,21,47,29,27,29,31,17,36,22]
[null,"$35,000 to $49,999",190,63,111,41,109,62,177,74,55,24,80,32,90,41,963,175,65,26,100,36,123,55,391,109,61,42,58,24,404,115,96,61,136,75,72,35,129,48,198,73,101,63,191,72,54,22,103,40,115,46,130,38,73,32]
[null,"$50,000 to $74,999",273,72,140,45,208,77,285,96,156,49,171,52,175,50,1431,207,95,35,132,41,314,118,427,113,290,110,74,22,573,130,337,142,313,142,117,34,223,75,221,70,382,163,201,68,133,40,111,47,176,55,120,40,108,36]
[null,"$75,000 to $99,999",169,71,172,60,194,86,374,101,115,34,148,47,208,49,1599,222,113,34,171,37,202,83,395,103,236,74,89,30,829,188,300,114,302,111,148,56,143,56,307,83,416,133,160,68,91,28,109,40,113,40,130,40,58,22]
[null,"$100,000 to $149,999",181,61,177,61,100,47,676,97,82,29,234,56,162,43,1953,250,66,34,218,50,342,82,322,95,255,85,69,26,1079,190,356,132,268,102,162,43,354,93,270,81,458,132,113,48,94,35,169,58,156,43,132,36,95,30]
[null,"$150,000 or more",99,55,101,40,80,43,738,111,54,31,115,37,161,47,1538,191,17,12,212,56,206,70,68,54,172,67,13,9,747,172,531,140,303,120,171,57,213,58,131,68,344,112,152,71,46,26,89,43,132,45,77,30,78,28]
[null,"Renter occupied:",467,107,157,66,385,91,345,88,62,23,49,31,88,39,7942,349,81,39,98,40,332,112,1520,196,522,105,34,18,997,142,235,84,279,114,49,31,411,118,459,106,727,202,665,131,32,26,105,43,265,65,96,35,143,45]
[null,"Less than $5,000",16,20,0,11,20,19,21,34,4,8,0,11,0,11,256,102,3,4,0,11,0,11,51,43,7,11,0,11,0,17,0,15,13,21,0,11,13,21,0,11,0,15,21,33,0,11,10,15,0,11,9,15,0,11]
[null,"$5,000 to $9,999",0,11,25,34,30,28,13,19,10,13,0,11,0,11,505,168,0,11,5,8,16,20,99,52,44,46,0,11,15,26,0,15,11,18,0,11,0,11,15,23,76,79,157,101,0,11,0,11,39,33,0,11,4,5]
[null,"$10,000 to $14,999",148,84,18,27,53,43,46,42,4,6,5,8,0,11,780,191,0,11,0,11,57,56,168,92,105,71,0,11,92,56,19,29,14,22,0,11,47,40,14,16,86,94,100,61,13,21,0,11,16,24,10,16,10,10]
[null,"$15,000 to $19,999",0,11,13,13,49,46,21,25,4,5,22,17,0,11,373,119,0,11,0,11,23,21,193,110,69,44,0,11,80,49,0,15,10,16,6,9,55,51,48,54,50,38,40,37,0,11,3,5,38,30,10,15,0,11]
[null,"$20,000 to $24,999",17,20,6,8,28,35,37,31,4,6,17,27,0,11,658,174,0,11,0,11,21,22,102,64,31,38,7,7,153,72,0,15,0,15,0,11,27,32,41,47,52,48,40,40,0,11,13,17,0,11,0,11,9,8]
[null,"$25,000 to $34,999",81,59,28,28,44,37,67,32,10,11,0,11,0,11,1153,209,12,11,22,26,82,66,271,99,100,65,0,11,76,48,33,33,31,35,0,11,49,49,85,68,100,91,100,73,0,11,13,16,28,15,10,16,26,24]
[null,"$35,000 to $49,999",8,13,7,10,50,42,25,24,5,6,0,11,40,28,1309,263,14,21,13,12,21,24,309,116,43,38,9,8,143,101,101,77,57,66,4,6,28,34,56,37,70,55,82,59,4,5,10,16,28,20,21,17,19,21]
[null,"$50,000 to $74,999",93,54,20,22,75,66,41,35,10,11,0,11,26,32,1569,223,42,31,37,23,59,53,185,100,46,48,12,13,259,102,41,54,57,48,16,15,77,64,118,59,145,95,81,64,11,9,16,15,34,27,18,15,51,31]
[null,"$75,000 to $99,999",44,32,5,8,21,20,52,48,3,6,5,8,14,15,713,194,0,11,8,9,17,20,121,92,25,35,3,5,122,73,0,15,44,44,8,8,7,10,18,21,148,107,27,37,4,9,17,19,23,23,11,11,4,5]
[null,"$100,000 to $149,999",60,49,35,37,6,11,16,18,8,8,0,11,8,10,393,113,10,15,5,7,36,45,21,24,17,27,0,11,26,25,30,35,42,48,15,23,76,58,64,49,0,15,0,11,0,11,19,21,39,30,7,7,6,9]
[null,"$150,000 or more",0,11,0,11,9,15,6,9,0,11,0,11,0,11,233,103,0,11,8,14,0,11,0,15,35,33,3,4,31,32,11,17,0,15,0,11,32,31,0,11,0,15,17,25,0,11,4,6,20,24,0,11,14,17]
[]
[]
[]
[]
[]
[null,{"$f":"\"Calculated \"&B70","v":"Calculated B25118. TENURE BY HOUSEHOLD INCOME IN THE PAST 12 MONTHS (IN 2016 INFLATION-ADJUSTED DOLLARS) "}]
[null,"Universe:  OCCUPIED HOUSING UNITS"]
[null,"Data Set: 2012-2016 American Community Survey 5-Year Estimates"]
[null,null,"Allenstown",null,"Andover",null,"Boscawen",null,"Bow",null,"Bradford",null,"Canterbury",null,"Chichester",null,"Concord",null,"Danbury",null,"Dunbarton",null,"Epsom",null,"Franklin",null,"Henniker",null,"Hill",null,"Hooksett",null,"Hopkinton",null,"Loudon",null,"Newbury",null,"New London",null,"Northfield",null,"Pembroke",null,"Pittsfield",null,"Salisbury",null,"Sutton",null,"Warner",null,"Webster",null,"Wilmot"]
[null,null,"Estimate","Margin Of Error","Estimate","Margin Of Error","Estimate","Margin Of Error","Estimate","Margin Of Error","Estimate","Margin Of Error","Estimate","Margin Of Error","Estimate","Margin Of Error","Estimate","Margin Of Error","Estimate","Margin Of Error","Estimate","Margin Of Error","Estimate","Margin Of Error","Estimate","Margin Of Error","Estimate","Margin Of Error","Estimate","Margin Of Error","Estimate","Margin Of Error","Estimate","Margin Of Error","Estimate","Margin Of Error","Estimate","Margin Of Error","Estimate","Margin Of Error","Estimate","Margin Of Error","Estimate","Margin Of Error","Estimate","Margin Of Error","Estimate","Margin Of Error","Estimate","Margin Of Error","Estimate","Margin Of Error","Estimate","Margin Of Error","Estimate","Margin Of Error"]
[null,{"$f":"B76","v":"Total:"},1690,118,1071,84,1241,126,2846,103,646,79,895,69,991,48,17011,407,568,64,1020,45,1751,119,3494,212,1690,144,400,46,5143,201,2057,114,2024,165,822,89,1678,160,1770,84,2608,145,1586,115,535,63,772,100,1048,93,781,56,652,64]
[null,"Less than $5,000",{"$f":"C78+C90","v":37},{"$f":"SQRT((D78^2)+(D90^2))","v":29.732137494637012},{"$f":"E78+E90","v":23},{"$f":"SQRT((F78^2)+(F90^2))","v":30.083217912982647},{"$f":"G78+G90","v":35},{"$f":"SQRT((H78^2)+(H90^2))","v":26.172504656604801},{"$f":"I78+I90","v":38},{"$f":"SQRT((J78^2)+(J90^2))","v":38.948684188300895},{"$f":"K78+K90","v":7},{"$f":"SQRT((L78^2)+(L90^2))","v":9.4339811320566032},{"$f":"M78+M90","v":13},{"$f":"SQRT((N78^2)+(N90^2))","v":17.029386365926403},{"$f":"O78+O90","v":6},{"$f":"SQRT((P78^2)+(P90^2))","v":13.601470508735444},{"$f":"Q78+Q90","v":432},{"$f":"SQRT((R78^2)+(R90^2))","v":122.03687967167957},{"$f":"S78+S90","v":9},{"$f":"SQRT((T78^2)+(T90^2))","v":7.2111025509279782},{"$f":"U78+U90","v":0},{"$f":"SQRT((V78^2)+(V90^2))","v":15.556349186104045},{"$f":"W78+W90","v":7},{"$f":"SQRT((X78^2)+(X90^2))","v":15.556349186104045},{"$f":"Y78+Y90","v":81},{"$f":"SQRT((Z78^2)+(Z90^2))","v":53.009433122794285},{"$f":"AA78+AA90","v":43},{"$f":"SQRT((AB78^2)+(AB90^2))","v":41.484937025383083},{"$f":"AC78+AC90","v":9},{"$f":"SQRT((AD78^2)+(AD90^2))","v":17.804493814764857},{"$f":"AE78+AE90","v":58},{"$f":"SQRT((AF78^2)+(AF90^2))","v":42.544094772365298},{"$f":"AG78+AG90","v":17},{"$f":"SQRT((AH78^2)+(AH90^2))","v":30.886890422961002},{"$f":"AI78+AI90","v":64},{"$f":"SQRT((AJ78^2)+(AJ90^2))","v":50.566787519082126},{"$f":"AK78+AK90","v":11},{"$f":"SQRT((AL78^2)+(AL90^2))","v":15.556349186104045},{"$f":"AM78+AM90","v":31},{"$f":"SQRT((AN78^2)+(AN90^2))","v":34.205262752974143},0,15.556349186104045,{"$f":"AQ78+AQ90","v":0},{"$f":"SQRT((AR78^2)+(AR90^2))","v":21.213203435596427},{"$f":"AS78+AS90","v":28},{"$f":"SQRT((AT78^2)+(AT90^2))","v":34.785054261852174},{"$f":"AU78+AU90","v":5},{"$f":"SQRT((AV78^2)+(AV90^2))","v":13.038404810405298},{"$f":"AW78+AW90","v":10},{"$f":"SQRT((AX78^2)+(AX90^2))","v":18.601075237738275},{"$f":"AY78+AY90","v":4},{"$f":"SQRT((AZ78^2)+(AZ90^2))","v":12.529964086141668},{"$f":"BA78+BA90","v":15},{"$f":"SQRT((BB78^2)+(BB90^2))","v":16.552945357246848},{"$f":"BC78+BC90","v":20},{"$f":"SQRT((BD78^2)+(BD90^2))","v":26.40075756488817}]
[null,"$5,000 to $9,999",{"$f":"C79+C91","v":25},{"$f":"SQRT((D79^2)+(D91^2))","v":25.495097567963924},{"$f":"E79+E91","v":31},34.928498393145958,{"$f":"G79+G91","v":46},33.837848631377263,{"$f":"I79+I91","v":19},21.95449840010015,{"$f":"K79+K91","v":25},17.029386365926403,{"$f":"M79+M91","v":5},13.038404810405298,{"$f":"O79+O91","v":22},29.154759474226502,{"$f":"Q79+Q91","v":599},181.61773041198373,0,15.556349186104045,9,10,26,25.612496949731394,152,62.681735776859277,57,50.566787519082126,3,11.704699910719626,50,51.97114584074513,0,21.213203435596427,18,20.591260281974002,4,12.529964086141668,22,22.825424421026653,15,25.495097567963924,76,80.411441971898498,157,101.59724405711013,0,15.556349186104045,3,11.704699910719626,43,33.541019662496844,10,14.212670403551895,7,6.4031242374328485]
[null,"$10,000 to $14,999",{"$f":"C80+C92","v":202},95.294281045611541,{"$f":"E80+E92","v":36},38.897300677553446,{"$f":"G80+G92","v":53},44.384682042344295,{"$f":"I80+I92","v":80},54.671747731346578,{"$f":"K80+K92","v":13},10,{"$f":"M80+M92","v":21},16.124515496597098,{"$f":"O80+O92","v":12},17.029386365926403,{"$f":"Q80+Q92","v":897},202.41047403728888,7,12.529964086141668,6,13.601470508735444,65,57.271284253105414,230,101.9803902718557,121,73.246160308919954,0,15.556349186104045,182,96.020831073262428,33,37.013511046643494,68,54.626001134990652,5,13.038404810405298,63,43.08131845707603,32,23.345235059857504,117,99.297532698451278,114,62.81719509815764,23,22.847319317591726,8,17.029386365926403,22,25.298221281347036,19,18.357559750685819,16,13.45362404707371]
[null,"$15,000 to $19,999",{"$f":"C81+C93","v":8},17.029386365926403,18,15.264337522473747,57,48.083261120685229,92,47.169905660283021,20,11.180339887498949,38,22.022715545545239,18,17.804493814764857,606,141.7391971192161,35,27.313000567495326,0,15.556349186104045,80,54.230987451824994,261,122.98373876248843,109,69.656299069071991,0,15.556349186104045,104,54.561891462814962,33,34.438350715445125,40,34,11,11.401754250991379,71,54.083269131959838,101,63.812224534175265,65,44.418464629025621,60,42.059481689626182,14,15.556349186104045,7,7.0710678118654755,51,31.622776601683793,26,18.027756377319946,10,15.556349186104045]
[null,"$20,000 to $24,999",118,74.726166769077622,64,30.083217912982647,50,40.8166632639171,98,53.823786563191554,11,10,34,30.413812651491099,21,21.95449840010015,950,194.98717906570164,24,19.416487838947599,31,20.248456731316587,83,46.529560496527367,138,69.856996786291916,31,39.560080889704963,29,20.248456731316587,206,79.202272694664515,55,42.720018726587654,109,76.485292703891773,24,18.601075237738275,79,45.254833995939045,52,49.648766349225639,87,61.220911460055866,71,50.606323715519977,25,24.596747752497688,37,27.802877548915689,37,30.083217912982647,24,17.804493814764857,31,25.298221281347036]
[null,"$25,000 to $34,999",183,84.864598037108507,131,53.851648071345039,148,86.330759292386631,129,48.918299234540036,82,33.837848631377263,31,21.95449840010015,28,21.95449840010015,1826,259.60932186653082,71,31.953090617340916,70,38.948684188300895,170,77.698133825723247,393,122.41323457861898,149,76.321687612368734,29,19.416487838947599,330,108.22661410207751,116,65.863495200300449,203,97.498717940288842,54,29.154759474226502,130,67.208630398186216,187,93.380940239430018,199,109,132,77.1621668954417,31,23.706539182259394,60,33.120990323358392,55,32.649655434629018,41,23.345235059857504,62,32.557641192199412]
[null,"$35,000 to $49,999",198,64.327288144301562,118,42.201895692018383,159,74.886580907396223,202,77.794601355106892,60,24.738633753705962,80,33.837848631377263,130,49.648766349225639,2272,315.90188350182405,79,33.421549934136806,113,37.947331922020552,144,60.00833275470999,700,159.17600321656528,104,56.639209034025185,67,25.298221281347036,547,153.05554547287727,197,98.2344135219425,193,99.904954832080278,76,35.510561809129406,157,58.821764679410968,254,81.841309862440497,171,83.630138108220294,273,93.085981758801893,58,22.561028345356956,113,43.08131845707603,143,50.159744815937813,151,41.629316592997299,92,38.275318418009277]
[null,"$50,000 to $74,999",366,90,160,50.089919145472777,283,101.41498903022176,326,102.18121158021175,166,50.219518117958877,171,53.150729063673246,201,59.363288318623319,3000,304.26633070387527,137,46.75467891024384,169,47.010637094172637,373,129.3560976529518,612,150.89400253157845,336,120.01666550941998,86,25.553864678361276,832,165.23922052587878,378,151.92103211866353,370,149.89329538041386,133,37.161808352124091,300,98.595131725658746,339,91.547801721286575,527,188.66372200293304,282,93.380940239430018,144,41,127,49.33558553417604,210,61.26989472816156,138,42.720018726587654,159,47.507894080878813]
[null,"$75,000 to $99,999",213,77.878109889750149,177,60.530983801686226,215,88.294960218576463,426,111.82575731914361,118,34.525353003264136,153,47.675989764240867,222,51.244511901275828,2312,294.82198018465311,113,35.735136770411273,179,38.078865529319543,219,85.37564055396598,516,138.10503249338888,261,81.859635963031252,92,30.413812651491099,951,201.67548190099856,300,114.9826073804208,346,119.4026800369238,156,56.568542494923804,150,56.885850613311568,325,85.615419172015976,564,170.69856472741651,187,77.414468931847622,95,29.410882339705484,126,44.283179650969061,136,46.141087980237309,141,41.484937025383083,62,22.561028345356956]
[null,"$100,000 to $149,999",241,78.243210568074218,212,71.344235926947874,106,48.270073544588683,692,98.655967888415148,90,30.083217912982647,234,57.070132293521098,170,44.147480109288232,2346,274.35196372543061,76,37.161808352124091,223,50.487622245457352,378,93.536089291780854,343,97.984692682071525,272,89.185200566013194,69,28.231188426986208,1105,191.637678967368,386,136.56134152826706,310,112.72976536833562,177,48.764741360946438,430,109.60383204979651,334,94.667840368310934,458,132.84953895290718,113,49.244289008980523,94,36.687872655688281,188,61.684682053164543,195,52.430906915673319,139,36.674241641784498,101,31.32091952673165]
[null,"$150,000 or more",99,56.089214649520635,{"$f":"E88+E100","v":101},41.484937025383083,89,45.541190146942803,744,111.36426715962351,54,32.893768406797051,115,38.600518131237564,161,48.270073544588683,1771,217.00230413523263,17,16.278820596099706,220,57.723478758647246,206,70.859014952227497,68,56.044625076808217,207,74.686009399351363,16,9.8488578017961039,778,174.95142182903231,542,141.02836594104039,303,120.93386622447825,171,58.051701094799967,245,65.76473218982953,131,68.8839603971781,344,113,169,75.272837066235255,46,28.231188426986208,93,43.416586692184822,152,51,77,31.953090617340916,92,32.756678708318397]
[]
[]
[]
[]
[]
[]
[]
[]
[]
[]
[]
[]
[]
[]
[]
[]
[null,"B25118. TENURE BY HOUSEHOLD INCOME IN THE PAST 12 MONTHS (IN 2011 INFLATION-ADJUSTED DOLLARS) "]
[null,"Universe:  OCCUPIED HOUSING UNITS"]
[null,"Data Set: 2007-2011 American Community Survey 5-Year Estimates"]
[]
[null,null,"Allenstown",null,"Andover",null,"Boscawen",null,"Bow",null,"Bradford",null,"Canterbury",null,"Chichester",null,"Concord",null,"Danbury",null,"Dunbarton",null,"Epsom",null,"Franklin",null,"Henniker",null,"Hill",null,"Hooksett",null,"Hopkinton",null,"Loudon",null,"Newbury",null,"New London",null,"Northfield",null,"Pembroke",null,"Pittsfield",null,"Salisbury",null,"Sutton",null,"Warner",null,"Webster",null,"Wilmot"]
[null,null,"Estimate","Margin Of Error","Estimate","Margin Of Error","Estimate","Margin Of Error","Estimate","Margin Of Error","Estimate","Margin Of Error","Estimate","Margin Of Error","Estimate","Margin Of Error","Estimate","Margin Of Error","Estimate","Margin Of Error","Estimate","Margin Of Error","Estimate","Margin Of Error","Estimate","Margin Of Error","Estimate","Margin Of Error","Estimate","Margin Of Error","Estimate","Margin Of Error","Estimate","Margin Of Error","Estimate","Margin Of Error","Estimate","Margin Of Error","Estimate","Margin Of Error","Estimate","Margin Of Error","Estimate","Margin Of Error","Estimate","Margin Of Error","Estimate","Margin Of Error","Estimate","Margin Of Error","Estimate","Margin Of Error","Estimate","Margin Of Error","Estimate","Margin Of Error"]
[null,"Total:",1693,132,950,87,1392,199,2577,105,607,65,954,55,941,51,18007,432,461,66,1041,59,1626,106,3375,167,1689,158,445,57,4729,192,2373,132,1912,107,823,86,1672,166,1782,150,2980,168,1528,125,508,63,647,81,1069,68,724,75,540,65]
[null,"Owner occupied:",1072,170,814,100,1099,162,2322,112,506,65,886,56,889,57,9978,412,353,60,917,71,1485,117,2094,202,1113,134,407,51,4085,210,2169,174,1662,141,794,84,1393,147,1390,186,2150,206,1079,118,472,61,573,75,879,75,659,63,485,65]
[null,"Less than $5,000",17,27,27,28,21,24,0,85,13,15,0,85,11,14,56,46,17,19,14,14,7,10,26,26,0,85,2,3,0,85,23,36,0,85,24,19,80,70,11,17,20,31,0,85,0,85,0,85,17,18,14,18,8,9]
[null,"$5,000 to $9,999",15,24,0,85,9,15,36,62,3,4,0,85,4,6,85,51,9,13,10,11,0,85,17,25,0,85,1,3,0,85,16,25,13,19,0,85,48,51,42,49,32,48,0,85,6,6,12,15,27,33,3,5,15,15]
[null,"$10,000 to $14,999",36,31,20,26,0,85,26,30,20,12,18,18,30,34,187,80,16,16,0,85,69,75,91,44,8,13,24,21,59,43,0,85,9,14,7,9,0,85,0,85,62,53,32,28,14,16,3,5,0,85,9,7,14,19]
[null,"$15,000 to $19,999",16,24,7,9,67,46,13,20,13,16,14,15,41,29,193,72,6,8,20,20,38,26,100,52,0,85,9,8,109,56,51,47,12,19,30,30,75,57,59,58,34,39,71,40,0,85,12,16,29,23,10,18,9,7]
[null,"$20,000 to $24,999",48,37,17,27,76,64,23,29,15,16,12,13,15,15,400,136,28,19,20,21,58,54,137,78,4,12,29,20,61,39,31,36,40,31,21,16,60,51,30,30,30,33,30,23,14,16,3,4,13,14,10,11,27,18]
[null,"$25,000 to $34,999",91,62,66,32,62,46,84,56,42,25,35,20,73,36,802,153,43,22,6,9,157,64,128,68,15,17,52,23,280,105,67,58,142,67,88,52,70,55,123,60,144,67,80,61,9,8,66,36,55,30,42,24,17,12]
[null,"$35,000 to $49,999",108,63,117,59,133,73,74,49,74,25,105,43,98,42,1274,178,39,25,61,30,110,61,268,82,134,84,53,25,393,153,257,95,174,73,75,31,112,62,194,95,194,96,150,68,88,39,63,28,151,66,87,28,68,35]
[null,"$50,000 to $74,999",241,106,203,67,248,102,293,113,93,33,171,53,173,53,1864,246,75,34,125,44,269,82,572,131,193,79,56,26,680,142,417,145,368,99,180,56,182,83,391,106,509,168,233,87,151,39,113,45,212,84,181,42,81,36]
[null,"$75,000 to $99,999",202,94,137,41,155,75,366,104,81,26,272,56,207,70,1857,234,64,26,208,58,251,87,440,154,205,105,98,28,856,184,397,134,356,94,157,51,150,64,310,87,387,140,219,90,68,25,136,44,127,45,131,39,73,29]
[null,"$100,000 to $149,999",200,84,166,55,234,76,706,166,74,33,182,58,150,43,2099,266,43,28,258,53,386,100,251,85,424,149,56,28,1078,206,605,159,346,118,108,43,210,80,183,76,485,116,203,71,96,24,91,37,154,50,134,35,118,45]
[null,"$150,000 or more",98,69,54,36,94,70,701,157,78,33,77,33,87,35,1161,174,13,12,195,64,140,63,64,37,130,58,27,20,569,142,305,97,202,75,104,48,406,106,47,34,253,108,61,49,26,15,74,32,94,40,38,20,55,24]
[null,"Renter occupied:",621,150,136,58,293,100,255,68,101,37,68,25,52,36,8029,384,108,42,124,47,141,61,1281,186,576,146,38,27,644,141,204,103,250,99,29,21,279,101,392,109,830,133,449,103,36,23,74,40,190,52,65,31,55,36]
[null,"Less than $5,000",43,73,0,85,0,85,0,85,9,15,0,85,0,85,451,154,10,16,0,85,0,85,50,37,32,35,0,85,26,29,0,85,0,85,0,85,38,49,0,85,68,85,0,85,0,85,0,85,0,85,0,85,0,85]
[null,"$5,000 to $9,999",17,27,0,85,12,20,0,85,2,5,8,12,0,85,523,162,7,8,0,85,0,85,119,66,27,25,0,85,29,35,0,85,0,85,0,85,31,43,10,15,29,36,33,37,0,85,12,17,0,85,0,85,10,15]
[null,"$10,000 to $14,999",35,32,10,11,37,34,46,46,6,6,14,15,0,85,590,189,0,85,11,16,12,18,182,103,82,62,4,6,64,60,0,85,31,36,0,85,63,54,43,34,136,107,85,67,3,5,0,85,6,9,0,85,0,85]
[null,"$15,000 to $19,999",55,66,21,27,6,12,34,28,3,4,0,85,0,85,518,200,14,12,0,85,21,25,151,75,29,39,0,85,0,85,0,85,5,9,0,85,0,85,50,67,43,41,14,21,5,7,0,85,0,85,20,22,0,85]
[null,"$20,000 to $24,999",176,102,9,14,27,31,33,35,3,4,8,12,8,12,688,195,9,13,0,85,20,23,195,96,59,50,0,85,14,23,21,33,0,85,0,85,14,18,44,32,40,41,24,24,10,14,19,20,27,22,7,7,0,85]
[null,"$25,000 to $34,999",64,50,0,85,66,53,38,36,29,23,24,16,0,85,1263,267,15,14,41,25,10,17,173,81,79,45,15,21,55,46,38,62,29,29,0,85,36,47,109,86,175,126,47,33,4,6,0,85,38,26,0,85,3,5]
[null,"$35,000 to $49,999",34,29,34,38,39,33,79,56,6,6,0,85,6,9,1211,224,36,26,7,11,10,17,120,64,19,31,7,6,56,36,23,27,92,84,0,85,39,39,23,27,143,110,110,81,0,85,8,10,38,25,15,11,9,13]
[null,"$50,000 to $74,999",75,55,18,26,63,49,25,30,30,19,8,12,0,85,1593,246,17,17,5,7,61,49,140,72,181,94,8,14,184,73,53,49,6,10,18,14,49,45,55,59,101,94,85,49,9,15,35,28,51,33,9,8,19,22]
[null,"$75,000 to $99,999",52,60,0,85,30,45,0,85,8,9,6,8,4,6,804,165,0,85,10,15,7,12,104,75,60,61,0,85,87,53,69,55,46,58,11,15,0,85,58,44,30,35,41,51,3,5,0,85,23,20,14,16,14,22]
[null,"$100,000 to $149,999",70,50,26,29,13,21,0,85,5,8,0,85,34,36,217,108,0,85,0,85,0,85,47,67,8,12,4,6,18,25,0,85,0,85,0,85,0,85,0,85,65,100,0,85,2,4,0,85,7,10,0,85,0,85]
[null,"$150,000 or more",0,85,18,27,0,85,0,85,0,85,0,85,0,85,171,79,0,85,50,37,0,85,0,85,0,85,0,85,111,90,0,85,41,63,0,85,9,14,0,85,0,85,10,16,0,85,0,85,0,85,0,85,0,85]
[]
[]
[]
[]
[]
[null,{"$f":"\"Calculated \"&B139","v":"Calculated B25118. TENURE BY HOUSEHOLD INCOME IN THE PAST 12 MONTHS (IN 2011 INFLATION-ADJUSTED DOLLARS) "}]
[null,"Universe:  OCCUPIED HOUSING UNITS"]
[null,{"$f":"B141","v":"Data Set: 2007-2011 American Community Survey 5-Year Estimates"}]
[null,null,"Allenstown",null,"Andover",null,"Boscawen",null,"Bow",null,"Bradford",null,"Canterbury",null,"Chichester",null,"Concord",null,"Danbury",null,"Dunbarton",null,"Epsom",null,"Franklin",null,"Henniker",null,"Hill",null,"Hooksett",null,"Hopkinton",null,"Loudon",null,"Newbury",null,"New London",null,"Northfield",null,"Pembroke",null,"Pittsfield",null,"Salisbury",null,"Sutton",null,"Warner",null,"Webster",null,"Wilmot"]
[null,null,"Estimate","Margin Of Error","Estimate","Margin Of Error","Estimate","Margin Of Error","Estimate","Margin Of Error","Estimate","Margin Of Error","Estimate","Margin Of Error","Estimate","Margin Of Error","Estimate","Margin Of Error","Estimate","Margin Of Error","Estimate","Margin Of Error","Estimate","Margin Of Error","Estimate","Margin Of Error","Estimate","Margin Of Error","Estimate","Margin Of Error","Estimate","Margin Of Error","Estimate","Margin Of Error","Estimate","Margin Of Error","Estimate","Margin Of Error","Estimate","Margin Of Error","Estimate","Margin Of Error","Estimate","Margin Of Error","Estimate","Margin Of Error","Estimate","Margin Of Error","Estimate","Margin Of Error","Estimate","Margin Of Error","Estimate","Margin Of Error","Estimate","Margin Of Error"]
[null,"Total:",{"$f":"C145","v":1693},132,950,87,1392,199,2577,105,607,65,954,55,941,51,18007,432,461,66,1041,59,1626,106,3375,167,1689,158,445,57,4729,192,2373,132,1912,107,823,86,1672,166,1782,150,2980,168,1528,125,508,63,647,81,1069,68,724,75,540,65]
[null,"Less than $5,000",{"$f":"C147+C159","v":60},{"$f":"SQRT((D147^2)+(D159^2))","v":77.833154889160184},{"$f":"E147+E159","v":27},{"$f":"SQRT((F147^2)+(F159^2))","v":89.493016487321512},{"$f":"G147+G159","v":21},{"$f":"SQRT((H147^2)+(H159^2))","v":88.323269867006175},{"$f":"I147+I159","v":0},{"$f":"SQRT((J147^2)+(J159^2))","v":120.20815280171308},{"$f":"K147+K159","v":22},{"$f":"SQRT((L147^2)+(L159^2))","v":21.213203435596427},{"$f":"M147+M159","v":0},{"$f":"SQRT((N147^2)+(N159^2))","v":120.20815280171308},{"$f":"O147+O159","v":11},{"$f":"SQRT((P147^2)+(P159^2))","v":86.145226217127089},{"$f":"Q147+Q159","v":507},{"$f":"SQRT((R147^2)+(R159^2))","v":160.72336482291553},{"$f":"S147+S159","v":27},{"$f":"SQRT((T147^2)+(T159^2))","v":24.839484696748443},{"$f":"U147+U159","v":14},{"$f":"SQRT((V147^2)+(V159^2))","v":86.145226217127089},{"$f":"W147+W159","v":7},{"$f":"SQRT((X147^2)+(X159^2))","v":85.586213843118443},{"$f":"Y147+Y159","v":76},{"$f":"SQRT((Z147^2)+(Z159^2))","v":45.221676218380054},{"$f":"AA147+AA159","v":32},{"$f":"SQRT((AB147^2)+(AB159^2))","v":91.923881554251182},{"$f":"AC147+AC159","v":2},{"$f":"SQRT((AD147^2)+(AD159^2))","v":85.052924699859673},{"$f":"AE147+AE159","v":26},{"$f":"SQRT((AF147^2)+(AF159^2))","v":89.810912477270818},{"$f":"AG147+AG159","v":23},{"$f":"SQRT((AH147^2)+(AH159^2))","v":92.309262807152777},{"$f":"AI147+AI159","v":0},{"$f":"SQRT((AJ147^2)+(AJ159^2))","v":120.20815280171308},{"$f":"AK147+AK159","v":24},{"$f":"SQRT((AL147^2)+(AL159^2))","v":87.097646351666697},{"$f":"AM147+AM159","v":118},{"$f":"SQRT((AN147^2)+(AN159^2))","v":85.445889310135925},11,86.683331731077345,{"$f":"AQ147+AQ159","v":88},{"$f":"SQRT((AR147^2)+(AR159^2))","v":90.476516290140168},{"$f":"AS147+AS159","v":0},{"$f":"SQRT((AT147^2)+(AT159^2))","v":120.20815280171308},{"$f":"AU147+AU159","v":0},{"$f":"SQRT((AV147^2)+(AV159^2))","v":120.20815280171308},{"$f":"AW147+AW159","v":0},{"$f":"SQRT((AX147^2)+(AX159^2))","v":120.20815280171308},{"$f":"AY147+AY159","v":17},{"$f":"SQRT((AZ147^2)+(AZ159^2))","v":86.884981440983225},{"$f":"BA147+BA159","v":14},{"$f":"SQRT((BB147^2)+(BB159^2))","v":86.884981440983225},{"$f":"BC147+BC159","v":8},{"$f":"SQRT((BD147^2)+(BD159^2))","v":85.475142585432408}]
[null,"$5,000 to $9,999",{"$f":"C148+C160","v":32},{"$f":"SQRT((D148^2)+(D160^2))","v":36.124783736376884},{"$f":"E148+E160","v":0},120.20815280171308,{"$f":"G148+G160","v":21},25,{"$f":"I148+I160","v":36},105.20931517693668,{"$f":"K148+K160","v":5},6.4031242374328485,{"$f":"M148+M160","v":8},85.84287972802403,{"$f":"O148+O160","v":4},85.211501571090736,{"$f":"Q148+Q160","v":608},169.83815825661793,16,15.264337522473747,10,85.708809348864477,0,120.20815280171308,136,70.576199954375554,27,88.600225733346747,1,85.052924699859673,29,91.923881554251182,16,88.600225733346747,13,87.097646351666697,0,120.20815280171308,79,66.708320320631671,52,51.244511901275828,61,60,33,92.70382947861431,6,85.211501571090736,24,22.671568097509269,27,91.18113840043894,3,85.14693182963201,25,21.213203435596427]
[null,"$10,000 to $14,999",{"$f":"C149+C161","v":71},44.553338819890925,{"$f":"E149+E161","v":30},28.231188426986208,{"$f":"G149+G161","v":37},91.547801721286575,{"$f":"I149+I161","v":72},54.918120870983927,{"$f":"K149+K161","v":26},13.416407864998739,{"$f":"M149+M161","v":32},23.430749027719962,{"$f":"O149+O161","v":30},91.547801721286575,{"$f":"Q149+Q161","v":777},205.23401277566055,16,86.49277426467485,11,86.49277426467485,81,77.129760793094647,273,112.0044641967453,90,63.348243858847418,28,21.840329667841555,123,73.81734213584231,0,120.20815280171308,40,38.626415831655933,7,85.475142585432408,63,100.70253224224304,43,91.547801721286575,198,119.40686747419514,117,72.615425358528341,17,16.763054614240211,3,85.14693182963201,6,85.475142585432408,9,85.287748240881584,14,87.097646351666697]
[null,"$15,000 to $19,999",{"$f":"C150+C162","v":71},70.228199464317754,28,28.460498941515414,73,47.539457296018853,47,34.409301068170507,16,16.492422502470642,14,86.313382508160345,41,89.810912477270818,711,212.56528408938277,20,14.422205101855956,20,87.321245982864909,59,36.069377593742864,251,91.263355187062899,29,93.520051325905499,9,85.37564055396598,109,101.78899744078434,51,97.128780492704635,17,21.023796041628639,30,90.13878188659973,75,102.34256201600583,109,88.617154095581284,77,56.586217403180434,85,45.177427992306072,5,85.287748240881584,12,86.49277426467485,29,88.056799851005266,30,28.42534080710379,9,85.287748240881584]
[null,"$20,000 to $24,999",224,108.50345616615168,26,30.413812651491099,103,71.112586790244109,56,45.453272709454048,18,16.492422502470642,20,17.691806012954132,23,19.209372712298546,1088,237.74145620820951,37,23.021728866442675,20,87.555696559390128,78,58.694122363316758,332,123.69316876852982,63,51.419840528729765,29,87.321245982864909,75,45.276925690687087,52,48.836461788299118,40,90.476516290140168,21,86.49277426467485,74,54.083269131959838,74,43.863424398922618,70,52.630789467763066,54,33.241540277189323,24,21.2602916254693,22,20.396078054371138,40,26.076809620810597,17,13.038404810405298,27,86.884981440983225]
[null,"$25,000 to $34,999",155,79.649231006959511,66,90.824005637276315,128,70.178344238091,122,66.573267908372955,71,33.97057550292606,59,25.612496949731394,73,92.309262807152777,2065,307.73040148805575,58,26.076809620810597,47,26.570660511172846,167,66.219332524573218,301,105.75916035975324,94,48.104053883222775,67,31.144823004794873,335,114.63420083029322,105,84.899941107164494,171,73.006848993775918,88,99.644367628080218,106,72.346388990743691,232,104.86181383134664,319,142.70599146496969,127,69.354163537598808,13,10,66,92.309262807152777,93,39.698866482558415,42,88.323269867006175,20,13]
[null,"$35,000 to $49,999",142,69.354163537598808,151,70.178344238091,172,80.112421009478922,153,74.411020689142546,80,25.709920264364882,105,95.257545632878873,104,42.953463189829058,2485,286.11186623417075,75,36.069377593742864,68,31.953090617340916,120,63.324560795950255,388,104.01922899156675,153,89.537701556383496,60,25.709920264364882,449,157.17824276915684,280,98.762341001011109,266,111.28791488746656,75,90.476516290140168,151,73.246160308919954,217,98.762341001011109,337,146,260,105.75916035975324,88,93.520051325905499,71,29.732137494637012,189,70.576199954375554,102,30.083217912982647,77,37.336309405188942]
[null,"$50,000 to $74,999",316,119.41942890501528,221,71.867934435323804,311,113.1591799192624,318,116.91449867317569,123,38.078865529319543,179,54.341512676774101,173,100.16985574512923,3457,347.89653634378141,92,38.013155617496423,130,44.553338819890925,330,95.524865872714003,712,149.4824404403407,374,122.78843593759146,64,29.529646120466801,864,159.66527487215245,470,153.05554547287727,374,99.503768772845987,198,57.723478758647246,231,94.413982015377357,446,121.31364309095659,610,192.50974001333023,318,99.84988733093293,160,41.785164831552358,148,53,263,90.249653738947941,190,42.755116652863897,100,42.190046219457976]
[null,"$75,000 to $99,999",254,111.51681487560519,137,94.371605899232208,185,87.464278422679513,366,134.31678971744373,89,27.513632984395208,278,56.568542494923804,211,70.256672281001187,2661,286.32324390450736,64,88.887569434651553,218,59.908263203000637,258,87.823687009826685,544,171.29214809792072,265,121.43310915891102,98,89.493016487321512,943,191.48106956041372,466,144.8481963988506,402,110.45361017187261,168,53.160135440008048,150,106.40018796975878,368,97.49358953285082,417,144.30869689661813,260,103.4456378974,71,25.495097567963924,136,95.713112999212385,150,49.244289008980523,145,42.154477816715982,87,36.400549446402593]
[null,"$100,000 to $149,999",270,97.754795278799492,192,62.177166226839255,247,78.847954951285828,706,186.49664876345634,79,33.955853692699293,182,102.90286682109493,184,56.080299571239813,2316,287.08883642524313,43,89.493016487321512,258,100.16985574512923,386,131.24404748406687,298,108.23123393919151,432,149.4824404403407,60,28.635642126552707,1096,207.51144546747295,605,180.29420401111068,346,145.42695761102891,108,95.257545632878873,210,116.72617529928752,183,114.02192771568107,550,153.15351775261317,203,110.75197515168747,98,24.331050121192877,91,92.70382947861431,161,50.990195135927848,134,91.923881554251182,118,96.176920308356728]
[null,"$150,000 or more",98,109.48059188732951,{"$f":"E157+E169","v":72},45,94,110.11357772772621,701,178.53291013143766,78,91.18113840043894,77,91.18113840043894,87,91.923881554251182,1332,191.09421759959145,13,85.84287972802403,245,73.925638313104884,140,105.80170130957252,64,92.70382947861431,130,102.90286682109493,27,87.321245982864909,680,168.11900546934007,305,128.97286536322281,243,97.948966303887048,104,97.616596949494195,415,106.92053123698928,47,91.547801721286575,253,137.43725841270262,71,51.546095875439491,26,86.313382508160345,74,90.824005637276315,94,93.941471140279674,38,87.321245982864909,55,88.323269867006175]

{"sheet":"ACS_TableB19101_ACS_Tbl_B19113","index":39,"n_rows":130,"n_cols":56,"rows_kept":130,"cut":false,"hidden":true,"merged":[]}
[null,"B19101. FAMILY INCOME IN THE PAST 12 MONTHS (IN 2021 INFLATION-ADJUSTED DOLLARS)"]
[null,"Universe:  FAMILIES"]
[null,"Data Set: 2015-2019 American Community Survey 5-Year Estimates"]
[]
[null,null,"Allenstown",null,"Andover",null,"Boscawen",null,"Bow",null,"Bradford",null,"Canterbury",null,"Chichester",null,"Concord",null,"Danbury",null,"Dunbarton",null,"Epsom",null,"Franklin",null,"Henniker",null,"Hill",null,"Hooksett",null,"Hopkinton",null,"Loudon",null,"Newbury",null,"New London",null,"Northfield",null,"Pembroke",null,"Pittsfield",null,"Salisbury",null,"Sutton",null,"Warner",null,"Webster",null,"Wilmot"]
[null,null,"Estimate","Margin Of Error","Estimate","Margin Of Error","Estimate","Margin Of Error","Estimate","Margin Of Error","Estimate","Margin Of Error","Estimate","Margin Of Error","Estimate","Margin Of Error","Estimate","Margin Of Error","Estimate","Margin Of Error","Estimate","Margin Of Error","Estimate","Margin Of Error","Estimate","Margin Of Error","Estimate","Margin Of Error","Estimate","Margin Of Error","Estimate","Margin Of Error","Estimate","Margin Of Error","Estimate","Margin Of Error","Estimate","Margin Of Error","Estimate","Margin Of Error","Estimate","Margin Of Error","Estimate","Margin Of Error","Estimate","Margin Of Error","Estimate","Margin Of Error","Estimate","Margin Of Error","Estimate","Margin Of Error","Estimate","Margin Of Error","Estimate","Margin Of Error"]
[null,"Total Families",1077,128,601,120,849,120,2419,105,437,58,689,86,784,72,10699,427,448,91,836,69,1332,111,2330,201,1334,220,198,40,3687,219,1655,158,1792,165,522,84,1054,99,1333,136,1858,180,1128,128,448,104,721,161,821,61,627,88,437,77]
[null,"Less than $10,000",61,66,9,9,8,14,9,15,0,12,11,15,18,27,125,67,16,16,5,8,9,15,25,31,28,34,0,12,20,29,0,17,90,107,12,18,0,12,69,95,0,17,8,14,4,7,8,13,17,17,27,38,3,5]
[null,"$10,000 to $14,999",0,12,10,12,8,12,6,10,0,12,0,12,0,12,306,178,20,17,0,12,0,12,8,13,0,17,3,4,31,36,0,17,0,17,0,12,0,12,14,20,59,64,16,24,3,4,0,12,0,12,2,3,0,12]
[null,"$15,000 to $19,999",29,29,0,12,0,12,14,14,16,16,0,12,4,6,127,80,0,12,0,12,8,14,10,16,0,17,0,12,0,19,0,17,57,72,0,12,0,12,10,15,13,17,0,12,8,8,0,12,4,6,0,12,0,12]
[null,"$20,000 to $24,999",0,12,24,24,13,19,19,22,6,6,0,12,10,11,114,72,53,67,0,12,9,15,42,41,19,29,3,5,72,93,0,17,222,247,5,7,0,12,23,21,60,68,38,60,10,13,17,26,29,28,12,18,3,4]
[null,"$25,000 to $29,999",11,16,6,9,20,23,0,17,19,21,0,12,13,19,243,116,0,12,0,12,9,14,54,38,19,31,8,10,50,39,28,42,0,17,6,8,8,13,8,13,0,17,46,53,4,8,8,12,20,23,7,8,0,12]
[null,"$30,000 to $34,999",56,65,0,12,0,12,6,9,21,19,6,8,14,13,315,129,10,12,0,12,48,42,89,79,88,75,0,12,54,63,0,17,14,22,0,12,9,14,22,22,0,17,41,61,0,12,14,11,4,5,4,5,0,12]
[null,"$35,000 to $39,999",47,61,0,12,28,26,6,10,14,11,11,12,23,14,147,84,27,32,8,9,0,12,129,80,20,25,0,12,42,31,11,18,41,65,0,12,61,50,79,82,52,58,52,64,22,29,40,66,3,5,3,4,3,5]
[null,"$40,000 to $44,999",23,26,2,3,18,20,13,14,11,12,12,14,4,6,197,128,24,17,4,5,27,30,52,41,11,19,4,6,37,36,0,17,86,82,0,12,0,12,10,18,15,24,34,50,4,6,17,15,85,60,2,3,0,12]
[null,"$45,000 to $49,999",29,34,73,87,21,22,30,28,13,17,6,8,19,12,238,124,4,5,18,13,16,18,23,25,0,17,4,5,121,80,43,55,48,53,10,11,10,15,53,49,78,66,35,36,9,14,24,19,4,5,11,9,10,9]
[null,"$50,000 to $59,999",43,41,24,30,10,16,49,32,24,20,23,18,14,10,757,201,23,16,34,23,74,59,141,72,38,37,14,10,150,75,118,82,57,73,21,15,57,34,115,73,132,143,0,12,18,18,12,12,30,26,20,13,27,20]
[null,"$60,000 to $74,999",79,50,33,28,136,65,108,53,17,11,45,39,39,28,1018,254,25,26,27,20,177,75,328,165,57,45,17,10,326,128,81,73,167,116,42,30,109,97,122,67,141,65,173,89,40,25,44,28,72,36,87,46,46,31]
[null,"$75,000 to $99,999",238,103,68,31,182,96,119,49,62,20,104,48,104,62,1673,291,78,37,106,44,257,92,465,204,199,111,53,26,590,182,216,100,286,157,62,33,113,53,237,92,264,122,276,98,86,35,49,28,71,35,73,36,40,17]
[null,"$100,000 to $124,999",67,42,111,58,87,57,372,107,105,46,66,30,164,69,1281,216,92,47,138,56,182,96,391,138,183,77,22,15,405,118,309,155,206,119,95,39,98,53,175,67,234,95,205,99,50,27,70,39,147,39,150,69,92,57]
[null,"$125,000 to $149,999",118,77,55,37,130,78,332,129,28,15,64,27,82,34,1047,186,19,13,69,37,204,85,149,78,312,271,33,18,404,123,73,60,71,59,39,21,111,60,177,92,306,153,122,76,28,19,131,93,128,59,64,24,48,21]
[null,"$150,000 to $199,999",237,84,119,45,100,70,545,125,43,21,198,59,178,73,1647,335,31,17,255,84,164,84,197,91,132,80,27,16,487,140,378,140,238,122,97,40,148,76,118,73,340,152,39,35,135,97,127,82,76,36,123,34,75,28]
[null,"$200,000 or more",39,33,67,34,88,52,791,150,58,27,143,52,98,36,1464,221,26,17,172,57,148,74,227,94,228,95,10,11,898,218,398,143,209,116,133,58,330,98,101,49,164,75,43,50,27,15,160,68,131,53,42,17,90,30]
[]
[]
[null,"B19113. MEDIAN FAMILY INCOME IN THE PAST 12 MONTHS (IN 2021 INFLATION-ADJUSTED DOLLARS)"]
[null,"Universe:  FAMILIES"]
[null,"Data Set: 2015-2019 American Community Survey 5-Year Estimates"]
[]
[null,null,"Allenstown",null,"Andover",null,"Boscawen",null,"Bow",null,"Bradford",null,"Canterbury",null,"Chichester",null,"Concord",null,"Danbury",null,"Dunbarton",null,"Epsom",null,"Franklin",null,"Henniker",null,"Hill",null,"Hooksett",null,"Hopkinton",null,"Loudon",null,"Newbury",null,"New London",null,"Northfield",null,"Pembroke",null,"Pittsfield",null,"Salisbury",null,"Sutton",null,"Warner",null,"Webster",null,"Wilmot"]
[null,null,"Estimate","Margin Of Error","Estimate","Margin Of Error","Estimate","Margin Of Error","Estimate","Margin Of Error","Estimate","Margin Of Error","Estimate","Margin Of Error","Estimate","Margin Of Error","Estimate","Margin Of Error","Estimate","Margin Of Error","Estimate","Margin Of Error","Estimate","Margin Of Error","Estimate","Margin Of Error","Estimate","Margin Of Error","Estimate","Margin Of Error","Estimate","Margin Of Error","Estimate","Margin Of Error","Estimate","Margin Of Error","Estimate","Margin Of Error","Estimate","Margin Of Error","Estimate","Margin Of Error","Estimate","Margin Of Error","Estimate","Margin Of Error","Estimate","Margin Of Error","Estimate","Margin Of Error","Estimate","Margin Of Error","Estimate","Margin Of Error","Estimate","Margin Of Error"]
[null,"Median family income in the past 12 months",93198,14133,108914,11933,97563,11779,158203,14249,105347,13829,149514,18271,119815,14538,101301,6266,90893,32925,150549,15654,104259,16866,89648,17566,127963,25827,97206,11647,122523,16796,138603,41953,85714,20008,128000,27783,135179,28289,86339,13716,115000,22977,85667,16933,110833,25393,139750,24399,110486,13633,111189,6551,120972,23138]
[]
[]
[]
[]
[]
[]
[]
[]
[]
[]
[]
[]
[]
[]
[]
[]
[]
[null,"B19101. FAMILY INCOME IN THE PAST 12 MONTHS (IN 2016 INFLATION-ADJUSTED DOLLARS)"]
[null,"Universe:  FAMILIES"]
[null,"Data Set: 2013-2017 American Community Survey 5-Year Estimates"]
[]
[null,null,"Allenstown",null,"Andover",null,"Boscawen",null,"Bow",null,"Bradford",null,"Canterbury",null,"Chichester",null,"Concord",null,"Danbury",null,"Dunbarton",null,"Epsom",null,"Franklin",null,"Henniker",null,"Hill",null,"Hooksett",null,"Hopkinton",null,"Loudon",null,"Newbury",null,"New London",null,"Northfield",null,"Pembroke",null,"Pittsfield",null,"Salisbury",null,"Sutton",null,"Warner",null,"Webster",null,"Wilmot"]
[null,null,"Estimate","Margin Of Error","Estimate","Margin Of Error","Estimate","Margin Of Error","Estimate","Margin Of Error","Estimate","Margin Of Error","Estimate","Margin Of Error","Estimate","Margin Of Error","Estimate","Margin Of Error","Estimate","Margin Of Error","Estimate","Margin Of Error","Estimate","Margin Of Error","Estimate","Margin Of Error","Estimate","Margin Of Error","Estimate","Margin Of Error","Estimate","Margin Of Error","Estimate","Margin Of Error","Estimate","Margin Of Error","Estimate","Margin Of Error","Estimate","Margin Of Error","Estimate","Margin Of Error","Estimate","Margin Of Error","Estimate","Margin Of Error","Estimate","Margin Of Error","Estimate","Margin Of Error","Estimate","Margin Of Error","Estimate","Margin Of Error","Estimate","Margin Of Error"]
[null,"Total Families",1096,102,716,97,895,112,2344,107,455,76,610,64,726,54,9825,368,364,57,815,41,1243,99,2007,132,1080,109,308,46,3626,180,1479,121,1480,116,619,78,1030,99,1328,95,1925,151,975,93,364,54,578,89,728,65,554,55,433,55]
[null,"Less than $10,000",24,22,6,8,21,25,42,33,3,6,0,11,34,40,319,141,0,11,5,8,17,19,152,71,0,11,0,11,21,25,17,27,35,38,18,16,18,27,41,50,42,69,143,94,0,11,3,4,14,12,7,8,3,4]
[null,"$10,000 to $14,999",85,60,0,11,40,38,18,28,9,11,0,11,0,11,353,106,0,11,0,11,8,12,17,20,37,52,0,11,30,27,0,15,0,15,0,11,17,26,0,11,13,20,0,11,5,7,8,13,6,8,3,5,6,8]
[null,"$15,000 to $19,999",0,11,7,11,27,32,57,39,7,7,12,13,12,11,233,97,6,6,0,11,32,23,58,45,0,11,0,11,15,23,13,22,8,13,0,11,42,49,28,36,16,25,24,31,4,6,0,11,9,9,6,6,10,11]
[null,"$20,000 to $24,999",66,48,22,19,14,17,37,38,7,8,5,7,10,12,254,156,28,19,35,25,60,40,106,72,12,21,24,23,64,52,26,22,52,48,14,12,47,37,35,43,18,28,32,38,2,3,10,16,36,29,4,6,17,18]
[null,"$25,000 to $29,999",9,14,20,26,36,23,0,15,11,12,9,10,7,12,306,126,8,8,32,23,30,26,139,77,17,27,3,4,125,66,16,25,0,15,22,18,25,23,89,74,85,49,84,58,4,6,9,15,9,9,5,10,13,11]
[null,"$30,000 to $34,999",61,49,36,31,73,68,38,30,14,16,11,12,10,12,407,133,9,7,16,18,9,14,36,28,66,50,10,8,19,22,42,41,157,72,13,12,9,13,32,27,68,84,10,16,9,8,24,24,24,23,16,15,22,21]
[null,"$35,000 to $39,999",69,45,21,25,23,20,29,30,22,19,5,9,6,9,252,112,21,22,8,11,39,28,151,77,7,11,23,13,132,75,0,15,76,79,20,18,7,11,53,35,0,15,40,34,11,10,0,11,27,16,28,13,11,9]
[null,"$40,000 to $44,999",28,25,23,18,7,12,57,39,5,6,16,15,35,22,359,102,37,24,31,19,23,26,95,48,14,21,20,14,98,52,22,24,0,15,11,13,45,29,64,35,66,52,20,19,22,13,42,31,18,16,36,24,11,9]
[null,"$45,000 to $49,999",41,29,10,9,89,59,75,51,15,10,6,9,48,39,391,108,8,8,19,13,29,37,156,87,32,32,4,5,105,58,32,30,13,21,25,20,10,14,75,48,41,37,64,49,7,8,33,28,38,25,25,14,9,13]
[null,"$50,000 to $59,999",110,50,28,18,78,48,103,53,67,36,53,26,50,24,760,151,26,22,61,32,104,59,165,81,29,24,22,15,141,70,103,97,149,80,37,20,44,31,84,41,126,97,67,40,30,18,44,30,48,28,44,17,42,29]
[null,"$60,000 to $74,999",142,56,94,40,183,91,148,69,66,30,58,26,68,29,1056,186,53,27,61,28,183,104,232,88,233,101,40,17,439,127,141,102,190,112,35,18,121,58,151,53,255,120,105,44,66,28,56,28,112,49,70,31,62,30]
[null,"$75,000 to $99,999",208,70,154,57,152,58,366,96,110,31,137,44,145,43,1683,239,80,28,180,42,195,87,375,100,258,85,81,30,757,157,243,103,289,104,123,51,135,54,271,81,458,154,144,63,82,30,111,44,101,36,107,40,53,23]
[null,"$100,000 to $124,999",126,49,144,58,46,37,364,80,45,18,99,46,113,32,1150,174,53,31,114,40,120,64,218,78,152,66,38,20,532,128,243,105,142,78,109,39,189,72,190,71,198,86,59,32,59,31,65,33,83,34,84,27,56,26]
[null,"$125,000 to $149,999",36,24,67,33,24,28,303,87,34,21,88,37,39,23,775,173,21,19,72,28,208,77,47,34,64,46,30,15,458,138,106,71,93,61,64,27,106,42,84,46,210,87,37,31,25,14,80,38,82,32,45,21,40,17]
[null,"$150,000 to $199,999",91,54,61,36,31,31,422,96,23,17,60,29,114,39,850,176,7,10,87,39,74,38,29,24,97,50,3,4,342,96,263,114,155,98,87,43,113,50,79,46,205,82,99,69,16,11,45,31,57,36,43,22,32,17]
[null,"$200,000 or more",0,11,23,17,51,37,285,85,17,15,51,25,35,21,677,146,7,7,94,37,112,64,31,43,62,38,10,8,348,137,212,86,121,82,41,22,102,47,52,43,124,71,47,33,22,19,48,30,64,30,31,19,46,24]
[]
[]
[null,"B19113. MEDIAN FAMILY INCOME IN THE PAST 12 MONTHS (IN 2016 INFLATION-ADJUSTED DOLLARS)"]
[null,"Universe:  FAMILIES"]
[null,"Data Set: 2013-2017 American Community Survey 5-Year Estimates"]
[]
[null,null,"Allenstown",null,"Andover",null,"Boscawen",null,"Bow",null,"Bradford",null,"Canterbury",null,"Chichester",null,"Concord",null,"Danbury",null,"Dunbarton",null,"Epsom",null,"Franklin",null,"Henniker",null,"Hill",null,"Hooksett",null,"Hopkinton",null,"Loudon",null,"Newbury",null,"New London",null,"Northfield",null,"Pembroke",null,"Pittsfield",null,"Salisbury",null,"Sutton",null,"Warner",null,"Webster",null,"Wilmot"]
[null,null,"Estimate","Margin Of Error","Estimate","Margin Of Error","Estimate","Margin Of Error","Estimate","Margin Of Error","Estimate","Margin Of Error","Estimate","Margin Of Error","Estimate","Margin Of Error","Estimate","Margin Of Error","Estimate","Margin Of Error","Estimate","Margin Of Error","Estimate","Margin Of Error","Estimate","Margin Of Error","Estimate","Margin Of Error","Estimate","Margin Of Error","Estimate","Margin Of Error","Estimate","Margin Of Error","Estimate","Margin Of Error","Estimate","Margin Of Error","Estimate","Margin Of Error","Estimate","Margin Of Error","Estimate","Margin Of Error","Estimate","Margin Of Error","Estimate","Margin Of Error","Estimate","Margin Of Error","Estimate","Margin Of Error","Estimate","Margin Of Error","Estimate","Margin Of Error"]
[null,"Median family income in the past 12 months",66290,9650,90192,6611,64219,9760,113911,7598,75268,9295,97143,9618,90536,9349,78605,4061,70882,13443,94213,6726,86932,14600,56563,7040,82713,5708,75952,4799,98009,5399,109934,14149,80431,16559,99034,9067,99107,10883,76429,14119,88935,8630,60515,17354,77500,8792,88214,10620,77212,13298,81774,6189,80625,17259]
[]
[]
[]
[]
[]
[]
[]
[]
[]
[]
[]
[]
[]
[]
[]
[]
[]
[null,"B19101. FAMILY INCOME IN THE PAST 12 MONTHS (IN 2011 INFLATION-ADJUSTED DOLLARS)"]
[null,"Universe:  FAMILIES"]
[null,"Data Set: 2008-2012 American Community Survey 5-Year Estimates"]
[]
[null,null,"Allenstown",null,"Andover",null,"Boscawen",null,"Bow",null,"Bradford",null,"Canterbury",null,"Chichester",null,"Concord",null,"Danbury",null,"Dunbarton",null,"Epsom",null,"Franklin",null,"Henniker",null,"Hill",null,"Hooksett",null,"Hopkinton",null,"Loudon",null,"Newbury",null,"New London",null,"Northfield",null,"Pembroke",null,"Pittsfield",null,"Salisbury",null,"Sutton",null,"Warner",null,"Webster",null,"Wilmot"]
[null,null,"Estimate","Margin Of Error","Estimate","Margin Of Error","Estimate","Margin Of Error","Estimate","Margin Of Error","Estimate","Margin Of Error","Estimate","Margin Of Error","Estimate","Margin Of Error","Estimate","Margin Of Error","Estimate","Margin Of Error","Estimate","Margin Of Error","Estimate","Margin Of Error","Estimate","Margin Of Error","Estimate","Margin Of Error","Estimate","Margin Of Error","Estimate","Margin Of Error","Estimate","Margin Of Error","Estimate","Margin Of Error","Estimate","Margin Of Error","Estimate","Margin Of Error","Estimate","Margin Of Error","Estimate","Margin Of Error","Estimate","Margin Of Error","Estimate","Margin Of Error","Estimate","Margin Of Error","Estimate","Margin Of Error","Estimate","Margin Of Error","Estimate","Margin Of Error"]
[null,"Total Families",1210,95,699,97,991,135,2239,97,470,63,745,61,753,42,10184,332,298,55,789,61,1238,96,2074,142,1150,117,312,52,3592,192,1805,127,1533,112,549,71,1021,119,1383,110,1983,155,1036,101,393,48,456,73,810,55,553,62,367,62]
[null,"Less than $10,000",29,31,0,85,0,85,0,85,3,4,0,85,12,20,433,137,20,19,20,15,7,10,87,54,0,85,15,20,0,85,0,85,25,25,22,20,39,48,43,61,41,44,51,55,3,4,0,85,0,85,11,18,12,14]
[null,"$10,000 to $14,999",18,27,20,26,28,28,37,36,9,8,16,15,13,21,104,75,0,85,11,16,0,85,126,78,0,85,0,85,36,35,38,62,30,36,11,14,36,41,34,26,88,99,20,18,3,5,0,85,0,85,0,85,9,15]
[null,"$15,000 to $19,999",16,24,16,26,38,36,27,31,10,13,0,85,29,24,221,100,14,13,4,7,11,17,58,40,29,39,6,7,0,85,16,26,0,85,18,26,49,53,123,90,0,85,62,57,5,7,0,85,14,14,10,18,3,4]
[null,"$20,000 to $24,999",149,84,17,27,78,67,17,27,13,15,5,7,3,4,395,158,17,16,10,15,34,29,212,97,76,75,22,14,40,37,14,23,8,11,12,12,9,14,45,34,17,25,19,22,5,7,11,17,13,14,17,14,6,8]
[null,"$25,000 to $29,999",0,85,27,25,50,48,36,39,37,23,0,85,44,33,536,171,10,11,6,9,44,36,51,36,64,63,11,10,50,44,20,31,8,12,10,13,33,32,105,71,162,98,27,28,6,6,12,10,26,23,19,18,0,85]
[null,"$30,000 to $34,999",77,66,19,13,44,38,30,32,8,8,19,17,14,13,390,150,21,15,7,11,46,32,88,69,8,13,10,11,148,89,14,22,105,60,42,31,34,34,23,25,76,67,49,50,7,7,25,21,50,27,18,17,9,8]
[null,"$35,000 to $39,999",45,38,62,44,7,11,64,62,13,9,17,17,20,16,333,116,7,8,22,19,54,34,65,39,23,22,11,11,128,101,102,63,116,72,3,5,17,18,32,31,47,49,29,31,33,26,19,19,83,51,19,12,15,11]
[null,"$40,000 to $44,999",67,41,5,9,47,44,14,25,23,17,24,21,17,14,472,158,4,6,1,2,50,56,176,79,0,85,8,9,61,39,69,55,34,33,9,8,20,16,37,30,90,89,79,52,21,15,5,8,67,50,22,13,39,26]
[null,"$45,000 to $49,999",3,12,33,31,44,38,47,36,21,13,50,41,24,20,419,116,24,20,15,13,25,29,28,24,26,33,27,18,43,38,49,45,64,57,15,15,9,14,15,16,75,54,27,27,15,9,19,13,8,12,17,11,9,10]
[null,"$50,000 to $59,999",144,95,42,26,95,61,98,62,20,12,53,34,29,21,728,162,31,23,41,24,56,37,141,70,103,65,23,16,198,76,68,56,80,37,62,32,14,16,191,93,80,50,143,74,32,21,51,29,135,75,53,21,12,16]
[null,"$60,000 to $74,999",131,79,133,57,151,78,163,89,81,33,87,39,110,42,1297,223,48,28,48,26,215,72,327,114,105,64,29,18,497,132,221,76,214,88,45,25,72,46,198,84,278,121,113,57,91,31,47,30,66,30,82,29,46,24]
[null,"$75,000 to $99,999",211,93,142,43,150,70,330,104,83,26,245,57,206,71,1986,253,52,24,195,55,252,91,373,124,203,100,81,27,733,159,380,128,285,91,143,55,129,55,326,87,383,134,178,85,54,24,121,41,127,49,118,43,66,29]
[null,"$100,000 to $124,999",197,82,84,33,162,69,333,123,48,22,90,38,101,37,1098,218,36,27,107,36,242,82,253,95,253,115,24,16,600,159,346,119,245,100,50,26,103,55,118,60,328,95,137,65,79,23,59,31,109,43,80,26,63,36]
[null,"$125,000 to $149,999",67,45,50,35,42,41,369,122,27,26,69,45,47,34,532,136,7,7,138,44,75,59,25,28,153,90,21,20,428,153,163,86,88,51,26,26,76,51,54,33,93,55,56,42,15,12,16,9,25,21,52,24,28,19]
[null,"$150,000 to $199,999",41,36,44,38,10,16,357,116,59,30,27,22,40,25,699,169,3,4,73,34,69,49,25,23,62,46,15,18,363,121,113,60,175,87,39,23,248,88,29,27,94,55,22,26,7,8,44,27,61,31,28,19,25,17]
[null,"$200,000 or more",15,24,5,8,45,56,317,94,15,11,43,28,44,22,541,116,4,8,91,48,58,45,39,31,45,38,9,8,267,117,192,75,56,48,42,22,133,58,10,16,131,87,24,37,17,11,27,21,26,23,7,7,25,18]
[]
[]
[null,"B19113. MEDIAN FAMILY INCOME IN THE PAST 12 MONTHS (IN 2011 INFLATION-ADJUSTED DOLLARS)"]
[null,"Universe:  FAMILIES"]
[null,"Data Set: 2008-2012 American Community Survey 5-Year Estimates"]
[]
[null,null,"Allenstown",null,"Andover",null,"Boscawen",null,"Bow",null,"Bradford",null,"Canterbury",null,"Chichester",null,"Concord",null,"Danbury",null,"Dunbarton",null,"Epsom",null,"Franklin",null,"Henniker",null,"Hill",null,"Hooksett",null,"Hopkinton",null,"Loudon",null,"Newbury",null,"New London",null,"Northfield",null,"Pembroke",null,"Pittsfield",null,"Salisbury",null,"Sutton",null,"Warner",null,"Webster",null,"Wilmot"]
[null,null,"Estimate","Margin Of Error","Estimate","Margin Of Error","Estimate","Margin Of Error","Estimate","Margin Of Error","Estimate","Margin Of Error","Estimate","Margin Of Error","Estimate","Margin Of Error","Estimate","Margin Of Error","Estimate","Margin Of Error","Estimate","Margin Of Error","Estimate","Margin Of Error","Estimate","Margin Of Error","Estimate","Margin Of Error","Estimate","Margin Of Error","Estimate","Margin Of Error","Estimate","Margin Of Error","Estimate","Margin Of Error","Estimate","Margin Of Error","Estimate","Margin Of Error","Estimate","Margin Of Error","Estimate","Margin Of Error","Estimate","Margin Of Error","Estimate","Margin Of Error","Estimate","Margin Of Error","Estimate","Margin Of Error","Estimate","Margin Of Error","Estimate","Margin Of Error"]
[null,"Median family income in the past 12 months",64884,14026,72958,6722,64353,9656,120101,14150,73929,10768,83882,5823,83618,9357,73314,2503,60139,7122,103438,12615,82609,9100,60227,8673,93897,15120,73333,14557,94425,4577,88884,10988,82375,11903,81250,11819,105078,24169,61754,9856,76616,13099,62813,10006,71012,4758,80313,4504,65167,18160,76771,7838,83250,13189]

{"sheet":"ACS_Table_B25119","index":40,"n_rows":68,"n_cols":56,"rows_kept":68,"cut":false,"hidden":true,"merged":[[50,2,50,3],[50,4,50,5],[50,6,50,7],[50,8,50,9],[50,10,50,11],[50,12,50,13],[50,14,50,15],[50,16,50,17],[50,18,50,19],[50,20,50,21],[50,22,50,23],[56,2,56,3],[56,4,56,5],[56,6,56,7],[56,8,56,9],[56,10,56,11],[56,12,56,13],[56,14,56,15],[56,16,56,17],[56,18,56,19],[56,20,56,21],[56,22,56,23],[48831,2,48831,3],[48831,4,48831,5],[48831,6,48831,7],[48831,8,48831,9],[48831,10,48831,11],[48831,12,48831,13],[48831,14,48831,15],[48831,16,48831,17],[48831,18,48831,19],[48831,20,48831,21],[48831,22,48831,23],[48795,2,48795,3],[48795,4,48795,5],[48795,6,48795,7],[48795,8,48795,9],[48795,10,48795,11],[48795,12,48795,13],[48795,14,48795,15],[48795,16,48795,17],[48795,18,48795,19],[48795,20,48795,21],[48795,22,48795,23],[48801,2,48801,3],[48801,4,48801,5],[48801,6,48801,7],[48801,8,48801,9],[48801,10,48801,11],[48801,12,48801,13],[48801,14,48801,15],[48801,16,48801,17],[48801,18,48801,19],[48801,20,48801,21],[48801,22,48801,23],[48807,2,48807,3],[48807,4,48807,5],[48807,6,48807,7],[48807,8,48807,9],[48807,10,48807,11],[48807,12,48807,13],[48807,14,48807,15],[48807,16,48807,17],[48807,18,48807,19],[48837,2,48837,3],[48837,4,48837,5],[48837,6,48837,7],[48837,8,48837,9],[48837,10,48837,11],[48837,12,48837,13],[48837,14,48837,15],[48837,16,48837,17],[48837,18,48837,19],[48837,20,48837,21],[48837,22,48837,23],[48813,2,48813,3],[48813,4,48813,5],[48813,6,48813,7],[48813,8,48813,9],[48813,10,48813,11],[48813,12,48813,13],[48813,14,48813,15],[48813,16,48813,17],[48813,18,48813,19],[48813,20,48813,21],[48813,22,48813,23],[48819,2,48819,3],[48819,4,48819,5],[48819,6,48819,7],[48819,8,48819,9],[48819,10,48819,11],[48819,12,48819,13],[48819,14,48819,15],[48819,16,48819,17],[48819,18,48819,19],[48819,20,48819,21],[48819,22,48819,23],[48825,2,48825,3],[48825,4,48825,5],[48825,6,48825,7],[48825,8,48825,9],[48825,10,48825,11],[48825,12,48825,13],[48825,14,48825,15],[48825,16,48825,17],[48825,18,48825,19],[48825,20,48825,21],[48825,22,48825,23],[48807,20,48807,21],[48807,22,48807,23],[48777,2,48777,3],[48777,4,48777,5],[48777,6,48777,7],[48777,8,48777,9],[48777,10,48777,11],[48777,12,48777,13],[48777,14,48777,15],[48777,16,48777,17],[48777,18,48777,19],[48777,20,48777,21],[48777,22,48777,23],[48783,2,48783,3],[48783,4,48783,5],[48783,6,48783,7],[48783,8,48783,9],[48783,10,48783,11],[48783,12,48783,13],[48783,14,48783,15],[48783,16,48783,17],[48783,18,48783,19],[48783,20,48783,21],[48783,22,48783,23],[48789,2,48789,3],[48789,4,48789,5],[48789,6,48789,7],[48789,8,48789,9],[48789,10,48789,11],[48789,12,48789,13],[48789,14,48789,15],[48789,16,48789,17],[48789,18,48789,19],[48789,20,48789,21],[48789,22,48789,23],[48759,2,48759,3],[48759,4,48759,5],[48759,6,48759,7],[48759,8,48759,9],[48759,10,48759,11],[48759,12,48759,13],[48759,14,48759,15],[48759,16,48759,17],[48759,18,48759,19],[48759,20,48759,21],[48759,22,48759,23],[48765,2,48765,3],[48765,4,48765,5],[48765,6,48765,7],[48765,8,48765,9],[48765,10,48765,11],[48765,12,48765,13],[48765,14,48765,15],[48765,16,48765,17],[48765,18,48765,19],[48765,20,48765,21],[48765,22,48765,23],[48771,2,48771,3],[48771,4,48771,5],[48771,6,48771,7],[48771,8,48771,9],[48771,10,48771,11],[48771,12,48771,13],[48771,14,48771,15],[48771,16,48771,17],[48771,18,48771,19],[48771,20,48771,21],[48771,22,48771,23],[48741,2,48741,3],[48741,4,48741,5],[48741,6,48741,7],[48741,8,48741,9],[48741,10,48741,11],[48741,12,48741,13],[48741,14,48741,15],[48741,16,48741,17],[48741,18,48741,19],[48741,20,48741,21],[48741,22,48741,23],[48747,2,48747,3],[48747,4,48747,5],[48747,6,48747,7],[48747,8,48747,9],[48747,10,48747,11],[48747,12,48747,13],[48747,14,48747,15],[48747,16,48747,17],[48747,18,48747,19],[48747,20,48747,21],[48747,22,48747,23],[48753,2,48753,3],[48753,4,48753,5],[48753,6,48753,7],[48753,8,48753,9],[48753,10,48753,11],[48753,12,48753,13],[48753,14,48753,15],[48753,16,48753,17],[48753,18,48753,19],[48753,20,48753,21],[48753,22,48753,23],[48723,2,48723,3],[48723,4,48723,5],[48723,6,48723,7],[48723,8,48723,9],[48723,10,48723,11],[48723,12,48723,13],[48723,14,48723,15],[48723,16,48723,17],[48723,18,48723,19],[48723,20,48723,21],[48723,22,48723,23],[48729,2,48729,3],[48729,4,48729,5],[48729,6,48729,7],[48729,8,48729,9],[48729,10,48729,11],[48729,12,48729,13],[48729,14,48729,15],[48729,16,48729,17],[48729,18,48729,19],[48729,20,48729,21],[48729,22,48729,23],[48735,2,48735,3],[48735,4,48735,5],[48735,6,48735,7],[48735,8,48735,9],[48735,10,48735,11],[48735,12,48735,13],[48735,14,48735,15],[48735,16,48735,17],[48735,18,48735,19],[48735,20,48735,21],[48735,22,48735,23],[48705,2,48705,3],[48705,4,48705,5],[48705,6,48705,7],[48705,8,48705,9],[48705,10,48705,11],[48705,12,48705,13],[48705,14,48705,15],[48705,16,48705,17],[48705,18,48705,19],[48705,20,48705,21],[48705,22,48705,23],[48711,2,48711,3],[48711,4,48711,5],[48711,6,48711,7],[48711,8,48711,9],[48711,10,48711,11],[48711,12,48711,13],[48711,14,48711,15],[48711,16,48711,17],[48711,18,48711,19],[48711,20,48711,21],[48711,22,48711,23],[48717,2,48717,3],[48717,4,48717,5],[48717,6,48717,7],[48717,8,48717,9],[48717,10,48717,11],[48717,12,48717,13],[48717,14,48717,15],[48717,16,48717,17],[48717,18,48717,19],[48717,20,48717,21],[48717,22,48717,23],[48687,2,48687,3],[48687,4,48687,5],[48687,6,48687,7],[48687,8,48687,9],[48687,10,48687,11],[48687,12,48687,13],[48687,14,48687,15],[48687,16,48687,17],[48687,18,48687,19],[48687,20,48687,21],[48687,22,48687,23],[48693,2,48693,3],[48693,4,48693,5],[48693,6,48693,7],[48693,8,48693,9],[48693,10,48693,11],[48693,12,48693,13],[48693,14,48693,15],[48693,16,48693,17],[48693,18,48693,19],[48693,20,48693,21],[48693,22,48693,23],[48699,2,48699,3],[48699,4,48699,5],[48699,6,48699,7],[48699,8,48699,9],[48699,10,48699,11],[48699,12,48699,13],[48699,14,48699,15],[48699,16,48699,17],[48699,18,48699,19],[48699,20,48699,21],[48699,22,48699,23],[48669,2,48669,3],[48669,4,48669,5],[48669,6,48669,7],[48669,8,48669,9],[48669,10,48669,11],[48669,12,48669,13],[48669,14,48669,15],[48669,16,48669,17],[48669,18,48669,19],[48669,20,48669,21],[48669,22,48669,23],[48675,2,48675,3],[48675,4,48675,5],[48675,6,48675,7],[48675,8,48675,9],[48675,10,48675,11],[48675,12,48675,13],[48675,14,48675,15],[48675,16,48675,17],[48675,18,48675,19],[48675,20,48675,21],[48675,22,48675,23],[48681,2,48681,3],[48681,4,48681,5],[48681,6,48681,7],[48681,8,48681,9],[48681,10,48681,11],[48681,12,48681,13],[48681,14,48681,15],[48681,16,48681,17],[48681,18,48681,19],[48681,20,48681,21],[48681,22,48681,23],[48651,2,48651,3],[48651,4,48651,5],[48651,6,48651,7],[48651,8,48651,9],[48651,10,48651,11],[48651,12,48651,13],[48651,14,48651,15],[48651,16,48651,17],[48651,18,48651,19],[48651,20,48651,21],[48651,22,48651,23],[48657,2,48657,3],[48657,4,48657,5],[48657,6,48657,7],[48657,8,48657,9],[48657,10,48657,11],[48657,12,48657,13],[48657,14,48657,15],[48657,16,48657,17],[48657,18,48657,19],[48657,20,48657,21],[48657,22,48657,23],[48663,2,48663,3],[48663,4,48663,5],[48663,6,48663,7],[48663,8,48663,9],[48663,10,48663,11],[48663,12,48663,13],[48663,14,48663,15],[48663,16,48663,17],[48663,18,48663,19],[48663,20,48663,21],[48663,22,48663,23],[48633,2,48633,3],[48633,4,48633,5],[48633,6,48633,7],[48633,8,48633,9],[48633,10,48633,11],[48633,12,48633,13],[48633,14,48633,15],[48633,16,48633,17],[48633,18,48633,19],[48633,20,48633,21],[48633,22,48633,23],[48639,2,48639,3],[48639,4,48639,5],[48639,6,48639,7],[48639,8,48639,9],[48639,10,48639,11],[48639,12,48639,13],[48639,14,48639,15],[48639,16,48639,17],[48639,18,48639,19],[48639,20,48639,21],[48639,22,48639,23],[48645,2,48645,3],[48645,4,48645,5],[48645,6,48645,7],[48645,8,48645,9],[48645,10,48645,11],[48645,12,48645,13],[48645,14,48645,15],[48645,16,48645,17],[48645,18,48645,19],[48645,20,48645,21],[48645,22,48645,23],[48615,2,48615,3],[48615,4,48615,5],[48615,6,48615,7],[48615,8,48615,9],[48615,10,48615,11],[48615,12,48615,13],[48615,14,48615,15],[48615,16,48615,17],[48615,18,48615,19],[48615,20,48615,21],[48615,22,48615,23],[48621,2,48621,3],[48621,4,48621,5],[48621,6,48621,7],[48621,8,48621,9],[48621,10,48621,11],[48621,12,48621,13],[48621,14,48621,15],[48621,16,48621,17],[48621,18,48621,19],[48621,20,48621,21],[48621,22,48621,23],[48627,2,48627,3],[48627,4,48627,5],[48627,6,48627,7],[48627,8,48627,9],[48627,10,48627,11],[48627,12,48627,13],[48627,14,48627,15],[48627,16,48627,17],[48627,18,48627,19],[48627,20,48627,21],[48627,22,48627,23],[48597,2,48597,3],[48597,4,48597,5],[48597,6,48597,7],[48597,8,48597,9],[48597,10,48597,11],[48597,12,48597,13],[48597,14,48597,15],[48597,16,48597,17],[48597,18,48597,19],[48597,20,48597,21],[48597,22,48597,23],[48603,2,48603,3],[48603,4,48603,5],[48603,6,48603,7],[48603,8,48603,9],[48603,10,48603,11],[48603,12,48603,13],[48603,14,48603,15],[48603,16,48603,17],[48603,18,48603,19],[48603,20,48603,21],[48603,22,48603,23],[48609,2,48609,3],[48609,4,48609,5],[48609,6,48609,7],[48609,8,48609,9],[48609,10,48609,11],[48609,12,48609,13],[48609,14,48609,15],[48609,16,48609,17],[48609,18,48609,19],[48609,20,48609,21],[48609,22,48609,23],[48579,2,48579,3],[48579,4,48579,5],[48579,6,48579,7],[48579,8,48579,9],[48579,10,48579,11],[48579,12,48579,13],[48579,14,48579,15],[48579,16,48579,17],[48579,18,48579,19],[48579,20,48579,21],[48579,22,48579,23],[48585,2,48585,3],[48585,4,48585,5],[48585,6,48585,7],[48585,8,48585,9],[48585,10,48585,11],[48585,12,48585,13],[48585,14,48585,15],[48585,16,48585,17],[48585,18,48585,19],[48585,20,48585,21],[48585,22,48585,23],[48591,2,48591,3],[48591,4,48591,5],[48591,6,48591,7],[48591,8,48591,9],[48591,10,48591,11],[48591,12,48591,13],[48591,14,48591,15],[48591,16,48591,17],[48591,18,48591,19],[48591,20,48591,21],[48591,22,48591,23],[48561,2,48561,3],[48561,4,48561,5],[48561,6,48561,7],[48561,8,48561,9],[48561,10,48561,11],[48561,12,48561,13],[48561,14,48561,15],[48561,16,48561,17],[48561,18,48561,19],[48561,20,48561,21],[48561,22,48561,23],[48567,2,48567,3],[48567,4,48567,5],[48567,6,48567,7],[48567,8,48567,9],[48567,10,48567,11],[48567,12,48567,13],[48567,14,48567,15],[48567,16,48567,17],[48567,18,48567,19],[48567,20,48567,21],[48567,22,48567,23],[48573,2,48573,3],[48573,4,48573,5],[48573,6,48573,7],[48573,8,48573,9],[48573,10,48573,11],[48573,12,48573,13],[48573,14,48573,15],[48573,16,48573,17],[48573,18,48573,19],[48573,20,48573,21],[48573,22,48573,23],[48543,2,48543,3],[48543,4,48543,5],[48543,6,48543,7],[48543,8,48543,9],[48543,10,48543,11],[48543,12,48543,13],[48543,14,48543,15],[48543,16,48543,17],[48543,18,48543,19],[48543,20,48543,21],[48543,22,48543,23],[48549,2,48549,3],[48549,4,48549,5],[48549,6,48549,7],[48549,8,48549,9],[48549,10,48549,11],[48549,12,48549,13],[48549,14,48549,15],[48549,16,48549,17],[48549,18,48549,19],[48549,20,48549,21],[48549,22,48549,23],[48555,2,48555,3],[48555,4,48555,5],[48555,6,48555,7],[48555,8,48555,9],[48555,10,48555,11],[48555,12,48555,13],[48555,14,48555,15],[48555,16,48555,17],[48555,18,48555,19],[48555,20,48555,21],[48555,22,48555,23],[48525,2,48525,3],[48525,4,48525,5],[48525,6,48525,7],[48525,8,48525,9],[48525,10,48525,11],[48525,12,48525,13],[48525,14,48525,15],[48525,16,48525,17],[48525,18,48525,19],[48525,20,48525,21],[48525,22,48525,23],[48531,2,48531,3],[48531,4,48531,5],[48531,6,48531,7],[48531,8,48531,9],[48531,10,48531,11],[48531,12,48531,13],[48531,14,48531,15],[48531,16,48531,17],[48531,18,48531,19],[48531,20,48531,21],[48531,22,48531,23],[48537,2,48537,3],[48537,4,48537,5],[48537,6,48537,7],[48537,8,48537,9],[48537,10,48537,11],[48537,12,48537,13],[48537,14,48537,15],[48537,16,48537,17],[48537,18,48537,19],[48537,20,48537,21],[48537,22,48537,23],[48507,2,48507,3],[48507,4,48507,5],[48507,6,48507,7],[48507,8,48507,9],[48507,10,48507,11],[48507,12,48507,13],[48507,14,48507,15],[48507,16,48507,17],[48507,18,48507,19],[48507,20,48507,21],[48507,22,48507,23],[48513,2,48513,3],[48513,4,48513,5],[48513,6,48513,7],[48513,8,48513,9],[48513,10,48513,11],[48513,12,48513,13],[48513,14,48513,15],[48513,16,48513,17],[48513,18,48513,19],[48513,20,48513,21],[48513,22,48513,23],[48519,2,48519,3],[48519,4,48519,5],[48519,6,48519,7],[48519,8,48519,9],[48519,10,48519,11],[48519,12,48519,13],[48519,14,48519,15],[48519,16,48519,17],[48519,18,48519,19],[48519,20,48519,21],[48519,22,48519,23],[48489,2,48489,3],[48489,4,48489,5],[48489,6,48489,7],[48489,8,48489,9],[48489,10,48489,11],[48489,12,48489,13],[48489,14,48489,15],[48489,16,48489,17],[48489,18,48489,19],[48489,20,48489,21],[48489,22,48489,23],[48495,2,48495,3],[48495,4,48495,5],[48495,6,48495,7],[48495,8,48495,9],[48495,10,48495,11],[48495,12,48495,13],[48495,14,48495,15],[48495,16,48495,17],[48495,18,48495,19],[48495,20,48495,21],[48495,22,48495,23],[48501,2,48501,3],[48501,4,48501,5],[48501,6,48501,7],[48501,8,48501,9],[48501,10,48501,11],[48501,12,48501,13],[48501,14,48501,15],[48501,16,48501,17],[48501,18,48501,19],[48501,20,48501,21],[48501,22,48501,23],[48471,2,48471,3],[48471,4,48471,5],[48471,6,48471,7],[48471,8,48471,9],[48471,10,48471,11],[48471,12,48471,13],[48471,14,48471,15],[48471,16,48471,17],[48471,18,48471,19],[48471,20,48471,21],[48471,22,48471,23],[48477,2,48477,3],[48477,4,48477,5],[48477,6,48477,7],[48477,8,48477,9],[48477,10,48477,11],[48477,12,48477,13],[48477,14,48477,15],[48477,16,48477,17],[48477,18,48477,19],[48477,20,48477,21],[48477,22,48477,23],[48483,2,48483,3],[48483,4,48483,5],[48483,6,48483,7],[48483,8,48483,9],[48483,10,48483,11],[48483,12,48483,13],[48483,14,48483,15],[48483,16,48483,17],[48483,18,48483,19],[48483,20,48483,21],[48483,22,48483,23],[48453,2,48453,3],[48453,4,48453,5],[48453,6,48453,7],[48453,8,48453,9],[48453,10,48453,11],[48453,12,48453,13],[48453,14,48453,15],[48453,16,48453,17],[48453,18,48453,19],[48453,20,48453,21],[48453,22,48453,23],[48459,2,48459,3],[48459,4,48459,5],[48459,6,48459,7],[48459,8,48459,9],[48459,10,48459,11],[48459,12,48459,13],[48459,14,48459,15],[48459,16,48459,17],[48459,18,48459,19],[48459,20,48459,21],[48459,22,48459,23],[48465,2,48465,3],[48465,4,48465,5],[48465,6,48465,7],[48465,8,48465,9],[48465,10,48465,11],[48465,12,48465,13],[48465,14,48465,15],[48465,16,48465,17],[48465,18,48465,19],[48465,20,48465,21],[48465,22,48465,23],[48435,2,48435,3],[48435,4,48435,5],[48435,6,48435,7],[48435,8,48435,9],[48435,10,48435,11],[48435,12,48435,13],[48435,14,48435,15],[48435,16,48435,17],[48435,18,48435,19],[48435,20,48435,21],[48435,22,48435,23],[48441,2,48441,3],[48441,4,48441,5],[48441,6,48441,7],[48441,8,48441,9],[48441,10,48441,11],[48441,12,48441,13],[48441,14,48441,15],[48441,16,48441,17],[48441,18,48441,19],[48441,20,48441,21],[48441,22,48441,23],[48447,2,48447,3],[48447,4,48447,5],[48447,6,48447,7],[48447,8,48447,9],[48447,10,48447,11],[48447,12,48447,13],[48447,14,48447,15],[48447,16,48447,17],[48447,18,48447,19],[48447,20,48447,21],[48447,22,48447,23],[48417,2,48417,3],[48417,4,48417,5],[48417,6,48417,7],[48417,8,48417,9],[48417,10,48417,11],[48417,12,48417,13],[48417,14,48417,15],[48417,16,48417,17],[48417,18,48417,19],[48417,20,48417,21],[48417,22,48417,23],[48423,2,48423,3],[48423,4,48423,5],[48423,6,48423,7],[48423,8,48423,9],[48423,10,48423,11],[48423,12,48423,13],[48423,14,48423,15],[48423,16,48423,17],[48423,18,48423,19],[48423,20,48423,21],[48423,22,48423,23],[48429,2,48429,3],[48429,4,48429,5],[48429,6,48429,7],[48429,8,48429,9],[48429,10,48429,11],[48429,12,48429,13],[48429,14,48429,15],[48429,16,48429,17],[48429,18,48429,19],[48429,20,48429,21],[48429,22,48429,23],[48399,2,48399,3],[48399,4,48399,5],[48399,6,48399,7],[48399,8,48399,9],[48399,10,48399,11],[48399,12,48399,13],[48399,14,48399,15],[48399,16,48399,17],[48399,18,48399,19],[48399,20,48399,21],[48399,22,48399,23],[48405,2,48405,3],[48405,4,48405,5],[48405,6,48405,7],[48405,8,48405,9],[48405,10,48405,11],[48405,12,48405,13],[48405,14,48405,15],[48405,16,48405,17],[48405,18,48405,19],[48405,20,48405,21],[48405,22,48405,23],[48411,2,48411,3],[48411,4,48411,5],[48411,6,48411,7],[48411,8,48411,9],[48411,10,48411,11],[48411,12,48411,13],[48411,14,48411,15],[48411,16,48411,17],[48411,18,48411,19],[48411,20,48411,21],[48411,22,48411,23],[48381,2,48381,3],[48381,4,48381,5],[48381,6,48381,7],[48381,8,48381,9],[48381,10,48381,11],[48381,12,48381,13],[48381,14,48381,15],[48381,16,48381,17],[48381,18,48381,19],[48381,20,48381,21],[48381,22,48381,23],[48387,2,48387,3],[48387,4,48387,5],[48387,6,48387,7],[48387,8,48387,9],[48387,10,48387,11],[48387,12,48387,13],[48387,14,48387,15],[48387,16,48387,17],[48387,18,48387,19],[48387,20,48387,21],[48387,22,48387,23],[48393,2,48393,3],[48393,4,48393,5],[48393,6,48393,7],[48393,8,48393,9],[48393,10,48393,11],[48393,12,48393,13],[48393,14,48393,15],[48393,16,48393,17],[48393,18,48393,19],[48393,20,48393,21],[48393,22,48393,23],[48363,2,48363,3],[48363,4,48363,5],[48363,6,48363,7],[48363,8,48363,9],[48363,10,48363,11],[48363,12,48363,13],[48363,14,48363,15],[48363,16,48363,17],[48363,18,48363,19],[48363,20,48363,21],[48363,22,48363,23],[48369,2,48369,3],[48369,4,48369,5],[48369,6,48369,7],[48369,8,48369,9],[48369,10,48369,11],[48369,12,48369,13],[48369,14,48369,15],[48369,16,48369,17],[48369,18,48369,19],[48369,20,48369,21],[48369,22,48369,23],[48375,2,48375,3],[48375,4,48375,5],[48375,6,48375,7],[48375,8,48375,9],[48375,10,48375,11],[48375,12,48375,13],[48375,14,48375,15],[48375,16,48375,17],[48375,18,48375,19],[48375,20,48375,21],[48375,22,48375,23],[48345,2,48345,3],[48345,4,48345,5],[48345,6,48345,7],[48345,8,48345,9],[48345,10,48345,11],[48345,12,48345,13],[48345,14,48345,15],[48345,16,48345,17],[48345,18,48345,19],[48345,20,48345,21],[48345,22,48345,23],[48351,2,48351,3],[48351,4,48351,5],[48351,6,48351,7],[48351,8,48351,9],[48351,10,48351,11],[48351,12,48351,13],[48351,14,48351,15],[48351,16,48351,17],[48351,18,48351,19],[48351,20,48351,21],[48351,22,48351,23],[48357,2,48357,3],[48357,4,48357,5],[48357,6,48357,7],[48357,8,48357,9],[48357,10,48357,11],[48357,12,48357,13],[48357,14,48357,15],[48357,16,48357,17],[48357,18,48357,19],[48357,20,48357,21],[48357,22,48357,23],[48327,2,48327,3],[48327,4,48327,5],[48327,6,48327,7],[48327,8,48327,9],[48327,10,48327,11],[48327,12,48327,13],[48327,14,48327,15],[48327,16,48327,17],[48327,18,48327,19],[48327,20,48327,21],[48327,22,48327,23],[48333,2,48333,3],[48333,4,48333,5],[48333,6,48333,7],[48333,8,48333,9],[48333,10,48333,11],[48333,12,48333,13],[48333,14,48333,15],[48333,16,48333,17],[48333,18,48333,19],[48333,20,48333,21],[48333,22,48333,23],[48339,2,48339,3],[48339,4,48339,5],[48339,6,48339,7],[48339,8,48339,9],[48339,10,48339,11],[48339,12,48339,13],[48339,14,48339,15],[48339,16,48339,17],[48339,18,48339,19],[48339,20,48339,21],[48339,22,48339,23],[48309,2,48309,3],[48309,4,48309,5],[48309,6,48309,7],[48309,8,48309,9],[48309,10,48309,11],[48309,12,48309,13],[48309,14,48309,15],[48309,16,48309,17],[48309,18,48309,19],[48309,20,48309,21],[48309,22,48309,23],[48315,2,48315,3],[48315,4,48315,5],[48315,6,48315,7],[48315,8,48315,9],[48315,10,48315,11],[48315,12,48315,13],[48315,14,48315,15],[48315,16,48315,17],[48315,18,48315,19],[48315,20,48315,21],[48315,22,48315,23],[48321,2,48321,3],[48321,4,48321,5],[48321,6,48321,7],[48321,8,48321,9],[48321,10,48321,11],[48321,12,48321,13],[48321,14,48321,15],[48321,16,48321,17],[48321,18,48321,19],[48321,20,48321,21]],"merged_total":89485,"flags":["merged_cut"]}
[null,"B25119. MEDIAN HOUSEHOLD INCOME THE PAST 12 MONTHS (IN 2022 INFLATION-ADJUSTED DOLLARS) BY TENURE"]
[null," Universe:  OCCUPIED HOUSING UNITS"]
[null,"Data Set: 2018-2022 American Community Survey 5-Year Estimates"]
[]
[null,null,"Allenstown",null,"Andover",null,"Boscawen",null,"Bow",null,"Bradford",null,"Canterbury",null,"Chichester",null,"Concord",null,"Danbury",null,"Dunbarton",null,"Epsom",null,"Franklin",null,"Henniker",null,"Hill",null,"Hooksett",null,"Hopkinton",null,"Loudon",null,"Newbury",null,"New London",null,"Northfield",null,"Pembroke",null,"Pittsfield",null,"Salisbury",null,"Sutton",null,"Warner",null,"Webster",null,"Wilmot"]
[null,null,"Estimate","Margin Of Error","Estimate","Margin Of Error","Estimate","Margin Of Error","Estimate","Margin Of Error","Estimate","Margin Of Error","Estimate","Margin Of Error","Estimate","Margin Of Error","Estimate","Margin Of Error","Estimate","Margin Of Error","Estimate","Margin Of Error","Estimate","Margin Of Error","Estimate","Margin Of Error","Estimate","Margin Of Error","Estimate","Margin Of Error","Estimate","Margin Of Error","Estimate","Margin Of Error","Estimate","Margin Of Error","Estimate","Margin Of Error","Estimate","Margin Of Error","Estimate","Margin Of Error","Estimate","Margin Of Error","Estimate","Margin Of Error","Estimate","Margin Of Error","Estimate","Margin Of Error","Estimate","Margin Of Error","Estimate","Margin Of Error","Estimate","Margin Of Error"]
[null,"Median household income in the past 12 months"]
[null,"Total:",86591,16611,84292,13752,147951,9841,83833,17670,111094,23093,119306,16698,77874,3907,62500,14281,138036,25084,90805,9170,66942,10987,76681,20413,84167,17029,100321,11287,115682,13812,77065,21543,116250,12319,87237,31377,75108,8458,95396,12478,64564,12824,97917,16715,130568,24292,82500,23896,105417,13271,110917,13775,"-","**"]
[null,"Owner occupied (dollars)",95333,16900,92632,8801,156031,9252,91250,19385,113958,28503,119306,15318,106239,7740,63750,16443,146667,24074,95893,12761,85700,17636,118393,27605,90714,11152,110664,9320,125707,24842,86488,22486,121250,10060,107989,35351,87024,9955,107899,13091,94583,18788,98704,17991,131477,24823,111944,10869,110139,13483,115833,21258,"-","**"]
[null,"Renter occupied (dollars)",41042,17580,"-","**",65813,38202,55577,18925,"-","**",120000,112870,53037,4355,45972,19151,71250,47278,38304,14010,39625,16332,31180,6912,"-","**",72833,16275,76284,16623,"-","**",30156,10756,64219,28611,48462,15231,45952,25412,38250,5944,82344,6978,81250,56152,34375,16396,"-","**",63929,36870,"-","**"]
[]
[]
[]
[]
[]
[]
[]
[]
[]
[]
[]
[]
[]
[]
[]
[]
[]
[]
[]
[null,"B25119. MEDIAN HOUSEHOLD INCOME THE PAST 12 MONTHS (IN 2017 INFLATION-ADJUSTED DOLLARS) BY TENURE"]
[null," Universe:  OCCUPIED HOUSING UNITS"]
[null,"Data Set: 2013-2017 American Community Survey 5-Year Estimates"]
[]
[null,null,"Allenstown",null,"Andover",null,"Boscawen",null,"Bow",null,"Bradford",null,"Canterbury",null,"Chichester",null,"Concord",null,"Danbury",null,"Dunbarton",null,"Epsom",null,"Franklin",null,"Henniker",null,"Hill",null,"Hooksett",null,"Hopkinton",null,"Loudon",null,"Newbury",null,"New London",null,"Northfield",null,"Pembroke",null,"Pittsfield",null,"Salisbury",null,"Sutton",null,"Warner",null,"Webster",null,"Wilmot"]
[null,null,"Estimate","Margin Of Error","Estimate","Margin Of Error","Estimate","Margin Of Error","Estimate","Margin Of Error","Estimate","Margin Of Error","Estimate","Margin Of Error","Estimate","Margin Of Error","Estimate","Margin Of Error","Estimate","Margin Of Error","Estimate","Margin Of Error","Estimate","Margin Of Error","Estimate","Margin Of Error","Estimate","Margin Of Error","Estimate","Margin Of Error","Estimate","Margin Of Error","Estimate","Margin Of Error","Estimate","Margin Of Error","Estimate","Margin Of Error","Estimate","Margin Of Error","Estimate","Margin Of Error","Estimate","Margin Of Error","Estimate","Margin Of Error","Estimate","Margin Of Error","Estimate","Margin Of Error","Estimate","Margin Of Error","Estimate","Margin Of Error","Estimate"]
[null,"Median household income in the past 12 months"]
[null,"Total:",53448,4985,69489,9741,57235,9883,101413,7198,61324,5546,82847,8312,82928,9645,57566,3221,61058,5829,88333,8462,69583,8686,44490,3944,65776,5946,67917,9120,84159,3288,90701,16457,68750,14705,91324,9931,70893,18270,65690,7885,77845,11284,49087,3610,67438,6901,82321,12032,72865,5281,69250,8218,60673,7986]
[null,"Owner occupied (dollars)",58705,7938,72500,16592,71364,12072,109759,7685,62500,10454,85769,8650,84375,6460,82610,3547,62356,10136,94286,9376,79855,14792,65000,6908,83138,5474,69167,12024,92417,7112,98605,14800,75018,14955,92708,9635,89018,18028,80880,13910,89712,11296,70417,11028,69013,8178,84514,8644,75819,6046,74417,10699,67981,8448]
[null,"Renter occupied (dollars)",30817,13271,29464,27731,26563,13679,31625,7986,31250,16336,19519,2887,51429,19882,38640,4189,52891,14813,59545,20853,32308,7933,27889,2261,25735,12865,65625,38023,37292,11231,47188,4361,58173,43633,69250,20330,41295,25751,41806,16404,32477,28331,21036,9847,"-","**",60795,33126,45481,22866,43438,15925,50486,10249]
[]
[]
[]
[]
[]
[]
[]
[]
[]
[]
[]
[]
[]
[]
[]
[]
[]
[]
[]
[null,"B25119. MEDIAN HOUSEHOLD INCOME THE PAST 12 MONTHS (IN 2012 INFLATION-ADJUSTED DOLLARS) BY TENURE"]
[null," Universe:  OCCUPIED HOUSING UNITS"]
[null,"Data Set: 2008-2012 American Community Survey 5-Year Estimates"]
[]
[null,null,"Allenstown",null,"Andover",null,"Boscawen",null,"Bow",null,"Bradford",null,"Canterbury",null,"Chichester",null,"Concord",null,"Danbury",null,"Dunbarton",null,"Epsom",null,"Franklin",null,"Henniker",null,"Hill",null,"Hooksett",null,"Hopkinton",null,"Loudon",null,"Newbury",null,"New London",null,"Northfield",null,"Pembroke",null,"Pittsfield",null,"Salisbury",null,"Sutton",null,"Warner",null,"Webster",null,"Wilmot"]
[null,null,"Esitimate","Margin Of Error","Esitimate","Margin Of Error","Esitimate","Margin Of Error","Esitimate","Margin Of Error","Esitimate","Margin Of Error","Esitimate","Margin Of Error","Esitimate","Margin Of Error","Esitimate","Margin Of Error","Esitimate","Margin Of Error","Esitimate","Margin Of Error","Esitimate","Margin Of Error","Esitimate","Margin Of Error","Esitimate","Margin Of Error","Esitimate","Margin Of Error","Esitimate","Margin Of Error","Esitimate","Margin Of Error","Esitimate","Margin Of Error","Esitimate","Margin Of Error","Esitimate","Margin Of Error","Esitimate","Margin Of Error","Esitimate","Margin Of Error","Esitimate","Margin Of Error","Esitimate","Margin Of Error","Esitimate","Margin Of Error","Esitimate","Margin Of Error","Esitimate","Margin Of Error","Esitimate"]
[null,"Median household income in the past 12 months"]
[null,"Total:",58159,9075,67900,7535,61368,7684,106593,12039,63750,11002,79453,4721,76917,9782,54163,2574,46845,8999,99190,6456,73092,6647,44332,9161,70417,23303,56979,14318,85064,4044,84042,4058,77903,11306,66771,11481,66776,11364,58368,5618,64575,9359,58302,4985,68387,4329,71146,13218,58221,10254,67105,5885,74138,8021]
[null,"Owner occupied (dollars)",71216,12731,70326,7273,69432,9098,118977,15753,71149,4169,82328,5424,74861,9937,76461,3464,56319,13174,99688,8267,78551,8063,62619,8324,99306,17252,62375,19473,88179,5791,85422,6867,81000,10514,67500,11564,82757,15294,61958,6723,80690,13880,66652,10217,68710,3531,76450,7297,62583,13544,70521,7244,75795,8812]
[null,"Renter occupied (dollars)",24588,8048,46618,40639,34659,21835,27552,10033,34063,24133,26250,7181,131176,53921,34778,3951,34750,18424,66500,110613,36875,32603,23212,4621,28125,30903,36250,27013,56181,16961,55536,40498,39681,28413,64125,15193,21339,28070,28971,4109,28652,5902,38844,8676,26250,62890,46500,25335,45625,9922,40208,22483,51375,14846]

{"sheet":"ACS_Table_B25001","index":41,"n_rows":29,"n_cols":56,"rows_kept":29,"cut":false,"hidden":true,"merged":[]}
[null,"B25001. HOUSING UNITS"]
[null,"Universe:  HOUSING UNITS"]
[null,"Data Set: 2018-2022 American Community Survey 5-Year Estimates"]
[]
[null,null,"Allenstown",null,"Andover",null,"Boscawen",null,"Bow",null,"Bradford",null,"Canterbury",null,"Chichester",null,"Concord",null,"Danbury",null,"Dunbarton",null,"Epsom",null,"Franklin",null,"Henniker",null,"Hill",null,"Hooksett",null,"Hopkinton",null,"Loudon",null,"Newbury",null,"New London",null,"Northfield",null,"Pembroke",null,"Pittsfield",null,"Salisbury",null,"Sutton",null,"Warner",null,"Webster",null,"Wilmot"]
[null,null,"Estimate","Margin Of Error","Estimate","Margin Of Error","Estimate","Margin Of Error","Estimate","Margin Of Error","Estimate","Margin Of Error","Estimate","Margin Of Error","Estimate","Margin Of Error","Estimate","Margin Of Error","Estimate","Margin Of Error","Estimate","Margin Of Error","Estimate","Margin Of Error","Estimate","Margin Of Error","Estimate","Margin Of Error","Estimate","Margin Of Error","Estimate","Margin Of Error","Estimate","Margin Of Error","Estimate","Margin Of Error","Estimate","Margin Of Error","Estimate","Margin Of Error","Estimate","Margin Of Error","Estimate","Margin Of Error","Estimate","Margin Of Error","Estimate","Margin Of Error","Estimate","Margin Of Error","Estimate","Margin Of Error","Estimate","Margin Of Error","Estimate","Margin Of Error"]
[null,"Total",1881,198,1059,122,1434,145,2922,130,851,66,990,91,1071,73,18864,463,769,103,1089,98,1939,152,4150,332,2560,206,406,62,5294,327,2465,216,2442,225,1513,140,2424,170,2028,150,2711,198,1970,174,730,132,1154,154,1426,125,883,108,719,90]
[]
[]
[]
[]
[null,"B25001. HOUSING UNITS"]
[null,"Universe:  HOUSING UNITS"]
[null,"Data Set: 2013-2017 American Community Survey 5-Year Estimates"]
[]
[null,null,"Allenstown",null,"Andover",null,"Boscawen",null,"Bow",null,"Bradford",null,"Canterbury",null,"Chichester",null,"Concord",null,"Danbury",null,"Dunbarton",null,"Epsom",null,"Franklin",null,"Henniker",null,"Hill",null,"Hooksett",null,"Hopkinton",null,"Loudon",null,"Newbury",null,"New London",null,"Northfield",null,"Pembroke",null,"Pittsfield",null,"Salisbury",null,"Sutton",null,"Warner",null,"Webster",null,"Wilmot"]
[null,null,"Estimate","Margin Of Error","Estimate","Margin Of Error","Estimate","Margin Of Error","Estimate","Margin Of Error","Estimate","Margin Of Error","Estimate","Margin Of Error","Estimate","Margin Of Error","Estimate","Margin Of Error","Estimate","Margin Of Error","Estimate","Margin Of Error","Estimate","Margin Of Error","Estimate","Margin Of Error","Estimate","Margin Of Error","Estimate","Margin Of Error","Estimate","Margin Of Error","Estimate","Margin Of Error","Estimate","Margin Of Error","Estimate","Margin Of Error","Estimate","Margin Of Error","Estimate","Margin Of Error","Estimate","Margin Of Error","Estimate","Margin Of Error","Estimate","Margin Of Error","Estimate","Margin Of Error","Estimate","Margin Of Error","Estimate","Margin Of Error","Estimate","Margin Of Error"]
[null,"Total",1769,132,1251,71,1381,146,2948,140,913,89,1056,39,1083,57,18345,413,735,68,1097,48,1904,146,4118,251,2033,179,498,55,5248,213,2290,130,2148,190,1657,128,2248,197,1828,96,2892,177,1671,124,596,68,1019,109,1325,95,924,60,734,66]
[]
[]
[]
[]
[null,"B25001. HOUSING UNITS"]
[null,"Universe:  HOUSING UNITS"]
[null,"Data Set: 2008-2012 American Community Survey 5-Year Estimates"]
[]
[null,null,"Allenstown",null,"Andover",null,"Boscawen",null,"Bow",null,"Bradford",null,"Canterbury",null,"Chichester",null,"Concord",null,"Danbury",null,"Dunbarton",null,"Epsom",null,"Franklin",null,"Henniker",null,"Hill",null,"Hooksett",null,"Hopkinton",null,"Loudon",null,"Newbury",null,"New London",null,"Northfield",null,"Pembroke",null,"Pittsfield",null,"Salisbury",null,"Sutton",null,"Warner",null,"Webster",null,"Wilmot"]
[null,null,"Estimate","Margin Of Error","Estimate","Margin Of Error","Estimate","Margin Of Error","Estimate","Margin Of Error","Estimate","Margin Of Error","Estimate","Margin Of Error","Estimate","Margin Of Error","Estimate","Margin Of Error","Estimate","Margin Of Error","Estimate","Margin Of Error","Estimate","Margin Of Error","Estimate","Margin Of Error","Estimate","Margin Of Error","Estimate","Margin Of Error","Estimate","Margin Of Error","Estimate","Margin Of Error","Estimate","Margin Of Error","Estimate","Margin Of Error","Estimate","Margin Of Error","Estimate","Margin Of Error","Estimate","Margin Of Error","Estimate","Margin Of Error","Estimate","Margin Of Error","Estimate","Margin Of Error","Estimate","Margin Of Error","Estimate","Margin Of Error","Estimate","Margin Of Error"]
[null,"Total",1763,147,1124,72,1535,224,2644,119,831,72,1023,34,941,51,19050,444,658,62,1118,65,1839,124,3816,210,1954,189,506,60,4817,199,2555,149,2042,107,1504,102,2316,193,1919,181,3227,205,1682,165,584,69,936,93,1375,116,867,86,668,65]

{"sheet":"ACS_Table_B25003","index":42,"n_rows":42,"n_cols":56,"rows_kept":42,"cut":false,"hidden":true,"merged":[]}
[null,"B25003. TENURE"]
[null,"Universe:  OCCUPIED HOUSING UNITS"]
[null,"Data Set: 2018-2022 American Community Survey 5-Year Estimates"]
[]
[null,null,"Allenstown",null,"Andover",null,"Boscawen",null,"Bow",null,"Bradford",null,"Canterbury",null,"Chichester",null,"Concord",null,"Danbury",null,"Dunbarton",null,"Epsom",null,"Franklin",null,"Henniker",null,"Hill",null,"Hooksett",null,"Hopkinton",null,"Loudon",null,"Newbury",null,"New London",null,"Northfield",null,"Pembroke",null,"Pittsfield",null,"Salisbury",null,"Sutton",null,"Warner",null,"Webster",null,"Wilmot"]
[null,null,"Estimate","Margin Of Error","Estimate","Margin Of Error","Estimate","Margin Of Error","Estimate","Margin Of Error","Estimate","Margin Of Error","Estimate","Margin Of Error","Estimate","Margin Of Error","Estimate","Margin Of Error","Estimate","Margin Of Error","Estimate","Margin Of Error","Estimate","Margin Of Error","Estimate","Margin Of Error","Estimate","Margin Of Error","Estimate","Margin Of Error","Estimate","Margin Of Error","Estimate","Margin Of Error","Estimate","Margin Of Error","Estimate","Margin Of Error","Estimate","Margin Of Error","Estimate","Margin Of Error","Estimate","Margin Of Error","Estimate","Margin Of Error","Estimate","Margin Of Error","Estimate","Margin Of Error","Estimate","Margin Of Error","Estimate","Margin Of Error","Estimate","Margin Of Error"]
[null,"Total:",1812,193,878,119,1380,140,2895,133,632,73,920,96,1011,63,17955,443,672,112,1061,89,1844,139,3717,321,2397,206,318,54,5110,285,2168,194,2276,183,747,99,1636,129,1906,134,2627,196,1801,141,623,122,846,149,1200,89,795,103,624,90]
[null,"Owner occupied",1439,167,794,120,1056,125,2630,153,564,66,865,95,939,81,10275,455,625,114,1018,88,1640,126,2308,311,1545,230,298,49,4044,282,1912,206,1957,195,653,97,1485,137,1410,135,1997,205,1221,146,600,122,808,150,824,76,758,99,488,77]
[null,"Renter occupied",373,153,84,44,324,94,265,91,68,35,55,36,72,45,7680,442,47,32,43,22,204,81,1409,255,852,272,20,20,1066,219,256,146,319,181,94,40,151,69,496,124,630,156,580,158,23,21,38,21,376,90,37,23,136,56]
[]
[]
[]
[]
[]
[]
[]
[]
[]
[]
[]
[]
[null,"B25003. TENURE"]
[null,"Universe:  OCCUPIED HOUSING UNITS"]
[null,"Data Set: 2013-2017 American Community Survey 5-Year Estimates"]
[]
[null,null,"Allenstown",null,"Andover",null,"Boscawen",null,"Bow",null,"Bradford",null,"Canterbury",null,"Chichester",null,"Concord",null,"Danbury",null,"Dunbarton",null,"Epsom",null,"Franklin",null,"Henniker",null,"Hill",null,"Hooksett",null,"Hopkinton",null,"Loudon",null,"Newbury",null,"New London",null,"Northfield",null,"Pembroke",null,"Pittsfield",null,"Salisbury",null,"Sutton",null,"Warner",null,"Webster",null,"Wilmot"]
[null,null,"Estimate","Margin Of Error","Estimate","Margin Of Error","Estimate","Margin Of Error","Estimate","Margin Of Error","Estimate","Margin Of Error","Estimate","Margin Of Error","Estimate","Margin Of Error","Estimate","Margin Of Error","Estimate","Margin Of Error","Estimate","Margin Of Error","Estimate","Margin Of Error","Estimate","Margin Of Error","Estimate","Margin Of Error","Estimate","Margin Of Error","Estimate","Margin Of Error","Estimate","Margin Of Error","Estimate","Margin Of Error","Estimate","Margin Of Error","Estimate","Margin Of Error","Estimate","Margin Of Error","Estimate","Margin Of Error","Estimate","Margin Of Error","Estimate","Margin Of Error","Estimate","Margin Of Error","Estimate","Margin Of Error","Estimate","Margin Of Error","Estimate","Margin Of Error"]
[null,"Total:",1690,118,1071,84,1241,126,2846,103,646,79,895,69,991,48,17011,407,568,64,1020,45,1751,119,3494,212,1690,144,400,46,5143,201,2057,114,2024,165,822,89,1678,160,1770,84,2608,145,1586,115,535,63,772,100,1048,93,781,56,652,64]
[null,"Owner occupied",1223,125,914,83,856,140,2501,111,584,82,846,67,903,62,9069,391,487,62,922,51,1419,117,1974,176,1168,141,366,46,4146,207,1822,132,1745,167,773,92,1267,123,1311,101,1881,195,921,128,503,61,667,99,783,85,685,54,509,63]
[null,"Renter occupied",467,107,157,66,385,91,345,88,62,23,49,31,88,39,7942,349,81,39,98,40,332,112,1520,196,522,105,34,18,997,142,235,84,279,114,49,31,411,118,459,106,727,202,665,131,32,26,105,43,265,65,96,35,143,45]
[]
[]
[]
[null,"B25003. TENURE"]
[null,"Universe:  OCCUPIED HOUSING UNITS"]
[null,"Data Set: 2008-2012 American Community Survey 5-Year Estimates"]
[]
[null,null,"Allenstown",null,"Andover",null,"Boscawen",null,"Bow",null,"Bradford",null,"Canterbury",null,"Chichester",null,"Concord",null,"Danbury",null,"Dunbarton",null,"Epsom",null,"Franklin",null,"Henniker",null,"Hill",null,"Hooksett",null,"Hopkinton",null,"Loudon",null,"Newbury",null,"New London",null,"Northfield",null,"Pembroke",null,"Pittsfield",null,"Salisbury",null,"Sutton",null,"Warner",null,"Webster",null,"Wilmot"]
[null,null,"Estimate","Margin Of Error","Estimate","Margin Of Error","Estimate","Margin Of Error","Estimate","Margin Of Error","Estimate","Margin Of Error","Estimate","Margin Of Error","Estimate","Margin Of Error","Estimate","Margin Of Error","Estimate","Margin Of Error","Estimate","Margin Of Error","Estimate","Margin Of Error","Estimate","Margin Of Error","Estimate","Margin Of Error","Estimate","Margin Of Error","Estimate","Margin Of Error","Estimate","Margin Of Error","Estimate","Margin Of Error","Estimate","Margin Of Error","Estimate","Margin Of Error","Estimate","Margin Of Error","Estimate","Margin Of Error","Estimate","Margin Of Error","Estimate","Margin Of Error","Estimate","Margin Of Error","Estimate","Margin Of Error","Estimate","Margin Of Error","Estimate","Margin Of Error"]
[null,"Total:",1693,132,950,87,1392,199,2577,105,607,65,954,55,941,51,18007,432,461,66,1041,59,1626,106,3375,167,1689,158,445,57,4729,192,2373,132,1912,107,823,86,1672,166,1782,150,2980,168,1528,125,508,63,647,81,1069,68,724,75,540,65]
[null,"Owner occupied",1072,170,814,100,1099,162,2322,112,506,65,886,56,889,57,9978,412,353,60,917,71,1485,117,2094,202,1113,134,407,51,4085,210,2169,174,1662,141,794,84,1393,147,1390,186,2150,206,1079,118,472,61,573,75,879,75,659,63,485,65]
[null,"Renter occupied",621,150,136,58,293,100,255,68,101,37,68,25,52,36,8029,384,108,42,124,47,141,61,1281,186,576,146,38,27,644,141,204,103,250,99,29,21,279,101,392,109,830,133,449,103,36,23,74,40,190,52,65,31,55,36]

{"sheet":"ACS_Table_B25004","index":43,"n_rows":56,"n_cols":56,"rows_kept":56,"cut":false,"hidden":true,"merged":[]}
[null,"B25004. VACANCY STATUS"]
[null,"Universe:  VACANT HOUSING UNITS"]
[null,"Data Set: 2018-2022 American Community Survey 5-Year Estimates"]
[]
[null,null,"Allenstown",null,"Andover",null,"Boscawen",null,"Bow",null,"Bradford",null,"Canterbury",null,"Chichester",null,"Concord",null,"Danbury",null,"Dunbarton",null,"Epsom",null,"Franklin",null,"Henniker",null,"Hill",null,"Hooksett",null,"Hopkinton",null,"Loudon",null,"Newbury",null,"New London",null,"Northfield",null,"Pembroke",null,"Pittsfield",null,"Salisbury",null,"Sutton",null,"Warner",null,"Webster",null,"Wilmot"]
[null,null,"Estimate","Margin Of Error","Estimate","Margin Of Error","Estimate","Margin Of Error","Estimate","Margin Of Error","Estimate","Margin Of Error","Estimate","Margin Of Error","Estimate","Margin Of Error","Estimate","Margin Of Error","Estimate","Margin Of Error","Estimate","Margin Of Error","Estimate","Margin Of Error","Estimate","Margin Of Error","Estimate","Margin Of Error","Estimate","Margin Of Error","Estimate","Margin Of Error","Estimate","Margin Of Error","Estimate","Margin Of Error","Estimate","Margin Of Error","Estimate","Margin Of Error","Estimate","Margin Of Error","Estimate","Margin Of Error","Estimate","Margin Of Error","Estimate","Margin Of Error","Estimate","Margin Of Error","Estimate","Margin Of Error","Estimate","Margin Of Error","Estimate","Margin Of Error"]
[null,"Total:",69,71,181,72,54,60,27,32,219,54,70,53,60,45,909,211,97,40,28,28,95,81,433,149,163,98,88,41,184,116,297,128,166,124,766,124,788,131,122,83,84,95,169,96,107,47,308,95,226,75,88,41,95,40]
[null,"For rent",0,12,15,23,0,12,0,17,0,12,0,12,0,12,226,96,0,12,0,12,0,12,62,71,24,39,0,12,79,77,0,17,0,17,28,30,31,27,48,71,27,41,26,42,17,20,10,15,59,51,0,12,10,16]
[null,"Rented, not occupied",9,15,0,12,0,12,7,12,10,16,0,12,0,12,55,53,0,12,0,12,0,12,34,51,35,48,0,12,45,52,0,17,0,17,0,12,20,24,0,12,0,17,32,52,0,12,0,12,0,12,0,12,0,12]
[null,"For sale only",0,12,5,7,0,12,0,17,0,12,0,12,0,12,5,9,0,12,0,12,31,52,40,46,0,17,0,12,0,19,46,57,0,17,0,12,0,12,10,15,0,17,0,12,0,12,4,6,0,12,0,12,0,12]
[null,"Sold, not occupied",21,36,0,12,10,16,0,17,0,12,12,21,14,22,30,30,0,12,0,12,0,12,0,17,0,17,0,12,0,19,37,57,20,35,31,42,0,12,0,12,0,17,35,48,0,12,31,37,0,12,8,12,0,12]
[null,"For seasonal, recreational, or occasional use",0,12,146,69,11,17,0,17,204,55,39,39,27,30,109,76,67,43,15,18,35,44,170,88,87,65,73,37,0,19,181,111,0,17,679,120,714,138,38,50,0,17,50,53,86,42,216,74,125,57,71,37,80,37]
[null,"For migrant workers",0,12,0,12,0,12,0,17,0,12,0,12,0,12,0,25,0,12,0,12,0,12,0,17,0,17,0,12,0,19,0,17,0,17,0,12,0,12,0,12,0,17,0,12,0,12,0,12,0,12,0,12,0,12]
[null,"Other vacant",39,60,15,25,33,54,20,31,5,8,19,31,19,31,484,195,30,23,13,22,29,47,127,96,17,27,15,15,60,67,33,54,146,122,28,26,23,27,26,33,57,88,26,41,4,6,47,35,42,40,9,14,5,8]
[]
[]
[]
[]
[]
[]
[]
[null,"B25004. VACANCY STATUS"]
[null,"Universe:  VACANT HOUSING UNITS"]
[null,"Data Set: 2013-2017 American Community Survey 5-Year Estimates"]
[]
[null,null,"Allenstown",null,"Andover",null,"Boscawen",null,"Bow",null,"Bradford",null,"Canterbury",null,"Chichester",null,"Concord",null,"Danbury",null,"Dunbarton",null,"Epsom",null,"Franklin",null,"Henniker",null,"Hill",null,"Hooksett",null,"Hopkinton",null,"Loudon",null,"Newbury",null,"New London",null,"Northfield",null,"Pembroke",null,"Pittsfield",null,"Salisbury",null,"Sutton",null,"Warner",null,"Webster",null,"Wilmot"]
[null,null,"Estimate","Margin Of Error","Estimate","Margin Of Error","Estimate","Margin Of Error","Estimate","Margin Of Error","Estimate","Margin Of Error","Estimate","Margin Of Error","Estimate","Margin Of Error","Estimate","Margin Of Error","Estimate","Margin Of Error","Estimate","Margin Of Error","Estimate","Margin Of Error","Estimate","Margin Of Error","Estimate","Margin Of Error","Estimate","Margin Of Error","Estimate","Margin Of Error","Estimate","Margin Of Error","Estimate","Margin Of Error","Estimate","Margin Of Error","Estimate","Margin Of Error","Estimate","Margin Of Error","Estimate","Margin Of Error","Estimate","Margin Of Error","Estimate","Margin Of Error","Estimate","Margin Of Error","Estimate","Margin Of Error","Estimate","Margin Of Error","Estimate","Margin Of Error"]
[null,"Total:",79,71,180,57,140,76,102,77,267,63,161,60,92,40,1334,242,167,52,77,45,153,85,624,144,343,116,98,42,105,74,233,123,124,89,835,108,570,118,58,63,284,186,85,65,61,29,247,61,277,62,143,39,82,42]
[null,"For rent",0,11,0,11,30,42,0,15,0,11,0,11,12,19,268,113,0,11,0,11,18,30,208,98,41,46,0,11,27,44,0,15,36,55,14,21,0,11,0,11,0,15,21,32,0,11,0,11,0,11,0,11,5,7]
[null,"Rented, not occupied",0,11,0,11,19,31,0,15,0,11,0,11,15,24,218,124,0,11,0,11,0,11,0,15,52,46,0,11,0,17,0,15,0,15,0,11,0,11,0,11,0,15,24,38,0,11,8,13,0,11,0,11,0,11]
[null,"For sale only",30,48,11,17,0,11,0,15,16,17,38,32,26,30,136,94,5,7,30,29,62,56,23,38,0,11,7,11,31,48,33,50,0,15,13,20,53,49,0,11,0,15,22,35,0,11,16,18,67,44,3,4,0,11]
[null,"Sold, not occupied",0,11,0,11,0,11,38,51,9,14,16,22,0,11,27,42,0,11,0,11,0,11,24,33,0,11,0,11,0,17,33,50,21,34,0,11,30,34,0,11,35,53,0,11,0,11,0,11,0,11,0,11,11,17]
[null,"For seasonal, recreational, or occasional use",0,11,151,54,21,32,0,15,196,57,74,40,25,26,220,103,115,47,41,32,49,45,120,61,187,86,60,31,0,17,167,102,48,59,750,102,463,112,27,42,108,109,8,12,61,29,184,52,153,57,97,35,48,30]
[null,"For migrant workers",0,11,0,11,27,41,0,15,0,11,0,11,0,11,0,23,0,11,0,11,0,11,0,15,0,11,0,11,0,17,0,15,0,15,0,11,0,11,0,11,0,15,0,11,0,11,0,11,0,11,0,11,0,11]
[null,"Other vacant",49,54,18,28,43,35,64,56,46,34,33,34,14,21,465,152,47,25,6,9,24,36,249,114,63,48,31,25,47,44,0,15,19,32,58,45,24,28,31,47,141,122,10,21,0,11,39,29,57,39,43,27,18,20]
[]
[]
[]
[]
[]
[]
[]
[null,"B25004. VACANCY STATUS"]
[null,"Universe:  VACANT HOUSING UNITS"]
[null,"Data Set: 2008-2012 American Community Survey 5-Year Estimates"]
[]
[null,null,"Allenstown",null,"Andover",null,"Boscawen",null,"Bow",null,"Bradford",null,"Canterbury",null,"Chichester",null,"Concord",null,"Danbury",null,"Dunbarton",null,"Epsom",null,"Franklin",null,"Henniker",null,"Hill",null,"Hooksett",null,"Hopkinton",null,"Loudon",null,"Newbury",null,"New London",null,"Northfield",null,"Pembroke",null,"Pittsfield",null,"Salisbury",null,"Sutton",null,"Warner",null,"Webster",null,"Wilmot"]
[null,null,"Estimate","Margin Of Error","Estimate","Margin Of Error","Estimate","Margin Of Error","Estimate","Margin Of Error","Estimate","Margin Of Error","Estimate","Margin Of Error","Estimate","Margin Of Error","Estimate","Margin Of Error","Estimate","Margin Of Error","Estimate","Margin Of Error","Estimate","Margin Of Error","Estimate","Margin Of Error","Estimate","Margin Of Error","Estimate","Margin Of Error","Estimate","Margin Of Error","Estimate","Margin Of Error","Estimate","Margin Of Error","Estimate","Margin Of Error","Estimate","Margin Of Error","Estimate","Margin Of Error","Estimate","Margin Of Error","Estimate","Margin Of Error","Estimate","Margin Of Error","Estimate","Margin Of Error","Estimate","Margin Of Error","Estimate","Margin Of Error","Estimate","Margin Of Error"]
[null,"Total:",70,73,174,64,143,84,67,59,224,49,69,53,0,85,1043,247,197,56,77,59,213,109,441,170,265,113,61,31,88,96,182,133,130,75,681,108,644,120,137,96,247,137,154,93,76,36,289,62,306,89,143,53,128,43]
[null,"For rent",0,85,18,28,0,85,0,85,0,85,0,85,0,85,515,184,0,85,0,85,0,85,94,89,23,38,0,85,52,77,0,85,0,85,0,85,0,85,41,46,0,85,59,59,0,85,14,17,20,31,0,85,0,85]
[null,"Rented, not occupied",34,54,0,85,0,85,0,85,0,85,0,85,0,85,7,11,0,85,0,85,9,14,0,85,18,29,0,85,0,85,0,85,0,85,0,85,0,85,0,85,28,44,0,85,0,85,0,85,13,19,9,13,0,85]
[null,"For sale only",36,56,0,85,0,85,0,85,15,16,0,85,0,85,73,73,13,16,0,85,57,62,79,61,0,85,0,85,36,59,0,85,0,85,54,54,69,59,0,85,78,73,25,40,3,4,26,24,29,36,0,85,9,10]
[null,"Sold, not occupied",0,85,0,85,24,37,40,45,0,85,0,85,0,85,81,72,9,14,0,85,0,85,0,85,0,85,0,85,0,85,0,85,13,21,0,85,26,31,0,85,0,85,37,56,0,85,19,21,0,85,0,85,0,85]
[null,"For seasonal, recreational, or occasional use",0,85,122,43,0,85,0,85,156,41,60,52,0,85,68,71,150,49,42,47,84,75,177,104,142,83,41,26,0,85,128,115,89,64,609,98,532,127,63,70,36,53,9,13,69,34,176,51,168,76,85,44,110,40]
[null,"For migrant workers",0,85,0,85,0,85,0,85,0,85,0,85,0,85,0,85,0,85,0,85,0,85,0,85,0,85,0,85,0,85,0,85,0,85,0,85,0,85,0,85,0,85,0,85,0,85,0,85,0,85,0,85,0,85]
[null,"Other vacant",0,85,34,32,119,87,27,44,53,28,9,15,0,85,299,150,25,26,35,42,63,65,91,90,82,74,20,18,0,85,54,83,28,44,18,20,17,28,33,54,105,90,24,39,4,7,54,36,76,67,49,32,9,10]

{"sheet":"ACS_Table_B25008","index":44,"n_rows":51,"n_cols":56,"rows_kept":51,"cut":false,"hidden":true,"merged":[]}
[null,"B25008. TOTAL POPULATION IN OCCUPIED HOUSING UNITS BY TENURE"]
[null,"Universe:  TOTAL POPULATION IN OCCUPIED HOUSING UNITS"]
[null,"Data Set: 2018-2022 American Community Survey 5-Year Estimates"]
[]
[null,null,"Allenstown",null,"Andover",null,"Boscawen",null,"Bow",null,"Bradford",null,"Canterbury",null,"Chichester",null,"Concord",null,"Danbury",null,"Dunbarton",null,"Epsom",null,"Franklin",null,"Henniker",null,"Hill",null,"Hooksett",null,"Hopkinton",null,"Loudon",null,"Newbury",null,"New London",null,"Northfield",null,"Pembroke",null,"Pittsfield",null,"Salisbury",null,"Sutton",null,"Warner",null,"Webster",null,"Wilmot"]
[null,null,"Estimate","Margin Of Error","Estimate","Margin Of Error","Estimate","Margin Of Error","Estimate","Margin Of Error","Estimate","Margin Of Error","Estimate","Margin Of Error","Estimate","Margin Of Error","Estimate","Margin Of Error","Estimate","Margin Of Error","Estimate","Margin Of Error","Estimate","Margin Of Error","Estimate","Margin Of Error","Estimate","Margin Of Error","Estimate","Margin Of Error","Estimate","Margin Of Error","Estimate","Margin Of Error","Estimate","Margin Of Error","Estimate","Margin Of Error","Estimate","Margin Of Error","Estimate","Margin Of Error","Estimate","Margin Of Error","Estimate","Margin Of Error","Estimate","Margin Of Error","Estimate","Margin Of Error","Estimate","Margin Of Error","Estimate","Margin Of Error","Estimate","Margin Of Error"]
[null,"Total:",4650,22,2041,307,3514,45,8235,19,1565,172,2299,242,2679,28,41063,91,1491,261,3000,55,4733,29,8495,22,5478,31,839,182,13957,44,5925,20,5603,21,1911,255,3517,24,4847,27,7299,36,4084,18,1594,365,2254,451,2782,35,2078,315,1495,217]
[null,"Owner occupied",3918,324,1924,309,2955,173,7772,205,1400,151,2169,250,2457,135,25628,941,1336,217,2916,75,4423,118,5416,617,4142,439,806,184,11528,560,5329,405,4988,349,1803,260,3224,146,3850,257,5881,449,3127,347,1494,369,2153,443,2120,186,2019,310,1203,216]
[null,"Renter occupied",732,324,117,59,559,169,463,207,165,122,130,83,222,136,15435,948,155,123,84,47,310,117,3079,615,1336,439,33,29,2429,562,596,404,615,349,108,45,293,145,997,256,1418,442,957,344,100,91,101,64,662,187,59,40,292,115]
[]
[]
[]
[]
[]
[]
[]
[]
[]
[]
[]
[]
[null,"B25008. TOTAL POPULATION IN OCCUPIED HOUSING UNITS BY TENURE"]
[null,"Universe:  TOTAL POPULATION IN OCCUPIED HOUSING UNITS"]
[null,"Data Set: 2013-2017 American Community Survey 5-Year Estimates"]
[]
[null,null,"Allenstown",null,"Andover",null,"Boscawen",null,"Bow",null,"Bradford",null,"Canterbury",null,"Chichester",null,"Concord",null,"Danbury",null,"Dunbarton",null,"Epsom",null,"Franklin",null,"Henniker",null,"Hill",null,"Hooksett",null,"Hopkinton",null,"Loudon",null,"Newbury",null,"New London",null,"Northfield",null,"Pembroke",null,"Pittsfield",null,"Salisbury",null,"Sutton",null,"Warner",null,"Webster",null,"Wilmot"]
[null,null,"Estimate","Margin Of Error","Estimate","Margin Of Error","Estimate","Margin Of Error","Estimate","Margin Of Error","Estimate","Margin Of Error","Estimate","Margin Of Error","Estimate","Margin Of Error","Estimate","Margin Of Error","Estimate","Margin Of Error","Estimate","Margin Of Error","Estimate","Margin Of Error","Estimate","Margin Of Error","Estimate","Margin Of Error","Estimate","Margin Of Error","Estimate","Margin Of Error","Estimate","Margin Of Error","Estimate","Margin Of Error","Estimate","Margin Of Error","Estimate","Margin Of Error","Estimate","Margin Of Error","Estimate","Margin Of Error","Estimate","Margin Of Error","Estimate","Margin Of Error","Estimate","Margin Of Error","Estimate","Margin Of Error","Estimate","Margin Of Error","Estimate","Margin Of Error"]
[null,"Total:",4273,22,2549,241,3420,206,7680,33,1633,192,2190,209,2577,17,39682,527,1294,161,2805,42,4537,114,8215,112,4338,108,1022,143,13180,217,5601,24,5368,16,1885,221,3564,201,4771,47,7116,27,4056,39,1299,166,1958,277,2722,52,1890,154,1502,176]
[null,"Owner occupied",3247,255,2179,238,2411,311,6929,246,1431,197,2135,209,2304,126,23377,933,1130,163,2562,117,3787,310,4830,457,3084,311,931,141,11038,393,5115,214,4686,324,1750,224,2830,247,3588,291,5475,533,2574,388,1243,167,1707,277,2186,222,1680,136,1153,164]
[null,"Renter occupied",1026,255,370,193,1009,294,751,246,202,99,55,35,273,121,16305,916,164,84,243,109,750,300,3385,452,1254,318,91,52,2142,374,486,213,682,322,135,111,734,203,1183,292,1641,531,1482,383,56,41,251,121,536,205,210,95,349,129]
[]
[]
[]
[]
[]
[]
[]
[]
[]
[]
[]
[]
[null,"B25008. TOTAL POPULATION IN OCCUPIED HOUSING UNITS BY TENURE"]
[null,"Universe:  TOTAL POPULATION IN OCCUPIED HOUSING UNITS"]
[null,"Data Set: 2008-2012 American Community Survey 5-Year Estimates"]
[]
[null,null,"Allenstown",null,"Andover",null,"Boscawen",null,"Bow",null,"Bradford",null,"Canterbury",null,"Chichester",null,"Concord",null,"Danbury",null,"Dunbarton",null,"Epsom",null,"Franklin",null,"Henniker",null,"Hill",null,"Hooksett",null,"Hopkinton",null,"Loudon",null,"Newbury",null,"New London",null,"Northfield",null,"Pembroke",null,"Pittsfield",null,"Salisbury",null,"Sutton",null,"Warner",null,"Webster",null,"Wilmot"]
[null,null,"Estimate","Margin Of Error","Estimate","Margin Of Error","Estimate","Margin Of Error","Estimate","Margin Of Error","Estimate","Margin Of Error","Estimate","Margin Of Error","Estimate","Margin Of Error","Estimate","Margin Of Error","Estimate","Margin Of Error","Estimate","Margin Of Error","Estimate","Margin Of Error","Estimate","Margin Of Error","Estimate","Margin Of Error","Estimate","Margin Of Error","Estimate","Margin Of Error","Estimate","Margin Of Error","Estimate","Margin Of Error","Estimate","Margin Of Error","Estimate","Margin Of Error","Estimate","Margin Of Error","Estimate","Margin Of Error","Estimate","Margin Of Error","Estimate","Margin Of Error","Estimate","Margin Of Error","Estimate","Margin Of Error","Estimate","Margin Of Error","Estimate","Margin Of Error"]
[null,"Total:",4393,46,2369,240,3511,375,7559,22,1525,194,2451,156,2517,14,39885,530,1120,212,2727,15,4457,54,8339,127,4204,180,1270,221,12454,233,5622,20,5277,19,2084,256,3498,269,4784,62,7148,22,4102,34,1359,168,1657,212,2723,83,1788,188,1363,186]
[null,"Owner occupied",2711,417,2039,241,2785,369,7076,160,1263,187,2337,165,2432,60,24669,905,769,141,2386,170,4014,270,5343,535,3248,317,1119,178,11139,445,5124,274,4631,303,2029,259,3059,292,3653,381,5592,373,2905,378,1251,165,1499,217,2283,162,1694,181,1272,188]
[null,"Renter occupied",1682,418,330,153,726,282,483,163,262,120,114,62,85,60,15216,898,351,177,341,169,443,264,2996,570,956,264,151,129,1315,402,498,273,646,303,55,44,439,196,1131,376,1556,372,1197,376,108,75,158,91,440,141,94,45,91,63]

{"sheet":"ACS_Table_B25024","index":45,"n_rows":78,"n_cols":56,"rows_kept":78,"cut":false,"hidden":true,"merged":[]}
[null,"B25024. UNITS IN STRUCTURE "]
[null,"Universe:  HOUSING UNITS"]
[null,"Data Set: 2018-2022 American Community Survey 5-Year Estimates"]
[]
[null,null,"Allenstown",null,"Andover",null,"Boscawen",null,"Bow",null,"Bradford",null,"Canterbury",null,"Chichester",null,"Concord",null,"Danbury",null,"Dunbarton",null,"Epsom",null,"Franklin",null,"Henniker",null,"Hill",null,"Hooksett",null,"Hopkinton",null,"Loudon",null,"Newbury",null,"New London",null,"Northfield",null,"Pembroke",null,"Pittsfield",null,"Salisbury",null,"Sutton",null,"Warner",null,"Webster",null,"Wilmot"]
[null,null,"Estimate","Margin Of Error","Estimate","Margin Of Error","Estimate","Margin Of Error","Estimate","Margin Of Error","Estimate","Margin Of Error","Estimate","Margin Of Error","Estimate","Margin Of Error","Estimate","Margin Of Error","Estimate","Margin Of Error","Estimate","Margin Of Error","Estimate","Margin Of Error","Estimate","Margin Of Error","Estimate","Margin Of Error","Estimate","Margin Of Error","Estimate","Margin Of Error","Estimate","Margin Of Error","Estimate","Margin Of Error","Estimate","Margin Of Error","Estimate","Margin Of Error","Estimate","Margin Of Error","Estimate","Margin Of Error","Estimate","Margin Of Error","Estimate","Margin Of Error","Estimate","Margin Of Error","Estimate","Margin Of Error","Estimate","Margin Of Error","Estimate","Margin Of Error"]
[null,"Total:",1881,198,1059,122,1434,145,2922,130,851,66,990,91,1071,73,18864,463,769,103,1089,98,1939,152,4150,332,2560,206,406,62,5294,327,2465,216,2442,225,1513,140,2424,170,2028,150,2711,198,1970,174,730,132,1154,154,1426,125,883,108,719,90]
[null,"1, detached",731,127,993,124,940,124,2658,153,791,60,885,88,920,85,7953,367,616,70,1033,96,1394,152,2394,287,1471,246,342,60,3209,265,2099,237,1924,264,1387,135,1876,202,1361,211,1656,200,1207,142,650,112,1120,153,987,106,803,99,601,84]
[null,"1, attached",93,59,0,12,33,25,95,64,0,12,16,11,15,19,1177,249,3,5,37,35,53,45,47,46,267,169,3,5,594,166,85,61,43,70,20,10,195,91,22,35,149,87,11,19,0,12,0,12,16,15,33,43,0,12]
[null,2,75,70,33,31,24,26,7,12,16,19,43,33,36,30,1895,317,11,14,9,10,63,37,572,288,73,72,4,5,177,107,11,19,11,19,32,28,49,36,61,53,207,120,78,57,0,12,30,26,46,34,0,12,88,54]
[null,"3 or 4",62,37,0,12,100,65,24,22,19,18,5,8,10,11,1607,269,9,8,5,7,8,12,442,164,239,137,0,12,322,130,36,57,14,25,6,8,96,59,47,29,251,127,226,123,0,12,0,12,108,58,0,12,0,12]
[null,"5 to 9",172,77,7,10,78,47,0,17,0,12,0,12,0,12,1354,256,0,12,0,12,0,12,309,137,238,117,0,12,144,61,91,64,0,17,5,9,17,19,180,111,262,154,72,59,0,12,0,12,101,69,0,12,17,16]
[null,"10 to 19",22,35,0,12,46,52,0,17,6,8,0,12,0,12,1250,249,0,12,5,9,33,27,138,68,160,144,0,12,94,66,0,17,0,17,0,12,0,12,75,52,0,17,58,66,0,12,0,12,43,33,4,6,0,12]
[null,"20 to 49",86,94,0,12,24,25,59,34,0,12,0,12,0,12,1708,272,0,12,0,12,0,12,91,56,10,17,0,12,256,90,0,17,94,89,40,27,180,86,115,59,0,17,71,96,0,12,0,12,49,37,0,12,0,12]
[null,"50 or more",0,12,0,12,0,12,79,37,0,12,0,12,0,12,980,245,0,12,0,12,26,21,31,33,0,17,0,12,238,141,0,17,0,17,0,12,11,17,0,12,20,33,88,96,0,12,0,12,0,12,0,12,0,12]
[null,"Mobile home",640,160,26,19,189,59,0,17,19,21,37,45,90,66,916,197,130,90,0,12,362,96,126,66,102,88,57,26,260,133,143,95,356,240,23,23,0,12,167,97,166,111,159,81,80,85,4,6,71,37,37,39,13,16]
[null,"Boat, RV, van, etc.",0,12,0,12,0,12,0,17,0,12,4,7,0,12,24,30,0,12,0,12,0,12,0,17,0,17,0,12,0,19,0,17,0,17,0,12,0,12,0,12,0,17,0,12,0,12,0,12,5,8,6,10,0,12]
[]
[null,"Calculated B25024. UNITS IN STRUCTURE "]
[null,"Universe:  HOUSING UNITS"]
[null,"Data Set: 2018-2022 American Community Survey 5-Year Estimates"]
[]
[null,null,"Alton",null,"Barnstead",null,"Belmont",null,"Center Harbor",null,"Gilford",null,"Gilmanton",null,"Laconia",null,"Meredith",null,"New Hampton",null,"Sanbornton",null,"Tilton"]
[null," ","Estimate","Margin of Error","Estimate","Margin of Error","Estimate","Margin of Error","Estimate","Margin of Error","Estimate","Margin of Error","Estimate","Margin of Error","Estimate","Margin of Error","Estimate","Margin of Error","Estimate","Margin of Error","Estimate","Margin of Error","Estimate","Margin of Error"]
[null,"Total:",{"$f":"C6","v":"Estimate"},"Margin Of Error","Estimate","Margin Of Error","Estimate","Margin Of Error","Estimate","Margin Of Error","Estimate","Margin Of Error","Estimate","Margin Of Error","Estimate","Margin Of Error","Estimate","Margin Of Error","Estimate","Margin Of Error","Estimate","Margin Of Error","Estimate","Margin Of Error"]
[null,"Single Family",1881,198,1059,122,1434,145,2922,130,851,66,990,91,1071,73,18864,463,769,103,1089,98,1939,152]
[null,"Multi-Family",{"$f":"C8+C9+C10+C11+C12+C13+C14","v":1241},{"$f":"SQRT((D8^2)+(D9^2)+(D10^2)+(D11^2)+(D12^2)+(D13^2)+(D14^2))","v":204.61915843830459},{"$f":"E8+E9+E10+E11+E12+E13+E14","v":1033},{"$f":"SQRT((F8^2)+(F9^2)+(F10^2)+(F11^2)+(F12^2)+(F13^2)+(F14^2))","v":130.43389130130251},{"$f":"G8+G9+G10+G11+G12+G13+G14","v":1245},{"$f":"SQRT((H8^2)+(H9^2)+(H10^2)+(H11^2)+(H12^2)+(H13^2)+(H14^2))","v":162.60381299342276},{"$f":"I8+I9+I10+I11+I12+I13+I14","v":2843},{"$f":"SQRT((J8^2)+(J9^2)+(J10^2)+(J11^2)+(J12^2)+(J13^2)+(J14^2))","v":172.82071635078938},{"$f":"K8+K9+K10+K11+K12+K13+K14","v":832},{"$f":"SQRT((L8^2)+(L9^2)+(L10^2)+(L11^2)+(L12^2)+(L13^2)+(L14^2))","v":69.144775652250118},{"$f":"M8+M9+M10+M11+M12+M13+M14","v":949},{"$f":"SQRT((N8^2)+(N9^2)+(N10^2)+(N11^2)+(N12^2)+(N13^2)+(N14^2))","v":97.211110476117909},{"$f":"O8+O9+O10+O11+O12+O13+O14","v":981},{"$f":"SQRT((P8^2)+(P9^2)+(P10^2)+(P11^2)+(P12^2)+(P13^2)+(P14^2))","v":95.073655657074639},{"$f":"Q8+Q9+Q10+Q11+Q12+Q13+Q14","v":16944},{"$f":"SQRT((R8^2)+(R9^2)+(R10^2)+(R11^2)+(R12^2)+(R13^2)+(R14^2))","v":755.68578126096827},{"$f":"S8+S9+S10+S11+S12+S13+S14","v":639},{"$f":"SQRT((T8^2)+(T9^2)+(T10^2)+(T11^2)+(T12^2)+(T13^2)+(T14^2))","v":74.94664769020693},{"$f":"U8+U9+U10+U11+U12+U13+U14","v":1089},{"$f":"SQRT((V8^2)+(V9^2)+(V10^2)+(V11^2)+(V12^2)+(V13^2)+(V14^2))","v":104.68524251297315},{"$f":"W8+W9+W10+W11+W12+W13+W14","v":1551},{"$f":"SQRT((X8^2)+(X9^2)+(X10^2)+(X11^2)+(X12^2)+(X13^2)+(X14^2))","v":166.30995159640929}]
[null,"Mobile Home & Other",{"$f":"C15+C16","v":640},{"$f":"SQRT((D15^2)+(D16^2))","v":160.44936896105264},{"$f":"E15+E16","v":26},{"$f":"SQRT((F15^2)+(F16^2))","v":22.472205054244231},{"$f":"G15+G16","v":189},{"$f":"SQRT((H15^2)+(H16^2))","v":60.207972893961475},{"$f":"I15+I16","v":79},{"$f":"SQRT((J15^2)+(J16^2))","v":40.718546143004666},{"$f":"K15+K16","v":19},{"$f":"SQRT((L15^2)+(L16^2))","v":24.186773244895647},{"$f":"M15+M16","v":37},{"$f":"SQRT((N15^2)+(N16^2))","v":46.572524088780071},{"$f":"O15+O16","v":90},{"$f":"SQRT((P15^2)+(P16^2))","v":67.082039324993687},{"$f":"Q15+Q16","v":1896},{"$f":"SQRT((R15^2)+(R16^2))","v":314.37875246269425},{"$f":"S15+S16","v":130},{"$f":"SQRT((T15^2)+(T16^2))","v":90.796475702529335},{"$f":"U15+U16","v":0},{"$f":"SQRT((V15^2)+(V16^2))","v":16.970562748477139},{"$f":"W15+W16","v":388},{"$f":"SQRT((X15^2)+(X16^2))","v":98.270036124955197}]
[]
[]
[]
[]
[]
[]
[]
[]
[]
[]
[]
[]
[]
[]
[]
[]
[]
[]
[]
[]
[]
[]
[]
[]
[]
[]
[]
[]
[null,"Calculated B25024. UNITS IN STRUCTURE "]
[null,"Universe:  HOUSING UNITS"]
[null,"Data Set: 2013-2017 American Community Survey 5-Year Estimates"]
[]
[null,null,"Allenstown",null,"Andover",null,"Boscawen",null,"Bow",null,"Bradford",null,"Canterbury",null,"Chichester",null,"Concord",null,"Danbury",null,"Dunbarton",null,"Epsom",null,"Franklin",null,"Henniker",null,"Hill",null,"Hooksett",null,"Hopkinton",null,"Loudon",null,"Newbury",null,"New London",null,"Northfield",null,"Pembroke",null,"Pittsfield",null,"Salisbury",null,"Sutton",null,"Warner",null,"Webster",null,"Wilmot"]
[null,null,"Estimate","Margin Of Error","Estimate","Margin Of Error","Estimate","Margin Of Error","Estimate","Margin Of Error","Estimate","Margin Of Error","Estimate","Margin Of Error","Estimate","Margin Of Error","Estimate","Margin Of Error","Estimate","Margin Of Error","Estimate","Margin Of Error","Estimate","Margin Of Error","Estimate","Margin Of Error","Estimate","Margin Of Error","Estimate","Margin Of Error","Estimate","Margin Of Error","Estimate","Margin Of Error","Estimate","Margin Of Error","Estimate","Margin Of Error","Estimate","Margin Of Error","Estimate","Margin Of Error","Estimate","Margin Of Error","Estimate","Margin Of Error","Estimate","Margin Of Error","Estimate","Margin Of Error","Estimate","Margin Of Error","Estimate","Margin Of Error","Estimate","Margin Of Error"]
[null,"Total:",1769,132,1251,71,1381,146,2948,140,913,89,1056,39,1083,57,18345,413,735,68,1097,48,1904,146,4118,251,2033,179,498,55,5248,213,2290,130,2148,190,1657,128,2248,197,1828,96,2892,177,1671,124,596,68,1019,109,1325,95,924,60,734,66]
[null,"Single Family",788,117,1105,77,793,151,2683,141,858,94,994,51,911,84,7559,356,615,67,1013,60,1284,125,2229,210,1356,164,443,53,3481,211,1891,171,1695,157,1594,130,1714,152,1199,119,1858,220,1010,123,569,69,976,111,1032,90,838,61,650,65]
[null,"Multi-Family",490,127.32242536175629,89,53.141321022345693,324,120.90078577081292,250,80.560536244491317,28,26.457513110645905,50,40.01249804748511,105,60.991802727907626,9700,574.23340202395059,30,32.726136343907143,79,39.230090491866065,248,89.783071901110617,1790,264.7036078333652,529,148.40485167271319,20,29.240383034426891,1519,212.8497122384712,207,104.42700800080408,197,115.29093633065871,56,32.434549480453711,515,118.79393923933998,449,125.22379965485794,1006,243.26117651610582,613,157.27046766637403,12,23.874672772626646,43,31.144823004794873,195,62.56996084384263,48,32.388269481403292,63,33.075670817082454]
[null,"Mobile Home & Other",491,101.59724405711013,57,31.953090617340916,264,66.91038783328041,15,23.430749027719962,27,21.95449840010015,12,17.029386365926403,67,48.270073544588683,1086,174.52220489095365,90,44.384682042344295,5,13.601470508735444,372,114.52947218947619,99,48.383881613611777,148,79.762146410437069,35,23.706539182259394,248,73.006848993775918,192,90.255193756370602,256,116.96580696938743,7,14.866068747318506,19,24.596747752497688,180,64.938432380216881,28,33.541019662496844,48,32.893768406797051,15,15.556349186104045,0,15.556349186104045,98,49.244289008980523,38,23.706539182259394,21,25.495097567963924]
[]
[]
[null,"Calculated B25024. UNITS IN STRUCTURE "]
[null,"Universe:  HOUSING UNITS"]
[null,"Data Set: 2008-2012 American Community Survey 5-Year Estimates"]
[]
[null,null,"Allenstown",null,"Andover",null,"Boscawen",null,"Bow",null,"Bradford",null,"Canterbury",null,"Chichester",null,"Concord",null,"Danbury",null,"Dunbarton",null,"Epsom",null,"Franklin",null,"Henniker",null,"Hill",null,"Hooksett",null,"Hopkinton",null,"Loudon",null,"Newbury",null,"New London",null,"Northfield",null,"Pembroke",null,"Pittsfield",null,"Salisbury",null,"Sutton",null,"Warner",null,"Webster",null,"Wilmot"]
[null,null,"Estimate","Margin Of Error","Estimate","Margin Of Error","Estimate","Margin Of Error","Estimate","Margin Of Error","Estimate","Margin Of Error","Estimate","Margin Of Error","Estimate","Margin Of Error","Estimate","Margin Of Error","Estimate","Margin Of Error","Estimate","Margin Of Error","Estimate","Margin Of Error","Estimate","Margin Of Error","Estimate","Margin Of Error","Estimate","Margin Of Error","Estimate","Margin Of Error","Estimate","Margin Of Error","Estimate","Margin Of Error","Estimate","Margin Of Error","Estimate","Margin Of Error","Estimate","Margin Of Error","Estimate","Margin Of Error","Estimate","Margin Of Error","Estimate","Margin Of Error","Estimate","Margin Of Error","Estimate","Margin Of Error","Estimate","Margin Of Error","Estimate","Margin Of Error"]
[null,"Total:",1763,147,1124,72,1535,224,2644,119,831,72,1023,34,941,51,19050,444,658,62,1118,65,1839,124,3816,210,1954,189,506,60,4817,199,2555,149,2042,107,1504,102,2316,193,1919,181,3227,205,1682,165,584,69,936,93,1375,116,867,86,668,65]
[null,"Single Family",755,157,988,91,1025,159,2489,115,738,77,913,52,790,77,8097,353,530,61,1046,64,1337,130,2176,206,1234,173,408,55,3320,185,2286,167,1623,146,1435,104,1806,188,1375,221,2047,211,1040,161,534,64,883,91,1044,106,831,87,602,67]
[null,"Multi-Family",648,192.98186443290467,64,173.81887124245171,314,148.76491521860925,155,163.50229356189473,62,172.92773056973829,82,192.2966458365824,121,179.98888854593218,10078,607.41419147069655,28,170.9912278451734,56,150.15325504297269,102,100.13490899781155,1427,243.81550401892002,468,187.41398026828202,27,148.54292308959052,1357,251.58497570403523,188,165.03030024816655,140,176.22996340009834,61,174.86280336309378,510,158.06960492137634,397,148.2902559172382,1084,280.68487668558134,498,154.01298646542764,17,190.77997798511248,53,150.8409758653132,242,121.37545056559007,14,190.49671913185276,40,149.8966310495336]
[null,"Mobile Home & Other",360,134.31678971744373,72,97.616596949494195,196,109.48059188732951,0,120.20815280171308,31,86.884981440983225,28,88.056799851005266,30,89.185200566013194,875,173.28012003689287,100,92.309262807152777,16,85.84287972802403,400,151.16216457830973,213,114.02192771568107,252,90.801982357215081,71,90.824005637276315,140,101.78899744078434,81,96.648848932617923,279,123.0690862889621,8,85.586213843118443,0,120.20815280171308,147,115.36463929644994,96,112.04463396343441,144,110.11357772772621,33,86.884981440983225,0,120.20815280171308,89,95.713112999212385,22,87.555696559390128,26,88.600225733346747]

{"sheet":"ACS_Table_B25032","index":46,"n_rows":119,"n_cols":56,"rows_kept":119,"cut":false,"hidden":true,"merged":[]}
[null,"B25032. TENURE BY UNITS IN STRUCTURE "]
[null,"Universe:  OCCUPIED HOUSING UNITS"]
[null,"Data Set: 2018-2022 American Community Survey 5-Year Estimates"]
[]
[null,null,"Allenstown",null,"Andover",null,"Boscawen",null,"Bow",null,"Bradford",null,"Canterbury",null,"Chichester",null,"Concord",null,"Danbury",null,"Dunbarton",null,"Epsom",null,"Franklin",null,"Henniker",null,"Hill",null,"Hooksett",null,"Hopkinton",null,"Loudon",null,"Newbury",null,"New London",null,"Northfield",null,"Pembroke",null,"Pittsfield",null,"Salisbury",null,"Sutton",null,"Warner",null,"Webster",null,"Wilmot"]
[null,null,"Estimate","Margin Of Error","Estimate","Margin Of Error","Estimate","Margin Of Error","Estimate","Margin Of Error","Estimate","Margin Of Error","Estimate","Margin Of Error","Estimate","Margin Of Error","Estimate","Margin Of Error","Estimate","Margin Of Error","Estimate","Margin Of Error","Estimate","Margin Of Error","Estimate","Margin Of Error","Estimate","Margin Of Error","Estimate","Margin Of Error","Estimate","Margin Of Error","Estimate","Margin Of Error","Estimate","Margin Of Error","Estimate","Margin Of Error","Estimate","Margin Of Error","Estimate","Margin Of Error","Estimate","Margin Of Error","Estimate","Margin Of Error","Estimate","Margin Of Error","Estimate","Margin Of Error","Estimate","Margin Of Error","Estimate","Margin Of Error","Estimate","Margin Of Error"]
[null,"Total:",1812,193,878,119,1380,140,2895,133,632,73,920,96,1011,63,17955,443,672,112,1061,89,1844,139,3717,321,2397,206,318,54,5110,285,2168,194,2276,183,747,99,1636,129,1906,134,2627,196,1801,141,623,122,846,149,1200,89,795,103,624,90]
[null,"Owner-occupied housing units:",1439,167,794,120,1056,125,2630,153,564,66,865,95,939,81,10275,455,625,114,1018,88,1640,126,2308,311,1545,230,298,49,4044,282,1912,206,1957,195,653,97,1485,137,1410,135,1997,205,1221,146,600,122,808,150,824,76,758,99,488,77]
[null,"1, detached",672,127,768,119,864,128,2596,156,539,67,813,99,814,77,7416,364,489,75,989,90,1246,140,1878,256,1338,228,262,49,3086,247,1694,209,1586,227,617,95,1175,147,1152,172,1575,196,1076,141,540,102,792,149,759,75,697,91,485,77]
[null,"1, attached",67,54,0,12,10,16,34,35,0,12,16,11,15,19,827,232,3,5,24,25,53,45,8,17,112,86,3,5,378,120,75,58,43,70,20,10,153,81,22,35,105,69,11,19,0,12,0,12,10,12,33,43,0,12]
[null,2,37,47,0,12,10,15,0,17,3,5,14,14,15,13,643,181,0,12,5,8,19,21,278,254,28,44,4,5,44,35,0,17,11,19,0,12,9,14,18,21,76,71,31,32,0,12,12,14,3,5,0,12,0,12]
[null,"3 or 4",18,19,0,12,14,22,0,17,3,4,0,12,5,8,139,64,5,7,0,12,0,12,40,51,0,17,0,12,200,114,0,17,0,17,6,8,41,46,6,10,16,27,0,12,0,12,0,12,0,12,0,12,0,12]
[null,"5 to 9",44,34,0,12,0,12,0,17,0,12,0,12,0,12,107,83,0,12,0,12,0,12,17,21,0,17,0,12,35,38,0,17,0,17,0,12,0,12,57,65,85,113,0,12,0,12,0,12,0,12,0,12,0,12]
[null,"10 to 19",0,12,0,12,0,12,0,17,0,12,0,12,0,12,103,90,0,12,0,12,0,12,9,15,0,17,0,12,15,19,0,17,0,17,0,12,0,12,0,12,0,17,0,12,0,12,0,12,0,12,0,12,0,12]
[null,"20 to 49",0,12,0,12,0,12,0,17,0,12,0,12,0,12,78,59,0,12,0,12,0,12,0,17,0,17,0,12,22,20,0,17,0,17,0,12,107,73,0,12,0,17,0,12,0,12,0,12,0,12,0,12,0,12]
[null,"50 or more",0,12,0,12,0,12,0,17,0,12,0,12,0,12,68,45,0,12,0,12,0,12,0,17,0,17,0,12,9,16,0,17,0,17,0,12,0,12,0,12,20,33,0,12,0,12,0,12,0,12,0,12,0,12]
[null,"Mobile home",601,153,26,19,158,56,0,17,19,21,18,21,90,66,885,201,128,90,0,12,322,89,78,39,67,73,29,16,255,133,143,95,317,234,10,11,0,12,155,95,120,100,103,60,60,84,4,6,47,26,28,38,3,4]
[null,"Boat, RV, van, etc.",0,12,0,12,0,12,0,17,0,12,4,7,0,12,9,16,0,12,0,12,0,12,0,17,0,17,0,12,0,19,0,17,0,17,0,12,0,12,0,12,0,17,0,12,0,12,0,12,5,8,0,12,0,12]
[null,"Renter-occupied housing units:",373,153,84,44,324,94,265,91,68,35,55,36,72,45,7680,442,47,32,43,22,204,81,1409,255,852,272,20,20,1066,219,256,146,319,181,94,40,151,69,496,124,630,156,580,158,23,21,38,21,376,90,37,23,136,56]
[null,"1, detached",29,33,59,39,22,24,42,42,33,26,21,18,46,36,354,108,30,25,29,19,53,52,251,106,0,17,17,19,73,59,143,112,172,133,49,32,40,33,87,67,81,60,55,53,15,17,38,21,83,44,25,19,31,21]
[null,"1, attached",26,31,0,12,23,19,61,55,0,12,0,12,0,12,327,111,0,12,0,12,0,12,39,43,155,141,0,12,216,131,10,16,0,17,0,12,27,32,0,12,44,50,0,12,0,12,0,12,6,9,0,12,0,12]
[null,2,38,51,18,20,14,23,0,17,13,19,29,29,21,27,1111,255,11,14,4,6,44,32,262,190,45,56,0,12,67,57,11,19,0,17,0,12,0,12,43,51,131,89,47,46,0,12,0,12,18,19,0,12,88,54]
[null,"3 or 4",44,32,0,12,86,62,24,22,16,17,5,8,5,7,1344,252,4,5,5,7,8,12,333,145,215,132,0,12,122,79,1,14,14,25,0,12,23,23,41,28,178,112,194,115,0,12,0,12,78,47,0,12,0,12]
[null,"5 to 9",128,72,7,10,78,47,0,17,0,12,0,12,0,12,1054,231,0,12,0,12,0,12,292,138,232,117,0,12,109,49,91,64,0,17,5,9,17,19,123,90,177,120,46,43,0,12,0,12,89,66,0,12,7,7]
[null,"10 to 19",22,35,0,12,46,52,0,17,6,8,0,12,0,12,1063,210,0,12,5,9,33,27,129,65,160,144,0,12,49,35,0,17,0,17,0,12,0,12,75,52,0,17,58,66,0,12,0,12,43,33,4,6,0,12]
[null,"20 to 49",86,94,0,12,24,25,59,34,0,12,0,12,0,12,1566,259,0,12,0,12,0,12,61,45,10,17,0,12,219,87,0,17,94,89,40,27,44,35,115,59,0,17,71,96,0,12,0,12,49,37,0,12,0,12]
[null,"50 or more",0,12,0,12,0,12,79,37,0,12,0,12,0,12,846,224,0,12,0,12,26,21,31,33,0,17,0,12,206,136,0,17,0,17,0,12,0,12,0,12,0,17,88,96,0,12,0,12,0,12,0,12,0,12]
[null,"Mobile home",0,12,0,12,31,27,0,17,0,12,0,12,0,12,0,25,2,4,0,12,40,39,11,17,35,40,3,4,5,8,0,17,39,64,0,12,0,12,12,18,19,31,21,31,8,12,0,12,10,11,2,3,10,15]
[null,"Boat, RV, van, etc.",0,12,0,12,0,12,0,17,0,12,0,12,0,12,15,25,0,12,0,12,0,12,0,17,0,17,0,12,0,19,0,17,0,17,0,12,0,12,0,12,0,17,0,12,0,12,0,12,0,12,6,10,0,12]
[]
[]
[null,"Calculated B25032. TENURE BY UNITS IN STRUCTURE "]
[null,"Universe:  OCCUPIED HOUSING UNITS"]
[null,"Data Set: 2018-2022 American Community Survey 5-Year Estimates"]
[]
[null,null,"Allenstown",null,"Andover",null,"Boscawen",null,"Bow",null,"Bradford",null,"Canterbury",null,"Chichester",null,"Concord",null,"Danbury",null,"Dunbarton",null,"Epsom",null,"Franklin",null,"Henniker",null,"Hill",null,"Hooksett",null,"Hopkinton",null,"Loudon",null,"Newbury",null,"New London",null,"Northfield",null,"Pembroke",null,"Pittsfield",null,"Salisbury",null,"Sutton",null,"Warner",null,"Webster",null,"Wilmot"]
[null,null,"Estimate","Margin Of Error","Estimate","Margin Of Error","Estimate","Margin Of Error","Estimate","Margin Of Error","Estimate","Margin Of Error","Estimate","Margin Of Error","Estimate","Margin Of Error","Estimate","Margin Of Error","Estimate","Margin Of Error","Estimate","Margin Of Error","Estimate","Margin Of Error","Estimate","Margin Of Error","Estimate","Margin Of Error","Estimate","Margin Of Error","Estimate","Margin Of Error","Estimate","Margin Of Error","Estimate","Margin Of Error","Estimate","Margin Of Error","Estimate","Margin Of Error","Estimate","Margin Of Error","Estimate","Margin Of Error","Estimate","Margin Of Error","Estimate","Margin Of Error","Estimate","Margin Of Error","Estimate","Margin Of Error","Estimate","Margin Of Error","Estimate","Margin Of Error"]
[null,"Total:",{"$f":"C7","v":1812},193,{"$f":"E7","v":878},119,1380,140,2895,133,632,73,920,96,1011,63,17955,443,672,112,1061,89,1844,139,3717,321,2397,206,318,54,5110,285,2168,194,2276,183,747,99,1636,129,1906,134,2627,196,1801,141,623,122,846,149,1200,89,795,103,624,90]
[null,"Owner-occupied housing units:",1439,167,{"$f":"E8","v":794},120,1056,125,2630,153,564,66,865,95,939,81,10275,455,625,114,1018,88,1640,126,2308,311,1545,230,298,49,4044,282,1912,206,1957,195,653,97,1485,137,1410,135,1997,205,1221,146,600,122,808,150,824,76,758,99,488,77]
[null,"Single Family",{"$f":"C9","v":672},127,768,{"$f":"F9","v":119},864,128,2596,156,539,67,813,99,814,77,7416,364,489,75,989,90,1246,140,1878,256,1338,228,262,49,3086,247,1694,209,1586,227,617,95,1175,147,1152,172,1575,196,1076,141,540,102,792,149,759,75,697,91,485,77]
[null,"Multi-Family",{"$f":"C10+C11+C12+C13+C14+C15+C16","v":166},{"$f":"SQRT((D10^2)+(D11^2)+(D12^2)+(D13^2)+(D14^2)+(D15^2)+(D16^2))","v":84.107074613257112},{"$f":"E10+E11+E12+E13+E14+E15+E16","v":0},{"$f":"SQRT((F10^2)+(F11^2)+(F12^2)+(F13^2)+(F14^2)+(F15^2)+(F16^2))","v":31.749015732775089},{"$f":"G10+G11+G12+G13+G14+G15+G16","v":34},{"$f":"SQRT((H10^2)+(H11^2)+(H12^2)+(H13^2)+(H14^2)+(H15^2)+(H16^2))","v":39.255572852781043},{"$f":"I10+I11+I12+I13+I14+I15+I16","v":34},{"$f":"SQRT((J10^2)+(J11^2)+(J12^2)+(J13^2)+(J14^2)+(J15^2)+(J16^2))","v":54.396691075836586},{"$f":"K10+K11+K12+K13+K14+K15+K16","v":6},{"$f":"SQRT((L10^2)+(L11^2)+(L12^2)+(L13^2)+(L14^2)+(L15^2)+(L16^2))","v":27.586228448267445},{"$f":"M10+M11+M12+M13+M14+M15+M16","v":30},{"$f":"SQRT((N10^2)+(N11^2)+(N12^2)+(N13^2)+(N14^2)+(N15^2)+(N16^2))","v":32.202484376209235},{"$f":"O10+O11+O12+O13+O14+O15+O16","v":35},{"$f":"SQRT((P10^2)+(P11^2)+(P12^2)+(P13^2)+(P14^2)+(P15^2)+(P16^2))","v":34.205262752974143},{"$f":"Q10+Q11+Q12+Q13+Q14+Q15+Q16","v":1965},{"$f":"SQRT((R10^2)+(R11^2)+(R12^2)+(R13^2)+(R14^2)+(R15^2)+(R16^2))","v":333.430652460148},{"$f":"S10+S11+S12+S13+S14+S15+S16","v":8},{"$f":"SQRT((T10^2)+(T11^2)+(T12^2)+(T13^2)+(T14^2)+(T15^2)+(T16^2))","v":28.178005607210743},{"$f":"U10+U11+U12+U13+U14+U15+U16","v":29},{"$f":"SQRT((V10^2)+(V11^2)+(V12^2)+(V13^2)+(V14^2)+(V15^2)+(V16^2))","v":37.536648758246919},{"$f":"W10+W11+W12+W13+W14+W15+W16","v":72},{"$f":"SQRT((X10^2)+(X11^2)+(X12^2)+(X13^2)+(X14^2)+(X15^2)+(X16^2))","v":56.444663166680336},{"$f":"Y10+Y11+Y12+Y13+Y14+Y15+Y16","v":352},{"$f":"SQRT((Z10^2)+(Z11^2)+(Z12^2)+(Z13^2)+(Z14^2)+(Z15^2)+(Z16^2))","v":262.01145013147806},{"$f":"AA10+AA11+AA12+AA13+AA14+AA15+AA16","v":140},{"$f":"SQRT((AB10^2)+(AB11^2)+(AB12^2)+(AB13^2)+(AB14^2)+(AB15^2)+(AB16^2))","v":103.81233067415451},{"$f":"AC10+AC11+AC12+AC13+AC14+AC15+AC16","v":7},{"$f":"SQRT((AD10^2)+(AD11^2)+(AD12^2)+(AD13^2)+(AD14^2)+(AD15^2)+(AD16^2))","v":27.748873851023216},{"$f":"AE10+AE11+AE12+AE13+AE14+AE15+AE16","v":703},{"$f":"SQRT((AF10^2)+(AF11^2)+(AF12^2)+(AF13^2)+(AF14^2)+(AF15^2)+(AF16^2))","v":176.30087918101827},{"$f":"AG10+AG11+AG12+AG13+AG14+AG15+AG16","v":75},{"$f":"SQRT((AH10^2)+(AH11^2)+(AH12^2)+(AH13^2)+(AH14^2)+(AH15^2)+(AH16^2))","v":71.400280111495363},{"$f":"AI10+AI11+AI12+AI13+AI14+AI15+AI16","v":54},{"$f":"SQRT((AJ10^2)+(AJ11^2)+(AJ12^2)+(AJ13^2)+(AJ14^2)+(AJ15^2)+(AJ16^2))","v":81.890170350292962},{"$f":"AK10+AK11+AK12+AK13+AK14+AK15+AK16","v":26},{"$f":"SQRT((AL10^2)+(AL11^2)+(AL12^2)+(AL13^2)+(AL14^2)+(AL15^2)+(AL16^2))","v":29.732137494637012},{"$f":"AM10+AM11+AM12+AM13+AM14+AM15+AM16","v":310},{"$f":"SQRT((AN10^2)+(AN11^2)+(AN12^2)+(AN13^2)+(AN14^2)+(AN15^2)+(AN16^2))","v":120.97107092193571},{"$f":"AO10+AO11+AO12+AO13+AO14+AO15+AO16","v":103},{"$f":"SQRT((AP10^2)+(AP11^2)+(AP12^2)+(AP13^2)+(AP14^2)+(AP15^2)+(AP16^2))","v":80.143621081156553},{"$f":"AQ10+AQ11+AQ12+AQ13+AQ14+AQ15+AQ16","v":302},{"$f":"SQRT((AR10^2)+(AR11^2)+(AR12^2)+(AR13^2)+(AR14^2)+(AR15^2)+(AR16^2))","v":158.00949338568236},{"$f":"AS10+AS11+AS12+AS13+AS14+AS15+AS16","v":42},{"$f":"SQRT((AT10^2)+(AT11^2)+(AT12^2)+(AT13^2)+(AT14^2)+(AT15^2)+(AT16^2))","v":45.880278987817846},{"$f":"AU10+AU11+AU12+AU13+AU14+AU15+AU16","v":0},{"$f":"SQRT((AV10^2)+(AV11^2)+(AV12^2)+(AV13^2)+(AV14^2)+(AV15^2)+(AV16^2))","v":31.749015732775089},{"$f":"AW10+AW11+AW12+AW13+AW14+AW15+AW16","v":12},{"$f":"SQRT((AX10^2)+(AX11^2)+(AX12^2)+(AX13^2)+(AX14^2)+(AX15^2)+(AX16^2))","v":32.557641192199412},{"$f":"AY10+AY11+AY12+AY13+AY14+AY15+AY16","v":13},{"$f":"SQRT((AZ10^2)+(AZ11^2)+(AZ12^2)+(AZ13^2)+(AZ14^2)+(AZ15^2)+(AZ16^2))","v":29.816103031751148},{"$f":"BA10+BA11+BA12+BA13+BA14+BA15+BA16","v":33},{"$f":"SQRT((BB10^2)+(BB11^2)+(BB12^2)+(BB13^2)+(BB14^2)+(BB15^2)+(BB16^2))","v":52.086466572421671},{"$f":"BC10+BC11+BC12+BC13+BC14+BC15+BC16","v":0},{"$f":"SQRT((BD10^2)+(BD11^2)+(BD12^2)+(BD13^2)+(BD14^2)+(BD15^2)+(BD16^2))","v":31.749015732775089}]
[null,"Mobile Home & Other",{"$f":"C17+C18","v":601},{"$f":"SQRT((D17^2)+(D18^2))","v":153.46986674914396},{"$f":"E17+E18","v":26},{"$f":"SQRT((F17^2)+(F18^2))","v":22.472205054244231},{"$f":"G17+G18","v":158},{"$f":"SQRT((H17^2)+(H18^2))","v":57.271284253105414},{"$f":"I17+I18","v":0},{"$f":"SQRT((J17^2)+(J18^2))","v":24.041630560342615},{"$f":"K17+K18","v":19},{"$f":"SQRT((L17^2)+(L18^2))","v":24.186773244895647},{"$f":"M17+M18","v":22},{"$f":"SQRT((N17^2)+(N18^2))","v":22.135943621178654},{"$f":"O17+O18","v":90},{"$f":"SQRT((P17^2)+(P18^2))","v":67.082039324993687},{"$f":"Q17+Q18","v":894},{"$f":"SQRT((R17^2)+(R18^2))","v":201.63581031156147},{"$f":"S17+S18","v":128},{"$f":"SQRT((T17^2)+(T18^2))","v":90.796475702529335},{"$f":"U17+U18","v":0},{"$f":"SQRT((V17^2)+(V18^2))","v":16.970562748477139},{"$f":"W17+W18","v":322},{"$f":"SQRT((X17^2)+(X18^2))","v":89.805345052507874},{"$f":"Y17+Y18","v":78},{"$f":"SQRT((Z17^2)+(Z18^2))","v":42.544094772365298},{"$f":"AA17+AA18","v":67},{"$f":"SQRT((AB17^2)+(AB18^2))","v":74.953318805774032},{"$f":"AC17+AC18","v":29},{"$f":"SQRT((AD17^2)+(AD18^2))","v":20},{"$f":"AE17+AE18","v":255},{"$f":"SQRT((AF17^2)+(AF18^2))","v":134.35028842544403},{"$f":"AG17+AG18","v":143},{"$f":"SQRT((AH17^2)+(AH18^2))","v":96.509066931558294},{"$f":"AI17+AI18","v":317},{"$f":"SQRT((AJ17^2)+(AJ18^2))","v":234.61670869739862},{"$f":"AK17+AK18","v":10},{"$f":"SQRT((AL17^2)+(AL18^2))","v":16.278820596099706},{"$f":"AM17+AM18","v":0},{"$f":"SQRT((AN17^2)+(AN18^2))","v":16.970562748477139},{"$f":"AO17+AO18","v":155},{"$f":"SQRT((AP17^2)+(AP18^2))","v":95.75489543621255},{"$f":"AQ17+AQ18","v":120},{"$f":"SQRT((AR17^2)+(AR18^2))","v":101.43470806385751},{"$f":"AS17+AS18","v":103},{"$f":"SQRT((AT17^2)+(AT18^2))","v":61.188234163113421},{"$f":"AU17+AU18","v":60},{"$f":"SQRT((AV17^2)+(AV18^2))","v":84.852813742385706},{"$f":"AW17+AW18","v":4},{"$f":"SQRT((AX17^2)+(AX18^2))","v":13.416407864998739},{"$f":"AY17+AY18","v":52},{"$f":"SQRT((AZ17^2)+(AZ18^2))","v":27.202941017470888},{"$f":"BA17+BA18","v":28},{"$f":"SQRT((BB17^2)+(BB18^2))","v":39.849717690342551},{"$f":"BC17+BC18","v":3},{"$f":"SQRT((BD17^2)+(BD18^2))","v":12.649110640673518}]
[null,"Renter-occupied housing units:",{"$f":"C19","v":373},{"$f":"D19","v":153},{"$f":"E19","v":84},44,324,94,265,91,68,35,55,36,72,45,7680,442,47,32,43,22,204,81,1409,255,852,272,20,20,1066,219,256,146,319,181,94,40,151,69,496,124,630,156,580,158,23,21,38,21,376,90,37,23,136,56]
[null,"Single Family",{"$f":"C20","v":29},{"$f":"D20","v":33},{"$f":"E20","v":59},39,22,24,42,42,33,26,21,18,46,36,354,108,30,25,29,19,53,52,251,106,0,17,17,19,73,59,143,112,172,133,49,32,40,33,87,67,81,60,55,53,15,17,38,21,83,44,25,19,31,21]
[null,"Multi-Family",{"$f":"C21+C22+C23+C24+C25+C26+C27","v":344},{"$f":"SQRT((D21^2)+(D22^2)+(D23^2)+(D24^2)+(D25^2)+(D26^2)+(D27^2))","v":141.33294025102569},{"$f":"E21+E22+E23+E24+E25+E26+E27","v":25},{"$f":"SQRT((F21^2)+(F22^2)+(F23^2)+(F24^2)+(F25^2)+(F26^2)+(F27^2))","v":34.928498393145958},{"$f":"G21+G22+G23+G24+G25+G26+G27","v":271},{"$f":"SQRT((H21^2)+(H22^2)+(H23^2)+(H24^2)+(H25^2)+(H26^2)+(H27^2))","v":102.05880657738459},{"$f":"I21+I22+I23+I24+I25+I26+I27","v":223},{"$f":"SQRT((J21^2)+(J22^2)+(J23^2)+(J24^2)+(J25^2)+(J26^2)+(J27^2))","v":83.072257703760528},{"$f":"K21+K22+K23+K24+K25+K26+K27","v":35},{"$f":"SQRT((L21^2)+(L22^2)+(L23^2)+(L24^2)+(L25^2)+(L26^2)+(L27^2))","v":35.91656999213594},{"$f":"M21+M22+M23+M24+M25+M26+M27","v":34},{"$f":"SQRT((N21^2)+(N22^2)+(N23^2)+(N24^2)+(N25^2)+(N26^2)+(N27^2))","v":40.311288741492746},{"$f":"O21+O22+O23+O24+O25+O26+O27","v":26},{"$f":"SQRT((P21^2)+(P22^2)+(P23^2)+(P24^2)+(P25^2)+(P26^2)+(P27^2))","v":38.704004960727254},{"$f":"Q21+Q22+Q23+Q24+Q25+Q26+Q27","v":7311},{"$f":"SQRT((R21^2)+(R22^2)+(R23^2)+(R24^2)+(R25^2)+(R26^2)+(R27^2))","v":596.2952288925344},{"$f":"S21+S22+S23+S24+S25+S26+S27","v":15},{"$f":"SQRT((T21^2)+(T22^2)+(T23^2)+(T24^2)+(T25^2)+(T26^2)+(T27^2))","v":30.675723300355934},{"$f":"U21+U22+U23+U24+U25+U26+U27","v":14},{"$f":"SQRT((V21^2)+(V22^2)+(V23^2)+(V24^2)+(V25^2)+(V26^2)+(V27^2))","v":27.239676943752471},{"$f":"W21+W22+W23+W24+W25+W26+W27","v":111},{"$f":"SQRT((X21^2)+(X22^2)+(X23^2)+(X24^2)+(X25^2)+(X26^2)+(X27^2))","v":52.630789467763066},{"$f":"Y21+Y22+Y23+Y24+Y25+Y26+Y27","v":1147},{"$f":"SQRT((Z21^2)+(Z22^2)+(Z23^2)+(Z24^2)+(Z25^2)+(Z26^2)+(Z27^2))","v":292.15920317525513},{"$f":"AA21+AA22+AA23+AA24+AA25+AA26+AA27","v":817},{"$f":"SQRT((AB21^2)+(AB22^2)+(AB23^2)+(AB24^2)+(AB25^2)+(AB26^2)+(AB27^2))","v":274.67071194432071},{"$f":"AC21+AC22+AC23+AC24+AC25+AC26+AC27","v":0},{"$f":"SQRT((AD21^2)+(AD22^2)+(AD23^2)+(AD24^2)+(AD25^2)+(AD26^2)+(AD27^2))","v":31.749015732775089},{"$f":"AE21+AE22+AE23+AE24+AE25+AE26+AE27","v":988},{"$f":"SQRT((AF21^2)+(AF22^2)+(AF23^2)+(AF24^2)+(AF25^2)+(AF26^2)+(AF27^2))","v":237.3646983020011},{"$f":"AG21+AG22+AG23+AG24+AG25+AG26+AG27","v":113},{"$f":"SQRT((AH21^2)+(AH22^2)+(AH23^2)+(AH24^2)+(AH25^2)+(AH26^2)+(AH27^2))","v":76},{"$f":"AI21+AI22+AI23+AI24+AI25+AI26+AI27","v":108},{"$f":"SQRT((AJ21^2)+(AJ22^2)+(AJ23^2)+(AJ24^2)+(AJ25^2)+(AJ26^2)+(AJ27^2))","v":99.954989870441182},{"$f":"AK21+AK22+AK23+AK24+AK25+AK26+AK27","v":45},{"$f":"SQRT((AL21^2)+(AL22^2)+(AL23^2)+(AL24^2)+(AL25^2)+(AL26^2)+(AL27^2))","v":39.11521443121589},{"$f":"AM21+AM22+AM23+AM24+AM25+AM26+AM27","v":111},{"$f":"SQRT((AN21^2)+(AN22^2)+(AN23^2)+(AN24^2)+(AN25^2)+(AN26^2)+(AN27^2))","v":59.757844673314651},{"$f":"AO21+AO22+AO23+AO24+AO25+AO26+AO27","v":397},{"$f":"SQRT((AP21^2)+(AP22^2)+(AP23^2)+(AP24^2)+(AP25^2)+(AP26^2)+(AP27^2))","v":134.00746247877393},{"$f":"AQ21+AQ22+AQ23+AQ24+AQ25+AQ26+AQ27","v":530},{"$f":"SQRT((AR21^2)+(AR22^2)+(AR23^2)+(AR24^2)+(AR25^2)+(AR26^2)+(AR27^2))","v":195.53004884160387},{"$f":"AS21+AS22+AS23+AS24+AS25+AS26+AS27","v":504},{"$f":"SQRT((AT21^2)+(AT22^2)+(AT23^2)+(AT24^2)+(AT25^2)+(AT26^2)+(AT27^2))","v":200.30476779148319},{"$f":"AU21+AU22+AU23+AU24+AU25+AU26+AU27","v":0},{"$f":"SQRT((AV21^2)+(AV22^2)+(AV23^2)+(AV24^2)+(AV25^2)+(AV26^2)+(AV27^2))","v":31.749015732775089},{"$f":"AW21+AW22+AW23+AW24+AW25+AW26+AW27","v":0},{"$f":"SQRT((AX21^2)+(AX22^2)+(AX23^2)+(AX24^2)+(AX25^2)+(AX26^2)+(AX27^2))","v":31.749015732775089},{"$f":"AY21+AY22+AY23+AY24+AY25+AY26+AY27","v":283},{"$f":"SQRT((AZ21^2)+(AZ22^2)+(AZ23^2)+(AZ24^2)+(AZ25^2)+(AZ26^2)+(AZ27^2))","v":98.025506884687928},{"$f":"BA21+BA22+BA23+BA24+BA25+BA26+BA27","v":4},{"$f":"SQRT((BB21^2)+(BB22^2)+(BB23^2)+(BB24^2)+(BB25^2)+(BB26^2)+(BB27^2))","v":30},{"$f":"BC21+BC22+BC23+BC24+BC25+BC26+BC27","v":95},{"$f":"SQRT((BD21^2)+(BD22^2)+(BD23^2)+(BD24^2)+(BD25^2)+(BD26^2)+(BD27^2))","v":60.704200843104758}]
[null,"Mobile Home & Other",{"$f":"C28+C29","v":0},{"$f":"SQRT((D28^2)+(D29^2))","v":16.970562748477139},{"$f":"E28+E29","v":0},{"$f":"SQRT((F28^2)+(F29^2))","v":16.970562748477139},{"$f":"G28+G29","v":31},{"$f":"SQRT((H28^2)+(H29^2))","v":29.546573405388315},{"$f":"I28+I29","v":0},{"$f":"SQRT((J28^2)+(J29^2))","v":24.041630560342615},{"$f":"K28+K29","v":0},{"$f":"SQRT((L28^2)+(L29^2))","v":16.970562748477139},{"$f":"M28+M29","v":0},{"$f":"SQRT((N28^2)+(N29^2))","v":16.970562748477139},{"$f":"O28+O29","v":0},{"$f":"SQRT((P28^2)+(P29^2))","v":16.970562748477139},{"$f":"Q28+Q29","v":15},{"$f":"SQRT((R28^2)+(R29^2))","v":35.355339059327378},{"$f":"S28+S29","v":2},{"$f":"SQRT((T28^2)+(T29^2))","v":12.649110640673518},{"$f":"U28+U29","v":0},{"$f":"SQRT((V28^2)+(V29^2))","v":16.970562748477139},{"$f":"W28+W29","v":40},{"$f":"SQRT((X28^2)+(X29^2))","v":40.80441152620633},{"$f":"Y28+Y29","v":11},{"$f":"SQRT((Z28^2)+(Z29^2))","v":24.041630560342615},{"$f":"AA28+AA29","v":35},{"$f":"SQRT((AB28^2)+(AB29^2))","v":43.46262762420146},{"$f":"AC28+AC29","v":3},{"$f":"SQRT((AD28^2)+(AD29^2))","v":12.649110640673518},{"$f":"AE28+AE29","v":5},{"$f":"SQRT((AF28^2)+(AF29^2))","v":20.615528128088304},{"$f":"AG28+AG29","v":0},{"$f":"SQRT((AH28^2)+(AH29^2))","v":24.041630560342615},{"$f":"AI28+AI29","v":39},{"$f":"SQRT((AJ28^2)+(AJ29^2))","v":66.219332524573218},{"$f":"AK28+AK29","v":0},{"$f":"SQRT((AL28^2)+(AL29^2))","v":16.970562748477139},{"$f":"AM28+AM29","v":0},{"$f":"SQRT((AN28^2)+(AN29^2))","v":16.970562748477139},{"$f":"AO28+AO29","v":12},{"$f":"SQRT((AP28^2)+(AP29^2))","v":21.633307652783937},{"$f":"AQ28+AQ29","v":19},{"$f":"SQRT((AR28^2)+(AR29^2))","v":35.355339059327378},{"$f":"AS28+AS29","v":21},{"$f":"SQRT((AT28^2)+(AT29^2))","v":33.241540277189323},{"$f":"AU28+AU29","v":8},{"$f":"SQRT((AV28^2)+(AV29^2))","v":16.970562748477139},{"$f":"AW28+AW29","v":0},{"$f":"SQRT((AX28^2)+(AX29^2))","v":16.970562748477139},{"$f":"AY28+AY29","v":10},{"$f":"SQRT((AZ28^2)+(AZ29^2))","v":16.278820596099706},{"$f":"BA28+BA29","v":8},{"$f":"SQRT((BB28^2)+(BB29^2))","v":10.440306508910551},{"$f":"BC28+BC29","v":10},{"$f":"SQRT((BD28^2)+(BD29^2))","v":19.209372712298546}]
[]
[]
[]
[]
[]
[]
[]
[]
[]
[]
[]
[]
[]
[]
[]
[]
[]
[]
[]
[]
[]
[]
[]
[]
[]
[]
[]
[]
[]
[]
[]
[]
[]
[]
[]
[]
[]
[]
[]
[]
[null,"Calculated B25032. TENURE BY UNITS IN STRUCTURE "]
[null,"Universe:  OCCUPIED HOUSING UNITS"]
[null,"Data Set: 2013-2017 American Community Survey 5-Year Estimates"]
[]
[null,null,"Allenstown",null,"Andover",null,"Boscawen",null,"Bow",null,"Bradford",null,"Canterbury",null,"Chichester",null,"Concord",null,"Danbury",null,"Dunbarton",null,"Epsom",null,"Franklin",null,"Henniker",null,"Hill",null,"Hooksett",null,"Hopkinton",null,"Loudon",null,"Newbury",null,"New London",null,"Northfield",null,"Pembroke",null,"Pittsfield",null,"Salisbury",null,"Sutton",null,"Warner",null,"Webster",null,"Wilmot"]
[null,null,"Estimate","Margin Of Error","Estimate","Margin Of Error","Estimate","Margin Of Error","Estimate","Margin Of Error","Estimate","Margin Of Error","Estimate","Margin Of Error","Estimate","Margin Of Error","Estimate","Margin Of Error","Estimate","Margin Of Error","Estimate","Margin Of Error","Estimate","Margin Of Error","Estimate","Margin Of Error","Estimate","Margin Of Error","Estimate","Margin Of Error","Estimate","Margin Of Error","Estimate","Margin Of Error","Estimate","Margin Of Error","Estimate","Margin Of Error","Estimate","Margin Of Error","Estimate","Margin Of Error","Estimate","Margin Of Error","Estimate","Margin Of Error","Estimate","Margin Of Error","Estimate","Margin Of Error","Estimate","Margin Of Error","Estimate","Margin Of Error","Estimate","Margin Of Error"]
[null,"Total:",1690,118,1071,84,1241,126,2846,103,646,79,895,69,991,48,17011,407,568,64,1020,45,1751,119,3494,212,1690,144,400,46,5143,201,2057,114,2024,165,822,89,1678,160,1770,84,2608,145,1586,115,535,63,772,100,1048,93,781,56,652,64]
[null,"Owner-occupied housing units:",1223,125,914,83,856,140,2501,111,584,82,846,67,903,62,9069,391,487,62,922,51,1419,117,1974,176,1168,141,366,46,4146,207,1822,132,1745,167,773,92,1267,123,1311,101,1881,195,921,128,503,61,667,99,783,85,685,54,509,63]
[null,"Single Family",649,98,857,85,623,125,2451,114,566,84,830,68,820,77,6624,325,426,59,884,54,1027,115,1700,169,1114,138,335,45,3264,198,1581,150,1454,158,741,92,1044,112,1093,103,1574,181,863,119,480,61,653,100,736,80,647,56,485,61]
[null,"Multi-Family",124,60.099916805266879,15,30.413812651491099,30,46.583258795408462,35,44.079473681068379,10,28.106938645110393,10,29.916550603303182,28,43.382023926967726,1542,203.19448811422026,15,30.04995840263344,33,31.272991542223778,85,50.744457825461097,197,84.225886756982263,37,39.585350825778974,4,27.404379212089442,657,159.00628918379297,87,68.64400920692205,35,54.598534778874793,25,27.073972741361768,215,67.631353675643666,47,40.422765862815474,279,110.06816070054046,20,30.692018506445613,8,25.80697580112788,14,29.949958263743873,7,25.80697580112788,12,23.49468024894146,14,26.514147167125703]
[null,"Mobile Home & Other",450,88.68483523128404,42,26.40075756488817,203,69.871310278253688,15,23.430749027719962,8,13.038404810405298,6,14.212670403551895,55,47.296934361541872,903,147.80054127099805,46,30.083217912982647,5,13.601470508735444,307,97.621718894926246,77,39,17,22.825424421026653,27,20.248456731316587,225,73.979726952726722,154,85.328775919967356,256,116.96580696938743,7,14.866068747318506,8,17.029386365926403,171,66.91038783328041,28,33.541019662496844,38,28.231188426986208,15,15.556349186104045,0,15.556349186104045,40,26.40075756488817,26,18.601075237738275,10,18.601075237738275]
[null,"Renter-occupied housing units:",467,107,157,66,385,91,345,88,62,23,49,31,88,39,7942,349,81,39,98,40,332,112,1520,196,522,105,34,18,997,142,235,84,279,114,49,31,411,118,459,106,727,202,665,131,32,26,105,43,265,65,96,35,143,45]
[null,"Single Family",90,56,83,51,70,37,150,65,44,20,9,10,36,21,762,212,22,21,52,28,171,90,220,84,104,64,19,12,143,72,115,73,153,82,44,30,165,68,48,41,97,82,86,63,28,26,85,39,74,36,48,25,96,39]
[null,"Multi-Family",366,118.4694053331914,74,50.099900199501398,275,110.63905277974861,195,72.159545453113822,18,25.475478405713993,40,38.379682124790975,40,41.158231254513353,7063,509.13455981695057,15,31.859064644147981,46,35.846896657869841,141,73.95944834840239,1300,229.55391523561519,355,125.38341198101126,7,25.416530054277668,831,164.37761404765553,120,84.846920981258947,126,90.901045098502578,5,27.838821814150108,246,94.651994168110377,402,120.76837334335509,630,204.63626267111115,569,152.72196960490001,4,27.404379212089442,20,33.451457367355459,175,59.211485372349848,36,33.181320046074113,36,28.460498941515414]
[null,"Mobile Home & Other",11,19.416487838947599,0,15.556349186104045,40,35.735136770411273,0,21.213203435596427,0,15.556349186104045,0,15.556349186104045,12,21.095023109728988,117,70.837842993699354,44,33.837848631377263,0,15.556349186104045,20,22.825424421026653,0,21.213203435596427,63,51.195702944680818,8,16.278820596099706,23,30.232432915661949,0,21.213203435596427,0,21.213203435596427,0,15.556349186104045,0,15.556349186104045,9,18.601075237738275,0,21.213203435596427,10,18.601075237738275,0,15.556349186104045,0,15.556349186104045,16,28.231188426986208,12,17.804493814764857,11,20.248456731316587]
[]
[]
[]
[null,"Calculated B25032. TENURE BY UNITS IN STRUCTURE "]
[null,"Universe:  OCCUPIED HOUSING UNITS"]
[null,"Data Set: 2008-2012 American Community Survey 5-Year Estimates"]
[]
[null,null,"Allenstown",null,"Andover",null,"Boscawen",null,"Bow",null,"Bradford",null,"Canterbury",null,"Chichester",null,"Concord",null,"Danbury",null,"Dunbarton",null,"Epsom",null,"Franklin",null,"Henniker",null,"Hill",null,"Hooksett",null,"Hopkinton",null,"Loudon",null,"Newbury",null,"New London",null,"Northfield",null,"Pembroke",null,"Pittsfield",null,"Salisbury",null,"Sutton",null,"Warner",null,"Webster",null,"Wilmot"]
[null,null,"Estimate","Margin Of Error","Estimate","Margin Of Error","Estimate","Margin Of Error","Estimate","Margin Of Error","Estimate","Margin Of Error","Estimate","Margin Of Error","Estimate","Margin Of Error","Estimate","Margin Of Error","Estimate","Margin Of Error","Estimate","Margin Of Error","Estimate","Margin Of Error","Estimate","Margin Of Error","Estimate","Margin Of Error","Estimate","Margin Of Error","Estimate","Margin Of Error","Estimate","Margin Of Error","Estimate","Margin Of Error","Estimate","Margin Of Error","Estimate","Margin Of Error","Estimate","Margin Of Error","Estimate","Margin Of Error","Estimate","Margin Of Error","Estimate","Margin Of Error","Estimate","Margin Of Error","Estimate","Margin Of Error","Estimate","Margin Of Error","Estimate","Margin Of Error"]
[null,"Total:",1693,132,950,87,1392,199,2577,105,607,65,954,55,941,51,18007,432,461,66,1041,59,1626,106,3375,167,1689,158,445,57,4729,192,2373,132,1912,107,823,86,1672,166,1782,150,2980,168,1528,125,508,63,647,81,1069,68,724,75,540,65]
[null,"Owner-occupied housing units:",1072,170,814,100,1099,162,2322,112,506,65,886,56,889,57,9978,412,353,60,917,71,1485,117,2094,202,1113,134,407,51,4085,210,2169,174,1662,141,794,84,1393,147,1390,186,2150,206,1079,118,472,61,573,75,879,75,659,63,485,65]
[null,"Single Family",615,142,750,107,890,143,2288,120,477,62,836,66,778,75,7353,352,313,58,861,67,1195,110,1760,183,907,153,344,45,3189,197,2038,169,1446,134,780,82,1115,131,1157,192,1792,199,951,114,439,56,552,72,796,66,625,59,471,65]
[null,"Multi-Family",167,163.2237727783548,13,208.67678356731494,63,196.78668654154427,34,210.5017814651458,16,190.78521955329768,22,209.16500663351889,87,177.09037240911772,1838,248.56990968337257,9,190.28925350633966,45,149.30840565755165,16,209.82373554962746,198,176.90675509996785,33,212.0141504711419,14,190.80356390801509,769,228.2761485569616,50,195.75750304905301,8,208.55215175106682,6,208.40105565951436,278,151.23822268196622,86,198.16659657974651,262,175.41379649275024,40,172.81492991058383,3,208.24504796032966,21,191.26421515798506,45,213.22757795369716,14,190.49671913185276,11,190.36281149426219]
[null,"Mobile Home & Other",290,123.79418403139947,51,90.824005637276315,146,107.00467279516349,0,120.20815280171308,13,85.708809348864477,28,88.056799851005266,24,88.887569434651553,787,159.53056133543816,31,87.097646351666697,11,85.586213843118443,274,130.48371545905641,136,96.648848932617923,173,119.50313803411188,49,89.185200566013194,127,100.16985574512923,81,96.648848932617923,208,113.35784048754634,8,85.586213843118443,0,120.20815280171308,147,115.36463929644994,96,112.04463396343441,88,98.615414616580097,30,86.884981440983225,0,120.20815280171308,38,88.600225733346747,20,87.321245982864909,3,85.14693182963201]
[null,"Renter-occupied housing units:",621,150,136,58,293,100,255,68,101,37,68,25,52,36,8029,384,108,42,124,47,141,61,1281,186,576,146,38,27,644,141,204,103,250,99,29,21,279,101,392,109,830,133,449,103,36,23,74,40,190,52,65,31,55,36]
[null,"Single Family",104,76,68,43,92,58,134,61,62,28,8,12,12,13,428,128,54,30,108,46,28,35,198,97,116,67,16,16,131,76,120,86,88,62,25,21,130,67,122,83,179,113,18,20,19,16,51,34,28,21,63,32,3,5]
[null,"Multi-Family",447,186.21492958406961,51,192.98186443290467,151,142.63590010933433,121,181.65076382993826,37,171.70905625505023,60,191.08375127153016,34,211.29600090867788,7513,552.77210494018243,19,190.74852555131324,11,208.82049707823225,77,96.0572745813663,1042,208.85401600160816,394,197.78776504121785,10,170.25862680052367,500,155.56027770610336,84,199.56202043475105,104,171.44678474675459,4,208.2930627745437,149,146.57762448614045,270,156.09292104384491,651,255.92577048824137,375,163.86579875007476,14,208.82049707823225,23,191.58027038293898,133,99.040395798886024,0,224.88886144049019,29,171.97964995894137]
[null,"Mobile Home & Other",70,104.62313319720452,17,88.887569434651553,50,93.107464792034804,0,120.20815280171308,2,85.14693182963201,0,120.20815280171308,6,85.475142585432408,88,111.39569111954016,35,87.555696559390128,5,85.287748240881584,36,90.476516290140168,41,94.810336989170125,66,57.870545184921149,12,87.097646351666697,13,87.555696559390128,0,120.20815280171308,58,108.85311203635843,0,120.20815280171308,0,120.20815280171308,0,120.20815280171308,0,120.20815280171308,56,97.616596949494195,3,85.14693182963201,0,120.20815280171308,29,88.600225733346747,2,85.14693182963201,23,88.887569434651553]

{"sheet":"ACS_Table_B25034","index":47,"n_rows":58,"n_cols":56,"rows_kept":58,"cut":false,"hidden":true,"merged":[]}
[null,"B25034. YEAR STRUCTURE BUILT"]
[null,"Universe:  HOUSING UNITS"]
[null,"Data Set: 2018-2022 American Community Survey 5-Year Estimates"]
[]
[null,null,"Allenstown",null,"Andover",null,"Boscawen",null,"Bow",null,"Bradford",null,"Canterbury",null,"Chichester",null,"Concord",null,"Danbury",null,"Dunbarton",null,"Epsom",null,"Franklin",null,"Henniker",null,"Hill",null,"Hooksett",null,"Hopkinton",null,"Loudon",null,"Newbury",null,"New London",null,"Northfield",null,"Pembroke",null,"Pittsfield",null,"Salisbury",null,"Sutton",null,"Warner",null,"Webster",null,"Wilmot"]
[null,null,"Estimate","Margin Of Error","Estimate","Margin Of Error","Estimate","Margin Of Error","Estimate","Margin Of Error","Estimate","Margin Of Error","Estimate","Margin Of Error","Estimate","Margin Of Error","Estimate","Margin Of Error","Estimate","Margin Of Error","Estimate","Margin Of Error","Estimate","Margin Of Error","Estimate","Margin Of Error","Estimate","Margin Of Error","Estimate","Margin Of Error","Estimate","Margin Of Error","Estimate","Margin Of Error","Estimate","Margin Of Error","Estimate","Margin Of Error","Estimate","Margin Of Error","Estimate","Margin Of Error","Estimate","Margin Of Error","Estimate","Margin Of Error","Estimate","Margin Of Error","Estimate","Margin Of Error","Estimate","Margin Of Error","Estimate","Margin Of Error","Estimate","Margin Of Error"]
[null,"Total:",1881,198,1059,122,1434,145,2922,130,851,66,990,91,1071,73,18864,463,769,103,1089,98,1939,152,4150,332,2560,206,406,62,5294,327,2465,216,2442,225,1513,140,2424,170,2028,150,2711,198,1970,174,730,132,1154,154,1426,125,883,108,719,90]
[null,"Built 2020 or later",0,12,0,12,24,19,0,17,14,18,0,12,14,22,49,56,3,6,0,12,8,12,0,17,0,17,0,12,16,24,0,17,0,17,5,7,0,12,0,12,3,6,10,15,0,12,4,7,0,12,0,12,0,12]
[null,"Built 2010 or 2019",148,76,48,33,143,70,202,84,60,29,41,26,69,34,776,222,25,17,132,81,52,45,129,71,50,52,23,21,642,187,86,72,222,132,155,60,120,55,98,74,81,63,83,70,20,14,30,23,77,36,35,18,52,36]
[null,"Built 2000 to 2009",251,105,172,66,158,66,290,78,63,21,121,44,148,48,1708,309,108,31,211,58,410,137,257,103,163,85,41,21,681,187,310,157,552,217,351,87,253,80,223,121,192,93,192,86,161,100,143,49,156,58,119,31,167,76]
[null,"Built 1990 to 1999",181,94,167,100,209,92,474,112,37,23,137,50,297,116,1491,234,36,19,290,81,419,105,178,87,161,101,79,26,863,158,166,91,242,235,219,69,293,92,111,55,60,64,142,85,60,34,45,39,187,78,98,32,97,35]
[null,"Built 1980 to 1989",276,139,108,56,180,92,644,159,135,52,168,61,170,53,3374,425,189,87,142,48,344,104,338,117,521,146,50,24,1009,204,423,155,449,171,256,76,471,151,495,101,492,129,373,136,123,31,175,51,215,68,169,70,110,37]
[null,"Built 1970 to 1979",351,117,87,40,182,73,580,122,98,50,153,68,126,48,2225,341,162,57,98,39,363,95,564,199,692,301,48,29,941,238,263,109,338,157,165,74,293,119,421,146,500,156,156,114,110,45,149,91,107,47,186,64,47,25]
[null,"Built 1960 to 1969",136,64,51,29,130,74,301,100,55,27,43,32,59,30,1264,290,35,20,62,24,71,47,404,259,110,94,30,19,429,120,309,144,122,92,82,43,232,83,87,63,350,146,180,87,37,27,74,36,123,62,100,35,47,32]
[null,"Built 1950 to 1959",94,54,26,18,55,37,110,57,48,28,98,56,29,18,996,212,27,20,34,22,19,16,399,140,93,68,22,17,191,71,113,84,125,83,102,48,98,52,68,40,195,119,74,60,17,16,91,43,79,41,18,13,25,24]
[null,"Built 1940 to 1949",76,66,11,11,75,75,44,36,52,31,35,37,17,23,719,202,11,17,32,39,0,12,201,85,223,139,24,15,120,102,103,89,31,51,0,12,149,69,112,70,97,131,79,79,19,13,76,67,40,27,52,46,2,3]
[null,"Built 1939 or earlier",368,155,389,92,278,111,277,122,289,66,194,62,142,50,6262,409,173,52,88,36,253,98,1680,298,547,188,89,36,402,133,692,203,361,199,178,67,515,133,413,129,741,186,681,150,183,87,367,108,442,107,106,43,172,41]
[]
[]
[]
[]
[null,"B25034. YEAR STRUCTURE BUILT"]
[null,"Universe:  HOUSING UNITS"]
[null,"Data Set: 2013-2017 American Community Survey 5-Year Estimates"]
[]
[null,null,"Allenstown",null,"Andover",null,"Boscawen",null,"Bow",null,"Bradford",null,"Canterbury",null,"Chichester",null,"Concord",null,"Danbury",null,"Dunbarton",null,"Epsom",null,"Franklin",null,"Henniker",null,"Hill",null,"Hooksett",null,"Hopkinton",null,"Loudon",null,"Newbury",null,"New London",null,"Northfield",null,"Pembroke",null,"Pittsfield",null,"Salisbury",null,"Sutton",null,"Warner",null,"Webster",null,"Wilmot"]
[null,null,"Estimate","Margin Of Error","Estimate","Margin Of Error","Estimate","Margin Of Error","Estimate","Margin Of Error","Estimate","Margin Of Error","Estimate","Margin Of Error","Estimate","Margin Of Error","Estimate","Margin Of Error","Estimate","Margin Of Error","Estimate","Margin Of Error","Estimate","Margin Of Error","Estimate","Margin Of Error","Estimate","Margin Of Error","Estimate","Margin Of Error","Estimate","Margin Of Error","Estimate","Margin Of Error","Estimate","Margin Of Error","Estimate","Margin Of Error","Estimate","Margin Of Error","Estimate","Margin Of Error","Estimate","Margin Of Error","Estimate","Margin Of Error","Estimate","Margin Of Error","Estimate","Margin Of Error","Estimate","Margin Of Error","Estimate","Margin Of Error","Estimate","Margin Of Error"]
[null,"Total:",1769,132,1251,71,1381,146,2948,140,913,89,1056,39,1083,57,18345,413,735,68,1097,48,1904,146,4118,251,2033,179,498,55,5248,213,2290,130,2148,190,1657,128,2248,197,1828,96,2892,177,1671,124,596,68,1019,109,1325,95,924,60,734,66]
[null,"Built 2014 or later",6,11,0,11,0,11,38,38,0,11,5,8,6,9,54,43,0,11,0,11,0,11,13,21,0,11,0,11,27,23,0,15,33,28,5,7,27,23,0,11,0,15,0,11,0,11,9,14,0,11,3,6,0,11]
[null,"Built 2010 or 2013",41,42,6,9,14,16,34,26,0,11,10,11,39,25,249,105,5,7,22,20,9,13,14,21,8,14,10,8,130,56,16,26,80,48,35,30,16,25,0,11,0,15,0,11,6,6,13,15,27,25,15,12,3,6]
[null,"Built 2000 to 2009",199,69,119,45,75,45,456,95,133,36,163,47,196,46,1723,202,168,47,203,42,392,116,247,82,193,74,55,20,997,182,221,89,323,122,322,82,189,70,281,94,332,98,153,77,65,26,155,51,182,62,134,32,192,51]
[null,"Built 1990 to 1999",131,61,178,63,153,63,538,99,45,24,185,54,141,50,1494,263,75,30,181,46,290,100,257,88,116,85,59,20,750,167,392,142,261,124,221,68,314,77,83,43,152,109,108,56,77,36,79,36,161,50,129,45,67,28]
[null,"Built 1980 to 1989",333,95,237,52,144,61,686,110,128,36,258,58,261,68,3487,333,132,37,297,61,382,91,581,126,494,145,85,35,1410,191,410,145,542,150,257,68,392,87,495,127,836,187,327,99,173,41,234,59,201,75,168,43,105,39]
[null,"Built 1970 to 1979",390,103,141,56,314,108,567,118,137,42,116,31,150,46,2255,239,122,40,103,37,344,101,429,129,369,103,86,28,645,127,328,132,394,108,216,73,418,108,324,95,347,126,217,91,78,31,141,50,160,46,148,40,127,43]
[null,"Built 1960 to 1969",127,66,113,57,159,63,263,92,74,29,95,43,28,24,989,156,21,17,84,32,113,69,263,103,119,73,9,10,583,116,271,95,56,59,113,53,237,83,122,52,143,64,112,66,25,14,25,21,59,31,116,43,22,13]
[null,"Built 1950 to 1959",231,95,67,43,140,98,44,27,75,33,22,15,35,24,1094,238,33,23,89,40,106,53,321,102,105,60,32,14,227,84,174,101,60,53,71,48,172,82,113,59,289,114,105,65,24,18,45,26,45,28,46,25,32,20]
[null,"Built 1940 to 1949",92,61,60,36,105,58,63,42,44,22,20,18,17,15,786,172,14,15,7,9,25,38,255,100,37,38,85,32,30,26,32,31,36,40,32,30,91,55,73,48,70,58,33,25,9,16,27,23,31,28,11,10,26,16]
[null,"Built 1939 or earlier",219,87,330,73,277,73,259,73,277,58,182,59,210,57,6214,312,165,43,111,38,243,94,1738,206,592,124,77,31,449,126,446,128,363,107,385,88,392,109,337,97,723,159,616,128,139,47,291,66,459,83,154,42,160,45]
[]
[]
[]
[]
[null,"B25034. YEAR STRUCTURE BUILT"]
[null,"Universe:  HOUSING UNITS"]
[null,"Data Set: 2008-2012 American Community Survey 5-Year Estimates"]
[]
[null,null,"Allenstown",null,"Andover",null,"Boscawen",null,"Bow",null,"Bradford",null,"Canterbury",null,"Chichester",null,"Concord",null,"Danbury",null,"Dunbarton",null,"Epsom",null,"Franklin",null,"Henniker",null,"Hill",null,"Hooksett",null,"Hopkinton",null,"Loudon",null,"Newbury",null,"New London",null,"Northfield",null,"Pembroke",null,"Pittsfield",null,"Salisbury",null,"Sutton",null,"Warner",null,"Webster",null,"Wilmot"]
[null,null,"Estimate","Margin Of Error","Estimate","Margin Of Error","Estimate","Margin Of Error","Estimate","Margin Of Error","Estimate","Margin Of Error","Estimate","Margin Of Error","Estimate","Margin Of Error","Estimate","Margin Of Error","Estimate","Margin Of Error","Estimate","Margin Of Error","Estimate","Margin Of Error","Estimate","Margin Of Error","Estimate","Margin Of Error","Estimate","Margin Of Error","Estimate","Margin Of Error","Estimate","Margin Of Error","Estimate","Margin Of Error","Estimate","Margin Of Error","Estimate","Margin Of Error","Estimate","Margin Of Error","Estimate","Margin Of Error","Estimate","Margin Of Error","Estimate","Margin Of Error","Estimate","Margin Of Error","Estimate","Margin Of Error","Estimate","Margin Of Error","Estimate","Margin Of Error"]
[null,"Total:",1763,147,1124,72,1535,224,2644,119,831,72,1023,34,941,51,19050,444,658,62,1118,65,1839,124,3816,210,1954,189,506,60,4817,199,2555,149,2042,107,1504,102,2316,193,1919,181,3227,205,1682,165,584,69,936,93,1375,116,867,86,668,65]
[null,"Built 2005 or later",114,99,53,40,71,50,111,62,26,15,39,28,17,16,664,173,6,9,51,33,125,69,155,87,102,54,19,11,252,105,123,71,156,88,90,45,96,71,102,75,89,44,53,40,15,17,35,24,63,45,26,14,24,20]
[null,"Built 2000 to 2004",64,41,107,55,55,39,267,82,69,36,109,48,108,42,1164,213,101,42,117,41,295,114,228,93,189,95,29,15,788,179,165,110,147,71,107,57,96,44,73,43,260,94,178,84,44,23,44,25,69,41,118,35,72,32]
[null,"Built 1990 to 1999",111,63,91,44,127,68,411,120,32,18,128,45,143,51,1928,309,107,40,239,56,294,88,131,64,138,84,64,31,684,141,153,69,254,73,239,64,231,80,208,85,105,66,160,96,75,34,45,29,86,33,137,41,79,36]
[null,"Built 1980 to 1989",512,125,155,51,193,93,611,137,136,40,199,52,204,54,3736,347,148,42,206,57,170,65,509,125,443,142,116,34,1065,155,428,122,673,110,209,74,534,125,449,132,639,163,292,84,147,38,176,47,272,83,153,46,120,33]
[null,"Built 1970 to 1979",341,128,124,50,246,87,514,130,138,41,197,62,165,51,2484,326,101,37,104,45,448,105,326,113,357,120,82,37,719,169,338,134,250,73,237,72,391,106,338,102,289,138,170,85,83,27,117,48,115,58,98,34,53,29]
[null,"Built 1960 to 1969",143,70,86,55,125,56,360,91,70,29,62,26,50,32,1112,225,48,29,37,20,102,76,292,107,146,69,35,23,508,116,299,92,185,92,170,58,295,108,123,57,262,104,73,46,34,15,36,26,83,56,130,39,45,25]
[null,"Built 1950 to 1959",119,78,125,56,59,44,135,68,47,29,93,59,44,37,1207,227,35,22,154,63,177,84,361,119,40,32,47,24,276,105,241,88,29,27,68,47,97,60,91,59,346,161,67,41,21,17,86,38,100,70,91,39,35,22]
[null,"Built 1940 to 1949",11,19,91,43,102,68,61,69,33,18,28,34,16,15,673,184,10,11,12,11,59,47,240,91,57,59,47,20,159,87,113,90,76,74,63,47,86,55,54,39,218,127,27,26,17,18,76,43,57,28,7,8,42,22]
[null,"Built 1939 or earlier",348,110,292,80,557,143,174,92,280,46,168,41,194,52,6082,369,102,37,198,65,169,68,1574,232,482,109,67,30,366,142,695,184,272,84,321,74,490,128,481,126,1019,221,662,127,148,48,321,68,530,117,107,38,198,57]

{"sheet":"ACS_Table_B25041","index":48,"n_rows":73,"n_cols":56,"rows_kept":73,"cut":false,"hidden":true,"merged":[]}
[null,"B25041. BEDROOMS "]
[null,"Universe:  HOUSING UNITS"]
[null,"Data Set: 2018-2022 American Community Survey 5-Year Estimates"]
[]
[null,null,"Allenstown",null,"Andover",null,"Boscawen",null,"Bow",null,"Bradford",null,"Canterbury",null,"Chichester",null,"Concord",null,"Danbury",null,"Dunbarton",null,"Epsom",null,"Franklin",null,"Henniker",null,"Hill",null,"Hooksett",null,"Hopkinton",null,"Loudon",null,"Newbury",null,"New London",null,"Northfield",null,"Pembroke",null,"Pittsfield",null,"Salisbury",null,"Sutton",null,"Warner",null,"Webster",null,"Wilmot"]
[null,null,"Estimate","Margin Of Error","Estimate","Margin Of Error","Estimate","Margin Of Error","Estimate","Margin Of Error","Estimate","Margin Of Error","Estimate","Margin Of Error","Estimate","Margin Of Error","Estimate","Margin Of Error","Estimate","Margin Of Error","Estimate","Margin Of Error","Estimate","Margin Of Error","Estimate","Margin Of Error","Estimate","Margin Of Error","Estimate","Margin Of Error","Estimate","Margin Of Error","Estimate","Margin Of Error","Estimate","Margin Of Error","Estimate","Margin Of Error","Estimate","Margin Of Error","Estimate","Margin Of Error","Estimate","Margin Of Error","Estimate","Margin Of Error","Estimate","Margin Of Error","Estimate","Margin Of Error","Estimate","Margin Of Error","Estimate","Margin Of Error","Estimate","Margin Of Error"]
[null,"Total:",1881,198,1059,122,1434,145,2922,130,851,66,990,91,1071,73,18864,463,769,103,1089,98,1939,152,4150,332,2560,206,406,62,5294,327,2465,216,2442,225,1513,140,2424,170,2028,150,2711,198,1970,174,730,132,1154,154,1426,125,883,108,719,90]
[null,"No bedroom",93,92,6,9,69,50,34,32,23,27,0,12,6,11,495,145,13,16,5,7,0,12,21,24,257,163,8,7,93,64,47,56,37,50,32,31,51,47,0,12,141,119,37,45,8,9,45,39,37,35,11,13,23,19]
[null,"1 bedroom",197,108,110,92,75,48,80,44,72,48,49,36,22,15,3097,374,86,45,94,46,117,66,820,221,396,189,37,19,451,127,217,135,173,125,47,26,157,82,174,93,161,90,334,134,29,19,80,39,191,62,38,21,96,55]
[null,"2 bedrooms",618,147,243,69,563,133,390,103,240,58,192,67,192,61,6732,420,289,92,145,43,633,141,884,202,632,188,93,26,1660,267,346,159,564,191,245,72,525,126,728,150,711,199,591,179,227,97,235,66,421,105,279,93,123,47]
[null,"3 bedrooms",834,149,371,83,462,114,1360,164,378,71,449,89,681,100,5901,441,223,51,570,110,887,152,1802,337,938,247,208,48,2339,258,1197,230,1300,290,899,120,1052,149,825,149,1087,205,677,188,381,109,595,156,579,95,421,69,293,74]
[null,"4 bedrooms",137,72,242,84,214,77,851,134,111,39,271,72,134,52,2197,265,115,60,225,49,233,99,571,213,315,127,50,27,628,166,472,146,299,124,259,76,470,98,287,133,554,190,235,80,61,26,124,48,107,42,113,41,159,48]
[null,"5 or more bedrooms",2,5,87,51,51,48,207,96,27,21,29,16,36,29,442,129,43,28,50,28,69,52,52,48,22,27,10,11,123,65,186,100,69,79,31,26,169,77,14,19,57,54,96,61,24,14,75,48,91,45,21,13,25,20]
[]
[]
[null,"Calculated B25041. BEDROOMS "]
[null,"Universe:  HOUSING UNITS"]
[null,"Data Set: 2018-2022 American Community Survey 5-Year Estimates"]
[]
[null,null,"Allenstown",null,"Andover",null,"Boscawen",null,"Bow",null,"Bradford",null,"Canterbury",null,"Chichester",null,"Concord",null,"Danbury",null,"Dunbarton",null,"Epsom",null,"Franklin",null,"Henniker",null,"Hill",null,"Hooksett",null,"Hopkinton",null,"Loudon",null,"Newbury",null,"New London",null,"Northfield",null,"Pembroke",null,"Pittsfield",null,"Salisbury",null,"Sutton",null,"Warner",null,"Webster",null,"Wilmot"]
[null,null,"Estimate","Margin Of Error","Estimate","Margin Of Error","Estimate","Margin Of Error","Estimate","Margin Of Error","Estimate","Margin Of Error","Estimate","Margin Of Error","Estimate","Margin Of Error","Estimate","Margin Of Error","Estimate","Margin Of Error","Estimate","Margin Of Error","Estimate","Margin Of Error","Estimate","Margin Of Error","Estimate","Margin Of Error","Estimate","Margin Of Error","Estimate","Margin Of Error","Estimate","Margin Of Error","Estimate","Margin Of Error","Estimate","Margin Of Error","Estimate","Margin Of Error","Estimate","Margin Of Error","Estimate","Margin Of Error","Estimate","Margin Of Error","Estimate","Margin Of Error","Estimate","Margin Of Error","Estimate","Margin Of Error","Estimate","Margin Of Error","Estimate","Margin Of Error"]
[null,"Total:",{"$f":"C7","v":1881},{"$f":"D7","v":198},1059,122,1434,145,2922,130,851,66,990,91,1071,73,18864,463,769,103,1089,98,1939,152,{"$f":"Y7","v":4150},332,2560,206,406,62,5294,327,2465,216,2442,225,1513,140,2424,170,{"$f":"AO7","v":2028},150,2711,198,1970,174,730,132,1154,154,1426,125,883,108,719,90]
[null,"No bedroom",{"$f":"C8","v":93},92,6,9,69,50,34,32,23,27,0,12,6,11,495,145,13,16,5,7,0,12,{"$f":"Y8","v":21},24,257,163,8,7,93,64,47,56,37,50,32,31,51,47,{"$f":"AO8","v":0},12,141,119,37,45,8,9,45,39,37,35,11,13,23,19]
[null,"1 bedroom",{"$f":"C9","v":197},{"$f":"D9","v":108},110,92,75,48,80,44,72,48,49,36,22,15,3097,374,86,45,94,46,117,66,{"$f":"Y9","v":820},221,396,189,37,19,451,127,217,135,173,125,47,26,157,82,{"$f":"AO9","v":174},93,161,90,334,134,29,19,80,39,191,62,38,21,96,55]
[null,"2 bedrooms",{"$f":"C10","v":618},147,243,69,563,133,390,103,240,58,192,67,192,61,6732,420,289,92,145,43,633,141,{"$f":"Y10","v":884},202,632,188,93,26,1660,267,346,159,564,191,245,72,525,126,{"$f":"AO10","v":728},150,711,199,591,179,227,97,235,66,421,105,279,93,123,47]
[null,"3 bedrooms",{"$f":"C11","v":834},149,371,83,462,114,1360,164,378,71,449,89,681,100,5901,441,223,51,570,110,887,152,{"$f":"Y11","v":1802},337,938,247,208,48,2339,258,1197,230,1300,290,899,120,1052,149,{"$f":"AO11","v":825},149,1087,205,677,188,381,109,595,156,579,95,421,69,293,74]
[null,"4 + bedrooms",{"$f":"C12+C13","v":139},{"$f":"SQRT((D12^2)+(D13^2))","v":72.17340230306452},{"$f":"E12+E13","v":329},{"$f":"SQRT((F12^2)+(F13^2))","v":98.270036124955197},{"$f":"G12+G13","v":265},{"$f":"SQRT((H12^2)+(H13^2))","v":90.735880444287304},{"$f":"I12+I13","v":1058},{"$f":"SQRT((J12^2)+(J13^2))","v":164.83931569865243},{"$f":"K12+K13","v":138},{"$f":"SQRT((L12^2)+(L13^2))","v":44.294469180700204},{"$f":"M12+M13","v":300},{"$f":"SQRT((N12^2)+(N13^2))","v":73.756355658343097},{"$f":"O12+O13","v":170},{"$f":"SQRT((P12^2)+(P13^2))","v":59.539902586416787},{"$f":"Q12+Q13","v":2639},{"$f":"SQRT((R12^2)+(R13^2))","v":294.73038526762048},{"$f":"S12+S13","v":158},{"$f":"SQRT((T12^2)+(T13^2))","v":66.211781428987393},{"$f":"U12+U13","v":275},{"$f":"SQRT((V12^2)+(V13^2))","v":56.435804238089851},{"$f":"W12+W13","v":302},{"$f":"SQRT((X12^2)+(X13^2))","v":111.82575731914361},{"$f":"Y12+Y13","v":623},{"$f":"SQRT((Z12^2)+(Z13^2))","v":218.34147567514515},{"$f":"AA12+AA13","v":337},{"$f":"SQRT((AB12^2)+(AB13^2))","v":129.83836104942176},{"$f":"AC12+AC13","v":60},{"$f":"SQRT((AD12^2)+(AD13^2))","v":29.154759474226502},{"$f":"AE12+AE13","v":751},{"$f":"SQRT((AF12^2)+(AF13^2))","v":178.27226368675525},{"$f":"AG12+AG13","v":658},{"$f":"SQRT((AH12^2)+(AH13^2))","v":176.96327302578916},{"$f":"AI12+AI13","v":368},{"$f":"SQRT((AJ12^2)+(AJ13^2))","v":147.02720836634285},{"$f":"AK12+AK13","v":290},{"$f":"SQRT((AL12^2)+(AL13^2))","v":80.324342512092812},{"$f":"AM12+AM13","v":639},{"$f":"SQRT((AN12^2)+(AN13^2))","v":124.63145670335399},{"$f":"AO12+AO13","v":301},{"$f":"SQRT((AP12^2)+(AP13^2))","v":134.35028842544403},{"$f":"AQ12+AQ13","v":611},{"$f":"SQRT((AR12^2)+(AR13^2))","v":197.52468200202222},{"$f":"AS12+AS13","v":331},{"$f":"SQRT((AT12^2)+(AT13^2))","v":100.60318086422517},{"$f":"AU12+AU13","v":85},{"$f":"SQRT((AV12^2)+(AV13^2))","v":29.529646120466801},{"$f":"AW12+AW13","v":199},{"$f":"SQRT((AX12^2)+(AX13^2))","v":67.882250993908556},{"$f":"AY12+AY13","v":198},{"$f":"SQRT((AZ12^2)+(AZ13^2))","v":61.554853586049575},{"$f":"BA12+BA13","v":134},{"$f":"SQRT((BB12^2)+(BB13^2))","v":43.011626335213137},{"$f":"BC12+BC13","v":184},{"$f":"SQRT((BD12^2)+(BD13^2))","v":52}]
[]
[]
[]
[]
[]
[]
[]
[]
[]
[]
[]
[]
[]
[]
[]
[]
[]
[]
[]
[null,"Calculated B25041. BEDROOMS "]
[null,"Universe:  HOUSING UNITS"]
[null,"Data Set: 2013-2017 American Community Survey 5-Year Estimates"]
[]
[null,null,"Allenstown",null,"Andover",null,"Boscawen",null,"Bow",null,"Bradford",null,"Canterbury",null,"Chichester",null,"Concord",null,"Danbury",null,"Dunbarton",null,"Epsom",null,"Franklin",null,"Henniker",null,"Hill",null,"Hooksett",null,"Hopkinton",null,"Loudon",null,"Newbury",null,"New London",null,"Northfield",null,"Pembroke",null,"Pittsfield",null,"Salisbury",null,"Sutton",null,"Warner",null,"Webster",null,"Wilmot"]
[null,null,"Estimate","Margin Of Error","Estimate","Margin Of Error","Estimate","Margin Of Error","Estimate","Margin Of Error","Estimate","Margin Of Error","Estimate","Margin Of Error","Estimate","Margin Of Error","Estimate","Margin Of Error","Estimate","Margin Of Error","Estimate","Margin Of Error","Estimate","Margin Of Error","Estimate","Margin Of Error","Estimate","Margin Of Error","Estimate","Margin Of Error","Estimate","Margin Of Error","Estimate","Margin Of Error","Estimate","Margin Of Error","Estimate","Margin Of Error","Estimate","Margin Of Error","Estimate","Margin Of Error","Estimate","Margin Of Error","Estimate","Margin Of Error","Estimate","Margin Of Error","Estimate","Margin Of Error","Estimate","Margin Of Error","Estimate","Margin Of Error","Estimate","Margin Of Error"]
[null,"Total:",1769,132,1251,71,1381,146,2948,140,913,89,1056,39,1083,57,18345,413,735,68,1097,48,1904,146,4118,251,2033,179,498,55,5248,213,2290,130,2148,190,1657,128,2248,197,1828,96,2892,177,1671,124,596,68,1019,109,1325,95,924,60,734,66]
[null,"No bedroom",16,15,0,11,29,36,7,12,30,23,0,11,0,11,610,187,11,9,0,11,35,44,59,69,28,34,0,11,11,14,11,18,0,15,9,10,33,38,0,11,31,35,36,46,15,18,15,13,39,33,29,21,15,15]
[null,"1 bedroom",279,103,76,42,100,56,103,39,27,15,41,22,47,30,3184,292,40,23,51,31,141,65,829,222,194,74,25,16,491,125,108,54,110,87,69,37,148,71,115,65,336,119,262,100,18,11,78,35,170,61,110,42,23,13]
[null,"2 bedrooms",571,127,308,90,516,123,414,111,252,57,314,78,241,60,6595,387,244,55,238,60,672,148,993,171,702,124,128,33,1505,238,477,145,655,167,360,86,504,141,668,119,815,203,551,128,133,42,221,58,333,86,218,42,176,48]
[null,"3 bedrooms",669,120,603,98,535,149,1411,131,425,77,445,75,640,74,5380,358,314,58,542,70,846,133,1506,179,771,149,263,50,2394,241,978,175,1071,178,783,121,1033,143,762,135,1211,192,628,127,300,53,451,86,557,89,416,60,410,55]
[null,"4 + bedrooms",234,80.777472107017559,264,68.8839603971781,201,94.148818367518558,1013,147.46185947559457,179,48.020828814171878,256,62.769419305900861,155,52.952809179494906,2576,256.8890811225732,126,39.11521443121589,266,55.154328932550705,210,71.784399419372448,731,173.97126199461795,338,109.04127658827184,82,32.202484376209235,847,176.28386199536246,716,175.11424842085239,312,104.44615837837216,436,98.386991009990751,530,121.40016474453401,283,81.859635963031252,499,132.28000604777731,194,61.587336360651285,130,40.311288741492746,254,65.741919655574407,226,66.309878600401618,151,42.720018726587654,110,41.400483088968905]
[]
[]
[]
[null,"Calculated B25041. BEDROOMS "]
[null,"Universe:  HOUSING UNITS"]
[null,"Data Set: 2008-2012 American Community Survey 5-Year Estimates"]
[]
[null,null,"Allenstown",null,"Andover",null,"Boscawen",null,"Bow",null,"Bradford",null,"Canterbury",null,"Chichester",null,"Concord",null,"Danbury",null,"Dunbarton",null,"Epsom",null,"Franklin",null,"Henniker",null,"Hill",null,"Hooksett",null,"Hopkinton",null,"Loudon",null,"Newbury",null,"New London",null,"Northfield",null,"Pembroke",null,"Pittsfield",null,"Salisbury",null,"Sutton",null,"Warner",null,"Webster",null,"Wilmot"]
[null,null,"Estimate","Margin Of Error","Estimate","Margin Of Error","Estimate","Margin Of Error","Estimate","Margin Of Error","Estimate","Margin Of Error","Estimate","Margin Of Error","Estimate","Margin Of Error","Estimate","Margin Of Error","Estimate","Margin Of Error","Estimate","Margin Of Error","Estimate","Margin Of Error","Estimate","Margin Of Error","Estimate","Margin Of Error","Estimate","Margin Of Error","Estimate","Margin Of Error","Estimate","Margin Of Error","Estimate","Margin Of Error","Estimate","Margin Of Error","Estimate","Margin Of Error","Estimate","Margin Of Error","Estimate","Margin Of Error","Estimate","Margin Of Error","Estimate","Margin Of Error","Estimate","Margin Of Error","Estimate","Margin Of Error","Estimate","Margin Of Error","Estimate","Margin Of Error"]
[null,"Total:",1763,147,1124,72,1535,224,2644,119,831,72,1023,34,941,51,19050,444,658,62,1118,65,1839,124,3816,210,1954,189,506,60,4817,199,2555,149,2042,107,1504,102,2316,193,1919,181,3227,205,1682,165,584,69,936,93,1375,116,867,86,668,65]
[null,"No bedroom",147,87,0,85,32,38,0,85,9,14,0,85,17,27,366,160,35,29,0,85,0,85,98,76,47,54,3,4,69,79,32,50,48,50,0,85,15,24,15,24,19,27,23,21,3,4,23,21,28,31,0,85,3,4]
[null,"1 bedroom",268,105,122,62,74,47,74,34,77,27,43,28,36,29,3276,357,101,47,49,47,105,59,750,170,322,116,62,28,273,112,135,93,71,66,54,38,133,71,155,82,526,182,193,77,11,15,77,39,148,66,90,37,33,23]
[null,"2 bedrooms",506,139,440,89,535,138,411,122,206,48,370,72,205,59,6986,455,231,51,213,67,653,135,990,169,597,168,152,44,1327,197,458,150,476,134,443,100,461,126,594,140,770,203,518,149,220,52,212,63,469,100,204,53,178,48]
[null,"3 bedrooms",659,141,414,79,668,131,1250,187,358,66,403,71,508,82,5818,433,201,47,569,81,855,115,1357,216,728,143,214,48,2515,238,1076,211,1035,131,669,103,1074,182,881,156,1292,209,592,132,249,50,437,70,543,106,431,61,261,48]
[null,"4 + bedrooms",183,92.477024173575131,148,54.230987451824994,226,97.8008179924892,909,165.92166826548001,181,51,207,57.801384066473702,175,47.423622805517503,2604,306.4930668057599,90,40.607881008493905,287,74.249579123386283,226,79.705708703956702,621,150.58552387264854,260,134.31678971744373,75,33.301651610693426,633,136.0588108135596,854,180.31361568112376,412,111,338,84.148677945645701,633,127.62444906835053,274,107.96758772891057,620,143.29340529138108,356,102.52804494381037,101,34,187,49.040799340956916,187,58.249463516842795,142,43.011626335213137,193,55.470712993434653]

{"sheet":"PovertyCharacteristics","index":49,"n_rows":82,"n_cols":17,"rows_kept":82,"cut":false,"hidden":true,"merged":[[77,2,78,3],[77,6,78,9],[77,11,78,13],[21,15,21,16],[49,15,49,16],[64,15,64,16],[21,11,21,13],[30,2,31,4],[30,7,31,9],[30,11,31,13],[49,11,49,14],[21,3,21,5],[21,7,21,9],[64,3,64,5],[64,7,64,9],[64,11,64,14]]}
[]
[null,null,{"$f":"CntyDataLink!A86","v":"Allenstown"}]
[null,null,"POVERTY CHARACTERISTICS"]
[]
[]
[]
[]
[]
[]
[]
[]
[]
[]
[]
[]
[]
[]
[null,null,null,null,null,null,null,null,null,null,null,null,"2012 Income (2008-2012 ACS)"]
[null,null,null,null,null,null,null,null,null,null,null,null,"2017 Income (2013-2017 ACS)"]
[null,null,null,null,null,null,null,null,null,null,null,null,"2022 Income (2018-2022 ACS)"]
[]
[null,null,null,"2012 Inc below Poverty Level",null,null,null,"2017 Inc below Poverty Level",null,null,null,"2022 Inc below Poverty Level",null,null,null,"Statistically Significant Change"]
[null,null,"Population","Estimate","Margin of Error","% of Population in Poverty",null,"Estimate","Margin of Error","% of Population in Poverty",null,"Estimate","Margin of Error","% of Population in Poverty",null,"2012-2022","2017-2022"]
[null,null," Total Individuals living Poverty",{"$f":"CntyDataLinkPrior10YearEstimate!$D$124","v":312},{"$f":"CntyDataLinkPrior10YearEstimate!$E$124","v":214},{"$f":"D24/CntyDataLinkPrior10YearEstimate!$B$124","v":7.0828603859250855E-2},null,{"$f":"CntyDataLinkPrior5YearEstimates!$D$124","v":470},{"$f":"CntyDataLinkPrior5YearEstimates!$E$124","v":169},{"$f":"H24/CntyDataLinkPrior5YearEstimates!$B$124","v":0.11064030131826742},null,{"$f":"CntyDataLink!$D$124","v":515},{"$f":"CntyDataLink!$E$124","v":299},{"$f":"L24/CntyDataLink!$B$124","v":0.11137543252595156},null,{"$f":"StatisticallySignificantCalcs!$A112","v":"N"},{"$f":"StatisticallySignificantCalcs!$J$112","v":"N"}]
[null,null,"Under 5 yrs.",{"$f":"CntyDataLinkPrior10YearEstimate!$F$124","v":38},{"$f":"CntyDataLinkPrior10YearEstimate!$G$124","v":26.90724809414742},{"$f":"D25/(CntyDataLinkPrior10YearEstimate!$F$124+CntyDataLinkPrior10YearEstimate!$R$124)","v":0.16964285714285715},null,{"$f":"CntyDataLinkPrior5YearEstimates!$F$124","v":9},{"$f":"CntyDataLinkPrior5YearEstimates!$G$124","v":49.040799340956916},{"$f":"H25/(CntyDataLinkPrior5YearEstimates!$F$124+CntyDataLinkPrior5YearEstimates!$R$124)","v":3.9823008849557522E-2},null,{"$f":"CntyDataLink!$F$124","v":21},{"$f":"CntyDataLink!$G$124","v":36.715119501371639},{"$f":"L25/(CntyDataLink!$F$124+CntyDataLink!$R$124)","v":9.9056603773584911E-2},null,{"$f":"StatisticallySignificantCalcs!$A113","v":"N"},{"$f":"StatisticallySignificantCalcs!$J$113","v":"N"}]
[null,null,"5 to 17 yrs.",{"$f":"CntyDataLinkPrior10YearEstimate!$H$124","v":75},{"$f":"CntyDataLinkPrior10YearEstimate!$I$124","v":232.64350410015751},{"$f":"D26/(CntyDataLinkPrior10YearEstimate!$H$124+CntyDataLinkPrior10YearEstimate!$T$124)","v":9.8296199213630406E-2},null,{"$f":"CntyDataLinkPrior5YearEstimates!$H$124","v":95},{"$f":"CntyDataLinkPrior5YearEstimates!$I$124","v":62.297672508690084},{"$f":"H26/(CntyDataLinkPrior5YearEstimates!$H$124+CntyDataLinkPrior5YearEstimates!$T$124)","v":0.17625231910946196},null,{"$f":"CntyDataLink!$H$124","v":88},{"$f":"CntyDataLink!$I$124","v":63.2771680782255},{"$f":"L26/(CntyDataLink!$H$124+CntyDataLink!$T$124)","v":0.12307692307692308},null,{"$f":"StatisticallySignificantCalcs!$A114","v":"N"},{"$f":"StatisticallySignificantCalcs!$J$114","v":"N"}]
[null,null,"18 to 64 yrs.",{"$f":"CntyDataLinkPrior10YearEstimate!$J$124","v":150},{"$f":"CntyDataLinkPrior10YearEstimate!$K$124","v":151.28450019747561},{"$f":"D27/(CntyDataLinkPrior10YearEstimate!$J$124+CntyDataLinkPrior10YearEstimate!$V$124)","v":5.0539083557951482E-2},null,{"$f":"CntyDataLinkPrior5YearEstimates!$J$124","v":339},{"$f":"CntyDataLinkPrior5YearEstimates!$K$124","v":109.98636279102969},{"$f":"H27/(CntyDataLinkPrior5YearEstimates!$J$124+CntyDataLinkPrior5YearEstimates!$V$124)","v":0.1165348917153661},null,{"$f":"CntyDataLink!$J$124","v":330},{"$f":"CntyDataLink!$K$124","v":160.44936896105264},{"$f":"L27/(CntyDataLink!$J$124+CntyDataLink!$V$124)","v":0.1057014734144779},null,{"$f":"StatisticallySignificantCalcs!$A115","v":"N"},{"$f":"StatisticallySignificantCalcs!$J$115","v":"N"}]
[null,null,"65 to 74 yrs.",{"$f":"CntyDataLinkPrior10YearEstimate!$L$124","v":30},{"$f":"CntyDataLinkPrior10YearEstimate!$M$124","v":33.241540277189323},{"$f":"D28/(CntyDataLinkPrior10YearEstimate!$L$124+CntyDataLinkPrior10YearEstimate!$X$124)","v":0.10416666666666667},null,{"$f":"CntyDataLinkPrior5YearEstimates!$L$124","v":0},{"$f":"CntyDataLinkPrior5YearEstimates!$M$124","v":15.556349186104045},{"$f":"H28/(CntyDataLinkPrior5YearEstimates!$L$124+CntyDataLinkPrior5YearEstimates!$X$124)","v":0},null,{"$f":"CntyDataLink!$L$124","v":55},{"$f":"CntyDataLink!$M$124","v":54.571054598569013},{"$f":"L28/(CntyDataLink!$L$124+CntyDataLink!$X$124)","v":0.12731481481481483},null,{"$f":"StatisticallySignificantCalcs!$A116","v":"N"},{"$f":"StatisticallySignificantCalcs!$J$116","v":"N"}]
[null,null,"75 yrs. & Over",{"$f":"CntyDataLinkPrior10YearEstimate!$N$124","v":19},{"$f":"CntyDataLinkPrior10YearEstimate!$O$124","v":27.294688127912362},{"$f":"D29/(CntyDataLinkPrior10YearEstimate!$N$124+CntyDataLinkPrior10YearEstimate!$Z$124)","v":0.11728395061728394},null,{"$f":"CntyDataLinkPrior5YearEstimates!$N$124","v":27},{"$f":"CntyDataLinkPrior5YearEstimates!$O$124","v":23.600847442411894},{"$f":"H29/(CntyDataLinkPrior5YearEstimates!$N$124+CntyDataLinkPrior5YearEstimates!$Z$124)","v":0.10037174721189591},null,{"$f":"CntyDataLink!$N$124","v":21},{"$f":"CntyDataLink!$O$124","v":21.377558326431949},{"$f":"L29/(CntyDataLink!$N$124+CntyDataLink!$Z$124)","v":0.14685314685314685},null,{"$f":"StatisticallySignificantCalcs!$A117","v":"N"},{"$f":"StatisticallySignificantCalcs!$J$117","v":"N"}]
[]
[null,null,"Source: 2008-2012 American Community Survey  Table B1701",null,null,null,null,"Source: 2013-2017 American Community Survey  Table B1701",null,null,null,"Source: 2018-2022 American Community Survey  Table B1701"]
[]
[]
[]
[]
[]
[]
[]
[]
[]
[]
[]
[]
[]
[]
[]
[]
[]
[]
[null,null,null,{"$f":"D22","v":"2012 Inc below Poverty Level"},null,null,null,{"$f":"H22","v":"2017 Inc below Poverty Level"},null,null,null,{"$f":"L22","v":"2022 Inc below Poverty Level"},null,null,null,"Statistically Significant Change"]
[null,null,null,"Estimate","Margin of Error","% of Family Type in Poverty",null,"Estimate","Margin of Error ","% of Family Type in Poverty",null,"Estimate","Margin of Error ","% of Family Type in Poverty",null,{"$f":"P23","v":"2012-2022"},"2017-2022"]
[]
[]
[null,null,"Total Households",{"$f":"CntyDataLinkPrior10YearEstimate!$AD$124","v":44},{"$f":"CntyDataLinkPrior10YearEstimate!$AE$124","v":38},{"$f":"$D54/($D54+$D68)","v":2.7534418022528161E-2},null,{"$f":"CntyDataLinkPrior5YearEstimates!$AD$124","v":121},{"$f":"CntyDataLinkPrior5YearEstimates!$AE$124","v":63},{"$f":"$H54/($H54+$H68)","v":7.5577763897564029E-2},null,{"$f":"CntyDataLink!$AD$124","v":80},{"$f":"CntyDataLink!$AE$124","v":72},{"$f":"$L54/($L54+$L68)","v":4.6376811594202899E-2},null,{"$f":"StatisticallySignificantCalcs!$A$94","v":"N"},{"$f":"StatisticallySignificantCalcs!$J$94","v":"N"}]
[null,null,"Family Households",{"$f":"CntyDataLinkPrior10YearEstimate!$AF$124","v":30},{"$f":"CntyDataLinkPrior10YearEstimate!$AG$124","v":32},{"$f":"$D55/($D55+$D69)","v":2.508361204013378E-2},null,{"$f":"CntyDataLinkPrior5YearEstimates!$AF$124","v":57},{"$f":"CntyDataLinkPrior5YearEstimates!$AG$124","v":46},{"$f":"$H55/($H55+$H69)","v":5.5232558139534885E-2},null,{"$f":"CntyDataLink!$AF$124","v":42},{"$f":"CntyDataLink!$AG$124","v":48},{"$f":"$L55/($L55+$L69)","v":4.0423484119345522E-2},null,{"$f":"StatisticallySignificantCalcs!$A$95","v":"N"},{"$f":"StatisticallySignificantCalcs!$J$95","v":"N"}]
[null,null,"Married Couple Fam HH",{"$f":"CntyDataLinkPrior10YearEstimate!$AH$124","v":0},{"$f":"CntyDataLinkPrior10YearEstimate!$AI$124","v":0},{"$f":"$D56/($D56+$D70)","v":0},null,{"$f":"CntyDataLinkPrior5YearEstimates!$AH$124","v":11},{"$f":"CntyDataLinkPrior5YearEstimates!$AI$124","v":16},1.3994910941475827E-2,null,{"$f":"CntyDataLink!$AH$124","v":13},{"$f":"CntyDataLink!$AI$124","v":17},1.7426273458445041E-2,null,{"$f":"StatisticallySignificantCalcs!$A$96","v":"N"},{"$f":"StatisticallySignificantCalcs!$J$96","v":"N"}]
[null,null,"M C Fam HH w/Children",{"$f":"CntyDataLinkPrior10YearEstimate!$BN$124","v":0},{"$f":"CntyDataLinkPrior10YearEstimate!$BO$124","v":0},0,null,{"$f":"CntyDataLinkPrior5YearEstimates!$BN$124","v":12},{"$f":"CntyDataLinkPrior5YearEstimates!$BO$124","v":19},3.614457831325301E-2,null,{"$f":"CntyDataLink!$BN$124","v":0},{"$f":"CntyDataLink!$BO$124","v":12},0,null,{"$f":"StatisticallySignificantCalcs!$A$97","v":"N"},{"$f":"StatisticallySignificantCalcs!$J$97","v":"N"}]
[null,null,"Male Head of Family HH ",{"$f":"CntyDataLinkPrior10YearEstimate!$AL$124","v":0},{"$f":"CntyDataLinkPrior10YearEstimate!$AM$124","v":85},0,null,{"$f":"CntyDataLinkPrior5YearEstimates!$AL$124","v":0},{"$f":"CntyDataLinkPrior5YearEstimates!$AM$124","v":11},0,null,{"$f":"CntyDataLink!$AL$124","v":0},{"$f":"CntyDataLink!$AM$124","v":12},0,null,{"$f":"StatisticallySignificantCalcs!$A$98","v":"N"},{"$f":"StatisticallySignificantCalcs!$J$98","v":"N"}]
[null,null,"Male Head of HH w/Children",{"$f":"CntyDataLinkPrior10YearEstimate!$BP$124","v":44},{"$f":"CntyDataLinkPrior10YearEstimate!$BQ$124","v":38},3.6363636363636362E-2,null,{"$f":"CntyDataLinkPrior5YearEstimates!$BP$124","v":0},{"$f":"CntyDataLinkPrior5YearEstimates!$BQ$124","v":11},0,null,{"$f":"CntyDataLink!$BP$124","v":0},{"$f":"CntyDataLink!$BQ$124","v":12},0,null,{"$f":"StatisticallySignificantCalcs!$A$99","v":"Y"},{"$f":"StatisticallySignificantCalcs!$J$99","v":"N"}]
[null,null,"Female Head of Family HH ",{"$f":"CntyDataLinkPrior10YearEstimate!$AN$124","v":14},{"$f":"CntyDataLinkPrior10YearEstimate!$AO$124","v":21},5.3231939163498096E-2,null,{"$f":"CntyDataLinkPrior5YearEstimates!$AN$124","v":64},{"$f":"CntyDataLinkPrior5YearEstimates!$AO$124","v":51},0.33160621761658032,null,{"$f":"CntyDataLink!$AN$124","v":38},{"$f":"CntyDataLink!$AO$124","v":49},0.14901960784313725,null,{"$f":"StatisticallySignificantCalcs!$A$100","v":"N"},{"$f":"StatisticallySignificantCalcs!$J$100","v":"N"}]
[null,null,"Female Head of HH w/Children",{"$f":"CntyDataLinkPrior10YearEstimate!$BR$124","v":15},{"$f":"CntyDataLinkPrior10YearEstimate!$BS$124","v":24},2.7624309392265192E-2,null,{"$f":"CntyDataLinkPrior5YearEstimates!$BR$124","v":52},{"$f":"CntyDataLinkPrior5YearEstimates!$BS$124","v":47},0.43697478991596639,null,{"$f":"CntyDataLink!$BR$124","v":38},{"$f":"CntyDataLink!$BS$124","v":49},0.3247863247863248,null,{"$f":"StatisticallySignificantCalcs!$A$101","v":"N"},{"$f":"StatisticallySignificantCalcs!$J$101","v":"N"}]
[null,null,"Non-Family HH ",{"$f":"CntyDataLinkPrior10YearEstimate!$AP$124","v":95},{"$f":"CntyDataLinkPrior10YearEstimate!$AQ$124","v":84},0.30944625407166126,null,{"$f":"CntyDataLinkPrior5YearEstimates!$AP$124","v":89},{"$f":"CntyDataLinkPrior5YearEstimates!$AQ$124","v":56},0.14983164983164984,null,{"$f":"CntyDataLink!$AP$124","v":87},{"$f":"CntyDataLink!$AQ$124","v":91},0.11836734693877551,null,{"$f":"StatisticallySignificantCalcs!$A$102","v":"N"},{"$f":"StatisticallySignificantCalcs!$J$102","v":"N"}]
[]
[null,"Data from the American Community Survey are estimates."]
[null,null,null,"2012 Inc at or Above Poverty Level",null,null,null,"2017 Inc at or Above Poverty Level",null,null,null,"2022 Inc at or above Poverty Level",null,null,null,"Statistically Significant Change"]
[null,null,"Households","Estimate","Margin of Error",null,null,"Estimate","Margin of Error",null,null,"Estimate","Margin of Error",null,null,{"$f":"P51","v":"2012-2022"},"2017-2022"]
[]
[null,null,"Total Households",{"$f":"CntyDataLinkPrior10YearEstimate!$AV$124","v":1554},{"$f":"CntyDataLinkPrior10YearEstimate!$AW$124","v":129},{"$f":"$D68/($D68+$D54)","v":0.97246558197747179},null,{"$f":"CntyDataLinkPrior5YearEstimates!$AV$124","v":1480},{"$f":"CntyDataLinkPrior5YearEstimates!$AW$124","v":114},{"$f":"$H68/($H68+$H54)","v":0.92442223610243601},null,{"$f":"CntyDataLink!$AV$124","v":1645},{"$f":"CntyDataLink!$AW$124","v":182},{"$f":"$L68/($L68+$L54)","v":0.95362318840579707},null,{"$f":"StatisticallySignificantCalcs!$A$103","v":"N"},{"$f":"StatisticallySignificantCalcs!$J$103","v":"N"}]
[null,null,"Family Households",{"$f":"CntyDataLinkPrior10YearEstimate!$AX$124","v":1166},{"$f":"CntyDataLinkPrior10YearEstimate!$AY$124","v":103},{"$f":"$D69/($D69+$D55)","v":0.97491638795986624},null,{"$f":"CntyDataLinkPrior5YearEstimates!$AX$124","v":975},{"$f":"CntyDataLinkPrior5YearEstimates!$AY$124","v":101},{"$f":"$H69/($H69+$H55)","v":0.94476744186046513},null,{"$f":"CntyDataLink!$AX$124","v":997},{"$f":"CntyDataLink!$AY$124","v":127},{"$f":"$L69/($L69+$L55)","v":0.95957651588065451},null,{"$f":"StatisticallySignificantCalcs!$A$104","v":"Y"},{"$f":"StatisticallySignificantCalcs!$J$104","v":"N"}]
[null,null,"Married Couple Fam HH",{"$f":"CntyDataLinkPrior10YearEstimate!$AZ$124","v":1074},{"$f":"CntyDataLinkPrior10YearEstimate!$BA$124","v":172},{"$f":"$D70/($D70+$D56)","v":1},null,{"$f":"CntyDataLinkPrior5YearEstimates!$AZ$124","v":775},{"$f":"CntyDataLinkPrior5YearEstimates!$BA$124","v":104},{"$f":"$H70/($H70+$H56)","v":0.98600508905852413},null,{"$f":"CntyDataLink!$AZ$124","v":733},{"$f":"CntyDataLink!$BA$124","v":124},0.98257372654155495,null,{"$f":"StatisticallySignificantCalcs!$A$105","v":"Y"},{"$f":"StatisticallySignificantCalcs!$J$105","v":"N"}]
[null,null,"M C Fam HH w/Children",{"$f":"CntyDataLinkPrior10YearEstimate!$BT$124","v":320},{"$f":"CntyDataLinkPrior10YearEstimate!$BU$124","v":70},1,null,{"$f":"CntyDataLinkPrior5YearEstimates!$BT$124","v":320},{"$f":"CntyDataLinkPrior5YearEstimates!$BU$124","v":70},0.96385542168674698,null,{"$f":"CntyDataLink!$BT$124","v":352},{"$f":"CntyDataLink!$BU$124","v":112},1,null,{"$f":"StatisticallySignificantCalcs!$A$106","v":"N"},{"$f":"StatisticallySignificantCalcs!$J$106","v":"N"}]
[null,null,"Male Head of Family HH ",{"$f":"CntyDataLinkPrior10YearEstimate!$BD$124","v":90},{"$f":"CntyDataLinkPrior10YearEstimate!$BE$124","v":67},1,null,{"$f":"CntyDataLinkPrior5YearEstimates!$BD$124","v":71},{"$f":"CntyDataLinkPrior5YearEstimates!$BE$124","v":36},1,null,{"$f":"CntyDataLink!$BD$124","v":47},{"$f":"CntyDataLink!$BE$124","v":36},1,null,{"$f":"StatisticallySignificantCalcs!$A$107","v":"N"},{"$f":"StatisticallySignificantCalcs!$J$107","v":"N"}]
[null,null,"Male Head of HH w/Children",{"$f":"CntyDataLinkPrior10YearEstimate!$BV$124","v":1166},{"$f":"CntyDataLinkPrior10YearEstimate!$BW$124","v":103},0.96363636363636362,null,{"$f":"CntyDataLinkPrior5YearEstimates!$BV$124","v":40},{"$f":"CntyDataLinkPrior5YearEstimates!$BW$124","v":28},1,null,{"$f":"CntyDataLink!$BV$124","v":35},{"$f":"CntyDataLink!$BW$124","v":30},1,null,{"$f":"StatisticallySignificantCalcs!$A$108","v":"Y"},{"$f":"StatisticallySignificantCalcs!$J$108","v":"N"}]
[null,null,"Female Head of Family HH ",{"$f":"CntyDataLinkPrior10YearEstimate!$BF$124","v":249},{"$f":"CntyDataLinkPrior10YearEstimate!$BG$124","v":84},0.94676806083650189,null,{"$f":"CntyDataLinkPrior5YearEstimates!$BF$124","v":129},{"$f":"CntyDataLinkPrior5YearEstimates!$BG$124","v":54},0.66839378238341973,null,{"$f":"CntyDataLink!$BF$124","v":217},{"$f":"CntyDataLink!$BG$124","v":115},0.85098039215686272,null,{"$f":"StatisticallySignificantCalcs!$A$109","v":"N"},{"$f":"StatisticallySignificantCalcs!$J$109","v":"N"}]
[null,null,"Female Head of HH w/Children",{"$f":"CntyDataLinkPrior10YearEstimate!$BX$124","v":528},{"$f":"CntyDataLinkPrior10YearEstimate!$BY$124","v":113},0.97237569060773477,null,{"$f":"CntyDataLinkPrior5YearEstimates!$BX$124","v":67},{"$f":"CntyDataLinkPrior5YearEstimates!$BY$124","v":38},0.56302521008403361,null,{"$f":"CntyDataLink!$BX$124","v":79},{"$f":"CntyDataLink!$BY$124","v":71},0.67521367521367526,null,{"$f":"StatisticallySignificantCalcs!$A$110","v":"Y"},{"$f":"StatisticallySignificantCalcs!$J$110","v":"N"}]
[null,null,"Non-Family HH ",{"$f":"CntyDataLinkPrior10YearEstimate!$BH$124","v":212},{"$f":"CntyDataLinkPrior10YearEstimate!$BI$124","v":91},0.69055374592833874,null,{"$f":"CntyDataLinkPrior5YearEstimates!$BH$124","v":505},{"$f":"CntyDataLinkPrior5YearEstimates!$BI$124","v":114},0.85016835016835013,null,{"$f":"CntyDataLink!$BH$124","v":648},{"$f":"CntyDataLink!$BI$124","v":184},0.88163265306122451,null,{"$f":"StatisticallySignificantCalcs!$A$111","v":"Y"},{"$f":"StatisticallySignificantCalcs!$J$111","v":"N"}]
[]
[null,null,"Source: 2008-2012 American Community Survey ",null,null,null,"Source: 2013-2017 American Community Survey",null,null,null,null,"Source: 2018-2022 American Community Survey"]
[]
[null,null,"Tables B17010; and B17017",null,null,null,"Tables B17010; and B17017",null,null,null,null,"Tables B17010; and B17017"]
[]
[null,null,"Data from the American Community Survey are estimates."]

{"sheet":"ACS_Table_ B17001","index":50,"n_rows":209,"n_cols":56,"rows_kept":209,"cut":false,"hidden":true,"merged":[]}
[null,"B17001. POVERTY STATUS IN THE PAST 12 MONTHS BY SEX BY AGE"]
[null,"Universe:  POPULATION FOR WHOM POVERTY STATUS IS DETERMINED"]
[null,"Data Set: 2018-2022 American Community Survey 5-Year Estimates"]
[]
[null,null,"Allenstown",null,"Andover",null,"Boscawen",null,"Bow",null,"Bradford",null,"Canterbury",null,"Chichester",null,"Concord",null,"Danbury",null,"Dunbarton",null,"Epsom",null,"Franklin",null,"Henniker",null,"Hill",null,"Hooksett",null,"Hopkinton",null,"Loudon",null,"Newbury",null,"New London",null,"Northfield",null,"Pembroke",null,"Pittsfield",null,"Salisbury",null,"Sutton",null,"Warner",null,"Webster",null,"Wilmot"]
[null,null,"Estimate","Margin Of Error","Estimate","Margin Of Error","Estimate","Margin Of Error","Estimate","Margin Of Error","Estimate","Margin Of Error","Estimate","Margin Of Error","Estimate","Margin Of Error","Estimate","Margin Of Error","Estimate","Margin Of Error","Estimate","Margin Of Error","Estimate","Margin Of Error","Estimate","Margin Of Error","Estimate","Margin Of Error","Estimate","Margin Of Error","Estimate","Margin Of Error","Estimate","Margin Of Error","Estimate","Margin Of Error","Estimate","Margin Of Error","Estimate","Margin Of Error","Estimate","Margin Of Error","Estimate","Margin Of Error","Estimate","Margin Of Error","Estimate","Margin Of Error","Estimate","Margin Of Error","Estimate","Margin Of Error","Estimate","Margin Of Error","Estimate","Margin Of Error"]
[null,"Total:",4624,50,2151,307,3505,46,8235,19,1565,172,2316,242,2691,27,41539,85,1491,261,2991,57,4733,29,8582,23,5478,31,839,182,13933,59,5911,35,5603,21,1905,255,3517,24,4833,35,7229,75,4053,67,1591,365,2254,451,2782,35,2098,315,1492,216]
[null,"Income in the past 12 months below poverty level:",515,299,209,60,334,175,210,100,102,70,121,71,97,52,3986,658,194,91,63,52,156,73,537,190,555,301,40,21,522,206,324,363,557,359,52,42,107,62,440,197,737,365,231,130,117,91,65,37,218,81,203,146,30,35]
[null,"Male:",244,174,126,38,157,107,107,69,28,27,39,34,53,53,1838,362,94,50,58,49,89,60,167,106,263,189,27,17,267,124,0,17,275,198,28,23,30,39,145,102,266,153,83,72,92,87,43,23,85,42,76,49,14,17]
[null,"Under 5 years",21,32,0,12,0,12,11,19,0,12,8,10,0,12,145,86,17,18,0,12,0,12,35,57,46,48,0,12,0,19,0,17,0,17,0,12,0,12,0,12,32,40,0,12,0,12,0,12,9,14,0,12,0,12]
[null,"5 years",19,28,0,12,8,14,0,17,9,13,0,12,15,23,67,65,0,12,0,12,0,12,0,17,0,17,0,12,0,19,0,17,0,17,0,12,0,12,0,12,0,17,0,12,0,12,0,12,0,12,0,12,0,12]
[null,"6 to 11 years",27,30,0,12,35,42,10,17,0,12,0,12,0,12,122,79,0,12,0,12,0,12,0,17,43,64,0,12,17,26,0,17,0,17,0,12,0,12,0,12,29,40,0,12,8,12,0,12,0,12,8,11,0,12]
[null,"12 to 14 years",0,12,4,8,0,12,0,17,0,12,7,9,0,12,55,46,12,15,5,8,0,12,0,17,0,17,0,12,0,19,0,17,15,26,0,12,0,12,0,12,0,17,13,20,0,12,10,16,0,12,0,12,0,12]
[null,"15 years",0,12,0,12,0,12,0,17,0,12,0,12,0,12,4,6,12,15,0,12,0,12,0,17,9,15,0,12,0,19,0,17,0,17,0,12,0,12,18,24,0,17,0,12,0,12,0,12,0,12,0,12,0,12]
[null,"16 and 17 years",0,12,0,12,0,12,11,17,0,12,0,12,0,12,10,17,0,12,0,12,0,12,0,17,0,17,0,12,12,19,0,17,0,17,0,12,0,12,0,12,0,17,0,12,4,6,0,12,5,7,0,12,0,12]
[null,"18 to 24 years",43,63,66,106,52,59,19,22,0,12,0,12,0,12,91,63,0,12,0,12,10,16,26,33,90,102,0,12,98,102,0,17,0,17,0,12,0,12,0,12,0,17,16,24,0,12,0,12,6,9,0,12,0,12]
[null,"25 to 34 years",1,2,0,12,11,18,0,17,0,12,2,6,18,27,453,143,11,14,0,12,11,17,3,7,0,17,0,12,9,16,0,17,63,102,5,9,0,12,0,12,0,17,21,20,13,19,0,12,18,23,0,12,0,12]
[null,"35 to 44 years",80,79,0,12,0,12,0,17,0,12,20,18,0,12,268,168,19,24,9,14,0,12,6,12,0,17,3,4,0,19,0,17,0,17,5,8,0,12,31,31,95,105,14,22,4,7,16,21,0,12,20,22,0,12]
[null,"45 to 54 years",20,26,30,90,9,15,26,31,12,13,0,12,0,12,119,98,12,13,34,43,0,12,9,15,0,17,11,16,42,45,0,17,106,105,6,8,0,12,9,13,39,47,0,12,4,6,0,12,15,21,9,12,11,16]
[null,"55 to 64 years",23,25,4,6,0,12,0,17,0,12,2,5,8,10,290,108,0,12,10,11,38,48,50,54,75,76,10,9,15,17,0,17,7,18,0,12,0,12,72,96,0,17,19,23,4,5,6,8,25,25,31,31,0,12]
[null,"65 to 74 years",8,13,18,19,17,19,0,17,0,12,0,12,8,8,156,96,6,8,0,12,16,18,9,14,0,17,0,12,52,48,0,17,14,23,12,18,30,39,9,14,22,36,0,12,55,83,5,8,7,9,2,3,0,12]
[null,"75 years and over",2,4,4,6,25,42,30,28,7,11,0,12,4,6,58,60,5,8,0,12,14,15,29,54,0,17,3,4,22,36,0,17,70,79,0,12,0,12,6,9,49,36,0,12,0,12,6,9,0,12,6,10,3,4]
[null,"Female:",271,147,83,40,177,93,103,50,74,47,82,46,44,25,2148,445,100,50,5,8,67,37,370,157,292,169,13,12,255,119,324,363,282,226,24,23,77,48,295,137,471,265,148,114,25,16,22,18,133,65,127,109,16,18]
[null,"Under 5 years",0,12,0,12,18,29,0,17,0,12,0,12,0,12,108,72,0,12,0,12,0,12,0,17,0,17,0,12,0,19,0,17,0,17,0,12,0,12,0,12,15,20,0,12,0,12,0,12,0,12,4,6,0,12]
[null,"5 years",0,12,0,12,0,12,0,17,0,12,0,12,0,12,5,7,0,12,0,12,0,12,0,17,0,17,0,12,0,19,0,17,0,17,0,12,0,12,0,12,0,17,0,12,0,12,0,12,6,8,0,12,0,12]
[null,"6 to 11 years",0,12,6,8,0,12,0,17,10,13,12,16,0,12,181,137,27,30,0,12,0,12,23,26,23,33,0,12,27,32,0,17,0,17,0,12,0,12,0,12,93,107,0,12,0,12,0,12,5,7,41,65,0,12]
[null,"12 to 14 years",35,38,5,8,9,14,0,17,10,13,7,8,0,12,66,50,4,6,0,12,0,12,23,33,18,29,0,12,0,19,0,17,96,113,0,12,0,12,0,12,30,40,0,12,0,12,0,12,0,12,0,12,0,12]
[null,"15 years",7,12,0,12,0,12,0,17,0,12,0,12,0,12,10,17,0,12,0,12,0,12,0,17,0,17,0,12,10,17,0,17,0,17,0,12,0,12,26,40,0,17,0,12,3,6,8,13,0,12,0,12,0,12]
[null,"16 and 17 years",0,12,0,12,0,12,0,17,0,12,20,24,0,12,22,31,0,12,0,12,0,12,0,17,0,17,0,12,9,15,0,17,81,95,0,12,0,12,14,17,13,17,0,12,0,12,4,6,0,12,0,12,0,12]
[null,"18 to 24 years",57,90,0,12,0,12,0,17,0,12,0,12,9,14,390,189,0,12,0,12,12,20,19,29,44,50,0,12,0,19,143,191,0,17,0,12,0,12,10,16,89,88,22,37,0,12,0,12,46,47,23,21,0,12]
[null,"25 to 34 years",0,12,5,9,23,28,46,36,3,4,3,6,0,12,428,169,4,5,0,12,0,12,43,36,28,47,0,12,20,24,152,181,0,17,0,12,0,12,47,53,180,121,13,20,0,12,0,12,6,10,0,12,0,12]
[null,"35 to 44 years",69,69,5,8,18,20,0,17,10,13,11,14,4,7,336,148,24,25,0,12,0,12,33,34,41,43,5,8,66,72,17,29,0,17,0,12,0,12,96,116,0,17,0,12,4,6,0,12,8,11,8,11,0,12]
[null,"45 to 54 years",26,30,11,11,52,42,20,22,20,22,6,9,0,12,75,68,22,19,5,8,0,12,21,35,10,17,4,6,76,53,0,17,18,31,0,12,19,26,7,12,0,17,0,12,3,6,0,12,20,19,4,6,11,17]
[null,"55 to 64 years",11,18,10,10,26,30,6,9,3,4,10,17,5,7,293,167,9,11,0,12,19,21,110,82,117,127,4,6,20,32,0,17,41,51,13,20,0,12,75,60,0,17,23,29,12,11,3,4,18,20,41,42,2,3]
[null,"65 to 74 years",47,53,24,26,9,14,6,10,4,5,5,8,26,20,197,89,10,11,0,12,9,14,46,50,0,17,0,12,21,34,0,17,0,17,5,8,11,15,20,21,0,17,59,93,3,4,0,12,4,6,2,3,0,12]
[null,"75 years and over",19,21,17,20,22,24,25,23,14,14,8,8,0,12,37,34,0,12,0,12,27,27,52,58,11,17,0,12,6,11,12,21,46,79,6,8,47,40,0,12,51,51,31,42,0,12,7,11,20,20,4,6,3,5]
[null,"Income in the past 12 months at or above poverty level:",4109,301,1942,311,3171,172,8025,101,1463,180,2195,243,2594,58,37553,653,1297,241,2928,77,4577,79,8045,190,4923,304,799,181,13411,214,5587,362,5046,364,1853,257,3410,68,4393,196,6492,395,3822,142,1474,362,2189,453,2564,84,1895,307,1462,214]
[null,"Male:",2137,208,922,167,1575,156,3938,179,807,116,1094,151,1351,104,19121,594,653,109,1448,80,2144,149,3646,336,2800,206,459,118,6478,305,2770,244,2482,239,947,160,1599,133,2161,165,3516,267,1810,162,792,258,1098,240,1241,93,977,206,692,116]
[null,"Under 5 years",88,67,23,29,93,57,296,95,41,30,25,23,58,39,919,204,19,14,65,39,125,83,113,66,163,154,20,14,380,171,98,77,35,52,79,41,68,59,104,79,52,43,0,12,17,16,20,19,70,52,136,151,41,27]
[null,"5 years",16,24,14,22,35,39,54,38,11,13,8,11,0,12,162,71,0,12,17,19,0,12,28,31,51,59,0,12,32,38,54,58,17,32,6,9,0,12,0,12,22,31,0,12,1,3,10,14,19,17,10,11,6,7]
[null,"6 to 11 years",133,68,40,30,70,46,385,103,49,28,22,17,101,52,1182,204,63,31,134,42,174,76,162,102,183,98,23,17,424,191,169,94,0,17,27,25,105,65,197,141,337,181,89,61,22,20,44,29,80,38,38,22,61,35]
[null,"12 to 14 years",66,51,32,26,58,46,185,94,30,24,22,28,130,64,677,195,4,5,62,38,65,46,155,78,72,44,3,5,178,81,113,89,199,116,50,31,80,57,52,41,166,84,50,43,137,160,31,21,17,13,19,13,12,8]
[null,"15 years",67,49,3,6,51,45,39,45,10,7,3,5,5,7,377,123,0,12,5,9,8,13,58,65,0,17,3,4,47,40,68,66,7,19,5,7,0,12,28,44,17,32,17,25,5,8,14,12,0,12,17,14,0,12]
[null,"16 and 17 years",88,48,37,27,66,48,170,80,42,27,40,31,68,53,378,111,5,5,33,24,36,34,41,35,83,75,11,9,220,134,0,17,71,64,28,26,29,30,61,43,142,108,43,49,10,10,12,11,96,52,18,11,3,5]
[null,"18 to 24 years",268,134,48,29,112,70,174,109,71,41,95,41,60,37,1624,241,24,22,87,50,129,85,234,118,369,181,105,73,758,183,236,142,168,142,85,38,87,85,144,96,340,157,89,74,66,38,149,107,22,25,82,43,38,24]
[null,"25 to 34 years",270,97,158,77,170,84,432,127,95,34,130,53,177,48,3348,344,74,29,150,54,256,102,322,115,437,179,23,14,830,217,299,169,275,125,74,32,161,58,317,106,336,163,249,100,78,43,85,38,260,81,44,22,117,60]
[null,"35 to 44 years",319,111,125,51,199,86,513,113,74,32,157,65,129,66,2242,265,86,33,162,61,245,120,740,207,313,117,47,17,835,151,331,109,252,103,102,42,159,69,262,78,456,125,219,74,34,16,151,72,124,40,168,61,79,47]
[null,"45 to 54 years",271,120,119,42,290,102,560,123,78,37,163,54,281,73,2308,302,89,39,251,58,335,104,549,135,225,92,46,30,895,195,406,158,332,144,141,62,138,71,220,93,663,283,301,93,153,100,145,65,131,50,93,31,104,39]
[null,"55 to 64 years",271,93,111,46,155,68,550,111,123,36,176,51,179,55,2838,324,125,43,225,60,373,115,565,169,291,165,78,25,945,211,536,149,622,273,191,46,159,64,406,100,632,225,333,136,100,36,187,76,215,60,202,64,109,32]
[null,"65 to 74 years",244,120,89,41,212,102,397,71,158,52,164,42,99,29,1856,301,91,43,188,76,289,80,451,121,501,264,61,25,572,131,356,97,266,126,86,32,303,76,237,76,240,73,299,97,126,37,158,86,162,46,118,33,85,25]
[null,"75 years and over",36,33,123,91,64,46,183,69,25,12,89,32,64,27,1210,209,73,67,69,21,109,71,228,100,112,64,39,24,362,109,104,65,238,101,73,31,310,112,133,78,113,58,121,68,43,30,92,55,45,26,32,18,37,22]
[null,"Female:",1972,204,1020,174,1596,134,4087,206,656,105,1101,169,1243,100,18432,596,644,150,1480,95,2433,142,4399,354,2123,259,340,74,6933,316,2817,376,2564,222,906,126,1811,134,2232,188,2976,381,2012,174,682,125,1091,244,1323,96,918,143,770,123]
[null,"Under 5 years",103,67,37,25,106,82,322,133,39,26,76,47,55,25,891,222,34,22,116,61,83,71,155,85,107,108,22,13,171,113,84,76,85,96,38,25,96,62,71,49,222,122,76,75,26,20,40,25,58,43,26,15,66,35]
[null,"5 years",70,72,0,12,0,12,49,39,0,12,0,12,14,18,148,81,7,7,27,23,32,49,19,25,0,17,0,12,146,106,43,48,10,25,17,16,41,49,61,50,39,45,0,12,0,12,31,42,11,11,14,18,9,13]
[null,"6 to 11 years",107,60,63,40,132,94,227,78,58,22,50,30,35,21,973,199,30,24,173,93,330,123,245,98,146,80,15,13,488,185,241,151,26,40,83,43,66,48,128,52,109,81,34,35,36,23,113,52,74,42,59,36,43,27]
[null,"12 to 14 years",41,34,49,42,30,29,167,79,15,14,41,41,29,20,589,135,21,14,32,23,35,33,99,78,33,51,9,9,257,180,94,74,43,46,12,13,0,12,71,58,187,85,263,164,12,11,49,31,28,25,15,11,11,9]
[null,"15 years",0,12,19,17,0,12,58,44,9,12,0,12,12,13,192,87,0,12,5,6,54,56,48,44,14,24,0,12,91,61,31,34,58,68,10,12,20,22,11,18,20,21,55,47,24,31,0,12,11,11,38,48,8,6]
[null,"16 and 17 years",39,31,3,5,49,38,105,62,16,18,40,33,11,10,423,126,22,17,48,33,90,58,170,105,21,22,8,7,247,133,31,32,56,51,26,22,12,16,62,54,108,57,11,17,4,5,38,29,20,15,29,20,10,8]
[null,"18 to 24 years",275,148,74,47,158,117,324,137,22,21,97,49,69,43,1184,260,28,21,63,36,172,111,391,201,257,140,20,19,537,170,184,148,119,104,46,37,117,81,190,100,229,173,60,41,27,29,73,93,71,52,54,34,39,26]
[null,"25 to 34 years",279,99,112,60,179,71,347,105,73,27,123,59,105,42,2850,307,40,21,158,72,269,101,468,149,195,85,19,13,951,225,259,152,172,99,79,40,78,43,215,78,265,115,233,94,47,24,50,27,215,74,96,56,125,58]
[null,"35 to 44 years",147,58,107,44,214,101,575,105,67,28,73,26,205,73,2106,239,77,37,175,55,245,90,721,277,246,81,40,22,804,157,299,109,316,104,91,34,118,47,322,121,561,161,271,100,107,88,114,40,123,39,106,29,63,29]
[null,"45 to 54 years",282,101,147,50,175,71,641,126,80,34,182,53,248,84,2513,268,178,107,198,56,338,102,565,142,242,88,69,33,944,165,372,125,370,158,107,57,141,70,302,109,513,173,186,75,96,35,197,111,158,54,129,38,108,36]
[null,"55 to 64 years",410,131,92,39,269,117,557,107,130,44,193,51,219,63,2689,308,76,31,241,51,363,113,507,160,280,97,77,23,1004,207,648,125,688,274,182,58,320,97,410,117,324,114,406,159,127,36,197,50,201,58,210,73,119,57]
[null,"65 to 74 years",133,59,122,46,211,69,467,88,113,30,135,35,147,49,2213,255,95,47,153,67,354,98,490,126,512,262,48,19,751,150,368,105,581,140,92,28,320,102,258,119,275,114,263,108,119,36,96,36,213,62,103,33,80,31]
[null,"75 years and over",86,60,195,128,73,45,248,94,34,21,91,46,94,37,1661,243,36,22,91,30,68,49,521,245,70,52,13,15,542,161,163,72,40,39,123,51,482,152,131,53,124,62,154,83,57,35,93,75,140,56,39,18,89,34]
[]
[]
[]
[null,"Calculated Table B17001. POVERTY STATUS IN THE PAST 12 MONTHS BY SEX BY AGE"]
[null,"Universe:  POPULATION FOR WHOM POVERTY STATUS IS DETERMINED"]
[null,"Data Set: 2018-2022 American Community Survey 5-Year Estimates"]
[]
[null,null,"Allenstown",null,"Andover",null,"Boscawen",null,"Bow",null,"Bradford",null,"Canterbury",null,"Chichester",null,"Concord",null,"Danbury",null,"Dunbarton",null,"Epsom",null,"Franklin",null,"Henniker",null,"Hill",null,"Hooksett",null,"Hopkinton",null,"Loudon",null,"Newbury",null,"New London",null,"Northfield",null,"Pembroke",null,"Pittsfield",null,"Salisbury",null,"Sutton",null,"Warner",null,"Webster",null,"Wilmot"]
[null,null,"Estimate","Margin Of Error","Estimate","Margin Of Error","Estimate","Margin Of Error","Estimate","Margin Of Error","Estimate","Margin Of Error","Estimate","Margin Of Error","Estimate","Margin Of Error","Estimate","Margin Of Error","Estimate","Margin Of Error","Estimate","Margin Of Error","Estimate","Margin Of Error","Estimate","Margin Of Error","Estimate","Margin Of Error","Estimate","Margin Of Error","Estimate","Margin Of Error","Estimate","Margin Of Error","Estimate","Margin Of Error","Estimate","Margin Of Error","Estimate","Margin Of Error","Estimate","Margin Of Error","Estimate","Margin Of Error","Estimate","Margin Of Error","Estimate","Margin Of Error","Estimate","Margin Of Error","Estimate","Margin Of Error","Estimate","Margin Of Error","Estimate","Margin Of Error"]
[null,"Total:",{"$f":"C7","v":4624},{"$f":"D7","v":50},2151,307,3505,46,8235,19,1565,172,2316,242,2691,27,41539,85,1491,261,2991,57,4733,29,{"$f":"Y7","v":8582},23,5478,31,839,182,13933,59,5911,35,5603,21,1905,255,3517,24,{"$f":"AO7","v":4833},35,7229,75,4053,67,1591,365,2254,451,2782,35,2098,315,1492,216]
[null,"Income in the past 12 months below poverty level:",{"$f":"C8","v":515},{"$f":"D8","v":299},209,60,334,175,210,100,102,70,121,71,97,52,3986,658,194,91,63,52,156,73,{"$f":"Y8","v":537},190,555,301,40,21,522,206,324,363,557,359,52,42,107,62,{"$f":"AO8","v":440},197,737,365,231,130,117,91,65,37,218,81,203,146,30,35]
[null,"Under 5 years",{"$f":"C10+C24","v":21},{"$f":"SQRT(((D10^2))+((D34^2)))","v":36.715119501371639},{"$f":"E10+E24","v":0},{"$f":"SQRT(((F10^2))+((F34^2)))","v":15.620499351813308},{"$f":"G10+G24","v":18},{"$f":"SQRT(((H10^2))+((H34^2)))","v":32.310988842807021},{"$f":"I10+I24","v":11},{"$f":"SQRT(((J10^2))+((J34^2)))","v":21.023796041628639},{"$f":"K10+K24","v":0},{"$f":"SQRT(((L10^2))+((L34^2)))","v":12.649110640673518},{"$f":"M10+M24","v":8},{"$f":"SQRT(((N10^2))+((N34^2)))","v":19.723082923316021},{"$f":"O10+O24","v":0},{"$f":"SQRT(((P10^2))+((P34^2)))","v":13.892443989449804},{"$f":"Q10+Q24","v":253},{"$f":"SQRT(((R10^2))+((R34^2)))","v":187.84301956687131},{"$f":"S10+S24","v":17},{"$f":"SQRT(((T10^2))+((T34^2)))","v":21.095023109728988},{"$f":"U10+U24","v":0},{"$f":"SQRT(((V10^2))+((V34^2)))","v":16.970562748477139},{"$f":"W10+W24","v":0},{"$f":"SQRT(((X10^2))+((X34^2)))","v":24.186773244895647},{"$f":"Y10+Y24","v":35},{"$f":"SQRT(((Z10^2))+((Z34^2)))","v":99.864908751773257},{"$f":"AA10+AA24","v":46},{"$f":"SQRT(((AB10^2))+((AB34^2)))","v":135.76818478568535},{"$f":"AC10+AC24","v":0},{"$f":"SQRT(((AD10^2))+((AD34^2)))","v":13.416407864998739},{"$f":"AE10+AE24","v":0},{"$f":"SQRT(((AF10^2))+((AF34^2)))","v":37.215588131856791},{"$f":"AG10+AG24","v":0},{"$f":"SQRT(((AH10^2))+((AH34^2)))","v":24.041630560342615},{"$f":"AI10+AI24","v":0},{"$f":"SQRT(((AJ10^2))+((AJ34^2)))","v":53.758720222862451},{"$f":"AK10+AK24","v":0},{"$f":"SQRT(((AL10^2))+((AL34^2)))","v":23.323807579381203},{"$f":"AM10+AM24","v":0},{"$f":"SQRT(((AN10^2))+((AN34^2)))","v":16.970562748477139},{"$f":"AO10+AO24","v":0},{"$f":"SQRT(((AP10^2))+((AP34^2)))","v":61.188234163113421},{"$f":"AQ10+AQ24","v":47},{"$f":"SQRT(((AR10^2))+((AR34^2)))","v":43.46262762420146},{"$f":"AS10+AS24","v":0},{"$f":"SQRT(((AT10^2))+((AT34^2)))","v":31.384709652950431},{"$f":"AU10+AU24","v":0},{"$f":"SQRT(((AV10^2))+((AV34^2)))","v":16.278820596099706},{"$f":"AW10+AW24","v":0},{"$f":"SQRT(((AX10^2))+((AX34^2)))","v":12.649110640673518},{"$f":"AY10+AY24","v":9},{"$f":"SQRT(((AZ10^2))+((AZ34^2)))","v":24.413111231467404},{"$f":"BA10+BA24","v":4},{"$f":"SQRT(((BB10^2))+((BB34^2)))","v":43.68065933568311},{"$f":"BC10+BC24","v":0},{"$f":"SQRT(((BD10^2))+((BD34^2)))","v":12.369316876852981}]
[null,"5 to 17 years",{"$f":"C11+C12+C13+C14+C15+C25+C26+C27+C28+C29","v":88},{"$f":"SQRT((D11^2)+(D12^2)+(D13^2)+(D14^2)+(D15^2)+(D25^2)+(D26^2)+(D27^2)+(D28)+(D29^2))","v":63.2771680782255},{"$f":"E11+E12+E13+E14+E15+E25+E26+E27+E28+E29","v":15},{"$f":"SQRT((F11^2)+(F12^2)+(F13^2)+(F14^2)+(F15^2)+(F25^2)+(F26^2)+(F27^2)+(F28)+(F29^2))","v":32.680269276736382},{"$f":"G11+G12+G13+G14+G15+G25+G26+G27+G28+G29","v":52},{"$f":"SQRT((H11^2)+(H12^2)+(H13^2)+(H14^2)+(H15^2)+(H25^2)+(H26^2)+(H27^2)+(H28)+(H29^2))","v":55.063599591744818},{"$f":"I11+I12+I13+I14+I15+I25+I26+I27+I28+I29","v":21},{"$f":"SQRT((J11^2)+(J12^2)+(J13^2)+(J14^2)+(J15^2)+(J25^2)+(J26^2)+(J27^2)+(J28)+(J29^2))","v":51.166395221864128},{"$f":"K11+K12+K13+K14+K15+K25+K26+K27+K28+K29","v":29},{"$f":"SQRT((L11^2)+(L12^2)+(L13^2)+(L14^2)+(L15^2)+(L25^2)+(L26^2)+(L27^2)+(L28)+(L29^2))","v":37.188707963574103},{"$f":"M11+M12+M13+M14+M15+M25+M26+M27+M28+M29","v":46},{"$f":"SQRT((N11^2)+(N12^2)+(N13^2)+(N14^2)+(N15^2)+(N25^2)+(N26^2)+(N27^2)+(N28)+(N29^2))","v":41.340053217188775},{"$f":"O11+O12+O13+O14+O15+O25+O26+O27+O28+O29","v":15},{"$f":"SQRT((P11^2)+(P12^2)+(P13^2)+(P14^2)+(P15^2)+(P25^2)+(P26^2)+(P27^2)+(P28)+(P29^2))","v":41.146081222881968},{"$f":"Q11+Q12+Q13+Q14+Q15+Q25+Q26+Q27+Q28+Q29","v":542},{"$f":"SQRT((R11^2)+(R12^2)+(R13^2)+(R14^2)+(R15^2)+(R25^2)+(R26^2)+(R27^2)+(R28)+(R29^2))","v":187.6246252494592},{"$f":"S11+S12+S13+S14+S15+S25+S26+S27+S28+S29","v":55},{"$f":"SQRT((T11^2)+(T12^2)+(T13^2)+(T14^2)+(T15^2)+(T25^2)+(T26^2)+(T27^2)+(T28)+(T29^2))","v":46.021733996015406},{"$f":"U11+U12+U13+U14+U15+U25+U26+U27+U28+U29","v":5},{"$f":"SQRT((V11^2)+(V12^2)+(V13^2)+(V14^2)+(V15^2)+(V25^2)+(V26^2)+(V27^2)+(V28)+(V29^2))","v":35.042830935870462},{"$f":"W11+W12+W13+W14+W15+W25+W26+W27+W28+W29","v":0},{"$f":"SQRT((X11^2)+(X12^2)+(X13^2)+(X14^2)+(X15^2)+(X25^2)+(X26^2)+(X27^2)+(X28)+(X29^2))","v":36.166282640050248},{"$f":"Y11+Y12+Y13+Y14+Y15+Y25+Y26+Y27+Y28+Y29","v":46},{"$f":"SQRT((Z11^2)+(Z12^2)+(Z13^2)+(Z14^2)+(Z15^2)+(Z25^2)+(Z26^2)+(Z27^2)+(Z28)+(Z29^2))","v":61.684682053164543},{"$f":"AA11+AA12+AA13+AA14+AA15+AA25+AA26+AA27+AA28+AA29","v":93},{"$f":"SQRT((AB11^2)+(AB12^2)+(AB13^2)+(AB14^2)+(AB15^2)+(AB25^2)+(AB26^2)+(AB27^2)+(AB28)+(AB29^2))","v":87.823687009826685},{"$f":"AC11+AC12+AC13+AC14+AC15+AC25+AC26+AC27+AC28+AC29","v":0},{"$f":"SQRT((AD11^2)+(AD12^2)+(AD13^2)+(AD14^2)+(AD15^2)+(AD25^2)+(AD26^2)+(AD27^2)+(AD28)+(AD29^2))","v":36.166282640050248},{"$f":"AE11+AE12+AE13+AE14+AE15+AE25+AE26+AE27+AE28+AE29","v":75},{"$f":"SQRT((AF11^2)+(AF12^2)+(AF13^2)+(AF14^2)+(AF15^2)+(AF25^2)+(AF26^2)+(AF27^2)+(AF28)+(AF29^2))","v":64.093681435848268},{"$f":"AG11+AG12+AG13+AG14+AG15+AG25+AG26+AG27+AG28+AG29","v":0},{"$f":"SQRT((AH11^2)+(AH12^2)+(AH13^2)+(AH14^2)+(AH15^2)+(AH25^2)+(AH26^2)+(AH27^2)+(AH28)+(AH29^2))","v":51.166395221864128},{"$f":"AI11+AI12+AI13+AI14+AI15+AI25+AI26+AI27+AI28+AI29","v":192},{"$f":"SQRT((AJ11^2)+(AJ12^2)+(AJ13^2)+(AJ14^2)+(AJ15^2)+(AJ25^2)+(AJ26^2)+(AJ27^2)+(AJ28)+(AJ29^2))","v":155.63097378092831},{"$f":"AK11+AK12+AK13+AK14+AK15+AK25+AK26+AK27+AK28+AK29","v":0},{"$f":"SQRT((AL11^2)+(AL12^2)+(AL13^2)+(AL14^2)+(AL15^2)+(AL25^2)+(AL26^2)+(AL27^2)+(AL28)+(AL29^2))","v":36.166282640050248},{"$f":"AM11+AM12+AM13+AM14+AM15+AM25+AM26+AM27+AM28+AM29","v":0},{"$f":"SQRT((AN11^2)+(AN12^2)+(AN13^2)+(AN14^2)+(AN15^2)+(AN25^2)+(AN26^2)+(AN27^2)+(AN28)+(AN29^2))","v":36.166282640050248},{"$f":"AO11+AO12+AO13+AO14+AO15+AO25+AO26+AO27+AO28+AO29","v":58},{"$f":"SQRT((AP11^2)+(AP12^2)+(AP13^2)+(AP14^2)+(AP15^2)+(AP25^2)+(AP26^2)+(AP27^2)+(AP28)+(AP29^2))","v":43.737855457258078},{"$f":"AQ11+AQ12+AQ13+AQ14+AQ15+AQ25+AQ26+AQ27+AQ28+AQ29","v":165},{"$f":"SQRT((AR11^2)+(AR12^2)+(AR13^2)+(AR14^2)+(AR15^2)+(AR25^2)+(AR26^2)+(AR27^2)+(AR28)+(AR29^2))","v":128.06248474865697},{"$f":"AS11+AS12+AS13+AS14+AS15+AS25+AS26+AS27+AS28+AS29","v":13},{"$f":"SQRT((AT11^2)+(AT12^2)+(AT13^2)+(AT14^2)+(AT15^2)+(AT25^2)+(AT26^2)+(AT27^2)+(AT28)+(AT29^2))","v":39.547439866570379},{"$f":"AU11+AU12+AU13+AU14+AU15+AU25+AU26+AU27+AU28+AU29","v":15},{"$f":"SQRT((AV11^2)+(AV12^2)+(AV13^2)+(AV14^2)+(AV15^2)+(AV25^2)+(AV26^2)+(AV27^2)+(AV28)+(AV29^2))","v":34.554305086341991},{"$f":"AW11+AW12+AW13+AW14+AW15+AW25+AW26+AW27+AW28+AW29","v":22},{"$f":"SQRT((AX11^2)+(AX12^2)+(AX13^2)+(AX14^2)+(AX15^2)+(AX25^2)+(AX26^2)+(AX27^2)+(AX28)+(AX29^2))","v":36.235341863986875},{"$f":"AY11+AY12+AY13+AY14+AY15+AY25+AY26+AY27+AY28+AY29","v":16},{"$f":"SQRT((AZ11^2)+(AZ12^2)+(AZ13^2)+(AZ14^2)+(AZ15^2)+(AZ25^2)+(AZ26^2)+(AZ27^2)+(AZ28)+(AZ29^2))","v":32.218007387174026},{"$f":"BA11+BA12+BA13+BA14+BA15+BA25+BA26+BA27+BA28+BA29","v":49},{"$f":"SQRT((BB11^2)+(BB12^2)+(BB13^2)+(BB14^2)+(BB15^2)+(BB25^2)+(BB26^2)+(BB27^2)+(BB28)+(BB29^2))","v":73.252986287249755},{"$f":"BC11+BC12+BC13+BC14+BC15+BC25+BC26+BC27+BC28+BC29","v":0},{"$f":"SQRT((BD11^2)+(BD12^2)+(BD13^2)+(BD14^2)+(BD15^2)+(BD25^2)+(BD26^2)+(BD27^2)+(BD28)+(BD29^2))","v":36.166282640050248}]
[null,"18 to 64 years",{"$f":"C16+C17+C18+C19+C20+C30+C31+C32+C33+C34","v":330},{"$f":"SQRT((D16^2)+(D17^2)+(D18^2)+(D19^2)+(D20^2)+(D30^2)+(D31^2)+(D32^2)+(D33^2)+(D34^2))","v":160.44936896105264},{"$f":"E16+E17+E18+E19+E20+E30+E31+E32+E33+E34","v":131},{"$f":"SQRT((F16^2)+(F17^2)+(F18^2)+(F19^2)+(F20^2)+(F30^2)+(F31^2)+(F32^2)+(F33^2)+(F34^2))","v":142.02112518917741},{"$f":"G16+G17+G18+G19+G20+G30+G31+G32+G33+G34","v":191},{"$f":"SQRT((H16^2)+(H17^2)+(H18^2)+(H19^2)+(H20^2)+(H30^2)+(H31^2)+(H32^2)+(H33^2)+(H34^2))","v":91.159201400626586},{"$f":"I16+I17+I18+I19+I20+I30+I31+I32+I33+I34","v":117},{"$f":"SQRT((J16^2)+(J17^2)+(J18^2)+(J19^2)+(J20^2)+(J30^2)+(J31^2)+(J32^2)+(J33^2)+(J34^2))","v":68.927498141162786},{"$f":"K16+K17+K18+K19+K20+K30+K31+K32+K33+K34","v":48},{"$f":"SQRT((L16^2)+(L17^2)+(L18^2)+(L19^2)+(L20^2)+(L30^2)+(L31^2)+(L32^2)+(L33^2)+(L34^2))","v":39.673668849754748},{"$f":"M16+M17+M18+M19+M20+M30+M31+M32+M33+M34","v":54},{"$f":"SQRT((N16^2)+(N17^2)+(N18^2)+(N19^2)+(N20^2)+(N30^2)+(N31^2)+(N32^2)+(N33^2)+(N34^2))","v":37.669616403674723},{"$f":"O16+O17+O18+O19+O20+O30+O31+O32+O33+O34","v":44},{"$f":"SQRT((P16^2)+(P17^2)+(P18^2)+(P19^2)+(P20^2)+(P30^2)+(P31^2)+(P32^2)+(P33^2)+(P34^2))","v":42.930175867331364},{"$f":"Q16+Q17+Q18+Q19+Q20+Q30+Q31+Q32+Q33+Q34","v":2743},{"$f":"SQRT((R16^2)+(R17^2)+(R18^2)+(R19^2)+(R20^2)+(R30^2)+(R31^2)+(R32^2)+(R33^2)+(R34^2))","v":438.87241881895471},{"$f":"S16+S17+S18+S19+S20+S30+S31+S32+S33+S34","v":101},{"$f":"SQRT((T16^2)+(T17^2)+(T18^2)+(T19^2)+(T20^2)+(T30^2)+(T31^2)+(T32^2)+(T33^2)+(T34^2))","v":50.049975024968795},{"$f":"U16+U17+U18+U19+U20+U30+U31+U32+U33+U34","v":58},{"$f":"SQRT((V16^2)+(V17^2)+(V18^2)+(V19^2)+(V20^2)+(V30^2)+(V31^2)+(V32^2)+(V33^2)+(V34^2))","v":55.623735940693521},{"$f":"W16+W17+W18+W19+W20+W30+W31+W32+W33+W34","v":90},{"$f":"SQRT((X16^2)+(X17^2)+(X18^2)+(X19^2)+(X20^2)+(X30^2)+(X31^2)+(X32^2)+(X33^2)+(X34^2))","v":66.407830863535963},{"$f":"Y16+Y17+Y18+Y19+Y20+Y30+Y31+Y32+Y33+Y34","v":320},{"$f":"SQRT((Z16^2)+(Z17^2)+(Z18^2)+(Z19^2)+(Z20^2)+(Z30^2)+(Z31^2)+(Z32^2)+(Z33^2)+(Z34^2))","v":125.15989773086265},{"$f":"AA16+AA17+AA18+AA19+AA20+AA30+AA31+AA32+AA33+AA34","v":405},{"$f":"SQRT((AB16^2)+(AB17^2)+(AB18^2)+(AB19^2)+(AB20^2)+(AB30^2)+(AB31^2)+(AB32^2)+(AB33^2)+(AB34^2))","v":200.05749173675051},{"$f":"AC16+AC17+AC18+AC19+AC20+AC30+AC31+AC32+AC33+AC34","v":37},{"$f":"SQRT((AD16^2)+(AD17^2)+(AD18^2)+(AD19^2)+(AD20^2)+(AD30^2)+(AD31^2)+(AD32^2)+(AD33^2)+(AD34^2))","v":32.634337744161442},{"$f":"AE16+AE17+AE18+AE19+AE20+AE30+AE31+AE32+AE33+AE34","v":346},{"$f":"SQRT((AF16^2)+(AF17^2)+(AF18^2)+(AF19^2)+(AF20^2)+(AF30^2)+(AF31^2)+(AF32^2)+(AF33^2)+(AF34^2))","v":152.60733927305068},{"$f":"AG16+AG17+AG18+AG19+AG20+AG30+AG31+AG32+AG33+AG34","v":312},{"$f":"SQRT((AH16^2)+(AH17^2)+(AH18^2)+(AH19^2)+(AH20^2)+(AH30^2)+(AH31^2)+(AH32^2)+(AH33^2)+(AH34^2))","v":268.52560399336227},{"$f":"AI16+AI17+AI18+AI19+AI20+AI30+AI31+AI32+AI33+AI34","v":235},{"$f":"SQRT((AJ16^2)+(AJ17^2)+(AJ18^2)+(AJ19^2)+(AJ20^2)+(AJ30^2)+(AJ31^2)+(AJ32^2)+(AJ33^2)+(AJ34^2))","v":163.58484037342825},{"$f":"AK16+AK17+AK18+AK19+AK20+AK30+AK31+AK32+AK33+AK34","v":29},{"$f":"SQRT((AL16^2)+(AL17^2)+(AL18^2)+(AL19^2)+(AL20^2)+(AL30^2)+(AL31^2)+(AL32^2)+(AL33^2)+(AL34^2))","v":38.379682124790975},{"$f":"AM16+AM17+AM18+AM19+AM20+AM30+AM31+AM32+AM33+AM34","v":19},{"$f":"SQRT((AN16^2)+(AN17^2)+(AN18^2)+(AN19^2)+(AN20^2)+(AN30^2)+(AN31^2)+(AN32^2)+(AN33^2)+(AN34^2))","v":44.407206622349037},{"$f":"AO16+AO17+AO18+AO19+AO20+AO30+AO31+AO32+AO33+AO34","v":347},{"$f":"SQRT((AP16^2)+(AP17^2)+(AP18^2)+(AP19^2)+(AP20^2)+(AP30^2)+(AP31^2)+(AP32^2)+(AP33^2)+(AP34^2))","v":175.78111388883619},{"$f":"AQ16+AQ17+AQ18+AQ19+AQ20+AQ30+AQ31+AQ32+AQ33+AQ34","v":403},{"$f":"SQRT((AR16^2)+(AR17^2)+(AR18^2)+(AR19^2)+(AR20^2)+(AR30^2)+(AR31^2)+(AR32^2)+(AR33^2)+(AR34^2))","v":193.26924225028668},{"$f":"AS16+AS17+AS18+AS19+AS20+AS30+AS31+AS32+AS33+AS34","v":128},{"$f":"SQRT((AT16^2)+(AT17^2)+(AT18^2)+(AT19^2)+(AT20^2)+(AT30^2)+(AT31^2)+(AT32^2)+(AT33^2)+(AT34^2))","v":70.929542505221335},{"$f":"AU16+AU17+AU18+AU19+AU20+AU30+AU31+AU32+AU33+AU34","v":44},{"$f":"SQRT((AV16^2)+(AV17^2)+(AV18^2)+(AV19^2)+(AV20^2)+(AV30^2)+(AV31^2)+(AV32^2)+(AV33^2)+(AV34^2))","v":33.105890714493697},{"$f":"AW16+AW17+AW18+AW19+AW20+AW30+AW31+AW32+AW33+AW34","v":25},{"$f":"SQRT((AX16^2)+(AX17^2)+(AX18^2)+(AX19^2)+(AX20^2)+(AX30^2)+(AX31^2)+(AX32^2)+(AX33^2)+(AX34^2))","v":39.102429592034305},{"$f":"AY16+AY17+AY18+AY19+AY20+AY30+AY31+AY32+AY33+AY34","v":162},{"$f":"SQRT((AZ16^2)+(AZ17^2)+(AZ18^2)+(AZ19^2)+(AZ20^2)+(AZ30^2)+(AZ31^2)+(AZ32^2)+(AZ33^2)+(AZ34^2))","v":70.78841713161836},{"$f":"BA16+BA17+BA18+BA19+BA20+BA30+BA31+BA32+BA33+BA34","v":136},{"$f":"SQRT((BB16^2)+(BB17^2)+(BB18^2)+(BB19^2)+(BB20^2)+(BB30^2)+(BB31^2)+(BB32^2)+(BB33^2)+(BB34^2))","v":66.204229472141733},{"$f":"BC16+BC17+BC18+BC19+BC20+BC30+BC31+BC32+BC33+BC34","v":24},{"$f":"SQRT((BD16^2)+(BD17^2)+(BD18^2)+(BD19^2)+(BD20^2)+(BD30^2)+(BD31^2)+(BD32^2)+(BD33^2)+(BD34^2))","v":39.522145690739009}]
[null,"65 to 74 years",{"$f":"C21+C35","v":55},{"$f":"SQRT((D21^2)+(D35^2))","v":54.571054598569013},{"$f":"E21+E35","v":42},{"$f":"SQRT((F21^2)+(F35^2))","v":32.202484376209235},{"$f":"G21+G35","v":26},{"$f":"SQRT((H21^2)+(H35^2))","v":23.600847442411894},{"$f":"I21+I35","v":6},{"$f":"SQRT((J21^2)+(J35^2))","v":19.723082923316021},{"$f":"K21+K35","v":4},{"$f":"SQRT((L21^2)+(L35^2))","v":13},{"$f":"M21+M35","v":5},{"$f":"SQRT((N21^2)+(N35^2))","v":14.422205101855956},{"$f":"O21+O35","v":34},{"$f":"SQRT((P21^2)+(P35^2))","v":21.540659228538015},{"$f":"Q21+Q35","v":353},{"$f":"SQRT((R21^2)+(R35^2))","v":130.90836489697671},{"$f":"S21+S35","v":16},{"$f":"SQRT((T21^2)+(T35^2))","v":13.601470508735444},{"$f":"U21+U35","v":0},{"$f":"SQRT((V21^2)+(V35^2))","v":16.970562748477139},{"$f":"W21+W35","v":25},{"$f":"SQRT((X21^2)+(X35^2))","v":22.803508501982758},{"$f":"Y21+Y35","v":55},{"$f":"SQRT((Z21^2)+(Z35^2))","v":51.923019942988681},{"$f":"AA21+AA35","v":0},{"$f":"SQRT((AB21^2)+(AB35^2))","v":24.041630560342615},{"$f":"AC21+AC35","v":0},{"$f":"SQRT((AD21^2)+(AD35^2))","v":16.970562748477139},{"$f":"AE21+AE35","v":73},{"$f":"SQRT((AF21^2)+(AF35^2))","v":58.821764679410968},{"$f":"AG21+AG35","v":0},{"$f":"SQRT((AH21^2)+(AH35^2))","v":24.041630560342615},{"$f":"AI21+AI35","v":14},{"$f":"SQRT((AJ21^2)+(AJ35^2))","v":28.600699292150182},{"$f":"AK21+AK35","v":17},{"$f":"SQRT((AL21^2)+(AL35^2))","v":19.697715603592208},{"$f":"AM21+AM35","v":41},{"$f":"SQRT((AN21^2)+(AN35^2))","v":41.785164831552358},{"$f":"AO21+AO35","v":29},{"$f":"SQRT((AP21^2)+(AP35^2))","v":25.238858928247925},{"$f":"AQ21+AQ35","v":22},{"$f":"SQRT((AR21^2)+(AR35^2))","v":39.812058474788763},{"$f":"AS21+AS35","v":59},{"$f":"SQRT((AT21^2)+(AT35^2))","v":93.770997648526702},{"$f":"AU21+AU35","v":58},{"$f":"SQRT((AV21^2)+(AV35^2))","v":83.096329642168911},{"$f":"AW21+AW35","v":5},{"$f":"SQRT((AX21^2)+(AX35^2))","v":14.422205101855956},{"$f":"AY21+AY35","v":11},{"$f":"SQRT((AZ21^2)+(AZ35^2))","v":10.816653826391969},{"$f":"BA21+BA35","v":4},{"$f":"SQRT((BB21^2)+(BB35^2))","v":4.2426406871192848},{"$f":"BC21+BC35","v":0},{"$f":"SQRT((BD21^2)+(BD35^2))","v":16.970562748477139}]
[null,"75 years and over",{"$f":"C22+C36","v":21},{"$f":"SQRT((D22^2)+(D36^2))","v":21.377558326431949},{"$f":"E22+E36","v":21},{"$f":"SQRT((F22^2)+(F36^2))","v":20.880613017821101},{"$f":"G22+G36","v":47},{"$f":"SQRT((H22^2)+(H36^2))","v":48.373546489791295},{"$f":"I22+I36","v":55},{"$f":"SQRT((J22^2)+(J36^2))","v":36.235341863986875},{"$f":"K22+K36","v":21},{"$f":"SQRT((L22^2)+(L36^2))","v":17.804493814764857},{"$f":"M22+M36","v":8},{"$f":"SQRT((N22^2)+(N36^2))","v":14.422205101855956},{"$f":"O22+O36","v":4},{"$f":"SQRT((P22^2)+(P36^2))","v":13.416407864998739},{"$f":"Q22+Q36","v":95},{"$f":"SQRT((R22^2)+(R36^2))","v":68.963758598266665},{"$f":"S22+S36","v":5},{"$f":"SQRT((T22^2)+(T36^2))","v":14.422205101855956},{"$f":"U22+U36","v":0},{"$f":"SQRT((V22^2)+(V36^2))","v":16.970562748477139},{"$f":"W22+W36","v":41},{"$f":"SQRT((X22^2)+(X36^2))","v":30.886890422961002},{"$f":"Y22+Y36","v":81},{"$f":"SQRT((Z22^2)+(Z36^2))","v":79.246451024635803},{"$f":"AA22+AA36","v":11},{"$f":"SQRT((AB22^2)+(AB36^2))","v":24.041630560342615},{"$f":"AC22+AC36","v":3},{"$f":"SQRT((AD22^2)+(AD36^2))","v":12.649110640673518},{"$f":"AE22+AE36","v":28},{"$f":"SQRT((AF22^2)+(AF36^2))","v":37.643060449437421},{"$f":"AG22+AG36","v":12},{"$f":"SQRT((AH22^2)+(AH36^2))","v":27.018512172212592},{"$f":"AI22+AI36","v":116},{"$f":"SQRT((AJ22^2)+(AJ36^2))","v":111.72287142747452},{"$f":"AK22+AK36","v":6},{"$f":"SQRT((AL22^2)+(AL36^2))","v":14.422205101855956},{"$f":"AM22+AM36","v":47},{"$f":"SQRT((AN22^2)+(AN36^2))","v":41.761226035642203},{"$f":"AO22+AO36","v":6},{"$f":"SQRT((AP22^2)+(AP36^2))","v":15},{"$f":"AQ22+AQ36","v":100},{"$f":"SQRT((AR22^2)+(AR36^2))","v":62.425956140054431},{"$f":"AS22+AS36","v":31},{"$f":"SQRT((AT22^2)+(AT36^2))","v":43.68065933568311},{"$f":"AU22+AU36","v":0},{"$f":"SQRT((AV22^2)+(AV36^2))","v":16.970562748477139},{"$f":"AW22+AW36","v":13},{"$f":"SQRT((AX22^2)+(AX36^2))","v":14.212670403551895},{"$f":"AY22+AY36","v":20},{"$f":"SQRT((AZ22^2)+(AZ36^2))","v":23.323807579381203},{"$f":"BA22+BA36","v":10},{"$f":"SQRT((BB22^2)+(BB36^2))","v":11.661903789690601},{"$f":"BC22+BC36","v":6},{"$f":"SQRT((BD22^2)+(BD36^2))","v":6.4031242374328485}]
[null," Income in the past 12 months at or above poverty level ",{"$f":"C37","v":4109},301,1942,311,3171,172,8025,101,1463,180,2195,243,2594,58,37553,653,1297,241,2928,77,4577,79,{"$f":"Y37","v":8045},190,4923,304,799,181,13411,214,5587,362,5046,364,1853,257,3410,68,{"$f":"AO37","v":4393},196,6492,395,3822,142,1474,362,2189,453,2564,84,1895,307,1462,214]
[null,"Under 5 years",{"$f":"C39+C53","v":191},{"$f":"SQRT(((D39))^2+((D53))^2)","v":94.752308678997366},{"$f":"E39+E53","v":60},{"$f":"SQRT(((F39))^2+((F53))^2)","v":38.288379438153292},{"$f":"G39+G53","v":199},{"$f":"SQRT(((H39))^2+((H53))^2)","v":99.864908751773257},{"$f":"I39+I53","v":618},{"$f":"SQRT(((J39))^2+((J53))^2)","v":163.44418007380992},{"$f":"K39+K53","v":80},{"$f":"SQRT(((L39))^2+((L53))^2)","v":39.698866482558415},{"$f":"M39+M53","v":101},{"$f":"SQRT(((N39))^2+((N53))^2)","v":52.32590180780452},{"$f":"O39+O53","v":113},{"$f":"SQRT(((P39))^2+((P53))^2)","v":46.324939287601879},{"$f":"Q39+Q53","v":1810},{"$f":"SQRT(((R39))^2+((R53))^2)","v":301.4962686336267},{"$f":"S39+S53","v":53},{"$f":"SQRT(((T39))^2+((T53))^2)","v":26.076809620810597},{"$f":"U39+U53","v":181},{"$f":"SQRT(((V39))^2+((V53))^2)","v":72.401657439591816},{"$f":"W39+W53","v":208},{"$f":"SQRT(((X39))^2+((X53))^2)","v":109.22453936730518},{"$f":"Y39+Y53","v":268},{"$f":"SQRT(((Z39))^2+((Z53))^2)","v":107.61505470890214},{"$f":"AA39+AA53","v":270},{"$f":"SQRT(((AB39))^2+((AB53))^2)","v":188.09572031282372},{"$f":"AC39+AC53","v":42},{"$f":"SQRT(((AD39))^2+((AD53))^2)","v":19.104973174542799},{"$f":"AE39+AE53","v":551},{"$f":"SQRT(((AF39))^2+((AF53))^2)","v":204.96341136895629},{"$f":"AG39+AG53","v":182},{"$f":"SQRT(((AH39))^2+((AH53))^2)","v":108.18964830333815},{"$f":"AI39+AI53","v":120},{"$f":"SQRT(((AJ39))^2+((AJ53))^2)","v":109.17875251164945},{"$f":"AK39+AK53","v":117},{"$f":"SQRT(((AL39))^2+((AL53))^2)","v":48.020828814171878},{"$f":"AM39+AM53","v":164},{"$f":"SQRT(((AN39))^2+((AN53))^2)","v":85.586213843118443},{"$f":"AO39+AO53","v":175},{"$f":"SQRT(((AP39))^2+((AP53))^2)","v":92.962357973536797},{"$f":"AQ39+AQ53","v":274},{"$f":"SQRT(((AR39))^2+((AR53))^2)","v":129.3560976529518},{"$f":"AS39+AS53","v":76},{"$f":"SQRT(((AT39))^2+((AT53))^2)","v":75.953933407032977},{"$f":"AU39+AU53","v":43},{"$f":"SQRT(((AV39))^2+((AV53))^2)","v":25.612496949731394},{"$f":"AW39+AW53","v":60},{"$f":"SQRT(((AX39))^2+((AX53))^2)","v":31.400636936215164},{"$f":"AY39+AY53","v":128},{"$f":"SQRT(((AZ39))^2+((AZ53))^2)","v":67.475921631349351},{"$f":"BA39+BA53","v":162},{"$f":"SQRT(((BB39))^2+((BB53))^2)","v":151.74320413119},{"$f":"BC39+BC53","v":107},{"$f":"SQRT(((BD39))^2+((BD53))^2)","v":44.204072210600685}]
[null,"5 to 17 years",{"$f":"((C40)+(C41)+(C42)+(C43)+(C44)+(C54)+(C55)+(C56)+(C57)+(C58))","v":627},{"$f":"SQRT((D40^2)+(D41^2)+(D42^2)+(D43^2)+(D44^2)+(D54^2)+(D55^2)+(D56^2)+(D57^2)+(D58^2))","v":153.46335067370319},{"$f":"((E40)+(E41)+(E42)+(E43)+(E44)+(E54)+(E55)+(E56)+(E57)+(E58))","v":260},{"$f":"SQRT((F40^2)+(F41^2)+(F42^2)+(F43^2)+(F44^2)+(F54^2)+(F55^2)+(F56^2)+(F57^2)+(F58^2))","v":81.529135896316234},{"$f":"((G40)+(G41)+(G42)+(G43)+(G44)+(G54)+(G55)+(G56)+(G57)+(G58))","v":491},{"$f":"SQRT((H40^2)+(H41^2)+(H42^2)+(H43^2)+(H44^2)+(H54^2)+(H55^2)+(H56^2)+(H57^2)+(H58^2))","v":146.5980900284857},{"$f":"((I40)+(I41)+(I42)+(I43)+(I44)+(I54)+(I55)+(I56)+(I57)+(I58))","v":1439},{"$f":"SQRT((J40^2)+(J41^2)+(J42^2)+(J43^2)+(J44^2)+(J54^2)+(J55^2)+(J56^2)+(J57^2)+(J58^2))","v":221.22386851332294},{"$f":"((K40)+(K41)+(K42)+(K43)+(K44)+(K54)+(K55)+(K56)+(K57)+(K58))","v":240},{"$f":"SQRT((L40^2)+(L41^2)+(L42^2)+(L43^2)+(L44^2)+(L54^2)+(L55^2)+(L56^2)+(L57^2)+(L58^2))","v":59.991666087882571},{"$f":"((M40)+(M41)+(M42)+(M43)+(M44)+(M54)+(M55)+(M56)+(M57)+(M58))","v":226},{"$f":"SQRT((N40^2)+(N41^2)+(N42^2)+(N43^2)+(N44^2)+(N54^2)+(N55^2)+(N56^2)+(N57^2)+(N58^2))","v":78.345389143203576},{"$f":"((O40)+(O41)+(O42)+(O43)+(O44)+(O54)+(O55)+(O56)+(O57)+(O58))","v":405},{"$f":"SQRT((P40^2)+(P41^2)+(P42^2)+(P43^2)+(P44^2)+(P54^2)+(P55^2)+(P56^2)+(P57^2)+(P58^2))","v":106},{"$f":"((Q40)+(Q41)+(Q42)+(Q43)+(Q44)+(Q54)+(Q55)+(Q56)+(Q57)+(Q58))","v":5101},{"$f":"SQRT((R40^2)+(R41^2)+(R42^2)+(R43^2)+(R44^2)+(R54^2)+(R55^2)+(R56^2)+(R57^2)+(R58^2))","v":447.17334446498484},{"$f":"((S40)+(S41)+(S42)+(S43)+(S44)+(S54)+(S55)+(S56)+(S57)+(S58))","v":152},{"$f":"SQRT((T40^2)+(T41^2)+(T42^2)+(T43^2)+(T44^2)+(T54^2)+(T55^2)+(T56^2)+(T57^2)+(T58^2))","v":50.527220386639122},{"$f":"((U40)+(U41)+(U42)+(U43)+(U44)+(U54)+(U55)+(U56)+(U57)+(U58))","v":536},{"$f":"SQRT((V40^2)+(V41^2)+(V42^2)+(V43^2)+(V44^2)+(V54^2)+(V55^2)+(V56^2)+(V57^2)+(V58^2))","v":122.71104269787622},{"$f":"((W40)+(W41)+(W42)+(W43)+(W44)+(W54)+(W55)+(W56)+(W57)+(W58))","v":824},{"$f":"SQRT((X40^2)+(X41^2)+(X42^2)+(X43^2)+(X44^2)+(X54^2)+(X55^2)+(X56^2)+(X57^2)+(X58^2))","v":185.68791021496256},{"$f":"((Y40)+(Y41)+(Y42)+(Y43)+(Y44)+(Y54)+(Y55)+(Y56)+(Y57)+(Y58))","v":1025},{"$f":"SQRT((Z40^2)+(Z41^2)+(Z42^2)+(Z43^2)+(Z44^2)+(Z54^2)+(Z55^2)+(Z56^2)+(Z57^2)+(Z58^2))","v":228.41409763847764},{"$f":"((AA40)+(AA41)+(AA42)+(AA43)+(AA44)+(AA54)+(AA55)+(AA56)+(AA57)+(AA58))","v":603},{"$f":"SQRT((AB40^2)+(AB41^2)+(AB42^2)+(AB43^2)+(AB44^2)+(AB54^2)+(AB55^2)+(AB56^2)+(AB57^2)+(AB58^2))","v":176.87566254292872},{"$f":"((AC40)+(AC41)+(AC42)+(AC43)+(AC44)+(AC54)+(AC55)+(AC56)+(AC57)+(AC58))","v":72},{"$f":"SQRT((AD40^2)+(AD41^2)+(AD42^2)+(AD43^2)+(AD44^2)+(AD54^2)+(AD55^2)+(AD56^2)+(AD57^2)+(AD58^2))","v":33.793490497431605},{"$f":"((AE40)+(AE41)+(AE42)+(AE43)+(AE44)+(AE54)+(AE55)+(AE56)+(AE57)+(AE58))","v":2130},{"$f":"SQRT((AF40^2)+(AF41^2)+(AF42^2)+(AF43^2)+(AF44^2)+(AF54^2)+(AF55^2)+(AF56^2)+(AF57^2)+(AF58^2))","v":404.120031673759},{"$f":"((AG40)+(AG41)+(AG42)+(AG43)+(AG44)+(AG54)+(AG55)+(AG56)+(AG57)+(AG58))","v":844},{"$f":"SQRT((AH40^2)+(AH41^2)+(AH42^2)+(AH43^2)+(AH44^2)+(AH54^2)+(AH55^2)+(AH56^2)+(AH57^2)+(AH58^2))","v":239.84786844998226},{"$f":"((AI40)+(AI41)+(AI42)+(AI43)+(AI44)+(AI54)+(AI55)+(AI56)+(AI57)+(AI58))","v":487},{"$f":"SQRT((AJ40^2)+(AJ41^2)+(AJ42^2)+(AJ43^2)+(AJ44^2)+(AJ54^2)+(AJ55^2)+(AJ56^2)+(AJ57^2)+(AJ58^2))","v":175.4764941523508},{"$f":"((AK40)+(AK41)+(AK42)+(AK43)+(AK44)+(AK54)+(AK55)+(AK56)+(AK57)+(AK58))","v":264},{"$f":"SQRT((AL40^2)+(AL41^2)+(AL42^2)+(AL43^2)+(AL44^2)+(AL54^2)+(AL55^2)+(AL56^2)+(AL57^2)+(AL58^2))","v":72.759879054324983},{"$f":"((AM40)+(AM41)+(AM42)+(AM43)+(AM44)+(AM54)+(AM55)+(AM56)+(AM57)+(AM58))","v":353},{"$f":"SQRT((AN40^2)+(AN41^2)+(AN42^2)+(AN43^2)+(AN44^2)+(AN54^2)+(AN55^2)+(AN56^2)+(AN57^2)+(AN58^2))","v":119.37755232873558},{"$f":"((AO40)+(AO41)+(AO42)+(AO43)+(AO44)+(AO54)+(AO55)+(AO56)+(AO57)+(AO58))","v":671},{"$f":"SQRT((AP40^2)+(AP41^2)+(AP42^2)+(AP43^2)+(AP44^2)+(AP54^2)+(AP55^2)+(AP56^2)+(AP57^2)+(AP58^2))","v":193.12949023906214},{"$f":"((AQ40)+(AQ41)+(AQ42)+(AQ43)+(AQ44)+(AQ54)+(AQ55)+(AQ56)+(AQ57)+(AQ58))","v":1147},{"$f":"SQRT((AR40^2)+(AR41^2)+(AR42^2)+(AR43^2)+(AR44^2)+(AR54^2)+(AR55^2)+(AR56^2)+(AR57^2)+(AR58^2))","v":270.12404557906353},{"$f":"((AS40)+(AS41)+(AS42)+(AS43)+(AS44)+(AS54)+(AS55)+(AS56)+(AS57)+(AS58))","v":562},{"$f":"SQRT((AT40^2)+(AT41^2)+(AT42^2)+(AT43^2)+(AT44^2)+(AT54^2)+(AT55^2)+(AT56^2)+(AT57^2)+(AT58^2))","v":198.75361631930122},{"$f":"((AU40)+(AU41)+(AU42)+(AU43)+(AU44)+(AU54)+(AU55)+(AU56)+(AU57)+(AU58))","v":251},{"$f":"SQRT((AV40^2)+(AV41^2)+(AV42^2)+(AV43^2)+(AV44^2)+(AV54^2)+(AV55^2)+(AV56^2)+(AV57^2)+(AV58^2))","v":167.19150696132863},{"$f":"((AW40)+(AW41)+(AW42)+(AW43)+(AW44)+(AW54)+(AW55)+(AW56)+(AW57)+(AW58))","v":342},{"$f":"SQRT((AX40^2)+(AX41^2)+(AX42^2)+(AX43^2)+(AX44^2)+(AX54^2)+(AX55^2)+(AX56^2)+(AX57^2)+(AX58^2))","v":90.316111519484721},{"$f":"((AY40)+(AY41)+(AY42)+(AY43)+(AY44)+(AY54)+(AY55)+(AY56)+(AY57)+(AY58))","v":356},{"$f":"SQRT((AZ40^2)+(AZ41^2)+(AZ42^2)+(AZ43^2)+(AZ44^2)+(AZ54^2)+(AZ55^2)+(AZ56^2)+(AZ57^2)+(AZ58^2))","v":87.212384441660575},{"$f":"((BA40)+(BA41)+(BA42)+(BA43)+(BA44)+(BA54)+(BA55)+(BA56)+(BA57)+(BA58))","v":257},{"$f":"SQRT((BB40^2)+(BB41^2)+(BB42^2)+(BB43^2)+(BB44^2)+(BB54^2)+(BB55^2)+(BB56^2)+(BB57^2)+(BB58^2))","v":74.4043009509531},{"$f":"((BC40)+(BC41)+(BC42)+(BC43)+(BC44)+(BC54)+(BC55)+(BC56)+(BC57)+(BC58))","v":163},{"$f":"SQRT((BD40^2)+(BD41^2)+(BD42^2)+(BD43^2)+(BD44^2)+(BD54^2)+(BD55^2)+(BD56^2)+(BD57^2)+(BD58^2))","v":50.852728540364481}]
[null,"18 to 64 years",{"$f":"((C45)+(C46)+(C47)+(C48)+(C49)+(C59)+(C60)+(C61)+(C62)+(C63))","v":2792},{"$f":"SQRT((D45^2)+(D46^2)+(D47^2)+(D48^2)+(D49^2)+(D59^2)+(D60^2)+(D61^2)+(D62^2)+(D63^2))","v":353.78807215619918},{"$f":"((E45)+(E46)+(E47)+(E48)+(E49)+(E59)+(E60)+(E61)+(E62)+(E63))","v":1093},{"$f":"SQRT((F45^2)+(F46^2)+(F47^2)+(F48^2)+(F49^2)+(F59^2)+(F60^2)+(F61^2)+(F62^2)+(F63^2))","v":158.16763259276533},{"$f":"((G45)+(G46)+(G47)+(G48)+(G49)+(G59)+(G60)+(G61)+(G62)+(G63))","v":1921},{"$f":"SQRT((H45^2)+(H46^2)+(H47^2)+(H48^2)+(H49^2)+(H59^2)+(H60^2)+(H61^2)+(H62^2)+(H63^2))","v":286.42800142444173},{"$f":"((I45)+(I46)+(I47)+(I48)+(I49)+(I59)+(I60)+(I61)+(I62)+(I63))","v":4673},{"$f":"SQRT((J45^2)+(J46^2)+(J47^2)+(J48^2)+(J49^2)+(J59^2)+(J60^2)+(J61^2)+(J62^2)+(J63^2))","v":369.28715114393026},{"$f":"((K45)+(K46)+(K47)+(K48)+(K49)+(K59)+(K60)+(K61)+(K62)+(K63))","v":813},{"$f":"SQRT((L45^2)+(L46^2)+(L47^2)+(L48^2)+(L49^2)+(L59^2)+(L60^2)+(L61^2)+(L62^2)+(L63^2))","v":107.57323087088163},{"$f":"((M45)+(M46)+(M47)+(M48)+(M49)+(M59)+(M60)+(M61)+(M62)+(M63))","v":1389},{"$f":"SQRT((N45^2)+(N46^2)+(N47^2)+(N48^2)+(N49^2)+(N59^2)+(N60^2)+(N61^2)+(N62^2)+(N63^2))","v":161.86414056238647},{"$f":"((O45)+(O46)+(O47)+(O48)+(O49)+(O59)+(O60)+(O61)+(O62)+(O63))","v":1672},{"$f":"SQRT((P45^2)+(P46^2)+(P47^2)+(P48^2)+(P49^2)+(P59^2)+(P60^2)+(P61^2)+(P62^2)+(P63^2))","v":190.6567596493762},{"$f":"((Q45)+(Q46)+(Q47)+(Q48)+(Q49)+(Q59)+(Q60)+(Q61)+(Q62)+(Q63))","v":23702},{"$f":"SQRT((R45^2)+(R46^2)+(R47^2)+(R48^2)+(R49^2)+(R59^2)+(R60^2)+(R61^2)+(R62^2)+(R63^2))","v":910.20876726166512},{"$f":"((S45)+(S46)+(S47)+(S48)+(S49)+(S59)+(S60)+(S61)+(S62)+(S63))","v":797},{"$f":"SQRT((T45^2)+(T46^2)+(T47^2)+(T48^2)+(T49^2)+(T59^2)+(T60^2)+(T61^2)+(T62^2)+(T63^2))","v":142.98601330200097},{"$f":"((U45)+(U46)+(U47)+(U48)+(U49)+(U59)+(U60)+(U61)+(U62)+(U63))","v":1710},{"$f":"SQRT((V45^2)+(V46^2)+(V47^2)+(V48^2)+(V49^2)+(V59^2)+(V60^2)+(V61^2)+(V62^2)+(V63^2))","v":177.03954360537648},{"$f":"((W45)+(W46)+(W47)+(W48)+(W49)+(W59)+(W60)+(W61)+(W62)+(W63))","v":2725},{"$f":"SQRT((X45^2)+(X46^2)+(X47^2)+(X48^2)+(X49^2)+(X59^2)+(X60^2)+(X61^2)+(X62^2)+(X63^2))","v":331.45889639591815},{"$f":"((Y45)+(Y46)+(Y47)+(Y48)+(Y49)+(Y59)+(Y60)+(Y61)+(Y62)+(Y63))","v":5062},{"$f":"SQRT((Z45^2)+(Z46^2)+(Z47^2)+(Z48^2)+(Z49^2)+(Z59^2)+(Z60^2)+(Z61^2)+(Z62^2)+(Z63^2))","v":549.43516450988102},{"$f":"((AA45)+(AA46)+(AA47)+(AA48)+(AA49)+(AA59)+(AA60)+(AA61)+(AA62)+(AA63))","v":2855},{"$f":"SQRT((AB45^2)+(AB46^2)+(AB47^2)+(AB48^2)+(AB49^2)+(AB59^2)+(AB60^2)+(AB61^2)+(AB62^2)+(AB63^2))","v":405.85588575256611},{"$f":"((AC45)+(AC46)+(AC47)+(AC48)+(AC49)+(AC59)+(AC60)+(AC61)+(AC62)+(AC63))","v":524},{"$f":"SQRT((AD45^2)+(AD46^2)+(AD47^2)+(AD48^2)+(AD49^2)+(AD59^2)+(AD60^2)+(AD61^2)+(AD62^2)+(AD63^2))","v":99.854894722291903},{"$f":"((AE45)+(AE46)+(AE47)+(AE48)+(AE49)+(AE59)+(AE60)+(AE61)+(AE62)+(AE63))","v":8503},{"$f":"SQRT((AF45^2)+(AF46^2)+(AF47^2)+(AF48^2)+(AF49^2)+(AF59^2)+(AF60^2)+(AF61^2)+(AF62^2)+(AF63^2))","v":600.1441493508039},{"$f":"((AG45)+(AG46)+(AG47)+(AG48)+(AG49)+(AG59)+(AG60)+(AG61)+(AG62)+(AG63))","v":3570},{"$f":"SQRT((AH45^2)+(AH46^2)+(AH47^2)+(AH48^2)+(AH49^2)+(AH59^2)+(AH60^2)+(AH61^2)+(AH62^2)+(AH63^2))","v":442.61721611342682},{"$f":"((AI45)+(AI46)+(AI47)+(AI48)+(AI49)+(AI59)+(AI60)+(AI61)+(AI62)+(AI63))","v":3314},{"$f":"SQRT((AJ45^2)+(AJ46^2)+(AJ47^2)+(AJ48^2)+(AJ49^2)+(AJ59^2)+(AJ60^2)+(AJ61^2)+(AJ62^2)+(AJ63^2))","v":522.6241479304224},{"$f":"((AK45)+(AK46)+(AK47)+(AK48)+(AK49)+(AK59)+(AK60)+(AK61)+(AK62)+(AK63))","v":1098},{"$f":"SQRT((AL45^2)+(AL46^2)+(AL47^2)+(AL48^2)+(AL49^2)+(AL59^2)+(AL60^2)+(AL61^2)+(AL62^2)+(AL63^2))","v":144.67204291085406},{"$f":"((AM45)+(AM46)+(AM47)+(AM48)+(AM49)+(AM59)+(AM60)+(AM61)+(AM62)+(AM63))","v":1478},{"$f":"SQRT((AN45^2)+(AN46^2)+(AN47^2)+(AN48^2)+(AN49^2)+(AN59^2)+(AN60^2)+(AN61^2)+(AN62^2)+(AN63^2))","v":222.29484924307175},{"$f":"((AO45)+(AO46)+(AO47)+(AO48)+(AO49)+(AO59)+(AO60)+(AO61)+(AO62)+(AO63))","v":2788},{"$f":"SQRT((AP45^2)+(AP46^2)+(AP47^2)+(AP48^2)+(AP49^2)+(AP59^2)+(AP60^2)+(AP61^2)+(AP62^2)+(AP63^2))","v":318.55925665408},{"$f":"((AQ45)+(AQ46)+(AQ47)+(AQ48)+(AQ49)+(AQ59)+(AQ60)+(AQ61)+(AQ62)+(AQ63))","v":4319},{"$f":"SQRT((AR45^2)+(AR46^2)+(AR47^2)+(AR48^2)+(AR49^2)+(AR59^2)+(AR60^2)+(AR61^2)+(AR62^2)+(AR63^2))","v":556.37846831091508},{"$f":"((AS45)+(AS46)+(AS47)+(AS48)+(AS49)+(AS59)+(AS60)+(AS61)+(AS62)+(AS63))","v":2347},{"$f":"SQRT((AT45^2)+(AT46^2)+(AT47^2)+(AT48^2)+(AT49^2)+(AT59^2)+(AT60^2)+(AT61^2)+(AT62^2)+(AT63^2))","v":315.46790645008565},{"$f":"((AU45)+(AU46)+(AU47)+(AU48)+(AU49)+(AU59)+(AU60)+(AU61)+(AU62)+(AU63))","v":835},{"$f":"SQRT((AV45^2)+(AV46^2)+(AV47^2)+(AV48^2)+(AV49^2)+(AV59^2)+(AV60^2)+(AV61^2)+(AV62^2)+(AV63^2))","v":162.8711146888852},{"$f":"((AW45)+(AW46)+(AW47)+(AW48)+(AW49)+(AW59)+(AW60)+(AW61)+(AW62)+(AW63))","v":1348},{"$f":"SQRT((AX45^2)+(AX46^2)+(AX47^2)+(AX48^2)+(AX49^2)+(AX59^2)+(AX60^2)+(AX61^2)+(AX62^2)+(AX63^2))","v":232.11419603290102},{"$f":"((AY45)+(AY46)+(AY47)+(AY48)+(AY49)+(AY59)+(AY60)+(AY61)+(AY62)+(AY63))","v":1520},{"$f":"SQRT((AZ45^2)+(AZ46^2)+(AZ47^2)+(AZ48^2)+(AZ49^2)+(AZ59^2)+(AZ60^2)+(AZ61^2)+(AZ62^2)+(AZ63^2))","v":175.69006801751772},{"$f":"((BA45)+(BA46)+(BA47)+(BA48)+(BA49)+(BA59)+(BA60)+(BA61)+(BA62)+(BA63))","v":1184},{"$f":"SQRT((BB45^2)+(BB46^2)+(BB47^2)+(BB48^2)+(BB49^2)+(BB59^2)+(BB60^2)+(BB61^2)+(BB62^2)+(BB63^2))","v":151.71354586852158},{"$f":"((BC45)+(BC46)+(BC47)+(BC48)+(BC49)+(BC59)+(BC60)+(BC61)+(BC62)+(BC63))","v":901},{"$f":"SQRT((BD45^2)+(BD46^2)+(BD47^2)+(BD48^2)+(BD49^2)+(BD59^2)+(BD60^2)+(BD61^2)+(BD62^2)+(BD63^2))","v":135.48431643551959}]
[null,"65 to 74 years",{"$f":"((C50)+(C64))","v":377},{"$f":"SQRT((D50^2)+(D64^2))","v":133.71985641631537},{"$f":"((E50)+(E64))","v":211},{"$f":"SQRT((F50^2)+(F64^2))","v":61.619802012015583},{"$f":"((G50)+(G64))","v":423},{"$f":"SQRT((H50^2)+(H64^2))","v":123.14625451064275},{"$f":"((I50)+(I64))","v":864},{"$f":"SQRT((J50^2)+(J64^2))","v":113.07077429645558},{"$f":"((K50)+(K64))","v":271},{"$f":"SQRT((L50^2)+(L64^2))","v":60.033324079214538},{"$f":"((M50)+(M64))","v":299},{"$f":"SQRT((N50^2)+(N64^2))","v":54.671747731346578},{"$f":"((O50)+(O64))","v":246},{"$f":"SQRT((P50^2)+(P64^2))","v":56.938563381947034},{"$f":"((Q50)+(Q64))","v":4069},{"$f":"SQRT((R50^2)+(R64^2))","v":394.49461339795249},{"$f":"((S50)+(S64))","v":186},{"$f":"SQRT((T50^2)+(T64^2))","v":63.702433234531945},{"$f":"((U50)+(U64))","v":341},{"$f":"SQRT((V50^2)+(V64^2))","v":101.31633629380802},{"$f":"((W50)+(W64))","v":643},{"$f":"SQRT((X50^2)+(X64^2))","v":126.50691680694776},{"$f":"((Y50)+(Y64))","v":941},{"$f":"SQRT((Z50^2)+(Z64^2))","v":174.69115604403103},{"$f":"((AA50)+(AA64))","v":1013},{"$f":"SQRT((AB50^2)+(AB64^2))","v":371.94085551334638},{"$f":"((AC50)+(AC64))","v":109},{"$f":"SQRT((AD50^2)+(AD64^2))","v":31.400636936215164},{"$f":"((AE50)+(AE64))","v":1323},{"$f":"SQRT((AF50^2)+(AF64^2))","v":199.15069670980316},{"$f":"((AG50)+(AG64))","v":724},{"$f":"SQRT((AH50^2)+(AH64^2))","v":142.94754282603111},{"$f":"((AI50)+(AI64))","v":847},{"$f":"SQRT((AJ50^2)+(AJ64^2))","v":188.35073665903195},{"$f":"((AK50)+(AK64))","v":178},{"$f":"SQRT((AL50^2)+(AL64^2))","v":42.5205832509386},{"$f":"((AM50)+(AM64))","v":623},{"$f":"SQRT((AN50^2)+(AN64^2))","v":127.20062892926276},{"$f":"((AO50)+(AO64))","v":495},{"$f":"SQRT((AP50^2)+(AP64^2))","v":141.19844191774922},{"$f":"((AQ50)+(AQ64))","v":515},{"$f":"SQRT((AR50^2)+(AR64^2))","v":135.36986370680884},{"$f":"((AS50)+(AS64))","v":562},{"$f":"SQRT((AT50^2)+(AT64^2))","v":145.16542288024377},{"$f":"((AU50)+(AU64))","v":245},{"$f":"SQRT((AV50^2)+(AV64^2))","v":51.623637996561229},{"$f":"((AW50)+(AW64))","v":254},{"$f":"SQRT((AX50^2)+(AX64^2))","v":93.23089616645332},{"$f":"((AY50)+(AY64))","v":375},{"$f":"SQRT((AZ50^2)+(AZ64^2))","v":77.201036262475128},{"$f":"((BA50)+(BA64))","v":221},{"$f":"SQRT((BB50^2)+(BB64^2))","v":46.669047558312137},{"$f":"((BC50)+(BC64))","v":165},{"$f":"SQRT((BD50^2)+(BD64^2))","v":39.824615503479755}]
[null,"75 years and over",{"$f":"((C51)+(C65))","v":122},{"$f":"SQRT((D51^2)+(D65^2))","v":68.47627326307996},{"$f":"((E51)+(E65))","v":318},{"$f":"SQRT((F51^2)+(F65^2))","v":157.05094714773293},{"$f":"((G51)+(G65))","v":137},{"$f":"SQRT((H51^2)+(H65^2))","v":64.350602172784676},{"$f":"((I51)+(I65))","v":431},{"$f":"SQRT((J51^2)+(J65^2))","v":116.60617479361889},{"$f":"((K51)+(K65))","v":59},{"$f":"SQRT((L51^2)+(L65^2))","v":24.186773244895647},{"$f":"((M51)+(M65))","v":180},{"$f":"SQRT((N51^2)+(N65^2))","v":56.0357029044876},{"$f":"((O51)+(O65))","v":158},{"$f":"SQRT((P51^2)+(P65^2))","v":45.803929962395145},{"$f":"((Q51)+(Q65))","v":2871},{"$f":"SQRT((R51^2)+(R65^2))","v":320.51521024750139},{"$f":"((S51)+(S65))","v":109},{"$f":"SQRT((T51^2)+(T65^2))","v":70.51950084905593},{"$f":"((U51)+(U65))","v":160},{"$f":"SQRT((V51^2)+(V65^2))","v":36.61966684720111},{"$f":"((W51)+(W65))","v":177},{"$f":"SQRT((X51^2)+(X65^2))","v":86.267027304758798},{"$f":"((Y51)+(Y65))","v":749},{"$f":"SQRT((Z51^2)+(Z65^2))","v":264.62237244798484},{"$f":"((AA51)+(AA65))","v":182},{"$f":"SQRT((AB51^2)+(AB65^2))","v":82.462112512353215},{"$f":"((AC51)+(AC65))","v":52},{"$f":"SQRT((AD51^2)+(AD65^2))","v":28.301943396169811},{"$f":"((AE51)+(AE65))","v":904},{"$f":"SQRT((AF51^2)+(AF65^2))","v":194.42736432920137},{"$f":"((AG51)+(AG65))","v":267},{"$f":"SQRT((AH51^2)+(AH65^2))","v":97},{"$f":"((AI51)+(AI65))","v":278},{"$f":"SQRT((AJ51^2)+(AJ65^2))","v":108.26818553942798},{"$f":"((AK51)+(AK65))","v":196},{"$f":"SQRT((AL51^2)+(AL65^2))","v":59.682493245507096},{"$f":"((AM51)+(AM65))","v":792},{"$f":"SQRT((AN51^2)+(AN65^2))","v":188.80677953929515},{"$f":"((AO51)+(AO65))","v":264},{"$f":"SQRT((AP51^2)+(AP65^2))","v":94.30270409696638},{"$f":"((AQ51)+(AQ65))","v":237},{"$f":"SQRT((AR51^2)+(AR65^2))","v":84.899941107164494},{"$f":"((AS51)+(AS65))","v":275},{"$f":"SQRT((AT51^2)+(AT65^2))","v":107.29864864013899},{"$f":"((AU51)+(AU65))","v":100},{"$f":"SQRT((AV51^2)+(AV65^2))","v":46.097722286464439},{"$f":"((AW51)+(AW65))","v":185},{"$f":"SQRT((AX51^2)+(AX65^2))","v":93.005376188691372},{"$f":"((AY51)+(AY65))","v":185},{"$f":"SQRT((AZ51^2)+(AZ65^2))","v":61.741396161732524},{"$f":"((BA51)+(BA65))","v":71},{"$f":"SQRT((BB51^2)+(BB65^2))","v":25.45584412271571},{"$f":"((BC51)+(BC65))","v":126},{"$f":"SQRT((BD51^2)+(BD65^2))","v":40.496913462633174}]
[]
[]
[]
[]
[]
[]
[]
[]
[]
[]
[]
[]
[]
[]
[]
[]
[]
[]
[]
[]
[]
[]
[]
[]
[]
[]
[]
[]
[]
[]
[]
[]
[]
[]
[]
[]
[]
[]
[]
[]
[]
[]
[null,"Calculated Table B17001. POVERTY STATUS IN THE PAST 12 MONTHS BY SEX BY AGE"]
[null,"Universe:  POPULATION FOR WHOM POVERTY STATUS IS DETERMINED"]
[null,"Data Set: 2013-2017 American Community Survey 5-Year Estimates"]
[]
[null,null,"Allenstown",null,"Andover",null,"Boscawen",null,"Bow",null,"Bradford",null,"Canterbury",null,"Chichester",null,"Concord",null,"Danbury",null,"Dunbarton",null,"Epsom",null,"Franklin",null,"Henniker",null,"Hill",null,"Hooksett",null,"Hopkinton",null,"Loudon",null,"Newbury",null,"New London",null,"Northfield",null,"Pembroke",null,"Pittsfield",null,"Salisbury",null,"Sutton",null,"Warner",null,"Webster",null,"Wilmot"]
[null,null,"Estimate","Margin Of Error","Estimate","Margin Of Error","Estimate","Margin Of Error","Estimate","Margin Of Error","Estimate","Margin Of Error","Estimate","Margin Of Error","Estimate","Margin Of Error","Estimate","Margin Of Error","Estimate","Margin Of Error","Estimate","Margin Of Error","Estimate","Margin Of Error","Estimate","Margin Of Error","Estimate","Margin Of Error","Estimate","Margin Of Error","Estimate","Margin Of Error","Estimate","Margin Of Error","Estimate","Margin Of Error","Estimate","Margin Of Error","Estimate","Margin Of Error","Estimate","Margin Of Error","Estimate","Margin Of Error","Estimate","Margin Of Error","Estimate","Margin Of Error","Estimate","Margin Of Error","Estimate","Margin Of Error","Estimate","Margin Of Error","Estimate","Margin Of Error"]
[null,"Total:",4248,35,2658,288,3413,205,7671,36,1627,194,2198,208,2566,27,39773,365,1290,161,2796,41,4537,114,8238,73,4338,108,1014,143,13180,217,5601,24,5354,28,1885,221,3564,201,4771,47,7069,80,4067,47,1299,166,1942,276,2736,59,1872,153,1502,176]
[null,"Income in the past 12 months below poverty level:",470,169,176,120,432,215,336,157,85,48,51,26,184,121,4507,736,32,26,137,103,142,90,1515,410,525,301,64,67,549,222,242,173,386,264,59,43,330,158,233,167,483,186,601,230,36,19,98,89,237,92,106,40,134,73]
[null,"Under 5 years",9,49.040799340956916,0,13.038404810405298,62,22.825424421026653,10,22.671568097509269,0,17.029386365926403,0,16.278820596099706,64,41.231056256176608,205,102.42070103255493,0,13.038404810405298,0,15.556349186104045,0,19.416487838947599,211,138.10503249338888,38,15.556349186104045,0,15.556349186104045,17,45.310043036836767,16,42.720018726587654,0,30.886890422961002,0,15.556349186104045,18,47.010637094172637,50,41.976183723630712,0,73.545904032787575,53,58.309518948453004,0,12.529964086141668,0,15.556349186104045,0,15.556349186104045,11,12.206555615733702,3,11.704699910719626]
[null,"5 to 17 years",95,62.297672508690084,35,34.322004603461025,127,86.063929726686311,120,72.401657439591816,21,29.732137494637012,1,31.432467291003423,0,33.166247903554002,822,217.51551668789057,9,30.773365106858236,39,43.56604182158393,45,44.21538193886829,341,131.76494222667878,108,91.312649726092161,10,34.278273002005221,57,51.96152422706632,44,55.226805085936306,50,60.32412452742269,15,33.570820663189039,33,46.893496350773418,29,53.990739946772351,77,86.804377769787621,95,64.691575958543467,4,31.859064644147981,48,45.287967496897011,17,27.838821814150108,14,26.627053911388696,27,25.942243542145693]
[null,"18 to 64 years",339,109.98636279102969,48,44.147480109288232,212,83.126409762481629,173,80.436310208760815,50,32.372828112477293,44,31.733263305244861,108,59.186147027830764,3085,389.85638381332171,20,27.294688127912362,98,51.778373863998475,73,44.530888156424638,861,205.41664976335292,358,190.46259475288053,51,41.71330722922842,386,142.43946082459033,165,97.241966249145747,316,177.08190195499935,39,31.304951684997057,265,119.96249413879323,147,83.264638352664448,379,189.10843450253614,428,143.2724676970422,32,30.04995840263344,45,35.986108430893161,194,70.448562795844168,58,32.939338184001208,78,52.621288467691478]
[null,"65 to 74 years",0,15.556349186104045,26,26.248809496813376,16,20.248456731316587,18,25.80697580112788,10,13,5,13.038404810405298,12,17.029386365926403,191,63.702433234531945,3,11.704699910719626,0,15.556349186104045,0,15.556349186104045,33,31.144823004794873,7,15.556349186104045,3,11.704699910719626,7,20.248456731316587,17,30.886890422961002,20,24.698178070456937,0,15.556349186104045,0,15.556349186104045,0,15.556349186104045,27,37.161808352124091,13,14.212670403551895,0,15.556349186104045,5,13.038404810405298,14,31.016124838541646,19,17.464249196572979,12,10.770329614269007]
[null,"75 years and over",27,23.600847442411894,67,95.336247041720711,15,17.804493814764857,15,22.671568097509269,4,12.083045973594572,1,11.704699910719626,0,15.556349186104045,204,93.621578709184348,0,15.556349186104045,0,15.556349186104045,24,22.472205054244231,69,41.773197148410844,14,19.416487838947599,0,15.556349186104045,82,55.317266743757322,0,21.213203435596427,0,21.213203435596427,5,13.038404810405298,14,18.601075237738275,7,16.278820596099706,0,21.213203435596427,12,19.416487838947599,0,15.556349186104045,0,15.556349186104045,12,11.313708498984761,4,12.529964086141668,14,12.083045973594572]
[null," Income in the past 12 months at or above poverty level ",3778,173,2482,258,2981,273,7335,161,1542,194,2147,211,2382,120,35266,836,1258,162,2659,108,4395,147,6723,414,3813,292,950,130,12631,274,5359,175,4968,269,1826,219,3234,257,4538,166,6586,216,3466,238,1263,173,1844,260,2499,105,1766,160,1368,172]
[null,"Under 5 years",217,91.35097153287424,90,48.010415536631214,227,82.419657849326214,216,89.358827208060418,39,17.029386365926403,132,48.918299234540036,84,38.209946349085598,1898,227.00881040171106,110,53.758720222862451,138,43.600458713183279,206,85.906926379658117,273,116.67476162392619,389,134.61426373159719,45,22.203603311174518,646,162.80663377147749,137,81.884064383737083,236,130.38404810405297,65,34.885527085024819,62,42.544094772365298,243,107.16809226630845,222,107.44766167767449,154,75.822160349069449,30,18.384776310850235,95,43.266615305567875,94,45.803929962395145,60,26.248809496813376,55,28.600699292150182]
[null,"5 to 17 years",444,127.63620176109912,366,103.02426898551623,385,132.7629466379833,1422,198.53463173965392,254,52.55473337388365,252,65.992423807585666,376,83.024092888751269,5109,405.33319627190667,148,41.940433951021539,439,79.906195003891909,706,170.66048165876012,924,194.57903278616635,622,159.59949874608003,130,43.520110293977886,1924,289.07611454424938,996,228.79248239398078,659,214.88834309938733,224,57.454329688892898,393,101.13357503816425,746,143.22360140703069,1244,258.31182706178981,598,143.19217855734999,200,57.723478758647246,310,79.498427657407163,427,83.833167660538749,269,58.163562476863468,181,56.444663166680336]
[null,"18 to 64 years",2570,248.32639811345067,1529,187.51533270642165,1936,228.5191458062103,4485,287.57607689096812,918,102.00490184299969,1375,127.36954109990347,1555,146.38647478507022,22767,742.95625712419974,848,109.21538353180837,1746,130.33802208104893,2790,281.99822694478064,4513,406.41973377285706,2347,265.8965964430534,575,68.432448443702498,8149,529.76692988520904,3203,326.06441081479591,3246,363.30840893103482,1066,130.43005788544295,1332,175.35392781457733,2974,259.24505781210178,4204,388.44819474416403,2221,248.86140721293046,823,98.615414616580097,1022,149.08386901338454,1523,152.85287043428397,1158,106.25441167311595,811,99.468588006465637]
[null,"65 to 74 years",305,91.285267157411553,336,73.878278269055514,250,64.350602172784676,694,102.80077820717118,221,51.088159097779204,286,48.083261120685229,288,48.918299234540036,3009,226.37358503146962,85,29.154759474226502,255,39.824615503479755,511,84.202137740083529,648,135.09256086106296,267,83.240615086627031,138,36.124783736376884,1238,170.44940598312451,684,136.65284482951682,501,124.48293055676348,371,72.47068372797375,610,112.43220179290273,371,75.166481891864535,520,124.63145670335399,312,83.006023877788536,122,34.205262752974143,256,65.855903304107827,309,76.419892698171196,193,41.617304093369626,167,42.449970553582247]
[null,"75 years and over",242,86.284413424441851,161,55.569775957799216,183,80.65977932030313,518,111.5212984142491,110,36.891733491393431,102,34.655446902326915,79,33.241540277189323,2483,255.66579747787932,67,25.942243542145693,81,35.341194094144583,182,66.708320320631671,365,107.89810007595129,188,69.404610797842537,62,33.941125496954278,674,150.41608956491322,339,114.0175425099138,326,116.50321883965266,100,36.796738985948195,837,145.7737973711325,204,70.724818840347695,396,102.34256201600583,181,61.587336360651285,88,30,161,49.040799340956916,146,47.801673610868477,86,30.805843601498726,154,47.507894080878813]
[]
[]
[]
[]
[]
[]
[]
[]
[]
[]
[]
[]
[]
[]
[]
[]
[]
[]
[]
[]
[]
[]
[]
[]
[]
[]
[]
[]
[]
[]
[]
[]
[]
[]
[]
[]
[]
[]
[]
[]
[]
[]
[null,"Calculated Table B17001. POVERTY STATUS IN THE PAST 12 MONTHS BY SEX BY AGE"]
[null,"Universe:  POPULATION FOR WHOM POVERTY STATUS IS DETERMINED"]
[null,"Data Set: 2008-2012 American Community Survey 5-Year Estimates"]
[]
[null,null,"Allenstown",null,"Andover",null,"Boscawen",null,"Bow",null,"Bradford",null,"Canterbury",null,"Chichester",null,"Concord",null,"Danbury",null,"Dunbarton",null,"Epsom",null,"Franklin",null,"Henniker",null,"Hill",null,"Hooksett",null,"Hopkinton",null,"Loudon",null,"Newbury",null,"New London",null,"Northfield",null,"Pembroke",null,"Pittsfield",null,"Salisbury",null,"Sutton",null,"Warner",null,"Webster",null,"Wilmot"]
[null,null,"Estimate","Margin Of Error","Estimate","Margin Of Error","Estimate","Margin Of Error","Estimate","Margin Of Error","Estimate","Margin Of Error","Estimate","Margin Of Error","Estimate","Margin Of Error","Estimate","Margin Of Error","Estimate","Margin Of Error","Estimate","Margin Of Error","Estimate","Margin Of Error","Estimate","Margin Of Error","Estimate","Margin Of Error","Estimate","Margin Of Error","Estimate","Margin Of Error","Estimate","Margin Of Error","Estimate","Margin Of Error","Estimate","Margin Of Error","Estimate","Margin Of Error","Estimate","Margin Of Error","Estimate","Margin Of Error","Estimate","Margin Of Error","Estimate","Margin Of Error","Estimate","Margin Of Error","Estimate","Margin Of Error","Estimate","Margin Of Error","Estimate","Margin Of Error"]
[null,"Total:",4405,41,2395,247,3494,374,7559,22,1513,193,2458,156,2512,16,39967,532,1115,210,2722,16,4410,72,8396,69,4171,177,1270,221,12458,233,5618,21,5238,59,2084,256,3531,268,4782,63,7148,22,4082,46,1339,161,1663,211,2755,71,1779,185,1363,186]
[null,"Income in the past 12 months below poverty level:",312,214,180,101,443,281,141,111,58,27,120,87,150,78,4097,577,208,125,170,88,174,154,1390,403,103,70,117,89,387,248,125,142,250,136,207,143,477,243,823,384,652,317,636,346,45,29,52,30,118,71,109,88,77,46]
[null,"Under 5 years",38,26.90724809414742,0,85.475142585432408,0,120.20815280171308,0,87.321245982864909,0,86.683331731077345,7,85.708809348864477,0,85.37564055396598,276,119.67038062946069,0,85.14693182963201,6,85.287748240881584,0,120.20815280171308,111,68.308125431752259,0,120.20815280171308,0,86.145226217127089,63,66.708320320631671,42,108.85311203635843,0,86.49277426467485,9,86.145226217127089,36,65.80273550544841,131,110.21796586763884,78,80.65977932030313,148,99.644367628080218,0,120.20815280171308,0,85.14693182963201,0,86.49277426467485,0,85.211501571090736,0,85.14693182963201]
[null,"5 to 17 years",75,232.64350410015751,18,242.33447959380439,225,206.1674077054858,42,211.87024330943692,3,240.64496670406385,35,210.19990485249988,32,210.53265779921176,629,181.62323639887052,91,174.84850585578363,48,192.81856757065694,64,219.36271333114021,449,175.03428235634297,0,255.16661223600551,51,176.79083686662042,77,215.63858652847824,0,255.16661223600551,117,203.86024624727597,90,177.20609470331431,127,190.97382019533464,184,232.72086283786419,49,231.08440016582685,200,203.62219918270208,12,225.37967965191538,0,255.16661223600551,0,255.16661223600551,31,210.40674894118771,0,255.16661223600551]
[null,"18 to 64 years",150,151.28450019747561,146,194.36048981210146,200,152.05262246998569,63,213.24164696418944,34,225.72771207806986,69,125.01999840025594,100,155.40913744049931,2778,400.77175549182607,108,127.51470503436065,105,47.916594202843754,110,182.52944967867515,673,164.88177582740914,75,216.11339616044165,66,151.762973086323,202,125.67020331009256,67,236.21176939348302,132,109.09170454255447,96,153.55455056754261,155,209.4850830011531,494,171.743995528228,490,207.00724624998034,261,202.92855885754474,24,190.90049764209627,50,172.61228229763952,69,173.84188218033074,58,173.84475833340503,59,150.72491499417075]
[null,"65 to 74 years",30,33.241540277189323,5,85.586213843118443,9,86.313382508160345,0,120.20815280171308,0,120.20815280171308,0,120.20815280171308,12,11.704699910719626,185,77.006493232713822,9,85.988371306822643,5,85.475142585432408,0,120.20815280171308,61,48.383881613611777,8,85.988371306822643,0,120.20815280171308,12,87.321245982864909,16,88.600225733346747,0,120.20815280171308,6,85.475142585432408,21,88.056799851005266,0,120.20815280171308,35,94.371605899232208,27,21.213203435596427,0,120.20815280171308,0,120.20815280171308,13,87.321245982864909,6,7.0710678118654755,0,120.20815280171308]
[null,"75 years and over",19,27.294688127912362,11,85.84287972802403,9,86.313382508160345,36,105.20931517693668,21,16.552945357246848,9,85.84287972802403,6,85.708809348864477,229,92.309262807152777,0,120.20815280171308,6,85.475142585432408,0,120.20815280171308,96,65.513357416636794,20,87.555696559390128,0,120.20815280171308,33,30.016662039607269,0,120.20815280171308,1,85.052924699859673,6,85.37564055396598,138,86.608313688698502,14,18.439088914585774,0,120.20815280171308,0,120.20815280171308,9,7.2111025509279782,2,85.14693182963201,36,36.715119501371639,14,86.683331731077345,18,17.720045146669349]
[null," Income in the past 12 months at or above poverty level ",4093,216,2215,231,3051,430,7418,114,1455,196,2338,169,2362,81,35870,707,907,178,2552,91,4236,164,7006,408,4068,192,1153,198,12071,338,5493,147,4988,168,1877,230,3054,297,3959,386,6496,315,3446,350,1294,161,1611,211,2637,93,1670,172,1286,180]
[null,"Under 5 years",186,85.440037453175307,126,55.946402922797461,158,70.007142492748557,351,108.70602559196064,69,26.832815729997478,143,63.7808748764079,100,43.829214001622255,1934,242.90944814889355,14,12.529964086141668,90,39.204591567825318,245,123.43419299367578,379,133.00375934536586,295,118.10588469674151,61,32.893768406797051,730,188.95766721676048,181,77.233412458598508,197,83.815273071201048,93,65.79513659838392,96,65.069193939989759,242,110.27692415006868,341,114.82595525402782,181,83.486525858967212,50,20.124611797498108,150,68.818602136341013,180,61.220911460055866,80,33.421549934136806,40,21.2602916254693]
[null,"5 to 17 years",688,235.68623209682826,296,75.696763471102244,433,165.95782596792475,1831,285.48029704342122,201,69.56292115775473,366,152.79725128417724,480,132.82695509571843,5755,517.09283499193839,155,155.55384919699031,496,125.65826673959816,731,166.47221990470362,1102,211.04501889407388,739,253.07311196569265,257,64.288412641781719,2029,286.18176042508367,730,165.80711685570074,841,164.69669092000603,275,65.299310869258036,432,148.8321201891581,696,163.18700928689145,1160,292.6807134062646,354,170.8654441366071,238,104.08650248711405,295,71.763500472036625,403,95.62949335848225,261,57.818682101895057,303,111.27443551867607]
[null,"18 to 64 years",2818,304.20387900222443,1357,158.37929157563497,1973,271.42954887042049,4326,314.01592316314151,1043,119.63277142990545,1516,146.45818515876809,1544,154.19792475905763,23434,793.75499998425209,630,101.45935146648632,1779,146.48208081536799,2674,254.83720293552116,4696,376.97877924360677,2791,326.02300532324404,719,91.400218818118816,7827,434.2084752742627,3409,359.75408267315049,3324,305.87579178483543,1131,140.34600101178515,1303,180.0638775546056,2533,283.05476501906833,4299,378.65947763128815,2548,265.1226131434284,864,94.005318998448161,927,121.19405926034493,1678,171.61585008384279,1158,109.38464243210744,773,114.30223094935637]
[null,"65 to 74 years",258,69.404610797842537,295,84.291162051546067,226,81.60882305241266,587,111.12605455067681,79,31.144823004794873,186,42.449970553582247,192,53.814496188294839,2352,193.33132182861627,68,21.931712199461309,137,33.97057550292606,446,109.77249200050075,396,91.241437954473298,112,55.21775076911409,73,22.022715545545239,1025,135.20724832641184,725,160.89748288895012,345,99.824846606443629,179,46.690470119715009,502,108.2081327812286,290,109.98636279102969,311,93.085981758801893,199,57.314919523628397,99,26.870057685088806,153,44.045431091090478,149,46.690470119715009,106,29.206163733020468,81,30.886890422961002]
[null,"75 years and over",143,70.604532432415411,141,71.28113354878694,261,89.358827208060418,323,104.66135867644753,63,23.853720883753127,127,45.803929962395145,46,25.495097567963924,2395,257.28777662376422,40,17.204650534085253,50,28.600699292150182,140,71.693793315739683,433,103.96634070698073,131,60.835844697020519,43,21.931712199461309,460,104.84750831564858,448,133.12400234367956,281,81.492330927517344,199,59.665735560705194,721,138.59292911256333,198,74.652528423356159,385,96.384646080171919,164,65.80273550544841,43,23.021728866442675,86,37.20215047547655,227,61.619802012015583,65,22.803508501982758,89,34.132096331752024]

{"sheet":"ACS_Table_B17010","index":51,"n_rows":165,"n_cols":56,"rows_kept":165,"cut":false,"hidden":true,"merged":[]}
[null,"B17010. POVERTY STATUS IN THE PAST 12 MONTHS OF FAMILIES BY FAMILY TYPE BY PRESENCE OF RELATED CHILDREN UNDER 18 YEARS"]
[null,"Universe: FAMILIES"]
[null,"Data Set: 2018-2022 American Community Survey 5-Year Estimates"]
[]
[null,null,"Allenstown",null,"Andover",null,"Boscawen",null,"Bow",null,"Bradford",null,"Canterbury",null,"Chichester",null,"Concord",null,"Danbury",null,"Dunbarton",null,"Epsom",null,"Franklin",null,"Henniker",null,"Hill",null,"Hooksett",null,"Hopkinton",null,"Loudon",null,"Newbury",null,"New London",null,"Northfield",null,"Pembroke",null,"Pittsfield",null,"Salisbury",null,"Sutton",null,"Warner",null,"Webster",null,"Wilmot"]
[null,null,"Estimate","Margin Of Error","Estimate","Margin Of Error","Estimate","Margin Of Error","Estimate","Margin Of Error","Estimate","Margin Of Error","Estimate","Margin Of Error","Estimate","Margin Of Error","Estimate","Margin Of Error","Estimate","Margin Of Error","Estimate","Margin Of Error","Estimate","Margin Of Error","Estimate","Margin Of Error","Estimate","Margin Of Error","Estimate","Margin Of Error","Estimate","Margin Of Error","Estimate","Margin Of Error","Estimate","Margin Of Error","Estimate","Margin Of Error","Estimate","Margin Of Error","Estimate","Margin Of Error","Estimate","Margin Of Error","Estimate","Margin Of Error","Estimate","Margin Of Error","Estimate","Margin Of Error","Estimate","Margin Of Error","Estimate","Margin Of Error","Estimate","Margin Of Error"]
[null,"Total:",1077,128,601,120,849,120,2419,105,437,58,689,86,784,72,10699,427,448,91,836,69,1332,111,2330,201,1334,220,198,40,3687,219,1655,158,1792,165,522,84,1054,99,1333,136,1858,180,1128,128,448,104,721,161,821,61,627,88,437,77]
[null,"Income in the past 12 months below poverty level:",80,72,23,16,16,18,41,30,16,16,11,15,22,28,665,219,36,22,5,8,17,20,33,34,51,49,3,4,68,52,0,17,147,134,12,18,0,12,99,95,72,63,24,26,11,8,8,13,36,24,44,41,3,5]
[null,"Married-couple family:",42,48,13,11,8,14,18,17,16,16,0,12,4,6,193,119,9,9,5,8,17,20,0,17,0,17,3,4,21,34,0,17,0,17,12,18,0,12,49,64,0,17,8,14,11,8,0,12,21,19,44,41,3,5]
[null,"With related children under 18 years:",0,12,0,12,8,14,12,19,9,12,0,12,0,12,40,32,0,12,5,8,0,12,0,17,0,17,0,12,0,19,0,17,0,17,0,12,0,12,0,12,0,17,0,12,4,7,0,12,0,12,31,38,0,12]
[null,"Under 5 years only",0,12,0,12,0,12,0,17,0,12,0,12,0,12,14,23,0,12,0,12,0,12,0,17,0,17,0,12,0,19,0,17,0,17,0,12,0,12,0,12,0,17,0,12,0,12,0,12,0,12,4,5,0,12]
[null,"Under 5 years and 5 to 17 years",0,12,0,12,8,14,0,17,0,12,0,12,0,12,11,19,0,12,0,12,0,12,0,17,0,17,0,12,0,19,0,17,0,17,0,12,0,12,0,12,0,17,0,12,0,12,0,12,0,12,0,12,0,12]
[null,"5 to 17 years only",0,12,0,12,0,12,12,19,9,12,0,12,0,12,15,28,0,12,5,8,0,12,0,17,0,17,0,12,0,19,0,17,0,17,0,12,0,12,0,12,0,17,0,12,4,7,0,12,0,12,27,38,0,12]
[null,"No related children under 18 years",42,48,13,11,0,12,6,10,7,11,0,12,4,6,153,113,9,9,0,12,17,20,0,17,0,17,3,4,21,34,0,17,0,17,12,18,0,12,49,64,0,17,8,14,7,7,0,12,21,19,13,16,3,5]
[null,"Other family:",38,49,10,12,8,12,23,24,0,12,11,15,18,27,472,210,27,21,0,12,0,12,33,34,51,49,0,12,47,44,0,17,147,134,0,12,0,12,50,43,72,63,16,24,0,12,8,13,15,16,0,12,0,12]
[null,"Male householder, no spouse present:",0,12,0,12,8,12,0,17,0,12,11,15,18,27,84,73,11,14,0,12,0,12,14,17,0,17,0,12,7,13,0,17,129,130,0,12,0,12,36,48,0,17,16,24,0,12,0,12,0,12,0,12,0,12]
[null,"With related children under 18 years:",0,12,0,12,8,12,0,17,0,12,11,15,18,27,84,73,11,14,0,12,0,12,14,17,0,17,0,12,0,19,0,17,90,107,0,12,0,12,36,48,0,17,16,24,0,12,0,12,0,12,0,12,0,12]
[null,"Under 5 years only",0,12,0,12,0,12,0,17,0,12,0,12,0,12,7,10,0,12,0,12,0,12,8,13,0,17,0,12,0,19,0,17,0,17,0,12,0,12,0,12,0,17,0,12,0,12,0,12,0,12,0,12,0,12]
[null,"Under 5 years and 5 to 17 years",0,12,0,12,0,12,0,17,0,12,11,15,0,12,0,25,11,14,0,12,0,12,0,17,0,17,0,12,0,19,0,17,0,17,0,12,0,12,0,12,0,17,0,12,0,12,0,12,0,12,0,12,0,12]
[null,"5 to 17 years only",0,12,0,12,8,12,0,17,0,12,0,12,18,27,77,72,0,12,0,12,0,12,6,12,0,17,0,12,0,19,0,17,90,107,0,12,0,12,36,48,0,17,16,24,0,12,0,12,0,12,0,12,0,12]
[null,"No related children under 18 years",0,12,0,12,0,12,0,17,0,12,0,12,0,12,0,25,0,12,0,12,0,12,0,17,0,17,0,12,7,13,0,17,39,64,0,12,0,12,0,12,0,17,0,12,0,12,0,12,0,12,0,12,0,12]
[null,"Female householder, no spouse present:",38,49,10,12,0,12,23,24,0,12,0,12,0,12,388,192,16,16,0,12,0,12,19,28,51,49,0,12,40,40,0,17,18,31,0,12,0,12,14,20,72,63,0,12,0,12,8,13,15,16,0,12,0,12]
[null,"With related children under 18 years:",38,49,10,12,0,12,9,15,0,12,0,12,0,12,381,190,16,16,0,12,0,12,19,28,51,49,0,12,40,40,0,17,18,31,0,12,0,12,0,12,72,63,0,12,0,12,8,13,15,16,0,12,0,12]
[null,"Under 5 years only",0,12,0,12,0,12,9,15,0,12,0,12,0,12,97,85,0,12,0,12,0,12,0,17,0,17,0,12,0,19,0,17,0,17,0,12,0,12,0,12,0,17,0,12,0,12,0,12,10,14,0,12,0,12]
[null,"Under 5 years and 5 to 17 years",30,48,0,12,0,12,0,17,0,12,0,12,0,12,73,67,4,5,0,12,0,12,0,17,41,43,0,12,0,19,0,17,0,17,0,12,0,12,0,12,44,41,0,12,0,12,0,12,0,12,0,12,0,12]
[null,"5 to 17 years only",8,15,10,12,0,12,0,17,0,12,0,12,0,12,211,155,12,16,0,12,0,12,19,28,10,17,0,12,40,40,0,17,18,31,0,12,0,12,0,12,28,44,0,12,0,12,8,13,5,7,0,12,0,12]
[null,"No related children under 18 years",0,12,0,12,0,12,14,14,0,12,0,12,0,12,7,12,0,12,0,12,0,12,0,17,0,17,0,12,0,19,0,17,0,17,0,12,0,12,14,20,0,17,0,12,0,12,0,12,0,12,0,12,0,12]
[null,"Income in the past 12 months at or above poverty level:",997,127,578,120,833,119,2378,105,421,58,678,85,762,76,10034,415,412,95,831,70,1315,110,2297,195,1283,227,195,40,3619,218,1655,158,1645,229,510,87,1054,99,1234,124,1786,195,1104,130,437,104,713,160,785,65,583,87,434,77]
[null,"Married-couple family:",733,124,496,113,703,124,2198,115,352,53,629,94,638,85,7662,445,372,94,805,75,1141,103,1873,228,1064,244,157,34,3059,242,1392,147,1546,254,449,86,966,107,925,142,1411,196,845,153,398,101,654,152,588,88,499,93,353,67]
[null,"With related children under 18 years:",352,112,146,48,273,79,995,102,85,34,211,67,290,68,2570,275,96,39,386,55,457,116,618,106,398,110,42,16,1298,183,487,124,369,138,160,40,278,67,297,93,634,183,220,88,147,93,193,76,203,69,167,64,107,38]
[null,"Under 5 years only",59,62,27,21,38,33,158,75,14,12,51,31,52,32,534,149,14,13,23,17,71,58,46,33,17,24,14,9,210,106,46,56,80,64,39,25,56,30,37,31,144,120,48,61,21,16,10,9,86,64,49,57,31,23]
[null,"Under 5 years and 5 to 17 years",32,30,5,7,56,46,219,103,26,23,19,19,18,17,453,168,22,16,83,42,34,36,145,80,114,91,7,6,84,56,111,75,0,17,49,23,55,50,52,47,24,24,0,12,14,16,16,14,25,17,16,10,31,22]
[null,"5 to 17 years only",261,111,114,47,179,79,618,123,45,22,141,66,220,79,1583,224,60,33,280,75,352,119,427,139,267,115,21,11,1004,198,330,136,289,137,72,39,167,76,208,82,466,165,172,76,112,92,167,72,92,48,102,29,45,19]
[null,"No related children under 18 years",381,119,350,115,430,149,1203,126,267,44,418,85,348,63,5092,439,276,92,419,86,684,138,1255,249,666,257,115,28,1761,234,905,168,1177,249,289,77,688,124,628,135,777,193,625,150,251,51,461,138,385,66,332,76,246,60]
[null,"Other family:",264,117,82,40,130,58,180,72,69,37,49,25,124,61,2372,357,40,20,26,21,174,77,424,125,219,98,38,21,560,149,263,147,99,83,61,31,88,52,309,124,375,185,259,102,39,24,59,30,197,64,84,41,81,36]
[null,"Male householder, no spouse present:",47,36,34,20,75,41,52,34,35,27,14,12,67,66,1075,224,23,16,17,17,59,40,187,93,104,70,10,8,220,101,79,59,0,17,20,25,37,29,137,81,205,138,126,79,7,7,31,23,94,45,43,33,28,19]
[null,"With related children under 18 years:",35,30,9,11,47,33,34,26,29,27,6,9,54,64,601,191,7,7,11,15,52,40,88,73,40,39,3,4,125,93,64,51,0,17,0,12,15,17,72,67,71,55,65,67,3,4,18,21,79,48,25,29,18,16]
[null,"Under 5 years only",13,18,0,12,0,12,0,17,10,17,0,12,0,12,45,44,0,12,0,12,0,12,9,14,0,17,0,12,0,19,7,13,0,17,0,12,0,12,47,58,0,17,0,12,0,12,0,12,0,12,0,12,0,12]
[null,"Under 5 years and 5 to 17 years",0,12,0,12,0,12,0,17,0,12,0,12,0,12,104,85,0,12,11,15,0,12,0,17,0,17,0,12,0,19,0,17,0,17,0,12,0,12,0,12,4,10,0,12,0,12,0,12,10,15,0,12,0,12]
[null,"5 to 17 years only",22,24,9,11,47,33,34,26,19,21,6,9,54,64,452,161,7,7,0,12,52,40,79,73,40,39,3,4,125,93,57,50,0,17,0,12,15,17,25,29,67,54,65,67,3,4,18,21,69,44,25,29,18,16]
[null,"No related children under 18 years",12,19,25,17,28,25,18,22,6,6,8,9,13,13,474,161,16,15,6,8,7,12,99,61,64,53,7,7,95,51,15,26,0,17,20,25,22,23,65,47,134,121,61,42,4,5,13,11,15,15,18,16,10,8]
[null,"Female householder, no spouse present:",217,115,48,37,55,44,128,59,34,23,35,21,57,35,1297,267,17,13,9,14,115,68,237,105,115,75,28,18,340,129,184,130,99,83,41,22,51,43,172,100,170,109,133,82,32,24,28,19,103,52,41,22,53,30]
[null,"With related children under 18 years:",79,71,34,34,23,25,88,52,27,22,17,15,39,35,778,204,14,13,9,14,98,65,123,78,83,67,4,5,168,99,77,88,16,29,13,12,0,12,123,98,131,98,87,79,21,19,23,18,53,35,25,14,21,21]
[null,"Under 5 years only",0,12,3,6,23,25,6,9,0,12,5,8,0,12,135,100,6,9,0,12,28,34,19,25,0,17,0,12,15,23,0,17,0,17,7,8,0,12,11,18,36,52,7,11,0,12,6,9,0,12,0,12,0,12]
[null,"Under 5 years and 5 to 17 years",68,70,6,9,0,12,0,17,2,3,0,12,0,12,53,40,0,12,0,12,0,12,18,30,0,17,0,12,0,19,0,17,0,17,0,12,0,12,0,12,9,28,0,12,0,12,6,9,0,12,3,4,11,15]
[null,"5 to 17 years only",11,18,25,31,0,12,82,49,25,22,12,13,39,35,590,176,8,10,9,14,70,60,86,67,83,67,4,5,153,96,77,88,16,29,6,8,0,12,112,98,86,66,80,80,21,19,11,11,53,35,22,15,10,11]
[null,"No related children under 18 years",138,97,14,15,32,28,40,29,7,9,18,13,18,14,519,156,3,5,0,12,17,20,114,78,32,33,24,17,172,90,107,93,83,72,28,20,51,43,49,33,39,49,46,48,11,15,5,9,50,38,16,16,32,26]
[]
[]
[]
[]
[]
[]
[]
[]
[]
[]
[]
[]
[null,"B17010. POVERTY STATUS IN THE PAST 12 MONTHS OF FAMILIES BY FAMILY TYPE BY PRESENCE OF RELATED CHILDREN UNDER 18 YEARS"]
[null,"Universe: FAMILIES"]
[null,"Data Set: 2013-2017 American Community Survey 5-Year Estimates"]
[]
[null,null,"Allenstown",null,"Andover",null,"Boscawen",null,"Bow",null,"Bradford",null,"Canterbury",null,"Chichester",null,"Concord",null,"Danbury",null,"Dunbarton",null,"Epsom",null,"Franklin",null,"Henniker",null,"Hill",null,"Hooksett",null,"Hopkinton",null,"Loudon",null,"Newbury",null,"New London",null,"Northfield",null,"Pembroke",null,"Pittsfield",null,"Salisbury",null,"Sutton",null,"Warner",null,"Webster",null,"Wilmot"]
[null,null,"Estimate","Margin Of Error","Estimate","Margin Of Error","Estimate","Margin Of Error","Estimate","Margin Of Error","Estimate","Margin Of Error","Estimate","Margin Of Error","Estimate","Margin Of Error","Estimate","Margin Of Error","Estimate","Margin Of Error","Estimate","Margin Of Error","Estimate","Margin Of Error","Estimate","Margin Of Error","Estimate","Margin Of Error","Estimate","Margin Of Error","Estimate","Margin Of Error","Estimate","Margin Of Error","Estimate","Margin Of Error","Estimate","Margin Of Error","Estimate","Margin Of Error","Estimate","Margin Of Error","Estimate","Margin Of Error","Estimate","Margin Of Error","Estimate","Margin Of Error","Estimate","Margin Of Error","Estimate","Margin Of Error","Estimate","Margin Of Error","Estimate","Margin Of Error"]
[null,"Total:",1096,102,716,97,895,112,2344,107,455,76,610,64,726,54,9825,368,364,57,815,41,1243,99,2007,132,1080,109,308,46,3626,180,1479,121,1480,116,619,78,1030,99,1328,95,1925,151,975,93,364,54,578,89,728,65,554,55,433,55]
[null,"Income in the past 12 months below poverty level:",121,63,17,16,79,50,86,49,12,12,0,11,39,42,766,197,3,5,19,21,30,25,291,96,37,52,10,14,62,37,46,42,43,39,18,16,77,60,41,50,55,72,143,94,9,9,21,20,24,15,16,11,17,13]
[null,"Married-couple family:",57,46,10,10,0,11,18,28,2,5,0,11,5,8,196,76,3,5,19,21,13,16,77,64,0,11,0,11,44,32,46,42,19,22,4,6,28,43,15,23,55,72,40,60,0,11,10,16,14,11,3,5,11,10]
[null,"With related children under 18 years:",12,19,4,6,0,11,18,28,0,11,0,11,0,11,93,53,3,5,14,20,5,9,67,61,0,11,0,11,11,17,29,33,11,18,0,11,0,11,0,11,0,15,0,11,0,11,10,16,4,6,3,5,8,9]
[null,"Under 5 years only",0,11,0,11,0,11,0,15,0,11,0,11,0,11,18,20,0,11,0,11,0,11,0,15,0,11,0,11,0,17,0,15,0,15,0,11,0,11,0,11,0,15,0,11,0,11,0,11,0,11,0,11,0,11]
[null,"Under 5 years and 5 to 17 years",0,11,0,11,0,11,0,15,0,11,0,11,0,11,43,36,0,11,0,11,0,11,0,15,0,11,0,11,0,17,16,25,0,15,0,11,0,11,0,11,0,15,0,11,0,11,0,11,0,11,0,11,3,4]
[null,"5 to 17 years only",12,19,4,6,0,11,18,28,0,11,0,11,0,11,32,27,3,5,14,20,5,9,67,61,0,11,0,11,11,17,13,22,11,18,0,11,0,11,0,11,0,15,0,11,0,11,10,16,4,6,3,5,5,8]
[null,"No related children under 18 years",45,43,6,8,0,11,0,15,2,5,0,11,5,8,103,50,0,11,5,8,8,12,10,14,0,11,0,11,33,30,17,27,8,13,4,6,28,43,15,23,55,72,40,60,0,11,0,11,10,10,0,11,3,4]
[null,"Other family:",64,51,7,11,79,50,68,43,10,11,0,11,34,40,570,188,0,11,0,11,17,19,214,94,37,52,10,14,18,21,0,15,24,32,14,15,49,42,26,45,0,15,103,75,9,9,11,13,10,10,13,10,6,8]
[null,"Male householder, no wife present:",0,11,0,11,7,11,13,19,3,6,0,11,0,11,90,56,0,11,0,11,0,11,71,60,0,11,0,11,18,21,0,15,0,15,6,9,0,11,0,11,0,15,10,15,4,6,0,11,0,11,0,11,0,11]
[null,"With related children under 18 years:",0,11,0,11,0,11,13,19,3,6,0,11,0,11,42,33,0,11,0,11,0,11,46,50,0,11,0,11,18,21,0,15,0,15,0,11,0,11,0,11,0,15,10,15,0,11,0,11,0,11,0,11,0,11]
[null,"Under 5 years only",0,11,0,11,0,11,0,15,0,11,0,11,0,11,0,23,0,11,0,11,0,11,30,47,0,11,0,11,0,17,0,15,0,15,0,11,0,11,0,11,0,15,0,11,0,11,0,11,0,11,0,11,0,11]
[null,"Under 5 years and 5 to 17 years",0,11,0,11,0,11,0,15,0,11,0,11,0,11,0,23,0,11,0,11,0,11,0,15,0,11,0,11,8,11,0,15,0,15,0,11,0,11,0,11,0,15,10,15,0,11,0,11,0,11,0,11,0,11]
[null,"5 to 17 years only",0,11,0,11,0,11,13,19,3,6,0,11,0,11,42,33,0,11,0,11,0,11,16,18,0,11,0,11,10,17,0,15,0,15,0,11,0,11,0,11,0,15,0,11,0,11,0,11,0,11,0,11,0,11]
[null,"No related children under 18 years",0,11,0,11,7,11,0,15,0,11,0,11,0,11,48,48,0,11,0,11,0,11,25,34,0,11,0,11,0,17,0,15,0,15,6,9,0,11,0,11,0,15,0,11,4,6,0,11,0,11,0,11,0,11]
[null,"Female householder, no husband present:",64,51,7,11,72,50,55,43,7,10,0,11,34,40,480,173,0,11,0,11,17,19,143,72,37,52,10,14,0,17,0,15,24,32,8,12,49,42,26,45,0,15,93,75,5,7,11,13,10,10,13,10,6,8]
[null,"With related children under 18 years:",52,47,7,11,72,50,55,43,7,10,0,11,34,40,435,177,0,11,0,11,17,19,127,72,37,52,10,14,0,17,0,15,24,32,8,12,49,42,26,45,0,15,64,63,5,7,8,13,4,7,13,10,6,8]
[null,"Under 5 years only",0,11,0,11,0,11,0,15,0,11,0,11,34,40,41,36,0,11,0,11,0,11,80,60,0,11,0,11,0,17,0,15,0,15,0,11,17,26,26,45,0,15,31,48,0,11,0,11,0,11,8,9,0,11]
[null,"Under 5 years and 5 to 17 years",8,12,0,11,39,42,9,14,0,11,0,11,0,11,62,51,0,11,0,11,0,11,0,15,37,52,0,11,0,17,0,15,0,15,0,11,0,11,0,11,0,15,9,14,0,11,0,11,0,11,2,5,0,11]
[null,"5 to 17 years only",44,46,7,11,33,37,46,42,7,10,0,11,0,11,332,156,0,11,0,11,17,19,47,41,0,11,10,14,0,17,0,15,24,32,8,12,32,34,0,11,0,15,24,40,5,7,8,13,4,7,3,4,6,8]
[null,"No related children under 18 years",12,19,0,11,0,11,0,15,0,11,0,11,0,11,45,50,0,11,0,11,0,11,16,18,0,11,0,11,0,17,0,15,0,15,0,11,0,11,0,11,0,15,29,42,0,11,3,4,6,8,0,11,0,11]
[null,"Income in the past 12 months at or above poverty level:",975,101,699,96,816,121,2258,107,443,75,610,64,687,62,9059,406,361,57,796,50,1213,99,1716,146,1043,120,298,46,3564,182,1433,133,1437,116,601,77,953,111,1287,107,1870,147,832,99,355,54,557,86,704,65,538,56,416,56]
[null,"Married-couple family:",775,104,622,98,630,116,2033,120,404,74,520,57,648,57,6923,385,272,52,711,57,997,114,1286,138,878,114,263,46,3006,179,1351,132,1278,146,551,72,867,111,1009,132,1390,178,616,104,319,51,466,84,580,70,416,54,372,53]
[null,"With related children under 18 years:",320,70,208,59,277,83,865,77,118,30,172,52,244,49,2946,233,75,33,308,52,386,78,366,103,392,80,77,29,1197,160,530,84,385,103,152,40,212,61,388,98,618,116,250,77,113,33,160,52,215,45,117,36,140,38]
[null,"Under 5 years only",71,44,10,10,75,44,71,46,14,10,29,22,14,13,602,170,22,17,67,33,77,40,63,40,84,60,20,12,271,101,64,47,102,65,33,26,18,17,56,53,44,40,33,39,15,10,18,17,24,24,17,16,7,7]
[null,"Under 5 years and 5 to 17 years",41,29,48,36,58,39,106,57,16,10,25,17,30,20,447,106,18,17,39,22,33,39,88,64,94,52,0,11,94,50,46,41,7,13,0,11,26,28,38,31,123,71,26,23,5,6,31,24,27,19,22,14,20,12]
[null,"5 to 17 years only",208,64,150,46,144,75,688,84,88,29,118,44,200,45,1897,181,35,20,202,45,276,77,215,75,214,80,57,27,832,163,420,82,276,106,119,35,168,50,294,89,451,139,191,71,93,31,111,44,164,48,78,32,113,37]
[null,"No related children under 18 years",455,86,414,86,353,98,1168,134,286,65,348,50,404,49,3977,285,197,44,403,47,611,107,920,137,486,123,186,39,1809,181,821,135,893,175,399,60,655,113,621,103,772,153,366,79,206,46,306,74,365,78,299,46,232,48]
[null,"Other family:",200,62,77,33,186,104,225,85,39,21,90,34,39,26,2136,277,89,39,85,36,216,85,430,120,165,80,35,15,558,161,82,58,159,85,50,25,86,43,278,85,480,152,216,82,36,21,91,39,124,45,122,35,44,28]
[null,"Male householder, no wife present:",71,36,23,18,55,36,84,47,23,19,52,26,23,22,657,179,39,29,26,17,95,61,170,85,54,56,6,6,196,111,0,15,34,51,24,16,5,9,119,60,216,101,92,54,13,12,42,26,41,32,46,21,13,15]
[null,"With related children under 18 years:",40,28,0,11,24,23,17,25,8,8,27,22,23,22,340,116,30,27,22,16,62,52,112,83,21,25,3,4,104,94,0,15,0,15,24,16,0,11,75,53,107,87,35,37,3,4,38,24,18,22,19,11,0,11]
[null,"Under 5 years only",20,18,0,11,0,11,0,15,4,6,18,17,6,10,111,66,24,27,4,6,6,10,42,54,12,21,3,4,12,19,0,15,0,15,13,11,0,11,0,11,12,19,0,11,0,11,5,9,0,11,4,5,0,11]
[null,"Under 5 years and 5 to 17 years",0,11,0,11,0,11,0,15,0,11,4,7,17,19,22,25,3,5,0,11,11,24,10,15,0,11,0,11,63,88,0,15,0,15,0,11,0,11,0,11,0,15,0,11,0,11,0,11,0,11,0,11,0,11]
[null,"5 to 17 years only",20,20,0,11,24,23,17,25,4,6,5,8,0,11,207,84,3,4,18,17,45,44,60,67,9,15,0,11,29,34,0,15,0,15,11,11,0,11,75,53,95,85,35,37,3,4,33,23,18,22,15,10,0,11]
[null,"No related children under 18 years",31,26,23,18,31,26,67,41,15,17,25,18,0,11,317,121,9,8,4,6,33,41,58,49,33,52,3,4,92,69,0,15,34,51,0,11,5,9,44,31,109,60,57,42,10,12,4,5,23,23,27,17,13,15]
[null,"Female householder, no husband present:",129,54,54,30,131,95,141,69,16,11,38,21,16,14,1479,259,50,29,59,33,121,61,260,96,111,60,29,13,362,127,82,58,125,71,26,20,81,41,159,80,264,108,124,63,23,16,49,30,83,37,76,29,31,24]
[null,"With related children under 18 years:",67,38,19,21,87,78,42,40,12,9,15,14,11,11,814,200,35,24,38,24,55,41,120,76,62,46,4,5,186,99,33,35,91,56,9,10,21,22,120,73,175,94,106,57,16,16,20,22,55,33,43,23,11,17]
[null,"Under 5 years only",25,25,0,11,22,36,0,15,0,11,5,8,0,11,99,68,6,6,0,11,15,18,0,15,22,32,4,5,10,17,0,15,46,41,0,11,0,11,35,43,0,15,25,28,0,11,9,14,14,20,0,11,11,17]
[null,"Under 5 years and 5 to 17 years",0,11,5,8,0,11,0,15,0,11,0,11,0,11,95,56,0,11,8,9,4,9,13,21,17,27,0,11,22,33,0,15,0,15,3,5,0,11,10,15,0,15,27,38,0,11,0,11,0,11,3,5,0,11]
[null,"5 to 17 years only",42,29,14,20,65,69,42,40,12,9,10,11,11,11,620,169,29,23,30,23,36,32,107,73,23,25,0,11,154,91,33,35,45,45,6,9,21,22,75,51,175,94,54,47,16,16,11,17,41,27,40,23,0,11]
[null,"No related children under 18 years",62,46,35,20,44,43,99,53,4,6,23,15,5,9,665,126,15,16,21,20,66,45,140,73,49,43,25,13,176,75,49,44,34,41,17,16,60,37,39,29,89,54,18,18,7,7,29,21,28,18,33,16,20,14]
[]
[]
[]
[]
[]
[]
[]
[]
[]
[]
[]
[]
[null,"B17010. POVERTY STATUS IN THE PAST 12 MONTHS OF FAMILIES BY FAMILY TYPE BY PRESENCE OF RELATED CHILDREN UNDER 18 YEARS"]
[null,"Universe: FAMILIES"]
[null,"Data Set: 2008-2012 American Community Survey 5-Year Estimates"]
[]
[null,null,"Allenstown",null,"Andover",null,"Boscawen",null,"Bow",null,"Bradford",null,"Canterbury",null,"Chichester",null,"Concord",null,"Danbury",null,"Dunbarton",null,"Epsom",null,"Franklin",null,"Henniker",null,"Hill",null,"Hooksett",null,"Hopkinton",null,"Loudon",null,"Newbury",null,"New London",null,"Northfield",null,"Pembroke",null,"Pittsfield",null,"Salisbury",null,"Sutton",null,"Warner",null,"Webster",null,"Wilmot"]
[null,null,"Estimate","Margin Of Error","Estimate","Margin Of Error","Estimate","Margin Of Error","Estimate","Margin Of Error","Estimate","Margin Of Error","Estimate","Margin Of Error","Estimate","Margin Of Error","Estimate","Margin Of Error","Estimate","Margin Of Error","Estimate","Margin Of Error","Estimate","Margin Of Error","Estimate","Margin Of Error","Estimate","Margin Of Error","Estimate","Margin Of Error","Estimate","Margin Of Error","Estimate","Margin Of Error","Estimate","Margin Of Error","Estimate","Margin Of Error","Estimate","Margin Of Error","Estimate","Margin Of Error","Estimate","Margin Of Error","Estimate","Margin Of Error","Estimate","Margin Of Error","Estimate","Margin Of Error","Estimate","Margin Of Error","Estimate","Margin Of Error","Estimate","Margin Of Error"]
[null,"Total:",1210,95,699,97,991,135,2239,97,470,63,745,61,753,42,10184,332,298,55,789,61,1238,96,2074,142,1150,117,312,52,3592,192,1805,127,1533,112,549,71,1021,119,1383,110,1983,155,1036,101,393,48,456,73,810,55,553,62,367,62]
[null,"Income in the past 12 months below poverty level:",44,38,20,26,92,65,37,36,12,8,6,11,36,31,670,173,35,26,45,28,18,21,248,102,0,85,15,20,47,43,38,62,55,40,51,36,75,62,158,97,129,109,114,68,6,6,0,85,0,85,21,25,21,21]
[null,"Married-couple family:",30,32,4,6,16,24,13,20,6,7,6,11,18,22,197,113,15,18,25,20,7,10,78,48,0,85,0,85,31,32,0,85,0,85,11,11,31,35,99,81,20,31,29,23,6,6,0,85,0,85,0,85,21,21]
[null,"With related children under 18 years:",15,23,0,85,16,24,0,85,0,85,6,11,0,85,44,44,15,18,14,16,0,85,52,41,0,85,0,85,22,27,0,85,0,85,3,5,21,32,81,80,0,85,15,17,0,85,0,85,0,85,0,85,0,85]
[null,"Under 5 years only",0,85,0,85,0,85,0,85,0,85,0,85,0,85,26,40,0,85,0,85,0,85,19,27,0,85,0,85,0,85,0,85,0,85,0,85,0,85,40,52,0,85,0,85,0,85,0,85,0,85,0,85,0,85]
[null,"Under 5 years and 5 to 17 years",15,23,0,85,0,85,0,85,0,85,6,11,0,85,9,15,0,85,0,85,0,85,24,27,0,85,0,85,22,27,0,85,0,85,0,85,21,32,41,66,0,85,15,17,0,85,0,85,0,85,0,85,0,85]
[null,"5 to 17 years only",0,85,0,85,16,24,0,85,0,85,0,85,0,85,9,14,15,18,14,16,0,85,9,14,0,85,0,85,0,85,0,85,0,85,3,5,0,85,0,85,0,85,0,85,0,85,0,85,0,85,0,85,0,85]
[null,"No related children under 18 years",15,24,4,6,0,85,13,20,6,7,0,85,18,22,153,104,0,85,11,12,7,10,26,25,0,85,0,85,9,15,0,85,0,85,8,11,10,15,18,20,20,31,14,16,6,6,0,85,0,85,0,85,21,21]
[null,"Other family:",14,21,16,24,76,57,24,30,6,6,0,85,18,22,473,123,20,19,20,19,11,18,170,92,0,85,15,20,16,27,38,62,55,40,40,34,44,50,59,58,109,105,85,66,0,85,0,85,0,85,21,25,0,85]
[null,"Male householder, no wife present:",0,85,0,85,42,52,0,85,0,85,0,85,12,20,80,72,0,85,4,6,0,85,0,85,0,85,2,3,0,85,0,85,25,25,0,85,0,85,32,51,0,85,0,85,0,85,0,85,0,85,10,18,0,85]
[null,"With related children under 18 years:",0,85,0,85,42,52,0,85,0,85,0,85,12,20,80,72,0,85,4,6,0,85,0,85,0,85,0,85,0,85,0,85,25,25,0,85,0,85,32,51,0,85,0,85,0,85,0,85,0,85,0,85,0,85]
[null,"Under 5 years only",0,85,0,85,0,85,0,85,0,85,0,85,0,85,35,51,0,85,0,85,0,85,0,85,0,85,0,85,0,85,0,85,0,85,0,85,0,85,0,85,0,85,0,85,0,85,0,85,0,85,0,85,0,85]
[null,"Under 5 years and 5 to 17 years",0,85,0,85,0,85,0,85,0,85,0,85,0,85,0,85,0,85,0,85,0,85,0,85,0,85,0,85,0,85,0,85,0,85,0,85,0,85,0,85,0,85,0,85,0,85,0,85,0,85,0,85,0,85]
[null,"5 to 17 years only",0,85,0,85,42,52,0,85,0,85,0,85,12,20,45,48,0,85,4,6,0,85,0,85,0,85,0,85,0,85,0,85,25,25,0,85,0,85,32,51,0,85,0,85,0,85,0,85,0,85,0,85,0,85]
[null,"No related children under 18 years",0,85,0,85,0,85,0,85,0,85,0,85,0,85,0,85,0,85,0,85,0,85,0,85,0,85,2,3,0,85,0,85,0,85,0,85,0,85,0,85,0,85,0,85,0,85,0,85,0,85,10,18,0,85]
[null,"Female householder, no husband present:",14,21,16,24,34,36,24,30,6,6,0,85,6,9,393,116,20,19,16,18,11,18,170,92,0,85,13,20,16,27,38,62,30,36,40,34,44,50,27,25,109,105,85,66,0,85,0,85,0,85,11,18,0,85]
[null,"With related children under 18 years:",14,21,16,24,34,36,24,30,3,5,0,85,6,9,356,110,20,19,16,18,11,18,164,92,0,85,13,20,16,27,38,62,30,36,40,34,44,50,18,21,109,105,85,66,0,85,0,85,0,85,11,18,0,85]
[null,"Under 5 years only",0,85,0,85,0,85,0,85,0,85,0,85,0,85,81,64,0,85,5,7,0,85,0,85,0,85,0,85,0,85,38,62,0,85,11,14,15,25,9,15,88,99,0,85,0,85,0,85,0,85,0,85,0,85]
[null,"Under 5 years and 5 to 17 years",14,21,0,85,0,85,0,85,0,85,0,85,0,85,81,63,0,85,0,85,0,85,29,34,0,85,0,85,16,27,0,85,0,85,0,85,0,85,0,85,0,85,85,66,0,85,0,85,0,85,0,85,0,85]
[null,"5 to 17 years only",0,85,16,24,34,36,24,30,3,5,0,85,6,9,194,86,20,19,11,16,11,18,135,86,0,85,13,20,0,85,0,85,30,36,29,30,29,44,9,15,21,32,0,85,0,85,0,85,0,85,11,18,0,85]
[null,"No related children under 18 years",0,85,0,85,0,85,0,85,3,4,0,85,0,85,37,36,0,85,0,85,0,85,6,11,0,85,0,85,0,85,0,85,0,85,0,85,0,85,9,15,0,85,0,85,0,85,0,85,0,85,0,85,0,85]
[null,"Income in the past 12 months at or above poverty level:",1166,103,679,94,899,152,2202,102,458,63,739,61,717,52,9514,343,263,54,744,59,1220,103,1826,172,1150,117,297,50,3545,204,1767,140,1478,115,498,69,946,132,1225,139,1854,159,922,113,387,49,456,73,810,55,532,61,346,60]
[null,"Married-couple family:",827,118,640,94,691,149,1904,137,437,61,607,66,632,60,7344,327,222,50,727,60,1086,102,1381,170,902,131,251,41,3131,205,1661,158,1136,125,438,65,891,132,966,149,1459,159,809,107,306,44,415,71,690,71,478,61,300,54]
[null,"With related children under 18 years:",299,77,193,48,233,92,952,103,157,43,180,45,280,47,3004,252,71,30,300,41,426,87,635,122,407,122,119,40,1413,139,470,99,400,77,145,41,212,50,332,78,551,127,260,86,113,30,173,49,299,54,180,51,167,48]
[null,"Under 5 years only",21,25,59,25,96,64,139,54,32,16,25,23,44,30,831,176,4,8,44,27,72,60,197,103,112,69,13,12,375,121,78,47,30,37,17,14,13,20,58,45,156,69,45,41,13,12,44,30,97,44,27,18,29,21]
[null,"Under 5 years and 5 to 17 years",68,61,23,19,36,40,89,42,17,11,19,19,30,21,495,138,4,6,42,27,77,43,85,56,37,54,20,17,251,110,46,37,85,53,24,29,55,30,130,66,45,41,88,55,18,12,32,18,55,25,33,21,5,8]
[null,"5 to 17 years only",210,85,111,37,101,55,724,102,108,38,136,44,206,56,1678,214,63,28,214,45,277,93,353,100,258,106,86,35,787,153,346,89,285,78,104,33,144,62,144,63,350,104,127,63,82,29,97,35,147,50,120,38,133,45]
[null,"No related children under 18 years",528,113,447,96,458,128,952,126,280,58,427,60,352,74,4340,309,151,40,427,61,660,108,746,134,495,122,132,31,1718,176,1191,186,736,97,293,51,679,133,634,132,908,150,549,90,193,42,242,62,391,68,298,46,133,36]
[null,"Other family:",339,100,39,30,208,93,298,103,21,15,132,52,85,35,2170,288,41,23,17,18,134,64,445,126,248,115,46,23,414,135,106,73,342,122,60,35,55,34,259,103,395,160,113,59,81,31,41,28,120,54,54,23,46,30]
[null,"Male householder, no wife present:",90,67,6,9,26,34,58,49,11,13,61,35,30,18,533,171,25,17,0,85,64,44,140,86,62,66,29,20,129,84,49,52,153,99,18,18,12,17,94,62,128,83,57,50,12,11,18,13,19,21,25,17,4,5]
[null,"With related children under 18 years:",57,62,6,9,20,31,23,25,0,85,30,23,8,12,293,135,17,14,0,85,64,44,46,56,58,61,22,16,62,59,0,85,95,74,18,18,9,16,75,60,95,74,10,16,12,11,15,12,10,17,16,16,4,5]
[null,"Under 5 years only",57,62,0,85,0,85,0,85,0,85,15,16,8,12,26,33,5,7,0,85,0,85,0,85,0,85,9,9,0,85,0,85,7,11,11,16,0,85,12,18,53,60,0,85,5,7,11,10,0,85,9,14,0,85]
[null,"Under 5 years and 5 to 17 years",0,85,0,85,0,85,0,85,0,85,7,12,0,85,0,85,0,85,0,85,21,32,35,54,0,85,8,14,0,85,0,85,3,6,0,85,0,85,0,85,0,85,10,16,0,85,0,85,0,85,0,85,0,85]
[null,"5 to 17 years only",0,85,6,9,20,31,23,25,0,85,8,12,0,85,267,133,12,12,0,85,43,36,11,18,58,61,5,6,62,59,0,85,85,72,7,8,9,16,63,57,42,42,0,85,7,8,4,6,10,17,7,7,4,5]
[null,"No related children under 18 years",33,31,0,85,6,11,35,39,11,13,31,28,22,19,240,116,8,9,0,85,0,85,94,73,4,12,7,9,67,62,49,52,58,67,0,85,3,5,19,22,33,36,47,47,0,85,3,4,9,13,9,8,0,85]
[null,"Female householder, no husband present:",249,84,33,29,182,87,240,91,10,8,71,44,55,28,1637,244,16,16,17,18,70,43,305,96,186,97,17,13,285,117,57,47,189,86,42,31,43,30,165,89,267,143,56,38,69,29,23,24,101,45,29,16,42,29]
[null,"With related children under 18 years:",206,85,27,27,92,61,176,92,3,5,42,40,51,28,1036,199,0,85,10,15,35,35,196,82,160,95,14,12,145,86,37,36,59,36,28,27,7,11,89,70,223,136,35,37,17,10,23,24,55,36,15,13,28,24]
[null,"Under 5 years only",18,22,0,85,14,22,0,85,0,85,21,34,0,85,91,66,0,85,0,85,0,85,29,44,50,66,0,85,0,85,0,85,9,13,0,85,7,11,0,85,0,85,12,22,3,5,0,85,0,85,4,6,0,85]
[null,"Under 5 years and 5 to 17 years",10,17,16,26,0,85,54,67,3,5,14,18,9,13,67,81,0,85,0,85,7,12,21,22,38,52,0,85,12,19,0,85,11,17,8,11,0,85,0,85,41,68,9,13,0,85,0,85,0,85,6,7,3,4]
[null,"5 to 17 years only",178,84,11,9,78,58,122,54,0,85,7,10,42,25,878,180,0,85,10,15,28,32,146,71,72,62,14,12,133,81,37,36,39,34,20,21,0,85,89,70,182,126,14,23,14,9,23,24,55,36,5,6,25,23]
[null,"No related children under 18 years",43,39,6,7,90,66,64,45,7,7,29,18,4,7,601,167,16,16,7,11,35,27,109,63,26,24,3,4,140,88,20,31,130,84,14,13,36,31,76,46,44,47,21,18,52,29,0,85,46,33,14,11,14,18]

{"sheet":"ACS_Table_B17017","index":52,"n_rows":213,"n_cols":56,"rows_kept":213,"cut":false,"hidden":true,"merged":[]}
[null,"B17017. POVERTY STATUS IN THE PAST 12 MONTHS BY HOUSEHOLD TYPE BY AGE OF HOUSEHOLDER"]
[null,"Universe: HOUSEHOLDS"]
[null,"Data Set: 2018-2022 American Community Survey 5-Year Estimates"]
[]
[null,null,"Allenstown",null,"Andover",null,"Boscawen",null,"Bow",null,"Bradford",null,"Canterbury",null,"Chichester",null,"Concord",null,"Danbury",null,"Dunbarton",null,"Epsom",null,"Franklin",null,"Henniker",null,"Hill",null,"Hooksett",null,"Hopkinton",null,"Loudon",null,"Newbury",null,"New London",null,"Northfield",null,"Pembroke",null,"Pittsfield",null,"Salisbury",null,"Sutton",null,"Warner",null,"Webster",null,"Wilmot"]
[null,null,"Estimate","Margin Of Error","Estimate","Margin Of Error","Estimate","Margin Of Error","Estimate","Margin Of Error","Estimate","Margin Of Error","Estimate","Margin Of Error","Estimate","Margin Of Error","Estimate","Margin Of Error","Estimate","Margin Of Error","Estimate","Margin Of Error","Estimate","Margin Of Error","Estimate","Margin Of Error","Estimate","Margin Of Error","Estimate","Margin Of Error","Estimate","Margin Of Error","Estimate","Margin Of Error","Estimate","Margin Of Error","Estimate","Margin Of Error","Estimate","Margin Of Error","Estimate","Margin Of Error","Estimate","Margin Of Error","Estimate","Margin Of Error","Estimate","Margin Of Error","Estimate","Margin Of Error","Estimate","Margin Of Error","Estimate","Margin Of Error","Estimate","Margin Of Error"]
[null,"Total:",1812,193,878,119,1380,140,2895,133,632,73,920,96,1011,63,17955,443,672,112,1061,89,1844,139,3717,321,2397,206,318,54,5110,285,2168,194,2276,183,747,99,1636,129,1906,134,2627,196,1801,141,623,122,846,149,1200,89,795,103,624,90]
[null,"Income in the past 12 months below poverty level:",167,119,45,27,142,79,92,46,31,19,44,30,57,31,1632,259,80,34,53,47,90,58,345,126,315,173,17,16,217,104,12,21,255,152,34,24,88,56,129,93,205,121,121,103,66,83,38,24,88,39,54,43,16,17]
[null,"Family households:",80,72,23,16,16,18,41,30,16,16,11,15,22,28,665,219,36,22,5,8,17,20,33,34,51,49,3,4,68,52,0,17,147,134,12,18,0,12,99,95,72,63,24,26,11,8,8,13,36,24,44,41,3,5]
[null,"Married-couple family:",42,48,13,11,8,14,18,17,16,16,0,12,4,6,193,119,9,9,5,8,17,20,0,17,0,17,3,4,21,34,0,17,0,17,12,18,0,12,49,64,0,17,8,14,11,8,0,12,21,19,44,41,3,5]
[null,"Householder under 25 years",0,12,0,12,0,12,0,17,0,12,0,12,0,12,14,28,0,12,0,12,0,12,0,17,0,17,0,12,0,19,0,17,0,17,0,12,0,12,0,12,0,17,0,12,0,12,0,12,7,10,0,12,0,12]
[null,"Householder 25 to 44 years",31,45,0,12,8,14,0,17,0,12,0,12,0,12,124,84,0,12,0,12,0,12,0,17,0,17,0,12,0,19,0,17,0,17,0,12,0,12,0,12,0,17,0,12,4,7,0,12,0,12,0,12,0,12]
[null,"Householder 45 to 64 years",11,18,4,6,0,12,12,19,9,12,0,12,0,12,43,56,3,5,5,8,9,15,0,17,0,17,0,12,0,19,0,17,0,17,0,12,0,12,39,62,0,17,8,14,4,5,0,12,10,14,42,42,0,12]
[null,"Householder 65 years and over",0,12,9,10,0,12,6,10,7,11,0,12,4,6,12,15,6,8,0,12,8,14,0,17,0,17,3,4,21,34,0,17,0,17,12,18,0,12,10,15,0,17,0,12,3,4,0,12,4,6,2,3,3,5]
[null,"Other family:",38,49,10,12,8,12,23,24,0,12,11,15,18,27,472,210,27,21,0,12,0,12,33,34,51,49,0,12,47,44,0,17,147,134,0,12,0,12,50,43,72,63,16,24,0,12,8,13,15,16,0,12,0,12]
[null,"Male householder, no spouse present:",0,12,0,12,8,12,0,17,0,12,11,15,18,27,84,73,11,14,0,12,0,12,14,17,0,17,0,12,7,13,0,17,129,130,0,12,0,12,36,48,0,17,16,24,0,12,0,12,0,12,0,12,0,12]
[null,"Householder under 25 years",0,12,0,12,0,12,0,17,0,12,0,12,0,12,7,10,0,12,0,12,0,12,8,13,0,17,0,12,0,19,0,17,0,17,0,12,0,12,0,12,0,17,16,24,0,12,0,12,0,12,0,12,0,12]
[null,"Householder 25 to 44 years",0,12,0,12,0,12,0,17,0,12,11,15,18,27,36,39,11,14,0,12,0,12,6,12,0,17,0,12,0,19,0,17,0,17,0,12,0,12,0,12,0,17,0,12,0,12,0,12,0,12,0,12,0,12]
[null,"Householder 45 to 64 years",0,12,0,12,0,12,0,17,0,12,0,12,0,12,0,25,0,12,0,12,0,12,0,17,0,17,0,12,7,13,0,17,90,107,0,12,0,12,30,46,0,17,0,12,0,12,0,12,0,12,0,12,0,12]
[null,"Householder 65 years and over",0,12,0,12,8,12,0,17,0,12,0,12,0,12,41,63,0,12,0,12,0,12,0,17,0,17,0,12,0,19,0,17,39,64,0,12,0,12,6,9,0,17,0,12,0,12,0,12,0,12,0,12,0,12]
[null,"Female householder, no husband present:",38,49,10,12,0,12,23,24,0,12,0,12,0,12,388,192,16,16,0,12,0,12,19,28,51,49,0,12,40,40,0,17,18,31,0,12,0,12,14,20,72,63,0,12,0,12,8,13,15,16,0,12,0,12]
[null,"Householder under 25 years",0,12,0,12,0,12,0,17,0,12,0,12,0,12,176,172,0,12,0,12,0,12,0,17,0,17,0,12,0,19,0,17,0,17,0,12,0,12,0,12,0,17,0,12,0,12,8,13,0,12,0,12,0,12]
[null,"Householder 25 to 44 years",38,49,10,12,0,12,9,15,0,12,0,12,0,12,180,96,16,16,0,12,0,12,19,28,41,43,0,12,17,27,0,17,0,17,0,12,0,12,0,12,72,63,0,12,0,12,0,12,5,7,0,12,0,12]
[null,"Householder 45 to 64 years",0,12,0,12,0,12,14,14,0,12,0,12,0,12,25,27,0,12,0,12,0,12,0,17,10,17,0,12,23,28,0,17,18,31,0,12,0,12,14,20,0,17,0,12,0,12,0,12,10,14,0,12,0,12]
[null,"Householder 65 years and over",0,12,0,12,0,12,0,17,0,12,0,12,0,12,7,12,0,12,0,12,0,12,0,17,0,17,0,12,0,19,0,17,0,17,0,12,0,12,0,12,0,17,0,12,0,12,0,12,0,12,0,12,0,12]
[null,"Nonfamily households:",87,91,22,20,126,76,51,36,15,11,33,26,35,25,967,190,44,26,48,46,73,55,312,116,264,161,14,15,149,90,12,21,108,106,22,16,88,56,30,27,133,104,97,99,55,82,30,26,52,31,10,13,13,17]
[null,"Male householder:",11,17,13,18,47,48,26,27,3,4,6,8,13,12,482,131,27,24,48,46,46,51,83,65,93,89,14,15,108,76,0,17,45,55,11,12,30,39,2,5,98,102,23,27,52,82,27,24,8,9,6,10,11,16]
[null,"Householder under 25 years",0,12,0,12,13,20,0,17,0,12,0,12,0,12,32,38,0,12,0,12,10,16,18,30,32,51,0,12,35,51,0,17,0,17,0,12,0,12,0,12,0,17,0,12,0,12,0,12,0,12,0,12,0,12]
[null,"Householder 25 to 44 years",0,12,0,12,0,12,0,17,0,12,6,8,0,12,205,98,15,23,9,14,0,12,0,17,0,17,0,12,0,19,0,17,0,17,5,9,0,12,0,12,60,89,12,20,0,12,16,21,0,12,0,12,0,12]
[null,"Householder 45 to 64 years",11,17,0,12,0,12,0,17,3,4,0,12,5,8,170,93,7,11,39,44,29,46,56,55,61,71,14,15,37,40,0,17,0,17,6,8,0,12,2,5,0,17,11,18,0,12,0,12,5,7,0,12,11,16]
[null,"Householder 65 years and over",0,12,13,18,34,44,26,27,0,12,0,12,8,8,75,53,5,8,0,12,7,11,9,14,0,17,0,12,36,41,0,17,45,55,0,12,30,39,0,12,38,54,0,12,52,82,11,12,3,6,6,10,0,12]
[null,"Female householder:",76,91,9,9,79,63,25,23,12,9,27,25,22,21,485,156,17,9,0,12,27,27,229,111,171,142,0,12,41,41,12,21,63,87,11,12,58,42,28,27,35,43,74,97,3,6,3,4,44,30,4,6,2,3]
[null,"Householder under 25 years",57,90,0,12,0,12,0,17,0,12,0,12,0,12,28,32,0,12,0,12,0,12,0,17,29,44,0,12,0,19,0,17,0,17,0,12,0,12,0,12,0,17,0,12,0,12,0,12,0,12,0,12,0,12]
[null,"Householder 25 to 44 years",0,12,0,12,15,24,0,17,0,12,0,12,4,7,150,59,0,12,0,12,0,12,27,34,28,47,0,12,15,23,0,17,0,17,0,12,0,12,0,12,0,17,0,12,0,12,0,12,6,10,0,12,0,12]
[null,"Householder 45 to 64 years",0,12,0,12,42,41,0,17,3,4,16,20,0,12,183,145,14,10,0,12,0,12,131,89,103,128,0,12,20,32,0,17,17,31,0,12,0,12,18,21,0,17,15,24,3,6,3,4,18,20,0,12,2,3]
[null,"Householder 65 years and over",19,21,9,9,22,24,25,23,9,8,11,12,18,21,124,84,3,4,0,12,27,27,71,60,11,17,0,12,6,11,12,21,46,79,11,12,58,42,10,16,35,43,59,93,0,12,0,12,20,20,4,6,0,12]
[null,"Income in the past 12 months at or above poverty level:",1645,182,833,120,1238,141,2803,135,601,75,876,94,954,63,16323,436,592,113,1008,80,1754,126,3372,271,2082,232,301,51,4893,273,2156,191,2021,237,713,100,1548,123,1777,143,2422,231,1680,145,557,102,808,153,1112,95,741,95,608,87]
[null,"Family households:",997,127,578,120,833,119,2378,105,421,58,678,85,762,76,10034,415,412,95,831,70,1315,110,2297,195,1283,227,195,40,3619,218,1655,158,1645,229,510,87,1054,99,1234,124,1786,195,1104,130,437,104,713,160,785,65,583,87,434,77]
[null,"Married-couple family:",733,124,496,113,703,124,2198,115,352,53,629,94,638,85,7662,445,372,94,805,75,1141,103,1873,228,1064,244,157,34,3059,242,1392,147,1546,254,449,86,966,107,925,142,1411,196,845,153,398,101,654,152,588,88,499,93,353,67]
[null,"Householder under 25 years",36,58,0,12,17,26,0,17,9,9,0,12,5,9,86,79,0,12,0,12,39,49,0,17,0,17,0,12,24,37,0,17,0,17,0,12,0,12,0,12,0,17,0,12,6,9,0,12,21,26,0,12,0,12]
[null,"Householder 25 to 44 years",214,70,164,55,227,89,724,134,69,29,169,56,164,53,2561,274,67,27,199,56,262,103,727,228,313,105,36,18,927,137,368,99,317,121,103,35,178,66,232,68,455,153,246,106,114,91,127,56,207,66,168,63,118,56]
[null,"Householder 45 to 64 years",369,100,174,49,270,95,1008,128,138,38,274,67,349,81,3081,298,147,53,378,58,586,102,750,153,340,103,79,24,1404,169,626,131,788,257,225,70,273,92,458,112,693,154,349,82,155,40,313,118,205,61,244,71,143,35]
[null,"Householder 65 years and over",114,70,158,90,189,86,466,92,136,31,186,56,120,39,1934,289,158,83,228,80,254,83,396,111,411,246,42,20,704,134,398,87,441,113,121,47,515,119,235,88,263,89,250,109,123,45,214,100,155,52,87,26,92,31]
[null,"Other family:",264,117,82,40,130,58,180,72,69,37,49,25,124,61,2372,357,40,20,26,21,174,77,424,125,219,98,38,21,560,149,263,147,99,83,61,31,88,52,309,124,375,185,259,102,39,24,59,30,197,64,84,41,81,36]
[null,"Male householder, no spouse present:",47,36,34,20,75,41,52,34,35,27,14,12,67,66,1075,224,23,16,17,17,59,40,187,93,104,70,10,8,220,101,79,59,0,17,20,25,37,29,137,81,205,138,126,79,7,7,31,23,94,45,43,33,28,19]
[null,"Householder under 25 years",0,12,0,12,0,12,0,17,0,12,0,12,0,12,56,64,0,12,0,12,0,12,0,17,24,40,0,12,0,19,0,17,0,17,15,24,0,12,0,12,0,17,0,12,0,12,10,16,0,12,0,12,0,12]
[null,"Householder 25 to 44 years",23,23,14,14,25,28,10,17,10,17,5,7,10,10,554,185,8,8,0,12,12,20,15,25,9,16,7,7,73,76,43,44,0,17,0,12,10,15,78,69,13,18,40,55,0,12,8,14,18,24,21,28,18,16]
[null,"Householder 45 to 64 years",24,27,10,12,32,23,33,31,22,21,9,11,51,63,371,135,12,14,17,17,40,36,121,81,60,53,0,12,135,64,25,37,0,17,0,12,12,19,39,39,167,128,72,50,5,6,4,5,61,40,18,16,7,8]
[null,"Householder 65 years and over",0,12,10,10,18,21,9,13,3,5,0,12,6,10,94,49,3,5,0,12,7,12,51,40,11,18,3,5,12,19,11,20,0,17,5,7,15,17,20,22,25,30,14,23,2,3,9,10,15,16,4,4,3,5]
[null,"Female householder, no husband present:",217,115,48,37,55,44,128,59,34,23,35,21,57,35,1297,267,17,13,9,14,115,68,237,105,115,75,28,18,340,129,184,130,99,83,41,22,51,43,172,100,170,109,133,82,32,24,28,19,103,52,41,22,53,30]
[null,"Householder under 25 years",0,12,18,29,13,19,0,17,0,12,0,12,0,12,57,49,0,12,0,12,18,27,0,17,0,17,0,12,0,19,0,17,0,17,0,12,0,12,0,12,0,17,0,12,0,12,5,7,0,12,0,12,0,12]
[null,"Householder 25 to 44 years",52,63,9,11,10,16,43,40,14,16,5,7,18,22,523,185,14,13,8,13,63,47,125,78,33,37,4,5,171,111,44,72,0,17,6,8,0,12,100,92,114,86,87,79,2,4,6,9,15,17,9,7,27,22]
[null,"Householder 45 to 64 years",165,100,13,14,0,12,53,40,15,16,15,14,11,13,638,164,3,5,0,12,34,44,91,77,61,57,20,16,106,63,58,65,83,72,19,21,15,21,47,33,56,62,35,44,30,23,12,13,59,38,26,20,3,5]
[null,"Householder 65 years and over",0,12,8,12,32,28,32,23,5,7,15,12,28,19,79,44,0,12,1,4,0,12,21,23,21,28,4,7,63,49,82,77,16,29,16,14,36,38,25,22,0,17,11,17,0,12,5,9,29,27,6,6,23,23]
[null,"Nonfamily households:",648,184,255,73,405,128,425,103,180,54,198,60,192,68,6289,446,180,57,177,60,439,134,1075,295,799,250,106,37,1274,259,501,170,376,152,203,59,494,131,543,128,636,181,576,156,120,48,95,36,327,82,158,51,174,61]
[null,"Male householder:",303,124,87,43,202,95,148,69,135,57,121,52,51,32,2886,300,126,45,127,52,232,92,439,145,473,181,63,31,447,133,356,153,186,119,94,33,149,70,250,93,437,163,287,105,47,32,46,24,108,45,61,31,74,26]
[null,"Householder under 25 years",17,28,0,12,0,12,0,17,25,26,0,12,0,12,155,85,5,7,0,12,28,46,0,17,97,89,0,12,22,33,38,66,0,17,0,12,0,12,11,18,86,75,21,34,0,12,0,12,0,12,11,15,4,5]
[null,"Householder 25 to 44 years",80,53,27,27,108,74,68,43,28,21,45,36,5,8,999,197,26,17,49,28,37,27,82,72,222,144,2,4,70,42,3,14,58,63,17,17,23,25,75,50,54,46,53,50,0,12,28,18,45,32,14,12,6,7]
[null,"Householder 45 to 64 years",72,43,33,19,43,33,27,32,21,12,37,30,24,26,924,191,75,36,60,42,105,66,200,95,38,41,13,11,184,92,264,138,108,90,60,28,33,33,76,54,199,120,132,94,13,14,5,8,26,18,17,15,39,25]
[null,"Householder 65 years and over",134,104,27,28,51,52,53,38,61,44,39,31,22,16,808,178,20,17,18,13,62,33,157,72,116,94,48,31,171,87,51,50,20,32,17,13,93,56,88,60,98,58,81,48,34,24,13,14,37,22,19,15,25,16]
[null,"Female householder:",345,123,168,62,203,84,277,76,45,24,77,35,141,61,3403,366,54,31,50,29,207,90,636,267,326,151,43,19,827,207,145,69,190,110,109,50,345,113,293,99,199,98,289,134,73,36,49,26,219,62,97,38,100,57]
[null,"Householder under 25 years",25,27,7,10,0,12,0,17,0,12,5,8,7,10,203,104,0,12,0,12,15,29,78,75,83,117,0,12,24,31,0,17,0,17,0,12,25,31,0,12,0,17,0,12,0,12,0,12,1,3,11,16,0,12]
[null,"Householder 25 to 44 years",79,62,8,7,25,37,22,31,14,11,0,12,7,10,638,195,8,12,0,12,49,50,56,39,62,55,10,9,159,82,1,14,0,17,0,12,0,12,39,42,60,50,37,36,3,5,9,12,21,23,0,12,0,12]
[null,"Householder 45 to 64 years",156,92,44,32,102,69,96,60,10,10,29,22,68,49,975,169,35,27,31,26,47,33,99,77,81,59,20,13,192,98,18,32,39,50,25,31,21,20,136,80,40,41,138,110,18,12,28,19,16,14,45,29,63,56]
[null,"Householder 65 years and over",85,47,109,55,76,48,159,54,21,18,43,24,59,31,1587,263,11,9,19,13,96,49,403,247,100,67,13,10,452,141,126,57,151,98,84,41,299,110,118,58,99,59,114,88,52,33,12,12,181,60,41,19,37,28]
[]
[]
[]
[]
[]
[]
[]
[]
[]
[null,"B17017. POVERTY STATUS IN THE PAST 12 MONTHS BY HOUSEHOLD TYPE BY AGE OF HOUSEHOLDER"]
[null,"Universe: HOUSEHOLDS"]
[null,"Data Set: 2013-2017 American Community Survey 5-Year Estimates"]
[]
[null,null,"Allenstown",null,"Andover",null,"Boscawen",null,"Bow",null,"Bradford",null,"Canterbury",null,"Chichester",null,"Concord",null,"Danbury",null,"Dunbarton",null,"Epsom",null,"Franklin",null,"Henniker",null,"Hill",null,"Hooksett",null,"Hopkinton",null,"Loudon",null,"Newbury",null,"New London",null,"Northfield",null,"Pembroke",null,"Pittsfield",null,"Salisbury",null,"Sutton",null,"Warner",null,"Webster",null,"Wilmot"]
[null,null,"Estimate","Margin Of Error","Estimate","Margin Of Error","Estimate","Margin Of Error","Estimate","Margin Of Error","Estimate","Margin Of Error","Estimate","Margin Of Error","Estimate","Margin Of Error","Estimate","Margin Of Error","Estimate","Margin Of Error","Estimate","Margin Of Error","Estimate","Margin Of Error","Estimate","Margin Of Error","Estimate","Margin Of Error","Estimate","Margin Of Error","Estimate","Margin Of Error","Estimate","Margin Of Error","Estimate","Margin Of Error","Estimate","Margin Of Error","Estimate","Margin Of Error","Estimate","Margin Of Error","Estimate","Margin Of Error","Estimate","Margin Of Error","Estimate","Margin Of Error","Estimate","Margin Of Error","Estimate","Margin Of Error","Estimate","Margin Of Error","Estimate","Margin Of Error"]
[null,"Total:",1690,118,1071,84,1241,126,2846,103,646,79,895,69,991,48,17011,407,568,64,1020,45,1751,119,3494,212,1690,144,400,46,5143,201,2057,114,2024,165,822,89,1678,160,1770,84,2608,145,1586,115,535,63,772,100,1048,93,781,56,652,64]
[null,"Income in the past 12 months below poverty level:",210,84,80,52,154,65,127,62,49,23,27,18,73,51,1940,297,15,12,29,22,46,33,567,143,208,93,22,21,301,148,89,63,103,60,28,19,144,66,73,61,172,124,261,113,14,10,38,25,78,42,48,23,63,34]
[null,"Family households:",121,63,17,16,79,50,86,49,12,12,0,11,39,42,766,197,3,5,19,21,30,25,291,96,37,52,10,14,62,37,46,42,43,39,18,16,77,60,41,50,55,72,143,94,9,9,21,20,24,15,16,11,17,13]
[null,"Married-couple family:",57,46,10,10,0,11,18,28,2,5,0,11,5,8,196,76,3,5,19,21,13,16,77,64,0,11,0,11,44,32,46,42,19,22,4,6,28,43,15,23,55,72,40,60,0,11,10,16,14,11,3,5,11,10]
[null,"Householder under 25 years",11,16,0,11,0,11,0,15,0,11,0,11,0,11,0,23,0,11,0,11,0,11,0,15,0,11,0,11,0,17,0,15,0,15,0,11,0,11,0,11,0,15,0,11,0,11,0,11,0,11,0,11,0,11]
[null,"Householder 25 to 44 years",0,11,4,6,0,11,18,28,0,11,0,11,0,11,81,49,0,11,14,20,5,9,67,61,0,11,0,11,0,17,29,33,0,15,0,11,0,11,15,23,0,15,0,11,0,11,10,16,4,6,0,11,8,9]
[null,"Householder 45 to 64 years",37,42,0,11,0,11,0,15,0,11,0,11,5,8,71,45,3,5,5,8,0,11,0,15,0,11,0,11,44,32,0,15,19,22,4,6,28,43,0,11,55,72,40,60,0,11,0,11,4,6,3,5,0,11]
[null,"Householder 65 years and over",9,14,6,8,0,11,0,15,2,5,0,11,0,11,44,34,0,11,0,11,8,12,10,14,0,11,0,11,0,17,17,27,0,15,0,11,0,11,0,11,0,15,0,11,0,11,0,11,6,8,0,11,3,4]
[null,"Other family:",64,51,7,11,79,50,68,43,10,11,0,11,34,40,570,188,0,11,0,11,17,19,214,94,37,52,10,14,18,21,0,15,24,32,14,15,49,42,26,45,0,15,103,75,9,9,11,13,10,10,13,10,6,8]
[null,"Male householder, no wife present:",0,11,0,11,7,11,13,19,3,6,0,11,0,11,90,56,0,11,0,11,0,11,71,60,0,11,0,11,18,21,0,15,0,15,6,9,0,11,0,11,0,15,10,15,4,6,0,11,0,11,0,11,0,11]
[null,"Householder under 25 years",0,11,0,11,0,11,0,15,0,11,0,11,0,11,13,24,0,11,0,11,0,11,30,47,0,11,0,11,0,17,0,15,0,15,0,11,0,11,0,11,0,15,10,15,0,11,0,11,0,11,0,11,0,11]
[null,"Householder 25 to 44 years",0,11,0,11,0,11,0,15,0,11,0,11,0,11,52,47,0,11,0,11,0,11,5,8,0,11,0,11,0,17,0,15,0,15,0,11,0,11,0,11,0,15,0,11,0,11,0,11,0,11,0,11,0,11]
[null,"Householder 45 to 64 years",0,11,0,11,7,11,13,19,3,6,0,11,0,11,21,27,0,11,0,11,0,11,28,32,0,11,0,11,18,21,0,15,0,15,6,9,0,11,0,11,0,15,0,11,4,6,0,11,0,11,0,11,0,11]
[null,"Householder 65 years and over",0,11,0,11,0,11,0,15,0,11,0,11,0,11,4,7,0,11,0,11,0,11,8,12,0,11,0,11,0,17,0,15,0,15,0,11,0,11,0,11,0,15,0,11,0,11,0,11,0,11,0,11,0,11]
[null,"Female householder, no husband present:",64,51,7,11,72,50,55,43,7,10,0,11,34,40,480,173,0,11,0,11,17,19,143,72,37,52,10,14,0,17,0,15,24,32,8,12,49,42,26,45,0,15,93,75,5,7,11,13,10,10,13,10,6,8]
[null,"Householder under 25 years",0,11,0,11,0,11,0,15,0,11,0,11,28,39,32,36,0,11,0,11,0,11,22,25,0,11,0,11,0,17,0,15,0,15,0,11,0,11,26,45,0,15,0,11,0,11,0,11,0,11,0,11,0,11]
[null,"Householder 25 to 44 years",43,45,7,11,54,45,34,30,7,10,0,11,6,8,381,162,0,11,0,11,0,11,84,67,37,52,0,11,0,17,0,15,17,31,8,12,17,26,0,11,0,15,64,63,0,11,8,13,0,11,10,10,6,8]
[null,"Householder 45 to 64 years",21,24,0,11,18,28,21,34,0,11,0,11,0,11,67,59,0,11,0,11,17,19,29,28,0,11,10,14,0,17,0,15,7,10,0,11,32,34,0,11,0,15,29,42,5,7,3,4,10,10,3,4,0,11]
[null,"Householder 65 years and over",0,11,0,11,0,11,0,15,0,11,0,11,0,11,0,23,0,11,0,11,0,11,8,13,0,11,0,11,0,17,0,15,0,15,0,11,0,11,0,11,0,15,0,11,0,11,0,11,0,11,0,11,0,11]
[null,"Nonfamily households:",89,56,63,50,75,41,41,40,37,18,27,18,34,29,1174,230,12,9,10,10,16,20,276,100,171,77,12,17,239,147,43,46,60,46,10,10,67,47,32,26,117,97,118,66,5,7,17,15,54,40,32,19,46,32]
[null,"Male householder:",13,19,21,25,23,22,17,26,4,8,10,10,17,26,375,115,6,7,10,10,0,11,67,44,71,51,12,17,109,105,24,37,26,30,5,7,33,39,0,11,67,87,31,26,0,11,17,15,38,32,17,17,4,5]
[null,"Householder under 25 years",0,11,0,11,6,11,17,26,0,11,0,11,0,11,56,51,0,11,0,11,0,11,21,25,22,34,0,11,60,94,0,15,0,15,0,11,33,39,0,11,0,15,10,15,0,11,0,11,17,27,0,11,0,11]
[null,"Householder 25 to 44 years",13,19,0,11,9,14,0,15,4,8,5,8,0,11,57,34,6,7,0,11,0,11,12,18,26,32,0,11,0,17,24,37,0,15,0,11,0,11,0,11,0,15,5,9,0,11,2,5,9,10,0,11,0,11]
[null,"Householder 45 to 64 years",0,11,0,11,0,11,0,15,0,11,0,11,17,26,215,85,0,11,10,10,0,11,24,26,23,26,9,14,41,42,0,15,26,30,5,7,0,11,0,11,67,87,9,15,0,11,10,15,12,18,10,16,0,11]
[null,"Householder 65 years and over",0,11,21,25,8,14,0,15,0,11,5,7,0,11,47,30,0,11,0,11,0,11,10,16,0,11,3,4,8,12,0,15,0,15,0,11,0,11,0,11,0,15,7,11,0,11,5,7,0,11,7,7,4,5]
[null,"Female householder:",76,53,42,41,52,34,24,22,33,17,17,14,17,15,799,213,6,6,0,11,16,20,209,94,100,60,0,11,130,83,19,29,34,33,5,7,34,26,32,26,50,47,87,58,5,7,0,11,16,26,15,17,42,32]
[null,"Householder under 25 years",25,29,20,33,0,11,0,15,0,11,0,11,0,11,96,56,0,11,0,11,0,11,9,15,79,58,0,11,25,28,0,15,0,15,0,11,12,18,0,11,0,15,31,51,0,11,0,11,0,11,0,11,12,18]
[null,"Householder 25 to 44 years",0,11,0,11,0,11,0,15,0,11,0,11,5,7,184,103,0,11,0,11,0,11,0,15,0,11,0,11,0,17,0,15,0,15,0,11,0,11,0,11,34,37,8,12,0,11,0,11,16,26,0,11,14,23]
[null,"Householder 45 to 64 years",43,38,5,7,29,26,0,15,21,12,17,14,0,11,323,163,3,4,0,11,8,14,167,86,0,11,0,11,33,44,19,29,21,24,0,11,8,11,25,23,16,26,42,29,5,7,0,11,0,11,2,5,6,6]
[null,"Householder 65 years and over",8,12,17,26,23,19,24,22,12,13,0,11,12,13,196,73,3,4,0,11,8,13,33,32,21,19,0,11,72,52,0,15,13,21,5,7,14,15,7,12,0,15,6,10,0,11,0,11,0,11,13,16,10,10]
[null,"Income in the past 12 months at or above poverty level:",1480,114,991,90,1087,136,2719,106,597,78,868,67,918,65,15071,482,553,65,991,55,1705,124,2927,241,1482,182,378,47,4842,267,1968,144,1921,163,794,90,1534,179,1697,101,2436,148,1325,140,521,65,734,98,970,91,733,56,589,61]
[null,"Family households:",975,101,699,96,816,121,2258,107,443,75,610,64,687,62,9059,406,361,57,796,50,1213,99,1716,146,1043,120,298,46,3564,182,1433,133,1437,116,601,77,953,111,1287,107,1870,147,832,99,355,54,557,86,704,65,538,56,416,56]
[null,"Married-couple family:",775,104,622,98,630,116,2033,120,404,74,520,57,648,57,6923,385,272,52,711,57,997,114,1286,138,878,114,263,46,3006,179,1351,132,1278,146,551,72,867,111,1009,132,1390,178,616,104,319,51,466,84,580,70,416,54,372,53]
[null,"Householder under 25 years",22,35,0,11,0,11,0,15,3,4,0,11,0,11,163,144,0,11,0,11,0,11,0,15,0,11,0,11,42,51,0,15,0,15,5,7,0,11,0,11,0,15,0,11,0,11,0,11,0,11,0,11,0,11]
[null,"Householder 25 to 44 years",234,52,208,67,127,63,411,73,77,33,112,44,139,44,2272,246,80,34,195,38,257,73,342,107,258,66,41,16,941,133,251,75,314,85,81,28,138,48,301,86,466,92,202,72,57,25,122,45,118,33,143,36,100,35]
[null,"Householder 45 to 64 years",388,79,273,63,362,74,1222,97,238,50,275,46,346,54,3228,222,159,42,399,42,517,90,658,131,437,97,148,34,1393,146,765,96,692,131,274,55,308,73,520,101,724,144,307,72,180,44,193,66,306,54,201,42,169,35]
[null,"Householder 65 years and over",131,45,141,50,141,51,400,70,86,34,133,33,163,33,1260,124,33,15,117,29,223,60,286,72,183,60,74,31,630,118,335,89,272,90,191,51,421,87,188,57,200,67,107,39,82,24,151,51,156,45,72,26,103,39]
[null,"Other family:",200,62,77,33,186,104,225,85,39,21,90,34,39,26,2136,277,89,39,85,36,216,85,430,120,165,80,35,15,558,161,82,58,159,85,50,25,86,43,278,85,480,152,216,82,36,21,91,39,124,45,122,35,44,28]
[null,"Male householder, no wife present:",71,36,23,18,55,36,84,47,23,19,52,26,23,22,657,179,39,29,26,17,95,61,170,85,54,56,6,6,196,111,0,15,34,51,24,16,5,9,119,60,216,101,92,54,13,12,42,26,41,32,46,21,13,15]
[null,"Householder under 25 years",0,11,0,11,0,11,0,15,0,11,7,10,0,11,66,59,0,11,0,11,0,11,0,15,0,11,0,11,0,17,0,15,0,15,0,11,0,11,0,11,0,15,0,11,5,7,0,11,0,11,10,16,7,11]
[null,"Householder 25 to 44 years",12,13,5,8,9,14,17,25,5,7,20,14,23,22,290,112,30,27,4,6,41,43,108,83,0,11,3,4,100,94,0,15,0,15,8,9,0,11,36,39,77,54,35,37,3,4,34,25,18,22,9,8,6,9]
[null,"Householder 45 to 64 years",25,23,13,13,39,30,48,34,14,17,19,17,0,11,244,82,9,7,18,17,45,49,41,48,54,56,3,4,96,71,0,15,34,51,16,13,0,11,83,49,93,81,24,27,5,7,4,6,14,21,21,15,0,11]
[null,"Householder 65 years and over",34,23,5,9,7,12,19,19,4,6,6,9,0,11,57,39,0,11,4,6,9,13,21,17,0,11,0,11,0,17,0,15,0,15,0,11,5,9,0,11,46,38,33,29,0,11,4,5,9,9,6,6,0,11]
[null,"Female householder, no husband present:",129,54,54,30,131,95,141,69,16,11,38,21,16,14,1479,259,50,29,59,33,121,61,260,96,111,60,29,13,362,127,82,58,125,71,26,20,81,41,159,80,264,108,124,63,23,16,49,30,83,37,76,29,31,24]
[null,"Householder under 25 years",10,16,0,11,0,11,0,15,0,11,0,11,0,11,49,33,0,11,0,11,0,11,38,56,0,11,0,11,0,17,0,15,0,15,0,11,0,11,11,17,0,15,0,11,0,11,0,11,0,11,0,11,0,11]
[null,"Householder 25 to 44 years",51,34,5,8,72,77,13,17,8,8,5,8,6,8,478,170,10,15,22,20,19,21,92,58,65,46,0,11,119,62,10,16,69,51,6,9,0,11,71,61,91,84,65,54,14,15,9,14,29,23,30,22,11,17]
[null,"Householder 45 to 64 years",34,27,39,27,59,45,115,64,4,5,24,17,5,8,714,150,38,23,29,23,84,57,85,43,46,42,17,10,184,98,57,45,22,29,8,8,37,32,58,47,127,66,34,31,9,7,17,18,39,25,21,12,10,11]
[null,"Householder 65 years and over",34,39,10,8,0,11,13,18,4,6,9,11,5,9,238,71,2,4,8,9,18,28,45,36,0,11,12,8,59,39,15,24,34,41,12,15,44,27,19,21,46,32,25,19,0,11,23,21,15,14,25,13,10,9]
[null,"Nonfamily households:",505,114,292,69,271,93,461,94,154,41,258,59,231,64,6012,369,192,46,195,47,492,122,1211,229,439,129,80,26,1278,216,535,140,484,162,193,60,581,169,410,114,566,152,493,113,166,50,177,53,266,67,195,42,173,49]
[null,"Male householder:",198,68,155,53,141,64,115,52,44,23,146,49,145,60,2831,291,111,32,121,38,254,98,601,177,239,83,35,18,490,141,255,109,260,129,112,47,216,98,276,105,266,112,332,102,67,31,88,34,163,60,106,37,60,29]
[null,"Householder under 25 years",0,11,0,11,0,11,0,15,7,7,5,7,0,11,118,67,0,11,5,7,0,11,0,15,47,56,0,11,0,17,30,33,0,15,0,11,0,11,0,11,0,15,31,40,0,11,0,11,11,11,0,11,0,11]
[null,"Householder 25 to 44 years",56,35,33,27,36,29,31,27,7,8,42,35,60,43,955,147,24,15,16,18,38,37,178,94,57,43,4,5,166,99,42,55,55,68,19,14,41,40,50,42,98,84,69,52,12,11,34,24,50,38,32,20,12,15]
[null,"Householder 45 to 64 years",135,56,79,40,67,45,40,29,0,11,78,33,59,32,1013,221,45,25,59,21,176,85,316,141,125,66,20,13,214,93,88,58,75,54,64,29,9,14,150,72,88,57,148,76,38,26,31,26,48,29,43,22,31,17]
[null,"Householder 65 years and over",7,12,43,33,38,38,44,35,30,21,21,16,26,18,745,148,42,23,41,30,40,28,107,52,10,18,11,9,110,55,95,63,130,93,29,30,166,85,76,58,80,59,84,54,17,11,23,19,54,36,31,22,17,15]
[null,"Female householder:",307,94,137,44,130,65,346,78,110,35,112,39,86,29,3181,301,81,35,74,31,238,76,610,160,200,88,45,19,788,182,280,116,224,87,81,42,365,114,134,51,300,111,161,58,99,42,89,40,103,35,89,27,113,36]
[null,"Householder under 25 years",0,11,0,11,0,11,0,15,4,6,0,11,0,11,78,53,0,11,0,11,0,11,16,25,0,11,0,11,27,42,7,11,0,15,0,11,0,11,0,11,0,15,0,11,13,21,0,11,5,8,0,11,0,11]
[null,"Householder 25 to 44 years",27,26,12,13,39,54,13,20,15,19,17,15,6,8,618,134,11,18,18,25,26,29,71,68,50,45,0,11,207,99,36,59,10,16,3,5,20,22,24,26,53,49,36,31,6,8,21,22,9,12,0,11,0,11]
[null,"Householder 45 to 64 years",113,46,49,23,31,27,74,47,30,15,39,21,33,21,967,180,46,23,26,19,117,57,299,114,70,49,25,15,233,98,94,69,147,73,36,35,31,33,81,39,130,72,92,50,41,25,38,25,58,27,31,14,52,29]
[null,"Householder 65 years and over",167,80,76,40,60,40,259,70,61,23,56,27,47,25,1518,199,24,19,30,17,95,52,224,102,80,52,20,11,321,113,143,72,67,49,42,22,314,98,29,23,117,63,33,24,39,27,30,23,31,20,58,25,61,32]
[]
[]
[]
[]
[]
[]
[]
[]
[]
[null,"B17017. POVERTY STATUS IN THE PAST 12 MONTHS BY HOUSEHOLD TYPE BY AGE OF HOUSEHOLDER"]
[null,"Universe: HOUSEHOLDS"]
[null,"Data Set: 2008-2012 American Community Survey 5-Year Estimates"]
[]
[null,null,"Allenstown",null,"Andover",null,"Boscawen",null,"Bow",null,"Bradford",null,"Canterbury",null,"Chichester",null,"Concord",null,"Danbury",null,"Dunbarton",null,"Epsom",null,"Franklin",null,"Henniker",null,"Hill",null,"Hooksett",null,"Hopkinton",null,"Loudon",null,"Newbury",null,"New London",null,"Northfield",null,"Pembroke",null,"Pittsfield",null,"Salisbury",null,"Sutton",null,"Warner",null,"Webster",null,"Wilmot"]
[null,null,"Estimate","Margin Of Error","Estimate","Margin Of Error","Estimate","Margin Of Error","Estimate","Margin Of Error","Estimate","Margin Of Error","Estimate","Margin Of Error","Estimate","Margin Of Error","Estimate","Margin Of Error","Estimate","Margin Of Error","Estimate","Margin Of Error","Estimate","Margin Of Error","Estimate","Margin Of Error","Estimate","Margin Of Error","Estimate","Margin Of Error","Estimate","Margin Of Error","Estimate","Margin Of Error","Estimate","Margin Of Error","Estimate","Margin Of Error","Estimate","Margin Of Error","Estimate","Margin Of Error","Estimate","Margin Of Error","Estimate","Margin Of Error","Estimate","Margin Of Error","Estimate","Margin Of Error","Estimate","Margin Of Error","Estimate","Margin Of Error","Estimate","Margin Of Error"]
[null,"Total:",1693,132,950,87,1392,199,2577,105,607,65,954,55,941,51,18007,432,461,66,1041,59,1626,106,3375,167,1689,158,445,57,4729,192,2373,132,1912,107,823,86,1672,166,1782,150,2980,168,1528,125,508,63,647,81,1069,68,724,75,540,65]
[null,"Income in the past 12 months below poverty level:",139,93,57,40,156,77,87,75,43,23,38,27,68,43,2035,273,78,36,71,37,18,21,477,130,94,71,29,24,139,83,77,82,72,44,76,39,254,117,210,105,272,140,154,77,19,15,29,24,52,40,37,27,42,28]
[null,"Family households:",44,38,20,26,92,65,37,36,12,8,6,11,36,31,670,173,35,26,45,28,18,21,248,102,0,85,15,20,47,43,38,62,55,40,51,36,75,62,158,97,129,109,114,68,6,6,0,85,0,85,21,25,21,21]
[null,"Married-couple family:",30,32,4,6,16,24,13,20,6,7,6,11,18,22,197,113,15,18,25,20,7,10,78,48,0,85,0,85,31,32,0,85,0,85,11,11,31,35,99,81,20,31,29,23,6,6,0,85,0,85,0,85,21,21]
[null,"Householder under 25 years",0,85,0,85,0,85,0,85,0,85,0,85,0,85,0,85,0,85,0,85,0,85,19,27,0,85,0,85,0,85,0,85,0,85,0,85,0,85,0,85,0,85,0,85,0,85,0,85,0,85,0,85,0,85]
[null,"Householder 25 to 44 years",15,23,0,85,0,85,0,85,0,85,6,11,0,85,57,56,6,9,10,15,7,10,33,31,0,85,0,85,10,18,0,85,0,85,0,85,21,32,40,52,0,85,0,85,0,85,0,85,0,85,0,85,0,85]
[null,"Householder 45 to 64 years",0,85,4,6,16,24,13,20,3,5,0,85,18,22,120,97,9,13,9,10,0,85,7,12,0,85,0,85,12,20,0,85,0,85,11,11,10,15,59,68,20,31,15,17,3,5,0,85,0,85,0,85,21,21]
[null,"Householder 65 years and over",15,24,0,85,0,85,0,85,3,5,0,85,0,85,20,23,0,85,6,9,0,85,19,22,0,85,0,85,9,15,0,85,0,85,0,85,0,85,0,85,0,85,14,15,3,4,0,85,0,85,0,85,0,85]
[null,"Other family:",14,21,16,24,76,57,24,30,6,6,0,85,18,22,473,123,20,19,20,19,11,18,170,92,0,85,15,20,16,27,38,62,55,40,40,34,44,50,59,58,109,105,85,66,0,85,0,85,0,85,21,25,0,85]
[null,"Male householder, no wife present:",0,85,0,85,42,52,0,85,0,85,0,85,12,20,80,72,0,85,4,6,0,85,0,85,0,85,2,3,0,85,0,85,25,25,0,85,0,85,32,51,0,85,0,85,0,85,0,85,0,85,10,18,0,85]
[null,"Householder under 25 years",0,85,0,85,0,85,0,85,0,85,0,85,0,85,0,85,0,85,0,85,0,85,0,85,0,85,0,85,0,85,0,85,0,85,0,85,0,85,0,85,0,85,0,85,0,85,0,85,0,85,0,85,0,85]
[null,"Householder 25 to 44 years",0,85,0,85,0,85,0,85,0,85,0,85,12,20,42,53,0,85,4,6,0,85,0,85,0,85,0,85,0,85,0,85,0,85,0,85,0,85,32,51,0,85,0,85,0,85,0,85,0,85,0,85,0,85]
[null,"Householder 45 to 64 years",0,85,0,85,42,52,0,85,0,85,0,85,0,85,38,46,0,85,0,85,0,85,0,85,0,85,2,3,0,85,0,85,25,25,0,85,0,85,0,85,0,85,0,85,0,85,0,85,0,85,10,18,0,85]
[null,"Householder 65 years and over",0,85,0,85,0,85,0,85,0,85,0,85,0,85,0,85,0,85,0,85,0,85,0,85,0,85,0,85,0,85,0,85,0,85,0,85,0,85,0,85,0,85,0,85,0,85,0,85,0,85,0,85,0,85]
[null,"Female householder, no husband present:",14,21,16,24,34,36,24,30,6,6,0,85,6,9,393,116,20,19,16,18,11,18,170,92,0,85,13,20,16,27,38,62,30,36,40,34,44,50,27,25,109,105,85,66,0,85,0,85,0,85,11,18,0,85]
[null,"Householder under 25 years",0,85,0,85,0,85,0,85,0,85,0,85,0,85,71,68,0,85,5,7,0,85,0,85,0,85,0,85,0,85,38,62,0,85,0,85,15,25,9,15,0,85,0,85,0,85,0,85,0,85,0,85,0,85]
[null,"Householder 25 to 44 years",14,21,0,85,20,24,12,19,0,85,0,85,0,85,267,86,13,15,11,16,11,18,164,92,0,85,12,19,16,27,0,85,21,32,40,34,29,44,18,21,109,105,85,66,0,85,0,85,0,85,11,18,0,85]
[null,"Householder 45 to 64 years",0,85,16,24,14,22,12,21,3,4,0,85,6,9,55,43,7,10,0,85,0,85,6,11,0,85,1,3,0,85,0,85,9,14,0,85,0,85,0,85,0,85,0,85,0,85,0,85,0,85,0,85,0,85]
[null,"Householder 65 years and over",0,85,0,85,0,85,0,85,3,5,0,85,0,85,0,85,0,85,0,85,0,85,0,85,0,85,0,85,0,85,0,85,0,85,0,85,0,85,0,85,0,85,0,85,0,85,0,85,0,85,0,85,0,85]
[null,"Nonfamily households:",95,84,37,30,64,48,50,67,31,21,32,25,32,31,1365,262,43,27,26,28,0,85,229,91,94,71,14,15,92,65,39,53,17,20,25,19,179,104,52,51,143,90,40,36,13,15,29,24,52,40,16,10,21,18]
[null,"Male householder:",24,29,16,25,34,37,0,85,17,17,10,14,23,29,643,198,39,26,9,13,0,85,88,64,8,13,10,14,8,13,23,36,17,20,13,13,29,45,30,46,68,85,0,85,10,14,15,18,37,36,6,5,6,6]
[null,"Householder under 25 years",0,85,0,85,0,85,0,85,0,85,0,85,0,85,62,51,0,85,0,85,0,85,10,15,0,85,0,85,0,85,0,85,8,13,0,85,0,85,0,85,0,85,0,85,0,85,0,85,0,85,0,85,0,85]
[null,"Householder 25 to 44 years",7,11,0,85,22,30,0,85,0,85,0,85,0,85,183,127,17,19,0,85,0,85,47,55,0,85,0,85,0,85,0,85,0,85,0,85,0,85,0,85,17,31,0,85,0,85,12,17,0,85,0,85,0,85]
[null,"Householder 45 to 64 years",17,27,16,25,12,19,0,85,8,7,10,14,17,27,331,143,13,17,9,13,0,85,31,27,0,85,10,14,8,13,23,36,9,15,7,10,0,85,30,46,51,79,0,85,10,14,3,5,17,18,3,5,3,4]
[null,"Householder 65 years and over",0,85,0,85,0,85,0,85,9,15,0,85,6,11,67,54,9,13,0,85,0,85,0,85,8,13,0,85,0,85,0,85,0,85,6,9,29,45,0,85,0,85,0,85,0,85,0,85,20,30,3,5,3,5]
[null,"Female householder:",71,81,21,16,30,30,50,67,14,16,22,20,9,10,722,172,4,6,17,25,0,85,141,69,86,69,4,6,84,63,16,25,0,85,12,13,150,94,22,23,75,65,40,36,3,4,14,16,15,16,10,8,15,17]
[null,"Householder under 25 years",0,85,4,6,0,85,0,85,0,85,0,85,0,85,134,85,0,85,17,25,0,85,0,85,12,19,0,85,0,85,0,85,0,85,0,85,0,85,0,85,0,85,6,9,0,85,0,85,0,85,0,85,0,85]
[null,"Householder 25 to 44 years",43,73,6,10,0,85,0,85,0,85,0,85,0,85,193,114,0,85,0,85,0,85,53,56,20,32,0,85,0,85,0,85,0,85,0,85,0,85,0,85,0,85,0,85,0,85,0,85,0,85,0,85,0,85]
[null,"Householder 45 to 64 years",11,18,0,85,12,20,14,22,14,16,14,15,5,8,126,67,4,6,0,85,0,85,43,26,36,43,4,6,59,57,0,85,0,85,6,10,38,51,10,15,58,56,34,35,0,85,14,16,15,16,4,6,0,85]
[null,"Householder 65 years and over",17,27,11,12,18,21,36,62,0,85,8,12,4,6,269,92,0,85,0,85,0,85,45,35,18,20,0,85,25,29,16,25,0,85,6,8,112,78,12,18,17,28,0,85,3,4,0,85,0,85,6,7,15,17]
[null,"Income in the past 12 months at or above poverty level:",1554,129,893,88,1236,199,2490,102,564,66,916,61,873,64,15972,498,383,63,970,74,1608,115,2898,188,1595,151,416,55,4590,218,2296,151,1840,105,747,88,1418,157,1572,199,2708,210,1374,146,489,63,618,76,1017,64,687,71,498,62]
[null,"Family households:",1166,103,679,94,899,152,2202,102,458,63,739,61,717,52,9514,343,263,54,744,59,1220,103,1826,172,1150,117,297,50,3545,204,1767,140,1478,115,498,69,946,132,1225,139,1854,159,922,113,387,49,456,73,810,55,532,61,346,60]
[null,"Married-couple family:",827,118,640,94,691,149,1904,137,437,61,607,66,632,60,7344,327,222,50,727,60,1086,102,1381,170,902,131,251,41,3131,205,1661,158,1136,125,438,65,891,132,966,149,1459,159,809,107,306,44,415,71,690,71,478,61,300,54]
[null,"Householder under 25 years",28,34,1,2,9,12,0,85,0,85,5,8,0,85,45,45,13,14,0,85,0,85,0,85,21,36,0,85,26,39,14,22,11,18,0,85,0,85,0,85,0,85,0,85,0,85,0,85,0,85,3,5,4,6]
[null,"Householder 25 to 44 years",233,93,168,43,286,99,473,94,136,44,176,54,191,45,2891,267,34,21,218,40,411,89,492,110,305,114,78,27,1260,152,349,98,289,75,112,44,110,40,293,84,491,135,365,77,81,27,134,53,273,51,159,44,105,36]
[null,"Householder 45 to 64 years",453,107,266,52,282,112,1104,117,255,55,297,52,367,81,3198,226,144,39,435,44,503,90,709,139,520,132,146,38,1300,141,719,139,618,72,195,42,293,77,568,139,726,109,386,70,168,38,167,47,273,67,263,46,151,41]
[null,"Householder 65 years and over",113,44,205,72,114,44,327,76,46,22,129,31,74,36,1210,157,31,15,74,26,172,45,180,47,56,34,27,16,545,88,579,138,218,66,131,38,488,112,105,52,242,64,58,36,57,20,114,44,144,35,53,22,40,20]
[null,"Other family:",339,100,39,30,208,93,298,103,21,15,132,52,85,35,2170,288,41,23,17,18,134,64,445,126,248,115,46,23,414,135,106,73,342,122,60,35,55,34,259,103,395,160,113,59,81,31,41,28,120,54,54,23,46,30]
[null,"Male householder, no wife present:",90,67,6,9,26,34,58,49,11,13,61,35,30,18,533,171,25,17,0,85,64,44,140,86,62,66,29,20,129,84,49,52,153,99,18,18,12,17,94,62,128,83,57,50,12,11,18,13,19,21,25,17,4,5]
[null,"Householder under 25 years",0,85,0,85,0,85,0,85,0,85,0,85,0,85,23,25,0,85,0,85,0,85,0,85,0,85,6,7,0,85,0,85,0,85,0,85,0,85,0,85,0,85,0,85,0,85,4,6,0,85,9,14,0,85]
[null,"Householder 25 to 44 years",80,65,0,85,6,11,32,36,3,5,13,14,0,85,280,133,14,12,0,85,64,44,44,55,29,43,18,18,34,30,0,85,106,90,3,5,0,85,45,33,76,58,47,47,9,9,0,85,0,85,0,85,0,85]
[null,"Householder 45 to 64 years",10,17,6,9,20,31,26,32,8,13,33,24,30,18,191,105,11,11,0,85,0,85,65,55,33,47,5,7,95,82,14,23,47,35,15,17,9,16,11,17,52,63,0,85,3,4,14,11,19,21,12,10,4,5]
[null,"Householder 65 years and over",0,85,0,85,0,85,0,85,0,85,15,23,0,85,39,35,0,85,0,85,0,85,31,47,0,85,0,85,0,85,35,38,0,85,0,85,3,5,38,52,0,85,10,15,0,85,0,85,0,85,4,5,0,85]
[null,"Female householder, no husband present:",249,84,33,29,182,87,240,91,10,8,71,44,55,28,1637,244,16,16,17,18,70,43,305,96,186,97,17,13,285,117,57,47,189,86,42,31,43,30,165,89,267,143,56,38,69,29,23,24,101,45,29,16,42,29]
[null,"Householder under 25 years",0,85,0,85,0,85,0,85,0,85,0,85,0,85,71,74,0,85,7,11,0,85,0,85,0,85,0,85,0,85,0,85,0,85,0,85,7,11,0,85,41,68,0,85,0,85,0,85,0,85,0,85,0,85]
[null,"Householder 25 to 44 years",160,80,21,27,95,65,9,15,3,5,19,20,33,23,671,159,7,9,0,85,52,40,97,56,129,88,14,12,58,42,11,17,8,14,10,15,0,85,70,65,169,124,35,37,7,7,11,17,39,28,7,8,16,17]
[null,"Householder 45 to 64 years",64,50,12,12,55,43,203,86,4,6,41,37,22,17,730,175,9,14,10,15,18,21,153,96,57,49,0,85,199,105,46,44,54,38,24,24,24,25,67,40,39,34,21,18,59,29,12,18,47,37,19,13,15,17]
[null,"Householder 65 years and over",25,29,0,85,32,31,28,30,3,4,11,13,0,85,165,75,0,85,0,85,0,85,55,30,0,85,3,4,28,31,0,85,127,83,8,10,12,20,28,31,18,28,0,85,3,4,0,85,15,15,3,5,11,15]
[null,"Nonfamily households:",388,135,214,67,337,134,288,89,106,35,177,50,156,50,6458,537,120,39,226,58,388,127,1072,195,445,117,119,37,1045,193,529,194,362,121,249,78,472,126,347,134,854,206,452,118,102,37,162,52,207,61,155,40,152,43]
[null,"Male householder:",212,91,106,50,141,77,131,65,49,26,60,32,102,42,2690,367,67,31,122,41,86,42,546,121,204,89,68,31,459,157,236,124,220,85,96,45,190,85,135,71,452,149,222,103,70,33,79,40,75,37,95,38,78,38]
[null,"Householder under 25 years",6,10,0,85,0,85,0,85,0,85,0,85,0,85,224,116,0,85,0,85,0,85,44,57,28,44,0,85,31,46,0,85,0,85,0,85,0,85,0,85,47,72,21,24,0,85,0,85,15,22,4,6,14,22]
[null,"Householder 25 to 44 years",81,57,7,10,48,47,9,14,6,8,5,9,37,33,963,221,31,26,14,16,19,25,159,78,74,61,4,7,142,90,57,47,85,59,16,14,45,40,29,26,232,111,85,71,6,8,21,18,5,7,66,36,19,21]
[null,"Householder 45 to 64 years",105,63,99,49,82,49,34,34,43,24,48,28,45,27,1032,250,24,18,101,36,48,31,224,78,78,61,52,30,226,110,144,105,114,56,68,38,45,51,56,47,125,74,68,60,58,33,49,33,48,27,19,14,33,22]
[null,"Householder 65 years and over",20,24,0,85,11,17,88,54,0,85,7,10,20,14,471,119,12,9,7,11,19,21,119,67,24,23,12,11,60,40,35,39,21,23,12,19,100,53,50,36,48,45,48,37,6,6,9,8,7,10,6,6,12,11]
[null,"Female householder:",176,84,108,47,196,96,157,62,57,24,117,41,54,27,3768,361,53,27,104,44,302,120,526,116,241,103,51,20,586,163,293,128,142,85,153,63,282,85,212,100,402,131,230,78,32,19,83,39,132,48,60,23,74,30]
[null,"Householder under 25 years",16,18,15,23,0,85,0,85,3,4,0,85,0,85,145,82,0,85,0,85,0,85,0,85,66,60,0,85,8,13,0,85,0,85,11,15,16,26,8,13,47,57,23,39,0,85,0,85,0,85,0,85,0,85]
[null,"Householder 25 to 44 years",12,16,5,8,0,85,0,85,6,7,42,26,0,85,918,201,24,21,0,85,5,8,83,60,38,41,0,85,68,54,31,38,21,23,0,85,36,41,47,33,62,47,14,22,2,5,22,22,16,16,17,17,12,14]
[null,"Householder 45 to 64 years",76,71,50,36,101,57,44,42,22,18,41,22,14,13,1372,191,18,15,74,34,136,63,222,81,65,44,25,19,265,124,159,109,86,73,65,49,45,32,46,39,181,84,81,40,9,9,47,32,68,41,22,14,26,24]
[null,"Householder 65 years and over",72,41,38,28,95,63,113,49,26,15,34,29,40,24,1333,193,11,11,30,23,161,98,221,66,72,53,26,13,245,96,103,68,35,27,77,40,185,71,111,80,112,67,112,54,21,17,14,11,48,24,21,14,36,17]

{"sheet":"ACS_Table_B03002","index":53,"n_rows":108,"n_cols":56,"rows_kept":108,"cut":false,"hidden":true,"merged":[]}
[null,"B03002. HISPANIC OR LATINO ORIGIN BY RACE"]
[null,"Universe:  TOTAL POPULATION"]
[null,"Data Set: 2018-2022 American Community Survey 5-Year Estimates"]
[]
[null,null,"Allenstown",null,"Andover",null,"Boscawen",null,"Bow",null,"Bradford",null,"Canterbury",null,"Chichester",null,"Concord",null,"Danbury",null,"Dunbarton",null,"Epsom",null,"Franklin",null,"Henniker",null,"Hill",null,"Hooksett",null,"Hopkinton",null,"Loudon",null,"Newbury",null,"New London",null,"Northfield",null,"Pembroke",null,"Pittsfield",null,"Salisbury",null,"Sutton",null,"Warner",null,"Webster",null,"Wilmot"]
[null,null,"Estimate","Margin Of Error","Estimate","Margin Of Error","Estimate","Margin Of Error","Estimate","Margin Of Error","Estimate","Margin Of Error","Estimate","Margin Of Error","Estimate","Margin Of Error","Estimate","Margin Of Error","Estimate","Margin Of Error","Estimate","Margin Of Error","Estimate","Margin Of Error","Estimate","Margin Of Error","Estimate","Margin Of Error","Estimate","Margin Of Error","Estimate","Margin Of Error","Estimate","Margin Of Error","Estimate","Margin Of Error","Estimate","Margin Of Error","Estimate","Margin Of Error","Estimate","Margin Of Error","Estimate","Margin Of Error","Estimate","Margin Of Error","Estimate","Margin Of Error","Estimate","Margin Of Error","Estimate","Margin Of Error","Estimate","Margin Of Error","Estimate","Margin Of Error"]
[null,"Total:",4697,20,2151,307,3992,38,8235,19,1565,172,2316,242,2691,27,44049,56,1491,261,3000,55,4846,26,8746,19,6094,15,839,182,14699,26,5925,20,5608,21,1911,255,4389,29,4892,24,7299,36,4093,17,1594,365,2254,451,2920,28,2120,317,1502,217]
[null,"Not Hispanic or Latino:",4515,182,2131,309,3961,49,8064,117,1560,172,2075,228,2650,44,42452,284,1469,256,2942,62,4790,80,8698,65,5793,155,829,182,14318,158,5878,77,5608,21,1891,261,4295,93,4807,75,7095,156,4093,17,1592,365,2222,447,2818,63,2081,315,1489,215]
[null,"White alone",3931,294,2041,331,3876,78,7759,218,1538,173,2035,227,2517,92,37732,554,1424,258,2886,72,4609,157,8090,356,5669,184,804,184,13044,412,5682,208,5443,178,1836,272,4108,140,4568,147,6962,189,4034,45,1539,362,2017,411,2651,105,2040,320,1408,218]
[null,"Black or African American alone",279,188,66,106,10,12,0,17,2,4,11,22,5,8,1451,358,0,12,10,19,0,12,69,61,26,28,0,12,252,229,21,31,0,17,0,12,34,23,32,40,28,41,9,3,0,12,0,12,22,22,0,12,0,12]
[null,"American Indian and Alaska Native alone",5,10,0,12,5,9,0,17,0,12,1,4,2,3,145,82,5,8,0,12,0,12,0,17,0,17,1,3,62,75,0,17,0,17,0,12,0,12,47,60,0,17,0,12,6,10,3,6,0,12,0,12,0,12]
[null,"Asian alone",83,104,7,12,7,10,111,88,0,12,11,18,58,49,1781,409,5,7,20,21,60,63,91,107,18,23,0,12,465,220,0,17,24,38,27,24,18,18,31,38,21,33,0,12,0,12,48,54,34,29,11,12,49,60]
[null,"Native Hawaiian and Other Pacific Islander alone",0,12,0,12,0,12,0,17,0,12,0,12,0,12,0,25,0,12,0,12,0,12,0,17,0,17,0,12,0,19,0,17,0,17,0,12,0,12,0,12,5,8,20,28,0,12,0,12,0,12,0,12,0,12]
[null,"Some other race alone",0,12,11,16,0,12,0,17,0,12,0,12,0,12,127,151,0,12,0,12,5,10,65,94,0,17,0,12,70,103,0,17,0,17,0,12,0,12,0,12,0,17,0,12,0,12,30,43,0,12,0,12,0,12]
[null,"Two or more races:",217,150,6,8,63,69,194,152,20,19,17,13,68,47,1216,250,35,23,26,27,116,114,383,261,80,63,24,22,425,181,175,200,141,144,28,36,135,109,129,119,79,69,30,31,47,32,124,123,111,67,30,21,32,29]
[null,"Two races including Some other race",25,44,0,12,10,17,145,141,18,18,6,8,16,23,190,124,0,12,0,12,75,115,42,40,0,17,9,12,88,103,0,17,0,17,0,12,73,77,105,118,0,17,0,12,37,30,0,12,52,44,0,12,30,28]
[null,"Two races excluding Some other race, and three or more races",192,143,6,8,53,67,49,44,2,4,11,10,52,42,1026,217,35,23,26,27,41,37,341,257,80,63,15,18,337,165,175,200,141,144,28,36,62,67,24,23,79,69,30,31,10,14,124,123,59,56,30,21,2,6]
[null,"Hispanic or Latino:",182,180,20,23,31,30,171,113,5,8,241,152,41,37,1597,280,22,18,58,37,56,77,48,60,301,154,10,13,381,154,47,75,0,17,20,32,94,87,85,69,204,151,0,12,2,5,32,35,102,58,39,27,13,13]
[null,"White alone",0,12,20,23,8,14,81,99,0,12,79,70,6,10,591,222,14,14,37,33,52,80,48,60,191,141,10,13,146,87,14,22,0,17,0,12,2,4,61,57,87,91,0,12,2,5,0,12,70,52,12,12,13,13]
[null,"Black or African American alone",0,12,0,12,3,8,0,17,0,12,0,12,0,12,50,57,8,11,0,12,0,12,0,17,9,12,0,12,20,27,0,17,0,17,20,32,9,16,0,12,0,17,0,12,0,12,0,12,5,12,0,12,0,12]
[null,"American Indian and Alaska Native alone",0,12,0,12,0,12,0,17,0,12,0,12,0,12,101,128,0,12,0,12,0,12,0,17,0,17,0,12,0,19,0,17,0,17,0,12,0,12,24,38,0,17,0,12,0,12,0,12,0,12,0,12,0,12]
[null,"Asian alone",0,12,0,12,0,12,0,17,0,12,0,12,0,12,0,25,0,12,0,12,0,12,0,17,0,17,0,12,0,19,0,17,0,17,0,12,0,12,0,12,0,17,0,12,0,12,0,12,0,12,6,9,0,12]
[null,"Native Hawaiian and Other Pacific Islander alone",0,12,0,12,0,12,0,17,0,12,0,12,0,12,0,25,0,12,0,12,0,12,0,17,0,17,0,12,0,19,0,17,0,17,0,12,0,12,0,12,0,17,0,12,0,12,0,12,0,12,6,10,0,12]
[null,"Some other race alone",0,12,0,12,0,12,37,40,5,8,0,12,0,12,349,185,0,12,0,12,4,24,0,17,21,40,0,12,75,84,0,17,0,17,0,12,0,12,0,12,0,17,0,12,0,12,0,12,0,12,0,12,0,12]
[null,"Two or more races:",182,180,0,12,20,27,53,46,0,12,162,142,35,38,506,181,0,12,21,20,0,12,0,17,80,62,0,12,140,80,33,72,0,17,0,12,83,84,0,12,117,112,0,12,0,12,32,35,27,27,15,17,0,12]
[null,"Two races including Some other race",155,179,0,12,16,26,53,46,0,12,162,142,32,38,385,162,0,12,21,20,0,12,0,17,46,55,0,12,140,80,29,49,0,17,0,12,80,84,0,12,117,112,0,12,0,12,32,35,27,27,5,7,0,12]
[null,"Two races excluding Some other race, and three or more races",27,44,0,12,4,8,0,17,0,12,0,12,3,6,121,94,0,12,0,12,0,12,0,17,34,49,0,12,0,19,4,57,0,17,0,12,3,7,0,12,0,17,0,12,0,12,0,12,0,12,10,12,0,12]
[]
["Calculated B03002. HISPANIC OR LATINO ORIGIN BY RACE"]
[]
[null,null,"Allenstown",null,"Andover",null,"Boscawen",null,"Bow",null,"Bradford",null,"Canterbury",null,"Chichester",null,"Concord",null,"Danbury",null,"Dunbarton",null,"Epsom",null,"Franklin",null,"Henniker",null,"Hill",null,"Hooksett",null,"Hopkinton",null,"Loudon",null,"Newbury",null,"New London",null,"Northfield",null,"Pembroke",null,"Pittsfield",null,"Salisbury",null,"Sutton",null,"Warner",null,"Webster",null,"Wilmot"]
[null,null,"Estimate","Margin Of Error","Estimate","Margin Of Error","Estimate","Margin Of Error","Estimate","Margin Of Error","Estimate","Margin Of Error","Estimate","Margin Of Error","Estimate","Margin Of Error","Estimate","Margin Of Error","Estimate","Margin Of Error","Estimate","Margin Of Error","Estimate","Margin Of Error","Estimate","Margin Of Error","Estimate","Margin Of Error","Estimate","Margin Of Error","Estimate","Margin Of Error","Estimate","Margin Of Error","Estimate","Margin Of Error","Estimate","Margin Of Error","Estimate","Margin Of Error","Estimate","Margin Of Error","Estimate","Margin Of Error","Estimate","Margin Of Error","Estimate","Margin Of Error","Estimate","Margin Of Error","Estimate","Margin Of Error","Estimate","Margin Of Error","Estimate","Margin Of Error"]
[null,"Total:",4364,28,2503,234,3969,17,7571,34,1466,204,2419,143,2532,16,42767,36,1218,225,2756,18,4572,18,8499,24,4839,14,1210,201,13469,37,5608,16,5307,16,2103,252,4410,16,4848,31,7140,24,4104,33,1289,174,1794,251,2846,19,1749,161,1390,196]
[null,"Not Hispanic or Latino:",4172,134,2486,232,3950,26,7514,77,1466,204,2349,159,2521,20,41820,198,1218,225,2731,28,4563,26,8453,51,4734,85,1210,201,13053,177,5588,31,5286,29,2085,255,4367,45,4788,67,6917,158,4063,55,1280,173,1785,247,2806,40,1746,160,1383,195]
[null,"White",4093,142,2399,228,3887,61,7353,137,1402,188,2334,158,2462,68,39083,463,1197,227,2609,83,4506,65,8050,268,4630,119,1195,193,12529,292,5449,117,5098,134,2026,252,4232,90,4426,322,6736,203,3856,171,1234,170,1669,239,2752,58,1738,159,1318,170]
[null,"Black",15,18,0,11,33,38,0,16,0,11,4,7,0,11,1050,213,0,11,0,11,0,11,118,104,56,73,0,11,78,68,0,16,6,13,0,11,22,21,14,22,0,16,79,104,9,13,1,3,0,11,0,11,0,11]
[null,"American Indian",0,11,0,11,3,7,0,16,4,5,0,11,5,8,49,35,2,3,10,11,0,11,0,16,19,25,7,15,3,6,0,16,0,16,0,11,26,28,0,11,0,16,0,11,0,11,0,11,16,24,0,11,0,11]
[null,"Asian &Pacific Is.",14,24.596747752497688,0,15.556349186104045,0,15.556349186104045,103,107.35455276791944,33,49.244289008980523,11,19.416487838947599,0,15.556349186104045,1008,348.82660448996717,0,15.556349186104045,26,27.313000567495326,0,15.556349186104045,196,213.60009363293827,21,29.154759474226502,0,15.556349186104045,354,250.64716236175505,61,75.709972922990801,0,22.627416997969522,0,15.556349186104045,0,15.556349186104045,240,305.19829619445778,40,52.497618993626752,86,133.45411196362591,0,15.556349186104045,54,42.059481689626182,0,15.556349186104045,0,15.556349186104045,22,26.40075756488817]
[null,"Other*",50,47.296934361541872,87,61.98386886924694,27,27.313000567495326,58,63.063460101710248,27,24.596747752497688,0,15.556349186104045,54,64.938432380216881,630,234.88720697390056,19,21.587033144922902,86,67.623960250786851,57,59.033888572581766,89,61.1310068623117,8,18.601075237738275,8,18.601075237738275,89,64.560049566275893,78,91.411159056211517,182,128.00390619039717,59,46.324939287601879,87,78.771822373231913,108,103.58571330062848,141,130.98091464026353,42,30.083217912982647,37,33.837848631377263,61,41.773197148410844,38,37.643060449437421,8,17.029386365926403,43,42.449970553582247]
[null,"Hispanic or Latino:",192,131,17,24,19,20,57,64,0,11,70,56,11,16,947,192,0,11,25,23,9,19,46,47,105,88,0,11,416,176,20,25,21,20,18,19,43,40,60,61,223,155,41,47,9,11,9,17,40,37,3,5,7,11]
[]
[]
[]
[]
[]
[]
[]
[]
[]
[]
[]
[]
[]
[]
[]
[]
[]
[]
[]
[]
[]
[]
[]
[]
[]
[]
[]
[]
[]
[]
[]
[]
[]
[]
[]
[]
[]
[null,"Calculated B03002. HISPANIC OR LATINO ORIGIN BY RACE"]
[null,"Universe:  TOTAL POPULATION"]
[null,"Data Set: 2013-2017 American Community Survey 5-Year Estimates"]
[]
[null,null,"Allenstown",null,"Andover",null,"Boscawen",null,"Bow",null,"Bradford",null,"Canterbury",null,"Chichester",null,"Concord",null,"Danbury",null,"Dunbarton",null,"Epsom",null,"Franklin",null,"Henniker",null,"Hill",null,"Hooksett",null,"Hopkinton",null,"Loudon",null,"Newbury",null,"New London",null,"Northfield",null,"Pembroke",null,"Pittsfield",null,"Salisbury",null,"Sutton",null,"Warner",null,"Webster",null,"Wilmot"]
[null,null,"Estimate","Margin Of Error","Estimate","Margin Of Error","Estimate","Margin Of Error","Estimate","Margin Of Error","Estimate","Margin Of Error","Estimate","Margin Of Error","Estimate","Margin Of Error","Estimate","Margin Of Error","Estimate","Margin Of Error","Estimate","Margin Of Error","Estimate","Margin Of Error","Estimate","Margin Of Error","Estimate","Margin Of Error","Estimate","Margin Of Error","Estimate","Margin Of Error","Estimate","Margin Of Error","Estimate","Margin Of Error","Estimate","Margin Of Error","Estimate","Margin Of Error","Estimate","Margin Of Error","Estimate","Margin Of Error","Estimate","Margin Of Error","Estimate","Margin Of Error","Estimate","Margin Of Error","Estimate","Margin Of Error","Estimate","Margin Of Error","Estimate","Margin Of Error"]
[null,"Total:",4364,28,2503,234,3969,17,7571,34,1466,204,2419,143,2532,16,42767,36,1218,225,2756,18,4572,18,8499,24,4839,14,1210,201,13469,37,5608,16,5307,16,2103,252,4410,16,4848,31,7140,24,4104,33,1289,174,1794,251,2846,19,1749,161,1390,196]
[null,"Not Hispanic or Latino:",4172,134,2486,232,3950,26,7514,77,1466,204,2349,159,2521,20,41820,198,1218,225,2731,28,4563,26,8453,51,4734,85,1210,201,13053,177,5588,31,5286,29,2085,255,4367,45,4788,67,6917,158,4063,55,1280,173,1785,247,2806,40,1746,160,1383,195]
[null,"White",4093,142,2399,228,3887,61,7353,137,1402,188,2334,158,2462,68,39083,463,1197,227,2609,83,4506,65,8050,268,4630,119,1195,193,12529,292,5449,117,5098,134,2026,252,4232,90,4426,322,6736,203,3856,171,1234,170,1669,239,2752,58,1738,159,1318,170]
[null,"Black",15,18,0,11,33,38,0,16,0,11,4,7,0,11,1050,213,0,11,0,11,0,11,118,104,56,73,0,11,78,68,0,16,6,13,0,11,22,21,14,22,0,16,79,104,9,13,1,3,0,11,0,11,0,11]
[null,"American Indian",0,11,0,11,3,7,0,16,4,5,0,11,5,8,49,35,2,3,10,11,0,11,0,16,19,25,7,15,3,6,0,16,0,16,0,11,26,28,0,11,0,16,0,11,0,11,0,11,16,24,0,11,0,11]
[null,"Asian &Pacific Is.",14,24.596747752497688,0,15.556349186104045,0,15.556349186104045,103,107.35455276791944,33,49.244289008980523,11,19.416487838947599,0,15.556349186104045,1008,348.82660448996717,0,15.556349186104045,26,27.313000567495326,0,15.556349186104045,196,213.60009363293827,21,29.154759474226502,0,15.556349186104045,354,250.64716236175505,61,75.709972922990801,0,22.627416997969522,0,15.556349186104045,0,15.556349186104045,240,305.19829619445778,40,52.497618993626752,86,133.45411196362591,0,15.556349186104045,54,42.059481689626182,0,15.556349186104045,0,15.556349186104045,22,26.40075756488817]
[null,"Other*",50,47.296934361541872,87,61.98386886924694,27,27.313000567495326,58,63.063460101710248,27,24.596747752497688,0,15.556349186104045,54,64.938432380216881,630,234.88720697390056,19,21.587033144922902,86,67.623960250786851,57,59.033888572581766,89,61.1310068623117,8,18.601075237738275,8,18.601075237738275,89,64.560049566275893,78,91.411159056211517,182,128.00390619039717,59,46.324939287601879,87,78.771822373231913,108,103.58571330062848,141,130.98091464026353,42,30.083217912982647,37,33.837848631377263,61,41.773197148410844,38,37.643060449437421,8,17.029386365926403,43,42.449970553582247]
[null,"Hispanic or Latino:",192,131,17,24,19,20,57,64,0,11,70,56,11,16,947,192,0,11,25,23,9,19,46,47,105,88,0,11,416,176,20,25,21,20,18,19,43,40,60,61,223,155,41,47,9,11,9,17,40,37,3,5,7,11]
[]
[]
[]
["Calculated B03002. HISPANIC OR LATINO ORIGIN BY RACE"]
["Universe:  TOTAL POPULATION"]
["Data Set: 2008-2012 American Community Survey 5-Year Estimates"]
[]
[null,null,"Allenstown",null,"Andover",null,"Boscawen",null,"Bow",null,"Bradford",null,"Canterbury",null,"Chichester",null,"Concord",null,"Danbury",null,"Dunbarton",null,"Epsom",null,"Franklin",null,"Henniker",null,"Hill",null,"Hooksett",null,"Hopkinton",null,"Loudon",null,"Newbury",null,"New London",null,"Northfield",null,"Pembroke",null,"Pittsfield",null,"Salisbury",null,"Sutton",null,"Warner",null,"Webster",null,"Wilmot"]
[null,null,"Estimate","Margin Of Error","Estimate","Margin Of Error","Estimate","Margin Of Error","Estimate","Margin Of Error","Estimate","Margin Of Error","Estimate","Margin Of Error","Estimate","Margin Of Error","Estimate","Margin Of Error","Estimate","Margin Of Error","Estimate","Margin Of Error","Estimate","Margin Of Error","Estimate","Margin Of Error","Estimate","Margin Of Error","Estimate","Margin Of Error","Estimate","Margin Of Error","Estimate","Margin Of Error","Estimate","Margin Of Error","Estimate","Margin Of Error","Estimate","Margin Of Error","Estimate","Margin Of Error","Estimate","Margin Of Error","Estimate","Margin Of Error","Estimate","Margin Of Error","Estimate","Margin Of Error","Estimate","Margin Of Error","Estimate","Margin Of Error","Estimate","Margin Of Error"]
[null,"Total:",4437,25,2422,250,3965,20,7559,22,1525,194,2458,156,2524,22,42886,32,1120,212,2727,15,4555,19,8552,19,4837,16,1270,221,13389,39,5622,20,5281,18,2084,256,4409,17,4850,18,7148,22,4128,17,1359,168,1668,212,2854,19,1788,188,1368,186]
[null,"Not Hispanic or Latino:",4199,148,2407,246,3952,34,7513,67,1517,193,2385,174,2511,29,41916,261,1120,212,2712,21,4552,28,8504,44,4796,51,1267,221,13002,211,5603,30,5255,26,2062,255,4377,37,4811,55,6879,196,4092,53,1353,169,1666,213,2813,37,1785,188,1355,189]
[null,"White",4052,179,2340,231,3897,89,7412,129,1461,189,2371,174,2451,61,39367,482,1085,203,2618,64,4521,51,8121,225,4711,77,1243,212,12401,371,5465,107,5119,121,2009,247,4249,77,4435,343,6576,289,3988,128,1297,157,1533,210,2767,60,1779,187,1303,180]
[null,"Black",12,14,0,85,36,40,0,85,0,85,4,6,0,85,968,233,0,85,0,85,0,85,116,93,43,50,0,85,190,200,0,85,8,11,0,85,28,29,11,17,0,85,1,7,5,11,2,4,0,85,0,85,0,85]
[null,"American Indian",19,31,0,85,2,4,0,85,3,5,0,85,3,4,61,42,2,4,10,11,0,85,0,85,19,25,7,14,3,7,0,85,0,85,0,85,14,23,0,85,0,85,0,85,0,85,2,4,12,18,0,85,0,85]
[null,"Asian &Pacific Is.",76,118.10588469674151,0,120.20815280171308,0,120.20815280171308,76,128.97286536322281,27,95.257545632878873,10,86.49277426467485,9,86.145226217127089,836,329.16409281694138,0,120.20815280171308,19,87.555696559390128,0,120.20815280171308,184,199.06029237394384,16,87.80091115700337,0,120.20815280171308,322,301.24076749337894,60,107.00467279516349,0,120.20815280171308,0,120.20815280171308,15,87.097646351666697,240,340.77118422777477,145,190.96072894707959,76,139.80700983856281,0,120.20815280171308,74,54.12947441089743,0,120.20815280171308,0,120.20815280171308,26,87.097646351666697]
[null,"Other*",40,91.547801721286575,67,100.16985574512923,17,89.493016487321512,25,93.520051325905499,26,88.600225733346747,0,120.20815280171308,48,99.644367628080218,684,251.0796686312932,33,40.311288741492746,65,54.671747731346578,31,93.107464792034804,83,108.23123393919151,7,85.586213843118443,17,18.973665961010276,86,105.20931517693668,78,120.91732712891069,128,144.61673485458036,53,95.713112999212385,71,105.80170130957252,125,133.5440002396214,158,155.32224567009067,27,88.323269867006175,51,43.289721643826724,55,38.832975677895199,34,90.824005637276315,6,85.37564055396598,26,89.493016487321512]
[null,"Hispanic or Latino:",238,149,15,22,13,26,46,64,8,13,73,60,13,17,970,262,0,85,15,15,3,19,48,46,41,47,3,6,387,208,19,21,26,22,22,22,32,34,39,50,269,194,36,49,6,10,2,4,41,33,3,5,13,16]

{"sheet":"RentalHousingCost","index":54,"n_rows":124,"n_cols":21,"rows_kept":124,"cut":false,"hidden":true,"merged":[]}
[]
[null,null,"HIDE THIS COLUMN",{"$f":"CntyDataLink!A70","v":"Allenstown"}]
[]
[null,null,null,"RENTAL HOUSING COST CHARACTERISTICS"]
[]
[]
[]
[]
[]
[]
[]
[]
[]
[]
[]
[]
[]
[]
[]
[]
[]
[]
[]
[]
[]
[]
[]
[]
[]
[]
[]
[]
[]
[]
[]
[]
[]
[]
[null,null,null,"Source:  2018-2022 American Community Survey Table B25074"]
[]
[null,null,null,"Income in 2022 Inflation Adjusted Dollars"]
[null,null,null,"Data from the American Community Survey are estimates"]
[null,null,null,{"$f":"CntyDataLink!A70","v":"Allenstown"}]
[]
[null,null,null,{"$f":"D4","v":"RENTAL HOUSING COST CHARACTERISTICS"}]
[]
[null,null,null,"Renter Households by "]
[null,null,null,"Gross Rent as a Percent of 2022 Household Income"]
[null,null,null,null,null,null,"By Household Income"]
[null,null,{"$f":"CntyDataLink!AO$69","v":"H73RenterOccHU"},null,"Specified Renter Occ Housing Units",{"$f":"\"Margin of Error Renter Occupied Units\"","v":"Margin of Error Renter Occupied Units"},null,"Less than $10,000",{"$f":"\"Margin of Error \"&H50","v":"Margin of Error Less than $10,000"},"$10,000 to $19,999",{"$f":"\"Margin of Error \"&J50","v":"Margin of Error $10,000 to $19,999"},"$20,000 to $34,999",{"$f":"\"Margin of Error \"&L50","v":"Margin of Error $20,000 to $34,999"},"$35,000 to $49,999",{"$f":"\"Margin of Error \"&N50","v":"Margin of Error $35,000 to $49,999"},"$50,000 to $74,999",{"$f":"\"Margin of Error \"&P50","v":"Margin of Error $50,000 to $74,999"},"$75,000 to $99,999",{"$f":"\"Margin of Error \"&R50","v":"Margin of Error $75,000 to $99,999"},"$100,000 or More",{"$f":"\"Margin of Error \"&T50","v":"Margin of Error $100,000 or More"}]
[]
[null,null,null,"All Renter Households",{"$f":"CntyDataLink!$B$156","v":373},{"$f":"CntyDataLink!$C$156","v":153},null,{"$f":"CntyDataLink!$BH$148","v":0},{"$f":"CntyDataLink!$BI$148","v":12},{"$f":"CntyDataLink!$BZ$148","v":126},{"$f":"CntyDataLink!$CA$148","v":107},{"$f":"CntyDataLink!$CR$148","v":64},{"$f":"CntyDataLink!$CS$148","v":68},{"$f":"CntyDataLink!$DJ$148","v":57},{"$f":"CntyDataLink!$DK$148","v":62},{"$f":"CntyDataLink!$EB$148","v":51},{"$f":"CntyDataLink!$EC$148","v":43},{"$f":"CntyDataLink!$ET$148","v":34},{"$f":"CntyDataLink!$EU$148","v":31},{"$f":"CntyDataLink!$FL$148","v":41},{"$f":"CntyDataLink!$FM$148","v":34}]
[null,null,null,"Rent Less than 20% of HH Income",{"$f":"CntyDataLink!$D$156","v":138},{"$f":"CntyDataLink!$E$156","v":82.510605378945073},null,{"$f":"CntyDataLink!$BJ$148","v":0},{"$f":"CntyDataLink!$BK$148","v":12},{"$f":"CntyDataLink!$CB$148","v":10},{"$f":"CntyDataLink!$CC$148","v":15},{"$f":"CntyDataLink!$CT$148","v":0},{"$f":"CntyDataLink!$CU$148","v":12},{"$f":"CntyDataLink!$DL$148","v":41},{"$f":"CntyDataLink!$DM$148","v":60},{"$f":"CntyDataLink!$ED$148","v":17},{"$f":"CntyDataLink!$EE$148","v":28},{"$f":"CntyDataLink!$EV$148","v":29},{"$f":"CntyDataLink!$EW$148","v":30},{"$f":"CntyDataLink!$FN$148","v":41},{"$f":"CntyDataLink!$FO$148","v":34}]
[null,null,null,"Rent 20% to 24.9% of HH Income",{"$f":"CntyDataLink!$F$156","v":18},{"$f":"CntyDataLink!$G$156","v":18},null,{"$f":"CntyDataLink!$BL$148","v":0},{"$f":"CntyDataLink!$BM$148","v":12},{"$f":"CntyDataLink!$CD$148","v":0},{"$f":"CntyDataLink!$CE$148","v":12},{"$f":"CntyDataLink!$CV$148","v":5},{"$f":"CntyDataLink!$CW$148","v":8},{"$f":"CntyDataLink!$DN$148","v":0},{"$f":"CntyDataLink!$DO$148","v":12},{"$f":"CntyDataLink!$EF$148","v":8},{"$f":"CntyDataLink!$EG$148","v":13},{"$f":"CntyDataLink!$EX$148","v":5},{"$f":"CntyDataLink!$EY$148","v":8},{"$f":"CntyDataLink!$FP$148","v":0},{"$f":"CntyDataLink!$FQ$148","v":12}]
[null,null,null,"Rent 25% to 29.9% of HH Income",{"$f":"CntyDataLink!$H$156","v":25},{"$f":"CntyDataLink!$I$156","v":22},null,{"$f":"CntyDataLink!$BN$148","v":0},{"$f":"CntyDataLink!$BO$148","v":12},{"$f":"CntyDataLink!$CF$148","v":0},{"$f":"CntyDataLink!$CG$148","v":12},{"$f":"CntyDataLink!$CX$148","v":9},{"$f":"CntyDataLink!$CY$148","v":13},{"$f":"CntyDataLink!$DP$148","v":16},{"$f":"CntyDataLink!$DQ$148","v":21},{"$f":"CntyDataLink!$EH$148","v":0},{"$f":"CntyDataLink!$EI$148","v":12},{"$f":"CntyDataLink!$EZ$148","v":0},{"$f":"CntyDataLink!$FA$148","v":12},{"$f":"CntyDataLink!$FR$148","v":0},{"$f":"CntyDataLink!$FS$148","v":12}]
[null,null,null,"Rent Less Than 30% of HH Income",{"$f":"CntyDataLink!$J$156","v":181},{"$f":"CntyDataLink!$K$156","v":87.26969691708571},null,{"$f":"SUM(H53:H55)","v":0},{"$f":"SQRT((I53^2)+(I54^2)+(I55^2))","v":20.784609690826528},{"$f":"SUM(J53:J55)","v":10},{"$f":"SQRT((K53^2)+(K54^2)+(K55^2))","v":22.649503305812249},{"$f":"SUM(L53:L55)","v":14},{"$f":"SQRT((M53^2)+(M54^2)+(M55^2))","v":19.416487838947599},{"$f":"SUM(N53:N55)","v":57},{"$f":"SQRT((O53^2)+(O54^2)+(O55^2))","v":64.691575958543467},{"$f":"SUM(P53:P55)","v":25},{"$f":"SQRT((Q53^2)+(Q54^2)+(Q55^2))","v":33.120990323358392},{"$f":"SUM(R53:R55)","v":34},{"$f":"SQRT((S53^2)+(S54^2)+(S55^2))","v":33.286633954186478},{"$f":"SUM(T53:T55)","v":41},{"$f":"SQRT((U53^2)+(U54^2)+(U55^2))","v":38}]
[null,null,null,"Rent 30% or More of HH Income",{"$f":"CntyDataLink!$L$156","v":192},{"$f":"CntyDataLink!$M$156","v":129.89996150884727},null,{"$f":"H60+H58","v":0},{"$f":"SQRT((I58^2)+(I60^2))","v":24},{"$f":"J60+J58","v":116},{"$f":"SQRT((K58^2)+(K60^2))","v":107.29864864013899},{"$f":"L60+L58","v":50},{"$f":"SQRT((M58^2)+(M60^2))","v":69.570108523704349},{"$f":"N60+N58","v":0},{"$f":"SQRT((O58^2)+(O60^2))","v":24},26,{"$f":"SQRT((Q58^2)+(Q60^2))","v":37.322915213043046},{"$f":"R60+R58","v":0},{"$f":"SQRT((S58^2)+(S60^2))","v":24},0,{"$f":"SQRT((U58^2)+(U60^2))","v":24}]
[null,null,null,"Rent 30% to 34.9% of HH Income",{"$f":"CntyDataLink!$N$156","v":0},{"$f":"CntyDataLink!$O$156","v":12},null,{"$f":"CntyDataLink!$BP$148","v":0},{"$f":"CntyDataLink!$BQ$148","v":12},{"$f":"CntyDataLink!$CH$148","v":0},{"$f":"CntyDataLink!$CI$148","v":12},{"$f":"CntyDataLink!$CZ$148","v":0},{"$f":"CntyDataLink!$DA$148","v":12},{"$f":"CntyDataLink!$DR$148","v":0},{"$f":"CntyDataLink!$DS$148","v":12},{"$f":"CntyDataLink!$EJ$148","v":0},{"$f":"CntyDataLink!$EK$148","v":12},{"$f":"CntyDataLink!$FB$148","v":0},{"$f":"CntyDataLink!$FC$148","v":12},{"$f":"CntyDataLink!$FT$148","v":0},{"$f":"CntyDataLink!$FU$148","v":12}]
[null,null,null,"Rent Less Than 35% of HH Income",{"$f":"CntyDataLink!$P$156","v":181},{"$f":"CntyDataLink!$Q$156","v":88.090862182180956},null,{"$f":"SUM(H56,H58)","v":0},{"$f":"SQRT((I56^2)+(I58^2))","v":24},{"$f":"SUM(J56,J58)","v":10},{"$f":"SQRT((K56^2)+(K58^2))","v":25.632011235952593},{"$f":"SUM(L56,L58)","v":14},{"$f":"SQRT((M56^2)+(M58^2))","v":22.825424421026653},57,76.691575958543467,25,{"$f":"SQRT((Q58^2)+(Q56^2))","v":35.227829907617078},{"$f":"SUM(R56,R58)","v":34},{"$f":"SQRT((S58^2)+(S56^2))","v":35.383612025908263},41,{"$f":"SQRT((U58^2)+(U56^2))","v":39.849717690342551}]
[null,null,null,"Rent 35% or More of HH Income",{"$f":"CntyDataLink!$R$156","v":192},{"$f":"CntyDataLink!$S$156","v":129.34450123604017},null,{"$f":"CntyDataLink!$BR$148+CntyDataLink!$BT$148+CntyDataLink!$BV$148","v":0},{"$f":"SQRT((CntyDataLink!$BS$148^2)+(CntyDataLink!$BU$148^2)+(CntyDataLink!$BW$148^2))","v":20.784609690826528},{"$f":"CntyDataLink!$CJ$148+CntyDataLink!$CL$148+CntyDataLink!$CN$148","v":116},{"$f":"SQRT((CntyDataLink!$CK$148^2)+(CntyDataLink!$CM$148^2)+(CntyDataLink!$CO$148^2))","v":106.62551289442879},{"$f":"CntyDataLink!$DB$148+CntyDataLink!$DD$148+CntyDataLink!$DF$148","v":50},{"$f":"SQRT((CntyDataLink!$DC$148^2)+(CntyDataLink!$DE$148^2)+(CntyDataLink!$DG$148^2))","v":68.527366796047261},{"$f":"CntyDataLink!$DT$148+CntyDataLink!$DV$148+CntyDataLink!$DX$148","v":0},{"$f":"SQRT((CntyDataLink!$DU$148^2)+(CntyDataLink!$DW$148^2)+(CntyDataLink!$DY$148^2))","v":20.784609690826528},{"$f":"CntyDataLink!$EL$148+CntyDataLink!$EN$148+CntyDataLink!$EP$148","v":26},{"$f":"SQRT((CntyDataLink!$EM$148^2)+(CntyDataLink!$EO$148^2)+(CntyDataLink!$EQ$148^2))","v":35.341194094144583},{"$f":"CntyDataLink!$FD$148+CntyDataLink!$FF$148+CntyDataLink!$FH$148","v":0},{"$f":"SQRT((CntyDataLink!$FE$148^2)+(CntyDataLink!$FG$148^2)+(CntyDataLink!$FI$148^2))","v":20.784609690826528},{"$f":"CntyDataLink!$FV$148+CntyDataLink!$FX$148+CntyDataLink!$FZ$148","v":0},{"$f":"SQRT((CntyDataLink!$FW$148^2)+(CntyDataLink!$FY$148^2)+(CntyDataLink!$GA$148^2))","v":20.784609690826528}]
[null,null,null,"Rent 50% or More of HH Income",{"$f":"CntyDataLink!$T$156","v":135},{"$f":"CntyDataLink!$U$156","v":120},null,{"$f":"CntyDataLink!$BV$148","v":0},{"$f":"CntyDataLink!$BW$148","v":12},{"$f":"CntyDataLink!$CN$148","v":94},{"$f":"CntyDataLink!$CO$148","v":100},{"$f":"CntyDataLink!$DF$148","v":41},{"$f":"CntyDataLink!$DG$148","v":66},{"$f":"CntyDataLink!$DX$148","v":0},{"$f":"CntyDataLink!$DY$148","v":12},{"$f":"CntyDataLink!$EP$148","v":0},{"$f":"CntyDataLink!$EQ$148","v":12},{"$f":"CntyDataLink!$FH$148","v":0},{"$f":"CntyDataLink!$FI$148","v":12},{"$f":"CntyDataLink!$FZ$148","v":0},{"$f":"CntyDataLink!$GA$148","v":12}]
[null,null,null,"Percent not computed",{"$f":"CntyDataLink!$V$156","v":0},{"$f":"CntyDataLink!$W$156","v":12},null,{"$f":"CntyDataLink!$BX$148","v":0},{"$f":"CntyDataLink!$BY$148","v":12},{"$f":"CntyDataLink!$CP$148","v":0},{"$f":"CntyDataLink!$CQ$148","v":12},{"$f":"CntyDataLink!$DH$148","v":0},{"$f":"CntyDataLink!$DI$148","v":12},{"$f":"CntyDataLink!$DZ$148","v":0},{"$f":"CntyDataLink!$EA$148","v":12},{"$f":"CntyDataLink!$ER$148","v":0},{"$f":"CntyDataLink!$ES$148","v":12},{"$f":"CntyDataLink!$FJ$148","v":0},{"$f":"CntyDataLink!$FK$148","v":12},{"$f":"CntyDataLink!$GB$148","v":0},{"$f":"CntyDataLink!$GC148","v":12}]
[]
[]
[]
[null,null,null,"Percent of Households Paying ",null,null,null,"By Household Income"]
[null,null,null,{"$f":"D56","v":"Rent Less Than 30% of HH Income"},{"$f":"E56/E$52","v":0.48525469168900803},null,null,{"$f":"H56/H$52","v":{"$error":"#DIV/0!"}},null,{"$f":"J56/J$52","v":7.9365079365079361E-2},null,{"$f":"L56/L$52","v":0.21875},null,{"$f":"N56/N$52","v":1},null,{"$f":"P56/P$52","v":0.49019607843137253},null,{"$f":"R56/R$52","v":1},null,{"$f":"T56/T$52","v":1}]
[null,null,null,{"$f":"D57","v":"Rent 30% or More of HH Income"},{"$f":"E57/E$52","v":0.51474530831099197},null,null,{"$f":"H57/H$52","v":{"$error":"#DIV/0!"}},null,{"$f":"J57/J$52","v":0.92063492063492058},null,{"$f":"L57/L$52","v":0.78125},null,{"$f":"N57/N$52","v":0},null,{"$f":"P57/P$52","v":0.50980392156862742},null,{"$f":"R57/R$52","v":0},null,{"$f":"T57/T$52","v":0}]
[null,null,null,{"$f":"D59","v":"Rent Less Than 35% of HH Income"},{"$f":"E59/E$52","v":0.48525469168900803},null,null,{"$f":"H59/H$52","v":{"$error":"#DIV/0!"}},null,{"$f":"J59/J$52","v":7.9365079365079361E-2},null,{"$f":"L59/L$52","v":0.21875},null,{"$f":"N59/N$52","v":1},null,{"$f":"P59/P$52","v":0.49019607843137253},null,{"$f":"R59/R$52","v":1},null,{"$f":"T59/T$52","v":1}]
[null,null,null,{"$f":"D60","v":"Rent 35% or More of HH Income"},{"$f":"E60/E$52","v":0.51474530831099197},null,null,{"$f":"H60/H$52","v":{"$error":"#DIV/0!"}},null,{"$f":"J60/J$52","v":0.92063492063492058},null,{"$f":"L60/L$52","v":0.78125},null,{"$f":"N60/N$52","v":0},null,{"$f":"P60/P$52","v":0.50980392156862742},null,{"$f":"R60/R$52","v":0},null,{"$f":"T60/T$52","v":0}]
[null,null,null,"Rent 50% or More of HH Income",{"$f":"E61/E$52","v":0.36193029490616624},null,null,{"$f":"H61/H$52","v":{"$error":"#DIV/0!"}},null,{"$f":"J61/J$52","v":0.74603174603174605},null,{"$f":"L61/L$52","v":0.640625},null,{"$f":"N61/N$52","v":0},null,{"$f":"P61/P$52","v":0},null,{"$f":"R61/R$52","v":0},null,{"$f":"T61/T$52","v":0}]
[null,null,null,"Percent not computed",{"$f":"E62/E$52","v":0},null,null,{"$f":"H62/H$52","v":{"$error":"#DIV/0!"}},null,{"$f":"J62/J$52","v":0},null,{"$f":"L62/L$52","v":0},null,{"$f":"N62/N$52","v":0},null,{"$f":"P62/P$52","v":0},null,{"$f":"R62/R$52","v":0},null,{"$f":"T62/T$52","v":0}]
[]
[]
[null,null,null,"Source:  2018-2022 American Community Survey Table B25070; B25074"]
[]
[null,null,null,{"$f":"D41","v":"Income in 2022 Inflation Adjusted Dollars"}]
[null,null,null,"Data from the American Community Survey are estimates"]
[]
[null,null,null,{"$f":"CntyDataLink!A70","v":"Allenstown"}]
[null,null,null,{"$f":"D4","v":"RENTAL HOUSING COST CHARACTERISTICS"}]
[]
[null,null,null,"Rental Housing Costs"]
[]
[null,null,null,"Renter Occupied Housing Units By Gross Rent "]
[]
[null,null,null,null,"Units","Margin of Error"]
[null,null,{"$f":"CntyDataLink!E$69","v":"H62RntrOccHU"},"Specified Renter Occ Housing Units",{"$f":"CntyDataLink!$B$148","v":373},{"$f":"CntyDataLink!$C$148","v":153}]
[null,null,{"$f":"CntyDataLink!F$69","v":"H62RntrOccHUwRent"},"Renter Occ. Housing Units w/ Cash Rent",{"$f":"CntyDataLink!$D$148","v":373},{"$f":"CntyDataLink!$E$148","v":153}]
[]
[null,null,{"$f":"CntyDataLink!G$69","v":"H62ROHUGRent<100"},"Gross Rent","Units","Margin of Error 2018-2022"]
[null,null,{"$f":"CntyDataLink!H$69","v":"H62ROHUGRent100to149"},"Less than $100",{"$f":"CntyDataLink!$F$148","v":0},{"$f":"CntyDataLink!$G$148","v":12}]
[null,null,{"$f":"CntyDataLink!I$69","v":"H62ROHUGRent150to199"},"$100 to $149",{"$f":"CntyDataLink!$H$148","v":0},{"$f":"CntyDataLink!$I$148","v":12}]
[null,null,{"$f":"CntyDataLink!J$69","v":"H62ROHUGRent200to249"},"$150 to $199",{"$f":"CntyDataLink!J$148","v":0},{"$f":"CntyDataLink!$K$148","v":12}]
[null,null,{"$f":"CntyDataLink!K$69","v":"H62ROHUGRent250to299"},"$200 to $249",{"$f":"CntyDataLink!$L$148","v":10},{"$f":"CntyDataLink!$M$148","v":15}]
[null,null,{"$f":"CntyDataLink!L$69","v":"H62ROHUGRent300to349"},"$250 to $299",{"$f":"CntyDataLink!$N$148","v":0},{"$f":"CntyDataLink!$O$148","v":12}]
[null,null,{"$f":"CntyDataLink!M$69","v":"H62ROHUGRent350to399"},"$300 to $349",{"$f":"CntyDataLink!$P$148","v":0},{"$f":"CntyDataLink!$Q$148","v":12}]
[null,null,{"$f":"CntyDataLink!N$69","v":"H62ROHUGRent400to449"},"$350 to $399",{"$f":"CntyDataLink!$R$148","v":0},{"$f":"CntyDataLink!$S$148","v":12}]
[null,null,{"$f":"CntyDataLink!O$69","v":"H62ROHUGRent450to499"},"$400 to $449",{"$f":"CntyDataLink!$T$148","v":5},{"$f":"CntyDataLink!$U$148","v":8}]
[null,null,{"$f":"CntyDataLink!P$69","v":"H62ROHUGRent500to549"},"$450 to $499",{"$f":"CntyDataLink!$V$148","v":31},{"$f":"CntyDataLink!$W$148","v":31}]
[null,null,{"$f":"CntyDataLink!Q$69","v":"H62ROHUGRent550to599"},"$500 to $549",{"$f":"CntyDataLink!$X$148","v":41},{"$f":"CntyDataLink!$Y$148","v":60}]
[null,null,{"$f":"CntyDataLink!R$69","v":"H62ROHUGRent600to649"},"$550 to $599",{"$f":"CntyDataLink!$Z$148","v":0},{"$f":"CntyDataLink!$AA$148","v":12}]
[null,null,{"$f":"CntyDataLink!S$69","v":"H62ROHUGRent650to699"},"$600 to $649",{"$f":"CntyDataLink!$AB$148","v":0},{"$f":"CntyDataLink!$AC$148","v":12}]
[null,null,{"$f":"CntyDataLink!T$69","v":"H62ROHUGRent700to749"},"$650 to $699",{"$f":"CntyDataLink!$AD$148","v":0},{"$f":"CntyDataLink!$AE$148","v":12}]
[null,null,{"$f":"CntyDataLink!U$69","v":"H62ROHUGRent750to799"},"$700 to $749",{"$f":"CntyDataLink!$AF$148","v":17},{"$f":"CntyDataLink!$AG$148","v":28}]
[null,null,{"$f":"CntyDataLink!V$69","v":"H62ROHUGRent800to899"},"$750 to $799",{"$f":"CntyDataLink!$AH$148","v":0},{"$f":"CntyDataLink!$AI$148","v":12}]
[null,null,{"$f":"CntyDataLink!W$69","v":"H62ROHUGRent900to999"},"$800 to $899",{"$f":"CntyDataLink!$AJ$148","v":54},{"$f":"CntyDataLink!$AK$148","v":69}]
[null,null,{"$f":"CntyDataLink!X$69","v":"H62ROHUGRent1000to1249"},"$900 to $999",{"$f":"CntyDataLink!$AL$148","v":0},{"$f":"CntyDataLink!$AM$148","v":12}]
[null,null,{"$f":"CntyDataLink!Y$69","v":"H62ROHUGRent1250to1499"},"$1000 to $1249",{"$f":"CntyDataLink!$AN$148","v":64},{"$f":"CntyDataLink!$AO$148","v":39}]
[null,null,{"$f":"CntyDataLink!Z$69","v":"H62ROHUGRent1500to1999"},"$1250 to $1499",{"$f":"CntyDataLink!$AP$148","v":86},{"$f":"CntyDataLink!$AQ$148","v":95}]
[null,null,{"$f":"CntyDataLink!AA$69","v":"H62ROHUGRent2000>"},"$1500 to $1999",{"$f":"CntyDataLink!$AR$148","v":50},{"$f":"CntyDataLink!$AS$148","v":54}]
[null,null,{"$f":"CntyDataLink!AB$69","v":"H62ROHUNoGRent"},"$2,000 to $2,499",{"$f":"CntyDataLink!$AT$148","v":15},{"$f":"CntyDataLink!$AU$148","v":26}]
[null,null,{"$f":"CntyDataLink!AC$69","v":"H63MedianGrossRnt"},"$2,500 to $2,999",{"$f":"CntyDataLink!$AV$148","v":0},{"$f":"CntyDataLink!$AW$148","v":12}]
[null,null,null,"$3,000 to $3,499",{"$f":"CntyDataLink!$AX$148","v":0},{"$f":"CntyDataLink!$AY$148","v":12}]
[null,null,null,"$3,500 or more",{"$f":"CntyDataLink!$AZ$148","v":0},{"$f":"CntyDataLink!$BA$148","v":12}]
[null,null,null,"Renter Occ. Housing Units w/ No Cash Rent",{"$f":"CntyDataLink!$BB$148","v":0},{"$f":"CntyDataLink!$BC$148","v":12}]
[]
[null,null,null,"Median Gross Rent",{"$f":"CntyDataLink!$BD$148","v":1111},{"$f":"CntyDataLink!$BE$148","v":263}]
[]
[]
[]
[]
[null,null,null,"Source: 2018-2022 American Community Survey Table B25063; B25064"]
[null,null,null,"Data from the American Community Survey are estimates"]

{"sheet":"RentalHousingCost-Prior5Yr","index":55,"n_rows":124,"n_cols":21,"rows_kept":124,"cut":false,"hidden":true,"merged":[]}
[]
[null,null,"HIDE THIS COLUMN",{"$f":"CntyDataLink!A70","v":"Allenstown"}]
["DropDownList!B47"]
[null,null,null,"RENTAL HOUSING COST CHARACTERISTICS"]
[]
[]
[]
[]
[]
[]
[]
[]
[]
[]
[]
[]
[]
[]
[]
[]
[]
[]
[]
[]
[]
[]
[]
[]
[]
[]
[]
[]
[]
[]
[]
[]
[]
[]
[null,null,null,"Source:  2013-2017 American Community Survey Table B25074"]
[]
[null,null,null,"Income in 20176 Inflation Adjusted Dollars"]
[null,null,null,"Data from the American Community Survey are estimates"]
[null,null,null,{"$f":"CntyDataLinkPrior5YearEstimates!A120","v":"Allenstown"}]
[]
[null,null,null,{"$f":"D4","v":"RENTAL HOUSING COST CHARACTERISTICS"}]
[]
[null,null,null,"Renter Households by "]
[null,null,null,"Gross Rent as a Percent of 2017 Household Income"]
[null,null,null,null,null,null,"By Household Income"]
[null,null,{"$f":"CntyDataLinkPrior5YearEstimates!AO$69","v":0},null,"Specified Renter Occ Housing Units",{"$f":"\"Margin of Error Renter Occupied Units\"","v":"Margin of Error Renter Occupied Units"},null,"Less than $10,000",{"$f":"\"Margin of Error \"&H50","v":"Margin of Error Less than $10,000"},"$10,000 to $19,999",{"$f":"\"Margin of Error \"&J50","v":"Margin of Error $10,000 to $19,999"},"$20,000 to $34,999",{"$f":"\"Margin of Error \"&L50","v":"Margin of Error $20,000 to $34,999"},"$35,000 to $49,999",{"$f":"\"Margin of Error \"&N50","v":"Margin of Error $35,000 to $49,999"},"$50,000 to $74,999",{"$f":"\"Margin of Error \"&P50","v":"Margin of Error $50,000 to $74,999"},"$75,000 to $99,999",{"$f":"\"Margin of Error \"&R50","v":"Margin of Error $75,000 to $99,999"},"$100,000 or More",{"$f":"\"Margin of Error \"&T50","v":"Margin of Error $100,000 or More"}]
[]
[null,null,null,"All Renter Households",{"$f":"CntyDataLinkPrior5YearEstimates!$B$156","v":467},{"$f":"CntyDataLinkPrior5YearEstimates!$C$156","v":107},null,{"$f":"CntyDataLinkPrior5YearEstimates!$BH$148","v":16},{"$f":"CntyDataLinkPrior5YearEstimates!$BI$148","v":20},{"$f":"CntyDataLinkPrior5YearEstimates!$BZ$148","v":148},{"$f":"CntyDataLinkPrior5YearEstimates!$CA$148","v":84},{"$f":"CntyDataLinkPrior5YearEstimates!$CR$148","v":98},{"$f":"CntyDataLinkPrior5YearEstimates!$CS$148","v":56},{"$f":"CntyDataLinkPrior5YearEstimates!$DJ$148","v":8},{"$f":"CntyDataLinkPrior5YearEstimates!$DK$148","v":13},{"$f":"CntyDataLinkPrior5YearEstimates!$EB$148","v":93},{"$f":"CntyDataLinkPrior5YearEstimates!$EC$148","v":54},{"$f":"CntyDataLinkPrior5YearEstimates!$ET$148","v":44},{"$f":"CntyDataLinkPrior5YearEstimates!$EU$148","v":32},{"$f":"CntyDataLinkPrior5YearEstimates!$FL$148","v":60},{"$f":"CntyDataLinkPrior5YearEstimates!$FM$148","v":49}]
[null,null,null,"Rent Less than 20% of HH Income",{"$f":"CntyDataLinkPrior5YearEstimates!$D$156","v":10},{"$f":"CntyDataLinkPrior5YearEstimates!$E$156","v":15},null,{"$f":"CntyDataLinkPrior5YearEstimates!$BJ$148","v":0},{"$f":"CntyDataLinkPrior5YearEstimates!$BK$148","v":11},{"$f":"CntyDataLinkPrior5YearEstimates!$CB$148","v":28},{"$f":"CntyDataLinkPrior5YearEstimates!$CC$148","v":43},{"$f":"CntyDataLinkPrior5YearEstimates!$CT$148","v":27},{"$f":"CntyDataLinkPrior5YearEstimates!$CU$148","v":42},{"$f":"CntyDataLinkPrior5YearEstimates!$DL$148","v":0},{"$f":"CntyDataLinkPrior5YearEstimates!$DM$148","v":11},{"$f":"CntyDataLinkPrior5YearEstimates!$ED$148","v":55},{"$f":"CntyDataLinkPrior5YearEstimates!$EE$148","v":41},{"$f":"CntyDataLinkPrior5YearEstimates!$EV$148","v":7},{"$f":"CntyDataLinkPrior5YearEstimates!$EW$148","v":13},{"$f":"CntyDataLinkPrior5YearEstimates!$FN$148","v":60},{"$f":"CntyDataLinkPrior5YearEstimates!$FO$148","v":49}]
[null,null,null,"Rent 20% to 24.9% of HH Income",{"$f":"CntyDataLinkPrior5YearEstimates!$F$156","v":22},{"$f":"CntyDataLinkPrior5YearEstimates!$G$156","v":35},null,{"$f":"CntyDataLinkPrior5YearEstimates!$BL$148","v":0},{"$f":"CntyDataLinkPrior5YearEstimates!$BM$148","v":11},{"$f":"CntyDataLinkPrior5YearEstimates!$CD$148","v":10},{"$f":"CntyDataLinkPrior5YearEstimates!$CE$148","v":16},{"$f":"CntyDataLinkPrior5YearEstimates!$CV$148","v":11},{"$f":"CntyDataLinkPrior5YearEstimates!$CW$148","v":18},{"$f":"CntyDataLinkPrior5YearEstimates!$DN$148","v":0},{"$f":"CntyDataLinkPrior5YearEstimates!$DO$148","v":11},{"$f":"CntyDataLinkPrior5YearEstimates!$EF$148","v":8},{"$f":"CntyDataLinkPrior5YearEstimates!$EG$148","v":14},{"$f":"CntyDataLinkPrior5YearEstimates!$EX$148","v":13},{"$f":"CntyDataLinkPrior5YearEstimates!$EY$148","v":17},{"$f":"CntyDataLinkPrior5YearEstimates!$FP$148","v":0},{"$f":"CntyDataLinkPrior5YearEstimates!$FQ$148","v":11}]
[null,null,null,"Rent 25% to 29.9% of HH Income",{"$f":"CntyDataLinkPrior5YearEstimates!$H$156","v":145},{"$f":"CntyDataLinkPrior5YearEstimates!$I$156","v":87},null,{"$f":"CntyDataLinkPrior5YearEstimates!$BN$148","v":0},{"$f":"CntyDataLinkPrior5YearEstimates!$BO$148","v":11},{"$f":"CntyDataLinkPrior5YearEstimates!$CF$148","v":17},{"$f":"CntyDataLinkPrior5YearEstimates!$CG$148","v":20},{"$f":"CntyDataLinkPrior5YearEstimates!$CX$148","v":9},{"$f":"CntyDataLinkPrior5YearEstimates!$CY$148","v":13},{"$f":"CntyDataLinkPrior5YearEstimates!$DP$148","v":0},{"$f":"CntyDataLinkPrior5YearEstimates!$DQ$148","v":11},{"$f":"CntyDataLinkPrior5YearEstimates!$EH$148","v":0},{"$f":"CntyDataLinkPrior5YearEstimates!$EI$148","v":11},{"$f":"CntyDataLinkPrior5YearEstimates!$EZ$148","v":14},{"$f":"CntyDataLinkPrior5YearEstimates!$FA$148","v":15},{"$f":"CntyDataLinkPrior5YearEstimates!$FR$148","v":0},{"$f":"CntyDataLinkPrior5YearEstimates!$FS$148","v":11}]
[null,null,null,"Rent Less Than 30% of HH Income",{"$f":"CntyDataLinkPrior5YearEstimates!$J$156","v":42},{"$f":"CntyDataLinkPrior5YearEstimates!$K$156","v":32},null,{"$f":"SUM(H53:H55)","v":0},{"$f":"SQRT((I53^2)+(I54^2)+(I55^2))","v":19.05255888325765},{"$f":"SUM(J53:J55)","v":55},{"$f":"SQRT((K53^2)+(K54^2)+(K55^2))","v":50.049975024968795},{"$f":"SUM(L53:L55)","v":47},{"$f":"SQRT((M53^2)+(M54^2)+(M55^2))","v":47.507894080878813},{"$f":"SUM(N53:N55)","v":0},{"$f":"SQRT((O53^2)+(O54^2)+(O55^2))","v":19.05255888325765},{"$f":"SUM(P53:P55)","v":63},{"$f":"SQRT((Q53^2)+(Q54^2)+(Q55^2))","v":44.698993277254019},{"$f":"SUM(R53:R55)","v":34},{"$f":"SQRT((S53^2)+(S54^2)+(S55^2))","v":26.134268690743959},{"$f":"SUM(T53:T55)","v":60},{"$f":"SQRT((U53^2)+(U54^2)+(U55^2))","v":51.410115736107812}]
[null,null,null,"Rent 30% or More of HH Income",{"$f":"CntyDataLinkPrior5YearEstimates!$L$156","v":40},{"$f":"CntyDataLinkPrior5YearEstimates!$M$156","v":28},null,{"$f":"H60+H58","v":16},{"$f":"SQRT((I58^2)+(I60^2))","v":27.622454633866266},{"$f":"J60+J58","v":93},{"$f":"SQRT((K58^2)+(K60^2))","v":78.351770879795694},{"$f":"L60+L58","v":51},{"$f":"SQRT((M58^2)+(M60^2))","v":33.421549934136806},{"$f":"N60+N58","v":0},{"$f":"SQRT((O58^2)+(O60^2))","v":22},30,{"$f":"SQRT((Q58^2)+(Q60^2))","v":40.730823708832602},{"$f":"R60+R58","v":0},{"$f":"SQRT((S58^2)+(S60^2))","v":22},0,{"$f":"SQRT((U58^2)+(U60^2))","v":22}]
[null,null,null,"Rent 30% to 34.9% of HH Income",{"$f":"CntyDataLinkPrior5YearEstimates!$N$156","v":47},{"$f":"CntyDataLinkPrior5YearEstimates!$O$156","v":41},null,{"$f":"CntyDataLinkPrior5YearEstimates!$BP$148","v":0},{"$f":"CntyDataLinkPrior5YearEstimates!$BQ$148","v":11},{"$f":"CntyDataLinkPrior5YearEstimates!$CH$148","v":0},{"$f":"CntyDataLinkPrior5YearEstimates!$CI$148","v":11},{"$f":"CntyDataLinkPrior5YearEstimates!$CZ$148","v":17},{"$f":"CntyDataLinkPrior5YearEstimates!$DA$148","v":20},{"$f":"CntyDataLinkPrior5YearEstimates!$DR$148","v":0},{"$f":"CntyDataLinkPrior5YearEstimates!$DS$148","v":11},{"$f":"CntyDataLinkPrior5YearEstimates!$EJ$148","v":30},{"$f":"CntyDataLinkPrior5YearEstimates!$EK$148","v":36},{"$f":"CntyDataLinkPrior5YearEstimates!$FB$148","v":0},{"$f":"CntyDataLinkPrior5YearEstimates!$FC$148","v":11},{"$f":"CntyDataLinkPrior5YearEstimates!$FT$148","v":0},{"$f":"CntyDataLinkPrior5YearEstimates!$FU$148","v":11}]
[null,null,null,"Rent Less Than 35% of HH Income",{"$f":"CntyDataLinkPrior5YearEstimates!$P$156","v":9},{"$f":"CntyDataLinkPrior5YearEstimates!$Q$156","v":14},null,{"$f":"SUM(H56,H58)","v":0},{"$f":"SQRT((I56^2)+(I58^2))","v":22},{"$f":"SUM(J56,J58)","v":55},{"$f":"SQRT((K56^2)+(K58^2))","v":51.244511901275828},{"$f":"SUM(L56,L58)","v":64},{"$f":"SQRT((M56^2)+(M58^2))","v":51.546095875439491},0,30.05255888325765,93,{"$f":"SQRT((Q58^2)+(Q56^2))","v":57.393379409126972},{"$f":"SUM(R56,R58)","v":34},{"$f":"SQRT((S58^2)+(S56^2))","v":28.354893757515647},60,{"$f":"SQRT((U58^2)+(U56^2))","v":52.57375771237966}]
[null,null,null,"Rent 35% or More of HH Income",{"$f":"CntyDataLinkPrior5YearEstimates!$R$156","v":25},{"$f":"CntyDataLinkPrior5YearEstimates!$S$156","v":20},null,{"$f":"CntyDataLinkPrior5YearEstimates!$BR$148+CntyDataLinkPrior5YearEstimates!$BT$148+CntyDataLinkPrior5YearEstimates!$BV$148","v":16},{"$f":"SQRT((CntyDataLinkPrior5YearEstimates!$BS$148^2)+(CntyDataLinkPrior5YearEstimates!$BU$148^2)+(CntyDataLinkPrior5YearEstimates!$BW$148^2))","v":25.337718918639855},{"$f":"CntyDataLinkPrior5YearEstimates!$CJ$148+CntyDataLinkPrior5YearEstimates!$CL$148+CntyDataLinkPrior5YearEstimates!$CN$148","v":93},{"$f":"SQRT((CntyDataLinkPrior5YearEstimates!$CK$148^2)+(CntyDataLinkPrior5YearEstimates!$CM$148^2)+(CntyDataLinkPrior5YearEstimates!$CO$148^2))","v":77.575769412877889},{"$f":"CntyDataLinkPrior5YearEstimates!$DB$148+CntyDataLinkPrior5YearEstimates!$DD$148+CntyDataLinkPrior5YearEstimates!$DF$148","v":34},{"$f":"SQRT((CntyDataLinkPrior5YearEstimates!$DC$148^2)+(CntyDataLinkPrior5YearEstimates!$DE$148^2)+(CntyDataLinkPrior5YearEstimates!$DG$148^2))","v":26.776855677991769},{"$f":"CntyDataLinkPrior5YearEstimates!$DT$148+CntyDataLinkPrior5YearEstimates!$DV$148+CntyDataLinkPrior5YearEstimates!$DX$148","v":0},{"$f":"SQRT((CntyDataLinkPrior5YearEstimates!$DU$148^2)+(CntyDataLinkPrior5YearEstimates!$DW$148^2)+(CntyDataLinkPrior5YearEstimates!$DY$148^2))","v":19.05255888325765},{"$f":"CntyDataLinkPrior5YearEstimates!$EL$148+CntyDataLinkPrior5YearEstimates!$EN$148+CntyDataLinkPrior5YearEstimates!$EP$148","v":0},{"$f":"SQRT((CntyDataLinkPrior5YearEstimates!$EM$148^2)+(CntyDataLinkPrior5YearEstimates!$EO$148^2)+(CntyDataLinkPrior5YearEstimates!$EQ$148^2))","v":19.05255888325765},{"$f":"CntyDataLinkPrior5YearEstimates!$FD$148+CntyDataLinkPrior5YearEstimates!$FF$148+CntyDataLinkPrior5YearEstimates!$FH$148","v":0},{"$f":"SQRT((CntyDataLinkPrior5YearEstimates!$FE$148^2)+(CntyDataLinkPrior5YearEstimates!$FG$148^2)+(CntyDataLinkPrior5YearEstimates!$FI$148^2))","v":19.05255888325765},{"$f":"CntyDataLinkPrior5YearEstimates!$FV$148+CntyDataLinkPrior5YearEstimates!$FX$148+CntyDataLinkPrior5YearEstimates!$FZ$148","v":0},{"$f":"SQRT((CntyDataLinkPrior5YearEstimates!$FW$148^2)+(CntyDataLinkPrior5YearEstimates!$FY$148^2)+(CntyDataLinkPrior5YearEstimates!$GA$148^2))","v":19.05255888325765}]
[null,null,null,"Rent 50% or More of HH Income",{"$f":"CntyDataLinkPrior5YearEstimates!$T$156","v":109},{"$f":"CntyDataLinkPrior5YearEstimates!$U$156","v":77},null,{"$f":"CntyDataLinkPrior5YearEstimates!$BV$148","v":16},{"$f":"CntyDataLinkPrior5YearEstimates!$BW$148","v":20},{"$f":"CntyDataLinkPrior5YearEstimates!$CN$148","v":93},{"$f":"CntyDataLinkPrior5YearEstimates!$CO$148","v":76},{"$f":"CntyDataLinkPrior5YearEstimates!$DF$148","v":0},{"$f":"CntyDataLinkPrior5YearEstimates!$DG$148","v":11},{"$f":"CntyDataLinkPrior5YearEstimates!$DX$148","v":0},{"$f":"CntyDataLinkPrior5YearEstimates!$DY$148","v":11},{"$f":"CntyDataLinkPrior5YearEstimates!$EP$148","v":0},{"$f":"CntyDataLinkPrior5YearEstimates!$EQ$148","v":11},{"$f":"CntyDataLinkPrior5YearEstimates!$FH$148","v":0},{"$f":"CntyDataLinkPrior5YearEstimates!$FI$148","v":11},{"$f":"CntyDataLinkPrior5YearEstimates!$FZ$148","v":0},{"$f":"CntyDataLinkPrior5YearEstimates!$GA$148","v":11}]
[null,null,null,"Percent not computed",{"$f":"CntyDataLinkPrior5YearEstimates!$V$156","v":18},{"$f":"CntyDataLinkPrior5YearEstimates!$W$156","v":20},null,{"$f":"CntyDataLinkPrior5YearEstimates!$BX$148","v":0},{"$f":"CntyDataLinkPrior5YearEstimates!$BY$148","v":11},{"$f":"CntyDataLinkPrior5YearEstimates!$CP$148","v":0},{"$f":"CntyDataLinkPrior5YearEstimates!$CQ$148","v":11},{"$f":"CntyDataLinkPrior5YearEstimates!$DH$148","v":0},{"$f":"CntyDataLinkPrior5YearEstimates!$DI$148","v":11},{"$f":"CntyDataLinkPrior5YearEstimates!$DZ$148","v":8},{"$f":"CntyDataLinkPrior5YearEstimates!$EA$148","v":13},{"$f":"CntyDataLinkPrior5YearEstimates!$ER$148","v":0},{"$f":"CntyDataLinkPrior5YearEstimates!$ES$148","v":11},{"$f":"CntyDataLinkPrior5YearEstimates!$FJ$148","v":10},{"$f":"CntyDataLinkPrior5YearEstimates!$FK$148","v":15},{"$f":"CntyDataLinkPrior5YearEstimates!$GB$148","v":0},{"$f":"CntyDataLinkPrior5YearEstimates!$GC148","v":11}]
[]
[]
[null,null,null,"Percent of Households Paying ",null,null,null,"By Household Income"]
[null,null,null,{"$f":"D56","v":"Rent Less Than 30% of HH Income"},{"$f":"E56/E$52","v":8.9935760171306209E-2},null,null,{"$f":"H56/H$52","v":0},null,{"$f":"J56/J$52","v":0.3716216216216216},null,{"$f":"L56/L$52","v":0.47959183673469385},null,{"$f":"N56/N$52","v":0},null,{"$f":"P56/P$52","v":0.67741935483870963},null,{"$f":"R56/R$52","v":0.77272727272727271},null,{"$f":"T56/T$52","v":1}]
[null,null,null,{"$f":"D57","v":"Rent 30% or More of HH Income"},{"$f":"E57/E$52","v":8.5653104925053528E-2},null,null,{"$f":"H57/H$52","v":1},null,{"$f":"J57/J$52","v":0.6283783783783784},null,{"$f":"L57/L$52","v":0.52040816326530615},null,{"$f":"N57/N$52","v":0},null,{"$f":"P57/P$52","v":0.32258064516129031},null,{"$f":"R57/R$52","v":0},null,{"$f":"T57/T$52","v":0}]
[null,null,null,{"$f":"D59","v":"Rent Less Than 35% of HH Income"},{"$f":"E59/E$52","v":1.9271948608137045E-2},null,null,{"$f":"H59/H$52","v":0},null,{"$f":"J59/J$52","v":0.3716216216216216},null,{"$f":"L59/L$52","v":0.65306122448979587},null,{"$f":"N59/N$52","v":0},null,{"$f":"P59/P$52","v":1},null,{"$f":"R59/R$52","v":0.77272727272727271},null,{"$f":"T59/T$52","v":1}]
[null,null,null,{"$f":"D60","v":"Rent 35% or More of HH Income"},{"$f":"E60/E$52","v":5.353319057815846E-2},null,null,{"$f":"H60/H$52","v":1},null,{"$f":"J60/J$52","v":0.6283783783783784},null,{"$f":"L60/L$52","v":0.34693877551020408},null,{"$f":"N60/N$52","v":0},null,{"$f":"P60/P$52","v":0},null,{"$f":"R60/R$52","v":0},null,{"$f":"T60/T$52","v":0}]
[null,null,null,"Percent not computed",{"$f":"E61/E$52","v":0.23340471092077089},null,null,{"$f":"H61/H$52","v":1},null,{"$f":"J61/J$52","v":0.6283783783783784},null,{"$f":"L61/L$52","v":0},null,{"$f":"N61/N$52","v":0},null,{"$f":"P61/P$52","v":0},null,{"$f":"R61/R$52","v":0},null,{"$f":"T61/T$52","v":0}]
[]
[]
[null,null,null,"Source:  2013-2017 American Community Survey Table B25070; B25074"]
[]
[null,null,null,{"$f":"D41","v":"Income in 20176 Inflation Adjusted Dollars"}]
[null,null,null,"Data from the American Community Survey are estimates"]
[]
[]
[]
[null,null,null,{"$f":"CntyDataLinkPrior5YearEstimates!A70","v":"Allenstown"}]
[null,null,null,{"$f":"D4","v":"RENTAL HOUSING COST CHARACTERISTICS"}]
[]
[null,null,null,"Rental Housing Costs"]
[]
[null,null,null,"Renter Occupied Housing Units By Gross Rent "]
[]
[null,null,null,null,"Units","Margin of Error"]
[null,null,{"$f":"CntyDataLinkPrior5YearEstimates!E$69","v":0},"Specified Renter Occ Housing Units",{"$f":"CntyDataLinkPrior5YearEstimates!$B$148","v":506},{"$f":"CntyDataLinkPrior5YearEstimates!$C$148","v":105}]
[null,null,{"$f":"CntyDataLinkPrior5YearEstimates!F$69","v":0},"Renter Occ. Housing Units w/ Cash Rent",{"$f":"CntyDataLinkPrior5YearEstimates!$D$148","v":496},{"$f":"CntyDataLinkPrior5YearEstimates!$E$148","v":108}]
[]
[null,null,{"$f":"CntyDataLinkPrior5YearEstimates!G$69","v":0},"Gross Rent","Units","Margin of Error 2018-2022"]
[null,null,{"$f":"CntyDataLinkPrior5YearEstimates!H$69","v":0},"Less than $100",{"$f":"CntyDataLinkPrior5YearEstimates!$F$148","v":0},{"$f":"CntyDataLinkPrior5YearEstimates!$G$148","v":11}]
[null,null,{"$f":"CntyDataLinkPrior5YearEstimates!I$69","v":0},"$100 to $149",{"$f":"CntyDataLinkPrior5YearEstimates!$H$148","v":0},{"$f":"CntyDataLinkPrior5YearEstimates!$I$148","v":11}]
[null,null,{"$f":"CntyDataLinkPrior5YearEstimates!J$69","v":0},"$150 to $199",{"$f":"CntyDataLinkPrior5YearEstimates!J$148","v":29},{"$f":"CntyDataLinkPrior5YearEstimates!$K$148","v":45}]
[null,null,{"$f":"CntyDataLinkPrior5YearEstimates!K$69","v":0},"$200 to $249",{"$f":"CntyDataLinkPrior5YearEstimates!$L$148","v":0},{"$f":"CntyDataLinkPrior5YearEstimates!$M$148","v":11}]
[null,null,{"$f":"CntyDataLinkPrior5YearEstimates!L$69","v":0},"$250 to $299",{"$f":"CntyDataLinkPrior5YearEstimates!$N$148","v":22},{"$f":"CntyDataLinkPrior5YearEstimates!$O$148","v":20}]
[null,null,{"$f":"CntyDataLinkPrior5YearEstimates!M$69","v":0},"$300 to $349",{"$f":"CntyDataLinkPrior5YearEstimates!$P$148","v":11},{"$f":"CntyDataLinkPrior5YearEstimates!$Q$148","v":17}]
[null,null,{"$f":"CntyDataLinkPrior5YearEstimates!N$69","v":0},"$350 to $399",{"$f":"CntyDataLinkPrior5YearEstimates!$R$148","v":31},{"$f":"CntyDataLinkPrior5YearEstimates!$S$148","v":50}]
[null,null,{"$f":"CntyDataLinkPrior5YearEstimates!O$69","v":0},"$400 to $449",{"$f":"CntyDataLinkPrior5YearEstimates!$T$148","v":8},{"$f":"CntyDataLinkPrior5YearEstimates!$U$148","v":13}]
[null,null,{"$f":"CntyDataLinkPrior5YearEstimates!P$69","v":0},"$450 to $499",{"$f":"CntyDataLinkPrior5YearEstimates!$V$148","v":0},{"$f":"CntyDataLinkPrior5YearEstimates!$W$148","v":11}]
[null,null,{"$f":"CntyDataLinkPrior5YearEstimates!Q$69","v":0},"$500 to $549",{"$f":"CntyDataLinkPrior5YearEstimates!$X$148","v":11},{"$f":"CntyDataLinkPrior5YearEstimates!$Y$148","v":17}]
[null,null,{"$f":"CntyDataLinkPrior5YearEstimates!R$69","v":0},"$550 to $599",{"$f":"CntyDataLinkPrior5YearEstimates!$Z$148","v":0},{"$f":"CntyDataLinkPrior5YearEstimates!$AA$148","v":11}]
[null,null,{"$f":"CntyDataLinkPrior5YearEstimates!S$69","v":0},"$600 to $649",{"$f":"CntyDataLinkPrior5YearEstimates!$AB$148","v":23},{"$f":"CntyDataLinkPrior5YearEstimates!$AC$148","v":28}]
[null,null,{"$f":"CntyDataLinkPrior5YearEstimates!T$69","v":0},"$650 to $699",{"$f":"CntyDataLinkPrior5YearEstimates!$AD$148","v":9},{"$f":"CntyDataLinkPrior5YearEstimates!$AE$148","v":16}]
[null,null,{"$f":"CntyDataLinkPrior5YearEstimates!U$69","v":0},"$700 to $749",{"$f":"CntyDataLinkPrior5YearEstimates!$AF$148","v":32},{"$f":"CntyDataLinkPrior5YearEstimates!$AG$148","v":51}]
[null,null,{"$f":"CntyDataLinkPrior5YearEstimates!V$69","v":0},"$750 to $799",{"$f":"CntyDataLinkPrior5YearEstimates!$AH$148","v":55},{"$f":"CntyDataLinkPrior5YearEstimates!$AI$148","v":51}]
[null,null,{"$f":"CntyDataLinkPrior5YearEstimates!W$69","v":0},"$800 to $899",{"$f":"CntyDataLinkPrior5YearEstimates!$AJ$148","v":25},{"$f":"CntyDataLinkPrior5YearEstimates!$AK$148","v":23}]
[null,null,{"$f":"CntyDataLinkPrior5YearEstimates!X$69","v":0},"$900 to $999",{"$f":"CntyDataLinkPrior5YearEstimates!$AL$148","v":53},{"$f":"CntyDataLinkPrior5YearEstimates!$AM$148","v":38}]
[null,null,{"$f":"CntyDataLinkPrior5YearEstimates!Y$69","v":0},"$1000 to $1249",{"$f":"CntyDataLinkPrior5YearEstimates!$AN$148","v":71},{"$f":"CntyDataLinkPrior5YearEstimates!$AO$148","v":58}]
[null,null,{"$f":"CntyDataLinkPrior5YearEstimates!Z$69","v":0},"$1250 to $1499",{"$f":"CntyDataLinkPrior5YearEstimates!$AP$148","v":71},{"$f":"CntyDataLinkPrior5YearEstimates!$AQ$148","v":58}]
[null,null,{"$f":"CntyDataLinkPrior5YearEstimates!AA$69","v":0},"$1500 to $1999",{"$f":"CntyDataLinkPrior5YearEstimates!$AR$148","v":45},{"$f":"CntyDataLinkPrior5YearEstimates!$AS$148","v":36}]
[null,null,{"$f":"CntyDataLinkPrior5YearEstimates!AB$69","v":0},"$2,000 to $2,499",{"$f":"CntyDataLinkPrior5YearEstimates!$AT$148","v":0},{"$f":"CntyDataLinkPrior5YearEstimates!$AU$148","v":11}]
[null,null,{"$f":"CntyDataLinkPrior5YearEstimates!AC$69","v":0},"$2,500 to $2,999",{"$f":"CntyDataLinkPrior5YearEstimates!$AV$148","v":0},{"$f":"CntyDataLinkPrior5YearEstimates!$AW$148","v":11}]
[null,null,null,"$3,000 to $3,499",{"$f":"CntyDataLinkPrior5YearEstimates!$AX$148","v":0},{"$f":"CntyDataLinkPrior5YearEstimates!$AY$148","v":11}]
[null,null,null,"$3,500 or more",{"$f":"CntyDataLinkPrior5YearEstimates!$AZ$148","v":0},{"$f":"CntyDataLinkPrior5YearEstimates!$BA$148","v":11}]
[null,null,null,"Renter Occ. Housing Units w/ No Cash Rent",{"$f":"CntyDataLinkPrior5YearEstimates!$BB$148","v":10},{"$f":"CntyDataLinkPrior5YearEstimates!$BC$148","v":17}]
[]
[null,null,null,"Median Gross Rent",{"$f":"CntyDataLinkPrior5YearEstimates!$BD$148","v":868},{"$f":"CntyDataLinkPrior5YearEstimates!$BE$148","v":195}]
[]
[]
[]
[]
[null,null,null,"Source: 2013-2017 American Community Survey Table B25063; B25064"]
[null,null,null,"Data from the American Community Survey are estimates"]

{"sheet":"RentalHousingCost-Prior10Yr","index":56,"n_rows":124,"n_cols":21,"rows_kept":124,"cut":false,"hidden":true,"merged":[]}
[]
[null,null,"HIDE THIS COLUMN",{"$f":"CntyDataLink!A70","v":"Allenstown"}]
["DropDownList!B47"]
[null,null,null,"RENTAL HOUSING COST CHARACTERISTICS"]
[]
[]
[]
[]
[]
[]
[]
[]
[]
[]
[]
[]
[]
[]
[]
[]
[]
[]
[]
[]
[]
[]
[]
[]
[]
[]
[]
[]
[]
[]
[]
[]
[]
[]
[null,null,null,"Source:  2008-2012 American Community Survey Table B25074"]
[]
[null,null,null,"Income in 2012 Inflation Adjusted Dollars"]
[null,null,null,"Data from the American Community Survey are estimates"]
[null,null,null,{"$f":"CntyDataLinkPrior5YearEstimates!A120","v":"Allenstown"}]
[]
[null,null,null,{"$f":"D4","v":"RENTAL HOUSING COST CHARACTERISTICS"}]
[]
[null,null,null,"Renter Households by "]
[null,null,null,"Gross Rent as a Percent of 2012 Household Income"]
[null,null,null,null,null,null,"By Household Income"]
[null,null,{"$f":"CntyDataLinkPrior5YearEstimates!AO$69","v":0},null,"Specified Renter Occ Housing Units",{"$f":"\"Margin of Error Renter Occupied Units\"","v":"Margin of Error Renter Occupied Units"},null,"Less than $10,000",{"$f":"\"Margin of Error \"&H50","v":"Margin of Error Less than $10,000"},"$10,000 to $19,999",{"$f":"\"Margin of Error \"&J50","v":"Margin of Error $10,000 to $19,999"},"$20,000 to $34,999",{"$f":"\"Margin of Error \"&L50","v":"Margin of Error $20,000 to $34,999"},"$35,000 to $49,999",{"$f":"\"Margin of Error \"&N50","v":"Margin of Error $35,000 to $49,999"},"$50,000 to $74,999",{"$f":"\"Margin of Error \"&P50","v":"Margin of Error $50,000 to $74,999"},"$75,000 to $99,999",{"$f":"\"Margin of Error \"&R50","v":"Margin of Error $75,000 to $99,999"},"$100,000 or More",{"$f":"\"Margin of Error \"&T50","v":"Margin of Error $100,000 or More"}]
[]
[null,null,null,"All Renter Households",{"$f":"CntyDataLinkPrior5YearEstimates!$B$156","v":467},{"$f":"CntyDataLinkPrior5YearEstimates!$C$156","v":107},null,{"$f":"CntyDataLinkPrior5YearEstimates!$BH$148","v":16},{"$f":"CntyDataLinkPrior5YearEstimates!$BI$148","v":20},{"$f":"CntyDataLinkPrior5YearEstimates!$BZ$148","v":148},{"$f":"CntyDataLinkPrior5YearEstimates!$CA$148","v":84},{"$f":"CntyDataLinkPrior5YearEstimates!$CR$148","v":98},{"$f":"CntyDataLinkPrior5YearEstimates!$CS$148","v":56},{"$f":"CntyDataLinkPrior5YearEstimates!$DJ$148","v":8},{"$f":"CntyDataLinkPrior5YearEstimates!$DK$148","v":13},{"$f":"CntyDataLinkPrior5YearEstimates!$EB$148","v":93},{"$f":"CntyDataLinkPrior5YearEstimates!$EC$148","v":54},{"$f":"CntyDataLinkPrior5YearEstimates!$ET$148","v":44},{"$f":"CntyDataLinkPrior5YearEstimates!$EU$148","v":32},{"$f":"CntyDataLinkPrior5YearEstimates!$FL$148","v":60},{"$f":"CntyDataLinkPrior5YearEstimates!$FM$148","v":49}]
[null,null,null,"Rent Less than 20% of HH Income",{"$f":"CntyDataLinkPrior5YearEstimates!$D$156","v":10},{"$f":"CntyDataLinkPrior5YearEstimates!$E$156","v":15},null,{"$f":"CntyDataLinkPrior5YearEstimates!$BJ$148","v":0},{"$f":"CntyDataLinkPrior5YearEstimates!$BK$148","v":11},{"$f":"CntyDataLinkPrior5YearEstimates!$CB$148","v":28},{"$f":"CntyDataLinkPrior5YearEstimates!$CC$148","v":43},{"$f":"CntyDataLinkPrior5YearEstimates!$CT$148","v":27},{"$f":"CntyDataLinkPrior5YearEstimates!$CU$148","v":42},{"$f":"CntyDataLinkPrior5YearEstimates!$DL$148","v":0},{"$f":"CntyDataLinkPrior5YearEstimates!$DM$148","v":11},{"$f":"CntyDataLinkPrior5YearEstimates!$ED$148","v":55},{"$f":"CntyDataLinkPrior5YearEstimates!$EE$148","v":41},{"$f":"CntyDataLinkPrior5YearEstimates!$EV$148","v":7},{"$f":"CntyDataLinkPrior5YearEstimates!$EW$148","v":13},{"$f":"CntyDataLinkPrior5YearEstimates!$FN$148","v":60},{"$f":"CntyDataLinkPrior5YearEstimates!$FO$148","v":49}]
[null,null,null,"Rent 20% to 24.9% of HH Income",{"$f":"CntyDataLinkPrior5YearEstimates!$F$156","v":22},{"$f":"CntyDataLinkPrior5YearEstimates!$G$156","v":35},null,{"$f":"CntyDataLinkPrior5YearEstimates!$BL$148","v":0},{"$f":"CntyDataLinkPrior5YearEstimates!$BM$148","v":11},{"$f":"CntyDataLinkPrior5YearEstimates!$CD$148","v":10},{"$f":"CntyDataLinkPrior5YearEstimates!$CE$148","v":16},{"$f":"CntyDataLinkPrior5YearEstimates!$CV$148","v":11},{"$f":"CntyDataLinkPrior5YearEstimates!$CW$148","v":18},{"$f":"CntyDataLinkPrior5YearEstimates!$DN$148","v":0},{"$f":"CntyDataLinkPrior5YearEstimates!$DO$148","v":11},{"$f":"CntyDataLinkPrior5YearEstimates!$EF$148","v":8},{"$f":"CntyDataLinkPrior5YearEstimates!$EG$148","v":14},{"$f":"CntyDataLinkPrior5YearEstimates!$EX$148","v":13},{"$f":"CntyDataLinkPrior5YearEstimates!$EY$148","v":17},{"$f":"CntyDataLinkPrior5YearEstimates!$FP$148","v":0},{"$f":"CntyDataLinkPrior5YearEstimates!$FQ$148","v":11}]
[null,null,null,"Rent 25% to 29.9% of HH Income",{"$f":"CntyDataLinkPrior5YearEstimates!$H$156","v":145},{"$f":"CntyDataLinkPrior5YearEstimates!$I$156","v":87},null,{"$f":"CntyDataLinkPrior5YearEstimates!$BN$148","v":0},{"$f":"CntyDataLinkPrior5YearEstimates!$BO$148","v":11},{"$f":"CntyDataLinkPrior5YearEstimates!$CF$148","v":17},{"$f":"CntyDataLinkPrior5YearEstimates!$CG$148","v":20},{"$f":"CntyDataLinkPrior5YearEstimates!$CX$148","v":9},{"$f":"CntyDataLinkPrior5YearEstimates!$CY$148","v":13},{"$f":"CntyDataLinkPrior5YearEstimates!$DP$148","v":0},{"$f":"CntyDataLinkPrior5YearEstimates!$DQ$148","v":11},{"$f":"CntyDataLinkPrior5YearEstimates!$EH$148","v":0},{"$f":"CntyDataLinkPrior5YearEstimates!$EI$148","v":11},{"$f":"CntyDataLinkPrior5YearEstimates!$EZ$148","v":14},{"$f":"CntyDataLinkPrior5YearEstimates!$FA$148","v":15},{"$f":"CntyDataLinkPrior5YearEstimates!$FR$148","v":0},{"$f":"CntyDataLinkPrior5YearEstimates!$FS$148","v":11}]
[null,null,null,"Rent Less Than 30% of HH Income",{"$f":"CntyDataLinkPrior5YearEstimates!$J$156","v":42},{"$f":"CntyDataLinkPrior5YearEstimates!$K$156","v":32},null,{"$f":"SUM(H53:H55)","v":0},{"$f":"SQRT((I53^2)+(I54^2)+(I55^2))","v":19.05255888325765},{"$f":"SUM(J53:J55)","v":55},{"$f":"SQRT((K53^2)+(K54^2)+(K55^2))","v":50.049975024968795},{"$f":"SUM(L53:L55)","v":47},{"$f":"SQRT((M53^2)+(M54^2)+(M55^2))","v":47.507894080878813},{"$f":"SUM(N53:N55)","v":0},{"$f":"SQRT((O53^2)+(O54^2)+(O55^2))","v":19.05255888325765},{"$f":"SUM(P53:P55)","v":63},{"$f":"SQRT((Q53^2)+(Q54^2)+(Q55^2))","v":44.698993277254019},{"$f":"SUM(R53:R55)","v":34},{"$f":"SQRT((S53^2)+(S54^2)+(S55^2))","v":26.134268690743959},{"$f":"SUM(T53:T55)","v":60},{"$f":"SQRT((U53^2)+(U54^2)+(U55^2))","v":51.410115736107812}]
[null,null,null,"Rent 30% or More of HH Income",{"$f":"CntyDataLinkPrior5YearEstimates!$L$156","v":40},{"$f":"CntyDataLinkPrior5YearEstimates!$M$156","v":28},null,{"$f":"H60+H58","v":16},{"$f":"SQRT((I58^2)+(I60^2))","v":27.622454633866266},{"$f":"J60+J58","v":93},{"$f":"SQRT((K58^2)+(K60^2))","v":78.351770879795694},{"$f":"L60+L58","v":51},{"$f":"SQRT((M58^2)+(M60^2))","v":33.421549934136806},{"$f":"N60+N58","v":0},{"$f":"SQRT((O58^2)+(O60^2))","v":22},30,{"$f":"SQRT((Q58^2)+(Q60^2))","v":40.730823708832602},{"$f":"R60+R58","v":0},{"$f":"SQRT((S58^2)+(S60^2))","v":22},0,{"$f":"SQRT((U58^2)+(U60^2))","v":22}]
[null,null,null,"Rent 30% to 34.9% of HH Income",{"$f":"CntyDataLinkPrior5YearEstimates!$N$156","v":47},{"$f":"CntyDataLinkPrior5YearEstimates!$O$156","v":41},null,{"$f":"CntyDataLinkPrior5YearEstimates!$BP$148","v":0},{"$f":"CntyDataLinkPrior5YearEstimates!$BQ$148","v":11},{"$f":"CntyDataLinkPrior5YearEstimates!$CH$148","v":0},{"$f":"CntyDataLinkPrior5YearEstimates!$CI$148","v":11},{"$f":"CntyDataLinkPrior5YearEstimates!$CZ$148","v":17},{"$f":"CntyDataLinkPrior5YearEstimates!$DA$148","v":20},{"$f":"CntyDataLinkPrior5YearEstimates!$DR$148","v":0},{"$f":"CntyDataLinkPrior5YearEstimates!$DS$148","v":11},{"$f":"CntyDataLinkPrior5YearEstimates!$EJ$148","v":30},{"$f":"CntyDataLinkPrior5YearEstimates!$EK$148","v":36},{"$f":"CntyDataLinkPrior5YearEstimates!$FB$148","v":0},{"$f":"CntyDataLinkPrior5YearEstimates!$FC$148","v":11},{"$f":"CntyDataLinkPrior5YearEstimates!$FT$148","v":0},{"$f":"CntyDataLinkPrior5YearEstimates!$FU$148","v":11}]
[null,null,null,"Rent Less Than 35% of HH Income",{"$f":"CntyDataLinkPrior5YearEstimates!$P$156","v":9},{"$f":"CntyDataLinkPrior5YearEstimates!$Q$156","v":14},null,{"$f":"SUM(H56,H58)","v":0},{"$f":"SQRT((I56^2)+(I58^2))","v":22},{"$f":"SUM(J56,J58)","v":55},{"$f":"SQRT((K56^2)+(K58^2))","v":51.244511901275828},{"$f":"SUM(L56,L58)","v":64},{"$f":"SQRT((M56^2)+(M58^2))","v":51.546095875439491},0,30.05255888325765,93,{"$f":"SQRT((Q58^2)+(Q56^2))","v":57.393379409126972},{"$f":"SUM(R56,R58)","v":34},{"$f":"SQRT((S58^2)+(S56^2))","v":28.354893757515647},60,{"$f":"SQRT((U58^2)+(U56^2))","v":52.57375771237966}]
[null,null,null,"Rent 35% or More of HH Income",{"$f":"CntyDataLinkPrior5YearEstimates!$R$156","v":25},{"$f":"CntyDataLinkPrior5YearEstimates!$S$156","v":20},null,{"$f":"CntyDataLinkPrior5YearEstimates!$BR$148+CntyDataLinkPrior5YearEstimates!$BT$148+CntyDataLinkPrior5YearEstimates!$BV$148","v":16},{"$f":"SQRT((CntyDataLinkPrior5YearEstimates!$BS$148^2)+(CntyDataLinkPrior5YearEstimates!$BU$148^2)+(CntyDataLinkPrior5YearEstimates!$BW$148^2))","v":25.337718918639855},{"$f":"CntyDataLinkPrior5YearEstimates!$CJ$148+CntyDataLinkPrior5YearEstimates!$CL$148+CntyDataLinkPrior5YearEstimates!$CN$148","v":93},{"$f":"SQRT((CntyDataLinkPrior5YearEstimates!$CK$148^2)+(CntyDataLinkPrior5YearEstimates!$CM$148^2)+(CntyDataLinkPrior5YearEstimates!$CO$148^2))","v":77.575769412877889},{"$f":"CntyDataLinkPrior5YearEstimates!$DB$148+CntyDataLinkPrior5YearEstimates!$DD$148+CntyDataLinkPrior5YearEstimates!$DF$148","v":34},{"$f":"SQRT((CntyDataLinkPrior5YearEstimates!$DC$148^2)+(CntyDataLinkPrior5YearEstimates!$DE$148^2)+(CntyDataLinkPrior5YearEstimates!$DG$148^2))","v":26.776855677991769},{"$f":"CntyDataLinkPrior5YearEstimates!$DT$148+CntyDataLinkPrior5YearEstimates!$DV$148+CntyDataLinkPrior5YearEstimates!$DX$148","v":0},{"$f":"SQRT((CntyDataLinkPrior5YearEstimates!$DU$148^2)+(CntyDataLinkPrior5YearEstimates!$DW$148^2)+(CntyDataLinkPrior5YearEstimates!$DY$148^2))","v":19.05255888325765},{"$f":"CntyDataLinkPrior5YearEstimates!$EL$148+CntyDataLinkPrior5YearEstimates!$EN$148+CntyDataLinkPrior5YearEstimates!$EP$148","v":0},{"$f":"SQRT((CntyDataLinkPrior5YearEstimates!$EM$148^2)+(CntyDataLinkPrior5YearEstimates!$EO$148^2)+(CntyDataLinkPrior5YearEstimates!$EQ$148^2))","v":19.05255888325765},{"$f":"CntyDataLinkPrior5YearEstimates!$FD$148+CntyDataLinkPrior5YearEstimates!$FF$148+CntyDataLinkPrior5YearEstimates!$FH$148","v":0},{"$f":"SQRT((CntyDataLinkPrior5YearEstimates!$FE$148^2)+(CntyDataLinkPrior5YearEstimates!$FG$148^2)+(CntyDataLinkPrior5YearEstimates!$FI$148^2))","v":19.05255888325765},{"$f":"CntyDataLinkPrior5YearEstimates!$FV$148+CntyDataLinkPrior5YearEstimates!$FX$148+CntyDataLinkPrior5YearEstimates!$FZ$148","v":0},{"$f":"SQRT((CntyDataLinkPrior5YearEstimates!$FW$148^2)+(CntyDataLinkPrior5YearEstimates!$FY$148^2)+(CntyDataLinkPrior5YearEstimates!$GA$148^2))","v":19.05255888325765}]
[null,null,null,"Rent 50% or More of HH Income",{"$f":"CntyDataLinkPrior5YearEstimates!$T$156","v":109},{"$f":"CntyDataLinkPrior5YearEstimates!$U$156","v":77},null,{"$f":"CntyDataLinkPrior5YearEstimates!$BV$148","v":16},{"$f":"CntyDataLinkPrior5YearEstimates!$BW$148","v":20},{"$f":"CntyDataLinkPrior5YearEstimates!$CN$148","v":93},{"$f":"CntyDataLinkPrior5YearEstimates!$CO$148","v":76},{"$f":"CntyDataLinkPrior5YearEstimates!$DF$148","v":0},{"$f":"CntyDataLinkPrior5YearEstimates!$DG$148","v":11},{"$f":"CntyDataLinkPrior5YearEstimates!$DX$148","v":0},{"$f":"CntyDataLinkPrior5YearEstimates!$DY$148","v":11},{"$f":"CntyDataLinkPrior5YearEstimates!$EP$148","v":0},{"$f":"CntyDataLinkPrior5YearEstimates!$EQ$148","v":11},{"$f":"CntyDataLinkPrior5YearEstimates!$FH$148","v":0},{"$f":"CntyDataLinkPrior5YearEstimates!$FI$148","v":11},{"$f":"CntyDataLinkPrior5YearEstimates!$FZ$148","v":0},{"$f":"CntyDataLinkPrior5YearEstimates!$GA$148","v":11}]
[null,null,null,"Percent not computed",{"$f":"CntyDataLinkPrior5YearEstimates!$V$156","v":18},{"$f":"CntyDataLinkPrior5YearEstimates!$W$156","v":20},null,{"$f":"CntyDataLinkPrior5YearEstimates!$BX$148","v":0},{"$f":"CntyDataLinkPrior5YearEstimates!$BY$148","v":11},{"$f":"CntyDataLinkPrior5YearEstimates!$CP$148","v":0},{"$f":"CntyDataLinkPrior5YearEstimates!$CQ$148","v":11},{"$f":"CntyDataLinkPrior5YearEstimates!$DH$148","v":0},{"$f":"CntyDataLinkPrior5YearEstimates!$DI$148","v":11},{"$f":"CntyDataLinkPrior5YearEstimates!$DZ$148","v":8},{"$f":"CntyDataLinkPrior5YearEstimates!$EA$148","v":13},{"$f":"CntyDataLinkPrior5YearEstimates!$ER$148","v":0},{"$f":"CntyDataLinkPrior5YearEstimates!$ES$148","v":11},{"$f":"CntyDataLinkPrior5YearEstimates!$FJ$148","v":10},{"$f":"CntyDataLinkPrior5YearEstimates!$FK$148","v":15},{"$f":"CntyDataLinkPrior5YearEstimates!$GB$148","v":0},{"$f":"CntyDataLinkPrior5YearEstimates!$GC148","v":11}]
[]
[]
[null,null,null,"Percent of Households Paying ",null,null,null,"By Household Income"]
[null,null,null,{"$f":"D56","v":"Rent Less Than 30% of HH Income"},{"$f":"E56/E$52","v":8.9935760171306209E-2},null,null,{"$f":"H56/H$52","v":0},null,{"$f":"J56/J$52","v":0.3716216216216216},null,{"$f":"L56/L$52","v":0.47959183673469385},null,{"$f":"N56/N$52","v":0},null,{"$f":"P56/P$52","v":0.67741935483870963},null,{"$f":"R56/R$52","v":0.77272727272727271},null,{"$f":"T56/T$52","v":1}]
[null,null,null,{"$f":"D57","v":"Rent 30% or More of HH Income"},{"$f":"E57/E$52","v":8.5653104925053528E-2},null,null,{"$f":"H57/H$52","v":1},null,{"$f":"J57/J$52","v":0.6283783783783784},null,{"$f":"L57/L$52","v":0.52040816326530615},null,{"$f":"N57/N$52","v":0},null,{"$f":"P57/P$52","v":0.32258064516129031},null,{"$f":"R57/R$52","v":0},null,{"$f":"T57/T$52","v":0}]
[null,null,null,{"$f":"D59","v":"Rent Less Than 35% of HH Income"},{"$f":"E59/E$52","v":1.9271948608137045E-2},null,null,{"$f":"H59/H$52","v":0},null,{"$f":"J59/J$52","v":0.3716216216216216},null,{"$f":"L59/L$52","v":0.65306122448979587},null,{"$f":"N59/N$52","v":0},null,{"$f":"P59/P$52","v":1},null,{"$f":"R59/R$52","v":0.77272727272727271},null,{"$f":"T59/T$52","v":1}]
[null,null,null,{"$f":"D60","v":"Rent 35% or More of HH Income"},{"$f":"E60/E$52","v":5.353319057815846E-2},null,null,{"$f":"H60/H$52","v":1},null,{"$f":"J60/J$52","v":0.6283783783783784},null,{"$f":"L60/L$52","v":0.34693877551020408},null,{"$f":"N60/N$52","v":0},null,{"$f":"P60/P$52","v":0},null,{"$f":"R60/R$52","v":0},null,{"$f":"T60/T$52","v":0}]
[null,null,null,"Percent not computed",{"$f":"E61/E$52","v":0.23340471092077089},null,null,{"$f":"H61/H$52","v":1},null,{"$f":"J61/J$52","v":0.6283783783783784},null,{"$f":"L61/L$52","v":0},null,{"$f":"N61/N$52","v":0},null,{"$f":"P61/P$52","v":0},null,{"$f":"R61/R$52","v":0},null,{"$f":"T61/T$52","v":0}]
[]
[]
[null,null,null,"Source:  2008-2012 American Community Survey Table B25070; B25074"]
[]
[null,null,null,{"$f":"D41","v":"Income in 2012 Inflation Adjusted Dollars"}]
[null,null,null,"Data from the American Community Survey are estimates"]
[]
[]
[]
[null,null,null,{"$f":"CntyDataLinkPrior5YearEstimates!A70","v":"Allenstown"}]
[null,null,null,{"$f":"D4","v":"RENTAL HOUSING COST CHARACTERISTICS"}]
[]
[null,null,null,"Rental Housing Costs"]
[]
[null,null,null,"Renter Occupied Housing Units By Gross Rent "]
[]
[null,null,null,null,"Units","Margin of Error"]
[null,null,{"$f":"CntyDataLinkPrior5YearEstimates!E$69","v":0},"Specified Renter Occ Housing Units",{"$f":"CntyDataLinkPrior5YearEstimates!$B$148","v":506},{"$f":"CntyDataLinkPrior5YearEstimates!$C$148","v":105}]
[null,null,{"$f":"CntyDataLinkPrior5YearEstimates!F$69","v":0},"Renter Occ. Housing Units w/ Cash Rent",{"$f":"CntyDataLinkPrior5YearEstimates!$D$148","v":496},{"$f":"CntyDataLinkPrior5YearEstimates!$E$148","v":108}]
[]
[null,null,{"$f":"CntyDataLinkPrior5YearEstimates!G$69","v":0},"Gross Rent","Units","Margin of Error 2018-2022"]
[null,null,{"$f":"CntyDataLinkPrior5YearEstimates!H$69","v":0},"Less than $100",{"$f":"CntyDataLinkPrior5YearEstimates!$F$148","v":0},{"$f":"CntyDataLinkPrior5YearEstimates!$G$148","v":11}]
[null,null,{"$f":"CntyDataLinkPrior5YearEstimates!I$69","v":0},"$100 to $149",{"$f":"CntyDataLinkPrior5YearEstimates!$H$148","v":0},{"$f":"CntyDataLinkPrior5YearEstimates!$I$148","v":11}]
[null,null,{"$f":"CntyDataLinkPrior5YearEstimates!J$69","v":0},"$150 to $199",{"$f":"CntyDataLinkPrior5YearEstimates!J$148","v":29},{"$f":"CntyDataLinkPrior5YearEstimates!$K$148","v":45}]
[null,null,{"$f":"CntyDataLinkPrior5YearEstimates!K$69","v":0},"$200 to $249",{"$f":"CntyDataLinkPrior5YearEstimates!$L$148","v":0},{"$f":"CntyDataLinkPrior5YearEstimates!$M$148","v":11}]
[null,null,{"$f":"CntyDataLinkPrior5YearEstimates!L$69","v":0},"$250 to $299",{"$f":"CntyDataLinkPrior5YearEstimates!$N$148","v":22},{"$f":"CntyDataLinkPrior5YearEstimates!$O$148","v":20}]
[null,null,{"$f":"CntyDataLinkPrior5YearEstimates!M$69","v":0},"$300 to $349",{"$f":"CntyDataLinkPrior5YearEstimates!$P$148","v":11},{"$f":"CntyDataLinkPrior5YearEstimates!$Q$148","v":17}]
[null,null,{"$f":"CntyDataLinkPrior5YearEstimates!N$69","v":0},"$350 to $399",{"$f":"CntyDataLinkPrior5YearEstimates!$R$148","v":31},{"$f":"CntyDataLinkPrior5YearEstimates!$S$148","v":50}]
[null,null,{"$f":"CntyDataLinkPrior5YearEstimates!O$69","v":0},"$400 to $449",{"$f":"CntyDataLinkPrior5YearEstimates!$T$148","v":8},{"$f":"CntyDataLinkPrior5YearEstimates!$U$148","v":13}]
[null,null,{"$f":"CntyDataLinkPrior5YearEstimates!P$69","v":0},"$450 to $499",{"$f":"CntyDataLinkPrior5YearEstimates!$V$148","v":0},{"$f":"CntyDataLinkPrior5YearEstimates!$W$148","v":11}]
[null,null,{"$f":"CntyDataLinkPrior5YearEstimates!Q$69","v":0},"$500 to $549",{"$f":"CntyDataLinkPrior5YearEstimates!$X$148","v":11},{"$f":"CntyDataLinkPrior5YearEstimates!$Y$148","v":17}]
[null,null,{"$f":"CntyDataLinkPrior5YearEstimates!R$69","v":0},"$550 to $599",{"$f":"CntyDataLinkPrior5YearEstimates!$Z$148","v":0},{"$f":"CntyDataLinkPrior5YearEstimates!$AA$148","v":11}]
[null,null,{"$f":"CntyDataLinkPrior5YearEstimates!S$69","v":0},"$600 to $649",{"$f":"CntyDataLinkPrior5YearEstimates!$AB$148","v":23},{"$f":"CntyDataLinkPrior5YearEstimates!$AC$148","v":28}]
[null,null,{"$f":"CntyDataLinkPrior5YearEstimates!T$69","v":0},"$650 to $699",{"$f":"CntyDataLinkPrior5YearEstimates!$AD$148","v":9},{"$f":"CntyDataLinkPrior5YearEstimates!$AE$148","v":16}]
[null,null,{"$f":"CntyDataLinkPrior5YearEstimates!U$69","v":0},"$700 to $749",{"$f":"CntyDataLinkPrior5YearEstimates!$AF$148","v":32},{"$f":"CntyDataLinkPrior5YearEstimates!$AG$148","v":51}]
[null,null,{"$f":"CntyDataLinkPrior5YearEstimates!V$69","v":0},"$750 to $799",{"$f":"CntyDataLinkPrior5YearEstimates!$AH$148","v":55},{"$f":"CntyDataLinkPrior5YearEstimates!$AI$148","v":51}]
[null,null,{"$f":"CntyDataLinkPrior5YearEstimates!W$69","v":0},"$800 to $899",{"$f":"CntyDataLinkPrior5YearEstimates!$AJ$148","v":25},{"$f":"CntyDataLinkPrior5YearEstimates!$AK$148","v":23}]
[null,null,{"$f":"CntyDataLinkPrior5YearEstimates!X$69","v":0},"$900 to $999",{"$f":"CntyDataLinkPrior5YearEstimates!$AL$148","v":53},{"$f":"CntyDataLinkPrior5YearEstimates!$AM$148","v":38}]
[null,null,{"$f":"CntyDataLinkPrior5YearEstimates!Y$69","v":0},"$1000 to $1249",{"$f":"CntyDataLinkPrior5YearEstimates!$AN$148","v":71},{"$f":"CntyDataLinkPrior5YearEstimates!$AO$148","v":58}]
[null,null,{"$f":"CntyDataLinkPrior5YearEstimates!Z$69","v":0},"$1250 to $1499",{"$f":"CntyDataLinkPrior5YearEstimates!$AP$148","v":71},{"$f":"CntyDataLinkPrior5YearEstimates!$AQ$148","v":58}]
[null,null,{"$f":"CntyDataLinkPrior5YearEstimates!AA$69","v":0},"$1500 to $1999",{"$f":"CntyDataLinkPrior5YearEstimates!$AR$148","v":45},{"$f":"CntyDataLinkPrior5YearEstimates!$AS$148","v":36}]
[null,null,{"$f":"CntyDataLinkPrior5YearEstimates!AB$69","v":0},"$2,000 to $2,499",{"$f":"CntyDataLinkPrior5YearEstimates!$AT$148","v":0},{"$f":"CntyDataLinkPrior5YearEstimates!$AU$148","v":11}]
[null,null,{"$f":"CntyDataLinkPrior5YearEstimates!AC$69","v":0},"$2,500 to $2,999",{"$f":"CntyDataLinkPrior5YearEstimates!$AV$148","v":0},{"$f":"CntyDataLinkPrior5YearEstimates!$AW$148","v":11}]
[null,null,null,"$3,000 to $3,499",{"$f":"CntyDataLinkPrior5YearEstimates!$AX$148","v":0},{"$f":"CntyDataLinkPrior5YearEstimates!$AY$148","v":11}]
[null,null,null,"$3,500 or more",{"$f":"CntyDataLinkPrior5YearEstimates!$AZ$148","v":0},{"$f":"CntyDataLinkPrior5YearEstimates!$BA$148","v":11}]
[null,null,null,"Renter Occ. Housing Units w/ No Cash Rent",{"$f":"CntyDataLinkPrior5YearEstimates!$BB$148","v":10},{"$f":"CntyDataLinkPrior5YearEstimates!$BC$148","v":17}]
[]
[null,null,null,"Median Gross Rent",{"$f":"CntyDataLinkPrior5YearEstimates!$BD$148","v":868},{"$f":"CntyDataLinkPrior5YearEstimates!$BE$148","v":195}]
[]
[]
[]
[]
[null,null,null,"Source: 2013-2017 American Community Survey Table B25063; B25064"]
[null,null,null,"Data from the American Community Survey are estimates"]

{"sheet":"ACS_Table_B25063_&_B25064","index":57,"n_rows":184,"n_cols":56,"rows_kept":184,"cut":false,"hidden":true,"merged":[]}
[null,"B25063. GROSS RENT"]
[null,"Universe:  RENTER-OCCUPIED HOUSING UNITS"]
["DropDownList!B47","Data Set: 2018-2022 American Community Survey 5-Year Estimates"]
[]
[null,null,"Allenstown",null,"Andover",null,"Boscawen",null,"Bow",null,"Bradford",null,"Canterbury",null,"Chichester",null,"Concord",null,"Danbury",null,"Dunbarton",null,"Epsom",null,"Franklin",null,"Henniker",null,"Hill",null,"Hooksett",null,"Hopkinton",null,"Loudon",null,"Newbury",null,"New London",null,"Northfield",null,"Pembroke",null,"Pittsfield",null,"Salisbury",null,"Sutton",null,"Warner",null,"Webster",null,"Wilmot"]
[null,null,"Estimate","Margin Of Error","Estimate","Margin Of Error","Estimate","Margin Of Error","Estimate","Margin Of Error","Estimate","Margin Of Error","Estimate","Margin Of Error","Estimate","Margin Of Error","Estimate","Margin Of Error","Estimate","Margin Of Error","Estimate","Margin Of Error","Estimate","Margin Of Error","Estimate","Margin Of Error","Estimate","Margin Of Error","Estimate","Margin Of Error","Estimate","Margin Of Error","Estimate","Margin Of Error","Estimate","Margin Of Error","Estimate","Margin Of Error","Estimate","Margin Of Error","Estimate","Margin Of Error","Estimate","Margin Of Error","Estimate","Margin Of Error","Estimate","Margin Of Error","Estimate","Margin Of Error","Estimate","Margin Of Error","Estimate","Margin Of Error","Estimate","Margin Of Error"]
[null,"Total:",373,153,84,44,324,94,265,91,68,35,55,36,72,45,7680,442,47,32,43,22,204,81,1409,255,852,272,20,20,1066,219,256,146,319,181,94,40,151,69,496,124,630,156,580,158,23,21,38,21,376,90,37,23,136,56]
[null,"With cash rent:",373,153,46,27,312,90,265,91,55,31,50,35,64,43,7614,440,36,26,39,23,196,80,1386,255,852,272,20,20,1050,217,199,115,319,181,66,33,129,66,463,129,611,154,547,161,23,21,26,18,339,89,28,20,133,57]
[null,"Less than $100",0,12,0,12,0,12,0,17,0,12,0,12,0,12,47,65,0,12,0,12,0,12,0,17,0,17,0,12,0,19,0,17,0,17,0,12,0,12,0,12,0,17,0,12,0,12,0,12,0,12,0,12,0,12]
[null,"$100 to $149",0,12,0,12,0,12,0,17,0,12,0,12,0,12,0,25,0,12,0,12,0,12,19,28,0,17,0,12,0,19,0,17,0,17,0,12,0,12,0,12,0,17,0,12,0,12,0,12,0,12,0,12,0,12]
[null,"$150 to $199",0,12,0,12,40,48,0,17,0,12,0,12,0,12,20,30,0,12,0,12,0,12,0,17,0,17,0,12,0,19,0,17,0,17,0,12,0,12,10,16,0,17,0,12,0,12,0,12,0,12,0,12,0,12]
[null,"$200 to $249",10,15,0,12,0,12,0,17,0,12,0,12,0,12,75,56,0,12,0,12,10,17,31,37,0,17,0,12,0,19,0,17,0,17,0,12,0,12,18,19,0,17,59,93,0,12,0,12,0,12,0,12,0,12]
[null,"$250 to $299",0,12,0,12,0,12,0,17,0,12,0,12,0,12,260,153,0,12,0,12,0,12,67,59,107,73,0,12,8,12,0,17,31,47,0,12,10,17,0,12,0,17,0,12,0,12,0,12,15,23,2,3,0,12]
[null,"$300 to $349",0,12,0,12,42,50,0,17,0,12,0,12,0,12,155,95,0,12,0,12,0,12,33,36,29,50,0,12,28,32,0,17,0,17,5,8,0,12,0,12,0,17,14,23,0,12,0,12,0,12,0,12,0,12]
[null,"$350 to $399",0,12,0,12,0,12,0,17,0,12,6,8,0,12,50,43,0,12,0,12,0,12,63,77,32,49,0,12,0,19,0,17,0,17,4,7,0,12,0,12,0,17,0,12,0,12,0,12,0,12,0,12,0,12]
[null,"$400 to $449",5,8,0,12,0,12,0,17,0,12,0,12,0,12,55,50,0,12,0,12,0,12,18,27,0,17,0,12,0,19,0,17,0,17,12,11,5,9,0,12,43,50,0,12,0,12,0,12,14,16,0,12,0,12]
[null,"$450 to $499",31,31,0,12,0,12,12,18,0,12,0,12,0,12,28,43,0,12,0,12,0,12,36,34,0,17,0,12,20,32,0,17,0,17,19,25,0,12,0,12,13,22,0,12,0,12,0,12,0,12,0,12,0,12]
[null,"$500 to $549",41,60,0,12,0,12,0,17,0,12,0,12,0,12,90,75,0,12,0,12,9,15,28,30,0,17,0,12,0,19,0,17,46,79,5,9,0,12,0,12,0,17,0,12,0,12,0,12,31,33,4,6,0,12]
[null,"$550 to $599",0,12,0,12,0,12,0,17,0,12,0,12,0,12,62,51,0,12,0,12,0,12,27,29,0,17,0,12,0,19,0,17,0,17,0,12,0,12,0,12,58,91,0,12,0,12,0,12,16,25,0,12,12,19]
[null,"$600 to $649",0,12,0,12,0,12,0,17,0,12,0,12,0,12,51,33,0,12,0,12,9,15,0,17,0,17,0,12,0,19,0,17,17,28,0,12,0,12,0,12,0,17,0,12,0,12,0,12,23,25,0,12,0,12]
[null,"$650 to $699",0,12,0,12,0,12,0,17,0,12,0,12,0,12,76,69,0,12,0,12,0,12,9,14,0,17,0,12,36,38,0,17,14,25,0,12,0,12,0,12,19,31,0,12,0,12,0,12,0,12,0,12,3,5]
[null,"$700 to $749",17,28,0,12,0,12,0,17,0,12,0,12,0,12,56,47,0,12,0,12,0,12,71,53,64,103,0,12,23,29,0,17,0,17,0,12,17,28,8,13,11,18,13,23,0,12,0,12,0,12,0,12,0,12]
[null,"$750 to $799",0,12,0,12,0,12,0,17,0,12,19,29,0,12,117,77,0,12,0,12,0,12,0,17,66,73,0,12,0,19,0,17,0,17,0,12,0,12,0,12,28,47,12,20,0,12,0,12,0,12,0,12,0,12]
[null,"$800 to $899",54,69,0,12,22,23,0,17,0,12,0,12,0,12,444,172,0,12,0,12,19,20,66,72,114,125,0,12,61,64,0,17,0,17,0,12,11,15,78,85,76,96,119,104,0,12,0,12,14,14,0,12,0,12]
[null,"$900 to $999",0,12,6,9,14,24,40,25,20,20,4,6,7,10,338,131,10,17,5,7,28,46,159,90,86,81,11,16,53,53,33,51,0,17,5,8,10,15,104,68,0,17,57,49,0,12,0,12,8,11,0,12,7,7]
[null,"$1,000 to $1,249",64,39,22,21,21,24,41,34,11,9,0,12,0,12,1698,309,9,12,15,16,34,28,444,169,258,165,3,4,137,77,104,89,52,60,0,12,0,12,146,64,36,40,133,102,12,15,0,12,134,69,3,5,43,50]
[null,"$1,250 to $1,499",86,95,7,10,72,60,64,47,6,8,0,12,0,12,1730,323,6,6,11,12,25,29,114,74,9,16,6,9,140,106,44,72,128,118,11,12,21,23,47,45,87,73,114,86,3,6,3,5,49,40,2,3,27,26]
[null,"$1,500 to $1,999",50,54,6,9,56,50,41,28,18,21,16,16,52,40,1758,228,0,12,4,6,54,46,118,79,45,42,0,12,348,113,18,31,0,17,5,8,46,34,52,53,145,93,17,29,8,13,15,13,17,16,11,16,37,24]
[null,"$2,000 to $2,499",15,26,5,7,45,24,28,32,0,12,5,8,5,9,376,126,3,5,4,7,8,13,83,69,42,49,0,12,196,120,0,17,31,45,0,12,9,15,0,12,82,58,9,14,0,12,8,9,18,21,6,9,4,6]
[null,"$2,500 to $2,999",0,12,0,12,0,12,39,50,0,12,0,12,0,12,70,66,8,10,0,12,0,12,0,17,0,17,0,12,0,19,0,17,0,17,0,12,0,12,0,12,13,23,0,12,0,12,0,12,0,12,0,12,0,12]
[null,"$3,000 to $3,499",0,12,0,12,0,12,0,17,0,12,0,12,0,12,10,16,0,12,0,12,0,12,0,17,0,17,0,12,0,19,0,17,0,17,0,12,0,12,0,12,0,17,0,12,0,12,0,12,0,12,0,12,0,12]
[null,"$3,500 or more",0,12,0,12,0,12,0,17,0,12,0,12,0,12,48,63,0,12,0,12,0,12,0,17,0,17,0,12,0,19,0,17,0,17,0,12,0,12,0,12,0,17,0,12,0,12,0,12,0,12,0,12,0,12]
[null,"No cash rent",0,12,38,37,12,19,0,17,13,20,5,7,8,9,66,40,11,14,4,6,8,13,23,38,0,17,0,12,16,22,57,63,0,17,28,28,22,25,33,29,19,27,33,36,0,12,12,11,37,26,9,11,3,5]
[]
[]
[]
[null,"B25064. MEDIAN GROSS RENT (DOLLARS)"]
[null,"Universe:  RENTER-OCCUPIED HOUSING UNITS PAYING CASH RENT"]
[null,"Data Set: 2018-2022 American Community Survey 5-Year Estimates"]
[null,{"$f":"RentalHousingCost!D41","v":"Income in 2022 Inflation Adjusted Dollars"}]
[null,null,"Allenstown",null,"Andover",null,"Boscawen",null,"Bow",null,"Bradford",null,"Canterbury",null,"Chichester",null,"Concord",null,"Danbury",null,"Dunbarton",null,"Epsom",null,"Franklin",null,"Henniker",null,"Hill",null,"Hooksett",null,"Hopkinton",null,"Loudon",null,"Newbury",null,"New London",null,"Northfield",null,"Pembroke",null,"Pittsfield",null,"Salisbury",null,"Sutton",null,"Warner",null,"Webster",null,"Wilmot"]
[null,null,"Estimate","Margin Of Error","Estimate","Margin Of Error","Estimate","Margin Of Error","Estimate","Margin Of Error","Estimate","Margin Of Error","Estimate","Margin Of Error","Estimate","Margin Of Error","Estimate","Margin Of Error","Estimate","Margin Of Error","Estimate","Margin Of Error","Estimate","Margin Of Error","Estimate","Margin Of Error","Estimate","Margin Of Error","Estimate","Margin Of Error","Estimate","Margin Of Error","Estimate","Margin Of Error","Estimate","Margin Of Error","Estimate","Margin Of Error","Estimate","Margin Of Error","Estimate","Margin Of Error","Estimate","Margin Of Error","Estimate","Margin Of Error","Estimate","Margin Of Error","Estimate","Margin Of Error","Estimate","Margin Of Error","Estimate","Margin Of Error","Estimate","Margin Of Error"]
[null,"Median gross rent",1111,263,1193,146,1309,201,1404,160,1170,413,"-","**",1740,71,1277,46,1222,527,1242,197,1169,278,1037,71,916,128,991,378,1527,169,1160,118,1248,382,482,39,1387,507,1023,100,1312,440,999,158,1240,434,1833,191,1090,61,1636,520,1264,251]
[]
[]
[]
[]
[]
[]
[]
[]
[]
[]
[]
[]
[]
[]
[]
[]
[]
[]
[]
[]
[]
[]
[]
[]
[]
[]
[null,"B25063. GROSS RENT"]
[null,"Universe:  RENTER-OCCUPIED HOUSING UNITS"]
[null,"Data Set: 2013-2017 American Community Survey 5-Year Estimates"]
[]
[null,null,"Allenstown",null,"Andover",null,"Boscawen",null,"Bow",null,"Bradford",null,"Canterbury",null,"Chichester",null,"Concord",null,"Danbury",null,"Dunbarton",null,"Epsom",null,"Franklin",null,"Henniker",null,"Hill",null,"Hooksett",null,"Hopkinton",null,"Loudon",null,"Newbury",null,"New London",null,"Northfield",null,"Pembroke",null,"Pittsfield",null,"Salisbury",null,"Sutton",null,"Warner",null,"Webster",null,"Wilmot"]
[null,null,"Estimate","Margin Of Error","Estimate","Margin Of Error","Estimate","Margin Of Error","Estimate","Margin Of Error","Estimate","Margin Of Error","Estimate","Margin Of Error","Estimate","Margin Of Error","Estimate","Margin Of Error","Estimate","Margin Of Error","Estimate","Margin Of Error","Estimate","Margin Of Error","Estimate","Margin Of Error","Estimate","Margin Of Error","Estimate","Margin Of Error","Estimate","Margin Of Error","Estimate","Margin Of Error","Estimate","Margin Of Error","Estimate","Margin Of Error","Estimate","Margin Of Error","Estimate","Margin Of Error","Estimate","Margin Of Error","Estimate","Margin Of Error","Estimate","Margin Of Error","Estimate","Margin Of Error","Estimate","Margin Of Error","Estimate","Margin Of Error","Estimate","Margin Of Error"]
[null,"Total:",506,105,137,61,392,102,354,100,92,36,53,28,85,43,7492,386,84,39,102,43,363,115,1428,180,478,95,26,16,838,144,275,94,323,109,54,31,377,112,465,100,688,155,620,113,35,24,114,48,227,71,79,32,137,45]
[null,"With cash rent:",496,108,90,47,375,100,318,96,89,36,32,14,79,42,7271,394,78,39,91,42,317,113,1355,184,450,94,23,16,770,139,262,93,311,106,34,20,319,101,457,98,669,156,620,113,29,23,86,43,207,71,77,32,132,43]
[null,"Less than $100",0,11,0,11,0,11,0,15,0,11,0,11,0,11,9,15,0,11,0,11,0,11,0,15,0,11,0,11,0,17,0,15,0,15,0,11,0,11,0,11,0,15,24,38,0,11,0,11,5,7,0,11,0,11]
[null,"$100 to $149",0,11,0,11,0,11,0,15,0,11,0,11,0,11,14,21,0,11,0,11,0,11,0,15,0,11,0,11,0,17,0,15,0,15,0,11,0,11,0,11,35,39,0,11,0,11,0,11,0,11,0,11,0,11]
[null,"$150 to $199",29,45,3,6,0,11,0,15,0,11,6,8,0,11,95,80,0,11,0,11,0,11,26,26,0,11,0,11,0,17,0,15,0,15,0,11,0,11,0,11,0,15,22,34,0,11,0,11,0,11,0,11,0,11]
[null,"$200 to $249",0,11,0,11,0,11,0,15,0,11,0,11,0,11,160,83,0,11,0,11,6,9,57,42,57,47,0,11,0,17,0,15,13,21,0,11,46,38,0,11,20,31,0,11,0,11,0,11,0,11,0,11,0,11]
[null,"$250 to $299",22,20,0,11,21,17,0,15,0,11,0,11,0,11,104,69,0,11,0,11,0,11,32,28,36,41,0,11,15,24,0,15,7,11,0,11,0,11,0,11,0,15,0,11,0,11,0,11,4,6,0,11,0,11]
[null,"$300 to $349",11,17,0,11,15,16,0,15,0,11,0,11,0,11,190,102,0,11,5,7,9,14,56,31,20,33,0,11,9,13,0,15,0,15,0,11,0,11,0,11,20,34,49,49,0,11,0,11,15,21,0,11,0,11]
[null,"$350 to $399",31,50,0,11,7,10,10,16,0,11,0,11,0,11,121,104,0,11,0,11,20,22,20,21,0,11,0,11,16,27,0,15,0,15,0,11,11,16,0,11,31,35,0,11,0,11,0,11,0,11,0,11,0,11]
[null,"$400 to $449",8,13,0,11,0,11,0,15,4,6,12,12,0,11,25,20,0,11,0,11,0,11,19,21,9,14,0,11,65,53,0,15,0,15,0,11,0,11,0,11,0,15,22,33,0,11,0,11,0,11,0,11,0,11]
[null,"$450 to $499",0,11,0,11,0,11,0,15,0,11,0,11,0,11,79,58,0,11,0,11,0,11,68,46,21,35,0,11,0,17,0,15,16,26,0,11,0,11,0,11,21,34,0,11,0,11,0,11,0,11,0,11,0,11]
[null,"$500 to $549",11,17,0,11,0,11,0,15,4,5,0,11,0,11,143,74,0,11,0,11,0,11,12,20,0,11,0,11,0,17,0,15,34,50,0,11,17,27,0,11,0,15,43,48,0,11,0,11,0,11,13,16,0,11]
[null,"$550 to $599",0,11,0,11,5,9,0,15,0,11,0,11,0,11,50,33,12,18,0,11,0,11,106,82,0,11,0,11,0,17,0,15,0,15,0,11,0,11,29,35,20,32,0,11,0,11,0,11,0,11,0,11,0,11]
[null,"$600 to $649",23,28,0,11,7,11,15,24,0,11,0,11,0,11,137,86,0,11,0,11,10,17,36,29,31,39,0,11,8,14,0,15,0,15,0,11,0,11,9,13,21,32,52,50,0,11,0,11,22,34,3,5,3,4]
[null,"$650 to $699",9,16,21,26,21,34,0,15,0,11,0,11,0,11,167,89,0,11,0,11,19,23,80,54,0,11,0,11,0,17,0,15,0,15,0,11,0,11,0,11,19,30,8,13,4,5,0,11,15,24,10,15,0,11]
[null,"$700 to $749",32,51,0,11,21,22,0,15,0,11,0,11,0,11,310,120,0,11,0,11,30,47,56,62,5,9,0,11,6,10,41,55,0,15,0,11,26,33,10,14,117,112,77,71,0,11,4,6,0,11,3,4,4,5]
[null,"$750 to $799",55,51,7,9,39,31,9,14,0,11,0,11,18,27,340,115,0,11,25,27,9,14,162,88,8,14,0,11,28,29,40,64,0,15,0,11,49,55,29,25,17,27,35,30,0,11,0,11,22,24,0,11,0,11]
[null,"$800 to $899",25,23,11,12,95,58,46,38,10,12,5,7,6,8,1035,204,22,21,5,7,29,26,82,51,16,19,0,11,94,48,38,35,45,63,5,7,46,43,110,74,91,60,174,83,3,5,0,11,38,39,0,11,6,7]
[null,"$900 to $999",53,38,0,11,14,17,44,29,18,15,0,11,13,17,1076,268,27,24,6,8,12,18,115,76,14,19,0,11,113,71,12,20,41,39,4,6,12,21,89,55,40,44,19,20,12,19,0,11,17,13,9,14,23,24]
[null,"$1,000 to $1,249",71,58,15,24,112,86,21,17,35,25,9,10,22,22,1857,262,17,16,9,10,90,66,179,85,123,78,11,7,110,62,81,78,24,27,6,9,30,27,35,28,148,101,56,48,7,11,44,32,49,28,32,24,24,19]
[null,"$1,250 to $1,499",71,58,16,17,0,11,64,32,1,3,0,11,20,24,636,144,0,11,19,21,0,11,148,99,31,36,12,14,120,63,7,12,58,55,19,17,35,36,110,65,0,15,39,34,0,11,17,16,5,7,4,6,47,33]
[null,"$1,500 to $1,999",45,36,17,27,9,15,89,63,17,15,0,11,0,11,595,164,0,11,10,12,83,63,101,64,79,64,0,11,186,80,31,37,73,55,0,11,39,43,36,43,69,79,0,11,3,5,21,19,10,10,3,5,11,12]
[null,"$2,000 to $2,499",0,11,0,11,9,17,20,22,0,11,0,11,0,11,88,55,0,11,12,12,0,11,0,15,0,11,0,11,0,17,12,19,0,15,0,11,0,11,0,11,0,15,0,11,0,11,0,11,5,8,0,11,9,14]
[null,"$2,500 to $2,999",0,11,0,11,0,11,0,15,0,11,0,11,0,11,11,17,0,11,0,11,0,11,0,15,0,11,0,11,0,17,0,15,0,15,0,11,8,12,0,11,0,15,0,11,0,11,0,11,0,11,0,11,5,7]
[null,"$3,000 to $3,499",0,11,0,11,0,11,0,15,0,11,0,11,0,11,17,28,0,11,0,11,0,11,0,15,0,11,0,11,0,17,0,15,0,15,0,11,0,11,0,11,0,15,0,11,0,11,0,11,0,11,0,11,0,11]
[null,"$3,500 or more",0,11,0,11,0,11,0,15,0,11,0,11,0,11,12,18,0,11,0,11,0,11,0,15,0,11,0,11,0,17,0,15,0,15,0,11,0,11,0,11,0,15,0,11,0,11,0,11,0,11,0,11,0,11]
[null,"No cash rent",10,17,47,34,17,19,36,41,3,4,21,25,6,9,221,129,6,7,11,11,46,44,73,52,28,33,3,4,68,46,13,22,12,21,20,25,58,44,8,14,19,30,0,11,6,7,28,20,20,23,2,5,5,7]
[]
[]
[]
[null,"B25064. MEDIAN GROSS RENT (DOLLARS)"]
[null,"Universe:  RENTER-OCCUPIED HOUSING UNITS PAYING CASH RENT"]
[null,"Data Set: 2013-2017 American Community Survey 5-Year Estimates"]
[null,"Income in 2015 Inflation Adjusted Dollars"]
[null,null,"Allenstown",null,"Andover",null,"Boscawen",null,"Bow",null,"Bradford",null,"Canterbury",null,"Chichester",null,"Concord",null,"Danbury",null,"Dunbarton",null,"Epsom",null,"Franklin",null,"Henniker",null,"Hill",null,"Hooksett",null,"Hopkinton",null,"Loudon",null,"Newbury",null,"New London",null,"Northfield",null,"Pembroke",null,"Pittsfield",null,"Salisbury",null,"Sutton",null,"Warner",null,"Webster",null,"Wilmot"]
[null,null,"Estimate","Margin Of Error","Estimate","Margin Of Error","Estimate","Margin Of Error","Estimate","Margin Of Error","Estimate","Margin Of Error","Estimate","Margin Of Error","Estimate","Margin Of Error","Estimate","Margin Of Error","Estimate","Margin Of Error","Estimate","Margin Of Error","Estimate","Margin Of Error","Estimate","Margin Of Error","Estimate","Margin Of Error","Estimate","Margin Of Error","Estimate","Margin Of Error","Estimate","Margin Of Error","Estimate","Margin Of Error","Estimate","Margin Of Error","Estimate","Margin Of Error","Estimate","Margin Of Error","Estimate","Margin Of Error","Estimate","Margin Of Error","Estimate","Margin Of Error","Estimate","Margin Of Error","Estimate","Margin Of Error","Estimate","Margin Of Error","Estimate","Margin Of Error"]
[null,"Median gross rent",868,195,1050,439,854,63,1305,259,1061,106,1028,236,961,23,919,68,1125,425,1040,197,784,51,1016,271,1260,128,1070,147,1000,272,999,477,1276,183,823,110,947,70,815,142,769,88,963,118,1222,133,854,117,1004,230,1282,146,"-","**"]
[]
[]
[]
[]
[]
[]
[]
[]
[]
[]
[]
[]
[]
[]
[]
[]
[]
[]
[]
[]
[]
[]
[]
[]
[]
[]
[null,"B25063. GROSS RENT"]
[null,"Universe:  RENTER-OCCUPIED HOUSING UNITS"]
[null,"Data Set: 2008-2012 American Community Survey 5-Year Estimates"]
[]
[null,null,"Allenstown",null,"Andover",null,"Boscawen",null,"Bow",null,"Bradford",null,"Canterbury",null,"Chichester",null,"Concord",null,"Danbury",null,"Dunbarton",null,"Epsom",null,"Franklin",null,"Henniker",null,"Hill",null,"Hooksett",null,"Hopkinton",null,"Loudon",null,"Newbury",null,"New London",null,"Northfield",null,"Pembroke",null,"Pittsfield",null,"Salisbury",null,"Sutton",null,"Warner",null,"Webster",null,"Wilmot"]
[null,null,"Estimate","Margin Of Error","Estimate","Margin Of Error","Estimate","Margin Of Error","Estimate","Margin Of Error","Estimate","Margin Of Error","Estimate","Margin Of Error","Estimate","Margin Of Error","Estimate","Margin Of Error","Estimate","Margin Of Error","Estimate","Margin Of Error","Estimate","Margin Of Error","Estimate","Margin Of Error","Estimate","Margin Of Error","Estimate","Margin Of Error","Estimate","Margin Of Error","Estimate","Margin Of Error","Estimate","Margin Of Error","Estimate","Margin Of Error","Estimate","Margin Of Error","Estimate","Margin Of Error","Estimate","Margin Of Error","Estimate","Margin Of Error","Estimate","Margin Of Error","Estimate","Margin Of Error","Estimate","Margin Of Error","Estimate","Margin Of Error","Estimate","Margin Of Error"]
[null,"Total:",621,150,136,58,293,100,255,68,101,37,68,25,52,36,8029,384,108,42,124,47,141,61,1281,186,576,146,38,27,644,141,204,103,250,99,29,21,279,101,392,109,830,133,449,103,36,23,74,40,190,52,65,31,55,36]
[null,"With cash rent:",579,153,82,45,282,97,243,70,84,33,68,25,44,36,7935,383,105,42,102,42,136,62,1205,181,530,138,34,27,622,134,184,97,198,93,29,21,261,101,369,108,800,134,422,105,34,23,68,38,183,51,55,31,52,35]
[null,"Less than $100",0,85,0,85,0,85,0,85,0,85,0,85,0,85,66,71,0,85,0,85,0,85,30,32,0,85,0,85,0,85,0,85,34,56,0,85,0,85,0,85,14,22,10,16,0,85,0,85,0,85,0,85,0,85]
[null,"$100 to $149",0,85,0,85,0,85,0,85,0,85,0,85,0,85,49,37,0,85,0,85,0,85,0,85,0,85,0,85,0,85,0,85,0,85,0,85,0,85,0,85,21,33,0,85,0,85,0,85,0,85,0,85,0,85]
[null,"$150 to $199",11,17,1,2,12,20,0,85,0,85,6,10,0,85,189,104,0,85,0,85,0,85,29,22,26,21,0,85,0,85,0,85,0,85,0,85,0,85,10,15,12,21,9,14,0,85,0,85,0,85,0,85,0,85]
[null,"$200 to $249",0,85,0,85,0,85,0,85,0,85,0,85,0,85,188,127,0,85,0,85,0,85,44,32,17,19,4,6,29,44,0,85,0,85,0,85,8,16,0,85,0,85,8,13,0,85,0,85,0,85,0,85,0,85]
[null,"$250 to $299",22,30,0,85,16,20,0,85,0,85,16,15,0,85,131,96,5,8,0,85,0,85,18,21,8,12,0,85,38,35,0,85,10,16,0,85,0,85,0,85,0,85,0,85,0,85,0,85,6,9,0,85,0,85]
[null,"$300 to $349",5,12,0,85,0,85,0,85,3,4,0,85,0,85,69,48,0,85,0,85,11,18,63,41,20,32,0,85,8,13,0,85,0,85,0,85,23,36,0,85,0,85,0,85,0,85,0,85,0,85,0,85,0,85]
[null,"$350 to $399",5,8,0,85,0,85,12,20,0,85,0,85,0,85,131,84,0,85,0,85,10,16,23,25,0,85,0,85,10,18,0,85,0,85,0,85,0,85,0,85,14,22,0,85,0,85,0,85,0,85,0,85,0,85]
[null,"$400 to $449",10,16,0,85,0,85,0,85,0,85,9,12,0,85,64,37,0,85,0,85,12,18,36,40,0,85,0,85,14,23,0,85,0,85,0,85,0,85,0,85,56,76,0,85,0,85,0,85,0,85,0,85,0,85]
[null,"$450 to $499",8,12,0,85,0,85,0,85,0,85,8,13,0,85,38,41,4,6,0,85,0,85,25,30,0,85,0,85,0,85,0,85,21,32,0,85,0,85,0,85,0,85,0,85,0,85,0,85,6,9,0,85,0,85]
[null,"$500 to $549",10,16,0,85,0,85,0,85,0,85,15,16,0,85,186,115,0,85,0,85,0,85,44,35,30,49,3,4,17,28,0,85,5,9,0,85,0,85,15,24,17,31,5,9,0,85,0,85,0,85,8,13,0,85]
[null,"$550 to $599",0,85,9,14,6,12,0,85,3,4,0,85,0,85,91,57,0,85,0,85,0,85,80,67,9,14,0,85,12,20,0,85,0,85,0,85,29,45,10,17,0,85,0,85,0,85,0,85,0,85,0,85,0,85]
[null,"$600 to $649",54,75,17,26,11,16,0,85,0,85,0,85,0,85,322,151,4,6,0,85,9,15,72,66,30,37,0,85,0,85,0,85,0,85,0,85,0,85,0,85,19,27,9,15,0,85,0,85,15,22,0,85,0,85]
[null,"$650 to $699",119,88,0,85,0,85,20,20,0,85,0,85,0,85,160,115,0,85,0,85,0,85,35,27,37,46,0,85,13,19,0,85,0,85,0,85,6,12,10,16,0,85,0,85,5,7,0,85,0,85,0,85,0,85]
[null,"$700 to $749",23,26,0,85,8,14,48,46,0,85,0,85,0,85,317,131,5,7,0,85,0,85,55,57,0,85,0,85,0,85,0,85,0,85,0,85,19,21,9,15,120,115,84,60,0,85,0,85,0,85,7,7,0,85]
[null,"$750 to $799",21,26,0,85,53,63,8,14,0,85,0,85,0,85,483,185,3,4,7,11,0,85,64,41,35,44,0,85,11,21,0,85,0,85,4,6,33,37,47,61,159,115,30,28,0,85,0,85,17,18,0,85,0,85]
[null,"$800 to $899",107,83,0,85,32,40,0,85,22,17,6,8,0,85,1002,256,13,13,0,85,11,17,135,78,105,73,0,85,61,63,43,41,0,85,4,6,33,32,9,15,99,70,86,62,3,5,2,4,12,14,0,85,9,14]
[null,"$900 to $999",79,50,38,37,44,42,25,29,25,21,0,85,40,37,1274,301,41,26,0,85,11,18,65,45,91,71,12,19,65,54,38,62,0,85,0,85,15,25,8,12,115,103,90,71,10,14,17,20,12,13,3,5,10,15]
[null,"$1,000 to $1,249",19,31,0,85,71,58,65,45,14,8,0,85,0,85,1856,297,15,18,19,13,10,17,262,125,43,38,0,85,132,79,33,39,92,84,4,5,23,18,95,67,130,117,91,57,12,15,34,29,68,33,17,17,33,30]
[null,"$1,250 to $1,499",32,40,17,28,29,24,8,15,3,4,0,85,4,6,527,172,15,18,8,12,27,26,119,74,49,45,7,8,149,62,36,40,18,22,0,85,0,85,149,73,0,85,0,85,0,85,15,15,15,15,4,6,0,85]
[null,"$1,500 to $1,999",54,50,0,85,0,85,45,53,11,16,8,12,0,85,516,149,0,85,35,27,7,11,6,11,30,48,0,85,10,16,34,39,14,16,17,18,21,33,7,11,24,28,0,85,4,6,0,85,25,25,12,18,0,85]
[null,"$2,000 or more",0,85,0,85,0,85,12,21,3,5,0,85,0,85,276,120,0,85,33,29,28,36,0,85,0,85,8,14,53,59,0,85,4,7,0,85,51,55,0,85,0,85,0,85,0,85,0,85,7,10,4,5,0,85]
[null,"$2,500 to $2,999"]
[null,"$3,000 to $3,499"]
[null,"$3,500 or more"]
[null,"No cash rent",42,55,54,39,11,17,12,19,17,17,0,85,8,12,94,54,3,4,22,26,5,8,76,54,46,45,4,5,22,26,20,30,52,65,0,85,18,29,23,25,30,35,27,41,2,4,6,11,7,10,10,9,3,5]
[]
[]
[]
[]
[]
[]
[null,"B25064. MEDIAN GROSS RENT (DOLLARS)"]
[null,"Universe:  RENTER-OCCUPIED HOUSING UNITS PAYING CASH RENT"]
[null,"Data Set: 2008-2012 American Community Survey 5-Year Estimates"]
[null,"Income in 2010 Inflation Adjusted Dollars"]
[null,null,"Allenstown",null,"Andover",null,"Boscawen",null,"Bow",null,"Bradford",null,"Canterbury",null,"Chichester",null,"Concord",null,"Danbury",null,"Dunbarton",null,"Epsom",null,"Franklin",null,"Henniker",null,"Hill",null,"Hooksett",null,"Hopkinton",null,"Loudon",null,"Newbury",null,"New London",null,"Northfield",null,"Pembroke",null,"Pittsfield",null,"Salisbury",null,"Sutton",null,"Warner",null,"Webster",null,"Wilmot"]
[null,null,"Estimate","Margin Of Error","Estimate","Margin Of Error","Estimate","Margin Of Error","Estimate","Margin Of Error","Estimate","Margin Of Error","Estimate","Margin Of Error","Estimate","Margin Of Error","Estimate","Margin Of Error","Estimate","Margin Of Error","Estimate","Margin Of Error","Estimate","Margin Of Error","Estimate","Margin Of Error","Estimate","Margin Of Error","Estimate","Margin Of Error","Estimate","Margin Of Error","Estimate","Margin Of Error","Estimate","Margin Of Error","Estimate","Margin Of Error","Estimate","Margin Of Error","Estimate","Margin Of Error","Estimate","Margin Of Error","Estimate","Margin Of Error","Estimate","Margin Of Error","Estimate","Margin Of Error","Estimate","Margin Of Error","Estimate","Margin Of Error","Estimate","Margin Of Error"]
[null,"Median gross rent",801,118,937,290,907,134,1033,173,956,60,469,98,955,13,938,23,945,42,1743,316,1100,483,788,88,850,63,983,715,1063,136,1083,316,1079,581,1574,549,838,165,1175,137,790,57,865,74,990,129,1110,97,1086,84,1140,276,1053,106]

{"sheet":"ACS_Table_B25070","index":58,"n_rows":208,"n_cols":56,"rows_kept":208,"cut":false,"hidden":true,"merged":[]}
[null,"B25070. GROSS RENT AS A PERCENTAGE OF HOUSEHOLD INCOME IN THE PAST 12 MONTHS"]
[null,"Universe:  RENTER-OCCUPIED HOUSING UNITS"]
["DropDownList!B47","Data Set: 2018-2022 American Community Survey 5-Year Estimates"]
[]
[null,null,"Allenstown",null,"Andover",null,"Boscawen",null,"Bow",null,"Bradford",null,"Canterbury",null,"Chichester",null,"Concord",null,"Danbury",null,"Dunbarton",null,"Epsom",null,"Franklin",null,"Henniker",null,"Hill",null,"Hooksett",null,"Hopkinton",null,"Loudon",null,"Newbury",null,"New London",null,"Northfield",null,"Pembroke",null,"Pittsfield",null,"Salisbury",null,"Sutton",null,"Warner",null,"Webster",null,"Wilmot"]
[null,null,"Estimate","Margin Of Error","Estimate","Margin Of Error","Estimate","Margin Of Error","Estimate","Margin Of Error","Estimate","Margin Of Error","Estimate","Margin Of Error","Estimate","Margin Of Error","Estimate","Margin Of Error","Estimate","Margin Of Error","Estimate","Margin Of Error","Estimate","Margin Of Error","Estimate","Margin Of Error","Estimate","Margin Of Error","Estimate","Margin Of Error","Estimate","Margin Of Error","Estimate","Margin Of Error","Estimate","Margin Of Error","Estimate","Margin Of Error","Estimate","Margin Of Error","Estimate","Margin Of Error","Estimate","Margin Of Error","Estimate","Margin Of Error","Estimate","Margin Of Error","Estimate","Margin Of Error","Estimate","Margin Of Error","Estimate","Margin Of Error","Estimate","Margin Of Error"]
[null,"Total:",373,153,84,44,324,94,265,91,68,35,55,36,72,45,7680,442,47,32,43,22,204,81,1409,255,852,272,20,20,1066,219,256,146,319,181,94,40,151,69,496,124,630,156,580,158,23,21,38,21,376,90,37,23,136,56]
[null,"Less than 10.0 percent",0,12,0,12,25,28,10,15,0,12,0,12,7,10,303,131,0,12,0,12,0,12,45,43,0,17,0,12,33,37,0,17,0,17,0,12,0,12,11,16,27,42,0,12,0,12,0,12,8,14,2,3,3,5]
[null,"10.0 to 14.9 percent",56,42,0,12,42,50,22,31,0,12,0,12,29,26,547,156,0,12,0,12,0,12,250,177,71,67,0,12,114,96,0,17,18,30,11,13,11,15,46,49,79,58,12,20,3,6,8,11,47,45,0,12,33,23]
[null,"15.0 to 19.9 percent",82,70,5,8,35,44,10,17,11,9,5,8,0,12,1132,216,10,17,24,17,10,17,134,71,152,128,3,4,179,82,115,95,47,57,0,12,29,34,52,37,65,60,26,23,8,12,0,12,14,14,0,12,0,12]
[null,"20.0 to 24.9 percent",18,18,18,20,47,44,50,37,13,19,5,8,0,12,1106,235,0,12,0,12,16,19,146,79,125,83,6,9,134,94,34,49,0,17,13,10,9,15,79,55,42,46,90,79,0,12,4,8,55,44,14,16,31,27]
[null,"25.0 to 29.9 percent",25,22,0,12,52,56,47,51,4,5,0,12,5,7,1167,216,8,10,0,12,46,32,165,78,112,91,0,12,149,92,25,33,108,134,22,25,37,34,115,110,118,109,57,49,8,13,4,7,44,36,6,9,25,24]
[null,"30.0 to 34.9 percent",0,12,5,7,17,26,11,17,0,12,4,6,0,12,501,187,9,12,9,14,45,51,188,109,11,17,0,12,145,70,14,27,17,28,10,11,23,22,10,18,0,17,124,100,0,12,3,5,88,67,0,12,4,5]
[null,"35.0 to 39.9 percent",26,31,0,12,0,12,12,18,15,17,0,12,5,9,624,234,4,5,0,12,7,11,42,46,0,17,0,12,51,53,0,17,0,17,5,7,0,12,64,53,4,10,80,99,0,12,4,6,11,16,2,3,4,5]
[null,"40.0 to 49.9 percent",31,37,13,13,25,30,10,17,3,5,6,8,0,12,669,200,2,4,0,12,34,36,209,120,178,148,0,12,30,32,0,17,46,79,5,8,0,12,20,22,70,68,120,110,4,8,0,12,18,20,0,12,33,45]
[null,"50.0 percent or more",135,120,5,9,69,49,83,41,9,15,30,33,18,27,1386,275,3,5,6,9,38,38,189,90,203,141,11,16,191,131,11,19,83,76,0,12,20,23,66,49,206,126,38,60,0,12,3,4,44,34,4,6,0,12]
[null,"Not computed",0,12,38,37,12,19,10,15,13,20,5,7,8,9,245,98,11,14,4,6,8,13,41,48,0,17,0,12,40,46,57,63,0,17,28,28,22,25,33,29,19,27,33,36,0,12,12,11,47,30,9,11,3,5]
[]
[]
[]
[]
[]
[]
[]
[]
[]
[]
[]
[]
[]
[]
[]
[]
[]
[null,"Calculated B25070. GROSS RENT AS A PERCENTAGE OF HOUSEHOLD INCOME IN THE PAST 12 MONTHS"]
[null,"Universe:  RENTER-OCCUPIED HOUSING UNITS"]
[null,"Data Set: 2018-2022 American Community Survey 5-Year Estimates"]
[]
[null,null,"Allenstown",null,"Andover",null,"Boscawen",null,"Bow",null,"Bradford",null,"Canterbury",null,"Chichester",null,"Concord",null,"Danbury",null,"Dunbarton",null,"Epsom",null,"Franklin",null,"Henniker",null,"Hill",null,"Hooksett",null,"Hopkinton",null,"Loudon",null,"Newbury",null,"New London",null,"Northfield",null,"Pembroke",null,"Pittsfield",null,"Salisbury",null,"Sutton",null,"Warner",null,"Webster",null,"Wilmot"]
[null,null,"Estimate","Margin Of Error","Estimate","Margin Of Error","Estimate","Margin Of Error","Estimate","Margin Of Error","Estimate","Margin Of Error","Estimate","Margin Of Error","Estimate","Margin Of Error","Estimate","Margin Of Error","Estimate","Margin Of Error","Estimate","Margin Of Error","Estimate","Margin Of Error","Estimate","Margin Of Error","Estimate","Margin Of Error","Estimate","Margin Of Error","Estimate","Margin Of Error","Estimate","Margin Of Error","Estimate","Margin Of Error","Estimate","Margin Of Error","Estimate","Margin Of Error","Estimate","Margin Of Error","Estimate","Margin Of Error","Estimate","Margin Of Error","Estimate","Margin Of Error","Estimate","Margin Of Error","Estimate","Margin Of Error","Estimate","Margin Of Error","Estimate","Margin Of Error"]
[null,{"$f":"B7","v":"Total:"},{"$f":"C7","v":373},{"$f":"D7","v":153},{"$f":"E7","v":84},44,324,94,265,91,68,35,55,36,72,45,7680,442,47,32,43,22,204,81,1409,255,852,272,20,20,1066,219,256,146,319,181,94,40,151,69,496,124,630,156,580,158,23,21,38,21,376,90,37,23,136,56]
[null,"Less than 20% of HH Income",{"$f":"C8+C9+C10","v":138},{"$f":"SQRT((D8^2)+(D9^2)+(D10^2))","v":82.510605378945073},{"$f":"E8+E9+E10","v":5},{"$f":"SQRT((F8^2)+(F9^2)+(F10^2))","v":18.761663039293719},{"$f":"G8+G9+G10","v":102},{"$f":"SQRT((H8^2)+(H9^2)+(H10^2))","v":72.249567472753768},{"$f":"I8+I9+I10","v":42},{"$f":"SQRT((J8^2)+(J9^2)+(J10^2))","v":38.40572873934304},{"$f":"K8+K9+K10","v":11},{"$f":"SQRT((L8^2)+(L9^2)+(L10^2))","v":19.209372712298546},{"$f":"M8+M9+M10","v":5},{"$f":"SQRT((N8^2)+(N9^2)+(N10^2))","v":18.761663039293719},{"$f":"O8+O9+O10","v":36},{"$f":"SQRT((P8^2)+(P9^2)+(P10^2))","v":30.331501776206203},{"$f":"Q8+Q9+Q10","v":1982},{"$f":"SQRT((R8^2)+(R9^2)+(R10^2))","v":296.90570893803977},{"$f":"S8+S9+S10","v":10},{"$f":"SQRT((T8^2)+(T9^2)+(T10^2))","v":24.020824298928627},{"$f":"U8+U9+U10","v":24},{"$f":"SQRT((V8^2)+(V9^2)+(V10^2))","v":24.020824298928627},{"$f":"W8+W9+W10","v":10},{"$f":"SQRT((X8^2)+(X9^2)+(X10^2))","v":24.020824298928627},{"$f":"Y8+Y9+Y10","v":429},{"$f":"SQRT((Z8^2)+(Z9^2)+(Z10^2))","v":195.49680304291422},{"$f":"AA8+AA9+AA10","v":223},{"$f":"SQRT((AB8^2)+(AB9^2)+(AB10^2))","v":145.47164672196433},{"$f":"AC8+AC9+AC10","v":3},{"$f":"SQRT((AD8^2)+(AD9^2)+(AD10^2))","v":17.435595774162696},{"$f":"AE8+AE9+AE10","v":326},{"$f":"SQRT((AF8^2)+(AF9^2)+(AF10^2))","v":131.56367279762298},{"$f":"AG8+AG9+AG10","v":115},{"$f":"SQRT((AH8^2)+(AH9^2)+(AH10^2))","v":97.994897826366454},{"$f":"AI8+AI9+AI10","v":65},{"$f":"SQRT((AJ8^2)+(AJ9^2)+(AJ10^2))","v":66.618315799785876},{"$f":"AK8+AK9+AK10","v":11},{"$f":"SQRT((AL8^2)+(AL9^2)+(AL10^2))","v":21.377558326431949},{"$f":"AM8+AM9+AM10","v":40},{"$f":"SQRT((AN8^2)+(AN9^2)+(AN10^2))","v":39.05124837953327},{"$f":"AO8+AO9+AO10","v":109},{"$f":"SQRT((AP8^2)+(AP9^2)+(AP10^2))","v":63.450768316861222},{"$f":"AQ8+AQ9+AQ10","v":171},{"$f":"SQRT((AR8^2)+(AR9^2)+(AR10^2))","v":93.423765713013296},{"$f":"AS8+AS9+AS10","v":38},{"$f":"SQRT((AT8^2)+(AT9^2)+(AT10^2))","v":32.756678708318397},{"$f":"AU8+AU9+AU10","v":11},{"$f":"SQRT((AV8^2)+(AV9^2)+(AV10^2))","v":18},{"$f":"AW8+AW9+AW10","v":8},{"$f":"SQRT((AX8^2)+(AX9^2)+(AX10^2))","v":20.223748416156685},{"$f":"AY8+AY9+AY10","v":69},{"$f":"SQRT((AZ8^2)+(AZ9^2)+(AZ10^2))","v":49.162994213127419},{"$f":"BA8+BA9+BA10","v":2},{"$f":"SQRT((BB8^2)+(BB9^2)+(BB10^2))","v":17.233687939614086},{"$f":"BC8+BC9+BC10","v":36},{"$f":"SQRT((BD8^2)+(BD9^2)+(BD10^2))","v":26.419689627245813}]
[null," 20% to 24.9% of HH Income",{"$f":"C11","v":18},{"$f":"D11","v":18},{"$f":"E11","v":18},20,47,44,50,37,13,19,5,8,0,12,1106,235,0,12,0,12,16,19,146,79,125,83,6,9,134,94,34,49,0,17,13,10,9,15,79,55,42,46,90,79,0,12,4,8,55,44,14,16,31,27]
[null," 25% to 29.9% of HH Income",{"$f":"C12","v":25},{"$f":"D12","v":22},0,12,52,56,47,51,4,5,0,12,5,7,1167,216,8,10,0,12,46,32,165,78,112,91,0,12,149,92,25,33,108,134,22,25,37,34,115,110,118,109,57,49,8,13,4,7,44,36,6,9,25,24]
[null," Less Than 30% of HH Income",{"$f":"C12+C11+C10+C9+C8","v":181},{"$f":"SQRT((D12^2)+(D11^2)+(D10^2)+(D9^2)+(D8^2))","v":87.26969691708571},{"$f":"E12+E11+E10+E9+E8","v":23},{"$f":"SQRT((F12^2)+(F11^2)+(F10^2)+(F9^2)+(F8^2))","v":29.933259094191531},{"$f":"G12+G11+G10+G9+G8","v":201},{"$f":"SQRT((H12^2)+(H11^2)+(H10^2)+(H9^2)+(H8^2))","v":101.44949482377919},{"$f":"I12+I11+I10+I9+I8","v":139},{"$f":"SQRT((J12^2)+(J11^2)+(J10^2)+(J9^2)+(J8^2))","v":73.79024325749306},{"$f":"K12+K11+K10+K9+K8","v":28},{"$f":"SQRT((L12^2)+(L11^2)+(L10^2)+(L9^2)+(L8^2))","v":27.477263328068172},{"$f":"M12+M11+M10+M9+M8","v":10},{"$f":"SQRT((N12^2)+(N11^2)+(N10^2)+(N9^2)+(N8^2))","v":23.664319132398465},{"$f":"O12+O11+O10+O9+O8","v":41},{"$f":"SQRT((P12^2)+(P11^2)+(P10^2)+(P9^2)+(P8^2))","v":33.361654635224554},{"$f":"Q12+Q11+Q10+Q9+Q8","v":4255},{"$f":"SQRT((R12^2)+(R11^2)+(R10^2)+(R9^2)+(R8^2))","v":435.92889328421444},{"$f":"S12+S11+S10+S9+S8","v":18},{"$f":"SQRT((T12^2)+(T11^2)+(T10^2)+(T9^2)+(T8^2))","v":28.653097563788805},{"$f":"U12+U11+U10+U9+U8","v":24},{"$f":"SQRT((V12^2)+(V11^2)+(V10^2)+(V9^2)+(V8^2))","v":29.410882339705484},{"$f":"W12+W11+W10+W9+W8","v":72},{"$f":"SQRT((X12^2)+(X11^2)+(X10^2)+(X9^2)+(X8^2))","v":44.294469180700204},{"$f":"Y12+Y11+Y10+Y9+Y8","v":740},{"$f":"SQRT((Z12^2)+(Z11^2)+(Z10^2)+(Z9^2)+(Z8^2))","v":224.81992794234233},{"$f":"AA12+AA11+AA10+AA9+AA8","v":460},{"$f":"SQRT((AB12^2)+(AB11^2)+(AB10^2)+(AB9^2)+(AB8^2))","v":190.60954855410574},{"$f":"AC12+AC11+AC10+AC9+AC8","v":9},{"$f":"SQRT((AD12^2)+(AD11^2)+(AD10^2)+(AD9^2)+(AD8^2))","v":23},{"$f":"AE12+AE11+AE10+AE9+AE8","v":609},{"$f":"SQRT((AF12^2)+(AF11^2)+(AF10^2)+(AF9^2)+(AF8^2))","v":186.03494295427404},{"$f":"AG12+AG11+AG10+AG9+AG8","v":174},{"$f":"SQRT((AH12^2)+(AH11^2)+(AH10^2)+(AH9^2)+(AH8^2))","v":114.42464769445436},{"$f":"AI12+AI11+AI10+AI9+AI8","v":173},{"$f":"SQRT((AJ12^2)+(AJ11^2)+(AJ10^2)+(AJ9^2)+(AJ8^2))","v":150.60876468519353},{"$f":"AK12+AK11+AK10+AK9+AK8","v":46},{"$f":"SQRT((AL12^2)+(AL11^2)+(AL10^2)+(AL9^2)+(AL8^2))","v":34.380226875342167},{"$f":"AM12+AM11+AM10+AM9+AM8","v":86},{"$f":"SQRT((AN12^2)+(AN11^2)+(AN10^2)+(AN9^2)+(AN8^2))","v":53.907327887774215},{"$f":"AO12+AO11+AO10+AO9+AO8","v":303},{"$f":"SQRT((AP12^2)+(AP11^2)+(AP10^2)+(AP9^2)+(AP8^2))","v":138.38713813068034},{"$f":"AQ12+AQ11+AQ10+AQ9+AQ8","v":331},{"$f":"SQRT((AR12^2)+(AR11^2)+(AR10^2)+(AR9^2)+(AR8^2))","v":150.74813431681335},{"$f":"AS12+AS11+AS10+AS9+AS8","v":185},{"$f":"SQRT((AT12^2)+(AT11^2)+(AT10^2)+(AT9^2)+(AT8^2))","v":98.564699563281778},{"$f":"AU12+AU11+AU10+AU9+AU8","v":19},{"$f":"SQRT((AV12^2)+(AV11^2)+(AV10^2)+(AV9^2)+(AV8^2))","v":25.238858928247925},{"$f":"AW12+AW11+AW10+AW9+AW8","v":16},{"$f":"SQRT((AX12^2)+(AX11^2)+(AX10^2)+(AX9^2)+(AX8^2))","v":22.847319317591726},{"$f":"AY12+AY11+AY10+AY9+AY8","v":168},{"$f":"SQRT((AZ12^2)+(AZ11^2)+(AZ10^2)+(AZ9^2)+(AZ8^2))","v":75.15982969645421},{"$f":"BA12+BA11+BA10+BA9+BA8","v":22},{"$f":"SQRT((BB12^2)+(BB11^2)+(BB10^2)+(BB9^2)+(BB8^2))","v":25.179356624028344},{"$f":"BC12+BC11+BC10+BC9+BC8","v":92},{"$f":"SQRT((BD12^2)+(BD11^2)+(BD10^2)+(BD9^2)+(BD8^2))","v":44.754888001200491}]
[null," 30% or More of HH Income",{"$f":"C13+C14+C15+C16","v":192},{"$f":"SQRT((D13^2)+(D14^2)+(D15^2)+(D16^2))","v":129.89996150884727},{"$f":"E13+E14+E15+E16","v":23},{"$f":"SQRT((F13^2)+(F14^2)+(F15^2)+(F16^2))","v":21.047565179849187},{"$f":"G13+G14+G15+G16","v":111},{"$f":"SQRT((H13^2)+(H14^2)+(H15^2)+(H16^2))","v":64.195015382816138},{"$f":"I13+I14+I15+I16","v":116},{"$f":"SQRT((J13^2)+(J14^2)+(J15^2)+(J16^2))","v":50.823223038292248},{"$f":"K13+K14+K15+K16","v":27},{"$f":"SQRT((L13^2)+(L14^2)+(L15^2)+(L16^2))","v":26.134268690743959},{"$f":"M13+M14+M15+M16","v":40},{"$f":"SQRT((N13^2)+(N14^2)+(N15^2)+(N16^2))","v":36.510272527057367},{"$f":"O13+O14+O15+O16","v":23},{"$f":"SQRT((P13^2)+(P14^2)+(P15^2)+(P16^2))","v":33.136083051561783},{"$f":"Q13+Q14+Q15+Q16","v":3180},{"$f":"SQRT((R13^2)+(R14^2)+(R15^2)+(R16^2))","v":453.15560241488794},{"$f":"S13+S14+S15+S16","v":18},{"$f":"SQRT((T13^2)+(T14^2)+(T15^2)+(T16^2))","v":14.491376746189438},{"$f":"U13+U14+U15+U16","v":15},{"$f":"SQRT((V13^2)+(V14^2)+(V15^2)+(V16^2))","v":23.769728648009426},{"$f":"W13+W14+W15+W16","v":124},{"$f":"SQRT((X13^2)+(X14^2)+(X15^2)+(X16^2))","v":73.905344867607511},{"$f":"Y13+Y14+Y15+Y16","v":628},{"$f":"SQRT((Z13^2)+(Z14^2)+(Z15^2)+(Z16^2))","v":191.04188022525324},{"$f":"AA13+AA14+AA15+AA16","v":392},{"$f":"SQRT((AB13^2)+(AB14^2)+(AB15^2)+(AB16^2))","v":205.82273926852687},{"$f":"AC13+AC14+AC15+AC16","v":11},{"$f":"SQRT((AD13^2)+(AD14^2)+(AD15^2)+(AD16^2))","v":26.229754097208001},{"$f":"AE13+AE14+AE15+AE16","v":417},{"$f":"SQRT((AF13^2)+(AF14^2)+(AF15^2)+(AF16^2))","v":160.91612722160573},{"$f":"AG13+AG14+AG15+AG16","v":25},{"$f":"SQRT((AH13^2)+(AH14^2)+(AH15^2)+(AH16^2))","v":40.841155713324277},{"$f":"AI13+AI14+AI15+AI16","v":146},{"$f":"SQRT((AJ13^2)+(AJ14^2)+(AJ15^2)+(AJ16^2))","v":114.41153787970862},{"$f":"AK13+AK14+AK15+AK16","v":20},{"$f":"SQRT((AL13^2)+(AL14^2)+(AL15^2)+(AL16^2))","v":19.442222095223581},{"$f":"AM13+AM14+AM15+AM16","v":43},{"$f":"SQRT((AN13^2)+(AN14^2)+(AN15^2)+(AN16^2))","v":36.069377593742864},{"$f":"AO13+AO14+AO15+AO16","v":160},{"$f":"SQRT((AP13^2)+(AP14^2)+(AP15^2)+(AP16^2))","v":77.575769412877889},{"$f":"AQ13+AQ14+AQ15+AQ16","v":280},{"$f":"SQRT((AR13^2)+(AR14^2)+(AR15^2)+(AR16^2))","v":144.53027364535086},{"$f":"AS13+AS14+AS15+AS16","v":362},{"$f":"SQRT((AT13^2)+(AT14^2)+(AT15^2)+(AT16^2))","v":188.41709051994195},{"$f":"AU13+AU14+AU15+AU16","v":4},{"$f":"SQRT((AV13^2)+(AV14^2)+(AV15^2)+(AV16^2))","v":22.271057451320086},{"$f":"AW13+AW14+AW15+AW16","v":10},{"$f":"SQRT((AX13^2)+(AX14^2)+(AX15^2)+(AX16^2))","v":14.866068747318506},{"$f":"AY13+AY14+AY15+AY16","v":161},{"$f":"SQRT((AZ13^2)+(AZ14^2)+(AZ15^2)+(AZ16^2))","v":79.378838489864535},{"$f":"BA13+BA14+BA15+BA16","v":6},{"$f":"SQRT((BB13^2)+(BB14^2)+(BB15^2)+(BB16^2))","v":18.248287590894659},{"$f":"BC13+BC14+BC15+BC16","v":41},{"$f":"SQRT((BD13^2)+(BD14^2)+(BD15^2)+(BD16^2))","v":47.106262853255508}]
[null," 30% to 34.9% of HH Income",{"$f":"C13","v":0},{"$f":"D13","v":12},{"$f":"E13","v":5},7,17,26,11,17,0,12,4,6,0,12,501,187,9,12,9,14,45,51,188,109,11,17,0,12,145,70,14,27,17,28,10,11,23,22,10,18,0,17,124,100,0,12,3,5,88,67,0,12,4,5]
[null," Less Than 35% of HH Income",{"$f":"C13+C12+C11+C10+C9+C8","v":181},{"$f":"SQRT((D13^2)+(D12^2)+(D11^2)+(D10^2)+(D9^2)+(D8^2))","v":88.090862182180956},{"$f":"E13+E12+E11+E10+E9+E8","v":28},{"$f":"SQRT((F13^2)+(F12^2)+(F11^2)+(F10^2)+(F9^2)+(F8^2))","v":30.740852297878796},{"$f":"G13+G12+G11+G10+G9+G8","v":218},{"$f":"SQRT((H13^2)+(H12^2)+(H11^2)+(H10^2)+(H9^2)+(H8^2))","v":104.72821969268837},{"$f":"I13+I12+I11+I10+I9+I8","v":150},{"$f":"SQRT((J13^2)+(J12^2)+(J11^2)+(J10^2)+(J9^2)+(J8^2))","v":75.723180070570194},{"$f":"K13+K12+K11+K10+K9+K8","v":28},{"$f":"SQRT((L13^2)+(L12^2)+(L11^2)+(L10^2)+(L9^2)+(L8^2))","v":29.983328701129899},{"$f":"M13+M12+M11+M10+M9+M8","v":14},{"$f":"SQRT((N13^2)+(N12^2)+(N11^2)+(N10^2)+(N9^2)+(N8^2))","v":24.413111231467404},{"$f":"O13+O12+O11+O10+O9+O8","v":41},{"$f":"SQRT((P13^2)+(P12^2)+(P11^2)+(P10^2)+(P9^2)+(P8^2))","v":35.454195802471673},{"$f":"Q13+Q12+Q11+Q10+Q9+Q8","v":4756},{"$f":"SQRT((R13^2)+(R12^2)+(R11^2)+(R10^2)+(R9^2)+(R8^2))","v":474.34481129237622},{"$f":"S13+S12+S11+S10+S9+S8","v":27},{"$f":"SQRT((T13^2)+(T12^2)+(T11^2)+(T10^2)+(T9^2)+(T8^2))","v":31.064449134018133},{"$f":"U13+U12+U11+U10+U9+U8","v":33},{"$f":"SQRT((V13^2)+(V12^2)+(V11^2)+(V10^2)+(V9^2)+(V8^2))","v":32.572994949804659},{"$f":"W13+W12+W11+W10+W9+W8","v":117},{"$f":"SQRT((X13^2)+(X12^2)+(X11^2)+(X10^2)+(X9^2)+(X8^2))","v":67.549981495186216},{"$f":"Y13+Y12+Y11+Y10+Y9+Y8","v":928},{"$f":"SQRT((Z13^2)+(Z12^2)+(Z11^2)+(Z10^2)+(Z9^2)+(Z8^2))","v":249.84995497297973},{"$f":"AA13+AA12+AA11+AA10+AA9+AA8","v":471},{"$f":"SQRT((AB13^2)+(AB12^2)+(AB11^2)+(AB10^2)+(AB9^2)+(AB8^2))","v":191.36614120580475},{"$f":"AC13+AC12+AC11+AC10+AC9+AC8","v":9},{"$f":"SQRT((AD13^2)+(AD12^2)+(AD11^2)+(AD10^2)+(AD9^2)+(AD8^2))","v":25.942243542145693},{"$f":"AE13+AE12+AE11+AE10+AE9+AE8","v":754},{"$f":"SQRT((AF13^2)+(AF12^2)+(AF11^2)+(AF10^2)+(AF9^2)+(AF8^2))","v":198.76870981117727},{"$f":"AG13+AG12+AG11+AG10+AG9+AG8","v":188},{"$f":"SQRT((AH13^2)+(AH12^2)+(AH11^2)+(AH10^2)+(AH9^2)+(AH8^2))","v":117.56700217322886},{"$f":"AI13+AI12+AI11+AI10+AI9+AI8","v":190},{"$f":"SQRT((AJ13^2)+(AJ12^2)+(AJ11^2)+(AJ10^2)+(AJ9^2)+(AJ8^2))","v":153.18942522250026},{"$f":"AK13+AK12+AK11+AK10+AK9+AK8","v":56},{"$f":"SQRT((AL13^2)+(AL12^2)+(AL11^2)+(AL10^2)+(AL9^2)+(AL8^2))","v":36.097091295560091},{"$f":"AM13+AM12+AM11+AM10+AM9+AM8","v":109},{"$f":"SQRT((AN13^2)+(AN12^2)+(AN11^2)+(AN10^2)+(AN9^2)+(AN8^2))","v":58.223706512038547},{"$f":"AO13+AO12+AO11+AO10+AO9+AO8","v":313},{"$f":"SQRT((AP13^2)+(AP12^2)+(AP11^2)+(AP10^2)+(AP9^2)+(AP8^2))","v":139.55285736952862},{"$f":"AQ13+AQ12+AQ11+AQ10+AQ9+AQ8","v":331},{"$f":"SQRT((AR13^2)+(AR12^2)+(AR11^2)+(AR10^2)+(AR9^2)+(AR8^2))","v":151.70365849247011},{"$f":"AS13+AS12+AS11+AS10+AS9+AS8","v":309},{"$f":"SQRT((AT13^2)+(AT12^2)+(AT11^2)+(AT10^2)+(AT9^2)+(AT8^2))","v":140.41011359585178},{"$f":"AU13+AU12+AU11+AU10+AU9+AU8","v":19},{"$f":"SQRT((AV13^2)+(AV12^2)+(AV11^2)+(AV10^2)+(AV9^2)+(AV8^2))","v":27.946377224964241},{"$f":"AW13+AW12+AW11+AW10+AW9+AW8","v":19},{"$f":"SQRT((AX13^2)+(AX12^2)+(AX11^2)+(AX10^2)+(AX9^2)+(AX8^2))","v":23.388031127053001},{"$f":"AY13+AY12+AY11+AY10+AY9+AY8","v":256},{"$f":"SQRT((AZ13^2)+(AZ12^2)+(AZ11^2)+(AZ10^2)+(AZ9^2)+(AZ8^2))","v":100.68763578513501},{"$f":"BA13+BA12+BA11+BA10+BA9+BA8","v":22},{"$f":"SQRT((BB13^2)+(BB12^2)+(BB11^2)+(BB10^2)+(BB9^2)+(BB8^2))","v":27.892651361962706},{"$f":"BC13+BC12+BC11+BC10+BC9+BC8","v":96},{"$f":"SQRT((BD13^2)+(BD12^2)+(BD11^2)+(BD10^2)+(BD9^2)+(BD8^2))","v":45.033320996790806}]
[null," 35% or More of HH Income",{"$f":"C14+C15+C16","v":192},{"$f":"SQRT((D14^2)+(D15^2)+(D16^2))","v":129.34450123604017},{"$f":"E14+E15+E16","v":18},{"$f":"SQRT((F14^2)+(F15^2)+(F16^2))","v":19.849433241279208},{"$f":"G14+G15+G16","v":94},{"$f":"SQRT((H14^2)+(H15^2)+(H16^2))","v":58.694122363316758},{"$f":"I14+I15+I16","v":105},{"$f":"SQRT((J14^2)+(J15^2)+(J16^2))","v":47.89572005931219},{"$f":"K14+K15+K16","v":27},{"$f":"SQRT((L14^2)+(L15^2)+(L16^2))","v":23.2163735324878},{"$f":"M14+M15+M16","v":36},{"$f":"SQRT((N14^2)+(N15^2)+(N16^2))","v":36.013886210738214},{"$f":"O14+O15+O16","v":23},{"$f":"SQRT((P14^2)+(P15^2)+(P16^2))","v":30.886890422961002},{"$f":"Q14+Q15+Q16","v":2679},{"$f":"SQRT((R14^2)+(R15^2)+(R16^2))","v":412.77233434424841},{"$f":"S14+S15+S16","v":9},{"$f":"SQRT((T14^2)+(T15^2)+(T16^2))","v":8.1240384046359608},{"$f":"U14+U15+U16","v":6},{"$f":"SQRT((V14^2)+(V15^2)+(V16^2))","v":19.209372712298546},{"$f":"W14+W15+W16","v":79},{"$f":"SQRT((X14^2)+(X15^2)+(X16^2))","v":53.488316481265329},{"$f":"Y14+Y15+Y16","v":440},{"$f":"SQRT((Z14^2)+(Z15^2)+(Z16^2))","v":156.8948692596415},{"$f":"AA14+AA15+AA16","v":381},{"$f":"SQRT((AB14^2)+(AB15^2)+(AB16^2))","v":205.11947737842937},{"$f":"AC14+AC15+AC16","v":11},{"$f":"SQRT((AD14^2)+(AD15^2)+(AD16^2))","v":23.323807579381203},{"$f":"AE14+AE15+AE16","v":272},{"$f":"SQRT((AF14^2)+(AF15^2)+(AF16^2))","v":144.89306401619092},{"$f":"AG14+AG15+AG16","v":11},{"$f":"SQRT((AH14^2)+(AH15^2)+(AH16^2))","v":30.643106892089126},{"$f":"AI14+AI15+AI16","v":129},{"$f":"SQRT((AJ14^2)+(AJ15^2)+(AJ16^2))","v":110.93241185514718},{"$f":"AK14+AK15+AK16","v":10},{"$f":"SQRT((AL14^2)+(AL15^2)+(AL16^2))","v":16.031219541881399},{"$f":"AM14+AM15+AM16","v":20},{"$f":"SQRT((AN14^2)+(AN15^2)+(AN16^2))","v":28.583211855912904},{"$f":"AO14+AO15+AO16","v":150},{"$f":"SQRT((AP14^2)+(AP15^2)+(AP16^2))","v":75.458597919653926},{"$f":"AQ14+AQ15+AQ16","v":280},{"$f":"SQRT((AR14^2)+(AR15^2)+(AR16^2))","v":143.52700094407325},{"$f":"AS14+AS15+AS16","v":238},{"$f":"SQRT((AT14^2)+(AT15^2)+(AT16^2))","v":159.69032531747189},{"$f":"AU14+AU15+AU16","v":4},{"$f":"SQRT((AV14^2)+(AV15^2)+(AV16^2))","v":18.761663039293719},{"$f":"AW14+AW15+AW16","v":7},{"$f":"SQRT((AX14^2)+(AX15^2)+(AX16^2))","v":14},{"$f":"AY14+AY15+AY16","v":73},{"$f":"SQRT((AZ14^2)+(AZ15^2)+(AZ16^2))","v":42.567593307585526},{"$f":"BA14+BA15+BA16","v":6},{"$f":"SQRT((BB14^2)+(BB15^2)+(BB16^2))","v":13.74772708486752},{"$f":"BC14+BC15+BC16","v":37},{"$f":"SQRT((BD14^2)+(BD15^2)+(BD16^2))","v":46.840153714521477}]
[null," 50% or More of HH Income",{"$f":"C16","v":135},{"$f":"D16","v":120},{"$f":"E16","v":5},9,69,49,83,41,9,15,30,33,18,27,1386,275,3,5,6,9,38,38,189,90,203,141,11,16,191,131,11,19,83,76,0,12,20,23,66,49,206,126,38,60,0,12,3,4,44,34,4,6,0,12]
[null,"Not computed",{"$f":"C17","v":0},{"$f":"D17","v":12},38,37,12,19,10,15,13,20,5,7,8,9,245,98,11,14,4,6,8,13,41,48,0,17,0,12,40,46,57,63,0,17,28,28,22,25,33,29,19,27,33,36,0,12,12,11,47,30,9,11,3,5]
[]
[]
[]
[]
[]
[]
[]
[]
[]
[]
[]
[]
[]
[]
[]
[]
[]
[]
[]
[]
[]
[]
[]
[]
[]
[]
[]
[]
[]
[]
[]
[]
[]
[]
[]
[]
[]
[]
[]
[]
[]
[]
[]
[]
[]
[]
[]
[]
[]
[]
[]
[]
[null,"B25070. GROSS RENT AS A PERCENTAGE OF HOUSEHOLD INCOME IN THE PAST 12 MONTHS"]
[null,"Universe:  RENTER-OCCUPIED HOUSING UNITS"]
[null,"Data Set: 2013-2017 American Community Survey 5-Year Estimates"]
[]
[null,null,"Allenstown",null,"Andover",null,"Boscawen",null,"Bow",null,"Bradford",null,"Canterbury",null,"Chichester",null,"Concord",null,"Danbury",null,"Dunbarton",null,"Epsom",null,"Franklin",null,"Henniker",null,"Hill",null,"Hooksett",null,"Hopkinton",null,"Loudon",null,"Newbury",null,"New London",null,"Northfield",null,"Pembroke",null,"Pittsfield",null,"Salisbury",null,"Sutton",null,"Warner",null,"Webster",null,"Wilmot"]
[null,null,"Estimate","Margin Of Error","Estimate","Margin Of Error","Estimate","Margin Of Error","Estimate","Margin Of Error","Estimate","Margin Of Error","Estimate","Margin Of Error","Estimate","Margin Of Error","Estimate","Margin Of Error","Estimate","Margin Of Error","Estimate","Margin Of Error","Estimate","Margin Of Error","Estimate","Margin Of Error","Estimate","Margin Of Error","Estimate","Margin Of Error","Estimate","Margin Of Error","Estimate","Margin Of Error","Estimate","Margin Of Error","Estimate","Margin Of Error","Estimate","Margin Of Error","Estimate","Margin Of Error","Estimate","Margin Of Error","Estimate","Margin Of Error","Estimate","Margin Of Error","Estimate","Margin Of Error","Estimate","Margin Of Error","Estimate","Margin Of Error","Estimate","Margin Of Error"]
[null,"Total:",467,107,157,66,385,91,345,88,62,23,49,31,88,39,7942,349,81,39,98,40,332,112,1520,196,522,105,34,18,997,142,235,84,279,114,49,31,411,118,459,106,727,202,665,131,32,26,105,43,265,65,96,35,143,45]
[null,"Less than 10.0 percent",10,15,0,11,0,11,0,15,0,11,0,11,0,11,245,103,0,11,19,17,0,11,69,74,25,37,0,11,0,17,0,15,17,28,0,11,63,53,11,16,18,28,41,46,0,11,4,6,19,24,4,6,14,17]
[null,"10.0 to 14.9 percent",22,35,0,11,13,16,23,35,3,6,0,11,8,10,464,157,10,15,0,11,33,31,162,100,10,17,3,4,19,27,30,35,20,31,5,7,28,35,20,23,21,33,27,30,0,11,30,26,22,22,14,16,9,10]
[null,"15.0 to 19.9 percent",145,87,18,28,58,69,13,14,5,6,0,11,33,32,1065,212,17,18,5,8,0,11,66,42,120,74,3,5,100,71,42,54,22,36,0,11,35,39,85,50,158,106,60,43,8,10,0,11,62,40,8,8,4,5]
[null,"20.0 to 24.9 percent",42,32,27,24,31,39,26,28,10,11,0,11,6,9,1189,219,30,29,33,23,43,50,179,90,25,29,12,13,185,78,66,66,28,33,3,4,51,40,81,64,152,92,77,55,4,6,3,4,15,12,3,4,11,9]
[null,"25.0 to 29.9 percent",40,28,5,7,58,44,28,26,7,8,13,14,7,12,852,195,9,14,5,7,40,37,223,95,57,44,4,5,150,84,21,23,75,79,16,15,0,11,79,50,85,62,63,46,0,11,25,23,39,31,11,9,22,19]
[null,"30.0 to 34.9 percent",47,41,0,11,51,39,32,26,13,12,0,11,17,20,772,179,0,11,28,27,36,36,161,90,65,52,0,11,60,40,0,15,12,19,4,6,63,55,0,11,45,41,88,66,0,11,0,11,9,10,8,13,18,22]
[null,"35.0 to 39.9 percent",9,14,5,7,0,11,33,23,0,11,0,11,10,14,304,113,0,11,0,11,40,38,34,42,26,33,0,11,37,30,0,15,31,35,0,11,32,33,24,39,0,15,5,9,0,11,0,11,6,8,10,15,9,13]
[null,"40.0 to 49.9 percent",25,20,22,27,43,39,35,27,3,4,0,11,0,11,903,213,9,10,0,11,44,50,156,102,54,39,0,11,98,52,34,40,0,15,0,11,0,11,61,51,16,27,87,72,4,5,0,11,34,33,10,16,10,16]
[null,"50.0 percent or more",109,77,25,24,107,56,128,64,21,15,14,13,0,11,1742,268,0,11,5,8,65,45,394,137,114,66,3,4,265,129,0,15,35,33,0,11,82,50,86,69,216,145,217,112,13,21,22,23,37,29,10,16,41,26]
[null,"Not computed",18,20,55,44,24,22,27,29,0,11,22,28,7,10,406,150,6,7,3,5,31,40,76,42,26,31,9,8,83,49,42,41,39,35,21,25,57,47,12,19,16,27,0,11,3,6,21,18,22,21,18,17,5,7]
[]
[]
[]
[]
[]
[]
[]
[]
[]
[]
[]
[]
[]
[]
[]
[]
[]
[null,"Calculated B25070. GROSS RENT AS A PERCENTAGE OF HOUSEHOLD INCOME IN THE PAST 12 MONTHS"]
[null,"Universe:  RENTER-OCCUPIED HOUSING UNITS"]
[null,"Data Set: 2013-2017 American Community Survey 5-Year Estimates"]
[]
[null,null,"Allenstown",null,"Andover",null,"Boscawen",null,"Bow",null,"Bradford",null,"Canterbury",null,"Chichester",null,"Concord",null,"Danbury",null,"Dunbarton",null,"Epsom",null,"Franklin",null,"Henniker",null,"Hill",null,"Hooksett",null,"Hopkinton",null,"Loudon",null,"Newbury",null,"New London",null,"Northfield",null,"Pembroke",null,"Pittsfield",null,"Salisbury",null,"Sutton",null,"Warner",null,"Webster",null,"Wilmot"]
[null," ","Estimate","Margin of Error","Estimate","Margin of Error","Estimate","Margin of Error","Estimate","Margin of Error","Estimate","Margin of Error","Estimate","Margin of Error","Estimate","Margin of Error","Estimate","Margin of Error","Estimate","Margin of Error","Estimate","Margin of Error","Estimate","Margin of Error","Estimate","Margin of Error","Estimate","Margin of Error","Estimate","Margin of Error","Estimate","Margin of Error","Estimate","Margin of Error","Estimate","Margin of Error","Estimate","Margin of Error","Estimate","Margin of Error","Estimate","Margin of Error","Estimate","Margin of Error","Estimate","Margin of Error","Estimate","Margin of Error","Estimate","Margin of Error","Estimate","Margin of Error","Estimate","Margin of Error","Estimate","Margin of Error"]
[null,"Total:",{"$f":"C110","v":467},{"$f":"D110","v":107},{"$f":"E110","v":157},66,385,91,345,88,62,23,49,31,88,39,7942,349,81,39,98,40,332,112,1520,196,522,105,34,18,997,142,235,84,279,114,49,31,411,118,459,106,727,202,665,131,32,26,105,43,265,65,96,35,143,45]
[null,"Less than 20% of HH Income",{"$f":"C111+C112+C113","v":177},{"$f":"SQRT((D111^2)+(D112^2)+(D113^2))","v":94.968415802307661},{"$f":"E111+E112+E113","v":18},{"$f":"SQRT((F111^2)+(F112^2)+(F113^2))","v":32.03123475609393},{"$f":"G111+G112+G113","v":71},{"$f":"SQRT((H111^2)+(H112^2)+(H113^2))","v":71.679843749829701},{"$f":"I111+I112+I113","v":36},{"$f":"SQRT((J111^2)+(J112^2)+(J113^2))","v":40.570925550201586},{"$f":"K111+K112+K113","v":8},{"$f":"SQRT((L111^2)+(L112^2)+(L113^2))","v":13.892443989449804},{"$f":"M111+M112+M113","v":0},{"$f":"SQRT((N111^2)+(N112^2)+(N113^2))","v":19.05255888325765},{"$f":"O111+O112+O113","v":41},{"$f":"SQRT((P111^2)+(P112^2)+(P113^2))","v":35.284557528754704},{"$f":"Q111+Q112+Q113","v":1774},{"$f":"SQRT((R111^2)+(R112^2)+(R113^2))","v":283.19957627086944},{"$f":"S111+S112+S113","v":27},{"$f":"SQRT((T111^2)+(T112^2)+(T113^2))","v":25.88435821108957},{"$f":"U111+U112+U113","v":24},{"$f":"SQRT((V111^2)+(V112^2)+(V113^2))","v":21.77154105707724},{"$f":"W111+W112+W113","v":33},{"$f":"SQRT((X111^2)+(X112^2)+(X113^2))","v":34.684290392049249},{"$f":"Y111+Y112+Y113","v":297},{"$f":"SQRT((Z111^2)+(Z112^2)+(Z113^2))","v":131.30118049735881},{"$f":"AA111+AA112+AA113","v":155},{"$f":"SQRT((AB111^2)+(AB112^2)+(AB113^2))","v":84.463009655114703},{"$f":"AC111+AC112+AC113","v":6},{"$f":"SQRT((AD111^2)+(AD112^2)+(AD113^2))","v":12.727922061357855},{"$f":"AE111+AE112+AE113","v":119},{"$f":"SQRT((AF111^2)+(AF112^2)+(AF113^2))","v":77.839578621675486},{"$f":"AG111+AG112+AG113","v":72},{"$f":"SQRT((AH111^2)+(AH112^2)+(AH113^2))","v":66.075714146727165},{"$f":"AI111+AI112+AI113","v":59},{"$f":"SQRT((AJ111^2)+(AJ112^2)+(AJ113^2))","v":55.145262715848951},{"$f":"AK111+AK112+AK113","v":5},{"$f":"SQRT((AL111^2)+(AL112^2)+(AL113^2))","v":17.058722109231979},{"$f":"AM111+AM112+AM113","v":126},{"$f":"SQRT((AN111^2)+(AN112^2)+(AN113^2))","v":74.531872376856327},{"$f":"AO111+AO112+AO113","v":116},{"$f":"SQRT((AP111^2)+(AP112^2)+(AP113^2))","v":57.314919523628397},{"$f":"AQ111+AQ112+AQ113","v":197},{"$f":"SQRT((AR111^2)+(AR112^2)+(AR113^2))","v":114.49454135459908},{"$f":"AS111+AS112+AS113","v":128},{"$f":"SQRT((AT111^2)+(AT112^2)+(AT113^2))","v":69.749551969887236},{"$f":"AU111+AU112+AU113","v":8},{"$f":"SQRT((AV111^2)+(AV112^2)+(AV113^2))","v":18.493242008906929},{"$f":"AW111+AW112+AW113","v":34},{"$f":"SQRT((AX111^2)+(AX112^2)+(AX113^2))","v":28.861739379323623},{"$f":"AY111+AY112+AY113","v":103},{"$f":"SQRT((AZ111^2)+(AZ112^2)+(AZ113^2))","v":51.575187832910508},{"$f":"BA111+BA112+BA113","v":26},{"$f":"SQRT((BB111^2)+(BB112^2)+(BB113^2))","v":18.867962264113206},{"$f":"BC111+BC112+BC113","v":27},{"$f":"SQRT((BD111^2)+(BD112^2)+(BD113^2))","v":20.346989949375804}]
[null," 20% to 24.9% of HH Income",{"$f":"C114","v":42},{"$f":"D114","v":32},{"$f":"E114","v":27},24,31,39,26,28,10,11,0,11,6,9,1189,219,30,29,33,23,43,50,179,90,25,29,12,13,185,78,66,66,28,33,3,4,51,40,81,64,152,92,77,55,4,6,3,4,15,12,3,4,11,9]
[null," 25% to 29.9% of HH Income",{"$f":"C115","v":40},{"$f":"D115","v":28},{"$f":"E115","v":5},7,58,44,28,26,7,8,13,14,7,12,852,195,9,14,5,7,40,37,223,95,57,44,4,5,150,84,21,23,75,79,16,15,0,11,79,50,85,62,63,46,0,11,25,23,39,31,11,9,22,19]
[null," Less Than 30% of HH Income",{"$f":"C115+C114+C113+C112+C111","v":259},{"$f":"SQRT((D115^2)+(D114^2)+(D113^2)+(D112^2)+(D111^2))","v":104.05287117614775},{"$f":"E115+E114+E113+E112+E111","v":50},{"$f":"SQRT((F115^2)+(F114^2)+(F113^2)+(F112^2)+(F111^2))","v":40.63249930782009},{"$f":"G115+G114+G113+G112+G111","v":160},{"$f":"SQRT((H115^2)+(H114^2)+(H113^2)+(H112^2)+(H111^2))","v":92.709222842174668},{"$f":"I115+I114+I113+I112+I111","v":90},{"$f":"SQRT((J115^2)+(J114^2)+(J113^2)+(J112^2)+(J111^2))","v":55.731499172371095},{"$f":"K115+K114+K113+K112+K111","v":25},{"$f":"SQRT((L115^2)+(L114^2)+(L113^2)+(L112^2)+(L111^2))","v":19.442222095223581},{"$f":"M115+M114+M113+M112+M111","v":13},{"$f":"SQRT((N115^2)+(N114^2)+(N113^2)+(N112^2)+(N111^2))","v":26.076809620810597},{"$f":"O115+O114+O113+O112+O111","v":54},{"$f":"SQRT((P115^2)+(P114^2)+(P113^2)+(P112^2)+(P111^2))","v":38.340579025361627},{"$f":"Q115+Q114+Q113+Q112+Q111","v":3815},{"$f":"SQRT((R115^2)+(R114^2)+(R113^2)+(R112^2)+(R111^2))","v":407.66162438964011},{"$f":"S115+S114+S113+S112+S111","v":66},{"$f":"SQRT((T115^2)+(T114^2)+(T113^2)+(T112^2)+(T111^2))","v":41.315856520227193},{"$f":"U115+U114+U113+U112+U111","v":62},{"$f":"SQRT((V115^2)+(V114^2)+(V113^2)+(V112^2)+(V111^2))","v":32.434549480453711},{"$f":"W115+W114+W113+W112+W111","v":116},{"$f":"SQRT((X115^2)+(X114^2)+(X113^2)+(X112^2)+(X111^2))","v":71.217975259059429},{"$f":"Y115+Y114+Y113+Y112+Y111","v":699},{"$f":"SQRT((Z115^2)+(Z114^2)+(Z113^2)+(Z112^2)+(Z111^2))","v":185.37799222129902},{"$f":"AA115+AA114+AA113+AA112+AA111","v":237},{"$f":"SQRT((AB115^2)+(AB114^2)+(AB113^2)+(AB112^2)+(AB111^2))","v":99.554005444281344},{"$f":"AC115+AC114+AC113+AC112+AC111","v":22},{"$f":"SQRT((AD115^2)+(AD114^2)+(AD113^2)+(AD112^2)+(AD111^2))","v":18.867962264113206},{"$f":"AE115+AE114+AE113+AE112+AE111","v":454},{"$f":"SQRT((AF115^2)+(AF114^2)+(AF113^2)+(AF112^2)+(AF111^2))","v":138.56045611934164},{"$f":"AG115+AG114+AG113+AG112+AG111","v":159},{"$f":"SQRT((AH115^2)+(AH114^2)+(AH113^2)+(AH112^2)+(AH111^2))","v":96.182118920306593},{"$f":"AI115+AI114+AI113+AI112+AI111","v":162},{"$f":"SQRT((AJ115^2)+(AJ114^2)+(AJ113^2)+(AJ112^2)+(AJ111^2))","v":101.83810681665287},{"$f":"AK115+AK114+AK113+AK112+AK111","v":24},{"$f":"SQRT((AL115^2)+(AL114^2)+(AL113^2)+(AL112^2)+(AL111^2))","v":23.065125189341593},{"$f":"AM115+AM114+AM113+AM112+AM111","v":177},{"$f":"SQRT((AN115^2)+(AN114^2)+(AN113^2)+(AN112^2)+(AN111^2))","v":85.299472448544492},{"$f":"AO115+AO114+AO113+AO112+AO111","v":276},{"$f":"SQRT((AP115^2)+(AP114^2)+(AP113^2)+(AP112^2)+(AP111^2))","v":99.403219263764285},{"$f":"AQ115+AQ114+AQ113+AQ112+AQ111","v":434},{"$f":"SQRT((AR115^2)+(AR114^2)+(AR113^2)+(AR112^2)+(AR111^2))","v":159.427099327561},{"$f":"AS115+AS114+AS113+AS112+AS111","v":268},{"$f":"SQRT((AT115^2)+(AT114^2)+(AT113^2)+(AT112^2)+(AT111^2))","v":100.02999550134949},{"$f":"AU115+AU114+AU113+AU112+AU111","v":12},{"$f":"SQRT((AV115^2)+(AV114^2)+(AV113^2)+(AV112^2)+(AV111^2))","v":22.338307903688676},{"$f":"AW115+AW114+AW113+AW112+AW111","v":62},{"$f":"SQRT((AX115^2)+(AX114^2)+(AX113^2)+(AX112^2)+(AX111^2))","v":37.12142238654117},{"$f":"AY115+AY114+AY113+AY112+AY111","v":157},{"$f":"SQRT((AZ115^2)+(AZ114^2)+(AZ113^2)+(AZ112^2)+(AZ111^2))","v":61.35959582656978},{"$f":"BA115+BA114+BA113+BA112+BA111","v":40},{"$f":"SQRT((BB115^2)+(BB114^2)+(BB113^2)+(BB112^2)+(BB111^2))","v":21.283796653792763},{"$f":"BC115+BC114+BC113+BC112+BC111","v":60},{"$f":"SQRT((BD115^2)+(BD114^2)+(BD113^2)+(BD112^2)+(BD111^2))","v":29.257477676655586}]
[null," 30% or More of HH Income",{"$f":"C116+C117+C118+C119","v":190},{"$f":"SQRT((D116^2)+(D117^2)+(D118^2)+(D119^2))","v":90.586974781146097},{"$f":"E116+E117+E118+E119","v":52},{"$f":"SQRT((F116^2)+(F117^2)+(F118^2)+(F119^2))","v":38.40572873934304},{"$f":"G116+G117+G118+G119","v":201},{"$f":"SQRT((H116^2)+(H117^2)+(H118^2)+(H119^2))","v":79.36623967405788},{"$f":"I116+I117+I118+I119","v":228},{"$f":"SQRT((J116^2)+(J117^2)+(J118^2)+(J119^2))","v":77.653074633268702},{"$f":"K116+K117+K118+K119","v":37},{"$f":"SQRT((L116^2)+(L117^2)+(L118^2)+(L119^2))","v":22.494443758403985},{"$f":"M116+M117+M118+M119","v":14},{"$f":"SQRT((N116^2)+(N117^2)+(N118^2)+(N119^2))","v":23.065125189341593},{"$f":"O116+O117+O118+O119","v":27},{"$f":"SQRT((P116^2)+(P117^2)+(P118^2)+(P119^2))","v":28.948229652260256},{"$f":"Q116+Q117+Q118+Q119","v":3721},{"$f":"SQRT((R116^2)+(R117^2)+(R118^2)+(R119^2))","v":402.4959627126712},{"$f":"S116+S117+S118+S119","v":9},{"$f":"SQRT((T116^2)+(T117^2)+(T118^2)+(T119^2))","v":21.517434791350013},{"$f":"U116+U117+U118+U119","v":33},{"$f":"SQRT((V116^2)+(V117^2)+(V118^2)+(V119^2))","v":32.171415884290823},{"$f":"W116+W117+W118+W119","v":185},{"$f":"SQRT((X116^2)+(X117^2)+(X118^2)+(X119^2))","v":85.234969349440135},{"$f":"Y116+Y117+Y118+Y119","v":745},{"$f":"SQRT((Z116^2)+(Z117^2)+(Z118^2)+(Z119^2))","v":197.57783276471073},{"$f":"AA116+AA117+AA118+AA119","v":259},{"$f":"SQRT((AB116^2)+(AB117^2)+(AB118^2)+(AB119^2))","v":98.336158151516173},{"$f":"AC116+AC117+AC118+AC119","v":3},{"$f":"SQRT((AD116^2)+(AD117^2)+(AD118^2)+(AD119^2))","v":19.467922333931785},{"$f":"AE116+AE117+AE118+AE119","v":460},{"$f":"SQRT((AF116^2)+(AF117^2)+(AF118^2)+(AF119^2))","v":147.80054127099805},{"$f":"AG116+AG117+AG118+AG119","v":34},{"$f":"SQRT((AH116^2)+(AH117^2)+(AH118^2)+(AH119^2))","v":47.696960070847283},{"$f":"AI116+AI117+AI118+AI119","v":78},{"$f":"SQRT((AJ116^2)+(AJ117^2)+(AJ118^2)+(AJ119^2))","v":53.851648071345039},{"$f":"AK116+AK117+AK118+AK119","v":4},{"$f":"SQRT((AL116^2)+(AL117^2)+(AL118^2)+(AL119^2))","v":19.974984355438178},{"$f":"AM116+AM117+AM118+AM119","v":177},{"$f":"SQRT((AN116^2)+(AN117^2)+(AN118^2)+(AN119^2))","v":82.067045761377329},{"$f":"AO116+AO117+AO118+AO119","v":171},{"$f":"SQRT((AP116^2)+(AP117^2)+(AP118^2)+(AP119^2))","v":94.889409314211662},{"$f":"AQ116+AQ117+AQ118+AQ119","v":277},{"$f":"SQRT((AR116^2)+(AR117^2)+(AR118^2)+(AR119^2))","v":153.81807436059},{"$f":"AS116+AS117+AS118+AS119","v":397},{"$f":"SQRT((AT116^2)+(AT117^2)+(AT118^2)+(AT119^2))","v":148.87914561818255},{"$f":"AU116+AU117+AU118+AU119","v":17},{"$f":"SQRT((AV116^2)+(AV117^2)+(AV118^2)+(AV119^2))","v":26.608269391300141},{"$f":"AW116+AW117+AW118+AW119","v":22},{"$f":"SQRT((AX116^2)+(AX117^2)+(AX118^2)+(AX119^2))","v":29.866369046136157},{"$f":"AY116+AY117+AY118+AY119","v":86},{"$f":"SQRT((AZ116^2)+(AZ117^2)+(AZ118^2)+(AZ119^2))","v":45.760244754590204},{"$f":"BA116+BA117+BA118+BA119","v":38},{"$f":"SQRT((BB116^2)+(BB117^2)+(BB118^2)+(BB119^2))","v":30.099833886584822},{"$f":"BC116+BC117+BC118+BC119","v":78},{"$f":"SQRT((BD116^2)+(BD117^2)+(BD118^2)+(BD119^2))","v":39.812058474788763}]
[null," 30% to 34.9% of HH Income",{"$f":"C116","v":47},{"$f":"D116","v":41},{"$f":"E116","v":0},11,51,39,32,26,13,12,0,11,17,20,772,179,0,11,28,27,36,36,161,90,65,52,0,11,60,40,0,15,12,19,4,6,63,55,0,11,45,41,88,66,0,11,0,11,9,10,8,13,18,22]
[null," Less Than 35% of HH Income",{"$f":"C116+C115+C114+C113+C112+C111","v":306},{"$f":"SQRT((D116^2)+(D115^2)+(D114^2)+(D113^2)+(D112^2)+(D111^2))","v":111.83917024012652},{"$f":"E116+E115+E114+E113+E112+E111","v":50},{"$f":"SQRT((F116^2)+(F115^2)+(F114^2)+(F113^2)+(F112^2)+(F111^2))","v":42.095130359698373},{"$f":"G116+G115+G114+G113+G112+G111","v":211},{"$f":"SQRT((H116^2)+(H115^2)+(H114^2)+(H113^2)+(H112^2)+(H111^2))","v":100.57832768544127},{"$f":"I116+I115+I114+I113+I112+I111","v":122},{"$f":"SQRT((J116^2)+(J115^2)+(J114^2)+(J113^2)+(J112^2)+(J111^2))","v":61.497967446087195},{"$f":"K116+K115+K114+K113+K112+K111","v":38},{"$f":"SQRT((L116^2)+(L115^2)+(L114^2)+(L113^2)+(L112^2)+(L111^2))","v":22.847319317591726},{"$f":"M116+M115+M114+M113+M112+M111","v":13},{"$f":"SQRT((N116^2)+(N115^2)+(N114^2)+(N113^2)+(N112^2)+(N111^2))","v":28.301943396169811},{"$f":"O116+O115+O114+O113+O112+O111","v":71},{"$f":"SQRT((P116^2)+(P115^2)+(P114^2)+(P113^2)+(P112^2)+(P111^2))","v":43.243496620879306},{"$f":"Q116+Q115+Q114+Q113+Q112+Q111","v":4587},{"$f":"SQRT((R116^2)+(R115^2)+(R114^2)+(R113^2)+(R112^2)+(R111^2))","v":445.22915448115032},{"$f":"S116+S115+S114+S113+S112+S111","v":66},{"$f":"SQRT((T116^2)+(T115^2)+(T114^2)+(T113^2)+(T112^2)+(T111^2))","v":42.755116652863897},{"$f":"U116+U115+U114+U113+U112+U111","v":90},{"$f":"SQRT((V116^2)+(V115^2)+(V114^2)+(V113^2)+(V112^2)+(V111^2))","v":42.201895692018383},{"$f":"W116+W115+W114+W113+W112+W111","v":152},{"$f":"SQRT((X116^2)+(X115^2)+(X114^2)+(X113^2)+(X112^2)+(X111^2))","v":79.799749373040015},{"$f":"Y116+Y115+Y114+Y113+Y112+Y111","v":860},{"$f":"SQRT((Z116^2)+(Z115^2)+(Z114^2)+(Z113^2)+(Z112^2)+(Z111^2))","v":206.07037632808846},{"$f":"AA116+AA115+AA114+AA113+AA112+AA111","v":302},{"$f":"SQRT((AB116^2)+(AB115^2)+(AB114^2)+(AB113^2)+(AB112^2)+(AB111^2))","v":112.31651704001509},{"$f":"AC116+AC115+AC114+AC113+AC112+AC111","v":22},{"$f":"SQRT((AD116^2)+(AD115^2)+(AD114^2)+(AD113^2)+(AD112^2)+(AD111^2))","v":21.840329667841555},{"$f":"AE116+AE115+AE114+AE113+AE112+AE111","v":514},{"$f":"SQRT((AF116^2)+(AF115^2)+(AF114^2)+(AF113^2)+(AF112^2)+(AF111^2))","v":144.21858410066298},{"$f":"AG116+AG115+AG114+AG113+AG112+AG111","v":159},{"$f":"SQRT((AH116^2)+(AH115^2)+(AH114^2)+(AH113^2)+(AH112^2)+(AH111^2))","v":97.344748189103655},{"$f":"AI116+AI115+AI114+AI113+AI112+AI111","v":174},{"$f":"SQRT((AJ116^2)+(AJ115^2)+(AJ114^2)+(AJ113^2)+(AJ112^2)+(AJ111^2))","v":103.59536669175895},{"$f":"AK116+AK115+AK114+AK113+AK112+AK111","v":28},{"$f":"SQRT((AL116^2)+(AL115^2)+(AL114^2)+(AL113^2)+(AL112^2)+(AL111^2))","v":23.832750575625969},{"$f":"AM116+AM115+AM114+AM113+AM112+AM111","v":240},{"$f":"SQRT((AN116^2)+(AN115^2)+(AN114^2)+(AN113^2)+(AN112^2)+(AN111^2))","v":101.49384217774002},{"$f":"AO116+AO115+AO114+AO113+AO112+AO111","v":276},{"$f":"SQRT((AP116^2)+(AP115^2)+(AP114^2)+(AP113^2)+(AP112^2)+(AP111^2))","v":100.00999950005},{"$f":"AQ116+AQ115+AQ114+AQ113+AQ112+AQ111","v":479},{"$f":"SQRT((AR116^2)+(AR115^2)+(AR114^2)+(AR113^2)+(AR112^2)+(AR111^2))","v":164.61470165206995},{"$f":"AS116+AS115+AS114+AS113+AS112+AS111","v":356},{"$f":"SQRT((AT116^2)+(AT115^2)+(AT114^2)+(AT113^2)+(AT112^2)+(AT111^2))","v":119.8415620725965},{"$f":"AU116+AU115+AU114+AU113+AU112+AU111","v":12},{"$f":"SQRT((AV116^2)+(AV115^2)+(AV114^2)+(AV113^2)+(AV112^2)+(AV111^2))","v":24.899799195977465},{"$f":"AW116+AW115+AW114+AW113+AW112+AW111","v":62},{"$f":"SQRT((AX116^2)+(AX115^2)+(AX114^2)+(AX113^2)+(AX112^2)+(AX111^2))","v":38.716921365211881},{"$f":"AY116+AY115+AY114+AY113+AY112+AY111","v":166},{"$f":"SQRT((AZ116^2)+(AZ115^2)+(AZ114^2)+(AZ113^2)+(AZ112^2)+(AZ111^2))","v":62.169124169478209},{"$f":"BA116+BA115+BA114+BA113+BA112+BA111","v":48},{"$f":"SQRT((BB116^2)+(BB115^2)+(BB114^2)+(BB113^2)+(BB112^2)+(BB111^2))","v":24.939927826679853},{"$f":"BC116+BC115+BC114+BC113+BC112+BC111","v":78},{"$f":"SQRT((BD116^2)+(BD115^2)+(BD114^2)+(BD113^2)+(BD112^2)+(BD111^2))","v":36.606010435446251}]
[null," 35% or More of HH Income",{"$f":"C117+C118+C119","v":143},{"$f":"SQRT((D117^2)+(D118^2)+(D119^2))","v":80.777472107017559},{"$f":"E117+E118+E119","v":52},{"$f":"SQRT((F117^2)+(F118^2)+(F119^2))","v":36.796738985948195},{"$f":"G117+G118+G119","v":150},{"$f":"SQRT((H117^2)+(H118^2)+(H119^2))","v":69.123078635141823},{"$f":"I117+I118+I119","v":196},{"$f":"SQRT((J117^2)+(J118^2)+(J119^2))","v":73.17103251970687},{"$f":"K117+K118+K119","v":24},{"$f":"SQRT((L117^2)+(L118^2)+(L119^2))","v":19.026297590440446},{"$f":"M117+M118+M119","v":14},{"$f":"SQRT((N117^2)+(N118^2)+(N119^2))","v":20.273134932713294},{"$f":"O117+O118+O119","v":10},{"$f":"SQRT((P117^2)+(P118^2)+(P119^2))","v":20.928449536456348},{"$f":"Q117+Q118+Q119","v":2949},{"$f":"SQRT((R117^2)+(R118^2)+(R119^2))","v":360.50242717629516},{"$f":"S117+S118+S119","v":9},{"$f":"SQRT((T117^2)+(T118^2)+(T119^2))","v":18.493242008906929},{"$f":"U117+U118+U119","v":5},{"$f":"SQRT((V117^2)+(V118^2)+(V119^2))","v":17.4928556845359},{"$f":"W117+W118+W119","v":149},{"$f":"SQRT((X117^2)+(X118^2)+(X119^2))","v":77.259303646874784},{"$f":"Y117+Y118+Y119","v":584},{"$f":"SQRT((Z117^2)+(Z118^2)+(Z119^2))","v":175.88916964952674},{"$f":"AA117+AA118+AA119","v":194},{"$f":"SQRT((AB117^2)+(AB118^2)+(AB119^2))","v":83.462566459461328},{"$f":"AC117+AC118+AC119","v":3},{"$f":"SQRT((AD117^2)+(AD118^2)+(AD119^2))","v":16.06237840420901},{"$f":"AE117+AE118+AE119","v":400},{"$f":"SQRT((AF117^2)+(AF118^2)+(AF119^2))","v":142.28492541376264},{"$f":"AG117+AG118+AG119","v":34},{"$f":"SQRT((AH117^2)+(AH118^2)+(AH119^2))","v":45.276925690687087},{"$f":"AI117+AI118+AI119","v":66},{"$f":"SQRT((AJ117^2)+(AJ118^2)+(AJ119^2))","v":50.388490749376487},{"$f":"AK117+AK118+AK119","v":0},{"$f":"SQRT((AL117^2)+(AL118^2)+(AL119^2))","v":19.05255888325765},{"$f":"AM117+AM118+AM119","v":114},{"$f":"SQRT((AN117^2)+(AN118^2)+(AN119^2))","v":60.909769331364245},{"$f":"AO117+AO118+AO119","v":171},{"$f":"SQRT((AP117^2)+(AP118^2)+(AP119^2))","v":94.249668434430049},{"$f":"AQ117+AQ118+AQ119","v":232},{"$f":"SQRT((AR117^2)+(AR118^2)+(AR119^2))","v":148.25316185498372},{"$f":"AS117+AS118+AS119","v":309},{"$f":"SQRT((AT117^2)+(AT118^2)+(AT119^2))","v":133.45036530485783},{"$f":"AU117+AU118+AU119","v":17},{"$f":"SQRT((AV117^2)+(AV118^2)+(AV119^2))","v":24.228082879171435},{"$f":"AW117+AW118+AW119","v":22},{"$f":"SQRT((AX117^2)+(AX118^2)+(AX119^2))","v":27.766886753829642},{"$f":"AY117+AY118+AY119","v":77},{"$f":"SQRT((AZ117^2)+(AZ118^2)+(AZ119^2))","v":44.654227123532216},{"$f":"BA117+BA118+BA119","v":30},{"$f":"SQRT((BB117^2)+(BB118^2)+(BB119^2))","v":27.147743920996454},{"$f":"BC117+BC118+BC119","v":60},{"$f":"SQRT((BD117^2)+(BD118^2)+(BD119^2))","v":33.181320046074113}]
[null," 50% or More of HH Income",{"$f":"C119","v":109},{"$f":"D119","v":77},{"$f":"E119","v":25},24,107,56,128,64,21,15,14,13,0,11,1742,268,0,11,5,8,65,45,394,137,114,66,3,4,265,129,0,15,35,33,0,11,82,50,86,69,216,145,217,112,13,21,22,23,37,29,10,16,41,26]
[null,"Not computed",{"$f":"C120","v":18},{"$f":"D120","v":20},{"$f":"E120","v":55},44,24,22,27,29,0,11,22,28,7,10,406,150,6,7,3,5,31,40,76,42,26,31,9,8,83,49,42,41,39,35,21,25,57,47,12,19,16,27,0,11,3,6,21,18,22,21,18,17,5,7]
[]
[]
[]
[null,"B25070. GROSS RENT AS A PERCENTAGE OF HOUSEHOLD INCOME IN THE PAST 12 MONTHS"]
[null,"Universe:  RENTER-OCCUPIED HOUSING UNITS"]
[null,"Data Set: 2008-2012 American Community Survey 3-Year Estimates"]
[]
[null,null,"Allenstown",null,"Andover",null,"Boscawen",null,"Bow",null,"Bradford",null,"Canterbury",null,"Chichester",null,"Concord",null,"Danbury",null,"Dunbarton",null,"Epsom",null,"Franklin",null,"Henniker",null,"Hill",null,"Hooksett",null,"Hopkinton",null,"Loudon",null,"Newbury",null,"New London",null,"Northfield",null,"Pembroke",null,"Pittsfield",null,"Salisbury",null,"Sutton",null,"Warner",null,"Webster",null,"Wilmot"]
[null,null,"Esitimate","Margin Of Error","Esitimate","Margin Of Error","Esitimate","Margin Of Error","Esitimate","Margin Of Error","Esitimate","Margin Of Error","Esitimate","Margin Of Error","Esitimate","Margin Of Error","Esitimate","Margin Of Error","Esitimate","Margin Of Error","Esitimate","Margin Of Error","Esitimate","Margin Of Error","Esitimate","Margin Of Error","Esitimate","Margin Of Error","Esitimate","Margin Of Error","Esitimate","Margin Of Error","Esitimate","Margin Of Error","Esitimate","Margin Of Error","Esitimate","Margin Of Error","Esitimate","Margin Of Error","Esitimate","Margin Of Error","Esitimate","Margin Of Error","Esitimate","Margin Of Error","Esitimate","Margin Of Error","Esitimate","Margin Of Error","Esitimate","Margin Of Error","Esitimate","Margin Of Error","Esitimate","Margin Of Error"]
[null,"Total:",621,150,136,58,293,100,255,68,101,37,68,25,52,36,8029,384,108,42,124,47,141,61,1281,186,576,146,38,27,644,141,204,103,250,99,29,21,279,101,392,109,830,133,449,103,36,23,74,40,190,52,65,31,55,36]
[null,"Less than 10.0 percent",51,39,19,27,0,85,0,85,8,9,0,85,34,36,170,88,5,8,0,85,0,85,51,49,0,85,0,85,100,88,0,85,34,56,0,85,9,14,0,85,114,104,10,16,0,85,0,85,0,85,0,85,0,85]
[null,"10.0 to 14.9 percent",24,38,0,85,13,21,0,85,5,8,6,8,0,85,595,152,4,6,16,22,0,85,128,92,88,73,4,6,0,85,15,24,0,85,0,85,0,85,0,85,12,19,50,53,0,85,0,85,22,20,10,15,0,85]
[null,"15.0 to 19.9 percent",69,50,0,85,81,67,0,85,4,6,22,19,0,85,1064,202,13,14,17,17,22,24,120,71,62,54,3,4,119,59,0,85,0,85,8,8,49,45,61,48,65,77,67,53,12,15,0,85,33,26,7,8,23,26]
[null,"20.0 to 24.9 percent",0,85,17,26,26,32,24,31,15,8,16,17,4,6,1442,281,22,21,15,16,17,20,148,75,100,69,0,85,143,89,39,44,8,14,15,16,40,47,30,31,84,80,62,47,0,85,27,25,0,85,3,4,0,85]
[null,"25.0 to 29.9 percent",44,29,0,85,55,41,20,25,6,7,8,12,0,85,717,166,19,18,7,11,10,16,190,80,70,44,4,6,89,62,45,42,10,16,6,10,0,85,65,61,49,46,92,72,0,85,13,16,49,24,6,7,10,16]
[null,"30.0 to 34.9 percent",68,61,9,14,9,12,13,22,0,85,16,18,6,9,763,190,0,85,0,85,23,22,90,51,46,39,0,85,63,41,52,66,73,80,0,85,18,23,47,61,177,112,17,16,0,85,3,5,20,23,11,14,9,13]
[null,"35.0 to 39.9 percent",102,80,17,28,47,44,22,34,29,24,0,85,0,85,621,207,0,85,0,85,12,18,52,60,0,85,0,85,0,85,12,20,34,33,0,85,0,85,10,16,0,85,17,18,0,85,0,85,15,15,0,85,0,85]
[null,"40.0 to 49.9 percent",122,90,0,85,14,22,62,59,11,17,0,85,0,85,784,223,5,8,22,17,20,24,71,43,104,63,20,24,26,31,0,85,21,32,0,85,21,21,41,54,85,99,8,14,5,7,2,4,31,24,2,3,0,85]
[null,"50.0 percent or more",56,47,20,26,37,36,102,47,6,6,0,85,0,85,1683,252,27,22,25,22,32,36,345,119,60,58,3,6,82,56,21,33,18,22,0,85,124,78,115,72,214,111,99,58,17,15,23,24,13,18,16,19,10,15]
[null,"Not computed",85,65,54,39,11,17,12,19,17,17,0,85,8,12,190,99,13,16,22,26,5,8,86,57,46,45,4,5,22,26,20,30,52,65,0,85,18,29,23,25,30,35,27,41,2,4,6,11,7,10,10,9,3,5]
[]
[]
[]
[]
[]
[]
[]
[]
[]
[]
[]
[]
[]
[]
[]
[]
[]
[null,"Calculated B25070. GROSS RENT AS A PERCENTAGE OF HOUSEHOLD INCOME IN THE PAST 12 MONTHS"]
[null,"Universe:  RENTER-OCCUPIED HOUSING UNITS"]
[null,{"$f":"B160","v":"Data Set: 2008-2012 American Community Survey 3-Year Estimates"}]
[]
[null,null,"Allenstown",null,"Andover",null,"Boscawen",null,"Bow",null,"Bradford",null,"Canterbury",null,"Chichester",null,"Concord",null,"Danbury",null,"Dunbarton",null,"Epsom",null,"Franklin",null,"Henniker",null,"Hill",null,"Hooksett",null,"Hopkinton",null,"Loudon",null,"Newbury",null,"New London",null,"Northfield",null,"Pembroke",null,"Pittsfield",null,"Salisbury",null,"Sutton",null,"Warner",null,"Webster",null,"Wilmot"]
[null," ","Estimate","Margin of Error","Estimate","Margin of Error","Estimate","Margin of Error","Estimate","Margin of Error","Estimate","Margin of Error","Estimate","Margin of Error","Estimate","Margin of Error","Estimate","Margin of Error","Estimate","Margin of Error","Estimate","Margin of Error","Estimate","Margin of Error","Estimate","Margin of Error","Estimate","Margin of Error","Estimate","Margin of Error","Estimate","Margin of Error","Estimate","Margin of Error","Estimate","Margin of Error","Estimate","Margin of Error","Estimate","Margin of Error","Estimate","Margin of Error","Estimate","Margin of Error","Estimate","Margin of Error","Estimate","Margin of Error","Estimate","Margin of Error","Estimate","Margin of Error","Estimate","Margin of Error","Estimate","Margin of Error"]
[null,"Total:",{"$f":"C164","v":621},{"$f":"D164","v":150},{"$f":"E164","v":136},58,293,100,255,68,101,37,68,25,52,36,8029,384,108,42,124,47,141,61,1281,186,576,146,38,27,644,141,204,103,250,99,29,21,279,101,392,109,830,133,449,103,36,23,74,40,190,52,65,31,55,36]
[null,"Less than 20% of HH Income",{"$f":"C165+C166+C167","v":144},{"$f":"SQRT((D165^2)+(D166^2)+(D167^2))","v":73.925638313104884},{"$f":"E165+E166+E167","v":19},{"$f":"SQRT((F165^2)+(F166^2)+(F167^2))","v":123.20308437697491},{"$f":"G165+G166+G167","v":94},{"$f":"SQRT((H165^2)+(H166^2)+(H167^2))","v":110.24971655292362},{"$f":"I165+I166+I167","v":0},{"$f":"SQRT((J165^2)+(J166^2)+(J167^2))","v":147.22431864335456},{"$f":"K165+K166+K167","v":17},{"$f":"SQRT((L165^2)+(L166^2)+(L167^2))","v":13.45362404707371},{"$f":"M165+M166+M167","v":28},{"$f":"SQRT((N165^2)+(N166^2)+(N167^2))","v":87.464278422679513},{"$f":"O165+O166+O167","v":34},{"$f":"SQRT((P165^2)+(P166^2)+(P167^2))","v":125.48306658669129},{"$f":"Q165+Q166+Q167","v":1829},{"$f":"SQRT((R165^2)+(R166^2)+(R167^2))","v":267.67891213168065},{"$f":"S165+S166+S167","v":22},{"$f":"SQRT((T165^2)+(T166^2)+(T167^2))","v":17.204650534085253},{"$f":"U165+U166+U167","v":33},{"$f":"SQRT((V165^2)+(V166^2)+(V167^2))","v":89.43153806124549},{"$f":"W165+W166+W167","v":22},{"$f":"SQRT((X165^2)+(X166^2)+(X167^2))","v":122.5805857385255},{"$f":"Y165+Y166+Y167","v":299},{"$f":"SQRT((Z165^2)+(Z166^2)+(Z167^2))","v":126.11899143269423},{"$f":"AA165+AA166+AA167","v":150},{"$f":"SQRT((AB165^2)+(AB166^2)+(AB167^2))","v":124.37845472588891},{"$f":"AC165+AC166+AC167","v":7},{"$f":"SQRT((AD165^2)+(AD166^2)+(AD167^2))","v":85.305333948118388},{"$f":"AE165+AE166+AE167","v":219},{"$f":"SQRT((AF165^2)+(AF166^2)+(AF167^2))","v":135.83077707206124},{"$f":"AG165+AG166+AG167","v":15},{"$f":"SQRT((AH165^2)+(AH166^2)+(AH167^2))","v":122.5805857385255},{"$f":"AI165+AI166+AI167","v":34},{"$f":"SQRT((AJ165^2)+(AJ166^2)+(AJ167^2))","v":132.61221663180206},{"$f":"AK165+AK166+AK167","v":8},{"$f":"SQRT((AL165^2)+(AL166^2)+(AL167^2))","v":120.47406359876801},{"$f":"AM165+AM166+AM167","v":58},{"$f":"SQRT((AN165^2)+(AN166^2)+(AN167^2))","v":97.190534518542492},{"$f":"AO165+AO166+AO167","v":61},{"$f":"SQRT((AP165^2)+(AP166^2)+(AP167^2))","v":129.43724348115578},{"$f":"AQ165+AQ166+AQ167","v":191},{"$f":"SQRT((AR165^2)+(AR166^2)+(AR167^2))","v":130.78990786754153},{"$f":"AS165+AS166+AS167","v":127},{"$f":"SQRT((AT165^2)+(AT166^2)+(AT167^2))","v":76.642025025438883},{"$f":"AU165+AU166+AU167","v":12},{"$f":"SQRT((AV165^2)+(AV166^2)+(AV167^2))","v":121.14041439585718},{"$f":"AW165+AW166+AW167","v":0},{"$f":"SQRT((AX165^2)+(AX166^2)+(AX167^2))","v":147.22431864335456},{"$f":"AY165+AY166+AY167","v":55},{"$f":"SQRT((AZ165^2)+(AZ166^2)+(AZ167^2))","v":91.109823839144809},{"$f":"BA165+BA166+BA167","v":17},{"$f":"SQRT((BB165^2)+(BB166^2)+(BB167^2))","v":86.683331731077345},{"$f":"BC165+BC166+BC167","v":23},{"$f":"SQRT((BD165^2)+(BD166^2)+(BD167^2))","v":122.98780427343192}]
[null," 20% to 24.9% of HH Income",{"$f":"C168","v":0},{"$f":"D168","v":85},{"$f":"E168","v":17},26,26,32,24,31,15,8,16,17,4,6,1442,281,22,21,15,16,17,20,148,75,100,69,0,85,143,89,39,44,8,14,15,16,40,47,30,31,84,80,62,47,0,85,27,25,0,85,3,4,0,85]
[null," 25% to 29.9% of HH Income",{"$f":"C169","v":44},{"$f":"D169","v":29},{"$f":"E169","v":0},85,55,41,20,25,6,7,8,12,0,85,717,166,19,18,7,11,10,16,190,80,70,44,4,6,89,62,45,42,10,16,6,10,0,85,65,61,49,46,92,72,0,85,13,16,49,24,6,7,10,16]
[null," Less Than 30% of HH Income",{"$f":"C169+C168+C167+C166+C165","v":188},{"$f":"SQRT((D169^2)+(D168^2)+(D167^2)+(D166^2)+(D165^2))","v":116.32282665066217},{"$f":"E169+E168+E167+E166+E165","v":36},{"$f":"SQRT((F169^2)+(F168^2)+(F167^2)+(F166^2)+(F165^2))","v":151.92103211866353},{"$f":"G169+G168+G167+G166+G165","v":175},{"$f":"SQRT((H169^2)+(H168^2)+(H167^2)+(H166^2)+(H165^2))","v":121.90159966136622},{"$f":"I169+I168+I167+I166+I165","v":44},{"$f":"SQRT((J169^2)+(J168^2)+(J167^2)+(J166^2)+(J165^2))","v":152.51557297535226},{"$f":"K169+K168+K167+K166+K165","v":38},{"$f":"SQRT((L169^2)+(L168^2)+(L167^2)+(L166^2)+(L165^2))","v":17.146428199482248},{"$f":"M169+M168+M167+M166+M165","v":52},{"$f":"SQRT((N169^2)+(N168^2)+(N167^2)+(N166^2)+(N165^2))","v":89.905505949302125},{"$f":"O169+O168+O167+O166+O165","v":38},{"$f":"SQRT((P169^2)+(P168^2)+(P167^2)+(P166^2)+(P165^2))","v":151.68058544190816},{"$f":"Q169+Q168+Q167+Q166+Q165","v":3988},{"$f":"SQRT((R169^2)+(R168^2)+(R167^2)+(R166^2)+(R165^2))","v":422.1006988859412},{"$f":"S169+S168+S167+S166+S165","v":63},{"$f":"SQRT((T169^2)+(T168^2)+(T167^2)+(T166^2)+(T165^2))","v":32.572994949804659},{"$f":"U169+U168+U167+U166+U165","v":55},{"$f":"SQRT((V169^2)+(V168^2)+(V167^2)+(V166^2)+(V165^2))","v":91.515026088615627},{"$f":"W169+W168+W167+W166+W165","v":49},{"$f":"SQRT((X169^2)+(X168^2)+(X167^2)+(X166^2)+(X165^2))","v":125.22779244241272},{"$f":"Y169+Y168+Y167+Y166+Y165","v":637},{"$f":"SQRT((Z169^2)+(Z168^2)+(Z167^2)+(Z166^2)+(Z165^2))","v":167.12570119523807},{"$f":"AA169+AA168+AA167+AA166+AA165","v":320},{"$f":"SQRT((AB169^2)+(AB168^2)+(AB167^2)+(AB166^2)+(AB165^2))","v":148.8858623241307},{"$f":"AC169+AC168+AC167+AC166+AC165","v":11},{"$f":"SQRT((AD169^2)+(AD168^2)+(AD167^2)+(AD166^2)+(AD165^2))","v":120.57362895757927},{"$f":"AE169+AE168+AE167+AE166+AE165","v":451},{"$f":"SQRT((AF169^2)+(AF168^2)+(AF167^2)+(AF166^2)+(AF165^2))","v":173.824624262502},{"$f":"AG169+AG168+AG167+AG166+AG165","v":99},{"$f":"SQRT((AH169^2)+(AH168^2)+(AH167^2)+(AH166^2)+(AH165^2))","v":136.84297570573361},{"$f":"AI169+AI168+AI167+AI166+AI165","v":52},{"$f":"SQRT((AJ169^2)+(AJ168^2)+(AJ167^2)+(AJ166^2)+(AJ165^2))","v":134.30562162471085},{"$f":"AK169+AK168+AK167+AK166+AK165","v":29},{"$f":"SQRT((AL169^2)+(AL168^2)+(AL167^2)+(AL166^2)+(AL165^2))","v":121.94260945215171},{"$f":"AM169+AM168+AM167+AM166+AM165","v":98},{"$f":"SQRT((AN169^2)+(AN168^2)+(AN167^2)+(AN166^2)+(AN165^2))","v":137.40451229854133},{"$f":"AO169+AO168+AO167+AO166+AO165","v":156},{"$f":"SQRT((AP169^2)+(AP168^2)+(AP167^2)+(AP166^2)+(AP165^2))","v":146.41038214552955},{"$f":"AQ169+AQ168+AQ167+AQ166+AQ165","v":324},{"$f":"SQRT((AR169^2)+(AR168^2)+(AR167^2)+(AR166^2)+(AR165^2))","v":160.06873523583548},{"$f":"AS169+AS168+AS167+AS166+AS165","v":281},{"$f":"SQRT((AT169^2)+(AT168^2)+(AT167^2)+(AT166^2)+(AT165^2))","v":115.18246394308467},{"$f":"AU169+AU168+AU167+AU166+AU165","v":12},{"$f":"SQRT((AV169^2)+(AV168^2)+(AV167^2)+(AV166^2)+(AV165^2))","v":170.66048165876012},{"$f":"AW169+AW168+AW167+AW166+AW165","v":40},{"$f":"SQRT((AX169^2)+(AX168^2)+(AX167^2)+(AX166^2)+(AX165^2))","v":150.18655066283398},{"$f":"AY169+AY168+AY167+AY166+AY165","v":104},{"$f":"SQRT((AZ169^2)+(AZ168^2)+(AZ167^2)+(AZ166^2)+(AZ165^2))","v":126.89365626381802},{"$f":"BA169+BA168+BA167+BA166+BA165","v":26},{"$f":"SQRT((BB169^2)+(BB168^2)+(BB167^2)+(BB166^2)+(BB165^2))","v":87.057452294447486},{"$f":"BC169+BC168+BC167+BC166+BC165","v":33},{"$f":"SQRT((BD169^2)+(BD168^2)+(BD167^2)+(BD166^2)+(BD165^2))","v":150.35624363490862}]
[null," 30% or More of HH Income",{"$f":"C170+C171+C172+C173","v":348},{"$f":"SQRT((D170^2)+(D171^2)+(D172^2)+(D173^2))","v":142.93355099485913},{"$f":"E170+E171+E172+E173","v":46},{"$f":"SQRT((F170^2)+(F171^2)+(F172^2)+(F173^2))","v":94.239057720246763},{"$f":"G170+G171+G172+G173","v":107},{"$f":"SQRT((H170^2)+(H171^2)+(H172^2)+(H173^2))","v":62.128898268036266},{"$f":"I170+I171+I172+I173","v":199},{"$f":"SQRT((J170^2)+(J171^2)+(J172^2)+(J173^2))","v":85.615419172015976},{"$f":"K170+K171+K172+K173","v":46},{"$f":"SQRT((L170^2)+(L171^2)+(L172^2)+(L173^2))","v":90.144328717895505},{"$f":"M170+M171+M172+M173","v":16},{"$f":"SQRT((N170^2)+(N171^2)+(N172^2)+(N173^2))","v":148.32059870429327},{"$f":"O170+O171+O172+O173","v":6},{"$f":"SQRT((P170^2)+(P171^2)+(P172^2)+(P173^2))","v":147.49915253993834},{"$f":"Q170+Q171+Q172+Q173","v":3851},{"$f":"SQRT((R170^2)+(R171^2)+(R172^2)+(R173^2))","v":438.38567494844079},{"$f":"S170+S171+S172+S173","v":32},{"$f":"SQRT((T170^2)+(T171^2)+(T172^2)+(T173^2))","v":122.46632190116595},{"$f":"U170+U171+U172+U173","v":47},{"$f":"SQRT((V170^2)+(V171^2)+(V172^2)+(V173^2))","v":123.38152211737381},{"$f":"W170+W171+W172+W173","v":87},{"$f":"SQRT((X170^2)+(X171^2)+(X172^2)+(X173^2))","v":51.768716422179139},{"$f":"Y170+Y171+Y172+Y173","v":558},{"$f":"SQRT((Z170^2)+(Z171^2)+(Z172^2)+(Z173^2))","v":149.03355326905415},{"$f":"AA170+AA171+AA172+AA173","v":210},{"$f":"SQRT((AB170^2)+(AB171^2)+(AB172^2)+(AB173^2))","v":126.80299681001235},{"$f":"AC170+AC171+AC172+AC173","v":23},{"$f":"SQRT((AD170^2)+(AD171^2)+(AD172^2)+(AD173^2))","v":122.72734006732159},{"$f":"AE170+AE171+AE172+AE173","v":171},{"$f":"SQRT((AF170^2)+(AF171^2)+(AF172^2)+(AF173^2))","v":114.03069762129844},{"$f":"AG170+AG171+AG172+AG173","v":85},{"$f":"SQRT((AH170^2)+(AH171^2)+(AH172^2)+(AH173^2))","v":114.3241006962224},{"$f":"AI170+AI171+AI172+AI173","v":146},{"$f":"SQRT((AJ170^2)+(AJ171^2)+(AJ172^2)+(AJ173^2))","v":94.8525170989152},{"$f":"AK170+AK171+AK172+AK173","v":0},{"$f":"SQRT((AL170^2)+(AL171^2)+(AL172^2)+(AL173^2))","v":170},{"$f":"AM170+AM171+AM172+AM173","v":163},{"$f":"SQRT((AN170^2)+(AN171^2)+(AN172^2)+(AN173^2))","v":119.49476976001921},{"$f":"AO170+AO171+AO172+AO173","v":213},{"$f":"SQRT((AP170^2)+(AP171^2)+(AP172^2)+(AP173^2))","v":109.89540481748998},{"$f":"AQ170+AQ171+AQ172+AQ173","v":476},{"$f":"SQRT((AR170^2)+(AR171^2)+(AR172^2)+(AR173^2))","v":204.67290978534507},{"$f":"AS170+AS171+AS172+AS173","v":141},{"$f":"SQRT((AT170^2)+(AT171^2)+(AT172^2)+(AT173^2))","v":64.342831768581647},{"$f":"AU170+AU171+AU172+AU173","v":22},{"$f":"SQRT((AV170^2)+(AV171^2)+(AV172^2)+(AV173^2))","v":121.3424904969401},{"$f":"AW170+AW171+AW172+AW173","v":28},{"$f":"SQRT((AX170^2)+(AX171^2)+(AX172^2)+(AX173^2))","v":88.555067613321825},{"$f":"AY170+AY171+AY172+AY173","v":79},{"$f":"SQRT((AZ170^2)+(AZ171^2)+(AZ172^2)+(AZ173^2))","v":40.669398815325508},{"$f":"BA170+BA171+BA172+BA173","v":29},{"$f":"SQRT((BB170^2)+(BB171^2)+(BB172^2)+(BB173^2))","v":88.266641490429436},{"$f":"BC170+BC171+BC172+BC173","v":19},{"$f":"SQRT((BD170^2)+(BD171^2)+(BD172^2)+(BD173^2))","v":121.83595528414426}]
[null," 30% to 34.9% of HH Income",{"$f":"C170","v":68},{"$f":"D170","v":61},{"$f":"E170","v":9},14,9,12,13,22,0,85,16,18,6,9,763,190,0,85,0,85,23,22,90,51,46,39,0,85,63,41,52,66,73,80,0,85,18,23,47,61,177,112,17,16,0,85,3,5,20,23,11,14,9,13]
[null," Less Than 35% of HH Income",{"$f":"C170+C169+C168+C167+C166+C165","v":256},{"$f":"SQRT((D170^2)+(D169^2)+(D168^2)+(D167^2)+(D166^2)+(D165^2))","v":131.34686901483414},{"$f":"E170+E169+E168+E167+E166+E165","v":45},{"$f":"SQRT((F170^2)+(F169^2)+(F168^2)+(F167^2)+(F166^2)+(F165^2))","v":152.56474035634838},{"$f":"G170+G169+G168+G167+G166+G165","v":184},{"$f":"SQRT((H170^2)+(H169^2)+(H168^2)+(H167^2)+(H166^2)+(H165^2))","v":122.49081598226049},{"$f":"I170+I169+I168+I167+I166+I165","v":57},{"$f":"SQRT((J170^2)+(J169^2)+(J168^2)+(J167^2)+(J166^2)+(J165^2))","v":154.09412707822449},{"$f":"K170+K169+K168+K167+K166+K165","v":38},{"$f":"SQRT((L170^2)+(L169^2)+(L168^2)+(L167^2)+(L166^2)+(L165^2))","v":86.712167542969425},{"$f":"M170+M169+M168+M167+M166+M165","v":68},{"$f":"SQRT((N170^2)+(N169^2)+(N168^2)+(N167^2)+(N166^2)+(N165^2))","v":91.689694077360727},{"$f":"O170+O169+O168+O167+O166+O165","v":44},{"$f":"SQRT((P170^2)+(P169^2)+(P168^2)+(P167^2)+(P166^2)+(P165^2))","v":151.94735930578062},{"$f":"Q170+Q169+Q168+Q167+Q166+Q165","v":4751},{"$f":"SQRT((R170^2)+(R169^2)+(R168^2)+(R167^2)+(R166^2)+(R165^2))","v":462.89199604227332},{"$f":"S170+S169+S168+S167+S166+S165","v":63},{"$f":"SQRT((T170^2)+(T169^2)+(T168^2)+(T167^2)+(T166^2)+(T165^2))","v":91.027468381802208},{"$f":"U170+U169+U168+U167+U166+U165","v":55},{"$f":"SQRT((V170^2)+(V169^2)+(V168^2)+(V167^2)+(V166^2)+(V165^2))","v":124.89995996796796},{"$f":"W170+W169+W168+W167+W166+W165","v":72},{"$f":"SQRT((X170^2)+(X169^2)+(X168^2)+(X167^2)+(X166^2)+(X165^2))","v":127.14558584551806},{"$f":"Y170+Y169+Y168+Y167+Y166+Y165","v":727},{"$f":"SQRT((Z170^2)+(Z169^2)+(Z168^2)+(Z167^2)+(Z166^2)+(Z165^2))","v":174.73408368146153},{"$f":"AA170+AA169+AA168+AA167+AA166+AA165","v":366},{"$f":"SQRT((AB170^2)+(AB169^2)+(AB168^2)+(AB167^2)+(AB166^2)+(AB165^2))","v":153.90906406056791},{"$f":"AC170+AC169+AC168+AC167+AC166+AC165","v":11},{"$f":"SQRT((AD170^2)+(AD169^2)+(AD168^2)+(AD167^2)+(AD166^2)+(AD165^2))","v":147.52287958143984},{"$f":"AE170+AE169+AE168+AE167+AE166+AE165","v":514},{"$f":"SQRT((AF170^2)+(AF169^2)+(AF168^2)+(AF167^2)+(AF166^2)+(AF165^2))","v":178.5945127936466},{"$f":"AG170+AG169+AG168+AG167+AG166+AG165","v":151},{"$f":"SQRT((AH170^2)+(AH169^2)+(AH168^2)+(AH167^2)+(AH166^2)+(AH165^2))","v":151.92761434314698},{"$f":"AI170+AI169+AI168+AI167+AI166+AI165","v":125},{"$f":"SQRT((AJ170^2)+(AJ169^2)+(AJ168^2)+(AJ167^2)+(AJ166^2)+(AJ165^2))","v":156.3265812330072},{"$f":"AK170+AK169+AK168+AK167+AK166+AK165","v":29},{"$f":"SQRT((AL170^2)+(AL169^2)+(AL168^2)+(AL167^2)+(AL166^2)+(AL165^2))","v":148.64386970204993},{"$f":"AM170+AM169+AM168+AM167+AM166+AM165","v":116},{"$f":"SQRT((AN170^2)+(AN169^2)+(AN168^2)+(AN167^2)+(AN166^2)+(AN165^2))","v":139.31618714277246},{"$f":"AO170+AO169+AO168+AO167+AO166+AO165","v":203},{"$f":"SQRT((AP170^2)+(AP169^2)+(AP168^2)+(AP167^2)+(AP166^2)+(AP165^2))","v":158.60958356921563},{"$f":"AQ170+AQ169+AQ168+AQ167+AQ166+AQ165","v":501},{"$f":"SQRT((AR170^2)+(AR169^2)+(AR168^2)+(AR167^2)+(AR166^2)+(AR165^2))","v":195.36120392749427},{"$f":"AS170+AS169+AS168+AS167+AS166+AS165","v":298},{"$f":"SQRT((AT170^2)+(AT169^2)+(AT168^2)+(AT167^2)+(AT166^2)+(AT165^2))","v":116.28843450661807},{"$f":"AU170+AU169+AU168+AU167+AU166+AU165","v":12},{"$f":"SQRT((AV170^2)+(AV169^2)+(AV168^2)+(AV167^2)+(AV166^2)+(AV165^2))","v":190.6567596493762},{"$f":"AW170+AW169+AW168+AW167+AW166+AW165","v":43},{"$f":"SQRT((AX170^2)+(AX169^2)+(AX168^2)+(AX167^2)+(AX166^2)+(AX165^2))","v":150.26975743641833},{"$f":"AY170+AY169+AY168+AY167+AY166+AY165","v":124},{"$f":"SQRT((AZ170^2)+(AZ169^2)+(AZ168^2)+(AZ167^2)+(AZ166^2)+(AZ165^2))","v":128.96123448540649},{"$f":"BA170+BA169+BA168+BA167+BA166+BA165","v":37},{"$f":"SQRT((BB170^2)+(BB169^2)+(BB168^2)+(BB167^2)+(BB166^2)+(BB165^2))","v":88.175960442741996},{"$f":"BC170+BC169+BC168+BC167+BC166+BC165","v":42},{"$f":"SQRT((BD170^2)+(BD169^2)+(BD168^2)+(BD167^2)+(BD166^2)+(BD165^2))","v":150.91719583930785}]
[null," 35% or More of HH Income",{"$f":"C171+C172+C173","v":280},{"$f":"SQRT((D171^2)+(D172^2)+(D173^2))","v":129.26329718833571},{"$f":"E171+E172+E173","v":37},{"$f":"SQRT((F171^2)+(F172^2)+(F173^2))","v":93.1933474020544},{"$f":"G171+G172+G173","v":98},{"$f":"SQRT((H171^2)+(H172^2)+(H173^2))","v":60.959002616512684},{"$f":"I171+I172+I173","v":186},{"$f":"SQRT((J171^2)+(J172^2)+(J173^2))","v":82.740558373750417},{"$f":"K171+K172+K173","v":46},{"$f":"SQRT((L171^2)+(L172^2)+(L173^2))","v":30.016662039607269},{"$f":"M171+M172+M173","v":0},{"$f":"SQRT((N171^2)+(N172^2)+(N173^2))","v":147.22431864335456},{"$f":"O171+O172+O173","v":0},{"$f":"SQRT((P171^2)+(P172^2)+(P173^2))","v":147.22431864335456},{"$f":"Q171+Q172+Q173","v":3088},{"$f":"SQRT((R171^2)+(R172^2)+(R173^2))","v":395.0721453101952},{"$f":"S171+S172+S173","v":32},{"$f":"SQRT((T171^2)+(T172^2)+(T173^2))","v":88.164618753783543},{"$f":"U171+U172+U173","v":47},{"$f":"SQRT((V171^2)+(V172^2)+(V173^2))","v":89.43153806124549},{"$f":"W171+W172+W173","v":64},{"$f":"SQRT((X171^2)+(X172^2)+(X173^2))","v":46.861498055439924},{"$f":"Y171+Y172+Y173","v":468},{"$f":"SQRT((Z171^2)+(Z172^2)+(Z173^2))","v":140.03570973148243},{"$f":"AA171+AA172+AA173","v":164},{"$f":"SQRT((AB171^2)+(AB172^2)+(AB173^2))","v":120.65653732807021},{"$f":"AC171+AC172+AC173","v":23},{"$f":"SQRT((AD171^2)+(AD172^2)+(AD173^2))","v":88.526832090615329},{"$f":"AE171+AE172+AE173","v":108},{"$f":"SQRT((AF171^2)+(AF172^2)+(AF173^2))","v":106.40488710580919},{"$f":"AG171+AG172+AG173","v":33},{"$f":"SQRT((AH171^2)+(AH172^2)+(AH173^2))","v":93.348808240919709},{"$f":"AI171+AI172+AI173","v":73},{"$f":"SQRT((AJ171^2)+(AJ172^2)+(AJ173^2))","v":50.960769224963627},{"$f":"AK171+AK172+AK173","v":0},{"$f":"SQRT((AL171^2)+(AL172^2)+(AL173^2))","v":147.22431864335456},{"$f":"AM171+AM172+AM173","v":145},{"$f":"SQRT((AN171^2)+(AN172^2)+(AN173^2))","v":117.26039399558574},{"$f":"AO171+AO172+AO173","v":166},{"$f":"SQRT((AP171^2)+(AP172^2)+(AP173^2))","v":91.411159056211517},{"$f":"AQ171+AQ172+AQ173","v":299},{"$f":"SQRT((AR171^2)+(AR172^2)+(AR173^2))","v":171.30966114028712},{"$f":"AS171+AS172+AS173","v":124},{"$f":"SQRT((AT171^2)+(AT172^2)+(AT173^2))","v":62.321745803531535},{"$f":"AU171+AU172+AU173","v":22},{"$f":"SQRT((AV171^2)+(AV172^2)+(AV173^2))","v":86.596766683289047},{"$f":"AW171+AW172+AW173","v":25},{"$f":"SQRT((AX171^2)+(AX172^2)+(AX173^2))","v":88.41379982785493},{"$f":"AY171+AY172+AY173","v":59},{"$f":"SQRT((AZ171^2)+(AZ172^2)+(AZ173^2))","v":33.541019662496844},{"$f":"BA171+BA172+BA173","v":18},{"$f":"SQRT((BB171^2)+(BB172^2)+(BB173^2))","v":87.149297185921128},{"$f":"BC171+BC172+BC173","v":10},{"$f":"SQRT((BD171^2)+(BD172^2)+(BD173^2))","v":121.14041439585718}]
[null," 50% or More of HH Income",{"$f":"C173","v":56},{"$f":"D173","v":47},{"$f":"E173","v":20},26,37,36,102,47,6,6,0,85,0,85,1683,252,27,22,25,22,32,36,345,119,60,58,3,6,82,56,21,33,18,22,0,85,124,78,115,72,214,111,99,58,17,15,23,24,13,18,16,19,10,15]
[null,"Not computed",{"$f":"C174","v":85},{"$f":"D174","v":65},{"$f":"E174","v":54},39,11,17,12,19,17,17,0,85,8,12,190,99,13,16,22,26,5,8,86,57,46,45,4,5,22,26,20,30,52,65,0,85,18,29,23,25,30,35,27,41,2,4,6,11,7,10,10,9,3,5]

{"sheet":"ACS_Table_B25074","index":59,"n_rows":465,"n_cols":56,"rows_kept":465,"cut":false,"hidden":true,"merged":[]}
[null,"B25074. HOUSEHOLD INCOME BY GROSS RENT AS A PERCENTAGE OF HOUSEHOLD INCOME IN THE PAST 12 MONTHS"]
[null,"Universe:  RENTER-OCCUPIED HOUSING UNITS",null,null,null,{"$f":"RentalHousingCost!D41","v":"Income in 2022 Inflation Adjusted Dollars"}]
["DropDownList!B47","Data Set: 2018-2022 American Community Survey 5-Year Estimates"]
[]
[null,null,"Allenstown",null,"Andover",null,"Boscawen",null,"Bow",null,"Bradford",null,"Canterbury",null,"Chichester",null,"Concord",null,"Danbury",null,"Dunbarton",null,"Epsom",null,"Franklin",null,"Henniker",null,"Hill",null,"Hooksett",null,"Hopkinton",null,"Loudon",null,"Newbury",null,"New London",null,"Northfield",null,"Pembroke",null,"Pittsfield",null,"Salisbury",null,"Sutton",null,"Warner",null,"Webster",null,"Wilmot"]
[null,null,"Estimate","Margin Of Error","Estimate","Margin Of Error","Estimate","Margin Of Error","Estimate","Margin Of Error","Estimate","Margin Of Error","Estimate","Margin Of Error","Estimate","Margin Of Error","Estimate","Margin Of Error","Estimate","Margin Of Error","Estimate","Margin Of Error","Estimate","Margin Of Error","Estimate","Margin Of Error","Estimate","Margin Of Error","Estimate","Margin Of Error","Estimate","Margin Of Error","Estimate","Margin Of Error","Estimate","Margin Of Error","Estimate","Margin Of Error","Estimate","Margin Of Error","Estimate","Margin Of Error","Estimate","Margin Of Error","Estimate","Margin Of Error","Estimate","Margin Of Error","Estimate","Margin Of Error","Estimate","Margin Of Error","Estimate","Margin Of Error","Estimate","Margin Of Error"]
[null,"Total:",373,153,84,44,324,94,265,91,68,35,55,36,72,45,7680,442,47,32,43,22,204,81,1409,255,852,272,20,20,1066,219,256,146,319,181,94,40,151,69,496,124,630,156,580,158,23,21,38,21,376,90,37,23,136,56]
[null,"Less than $10,000:",0,12,5,7,12,19,17,20,0,12,11,15,0,12,536,179,0,12,0,12,0,12,89,74,29,44,11,16,99,76,0,17,0,17,0,12,21,24,41,49,76,91,71,95,0,12,0,12,22,19,10,13,3,5]
[null,"Less than 20.0 percent",0,12,0,12,0,12,0,17,0,12,0,12,0,12,0,25,0,12,0,12,0,12,0,17,0,17,0,12,0,19,0,17,0,17,0,12,0,12,0,12,0,17,0,12,0,12,0,12,0,12,0,12,0,12]
[null,"20.0 to 24.9 percent",0,12,0,12,0,12,0,17,0,12,0,12,0,12,0,25,0,12,0,12,0,12,0,17,0,17,0,12,0,19,0,17,0,17,0,12,0,12,0,12,0,17,0,12,0,12,0,12,0,12,0,12,0,12]
[null,"25.0 to 29.9 percent",0,12,0,12,0,12,0,17,0,12,0,12,0,12,0,25,0,12,0,12,0,12,19,28,0,17,0,12,0,19,0,17,0,17,0,12,0,12,0,12,0,17,0,12,0,12,0,12,0,12,0,12,0,12]
[null,"30.0 to 34.9 percent",0,12,0,12,0,12,0,17,0,12,0,12,0,12,0,25,0,12,0,12,0,12,37,51,0,17,0,12,0,19,0,17,0,17,0,12,0,12,0,12,0,17,0,12,0,12,0,12,0,12,0,12,0,12]
[null,"35.0 to 39.9 percent",0,12,0,12,0,12,0,17,0,12,0,12,0,12,57,66,0,12,0,12,0,12,0,17,0,17,0,12,0,19,0,17,0,17,0,12,0,12,0,12,0,17,0,12,0,12,0,12,0,12,0,12,0,12]
[null,"40.0 to 49.9 percent",0,12,0,12,0,12,0,17,0,12,0,12,0,12,0,25,0,12,0,12,0,12,0,17,0,17,0,12,0,19,0,17,0,17,0,12,0,12,0,12,0,17,59,93,0,12,0,12,0,12,0,12,0,12]
[null,"50.0 percent or more",0,12,0,12,0,12,7,11,0,12,11,15,0,12,300,162,0,12,0,12,0,12,15,19,29,44,11,16,75,68,0,17,0,17,0,12,13,20,41,49,60,89,0,12,0,12,0,12,7,10,4,6,0,12]
[null,"Not computed",0,12,5,7,12,19,10,15,0,12,0,12,0,12,179,86,0,12,0,12,0,12,18,29,0,17,0,12,24,39,0,17,0,17,0,12,8,12,0,12,16,25,12,20,0,12,0,12,15,16,6,10,3,5]
[null,"$10,000 to $19,999:",126,107,5,9,81,60,31,22,0,12,25,30,0,12,971,254,0,12,0,12,32,38,283,116,266,148,0,12,39,32,10,16,116,116,15,13,15,19,42,33,78,73,14,23,0,12,3,4,56,31,3,4,0,12]
[null,"Less than 20.0 percent",10,15,0,12,25,42,0,17,0,12,0,12,0,12,20,30,0,12,0,12,0,12,10,16,0,17,0,12,0,19,0,17,0,17,0,12,0,12,21,23,0,17,0,12,0,12,0,12,0,12,0,12,0,12]
[null,"20.0 to 24.9 percent",0,12,0,12,0,12,0,17,0,12,0,12,0,12,132,74,0,12,0,12,0,12,21,35,10,16,0,12,28,32,0,17,0,17,0,12,0,12,0,12,0,17,0,12,0,12,0,12,0,12,0,12,0,12]
[null,"25.0 to 29.9 percent",0,12,0,12,0,12,0,17,0,12,0,12,0,12,151,102,0,12,0,12,10,17,30,28,99,90,0,12,0,19,0,17,31,47,4,6,10,17,7,11,0,17,14,23,0,12,0,12,15,23,0,12,0,12]
[null,"30.0 to 34.9 percent",0,12,0,12,0,12,0,17,0,12,0,12,0,12,11,12,0,12,0,12,0,12,88,79,11,17,0,12,0,19,0,17,0,17,5,8,5,9,0,12,0,17,0,12,0,12,0,12,21,23,0,12,0,12]
[null,"35.0 to 39.9 percent",0,12,0,12,0,12,12,18,0,12,0,12,0,12,143,151,0,12,0,12,0,12,0,17,0,17,0,12,0,19,0,17,0,17,0,12,0,12,0,12,0,17,0,12,0,12,0,12,0,12,0,12,0,12]
[null,"40.0 to 49.9 percent",22,35,0,12,0,12,0,17,0,12,6,8,0,12,67,70,0,12,0,12,0,12,60,57,0,17,0,12,0,19,0,17,46,79,0,12,0,12,0,12,19,31,0,12,0,12,0,12,0,12,0,12,0,12]
[null,"50.0 percent or more",94,100,5,9,56,45,19,21,0,12,19,29,0,12,430,156,0,12,0,12,22,35,74,55,146,132,0,12,11,19,0,17,39,64,0,12,0,12,14,20,59,64,0,12,0,12,3,4,15,16,0,12,0,12]
[null,"Not computed",0,12,0,12,0,12,0,17,0,12,0,12,0,12,17,23,0,12,0,12,0,12,0,17,0,17,0,12,0,19,10,16,0,17,6,8,0,12,0,12,0,17,0,12,0,12,0,12,5,7,3,4,0,12]
[null,"$20,000 to $34,999:",64,68,22,25,46,52,57,35,9,15,0,12,22,28,1173,260,5,6,6,9,61,37,254,133,225,155,0,12,144,109,11,19,30,37,47,36,7,12,39,34,134,113,172,120,4,8,4,6,112,53,0,12,45,51]
[null,"Less than 20.0 percent",0,12,0,12,32,47,0,17,0,12,0,12,0,12,92,74,0,12,0,12,0,12,10,15,19,22,0,12,0,19,0,17,0,17,0,12,0,12,0,12,0,17,0,12,0,12,0,12,0,12,0,12,0,12]
[null,"20.0 to 24.9 percent",5,8,0,12,0,12,0,17,0,12,0,12,0,12,35,44,0,12,0,12,0,12,0,17,0,17,0,12,0,19,0,17,0,17,13,10,0,12,0,12,0,17,0,12,0,12,0,12,16,25,0,12,0,12]
[null,"25.0 to 29.9 percent",9,13,0,12,0,12,0,17,0,12,0,12,0,12,26,23,0,12,0,12,18,22,38,29,0,17,0,12,21,26,0,17,0,17,18,24,0,12,0,12,74,93,0,12,0,12,0,12,23,25,0,12,12,19]
[null,"30.0 to 34.9 percent",0,12,0,12,0,12,0,17,0,12,0,12,0,12,179,132,0,12,0,12,0,12,0,17,0,17,0,12,0,19,0,17,17,28,0,12,0,12,0,12,0,17,60,77,0,12,0,12,24,32,0,12,0,12]
[null,"35.0 to 39.9 percent",0,12,0,12,0,12,0,17,0,12,0,12,0,12,80,65,0,12,0,12,0,12,39,46,0,17,0,12,29,42,0,17,0,17,0,12,0,12,17,26,0,17,59,92,0,12,0,12,0,12,0,12,4,5]
[null,"40.0 to 49.9 percent",9,14,6,9,14,24,0,17,0,12,0,12,0,12,237,92,2,4,0,12,19,20,84,84,178,148,0,12,0,19,0,17,0,17,0,12,0,12,11,18,0,17,15,24,4,8,0,12,0,12,0,12,29,47]
[null,"50.0 percent or more",41,66,0,12,0,12,57,35,9,15,0,12,18,27,524,158,3,5,6,9,16,17,83,68,28,34,0,12,83,100,11,19,13,22,0,12,7,12,11,20,60,68,38,60,0,12,0,12,22,24,0,12,0,12]
[null,"Not computed",0,12,16,24,0,12,0,17,0,12,0,12,4,6,0,25,0,12,0,12,8,13,0,17,0,17,0,12,11,18,0,17,0,17,16,25,0,12,0,12,0,17,0,12,0,12,4,6,27,25,0,12,0,12]
[null,"$35,000 to $49,999:",57,62,24,27,34,32,10,17,13,9,4,6,0,12,1008,240,24,19,13,15,50,62,159,100,85,80,0,12,104,62,21,29,45,55,10,10,27,32,142,99,68,66,170,101,0,12,5,8,53,56,4,4,6,8]
[null,"Less than 20.0 percent",41,60,0,12,10,16,0,17,0,12,0,12,0,12,18,21,0,12,0,12,0,12,5,8,29,50,0,12,8,12,0,17,14,25,0,12,17,28,0,12,41,55,13,23,0,12,0,12,0,12,2,3,0,12]
[null,"20.0 to 24.9 percent",0,12,0,12,0,12,0,17,0,12,0,12,0,12,210,125,0,12,0,12,0,12,10,15,56,64,0,12,0,19,0,17,0,17,0,12,0,12,26,39,0,17,0,12,0,12,0,12,0,12,0,12,6,8]
[null,"25.0 to 29.9 percent",16,21,0,12,0,12,0,17,4,5,0,12,0,12,146,80,0,12,0,12,0,12,53,65,0,17,0,12,7,13,7,11,0,17,0,12,10,15,50,75,0,17,26,31,0,12,0,12,0,12,0,12,0,12]
[null,"30.0 to 34.9 percent",0,12,0,12,0,12,0,17,0,12,4,6,0,12,122,68,9,12,9,14,28,46,9,14,0,17,0,12,37,36,14,27,0,17,5,8,0,12,10,18,0,17,64,77,0,12,0,12,37,51,0,12,0,12]
[null,"35.0 to 39.9 percent",0,12,0,12,0,12,0,17,6,8,0,12,0,12,187,134,4,5,0,12,7,11,0,17,0,17,0,12,0,19,0,17,0,17,5,7,0,12,47,52,0,17,21,34,0,12,0,12,11,16,2,3,0,12]
[null,"40.0 to 49.9 percent",0,12,7,10,11,18,10,17,3,5,0,12,0,12,243,117,0,12,0,12,15,29,65,61,0,17,0,12,30,32,0,17,0,17,0,12,0,12,9,14,0,17,46,64,0,12,0,12,5,7,0,12,0,12]
[null,"50.0 percent or more",0,12,0,12,13,20,0,17,0,12,0,12,0,12,82,61,0,12,0,12,0,12,17,27,0,17,0,12,22,33,0,17,31,45,0,12,0,12,0,12,27,35,0,12,0,12,0,12,0,12,0,12,0,12]
[null,"Not computed",0,12,17,26,0,12,0,17,0,12,0,12,0,12,0,25,11,14,4,6,0,12,0,17,0,17,0,12,0,19,0,17,0,17,0,12,0,12,0,12,0,17,0,12,0,12,5,8,0,12,0,12,0,12]
[null,"$50,000 to $74,999:",51,43,12,18,84,62,53,43,25,25,0,12,4,6,1568,261,10,17,5,7,42,35,139,67,175,137,6,9,160,83,67,70,77,107,16,14,26,24,125,66,124,84,76,64,0,12,7,8,66,46,3,5,24,24]
[null,"Less than 20.0 percent",17,28,0,12,25,28,0,17,3,5,0,12,0,12,223,112,10,17,5,7,0,12,28,30,128,124,0,12,33,31,33,51,0,17,5,9,0,12,51,50,11,18,12,20,0,12,0,12,8,14,0,12,0,12]
[null,"20.0 to 24.9 percent",8,13,12,18,11,18,33,36,13,19,0,12,0,12,290,116,0,12,0,12,16,19,83,56,47,56,6,9,9,13,34,49,0,17,0,12,0,12,49,38,29,38,47,50,0,12,0,12,39,35,3,5,14,23]
[null,"25.0 to 29.9 percent",0,12,0,12,31,50,9,14,0,12,0,12,0,12,605,191,0,12,0,12,18,27,25,29,0,17,0,12,15,24,0,17,77,107,0,12,8,13,14,23,29,45,17,29,0,12,0,12,6,9,0,12,2,4]
[null,"30.0 to 34.9 percent",0,12,0,12,17,26,11,17,0,12,0,12,0,12,181,80,0,12,0,12,8,12,0,17,0,17,0,12,76,58,0,17,0,17,0,12,18,21,0,12,0,17,0,12,0,12,3,5,0,12,0,12,4,5]
[null,"35.0 to 39.9 percent",26,31,0,12,0,12,0,17,9,16,0,12,0,12,157,82,0,12,0,12,0,12,3,6,0,17,0,12,22,33,0,17,0,17,0,12,0,12,0,12,4,10,0,12,0,12,4,6,0,12,0,12,0,12]
[null,"40.0 to 49.9 percent",0,12,0,12,0,12,0,17,0,12,0,12,0,12,102,85,0,12,0,12,0,12,0,17,0,17,0,12,0,19,0,17,0,17,5,8,0,12,0,12,51,61,0,12,0,12,0,12,13,19,0,12,4,6]
[null,"50.0 percent or more",0,12,0,12,0,12,0,17,0,12,0,12,0,12,10,16,0,12,0,12,0,12,0,17,0,17,0,12,0,19,0,17,0,17,0,12,0,12,0,12,0,17,0,12,0,12,0,12,0,12,0,12,0,12]
[null,"Not computed",0,12,0,12,0,12,0,17,0,12,0,12,4,6,0,25,0,12,0,12,0,12,0,17,0,17,0,12,5,11,0,17,0,17,6,8,0,12,11,16,0,17,0,12,0,12,0,12,0,12,0,12,0,12]
[null,"$75,000 to $99,999:",34,31,16,13,11,16,17,19,8,8,0,12,10,11,1150,225,0,12,9,11,19,23,358,206,26,29,3,4,229,116,93,90,0,17,0,12,34,31,58,56,55,54,55,60,16,18,8,11,22,17,17,18,15,15]
[null,"Less than 20.0 percent",29,30,5,8,0,12,10,17,8,8,0,12,0,12,541,151,0,12,9,11,10,17,277,188,14,23,3,4,41,42,38,66,0,17,0,12,11,15,0,12,37,48,0,12,8,12,0,12,16,16,0,12,4,5]
[null,"20.0 to 24.9 percent",5,8,6,9,0,12,7,10,0,12,0,12,0,12,324,132,0,12,0,12,0,12,4,10,12,17,0,12,50,57,0,17,0,17,0,12,0,12,4,11,0,17,34,50,0,12,4,8,0,12,11,16,0,12]
[null,"25.0 to 29.9 percent",0,12,0,12,11,16,0,17,0,12,0,12,5,7,205,75,0,12,0,12,0,12,0,17,0,17,0,12,106,80,18,31,0,17,0,12,9,17,44,52,15,24,0,12,8,13,4,7,0,12,6,9,11,14]
[null,"30.0 to 34.9 percent",0,12,5,7,0,12,0,17,0,12,0,12,0,12,0,25,0,12,0,12,9,15,54,62,0,17,0,12,32,33,0,17,0,17,0,12,0,12,0,12,0,17,0,12,0,12,0,12,6,10,0,12,0,12]
[null,"35.0 to 39.9 percent",0,12,0,12,0,12,0,17,0,12,0,12,5,9,0,25,0,12,0,12,0,12,0,17,0,17,0,12,0,19,0,17,0,17,0,12,0,12,0,12,0,17,0,12,0,12,0,12,0,12,0,12,0,12]
[null,"40.0 to 49.9 percent",0,12,0,12,0,12,0,17,0,12,0,12,0,12,20,23,0,12,0,12,0,12,0,17,0,17,0,12,0,19,0,17,0,17,0,12,0,12,0,12,0,17,0,12,0,12,0,12,0,12,0,12,0,12]
[null,"50.0 percent or more",0,12,0,12,0,12,0,17,0,12,0,12,0,12,40,62,0,12,0,12,0,12,0,17,0,17,0,12,0,19,0,17,0,17,0,12,0,12,0,12,0,17,0,12,0,12,0,12,0,12,0,12,0,12]
[null,"Not computed",0,12,0,12,0,12,0,17,0,12,0,12,0,12,20,24,0,12,0,12,0,12,23,38,0,17,0,12,0,19,37,57,0,17,0,12,14,22,10,17,3,7,21,31,0,12,0,12,0,12,0,12,0,12]
[null,"$100,000 or more:",41,34,0,12,56,45,80,57,13,20,15,14,36,31,1274,197,8,10,10,11,0,12,127,83,46,54,0,12,291,135,54,74,51,51,6,9,21,23,49,38,95,67,22,25,3,6,11,12,45,44,0,12,43,26]
[null,"Less than 20.0 percent",41,34,0,12,10,15,32,34,0,12,5,8,36,31,1088,198,0,12,10,11,0,12,99,74,33,49,0,12,244,118,44,72,51,51,6,9,12,19,37,34,82,64,13,20,3,6,8,11,45,44,0,12,32,22]
[null,"20.0 to 24.9 percent",0,12,0,12,36,41,10,16,0,12,5,8,0,12,115,65,0,12,0,12,0,12,28,36,0,17,0,12,47,65,0,17,0,17,0,12,9,15,0,12,13,23,9,14,0,12,0,12,0,12,0,12,11,15]
[null,"25.0 to 29.9 percent",0,12,0,12,10,17,38,49,0,12,0,12,0,12,34,32,8,10,0,12,0,12,0,17,13,22,0,12,0,19,0,17,0,17,0,12,0,12,0,12,0,17,0,12,0,12,0,12,0,12,0,12,0,12]
[null,"30.0 to 34.9 percent",0,12,0,12,0,12,0,17,0,12,0,12,0,12,8,12,0,12,0,12,0,12,0,17,0,17,0,12,0,19,0,17,0,17,0,12,0,12,0,12,0,17,0,12,0,12,0,12,0,12,0,12,0,12]
[null,"35.0 to 39.9 percent",0,12,0,12,0,12,0,17,0,12,0,12,0,12,0,25,0,12,0,12,0,12,0,17,0,17,0,12,0,19,0,17,0,17,0,12,0,12,0,12,0,17,0,12,0,12,0,12,0,12,0,12,0,12]
[null,"40.0 to 49.9 percent",0,12,0,12,0,12,0,17,0,12,0,12,0,12,0,25,0,12,0,12,0,12,0,17,0,17,0,12,0,19,0,17,0,17,0,12,0,12,0,12,0,17,0,12,0,12,0,12,0,12,0,12,0,12]
[null,"50.0 percent or more",0,12,0,12,0,12,0,17,0,12,0,12,0,12,0,25,0,12,0,12,0,12,0,17,0,17,0,12,0,19,0,17,0,17,0,12,0,12,0,12,0,17,0,12,0,12,0,12,0,12,0,12,0,12]
[null,"Not computed",0,12,0,12,0,12,0,17,13,20,5,7,0,12,29,27,0,12,0,12,0,12,0,17,0,17,0,12,0,19,10,16,0,17,0,12,0,12,12,18,0,17,0,12,0,12,3,5,0,12,0,12,0,12]
[]
[]
[]
[]
[]
[]
[]
[]
[]
[]
[]
[]
[]
[]
[]
[null,"Calculated B25074. HOUSEHOLD INCOME BY GROSS RENT AS A PERCENTAGE OF HOUSEHOLD INCOME IN THE PAST 12 MONTHS"]
[null,"Universe:  RENTER-OCCUPIED HOUSING UNITS"]
[null,"Data Set: 2018-2022 American Community Survey 5-Year Estimates"]
[]
[null,null,"Allenstown",null,"Andover",null,"Boscawen",null,"Bow",null,"Bradford",null,"Canterbury",null,"Chichester",null,"Concord",null,"Danbury",null,"Dunbarton",null,"Epsom",null,"Franklin",null,"Henniker",null,"Hill",null,"Hooksett",null,"Hopkinton",null,"Loudon",null,"Newbury",null,"New London",null,"Northfield",null,"Pembroke",null,"Pittsfield",null,"Salisbury",null,"Sutton",null,"Warner",null,"Webster",null,"Wilmot"]
[null,null,"Estimate","Margin Of Error","Estimate","Margin Of Error","Estimate","Margin Of Error","Estimate","Margin Of Error","Estimate","Margin Of Error","Estimate","Margin Of Error","Estimate","Margin Of Error","Estimate","Margin Of Error","Estimate","Margin Of Error","Estimate","Margin Of Error","Estimate","Margin Of Error","Estimate","Margin Of Error","Estimate","Margin Of Error","Estimate","Margin Of Error","Estimate","Margin Of Error","Estimate","Margin Of Error","Estimate","Margin Of Error","Estimate","Margin Of Error","Estimate","Margin Of Error","Estimate","Margin Of Error","Estimate","Margin Of Error","Estimate","Margin Of Error","Estimate","Margin Of Error","Estimate","Margin Of Error","Estimate","Margin Of Error","Estimate","Margin Of Error","Estimate","Margin Of Error"]
[null,"Total:",{"$f":"C7","v":373},153,84,44,324,94,265,91,68,35,55,36,72,45,7680,442,{"$f":"S7","v":47},32,43,22,204,81,1409,255,852,272,20,20,1066,219,256,146,319,181,94,40,151,69,496,124,630,156,580,158,23,21,38,21,376,90,37,23,136,56]
[null,"Less than $10,000:",0,12,5,7,12,19,17,20,0,12,11,15,0,12,536,179,0,12,0,12,0,12,89,74,29,44,11,16,99,76,0,17,0,17,0,12,21,24,41,49,76,91,71,95,0,12,0,12,22,19,10,13,3,5]
[null,"Less than 30.0 percent",{"$f":"C9+C10+C11","v":0},{"$f":"SQRT((D9^2)+(D10^2)+(D11^2))","v":20.784609690826528},{"$f":"E9+E10+E11","v":0},{"$f":"SQRT((F9^2)+(F10^2)+(F11^2))","v":20.784609690826528},{"$f":"G9+G10+G11","v":0},{"$f":"SQRT((H9^2)+(H10^2)+(H11^2))","v":20.784609690826528},{"$f":"I9+I10+I11","v":0},{"$f":"SQRT((J9^2)+(J10^2)+(J11^2))","v":29.444863728670914},{"$f":"K9+K10+K11","v":0},{"$f":"SQRT((L9^2)+(L10^2)+(L11^2))","v":20.784609690826528},{"$f":"M9+M10+M11","v":0},{"$f":"SQRT((N9^2)+(N10^2)+(N11^2))","v":20.784609690826528},{"$f":"O9+O10+O11","v":0},{"$f":"SQRT((P9^2)+(P10^2)+(P11^2))","v":20.784609690826528},{"$f":"Q9+Q10+Q11","v":0},{"$f":"SQRT((R9^2)+(R10^2)+(R11^2))","v":43.301270189221931},{"$f":"S9+S10+S11","v":0},{"$f":"SQRT((T9^2)+(T10^2)+(T11^2))","v":20.784609690826528},{"$f":"U9+U10+U11","v":0},{"$f":"SQRT((V9^2)+(V10^2)+(V11^2))","v":20.784609690826528},{"$f":"W9+W10+W11","v":0},{"$f":"SQRT((X9^2)+(X10^2)+(X11^2))","v":20.784609690826528},{"$f":"Y9+Y10+Y11","v":19},{"$f":"SQRT((Z9^2)+(Z10^2)+(Z11^2))","v":36.905284174491868},{"$f":"AA9+AA10+AA11","v":0},{"$f":"SQRT((AB9^2)+(AB10^2)+(AB11^2))","v":29.444863728670914},{"$f":"AC9+AC10+AC11","v":0},{"$f":"SQRT((AD9^2)+(AD10^2)+(AD11^2))","v":20.784609690826528},{"$f":"AE9+AE10+AE11","v":0},{"$f":"SQRT((AF9^2)+(AF10^2)+(AF11^2))","v":32.908965343808667},{"$f":"AG9+AG10+AG11","v":0},{"$f":"SQRT((AH9^2)+(AH10^2)+(AH11^2))","v":29.444863728670914},{"$f":"AI9+AI10+AI11","v":0},{"$f":"SQRT((AJ9^2)+(AJ10^2)+(AJ11^2))","v":29.444863728670914},{"$f":"AK9+AK10+AK11","v":0},{"$f":"SQRT((AL9^2)+(AL10^2)+(AL11^2))","v":20.784609690826528},{"$f":"AM9+AM10+AM11","v":0},{"$f":"SQRT((AN9^2)+(AN10^2)+(AN11^2))","v":20.784609690826528},{"$f":"AO9+AO10+AO11","v":0},{"$f":"SQRT((AP9^2)+(AP10^2)+(AP11^2))","v":20.784609690826528},{"$f":"AQ9+AQ10+AQ11","v":0},{"$f":"SQRT((AR9^2)+(AR10^2)+(AR11^2))","v":29.444863728670914},{"$f":"AS9+AS10+AS11","v":0},{"$f":"SQRT((AT9^2)+(AT10^2)+(AT11^2))","v":20.784609690826528},{"$f":"AU9+AU10+AU11","v":0},{"$f":"SQRT((AV9^2)+(AV10^2)+(AV11^2))","v":20.784609690826528},{"$f":"AW9+AW10+AW11","v":0},{"$f":"SQRT((AX9^2)+(AX10^2)+(AX11^2))","v":20.784609690826528},{"$f":"AY9+AY10+AY11","v":0},{"$f":"SQRT((AZ9^2)+(AZ10^2)+(AZ11^2))","v":20.784609690826528},{"$f":"BA9+BA10+BA11","v":0},{"$f":"SQRT((BB9^2)+(BB10^2)+(BB11^2))","v":20.784609690826528},{"$f":"BC9+BC10+BC11","v":0},{"$f":"SQRT((BD9^2)+(BD10^2)+(BD11^2))","v":20.784609690826528}]
[null,"More than 30.0 percent",{"$f":"C12+C13+C14+C15","v":0},{"$f":"SQRT((D12^2)+(D13^2)+(D14^2)+(D15^2))","v":24},{"$f":"E12+E13+E14+E15","v":0},{"$f":"SQRT((F12^2)+(F13^2)+(F14^2)+(F15^2))","v":24},{"$f":"G12+G13+G14+G15","v":0},{"$f":"SQRT((H12^2)+(H13^2)+(H14^2)+(H15^2))","v":24},{"$f":"I12+I13+I14+I15","v":7},{"$f":"SQRT((J12^2)+(J13^2)+(J14^2)+(J15^2))","v":31.432467291003423},{"$f":"K12+K13+K14+K15","v":0},{"$f":"SQRT((L12^2)+(L13^2)+(L14^2)+(L15^2))","v":24},{"$f":"M12+M13+M14+M15","v":11},{"$f":"SQRT((N12^2)+(N13^2)+(N14^2)+(N15^2))","v":25.632011235952593},{"$f":"O12+O13+O14+O15","v":0},{"$f":"SQRT((P12^2)+(P13^2)+(P14^2)+(P15^2))","v":24},{"$f":"Q12+Q13+Q14+Q15","v":357},{"$f":"SQRT((R12^2)+(R13^2)+(R14^2)+(R15^2))","v":178.46568297574746},{"$f":"S12+S13+S14+S15","v":0},{"$f":"SQRT((T12^2)+(T13^2)+(T14^2)+(T15^2))","v":24},{"$f":"U12+U13+U14+U15","v":0},{"$f":"SQRT((V12^2)+(V13^2)+(V14^2)+(V15^2))","v":24},{"$f":"W12+W13+W14+W15","v":0},{"$f":"SQRT((X12^2)+(X13^2)+(X14^2)+(X15^2))","v":24},{"$f":"Y12+Y13+Y14+Y15","v":52},{"$f":"SQRT((Z12^2)+(Z13^2)+(Z14^2)+(Z15^2))","v":59.497899122574069},{"$f":"AA12+AA13+AA14+AA15","v":29},{"$f":"SQRT((AB12^2)+(AB13^2)+(AB14^2)+(AB15^2))","v":52.94336596779619},{"$f":"AC12+AC13+AC14+AC15","v":11},{"$f":"SQRT((AD12^2)+(AD13^2)+(AD14^2)+(AD15^2))","v":26.229754097208001},{"$f":"AE12+AE13+AE14+AE15","v":75},{"$f":"SQRT((AF12^2)+(AF13^2)+(AF14^2)+(AF15^2))","v":75.544688761024091},{"$f":"AG12+AG13+AG14+AG15","v":0},{"$f":"SQRT((AH12^2)+(AH13^2)+(AH14^2)+(AH15^2))","v":34},{"$f":"AI12+AI13+AI14+AI15","v":0},{"$f":"SQRT((AJ12^2)+(AJ13^2)+(AJ14^2)+(AJ15^2))","v":34},{"$f":"AK12+AK13+AK14+AK15","v":0},{"$f":"SQRT((AL12^2)+(AL13^2)+(AL14^2)+(AL15^2))","v":24},{"$f":"AM12+AM13+AM14+AM15","v":13},{"$f":"SQRT((AN12^2)+(AN13^2)+(AN14^2)+(AN15^2))","v":28.844410203711913},{"$f":"AO12+AO13+AO14+AO15","v":41},{"$f":"SQRT((AP12^2)+(AP13^2)+(AP14^2)+(AP15^2))","v":53.225933528685054},{"$f":"AQ12+AQ13+AQ14+AQ15","v":60},{"$f":"SQRT((AR12^2)+(AR13^2)+(AR14^2)+(AR15^2))","v":93.744333162063725},{"$f":"AS12+AS13+AS14+AS15","v":59},{"$f":"SQRT((AT12^2)+(AT13^2)+(AT14^2)+(AT15^2))","v":95.294281045611541},{"$f":"AU12+AU13+AU14+AU15","v":0},{"$f":"SQRT((AV12^2)+(AV13^2)+(AV14^2)+(AV15^2))","v":24},{"$f":"AW12+AW13+AW14+AW15","v":0},{"$f":"SQRT((AX12^2)+(AX13^2)+(AX14^2)+(AX15^2))","v":24},{"$f":"AY12+AY13+AY14+AY15","v":7},{"$f":"SQRT((AZ12^2)+(AZ13^2)+(AZ14^2)+(AZ15^2))","v":23.065125189341593},{"$f":"BA12+BA13+BA14+BA15","v":4},{"$f":"SQRT((BB12^2)+(BB13^2)+(BB14^2)+(BB15^2))","v":21.633307652783937},{"$f":"BC12+BC13+BC14+BC15","v":0},{"$f":"SQRT((BD12^2)+(BD13^2)+(BD14^2)+(BD15^2))","v":24}]
[null,"Less Than 35% of HH Income",{"$f":"C9+C10+C11+C12","v":0},{"$f":"SQRT((D9^2)+(D10^2)+(D11^2)+(D12^2))","v":24},{"$f":"E9+E10+E11+E12","v":0},{"$f":"SQRT((F9^2)+(F10^2)+(F11^2)+(F12^2))","v":24},{"$f":"G9+G10+G11+G12","v":0},{"$f":"SQRT((H9^2)+(H10^2)+(H11^2)+(H12^2))","v":24},{"$f":"I9+I10+I11+I12","v":0},{"$f":"SQRT((J9^2)+(J10^2)+(J11^2)+(J12^2))","v":34},{"$f":"K9+K10+K11+K12","v":0},{"$f":"SQRT((L9^2)+(L10^2)+(L11^2)+(L12^2))","v":24},{"$f":"M9+M10+M11+M12","v":0},{"$f":"SQRT((N9^2)+(N10^2)+(N11^2)+(N12^2))","v":24},{"$f":"O9+O10+O11+O12","v":0},{"$f":"SQRT((P9^2)+(P10^2)+(P11^2)+(P12^2))","v":24},{"$f":"Q9+Q10+Q11+Q12","v":0},{"$f":"SQRT((R9^2)+(R10^2)+(R11^2)+(R12^2))","v":50},{"$f":"S9+S10+S11+S12","v":0},{"$f":"SQRT((T9^2)+(T10^2)+(T11^2)+(T12^2))","v":24},{"$f":"U9+U10+U11+U12","v":0},{"$f":"SQRT((V9^2)+(V10^2)+(V11^2)+(V12^2))","v":24},{"$f":"W9+W10+W11+W12","v":0},{"$f":"SQRT((X9^2)+(X10^2)+(X11^2)+(X12^2))","v":24},{"$f":"Y9+Y10+Y11+Y12","v":56},{"$f":"SQRT((Z9^2)+(Z10^2)+(Z11^2)+(Z12^2))","v":62.952362942148568},{"$f":"AA9+AA10+AA11+AA12","v":0},{"$f":"SQRT((AB9^2)+(AB10^2)+(AB11^2)+(AB12^2))","v":34},{"$f":"AC9+AC10+AC11+AC12","v":0},{"$f":"SQRT((AD9^2)+(AD10^2)+(AD11^2)+(AD12^2))","v":24},{"$f":"AE9+AE10+AE11+AE12","v":0},{"$f":"SQRT((AF9^2)+(AF10^2)+(AF11^2)+(AF12^2))","v":38},{"$f":"AG9+AG10+AG11+AG12","v":0},{"$f":"SQRT((AH9^2)+(AH10^2)+(AH11^2)+(AH12^2))","v":34},{"$f":"AI9+AI10+AI11+AI12","v":0},{"$f":"SQRT((AJ9^2)+(AJ10^2)+(AJ11^2)+(AJ12^2))","v":34},{"$f":"AK9+AK10+AK11+AK12","v":0},{"$f":"SQRT((AL9^2)+(AL10^2)+(AL11^2)+(AL12^2))","v":24},{"$f":"AM9+AM10+AM11+AM12","v":0},{"$f":"SQRT((AN9^2)+(AN10^2)+(AN11^2)+(AN12^2))","v":24},{"$f":"AO9+AO10+AO11+AO12","v":0},{"$f":"SQRT((AP9^2)+(AP10^2)+(AP11^2)+(AP12^2))","v":24},{"$f":"AQ9+AQ10+AQ11+AQ12","v":0},{"$f":"SQRT((AR9^2)+(AR10^2)+(AR11^2)+(AR12^2))","v":34},{"$f":"AS9+AS10+AS11+AS12","v":0},{"$f":"SQRT((AT9^2)+(AT10^2)+(AT11^2)+(AT12^2))","v":24},{"$f":"AU9+AU10+AU11+AU12","v":0},{"$f":"SQRT((AV9^2)+(AV10^2)+(AV11^2)+(AV12^2))","v":24},{"$f":"AW9+AW10+AW11+AW12","v":0},{"$f":"SQRT((AX9^2)+(AX10^2)+(AX11^2)+(AX12^2))","v":24},{"$f":"AY9+AY10+AY11+AY12","v":0},{"$f":"SQRT((AZ9^2)+(AZ10^2)+(AZ11^2)+(AZ12^2))","v":24},{"$f":"BA9+BA10+BA11+BA12","v":0},{"$f":"SQRT((BB9^2)+(BB10^2)+(BB11^2)+(BB12^2))","v":24},{"$f":"BC9+BC10+BC11+BC12","v":0},{"$f":"SQRT((BD9^2)+(BD10^2)+(BD11^2)+(BD12^2))","v":24}]
[null,"35.0 percent or more",{"$f":"C13+C14++C15","v":0},{"$f":"SQRT((D13^2)+(D14^2)+(D15^2))","v":20.784609690826528},{"$f":"E13+E14++E15","v":0},{"$f":"SQRT((F13^2)+(F14^2)+(F15^2))","v":20.784609690826528},{"$f":"G13+G14++G15","v":0},{"$f":"SQRT((H13^2)+(H14^2)+(H15^2))","v":20.784609690826528},{"$f":"I13+I14++I15","v":7},{"$f":"SQRT((J13^2)+(J14^2)+(J15^2))","v":26.438608132804571},{"$f":"K13+K14++K15","v":0},{"$f":"SQRT((L13^2)+(L14^2)+(L15^2))","v":20.784609690826528},{"$f":"M13+M14++M15","v":11},{"$f":"SQRT((N13^2)+(N14^2)+(N15^2))","v":22.649503305812249},{"$f":"O13+O14++O15","v":0},{"$f":"SQRT((P13^2)+(P14^2)+(P15^2))","v":20.784609690826528},{"$f":"Q13+Q14++Q15","v":357},{"$f":"SQRT((R13^2)+(R14^2)+(R15^2))","v":176.70597047072292},{"$f":"S13+S14++S15","v":0},{"$f":"SQRT((T13^2)+(T14^2)+(T15^2))","v":20.784609690826528},{"$f":"U13+U14++U15","v":0},{"$f":"SQRT((V13^2)+(V14^2)+(V15^2))","v":20.784609690826528},{"$f":"W13+W14++W15","v":0},{"$f":"SQRT((X13^2)+(X14^2)+(X15^2))","v":20.784609690826528},{"$f":"Y13+Y14++Y15","v":15},{"$f":"SQRT((Z13^2)+(Z14^2)+(Z15^2))","v":30.643106892089126},{"$f":"AA13+AA14++AA15","v":29},{"$f":"SQRT((AB13^2)+(AB14^2)+(AB15^2))","v":50.139804546886701},{"$f":"AC13+AC14++AC15","v":11},{"$f":"SQRT((AD13^2)+(AD14^2)+(AD15^2))","v":23.323807579381203},{"$f":"AE13+AE14++AE15","v":75},{"$f":"SQRT((AF13^2)+(AF14^2)+(AF15^2))","v":73.11634564172364},{"$f":"AG13+AG14++AG15","v":0},{"$f":"SQRT((AH13^2)+(AH14^2)+(AH15^2))","v":29.444863728670914},{"$f":"AI13+AI14++AI15","v":0},{"$f":"SQRT((AJ13^2)+(AJ14^2)+(AJ15^2))","v":29.444863728670914},{"$f":"AK13+AK14++AK15","v":0},{"$f":"SQRT((AL13^2)+(AL14^2)+(AL15^2))","v":20.784609690826528},{"$f":"AM13+AM14++AM15","v":13},{"$f":"SQRT((AN13^2)+(AN14^2)+(AN15^2))","v":26.229754097208001},{"$f":"AO13+AO14++AO15","v":41},{"$f":"SQRT((AP13^2)+(AP14^2)+(AP15^2))","v":51.855568649856693},{"$f":"AQ13+AQ14++AQ15","v":60},{"$f":"SQRT((AR13^2)+(AR14^2)+(AR15^2))","v":92.190021151966334},{"$f":"AS13+AS14++AS15","v":59},{"$f":"SQRT((AT13^2)+(AT14^2)+(AT15^2))","v":94.535707539532382},{"$f":"AU13+AU14++AU15","v":0},{"$f":"SQRT((AV13^2)+(AV14^2)+(AV15^2))","v":20.784609690826528},{"$f":"AW13+AW14++AW15","v":0},{"$f":"SQRT((AX13^2)+(AX14^2)+(AX15^2))","v":20.784609690826528},{"$f":"AY13+AY14++AY15","v":7},{"$f":"SQRT((AZ13^2)+(AZ14^2)+(AZ15^2))","v":19.697715603592208},{"$f":"BA13+BA14++BA15","v":4},{"$f":"SQRT((BB13^2)+(BB14^2)+(BB15^2))","v":18},{"$f":"BC13+BC14++BC15","v":0},{"$f":"SQRT((BD13^2)+(BD14^2)+(BD15^2))","v":20.784609690826528}]
[null,"50.0 percent or more",{"$f":"C15","v":0},12,0,12,0,12,7,11,0,12,11,15,0,12,300,162,0,12,0,12,0,12,15,19,29,44,11,16,75,68,0,17,{"$f":"AI15","v":0},17,0,12,13,20,41,49,60,89,0,12,0,12,0,12,7,10,4,6,0,12]
[null,"Not Computed",{"$f":"C16","v":0},12,5,7,12,19,10,15,0,12,0,12,0,12,179,86,0,12,0,12,0,12,18,29,0,17,0,12,24,39,0,17,{"$f":"AI16","v":0},17,0,12,8,12,0,12,16,25,12,20,0,12,0,12,15,16,6,10,3,5]
[null,"$10,000 to $19,999:",{"$f":"C17","v":126},107,5,9,81,60,31,22,0,12,25,30,0,12,971,254,0,12,0,12,32,38,283,116,266,148,0,12,39,32,10,16,116,116,15,13,15,19,42,33,78,73,14,23,0,12,3,4,56,31,3,4,0,12]
[null,"Less than 30.0 percent",{"$f":"C18+C19+C20","v":10},{"$f":"SQRT((D18^2)+(D19^2)+(D20^2))","v":22.649503305812249},{"$f":"E18+E19+E20","v":0},{"$f":"SQRT((F18^2)+(F19^2)+(F20^2))","v":20.784609690826528},{"$f":"G18+G19+G20","v":25},{"$f":"SQRT((H18^2)+(H19^2)+(H20^2))","v":45.299006611624499},{"$f":"I18+I19+I20","v":0},{"$f":"SQRT((J18^2)+(J19^2)+(J20^2))","v":29.444863728670914},{"$f":"K18+K19+K20","v":0},{"$f":"SQRT((L18^2)+(L19^2)+(L20^2))","v":20.784609690826528},{"$f":"M18+M19+M20","v":0},{"$f":"SQRT((N18^2)+(N19^2)+(N20^2))","v":20.784609690826528},{"$f":"O18+O19+O20","v":0},{"$f":"SQRT((P18^2)+(P19^2)+(P20^2))","v":20.784609690826528},{"$f":"Q18+Q19+Q20","v":303},{"$f":"SQRT((R18^2)+(R19^2)+(R20^2))","v":129.53763931769021},{"$f":"S18+S19+S20","v":0},{"$f":"SQRT((T18^2)+(T19^2)+(T20^2))","v":20.784609690826528},{"$f":"U18+U19+U20","v":0},{"$f":"SQRT((V18^2)+(V19^2)+(V20^2))","v":20.784609690826528},{"$f":"W18+W19+W20","v":10},{"$f":"SQRT((X18^2)+(X19^2)+(X20^2))","v":24.020824298928627},{"$f":"Y18+Y19+Y20","v":61},{"$f":"SQRT((Z18^2)+(Z19^2)+(Z20^2))","v":47.592016137163178},{"$f":"AA18+AA19+AA20","v":109},{"$f":"SQRT((AB18^2)+(AB19^2)+(AB20^2))","v":92.978492136622648},{"$f":"AC18+AC19+AC20","v":0},{"$f":"SQRT((AD18^2)+(AD19^2)+(AD20^2))","v":20.784609690826528},{"$f":"AE18+AE19+AE20","v":28},{"$f":"SQRT((AF18^2)+(AF19^2)+(AF20^2))","v":41.785164831552358},{"$f":"AG18+AG19+AG20","v":0},{"$f":"SQRT((AH18^2)+(AH19^2)+(AH20^2))","v":29.444863728670914},{"$f":"AI18+AI19+AI20","v":31},{"$f":"SQRT((AJ18^2)+(AJ19^2)+(AJ20^2))","v":52.792044855262048},{"$f":"AK18+AK19+AK20","v":4},{"$f":"SQRT((AL18^2)+(AL19^2)+(AL20^2))","v":18},{"$f":"AM18+AM19+AM20","v":10},{"$f":"SQRT((AN18^2)+(AN19^2)+(AN20^2))","v":24.020824298928627},{"$f":"AO18+AO19+AO20","v":28},{"$f":"SQRT((AP18^2)+(AP19^2)+(AP20^2))","v":28.178005607210743},{"$f":"AQ18+AQ19+AQ20","v":0},{"$f":"SQRT((AR18^2)+(AR19^2)+(AR20^2))","v":29.444863728670914},{"$f":"AS18+AS19+AS20","v":14},{"$f":"SQRT((AT18^2)+(AT19^2)+(AT20^2))","v":28.583211855912904},{"$f":"AU18+AU19+AU20","v":0},{"$f":"SQRT((AV18^2)+(AV19^2)+(AV20^2))","v":20.784609690826528},{"$f":"AW18+AW19+AW20","v":0},{"$f":"SQRT((AX18^2)+(AX19^2)+(AX20^2))","v":20.784609690826528},{"$f":"AY18+AY19+AY20","v":15},{"$f":"SQRT((AZ18^2)+(AZ19^2)+(AZ20^2))","v":28.583211855912904},{"$f":"BA18+BA19+BA20","v":0},{"$f":"SQRT((BB18^2)+(BB19^2)+(BB20^2))","v":20.784609690826528},{"$f":"BC18+BC19+BC20","v":0},{"$f":"SQRT((BD18^2)+(BD19^2)+(BD20^2))","v":20.784609690826528}]
[null,"More than 30.0 percent",{"$f":"C21+C22+C23+C24","v":116},{"$f":"SQRT((D21^2)+(D22^2)+(D23^2)+(D24^2))","v":107.29864864013899},{"$f":"E21+E22+E23+E24","v":5},{"$f":"SQRT((F21^2)+(F22^2)+(F23^2)+(F24^2))","v":22.649503305812249},{"$f":"G21+G22+G23+G24","v":56},{"$f":"SQRT((H21^2)+(H22^2)+(H23^2)+(H24^2))","v":49.568134925574917},{"$f":"I21+I22+I23+I24","v":31},{"$f":"SQRT((J21^2)+(J22^2)+(J23^2)+(J24^2))","v":36.646964403617389},{"$f":"K21+K22+K23+K24","v":0},{"$f":"SQRT((L21^2)+(L22^2)+(L23^2)+(L24^2))","v":24},{"$f":"M21+M22+M23+M24","v":25},{"$f":"SQRT((N21^2)+(N22^2)+(N23^2)+(N24^2))","v":34.539832078341085},{"$f":"O21+O22+O23+O24","v":0},{"$f":"SQRT((P21^2)+(P22^2)+(P23^2)+(P24^2))","v":24},{"$f":"Q21+Q22+Q23+Q24","v":651},{"$f":"SQRT((R21^2)+(R22^2)+(R23^2)+(R24^2))","v":228.43160902116853},{"$f":"S21+S22+S23+S24","v":0},{"$f":"SQRT((T21^2)+(T22^2)+(T23^2)+(T24^2))","v":24},{"$f":"U21+U22+U23+U24","v":0},{"$f":"SQRT((V21^2)+(V22^2)+(V23^2)+(V24^2))","v":24},{"$f":"W21+W22+W23+W24","v":22},{"$f":"SQRT((X21^2)+(X22^2)+(X23^2)+(X24^2))","v":40.70626487409524},{"$f":"Y21+Y22+Y23+Y24","v":222},{"$f":"SQRT((Z21^2)+(Z22^2)+(Z23^2)+(Z24^2))","v":113.15476127852509},{"$f":"AA21+AA22+AA23+AA24","v":157},{"$f":"SQRT((AB21^2)+(AB22^2)+(AB23^2)+(AB24^2))","v":135.24422353653409},{"$f":"AC21+AC22+AC23+AC24","v":0},{"$f":"SQRT((AD21^2)+(AD22^2)+(AD23^2)+(AD24^2))","v":24},{"$f":"AE21+AE22+AE23+AE24","v":11},{"$f":"SQRT((AF21^2)+(AF22^2)+(AF23^2)+(AF24^2))","v":38},{"$f":"AG21+AG22+AG23+AG24","v":0},{"$f":"SQRT((AH21^2)+(AH22^2)+(AH23^2)+(AH24^2))","v":34},{"$f":"AI21+AI22+AI23+AI24","v":85},{"$f":"SQRT((AJ21^2)+(AJ22^2)+(AJ23^2)+(AJ24^2))","v":104.47487736293353},{"$f":"AK21+AK22+AK23+AK24","v":5},{"$f":"SQRT((AL21^2)+(AL22^2)+(AL23^2)+(AL24^2))","v":22.271057451320086},{"$f":"AM21+AM22+AM23+AM24","v":5},{"$f":"SQRT((AN21^2)+(AN22^2)+(AN23^2)+(AN24^2))","v":22.649503305812249},{"$f":"AO21+AO22+AO23+AO24","v":14},{"$f":"SQRT((AP21^2)+(AP22^2)+(AP23^2)+(AP24^2))","v":28.844410203711913},{"$f":"AQ21+AQ22+AQ23+AQ24","v":78},{"$f":"SQRT((AR21^2)+(AR22^2)+(AR23^2)+(AR24^2))","v":75.066637063345254},{"$f":"AS21+AS22+AS23+AS24","v":0},{"$f":"SQRT((AT21^2)+(AT22^2)+(AT23^2)+(AT24^2))","v":24},{"$f":"AU21+AU22+AU23+AU24","v":0},{"$f":"SQRT((AV21^2)+(AV22^2)+(AV23^2)+(AV24^2))","v":24},{"$f":"AW21+AW22+AW23+AW24","v":3},{"$f":"SQRT((AX21^2)+(AX22^2)+(AX23^2)+(AX24^2))","v":21.166010488516726},{"$f":"AY21+AY22+AY23+AY24","v":36},{"$f":"SQRT((AZ21^2)+(AZ22^2)+(AZ23^2)+(AZ24^2))","v":32.756678708318397},{"$f":"BA21+BA22+BA23+BA24","v":0},{"$f":"SQRT((BB21^2)+(BB22^2)+(BB23^2)+(BB24^2))","v":24},{"$f":"BC21+BC22+BC23+BC24","v":0},{"$f":"SQRT((BD21^2)+(BD22^2)+(BD23^2)+(BD24^2))","v":24}]
[null,"Less Than 35% of HH Income",{"$f":"C18+C19+C20+C21","v":10},{"$f":"SQRT((D18^2)+(D19^2)+(D20^2)+(D21^2))","v":25.632011235952593},{"$f":"E18+E19+E20+E21","v":0},{"$f":"SQRT((F18^2)+(F19^2)+(F20^2)+(F21^2))","v":24},{"$f":"G18+G19+G20+G21","v":25},{"$f":"SQRT((H18^2)+(H19^2)+(H20^2)+(H21^2))","v":46.861498055439924},{"$f":"I18+I19+I20+I21","v":0},{"$f":"SQRT((J18^2)+(J19^2)+(J20^2)+(J21^2))","v":34},{"$f":"K18+K19+K20+K21","v":0},{"$f":"SQRT((L18^2)+(L19^2)+(L20^2)+(L21^2))","v":24},{"$f":"M18+M19+M20+M21","v":0},{"$f":"SQRT((N18^2)+(N19^2)+(N20^2)+(N21^2))","v":24},{"$f":"O18+O19+O20+O21","v":0},{"$f":"SQRT((P18^2)+(P19^2)+(P20^2)+(P21^2))","v":24},{"$f":"Q18+Q19+Q20+Q21","v":314},{"$f":"SQRT((R18^2)+(R19^2)+(R20^2)+(R21^2))","v":130.09227494359533},{"$f":"S18+S19+S20+S21","v":0},{"$f":"SQRT((T18^2)+(T19^2)+(T20^2)+(T21^2))","v":24},{"$f":"U18+U19+U20+U21","v":0},{"$f":"SQRT((V18^2)+(V19^2)+(V20^2)+(V21^2))","v":24},{"$f":"W18+W19+W20+W21","v":10},{"$f":"SQRT((X18^2)+(X19^2)+(X20^2)+(X21^2))","v":26.851443164195103},{"$f":"Y18+Y19+Y20+Y21","v":149},{"$f":"SQRT((Z18^2)+(Z19^2)+(Z20^2)+(Z21^2))","v":92.22797840135064},{"$f":"AA18+AA19+AA20+AA21","v":120},{"$f":"SQRT((AB18^2)+(AB19^2)+(AB20^2)+(AB21^2))","v":94.519839187336757},{"$f":"AC18+AC19+AC20+AC21","v":0},{"$f":"SQRT((AD18^2)+(AD19^2)+(AD20^2)+(AD21^2))","v":24},{"$f":"AE18+AE19+AE20+AE21","v":28},{"$f":"SQRT((AF18^2)+(AF19^2)+(AF20^2)+(AF21^2))","v":45.902069670114003},{"$f":"AG18+AG19+AG20+AG21","v":0},{"$f":"SQRT((AH18^2)+(AH19^2)+(AH20^2)+(AH21^2))","v":34},{"$f":"AI18+AI19+AI20+AI21","v":31},{"$f":"SQRT((AJ18^2)+(AJ19^2)+(AJ20^2)+(AJ21^2))","v":55.461698495448189},{"$f":"AK18+AK19+AK20+AK21","v":9},{"$f":"SQRT((AL18^2)+(AL19^2)+(AL20^2)+(AL21^2))","v":19.697715603592208},{"$f":"AM18+AM19+AM20+AM21","v":15},{"$f":"SQRT((AN18^2)+(AN19^2)+(AN20^2)+(AN21^2))","v":25.651510676761319},{"$f":"AO18+AO19+AO20+AO21","v":28},{"$f":"SQRT((AP18^2)+(AP19^2)+(AP20^2)+(AP21^2))","v":30.62678566222711},{"$f":"AQ18+AQ19+AQ20+AQ21","v":0},{"$f":"SQRT((AR18^2)+(AR19^2)+(AR20^2)+(AR21^2))","v":34},{"$f":"AS18+AS19+AS20+AS21","v":14},{"$f":"SQRT((AT18^2)+(AT19^2)+(AT20^2)+(AT21^2))","v":31},{"$f":"AU18+AU19+AU20+AU21","v":0},{"$f":"SQRT((AV18^2)+(AV19^2)+(AV20^2)+(AV21^2))","v":24},{"$f":"AW18+AW19+AW20+AW21","v":0},{"$f":"SQRT((AX18^2)+(AX19^2)+(AX20^2)+(AX21^2))","v":24},{"$f":"AY18+AY19+AY20+AY21","v":36},{"$f":"SQRT((AZ18^2)+(AZ19^2)+(AZ20^2)+(AZ21^2))","v":36.687872655688281},{"$f":"BA18+BA19+BA20+BA21","v":0},{"$f":"SQRT((BB18^2)+(BB19^2)+(BB20^2)+(BB21^2))","v":24},{"$f":"BC18+BC19+BC20+BC21","v":0},{"$f":"SQRT((BD18^2)+(BD19^2)+(BD20^2)+(BD21^2))","v":24}]
[null,"35.0 percent or more",{"$f":"C22+C23++C24","v":116},{"$f":"SQRT((D22^2)+(D23^2)+(D24^2))","v":106.62551289442879},{"$f":"E22+E23++E24","v":5},{"$f":"SQRT((F22^2)+(F23^2)+(F24^2))","v":19.209372712298546},{"$f":"G22+G23++G24","v":56},{"$f":"SQRT((H22^2)+(H23^2)+(H24^2))","v":48.093658625644196},{"$f":"I22+I23++I24","v":31},{"$f":"SQRT((J22^2)+(J23^2)+(J24^2))","v":32.465366161495851},{"$f":"K22+K23++K24","v":0},{"$f":"SQRT((L22^2)+(L23^2)+(L24^2))","v":20.784609690826528},{"$f":"M22+M23++M24","v":25},{"$f":"SQRT((N22^2)+(N23^2)+(N24^2))","v":32.388269481403292},{"$f":"O22+O23++O24","v":0},{"$f":"SQRT((P22^2)+(P23^2)+(P24^2))","v":20.784609690826528},{"$f":"Q22+Q23++Q24","v":640},{"$f":"SQRT((R22^2)+(R23^2)+(R24^2))","v":228.11619846034608},{"$f":"S22+S23++S24","v":0},{"$f":"SQRT((T22^2)+(T23^2)+(T24^2))","v":20.784609690826528},{"$f":"U22+U23++U24","v":0},{"$f":"SQRT((V22^2)+(V23^2)+(V24^2))","v":20.784609690826528},{"$f":"W22+W23++W24","v":22},{"$f":"SQRT((X22^2)+(X23^2)+(X24^2))","v":38.897300677553446},{"$f":"Y22+Y23++Y24","v":134},{"$f":"SQRT((Z22^2)+(Z23^2)+(Z24^2))","v":81.012344738317509},{"$f":"AA22+AA23++AA24","v":146},{"$f":"SQRT((AB22^2)+(AB23^2)+(AB24^2))","v":134.17153200288055},{"$f":"AC22+AC23++AC24","v":0},{"$f":"SQRT((AD22^2)+(AD23^2)+(AD24^2))","v":20.784609690826528},{"$f":"AE22+AE23++AE24","v":11},{"$f":"SQRT((AF22^2)+(AF23^2)+(AF24^2))","v":32.908965343808667},{"$f":"AG22+AG23++AG24","v":0},{"$f":"SQRT((AH22^2)+(AH23^2)+(AH24^2))","v":29.444863728670914},{"$f":"AI22+AI23++AI24","v":85},{"$f":"SQRT((AJ22^2)+(AJ23^2)+(AJ24^2))","v":103.0824912388132},{"$f":"AK22+AK23++AK24","v":0},{"$f":"SQRT((AL22^2)+(AL23^2)+(AL24^2))","v":20.784609690826528},{"$f":"AM22+AM23++AM24","v":0},{"$f":"SQRT((AN22^2)+(AN23^2)+(AN24^2))","v":20.784609690826528},{"$f":"AO22+AO23++AO24","v":14},{"$f":"SQRT((AP22^2)+(AP23^2)+(AP24^2))","v":26.229754097208001},{"$f":"AQ22+AQ23++AQ24","v":78},{"$f":"SQRT((AR22^2)+(AR23^2)+(AR24^2))","v":73.11634564172364},{"$f":"AS22+AS23++AS24","v":0},{"$f":"SQRT((AT22^2)+(AT23^2)+(AT24^2))","v":20.784609690826528},{"$f":"AU22+AU23++AU24","v":0},{"$f":"SQRT((AV22^2)+(AV23^2)+(AV24^2))","v":20.784609690826528},{"$f":"AW22+AW23++AW24","v":3},{"$f":"SQRT((AX22^2)+(AX23^2)+(AX24^2))","v":17.435595774162696},{"$f":"AY22+AY23++AY24","v":15},{"$f":"SQRT((AZ22^2)+(AZ23^2)+(AZ24^2))","v":23.323807579381203},{"$f":"BA22+BA23++BA24","v":0},{"$f":"SQRT((BB22^2)+(BB23^2)+(BB24^2))","v":20.784609690826528},{"$f":"BC22+BC23++BC24","v":0},{"$f":"SQRT((BD22^2)+(BD23^2)+(BD24^2))","v":20.784609690826528}]
[null,"50.0 percent or more",{"$f":"C24","v":94},{"$f":"D24","v":100},{"$f":"E24","v":5},{"$f":"F24","v":9},{"$f":"G24","v":56},45,{"$f":"I24","v":19},21,{"$f":"K24","v":0},12,{"$f":"M24","v":19},29,{"$f":"O24","v":0},12,{"$f":"Q24","v":430},156,{"$f":"S24","v":0},12,{"$f":"U24","v":0},12,{"$f":"W24","v":22},35,{"$f":"Y24","v":74},55,{"$f":"AA24","v":146},132,{"$f":"AC24","v":0},12,{"$f":"AE24","v":11},19,{"$f":"AG24","v":0},17,{"$f":"AI24","v":39},64,{"$f":"AK24","v":0},12,{"$f":"AM24","v":0},12,{"$f":"AO24","v":14},20,{"$f":"AQ24","v":59},64,{"$f":"AS24","v":0},12,{"$f":"AU24","v":0},12,{"$f":"AW24","v":3},4,{"$f":"AY24","v":15},16,{"$f":"BA24","v":0},12,{"$f":"BC24","v":0},12]
[null,"Not Computed",{"$f":"C25","v":0},12,0,12,0,12,0,17,0,12,0,12,0,12,17,23,{"$f":"S25","v":0},12,0,12,0,12,0,17,0,17,0,12,0,19,10,16,0,17,6,8,0,12,0,12,0,17,0,12,0,12,0,12,5,7,3,4,0,12]
[null,"$20,000 to $34,999:",64,68,22,25,46,52,57,35,9,15,0,12,22,28,1173,260,5,6,6,9,61,37,254,133,225,155,0,12,144,109,11,19,30,37,47,36,7,12,39,34,134,113,172,120,4,8,4,6,112,53,0,12,45,51]
[null,"Less than 30.0 percent",{"$f":"C27+C28+C29","v":14},{"$f":"SQRT((D27^2)+(D28^2)+(D29^2))","v":19.416487838947599},{"$f":"E27+E28+E29","v":0},{"$f":"SQRT((F27^2)+(F28^2)+(F29^2))","v":20.784609690826528},{"$f":"G27+G28+G29","v":32},{"$f":"SQRT((H27^2)+(H28^2)+(H29^2))","v":49.969990994595946},{"$f":"I27+I28+I29","v":0},{"$f":"SQRT((J27^2)+(J28^2)+(J29^2))","v":29.444863728670914},{"$f":"K27+K28+K29","v":0},{"$f":"SQRT((L27^2)+(L28^2)+(L29^2))","v":20.784609690826528},{"$f":"M27+M28+M29","v":0},{"$f":"SQRT((N27^2)+(N28^2)+(N29^2))","v":20.784609690826528},{"$f":"O27+O28+O29","v":0},{"$f":"SQRT((P27^2)+(P28^2)+(P29^2))","v":20.784609690826528},{"$f":"Q27+Q28+Q29","v":153},{"$f":"SQRT((R27^2)+(R28^2)+(R29^2))","v":89.112288714856831},{"$f":"S27+S28+S29","v":0},{"$f":"SQRT((T27^2)+(T28^2)+(T29^2))","v":20.784609690826528},{"$f":"U27+U28+U29","v":0},{"$f":"SQRT((V27^2)+(V28^2)+(V29^2))","v":20.784609690826528},{"$f":"W27+W28+W29","v":18},{"$f":"SQRT((X27^2)+(X28^2)+(X29^2))","v":27.784887978899608},{"$f":"Y27+Y28+Y29","v":48},{"$f":"SQRT((Z27^2)+(Z28^2)+(Z29^2))","v":36.810324638611924},{"$f":"AA27+AA28+AA29","v":19},{"$f":"SQRT((AB27^2)+(AB28^2)+(AB29^2))","v":32.58834147360065},{"$f":"AC27+AC28+AC29","v":0},{"$f":"SQRT((AD27^2)+(AD28^2)+(AD29^2))","v":20.784609690826528},{"$f":"AE27+AE28+AE29","v":21},{"$f":"SQRT((AF27^2)+(AF28^2)+(AF29^2))","v":37.389838191679836},{"$f":"AG27+AG28+AG29","v":0},{"$f":"SQRT((AH27^2)+(AH28^2)+(AH29^2))","v":29.444863728670914},{"$f":"AI27+AI28+AI29","v":0},{"$f":"SQRT((AJ27^2)+(AJ28^2)+(AJ29^2))","v":29.444863728670914},{"$f":"AK27+AK28+AK29","v":31},{"$f":"SQRT((AL27^2)+(AL28^2)+(AL29^2))","v":28.635642126552707},{"$f":"AM27+AM28+AM29","v":0},{"$f":"SQRT((AN27^2)+(AN28^2)+(AN29^2))","v":20.784609690826528},{"$f":"AO27+AO28+AO29","v":0},{"$f":"SQRT((AP27^2)+(AP28^2)+(AP29^2))","v":20.784609690826528},{"$f":"AQ27+AQ28+AQ29","v":74},{"$f":"SQRT((AR27^2)+(AR28^2)+(AR29^2))","v":96.0572745813663},{"$f":"AS27+AS28+AS29","v":0},{"$f":"SQRT((AT27^2)+(AT28^2)+(AT29^2))","v":20.784609690826528},{"$f":"AU27+AU28+AU29","v":0},{"$f":"SQRT((AV27^2)+(AV28^2)+(AV29^2))","v":20.784609690826528},{"$f":"AW27+AW28+AW29","v":0},{"$f":"SQRT((AX27^2)+(AX28^2)+(AX29^2))","v":20.784609690826528},{"$f":"AY27+AY28+AY29","v":39},{"$f":"SQRT((AZ27^2)+(AZ28^2)+(AZ29^2))","v":37.336309405188942},{"$f":"BA27+BA28+BA29","v":0},{"$f":"SQRT((BB27^2)+(BB28^2)+(BB29^2))","v":20.784609690826528},{"$f":"BC27+BC28+BC29","v":12},{"$f":"SQRT((BD27^2)+(BD28^2)+(BD29^2))","v":25.475478405713993}]
[null,"More than 30.0 percent",{"$f":"C30+C31+C32+C33","v":50},{"$f":"SQRT((D30^2)+(D31^2)+(D32^2)+(D33^2))","v":69.570108523704349},{"$f":"E30+E31+E32+E33","v":6},{"$f":"SQRT((F30^2)+(F31^2)+(F32^2)+(F33^2))","v":22.649503305812249},{"$f":"G30+G31+G32+G33","v":14},{"$f":"SQRT((H30^2)+(H31^2)+(H32^2)+(H33^2))","v":31.749015732775089},{"$f":"I30+I31+I32+I33","v":57},{"$f":"SQRT((J30^2)+(J31^2)+(J32^2)+(J33^2))","v":45.738386504117088},{"$f":"K30+K31+K32+K33","v":9},{"$f":"SQRT((L30^2)+(L31^2)+(L32^2)+(L33^2))","v":25.632011235952593},{"$f":"M30+M31+M32+M33","v":0},{"$f":"SQRT((N30^2)+(N31^2)+(N32^2)+(N33^2))","v":24},{"$f":"O30+O31+O32+O33","v":18},{"$f":"SQRT((P30^2)+(P31^2)+(P32^2)+(P33^2))","v":34.073450074801642},{"$f":"Q30+Q31+Q32+Q33","v":1020},{"$f":"SQRT((R30^2)+(R31^2)+(R32^2)+(R33^2))","v":234.6848951253574},{"$f":"S30+S31+S32+S33","v":5},{"$f":"SQRT((T30^2)+(T31^2)+(T32^2)+(T33^2))","v":18.138357147217054},{"$f":"U30+U31+U32+U33","v":6},{"$f":"SQRT((V30^2)+(V31^2)+(V32^2)+(V33^2))","v":22.649503305812249},{"$f":"W30+W31+W32+W33","v":35},{"$f":"SQRT((X30^2)+(X31^2)+(X32^2)+(X33^2))","v":31.256999216175569},{"$f":"Y30+Y31+Y32+Y33","v":206},{"$f":"SQRT((Z30^2)+(Z31^2)+(Z32^2)+(Z33^2))","v":118.68024266911489},{"$f":"AA30+AA31+AA32+AA33","v":206},{"$f":"SQRT((AB30^2)+(AB31^2)+(AB32^2)+(AB33^2))","v":153.74654467662029},{"$f":"AC30+AC31+AC32+AC33","v":0},{"$f":"SQRT((AD30^2)+(AD31^2)+(AD32^2)+(AD33^2))","v":24},{"$f":"AE30+AE31+AE32+AE33","v":112},{"$f":"SQRT((AF30^2)+(AF31^2)+(AF32^2)+(AF33^2))","v":111.74077143102244},{"$f":"AG30+AG31+AG32+AG33","v":11},{"$f":"SQRT((AH30^2)+(AH31^2)+(AH32^2)+(AH33^2))","v":35.042830935870462},{"$f":"AI30+AI31+AI32+AI33","v":30},{"$f":"SQRT((AJ30^2)+(AJ31^2)+(AJ32^2)+(AJ33^2))","v":42.965102117881671},{"$f":"AK30+AK31+AK32+AK33","v":0},{"$f":"SQRT((AL30^2)+(AL31^2)+(AL32^2)+(AL33^2))","v":24},{"$f":"AM30+AM31+AM32+AM33","v":7},{"$f":"SQRT((AN30^2)+(AN31^2)+(AN32^2)+(AN33^2))","v":24},{"$f":"AO30+AO31+AO32+AO33","v":39},{"$f":"SQRT((AP30^2)+(AP31^2)+(AP32^2)+(AP33^2))","v":39.293765408776999},{"$f":"AQ30+AQ31+AQ32+AQ33","v":60},{"$f":"SQRT((AR30^2)+(AR31^2)+(AR32^2)+(AR33^2))","v":74.10128204019145},{"$f":"AS30+AS31+AS32+AS33","v":172},{"$f":"SQRT((AT30^2)+(AT31^2)+(AT32^2)+(AT33^2))","v":136.26811806141598},{"$f":"AU30+AU31+AU32+AU33","v":4},{"$f":"SQRT((AV30^2)+(AV31^2)+(AV32^2)+(AV33^2))","v":22.271057451320086},{"$f":"AW30+AW31+AW32+AW33","v":0},{"$f":"SQRT((AX30^2)+(AX31^2)+(AX32^2)+(AX33^2))","v":24},{"$f":"AY30+AY31+AY32+AY33","v":46},{"$f":"SQRT((AZ30^2)+(AZ31^2)+(AZ32^2)+(AZ33^2))","v":43.451121964800862},{"$f":"BA30+BA31+BA32+BA33","v":0},{"$f":"SQRT((BB30^2)+(BB31^2)+(BB32^2)+(BB33^2))","v":24},{"$f":"BC30+BC31+BC32+BC33","v":33},{"$f":"SQRT((BD30^2)+(BD31^2)+(BD32^2)+(BD33^2))","v":50.219518117958877}]
[null,"Less Than 35% of HH Income",{"$f":"C27+C28+C29+C30","v":14},{"$f":"SQRT((D27^2)+(D28^2)+(D29^2)+(D30^2))","v":22.825424421026653},{"$f":"E27+E28+E29+E30","v":0},{"$f":"SQRT((F27^2)+(F28^2)+(F29^2)+(F30^2))","v":24},{"$f":"G27+G28+G29+G30","v":32},{"$f":"SQRT((H27^2)+(H28^2)+(H29^2)+(H30^2))","v":51.39066063011839},{"$f":"I27+I28+I29+I30","v":0},{"$f":"SQRT((J27^2)+(J28^2)+(J29^2)+(J30^2))","v":34},{"$f":"K27+K28+K29+K30","v":0},{"$f":"SQRT((L27^2)+(L28^2)+(L29^2)+(L30^2))","v":24},{"$f":"M27+M28+M29+M30","v":0},{"$f":"SQRT((N27^2)+(N28^2)+(N29^2)+(N30^2))","v":24},{"$f":"O27+O28+O29+O30","v":0},{"$f":"SQRT((P27^2)+(P28^2)+(P29^2)+(P30^2))","v":24},{"$f":"Q27+Q28+Q29+Q30","v":332},{"$f":"SQRT((R27^2)+(R28^2)+(R29^2)+(R30^2))","v":159.26393188666415},{"$f":"S27+S28+S29+S30","v":0},{"$f":"SQRT((T27^2)+(T28^2)+(T29^2)+(T30^2))","v":24},{"$f":"U27+U28+U29+U30","v":0},{"$f":"SQRT((V27^2)+(V28^2)+(V29^2)+(V30^2))","v":24},{"$f":"W27+W28+W29+W30","v":18},{"$f":"SQRT((X27^2)+(X28^2)+(X29^2)+(X30^2))","v":30.265491900843113},{"$f":"Y27+Y28+Y29+Y30","v":48},{"$f":"SQRT((Z27^2)+(Z28^2)+(Z29^2)+(Z30^2))","v":40.546269865426588},{"$f":"AA27+AA28+AA29+AA30","v":19},{"$f":"SQRT((AB27^2)+(AB28^2)+(AB29^2)+(AB30^2))","v":36.755951898978211},{"$f":"AC27+AC28+AC29+AC30","v":0},{"$f":"SQRT((AD27^2)+(AD28^2)+(AD29^2)+(AD30^2))","v":24},{"$f":"AE27+AE28+AE29+AE30","v":21},{"$f":"SQRT((AF27^2)+(AF28^2)+(AF29^2)+(AF30^2))","v":41.940433951021539},{"$f":"AG27+AG28+AG29+AG30","v":0},{"$f":"SQRT((AH27^2)+(AH28^2)+(AH29^2)+(AH30^2))","v":34},{"$f":"AI27+AI28+AI29+AI30","v":17},{"$f":"SQRT((AJ27^2)+(AJ28^2)+(AJ29^2)+(AJ30^2))","v":40.63249930782009},{"$f":"AK27+AK28+AK29+AK30","v":31},{"$f":"SQRT((AL27^2)+(AL28^2)+(AL29^2)+(AL30^2))","v":31.048349392520048},{"$f":"AM27+AM28+AM29+AM30","v":0},{"$f":"SQRT((AN27^2)+(AN28^2)+(AN29^2)+(AN30^2))","v":24},{"$f":"AO27+AO28+AO29+AO30","v":0},{"$f":"SQRT((AP27^2)+(AP28^2)+(AP29^2)+(AP30^2))","v":24},{"$f":"AQ27+AQ28+AQ29+AQ30","v":74},{"$f":"SQRT((AR27^2)+(AR28^2)+(AR29^2)+(AR30^2))","v":97.549987186057592},{"$f":"AS27+AS28+AS29+AS30","v":60},{"$f":"SQRT((AT27^2)+(AT28^2)+(AT29^2)+(AT30^2))","v":79.755877526361658},{"$f":"AU27+AU28+AU29+AU30","v":0},{"$f":"SQRT((AV27^2)+(AV28^2)+(AV29^2)+(AV30^2))","v":24},{"$f":"AW27+AW28+AW29+AW30","v":0},{"$f":"SQRT((AX27^2)+(AX28^2)+(AX29^2)+(AX30^2))","v":24},{"$f":"AY27+AY28+AY29+AY30","v":63},{"$f":"SQRT((AZ27^2)+(AZ28^2)+(AZ29^2)+(AZ30^2))","v":49.17316341257699},{"$f":"BA27+BA28+BA29+BA30","v":0},{"$f":"SQRT((BB27^2)+(BB28^2)+(BB29^2)+(BB30^2))","v":24},{"$f":"BC27+BC28+BC29+BC30","v":12},{"$f":"SQRT((BD27^2)+(BD28^2)+(BD29^2)+(BD30^2))","v":28.160255680657446}]
[null,"35.0 percent or more",{"$f":"C31+C32+C33","v":50},{"$f":"SQRT((D31^2)+(D32^2)+(D33^2))","v":68.527366796047261},{"$f":"E31+E32+E33","v":6},{"$f":"SQRT((F31^2)+(F32^2)+(F33^2))","v":19.209372712298546},{"$f":"G31+G32+G33","v":14},{"$f":"SQRT((H31^2)+(H32^2)+(H33^2))","v":29.393876913398138},{"$f":"I31+I32+I33","v":57},{"$f":"SQRT((J31^2)+(J32^2)+(J33^2))","v":42.461747491124292},{"$f":"K31+K32+K33","v":9},{"$f":"SQRT((L31^2)+(L32^2)+(L33^2))","v":22.649503305812249},{"$f":"M31+M32+M33","v":0},{"$f":"SQRT((N31^2)+(N32^2)+(N33^2))","v":20.784609690826528},{"$f":"O31+O32+O33","v":18},{"$f":"SQRT((P31^2)+(P32^2)+(P33^2))","v":31.89043743820395},{"$f":"Q31+Q32+Q33","v":841},{"$f":"SQRT((R31^2)+(R32^2)+(R33^2))","v":194.04380948641469},{"$f":"S31+S32+S33","v":5},{"$f":"SQRT((T31^2)+(T32^2)+(T33^2))","v":13.601470508735444},{"$f":"U31+U32+U33","v":6},{"$f":"SQRT((V31^2)+(V32^2)+(V33^2))","v":19.209372712298546},{"$f":"W31+W32+W33","v":35},{"$f":"SQRT((X31^2)+(X32^2)+(X33^2))","v":28.861739379323623},{"$f":"Y31+Y32+Y33","v":206},{"$f":"SQRT((Z31^2)+(Z32^2)+(Z33^2))","v":117.45637488020819},{"$f":"AA31+AA32+AA33","v":206},{"$f":"SQRT((AB31^2)+(AB32^2)+(AB33^2))","v":152.8037957643723},{"$f":"AC31+AC32+AC33","v":0},{"$f":"SQRT((AD31^2)+(AD32^2)+(AD33^2))","v":20.784609690826528},{"$f":"AE31+AE32+AE33","v":112},{"$f":"SQRT((AF31^2)+(AF32^2)+(AF33^2))","v":110.11357772772621},{"$f":"AG31+AG32+AG33","v":11},{"$f":"SQRT((AH31^2)+(AH32^2)+(AH33^2))","v":30.643106892089126},{"$f":"AI31+AI32+AI33","v":13},{"$f":"SQRT((AJ31^2)+(AJ32^2)+(AJ33^2))","v":32.58834147360065},{"$f":"AK31+AK32+AK33","v":0},{"$f":"SQRT((AL31^2)+(AL32^2)+(AL33^2))","v":20.784609690826528},{"$f":"AM31+AM32+AM33","v":7},{"$f":"SQRT((AN31^2)+(AN32^2)+(AN33^2))","v":20.784609690826528},{"$f":"AO31+AO32+AO33","v":39},{"$f":"SQRT((AP31^2)+(AP32^2)+(AP33^2))","v":37.416573867739416},{"$f":"AQ31+AQ32+AQ33","v":60},{"$f":"SQRT((AR31^2)+(AR32^2)+(AR33^2))","v":72.124891681027847},{"$f":"AS31+AS32+AS33","v":112},{"$f":"SQRT((AT31^2)+(AT32^2)+(AT33^2))","v":112.42775458044157},{"$f":"AU31+AU32+AU33","v":4},{"$f":"SQRT((AV31^2)+(AV32^2)+(AV33^2))","v":18.761663039293719},{"$f":"AW31+AW32+AW33","v":0},{"$f":"SQRT((AX31^2)+(AX32^2)+(AX33^2))","v":20.784609690826528},{"$f":"AY31+AY32+AY33","v":22},{"$f":"SQRT((AZ31^2)+(AZ32^2)+(AZ33^2))","v":29.393876913398138},{"$f":"BA31+BA32+BA33","v":0},{"$f":"SQRT((BB31^2)+(BB32^2)+(BB33^2))","v":20.784609690826528},{"$f":"BC31+BC32+BC33","v":33},{"$f":"SQRT((BD31^2)+(BD32^2)+(BD33^2))","v":48.764741360946438}]
[null,"50.0 percent or more",{"$f":"C33","v":41},66,0,12,0,12,57,35,9,15,0,12,18,27,524,158,{"$f":"S33","v":3},5,6,9,16,17,83,68,28,34,0,12,83,100,11,19,13,22,0,12,7,12,11,20,60,68,38,60,0,12,0,12,22,24,0,12,0,12]
[null,"Not Computed",0,12,16,24,0,12,0,17,0,12,0,12,4,6,0,25,0,12,0,12,8,13,0,17,0,17,0,12,11,18,0,17,0,17,16,25,0,12,0,12,0,17,0,12,0,12,4,6,27,25,0,12,0,12]
[null,"$35,000 to $49,999:",57,62,24,27,34,32,10,17,13,9,4,6,0,12,1008,240,24,19,13,15,50,62,159,100,85,80,0,12,104,62,21,29,45,55,10,10,27,32,142,99,68,66,170,101,0,12,5,8,53,56,4,4,6,8]
[null,"Less than 30.0 percent",{"$f":"C36+C37+C38","v":57},{"$f":"SQRT((D36^2)+(D37^2)+(D38^2))","v":64.691575958543467},{"$f":"E36+E37+E38","v":0},{"$f":"SQRT((F36^2)+(F37^2)+(F38^2))","v":20.784609690826528},{"$f":"G36+G37+G38","v":10},{"$f":"SQRT((H36^2)+(H37^2)+(H38^2))","v":23.323807579381203},{"$f":"I36+I37+I38","v":0},{"$f":"SQRT((J36^2)+(J37^2)+(J38^2))","v":29.444863728670914},{"$f":"K36+K37+K38","v":4},{"$f":"SQRT((L36^2)+(L37^2)+(L38^2))","v":17.691806012954132},{"$f":"M36+M37+M38","v":0},{"$f":"SQRT((N36^2)+(N37^2)+(N38^2))","v":20.784609690826528},{"$f":"O36+O37+O38","v":0},{"$f":"SQRT((P36^2)+(P37^2)+(P38^2))","v":20.784609690826528},{"$f":"Q36+Q37+Q38","v":374},{"$f":"SQRT((R36^2)+(R37^2)+(R38^2))","v":149.88662381947231},{"$f":"S36+S37+S38","v":0},{"$f":"SQRT((T36^2)+(T37^2)+(T38^2))","v":20.784609690826528},{"$f":"U36+U37+U38","v":0},{"$f":"SQRT((V36^2)+(V37^2)+(V38^2))","v":20.784609690826528},{"$f":"W36+W37+W38","v":0},{"$f":"SQRT((X36^2)+(X37^2)+(X38^2))","v":20.784609690826528},{"$f":"Y36+Y37+Y38","v":68},{"$f":"SQRT((Z36^2)+(Z37^2)+(Z38^2))","v":67.186308128963304},{"$f":"AA36+AA37+AA38","v":85},{"$f":"SQRT((AB36^2)+(AB37^2)+(AB38^2))","v":82.97590011563598},{"$f":"AC36+AC37+AC38","v":0},{"$f":"SQRT((AD36^2)+(AD37^2)+(AD38^2))","v":20.784609690826528},{"$f":"AE36+AE37+AE38","v":15},{"$f":"SQRT((AF36^2)+(AF37^2)+(AF38^2))","v":25.96150997149434},{"$f":"AG36+AG37+AG38","v":7},{"$f":"SQRT((AH36^2)+(AH37^2)+(AH38^2))","v":26.438608132804571},{"$f":"AI36+AI37+AI38","v":14},{"$f":"SQRT((AJ36^2)+(AJ37^2)+(AJ38^2))","v":34.684290392049249},{"$f":"AK36+AK37+AK38","v":0},{"$f":"SQRT((AL36^2)+(AL37^2)+(AL38^2))","v":20.784609690826528},{"$f":"AM36+AM37+AM38","v":27},{"$f":"SQRT((AN36^2)+(AN37^2)+(AN38^2))","v":33.955853692699293},{"$f":"AO36+AO37+AO38","v":76},{"$f":"SQRT((AP36^2)+(AP37^2)+(AP38^2))","v":85.381496824546247},{"$f":"AQ36+AQ37+AQ38","v":41},{"$f":"SQRT((AR36^2)+(AR37^2)+(AR38^2))","v":60.024994793835674},{"$f":"AS36+AS37+AS38","v":39},{"$f":"SQRT((AT36^2)+(AT37^2)+(AT38^2))","v":40.422765862815474},{"$f":"AU36+AU37+AU38","v":0},{"$f":"SQRT((AV36^2)+(AV37^2)+(AV38^2))","v":20.784609690826528},{"$f":"AW36+AW37+AW38","v":0},{"$f":"SQRT((AX36^2)+(AX37^2)+(AX38^2))","v":20.784609690826528},{"$f":"AY36+AY37+AY38","v":0},{"$f":"SQRT((AZ36^2)+(AZ37^2)+(AZ38^2))","v":20.784609690826528},{"$f":"BA36+BA37+BA38","v":2},{"$f":"SQRT((BB36^2)+(BB37^2)+(BB38^2))","v":17.233687939614086},{"$f":"BC36+BC37+BC38","v":6},{"$f":"SQRT((BD36^2)+(BD37^2)+(BD38^2))","v":18.761663039293719}]
[null,"More than 30.0 percent",{"$f":"C39+C40+C41+C42","v":0},{"$f":"SQRT((D39^2)+(D40^2)+(D41^2)+(D42^2))","v":24},{"$f":"E39+E40+E41+E42","v":7},{"$f":"SQRT((F39^2)+(F40^2)+(F41^2)+(F42^2))","v":23.065125189341593},{"$f":"G39+G40+G41+G42","v":24},{"$f":"SQRT((H39^2)+(H40^2)+(H41^2)+(H42^2))","v":31.811947441173732},{"$f":"I39+I40+I41+I42","v":10},{"$f":"SQRT((J39^2)+(J40^2)+(J41^2)+(J42^2))","v":34},{"$f":"K39+K40+K41+K42","v":9},{"$f":"SQRT((L39^2)+(L40^2)+(L41^2)+(L42^2))","v":19.416487838947599},{"$f":"M39+M40+M41+M42","v":4},{"$f":"SQRT((N39^2)+(N40^2)+(N41^2)+(N42^2))","v":21.633307652783937},{"$f":"O39+O40+O41+O42","v":0},{"$f":"SQRT((P39^2)+(P40^2)+(P41^2)+(P42^2))","v":24},{"$f":"Q39+Q40+Q41+Q42","v":634},{"$f":"SQRT((R39^2)+(R40^2)+(R41^2)+(R42^2))","v":199.97499843730466},{"$f":"S39+S40+S41+S42","v":13},{"$f":"SQRT((T39^2)+(T40^2)+(T41^2)+(T42^2))","v":21.377558326431949},{"$f":"U39+U40+U41+U42","v":9},{"$f":"SQRT((V39^2)+(V40^2)+(V41^2)+(V42^2))","v":25.059928172283335},{"$f":"W39+W40+W41+W42","v":50},{"$f":"SQRT((X39^2)+(X40^2)+(X41^2)+(X42^2))","v":56.762663785273503},{"$f":"Y39+Y40+Y41+Y42","v":91},{"$f":"SQRT((Z39^2)+(Z40^2)+(Z41^2)+(Z42^2))","v":70.249555158733926},{"$f":"AA39+AA40+AA41+AA42","v":0},{"$f":"SQRT((AB39^2)+(AB40^2)+(AB41^2)+(AB42^2))","v":34},{"$f":"AC39+AC40+AC41+AC42","v":0},{"$f":"SQRT((AD39^2)+(AD40^2)+(AD41^2)+(AD42^2))","v":24},{"$f":"AE39+AE40+AE41+AE42","v":89},{"$f":"SQRT((AF39^2)+(AF40^2)+(AF41^2)+(AF42^2))","v":61.400325732035007},{"$f":"AG39+AG40+AG41+AG42","v":14},{"$f":"SQRT((AH39^2)+(AH40^2)+(AH41^2)+(AH42^2))","v":39.949968710876355},{"$f":"AI39+AI40+AI41+AI42","v":31},{"$f":"SQRT((AJ39^2)+(AJ40^2)+(AJ41^2)+(AJ42^2))","v":53.777318638995006},{"$f":"AK39+AK40+AK41+AK42","v":10},{"$f":"SQRT((AL39^2)+(AL40^2)+(AL41^2)+(AL42^2))","v":20.024984394500787},{"$f":"AM39+AM40+AM41+AM42","v":0},{"$f":"SQRT((AN39^2)+(AN40^2)+(AN41^2)+(AN42^2))","v":24},{"$f":"AO39+AO40+AO41+AO42","v":66},{"$f":"SQRT((AP39^2)+(AP40^2)+(AP41^2)+(AP42^2))","v":58.034472514187634},{"$f":"AQ39+AQ40+AQ41+AQ42","v":27},{"$f":"SQRT((AR39^2)+(AR40^2)+(AR41^2)+(AR42^2))","v":45.738386504117088},{"$f":"AS39+AS40+AS41+AS42","v":131},{"$f":"SQRT((AT39^2)+(AT40^2)+(AT41^2)+(AT42^2))","v":106.41898326896381},{"$f":"AU39+AU40+AU41+AU42","v":0},{"$f":"SQRT((AV39^2)+(AV40^2)+(AV41^2)+(AV42^2))","v":24},{"$f":"AW39+AW40+AW41+AW42","v":0},{"$f":"SQRT((AX39^2)+(AX40^2)+(AX41^2)+(AX42^2))","v":24},{"$f":"AY39+AY40+AY41+AY42","v":53},{"$f":"SQRT((AZ39^2)+(AZ40^2)+(AZ41^2)+(AZ42^2))","v":55.226805085936306},{"$f":"BA39+BA40+BA41+BA42","v":2},{"$f":"SQRT((BB39^2)+(BB40^2)+(BB41^2)+(BB42^2))","v":21},{"$f":"BC39+BC40+BC41+BC42","v":0},{"$f":"SQRT((BD39^2)+(BD40^2)+(BD41^2)+(BD42^2))","v":24}]
[null,"Less Than 35% of HH Income",{"$f":"C36+C37+C38+C39","v":57},{"$f":"SQRT((D36^2)+(D37^2)+(D38^2)+(D39^2))","v":65.79513659838392},{"$f":"E36+E37+E38+E39","v":0},{"$f":"SQRT((F36^2)+(F37^2)+(F38^2)+(F39^2))","v":24},{"$f":"G36+G37+G38+G39","v":10},{"$f":"SQRT((H36^2)+(H37^2)+(H38^2)+(H39^2))","v":26.229754097208001},{"$f":"I36+I37+I38+I39","v":0},{"$f":"SQRT((J36^2)+(J37^2)+(J38^2)+(J39^2))","v":34},{"$f":"K36+K37+K38+K39","v":4},{"$f":"SQRT((L36^2)+(L37^2)+(L38^2)+(L39^2))","v":21.377558326431949},{"$f":"M36+M37+M38+M39","v":4},{"$f":"SQRT((N36^2)+(N37^2)+(N38^2)+(N39^2))","v":21.633307652783937},{"$f":"O36+O37+O38+O39","v":0},{"$f":"SQRT((P36^2)+(P37^2)+(P38^2)+(P39^2))","v":24},{"$f":"Q36+Q37+Q38+Q39","v":496},{"$f":"SQRT((R36^2)+(R37^2)+(R38^2)+(R39^2))","v":164.59040069214242},{"$f":"S36+S37+S38+S39","v":9},{"$f":"SQRT((T36^2)+(T37^2)+(T38^2)+(T39^2))","v":24},{"$f":"U36+U37+U38+U39","v":9},{"$f":"SQRT((V36^2)+(V37^2)+(V38^2)+(V39^2))","v":25.059928172283335},{"$f":"W36+W37+W38+W39","v":28},{"$f":"SQRT((X36^2)+(X37^2)+(X38^2)+(X39^2))","v":50.47771785649585},{"$f":"Y36+Y37+Y38+Y39","v":77},{"$f":"SQRT((Z36^2)+(Z37^2)+(Z38^2)+(Z39^2))","v":68.629439747093954},{"$f":"AA36+AA37+AA38+AA39","v":85},{"$f":"SQRT((AB36^2)+(AB37^2)+(AB38^2)+(AB39^2))","v":84.699468711438797},{"$f":"AC36+AC37+AC38+AC39","v":0},{"$f":"SQRT((AD36^2)+(AD37^2)+(AD38^2)+(AD39^2))","v":24},{"$f":"AE36+AE37+AE38+AE39","v":52},{"$f":"SQRT((AF36^2)+(AF37^2)+(AF38^2)+(AF39^2))","v":44.384682042344295},{"$f":"AG36+AG37+AG38+AG39","v":21},{"$f":"SQRT((AH36^2)+(AH37^2)+(AH38^2)+(AH39^2))","v":37.78888725538237},{"$f":"AI36+AI37+AI38+AI39","v":14},{"$f":"SQRT((AJ36^2)+(AJ37^2)+(AJ38^2)+(AJ39^2))","v":38.626415831655933},{"$f":"AK36+AK37+AK38+AK39","v":5},{"$f":"SQRT((AL36^2)+(AL37^2)+(AL38^2)+(AL39^2))","v":22.271057451320086},{"$f":"AM36+AM37+AM38+AM39","v":27},{"$f":"SQRT((AN36^2)+(AN37^2)+(AN38^2)+(AN39^2))","v":36.013886210738214},{"$f":"AO36+AO37+AO38+AO39","v":86},{"$f":"SQRT((AP36^2)+(AP37^2)+(AP38^2)+(AP39^2))","v":87.258237433493917},{"$f":"AQ36+AQ37+AQ38+AQ39","v":41},{"$f":"SQRT((AR36^2)+(AR37^2)+(AR38^2)+(AR39^2))","v":62.385895841928885},{"$f":"AS36+AS37+AS38+AS39","v":103},{"$f":"SQRT((AT36^2)+(AT37^2)+(AT38^2)+(AT39^2))","v":86.965510404987569},{"$f":"AU36+AU37+AU38+AU39","v":0},{"$f":"SQRT((AV36^2)+(AV37^2)+(AV38^2)+(AV39^2))","v":24},{"$f":"AW36+AW37+AW38+AW39","v":0},{"$f":"SQRT((AX36^2)+(AX37^2)+(AX38^2)+(AX39^2))","v":24},{"$f":"AY36+AY37+AY38+AY39","v":37},{"$f":"SQRT((AZ36^2)+(AZ37^2)+(AZ38^2)+(AZ39^2))","v":55.072679252057455},{"$f":"BA36+BA37+BA38+BA39","v":2},{"$f":"SQRT((BB36^2)+(BB37^2)+(BB38^2)+(BB39^2))","v":21},{"$f":"BC36+BC37+BC38+BC39","v":6},{"$f":"SQRT((BD36^2)+(BD37^2)+(BD38^2)+(BD39^2))","v":22.271057451320086}]
[null,"35.0 percent or more",{"$f":"C40+C41+C42","v":0},{"$f":"SQRT((D40^2)+(D41^2)+(D42^2))","v":20.784609690826528},{"$f":"E40+E41+E42","v":7},{"$f":"SQRT((F40^2)+(F41^2)+(F42^2))","v":19.697715603592208},{"$f":"G40+G41+G42","v":24},{"$f":"SQRT((H40^2)+(H41^2)+(H42^2))","v":29.461839725312469},{"$f":"I40+I41+I42","v":10},{"$f":"SQRT((J40^2)+(J41^2)+(J42^2))","v":29.444863728670914},{"$f":"K40+K41+K42","v":9},{"$f":"SQRT((L40^2)+(L41^2)+(L42^2))","v":15.264337522473747},{"$f":"M40+M41+M42","v":0},{"$f":"SQRT((N40^2)+(N41^2)+(N42^2))","v":20.784609690826528},{"$f":"O40+O41+O42","v":0},{"$f":"SQRT((P40^2)+(P41^2)+(P42^2))","v":20.784609690826528},{"$f":"Q40+Q41+Q42","v":512},{"$f":"SQRT((R40^2)+(R41^2)+(R42^2))","v":188.05850153609114},{"$f":"S40+S41+S42","v":4},{"$f":"SQRT((T40^2)+(T41^2)+(T42^2))","v":17.691806012954132},{"$f":"U40+U41+U42","v":0},{"$f":"SQRT((V40^2)+(V41^2)+(V42^2))","v":20.784609690826528},{"$f":"W40+W41+W42","v":22},{"$f":"SQRT((X40^2)+(X41^2)+(X42^2))","v":33.25657829663178},{"$f":"Y40+Y41+Y42","v":82},{"$f":"SQRT((Z40^2)+(Z41^2)+(Z42^2))","v":68.840395117982865},{"$f":"AA40+AA41+AA42","v":0},{"$f":"SQRT((AB40^2)+(AB41^2)+(AB42^2))","v":29.444863728670914},{"$f":"AC40+AC41+AC42","v":0},{"$f":"SQRT((AD40^2)+(AD41^2)+(AD42^2))","v":20.784609690826528},{"$f":"AE40+AE41+AE42","v":52},{"$f":"SQRT((AF40^2)+(AF41^2)+(AF42^2))","v":49.739320461783549},{"$f":"AG40+AG41+AG42","v":0},{"$f":"SQRT((AH40^2)+(AH41^2)+(AH42^2))","v":29.444863728670914},{"$f":"AI40+AI41+AI42","v":31},{"$f":"SQRT((AJ40^2)+(AJ41^2)+(AJ42^2))","v":51.019604075296392},{"$f":"AK40+AK41+AK42","v":5},{"$f":"SQRT((AL40^2)+(AL41^2)+(AL42^2))","v":18.357559750685819},{"$f":"AM40+AM41+AM42","v":0},{"$f":"SQRT((AN40^2)+(AN41^2)+(AN42^2))","v":20.784609690826528},{"$f":"AO40+AO41+AO42","v":56},{"$f":"SQRT((AP40^2)+(AP41^2)+(AP42^2))","v":55.172456896534889},{"$f":"AQ40+AQ41+AQ42","v":27},{"$f":"SQRT((AR40^2)+(AR41^2)+(AR42^2))","v":42.461747491124292},{"$f":"AS40+AS41+AS42","v":67},{"$f":"SQRT((AT40^2)+(AT41^2)+(AT42^2))","v":73.457470688827826},{"$f":"AU40+AU41+AU42","v":0},{"$f":"SQRT((AV40^2)+(AV41^2)+(AV42^2))","v":20.784609690826528},{"$f":"AW40+AW41+AW42","v":0},{"$f":"SQRT((AX40^2)+(AX41^2)+(AX42^2))","v":20.784609690826528},{"$f":"AY40+AY41+AY42","v":16},{"$f":"SQRT((AZ40^2)+(AZ41^2)+(AZ42^2))","v":21.189620100417091},{"$f":"BA40+BA41+BA42","v":2},{"$f":"SQRT((BB40^2)+(BB41^2)+(BB42^2))","v":17.233687939614086},{"$f":"BC40+BC41+BC42","v":0},{"$f":"SQRT((BD40^2)+(BD41^2)+(BD42^2))","v":20.784609690826528}]
[null,"50.0 percent or more",{"$f":"C42","v":0},12,0,{"$f":"F42","v":12},{"$f":"G42","v":13},20,{"$f":"I42","v":0},17,{"$f":"K42","v":0},12,{"$f":"M42","v":0},12,{"$f":"O42","v":0},12,{"$f":"Q42","v":82},61,{"$f":"S42","v":0},12,{"$f":"U42","v":0},12,{"$f":"W42","v":0},12,{"$f":"Y42","v":17},27,{"$f":"AA42","v":0},17,{"$f":"AC42","v":0},12,{"$f":"AE42","v":22},33,{"$f":"AG42","v":0},17,{"$f":"AI42","v":31},45,{"$f":"AK42","v":0},12,{"$f":"AM42","v":0},12,{"$f":"AO42","v":0},12,{"$f":"AQ42","v":27},35,{"$f":"AS42","v":0},12,{"$f":"AU42","v":0},12,{"$f":"AW42","v":0},12,{"$f":"AY42","v":0},12,{"$f":"BA42","v":0},12,{"$f":"BC42","v":0},12]
[null,"Not Computed",0,12,17,26,{"$f":"G43","v":0},12,{"$f":"I43","v":0},17,{"$f":"K43","v":0},12,{"$f":"M43","v":0},12,{"$f":"O43","v":0},12,{"$f":"Q43","v":0},25,{"$f":"S43","v":11},14,{"$f":"U43","v":4},6,{"$f":"W43","v":0},12,{"$f":"Y43","v":0},17,{"$f":"AA43","v":0},17,{"$f":"AC43","v":0},12,{"$f":"AE43","v":0},19,{"$f":"AG43","v":0},17,{"$f":"AI43","v":0},17,{"$f":"AK43","v":0},12,{"$f":"AM43","v":0},12,{"$f":"AO43","v":0},12,{"$f":"AQ43","v":0},17,{"$f":"AS43","v":0},12,{"$f":"AU43","v":0},12,{"$f":"AW43","v":5},8,{"$f":"AY43","v":0},12,{"$f":"BA43","v":0},12,{"$f":"BC43","v":0},12]
[null,"$50,000 to $74,999:",{"$f":"C44","v":51},43,12,18,84,62,53,43,25,25,0,12,4,6,1568,261,10,17,5,7,42,35,139,67,175,137,6,9,160,83,67,70,77,107,16,14,26,24,125,66,124,84,76,64,0,12,7,8,66,46,3,5,24,24]
[null,"Less than 30.0 percent",{"$f":"C45+C46+C47","v":25},{"$f":"SQRT((D45^2)+(D46^2)+(D47^2))","v":33.120990323358392},{"$f":"E45+E46+E47","v":12},{"$f":"SQRT((F45^2)+(F46^2)+(F47^2))","v":24.738633753705962},{"$f":"G45+G46+G47","v":67},{"$f":"SQRT((H45^2)+(H46^2)+(H47^2))","v":60.066629670724829},{"$f":"I45+I46+I47","v":42},{"$f":"SQRT((J45^2)+(J46^2)+(J47^2))","v":42.201895692018383},{"$f":"K45+K46+K47","v":16},{"$f":"SQRT((L45^2)+(L46^2)+(L47^2))","v":23.021728866442675},{"$f":"M45+M46+M47","v":0},{"$f":"SQRT((N45^2)+(N46^2)+(N47^2))","v":20.784609690826528},{"$f":"O45+O46+O47","v":0},{"$f":"SQRT((P45^2)+(P46^2)+(P47^2))","v":20.784609690826528},{"$f":"Q45+Q46+Q47","v":1118},{"$f":"SQRT((R45^2)+(R46^2)+(R47^2))","v":249.96199711156095},{"$f":"S45+S46+S47","v":10},{"$f":"SQRT((T45^2)+(T46^2)+(T47^2))","v":24.020824298928627},{"$f":"U45+U46+U47","v":5},{"$f":"SQRT((V45^2)+(V46^2)+(V47^2))","v":18.357559750685819},{"$f":"W45+W46+W47","v":34},{"$f":"SQRT((X45^2)+(X46^2)+(X47^2))","v":35.128336140500593},{"$f":"Y45+Y46+Y47","v":136},{"$f":"SQRT((Z45^2)+(Z46^2)+(Z47^2))","v":69.835521047673154},{"$f":"AA45+AA46+AA47","v":175},{"$f":"SQRT((AB45^2)+(AB46^2)+(AB47^2))","v":137.11673858431726},{"$f":"AC45+AC46+AC47","v":6},{"$f":"SQRT((AD45^2)+(AD46^2)+(AD47^2))","v":19.209372712298546},{"$f":"AE45+AE46+AE47","v":57},{"$f":"SQRT((AF45^2)+(AF46^2)+(AF47^2))","v":41.303752856126764},{"$f":"AG45+AG46+AG47","v":67},{"$f":"SQRT((AH45^2)+(AH46^2)+(AH47^2))","v":72.739260375673325},{"$f":"AI45+AI46+AI47","v":77},{"$f":"SQRT((AJ45^2)+(AJ46^2)+(AJ47^2))","v":109.66767983321249},{"$f":"AK45+AK46+AK47","v":5},{"$f":"SQRT((AL45^2)+(AL46^2)+(AL47^2))","v":19.209372712298546},{"$f":"AM45+AM46+AM47","v":8},{"$f":"SQRT((AN45^2)+(AN46^2)+(AN47^2))","v":21.377558326431949},{"$f":"AO45+AO46+AO47","v":114},{"$f":"SQRT((AP45^2)+(AP46^2)+(AP47^2))","v":66.880490428823862},{"$f":"AQ45+AQ46+AQ47","v":69},{"$f":"SQRT((AR45^2)+(AR46^2)+(AR47^2))","v":61.587336360651285},{"$f":"AS45+AS46+AS47","v":76},{"$f":"SQRT((AT45^2)+(AT46^2)+(AT47^2))","v":61.163714733492114},{"$f":"AU45+AU46+AU47","v":0},{"$f":"SQRT((AV45^2)+(AV46^2)+(AV47^2))","v":20.784609690826528},{"$f":"AW45+AW46+AW47","v":0},{"$f":"SQRT((AX45^2)+(AX46^2)+(AX47^2))","v":20.784609690826528},{"$f":"AY45+AY46+AY47","v":53},{"$f":"SQRT((AZ45^2)+(AZ46^2)+(AZ47^2))","v":38.7556447501522},{"$f":"BA45+BA46+BA47","v":3},{"$f":"SQRT((BB45^2)+(BB46^2)+(BB47^2))","v":17.691806012954132},{"$f":"BC45+BC46+BC47","v":16},{"$f":"SQRT((BD45^2)+(BD46^2)+(BD47^2))","v":26.248809496813376}]
[null,"More than 30.0 percent",{"$f":"C48+C49+C50+C51","v":26},{"$f":"SQRT((D48^2)+(D49^2)+(D50^2)+(D51^2))","v":37.322915213043046},{"$f":"E48+E49+E50+E51","v":0},{"$f":"SQRT((F48^2)+(F49^2)+(F50^2)+(F51^2))","v":24},{"$f":"G48+G49+G50+G51","v":17},{"$f":"SQRT((H48^2)+(H49^2)+(H50^2)+(H51^2))","v":33.286633954186478},{"$f":"I48+I49+I50+I51","v":11},{"$f":"SQRT((J48^2)+(J49^2)+(J50^2)+(J51^2))","v":34},{"$f":"K48+K49+K50+K51","v":9},{"$f":"SQRT((L48^2)+(L49^2)+(L50^2)+(L51^2))","v":26.229754097208001},{"$f":"M48+M49+M50+M51","v":0},{"$f":"SQRT((N48^2)+(N49^2)+(N50^2)+(N51^2))","v":24},{"$f":"O48+O49+O50+O51","v":0},{"$f":"SQRT((P48^2)+(P49^2)+(P50^2)+(P51^2))","v":24},{"$f":"Q48+Q49+Q50+Q51","v":450},{"$f":"SQRT((R48^2)+(R49^2)+(R50^2)+(R51^2))","v":143.54441821262157},{"$f":"S48+S49+S50+S51","v":0},{"$f":"SQRT((T48^2)+(T49^2)+(T50^2)+(T51^2))","v":24},{"$f":"U48+U49+U50+U51","v":0},{"$f":"SQRT((V48^2)+(V49^2)+(V50^2)+(V51^2))","v":24},{"$f":"W48+W49+W50+W51","v":8},{"$f":"SQRT((X48^2)+(X49^2)+(X50^2)+(X51^2))","v":24},{"$f":"Y48+Y49+Y50+Y51","v":3},{"$f":"SQRT((Z48^2)+(Z49^2)+(Z50^2)+(Z51^2))","v":30.04995840263344},{"$f":"AA48+AA49+AA50+AA51","v":0},{"$f":"SQRT((AB48^2)+(AB49^2)+(AB50^2)+(AB51^2))","v":34},{"$f":"AC48+AC49+AC50+AC51","v":0},{"$f":"SQRT((AD48^2)+(AD49^2)+(AD50^2)+(AD51^2))","v":24},{"$f":"AE48+AE49+AE50+AE51","v":98},{"$f":"SQRT((AF48^2)+(AF49^2)+(AF50^2)+(AF51^2))","v":71.937472849690792},{"$f":"AG48+AG49+AG50+AG51","v":0},{"$f":"SQRT((AH48^2)+(AH49^2)+(AH50^2)+(AH51^2))","v":34},{"$f":"AI48+AI49+AI50+AI51","v":0},{"$f":"SQRT((AJ48^2)+(AJ49^2)+(AJ50^2)+(AJ51^2))","v":34},{"$f":"AK48+AK49+AK50+AK51","v":5},{"$f":"SQRT((AL48^2)+(AL49^2)+(AL50^2)+(AL51^2))","v":22.271057451320086},{"$f":"AM48+AM49+AM50+AM51","v":18},{"$f":"SQRT((AN48^2)+(AN49^2)+(AN50^2)+(AN51^2))","v":29.546573405388315},{"$f":"AO48+AO49+AO50+AO51","v":0},{"$f":"SQRT((AP48^2)+(AP49^2)+(AP50^2)+(AP51^2))","v":24},{"$f":"AQ48+AQ49+AQ50+AQ51","v":55},{"$f":"SQRT((AR48^2)+(AR49^2)+(AR50^2)+(AR51^2))","v":66.32495759516172},{"$f":"AS48+AS49+AS50+AS51","v":0},{"$f":"SQRT((AT48^2)+(AT49^2)+(AT50^2)+(AT51^2))","v":24},{"$f":"AU48+AU49+AU50+AU51","v":0},{"$f":"SQRT((AV48^2)+(AV49^2)+(AV50^2)+(AV51^2))","v":24},{"$f":"AW48+AW49+AW50+AW51","v":7},{"$f":"SQRT((AX48^2)+(AX49^2)+(AX50^2)+(AX51^2))","v":18.681541692269406},{"$f":"AY48+AY49+AY50+AY51","v":13},{"$f":"SQRT((AZ48^2)+(AZ49^2)+(AZ50^2)+(AZ51^2))","v":28.160255680657446},{"$f":"BA48+BA49+BA50+BA51","v":0},{"$f":"SQRT((BB48^2)+(BB49^2)+(BB50^2)+(BB51^2))","v":24},{"$f":"BC48+BC49+BC50+BC51","v":8},{"$f":"SQRT((BD48^2)+(BD49^2)+(BD50^2)+(BD51^2))","v":18.681541692269406}]
[null,"Less Than 35% of HH Income",{"$f":"C48+C47+C46+C45","v":25},{"$f":"SQRT((D48^2)+(D47^2)+(D46^2)+(D45^2))","v":35.227829907617071},{"$f":"E48+E47+E46+E45","v":12},{"$f":"SQRT((F48^2)+(F47^2)+(F46^2)+(F45^2))","v":27.495454169735041},{"$f":"G48+G47+G46+G45","v":84},{"$f":"SQRT((H48^2)+(H47^2)+(H46^2)+(H45^2))","v":65.452272687814286},{"$f":"I48+I47+I46+I45","v":53},{"$f":"SQRT((J48^2)+(J47^2)+(J46^2)+(J45^2))","v":45.4972526643093},{"$f":"K48+K47+K46+K45","v":16},{"$f":"SQRT((L48^2)+(L47^2)+(L46^2)+(L45^2))","v":25.96150997149434},{"$f":"M48+M47+M46+M45","v":0},{"$f":"SQRT((N48^2)+(N47^2)+(N46^2)+(N45^2))","v":24},{"$f":"O48+O47+O46+O45","v":0},{"$f":"SQRT((P48^2)+(P47^2)+(P46^2)+(P45^2))","v":24},{"$f":"Q48+Q47+Q46+Q45","v":1299},{"$f":"SQRT((R48^2)+(R47^2)+(R46^2)+(R45^2))","v":262.45190035509364},{"$f":"S48+S47+S46+S45","v":10},{"$f":"SQRT((T48^2)+(T47^2)+(T46^2)+(T45^2))","v":26.851443164195103},{"$f":"U48+U47+U46+U45","v":5},{"$f":"SQRT((V48^2)+(V47^2)+(V46^2)+(V45^2))","v":21.931712199461309},{"$f":"W48+W47+W46+W45","v":42},{"$f":"SQRT((X48^2)+(X47^2)+(X46^2)+(X45^2))","v":37.12142238654117},{"$f":"Y48+Y47+Y46+Y45","v":136},{"$f":"SQRT((Z48^2)+(Z47^2)+(Z46^2)+(Z45^2))","v":71.874891304265631},{"$f":"AA48+AA47+AA46+AA45","v":175},{"$f":"SQRT((AB48^2)+(AB47^2)+(AB46^2)+(AB45^2))","v":138.16656614391198},{"$f":"AC48+AC47+AC46+AC45","v":6},{"$f":"SQRT((AD48^2)+(AD47^2)+(AD46^2)+(AD45^2))","v":22.649503305812249},{"$f":"AE48+AE47+AE46+AE45","v":133},{"$f":"SQRT((AF48^2)+(AF47^2)+(AF46^2)+(AF45^2))","v":71.203932475671593},{"$f":"AG48+AG47+AG46+AG45","v":67},{"$f":"SQRT((AH48^2)+(AH47^2)+(AH46^2)+(AH45^2))","v":74.699397587932395},{"$f":"AI48+AI47+AI46+AI45","v":77},{"$f":"SQRT((AJ48^2)+(AJ47^2)+(AJ46^2)+(AJ45^2))","v":110.97747519204066},{"$f":"AK48+AK47+AK46+AK45","v":5},{"$f":"SQRT((AL48^2)+(AL47^2)+(AL46^2)+(AL45^2))","v":22.649503305812249},{"$f":"AM48+AM47+AM46+AM45","v":26},{"$f":"SQRT((AN48^2)+(AN47^2)+(AN46^2)+(AN45^2))","v":29.966648127543394},{"$f":"AO48+AO47+AO46+AO45","v":114},{"$f":"SQRT((AP48^2)+(AP47^2)+(AP46^2)+(AP45^2))","v":67.948509917436752},{"$f":"AQ48+AQ47+AQ46+AQ45","v":69},{"$f":"SQRT((AR48^2)+(AR47^2)+(AR46^2)+(AR45^2))","v":63.890531379853151},{"$f":"AS48+AS47+AS46+AS45","v":76},{"$f":"SQRT((AT48^2)+(AT47^2)+(AT46^2)+(AT45^2))","v":62.329768168989688},{"$f":"AU48+AU47+AU46+AU45","v":0},{"$f":"SQRT((AV48^2)+(AV47^2)+(AV46^2)+(AV45^2))","v":24},{"$f":"AW48+AW47+AW46+AW45","v":3},{"$f":"SQRT((AX48^2)+(AX47^2)+(AX46^2)+(AX45^2))","v":21.377558326431949},{"$f":"AY48+AY47+AY46+AY45","v":53},{"$f":"SQRT((AZ48^2)+(AZ47^2)+(AZ46^2)+(AZ45^2))","v":40.570925550201586},{"$f":"BA48+BA47+BA46+BA45","v":3},{"$f":"SQRT((BB48^2)+(BB47^2)+(BB46^2)+(BB45^2))","v":21.377558326431949},{"$f":"BC48+BC47+BC46+BC45","v":20},{"$f":"SQRT((BD48^2)+(BD47^2)+(BD46^2)+(BD45^2))","v":26.720778431774775}]
[null,"35.0 percent or more",{"$f":"C49+C50+C51","v":26},{"$f":"SQRT((D49^2)+(D50^2)+(D51^2))","v":35.341194094144583},{"$f":"E49+E50+E51","v":0},{"$f":"SQRT((F49^2)+(F50^2)+(F51^2))","v":20.784609690826528},{"$f":"G49+G50+G51","v":0},{"$f":"SQRT((H49^2)+(H50^2)+(H51^2))","v":20.784609690826528},{"$f":"I49+I50+I51","v":0},{"$f":"SQRT((J49^2)+(J50^2)+(J51^2))","v":29.444863728670914},{"$f":"K49+K50+K51","v":9},{"$f":"SQRT((L49^2)+(L50^2)+(L51^2))","v":23.323807579381203},{"$f":"M49+M50+M51","v":0},{"$f":"SQRT((N49^2)+(N50^2)+(N51^2))","v":20.784609690826528},{"$f":"O49+O50+O51","v":0},{"$f":"SQRT((P49^2)+(P50^2)+(P51^2))","v":20.784609690826528},{"$f":"Q49+Q50+Q51","v":269},{"$f":"SQRT((R49^2)+(R50^2)+(R51^2))","v":119.18473056562237},{"$f":"S49+S50+S51","v":0},{"$f":"SQRT((T49^2)+(T50^2)+(T51^2))","v":20.784609690826528},{"$f":"U49+U50+U51","v":0},{"$f":"SQRT((V49^2)+(V50^2)+(V51^2))","v":20.784609690826528},{"$f":"W49+W50+W51","v":0},{"$f":"SQRT((X49^2)+(X50^2)+(X51^2))","v":20.784609690826528},{"$f":"Y49+Y50+Y51","v":3},{"$f":"SQRT((Z49^2)+(Z50^2)+(Z51^2))","v":24.779023386727733},{"$f":"AA49+AA50+AA51","v":0},{"$f":"SQRT((AB49^2)+(AB50^2)+(AB51^2))","v":29.444863728670914},{"$f":"AC49+AC50+AC51","v":0},{"$f":"SQRT((AD49^2)+(AD50^2)+(AD51^2))","v":20.784609690826528},{"$f":"AE49+AE50+AE51","v":22},{"$f":"SQRT((AF49^2)+(AF50^2)+(AF51^2))","v":42.555845661906424},{"$f":"AG49+AG50+AG51","v":0},{"$f":"SQRT((AH49^2)+(AH50^2)+(AH51^2))","v":29.444863728670914},{"$f":"AI49+AI50+AI51","v":0},{"$f":"SQRT((AJ49^2)+(AJ50^2)+(AJ51^2))","v":29.444863728670914},{"$f":"AK49+AK50+AK51","v":5},{"$f":"SQRT((AL49^2)+(AL50^2)+(AL51^2))","v":18.761663039293719},{"$f":"AM49+AM50+AM51","v":0},{"$f":"SQRT((AN49^2)+(AN50^2)+(AN51^2))","v":20.784609690826528},{"$f":"AO49+AO50+AO51","v":0},{"$f":"SQRT((AP49^2)+(AP50^2)+(AP51^2))","v":20.784609690826528},{"$f":"AQ49+AQ50+AQ51","v":55},{"$f":"SQRT((AR49^2)+(AR50^2)+(AR51^2))","v":64.109281699298421},{"$f":"AS49+AS50+AS51","v":0},{"$f":"SQRT((AT49^2)+(AT50^2)+(AT51^2))","v":20.784609690826528},{"$f":"AU49+AU50+AU51","v":0},{"$f":"SQRT((AV49^2)+(AV50^2)+(AV51^2))","v":20.784609690826528},{"$f":"AW49+AW50+AW51","v":4},{"$f":"SQRT((AX49^2)+(AX50^2)+(AX51^2))","v":18},{"$f":"AY49+AY50+AY51","v":13},{"$f":"SQRT((AZ49^2)+(AZ50^2)+(AZ51^2))","v":25.475478405713993},{"$f":"BA49+BA50+BA51","v":0},{"$f":"SQRT((BB49^2)+(BB50^2)+(BB51^2))","v":20.784609690826528},{"$f":"BC49+BC50+BC51","v":4},{"$f":"SQRT((BD49^2)+(BD50^2)+(BD51^2))","v":18}]
[null,"50.0 percent or more",{"$f":"C51","v":0},12,0,{"$f":"F51","v":12},{"$f":"G51","v":0},12,{"$f":"I51","v":0},17,{"$f":"K51","v":0},12,{"$f":"M51","v":0},12,{"$f":"O51","v":0},12,{"$f":"Q51","v":10},16,{"$f":"S51","v":0},12,{"$f":"U51","v":0},12,{"$f":"W51","v":0},12,{"$f":"Y51","v":0},17,{"$f":"AA51","v":0},17,{"$f":"AC51","v":0},12,{"$f":"AE51","v":0},19,{"$f":"AG51","v":0},17,{"$f":"AI51","v":0},17,{"$f":"AK51","v":0},12,{"$f":"AM51","v":0},12,{"$f":"AO51","v":0},12,{"$f":"AQ51","v":0},17,{"$f":"AS51","v":0},12,{"$f":"AU51","v":0},12,{"$f":"AW51","v":0},12,{"$f":"AY51","v":0},12,{"$f":"BA51","v":0},12,{"$f":"BC51","v":0},12]
[null,"Not Computed",0,12,0,12,{"$f":"G52","v":0},12,{"$f":"I52","v":0},17,{"$f":"K52","v":0},12,{"$f":"M52","v":0},12,{"$f":"O52","v":4},6,{"$f":"Q52","v":0},25,{"$f":"S52","v":0},12,{"$f":"U52","v":0},12,{"$f":"W52","v":0},12,{"$f":"Y52","v":0},17,{"$f":"AA52","v":0},17,{"$f":"AC52","v":0},12,{"$f":"AE52","v":5},11,{"$f":"AG52","v":0},17,{"$f":"AI52","v":0},17,{"$f":"AK52","v":6},8,{"$f":"AM52","v":0},12,{"$f":"AO52","v":11},16,{"$f":"AQ52","v":0},17,{"$f":"AS52","v":0},12,{"$f":"AU52","v":0},12,{"$f":"AW52","v":0},12,{"$f":"AY52","v":0},12,{"$f":"BA52","v":0},12,{"$f":"BC52","v":0},12]
[null,"$75,000 to $99,999:",34,31,16,13,{"$f":"G53","v":11},16,{"$f":"I53","v":17},19,{"$f":"K53","v":8},8,{"$f":"M53","v":0},12,{"$f":"O53","v":10},11,{"$f":"Q53","v":1150},225,{"$f":"S53","v":0},12,{"$f":"U53","v":9},11,{"$f":"W53","v":19},23,{"$f":"Y53","v":358},206,{"$f":"AA53","v":26},29,{"$f":"AC53","v":3},4,{"$f":"AE53","v":229},116,{"$f":"AG53","v":93},90,{"$f":"AI53","v":0},17,{"$f":"AK53","v":0},12,{"$f":"AM53","v":34},31,{"$f":"AO53","v":58},56,{"$f":"AQ53","v":55},54,{"$f":"AS53","v":55},60,{"$f":"AU53","v":16},18,{"$f":"AW53","v":8},11,{"$f":"AY53","v":22},17,{"$f":"BA53","v":17},18,{"$f":"BC53","v":15},15]
[null,"Less than 30.0 percent",{"$f":"C54+C55+C56","v":34},{"$f":"SQRT((D54^2)+(D55^2)+(D56^2))","v":33.286633954186478},{"$f":"E54+E55+E56","v":11},{"$f":"SQRT((F54^2)+(F55^2)+(F56^2))","v":17},{"$f":"G54+G55+G56","v":11},{"$f":"SQRT((H54^2)+(H55^2)+(H56^2))","v":23.323807579381203},{"$f":"I54+I55+I56","v":17},{"$f":"SQRT((J54^2)+(J55^2)+(J56^2))","v":26.038433132583073},{"$f":"K54+K55+K56","v":8},{"$f":"SQRT((L54^2)+(L55^2)+(L56^2))","v":18.761663039293719},{"$f":"M54+M55+M56","v":0},{"$f":"SQRT((N54^2)+(N55^2)+(N56^2))","v":20.784609690826528},{"$f":"O54+O55+O56","v":5},{"$f":"SQRT((P54^2)+(P55^2)+(P56^2))","v":18.357559750685819},{"$f":"Q54+Q55+Q56","v":1070},{"$f":"SQRT((R54^2)+(R55^2)+(R56^2))","v":214.12613105363857},{"$f":"S54+S55+S56","v":0},{"$f":"SQRT((T54^2)+(T55^2)+(T56^2))","v":20.784609690826528},{"$f":"U54+U55+U56","v":9},{"$f":"SQRT((V54^2)+(V55^2)+(V56^2))","v":20.223748416156685},{"$f":"W54+W55+W56","v":10},{"$f":"SQRT((X54^2)+(X55^2)+(X56^2))","v":24.020824298928627},{"$f":"Y54+Y55+Y56","v":281},{"$f":"SQRT((Z54^2)+(Z55^2)+(Z56^2))","v":189.03174336602834},{"$f":"AA54+AA55+AA56","v":26},{"$f":"SQRT((AB54^2)+(AB55^2)+(AB56^2))","v":33.271609519228249},{"$f":"AC54+AC55+AC56","v":3},{"$f":"SQRT((AD54^2)+(AD55^2)+(AD56^2))","v":17.435595774162696},{"$f":"AE54+AE55+AE56","v":197},{"$f":"SQRT((AF54^2)+(AF55^2)+(AF56^2))","v":106.83164325236227},{"$f":"AG54+AG55+AG56","v":56},{"$f":"SQRT((AH54^2)+(AH55^2)+(AH56^2))","v":74.873226189339533},{"$f":"AI54+AI55+AI56","v":0},{"$f":"SQRT((AJ54^2)+(AJ55^2)+(AJ56^2))","v":29.444863728670914},{"$f":"AK54+AK55+AK56","v":0},{"$f":"SQRT((AL54^2)+(AL55^2)+(AL56^2))","v":20.784609690826528},{"$f":"AM54+AM55+AM56","v":20},{"$f":"SQRT((AN54^2)+(AN55^2)+(AN56^2))","v":25.651510676761319},{"$f":"AO54+AO55+AO56","v":48},{"$f":"SQRT((AP54^2)+(AP55^2)+(AP56^2))","v":54.488530903301111},{"$f":"AQ54+AQ55+AQ56","v":52},{"$f":"SQRT((AR54^2)+(AR55^2)+(AR56^2))","v":56.293871780150276},{"$f":"AS54+AS55+AS56","v":34},{"$f":"SQRT((AT54^2)+(AT55^2)+(AT56^2))","v":52.801515129776341},{"$f":"AU54+AU55+AU56","v":16},{"$f":"SQRT((AV54^2)+(AV55^2)+(AV56^2))","v":21.377558326431949},{"$f":"AW54+AW55+AW56","v":8},{"$f":"SQRT((AX54^2)+(AX55^2)+(AX56^2))","v":16.031219541881399},{"$f":"AY54+AY55+AY56","v":16},{"$f":"SQRT((AZ54^2)+(AZ55^2)+(AZ56^2))","v":23.323807579381203},{"$f":"BA54+BA55+BA56","v":17},{"$f":"SQRT((BB54^2)+(BB55^2)+(BB56^2))","v":21.931712199461309},{"$f":"BC54+BC55+BC56","v":15},{"$f":"SQRT((BD54^2)+(BD55^2)+(BD56^2))","v":19.104973174542799}]
[null,"More than 30.0 percent",{"$f":"C57+C58+C59+C60","v":0},{"$f":"SQRT((D57^2)+(D58^2)+(D59^2)+(D60^2))","v":24},{"$f":"E57+E58+E59+E60","v":5},{"$f":"SQRT((F57^2)+(F58^2)+(F59^2)+(F60^2))","v":21.931712199461309},{"$f":"G57+G58+G59+G60","v":0},{"$f":"SQRT((H57^2)+(H58^2)+(H59^2)+(H60^2))","v":24},{"$f":"I57+I58+I59+I60","v":0},{"$f":"SQRT((J57^2)+(J58^2)+(J59^2)+(J60^2))","v":34},{"$f":"K57+K58+K59+K60","v":0},{"$f":"SQRT((L57^2)+(L58^2)+(L59^2)+(L60^2))","v":24},{"$f":"M57+M58+M59+M60","v":0},{"$f":"SQRT((N57^2)+(N58^2)+(N59^2)+(N60^2))","v":24},{"$f":"O57+O58+O59+O60","v":5},{"$f":"SQRT((P57^2)+(P58^2)+(P59^2)+(P60^2))","v":22.649503305812249},{"$f":"Q57+Q58+Q59+Q60","v":60},{"$f":"SQRT((R57^2)+(R58^2)+(R59^2)+(R60^2))","v":74.986665481270734},{"$f":"S57+S58+S59+S60","v":0},{"$f":"SQRT((T57^2)+(T58^2)+(T59^2)+(T60^2))","v":24},{"$f":"U57+U58+U59+U60","v":0},{"$f":"SQRT((V57^2)+(V58^2)+(V59^2)+(V60^2))","v":24},{"$f":"W57+W58+W59+W60","v":9},{"$f":"SQRT((X57^2)+(X58^2)+(X59^2)+(X60^2))","v":25.632011235952593},{"$f":"Y57+Y58+Y59+Y60","v":54},{"$f":"SQRT((Z57^2)+(Z58^2)+(Z59^2)+(Z60^2))","v":68.636724863588881},{"$f":"AA57+AA58+AA59+AA60","v":0},{"$f":"SQRT((AB57^2)+(AB58^2)+(AB59^2)+(AB60^2))","v":34},{"$f":"AC57+AC58+AC59+AC60","v":0},{"$f":"SQRT((AD57^2)+(AD58^2)+(AD59^2)+(AD60^2))","v":24},{"$f":"AE57+AE58+AE59+AE60","v":32},{"$f":"SQRT((AF57^2)+(AF58^2)+(AF59^2)+(AF60^2))","v":46.604720790924176},{"$f":"AG57+AG58+AG59+AG60","v":0},{"$f":"SQRT((AH57^2)+(AH58^2)+(AH59^2)+(AH60^2))","v":34},{"$f":"AI57+AI58+AI59+AI60","v":0},{"$f":"SQRT((AJ57^2)+(AJ58^2)+(AJ59^2)+(AJ60^2))","v":34},{"$f":"AK57+AK58+AK59+AK60","v":0},{"$f":"SQRT((AL57^2)+(AL58^2)+(AL59^2)+(AL60^2))","v":24},{"$f":"AM57+AM58+AM59+AM60","v":0},{"$f":"SQRT((AN57^2)+(AN58^2)+(AN59^2)+(AN60^2))","v":24},{"$f":"AO57+AO58+AO59+AO60","v":0},{"$f":"SQRT((AP57^2)+(AP58^2)+(AP59^2)+(AP60^2))","v":24},{"$f":"AQ57+AQ58+AQ59+AQ60","v":0},{"$f":"SQRT((AR57^2)+(AR58^2)+(AR59^2)+(AR60^2))","v":34},{"$f":"AS57+AS58+AS59+AS60","v":0},{"$f":"SQRT((AT57^2)+(AT58^2)+(AT59^2)+(AT60^2))","v":24},{"$f":"AU57+AU58+AU59+AU60","v":0},{"$f":"SQRT((AV57^2)+(AV58^2)+(AV59^2)+(AV60^2))","v":24},{"$f":"AW57+AW58+AW59+AW60","v":0},{"$f":"SQRT((AX57^2)+(AX58^2)+(AX59^2)+(AX60^2))","v":24},{"$f":"AY57+AY58+AY59+AY60","v":6},{"$f":"SQRT((AZ57^2)+(AZ58^2)+(AZ59^2)+(AZ60^2))","v":23.065125189341593},{"$f":"BA57+BA58+BA59+BA60","v":0},{"$f":"SQRT((BB57^2)+(BB58^2)+(BB59^2)+(BB60^2))","v":24},{"$f":"BC57+BC58+BC59+BC60","v":0},{"$f":"SQRT((BD57^2)+(BD58^2)+(BD59^2)+(BD60^2))","v":24}]
[null,"Less Than 35% of HH Income",{"$f":"C54+C55+C56+C57","v":34},{"$f":"SQRT((D54^2)+(D55^2)+(D56^2)+(D57^2))","v":35.383612025908263},{"$f":"E54+E55+E56+E57","v":16},{"$f":"SQRT((F54^2)+(F55^2)+(F56^2)+(F57^2))","v":18.384776310850235},{"$f":"G54+G55+G56+G57","v":11},{"$f":"SQRT((H54^2)+(H55^2)+(H56^2)+(H57^2))","v":26.229754097208001},{"$f":"I54+I55+I56+I57","v":17},{"$f":"SQRT((J54^2)+(J55^2)+(J56^2)+(J57^2))","v":31.096623610932426},{"$f":"K54+K55+K56+K57","v":8},{"$f":"SQRT((L54^2)+(L55^2)+(L56^2)+(L57^2))","v":22.271057451320086},{"$f":"M54+M55+M56+M57","v":0},{"$f":"SQRT((N54^2)+(N55^2)+(N56^2)+(N57^2))","v":24},{"$f":"O54+O55+O56+O57","v":5},{"$f":"SQRT((P54^2)+(P55^2)+(P56^2)+(P57^2))","v":21.931712199461309},{"$f":"Q54+Q55+Q56+Q57","v":1070},{"$f":"SQRT((R54^2)+(R55^2)+(R56^2)+(R57^2))","v":215.58061137310099},{"$f":"S54+S55+S56+S57","v":0},{"$f":"SQRT((T54^2)+(T55^2)+(T56^2)+(T57^2))","v":24},{"$f":"U54+U55+U56+U57","v":9},{"$f":"SQRT((V54^2)+(V55^2)+(V56^2)+(V57^2))","v":23.515952032609693},{"$f":"W54+W55+W56+W57","v":19},{"$f":"SQRT((X54^2)+(X55^2)+(X56^2)+(X57^2))","v":28.319604517012593},{"$f":"Y54+Y55+Y56+Y57","v":335},{"$f":"SQRT((Z54^2)+(Z55^2)+(Z56^2)+(Z57^2))","v":198.9396893533314},{"$f":"AA54+AA55+AA56+AA57","v":26},{"$f":"SQRT((AB54^2)+(AB55^2)+(AB56^2)+(AB57^2))","v":37.363083384538811},{"$f":"AC54+AC55+AC56+AC57","v":3},{"$f":"SQRT((AD54^2)+(AD55^2)+(AD56^2)+(AD57^2))","v":21.166010488516726},{"$f":"AE54+AE55+AE56+AE57","v":229},{"$f":"SQRT((AF54^2)+(AF55^2)+(AF56^2)+(AF57^2))","v":111.81234278915723},{"$f":"AG54+AG55+AG56+AG57","v":56},{"$f":"SQRT((AH54^2)+(AH55^2)+(AH56^2)+(AH57^2))","v":76.778903352418368},{"$f":"AI54+AI55+AI56+AI57","v":0},{"$f":"SQRT((AJ54^2)+(AJ55^2)+(AJ56^2)+(AJ57^2))","v":34},{"$f":"AK54+AK55+AK56+AK57","v":0},{"$f":"SQRT((AL54^2)+(AL55^2)+(AL56^2)+(AL57^2))","v":24},{"$f":"AM54+AM55+AM56+AM57","v":20},{"$f":"SQRT((AN54^2)+(AN55^2)+(AN56^2)+(AN57^2))","v":28.319604517012593},{"$f":"AO54+AO55+AO56+AO57","v":48},{"$f":"SQRT((AP54^2)+(AP55^2)+(AP56^2)+(AP57^2))","v":55.794264938253285},{"$f":"AQ54+AQ55+AQ56+AQ57","v":52},{"$f":"SQRT((AR54^2)+(AR55^2)+(AR56^2)+(AR57^2))","v":58.80476171195663},{"$f":"AS54+AS55+AS56+AS57","v":34},{"$f":"SQRT((AT54^2)+(AT55^2)+(AT56^2)+(AT57^2))","v":54.147945482723536},{"$f":"AU54+AU55+AU56+AU57","v":16},{"$f":"SQRT((AV54^2)+(AV55^2)+(AV56^2)+(AV57^2))","v":24.515301344262525},{"$f":"AW54+AW55+AW56+AW57","v":8},{"$f":"SQRT((AX54^2)+(AX55^2)+(AX56^2)+(AX57^2))","v":20.024984394500787},{"$f":"AY54+AY55+AY56+AY57","v":22},{"$f":"SQRT((AZ54^2)+(AZ55^2)+(AZ56^2)+(AZ57^2))","v":25.37715508089904},{"$f":"BA54+BA55+BA56+BA57","v":17},{"$f":"SQRT((BB54^2)+(BB55^2)+(BB56^2)+(BB57^2))","v":25},{"$f":"BC54+BC55+BC56+BC57","v":15},{"$f":"SQRT((BD54^2)+(BD55^2)+(BD56^2)+(BD57^2))","v":22.561028345356956}]
[null,"35.0 percent or more",{"$f":"C58+C59+C60","v":0},{"$f":"SQRT((D58^2)+(D59^2)+(D60^2))","v":20.784609690826528},{"$f":"E58+E59+E60","v":0},{"$f":"SQRT((F58^2)+(F59^2)+(F60^2))","v":20.784609690826528},{"$f":"G58+G59+G60","v":0},{"$f":"SQRT((H58^2)+(H59^2)+(H60^2))","v":20.784609690826528},{"$f":"I58+I59+I60","v":0},{"$f":"SQRT((J58^2)+(J59^2)+(J60^2))","v":29.444863728670914},{"$f":"K58+K59+K60","v":0},{"$f":"SQRT((L58^2)+(L59^2)+(L60^2))","v":20.784609690826528},{"$f":"M58+M59+M60","v":0},{"$f":"SQRT((N58^2)+(N59^2)+(N60^2))","v":20.784609690826528},{"$f":"O58+O59+O60","v":5},{"$f":"SQRT((P58^2)+(P59^2)+(P60^2))","v":19.209372712298546},{"$f":"Q58+Q59+Q60","v":60},{"$f":"SQRT((R58^2)+(R59^2)+(R60^2))","v":70.696534568534545},{"$f":"S58+S59+S60","v":0},{"$f":"SQRT((T58^2)+(T59^2)+(T60^2))","v":20.784609690826528},{"$f":"U58+U59+U60","v":0},{"$f":"SQRT((V58^2)+(V59^2)+(V60^2))","v":20.784609690826528},{"$f":"W58+W59+W60","v":0},{"$f":"SQRT((X58^2)+(X59^2)+(X60^2))","v":20.784609690826528},{"$f":"Y58+Y59+Y60","v":0},{"$f":"SQRT((Z58^2)+(Z59^2)+(Z60^2))","v":29.444863728670914},{"$f":"AA58+AA59+AA60","v":0},{"$f":"SQRT((AB58^2)+(AB59^2)+(AB60^2))","v":29.444863728670914},{"$f":"AC58+AC59+AC60","v":0},{"$f":"SQRT((AD58^2)+(AD59^2)+(AD60^2))","v":20.784609690826528},{"$f":"AE58+AE59+AE60","v":0},{"$f":"SQRT((AF58^2)+(AF59^2)+(AF60^2))","v":32.908965343808667},{"$f":"AG58+AG59+AG60","v":0},{"$f":"SQRT((AH58^2)+(AH59^2)+(AH60^2))","v":29.444863728670914},{"$f":"AI58+AI59+AI60","v":0},{"$f":"SQRT((AJ58^2)+(AJ59^2)+(AJ60^2))","v":29.444863728670914},{"$f":"AK58+AK59+AK60","v":0},{"$f":"SQRT((AL58^2)+(AL59^2)+(AL60^2))","v":20.784609690826528},{"$f":"AM58+AM59+AM60","v":0},{"$f":"SQRT((AN58^2)+(AN59^2)+(AN60^2))","v":20.784609690826528},{"$f":"AO58+AO59+AO60","v":0},{"$f":"SQRT((AP58^2)+(AP59^2)+(AP60^2))","v":20.784609690826528},{"$f":"AQ58+AQ59+AQ60","v":0},{"$f":"SQRT((AR58^2)+(AR59^2)+(AR60^2))","v":29.444863728670914},{"$f":"AS58+AS59+AS60","v":0},{"$f":"SQRT((AT58^2)+(AT59^2)+(AT60^2))","v":20.784609690826528},{"$f":"AU58+AU59+AU60","v":0},{"$f":"SQRT((AV58^2)+(AV59^2)+(AV60^2))","v":20.784609690826528},{"$f":"AW58+AW59+AW60","v":0},{"$f":"SQRT((AX58^2)+(AX59^2)+(AX60^2))","v":20.784609690826528},{"$f":"AY58+AY59+AY60","v":0},{"$f":"SQRT((AZ58^2)+(AZ59^2)+(AZ60^2))","v":20.784609690826528},{"$f":"BA58+BA59+BA60","v":0},{"$f":"SQRT((BB58^2)+(BB59^2)+(BB60^2))","v":20.784609690826528},{"$f":"BC58+BC59+BC60","v":0},{"$f":"SQRT((BD58^2)+(BD59^2)+(BD60^2))","v":20.784609690826528}]
[null,"50.0 percent or more",{"$f":"C60","v":0},12,0,12,0,12,0,17,0,12,0,12,0,12,40,62,{"$f":"S60","v":0},12,0,12,0,12,0,17,0,17,0,12,0,19,0,17,0,17,0,12,0,12,0,12,0,17,0,12,0,12,0,12,0,12,0,12,0,12]
[null,"Not Computed",0,12,0,12,0,12,0,17,0,12,0,12,0,12,20,24,0,12,0,12,0,12,23,38,0,17,0,12,0,19,37,57,0,17,0,12,14,22,10,17,3,7,21,31,0,12,0,12,0,12,0,12,0,12]
[null,"$100,000 or more:",41,34,0,12,56,45,80,57,13,20,15,14,36,31,1274,197,8,10,10,11,0,12,127,83,46,54,0,12,291,135,54,74,51,51,6,9,21,23,49,38,95,67,22,25,3,6,11,12,45,44,0,12,43,26]
[null,"Less than 30.0 percent",{"$f":"C63+C64+C65","v":41},{"$f":"SQRT((D63^2)+(D64^2)+(D65^2))","v":38},{"$f":"E63+E64+E65","v":0},{"$f":"SQRT((F63^2)+(F64^2)+(F65^2))","v":20.784609690826528},{"$f":"G63+G64+G65","v":56},{"$f":"SQRT((H63^2)+(H64^2)+(H65^2))","v":46.850827100489916},{"$f":"I63+I64+I65","v":80},{"$f":"SQRT((J63^2)+(J64^2)+(J65^2))","v":61.749493925051723},{"$f":"K63+K64+K65","v":0},{"$f":"SQRT((L63^2)+(L64^2)+(L65^2))","v":20.784609690826528},{"$f":"M63+M64+M65","v":10},{"$f":"SQRT((N63^2)+(N64^2)+(N65^2))","v":16.492422502470642},{"$f":"O63+O64+O65","v":36},{"$f":"SQRT((P63^2)+(P64^2)+(P65^2))","v":35.341194094144583},{"$f":"Q63+Q64+Q65","v":1237},{"$f":"SQRT((R63^2)+(R64^2)+(R65^2))","v":210.83880098312076},{"$f":"S63+S64+S65","v":8},{"$f":"SQRT((T63^2)+(T64^2)+(T65^2))","v":19.697715603592208},{"$f":"U63+U64+U65","v":10},{"$f":"SQRT((V63^2)+(V64^2)+(V65^2))","v":20.223748416156685},{"$f":"W63+W64+W65","v":0},{"$f":"SQRT((X63^2)+(X64^2)+(X65^2))","v":20.784609690826528},{"$f":"Y63+Y64+Y65","v":127},{"$f":"SQRT((Z63^2)+(Z64^2)+(Z65^2))","v":84.029756634182874},{"$f":"AA63+AA64+AA65","v":46},{"$f":"SQRT((AB63^2)+(AB64^2)+(AB65^2))","v":56.338264084013097},{"$f":"AC63+AC64+AC65","v":0},{"$f":"SQRT((AD63^2)+(AD64^2)+(AD65^2))","v":20.784609690826528},{"$f":"AE63+AE64+AE65","v":291},{"$f":"SQRT((AF63^2)+(AF64^2)+(AF65^2))","v":136.05146085213491},{"$f":"AG63+AG64+AG65","v":44},{"$f":"SQRT((AH63^2)+(AH64^2)+(AH65^2))","v":75.907838857393372},{"$f":"AI63+AI64+AI65","v":51},{"$f":"SQRT((AJ63^2)+(AJ64^2)+(AJ65^2))","v":56.382621436041795},{"$f":"AK63+AK64+AK65","v":6},{"$f":"SQRT((AL63^2)+(AL64^2)+(AL65^2))","v":19.209372712298546},{"$f":"AM63+AM64+AM65","v":21},{"$f":"SQRT((AN63^2)+(AN64^2)+(AN65^2))","v":27.018512172212592},{"$f":"AO63+AO64+AO65","v":37},{"$f":"SQRT((AP63^2)+(AP64^2)+(AP65^2))","v":38},{"$f":"AQ63+AQ64+AQ65","v":95},{"$f":"SQRT((AR63^2)+(AR64^2)+(AR65^2))","v":70.099928673287536},{"$f":"AS63+AS64+AS65","v":22},{"$f":"SQRT((AT63^2)+(AT64^2)+(AT65^2))","v":27.202941017470888},{"$f":"AU63+AU64+AU65","v":3},{"$f":"SQRT((AV63^2)+(AV64^2)+(AV65^2))","v":18},{"$f":"AW63+AW64+AW65","v":8},{"$f":"SQRT((AX63^2)+(AX64^2)+(AX65^2))","v":20.223748416156685},{"$f":"AY63+AY64+AY65","v":45},{"$f":"SQRT((AZ63^2)+(AZ64^2)+(AZ65^2))","v":47.159304490206381},{"$f":"BA63+BA64+BA65","v":0},{"$f":"SQRT((BB63^2)+(BB64^2)+(BB65^2))","v":20.784609690826528},{"$f":"BC63+BC64+BC65","v":43},{"$f":"SQRT((BD63^2)+(BD64^2)+(BD65^2))","v":29.206163733020468}]
[null,"More than 30.0 percent",{"$f":"C66+C67+C68+C69","v":0},{"$f":"SQRT((D66^2)+(D67^2)+(D68^2)+(D69^2))","v":24},{"$f":"E66+E67+E68+E69","v":0},{"$f":"SQRT((F66^2)+(F67^2)+(F68^2)+(F69^2))","v":24},{"$f":"G66+G67+G68+G69","v":0},{"$f":"SQRT((H66^2)+(H67^2)+(H68^2)+(H69^2))","v":24},{"$f":"I66+I67+I68+I69","v":0},{"$f":"SQRT((J66^2)+(J67^2)+(J68^2)+(J69^2))","v":34},{"$f":"K66+K67+K68+K69","v":0},{"$f":"SQRT((L66^2)+(L67^2)+(L68^2)+(L69^2))","v":24},{"$f":"M66+M67+M68+M69","v":0},{"$f":"SQRT((N66^2)+(N67^2)+(N68^2)+(N69^2))","v":24},{"$f":"O66+O67+O68+O69","v":0},{"$f":"SQRT((P66^2)+(P67^2)+(P68^2)+(P69^2))","v":24},{"$f":"Q66+Q67+Q68+Q69","v":8},{"$f":"SQRT((R66^2)+(R67^2)+(R68^2)+(R69^2))","v":44.933283877321941},{"$f":"S66+S67+S68+S69","v":0},{"$f":"SQRT((T66^2)+(T67^2)+(T68^2)+(T69^2))","v":24},{"$f":"U66+U67+U68+U69","v":0},{"$f":"SQRT((V66^2)+(V67^2)+(V68^2)+(V69^2))","v":24},{"$f":"W66+W67+W68+W69","v":0},{"$f":"SQRT((X66^2)+(X67^2)+(X68^2)+(X69^2))","v":24},{"$f":"Y66+Y67+Y68+Y69","v":0},{"$f":"SQRT((Z66^2)+(Z67^2)+(Z68^2)+(Z69^2))","v":34},{"$f":"AA66+AA67+AA68+AA69","v":0},{"$f":"SQRT((AB66^2)+(AB67^2)+(AB68^2)+(AB69^2))","v":34},{"$f":"AC66+AC67+AC68+AC69","v":0},{"$f":"SQRT((AD66^2)+(AD67^2)+(AD68^2)+(AD69^2))","v":24},{"$f":"AE66+AE67+AE68+AE69","v":0},{"$f":"SQRT((AF66^2)+(AF67^2)+(AF68^2)+(AF69^2))","v":38},{"$f":"AG66+AG67+AG68+AG69","v":0},{"$f":"SQRT((AH66^2)+(AH67^2)+(AH68^2)+(AH69^2))","v":34},{"$f":"AI66+AI67+AI68+AI69","v":0},{"$f":"SQRT((AJ66^2)+(AJ67^2)+(AJ68^2)+(AJ69^2))","v":34},{"$f":"AK66+AK67+AK68+AK69","v":0},{"$f":"SQRT((AL66^2)+(AL67^2)+(AL68^2)+(AL69^2))","v":24},{"$f":"AM66+AM67+AM68+AM69","v":0},{"$f":"SQRT((AN66^2)+(AN67^2)+(AN68^2)+(AN69^2))","v":24},{"$f":"AO66+AO67+AO68+AO69","v":0},{"$f":"SQRT((AP66^2)+(AP67^2)+(AP68^2)+(AP69^2))","v":24},{"$f":"AQ66+AQ67+AQ68+AQ69","v":0},{"$f":"SQRT((AR66^2)+(AR67^2)+(AR68^2)+(AR69^2))","v":34},{"$f":"AS66+AS67+AS68+AS69","v":0},{"$f":"SQRT((AT66^2)+(AT67^2)+(AT68^2)+(AT69^2))","v":24},{"$f":"AU66+AU67+AU68+AU69","v":0},{"$f":"SQRT((AV66^2)+(AV67^2)+(AV68^2)+(AV69^2))","v":24},{"$f":"AW66+AW67+AW68+AW69","v":0},{"$f":"SQRT((AX66^2)+(AX67^2)+(AX68^2)+(AX69^2))","v":24},{"$f":"AY66+AY67+AY68+AY69","v":0},{"$f":"SQRT((AZ66^2)+(AZ67^2)+(AZ68^2)+(AZ69^2))","v":24},{"$f":"BA66+BA67+BA68+BA69","v":0},{"$f":"SQRT((BB66^2)+(BB67^2)+(BB68^2)+(BB69^2))","v":24},{"$f":"BC66+BC67+BC68+BC69","v":0},{"$f":"SQRT((BD66^2)+(BD67^2)+(BD68^2)+(BD69^2))","v":24}]
[null,"Less Than 35% of HH Income",{"$f":"C63+C64+C65+C66","v":41},{"$f":"SQRT(((D63^2)+(D64^2)+(D65^2)+(D66^2)))","v":39.849717690342551},{"$f":"E63+E64+E65+E66","v":0},{"$f":"SQRT(((F63^2)+(F64^2)+(F65^2)+(F66^2)))","v":24},{"$f":"G63+G64+G65+G66","v":56},{"$f":"SQRT(((H63^2)+(H64^2)+(H65^2)+(H66^2)))","v":48.363209157374989},{"$f":"I63+I64+I65+I66","v":80},{"$f":"SQRT(((J63^2)+(J64^2)+(J65^2)+(J66^2)))","v":64.046857846423663},{"$f":"K63+K64+K65+K66","v":0},{"$f":"SQRT(((L63^2)+(L64^2)+(L65^2)+(L66^2)))","v":24},{"$f":"M63+M64+M65+M66","v":10},{"$f":"SQRT(((N63^2)+(N64^2)+(N65^2)+(N66^2)))","v":20.396078054371138},{"$f":"O63+O64+O65+O66","v":36},{"$f":"SQRT(((P63^2)+(P64^2)+(P65^2)+(P66^2)))","v":37.322915213043046},{"$f":"Q63+Q64+Q65+Q66","v":1245},{"$f":"SQRT(((R63^2)+(R64^2)+(R65^2)+(R66^2)))","v":211.18001799412747},{"$f":"S63+S64+S65+S66","v":8},{"$f":"SQRT(((T63^2)+(T64^2)+(T65^2)+(T66^2)))","v":23.065125189341593},{"$f":"U63+U64+U65+U66","v":10},{"$f":"SQRT(((V63^2)+(V64^2)+(V65^2)+(V66^2)))","v":23.515952032609693},{"$f":"W63+W64+W65+W66","v":0},{"$f":"SQRT(((X63^2)+(X64^2)+(X65^2)+(X66^2)))","v":24},{"$f":"Y63+Y64+Y65+Y66","v":127},{"$f":"SQRT(((Z63^2)+(Z64^2)+(Z65^2)+(Z66^2)))","v":85.732140997411236},{"$f":"AA63+AA64+AA65+AA66","v":46},{"$f":"SQRT(((AB63^2)+(AB64^2)+(AB65^2)+(AB66^2)))","v":58.84725991921799},{"$f":"AC63+AC64+AC65+AC66","v":0},{"$f":"SQRT(((AD63^2)+(AD64^2)+(AD65^2)+(AD66^2)))","v":24},{"$f":"AE63+AE64+AE65+AE66","v":291},{"$f":"SQRT(((AF63^2)+(AF64^2)+(AF65^2)+(AF66^2)))","v":137.37175837849642},{"$f":"AG63+AG64+AG65+AG66","v":44},{"$f":"SQRT(((AH63^2)+(AH64^2)+(AH65^2)+(AH66^2)))","v":77.788173908377615},{"$f":"AI63+AI64+AI65+AI66","v":51},{"$f":"SQRT(((AJ63^2)+(AJ64^2)+(AJ65^2)+(AJ66^2)))","v":58.889727457341827},{"$f":"AK63+AK64+AK65+AK66","v":6},{"$f":"SQRT(((AL63^2)+(AL64^2)+(AL65^2)+(AL66^2)))","v":22.649503305812249},{"$f":"AM63+AM64+AM65+AM66","v":21},{"$f":"SQRT(((AN63^2)+(AN64^2)+(AN65^2)+(AN66^2)))","v":29.563490998188964},{"$f":"AO63+AO64+AO65+AO66","v":37},{"$f":"SQRT(((AP63^2)+(AP64^2)+(AP65^2)+(AP66^2)))","v":39.849717690342551},{"$f":"AQ63+AQ64+AQ65+AQ66","v":95},{"$f":"SQRT(((AR63^2)+(AR64^2)+(AR65^2)+(AR66^2)))","v":72.131823767322004},{"$f":"AS63+AS64+AS65+AS66","v":22},{"$f":"SQRT(((AT63^2)+(AT64^2)+(AT65^2)+(AT66^2)))","v":29.732137494637012},{"$f":"AU63+AU64+AU65+AU66","v":3},{"$f":"SQRT(((AV63^2)+(AV64^2)+(AV65^2)+(AV66^2)))","v":21.633307652783937},{"$f":"AW63+AW64+AW65+AW66","v":8},{"$f":"SQRT(((AX63^2)+(AX64^2)+(AX65^2)+(AX66^2)))","v":23.515952032609693},{"$f":"AY63+AY64+AY65+AY66","v":45},{"$f":"SQRT(((AZ63^2)+(AZ64^2)+(AZ65^2)+(AZ66^2)))","v":48.662100242385755},{"$f":"BA63+BA64+BA65+BA66","v":0},{"$f":"SQRT(((BB63^2)+(BB64^2)+(BB65^2)+(BB66^2)))","v":24},{"$f":"BC63+BC64+BC65+BC66","v":43},{"$f":"SQRT(((BD63^2)+(BD64^2)+(BD65^2)+(BD66^2)))","v":31.575306807693888}]
[null,"35.0 percent or more",{"$f":"C67+C68+C69","v":0},{"$f":"SQRT((D67^2)+(D68^2)+(D69^2))","v":20.784609690826528},{"$f":"E67+E68+E69","v":0},{"$f":"SQRT((F67^2)+(F68^2)+(F69^2))","v":20.784609690826528},{"$f":"G67+G68+G69","v":0},{"$f":"SQRT((H67^2)+(H68^2)+(H69^2))","v":20.784609690826528},{"$f":"I67+I68+I69","v":0},{"$f":"SQRT((J67^2)+(J68^2)+(J69^2))","v":29.444863728670914},{"$f":"K67+K68+K69","v":0},{"$f":"SQRT((L67^2)+(L68^2)+(L69^2))","v":20.784609690826528},{"$f":"M67+M68+M69","v":0},{"$f":"SQRT((N67^2)+(N68^2)+(N69^2))","v":20.784609690826528},{"$f":"O67+O68+O69","v":0},{"$f":"SQRT((P67^2)+(P68^2)+(P69^2))","v":20.784609690826528},{"$f":"Q67+Q68+Q69","v":0},{"$f":"SQRT((R67^2)+(R68^2)+(R69^2))","v":43.301270189221931},{"$f":"S67+S68+S69","v":0},{"$f":"SQRT((T67^2)+(T68^2)+(T69^2))","v":20.784609690826528},{"$f":"U67+U68+U69","v":0},{"$f":"SQRT((V67^2)+(V68^2)+(V69^2))","v":20.784609690826528},{"$f":"W67+W68+W69","v":0},{"$f":"SQRT((X67^2)+(X68^2)+(X69^2))","v":20.784609690826528},{"$f":"Y67+Y68+Y69","v":0},{"$f":"SQRT((Z67^2)+(Z68^2)+(Z69^2))","v":29.444863728670914},{"$f":"AA67+AA68+AA69","v":0},{"$f":"SQRT((AB67^2)+(AB68^2)+(AB69^2))","v":29.444863728670914},{"$f":"AC67+AC68+AC69","v":0},{"$f":"SQRT((AD67^2)+(AD68^2)+(AD69^2))","v":20.784609690826528},{"$f":"AE67+AE68+AE69","v":0},{"$f":"SQRT((AF67^2)+(AF68^2)+(AF69^2))","v":32.908965343808667},{"$f":"AG67+AG68+AG69","v":0},{"$f":"SQRT((AH67^2)+(AH68^2)+(AH69^2))","v":29.444863728670914},{"$f":"AI67+AI68+AI69","v":0},{"$f":"SQRT((AJ67^2)+(AJ68^2)+(AJ69^2))","v":29.444863728670914},{"$f":"AK67+AK68+AK69","v":0},{"$f":"SQRT((AL67^2)+(AL68^2)+(AL69^2))","v":20.784609690826528},{"$f":"AM67+AM68+AM69","v":0},{"$f":"SQRT((AN67^2)+(AN68^2)+(AN69^2))","v":20.784609690826528},{"$f":"AO67+AO68+AO69","v":0},{"$f":"SQRT((AP67^2)+(AP68^2)+(AP69^2))","v":20.784609690826528},{"$f":"AQ67+AQ68+AQ69","v":0},{"$f":"SQRT((AR67^2)+(AR68^2)+(AR69^2))","v":29.444863728670914},{"$f":"AS67+AS68+AS69","v":0},{"$f":"SQRT((AT67^2)+(AT68^2)+(AT69^2))","v":20.784609690826528},{"$f":"AU67+AU68+AU69","v":0},{"$f":"SQRT((AV67^2)+(AV68^2)+(AV69^2))","v":20.784609690826528},{"$f":"AW67+AW68+AW69","v":0},{"$f":"SQRT((AX67^2)+(AX68^2)+(AX69^2))","v":20.784609690826528},{"$f":"AY67+AY68+AY69","v":0},{"$f":"SQRT((AZ67^2)+(AZ68^2)+(AZ69^2))","v":20.784609690826528},{"$f":"BA67+BA68+BA69","v":0},{"$f":"SQRT((BB67^2)+(BB68^2)+(BB69^2))","v":20.784609690826528},{"$f":"BC67+BC68+BC69","v":0},{"$f":"SQRT((BD67^2)+(BD68^2)+(BD69^2))","v":20.784609690826528}]
[null,"50.0 percent or more",{"$f":"C69","v":0},12,0,{"$f":"F69","v":12},{"$f":"G69","v":0},12,{"$f":"I69","v":0},17,{"$f":"K69","v":0},12,{"$f":"M69","v":0},12,{"$f":"O69","v":0},12,{"$f":"Q69","v":0},25,{"$f":"S69","v":0},12,{"$f":"U69","v":0},12,{"$f":"W69","v":0},12,{"$f":"Y69","v":0},17,{"$f":"AA69","v":0},17,{"$f":"AC69","v":0},12,{"$f":"AE69","v":0},19,{"$f":"AG69","v":0},17,{"$f":"AI69","v":0},17,{"$f":"AK69","v":0},12,{"$f":"AM69","v":0},12,{"$f":"AO69","v":0},12,{"$f":"AQ69","v":0},17,{"$f":"AS69","v":0},12,{"$f":"AU69","v":0},12,{"$f":"AW69","v":0},12,{"$f":"AY69","v":0},12,{"$f":"BA69","v":0},12,{"$f":"BC69","v":0},12]
[null,"Not Computed",0,12,0,12,{"$f":"G70","v":0},12,{"$f":"I70","v":0},17,{"$f":"K70","v":13},20,{"$f":"M70","v":5},7,{"$f":"O70","v":0},12,{"$f":"Q70","v":29},27,{"$f":"S70","v":0},12,{"$f":"U70","v":0},12,{"$f":"W70","v":0},12,{"$f":"Y70","v":0},17,{"$f":"AA70","v":0},17,{"$f":"AC70","v":0},12,{"$f":"AE70","v":0},19,{"$f":"AG70","v":10},16,{"$f":"AI70","v":0},17,{"$f":"AK70","v":0},12,{"$f":"AM70","v":0},12,{"$f":"AO70","v":12},18,{"$f":"AQ70","v":0},17,{"$f":"AS70","v":0},12,{"$f":"AU70","v":0},12,{"$f":"AW70","v":3},5,{"$f":"AY70","v":0},12,{"$f":"BA70","v":0},12,{"$f":"BC70","v":0},12]
[]
[]
[null,"Calculated GROSS RENT AS A PERCENTAGE OF HOUSEHOLD INCOME IN THE PAST 12 MONTHS"]
[null,"Universe:  RENTER-OCCUPIED HOUSING UNITS"]
[null,"Data Set: 2018-2022 American Community Survey 5-Year Estimates"]
[]
[null,null,"Allenstown",null,"Andover",null,"Boscawen",null,"Bow",null,"Bradford",null,"Canterbury",null,"Chichester",null,"Concord",null,"Danbury",null,"Dunbarton",null,"Epsom",null,"Franklin",null,"Henniker",null,"Hill",null,"Hooksett",null,"Hopkinton",null,"Loudon",null,"Newbury",null,"New London",null,"Northfield",null,"Pembroke",null,"Pittsfield",null,"Salisbury",null,"Sutton",null,"Warner",null,"Webster",null,"Wilmot"]
[null,null,"Estimate","Margin Of Error","Estimate","Margin Of Error","Estimate","Margin Of Error","Estimate","Margin Of Error","Estimate","Margin Of Error","Estimate","Margin Of Error","Estimate","Margin Of Error","Estimate","Margin Of Error","Estimate","Margin Of Error","Estimate","Margin Of Error","Estimate","Margin Of Error","Estimate","Margin Of Error","Estimate","Margin Of Error","Estimate","Margin Of Error","Estimate","Margin Of Error","Estimate","Margin Of Error","Estimate","Margin Of Error","Estimate","Margin Of Error","Estimate","Margin Of Error","Estimate","Margin Of Error","Estimate","Margin Of Error","Estimate","Margin Of Error","Estimate","Margin Of Error","Estimate","Margin Of Error","Estimate","Margin Of Error","Estimate","Margin Of Error","Estimate","Margin Of Error"]
[null,{"$f":"B92","v":"Total:"},373,153,84,44,324,94,265,91,68,35,55,36,72,45,7680,442,47,32,43,22,204,81,1409,255,852,272,20,20,1066,219,256,146,319,181,94,40,151,69,496,124,630,156,580,158,23,21,38,21,376,90,37,23,{"$f":"BC92","v":136},56]
[null,"Less than 30.0 percent",{"$f":"C136+C129+C122+C115+C108+C101+C94","v":181},{"$f":"SQRT((D136^2)+(D129^2)+(D122^2)+(D115^2)+(D108^2)+(D101^2)+(D94^2))","v":95.686989711245488},{"$f":"E136+E129+E122+E115+E108+E101+E94","v":23},{"$f":"SQRT((F136^2)+(F129^2)+(F122^2)+(F115^2)+(F108^2)+(F101^2)+(F94^2))","v":55.326304774492215},{"$f":"G136+G129+G122+G115+G108+G101+G94","v":201},{"$f":"SQRT((H136^2)+(H129^2)+(H122^2)+(H115^2)+(H108^2)+(H101^2)+(H94^2))","v":108.95870777500988},{"$f":"I136+I129+I122+I115+I108+I101+I94","v":139},{"$f":"SQRT((J136^2)+(J129^2)+(J122^2)+(J115^2)+(J108^2)+(J101^2)+(J94^2))","v":98.69143833180263},{"$f":"K136+K129+K122+K115+K108+K101+K94","v":28},{"$f":"SQRT((L136^2)+(L129^2)+(L122^2)+(L115^2)+(L108^2)+(L101^2)+(L94^2))","v":54.064775963653084},{"$f":"M136+M129+M122+M115+M108+M101+M94","v":10},{"$f":"SQRT((N136^2)+(N129^2)+(N122^2)+(N115^2)+(N108^2)+(N101^2)+(N94^2))","v":53.516352641038608},{"$f":"O136+O129+O122+O115+O108+O101+O94","v":41},{"$f":"SQRT((P136^2)+(P129^2)+(P122^2)+(P115^2)+(P108^2)+(P101^2)+(P94^2))","v":61.204574992397426},{"$f":"Q136+Q129+Q122+Q115+Q108+Q101+Q94","v":4255},{"$f":"SQRT((R136^2)+(R129^2)+(R122^2)+(R115^2)+(R108^2)+(R101^2)+(R94^2))","v":449.27274566792943},{"$f":"S136+S129+S122+S115+S108+S101+S94","v":18},{"$f":"SQRT((T136^2)+(T129^2)+(T122^2)+(T115^2)+(T108^2)+(T101^2)+(T94^2))","v":55.901699437494742},{"$f":"U136+U129+U122+U115+U108+U101+U94","v":24},{"$f":"SQRT((V136^2)+(V129^2)+(V122^2)+(V115^2)+(V108^2)+(V101^2)+(V94^2))","v":53.693575034635195},{"$f":"W136+W129+W122+W115+W108+W101+W94","v":72},{"$f":"SQRT((X136^2)+(X129^2)+(X122^2)+(X115^2)+(X108^2)+(X101^2)+(X94^2))","v":66.753277073114546},{"$f":"Y136+Y129+Y122+Y115+Y108+Y101+Y94","v":740},{"$f":"SQRT((Z136^2)+(Z129^2)+(Z122^2)+(Z115^2)+(Z108^2)+(Z101^2)+(Z94^2))","v":239.09621494285517},{"$f":"AA136+AA129+AA122+AA115+AA108+AA101+AA94","v":460},{"$f":"SQRT((AB136^2)+(AB129^2)+(AB122^2)+(AB115^2)+(AB108^2)+(AB101^2)+(AB94^2))","v":201.34795752626843},{"$f":"AC136+AC129+AC122+AC115+AC108+AC101+AC94","v":9},{"$f":"SQRT((AD136^2)+(AD129^2)+(AD122^2)+(AD115^2)+(AD108^2)+(AD101^2)+(AD94^2))","v":53.225933528685054},{"$f":"AE136+AE129+AE122+AE115+AE108+AE101+AE94","v":609},{"$f":"SQRT((AF136^2)+(AF129^2)+(AF122^2)+(AF115^2)+(AF108^2)+(AF101^2)+(AF94^2))","v":191.12822920751398},{"$f":"AG136+AG129+AG122+AG115+AG108+AG101+AG94","v":174},{"$f":"SQRT((AH136^2)+(AH129^2)+(AH122^2)+(AH115^2)+(AH108^2)+(AH101^2)+(AH94^2))","v":141.27632498051469},{"$f":"AI136+AI129+AI122+AI115+AI108+AI101+AI94","v":173},{"$f":"SQRT((AJ136^2)+(AJ129^2)+(AJ122^2)+(AJ115^2)+(AJ108^2)+(AJ101^2)+(AJ94^2))","v":147.63807097087118},{"$f":"AK136+AK129+AK122+AK115+AK108+AK101+AK94","v":46},{"$f":"SQRT((AL136^2)+(AL129^2)+(AL122^2)+(AL115^2)+(AL108^2)+(AL101^2)+(AL94^2))","v":56.373752757821613},{"$f":"AM136+AM129+AM122+AM115+AM108+AM101+AM94","v":86},{"$f":"SQRT((AN136^2)+(AN129^2)+(AN122^2)+(AN115^2)+(AN108^2)+(AN101^2)+(AN94^2))","v":66.625820820459694},{"$f":"AO136+AO129+AO122+AO115+AO108+AO101+AO94","v":303},{"$f":"SQRT((AP136^2)+(AP129^2)+(AP122^2)+(AP115^2)+(AP108^2)+(AP101^2)+(AP94^2))","v":133.5440002396214},{"$f":"AQ136+AQ129+AQ122+AQ115+AQ108+AQ101+AQ94","v":331},{"$f":"SQRT((AR136^2)+(AR129^2)+(AR122^2)+(AR115^2)+(AR108^2)+(AR101^2)+(AR94^2))","v":162.60381299342276},{"$f":"AS136+AS129+AS122+AS115+AS108+AS101+AS94","v":185},{"$f":"SQRT((AT136^2)+(AT129^2)+(AT122^2)+(AT115^2)+(AT108^2)+(AT101^2)+(AT94^2))","v":102.87856919689348},{"$f":"AU136+AU129+AU122+AU115+AU108+AU101+AU94","v":19},{"$f":"SQRT((AV136^2)+(AV129^2)+(AV122^2)+(AV115^2)+(AV108^2)+(AV101^2)+(AV94^2))","v":54.230987451824994},{"$f":"AW136+AW129+AW122+AW115+AW108+AW101+AW94","v":16},{"$f":"SQRT((AX136^2)+(AX129^2)+(AX122^2)+(AX115^2)+(AX108^2)+(AX101^2)+(AX94^2))","v":53.160135440008048},{"$f":"AY136+AY129+AY122+AY115+AY108+AY101+AY94","v":168},{"$f":"SQRT((AZ136^2)+(AZ129^2)+(AZ122^2)+(AZ115^2)+(AZ108^2)+(AZ101^2)+(AZ94^2))","v":85.702975444263302},{"$f":"BA136+BA129+BA122+BA115+BA108+BA101+BA94","v":22},{"$f":"SQRT((BB136^2)+(BB129^2)+(BB122^2)+(BB115^2)+(BB108^2)+(BB101^2)+(BB94^2))","v":53.094255809833136},{"$f":"BC136+BC129+BC122+BC115+BC108+BC101+BC94","v":92},{"$f":"SQRT((BD136^2)+(BD129^2)+(BD122^2)+(BD115^2)+(BD108^2)+(BD101^2)+(BD94^2))","v":61.416610131136352}]
[null,"More than 30.0 percent",{"$f":"C137+C130+C123+C116+C109+C102+C95","v":192},{"$f":"SQRT((D137^2)+(D130^2)+(D123^2)+(D116^2)+(D109^2)+(D102^2)+(D95^2))","v":141.59802258506298},{"$f":"E137+E130+E123+E116+E109+E102+E95","v":23},{"$f":"SQRT((F137^2)+(F130^2)+(F123^2)+(F116^2)+(F109^2)+(F102^2)+(F95^2))","v":61.375891032228608},{"$f":"G137+G130+G123+G116+G109+G102+G95","v":111},{"$f":"SQRT((H137^2)+(H130^2)+(H123^2)+(H116^2)+(H109^2)+(H102^2)+(H95^2))","v":85.516080359193268},{"$f":"I137+I130+I123+I116+I109+I102+I95","v":116},{"$f":"SQRT((J137^2)+(J130^2)+(J123^2)+(J116^2)+(J109^2)+(J102^2)+(J95^2))","v":95.11571899533746},{"$f":"K137+K130+K123+K116+K109+K102+K95","v":27},{"$f":"SQRT((L137^2)+(L130^2)+(L123^2)+(L116^2)+(L109^2)+(L102^2)+(L95^2))","v":63.450768316861222},{"$f":"M137+M130+M123+M116+M109+M102+M95","v":40},{"$f":"SQRT((N137^2)+(N130^2)+(N123^2)+(N116^2)+(N109^2)+(N102^2)+(N95^2))","v":67.985292527134135},{"$f":"O137+O130+O123+O116+O109+O102+O95","v":23},{"$f":"SQRT((P137^2)+(P130^2)+(P123^2)+(P116^2)+(P109^2)+(P102^2)+(P95^2))","v":67.483331275211953},{"$f":"Q137+Q130+Q123+Q116+Q109+Q102+Q95","v":3180},{"$f":"SQRT((R137^2)+(R130^2)+(R123^2)+(R116^2)+(R109^2)+(R102^2)+(R95^2))","v":455.35151257023404},{"$f":"S137+S130+S123+S116+S109+S102+S95","v":18},{"$f":"SQRT((T137^2)+(T130^2)+(T123^2)+(T116^2)+(T109^2)+(T102^2)+(T95^2))","v":60.547502012882411},{"$f":"U137+U130+U123+U116+U109+U102+U95","v":15},{"$f":"SQRT((V137^2)+(V130^2)+(V123^2)+(V116^2)+(V109^2)+(V102^2)+(V95^2))","v":63.411355449950761},{"$f":"W137+W130+W123+W116+W109+W102+W95","v":124},{"$f":"SQRT((X137^2)+(X130^2)+(X123^2)+(X116^2)+(X109^2)+(X102^2)+(X95^2))","v":90.779953734290913},{"$f":"Y137+Y130+Y123+Y116+Y109+Y102+Y95","v":628},{"$f":"SQRT((Z137^2)+(Z130^2)+(Z123^2)+(Z116^2)+(Z109^2)+(Z102^2)+(Z95^2))","v":205.26568149595781},{"$f":"AA137+AA130+AA123+AA116+AA109+AA102+AA95","v":392},{"$f":"SQRT((AB137^2)+(AB130^2)+(AB123^2)+(AB116^2)+(AB109^2)+(AB102^2)+(AB95^2))","v":222.16210297888341},{"$f":"AC137+AC130+AC123+AC116+AC109+AC102+AC95","v":11},{"$f":"SQRT((AD137^2)+(AD130^2)+(AD123^2)+(AD116^2)+(AD109^2)+(AD102^2)+(AD95^2))","v":64.373907757724325},{"$f":"AE137+AE130+AE123+AE116+AE109+AE102+AE95","v":417},{"$f":"SQRT((AF137^2)+(AF130^2)+(AF123^2)+(AF116^2)+(AF109^2)+(AF102^2)+(AF95^2))","v":179.43801158060128},{"$f":"AG137+AG130+AG123+AG116+AG109+AG102+AG95","v":25},{"$f":"SQRT((AH137^2)+(AH130^2)+(AH123^2)+(AH116^2)+(AH109^2)+(AH102^2)+(AH95^2))","v":92.757749002441841},{"$f":"AI137+AI130+AI123+AI116+AI109+AI102+AI95","v":146},{"$f":"SQRT((AJ137^2)+(AJ130^2)+(AJ123^2)+(AJ116^2)+(AJ109^2)+(AJ102^2)+(AJ95^2))","v":142.39733143566983},{"$f":"AK137+AK130+AK123+AK116+AK109+AK102+AK95","v":20},{"$f":"SQRT((AL137^2)+(AL130^2)+(AL123^2)+(AL116^2)+(AL109^2)+(AL102^2)+(AL95^2))","v":60.802960454241045},{"$f":"AM137+AM130+AM123+AM116+AM109+AM102+AM95","v":43},{"$f":"SQRT((AN137^2)+(AN130^2)+(AN123^2)+(AN116^2)+(AN109^2)+(AN102^2)+(AN95^2))","v":67.245817713817715},{"$f":"AO137+AO130+AO123+AO116+AO109+AO102+AO95","v":160},{"$f":"SQRT((AP137^2)+(AP130^2)+(AP123^2)+(AP116^2)+(AP109^2)+(AP102^2)+(AP95^2))","v":101.51354589413178},{"$f":"AQ137+AQ130+AQ123+AQ116+AQ109+AQ102+AQ95","v":280},{"$f":"SQRT((AR137^2)+(AR130^2)+(AR123^2)+(AR116^2)+(AR109^2)+(AR102^2)+(AR95^2))","v":169.4609099468075},{"$f":"AS137+AS130+AS123+AS116+AS109+AS102+AS95","v":362},{"$f":"SQRT((AT137^2)+(AT130^2)+(AT123^2)+(AT116^2)+(AT109^2)+(AT102^2)+(AT95^2))","v":203.17234063720386},{"$f":"AU137+AU130+AU123+AU116+AU109+AU102+AU95","v":4},{"$f":"SQRT((AV137^2)+(AV130^2)+(AV123^2)+(AV116^2)+(AV109^2)+(AV102^2)+(AV95^2))","v":62.864934582006846},{"$f":"AW137+AW130+AW123+AW116+AW109+AW102+AW95","v":10},{"$f":"SQRT((AX137^2)+(AX130^2)+(AX123^2)+(AX116^2)+(AX109^2)+(AX102^2)+(AX95^2))","v":60.638271743182131},{"$f":"AY137+AY130+AY123+AY116+AY109+AY102+AY95","v":161},{"$f":"SQRT((AZ137^2)+(AZ130^2)+(AZ123^2)+(AZ116^2)+(AZ109^2)+(AZ102^2)+(AZ95^2))","v":91.891240061281138},{"$f":"BA137+BA130+BA123+BA116+BA109+BA102+BA95","v":6},{"$f":"SQRT((BB137^2)+(BB130^2)+(BB123^2)+(BB116^2)+(BB109^2)+(BB102^2)+(BB95^2))","v":61.554853586049575},{"$f":"BC137+BC130+BC123+BC116+BC109+BC102+BC95","v":41},{"$f":"SQRT((BD137^2)+(BD130^2)+(BD123^2)+(BD116^2)+(BD109^2)+(BD102^2)+(BD95^2))","v":75.835347958587221}]
[null,"Less Than 35% of HH Income",{"$f":"C138+C131+C124+C117+C110+C103+C96","v":181},{"$f":"SQRT((D138^2)+(D131^2)+(D124^2)+(D117^2)+(D110^2)+(D103^2)+(D96^2))","v":100.81666528902848},{"$f":"E138+E131+E124+E117+E110+E103+E96","v":28},{"$f":"SQRT((F138^2)+(F131^2)+(F124^2)+(F117^2)+(F110^2)+(F103^2)+(F96^2))","v":63.039670049897943},{"$f":"G138+G131+G124+G117+G110+G103+G96","v":218},{"$f":"SQRT((H138^2)+(H131^2)+(H124^2)+(H117^2)+(H110^2)+(H103^2)+(H96^2))","v":115.81018953442741},{"$f":"I138+I131+I124+I117+I110+I103+I96","v":150},{"$f":"SQRT((J138^2)+(J131^2)+(J124^2)+(J117^2)+(J110^2)+(J103^2)+(J96^2))","v":108.45736489515131},{"$f":"K138+K131+K124+K117+K110+K103+K96","v":28},{"$f":"SQRT((L138^2)+(L131^2)+(L124^2)+(L117^2)+(L110^2)+(L103^2)+(L96^2))","v":62.69768735766894},{"$f":"M138+M131+M124+M117+M110+M103+M96","v":14},{"$f":"SQRT((N138^2)+(N131^2)+(N124^2)+(N117^2)+(N110^2)+(N103^2)+(N96^2))","v":61.351446600711867},{"$f":"O138+O131+O124+O117+O110+O103+O96","v":41},{"$f":"SQRT((P138^2)+(P131^2)+(P124^2)+(P117^2)+(P110^2)+(P103^2)+(P96^2))","v":68.949256703752795},{"$f":"Q138+Q131+Q124+Q117+Q110+Q103+Q96","v":4756},{"$f":"SQRT((R138^2)+(R131^2)+(R124^2)+(R117^2)+(R110^2)+(R103^2)+(R96^2))","v":481.48935606096217},{"$f":"S138+S131+S124+S117+S110+S103+S96","v":27},{"$f":"SQRT((T138^2)+(T131^2)+(T124^2)+(T117^2)+(T110^2)+(T103^2)+(T96^2))","v":64.288412641781719},{"$f":"U138+U131+U124+U117+U110+U103+U96","v":33},{"$f":"SQRT((V138^2)+(V131^2)+(V124^2)+(V117^2)+(V110^2)+(V103^2)+(V96^2))","v":62.793311745758402},{"$f":"W138+W131+W124+W117+W110+W103+W96","v":117},{"$f":"SQRT((X138^2)+(X131^2)+(X124^2)+(X117^2)+(X110^2)+(X103^2)+(X96^2))","v":86.700634369074834},{"$f":"Y138+Y131+Y124+Y117+Y110+Y103+Y96","v":928},{"$f":"SQRT((Z138^2)+(Z131^2)+(Z124^2)+(Z117^2)+(Z110^2)+(Z103^2)+(Z96^2))","v":266.3005820496831},{"$f":"AA138+AA131+AA124+AA117+AA110+AA103+AA96","v":471},{"$f":"SQRT((AB138^2)+(AB131^2)+(AB124^2)+(AB117^2)+(AB110^2)+(AB103^2)+(AB96^2))","v":206.31044568804558},{"$f":"AC138+AC131+AC124+AC117+AC110+AC103+AC96","v":9},{"$f":"SQRT((AD138^2)+(AD131^2)+(AD124^2)+(AD117^2)+(AD110^2)+(AD103^2)+(AD96^2))","v":61.975801729384671},{"$f":"AE138+AE131+AE124+AE117+AE110+AE103+AE96","v":754},{"$f":"SQRT((AF138^2)+(AF131^2)+(AF124^2)+(AF117^2)+(AF110^2)+(AF103^2)+(AF96^2))","v":209.10045432757911},{"$f":"AG138+AG131+AG124+AG117+AG110+AG103+AG96","v":188},{"$f":"SQRT((AH138^2)+(AH131^2)+(AH124^2)+(AH117^2)+(AH110^2)+(AH103^2)+(AH96^2))","v":149.73977427524059},{"$f":"AI138+AI131+AI124+AI117+AI110+AI103+AI96","v":190},{"$f":"SQRT((AJ138^2)+(AJ131^2)+(AJ124^2)+(AJ117^2)+(AJ110^2)+(AJ103^2)+(AJ96^2))","v":155.93267778115015},{"$f":"AK138+AK131+AK124+AK117+AK110+AK103+AK96","v":56},{"$f":"SQRT((AL138^2)+(AL131^2)+(AL124^2)+(AL117^2)+(AL110^2)+(AL103^2)+(AL96^2))","v":63.450768316861222},{"$f":"AM138+AM131+AM124+AM117+AM110+AM103+AM96","v":109},{"$f":"SQRT((AN138^2)+(AN131^2)+(AN124^2)+(AN117^2)+(AN110^2)+(AN103^2)+(AN96^2))","v":75.372408744845089},{"$f":"AO138+AO131+AO124+AO117+AO110+AO103+AO96","v":313},{"$f":"SQRT((AP138^2)+(AP131^2)+(AP124^2)+(AP117^2)+(AP110^2)+(AP103^2)+(AP96^2))","v":137.92026682108761},{"$f":"AQ138+AQ131+AQ124+AQ117+AQ110+AQ103+AQ96","v":331},{"$f":"SQRT((AR138^2)+(AR131^2)+(AR124^2)+(AR117^2)+(AR110^2)+(AR103^2)+(AR96^2))","v":168.70981002893697},{"$f":"AS138+AS131+AS124+AS117+AS110+AS103+AS96","v":309},{"$f":"SQRT((AT138^2)+(AT131^2)+(AT124^2)+(AT117^2)+(AT110^2)+(AT103^2)+(AT96^2))","v":152.19066988485201},{"$f":"AU138+AU131+AU124+AU117+AU110+AU103+AU96","v":19},{"$f":"SQRT((AV138^2)+(AV131^2)+(AV124^2)+(AV117^2)+(AV110^2)+(AV103^2)+(AV96^2))","v":62.841069373459902},{"$f":"AW138+AW131+AW124+AW117+AW110+AW103+AW96","v":19},{"$f":"SQRT((AX138^2)+(AX131^2)+(AX124^2)+(AX117^2)+(AX110^2)+(AX103^2)+(AX96^2))","v":60.95079983068311},{"$f":"AY138+AY131+AY124+AY117+AY110+AY103+AY96","v":256},{"$f":"SQRT((AZ138^2)+(AZ131^2)+(AZ124^2)+(AZ117^2)+(AZ110^2)+(AZ103^2)+(AZ96^2))","v":109.68591523071684},{"$f":"BA138+BA131+BA124+BA117+BA110+BA103+BA96","v":22},{"$f":"SQRT((BB138^2)+(BB131^2)+(BB124^2)+(BB117^2)+(BB110^2)+(BB103^2)+(BB96^2))","v":61.862751312886175},{"$f":"BC138+BC131+BC124+BC117+BC110+BC103+BC96","v":96},{"$f":"SQRT((BD138^2)+(BD131^2)+(BD124^2)+(BD117^2)+(BD110^2)+(BD103^2)+(BD96^2))","v":68.27151675479314}]
[null,"35.0 percent or more",{"$f":"C139+C132+C125+C118+C111+C104+C97","v":192},{"$f":"SQRT((D139^2)+(D132^2)+(D125^2)+(D118^2)+(D111^2)+(D104^2)+(D97^2))","v":137.9927534329249},{"$f":"E139+E132+E125+E118+E111+E104+E97","v":18},{"$f":"SQRT((F139^2)+(F132^2)+(F125^2)+(F118^2)+(F111^2)+(F104^2)+(F97^2))","v":53.422841556772326},{"$f":"G139+G132+G125+G118+G111+G104+G97","v":94},{"$f":"SQRT((H139^2)+(H132^2)+(H125^2)+(H118^2)+(H111^2)+(H104^2)+(H97^2))","v":75.980260594446506},{"$f":"I139+I132+I125+I118+I111+I104+I97","v":105},{"$f":"SQRT((J139^2)+(J132^2)+(J125^2)+(J118^2)+(J111^2)+(J104^2)+(J97^2))","v":83.809307359027855},{"$f":"K139+K132+K125+K118+K111+K104+K97","v":27},{"$f":"SQRT((L139^2)+(L132^2)+(L125^2)+(L118^2)+(L111^2)+(L104^2)+(L97^2))","v":54.936326779281487},{"$f":"M139+M132+M125+M118+M111+M104+M97","v":36},{"$f":"SQRT((N139^2)+(N132^2)+(N125^2)+(N118^2)+(N111^2)+(N104^2)+(N97^2))","v":61.008196170678573},{"$f":"O139+O132+O125+O118+O111+O104+O97","v":23},{"$f":"SQRT((P139^2)+(P132^2)+(P125^2)+(P118^2)+(P111^2)+(P104^2)+(P97^2))","v":59.548299723837623},{"$f":"Q139+Q132+Q125+Q118+Q111+Q104+Q97","v":2679},{"$f":"SQRT((R139^2)+(R132^2)+(R125^2)+(R118^2)+(R111^2)+(R104^2)+(R97^2))","v":421.1401192002491},{"$f":"S139+S132+S125+S118+S111+S104+S97","v":9},{"$f":"SQRT((T139^2)+(T132^2)+(T125^2)+(T118^2)+(T111^2)+(T104^2)+(T97^2))","v":51.555795018600968},{"$f":"U139+U132+U125+U118+U111+U104+U97","v":6},{"$f":"SQRT((V139^2)+(V132^2)+(V125^2)+(V118^2)+(V111^2)+(V104^2)+(V97^2))","v":54.415071441651165},{"$f":"W139+W132+W125+W118+W111+W104+W97","v":79},{"$f":"SQRT((X139^2)+(X132^2)+(X125^2)+(X118^2)+(X111^2)+(X104^2)+(X97^2))","v":71.972216861786322},{"$f":"Y139+Y132+Y125+Y118+Y111+Y104+Y97","v":440},{"$f":"SQRT((Z139^2)+(Z132^2)+(Z125^2)+(Z118^2)+(Z111^2)+(Z104^2)+(Z97^2))","v":168.47848527334284},{"$f":"AA139+AA132+AA125+AA118+AA111+AA104+AA97","v":381},{"$f":"SQRT((AB139^2)+(AB132^2)+(AB125^2)+(AB118^2)+(AB111^2)+(AB104^2)+(AB97^2))","v":217.56148556212793},{"$f":"AC139+AC132+AC125+AC118+AC111+AC104+AC97","v":11},{"$f":"SQRT((AD139^2)+(AD132^2)+(AD125^2)+(AD118^2)+(AD111^2)+(AD104^2)+(AD97^2))","v":56},{"$f":"AE139+AE132+AE125+AE118+AE111+AE104+AE97","v":272},{"$f":"SQRT((AF139^2)+(AF132^2)+(AF125^2)+(AF118^2)+(AF111^2)+(AF104^2)+(AF97^2))","v":158.12969360622944},{"$f":"AG139+AG132+AG125+AG118+AG111+AG104+AG97","v":11},{"$f":"SQRT((AH139^2)+(AH132^2)+(AH125^2)+(AH118^2)+(AH111^2)+(AH104^2)+(AH97^2))","v":78.364532793860263},{"$f":"AI139+AI132+AI125+AI118+AI111+AI104+AI97","v":129},{"$f":"SQRT((AJ139^2)+(AJ132^2)+(AJ125^2)+(AJ118^2)+(AJ111^2)+(AJ104^2)+(AJ97^2))","v":133.26289806243898},{"$f":"AK139+AK132+AK125+AK118+AK111+AK104+AK97","v":10},{"$f":"SQRT((AL139^2)+(AL132^2)+(AL125^2)+(AL118^2)+(AL111^2)+(AL104^2)+(AL97^2))","v":53.376024580330075},{"$f":"AM139+AM132+AM125+AM118+AM111+AM104+AM97","v":20},{"$f":"SQRT((AN139^2)+(AN132^2)+(AN125^2)+(AN118^2)+(AN111^2)+(AN104^2)+(AN97^2))","v":57.271284253105414},{"$f":"AO139+AO132+AO125+AO118+AO111+AO104+AO97","v":150},{"$f":"SQRT((AP139^2)+(AP132^2)+(AP125^2)+(AP118^2)+(AP111^2)+(AP104^2)+(AP97^2))","v":95.482982777037293},{"$f":"AQ139+AQ132+AQ125+AQ118+AQ111+AQ104+AQ97","v":280},{"$f":"SQRT((AR139^2)+(AR132^2)+(AR125^2)+(AR118^2)+(AR111^2)+(AR104^2)+(AR97^2))","v":163.38298565028123},{"$f":"AS139+AS132+AS125+AS118+AS111+AS104+AS97","v":238},{"$f":"SQRT((AT139^2)+(AT132^2)+(AT125^2)+(AT118^2)+(AT111^2)+(AT104^2)+(AT97^2))","v":169.41369484194601},{"$f":"AU139+AU132+AU125+AU118+AU111+AU104+AU97","v":4},{"$f":"SQRT((AV139^2)+(AV132^2)+(AV125^2)+(AV118^2)+(AV111^2)+(AV104^2)+(AV97^2))","v":54.258639865002145},{"$f":"AW139+AW132+AW125+AW118+AW111+AW104+AW97","v":7},{"$f":"SQRT((AX139^2)+(AX132^2)+(AX125^2)+(AX118^2)+(AX111^2)+(AX104^2)+(AX97^2))","v":52.801515129776341},{"$f":"AY139+AY132+AY125+AY118+AY111+AY104+AY97","v":73},{"$f":"SQRT((AZ139^2)+(AZ132^2)+(AZ125^2)+(AZ118^2)+(AZ111^2)+(AZ104^2)+(AZ97^2))","v":61.302528495976411},{"$f":"BA139+BA132+BA125+BA118+BA111+BA104+BA97","v":6},{"$f":"SQRT((BB139^2)+(BB132^2)+(BB125^2)+(BB118^2)+(BB111^2)+(BB104^2)+(BB97^2))","v":52.735187493740838},{"$f":"BC139+BC132+BC125+BC118+BC111+BC104+BC97","v":37},{"$f":"SQRT((BD139^2)+(BD132^2)+(BD125^2)+(BD118^2)+(BD111^2)+(BD104^2)+(BD97^2))","v":69.728043139041262}]
[null,"50.0 percent or more",{"$f":"C140+C133+C126+C119+C112+C105+C98","v":135},{"$f":"SQRT((D140^2)+(D133^2)+(D126^2)+(D119^2)+(D112^2)+(D105^2)+(D98^2))","v":122.78436382536663},{"$f":"E140+E133+E126+E119+E112+E105+E98","v":5},{"$f":"SQRT((F140^2)+(F133^2)+(F126^2)+(F119^2)+(F112^2)+(F105^2)+(F98^2))","v":30.740852297878796},{"$f":"G140+G133+G126+G119+G112+G105+G98","v":69},{"$f":"SQRT((H140^2)+(H133^2)+(H126^2)+(H119^2)+(H112^2)+(H105^2)+(H98^2))","v":56.080299571239813},{"$f":"I140+I133+I126+I119+I112+I105+I98","v":83},{"$f":"SQRT((J140^2)+(J133^2)+(J126^2)+(J119^2)+(J112^2)+(J105^2)+(J98^2))","v":54.249423960075376},{"$f":"K140+K133+K126+K119+K112+K105+K98","v":9},{"$f":"SQRT((L140^2)+(L133^2)+(L126^2)+(L119^2)+(L112^2)+(L105^2)+(L98^2))","v":33},{"$f":"M140+M133+M126+M119+M112+M105+M98","v":30},{"$f":"SQRT((N140^2)+(N133^2)+(N126^2)+(N119^2)+(N112^2)+(N105^2)+(N98^2))","v":42.261093218230876},{"$f":"O140+O133+O126+O119+O112+O105+O98","v":18},{"$f":"SQRT((P140^2)+(P133^2)+(P126^2)+(P119^2)+(P112^2)+(P105^2)+(P98^2))","v":39.912404086950211},{"$f":"Q140+Q133+Q126+Q119+Q112+Q105+Q98","v":1386},{"$f":"SQRT((R140^2)+(R133^2)+(R126^2)+(R119^2)+(R112^2)+(R105^2)+(R98^2))","v":289.81028277133299},{"$f":"S140+S133+S126+S119+S112+S105+S98","v":3},{"$f":"SQRT((T140^2)+(T133^2)+(T126^2)+(T119^2)+(T112^2)+(T105^2)+(T98^2))","v":29.816103031751148},{"$f":"U140+U133+U126+U119+U112+U105+U98","v":6},{"$f":"SQRT((V140^2)+(V133^2)+(V126^2)+(V119^2)+(V112^2)+(V105^2)+(V98^2))","v":30.740852297878796},{"$f":"W140+W133+W126+W119+W112+W105+W98","v":38},{"$f":"SQRT((X140^2)+(X133^2)+(X126^2)+(X119^2)+(X112^2)+(X105^2)+(X98^2))","v":47.265209192385896},{"$f":"Y140+Y133+Y126+Y119+Y112+Y105+Y98","v":189},{"$f":"SQRT((Z140^2)+(Z133^2)+(Z126^2)+(Z119^2)+(Z112^2)+(Z105^2)+(Z98^2))","v":98.010203550446732},{"$f":"AA140+AA133+AA126+AA119+AA112+AA105+AA98","v":203},{"$f":"SQRT((AB140^2)+(AB133^2)+(AB126^2)+(AB119^2)+(AB112^2)+(AB105^2)+(AB98^2))","v":147.21412975662358},{"$f":"AC140+AC133+AC126+AC119+AC112+AC105+AC98","v":11},{"$f":"SQRT((AD140^2)+(AD133^2)+(AD126^2)+(AD119^2)+(AD112^2)+(AD105^2)+(AD98^2))","v":33.466401061363023},{"$f":"AE140+AE133+AE126+AE119+AE112+AE105+AE98","v":191},{"$f":"SQRT((AF140^2)+(AF133^2)+(AF126^2)+(AF119^2)+(AF112^2)+(AF105^2)+(AF98^2))","v":130.98473193468007},{"$f":"AG140+AG133+AG126+AG119+AG112+AG105+AG98","v":11},{"$f":"SQRT((AH140^2)+(AH133^2)+(AH126^2)+(AH119^2)+(AH112^2)+(AH105^2)+(AH98^2))","v":45.77116996538323},{"$f":"AI140+AI133+AI126+AI119+AI112+AI105+AI98","v":83},{"$f":"SQRT((AJ140^2)+(AJ133^2)+(AJ126^2)+(AJ119^2)+(AJ112^2)+(AJ105^2)+(AJ98^2))","v":88.096537956948112},{"$f":"AK140+AK133+AK126+AK119+AK112+AK105+AK98","v":0},{"$f":"SQRT((AL140^2)+(AL133^2)+(AL126^2)+(AL119^2)+(AL112^2)+(AL105^2)+(AL98^2))","v":31.749015732775089},{"$f":"AM140+AM133+AM126+AM119+AM112+AM105+AM98","v":20},{"$f":"SQRT((AN140^2)+(AN133^2)+(AN126^2)+(AN119^2)+(AN112^2)+(AN105^2)+(AN98^2))","v":35.552777669262355},{"$f":"AO140+AO133+AO126+AO119+AO112+AO105+AO98","v":66},{"$f":"SQRT((AP140^2)+(AP133^2)+(AP126^2)+(AP119^2)+(AP112^2)+(AP105^2)+(AP98^2))","v":61.457302251237813},{"$f":"AQ140+AQ133+AQ126+AQ119+AQ112+AQ105+AQ98","v":206},{"$f":"SQRT((AR140^2)+(AR133^2)+(AR126^2)+(AR119^2)+(AR112^2)+(AR105^2)+(AR98^2))","v":136.86855007634151},{"$f":"AS140+AS133+AS126+AS119+AS112+AS105+AS98","v":38},{"$f":"SQRT((AT140^2)+(AT133^2)+(AT126^2)+(AT119^2)+(AT112^2)+(AT105^2)+(AT98^2))","v":66.813172353960269},{"$f":"AU140+AU133+AU126+AU119+AU112+AU105+AU98","v":0},{"$f":"SQRT((AV140^2)+(AV133^2)+(AV126^2)+(AV119^2)+(AV112^2)+(AV105^2)+(AV98^2))","v":31.749015732775089},{"$f":"AW140+AW133+AW126+AW119+AW112+AW105+AW98","v":3},{"$f":"SQRT((AX140^2)+(AX133^2)+(AX126^2)+(AX119^2)+(AX112^2)+(AX105^2)+(AX98^2))","v":29.664793948382652},{"$f":"AY140+AY133+AY126+AY119+AY112+AY105+AY98","v":44},{"$f":"SQRT((AZ140^2)+(AZ133^2)+(AZ126^2)+(AZ119^2)+(AZ112^2)+(AZ105^2)+(AZ98^2))","v":38.832975677895199},{"$f":"BA140+BA133+BA126+BA119+BA112+BA105+BA98","v":4},{"$f":"SQRT((BB140^2)+(BB133^2)+(BB126^2)+(BB119^2)+(BB112^2)+(BB105^2)+(BB98^2))","v":30},{"$f":"BC140+BC133+BC126+BC119+BC112+BC105+BC98","v":0},{"$f":"SQRT((BD140^2)+(BD133^2)+(BD126^2)+(BD119^2)+(BD112^2)+(BD105^2)+(BD98^2))","v":31.749015732775089}]
[null,"Not Computed",{"$f":"C140+C134+C127+C120+C113+C106+C99","v":0},{"$f":"SQRT((D140^2)+(D134^2)+(D127^2)+(D120^2)+(D113^2)+(D106^2)+(D99^2))","v":31.749015732775089},{"$f":"E140+E134+E127+E120+E113+E106+E99","v":38},{"$f":"SQRT((F140^2)+(F134^2)+(F127^2)+(F120^2)+(F113^2)+(F106^2)+(F99^2))","v":43.324358044868937},{"$f":"G140+G134+G127+G120+G113+G106+G99","v":12},{"$f":"SQRT((H140^2)+(H134^2)+(H127^2)+(H120^2)+(H113^2)+(H106^2)+(H99^2))","v":35},{"$f":"I140+I134+I127+I120+I113+I106+I99","v":10},{"$f":"SQRT((J140^2)+(J134^2)+(J127^2)+(J120^2)+(J113^2)+(J106^2)+(J99^2))","v":44.260591952661457},{"$f":"K140+K134+K127+K120+K113+K106+K99","v":0},{"$f":"SQRT((L140^2)+(L134^2)+(L127^2)+(L120^2)+(L113^2)+(L106^2)+(L99^2))","v":31.749015732775089},{"$f":"M140+M134+M127+M120+M113+M106+M99","v":0},{"$f":"SQRT((N140^2)+(N134^2)+(N127^2)+(N120^2)+(N113^2)+(N106^2)+(N99^2))","v":31.749015732775089},{"$f":"O140+O134+O127+O120+O113+O106+O99","v":8},{"$f":"SQRT((P140^2)+(P134^2)+(P127^2)+(P120^2)+(P113^2)+(P106^2)+(P99^2))","v":28.142494558940577},{"$f":"Q140+Q134+Q127+Q120+Q113+Q106+Q99","v":216},{"$f":"SQRT((R140^2)+(R134^2)+(R127^2)+(R120^2)+(R113^2)+(R106^2)+(R99^2))","v":104.88565202161828},{"$f":"S140+S134+S127+S120+S113+S106+S99","v":11},{"$f":"SQRT((T140^2)+(T134^2)+(T127^2)+(T120^2)+(T113^2)+(T106^2)+(T99^2))","v":32.557641192199412},{"$f":"U140+U134+U127+U120+U113+U106+U99","v":4},{"$f":"SQRT((V140^2)+(V134^2)+(V127^2)+(V120^2)+(V113^2)+(V106^2)+(V99^2))","v":30},{"$f":"W140+W134+W127+W120+W113+W106+W99","v":8},{"$f":"SQRT((X140^2)+(X134^2)+(X127^2)+(X120^2)+(X113^2)+(X106^2)+(X99^2))","v":32.140317359976393},{"$f":"Y140+Y134+Y127+Y120+Y113+Y106+Y99","v":41},{"$f":"SQRT((Z140^2)+(Z134^2)+(Z127^2)+(Z120^2)+(Z113^2)+(Z106^2)+(Z99^2))","v":61.073725938409879},{"$f":"AA140+AA134+AA127+AA120+AA113+AA106+AA99","v":0},{"$f":"SQRT((AB140^2)+(AB134^2)+(AB127^2)+(AB120^2)+(AB113^2)+(AB106^2)+(AB99^2))","v":44.977772288098038},{"$f":"AC140+AC134+AC127+AC120+AC113+AC106+AC99","v":0},{"$f":"SQRT((AD140^2)+(AD134^2)+(AD127^2)+(AD120^2)+(AD113^2)+(AD106^2)+(AD99^2))","v":31.749015732775089},{"$f":"AE140+AE134+AE127+AE120+AE113+AE106+AE99","v":40},{"$f":"SQRT((AF140^2)+(AF134^2)+(AF127^2)+(AF120^2)+(AF113^2)+(AF106^2)+(AF99^2))","v":58.395205282625732},{"$f":"AG140+AG134+AG127+AG120+AG113+AG106+AG99","v":47},{"$f":"SQRT((AH140^2)+(AH134^2)+(AH127^2)+(AH120^2)+(AH113^2)+(AH106^2)+(AH99^2))","v":70.356236397351438},{"$f":"AI140+AI134+AI127+AI120+AI113+AI106+AI99","v":0},{"$f":"SQRT((AJ140^2)+(AJ134^2)+(AJ127^2)+(AJ120^2)+(AJ113^2)+(AJ106^2)+(AJ99^2))","v":44.977772288098038},{"$f":"AK140+AK134+AK127+AK120+AK113+AK106+AK99","v":28},{"$f":"SQRT((AL140^2)+(AL134^2)+(AL127^2)+(AL120^2)+(AL113^2)+(AL106^2)+(AL99^2))","v":36.455452267116371},{"$f":"AM140+AM134+AM127+AM120+AM113+AM106+AM99","v":22},{"$f":"SQRT((AN140^2)+(AN134^2)+(AN127^2)+(AN120^2)+(AN113^2)+(AN106^2)+(AN99^2))","v":36.715119501371639},{"$f":"AO140+AO134+AO127+AO120+AO113+AO106+AO99","v":21},{"$f":"SQRT((AP140^2)+(AP134^2)+(AP127^2)+(AP120^2)+(AP113^2)+(AP106^2)+(AP99^2))","v":35.566838487557476},{"$f":"AQ140+AQ134+AQ127+AQ120+AQ113+AQ106+AQ99","v":19},{"$f":"SQRT((AR140^2)+(AR134^2)+(AR127^2)+(AR120^2)+(AR113^2)+(AR106^2)+(AR99^2))","v":46.032597145935618},{"$f":"AS140+AS134+AS127+AS120+AS113+AS106+AS99","v":33},{"$f":"SQRT((AT140^2)+(AT134^2)+(AT127^2)+(AT120^2)+(AT113^2)+(AT106^2)+(AT99^2))","v":45.617978911828175},{"$f":"AU140+AU134+AU127+AU120+AU113+AU106+AU99","v":0},{"$f":"SQRT((AV140^2)+(AV134^2)+(AV127^2)+(AV120^2)+(AV113^2)+(AV106^2)+(AV99^2))","v":31.749015732775089},{"$f":"AW140+AW134+AW127+AW120+AW113+AW106+AW99","v":9},{"$f":"SQRT((AX140^2)+(AX134^2)+(AX127^2)+(AX120^2)+(AX113^2)+(AX106^2)+(AX99^2))","v":28.635642126552707},{"$f":"AY140+AY134+AY127+AY120+AY113+AY106+AY99","v":47},{"$f":"SQRT((AZ140^2)+(AZ134^2)+(AZ127^2)+(AZ120^2)+(AZ113^2)+(AZ106^2)+(AZ99^2))","v":38.80721582386451},{"$f":"BA140+BA134+BA127+BA120+BA113+BA106+BA99","v":9},{"$f":"SQRT((BB140^2)+(BB134^2)+(BB127^2)+(BB120^2)+(BB113^2)+(BB106^2)+(BB99^2))","v":28.913664589601922},{"$f":"BC140+BC134+BC127+BC120+BC113+BC106+BC99","v":3},{"$f":"SQRT((BD140^2)+(BD134^2)+(BD127^2)+(BD120^2)+(BD113^2)+(BD106^2)+(BD99^2))","v":29.816103031751148}]
[]
[]
[]
[]
[]
[]
[]
[]
[]
[]
[]
[null,"B25074. HOUSEHOLD INCOME BY GROSS RENT AS A PERCENTAGE OF HOUSEHOLD INCOME IN THE PAST 12 MONTHS"]
[null,"Universe:  RENTER-OCCUPIED HOUSING UNITS",null,null,null,{"$f":"'RentalHousingCost-Prior5Yr'!D41","v":"Income in 20176 Inflation Adjusted Dollars"}]
[null,"Data Set: 2013-2017 American Community Survey 5-Year Estimates"]
[]
[null,null,"Allenstown",null,"Andover",null,"Boscawen",null,"Bow",null,"Bradford",null,"Canterbury",null,"Chichester",null,"Concord",null,"Danbury",null,"Dunbarton",null,"Epsom",null,"Franklin",null,"Henniker",null,"Hill",null,"Hooksett",null,"Hopkinton",null,"Loudon",null,"Newbury",null,"New London",null,"Northfield",null,"Pembroke",null,"Pittsfield",null,"Salisbury",null,"Sutton",null,"Warner",null,"Webster",null,"Wilmot"]
[null,null,"Estimate","Margin Of Error","Estimate","Margin Of Error","Estimate","Margin Of Error","Estimate","Margin Of Error","Estimate","Margin Of Error","Estimate","Margin Of Error","Estimate","Margin Of Error","Estimate","Margin Of Error","Estimate","Margin Of Error","Estimate","Margin Of Error","Estimate","Margin Of Error","Estimate","Margin Of Error","Estimate","Margin Of Error","Estimate","Margin Of Error","Estimate","Margin Of Error","Estimate","Margin Of Error","Estimate","Margin Of Error","Estimate","Margin Of Error","Estimate","Margin Of Error","Estimate","Margin Of Error","Estimate","Margin Of Error","Estimate","Margin Of Error","Estimate","Margin Of Error","Estimate","Margin Of Error","Estimate","Margin Of Error","Estimate","Margin Of Error","Estimate","Margin Of Error"]
[null,"Total:",467,107,157,66,385,91,345,88,62,23,49,31,88,39,7942,349,81,39,98,40,332,112,1520,196,522,105,34,18,997,142,235,84,279,114,49,31,411,118,459,106,727,202,665,131,32,26,105,43,265,65,96,35,143,45]
[null,"Less than $10,000:",16,20,25,34,50,36,34,31,14,15,0,11,0,11,761,191,3,4,5,8,16,20,150,65,51,48,0,11,15,26,0,15,24,29,0,11,13,21,15,23,76,79,178,106,0,11,10,15,39,33,9,15,4,5]
[null,"Less than 20.0 percent",0,11,0,11,0,11,0,15,0,11,0,11,0,11,8,13,0,11,0,11,0,11,0,15,0,11,0,11,0,17,0,15,0,15,0,11,0,11,0,11,0,15,24,40,0,11,0,11,0,11,0,11,0,11]
[null,"20.0 to 24.9 percent",0,11,0,11,0,11,0,15,0,11,0,11,0,11,7,12,0,11,0,11,0,11,13,21,0,11,0,11,0,17,0,15,0,15,0,11,0,11,0,11,0,15,0,11,0,11,0,11,0,11,0,11,0,11]
[null,"25.0 to 29.9 percent",0,11,0,11,0,11,0,15,0,11,0,11,0,11,25,23,0,11,0,11,0,11,21,23,0,11,0,11,0,17,0,15,0,15,0,11,0,11,0,11,0,15,0,11,0,11,0,11,0,11,0,11,0,11]
[null,"30.0 to 34.9 percent",0,11,0,11,0,11,0,15,0,11,0,11,0,11,53,45,0,11,0,11,0,11,25,29,0,11,0,11,0,17,0,15,0,15,0,11,0,11,0,11,0,15,0,11,0,11,0,11,0,11,0,11,0,11]
[null,"35.0 to 39.9 percent",0,11,0,11,0,11,0,15,0,11,0,11,0,11,15,24,0,11,0,11,0,11,0,15,0,11,0,11,0,17,0,15,0,15,0,11,0,11,0,11,0,15,0,11,0,11,0,11,0,11,0,11,0,11]
[null,"40.0 to 49.9 percent",0,11,0,11,0,11,0,15,0,11,0,11,0,11,0,23,0,11,0,11,0,11,13,21,0,11,0,11,0,17,0,15,0,15,0,11,0,11,0,11,0,15,31,51,0,11,0,11,0,11,0,11,0,11]
[null,"50.0 percent or more",16,20,0,11,35,30,34,31,14,15,0,11,0,11,530,168,0,11,5,8,16,20,53,37,51,48,0,11,15,26,0,15,11,18,0,11,13,21,15,23,76,79,123,85,0,11,0,11,27,28,0,11,4,5]
[null,"Not computed",0,11,25,34,15,16,0,15,0,11,0,11,0,11,123,83,3,4,0,11,0,11,25,27,0,11,0,11,0,17,0,15,13,21,0,11,0,11,0,11,0,15,0,11,0,11,10,15,12,18,9,15,0,11]
[null,"$10,000 to $19,999:",148,84,31,26,102,58,67,46,8,8,27,14,0,11,1153,208,0,11,0,11,80,59,361,139,174,81,0,11,172,71,19,29,24,27,6,9,102,61,62,55,136,102,140,78,13,21,3,5,54,40,20,22,10,10]
[null,"Less than 20.0 percent",28,43,0,11,0,11,0,15,0,11,0,11,0,11,15,21,0,11,0,11,0,11,11,17,45,53,0,11,0,17,0,15,0,15,0,11,18,29,0,11,17,27,0,11,0,11,0,11,5,8,0,11,0,11]
[null,"20.0 to 24.9 percent",10,16,0,11,9,14,0,15,0,11,0,11,0,11,25,23,0,11,0,11,0,11,0,15,12,21,0,11,15,24,0,15,0,15,0,11,8,13,0,11,17,29,0,11,0,11,0,11,3,5,0,11,0,11]
[null,"25.0 to 29.9 percent",17,20,0,11,22,35,9,15,0,11,13,14,0,11,154,79,0,11,0,11,0,11,25,29,7,11,0,11,15,22,0,15,0,15,0,11,0,11,0,11,17,26,22,20,0,11,0,11,16,24,0,11,0,11]
[null,"30.0 to 34.9 percent",0,11,0,11,6,11,0,15,4,6,0,11,0,11,31,22,0,11,0,11,8,13,69,61,34,39,0,11,9,15,0,15,0,15,0,11,15,24,0,11,0,15,16,19,0,11,0,11,0,11,0,11,0,11]
[null,"35.0 to 39.9 percent",0,11,0,11,0,11,0,15,0,11,0,11,0,11,6,9,0,11,0,11,0,11,0,15,19,31,0,11,7,11,0,15,0,15,0,11,0,11,0,11,0,15,0,11,0,11,0,11,0,11,10,15,0,11]
[null,"40.0 to 49.9 percent",0,11,0,11,0,11,0,15,0,11,0,11,0,11,136,105,0,11,0,11,8,12,43,68,6,10,0,11,28,28,0,15,0,15,0,11,0,11,22,35,0,15,8,13,0,11,0,11,20,31,0,11,0,11]
[null,"50.0 percent or more",93,76,25,24,65,47,58,46,4,5,14,13,0,11,732,163,0,11,0,11,33,43,193,110,41,40,0,11,73,53,0,15,24,27,0,11,40,46,40,48,85,93,94,70,13,21,0,11,10,10,10,16,10,10]
[null,"Not computed",0,11,6,9,0,11,0,15,0,11,0,11,0,11,54,54,0,11,0,11,31,40,20,23,10,17,0,11,25,29,19,29,0,15,6,9,21,30,0,11,0,15,0,11,0,11,3,5,0,11,0,11,0,11]
[null,"$20,000 to $34,999:",98,56,34,30,72,52,104,42,14,13,17,27,0,11,1811,241,12,11,22,26,103,70,373,114,131,72,7,7,229,86,33,33,31,35,0,11,76,59,126,77,152,99,140,77,0,11,26,24,28,15,10,16,35,25]
[null,"Less than 20.0 percent",27,42,0,11,0,11,0,15,0,11,0,11,0,11,110,74,0,11,0,11,5,9,44,47,0,11,0,11,0,17,0,15,0,15,0,11,0,11,0,11,18,28,0,11,0,11,0,11,9,10,0,11,0,11]
[null,"20.0 to 24.9 percent",11,18,0,11,0,11,0,15,0,11,0,11,0,11,68,50,0,11,0,11,0,11,9,15,0,11,0,11,29,34,0,15,0,15,0,11,18,28,0,11,0,15,30,29,0,11,0,11,0,11,0,11,0,11]
[null,"25.0 to 29.9 percent",9,13,0,11,0,11,0,15,4,6,0,11,0,11,139,67,0,11,0,11,9,14,43,40,26,33,0,11,8,13,10,17,0,15,0,11,0,11,41,43,33,38,27,38,0,11,4,6,4,6,0,11,0,11]
[null,"30.0 to 34.9 percent",17,20,0,11,29,32,22,23,7,10,0,11,0,11,314,103,0,11,22,26,7,12,33,32,12,18,0,11,0,17,0,15,0,15,0,11,15,24,0,11,30,35,30,45,0,11,0,11,0,11,0,11,3,4]
[null,"35.0 to 39.9 percent",9,14,5,7,0,11,20,16,0,11,0,11,0,11,186,95,0,11,0,11,30,37,10,15,7,12,0,11,23,26,0,15,31,35,0,11,6,10,24,39,0,15,5,9,0,11,0,11,6,8,0,11,0,11]
[null,"40.0 to 49.9 percent",25,20,22,27,43,39,27,26,3,4,0,11,0,11,602,211,9,10,0,11,36,48,70,59,48,39,0,11,45,33,10,17,0,15,0,11,0,11,30,35,16,27,48,47,0,11,0,11,9,9,10,16,0,11]
[null,"50.0 percent or more",0,11,0,11,0,11,25,18,0,11,0,11,0,11,372,118,0,11,0,11,16,20,143,89,22,32,3,4,107,67,0,15,0,15,0,11,29,32,31,47,55,79,0,11,0,11,22,23,0,11,0,11,27,24]
[null,"Not computed",0,11,7,11,0,11,10,15,0,11,17,27,0,11,20,19,3,5,0,11,0,11,21,22,16,24,4,6,17,19,13,22,0,15,0,11,8,12,0,11,0,15,0,11,0,11,0,11,0,11,0,11,5,7]
[null,"$35,000 to $49,999:",8,13,7,10,50,42,25,24,5,6,0,11,40,28,1309,263,14,21,13,12,21,24,309,116,43,38,9,8,143,101,101,77,57,66,4,6,28,34,56,37,70,55,82,59,4,5,10,16,28,20,21,17,19,21]
[null,"Less than 20.0 percent",0,11,0,11,0,11,0,15,0,11,0,11,0,11,81,54,0,11,0,11,7,12,34,38,19,29,0,11,9,15,0,15,0,15,0,11,0,11,6,10,0,15,7,13,4,5,0,11,0,11,4,5,0,11]
[null,"20.0 to 24.9 percent",0,11,7,10,22,36,0,15,0,11,0,11,6,9,247,97,14,21,7,10,0,11,99,69,0,11,0,11,8,13,66,66,0,15,0,11,0,11,12,19,39,48,47,50,0,11,0,11,0,11,0,11,0,11]
[null,"25.0 to 29.9 percent",0,11,0,11,14,17,0,15,0,11,0,11,7,12,349,121,0,11,0,11,10,17,92,66,24,24,4,5,12,20,11,17,45,64,0,11,0,11,17,20,16,25,14,18,0,11,10,16,19,17,3,5,0,11]
[null,"30.0 to 34.9 percent",0,11,0,11,7,12,4,7,2,3,0,11,17,20,276,112,0,11,6,8,0,11,25,29,0,11,0,11,19,22,0,15,12,19,4,6,0,11,0,11,15,23,14,22,0,11,0,11,4,7,8,13,0,11]
[null,"35.0 to 39.9 percent",0,11,0,11,0,11,13,19,0,11,0,11,10,14,89,57,0,11,0,11,4,9,24,40,0,11,0,11,0,17,0,15,0,15,0,11,8,12,0,11,0,15,0,11,0,11,0,11,0,11,0,11,9,13]
[null,"40.0 to 49.9 percent",0,11,0,11,0,11,8,13,0,11,0,11,0,11,151,76,0,11,0,11,0,11,30,47,0,11,0,11,25,25,24,37,0,15,0,11,0,11,9,15,0,15,0,11,0,11,0,11,5,8,0,11,10,16]
[null,"50.0 percent or more",0,11,0,11,7,11,0,15,3,5,0,11,0,11,6,9,0,11,0,11,0,11,5,8,0,11,0,11,70,94,0,15,0,15,0,11,0,11,0,11,0,15,0,11,0,11,0,11,0,11,0,11,0,11]
[null,"Not computed",8,13,0,11,0,11,0,15,0,11,0,11,0,11,110,104,0,11,0,11,0,11,0,15,0,11,5,6,0,17,0,15,0,15,0,11,20,32,12,19,0,15,0,11,0,11,0,11,0,11,6,9,0,11]
[null,"$50,000 to $74,999:",93,54,20,22,75,66,41,35,10,11,0,11,26,32,1569,223,42,31,37,23,59,53,185,100,46,48,12,13,259,102,41,54,57,48,16,15,77,64,118,59,145,95,81,64,11,9,16,15,34,27,18,15,51,31]
[null,"Less than 20.0 percent",55,41,0,11,50,67,0,15,3,4,0,11,19,29,507,174,17,18,11,8,0,11,86,71,19,30,0,11,35,44,31,51,17,28,0,11,17,26,28,25,31,36,53,49,0,11,0,11,20,25,11,14,7,7]
[null,"20.0 to 24.9 percent",8,14,15,21,0,11,0,15,4,9,0,11,0,11,616,142,16,20,21,20,18,30,38,39,8,12,12,13,82,55,0,15,14,23,0,11,16,23,69,63,79,79,0,11,4,6,0,11,9,9,3,4,7,7]
[null,"25.0 to 29.9 percent",0,11,5,7,16,19,7,11,3,5,0,11,0,11,162,84,9,14,5,7,14,26,42,63,0,11,0,11,74,62,0,15,13,23,16,15,0,11,21,23,19,31,0,11,0,11,11,13,0,11,4,5,22,19]
[null,"30.0 to 34.9 percent",30,36,0,11,9,14,6,10,0,11,0,11,0,11,98,60,0,11,0,11,21,33,9,17,19,30,0,11,32,33,0,15,0,15,0,11,26,33,0,11,0,15,28,35,0,11,0,11,5,7,0,11,15,22]
[null,"35.0 to 39.9 percent",0,11,0,11,0,11,0,15,0,11,0,11,0,11,8,14,0,11,0,11,6,11,0,15,0,11,0,11,7,12,0,15,0,15,0,11,18,29,0,11,0,15,0,11,0,11,0,11,0,11,0,11,0,11]
[null,"40.0 to 49.9 percent",0,11,0,11,0,11,0,15,0,11,0,11,0,11,14,22,0,11,0,11,0,11,0,15,0,11,0,11,0,17,0,15,0,15,0,11,0,11,0,11,0,15,0,11,4,5,0,11,0,11,0,11,0,11]
[null,"50.0 percent or more",0,11,0,11,0,11,11,17,0,11,0,11,0,11,102,83,0,11,0,11,0,11,0,15,0,11,0,11,0,17,0,15,0,15,0,11,0,11,0,11,0,15,0,11,0,11,0,11,0,11,0,11,0,11]
[null,"Not computed",0,11,0,11,0,11,17,25,0,11,0,11,7,10,62,58,0,11,0,11,0,11,10,16,0,11,0,11,29,34,10,17,13,21,0,11,0,11,0,11,16,27,0,11,3,6,5,9,0,11,0,11,0,11]
[null,"$75,000 to $99,999:",44,32,5,8,21,20,52,48,3,6,5,8,14,15,713,194,0,11,8,9,17,20,121,92,25,35,3,5,122,73,0,15,44,44,8,8,7,10,18,21,148,107,27,37,4,9,17,19,23,23,11,11,4,5]
[null,"Less than 20.0 percent",7,13,0,11,15,17,23,35,3,6,0,11,14,15,460,132,0,11,0,11,10,15,101,76,20,33,3,5,30,48,0,15,0,15,5,7,0,11,18,21,131,105,27,37,4,9,11,17,18,22,4,5,0,11]
[null,"20.0 to 24.9 percent",13,17,5,8,0,11,17,24,0,11,0,11,0,11,208,145,0,11,5,7,0,11,20,30,5,13,0,11,51,42,0,15,14,22,3,4,0,11,0,11,17,28,0,11,0,11,3,4,0,11,0,11,4,5]
[null,"25.0 to 29.9 percent",14,15,0,11,6,11,12,17,0,11,0,11,0,11,23,21,0,11,0,11,7,13,0,15,0,11,0,11,41,35,0,15,17,30,0,11,0,11,0,11,0,15,0,11,0,11,0,11,0,11,4,6,0,11]
[null,"30.0 to 34.9 percent",0,11,0,11,0,11,0,15,0,11,0,11,0,11,0,23,0,11,0,11,0,11,0,15,0,11,0,11,0,17,0,15,0,15,0,11,7,10,0,11,0,15,0,11,0,11,0,11,0,11,0,11,0,11]
[null,"35.0 to 39.9 percent",0,11,0,11,0,11,0,15,0,11,0,11,0,11,0,23,0,11,0,11,0,11,0,15,0,11,0,11,0,17,0,15,0,15,0,11,0,11,0,11,0,15,0,11,0,11,0,11,0,11,0,11,0,11]
[null,"40.0 to 49.9 percent",0,11,0,11,0,11,0,15,0,11,0,11,0,11,0,23,0,11,0,11,0,11,0,15,0,11,0,11,0,17,0,15,0,15,0,11,0,11,0,11,0,15,0,11,0,11,0,11,0,11,0,11,0,11]
[null,"50.0 percent or more",0,11,0,11,0,11,0,15,0,11,0,11,0,11,0,23,0,11,0,11,0,11,0,15,0,11,0,11,0,17,0,15,0,15,0,11,0,11,0,11,0,15,0,11,0,11,0,11,0,11,0,11,0,11]
[null,"Not computed",10,15,0,11,0,11,0,15,0,11,5,8,0,11,22,25,0,11,3,5,0,11,0,15,0,11,0,11,0,17,0,15,13,21,0,11,0,11,0,11,0,15,0,11,0,11,3,5,5,8,3,5,0,11]
[null,"$100,000 or more:",60,49,35,37,15,18,22,20,8,8,0,11,8,10,626,147,10,15,13,15,36,45,21,24,52,42,3,4,57,40,41,40,42,48,15,23,108,66,64,49,0,15,17,25,0,11,23,22,59,37,7,7,20,19]
[null,"Less than 20.0 percent",60,49,18,28,6,11,13,14,2,4,0,11,8,10,593,146,10,15,13,15,11,24,21,24,52,42,3,4,45,37,41,40,42,48,0,11,91,64,64,49,0,15,17,25,0,11,23,22,51,35,7,7,20,19]
[null,"20.0 to 24.9 percent",0,11,0,11,0,11,9,13,6,6,0,11,0,11,18,22,0,11,0,11,25,38,0,15,0,11,0,11,0,17,0,15,0,15,0,11,9,14,0,11,0,15,0,11,0,11,0,11,3,6,0,11,0,11]
[null,"25.0 to 29.9 percent",0,11,0,11,0,11,0,15,0,11,0,11,0,11,0,23,0,11,0,11,0,11,0,15,0,11,0,11,0,17,0,15,0,15,0,11,0,11,0,11,0,15,0,11,0,11,0,11,0,11,0,11,0,11]
[null,"30.0 to 34.9 percent",0,11,0,11,0,11,0,15,0,11,0,11,0,11,0,23,0,11,0,11,0,11,0,15,0,11,0,11,0,17,0,15,0,15,0,11,0,11,0,11,0,15,0,11,0,11,0,11,0,11,0,11,0,11]
[null,"35.0 to 39.9 percent",0,11,0,11,0,11,0,15,0,11,0,11,0,11,0,23,0,11,0,11,0,11,0,15,0,11,0,11,0,17,0,15,0,15,0,11,0,11,0,11,0,15,0,11,0,11,0,11,0,11,0,11,0,11]
[null,"40.0 to 49.9 percent",0,11,0,11,0,11,0,15,0,11,0,11,0,11,0,23,0,11,0,11,0,11,0,15,0,11,0,11,0,17,0,15,0,15,0,11,0,11,0,11,0,15,0,11,0,11,0,11,0,11,0,11,0,11]
[null,"50.0 percent or more",0,11,0,11,0,11,0,15,0,11,0,11,0,11,0,23,0,11,0,11,0,11,0,15,0,11,0,11,0,17,0,15,0,15,0,11,0,11,0,11,0,15,0,11,0,11,0,11,0,11,0,11,0,11]
[null,"Not computed",0,11,17,26,9,15,0,15,0,11,0,11,0,11,15,23,0,11,0,11,0,11,0,15,0,11,0,11,12,18,0,15,0,15,15,23,8,13,0,11,0,15,0,11,0,11,0,11,5,7,0,11,0,11]
[]
[]
[]
[]
[]
[]
[]
[]
[]
[]
[]
[]
[]
[]
[]
[null,"Calculated B25074. HOUSEHOLD INCOME BY GROSS RENT AS A PERCENTAGE OF HOUSEHOLD INCOME IN THE PAST 12 MONTHS"]
[null,"Universe:  RENTER-OCCUPIED HOUSING UNITS"]
[null,{"$f":"B170","v":"Data Set: 2013-2017 American Community Survey 5-Year Estimates"}]
[]
[null,null,"Allenstown",null,"Andover",null,"Boscawen",null,"Bow",null,"Bradford",null,"Canterbury",null,"Chichester",null,"Concord",null,"Danbury",null,"Dunbarton",null,"Epsom",null,"Franklin",null,"Henniker",null,"Hill",null,"Hooksett",null,"Hopkinton",null,"Loudon",null,"Newbury",null,"New London",null,"Northfield",null,"Pembroke",null,"Pittsfield",null,"Salisbury",null,"Sutton",null,"Warner",null,"Webster",null,"Wilmot"]
[null,null,"Estimate","Margin Of Error","Estimate","Margin Of Error","Estimate","Margin Of Error","Estimate","Margin Of Error","Estimate","Margin Of Error","Estimate","Margin Of Error","Estimate","Margin Of Error","Estimate","Margin Of Error","Estimate","Margin Of Error","Estimate","Margin Of Error","Estimate","Margin Of Error","Estimate","Margin Of Error","Estimate","Margin Of Error","Estimate","Margin Of Error","Estimate","Margin Of Error","Estimate","Margin Of Error","Estimate","Margin Of Error","Estimate","Margin Of Error","Estimate","Margin Of Error","Estimate","Margin Of Error","Estimate","Margin Of Error","Estimate","Margin Of Error","Estimate","Margin Of Error","Estimate","Margin Of Error","Estimate","Margin Of Error","Estimate","Margin Of Error","Estimate","Margin Of Error"]
[null,"Total:",{"$f":"C174","v":467},107,157,66,385,91,345,88,62,23,49,31,88,39,7942,349,81,39,98,40,332,112,1520,196,522,105,34,18,997,142,235,84,279,114,49,31,411,118,459,106,727,202,665,131,32,26,105,43,265,65,96,35,143,45]
[null,"Less than $10,000:",16,20,25,34,50,36,34,31,14,15,0,11,0,11,761,191,3,4,5,8,16,20,150,65,51,48,0,11,15,26,0,15,24,29,0,11,13,21,15,23,76,79,178,106,0,11,10,15,39,33,9,15,4,5]
[null,"Less than 30.0 percent",{"$f":"C176+C177+C178","v":0},{"$f":"SQRT((D176^2)+(D177^2)+(D178^2))","v":19.05255888325765},{"$f":"E176+E177+E178","v":0},{"$f":"SQRT((F176^2)+(F177^2)+(F178^2))","v":19.05255888325765},{"$f":"G176+G177+G178","v":0},{"$f":"SQRT((H176^2)+(H177^2)+(H178^2))","v":19.05255888325765},{"$f":"I176+I177+I178","v":0},{"$f":"SQRT((J176^2)+(J177^2)+(J178^2))","v":25.98076211353316},{"$f":"K176+K177+K178","v":0},{"$f":"SQRT((L176^2)+(L177^2)+(L178^2))","v":19.05255888325765},{"$f":"M176+M177+M178","v":0},{"$f":"SQRT((N176^2)+(N177^2)+(N178^2))","v":19.05255888325765},{"$f":"O176+O177+O178","v":0},{"$f":"SQRT((P176^2)+(P177^2)+(P178^2))","v":19.05255888325765},{"$f":"Q176+Q177+Q178","v":40},{"$f":"SQRT((R176^2)+(R177^2)+(R178^2))","v":29.017236257093817},{"$f":"S176+S177+S178","v":0},{"$f":"SQRT((T176^2)+(T177^2)+(T178^2))","v":19.05255888325765},{"$f":"U176+U177+U178","v":0},{"$f":"SQRT((V176^2)+(V177^2)+(V178^2))","v":19.05255888325765},{"$f":"W176+W177+W178","v":0},{"$f":"SQRT((X176^2)+(X177^2)+(X178^2))","v":19.05255888325765},{"$f":"Y176+Y177+Y178","v":34},{"$f":"SQRT((Z176^2)+(Z177^2)+(Z178^2))","v":34.568772034887211},{"$f":"AA176+AA177+AA178","v":0},{"$f":"SQRT((AB176^2)+(AB177^2)+(AB178^2))","v":19.05255888325765},{"$f":"AC176+AC177+AC178","v":0},{"$f":"SQRT((AD176^2)+(AD177^2)+(AD178^2))","v":19.05255888325765},{"$f":"AE176+AE177+AE178","v":0},{"$f":"SQRT((AF176^2)+(AF177^2)+(AF178^2))","v":29.444863728670914},{"$f":"AG176+AG177+AG178","v":0},{"$f":"SQRT((AH176^2)+(AH177^2)+(AH178^2))","v":25.98076211353316},{"$f":"AI176+AI177+AI178","v":0},{"$f":"SQRT((AJ176^2)+(AJ177^2)+(AJ178^2))","v":25.98076211353316},{"$f":"AK176+AK177+AK178","v":0},{"$f":"SQRT((AL176^2)+(AL177^2)+(AL178^2))","v":19.05255888325765},{"$f":"AM176+AM177+AM178","v":0},{"$f":"SQRT((AN176^2)+(AN177^2)+(AN178^2))","v":19.05255888325765},{"$f":"AO176+AO177+AO178","v":0},{"$f":"SQRT((AP176^2)+(AP177^2)+(AP178^2))","v":19.05255888325765},{"$f":"AQ176+AQ177+AQ178","v":0},{"$f":"SQRT((AR176^2)+(AR177^2)+(AR178^2))","v":25.98076211353316},{"$f":"AS176+AS177+AS178","v":24},{"$f":"SQRT((AT176^2)+(AT177^2)+(AT178^2))","v":42.918527467749868},{"$f":"AU176+AU177+AU178","v":0},{"$f":"SQRT((AV176^2)+(AV177^2)+(AV178^2))","v":19.05255888325765},{"$f":"AW176+AW177+AW178","v":0},{"$f":"SQRT((AX176^2)+(AX177^2)+(AX178^2))","v":19.05255888325765},{"$f":"AY176+AY177+AY178","v":0},{"$f":"SQRT((AZ176^2)+(AZ177^2)+(AZ178^2))","v":19.05255888325765},{"$f":"BA176+BA177+BA178","v":0},{"$f":"SQRT((BB176^2)+(BB177^2)+(BB178^2))","v":19.05255888325765},{"$f":"BC176+BC177+BC178","v":0},{"$f":"SQRT((BD176^2)+(BD177^2)+(BD178^2))","v":19.05255888325765}]
[null,"More than 30.0 percent",{"$f":"C179+C180+C181+C182","v":16},{"$f":"SQRT((D179^2)+(D180^2)+(D181^2)+(D182^2))","v":27.622454633866266},{"$f":"E179+E180+E181+E182","v":0},{"$f":"SQRT((F179^2)+(F180^2)+(F181^2)+(F182^2))","v":22},{"$f":"G179+G180+G181+G182","v":35},{"$f":"SQRT((H179^2)+(H180^2)+(H181^2)+(H182^2))","v":35.538711287833721},{"$f":"I179+I180+I181+I182","v":34},{"$f":"SQRT((J179^2)+(J180^2)+(J181^2)+(J182^2))","v":40.447496832313369},{"$f":"K179+K180+K181+K182","v":14},{"$f":"SQRT((L179^2)+(L180^2)+(L181^2)+(L182^2))","v":24.248711305964282},{"$f":"M179+M180+M181+M182","v":0},{"$f":"SQRT((N179^2)+(N180^2)+(N181^2)+(N182^2))","v":22},{"$f":"O179+O180+O181+O182","v":0},{"$f":"SQRT((P179^2)+(P180^2)+(P181^2)+(P182^2))","v":22},{"$f":"Q179+Q180+Q181+Q182","v":598},{"$f":"SQRT((R179^2)+(R180^2)+(R181^2)+(R182^2))","v":177.07060738586739},{"$f":"S179+S180+S181+S182","v":0},{"$f":"SQRT((T179^2)+(T180^2)+(T181^2)+(T182^2))","v":22},{"$f":"U179+U180+U181+U182","v":5},{"$f":"SQRT((V179^2)+(V180^2)+(V181^2)+(V182^2))","v":20.663978319771825},{"$f":"W179+W180+W181+W182","v":16},{"$f":"SQRT((X179^2)+(X180^2)+(X181^2)+(X182^2))","v":27.622454633866266},{"$f":"Y179+Y180+Y181+Y182","v":91},{"$f":"SQRT((Z179^2)+(Z180^2)+(Z181^2)+(Z182^2))","v":53.628350711167691},{"$f":"AA179+AA180+AA181+AA182","v":51},{"$f":"SQRT((AB179^2)+(AB180^2)+(AB181^2)+(AB182^2))","v":51.643005334701428},{"$f":"AC179+AC180+AC181+AC182","v":0},{"$f":"SQRT((AD179^2)+(AD180^2)+(AD181^2)+(AD182^2))","v":22},{"$f":"AE179+AE180+AE181+AE182","v":15},{"$f":"SQRT((AF179^2)+(AF180^2)+(AF181^2)+(AF182^2))","v":39.281038682804713},{"$f":"AG179+AG180+AG181+AG182","v":0},{"$f":"SQRT((AH179^2)+(AH180^2)+(AH181^2)+(AH182^2))","v":30},{"$f":"AI179+AI180+AI181+AI182","v":11},{"$f":"SQRT((AJ179^2)+(AJ180^2)+(AJ181^2)+(AJ182^2))","v":31.606961258558215},{"$f":"AK179+AK180+AK181+AK182","v":0},{"$f":"SQRT((AL179^2)+(AL180^2)+(AL181^2)+(AL182^2))","v":22},{"$f":"AM179+AM180+AM181+AM182","v":13},{"$f":"SQRT((AN179^2)+(AN180^2)+(AN181^2)+(AN182^2))","v":28.354893757515651},{"$f":"AO179+AO180+AO181+AO182","v":15},{"$f":"SQRT((AP179^2)+(AP180^2)+(AP181^2)+(AP182^2))","v":29.866369046136157},{"$f":"AQ179+AQ180+AQ181+AQ182","v":76},{"$f":"SQRT((AR179^2)+(AR180^2)+(AR181^2)+(AR182^2))","v":83.162491545167157},{"$f":"AS179+AS180+AS181+AS182","v":154},{"$f":"SQRT((AT179^2)+(AT180^2)+(AT181^2)+(AT182^2))","v":100.33942395688746},{"$f":"AU179+AU180+AU181+AU182","v":0},{"$f":"SQRT((AV179^2)+(AV180^2)+(AV181^2)+(AV182^2))","v":22},{"$f":"AW179+AW180+AW181+AW182","v":0},{"$f":"SQRT((AX179^2)+(AX180^2)+(AX181^2)+(AX182^2))","v":22},{"$f":"AY179+AY180+AY181+AY182","v":27},{"$f":"SQRT((AZ179^2)+(AZ180^2)+(AZ181^2)+(AZ182^2))","v":33.867388443752198},{"$f":"BA179+BA180+BA181+BA182","v":0},{"$f":"SQRT((BB179^2)+(BB180^2)+(BB181^2)+(BB182^2))","v":22},{"$f":"BC179+BC180+BC181+BC182","v":4},{"$f":"SQRT((BD179^2)+(BD180^2)+(BD181^2)+(BD182^2))","v":19.697715603592208}]
[null,"Less Than 35% of HH Income",{"$f":"C176+C177+C178+C179","v":0},{"$f":"SQRT((D176^2)+(D177^2)+(D178^2)+(D179^2))","v":22},{"$f":"E176+E177+E178+E179","v":0},{"$f":"SQRT((F176^2)+(F177^2)+(F178^2)+(F179^2))","v":22},{"$f":"G176+G177+G178+G179","v":0},{"$f":"SQRT((H176^2)+(H177^2)+(H178^2)+(H179^2))","v":22},{"$f":"I176+I177+I178+I179","v":0},{"$f":"SQRT((J176^2)+(J177^2)+(J178^2)+(J179^2))","v":30},{"$f":"K176+K177+K178+K179","v":0},{"$f":"SQRT((L176^2)+(L177^2)+(L178^2)+(L179^2))","v":22},{"$f":"M176+M177+M178+M179","v":0},{"$f":"SQRT((N176^2)+(N177^2)+(N178^2)+(N179^2))","v":22},{"$f":"O176+O177+O178+O179","v":0},{"$f":"SQRT((P176^2)+(P177^2)+(P178^2)+(P179^2))","v":22},{"$f":"Q176+Q177+Q178+Q179","v":93},{"$f":"SQRT((R176^2)+(R177^2)+(R178^2)+(R179^2))","v":53.54437412091022},{"$f":"S176+S177+S178+S179","v":0},{"$f":"SQRT((T176^2)+(T177^2)+(T178^2)+(T179^2))","v":22},{"$f":"U176+U177+U178+U179","v":0},{"$f":"SQRT((V176^2)+(V177^2)+(V178^2)+(V179^2))","v":22},{"$f":"W176+W177+W178+W179","v":0},{"$f":"SQRT((X176^2)+(X177^2)+(X178^2)+(X179^2))","v":22},{"$f":"Y176+Y177+Y178+Y179","v":59},{"$f":"SQRT((Z176^2)+(Z177^2)+(Z178^2)+(Z179^2))","v":45.122056690713912},{"$f":"AA176+AA177+AA178+AA179","v":0},{"$f":"SQRT((AB176^2)+(AB177^2)+(AB178^2)+(AB179^2))","v":22},{"$f":"AC176+AC177+AC178+AC179","v":0},{"$f":"SQRT((AD176^2)+(AD177^2)+(AD178^2)+(AD179^2))","v":22},{"$f":"AE176+AE177+AE178+AE179","v":0},{"$f":"SQRT((AF176^2)+(AF177^2)+(AF178^2)+(AF179^2))","v":34},{"$f":"AG176+AG177+AG178+AG179","v":0},{"$f":"SQRT((AH176^2)+(AH177^2)+(AH178^2)+(AH179^2))","v":30},{"$f":"AI176+AI177+AI178+AI179","v":0},{"$f":"SQRT((AJ176^2)+(AJ177^2)+(AJ178^2)+(AJ179^2))","v":30},{"$f":"AK176+AK177+AK178+AK179","v":0},{"$f":"SQRT((AL176^2)+(AL177^2)+(AL178^2)+(AL179^2))","v":22},{"$f":"AM176+AM177+AM178+AM179","v":0},{"$f":"SQRT((AN176^2)+(AN177^2)+(AN178^2)+(AN179^2))","v":22},{"$f":"AO176+AO177+AO178+AO179","v":0},{"$f":"SQRT((AP176^2)+(AP177^2)+(AP178^2)+(AP179^2))","v":22},{"$f":"AQ176+AQ177+AQ178+AQ179","v":0},{"$f":"SQRT((AR176^2)+(AR177^2)+(AR178^2)+(AR179^2))","v":30},{"$f":"AS176+AS177+AS178+AS179","v":24},{"$f":"SQRT((AT176^2)+(AT177^2)+(AT178^2)+(AT179^2))","v":44.305755833751441},{"$f":"AU176+AU177+AU178+AU179","v":0},{"$f":"SQRT((AV176^2)+(AV177^2)+(AV178^2)+(AV179^2))","v":22},{"$f":"AW176+AW177+AW178+AW179","v":0},{"$f":"SQRT((AX176^2)+(AX177^2)+(AX178^2)+(AX179^2))","v":22},{"$f":"AY176+AY177+AY178+AY179","v":0},{"$f":"SQRT((AZ176^2)+(AZ177^2)+(AZ178^2)+(AZ179^2))","v":22},{"$f":"BA176+BA177+BA178+BA179","v":0},{"$f":"SQRT((BB176^2)+(BB177^2)+(BB178^2)+(BB179^2))","v":22},{"$f":"BC176+BC177+BC178+BC179","v":0},{"$f":"SQRT((BD176^2)+(BD177^2)+(BD178^2)+(BD179^2))","v":22}]
[null,"35.0 percent or more",{"$f":"C180+C181++C182","v":16},{"$f":"SQRT((D180^2)+(D181^2)+(D182^2))","v":25.337718918639855},{"$f":"E180+E181++E182","v":0},{"$f":"SQRT((F180^2)+(F181^2)+(F182^2))","v":19.05255888325765},{"$f":"G180+G181++G182","v":35},{"$f":"SQRT((H180^2)+(H181^2)+(H182^2))","v":33.793490497431605},{"$f":"I180+I181++I182","v":34},{"$f":"SQRT((J180^2)+(J181^2)+(J182^2))","v":37.563279941985897},{"$f":"K180+K181++K182","v":14},{"$f":"SQRT((L180^2)+(L181^2)+(L182^2))","v":21.61018278497431},{"$f":"M180+M181++M182","v":0},{"$f":"SQRT((N180^2)+(N181^2)+(N182^2))","v":19.05255888325765},{"$f":"O180+O181++O182","v":0},{"$f":"SQRT((P180^2)+(P181^2)+(P182^2))","v":19.05255888325765},{"$f":"Q180+Q181++Q182","v":545},{"$f":"SQRT((R180^2)+(R181^2)+(R182^2))","v":171.25711664044798},{"$f":"S180+S181++S182","v":0},{"$f":"SQRT((T180^2)+(T181^2)+(T182^2))","v":19.05255888325765},{"$f":"U180+U181++U182","v":5},{"$f":"SQRT((V180^2)+(V181^2)+(V182^2))","v":17.4928556845359},{"$f":"W180+W181++W182","v":16},{"$f":"SQRT((X180^2)+(X181^2)+(X182^2))","v":25.337718918639855},{"$f":"Y180+Y181++Y182","v":66},{"$f":"SQRT((Z180^2)+(Z181^2)+(Z182^2))","v":45.110974274559844},{"$f":"AA180+AA181++AA182","v":51},{"$f":"SQRT((AB180^2)+(AB181^2)+(AB182^2))","v":50.457903246171455},{"$f":"AC180+AC181++AC182","v":0},{"$f":"SQRT((AD180^2)+(AD181^2)+(AD182^2))","v":19.05255888325765},{"$f":"AE180+AE181++AE182","v":15},{"$f":"SQRT((AF180^2)+(AF181^2)+(AF182^2))","v":35.411862419251548},{"$f":"AG180+AG181++AG182","v":0},{"$f":"SQRT((AH180^2)+(AH181^2)+(AH182^2))","v":25.98076211353316},{"$f":"AI180+AI181++AI182","v":11},{"$f":"SQRT((AJ180^2)+(AJ181^2)+(AJ182^2))","v":27.820855486487112},{"$f":"AK180+AK181++AK182","v":0},{"$f":"SQRT((AL180^2)+(AL181^2)+(AL182^2))","v":19.05255888325765},{"$f":"AM180+AM181++AM182","v":13},{"$f":"SQRT((AN180^2)+(AN181^2)+(AN182^2))","v":26.134268690743959},{"$f":"AO180+AO181++AO182","v":15},{"$f":"SQRT((AP180^2)+(AP181^2)+(AP182^2))","v":27.766886753829642},{"$f":"AQ180+AQ181++AQ182","v":76},{"$f":"SQRT((AR180^2)+(AR181^2)+(AR182^2))","v":81.798532994180277},{"$f":"AS180+AS181++AS182","v":154},{"$f":"SQRT((AT180^2)+(AT181^2)+(AT182^2))","v":99.734647941425052},{"$f":"AU180+AU181++AU182","v":0},{"$f":"SQRT((AV180^2)+(AV181^2)+(AV182^2))","v":19.05255888325765},{"$f":"AW180+AW181++AW182","v":0},{"$f":"SQRT((AX180^2)+(AX181^2)+(AX182^2))","v":19.05255888325765},{"$f":"AY180+AY181++AY182","v":27},{"$f":"SQRT((AZ180^2)+(AZ181^2)+(AZ182^2))","v":32.03123475609393},{"$f":"BA180+BA181++BA182","v":0},{"$f":"SQRT((BB180^2)+(BB181^2)+(BB182^2))","v":19.05255888325765},{"$f":"BC180+BC181++BC182","v":4},{"$f":"SQRT((BD180^2)+(BD181^2)+(BD182^2))","v":16.340134638368191}]
[null,"50.0 percent or more",{"$f":"C182","v":16},20,0,11,35,30,34,31,14,15,0,11,0,11,530,168,0,11,5,8,16,20,53,37,51,48,0,11,15,26,0,15,11,18,0,11,13,21,15,23,76,79,123,85,0,11,0,11,27,28,0,11,4,5]
[null,"Not Computed",0,11,25,34,15,16,0,15,0,11,0,11,0,11,123,83,3,4,0,11,0,11,25,27,0,11,0,11,0,17,0,15,13,21,0,11,0,11,0,11,0,15,0,11,0,11,10,15,12,18,9,15,0,11]
[null,"$10,000 to $19,999:",148,84,31,26,102,58,67,46,8,8,27,14,0,11,1153,208,0,11,0,11,80,59,361,139,174,81,0,11,172,71,19,29,24,27,6,9,102,61,62,55,136,102,140,78,13,21,3,5,54,40,20,22,10,10]
[null,"Less than 30.0 percent",{"$f":"C185+C186+C187","v":55},{"$f":"SQRT((D185^2)+(D186^2)+(D187^2))","v":50.049975024968795},{"$f":"E185+E186+E187","v":0},{"$f":"SQRT((F185^2)+(F186^2)+(F187^2))","v":19.05255888325765},{"$f":"G185+G186+G187","v":31},{"$f":"SQRT((H185^2)+(H186^2)+(H187^2))","v":39.268307832143719},{"$f":"I185+I186+I187","v":9},{"$f":"SQRT((J185^2)+(J186^2)+(J187^2))","v":25.98076211353316},{"$f":"K185+K186+K187","v":0},{"$f":"SQRT((L185^2)+(L186^2)+(L187^2))","v":19.05255888325765},{"$f":"M185+M186+M187","v":13},{"$f":"SQRT((N185^2)+(N186^2)+(N187^2))","v":20.928449536456348},{"$f":"O185+O186+O187","v":0},{"$f":"SQRT((P185^2)+(P186^2)+(P187^2))","v":19.05255888325765},{"$f":"Q185+Q186+Q187","v":194},{"$f":"SQRT((R185^2)+(R186^2)+(R187^2))","v":84.917607125966526},{"$f":"S185+S186+S187","v":0},{"$f":"SQRT((T185^2)+(T186^2)+(T187^2))","v":19.05255888325765},{"$f":"U185+U186+U187","v":0},{"$f":"SQRT((V185^2)+(V186^2)+(V187^2))","v":19.05255888325765},{"$f":"W185+W186+W187","v":0},{"$f":"SQRT((X185^2)+(X186^2)+(X187^2))","v":19.05255888325765},{"$f":"Y185+Y186+Y187","v":36},{"$f":"SQRT((Z185^2)+(Z186^2)+(Z187^2))","v":36.810324638611924},{"$f":"AA185+AA186+AA187","v":64},{"$f":"SQRT((AB185^2)+(AB186^2)+(AB187^2))","v":58.060313467979142},{"$f":"AC185+AC186+AC187","v":0},{"$f":"SQRT((AD185^2)+(AD186^2)+(AD187^2))","v":19.05255888325765},{"$f":"AE185+AE186+AE187","v":30},{"$f":"SQRT((AF185^2)+(AF186^2)+(AF187^2))","v":36.728735344413913},{"$f":"AG185+AG186+AG187","v":0},{"$f":"SQRT((AH185^2)+(AH186^2)+(AH187^2))","v":25.98076211353316},{"$f":"AI185+AI186+AI187","v":0},{"$f":"SQRT((AJ185^2)+(AJ186^2)+(AJ187^2))","v":25.98076211353316},{"$f":"AK185+AK186+AK187","v":0},{"$f":"SQRT((AL185^2)+(AL186^2)+(AL187^2))","v":19.05255888325765},{"$f":"AM185+AM186+AM187","v":26},{"$f":"SQRT((AN185^2)+(AN186^2)+(AN187^2))","v":33.630343441600473},{"$f":"AO185+AO186+AO187","v":0},{"$f":"SQRT((AP185^2)+(AP186^2)+(AP187^2))","v":19.05255888325765},{"$f":"AQ185+AQ186+AQ187","v":51},{"$f":"SQRT((AR185^2)+(AR186^2)+(AR187^2))","v":47.391982444291145},{"$f":"AS185+AS186+AS187","v":22},{"$f":"SQRT((AT185^2)+(AT186^2)+(AT187^2))","v":25.337718918639855},{"$f":"AU185+AU186+AU187","v":0},{"$f":"SQRT((AV185^2)+(AV186^2)+(AV187^2))","v":19.05255888325765},{"$f":"AW185+AW186+AW187","v":0},{"$f":"SQRT((AX185^2)+(AX186^2)+(AX187^2))","v":19.05255888325765},{"$f":"AY185+AY186+AY187","v":24},{"$f":"SQRT((AZ185^2)+(AZ186^2)+(AZ187^2))","v":25.787593916455254},{"$f":"BA185+BA186+BA187","v":0},{"$f":"SQRT((BB185^2)+(BB186^2)+(BB187^2))","v":19.05255888325765},{"$f":"BC185+BC186+BC187","v":0},{"$f":"SQRT((BD185^2)+(BD186^2)+(BD187^2))","v":19.05255888325765}]
[null,"More than 30.0 percent",{"$f":"C188+C189+C190+C191","v":93},{"$f":"SQRT((D188^2)+(D189^2)+(D190^2)+(D191^2))","v":78.351770879795694},{"$f":"E188+E189+E190+E191","v":25},{"$f":"SQRT((F188^2)+(F189^2)+(F190^2)+(F191^2))","v":30.643106892089126},{"$f":"G188+G189+G190+G191","v":71},{"$f":"SQRT((H188^2)+(H189^2)+(H190^2)+(H191^2))","v":50.714889332423866},{"$f":"I188+I189+I190+I191","v":58},{"$f":"SQRT((J188^2)+(J189^2)+(J190^2)+(J191^2))","v":52.829915767489162},{"$f":"K188+K189+K190+K191","v":8},{"$f":"SQRT((L188^2)+(L189^2)+(L190^2)+(L191^2))","v":17.406895185529212},{"$f":"M188+M189+M190+M191","v":14},{"$f":"SQRT((N188^2)+(N189^2)+(N190^2)+(N191^2))","v":23.065125189341593},{"$f":"O188+O189+O190+O191","v":0},{"$f":"SQRT((P188^2)+(P189^2)+(P190^2)+(P191^2))","v":22},{"$f":"Q188+Q189+Q190+Q191","v":905},{"$f":"SQRT((R188^2)+(R189^2)+(R190^2)+(R191^2))","v":195.34328757344082},{"$f":"S188+S189+S190+S191","v":0},{"$f":"SQRT((T188^2)+(T189^2)+(T190^2)+(T191^2))","v":22},{"$f":"U188+U189+U190+U191","v":0},{"$f":"SQRT((V188^2)+(V189^2)+(V190^2)+(V191^2))","v":22},{"$f":"W188+W189+W190+W191","v":49},{"$f":"SQRT((X188^2)+(X189^2)+(X190^2)+(X191^2))","v":47.780749261601159},{"$f":"Y188+Y189+Y190+Y191","v":305},{"$f":"SQRT((Z188^2)+(Z189^2)+(Z190^2)+(Z191^2))","v":143.77065069060515},{"$f":"AA188+AA189+AA190+AA191","v":100},{"$f":"SQRT((AB188^2)+(AB189^2)+(AB190^2)+(AB191^2))","v":64.668384856898967},{"$f":"AC188+AC189+AC190+AC191","v":0},{"$f":"SQRT((AD188^2)+(AD189^2)+(AD190^2)+(AD191^2))","v":22},{"$f":"AE188+AE189+AE190+AE191","v":117},{"$f":"SQRT((AF188^2)+(AF189^2)+(AF190^2)+(AF191^2))","v":62.761453138052822},{"$f":"AG188+AG189+AG190+AG191","v":0},{"$f":"SQRT((AH188^2)+(AH189^2)+(AH190^2)+(AH191^2))","v":30},{"$f":"AI188+AI189+AI190+AI191","v":24},{"$f":"SQRT((AJ188^2)+(AJ189^2)+(AJ190^2)+(AJ191^2))","v":37.469987990390386},{"$f":"AK188+AK189+AK190+AK191","v":0},{"$f":"SQRT((AL188^2)+(AL189^2)+(AL190^2)+(AL191^2))","v":22},{"$f":"AM188+AM189+AM190+AM191","v":55},{"$f":"SQRT((AN188^2)+(AN189^2)+(AN190^2)+(AN191^2))","v":54.166410255803363},{"$f":"AO188+AO189+AO190+AO191","v":62},{"$f":"SQRT((AP188^2)+(AP189^2)+(AP190^2)+(AP191^2))","v":61.40846847137616},{"$f":"AQ188+AQ189+AQ190+AQ191","v":85},{"$f":"SQRT((AR188^2)+(AR189^2)+(AR190^2)+(AR191^2))","v":96.56086163658648},{"$f":"AS188+AS189+AS190+AS191","v":118},{"$f":"SQRT((AT188^2)+(AT189^2)+(AT190^2)+(AT191^2))","v":74.505033387013526},{"$f":"AU188+AU189+AU190+AU191","v":13},{"$f":"SQRT((AV188^2)+(AV189^2)+(AV190^2)+(AV191^2))","v":28.354893757515651},{"$f":"AW188+AW189+AW190+AW191","v":0},{"$f":"SQRT((AX188^2)+(AX189^2)+(AX190^2)+(AX191^2))","v":22},{"$f":"AY188+AY189+AY190+AY191","v":30},{"$f":"SQRT((AZ188^2)+(AZ189^2)+(AZ190^2)+(AZ191^2))","v":36.097091295560091},{"$f":"BA188+BA189+BA190+BA191","v":20},{"$f":"SQRT((BB188^2)+(BB189^2)+(BB190^2)+(BB191^2))","v":26.888659319497503},{"$f":"BC188+BC189+BC190+BC191","v":10},{"$f":"SQRT((BD188^2)+(BD189^2)+(BD190^2)+(BD191^2))","v":21.517434791350013}]
[null,"Less Than 35% of HH Income",{"$f":"C185+C186+C187+C188","v":55},{"$f":"SQRT((D185^2)+(D186^2)+(D187^2)+(D188^2))","v":51.244511901275828},{"$f":"E185+E186+E187+E188","v":0},{"$f":"SQRT((F185^2)+(F186^2)+(F187^2)+(F188^2))","v":22},{"$f":"G185+G186+G187+G188","v":37},{"$f":"SQRT((H185^2)+(H186^2)+(H187^2)+(H188^2))","v":40.779897008207364},{"$f":"I185+I186+I187+I188","v":9},{"$f":"SQRT((J185^2)+(J186^2)+(J187^2)+(J188^2))","v":30},{"$f":"K185+K186+K187+K188","v":4},{"$f":"SQRT((L185^2)+(L186^2)+(L187^2)+(L188^2))","v":19.974984355438178},{"$f":"M185+M186+M187+M188","v":13},{"$f":"SQRT((N185^2)+(N186^2)+(N187^2)+(N188^2))","v":23.643180835073778},{"$f":"O185+O186+O187+O188","v":0},{"$f":"SQRT((P185^2)+(P186^2)+(P187^2)+(P188^2))","v":22},{"$f":"Q185+Q186+Q187+Q188","v":225},{"$f":"SQRT((R185^2)+(R186^2)+(R187^2)+(R188^2))","v":87.72114910328068},{"$f":"S185+S186+S187+S188","v":0},{"$f":"SQRT((T185^2)+(T186^2)+(T187^2)+(T188^2))","v":22},{"$f":"U185+U186+U187+U188","v":0},{"$f":"SQRT((V185^2)+(V186^2)+(V187^2)+(V188^2))","v":22},{"$f":"W185+W186+W187+W188","v":8},{"$f":"SQRT((X185^2)+(X186^2)+(X187^2)+(X188^2))","v":23.065125189341593},{"$f":"Y185+Y186+Y187+Y188","v":105},{"$f":"SQRT((Z185^2)+(Z186^2)+(Z187^2)+(Z188^2))","v":71.246052522227501},{"$f":"AA185+AA186+AA187+AA188","v":98},{"$f":"SQRT((AB185^2)+(AB186^2)+(AB187^2)+(AB188^2))","v":69.942833800182839},{"$f":"AC185+AC186+AC187+AC188","v":0},{"$f":"SQRT((AD185^2)+(AD186^2)+(AD187^2)+(AD188^2))","v":22},{"$f":"AE185+AE186+AE187+AE188","v":39},{"$f":"SQRT((AF185^2)+(AF186^2)+(AF187^2)+(AF188^2))","v":39.673668849754748},{"$f":"AG185+AG186+AG187+AG188","v":0},{"$f":"SQRT((AH185^2)+(AH186^2)+(AH187^2)+(AH188^2))","v":30},{"$f":"AI185+AI186+AI187+AI188","v":0},{"$f":"SQRT((AJ185^2)+(AJ186^2)+(AJ187^2)+(AJ188^2))","v":30},{"$f":"AK185+AK186+AK187+AK188","v":0},{"$f":"SQRT((AL185^2)+(AL186^2)+(AL187^2)+(AL188^2))","v":22},{"$f":"AM185+AM186+AM187+AM188","v":41},{"$f":"SQRT((AN185^2)+(AN186^2)+(AN187^2)+(AN188^2))","v":41.315856520227193},{"$f":"AO185+AO186+AO187+AO188","v":0},{"$f":"SQRT((AP185^2)+(AP186^2)+(AP187^2)+(AP188^2))","v":22},{"$f":"AQ185+AQ186+AQ187+AQ188","v":51},{"$f":"SQRT((AR185^2)+(AR186^2)+(AR187^2)+(AR188^2))","v":49.70915408654627},{"$f":"AS185+AS186+AS187+AS188","v":38},{"$f":"SQRT((AT185^2)+(AT186^2)+(AT187^2)+(AT188^2))","v":31.670175244226233},{"$f":"AU185+AU186+AU187+AU188","v":0},{"$f":"SQRT((AV185^2)+(AV186^2)+(AV187^2)+(AV188^2))","v":22},{"$f":"AW185+AW186+AW187+AW188","v":0},{"$f":"SQRT((AX185^2)+(AX186^2)+(AX187^2)+(AX188^2))","v":22},{"$f":"AY185+AY186+AY187+AY188","v":24},{"$f":"SQRT((AZ185^2)+(AZ186^2)+(AZ187^2)+(AZ188^2))","v":28.035691537752374},{"$f":"BA185+BA186+BA187+BA188","v":0},{"$f":"SQRT((BB185^2)+(BB186^2)+(BB187^2)+(BB188^2))","v":22},{"$f":"BC185+BC186+BC187+BC188","v":0},{"$f":"SQRT((BD185^2)+(BD186^2)+(BD187^2)+(BD188^2))","v":22}]
[null,"35.0 percent or more",{"$f":"C189+C190++C191","v":93},{"$f":"SQRT((D189^2)+(D190^2)+(D191^2))","v":77.575769412877889},{"$f":"E189+E190++E191","v":25},{"$f":"SQRT((F189^2)+(F190^2)+(F191^2))","v":28.600699292150182},{"$f":"G189+G190++G191","v":65},{"$f":"SQRT((H189^2)+(H190^2)+(H191^2))","v":49.507575177946251},{"$f":"I189+I190++I191","v":58},{"$f":"SQRT((J189^2)+(J190^2)+(J191^2))","v":50.655700567655757},{"$f":"K189+K190++K191","v":4},{"$f":"SQRT((L189^2)+(L190^2)+(L191^2))","v":16.340134638368191},{"$f":"M189+M190++M191","v":14},{"$f":"SQRT((N189^2)+(N190^2)+(N191^2))","v":20.273134932713294},{"$f":"O189+O190++O191","v":0},{"$f":"SQRT((P189^2)+(P190^2)+(P191^2))","v":19.05255888325765},{"$f":"Q189+Q190++Q191","v":874},{"$f":"SQRT((R189^2)+(R190^2)+(R191^2))","v":194.10048943781672},{"$f":"S189+S190++S191","v":0},{"$f":"SQRT((T189^2)+(T190^2)+(T191^2))","v":19.05255888325765},{"$f":"U189+U190++U191","v":0},{"$f":"SQRT((V189^2)+(V190^2)+(V191^2))","v":19.05255888325765},{"$f":"W189+W190++W191","v":41},{"$f":"SQRT((X189^2)+(X190^2)+(X191^2))","v":45.978255730290599},{"$f":"Y189+Y190++Y191","v":236},{"$f":"SQRT((Z189^2)+(Z190^2)+(Z191^2))","v":130.18832512940628},{"$f":"AA189+AA190++AA191","v":66},{"$f":"SQRT((AB189^2)+(AB190^2)+(AB191^2))","v":51.584881506115721},{"$f":"AC189+AC190++AC191","v":0},{"$f":"SQRT((AD189^2)+(AD190^2)+(AD191^2))","v":19.05255888325765},{"$f":"AE189+AE190++AE191","v":108},{"$f":"SQRT((AF189^2)+(AF190^2)+(AF191^2))","v":60.94259594077036},{"$f":"AG189+AG190++AG191","v":0},{"$f":"SQRT((AH189^2)+(AH190^2)+(AH191^2))","v":25.98076211353316},{"$f":"AI189+AI190++AI191","v":24},{"$f":"SQRT((AJ189^2)+(AJ190^2)+(AJ191^2))","v":34.336569426778794},{"$f":"AK189+AK190++AK191","v":0},{"$f":"SQRT((AL189^2)+(AL190^2)+(AL191^2))","v":19.05255888325765},{"$f":"AM189+AM190++AM191","v":40},{"$f":"SQRT((AN189^2)+(AN190^2)+(AN191^2))","v":48.559242168715933},{"$f":"AO189+AO190++AO191","v":62},{"$f":"SQRT((AP189^2)+(AP190^2)+(AP191^2))","v":60.415229867972862},{"$f":"AQ189+AQ190++AQ191","v":85},{"$f":"SQRT((AR189^2)+(AR190^2)+(AR191^2))","v":95.388678573507875},{"$f":"AS189+AS190++AS191","v":102},{"$f":"SQRT((AT189^2)+(AT190^2)+(AT191^2))","v":72.041654617311508},{"$f":"AU189+AU190++AU191","v":13},{"$f":"SQRT((AV189^2)+(AV190^2)+(AV191^2))","v":26.134268690743959},{"$f":"AW189+AW190++AW191","v":0},{"$f":"SQRT((AX189^2)+(AX190^2)+(AX191^2))","v":19.05255888325765},{"$f":"AY189+AY190++AY191","v":30},{"$f":"SQRT((AZ189^2)+(AZ190^2)+(AZ191^2))","v":34.380226875342167},{"$f":"BA189+BA190++BA191","v":20},{"$f":"SQRT((BB189^2)+(BB190^2)+(BB191^2))","v":24.535688292770594},{"$f":"BC189+BC190++BC191","v":10},{"$f":"SQRT((BD189^2)+(BD190^2)+(BD191^2))","v":18.493242008906929}]
[null,"50.0 percent or more",{"$f":"C191","v":93},{"$f":"D191","v":76},{"$f":"E191","v":25},{"$f":"F191","v":24},{"$f":"G191","v":65},47,{"$f":"I191","v":58},46,{"$f":"K191","v":4},5,{"$f":"M191","v":14},13,{"$f":"O191","v":0},11,{"$f":"Q191","v":732},163,{"$f":"S191","v":0},11,{"$f":"U191","v":0},11,{"$f":"W191","v":33},43,{"$f":"Y191","v":193},110,{"$f":"AA191","v":41},40,{"$f":"AC191","v":0},11,{"$f":"AE191","v":73},53,{"$f":"AG191","v":0},15,{"$f":"AI191","v":24},27,{"$f":"AK191","v":0},11,{"$f":"AM191","v":40},46,{"$f":"AO191","v":40},48,{"$f":"AQ191","v":85},93,{"$f":"AS191","v":94},70,{"$f":"AU191","v":13},21,{"$f":"AW191","v":0},11,{"$f":"AY191","v":10},10,{"$f":"BA191","v":10},16,{"$f":"BC191","v":10},10]
[null,"Not Computed",{"$f":"C192","v":0},11,6,9,0,11,0,15,0,11,0,11,0,11,54,54,0,11,0,11,31,40,20,23,10,17,0,11,25,29,19,29,0,15,6,9,21,30,0,11,0,15,0,11,0,11,3,5,0,11,0,11,0,11]
[null,"$20,000 to $34,999:",98,56,34,30,72,52,104,42,14,13,17,27,0,11,1811,241,12,11,22,26,103,70,373,114,131,72,7,7,229,86,33,33,31,35,0,11,76,59,126,77,152,99,140,77,0,11,26,24,28,15,10,16,35,25]
[null,"Less than 30.0 percent",{"$f":"C194+C195+C196","v":47},{"$f":"SQRT((D194^2)+(D195^2)+(D196^2))","v":47.507894080878813},{"$f":"E194+E195+E196","v":0},{"$f":"SQRT((F194^2)+(F195^2)+(F196^2))","v":19.05255888325765},{"$f":"G194+G195+G196","v":0},{"$f":"SQRT((H194^2)+(H195^2)+(H196^2))","v":19.05255888325765},{"$f":"I194+I195+I196","v":0},{"$f":"SQRT((J194^2)+(J195^2)+(J196^2))","v":25.98076211353316},{"$f":"K194+K195+K196","v":4},{"$f":"SQRT((L194^2)+(L195^2)+(L196^2))","v":16.673332000533065},{"$f":"M194+M195+M196","v":0},{"$f":"SQRT((N194^2)+(N195^2)+(N196^2))","v":19.05255888325765},{"$f":"O194+O195+O196","v":0},{"$f":"SQRT((P194^2)+(P195^2)+(P196^2))","v":19.05255888325765},{"$f":"Q194+Q195+Q196","v":317},{"$f":"SQRT((R194^2)+(R195^2)+(R196^2))","v":111.64676439557037},{"$f":"S194+S195+S196","v":0},{"$f":"SQRT((T194^2)+(T195^2)+(T196^2))","v":19.05255888325765},{"$f":"U194+U195+U196","v":0},{"$f":"SQRT((V194^2)+(V195^2)+(V196^2))","v":19.05255888325765},{"$f":"W194+W195+W196","v":14},{"$f":"SQRT((X194^2)+(X195^2)+(X196^2))","v":19.949937343260004},{"$f":"Y194+Y195+Y196","v":96},{"$f":"SQRT((Z194^2)+(Z195^2)+(Z196^2))","v":63.513778032801667},{"$f":"AA194+AA195+AA196","v":26},{"$f":"SQRT((AB194^2)+(AB195^2)+(AB196^2))","v":36.4828726939094},{"$f":"AC194+AC195+AC196","v":0},{"$f":"SQRT((AD194^2)+(AD195^2)+(AD196^2))","v":19.05255888325765},{"$f":"AE194+AE195+AE196","v":37},{"$f":"SQRT((AF194^2)+(AF195^2)+(AF196^2))","v":40.174618853201331},{"$f":"AG194+AG195+AG196","v":10},{"$f":"SQRT((AH194^2)+(AH195^2)+(AH196^2))","v":27.184554438136374},{"$f":"AI194+AI195+AI196","v":0},{"$f":"SQRT((AJ194^2)+(AJ195^2)+(AJ196^2))","v":25.98076211353316},{"$f":"AK194+AK195+AK196","v":0},{"$f":"SQRT((AL194^2)+(AL195^2)+(AL196^2))","v":19.05255888325765},{"$f":"AM194+AM195+AM196","v":18},{"$f":"SQRT((AN194^2)+(AN195^2)+(AN196^2))","v":32.03123475609393},{"$f":"AO194+AO195+AO196","v":41},{"$f":"SQRT((AP194^2)+(AP195^2)+(AP196^2))","v":45.727453460694704},{"$f":"AQ194+AQ195+AQ196","v":51},{"$f":"SQRT((AR194^2)+(AR195^2)+(AR196^2))","v":49.527769988159172},{"$f":"AS194+AS195+AS196","v":57},{"$f":"SQRT((AT194^2)+(AT195^2)+(AT196^2))","v":49.050993873722888},{"$f":"AU194+AU195+AU196","v":0},{"$f":"SQRT((AV194^2)+(AV195^2)+(AV196^2))","v":19.05255888325765},{"$f":"AW194+AW195+AW196","v":4},{"$f":"SQRT((AX194^2)+(AX195^2)+(AX196^2))","v":16.673332000533065},{"$f":"AY194+AY195+AY196","v":13},{"$f":"SQRT((AZ194^2)+(AZ195^2)+(AZ196^2))","v":16.031219541881399},{"$f":"BA194+BA195+BA196","v":0},{"$f":"SQRT((BB194^2)+(BB195^2)+(BB196^2))","v":19.05255888325765},{"$f":"BC194+BC195+BC196","v":0},{"$f":"SQRT((BD194^2)+(BD195^2)+(BD196^2))","v":19.05255888325765}]
[null,"More than 30.0 percent",{"$f":"C197+C198+C199+C200","v":51},{"$f":"SQRT((D197^2)+(D198^2)+(D199^2)+(D200^2))","v":33.421549934136806},{"$f":"E197+E198+E199+E200","v":27},{"$f":"SQRT((F197^2)+(F198^2)+(F199^2)+(F200^2))","v":31.937438845342623},{"$f":"G197+G198+G199+G200","v":72},{"$f":"SQRT((H197^2)+(H198^2)+(H199^2)+(H200^2))","v":52.792044855262048},{"$f":"I197+I198+I199+I200","v":94},{"$f":"SQRT((J197^2)+(J198^2)+(J199^2)+(J200^2))","v":42.249260348555218},{"$f":"K197+K198+K199+K200","v":10},{"$f":"SQRT((L197^2)+(L198^2)+(L199^2)+(L200^2))","v":18.920887928424502},{"$f":"M197+M198+M199+M200","v":0},{"$f":"SQRT((N197^2)+(N198^2)+(N199^2)+(N200^2))","v":22},{"$f":"O197+O198+O199+O200","v":0},{"$f":"SQRT((P197^2)+(P198^2)+(P199^2)+(P200^2))","v":22},{"$f":"Q197+Q198+Q199+Q200","v":1474},{"$f":"SQRT((R197^2)+(R198^2)+(R199^2)+(R200^2))","v":279.42619776964364},{"$f":"S197+S198+S199+S200","v":9},{"$f":"SQRT((T197^2)+(T198^2)+(T199^2)+(T200^2))","v":21.517434791350013},{"$f":"U197+U198+U199+U200","v":22},{"$f":"SQRT((V197^2)+(V198^2)+(V199^2)+(V200^2))","v":32.233522922572398},{"$f":"W197+W198+W199+W200","v":89},{"$f":"SQRT((X197^2)+(X198^2)+(X199^2)+(X200^2))","v":64.938432380216881},{"$f":"Y197+Y198+Y199+Y200","v":256},{"$f":"SQRT((Z197^2)+(Z198^2)+(Z199^2)+(Z200^2))","v":112.47666424641157},{"$f":"AA197+AA198+AA199+AA200","v":89},{"$f":"SQRT((AB197^2)+(AB198^2)+(AB199^2)+(AB200^2))","v":54.890800686453829},{"$f":"AC197+AC198+AC199+AC200","v":3},{"$f":"SQRT((AD197^2)+(AD198^2)+(AD199^2)+(AD200^2))","v":19.467922333931785},{"$f":"AE197+AE198+AE199+AE200","v":175},{"$f":"SQRT((AF197^2)+(AF198^2)+(AF199^2)+(AF200^2))","v":80.888812576276578},{"$f":"AG197+AG198+AG199+AG200","v":10},{"$f":"SQRT((AH197^2)+(AH198^2)+(AH199^2)+(AH200^2))","v":31.048349392520048},{"$f":"AI197+AI198+AI199+AI200","v":31},{"$f":"SQRT((AJ197^2)+(AJ198^2)+(AJ199^2)+(AJ200^2))","v":43.588989435406738},{"$f":"AK197+AK198+AK199+AK200","v":0},{"$f":"SQRT((AL197^2)+(AL198^2)+(AL199^2)+(AL200^2))","v":22},{"$f":"AM197+AM198+AM199+AM200","v":50},{"$f":"SQRT((AN197^2)+(AN198^2)+(AN199^2)+(AN200^2))","v":42.67317658670374},{"$f":"AO197+AO198+AO199+AO200","v":85},{"$f":"SQRT((AP197^2)+(AP198^2)+(AP199^2)+(AP200^2))","v":71.246052522227501},{"$f":"AQ197+AQ198+AQ199+AQ200","v":101},{"$f":"SQRT((AR197^2)+(AR198^2)+(AR199^2)+(AR200^2))","v":91.760557975635692},{"$f":"AS197+AS198+AS199+AS200","v":83},{"$f":"SQRT((AT197^2)+(AT198^2)+(AT199^2)+(AT200^2))","v":66.603303221386852},{"$f":"AU197+AU198+AU199+AU200","v":0},{"$f":"SQRT((AV197^2)+(AV198^2)+(AV199^2)+(AV200^2))","v":22},{"$f":"AW197+AW198+AW199+AW200","v":22},{"$f":"SQRT((AX197^2)+(AX198^2)+(AX199^2)+(AX200^2))","v":29.866369046136157},{"$f":"AY197+AY198+AY199+AY200","v":15},{"$f":"SQRT((AZ197^2)+(AZ198^2)+(AZ199^2)+(AZ200^2))","v":19.672315572906001},{"$f":"BA197+BA198+BA199+BA200","v":10},{"$f":"SQRT((BB197^2)+(BB198^2)+(BB199^2)+(BB200^2))","v":24.879710609249457},{"$f":"BC197+BC198+BC199+BC200","v":30},{"$f":"SQRT((BD197^2)+(BD198^2)+(BD199^2)+(BD200^2))","v":28.879058156387302}]
[null,"Less Than 35% of HH Income",{"$f":"C194+C195+C196+C197","v":64},{"$f":"SQRT((D194^2)+(D195^2)+(D196^2)+(D197^2))","v":51.546095875439491},{"$f":"E194+E195+E196+E197","v":0},{"$f":"SQRT((F194^2)+(F195^2)+(F196^2)+(F197^2))","v":22},{"$f":"G194+G195+G196+G197","v":29},{"$f":"SQRT((H194^2)+(H195^2)+(H196^2)+(H197^2))","v":37.242448899072144},{"$f":"I194+I195+I196+I197","v":22},{"$f":"SQRT((J194^2)+(J195^2)+(J196^2)+(J197^2))","v":34.698703145794944},{"$f":"K194+K195+K196+K197","v":11},{"$f":"SQRT((L194^2)+(L195^2)+(L196^2)+(L197^2))","v":19.442222095223581},{"$f":"M194+M195+M196+M197","v":0},{"$f":"SQRT((N194^2)+(N195^2)+(N196^2)+(N197^2))","v":22},{"$f":"O194+O195+O196+O197","v":0},{"$f":"SQRT((P194^2)+(P195^2)+(P196^2)+(P197^2))","v":22},{"$f":"Q194+Q195+Q196+Q197","v":631},{"$f":"SQRT((R194^2)+(R195^2)+(R196^2)+(R197^2))","v":151.90128373387765},{"$f":"S194+S195+S196+S197","v":0},{"$f":"SQRT((T194^2)+(T195^2)+(T196^2)+(T197^2))","v":22},{"$f":"U194+U195+U196+U197","v":22},{"$f":"SQRT((V194^2)+(V195^2)+(V196^2)+(V197^2))","v":32.233522922572398},{"$f":"W194+W195+W196+W197","v":21},{"$f":"SQRT((X194^2)+(X195^2)+(X196^2)+(X197^2))","v":23.280893453645632},{"$f":"Y194+Y195+Y196+Y197","v":129},{"$f":"SQRT((Z194^2)+(Z195^2)+(Z196^2)+(Z197^2))","v":71.119617546778187},{"$f":"AA194+AA195+AA196+AA197","v":38},{"$f":"SQRT((AB194^2)+(AB195^2)+(AB196^2)+(AB197^2))","v":40.681691213615984},{"$f":"AC194+AC195+AC196+AC197","v":0},{"$f":"SQRT((AD194^2)+(AD195^2)+(AD196^2)+(AD197^2))","v":22},{"$f":"AE194+AE195+AE196+AE197","v":37},{"$f":"SQRT((AF194^2)+(AF195^2)+(AF196^2)+(AF197^2))","v":43.623388222374473},{"$f":"AG194+AG195+AG196+AG197","v":10},{"$f":"SQRT((AH194^2)+(AH195^2)+(AH196^2)+(AH197^2))","v":31.048349392520048},{"$f":"AI194+AI195+AI196+AI197","v":0},{"$f":"SQRT((AJ194^2)+(AJ195^2)+(AJ196^2)+(AJ197^2))","v":30},{"$f":"AK194+AK195+AK196+AK197","v":0},{"$f":"SQRT((AL194^2)+(AL195^2)+(AL196^2)+(AL197^2))","v":22},{"$f":"AM194+AM195+AM196+AM197","v":33},{"$f":"SQRT((AN194^2)+(AN195^2)+(AN196^2)+(AN197^2))","v":40.024992192379003},{"$f":"AO194+AO195+AO196+AO197","v":41},{"$f":"SQRT((AP194^2)+(AP195^2)+(AP196^2)+(AP197^2))","v":47.031904065219386},{"$f":"AQ194+AQ195+AQ196+AQ197","v":81},{"$f":"SQRT((AR194^2)+(AR195^2)+(AR196^2)+(AR197^2))","v":60.646516800225221},{"$f":"AS194+AS195+AS196+AS197","v":87},{"$f":"SQRT((AT194^2)+(AT195^2)+(AT196^2)+(AT197^2))","v":66.565756962570475},{"$f":"AU194+AU195+AU196+AU197","v":0},{"$f":"SQRT((AV194^2)+(AV195^2)+(AV196^2)+(AV197^2))","v":22},{"$f":"AW194+AW195+AW196+AW197","v":4},{"$f":"SQRT((AX194^2)+(AX195^2)+(AX196^2)+(AX197^2))","v":19.974984355438178},{"$f":"AY194+AY195+AY196+AY197","v":13},{"$f":"SQRT((AZ194^2)+(AZ195^2)+(AZ196^2)+(AZ197^2))","v":19.442222095223581},{"$f":"BA194+BA195+BA196+BA197","v":0},{"$f":"SQRT((BB194^2)+(BB195^2)+(BB196^2)+(BB197^2))","v":22},{"$f":"BC194+BC195+BC196+BC197","v":3},{"$f":"SQRT((BD194^2)+(BD195^2)+(BD196^2)+(BD197^2))","v":19.467922333931785}]
[null,"35.0 percent or more",{"$f":"C198+C199+C200","v":34},{"$f":"SQRT((D198^2)+(D199^2)+(D200^2))","v":26.776855677991769},{"$f":"E198+E199+E200","v":27},{"$f":"SQRT((F198^2)+(F199^2)+(F200^2))","v":29.983328701129899},{"$f":"G198+G199+G200","v":43},{"$f":"SQRT((H198^2)+(H199^2)+(H200^2))","v":41.98809355043403},{"$f":"I198+I199+I200","v":72},{"$f":"SQRT((J198^2)+(J199^2)+(J200^2))","v":35.440090293338699},{"$f":"K198+K199+K200","v":3},{"$f":"SQRT((L198^2)+(L199^2)+(L200^2))","v":16.06237840420901},{"$f":"M198+M199+M200","v":0},{"$f":"SQRT((N198^2)+(N199^2)+(N200^2))","v":19.05255888325765},{"$f":"O198+O199+O200","v":0},{"$f":"SQRT((P198^2)+(P199^2)+(P200^2))","v":19.05255888325765},{"$f":"Q198+Q199+Q200","v":1160},{"$f":"SQRT((R198^2)+(R199^2)+(R200^2))","v":259.74987969198366},{"$f":"S198+S199+S200","v":9},{"$f":"SQRT((T198^2)+(T199^2)+(T200^2))","v":18.493242008906929},{"$f":"U198+U199+U200","v":0},{"$f":"SQRT((V198^2)+(V199^2)+(V200^2))","v":19.05255888325765},{"$f":"W198+W199+W200","v":82},{"$f":"SQRT((X198^2)+(X199^2)+(X200^2))","v":63.820059542435402},{"$f":"Y198+Y199+Y200","v":223},{"$f":"SQRT((Z198^2)+(Z199^2)+(Z200^2))","v":107.82856764327346},{"$f":"AA198+AA199+AA200","v":77},{"$f":"SQRT((AB198^2)+(AB199^2)+(AB200^2))","v":51.855568649856693},{"$f":"AC198+AC199+AC200","v":3},{"$f":"SQRT((AD198^2)+(AD199^2)+(AD200^2))","v":16.06237840420901},{"$f":"AE198+AE199+AE200","v":175},{"$f":"SQRT((AF198^2)+(AF199^2)+(AF200^2))","v":79.08223567907018},{"$f":"AG198+AG199+AG200","v":10},{"$f":"SQRT((AH198^2)+(AH199^2)+(AH200^2))","v":27.184554438136374},{"$f":"AI198+AI199+AI200","v":31},{"$f":"SQRT((AJ198^2)+(AJ199^2)+(AJ200^2))","v":40.926763859362246},{"$f":"AK198+AK199+AK200","v":0},{"$f":"SQRT((AL198^2)+(AL199^2)+(AL200^2))","v":19.05255888325765},{"$f":"AM198+AM199+AM200","v":35},{"$f":"SQRT((AN198^2)+(AN199^2)+(AN200^2))","v":35.284557528754704},{"$f":"AO198+AO199+AO200","v":85},{"$f":"SQRT((AP198^2)+(AP199^2)+(AP200^2))","v":70.391760881512269},{"$f":"AQ198+AQ199+AQ200","v":71},{"$f":"SQRT((AR198^2)+(AR199^2)+(AR200^2))","v":84.823345842993007},{"$f":"AS198+AS199+AS200","v":53},{"$f":"SQRT((AT198^2)+(AT199^2)+(AT200^2))","v":49.101934788763671},{"$f":"AU198+AU199+AU200","v":0},{"$f":"SQRT((AV198^2)+(AV199^2)+(AV200^2))","v":19.05255888325765},{"$f":"AW198+AW199+AW200","v":22},{"$f":"SQRT((AX198^2)+(AX199^2)+(AX200^2))","v":27.766886753829642},{"$f":"AY198+AY199+AY200","v":15},{"$f":"SQRT((AZ198^2)+(AZ199^2)+(AZ200^2))","v":16.30950643030009},{"$f":"BA198+BA199+BA200","v":10},{"$f":"SQRT((BB198^2)+(BB199^2)+(BB200^2))","v":22.315913604421397},{"$f":"BC198+BC199+BC200","v":27},{"$f":"SQRT((BD198^2)+(BD199^2)+(BD200^2))","v":28.600699292150182}]
[null,"50.0 percent or more",{"$f":"C200","v":0},11,0,11,0,11,25,18,0,11,0,11,0,11,372,118,0,11,0,11,16,20,143,89,22,32,3,4,107,67,0,15,0,15,0,11,29,32,31,47,55,79,0,11,0,11,22,23,0,11,0,11,27,24]
[null,"Not Computed",0,11,7,11,0,11,10,15,0,11,17,27,0,11,20,19,3,5,0,11,0,11,21,22,16,24,4,6,17,19,13,22,0,15,0,11,8,12,0,11,0,15,0,11,0,11,0,11,0,11,0,11,5,7]
[null,"$35,000 to $49,999:",8,13,7,10,50,42,25,24,5,6,0,11,40,28,1309,263,14,21,13,12,21,24,309,116,43,38,9,8,143,101,101,77,57,66,4,6,28,34,56,37,70,55,82,59,4,5,10,16,28,20,21,17,19,21]
[null,"Less than 30.0 percent",{"$f":"C203+C204+C205","v":0},{"$f":"SQRT((D203^2)+(D204^2)+(D205^2))","v":19.05255888325765},{"$f":"E203+E204+E205","v":7},{"$f":"SQRT((F203^2)+(F204^2)+(F205^2))","v":18.493242008906929},{"$f":"G203+G204+G205","v":36},{"$f":"SQRT((H203^2)+(H204^2)+(H205^2))","v":41.303752856126764},{"$f":"I203+I204+I205","v":0},{"$f":"SQRT((J203^2)+(J204^2)+(J205^2))","v":25.98076211353316},{"$f":"K203+K204+K205","v":0},{"$f":"SQRT((L203^2)+(L204^2)+(L205^2))","v":19.05255888325765},{"$f":"M203+M204+M205","v":0},{"$f":"SQRT((N203^2)+(N204^2)+(N205^2))","v":19.05255888325765},{"$f":"O203+O204+O205","v":13},{"$f":"SQRT((P203^2)+(P204^2)+(P205^2))","v":18.601075237738275},{"$f":"Q203+Q204+Q205","v":677},{"$f":"SQRT((R203^2)+(R204^2)+(R205^2))","v":164.21327595538676},{"$f":"S203+S204+S205","v":14},{"$f":"SQRT((T203^2)+(T204^2)+(T205^2))","v":26.134268690743959},{"$f":"U203+U204+U205","v":7},{"$f":"SQRT((V203^2)+(V204^2)+(V205^2))","v":18.493242008906929},{"$f":"W203+W204+W205","v":17},{"$f":"SQRT((X203^2)+(X204^2)+(X205^2))","v":23.53720459187964},{"$f":"Y203+Y204+Y205","v":225},{"$f":"SQRT((Z203^2)+(Z204^2)+(Z205^2))","v":102.76672613253767},{"$f":"AA203+AA204+AA205","v":43},{"$f":"SQRT((AB203^2)+(AB204^2)+(AB205^2))","v":39.217343102255157},{"$f":"AC203+AC204+AC205","v":4},{"$f":"SQRT((AD203^2)+(AD204^2)+(AD205^2))","v":16.340134638368191},{"$f":"AE203+AE204+AE205","v":29},{"$f":"SQRT((AF203^2)+(AF204^2)+(AF205^2))","v":28.178005607210743},{"$f":"AG203+AG204+AG205","v":77},{"$f":"SQRT((AH203^2)+(AH204^2)+(AH205^2))","v":69.785385289471606},{"$f":"AI203+AI204+AI205","v":45},{"$f":"SQRT((AJ203^2)+(AJ204^2)+(AJ205^2))","v":67.424031324150292},{"$f":"AK203+AK204+AK205","v":0},{"$f":"SQRT((AL203^2)+(AL204^2)+(AL205^2))","v":19.05255888325765},{"$f":"AM203+AM204+AM205","v":0},{"$f":"SQRT((AN203^2)+(AN204^2)+(AN205^2))","v":19.05255888325765},{"$f":"AO203+AO204+AO205","v":35},{"$f":"SQRT((AP203^2)+(AP204^2)+(AP205^2))","v":29.34280150224242},{"$f":"AQ203+AQ204+AQ205","v":55},{"$f":"SQRT((AR203^2)+(AR204^2)+(AR205^2))","v":56.160484328395889},{"$f":"AS203+AS204+AS205","v":68},{"$f":"SQRT((AT203^2)+(AT204^2)+(AT205^2))","v":54.708317466359723},{"$f":"AU203+AU204+AU205","v":4},{"$f":"SQRT((AV203^2)+(AV204^2)+(AV205^2))","v":16.340134638368191},{"$f":"AW203+AW204+AW205","v":10},{"$f":"SQRT((AX203^2)+(AX204^2)+(AX205^2))","v":22.315913604421397},{"$f":"AY203+AY204+AY205","v":19},{"$f":"SQRT((AZ203^2)+(AZ204^2)+(AZ205^2))","v":23.043437243605826},{"$f":"BA203+BA204+BA205","v":7},{"$f":"SQRT((BB203^2)+(BB204^2)+(BB205^2))","v":13.076696830622021},{"$f":"BC203+BC204+BC205","v":0},{"$f":"SQRT((BD203^2)+(BD204^2)+(BD205^2))","v":19.05255888325765}]
[null,"More than 30.0 percent",{"$f":"C206+C207+C208+C209","v":0},{"$f":"SQRT((D206^2)+(D207^2)+(D208^2)+(D209^2))","v":22},{"$f":"E206+E207+E208+E209","v":0},{"$f":"SQRT((F206^2)+(F207^2)+(F208^2)+(F209^2))","v":22},{"$f":"G206+G207+G208+G209","v":14},{"$f":"SQRT((H206^2)+(H207^2)+(H208^2)+(H209^2))","v":22.516660498395403},{"$f":"I206+I207+I208+I209","v":25},{"$f":"SQRT((J206^2)+(J207^2)+(J208^2)+(J209^2))","v":28.354893757515651},{"$f":"K206+K207+K208+K209","v":5},{"$f":"SQRT((L206^2)+(L207^2)+(L208^2)+(L209^2))","v":16.61324772583615},{"$f":"M206+M207+M208+M209","v":0},{"$f":"SQRT((N206^2)+(N207^2)+(N208^2)+(N209^2))","v":22},{"$f":"O206+O207+O208+O209","v":27},{"$f":"SQRT((P206^2)+(P207^2)+(P208^2)+(P209^2))","v":28.948229652260256},{"$f":"Q206+Q207+Q208+Q209","v":522},{"$f":"SQRT((R206^2)+(R207^2)+(R208^2)+(R209^2))","v":147.13938969562162},{"$f":"S206+S207+S208+S209","v":0},{"$f":"SQRT((T206^2)+(T207^2)+(T208^2)+(T209^2))","v":22},{"$f":"U206+U207+U208+U209","v":6},{"$f":"SQRT((V206^2)+(V207^2)+(V208^2)+(V209^2))","v":20.663978319771825},{"$f":"W206+W207+W208+W209","v":4},{"$f":"SQRT((X206^2)+(X207^2)+(X208^2)+(X209^2))","v":21.071307505705477},{"$f":"Y206+Y207+Y208+Y209","v":84},{"$f":"SQRT((Z206^2)+(Z207^2)+(Z208^2)+(Z209^2))","v":68.658575575087482},{"$f":"AA206+AA207+AA208+AA209","v":0},{"$f":"SQRT((AB206^2)+(AB207^2)+(AB208^2)+(AB209^2))","v":22},{"$f":"AC206+AC207+AC208+AC209","v":0},{"$f":"SQRT((AD206^2)+(AD207^2)+(AD208^2)+(AD209^2))","v":22},{"$f":"AE206+AE207+AE208+AE209","v":114},{"$f":"SQRT((AF206^2)+(AF207^2)+(AF208^2)+(AF209^2))","v":101.1632344283238},{"$f":"AG206+AG207+AG208+AG209","v":24},{"$f":"SQRT((AH206^2)+(AH207^2)+(AH208^2)+(AH209^2))","v":45.210618221829257},{"$f":"AI206+AI207+AI208+AI209","v":12},{"$f":"SQRT((AJ206^2)+(AJ207^2)+(AJ208^2)+(AJ209^2))","v":32.186953878862163},{"$f":"AK206+AK207+AK208+AK209","v":4},{"$f":"SQRT((AL206^2)+(AL207^2)+(AL208^2)+(AL209^2))","v":19.974984355438178},{"$f":"AM206+AM207+AM208+AM209","v":8},{"$f":"SQRT((AN206^2)+(AN207^2)+(AN208^2)+(AN209^2))","v":22.516660498395403},{"$f":"AO206+AO207+AO208+AO209","v":9},{"$f":"SQRT((AP206^2)+(AP207^2)+(AP208^2)+(AP209^2))","v":24.248711305964282},{"$f":"AQ206+AQ207+AQ208+AQ209","v":15},{"$f":"SQRT((AR206^2)+(AR207^2)+(AR208^2)+(AR209^2))","v":34.698703145794944},{"$f":"AS206+AS207+AS208+AS209","v":14},{"$f":"SQRT((AT206^2)+(AT207^2)+(AT208^2)+(AT209^2))","v":29.103264421710495},{"$f":"AU206+AU207+AU208+AU209","v":0},{"$f":"SQRT((AV206^2)+(AV207^2)+(AV208^2)+(AV209^2))","v":22},{"$f":"AW206+AW207+AW208+AW209","v":0},{"$f":"SQRT((AX206^2)+(AX207^2)+(AX208^2)+(AX209^2))","v":22},{"$f":"AY206+AY207+AY208+AY209","v":9},{"$f":"SQRT((AZ206^2)+(AZ207^2)+(AZ208^2)+(AZ209^2))","v":18.841443681416774},{"$f":"BA206+BA207+BA208+BA209","v":8},{"$f":"SQRT((BB206^2)+(BB207^2)+(BB208^2)+(BB209^2))","v":23.065125189341593},{"$f":"BC206+BC207+BC208+BC209","v":19},{"$f":"SQRT((BD206^2)+(BD207^2)+(BD208^2)+(BD209^2))","v":25.826343140289914}]
[null,"Less Than 35% of HH Income",{"$f":"C203+C204+C205+C206","v":0},{"$f":"SQRT((D203^2)+(D204^2)+(D205^2)+(D206^2))","v":22},{"$f":"E203+E204+E205+E206","v":7},{"$f":"SQRT((F203^2)+(F204^2)+(F205^2)+(F206^2))","v":21.517434791350013},{"$f":"G203+G204+G205+G206","v":43},{"$f":"SQRT((H203^2)+(H204^2)+(H205^2)+(H206^2))","v":43.011626335213137},{"$f":"I203+I204+I205+I206","v":4},{"$f":"SQRT((J203^2)+(J204^2)+(J205^2)+(J206^2))","v":26.90724809414742},{"$f":"K203+K204+K205+K206","v":2},{"$f":"SQRT((L203^2)+(L204^2)+(L205^2)+(L206^2))","v":19.28730152198591},{"$f":"M203+M204+M205+M206","v":0},{"$f":"SQRT((N203^2)+(N204^2)+(N205^2)+(N206^2))","v":22},{"$f":"O203+O204+O205+O206","v":30},{"$f":"SQRT((P203^2)+(P204^2)+(P205^2)+(P206^2))","v":27.313000567495326},{"$f":"Q203+Q204+Q205+Q206","v":953},{"$f":"SQRT((R203^2)+(R204^2)+(R205^2)+(R206^2))","v":198.77122528172936},{"$f":"S203+S204+S205+S206","v":14},{"$f":"SQRT((T203^2)+(T204^2)+(T205^2)+(T206^2))","v":28.354893757515651},{"$f":"U203+U204+U205+U206","v":13},{"$f":"SQRT((V203^2)+(V204^2)+(V205^2)+(V206^2))","v":20.149441679609886},{"$f":"W203+W204+W205+W206","v":17},{"$f":"SQRT((X203^2)+(X204^2)+(X205^2)+(X206^2))","v":25.98076211353316},{"$f":"Y203+Y204+Y205+Y206","v":250},{"$f":"SQRT((Z203^2)+(Z204^2)+(Z205^2)+(Z206^2))","v":106.78014796768171},{"$f":"AA203+AA204+AA205+AA206","v":43},{"$f":"SQRT((AB203^2)+(AB204^2)+(AB205^2)+(AB206^2))","v":40.730823708832602},{"$f":"AC203+AC204+AC205+AC206","v":4},{"$f":"SQRT((AD203^2)+(AD204^2)+(AD205^2)+(AD206^2))","v":19.697715603592208},{"$f":"AE203+AE204+AE205+AE206","v":48},{"$f":"SQRT((AF203^2)+(AF204^2)+(AF205^2)+(AF206^2))","v":35.749125863438955},{"$f":"AG203+AG204+AG205+AG206","v":77},{"$f":"SQRT((AH203^2)+(AH204^2)+(AH205^2)+(AH206^2))","v":71.379268698971686},{"$f":"AI203+AI204+AI205+AI206","v":57},{"$f":"SQRT((AJ203^2)+(AJ204^2)+(AJ205^2)+(AJ206^2))","v":70.049982155600873},{"$f":"AK203+AK204+AK205+AK206","v":4},{"$f":"SQRT((AL203^2)+(AL204^2)+(AL205^2)+(AL206^2))","v":19.974984355438178},{"$f":"AM203+AM204+AM205+AM206","v":0},{"$f":"SQRT((AN203^2)+(AN204^2)+(AN205^2)+(AN206^2))","v":22},{"$f":"AO203+AO204+AO205+AO206","v":35},{"$f":"SQRT((AP203^2)+(AP204^2)+(AP205^2)+(AP206^2))","v":31.336879231984796},{"$f":"AQ203+AQ204+AQ205+AQ206","v":70},{"$f":"SQRT((AR203^2)+(AR204^2)+(AR205^2)+(AR206^2))","v":60.687725282795036},{"$f":"AS203+AS204+AS205+AS206","v":82},{"$f":"SQRT((AT203^2)+(AT204^2)+(AT205^2)+(AT206^2))","v":58.966091951222275},{"$f":"AU203+AU204+AU205+AU206","v":4},{"$f":"SQRT((AV203^2)+(AV204^2)+(AV205^2)+(AV206^2))","v":19.697715603592208},{"$f":"AW203+AW204+AW205+AW206","v":10},{"$f":"SQRT((AX203^2)+(AX204^2)+(AX205^2)+(AX206^2))","v":24.879710609249457},{"$f":"AY203+AY204+AY205+AY206","v":23},{"$f":"SQRT((AZ203^2)+(AZ204^2)+(AZ205^2)+(AZ206^2))","v":24.083189157584592},{"$f":"BA203+BA204+BA205+BA206","v":15},{"$f":"SQRT((BB203^2)+(BB204^2)+(BB205^2)+(BB206^2))","v":18.439088914585774},{"$f":"BC203+BC204+BC205+BC206","v":0},{"$f":"SQRT((BD203^2)+(BD204^2)+(BD205^2)+(BD206^2))","v":22}]
[null,"35.0 percent or more",{"$f":"C207+C208+C209","v":0},{"$f":"SQRT((D207^2)+(D208^2)+(D209^2))","v":19.05255888325765},{"$f":"E207+E208+E209","v":0},{"$f":"SQRT((F207^2)+(F208^2)+(F209^2))","v":19.05255888325765},{"$f":"G207+G208+G209","v":7},{"$f":"SQRT((H207^2)+(H208^2)+(H209^2))","v":19.05255888325765},{"$f":"I207+I208+I209","v":21},{"$f":"SQRT((J207^2)+(J208^2)+(J209^2))","v":27.477263328068172},{"$f":"K207+K208+K209","v":3},{"$f":"SQRT((L207^2)+(L208^2)+(L209^2))","v":16.340134638368191},{"$f":"M207+M208+M209","v":0},{"$f":"SQRT((N207^2)+(N208^2)+(N209^2))","v":19.05255888325765},{"$f":"O207+O208+O209","v":10},{"$f":"SQRT((P207^2)+(P208^2)+(P209^2))","v":20.928449536456348},{"$f":"Q207+Q208+Q209","v":246},{"$f":"SQRT((R207^2)+(R208^2)+(R209^2))","v":95.425363504678359},{"$f":"S207+S208+S209","v":0},{"$f":"SQRT((T207^2)+(T208^2)+(T209^2))","v":19.05255888325765},{"$f":"U207+U208+U209","v":0},{"$f":"SQRT((V207^2)+(V208^2)+(V209^2))","v":19.05255888325765},{"$f":"W207+W208+W209","v":4},{"$f":"SQRT((X207^2)+(X208^2)+(X209^2))","v":17.972200755611428},{"$f":"Y207+Y208+Y209","v":59},{"$f":"SQRT((Z207^2)+(Z208^2)+(Z209^2))","v":62.233431530006442},{"$f":"AA207+AA208+AA209","v":0},{"$f":"SQRT((AB207^2)+(AB208^2)+(AB209^2))","v":19.05255888325765},{"$f":"AC207+AC208+AC209","v":0},{"$f":"SQRT((AD207^2)+(AD208^2)+(AD209^2))","v":19.05255888325765},{"$f":"AE207+AE208+AE209","v":95},{"$f":"SQRT((AF207^2)+(AF208^2)+(AF209^2))","v":98.742088290657492},{"$f":"AG207+AG208+AG209","v":24},{"$f":"SQRT((AH207^2)+(AH208^2)+(AH209^2))","v":42.649736224272246},{"$f":"AI207+AI208+AI209","v":0},{"$f":"SQRT((AJ207^2)+(AJ208^2)+(AJ209^2))","v":25.98076211353316},{"$f":"AK207+AK208+AK209","v":0},{"$f":"SQRT((AL207^2)+(AL208^2)+(AL209^2))","v":19.05255888325765},{"$f":"AM207+AM208+AM209","v":8},{"$f":"SQRT((AN207^2)+(AN208^2)+(AN209^2))","v":19.646882704388499},{"$f":"AO207+AO208+AO209","v":9},{"$f":"SQRT((AP207^2)+(AP208^2)+(AP209^2))","v":21.61018278497431},{"$f":"AQ207+AQ208+AQ209","v":0},{"$f":"SQRT((AR207^2)+(AR208^2)+(AR209^2))","v":25.98076211353316},{"$f":"AS207+AS208+AS209","v":0},{"$f":"SQRT((AT207^2)+(AT208^2)+(AT209^2))","v":19.05255888325765},{"$f":"AU207+AU208+AU209","v":0},{"$f":"SQRT((AV207^2)+(AV208^2)+(AV209^2))","v":19.05255888325765},{"$f":"AW207+AW208+AW209","v":0},{"$f":"SQRT((AX207^2)+(AX208^2)+(AX209^2))","v":19.05255888325765},{"$f":"AY207+AY208+AY209","v":5},{"$f":"SQRT((AZ207^2)+(AZ208^2)+(AZ209^2))","v":17.4928556845359},{"$f":"BA207+BA208+BA209","v":0},{"$f":"SQRT((BB207^2)+(BB208^2)+(BB209^2))","v":19.05255888325765},{"$f":"BC207+BC208+BC209","v":19},{"$f":"SQRT((BD207^2)+(BD208^2)+(BD209^2))","v":23.366642891095847}]
[null,"50.0 percent or more",{"$f":"C209","v":0},{"$f":"D209","v":11},{"$f":"E209","v":0},{"$f":"F209","v":11},{"$f":"G209","v":7},11,{"$f":"I209","v":0},15,{"$f":"K209","v":3},5,{"$f":"M209","v":0},11,{"$f":"O209","v":0},11,{"$f":"Q209","v":6},9,{"$f":"S209","v":0},11,{"$f":"U209","v":0},11,{"$f":"W209","v":0},11,{"$f":"Y209","v":5},8,{"$f":"AA209","v":0},11,{"$f":"AC209","v":0},11,{"$f":"AE209","v":70},94,{"$f":"AG209","v":0},15,{"$f":"AI209","v":0},15,{"$f":"AK209","v":0},11,{"$f":"AM209","v":0},11,{"$f":"AO209","v":0},11,{"$f":"AQ209","v":0},15,{"$f":"AS209","v":0},11,{"$f":"AU209","v":0},11,{"$f":"AW209","v":0},11,{"$f":"AY209","v":0},11,{"$f":"BA209","v":0},11,{"$f":"BC209","v":0},11]
[null,"Not Computed",{"$f":"C210","v":8},13,{"$f":"E210","v":0},11,{"$f":"G210","v":0},11,{"$f":"I210","v":0},15,{"$f":"K210","v":0},11,{"$f":"M210","v":0},11,{"$f":"O210","v":0},11,{"$f":"Q210","v":110},104,{"$f":"S210","v":0},11,{"$f":"U210","v":0},11,{"$f":"W210","v":0},11,{"$f":"Y210","v":0},15,{"$f":"AA210","v":0},11,{"$f":"AC210","v":5},6,{"$f":"AE210","v":0},17,{"$f":"AG210","v":0},15,{"$f":"AI210","v":0},15,{"$f":"AK210","v":0},11,{"$f":"AM210","v":20},32,{"$f":"AO210","v":12},19,{"$f":"AQ210","v":0},15,{"$f":"AS210","v":0},11,{"$f":"AU210","v":0},11,{"$f":"AW210","v":0},11,{"$f":"AY210","v":0},11,{"$f":"BA210","v":6},9,{"$f":"BC210","v":0},11]
[null,"$50,000 to $74,999:",{"$f":"C211","v":93},54,20,22,75,66,41,35,10,11,0,11,26,32,1569,223,42,31,37,23,59,53,185,100,46,48,12,13,259,102,41,54,57,48,16,15,77,64,118,59,145,95,81,64,11,9,16,15,34,27,18,15,51,31]
[null,"Less than 30.0 percent",{"$f":"C212+C213+C214","v":63},{"$f":"SQRT((D212^2)+(D213^2)+(D214^2))","v":44.698993277254019},{"$f":"E212+E213+E214","v":20},{"$f":"SQRT((F212^2)+(F213^2)+(F214^2))","v":24.718414188616549},{"$f":"G212+G213+G214","v":66},{"$f":"SQRT((H212^2)+(H213^2)+(H214^2))","v":70.505318948289286},{"$f":"I212+I213+I214","v":7},{"$f":"SQRT((J212^2)+(J213^2)+(J214^2))","v":23.895606290697042},{"$f":"K212+K213+K214","v":10},{"$f":"SQRT((L212^2)+(L213^2)+(L214^2))","v":11.045361017187261},{"$f":"M212+M213+M214","v":0},{"$f":"SQRT((N212^2)+(N213^2)+(N214^2))","v":19.05255888325765},{"$f":"O212+O213+O214","v":19},{"$f":"SQRT((P212^2)+(P213^2)+(P214^2))","v":32.908965343808667},{"$f":"Q212+Q213+Q214","v":1285},{"$f":"SQRT((R212^2)+(R213^2)+(R214^2))","v":239.78323544401513},{"$f":"S212+S213+S214","v":42},{"$f":"SQRT((T212^2)+(T213^2)+(T214^2))","v":30.331501776206203},{"$f":"U212+U213+U214","v":37},{"$f":"SQRT((V212^2)+(V213^2)+(V214^2))","v":22.649503305812249},{"$f":"W212+W213+W214","v":32},{"$f":"SQRT((X212^2)+(X213^2)+(X214^2))","v":41.194659848091959},{"$f":"Y212+Y213+Y214","v":166},{"$f":"SQRT((Z212^2)+(Z213^2)+(Z214^2))","v":102.62066068779717},{"$f":"AA212+AA213+AA214","v":27},{"$f":"SQRT((AB212^2)+(AB213^2)+(AB214^2))","v":34.132096331752024},{"$f":"AC212+AC213+AC214","v":12},{"$f":"SQRT((AD212^2)+(AD213^2)+(AD214^2))","v":20.273134932713294},{"$f":"AE212+AE213+AE214","v":191},{"$f":"SQRT((AF212^2)+(AF213^2)+(AF214^2))","v":93.83496150156401},{"$f":"AG212+AG213+AG214","v":31},{"$f":"SQRT((AH212^2)+(AH213^2)+(AH214^2))","v":55.235857918565905},{"$f":"AI212+AI213+AI214","v":44},{"$f":"SQRT((AJ212^2)+(AJ213^2)+(AJ214^2))","v":42.918527467749868},{"$f":"AK212+AK213+AK214","v":16},{"$f":"SQRT((AL212^2)+(AL213^2)+(AL214^2))","v":21.61018278497431},{"$f":"AM212+AM213+AM214","v":33},{"$f":"SQRT((AN212^2)+(AN213^2)+(AN214^2))","v":36.414282912066248},{"$f":"AO212+AO213+AO214","v":118},{"$f":"SQRT((AP212^2)+(AP213^2)+(AP214^2))","v":71.575135347409571},{"$f":"AQ212+AQ213+AQ214","v":129},{"$f":"SQRT((AR212^2)+(AR213^2)+(AR214^2))","v":92.184597411932103},{"$f":"AS212+AS213+AS214","v":53},{"$f":"SQRT((AT212^2)+(AT213^2)+(AT214^2))","v":51.410115736107812},{"$f":"AU212+AU213+AU214","v":4},{"$f":"SQRT((AV212^2)+(AV213^2)+(AV214^2))","v":16.673332000533065},{"$f":"AW212+AW213+AW214","v":11},{"$f":"SQRT((AX212^2)+(AX213^2)+(AX214^2))","v":20.273134932713294},{"$f":"AY212+AY213+AY214","v":29},{"$f":"SQRT((AZ212^2)+(AZ213^2)+(AZ214^2))","v":28.757607689096812},{"$f":"BA212+BA213+BA214","v":18},{"$f":"SQRT((BB212^2)+(BB213^2)+(BB214^2))","v":15.394804318340652},{"$f":"BC212+BC213+BC214","v":36},{"$f":"SQRT((BD212^2)+(BD213^2)+(BD214^2))","v":21.42428528562855}]
[null,"More than 30.0 percent",{"$f":"C215+C216+C217+C218","v":30},{"$f":"SQRT((D215^2)+(D216^2)+(D217^2)+(D218^2))","v":40.730823708832602},{"$f":"E215+E216+E217+E218","v":0},{"$f":"SQRT((F215^2)+(F216^2)+(F217^2)+(F218^2))","v":22},{"$f":"G215+G216+G217+G218","v":9},{"$f":"SQRT((H215^2)+(H216^2)+(H217^2)+(H218^2))","v":23.643180835073778},{"$f":"I215+I216+I217+I218","v":17},{"$f":"SQRT((J215^2)+(J216^2)+(J217^2)+(J218^2))","v":28.965496715920477},{"$f":"K215+K216+K217+K218","v":0},{"$f":"SQRT((L215^2)+(L216^2)+(L217^2)+(L218^2))","v":22},{"$f":"M215+M216+M217+M218","v":0},{"$f":"SQRT((N215^2)+(N216^2)+(N217^2)+(N218^2))","v":22},{"$f":"O215+O216+O217+O218","v":0},{"$f":"SQRT((P215^2)+(P216^2)+(P217^2)+(P218^2))","v":22},{"$f":"Q215+Q216+Q217+Q218","v":222},{"$f":"SQRT((R215^2)+(R216^2)+(R217^2)+(R218^2))","v":105.68348972285122},{"$f":"S215+S216+S217+S218","v":0},{"$f":"SQRT((T215^2)+(T216^2)+(T217^2)+(T218^2))","v":22},{"$f":"U215+U216+U217+U218","v":0},{"$f":"SQRT((V215^2)+(V216^2)+(V217^2)+(V218^2))","v":22},{"$f":"W215+W216+W217+W218","v":27},{"$f":"SQRT((X215^2)+(X216^2)+(X217^2)+(X218^2))","v":38.105117766515299},{"$f":"Y215+Y216+Y217+Y218","v":9},{"$f":"SQRT((Z215^2)+(Z216^2)+(Z217^2)+(Z218^2))","v":31.048349392520048},{"$f":"AA215+AA216+AA217+AA218","v":19},{"$f":"SQRT((AB215^2)+(AB216^2)+(AB217^2)+(AB218^2))","v":35.538711287833721},{"$f":"AC215+AC216+AC217+AC218","v":0},{"$f":"SQRT((AD215^2)+(AD216^2)+(AD217^2)+(AD218^2))","v":22},{"$f":"AE215+AE216+AE217+AE218","v":39},{"$f":"SQRT((AF215^2)+(AF216^2)+(AF217^2)+(AF218^2))","v":42.555845661906424},{"$f":"AG215+AG216+AG217+AG218","v":0},{"$f":"SQRT((AH215^2)+(AH216^2)+(AH217^2)+(AH218^2))","v":30},{"$f":"AI215+AI216+AI217+AI218","v":0},{"$f":"SQRT((AJ215^2)+(AJ216^2)+(AJ217^2)+(AJ218^2))","v":30},{"$f":"AK215+AK216+AK217+AK218","v":0},{"$f":"SQRT((AL215^2)+(AL216^2)+(AL217^2)+(AL218^2))","v":22},{"$f":"AM215+AM216+AM217+AM218","v":44},{"$f":"SQRT((AN215^2)+(AN216^2)+(AN217^2)+(AN218^2))","v":46.604720790924176},{"$f":"AO215+AO216+AO217+AO218","v":0},{"$f":"SQRT((AP215^2)+(AP216^2)+(AP217^2)+(AP218^2))","v":22},{"$f":"AQ215+AQ216+AQ217+AQ218","v":0},{"$f":"SQRT((AR215^2)+(AR216^2)+(AR217^2)+(AR218^2))","v":30},{"$f":"AS215+AS216+AS217+AS218","v":28},{"$f":"SQRT((AT215^2)+(AT216^2)+(AT217^2)+(AT218^2))","v":39.849717690342551},{"$f":"AU215+AU216+AU217+AU218","v":4},{"$f":"SQRT((AV215^2)+(AV216^2)+(AV217^2)+(AV218^2))","v":19.697715603592208},{"$f":"AW215+AW216+AW217+AW218","v":0},{"$f":"SQRT((AX215^2)+(AX216^2)+(AX217^2)+(AX218^2))","v":22},{"$f":"AY215+AY216+AY217+AY218","v":5},{"$f":"SQRT((AZ215^2)+(AZ216^2)+(AZ217^2)+(AZ218^2))","v":20.297783130184438},{"$f":"BA215+BA216+BA217+BA218","v":0},{"$f":"SQRT((BB215^2)+(BB216^2)+(BB217^2)+(BB218^2))","v":22},{"$f":"BC215+BC216+BC217+BC218","v":15},{"$f":"SQRT((BD215^2)+(BD216^2)+(BD217^2)+(BD218^2))","v":29.103264421710495}]
[null,"Less Than 35% of HH Income",{"$f":"C215+C214+C213+C212","v":93},{"$f":"SQRT((D215^2)+(D214^2)+(D213^2)+(D212^2))","v":57.393379409126972},{"$f":"E215+E214+E213+E212","v":20},{"$f":"SQRT((F215^2)+(F214^2)+(F213^2)+(F212^2))","v":27.055498516937366},{"$f":"G215+G214+G213+G212","v":75},{"$f":"SQRT((H215^2)+(H214^2)+(H213^2)+(H212^2))","v":71.881847499907792},{"$f":"I215+I214+I213+I212","v":13},{"$f":"SQRT((J215^2)+(J214^2)+(J213^2)+(J212^2))","v":25.903667693977237},{"$f":"K215+K214+K213+K212","v":10},{"$f":"SQRT((L215^2)+(L214^2)+(L213^2)+(L212^2))","v":15.588457268119896},{"$f":"M215+M214+M213+M212","v":0},{"$f":"SQRT((N215^2)+(N214^2)+(N213^2)+(N212^2))","v":22},{"$f":"O215+O214+O213+O212","v":19},{"$f":"SQRT((P215^2)+(P214^2)+(P213^2)+(P212^2))","v":34.698703145794944},{"$f":"Q215+Q214+Q213+Q212","v":1383},{"$f":"SQRT((R215^2)+(R214^2)+(R213^2)+(R212^2))","v":247.17605061979609},{"$f":"S215+S214+S213+S212","v":42},{"$f":"SQRT((T215^2)+(T214^2)+(T213^2)+(T212^2))","v":32.264531609803356},{"$f":"U215+U214+U213+U212","v":37},{"$f":"SQRT((V215^2)+(V214^2)+(V213^2)+(V212^2))","v":25.179356624028344},{"$f":"W215+W214+W213+W212","v":53},{"$f":"SQRT((X215^2)+(X214^2)+(X213^2)+(X212^2))","v":52.782572881586589},{"$f":"Y215+Y214+Y213+Y212","v":175},{"$f":"SQRT((Z215^2)+(Z214^2)+(Z213^2)+(Z212^2))","v":104.01922899156675},{"$f":"AA215+AA214+AA213+AA212","v":46},{"$f":"SQRT((AB215^2)+(AB214^2)+(AB213^2)+(AB212^2))","v":45.442271070007052},{"$f":"AC215+AC214+AC213+AC212","v":12},{"$f":"SQRT((AD215^2)+(AD214^2)+(AD213^2)+(AD212^2))","v":23.065125189341593},{"$f":"AE215+AE214+AE213+AE212","v":223},{"$f":"SQRT((AF215^2)+(AF214^2)+(AF213^2)+(AF212^2))","v":99.468588006465637},{"$f":"AG215+AG214+AG213+AG212","v":31},{"$f":"SQRT((AH215^2)+(AH214^2)+(AH213^2)+(AH212^2))","v":57.23635208501674},{"$f":"AI215+AI214+AI213+AI212","v":44},{"$f":"SQRT((AJ215^2)+(AJ214^2)+(AJ213^2)+(AJ212^2))","v":45.464271686677222},{"$f":"AK215+AK214+AK213+AK212","v":16},{"$f":"SQRT((AL215^2)+(AL214^2)+(AL213^2)+(AL212^2))","v":24.248711305964282},{"$f":"AM215+AM214+AM213+AM212","v":59},{"$f":"SQRT((AN215^2)+(AN214^2)+(AN213^2)+(AN212^2))","v":49.142649501222458},{"$f":"AO215+AO214+AO213+AO212","v":118},{"$f":"SQRT((AP215^2)+(AP214^2)+(AP213^2)+(AP212^2))","v":72.415467960926691},{"$f":"AQ215+AQ214+AQ213+AQ212","v":129},{"$f":"SQRT((AR215^2)+(AR214^2)+(AR213^2)+(AR212^2))","v":93.397002093214965},{"$f":"AS215+AS214+AS213+AS212","v":81},{"$f":"SQRT((AT215^2)+(AT214^2)+(AT213^2)+(AT212^2))","v":62.193247221864851},{"$f":"AU215+AU214+AU213+AU212","v":4},{"$f":"SQRT((AV215^2)+(AV214^2)+(AV213^2)+(AV212^2))","v":19.974984355438178},{"$f":"AW215+AW214+AW213+AW212","v":11},{"$f":"SQRT((AX215^2)+(AX214^2)+(AX213^2)+(AX212^2))","v":23.065125189341593},{"$f":"AY215+AY214+AY213+AY212","v":34},{"$f":"SQRT((AZ215^2)+(AZ214^2)+(AZ213^2)+(AZ212^2))","v":29.597297173897484},{"$f":"BA215+BA214+BA213+BA212","v":18},{"$f":"SQRT((BB215^2)+(BB214^2)+(BB213^2)+(BB212^2))","v":18.920887928424502},{"$f":"BC215+BC214+BC213+BC212","v":51},{"$f":"SQRT((BD215^2)+(BD214^2)+(BD213^2)+(BD212^2))","v":30.708305065568176}]
[null,"35.0 percent or more",{"$f":"C216+C217+C218","v":0},{"$f":"SQRT((D216^2)+(D217^2)+(D218^2))","v":19.05255888325765},{"$f":"E216+E217+E218","v":0},{"$f":"SQRT((F216^2)+(F217^2)+(F218^2))","v":19.05255888325765},{"$f":"G216+G217+G218","v":0},{"$f":"SQRT((H216^2)+(H217^2)+(H218^2))","v":19.05255888325765},{"$f":"I216+I217+I218","v":11},{"$f":"SQRT((J216^2)+(J217^2)+(J218^2))","v":27.184554438136374},{"$f":"K216+K217+K218","v":0},{"$f":"SQRT((L216^2)+(L217^2)+(L218^2))","v":19.05255888325765},{"$f":"M216+M217+M218","v":0},{"$f":"SQRT((N216^2)+(N217^2)+(N218^2))","v":19.05255888325765},{"$f":"O216+O217+O218","v":0},{"$f":"SQRT((P216^2)+(P217^2)+(P218^2))","v":19.05255888325765},{"$f":"Q216+Q217+Q218","v":124},{"$f":"SQRT((R216^2)+(R217^2)+(R218^2))","v":87},{"$f":"S216+S217+S218","v":0},{"$f":"SQRT((T216^2)+(T217^2)+(T218^2))","v":19.05255888325765},{"$f":"U216+U217+U218","v":0},{"$f":"SQRT((V216^2)+(V217^2)+(V218^2))","v":19.05255888325765},{"$f":"W216+W217+W218","v":6},{"$f":"SQRT((X216^2)+(X217^2)+(X218^2))","v":19.05255888325765},{"$f":"Y216+Y217+Y218","v":0},{"$f":"SQRT((Z216^2)+(Z217^2)+(Z218^2))","v":25.98076211353316},{"$f":"AA216+AA217+AA218","v":0},{"$f":"SQRT((AB216^2)+(AB217^2)+(AB218^2))","v":19.05255888325765},{"$f":"AC216+AC217+AC218","v":0},{"$f":"SQRT((AD216^2)+(AD217^2)+(AD218^2))","v":19.05255888325765},{"$f":"AE216+AE217+AE218","v":7},{"$f":"SQRT((AF216^2)+(AF217^2)+(AF218^2))","v":26.870057685088806},{"$f":"AG216+AG217+AG218","v":0},{"$f":"SQRT((AH216^2)+(AH217^2)+(AH218^2))","v":25.98076211353316},{"$f":"AI216+AI217+AI218","v":0},{"$f":"SQRT((AJ216^2)+(AJ217^2)+(AJ218^2))","v":25.98076211353316},{"$f":"AK216+AK217+AK218","v":0},{"$f":"SQRT((AL216^2)+(AL217^2)+(AL218^2))","v":19.05255888325765},{"$f":"AM216+AM217+AM218","v":18},{"$f":"SQRT((AN216^2)+(AN217^2)+(AN218^2))","v":32.908965343808667},{"$f":"AO216+AO217+AO218","v":0},{"$f":"SQRT((AP216^2)+(AP217^2)+(AP218^2))","v":19.05255888325765},{"$f":"AQ216+AQ217+AQ218","v":0},{"$f":"SQRT((AR216^2)+(AR217^2)+(AR218^2))","v":25.98076211353316},{"$f":"AS216+AS217+AS218","v":0},{"$f":"SQRT((AT216^2)+(AT217^2)+(AT218^2))","v":19.05255888325765},{"$f":"AU216+AU217+AU218","v":4},{"$f":"SQRT((AV216^2)+(AV217^2)+(AV218^2))","v":16.340134638368191},{"$f":"AW216+AW217+AW218","v":0},{"$f":"SQRT((AX216^2)+(AX217^2)+(AX218^2))","v":19.05255888325765},{"$f":"AY216+AY217+AY218","v":0},{"$f":"SQRT((AZ216^2)+(AZ217^2)+(AZ218^2))","v":19.05255888325765},{"$f":"BA216+BA217+BA218","v":0},{"$f":"SQRT((BB216^2)+(BB217^2)+(BB218^2))","v":19.05255888325765},{"$f":"BC216+BC217+BC218","v":0},{"$f":"SQRT((BD216^2)+(BD217^2)+(BD218^2))","v":19.05255888325765}]
[null,"50.0 percent or more",{"$f":"C218","v":0},{"$f":"D218","v":11},{"$f":"E218","v":0},{"$f":"F218","v":11},{"$f":"G218","v":0},11,{"$f":"I218","v":11},17,{"$f":"K218","v":0},11,{"$f":"M218","v":0},11,{"$f":"O218","v":0},11,{"$f":"Q218","v":102},83,{"$f":"S218","v":0},11,{"$f":"U218","v":0},11,{"$f":"W218","v":0},11,{"$f":"Y218","v":0},15,{"$f":"AA218","v":0},11,{"$f":"AC218","v":0},11,{"$f":"AE218","v":0},17,{"$f":"AG218","v":0},15,{"$f":"AI218","v":0},15,{"$f":"AK218","v":0},11,{"$f":"AM218","v":0},11,{"$f":"AO218","v":0},11,{"$f":"AQ218","v":0},15,{"$f":"AS218","v":0},11,{"$f":"AU218","v":0},11,{"$f":"AW218","v":0},11,{"$f":"AY218","v":0},11,{"$f":"BA218","v":0},11,{"$f":"BC218","v":0},11]
[null,"Not Computed",{"$f":"C219","v":0},11,{"$f":"E219","v":0},11,{"$f":"G219","v":0},11,{"$f":"I219","v":17},25,{"$f":"K219","v":0},11,{"$f":"M219","v":0},11,{"$f":"O219","v":7},10,{"$f":"Q219","v":62},58,{"$f":"S219","v":0},11,{"$f":"U219","v":0},11,{"$f":"W219","v":0},11,{"$f":"Y219","v":10},16,{"$f":"AA219","v":0},11,{"$f":"AC219","v":0},11,{"$f":"AE219","v":29},34,{"$f":"AG219","v":10},17,{"$f":"AI219","v":13},21,{"$f":"AK219","v":0},11,{"$f":"AM219","v":0},11,{"$f":"AO219","v":0},11,{"$f":"AQ219","v":16},27,{"$f":"AS219","v":0},11,{"$f":"AU219","v":3},6,{"$f":"AW219","v":5},9,{"$f":"AY219","v":0},11,{"$f":"BA219","v":0},11,{"$f":"BC219","v":0},11]
[null,"$75,000 to $99,999:",{"$f":"C220","v":44},32,{"$f":"E220","v":5},8,{"$f":"G220","v":21},20,{"$f":"I220","v":52},48,{"$f":"K220","v":3},6,{"$f":"M220","v":5},8,{"$f":"O220","v":14},15,{"$f":"Q220","v":713},194,{"$f":"S220","v":0},11,{"$f":"U220","v":8},9,{"$f":"W220","v":17},20,{"$f":"Y220","v":121},92,{"$f":"AA220","v":25},35,{"$f":"AC220","v":3},5,{"$f":"AE220","v":122},73,{"$f":"AG220","v":0},15,{"$f":"AI220","v":44},44,{"$f":"AK220","v":8},8,{"$f":"AM220","v":7},10,{"$f":"AO220","v":18},21,{"$f":"AQ220","v":148},107,{"$f":"AS220","v":27},37,{"$f":"AU220","v":4},9,{"$f":"AW220","v":17},19,{"$f":"AY220","v":23},23,{"$f":"BA220","v":11},11,{"$f":"BC220","v":4},5]
[null,"Less than 30.0 percent",{"$f":"C221+C222+C223","v":34},{"$f":"SQRT((D221^2)+(D222^2)+(D223^2))","v":26.134268690743959},{"$f":"E221+E222+E223","v":5},{"$f":"SQRT((F221^2)+(F222^2)+(F223^2))","v":17.4928556845359},{"$f":"G221+G222+G223","v":21},{"$f":"SQRT((H221^2)+(H222^2)+(H223^2))","v":23.043437243605826},{"$f":"I221+I222+I223","v":52},{"$f":"SQRT((J221^2)+(J222^2)+(J223^2))","v":45.71651780264984},{"$f":"K221+K222+K223","v":3},{"$f":"SQRT((L221^2)+(L222^2)+(L223^2))","v":16.673332000533065},{"$f":"M221+M222+M223","v":0},{"$f":"SQRT((N221^2)+(N222^2)+(N223^2))","v":19.05255888325765},{"$f":"O221+O222+O223","v":14},{"$f":"SQRT((P221^2)+(P222^2)+(P223^2))","v":21.61018278497431},{"$f":"Q221+Q222+Q223","v":691},{"$f":"SQRT((R221^2)+(R222^2)+(R223^2))","v":197.20547659738054},{"$f":"S221+S222+S223","v":0},{"$f":"SQRT((T221^2)+(T222^2)+(T223^2))","v":19.05255888325765},{"$f":"U221+U222+U223","v":5},{"$f":"SQRT((V221^2)+(V222^2)+(V223^2))","v":17.058722109231979},{"$f":"W221+W222+W223","v":17},{"$f":"SQRT((X221^2)+(X222^2)+(X223^2))","v":22.693611435820433},{"$f":"Y221+Y222+Y223","v":121},{"$f":"SQRT((Z221^2)+(Z222^2)+(Z223^2))","v":83.072257703760528},{"$f":"AA221+AA222+AA223","v":25},{"$f":"SQRT((AB221^2)+(AB222^2)+(AB223^2))","v":37.134889255254286},{"$f":"AC221+AC222+AC223","v":3},{"$f":"SQRT((AD221^2)+(AD222^2)+(AD223^2))","v":16.340134638368191},{"$f":"AE221+AE222+AE223","v":122},{"$f":"SQRT((AF221^2)+(AF222^2)+(AF223^2))","v":72.753006810715391},{"$f":"AG221+AG222+AG223","v":0},{"$f":"SQRT((AH221^2)+(AH222^2)+(AH223^2))","v":25.98076211353316},{"$f":"AI221+AI222+AI223","v":31},{"$f":"SQRT((AJ221^2)+(AJ222^2)+(AJ223^2))","v":40.11234224026316},{"$f":"AK221+AK222+AK223","v":8},{"$f":"SQRT((AL221^2)+(AL222^2)+(AL223^2))","v":13.638181696985855},{"$f":"AM221+AM222+AM223","v":0},{"$f":"SQRT((AN221^2)+(AN222^2)+(AN223^2))","v":19.05255888325765},{"$f":"AO221+AO222+AO223","v":18},{"$f":"SQRT((AP221^2)+(AP222^2)+(AP223^2))","v":26.134268690743959},{"$f":"AQ221+AQ222+AQ223","v":148},{"$f":"SQRT((AR221^2)+(AR222^2)+(AR223^2))","v":109.69958978957031},{"$f":"AS221+AS222+AS223","v":27},{"$f":"SQRT((AT221^2)+(AT222^2)+(AT223^2))","v":40.137264480778953},{"$f":"AU221+AU222+AU223","v":4},{"$f":"SQRT((AV221^2)+(AV222^2)+(AV223^2))","v":17.972200755611428},{"$f":"AW221+AW222+AW223","v":14},{"$f":"SQRT((AX221^2)+(AX222^2)+(AX223^2))","v":20.639767440550294},{"$f":"AY221+AY222+AY223","v":18},{"$f":"SQRT((AZ221^2)+(AZ222^2)+(AZ223^2))","v":26.944387170614959},{"$f":"BA221+BA222+BA223","v":8},{"$f":"SQRT((BB221^2)+(BB222^2)+(BB223^2))","v":13.490737563232042},{"$f":"BC221+BC222+BC223","v":4},{"$f":"SQRT((BD221^2)+(BD222^2)+(BD223^2))","v":16.340134638368191}]
[null,"More than 30.0 percent",{"$f":"C224+C225+C226+C227","v":0},{"$f":"SQRT((D224^2)+(D225^2)+(D226^2)+(D227^2))","v":22},{"$f":"E224+E225+E226+E227","v":0},{"$f":"SQRT((F224^2)+(F225^2)+(F226^2)+(F227^2))","v":22},{"$f":"G224+G225+G226+G227","v":0},{"$f":"SQRT((H224^2)+(H225^2)+(H226^2)+(H227^2))","v":22},{"$f":"I224+I225+I226+I227","v":0},{"$f":"SQRT((J224^2)+(J225^2)+(J226^2)+(J227^2))","v":30},{"$f":"K224+K225+K226+K227","v":0},{"$f":"SQRT((L224^2)+(L225^2)+(L226^2)+(L227^2))","v":22},{"$f":"M224+M225+M226+M227","v":0},{"$f":"SQRT((N224^2)+(N225^2)+(N226^2)+(N227^2))","v":22},{"$f":"O224+O225+O226+O227","v":0},{"$f":"SQRT((P224^2)+(P225^2)+(P226^2)+(P227^2))","v":22},{"$f":"Q224+Q225+Q226+Q227","v":0},{"$f":"SQRT((R224^2)+(R225^2)+(R226^2)+(R227^2))","v":46},{"$f":"S224+S225+S226+S227","v":0},{"$f":"SQRT((T224^2)+(T225^2)+(T226^2)+(T227^2))","v":22},{"$f":"U224+U225+U226+U227","v":0},{"$f":"SQRT((V224^2)+(V225^2)+(V226^2)+(V227^2))","v":22},{"$f":"W224+W225+W226+W227","v":0},{"$f":"SQRT((X224^2)+(X225^2)+(X226^2)+(X227^2))","v":22},{"$f":"Y224+Y225+Y226+Y227","v":0},{"$f":"SQRT((Z224^2)+(Z225^2)+(Z226^2)+(Z227^2))","v":30},{"$f":"AA224+AA225+AA226+AA227","v":0},{"$f":"SQRT((AB224^2)+(AB225^2)+(AB226^2)+(AB227^2))","v":22},{"$f":"AC224+AC225+AC226+AC227","v":0},{"$f":"SQRT((AD224^2)+(AD225^2)+(AD226^2)+(AD227^2))","v":22},{"$f":"AE224+AE225+AE226+AE227","v":0},{"$f":"SQRT((AF224^2)+(AF225^2)+(AF226^2)+(AF227^2))","v":34},{"$f":"AG224+AG225+AG226+AG227","v":0},{"$f":"SQRT((AH224^2)+(AH225^2)+(AH226^2)+(AH227^2))","v":30},{"$f":"AI224+AI225+AI226+AI227","v":0},{"$f":"SQRT((AJ224^2)+(AJ225^2)+(AJ226^2)+(AJ227^2))","v":30},{"$f":"AK224+AK225+AK226+AK227","v":0},{"$f":"SQRT((AL224^2)+(AL225^2)+(AL226^2)+(AL227^2))","v":22},{"$f":"AM224+AM225+AM226+AM227","v":7},{"$f":"SQRT((AN224^2)+(AN225^2)+(AN226^2)+(AN227^2))","v":21.517434791350013},{"$f":"AO224+AO225+AO226+AO227","v":0},{"$f":"SQRT((AP224^2)+(AP225^2)+(AP226^2)+(AP227^2))","v":22},{"$f":"AQ224+AQ225+AQ226+AQ227","v":0},{"$f":"SQRT((AR224^2)+(AR225^2)+(AR226^2)+(AR227^2))","v":30},{"$f":"AS224+AS225+AS226+AS227","v":0},{"$f":"SQRT((AT224^2)+(AT225^2)+(AT226^2)+(AT227^2))","v":22},{"$f":"AU224+AU225+AU226+AU227","v":0},{"$f":"SQRT((AV224^2)+(AV225^2)+(AV226^2)+(AV227^2))","v":22},{"$f":"AW224+AW225+AW226+AW227","v":0},{"$f":"SQRT((AX224^2)+(AX225^2)+(AX226^2)+(AX227^2))","v":22},{"$f":"AY224+AY225+AY226+AY227","v":0},{"$f":"SQRT((AZ224^2)+(AZ225^2)+(AZ226^2)+(AZ227^2))","v":22},{"$f":"BA224+BA225+BA226+BA227","v":0},{"$f":"SQRT((BB224^2)+(BB225^2)+(BB226^2)+(BB227^2))","v":22},{"$f":"BC224+BC225+BC226+BC227","v":0},{"$f":"SQRT((BD224^2)+(BD225^2)+(BD226^2)+(BD227^2))","v":22}]
[null,"Less Than 35% of HH Income",{"$f":"C221+C222+C223+C224","v":34},{"$f":"SQRT((D221^2)+(D222^2)+(D223^2)+(D224^2))","v":28.354893757515651},{"$f":"E221+E222+E223+E224","v":5},{"$f":"SQRT((F221^2)+(F222^2)+(F223^2)+(F224^2))","v":20.663978319771825},{"$f":"G221+G222+G223+G224","v":21},{"$f":"SQRT((H221^2)+(H222^2)+(H223^2)+(H224^2))","v":25.534290669607408},{"$f":"I221+I222+I223+I224","v":52},{"$f":"SQRT((J221^2)+(J222^2)+(J223^2)+(J224^2))","v":48.114446894877631},{"$f":"K221+K222+K223+K224","v":3},{"$f":"SQRT((L221^2)+(L222^2)+(L223^2)+(L224^2))","v":19.974984355438178},{"$f":"M221+M222+M223+M224","v":0},{"$f":"SQRT((N221^2)+(N222^2)+(N223^2)+(N224^2))","v":22},{"$f":"O221+O222+O223+O224","v":14},{"$f":"SQRT((P221^2)+(P222^2)+(P223^2)+(P224^2))","v":24.248711305964282},{"$f":"Q221+Q222+Q223+Q224","v":691},{"$f":"SQRT((R221^2)+(R222^2)+(R223^2)+(R224^2))","v":198.54218695279852},{"$f":"S221+S222+S223+S224","v":0},{"$f":"SQRT((T221^2)+(T222^2)+(T223^2)+(T224^2))","v":22},{"$f":"U221+U222+U223+U224","v":5},{"$f":"SQRT((V221^2)+(V222^2)+(V223^2)+(V224^2))","v":20.297783130184438},{"$f":"W221+W222+W223+W224","v":17},{"$f":"SQRT((X221^2)+(X222^2)+(X223^2)+(X224^2))","v":25.219040425836983},{"$f":"Y221+Y222+Y223+Y224","v":121},{"$f":"SQRT((Z221^2)+(Z222^2)+(Z223^2)+(Z224^2))","v":84.41563836162112},{"$f":"AA221+AA222+AA223+AA224","v":25},{"$f":"SQRT((AB221^2)+(AB222^2)+(AB223^2)+(AB224^2))","v":38.729833462074168},{"$f":"AC221+AC222+AC223+AC224","v":3},{"$f":"SQRT((AD221^2)+(AD222^2)+(AD223^2)+(AD224^2))","v":19.697715603592208},{"$f":"AE221+AE222+AE223+AE224","v":122},{"$f":"SQRT((AF221^2)+(AF222^2)+(AF223^2)+(AF224^2))","v":74.712783377411398},{"$f":"AG221+AG222+AG223+AG224","v":0},{"$f":"SQRT((AH221^2)+(AH222^2)+(AH223^2)+(AH224^2))","v":30},{"$f":"AI221+AI222+AI223+AI224","v":31},{"$f":"SQRT((AJ221^2)+(AJ222^2)+(AJ223^2)+(AJ224^2))","v":42.825226210727713},{"$f":"AK221+AK222+AK223+AK224","v":8},{"$f":"SQRT((AL221^2)+(AL222^2)+(AL223^2)+(AL224^2))","v":17.521415467935231},{"$f":"AM221+AM222+AM223+AM224","v":7},{"$f":"SQRT((AN221^2)+(AN222^2)+(AN223^2)+(AN224^2))","v":21.517434791350013},{"$f":"AO221+AO222+AO223+AO224","v":18},{"$f":"SQRT((AP221^2)+(AP222^2)+(AP223^2)+(AP224^2))","v":28.354893757515651},{"$f":"AQ221+AQ222+AQ223+AQ224","v":148},{"$f":"SQRT((AR221^2)+(AR222^2)+(AR223^2)+(AR224^2))","v":110.72036849649662},{"$f":"AS221+AS222+AS223+AS224","v":27},{"$f":"SQRT((AT221^2)+(AT222^2)+(AT223^2)+(AT224^2))","v":41.617304093369626},{"$f":"AU221+AU222+AU223+AU224","v":4},{"$f":"SQRT((AV221^2)+(AV222^2)+(AV223^2)+(AV224^2))","v":21.071307505705477},{"$f":"AW221+AW222+AW223+AW224","v":14},{"$f":"SQRT((AX221^2)+(AX222^2)+(AX223^2)+(AX224^2))","v":23.388031127053001},{"$f":"AY221+AY222+AY223+AY224","v":18},{"$f":"SQRT((AZ221^2)+(AZ222^2)+(AZ223^2)+(AZ224^2))","v":29.103264421710495},{"$f":"BA221+BA222+BA223+BA224","v":8},{"$f":"SQRT((BB221^2)+(BB222^2)+(BB223^2)+(BB224^2))","v":17.406895185529212},{"$f":"BC221+BC222+BC223+BC224","v":4},{"$f":"SQRT((BD221^2)+(BD222^2)+(BD223^2)+(BD224^2))","v":19.697715603592208}]
[null,"35.0 percent or more",{"$f":"C225+C226+C227","v":0},{"$f":"SQRT((D225^2)+(D226^2)+(D227^2))","v":19.05255888325765},{"$f":"E225+E226+E227","v":0},{"$f":"SQRT((F225^2)+(F226^2)+(F227^2))","v":19.05255888325765},{"$f":"G225+G226+G227","v":0},{"$f":"SQRT((H225^2)+(H226^2)+(H227^2))","v":19.05255888325765},{"$f":"I225+I226+I227","v":0},{"$f":"SQRT((J225^2)+(J226^2)+(J227^2))","v":25.98076211353316},{"$f":"K225+K226+K227","v":0},{"$f":"SQRT((L225^2)+(L226^2)+(L227^2))","v":19.05255888325765},{"$f":"M225+M226+M227","v":0},{"$f":"SQRT((N225^2)+(N226^2)+(N227^2))","v":19.05255888325765},{"$f":"O225+O226+O227","v":0},{"$f":"SQRT((P225^2)+(P226^2)+(P227^2))","v":19.05255888325765},{"$f":"Q225+Q226+Q227","v":0},{"$f":"SQRT((R225^2)+(R226^2)+(R227^2))","v":39.837168574084181},{"$f":"S225+S226+S227","v":0},{"$f":"SQRT((T225^2)+(T226^2)+(T227^2))","v":19.05255888325765},{"$f":"U225+U226+U227","v":0},{"$f":"SQRT((V225^2)+(V226^2)+(V227^2))","v":19.05255888325765},{"$f":"W225+W226+W227","v":0},{"$f":"SQRT((X225^2)+(X226^2)+(X227^2))","v":19.05255888325765},{"$f":"Y225+Y226+Y227","v":0},{"$f":"SQRT((Z225^2)+(Z226^2)+(Z227^2))","v":25.98076211353316},{"$f":"AA225+AA226+AA227","v":0},{"$f":"SQRT((AB225^2)+(AB226^2)+(AB227^2))","v":19.05255888325765},{"$f":"AC225+AC226+AC227","v":0},{"$f":"SQRT((AD225^2)+(AD226^2)+(AD227^2))","v":19.05255888325765},{"$f":"AE225+AE226+AE227","v":0},{"$f":"SQRT((AF225^2)+(AF226^2)+(AF227^2))","v":29.444863728670914},{"$f":"AG225+AG226+AG227","v":0},{"$f":"SQRT((AH225^2)+(AH226^2)+(AH227^2))","v":25.98076211353316},{"$f":"AI225+AI226+AI227","v":0},{"$f":"SQRT((AJ225^2)+(AJ226^2)+(AJ227^2))","v":25.98076211353316},{"$f":"AK225+AK226+AK227","v":0},{"$f":"SQRT((AL225^2)+(AL226^2)+(AL227^2))","v":19.05255888325765},{"$f":"AM225+AM226+AM227","v":0},{"$f":"SQRT((AN225^2)+(AN226^2)+(AN227^2))","v":19.05255888325765},{"$f":"AO225+AO226+AO227","v":0},{"$f":"SQRT((AP225^2)+(AP226^2)+(AP227^2))","v":19.05255888325765},{"$f":"AQ225+AQ226+AQ227","v":0},{"$f":"SQRT((AR225^2)+(AR226^2)+(AR227^2))","v":25.98076211353316},{"$f":"AS225+AS226+AS227","v":0},{"$f":"SQRT((AT225^2)+(AT226^2)+(AT227^2))","v":19.05255888325765},{"$f":"AU225+AU226+AU227","v":0},{"$f":"SQRT((AV225^2)+(AV226^2)+(AV227^2))","v":19.05255888325765},{"$f":"AW225+AW226+AW227","v":0},{"$f":"SQRT((AX225^2)+(AX226^2)+(AX227^2))","v":19.05255888325765},{"$f":"AY225+AY226+AY227","v":0},{"$f":"SQRT((AZ225^2)+(AZ226^2)+(AZ227^2))","v":19.05255888325765},{"$f":"BA225+BA226+BA227","v":0},{"$f":"SQRT((BB225^2)+(BB226^2)+(BB227^2))","v":19.05255888325765},{"$f":"BC225+BC226+BC227","v":0},{"$f":"SQRT((BD225^2)+(BD226^2)+(BD227^2))","v":19.05255888325765}]
[null,"50.0 percent or more",{"$f":"C227","v":0},11,0,11,0,11,0,15,0,11,0,11,0,11,0,23,0,11,0,11,0,11,0,15,0,11,0,11,0,17,0,15,0,15,0,11,0,11,0,11,0,15,0,11,0,11,0,11,0,11,0,11,0,11]
[null,"Not Computed",10,15,0,11,0,11,0,15,0,11,5,8,0,11,22,25,0,11,3,5,0,11,0,15,0,11,0,11,0,17,0,15,13,21,0,11,0,11,0,11,0,15,0,11,0,11,3,5,5,8,3,5,0,11]
[null,"$100,000 or more:",60,49,35,37,15,18,22,20,8,8,0,11,8,10,626,147,10,15,13,15,36,45,21,24,52,42,3,4,57,40,41,40,42,48,15,23,108,66,64,49,0,15,17,25,0,11,23,22,59,37,7,7,20,19]
[null,"Less than 30.0 percent",{"$f":"C230+C231+C232","v":60},{"$f":"SQRT((D230^2)+(D231^2)+(D232^2))","v":51.410115736107812},{"$f":"E230+E231+E232","v":18},{"$f":"SQRT((F230^2)+(F231^2)+(F232^2))","v":32.03123475609393},{"$f":"G230+G231+G232","v":6},{"$f":"SQRT((H230^2)+(H231^2)+(H232^2))","v":19.05255888325765},{"$f":"I230+I231+I232","v":22},{"$f":"SQRT((J230^2)+(J231^2)+(J232^2))","v":24.289915602982237},{"$f":"K230+K231+K232","v":8},{"$f":"SQRT((L230^2)+(L231^2)+(L232^2))","v":13.152946437965905},{"$f":"M230+M231+M232","v":0},{"$f":"SQRT((N230^2)+(N231^2)+(N232^2))","v":19.05255888325765},{"$f":"O230+O231+O232","v":8},{"$f":"SQRT((P230^2)+(P231^2)+(P232^2))","v":18.493242008906929},{"$f":"Q230+Q231+Q232","v":611},{"$f":"SQRT((R230^2)+(R231^2)+(R232^2))","v":149.42891286494725},{"$f":"S230+S231+S232","v":10},{"$f":"SQRT((T230^2)+(T231^2)+(T232^2))","v":21.61018278497431},{"$f":"U230+U231+U232","v":13},{"$f":"SQRT((V230^2)+(V231^2)+(V232^2))","v":21.61018278497431},{"$f":"W230+W231+W232","v":36},{"$f":"SQRT((X230^2)+(X231^2)+(X232^2))","v":46.270941205037097},{"$f":"Y230+Y231+Y232","v":21},{"$f":"SQRT((Z230^2)+(Z231^2)+(Z232^2))","v":32.03123475609393},{"$f":"AA230+AA231+AA232","v":52},{"$f":"SQRT((AB230^2)+(AB231^2)+(AB232^2))","v":44.788391353117383},{"$f":"AC230+AC231+AC232","v":3},{"$f":"SQRT((AD230^2)+(AD231^2)+(AD232^2))","v":16.06237840420901},{"$f":"AE230+AE231+AE232","v":45},{"$f":"SQRT((AF230^2)+(AF231^2)+(AF232^2))","v":44.124822945820419},{"$f":"AG230+AG231+AG232","v":41},{"$f":"SQRT((AH230^2)+(AH231^2)+(AH232^2))","v":45.276925690687087},{"$f":"AI230+AI231+AI232","v":42},{"$f":"SQRT((AJ230^2)+(AJ231^2)+(AJ232^2))","v":52.478567053607705},{"$f":"AK230+AK231+AK232","v":0},{"$f":"SQRT((AL230^2)+(AL231^2)+(AL232^2))","v":19.05255888325765},{"$f":"AM230+AM231+AM232","v":100},{"$f":"SQRT((AN230^2)+(AN231^2)+(AN232^2))","v":66.430414720969495},{"$f":"AO230+AO231+AO232","v":64},{"$f":"SQRT((AP230^2)+(AP231^2)+(AP232^2))","v":51.410115736107812},{"$f":"AQ230+AQ231+AQ232","v":0},{"$f":"SQRT((AR230^2)+(AR231^2)+(AR232^2))","v":25.98076211353316},{"$f":"AS230+AS231+AS232","v":17},{"$f":"SQRT((AT230^2)+(AT231^2)+(AT232^2))","v":29.444863728670914},{"$f":"AU230+AU231+AU232","v":0},{"$f":"SQRT((AV230^2)+(AV231^2)+(AV232^2))","v":19.05255888325765},{"$f":"AW230+AW231+AW232","v":23},{"$f":"SQRT((AX230^2)+(AX231^2)+(AX232^2))","v":26.944387170614959},{"$f":"AY230+AY231+AY232","v":54},{"$f":"SQRT((AZ230^2)+(AZ231^2)+(AZ232^2))","v":37.17526059088221},{"$f":"BA230+BA231+BA232","v":7},{"$f":"SQRT((BB230^2)+(BB231^2)+(BB232^2))","v":17.058722109231979},{"$f":"BC230+BC231+BC232","v":20},{"$f":"SQRT((BD230^2)+(BD231^2)+(BD232^2))","v":24.556058315617349}]
[null,"More than 30.0 percent",{"$f":"C233+C234+C235+C236","v":0},{"$f":"SQRT((D233^2)+(D234^2)+(D235^2)+(D236^2))","v":22},{"$f":"E233+E234+E235+E236","v":0},{"$f":"SQRT((F233^2)+(F234^2)+(F235^2)+(F236^2))","v":22},{"$f":"G233+G234+G235+G236","v":0},{"$f":"SQRT((H233^2)+(H234^2)+(H235^2)+(H236^2))","v":22},{"$f":"I233+I234+I235+I236","v":0},{"$f":"SQRT((J233^2)+(J234^2)+(J235^2)+(J236^2))","v":30},{"$f":"K233+K234+K235+K236","v":0},{"$f":"SQRT((L233^2)+(L234^2)+(L235^2)+(L236^2))","v":22},{"$f":"M233+M234+M235+M236","v":0},{"$f":"SQRT((N233^2)+(N234^2)+(N235^2)+(N236^2))","v":22},{"$f":"O233+O234+O235+O236","v":0},{"$f":"SQRT((P233^2)+(P234^2)+(P235^2)+(P236^2))","v":22},{"$f":"Q233+Q234+Q235+Q236","v":0},{"$f":"SQRT((R233^2)+(R234^2)+(R235^2)+(R236^2))","v":46},{"$f":"S233+S234+S235+S236","v":0},{"$f":"SQRT((T233^2)+(T234^2)+(T235^2)+(T236^2))","v":22},{"$f":"U233+U234+U235+U236","v":0},{"$f":"SQRT((V233^2)+(V234^2)+(V235^2)+(V236^2))","v":22},{"$f":"W233+W234+W235+W236","v":0},{"$f":"SQRT((X233^2)+(X234^2)+(X235^2)+(X236^2))","v":22},{"$f":"Y233+Y234+Y235+Y236","v":0},{"$f":"SQRT((Z233^2)+(Z234^2)+(Z235^2)+(Z236^2))","v":30},{"$f":"AA233+AA234+AA235+AA236","v":0},{"$f":"SQRT((AB233^2)+(AB234^2)+(AB235^2)+(AB236^2))","v":22},{"$f":"AC233+AC234+AC235+AC236","v":0},{"$f":"SQRT((AD233^2)+(AD234^2)+(AD235^2)+(AD236^2))","v":22},{"$f":"AE233+AE234+AE235+AE236","v":0},{"$f":"SQRT((AF233^2)+(AF234^2)+(AF235^2)+(AF236^2))","v":34},{"$f":"AG233+AG234+AG235+AG236","v":0},{"$f":"SQRT((AH233^2)+(AH234^2)+(AH235^2)+(AH236^2))","v":30},{"$f":"AI233+AI234+AI235+AI236","v":0},{"$f":"SQRT((AJ233^2)+(AJ234^2)+(AJ235^2)+(AJ236^2))","v":30},{"$f":"AK233+AK234+AK235+AK236","v":0},{"$f":"SQRT((AL233^2)+(AL234^2)+(AL235^2)+(AL236^2))","v":22},{"$f":"AM233+AM234+AM235+AM236","v":0},{"$f":"SQRT((AN233^2)+(AN234^2)+(AN235^2)+(AN236^2))","v":22},{"$f":"AO233+AO234+AO235+AO236","v":0},{"$f":"SQRT((AP233^2)+(AP234^2)+(AP235^2)+(AP236^2))","v":22},{"$f":"AQ233+AQ234+AQ235+AQ236","v":0},{"$f":"SQRT((AR233^2)+(AR234^2)+(AR235^2)+(AR236^2))","v":30},{"$f":"AS233+AS234+AS235+AS236","v":0},{"$f":"SQRT((AT233^2)+(AT234^2)+(AT235^2)+(AT236^2))","v":22},{"$f":"AU233+AU234+AU235+AU236","v":0},{"$f":"SQRT((AV233^2)+(AV234^2)+(AV235^2)+(AV236^2))","v":22},{"$f":"AW233+AW234+AW235+AW236","v":0},{"$f":"SQRT((AX233^2)+(AX234^2)+(AX235^2)+(AX236^2))","v":22},{"$f":"AY233+AY234+AY235+AY236","v":0},{"$f":"SQRT((AZ233^2)+(AZ234^2)+(AZ235^2)+(AZ236^2))","v":22},{"$f":"BA233+BA234+BA235+BA236","v":0},{"$f":"SQRT((BB233^2)+(BB234^2)+(BB235^2)+(BB236^2))","v":22},{"$f":"BC233+BC234+BC235+BC236","v":0},{"$f":"SQRT((BD233^2)+(BD234^2)+(BD235^2)+(BD236^2))","v":22}]
[null,"Less Than 35% of HH Income",{"$f":"C230+C231+C232+C233","v":60},{"$f":"SQRT(((D230^2)+(D231^2)+(D232^2)+(D233^2)))","v":52.57375771237966},{"$f":"E230+E231+E232+E233","v":18},{"$f":"SQRT(((F230^2)+(F231^2)+(F232^2)+(F233^2)))","v":33.867388443752198},{"$f":"G230+G231+G232+G233","v":6},{"$f":"SQRT(((H230^2)+(H231^2)+(H232^2)+(H233^2)))","v":22},{"$f":"I230+I231+I232+I233","v":22},{"$f":"SQRT(((J230^2)+(J231^2)+(J232^2)+(J233^2)))","v":28.548204847240395},{"$f":"K230+K231+K232+K233","v":8},{"$f":"SQRT(((L230^2)+(L231^2)+(L232^2)+(L233^2)))","v":17.146428199482248},{"$f":"M230+M231+M232+M233","v":0},{"$f":"SQRT(((N230^2)+(N231^2)+(N232^2)+(N233^2)))","v":22},{"$f":"O230+O231+O232+O233","v":8},{"$f":"SQRT(((P230^2)+(P231^2)+(P232^2)+(P233^2)))","v":21.517434791350013},{"$f":"Q230+Q231+Q232+Q233","v":611},{"$f":"SQRT(((R230^2)+(R231^2)+(R232^2)+(R233^2)))","v":151.18862391066332},{"$f":"S230+S231+S232+S233","v":10},{"$f":"SQRT(((T230^2)+(T231^2)+(T232^2)+(T233^2)))","v":24.248711305964282},{"$f":"U230+U231+U232+U233","v":13},{"$f":"SQRT(((V230^2)+(V231^2)+(V232^2)+(V233^2)))","v":24.248711305964282},{"$f":"W230+W231+W232+W233","v":36},{"$f":"SQRT(((X230^2)+(X231^2)+(X232^2)+(X233^2)))","v":47.560487802376457},{"$f":"Y230+Y231+Y232+Y233","v":21},{"$f":"SQRT(((Z230^2)+(Z231^2)+(Z232^2)+(Z233^2)))","v":35.369478367654786},{"$f":"AA230+AA231+AA232+AA233","v":52},{"$f":"SQRT(((AB230^2)+(AB231^2)+(AB232^2)+(AB233^2)))","v":46.119410230400824},{"$f":"AC230+AC231+AC232+AC233","v":3},{"$f":"SQRT(((AD230^2)+(AD231^2)+(AD232^2)+(AD233^2)))","v":19.467922333931785},{"$f":"AE230+AE231+AE232+AE233","v":45},{"$f":"SQRT(((AF230^2)+(AF231^2)+(AF232^2)+(AF233^2)))","v":47.286361670147556},{"$f":"AG230+AG231+AG232+AG233","v":41},{"$f":"SQRT(((AH230^2)+(AH231^2)+(AH232^2)+(AH233^2)))","v":47.696960070847283},{"$f":"AI230+AI231+AI232+AI233","v":42},{"$f":"SQRT(((AJ230^2)+(AJ231^2)+(AJ232^2)+(AJ233^2)))","v":54.580216195980753},{"$f":"AK230+AK231+AK232+AK233","v":0},{"$f":"SQRT(((AL230^2)+(AL231^2)+(AL232^2)+(AL233^2)))","v":22},{"$f":"AM230+AM231+AM232+AM233","v":100},{"$f":"SQRT(((AN230^2)+(AN231^2)+(AN232^2)+(AN233^2)))","v":67.334983478129701},{"$f":"AO230+AO231+AO232+AO233","v":64},{"$f":"SQRT(((AP230^2)+(AP231^2)+(AP232^2)+(AP233^2)))","v":52.57375771237966},{"$f":"AQ230+AQ231+AQ232+AQ233","v":0},{"$f":"SQRT(((AR230^2)+(AR231^2)+(AR232^2)+(AR233^2)))","v":30},{"$f":"AS230+AS231+AS232+AS233","v":17},{"$f":"SQRT(((AT230^2)+(AT231^2)+(AT232^2)+(AT233^2)))","v":31.432467291003423},{"$f":"AU230+AU231+AU232+AU233","v":0},{"$f":"SQRT(((AV230^2)+(AV231^2)+(AV232^2)+(AV233^2)))","v":22},{"$f":"AW230+AW231+AW232+AW233","v":23},{"$f":"SQRT(((AX230^2)+(AX231^2)+(AX232^2)+(AX233^2)))","v":29.103264421710495},{"$f":"AY230+AY231+AY232+AY233","v":54},{"$f":"SQRT(((AZ230^2)+(AZ231^2)+(AZ232^2)+(AZ233^2)))","v":38.768543949960254},{"$f":"BA230+BA231+BA232+BA233","v":7},{"$f":"SQRT(((BB230^2)+(BB231^2)+(BB232^2)+(BB233^2)))","v":20.297783130184438},{"$f":"BC230+BC231+BC232+BC233","v":20},{"$f":"SQRT(((BD230^2)+(BD231^2)+(BD232^2)+(BD233^2)))","v":26.90724809414742}]
[null,"35.0 percent or more",{"$f":"C234+C235+C236","v":0},{"$f":"SQRT((D234^2)+(D235^2)+(D236^2))","v":19.05255888325765},{"$f":"E234+E235+E236","v":0},{"$f":"SQRT((F234^2)+(F235^2)+(F236^2))","v":19.05255888325765},{"$f":"G234+G235+G236","v":0},{"$f":"SQRT((H234^2)+(H235^2)+(H236^2))","v":19.05255888325765},{"$f":"I234+I235+I236","v":0},{"$f":"SQRT((J234^2)+(J235^2)+(J236^2))","v":25.98076211353316},{"$f":"K234+K235+K236","v":0},{"$f":"SQRT((L234^2)+(L235^2)+(L236^2))","v":19.05255888325765},{"$f":"M234+M235+M236","v":0},{"$f":"SQRT((N234^2)+(N235^2)+(N236^2))","v":19.05255888325765},{"$f":"O234+O235+O236","v":0},{"$f":"SQRT((P234^2)+(P235^2)+(P236^2))","v":19.05255888325765},{"$f":"Q234+Q235+Q236","v":0},{"$f":"SQRT((R234^2)+(R235^2)+(R236^2))","v":39.837168574084181},{"$f":"S234+S235+S236","v":0},{"$f":"SQRT((T234^2)+(T235^2)+(T236^2))","v":19.05255888325765},{"$f":"U234+U235+U236","v":0},{"$f":"SQRT((V234^2)+(V235^2)+(V236^2))","v":19.05255888325765},{"$f":"W234+W235+W236","v":0},{"$f":"SQRT((X234^2)+(X235^2)+(X236^2))","v":19.05255888325765},{"$f":"Y234+Y235+Y236","v":0},{"$f":"SQRT((Z234^2)+(Z235^2)+(Z236^2))","v":25.98076211353316},{"$f":"AA234+AA235+AA236","v":0},{"$f":"SQRT((AB234^2)+(AB235^2)+(AB236^2))","v":19.05255888325765},{"$f":"AC234+AC235+AC236","v":0},{"$f":"SQRT((AD234^2)+(AD235^2)+(AD236^2))","v":19.05255888325765},{"$f":"AE234+AE235+AE236","v":0},{"$f":"SQRT((AF234^2)+(AF235^2)+(AF236^2))","v":29.444863728670914},{"$f":"AG234+AG235+AG236","v":0},{"$f":"SQRT((AH234^2)+(AH235^2)+(AH236^2))","v":25.98076211353316},{"$f":"AI234+AI235+AI236","v":0},{"$f":"SQRT((AJ234^2)+(AJ235^2)+(AJ236^2))","v":25.98076211353316},{"$f":"AK234+AK235+AK236","v":0},{"$f":"SQRT((AL234^2)+(AL235^2)+(AL236^2))","v":19.05255888325765},{"$f":"AM234+AM235+AM236","v":0},{"$f":"SQRT((AN234^2)+(AN235^2)+(AN236^2))","v":19.05255888325765},{"$f":"AO234+AO235+AO236","v":0},{"$f":"SQRT((AP234^2)+(AP235^2)+(AP236^2))","v":19.05255888325765},{"$f":"AQ234+AQ235+AQ236","v":0},{"$f":"SQRT((AR234^2)+(AR235^2)+(AR236^2))","v":25.98076211353316},{"$f":"AS234+AS235+AS236","v":0},{"$f":"SQRT((AT234^2)+(AT235^2)+(AT236^2))","v":19.05255888325765},{"$f":"AU234+AU235+AU236","v":0},{"$f":"SQRT((AV234^2)+(AV235^2)+(AV236^2))","v":19.05255888325765},{"$f":"AW234+AW235+AW236","v":0},{"$f":"SQRT((AX234^2)+(AX235^2)+(AX236^2))","v":19.05255888325765},{"$f":"AY234+AY235+AY236","v":0},{"$f":"SQRT((AZ234^2)+(AZ235^2)+(AZ236^2))","v":19.05255888325765},{"$f":"BA234+BA235+BA236","v":0},{"$f":"SQRT((BB234^2)+(BB235^2)+(BB236^2))","v":19.05255888325765},{"$f":"BC234+BC235+BC236","v":0},{"$f":"SQRT((BD234^2)+(BD235^2)+(BD236^2))","v":19.05255888325765}]
[null,"50.0 percent or more",{"$f":"C236","v":0},{"$f":"D236","v":11},{"$f":"E236","v":0},{"$f":"F236","v":11},{"$f":"G236","v":0},11,{"$f":"I236","v":0},15,{"$f":"K236","v":0},11,{"$f":"M236","v":0},11,{"$f":"O236","v":0},11,{"$f":"Q236","v":0},23,{"$f":"S236","v":0},11,{"$f":"U236","v":0},11,{"$f":"W236","v":0},11,{"$f":"Y236","v":0},15,{"$f":"AA236","v":0},11,{"$f":"AC236","v":0},11,{"$f":"AE236","v":0},17,{"$f":"AG236","v":0},15,{"$f":"AI236","v":0},15,{"$f":"AK236","v":0},11,{"$f":"AM236","v":0},11,{"$f":"AO236","v":0},11,{"$f":"AQ236","v":0},15,{"$f":"AS236","v":0},11,{"$f":"AU236","v":0},11,{"$f":"AW236","v":0},11,{"$f":"AY236","v":0},11,{"$f":"BA236","v":0},11,{"$f":"BC236","v":0},11]
[null,"Not Computed",{"$f":"C237","v":0},11,{"$f":"E237","v":17},26,{"$f":"G237","v":9},15,{"$f":"I237","v":0},15,{"$f":"K237","v":0},11,{"$f":"M237","v":0},11,{"$f":"O237","v":0},11,{"$f":"Q237","v":15},23,{"$f":"S237","v":0},11,{"$f":"U237","v":0},11,{"$f":"W237","v":0},11,{"$f":"Y237","v":0},15,{"$f":"AA237","v":0},11,{"$f":"AC237","v":0},11,{"$f":"AE237","v":12},18,{"$f":"AG237","v":0},15,{"$f":"AI237","v":0},15,{"$f":"AK237","v":15},23,{"$f":"AM237","v":8},13,{"$f":"AO237","v":0},11,{"$f":"AQ237","v":0},15,{"$f":"AS237","v":0},11,{"$f":"AU237","v":0},11,{"$f":"AW237","v":0},11,{"$f":"AY237","v":5},7,{"$f":"BA237","v":0},11,{"$f":"BC237","v":0},11]
[]
[]
[null,"Calculated GROSS RENT AS A PERCENTAGE OF HOUSEHOLD INCOME IN THE PAST 12 MONTHS"]
[null,"Universe:  RENTER-OCCUPIED HOUSING UNITS"]
[null,{"$f":"B170","v":"Data Set: 2013-2017 American Community Survey 5-Year Estimates"}]
[]
[null,null,"Allenstown",null,"Andover",null,"Boscawen",null,"Bow",null,"Bradford",null,"Canterbury",null,"Chichester",null,"Concord",null,"Danbury",null,"Dunbarton",null,"Epsom",null,"Franklin",null,"Henniker",null,"Hill",null,"Hooksett",null,"Hopkinton",null,"Loudon",null,"Newbury",null,"New London",null,"Northfield",null,"Pembroke",null,"Pittsfield",null,"Salisbury",null,"Sutton",null,"Warner",null,"Webster",null,"Wilmot"]
[null,null,"Estimate","Margin Of Error","Estimate","Margin Of Error","Estimate","Margin Of Error","Estimate","Margin Of Error","Estimate","Margin Of Error","Estimate","Margin Of Error","Estimate","Margin Of Error","Estimate","Margin Of Error","Estimate","Margin Of Error","Estimate","Margin Of Error","Estimate","Margin Of Error","Estimate","Margin Of Error","Estimate","Margin Of Error","Estimate","Margin Of Error","Estimate","Margin Of Error","Estimate","Margin Of Error","Estimate","Margin Of Error","Estimate","Margin Of Error","Estimate","Margin Of Error","Estimate","Margin Of Error","Estimate","Margin Of Error","Estimate","Margin Of Error","Estimate","Margin Of Error","Estimate","Margin Of Error","Estimate","Margin Of Error","Estimate","Margin Of Error","Estimate","Margin Of Error"]
[null,{"$f":"B259","v":"Total:"},467,107,157,66,385,91,345,88,62,23,49,31,88,39,7942,349,81,39,98,40,332,112,1520,196,522,105,34,18,997,142,235,84,279,114,49,31,411,118,459,106,727,202,665,131,32,26,105,43,265,65,96,35,143,45]
[null,"Less than 30.0 percent",{"$f":"C303+C296+C289+C282+C275+C268+C261","v":259},{"$f":"SQRT((D303^2)+(D296^2)+(D289^2)+(D282^2)+(D275^2)+(D268^2)+(D261^2))","v":103.98076745244767},{"$f":"E303+E296+E289+E282+E275+E268+E261","v":50},{"$f":"SQRT((F303^2)+(F296^2)+(F289^2)+(F282^2)+(F275^2)+(F268^2)+(F261^2))","v":58.086142925830423},{"$f":"G303+G296+G289+G282+G275+G268+G261","v":160},{"$f":"SQRT((H303^2)+(H296^2)+(H289^2)+(H282^2)+(H275^2)+(H268^2)+(H261^2))","v":99.191733526539394},{"$f":"I303+I296+I289+I282+I275+I268+I261","v":90},{"$f":"SQRT((J303^2)+(J296^2)+(J289^2)+(J282^2)+(J275^2)+(J268^2)+(J261^2))","v":77.142724867611463},{"$f":"K303+K296+K289+K282+K275+K268+K261","v":25},{"$f":"SQRT((L303^2)+(L296^2)+(L289^2)+(L282^2)+(L275^2)+(L268^2)+(L261^2))","v":44.045431091090478},{"$f":"M303+M296+M289+M282+M275+M268+M261","v":13},{"$f":"SQRT((N303^2)+(N296^2)+(N289^2)+(N282^2)+(N275^2)+(N268^2)+(N261^2))","v":51.146847410177685},{"$f":"O303+O296+O289+O282+O275+O268+O261","v":54},{"$f":"SQRT((P303^2)+(P296^2)+(P289^2)+(P282^2)+(P275^2)+(P268^2)+(P261^2))","v":57.680152565678952},{"$f":"Q303+Q296+Q289+Q282+Q275+Q268+Q261","v":3815},{"$f":"SQRT((R303^2)+(R296^2)+(R289^2)+(R282^2)+(R275^2)+(R268^2)+(R261^2))","v":407.67511574782191},{"$f":"S303+S296+S289+S282+S275+S268+S261","v":66},{"$f":"SQRT((T303^2)+(T296^2)+(T289^2)+(T282^2)+(T275^2)+(T268^2)+(T261^2))","v":59.346440499831161},{"$f":"U303+U296+U289+U282+U275+U268+U261","v":62},{"$f":"SQRT((V303^2)+(V296^2)+(V289^2)+(V282^2)+(V275^2)+(V268^2)+(V261^2))","v":51.980765673468106},{"$f":"W303+W296+W289+W282+W275+W268+W261","v":116},{"$f":"SQRT((X303^2)+(X296^2)+(X289^2)+(X282^2)+(X275^2)+(X268^2)+(X261^2))","v":77.659513261415697},{"$f":"Y303+Y296+Y289+Y282+Y275+Y268+Y261","v":699},{"$f":"SQRT((Z303^2)+(Z296^2)+(Z289^2)+(Z282^2)+(Z275^2)+(Z268^2)+(Z261^2))","v":188.68757245775356},{"$f":"AA303+AA296+AA289+AA282+AA275+AA268+AA261","v":237},{"$f":"SQRT((AB303^2)+(AB296^2)+(AB289^2)+(AB282^2)+(AB275^2)+(AB268^2)+(AB261^2))","v":105.60776486603625},{"$f":"AC303+AC296+AC289+AC282+AC275+AC268+AC261","v":22},{"$f":"SQRT((AD303^2)+(AD296^2)+(AD289^2)+(AD282^2)+(AD275^2)+(AD268^2)+(AD261^2))","v":47.874836814343297},{"$f":"AE303+AE296+AE289+AE282+AE275+AE268+AE261","v":454},{"$f":"SQRT((AF303^2)+(AF296^2)+(AF289^2)+(AF282^2)+(AF275^2)+(AF268^2)+(AF261^2))","v":143.76717288727633},{"$f":"AG303+AG296+AG289+AG282+AG275+AG268+AG261","v":159},{"$f":"SQRT((AH303^2)+(AH296^2)+(AH289^2)+(AH282^2)+(AH275^2)+(AH268^2)+(AH261^2))","v":112.84945724282417},{"$f":"AI303+AI296+AI289+AI282+AI275+AI268+AI261","v":162},{"$f":"SQRT((AJ303^2)+(AJ296^2)+(AJ289^2)+(AJ282^2)+(AJ275^2)+(AJ268^2)+(AJ261^2))","v":113.03096920755833},{"$f":"AK303+AK296+AK289+AK282+AK275+AK268+AK261","v":24},{"$f":"SQRT((AL303^2)+(AL296^2)+(AL289^2)+(AL282^2)+(AL275^2)+(AL268^2)+(AL261^2))","v":49.678969393496885},{"$f":"AM303+AM296+AM289+AM282+AM275+AM268+AM261","v":177},{"$f":"SQRT((AN303^2)+(AN296^2)+(AN289^2)+(AN282^2)+(AN275^2)+(AN268^2)+(AN261^2))","v":94.789239895675919},{"$f":"AO303+AO296+AO289+AO282+AO275+AO268+AO261","v":276},{"$f":"SQRT((AP303^2)+(AP296^2)+(AP289^2)+(AP282^2)+(AP275^2)+(AP268^2)+(AP261^2))","v":110.12265888544464},{"$f":"AQ303+AQ296+AQ289+AQ282+AQ275+AQ268+AQ261","v":434},{"$f":"SQRT((AR303^2)+(AR296^2)+(AR289^2)+(AR282^2)+(AR275^2)+(AR268^2)+(AR261^2))","v":172.43839479651857},{"$f":"AS303+AS296+AS289+AS282+AS275+AS268+AS261","v":268},{"$f":"SQRT((AT303^2)+(AT296^2)+(AT289^2)+(AT282^2)+(AT275^2)+(AT268^2)+(AT261^2))","v":114.03508232118746},{"$f":"AU303+AU296+AU289+AU282+AU275+AU268+AU261","v":12},{"$f":"SQRT((AV303^2)+(AV296^2)+(AV289^2)+(AV282^2)+(AV275^2)+(AV268^2)+(AV261^2))","v":48.166378315169183},{"$f":"AW303+AW296+AW289+AW282+AW275+AW268+AW261","v":62},{"$f":"SQRT((AX303^2)+(AX296^2)+(AX289^2)+(AX282^2)+(AX275^2)+(AX268^2)+(AX261^2))","v":55.362442142665635},{"$f":"AY303+AY296+AY289+AY282+AY275+AY268+AY261","v":157},{"$f":"SQRT((AZ303^2)+(AZ296^2)+(AZ289^2)+(AZ282^2)+(AZ275^2)+(AZ268^2)+(AZ261^2))","v":68.927498141162786},{"$f":"BA303+BA296+BA289+BA282+BA275+BA268+BA261","v":40},{"$f":"SQRT((BB303^2)+(BB296^2)+(BB289^2)+(BB282^2)+(BB275^2)+(BB268^2)+(BB261^2))","v":44.384682042344295},{"$f":"BC303+BC296+BC289+BC282+BC275+BC268+BC261","v":60},{"$f":"SQRT((BD303^2)+(BD296^2)+(BD289^2)+(BD282^2)+(BD275^2)+(BD268^2)+(BD261^2))","v":52.735187493740838}]
[null,"More than 30.0 percent",{"$f":"C304+C297+C290+C283+C276+C269+C262","v":190},{"$f":"SQRT((D304^2)+(D297^2)+(D290^2)+(D283^2)+(D276^2)+(D269^2)+(D262^2))","v":105.49881515922347},{"$f":"E304+E297+E290+E283+E276+E269+E262","v":52},{"$f":"SQRT((F304^2)+(F297^2)+(F290^2)+(F283^2)+(F276^2)+(F269^2)+(F262^2))","v":66.174013026262813},{"$f":"G304+G297+G290+G283+G276+G269+G262","v":201},{"$f":"SQRT((H304^2)+(H297^2)+(H290^2)+(H283^2)+(H276^2)+(H269^2)+(H262^2))","v":93.037626796904064},{"$f":"I304+I297+I290+I283+I276+I269+I262","v":228},{"$f":"SQRT((J304^2)+(J297^2)+(J290^2)+(J283^2)+(J276^2)+(J269^2)+(J262^2))","v":98.259859556178895},{"$f":"K304+K297+K290+K283+K276+K269+K262","v":37},{"$f":"SQRT((L304^2)+(L297^2)+(L290^2)+(L283^2)+(L276^2)+(L269^2)+(L262^2))","v":54.561891462814962},{"$f":"M304+M297+M290+M283+M276+M269+M262","v":14},{"$f":"SQRT((N304^2)+(N297^2)+(N290^2)+(N283^2)+(N276^2)+(N269^2)+(N262^2))","v":58.617403559011379},{"$f":"O304+O297+O290+O283+O276+O269+O262","v":27},{"$f":"SQRT((P304^2)+(P297^2)+(P290^2)+(P283^2)+(P276^2)+(P269^2)+(P262^2))","v":61.171888968708494},{"$f":"Q304+Q297+Q290+Q283+Q276+Q269+Q262","v":3721},{"$f":"SQRT((R304^2)+(R297^2)+(R290^2)+(R283^2)+(R276^2)+(R269^2)+(R262^2))","v":429.70105887698253},{"$f":"S304+S297+S290+S283+S276+S269+S262","v":9},{"$f":"SQRT((T304^2)+(T297^2)+(T290^2)+(T283^2)+(T276^2)+(T269^2)+(T262^2))","v":58.025856305616031},{"$f":"U304+U297+U290+U283+U276+U269+U262","v":33},{"$f":"SQRT((V304^2)+(V297^2)+(V290^2)+(V283^2)+(V276^2)+(V269^2)+(V262^2))","v":61.878914017619927},{"$f":"W304+W297+W290+W283+W276+W269+W262","v":185},{"$f":"SQRT((X304^2)+(X297^2)+(X290^2)+(X283^2)+(X276^2)+(X269^2)+(X262^2))","v":100.63299657666963},{"$f":"Y304+Y297+Y290+Y283+Y276+Y269+Y262","v":745},{"$f":"SQRT((Z304^2)+(Z297^2)+(Z290^2)+(Z283^2)+(Z276^2)+(Z269^2)+(Z262^2))","v":208.98564544006365},{"$f":"AA304+AA297+AA290+AA283+AA276+AA269+AA262","v":259},{"$f":"SQRT((AB304^2)+(AB297^2)+(AB290^2)+(AB283^2)+(AB276^2)+(AB269^2)+(AB262^2))","v":112.14722466472365},{"$f":"AC304+AC297+AC290+AC283+AC276+AC269+AC262","v":3},{"$f":"SQRT((AD304^2)+(AD297^2)+(AD290^2)+(AD283^2)+(AD276^2)+(AD269^2)+(AD262^2))","v":57.297469403107151},{"$f":"AE304+AE297+AE290+AE283+AE276+AE269+AE262","v":460},{"$f":"SQRT((AF304^2)+(AF297^2)+(AF290^2)+(AF283^2)+(AF276^2)+(AF269^2)+(AF262^2))","v":162.42536747688152},{"$f":"AG304+AG297+AG290+AG283+AG276+AG269+AG262","v":34},{"$f":"SQRT((AH304^2)+(AH297^2)+(AH290^2)+(AH283^2)+(AH276^2)+(AH269^2)+(AH262^2))","v":86.648716089737874},{"$f":"AI304+AI297+AI290+AI283+AI276+AI269+AI262","v":78},{"$f":"SQRT((AJ304^2)+(AJ297^2)+(AJ290^2)+(AJ283^2)+(AJ276^2)+(AJ269^2)+(AJ262^2))","v":89.660470665728724},{"$f":"AK304+AK297+AK290+AK283+AK276+AK269+AK262","v":4},{"$f":"SQRT((AL304^2)+(AL297^2)+(AL290^2)+(AL283^2)+(AL276^2)+(AL269^2)+(AL262^2))","v":57.471732182004047},{"$f":"AM304+AM297+AM290+AM283+AM276+AM269+AM262","v":177},{"$f":"SQRT((AN304^2)+(AN297^2)+(AN290^2)+(AN283^2)+(AN276^2)+(AN269^2)+(AN262^2))","v":95.838405662865654},{"$f":"AO304+AO297+AO290+AO283+AO276+AO269+AO262","v":171},{"$f":"SQRT((AP304^2)+(AP297^2)+(AP290^2)+(AP283^2)+(AP276^2)+(AP269^2)+(AP262^2))","v":108.531101533155},{"$f":"AQ304+AQ297+AQ290+AQ283+AQ276+AQ269+AQ262","v":277},{"$f":"SQRT((AR304^2)+(AR297^2)+(AR290^2)+(AR283^2)+(AR276^2)+(AR269^2)+(AR262^2))","v":169.00887550658396},{"$f":"AS304+AS297+AS290+AS283+AS276+AS269+AS262","v":397},{"$f":"SQRT((AT304^2)+(AT297^2)+(AT290^2)+(AT283^2)+(AT276^2)+(AT269^2)+(AT262^2))","v":153.16004700965587},{"$f":"AU304+AU297+AU290+AU283+AU276+AU269+AU262","v":17},{"$f":"SQRT((AV304^2)+(AV297^2)+(AV290^2)+(AV283^2)+(AV276^2)+(AV269^2)+(AV262^2))","v":60.099916805266879},{"$f":"AW304+AW297+AW290+AW283+AW276+AW269+AW262","v":22},{"$f":"SQRT((AX304^2)+(AX297^2)+(AX290^2)+(AX283^2)+(AX276^2)+(AX269^2)+(AX262^2))","v":61.611687202997452},{"$f":"AY304+AY297+AY290+AY283+AY276+AY269+AY262","v":86},{"$f":"SQRT((AZ304^2)+(AZ297^2)+(AZ290^2)+(AZ283^2)+(AZ276^2)+(AZ269^2)+(AZ262^2))","v":67.616566017507864},{"$f":"BA304+BA297+BA290+BA283+BA276+BA269+BA262","v":38},{"$f":"SQRT((BB304^2)+(BB297^2)+(BB290^2)+(BB283^2)+(BB276^2)+(BB269^2)+(BB262^2))","v":61.725197448043858},{"$f":"BC304+BC297+BC290+BC283+BC276+BC269+BC262","v":78},{"$f":"SQRT((BD304^2)+(BD297^2)+(BD290^2)+(BD283^2)+(BD276^2)+(BD269^2)+(BD262^2))","v":64.552304374050038}]
[null,"Less Than 35% of HH Income",{"$f":"C305+C298+C291+C284+C277+C270+C263","v":306},{"$f":"SQRT((D305^2)+(D298^2)+(D291^2)+(D284^2)+(D277^2)+(D270^2)+(D263^2))","v":114.51200810395389},{"$f":"E305+E298+E291+E284+E277+E270+E263","v":50},{"$f":"SQRT((F305^2)+(F298^2)+(F291^2)+(F284^2)+(F277^2)+(F270^2)+(F263^2))","v":64.969223483123145},{"$f":"G305+G298+G291+G284+G277+G270+G263","v":211},{"$f":"SQRT((H305^2)+(H298^2)+(H291^2)+(H284^2)+(H277^2)+(H270^2)+(H263^2))","v":108.10642904101495},{"$f":"I305+I298+I291+I284+I277+I270+I263","v":122},{"$f":"SQRT((J305^2)+(J298^2)+(J291^2)+(J284^2)+(J277^2)+(J270^2)+(J263^2))","v":86.769810418140253},{"$f":"K305+K298+K291+K284+K277+K270+K263","v":38},{"$f":"SQRT((L305^2)+(L298^2)+(L291^2)+(L284^2)+(L277^2)+(L270^2)+(L263^2))","v":50.685303589896748},{"$f":"M305+M298+M291+M284+M277+M270+M263","v":13},{"$f":"SQRT((N305^2)+(N298^2)+(N291^2)+(N284^2)+(N277^2)+(N270^2)+(N263^2))","v":58.84725991921799},{"$f":"O305+O298+O291+O284+O277+O270+O263","v":71},{"$f":"SQRT((P305^2)+(P298^2)+(P291^2)+(P284^2)+(P277^2)+(P270^2)+(P263^2))","v":66.730802482811484},{"$f":"Q305+Q298+Q291+Q284+Q277+Q270+Q263","v":4587},{"$f":"SQRT((R305^2)+(R298^2)+(R291^2)+(R284^2)+(R277^2)+(R270^2)+(R263^2))","v":443.30463566265581},{"$f":"S305+S298+S291+S284+S277+S270+S263","v":66},{"$f":"SQRT((T305^2)+(T298^2)+(T291^2)+(T284^2)+(T277^2)+(T270^2)+(T263^2))","v":66.098411478642959},{"$f":"U305+U298+U291+U284+U277+U270+U263","v":90},{"$f":"SQRT((V305^2)+(V298^2)+(V291^2)+(V284^2)+(V277^2)+(V270^2)+(V263^2))","v":63.616035714275689},{"$f":"W305+W298+W291+W284+W277+W270+W263","v":152},{"$f":"SQRT((X305^2)+(X298^2)+(X291^2)+(X284^2)+(X277^2)+(X270^2)+(X263^2))","v":88.977525252166913},{"$f":"Y305+Y298+Y291+Y284+Y277+Y270+Y263","v":860},{"$f":"SQRT((Z305^2)+(Z298^2)+(Z291^2)+(Z284^2)+(Z277^2)+(Z270^2)+(Z263^2))","v":206.80667300645788},{"$f":"AA305+AA298+AA291+AA284+AA277+AA270+AA263","v":302},{"$f":"SQRT((AB305^2)+(AB298^2)+(AB291^2)+(AB284^2)+(AB277^2)+(AB270^2)+(AB263^2))","v":119.9249765478401},{"$f":"AC305+AC298+AC291+AC284+AC277+AC270+AC263","v":22},{"$f":"SQRT((AD305^2)+(AD298^2)+(AD291^2)+(AD284^2)+(AD277^2)+(AD270^2)+(AD263^2))","v":56.026779311325761},{"$f":"AE305+AE298+AE291+AE284+AE277+AE270+AE263","v":514},{"$f":"SQRT((AF305^2)+(AF298^2)+(AF291^2)+(AF284^2)+(AF277^2)+(AF270^2)+(AF263^2))","v":153.69775535120868},{"$f":"AG305+AG298+AG291+AG284+AG277+AG270+AG263","v":159},{"$f":"SQRT((AH305^2)+(AH298^2)+(AH291^2)+(AH284^2)+(AH277^2)+(AH270^2)+(AH263^2))","v":119.62441222426132},{"$f":"AI305+AI298+AI291+AI284+AI277+AI270+AI263","v":174},{"$f":"SQRT((AJ305^2)+(AJ298^2)+(AJ291^2)+(AJ284^2)+(AJ277^2)+(AJ270^2)+(AJ263^2))","v":120.36195412172403},{"$f":"AK305+AK298+AK291+AK284+AK277+AK270+AK263","v":28},{"$f":"SQRT((AL305^2)+(AL298^2)+(AL291^2)+(AL284^2)+(AL277^2)+(AL270^2)+(AL263^2))","v":56.833088953531288},{"$f":"AM305+AM298+AM291+AM284+AM277+AM270+AM263","v":240},{"$f":"SQRT((AN305^2)+(AN298^2)+(AN291^2)+(AN284^2)+(AN277^2)+(AN270^2)+(AN263^2))","v":108.11567878897121},{"$f":"AO305+AO298+AO291+AO284+AO277+AO270+AO263","v":276},{"$f":"SQRT((AP305^2)+(AP298^2)+(AP291^2)+(AP284^2)+(AP277^2)+(AP270^2)+(AP263^2))","v":113.9034679015525},{"$f":"AQ305+AQ298+AQ291+AQ284+AQ277+AQ270+AQ263","v":479},{"$f":"SQRT((AR305^2)+(AR298^2)+(AR291^2)+(AR284^2)+(AR277^2)+(AR270^2)+(AR263^2))","v":180.59346610550449},{"$f":"AS305+AS298+AS291+AS284+AS277+AS270+AS263","v":356},{"$f":"SQRT((AT305^2)+(AT298^2)+(AT291^2)+(AT284^2)+(AT277^2)+(AT270^2)+(AT263^2))","v":132.14386100004796},{"$f":"AU305+AU298+AU291+AU284+AU277+AU270+AU263","v":12},{"$f":"SQRT((AV305^2)+(AV298^2)+(AV291^2)+(AV284^2)+(AV277^2)+(AV270^2)+(AV263^2))","v":56.276105053566027},{"$f":"AW305+AW298+AW291+AW284+AW277+AW270+AW263","v":62},{"$f":"SQRT((AX305^2)+(AX298^2)+(AX291^2)+(AX284^2)+(AX277^2)+(AX270^2)+(AX263^2))","v":62.545983084447556},{"$f":"AY305+AY298+AY291+AY284+AY277+AY270+AY263","v":166},{"$f":"SQRT((AZ305^2)+(AZ298^2)+(AZ291^2)+(AZ284^2)+(AZ277^2)+(AZ270^2)+(AZ263^2))","v":73.85120175054702},{"$f":"BA305+BA298+BA291+BA284+BA277+BA270+BA263","v":48},{"$f":"SQRT((BB305^2)+(BB298^2)+(BB291^2)+(BB284^2)+(BB277^2)+(BB270^2)+(BB263^2))","v":53.525694764290542},{"$f":"BC305+BC298+BC291+BC284+BC277+BC270+BC263","v":78},{"$f":"SQRT((BD305^2)+(BD298^2)+(BD291^2)+(BD284^2)+(BD277^2)+(BD270^2)+(BD263^2))","v":62.337789502034802}]
[null,"35.0 percent or more",{"$f":"C306+C299+C292+C285+C278+C271+C264","v":143},{"$f":"SQRT((D306^2)+(D299^2)+(D292^2)+(D285^2)+(D278^2)+(D271^2)+(D264^2))","v":93.962758580194958},{"$f":"E306+E299+E292+E285+E278+E271+E264","v":52},{"$f":"SQRT((F306^2)+(F299^2)+(F292^2)+(F285^2)+(F278^2)+(F271^2)+(F264^2))","v":59.430631832414505},{"$f":"G306+G299+G292+G285+G278+G271+G264","v":150},{"$f":"SQRT((H306^2)+(H299^2)+(H292^2)+(H285^2)+(H278^2)+(H271^2)+(H264^2))","v":82.510605378945073},{"$f":"I306+I299+I292+I285+I278+I271+I264","v":196},{"$f":"SQRT((J306^2)+(J299^2)+(J292^2)+(J285^2)+(J278^2)+(J271^2)+(J264^2))","v":89.872131386765275},{"$f":"K306+K299+K292+K285+K278+K271+K264","v":24},{"$f":"SQRT((L306^2)+(L299^2)+(L292^2)+(L285^2)+(L278^2)+(L271^2)+(L264^2))","v":48.45616575834287},{"$f":"M306+M299+M292+M285+M278+M271+M264","v":14},{"$f":"SQRT((N306^2)+(N299^2)+(N292^2)+(N285^2)+(N278^2)+(N271^2)+(N264^2))","v":50.882216932834204},{"$f":"O306+O299+O292+O285+O278+O271+O264","v":10},{"$f":"SQRT((P306^2)+(P299^2)+(P292^2)+(P285^2)+(P278^2)+(P271^2)+(P264^2))","v":51.146847410177685},{"$f":"Q306+Q299+Q292+Q285+Q278+Q271+Q264","v":2949},{"$f":"SQRT((R306^2)+(R299^2)+(R292^2)+(R285^2)+(R278^2)+(R271^2)+(R264^2))","v":392.8396619487396},{"$f":"S306+S299+S292+S285+S278+S271+S264","v":9},{"$f":"SQRT((T306^2)+(T299^2)+(T292^2)+(T285^2)+(T278^2)+(T271^2)+(T264^2))","v":50.19960159204453},{"$f":"U306+U299+U292+U285+U278+U271+U264","v":5},{"$f":"SQRT((V306^2)+(V299^2)+(V292^2)+(V285^2)+(V278^2)+(V271^2)+(V264^2))","v":49.839743177508446},{"$f":"W306+W299+W292+W285+W278+W271+W264","v":149},{"$f":"SQRT((X306^2)+(X299^2)+(X292^2)+(X285^2)+(X278^2)+(X271^2)+(X264^2))","v":90.779953734290913},{"$f":"Y306+Y299+Y292+Y285+Y278+Y271+Y264","v":584},{"$f":"SQRT((Z306^2)+(Z299^2)+(Z292^2)+(Z285^2)+(Z278^2)+(Z271^2)+(Z264^2))","v":191.07328437015991},{"$f":"AA306+AA299+AA292+AA285+AA278+AA271+AA264","v":194},{"$f":"SQRT((AB306^2)+(AB299^2)+(AB292^2)+(AB285^2)+(AB278^2)+(AB271^2)+(AB264^2))","v":96.685055722174567},{"$f":"AC306+AC299+AC292+AC285+AC278+AC271+AC264","v":3},{"$f":"SQRT((AD306^2)+(AD299^2)+(AD292^2)+(AD285^2)+(AD278^2)+(AD271^2)+(AD264^2))","v":49.355850717012267},{"$f":"AE306+AE299+AE292+AE285+AE278+AE271+AE264","v":400},{"$f":"SQRT((AF306^2)+(AF299^2)+(AF292^2)+(AF285^2)+(AF278^2)+(AF271^2)+(AF264^2))","v":153.06207890917986},{"$f":"AG306+AG299+AG292+AG285+AG278+AG271+AG264","v":34},{"$f":"SQRT((AH306^2)+(AH299^2)+(AH292^2)+(AH285^2)+(AH278^2)+(AH271^2)+(AH264^2))","v":77.025969646606853},{"$f":"AI306+AI299+AI292+AI285+AI278+AI271+AI264","v":66},{"$f":"SQRT((AJ306^2)+(AJ299^2)+(AJ292^2)+(AJ285^2)+(AJ278^2)+(AJ271^2)+(AJ264^2))","v":79.54872720540537},{"$f":"AK306+AK299+AK292+AK285+AK278+AK271+AK264","v":0},{"$f":"SQRT((AL306^2)+(AL299^2)+(AL292^2)+(AL285^2)+(AL278^2)+(AL271^2)+(AL264^2))","v":50.408332644514239},{"$f":"AM306+AM299+AM292+AM285+AM278+AM271+AM264","v":114},{"$f":"SQRT((AN306^2)+(AN299^2)+(AN292^2)+(AN285^2)+(AN278^2)+(AN271^2)+(AN264^2))","v":80.504658250314932},{"$f":"AO306+AO299+AO292+AO285+AO278+AO271+AO264","v":171},{"$f":"SQRT((AP306^2)+(AP299^2)+(AP292^2)+(AP285^2)+(AP278^2)+(AP271^2)+(AP264^2))","v":104.55620498086185},{"$f":"AQ306+AQ299+AQ292+AQ285+AQ278+AQ271+AQ264","v":232},{"$f":"SQRT((AR306^2)+(AR299^2)+(AR292^2)+(AR285^2)+(AR278^2)+(AR271^2)+(AR264^2))","v":160.26540487578723},{"$f":"AS306+AS299+AS292+AS285+AS278+AS271+AS264","v":309},{"$f":"SQRT((AT306^2)+(AT299^2)+(AT292^2)+(AT285^2)+(AT278^2)+(AT271^2)+(AT264^2))","v":137.84048752090223},{"$f":"AU306+AU299+AU292+AU285+AU278+AU271+AU264","v":17},{"$f":"SQRT((AV306^2)+(AV299^2)+(AV292^2)+(AV285^2)+(AV278^2)+(AV271^2)+(AV264^2))","v":52.583267300539625},{"$f":"AW306+AW299+AW292+AW285+AW278+AW271+AW264","v":22},{"$f":"SQRT((AX306^2)+(AX299^2)+(AX292^2)+(AX285^2)+(AX278^2)+(AX271^2)+(AX264^2))","v":54.304695929541857},{"$f":"AY306+AY299+AY292+AY285+AY278+AY271+AY264","v":77},{"$f":"SQRT((AZ306^2)+(AZ299^2)+(AZ292^2)+(AZ285^2)+(AZ278^2)+(AZ271^2)+(AZ264^2))","v":62.201286160335947},{"$f":"BA306+BA299+BA292+BA285+BA278+BA271+BA264","v":30},{"$f":"SQRT((BB306^2)+(BB299^2)+(BB292^2)+(BB285^2)+(BB278^2)+(BB271^2)+(BB264^2))","v":53.990739946772351},{"$f":"BC306+BC299+BC292+BC285+BC278+BC271+BC264","v":60},{"$f":"SQRT((BD306^2)+(BD299^2)+(BD292^2)+(BD285^2)+(BD278^2)+(BD271^2)+(BD264^2))","v":55.335341329027692}]
[null,"50.0 percent or more",{"$f":"C307+C300+C293+C286+C279+C272+C265","v":109},{"$f":"SQRT((D307^2)+(D300^2)+(D293^2)+(D286^2)+(D279^2)+(D272^2)+(D265^2))","v":82.346827504160714},{"$f":"E307+E300+E293+E286+E279+E272+E265","v":25},{"$f":"SQRT((F307^2)+(F300^2)+(F293^2)+(F286^2)+(F279^2)+(F272^2)+(F265^2))","v":36.083237105337432},{"$f":"G307+G300+G293+G286+G279+G272+G265","v":107},{"$f":"SQRT((H307^2)+(H300^2)+(H293^2)+(H286^2)+(H279^2)+(H272^2)+(H265^2))","v":60.94259594077036},{"$f":"I307+I300+I293+I286+I279+I272+I265","v":128},{"$f":"SQRT((J307^2)+(J300^2)+(J293^2)+(J286^2)+(J279^2)+(J272^2)+(J265^2))","v":66.068146636635717},{"$f":"K307+K300+K293+K286+K279+K272+K265","v":21},{"$f":"SQRT((L307^2)+(L300^2)+(L293^2)+(L286^2)+(L279^2)+(L272^2)+(L265^2))","v":27.54995462791182},{"$f":"M307+M300+M293+M286+M279+M272+M265","v":14},{"$f":"SQRT((N307^2)+(N300^2)+(N293^2)+(N286^2)+(N279^2)+(N272^2)+(N265^2))","v":29.916550603303182},{"$f":"O307+O300+O293+O286+O279+O272+O265","v":0},{"$f":"SQRT((P307^2)+(P300^2)+(P293^2)+(P286^2)+(P279^2)+(P272^2)+(P265^2))","v":29.103264421710495},{"$f":"Q307+Q300+Q293+Q286+Q279+Q272+Q265","v":1742},{"$f":"SQRT((R307^2)+(R300^2)+(R293^2)+(R286^2)+(R279^2)+(R272^2)+(R265^2))","v":277.02887936097926},{"$f":"S307+S300+S293+S286+S279+S272+S265","v":0},{"$f":"SQRT((T307^2)+(T300^2)+(T293^2)+(T286^2)+(T279^2)+(T272^2)+(T265^2))","v":29.103264421710495},{"$f":"U307+U300+U293+U286+U279+U272+U265","v":5},{"$f":"SQRT((V307^2)+(V300^2)+(V293^2)+(V286^2)+(V279^2)+(V272^2)+(V265^2))","v":28.106938645110393},{"$f":"W307+W300+W293+W286+W279+W272+W265","v":65},{"$f":"SQRT((X307^2)+(X300^2)+(X293^2)+(X286^2)+(X279^2)+(X272^2)+(X265^2))","v":55.97320787662612},{"$f":"Y307+Y300+Y293+Y286+Y279+Y272+Y265","v":394},{"$f":"SQRT((Z307^2)+(Z300^2)+(Z293^2)+(Z286^2)+(Z279^2)+(Z272^2)+(Z265^2))","v":148.75819305167698},{"$f":"AA307+AA300+AA293+AA286+AA279+AA272+AA265","v":114},{"$f":"SQRT((AB307^2)+(AB300^2)+(AB293^2)+(AB286^2)+(AB279^2)+(AB272^2)+(AB265^2))","v":73.566296630998082},{"$f":"AC307+AC300+AC293+AC286+AC279+AC272+AC265","v":3},{"$f":"SQRT((AD307^2)+(AD300^2)+(AD293^2)+(AD286^2)+(AD279^2)+(AD272^2)+(AD265^2))","v":27.239676943752471},{"$f":"AE307+AE300+AE293+AE286+AE279+AE272+AE265","v":265},{"$f":"SQRT((AF307^2)+(AF300^2)+(AF293^2)+(AF286^2)+(AF279^2)+(AF272^2)+(AF265^2))","v":132.95487956445976},{"$f":"AG307+AG300+AG293+AG286+AG279+AG272+AG265","v":0},{"$f":"SQRT((AH307^2)+(AH300^2)+(AH293^2)+(AH286^2)+(AH279^2)+(AH272^2)+(AH265^2))","v":39.686269665968858},{"$f":"AI307+AI300+AI293+AI286+AI279+AI272+AI265","v":35},{"$f":"SQRT((AJ307^2)+(AJ300^2)+(AJ293^2)+(AJ286^2)+(AJ279^2)+(AJ272^2)+(AJ265^2))","v":46.669047558312137},{"$f":"AK307+AK300+AK293+AK286+AK279+AK272+AK265","v":0},{"$f":"SQRT((AL307^2)+(AL300^2)+(AL293^2)+(AL286^2)+(AL279^2)+(AL272^2)+(AL265^2))","v":29.103264421710495},{"$f":"AM307+AM300+AM293+AM286+AM279+AM272+AM265","v":82},{"$f":"SQRT((AN307^2)+(AN300^2)+(AN293^2)+(AN286^2)+(AN279^2)+(AN272^2)+(AN265^2))","v":63.757352517180323},{"$f":"AO307+AO300+AO293+AO286+AO279+AO272+AO265","v":86},{"$f":"SQRT((AP307^2)+(AP300^2)+(AP293^2)+(AP286^2)+(AP279^2)+(AP272^2)+(AP265^2))","v":74.337070160183202},{"$f":"AQ307+AQ300+AQ293+AQ286+AQ279+AQ272+AQ265","v":216},{"$f":"SQRT((AR307^2)+(AR300^2)+(AR293^2)+(AR286^2)+(AR279^2)+(AR272^2)+(AR265^2))","v":148.4284339336638},{"$f":"AS307+AS300+AS293+AS286+AS279+AS272+AS265","v":217},{"$f":"SQRT((AT307^2)+(AT300^2)+(AT293^2)+(AT286^2)+(AT279^2)+(AT272^2)+(AT265^2))","v":112.82730166054668},{"$f":"AU307+AU300+AU293+AU286+AU279+AU272+AU265","v":13},{"$f":"SQRT((AV307^2)+(AV300^2)+(AV293^2)+(AV286^2)+(AV279^2)+(AV272^2)+(AV265^2))","v":34.161381705077446},{"$f":"AW307+AW300+AW293+AW286+AW279+AW272+AW265","v":22},{"$f":"SQRT((AX307^2)+(AX300^2)+(AX293^2)+(AX286^2)+(AX279^2)+(AX272^2)+(AX265^2))","v":35.425979167836701},{"$f":"AY307+AY300+AY293+AY286+AY279+AY272+AY265","v":37},{"$f":"SQRT((AZ307^2)+(AZ300^2)+(AZ293^2)+(AZ286^2)+(AZ279^2)+(AZ272^2)+(AZ265^2))","v":38.587562763149478},{"$f":"BA307+BA300+BA293+BA286+BA279+BA272+BA265","v":10},{"$f":"SQRT((BB307^2)+(BB300^2)+(BB293^2)+(BB286^2)+(BB279^2)+(BB272^2)+(BB265^2))","v":31.336879231984796},{"$f":"BC307+BC300+BC293+BC286+BC279+BC272+BC265","v":41},{"$f":"SQRT((BD307^2)+(BD300^2)+(BD293^2)+(BD286^2)+(BD279^2)+(BD272^2)+(BD265^2))","v":34.423828956117013}]
[null,"Not Computed",{"$f":"C307+C301+C294+C287+C280+C273+C266","v":18},{"$f":"SQRT((D307^2)+(D301^2)+(D294^2)+(D287^2)+(D280^2)+(D273^2)+(D266^2))","v":31.606961258558215},{"$f":"E307+E301+E294+E287+E280+E273+E266","v":38},{"$f":"SQRT((F307^2)+(F301^2)+(F294^2)+(F287^2)+(F280^2)+(F273^2)+(F266^2))","v":42.918527467749868},{"$f":"G307+G301+G294+G287+G280+G273+G266","v":15},{"$f":"SQRT((H307^2)+(H301^2)+(H294^2)+(H287^2)+(H280^2)+(H273^2)+(H266^2))","v":31.336879231984796},{"$f":"I307+I301+I294+I287+I280+I273+I266","v":27},{"$f":"SQRT((J307^2)+(J301^2)+(J294^2)+(J287^2)+(J280^2)+(J273^2)+(J266^2))","v":44.440972086577943},{"$f":"K307+K301+K294+K287+K280+K273+K266","v":0},{"$f":"SQRT((L307^2)+(L301^2)+(L294^2)+(L287^2)+(L280^2)+(L273^2)+(L266^2))","v":29.103264421710495},{"$f":"M307+M301+M294+M287+M280+M273+M266","v":22},{"$f":"SQRT((N307^2)+(N301^2)+(N294^2)+(N287^2)+(N280^2)+(N273^2)+(N266^2))","v":37.389838191679836},{"$f":"O307+O301+O294+O287+O280+O273+O266","v":7},{"$f":"SQRT((P307^2)+(P301^2)+(P294^2)+(P287^2)+(P280^2)+(P273^2)+(P266^2))","v":28.740215726399828},{"$f":"Q307+Q301+Q294+Q287+Q280+Q273+Q266","v":391},{"$f":"SQRT((R307^2)+(R301^2)+(R294^2)+(R287^2)+(R280^2)+(R273^2)+(R266^2))","v":159.68719422671313},{"$f":"S307+S301+S294+S287+S280+S273+S266","v":6},{"$f":"SQRT((T307^2)+(T301^2)+(T294^2)+(T287^2)+(T280^2)+(T273^2)+(T266^2))","v":25.416530054277668},{"$f":"U307+U301+U294+U287+U280+U273+U266","v":3},{"$f":"SQRT((V307^2)+(V301^2)+(V294^2)+(V287^2)+(V280^2)+(V273^2)+(V266^2))","v":27.404379212089442},{"$f":"W307+W301+W294+W287+W280+W273+W266","v":31},{"$f":"SQRT((X307^2)+(X301^2)+(X294^2)+(X287^2)+(X280^2)+(X273^2)+(X266^2))","v":48.228622207149975},{"$f":"Y307+Y301+Y294+Y287+Y280+Y273+Y266","v":76},{"$f":"SQRT((Z307^2)+(Z301^2)+(Z294^2)+(Z287^2)+(Z280^2)+(Z273^2)+(Z266^2))","v":51.701063818842258},{"$f":"AA307+AA301+AA294+AA287+AA280+AA273+AA266","v":26},{"$f":"SQRT((AB307^2)+(AB301^2)+(AB294^2)+(AB287^2)+(AB280^2)+(AB273^2)+(AB266^2))","v":38.340579025361627},{"$f":"AC307+AC301+AC294+AC287+AC280+AC273+AC266","v":9},{"$f":"SQRT((AD307^2)+(AD301^2)+(AD294^2)+(AD287^2)+(AD280^2)+(AD273^2)+(AD266^2))","v":26.019223662515376},{"$f":"AE307+AE301+AE294+AE287+AE280+AE273+AE266","v":71},{"$f":"SQRT((AF307^2)+(AF301^2)+(AF294^2)+(AF287^2)+(AF280^2)+(AF273^2)+(AF266^2))","v":59.279001341115723},{"$f":"AG307+AG301+AG294+AG287+AG280+AG273+AG266","v":42},{"$f":"SQRT((AH307^2)+(AH301^2)+(AH294^2)+(AH287^2)+(AH280^2)+(AH273^2)+(AH266^2))","v":50.139804546886701},{"$f":"AI307+AI301+AI294+AI287+AI280+AI273+AI266","v":39},{"$f":"SQRT((AJ307^2)+(AJ301^2)+(AJ294^2)+(AJ287^2)+(AJ280^2)+(AJ273^2)+(AJ266^2))","v":47.148700936505136},{"$f":"AK307+AK301+AK294+AK287+AK280+AK273+AK266","v":6},{"$f":"SQRT((AL307^2)+(AL301^2)+(AL294^2)+(AL287^2)+(AL280^2)+(AL273^2)+(AL266^2))","v":28.407745422683583},{"$f":"AM307+AM301+AM294+AM287+AM280+AM273+AM266","v":49},{"$f":"SQRT((AN307^2)+(AN301^2)+(AN294^2)+(AN287^2)+(AN280^2)+(AN273^2)+(AN266^2))","v":50.517323761260357},{"$f":"AO307+AO301+AO294+AO287+AO280+AO273+AO266","v":12},{"$f":"SQRT((AP307^2)+(AP301^2)+(AP294^2)+(AP287^2)+(AP280^2)+(AP273^2)+(AP266^2))","v":32.969683043669072},{"$f":"AQ307+AQ301+AQ294+AQ287+AQ280+AQ273+AQ266","v":16},{"$f":"SQRT((AR307^2)+(AR301^2)+(AR294^2)+(AR287^2)+(AR280^2)+(AR273^2)+(AR266^2))","v":45.596052460711988},{"$f":"AS307+AS301+AS294+AS287+AS280+AS273+AS266","v":0},{"$f":"SQRT((AT307^2)+(AT301^2)+(AT294^2)+(AT287^2)+(AT280^2)+(AT273^2)+(AT266^2))","v":29.103264421710495},{"$f":"AU307+AU301+AU294+AU287+AU280+AU273+AU266","v":3},{"$f":"SQRT((AV307^2)+(AV301^2)+(AV294^2)+(AV287^2)+(AV280^2)+(AV273^2)+(AV266^2))","v":27.604347483684521},{"$f":"AW307+AW301+AW294+AW287+AW280+AW273+AW266","v":21},{"$f":"SQRT((AX307^2)+(AX301^2)+(AX294^2)+(AX287^2)+(AX280^2)+(AX273^2)+(AX266^2))","v":26.814175355583846},{"$f":"AY307+AY301+AY294+AY287+AY280+AY273+AY266","v":17},{"$f":"SQRT((AZ307^2)+(AZ301^2)+(AZ294^2)+(AZ287^2)+(AZ280^2)+(AZ273^2)+(AZ266^2))","v":31.511902513177461},{"$f":"BA307+BA301+BA294+BA287+BA280+BA273+BA266","v":18},{"$f":"SQRT((BB307^2)+(BB301^2)+(BB294^2)+(BB287^2)+(BB280^2)+(BB273^2)+(BB266^2))","v":28.548204847240395},{"$f":"BC307+BC301+BC294+BC287+BC280+BC273+BC266","v":5},{"$f":"SQRT((BD307^2)+(BD301^2)+(BD294^2)+(BD287^2)+(BD280^2)+(BD273^2)+(BD266^2))","v":27.838821814150108}]
[]
[]
[]
[]
[]
[]
[]
[]
[]
[]
[]
[null,"B25074. HOUSEHOLD INCOME BY GROSS RENT AS A PERCENTAGE OF HOUSEHOLD INCOME IN THE PAST 12 MONTHS"]
[null,"Universe:  RENTER-OCCUPIED HOUSING UNITS"]
[null,"Data Set: 2008-2012 American Community Survey 5-Year Estimates",null,null,null,null,null,{"$f":"'RentalHousingCost-Prior10Yr'!D75","v":"Income in 2012 Inflation Adjusted Dollars"}]
[]
[null,null,"Allenstown",null,"Andover",null,"Boscawen",null,"Bow",null,"Bradford",null,"Canterbury",null,"Chichester",null,"Concord",null,"Danbury",null,"Dunbarton",null,"Epsom",null,"Franklin",null,"Henniker",null,"Hill",null,"Hooksett",null,"Hopkinton",null,"Loudon",null,"Newbury",null,"New London",null,"Northfield",null,"Pembroke",null,"Pittsfield",null,"Salisbury",null,"Sutton",null,"Warner",null,"Webster",null,"Wilmot"]
[null,null,"Esitimate","Margin Of Error","Esitimate","Margin Of Error","Esitimate","Margin Of Error","Esitimate","Margin Of Error","Esitimate","Margin Of Error","Esitimate","Margin Of Error","Esitimate","Margin Of Error","Esitimate","Margin Of Error","Esitimate","Margin Of Error","Esitimate","Margin Of Error","Esitimate","Margin Of Error","Esitimate","Margin Of Error","Esitimate","Margin Of Error","Esitimate","Margin Of Error","Esitimate","Margin Of Error","Esitimate","Margin Of Error","Esitimate","Margin Of Error","Esitimate","Margin Of Error","Esitimate","Margin Of Error","Esitimate","Margin Of Error","Esitimate","Margin Of Error","Esitimate","Margin Of Error","Esitimate","Margin Of Error","Esitimate","Margin Of Error","Esitimate","Margin Of Error","Esitimate","Margin Of Error","Esitimate","Margin Of Error"]
[null,"Total:",621,150,136,58,293,100,255,68,101,37,68,25,52,36,8029,384,108,42,124,47,141,61,1281,186,576,146,38,27,644,141,204,103,250,99,29,21,279,101,392,109,830,133,449,103,36,23,74,40,190,52,65,31,55,36]
[null,"Less than $10,000:",60,78,0,85,12,20,0,85,11,15,8,12,0,85,974,203,17,18,0,85,0,85,169,73,59,46,0,85,55,44,0,85,0,85,0,85,69,64,10,15,97,73,33,37,0,85,12,17,0,85,0,85,10,15]
[null,"Less than 20.0 percent",0,85,0,85,0,85,0,85,0,85,0,85,0,85,31,44,0,85,0,85,0,85,11,17,0,85,0,85,0,85,0,85,0,85,0,85,0,85,0,85,0,85,0,85,0,85,0,85,0,85,0,85,0,85]
[null,"20.0 to 24.9 percent",0,85,0,85,0,85,0,85,0,85,0,85,0,85,9,16,0,85,0,85,0,85,0,85,10,16,0,85,0,85,0,85,0,85,0,85,0,85,0,85,0,85,0,85,0,85,0,85,0,85,0,85,0,85]
[null,"25.0 to 29.9 percent",0,85,0,85,12,20,0,85,0,85,0,85,0,85,67,70,0,85,0,85,0,85,34,27,8,13,0,85,0,85,0,85,0,85,0,85,0,85,10,15,12,21,0,85,0,85,0,85,0,85,0,85,0,85]
[null,"30.0 to 34.9 percent",0,85,0,85,0,85,0,85,0,85,8,12,0,85,14,24,0,85,0,85,0,85,0,85,9,14,0,85,12,20,0,85,0,85,0,85,8,16,0,85,0,85,0,85,0,85,0,85,0,85,0,85,0,85]
[null,"35.0 percent or more",17,27,0,85,0,85,0,85,0,85,0,85,0,85,757,188,7,8,0,85,0,85,114,67,12,19,0,85,43,40,0,85,0,85,0,85,61,60,0,85,85,79,33,37,0,85,12,17,0,85,0,85,10,15]
[null,"Not computed",43,73,0,85,0,85,0,85,11,15,0,85,0,85,96,74,10,16,0,85,0,85,10,16,20,32,0,85,0,85,0,85,0,85,0,85,0,85,0,85,0,85,0,85,0,85,0,85,0,85,0,85,0,85]
[null,"$10,000 to $19,999:",90,71,31,29,43,38,80,52,9,7,14,15,0,85,1108,233,14,12,11,16,33,17,333,120,111,77,4,6,64,60,0,85,36,36,0,85,63,54,93,72,179,109,99,61,8,9,0,85,6,9,20,22,0,85]
[null,"Less than 20.0 percent",16,17,0,85,0,85,0,85,0,85,6,10,0,85,52,42,0,85,0,85,11,18,29,31,8,12,0,85,0,85,0,85,0,85,0,85,0,85,0,85,14,22,9,14,0,85,0,85,0,85,0,85,0,85]
[null,"20.0 to 24.9 percent",0,85,0,85,0,85,12,20,0,85,8,11,0,85,262,128,0,85,0,85,0,85,28,29,8,13,0,85,0,85,0,85,0,85,0,85,0,85,0,85,0,85,8,13,0,85,0,85,0,85,0,85,0,85]
[null,"25.0 to 29.9 percent",5,8,0,85,16,20,0,85,0,85,0,85,0,85,90,52,0,85,0,85,10,16,50,34,28,33,4,6,37,39,0,85,10,16,0,85,0,85,0,85,0,85,0,85,0,85,0,85,6,9,0,85,0,85]
[null,"30.0 to 34.9 percent",0,85,0,85,0,85,0,85,0,85,0,85,0,85,35,28,0,85,0,85,0,85,7,12,0,85,0,85,0,85,0,85,0,85,0,85,0,85,0,85,12,19,0,85,0,85,0,85,0,85,8,13,0,85]
[null,"35.0 percent or more",69,69,20,26,27,30,68,51,3,4,0,85,0,85,669,197,11,12,11,16,12,18,172,90,48,55,0,85,16,26,0,85,26,34,0,85,63,54,81,71,139,101,55,44,8,9,0,85,0,85,12,18,0,85]
[null,"Not computed",0,85,11,12,0,85,0,85,6,7,0,85,0,85,0,85,3,4,0,85,0,85,47,53,19,30,0,85,11,19,0,85,0,85,0,85,0,85,12,19,14,23,27,41,0,85,0,85,0,85,0,85,0,85]
[null,"$20,000 to $34,999:",240,106,9,14,93,58,71,49,32,24,32,20,8,12,1951,305,24,18,41,25,30,30,368,109,138,64,15,21,69,52,59,70,29,29,0,85,50,50,153,88,215,132,71,38,14,15,19,20,65,35,7,7,3,5]
[null,"Less than 20.0 percent",10,16,0,85,0,85,0,85,0,85,16,16,0,85,74,62,5,8,0,85,0,85,9,14,0,85,0,85,10,18,0,85,0,85,0,85,0,85,0,85,21,33,0,85,0,85,0,85,0,85,0,85,0,85]
[null,"20.0 to 24.9 percent",0,85,0,85,0,85,0,85,0,85,8,13,0,85,89,75,0,85,0,85,0,85,59,52,0,85,0,85,0,85,0,85,0,85,0,85,29,45,10,17,0,85,0,85,0,85,0,85,0,85,0,85,0,85]
[null,"25.0 to 29.9 percent",22,20,0,85,11,19,7,12,0,85,8,12,0,85,99,64,5,7,0,85,0,85,78,61,16,18,0,85,14,23,0,85,0,85,0,85,0,85,0,85,19,27,18,21,0,85,0,85,6,9,0,85,0,85]
[null,"30.0 to 34.9 percent",57,60,9,14,0,85,0,85,0,85,0,85,0,85,296,120,0,85,0,85,9,15,42,28,18,20,0,85,19,22,38,62,0,85,0,85,0,85,47,61,100,93,17,16,0,85,0,85,15,22,0,85,0,85]
[null,"35.0 percent or more",151,90,0,85,71,53,64,50,32,24,0,85,0,85,1356,269,14,15,36,25,21,25,151,89,104,63,15,21,26,30,21,33,18,22,0,85,21,21,85,61,75,85,36,28,14,15,13,17,44,28,4,5,0,85]
[null,"Not computed",0,85,0,85,11,17,0,85,0,85,0,85,8,12,37,35,0,85,5,7,0,85,29,27,0,85,0,85,0,85,0,85,11,18,0,85,0,85,11,17,0,85,0,85,0,85,6,11,0,85,3,5,3,5]
[null,"$35,000 to $49,999:",34,29,34,38,39,33,79,56,6,6,0,85,6,9,1211,224,36,26,7,11,10,17,120,64,19,31,7,6,56,36,23,27,92,84,0,85,39,39,23,27,143,110,110,81,0,85,8,10,38,25,15,11,9,13]
[null,"Less than 20.0 percent",16,20,0,85,0,85,0,85,3,4,0,85,0,85,22,34,0,85,0,85,0,85,15,17,0,85,3,4,0,85,0,85,0,85,0,85,0,85,15,24,0,85,0,85,0,85,0,85,0,85,4,6,0,85]
[null,"20.0 to 24.9 percent",0,85,17,26,14,22,0,85,0,85,0,85,0,85,402,162,22,21,0,85,0,85,15,22,0,85,0,85,23,26,0,85,0,85,0,85,11,16,0,85,70,76,36,34,0,85,5,9,0,85,3,4,0,85]
[null,"25.0 to 29.9 percent",9,15,0,85,16,25,13,22,3,5,0,85,0,85,287,104,14,16,7,11,0,85,18,20,0,85,0,85,0,85,11,17,0,85,0,85,0,85,8,13,18,30,74,69,0,85,0,85,16,16,0,85,0,85]
[null,"30.0 to 34.9 percent",0,85,0,85,9,12,0,85,0,85,0,85,6,9,267,116,0,85,0,85,0,85,41,40,19,31,0,85,10,15,0,85,73,80,0,85,10,15,0,85,55,80,0,85,0,85,3,5,0,85,3,4,9,13]
[null,"35.0 percent or more",0,85,17,28,0,85,54,60,0,85,0,85,0,85,214,102,0,85,0,85,10,17,31,32,0,85,0,85,23,19,12,20,19,30,0,85,0,85,0,85,0,85,0,85,0,85,0,85,15,15,2,3,0,85]
[null,"Not computed",9,15,0,85,0,85,12,19,0,85,0,85,0,85,19,21,0,85,0,85,0,85,0,85,0,85,4,5,0,85,0,85,0,85,0,85,18,29,0,85,0,85,0,85,0,85,0,85,7,10,3,5,0,85]
[null,"$50,000 to $74,999:",75,55,18,26,63,49,25,30,30,19,8,12,0,85,1593,246,17,17,5,7,61,49,140,72,181,94,8,14,184,73,53,49,6,10,18,14,49,45,55,59,101,94,85,49,9,15,35,28,51,33,9,8,19,22]
[null,"Less than 20.0 percent",13,20,1,2,51,52,0,85,4,6,0,85,0,85,683,173,17,17,0,85,11,17,84,64,111,83,0,85,42,40,0,85,0,85,8,8,49,45,8,12,91,91,67,45,9,15,0,85,39,32,3,5,9,14]
[null,"20.0 to 24.9 percent",0,85,0,85,12,20,12,20,15,8,0,85,0,85,595,156,0,85,5,7,17,20,46,50,52,55,0,85,82,73,39,44,0,85,4,5,0,85,0,85,0,85,18,23,0,85,22,23,0,85,0,85,0,85]
[null,"25.0 to 29.9 percent",8,13,0,85,0,85,0,85,0,85,0,85,0,85,102,64,0,85,0,85,0,85,10,16,18,21,0,85,38,37,0,85,0,85,6,10,0,85,47,57,0,85,0,85,0,85,13,16,7,10,6,7,10,16]
[null,"30.0 to 34.9 percent",11,17,0,85,0,85,13,22,0,85,8,12,0,85,122,73,0,85,0,85,7,11,0,85,0,85,0,85,22,25,14,22,0,85,0,85,0,85,0,85,10,15,0,85,0,85,0,85,5,8,0,85,0,85]
[null,"35.0 percent or more",43,47,0,85,0,85,0,85,11,16,0,85,0,85,65,41,0,85,0,85,21,32,0,85,0,85,8,14,0,85,0,85,6,10,0,85,0,85,0,85,0,85,0,85,0,85,0,85,0,85,0,85,0,85]
[null,"Not computed",0,85,17,26,0,85,0,85,0,85,0,85,0,85,26,31,0,85,0,85,5,8,0,85,0,85,0,85,0,85,0,85,0,85,0,85,0,85,0,85,0,85,0,85,0,85,0,85,0,85,0,85,0,85]
[null,"$75,000 to $99,999:",52,60,0,85,30,45,0,85,8,9,6,8,4,6,804,165,0,85,10,15,7,12,104,75,60,61,0,85,87,53,69,55,46,58,11,15,0,85,58,44,30,35,41,51,3,5,0,85,23,20,14,16,14,22]
[null,"Less than 20.0 percent",19,31,0,85,30,45,0,85,5,8,6,8,0,85,663,158,0,85,0,85,0,85,104,75,23,37,0,85,49,42,15,24,34,56,0,85,0,85,38,37,0,85,41,51,3,5,0,85,16,16,10,15,14,22]
[null,"20.0 to 24.9 percent",0,85,0,85,0,85,0,85,0,85,0,85,4,6,40,37,0,85,10,15,0,85,0,85,30,48,0,85,38,37,0,85,8,14,11,15,0,85,20,25,14,23,0,85,0,85,0,85,0,85,0,85,0,85]
[null,"25.0 to 29.9 percent",0,85,0,85,0,85,0,85,3,5,0,85,0,85,45,45,0,85,0,85,0,85,0,85,0,85,0,85,0,85,34,39,0,85,0,85,0,85,0,85,0,85,0,85,0,85,0,85,7,11,0,85,0,85]
[null,"30.0 to 34.9 percent",0,85,0,85,0,85,0,85,0,85,0,85,0,85,29,33,0,85,0,85,7,12,0,85,0,85,0,85,0,85,0,85,0,85,0,85,0,85,0,85,0,85,0,85,0,85,0,85,0,85,0,85,0,85]
[null,"35.0 percent or more",0,85,0,85,0,85,0,85,0,85,0,85,0,85,27,31,0,85,0,85,0,85,0,85,0,85,0,85,0,85,0,85,4,7,0,85,0,85,0,85,0,85,0,85,0,85,0,85,0,85,0,85,0,85]
[null,"Not computed",33,53,0,85,0,85,0,85,0,85,0,85,0,85,0,85,0,85,0,85,0,85,0,85,7,14,0,85,0,85,20,30,0,85,0,85,0,85,0,85,16,27,0,85,0,85,0,85,0,85,4,6,0,85]
[null,"$100,000 or more:",70,50,44,41,13,21,0,85,5,8,0,85,34,36,388,134,0,85,50,37,0,85,47,67,8,12,4,6,129,95,0,85,41,63,0,85,9,14,0,85,65,100,10,16,2,4,0,85,7,10,0,85,0,85]
[null,"Less than 20.0 percent",70,50,18,27,13,21,0,85,5,8,0,85,34,36,304,113,0,85,33,29,0,85,47,67,8,12,4,6,118,92,0,85,0,85,0,85,9,14,0,85,65,100,10,16,0,85,0,85,0,85,0,85,0,85]
[null,"20.0 to 24.9 percent",0,85,0,85,0,85,0,85,0,85,0,85,0,85,45,59,0,85,0,85,0,85,0,85,0,85,0,85,0,85,0,85,0,85,0,85,0,85,0,85,0,85,0,85,0,85,0,85,0,85,0,85,0,85]
[null,"25.0 to 29.9 percent",0,85,0,85,0,85,0,85,0,85,0,85,0,85,27,33,0,85,0,85,0,85,0,85,0,85,0,85,0,85,0,85,0,85,0,85,0,85,0,85,0,85,0,85,0,85,0,85,7,10,0,85,0,85]
[null,"30.0 to 34.9 percent",0,85,0,85,0,85,0,85,0,85,0,85,0,85,0,85,0,85,0,85,0,85,0,85,0,85,0,85,0,85,0,85,0,85,0,85,0,85,0,85,0,85,0,85,0,85,0,85,0,85,0,85,0,85]
[null,"35.0 percent or more",0,85,0,85,0,85,0,85,0,85,0,85,0,85,0,85,0,85,0,85,0,85,0,85,0,85,0,85,0,85,0,85,0,85,0,85,0,85,0,85,0,85,0,85,0,85,0,85,0,85,0,85,0,85]
[null,"Not computed",0,85,26,29,0,85,0,85,0,85,0,85,0,85,12,19,0,85,17,25,0,85,0,85,0,85,0,85,11,17,0,85,41,63,0,85,0,85,0,85,0,85,0,85,2,4,0,85,0,85,0,85,0,85]
[]
[]
[]
[]
[]
[]
[]
[]
[]
[]
[]
[null,"Calculated B25074. HOUSEHOLD INCOME BY GROSS RENT AS A PERCENTAGE OF HOUSEHOLD INCOME IN THE PAST 12 MONTHS"]
[null,"Universe:  RENTER OCCUPIED HOUSING UNITS"]
[null,{"$f":"B337","v":"Data Set: 2008-2012 American Community Survey 5-Year Estimates"},null,null,null,null,null,{"$f":"H337","v":"Income in 2012 Inflation Adjusted Dollars"}]
[]
[null,null,"Allenstown",null,"Andover",null,"Boscawen",null,"Bow",null,"Bradford",null,"Canterbury",null,"Chichester",null,"Concord",null,"Danbury",null,"Dunbarton",null,"Epsom",null,"Franklin",null,"Henniker",null,"Hill",null,"Hooksett",null,"Hopkinton",null,"Loudon",null,"Newbury",null,"New London",null,"Northfield",null,"Pembroke",null,"Pittsfield",null,"Salisbury",null,"Sutton",null,"Warner",null,"Webster",null,"Wilmot"]
[null,null,"Estimate","Margin Of Error","Estimate","Margin Of Error","Estimate","Margin Of Error","Estimate","Margin Of Error","Estimate","Margin Of Error","Estimate","Margin Of Error","Estimate","Margin Of Error","Estimate","Margin Of Error","Estimate","Margin Of Error","Estimate","Margin Of Error","Estimate","Margin Of Error","Estimate","Margin Of Error","Estimate","Margin Of Error","Estimate","Margin Of Error","Estimate","Margin Of Error","Estimate","Margin Of Error","Estimate","Margin Of Error","Estimate","Margin Of Error","Estimate","Margin Of Error","Estimate","Margin Of Error","Estimate","Margin Of Error","Estimate","Margin Of Error","Estimate","Margin Of Error","Estimate","Margin Of Error","Estimate","Margin Of Error","Estimate","Margin Of Error","Estimate","Margin Of Error"]
[null,"Total:",{"$f":"C341","v":621},{"$f":"D341","v":150},136,58,293,100,255,68,101,37,68,25,52,36,8029,384,108,42,124,47,141,61,1281,186,576,146,38,27,644,141,204,103,250,99,29,21,279,101,392,109,830,133,449,103,36,23,74,40,190,52,65,31,55,36]
[null,"Less than $10,000:",60,78,0,85,12,20,0,85,11,15,8,12,0,85,974,203,17,18,0,85,0,85,169,73,59,46,0,85,55,44,0,85,0,85,0,85,69,64,10,15,97,73,33,37,0,85,12,17,0,85,0,85,10,15]
[null,"Less than 30.0 percent",{"$f":"C343+C344+C345","v":0},{"$f":"SQRT((D343^2)+(D344^2)+(D345^2))","v":147.22431864335456},{"$f":"E343+E344+E345","v":0},{"$f":"SQRT((F343^2)+(F344^2)+(F345^2))","v":147.22431864335456},{"$f":"G343+G344+G345","v":12},{"$f":"SQRT((H343^2)+(H344^2)+(H345^2))","v":121.86057606953941},{"$f":"I343+I344+I345","v":0},{"$f":"SQRT((J343^2)+(J344^2)+(J345^2))","v":147.22431864335456},{"$f":"K343+K344+K345","v":0},{"$f":"SQRT((L343^2)+(L344^2)+(L345^2))","v":147.22431864335456},{"$f":"M343+M344+M345","v":0},{"$f":"SQRT((N343^2)+(N344^2)+(N345^2))","v":147.22431864335456},{"$f":"O343+O344+O345","v":0},{"$f":"SQRT((P343^2)+(P344^2)+(P345^2))","v":147.22431864335456},{"$f":"Q343+Q344+Q345","v":107},{"$f":"SQRT((R343^2)+(R344^2)+(R345^2))","v":84.214013085709198},{"$f":"S343+S344+S345","v":0},{"$f":"SQRT((T343^2)+(T344^2)+(T345^2))","v":147.22431864335456},{"$f":"U343+U344+U345","v":0},{"$f":"SQRT((V343^2)+(V344^2)+(V345^2))","v":147.22431864335456},{"$f":"W343+W344+W345","v":0},{"$f":"SQRT((X343^2)+(X344^2)+(X345^2))","v":147.22431864335456},{"$f":"Y343+Y344+Y345","v":45},{"$f":"SQRT((Z343^2)+(Z344^2)+(Z345^2))","v":90.790968713853914},{"$f":"AA343+AA344+AA345","v":18},{"$f":"SQRT((AB343^2)+(AB344^2)+(AB345^2))","v":87.464278422679513},{"$f":"AC343+AC344+AC345","v":0},{"$f":"SQRT((AD343^2)+(AD344^2)+(AD345^2))","v":147.22431864335456},{"$f":"AE343+AE344+AE345","v":0},{"$f":"SQRT((AF343^2)+(AF344^2)+(AF345^2))","v":147.22431864335456},{"$f":"AG343+AG344+AG345","v":0},{"$f":"SQRT((AH343^2)+(AH344^2)+(AH345^2))","v":147.22431864335456},{"$f":"AI343+AI344+AI345","v":0},{"$f":"SQRT((AJ343^2)+(AJ344^2)+(AJ345^2))","v":147.22431864335456},{"$f":"AK343+AK344+AK345","v":0},{"$f":"SQRT((AL343^2)+(AL344^2)+(AL345^2))","v":147.22431864335456},{"$f":"AM343+AM344+AM345","v":0},{"$f":"SQRT((AN343^2)+(AN344^2)+(AN345^2))","v":147.22431864335456},{"$f":"AO343+AO344+AO345","v":10},{"$f":"SQRT((AP343^2)+(AP344^2)+(AP345^2))","v":121.14041439585718},{"$f":"AQ343+AQ344+AQ345","v":12},{"$f":"SQRT((AR343^2)+(AR344^2)+(AR345^2))","v":122.02868515230344},{"$f":"AS343+AS344+AS345","v":0},{"$f":"SQRT((AT343^2)+(AT344^2)+(AT345^2))","v":147.22431864335456},{"$f":"AU343+AU344+AU345","v":0},{"$f":"SQRT((AV343^2)+(AV344^2)+(AV345^2))","v":147.22431864335456},{"$f":"AW343+AW344+AW345","v":0},{"$f":"SQRT((AX343^2)+(AX344^2)+(AX345^2))","v":147.22431864335456},{"$f":"AY343+AY344+AY345","v":0},{"$f":"SQRT((AZ343^2)+(AZ344^2)+(AZ345^2))","v":147.22431864335456},{"$f":"BA343+BA344+BA345","v":0},{"$f":"SQRT((BB343^2)+(BB344^2)+(BB345^2))","v":147.22431864335456},{"$f":"BC343+BC344+BC345","v":0},{"$f":"SQRT((BD343^2)+(BD344^2)+(BD345^2))","v":147.22431864335456}]
[null,"More than 30.0 percent",{"$f":"C347+C346","v":17},{"$f":"SQRT((D347^2)+(D346^2))","v":89.185200566013194},{"$f":"E347+E346","v":0},{"$f":"SQRT((F347^2)+(F346^2))","v":120.20815280171308},{"$f":"G347+G346","v":0},{"$f":"SQRT((H347^2)+(H346^2))","v":120.20815280171308},{"$f":"I347+I346","v":0},{"$f":"SQRT((J347^2)+(J346^2))","v":120.20815280171308},{"$f":"K347+K346","v":0},{"$f":"SQRT((L347^2)+(L346^2))","v":120.20815280171308},{"$f":"M347+M346","v":8},{"$f":"SQRT((N347^2)+(N346^2))","v":85.84287972802403},{"$f":"O347+O346","v":0},{"$f":"SQRT((P347^2)+(P346^2))","v":120.20815280171308},{"$f":"Q347+Q346","v":771},{"$f":"SQRT((R347^2)+(R346^2))","v":189.52572384771415},{"$f":"S347+S346","v":7},{"$f":"SQRT((T347^2)+(T346^2))","v":85.37564055396598},{"$f":"U347+U346","v":0},{"$f":"SQRT((V347^2)+(V346^2))","v":120.20815280171308},{"$f":"W347+W346","v":0},{"$f":"SQRT((X347^2)+(X346^2))","v":120.20815280171308},{"$f":"Y347+Y346","v":114},{"$f":"SQRT((Z347^2)+(Z346^2))","v":108.23123393919151},{"$f":"AA347+AA346","v":21},{"$f":"SQRT((AB347^2)+(AB346^2))","v":23.600847442411894},{"$f":"AC347+AC346","v":0},{"$f":"SQRT((AD347^2)+(AD346^2))","v":120.20815280171308},{"$f":"AE347+AE346","v":55},{"$f":"SQRT((AF347^2)+(AF346^2))","v":44.721359549995796},{"$f":"AG347+AG346","v":0},{"$f":"SQRT((AH347^2)+(AH346^2))","v":120.20815280171308},{"$f":"AI347+AI346","v":0},{"$f":"SQRT((AJ347^2)+(AJ346^2))","v":120.20815280171308},{"$f":"AK347+AK346","v":0},{"$f":"SQRT((AL347^2)+(AL346^2))","v":120.20815280171308},{"$f":"AM347+AM346","v":69},{"$f":"SQRT((AN347^2)+(AN346^2))","v":62.096698785040097},{"$f":"AO347+AO346","v":0},{"$f":"SQRT((AP347^2)+(AP346^2))","v":120.20815280171308},{"$f":"AQ347+AQ346","v":85},{"$f":"SQRT((AR347^2)+(AR346^2))","v":116.04309544302927},{"$f":"AS347+AS346","v":33},{"$f":"SQRT((AT347^2)+(AT346^2))","v":92.70382947861431},{"$f":"AU347+AU346","v":0},{"$f":"SQRT((AV347^2)+(AV346^2))","v":120.20815280171308},{"$f":"AW347+AW346","v":12},{"$f":"SQRT((AX347^2)+(AX346^2))","v":86.683331731077345},{"$f":"AY347+AY346","v":0},{"$f":"SQRT((AZ347^2)+(AZ346^2))","v":120.20815280171308},{"$f":"BA347+BA346","v":0},{"$f":"SQRT((BB347^2)+(BB346^2))","v":120.20815280171308},{"$f":"BC347+BC346","v":10},{"$f":"SQRT((BD347^2)+(BD346^2))","v":86.313382508160345}]
[null,"Less Than 35% of HH Income",{"$f":"C343+C344+C345+C346","v":0},{"$f":"SQRT((D343^2)+(D344^2)+(D345^2)+(D346^2))","v":170},{"$f":"E343+E344+E345+E346","v":0},{"$f":"SQRT((F343^2)+(F344^2)+(F345^2)+(F346^2))","v":170},{"$f":"G343+G344+G345+G346","v":12},{"$f":"SQRT((H343^2)+(H344^2)+(H345^2)+(H346^2))","v":148.57657958103627},{"$f":"I343+I344+I345+I346","v":0},{"$f":"SQRT((J343^2)+(J344^2)+(J345^2)+(J346^2))","v":170},{"$f":"K343+K344+K345+K346","v":0},{"$f":"SQRT((L343^2)+(L344^2)+(L345^2)+(L346^2))","v":170},{"$f":"M343+M344+M345+M346","v":8},{"$f":"SQRT((N343^2)+(N344^2)+(N345^2)+(N346^2))","v":147.71255870778219},{"$f":"O343+O344+O345+O346","v":0},{"$f":"SQRT((P343^2)+(P344^2)+(P345^2)+(P346^2))","v":170},{"$f":"Q343+Q344+Q345+Q346","v":121},{"$f":"SQRT((R343^2)+(R344^2)+(R345^2)+(R346^2))","v":87.567117115958538},{"$f":"S343+S344+S345+S346","v":0},{"$f":"SQRT((T343^2)+(T344^2)+(T345^2)+(T346^2))","v":170},{"$f":"U343+U344+U345+U346","v":0},{"$f":"SQRT((V343^2)+(V344^2)+(V345^2)+(V346^2))","v":170},{"$f":"W343+W344+W345+W346","v":0},{"$f":"SQRT((X343^2)+(X344^2)+(X345^2)+(X346^2))","v":170},{"$f":"Y343+Y344+Y345+Y346","v":45},{"$f":"SQRT((Z343^2)+(Z344^2)+(Z345^2)+(Z346^2))","v":124.37041448833401},{"$f":"AA343+AA344+AA345+AA346","v":27},{"$f":"SQRT((AB343^2)+(AB344^2)+(AB345^2)+(AB346^2))","v":88.577649551114192},{"$f":"AC343+AC344+AC345+AC346","v":0},{"$f":"SQRT((AD343^2)+(AD344^2)+(AD345^2)+(AD346^2))","v":170},{"$f":"AE343+AE344+AE345+AE346","v":12},{"$f":"SQRT((AF343^2)+(AF344^2)+(AF345^2)+(AF346^2))","v":148.57657958103627},{"$f":"AG343+AG344+AG345+AG346","v":0},{"$f":"SQRT((AH343^2)+(AH344^2)+(AH345^2)+(AH346^2))","v":170},{"$f":"AI343+AI344+AI345+AI346","v":0},{"$f":"SQRT((AJ343^2)+(AJ344^2)+(AJ345^2)+(AJ346^2))","v":170},{"$f":"AK343+AK344+AK345+AK346","v":0},{"$f":"SQRT((AL343^2)+(AL344^2)+(AL345^2)+(AL346^2))","v":170},{"$f":"AM343+AM344+AM345+AM346","v":8},{"$f":"SQRT((AN343^2)+(AN344^2)+(AN345^2)+(AN346^2))","v":148.09118812407442},{"$f":"AO343+AO344+AO345+AO346","v":10},{"$f":"SQRT((AP343^2)+(AP344^2)+(AP345^2)+(AP346^2))","v":147.98648586948741},{"$f":"AQ343+AQ344+AQ345+AQ346","v":12},{"$f":"SQRT((AR343^2)+(AR344^2)+(AR345^2)+(AR346^2))","v":148.71449156017042},{"$f":"AS343+AS344+AS345+AS346","v":0},{"$f":"SQRT((AT343^2)+(AT344^2)+(AT345^2)+(AT346^2))","v":170},{"$f":"AU343+AU344+AU345+AU346","v":0},{"$f":"SQRT((AV343^2)+(AV344^2)+(AV345^2)+(AV346^2))","v":170},{"$f":"AW343+AW344+AW345+AW346","v":0},{"$f":"SQRT((AX343^2)+(AX344^2)+(AX345^2)+(AX346^2))","v":170},{"$f":"AY343+AY344+AY345+AY346","v":0},{"$f":"SQRT((AZ343^2)+(AZ344^2)+(AZ345^2)+(AZ346^2))","v":170},{"$f":"BA343+BA344+BA345+BA346","v":0},{"$f":"SQRT((BB343^2)+(BB344^2)+(BB345^2)+(BB346^2))","v":170},{"$f":"BC343+BC344+BC345+BC346","v":0},{"$f":"SQRT((BD343^2)+(BD344^2)+(BD345^2)+(BD346^2))","v":170}]
[null,"35.0 percent or more",{"$f":"C347","v":17},{"$f":"D347","v":27},{"$f":"E347","v":0},{"$f":"F347","v":85},{"$f":"G347","v":0},{"$f":"H347","v":85},{"$f":"I347","v":0},{"$f":"J347","v":85},{"$f":"K347","v":0},{"$f":"L347","v":85},{"$f":"M347","v":0},{"$f":"N347","v":85},0,85,757,188,7,8,0,85,0,85,114,67,12,19,0,85,43,40,0,85,0,85,0,85,61,60,0,85,85,79,33,37,0,85,12,17,0,85,0,85,10,15]
[null,"Not Computed",43,73,0,85,0,85,0,85,11,15,0,85,0,85,96,74,10,16,0,85,0,85,10,16,20,32,0,85,0,85,0,85,0,85,0,85,0,85,0,85,0,85,0,85,0,85,0,85,0,85,0,85,0,85]
[null,"$10,000 to $19,999:",90,71,31,29,43,38,80,52,9,7,14,15,0,85,1108,233,14,12,11,16,33,17,333,120,111,77,4,6,64,60,0,85,36,36,0,85,63,54,93,72,179,109,99,61,8,9,0,85,6,9,20,22,0,85]
[null,"Less than 30.0 percent",{"$f":"C350+C351+C352","v":21},{"$f":"SQRT((D350^2)+(D351^2)+(D352^2))","v":87.051708771281454},{"$f":"E350+E351+E352","v":0},{"$f":"SQRT((F350^2)+(F351^2)+(F352^2))","v":147.22431864335456},{"$f":"G350+G351+G352","v":16},{"$f":"SQRT((H350^2)+(H351^2)+(H352^2))","v":121.86057606953941},{"$f":"I350+I351+I352","v":12},{"$f":"SQRT((J350^2)+(J351^2)+(J352^2))","v":121.86057606953941},{"$f":"K350+K351+K352","v":0},{"$f":"SQRT((L350^2)+(L351^2)+(L352^2))","v":147.22431864335456},{"$f":"M350+M351+M352","v":14},{"$f":"SQRT((N350^2)+(N351^2)+(N352^2))","v":86.290208019218497},{"$f":"O350+O351+O352","v":0},{"$f":"SQRT((P350^2)+(P351^2)+(P352^2))","v":147.22431864335456},{"$f":"Q350+Q351+Q352","v":404},{"$f":"SQRT((R350^2)+(R351^2)+(R352^2))","v":144.40221604947757},{"$f":"S350+S351+S352","v":0},{"$f":"SQRT((T350^2)+(T351^2)+(T352^2))","v":147.22431864335456},{"$f":"U350+U351+U352","v":0},{"$f":"SQRT((V350^2)+(V351^2)+(V352^2))","v":147.22431864335456},{"$f":"W350+W351+W352","v":21},{"$f":"SQRT((X350^2)+(X351^2)+(X352^2))","v":88.345911054219144},{"$f":"Y350+Y351+Y352","v":107},{"$f":"SQRT((Z350^2)+(Z351^2)+(Z352^2))","v":54.38749856354859},{"$f":"AA350+AA351+AA352","v":44},{"$f":"SQRT((AB350^2)+(AB351^2)+(AB352^2))","v":37.443290453698111},{"$f":"AC350+AC351+AC352","v":4},{"$f":"SQRT((AD350^2)+(AD351^2)+(AD352^2))","v":120.3577999134248},{"$f":"AE350+AE351+AE352","v":37},{"$f":"SQRT((AF350^2)+(AF351^2)+(AF352^2))","v":126.37642185154634},{"$f":"AG350+AG351+AG352","v":0},{"$f":"SQRT((AH350^2)+(AH351^2)+(AH352^2))","v":147.22431864335456},{"$f":"AI350+AI351+AI352","v":10},{"$f":"SQRT((AJ350^2)+(AJ351^2)+(AJ352^2))","v":121.26829758844642},{"$f":"AK350+AK351+AK352","v":0},{"$f":"SQRT((AL350^2)+(AL351^2)+(AL352^2))","v":147.22431864335456},{"$f":"AM350+AM351+AM352","v":0},{"$f":"SQRT((AN350^2)+(AN351^2)+(AN352^2))","v":147.22431864335456},{"$f":"AO350+AO351+AO352","v":0},{"$f":"SQRT((AP350^2)+(AP351^2)+(AP352^2))","v":147.22431864335456},{"$f":"AQ350+AQ351+AQ352","v":14},{"$f":"SQRT((AR350^2)+(AR351^2)+(AR352^2))","v":122.20474622534103},{"$f":"AS350+AS351+AS352","v":17},{"$f":"SQRT((AT350^2)+(AT351^2)+(AT352^2))","v":87.120606058498012},{"$f":"AU350+AU351+AU352","v":0},{"$f":"SQRT((AV350^2)+(AV351^2)+(AV352^2))","v":147.22431864335456},{"$f":"AW350+AW351+AW352","v":0},{"$f":"SQRT((AX350^2)+(AX351^2)+(AX352^2))","v":147.22431864335456},{"$f":"AY350+AY351+AY352","v":6},{"$f":"SQRT((AZ350^2)+(AZ351^2)+(AZ352^2))","v":120.54459755625716},{"$f":"BA350+BA351+BA352","v":0},{"$f":"SQRT((BB350^2)+(BB351^2)+(BB352^2))","v":147.22431864335456},{"$f":"BC350+BC351+BC352","v":0},{"$f":"SQRT((BD350^2)+(BD351^2)+(BD352^2))","v":147.22431864335456}]
[null,"More than 30.0 percent",{"$f":"C353+C354","v":69},{"$f":"SQRT((D353^2)+(D354^2))","v":109.48059188732951},{"$f":"E353+E354","v":20},{"$f":"SQRT((F353^2)+(F354^2))","v":88.887569434651553},{"$f":"G353+G354","v":27},{"$f":"SQRT((H353^2)+(H354^2))","v":90.13878188659973},{"$f":"I353+I354","v":68},{"$f":"SQRT((J353^2)+(J354^2))","v":99.126182212370111},{"$f":"K353+K354","v":3},{"$f":"SQRT((L353^2)+(L354^2))","v":85.094065598019228},{"$f":"M353+M354","v":0},{"$f":"SQRT((N353^2)+(N354^2))","v":120.20815280171308},{"$f":"O353+O354","v":0},{"$f":"SQRT((P353^2)+(P354^2))","v":120.20815280171308},{"$f":"Q353+Q354","v":704},{"$f":"SQRT((R353^2)+(R354^2))","v":198.97989848223364},{"$f":"S353+S354","v":11},{"$f":"SQRT((T353^2)+(T354^2))","v":85.84287972802403},{"$f":"U353+U354","v":11},{"$f":"SQRT((V353^2)+(V354^2))","v":86.49277426467485},{"$f":"W353+W354","v":12},{"$f":"SQRT((X353^2)+(X354^2))","v":86.884981440983225},{"$f":"Y353+Y354","v":179},{"$f":"SQRT((Z353^2)+(Z354^2))","v":90.796475702529335},{"$f":"AA353+AA354","v":48},{"$f":"SQRT((AB353^2)+(AB354^2))","v":101.24228365658294},{"$f":"AC353+AC354","v":0},{"$f":"SQRT((AD353^2)+(AD354^2))","v":120.20815280171308},{"$f":"AE353+AE354","v":16},{"$f":"SQRT((AF353^2)+(AF354^2))","v":88.887569434651553},{"$f":"AG353+AG354","v":0},{"$f":"SQRT((AH353^2)+(AH354^2))","v":120.20815280171308},{"$f":"AI353+AI354","v":26},{"$f":"SQRT((AJ353^2)+(AJ354^2))","v":91.547801721286575},{"$f":"AK353+AK354","v":0},{"$f":"SQRT((AL353^2)+(AL354^2))","v":120.20815280171308},{"$f":"AM353+AM354","v":63},{"$f":"SQRT((AN353^2)+(AN354^2))","v":100.70253224224304},{"$f":"AO353+AO354","v":81},{"$f":"SQRT((AP353^2)+(AP354^2))","v":110.75197515168747},{"$f":"AQ353+AQ354","v":151},{"$f":"SQRT((AR353^2)+(AR354^2))","v":102.77159140540736},{"$f":"AS353+AS354","v":55},{"$f":"SQRT((AT353^2)+(AT354^2))","v":95.713112999212385},{"$f":"AU353+AU354","v":8},{"$f":"SQRT((AV353^2)+(AV354^2))","v":85.475142585432408},{"$f":"AW353+AW354","v":0},{"$f":"SQRT((AX353^2)+(AX354^2))","v":120.20815280171308},{"$f":"AY353+AY354","v":0},{"$f":"SQRT((AZ353^2)+(AZ354^2))","v":120.20815280171308},{"$f":"BA353+BA354","v":20},{"$f":"SQRT((BB353^2)+(BB354^2))","v":22.203603311174518},{"$f":"BC353+BC354","v":0},{"$f":"SQRT((BD353^2)+(BD354^2))","v":120.20815280171308}]
[null,"Less Than 35% of HH Income",{"$f":"C350+C351+C352+C353","v":21},{"$f":"SQRT((D350^2)+(D351^2)+(D352^2)+(D353^2))","v":121.66757990524839},{"$f":"E350+E351+E352+E353","v":0},{"$f":"SQRT((F350^2)+(F351^2)+(F352^2)+(F353^2))","v":170},{"$f":"G350+G351+G352+G353","v":16},{"$f":"SQRT((H350^2)+(H351^2)+(H352^2)+(H353^2))","v":148.57657958103627},{"$f":"I350+I351+I352+I353","v":12},{"$f":"SQRT((J350^2)+(J351^2)+(J352^2)+(J353^2))","v":148.57657958103627},{"$f":"K350+K351+K352+K353","v":0},{"$f":"SQRT((L350^2)+(L351^2)+(L352^2)+(L353^2))","v":170},{"$f":"M350+M351+M352+M353","v":14},{"$f":"SQRT((N350^2)+(N351^2)+(N352^2)+(N353^2))","v":121.12390350380886},{"$f":"O350+O351+O352+O353","v":0},{"$f":"SQRT((P350^2)+(P351^2)+(P352^2)+(P353^2))","v":170},{"$f":"Q350+Q351+Q352+Q353","v":439},{"$f":"SQRT((R350^2)+(R351^2)+(R352^2)+(R353^2))","v":147.09180806557515},{"$f":"S350+S351+S352+S353","v":0},{"$f":"SQRT((T350^2)+(T351^2)+(T352^2)+(T353^2))","v":170},{"$f":"U350+U351+U352+U353","v":0},{"$f":"SQRT((V350^2)+(V351^2)+(V352^2)+(V353^2))","v":170},{"$f":"W350+W351+W352+W353","v":21},{"$f":"SQRT((X350^2)+(X351^2)+(X352^2)+(X353^2))","v":122.5969004502153},{"$f":"Y350+Y351+Y352+Y353","v":114},{"$f":"SQRT((Z350^2)+(Z351^2)+(Z352^2)+(Z353^2))","v":55.695601262577284},{"$f":"AA350+AA351+AA352+AA353","v":44},{"$f":"SQRT((AB350^2)+(AB351^2)+(AB352^2)+(AB353^2))","v":92.881645118936177},{"$f":"AC350+AC351+AC352+AC353","v":4},{"$f":"SQRT((AD350^2)+(AD351^2)+(AD352^2)+(AD353^2))","v":147.34653032901724},{"$f":"AE350+AE351+AE352+AE353","v":37},{"$f":"SQRT((AF350^2)+(AF351^2)+(AF352^2)+(AF353^2))","v":152.30233090796739},{"$f":"AG350+AG351+AG352+AG353","v":0},{"$f":"SQRT((AH350^2)+(AH351^2)+(AH352^2)+(AH353^2))","v":170},{"$f":"AI350+AI351+AI352+AI353","v":10},{"$f":"SQRT((AJ350^2)+(AJ351^2)+(AJ352^2)+(AJ353^2))","v":148.09118812407442},{"$f":"AK350+AK351+AK352+AK353","v":0},{"$f":"SQRT((AL350^2)+(AL351^2)+(AL352^2)+(AL353^2))","v":170},{"$f":"AM350+AM351+AM352+AM353","v":0},{"$f":"SQRT((AN350^2)+(AN351^2)+(AN352^2)+(AN353^2))","v":170},{"$f":"AO350+AO351+AO352+AO353","v":0},{"$f":"SQRT((AP350^2)+(AP351^2)+(AP352^2)+(AP353^2))","v":170},{"$f":"AQ350+AQ351+AQ352+AQ353","v":26},{"$f":"SQRT((AR350^2)+(AR351^2)+(AR352^2)+(AR353^2))","v":123.67295581492341},{"$f":"AS350+AS351+AS352+AS353","v":17},{"$f":"SQRT((AT350^2)+(AT351^2)+(AT352^2)+(AT353^2))","v":121.71688461343398},{"$f":"AU350+AU351+AU352+AU353","v":0},{"$f":"SQRT((AV350^2)+(AV351^2)+(AV352^2)+(AV353^2))","v":170},{"$f":"AW350+AW351+AW352+AW353","v":0},{"$f":"SQRT((AX350^2)+(AX351^2)+(AX352^2)+(AX353^2))","v":170},{"$f":"AY350+AY351+AY352+AY353","v":6},{"$f":"SQRT((AZ350^2)+(AZ351^2)+(AZ352^2)+(AZ353^2))","v":147.49915253993834},{"$f":"BA350+BA351+BA352+BA353","v":8},{"$f":"SQRT((BB350^2)+(BB351^2)+(BB352^2)+(BB353^2))","v":147.79715829473852},{"$f":"BC350+BC351+BC352+BC353","v":0},{"$f":"SQRT((BD350^2)+(BD351^2)+(BD352^2)+(BD353^2))","v":170}]
[null,"35.0 percent or more",{"$f":"C354","v":69},69,20,26,27,30,68,51,3,4,0,85,0,85,669,197,11,12,11,16,12,18,172,90,48,55,0,85,16,26,0,85,26,34,0,85,63,54,81,71,139,101,55,44,8,9,0,85,0,85,12,18,0,85]
[null,"Not Computed",0,85,11,12,0,85,0,85,6,7,0,85,0,85,0,85,3,4,0,85,0,85,47,53,19,30,0,85,11,19,0,85,0,85,0,85,0,85,12,19,14,23,27,41,0,85,0,85,0,85,0,85,0,85]
[null,"$20,000 to $34,999:",240,106,9,14,93,58,71,49,32,24,32,20,8,12,1951,305,24,18,41,25,30,30,368,109,138,64,15,21,69,52,59,70,29,29,0,85,50,50,153,88,215,132,71,38,14,15,19,20,65,35,7,7,3,5]
[null,"Less than 30.0 percent",{"$f":"C357+C358+C359","v":32},{"$f":"SQRT((D357^2)+(D358^2)+(D359^2))","v":88.774996479864754},{"$f":"E357+E358+E359","v":0},{"$f":"SQRT((F357^2)+(F358^2)+(F359^2))","v":147.22431864335456},{"$f":"G357+G358+G359","v":11},{"$f":"SQRT((H357^2)+(H358^2)+(H359^2))","v":121.7004519301387},{"$f":"I357+I358+I359","v":7},{"$f":"SQRT((J357^2)+(J358^2)+(J359^2))","v":120.8056290079233},{"$f":"K357+K358+K359","v":0},{"$f":"SQRT((L357^2)+(L358^2)+(L359^2))","v":147.22431864335456},{"$f":"M357+M358+M359","v":32},{"$f":"SQRT((N357^2)+(N358^2)+(N359^2))","v":23.853720883753127},{"$f":"O357+O358+O359","v":0},{"$f":"SQRT((P357^2)+(P358^2)+(P359^2))","v":147.22431864335456},{"$f":"Q357+Q358+Q359","v":262},{"$f":"SQRT((R357^2)+(R358^2)+(R359^2))","v":116.46887996370532},{"$f":"S357+S358+S359","v":10},{"$f":"SQRT((T357^2)+(T358^2)+(T359^2))","v":85.662126987368225},{"$f":"U357+U358+U359","v":0},{"$f":"SQRT((V357^2)+(V358^2)+(V359^2))","v":147.22431864335456},{"$f":"W357+W358+W359","v":0},{"$f":"SQRT((X357^2)+(X358^2)+(X359^2))","v":147.22431864335456},{"$f":"Y357+Y358+Y359","v":146},{"$f":"SQRT((Z357^2)+(Z358^2)+(Z359^2))","v":81.369527465753421},{"$f":"AA357+AA358+AA359","v":16},{"$f":"SQRT((AB357^2)+(AB358^2)+(AB359^2))","v":121.54834429147935},{"$f":"AC357+AC358+AC359","v":0},{"$f":"SQRT((AD357^2)+(AD358^2)+(AD359^2))","v":147.22431864335456},{"$f":"AE357+AE358+AE359","v":24},{"$f":"SQRT((AF357^2)+(AF358^2)+(AF359^2))","v":89.877694674485284},{"$f":"AG357+AG358+AG359","v":0},{"$f":"SQRT((AH357^2)+(AH358^2)+(AH359^2))","v":147.22431864335456},{"$f":"AI357+AI358+AI359","v":0},{"$f":"SQRT((AJ357^2)+(AJ358^2)+(AJ359^2))","v":147.22431864335456},{"$f":"AK357+AK358+AK359","v":0},{"$f":"SQRT((AL357^2)+(AL358^2)+(AL359^2))","v":147.22431864335456},{"$f":"AM357+AM358+AM359","v":29},{"$f":"SQRT((AN357^2)+(AN358^2)+(AN359^2))","v":128.35497652993436},{"$f":"AO357+AO358+AO359","v":10},{"$f":"SQRT((AP357^2)+(AP358^2)+(AP359^2))","v":121.40428328522844},{"$f":"AQ357+AQ358+AQ359","v":40},{"$f":"SQRT((AR357^2)+(AR358^2)+(AR359^2))","v":95.094689651946396},{"$f":"AS357+AS358+AS359","v":18},{"$f":"SQRT((AT357^2)+(AT358^2)+(AT359^2))","v":122.02868515230344},{"$f":"AU357+AU358+AU359","v":0},{"$f":"SQRT((AV357^2)+(AV358^2)+(AV359^2))","v":147.22431864335456},{"$f":"AW357+AW358+AW359","v":0},{"$f":"SQRT((AX357^2)+(AX358^2)+(AX359^2))","v":147.22431864335456},{"$f":"AY357+AY358+AY359","v":6},{"$f":"SQRT((AZ357^2)+(AZ358^2)+(AZ359^2))","v":120.54459755625716},{"$f":"BA357+BA358+BA359","v":0},{"$f":"SQRT((BB357^2)+(BB358^2)+(BB359^2))","v":147.22431864335456},{"$f":"BC357+BC358+BC359","v":0},{"$f":"SQRT((BD357^2)+(BD358^2)+(BD359^2))","v":147.22431864335456}]
[null,"More than 30.0 percent",{"$f":"C360+C361","v":208},{"$f":"SQRT((D360^2)+(D361^2))","v":108.16653826391968},{"$f":"E360+E361","v":9},{"$f":"SQRT((F360^2)+(F361^2))","v":86.145226217127089},{"$f":"G360+G361","v":71},{"$f":"SQRT((H360^2)+(H361^2))","v":100.16985574512923},{"$f":"I360+I361","v":64},{"$f":"SQRT((J360^2)+(J361^2))","v":98.615414616580097},{"$f":"K360+K361","v":32},{"$f":"SQRT((L360^2)+(L361^2))","v":88.323269867006175},{"$f":"M360+M361","v":0},{"$f":"SQRT((N360^2)+(N361^2))","v":120.20815280171308},{"$f":"O360+O361","v":0},{"$f":"SQRT((P360^2)+(P361^2))","v":120.20815280171308},{"$f":"Q360+Q361","v":1652},{"$f":"SQRT((R360^2)+(R361^2))","v":294.55220250407228},{"$f":"S360+S361","v":14},{"$f":"SQRT((T360^2)+(T361^2))","v":86.313382508160345},{"$f":"U360+U361","v":36},{"$f":"SQRT((V360^2)+(V361^2))","v":88.600225733346747},{"$f":"W360+W361","v":30},{"$f":"SQRT((X360^2)+(X361^2))","v":29.154759474226502},{"$f":"Y360+Y361","v":193},{"$f":"SQRT((Z360^2)+(Z361^2))","v":93.300589494386372},{"$f":"AA360+AA361","v":122},{"$f":"SQRT((AB360^2)+(AB361^2))","v":66.098411478642959},{"$f":"AC360+AC361","v":15},{"$f":"SQRT((AD360^2)+(AD361^2))","v":87.555696559390128},{"$f":"AE360+AE361","v":45},{"$f":"SQRT((AF360^2)+(AF361^2))","v":37.20215047547655},{"$f":"AG360+AG361","v":59},{"$f":"SQRT((AH360^2)+(AH361^2))","v":70.235318750611498},{"$f":"AI360+AI361","v":18},{"$f":"SQRT((AJ360^2)+(AJ361^2))","v":87.80091115700337},{"$f":"AK360+AK361","v":0},{"$f":"SQRT((AL360^2)+(AL361^2))","v":120.20815280171308},{"$f":"AM360+AM361","v":21},{"$f":"SQRT((AN360^2)+(AN361^2))","v":87.555696559390128},{"$f":"AO360+AO361","v":132},{"$f":"SQRT((AP360^2)+(AP361^2))","v":86.267027304758798},{"$f":"AQ360+AQ361","v":175},{"$f":"SQRT((AR360^2)+(AR361^2))","v":125.99206324209474},{"$f":"AS360+AS361","v":53},{"$f":"SQRT((AT360^2)+(AT361^2))","v":32.249030993194197},{"$f":"AU360+AU361","v":14},{"$f":"SQRT((AV360^2)+(AV361^2))","v":86.313382508160345},{"$f":"AW360+AW361","v":13},{"$f":"SQRT((AX360^2)+(AX361^2))","v":86.683331731077345},{"$f":"AY360+AY361","v":59},{"$f":"SQRT((AZ360^2)+(AZ361^2))","v":35.608987629529715},{"$f":"BA360+BA361","v":4},{"$f":"SQRT((BB360^2)+(BB361^2))","v":85.14693182963201},{"$f":"BC360+BC361","v":0},{"$f":"SQRT((BD360^2)+(BD361^2))","v":120.20815280171308}]
[null,"Less Than 35% of HH Income",{"$f":"C357+C358+C359+C360","v":89},{"$f":"SQRT((D360^2)+(D357^2)+(D358^2)+(D359^2))","v":107.14942836991712},{"$f":"E357+E358+E359+E360","v":9},{"$f":"SQRT((F360^2)+(F357^2)+(F358^2)+(F359^2))","v":147.88847149118826},{"$f":"G357+G358+G359+G360","v":11},{"$f":"SQRT((H360^2)+(H357^2)+(H358^2)+(H359^2))","v":148.44527611210805},{"$f":"I357+I358+I359+I360","v":7},{"$f":"SQRT((J360^2)+(J357^2)+(J358^2)+(J359^2))","v":147.71255870778219},{"$f":"K357+K358+K359+K360","v":0},{"$f":"SQRT((L360^2)+(L357^2)+(L358^2)+(L359^2))","v":170},{"$f":"M357+M358+M359+M360","v":32},{"$f":"SQRT((N360^2)+(N357^2)+(N358^2)+(N359^2))","v":88.283633817372973},{"$f":"O357+O358+O359+O360","v":0},{"$f":"SQRT((P360^2)+(P357^2)+(P358^2)+(P359^2))","v":170},{"$f":"Q357+Q358+Q359+Q360","v":558},{"$f":"SQRT((R360^2)+(R357^2)+(R358^2)+(R359^2))","v":167.22739010102381},{"$f":"S357+S358+S359+S360","v":10},{"$f":"SQRT((T360^2)+(T357^2)+(T358^2)+(T359^2))","v":120.67725552066554},{"$f":"U357+U358+U359+U360","v":0},{"$f":"SQRT((V360^2)+(V357^2)+(V358^2)+(V359^2))","v":170},{"$f":"W357+W358+W359+W360","v":9},{"$f":"SQRT((X360^2)+(X357^2)+(X358^2)+(X359^2))","v":147.98648586948741},{"$f":"Y357+Y358+Y359+Y360","v":188},{"$f":"SQRT((Z360^2)+(Z357^2)+(Z358^2)+(Z359^2))","v":86.05230967266364},{"$f":"AA357+AA358+AA359+AA360","v":34},{"$f":"SQRT((AB360^2)+(AB357^2)+(AB358^2)+(AB359^2))","v":123.18279100588686},{"$f":"AC357+AC358+AC359+AC360","v":0},{"$f":"SQRT((AD360^2)+(AD357^2)+(AD358^2)+(AD359^2))","v":170},{"$f":"AE357+AE358+AE359+AE360","v":43},{"$f":"SQRT((AF360^2)+(AF357^2)+(AF358^2)+(AF359^2))","v":92.531075861031681},{"$f":"AG357+AG358+AG359+AG360","v":38},{"$f":"SQRT((AH360^2)+(AH357^2)+(AH358^2)+(AH359^2))","v":159.74667445677861},{"$f":"AI357+AI358+AI359+AI360","v":0},{"$f":"SQRT((AJ360^2)+(AJ357^2)+(AJ358^2)+(AJ359^2))","v":170},{"$f":"AK357+AK358+AK359+AK360","v":0},{"$f":"SQRT((AL360^2)+(AL357^2)+(AL358^2)+(AL359^2))","v":170},{"$f":"AM357+AM358+AM359+AM360","v":29},{"$f":"SQRT((AN360^2)+(AN357^2)+(AN358^2)+(AN359^2))","v":153.94804318340653},{"$f":"AO357+AO358+AO359+AO360","v":57},{"$f":"SQRT((AP360^2)+(AP357^2)+(AP358^2)+(AP359^2))","v":135.86758259423033},{"$f":"AQ357+AQ358+AQ359+AQ360","v":140},{"$f":"SQRT((AR360^2)+(AR357^2)+(AR358^2)+(AR359^2))","v":133.01127771734244},{"$f":"AS357+AS358+AS359+AS360","v":35},{"$f":"SQRT((AT360^2)+(AT357^2)+(AT358^2)+(AT359^2))","v":123.07314898059609},{"$f":"AU357+AU358+AU359+AU360","v":0},{"$f":"SQRT((AV360^2)+(AV357^2)+(AV358^2)+(AV359^2))","v":170},{"$f":"AW357+AW358+AW359+AW360","v":0},{"$f":"SQRT((AX360^2)+(AX357^2)+(AX358^2)+(AX359^2))","v":170},{"$f":"AY357+AY358+AY359+AY360","v":21},{"$f":"SQRT((AZ360^2)+(AZ357^2)+(AZ358^2)+(AZ359^2))","v":122.53570908106747},{"$f":"BA357+BA358+BA359+BA360","v":0},{"$f":"SQRT((BB360^2)+(BB357^2)+(BB358^2)+(BB359^2))","v":170},{"$f":"BC357+BC358+BC359+BC360","v":0},{"$f":"SQRT((BD360^2)+(BD357^2)+(BD358^2)+(BD359^2))","v":170}]
[null,"35.0 percent or more",{"$f":"C361","v":151},90,0,85,71,53,64,50,32,24,0,85,0,85,1356,269,14,15,36,25,21,25,151,89,104,63,15,21,26,30,21,33,18,22,0,85,21,21,85,61,75,85,36,28,14,15,13,17,44,28,4,5,0,85]
[null,"Not Computed",0,85,0,85,11,17,0,85,0,85,0,85,8,12,37,35,0,85,5,7,0,85,29,27,0,85,0,85,0,85,0,85,11,18,0,85,0,85,11,17,0,85,0,85,0,85,6,11,0,85,3,5,3,5]
[null,"$35,000 to $49,999:",34,29,34,38,39,33,79,56,6,6,0,85,6,9,1211,224,36,26,7,11,10,17,120,64,19,31,7,6,56,36,23,27,92,84,0,85,39,39,23,27,143,110,110,81,0,85,8,10,38,25,15,11,9,13]
[null,"Less than 30.0 percent",{"$f":"C364+C365+C366","v":25},{"$f":"SQRT((D364^2)+(D365^2)+(D367^2))","v":121.86057606953941},{"$f":"E364+E365+E366","v":17},{"$f":"SQRT((F364^2)+(F365^2)+(F367^2))","v":122.98780427343192},{"$f":"G364+G365+G366","v":30},{"$f":"SQRT((H364^2)+(H365^2)+(H367^2))","v":88.617154095581284},{"$f":"I364+I365+I366","v":13},{"$f":"SQRT((J364^2)+(J365^2)+(J367^2))","v":147.22431864335456},{"$f":"K364+K365+K366","v":6},{"$f":"SQRT((L364^2)+(L365^2)+(L367^2))","v":120.2746856158851},{"$f":"M364+M365+M366","v":0},{"$f":"SQRT((N364^2)+(N365^2)+(N367^2))","v":147.22431864335456},{"$f":"O364+O365+O366","v":0},{"$f":"SQRT((P364^2)+(P365^2)+(P367^2))","v":120.54459755625716},{"$f":"Q364+Q365+Q366","v":711},{"$f":"SQRT((R364^2)+(R365^2)+(R367^2))","v":202.12867188996222},{"$f":"S364+S365+S366","v":36},{"$f":"SQRT((T364^2)+(T365^2)+(T367^2))","v":122.02868515230344},{"$f":"U364+U365+U366","v":7},{"$f":"SQRT((V364^2)+(V365^2)+(V367^2))","v":147.22431864335456},{"$f":"W364+W365+W366","v":0},{"$f":"SQRT((X364^2)+(X365^2)+(X367^2))","v":147.22431864335456},{"$f":"Y364+Y365+Y366","v":48},{"$f":"SQRT((Z364^2)+(Z365^2)+(Z367^2))","v":48.713447835274401},{"$f":"AA364+AA365+AA366","v":0},{"$f":"SQRT((AB364^2)+(AB365^2)+(AB367^2))","v":124.14104881142256},{"$f":"AC364+AC365+AC366","v":3},{"$f":"SQRT((AD364^2)+(AD365^2)+(AD367^2))","v":120.2746856158851},{"$f":"AE364+AE365+AE366","v":23},{"$f":"SQRT((AF364^2)+(AF365^2)+(AF367^2))","v":90.144328717895505},{"$f":"AG364+AG365+AG366","v":11},{"$f":"SQRT((AH364^2)+(AH365^2)+(AH367^2))","v":147.22431864335456},{"$f":"AI364+AI365+AI366","v":0},{"$f":"SQRT((AJ364^2)+(AJ365^2)+(AJ367^2))","v":144.39529078193652},{"$f":"AK364+AK365+AK366","v":0},{"$f":"SQRT((AL364^2)+(AL365^2)+(AL367^2))","v":147.22431864335456},{"$f":"AM364+AM365+AM366","v":11},{"$f":"SQRT((AN364^2)+(AN365^2)+(AN367^2))","v":87.783825389418979},{"$f":"AO364+AO365+AO366","v":23},{"$f":"SQRT((AP364^2)+(AP365^2)+(AP367^2))","v":122.5805857385255},{"$f":"AQ364+AQ365+AQ366","v":88},{"$f":"SQRT((AR364^2)+(AR365^2)+(AR367^2))","v":139.28747251637529},{"$f":"AS364+AS365+AS366","v":110},{"$f":"SQRT((AT364^2)+(AT365^2)+(AT367^2))","v":124.92397688194208},{"$f":"AU364+AU365+AU366","v":0},{"$f":"SQRT((AV364^2)+(AV365^2)+(AV367^2))","v":147.22431864335456},{"$f":"AW364+AW365+AW366","v":5},{"$f":"SQRT((AX364^2)+(AX365^2)+(AX367^2))","v":85.621259042366347},{"$f":"AY364+AY365+AY366","v":16},{"$f":"SQRT((AZ364^2)+(AZ365^2)+(AZ367^2))","v":147.22431864335456},{"$f":"BA364+BA365+BA366","v":7},{"$f":"SQRT((BB364^2)+(BB365^2)+(BB367^2))","v":8.2462112512353212},{"$f":"BC364+BC365+BC366","v":0},{"$f":"SQRT((BD364^2)+(BD365^2)+(BD367^2))","v":120.90905673273612}]
[null,"More than 30.0 percent",{"$f":"C367+C368","v":0},{"$f":"SQRT((D367^2)+(D368^2))","v":120.20815280171308},{"$f":"E367+E368","v":17},{"$f":"SQRT((F367^2)+(F368^2))","v":89.493016487321512},{"$f":"G367+G368","v":9},{"$f":"SQRT((H367^2)+(H368^2))","v":85.84287972802403},{"$f":"I367+I368","v":54},{"$f":"SQRT((J367^2)+(J368^2))","v":104.04326023342406},{"$f":"K367+K368","v":0},{"$f":"SQRT((L367^2)+(L368^2))","v":120.20815280171308},{"$f":"M367+M368","v":0},{"$f":"SQRT((N367^2)+(N368^2))","v":120.20815280171308},{"$f":"O367+O368","v":6},{"$f":"SQRT((P367^2)+(P368^2))","v":85.475142585432408},{"$f":"Q367+Q368","v":481},{"$f":"SQRT((R367^2)+(R368^2))","v":154.46682491719702},{"$f":"S367+S368","v":0},{"$f":"SQRT((T367^2)+(T368^2))","v":120.20815280171308},{"$f":"U367+U368","v":0},{"$f":"SQRT((V367^2)+(V368^2))","v":120.20815280171308},{"$f":"W367+W368","v":10},{"$f":"SQRT((X367^2)+(X368^2))","v":86.683331731077345},{"$f":"Y367+Y368","v":72},{"$f":"SQRT((Z367^2)+(Z368^2))","v":51.224993899462788},{"$f":"AA367+AA368","v":19},{"$f":"SQRT((AB367^2)+(AB368^2))","v":90.476516290140168},{"$f":"AC367+AC368","v":0},{"$f":"SQRT((AD367^2)+(AD368^2))","v":120.20815280171308},{"$f":"AE367+AE368","v":33},{"$f":"SQRT((AF367^2)+(AF368^2))","v":24.207436873820409},{"$f":"AG367+AG368","v":12},{"$f":"SQRT((AH367^2)+(AH368^2))","v":87.321245982864909},{"$f":"AI367+AI368","v":92},{"$f":"SQRT((AJ367^2)+(AJ368^2))","v":85.440037453175307},{"$f":"AK367+AK368","v":0},{"$f":"SQRT((AL367^2)+(AL368^2))","v":120.20815280171308},{"$f":"AM367+AM368","v":10},{"$f":"SQRT((AN367^2)+(AN368^2))","v":86.313382508160345},{"$f":"AO367+AO368","v":0},{"$f":"SQRT((AP367^2)+(AP368^2))","v":120.20815280171308},{"$f":"AQ367+AQ368","v":55},{"$f":"SQRT((AR367^2)+(AR368^2))","v":116.72617529928752},{"$f":"AS367+AS368","v":0},{"$f":"SQRT((AT367^2)+(AT368^2))","v":120.20815280171308},{"$f":"AU367+AU368","v":0},{"$f":"SQRT((AV367^2)+(AV368^2))","v":120.20815280171308},{"$f":"AW367+AW368","v":3},{"$f":"SQRT((AX367^2)+(AX368^2))","v":85.14693182963201},{"$f":"AY367+AY368","v":15},{"$f":"SQRT((AZ367^2)+(AZ368^2))","v":86.313382508160345},{"$f":"BA367+BA368","v":5},{"$f":"SQRT((BB367^2)+(BB368^2))","v":5},{"$f":"BC367+BC368","v":9},{"$f":"SQRT((BD367^2)+(BD368^2))","v":85.988371306822643}]
[null,"Less Than 35% of HH Income",{"$f":"C364+C365+C366+C367","v":25},{"$f":"SQRT((D366^2)+(D367^2)+(D364^2)+(D365^2))","v":122.78029157808675},{"$f":"E364+E365+E366+E367","v":17},{"$f":"SQRT((F366^2)+(F367^2)+(F364^2)+(F365^2))","v":149.50250834016131},{"$f":"G364+G365+G366+G367","v":39},{"$f":"SQRT((H366^2)+(H367^2)+(H364^2)+(H365^2))","v":92.076055519336833},{"$f":"I364+I365+I366+I367","v":13},{"$f":"SQRT((J366^2)+(J367^2)+(J364^2)+(J365^2))","v":148.85899368194049},{"$f":"K364+K365+K366+K367","v":6},{"$f":"SQRT((L366^2)+(L367^2)+(L364^2)+(L365^2))","v":120.37856952132302},{"$f":"M364+M365+M366+M367","v":0},{"$f":"SQRT((N366^2)+(N367^2)+(N364^2)+(N365^2))","v":170},{"$f":"O364+O365+O366+O367","v":6},{"$f":"SQRT((P366^2)+(P367^2)+(P364^2)+(P365^2))","v":147.49915253993834},{"$f":"Q364+Q365+Q366+Q367","v":978},{"$f":"SQRT((R366^2)+(R367^2)+(R364^2)+(R365^2))","v":227.31475974955958},{"$f":"S364+S365+S366+S367","v":36},{"$f":"SQRT((T366^2)+(T367^2)+(T364^2)+(T365^2))","v":123.07314898059609},{"$f":"U364+U365+U366+U367","v":7},{"$f":"SQRT((V366^2)+(V367^2)+(V364^2)+(V365^2))","v":147.63468427168462},{"$f":"W364+W365+W366+W367","v":0},{"$f":"SQRT((X366^2)+(X367^2)+(X364^2)+(X365^2))","v":170},{"$f":"Y364+Y365+Y366+Y367","v":89},{"$f":"SQRT((Z366^2)+(Z367^2)+(Z364^2)+(Z365^2))","v":52.659282182726344},{"$f":"AA364+AA365+AA366+AA367","v":19},{"$f":"SQRT((AB366^2)+(AB367^2)+(AB364^2)+(AB365^2))","v":150.45265035884213},{"$f":"AC364+AC365+AC366+AC367","v":3},{"$f":"SQRT((AD366^2)+(AD367^2)+(AD364^2)+(AD365^2))","v":147.27864746798838},{"$f":"AE364+AE365+AE366+AE367","v":33},{"$f":"SQRT((AF366^2)+(AF367^2)+(AF364^2)+(AF365^2))","v":123.89915253947461},{"$f":"AG364+AG365+AG366+AG367","v":11},{"$f":"SQRT((AH366^2)+(AH367^2)+(AH364^2)+(AH365^2))","v":148.2025640803829},{"$f":"AI364+AI365+AI366+AI367","v":73},{"$f":"SQRT((AJ366^2)+(AJ367^2)+(AJ364^2)+(AJ365^2))","v":167.55596080116041},{"$f":"AK364+AK365+AK366+AK367","v":0},{"$f":"SQRT((AL366^2)+(AL367^2)+(AL364^2)+(AL365^2))","v":170},{"$f":"AM364+AM365+AM366+AM367","v":21},{"$f":"SQRT((AN366^2)+(AN367^2)+(AN364^2)+(AN365^2))","v":122.19247112649781},{"$f":"AO364+AO365+AO366+AO367","v":23},{"$f":"SQRT((AP366^2)+(AP367^2)+(AP364^2)+(AP365^2))","v":123.26800071389168},{"$f":"AQ364+AQ365+AQ366+AQ367","v":143},{"$f":"SQRT((AR366^2)+(AR367^2)+(AR364^2)+(AR365^2))","v":142.48157775656472},{"$f":"AS364+AS365+AS366+AS367","v":110},{"$f":"SQRT((AT366^2)+(AT367^2)+(AT364^2)+(AT365^2))","v":142.71299870719557},{"$f":"AU364+AU365+AU366+AU367","v":0},{"$f":"SQRT((AV366^2)+(AV367^2)+(AV364^2)+(AV365^2))","v":170},{"$f":"AW364+AW365+AW366+AW367","v":8},{"$f":"SQRT((AX366^2)+(AX367^2)+(AX364^2)+(AX365^2))","v":120.64824905484538},{"$f":"AY364+AY365+AY366+AY367","v":16},{"$f":"SQRT((AZ366^2)+(AZ367^2)+(AZ364^2)+(AZ365^2))","v":148.09118812407442},{"$f":"BA364+BA365+BA366+BA367","v":10},{"$f":"SQRT((BB366^2)+(BB367^2)+(BB364^2)+(BB365^2))","v":85.399063226712272},{"$f":"BC364+BC365+BC366+BC367","v":9},{"$f":"SQRT((BD366^2)+(BD367^2)+(BD364^2)+(BD365^2))","v":147.79715829473852}]
[null,"35.0 percent or more",{"$f":"C368","v":0},{"$f":"D368","v":85},{"$f":"E368","v":17},{"$f":"F368","v":28},{"$f":"G368","v":0},{"$f":"H368","v":85},{"$f":"I368","v":54},{"$f":"J368","v":60},{"$f":"K368","v":0},{"$f":"L368","v":85},{"$f":"M368","v":0},{"$f":"N368","v":85},0,85,214,102,0,85,0,85,10,17,31,32,0,85,0,85,23,19,12,20,19,30,0,85,0,85,0,85,0,85,0,85,0,85,0,85,15,15,2,3,0,85]
[null,"Not Computed",9,15,0,85,0,85,12,19,0,85,0,85,0,85,19,21,0,85,0,85,0,85,0,85,0,85,4,5,0,85,0,85,0,85,0,85,18,29,0,85,0,85,0,85,0,85,0,85,7,10,3,5,0,85]
[null,"$50,000 to $74,999:",75,55,18,26,63,49,25,30,30,19,8,12,0,85,1593,246,17,17,5,7,61,49,140,72,181,94,8,14,184,73,53,49,6,10,18,14,49,45,55,59,101,94,85,49,9,15,35,28,51,33,9,8,19,22]
[null,"Less than 30.0 percent",{"$f":"C371+C372+C373","v":21},{"$f":"SQRT((D371^2)+(D372^2)+(D373^2))","v":88.283633817372973},{"$f":"E371+E372+E373","v":1},{"$f":"SQRT((F371^2)+(F372^2)+(F373^2))","v":120.22478945708326},{"$f":"G371+G372+G373","v":63},{"$f":"SQRT((H371^2)+(H372^2)+(H373^2))","v":101.63168797181321},{"$f":"I371+I372+I373","v":12},{"$f":"SQRT((J371^2)+(J372^2)+(J373^2))","v":121.86057606953941},{"$f":"K371+K372+K373","v":19},{"$f":"SQRT((L371^2)+(L372^2)+(L373^2))","v":85.586213843118443},{"$f":"M371+M372+M373","v":0},{"$f":"SQRT((N371^2)+(N372^2)+(N373^2))","v":147.22431864335456},{"$f":"O371+O372+O373","v":0},{"$f":"SQRT((P371^2)+(P372^2)+(P373^2))","v":147.22431864335456},{"$f":"Q371+Q372+Q373","v":1380},{"$f":"SQRT((R371^2)+(R372^2)+(R373^2))","v":241.58021442162848},{"$f":"S371+S372+S373","v":17},{"$f":"SQRT((T371^2)+(T372^2)+(T373^2))","v":121.40428328522844},{"$f":"U371+U372+U373","v":5},{"$f":"SQRT((V371^2)+(V372^2)+(V373^2))","v":120.41179344233687},{"$f":"W371+W372+W373","v":28},{"$f":"SQRT((X371^2)+(X372^2)+(X373^2))","v":88.960665465136898},{"$f":"Y371+Y372+Y373","v":140},{"$f":"SQRT((Z371^2)+(Z372^2)+(Z373^2))","v":82.776808346299504},{"$f":"AA371+AA372+AA373","v":181},{"$f":"SQRT((AB371^2)+(AB372^2)+(AB373^2))","v":101.75952043912157},{"$f":"AC371+AC372+AC373","v":0},{"$f":"SQRT((AD371^2)+(AD372^2)+(AD373^2))","v":147.22431864335456},{"$f":"AE371+AE372+AE373","v":162},{"$f":"SQRT((AF371^2)+(AF372^2)+(AF373^2))","v":91.093358704133863},{"$f":"AG371+AG372+AG373","v":39},{"$f":"SQRT((AH371^2)+(AH372^2)+(AH373^2))","v":128.00781226159597},{"$f":"AI371+AI372+AI373","v":0},{"$f":"SQRT((AJ371^2)+(AJ372^2)+(AJ373^2))","v":147.22431864335456},{"$f":"AK371+AK372+AK373","v":18},{"$f":"SQRT((AL371^2)+(AL372^2)+(AL373^2))","v":13.74772708486752},{"$f":"AM371+AM372+AM373","v":49},{"$f":"SQRT((AN371^2)+(AN372^2)+(AN373^2))","v":128.35497652993436},{"$f":"AO371+AO372+AO373","v":55},{"$f":"SQRT((AP371^2)+(AP372^2)+(AP373^2))","v":103.04368005850722},{"$f":"AQ371+AQ372+AQ373","v":91},{"$f":"SQRT((AR371^2)+(AR372^2)+(AR373^2))","v":150.7680337472105},{"$f":"AS371+AS372+AS373","v":85},{"$f":"SQRT((AT371^2)+(AT372^2)+(AT373^2))","v":98.88882646689666},{"$f":"AU371+AU372+AU373","v":9},{"$f":"SQRT((AV371^2)+(AV372^2)+(AV373^2))","v":121.14041439585718},{"$f":"AW371+AW372+AW373","v":35},{"$f":"SQRT((AX371^2)+(AX372^2)+(AX373^2))","v":89.498603341057787},{"$f":"AY371+AY372+AY373","v":46},{"$f":"SQRT((AZ371^2)+(AZ372^2)+(AZ373^2))","v":91.372862492098818},{"$f":"BA371+BA372+BA373","v":9},{"$f":"SQRT((BB371^2)+(BB372^2)+(BB373^2))","v":85.434185195388849},{"$f":"BC371+BC372+BC373","v":19},{"$f":"SQRT((BD371^2)+(BD372^2)+(BD373^2))","v":87.618491199061395}]
[null,"More than 30.0 percent",{"$f":"C374+C375","v":54},{"$f":"SQRT((D374^2)+(D375^2))","v":49.979995998399197},{"$f":"E374+E375","v":0},{"$f":"SQRT((F374^2)+(F375^2))","v":120.20815280171308},{"$f":"G374+G375","v":0},{"$f":"SQRT((H374^2)+(H375^2))","v":120.20815280171308},{"$f":"I374+I375","v":13},{"$f":"SQRT((J374^2)+(J375^2))","v":87.80091115700337},{"$f":"K374+K375","v":11},{"$f":"SQRT((L374^2)+(L375^2))","v":86.49277426467485},{"$f":"M374+M375","v":8},{"$f":"SQRT((N374^2)+(N375^2))","v":85.84287972802403},{"$f":"O374+O375","v":0},{"$f":"SQRT((P374^2)+(P375^2))","v":120.20815280171308},{"$f":"Q374+Q375","v":187},{"$f":"SQRT((R374^2)+(R375^2))","v":83.725742755737912},{"$f":"S374+S375","v":0},{"$f":"SQRT((T374^2)+(T375^2))","v":120.20815280171308},{"$f":"U374+U375","v":0},{"$f":"SQRT((V374^2)+(V375^2))","v":120.20815280171308},{"$f":"W374+W375","v":28},{"$f":"SQRT((X374^2)+(X375^2))","v":33.837848631377263},{"$f":"Y374+Y375","v":0},{"$f":"SQRT((Z374^2)+(Z375^2))","v":120.20815280171308},{"$f":"AA374+AA375","v":0},{"$f":"SQRT((AB374^2)+(AB375^2))","v":120.20815280171308},{"$f":"AC374+AC375","v":8},{"$f":"SQRT((AD374^2)+(AD375^2))","v":86.145226217127089},{"$f":"AE374+AE375","v":22},{"$f":"SQRT((AF374^2)+(AF375^2))","v":88.600225733346747},{"$f":"AG374+AG375","v":14},{"$f":"SQRT((AH374^2)+(AH375^2))","v":87.80091115700337},{"$f":"AI374+AI375","v":6},{"$f":"SQRT((AJ374^2)+(AJ375^2))","v":85.586213843118443},{"$f":"AK374+AK375","v":0},{"$f":"SQRT((AL374^2)+(AL375^2))","v":120.20815280171308},{"$f":"AM374+AM375","v":0},{"$f":"SQRT((AN374^2)+(AN375^2))","v":120.20815280171308},{"$f":"AO374+AO375","v":0},{"$f":"SQRT((AP374^2)+(AP375^2))","v":120.20815280171308},{"$f":"AQ374+AQ375","v":10},{"$f":"SQRT((AR374^2)+(AR375^2))","v":86.313382508160345},{"$f":"AS374+AS375","v":0},{"$f":"SQRT((AT374^2)+(AT375^2))","v":120.20815280171308},{"$f":"AU374+AU375","v":0},{"$f":"SQRT((AV374^2)+(AV375^2))","v":120.20815280171308},{"$f":"AW374+AW375","v":0},{"$f":"SQRT((AX374^2)+(AX375^2))","v":120.20815280171308},{"$f":"AY374+AY375","v":5},{"$f":"SQRT((AZ374^2)+(AZ375^2))","v":85.37564055396598},{"$f":"BA374+BA375","v":0},{"$f":"SQRT((BB374^2)+(BB375^2))","v":120.20815280171308},{"$f":"BC374+BC375","v":0},{"$f":"SQRT((BD374^2)+(BD375^2))","v":120.20815280171308}]
[null,"Less Than 35% of HH Income",{"$f":"C374+C373+C372+C371","v":32},{"$f":"SQRT((D374^2)+(D373^2)+(D372^2)+(D371^2))","v":89.905505949302125},{"$f":"E374+E373+E372+E371","v":1},{"$f":"SQRT((F374^2)+(F373^2)+(F372^2)+(F371^2))","v":147.23790272888297},{"$f":"G374+G373+G372+G371","v":63},{"$f":"SQRT((H374^2)+(H373^2)+(H372^2)+(H371^2))","v":132.49150916190817},{"$f":"I374+I373+I372+I371","v":25},{"$f":"SQRT((J374^2)+(J373^2)+(J372^2)+(J371^2))","v":123.8305293536291},{"$f":"K374+K373+K372+K371","v":19},{"$f":"SQRT((L374^2)+(L373^2)+(L372^2)+(L371^2))","v":120.62338081814819},{"$f":"M374+M373+M372+M371","v":8},{"$f":"SQRT((N374^2)+(N373^2)+(N372^2)+(N371^2))","v":147.71255870778219},{"$f":"O374+O373+O372+O371","v":0},{"$f":"SQRT((P374^2)+(P373^2)+(P372^2)+(P371^2))","v":170},{"$f":"Q374+Q373+Q372+Q371","v":1502},{"$f":"SQRT((R374^2)+(R373^2)+(R372^2)+(R371^2))","v":252.36877778362361},{"$f":"S374+S373+S372+S371","v":17},{"$f":"SQRT((T374^2)+(T373^2)+(T372^2)+(T371^2))","v":148.2025640803829},{"$f":"U374+U373+U372+U371","v":5},{"$f":"SQRT((V374^2)+(V373^2)+(V372^2)+(V371^2))","v":147.39063742314164},{"$f":"W374+W373+W372+W371","v":35},{"$f":"SQRT((X374^2)+(X373^2)+(X372^2)+(X371^2))","v":89.638161516175686},{"$f":"Y374+Y373+Y372+Y371","v":140},{"$f":"SQRT((Z374^2)+(Z373^2)+(Z372^2)+(Z371^2))","v":118.64653387267578},{"$f":"AA374+AA373+AA372+AA371","v":181},{"$f":"SQRT((AB374^2)+(AB373^2)+(AB372^2)+(AB371^2))","v":132.58959235173776},{"$f":"AC374+AC373+AC372+AC371","v":0},{"$f":"SQRT((AD374^2)+(AD373^2)+(AD372^2)+(AD371^2))","v":170},{"$f":"AE374+AE373+AE372+AE371","v":184},{"$f":"SQRT((AF374^2)+(AF373^2)+(AF372^2)+(AF371^2))","v":94.461632422904913},{"$f":"AG374+AG373+AG372+AG371","v":53},{"$f":"SQRT((AH374^2)+(AH373^2)+(AH372^2)+(AH371^2))","v":129.88456413292536},{"$f":"AI374+AI373+AI372+AI371","v":0},{"$f":"SQRT((AJ374^2)+(AJ373^2)+(AJ372^2)+(AJ371^2))","v":170},{"$f":"AK374+AK373+AK372+AK371","v":18},{"$f":"SQRT((AL374^2)+(AL373^2)+(AL372^2)+(AL371^2))","v":86.10458756651704},{"$f":"AM374+AM373+AM372+AM371","v":49},{"$f":"SQRT((AN374^2)+(AN373^2)+(AN372^2)+(AN371^2))","v":153.94804318340653},{"$f":"AO374+AO373+AO372+AO371","v":55},{"$f":"SQRT((AP374^2)+(AP373^2)+(AP372^2)+(AP371^2))","v":133.57769274845256},{"$f":"AQ374+AQ373+AQ372+AQ371","v":101},{"$f":"SQRT((AR374^2)+(AR373^2)+(AR372^2)+(AR371^2))","v":151.51237573214937},{"$f":"AS374+AS373+AS372+AS371","v":85},{"$f":"SQRT((AT374^2)+(AT373^2)+(AT372^2)+(AT371^2))","v":130.39938650162432},{"$f":"AU374+AU373+AU372+AU371","v":9},{"$f":"SQRT((AV374^2)+(AV373^2)+(AV372^2)+(AV371^2))","v":147.98648586948741},{"$f":"AW374+AW373+AW372+AW371","v":35},{"$f":"SQRT((AX374^2)+(AX373^2)+(AX372^2)+(AX371^2))","v":123.43014218577244},{"$f":"AY374+AY373+AY372+AY371","v":51},{"$f":"SQRT((AZ374^2)+(AZ373^2)+(AZ372^2)+(AZ371^2))","v":91.72240729505522},{"$f":"BA374+BA373+BA372+BA371","v":9},{"$f":"SQRT((BB374^2)+(BB373^2)+(BB372^2)+(BB371^2))","v":120.51555916146263},{"$f":"BC374+BC373+BC372+BC371","v":19},{"$f":"SQRT((BD374^2)+(BD373^2)+(BD372^2)+(BD371^2))","v":122.07374820165063}]
[null,"35.0 percent or more",{"$f":"C375","v":43},{"$f":"D375","v":47},{"$f":"E375","v":0},{"$f":"F375","v":85},{"$f":"G375","v":0},{"$f":"H375","v":85},{"$f":"I375","v":0},{"$f":"J375","v":85},{"$f":"K375","v":11},{"$f":"L375","v":16},{"$f":"M375","v":0},{"$f":"N375","v":85},0,85,65,41,0,85,0,85,21,32,0,85,0,85,8,14,0,85,0,85,6,10,0,85,0,85,0,85,0,85,0,85,0,85,0,85,0,85,0,85,0,85]
[null,"Not Computed",{"$f":"C376","v":0},85,{"$f":"E376","v":17},26,{"$f":"G376","v":0},85,{"$f":"I376","v":0},85,{"$f":"K376","v":0},85,{"$f":"M376","v":0},85,0,85,26,31,0,85,0,85,5,8,0,85,0,85,0,85,0,85,0,85,0,85,0,85,0,85,0,85,0,85,0,85,0,85,0,85,0,85,0,85,0,85]
[null,"$75,000 to $99,999:",52,60,0,85,30,45,0,85,8,9,6,8,4,6,804,165,0,85,10,15,7,12,104,75,60,61,0,85,87,53,69,55,46,58,11,15,0,85,58,44,30,35,41,51,3,5,0,85,23,20,14,16,14,22]
[null,"Less than 30.0 percent",{"$f":"C378+C379+C380","v":19},{"$f":"SQRT((D378^2)+(D379^2)+(D380^2))","v":124.14104881142256},{"$f":"E378+E379+E380","v":0},{"$f":"SQRT((F378^2)+(F379^2)+(F380^2))","v":147.22431864335456},{"$f":"G378+G379+G380","v":30},{"$f":"SQRT((H378^2)+(H379^2)+(H380^2))","v":128.35497652993436},{"$f":"I378+I379+I380","v":0},{"$f":"SQRT((J378^2)+(J379^2)+(J380^2))","v":147.22431864335456},{"$f":"K378+K379+K380","v":8},{"$f":"SQRT((L378^2)+(L379^2)+(L380^2))","v":85.521927012901202},{"$f":"M378+M379+M380","v":6},{"$f":"SQRT((N378^2)+(N379^2)+(N380^2))","v":120.47406359876801},{"$f":"O378+O379+O380","v":4},{"$f":"SQRT((P378^2)+(P379^2)+(P380^2))","v":120.3577999134248},{"$f":"Q378+Q379+Q380","v":748},{"$f":"SQRT((R378^2)+(R379^2)+(R380^2))","v":168.39833728395303},{"$f":"S378+S379+S380","v":0},{"$f":"SQRT((T378^2)+(T379^2)+(T380^2))","v":147.22431864335456},{"$f":"U378+U379+U380","v":10},{"$f":"SQRT((V378^2)+(V379^2)+(V380^2))","v":121.14041439585718},{"$f":"W378+W379+W380","v":0},{"$f":"SQRT((X378^2)+(X379^2)+(X380^2))","v":147.22431864335456},{"$f":"Y378+Y379+Y380","v":104},{"$f":"SQRT((Z378^2)+(Z379^2)+(Z380^2))","v":141.68627315304755},{"$f":"AA378+AA379+AA380","v":53},{"$f":"SQRT((AB378^2)+(AB379^2)+(AB380^2))","v":104.39348638684312},{"$f":"AC378+AC379+AC380","v":0},{"$f":"SQRT((AD378^2)+(AD379^2)+(AD380^2))","v":147.22431864335456},{"$f":"AE378+AE379+AE380","v":87},{"$f":"SQRT((AF378^2)+(AF379^2)+(AF380^2))","v":101.7742600071354},{"$f":"AG378+AG379+AG380","v":49},{"$f":"SQRT((AH378^2)+(AH379^2)+(AH380^2))","v":96.550504918410454},{"$f":"AI378+AI379+AI380","v":42},{"$f":"SQRT((AJ378^2)+(AJ379^2)+(AJ380^2))","v":102.74726273726225},{"$f":"AK378+AK379+AK380","v":11},{"$f":"SQRT((AL378^2)+(AL379^2)+(AL380^2))","v":121.14041439585718},{"$f":"AM378+AM379+AM380","v":0},{"$f":"SQRT((AN378^2)+(AN379^2)+(AN380^2))","v":147.22431864335456},{"$f":"AO378+AO379+AO380","v":58},{"$f":"SQRT((AP378^2)+(AP379^2)+(AP380^2))","v":96.01562372864116},{"$f":"AQ378+AQ379+AQ380","v":14},{"$f":"SQRT((AR378^2)+(AR379^2)+(AR380^2))","v":122.38872497088937},{"$f":"AS378+AS379+AS380","v":41},{"$f":"SQRT((AT378^2)+(AT379^2)+(AT380^2))","v":130.57947771376635},{"$f":"AU378+AU379+AU380","v":3},{"$f":"SQRT((AV378^2)+(AV379^2)+(AV380^2))","v":120.31209415515964},{"$f":"AW378+AW379+AW380","v":0},{"$f":"SQRT((AX378^2)+(AX379^2)+(AX380^2))","v":147.22431864335456},{"$f":"AY378+AY379+AY380","v":23},{"$f":"SQRT((AZ378^2)+(AZ379^2)+(AZ380^2))","v":87.189448902949266},{"$f":"BA378+BA379+BA380","v":10},{"$f":"SQRT((BB378^2)+(BB379^2)+(BB380^2))","v":121.14041439585718},{"$f":"BC378+BC379+BC380","v":14},{"$f":"SQRT((BD378^2)+(BD379^2)+(BD380^2))","v":122.20474622534103}]
[null,"More than 30.0 percent",{"$f":"C381+C382","v":0},{"$f":"SQRT((D381^2)+(D382^2))","v":120.20815280171308},{"$f":"E381+E382","v":0},{"$f":"SQRT((F381^2)+(F382^2))","v":120.20815280171308},{"$f":"G381+G382","v":0},{"$f":"SQRT((H381^2)+(H382^2))","v":120.20815280171308},{"$f":"I381+I382","v":0},{"$f":"SQRT((J381^2)+(J382^2))","v":120.20815280171308},{"$f":"K381+K382","v":0},{"$f":"SQRT((L381^2)+(L382^2))","v":120.20815280171308},{"$f":"M381+M382","v":0},{"$f":"SQRT((N381^2)+(N382^2))","v":120.20815280171308},{"$f":"O381+O382","v":0},{"$f":"SQRT((P381^2)+(P382^2))","v":120.20815280171308},{"$f":"Q381+Q382","v":56},{"$f":"SQRT((R381^2)+(R382^2))","v":45.276925690687087},{"$f":"S381+S382","v":0},{"$f":"SQRT((T381^2)+(T382^2))","v":120.20815280171308},{"$f":"U381+U382","v":0},{"$f":"SQRT((V381^2)+(V382^2))","v":120.20815280171308},{"$f":"W381+W382","v":7},{"$f":"SQRT((X381^2)+(X382^2))","v":85.84287972802403},{"$f":"Y381+Y382","v":0},{"$f":"SQRT((Z381^2)+(Z382^2))","v":120.20815280171308},{"$f":"AA381+AA382","v":0},{"$f":"SQRT((AB381^2)+(AB382^2))","v":120.20815280171308},{"$f":"AC381+AC382","v":0},{"$f":"SQRT((AD381^2)+(AD382^2))","v":120.20815280171308},{"$f":"AE381+AE382","v":0},{"$f":"SQRT((AF381^2)+(AF382^2))","v":120.20815280171308},{"$f":"AG381+AG382","v":0},{"$f":"SQRT((AH381^2)+(AH382^2))","v":120.20815280171308},{"$f":"AI381+AI382","v":4},{"$f":"SQRT((AJ381^2)+(AJ382^2))","v":85.287748240881584},{"$f":"AK381+AK382","v":0},{"$f":"SQRT((AL381^2)+(AL382^2))","v":120.20815280171308},{"$f":"AM381+AM382","v":0},{"$f":"SQRT((AN381^2)+(AN382^2))","v":120.20815280171308},{"$f":"AO381+AO382","v":0},{"$f":"SQRT((AP381^2)+(AP382^2))","v":120.20815280171308},{"$f":"AQ381+AQ382","v":0},{"$f":"SQRT((AR381^2)+(AR382^2))","v":120.20815280171308},{"$f":"AS381+AS382","v":0},{"$f":"SQRT((AT381^2)+(AT382^2))","v":120.20815280171308},{"$f":"AU381+AU382","v":0},{"$f":"SQRT((AV381^2)+(AV382^2))","v":120.20815280171308},{"$f":"AW381+AW382","v":0},{"$f":"SQRT((AX381^2)+(AX382^2))","v":120.20815280171308},{"$f":"AY381+AY382","v":0},{"$f":"SQRT((AZ381^2)+(AZ382^2))","v":120.20815280171308},{"$f":"BA381+BA382","v":0},{"$f":"SQRT((BB381^2)+(BB382^2))","v":120.20815280171308},{"$f":"BC381+BC382","v":0},{"$f":"SQRT((BD381^2)+(BD382^2))","v":120.20815280171308}]
[null,"Less Than 35% of HH Income",{"$f":"C381+C380+C379+C378","v":19},{"$f":"SQRT((D381^2)+(D380^2)+(D379^2)+(D378^2))","v":150.45265035884213},{"$f":"E381+E380+E379+E378","v":0},{"$f":"SQRT((F381^2)+(F380^2)+(F379^2)+(F378^2))","v":170},{"$f":"G381+G380+G379+G378","v":30},{"$f":"SQRT((H381^2)+(H380^2)+(H379^2)+(H378^2))","v":153.94804318340653},{"$f":"I381+I380+I379+I378","v":0},{"$f":"SQRT((J381^2)+(J380^2)+(J379^2)+(J378^2))","v":170},{"$f":"K381+K380+K379+K378","v":8},{"$f":"SQRT((L381^2)+(L380^2)+(L379^2)+(L378^2))","v":120.57777573002414},{"$f":"M381+M380+M379+M378","v":6},{"$f":"SQRT((N381^2)+(N380^2)+(N379^2)+(N378^2))","v":147.44151382836517},{"$f":"O381+O380+O379+O378","v":4},{"$f":"SQRT((P381^2)+(P380^2)+(P379^2)+(P378^2))","v":147.34653032901724},{"$f":"Q381+Q380+Q379+Q378","v":777},{"$f":"SQRT((R381^2)+(R380^2)+(R379^2)+(R378^2))","v":171.60128204649288},{"$f":"S381+S380+S379+S378","v":0},{"$f":"SQRT((T381^2)+(T380^2)+(T379^2)+(T378^2))","v":170},{"$f":"U381+U380+U379+U378","v":10},{"$f":"SQRT((V381^2)+(V380^2)+(V379^2)+(V378^2))","v":147.98648586948741},{"$f":"W381+W380+W379+W378","v":7},{"$f":"SQRT((X381^2)+(X380^2)+(X379^2)+(X378^2))","v":147.71255870778219},{"$f":"Y381+Y380+Y379+Y378","v":104},{"$f":"SQRT((Z381^2)+(Z380^2)+(Z379^2)+(Z378^2))","v":165.22711641858305},{"$f":"AA381+AA380+AA379+AA378","v":53},{"$f":"SQRT((AB381^2)+(AB380^2)+(AB379^2)+(AB378^2))","v":134.62169215991901},{"$f":"AC381+AC380+AC379+AC378","v":0},{"$f":"SQRT((AD381^2)+(AD380^2)+(AD379^2)+(AD378^2))","v":170},{"$f":"AE381+AE380+AE379+AE378","v":87},{"$f":"SQRT((AF381^2)+(AF380^2)+(AF379^2)+(AF378^2))","v":132.6009049742874},{"$f":"AG381+AG380+AG379+AG378","v":49},{"$f":"SQRT((AH381^2)+(AH380^2)+(AH379^2)+(AH378^2))","v":128.635142943132},{"$f":"AI381+AI380+AI379+AI378","v":42},{"$f":"SQRT((AJ381^2)+(AJ380^2)+(AJ379^2)+(AJ378^2))","v":133.34916572667413},{"$f":"AK381+AK380+AK379+AK378","v":11},{"$f":"SQRT((AL381^2)+(AL380^2)+(AL379^2)+(AL378^2))","v":147.98648586948741},{"$f":"AM381+AM380+AM379+AM378","v":0},{"$f":"SQRT((AN381^2)+(AN380^2)+(AN379^2)+(AN378^2))","v":170},{"$f":"AO381+AO380+AO379+AO378","v":58},{"$f":"SQRT((AP381^2)+(AP380^2)+(AP379^2)+(AP378^2))","v":128.23416081528353},{"$f":"AQ381+AQ380+AQ379+AQ378","v":14},{"$f":"SQRT((AR381^2)+(AR380^2)+(AR379^2)+(AR378^2))","v":149.01006677402705},{"$f":"AS381+AS380+AS379+AS378","v":41},{"$f":"SQRT((AT381^2)+(AT380^2)+(AT379^2)+(AT378^2))","v":155.80757362849857},{"$f":"AU381+AU380+AU379+AU378","v":3},{"$f":"SQRT((AV381^2)+(AV380^2)+(AV379^2)+(AV378^2))","v":147.30919862656236},{"$f":"AW381+AW380+AW379+AW378","v":0},{"$f":"SQRT((AX381^2)+(AX380^2)+(AX379^2)+(AX378^2))","v":170},{"$f":"AY381+AY380+AY379+AY378","v":23},{"$f":"SQRT((AZ381^2)+(AZ380^2)+(AZ379^2)+(AZ378^2))","v":121.76616935750258},{"$f":"BA381+BA380+BA379+BA378","v":10},{"$f":"SQRT((BB381^2)+(BB380^2)+(BB379^2)+(BB378^2))","v":147.98648586948741},{"$f":"BC381+BC380+BC379+BC378","v":14},{"$f":"SQRT((BD381^2)+(BD380^2)+(BD379^2)+(BD378^2))","v":148.85899368194049}]
[null,"35.0 percent or more",{"$f":"C382","v":0},{"$f":"D382","v":85},{"$f":"E382","v":0},{"$f":"F382","v":85},{"$f":"G382","v":0},{"$f":"H382","v":85},{"$f":"I382","v":0},{"$f":"J382","v":85},{"$f":"K382","v":0},{"$f":"L382","v":85},{"$f":"M382","v":0},{"$f":"N382","v":85},0,85,27,31,0,85,0,85,0,85,0,85,0,85,0,85,0,85,0,85,4,7,0,85,0,85,0,85,0,85,0,85,0,85,0,85,0,85,0,85,0,85]
[null,"Not Computed",33,53,0,85,0,85,0,85,0,85,0,85,0,85,0,85,0,85,0,85,0,85,0,85,7,14,0,85,0,85,20,30,0,85,0,85,0,85,0,85,16,27,0,85,0,85,0,85,0,85,4,6,0,85]
[null,"$100,000 or more:",70,50,44,41,13,21,0,85,5,8,0,85,34,36,388,134,0,85,50,37,0,85,47,67,8,12,4,6,129,95,0,85,41,63,0,85,9,14,0,85,65,100,10,16,2,4,0,85,7,10,0,85,0,85]
[null,"Less than 30.0 percent",{"$f":"C385+C386+C387","v":70},{"$f":"SQRT((D385^2)+(D386^2)+(D387^2))","v":130.19216566291536},{"$f":"E385+E386+E387","v":18},{"$f":"SQRT((F385^2)+(F386^2)+(F387^2))","v":123.20308437697491},{"$f":"G385+G386+G387","v":13},{"$f":"SQRT((H385^2)+(H386^2)+(H387^2))","v":122.02868515230344},{"$f":"I385+I386+I387","v":0},{"$f":"SQRT((J385^2)+(J386^2)+(J387^2))","v":147.22431864335456},{"$f":"K385+K386+K387","v":5},{"$f":"SQRT((L385^2)+(L386^2)+(L387^2))","v":120.47406359876801},{"$f":"M385+M386+M387","v":0},{"$f":"SQRT((N385^2)+(N386^2)+(N387^2))","v":147.22431864335456},{"$f":"O385+O386+O387","v":34},{"$f":"SQRT((P385^2)+(P386^2)+(P387^2))","v":125.48306658669129},{"$f":"Q385+Q386+Q387","v":376},{"$f":"SQRT((R385^2)+(R386^2)+(R387^2))","v":131.67763667381033},{"$f":"S385+S386+S387","v":0},{"$f":"SQRT((T385^2)+(T386^2)+(T387^2))","v":147.22431864335456},{"$f":"U385+U386+U387","v":33},{"$f":"SQRT((V385^2)+(V386^2)+(V387^2))","v":123.6567830731497},{"$f":"W385+W386+W387","v":0},{"$f":"SQRT((X385^2)+(X386^2)+(X387^2))","v":147.22431864335456},{"$f":"Y385+Y386+Y387","v":47},{"$f":"SQRT((Z385^2)+(Z386^2)+(Z387^2))","v":137.61903938045782},{"$f":"AA385+AA386+AA387","v":8},{"$f":"SQRT((AB385^2)+(AB386^2)+(AB387^2))","v":120.8056290079233},{"$f":"AC385+AC386+AC387","v":4},{"$f":"SQRT((AD385^2)+(AD386^2)+(AD387^2))","v":120.3577999134248},{"$f":"AE385+AE386+AE387","v":118},{"$f":"SQRT((AF385^2)+(AF386^2)+(AF387^2))","v":151.37370973851438},{"$f":"AG385+AG386+AG387","v":0},{"$f":"SQRT((AH385^2)+(AH386^2)+(AH387^2))","v":147.22431864335456},{"$f":"AI385+AI386+AI387","v":0},{"$f":"SQRT((AJ385^2)+(AJ386^2)+(AJ387^2))","v":147.22431864335456},{"$f":"AK385+AK386+AK387","v":0},{"$f":"SQRT((AL385^2)+(AL386^2)+(AL387^2))","v":147.22431864335456},{"$f":"AM385+AM386+AM387","v":9},{"$f":"SQRT((AN385^2)+(AN386^2)+(AN387^2))","v":121.0206593933449},{"$f":"AO385+AO386+AO387","v":0},{"$f":"SQRT((AP385^2)+(AP386^2)+(AP387^2))","v":147.22431864335456},{"$f":"AQ385+AQ386+AQ387","v":65},{"$f":"SQRT((AR385^2)+(AR386^2)+(AR387^2))","v":156.3649577111189},{"$f":"AS385+AS386+AS387","v":10},{"$f":"SQRT((AT385^2)+(AT386^2)+(AT387^2))","v":121.26829758844642},{"$f":"AU385+AU386+AU387","v":0},{"$f":"SQRT((AV385^2)+(AV386^2)+(AV387^2))","v":147.22431864335456},{"$f":"AW385+AW386+AW387","v":0},{"$f":"SQRT((AX385^2)+(AX386^2)+(AX387^2))","v":147.22431864335456},{"$f":"AY385+AY386+AY387","v":7},{"$f":"SQRT((AZ385^2)+(AZ386^2)+(AZ387^2))","v":120.62338081814819},{"$f":"BA385+BA386+BA387","v":0},{"$f":"SQRT((BB385^2)+(BB386^2)+(BB387^2))","v":147.22431864335456},{"$f":"BC385+BC386+BC387","v":0},{"$f":"SQRT((BD385^2)+(BD386^2)+(BD387^2))","v":147.22431864335456}]
[null,"More than 30.0 percent",{"$f":"C388+C389","v":0},{"$f":"SQRT((D388^2)+(D389^2))","v":120.20815280171308},{"$f":"E388+E389","v":0},{"$f":"SQRT((F388^2)+(F389^2))","v":120.20815280171308},{"$f":"G388+G389","v":0},{"$f":"SQRT((H388^2)+(H389^2))","v":120.20815280171308},{"$f":"I388+I389","v":0},{"$f":"SQRT((J388^2)+(J389^2))","v":120.20815280171308},{"$f":"K388+K389","v":0},{"$f":"SQRT((L388^2)+(L389^2))","v":120.20815280171308},{"$f":"M388+M389","v":0},{"$f":"SQRT((N388^2)+(N389^2))","v":120.20815280171308},{"$f":"O388+O389","v":0},{"$f":"SQRT((P388^2)+(P389^2))","v":120.20815280171308},{"$f":"Q388+Q389","v":0},{"$f":"SQRT((R388^2)+(R389^2))","v":120.20815280171308},{"$f":"S388+S389","v":0},{"$f":"SQRT((T388^2)+(T389^2))","v":120.20815280171308},{"$f":"U388+U389","v":0},{"$f":"SQRT((V388^2)+(V389^2))","v":120.20815280171308},{"$f":"W388+W389","v":0},{"$f":"SQRT((X388^2)+(X389^2))","v":120.20815280171308},{"$f":"Y388+Y389","v":0},{"$f":"SQRT((Z388^2)+(Z389^2))","v":120.20815280171308},{"$f":"AA388+AA389","v":0},{"$f":"SQRT((AB388^2)+(AB389^2))","v":120.20815280171308},{"$f":"AC388+AC389","v":0},{"$f":"SQRT((AD388^2)+(AD389^2))","v":120.20815280171308},{"$f":"AE388+AE389","v":0},{"$f":"SQRT((AF388^2)+(AF389^2))","v":120.20815280171308},{"$f":"AG388+AG389","v":0},{"$f":"SQRT((AH388^2)+(AH389^2))","v":120.20815280171308},{"$f":"AI388+AI389","v":0},{"$f":"SQRT((AJ388^2)+(AJ389^2))","v":120.20815280171308},{"$f":"AK388+AK389","v":0},{"$f":"SQRT((AL388^2)+(AL389^2))","v":120.20815280171308},{"$f":"AM388+AM389","v":0},{"$f":"SQRT((AN388^2)+(AN389^2))","v":120.20815280171308},{"$f":"AO388+AO389","v":0},{"$f":"SQRT((AP388^2)+(AP389^2))","v":120.20815280171308},{"$f":"AQ388+AQ389","v":0},{"$f":"SQRT((AR388^2)+(AR389^2))","v":120.20815280171308},{"$f":"AS388+AS389","v":0},{"$f":"SQRT((AT388^2)+(AT389^2))","v":120.20815280171308},{"$f":"AU388+AU389","v":0},{"$f":"SQRT((AV388^2)+(AV389^2))","v":120.20815280171308},{"$f":"AW388+AW389","v":0},{"$f":"SQRT((AX388^2)+(AX389^2))","v":120.20815280171308},{"$f":"AY388+AY389","v":0},{"$f":"SQRT((AZ388^2)+(AZ389^2))","v":120.20815280171308},{"$f":"BA388+BA389","v":0},{"$f":"SQRT((BB388^2)+(BB389^2))","v":120.20815280171308},{"$f":"BC388+BC389","v":0},{"$f":"SQRT((BD388^2)+(BD389^2))","v":120.20815280171308}]
[null,"Less Than 35% of HH Income",{"$f":"C385+C386+C387+C388","v":70},{"$f":"SQRT((D385^2)+(D386^2)+(D387^2)+(D388^2))","v":155.48311805466213},{"$f":"E385+E386+E387+E388","v":18},{"$f":"SQRT((F385^2)+(F386^2)+(F387^2)+(F388^2))","v":149.67965793654128},{"$f":"G385+G386+G387+G388","v":13},{"$f":"SQRT((H385^2)+(H386^2)+(H387^2)+(H388^2))","v":148.71449156017042},{"$f":"I385+I386+I387+I388","v":0},{"$f":"SQRT((J385^2)+(J386^2)+(J387^2)+(J388^2))","v":170},{"$f":"K385+K386+K387+K388","v":5},{"$f":"SQRT((L385^2)+(L386^2)+(L387^2)+(L388^2))","v":147.44151382836517},{"$f":"M385+M386+M387+M388","v":0},{"$f":"SQRT((N385^2)+(N386^2)+(N387^2)+(N388^2))","v":170},{"$f":"O385+O386+O387+O388","v":34},{"$f":"SQRT((P385^2)+(P386^2)+(P387^2)+(P388^2))","v":151.56186855538567},{"$f":"Q385+Q386+Q387+Q388","v":376},{"$f":"SQRT((R385^2)+(R386^2)+(R387^2)+(R388^2))","v":156.72906558772053},{"$f":"S385+S386+S387+S388","v":0},{"$f":"SQRT((T385^2)+(T386^2)+(T387^2)+(T388^2))","v":170},{"$f":"U385+U386+U387+U388","v":33},{"$f":"SQRT((V385^2)+(V386^2)+(V387^2)+(V388^2))","v":150.05332385522155},{"$f":"W385+W386+W387+W388","v":0},{"$f":"SQRT((X385^2)+(X386^2)+(X387^2)+(X388^2))","v":170},{"$f":"Y385+Y386+Y387+Y388","v":47},{"$f":"SQRT((Z385^2)+(Z386^2)+(Z387^2)+(Z388^2))","v":161.75289796476599},{"$f":"AA385+AA386+AA387+AA388","v":8},{"$f":"SQRT((AB385^2)+(AB386^2)+(AB387^2)+(AB388^2))","v":147.71255870778219},{"$f":"AC385+AC386+AC387+AC388","v":4},{"$f":"SQRT((AD385^2)+(AD386^2)+(AD387^2)+(AD388^2))","v":147.34653032901724},{"$f":"AE385+AE386+AE387+AE388","v":118},{"$f":"SQRT((AF385^2)+(AF386^2)+(AF387^2)+(AF388^2))","v":173.60587547660938},{"$f":"AG385+AG386+AG387+AG388","v":0},{"$f":"SQRT((AH385^2)+(AH386^2)+(AH387^2)+(AH388^2))","v":170},{"$f":"AI385+AI386+AI387+AI388","v":0},{"$f":"SQRT((AJ385^2)+(AJ386^2)+(AJ387^2)+(AJ388^2))","v":170},{"$f":"AK385+AK386+AK387+AK388","v":0},{"$f":"SQRT((AL385^2)+(AL386^2)+(AL387^2)+(AL388^2))","v":170},{"$f":"AM385+AM386+AM387+AM388","v":9},{"$f":"SQRT((AN385^2)+(AN386^2)+(AN387^2)+(AN388^2))","v":147.88847149118826},{"$f":"AO385+AO386+AO387+AO388","v":0},{"$f":"SQRT((AP385^2)+(AP386^2)+(AP387^2)+(AP388^2))","v":170},{"$f":"AQ385+AQ386+AQ387+AQ388","v":65},{"$f":"SQRT((AR385^2)+(AR386^2)+(AR387^2)+(AR388^2))","v":177.97471730557686},{"$f":"AS385+AS386+AS387+AS388","v":10},{"$f":"SQRT((AT385^2)+(AT386^2)+(AT387^2)+(AT388^2))","v":148.09118812407442},{"$f":"AU385+AU386+AU387+AU388","v":0},{"$f":"SQRT((AV385^2)+(AV386^2)+(AV387^2)+(AV388^2))","v":170},{"$f":"AW385+AW386+AW387+AW388","v":0},{"$f":"SQRT((AX385^2)+(AX386^2)+(AX387^2)+(AX388^2))","v":170},{"$f":"AY385+AY386+AY387+AY388","v":7},{"$f":"SQRT((AZ385^2)+(AZ386^2)+(AZ387^2)+(AZ388^2))","v":147.56354563373705},{"$f":"BA385+BA386+BA387+BA388","v":0},{"$f":"SQRT((BB385^2)+(BB386^2)+(BB387^2)+(BB388^2))","v":170},{"$f":"BC385+BC386+BC387+BC388","v":0},{"$f":"SQRT((BD385^2)+(BD386^2)+(BD387^2)+(BD388^2))","v":170}]
[null,"35.0 percent or more",{"$f":"C389","v":0},85,0,85,0,85,0,85,0,85,0,85,0,85,0,85,0,85,0,85,0,85,0,85,0,85,0,85,0,85,0,85,0,85,0,85,0,85,0,85,0,85,0,85,0,85,0,85,0,85,0,85,0,85]
[null,"Not Computed",0,85,26,29,0,85,0,85,0,85,0,85,0,85,12,19,0,85,17,25,0,85,0,85,0,85,0,85,11,17,0,85,41,63,0,85,0,85,0,85,0,85,0,85,2,4,0,85,0,85,0,85,0,85]
[]
[]
[null,"Calculated GROSS RENT AS A PERCENTAGE OF HOUSEHOLD INCOME IN THE PAST 12 MONTHS"]
[null,"Universe:  RENTER OCCUPIED HOUSING UNITS"]
[null,{"$f":"B337","v":"Data Set: 2008-2012 American Community Survey 5-Year Estimates"}]
[]
[null,null,"Allenstown",null,"Andover",null,"Boscawen",null,"Bow",null,"Bradford",null,"Canterbury",null,"Chichester",null,"Concord",null,"Danbury",null,"Dunbarton",null,"Epsom",null,"Franklin",null,"Henniker",null,"Hill",null,"Hooksett",null,"Hopkinton",null,"Loudon",null,"Newbury",null,"New London",null,"Northfield",null,"Pembroke",null,"Pittsfield",null,"Salisbury",null,"Sutton",null,"Warner",null,"Webster",null,"Wilmot"]
[null,null,"Estimate","Margin Of Error","Estimate","Margin Of Error","Estimate","Margin Of Error","Estimate","Margin Of Error","Estimate","Margin Of Error","Estimate","Margin Of Error","Estimate","Margin Of Error","Estimate","Margin Of Error","Estimate","Margin Of Error","Estimate","Margin Of Error","Estimate","Margin Of Error","Estimate","Margin Of Error","Estimate","Margin Of Error","Estimate","Margin Of Error","Estimate","Margin Of Error","Estimate","Margin Of Error","Estimate","Margin Of Error","Estimate","Margin Of Error","Estimate","Margin Of Error","Estimate","Margin Of Error","Estimate","Margin Of Error","Estimate","Margin Of Error","Estimate","Margin Of Error","Estimate","Margin Of Error","Estimate","Margin Of Error","Estimate","Margin Of Error","Estimate","Margin Of Error"]
[null,"Total:",{"$f":"C408","v":621},150,{"$f":"E408","v":136},58,293,100,255,68,101,37,68,25,52,36,8029,384,108,42,124,47,141,61,1281,186,576,146,38,27,644,141,204,103,250,99,29,21,279,101,392,109,830,133,449,103,36,23,74,40,190,52,65,31,55,36]
[null,"Less than 30.0 percent",{"$f":"C446+C440+C434+C422+C416+C410+C428","v":188},{"$f":"SQRT((D446^2)+(D440^2)+(D428^2)+(D422^2)+(D416^2)+(D410^2)+(D434^2))","v":303.54406599372027},{"$f":"E446+E440+E434+E422+E416+E410+E428","v":36},{"$f":"SQRT((F446^2)+(F440^2)+(F428^2)+(F422^2)+(F416^2)+(F410^2)+(F434^2))","v":362.57275132033845},{"$f":"G446+G440+G434+G422+G416+G410+G428","v":175},{"$f":"SQRT((H446^2)+(H440^2)+(H428^2)+(H422^2)+(H416^2)+(H410^2)+(H434^2))","v":306.69039763253102},{"$f":"I446+I440+I434+I422+I416+I410+I428","v":44},{"$f":"SQRT((J446^2)+(J440^2)+(J428^2)+(J422^2)+(J416^2)+(J410^2)+(J434^2))","v":361.93093263770646},{"$f":"K446+K440+K434+K422+K416+K410+K428","v":38},{"$f":"SQRT((L446^2)+(L440^2)+(L428^2)+(L422^2)+(L416^2)+(L410^2)+(L434^2))","v":329.61189298931555},{"$f":"M446+M440+M434+M422+M416+M410+M428","v":52},{"$f":"SQRT((N446^2)+(N440^2)+(N428^2)+(N422^2)+(N416^2)+(N410^2)+(N434^2))","v":330.49810892045963},{"$f":"O446+O440+O434+O422+O416+O410+O428","v":38},{"$f":"SQRT((P446^2)+(P440^2)+(P428^2)+(P422^2)+(P416^2)+(P410^2)+(P434^2))","v":362.57826741270634},{"$f":"Q446+Q440+Q434+Q422+Q416+Q410+Q428","v":3988},{"$f":"SQRT((R446^2)+(R440^2)+(R428^2)+(R422^2)+(R416^2)+(R410^2)+(R434^2))","v":431.76729843748012},{"$f":"S446+S440+S434+S422+S416+S410+S428","v":63},{"$f":"SQRT((T446^2)+(T440^2)+(T428^2)+(T422^2)+(T416^2)+(T410^2)+(T434^2))","v":351.66461294818959},{"$f":"U446+U440+U434+U422+U416+U410+U428","v":55},{"$f":"SQRT((V446^2)+(V440^2)+(V428^2)+(V422^2)+(V416^2)+(V410^2)+(V434^2))","v":362.16708851026209},{"$f":"W446+W440+W434+W422+W416+W410+W428","v":49},{"$f":"SQRT((X446^2)+(X440^2)+(X428^2)+(X422^2)+(X416^2)+(X410^2)+(X434^2))","v":352.26978297889815},{"$f":"Y446+Y440+Y434+Y422+Y416+Y410+Y428","v":637},{"$f":"SQRT((Z446^2)+(Z440^2)+(Z428^2)+(Z422^2)+(Z416^2)+(Z410^2)+(Z434^2))","v":257.02334524318991},{"$f":"AA446+AA440+AA434+AA422+AA416+AA410+AA428","v":320},{"$f":"SQRT((AB446^2)+(AB440^2)+(AB428^2)+(AB422^2)+(AB416^2)+(AB410^2)+(AB434^2))","v":274.0145981512664},{"$f":"AC446+AC440+AC434+AC422+AC416+AC410+AC428","v":11},{"$f":"SQRT((AD446^2)+(AD440^2)+(AD428^2)+(AD422^2)+(AD416^2)+(AD410^2)+(AD434^2))","v":360.74644835396509},{"$f":"AE446+AE440+AE434+AE422+AE416+AE410+AE428","v":451},{"$f":"SQRT((AF446^2)+(AF440^2)+(AF428^2)+(AF422^2)+(AF416^2)+(AF410^2)+(AF434^2))","v":308.90127872833415},{"$f":"AG446+AG440+AG434+AG422+AG416+AG410+AG428","v":99},{"$f":"SQRT((AH446^2)+(AH440^2)+(AH428^2)+(AH422^2)+(AH416^2)+(AH410^2)+(AH434^2))","v":366.1734561652442},{"$f":"AI446+AI440+AI434+AI422+AI416+AI410+AI428","v":52},{"$f":"SQRT((AJ446^2)+(AJ440^2)+(AJ428^2)+(AJ422^2)+(AJ416^2)+(AJ410^2)+(AJ434^2))","v":364.43517942152619},{"$f":"AK446+AK440+AK434+AK422+AK416+AK410+AK428","v":29},{"$f":"SQRT((AL446^2)+(AL440^2)+(AL428^2)+(AL422^2)+(AL416^2)+(AL410^2)+(AL434^2))","v":351.05412688074188},{"$f":"AM446+AM440+AM434+AM422+AM416+AM410+AM428","v":98},{"$f":"SQRT((AN446^2)+(AN440^2)+(AN428^2)+(AN422^2)+(AN416^2)+(AN410^2)+(AN434^2))","v":346.88182425719572},{"$f":"AO446+AO440+AO434+AO422+AO416+AO410+AO428","v":156},{"$f":"SQRT((AP446^2)+(AP440^2)+(AP428^2)+(AP422^2)+(AP416^2)+(AP410^2)+(AP434^2))","v":328.06554223203631},{"$f":"AQ446+AQ440+AQ434+AQ422+AQ416+AQ410+AQ428","v":324},{"$f":"SQRT((AR446^2)+(AR440^2)+(AR428^2)+(AR422^2)+(AR416^2)+(AR410^2)+(AR434^2))","v":347.02881724721362},{"$f":"AS446+AS440+AS434+AS422+AS416+AS410+AS428","v":281},{"$f":"SQRT((AT446^2)+(AT440^2)+(AT428^2)+(AT422^2)+(AT416^2)+(AT410^2)+(AT434^2))","v":318.2734673201648},{"$f":"AU446+AU440+AU434+AU422+AU416+AU410+AU428","v":12},{"$f":"SQRT((AV446^2)+(AV440^2)+(AV428^2)+(AV422^2)+(AV416^2)+(AV410^2)+(AV434^2))","v":370.84363281577316},{"$f":"AW446+AW440+AW434+AW422+AW416+AW410+AW428","v":40},{"$f":"SQRT((AX446^2)+(AX440^2)+(AX428^2)+(AX422^2)+(AX416^2)+(AX410^2)+(AX434^2))","v":351.73285317126692},{"$f":"AY446+AY440+AY434+AY422+AY416+AY410+AY428","v":104},{"$f":"SQRT((AZ446^2)+(AZ440^2)+(AZ428^2)+(AZ422^2)+(AZ416^2)+(AZ410^2)+(AZ434^2))","v":320.80056109676616},{"$f":"BA446+BA440+BA434+BA422+BA416+BA410+BA428","v":26},{"$f":"SQRT((BB446^2)+(BB440^2)+(BB428^2)+(BB422^2)+(BB416^2)+(BB410^2)+(BB434^2))","v":329.76051916504497},{"$f":"BC446+BC440+BC434+BC422+BC416+BC410+BC428","v":33},{"$f":"SQRT((BD446^2)+(BD440^2)+(BD428^2)+(BD422^2)+(BD416^2)+(BD410^2)+(BD434^2))","v":352.03692988094303}]
[null,"More than 30.0 percent",{"$f":"C447+C441+C435+C423+C417+C411+C429","v":348},{"$f":"SQRT((D447^2)+(D441^2)+(D429^2)+(D423^2)+(D417^2)+(D411^2)+(D435^2))","v":278.36666467089771},{"$f":"E447+E441+E435+E423+E417+E411+E429","v":46},{"$f":"SQRT((F447^2)+(F441^2)+(F429^2)+(F423^2)+(F417^2)+(F411^2)+(F435^2))","v":284.83503997928347},{"$f":"G447+G441+G435+G423+G417+G411+G429","v":107},{"$f":"SQRT((H447^2)+(H441^2)+(H429^2)+(H423^2)+(H417^2)+(H411^2)+(H435^2))","v":288.66589684269945},{"$f":"I447+I441+I435+I423+I417+I411+I429","v":199},{"$f":"SQRT((J447^2)+(J441^2)+(J429^2)+(J423^2)+(J417^2)+(J411^2)+(J435^2))","v":285.36818323001603},{"$f":"K447+K441+K435+K423+K417+K411+K429","v":46},{"$f":"SQRT((L447^2)+(L441^2)+(L429^2)+(L423^2)+(L417^2)+(L411^2)+(L435^2))","v":283.41312601924426},{"$f":"M447+M441+M435+M423+M417+M411+M429","v":16},{"$f":"SQRT((N447^2)+(N441^2)+(N429^2)+(N423^2)+(N417^2)+(N411^2)+(N435^2))","v":294.93728146845052},{"$f":"O447+O441+O435+O423+O417+O411+O429","v":6},{"$f":"SQRT((P447^2)+(P441^2)+(P429^2)+(P423^2)+(P417^2)+(P411^2)+(P435^2))","v":306.60397910007629},{"$f":"Q447+Q441+Q435+Q423+Q417+Q411+Q429","v":3851},{"$f":"SQRT((R447^2)+(R441^2)+(R429^2)+(R423^2)+(R417^2)+(R411^2)+(R435^2))","v":457.86897689186151},{"$f":"S447+S441+S435+S423+S417+S411+S429","v":32},{"$f":"SQRT((T447^2)+(T441^2)+(T429^2)+(T423^2)+(T417^2)+(T411^2)+(T435^2))","v":282.68003113060536},{"$f":"U447+U441+U435+U423+U417+U411+U429","v":47},{"$f":"SQRT((V447^2)+(V441^2)+(V429^2)+(V423^2)+(V417^2)+(V411^2)+(V435^2))","v":295.9408724728641},{"$f":"W447+W441+W435+W423+W417+W411+W429","v":87},{"$f":"SQRT((X447^2)+(X441^2)+(X429^2)+(X423^2)+(X417^2)+(X411^2)+(X435^2))","v":230.92639519985585},{"$f":"Y447+Y441+Y435+Y423+Y417+Y411+Y429","v":558},{"$f":"SQRT((Z447^2)+(Z441^2)+(Z429^2)+(Z423^2)+(Z417^2)+(Z411^2)+(Z435^2))","v":273.19773059086708},{"$f":"AA447+AA441+AA435+AA423+AA417+AA411+AA429","v":210},{"$f":"SQRT((AB447^2)+(AB441^2)+(AB429^2)+(AB423^2)+(AB417^2)+(AB411^2)+(AB435^2))","v":258.28666245085128},{"$f":"AC447+AC441+AC435+AC423+AC417+AC411+AC429","v":23},{"$f":"SQRT((AD447^2)+(AD441^2)+(AD429^2)+(AD423^2)+(AD417^2)+(AD411^2)+(AD435^2))","v":295.52834043455124},{"$f":"AE447+AE441+AE435+AE423+AE417+AE411+AE429","v":171},{"$f":"SQRT((AF447^2)+(AF441^2)+(AF429^2)+(AF423^2)+(AF417^2)+(AF411^2)+(AF435^2))","v":220.50170067371363},{"$f":"AG447+AG441+AG435+AG423+AG417+AG411+AG429","v":85},{"$f":"SQRT((AH447^2)+(AH441^2)+(AH429^2)+(AH423^2)+(AH417^2)+(AH411^2)+(AH435^2))","v":279.40472436950671},{"$f":"AI447+AI441+AI435+AI423+AI417+AI411+AI429","v":146},{"$f":"SQRT((AJ447^2)+(AJ441^2)+(AJ429^2)+(AJ423^2)+(AJ417^2)+(AJ411^2)+(AJ435^2))","v":258.62907802488104},{"$f":"AK447+AK441+AK435+AK423+AK417+AK411+AK429","v":0},{"$f":"SQRT((AL447^2)+(AL441^2)+(AL429^2)+(AL423^2)+(AL417^2)+(AL411^2)+(AL435^2))","v":318.04087787578504},{"$f":"AM447+AM441+AM435+AM423+AM417+AM411+AM429","v":163},{"$f":"SQRT((AN447^2)+(AN441^2)+(AN429^2)+(AN423^2)+(AN417^2)+(AN411^2)+(AN435^2))","v":269.18952431326147},{"$f":"AO447+AO441+AO435+AO423+AO417+AO411+AO429","v":213},{"$f":"SQRT((AP447^2)+(AP441^2)+(AP429^2)+(AP423^2)+(AP417^2)+(AP411^2)+(AP435^2))","v":303.24577490873639},{"$f":"AQ447+AQ441+AQ435+AQ423+AQ417+AQ411+AQ429","v":476},{"$f":"SQRT((AR447^2)+(AR441^2)+(AR429^2)+(AR423^2)+(AR417^2)+(AR411^2)+(AR435^2))","v":299.7949299104306},{"$f":"AS447+AS441+AS435+AS423+AS417+AS411+AS429","v":141},{"$f":"SQRT((AT447^2)+(AT441^2)+(AT429^2)+(AT423^2)+(AT417^2)+(AT411^2)+(AT435^2))","v":276.75801704738387},{"$f":"AU447+AU441+AU435+AU423+AU417+AU411+AU429","v":22},{"$f":"SQRT((AV447^2)+(AV441^2)+(AV429^2)+(AV423^2)+(AV417^2)+(AV411^2)+(AV435^2))","v":294.96779485225164},{"$f":"AW447+AW441+AW435+AW423+AW417+AW411+AW429","v":28},{"$f":"SQRT((AX447^2)+(AX441^2)+(AX429^2)+(AX423^2)+(AX417^2)+(AX411^2)+(AX435^2))","v":282.98056470365594},{"$f":"AY447+AY441+AY435+AY423+AY417+AY411+AY429","v":79},{"$f":"SQRT((AZ447^2)+(AZ441^2)+(AZ429^2)+(AZ423^2)+(AZ417^2)+(AZ411^2)+(AZ435^2))","v":271.67443751667179},{"$f":"BA447+BA441+BA435+BA423+BA417+BA411+BA429","v":29},{"$f":"SQRT((BB447^2)+(BB441^2)+(BB429^2)+(BB423^2)+(BB417^2)+(BB411^2)+(BB435^2))","v":256.0624923724676},{"$f":"BC447+BC441+BC435+BC423+BC417+BC411+BC429","v":19},295.11692598019516]
[null,"Less Than 35% of HH Income",{"$f":"C448+C442+C436+C424+C418+C412+C430","v":256},{"$f":"SQRT((D448^2)+(D442^2)+(D430^2)+(D424^2)+(D418^2)+(D412^2)+(D436^2))","v":353.76969909815625},{"$f":"E448+E442+E436+E424+E418+E412+E430","v":45},{"$f":"SQRT((F448^2)+(F442^2)+(F430^2)+(F424^2)+(F418^2)+(F412^2)+(F436^2))","v":418.33598936739833},{"$f":"G448+G442+G436+G424+G418+G412+G430","v":184},{"$f":"SQRT((H448^2)+(H442^2)+(H430^2)+(H424^2)+(H418^2)+(H412^2)+(H436^2))","v":371.52927206345396},{"$f":"I448+I442+I436+I424+I418+I412+I430","v":57},{"$f":"SQRT((J448^2)+(J442^2)+(J430^2)+(J424^2)+(J418^2)+(J412^2)+(J436^2))","v":409.9841460349412},{"$f":"K448+K442+K436+K424+K418+K412+K430","v":38},{"$f":"SQRT((L448^2)+(L442^2)+(L430^2)+(L424^2)+(L418^2)+(L412^2)+(L436^2))","v":389.89614001679985},{"$f":"M448+M442+M436+M424+M418+M412+M430","v":68},{"$f":"SQRT((N448^2)+(N442^2)+(N430^2)+(N424^2)+(N418^2)+(N412^2)+(N436^2))","v":381.63071155241164},{"$f":"O448+O442+O436+O424+O418+O412+O430","v":44},{"$f":"SQRT((P448^2)+(P442^2)+(P430^2)+(P424^2)+(P418^2)+(P412^2)+(P436^2))","v":426.65911451649549},{"$f":"Q448+Q442+Q436+Q424+Q418+Q412+Q430","v":4751},{"$f":"SQRT((R448^2)+(R442^2)+(R430^2)+(R424^2)+(R418^2)+(R412^2)+(R436^2))","v":476.06932268315717},{"$f":"S448+S442+S436+S424+S418+S412+S430","v":63},{"$f":"SQRT((T448^2)+(T442^2)+(T430^2)+(T424^2)+(T418^2)+(T412^2)+(T436^2))","v":408.9914424532621},{"$f":"U448+U442+U436+U424+U418+U412+U430","v":55},{"$f":"SQRT((V448^2)+(V442^2)+(V430^2)+(V424^2)+(V418^2)+(V412^2)+(V436^2))","v":417.89472358478037},{"$f":"W448+W442+W436+W424+W418+W412+W430","v":72},{"$f":"SQRT((X448^2)+(X442^2)+(X430^2)+(X424^2)+(X418^2)+(X412^2)+(X436^2))","v":391.77034088863849},{"$f":"Y448+Y442+Y436+Y424+Y418+Y412+Y430","v":727},{"$f":"SQRT((Z448^2)+(Z442^2)+(Z430^2)+(Z424^2)+(Z418^2)+(Z412^2)+(Z436^2))","v":310.30468897520706},{"$f":"AA448+AA442+AA436+AA424+AA418+AA412+AA430","v":366},{"$f":"SQRT((AB448^2)+(AB442^2)+(AB430^2)+(AB424^2)+(AB418^2)+(AB412^2)+(AB436^2))","v":334.37254671997221},{"$f":"AC448+AC442+AC436+AC424+AC418+AC412+AC430","v":11},{"$f":"SQRT((AD448^2)+(AD442^2)+(AD430^2)+(AD424^2)+(AD418^2)+(AD412^2)+(AD436^2))","v":425.10351680502481},{"$f":"AE448+AE442+AE436+AE424+AE418+AE412+AE430","v":514},{"$f":"SQRT((AF448^2)+(AF442^2)+(AF430^2)+(AF424^2)+(AF418^2)+(AF412^2)+(AF436^2))","v":354.72383624447906},{"$f":"AG448+AG442+AG436+AG424+AG418+AG412+AG430","v":151},{"$f":"SQRT((AH448^2)+(AH442^2)+(AH430^2)+(AH424^2)+(AH418^2)+(AH412^2)+(AH436^2))","v":409.38978980917443},{"$f":"AI448+AI442+AI436+AI424+AI418+AI412+AI430","v":125},{"$f":"SQRT((AJ448^2)+(AJ442^2)+(AJ430^2)+(AJ424^2)+(AJ418^2)+(AJ412^2)+(AJ436^2))","v":428.23825144421653},{"$f":"AK448+AK442+AK436+AK424+AK418+AK412+AK430","v":29},{"$f":"SQRT((AL448^2)+(AL442^2)+(AL430^2)+(AL424^2)+(AL418^2)+(AL412^2)+(AL436^2))","v":416.91006224364509},{"$f":"AM448+AM442+AM436+AM424+AM418+AM412+AM430","v":116},{"$f":"SQRT((AN448^2)+(AN442^2)+(AN430^2)+(AN424^2)+(AN418^2)+(AN412^2)+(AN436^2))","v":404.88640382210912},{"$f":"AO448+AO442+AO436+AO424+AO418+AO412+AO430","v":203},{"$f":"SQRT((AP448^2)+(AP442^2)+(AP430^2)+(AP424^2)+(AP418^2)+(AP412^2)+(AP436^2))","v":384.24211117471236},{"$f":"AQ448+AQ442+AQ436+AQ424+AQ418+AQ412+AQ430","v":501},{"$f":"SQRT((AR448^2)+(AR442^2)+(AR430^2)+(AR424^2)+(AR418^2)+(AR412^2)+(AR436^2))","v":390.17816443260892},{"$f":"AS448+AS442+AS436+AS424+AS418+AS412+AS430","v":298},{"$f":"SQRT((AT448^2)+(AT442^2)+(AT430^2)+(AT424^2)+(AT418^2)+(AT412^2)+(AT436^2))","v":377.41224145488445},{"$f":"AU448+AU442+AU436+AU424+AU418+AU412+AU430","v":12},{"$f":"SQRT((AV448^2)+(AV442^2)+(AV430^2)+(AV424^2)+(AV418^2)+(AV412^2)+(AV436^2))","v":433.70496884402883},{"$f":"AW448+AW442+AW436+AW424+AW418+AW412+AW430","v":43},{"$f":"SQRT((AX448^2)+(AX442^2)+(AX430^2)+(AX424^2)+(AX418^2)+(AX412^2)+(AX436^2))","v":417.48173612746223},{"$f":"AY448+AY442+AY436+AY424+AY418+AY412+AY430","v":124},{"$f":"SQRT((AZ448^2)+(AZ442^2)+(AZ430^2)+(AZ424^2)+(AZ418^2)+(AZ412^2)+(AZ436^2))","v":364.16617086159994},{"$f":"BA448+BA442+BA436+BA424+BA418+BA412+BA430","v":37},{"$f":"SQRT((BB448^2)+(BB442^2)+(BB430^2)+(BB424^2)+(BB418^2)+(BB412^2)+(BB436^2))","v":390.20635566325672},{"$f":"BC448+BC442+BC436+BC424+BC418+BC412+BC430","v":42},417.73795613997061]
[null,"35.0 percent or more",{"$f":"C449+C443+C437+C425+C419+C413+C431","v":280},{"$f":"SQRT((D449^2)+(D443^2)+(D431^2)+(D425^2)+(D419^2)+(D413^2)+(D437^2))","v":193.58202395883765},{"$f":"E449+E443+E437+E425+E419+E413+E431","v":37},{"$f":"SQRT((F449^2)+(F443^2)+(F431^2)+(F425^2)+(F419^2)+(F413^2)+(F437^2))","v":193.86851214160592},{"$f":"G449+G443+G437+G425+G419+G413+G431","v":98},{"$f":"SQRT((H449^2)+(H443^2)+(H431^2)+(H425^2)+(H419^2)+(H413^2)+(H437^2))","v":199.58456854175876},{"$f":"I449+I443+I437+I425+I419+I413+I431","v":186},{"$f":"SQRT((J449^2)+(J443^2)+(J431^2)+(J425^2)+(J419^2)+(J413^2)+(J437^2))","v":193.90977283262441},{"$f":"K449+K443+K437+K425+K419+K413+K431","v":46},{"$f":"SQRT((L449^2)+(L443^2)+(L431^2)+(L425^2)+(L419^2)+(L413^2)+(L437^2))","v":172.4760852988031},{"$f":"M449+M443+M437+M425+M419+M413+M431","v":0},{"$f":"SQRT((N449^2)+(N443^2)+(N431^2)+(N425^2)+(N419^2)+(N413^2)+(N437^2))","v":224.88886144049019},{"$f":"O449+O443+O437+O425+O419+O413+O431","v":0},{"$f":"SQRT((P449^2)+(P443^2)+(P431^2)+(P425^2)+(P419^2)+(P413^2)+(P437^2))","v":224.88886144049019},{"$f":"Q449+Q443+Q437+Q425+Q419+Q413+Q431","v":3088},{"$f":"SQRT((R449^2)+(R443^2)+(R431^2)+(R425^2)+(R419^2)+(R413^2)+(R437^2))","v":408.39319289136051},{"$f":"S449+S443+S437+S425+S419+S413+S431","v":32},{"$f":"SQRT((T449^2)+(T443^2)+(T431^2)+(T425^2)+(T419^2)+(T413^2)+(T437^2))","v":171.26879458909028},{"$f":"U449+U443+U437+U425+U419+U413+U431","v":47},{"$f":"SQRT((V449^2)+(V443^2)+(V431^2)+(V425^2)+(V419^2)+(V413^2)+(V437^2))","v":192.36943624183129},{"$f":"W449+W443+W437+W425+W419+W413+W431","v":64},{"$f":"SQRT((X449^2)+(X443^2)+(X431^2)+(X425^2)+(X419^2)+(X413^2)+(X437^2))","v":154.71586861081832},{"$f":"Y449+Y443+Y437+Y425+Y419+Y413+Y431","v":468},{"$f":"SQRT((Z449^2)+(Z443^2)+(Z431^2)+(Z425^2)+(Z419^2)+(Z413^2)+(Z437^2))","v":207.86774641584009},{"$f":"AA449+AA443+AA437+AA425+AA419+AA413+AA431","v":164},{"$f":"SQRT((AB449^2)+(AB443^2)+(AB431^2)+(AB425^2)+(AB419^2)+(AB413^2)+(AB437^2))","v":190.4074578371341},{"$f":"AC449+AC443+AC437+AC425+AC419+AC413+AC431","v":23},{"$f":"SQRT((AD449^2)+(AD443^2)+(AD431^2)+(AD425^2)+(AD419^2)+(AD413^2)+(AD437^2))","v":191.7341910041086},{"$f":"AE449+AE443+AE437+AE425+AE419+AE413+AE431","v":108},{"$f":"SQRT((AF449^2)+(AF443^2)+(AF431^2)+(AF425^2)+(AF419^2)+(AF413^2)+(AF437^2))","v":158.78287061267031},{"$f":"AG449+AG443+AG437+AG425+AG419+AG413+AG431","v":33},{"$f":"SQRT((AH449^2)+(AH443^2)+(AH431^2)+(AH425^2)+(AH419^2)+(AH413^2)+(AH437^2))","v":193.94329068054918},{"$f":"AI449+AI443+AI437+AI425+AI419+AI413+AI431","v":73},{"$f":"SQRT((AJ449^2)+(AJ443^2)+(AJ431^2)+(AJ425^2)+(AJ419^2)+(AJ413^2)+(AJ437^2))","v":130.91600360536523},{"$f":"AK449+AK443+AK437+AK425+AK419+AK413+AK431","v":0},{"$f":"SQRT((AL449^2)+(AL443^2)+(AL431^2)+(AL425^2)+(AL419^2)+(AL413^2)+(AL437^2))","v":224.88886144049019},{"$f":"AM449+AM443+AM437+AM425+AM419+AM413+AM431","v":145},{"$f":"SQRT((AN449^2)+(AN443^2)+(AN431^2)+(AN425^2)+(AN419^2)+(AN413^2)+(AN437^2))","v":189.35944655601421},{"$f":"AO449+AO443+AO437+AO425+AO419+AO413+AO431","v":166},{"$f":"SQRT((AP449^2)+(AP443^2)+(AP431^2)+(AP425^2)+(AP419^2)+(AP413^2)+(AP437^2))","v":211.86552338688804},{"$f":"AQ449+AQ443+AQ437+AQ425+AQ419+AQ413+AQ431","v":299},{"$f":"SQRT((AR449^2)+(AR443^2)+(AR431^2)+(AR425^2)+(AR419^2)+(AR413^2)+(AR437^2))","v":229.27494411731954},{"$f":"AS449+AS443+AS437+AS425+AS419+AS413+AS431","v":124},{"$f":"SQRT((AT449^2)+(AT443^2)+(AT431^2)+(AT425^2)+(AT419^2)+(AT413^2)+(AT437^2))","v":181.62874221884596},{"$f":"AU449+AU443+AU437+AU425+AU419+AU413+AU431","v":22},{"$f":"SQRT((AV449^2)+(AV443^2)+(AV431^2)+(AV425^2)+(AV419^2)+(AV413^2)+(AV437^2))","v":190.86906506817704},{"$f":"AW449+AW443+AW437+AW425+AW419+AW413+AW431","v":25},{"$f":"SQRT((AX449^2)+(AX443^2)+(AX431^2)+(AX425^2)+(AX419^2)+(AX413^2)+(AX437^2))","v":191.58027038293898},{"$f":"AY449+AY443+AY437+AY425+AY419+AY413+AY431","v":59},{"$f":"SQRT((AZ449^2)+(AZ443^2)+(AZ431^2)+(AZ425^2)+(AZ419^2)+(AZ413^2)+(AZ437^2))","v":192.7018422330207},{"$f":"BA449+BA443+BA437+BA425+BA419+BA413+BA431","v":18},{"$f":"SQRT((BB449^2)+(BB443^2)+(BB431^2)+(BB425^2)+(BB419^2)+(BB413^2)+(BB437^2))","v":171.04970037974343},{"$f":"BC449+BC443+BC437+BC425+BC419+BC413+BC431","v":10},208.74625745148103]
[null,"50.0 percent or more"]
[null,"Not Computed",{"$f":"C450+C444+C438+C426+C419+C414+C432","v":154},{"$f":"SQRT((D450^2)+(D444^2)+(D432^2)+(D426^2)+(D420^2)+(D414^2)+(D438^2))","v":193.03626602273471},{"$f":"E450+E444+E438+E426+E419+E414+E432","v":63},{"$f":"SQRT((F450^2)+(F444^2)+(F432^2)+(F426^2)+(F420^2)+(F414^2)+(F438^2))","v":174.8170472236618},{"$f":"G450+G444+G438+G426+G419+G414+G432","v":38},{"$f":"SQRT((H450^2)+(H444^2)+(H432^2)+(H426^2)+(H420^2)+(H414^2)+(H438^2))","v":208.89949736655663},{"$f":"I450+I444+I438+I426+I419+I414+I432","v":80},{"$f":"SQRT((J450^2)+(J444^2)+(J432^2)+(J426^2)+(J420^2)+(J414^2)+(J438^2))","v":209.07175801623708},{"$f":"K450+K444+K438+K426+K419+K414+K432","v":14},{"$f":"SQRT((L450^2)+(L444^2)+(L432^2)+(L426^2)+(L420^2)+(L414^2)+(L438^2))","v":190.78521955329768},{"$f":"M450+M444+M438+M426+M419+M414+M432","v":0},{"$f":"SQRT((N450^2)+(N444^2)+(N432^2)+(N426^2)+(N420^2)+(N414^2)+(N438^2))","v":224.88886144049019},{"$f":"O450+O444+O438+O426+O419+O414+O432","v":8},{"$f":"SQRT((P450^2)+(P444^2)+(P432^2)+(P426^2)+(P420^2)+(P414^2)+(P438^2))","v":208.55215175106682},{"$f":"Q450+Q444+Q438+Q426+Q419+Q414+Q432","v":859},{"$f":"SQRT((R450^2)+(R444^2)+(R432^2)+(R426^2)+(R420^2)+(R414^2)+(R438^2))","v":151.37370973851438},{"$f":"S450+S444+S438+S426+S419+S414+S432","v":21},{"$f":"SQRT((T450^2)+(T444^2)+(T432^2)+(T426^2)+(T420^2)+(T414^2)+(T438^2))","v":190.77997798511248},{"$f":"U450+U444+U438+U426+U419+U414+U432","v":33},{"$f":"SQRT((V450^2)+(V444^2)+(V432^2)+(V426^2)+(V420^2)+(V414^2)+(V438^2))","v":191.83065448462611},{"$f":"W450+W444+W438+W426+W419+W414+W432","v":17},{"$f":"SQRT((X450^2)+(X444^2)+(X432^2)+(X426^2)+(X420^2)+(X414^2)+(X438^2))","v":208.36026492592103},{"$f":"Y450+Y444+Y438+Y426+Y419+Y414+Y432","v":211},{"$f":"SQRT((Z450^2)+(Z444^2)+(Z432^2)+(Z426^2)+(Z420^2)+(Z414^2)+(Z438^2))","v":180.81482240126223},{"$f":"AA450+AA444+AA438+AA426+AA419+AA414+AA432","v":75},{"$f":"SQRT((AB450^2)+(AB444^2)+(AB432^2)+(AB426^2)+(AB420^2)+(AB414^2)+(AB438^2))","v":176.12495564229391},{"$f":"AC450+AC444+AC438+AC426+AC419+AC414+AC432","v":4},{"$f":"SQRT((AD450^2)+(AD444^2)+(AD432^2)+(AD426^2)+(AD420^2)+(AD414^2)+(AD438^2))","v":208.26665599658531},{"$f":"AE450+AE444+AE438+AE426+AE419+AE414+AE432","v":27},{"$f":"SQRT((AF450^2)+(AF444^2)+(AF432^2)+(AF426^2)+(AF420^2)+(AF414^2)+(AF438^2))","v":191.76808910765106},{"$f":"AG450+AG444+AG438+AG426+AG419+AG414+AG432","v":20},{"$f":"SQRT((AH450^2)+(AH444^2)+(AH432^2)+(AH426^2)+(AH420^2)+(AH414^2)+(AH438^2))","v":210.35683967962629},{"$f":"AI450+AI444+AI438+AI426+AI419+AI414+AI432","v":78},{"$f":"SQRT((AJ450^2)+(AJ444^2)+(AJ432^2)+(AJ426^2)+(AJ420^2)+(AJ414^2)+(AJ438^2))","v":201.04228410958726},{"$f":"AK450+AK444+AK438+AK426+AK419+AK414+AK432","v":0},{"$f":"SQRT((AL450^2)+(AL444^2)+(AL432^2)+(AL426^2)+(AL420^2)+(AL414^2)+(AL438^2))","v":224.88886144049019},{"$f":"AM450+AM444+AM438+AM426+AM419+AM414+AM432","v":81},{"$f":"SQRT((AN450^2)+(AN444^2)+(AN432^2)+(AN426^2)+(AN420^2)+(AN414^2)+(AN438^2))","v":210.21655500935219},{"$f":"AO450+AO444+AO438+AO426+AO419+AO414+AO432","v":92},{"$f":"SQRT((AP450^2)+(AP444^2)+(AP432^2)+(AP426^2)+(AP420^2)+(AP414^2)+(AP438^2))","v":191.76808910765106},{"$f":"AQ450+AQ444+AQ438+AQ426+AQ419+AQ414+AQ432","v":155},{"$f":"SQRT((AR450^2)+(AR444^2)+(AR432^2)+(AR426^2)+(AR420^2)+(AR414^2)+(AR438^2))","v":193.34683860875512},{"$f":"AS450+AS444+AS438+AS426+AS419+AS414+AS432","v":55},{"$f":"SQRT((AT450^2)+(AT444^2)+(AT432^2)+(AT426^2)+(AT420^2)+(AT414^2)+(AT438^2))","v":212.20508947713765},{"$f":"AU450+AU444+AU438+AU426+AU419+AU414+AU432","v":10},{"$f":"SQRT((AV450^2)+(AV444^2)+(AV432^2)+(AV426^2)+(AV420^2)+(AV414^2)+(AV438^2))","v":208.24504796032966},{"$f":"AW450+AW444+AW438+AW426+AW419+AW414+AW432","v":6},{"$f":"SQRT((AX450^2)+(AX444^2)+(AX432^2)+(AX426^2)+(AX420^2)+(AX414^2)+(AX438^2))","v":208.49700237653298},{"$f":"AY450+AY444+AY438+AY426+AY419+AY414+AY432","v":7},{"$f":"SQRT((AZ450^2)+(AZ444^2)+(AZ432^2)+(AZ426^2)+(AZ420^2)+(AZ414^2)+(AZ438^2))","v":208.44663585675832},{"$f":"BA450+BA444+BA438+BA426+BA419+BA414+BA432","v":22},{"$f":"SQRT((BB450^2)+(BB444^2)+(BB432^2)+(BB426^2)+(BB420^2)+(BB414^2)+(BB438^2))","v":170.25275328170173},{"$f":"BC450+BC444+BC438+BC426+BC419+BC414+BC432","v":3},{"$f":"SQRT((BD450^2)+(BD444^2)+(BD432^2)+(BD426^2)+(BD420^2)+(BD414^2)+(BD438^2))","v":208.26665599658531}]

{"sheet":"OwnerHousingCost","index":60,"n_rows":112,"n_cols":17,"rows_kept":112,"cut":false,"hidden":true,"merged":[]}
[]
[null,null,"HIDE THIS COLUMN",{"$f":"DropDownList!$B$47","v":"Allenstown"}]
[null,null,null,"OWNER HOUSING COST CHARACTERISTICS"]
[]
[]
[]
[]
[]
[]
[]
[]
[]
[]
[]
[]
[]
[]
[]
[]
[]
[]
[]
[]
[]
[]
[]
[]
[]
[]
[]
[]
[]
[]
[]
[]
[]
[null,null,null,"Income in 2022 Inflation Adjusted Dollars"]
[null,null,null,"Source: 2018-2022 American Community Survey Table B25106"]
[null,null,null,"Data from the American Community Survey are estimates."]
[]
[]
[null,null,null,{"$f":"CntyDataLink!A$35","v":"Allenstown"}]
[]
[null,null,null,{"$f":"D3","v":"OWNER HOUSING COST CHARACTERISTICS"}]
[]
[null,null,null,"Owner Households by "]
[null,null,null,"Selected Monthly Housing Costs as a Percent of 2022 Household Income",null,null,null,"By Household Income"]
[null,null,"H73RenterOccHU",null,"Specified Owner Occ Housing Units","Margin of Error Owner Occ Housing Units",null,"Less than $20,000",{"$f":"\"Margin of Error \"&H48","v":"Margin of Error Less than $20,000"},"$20,000 to $34,999",{"$f":"\"Margin of Error \"&J48","v":"Margin of Error $20,000 to $34,999"},"$35,000 to $49,999",{"$f":"\"Margin of Error \"&L48","v":"Margin of Error $35,000 to $49,999"},"$50,000 to $74,999",{"$f":"\"Margin of Error \"&N48","v":"Margin of Error $50,000 to $74,999"},"$75,000 or More",{"$f":"\"Margin of Error \"&P48","v":"Margin of Error $75,000 or More"}]
[]
[null,null,null,"Total Households",{"$f":"CntyDataLink!$BF144","v":1439},{"$f":"CntyDataLink!$BG$144","v":167},null,{"$f":"CntyDataLink!$BZ$144","v":114},{"$f":"CntyDataLink!$CA$144","v":68},{"$f":"CntyDataLink!$CH$144","v":173},{"$f":"CntyDataLink!$CI$144","v":109},{"$f":"CntyDataLink!$CP$144","v":144},{"$f":"CntyDataLink!$CQ$144","v":92},{"$f":"CntyDataLink!$CX$144","v":180},{"$f":"CntyDataLink!$CY$144","v":86},{"$f":"CntyDataLink!$DF$144","v":828},{"$f":"CntyDataLink!$DG$144","v":144}]
[null,null,null,"Monthly Costs Less than 20% of HH Income",{"$f":"CntyDataLink!$BH$144","v":671},{"$f":"CntyDataLink!$BI$144","v":164.89996967859031},null,{"$f":"CntyDataLink!$CB$144","v":11},{"$f":"CntyDataLink!$CC$144","v":17},{"$f":"CntyDataLink!CJ$144","v":33},{"$f":"CntyDataLink!CK$144","v":54},{"$f":"CntyDataLink!CR$144","v":45},{"$f":"CntyDataLink!CS$144","v":58},{"$f":"CntyDataLink!CZ$144","v":59},{"$f":"CntyDataLink!DA$144","v":56},{"$f":"CntyDataLink!DH$144","v":523},{"$f":"CntyDataLink!DI$144","v":121}]
[null,null,null,"Monthly Costs 20% to 29.9% of HH Income",{"$f":"CntyDataLink!$BJ$144","v":323},{"$f":"CntyDataLink!$BK$144","v":129.81910491141124},null,{"$f":"CntyDataLink!$CD$144","v":0},{"$f":"CntyDataLink!$CE$144","v":12},{"$f":"CntyDataLink!CL$144","v":34},{"$f":"CntyDataLink!CM$144","v":51},{"$f":"CntyDataLink!CT$144","v":34},{"$f":"CntyDataLink!CU$144","v":33},{"$f":"CntyDataLink!DB$144","v":45},{"$f":"CntyDataLink!DC$144","v":34},{"$f":"CntyDataLink!DJ$144","v":210},{"$f":"CntyDataLink!DK$144","v":110}]
[null,null,null,"Monthly Costs Less Than 30% of HH Income",{"$f":"CntyDataLink!$BL$144","v":994},{"$f":"CntyDataLink!$BM$144","v":209.86900676374299},null,{"$f":"H52+H51","v":11},{"$f":"SQRT((I52^2)+(I51^2))","v":20.808652046684813},{"$f":"J52+J51","v":67},{"$f":"SQRT((K52^2)+(K51^2))","v":74.276510418839678},{"$f":"L52+L51","v":79},{"$f":"SQRT((M52^2)+(M51^2))","v":66.730802482811484},{"$f":"N52+N51","v":104},{"$f":"SQRT((O52^2)+(O51^2))","v":65.513357416636794},{"$f":"P52+P51","v":733},{"$f":"SQRT((Q52^2)+(Q51^2))","v":163.52675622050356}]
[null,null,null,"Monthly Costs 30% or More of HH Income",{"$f":"CntyDataLink!$BN$144","v":445},{"$f":"CntyDataLink!$BO$144","v":143.71151658791996},null,{"$f":"CntyDataLink!$CF$144","v":103},{"$f":"CntyDataLink!$CG$144","v":66},{"$f":"CntyDataLink!CN$144","v":106},{"$f":"CntyDataLink!CO$144","v":80},{"$f":"CntyDataLink!CV$144","v":65},{"$f":"CntyDataLink!CW$144","v":61},{"$f":"CntyDataLink!DD$144","v":76},{"$f":"CntyDataLink!DE$144","v":62},{"$f":"CntyDataLink!$DL$144","v":95},{"$f":"CntyDataLink!$DM$144","v":69}]
[]
[null,null,null,"Monthly Costs 35% or More of HH Income",{"$f":"CntyDataLink!$BT$144","v":269},{"$f":"CntyDataLink!$BU$144","v":106.26852779633299},null,"NA","NA","NA","NA","NA","NA","NA","NA","NA","NA"]
[null,null,null,"Monthly Costs 50% or More of HH Income",{"$f":"CntyDataLink!$BV$144","v":130},{"$f":"CntyDataLink!$BW$144","v":70.455659815234142},null,"NA","NA","NA","NA","NA","NA","NA","NA","NA","NA"]
[null,null,null,"Percent not computed",{"$f":"CntyDataLink!$BX$144","v":0},{"$f":"CntyDataLink!$BY$144","v":16.970562748477139},null,"NA","NA","NA","NA","NA","NA","NA","NA","NA","NA"]
[]
[null,null,null,"Percent of Owner Households Paying ",null,null,null,"By Household Income"]
[null,null,null,{"$f":"D53","v":"Monthly Costs Less Than 30% of HH Income"},{"$f":"E53/E$50","v":0.6907574704656011},null,null,{"$f":"H53/H$50","v":9.6491228070175433E-2},null,{"$f":"J53/J$50","v":0.38728323699421963},null,{"$f":"L53/L$50","v":0.54861111111111116},null,{"$f":"N53/N$50","v":0.57777777777777772},null,{"$f":"P53/P$50","v":0.88526570048309183}]
[null,null,null,{"$f":"D54","v":"Monthly Costs 30% or More of HH Income"},{"$f":"E54/E$50","v":0.3092425295343989},null,null,{"$f":"H54/H50","v":0.90350877192982459},null,{"$f":"J54/J50","v":0.61271676300578037},null,{"$f":"L54/L50","v":0.4513888888888889},null,{"$f":"N54/N50","v":0.42222222222222222},null,{"$f":"P54/P50","v":0.11473429951690821}]
[]
[null,null,null,"Monthly Costs 35% or More of HH Income",{"$f":"E56/E$50","v":0.18693537178596248},null,null,"NA","NA","NA","NA","NA","NA","NA","NA","NA","NA"]
[null,null,null,"Monthly Costs 50% or More of HH Income",{"$f":"E57/E$50","v":9.0340514246004172E-2},null,null,"NA","NA","NA","NA","NA","NA","NA","NA","NA","NA"]
[null,null,null,"Percent not computed",{"$f":"E58/$E$50","v":0},null,null,"NA","NA","NA","NA","NA","NA","NA","NA","NA","NA"]
[]
[null,null,null,{"$f":"D37","v":"Income in 2022 Inflation Adjusted Dollars"}]
[null,null,null,"Source: 2018-2022 American Community Survey Table B25091; B25106",null,null,null,"NA indicates that the American Community Survey does not provide that data."]
[null,null,null,"Data from the American Community Survey are estimates."]
[]
[null,null,null,{"$f":"D2","v":"Allenstown"}]
[null,null,"H62ROHUGRent250to299",{"$f":"D3","v":"OWNER HOUSING COST CHARACTERISTICS"}]
[null,null,"H62ROHUGRent300to349"]
[null,null,"H62ROHUGRent350to399","Value of Owner Occupied Housing Units"]
[null,null,"H62ROHUGRent400to449"]
[null,null,"H62ROHUGRent450to499","Owner Occupied Housing Units",{"$f":"CntyDataLink!$B$144","v":1439},{"$f":"CntyDataLink!$C$144","v":167}]
[null,null,"H62ROHUGRent500to549"]
[null,null,"H62ROHUGRent550to599","Value","Housing Units","Margin of Error"]
[null,null,"H62ROHUGRent600to649","Less than $10,000",{"$f":"CntyDataLink!$D$144","v":39},{"$f":"CntyDataLink!$E$144","v":38}]
[null,null,"H62ROHUGRent650to699","$10,000 to $14,999",{"$f":"CntyDataLink!$F$144","v":39},{"$f":"CntyDataLink!$G$144","v":35}]
[null,null,"H62ROHUGRent700to749","$15,000 to $19,999",{"$f":"CntyDataLink!$H$144","v":69},{"$f":"CntyDataLink!$I$144","v":56}]
[null,null,"H62ROHUGRent750to799","$20,000 to $24,999",{"$f":"CntyDataLink!$J$144","v":34},{"$f":"CntyDataLink!$K$144","v":44}]
[null,null,"H62ROHUGRent800to899","$25,000 to $29,999",{"$f":"CntyDataLink!$L$144","v":35},{"$f":"CntyDataLink!$M$144","v":33}]
[null,null,"H62ROHUGRent900to999","$30,000 to $34,999",{"$f":"CntyDataLink!$N$144","v":16},{"$f":"CntyDataLink!$O$144","v":19}]
[null,null,"H62ROHUGRent1000to1249","$35,000 to $39,999",{"$f":"CntyDataLink!$P$144","v":0},{"$f":"CntyDataLink!$Q$144","v":12}]
[null,null,"H62ROHUGRent1250to1499","$40,000 to $49,999",{"$f":"CntyDataLink!$R$144","v":44},{"$f":"CntyDataLink!$S$144","v":26}]
[null,null,"H62ROHUGRent1500to1999","$50,000 to $59,999",{"$f":"CntyDataLink!$T$144","v":65},{"$f":"CntyDataLink!$U$144","v":52}]
[null,null,"H62ROHUGRent2000>","$60,000 to $69,999",{"$f":"CntyDataLink!$V$144","v":0},{"$f":"CntyDataLink!$W$144","v":12}]
[null,null,"H62ROHUNoGRent","$70,000 to $79,999",{"$f":"CntyDataLink!$X$144","v":172},{"$f":"CntyDataLink!$Y$144","v":110}]
[null,null,"H63MedianGrossRnt","$80,000 to $89,999",{"$f":"CntyDataLink!$Z$144","v":11},{"$f":"CntyDataLink!$AA$144","v":17}]
[null,null,null,"$90,000 to $99,999",{"$f":"CntyDataLink!$AB$144","v":99},{"$f":"CntyDataLink!$AC$144","v":93}]
[null,null,null,"$100,000 to $124,999",{"$f":"CntyDataLink!$AD$144","v":52},{"$f":"CntyDataLink!$AE$144","v":52}]
[null,null,null,"$125,000 to $149,999",{"$f":"CntyDataLink!$AF$144","v":8},{"$f":"CntyDataLink!$AG$144","v":12}]
[null,null,null,"$150,000 to $174,999",{"$f":"CntyDataLink!$AH$144","v":33},{"$f":"CntyDataLink!$AI$144","v":35}]
[null,null,null,"$175,000 to $199,999",{"$f":"CntyDataLink!$AJ$144","v":46},{"$f":"CntyDataLink!$AK$144","v":34}]
[null,null,null,"$200,000 to $249,999",{"$f":"CntyDataLink!$AL$144","v":113},{"$f":"CntyDataLink!$AM$144","v":56}]
[null,null,null,"$250,000 to $299,999",{"$f":"CntyDataLink!$AN$144","v":209},{"$f":"CntyDataLink!$AO$144","v":97}]
[null,null,null,"$300,000 to $399,999",{"$f":"CntyDataLink!$AP$144","v":212},{"$f":"CntyDataLink!$AQ$144","v":91}]
[null,null,null,"$400,000 to $499,999",{"$f":"CntyDataLink!$AR$144","v":123},{"$f":"CntyDataLink!$AS$144","v":85}]
[null,null,null,"$500,000 to $749,999",{"$f":"CntyDataLink!$AT$144","v":9},{"$f":"CntyDataLink!$AU$144","v":15}]
[null,null,null,"$750,000 to $999,999",{"$f":"CntyDataLink!$AV$144","v":11},{"$f":"CntyDataLink!$AW$144","v":17}]
[null,null,null,"$1,000,000 to $1,499,999",{"$f":"CntyDataLink!$AX$144","v":0},{"$f":"CntyDataLink!$AY$144","v":12}]
[null,null,null,"$1,500,000 to $1,999,999",{"$f":"CntyDataLink!$AZ$144","v":0},{"$f":"CntyDataLink!$BA$144","v":12}]
[null,null,null,"$2,000,000 or more",{"$f":"CntyDataLink!$BB$144","v":0},{"$f":"CntyDataLink!$BC$144","v":12}]
[]
[null,null,null,"Median Value",{"$f":"CntyDataLink!$BD$144","v":176900},{"$f":"CntyDataLink!$BE$144","v":82429}]
[]
[]
[]
[null,null,null,"Source: 2018-2022 American Community Survey Tables B25075 and B25077"]
[null,null,null,"Data from the American Community Survey are estimates."]

{"sheet":"OwnerHousingCostPrior5Year","index":61,"n_rows":112,"n_cols":17,"rows_kept":112,"cut":false,"hidden":true,"merged":[]}
[]
[null,null,"HIDE THIS COLUMN",{"$f":"DropDownList!$B$47","v":"Allenstown"}]
[null,null,null,"OWNER HOUSING COST CHARACTERISTICS"]
[]
[]
[]
[]
[]
[]
[]
[]
[]
[]
[]
[]
[]
[]
[]
[]
[]
[]
[]
[]
[]
[]
[]
[]
[]
[]
[]
[]
[]
[]
[]
[]
[]
[null,null,null,"Income in 2017 Inflation Adjusted Dollars"]
[null,null,null,"Source: 2013-2017 American Community Survey Table B25106"]
[null,null,null,"Data from the American Community Survey are estimates."]
[]
[]
[null,null,null,{"$f":"CntyDataLinkPrior5YearEstimates!$A$108","v":"Allenstown"}]
[]
[null,null,null,{"$f":"D3","v":"OWNER HOUSING COST CHARACTERISTICS"}]
[]
[null,null,null,"Owner Households by "]
[null,null,null,"Selected Monthly Housing Costs as a Percent of 2017 Household Income",null,null,null,"By Household Income"]
[null,null,"H73RenterOccHU",null,"Specified Owner Occ Housing Units","Margin of Error Owner Occ Housing Units",null,"Less than $20,000",{"$f":"\"Margin of Error \"&H48","v":"Margin of Error Less than $20,000"},"$20,000 to $34,999",{"$f":"\"Margin of Error \"&J48","v":"Margin of Error $20,000 to $34,999"},"$35,000 to $49,999",{"$f":"\"Margin of Error \"&L48","v":"Margin of Error $35,000 to $49,999"},"$50,000 to $74,999",{"$f":"\"Margin of Error \"&N48","v":"Margin of Error $50,000 to $74,999"},"$75,000 or More",{"$f":"\"Margin of Error \"&P48","v":"Margin of Error $75,000 or More"}]
[]
[null,null,null,"Total Households",{"$f":"CntyDataLinkPrior5YearEstimates!$BF144","v":1223},{"$f":"CntyDataLinkPrior5YearEstimates!$BG$144","v":125},null,{"$f":"CntyDataLinkPrior5YearEstimates!$BZ$144","v":87},{"$f":"CntyDataLinkPrior5YearEstimates!$CA$144","v":54},{"$f":"CntyDataLinkPrior5YearEstimates!$CH$144","v":203},{"$f":"CntyDataLinkPrior5YearEstimates!$CI$144","v":87},{"$f":"CntyDataLinkPrior5YearEstimates!$CP$144","v":190},{"$f":"CntyDataLinkPrior5YearEstimates!$CQ$144","v":63},{"$f":"CntyDataLinkPrior5YearEstimates!$CX$144","v":273},{"$f":"CntyDataLinkPrior5YearEstimates!$CY$144","v":72},{"$f":"CntyDataLinkPrior5YearEstimates!$DF$144","v":449},{"$f":"CntyDataLinkPrior5YearEstimates!$DG$144","v":111}]
[null,null,null,"Monthly Costs Less than 20% of HH Income",{"$f":"CntyDataLinkPrior5YearEstimates!$BH$144","v":494},{"$f":"CntyDataLinkPrior5YearEstimates!$BI$144","v":121.309521472966},null,{"$f":"CntyDataLinkPrior5YearEstimates!$CB$144","v":0},{"$f":"CntyDataLinkPrior5YearEstimates!$CC$144","v":11},{"$f":"CntyDataLinkPrior5YearEstimates!CJ$144","v":69},{"$f":"CntyDataLinkPrior5YearEstimates!CK$144","v":60},{"$f":"CntyDataLinkPrior5YearEstimates!CR$144","v":48},{"$f":"CntyDataLinkPrior5YearEstimates!CS$144","v":29},{"$f":"CntyDataLinkPrior5YearEstimates!CZ$144","v":103},{"$f":"CntyDataLinkPrior5YearEstimates!DA$144","v":53},{"$f":"CntyDataLinkPrior5YearEstimates!DH$144","v":274},{"$f":"CntyDataLinkPrior5YearEstimates!DI$144","v":89}]
[null,null,null,"Monthly Costs 20% to 29.9% of HH Income",{"$f":"CntyDataLinkPrior5YearEstimates!$BJ$144","v":268},{"$f":"CntyDataLinkPrior5YearEstimates!$BK$144","v":72.560319734686942},null,{"$f":"CntyDataLinkPrior5YearEstimates!$CD$144","v":0},{"$f":"CntyDataLinkPrior5YearEstimates!$CE$144","v":11},{"$f":"CntyDataLinkPrior5YearEstimates!CL$144","v":42},{"$f":"CntyDataLinkPrior5YearEstimates!CM$144","v":33},{"$f":"CntyDataLinkPrior5YearEstimates!CT$144","v":44},{"$f":"CntyDataLinkPrior5YearEstimates!CU$144","v":25},{"$f":"CntyDataLinkPrior5YearEstimates!DB$144","v":79},{"$f":"CntyDataLinkPrior5YearEstimates!DC$144","v":40},{"$f":"CntyDataLinkPrior5YearEstimates!DJ$144","v":103},{"$f":"CntyDataLinkPrior5YearEstimates!DK$144","v":44}]
[null,null,null,"Monthly Costs Less Than 30% of HH Income",{"$f":"CntyDataLinkPrior5YearEstimates!$BL$144","v":762},{"$f":"CntyDataLinkPrior5YearEstimates!$BM$144","v":141.35416513141735},null,{"$f":"H52+H51","v":0},{"$f":"SQRT((I52^2)+(I51^2))","v":15.556349186104045},{"$f":"J52+J51","v":111},{"$f":"SQRT((K52^2)+(K51^2))","v":68.47627326307996},{"$f":"L52+L51","v":92},{"$f":"SQRT((M52^2)+(M51^2))","v":38.288379438153292},{"$f":"N52+N51","v":182},{"$f":"SQRT((O52^2)+(O51^2))","v":66.400301204136113},{"$f":"P52+P51","v":377},{"$f":"SQRT((Q52^2)+(Q51^2))","v":99.282425433709065}]
[null,null,null,"Monthly Costs 30% or More of HH Income",{"$f":"CntyDataLinkPrior5YearEstimates!$BN$144","v":440},{"$f":"CntyDataLinkPrior5YearEstimates!$BO$144","v":117.53722814495839},null,{"$f":"CntyDataLinkPrior5YearEstimates!$CF$144","v":87},{"$f":"CntyDataLinkPrior5YearEstimates!$CG$144","v":54},{"$f":"CntyDataLinkPrior5YearEstimates!CN$144","v":92},{"$f":"CntyDataLinkPrior5YearEstimates!CO$144","v":63},{"$f":"CntyDataLinkPrior5YearEstimates!CV$144","v":98},{"$f":"CntyDataLinkPrior5YearEstimates!CW$144","v":50},{"$f":"CntyDataLinkPrior5YearEstimates!DD$144","v":91},{"$f":"CntyDataLinkPrior5YearEstimates!DE$144","v":45},{"$f":"CntyDataLinkPrior5YearEstimates!$DL$144","v":72},{"$f":"CntyDataLinkPrior5YearEstimates!$DM$144","v":55}]
[null,null,null,null,{"$f":"E53+E54+E58","v":1223},null,null,{"$f":"H53+H54","v":87},null,{"$f":"J53+J54","v":203},null,{"$f":"L53+L54","v":190},null,{"$f":"N53+N54","v":273},null,{"$f":"P53+P54","v":449}]
[null,null,null,"Monthly Costs 35% or More of HH Income",{"$f":"CntyDataLinkPrior5YearEstimates!$BT$144","v":330},{"$f":"CntyDataLinkPrior5YearEstimates!$BU$144","v":99.774746303861875},null,"NA","NA","NA","NA","NA","NA","NA","NA","NA","NA"]
[null,null,null,"Monthly Costs 50% or More of HH Income",{"$f":"CntyDataLinkPrior5YearEstimates!$BV$144","v":220},{"$f":"CntyDataLinkPrior5YearEstimates!$BW$144","v":83.096329642168911},null,"NA","NA","NA","NA","NA","NA","NA","NA","NA","NA"]
[null,null,null,"Percent not computed",{"$f":"CntyDataLinkPrior5YearEstimates!$BX$144","v":21},{"$f":"CntyDataLinkPrior5YearEstimates!$BY$144","v":22.472205054244231},null,"NA","NA","NA","NA","NA","NA","NA","NA","NA","NA"]
[]
[null,null,null,"Percent of Owner Households Paying ",null,null,null,"By Household Income"]
[null,null,null,{"$f":"D53","v":"Monthly Costs Less Than 30% of HH Income"},{"$f":"E53/E$50","v":0.62305805396565817},null,null,{"$f":"H53/H$50","v":0},null,{"$f":"J53/J$50","v":0.54679802955665024},null,{"$f":"L53/L$50","v":0.48421052631578948},null,{"$f":"N53/N$50","v":0.66666666666666663},null,{"$f":"P53/P$50","v":0.83964365256124718}]
[null,null,null,{"$f":"D54","v":"Monthly Costs 30% or More of HH Income"},{"$f":"E54/E$50","v":0.35977105478331972},null,null,{"$f":"H54/H50","v":1},null,{"$f":"J54/J50","v":0.45320197044334976},null,{"$f":"L54/L50","v":0.51578947368421058},null,{"$f":"N54/N50","v":0.33333333333333331},null,{"$f":"P54/P50","v":0.16035634743875279}]
[]
[null,null,null,"Monthly Costs 35% or More of HH Income",{"$f":"E56/E$50","v":0.26982829108748979},null,null,"NA","NA","NA","NA","NA","NA","NA","NA","NA","NA"]
[null,null,null,"Monthly Costs 50% or More of HH Income",{"$f":"E57/E$50","v":0.17988552739165986},null,null,"NA","NA","NA","NA","NA","NA","NA","NA","NA","NA"]
[null,null,null,"Percent not computed",{"$f":"E58/$E$50","v":1.7170891251022075E-2},null,null,"NA","NA","NA","NA","NA","NA","NA","NA","NA","NA"]
[]
[null,null,"H62ROHUGRent200to249",{"$f":"D37","v":"Income in 2017 Inflation Adjusted Dollars"}]
[null,null,null,"Source: 2013-2017 American Community Survey Table B25091; B25106",null,null,null,null,"NA indicates that the American Community Survey does not provide that data."]
[null,null,null,"Data from the American Community Survey are estimates."]
[]
[null,null,null,{"$f":"D2","v":"Allenstown"}]
[null,null,"H62ROHUGRent250to299",{"$f":"D3","v":"OWNER HOUSING COST CHARACTERISTICS"}]
[null,null,"H62ROHUGRent300to349"]
[null,null,"H62ROHUGRent350to399","Value of Owner Occupied Housing Units"]
[null,null,"H62ROHUGRent400to449"]
[null,null,"H62ROHUGRent450to499","Owner Occupied Housing Units",{"$f":"CntyDataLinkPrior5YearEstimates!$B$144","v":1223},{"$f":"CntyDataLinkPrior5YearEstimates!$C$144","v":125}]
[null,null,"H62ROHUGRent500to549"]
[null,null,"H62ROHUGRent550to599","Value","Housing Units","Margin of Error"]
[null,null,"H62ROHUGRent600to649","Less than $10,000",{"$f":"CntyDataLinkPrior5YearEstimates!$D$144","v":49},{"$f":"CntyDataLinkPrior5YearEstimates!$E$144","v":30}]
[null,null,"H62ROHUGRent650to699","$10,000 to $14,999",{"$f":"CntyDataLinkPrior5YearEstimates!$F$144","v":33},{"$f":"CntyDataLinkPrior5YearEstimates!$G$144","v":39}]
[null,null,"H62ROHUGRent700to749","$15,000 to $19,999",{"$f":"CntyDataLinkPrior5YearEstimates!$H$144","v":61},{"$f":"CntyDataLinkPrior5YearEstimates!$I$144","v":50}]
[null,null,"H62ROHUGRent750to799","$20,000 to $24,999",{"$f":"CntyDataLinkPrior5YearEstimates!$J$144","v":31},{"$f":"CntyDataLinkPrior5YearEstimates!$K$144","v":25}]
[null,null,"H62ROHUGRent800to899","$25,000 to $29,999",{"$f":"CntyDataLinkPrior5YearEstimates!$L$144","v":39},{"$f":"CntyDataLinkPrior5YearEstimates!$M$144","v":31}]
[null,null,"H62ROHUGRent900to999","$30,000 to $34,999",{"$f":"CntyDataLinkPrior5YearEstimates!$N$144","v":28},{"$f":"CntyDataLinkPrior5YearEstimates!$O$144","v":22}]
[null,null,"H62ROHUGRent1000to1249","$35,000 to $39,999",{"$f":"CntyDataLinkPrior5YearEstimates!$P$144","v":32},{"$f":"CntyDataLinkPrior5YearEstimates!$Q$144","v":41}]
[null,null,"H62ROHUGRent1250to1499","$40,000 to $49,999",{"$f":"CntyDataLinkPrior5YearEstimates!$R$144","v":50},{"$f":"CntyDataLinkPrior5YearEstimates!$S$144","v":36}]
[null,null,"H62ROHUGRent1500to1999","$50,000 to $59,999",{"$f":"CntyDataLinkPrior5YearEstimates!$T$144","v":55},{"$f":"CntyDataLinkPrior5YearEstimates!$U$144","v":46}]
[null,null,"H62ROHUGRent2000>","$60,000 to $69,999",{"$f":"CntyDataLinkPrior5YearEstimates!$V$144","v":36},{"$f":"CntyDataLinkPrior5YearEstimates!$W$144","v":30}]
[null,null,"H62ROHUNoGRent","$70,000 to $79,999",{"$f":"CntyDataLinkPrior5YearEstimates!$X$144","v":44},{"$f":"CntyDataLinkPrior5YearEstimates!$Y$144","v":28}]
[null,null,"H63MedianGrossRnt","$80,000 to $89,999",{"$f":"CntyDataLinkPrior5YearEstimates!$Z$144","v":24},{"$f":"CntyDataLinkPrior5YearEstimates!$AA$144","v":25}]
[null,null,null,"$90,000 to $99,999",{"$f":"CntyDataLinkPrior5YearEstimates!$AB$144","v":25},{"$f":"CntyDataLinkPrior5YearEstimates!$AC$144","v":25}]
[null,null,null,"$100,000 to $124,999",{"$f":"CntyDataLinkPrior5YearEstimates!$AD$144","v":23},{"$f":"CntyDataLinkPrior5YearEstimates!$AE$144","v":22}]
[null,null,null,"$125,000 to $149,999",{"$f":"CntyDataLinkPrior5YearEstimates!$AF$144","v":57},{"$f":"CntyDataLinkPrior5YearEstimates!$AG$144","v":32}]
[null,null,null,"$150,000 to $174,999",{"$f":"CntyDataLinkPrior5YearEstimates!$AH$144","v":131},{"$f":"CntyDataLinkPrior5YearEstimates!$AI$144","v":58}]
[null,null,null,"$175,000 to $199,999",{"$f":"CntyDataLinkPrior5YearEstimates!$AJ$144","v":110},{"$f":"CntyDataLinkPrior5YearEstimates!$AK$144","v":40}]
[null,null,null,"$200,000 to $249,999",{"$f":"CntyDataLinkPrior5YearEstimates!$AL$144","v":257},{"$f":"CntyDataLinkPrior5YearEstimates!$AM$144","v":99}]
[null,null,null,"$250,000 to $299,999",{"$f":"CntyDataLinkPrior5YearEstimates!$AN$144","v":93},{"$f":"CntyDataLinkPrior5YearEstimates!$AO$144","v":61}]
[null,null,null,"$300,000 to $399,999",{"$f":"CntyDataLinkPrior5YearEstimates!$AP$144","v":37},{"$f":"CntyDataLinkPrior5YearEstimates!$AQ$144","v":27}]
[null,null,null,"$400,000 to $499,999",{"$f":"CntyDataLinkPrior5YearEstimates!$AR$144","v":0},{"$f":"CntyDataLinkPrior5YearEstimates!$AS$144","v":11}]
[null,null,null,"$500,000 to $749,999",{"$f":"CntyDataLinkPrior5YearEstimates!$AT$144","v":0},{"$f":"CntyDataLinkPrior5YearEstimates!$AU$144","v":11}]
[null,null,null,"$750,000 to $999,999",{"$f":"CntyDataLinkPrior5YearEstimates!$AV$144","v":0},{"$f":"CntyDataLinkPrior5YearEstimates!$AW$144","v":11}]
[null,null,null,"$1,000,000 to $1,499,999",{"$f":"CntyDataLinkPrior5YearEstimates!$AX$144","v":0},{"$f":"CntyDataLinkPrior5YearEstimates!$AY$144","v":11}]
[null,null,null,"$1,500,000 to $1,999,999",{"$f":"CntyDataLinkPrior5YearEstimates!$AZ$144","v":0},{"$f":"CntyDataLinkPrior5YearEstimates!$BA$144","v":11}]
[null,null,null,"$2,000,000 or more",{"$f":"CntyDataLinkPrior5YearEstimates!$BB$144","v":8},{"$f":"CntyDataLinkPrior5YearEstimates!$BC$144","v":13}]
[]
[null,null,null,"Median Value",{"$f":"CntyDataLinkPrior5YearEstimates!$BD$144","v":154700},{"$f":"CntyDataLinkPrior5YearEstimates!$BE$144","v":20346}]
[]
[]
[]
[null,null,null,"Source: 2013-2017 American Community Survey Tables B25075 and B25077"]
[null,null,null,"Data from the American Community Survey are estimates."]

{"sheet":"OwnerHousingCostPrior10Year","index":62,"n_rows":112,"n_cols":17,"rows_kept":112,"cut":false,"hidden":true,"merged":[]}
[]
[null,null,"HIDE THIS COLUMN",{"$f":"DropDownList!$B$47","v":"Allenstown"}]
[null,null,null,"OWNER HOUSING COST CHARACTERISTICS"]
[]
[]
[]
[]
[]
[]
[]
[]
[]
[]
[]
[]
[]
[]
[]
[]
[]
[]
[]
[]
[]
[]
[]
[]
[]
[]
[]
[]
[]
[]
[]
[]
[]
[null,null,null,"Income in 2012 Inflation Adjusted Dollars"]
[null,null,null,"Source: 2008-2012 American Community Survey Table B25106"]
[null,null,null,"Data from the American Community Survey are estimates."]
[]
[]
[null,null,null,{"$f":"CntyDataLinkPrior10YearEstimate!$A$108","v":"Allenstown"}]
[]
[null,null,null,{"$f":"D3","v":"OWNER HOUSING COST CHARACTERISTICS"}]
[]
[null,null,null,"Owner Households by "]
[null,null,null,"Selected Monthly Housing Costs as a Percent of 2012 Household Income",null,null,null,"By Household Income"]
[null,null,"H73RenterOccHU",null,"Specified Owner Occ Housing Units","Margin of Error Owner Occ Housing Units",null,"Less than $20,000",{"$f":"\"Margin of Error \"&H48","v":"Margin of Error Less than $20,000"},"$20,000 to $34,999",{"$f":"\"Margin of Error \"&J48","v":"Margin of Error $20,000 to $34,999"},"$35,000 to $49,999",{"$f":"\"Margin of Error \"&L48","v":"Margin of Error $35,000 to $49,999"},"$50,000 to $74,999",{"$f":"\"Margin of Error \"&N48","v":"Margin of Error $50,000 to $74,999"},"$75,000 or More",{"$f":"\"Margin of Error \"&P48","v":"Margin of Error $75,000 or More"}]
[]
[null,null,null,"Total Households",{"$f":"CntyDataLinkPrior10YearEstimate!$BF144","v":1072},{"$f":"CntyDataLinkPrior10YearEstimate!$BG$144","v":170},null,{"$f":"CntyDataLinkPrior10YearEstimate!$BZ$144","v":84},{"$f":"CntyDataLinkPrior10YearEstimate!$CA$144","v":50},{"$f":"CntyDataLinkPrior10YearEstimate!$CH$144","v":139},{"$f":"CntyDataLinkPrior10YearEstimate!$CI$144","v":67},{"$f":"CntyDataLinkPrior10YearEstimate!$CP$144","v":108},{"$f":"CntyDataLinkPrior10YearEstimate!$CQ$144","v":63},{"$f":"CntyDataLinkPrior10YearEstimate!$CX$144","v":241},{"$f":"CntyDataLinkPrior10YearEstimate!$CY$144","v":106},{"$f":"CntyDataLinkPrior10YearEstimate!$DF$144","v":500},{"$f":"CntyDataLinkPrior10YearEstimate!$DG$144","v":133}]
[null,null,null,"Monthly Costs Less than 20% of HH Income",{"$f":"CntyDataLinkPrior10YearEstimate!$BH$144","v":289},{"$f":"CntyDataLinkPrior10YearEstimate!$BI$144","v":96.95359714832658},null,{"$f":"CntyDataLinkPrior10YearEstimate!$CB$144","v":0},{"$f":"CntyDataLinkPrior10YearEstimate!$CC$144","v":85},{"$f":"CntyDataLinkPrior10YearEstimate!CJ$144","v":26},{"$f":"CntyDataLinkPrior10YearEstimate!CK$144","v":33},{"$f":"CntyDataLinkPrior10YearEstimate!CR$144","v":44},{"$f":"CntyDataLinkPrior10YearEstimate!CS$144","v":39},{"$f":"CntyDataLinkPrior10YearEstimate!CZ$144","v":19},{"$f":"CntyDataLinkPrior10YearEstimate!DA$144","v":27},{"$f":"CntyDataLinkPrior10YearEstimate!DH$144","v":200},{"$f":"CntyDataLinkPrior10YearEstimate!DI$144","v":77}]
[null,null,null,"Monthly Costs 20% to 29.9% of HH Income",{"$f":"CntyDataLinkPrior10YearEstimate!$BJ$144","v":425},{"$f":"CntyDataLinkPrior10YearEstimate!$BK$144","v":143.45382532369084},null,{"$f":"CntyDataLinkPrior10YearEstimate!$CD$144","v":0},{"$f":"CntyDataLinkPrior10YearEstimate!$CE$144","v":85},{"$f":"CntyDataLinkPrior10YearEstimate!CL$144","v":49},{"$f":"CntyDataLinkPrior10YearEstimate!CM$144","v":58},{"$f":"CntyDataLinkPrior10YearEstimate!CT$144","v":29},{"$f":"CntyDataLinkPrior10YearEstimate!CU$144","v":23},{"$f":"CntyDataLinkPrior10YearEstimate!DB$144","v":136},{"$f":"CntyDataLinkPrior10YearEstimate!DC$144","v":79},{"$f":"CntyDataLinkPrior10YearEstimate!DJ$144","v":211},{"$f":"CntyDataLinkPrior10YearEstimate!DK$144","v":91}]
[null,null,null,"Monthly Costs Less Than 30% of HH Income",{"$f":"CntyDataLinkPrior10YearEstimate!$BL$144","v":714},{"$f":"CntyDataLinkPrior10YearEstimate!$BM$144","v":173.14444836609692},null,{"$f":"H52+H51","v":0},{"$f":"SQRT((I52^2)+(I51^2))","v":120.20815280171308},{"$f":"J52+J51","v":75},{"$f":"SQRT((K52^2)+(K51^2))","v":66.730802482811484},{"$f":"L52+L51","v":73},{"$f":"SQRT((M52^2)+(M51^2))","v":45.276925690687087},{"$f":"N52+N51","v":155},{"$f":"SQRT((O52^2)+(O51^2))","v":83.486525858967212},{"$f":"P52+P51","v":411},{"$f":"SQRT((Q52^2)+(Q51^2))","v":119.20570456148481}]
[null,null,null,"Monthly Costs 30% or More of HH Income",{"$f":"CntyDataLinkPrior10YearEstimate!$BN$144","v":358},{"$f":"CntyDataLinkPrior10YearEstimate!$BO$144","v":110.76100396800311},null,{"$f":"CntyDataLinkPrior10YearEstimate!$CF$144","v":84},{"$f":"CntyDataLinkPrior10YearEstimate!$CG$144","v":50},{"$f":"CntyDataLinkPrior10YearEstimate!CN$144","v":64},{"$f":"CntyDataLinkPrior10YearEstimate!CO$144","v":35},{"$f":"CntyDataLinkPrior10YearEstimate!CV$144","v":35},{"$f":"CntyDataLinkPrior10YearEstimate!CW$144","v":32},{"$f":"CntyDataLinkPrior10YearEstimate!DD$144","v":86},{"$f":"CntyDataLinkPrior10YearEstimate!DE$144","v":56},{"$f":"CntyDataLinkPrior10YearEstimate!$DL$144","v":89},{"$f":"CntyDataLinkPrior10YearEstimate!$DM$144","v":61}]
[]
[null,null,null,"Monthly Costs 35% or More of HH Income",{"$f":"CntyDataLinkPrior10YearEstimate!$BT$144","v":245},{"$f":"CntyDataLinkPrior10YearEstimate!$BU$144","v":89.280456988077745},null,"NA","NA","NA","NA","NA","NA","NA","NA","NA","NA"]
[null,null,null,"Monthly Costs 50% or More of HH Income",{"$f":"CntyDataLinkPrior10YearEstimate!$BV$144","v":111},{"$f":"CntyDataLinkPrior10YearEstimate!$BW$144","v":58.796258384356399},null,"NA","NA","NA","NA","NA","NA","NA","NA","NA","NA"]
[null,null,null,"Percent not computed",{"$f":"CntyDataLinkPrior10YearEstimate!$BX$144","v":0},{"$f":"CntyDataLinkPrior10YearEstimate!$BY$144","v":120.20815280171308},null,"NA","NA","NA","NA","NA","NA","NA","NA","NA","NA"]
[]
[null,null,null,"Percent of Owner Households Paying ",null,null,null,"By Household Income"]
[null,null,null,{"$f":"D53","v":"Monthly Costs Less Than 30% of HH Income"},{"$f":"E53/E$50","v":0.66604477611940294},null,null,{"$f":"H53/H$50","v":0},null,{"$f":"J53/J$50","v":0.53956834532374098},null,{"$f":"L53/L$50","v":0.67592592592592593},null,{"$f":"N53/N$50","v":0.6431535269709544},null,{"$f":"P53/P$50","v":0.82199999999999995}]
[null,null,null,{"$f":"D54","v":"Monthly Costs 30% or More of HH Income"},{"$f":"E54/E$50","v":0.33395522388059701},null,null,{"$f":"H54/H50","v":1},null,{"$f":"J54/J50","v":0.46043165467625902},null,{"$f":"L54/L50","v":0.32407407407407407},null,{"$f":"N54/N50","v":0.35684647302904565},null,{"$f":"P54/P50","v":0.17799999999999999}]
[]
[null,null,null,"Monthly Costs 35% or More of HH Income",{"$f":"E56/E$50","v":0.22854477611940299},null,null,"NA","NA","NA","NA","NA","NA","NA","NA","NA","NA"]
[null,null,null,"Monthly Costs 50% or More of HH Income",{"$f":"E57/E$50","v":0.10354477611940298},null,null,"NA","NA","NA","NA","NA","NA","NA","NA","NA","NA"]
[null,null,null,"Percent not computed",{"$f":"E58/$E$50","v":0},null,null,"NA","NA","NA","NA","NA","NA","NA","NA","NA","NA"]
[]
[null,null,"H62ROHUGRent200to249",{"$f":"D37","v":"Income in 2012 Inflation Adjusted Dollars"}]
[null,null,null,"Source: 2008-2012 American Community Survey Table B25091; B25106",null,null,null,null,"NA indicates that the American Community Survey does not provide that data."]
[null,null,null,"Data from the American Community Survey are estimates."]
[]
[null,null,null,{"$f":"D2","v":"Allenstown"}]
[null,null,"H62ROHUGRent250to299",{"$f":"D3","v":"OWNER HOUSING COST CHARACTERISTICS"}]
[null,null,"H62ROHUGRent300to349"]
[null,null,"H62ROHUGRent350to399","Value of Owner Occupied Housing Units"]
[null,null,"H62ROHUGRent400to449"]
[null,null,"H62ROHUGRent450to499","Owner Occupied Housing Units",{"$f":"CntyDataLinkPrior10YearEstimate!$B$144","v":1072},{"$f":"CntyDataLinkPrior10YearEstimate!$C$144","v":170}]
[null,null,"H62ROHUGRent500to549"]
[null,null,"H62ROHUGRent550to599","Value","Housing Units","Margin of Error"]
[null,null,"H62ROHUGRent600to649","Less than $10,000",{"$f":"CntyDataLinkPrior10YearEstimate!$D$144","v":24},{"$f":"CntyDataLinkPrior10YearEstimate!$E$144","v":28}]
[null,null,"H62ROHUGRent650to699","$10,000 to $14,999",{"$f":"CntyDataLinkPrior10YearEstimate!$F$144","v":23},{"$f":"CntyDataLinkPrior10YearEstimate!$G$144","v":28}]
[null,null,"H62ROHUGRent700to749","$15,000 to $19,999",{"$f":"CntyDataLinkPrior10YearEstimate!$H$144","v":50},{"$f":"CntyDataLinkPrior10YearEstimate!$I$144","v":44}]
[null,null,"H62ROHUGRent750to799","$20,000 to $24,999",{"$f":"CntyDataLinkPrior10YearEstimate!$J$144","v":23},{"$f":"CntyDataLinkPrior10YearEstimate!$K$144","v":28}]
[null,null,"H62ROHUGRent800to899","$25,000 to $29,999",{"$f":"CntyDataLinkPrior10YearEstimate!$L$144","v":84},{"$f":"CntyDataLinkPrior10YearEstimate!$M$144","v":66}]
[null,null,"H62ROHUGRent900to999","$30,000 to $34,999",{"$f":"CntyDataLinkPrior10YearEstimate!$N$144","v":44},{"$f":"CntyDataLinkPrior10YearEstimate!$O$144","v":38}]
[null,null,"H62ROHUGRent1000to1249","$35,000 to $39,999",{"$f":"CntyDataLinkPrior10YearEstimate!$P$144","v":28},{"$f":"CntyDataLinkPrior10YearEstimate!$Q$144","v":32}]
[null,null,"H62ROHUGRent1250to1499","$40,000 to $49,999",{"$f":"CntyDataLinkPrior10YearEstimate!$R$144","v":22},{"$f":"CntyDataLinkPrior10YearEstimate!$S$144","v":27}]
[null,null,"H62ROHUGRent1500to1999","$50,000 to $59,999",{"$f":"CntyDataLinkPrior10YearEstimate!$T$144","v":9},{"$f":"CntyDataLinkPrior10YearEstimate!$U$144","v":14}]
[null,null,"H62ROHUGRent2000>","$60,000 to $69,999",{"$f":"CntyDataLinkPrior10YearEstimate!$V$144","v":0},{"$f":"CntyDataLinkPrior10YearEstimate!$W$144","v":85}]
[null,null,"H62ROHUNoGRent","$70,000 to $79,999",{"$f":"CntyDataLinkPrior10YearEstimate!$X$144","v":0},{"$f":"CntyDataLinkPrior10YearEstimate!$Y$144","v":85}]
[null,null,"H63MedianGrossRnt","$80,000 to $89,999",{"$f":"CntyDataLinkPrior10YearEstimate!$Z$144","v":70},{"$f":"CntyDataLinkPrior10YearEstimate!$AA$144","v":61}]
[null,null,null,"$90,000 to $99,999",{"$f":"CntyDataLinkPrior10YearEstimate!$AB$144","v":10},{"$f":"CntyDataLinkPrior10YearEstimate!$AC$144","v":18}]
[null,null,null,"$100,000 to $124,999",{"$f":"CntyDataLinkPrior10YearEstimate!$AD$144","v":72},{"$f":"CntyDataLinkPrior10YearEstimate!$AE$144","v":50}]
[null,null,null,"$125,000 to $149,999",{"$f":"CntyDataLinkPrior10YearEstimate!$AF$144","v":74},{"$f":"CntyDataLinkPrior10YearEstimate!$AG$144","v":53}]
[null,null,null,"$150,000 to $174,999",{"$f":"CntyDataLinkPrior10YearEstimate!$AH$144","v":98},{"$f":"CntyDataLinkPrior10YearEstimate!$AI$144","v":76}]
[null,null,null,"$175,000 to $199,999",{"$f":"CntyDataLinkPrior10YearEstimate!$AJ$144","v":62},{"$f":"CntyDataLinkPrior10YearEstimate!$AK$144","v":41}]
[null,null,null,"$200,000 to $249,999",{"$f":"CntyDataLinkPrior10YearEstimate!$AL$144","v":162},{"$f":"CntyDataLinkPrior10YearEstimate!$AM$144","v":75}]
[null,null,null,"$250,000 to $299,999",{"$f":"CntyDataLinkPrior10YearEstimate!$AN$144","v":143},{"$f":"CntyDataLinkPrior10YearEstimate!$AO$144","v":77}]
[null,null,null,"$300,000 to $399,999",{"$f":"CntyDataLinkPrior10YearEstimate!$AP$144","v":63},{"$f":"CntyDataLinkPrior10YearEstimate!$AQ$144","v":62}]
[null,null,null,"$400,000 to $499,999",{"$f":"CntyDataLinkPrior10YearEstimate!$AR$144","v":0},{"$f":"CntyDataLinkPrior10YearEstimate!$AS$144","v":85}]
[null,null,null,"$500,000 to $749,999",{"$f":"CntyDataLinkPrior10YearEstimate!$AT$144","v":11},{"$f":"CntyDataLinkPrior10YearEstimate!$AU$144","v":18}]
[null,null,null,"$750,000 to $999,999",{"$f":"CntyDataLinkPrior10YearEstimate!$AV$144","v":0},{"$f":"CntyDataLinkPrior10YearEstimate!$AW$144","v":85}]
[null,null,null,"$1,000,000 to $1,499,999",{"$f":"CntyDataLinkPrior10YearEstimate!$AX$144","v":0},{"$f":"CntyDataLinkPrior10YearEstimate!$AY$144","v":85}]
[null,null,null,"$1,500,000 to $1,999,999",{"$f":"CntyDataLinkPrior10YearEstimate!$AZ$144","v":0},{"$f":"CntyDataLinkPrior10YearEstimate!$BA$144","v":0}]
[null,null,null,"$2,000,000 or more",{"$f":"CntyDataLinkPrior10YearEstimate!$BB$144","v":0},{"$f":"CntyDataLinkPrior10YearEstimate!$BC$144","v":0}]
[]
[null,null,null,"Median Value",{"$f":"CntyDataLinkPrior10YearEstimate!$BD$144","v":150800},{"$f":"CntyDataLinkPrior10YearEstimate!$BE$144","v":28841}]
[]
[]
[]
[null,null,null,"Source: 2013-2017 American Community Survey Tables B25075 and B25077"]
[null,null,null,"Data from the American Community Survey are estimates."]

{"sheet":"ACS_Table_B25075_&_B25077","index":63,"n_rows":160,"n_cols":56,"rows_kept":160,"cut":false,"hidden":true,"merged":[]}
[null,"B25075. VALUE"]
[null,"Universe:  OWNER-OCCUPIED HOUSING UNITS"]
[null,"Data Set: 2018-2022 American Community Survey 5-Year Estimates"]
[]
[null,null,"Allenstown",null,"Andover",null,"Boscawen",null,"Bow",null,"Bradford",null,"Canterbury",null,"Chichester",null,"Concord",null,"Danbury",null,"Dunbarton",null,"Epsom",null,"Franklin",null,"Henniker",null,"Hill",null,"Hooksett",null,"Hopkinton",null,"Loudon",null,"Newbury",null,"New London",null,"Northfield",null,"Pembroke",null,"Pittsfield",null,"Salisbury",null,"Sutton",null,"Warner",null,"Webster",null,"Wilmot"]
[null,null,"Estimate","Margin of Error","Estimate","Margin of Error","Estimate","Margin of Error","Estimate","Margin of Error","Estimate","Margin of Error","Estimate","Margin of Error","Estimate","Margin of Error","Estimate","Margin of Error","Estimate","Margin of Error","Estimate","Margin of Error","Estimate","Margin of Error","Estimate","Margin of Error","Estimate","Margin of Error","Estimate","Margin of Error","Estimate","Margin of Error","Estimate","Margin of Error","Estimate","Margin of Error","Estimate","Margin of Error","Estimate","Margin of Error","Estimate","Margin of Error","Estimate","Margin of Error","Estimate","Margin of Error","Estimate","Margin of Error","Estimate","Margin of Error","Estimate","Margin of Error","Estimate","Margin of Error","Estimate","Margin of Error"]
[null,"Total:",1439,167,794,120,1056,125,2630,153,564,66,865,95,939,81,10275,455,625,114,1018,88,1640,126,2308,311,1545,230,298,49,4044,282,1912,206,1957,195,653,97,1485,137,1410,135,1997,205,1221,146,600,122,808,150,824,76,758,99,488,77]
[null,"Less than $10,000",39,38,0,12,17,19,0,17,0,12,24,22,9,12,90,59,8,8,0,12,8,13,7,12,0,17,4,5,49,49,35,42,50,50,0,12,9,14,0,12,44,41,0,12,0,12,0,12,6,9,11,14,0,12]
[null,"$10,000 to $14,999",39,35,0,12,25,30,0,17,0,12,0,12,0,12,36,42,4,5,0,12,0,12,0,17,0,17,0,12,15,24,0,17,0,17,0,12,0,12,0,12,0,17,11,18,5,7,0,12,5,8,0,12,0,12]
[null,"$15,000 to $19,999",69,56,0,12,0,12,0,17,0,12,0,12,12,19,20,19,0,12,0,12,9,15,0,17,0,17,0,12,41,43,0,17,0,17,0,12,0,12,5,8,11,18,10,18,0,12,0,12,4,6,0,12,0,12]
[null,"$20,000 to $24,999",34,44,4,7,0,12,0,17,0,12,0,12,0,12,52,41,6,6,0,12,11,17,16,18,0,17,3,5,10,15,0,17,0,17,0,12,0,12,29,27,12,19,0,12,0,12,8,12,16,12,0,12,0,12]
[null,"$25,000 to $29,999",35,33,4,6,0,12,0,17,0,12,0,12,0,12,40,45,3,5,0,12,45,33,15,17,9,15,4,5,13,22,0,17,0,17,4,6,0,12,0,12,0,17,0,12,5,6,0,12,10,14,0,12,0,12]
[null,"$30,000 to $34,999",16,19,6,10,0,12,0,17,0,12,0,12,3,6,73,54,0,12,0,12,0,12,7,11,16,18,7,10,8,13,0,17,0,17,0,12,0,12,0,12,0,17,14,22,1,2,0,12,30,39,0,12,0,12]
[null,"$35,000 to $39,999",0,12,0,12,0,12,0,17,0,12,0,12,0,12,30,24,7,11,0,12,13,21,0,17,0,17,0,12,0,19,12,21,0,17,0,12,0,12,0,12,0,17,32,30,0,12,24,24,0,12,0,12,0,12]
[null,"$40,000 to $49,999",44,26,9,10,45,36,12,18,0,12,0,12,0,12,92,69,14,18,0,12,28,21,17,22,0,17,4,4,4,7,13,22,0,17,0,12,11,18,6,10,0,17,0,12,4,6,0,12,0,12,0,12,0,12]
[null,"$50,000 to $59,999",65,52,0,12,0,12,0,17,0,12,6,10,0,12,170,121,39,37,0,12,47,49,9,15,13,21,11,11,6,10,0,17,0,17,0,12,0,12,6,10,58,91,0,12,0,12,0,12,0,12,23,38,0,12]
[null,"$60,000 to $69,999",0,12,0,12,13,19,0,17,0,12,0,12,0,12,41,31,0,12,0,12,0,12,0,17,0,17,0,12,41,46,0,17,41,65,0,12,0,12,12,19,0,17,0,12,0,12,0,12,0,12,0,12,0,12]
[null,"$70,000 to $79,999",172,110,0,12,30,29,0,17,18,19,0,12,0,12,91,66,9,15,0,12,41,48,0,17,0,17,0,12,79,117,0,17,14,22,0,12,0,12,0,12,14,22,0,12,0,12,4,6,12,18,0,12,0,12]
[null,"$80,000 to $89,999",11,17,0,12,0,12,0,17,22,21,0,12,0,12,93,49,13,16,0,12,34,27,41,34,10,16,0,12,34,32,83,72,171,239,0,12,0,12,11,18,0,17,0,12,0,12,0,12,4,7,3,4,3,4]
[null,"$90,000 to $99,999",99,93,5,9,0,12,0,17,13,16,4,7,0,12,23,21,4,5,0,12,8,14,0,17,0,17,2,5,81,77,28,45,23,38,0,12,19,26,9,14,0,17,0,12,0,12,0,12,0,12,0,12,0,12]
[null,"$100,000 to $124,999",52,52,0,12,0,12,0,17,24,40,8,11,64,61,118,62,79,77,0,12,15,25,75,55,30,36,2,4,107,61,41,60,88,91,0,12,0,12,58,42,20,33,116,89,7,12,0,12,6,9,2,3,10,15]
[null,"$125,000 to $149,999",8,12,30,30,74,72,0,17,2,5,36,31,0,12,276,136,29,23,4,6,17,21,155,59,51,70,0,12,25,23,27,44,138,112,0,12,42,56,97,62,26,34,66,55,15,19,10,13,19,14,12,9,0,12]
[null,"$150,000 to $174,999",33,35,44,34,14,21,22,27,51,31,8,8,30,20,357,116,87,50,55,45,44,48,186,96,22,25,53,29,37,39,25,30,18,30,5,7,16,23,178,84,67,66,75,44,87,91,46,37,33,31,10,12,25,20]
[null,"$175,000 to $199,999",46,34,27,16,19,22,0,17,24,17,33,28,47,32,534,137,29,18,8,10,33,27,229,97,9,16,19,11,135,79,23,27,104,84,21,15,8,13,156,87,49,41,133,83,3,5,4,7,39,34,40,29,21,19]
[null,"$200,000 to $249,999",113,56,147,99,245,100,79,45,126,35,130,63,54,29,1809,372,104,36,53,28,215,97,587,252,442,218,68,25,539,155,147,98,141,112,40,21,214,92,200,88,177,90,173,89,99,33,70,31,93,35,182,71,72,28]
[null,"$250,000 to $299,999",209,97,106,47,242,84,322,143,35,14,60,29,108,38,1587,256,42,21,50,20,340,101,472,148,377,120,56,26,429,135,302,128,298,140,104,38,125,61,218,88,381,154,244,96,142,47,298,137,123,36,162,58,96,47]
[null,"$300,000 to $399,999",212,91,205,69,161,73,867,150,116,35,194,64,339,86,2273,287,93,36,311,93,520,131,364,198,296,120,24,13,1033,153,283,146,480,180,140,44,205,92,330,132,590,192,177,71,141,94,142,77,277,64,178,41,110,36]
[null,"$400,000 to $499,999",123,85,107,41,106,55,689,133,77,30,238,67,146,57,1286,210,18,12,251,91,115,57,54,37,102,87,18,14,671,142,386,152,278,128,181,61,189,83,95,57,360,136,65,42,52,24,112,42,44,24,89,33,57,23]
[null,"$500,000 to $749,999",9,15,73,37,52,34,562,131,32,20,86,36,98,35,1058,298,27,19,228,69,97,53,39,34,93,73,23,18,601,184,424,152,113,76,104,60,364,92,0,12,127,71,65,55,39,22,42,23,81,34,23,13,78,33]
[null,"$750,000 to $999,999",11,17,13,14,0,12,46,34,11,9,38,22,0,12,99,64,7,5,50,24,0,12,20,24,75,76,0,12,20,27,83,71,0,17,43,28,154,64,0,12,61,45,40,55,0,12,5,7,4,6,17,28,7,7]
[null,"$1,000,000 to $1,499,999",0,12,0,12,13,21,12,21,6,6,0,12,0,12,14,24,3,5,8,9,0,12,0,17,0,17,0,12,66,45,0,17,0,17,5,7,72,99,0,12,0,17,0,12,0,12,33,28,18,25,6,6,9,12]
[null,"$1,500,000 to $1,999,999",0,12,0,12,0,12,0,17,0,12,0,12,13,18,6,9,0,12,0,12,0,12,5,9,0,17,0,12,0,19,0,17,0,17,0,12,40,29,0,12,0,17,0,12,0,12,4,7,0,12,0,12,0,12]
[null,"$2,000,000 or more",0,12,14,22,0,12,19,22,7,7,0,12,16,22,7,13,0,12,0,12,0,12,10,15,0,17,0,12,0,19,0,17,0,17,6,8,17,19,0,12,0,17,0,12,0,12,6,9,0,12,0,12,0,12]
[]
[]
[null,"B25077. MEDIAN VALUE (Dollars)"]
[null,"Universe:  OWNER-OCCUPIED HOUSING UNITS"]
[null,"Data Set: 2018-2022 American Community Survey 5-Year Estimates"]
[]
[null,null,"Allenstown",null,"Andover",null,"Boscawen",null,"Bow",null,"Bradford",null,"Canterbury",null,"Chichester",null,"Concord",null,"Danbury",null,"Dunbarton",null,"Epsom",null,"Franklin",null,"Henniker",null,"Hill",null,"Hooksett",null,"Hopkinton",null,"Loudon",null,"Newbury",null,"New London",null,"Northfield",null,"Pembroke",null,"Pittsfield",null,"Salisbury",null,"Sutton",null,"Warner",null,"Webster",null,"Wilmot"]
[null,null,"Estimate","Margin of Error","Estimate","Margin of Error","Estimate","Margin of Error","Estimate","Margin of Error","Estimate","Margin of Error","Estimate","Margin of Error","Estimate","Margin of Error","Estimate","Margin of Error","Estimate","Margin of Error","Estimate","Margin of Error","Estimate","Margin of Error","Estimate","Margin of Error","Estimate","Margin of Error","Estimate","Margin of Error","Estimate","Margin of Error","Estimate","Margin of Error","Estimate","Margin of Error","Estimate","Margin of Error","Estimate","Margin of Error","Estimate","Margin of Error","Estimate","Margin of Error","Estimate","Margin of Error","Estimate","Margin of Error","Estimate","Margin of Error","Estimate","Margin of Error","Estimate","Margin of Error","Estimate","Margin of Error"]
[]
[null,"Median value (dollars)",176900,82429,307300,37957,259500,19699,401900,21182,252900,51189,363700,27829,342000,15267,287600,10758,184100,40592,411200,30404,287100,15132,233800,14694,272600,21643,229400,20895,335700,17082,377700,51337,282000,34119,406900,35159,449500,67244,234500,32204,323600,30829,244400,29123,276100,23974,289900,16060,304300,20665,279600,17436,315500,31963]
[]
[]
[]
[]
[]
[]
[]
[]
[]
[]
[]
[]
[]
[]
[]
[]
[]
[]
[]
[]
[]
[]
[]
[]
[]
[]
[null,"B25075. VALUE"]
[null,"Universe:  OWNER-OCCUPIED HOUSING UNITS"]
[null,"Data Set: 2013-2017 American Community Survey 5-Year Estimates"]
[]
[null,null,"Allenstown",null,"Andover",null,"Boscawen",null,"Bow",null,"Bradford",null,"Canterbury",null,"Chichester",null,"Concord",null,"Danbury",null,"Dunbarton",null,"Epsom",null,"Franklin",null,"Henniker",null,"Hill",null,"Hooksett",null,"Hopkinton",null,"Loudon",null,"Newbury",null,"New London",null,"Northfield",null,"Pembroke",null,"Pittsfield",null,"Salisbury",null,"Sutton",null,"Warner",null,"Webster",null,"Wilmot"]
[null,null,"Estimate","Margin Of Error","Estimate","Margin Of Error","Estimate","Margin Of Error","Estimate","Margin Of Error","Estimate","Margin Of Error","Estimate","Margin Of Error","Estimate","Margin Of Error","Estimate","Margin Of Error","Estimate","Margin Of Error","Estimate","Margin Of Error","Estimate","Margin Of Error","Estimate","Margin Of Error","Estimate","Margin Of Error","Estimate","Margin Of Error","Estimate","Margin Of Error","Estimate","Margin Of Error","Estimate","Margin Of Error","Estimate","Margin Of Error","Estimate","Margin Of Error","Estimate","Margin Of Error","Estimate","Margin Of Error","Estimate","Margin Of Error","Estimate","Margin Of Error","Estimate","Margin Of Error","Estimate","Margin Of Error","Estimate","Margin Of Error","Estimate","Margin Of Error"]
[null,"Total:",1223,125,914,83,856,140,2501,111,584,82,846,67,903,62,9069,391,487,62,922,51,1419,117,1974,176,1168,141,366,46,4146,207,1822,132,1745,167,773,92,1267,123,1311,101,1881,195,921,128,503,61,667,99,783,85,685,54,509,63]
[null,"Less than $10,000",49,30,0,11,7,11,11,16,2,5,0,11,11,11,162,83,0,11,0,11,8,12,16,20,7,11,3,4,42,42,13,22,21,26,11,11,27,26,0,11,16,28,9,14,0,11,3,6,5,7,9,7,3,4]
[null,"$10,000 to $14,999",33,39,6,9,7,12,8,12,0,11,0,11,0,11,146,71,10,17,0,11,10,15,39,32,0,11,3,4,0,17,0,15,35,40,0,11,0,11,28,25,0,15,0,11,5,7,0,11,0,11,0,11,0,11]
[null,"$15,000 to $19,999",61,50,0,11,24,21,0,15,0,11,0,11,28,39,97,45,0,11,0,11,39,26,0,15,0,11,13,15,14,22,0,15,0,15,0,11,0,11,13,19,17,26,7,12,0,11,3,4,3,6,0,11,0,11]
[null,"$20,000 to $24,999",31,25,0,11,46,42,0,15,3,5,0,11,0,11,80,38,0,11,10,10,56,47,8,13,0,11,0,11,39,29,15,24,0,15,0,11,0,11,0,11,28,30,0,11,0,11,0,11,0,11,3,5,0,11]
[null,"$25,000 to $29,999",39,31,0,11,8,13,0,15,4,6,0,11,5,8,71,35,0,11,0,11,26,24,8,13,0,11,0,11,10,17,0,15,0,15,0,11,0,11,11,18,15,27,0,11,0,11,0,11,4,6,0,11,0,11]
[null,"$30,000 to $34,999",28,22,0,11,0,11,0,15,0,11,0,11,5,7,87,56,0,11,0,11,0,11,8,13,0,11,0,11,38,31,0,15,15,24,6,9,0,11,10,16,0,15,0,11,0,11,0,11,0,11,0,11,0,11]
[null,"$35,000 to $39,999",32,41,6,9,7,13,7,12,0,11,0,11,0,11,30,23,0,11,0,11,16,18,28,26,0,11,0,11,28,43,0,15,0,15,0,11,0,11,0,11,0,15,8,12,0,11,0,11,0,11,3,5,0,11]
[null,"$40,000 to $49,999",50,36,5,7,36,41,0,15,4,7,5,10,0,11,97,45,0,11,0,11,0,11,0,15,6,10,0,11,5,9,12,19,7,10,0,11,0,11,7,10,0,15,4,9,0,11,0,11,5,7,0,11,0,11]
[null,"$50,000 to $59,999",55,46,0,11,61,45,8,13,0,11,6,9,0,11,67,41,12,19,0,11,36,50,13,20,11,18,0,11,29,28,29,33,11,20,7,10,0,11,44,46,0,15,10,15,3,5,0,11,0,11,6,7,3,4]
[null,"$60,000 to $69,999",36,30,0,11,7,10,0,15,0,11,0,11,0,11,121,61,0,11,0,11,9,14,12,16,0,11,5,5,34,33,85,69,52,93,0,11,0,11,17,20,0,15,13,15,0,11,0,11,6,8,0,11,0,11]
[null,"$70,000 to $79,999",44,28,6,8,8,13,0,15,9,16,5,7,0,11,51,32,5,6,16,14,22,23,9,14,0,11,3,5,84,72,13,19,116,93,0,11,0,11,10,16,28,33,35,26,4,6,0,11,0,11,0,11,0,11]
[null,"$80,000 to $89,999",24,25,0,11,7,10,0,15,7,7,5,8,17,26,150,80,3,5,0,11,17,18,52,43,0,11,24,18,37,31,0,15,13,21,5,7,0,11,11,17,18,28,7,11,0,11,0,11,18,22,5,6,0,11]
[null,"$90,000 to $99,999",25,25,0,11,0,11,0,15,8,8,0,11,0,11,112,60,10,8,11,11,21,34,67,41,21,34,14,13,15,17,23,19,0,15,7,10,0,11,14,22,0,15,0,11,4,6,5,7,3,5,3,4,3,4]
[null,"$100,000 to $124,999",23,22,70,40,8,15,0,15,22,19,5,8,13,14,455,116,87,33,14,13,24,22,313,123,23,26,23,14,48,30,21,34,144,87,0,11,56,39,158,56,79,58,143,73,21,19,21,18,20,21,14,9,11,8]
[null,"$125,000 to $149,999",57,32,121,55,63,50,11,17,44,23,36,23,0,11,558,129,70,33,29,19,78,73,207,74,32,30,22,18,51,32,67,80,0,15,26,21,26,23,114,46,56,47,77,49,42,26,45,27,11,12,36,19,11,10]
[null,"$150,000 to $174,999",131,58,90,42,109,48,39,31,49,24,77,38,72,31,916,170,73,25,18,13,169,71,510,135,63,46,41,21,373,128,58,58,95,68,33,22,85,48,163,74,173,95,101,46,88,36,52,31,97,39,84,28,32,19]
[null,"$175,000 to $199,999",110,40,128,45,81,54,114,53,43,18,65,37,83,36,1191,199,44,20,24,14,172,69,224,83,204,93,51,24,554,136,222,88,87,52,79,41,11,13,192,70,221,91,155,64,84,37,87,37,109,42,106,35,53,30]
[null,"$200,000 to $249,999",257,99,156,51,221,96,320,84,135,35,170,53,192,47,1560,190,106,38,138,37,315,90,188,75,341,104,79,27,918,175,251,106,435,134,120,48,122,46,311,96,650,162,119,53,92,29,81,39,134,37,134,28,107,39]
[null,"$250,000 to $299,999",93,61,100,40,72,62,732,112,81,27,202,55,255,61,1501,230,18,19,265,57,189,60,129,54,185,83,44,23,574,145,371,120,270,97,177,47,177,72,137,66,276,89,122,71,93,35,146,51,149,42,117,32,78,27]
[null,"$300,000 to $399,999",37,27,128,49,63,45,751,108,135,48,193,44,165,52,1007,181,11,9,251,59,144,79,117,56,155,61,28,12,1054,171,484,120,322,119,122,50,271,67,45,47,193,82,86,44,43,21,125,48,98,34,143,45,96,31]
[null,"$400,000 to $499,999",0,11,47,25,7,12,338,94,25,15,33,21,37,20,298,96,31,17,92,33,24,21,18,20,23,19,6,6,132,65,43,44,92,76,63,32,196,67,0,11,26,26,7,12,16,11,55,35,64,35,15,11,37,21]
[null,"$500,000 to $749,999",0,11,45,25,14,23,110,51,4,6,24,17,6,10,178,65,7,7,49,25,10,15,8,12,81,50,4,5,50,43,97,73,0,15,46,23,200,72,20,21,29,30,18,19,8,8,34,21,57,43,3,4,51,31]
[null,"$750,000 to $999,999",0,11,0,11,0,11,52,32,3,5,16,14,8,11,99,52,0,11,0,11,11,17,0,15,0,11,0,11,6,10,0,15,14,22,54,36,25,22,0,11,43,38,0,11,0,11,10,15,0,11,4,5,13,10]
[null,"$1,000,000 to $1,499,999",0,11,0,11,0,11,0,15,6,8,4,8,6,9,19,21,0,11,0,11,0,11,0,15,16,24,0,11,0,17,0,15,0,15,11,10,19,18,0,11,0,15,0,11,0,11,0,11,0,11,0,11,11,9]
[null,"$1,500,000 to $1,999,999",0,11,6,8,0,11,0,15,0,11,0,11,0,11,0,23,0,11,0,11,14,15,0,15,0,11,0,11,0,17,0,15,0,15,0,11,16,17,0,11,0,15,0,11,0,11,0,11,0,11,0,11,0,11]
[null,"$2,000,000 or more",8,13,0,11,0,11,0,15,0,11,0,11,0,11,16,18,0,11,5,8,9,15,0,15,0,11,3,5,11,18,18,29,16,26,6,10,36,23,6,9,13,21,0,11,0,11,0,11,0,11,0,11,0,11]
[]
[]
[null,"B25077. MEDIAN VALUE (Dollars)"]
[null,"Universe:  OWNER-OCCUPIED HOUSING UNITS"]
[null,"Data Set: 2013-2017 American Community Survey 5-Year Estimates"]
[]
[null,null,"Allenstown",null,"Andover",null,"Boscawen",null,"Bow",null,"Bradford",null,"Canterbury",null,"Chichester",null,"Concord",null,"Danbury",null,"Dunbarton",null,"Epsom",null,"Franklin",null,"Henniker",null,"Hill",null,"Hooksett",null,"Hopkinton",null,"Loudon",null,"Newbury",null,"New London",null,"Northfield",null,"Pembroke",null,"Pittsfield",null,"Salisbury",null,"Sutton",null,"Warner",null,"Webster",null,"Wilmot"]
[null,null,"Estimate","Margin Of Error","Estimate","Margin Of Error","Estimate","Margin Of Error","Estimate","Margin Of Error","Estimate","Margin Of Error","Estimate","Margin Of Error","Estimate","Margin Of Error","Estimate","Margin Of Error","Estimate","Margin Of Error","Estimate","Margin Of Error","Estimate","Margin Of Error","Estimate","Margin Of Error","Estimate","Margin Of Error","Estimate","Margin Of Error","Estimate","Margin Of Error","Estimate","Margin Of Error","Estimate","Margin Of Error","Estimate","Margin Of Error","Estimate","Margin Of Error","Estimate","Margin Of Error","Estimate","Margin Of Error","Estimate","Margin Of Error","Estimate","Margin Of Error","Estimate","Margin Of Error","Estimate","Margin Of Error","Estimate","Margin Of Error","Estimate","Margin Of Error"]
[]
[null,"Median value (dollars)",154700,20346,208000,20875,184300,24633,300100,11502,235900,14268,262100,13065,255000,11627,204600,6674,165900,13652,287900,8247,201000,14936,160100,5219,231800,14343,190700,14748,236600,9013,263700,17305,231800,15605,276100,15182,347800,30051,182200,11338,222300,8685,182500,12693,200300,20085,262500,15815,241200,18494,227400,15500,270200,24002]
[]
[]
[]
[]
[]
[null,"B25075. VALUE"]
[null,"Universe:  OWNER-OCCUPIED HOUSING UNITS"]
[null,"Data Set: 2008-2012 American Community Survey 5-Year Estimates"]
[]
[null,null,"Allenstown",null,"Andover",null,"Boscawen",null,"Bow",null,"Bradford",null,"Canterbury",null,"Chichester",null,"Concord",null,"Danbury",null,"Dunbarton",null,"Epsom",null,"Franklin",null,"Henniker",null,"Hill",null,"Hooksett",null,"Hopkinton",null,"Loudon",null,"Newbury",null,"New London",null,"Northfield",null,"Pembroke",null,"Pittsfield",null,"Salisbury",null,"Sutton",null,"Warner",null,"Webster",null,"Wilmot"]
[null,null,"Estimate","Margin Of Error","Estimate","Margin Of Error","Estimate","Margin Of Error","Estimate","Margin Of Error","Estimate","Margin Of Error","Estimate","Margin Of Error","Estimate","Margin Of Error","Estimate","Margin Of Error","Estimate","Margin Of Error","Estimate","Margin Of Error","Estimate","Margin Of Error","Estimate","Margin Of Error","Estimate","Margin Of Error","Estimate","Margin Of Error","Estimate","Margin Of Error","Estimate","Margin Of Error","Estimate","Margin Of Error","Estimate","Margin Of Error","Estimate","Margin Of Error","Estimate","Margin Of Error","Estimate","Margin Of Error","Estimate","Margin Of Error","Estimate","Margin Of Error","Estimate","Margin Of Error","Estimate","Margin Of Error","Estimate","Margin Of Error","Estimate","Margin Of Error"]
[null,"Total:",1072,170,814,100,1099,162,2322,112,506,65,886,56,889,57,9978,412,353,60,917,71,1485,117,2094,202,1113,134,407,51,4085,210,2169,174,1662,141,794,84,1393,147,1390,186,2150,206,1079,118,472,61,573,75,879,75,659,63,485,65]
[null,"Less than $10,000",24,28,4,6,0,85,0,85,0,85,0,85,0,85,34,40,0,85,0,85,0,85,0,85,0,85,3,4,0,85,18,28,8,12,0,85,0,85,8,12,0,85,0,85,0,85,0,85,0,85,0,85,0,85]
[null,"$10,000 to $14,999",23,28,0,85,10,16,0,85,0,85,0,85,5,7,80,53,4,6,9,13,10,16,9,13,0,85,4,6,13,20,12,19,0,85,0,85,0,85,0,85,14,24,0,85,0,85,0,85,19,18,0,85,0,85]
[null,"$15,000 to $19,999",50,44,0,85,19,21,0,85,0,85,0,85,0,85,78,50,4,5,0,85,24,26,19,21,22,33,0,85,12,21,18,29,0,85,8,10,0,85,0,85,33,36,0,85,0,85,0,85,0,85,10,18,3,5]
[null,"$20,000 to $24,999",23,28,15,23,0,85,0,85,0,85,0,85,0,85,89,54,0,85,0,85,33,30,39,30,68,67,0,85,0,85,0,85,61,48,6,8,0,85,0,85,0,85,9,13,0,85,0,85,0,85,6,6,0,85]
[null,"$25,000 to $29,999",84,66,0,85,12,19,0,85,0,85,5,7,0,85,90,56,0,85,0,85,54,57,9,14,9,14,0,85,0,85,0,85,0,85,0,85,0,85,0,85,39,62,22,33,0,85,0,85,0,85,0,85,0,85]
[null,"$30,000 to $34,999",44,38,0,85,22,29,31,38,4,7,7,12,0,85,112,64,0,85,0,85,12,18,10,15,0,85,0,85,0,85,0,85,0,85,0,85,0,85,0,85,0,85,0,85,0,85,0,85,0,85,3,5,0,85]
[null,"$35,000 to $39,999",28,32,0,85,0,85,0,85,0,85,0,85,0,85,52,41,0,85,0,85,21,23,6,11,0,85,0,85,0,85,0,85,20,23,0,85,0,85,11,19,0,85,0,85,0,85,0,85,0,85,0,85,0,85]
[null,"$40,000 to $49,999",22,27,0,85,0,85,0,85,0,85,0,85,0,85,162,86,0,85,0,85,49,49,26,29,0,85,0,85,12,20,0,85,0,85,0,85,0,85,0,85,0,85,9,14,0,85,0,85,8,12,0,85,0,85]
[null,"$50,000 to $59,999",9,14,6,8,14,22,0,85,0,85,5,9,5,8,102,65,5,8,0,85,0,85,22,22,0,85,12,10,60,63,14,22,4,10,0,85,0,85,8,12,0,85,0,85,0,85,0,85,8,11,0,85,0,85]
[null,"$60,000 to $69,999",0,85,12,13,12,18,0,85,0,85,0,85,0,85,80,49,7,10,0,85,0,85,0,85,0,85,2,3,12,20,0,85,0,85,8,10,0,85,42,55,32,48,0,85,0,85,0,85,0,85,0,85,0,85]
[null,"$70,000 to $79,999",0,85,0,85,35,29,0,85,3,4,15,23,0,85,71,45,10,13,0,85,11,18,7,12,0,85,17,18,96,74,0,85,8,13,9,15,0,85,12,18,0,85,9,16,0,85,3,4,0,85,0,85,0,85]
[null,"$80,000 to $89,999",70,61,27,31,9,15,0,85,0,85,0,85,16,18,62,60,7,13,10,15,9,15,0,85,8,14,12,15,0,85,0,85,0,85,12,14,0,85,10,15,20,31,8,12,0,85,0,85,0,85,3,5,11,10]
[null,"$90,000 to $99,999",10,18,0,85,22,26,0,85,3,6,5,8,0,85,35,34,13,13,0,85,8,13,13,15,0,85,6,7,5,9,15,23,36,28,0,85,0,85,36,29,0,85,0,85,3,5,0,85,8,11,3,4,0,85]
[null,"$100,000 to $124,999",72,50,32,21,28,32,0,85,18,16,12,13,13,21,388,138,46,26,16,12,119,82,197,89,63,61,53,25,31,29,143,97,113,62,6,8,16,18,115,57,42,31,73,56,16,11,12,12,0,85,32,25,0,85]
[null,"$125,000 to $149,999",74,53,29,18,50,49,41,37,17,14,15,21,14,15,490,134,13,16,7,11,26,28,172,69,19,21,25,17,38,33,80,56,0,85,16,16,6,8,73,56,14,23,91,55,38,22,10,9,44,29,0,85,4,5]
[null,"$150,000 to $174,999",98,76,80,41,77,49,60,43,43,23,45,31,50,23,722,186,14,12,72,53,59,39,416,120,72,46,54,27,241,73,59,52,124,66,60,43,50,45,242,100,44,47,79,52,62,33,42,28,15,14,87,32,65,30]
[null,"$175,000 to $199,999",62,41,129,57,165,88,75,51,45,24,65,35,104,46,1027,189,49,26,32,25,104,60,257,86,80,51,74,28,370,116,117,59,131,43,36,18,26,20,188,72,310,96,75,47,25,15,61,35,95,42,70,29,9,14]
[null,"$200,000 to $249,999",162,75,128,55,274,92,349,113,124,39,211,65,204,60,2399,282,64,32,193,66,322,82,347,106,370,118,59,19,1077,201,285,92,381,102,144,57,164,61,260,79,684,140,338,92,156,43,91,40,164,58,188,44,82,35]
[null,"$250,000 to $299,999",143,77,186,69,186,86,466,121,92,35,184,66,180,60,1734,231,69,32,171,53,291,86,313,112,161,64,43,22,707,170,326,106,258,77,115,43,149,59,233,90,592,173,120,50,71,25,88,33,231,61,103,28,40,22]
[null,"$300,000 to $399,999",63,62,105,41,117,79,741,161,97,37,169,50,208,56,1403,192,27,19,279,67,308,87,107,61,198,106,30,20,1087,174,628,161,371,99,165,58,273,92,122,50,218,94,204,86,67,22,145,46,211,71,126,37,144,46]
[null,"$400,000 to $499,999",0,85,22,26,30,32,331,111,27,14,71,31,49,32,430,132,0,85,70,34,14,17,76,54,15,17,7,8,156,77,317,103,66,37,46,24,198,69,11,17,57,45,7,11,15,10,56,30,40,36,19,11,40,22]
[null,"$500,000 to $749,999",11,18,39,27,0,85,187,86,33,22,23,20,41,29,182,64,21,19,58,30,11,19,40,31,19,20,3,5,124,72,113,52,20,24,72,34,323,99,9,14,35,31,23,21,11,9,60,33,25,20,0,85,87,41]
[null,"$750,000 to $999,999",0,85,0,85,0,85,41,32,0,85,14,16,0,85,95,45,0,85,0,85,0,85,0,85,0,85,0,85,0,85,24,20,27,29,10,11,45,46,0,85,16,26,12,19,0,85,0,85,11,15,0,85,0,85]
[null,"$1,000,000 or more",0,85,0,85,17,27,0,85,0,85,40,24,0,85,61,51,0,85,0,85,0,85,9,15,9,15,3,5,44,35,0,85,34,27,81,49,143,65,10,17,0,85,0,85,8,13,5,8,0,85,9,9,0,85]
[null,"$1,500,000 to $1,999,999"]
[null,"$2,000,000 or more"]
[]
[]
[null,"B25077.MEDIAN VALUE (Dollars)"]
[null,"Universe:  OWNER-OCCUPIED HOUSING UNITS"]
[null,"Data Set: 2008-2012 American Community Survey 5-Year Estimates"]
[]
[null,null,"Allenstown",null,"Andover",null,"Boscawen",null,"Bow",null,"Bradford",null,"Canterbury",null,"Chichester",null,"Concord",null,"Danbury",null,"Dunbarton",null,"Epsom",null,"Franklin",null,"Henniker",null,"Hill",null,"Hooksett",null,"Hopkinton",null,"Loudon",null,"Newbury",null,"New London",null,"Northfield",null,"Pembroke",null,"Pittsfield",null,"Salisbury",null,"Sutton",null,"Warner",null,"Webster",null,"Wilmot"]
[null,null,"Estimate","Margin Of Error","Estimate","Margin Of Error","Estimate","Margin Of Error","Estimate","Margin Of Error","Estimate","Margin Of Error","Estimate","Margin Of Error","Estimate","Margin Of Error","Estimate","Margin Of Error","Estimate","Margin Of Error","Estimate","Margin Of Error","Estimate","Margin Of Error","Estimate","Margin Of Error","Estimate","Margin Of Error","Estimate","Margin Of Error","Estimate","Margin Of Error","Estimate","Margin Of Error","Estimate","Margin Of Error","Estimate","Margin Of Error","Estimate","Margin Of Error","Estimate","Margin Of Error","Estimate","Margin Of Error","Estimate","Margin Of Error","Estimate","Margin Of Error","Estimate","Margin Of Error","Estimate","Margin Of Error","Estimate","Margin Of Error","Estimate","Margin Of Error"]
[]
[null,"Median value (dollars)",150800,28841,228500,24753,213600,18118,318800,21782,248400,19229,265800,14508,259300,17832,227400,4216,203500,24371,284900,17780,231600,13289,184900,12248,229100,12629,180200,11320,255300,13451,299600,19901,242800,13531,290000,27491,406300,44361,193400,11405,238500,9662,224300,11755,229500,9756,288400,29108,267000,15154,230700,11580,319800,24264]

{"sheet":"ACS_Table_B25088","index":64,"n_rows":88,"n_cols":56,"rows_kept":88,"cut":false,"hidden":true,"merged":[]}
[null,"B25088. MEDIAN SELECTED MONTHLY OWNER COSTS (DOLLARS) BY MORTGAGE STATUS"]
[null,"Universe:  OWNER-OCCUPIED HOUSING UNITS"]
[null,"Data Set: 2018-2022 American Community Survey 5-Year Estimates"]
[]
[null,null,"Allenstown",null,"Andover",null,"Boscawen",null,"Bow",null,"Bradford",null,"Canterbury",null,"Chichester",null,"Concord",null,"Danbury",null,"Dunbarton",null,"Epsom",null,"Franklin",null,"Henniker",null,"Hill",null,"Hooksett",null,"Hopkinton",null,"Loudon",null,"Newbury",null,"New London",null,"Northfield",null,"Pembroke",null,"Pittsfield",null,"Salisbury",null,"Sutton",null,"Warner",null,"Webster",null,"Wilmot"]
[null,null,"Estimate","Margin Of Error","Estimate","Margin Of Error","Estimate","Margin Of Error","Estimate","Margin Of Error","Estimate","Margin Of Error","Estimate","Margin Of Error","Estimate","Margin Of Error","Estimate","Margin Of Error","Estimate","Margin Of Error","Estimate","Margin Of Error","Estimate","Margin Of Error","Estimate","Margin Of Error","Estimate","Margin Of Error","Estimate","Margin Of Error","Estimate","Margin Of Error","Estimate","Margin Of Error","Estimate","Margin Of Error","Estimate","Margin Of Error","Estimate","Margin Of Error","Estimate","Margin Of Error","Estimate","Margin Of Error","Estimate","Margin Of Error","Estimate","Margin Of Error","Estimate","Margin Of Error","Estimate","Margin Of Error","Estimate","Margin Of Error","Estimate","Margin Of Error"]
[]
[null,"Total:",1408,208,1472,145,1638,152,2232,160,1264,262,1579,391,1891,177,1747,97,886,180,2205,224,1747,152,1507,191,2163,441,1481,213,1709,155,1763,256,1213,262,1371,221,1819,283,1512,160,1718,273,1773,238,1382,316,1686,315,1516,168,1613,73,1923,297]
[null,"Housing units with a mortgage (dollars)",2075,189,1813,175,1969,251,2619,151,1860,212,2195,107,2259,227,2115,96,1523,221,2582,130,1983,107,1818,125,2630,354,1750,125,2219,203,2954,512,1968,133,1924,280,2382,162,1769,99,2145,113,2181,190,2078,163,2201,97,2047,161,1856,256,2271,183]
[null,"Housing units without a mortgage (dollars)",827,117,710,153,984,132,1155,105,877,118,1019,63,960,54,939,35,744,68,1015,135,864,79,746,27,977,87,803,84,996,74,1238,115,813,201,779,84,1181,114,696,150,1011,87,819,136,855,177,921,131,1055,57,785,76,948,85]
[]
[]
[]
[]
[]
[]
[]
[]
[]
[]
[]
[]
[]
[]
[]
[]
[]
[]
[]
[]
[]
[]
[]
[]
[]
[]
[]
[]
[]
[null,"B25088. MEDIAN SELECTED MONTHLY OWNER COSTS (DOLLARS) BY MORTGAGE STATUS"]
[null,"Universe:  OWNER-OCCUPIED HOUSING UNITS"]
[null,"Data Set: 2013-2017 American Community Survey 5-Year Estimates"]
[]
[null,null,"Allenstown",null,"Andover",null,"Boscawen",null,"Bow",null,"Bradford",null,"Canterbury",null,"Chichester",null,"Concord",null,"Danbury",null,"Dunbarton",null,"Epsom",null,"Franklin",null,"Henniker",null,"Hill",null,"Hooksett",null,"Hopkinton",null,"Loudon",null,"Newbury",null,"New London",null,"Northfield",null,"Pembroke",null,"Pittsfield",null,"Salisbury",null,"Sutton",null,"Warner",null,"Webster",null,"Wilmot"]
[null,null,"Estimate","Margin Of Error","Estimate","Margin Of Error","Estimate","Margin Of Error","Estimate","Margin Of Error","Estimate","Margin Of Error","Estimate","Margin Of Error","Estimate","Margin Of Error","Estimate","Margin Of Error","Estimate","Margin Of Error","Estimate","Margin Of Error","Estimate","Margin Of Error","Estimate","Margin Of Error","Estimate","Margin Of Error","Estimate","Margin Of Error","Estimate","Margin Of Error","Estimate","Margin Of Error","Estimate","Margin Of Error","Estimate","Margin Of Error","Estimate","Margin Of Error","Estimate","Margin Of Error","Estimate","Margin Of Error","Estimate","Margin Of Error","Estimate","Margin Of Error","Estimate","Margin Of Error","Estimate","Margin Of Error","Estimate","Margin Of Error","Estimate","Margin Of Error"]
[]
[null,"Total:",1150,132,1190,112,1296,342,1995,114,1170,138,1590,140,1636,198,1407,41,1039,158,1769,128,1379,145,1123,120,1628,148,1157,124,1633,141,1733,247,1298,145,1444,136,1419,96,1315,113,1639,156,1531,158,1418,150,1291,140,1587,93,1315,76,1528,143]
[null,"Housing units with a mortgage (dollars)",1700,97,1551,147,1771,153,2343,112,1559,140,1958,129,2020,132,1718,49,1399,90,2024,122,1802,107,1414,65,2021,142,1371,91,2084,100,2160,199,1652,157,1726,129,2115,273,1584,86,1873,96,1829,228,1616,112,1770,206,1806,113,1621,112,1822,156]
[null,"Housing units without a mortgage (dollars)",807,58,627,115,612,94,978,69,720,101,873,138,715,75,746,23,627,84,767,107,760,72,642,67,814,129,608,57,809,51,1039,165,765,117,684,109,1049,78,600,101,847,58,733,86,667,94,803,78,763,150,726,68,800,164]
[]
[]
[]
[]
[]
[]
[]
[]
[]
[]
[]
[]
[]
[]
[]
[]
[]
[]
[]
[]
[]
[]
[]
[]
[]
[]
[]
[]
[]
[null,"B25088. MEDIAN SELECTED MONTHLY OWNER COSTS (DOLLARS) BY MORTGAGE STATUS"]
[null,"Universe:  OWNER-OCCUPIED HOUSING UNITS"]
[null,"Data Set: 2008-2012 American Community Survey 5-Year Estimates"]
[]
[null,null,"Allenstown",null,"Andover",null,"Boscawen",null,"Bow",null,"Bradford",null,"Canterbury",null,"Chichester",null,"Concord",null,"Danbury",null,"Dunbarton",null,"Epsom",null,"Franklin",null,"Henniker",null,"Hill",null,"Hooksett",null,"Hopkinton",null,"Loudon",null,"Newbury",null,"New London",null,"Northfield",null,"Pembroke",null,"Pittsfield",null,"Salisbury",null,"Sutton",null,"Warner",null,"Webster",null,"Wilmot"]
[null,null,"Estimate","Margin Of Error","Estimate","Margin Of Error","Estimate","Margin Of Error","Estimate","Margin Of Error","Estimate","Margin Of Error","Estimate","Margin Of Error","Estimate","Margin Of Error","Estimate","Margin Of Error","Estimate","Margin Of Error","Estimate","Margin Of Error","Estimate","Margin Of Error","Estimate","Margin Of Error","Estimate","Margin Of Error","Estimate","Margin Of Error","Estimate","Margin Of Error","Estimate","Margin Of Error","Estimate","Margin Of Error","Estimate","Margin Of Error","Estimate","Margin Of Error","Estimate","Margin Of Error","Estimate","Margin Of Error","Estimate","Margin Of Error","Estimate","Margin Of Error","Estimate","Margin Of Error","Estimate","Margin Of Error","Estimate","Margin Of Error","Estimate","Margin Of Error"]
[null,"Median selected monthly owner costs (dollars)"]
[null,"Total:",1375,270,1198,166,1416,176,2143,158,1370,109,1517,161,1695,176,1556,64,1147,217,1904,128,1615,89,1320,141,1819,81,1248,178,1813,140,1530,230,1455,101,1624,161,1404,131,1330,117,1766,131,1911,217,1574,103,1599,115,1426,197,1433,108,1575,178]
[null,"Housing units with a mortgage (dollars)",1990,189,1537,134,1705,188,2427,145,1638,101,2034,209,2058,201,1841,55,1416,95,2133,108,1851,167,1622,77,1890,83,1469,173,2221,126,1990,133,1712,138,1856,124,2338,277,1636,118,1986,121,2182,129,1703,94,1869,109,1857,153,1673,193,1884,213]
[null,"Housing units without a mortgage (dollars)",742,74,484,74,595,81,671,70,715,191,768,33,738,118,722,29,464,35,591,104,729,45,628,58,718,262,556,135,783,56,955,78,731,45,537,77,943,63,571,121,687,61,803,103,618,70,660,84,793,102,659,54,729,99]

{"sheet":"ACS_Table_B25091","index":65,"n_rows":239,"n_cols":56,"rows_kept":239,"cut":false,"hidden":true,"merged":[]}
[null,"B25091. MORTGAGE STATUS BY SELECTED MONTHLY OWNER COSTS AS A PERCENTAGE OF HOUSEHOLD INCOME IN THE PAST 12 MONTHS "]
[null,"Universe:  OWNER-OCCUPIED HOUSING UNITS"]
[null,"Data Set: 2018-2022 American Community Survey 5-Year Estimates"]
[]
[null,null,"Allenstown",null,"Andover",null,"Boscawen",null,"Bow",null,"Bradford",null,"Canterbury",null,"Chichester",null,"Concord",null,"Danbury",null,"Dunbarton",null,"Epsom",null,"Franklin",null,"Henniker",null,"Hill",null,"Hooksett",null,"Hopkinton",null,"Loudon",null,"Newbury",null,"New London",null,"Northfield",null,"Pembroke",null,"Pittsfield",null,"Salisbury",null,"Sutton",null,"Warner",null,"Webster",null,"Wilmot"]
[null,null,"Estimate","Margin of Error","Estimate","Margin of Error","Estimate","Margin of Error","Estimate","Margin of Error","Estimate","Margin of Error","Estimate","Margin of Error","Estimate","Margin of Error","Estimate","Margin of Error","Estimate","Margin of Error","Estimate","Margin of Error","Estimate","Margin of Error","Estimate","Margin of Error","Estimate","Margin of Error","Estimate","Margin of Error","Estimate","Margin of Error","Estimate","Margin of Error","Estimate","Margin of Error","Estimate","Margin of Error","Estimate","Margin of Error","Estimate","Margin of Error","Estimate","Margin of Error","Estimate","Margin of Error","Estimate","Margin of Error","Estimate","Margin of Error","Estimate","Margin of Error","Estimate","Margin of Error","Estimate","Margin of Error"]
[null,"Total:",1439,167,794,120,1056,125,2630,153,564,66,865,95,939,81,10275,455,625,114,1018,88,1640,126,2308,311,1545,230,298,49,4044,282,1912,206,1957,195,653,97,1485,137,1410,135,1997,205,1221,146,600,122,808,150,824,76,758,99,488,77]
[null,"Housing units with a mortgage:",834,134,508,91,741,123,1948,164,308,55,545,94,640,90,6889,484,266,52,742,91,1143,136,1305,206,1099,239,190,45,2551,247,985,162,936,206,335,76,878,146,892,142,1274,171,813,136,340,103,538,123,510,78,539,89,349,67]
[null,"Less than 10.0 percent",18,23,17,23,37,44,151,88,26,15,55,31,34,22,247,114,14,13,74,45,48,40,105,58,53,44,3,4,162,82,63,59,0,17,39,24,72,50,36,31,114,60,35,35,15,11,68,55,55,40,33,19,28,17]
[null,"10.0 to 14.9 percent",38,32,149,68,101,71,329,116,21,16,110,57,123,71,1069,218,48,30,76,35,154,71,240,113,102,64,26,18,490,146,149,158,114,96,67,39,156,71,101,66,119,71,84,58,56,27,3,4,62,34,65,24,71,29]
[null,"15.0 to 19.9 percent",288,97,60,35,161,91,591,161,44,27,137,59,98,49,1608,217,26,15,187,87,204,79,253,110,117,63,56,25,483,143,168,108,274,125,91,29,120,63,168,81,261,114,105,72,131,96,234,104,115,41,185,75,55,24]
[null,"20.0 to 24.9 percent",152,88,95,38,167,65,337,91,40,22,79,35,106,34,1296,268,67,32,153,59,240,107,165,80,133,68,30,17,526,196,142,94,185,117,90,52,184,86,238,112,331,177,147,87,37,22,77,35,97,35,53,22,25,14]
[null,"25.0 to 29.9 percent",91,72,47,24,64,41,190,79,52,29,46,28,73,49,718,196,16,13,55,31,154,78,240,105,359,257,12,10,225,96,179,104,149,112,22,17,25,25,148,87,211,138,67,44,32,22,51,30,57,28,65,29,9,8]
[null,"30.0 to 34.9 percent",126,84,33,23,72,73,101,51,39,23,40,27,112,84,686,211,24,19,51,37,144,66,17,18,39,30,8,7,177,84,219,117,58,63,9,10,48,34,68,55,87,44,122,68,13,18,43,27,22,16,54,44,55,30]
[null,"35.0 to 39.9 percent",37,30,18,19,41,52,77,41,9,9,4,6,19,19,251,87,9,10,52,40,75,47,34,29,79,71,11,8,97,67,18,34,26,34,5,7,7,12,26,28,83,60,89,71,7,7,11,10,25,26,39,32,60,50]
[null,"40.0 to 49.9 percent",33,36,17,14,69,54,78,50,16,10,21,20,19,17,417,181,23,19,22,16,34,33,128,94,167,125,2,4,172,82,24,25,56,67,0,12,30,41,24,27,42,52,125,71,23,17,18,19,13,14,25,16,21,21]
[null,"50.0 percent or more",51,40,72,45,18,19,94,50,61,29,48,30,56,29,576,173,39,24,72,51,90,67,113,66,50,46,42,26,219,109,23,27,74,60,12,14,220,133,83,63,26,33,39,36,26,16,25,22,64,34,20,11,25,19]
[null,"Not computed",0,12,0,12,11,18,0,17,0,12,5,8,0,12,21,22,0,12,0,12,0,12,10,15,0,17,0,12,0,19,0,17,0,17,0,12,16,26,0,12,0,17,0,12,0,12,8,13,0,12,0,12,0,12]
[null,"Housing units without a mortgage:",605,168,286,102,315,93,682,128,256,56,320,80,299,76,3386,340,359,102,276,63,497,106,1003,297,446,177,108,26,1493,213,927,226,1021,259,318,65,607,115,518,118,723,212,408,133,260,91,270,96,314,73,219,66,139,43]
[null,"Less than 10.0 percent",79,65,54,27,32,29,293,88,111,39,100,44,84,38,814,196,106,48,108,38,149,73,233,105,138,72,18,10,371,103,338,158,221,116,140,47,173,68,182,74,104,81,80,50,50,27,98,75,52,26,60,21,50,31]
[null,"10.0 to 14.9 percent",177,98,107,92,73,64,162,73,17,11,67,36,58,41,883,183,65,33,76,44,112,54,207,140,51,50,44,22,504,151,212,108,229,147,88,41,109,57,138,64,243,127,109,70,29,18,56,30,99,45,49,18,43,25]
[null,"15.0 to 19.9 percent",71,49,25,18,53,36,45,28,5,6,60,43,19,20,478,111,45,41,22,14,53,47,112,66,85,63,12,9,130,58,66,51,59,56,30,18,34,27,43,49,69,54,73,43,62,40,32,21,39,21,15,14,22,19]
[null,"20.0 to 24.9 percent",23,26,24,16,0,12,67,39,27,20,38,26,24,14,367,110,21,15,22,16,47,34,53,51,73,69,17,12,97,64,123,83,65,65,7,10,49,40,59,40,69,69,34,53,27,29,0,12,24,17,4,5,15,10]
[null,"25.0 to 29.9 percent",57,57,19,18,27,26,43,30,44,37,11,8,37,26,149,55,15,18,22,17,35,24,238,246,11,19,7,6,101,74,53,44,171,239,16,15,41,33,30,29,110,118,0,12,13,13,40,66,45,29,21,24,7,7]
[null,"30.0 to 34.9 percent",50,48,0,12,47,35,10,14,7,8,11,13,20,19,177,103,32,31,7,10,33,29,53,32,0,17,0,12,42,41,55,47,108,112,5,8,73,65,21,26,49,46,10,15,13,15,3,5,4,7,20,13,0,12]
[null,"35.0 to 39.9 percent",58,62,13,18,0,12,6,9,11,12,18,21,5,7,86,78,47,66,3,6,0,12,16,17,0,17,3,5,65,38,41,50,71,77,9,9,36,33,11,17,11,19,25,39,0,12,0,12,15,23,2,4,0,12]
[null,"40.0 to 49.9 percent",11,17,9,11,29,27,32,31,16,17,5,8,14,13,184,78,12,15,6,9,18,20,17,19,6,11,4,6,29,33,13,21,97,99,0,12,50,36,26,28,0,17,69,82,0,12,37,32,23,24,16,19,0,12]
[null,"50.0 percent or more",79,58,35,39,54,36,17,19,18,14,10,11,38,21,240,118,16,12,5,8,50,34,49,42,82,78,3,4,154,68,26,33,0,17,18,20,42,29,8,9,68,53,0,12,66,83,4,7,13,13,9,9,2,3]
[null,"Not computed",0,12,0,12,0,12,7,13,0,12,0,12,0,12,8,15,0,12,5,8,0,12,25,26,0,17,0,12,0,19,0,17,0,17,5,9,0,12,0,12,0,17,8,14,0,12,0,12,0,12,23,38,0,12]
[]
[]
[]
[null,"Calculated B25091. MORTGAGE STATUS BY SELECTED MONTHLY OWNER COSTS AS A PERCENTAGE OF HOUSEHOLD INCOME IN THE PAST 12 MONTHS "]
[null,"Universe:  OWNER-OCCUPIED HOUSING UNITS"]
[null,"Data Set: 2018-2022 American Community Survey 5-Year Estimates"]
[]
[null,null,"Allenstown",null,"Andover",null,"Boscawen",null,"Bow",null,"Bradford",null,"Canterbury",null,"Chichester",null,"Concord",null,"Danbury",null,"Dunbarton",null,"Epsom",null,"Franklin",null,"Henniker",null,"Hill",null,"Hooksett",null,"Hopkinton",null,"Loudon",null,"Newbury",null,"New London",null,"Northfield",null,"Pembroke",null,"Pittsfield",null,"Salisbury",null,"Sutton",null,"Warner",null,"Webster",null,"Wilmot"]
[null,null,"Estimate","Margin of Error","Estimate","Margin of Error","Estimate","Margin of Error","Estimate","Margin of Error","Estimate","Margin of Error","Estimate","Margin of Error","Estimate","Margin of Error","Estimate","Margin of Error","Estimate","Margin of Error","Estimate","Margin of Error","Estimate","Margin of Error","Estimate","Margin of Error","Estimate","Margin of Error","Estimate","Margin of Error","Estimate","Margin of Error","Estimate","Margin of Error","Estimate","Margin of Error","Estimate","Margin of Error","Estimate","Margin of Error","Estimate","Margin of Error","Estimate","Margin of Error","Estimate","Margin of Error","Estimate","Margin of Error","Estimate","Margin of Error","Estimate","Margin of Error","Estimate","Margin of Error","Estimate","Margin of Error"]
[null,"Total:",{"$f":"C7","v":1439},{"$f":"D7","v":167},{"$f":"E7","v":794},120,1056,125,2630,153,564,66,865,95,939,81,10275,455,625,114,1018,88,1640,126,2308,311,1545,230,298,49,4044,282,1912,206,1957,195,653,97,1485,137,1410,135,1997,205,1221,146,600,122,808,150,824,76,758,99,488,77]
[null,"Less than 10.0 percent",{"$f":"C9+C20","v":97},{"$f":"SQRT((D9^2)+(D20^2))","v":68.949256703752795},{"$f":"E9+E20","v":71},{"$f":"SQRT((F9^2)+(F20^2))","v":35.468295701936398},{"$f":"G9+G20","v":69},{"$f":"SQRT((H9^2)+(H20^2))","v":52.697248505021591},{"$f":"I9+I20","v":444},{"$f":"SQRT((J9^2)+(J20^2))","v":124.45079348883236},{"$f":"K9+K20","v":137},{"$f":"SQRT((L9^2)+(L20^2))","v":41.785164831552358},{"$f":"M9+M20","v":155},{"$f":"SQRT((N9^2)+(N20^2))","v":53.823786563191554},{"$f":"O9+O20","v":118},{"$f":"SQRT((P9^2)+(P20^2))","v":43.908996800200299},{"$f":"Q9+Q20","v":1061},{"$f":"SQRT((R9^2)+(R20^2))","v":226.74214429611447},{"$f":"S9+S20","v":120},{"$f":"SQRT((T9^2)+(T20^2))","v":49.729267036625423},{"$f":"U9+U20","v":182},{"$f":"SQRT((V9^2)+(V20^2))","v":58.898217290508889},{"$f":"W9+W20","v":197},{"$f":"SQRT((X9^2)+(X20^2))","v":83.240615086627031},338,{"$f":"SQRT((Z9^2)+(Z20^2))","v":119.95415791042844},{"$f":"AA9+AA20","v":191},{"$f":"SQRT((AB9^2)+(AB20^2))","v":84.380092438915952},{"$f":"AC9+AC20","v":21},{"$f":"SQRT((AD9^2)+(AD20^2))","v":10.770329614269007},{"$f":"AE9+AE20","v":533},{"$f":"SQRT((AF9^2)+(AF20^2))","v":131.65485179058157},{"$f":"AG9+AG20","v":401},{"$f":"SQRT((AH9^2)+(AH20^2))","v":168.65645555388622},{"$f":"AI9+AI20","v":221},{"$f":"SQRT((AJ9^2)+(AJ20^2))","v":117.23907198540937},{"$f":"AK9+AK20","v":179},{"$f":"SQRT((AL9^2)+(AL20^2))","v":52.773099207835045},{"$f":"AM9+AM20","v":245},{"$f":"SQRT((AN9^2)+(AN20^2))","v":84.403791384036765},218,80.230916734136841,{"$f":"AQ9+AQ20","v":218},{"$f":"SQRT((AR9^2)+(AR20^2))","v":100.80178569846865},{"$f":"AS9+AS20","v":115},{"$f":"SQRT((AT9^2)+(AT20^2))","v":61.032778078668514},{"$f":"AU9+AU20","v":65},{"$f":"SQRT((AV9^2)+(AV20^2))","v":29.154759474226502},{"$f":"AW9+AW20","v":166},{"$f":"SQRT((AX9^2)+(AX20^2))","v":93.005376188691372},{"$f":"AY9+AY20","v":107},{"$f":"SQRT((AZ9^2)+(AZ20^2))","v":47.707441767506253},{"$f":"BA9+BA20","v":93},{"$f":"SQRT((BB9^2)+(BB20^2))","v":28.319604517012593},{"$f":"BC9+BC20","v":78},{"$f":"SQRT((BD9^2)+(BD20^2))","v":35.355339059327378}]
[null,"10.0 to 14.9 percent",215,103.09219175087898,256,114.40279716860073,174,95.587656106842587,491,137.05838172107534,38,19.416487838947599,177,67.416615162732697,181,81.987803971078534,1952,284.62782717085128,113,44.598206241955516,152,56.222771187482387,266,{"$f":"SQRT((X10^2)+(X21^2))","v":89.202017914394744},447,179.91386828146406,153,81.21576201698781,70,28.42534080710379,994,210.0404722904612,361,191.38442987871298,343,175.57049866079439,155,56.586217403180434,265,91.049437120720299,239,91.934759476489631,362,145.49914089093448,193,90.906545418908095,85,32.449961479175904,59,30.265491900843113,161,56.400354608814297,114,30,114,38.288379438153292]
[null,"15.0 to 19.9 percent",359,108.67382389517726,85,39.357337308308857,214,97.862147942909985,636,163.41664541900252,49,27.658633371878661,197,73.006848993775918,117,52.924474489596967,2086,243.74166652421167,71,43.657759905886145,209,88.11923740024082,257,91.923881554251182,365,128.28094168659661,202,89.095454429504983,68,26.570660511172846,613,154.31461369552787,234,119.4361754243663,333,136.97079980784227,121,34.132096331752024,154,68.541957952775178,211,94.667840368310934,330,126.14277624977183,178,83.86298349093002,193,104,266,106.09901036296239,154,46.065171225124082,200,76.295478240849903,77,30.610455730027933]
[null,"20.0 to 24.9 percent",175,91.760557975635692,119,41.231056256176608,167,66.098411478642959,404,99.005050376230813,67,29.732137494637012,117,43.600458713183279,130,36.76955262170047,1663,289.69639279770121,88,35.341194094144583,175,61.1310068623117,287,112.27199116431488,218,94.873600121424715,206,96.876209669866839,47,20.808652046684813,623,206.18438350175796,265,125.39936203984452,250,133.843191832831,97,52.952809179494906,233,94.847245611035007,297,118.92854997854805,400,189.97368238785077,181,101.87246929372037,64,36.400549446402593,77,37,121,38.910152916687437,57,22.561028345356956,40,17.204650534085253]
[null,"25.0 to 29.9 percent",148,91.831367190083796,66,30,91,48.548944375753422,233,84.504437753291981,96,47.010637094172637,57,29.120439557122072,110,55.470712993434653,867,203.5706265648362,31,22.203603311174518,77,35.355339059327378,189,81.60882305241266,478,267.47149380821872,370,257.70137756713683,19,11.661903789690601,326,121.21056059601408,232,112.92475370794483,320,263.9412813487121,38,22.671568097509269,66,41.400483088968905,178,91.706052144883003,321,181.57092278225608,67,45.607017003965517,45,25.553864678361276,91,72.498275841567434,102,40.311288741492746,86,37.643060449437421,16,10.63014581273465]
[null,"30.0 to 34.9 percent",176,96.74709297958259,33,25.942243542145693,119,80.956778592036386,111,52.886671288709408,46,24.351591323771842,51,29.966648127543394,132,86.122006479180456,863,234.79778533878891,56,36.359317925395686,58,38.327535793473601,177,72.090221250874237,70,36.715119501371639,39,34.481879299133332,8,13.892443989449804,219,93.471920917460551,274,126.08727136392476,166,128.50291825480073,14,12.806248474865697,121,73.355299740373226,89,60.835844697020519,136,63.655321851358195,132,69.634761434214738,26,23.430749027719962,46,27.459060435491963,26,17.464249196572979,74,45.880278987817846,55,32.310988842807021]
[null,"35.0 to 39.9 percent",95,68.87670143089025,31,26.172504656604801,41,53.366656256505337,83,41.976183723630712,20,15,22,21.840329667841555,24,20.248456731316587,337,116.84605256490268,56,66.753277073114546,55,40.447496832313369,75,48.507731342539614,50,33.61547262794322,79,73.006848993775918,14,9.4339811320566032,162,77.025969646606853,59,60.464865831323898,97,84.172442046075858,14,11.401754250991379,43,35.114099732158877,37,32.756678708318397,94,62.936475910238251,114,81.006172604314543,7,13.892443989449804,11,15.620499351813308,40,34.713109915419565,41,32.249030993194197,60,51.419840528729765]
[null,"40.0 to 49.9 percent",44,39.812058474788763,26,17.804493814764857,98,60.373835392494321,110,58.830264320330912,32,19.723082923316021,26,21.540659228538015,33,21.400934559032695,601,197.0913493789111,35,24.207436873820409,28,18.357559750685819,52,38.587562763149478,145,95.900990610107883,173,125.48306658669129,6,7.2111025509279782,201,88.391176030189797,37,32.649655434629018,153,119.54078801814885,0,16.970562748477139,80,54.561891462814962,50,38.897300677553446,42,54.708317466359723,194,108.46658471621571,23,20.808652046684813,55,37.215588131856791,36,27.784887978899608,41,24.839484696748443,21,24.186773244895647]
[null,"50.0 percent or more",130,70.455659815234142,107,59.548299723837623,72,40.70626487409524,111,53.488316481265329,79,32.202484376209235,58,31.953090617340916,94,35.805027579936315,816,209.41107898103195,55,26.832815729997478,77,51.623637996561229,140,75.133215025047349,162,78.230428862431779,132,90.553851381374173,45,26.305892875931811,373,128.47178678604885,49,42.638011210655684,74,62.361847310675458,30,24.413111231467404,262,136.12494260788506,91,63.63961030678928,94,62.433965115151864,39,37.947331922020552,92,84.528101836016646,29,23.086792761230392,77,36.400549446402593,29,14.212670403551895,27,19.235384061671343]
[null,"Not computed",0,16.970562748477139,0,16.970562748477139,11,21.633307652783937,7,21.400934559032695,0,16.970562748477139,5,14.422205101855956,0,16.970562748477139,29,26.627053911388696,0,16.970562748477139,5,14.422205101855956,0,16.970562748477139,35,30.016662039607269,0,24.041630560342615,0,16.970562748477139,0,26.870057685088806,0,24.041630560342615,0,24.041630560342615,5,15,16,28.635642126552707,0,16.970562748477139,0,24.041630560342615,8,18.439088914585774,0,16.970562748477139,8,17.691806012954132,0,16.970562748477139,23,39.849717690342551,0,16.970562748477139]
[]
[]
[]
[]
[null,"Calculated MONTHLY OWNER COSTS AS A PERCENTAGE OF HOUSEHOLD INCOME IN THE PAST 12 MONTHS "]
[null,"Universe:  OWNER-OCCUPIED HOUSING UNITS"]
[null,"Data Set: 2018-2022 American Community Survey 5-Year Estimates"]
[null,null,"Allenstown",null,"Andover",null,"Boscawen",null,"Bow",null,"Bradford",null,"Canterbury",null,"Chichester",null,"Concord",null,"Danbury",null,"Dunbarton",null,"Epsom",null,"Franklin",null,"Henniker",null,"Hill",null,"Hooksett",null,"Hopkinton",null,"Loudon",null,"Newbury",null,"New London",null,"Northfield",null,"Pembroke",null,"Pittsfield",null,"Salisbury",null,"Sutton",null,"Warner",null,"Webster",null,"Wilmot"]
[null,null,"Estimate","Margin of Error","Estimate","Margin of Error","Estimate","Margin of Error","Estimate","Margin of Error","Estimate","Margin of Error","Estimate","Margin of Error","Estimate","Margin of Error","Estimate","Margin of Error","Estimate","Margin of Error","Estimate","Margin of Error","Estimate","Margin of Error","Estimate","Margin of Error","Estimate","Margin of Error","Estimate","Margin of Error","Estimate","Margin of Error","Estimate","Margin of Error","Estimate","Margin of Error","Estimate","Margin of Error","Estimate","Margin of Error","Estimate","Margin of Error","Estimate","Margin of Error","Estimate","Margin of Error","Estimate","Margin of Error","Estimate","Margin of Error","Estimate","Margin of Error","Estimate","Margin of Error","Estimate","Margin of Error"]
[null,"Total:",{"$f":"C39","v":1439},{"$f":"D39","v":167},794,120,1056,125,2630,153,564,66,865,95,939,81,10275,455,625,114,1018,88,1640,126,{"$f":"Y39","v":2308},311,1545,230,298,49,4044,282,1912,206,1957,195,653,97,1485,137,{"$f":"AO39","v":1410},135,1997,205,1221,146,600,122,808,150,824,76,758,99,488,77]
[null,"Less than 20% of HH Income",{"$f":"C40+C41+C42","v":671},{"$f":"SQRT((D40^2)+(D41^2)+(D42^2))","v":164.89996967859031},{"$f":"E40+E41+E42","v":412},{"$f":"SQRT((F40^2)+(F41^2)+(F42^2))","v":126.07537428062626},{"$f":"G40+G41+G42","v":457},{"$f":"SQRT((H40^2)+(H41^2)+(H42^2))","v":146.59809002848573},{"$f":"I40+I41+I42","v":1571},{"$f":"SQRT((J40^2)+(J41^2)+(J42^2))","v":246.9372389899911},{"$f":"K40+K41+K42","v":224},{"$f":"SQRT((L40^2)+(L41^2)+(L42^2))","v":53.740115370177612},{"$f":"M40+M41+M42","v":529},{"$f":"SQRT((N40^2)+(N41^2)+(N42^2))","v":113.01327355669333},{"$f":"O40+O41+O42","v":416},{"$f":"SQRT((P40^2)+(P41^2)+(P42^2))","v":107.00934538627924},{"$f":"Q40+Q41+Q42","v":5099},{"$f":"SQRT((R40^2)+(R41^2)+(R42^2))","v":437.9897259068984},{"$f":"S40+S41+S42","v":304},{"$f":"SQRT((T40^2)+(T41^2)+(T42^2))","v":79.799749373040015},{"$f":"U40+U41+U42","v":543},{"$f":"SQRT((V40^2)+(V41^2)+(V42^2))","v":119.97916485790356},{"$f":"W40+W41+W42","v":720},{"$f":"SQRT((X40^2)+(X41^2)+(X42^2))","v":152.76125163142649},{"$f":"Y40+Y41+Y42","v":1150},{"$f":"SQRT((Z40^2)+(Z41^2)+(Z42^2))","v":251.42394476262598},{"$f":"AA40+AA41+AA42","v":546},{"$f":"SQRT((AB40^2)+(AB41^2)+(AB42^2))","v":147.15298162116866},{"$f":"AC40+AC41+AC42","v":159},{"$f":"SQRT((AD40^2)+(AD41^2)+(AD42^2))","v":40.373258476372698},{"$f":"AE40+AE41+AE42","v":2140},{"$f":"SQRT((AF40^2)+(AF41^2)+(AF42^2))","v":291.99828766621221},{"$f":"AG40+AG41+AG42","v":996},{"$f":"SQRT((AH40^2)+(AH41^2)+(AH42^2))","v":281.67001970390817},{"$f":"AI40+AI41+AI42","v":897},{"$f":"SQRT((AJ40^2)+(AJ41^2)+(AJ42^2))","v":251.65651193640906},{"$f":"AK40+AK41+AK42","v":455},{"$f":"SQRT((AL40^2)+(AL41^2)+(AL42^2))","v":84.569498047463895},{"$f":"AM40+AM41+AM42","v":664},{"$f":"SQRT((AN40^2)+(AN41^2)+(AN42^2))","v":141.81678320988669},{"$f":"AO40+AO41+AO42","v":668},{"$f":"SQRT((AP40^2)+(AP41^2)+(AP42^2))","v":154.43768970040961},{"$f":"AQ40+AQ41+AQ42","v":910},{"$f":"SQRT((AR40^2)+(AR41^2)+(AR42^2))","v":217.35454906672646},{"$f":"AS40+AS41+AS42","v":486},{"$f":"SQRT((AT40^2)+(AT41^2)+(AT42^2))","v":137.92026682108761},{"$f":"AU40+AU41+AU42","v":343},{"$f":"SQRT((AV40^2)+(AV41^2)+(AV42^2))","v":112.7785440586994},{"$f":"AW40+AW41+AW42","v":491},{"$f":"SQRT((AX40^2)+(AX41^2)+(AX42^2))","v":144.30176714094668},{"$f":"AY40+AY41+AY42","v":422},{"$f":"SQRT((AZ40^2)+(AZ41^2)+(AZ42^2))","v":87.057452294447486},{"$f":"BA40+BA41+BA42","v":407},{"$f":"SQRT((BB40^2)+(BB41^2)+(BB42^2))","v":86.73522929006414},{"$f":"BC40+BC41+BC42","v":269},{"$f":"SQRT((BD40^2)+(BD41^2)+(BD42^2))","v":60.440052945046304}]
[null," 20% to 29.9% of HH Income",{"$f":"C43+C44","v":323},{"$f":"SQRT((D43^2)+(D44^2))","v":129.81910491141124},{"$f":"E43+E44","v":185},{"$f":"SQRT((F43^2)+(F44^2))","v":50.990195135927848},{"$f":"G43+G44","v":258},{"$f":"SQRT((H43^2)+(H44^2))","v":82.012194215250688},{"$f":"I43+I44","v":637},{"$f":"SQRT((J43^2)+(J44^2))","v":130.16527954873374},{"$f":"K43+K44","v":163},{"$f":"SQRT((L43^2)+(L44^2))","v":55.623735940693521},{"$f":"M43+M44","v":174},{"$f":"SQRT((N43^2)+(N44^2))","v":52.430906915673319},{"$f":"O43+O44","v":240},{"$f":"SQRT((P43^2)+(P44^2))","v":66.550732527899342},{"$f":"Q43+Q44","v":2530},{"$f":"SQRT((R43^2)+(R44^2))","v":354.06920227548733},{"$f":"S43+S44","v":119},{"$f":"SQRT((T43^2)+(T44^2))","v":41.737273509418415},{"$f":"U43+U44","v":252},{"$f":"SQRT((V43^2)+(V44^2))","v":70.618694408775355},{"$f":"W43+W44","v":476},{"$f":"SQRT((X43^2)+(X44^2))","v":138.7984149765407},{"$f":"Y43+Y44","v":696},{"$f":"SQRT((Z43^2)+(Z44^2))","v":283.79922480514279},{"$f":"AA43+AA44","v":576},{"$f":"SQRT((AB43^2)+(AB44^2))","v":275.30891740007263},{"$f":"AC43+AC44","v":66},{"$f":"SQRT((AD43^2)+(AD44^2))","v":23.853720883753127},{"$f":"AE43+AE44","v":949},{"$f":"SQRT((AF43^2)+(AF44^2))","v":239.17357713593699},{"$f":"AG43+AG44","v":497},{"$f":"SQRT((AH43^2)+(AH44^2))","v":168.75129629131743},{"$f":"AI43+AI44","v":570},{"$f":"SQRT((AJ43^2)+(AJ44^2))","v":295.93749340021111},{"$f":"AK43+AK44","v":135},{"$f":"SQRT((AL43^2)+(AL44^2))","v":57.602083295658673},{"$f":"AM43+AM44","v":299},{"$f":"SQRT((AN43^2)+(AN44^2))","v":103.48912986396203},{"$f":"AO43+AO44","v":475},{"$f":"SQRT((AP43^2)+(AP44^2))","v":150.17989212940591},{"$f":"AQ43+AQ44","v":721},{"$f":"SQRT((AR43^2)+(AR44^2))","v":262.78888865399159},{"$f":"AS43+AS44","v":248},{"$f":"SQRT((AT43^2)+(AT44^2))","v":111.61541112229978},{"$f":"AU43+AU44","v":109},{"$f":"SQRT((AV43^2)+(AV44^2))","v":44.474711915874174},{"$f":"AW43+AW44","v":168},{"$f":"SQRT((AX43^2)+(AX44^2))","v":81.394102980498531},{"$f":"AY43+AY44","v":223},{"$f":"SQRT((AZ43^2)+(AZ44^2))","v":56.026779311325754},{"$f":"BA43+BA44","v":143},{"$f":"SQRT((BB43^2)+(BB44^2))","v":43.886216514983374},{"$f":"BC43+BC44","v":56},{"$f":"SQRT((BD43^2)+(BD44^2))","v":20.223748416156685}]
[null," Less Than 30% of HH Income",{"$f":"C40+C41+C42+C43+C44","v":994},{"$f":"SQRT((D40^2)+(D41^2)+(D42^2)+(D43^2)+(D44^2))","v":209.86900676374299},{"$f":"E40+E41+E42+E43+E44","v":597},{"$f":"SQRT((F40^2)+(F41^2)+(F42^2)+(F43^2)+(F44^2))","v":135.99632347971763},{"$f":"G40+G41+G42+G43+G44","v":715},{"$f":"SQRT((H40^2)+(H41^2)+(H42^2)+(H43^2)+(H44^2))","v":167.97916537475712},{"$f":"I40+I41+I42+I43+I44","v":2208},{"$f":"SQRT((J40^2)+(J41^2)+(J42^2)+(J43^2)+(J44^2))","v":279.1433323581274},{"$f":"K40+K41+K42+K43+K44","v":387},{"$f":"SQRT((L40^2)+(L41^2)+(L42^2)+(L43^2)+(L44^2))","v":77.343390150678033},{"$f":"M40+M41+M42+M43+M44","v":703},{"$f":"SQRT((N40^2)+(N41^2)+(N42^2)+(N43^2)+(N44^2))","v":124.58330546265017},{"$f":"O40+O41+O42+O43+O44","v":656},{"$f":"SQRT((P40^2)+(P41^2)+(P42^2)+(P43^2)+(P44^2))","v":126.01587201618692},{"$f":"Q40+Q41+Q42+Q43+Q44","v":7629},{"$f":"SQRT((R40^2)+(R41^2)+(R42^2)+(R43^2)+(R44^2))","v":563.20511361314891},{"$f":"S40+S41+S42+S43+S44","v":423},{"$f":"SQRT((T40^2)+(T41^2)+(T42^2)+(T43^2)+(T44^2))","v":90.055538419355415},{"$f":"U40+U41+U42+U43+U44","v":795},{"$f":"SQRT((V40^2)+(V41^2)+(V42^2)+(V43^2)+(V44^2))","v":139.21925154230647},{"$f":"W40+W41+W42+W43+W44","v":1196},{"$f":"SQRT((X40^2)+(X41^2)+(X42^2)+(X43^2)+(X44^2))","v":206.40009689920205},{"$f":"Y40+Y41+Y42+Y43+Y44","v":1846},{"$f":"SQRT((Z40^2)+(Z41^2)+(Z42^2)+(Z43^2)+(Z44^2))","v":379.15168468569408},{"$f":"AA40+AA41+AA42+AA43+AA44","v":1122},{"$f":"SQRT((AB40^2)+(AB41^2)+(AB42^2)+(AB43^2)+(AB44^2))","v":312.16822387936929},{"$f":"AC40+AC41+AC42+AC43+AC44","v":225},{"$f":"SQRT((AD40^2)+(AD41^2)+(AD42^2)+(AD43^2)+(AD44^2))","v":46.893496350773418},{"$f":"AE40+AE41+AE42+AE43+AE44","v":3089},{"$f":"SQRT((AF40^2)+(AF41^2)+(AF42^2)+(AF43^2)+(AF44^2))","v":377.44800966490737},{"$f":"AG40+AG41+AG42+AG43+AG44","v":1493},{"$f":"SQRT((AH40^2)+(AH41^2)+(AH42^2)+(AH43^2)+(AH44^2))","v":328.35194532696164},{"$f":"AI40+AI41+AI42+AI43+AI44","v":1467},{"$f":"SQRT((AJ40^2)+(AJ41^2)+(AJ42^2)+(AJ43^2)+(AJ44^2))","v":388.47136316593532},{"$f":"AK40+AK41+AK42+AK43+AK44","v":590},{"$f":"SQRT((AL40^2)+(AL41^2)+(AL42^2)+(AL43^2)+(AL44^2))","v":102.32301793829187},{"$f":"AM40+AM41+AM42+AM43+AM44","v":963},{"$f":"SQRT((AN40^2)+(AN41^2)+(AN42^2)+(AN43^2)+(AN44^2))","v":175.56195487633417},{"$f":"AO40+AO41+AO42+AO43+AO44","v":1143},{"$f":"SQRT((AP40^2)+(AP41^2)+(AP42^2)+(AP43^2)+(AP44^2))","v":215.41819793137256},{"$f":"AQ40+AQ41+AQ42+AQ43+AQ44","v":1631},{"$f":"SQRT((AR40^2)+(AR41^2)+(AR42^2)+(AR43^2)+(AR44^2))","v":341.02932425232876},{"$f":"AS40+AS41+AS42+AS43+AS44","v":734},{"$f":"SQRT((AT40^2)+(AT41^2)+(AT42^2)+(AT43^2)+(AT44^2))","v":177.426040929735},{"$f":"AU40+AU41+AU42+AU43+AU44","v":452},{"$f":"SQRT((AV40^2)+(AV41^2)+(AV42^2)+(AV43^2)+(AV44^2))","v":121.2311841070605},{"$f":"AW40+AW41+AW42+AW43+AW44","v":659},{"$f":"SQRT((AX40^2)+(AX41^2)+(AX42^2)+(AX43^2)+(AX44^2))","v":165.67437943146189},{"$f":"AY40+AY41+AY42+AY43+AY44","v":645},{"$f":"SQRT((AZ40^2)+(AZ41^2)+(AZ42^2)+(AZ43^2)+(AZ44^2))","v":103.52777405121778},{"$f":"BA40+BA41+BA42+BA43+BA44","v":550},{"$f":"SQRT((BB40^2)+(BB41^2)+(BB42^2)+(BB43^2)+(BB44^2))","v":97.205966895041996},{"$f":"BC40+BC41+BC42+BC43+BC44","v":325},{"$f":"SQRT((BD40^2)+(BD41^2)+(BD42^2)+(BD43^2)+(BD44^2))","v":63.733821476512766}]
[null," 30% or More of HH Income",{"$f":"C45+C46+C47+C48","v":445},{"$f":"SQRT((D45^2)+(D46^2)+(D47^2)+(D48^2))","v":143.71151658791996},{"$f":"E45+E46+E47+E48","v":197},{"$f":"SQRT((F45^2)+(F46^2)+(F47^2)+(F48^2))","v":72.256487598000504},{"$f":"G45+G46+G47+G48","v":330},{"$f":"SQRT((H45^2)+(H46^2)+(H47^2)+(H48^2))","v":121.26005112979294},{"$f":"I45+I46+I47+I48","v":415},{"$f":"SQRT((J45^2)+(J46^2)+(J47^2)+(J48^2))","v":104.31203190428226},{"$f":"K45+K46+K47+K48","v":177},{"$f":"SQRT((L45^2)+(L46^2)+(L47^2)+(L48^2))","v":47.370877129308042},{"$f":"M45+M46+M47+M48","v":157},{"$f":"SQRT((N45^2)+(N46^2)+(N47^2)+(N48^2))","v":53.478967828483754},{"$f":"O45+O46+O47+O48","v":283},{"$f":"SQRT((P45^2)+(P46^2)+(P47^2)+(P48^2))","v":97.811042321406632},{"$f":"Q45+Q46+Q47+Q48","v":2617},{"$f":"SQRT((R45^2)+(R46^2)+(R47^2)+(R48^2))","v":389.20560119299415},{"$f":"S45+S46+S47+S48","v":202},{"$f":"SQRT((T45^2)+(T46^2)+(T47^2)+(T48^2))","v":84.166501650003255},{"$f":"U45+U46+U47+U48","v":218},{"$f":"SQRT((V45^2)+(V46^2)+(V47^2)+(V48^2))","v":78.14729681825213},{"$f":"W45+W46+W47+W48","v":444},{"$f":"SQRT((X45^2)+(X46^2)+(X47^2)+(X48^2))","v":121.17755567760888},{"$f":"Y45+Y46+Y47+Y48","v":427},{"$f":"SQRT((Z45^2)+(Z46^2)+(Z47^2)+(Z48^2))","v":133.3979010329623},{"$f":"AA45+AA46+AA47+AA48","v":423},{"$f":"SQRT((AB45^2)+(AB46^2)+(AB47^2)+(AB48^2))","v":174.54225849346628},{"$f":"AC45+AC46+AC47+AC48","v":73},{"$f":"SQRT((AD45^2)+(AD46^2)+(AD47^2)+(AD48^2))","v":32.03123475609393},{"$f":"AE45+AE46+AE47+AE48","v":955},{"$f":"SQRT((AF45^2)+(AF46^2)+(AF47^2)+(AF48^2))","v":197.45379206285202},{"$f":"AG45+AG46+AG47+AG48","v":419},{"$f":"SQRT((AH45^2)+(AH46^2)+(AH47^2)+(AH48^2))","v":149.79319076646976},{"$f":"AI45+AI46+AI47+AI48","v":490},{"$f":"SQRT((AJ45^2)+(AJ46^2)+(AJ47^2)+(AJ48^2))","v":204.39422692434343},{"$f":"AK45+AK46+AK47+AK48","v":58},{"$f":"SQRT((AL45^2)+(AL46^2)+(AL47^2)+(AL48^2))","v":34.322004603461025},{"$f":"AM45+AM46+AM47+AM48","v":506},{"$f":"SQRT((AN45^2)+(AN46^2)+(AN47^2)+(AN48^2))","v":167.69317219254933},{"$f":"AO45+AO46+AO47+AO48","v":267},{"$f":"SQRT((AP45^2)+(AP46^2)+(AP47^2)+(AP48^2))","v":101.67103815738285},{"$f":"AQ45+AQ46+AQ47+AQ48","v":366},{"$f":"SQRT((AR45^2)+(AR46^2)+(AR47^2)+(AR48^2))","v":122.08193969625482},{"$f":"AS45+AS46+AS47+AS48","v":479},{"$f":"SQRT((AT45^2)+(AT46^2)+(AT47^2)+(AT48^2))","v":156.8948692596415},{"$f":"AU45+AU46+AU47+AU48","v":148},{"$f":"SQRT((AV45^2)+(AV46^2)+(AV47^2)+(AV48^2))","v":91.214034007931033},{"$f":"AW45+AW46+AW47+AW48","v":141},{"$f":"SQRT((AX45^2)+(AX46^2)+(AX47^2)+(AX48^2))","v":54},{"$f":"AY45+AY46+AY47+AY48","v":179},{"$f":"SQRT((AZ45^2)+(AZ46^2)+(AZ47^2)+(AZ48^2))","v":60.058305004387194},{"$f":"BA45+BA46+BA47+BA48","v":185},{"$f":"SQRT((BB45^2)+(BB46^2)+(BB47^2)+(BB48^2))","v":62.960304954788768},{"$f":"BC45+BC46+BC47+BC48","v":163},{"$f":"SQRT((BD45^2)+(BD46^2)+(BD47^2)+(BD48^2))","v":68.139562663697802}]
[null," 30% to 34.9% of HH Income",{"$f":"C45","v":176},{"$f":"D45","v":96.74709297958259},{"$f":"E45","v":33},25.942243542145693,119,80.956778592036386,111,52.886671288709408,46,24.351591323771842,51,29.966648127543394,132,86.122006479180456,863,234.79778533878891,56,36.359317925395686,58,38.327535793473601,177,72.090221250874237,{"$f":"Y45","v":70},36.715119501371639,39,34.481879299133332,8,13.892443989449804,219,93.471920917460551,274,126.08727136392476,166,128.50291825480073,14,12.806248474865697,121,73.355299740373226,{"$f":"AO45","v":89},60.835844697020519,136,63.655321851358195,132,69.634761434214738,26,23.430749027719962,46,27.459060435491963,26,17.464249196572979,74,45.880278987817846,55,32.310988842807021]
[null," Less Than 35% of HH Income",{"$f":"C40+C41+C42+C43+C44+C45","v":1170},{"$f":"SQRT((D40^2)+(D41^2)+(D42^2)+(D43^2)+(D44^2)+(D45^2))","v":231.09521847065551},{"$f":"E40+E41+E42+E43+E44+E45","v":630},{"$f":"SQRT((F40^2)+(F41^2)+(F42^2)+(F43^2)+(F44^2)+(F45^2))","v":138.44854639901425},{"$f":"G40+G41+G42+G43+G44+G45","v":834},{"$f":"SQRT((H40^2)+(H41^2)+(H42^2)+(H43^2)+(H44^2)+(H45^2))","v":186.46983670288341},{"$f":"I40+I41+I42+I43+I44+I45","v":2319},{"$f":"SQRT((J40^2)+(J41^2)+(J42^2)+(J43^2)+(J44^2)+(J45^2))","v":284.10913396087778},{"$f":"K40+K41+K42+K43+K44+K45","v":433},{"$f":"SQRT((L40^2)+(L41^2)+(L42^2)+(L43^2)+(L44^2)+(L45^2))","v":81.086373701134278},{"$f":"M40+M41+M42+M43+M44+M45","v":754},{"$f":"SQRT((N40^2)+(N41^2)+(N42^2)+(N43^2)+(N44^2)+(N45^2))","v":128.13664581219535},{"$f":"O40+O41+O42+O43+O44+O45","v":788},{"$f":"SQRT((P40^2)+(P41^2)+(P42^2)+(P43^2)+(P44^2)+(P45^2))","v":152.63354808167173},{"$f":"Q40+Q41+Q42+Q43+Q44+Q45","v":8492},{"$f":"SQRT((R40^2)+(R41^2)+(R42^2)+(R43^2)+(R44^2)+(R45^2))","v":610.18849546676972},{"$f":"S40+S41+S42+S43+S44+S45","v":479},{"$f":"SQRT((T40^2)+(T41^2)+(T42^2)+(T43^2)+(T44^2)+(T45^2))","v":97.118484337431866},{"$f":"U40+U41+U42+U43+U44+U45","v":853},{"$f":"SQRT((V40^2)+(V41^2)+(V42^2)+(V43^2)+(V44^2)+(V45^2))","v":144.39875345722345},{"$f":"W40+W41+W42+W43+W44+W45","v":1373},{"$f":"SQRT((X40^2)+(X41^2)+(X42^2)+(X43^2)+(X44^2)+(X45^2))","v":218.62753714937193},{"$f":"Y40+Y41+Y42+Y43+Y44+Y45","v":1916},{"$f":"SQRT((Z40^2)+(Z41^2)+(Z42^2)+(Z43^2)+(Z44^2)+(Z45^2))","v":380.92518950576107},{"$f":"AA40+AA41+AA42+AA43+AA44+AA45","v":1161},{"$f":"SQRT((AB40^2)+(AB41^2)+(AB42^2)+(AB43^2)+(AB44^2)+(AB45^2))","v":314.0668718601184},{"$f":"AC40+AC41+AC42+AC43+AC44+AC45","v":233},{"$f":"SQRT((AD40^2)+(AD41^2)+(AD42^2)+(AD43^2)+(AD44^2)+(AD45^2))","v":48.908077042549934},{"$f":"AE40+AE41+AE42+AE43+AE44+AE45","v":3308},{"$f":"SQRT((AF40^2)+(AF41^2)+(AF42^2)+(AF43^2)+(AF44^2)+(AF45^2))","v":388.84958531545328},{"$f":"AG40+AG41+AG42+AG43+AG44+AG45","v":1767},{"$f":"SQRT((AH40^2)+(AH41^2)+(AH42^2)+(AH43^2)+(AH44^2)+(AH45^2))","v":351.728588545202},{"$f":"AI40+AI41+AI42+AI43+AI44+AI45","v":1633},{"$f":"SQRT((AJ40^2)+(AJ41^2)+(AJ42^2)+(AJ43^2)+(AJ44^2)+(AJ45^2))","v":409.17355730789836},{"$f":"AK40+AK41+AK42+AK43+AK44+AK45","v":604},{"$f":"SQRT((AL40^2)+(AL41^2)+(AL42^2)+(AL43^2)+(AL44^2)+(AL45^2))","v":103.12128781197411},{"$f":"AM40+AM41+AM42+AM43+AM44+AM45","v":1084},{"$f":"SQRT((AN40^2)+(AN41^2)+(AN42^2)+(AN43^2)+(AN44^2)+(AN45^2))","v":190.27085956604074},{"$f":"AO40+AO41+AO42+AO43+AO44+AO45","v":1232},{"$f":"SQRT((AP40^2)+(AP41^2)+(AP42^2)+(AP43^2)+(AP44^2)+(AP45^2))","v":223.84369546627843},{"$f":"AQ40+AQ41+AQ42+AQ43+AQ44+AQ45","v":1767},{"$f":"SQRT((AR40^2)+(AR41^2)+(AR42^2)+(AR43^2)+(AR44^2)+(AR45^2))","v":346.91929897311854},{"$f":"AS40+AS41+AS42+AS43+AS44+AS45","v":866},{"$f":"SQRT((AT40^2)+(AT41^2)+(AT42^2)+(AT43^2)+(AT44^2)+(AT45^2))","v":190.60167890131504},{"$f":"AU40+AU41+AU42+AU43+AU44+AU45","v":478},{"$f":"SQRT((AV40^2)+(AV41^2)+(AV42^2)+(AV43^2)+(AV44^2)+(AV45^2))","v":123.47469376354006},{"$f":"AW40+AW41+AW42+AW43+AW44+AW45","v":705},{"$f":"SQRT((AX40^2)+(AX41^2)+(AX42^2)+(AX43^2)+(AX44^2)+(AX45^2))","v":167.93451104522859},{"$f":"AY40+AY41+AY42+AY43+AY44+AY45","v":671},{"$f":"SQRT((AZ40^2)+(AZ41^2)+(AZ42^2)+(AZ43^2)+(AZ44^2)+(AZ45^2))","v":104.99047575851822},{"$f":"BA40+BA41+BA42+BA43+BA44+BA45","v":624},{"$f":"SQRT((BB40^2)+(BB41^2)+(BB42^2)+(BB43^2)+(BB44^2)+(BB45^2))","v":107.48953437428223},{"$f":"BC40+BC41+BC42+BC43+BC44+BC45","v":380},{"$f":"SQRT((BD40^2)+(BD41^2)+(BD42^2)+(BD43^2)+(BD44^2)+(BD45^2))","v":71.456280339799378}]
[null," 35% or More of HH Income",{"$f":"C46+C47+C48","v":269},{"$f":"SQRT((D46^2)+(D47^2)+(D48^2))","v":106.26852779633299},{"$f":"E46+E47+E48","v":164},{"$f":"SQRT((F46^2)+(F47^2)+(F48^2))","v":67.438861200349464},{"$f":"G46+G47+G48","v":211},{"$f":"SQRT((H46^2)+(H47^2)+(H48^2))","v":90.277350426338941},{"$f":"I46+I47+I48","v":304},{"$f":"SQRT((J46^2)+(J47^2)+(J48^2))","v":89.911067171956091},{"$f":"K46+K47+K48","v":131},{"$f":"SQRT((L46^2)+(L47^2)+(L48^2))","v":40.632499307820083},{"$f":"M46+M47+M48","v":106},{"$f":"SQRT((N46^2)+(N47^2)+(N48^2))","v":44.294469180700204},{"$f":"O46+O47+O48","v":151},{"$f":"SQRT((P46^2)+(P47^2)+(P48^2))","v":46.36809247747852},{"$f":"Q46+Q47+Q48","v":1754},{"$f":"SQRT((R46^2)+(R47^2)+(R48^2))","v":310.40457470855677},{"$f":"S46+S47+S48","v":146},{"$f":"SQRT((T46^2)+(T47^2)+(T48^2))","v":75.907838857393372},{"$f":"U46+U47+U48","v":160},{"$f":"SQRT((V46^2)+(V47^2)+(V48^2))","v":68.102863375925679},{"$f":"W46+W47+W48","v":267},{"$f":"SQRT((X46^2)+(X47^2)+(X48^2))","v":97.401232025062185},{"$f":"Y46+Y47+Y48","v":357},{"$f":"SQRT((Z46^2)+(Z47^2)+(Z48^2))","v":128.24585763290759},{"$f":"AA46+AA47+AA48","v":384},{"$f":"SQRT((AB46^2)+(AB47^2)+(AB48^2))","v":171.10230857589269},{"$f":"AC46+AC47+AC48","v":65},{"$f":"SQRT((AD46^2)+(AD47^2)+(AD48^2))","v":28.861739379323623},{"$f":"AE46+AE47+AE48","v":736},{"$f":"SQRT((AF46^2)+(AF47^2)+(AF48^2))","v":173.92814608337545},{"$f":"AG46+AG47+AG48","v":145},{"$f":"SQRT((AH46^2)+(AH47^2)+(AH48^2))","v":80.870266476622916},{"$f":"AI46+AI47+AI48","v":324},{"$f":"SQRT((AJ46^2)+(AJ47^2)+(AJ48^2))","v":158.94653189044419},{"$f":"AK46+AK47+AK48","v":44},{"$f":"SQRT((AL46^2)+(AL47^2)+(AL48^2))","v":31.843366656181313},{"$f":"AM46+AM47+AM48","v":385},{"$f":"SQRT((AN46^2)+(AN47^2)+(AN48^2))","v":150.79787796915446},{"$f":"AO46+AO47+AO48","v":178},{"$f":"SQRT((AP46^2)+(AP47^2)+(AP48^2))","v":81.461647417665205},{"$f":"AQ46+AQ47+AQ48","v":230},{"$f":"SQRT((AR46^2)+(AR47^2)+(AR48^2))","v":104.17293314484334},{"$f":"AS46+AS47+AS48","v":347},{"$f":"SQRT((AT46^2)+(AT47^2)+(AT48^2))","v":140.59516350145194},{"$f":"AU46+AU47+AU48","v":122},{"$f":"SQRT((AV46^2)+(AV47^2)+(AV48^2))","v":88.15327560561775},{"$f":"AW46+AW47+AW48","v":95},{"$f":"SQRT((AX46^2)+(AX47^2)+(AX48^2))","v":46.497311750250681},{"$f":"AY46+AY47+AY48","v":153},{"$f":"SQRT((AZ46^2)+(AZ47^2)+(AZ48^2))","v":57.463031594234565},{"$f":"BA46+BA47+BA48","v":111},{"$f":"SQRT((BB46^2)+(BB47^2)+(BB48^2))","v":43.116122274620196},{"$f":"BC46+BC47+BC48","v":108},{"$f":"SQRT((BD46^2)+(BD47^2)+(BD48^2))","v":59.991666087882571}]
[null," 50% or More of HH Income",{"$f":"C48","v":130},{"$f":"D48","v":70.455659815234142},{"$f":"E48","v":107},59.548299723837623,72,40.70626487409524,111,53.488316481265329,79,32.202484376209235,58,31.953090617340916,94,35.805027579936315,816,209.41107898103195,55,26.832815729997478,77,51.623637996561229,140,75.133215025047349,{"$f":"Y48","v":162},78.230428862431779,132,90.553851381374173,45,26.305892875931811,373,128.47178678604885,49,42.638011210655684,74,62.361847310675458,30,24.413111231467404,262,136.12494260788506,{"$f":"AO48","v":91},63.63961030678928,94,62.433965115151864,39,37.947331922020552,92,84.528101836016646,29,23.086792761230392,77,36.400549446402593,29,14.212670403551895,27,19.235384061671343]
[null,"Not computed",{"$f":"C49","v":0},{"$f":"D49","v":16.970562748477139},{"$f":"E49","v":0},16.970562748477139,11,21.633307652783937,7,21.400934559032695,0,16.970562748477139,5,14.422205101855956,0,16.970562748477139,29,26.627053911388696,0,16.970562748477139,5,14.422205101855956,0,16.970562748477139,{"$f":"Y49","v":35},30.016662039607269,0,24.041630560342615,0,16.970562748477139,0,26.870057685088806,0,24.041630560342615,0,24.041630560342615,5,15,16,28.635642126552707,{"$f":"AO49","v":0},16.970562748477139,0,24.041630560342615,8,18.439088914585774,0,16.970562748477139,8,17.691806012954132,0,16.970562748477139,23,39.849717690342551,0,16.970562748477139]
[]
[]
[]
[null,"B25091. MORTGAGE STATUS BY SELECTED MONTHLY OWNER COSTS AS A PERCENTAGE OF HOUSEHOLD INCOME IN THE PAST 12 MONTHS "]
[null,"Universe:  OWNER-OCCUPIED HOUSING UNITS"]
[null,"Data Set: 2013-2017 American Community Survey 5-Year Estimates"]
[]
[null,null,"Allenstown",null,"Andover",null,"Boscawen",null,"Bow",null,"Bradford",null,"Canterbury",null,"Chichester",null,"Concord",null,"Danbury",null,"Dunbarton",null,"Epsom",null,"Franklin",null,"Henniker",null,"Hill",null,"Hooksett",null,"Hopkinton",null,"Loudon",null,"Newbury",null,"New London",null,"Northfield",null,"Pembroke",null,"Pittsfield",null,"Salisbury",null,"Sutton",null,"Warner",null,"Webster",null,"Wilmot"]
[null,null,"Estimate","Margin Of Error","Estimate","Margin Of Error","Estimate","Margin Of Error","Estimate","Margin Of Error","Estimate","Margin Of Error","Estimate","Margin Of Error","Estimate","Margin Of Error","Estimate","Margin Of Error","Estimate","Margin Of Error","Estimate","Margin Of Error","Estimate","Margin Of Error","Estimate","Margin Of Error","Estimate","Margin Of Error","Estimate","Margin Of Error","Estimate","Margin Of Error","Estimate","Margin Of Error","Estimate","Margin Of Error","Estimate","Margin Of Error","Estimate","Margin Of Error","Estimate","Margin Of Error","Estimate","Margin Of Error","Estimate","Margin Of Error","Estimate","Margin Of Error","Estimate","Margin Of Error","Estimate","Margin Of Error","Estimate","Margin Of Error","Estimate","Margin Of Error"]
[null,"Total:",1223,125,914,83,856,140,2501,111,584,82,846,67,903,62,9069,391,487,62,922,51,1419,117,1974,176,1168,141,366,46,4146,207,1822,132,1745,167,773,92,1267,123,1311,101,1881,195,921,128,503,61,667,99,783,85,685,54,509,63]
[null,"Housing units with a mortgage:",663,102,597,76,589,130,1780,113,373,60,576,70,587,75,6156,332,286,50,695,55,867,119,1354,158,783,127,261,40,2916,213,1159,199,1012,175,522,80,604,103,895,112,1348,178,676,107,386,66,412,88,548,69,450,53,367,65]
[null,"Less than 10.0 percent",5,8,12,9,0,11,37,27,29,22,17,15,15,15,269,88,7,7,26,17,27,25,62,51,0,11,26,19,77,51,57,56,115,81,55,38,19,19,18,20,65,48,38,30,23,22,10,13,36,31,14,9,0,11]
[null,"10.0 to 14.9 percent",54,36,94,56,111,51,241,75,43,27,50,27,53,31,965,172,11,8,100,39,143,69,142,68,102,49,23,14,301,124,180,106,114,74,31,25,37,33,147,71,188,73,37,29,30,15,62,36,52,29,56,27,66,26]
[null,"15.0 to 19.9 percent",151,64,149,50,125,57,386,95,66,31,135,47,98,40,1240,183,76,35,138,44,143,68,294,102,113,61,38,20,564,146,146,75,182,94,92,35,125,69,130,57,281,93,131,70,49,24,50,29,123,35,47,18,65,25]
[null,"20.0 to 24.9 percent",96,44,106,32,76,45,233,60,41,20,105,36,104,39,1149,197,60,27,115,42,227,74,168,60,135,79,50,19,655,186,225,100,101,66,146,46,98,39,225,74,230,102,98,58,74,33,106,38,78,35,81,24,56,28]
[null,"25.0 to 29.9 percent",75,38,96,41,38,33,254,85,44,16,49,29,92,38,764,121,42,26,131,38,111,58,153,66,199,72,54,23,384,121,142,80,132,71,86,40,98,52,122,51,128,74,104,58,58,26,75,40,46,20,56,26,38,19]
[null,"30.0 to 34.9 percent",65,52,37,21,68,59,169,67,37,17,59,32,83,34,427,115,13,8,51,29,45,35,72,45,102,68,20,12,331,105,163,96,134,122,5,7,68,33,38,48,176,106,55,37,21,12,15,11,69,41,68,29,42,19]
[null,"35.0 to 39.9 percent",52,31,27,19,29,27,102,51,25,14,37,22,17,15,317,100,19,17,38,20,82,51,142,59,5,9,9,8,165,78,133,76,26,39,6,9,28,26,33,29,52,52,63,45,32,23,12,15,20,19,42,24,20,20]
[null,"40.0 to 49.9 percent",12,15,34,27,53,36,146,62,35,26,57,28,57,35,436,122,18,11,32,21,18,20,150,80,91,57,15,14,206,90,66,62,55,46,48,29,30,29,90,50,87,62,59,39,46,29,45,31,47,24,45,23,16,10]
[null,"50.0 percent or more",140,64,42,23,89,75,204,71,53,19,67,31,62,37,574,142,40,22,64,27,71,45,163,84,6,10,26,18,222,116,47,39,115,70,53,23,101,47,92,52,141,92,91,51,48,22,37,21,77,42,41,17,50,27]
[null,"Not computed",13,19,0,11,0,11,8,12,0,11,0,11,6,8,15,23,0,11,0,11,0,11,8,13,30,39,0,11,11,18,0,15,38,40,0,11,0,11,0,11,0,15,0,11,5,7,0,11,0,11,0,11,14,23]
[null,"Housing units without a mortgage:",560,110,317,66,267,89,721,104,211,52,270,54,316,63,2913,276,201,53,227,49,552,116,620,109,385,103,105,34,1230,187,663,154,733,179,251,60,663,108,416,89,533,109,245,72,117,40,255,63,235,61,235,39,142,38]
[null,"Less than 10.0 percent",75,50,58,32,110,63,238,67,20,14,43,21,115,54,682,131,65,35,29,19,134,70,165,83,114,62,31,20,309,119,204,100,164,74,66,29,221,81,161,60,99,53,23,27,15,12,76,35,80,45,55,20,12,10]
[null,"10.0 to 14.9 percent",103,54,57,36,25,24,130,54,68,35,95,35,57,27,505,114,25,18,101,47,130,53,117,50,71,52,21,14,302,113,100,75,133,75,70,38,93,45,133,67,207,91,67,42,35,24,44,27,28,24,58,29,23,17]
[null,"15.0 to 19.9 percent",106,62,22,17,55,44,68,38,33,14,57,27,34,23,462,96,25,22,31,17,91,74,85,53,47,41,19,16,117,59,57,42,122,99,52,34,36,26,30,24,91,50,54,38,28,14,61,26,43,28,52,24,27,18]
[null,"20.0 to 24.9 percent",41,27,39,30,18,13,56,37,15,12,5,7,38,24,290,87,27,19,24,16,38,28,67,50,34,32,17,18,100,52,90,89,36,43,4,7,54,37,49,43,46,44,6,9,17,10,19,19,26,27,11,12,18,18]
[null,"25.0 to 29.9 percent",56,34,41,33,15,18,57,42,23,18,5,8,24,18,213,91,8,6,15,12,19,31,67,66,25,26,3,6,84,69,89,58,105,75,38,19,55,33,0,11,16,27,44,28,4,5,12,12,15,13,20,12,26,21]
[null,"30.0 to 34.9 percent",45,34,33,30,7,10,20,22,14,12,7,10,0,11,178,91,15,18,0,11,36,31,37,29,25,28,3,4,78,58,29,33,36,45,10,10,65,37,0,11,0,15,17,16,13,20,9,15,11,11,3,6,0,11]
[null,"35.0 to 39.9 percent",7,10,22,16,15,17,0,15,12,15,0,11,22,27,203,91,3,4,10,10,24,23,9,14,0,11,4,5,64,48,12,21,24,27,5,7,20,24,6,9,15,24,7,11,2,4,10,16,13,12,3,5,11,9]
[null,"40.0 to 49.9 percent",39,42,16,14,0,11,67,38,3,4,33,21,4,6,104,51,6,6,13,20,41,33,14,21,0,11,4,6,50,41,12,19,26,32,0,11,42,27,0,11,27,33,16,18,0,11,7,7,0,11,13,9,10,15]
[null,"50.0 percent or more",80,53,12,12,22,22,85,44,23,13,20,17,22,19,213,74,27,20,4,7,39,40,59,33,69,61,3,4,111,68,70,53,87,68,6,9,77,39,37,29,32,35,11,13,3,5,17,19,19,11,20,12,15,11]
[null,"Not computed",8,12,17,26,0,11,0,15,0,11,5,8,0,11,63,39,0,11,0,11,0,11,0,15,0,11,0,11,15,17,0,15,0,15,0,11,0,11,0,11,0,15,0,11,0,11,0,11,0,11,0,11,0,11]
[]
[]
[]
[]
[]
[]
[]
[]
[]
[]
[]
[]
[]
[]
[]
[]
[]
[]
[]
[]
[]
[]
[]
[]
[]
[]
[]
[]
[]
[]
[]
[]
[null,"Calculated B25091. MORTGAGE STATUS BY SELECTED MONTHLY OWNER COSTS AS A PERCENTAGE OF HOUSEHOLD INCOME IN THE PAST 12 MONTHS "]
[null,"Universe:  OWNER-OCCUPIED HOUSING UNITS"]
[null,{"$f":"B74","v":"Data Set: 2013-2017 American Community Survey 5-Year Estimates"}]
[]
[null,null,"Allenstown",null,"Andover",null,"Boscawen",null,"Bow",null,"Bradford",null,"Canterbury",null,"Chichester",null,"Concord",null,"Danbury",null,"Dunbarton",null,"Epsom",null,"Franklin",null,"Henniker",null,"Hill",null,"Hooksett",null,"Hopkinton",null,"Loudon",null,"Newbury",null,"New London",null,"Northfield",null,"Pembroke",null,"Pittsfield",null,"Salisbury",null,"Sutton",null,"Warner",null,"Webster",null,"Wilmot"]
[null,null,"Estimate","Margin Of Error","Estimate","Margin Of Error","Estimate","Margin Of Error","Estimate","Margin Of Error","Estimate","Margin Of Error","Estimate","Margin Of Error","Estimate","Margin Of Error","Estimate","Margin Of Error","Estimate","Margin Of Error","Estimate","Margin Of Error","Estimate","Margin Of Error","Estimate","Margin Of Error","Estimate","Margin Of Error","Estimate","Margin Of Error","Estimate","Margin Of Error","Estimate","Margin Of Error","Estimate","Margin Of Error","Estimate","Margin Of Error","Estimate","Margin Of Error","Estimate","Margin Of Error","Estimate","Margin Of Error","Estimate","Margin Of Error","Estimate","Margin Of Error","Estimate","Margin Of Error","Estimate","Margin Of Error","Estimate","Margin Of Error","Estimate","Margin Of Error"]
[null,"Total:",1223,125,914,83,856,140,2501,111,584,82,846,67,903,62,9069,391,487,62,922,51,1419,117,1974,176,1168,141,366,46,4146,207,1822,132,1745,167,773,92,1267,123,1311,101,1881,195,921,128,503,61,667,99,783,85,685,54,509,63]
[null,"Less than 10.0 percent",80,50.635955604688654,70,33.241540277189323,110,63.953107821277925,275,72.235725233432802,49,26.076809620810597,60,25.80697580112788,130,56.044625076808217,951,157.8131806916013,72,35.693136595149497,55,25.495097567963924,161,74.330343736592525,227,97.416631023660429,114,62.968245965724662,57,27.586228448267445,386,129.46814279968643,261,114.61239025515522,279,109.71326264403953,121,47.801673610868477,240,83.198557679805958,179,63.245553203367585,164,71.505244562899023,61,40.36087214122113,38,25.059928172283335,86,37.336309405188942,116,54.644304369257,69,21.931712199461309,12,14.866068747318506]
[null,"10.0 to 14.9 percent",157,64.899922958351809,151,66.573267908372955,136,56.36488268416781,371,92.417530804496181,111,44.204072210600685,145,44.204072210600685,110,41.109609582188931,1470,206.3492185592182,36,19.697715603592208,201,61.073725938409879,273,87.005746936624831,259,84.403791384036765,173,71.449282711584999,44,19.798989873223331,603,167.76471619503309,280,129.84991336154215,247,105.3612832116238,101,45.486261662176638,130,55.803225713214822,280,97.621718894926246,395,116.66190466471906,104,51.039200620699383,65,28.301943396169811,106,45,80,37.643060449437421,114,39.623225512317902,89,31.064449134018133]
[null,"15.0 to 19.9 percent",257,89.10667763978185,171,52.810983706043572,180,72.006944109578768,454,102.31813133555558,99,34.014702703389901,192,54.203320931470607,132,46.141087980237309,1702,206.65188119153427,101,41.340053217188775,169,47.169905660283021,234,100.4987562112089,379,114.94781424629178,160,73.498299300051841,57,25.612496949731394,681,157.47063218263906,203,85.959292691366414,304,136.517398158623,144,48.795491595023407,161,73.736015623303103,160,61.846584384264908,372,105.58882516630251,185,79.649231006959511,77,27.784887978899608,111,38.948684188300895,166,44.82186966202994,99,30,92,30.805843601498726]
[null,"20.0 to 24.9 percent",137,51.623637996561229,145,43.863424398922618,94,46.840153714521477,289,70.49113419430843,56,23.323807579381203,110,36.674241641784498,142,45.793012567421243,1439,215.3555200128383,87,33.015148038438355,139,44.944410108488462,265,79.120161779409926,235,78.10249675906654,169,85.234969349440135,67,26.172504656604801,755,193.13207915827965,315,133.86933928274988,137,78.771822373231913,150,46.529560496527367,152,53.758720222862451,274,85.586213843118443,276,111.08555261599052,104,58.694122363316758,91,34.481879299133332,125,42.485291572496003,104,44.204072210600685,92,26.832815729997478,74,33.286633954186478]
[null,"25.0 to 29.9 percent",131,50.990195135927848,137,52.630789467763066,53,37.589892258425003,311,94.810336989170125,67,24.083189157584592,54,30.083217912982647,116,42.047592083257278,977,151.40013210033868,50,26.683328128252668,146,39.849717690342551,130,65.76473218982953,220,93.338095116624274,224,76.550636836018555,57,23.769728648009426,468,139.29106216839614,231,98.812954616284998,237,103.27632836231156,124,44.283179650969061,153,61.587336360651285,122,52.172789842982326,144,78.771822373231913,148,64.404968752418469,62,26.476404589747453,87,41.761226035642203,61,23.853720883753127,76,28.635642126552707,64,28.319604517012593]
[null,"30.0 to 34.9 percent",110,62.128898268036266,70,36.61966684720111,75,59.841457201508724,189,70.51950084905593,51,20.808652046684813,66,33.526109228480422,83,35.735136770411273,605,146.64924138910504,28,19.697715603592208,51,31.016124838541646,81,46.75467891024384,109,53.535035257296691,127,73.53910524340094,23,12.649110640673518,409,119.95415791042844,192,101.51354589413178,170,130.034610777285,15,12.206555615733702,133,49.578221024962161,38,49.244289008980523,176,107.05606008068857,72,40.311288741492746,34,23.323807579381203,24,18.601075237738275,80,42.449970553582247,71,29.614185789921695,42,21.95449840010015]
[null,"35.0 to 39.9 percent",59,32.572994949804659,49,24.839484696748443,44,31.906112267087632,102,53.160135440008048,37,20.518284528683193,37,24.596747752497688,39,30.886890422961002,520,135.20724832641184,22,17.464249196572979,48,22.360679774997898,106,55.946402922797461,151,60.638271743182131,5,14.212670403551895,13,9.4339811320566032,229,91.586025134842487,145,78.847954951285828,50,47.434164902525687,11,11.401754250991379,48,35.383612025908263,39,30.364452901377952,67,57.271284253105414,70,46.324939287601879,34,23.345235059857504,22,21.931712199461309,33,22.472205054244231,45,24.515301344262525,31,21.931712199461309]
[null,"40.0 to 49.9 percent",51,44.598206241955516,50,30.413812651491099,53,37.643060449437421,213,72.718635850791372,38,26.305892875931811,90,35,61,35.510561809129406,540,132.23085872821065,24,12.529964086141668,45,29,59,38.587562763149478,164,82.710337927008865,91,58.051701094799967,19,15.231546211727817,256,98.89893831583835,78,64.845971347493901,81,56.0357029044876,48,31.016124838541646,72,39.623225512317902,90,51.195702944680818,114,70.235318750611498,75,42.953463189829058,46,31.016124838541646,52,31.780497164141408,47,26.40075756488817,58,24.698178070456937,26,18.027756377319946]
[null,"50.0 percent or more",220,83.096329642168911,54,25.942243542145693,111,78.160092118676531,289,83.52843827104634,76,23.021728866442675,87,35.355339059327378,84,41.593268686170845,787,160.12495120998477,67,29.732137494637012,68,27.892651361962706,110,60.207972893961475,222,90.249653738947941,75,61.814237842102365,29,18.439088914585774,333,134.46189051177288,117,65.80273550544841,202,97.590983190046813,59,24.698178070456937,178,61.073725938409879,129,59.539902586416787,173,98.432718137822448,102,52.630789467763066,51,22.561028345356956,54,28.319604517012593,96,43.416586692184822,61,20.808652046684813,65,29.154759474226502]
[null,"Not computed",21,22.472205054244231,17,28.231188426986208,0,15.556349186104045,8,19.209372712298546,0,15.556349186104045,5,13.601470508735444,6,13.601470508735444,78,45.276925690687087,0,15.556349186104045,0,15.556349186104045,0,15.556349186104045,8,19.849433241279208,30,40.521599178709621,0,15.556349186104045,26,24.758836806279895,0,21.213203435596427,38,42.720018726587654,0,15.556349186104045,0,15.556349186104045,0,15.556349186104045,0,21.213203435596427,0,15.556349186104045,5,13.038404810405298,0,15.556349186104045,0,15.556349186104045,0,15.556349186104045,14,25.495097567963924]
[]
[]
[]
[]
[null,"Calculated MONTHLY OWNER COSTS AS A PERCENTAGE OF HOUSEHOLD INCOME IN THE PAST 12 MONTHS "]
[null,"Universe:  OWNER-OCCUPIED HOUSING UNITS"]
[null,{"$f":"B74","v":"Data Set: 2013-2017 American Community Survey 5-Year Estimates"}]
[null,null,"Allenstown",null,"Andover",null,"Boscawen",null,"Bow",null,"Bradford",null,"Canterbury",null,"Chichester",null,"Concord",null,"Danbury",null,"Dunbarton",null,"Epsom",null,"Franklin",null,"Henniker",null,"Hill",null,"Hooksett",null,"Hopkinton",null,"Loudon",null,"Newbury",null,"New London",null,"Northfield",null,"Pembroke",null,"Pittsfield",null,"Salisbury",null,"Sutton",null,"Warner",null,"Webster",null,"Wilmot"]
[null,null,"Estimate","Margin Of Error","Estimate","Margin Of Error","Estimate","Margin Of Error","Estimate","Margin Of Error","Estimate","Margin Of Error","Estimate","Margin Of Error","Estimate","Margin Of Error","Estimate","Margin Of Error","Estimate","Margin Of Error","Estimate","Margin Of Error","Estimate","Margin Of Error","Estimate","Margin Of Error","Estimate","Margin Of Error","Estimate","Margin Of Error","Estimate","Margin Of Error","Estimate","Margin Of Error","Estimate","Margin Of Error","Estimate","Margin Of Error","Estimate","Margin Of Error","Estimate","Margin Of Error","Estimate","Margin Of Error","Estimate","Margin Of Error","Estimate","Margin Of Error","Estimate","Margin Of Error","Estimate","Margin Of Error","Estimate","Margin Of Error","Estimate","Margin Of Error"]
[null,"Total:",{"$f":"C139","v":1223},125,914,83,856,140,2501,111,584,82,846,67,903,62,9069,391,487,62,922,51,1419,117,{"$f":"Y139","v":1974},176,1168,141,366,46,4146,207,1822,132,1745,167,773,92,1267,123,1311,101,1881,195,921,128,503,61,667,99,783,85,685,54,509,63]
[null,"Less than 20% of HH Income",{"$f":"C140+C141+C142","v":494},{"$f":"SQRT((D140^2)+(D141^2)+(D142^2))","v":121.309521472966},{"$f":"E140+E141+E142","v":392},{"$f":"SQRT((F140^2)+(F141^2)+(F142^2))","v":91.246917756163143},{"$f":"G140+G141+G142","v":426},{"$f":"SQRT((H140^2)+(H141^2)+(H142^2))","v":111.58852987650657},{"$f":"I140+I141+I142","v":1100},{"$f":"SQRT((J140^2)+(J141^2)+(J142^2))","v":155.65346125287417},{"$f":"K140+K141+K142","v":259},{"$f":"SQRT((L140^2)+(L141^2)+(L142^2))","v":61.571097115448573},{"$f":"M140+M141+M142","v":397},{"$f":"SQRT((N140^2)+(N141^2)+(N142^2))","v":74.55199527846321},{"$f":"O140+O141+O142","v":372},{"$f":"SQRT((P140^2)+(P141^2)+(P142^2))","v":83.426614458456839},{"$f":"Q140+Q141+Q142","v":4123},{"$f":"SQRT((R140^2)+(R141^2)+(R142^2))","v":331.94879123141868},{"$f":"S140+S141+S142","v":209},{"$f":"SQRT((T140^2)+(T141^2)+(T142^2))","v":58.060313467979142},{"$f":"U140+U141+U142","v":425},{"$f":"SQRT((V140^2)+(V141^2)+(V142^2))","v":81.271151093115449},{"$f":"W140+W141+W142","v":668},{"$f":"SQRT((X140^2)+(X141^2)+(X142^2))","v":152.29904792873788},{"$f":"Y140+Y141+Y142","v":865},{"$f":"SQRT((Z140^2)+(Z141^2)+(Z142^2))","v":172.70495071074251},{"$f":"AA140+AA141+AA142","v":447},{"$f":"SQRT((AB140^2)+(AB141^2)+(AB142^2))","v":120.29962593458053},{"$f":"AC140+AC141+AC142","v":158},{"$f":"SQRT((AD140^2)+(AD141^2)+(AD142^2))","v":42.532340636273474},{"$f":"AE140+AE141+AE142","v":1670},{"$f":"SQRT((AF140^2)+(AF141^2)+(AF142^2))","v":264.0151510803878},{"$f":"AG140+AG141+AG142","v":744},{"$f":"SQRT((AH140^2)+(AH141^2)+(AH142^2))","v":193.35459653186422},{"$f":"AI140+AI141+AI142","v":830},{"$f":"SQRT((AJ140^2)+(AJ141^2)+(AJ142^2))","v":204.38933435969696},{"$f":"AK140+AK141+AK142","v":366},{"$f":"SQRT((AL140^2)+(AL141^2)+(AL142^2))","v":82.067045761377329},{"$f":"AM140+AM141+AM142","v":531},{"$f":"SQRT((AN140^2)+(AN141^2)+(AN142^2))","v":124.39051410778879},{"$f":"AO140+AO141+AO142","v":619},{"$f":"SQRT((AP140^2)+(AP141^2)+(AP142^2))","v":131.73837709642547},{"$f":"AQ140+AQ141+AQ142","v":931},{"$f":"SQRT((AR140^2)+(AR141^2)+(AR142^2))","v":172.83518160374641},{"$f":"AS140+AS141+AS142","v":350},{"$f":"SQRT((AT140^2)+(AT141^2)+(AT142^2))","v":102.84940447080868},{"$f":"AU140+AU141+AU142","v":180},{"$f":"SQRT((AV140^2)+(AV141^2)+(AV142^2))","v":46.914816422959603},{"$f":"AW140+AW141+AW142","v":303},{"$f":"SQRT((AX140^2)+(AX141^2)+(AX142^2))","v":70.256672281001187},{"$f":"AY140+AY141+AY142","v":362},{"$f":"SQRT((AZ140^2)+(AZ141^2)+(AZ142^2))","v":80.074964876670407},{"$f":"BA140+BA141+BA142","v":282},{"$f":"SQRT((BB140^2)+(BB141^2)+(BB142^2))","v":54.323107422164284},{"$f":"BC140+BC141+BC142","v":193},{"$f":"SQRT((BD140^2)+(BD141^2)+(BD142^2))","v":46.206060208591687}]
[null," 20% to 29.9% of HH Income",{"$f":"C143+C144","v":268},{"$f":"SQRT((D143^2)+(D144^2))","v":72.560319734686942},{"$f":"E143+E144","v":282},{"$f":"SQRT((F143^2)+(F144^2))","v":68.512772531842558},{"$f":"G143+G144","v":147},{"$f":"SQRT((H143^2)+(H144^2))","v":60.058305004387194},{"$f":"I143+I144","v":600},{"$f":"SQRT((J143^2)+(J144^2))","v":118.14397995666135},{"$f":"K143+K144","v":123},{"$f":"SQRT((L143^2)+(L144^2))","v":33.526109228480422},{"$f":"M143+M144","v":164},{"$f":"SQRT((N143^2)+(N144^2))","v":47.434164902525687},{"$f":"O143+O144","v":258},{"$f":"SQRT((P143^2)+(P144^2))","v":62.169124169478209},{"$f":"Q143+Q144","v":2416},{"$f":"SQRT((R143^2)+(R144^2))","v":263.24893162176369},{"$f":"S143+S144","v":137},{"$f":"SQRT((T143^2)+(T144^2))","v":42.449970553582247},{"$f":"U143+U144","v":285},{"$f":"SQRT((V143^2)+(V144^2))","v":60.066629670724829},{"$f":"W143+W144","v":395},{"$f":"SQRT((X143^2)+(X144^2))","v":102.88342918079665},{"$f":"Y143+Y144","v":455},{"$f":"SQRT((Z143^2)+(Z144^2))","v":121.70456030897117},{"$f":"AA143+AA144","v":393},{"$f":"SQRT((AB143^2)+(AB144^2))","v":114.564392373896},{"$f":"AC143+AC144","v":124},{"$f":"SQRT((AD143^2)+(AD144^2))","v":35.355339059327378},{"$f":"AE143+AE144","v":1223},{"$f":"SQRT((AF143^2)+(AF144^2))","v":238.12181756403592},{"$f":"AG143+AG144","v":546},{"$f":"SQRT((AH143^2)+(AH144^2))","v":166.38810053606599},{"$f":"AI143+AI144","v":374},{"$f":"SQRT((AJ143^2)+(AJ144^2))","v":129.88841364802329},{"$f":"AK143+AK144","v":274},{"$f":"SQRT((AL143^2)+(AL144^2))","v":64.233947411006895},{"$f":"AM143+AM144","v":305},{"$f":"SQRT((AN143^2)+(AN144^2))","v":81.749617736109329},{"$f":"AO143+AO144","v":396},{"$f":"SQRT((AP143^2)+(AP144^2))","v":100.23472452199387},{"$f":"AQ143+AQ144","v":420},{"$f":"SQRT((AR143^2)+(AR144^2))","v":136.18002790424151},{"$f":"AS143+AS144","v":252},{"$f":"SQRT((AT143^2)+(AT144^2))","v":87.137821868577831},{"$f":"AU143+AU144","v":153},{"$f":"SQRT((AV143^2)+(AV144^2))","v":43.474130238568314},{"$f":"AW143+AW144","v":212},{"$f":"SQRT((AX143^2)+(AX144^2))","v":59.573484034425917},{"$f":"AY143+AY144","v":165},{"$f":"SQRT((AZ143^2)+(AZ144^2))","v":50.229473419497438},{"$f":"BA143+BA144","v":168},{"$f":"SQRT((BB143^2)+(BB144^2))","v":39.242833740697165},{"$f":"BC143+BC144","v":138},{"$f":"SQRT((BD143^2)+(BD144^2))","v":43.703546766824317}]
[null," Less Than 30% of HH Income",{"$f":"C140+C141+C142+C143+C144","v":762},{"$f":"SQRT((D140^2)+(D141^2)+(D142^2)+(D143^2)+(D144^2))","v":141.35416513141735},{"$f":"E140+E141+E142+E143+E144","v":674},{"$f":"SQRT((F140^2)+(F141^2)+(F142^2)+(F143^2)+(F144^2))","v":114.1052146047673},{"$f":"G140+G141+G142+G143+G144","v":573},{"$f":"SQRT((H140^2)+(H141^2)+(H142^2)+(H143^2)+(H144^2))","v":126.72410978184064},{"$f":"I140+I141+I142+I143+I144","v":1700},{"$f":"SQRT((J140^2)+(J141^2)+(J142^2)+(J143^2)+(J144^2))","v":195.41238445912276},{"$f":"K140+K141+K142+K143+K144","v":382},{"$f":"SQRT((L140^2)+(L141^2)+(L142^2)+(L143^2)+(L144^2))","v":70.107060985324438},{"$f":"M140+M141+M142+M143+M144","v":561},{"$f":"SQRT((N140^2)+(N141^2)+(N142^2)+(N143^2)+(N144^2))","v":88.362888137498089},{"$f":"O140+O141+O142+O143+O144","v":630},{"$f":"SQRT((P140^2)+(P141^2)+(P142^2)+(P143^2)+(P144^2))","v":104.04326023342406},{"$f":"Q140+Q141+Q142+Q143+Q144","v":6539},{"$f":"SQRT((R140^2)+(R141^2)+(R142^2)+(R143^2)+(R144^2))","v":423.66260160651422},{"$f":"S140+S141+S142+S143+S144","v":346},{"$f":"SQRT((T140^2)+(T141^2)+(T142^2)+(T143^2)+(T144^2))","v":71.923570545406051},{"$f":"U140+U141+U142+U143+U144","v":710},{"$f":"SQRT((V140^2)+(V141^2)+(V142^2)+(V143^2)+(V144^2))","v":101.05938848023968},{"$f":"W140+W141+W142+W143+W144","v":1063},{"$f":"SQRT((X140^2)+(X141^2)+(X142^2)+(X143^2)+(X144^2))","v":183.79336223052235},{"$f":"Y140+Y141+Y142+Y143+Y144","v":1320},{"$f":"SQRT((Z140^2)+(Z141^2)+(Z142^2)+(Z143^2)+(Z144^2))","v":211.27943581901198},{"$f":"AA140+AA141+AA142+AA143+AA144","v":840},{"$f":"SQRT((AB140^2)+(AB141^2)+(AB142^2)+(AB143^2)+(AB144^2))","v":166.12344807401513},{"$f":"AC140+AC141+AC142+AC143+AC144","v":282},{"$f":"SQRT((AD140^2)+(AD141^2)+(AD142^2)+(AD143^2)+(AD144^2))","v":55.308227236099334},{"$f":"AE140+AE141+AE142+AE143+AE144","v":2893},{"$f":"SQRT((AF140^2)+(AF141^2)+(AF142^2)+(AF143^2)+(AF144^2))","v":355.53621475174651},{"$f":"AG140+AG141+AG142+AG143+AG144","v":1290},{"$f":"SQRT((AH140^2)+(AH141^2)+(AH142^2)+(AH143^2)+(AH144^2))","v":255.09018013243866},{"$f":"AI140+AI141+AI142+AI143+AI144","v":1204},{"$f":"SQRT((AJ140^2)+(AJ141^2)+(AJ142^2)+(AJ143^2)+(AJ144^2))","v":242.16936222404354},{"$f":"AK140+AK141+AK142+AK143+AK144","v":640},{"$f":"SQRT((AL140^2)+(AL141^2)+(AL142^2)+(AL143^2)+(AL144^2))","v":104.21612159354233},{"$f":"AM140+AM141+AM142+AM143+AM144","v":836},{"$f":"SQRT((AN140^2)+(AN141^2)+(AN142^2)+(AN143^2)+(AN144^2))","v":148.84891669071698},{"$f":"AO140+AO141+AO142+AO143+AO144","v":1015},{"$f":"SQRT((AP140^2)+(AP141^2)+(AP142^2)+(AP143^2)+(AP144^2))","v":165.53549468316456},{"$f":"AQ140+AQ141+AQ142+AQ143+AQ144","v":1351},{"$f":"SQRT((AR140^2)+(AR141^2)+(AR142^2)+(AR143^2)+(AR144^2))","v":220.03863297157616},{"$f":"AS140+AS141+AS142+AS143+AS144","v":602},{"$f":"SQRT((AT140^2)+(AT141^2)+(AT142^2)+(AT143^2)+(AT144^2))","v":134.79985163196582},{"$f":"AU140+AU141+AU142+AU143+AU144","v":333},{"$f":"SQRT((AV140^2)+(AV141^2)+(AV142^2)+(AV143^2)+(AV144^2))","v":63.960925571789531},{"$f":"AW140+AW141+AW142+AW143+AW144","v":515},{"$f":"SQRT((AX140^2)+(AX141^2)+(AX142^2)+(AX143^2)+(AX144^2))","v":92.114059730314779},{"$f":"AY140+AY141+AY142+AY143+AY144","v":527},{"$f":"SQRT((AZ140^2)+(AZ141^2)+(AZ142^2)+(AZ143^2)+(AZ144^2))","v":94.525128934056468},{"$f":"BA140+BA141+BA142+BA143+BA144","v":450},{"$f":"SQRT((BB140^2)+(BB141^2)+(BB142^2)+(BB143^2)+(BB144^2))","v":67.014923711066032},{"$f":"BC140+BC141+BC142+BC143+BC144","v":331},{"$f":"SQRT((BD140^2)+(BD141^2)+(BD142^2)+(BD143^2)+(BD144^2))","v":63.600314464631381}]
[null," 30% or More of HH Income",{"$f":"C145+C146+C147+C148","v":440},{"$f":"SQRT((D145^2)+(D146^2)+(D147^2)+(D148^2))","v":117.53722814495839},{"$f":"E145+E146+E147+E148","v":223},{"$f":"SQRT((F145^2)+(F146^2)+(F147^2)+(F148^2))","v":59.632206063502295},{"$f":"G145+G146+G147+G148","v":283},{"$f":"SQRT((H145^2)+(H146^2)+(H147^2)+(H148^2))","v":110.11357772772621},{"$f":"I145+I146+I147+I148","v":793},{"$f":"SQRT((J145^2)+(J146^2)+(J147^2)+(J148^2))","v":141.64744967700619},{"$f":"K145+K146+K147+K148","v":202},{"$f":"SQRT((L145^2)+(L146^2)+(L147^2)+(L148^2))","v":45.563142999578069},{"$f":"M145+M146+M147+M148","v":280},{"$f":"SQRT((N145^2)+(N146^2)+(N147^2)+(N148^2))","v":64.838260309789305},{"$f":"O145+O146+O147+O148","v":267},{"$f":"SQRT((P145^2)+(P146^2)+(P147^2)+(P148^2))","v":72.263407060558663},{"$f":"Q145+Q146+Q147+Q148","v":2452},{"$f":"SQRT((R145^2)+(R146^2)+(R147^2)+(R148^2))","v":287.94443908504292},{"$f":"S145+S146+S147+S148","v":141},{"$f":"SQRT((T145^2)+(T146^2)+(T147^2)+(T148^2))","v":41.641325627314025},{"$f":"U145+U146+U147+U148","v":212},{"$f":"SQRT((V145^2)+(V146^2)+(V147^2)+(V148^2))","v":55.506756345511668},{"$f":"W145+W146+W147+W148","v":356},{"$f":"SQRT((X145^2)+(X146^2)+(X147^2)+(X148^2))","v":102.12737145349429},{"$f":"Y145+Y146+Y147+Y148","v":646},{"$f":"SQRT((Z145^2)+(Z146^2)+(Z147^2)+(Z148^2))","v":146.72763884149435},{"$f":"AA145+AA146+AA147+AA148","v":298},{"$f":"SQRT((AB145^2)+(AB146^2)+(AB147^2)+(AB148^2))","v":113.14150432091665},{"$f":"AC145+AC146+AC147+AC148","v":84},{"$f":"SQRT((AD145^2)+(AD146^2)+(AD147^2)+(AD148^2))","v":28.653097563788805},{"$f":"AE145+AE146+AE147+AE148","v":1227},{"$f":"SQRT((AF145^2)+(AF146^2)+(AF147^2)+(AF148^2))","v":225.02888703453164},{"$f":"AG145+AG146+AG147+AG148","v":532},{"$f":"SQRT((AH145^2)+(AH146^2)+(AH147^2)+(AH148^2))","v":158.29403020960709},{"$f":"AI145+AI146+AI147+AI148","v":503},{"$f":"SQRT((AJ145^2)+(AJ146^2)+(AJ147^2)+(AJ148^2))","v":178.39002214249541},{"$f":"AK145+AK146+AK147+AK148","v":133},{"$f":"SQRT((AL145^2)+(AL146^2)+(AL147^2)+(AL148^2))","v":43.023249528597908},{"$f":"AM145+AM146+AM147+AM148","v":431},{"$f":"SQRT((AN145^2)+(AN146^2)+(AN147^2)+(AN148^2))","v":94.921019800674287},{"$f":"AO145+AO146+AO147+AO148","v":296},{"$f":"SQRT((AP145^2)+(AP146^2)+(AP147^2)+(AP148^2))","v":97.534609242053151},{"$f":"AQ145+AQ146+AQ147+AQ148","v":530},{"$f":"SQRT((AR145^2)+(AR146^2)+(AR147^2)+(AR148^2))","v":171.35635383609213},{"$f":"AS145+AS146+AS147+AS148","v":319},{"$f":"SQRT((AT145^2)+(AT146^2)+(AT147^2)+(AT148^2))","v":91.575105787544686},{"$f":"AU145+AU146+AU147+AU148","v":165},{"$f":"SQRT((AV145^2)+(AV146^2)+(AV147^2)+(AV148^2))","v":50.596442562694072},{"$f":"AW145+AW146+AW147+AW148","v":152},{"$f":"SQRT((AX145^2)+(AX146^2)+(AX147^2)+(AX148^2))","v":51.371198156165292},{"$f":"AY145+AY146+AY147+AY148","v":256},{"$f":"SQRT((AZ145^2)+(AZ146^2)+(AZ147^2)+(AZ148^2))","v":69.921384425653358},{"$f":"BA145+BA146+BA147+BA148","v":235},{"$f":"SQRT((BB145^2)+(BB146^2)+(BB147^2)+(BB148^2))","v":50.209560842532767},{"$f":"BC145+BC146+BC147+BC148","v":164},{"$f":"SQRT((BD145^2)+(BD146^2)+(BD147^2)+(BD148^2))","v":46.238512086787566}]
[null," 30% to 34.9% of HH Income",{"$f":"C145","v":110},62.128898268036266,70,36.61966684720111,75,59.841457201508724,189,70.51950084905593,51,20.808652046684813,66,33.526109228480422,83,35.735136770411273,605,146.64924138910504,28,19.697715603592208,51,31.016124838541646,81,46.75467891024384,{"$f":"Y145","v":109},53.535035257296691,127,73.53910524340094,23,12.649110640673518,409,119.95415791042844,192,101.51354589413178,170,130.034610777285,15,12.206555615733702,133,49.578221024962161,38,49.244289008980523,176,107.05606008068857,72,40.311288741492746,34,23.323807579381203,24,18.601075237738275,80,42.449970553582247,71,29.614185789921695,42,21.95449840010015]
[null," Less Than 35% of HH Income",{"$f":"C140+C141+C142+C143+C144+C145","v":872},{"$f":"SQRT((D140^2)+(D141^2)+(D142^2)+(D143^2)+(D144^2)+(D145^2))","v":154.40531078949326},{"$f":"E140+E141+E142+E143+E144+E145","v":744},{"$f":"SQRT((F140^2)+(F141^2)+(F142^2)+(F143^2)+(F144^2)+(F145^2))","v":119.83738982471205},{"$f":"G140+G141+G142+G143+G144+G145","v":648},{"$f":"SQRT((H140^2)+(H141^2)+(H142^2)+(H143^2)+(H144^2)+(H145^2))","v":140.14278433083882},{"$f":"I140+I141+I142+I143+I144+I145","v":1889},{"$f":"SQRT((J140^2)+(J141^2)+(J142^2)+(J143^2)+(J144^2)+(J145^2))","v":207.74744282421383},{"$f":"K140+K141+K142+K143+K144+K145","v":433},{"$f":"SQRT((L140^2)+(L141^2)+(L142^2)+(L143^2)+(L144^2)+(L145^2))","v":73.13002119512889},{"$f":"M140+M141+M142+M143+M144+M145","v":627},{"$f":"SQRT((N140^2)+(N141^2)+(N142^2)+(N143^2)+(N144^2)+(N145^2))","v":94.509258805685278},{"$f":"O140+O141+O142+O143+O144+O145","v":713},{"$f":"SQRT((P140^2)+(P141^2)+(P142^2)+(P143^2)+(P144^2)+(P145^2))","v":110.00909053346456},{"$f":"Q140+Q141+Q142+Q143+Q144+Q145","v":7144},{"$f":"SQRT((R140^2)+(R141^2)+(R142^2)+(R143^2)+(R144^2)+(R145^2))","v":448.32577440963621},{"$f":"S140+S141+S142+S143+S144+S145","v":374},{"$f":"SQRT((T140^2)+(T141^2)+(T142^2)+(T143^2)+(T144^2)+(T145^2))","v":74.572112750008628},{"$f":"U140+U141+U142+U143+U144+U145","v":761},{"$f":"SQRT((V140^2)+(V141^2)+(V142^2)+(V143^2)+(V144^2)+(V145^2))","v":105.71187255932988},{"$f":"W140+W141+W142+W143+W144+W145","v":1144},{"$f":"SQRT((X140^2)+(X141^2)+(X142^2)+(X143^2)+(X144^2)+(X145^2))","v":189.64704057801694},{"$f":"Y140+Y141+Y142+Y143+Y144+Y145","v":1429},{"$f":"SQRT((Z140^2)+(Z141^2)+(Z142^2)+(Z143^2)+(Z144^2)+(Z145^2))","v":217.95641766188029},{"$f":"AA140+AA141+AA142+AA143+AA144+AA145","v":967},{"$f":"SQRT((AB140^2)+(AB141^2)+(AB142^2)+(AB143^2)+(AB144^2)+(AB145^2))","v":181.67278277166341},{"$f":"AC140+AC141+AC142+AC143+AC144+AC145","v":305},{"$f":"SQRT((AD140^2)+(AD141^2)+(AD142^2)+(AD143^2)+(AD144^2)+(AD145^2))","v":56.736231810017131},{"$f":"AE140+AE141+AE142+AE143+AE144+AE145","v":3302},{"$f":"SQRT((AF140^2)+(AF141^2)+(AF142^2)+(AF143^2)+(AF144^2)+(AF145^2))","v":375.22659820433842},{"$f":"AG140+AG141+AG142+AG143+AG144+AG145","v":1482},{"$f":"SQRT((AH140^2)+(AH141^2)+(AH142^2)+(AH143^2)+(AH144^2)+(AH145^2))","v":274.54689945435553},{"$f":"AI140+AI141+AI142+AI143+AI144+AI145","v":1374},{"$f":"SQRT((AJ140^2)+(AJ141^2)+(AJ142^2)+(AJ143^2)+(AJ144^2)+(AJ145^2))","v":274.87269780754872},{"$f":"AK140+AK141+AK142+AK143+AK144+AK145","v":655},{"$f":"SQRT((AL140^2)+(AL141^2)+(AL142^2)+(AL143^2)+(AL144^2)+(AL145^2))","v":104.9285471165974},{"$f":"AM140+AM141+AM142+AM143+AM144+AM145","v":969},{"$f":"SQRT((AN140^2)+(AN141^2)+(AN142^2)+(AN143^2)+(AN144^2)+(AN145^2))","v":156.88849543545251},{"$f":"AO140+AO141+AO142+AO143+AO144+AO145","v":1053},{"$f":"SQRT((AP140^2)+(AP141^2)+(AP142^2)+(AP143^2)+(AP144^2)+(AP145^2))","v":172.70495071074251},{"$f":"AQ140+AQ141+AQ142+AQ143+AQ144+AQ145","v":1527},{"$f":"SQRT((AR140^2)+(AR141^2)+(AR142^2)+(AR143^2)+(AR144^2)+(AR145^2))","v":244.69981610127948},{"$f":"AS140+AS141+AS142+AS143+AS144+AS145","v":674},{"$f":"SQRT((AT140^2)+(AT141^2)+(AT142^2)+(AT143^2)+(AT144^2)+(AT145^2))","v":140.69825869569246},{"$f":"AU140+AU141+AU142+AU143+AU144+AU145","v":367},{"$f":"SQRT((AV140^2)+(AV141^2)+(AV142^2)+(AV143^2)+(AV144^2)+(AV145^2))","v":68.080834307461302},{"$f":"AW140+AW141+AW142+AW143+AW144+AW145","v":539},{"$f":"SQRT((AX140^2)+(AX141^2)+(AX142^2)+(AX143^2)+(AX144^2)+(AX145^2))","v":93.973400491841304},{"$f":"AY140+AY141+AY142+AY143+AY144+AY145","v":607},{"$f":"SQRT((AZ140^2)+(AZ141^2)+(AZ142^2)+(AZ143^2)+(AZ144^2)+(AZ145^2))","v":103.61949623502325},{"$f":"BA140+BA141+BA142+BA143+BA144+BA145","v":521},{"$f":"SQRT((BB140^2)+(BB141^2)+(BB142^2)+(BB143^2)+(BB144^2)+(BB145^2))","v":73.266636336056806},{"$f":"BC140+BC141+BC142+BC143+BC144+BC145","v":373},{"$f":"SQRT((BD140^2)+(BD141^2)+(BD142^2)+(BD143^2)+(BD144^2)+(BD145^2))","v":67.282984476017418}]
[null," 35% or More of HH Income",{"$f":"C146+C147+C148","v":330},{"$f":"SQRT((D146^2)+(D147^2)+(D148^2))","v":99.774746303861875},{"$f":"E146+E147+E148","v":153},{"$f":"SQRT((F146^2)+(F147^2)+(F148^2))","v":47.063786503000372},{"$f":"G146+G147+G148","v":208},{"$f":"SQRT((H146^2)+(H147^2)+(H148^2))","v":92.433760066330748},{"$f":"I146+I147+I148","v":604},{"$f":"SQRT((J146^2)+(J147^2)+(J148^2))","v":122.84543133547946},{"$f":"K146+K147+K148","v":151},{"$f":"SQRT((L146^2)+(L147^2)+(L148^2))","v":40.533936399022487},{"$f":"M146+M147+M148","v":214},{"$f":"SQRT((N146^2)+(N147^2)+(N148^2))","v":55.497747702046432},{"$f":"O146+O147+O148","v":184},{"$f":"SQRT((P146^2)+(P147^2)+(P148^2))","v":62.809234989768818},{"$f":"Q146+Q147+Q148","v":1847},{"$f":"SQRT((R146^2)+(R147^2)+(R148^2))","v":247.80234058620189},{"$f":"S146+S147+S148","v":113},{"$f":"SQRT((T146^2)+(T147^2)+(T148^2))","v":36.687872655688281},{"$f":"U146+U147+U148","v":161},{"$f":"SQRT((V146^2)+(V147^2)+(V148^2))","v":46.032597145935618},{"$f":"W146+W147+W148","v":275},{"$f":"SQRT((X146^2)+(X147^2)+(X148^2))","v":90.796475702529335},{"$f":"Y146+Y147+Y148","v":537},{"$f":"SQRT((Z146^2)+(Z147^2)+(Z148^2))","v":136.61259092777649},{"$f":"AA146+AA147+AA148","v":171},{"$f":"SQRT((AB146^2)+(AB147^2)+(AB148^2))","v":85.982556370463882},{"$f":"AC146+AC147+AC148","v":61},{"$f":"SQRT((AD146^2)+(AD147^2)+(AD148^2))","v":25.709920264364882},{"$f":"AE146+AE147+AE148","v":818},{"$f":"SQRT((AF146^2)+(AF147^2)+(AF148^2))","v":190.39170149982903},{"$f":"AG146+AG147+AG148","v":340},{"$f":"SQRT((AH146^2)+(AH147^2)+(AH148^2))","v":121.45781160551181},{"$f":"AI146+AI147+AI148","v":333},{"$f":"SQRT((AJ146^2)+(AJ147^2)+(AJ148^2))","v":122.12288892750614},{"$f":"AK146+AK147+AK148","v":118},{"$f":"SQRT((AL146^2)+(AL147^2)+(AL148^2))","v":41.255302689472536},{"$f":"AM146+AM147+AM148","v":298},{"$f":"SQRT((AN146^2)+(AN147^2)+(AN148^2))","v":80.944425379392243},{"$f":"AO146+AO147+AO148","v":258},{"$f":"SQRT((AP146^2)+(AP147^2)+(AP148^2))","v":84.190260719396747},{"$f":"AQ146+AQ147+AQ148","v":354},{"$f":"SQRT((AR146^2)+(AR147^2)+(AR148^2))","v":133.79835574475496},{"$f":"AS146+AS147+AS148","v":247},{"$f":"SQRT((AT146^2)+(AT147^2)+(AT148^2))","v":82.225300242686856},{"$f":"AU146+AU147+AU148","v":131},{"$f":"SQRT((AV146^2)+(AV147^2)+(AV148^2))","v":44.899888641287298},{"$f":"AW146+AW147+AW148","v":128},{"$f":"SQRT((AX146^2)+(AX147^2)+(AX148^2))","v":47.885279575251516},{"$f":"AY146+AY147+AY148","v":176},{"$f":"SQRT((AZ146^2)+(AZ147^2)+(AZ148^2))","v":55.560777532356404},{"$f":"BA146+BA147+BA148","v":164},{"$f":"SQRT((BB146^2)+(BB147^2)+(BB148^2))","v":40.546269865426588},{"$f":"BC146+BC147+BC148","v":122},{"$f":"SQRT((BD146^2)+(BD147^2)+(BD148^2))","v":40.693979898751607}]
[null," 50% or More of HH Income",{"$f":"C148","v":220},83.096329642168911,54,25.942243542145693,111,78.160092118676531,289,83.52843827104634,76,23.021728866442675,87,35.355339059327378,84,41.593268686170845,787,160.12495120998477,67,29.732137494637012,68,27.892651361962706,110,60.207972893961475,{"$f":"Y148","v":222},90.249653738947941,75,61.814237842102365,29,18.439088914585774,333,134.46189051177288,117,65.80273550544841,202,97.590983190046813,59,24.698178070456937,178,61.073725938409879,129,59.539902586416787,173,98.432718137822448,102,52.630789467763066,51,22.561028345356956,54,28.319604517012593,96,43.416586692184822,61,20.808652046684813,65,29.154759474226502]
[null,"Not computed",{"$f":"C149","v":21},22.472205054244231,17,28.231188426986208,0,15.556349186104045,8,19.209372712298546,0,15.556349186104045,5,13.601470508735444,6,13.601470508735444,78,45.276925690687087,0,15.556349186104045,0,15.556349186104045,0,15.556349186104045,{"$f":"Y149","v":8},19.849433241279208,30,40.521599178709621,0,15.556349186104045,26,24.758836806279895,0,21.213203435596427,38,42.720018726587654,0,15.556349186104045,0,15.556349186104045,0,15.556349186104045,0,21.213203435596427,0,15.556349186104045,5,13.038404810405298,0,15.556349186104045,0,15.556349186104045,0,15.556349186104045,14,25.495097567963924]
[]
[]
[]
[null,"B25091. MORTGAGE STATUS BY SELECTED MONTHLY OWNER COSTS AS A PERCENTAGE OF HOUSEHOLD INCOME IN THE PAST 12 MONTHS "]
[null,"Universe:  OWNER-OCCUPIED HOUSING UNITS"]
[null,"Data Set: 2008-2012 American Community Survey 5-Year Estimates"]
[]
[null,null,"Allenstown",null,"Andover",null,"Boscawen",null,"Bow",null,"Bradford",null,"Canterbury",null,"Chichester",null,"Concord",null,"Danbury",null,"Dunbarton",null,"Epsom",null,"Franklin",null,"Henniker",null,"Hill",null,"Hooksett",null,"Hopkinton",null,"Loudon",null,"Newbury",null,"New London",null,"Northfield",null,"Pembroke",null,"Pittsfield",null,"Salisbury",null,"Sutton",null,"Warner",null,"Webster",null,"Wilmot"]
[null,null,"Esitimate","Margin Of Error","Esitimate","Margin Of Error","Esitimate","Margin Of Error","Esitimate","Margin Of Error","Esitimate","Margin Of Error","Esitimate","Margin Of Error","Esitimate","Margin Of Error","Esitimate","Margin Of Error","Esitimate","Margin Of Error","Esitimate","Margin Of Error","Esitimate","Margin Of Error","Esitimate","Margin Of Error","Esitimate","Margin Of Error","Esitimate","Margin Of Error","Esitimate","Margin Of Error","Esitimate","Margin Of Error","Esitimate","Margin Of Error","Esitimate","Margin Of Error","Esitimate","Margin Of Error","Esitimate","Margin Of Error","Esitimate","Margin Of Error","Esitimate","Margin Of Error","Esitimate","Margin Of Error","Esitimate","Margin Of Error","Esitimate","Margin Of Error","Esitimate","Margin Of Error","Esitimate","Margin Of Error"]
[null,"Total:",1072,170,814,100,1099,162,2322,112,506,65,886,56,889,57,9978,412,353,60,917,71,1485,117,2094,202,1113,134,407,51,4085,210,2169,174,1662,141,794,84,1393,147,1390,186,2150,206,1079,118,472,61,573,75,879,75,659,63,485,65]
[null,"Housing units with a mortgage:",655,156,580,90,773,121,1791,151,352,56,616,61,658,60,7418,355,231,54,716,71,1119,108,1447,158,928,123,321,51,2970,250,1317,167,1192,132,602,87,648,123,944,162,1694,176,795,103,381,58,394,66,534,68,537,60,365,59]
[null,"Less than 10.0 percent",11,17,47,39,35,51,60,46,16,22,20,18,9,9,243,85,10,10,13,19,28,27,35,26,31,32,4,6,100,78,63,53,90,71,19,15,54,58,0,85,94,75,0,85,4,7,0,85,24,21,3,5,15,17]
[null,"10.0 to 14.9 percent",39,35,61,30,76,60,161,74,62,24,34,25,43,24,678,174,31,25,65,32,75,55,54,35,62,56,53,27,241,107,105,58,153,59,38,22,59,44,63,39,84,60,41,45,16,10,70,32,71,39,52,20,28,18]
[null,"15.0 to 19.9 percent",97,54,69,36,115,57,311,102,36,23,89,42,75,37,1325,222,19,12,137,44,176,61,209,78,134,76,33,18,397,108,211,106,156,70,94,38,100,63,98,52,212,97,60,44,74,33,33,22,53,26,66,23,45,26]
[null,"20.0 to 24.9 percent",175,93,74,34,127,59,421,103,42,28,183,55,67,31,1221,210,38,29,114,41,253,84,207,92,285,93,51,28,517,132,176,70,207,87,46,26,131,62,155,67,336,125,58,41,54,17,80,42,61,30,95,36,37,19]
[null,"25.0 to 29.9 percent",90,49,79,34,97,52,289,105,68,28,30,23,114,45,1015,202,26,19,117,52,154,56,152,78,172,88,33,17,532,163,328,108,189,89,118,51,62,41,230,90,233,108,126,80,66,26,42,28,85,38,99,37,59,31]
[null,"30.0 to 34.9 percent",93,61,59,44,95,55,142,66,35,23,102,37,46,27,745,164,22,18,100,44,110,64,257,105,25,25,54,25,350,139,76,39,72,43,60,39,71,50,75,42,221,106,128,71,59,26,16,11,46,25,52,26,63,37]
[null,"35.0 to 39.9 percent",48,42,46,28,45,42,163,94,6,8,29,23,96,52,525,153,16,12,46,25,61,62,102,55,75,55,8,8,180,77,129,69,104,56,49,31,32,28,145,62,91,59,33,34,27,22,36,25,0,85,46,22,29,24]
[null,"40.0 to 49.9 percent",35,35,62,34,66,52,133,58,25,21,33,27,80,50,635,139,36,25,37,25,113,53,151,68,99,81,46,24,257,96,90,59,127,54,86,52,51,38,61,38,193,97,162,80,29,21,54,28,91,49,64,25,45,27]
[null,"50.0 percent or more",67,44,67,45,117,70,111,64,62,30,96,42,128,50,1031,215,33,26,87,38,149,66,280,103,45,46,39,23,396,123,139,68,94,50,74,38,88,60,117,82,210,92,187,81,52,30,63,31,103,41,49,22,44,29]
[null,"Not computed",0,85,16,25,0,85,0,85,0,85,0,85,0,85,0,85,0,85,0,85,0,85,0,85,0,85,0,85,0,85,0,85,0,85,18,15,0,85,0,85,20,31,0,85,0,85,0,85,0,85,11,18,0,85]
[null,"Housing units without a mortgage:",417,123,234,66,326,107,531,127,154,39,270,52,231,47,2560,267,122,35,201,61,366,109,647,129,185,64,86,28,1115,181,852,169,470,104,192,56,745,129,446,116,456,112,284,72,91,27,179,49,345,73,122,35,120,39]
[null,"Less than 10.0 percent",45,39,153,59,67,50,221,106,36,23,72,39,45,34,421,123,23,20,113,50,68,59,206,84,55,39,22,13,188,82,198,119,99,59,44,32,193,78,153,61,47,42,26,24,29,18,47,25,50,28,35,16,11,10]
[null,"10.0 to 14.9 percent",55,43,20,15,60,37,142,89,35,19,64,28,41,20,472,130,31,22,33,24,59,37,87,45,44,44,13,9,304,97,214,91,124,58,27,15,82,40,112,84,126,65,48,35,22,13,39,24,70,37,30,15,26,23]
[null,"15.0 to 19.9 percent",42,40,24,17,60,55,35,31,19,13,56,29,26,20,385,110,15,13,24,19,18,20,89,46,15,17,14,17,205,103,103,63,36,29,57,28,66,42,62,54,58,45,49,31,14,9,38,25,31,43,9,8,17,15]
[null,"20.0 to 24.9 percent",100,77,0,85,20,22,0,85,15,11,15,16,40,24,269,104,10,9,0,85,17,27,57,41,16,19,6,8,137,67,80,57,53,37,37,28,113,57,26,31,13,20,48,33,5,5,15,16,42,41,17,12,15,11]
[null,"25.0 to 29.9 percent",60,60,5,8,17,27,13,20,3,5,19,14,23,19,378,108,3,5,0,85,9,15,35,27,42,28,15,10,113,74,67,54,68,56,6,8,20,22,19,21,78,52,29,29,8,8,16,14,41,35,0,85,0,85]
[null,"30.0 to 34.9 percent",20,24,0,85,28,39,19,30,6,6,0,85,11,13,196,81,6,6,9,10,29,27,18,15,9,14,8,8,26,30,66,60,14,16,9,10,10,16,18,20,25,28,9,14,2,5,8,8,30,21,6,6,3,4]
[null,"35.0 to 39.9 percent",29,30,17,27,19,17,13,21,5,6,14,16,8,12,124,62,8,8,0,85,58,60,45,32,0,85,3,4,52,42,0,85,24,27,0,85,33,25,11,17,14,23,5,10,5,6,4,6,21,18,16,19,0,85]
[null,"40.0 to 49.9 percent",22,25,6,8,10,16,30,35,19,18,5,8,14,14,68,42,7,11,0,85,17,19,19,20,4,12,0,85,31,37,36,41,28,22,0,85,9,15,0,85,49,48,17,18,0,85,0,85,0,85,0,85,14,11]
[null,"50.0 percent or more",44,39,9,10,45,40,58,67,16,10,25,22,23,24,237,88,9,13,13,15,91,75,78,46,0,85,5,6,59,41,88,72,24,26,12,13,209,95,45,36,46,54,53,36,6,6,12,15,60,41,9,8,31,21]
[null,"Not computed",0,85,0,85,0,85,0,85,0,85,0,85,0,85,10,17,10,16,9,13,0,85,13,21,0,85,0,85,0,85,0,85,0,85,0,85,10,15,0,85,0,85,0,85,0,85,0,85,0,85,0,85,3,5]
[]
[]
[]
[null,"Calculated B25091. MORTGAGE STATUS BY SELECTED MONTHLY OWNER COSTS AS A PERCENTAGE OF HOUSEHOLD INCOME IN THE PAST 12 MONTHS "]
[null,"Universe:  OWNER-OCCUPIED HOUSING UNITS"]
[null,{"$f":"B174","v":"Data Set: 2008-2012 American Community Survey 5-Year Estimates"}]
[]
[null,null,"Allenstown",null,"Andover",null,"Boscawen",null,"Bow",null,"Bradford",null,"Canterbury",null,"Chichester",null,"Concord",null,"Danbury",null,"Dunbarton",null,"Epsom",null,"Franklin",null,"Henniker",null,"Hill",null,"Hooksett",null,"Hopkinton",null,"Loudon",null,"Newbury",null,"New London",null,"Northfield",null,"Pembroke",null,"Pittsfield",null,"Salisbury",null,"Sutton",null,"Warner",null,"Webster",null,"Wilmot"]
[null,null,"Estimate","Margin Of Error","Estimate","Margin Of Error","Estimate","Margin Of Error","Estimate","Margin Of Error","Estimate","Margin Of Error","Estimate","Margin Of Error","Estimate","Margin Of Error","Estimate","Margin Of Error","Estimate","Margin Of Error","Estimate","Margin Of Error","Estimate","Margin Of Error","Estimate","Margin Of Error","Estimate","Margin Of Error","Estimate","Margin Of Error","Estimate","Margin Of Error","Estimate","Margin Of Error","Estimate","Margin Of Error","Estimate","Margin Of Error","Estimate","Margin Of Error","Estimate","Margin Of Error","Estimate","Margin Of Error","Estimate","Margin Of Error","Estimate","Margin Of Error","Estimate","Margin Of Error","Estimate","Margin Of Error","Estimate","Margin Of Error","Estimate","Margin Of Error"]
[null,"Total:",{"$f":"C178","v":1072},{"$f":"D178","v":170},{"$f":"E178","v":814},100,1099,162,2322,112,506,65,886,56,889,57,9978,412,353,60,917,71,1485,117,2094,202,1113,134,407,51,4085,210,2169,174,1662,141,794,84,1393,147,1390,186,2150,206,1079,118,472,61,573,75,879,75,659,63,485,65]
[null,"Less than 10.0 percent",{"$f":"C180+C191","v":56},{"$f":"SQRT((D180^2)+(D191^2))","v":42.544094772365298},{"$f":"E180+E191","v":200},{"$f":"SQRT((F180^2)+(F191^2))","v":70.724818840347695},{"$f":"G180+G191","v":102},{"$f":"SQRT((H180^2)+(H191^2))","v":71.421285342676384},{"$f":"I180+I191","v":281},{"$f":"SQRT((J180^2)+(J191^2))","v":115.55085460523432},{"$f":"K180+K191","v":52},{"$f":"SQRT((L180^2)+(L191^2))","v":31.827660925679098},{"$f":"M180+M191","v":92},{"$f":"SQRT((N180^2)+(N191^2))","v":42.953463189829058},{"$f":"O180+O191","v":54},{"$f":"SQRT((P180^2)+(P191^2))","v":35.171010790137949},{"$f":"Q180+Q191","v":664},{"$f":"SQRT((R180^2)+(R191^2))","v":149.5125412799876},{"$f":"S180+S191","v":33},{"$f":"SQRT((T180^2)+(T191^2))","v":22.360679774997898},{"$f":"U180+U191","v":126},{"$f":"SQRT((V180^2)+(V191^2))","v":53.488316481265329},{"$f":"W180+W191","v":96},{"$f":"SQRT((X180^2)+(X191^2))","v":64.884512790033341},{"$f":"Y180+Y191","v":241},{"$f":"SQRT((Z180^2)+(Z191^2))","v":87.931791747922432},{"$f":"AA180+AA191","v":86},{"$f":"SQRT((AB180^2)+(AB191^2))","v":50.447993022517757},{"$f":"AC180+AC191","v":26},{"$f":"SQRT((AD180^2)+(AD191^2))","v":14.317821063276353},{"$f":"AE180+AE191","v":288},{"$f":"SQRT((AF180^2)+(AF191^2))","v":113.17243480636087},{"$f":"AG180+AG191","v":261},{"$f":"SQRT((AH180^2)+(AH191^2))","v":130.26895255585654},{"$f":"AI180+AI191","v":189},{"$f":"SQRT((AJ180^2)+(AJ191^2))","v":92.314679222754165},{"$f":"AK180+AK191","v":63},{"$f":"SQRT((AL180^2)+(AL191^2))","v":35.341194094144583},{"$f":"AM180+AM191","v":247},{"$f":"SQRT((AN180^2)+(AN191^2))","v":97.20082304178294},{"$f":"AO180+AO191","v":153},{"$f":"SQRT((AP180^2)+(AP191^2))","v":104.62313319720452},{"$f":"AQ180+AQ191","v":141},{"$f":"SQRT((AR180^2)+(AR191^2))","v":85.959292691366414},{"$f":"AS180+AS191","v":26},{"$f":"SQRT((AT180^2)+(AT191^2))","v":88.323269867006175},{"$f":"AU180+AU191","v":33},{"$f":"SQRT((AV180^2)+(AV191^2))","v":19.313207915827967},{"$f":"AW180+AW191","v":47},{"$f":"SQRT((AX180^2)+(AX191^2))","v":88.600225733346747},{"$f":"AY180+AY191","v":74},{"$f":"SQRT((AZ180^2)+(AZ191^2))","v":35},{"$f":"BA180+BA191","v":38},{"$f":"SQRT((BB180^2)+(BB191^2))","v":16.763054614240211},{"$f":"BC180+BC191","v":26},{"$f":"SQRT((BD180^2)+(BD191^2))","v":19.723082923316021}]
[null,"10.0 to 14.9 percent",{"$f":"C181+C192","v":94},55.443665102516448,81,33.541019662496844,136,70.49113419430843,303,115.74541027617467,97,30.610455730027933,98,37.536648758246919,84,31.240998703626616,1150,217.20036832381294,62,33.301651610693426,98,40,{"$f":"W181+W192","v":134},{"$f":"SQRT((X181^2)+(X192^2))","v":66.2872536767062},{"$f":"Y181+Y192","v":141},{"$f":"SQRT((Z181^2)+(Z192^2))","v":57.008771254956898},106,71.217975259059429,66,28.460498941515414,545,144.42298985964803,319,107.91200118615167,277,82.734515167492219,65,26.627053911388696,{"$f":"AM181+AM192","v":141},{"$f":"SQRT((AN181^2)+(AN192^2))","v":59.464274989274024},{"$f":"AO181+AO192","v":175},{"$f":"SQRT((AP181^2)+(AP192^2))","v":92.612094242598786},210,88.459030064770658,89,57.008771254956898,38,16.401219466856727,109,40,141,53.758720222862451,82,25,54,29.206163733020468]
[null,"15.0 to 19.9 percent",139,67.201190465645766,93,39.812058474788763,175,79.208585393251411,346,106.60675400742676,55,26.419689627245813,145,51.039200620699383,101,42.059481689626182,1710,247.7579463912308,34,17.691806012954132,161,47.927027865287037,{"$f":"W182+W193","v":194},{"$f":"SQRT((X182^2)+(X193^2))","v":64.195015382816138},{"$f":"Y182+Y193","v":298},{"$f":"SQRT((Z182^2)+(Z193^2))","v":90.553851381374173},149,77.878109889750149,47,24.758836806279895,602,149.24141516348604,314,123.30855606972291,192,75.769386958058462,151,47.201694884823787,{"$f":"AM182+AM193","v":166},{"$f":"SQRT((AN182^2)+(AN193^2))","v":75.716576784743779},{"$f":"AO182+AO193","v":160},{"$f":"SQRT((AP182^2)+(AP193^2))","v":74.966659255965254},270,106.92988356862641,109,53.823786563191554,88,34.205262752974143,71,33.301651610693426,84,50.24937810560445,75,24.351591323771842,62,30.016662039607269]
[null,"20.0 to 24.9 percent",275,120.7393887677091,74,91.547801721286575,147,62.968245965724662,421,133.5440002396214,57,30.083217912982647,198,57.280013966478741,107,39.204591567825318,1490,234.34163095788165,48,30.364452901377952,114,94.371605899232208,{"$f":"W183+W194","v":270},{"$f":"SQRT((X183^2)+(X194^2))","v":88.232647019116456},{"$f":"Y183+Y194","v":264},{"$f":"SQRT((Z183^2)+(Z194^2))","v":100.72239075796404},301,94.921019800674287,57,29.120439557122072,654,148.03040228277433,256,90.271811768680038,260,94.540996398387932,83,38.209946349085598,{"$f":"AM183+AM194","v":244},{"$f":"SQRT((AN183^2)+(AN194^2))","v":84.219950130595535},{"$f":"AO183+AO194","v":181},{"$f":"SQRT((AP183^2)+(AP194^2))","v":73.824115301166998},349,126.58988901172162,106,52.630789467763066,59,17.720045146669349,95,44.944410108488462,103,50.803543183522152,112,37.947331922020552,52,21.95449840010015]
[null,"25.0 to 29.9 percent",150,77.466121627457255,84,34.928498393145958,114,58.591808301161009,302,106.88779163215975,71,28.442925306655784,49,26.92582403567252,137,48.846698967279252,1393,229.05894437895239,29,19.646882704388499,117,99.644367628080218,{"$f":"W184+W195","v":163},{"$f":"SQRT((X184^2)+(X195^2))","v":57.974132162542979},{"$f":"Y184+Y195","v":187},{"$f":"SQRT((Z184^2)+(Z195^2))","v":82.540898953185632},214,92.347171044921566,48,19.723082923316021,645,179.0111728356641,395,120.74767078498864,257,105.152270541344,124,51.623637996561229,{"$f":"AM184+AM195","v":82},{"$f":"SQRT((AN184^2)+(AN195^2))","v":46.529560496527367},{"$f":"AO184+AO195","v":249},{"$f":"SQRT((AP184^2)+(AP195^2))","v":92.417530804496181},311,119.86659251017358,155,85.094065598019228,74,27.202941017470888,58,31.304951684997057,126,51.662365412357957,99,92.70382947861431,59,90.476516290140168]
[null,"30.0 to 34.9 percent",113,65.551506466289538,59,95.713112999212385,123,67.424031324150292,161,72.498275841567434,41,23.769728648009426,102,92.70382947861431,57,29.966648127543394,941,182.91254740995763,28,18.973665961010276,109,45.122056690713912,{"$f":"W185+W196","v":139},{"$f":"SQRT((X185^2)+(X196^2))","v":69.462219947249025},{"$f":"Y185+Y196","v":275},{"$f":"SQRT((Z185^2)+(Z196^2))","v":106.06601717798213},34,28.653097563788805,62,26.248809496813376,376,142.20056258679148,142,71.56116265125938,86,45.880278987817846,69,40.26164427839479,{"$f":"AM185+AM196","v":81},{"$f":"SQRT((AN185^2)+(AN196^2))","v":52.497618993626752},{"$f":"AO185+AO196","v":93},{"$f":"SQRT((AP185^2)+(AP196^2))","v":46.518813398452032},246,109.63576058932597,137,72.367119605522504,61,26.476404589747453,24,13.601470508735444,76,32.649655434629018,58,26.683328128252668,66,37.215588131856791]
[null,"35.0 to 39.9 percent",77,51.61395160225576,63,38.897300677553446,64,45.310043036836767,176,96.317184344227996,11,10,43,28.0178514522438,104,53.366656256505337,649,165.08482668010407,24,14.422205101855956,46,88.600225733346747,{"$f":"W186+W197","v":119},{"$f":"SQRT((X186^2)+(X197^2))","v":86.278618440491968},{"$f":"Y186+Y197","v":147},{"$f":"SQRT((Z186^2)+(Z197^2))","v":63.631753079732135},75,101.24228365658294,11,8.9442719099991592,232,87.709748602991681,129,109.48059188732951,128,62.169124169478209,49,90.476516290140168,{"$f":"AM186+AM197","v":65},{"$f":"SQRT((AN186^2)+(AN197^2))","v":37.536648758246919},{"$f":"AO186+AO197","v":156},{"$f":"SQRT((AP186^2)+(AP197^2))","v":64.288412641781719},105,63.324560795950255,38,35.440090293338699,32,22.803508501982758,40,25.709920264364882,21,86.884981440983225,62,29.068883707497267,29,88.323269867006175]
[null,"40.0 to 49.9 percent",57,43.011626335213137,68,34.928498393145958,76,54.405882034941776,163,67.742158217759794,44,27.658633371878661,38,28.160255680657446,94,51.923019942988681,703,145.2067491544384,43,27.313000567495326,37,88.600225733346747,{"$f":"W187+W198","v":130},{"$f":"SQRT((X187^2)+(X198^2))","v":56.302753041036986},{"$f":"Y187+Y198","v":170},{"$f":"SQRT((Z187^2)+(Z198^2))","v":70.880180586677398},103,81.884064383737083,46,88.323269867006175,288,102.88342918079665,126,71.847059786744225,155,58.309518948453004,86,99.644367628080218,{"$f":"AM187+AM198","v":60},{"$f":"SQRT((AN187^2)+(AN198^2))","v":40.853396431630991},{"$f":"AO187+AO198","v":61},{"$f":"SQRT((AP187^2)+(AP198^2))","v":93.107464792034804},242,108.22661410207751,179,82,29,87.555696559390128,54,89.493016487321512,91,98.112180691288273,64,88.600225733346747,59,29.154759474226502]
[null,"50.0 percent or more",111,58.796258384356399,76,46.097722286464439,162,80.622577482985491,169,92.655275079188016,78,31.622776601683793,121,47.413078364518789,151,55.461698495448189,1268,232.31228981696168,42,29.068883707497267,100,40.853396431630991,{"$f":"W188+W199","v":240},{"$f":"SQRT((X188^2)+(X199^2))","v":99.904954832080278},{"$f":"Y188+Y199","v":358},{"$f":"SQRT((Z188^2)+(Z199^2))","v":112.80514172678478},45,96.648848932617923,44,23.769728648009426,455,129.65338406690356,227,99.03534722511958,118,56.356011214421486,86,40.162171256046406,{"$f":"AM188+AM199","v":297},{"$f":"SQRT((AN188^2)+(AN199^2))","v":112.36102527122117},{"$f":"AO188+AO199","v":162},{"$f":"SQRT((AP188^2)+(AP199^2))","v":89.554452708952439},256,106.6770828247567,240,88.639720216164946,58,30.594117081556711,75,34.438350715445125,163,57.982756057296896,58,23.409399821439251,75,35.805027579936315]
[null,"Not computed",0,120.20815280171308,16,88.600225733346747,0,120.20815280171308,0,120.20815280171308,0,120.20815280171308,0,120.20815280171308,0,120.20815280171308,10,86.683331731077345,10,86.49277426467485,9,85.988371306822643,{"$f":"W189+W200","v":0},{"$f":"SQRT((X189^2)+(X200^2))","v":120.20815280171308},{"$f":"Y189+Y200","v":13},{"$f":"SQRT((Z189^2)+(Z200^2))","v":87.555696559390128},0,120.20815280171308,0,120.20815280171308,0,120.20815280171308,0,120.20815280171308,0,120.20815280171308,18,86.313382508160345,{"$f":"AM189+AM200","v":10},{"$f":"SQRT((AN189^2)+(AN200^2))","v":86.313382508160345},{"$f":"AO189+AO200","v":0},{"$f":"SQRT((AP189^2)+(AP200^2))","v":120.20815280171308},20,90.476516290140168,0,120.20815280171308,0,120.20815280171308,0,120.20815280171308,0,120.20815280171308,11,86.884981440983225,3,85.14693182963201]
[]
[]
[]
[]
[null,"Calculated MONTHLY OWNER COSTS AS A PERCENTAGE OF HOUSEHOLD INCOME IN THE PAST 12 MONTHS "]
[null,"Universe:  OWNER-OCCUPIED HOUSING UNITS"]
[null,{"$f":"B174","v":"Data Set: 2008-2012 American Community Survey 5-Year Estimates"}]
[null,null,"Allenstown",null,"Andover",null,"Boscawen",null,"Bow",null,"Bradford",null,"Canterbury",null,"Chichester",null,"Concord",null,"Danbury",null,"Dunbarton",null,"Epsom",null,"Franklin",null,"Henniker",null,"Hill",null,"Hooksett",null,"Hopkinton",null,"Loudon",null,"Newbury",null,"New London",null,"Northfield",null,"Pembroke",null,"Pittsfield",null,"Salisbury",null,"Sutton",null,"Warner",null,"Webster",null,"Wilmot"]
[null,null,"Estimate","Margin Of Error","Estimate","Margin Of Error","Estimate","Margin Of Error","Estimate","Margin Of Error","Estimate","Margin Of Error","Estimate","Margin Of Error","Estimate","Margin Of Error","Estimate","Margin Of Error","Estimate","Margin Of Error","Estimate","Margin Of Error","Estimate","Margin Of Error","Estimate","Margin Of Error","Estimate","Margin Of Error","Estimate","Margin Of Error","Estimate","Margin Of Error","Estimate","Margin Of Error","Estimate","Margin Of Error","Estimate","Margin Of Error","Estimate","Margin Of Error","Estimate","Margin Of Error","Estimate","Margin Of Error","Estimate","Margin Of Error","Estimate","Margin Of Error","Estimate","Margin Of Error","Estimate","Margin Of Error","Estimate","Margin Of Error","Estimate","Margin Of Error"]
[null,"Total:",{"$f":"C210","v":1072},{"$f":"D210","v":170},{"$f":"E210","v":814},100,1099,162,2322,112,506,65,886,56,889,57,9978,412,353,60,917,71,1485,117,2094,202,1113,134,407,51,4085,210,2169,174,1662,141,794,84,1393,147,1390,186,2150,206,1079,118,472,61,573,75,879,75,659,63,485,65]
[null,"Less than 20% of HH Income",{"$f":"C211+C212+C213","v":289},{"$f":"SQRT((D211^2)+(D212^2)+(D213^2))","v":96.95359714832658},{"$f":"E211+E212+E213","v":374},{"$f":"SQRT((F211^2)+(F212^2)+(F213^2))","v":87.817993600400598},{"$f":"G211+G212+G213","v":413},{"$f":"SQRT((H211^2)+(H212^2)+(H213^2))","v":127.8436545159751},{"$f":"I211+I212+I213","v":930},{"$f":"SQRT((J211^2)+(J212^2)+(J213^2))","v":195.2280717519896},{"$f":"K211+K212+K213","v":204},{"$f":"SQRT((L211^2)+(L212^2)+(L213^2))","v":51.458721321074428},{"$f":"M211+M212+M213","v":335},{"$f":"SQRT((N211^2)+(N212^2)+(N213^2))","v":76.54410493303844},{"$f":"O211+O212+O213","v":239},{"$f":"SQRT((P211^2)+(P212^2)+(P213^2))","v":63.103090257133999},{"$f":"Q211+Q212+Q213","v":3524},{"$f":"SQRT((R211^2)+(R212^2)+(R213^2))","v":361.82039743497052},{"$f":"S211+S212+S213","v":129},{"$f":"SQRT((T211^2)+(T212^2)+(T213^2))","v":43.840620433565945},{"$f":"U211+U212+U213","v":385},{"$f":"SQRT((V211^2)+(V212^2)+(V213^2))","v":82.20705565825844},{"$f":"W211+W212+W213","v":424},{"$f":"SQRT((X211^2)+(X212^2)+(X213^2))","v":112.80514172678478},{"$f":"Y211+Y212+Y213","v":680},{"$f":"SQRT((Z211^2)+(Z212^2)+(Z213^2))","v":138.49909746998352},{"$f":"AA211+AA212+AA213","v":341},{"$f":"SQRT((AB211^2)+(AB212^2)+(AB213^2))","v":116.97008164483772},{"$f":"AC211+AC212+AC213","v":139},{"$f":"SQRT((AD211^2)+(AD212^2)+(AD213^2))","v":40.348482003664031},{"$f":"AE211+AE212+AE213","v":1435},{"$f":"SQRT((AF211^2)+(AF212^2)+(AF213^2))","v":236.51427018258329},{"$f":"AG211+AG212+AG213","v":894},{"$f":"SQRT((AH211^2)+(AH212^2)+(AH213^2))","v":209.33227175951635},{"$f":"AI211+AI212+AI213","v":658},{"$f":"SQRT((AJ211^2)+(AJ212^2)+(AJ213^2))","v":145.28592498931204},{"$f":"AK211+AK212+AK213","v":279},{"$f":"SQRT((AL211^2)+(AL212^2)+(AL213^2))","v":64.69930447848725},{"$f":"AM211+AM212+AM213","v":554},{"$f":"SQRT((AN211^2)+(AN212^2)+(AN213^2))","v":136.81008734738825},{"$f":"AO211+AO212+AO213","v":488},{"$f":"SQRT((AP211^2)+(AP212^2)+(AP213^2))","v":158.56544390250986},{"$f":"AQ211+AQ212+AQ213","v":621},{"$f":"SQRT((AR211^2)+(AR212^2)+(AR213^2))","v":163.24215141929488},{"$f":"AS211+AS212+AS213","v":224},{"$f":"SQRT((AT211^2)+(AT212^2)+(AT213^2))","v":118.10165113155701},{"$f":"AU211+AU212+AU213","v":159},{"$f":"SQRT((AV211^2)+(AV212^2)+(AV213^2))","v":42.567593307585533},{"$f":"AW211+AW212+AW213","v":227},{"$f":"SQRT((AX211^2)+(AX212^2)+(AX213^2))","v":102.75699489572474},{"$f":"AY211+AY212+AY213","v":299},{"$f":"SQRT((AZ211^2)+(AZ212^2)+(AZ213^2))","v":81.486195149853444},{"$f":"BA211+BA212+BA213","v":195},{"$f":"SQRT((BB211^2)+(BB212^2)+(BB213^2))","v":38.716921365211881},{"$f":"BC211+BC212+BC213","v":142},{"$f":"SQRT((BD211^2)+(BD212^2)+(BD213^2))","v":46.292547996410825}]
[null," 20% to 29.9% of HH Income",{"$f":"C214+C215","v":425},{"$f":"SQRT((D214^2)+(D215^2))","v":143.45382532369084},{"$f":"E214+E215","v":158},{"$f":"SQRT((F214^2)+(F215^2))","v":97.984692682071525},{"$f":"G214+G215","v":261},{"$f":"SQRT((H214^2)+(H215^2))","v":86.011627120988706},{"$f":"I214+I215","v":723},{"$f":"SQRT((J214^2)+(J215^2))","v":171.05262348178118},{"$f":"K214+K215","v":128},{"$f":"SQRT((L214^2)+(L215^2))","v":41.400483088968905},{"$f":"M214+M215","v":247},{"$f":"SQRT((N214^2)+(N215^2))","v":63.292969593786637},{"$f":"O214+O215","v":244},{"$f":"SQRT((P214^2)+(P215^2))","v":62.63385665915839},{"$f":"Q214+Q215","v":2883},{"$f":"SQRT((R214^2)+(R215^2))","v":327.69498012633636},{"$f":"S214+S215","v":77},{"$f":"SQRT((T214^2)+(T215^2))","v":36.166282640050248},{"$f":"U214+U215","v":231},{"$f":"SQRT((V214^2)+(V215^2))","v":137.2406645276829},{"$f":"W214+W215","v":433},{"$f":"SQRT((X214^2)+(X215^2))","v":105.57461816175325},{"$f":"Y214+Y215","v":451},{"$f":"SQRT((Z214^2)+(Z215^2))","v":130.22288585344742},{"$f":"AA214+AA215","v":515},{"$f":"SQRT((AB214^2)+(AB215^2))","v":132.43111416883875},{"$f":"AC214+AC215","v":105},{"$f":"SQRT((AD214^2)+(AD215^2))","v":35.171010790137949},{"$f":"AE214+AE215","v":1299},{"$f":"SQRT((AF214^2)+(AF215^2))","v":232.2886135823278},{"$f":"AG214+AG215","v":651},{"$f":"SQRT((AH214^2)+(AH215^2))","v":150.76140089558734},{"$f":"AI214+AI215","v":517},{"$f":"SQRT((AJ214^2)+(AJ215^2))","v":141.40367746278736},{"$f":"AK214+AK215","v":207},{"$f":"SQRT((AL214^2)+(AL215^2))","v":64.22616289332565},{"$f":"AM214+AM215","v":326},{"$f":"SQRT((AN214^2)+(AN215^2))","v":96.218501339399381},{"$f":"AO214+AO215","v":430},{"$f":"SQRT((AP214^2)+(AP215^2))","v":118.28355760628779},{"$f":"AQ214+AQ215","v":660},{"$f":"SQRT((AR214^2)+(AR215^2))","v":174.33588270921163},{"$f":"AS214+AS215","v":261},{"$f":"SQRT((AT214^2)+(AT215^2))","v":100.05498488331303},{"$f":"AU214+AU215","v":133},{"$f":"SQRT((AV214^2)+(AV215^2))","v":32.465366161495851},{"$f":"AW214+AW215","v":153},{"$f":"SQRT((AX214^2)+(AX215^2))","v":54.772255750516614},{"$f":"AY214+AY215","v":229},{"$f":"SQRT((AZ214^2)+(AZ215^2))","v":72.456883730947197},{"$f":"BA214+BA215","v":211},{"$f":"SQRT((BB214^2)+(BB215^2))","v":100.16985574512923},{"$f":"BC214+BC215","v":111},{"$f":"SQRT((BD214^2)+(BD215^2))","v":93.102094498459053}]
[null," Less Than 30% of HH Income",{"$f":"C211+C212+C213+C214+C215","v":714},{"$f":"SQRT((D211^2)+(D212^2)+(D213^2)+(D214^2)+(D215^2))","v":173.14444836609692},{"$f":"E211+E212+E213+E214+E215","v":532},{"$f":"SQRT((F211^2)+(F212^2)+(F213^2)+(F214^2)+(F215^2))","v":131.57887368418989},{"$f":"G211+G212+G213+G214+G215","v":674},{"$f":"SQRT((H211^2)+(H212^2)+(H213^2)+(H214^2)+(H215^2))","v":154.08439246075508},{"$f":"I211+I212+I213+I214+I215","v":1653},{"$f":"SQRT((J211^2)+(J212^2)+(J213^2)+(J214^2)+(J215^2))","v":259.5630944491146},{"$f":"K211+K212+K213+K214+K215","v":332},{"$f":"SQRT((L211^2)+(L212^2)+(L213^2)+(L214^2)+(L215^2))","v":66.045438903833471},{"$f":"M211+M212+M213+M214+M215","v":582},{"$f":"SQRT((N211^2)+(N212^2)+(N213^2)+(N214^2)+(N215^2))","v":99.322706366671255},{"$f":"O211+O212+O213+O214+O215","v":483},{"$f":"SQRT((P211^2)+(P212^2)+(P213^2)+(P214^2)+(P215^2))","v":88.910066921580935},{"$f":"Q211+Q212+Q213+Q214+Q215","v":6407},{"$f":"SQRT((R211^2)+(R212^2)+(R213^2)+(R214^2)+(R215^2))","v":488.15776138457534},{"$f":"S211+S212+S213+S214+S215","v":206},{"$f":"SQRT((T211^2)+(T212^2)+(T213^2)+(T214^2)+(T215^2))","v":56.833088953531288},{"$f":"U211+U212+U213+U214+U215","v":616},{"$f":"SQRT((V211^2)+(V212^2)+(V213^2)+(V214^2)+(V215^2))","v":159.97812350443419},{"$f":"W211+W212+W213+W214+W215","v":857},{"$f":"SQRT((X211^2)+(X212^2)+(X213^2)+(X214^2)+(X215^2))","v":154.50242716540086},{"$f":"Y211+Y212+Y213+Y214+Y215","v":1131},{"$f":"SQRT((Z211^2)+(Z212^2)+(Z213^2)+(Z214^2)+(Z215^2))","v":190.10523401526851},{"$f":"AA211+AA212+AA213+AA214+AA215","v":856},{"$f":"SQRT((AB211^2)+(AB212^2)+(AB213^2)+(AB214^2)+(AB215^2))","v":176.69182210843829},{"$f":"AC211+AC212+AC213+AC214+AC215","v":244},{"$f":"SQRT((AD211^2)+(AD212^2)+(AD213^2)+(AD214^2)+(AD215^2))","v":53.525694764290542},{"$f":"AE211+AE212+AE213+AE214+AE215","v":2734},{"$f":"SQRT((AF211^2)+(AF212^2)+(AF213^2)+(AF214^2)+(AF215^2))","v":331.50716432680605},{"$f":"AG211+AG212+AG213+AG214+AG215","v":1545},{"$f":"SQRT((AH211^2)+(AH212^2)+(AH213^2)+(AH214^2)+(AH215^2))","v":257.9709285946771},{"$f":"AI211+AI212+AI213+AI214+AI215","v":1175},{"$f":"SQRT((AJ211^2)+(AJ212^2)+(AJ213^2)+(AJ214^2)+(AJ215^2))","v":202.73874814647544},{"$f":"AK211+AK212+AK213+AK214+AK215","v":486},{"$f":"SQRT((AL211^2)+(AL212^2)+(AL213^2)+(AL214^2)+(AL215^2))","v":91.164686145458759},{"$f":"AM211+AM212+AM213+AM214+AM215","v":880},{"$f":"SQRT((AN211^2)+(AN212^2)+(AN213^2)+(AN214^2)+(AN215^2))","v":167.25728683677733},{"$f":"AO211+AO212+AO213+AO214+AO215","v":918},{"$f":"SQRT((AP211^2)+(AP212^2)+(AP213^2)+(AP214^2)+(AP215^2))","v":197.82315334661916},{"$f":"AQ211+AQ212+AQ213+AQ214+AQ215","v":1281},{"$f":"SQRT((AR211^2)+(AR212^2)+(AR213^2)+(AR214^2)+(AR215^2))","v":238.83257734237179},{"$f":"AS211+AS212+AS213+AS214+AS215","v":485},{"$f":"SQRT((AT211^2)+(AT212^2)+(AT213^2)+(AT214^2)+(AT215^2))","v":154.78695035434995},{"$f":"AU211+AU212+AU213+AU214+AU215","v":292},{"$f":"SQRT((AV211^2)+(AV212^2)+(AV213^2)+(AV214^2)+(AV215^2))","v":53.535035257296698},{"$f":"AW211+AW212+AW213+AW214+AW215","v":380},{"$f":"SQRT((AX211^2)+(AX212^2)+(AX213^2)+(AX214^2)+(AX215^2))","v":116.44311916124542},{"$f":"AY211+AY212+AY213+AY214+AY215","v":528},{"$f":"SQRT((AZ211^2)+(AZ212^2)+(AZ213^2)+(AZ214^2)+(AZ215^2))","v":109.04127658827184},{"$f":"BA211+BA212+BA213+BA214+BA215","v":406},{"$f":"SQRT((BB211^2)+(BB212^2)+(BB213^2)+(BB214^2)+(BB215^2))","v":107.39180601889512},{"$f":"BC211+BC212+BC213+BC214+BC215","v":253},{"$f":"SQRT((BD211^2)+(BD212^2)+(BD213^2)+(BD214^2)+(BD215^2))","v":103.97595875970561}]
[null," 30% or More of HH Income",{"$f":"C216+C217+C218+C219","v":358},{"$f":"SQRT((D216^2)+(D217^2)+(D218^2)+(D219^2))","v":110.76100396800311},{"$f":"E216+E217+E218+E219","v":266},{"$f":"SQRT((F216^2)+(F217^2)+(F218^2)+(F219^2))","v":118.40185809352823},{"$f":"G216+G217+G218+G219","v":425},{"$f":"SQRT((H216^2)+(H217^2)+(H218^2)+(H219^2))","v":126.72410978184064},{"$f":"I216+I217+I218+I219","v":669},{"$f":"SQRT((J216^2)+(J217^2)+(J218^2)+(J219^2))","v":166.45419790440852},{"$f":"K216+K217+K218+K219","v":174},{"$f":"SQRT((L216^2)+(L217^2)+(L218^2)+(L219^2))","v":49.295030175464952},{"$f":"M216+M217+M218+M219","v":304},{"$f":"SQRT((N216^2)+(N217^2)+(N218^2)+(N219^2))","v":111.44505372604026},{"$f":"O216+O217+O218+O219","v":406},{"$f":"SQRT((P216^2)+(P217^2)+(P218^2)+(P219^2))","v":97.56023780208821},{"$f":"Q216+Q217+Q218+Q219","v":3561},{"$f":"SQRT((R216^2)+(R217^2)+(R218^2)+(R219^2))","v":368.46166693429592},{"$f":"S216+S217+S218+S219","v":137},{"$f":"SQRT((T216^2)+(T217^2)+(T218^2)+(T219^2))","v":46.465040621955772},{"$f":"U216+U217+U218+U219","v":292},{"$f":"SQRT((V216^2)+(V217^2)+(V218^2)+(V219^2))","v":139.30183056945089},{"$f":"W216+W217+W218+W219","v":628},{"$f":"SQRT((X216^2)+(X217^2)+(X218^2)+(X219^2))","v":159.43650773897426},{"$f":"Y216+Y217+Y218+Y219","v":950},{"$f":"SQRT((Z216^2)+(Z217^2)+(Z218^2)+(Z219^2))","v":181.79108889051741},{"$f":"AA216+AA217+AA218+AA219","v":257},{"$f":"SQRT((AB216^2)+(AB217^2)+(AB218^2)+(AB219^2))","v":164.67240205936147},{"$f":"AC216+AC217+AC218+AC219","v":163},{"$f":"SQRT((AD216^2)+(AD217^2)+(AD218^2)+(AD219^2))","v":95.577193932443961},{"$f":"AE216+AE217+AE218+AE219","v":1351},{"$f":"SQRT((AF216^2)+(AF217^2)+(AF218^2)+(AF219^2))","v":235.17865549407327},{"$f":"AG216+AG217+AG218+AG219","v":624},{"$f":"SQRT((AH216^2)+(AH217^2)+(AH218^2)+(AH219^2))","v":179.10053042914194},{"$f":"AI216+AI217+AI218+AI219","v":487},{"$f":"SQRT((AJ216^2)+(AJ217^2)+(AJ218^2)+(AJ219^2))","v":112.00892821556681},{"$f":"AK216+AK217+AK218+AK219","v":290},{"$f":"SQRT((AL216^2)+(AL217^2)+(AL218^2)+(AL219^2))","v":146.11296999240005},{"$f":"AM216+AM217+AM218+AM219","v":503},{"$f":"SQRT((AN216^2)+(AN217^2)+(AN218^2)+(AN219^2))","v":135.86390249069103},{"$f":"AO216+AO217+AO218+AO219","v":472},{"$f":"SQRT((AP216^2)+(AP217^2)+(AP218^2)+(AP219^2))","v":151.61134522191932},{"$f":"AQ216+AQ217+AQ218+AQ219","v":849},{"$f":"SQRT((AR216^2)+(AR217^2)+(AR218^2)+(AR219^2))","v":197.79534878252321},{"$f":"AS216+AS217+AS218+AS219","v":594},{"$f":"SQRT((AT216^2)+(AT217^2)+(AT218^2)+(AT219^2))","v":145.16886718577092},{"$f":"AU216+AU217+AU218+AU219","v":180},{"$f":"SQRT((AV216^2)+(AV217^2)+(AV218^2)+(AV219^2))","v":99.111048829078584},{"$f":"AW216+AW217+AW218+AW219","v":193},{"$f":"SQRT((AX216^2)+(AX217^2)+(AX218^2)+(AX219^2))","v":100.20479030465559},{"$f":"AY216+AY217+AY218+AY219","v":351},{"$f":"SQRT((AZ216^2)+(AZ217^2)+(AZ218^2)+(AZ219^2))","v":146.97959041989469},{"$f":"BA216+BA217+BA218+BA219","v":242},{"$f":"SQRT((BB216^2)+(BB217^2)+(BB218^2)+(BB219^2))","v":99.774746303861875},{"$f":"BC216+BC217+BC218+BC219","v":229},{"$f":"SQRT((BD216^2)+(BD217^2)+(BD218^2)+(BD219^2))","v":106.38608931622592}]
[null," 30% to 34.9% of HH Income",{"$f":"C216","v":113},{"$f":"D216","v":65.551506466289538},{"$f":"E216","v":59},95.713112999212385,123,67.424031324150292,161,72.498275841567434,41,23.769728648009426,102,92.70382947861431,57,29.966648127543394,941,182.91254740995763,28,18.973665961010276,109,45.122056690713912,139,69.462219947249025,275,106.06601717798213,34,28.653097563788805,62,26.248809496813376,376,142.20056258679148,142,71.56116265125938,86,45.880278987817846,69,40.26164427839479,81,52.497618993626752,93,46.518813398452032,246,109.63576058932597,137,72.367119605522504,61,26.476404589747453,24,13.601470508735444,76,32.649655434629018,58,26.683328128252668,66,37.215588131856791]
[null," Less Than 35% of HH Income",{"$f":"C211+C212+C213+C214+C215+C216","v":827},{"$f":"SQRT((D211^2)+(D212^2)+(D213^2)+(D214^2)+(D215^2)+(D216^2))","v":185.13778652668395},{"$f":"E211+E212+E213+E214+E215+E216","v":591},{"$f":"SQRT((F211^2)+(F212^2)+(F213^2)+(F214^2)+(F215^2)+(F216^2))","v":162.7083279982927},{"$f":"G211+G212+G213+G214+G215+G216","v":797},{"$f":"SQRT((H211^2)+(H212^2)+(H213^2)+(H214^2)+(H215^2)+(H216^2))","v":168.19036833302911},{"$f":"I211+I212+I213+I214+I215+I216","v":1814},{"$f":"SQRT((J211^2)+(J212^2)+(J213^2)+(J214^2)+(J215^2)+(J216^2))","v":269.4976808805597},{"$f":"K211+K212+K213+K214+K215+K216","v":373},{"$f":"SQRT((L211^2)+(L212^2)+(L213^2)+(L214^2)+(L215^2)+(L216^2))","v":70.192592201741633},{"$f":"M211+M212+M213+M214+M215+M216","v":684},{"$f":"SQRT((N211^2)+(N212^2)+(N213^2)+(N214^2)+(N215^2)+(N216^2))","v":135.86390249069103},{"$f":"O211+O212+O213+O214+O215+O216","v":540},{"$f":"SQRT((P211^2)+(P212^2)+(P213^2)+(P214^2)+(P215^2)+(P216^2))","v":93.824303887638834},{"$f":"Q211+Q212+Q213+Q214+Q215+Q216","v":7348},{"$f":"SQRT((R211^2)+(R212^2)+(R213^2)+(R214^2)+(R215^2)+(R216^2))","v":521.30125647268494},{"$f":"S211+S212+S213+S214+S215+S216","v":234},{"$f":"SQRT((T211^2)+(T212^2)+(T213^2)+(T214^2)+(T215^2)+(T216^2))","v":59.916608715780967},{"$f":"U211+U212+U213+U214+U215+U216","v":725},{"$f":"SQRT((V211^2)+(V212^2)+(V213^2)+(V214^2)+(V215^2)+(V216^2))","v":166.2197340871414},{"$f":"W211+W212+W213+W214+W215+W216","v":996},{"$f":"SQRT((X211^2)+(X212^2)+(X213^2)+(X214^2)+(X215^2)+(X216^2))","v":169.39893742287759},{"$f":"Y211+Y212+Y213+Y214+Y215+Y216","v":1406},{"$f":"SQRT((Z211^2)+(Z212^2)+(Z213^2)+(Z214^2)+(Z215^2)+(Z216^2))","v":217.6924435987616},{"$f":"AA211+AA212+AA213+AA214+AA215+AA216","v":890},{"$f":"SQRT((AB211^2)+(AB212^2)+(AB213^2)+(AB214^2)+(AB215^2)+(AB216^2))","v":179},{"$f":"AC211+AC212+AC213+AC214+AC215+AC216","v":306},{"$f":"SQRT((AD211^2)+(AD212^2)+(AD213^2)+(AD214^2)+(AD215^2)+(AD216^2))","v":59.615434243155519},{"$f":"AE211+AE212+AE213+AE214+AE215+AE216","v":3110},{"$f":"SQRT((AF211^2)+(AF212^2)+(AF213^2)+(AF214^2)+(AF215^2)+(AF216^2))","v":360.71872698821721},{"$f":"AG211+AG212+AG213+AG214+AG215+AG216","v":1687},{"$f":"SQRT((AH211^2)+(AH212^2)+(AH213^2)+(AH214^2)+(AH215^2)+(AH216^2))","v":267.71253239249},{"$f":"AI211+AI212+AI213+AI214+AI215+AI216","v":1261},{"$f":"SQRT((AJ211^2)+(AJ212^2)+(AJ213^2)+(AJ214^2)+(AJ215^2)+(AJ216^2))","v":207.86534102634812},{"$f":"AK211+AK212+AK213+AK214+AK215+AK216","v":555},{"$f":"SQRT((AL211^2)+(AL212^2)+(AL213^2)+(AL214^2)+(AL215^2)+(AL216^2))","v":99.659420026407943},{"$f":"AM211+AM212+AM213+AM214+AM215+AM216","v":961},{"$f":"SQRT((AN211^2)+(AN212^2)+(AN213^2)+(AN214^2)+(AN215^2)+(AN216^2))","v":175.30259553126987},{"$f":"AO211+AO212+AO213+AO214+AO215+AO216","v":1011},{"$f":"SQRT((AP211^2)+(AP212^2)+(AP213^2)+(AP214^2)+(AP215^2)+(AP216^2))","v":203.21909359112888},{"$f":"AQ211+AQ212+AQ213+AQ214+AQ215+AQ216","v":1527},{"$f":"SQRT((AR211^2)+(AR212^2)+(AR213^2)+(AR214^2)+(AR215^2)+(AR216^2))","v":262.79459659589656},{"$f":"AS211+AS212+AS213+AS214+AS215+AS216","v":622},{"$f":"SQRT((AT211^2)+(AT212^2)+(AT213^2)+(AT214^2)+(AT215^2)+(AT216^2))","v":170.8683703907777},{"$f":"AU211+AU212+AU213+AU214+AU215+AU216","v":353},{"$f":"SQRT((AV211^2)+(AV212^2)+(AV213^2)+(AV214^2)+(AV215^2)+(AV216^2))","v":59.724366886556446},{"$f":"AW211+AW212+AW213+AW214+AW215+AW216","v":404},{"$f":"SQRT((AX211^2)+(AX212^2)+(AX213^2)+(AX214^2)+(AX215^2)+(AX216^2))","v":117.23480711802276},{"$f":"AY211+AY212+AY213+AY214+AY215+AY216","v":604},{"$f":"SQRT((AZ211^2)+(AZ212^2)+(AZ213^2)+(AZ214^2)+(AZ215^2)+(AZ216^2))","v":113.82442620105756},{"$f":"BA211+BA212+BA213+BA214+BA215+BA216","v":464},{"$f":"SQRT((BB211^2)+(BB212^2)+(BB213^2)+(BB214^2)+(BB215^2)+(BB216^2))","v":110.65712810298305},{"$f":"BC211+BC212+BC213+BC214+BC215+BC216","v":319},{"$f":"SQRT((BD211^2)+(BD212^2)+(BD213^2)+(BD214^2)+(BD215^2)+(BD216^2))","v":110.43550153822818}]
[null," 35% or More of HH Income",{"$f":"C217+C218+C219","v":245},{"$f":"SQRT((D217^2)+(D218^2)+(D219^2))","v":89.280456988077745},{"$f":"E217+E218+E219","v":207},{"$f":"SQRT((F217^2)+(F218^2)+(F219^2))","v":69.699354372906498},{"$f":"G217+G218+G219","v":302},{"$f":"SQRT((H217^2)+(H218^2)+(H219^2))","v":107.29864864013899},{"$f":"I217+I218+I219","v":508},{"$f":"SQRT((J217^2)+(J218^2)+(J219^2))","v":149.8365776437783},{"$f":"K217+K218+K219","v":133},{"$f":"SQRT((L217^2)+(L218^2)+(L219^2))","v":43.185645763378368},{"$f":"M217+M218+M219","v":202},{"$f":"SQRT((N217^2)+(N218^2)+(N219^2))","v":61.854668376768458},{"$f":"O217+O218+O219","v":349},{"$f":"SQRT((P217^2)+(P218^2)+(P219^2))","v":92.843955107481278},{"$f":"Q217+Q218+Q219","v":2620},{"$f":"SQRT((R217^2)+(R218^2)+(R219^2))","v":319.85465449169254},{"$f":"S217+S218+S219","v":109},{"$f":"SQRT((T217^2)+(T218^2)+(T219^2))","v":42.414620120896991},{"$f":"U217+U218+U219","v":183},{"$f":"SQRT((V217^2)+(V218^2)+(V219^2))","v":131.79150200221559},{"$f":"W217+W218+W219","v":489},{"$f":"SQRT((X217^2)+(X218^2)+(X219^2))","v":143.50958156165044},{"$f":"Y217+Y218+Y219","v":675},{"$f":"SQRT((Z217^2)+(Z218^2)+(Z219^2))","v":147.64145759237138},{"$f":"AA217+AA218+AA219","v":223},{"$f":"SQRT((AB217^2)+(AB218^2)+(AB219^2))","v":162.16041440499589},{"$f":"AC217+AC218+AC219","v":101},{"$f":"SQRT((AD217^2)+(AD218^2)+(AD219^2))","v":91.902121847104269},{"$f":"AE217+AE218+AE219","v":975},{"$f":"SQRT((AF217^2)+(AF218^2)+(AF219^2))","v":187.31791158348952},{"$f":"AG217+AG218+AG219","v":482},{"$f":"SQRT((AH217^2)+(AH218^2)+(AH219^2))","v":164.18282492392436},{"$f":"AI217+AI218+AI219","v":401},{"$f":"SQRT((AJ217^2)+(AJ218^2)+(AJ219^2))","v":102.18121158021175},{"$f":"AK217+AK218+AK219","v":221},{"$f":"SQRT((AL217^2)+(AL218^2)+(AL219^2))","v":140.45639892863551},{"$f":"AM217+AM218+AM219","v":422},{"$f":"SQRT((AN217^2)+(AN218^2)+(AN219^2))","v":125.31161159286079},{"$f":"AO217+AO218+AO219","v":379},{"$f":"SQRT((AP217^2)+(AP218^2)+(AP219^2))","v":144.29830213831346},{"$f":"AQ217+AQ218+AQ219","v":603},{"$f":"SQRT((AR217^2)+(AR218^2)+(AR219^2))","v":164.62988793047271},{"$f":"AS217+AS218+AS219","v":457},{"$f":"SQRT((AT217^2)+(AT218^2)+(AT219^2))","v":125.84514293368656},{"$f":"AU217+AU218+AU219","v":119},{"$f":"SQRT((AV217^2)+(AV218^2)+(AV219^2))","v":95.509161864189764},{"$f":"AW217+AW218+AW219","v":169},{"$f":"SQRT((AX217^2)+(AX218^2)+(AX219^2))","v":99.277389167926856},{"$f":"AY217+AY218+AY219","v":275},{"$f":"SQRT((AZ217^2)+(AZ218^2)+(AZ219^2))","v":143.30736198814071},{"$f":"BA217+BA218+BA219","v":184},{"$f":"SQRT((BB217^2)+(BB218^2)+(BB219^2))","v":96.140522153772395},{"$f":"BC217+BC218+BC219","v":163},{"$f":"SQRT((BD217^2)+(BD218^2)+(BD219^2))","v":99.664436987322617}]
[null," 50% or More of HH Income",{"$f":"C219","v":111},{"$f":"D219","v":58.796258384356399},{"$f":"E219","v":76},46.097722286464439,162,80.622577482985491,169,92.655275079188016,78,31.622776601683793,121,47.413078364518789,151,55.461698495448189,1268,232.31228981696168,42,29.068883707497267,100,40.853396431630991,240,99.904954832080278,358,112.80514172678478,45,96.648848932617923,44,23.769728648009426,455,129.65338406690356,227,99.03534722511958,118,56.356011214421486,86,40.162171256046406,297,112.36102527122117,162,89.554452708952439,256,106.6770828247567,240,88.639720216164946,58,30.594117081556711,75,34.438350715445125,163,57.982756057296896,58,23.409399821439251,75,35.805027579936315]
[null,"Not computed",{"$f":"C220","v":0},{"$f":"D220","v":120.20815280171308},{"$f":"E220","v":16},88.600225733346747,0,120.20815280171308,0,120.20815280171308,0,120.20815280171308,0,120.20815280171308,0,120.20815280171308,10,86.683331731077345,10,86.49277426467485,9,85.988371306822643,0,120.20815280171308,13,87.555696559390128,0,120.20815280171308,0,120.20815280171308,0,120.20815280171308,0,120.20815280171308,0,120.20815280171308,18,86.313382508160345,10,86.313382508160345,0,120.20815280171308,20,90.476516290140168,0,120.20815280171308,0,120.20815280171308,0,120.20815280171308,0,120.20815280171308,11,86.884981440983225,3,85.14693182963201]

{"sheet":"ACS_Table_B25106","index":66,"n_rows":255,"n_cols":56,"rows_kept":255,"cut":false,"hidden":true,"merged":[]}
[null,"B25106. TENURE BY HOUSING COSTS AS A PERCENTAGE OF HOUSEHOLD INCOME IN THE PAST 12 MONTHS"]
[null,"Universe:  OCCUPIED HOUSING UNITS"]
[null,"Data Set: 2018-2022 American Community Survey 5-Year Estimates"]
[]
[null,null,"Allenstown",null,"Andover",null,"Boscawen",null,"Bow",null,"Bradford",null,"Canterbury",null,"Chichester",null,"Concord",null,"Danbury",null,"Dunbarton",null,"Epsom",null,"Franklin",null,"Henniker",null,"Hill",null,"Hooksett",null,"Hopkinton",null,"Loudon",null,"Newbury",null,"New London",null,"Northfield",null,"Pembroke",null,"Pittsfield",null,"Salisbury",null,"Sutton",null,"Warner",null,"Webster",null,"Wilmot"]
[null,null,"Estimate","Margin of Error","Estimate","Margin of Error","Estimate","Margin of Error","Estimate","Margin of Error","Estimate","Margin of Error","Estimate","Margin of Error","Estimate","Margin of Error","Estimate","Margin of Error","Estimate","Margin of Error","Estimate","Margin of Error","Estimate","Margin of Error","Estimate","Margin of Error","Estimate","Margin of Error","Estimate","Margin of Error","Estimate","Margin of Error","Estimate","Margin of Error","Estimate","Margin of Error","Estimate","Margin of Error","Estimate","Margin of Error","Estimate","Margin of Error","Estimate","Margin of Error","Estimate","Margin of Error","Estimate","Margin of Error","Estimate","Margin of Error","Estimate","Margin of Error","Estimate","Margin of Error","Estimate","Margin of Error"]
[null,"Total:",1812,193,878,119,1380,140,2895,133,632,73,920,96,1011,63,17955,443,672,112,1061,89,1844,139,3717,321,2397,206,318,54,5110,285,2168,194,2276,183,747,99,1636,129,1906,134,2627,196,1801,141,623,122,846,149,1200,89,795,103,624,90]
[null,"Owner occupied housing units:",1439,167,794,120,1056,125,2630,153,564,66,865,95,939,81,10275,455,625,114,1018,88,1640,126,2308,311,1545,230,298,49,4044,282,1912,206,1957,195,653,97,1485,137,1410,135,1997,205,1221,146,600,122,808,150,824,76,758,99,488,77]
[null,"Less than $20,000:",114,68,53,44,53,37,55,34,34,18,24,23,49,28,386,162,73,35,43,45,100,63,41,31,72,76,24,20,141,67,12,21,18,31,18,20,97,65,71,68,57,49,0,12,76,83,25,23,34,20,12,9,13,17]
[null,"Less than 20 percent",11,17,0,12,0,12,0,17,0,12,0,12,12,19,10,18,11,17,0,12,0,12,0,17,0,17,3,5,0,19,0,17,0,17,0,12,0,12,0,12,0,17,0,12,0,12,0,12,0,12,0,12,0,12]
[null,"20 to 29 percent",0,12,0,12,0,12,0,17,9,12,0,12,0,12,8,13,9,10,0,12,0,12,0,17,0,17,0,12,0,19,0,17,0,17,0,12,0,12,10,16,0,17,0,12,0,12,0,12,0,12,0,12,0,12]
[null,"30 percent or more",103,66,53,44,53,37,55,34,25,15,24,23,37,20,368,160,53,30,43,45,100,63,41,31,72,76,21,19,141,67,12,21,18,31,18,20,97,65,61,67,57,49,0,12,76,83,25,23,34,20,12,9,13,17]
[null,"$20,000 to $34,999:",173,109,63,35,28,26,52,38,89,53,30,25,49,27,649,147,91,71,8,9,95,56,319,250,70,56,37,21,207,106,79,54,399,261,21,17,183,94,101,51,108,87,184,118,32,24,44,32,87,42,40,23,22,18]
[null,"Less than 20 percent",33,54,5,9,0,12,9,14,0,12,0,12,4,7,6,10,0,12,0,12,42,41,7,12,26,33,0,12,2,5,28,42,0,17,0,12,0,12,18,20,58,91,57,64,11,19,8,12,12,18,3,5,0,12]
[null,"20 to 29 percent",34,51,6,8,0,12,0,17,44,44,0,12,8,9,103,68,18,19,0,12,6,10,229,246,0,17,11,11,70,64,12,21,185,240,0,12,30,34,25,26,0,17,0,12,10,13,0,12,23,20,0,12,3,5]
[null,"30 percent or more",106,80,52,35,28,26,43,35,45,29,30,25,37,24,540,126,73,68,8,9,47,34,83,49,44,44,26,18,135,77,39,37,214,136,21,17,153,87,58,41,50,45,127,94,11,8,36,30,52,37,37,22,19,18]
[null,"$35,000 to $49,999:",144,92,116,91,108,51,59,35,66,26,48,26,61,25,662,170,83,51,64,36,54,27,233,93,72,67,17,12,288,105,99,65,179,107,26,18,67,50,91,54,101,71,137,65,48,33,79,62,50,31,38,25,23,14]
[null,"Less than 20 percent",45,58,67,86,9,15,0,17,0,12,0,12,0,12,48,46,41,39,22,26,9,15,53,41,0,17,4,5,6,9,28,45,25,30,10,11,0,12,7,11,0,17,40,38,5,6,16,17,0,12,0,12,0,12]
[null,"20 to 29 percent",34,33,23,18,30,28,23,18,15,16,17,15,17,13,187,90,6,6,20,16,35,20,26,24,63,66,7,7,72,57,29,28,51,60,11,12,30,41,65,53,26,29,0,12,19,27,47,67,26,17,20,24,6,7]
[null,"30 percent or more",65,61,26,23,69,43,36,29,51,24,31,22,44,21,427,139,36,29,22,19,10,16,154,84,9,18,6,7,210,99,42,51,103,82,5,8,37,30,19,24,75,68,97,59,24,17,16,12,24,24,18,10,17,13]
[null,"$50,000 to $74,999:",180,86,61,33,186,81,166,53,51,25,110,53,74,33,1621,308,102,39,84,39,255,100,438,163,185,91,48,16,699,208,204,97,236,126,59,34,245,110,296,95,338,165,142,80,77,34,60,30,90,34,121,48,72,37]
[null,"Less than 20 percent",59,56,33,19,27,25,34,22,14,12,44,37,20,20,345,108,31,17,8,9,86,62,262,150,61,47,13,8,320,154,65,59,97,90,47,32,52,33,109,62,55,47,29,28,33,32,12,12,33,18,32,16,27,24]
[null,"20 to 29 percent",45,34,12,12,59,40,64,42,17,19,42,30,29,16,500,136,36,28,18,17,69,41,116,79,18,21,19,11,114,73,58,58,27,46,12,14,36,34,92,68,172,148,34,53,11,9,8,9,23,19,19,13,10,9]
[null,"30 percent or more",76,62,16,21,100,75,68,35,20,11,24,19,25,19,776,227,35,23,58,31,100,59,60,31,106,79,16,10,265,107,81,49,112,92,0,12,157,109,95,63,111,58,79,59,33,24,40,28,34,27,70,44,35,27]
[null,"$75,000 or more:",828,144,501,93,670,122,2291,142,324,47,648,96,706,83,6928,423,276,65,814,83,1136,130,1242,207,1146,233,172,43,2709,266,1518,168,1125,247,524,88,877,115,851,126,1393,186,750,129,367,102,592,148,563,73,524,82,358,68]
[null,"Less than 20 percent",523,121,307,75,421,120,1528,159,210,46,485,98,380,86,4690,373,221,61,513,100,583,111,828,171,459,119,139,39,1812,218,875,183,775,220,398,72,612,122,534,116,797,183,360,117,294,100,455,136,377,73,372,81,242,55]
[null,"20 to 29 percent",210,110,144,45,169,76,550,113,78,29,115,40,186,53,1732,314,50,23,214,64,366,123,325,111,495,244,29,17,693,202,398,160,307,135,112,56,203,80,283,113,523,187,214,100,69,28,113,44,151,45,104,32,37,16]
[null,"30 percent or more",95,69,50,30,80,72,213,72,36,17,48,29,140,85,506,167,5,7,87,45,187,78,89,79,192,111,4,5,204,92,245,131,43,55,14,12,62,40,34,31,73,50,176,82,4,5,24,18,35,20,48,34,79,52]
[null,"Zero or negative income",0,12,0,12,11,18,7,13,0,12,5,8,0,12,29,30,0,12,5,8,0,12,35,30,0,17,0,12,0,19,0,17,0,17,5,9,16,26,0,12,0,17,8,14,0,12,8,13,0,12,23,38,0,12]
[null,"Renter occupied housing units:",373,153,84,44,324,94,265,91,68,35,55,36,72,45,7680,442,47,32,43,22,204,81,1409,255,852,272,20,20,1066,219,256,146,319,181,94,40,151,69,496,124,630,156,580,158,23,21,38,21,376,90,37,23,136,56]
[null,"Less than $20,000:",126,107,5,9,81,60,38,21,0,12,36,34,0,12,1311,296,0,12,0,12,32,38,354,136,295,150,11,16,114,77,0,17,116,116,9,10,28,27,83,52,138,115,73,98,0,12,3,4,58,32,4,6,0,12]
[null,"Less than 20 percent",10,15,0,12,25,42,0,17,0,12,0,12,0,12,20,30,0,12,0,12,0,12,10,16,0,17,0,12,0,19,0,17,0,17,0,12,0,12,21,23,0,17,0,12,0,12,0,12,0,12,0,12,0,12]
[null,"20 to 29 percent",0,12,0,12,0,12,0,17,0,12,0,12,0,12,283,130,0,12,0,12,10,17,70,53,109,84,0,12,28,32,0,17,31,47,4,6,10,17,7,11,0,17,14,23,0,12,0,12,15,23,0,12,0,12]
[null,"30 percent or more",116,106,5,9,56,45,38,21,0,12,36,34,0,12,1008,269,0,12,0,12,22,35,274,117,186,137,11,16,86,71,0,17,85,104,5,8,18,22,55,44,138,115,59,93,0,12,3,4,43,31,4,6,0,12]
[null,"$20,000 to $34,999:",64,68,6,9,46,52,57,35,9,15,0,12,18,27,1173,260,5,6,6,9,53,32,254,133,225,155,0,12,133,108,11,19,30,37,31,27,7,12,39,34,134,113,172,120,4,8,0,12,85,48,0,12,45,51]
[null,"Less than 20 percent",0,12,0,12,32,47,0,17,0,12,0,12,0,12,92,74,0,12,0,12,0,12,10,15,19,22,0,12,0,19,0,17,0,17,0,12,0,12,0,12,0,17,0,12,0,12,0,12,0,12,0,12,0,12]
[null,"20 to 29 percent",14,16,0,12,0,12,0,17,0,12,0,12,0,12,61,48,0,12,0,12,18,22,38,29,0,17,0,12,21,26,0,17,0,17,31,27,0,12,0,12,74,93,0,12,0,12,0,12,39,36,0,12,12,19]
[null,"30 percent or more",50,67,6,9,14,24,57,35,9,15,0,12,18,27,1020,239,5,6,6,9,35,24,206,128,206,153,0,12,112,106,11,19,30,37,0,12,7,12,39,34,60,68,172,120,4,8,0,12,46,41,0,12,33,47]
[null,"$35,000 to $49,999:",57,62,7,10,34,32,10,17,13,9,4,6,0,12,1008,240,13,13,9,14,50,62,159,100,85,80,0,12,104,62,21,29,45,55,10,10,27,32,142,99,68,66,170,101,0,12,0,12,53,56,4,4,6,8]
[null,"Less than 20 percent",41,60,0,12,10,16,0,17,0,12,0,12,0,12,18,21,0,12,0,12,0,12,5,8,29,50,0,12,8,12,0,17,14,25,0,12,17,28,0,12,41,55,13,23,0,12,0,12,0,12,2,3,0,12]
[null,"20 to 29 percent",16,21,0,12,0,12,0,17,4,5,0,12,0,12,356,147,0,12,0,12,0,12,63,68,56,64,0,12,7,13,7,11,0,17,0,12,10,15,76,82,0,17,26,31,0,12,0,12,0,12,0,12,6,8]
[null,"30 percent or more",0,12,7,10,24,27,10,17,9,7,4,6,0,12,634,207,13,13,9,14,50,62,91,70,0,17,0,12,89,62,14,27,31,45,10,10,0,12,66,59,27,35,131,99,0,12,0,12,53,56,2,3,0,12]
[null,"$50,000 to $74,999:",51,43,12,18,84,62,53,43,25,25,0,12,0,12,1568,261,10,17,5,7,42,35,139,67,175,137,6,9,155,84,67,70,77,107,10,12,26,24,114,65,124,84,76,64,0,12,7,8,66,46,3,5,24,24]
[null,"Less than 20 percent",17,28,0,12,25,28,0,17,3,5,0,12,0,12,223,112,10,17,5,7,0,12,28,30,128,124,0,12,33,31,33,51,0,17,5,9,0,12,51,50,11,18,12,20,0,12,0,12,8,14,0,12,0,12]
[null,"20 to 29 percent",8,13,12,18,42,53,42,39,13,19,0,12,0,12,895,213,0,12,0,12,34,32,108,61,47,56,6,9,24,28,34,49,77,107,0,12,8,13,63,40,58,56,64,59,0,12,0,12,45,36,3,5,16,23]
[null,"30 percent or more",26,31,0,12,17,26,11,17,9,16,0,12,0,12,450,158,0,12,0,12,8,12,3,6,0,17,0,12,98,67,0,17,0,17,5,8,18,21,0,12,55,62,0,12,0,12,7,8,13,19,0,12,8,8]
[null,"$75,000 or more:",75,42,16,13,67,47,97,61,8,8,10,12,46,32,2375,264,8,10,19,16,19,23,462,215,72,61,3,4,520,173,100,102,51,51,6,9,41,32,85,61,147,84,56,53,19,19,16,15,67,47,17,18,58,30]
[null,"Less than 20 percent",70,41,5,8,10,15,42,37,8,8,5,8,36,31,1629,203,0,12,19,16,10,17,376,192,47,53,3,4,285,129,82,97,51,51,6,9,23,23,37,34,119,79,13,20,11,13,8,11,61,47,0,12,36,22]
[null,"20 to 29 percent",5,8,6,9,57,46,55,52,0,12,5,8,5,7,678,160,8,10,0,12,0,12,32,37,25,28,0,12,203,119,18,31,0,17,0,12,18,24,48,53,28,34,43,49,8,13,8,11,0,12,17,18,22,21]
[null,"30 percent or more",0,12,5,7,0,12,0,17,0,12,0,12,5,9,68,75,0,12,0,12,9,15,54,62,0,17,0,12,32,33,0,17,0,17,0,12,0,12,0,12,0,17,0,12,0,12,0,12,6,10,0,12,0,12]
[null,"Zero or negative income",0,12,0,12,0,12,10,15,0,12,0,12,0,12,179,86,0,12,0,12,0,12,18,29,0,17,0,12,24,39,0,17,0,17,0,12,0,12,0,12,0,17,0,12,0,12,0,12,10,14,0,12,0,12]
[null,"No cash rent",0,12,38,37,12,19,0,17,13,20,5,7,8,9,66,40,11,14,4,6,8,13,23,38,0,17,0,12,16,22,57,63,0,17,28,28,22,25,33,29,19,27,33,36,0,12,12,11,37,26,9,11,3,5]
[]
[]
[]
[]
[]
[]
[null,"Calculated B25106. TENURE BY HOUSING COSTS AS A PERCENTAGE OF HOUSEHOLD INCOME IN THE PAST 12 MONTHS"]
[null,"Universe:  OCCUPIED HOUSING UNITS"]
[null,"Data Set: 2018-2022 American Community Survey 5-Year Estimates"]
[]
[null,null,"Allenstown",null,"Andover",null,"Boscawen",null,"Bow",null,"Bradford",null,"Canterbury",null,"Chichester",null,"Concord",null,"Danbury",null,"Dunbarton",null,"Epsom",null,"Franklin",null,"Henniker",null,"Hill",null,"Hooksett",null,"Hopkinton",null,"Loudon",null,"Newbury",null,"New London",null,"Northfield",null,"Pembroke",null,"Pittsfield",null,"Salisbury",null,"Sutton",null,"Warner",null,"Webster",null,"Wilmot"]
[null,null,"Estimate","Margin of Error","Estimate","Margin of Error","Estimate","Margin of Error","Estimate","Margin of Error","Estimate","Margin of Error","Estimate","Margin of Error","Estimate","Margin of Error","Estimate","Margin of Error","Estimate","Margin of Error","Estimate","Margin of Error","Estimate","Margin of Error","Estimate","Margin of Error","Estimate","Margin of Error","Estimate","Margin of Error","Estimate","Margin of Error","Estimate","Margin of Error","Estimate","Margin of Error","Estimate","Margin of Error","Estimate","Margin of Error","Estimate","Margin of Error","Estimate","Margin of Error","Estimate","Margin of Error","Estimate","Margin of Error","Estimate","Margin of Error","Estimate","Margin of Error","Estimate","Margin of Error","Estimate","Margin of Error"]
[null,{"$f":"B7","v":"Total:"},1812,193,878,119,1380,140,2895,133,632,73,920,96,1011,63,17955,{"$f":"R7","v":443},672,112,1061,89,1844,139,3717,321,2397,206,318,54,5110,285,2168,194,2276,183,747,99,1636,129,1906,134,2627,196,1801,141,623,122,846,149,1200,89,795,103,624,90]
[null,"Owner occupied housing units:",1439,167,794,120,1056,125,2630,153,564,66,865,95,939,81,10275,{"$f":"R8","v":455},625,114,1018,88,1640,126,2308,311,1545,230,298,49,4044,282,1912,206,1957,195,653,97,1485,137,1410,135,1997,205,1221,146,600,122,808,150,824,76,758,99,488,77]
[null,"Less than 20 percent",{"$f":"C10+C14+C18+C22+C26","v":671},{"$f":"SQRT((D10^2)+(D14^2)+(D18^2)+(D22^2)+(D26^2))","v":156.0320479901485},{"$f":"SQRT((E10^2)+(E14^2)+(E18^2)+(E22^2)+(E26^2))","v":315.99367082269225},116.64904628842878,421.96089866242346,124.65151423067431,1528.4047238869684,162.90794946840379,210.46614929722071,51.884487084291386,486.99178637837417,106.7941945987702,380.73612909730542,91.37833441248533,4702.9315325656189,391.57757852052765,227.1651381704508,77.226938305231286,513.53383530201791,105.09519494249011,590.87223661295843,134.96295788104231,870.10688998536261,232.0668007277215,463.76502671072558,134.30189872075525,139.69609872863307,42.178193417926281,1840.0499993206706,267.78162745042835,878.3040475826125,202.60306019406519,781.44673522895982,240.78621222985339,400.89025929797793,81.344944526380985,614.20517744480139,128.08200498118384,545.35309662639668,134.03357788255897,800.99812733863496,211.08529081866411,367.81788972261802,141.97534997315555,296.09289082988806,107.54068997360952,455.50960472859407,138.62539449898782,378.63174721621004,79.151752981219559,373.38585940016526,84.439327330338202,243.50154003619772,63.505905237229712]
[null,"20 to 29 percent",{"$f":"C11+C15+C19+C23+C27","v":323},{"$f":"SQRT((D11^2)+(D15^2)+(D19^2)+(D23^2)+(D27^2))","v":130.728726758888},{"$f":"SQRT((E11^2)+(E15^2)+(E19^2)+(E23^2)+(E27^2))","v":146.44111444536333},51.97114584074513,181.49931129345919,91.913002344608458,554.18859605733496,124.23767544509194,92.817024300502112,59.481089431852205,123.60420704814217,54.890800686453829,189.18245161747959,58.813263810130451,1815.3418410866864,360.5343256889696,65.092242241299388,42.544094772365298,215.68495543268659,70.206837273872409,374.13633878574262,132.11358749197601,414.96746860446785,282.74193180354411,499.31753424048708,254.77637253089227,37.040518354904272,26.90724809414742,709.45683448677835,232.03232533420856,403.426573244748,174.57949478675897,363.04820616551734,286.05943438383571,113.17685275708986,61.351446600711867,210.48752932181043,102.6498904042279,305.78260251361587,145.37537618180048,551.17057250909181,241.43736247731005,216.68410186259626,115.06954418958998,73.095827514297966,43.669211121796096,122.64583156389784,82.425724139979508,156.63652192257078,56.736231810017131,107.59646834352883,45.354161881794269,38.910152916687437,23.558437978779494]
[null,"30 percent or more",{"$f":"C12+C16+C20+C24+C28","v":445},{"$f":"SQRT((D12^2)+(D16^2)+(D20^2)+(D24^2)+(D28^2))","v":151.92761434314698},{"$f":"SQRT((E12^2)+(E16^2)+(E20^2)+(E24^2)+(E28^2))","v":94.578010129204984},70.929542505221335,157.33403954643762,121.25592769015459,236.98734143409433,98.137658419181776,83.348665256259508,45.299006611624499,72.917761896536561,53.291650377896914,157.79416972752827,94.88413987595608,1211.4309720326619,374.45293429214837,103.3634364753804,83.32466621595313,115.45561917897284,73.844431069648039,239.32822650076193,122.25383429569807,209.30121834332451,132.74034804836094,235.16164653276266,163.08893279434997,37.749172176353746,29.308701779505689,440.50766168138324,200.32972819828814,264.60347692349018,154.83216720048841,266.68708255181764,194.0876090841453,31.400636936215164,32.264531609803356,250.35974117257751,161.78689687363436,132.7667126956151,108.0555412739208,170.36431551237484,122.12288892750614,250.50948085850962,150.55231648832242,87.051708771281454,88.560713637594404,65.977268812826736,51.778373863998475,82.565125809872058,58.940648113165501,95.084173236138511,61.294371682887821,91.021975368588869,64.923031352517725]
[null,"Zero or negative income",{"$f":"C29","v":0},{"$f":"D29","v":12},{"$f":"E29","v":0},12,11,18,7,13,0,12,5,8,0,12,29,30,0,12,5,8,0,12,35,30,0,17,0,12,0,19,0,17,0,17,5,9,16,26,0,12,0,17,8,14,0,12,8,13,0,12,23,38,0,12]
[null,"Renter occupied housing units:",{"$f":"C30","v":373},{"$f":"D30","v":153},{"$f":"E30","v":84},44,324,94,265,91,68,35,55,36,72,45,7680,442,47,32,43,22,204,81,1409,255,852,272,20,20,1066,219,256,146,319,181,94,40,151,69,496,124,630,156,580,158,23,21,38,21,376,90,37,23,136,56]
[null,"Less than 20 percent",{"$f":"C32+C36+C40+C44+C48","v":138},{"$f":"SQRT((D32^2)+(D36^2)+(D40^2)+(D44^2)+(D48^2))","v":80.212218520621903},{"$f":"SQRT((E32^2)+(E36^2)+(E40^2)+(E44^2)+(E48^2))","v":5},25.298221281347036,49.739320461783549,72.374028490888918,42,50.24937810560445,8.5440037453175304,22.825424421026653,5,25.298221281347036,36,39.204591567825318,1646.9845172314158,246.1097316239242,10,29.410882339705484,19.646882704388499,27.147743920996454,10,29.410882339705484,377.33936979859391,195.72685048301369,140.6947049465615,146.48549416239138,3,24.331050121192877,287.01567901423084,135.8970198348735,88.391176030189797,113.47686988985905,52.886671288709408,63.976558206893252,7.810249675906654,24.372115213907882,28.600699292150182,41.773197148410844,66.415359669281315,66.880490428823862,126.34476641317598,100.83650132764424,21.95449840010015,40.2119385257662,11,27.294688127912362,8,26.40075756488817,61.522353661088097,53.263495942343098,2,24.186773244895647,36,32.557641192199412]
[null,"20 to 29 percent",{"$f":"C33+C37+C41+C45+C49","v":43},{"$f":"SQRT((D33^2)+(D37^2)+(D41^2)+(D45^2)+(D49^2))","v":32.771939216347882},{"$f":"SQRT((E33^2)+(E37^2)+(E41^2)+(E45^2)+(E49^2))","v":13.416407864998739},28.930952282978865,70.802542327235685,73.191529564560952,69.202601107183824,71.358251099645088,13.601470508735444,28.600699292150182,5,25.298221281347036,5,25,1212.953008158189,334.33815217530889,8,26,0,26.832815729997478,39.749213828703581,45.661800227323496,151.66080574756288,115.6027681329474,133.60763451240351,123.93950137062841,6,25.632011235952593,207.50662640021883,129.66880889404359,39.102429592034305,63.725975865419272,83.006023877788536,120.51970793193949,31.256999216175569,34.597687784012386,24.248711305964282,37.456641600656084,109.99090871522064,106.76141625137801,98.101987747445776,116.27123461974591,82.565125809872058,86.694867206772969,8,27.294688127912362,8,26.40075756488817,61.40846847137616,58.386642307979997,17.262676501632068,27.946377224964241,30.331501776206203,39.230090491866065]
[null,"30 percent or more",{"$f":"C34+C38+C42+C46+C50","v":192},{"$f":"SQRT((D34^2)+(D38^2)+(D42^2)+(D46^2)+(D50^2))","v":130.28430450365079},{"$f":"SQRT((E34^2)+(E38^2)+(E42^2)+(E46^2)+(E50^2))","v":11.61895003862225},21.330729007701542,64.784257346982073,64.420493633625625,70.099928673287536,50.328918128646478,15.588457268119896,28.600699292150182,36.221540552549669,40.298883359219772,18.681541692269406,35.242020373412188,1632.6493806080962,450.46642494197056,13.928388277184119,25.238858928247925,10.816653826391969,26.627053911388696,65.98484674529449,77.549983881365179,358.77290867622656,197.11164349170244,277.54639251844009,207.4728897952694,11,28.844410203711913,196.1861361054853,160.30907647416598,17.804493814764857,44.237992721189329,95.320511958339793,121.60592090848209,12.24744871391589,22.715633383201094,26.40075756488817,36.837480912787726,94.350410703928574,82.831153559515272,162.47461340160191,152.33843900998855,224.11157935278578,182.0384574753368,4,25.298221281347036,7.6157731058639087,22.627416997969522,83.540409383722803,78.987340757870811,4.4721359549995796,21.840329667841555,33.955853692699293,52.009614495783374]
[null,"Zero or negative income",{"$f":"C51","v":0},{"$f":"D51","v":12},{"$f":"E51","v":0},12,0,12,10,15,0,12,0,12,0,12,179,86,0,12,0,12,0,12,18,29,0,17,0,12,24,39,0,17,0,17,0,12,0,12,0,12,0,17,0,12,0,12,0,12,10,14,0,12,0,12]
[null,"No cash rent",{"$f":"C52","v":0},{"$f":"D52","v":12},{"$f":"E52","v":38},37,12,19,0,17,13,20,5,7,8,9,66,40,11,14,4,6,8,13,23,38,0,17,0,12,16,22,57,63,0,17,28,28,22,25,33,29,19,27,33,36,0,12,12,11,37,26,9,11,3,5]
[]
[]
[]
[]
[]
[]
[]
[]
[]
[]
[]
[]
[]
[]
[]
[]
[]
[]
[]
[]
[]
[]
[]
[null,"B25106. TENURE BY HOUSING COSTS AS A PERCENTAGE OF HOUSEHOLD INCOME IN THE PAST 12 MONTHS"]
[null,"Universe:  OCCUPIED HOUSING UNITS"]
[null,"Data Set: 2013-2017 American Community Survey 5-Year Estimates"]
[]
[null,null,"Allenstown",null,"Andover",null,"Boscawen",null,"Bow",null,"Bradford",null,"Canterbury",null,"Chichester",null,"Concord",null,"Danbury",null,"Dunbarton",null,"Epsom",null,"Franklin",null,"Henniker",null,"Hill",null,"Hooksett",null,"Hopkinton",null,"Loudon",null,"Newbury",null,"New London",null,"Northfield",null,"Pembroke",null,"Pittsfield",null,"Salisbury",null,"Sutton",null,"Warner",null,"Webster",null,"Wilmot"]
[null,null,"Estimate","Margin of Error","Estimate","Margin of Error","Estimate","Margin of Error","Estimate","Margin of Error","Estimate","Margin of Error","Estimate","Margin of Error","Estimate","Margin of Error","Estimate","Margin of Error","Estimate","Margin of Error","Estimate","Margin of Error","Estimate","Margin of Error","Estimate","Margin of Error","Estimate","Margin of Error","Estimate","Margin of Error","Estimate","Margin of Error","Estimate","Margin of Error","Estimate","Margin of Error","Estimate","Margin of Error","Estimate","Margin of Error","Estimate","Margin of Error","Estimate","Margin of Error","Estimate","Margin of Error","Estimate","Margin of Error","Estimate","Margin of Error","Estimate","Margin of Error","Estimate","Margin of Error","Estimate","Margin of Error"]
[null,"Total:",1690,118,1071,84,1241,126,2846,103,646,79,895,69,991,48,17011,407,568,64,1020,45,1751,119,3494,212,1690,144,400,46,5143,201,2057,114,2024,165,822,89,1678,160,1770,84,2608,145,1586,115,535,63,772,100,1048,93,781,56,652,64]
[null,"Owner occupied housing units:",1223,125,914,83,856,140,2501,111,584,82,846,67,903,62,9069,391,487,62,922,51,1419,117,1974,176,1168,141,366,46,4146,207,1822,132,1745,167,773,92,1267,123,1311,101,1881,195,921,128,503,61,667,99,783,85,685,54,509,63]
[null,"Less than $20,000:",87,54,35,31,39,30,120,55,43,17,45,26,52,31,542,127,48,28,10,10,82,54,205,86,75,63,12,17,181,100,64,49,104,62,25,17,72,40,71,40,46,40,41,23,24,14,15,14,27,14,41,18,25,14]
[null,"Less than 20 percent",0,11,0,11,0,11,0,15,0,11,0,11,6,9,71,40,0,11,0,11,0,11,0,15,0,11,0,11,0,17,11,18,0,15,0,11,0,11,7,11,0,15,0,11,0,11,0,11,0,11,0,11,0,11]
[null,"20 to 29 percent",0,11,0,11,0,11,0,15,0,11,5,8,0,11,0,23,0,11,0,11,35,35,13,20,0,11,0,11,8,13,0,15,0,15,5,7,0,11,6,9,0,15,0,11,0,11,0,11,0,11,0,11,0,11]
[null,"30 percent or more",87,54,35,31,39,30,120,55,43,17,40,24,46,31,471,118,48,28,10,10,47,42,192,81,75,63,12,17,173,99,53,45,104,62,20,15,72,40,58,39,46,40,41,23,24,14,15,14,27,14,41,18,25,14]
[null,"$20,000 to $34,999:",203,87,161,46,126,81,123,58,79,33,48,24,49,28,965,177,83,28,79,30,150,55,158,76,49,40,51,26,307,102,138,70,281,114,78,33,133,57,113,64,134,70,63,45,56,30,71,33,64,40,55,19,58,28]
[null,"Less than 20 percent",69,60,18,15,0,11,18,20,2,4,0,11,12,13,65,37,9,14,17,14,18,21,0,15,0,11,0,11,15,16,13,22,0,15,25,20,10,15,48,47,30,34,13,15,0,11,5,8,0,11,4,6,0,11]
[null,"20 to 29 percent",42,33,64,41,23,22,8,14,17,16,5,7,17,16,214,76,34,16,10,11,7,12,43,44,24,30,29,22,55,54,13,22,90,62,12,12,9,13,8,13,16,27,18,19,11,9,8,8,0,11,13,11,24,21]
[null,"30 percent or more",92,63,79,32,103,73,97,53,60,29,43,23,20,18,686,150,40,21,52,31,125,53,115,54,25,28,22,13,237,98,112,64,191,99,41,22,114,47,57,43,88,54,32,33,45,29,58,33,64,40,38,15,34,21]
[null,"$35,000 to $49,999:",190,63,111,41,109,62,177,74,55,24,80,32,90,41,963,175,65,26,100,36,123,55,391,109,61,42,58,24,404,115,96,61,136,75,72,35,129,48,198,73,101,63,191,72,54,22,103,40,115,46,130,38,73,32]
[null,"Less than 20 percent",48,29,23,29,45,50,11,17,4,6,17,14,0,11,221,86,9,7,41,28,37,39,88,52,33,33,23,18,57,49,25,29,85,80,33,22,16,17,36,30,17,26,34,38,20,16,43,25,34,29,36,21,17,19]
[null,"20 to 29 percent",44,25,48,30,26,23,56,39,16,11,0,11,35,22,315,106,19,12,15,13,16,19,148,80,14,21,8,7,113,59,52,46,51,59,10,10,40,29,69,46,16,28,38,23,16,11,35,31,24,14,31,20,16,15]
[null,"30 percent or more",98,50,40,29,38,30,110,54,35,21,63,29,55,35,427,99,37,21,44,25,70,41,155,61,14,21,27,15,234,92,19,26,0,15,29,22,73,43,93,60,68,49,119,65,18,12,25,22,57,34,63,28,40,21]
[null,"$50,000 to $74,999:",273,72,140,45,208,77,285,96,156,49,171,52,175,50,1431,207,95,35,132,41,314,118,427,113,290,110,74,22,573,130,337,142,313,142,117,34,223,75,221,70,382,163,201,68,133,40,111,47,176,55,120,40,108,36]
[null,"Less than 20 percent",103,53,38,25,144,73,33,29,94,41,66,28,38,24,439,94,52,32,44,29,178,94,215,88,67,50,22,11,182,79,56,57,104,77,35,18,53,31,125,52,94,57,50,34,27,15,36,22,55,30,43,23,36,20]
[null,"20 to 29 percent",79,40,60,30,15,17,43,32,35,17,26,29,37,22,566,146,29,19,48,23,74,52,110,59,70,49,35,16,189,84,135,98,62,48,55,25,75,42,44,31,88,57,58,38,62,35,47,29,45,32,21,15,28,23]
[null,"30 percent or more",91,45,42,21,49,32,209,80,27,19,79,36,100,44,426,112,14,10,40,24,62,49,102,62,153,85,17,12,202,91,146,92,147,122,27,17,95,47,52,36,200,137,93,44,44,24,28,23,76,41,56,25,44,25]
[null,"$75,000 or more:",449,111,450,85,374,103,1788,121,251,49,497,64,531,67,5090,297,196,49,601,55,750,98,785,129,663,105,171,36,2655,192,1187,180,873,156,481,88,710,106,708,102,1218,171,425,96,231,46,367,79,401,62,339,50,231,36]
[null,"Less than 20 percent",274,89,313,76,237,79,1038,137,159,46,314,52,316,61,3327,279,139,43,323,64,435,95,562,118,347,98,113,33,1416,233,639,154,641,158,273,77,452,110,403,99,790,158,253,77,133,39,219,58,273,55,199,41,140,33]
[null,"20 to 29 percent",103,44,110,41,83,47,493,107,55,22,128,37,169,52,1321,202,55,25,212,49,263,78,141,52,285,85,52,19,858,191,346,123,171,93,192,59,181,66,269,79,300,115,138,62,64,24,122,44,96,33,103,26,70,25]
[null,"30 percent or more",72,55,27,18,54,57,257,72,37,16,55,28,46,28,442,121,2,3,66,29,52,42,82,50,31,29,6,6,381,115,202,105,61,44,16,13,77,37,36,27,128,86,34,29,34,21,26,21,32,21,37,21,21,12]
[null,"Zero or negative income",21,22,17,26,0,11,8,12,0,11,5,8,6,8,78,46,0,11,0,11,0,11,8,13,30,39,0,11,26,24,0,15,38,40,0,11,0,11,0,11,0,15,0,11,5,7,0,11,0,11,0,11,14,23]
[null,"Renter occupied housing units:",467,107,157,66,385,91,345,88,62,23,49,31,88,39,7942,349,81,39,98,40,332,112,1520,196,522,105,34,18,997,142,235,84,279,114,49,31,411,118,459,106,727,202,665,131,32,26,105,43,265,65,96,35,143,45]
[null,"Less than $20,000:",164,85,25,24,137,64,101,58,22,13,27,14,0,11,1737,261,0,11,5,8,65,43,466,137,215,85,0,11,162,66,0,15,35,33,0,11,94,48,77,60,212,128,318,127,13,21,0,11,81,44,20,22,14,12]
[null,"Less than 20 percent",28,43,0,11,0,11,0,15,0,11,0,11,0,11,23,23,0,11,0,11,0,11,11,17,45,53,0,11,0,17,0,15,0,15,0,11,18,29,0,11,17,27,24,40,0,11,0,11,5,8,0,11,0,11]
[null,"20 to 29 percent",27,26,0,11,31,38,9,15,0,11,13,14,0,11,211,86,0,11,0,11,0,11,59,42,19,19,0,11,30,32,0,15,0,15,0,11,8,13,0,11,34,38,22,20,0,11,0,11,19,25,0,11,0,11]
[null,"30 percent or more",109,77,25,24,106,58,92,58,22,13,14,13,0,11,1503,261,0,11,5,8,65,43,396,139,151,75,0,11,132,63,0,15,35,33,0,11,68,46,77,60,161,123,272,120,13,21,0,11,57,37,20,22,14,12]
[null,"$20,000 to $34,999:",98,56,27,28,72,52,94,38,14,13,0,11,0,11,1791,238,9,10,22,26,103,70,352,111,115,65,3,4,212,87,20,23,31,35,0,11,68,56,126,77,152,99,140,77,0,11,26,24,28,15,10,16,30,24]
[null,"Less than 20 percent",27,42,0,11,0,11,0,15,0,11,0,11,0,11,110,74,0,11,0,11,5,9,44,47,0,11,0,11,0,17,0,15,0,15,0,11,0,11,0,11,18,28,0,11,0,11,0,11,9,10,0,11,0,11]
[null,"20 to 29 percent",20,17,0,11,0,11,0,15,4,6,0,11,0,11,207,81,0,11,0,11,9,14,52,43,26,33,0,11,37,37,10,17,0,15,0,11,18,28,41,43,33,38,57,48,0,11,4,6,4,6,0,11,0,11]
[null,"30 percent or more",51,32,27,28,72,52,94,38,10,11,0,11,0,11,1474,244,9,10,22,26,89,67,256,106,89,54,3,4,175,80,10,17,31,35,0,11,50,41,85,63,101,88,83,66,0,11,22,23,15,12,10,16,30,24]
[null,"$35,000 to $49,999:",0,11,7,10,50,42,25,24,5,6,0,11,40,28,1199,250,14,21,13,12,21,24,309,116,43,38,4,5,143,101,101,77,57,66,4,6,8,12,44,34,70,55,82,59,4,5,10,16,28,20,15,14,19,21]
[null,"Less than 20 percent",0,11,0,11,0,11,0,15,0,11,0,11,0,11,81,54,0,11,0,11,7,12,34,38,19,29,0,11,9,15,0,15,0,15,0,11,0,11,6,10,0,15,7,13,4,5,0,11,0,11,4,5,0,11]
[null,"20 to 29 percent",0,11,7,10,36,39,0,15,0,11,0,11,13,16,596,162,14,21,7,10,10,17,191,96,24,24,4,5,20,22,77,67,45,64,0,11,0,11,29,27,55,56,61,53,0,11,10,16,19,17,3,5,0,11]
[null,"30 percent or more",0,11,0,11,14,16,25,24,5,6,0,11,27,24,522,160,0,11,6,8,4,9,84,67,0,11,0,11,114,98,24,37,12,19,4,6,8,12,9,15,15,23,14,22,0,11,0,11,9,10,8,13,19,21]
[null,"$50,000 to $74,999:",93,54,20,22,75,66,24,24,10,11,0,11,19,29,1507,222,42,31,37,23,59,53,175,99,46,48,12,13,230,96,31,51,44,43,16,15,77,64,118,59,129,92,81,64,8,8,11,13,34,27,18,15,51,31]
[null,"Less than 20 percent",55,41,0,11,50,67,0,15,3,4,0,11,19,29,507,174,17,18,11,8,0,11,86,71,19,30,0,11,35,44,31,51,17,28,0,11,17,26,28,25,31,36,53,49,0,11,0,11,20,25,11,14,7,7]
[null,"20 to 29 percent",8,14,20,22,16,19,7,11,7,10,0,11,0,11,778,164,25,24,26,21,32,40,80,73,8,12,12,13,156,73,0,15,27,33,16,15,16,23,90,66,98,88,0,11,4,6,11,13,9,9,7,7,29,21]
[null,"30 percent or more",30,36,0,11,9,14,17,19,0,11,0,11,0,11,222,103,0,11,0,11,27,34,9,17,19,30,0,11,39,37,0,15,0,15,0,11,44,45,0,11,0,15,28,35,4,5,0,11,5,7,0,11,15,22]
[null,"$75,000 or more:",94,53,23,29,27,23,74,50,11,9,0,11,22,18,1302,244,10,15,18,17,53,46,142,95,77,53,6,6,167,84,41,40,73,63,8,8,107,65,82,52,148,107,44,45,4,9,37,28,72,34,15,11,24,19]
[null,"Less than 20 percent",67,50,18,28,21,21,36,37,5,7,0,11,22,18,1053,207,10,15,13,15,21,28,122,81,72,53,6,6,75,61,41,40,42,48,5,7,91,64,82,52,131,105,44,45,4,9,34,27,69,33,11,9,20,19]
[null,"20 to 29 percent",27,22,5,8,6,11,38,32,6,6,0,11,0,11,249,146,0,11,5,7,32,39,20,30,5,13,0,11,92,56,0,15,31,40,3,4,9,14,0,11,17,28,0,11,0,11,3,4,3,6,4,6,4,5]
[null,"30 percent or more",0,11,0,11,0,11,0,15,0,11,0,11,0,11,0,23,0,11,0,11,0,11,0,15,0,11,0,11,0,17,0,15,0,15,0,11,7,10,0,11,0,15,0,11,0,11,0,11,0,11,0,11,0,11]
[null,"Zero or negative income",0,11,0,11,6,11,0,15,0,11,0,11,0,11,123,83,0,11,0,11,0,11,12,18,0,11,0,11,0,17,0,15,13,21,0,11,0,11,0,11,0,15,0,11,0,11,0,11,0,11,9,15,0,11]
[null,"No cash rent",18,20,55,44,18,20,27,29,0,11,22,28,7,10,283,116,6,7,3,5,31,40,64,37,26,31,9,8,83,49,42,41,26,28,21,25,57,47,12,19,16,27,0,11,3,6,21,18,22,21,9,10,5,7]
[]
[]
[]
[]
[]
[]
[null,"Calculated B25106. TENURE BY HOUSING COSTS AS A PERCENTAGE OF HOUSEHOLD INCOME IN THE PAST 12 MONTHS"]
[null,"Universe:  OCCUPIED HOUSING UNITS"]
[null,{"$f":"B102","v":"Data Set: 2013-2017 American Community Survey 5-Year Estimates"}]
[]
[null,null,"Allenstown",null,"Andover",null,"Boscawen",null,"Bow",null,"Bradford",null,"Canterbury",null,"Chichester",null,"Concord",null,"Danbury",null,"Dunbarton",null,"Epsom",null,"Franklin",null,"Henniker",null,"Hill",null,"Hooksett",null,"Hopkinton",null,"Loudon",null,"Newbury",null,"New London",null,"Northfield",null,"Pembroke",null,"Pittsfield",null,"Salisbury",null,"Sutton",null,"Warner",null,"Webster",null,"Wilmot"]
[null,null,"Estimate","Margin of Error","Estimate","Margin of Error","Estimate","Margin of Error","Estimate","Margin of Error","Estimate","Margin of Error","Estimate","Margin of Error","Estimate","Margin of Error","Estimate","Margin of Error","Estimate","Margin of Error","Estimate","Margin of Error","Estimate","Margin of Error","Estimate","Margin of Error","Estimate","Margin of Error","Estimate","Margin of Error","Estimate","Margin of Error","Estimate","Margin of Error","Estimate","Margin of Error","Estimate","Margin of Error","Estimate","Margin of Error","Estimate","Margin of Error","Estimate","Margin of Error","Estimate","Margin of Error","Estimate","Margin of Error","Estimate","Margin of Error","Estimate","Margin of Error","Estimate","Margin of Error","Estimate","Margin of Error"]
[null,{"$f":"B106","v":"Total:"},1690,118,1071,84,1241,126,2846,103,646,79,895,69,991,48,17011,407,568,64,1020,45,1751,119,3494,212,1690,144,400,46,5143,201,2057,114,2024,165,822,89,1678,160,1770,84,2608,145,1586,115,535,63,772,100,1048,93,781,56,652,64]
[null,"Owner occupied housing units:",1223,125,914,83,856,140,2501,111,584,82,846,67,903,62,9069,391,487,62,922,51,1419,117,1974,176,1168,141,366,46,4146,207,1822,132,1745,167,773,92,1267,123,1311,101,1881,195,921,128,503,61,667,99,783,85,685,54,509,63]
[null,"Less than 20 percent",{"$f":"C109+C113+C117+C121+C125","v":494},{"$f":"SQRT((D109^2)+(D113^2)+(D117^2)+(D121^2)+(D125^2))","v":123.66082645688569},{"$f":"SQRT((E109^2)+(E113^2)+(E117^2)+(E121^2)+(E125^2))","v":316.64806962935995},87.109126961530265,280.94483444263574,119.63277142990545,1038.7386581811616,143.26199775236978,184.76200908195386,63.007936008093459,321.31137546000451,62.657800791282163,318.55925665408,68.322763410154892,3364.4846559317225,311.51564968713853,148.95301272549005,56.912213100528781,328.99088133259863,77.704568720249654,471.80716399817413,141.22322755127783,608.12252054992996,157.54999206601059,354.94647483810849,115.90944741478151,117.39676315810415,42.142615011410953,1428.8645842066351,251.94443831924531,642.16197333694561,169.15673205639791,654.92136932611993,194.27557746664917,278.33073851085868,85.193896494995457,455.48765076563819,117.02991070662235,426.24288850372625,125.43922831395288,796.31965943332079,173.98275776639477,260.44961124946991,94.207218407083857,137.17871555019022,47.370877129308042,226.12164867610531,68.249542123006222,280.55302529112032,70.767224051816527,206.78974829521894,52.990565197967079,145.5506784594287,45.738386504117088]
[null,"20 to 29 percent",{"$f":"C110+C114+C118+C122+C126","v":268},{"$f":"SQRT((D110^2)+(D114^2)+(D118^2)+(D122^2)+(D126^2))","v":73.287106642300998},148.66068747318505,72.684248637514301,91.208552230588552,60.266076693277455,498.09436856884861,120.06248373242992,69.245938509056259,35.651086939951774,130.80519867344722,49.436828377233098,177.32456118654292,63.631753079732135,1486.7474566986823,282.24280327406046,73.368930754100546,38.820097887563342,218.11235636707977,57.801384066473702,275.99818839985164,102.55730105653132,236.43815258963602,122.15154522149935,294.78297101427012,105.29957264870546,69.526973183074787,35.651086939951774,887.54887189382418,223.83699426144909,375.25191538485183,166.00602398708307,209.25104539762759,136.02573285963211,200.39461070597682,66.32495759516172,200.16742991805634,85.152803829351384,281.35031544322106,97.816154085099868,313.45813117544105,134.9518432626987,155.48633380461447,79.36623967405788,91.197587687394446,46.086874487211652,135.58023454766553,62.63385665915839,108.70602559196064,50.507425196697561,110.36303729057116,39.281038682804713,80.721744282442259,44.05678154382138]
[null,"30 percent or more",{"$f":"C111+C115+C119+C123+C127","v":440},{"$f":"SQRT((D111^2)+(D115^2)+(D119^2)+(D123^2)+(D127^2))","v":120.14574482685602},107.51278993682565,59.924953066314536,137.44453426746369,106.78014796768171,381.62678103089149,142.59733517846678,93.658955791744759,46.776062254106002,129.1665591397402,63.450768316861222,132.87964479181903,72.318738927058178,1118.7519832384655,270.94279839109953,73.979726952726722,42.130748865881792,103.42146779078317,55.704577908821818,171.11984104714449,102.0735029280371,302.062907355405,139.79270367225894,175.54486605993353,115.15207336387826,41.012193308819754,29.376861643136763,571.68085502315012,222.20486043288972,278.98745491509112,162.12957780738219,269.4939702479445,175.18561584787719,62.505999712027645,40.63249930782009,196.11986130935335,96.104110213871706,138.78760751594501,94.841973830156022,266.21044307089079,181.8845787855584,163.31258371601376,92.843955107481278,77.569323833587717,46.882832678924167,75.325958341065927,52.3354564325181,121.95900950729306,71.232015274032506,107.69865365917997,48.979587585033826,75.8814865431615,42.976737893888597]
[null,"Zero or negative income",{"$f":"C128","v":21},{"$f":"D128","v":22},{"$f":"E128","v":17},26,0,11,8,12,0,11,5,8,6,8,78,46,0,11,0,11,0,11,8,13,30,39,0,11,26,24,0,15,38,40,0,11,0,11,0,11,0,15,0,11,5,7,0,11,0,11,0,11,14,23]
[null,"Renter occupied housing units:",{"$f":"C129","v":467},{"$f":"D129","v":107},157,66,385,91,345,88,62,23,49,31,88,39,7942,349,81,39,98,40,332,112,1520,196,522,105,34,18,997,142,235,84,279,114,49,31,411,118,459,106,727,202,665,131,32,26,105,43,265,65,96,35,143,45]
[null,"Less than 20 percent",{"$f":"C131+C135+C139+C143+C147","v":177},{"$f":"SQRT((D131^2)+(D135^2)+(D139^2)+(D143^2)+(D147^2))","v":88.966285749153315},{"$f":"SQRT((E131^2)+(E135^2)+(E139^2)+(E143^2)+(E147^2))","v":18},35.608987629529715,54.230987451824994,72.753006810715391,36,47.634021455258214,5.8309518948453007,20.688160865577203,0,24.596747752497688,29.068883707497267,39.08964057138413,1176.8806226631484,286.4367294883811,19.723082923316021,30.199337741082999,17.029386365926403,25.534290669607408,22.693611435820433,35.369478367654786,159.66527487215245,124.6755790040696,89.056162055188523,86.486993241758611,6,22.803508501982758,83.252627586160912,80.37412518964048,51.400389103585589,69.828361000384362,45.310043036836767,61.343296292260007,5,23.086792761230392,94.30800602281866,76.51797174520506,86.856203002433858,60.58877783880444,136.87585616170588,118.57065404222075,73.280283842245041,79.47326594522211,5.6568542494923806,21.656407827707714,34,34.828149534535996,72.574100063314603,44.710177812216315,16.06237840420901,23.323807579381203,21.189620100417091,27.802877548915689]
[null,"20 to 29 percent",{"$f":"C132+C136+C140+C144+C148","v":82},{"$f":"SQRT((D132^2)+(D136^2)+(D140^2)+(D144^2)+(D148^2))","v":42.023802778901391},21.77154105707724,29.832867780352597,50.487622245457352,59.732738092272314,39.673668849754748,42.661458015403085,10.04987562112089,20.346989949375804,13,26.076809620810597,13,27.202941017470888,1053.5041528157353,297.34323600848904,28.653097563788805,37.148351242013419,27.386127875258307,28.844410203711913,47.212286536451508,61.049160518388781,222.40953216982405,138.05071531868279,41.255302689472536,48.363209157374989,12.649110640673518,23.600847442411894,188.33215338863408,106.49882628461216,77.646635471216655,73.844431069648039,60.95079983068311,85.058803189323086,16.278820596099706,24.576411454889016,26.92582403567252,42.414620120896991,103.06308747558458,84.711274338189483,123.13813381727043,120.63167080000177,86.336550776597505,75.861716300120705,4,22.803508501982758,15.684387141358123,24.454038521274967,28.774989139876318,32.664965942122151,8.6023252670426267,18.761663039293719,29.274562336608895,28.792360097775937]
[null,"30 percent or more",{"$f":"C133+C137+C141+C145+C149","v":190},{"$f":"SQRT((D133^2)+(D137^2)+(D141^2)+(D145^2)+(D149^2))","v":92.14662229295223},36.796738985948195,41.509035161034518,129.21687196337791,81.492330927517344,134.95925310996648,77.26577508832743,24.677925358506133,23.832750575625969,14,25.553864678361276,27,32.557641192199412,2180.2415003847623,405.45653281208826,9,24.166091947189145,23.345235059857504,32.341923257592455,113.53853971229329,87.726848797845236,479.05010176389692,188.57359306117067,176.3037152189369,98.40223574695851,3,22.360679774997898,250.13196517038762,147.07481089567989,26,48.301138702933287,48.270073544588683,55.901699437494742,4,22.803508501982758,95.775779819325933,77.884529914483011,115.04347004502254,89.643739324059879,190.6488919453769,154.44092721814383,286.09963299522076,143.47822134386809,13.601470508735444,28.792360097775937,22,31.827660925679098,59.833101206606365,42.225584661434823,23.748684174075834,33.926390907374746,41.012193308819754,42.023802778901391]
[null,"Zero or negative income",{"$f":"C150","v":0},{"$f":"D150","v":11},{"$f":"E150","v":0},11,6,11,0,15,0,11,0,11,0,11,123,83,0,11,0,11,0,11,12,18,0,11,0,11,0,17,0,15,13,21,0,11,0,11,0,11,0,15,0,11,0,11,0,11,0,11,9,15,0,11]
[null,"No cash rent",{"$f":"C151","v":18},{"$f":"D151","v":20},55,44,18,20,27,29,0,11,22,28,7,10,283,116,6,7,3,5,31,40,64,37,26,31,9,8,83,49,42,41,26,28,21,25,57,47,12,19,16,27,0,11,3,6,21,18,22,21,9,10,5,7]
[]
[]
[]
[]
[null,"B25106. TENURE BY HOUSING COSTS AS A PERCENTAGE OF HOUSEHOLD INCOME IN THE PAST 12 MONTHS"]
[null,"Universe:  OCCUPIED HOUSING UNITS"]
[null,"Data Set: 2008-2012 American Community Survey 5-Year Estimates"]
[]
[null,null,"Allenstown",null,"Andover",null,"Boscawen",null,"Bow",null,"Bradford",null,"Canterbury",null,"Chichester",null,"Concord",null,"Danbury",null,"Dunbarton",null,"Epsom",null,"Franklin",null,"Henniker",null,"Hill",null,"Hooksett",null,"Hopkinton",null,"Loudon",null,"Newbury",null,"New London",null,"Northfield",null,"Pembroke",null,"Pittsfield",null,"Salisbury",null,"Sutton",null,"Warner",null,"Webster",null,"Wilmot"]
[null,null,"Estimate","Margin of Error","Estimate","Margin of Error","Estimate","Margin of Error","Estimate","Margin of Error","Estimate","Margin of Error","Estimate","Margin of Error","Estimate","Margin of Error","Estimate","Margin of Error","Estimate","Margin of Error","Estimate","Margin of Error","Estimate","Margin of Error","Estimate","Margin of Error","Estimate","Margin of Error","Estimate","Margin of Error","Estimate","Margin of Error","Estimate","Margin of Error","Estimate","Margin of Error","Estimate","Margin of Error","Estimate","Margin of Error","Estimate","Margin of Error","Estimate","Margin of Error","Estimate","Margin of Error","Estimate","Margin of Error","Estimate","Margin of Error","Estimate","Margin of Error","Estimate","Margin of Error","Estimate","Margin of Error"]
[null,"Total:",1693,132,950,87,1392,199,2577,105,607,65,954,55,941,51,18007,432,461,66,1041,59,1626,106,3375,167,1689,158,445,57,4729,192,2373,132,1912,107,823,86,1672,166,1782,150,2980,168,1528,125,508,63,647,81,1069,68,724,75,540,65]
[null,"Owner occupied housing units:",1072,170,814,100,1099,162,2322,112,506,65,886,56,889,57,9978,412,353,60,917,71,1485,117,2094,202,1113,134,407,51,4085,210,2169,174,1662,141,794,84,1393,147,1390,186,2150,206,1079,118,472,61,573,75,879,75,659,63,485,65]
[null,"Less than $20,000:",84,50,38,28,97,54,75,74,49,24,32,25,86,45,511,124,38,22,35,21,114,83,221,85,8,13,36,23,168,70,90,70,34,31,43,32,193,102,112,78,128,78,103,44,20,17,27,23,73,44,25,21,43,26]
[null,"Less than 20 percent",0,85,0,85,0,85,0,85,4,5,0,85,0,85,16,18,3,6,0,85,0,85,20,23,0,85,3,4,0,85,0,85,0,85,0,85,0,85,8,12,0,85,0,85,0,85,0,85,0,85,0,85,0,85]
[null,"20 to 29 percent",0,85,0,85,10,16,13,20,0,85,0,85,0,85,17,26,0,85,0,85,0,85,7,12,8,13,3,4,36,33,18,29,0,85,6,8,0,85,9,15,0,85,7,12,0,85,9,13,0,85,0,85,0,85]
[null,"30 percent or more",84,50,38,28,87,51,62,68,45,23,32,25,86,45,478,126,35,21,35,21,114,83,194,80,0,85,30,21,132,65,72,64,34,31,37,31,193,102,95,75,128,78,96,43,20,17,18,17,73,44,25,21,43,26]
[null,"$20,000 to $34,999:",139,67,83,41,138,74,107,65,57,29,47,23,88,38,1202,230,71,27,26,23,215,83,265,101,19,21,81,29,341,111,98,68,182,78,109,55,130,75,153,71,174,73,110,69,23,20,69,36,68,35,52,28,44,20]
[null,"Less than 20 percent",26,33,27,24,10,16,0,85,4,6,5,7,15,13,42,36,13,10,0,85,0,85,10,16,9,14,16,13,52,39,16,26,0,85,34,29,14,23,40,47,15,24,0,85,0,85,18,17,0,85,0,85,6,6]
[null,"20 to 29 percent",49,58,5,8,10,15,0,85,4,6,7,10,9,11,412,122,16,12,0,85,17,27,62,46,0,85,12,9,70,44,0,85,85,59,42,40,26,32,34,34,45,40,15,22,12,15,6,6,15,15,6,7,8,9]
[null,"30 percent or more",64,35,51,32,118,74,107,65,49,27,35,21,64,35,748,179,42,27,26,23,198,85,193,91,10,17,53,28,219,100,82,63,97,46,33,23,90,57,79,48,114,58,95,64,11,10,45,29,53,32,46,28,30,19]
[null,"$35,000 to $49,999:",108,63,117,59,133,73,74,49,74,25,105,43,98,42,1274,178,39,25,61,30,110,61,268,82,134,84,53,25,393,153,257,95,174,73,75,31,112,62,194,95,194,96,150,68,88,39,63,28,151,66,87,28,68,35]
[null,"Less than 20 percent",44,39,32,28,78,59,0,85,16,13,24,22,5,8,252,92,12,11,5,7,23,25,92,44,0,85,10,8,80,74,0,85,28,26,20,14,42,39,77,78,60,49,28,26,16,11,11,10,0,85,13,10,12,11]
[null,"20 to 29 percent",29,23,25,29,0,85,0,85,16,12,7,10,40,24,303,84,2,3,12,14,20,23,39,34,33,27,6,7,121,78,104,68,30,33,12,16,17,18,40,28,59,48,46,35,12,9,23,22,53,38,9,9,8,10]
[null,"30 percent or more",35,32,60,42,55,49,74,49,42,22,74,39,53,30,719,139,25,21,44,25,67,56,137,62,101,85,37,23,192,96,153,76,116,56,43,26,53,44,77,48,75,49,76,53,60,34,29,16,98,55,65,23,48,31]
[null,"$50,000 to $74,999:",241,106,203,67,248,102,293,113,93,33,171,53,173,53,1864,246,75,34,125,44,269,82,572,131,193,79,56,26,680,142,417,145,368,99,180,56,182,83,391,106,509,168,233,87,151,39,113,45,212,84,181,42,81,36]
[null,"Less than 20 percent",19,27,92,48,64,42,86,75,33,24,79,36,32,20,406,107,17,17,58,34,69,40,158,79,46,37,17,14,146,58,167,110,139,68,57,29,21,21,103,59,122,68,25,28,58,31,33,24,81,56,40,18,22,20]
[null,"20 to 29 percent",136,79,26,18,83,59,30,34,33,21,29,23,53,25,520,162,40,28,5,8,68,39,158,80,39,31,17,11,158,67,120,78,97,64,15,13,55,38,142,74,91,70,22,24,24,12,15,18,46,41,76,27,12,9]
[null,"30 percent or more",86,56,85,44,101,65,177,84,27,21,63,29,88,42,938,177,18,13,62,32,132,63,256,79,108,68,22,20,376,121,130,60,132,58,108,54,106,67,146,62,296,135,186,83,69,27,65,33,85,48,65,25,47,26]
[null,"$75,000 or more:",500,133,357,68,483,121,1773,146,233,44,531,62,444,62,5117,285,120,37,661,79,777,104,755,155,759,142,181,40,2503,250,1307,179,904,119,369,66,766,127,540,127,1125,173,483,107,190,37,301,61,375,66,303,43,246,49]
[null,"Less than 20 percent",200,77,223,61,261,104,844,167,147,42,227,56,187,50,2808,278,84,31,322,76,332,97,400,111,286,108,93,34,1157,181,711,169,491,115,168,47,477,130,260,79,424,130,171,69,85,24,165,48,218,62,142,29,102,35]
[null,"20 to 29 percent",211,91,102,34,158,64,680,115,75,33,204,56,142,43,1631,256,19,16,214,64,328,86,185,82,435,110,67,28,914,173,409,116,305,108,132,47,228,77,205,75,465,134,171,80,85,24,100,48,115,43,120,40,83,28]
[null,"30 percent or more",89,61,32,23,64,47,249,104,11,10,100,38,115,52,678,153,17,16,125,46,117,82,170,96,38,43,21,14,432,146,187,74,108,54,69,43,61,38,75,39,236,95,141,69,20,18,36,22,42,27,41,22,61,39]
[null,"Zero or negative income",0,85,16,25,0,85,0,85,0,85,0,85,0,85,10,17,10,16,9,13,0,85,13,21,0,85,0,85,0,85,0,85,0,85,18,15,10,15,0,85,20,31,0,85,0,85,0,85,0,85,11,18,3,5]
[null,"Renter occupied housing units:",621,150,136,58,293,100,255,68,101,37,68,25,52,36,8029,384,108,42,124,47,141,61,1281,186,576,146,38,27,644,141,204,103,250,99,29,21,279,101,392,109,830,133,449,103,36,23,74,40,190,52,65,31,55,36]
[null,"Less than $20,000:",107,78,20,26,55,44,80,52,3,4,22,15,0,85,1986,253,18,14,11,16,33,17,445,120,131,75,4,6,108,69,0,85,36,36,0,85,132,82,91,71,262,125,105,58,8,9,12,17,6,9,20,22,10,15]
[null,"Less than 20 percent",16,17,0,85,0,85,0,85,0,85,6,10,0,85,83,62,0,85,0,85,11,18,40,36,8,12,0,85,0,85,0,85,0,85,0,85,0,85,0,85,14,22,9,14,0,85,0,85,0,85,0,85,0,85]
[null,"20 to 29 percent",5,8,0,85,28,29,12,20,0,85,8,11,0,85,428,136,0,85,0,85,10,16,112,49,54,40,4,6,37,39,0,85,10,16,0,85,0,85,10,15,12,21,8,13,0,85,0,85,6,9,0,85,0,85]
[null,"30 percent or more",86,74,20,26,27,30,68,51,3,4,8,12,0,85,1475,262,18,14,11,16,12,18,293,106,69,59,0,85,71,48,0,85,26,34,0,85,132,82,81,71,236,128,88,56,8,9,12,17,0,85,20,22,10,15]
[null,"$20,000 to $34,999:",240,106,9,14,82,56,71,49,32,24,32,20,0,85,1914,299,24,18,36,25,30,30,339,107,138,64,15,21,69,52,59,70,18,22,0,85,50,50,142,87,215,132,71,38,14,15,13,17,65,35,4,5,0,85]
[null,"Less than 20 percent",10,16,0,85,0,85,0,85,0,85,16,16,0,85,74,62,5,8,0,85,0,85,9,14,0,85,0,85,10,18,0,85,0,85,0,85,0,85,0,85,21,33,0,85,0,85,0,85,0,85,0,85,0,85]
[null,"20 to 29 percent",22,20,0,85,11,19,7,12,0,85,16,17,0,85,188,88,5,7,0,85,0,85,137,80,16,18,0,85,14,23,0,85,0,85,0,85,29,45,10,17,19,27,18,21,0,85,0,85,6,9,0,85,0,85]
[null,"30 percent or more",208,99,9,14,71,53,64,50,32,24,0,85,0,85,1652,275,14,15,36,25,30,30,193,91,122,63,15,21,45,36,59,70,18,22,0,85,21,21,132,85,175,126,53,32,14,15,13,17,59,37,4,5,0,85]
[null,"$35,000 to $49,999:",25,25,34,38,39,33,67,61,6,6,0,85,6,9,1192,223,36,26,7,11,10,17,120,64,19,31,3,4,56,36,23,27,92,84,0,85,21,27,23,27,143,110,110,81,0,85,8,10,31,22,12,10,9,13]
[null,"Less than 20 percent",16,20,0,85,0,85,0,85,3,4,0,85,0,85,22,34,0,85,0,85,0,85,15,17,0,85,3,4,0,85,0,85,0,85,0,85,0,85,15,24,0,85,0,85,0,85,0,85,0,85,4,6,0,85]
[null,"20 to 29 percent",9,15,17,26,30,34,13,22,3,5,0,85,0,85,689,180,36,26,7,11,0,85,33,31,0,85,0,85,23,26,11,17,0,85,0,85,11,16,8,13,88,81,110,81,0,85,5,9,16,16,3,4,0,85]
[null,"30 percent or more",0,85,17,28,9,12,54,60,0,85,0,85,6,9,481,166,0,85,0,85,10,17,72,49,19,31,0,85,33,25,12,20,92,84,0,85,10,15,0,85,55,80,0,85,0,85,3,5,15,15,5,6,9,13]
[null,"$50,000 to $74,999:",75,55,1,2,63,49,25,30,30,19,8,12,0,85,1567,244,17,17,5,7,56,49,140,72,181,94,8,14,184,73,53,49,6,10,18,14,49,45,55,59,101,94,85,49,9,15,35,28,51,33,9,8,19,22]
[null,"Less than 20 percent",13,20,1,2,51,52,0,85,4,6,0,85,0,85,683,173,17,17,0,85,11,17,84,64,111,83,0,85,42,40,0,85,0,85,8,8,49,45,8,12,91,91,67,45,9,15,0,85,39,32,3,5,9,14]
[null,"20 to 29 percent",8,13,0,85,12,20,12,20,15,8,0,85,0,85,697,159,0,85,5,7,17,20,56,52,70,60,0,85,120,80,39,44,0,85,10,11,0,85,47,57,0,85,18,23,0,85,35,28,7,10,6,7,10,16]
[null,"30 percent or more",54,50,0,85,0,85,13,22,11,16,8,12,0,85,187,77,0,85,0,85,28,35,0,85,0,85,8,14,22,25,14,22,6,10,0,85,0,85,0,85,10,15,0,85,0,85,0,85,5,8,0,85,0,85]
[null,"$75,000 or more:",89,61,18,27,43,51,0,85,13,12,6,8,38,35,1180,204,0,85,43,33,7,12,151,105,61,60,4,6,205,96,49,45,46,58,11,15,9,14,58,44,79,103,51,59,3,5,0,85,30,23,10,15,14,22]
[null,"Less than 20 percent",89,61,18,27,43,51,0,85,10,11,6,8,34,36,967,195,0,85,33,29,0,85,151,105,31,39,4,6,167,92,15,24,34,56,0,85,9,14,38,37,65,100,51,59,3,5,0,85,16,16,10,15,14,22]
[null,"20 to 29 percent",0,85,0,85,0,85,0,85,3,5,0,85,4,6,157,85,0,85,10,15,0,85,0,85,30,48,0,85,38,37,34,39,8,14,11,15,0,85,20,25,14,23,0,85,0,85,0,85,14,15,0,85,0,85]
[null,"30 percent or more",0,85,0,85,0,85,0,85,0,85,0,85,0,85,56,45,0,85,0,85,7,12,0,85,0,85,0,85,0,85,0,85,4,7,0,85,0,85,0,85,0,85,0,85,0,85,0,85,0,85,0,85,0,85]
[null,"Zero or negative income",43,73,0,85,0,85,0,85,0,85,0,85,0,85,96,74,10,16,0,85,0,85,10,16,0,85,0,85,0,85,0,85,0,85,0,85,0,85,0,85,0,85,0,85,0,85,0,85,0,85,0,85,0,85]
[null,"No cash rent",42,55,54,39,11,17,12,19,17,17,0,85,8,12,94,54,3,4,22,26,5,8,76,54,46,45,4,5,22,26,20,30,52,65,0,85,18,29,23,25,30,35,27,41,2,4,6,11,7,10,10,9,3,5]
[]
[]
[]
[]
[]
[]
[null,"Calculated B25106. TENURE BY HOUSING COSTS AS A PERCENTAGE OF HOUSEHOLD INCOME IN THE PAST 12 MONTHS"]
[null,"Universe:  OCCUPIED HOUSING UNITS"]
[null,{"$f":"B182","v":"Data Set: 2008-2012 American Community Survey 5-Year Estimates"}]
[]
[null,null,"Allenstown",null,"Andover",null,"Boscawen",null,"Bow",null,"Bradford",null,"Canterbury",null,"Chichester",null,"Concord",null,"Danbury",null,"Dunbarton",null,"Epsom",null,"Franklin",null,"Henniker",null,"Hill",null,"Hooksett",null,"Hopkinton",null,"Loudon",null,"Newbury",null,"New London",null,"Northfield",null,"Pembroke",null,"Pittsfield",null,"Salisbury",null,"Sutton",null,"Warner",null,"Webster",null,"Wilmot"]
[null,null,"Estimate","Margin of Error","Estimate","Margin of Error","Estimate","Margin of Error","Estimate","Margin of Error","Estimate","Margin of Error","Estimate","Margin of Error","Estimate","Margin of Error","Estimate","Margin of Error","Estimate","Margin of Error","Estimate","Margin of Error","Estimate","Margin of Error","Estimate","Margin of Error","Estimate","Margin of Error","Estimate","Margin of Error","Estimate","Margin of Error","Estimate","Margin of Error","Estimate","Margin of Error","Estimate","Margin of Error","Estimate","Margin of Error","Estimate","Margin of Error","Estimate","Margin of Error","Estimate","Margin of Error","Estimate","Margin of Error","Estimate","Margin of Error","Estimate","Margin of Error","Estimate","Margin of Error","Estimate","Margin of Error"]
[null,{"$f":"B186","v":"Total:"},1693,132,950,87,1392,199,2577,105,607,65,954,55,941,51,18007,432,461,66,1041,59,1626,106,3375,167,1689,158,445,57,4729,192,2373,132,1912,107,823,86,1672,166,1782,150,2980,168,1528,125,508,63,647,81,1069,68,724,75,540,65]
[null,{"$f":"B187","v":"Owner occupied housing units:"},1072,170,814,100,1099,162,2322,112,506,65,886,56,889,57,9978,412,353,60,917,71,1485,117,2094,202,1113,134,407,51,4085,210,2169,174,1662,141,794,84,1393,147,1390,186,2150,206,1079,118,472,61,573,75,879,75,659,63,485,65]
[null,"Less than 20 percent",{"$f":"C189+C193+C197+C201+C205","v":289},{"$f":"SQRT((D189^2)+(D193^2)+(D197^2)+(D201^2)+(D205^2))","v":128.42507543311004},{"$f":"SQRT((E189^2)+(E193^2)+(E197^2)+(E201^2)+(E205^2))","v":244.83872242764215},120.87183294713455,280.00178570859151,153.43402490973116,848.37020221127523,234.92339176846565,151.61134522191932,50.695167422546305,241.60091059431048,110.40833301884419,190.37594385846128,101.7742600071354,2848.7232227789345,314.35171384931243,87.56140702387097,38.820097887563342,327.22010940649722,146.39330585788409,339.87350588123223,161.50541786577935,440.37256953629617,145.88694252742431,289.81545852490342,166.37006942355947,96.45206063117574,40.01249804748511,1170.0722199932788,224.38137177582277,730.52446913159588,236.1927179233094,511.0635968252875,181.59019797334878,181.738823590338,106.35788640246665,479.51016673267731,163.1441080762649,292.91978424135164,134.75533384619698,445.51655412565759,178.11793845651817,175.07141400011596,143.77412840980813,104.1393297462587,126.91729590564086,169.5847870535562,102.44022647378324,232.56181973832247,169.27787805853427,148.0979405663698,125.35948308763881,105.20456263869927,94.905215873522991]
[null,"20 to 29 percent",{"$f":"C190+C194+C198+C202+C206","v":425},{"$f":"SQRT((D190^2)+(D194^2)+(D198^2)+(D202^2)+(D206^2))","v":160.12495120998477},{"$f":"SQRT((E190^2)+(E194^2)+(E198^2)+(E202^2)+(E206^2))","v":108.30512453249847},98.030607465219759,179.0335164152232,123.62443124237215,680.78557564037737,170.97075773359606,83.582294775867453,94.525128934056468,206.28863274548115,105.30906893520614,157.015922759445,101.96077677224709,1786.7296941619345,338.22477733010629,47.127486671792717,91.749659399912758,214.39449619801343,137.13497001129946,336.0014880919428,131.90905958272918,254.17120214532565,128.60793132618221,438.06278088876712,145.54724318928203,70.476946585390607,32.419130154894653,938.72093829849132,208.631253651029,439.11388044560834,179.52715672009069,332.50413531263035,165.99698792448012,139.97499776745846,65.55913361233506,236.58824991955962,126.2774722585149,255.00196077677521,115.17812292271479,479.59566303293445,184.35021019787311,179.20658470045123,93.962758580194958,89.938868127189593,90.835015274947793,104.26408777714406,57.593402399927719,135.55441711725959,111.46299834474219,142.45350118547455,98.407316801140354,84.622691992160114,90.945038347344706]
[null,"30 percent or more",{"$f":"C191+C195+C199+C203+C207","v":358},{"$f":"SQRT((D191^2)+(D195^2)+(D199^2)+(D203^2)+(D207^2))","v":107.73114684249862},{"$f":"SQRT((E191^2)+(E195^2)+(E199^2)+(E203^2)+(E207^2))","v":126.07140833670417},77.698133825723247,197.01522783785015,130.04614565607088,337.78543485473142,170.65169205138284,83.904707853612123,47.780749261601159,147.28883189162713,69.799713466460588,187.80308836651221,92.833183722201412,1626.1847988466748,349.25062634160014,65.01538279515087,45.122056690713912,152.66302761310612,68.811336275355089,296.31402261789771,167.16159846089053,433.69344011640294,184.34207333107653,153,145.64340012510007,77.47902942086975,48.47679857416329,655.93368567256857,243.71704905484145,295.27275526197809,151.38361866463623,230.45389994530359,111.77208953938367,143.98611044125056,83.252627586160912,251.22698899600735,146.70378318230243,219.39917957914062,124.89195330364562,422.27597611041051,197.73467070799697,280.16780685867531,142.84257068535277,96.343136756076191,50.970579749498633,93.332738093339998,54.396691075836586,163.49617732534298,94.963150748066482,113.45483682946268,53.507008886686982,104.79980916013159,64.768819658845104]
[null,"Zero or negative income",{"$f":"C208","v":0},{"$f":"D208","v":85},{"$f":"E208","v":16},25,0,85,0,85,0,85,0,85,0,85,10,17,10,16,9,13,0,85,13,21,0,85,0,85,0,85,0,85,0,85,18,15,10,15,0,85,20,31,0,85,0,85,0,85,0,85,11,18,3,5]
[null,"Renter occupied housing units:",{"$f":"C209","v":621},{"$f":"D209","v":150},{"$f":"E209","v":136},58,293,100,255,68,101,37,68,25,52,36,8029,384,108,42,124,47,141,61,1281,186,576,146,38,27,644,141,204,103,250,99,29,21,279,101,392,109,830,133,449,103,36,23,74,40,190,52,65,31,55,36]
[null,"Less than 20 percent",{"$f":"C211+C215+C219+C223+C227","v":144},{"$f":"SQRT((D211^2)+(D215^2)+(D219^2)+(D223^2)+(D227^2))","v":71.175838597096984},{"$f":"SQRT((E211^2)+(E215^2)+(E219^2)+(E223^2)+(E227^2))","v":18.027756377319946},149.69301920931383,66.708320320631671,164.25589791541734,0,190.06577808748213,11.180339887498949,120.92559695945272,18.110770276274835,121.94260945215171,34,173.76996288196645,1189.2968510847072,277.12452074834516,17.720045146669349,148.41832770921522,33,172.45579143653018,15.556349186104045,149.29166085217219,178.22177195842264,130.00769208012269,115.52488909321661,151.67069591717444,5,147.40081410901365,172.49057945290809,157.60076141948045,15,171.68575945604806,34,178.98603297464302,8,170.18813119603846,49.819674828324601,154.5833108715168,41.629316592997299,128.60404348231046,114.64292389851194,164.55698101265713,84.681757185358407,141.95774019052288,9.4868329805051381,148.07092894960846,0,190.06577808748213,42.154477816715982,151.50907563575194,11.180339887498949,121.39192724394815,16.643316977093239,149.51588544365444]
[null,"20 to 29 percent",{"$f":"C212+C216+C220+C224+C228","v":44},{"$f":"SQRT((D212^2)+(D216^2)+(D220^2)+(D224^2)+(D228^2))","v":89.905505949302125},{"$f":"SQRT((E212^2)+(E216^2)+(E220^2)+(E224^2)+(E228^2))","v":17},171.97674261364529,44.147480109288232,99.914963844261081,22.494443758403985,93.021502890460766,15.588457268119896,120.68139873236471,17.888543819998318,148.61022845013059,4,170.10584939971935,1097.1358165696715,301.90395823837753,36.345563690772494,149.66629547095766,13.19090595827292,121.8400590938793,19.723082923316021,149.43560486042139,188.51525137240222,140.32462364104171,94.720641889716944,122.69066794177949,4,170.10584939971935,133.93281898026339,102.44510725261603,52.896124621752776,134.89254983133799,12.806248474865697,148.75147058096601,14.866068747318506,148.39474384222643,31.016124838541646,154.77725931156684,53.600373133029585,67.505555326950685,91.896681115261174,124.43873994861889,113.19010557464817,122.16791722870616,0,190.06577808748213,35.355339059327378,150.13327412669051,23.937418407171648,27.258026340878022,6.7082039324993694,147.44490496453244,10,170.75128110793196]
[null,"30 percent or more",{"$f":"C213+C217+C221+C225+C229","v":348},{"$f":"SQRT((D213^2)+(D217^2)+(D221^2)+(D225^2)+(D229^2))","v":179.51880124376945},{"$f":"SQRT((E213^2)+(E217^2)+(E221^2)+(E225^2)+(E229^2))","v":27.748873851023216},126.90941651429968,76.491829629052546,135.2885804493491,108.65081684000356,128.10152223919903,33.97057550292606,123.68508398347798,11.313708498984761,148.19919028118878,6,170.23806859806652,2274.6856925738116,424.00353772109025,22.803508501982758,148.64723340849636,37.643060449437421,150.18655066283398,44.463468150831417,53.684262125878192,358.16476655304888,190.70395905696347,141.44256784999345,151.19854496654392,17,149.37201879870273,92.946221009786086,109.88630487917955,61.814237842102365,142.24626532883033,97.549987186057592,94.047860156411858,0,190.06577808748213,134.03357788255897,147.78362561528934,154.87091398968369,184.23083346714796,299.07524136912434,214.73239159474753,102.7277956543408,160.73269735806713,16.124515496597098,148.25990692024598,17.944358444926362,122.69066794177949,61.081912216301809,126.91729590564086,21,122.4540730233176,13.45362404707371,148.55638660118251]
[null,"Zero or negative income",{"$f":"C230","v":43},{"$f":"D230","v":73},{"$f":"E230","v":0},85,0,85,0,85,0,85,0,85,0,85,96,74,10,16,0,85,0,85,10,16,0,85,0,85,0,85,0,85,0,85,0,85,0,85,0,85,0,85,0,85,0,85,0,85,0,85,0,85,0,85]
[null,"No cash rent",{"$f":"C231","v":42},{"$f":"D231","v":55},{"$f":"E231","v":54},39,11,17,12,19,17,17,0,85,8,12,94,54,3,4,22,26,5,8,76,54,46,45,4,5,22,26,20,30,52,65,0,85,18,29,23,25,30,35,27,41,2,4,6,11,7,10,10,9,3,5]

{"sheet":"PlaceOfBirthAndPriorRes","index":67,"n_rows":57,"n_cols":16,"rows_kept":57,"cut":false,"hidden":true,"merged":[[40,11,40,13],[53,2,54,14],[4,3,4,5],[4,7,4,9],[40,3,40,5],[40,7,40,9],[4,11,4,13],[4,14,4,15],[40,14,40,15]]}
[]
[null,null,{"$f":"CntyDataLink!A50","v":"Allenstown"}]
[null,null,"SOCIAL CHARACTERISTICS"]
[]
[null,null,"Place of Birth","2008-2012",null,null,null,"2013-2017",null,null,null,"2018-2022",null,null,"Statistically Significant Change "]
[null,null,"Universe: Total Population","Estimate","Margin of Error",null,null,"Estimate","Margin of Error",null,null,"Estimate","Margin of Error",null,"2012-2022","2017-2022"]
[null,null,"  Total:",{"$f":"CntyDataLinkPrior10YearEstimate!$B$136","v":4364},{"$f":"CntyDataLinkPrior10YearEstimate!$C$136","v":28},null,null,{"$f":"CntyDataLinkPrior5YearEstimates!$B$136","v":4315},{"$f":"CntyDataLinkPrior5YearEstimates!$C$136","v":21},null,null,{"$f":"CntyDataLink!$B$136","v":4697},{"$f":"CntyDataLink!$C$136","v":20}]
[null,null,"   United States Native",{"$f":"CntyDataLinkPrior10YearEstimate!$D$136","v":4163},{"$f":"CntyDataLinkPrior10YearEstimate!$E$136","v":98},{"$f":"D8/$D$7","v":0.95394133822181482},null,{"$f":"CntyDataLinkPrior5YearEstimates!$D$136","v":4036},{"$f":"CntyDataLinkPrior5YearEstimates!$E$136","v":103},{"$f":"H8/$H$7","v":0.9353418308227115},null,{"$f":"CntyDataLink!$D$136","v":4509},{"$f":"CntyDataLink!$E$136","v":111},{"$f":"L8/$L$7","v":0.95997445177773044},{"$f":"StatisticallySignificantCalcs!A26","v":"Y"},{"$f":"StatisticallySignificantCalcs!J26","v":"Y"}]
[null,null,"      New Hampshire Native",{"$f":"CntyDataLinkPrior10YearEstimate!$F$136","v":2550},{"$f":"CntyDataLinkPrior10YearEstimate!$G$136","v":299},{"$f":"D9/$D$7","v":0.58432630614115488},null,{"$f":"CntyDataLinkPrior5YearEstimates!$F$136","v":2557},{"$f":"CntyDataLinkPrior5YearEstimates!$G$136","v":252},{"$f":"H9/$H$7","v":0.59258400926998844},null,{"$f":"CntyDataLink!$F$136","v":2550},{"$f":"CntyDataLink!$G$136","v":368},{"$f":"L9/$L$7","v":0.54289972322759206},{"$f":"StatisticallySignificantCalcs!A27","v":"N"},{"$f":"StatisticallySignificantCalcs!J27","v":"N"}]
[null,null,"      Born in Different State",{"$f":"CntyDataLinkPrior10YearEstimate!$H$136","v":1572},{"$f":"CntyDataLinkPrior10YearEstimate!$I$136","v":275},0.3602199816681943,null,{"$f":"CntyDataLinkPrior5YearEstimates!$H$136","v":1457},{"$f":"CntyDataLinkPrior5YearEstimates!$I$136","v":252},0.33765932792584008,null,{"$f":"CntyDataLink!$H$136","v":1891},{"$f":"CntyDataLink!$I$136","v":382},0.40259740259740262,{"$f":"StatisticallySignificantCalcs!A28","v":"N"},{"$f":"StatisticallySignificantCalcs!J28","v":"N"}]
[null,null,"          Northeast",{"$f":"CntyDataLinkPrior10YearEstimate!$J$136","v":1349},{"$f":"CntyDataLinkPrior10YearEstimate!$K$136","v":288},0.30912007332722274,null,{"$f":"CntyDataLinkPrior5YearEstimates!$J$136","v":1193},{"$f":"CntyDataLinkPrior5YearEstimates!$K$136","v":262},0.27647740440324448,null,{"$f":"CntyDataLink!$J$136","v":1485},{"$f":"CntyDataLink!$K$136","v":283},0.31615925058548011,{"$f":"StatisticallySignificantCalcs!A29","v":"N"},{"$f":"StatisticallySignificantCalcs!J29","v":"N"}]
[null,null,"          Midwest",{"$f":"CntyDataLinkPrior10YearEstimate!$L$136","v":109},{"$f":"CntyDataLinkPrior10YearEstimate!$M$136","v":69},2.4977085242896425E-2,null,{"$f":"CntyDataLinkPrior5YearEstimates!$L$136","v":48},{"$f":"CntyDataLinkPrior5YearEstimates!$M$136","v":48},1.1123986095017382E-2,null,{"$f":"CntyDataLink!$L$136","v":66},{"$f":"CntyDataLink!$M$136","v":70},1.405152224824356E-2,{"$f":"StatisticallySignificantCalcs!A30","v":"N"},{"$f":"StatisticallySignificantCalcs!J30","v":"N"}]
[null,null,"          South",{"$f":"CntyDataLinkPrior10YearEstimate!$N$136","v":60},{"$f":"CntyDataLinkPrior10YearEstimate!$O$136","v":51},1.3748854262144821E-2,null,{"$f":"CntyDataLinkPrior5YearEstimates!$N$136","v":148},{"$f":"CntyDataLinkPrior5YearEstimates!$O$136","v":99},3.4298957126303591E-2,null,{"$f":"CntyDataLink!$N$136","v":248},{"$f":"CntyDataLink!$O$136","v":186},5.2799659357036406E-2,{"$f":"StatisticallySignificantCalcs!A31","v":"N"},{"$f":"StatisticallySignificantCalcs!J31","v":"N"}]
[null,null,"          West",{"$f":"CntyDataLinkPrior10YearEstimate!$P$136","v":54},{"$f":"CntyDataLinkPrior10YearEstimate!$Q$136","v":42},1.237396883593034E-2,null,{"$f":"CntyDataLinkPrior5YearEstimates!$P$136","v":68},{"$f":"CntyDataLinkPrior5YearEstimates!$Q$136","v":56},1.5758980301274622E-2,null,{"$f":"CntyDataLink!$P$136","v":92},{"$f":"CntyDataLink!$Q$136","v":95},1.9586970406642538E-2,{"$f":"StatisticallySignificantCalcs!A32","v":"N"},{"$f":"StatisticallySignificantCalcs!J32","v":"N"}]
[null,null,"      Native Born Outside US",{"$f":"CntyDataLinkPrior10YearEstimate!$R136","v":41},{"$f":"CntyDataLinkPrior10YearEstimate!$S$136","v":34},9.3950504124656279E-3,null,{"$f":"CntyDataLinkPrior5YearEstimates!$R136","v":22},{"$f":"CntyDataLinkPrior5YearEstimates!$S$136","v":23},5.0984936268829665E-3,null,{"$f":"CntyDataLink!$R136","v":68},{"$f":"CntyDataLink!$S$136","v":74},1.4477325952735789E-2,{"$f":"StatisticallySignificantCalcs!A33","v":"N"},{"$f":"StatisticallySignificantCalcs!J33","v":"N"}]
[null,null,"   Foreign Born",{"$f":"CntyDataLinkPrior10YearEstimate!$Z136","v":201},{"$f":"CntyDataLinkPrior10YearEstimate!$AA$136","v":96},4.6058661778185149E-2,null,{"$f":"CntyDataLinkPrior5YearEstimates!$Z136","v":279},{"$f":"CntyDataLinkPrior5YearEstimates!$AA$136","v":99},6.4658169177288533E-2,null,{"$f":"CntyDataLink!$Z136","v":188},{"$f":"CntyDataLink!$AA$136","v":111},4.0025548222269537E-2,{"$f":"StatisticallySignificantCalcs!A34","v":"N"},{"$f":"StatisticallySignificantCalcs!J34","v":"N"}]
[null,null,"      Naturalized Citizen",{"$f":"CntyDataLinkPrior10YearEstimate!$AB136","v":96},{"$f":"CntyDataLinkPrior10YearEstimate!$AC$136","v":58},{"$f":"D17/$L$7","v":2.0438577815626996E-2},null,{"$f":"CntyDataLinkPrior5YearEstimates!$AB136","v":215},{"$f":"CntyDataLinkPrior5YearEstimates!$AC$136","v":92},4.9826187717265352E-2,null,{"$f":"CntyDataLink!$AB136","v":103},{"$f":"CntyDataLink!$AC$136","v":78},2.1928890781349797E-2,{"$f":"StatisticallySignificantCalcs!A35","v":"N"},{"$f":"StatisticallySignificantCalcs!J35","v":"N"}]
[null,null,"      Not a Citizen",{"$f":"CntyDataLinkPrior10YearEstimate!$AD$136","v":105},{"$f":"CntyDataLinkPrior10YearEstimate!$AE$136","v":84},{"$f":"D18/$L$7","v":2.2354694485842028E-2},null,{"$f":"CntyDataLinkPrior5YearEstimates!$AD$136","v":64},{"$f":"CntyDataLinkPrior5YearEstimates!$AE$136","v":51},1.4831981460023175E-2,null,{"$f":"CntyDataLink!$AD$136","v":85},{"$f":"CntyDataLink!$AE$136","v":87},1.8096657440919737E-2,{"$f":"StatisticallySignificantCalcs!A36","v":"N"},{"$f":"StatisticallySignificantCalcs!J36","v":"N"}]
[null,null,null,{"$f":"\"Source: \"&D41&\", \"&H41&\" and \"&L41& \" American Community Survey Table B05002.\"","v":"Source: 2008-2012, 2013-2017 and 2018-2022 American Community Survey Table B05002."}]
[]
[]
[]
[]
[]
[]
[]
[]
[]
[]
[]
[]
[]
[]
[]
[]
[]
[]
[]
[]
[null,null,"Place of Residence Prior year for Population"]
[null,null,"Universe: Population",{"$f":"D5","v":"2008-2012"},null,null,null,{"$f":"H5","v":"2013-2017"},null,null,null,{"$f":"L5","v":"2018-2022"},null,null,"Statistically Significant Change "]
[null,null,null,"Estimate","Margin of Error",null,null,"Estimate","Margin of Error",null,null,"Estimate","Margin of Error",null,{"$f":"O6","v":"2012-2022"},"2017-2022"]
[null,null,"  Total:",{"$f":"CntyDataLinkPrior10YearEstimate!$AF$136","v":4349},{"$f":"CntyDataLinkPrior10YearEstimate!$AG$136","v":32},null,null,{"$f":"CntyDataLinkPrior5YearEstimates!$AF$136","v":4261},{"$f":"CntyDataLinkPrior5YearEstimates!$AG$136","v":41},null,null,{"$f":"CntyDataLink!$AF$136","v":4654},{"$f":"CntyDataLink!$AG$136","v":45},null,{"$f":"StatisticallySignificantCalcs!$A37","v":"Y"},{"$f":"StatisticallySignificantCalcs!$J37","v":"Y"}]
["Same House",null,"    Same House ",{"$f":"CntyDataLinkPrior10YearEstimate!$AH$136","v":3778},{"$f":"CntyDataLinkPrior10YearEstimate!$AI$136","v":320},{"$f":"IF($D$44=\"-\",\"-\",VALUE(D44/$D$43))","v":0.86870544952862727},null,{"$f":"CntyDataLinkPrior5YearEstimates!$AH$136","v":3619},{"$f":"CntyDataLinkPrior5YearEstimates!$AI$136","v":211},{"$f":"IF($H$44=\"-\",\"-\",VALUE($H$44/$H$43))","v":0.8493311429241962},null,{"$f":"CntyDataLink!$AH$136","v":4048},{"$f":"CntyDataLink!$AI$136","v":269},{"$f":"IF($L$44=\"-\",\"-\",VALUE($L$44/$L$43))","v":0.86978942844864637},{"$f":"StatisticallySignificantCalcs!$A38","v":"N"},{"$f":"StatisticallySignificantCalcs!$J38","v":"Y"}]
["Different House",null,"    Different House 1  ",{"$f":"CntyDataLinkPrior10YearEstimate!$AJ$136","v":571},{"$f":"CntyDataLinkPrior10YearEstimate!$AK$136","v":332.27849764918585},{"$f":"IF($D$45=\"-\",\"-\",VALUE(D45/$D$43))","v":0.13129455047137273},null,{"$f":"CntyDataLinkPrior5YearEstimates!$AJ$136","v":642},{"$f":"CntyDataLinkPrior5YearEstimates!$AK$136","v":211.87496312684044},{"$f":"IF($H$45=\"-\",\"-\",VALUE($H$45/$H$43))","v":0.1506688570758038},null,{"$f":"CntyDataLink!$AJ$136","v":606},{"$f":"CntyDataLink!$AK$136","v":242.70352284217054},{"$f":"IF($L$45=\"-\",\"-\",VALUE($L$45/$L$43))","v":0.13021057155135368},{"$f":"StatisticallySignificantCalcs!$A39","v":"N"},{"$f":"StatisticallySignificantCalcs!$J39","v":"N"}]
[null,null,"      in New Hampshire",{"$f":"CntyDataLinkPrior10YearEstimate!$AL$136","v":540},{"$f":"CntyDataLinkPrior10YearEstimate!$AM$136","v":330.12118986820582},{"$f":"IF($D$46=\"-\",\"-\",VALUE(D46/$D$43))","v":0.12416647505173603},null,{"$f":"CntyDataLinkPrior5YearEstimates!$AL$136","v":535},{"$f":"CntyDataLinkPrior5YearEstimates!$AM$136","v":197.42593547961221},{"$f":"IF($H$46=\"-\",\"-\",VALUE($H$46/$H$43))","v":0.12555738089650317},null,{"$f":"CntyDataLink!$AL$136","v":486},{"$f":"CntyDataLink!$AM$136","v":229.2705825002414},{"$f":"IF($L$46=\"-\",\"-\",VALUE($L$46/$L$43))","v":0.10442629995702621},{"$f":"StatisticallySignificantCalcs!$A40","v":"N"},{"$f":"StatisticallySignificantCalcs!$J40","v":"N"}]
[null,null,"          Same county",{"$f":"CntyDataLinkPrior10YearEstimate!$AN$136","v":483},{"$f":"CntyDataLinkPrior10YearEstimate!$AO$136","v":326},{"$f":"IF($D$47=\"-\",\"-\",VALUE(D47/$D$43))","v":0.111060013796275},null,{"$f":"CntyDataLinkPrior5YearEstimates!$AN$136","v":251},{"$f":"CntyDataLinkPrior5YearEstimates!$AO$136","v":121},{"$f":"IF($H$47=\"-\",\"-\",VALUE($H$47/$H$43))","v":5.8906360009387468E-2},null,{"$f":"CntyDataLink!$AN$136","v":108},{"$f":"CntyDataLink!$AO$136","v":74},{"$f":"IF($L$47=\"-\",\"-\",VALUE($L$47/$L$43))","v":2.3205844434894714E-2},{"$f":"StatisticallySignificantCalcs!$A41","v":"N"},{"$f":"StatisticallySignificantCalcs!$J41","v":"N"}]
[null,null,"          Different county",{"$f":"CntyDataLinkPrior10YearEstimate!$AP$136","v":57},{"$f":"CntyDataLinkPrior10YearEstimate!$AQ$136","v":52},{"$f":"IF($D$48=\"-\",\"-\",VALUE(D48/$D$43))","v":1.3106461255461025E-2},null,{"$f":"CntyDataLinkPrior5YearEstimates!$AP$136","v":284},{"$f":"CntyDataLinkPrior5YearEstimates!$AQ$136","v":156},{"$f":"IF($H$48=\"-\",\"-\",VALUE($H$48/$H$43))","v":6.6651020887115706E-2},null,{"$f":"CntyDataLink!$AP$136","v":378},{"$f":"CntyDataLink!$AQ$136","v":217},{"$f":"IF($L$48=\"-\",\"-\",VALUE($L$48/$L$43))","v":8.1220455522131502E-2},{"$f":"StatisticallySignificantCalcs!$A42","v":"Y"},{"$f":"StatisticallySignificantCalcs!$J42","v":"N"}]
["Different State",null,"      in Different state",{"$f":"CntyDataLinkPrior10YearEstimate!$AR$136","v":18},{"$f":"CntyDataLinkPrior10YearEstimate!$AS$136","v":30},{"$f":"IF($D$49=\"-\",\"-\",VALUE(D49/$D$43))","v":4.1388825017245343E-3},null,{"$f":"CntyDataLinkPrior5YearEstimates!$AR$136","v":96},{"$f":"CntyDataLinkPrior5YearEstimates!$AS$136","v":75},{"$f":"IF($H$49=\"-\",\"-\",VALUE($H$49/$H$43))","v":2.2529922553391223E-2},null,{"$f":"CntyDataLink!$AR$136","v":111},{"$f":"CntyDataLink!$AS$136","v":78},{"$f":"IF($L$49=\"-\",\"-\",VALUE($L$49/$L$43))","v":2.3850451224752902E-2},{"$f":"StatisticallySignificantCalcs!$A43","v":"N"},{"$f":"StatisticallySignificantCalcs!$J43","v":"N"}]
["Eleswhere",null,"       Elsewhere",{"$f":"CntyDataLinkPrior10YearEstimate!$AT$136","v":13},{"$f":"CntyDataLinkPrior10YearEstimate!$AU$136","v":23},{"$f":"IF($D$50=\"-\",\"-\",VALUE(D50/$D$43))","v":2.9891929179121637E-3},null,{"$f":"CntyDataLinkPrior5YearEstimates!$AT$136","v":11},{"$f":"CntyDataLinkPrior5YearEstimates!$AU$136","v":17},{"$f":"IF($H$50=\"-\",\"-\",VALUE($H$50/$H$43))","v":2.581553625909411E-3},null,{"$f":"CntyDataLink!$AT$136","v":9},{"$f":"CntyDataLink!$AU$136","v":16},{"$f":"IF($L$50=\"-\",\"-\",VALUE($L$50/$L$43))","v":1.9338203695745595E-3},{"$f":"StatisticallySignificantCalcs!$A44","v":"N"},{"$f":"StatisticallySignificantCalcs!$J44","v":"N"}]
[]
[null,null,"Data from the American Community Survey are estimates"]
[]
[null,null,"1   The number for Different House was calculated by adding In New Hampshire, In Different State, and Elsewhere totals. The number is not located in the source Table B07003."]
[]
[]
[null,null,{"$f":"\"Source: \"&D41&\", \"&H41&\" and \"&L41& \" American Community Survey Table B07003.\"","v":"Source: 2008-2012, 2013-2017 and 2018-2022 American Community Survey Table B07003."}]

{"sheet":"ACS_Table_B05002","index":68,"n_rows":84,"n_cols":56,"rows_kept":84,"cut":false,"hidden":true,"merged":[]}
[null,"B05002. PLACE OF BIRTH BY CITIZENSHIP STATUS"]
[null,"Universe: TOTAL POPULATION"]
[null,"Data Set: 2018-2022 American Community Survey 5-Year Estimates"]
[]
[null,null,"Allenstown",null,"Andover",null,"Boscawen",null,"Bow",null,"Bradford",null,"Canterbury",null,"Chichester",null,"Concord",null,"Danbury",null,"Dunbarton",null,"Epsom",null,"Franklin",null,"Henniker",null,"Hill",null,"Hooksett",null,"Hopkinton",null,"Loudon",null,"Newbury",null,"New London",null,"Northfield",null,"Pembroke",null,"Pittsfield",null,"Salisbury",null,"Sutton",null,"Warner",null,"Webster",null,"Wilmot"]
[null,null,"Estimate","Margin Of Error","Estimate","Margin Of Error","Estimate","Margin Of Error","Estimate","Margin Of Error","Estimate","Margin Of Error","Estimate","Margin Of Error","Estimate","Margin Of Error","Estimate","Margin Of Error","Estimate","Margin Of Error","Estimate","Margin Of Error","Estimate","Margin Of Error","Estimate","Margin Of Error","Estimate","Margin Of Error","Estimate","Margin Of Error","Estimate","Margin Of Error","Estimate","Margin Of Error","Estimate","Margin Of Error","Estimate","Margin Of Error","Estimate","Margin Of Error","Estimate","Margin Of Error","Estimate","Margin Of Error","Estimate","Margin Of Error","Estimate","Margin Of Error","Estimate","Margin Of Error","Estimate","Margin Of Error","Estimate","Margin Of Error","Estimate","Margin Of Error"]
[null,"Total:",4697,20,2151,307,3992,38,8235,19,1565,172,2316,242,2691,27,44049,56,1491,261,3000,55,4846,26,8746,19,6094,15,839,182,14699,26,5925,20,5608,21,1911,255,4389,29,4892,24,7299,36,4093,17,1594,365,2254,451,2920,28,2120,317,1502,217]
[null,"Native:",4509,111,2049,278,3930,63,7792,181,1542,172,2212,230,2569,66,40418,504,1477,263,2907,95,4716,79,8298,260,6020,55,826,180,13908,271,5777,110,5536,63,1880,258,4190,121,4759,104,7173,78,4057,47,1574,365,2118,415,2807,63,2081,314,1449,215]
[null,"Born in state of residence",2550,368,936,184,2589,205,4127,336,803,161,1156,202,1586,149,23034,774,631,148,1629,170,2491,317,4848,415,3212,448,444,149,7941,618,2542,558,3562,418,657,185,1244,220,2871,323,5056,342,2248,264,955,274,1093,363,1450,169,1436,315,739,177]
[null,"Born in other state in the United States:",1891,382,1100,171,1321,183,3579,323,733,110,1050,157,983,154,16810,765,807,198,1245,161,2224,314,3414,409,2808,452,372,76,5927,601,3200,567,1910,396,1223,209,2923,248,1790,295,2099,317,1809,261,616,152,959,173,1329,159,631,99,669,106]
[null,"Northeast",1485,283,763,118,988,174,2805,323,570,102,811,152,822,134,12037,738,669,192,906,160,1765,285,2404,436,1747,415,275,60,4293,472,2177,316,1581,337,970,179,1908,211,1493,290,1529,302,1439,270,510,142,612,129,859,130,488,91,503,99]
[null,"Midwest",66,70,107,53,32,35,264,94,21,11,50,27,53,31,1693,355,72,35,146,54,153,100,158,101,305,166,19,16,401,170,639,440,111,96,94,55,362,136,88,75,119,107,117,67,42,23,89,35,143,52,75,31,56,28]
[null,"South",248,186,111,51,198,118,292,155,101,39,86,55,70,33,2011,338,42,19,119,55,221,122,525,313,460,198,34,22,743,254,282,157,156,129,95,45,352,131,176,84,343,170,233,114,25,19,139,69,178,88,50,26,73,36]
[null,"West",92,95,119,92,103,67,218,77,41,26,103,62,38,25,1069,227,24,20,74,40,85,55,327,242,296,225,44,20,490,199,102,73,62,53,64,31,301,113,33,55,108,64,20,24,39,27,119,62,149,71,18,16,37,20]
[null,"Born outside the United States:",68,74,13,18,20,22,86,61,6,6,6,11,0,12,574,209,39,30,33,34,1,8,36,42,0,17,10,10,40,28,35,56,64,70,0,12,23,24,98,112,18,26,0,12,3,5,66,56,28,26,14,14,41,29]
[null,"Puerto Rico",57,72,13,18,0,12,0,17,0,12,0,12,0,12,124,76,0,12,0,12,0,12,0,17,0,17,0,12,14,16,0,17,0,17,0,12,0,12,0,12,0,17,0,12,0,12,0,12,10,14,0,12,0,12]
[null,"U.S. Island Areas",0,12,0,12,0,12,0,17,0,12,0,12,0,12,65,83,0,12,0,12,0,12,0,17,0,17,0,12,0,19,0,17,0,17,0,12,0,12,0,12,5,8,0,12,0,12,0,12,0,12,0,12,0,12]
[null,"Born abroad of American parent(s)",11,17,0,12,20,22,86,61,6,6,6,11,0,12,385,163,39,30,33,34,1,8,36,42,0,17,10,10,26,25,35,56,64,70,0,12,23,24,98,112,13,24,0,12,3,5,66,56,18,23,14,14,41,29]
[null,"Foreign born:",188,111,102,115,62,54,443,180,23,15,104,43,122,63,3631,504,14,15,93,79,130,77,448,263,74,54,13,12,791,267,148,109,72,62,31,25,199,116,133,100,126,72,36,44,20,13,136,103,113,56,39,24,53,37]
[null,"Naturalized U.S. citizen",103,78,92,115,18,21,371,168,12,11,77,37,90,52,2020,343,14,15,84,77,47,41,225,181,43,51,7,10,661,247,104,80,72,62,13,15,118,79,124,98,82,62,22,34,12,8,117,96,85,47,13,10,36,28]
[null,"Europe",8,11,85,114,0,12,118,111,5,6,21,15,9,9,522,178,0,12,64,76,18,22,93,128,0,17,7,10,94,60,83,62,32,46,0,12,55,52,64,91,32,39,22,34,9,7,3,4,40,35,5,5,13,12]
[null,"Asia",12,19,0,12,1,3,83,62,0,12,22,24,56,46,721,227,4,6,20,21,20,33,65,76,4,8,0,12,225,129,0,17,24,38,9,14,4,8,31,38,21,33,0,12,0,12,34,46,8,13,1,2,19,26]
[null,"Africa",35,57,0,12,0,12,0,17,2,4,0,12,0,12,251,143,0,12,0,12,0,12,0,17,0,17,0,12,110,157,21,31,0,17,0,12,38,59,0,12,0,17,0,12,0,12,68,79,4,8,0,12,0,12]
[null,"Oceania",0,12,0,12,0,12,24,40,0,12,0,12,0,12,0,25,0,12,0,12,2,18,0,17,0,17,0,12,0,19,0,17,0,17,0,12,12,19,0,12,0,17,0,12,0,12,0,12,0,12,0,12,0,12]
[null,"Latin America",0,12,7,12,10,17,53,45,5,8,30,25,5,8,398,187,0,12,0,12,0,12,5,14,39,50,0,12,43,42,0,17,0,17,0,12,0,12,11,18,0,17,0,12,0,12,9,14,15,22,4,6,4,6]
[null,"Northern America",48,57,0,12,7,11,93,81,0,12,4,7,20,24,128,70,10,14,0,12,7,10,62,68,0,17,0,12,189,102,0,17,16,26,4,6,9,14,18,18,29,32,0,12,3,5,3,5,18,22,3,5,0,12]
[null,"Not a U.S. citizen",85,87,10,12,44,46,72,66,11,11,27,22,32,27,1611,405,0,12,9,12,83,58,223,192,31,29,6,9,130,74,44,73,0,17,18,21,81,77,9,15,44,57,14,23,8,11,19,21,28,30,26,23,17,21]
[null,"Europe",0,12,3,4,12,14,10,17,5,7,20,20,9,14,93,92,0,12,9,12,10,15,197,190,3,8,6,9,40,31,44,73,0,17,11,17,10,14,0,12,0,17,14,23,2,4,0,12,0,12,5,7,2,4]
[null,"Asia",14,23,0,12,19,39,34,56,0,12,5,7,7,13,790,332,0,12,0,12,40,51,26,35,5,10,0,12,80,62,0,17,0,17,7,10,8,12,0,12,0,17,0,12,0,12,14,20,15,23,0,12,5,10]
[null,"Africa",0,12,0,12,3,6,20,27,0,12,0,12,0,12,580,207,0,12,0,12,0,12,0,17,2,5,0,12,0,19,0,17,0,17,0,12,7,15,9,15,0,17,0,12,0,12,0,12,7,15,0,12,0,12]
[null,"Oceania",0,12,0,12,0,12,0,17,0,12,0,12,0,12,0,25,0,12,0,12,2,17,0,17,0,17,0,12,0,19,0,17,0,17,0,12,0,12,0,12,0,17,0,12,0,12,0,12,0,12,0,12,0,12]
[null,"Latin America",62,80,7,12,0,12,0,17,0,12,2,6,0,12,89,55,0,12,0,12,5,10,0,17,8,12,0,12,6,15,0,17,0,17,0,12,56,72,0,12,0,17,0,12,0,12,0,12,0,12,18,20,0,12]
[null,"Northern America",9,14,0,12,10,16,8,12,6,8,0,12,16,22,59,47,0,12,0,12,26,23,0,17,13,16,0,12,4,11,0,17,0,17,0,12,0,12,0,12,44,57,0,12,6,10,5,9,6,9,3,5,10,17]
[]
[]
[]
[]
[]
[]
[null,"B05002. PLACE OF BIRTH BY CITIZENSHIP STATUS"]
[null,"Universe: TOTAL POPULATION"]
[null,"Data Set: 2013-2017 American Community Survey 5-Year Estimates"]
[]
[null,null,"Allenstown",null,"Andover",null,"Boscawen",null,"Bow",null,"Bradford",null,"Canterbury",null,"Chichester",null,"Concord",null,"Danbury",null,"Dunbarton",null,"Epsom",null,"Franklin",null,"Henniker",null,"Hill",null,"Hooksett",null,"Hopkinton",null,"Loudon",null,"Newbury",null,"New London",null,"Northfield",null,"Pembroke",null,"Pittsfield",null,"Salisbury",null,"Sutton",null,"Warner",null,"Webster",null,"Wilmot"]
[null,null,"Estimate","Margin Of Error","Estimate","Margin Of Error","Estimate","Margin Of Error","Estimate","Margin Of Error","Estimate","Margin Of Error","Estimate","Margin Of Error","Estimate","Margin Of Error","Estimate","Margin Of Error","Estimate","Margin Of Error","Estimate","Margin Of Error","Estimate","Margin Of Error","Estimate","Margin Of Error","Estimate","Margin Of Error","Estimate","Margin Of Error","Estimate","Margin Of Error","Estimate","Margin Of Error","Estimate","Margin Of Error","Estimate","Margin Of Error","Estimate","Margin Of Error","Estimate","Margin Of Error","Estimate","Margin Of Error","Estimate","Margin Of Error","Estimate","Margin Of Error","Estimate","Margin Of Error","Estimate","Margin Of Error","Estimate","Margin Of Error","Estimate"]
[null,"Total:",4315,21,2783,308,3983,29,7692,22,1680,186,2248,248,2590,30,42717,52,1281,174,2788,21,4652,18,8491,28,4893,18,946,132,13987,51,5614,16,5403,15,1892,203,4525,38,4820,17,7137,43,4091,22,1262,164,1932,270,2887,23,1872,186,1477,174]
[null,"Native:",4036,103,2632,277,3856,73,7265,202,1647,188,2187,242,2542,39,39234,419,1266,174,2735,33,4581,52,8351,79,4722,89,941,131,13397,231,5491,99,5353,66,1799,198,4238,97,4579,138,6847,145,3935,89,1229,162,1871,276,2840,35,1841,183,1419,169]
[null,"Born in state of residence",2557,252,1509,193,2662,171,3633,328,774,128,1007,184,1692,96,21886,758,683,139,1597,113,2883,234,5225,338,2262,311,464,83,7651,578,2540,327,3647,295,604,132,1009,160,3201,218,4338,324,2430,223,689,112,783,188,1467,168,1127,149,606,134]
[null,"Born in other state in the United States:",1457,252,1097,194,1155,163,3556,356,821,131,1162,146,822,90,16862,686,572,94,1112,110,1698,229,3084,346,2365,297,472,102,5656,528,2913,336,1693,303,1191,140,3187,172,1338,213,2384,310,1461,212,534,87,1074,192,1346,165,692,103,781,125]
[null,"Northeast",1193,262,799,132,826,174,2569,260,661,111,835,125,693,92,11676,608,439,79,777,98,1233,222,2280,375,1826,261,379,99,4772,484,2184,340,1373,271,954,133,2454,178,1028,179,1991,308,1076,207,447,77,836,172,1024,152,510,74,598,115]
[null,"Midwest",48,48,154,114,80,57,455,149,47,24,114,43,53,29,1891,294,76,38,117,48,169,115,120,70,186,83,50,25,345,140,264,117,75,63,61,32,284,100,29,27,144,108,124,68,22,16,107,54,61,27,55,29,84,33]
[null,"South",148,99,74,45,181,67,354,136,86,37,120,51,28,22,2184,285,53,31,111,47,170,63,476,167,165,64,26,16,376,112,367,133,196,119,102,49,331,105,221,93,40,35,172,90,26,17,67,33,189,64,107,59,73,33]
[null,"West",68,56,70,41,68,45,178,73,27,15,93,53,48,29,1111,251,4,5,107,61,126,85,208,109,188,99,17,13,163,81,98,66,49,45,74,40,118,54,60,48,209,123,89,55,39,46,64,49,72,26,20,20,26,17]
[null,"Born outside the United States:",22,23,26,19,39,31,76,55,52,33,18,16,28,33,486,145,11,11,26,20,0,11,42,36,95,63,5,7,90,60,38,43,13,23,4,5,42,33,40,45,125,86,44,35,6,7,14,19,27,22,22,14,32,26]
[null,"Puerto Rico",0,11,8,11,17,23,0,16,0,11,0,11,0,11,53,43,0,11,0,11,0,11,20,22,16,23,0,11,30,30,0,16,0,16,0,11,15,23,0,11,0,16,0,11,0,11,0,11,0,11,0,11,2,6]
[null,"U.S. Island Areas",0,11,0,11,0,11,0,16,0,11,0,11,0,11,10,14,0,11,0,11,0,11,0,16,0,11,0,11,0,18,0,16,0,16,0,11,0,11,0,11,0,16,0,11,0,11,0,11,0,11,0,11,0,11]
[null,"Born abroad of American parent(s)",22,23,18,15,22,24,76,55,52,33,18,16,28,33,423,139,11,11,26,20,0,11,22,29,79,51,5,7,60,49,38,43,13,23,4,5,27,24,40,45,125,86,44,35,6,7,14,19,27,22,22,14,30,26]
[null,"Foreign born:",279,99,151,98,127,67,427,198,33,18,61,39,48,28,3483,420,15,13,53,27,71,47,140,76,171,89,5,7,590,224,123,99,50,60,93,60,287,93,241,136,290,144,156,85,33,16,61,49,47,28,31,24,58,38]
[null,"Naturalized U.S. citizen",215,92,95,103,83,62,291,150,25,16,48,35,25,21,1259,249,5,7,36,25,54,46,73,47,53,43,0,11,491,215,100,95,50,60,51,32,130,50,141,125,119,77,62,52,26,14,51,40,47,28,22,21,29,24]
[null,"Not a U.S. citizen",64,51,56,93,44,37,136,71,8,8,13,17,23,20,2224,393,10,11,17,11,17,26,67,57,118,84,5,7,99,54,23,35,0,16,42,53,157,80,100,83,171,133,94,58,7,7,10,17,0,11,9,11,29,31]
[]
[]
[]
[null,"B05002. PLACE OF BIRTH BY CITIZENSHIP STATUS"]
[null,"Universe: TOTAL POPULATION"]
[null,"Data Set: 2008-2012 American Community Survey 5-Year Estimates"]
[]
[null,null,"Allenstown",null,"Andover",null,"Boscawen",null,"Bow",null,"Bradford",null,"Canterbury",null,"Chichester",null,"Concord",null,"Danbury",null,"Dunbarton",null,"Epsom",null,"Franklin",null,"Henniker",null,"Hill",null,"Hooksett",null,"Hopkinton",null,"Loudon",null,"Newbury",null,"New London",null,"Northfield",null,"Pembroke",null,"Pittsfield",null,"Salisbury",null,"Sutton",null,"Warner",null,"Webster",null,"Wilmot"]
[null,null,"Estimate","Margin Of Error","Estimate","Margin Of Error","Estimate","Margin Of Error","Estimate","Margin Of Error","Estimate","Margin Of Error","Estimate","Margin Of Error","Estimate","Margin Of Error","Estimate","Margin Of Error","Estimate","Margin Of Error","Estimate","Margin Of Error","Estimate","Margin Of Error","Estimate","Margin Of Error","Estimate","Margin Of Error","Estimate","Margin Of Error","Estimate","Margin Of Error","Estimate","Margin Of Error","Estimate","Margin Of Error","Estimate","Margin Of Error","Estimate","Margin Of Error","Estimate","Margin Of Error","Estimate","Margin Of Error","Estimate","Margin Of Error","Estimate","Margin Of Error","Estimate","Margin Of Error","Estimate","Margin Of Error","Estimate","Margin Of Error","Estimate","Margin Of Error"]
[null,"Total:",4364,28,2503,234,3969,17,7571,34,1466,204,2419,143,2532,16,42767,36,1218,225,2756,18,4572,18,8499,24,4839,14,1210,201,13469,37,5608,16,5307,16,2103,252,4410,16,4848,31,7140,24,4104,33,1289,174,1794,251,2846,19,1749,161,1390,196]
[null,"Native:",4163,98,2451,223,3917,52,7286,144,1462,204,2331,131,2461,51,40425,399,1218,225,2653,55,4458,71,8182,193,4760,55,1204,202,12816,228,5481,83,5269,32,2076,250,4233,71,4689,131,6991,77,4028,90,1274,174,1719,256,2818,32,1729,161,1322,181]
[null,"Born in state of residence",2550,299,1396,186,2529,270,3739,334,464,85,1016,147,1485,150,21894,727,608,130,1418,166,2551,222,5208,431,2442,315,687,148,7148,458,2866,308,3362,277,891,197,1046,156,2738,275,4489,297,2477,211,815,128,638,128,1324,152,1050,134,566,122]
[null,"Born in other state in the United States:",1572,275,1039,207,1362,266,3515,343,968,169,1247,122,950,151,18142,653,600,162,1228,159,1901,223,2910,397,2315,313,516,116,5548,473,2578,292,1877,268,1172,176,3107,170,1934,217,2490,286,1512,220,459,82,1078,192,1444,141,659,77,744,139]
[null,"Northeast",1349,288,725,160,864,160,2572,293,708,129,876,129,728,148,13478,642,489,150,879,157,1539,236,2159,314,1832,292,455,116,4094,445,1850,283,1361,247,888,165,2482,212,1406,232,1916,255,1081,202,335,66,645,127,1193,142,518,70,587,117]
[null,"Midwest",109,69,94,35,124,70,384,155,71,45,129,51,31,22,1775,226,51,31,124,48,193,117,247,115,234,92,25,16,455,150,273,128,216,119,120,47,264,83,124,64,165,96,69,54,54,32,114,58,88,45,58,29,82,50]
[null,"South",60,51,147,59,129,61,333,111,99,63,152,80,126,51,1965,300,29,18,103,65,114,89,300,130,137,65,26,20,740,218,262,122,232,90,96,40,298,108,213,98,282,136,231,92,50,31,185,83,101,41,75,31,66,37]
[null,"West",54,42,73,61,245,223,226,81,90,43,90,52,65,37,924,207,31,28,122,65,55,43,204,161,112,73,10,8,259,135,193,146,68,45,68,40,63,47,191,86,127,86,131,73,20,14,134,78,62,46,8,9,9,7]
[null,"Born outside the United States:",41,34,16,25,26,26,32,35,30,18,68,42,26,21,389,114,10,11,7,10,6,11,64,40,3,6,1,4,120,74,37,38,30,33,13,14,80,47,17,21,12,19,39,29,0,11,3,4,50,39,20,14,12,11]
[null,"Puerto Rico",9,14,0,11,0,11,16,25,0,11,0,11,0,11,108,74,0,11,0,11,0,11,6,10,0,11,0,11,16,27,0,16,7,11,0,11,6,12,0,11,0,16,0,11,0,11,0,11,0,11,3,5,0,11]
[null,"U.S. Island Areas",0,11,0,11,0,11,9,17,3,5,0,11,0,11,0,24,0,11,0,11,0,11,9,14,0,11,0,11,15,25,0,16,0,16,0,11,0,11,0,11,0,16,0,11,0,11,0,11,0,11,0,11,0,11]
[null,"Born abroad of American parent(s)",32,31,16,25,26,26,7,13,27,17,68,42,26,21,281,100,10,11,7,10,6,11,49,37,3,6,1,4,89,64,37,38,23,31,13,14,74,46,17,21,12,19,39,29,0,11,3,4,50,39,17,12,12,11]
[null,"Foreign born:",201,96,52,50,52,48,285,137,4,6,88,45,71,49,2342,397,0,11,103,53,114,71,317,193,79,55,6,6,653,225,127,82,38,26,27,20,177,68,159,128,149,76,76,86,15,12,75,49,28,24,20,11,68,41]
[null,"Naturalized U.S. citizen",96,58,13,13,20,20,187,110,0,11,34,29,52,48,1112,250,0,11,69,37,84,60,128,79,9,16,3,4,363,176,98,76,19,15,23,19,132,55,85,75,72,56,9,14,15,12,57,40,28,24,11,9,39,26]
[null,"Not a U.S. citizen",105,84,39,47,32,39,98,98,4,6,54,39,19,21,1230,318,0,11,34,34,30,36,189,164,70,56,3,4,290,161,29,33,19,23,4,6,45,35,74,65,77,57,67,85,0,11,18,28,0,11,9,8,29,33]

{"sheet":"ACS_Table_B07003","index":69,"n_rows":89,"n_cols":56,"rows_kept":89,"cut":false,"hidden":true,"merged":[]}
[null,"B07003. GEOGRAPHICAL MOBILITY IN THE PAST YEAR BY SEX FOR CURRENT RESIDENCE IN THE UNITED STATES - Universe:  POPULATION 1 YEAR AND OVER IN THE UNITED STATES"]
[null,"Data Set: 2018-2022 American Community Survey 5-Year Estimates"]
[null,"Survey: American Community Survey"]
[]
[null,null,"Allenstown",null,"Andover",null,"Boscawen",null,"Bow",null,"Bradford",null,"Canterbury",null,"Chichester",null,"Concord",null,"Danbury",null,"Dunbarton",null,"Epsom",null,"Franklin",null,"Henniker",null,"Hill",null,"Hooksett",null,"Hopkinton",null,"Loudon",null,"Newbury",null,"New London",null,"Northfield",null,"Pembroke",null,"Pittsfield",null,"Salisbury",null,"Sutton",null,"Warner",null,"Webster",null,"Wilmot"]
[null,null,"Estimate","Margin Of Error","Estimate","Margin Of Error","Estimate","Margin Of Error","Estimate","Margin Of Error","Estimate","Margin Of Error","Estimate","Margin Of Error","Estimate","Margin Of Error","Estimate","Margin Of Error","Estimate","Margin Of Error","Estimate","Margin Of Error","Estimate","Margin Of Error","Estimate","Margin Of Error","Estimate","Margin Of Error","Estimate","Margin Of Error","Estimate","Margin Of Error","Estimate","Margin Of Error","Estimate","Margin Of Error","Estimate","Margin Of Error","Estimate","Margin Of Error","Estimate","Margin Of Error","Estimate","Margin Of Error","Estimate","Margin Of Error","Estimate","Margin Of Error","Estimate","Margin Of Error","Estimate","Margin Of Error","Estimate","Margin Of Error","Estimate","Margin Of Error"]
[null,"Total:",4654,45,2146,307,3930,65,8169,55,1560,173,2275,243,2654,36,43728,123,1487,258,2988,58,4754,78,8742,20,6073,32,827,180,14628,64,5921,28,5608,21,1873,251,4376,31,4892,24,7155,113,4093,17,1581,364,2236,450,2920,28,2112,317,1470,207]
[null,"Male",2405,157,1043,169,1909,137,4045,189,835,112,1125,152,1377,101,22772,552,747,113,1506,91,2245,138,3860,351,3259,210,478,118,7097,291,2777,244,2762,198,955,157,1934,147,2344,169,3831,257,1906,160,881,263,1141,236,1367,105,1053,204,692,109]
[null,"Female",2249,155,1103,175,2021,127,4124,181,725,99,1150,160,1277,102,20956,537,740,163,1482,92,2509,147,4882,350,2814,206,349,74,7531,300,3144,241,2846,200,918,122,2442,141,2548,171,3324,220,2187,160,700,126,1095,245,1553,104,1059,175,778,123]
[null,"Same house 1 year ago:",4048,269,1704,252,3404,153,7660,245,1426,179,2162,244,2527,79,37613,725,1360,227,2801,119,4261,195,7577,439,5607,194,773,172,13186,443,5116,440,5363,204,1776,248,3793,183,4346,266,6438,351,3839,172,1448,352,1982,360,2358,182,1943,296,1321,206]
[null,"Male",2129,197,789,140,1657,164,3792,208,740,108,1074,147,1331,107,19371,687,689,102,1427,115,1979,145,3376,372,3019,204,458,117,6453,380,2441,260,2610,222,902,158,1666,164,2095,208,3372,387,1790,184,798,257,1031,212,1115,116,991,198,618,106]
[null,"Female",1919,204,915,140,1747,139,3868,228,686,103,1088,163,1196,105,18242,551,671,142,1374,84,2282,170,4201,364,2588,247,315,66,6733,384,2675,370,2753,234,874,118,2127,178,2251,179,3066,226,2049,170,650,122,951,179,1243,134,952,158,703,118]
[null,"Moved within same county:",108,74,231,168,367,130,123,64,61,45,78,55,16,17,2636,533,80,77,33,33,114,65,358,209,113,110,13,13,347,313,96,97,168,155,7,10,90,76,317,218,203,175,165,135,83,91,64,66,315,153,107,100,39,47]
[null,"Male",64,51,104,86,162,70,66,39,42,35,30,26,0,12,1298,345,32,33,11,15,65,46,26,26,59,56,9,9,175,158,27,37,129,117,7,10,22,26,151,115,92,109,67,55,39,41,26,34,150,99,41,35,8,8]
[null,"Female",44,37,127,88,205,88,57,49,19,14,48,32,16,17,1338,279,48,45,22,27,49,35,332,207,54,56,4,6,172,163,69,84,39,51,0,12,68,60,166,119,111,84,98,84,44,50,38,36,165,81,66,69,31,47]
[null,"Moved from different county within same state:",378,217,74,104,139,77,158,97,46,29,14,13,59,40,2001,464,33,25,97,81,337,177,259,159,189,133,22,15,819,281,34,38,77,126,36,33,201,102,138,91,469,242,60,74,44,46,75,65,18,22,48,31,37,32]
[null,"Male",163,102,56,97,90,61,61,42,33,25,14,13,26,24,1329,423,17,14,40,34,182,112,176,124,68,71,3,5,354,174,16,25,23,40,18,20,76,34,38,39,360,190,37,47,41,46,38,27,9,13,17,16,33,31]
[null,"Female",215,127,18,31,49,31,97,67,13,10,0,12,33,22,672,173,16,20,57,49,155,77,83,60,121,119,19,14,465,160,18,32,54,87,18,15,125,80,100,68,109,84,23,28,3,5,37,46,9,17,31,19,4,6]
[null,"Moved from different state:",111,78,86,108,20,23,228,218,27,16,16,17,52,51,1146,288,14,16,20,24,42,60,548,367,159,95,19,17,248,149,632,428,0,17,54,34,286,129,91,93,45,58,29,40,6,12,115,109,174,108,9,12,71,45]
[null,"Male",40,35,82,107,0,12,126,110,20,11,7,10,20,22,664,207,9,15,9,11,19,30,282,193,111,83,8,10,97,59,250,150,0,17,28,19,167,95,60,69,7,12,12,19,3,6,46,53,85,65,4,10,33,21]
[null,"Female",71,48,4,6,20,23,102,110,7,7,9,13,32,30,482,141,5,6,11,13,23,35,266,192,48,37,11,10,151,123,382,340,0,17,26,19,119,66,31,37,38,57,17,22,3,7,69,93,89,52,5,6,38,28]
[null,"Moved from abroad:",9,16,51,70,0,12,0,17,0,12,5,7,0,12,332,250,0,12,37,60,0,12,0,17,5,9,0,12,28,31,43,49,0,17,0,12,6,10,0,12,0,17,0,12,0,12,0,12,55,80,5,7,2,4]
[null,"Male",9,16,12,17,0,12,0,17,0,12,0,12,0,12,110,76,0,12,19,31,0,12,0,17,2,5,0,12,18,25,43,49,0,17,0,12,3,7,0,12,0,17,0,12,0,12,0,12,8,11,0,12,0,12]
[null,"Female",0,12,39,53,0,12,0,17,0,12,5,7,0,12,222,185,0,12,18,29,0,12,0,17,3,8,0,12,10,15,0,17,0,17,0,12,3,7,0,12,0,17,0,12,0,12,0,12,47,70,5,7,2,4]
[]
[null,"Calculated B07003. GEOGRAPHICAL MOBILITY IN THE PAST YEAR BY SEX FOR CURRENT RESIDENCE IN THE UNITED STATES "]
[null,null,"Allenstown",null,"Andover",null,"Boscawen",null,"Bow",null,"Bradford",null,"Canterbury",null,"Chichester",null,"Concord",null,"Danbury",null,"Dunbarton",null,"Epsom",null,"Franklin",null,"Henniker",null,"Hill",null,"Hooksett",null,"Hopkinton",null,"Loudon",null,"Newbury",null,"New London",null,"Northfield",null,"Pembroke",null,"Pittsfield",null,"Salisbury",null,"Sutton",null,"Warner",null,"Webster",null,"Wilmot"]
[null,null,{"$f":"C6","v":"Estimate"},{"$f":"D6","v":"Margin Of Error"},{"$f":"E6","v":"Estimate"},"Margin Of Error","Estimate","Margin Of Error","Estimate","Margin Of Error","Estimate","Margin Of Error","Estimate","Margin Of Error","Estimate","Margin Of Error","Estimate","Margin Of Error","Estimate","Margin Of Error","Estimate","Margin Of Error","Estimate","Margin Of Error","Estimate","Margin Of Error","Estimate","Margin Of Error","Estimate","Margin Of Error","Estimate","Margin Of Error","Estimate","Margin Of Error","Estimate","Margin Of Error","Estimate","Margin Of Error","Estimate","Margin Of Error","Estimate","Margin Of Error","Estimate","Margin Of Error","Estimate","Margin Of Error","Estimate","Margin Of Error","Estimate","Margin Of Error","Estimate","Margin Of Error","Estimate","Margin Of Error","Estimate","Margin Of Error"]
[]
[null,"  Total:",{"$f":"C7","v":4654},{"$f":"D7","v":45},{"$f":"E7","v":2146},307,3930,65,8169,55,1560,173,2275,243,2654,36,43728,123,1487,258,2988,58,4754,78,8742,20,6073,32,827,180,14628,64,5921,28,5608,21,1873,251,4376,31,4892,24,7155,113,4093,17,1581,364,2236,450,2920,28,2112,317,1470,207]
[null,"    Same house ",{"$f":"C10","v":4048},{"$f":"D10","v":269},{"$f":"E10","v":1704},252,3404,153,7660,245,1426,179,2162,244,2527,79,37613,725,1360,227,2801,119,4261,195,7577,439,5607,194,773,172,13186,443,5116,440,5363,204,1776,248,3793,183,4346,266,6438,351,3839,172,1448,352,1982,360,2358,182,1943,296,1321,206]
[null,"    Different house 2",{"$f":"C13+C16+C19+C22","v":606},{"$f":"SQRT((D13^2)+(D16^2)+(D19^2)+(D22^2))","v":242.70352284217054},{"$f":"E13+E16+E19+E22","v":442},{"$f":"SQRT((F13^2)+(F16^2)+(F19^2)+(F22^2))","v":235.80500418778223},{"$f":"G13+G16+G19+G22","v":526},{"$f":"SQRT((H13^2)+(H16^2)+(H19^2)+(H22^2))","v":153.30362030950215},{"$f":"I13+I16+I19+I22","v":509},{"$f":"SQRT((J13^2)+(J16^2)+(J19^2)+(J22^2))","v":247.62471605233594},{"$f":"K13+K16+K19+K22","v":134},{"$f":"SQRT((L13^2)+(L16^2)+(L19^2)+(L22^2))","v":57.148928248918196},{"$f":"M13+M16+M19+M22","v":113},{"$f":"SQRT((N13^2)+(N16^2)+(N19^2)+(N22^2))","v":59.430631832414505},{"$f":"O13+O16+O19+O22","v":127},{"$f":"SQRT((P13^2)+(P16^2)+(P19^2)+(P22^2))","v":68.073489700470034},{"$f":"Q13+Q16+Q19+Q22","v":6115},{"$f":"SQRT((R13^2)+(R16^2)+(R19^2)+(R22^2))","v":803.0124532035602},{"$f":"S13+S16+S19+S22","v":127},{"$f":"SQRT((T13^2)+(T16^2)+(T19^2)+(T22^2))","v":83.390646957557536},{"$f":"U13+U16+U19+U22","v":187},{"$f":"SQRT((V13^2)+(V16^2)+(V19^2)+(V22^2))","v":108.74741376235114},{"$f":"W13+W16+W19+W22","v":493},{"$f":"SQRT((X13^2)+(X16^2)+(X19^2)+(X22^2))","v":198.23723161908813},{"$f":"Y13+Y16+Y19+Y22","v":1165},{"$f":"SQRT((Z13^2)+(Z16^2)+(Z19^2)+(Z22^2))","v":451.59716562440912},{"$f":"AA13+AA16+AA19+AA22","v":466},{"$f":"SQRT((AB13^2)+(AB16^2)+(AB19^2)+(AB22^2))","v":197.21815332265942},{"$f":"AC13+AC16+AC19+AC22","v":54},{"$f":"SQRT((AD13^2)+(AD16^2)+(AD19^2)+(AD22^2))","v":28.757607689096812},{"$f":"AE13+AE16+AE19+AE22","v":1442},{"$f":"SQRT((AF13^2)+(AF16^2)+(AF19^2)+(AF22^2))","v":447.31644280084316},{"$f":"AG13+AG16+AG19+AG22","v":805},{"$f":"SQRT((AH13^2)+(AH16^2)+(AH19^2)+(AH22^2))","v":443.21326694944503},{"$f":"AI13+AI16+AI19+AI22","v":245},{"$f":"SQRT((AJ13^2)+(AJ16^2)+(AJ19^2)+(AJ22^2))","v":201.19393629033655},{"$f":"AK13+AK16+AK19+AK22","v":97},{"$f":"SQRT((AL13^2)+(AL16^2)+(AL19^2)+(AL22^2))","v":49.889878733065686},{"$f":"AM13+AM16+AM19+AM22","v":583},{"$f":"SQRT((AN13^2)+(AN16^2)+(AN19^2)+(AN22^2))","v":181.44145061148512},{"$f":"AO13+AO16+AO19+AO22","v":546},{"$f":"SQRT((AP13^2)+(AP16^2)+(AP19^2)+(AP22^2))","v":254.161366064947},{"$f":"AQ13+AQ16+AQ19+AQ22","v":717},{"$f":"SQRT((AR13^2)+(AR16^2)+(AR19^2)+(AR22^2))","v":304.69985231371544},{"$f":"AS13+AS16+AS19+AS22","v":254},{"$f":"SQRT((AT13^2)+(AT16^2)+(AT19^2)+(AT22^2))","v":159.51488958714793},{"$f":"AU13+AU16+AU19+AU22","v":133},{"$f":"SQRT((AV13^2)+(AV16^2)+(AV19^2)+(AV22^2))","v":103.36827366266692},{"$f":"AW13+AW16+AW19+AW22","v":254},{"$f":"SQRT((AX13^2)+(AX16^2)+(AX19^2)+(AX22^2))","v":143.54790141273401},{"$f":"AY13+AY16+AY19+AY22","v":562},{"$f":"SQRT((AZ13^2)+(AZ16^2)+(AZ19^2)+(AZ22^2))","v":204.83407919582132},{"$f":"BA13+BA16+BA19+BA22","v":169},{"$f":"SQRT((BB13^2)+(BB16^2)+(BB19^2)+(BB22^2))","v":105.61249926026748},{"$f":"BC13+BC16+BC19+BC22","v":149},{"$f":"SQRT((BD13^2)+(BD16^2)+(BD19^2)+(BD22^2))","v":72.622310621461224}]
[null,"      in New Hampshire",{"$f":"C16+C13","v":486},{"$f":"SQRT((D16^2)+(D13^2))","v":229.2705825002414},{"$f":"E16+E13","v":305},{"$f":"SQRT((F16^2)+(F13^2))","v":197.58542456365549},{"$f":"G16+G13","v":506},{"$f":"SQRT((H16^2)+(H13^2))","v":151.09268678529745},{"$f":"I16+I13","v":281},{"$f":"SQRT((J16^2)+(J13^2))","v":116.21101496846157},{"$f":"K16+K13","v":107},{"$f":"SQRT((L16^2)+(L13^2))","v":53.535035257296691},{"$f":"M16+M13","v":92},{"$f":"SQRT((N16^2)+(N13^2))","v":56.515484603779164},{"$f":"O16+O13","v":75},{"$f":"SQRT((P16^2)+(P13^2))","v":43.46262762420146},{"$f":"Q16+Q13","v":4637},{"$f":"SQRT((R16^2)+(R13^2))","v":706.67177671108391},{"$f":"S16+S13","v":113},{"$f":"SQRT((T16^2)+(T13^2))","v":80.956778592036386},{"$f":"U16+U13","v":130},{"$f":"SQRT((V16^2)+(V13^2))","v":87.464278422679513},{"$f":"W16+W13","v":451},{"$f":"SQRT((X16^2)+(X13^2))","v":188.55768348173987},{"$f":"Y16+Y13","v":617},{"$f":"SQRT((Z16^2)+(Z13^2))","v":262.60616900598507},{"$f":"AA16+AA13","v":302},{"$f":"SQRT((AB16^2)+(AB13^2))","v":172.59490143106777},{"$f":"AC16+AC13","v":35},{"$f":"SQRT((AD16^2)+(AD13^2))","v":19.849433241279208},{"$f":"AE16+AE13","v":1166},{"$f":"SQRT((AF16^2)+(AF13^2))","v":420.63047916193614},{"$f":"AG16+AG13","v":130},{"$f":"SQRT((AH16^2)+(AH13^2))","v":104.17773274553444},{"$f":"AI16+AI13","v":245},{"$f":"SQRT((AJ16^2)+(AJ13^2))","v":199.75234666956982},{"$f":"AK16+AK13","v":43},{"$f":"SQRT((AL16^2)+(AL13^2))","v":34.481879299133332},{"$f":"AM16+AM13","v":291},{"$f":"SQRT((AN16^2)+(AN13^2))","v":127.20062892926276},{"$f":"AO16+AO13","v":455},{"$f":"SQRT((AP16^2)+(AP13^2))","v":236.23081932719955},{"$f":"AQ16+AQ13","v":672},{"$f":"SQRT((AR16^2)+(AR13^2))","v":298.64527453150839},{"$f":"AS16+AS13","v":225},{"$f":"SQRT((AT16^2)+(AT13^2))","v":153.95129099815955},{"$f":"AU16+AU13","v":127},{"$f":"SQRT((AV16^2)+(AV13^2))","v":101.96568050084302},{"$f":"AW16+AW13","v":139},{"$f":"SQRT((AX16^2)+(AX13^2))","v":92.633687176966021},{"$f":"AY16+AY13","v":333},{"$f":"SQRT((AZ16^2)+(AZ13^2))","v":154.57360706149029},{"$f":"BA16+BA13","v":155},{"$f":"SQRT((BB16^2)+(BB13^2))","v":104.69479452198185},{"$f":"BC16+BC13","v":76},{"$f":"SQRT((BD16^2)+(BD13^2))","v":56.859475903318}]
[null,"          Same county",{"$f":"C13","v":108},{"$f":"D13","v":74},{"$f":"E13","v":231},168,367,130,123,64,61,45,78,55,16,17,2636,533,80,77,33,33,114,65,358,209,113,110,13,13,347,313,96,97,168,155,7,10,90,76,317,218,203,175,165,135,83,91,64,66,315,153,107,100,39,47]
[null,"          Different county",{"$f":"C16","v":378},{"$f":"D16","v":217},{"$f":"E16","v":74},104,139,77,158,97,46,29,14,13,59,40,2001,464,33,25,97,81,337,177,259,159,189,133,22,15,819,281,34,38,77,126,36,33,201,102,138,91,469,242,60,74,44,46,75,65,18,22,48,31,37,32]
[null,"      in Different state",{"$f":"C19","v":111},{"$f":"D19","v":78},{"$f":"E19","v":86},108,20,23,228,218,27,16,16,17,52,51,1146,288,14,16,20,24,42,60,548,367,159,95,19,17,248,149,632,428,0,17,54,34,286,129,91,93,45,58,29,40,6,12,115,109,174,108,9,12,71,45]
[null,"       Elsewhere",{"$f":"C22","v":9},{"$f":"D22","v":16},{"$f":"E22","v":51},70,0,12,0,17,0,12,5,7,0,12,332,250,0,12,37,60,0,12,0,17,5,9,0,12,28,31,43,49,0,17,0,12,6,10,0,12,0,17,0,12,0,12,0,12,55,80,5,7,2,4]
[]
[]
[]
[]
[]
[]
[]
[]
[]
[]
[]
[]
[]
[]
[]
[]
[]
[]
[]
[]
[]
[]
[null,"Calculated GEOGRAPHICAL MOBILITY IN THE PAST YEAR BY SEX FOR CURRENT RESIDENCE IN THE UNITED STATES"]
[null,"Universe:  POPULATION 1 YEAR AND OVER IN THE UNITED STATES"]
[null,"Data Set: 2013-2017 American Community Survey 5-Year Estimates"]
[null,null,"Allenstown",null,"Andover",null,"Boscawen",null,"Bow",null,"Bradford",null,"Canterbury",null,"Chichester",null,"Concord",null,"Danbury",null,"Dunbarton",null,"Epsom",null,"Franklin",null,"Henniker",null,"Hill",null,"Hooksett",null,"Hopkinton",null,"Loudon",null,"Newbury",null,"New London",null,"Northfield",null,"Pembroke",null,"Pittsfield",null,"Salisbury",null,"Sutton",null,"Warner",null,"Webster",null,"Wilmot"]
[null,null,"Estimate","Margin Of Error","Estimate","Margin Of Error","Estimate","Margin Of Error","Estimate","Margin Of Error","Estimate","Margin Of Error","Estimate","Margin Of Error","Estimate","Margin Of Error","Estimate","Margin Of Error","Estimate","Margin Of Error","Estimate","Margin Of Error","Estimate","Margin Of Error","Estimate","Margin Of Error","Estimate","Margin Of Error","Estimate","Margin Of Error","Estimate","Margin Of Error","Estimate","Margin Of Error","Estimate","Margin Of Error","Estimate","Margin Of Error","Estimate","Margin Of Error","Estimate","Margin Of Error","Estimate","Margin Of Error","Estimate","Margin Of Error","Estimate","Margin Of Error","Estimate","Margin Of Error","Estimate","Margin Of Error","Estimate","Margin Of Error","Estimate","Margin Of Error"]
[]
[null,"  Total:",4261,41,2755,304,3932,54,7647,50,1669,184,2241,247,2550,46,42296,138,1272,172,2768,26,4618,30,8396,66,4857,35,938,130,13859,82,5544,58,5403,15,1880,202,4505,43,4726,63,7124,47,4037,59,1254,164,1909,265,2865,34,1848,184,1468,173]
[null,"    Same house ",3619,211,2432,254,3316,211,7272,166,1491,173,2046,243,2475,68,35485,669,1162,161,2599,110,4192,196,6960,399,3947,285,870,130,12123,507,5062,251,4675,290,1678,196,3809,173,4218,208,6487,207,3430,281,1188,162,1821,266,2686,75,1615,178,1250,130]
[null,"    Different house",642,211.87496312684044,323,117.05554237198682,616,239.11294402436687,375,138.32570260078205,178,80.492235650402947,195,78.987340757870811,75,47.318072657283921,6811,652.82616369137656,110,57.497826045860201,169,93.690981422973678,426,203.71794226331662,1436,463.97844777532504,910,303.58194939752264,68,38.626415831655933,1736,490.57823025486977,482,247.15177523133431,728,334.10327744576227,202,82.060952955714569,696,173.73543104387198,508,184.71329134634573,637,224.60186998331068,607,281.92729559232112,66,59.304300012730948,88,50.705029336348872,179,60.827625302982199,233,97.04638066409278,218,130.13454575937936]
[null,"      in New Hampshire",535,197.42593547961221,241,95.341491492424225,583,237.26145915424192,292,131.59027319676784,147,77.472575792986262,130,56.586217403180434,75,44.687805943008662,5402,579.15196624029522,98,54.918120870983927,112,76.843997813752509,340,192.4162155328911,1186,423.5398446427443,494,213.03755537463343,52,31.780497164141408,1344,470.63574024929301,358,230.55151268209019,655,321.90837205639747,122,60.802960454241045,266,114.62983904725679,382,158.02847844613325,494,191.44973230589798,571,278.71311415145146,64,58.137767414994535,71,45.705579528105758,116,47.010637094172637,215,96.041657628343756,188,126.28935030318273]
[null,"          Same county",251,121,159,87,414,193,163,96,101,71,54,41,40,29,3619,496,66,46,86,73,231,180,801,355,248,168,34,29,481,287,253,195,322,220,78,49,108,84,272,138,387,173,362,241,45,52,65,45,75,41,171,82,169,125]
[null,"          Different county",284,156,82,39,169,138,129,90,46,31,76,39,35,34,1783,299,32,30,26,24,109,68,385,231,246,131,18,13,863,373,105,123,333,235,44,36,158,78,110,77,107,82,209,140,19,26,6,8,41,23,44,50,19,18]
[null,"      in Different state",96,75,71,66,20,21,50,33,27,21,65,54,0,11,1153,237,12,13,50,52,86,66,241,189,416,216,16,19,374,137,92,73,73,88,80,54,420,130,126,95,72,73,36,41,2,4,17,19,63,37,14,13,26,31]
[null,"       Elsewhere",11,17,11,16,13,21,33,27,4,6,0,11,0,11,256,186,0,11,7,13,0,11,9,13,0,11,0,11,18,20,32,51,0,16,0,11,10,12,0,11,71,92,0,11,0,11,0,11,0,11,4,5,4,5]
[]
[]
[]
[null,"Calculated GEOGRAPHICAL MOBILITY IN THE PAST YEAR BY SEX FOR CURRENT RESIDENCE IN THE UNITED STATES"]
[null,"Universe:  POPULATION 1 YEAR AND OVER IN THE UNITED STATES"]
[null,"Data Set: 2008-2012 American Community Survey 5-Year Estimates"]
[null,null,"Allenstown",null,"Andover",null,"Boscawen",null,"Bow",null,"Bradford",null,"Canterbury",null,"Chichester",null,"Concord",null,"Danbury",null,"Dunbarton",null,"Epsom",null,"Franklin",null,"Henniker",null,"Hill",null,"Hooksett",null,"Hopkinton",null,"Loudon",null,"Newbury",null,"New London",null,"Northfield",null,"Pembroke",null,"Pittsfield",null,"Salisbury",null,"Sutton",null,"Warner",null,"Webster",null,"Wilmot"]
[null,null,"Estimate","Margin Of Error","Estimate","Margin Of Error","Estimate","Margin Of Error","Estimate","Margin Of Error","Estimate","Margin Of Error","Estimate","Margin Of Error","Estimate","Margin Of Error","Estimate","Margin Of Error","Estimate","Margin Of Error","Estimate","Margin Of Error","Estimate","Margin Of Error","Estimate","Margin Of Error","Estimate","Margin Of Error","Estimate","Margin Of Error","Estimate","Margin Of Error","Estimate","Margin Of Error","Estimate","Margin Of Error","Estimate","Margin Of Error","Estimate","Margin Of Error","Estimate","Margin Of Error","Estimate","Margin Of Error","Estimate","Margin Of Error","Estimate","Margin Of Error","Estimate","Margin Of Error","Estimate","Margin Of Error","Estimate","Margin Of Error","Estimate","Margin Of Error"]
[null,"Total",4349,32,2499,234,3888,55,7546,44,1456,203,2406,144,2528,17,42387,131,1213,226,2750,19,4559,26,8448,43,4807,39,1203,200,13344,93,5586,30,5268,35,2097,249,4376,40,4803,42,7042,73,4051,55,1268,174,1778,245,2823,31,1746,161,1381,195]
[null,"    Same house ",3778,320,2263,235,3430,217,6860,260,1372,204,2213,173,2288,146,34516,979,1078,219,2555,93,4144,203,7307,413,4055,272,1183,196,11880,379,5171,204,4737,304,1890,244,3532,257,4256,258,6185,315,3367,245,1216,171,1644,234,2396,179,1626,156,1261,191]
[null,"    Different house ",571,332.27849764918585,236,113.56936206565572,458,175.78395831246945,686,270.97047809678457,84,41.206795556073025,193,91.296221170429618,240,150.37951988219672,7871,942.52957513279125,135,75.643902596309772,195,89.938868127189593,415,205.00487799074443,1141,395.3605949004023,752,275.89671980652469,20,24.879710609249457,1464,414.10143684850937,415,196.08926538696605,531,328.11278548694196,207,151.58166115991736,844,260.62233212063774,547,254.92940199200251,857,359.59977753052073,684,251.63862978485636,52,33.241540277189323,134,87.72114910328068,427,194.17002858319816,120,74.040529441651074,120,55.596762495670554]
[null,"      in New Hampshire",540,330.12118986820582,126,77.878109889750149,363,154.56390264224049,450,246.34325645326686,52,32.756678708318397,155,86.145226217127089,223,149.05368160498418,6519,870.10918855049454,125,73.109506905736964,45,31.827660925679098,403,203.62956563328422,948,366.87054937675225,501,233.02574965011914,20,19.416487838947599,997,342.4675167077894,185,119.03780911962384,438,309.41557814693169,165,148.92951352905172,627,241.1057859114957,480,240.44126101815388,688,313.17726609701413,565,238.32121181296472,31,22.360679774997898,110,83.93449827097318,417,193.54586019855861,114,72.780491891715045,78,37.013511046643494]
[null,"          Same county",483,326,99,71,310,151,101,77,35,28,143,85,221,149,4396,757,55,47,26,23,201,109,662,337,256,174,3,4,216,122,139,101,287,263,130,144,448,226,389,206,486,276,330,166,8,10,91,81,384,188,100,71,51,29]
[null,"          Different county",57,52,27,32,53,33,349,234,17,17,12,14,2,4,2123,429,70,56,19,22,202,172,286,145,245,155,17,19,781,320,46,63,151,163,35,38,179,84,91,124,202,148,235,171,23,20,19,22,33,46,14,16,27,23]
[null,"      in Different state",18,30,75,68,95,83,227,112,27,24,12,17,4,6,1066,306,10,16,126,74,12,21,180,146,225,143,0,11,429,230,219,155,93,108,31,26,192,96,67,84,169,176,106,78,21,22,24,23,10,11,6,8,42,40]
[null,"       Elsewhere",13,23,35,47,0,11,9,14,5,7,26,25,13,19,286,194,0,11,24,40,0,11,13,20,26,37,0,11,38,36,11,16,0,16,11,11,25,24,0,11,0,16,13,21,0,11,0,11,0,11,0,11,0,11]

{"sheet":"ACS_Table_B14001","index":70,"n_rows":98,"n_cols":56,"rows_kept":98,"cut":false,"hidden":true,"merged":[]}
[null,"B14001. SCHOOL ENROLLMENT BY LEVEL OF SCHOOL FOR THE POPULATION 3 YEARS AND OVER"]
[null,"Universe: POPULATION 3 YEARS AND OVER"]
[null,"Data Set: 2018-2022 American Community Survey 5-Year Estimates"]
[]
[null,null,"Allenstown",null,"Andover",null,"Boscawen",null,"Bow",null,"Bradford",null,"Canterbury",null,"Chichester",null,"Concord",null,"Danbury",null,"Dunbarton",null,"Epsom",null,"Franklin",null,"Henniker",null,"Hill",null,"Hooksett",null,"Hopkinton",null,"Loudon",null,"Newbury",null,"New London",null,"Northfield",null,"Pembroke",null,"Pittsfield",null,"Salisbury",null,"Sutton",null,"Warner",null,"Webster",null,"Wilmot"]
[null,null,"Estimate","Margin Of Error","Estimate","Margin Of Error","Estimate","Margin Of Error","Estimate","Margin Of Error","Estimate","Margin Of Error","Estimate","Margin Of Error","Estimate","Margin Of Error","Estimate","Margin Of Error","Estimate","Margin Of Error","Estimate","Margin Of Error","Estimate","Margin Of Error","Estimate","Margin Of Error","Estimate","Margin Of Error","Estimate","Margin Of Error","Estimate","Margin Of Error","Estimate","Margin Of Error","Estimate","Margin Of Error","Estimate","Margin Of Error","Estimate","Margin Of Error","Estimate","Margin Of Error","Estimate","Margin Of Error","Estimate","Margin Of Error","Estimate","Margin Of Error","Estimate","Margin Of Error","Estimate","Margin Of Error","Estimate","Margin Of Error","Estimate","Margin Of Error"]
[null,"Total:",4535,81,2102,305,3841,83,7925,108,1509,157,2230,237,2618,48,42739,273,1469,255,2923,74,4703,98,8626,75,5950,84,816,177,14427,146,5872,57,5588,35,1859,253,4304,80,4800,61,7106,121,4016,71,1567,363,2223,449,2888,35,2031,274,1423,194]
[null,"Enrolled in school:",1052,223,319,111,706,185,2266,257,324,80,456,103,486,95,8899,597,256,96,819,115,1140,208,1383,322,1681,228,146,79,4007,427,1601,259,898,229,393,120,1407,156,1078,173,1758,243,861,282,323,172,524,184,580,118,485,135,264,86]
[null,"Enrolled in nursery school, preschool",35,32,6,9,70,76,308,118,21,14,24,16,15,11,515,203,23,17,92,51,12,19,6,15,15,25,7,8,271,145,127,101,33,49,45,32,76,58,114,72,99,69,0,12,5,8,19,15,47,31,77,78,25,22]
[null,"Enrolled in kindergarten",123,69,32,45,19,22,45,30,20,18,13,14,18,20,424,149,18,16,63,41,75,65,65,48,51,59,0,12,169,110,60,60,27,42,17,15,23,22,87,52,6,15,0,12,0,12,6,8,38,28,21,19,26,20]
[null,"Enrolled in grade 1 to grade 4",190,71,63,37,200,104,480,117,90,30,61,28,93,49,1600,219,74,37,182,73,287,109,235,90,241,87,21,14,710,229,289,182,18,33,94,60,124,54,215,148,514,194,93,64,35,21,96,44,105,46,100,71,81,38]
[null,"Enrolled in grade 5 to grade 8",182,66,97,62,104,60,395,123,82,35,69,45,109,51,1742,260,67,29,206,78,247,124,361,148,222,108,26,24,584,234,275,161,379,147,57,32,74,54,222,101,483,128,301,102,110,74,137,62,72,44,72,28,32,20]
[null,"Enrolled in grade 9 to grade 12",400,159,85,44,173,86,583,174,79,37,149,62,167,76,2221,319,48,24,102,43,237,111,405,220,128,90,62,52,787,214,365,201,282,111,100,64,158,120,311,129,387,119,289,138,139,97,100,52,147,58,121,67,18,10]
[null,"Enrolled in college, undergraduate years",80,64,12,15,118,102,290,141,15,12,133,55,79,45,1803,359,26,20,115,56,190,80,227,118,954,204,19,19,1358,247,297,186,125,108,61,41,921,102,99,86,262,135,43,53,29,25,126,97,145,50,73,32,24,12]
[null,"Graduate or professional school",42,36,24,18,22,25,165,86,17,11,7,11,5,8,594,150,0,12,59,51,92,71,84,68,70,59,11,10,128,72,188,181,34,54,19,24,31,30,30,30,7,11,135,124,5,7,40,22,26,22,21,16,58,51]
[null,"Not enrolled in school",3483,199,1783,271,3135,191,5659,242,1185,131,1774,197,2132,98,33840,578,1213,226,2104,121,3563,165,7243,318,4269,239,670,127,10420,419,4271,243,4690,243,1466,197,2897,189,3722,161,5348,236,3155,268,1244,222,1699,316,2308,121,1546,186,1159,150]
[]
[]
[]
[null,"B14001. Calculated  SCHOOL ENROLLMENT BY LEVEL OF SCHOOL FOR THE POPULATION 3 YEARS AND OVER "]
[null,"Universe: POPULATION 3 YEARS AND OVER"]
[null,"Data Set: 2018-2022 American Community Survey 5-Year Estimates"]
[]
[null,null,"Allenstown",null,"Andover",null,"Boscawen",null,"Bow",null,"Bradford",null,"Canterbury",null,"Chichester",null,"Concord",null,"Danbury",null,"Dunbarton",null,"Epsom",null,"Franklin",null,"Henniker",null,"Hill",null,"Hooksett",null,"Hopkinton",null,"Loudon",null,"Newbury",null,"New London",null,"Northfield",null,"Pembroke",null,"Pittsfield",null,"Salisbury",null,"Sutton",null,"Warner",null,"Webster",null,"Wilmot"]
[null,null,"Estimate","Margin Of Error","Estimate","Margin Of Error","Estimate","Margin Of Error","Estimate","Margin Of Error","Estimate","Margin Of Error","Estimate","Margin Of Error","Estimate","Margin Of Error","Estimate","Margin Of Error","Estimate","Margin Of Error","Estimate","Margin Of Error","Estimate","Margin Of Error","Estimate","Margin Of Error","Estimate","Margin Of Error","Estimate","Margin Of Error","Estimate","Margin Of Error","Estimate","Margin Of Error","Estimate","Margin Of Error","Estimate","Margin Of Error","Estimate","Margin Of Error","Estimate","Margin Of Error","Estimate","Margin Of Error","Estimate","Margin Of Error","Estimate","Margin Of Error","Estimate","Margin Of Error","Estimate","Margin Of Error","Estimate","Margin Of Error","Estimate","Margin Of Error"]
[null,"Total:",{"$f":"C7","v":4535},81,2102,305,3841,83,7925,108,1509,157,2230,237,2618,48,42739,273,1469,255,2923,74,4703,98,{"$f":"Y7","v":8626},75,5950,84,816,177,14427,146,5872,57,5588,35,1859,253,4304,80,{"$f":"AO7","v":4800},61,7106,121,4016,71,1567,363,{"$f":"AW7","v":2223},449,2888,35,2031,274,1423,194]
[null,"Enrolled in school:",{"$f":"C8","v":1052},223,319,111,706,185,2266,257,324,80,456,103,486,95,8899,597,256,96,819,115,1140,208,{"$f":"Y8","v":1383},322,1681,228,146,79,4007,427,1601,259,898,229,393,120,1407,156,{"$f":"AO8","v":1078},173,1758,243,861,282,323,172,{"$f":"AW8","v":524},184,580,118,485,135,264,86]
[null,"Enrolled in nursery school, preschool, and Kindergarten",{"$f":"C9+C10","v":158},{"$f":"SQRT((D9^2)+(D10^2))","v":76.05918747922567},{"$f":"E9+E10","v":38},{"$f":"SQRT((F9^2)+(F10^2))","v":45.891175622335062},{"$f":"G9+G10","v":89},{"$f":"SQRT((H9^2)+(H10^2))","v":79.120161779409926},{"$f":"I9+I10","v":353},{"$f":"SQRT((J9^2)+(J10^2))","v":121.75385004179539},{"$f":"K9+K10","v":41},{"$f":"SQRT((L9^2)+(L10^2))","v":22.803508501982758},{"$f":"M9+M10","v":37},{"$f":"SQRT((N9^2)+(N10^2))","v":21.2602916254693},{"$f":"O9+O10","v":33},{"$f":"SQRT((P9^2)+(P10^2))","v":22.825424421026653},{"$f":"Q9+Q10","v":939},{"$f":"SQRT((R9^2)+(R10^2))","v":251.81342299408902},{"$f":"S9+S10","v":41},{"$f":"SQRT((T9^2)+(T10^2))","v":23.345235059857504},{"$f":"U9+U10","v":155},{"$f":"SQRT((V9^2)+(V10^2))","v":65.436992595931542},{"$f":"W9+W10","v":87},{"$f":"SQRT((X9^2)+(X10^2))","v":67.720011813348052},{"$f":"Y9+Y10","v":71},{"$f":"SQRT((Z9^2)+(Z10^2))","v":50.289163842720633},{"$f":"AA9+AA10","v":66},{"$f":"SQRT((AB9^2)+(AB10^2))","v":64.078077374403179},{"$f":"AC9+AC10","v":7},{"$f":"SQRT((AD9^2)+(AD10^2))","v":14.422205101855956},{"$f":"AE9+AE10","v":440},{"$f":"SQRT((AF9^2)+(AF10^2))","v":182.00274723201295},{"$f":"AG9+AG10","v":187},{"$f":"SQRT((AH9^2)+(AH10^2))","v":117.47765745025733},{"$f":"AI9+AI10","v":60},{"$f":"SQRT((AJ9^2)+(AJ10^2))","v":64.536811201050213},{"$f":"AK9+AK10","v":62},{"$f":"SQRT((AL9^2)+(AL10^2))","v":35.341194094144583},{"$f":"AM9+AM10","v":99},{"$f":"SQRT((AN9^2)+(AN10^2))","v":62.032249677083293},{"$f":"AO9+AO10","v":201},{"$f":"SQRT((AP9^2)+(AP10^2))","v":88.814413244698073},{"$f":"AQ9+AQ10","v":105},{"$f":"SQRT((AR9^2)+(AR10^2))","v":70.611613775638915},{"$f":"AS9+AS10","v":0},{"$f":"SQRT((AT9^2)+(AT10^2))","v":16.970562748477139},{"$f":"AU9+AU10","v":5},{"$f":"SQRT((AV9^2)+(AV10^2))","v":14.422205101855956},{"$f":"AW9+AW10","v":25},{"$f":"SQRT((AX9^2)+(AX10^2))","v":17},{"$f":"AY9+AY10","v":85},{"$f":"SQRT((AZ9^2)+(AZ10^2))","v":41.773197148410844},{"$f":"BA9+BA10","v":98},{"$f":"SQRT((BB9^2)+(BB10^2))","v":80.280757345705197},{"$f":"BC9+BC10","v":51},{"$f":"SQRT((BD9^2)+(BD10^2))","v":29.732137494637012}]
[null,{"$f":"B9","v":"Enrolled in nursery school, preschool"},{"$f":"C9","v":35},32,6,9,70,76,308,118,21,14,24,16,15,11,515,203,23,17,92,51,12,19,6,15,15,25,7,8,271,145,127,101,33,49,45,32,76,58,114,72,99,69,0,12,5,8,{"$f":"AW9","v":19},15,47,31,77,78,25,22]
[null,"Enrolled in kindergarten",{"$f":"C10","v":123},69,32,45,19,22,45,30,20,18,13,14,18,20,424,149,18,16,63,41,75,65,65,48,51,59,0,12,169,110,60,60,27,42,17,15,23,22,87,52,6,15,0,12,0,12,{"$f":"AW10","v":6},8,38,28,21,19,26,20]
[null,"Enrolled in grade Elementary School (grade 1 to grade 8)",{"$f":"C11+C12","v":372},{"$f":"SQRT((D11^2)+(D12^2))","v":96.938124595021947},{"$f":"E11+E12","v":160},{"$f":"SQRT((F11^2)+(F12^2))","v":72.201108024738787},{"$f":"G11+G12","v":304},{"$f":"SQRT((H11^2)+(H12^2))","v":120.06664815842908},{"$f":"I11+I12","v":875},{"$f":"SQRT((J11^2)+(J12^2))","v":169.75865220954131},{"$f":"K11+K12","v":172},{"$f":"SQRT((L11^2)+(L12^2))","v":46.097722286464439},{"$f":"M11+M12","v":130},{"$f":"SQRT((N11^2)+(N12^2))","v":53},{"$f":"O11+O12","v":202},{"$f":"SQRT((P11^2)+(P12^2))","v":70.724818840347695},{"$f":"Q11+Q12","v":3342},{"$f":"SQRT((R11^2)+(R12^2))","v":339.94264222071348},{"$f":"S11+S12","v":141},{"$f":"SQRT((T11^2)+(T12^2))","v":47.010637094172637},{"$f":"U11+U12","v":388},{"$f":"SQRT((V11^2)+(V12^2))","v":106.83164325236227},{"$f":"W11+W12","v":534},{"$f":"SQRT((X11^2)+(X12^2))","v":165.0969412193939},{"$f":"Y11+Y12","v":596},{"$f":"SQRT((Z11^2)+(Z12^2))","v":173.216627377397},{"$f":"AA11+AA12","v":463},{"$f":"SQRT((AB11^2)+(AB12^2))","v":138.68309197591464},{"$f":"AC11+AC12","v":47},{"$f":"SQRT((AD11^2)+(AD12^2))","v":27.784887978899608},{"$f":"AE11+AE12","v":1294},{"$f":"SQRT((AF11^2)+(AF12^2))","v":327.40952948868181},{"$f":"AG11+AG12","v":564},{"$f":"SQRT((AH11^2)+(AH12^2))","v":242.99176940793694},{"$f":"AI11+AI12","v":397},{"$f":"SQRT((AJ11^2)+(AJ12^2))","v":150.65855435387664},{"$f":"AK11+AK12","v":151},{"$f":"SQRT((AL11^2)+(AL12^2))","v":68},{"$f":"AM11+AM12","v":198},{"$f":"SQRT((AN11^2)+(AN12^2))","v":76.367532368147138},{"$f":"AO11+AO12","v":437},{"$f":"SQRT((AP11^2)+(AP12^2))","v":179.17868176767013},{"$f":"AQ11+AQ12","v":997},{"$f":"SQRT((AR11^2)+(AR12^2))","v":232.42202993692314},{"$f":"AS11+AS12","v":394},{"$f":"SQRT((AT11^2)+(AT12^2))","v":120.41594578792295},{"$f":"AU11+AU12","v":145},{"$f":"SQRT((AV11^2)+(AV12^2))","v":76.922038454528746},{"$f":"AW11+AW12","v":233},{"$f":"SQRT((AX11^2)+(AX12^2))","v":76.026311234992846},{"$f":"AY11+AY12","v":177},{"$f":"SQRT((AZ11^2)+(AZ12^2))","v":63.655321851358195},{"$f":"BA11+BA12","v":172},{"$f":"SQRT((BB11^2)+(BB12^2))","v":76.321687612368734},{"$f":"BC11+BC12","v":113},{"$f":"SQRT((BD11^2)+(BD12^2))","v":42.941821107167776}]
[null,"Enrolled in grade 9 to grade 12",{"$f":"C13","v":400},159,85,44,173,86,583,174,79,37,149,62,167,76,2221,319,48,24,102,43,237,111,{"$f":"Y13","v":405},220,128,90,62,52,787,214,365,201,282,111,100,64,158,120,{"$f":"AO13","v":311},129,387,119,289,138,139,97,{"$f":"AW13","v":100},52,147,58,121,67,18,10]
[null,"Enrolled in Elementary and High School",{"$f":"C11+C12+C13","v":772},{"$f":"SQRT((D11^2)+(D12^2)+(D13^2))","v":186.22029964533942},{"$f":"E11+E12+E13","v":245},{"$f":"SQRT((F11^2)+(F12^2)+(F13^2))","v":84.551759295711875},{"$f":"G11+G12+G13","v":477},{"$f":"SQRT((H11^2)+(H12^2)+(H13^2))","v":147.68886213929608},{"$f":"I11+I12+I13","v":1458},{"$f":"SQRT((J11^2)+(J12^2)+(J13^2))","v":243.09257495859472},{"$f":"K11+K12+K13","v":251},{"$f":"SQRT((L11^2)+(L12^2)+(L13^2))","v":59.110066824526598},{"$f":"M11+M12+M13","v":279},{"$f":"SQRT((N11^2)+(N12^2)+(N13^2))","v":81.565924257621205},{"$f":"O11+O12+O13","v":369},{"$f":"SQRT((P11^2)+(P12^2)+(P13^2))","v":103.81714694596457},{"$f":"Q11+Q12+Q13","v":5563},{"$f":"SQRT((R11^2)+(R12^2)+(R13^2))","v":466.17807756264131},{"$f":"S11+S12+S13","v":189},{"$f":"SQRT((T11^2)+(T12^2)+(T13^2))","v":52.782572881586589},{"$f":"U11+U12+U13","v":490},{"$f":"SQRT((V11^2)+(V12^2)+(V13^2))","v":115.16075720487426},{"$f":"W11+W12+W13","v":771},{"$f":"SQRT((X11^2)+(X12^2)+(X13^2))","v":198.94220266197919},{"$f":"Y11+Y12+Y13","v":1001},{"$f":"SQRT((Z11^2)+(Z12^2)+(Z13^2))","v":280.0071427660373},{"$f":"AA11+AA12+AA13","v":591},{"$f":"SQRT((AB11^2)+(AB12^2)+(AB13^2))","v":165.32694880145826},{"$f":"AC11+AC12+AC13","v":109},{"$f":"SQRT((AD11^2)+(AD12^2)+(AD13^2))","v":58.957611891934704},{"$f":"AE11+AE12+AE13","v":2081},{"$f":"SQRT((AF11^2)+(AF12^2)+(AF13^2))","v":391.14319628494115},{"$f":"AG11+AG12+AG13","v":929},{"$f":"SQRT((AH11^2)+(AH12^2)+(AH13^2))","v":315.35059854073529},{"$f":"AI11+AI12+AI13","v":679},{"$f":"SQRT((AJ11^2)+(AJ12^2)+(AJ13^2))","v":187.13364208500832},{"$f":"AK11+AK12+AK13","v":251},{"$f":"SQRT((AL11^2)+(AL12^2)+(AL13^2))","v":93.380940239430018},{"$f":"AM11+AM12+AM13","v":356},{"$f":"SQRT((AN11^2)+(AN12^2)+(AN13^2))","v":142.23923509355637},{"$f":"AO11+AO12+AO13","v":748},{"$f":"SQRT((AP11^2)+(AP12^2)+(AP13^2))","v":220.78496325610584},{"$f":"AQ11+AQ12+AQ13","v":1384},{"$f":"SQRT((AR11^2)+(AR12^2)+(AR13^2))","v":261.11491722994305},{"$f":"AS11+AS12+AS13","v":683},{"$f":"SQRT((AT11^2)+(AT12^2)+(AT13^2))","v":183.15021157508937},{"$f":"AU11+AU12+AU13","v":284},{"$f":"SQRT((AV11^2)+(AV12^2)+(AV13^2))","v":123.79822292747178},{"$f":"AW11+AW12+AW13","v":333},{"$f":"SQRT((AX11^2)+(AX12^2)+(AX13^2))","v":92.108631517355633},{"$f":"AY11+AY12+AY13","v":324},{"$f":"SQRT((AZ11^2)+(AZ12^2)+(AZ13^2))","v":86.116200566443936},{"$f":"BA11+BA12+BA13","v":293},{"$f":"SQRT((BB11^2)+(BB12^2)+(BB13^2))","v":101.55786527886454},{"$f":"BC11+BC12+BC13","v":131},{"$f":"SQRT((BD11^2)+(BD12^2)+(BD13^2))","v":44.090815370097204}]
[null,"Enrolled in College or Graduate School",{"$f":"C14+C15","v":122},{"$f":"SQRT((D14^2)+(D15^2))","v":73.430239002743278},{"$f":"E14+E15","v":36},{"$f":"SQRT((F14^2)+(F15^2))","v":23.430749027719962},{"$f":"G14+G15","v":140},{"$f":"SQRT((H14^2)+(H15^2))","v":105.01904589168576},{"$f":"I14+I15","v":455},{"$f":"SQRT((J14^2)+(J15^2))","v":165.1575005865613},{"$f":"K14+K15","v":32},{"$f":"SQRT((L14^2)+(L15^2))","v":16.278820596099706},{"$f":"M14+M15","v":140},{"$f":"SQRT((N14^2)+(N15^2))","v":56.089214649520635},{"$f":"O14+O15","v":84},{"$f":"SQRT((P14^2)+(P15^2))","v":45.705579528105758},{"$f":"Q14+Q15","v":2397},{"$f":"SQRT((R14^2)+(R15^2))","v":389.07711317937992},{"$f":"S14+S15","v":26},{"$f":"SQRT((T14^2)+(T15^2))","v":23.323807579381203},{"$f":"U14+U15","v":174},{"$f":"SQRT((V14^2)+(V15^2))","v":75.742986473996396},{"$f":"W14+W15","v":282},{"$f":"SQRT((X14^2)+(X15^2))","v":106.96261028976434},{"$f":"Y14+Y15","v":311},{"$f":"SQRT((Z14^2)+(Z15^2))","v":136.19104228986575},{"$f":"AA14+AA15","v":1024},{"$f":"SQRT((AB14^2)+(AB15^2))","v":212.3605424743495},{"$f":"AC14+AC15","v":30},{"$f":"SQRT((AD14^2)+(AD15^2))","v":21.470910553583888},{"$f":"AE14+AE15","v":1486},{"$f":"SQRT((AF14^2)+(AF15^2))","v":257.28000310945271},{"$f":"AG14+AG15","v":485},{"$f":"SQRT((AH14^2)+(AH15^2))","v":259.53227159642404},{"$f":"AI14+AI15","v":159},{"$f":"SQRT((AJ14^2)+(AJ15^2))","v":120.74767078498864},{"$f":"AK14+AK15","v":80},{"$f":"SQRT((AL14^2)+(AL15^2))","v":47.507894080878813},{"$f":"AM14+AM15","v":952},{"$f":"SQRT((AN14^2)+(AN15^2))","v":106.3202708800161},{"$f":"AO14+AO15","v":129},{"$f":"SQRT((AP14^2)+(AP15^2))","v":91.082380293885606},{"$f":"AQ14+AQ15","v":269},{"$f":"SQRT((AR14^2)+(AR15^2))","v":135.44740676735012},{"$f":"AS14+AS15","v":178},{"$f":"SQRT((AT14^2)+(AT15^2))","v":134.85177047410241},{"$f":"AU14+AU15","v":34},{"$f":"SQRT((AV14^2)+(AV15^2))","v":25.96150997149434},{"$f":"AW14+AW15","v":166},{"$f":"SQRT((AX14^2)+(AX15^2))","v":99.463561166891665},{"$f":"AY14+AY15","v":171},{"$f":"SQRT((AZ14^2)+(AZ15^2))","v":54.626001134990652},{"$f":"BA14+BA15","v":94},{"$f":"SQRT((BB14^2)+(BB15^2))","v":35.777087639996637},{"$f":"BC14+BC15","v":82},{"$f":"SQRT((BD14^2)+(BD15^2))","v":52.392747589718944}]
[null,"Not enrolled in school",{"$f":"C16","v":3483},199,1783,271,3135,191,5659,242,1185,131,1774,197,2132,98,33840,578,1213,226,2104,121,3563,165,{"$f":"Y16","v":7243},318,4269,239,670,127,10420,419,4271,243,4690,243,1466,197,2897,189,{"$f":"AO16","v":3722},161,5348,236,3155,268,1244,222,{"$f":"AW16","v":1699},316,2308,121,1546,186,1159,150]
[]
[]
[null,"B14001. Calculated  SCHOOL ENROLLMENT BY LEVEL OF SCHOOL FOR THE POPULATION 3 YEARS AND OVER "]
[null,"Universe: POPULATION 3 YEARS AND OVER"]
[null,"Data Set: 2013-2017 American Community Survey 5-Year Estimates"]
[]
[null,null,"Allenstown",null,"Andover",null,"Boscawen",null,"Bow",null,"Bradford",null,"Canterbury",null,"Chichester",null,"Concord",null,"Danbury",null,"Dunbarton",null,"Epsom",null,"Franklin",null,"Henniker",null,"Hill",null,"Hooksett",null,"Hopkinton",null,"Loudon",null,"Newbury",null,"New London",null,"Northfield",null,"Pembroke",null,"Pittsfield",null,"Salisbury",null,"Sutton",null,"Warner",null,"Webster",null,"Wilmot"]
[null,null,"Estimate","Margin Of Error","Estimate","Margin Of Error","Estimate","Margin Of Error","Estimate","Margin Of Error","Estimate","Margin Of Error","Estimate","Margin Of Error","Estimate","Margin Of Error","Estimate","Margin Of Error","Estimate","Margin Of Error","Estimate","Margin Of Error","Estimate","Margin Of Error","Estimate","Margin Of Error","Estimate","Margin Of Error","Estimate","Margin Of Error","Estimate","Margin Of Error","Estimate","Margin Of Error","Estimate","Margin Of Error","Estimate","Margin Of Error","Estimate","Margin Of Error","Estimate","Margin Of Error","Estimate","Margin Of Error","Estimate","Margin Of Error","Estimate","Margin Of Error","Estimate","Margin Of Error","Estimate","Margin Of Error","Estimate","Margin Of Error","Estimate","Margin Of Error"]
[null,"Total:",4209,54,2732,303,3834,89,7536,71,1655,183,2214,242,2505,44,41483,219,1239,162,2695,43,4519,62,8292,93,4657,108,930,126,13672,136,5498,70,5261,86,1853,201,4455,55,4586,108,7069,71,3861,134,1233,162,1882,258,2796,60,1822,181,1458,172]
[null,"Enrolled in school:",917,188,832,202,776,136,2158,205,383,87,466,139,574,61,9574,518,199,70,746,84,1009,164,1683,256,1653,253,137,48,4019,397,1366,229,877,185,282,91,1517,228,999,153,1809,249,860,141,249,66,450,119,652,82,357,77,263,97]
[null,"Enrolled in nursery school, preschool, and Kindergarten",84,62.177166226839255,74,50.803543183522152,63,42.449970553582247,278,84.403791384036765,34,18.027756377319946,54,36.359317925395686,51,31.240998703626616,1145,192.57466084612483,36,29.068883707497267,70,40.459856648287818,94,79.755877526361658,152,96.176920308356728,217,93.861600242058515,5,13.038404810405298,429,183.99184764548673,206,124.48293055676348,58,54.488530903301111,6,13.601470508735444,30,29.681644159311659,167,84.864598037108507,256,144.42298985964803,86,74.202425836356596,28,13.601470508735444,111,49.406477308142499,45,28.844410203711913,40,21.931712199461309,27,17]
[null,"Enrolled in nursery school, preschool",51,55,39,41,39,31,191,68,4,6,42,31,21,20,624,149,22,26,34,31,51,69,97,87,140,73,0,11,246,142,94,90,23,37,0,11,16,25,96,59,164,107,43,45,16,11,67,40,26,24,27,15,19,15]
[null,"Enrolled in kindergarten",33,29,35,30,24,29,87,50,30,17,12,19,30,24,521,122,14,13,36,26,43,40,55,41,77,59,5,7,183,117,112,86,35,40,6,8,14,16,71,61,92,97,43,59,12,8,44,29,19,16,13,16,8,8]
[null,"Enrolled in grade Elementary School (grade 1 to grade 8)",384,112.0044641967453,264,78.644770964127048,452,131.59027319676784,937,152.50245899656832,193,50.911688245431421,130,54.037024344425184,213,64.381674411279491,3575,343.65389565666209,84,34.713109915419565,318,73.006848993775918,455,124.57929201917949,748,224.89997776789573,400,147.92227688891217,58,27.802877548915689,1256,263.10454196003536,549,160.86018774078315,311,170.29973576021777,101,39.824615503479755,270,95.44108130150245,421,114.63420083029322,723,218.96118377465902,466,125.41929676090518,119,43.416586692184822,140,56.080299571239813,232,57.801384066473702,153,42.201895692018383,107,65.80273550544841]
[null,"Enrolled in grade 9 to grade 12",152,57,266,138,117,52,524,126,99,51,144,56,171,52,2110,250,68,30,203,51,214,88,400,136,173,86,35,21,683,174,276,138,264,137,133,53,128,59,258,117,500,170,178,103,70,49,147,60,183,46,100,53,57,33]
[null,"Enrolled in Elementary and High School",536,125.67418191498204,530,158.83639381451596,569,141.49204924659193,1461,197.82062582046393,292,72.062472896785877,274,77.820305833374874,384,82.758685344802331,5685,424.96823410697414,152,45.880278987817846,521,89.056162055188523,669,152.52540771950095,1148,262.82313444596161,573,171.10523077919038,93,34.84250278036869,1939,315.43620591175011,825,211.94338866782329,575,218.56577957219196,234,66.294796175868882,398,112.20516922138658,679,163.79865689315037,1223,277.20750350594767,644,162.29294500994183,189,65.467549213331637,287,82.127948957708668,415,73.871510069850345,253,67.749538743817283,164,73.61385739111897]
[null,"Enrolled in College or Graduate School",297,140.24621207005913,228,74.625732827222535,144,75.272837066235255,419,162.265215003093,57,20.591260281974002,138,46.818799642878503,139,54.405882034941776,2744,301.12123804208829,11,21.095023109728988,155,50.931326312987373,246,105.8158778255891,383,114.82595525402782,863,228.10743083029979,39,20.124611797498108,1651,396.35463918062067,335,123.0690862889621,244,157.54364474646383,42,27.294688127912362,1089,184.69434208984313,153,71.700767080973407,330,156.08331108738051,130,86.122006479180456,32,20.615528128088304,52,33.541019662496844,192,56.293871780150276,64,27.513632984395208,72,50.695167422546305]
[null,"Not enrolled in school",3292,181,1900,180,3058,152,5378,207,1272,143,1748,144,1931,63,31909,481,1040,123,1949,87,3510,148,6609,255,3004,242,793,108,9653,386,4132,231,4384,184,1571,154,2938,219,3587,132,5260,242,3001,144,984,127,1432,187,2144,93,1465,151,1195,121]
[]
[]
[]
[]
[]
[]
[]
[]
[]
[]
[]
[]
[]
[]
[]
[]
[]
[]
[]
[]
[]
[]
[]
[]
[]
[]
[]
[]
[]
[null,"B14001.Calculated  SCHOOL ENROLLMENT BY LEVEL OF SCHOOL FOR THE POPULATION 3 YEARS AND OVER "]
[null,"Universe: POPULATION 3 YEARS AND OVER"]
[null,"Data Set: 2008-2012 American Community Survey 5-Year Estimates"]
[]
[null,null,"Allenstown",null,"Andover",null,"Boscawen",null,"Bow",null,"Bradford",null,"Canterbury",null,"Chichester",null,"Concord",null,"Danbury",null,"Dunbarton",null,"Epsom",null,"Franklin",null,"Henniker",null,"Hill",null,"Hooksett",null,"Hopkinton",null,"Loudon",null,"Newbury",null,"New London",null,"Northfield",null,"Pembroke",null,"Pittsfield",null,"Salisbury",null,"Sutton",null,"Warner",null,"Webster",null,"Wilmot"]
[null,null,"Estimate","Margin Of Error","Estimate","Margin Of Error","Estimate","Margin Of Error","Estimate","Margin Of Error","Estimate","Margin Of Error","Estimate","Margin Of Error","Estimate","Margin Of Error","Estimate","Margin Of Error","Estimate","Margin Of Error","Estimate","Margin Of Error","Estimate","Margin Of Error","Estimate","Margin Of Error","Estimate","Margin Of Error","Estimate","Margin Of Error","Estimate","Margin Of Error","Estimate","Margin Of Error","Estimate","Margin Of Error","Estimate","Margin Of Error","Estimate","Margin Of Error","Estimate","Margin Of Error","Estimate","Margin Of Error","Estimate","Margin Of Error","Estimate","Margin Of Error","Estimate","Margin Of Error","Estimate","Margin Of Error","Estimate","Margin Of Error","Estimate","Margin Of Error"]
[null,"Total:",4304,49,2462,237,3847,57,7479,78,1434,202,2357,136,2476,31,41435,218,1190,217,2740,24,4440,41,8243,112,4663,128,1186,194,13036,136,5498,77,5152,69,2044,245,4343,51,4577,127,6910,112,3929,74,1243,173,1739,236,2746,59,1708,154,1381,195]
[null,"Enrolled in school:",912,152,438,132,799,169,2285,137,286,104,593,86,629,93,9868,507,291,110,732,100,891,157,1871,250,1750,245,317,95,3751,388,1362,180,1475,206,507,114,1631,211,1361,249,1804,219,790,156,297,85,495,122,598,130,403,90,371,110]
[null,"Enrolled in nursery school, preschool, and Kindergarten",62,43.416586692184822,99,38.209946349085598,73,52.345009313209601,185,74.813100457072352,52,26.90724809414742,84,45.891175622335062,71,51.088159097779204,1137,273.00183149568795,31,25.553864678361276,65,36.878177829171548,102,53.009433122794285,240,101.71037311896953,110,71.344235926947874,20,18.601075237738275,326,126.21014222319853,195,75.716576784743779,129,58,50,29.732137494637012,69,47.927027865287037,218,94.794514609232536,239,116.21101496846157,119,68.47627326307996,13,9.4339811320566032,58,29.068883707497267,69,31.144823004794873,40,21.470910553583888,24,16.15549442140351]
[null,"Enrolled in nursery school, preschool",20,21,50,26,34,38,91,46,25,18,78,45,39,39,593,197,9,13,60,36,41,31,140,88,73,61,0,11,148,77,129,63,42,40,40,28,52,44,100,69,158,97,42,33,3,5,30,19,33,21,24,19,18,15]
[null,"Enrolled in kindergarten",42,38,49,28,39,36,94,59,27,20,6,9,32,33,544,189,22,22,5,8,61,43,100,51,37,37,20,15,178,100,66,42,87,42,10,10,17,19,118,65,81,64,77,60,10,8,28,22,36,23,16,10,6,6]
[null,"Enrolled in grade Elementary School (grade 1 to grade 8)",407,167.80047675736802,100,51.429563482495162,378,118.81077392223317,1037,189.52572384771415,110,52.201532544552748,292,59.203040462462738,266,75.663729752107784,3685,374.54639232009697,156,59.363288318623319,324,70.292247083159893,459,111.82575731914361,897,175.41379649275024,539,169.40188900953851,132,44.10215414239989,1272,254.56236956785267,622,141.60508465447137,614,157.13688300332294,179,53.037722424704477,293,86.556340033529608,495,179.84715733088473,833,221.45202640752692,323,105.11898020814318,164,60.745370193949761,231,70.092795635500224,216,74.686009399351363,171,38.288379438153292,151,50.447993022517757]
[null,"Enrolled in grade 9 to grade 12",255,150,99,38,172,82,679,166,56,30,116,48,165,55,2154,266,62,33,216,62,223,80,477,136,190,95,134,52,577,147,264,93,430,124,153,75,243,115,370,145,365,144,238,108,75,32,107,48,158,55,122,47,101,44]
[null,"Enrolled in Elementary and High School",662,225.07109987734987,199,63.945289114992669,550,144.36065946094871,1716,251.94443831924531,166,60.207972893961475,408,76.216796049164913,431,93.541434669348533,5839,459.39198948174965,218,67.919069487147723,540,93.728330829050833,682,137.4954544703206,1374,221.95945575712696,729,194.22152300916599,266,68.183575734923139,1849,293.9574799184399,886,169.41369484194601,1044,200.16992781134732,332,91.858586969319319,536,143.93401265857906,865,231.01947969814148,1198,264.15336454416024,561,150.71164520368026,239,68.658575575087482,338,84.952928142589641,374,92.752358460580396,293,60.621778264910702,252,66.940271884718243]
[null,"Enrolled in College or Graduate School",188,87.658428003244509,140,81.271151093115449,176,86.700634369074834,384,114.5512985522207,68,44.643028571099428,101,41.036569057366385,127,58.137767414994535,2892,350.38550198317279,42,24.083189157584592,127,50,107,56.824290580701486,257,106.23088063270491,911,209.55428890862626,31,22.803508501982758,1576,261.53584840323515,281,102.7861858422619,302,123.00406497347964,125,65.459911396212561,1026,219.06391761310215,278,138.23530663329106,367,117.88553770501282,110,58.728187440104094,45,18.973665961010276,99,44.654227123532216,155,61.684682053164543,70,29.529646120466801,95,54.451813560247928]
[null,"Not enrolled in school",3392,157,2024,188,3048,152,5194,141,1148,144,1764,117,1847,90,31567,466,899,142,2008,103,3549,144,6372,199,2913,241,869,131,9285,342,4136,202,3677,178,1537,184,2712,224,3216,198,5106,202,3139,175,946,112,1244,181,2148,114,1305,124,1010,127]

{"sheet":"ACS_Table_B15002","index":71,"n_rows":141,"n_cols":56,"rows_kept":141,"cut":false,"hidden":true,"merged":[]}
[null,"B15002. SEX BY EDUCATIONAL ATTAINMENT FOR THE POPULATION 25 YEARS AND OVER"]
[null,"Universe: Population 25 years an over"]
[null,"Data Set: 2018-2022 American Community Survey 5-Year Estimates"]
[]
[null,null,"Allenstown",null,"Andover",null,"Boscawen",null,"Bow",null,"Bradford",null,"Canterbury",null,"Chichester",null,"Concord",null,"Danbury",null,"Dunbarton",null,"Epsom",null,"Franklin",null,"Henniker",null,"Hill",null,"Hooksett",null,"Hopkinton",null,"Loudon",null,"Newbury",null,"New London",null,"Northfield",null,"Pembroke",null,"Pittsfield",null,"Salisbury",null,"Sutton",null,"Warner",null,"Webster",null,"Wilmot"]
[null,null,"Estimate","Margin Of Error","Estimate","Margin Of Error","Estimate","Margin Of Error","Estimate","Margin Of Error","Estimate","Margin Of Error","Estimate","Margin Of Error","Estimate","Margin Of Error","Estimate","Margin Of Error","Estimate","Margin Of Error","Estimate","Margin Of Error","Estimate","Margin Of Error","Estimate","Margin Of Error","Estimate","Margin Of Error","Estimate","Margin Of Error","Estimate","Margin Of Error","Estimate","Margin Of Error","Estimate","Margin Of Error","Estimate","Margin Of Error","Estimate","Margin Of Error","Estimate","Margin Of Error","Estimate","Margin Of Error","Estimate","Margin Of Error","Estimate","Margin Of Error","Estimate","Margin Of Error","Estimate","Margin Of Error","Estimate","Margin Of Error","Estimate","Margin Of Error"]
[null,"Total:",3054,293,1628,275,2874,195,5629,173,1123,113,1743,188,2020,91,32573,511,1162,216,2119,106,3491,184,6690,324,3727,302,600,96,9804,336,4322,231,4517,271,1393,184,2953,163,3585,169,4938,299,3215,184,1189,218,1608,270,2206,133,1488,183,1147,170]
[null,"Male:",1545,197,781,174,1355,156,2691,145,572,76,903,123,967,56,16738,567,591,95,1098,72,1736,125,3006,324,1971,192,321,57,4589,240,2032,176,2245,219,695,95,1316,129,1702,153,2645,229,1576,164,614,139,851,165,1020,96,733,94,545,89]
[null,"No schooling completed",0,12,0,12,11,24,7,13,0,12,4,7,4,6,172,121,0,12,9,14,39,28,8,13,13,20,8,11,78,61,0,17,0,17,0,12,0,12,29,33,0,17,8,14,0,12,0,12,0,12,6,10,4,5]
[null,"Nursery to 4th grade",0,12,0,12,8,17,0,17,0,12,0,12,0,12,115,86,0,12,0,12,0,12,0,17,0,17,0,12,20,29,0,17,25,44,0,12,0,12,0,12,0,17,0,12,0,12,0,12,0,12,2,4,5,10]
[null,"5th and 6th grade",0,12,17,26,0,12,0,17,0,12,0,12,0,12,31,32,0,12,0,12,0,12,0,17,0,17,0,12,13,21,0,17,0,17,0,12,0,12,0,12,0,17,0,12,0,12,0,12,0,12,0,12,0,12]
[null,"7th and 8th grade",42,50,0,12,25,42,0,17,0,12,37,40,0,12,174,113,5,8,5,8,48,41,79,78,0,17,5,5,79,55,0,17,0,17,0,12,0,12,9,13,79,95,16,22,3,5,0,12,5,7,0,12,0,12]
[null,"9th grade",57,53,30,90,0,12,0,17,18,16,0,12,4,7,195,116,13,13,42,70,15,16,103,86,15,24,9,10,6,9,14,24,0,17,0,12,0,12,0,12,0,17,33,52,0,12,0,12,0,12,38,45,0,12]
[null,"10th grade",47,46,6,7,39,25,17,20,22,20,6,9,21,18,290,99,22,24,15,20,103,98,50,59,21,34,19,18,24,29,18,31,60,73,0,12,0,12,59,68,0,17,28,35,20,18,11,12,28,34,16,26,0,12]
[null,"11th grade",83,88,4,7,18,27,0,17,0,12,28,46,0,12,264,117,3,4,0,12,30,22,25,28,19,31,6,5,78,65,53,80,58,68,0,12,2,5,43,51,22,24,56,74,11,13,4,6,19,18,0,12,2,3]
[null,"12th grade, no diploma",52,48,0,12,10,15,6,10,20,15,0,12,11,11,239,111,7,9,30,37,0,12,25,25,0,17,9,7,101,109,4,14,67,74,6,8,0,12,26,25,35,43,0,12,0,12,12,14,23,32,8,8,3,5]
[null,"High school graduate, GED, or alternative",496,163,242,82,547,144,406,99,165,55,209,69,287,75,4892,550,315,83,306,77,503,119,1291,235,693,179,138,35,1080,209,362,171,882,261,161,53,162,71,803,136,1022,256,733,161,258,110,190,66,301,63,275,79,99,39]
[null,"Some college, less than 1 year",186,71,24,17,37,26,148,78,42,27,53,37,80,46,959,183,31,20,23,20,106,70,160,101,59,46,24,14,262,84,120,70,181,110,14,12,35,34,156,87,106,68,163,89,36,22,26,25,33,28,39,19,21,14]
[null,"Some college, 1 or more years, no degree",81,68,143,90,236,110,216,86,66,32,72,32,118,62,1727,285,44,30,90,51,123,60,412,206,227,139,14,12,633,182,279,147,177,98,53,29,151,84,113,66,330,181,174,93,44,24,131,78,152,55,69,30,54,42]
[null,"Associate's degree",223,111,71,42,103,59,143,57,46,24,135,63,133,45,1413,229,71,34,183,66,124,51,319,126,361,261,24,15,519,164,170,100,307,176,52,24,123,75,165,88,505,213,126,90,51,23,138,86,91,41,78,37,75,46]
[null,"Bachelor's degree",204,101,117,45,252,95,1123,170,132,48,206,59,249,85,3330,383,36,21,203,62,391,127,336,99,353,123,45,25,1041,190,457,159,337,154,271,74,495,126,235,81,305,121,184,95,101,36,180,82,175,53,139,38,149,44]
[null,"Master's degree",65,46,77,37,48,30,326,116,57,26,125,46,43,28,1978,338,22,16,149,47,178,117,155,83,195,98,14,12,466,112,217,100,82,68,77,30,192,74,10,16,180,102,45,37,30,21,79,32,151,50,54,23,98,27]
[null,"Professional school degree",9,16,14,22,8,14,231,83,4,5,28,19,8,10,650,183,18,15,38,27,69,72,16,20,15,23,0,12,128,91,137,84,31,38,29,21,97,59,46,57,17,31,0,12,3,4,38,27,20,18,9,6,18,17]
[null,"Doctorate degree",0,12,36,28,13,20,68,53,0,12,0,12,9,10,309,139,4,7,5,7,7,11,27,32,0,17,6,6,61,75,201,147,38,43,32,22,59,41,8,13,44,45,10,17,57,83,42,29,22,24,0,12,17,15]
[null,"Female:",1509,187,847,145,1519,143,2938,137,551,66,840,99,1053,89,15835,426,571,129,1021,78,1755,144,3684,280,1756,202,279,52,5215,257,2290,161,2272,177,698,101,1637,140,1883,128,2293,223,1639,166,575,103,757,141,1186,113,755,105,602,102]
[null,"No schooling completed",0,12,0,12,0,12,0,17,0,12,0,12,0,12,214,118,0,12,5,8,0,12,30,30,13,20,0,12,27,24,0,17,0,17,0,12,0,12,4,8,11,22,0,12,4,6,0,12,0,12,1,3,0,12]
[null,"Nursery to 4th grade",0,12,0,12,0,12,0,17,0,12,5,7,0,12,31,50,0,12,0,12,0,12,0,17,0,17,0,12,0,19,0,17,0,17,0,12,9,19,0,12,0,17,0,12,0,12,0,12,17,28,6,8,0,12]
[null,"5th and 6th grade",0,12,0,12,12,19,0,17,0,12,0,12,0,12,89,64,0,12,0,12,0,12,6,18,0,17,0,12,10,16,0,17,0,17,0,12,0,12,0,12,0,17,0,12,0,12,0,12,0,12,0,12,0,12]
[null,"7th and 8th grade",0,12,73,112,27,40,0,17,0,12,2,3,0,12,208,156,3,6,4,7,36,39,65,76,0,17,1,3,32,35,0,17,0,17,0,12,0,12,20,33,16,25,9,15,0,12,0,12,23,32,2,3,0,12]
[null,"9th grade",37,43,0,12,0,12,0,17,0,12,5,8,11,13,40,43,14,18,0,12,29,46,14,22,0,17,0,12,21,29,21,33,0,17,0,12,0,12,28,29,14,22,34,50,3,5,0,12,14,23,0,12,12,19]
[null,"10th grade",30,48,5,7,46,32,4,7,6,6,8,8,8,9,177,82,10,12,4,6,0,12,87,56,0,17,4,6,25,38,12,21,0,17,7,10,11,23,66,68,0,17,30,45,11,14,3,5,0,12,0,12,0,12]
[null,"11th grade",11,18,12,13,15,25,12,18,3,5,0,12,0,12,81,53,0,12,0,12,22,21,115,123,10,18,4,5,66,62,0,17,125,95,0,12,0,12,54,51,29,31,31,42,0,12,0,12,12,18,40,44,0,12]
[null,"12th grade, no diploma",0,12,0,12,21,22,26,30,2,3,0,12,5,7,159,77,3,5,0,12,0,12,30,32,0,17,3,5,36,34,12,21,24,40,6,9,0,12,15,18,22,37,42,47,9,10,0,12,4,6,3,4,5,9]
[null,"High school graduate, GED, or alternative",536,170,209,76,551,159,532,143,153,47,120,47,287,65,4100,468,212,108,246,90,425,115,1271,221,299,163,114,36,1489,270,546,189,912,291,70,28,129,64,784,166,685,190,717,227,126,45,153,81,339,86,209,58,64,30]
[null,"Some college, less than 1 year",120,69,32,22,84,44,112,47,36,23,39,23,71,41,712,167,75,45,63,30,93,74,523,176,154,94,15,10,294,89,159,92,147,93,56,37,27,27,90,55,165,87,46,41,28,14,26,27,74,39,42,30,26,16]
[null,"Some college, 1 or more years, no degree",136,83,81,33,280,111,219,76,84,38,105,61,97,51,2029,292,84,32,79,40,202,96,393,257,146,77,16,10,560,167,194,116,150,102,78,40,130,68,136,72,276,127,188,95,91,40,83,33,145,71,84,44,67,29]
[null,"Associate's degree",331,140,105,56,112,65,284,93,49,19,69,38,147,68,1611,282,76,49,133,58,239,84,356,149,371,258,33,19,542,169,171,104,290,142,63,28,327,121,233,101,306,102,150,79,82,37,99,39,113,50,106,35,23,14]
[null,"Bachelor's degree",204,74,175,69,311,88,1035,139,137,35,277,71,226,66,3646,383,56,25,217,56,483,125,395,134,455,143,56,24,939,192,641,186,445,204,255,59,531,125,206,89,356,149,234,102,108,31,233,112,215,71,140,58,213,81]
[null,"Master's degree",92,52,136,50,41,32,491,116,73,30,189,56,189,72,2053,356,33,17,204,54,157,72,368,170,290,116,29,16,804,194,405,186,179,123,135,61,378,99,236,128,236,118,147,102,108,93,142,60,178,49,96,35,135,52]
[null,"Professional school degree",12,18,8,8,0,12,201,83,3,6,11,15,12,12,469,144,5,8,62,33,47,44,31,35,18,27,0,12,156,77,108,92,0,17,28,23,27,26,0,12,23,27,0,12,5,6,8,9,14,13,22,14,21,21]
[null,"Doctorate degree",0,12,11,11,19,21,22,25,5,6,10,11,0,12,216,92,0,12,4,6,22,36,0,17,0,17,4,5,214,174,21,34,0,17,0,12,68,53,11,17,154,143,11,17,0,12,10,9,38,34,4,6,36,23]
[]
[]
[]
[]
[]
[]
[]
[]
[null,"Calculated B15002. SEX BY EDUCATIONAL ATTAINMENT FOR THE POPULATION 25 YEARS AND OVER"]
[]
[null,null,"Allenstown",null,"Andover",null,"Boscawen",null,"Bow",null,"Bradford",null,"Canterbury",null,"Chichester",null,"Concord",null,"Danbury",null,"Dunbarton",null,"Epsom",null,"Franklin",null,"Henniker",null,"Hill",null,"Hooksett",null,"Hopkinton",null,"Loudon",null,"Newbury",null,"New London",null,"Northfield",null,"Pembroke",null,"Pittsfield",null,"Salisbury",null,"Sutton",null,"Warner",null,"Webster",null,"Wilmot"]
[null,null,"Estimate","Margin Of Error","Estimate","Margin Of Error","Estimate","Margin Of Error","Estimate","Margin Of Error","Estimate","Margin Of Error","Estimate","Margin Of Error","Estimate","Margin Of Error","Estimate","Margin Of Error","Estimate","Margin Of Error","Estimate","Margin Of Error","Estimate","Margin Of Error","Estimate","Margin Of Error","Estimate","Margin Of Error","Estimate","Margin Of Error","Estimate","Margin Of Error","Estimate","Margin Of Error","Estimate","Margin Of Error","Estimate","Margin Of Error","Estimate","Margin Of Error","Estimate","Margin Of Error","Estimate","Margin Of Error","Estimate","Margin Of Error","Estimate","Margin Of Error","Estimate","Margin Of Error","Estimate","Margin Of Error","Estimate","Margin Of Error","Estimate","Margin Of Error"]
[null,"Total:",{"$f":"C7","v":3054},{"$f":"D7","v":293},{"$f":"E7","v":1628},{"$f":"F7","v":275},{"$f":"G7","v":2874},195,5629,173,1123,113,1743,188,2020,91,32573,511,1162,216,2119,106,3491,184,6690,324,3727,302,600,96,9804,336,4322,231,4517,271,1393,184,2953,163,{"$f":"AO7","v":3585},169,4938,299,3215,184,1189,218,1608,270,2206,133,1488,183,1147,{"$f":"BD7","v":170}]
[null,"Less than 9th grade",{"$f":"(C12+C11+C10)+(C27+C28+C29)","v":42},{"$f":"SQRT((D12^2)+(D11^2)+(D10^2)+(D27^2)+(D28^2)+(D29^2))","v":56.745043836444431},{"$f":"(E12+E11+E10)+(E27+E28+E29)","v":90},{"$f":"SQRT((F12^2)+(F11^2)+(F10^2)+(F27^2)+(F28^2)+(F29^2))","v":117.45637488020819},{"$f":"(G12+G11+G10)+(G27+G28+G29)","v":72},{"$f":"SQRT((H12^2)+(H11^2)+(H10^2)+(H27^2)+(H28^2)+(H29^2))","v":65.589633327226338},{"$f":"(I12+I11+I10)+(I27+I28+I29)","v":0},{"$f":"SQRT((J12^2)+(J11^2)+(J10^2)+(J27^2)+(J28^2)+(J29^2))","v":41.641325627314025},{"$f":"(K12+K11+K10)+(K27+K28+K29)","v":0},{"$f":"SQRT((L12^2)+(L11^2)+(L10^2)+(L27^2)+(L28^2)+(L29^2))","v":29.393876913398138},{"$f":"(M12+M11+M10)+(M27+M28+M29)","v":44},{"$f":"SQRT((N12^2)+(N11^2)+(N10^2)+(N27^2)+(N28^2)+(N29^2))","v":45.71651780264984},{"$f":"(O12+O11+O10)+(O27+O28+O29)","v":0},{"$f":"SQRT((P12^2)+(P11^2)+(P10^2)+(P27^2)+(P28^2)+(P29^2))","v":29.393876913398138},{"$f":"(Q12+Q11+Q10)+(Q27+Q28+Q29)","v":648},{"$f":"SQRT((R12^2)+(R11^2)+(R10^2)+(R27^2)+(R28^2)+(R29^2))","v":228.30024091095481},{"$f":"(S12+S11+S10)+(S27+S28+S29)","v":8},{"$f":"SQRT((T12^2)+(T11^2)+(T10^2)+(T27^2)+(T28^2)+(T29^2))","v":26},{"$f":"(U12+U11+U10)+(U27+U28+U29)","v":9},{"$f":"SQRT((V12^2)+(V11^2)+(V10^2)+(V27^2)+(V28^2)+(V29^2))","v":26.248809496813376},{"$f":"(W12+W11+W10)+(W27+W28+W29)","v":84},{"$f":"SQRT((X12^2)+(X11^2)+(X10^2)+(X27^2)+(X28^2)+(X29^2))","v":61.465437442517235},{"$f":"(Y12+Y11+Y10)+(Y27+Y28+Y29)","v":150},{"$f":"SQRT((Z12^2)+(Z11^2)+(Z10^2)+(Z27^2)+(Z28^2)+(Z29^2))","v":114.24097338520886},{"$f":"(AA12+AA11+AA10)+(AA27+AA28+AA29)","v":0},{"$f":"SQRT((AB12^2)+(AB11^2)+(AB10^2)+(AB27^2)+(AB28^2)+(AB29^2))","v":41.641325627314025},{"$f":"(AC12+AC11+AC10)+(AC27+AC28+AC29)","v":6},{"$f":"SQRT((AD12^2)+(AD11^2)+(AD10^2)+(AD27^2)+(AD28^2)+(AD29^2))","v":24.698178070456937},{"$f":"(AE12+AE11+AE10)+(AE27+AE28+AE29)","v":154},{"$f":"SQRT((AF12^2)+(AF11^2)+(AF10^2)+(AF27^2)+(AF28^2)+(AF29^2))","v":78.415559680461371},{"$f":"(AG12+AG11+AG10)+(AG27+AG28+AG29)","v":0},{"$f":"SQRT((AH12^2)+(AH11^2)+(AH10^2)+(AH27^2)+(AH28^2)+(AH29^2))","v":41.641325627314025},{"$f":"(AI12+AI11+AI10)+(AI27+AI28+AI29)","v":25},{"$f":"SQRT((AJ12^2)+(AJ11^2)+(AJ10^2)+(AJ27^2)+(AJ28^2)+(AJ29^2))","v":58.146367040426526},{"$f":"(AK12+AK11+AK10)+(AK27+AK28+AK29)","v":0},{"$f":"SQRT((AL12^2)+(AL11^2)+(AL10^2)+(AL27^2)+(AL28^2)+(AL29^2))","v":29.393876913398138},{"$f":"(AM12+AM11+AM10)+(AM27+AM28+AM29)","v":9},{"$f":"SQRT((AN12^2)+(AN11^2)+(AN10^2)+(AN27^2)+(AN28^2)+(AN29^2))","v":32.878564445547191},{"$f":"(AO12+AO11+AO10)+(AO27+AO28+AO29)","v":29},{"$f":"SQRT((AP12^2)+(AP11^2)+(AP10^2)+(AP27^2)+(AP28^2)+(AP29^2))","v":42.825226210727713},{"$f":"(AQ12+AQ11+AQ10)+(AQ27+AQ28+AQ29)","v":95},{"$f":"SQRT((AR12^2)+(AR11^2)+(AR10^2)+(AR27^2)+(AR28^2)+(AR29^2))","v":103.95191195932858},{"$f":"(AS12+AS11+AS10)+(AS27+AS28+AS29)","v":25},{"$f":"SQRT((AT12^2)+(AT11^2)+(AT10^2)+(AT27^2)+(AT28^2)+(AT29^2))","v":35.846896657869841},{"$f":"(AU12+AU11+AU10)+(AU27+AU28+AU29)","v":3},{"$f":"SQRT((AV12^2)+(AV11^2)+(AV10^2)+(AV27^2)+(AV28^2)+(AV29^2))","v":27.294688127912362},{"$f":"(AW12+AW11+AW10)+(AW27+AW28+AW29)","v":0},{"$f":"SQRT((AX12^2)+(AX11^2)+(AX10^2)+(AX27^2)+(AX28^2)+(AX29^2))","v":29.393876913398138},{"$f":"(AY12+AY11+AY10)+(AY27+AY28+AY29)","v":45},{"$f":"SQRT((AZ12^2)+(AZ11^2)+(AZ10^2)+(AZ27^2)+(AZ28^2)+(AZ29^2))","v":47.843494855622744},{"$f":"(BA12+BA11+BA10)+(BA27+BA28+BA29)","v":10},{"$f":"SQRT((BB12^2)+(BB11^2)+(BB10^2)+(BB27^2)+(BB28^2)+(BB29^2))","v":22.825424421026653},{"$f":"(BC12+BC11+BC10)+(BC27+BC28+BC29)","v":5},{"$f":"SQRT((BD12^2)+(BD11^2)+(BD10^2)+(BD27^2)+(BD28^2)+(BD29^2))","v":28.635642126552707}]
[null,"9th to 12th grade, no diploma",{"$f":"(C13+C14+C15+C16)+(C30+C31+C32+C33)","v":317},{"$f":"SQRT((D13^2)+(D14^2)+(D15^2)+(D16^2)+(D30^2)+(D31^2)+(D32^2)+(D33^2))","v":139.97856978837868},{"$f":"(E13+E14+E15+E16)+(E30+E31+E32+E33)","v":57},{"$f":"SQRT((F13^2)+(F14^2)+(F15^2)+(F16^2)+(F30^2)+(F31^2)+(F32^2)+(F33^2))","v":94.063808130438773},{"$f":"(G13+G14+G15+G16)+(G30+G31+G32+G33)","v":149},{"$f":"SQRT((H13^2)+(H14^2)+(H15^2)+(H16^2)+(H30^2)+(H31^2)+(H32^2)+(H33^2))","v":63.245553203367585},{"$f":"(I13+I14+I15+I16)+(I30+I31+I32+I33)","v":65},{"$f":"SQRT((J13^2)+(J14^2)+(J15^2)+(J16^2)+(J30^2)+(J31^2)+(J32^2)+(J33^2))","v":51.380930314660517},{"$f":"(K13+K14+K15+K16)+(K30+K31+K32+K33)","v":71},{"$f":"SQRT((L13^2)+(L14^2)+(L15^2)+(L16^2)+(L30^2)+(L31^2)+(L32^2)+(L33^2))","v":35.199431813596085},{"$f":"(M13+M14+M15+M16)+(M30+M31+M32+M33)","v":47},{"$f":"SQRT((N13^2)+(N14^2)+(N15^2)+(N16^2)+(N30^2)+(N31^2)+(N32^2)+(N33^2))","v":53.860932037980923},{"$f":"(O13+O14+O15+O16)+(O30+O31+O32+O33)","v":60},{"$f":"SQRT((P13^2)+(P14^2)+(P15^2)+(P16^2)+(P30^2)+(P31^2)+(P32^2)+(P33^2))","v":32.878564445547191},{"$f":"(Q13+Q14+Q15+Q16)+(Q30+Q31+Q32+Q33)","v":1445},{"$f":"SQRT((R13^2)+(R14^2)+(R15^2)+(R16^2)+(R30^2)+(R31^2)+(R32^2)+(R33^2))","v":258.02713035648014},{"$f":"(S13+S14+S15+S16)+(S30+S31+S32+S33)","v":72},{"$f":"SQRT((T13^2)+(T14^2)+(T15^2)+(T16^2)+(T30^2)+(T31^2)+(T32^2)+(T33^2))","v":38.457769046058822},{"$f":"(U13+U14+U15+U16)+(U30+U31+U32+U33)","v":91},{"$f":"SQRT((V13^2)+(V14^2)+(V15^2)+(V16^2)+(V30^2)+(V31^2)+(V32^2)+(V33^2))","v":85.328775919967356},{"$f":"(W13+W14+W15+W16)+(W30+W31+W32+W33)","v":199},{"$f":"SQRT((X13^2)+(X14^2)+(X15^2)+(X16^2)+(X30^2)+(X31^2)+(X32^2)+(X33^2))","v":115.46861045323097},{"$f":"(Y13+Y14+Y15+Y16)+(Y30+Y31+Y32+Y33)","v":449},{"$f":"SQRT((Z13^2)+(Z14^2)+(Z15^2)+(Z16^2)+(Z30^2)+(Z31^2)+(Z32^2)+(Z33^2))","v":179.05027227010854},{"$f":"(AA13+AA14+AA15+AA16)+(AA30+AA31+AA32+AA33)","v":65},{"$f":"SQRT((AB13^2)+(AB14^2)+(AB15^2)+(AB16^2)+(AB30^2)+(AB31^2)+(AB32^2)+(AB33^2))","v":64.598761598036845},{"$f":"(AC13+AC14+AC15+AC16)+(AC30+AC31+AC32+AC33)","v":54},{"$f":"SQRT((AD13^2)+(AD14^2)+(AD15^2)+(AD16^2)+(AD30^2)+(AD31^2)+(AD32^2)+(AD33^2))","v":26.981475126464083},{"$f":"(AE13+AE14+AE15+AE16)+(AE30+AE31+AE32+AE33)","v":357},{"$f":"SQRT((AF13^2)+(AF14^2)+(AF15^2)+(AF16^2)+(AF30^2)+(AF31^2)+(AF32^2)+(AF33^2))","v":155.92626462530293},{"$f":"(AG13+AG14+AG15+AG16)+(AG30+AG31+AG32+AG33)","v":134},{"$f":"SQRT((AH13^2)+(AH14^2)+(AH15^2)+(AH16^2)+(AH30^2)+(AH31^2)+(AH32^2)+(AH33^2))","v":101.94606417120771},{"$f":"(AI13+AI14+AI15+AI16)+(AI30+AI31+AI32+AI33)","v":334},{"$f":"SQRT((AJ13^2)+(AJ14^2)+(AJ15^2)+(AJ16^2)+(AJ30^2)+(AJ31^2)+(AJ32^2)+(AJ33^2))","v":164.07620180879371},{"$f":"(AK13+AK14+AK15+AK16)+(AK30+AK31+AK32+AK33)","v":19},{"$f":"SQRT((AL13^2)+(AL14^2)+(AL15^2)+(AL16^2)+(AL30^2)+(AL31^2)+(AL32^2)+(AL33^2))","v":31.064449134018133},{"$f":"(AM13+AM14+AM15+AM16)+(AM30+AM31+AM32+AM33)","v":13},{"$f":"SQRT((AN13^2)+(AN14^2)+(AN15^2)+(AN16^2)+(AN30^2)+(AN31^2)+(AN32^2)+(AN33^2))","v":37.656340767525464},{"$f":"(AO13+AO14+AO15+AO16)+(AO30+AO31+AO32+AO33)","v":291},{"$f":"SQRT((AP13^2)+(AP14^2)+(AP15^2)+(AP16^2)+(AP30^2)+(AP31^2)+(AP32^2)+(AP33^2))","v":128},{"$f":"(AQ13+AQ14+AQ15+AQ16)+(AQ30+AQ31+AQ32+AQ33)","v":122},{"$f":"SQRT((AR13^2)+(AR14^2)+(AR15^2)+(AR16^2)+(AR30^2)+(AR31^2)+(AR32^2)+(AR33^2))","v":78.140898382345213},{"$f":"(AS13+AS14+AS15+AS16)+(AS30+AS31+AS32+AS33)","v":254},{"$f":"SQRT((AT13^2)+(AT14^2)+(AT15^2)+(AT16^2)+(AT30^2)+(AT31^2)+(AT32^2)+(AT33^2))","v":134.33912311757882},{"$f":"(AU13+AU14+AU15+AU16)+(AU30+AU31+AU32+AU33)","v":54},{"$f":"SQRT((AV13^2)+(AV14^2)+(AV15^2)+(AV16^2)+(AV30^2)+(AV31^2)+(AV32^2)+(AV33^2))","v":35.298725189445584},{"$f":"(AW13+AW14+AW15+AW16)+(AW30+AW31+AW32+AW33)","v":30},{"$f":"SQRT((AX13^2)+(AX14^2)+(AX15^2)+(AX16^2)+(AX30^2)+(AX31^2)+(AX32^2)+(AX33^2))","v":31.256999216175569},{"$f":"(AY13+AY14+AY15+AY16)+(AY30+AY31+AY32+AY33)","v":100},{"$f":"SQRT((AZ13^2)+(AZ14^2)+(AZ15^2)+(AZ16^2)+(AZ30^2)+(AZ31^2)+(AZ32^2)+(AZ33^2))","v":60.671245248470051},{"$f":"(BA13+BA14+BA15+BA16)+(BA30+BA31+BA32+BA33)","v":105},{"$f":"SQRT((BB13^2)+(BB14^2)+(BB15^2)+(BB16^2)+(BB30^2)+(BB31^2)+(BB32^2)+(BB33^2))","v":71.756532803640951},{"$f":"(BC13+BC14+BC15+BC16)+(BC30+BC31+BC32+BC33)","v":22},{"$f":"SQRT((BD13^2)+(BD14^2)+(BD15^2)+(BD16^2)+(BD30^2)+(BD31^2)+(BD32^2)+(BD33^2))","v":32.434549480453711}]
[null,"High school graduate (includes equivalency)",{"$f":"C17+C34","v":1032},{"$f":"SQRT((D17^2)+(D34^2))","v":235.51857676200407},{"$f":"E17+E34","v":451},{"$f":"SQRT((F17^2)+(F34^2))","v":111.80339887498948},{"$f":"G17+G34","v":1098},{"$f":"SQRT((H17^2)+(H34^2))","v":214.51573368869705},{"$f":"I17+I34","v":938},{"$f":"SQRT((J17^2)+(J34^2))","v":173.92527130926086},{"$f":"K17+K34","v":318},{"$f":"SQRT((L17^2)+(L34^2))","v":72.346388990743691},{"$f":"M17+M34","v":329},{"$f":"SQRT((N17^2)+(N34^2))","v":83.486525858967212},{"$f":"O17+O34","v":574},{"$f":"SQRT((P17^2)+(P34^2))","v":99.247166206396045},{"$f":"Q17+Q34","v":8992},{"$f":"SQRT((R17^2)+(R34^2))","v":722.16618586029074},{"$f":"S17+S34","v":527},{"$f":"SQRT((T17^2)+(T34^2))","v":136.20939761998804},{"$f":"U17+U34","v":552},{"$f":"SQRT((V17^2)+(V34^2))","v":118.44407963254221},{"$f":"W17+W34","v":928},{"$f":"SQRT((X17^2)+(X34^2))","v":165.48715962273326},{"$f":"Y17+Y34","v":2562},{"$f":"SQRT((Z17^2)+(Z34^2))","v":322.5926223582926},{"$f":"AA17+AA34","v":992},{"$f":"SQRT((AB17^2)+(AB34^2))","v":242.09502266672067},{"$f":"AC17+AC34","v":252},{"$f":"SQRT((AD17^2)+(AD34^2))","v":50.209560842532767},{"$f":"AE17+AE34","v":2569},{"$f":"SQRT((AF17^2)+(AF34^2))","v":341.43959934371992},{"$f":"AG17+AG34","v":908},{"$f":"SQRT((AH17^2)+(AH34^2))","v":254.87644065311332},{"$f":"AI17+AI34","v":1794},{"$f":"SQRT((AJ17^2)+(AJ34^2))","v":390.89896392802069},{"$f":"AK17+AK34","v":231},{"$f":"SQRT((AL17^2)+(AL34^2))","v":59.941638282582836},{"$f":"AM17+AM34","v":291},{"$f":"SQRT((AN17^2)+(AN34^2))","v":95.587656106842587},{"$f":"AO17+AO34","v":1587},{"$f":"SQRT((AP17^2)+(AP34^2))","v":214.59729728027799},{"$f":"AQ17+AQ34","v":1707},{"$f":"SQRT((AR17^2)+(AR34^2))","v":318.80401503117866},{"$f":"AS17+AS34","v":1450},{"$f":"SQRT((AT17^2)+(AT34^2))","v":278.29840100151495},{"$f":"AU17+AU34","v":384},{"$f":"SQRT((AV17^2)+(AV34^2))","v":118.84864324004712},{"$f":"AW17+AW34","v":343},{"$f":"SQRT((AX17^2)+(AX34^2))","v":104.48444860360799},{"$f":"AY17+AY34","v":640},{"$f":"SQRT((AZ17^2)+(AZ34^2))","v":106.60675400742676},{"$f":"BA17+BA34","v":484},{"$f":"SQRT((BB17^2)+(BB34^2))","v":98.005101908012932},{"$f":"BC17+BC34","v":163},{"$f":"SQRT((BD17^2)+(BD34^2))","v":49.203658400570177}]
[null,"Some college, no degree",{"$f":"(C18+C19)+(C35+C36)","v":523},{"$f":"SQRT((D18^2)+(D19^2)+(D35^2)+(D36^2))","v":145.99657530229948},{"$f":"(E18+E19)+(E35+E36)","v":280},{"$f":"SQRT((F18^2)+(F19^2)+(F35^2)+(F36^2))","v":99.809819156233317},{"$f":"(G18+G19)+(G35+G36)","v":637},{"$f":"SQRT((H18^2)+(H19^2)+(H35^2)+(H36^2))","v":164.41715238988905},{"$f":"(I18+I19)+(I35+I36)","v":695},{"$f":"SQRT((J18^2)+(J19^2)+(J35^2)+(J36^2))","v":146.50938536489735},{"$f":"(K18+K19)+(K35+K36)","v":228},{"$f":"SQRT((L18^2)+(L19^2)+(L35^2)+(L36^2))","v":61.040969848127411},{"$f":"(M18+M19)+(M35+M36)","v":269},{"$f":"SQRT((N18^2)+(N19^2)+(N35^2)+(N36^2))","v":81.50460109711598},{"$f":"(O18+O19)+(O35+O36)","v":366},{"$f":"SQRT((P18^2)+(P19^2)+(P35^2)+(P36^2))","v":101.20276676059801},{"$f":"(Q18+Q19)+(Q35+Q36)","v":5427},{"$f":"SQRT((R18^2)+(R19^2)+(R35^2)+(R36^2))","v":477.35416621204848},{"$f":"(S18+S19)+(S35+S36)","v":234},{"$f":"SQRT((T18^2)+(T19^2)+(T35^2)+(T36^2))","v":65.946948375190189},{"$f":"(U18+U19)+(U35+U36)","v":255},{"$f":"SQRT((V18^2)+(V19^2)+(V35^2)+(V36^2))","v":74.168726563154635},{"$f":"(W18+W19)+(W35+W36)","v":524},{"$f":"SQRT((X18^2)+(X19^2)+(X35^2)+(X36^2))","v":152.28919856641178},{"$f":"(Y18+Y19)+(Y35+Y36)","v":1488},{"$f":"SQRT((Z18^2)+(Z19^2)+(Z35^2)+(Z36^2))","v":386.8617324057783},{"$f":"(AA18+AA19)+(AA35+AA36)","v":586},{"$f":"SQRT((AB18^2)+(AB19^2)+(AB35^2)+(AB36^2))","v":190.26823171512368},{"$f":"(AC18+AC19)+(AC35+AC36)","v":69},{"$f":"SQRT((AD18^2)+(AD19^2)+(AD35^2)+(AD36^2))","v":23.2379000772445},{"$f":"(AE18+AE19)+(AE35+AE36)","v":1749},{"$f":"SQRT((AF18^2)+(AF19^2)+(AF35^2)+(AF36^2))","v":275.66283753890366},{"$f":"(AG18+AG19)+(AG35+AG36)","v":752},{"$f":"SQRT((AH18^2)+(AH19^2)+(AH35^2)+(AH36^2))","v":220.06589922111968},{"$f":"(AI18+AI19)+(AI35+AI36)","v":655},{"$f":"SQRT((AJ18^2)+(AJ19^2)+(AJ35^2)+(AJ36^2))","v":201.8836298465034},{"$f":"(AK18+AK19)+(AK35+AK36)","v":201},{"$f":"SQRT((AL18^2)+(AL19^2)+(AL35^2)+(AL36^2))","v":62.880839689049957},{"$f":"(AM18+AM19)+(AM35+AM36)","v":343},{"$f":"SQRT((AN18^2)+(AN19^2)+(AN35^2)+(AN36^2))","v":116.46887996370532},{"$f":"(AO18+AO19)+(AO35+AO36)","v":495},{"$f":"SQRT((AP18^2)+(AP19^2)+(AP35^2)+(AP36^2))","v":141.89432687743368},{"$f":"(AQ18+AQ19)+(AQ35+AQ36)","v":877},{"$f":"SQRT((AR18^2)+(AR19^2)+(AR35^2)+(AR36^2))","v":247.14975217466838},{"$f":"(AS18+AS19)+(AS35+AS36)","v":571},{"$f":"SQRT((AT18^2)+(AT19^2)+(AT35^2)+(AT36^2))","v":165.15447314559785},{"$f":"(AU18+AU19)+(AU35+AU36)","v":199},{"$f":"SQRT((AV18^2)+(AV19^2)+(AV35^2)+(AV36^2))","v":53.44155686354955},{"$f":"(AW18+AW19)+(AW35+AW36)","v":266},{"$f":"SQRT((AX18^2)+(AX19^2)+(AX35^2)+(AX36^2))","v":92.341756535166695},{"$f":"(AY18+AY19)+(AY35+AY36)","v":404},{"$f":"SQRT((AZ18^2)+(AZ19^2)+(AZ35^2)+(AZ36^2))","v":101.83810681665287},{"$f":"(BA18+BA19)+(BA35+BA36)","v":234},{"$f":"SQRT((BB18^2)+(BB19^2)+(BB35^2)+(BB36^2))","v":64.007812023221035},{"$f":"(BC18+BC19)+(BC35+BC36)","v":168},{"$f":"SQRT((BD18^2)+(BD19^2)+(BD35^2)+(BD36^2))","v":55.290143787116342}]
[null,"Associate's degree",{"$f":"C20+C37","v":554},{"$f":"SQRT((D20^2)+(D37^2))","v":178.66449003649271},{"$f":"E20+E37","v":176},{"$f":"SQRT((F20^2)+(F37^2))","v":70},{"$f":"G20+G37","v":215},{"$f":"SQRT((H20^2)+(H37^2))","v":87.783825389418979},{"$f":"I20+I37","v":427},{"$f":"SQRT((J20^2)+(J37^2))","v":109.07795377618706},{"$f":"K20+K37","v":95},{"$f":"SQRT((L20^2)+(L37^2))","v":30.610455730027933},{"$f":"M20+M37","v":204},{"$f":"SQRT((N20^2)+(N37^2))","v":73.573092907665639},{"$f":"O20+O37","v":280},{"$f":"SQRT((P20^2)+(P37^2))","v":81.541400527584756},{"$f":"Q20+Q37","v":3024},{"$f":"SQRT((R20^2)+(R37^2))","v":363.2698721336522},{"$f":"S20+S37","v":147},{"$f":"SQRT((T20^2)+(T37^2))","v":59.640590204993778},{"$f":"U20+U37","v":316},{"$f":"SQRT((V20^2)+(V37^2))","v":87.863530545955186},{"$f":"W20+W37","v":363},{"$f":"SQRT((X20^2)+(X37^2))","v":98.270036124955197},{"$f":"Y20+Y37","v":675},{"$f":"SQRT((Z20^2)+(Z37^2))","v":195.13328778042973},{"$f":"AA20+AA37","v":732},{"$f":"SQRT((AB20^2)+(AB37^2))","v":366.99455036825822},{"$f":"AC20+AC37","v":57},{"$f":"SQRT((AD20^2)+(AD37^2))","v":24.207436873820409},{"$f":"AE20+AE37","v":1061},{"$f":"SQRT((AF20^2)+(AF37^2))","v":235.49309968659378},{"$f":"AG20+AG37","v":341},{"$f":"SQRT((AH20^2)+(AH37^2))","v":144.27751037497146},{"$f":"AI20+AI37","v":597},{"$f":"SQRT((AJ20^2)+(AJ37^2))","v":226.14154859291116},{"$f":"AK20+AK37","v":115},{"$f":"SQRT((AL20^2)+(AL37^2))","v":36.878177829171548},{"$f":"AM20+AM37","v":450},{"$f":"SQRT((AN20^2)+(AN37^2))","v":142.35870187663275},{"$f":"AO20+AO37","v":398},{"$f":"SQRT((AP20^2)+(AP37^2))","v":133.9589489358587},{"$f":"AQ20+AQ37","v":811},{"$f":"SQRT((AR20^2)+(AR37^2))","v":236.1630792482178},{"$f":"AS20+AS37","v":276},{"$f":"SQRT((AT20^2)+(AT37^2))","v":119.75391434103521},{"$f":"AU20+AU37","v":133},{"$f":"SQRT((AV20^2)+(AV37^2))","v":43.56604182158393},{"$f":"AW20+AW37","v":237},{"$f":"SQRT((AX20^2)+(AX37^2))","v":94.429868156214212},{"$f":"AY20+AY37","v":204},{"$f":"SQRT((AZ20^2)+(AZ37^2))","v":64.660652641308843},{"$f":"BA20+BA37","v":184},{"$f":"SQRT((BB20^2)+(BB37^2))","v":50.931326312987373},{"$f":"BC20+BC37","v":98},{"$f":"SQRT((BD20^2)+(BD37^2))","v":48.083261120685229}]
[null,"Bachelor's degree",{"$f":"C21+C38","v":408},{"$f":"SQRT((D21^2)+(D38^2))","v":125.2078272313676},{"$f":"E21+E38","v":292},{"$f":"SQRT((F21^2)+(F38^2))","v":82.37718130647589},{"$f":"G21+G38","v":563},{"$f":"SQRT((H21^2)+(H38^2))","v":129.49517365523704},{"$f":"I21+I38","v":2158},{"$f":"SQRT((J21^2)+(J38^2))","v":219.59280498231266},{"$f":"K21+K38","v":269},{"$f":"SQRT((L21^2)+(L38^2))","v":59.405386961116584},{"$f":"M21+M38","v":483},{"$f":"SQRT((N21^2)+(N38^2))","v":92.314679222754165},{"$f":"O21+O38","v":475},{"$f":"SQRT((P21^2)+(P38^2))","v":107.61505470890214},{"$f":"Q21+Q38","v":6976},{"$f":"SQRT((R21^2)+(R38^2))","v":541.64379438889546},{"$f":"S21+S38","v":92},{"$f":"SQRT((T21^2)+(T38^2))","v":32.649655434629018},{"$f":"U21+U38","v":420},{"$f":"SQRT((V21^2)+(V38^2))","v":83.546394296821688},{"$f":"W21+W38","v":874},{"$f":"SQRT((X21^2)+(X38^2))","v":178.19652072922187},{"$f":"Y21+Y38","v":731},{"$f":"SQRT((Z21^2)+(Z38^2))","v":166.60432167263849},{"$f":"AA21+AA38","v":808},{"$f":"SQRT((AB21^2)+(AB38^2))","v":188.62131374794313},{"$f":"AC21+AC38","v":101},{"$f":"SQRT((AD21^2)+(AD38^2))","v":34.655446902326915},{"$f":"AE21+AE38","v":1980},{"$f":"SQRT((AF21^2)+(AF38^2))","v":270.11849251763567},{"$f":"AG21+AG38","v":1098},{"$f":"SQRT((AH21^2)+(AH38^2))","v":244.69777277286363},{"$f":"AI21+AI38","v":782},{"$f":"SQRT((AJ21^2)+(AJ38^2))","v":255.60125195311545},{"$f":"AK21+AK38","v":526},{"$f":"SQRT((AL21^2)+(AL38^2))","v":94.641428560646744},{"$f":"AM21+AM38","v":1026},{"$f":"SQRT((AN21^2)+(AN38^2))","v":177.48521065147935},{"$f":"AO21+AO38","v":441},{"$f":"SQRT((AP21^2)+(AP38^2))","v":120.34118164618461},{"$f":"AQ21+AQ38","v":661},{"$f":"SQRT((AR21^2)+(AR38^2))","v":191.94269978303421},{"$f":"AS21+AS38","v":418},{"$f":"SQRT((AT21^2)+(AT38^2))","v":139.38794782907166},{"$f":"AU21+AU38","v":209},{"$f":"SQRT((AV21^2)+(AV38^2))","v":47.507894080878813},{"$f":"AW21+AW38","v":413},{"$f":"SQRT((AX21^2)+(AX38^2))","v":138.80922159568507},{"$f":"AY21+AY38","v":390},{"$f":"SQRT((AZ21^2)+(AZ38^2))","v":88.600225733346747},{"$f":"BA21+BA38","v":279},{"$f":"SQRT((BB21^2)+(BB38^2))","v":69.339743293438858},{"$f":"BC21+BC38","v":362},{"$f":"SQRT((BD21^2)+(BD38^2))","v":92.17917335276988}]
[null,"Graduate or professional degree",{"$f":"(C22+C23+C24)+(C39+C40+C41)","v":178},{"$f":"SQRT((D22^2)+(D23^2)+(D24^2)+(D39^2)+(D41^2)+(D40^2))","v":75.418830539859215},{"$f":"(E22+E23+E24)+(E39+E40+E41)","v":282},{"$f":"SQRT((F22^2)+(F23^2)+(F24^2)+(F39^2)+(F41^2)+(F40^2))","v":72.952039039357899},{"$f":"(G22+G23+G24)+(G39+G40+G41)","v":129},{"$f":"SQRT((H22^2)+(H23^2)+(H24^2)+(H39^2)+(H41^2)+(H40^2))","v":55.722526863020128},{"$f":"(I22+I23+I24)+(I39+I40+I41)","v":1339},{"$f":"SQRT((J22^2)+(J23^2)+(J24^2)+(J39^2)+(J41^2)+(J40^2))","v":210.05713508471928},{"$f":"(K22+K23+K24)+(K39+K40+K41)","v":142},{"$f":"SQRT((L22^2)+(L23^2)+(L24^2)+(L39^2)+(L41^2)+(L40^2))","v":42.626282971894227},{"$f":"(M22+M23+M24)+(M39+M40+M41)","v":363},{"$f":"SQRT((N22^2)+(N23^2)+(N24^2)+(N39^2)+(N41^2)+(N40^2))","v":78.121699930301062},{"$f":"(O22+O23+O24)+(O39+O40+O41)","v":261},{"$f":"SQRT((P22^2)+(P23^2)+(P24^2)+(P39^2)+(P41^2)+(P40^2))","v":80.349237706402661},{"$f":"(Q22+Q23+Q24)+(Q39+Q40+Q41)","v":5675},{"$f":"SQRT((R22^2)+(R23^2)+(R24^2)+(R39^2)+(R41^2)+(R40^2))","v":568.32209177542973},{"$f":"(S22+S23+S24)+(S39+S40+S41)","v":82},{"$f":"SQRT((T22^2)+(T23^2)+(T24^2)+(T39^2)+(T41^2)+(T40^2))","v":32.046840717924134},{"$f":"(U22+U23+U24)+(U39+U40+U41)","v":462},{"$f":"SQRT((V22^2)+(V23^2)+(V24^2)+(V39^2)+(V41^2)+(V40^2))","v":83.833167660538749},{"$f":"(W22+W23+W24)+(W39+W40+W41)","v":480},{"$f":"SQRT((X22^2)+(X23^2)+(X24^2)+(X39^2)+(X41^2)+(X40^2))","v":165.55965692160635},{"$f":"(Y22+Y23+Y24)+(Y39+Y40+Y41)","v":597},{"$f":"SQRT((Z22^2)+(Z23^2)+(Z24^2)+(Z39^2)+(Z41^2)+(Z40^2))","v":196.7917681205187},{"$f":"(AA22+AA23+AA24)+(AA39+AA40+AA41)","v":518},{"$f":"SQRT((AB22^2)+(AB23^2)+(AB24^2)+(AB39^2)+(AB41^2)+(AB40^2))","v":157.78466338652817},{"$f":"(AC22+AC23+AC24)+(AC39+AC40+AC41)","v":53},{"$f":"SQRT((AD22^2)+(AD23^2)+(AD24^2)+(AD39^2)+(AD41^2)+(AD40^2))","v":27.367864366808018},{"$f":"(AE22+AE23+AE24)+(AE39+AE40+AE41)","v":1829},{"$f":"SQRT((AF22^2)+(AF23^2)+(AF24^2)+(AF39^2)+(AF41^2)+(AF40^2))","v":316.68754317149893},{"$f":"(AG22+AG23+AG24)+(AG39+AG40+AG41)","v":1089},{"$f":"SQRT((AH22^2)+(AH23^2)+(AH24^2)+(AH39^2)+(AH41^2)+(AH40^2))","v":287.89060422320142},{"$f":"(AI22+AI23+AI24)+(AI39+AI40+AI41)","v":330},{"$f":"SQRT((AJ22^2)+(AJ23^2)+(AJ24^2)+(AJ39^2)+(AJ41^2)+(AJ40^2))","v":153.7010084547268},{"$f":"(AK22+AK23+AK24)+(AK39+AK40+AK41)","v":301},{"$f":"SQRT((AL22^2)+(AL23^2)+(AL24^2)+(AL39^2)+(AL41^2)+(AL40^2))","v":78.86063656856949},{"$f":"(AM22+AM23+AM24)+(AM39+AM40+AM41)","v":821},{"$f":"SQRT((AN22^2)+(AN23^2)+(AN24^2)+(AN39^2)+(AN41^2)+(AN40^2))","v":154.67385040788247},{"$f":"(AO22+AO23+AO24)+(AO39+AO40+AO41)","v":311},{"$f":"SQRT((AP22^2)+(AP23^2)+(AP24^2)+(AP39^2)+(AP41^2)+(AP40^2))","v":143.14677781913221},{"$f":"(AQ22+AQ23+AQ24)+(AQ39+AQ40+AQ41)","v":654},{"$f":"SQRT((AR22^2)+(AR23^2)+(AR24^2)+(AR39^2)+(AR41^2)+(AR40^2))","v":220.20899164203081},{"$f":"(AS22+AS23+AS24)+(AS39+AS40+AS41)","v":213},{"$f":"SQRT((AT22^2)+(AT23^2)+(AT24^2)+(AT39^2)+(AT41^2)+(AT40^2))","v":112.42330719205872},{"$f":"(AU22+AU23+AU24)+(AU39+AU40+AU41)","v":203},{"$f":"SQRT((AV22^2)+(AV23^2)+(AV24^2)+(AV39^2)+(AV41^2)+(AV40^2))","v":127.18097341976905},{"$f":"(AW22+AW23+AW24)+(AW39+AW40+AW41)","v":319},{"$f":"SQRT((AX22^2)+(AX23^2)+(AX24^2)+(AX39^2)+(AX41^2)+(AX40^2))","v":79.724525711978998},{"$f":"(AY22+AY23+AY24)+(AY39+AY40+AY41)","v":423},{"$f":"SQRT((AZ22^2)+(AZ23^2)+(AZ24^2)+(AZ39^2)+(AZ41^2)+(AZ40^2))","v":84.41563836162112},{"$f":"(BA22+BA23+BA24)+(BA39+BA40+BA41)","v":185},{"$f":"SQRT((BB22^2)+(BB23^2)+(BB24^2)+(BB39^2)+(BB41^2)+(BB40^2))","v":46.540305112880382},{"$f":"(BC22+BC23+BC24)+(BC39+BC40+BC41)","v":325},{"$f":"SQRT((BD22^2)+(BD23^2)+(BD24^2)+(BD39^2)+(BD41^2)+(BD40^2))","v":70.121323433032842}]
[]
[]
[]
[]
[]
[]
[]
[]
[]
[]
[]
[]
[]
[]
[]
[]
[]
[]
[]
[]
[]
[]
[]
[]
[]
[]
[]
[null,"Calculated B15002. SEX BY EDUCATIONAL ATTAINMENT FOR THE POPULATION 25 YEARS AND OVER"]
[null,"Universe: Population 25 years an over"]
[null,"Data Set: 2013-2017 American Community Survey 5-Year Estimates"]
[null,null,"Allenstown",null,"Andover",null,"Boscawen",null,"Bow",null,"Bradford",null,"Canterbury",null,"Chichester",null,"Concord",null,"Danbury",null,"Dunbarton",null,"Epsom",null,"Franklin",null,"Henniker",null,"Hill",null,"Hooksett",null,"Hopkinton",null,"Loudon",null,"Newbury",null,"New London",null,"Northfield",null,"Pembroke",null,"Pittsfield",null,"Salisbury",null,"Sutton",null,"Warner",null,"Webster",null,"Wilmot"]
[null,null,"Estimate","Margin Of Error","Estimate","Margin Of Error","Estimate","Margin Of Error","Estimate","Margin Of Error","Estimate","Margin Of Error","Estimate","Margin Of Error","Estimate","Margin Of Error","Estimate","Margin Of Error","Estimate","Margin Of Error","Estimate","Margin Of Error","Estimate","Margin Of Error","Estimate","Margin Of Error","Estimate","Margin Of Error","Estimate","Margin Of Error","Estimate","Margin Of Error","Estimate","Margin Of Error","Estimate","Margin Of Error","Estimate","Margin Of Error","Estimate","Margin Of Error","Estimate","Margin Of Error","Estimate","Margin Of Error","Estimate","Margin Of Error","Estimate","Margin Of Error","Estimate","Margin Of Error","Estimate","Margin Of Error","Estimate","Margin Of Error","Estimate","Margin Of Error"]
[null,"Total:",3097,166,1916,166,2821,174,5296,187,1228,135,1753,143,1833,86,30655,437,960,115,1932,80,3494,139,5965,319,2822,258,765,92,9331,366,3963,186,4213,273,1528,146,2717,235,3372,197,5110,210,2746,142,937,121,1432,191,2017,88,1404,147,1141,102]
[null,"Less than 9th grade",43,54.827000647491197,12,25.787593916455254,68,41.916583830269374,50,47.180504448341793,24,35.791060336346561,11,26.944387170614959,34,34.365680554879162,572,161.27306036657208,0,26.944387170614959,13,24.779023386727733,32,34.770677301427419,90,57.801384066473702,7,26.944387170614959,3,24.919871588754223,135,70.717748832948573,34,52.191953402799555,70,71.246052522227501,7,26.551836094703507,12,32.341923257592455,46,50.467811523782167,40,58.27520913733386,68,61.822326064294927,14,26.19160170741759,3,25.317977802344327,38,38.794329482541649,4,25.099800796022265,3,25.099800796022265]
[null,"9th to 12th grade, no diploma",256,89.827612681179502,62,31.176914536239792,244,90.912045406535654,125,56.780278266313559,74,32.218007387174026,46,31.54362059117501,69,44.260591952661457,1696,283.81155719949106,114,48.114446894877631,41,27.349588662354687,167,76.974021591703263,462,138.737161568197,104,78.809897855535894,35,25.592967784139454,308,90.658700630441416,4,43.278170016764804,105,71.61005515987263,31,39.331920878594275,86,51.86520991955976,263,96.814255148712476,308,107.57787876696584,187,80.783661714482832,29,22.135943621178654,40,37.17526059088221,88,50.299105359837164,57,25.787593916455254,50,27.604347483684521]
[null,"High school graduate (includes equivalency)",1405,166.71232707871366,538,100.70253224224304,1283,204.60694025374605,1027,153.45683432157722,338,68.680419334771102,291,69.462219947249025,524,85.0411665018772,7371,528.98582211624534,306,58.694122363316758,490,83.52843827104634,1342,195.38935487891862,2371,262.48809496813374,535,145.80123456267441,297,57.628118136895637,2288,251.85908758669004,817,190,1784,300.88702198665862,259,62.936475910238251,286,95.692214939356489,1198,180.31361568112376,1645,250.7149776140229,1061,195.67319693816015,342,64.443773942872099,273,70.434366611761334,449,92.021736562618727,460,73.109506905736964,224,52.201532544552748]
[null,"Some college, no degree",612,150.12328267127654,388,96.036451412992136,533,139.49193525075205,771,144.13535305399574,208,45.77116996538323,309,75.808970445455856,270,71.119617546778187,6001,432.58871922416103,256,66.760766921898067,386,69.46941773183363,717,163.19007322750977,1160,197.04314248407633,532,158.99056575784616,180,49.628620774710235,1845,266.15784790233033,406,127.7145254072535,901,276.46699622197224,268,66.730802482811484,448,111.37324633860683,703,148.56311789943021,983,223.71857321197095,574,156.59182609574486,151,42.778499272414876,212,63.647466563878254,440,94.297401873010273,328,68.840395117982865,171,51.117511676528231]
[null,"Associate's degree",332,108.30050784737807,154,47.413078364518789,262,90.917545061445651,592,135.66502865514016,104,37.013511046643494,214,60.464865831323898,281,75.006666370396701,3290,365.90299260869676,67,28.844410203711913,265,54.083269131959838,344,106.5269918846862,785,189.33568073662187,312,108.93117092916977,77,26.40075756488817,1117,209.88091861815357,437,150.81445554057476,596,219.22134932528812,106,42.43819034784589,203,80.622577482985491,507,124.80785231707178,627,183.15294155431957,274,100.4987562112089,115,43.046486500061768,154,51.039200620699383,265,59.396969619669989,188,46.690470119715009,91,34.885527085024819]
[null,"Bachelor's degree",323,84.958813551037778,414,84.64632301523794,231,70.292247083159893,1532,190.24457942343588,291,60.141499815019579,535,86.371291526756735,442,82.462112512353215,6605,421.72265767919089,134,46.227697325304881,397,65.76473218982953,642,128.22636234409833,853,176.78235206037959,783,150.74813431681335,88,24.083189157584592,2351,311.24267059643347,1092,216.92625475031832,488,167.26326554267678,503,86.267027304758798,836,145.66056432679369,486,118.72657663724664,1005,209.34421415458323,412,94.810336989170125,174,40.70626487409524,391,86.267027304758798,471,86.278618440491968,233,53.263495942343098,314,59.033888572581766]
[null,"Graduate or professional degree",114,56.356011214421486,348,153.12739794040777,192,70.625774332038304,1199,177.19480805034891,189,46,341,66.783231428256002,199,56.577380639262543,4851,402.27726756554364,83,33.090784215548595,330,75.379042180171012,220,84.320815935331183,186,75.940766390654758,549,147.5161008161482,81,31.733263305244861,1287,231.01731536835069,1173,220.19763849778226,244,121.1156472137271,347,70.936591403872796,846,140.23551618616449,151,56.471231613981999,487,135.17026300188959,157,63.490156717399906,105,37.509998667022103,359,96.654022161522079,242,52.096065110524421,132,35.256205127608389,284,61.180062111769715]
[]
[]
[]
[null,"Calculated B15002. SEX BY EDUCATIONAL ATTAINMENT FOR THE POPULATION 25 YEARS AND OVER"]
[null,"Universe:  POPULATION 25 YEARS AND OVER"]
[null,"Data Set: 2005-2009 American Community Survey 5-Year Estimates"]
[null,null,"Allenstown",null,"Andover",null,"Boscawen",null,"Bow",null,"Bradford",null,"Canterbury",null,"Chichester",null,"Concord",null,"Danbury",null,"Dunbarton",null,"Epsom",null,"Franklin",null,"Henniker",null,"Hill",null,"Hooksett",null,"Hopkinton",null,"Loudon",null,"Newbury",null,"New London",null,"Northfield",null,"Pembroke",null,"Pittsfield",null,"Salisbury",null,"Sutton",null,"Warner",null,"Webster",null,"Wilmot"]
[null,null,"Estimate","Margin Of Error","Estimate","Margin Of Error","Estimate","Margin Of Error","Estimate","Margin Of Error","Estimate","Margin Of Error","Estimate","Margin Of Error","Estimate","Margin Of Error","Estimate","Margin Of Error","Estimate","Margin Of Error","Estimate","Margin Of Error","Estimate","Margin Of Error","Estimate","Margin Of Error","Estimate","Margin Of Error","Estimate","Margin Of Error","Estimate","Margin Of Error","Estimate","Margin Of Error","Estimate","Margin Of Error","Estimate","Margin Of Error","Estimate","Margin Of Error","Estimate","Margin Of Error","Estimate","Margin Of Error","Estimate","Margin Of Error","Estimate","Margin Of Error","Estimate","Margin Of Error","Estimate","Margin Of Error","Estimate","Margin Of Error","Estimate","Margin Of Error"]
[null,"Total:",3243,175,1682,167,2855,198,5413,241,926,130,1666,103,1721,85,29547,548,913,139,1856,80,2836,182,5999,233,2970,321,753,108,8601,384,3982,158,3497,180,1547,179,2896,255,3280,204,4748,313,3087,232,833,89,1213,181,1995,178,1328,107,928,130]
[null,"Less than 9th grade",97,171.66828478201791,33,257.16920499935446,116,234.35443243088022,15,255.85933635495891,16,228.71160880025309,46,229.68892006363737,31,162.62533627943711,605,168.80758276807353,14,228.37250272307304,20,198.27253970229967,78,202.89159667172024,194,151.90457530963312,32,256.55603676390075,26,198.82907232092595,248,218.83555469804261,35,258.68127106537884,65,235.39116381036905,35,230.93289068471819,37,262.10875605366562,54,201.10942295178512,91,209.26777104943801,77,205.65748223684935,11,197.70938268074178,9,228.21262015935929,38,200.94028963848936,31,228.84929538890873,4,254.96078129783021]
[null,"9th to 12th grade, no diploma",355,176.62106329653889,130,207.93989516203956,218,140.68759717899798,148,178.25262971412232,34,198.3885077316728,66,164.28937884111681,92,167.26326554267678,1847,292.13695418416341,81,164.62988793047271,44,229.46677319385481,267,141.74977954127476,769,192.66032284827097,39,230.1347431397528,110,39.560080889704963,451,136.3084736911099,132,172.75416058665562,219,249.22680433693324,30,229.1222381175603,42,257.66839154230775,305,119.95415791042844,478,163.16249569064578,576,246.46095025378767,70,117.43934604722558,54,117.18788333270638,97,122.06555615733703,65,26.92582403567252,12,279.44945875775102]
[null,"High school graduate (includes equivalency)",1096,200.11246837716035,453,107.29864864013899,1125,185.39687160251654,987,256.33766793040775,299,54.817880294662984,377,78.243210568074218,611,89.872131386765275,7948,534.17600095848559,321,62.369864518050704,469,95.131487952202235,1026,149.4824404403407,2405,287.43347056318964,645,175.17134468856486,262,51.86520991955976,2524,279.12183719659055,929,180.38015411901608,1286,178.28067758453241,367,74.330343736592525,440,172.28464818433474,1194,189.52572384771415,1452,240.68236329236922,1196,200.82330542046159,298,54.488530903301111,244,56.850681614207581,511,94.111635837445732,543,85.586213843118443,173,38.209946349085598]
[null,"Some college, no degree",884,178.70926109186397,258,76.177424477334498,424,118.28355760628779,789,198.90198591266,171,44.24929377967517,355,79.617837197452175,283,79.523581408284173,5517,454.11121985698611,201,67.992646661238297,331,82.012194215250702,635,156.20819440733575,1171,209.34899092185756,460,141.21260566960729,126,34.014702703389901,1714,251.5770259781286,584,169.69973482595663,688,149.24141516348604,364,114.69524837585905,528,162.84348313641539,678,169.0266251216062,1198,242.04751599634315,434,116.16367762773353,144,40.26164427839479,242,104.7377677822093,454,88.442071436618903,212,41.856899072912697,213,89.050547443572739]
[null,"Associate's degree",276,108.46658471621571,232,81.835200250259064,452,156.60459763365824,507,137.13132391981054,70,28.0178514522438,198,69.31089380465383,159,54.918120870983927,2551,342.28642976314444,82,41.109609582188931,240,64.443773942872099,281,89.140338792266206,562,116.72617529928752,218,94.413982015377357,92,32.802438933713454,783,168.07736313971611,276,104.86181383134664,479,135.83077707206124,179,56.859475903318,320,134.61426373159719,388,109.22453936730518,549,146.38647478507022,252,98.407316801140354,83,31.064449134018133,173,81.492330927517344,226,66.603303221386852,140,37.215588131856791,90,36.715119501371639]
[null,"Bachelor's degree",412,151.48927354766738,349,86.977008456258133,443,129.8345100502944,1654,223.46364357541475,229,45.967379738244816,379,68.593002558570063,424,82.758685344802331,6776,480.93450697574195,144,53.823786563191554,472,79.906195003891909,339,96.426137535421375,581,124.32618388738553,900,208.21623375712088,82,29.206163733020468,1665,260.59930928534709,1192,205.526154053444,485,112.48555462813881,360,91.241437954473298,997,192.33824372703418,474,132.13629327327143,622,154.30165261590687,414,124.61942063739504,146,34.409301068170507,308,56.727418414731339,432,87.321245982864909,242,53.150729063673246,239,73.600271738628791]
[null,"Graduate or professional degree",73,170.49633427144408,86,120.48651376813922,22,199.15822855207364,815,189.31719414781111,56,25.357444666211933,142,50.497524691810391,31,162.58536219475602,2524,321.61778557785016,28,162.73291000900832,117,44.034077712607996,134,140.89002803605371,172,141.92603707565431,330,128.79052760199409,39,115.95688854052612,669,208.18501386987489,506,130.02307487519283,162,57.30619512757761,114,37.549966711037172,227,81.712912076366493,99,54.38749856354859,204,98.219142737044905,39,200.89051744669283,33,16.217274740226856,99,34.785054261852174,114,52.602281319349636,46,115.42096863222038,86,119.01680553602503]
[]
[]
[]
[]
[]
[]
[]
[]
[]
[]
[]
[null,"Calculated B15002. SEX BY EDUCATIONAL ATTAINMENT FOR THE POPULATION 25 YEARS AND OVER"]
[null,"Universe:  POPULATION 25 YEARS AND OVER"]
[null,"Data Set: 2008-2012 American Community Survey 5-Year Estimates"]
[null,null,"Allenstown",null,"Andover",null,"Boscawen",null,"Bow",null,"Bradford",null,"Canterbury",null,"Chichester",null,"Concord",null,"Danbury",null,"Dunbarton",null,"Epsom",null,"Franklin",null,"Henniker",null,"Hill",null,"Hooksett",null,"Hopkinton",null,"Loudon",null,"Newbury",null,"New London",null,"Northfield",null,"Pembroke",null,"Pittsfield",null,"Salisbury",null,"Sutton",null,"Warner",null,"Webster",null,"Wilmot"]
[null,null,"Estimate","Margin Of Error","Estimate","Margin Of Error","Estimate","Margin Of Error","Estimate","Margin Of Error","Estimate","Margin Of Error","Estimate","Margin Of Error","Estimate","Margin Of Error","Estimate","Margin Of Error","Estimate","Margin Of Error","Estimate","Margin Of Error","Estimate","Margin Of Error","Estimate","Margin Of Error","Estimate","Margin Of Error","Estimate","Margin Of Error","Estimate","Margin Of Error","Estimate","Margin Of Error","Estimate","Margin Of Error","Estimate","Margin Of Error","Estimate","Margin Of Error","Estimate","Margin Of Error","Estimate","Margin Of Error","Estimate","Margin Of Error","Estimate","Margin Of Error","Estimate","Margin Of Error","Estimate","Margin Of Error","Estimate","Margin Of Error","Estimate","Margin Of Error"]
[null,"Total:",3010,158,1900,170,2976,137,5127,143,1141,147,1738,102,1840,82,30399,477,865,134,2001,70,3353,120,5883,235,2812,218,815,115,9003,292,3855,202,3462,167,1508,177,2744,212,3185,204,4638,252,2853,166,893,105,1270,171,2043,111,1291,112,1002,137]
[null,"Less than 9th grade",90,61.351446600711867,13,27.367864366808018,63,44.698993277254019,5,37.148351242013419,10,28.809720581775867,19,27.928480087537881,25,30.315012782448235,313,116.24112869376312,24,26.019223662515376,15,29.49576240750525,96,59.866518188383061,99,58.180752831155424,51,51.283525619832339,15,26.551836094703507,207,97.580735803743565,16,43.646305685590391,8,38.418745424597091,25,35.972211497209898,23,35.341194094144583,21,32.619012860600179,113,75.980260594446506,104,70.540768354193588,5,22.912878474779198,3,24.919871588754223,33,40.36087214122113,29,31.11269837220809,3,24.919871588754223]
[null,"9th to 12th grade, no diploma",263,115.50324670761424,173,77.685262437607818,227,90.238572683747606,188,114.8607853011636,58,27.313000567495326,43,27.694764848252458,101,48.548944375753422,1819,292.68583840015219,75,33.704599092705436,34,32.465366161495851,293,98.35141076771599,704,168.30923919975396,80,64.241730985396089,74,28.948229652260256,391,130.0692123448128,143,112.93360881509101,199,112.90261290156221,47,43,12,27.531799795872409,405,123.25988804148737,282,129.6919426949878,293,96.150923032490951,27,17.86057109949175,28,24.145392935299274,45,31.622776601683793,43,23.769728648009426,24,31.480152477394387]
[null,"High school graduate (includes equivalency)",1336,206.55265672462312,642,109.34349546269316,1252,205.10485123467947,880,170.23806859806652,295,62.241465278381739,355,78.492037812761623,552,102.53292154230269,7969,487.90367901871781,339,66.483080554378645,563,103.32473082471591,1163,184.04347312523745,2299,234.79778533878891,602,146.47866738880444,391,72.180329730474355,2526,291.20439557122074,753,168.22009392459628,1333,186.00268815261785,353,81.688432473637292,264,88.41379982785493,1125,177.73013250431114,1411,249.68780506864968,1084,209.97618912629116,373,63.63961030678928,224,60.802960454241045,521,114.85643212288984,391,67.208630398186216,184,46.61544808322666]
[null,"Some college, no degree",646,146.95917800532229,270,69.649120597463394,676,161.66323020402629,889,182.56505689753448,262,65.787536813594102,305,72.704882917174146,343,78.885993687092508,6630,542.34398678329603,190,51.594573358057723,378,79.661785066617739,508,106.55984234222571,1258,217.07602354935472,463,143.46428126889285,159,45.232731511594565,1755,263.19194516550084,513,149.54597955144098,752,167.11074172536007,275,77.556431067964951,341,99.589156036186992,535,128.77111477346153,1195,253.02569039526401,490,144.06248644251562,217,54.027770636960398,193,49.989998999799951,437,90.735880444287304,249,45.891175622335062,194,63.253458403473878]
[null,"Associate's degree",289,105.58882516630251,247,76.550636836018555,317,118.82760622010359,534,136.20939761998804,100,35.355339059327378,229,70.292247083159893,272,77.103826104804938,2915,343.84007910655208,92,37.20215047547655,200,58.051701094799967,413,110.25878649794764,483,115.10864433221339,289,107.80074211247342,69,31.11269837220809,933,198.11612756158948,283,100.43903623591775,349,124.63145670335399,224,75.690157880665041,217,75.213030785895072,457,127.98828071350908,501,162.98466185503469,226,82.758685344802331,67,25.45584412271571,170,50.447993022517757,275,81.60882305241266,134,36.235341863986875,96,37.643060449437421]
[null,"Bachelor's degree",279,129.80754985747168,303,97.744565066299216,355,127.40486646906389,1458,194.37077969694931,247,49.406477308142499,479,82.734515167492219,412,93.434469014384618,6580,501.3990426795807,75,30.463092423455635,567,90.785461391128038,597,125.31959144523253,594,145.71547618561317,669,159.76232346833217,68,30.413812651491099,2169,299.86663702386102,1307,211.56795598577776,583,122.31925441237777,330,67.475921631349351,1081,149.96666296213968,443,122.42957159118053,664,173.4156855650607,469,116.72617529928752,126,28.319604517012593,374,80.65977932030313,476,99.403219263764285,334,53.814496188294839,213,53.413481444294568]
[null,"Graduate or professional degree",37,36.537651812890218,71,36.207733980463345,58,45.541190146942803,715,161.26685958373469,74,31.160872901765767,160,50.665570163573605,58,30.116440692751194,2224,289.99827585694368,36,22.583179581272429,113,46.508063816933941,104,52.124850119688595,190,82.334682849938758,287,101.41991914806479,19,21.77154105707724,518,160.39326669159152,487,139.10068296022129,121,69.742383096650784,87,32.664965942122151,349,94.058492439545304,91,55.533773507659284,243,111.64676439557037,62,41.32795663954365,43,20.346989949375804,151,46.021733996015406,119,44.35087372307337,66,25.219040425836983,114,36.249137920783717]

{"sheet":"PopComparison","index":72,"n_rows":61,"n_cols":14,"rows_kept":61,"cut":false,"hidden":true,"merged":[[35,1,35,2],[26,13,26,14],[27,3,27,4],[27,5,27,6],[27,7,27,8],[27,9,27,10],[29,1,29,2],[30,1,30,2],[31,1,31,2],[32,1,32,2],[33,1,33,2],[34,1,34,2],[47,1,47,2],[36,1,36,2],[37,1,37,2],[38,1,38,2],[39,1,39,2],[40,1,40,2],[41,1,41,2],[42,1,42,2],[43,1,43,2],[44,1,44,2],[45,1,45,2],[46,1,46,2],[54,1,54,2],[55,1,55,2],[58,1,58,2],[48,1,48,2],[49,1,49,2],[50,1,50,2],[51,1,51,2],[52,1,52,2],[53,1,53,2]]}
[]
[]
[]
[]
[]
[]
[]
[]
[]
[]
[]
[]
[]
[]
[]
[]
[]
[]
[]
[]
[]
[]
[]
[]
[]
[]
[]
[null,null,null,2000,null,2010,null,2020,null,2030,null,null,"2000-2010","2010-2020"]
[null,null,null,"#","%","#","%","#","%","#","%",null,"% Change","% Change"]
[null,"Allenstown",null,{"$f":"CntyQuery!$G118","v":4843},{"$f":"D30/$D$59","v":3.5551477335290876E-2},{"$f":"CntyQuery!H118","v":4322},{"$f":"F30/$F$59","v":2.9512786370309671E-2},{"$f":"CntyQuery!$I118","v":4707},{"$f":"H30/$H$59","v":3.0603089566212421E-2},{"$f":"CntyQuery!J118","v":4883},{"$f":"J30/J$59","v":3.063670130000502E-2},null,{"$f":"(F30-D30)/D30","v":-0.10757794755316952},{"$f":"(H30-F30)/F30","v":8.9079130032392415E-2}]
[null,"Andover",null,{"$f":"CntyQuery!$G119","v":2109},1.5481739768764911E-2,{"$f":"CntyQuery!H119","v":2371},1.6190378640445219E-2,{"$f":"CntyQuery!$I119","v":2406},1.5642879434099657E-2,{"$f":"CntyQuery!J119","v":2493},{"$f":"J31/J$59","v":1.5641469658184009E-2},null,{"$f":"(F31-D31)/D31","v":0.12422949265054528},{"$f":"(H31-F31)/F31","v":1.4761703922395614E-2}]
[null,"Boscawen",null,{"$f":"CntyQuery!$G120","v":3672},2.6955404661405762E-2,{"$f":"CntyQuery!H120","v":3965},2.7075011096316024E-2,{"$f":"CntyQuery!$I120","v":3998},2.5993446374700926E-2,{"$f":"CntyQuery!J120","v":4143},2.5993826230989309E-2,null,7.979302832244009E-2,8.3228247162673401E-3]
[null,"Bow",null,{"$f":"CntyQuery!$G121","v":7138},5.2398605248669482E-2,{"$f":"CntyQuery!H121","v":7519},5.1343507801563729E-2,{"$f":"CntyQuery!$I121","v":8229},5.3501768438572767E-2,{"$f":"CntyQuery!J121","v":8530},5.3518546403654069E-2,null,5.3376295881199215E-2,9.4427450458837617E-2]
[null,"Bradford",null,{"$f":"CntyQuery!$G122","v":1454},1.0673518076711323E-2,{"$f":"CntyQuery!H122","v":1650},1.1267028577281573E-2,{"$f":"CntyQuery!$I122","v":1662},1.0805679808592532E-2,{"$f":"CntyQuery!J122","v":1722},1.0804095768709531E-2,null,0.13480055020632736,7.2727272727272727E-3]
[null,"Canterbury",null,{"$f":"CntyQuery!$G123","v":1979},1.4527436226830611E-2,{"$f":"CntyQuery!H123","v":2352},1.6060637099252279E-2,{"$f":"CntyQuery!$I123","v":2389},1.5532352023301778E-2,{"$f":"CntyQuery!J123","v":2473},1.5515986548210611E-2,null,0.18847902981303688,1.5731292517006803E-2]
[null,"Chichester",null,{"$f":"CntyQuery!$G124","v":2236},1.6414020921269958E-2,{"$f":"CntyQuery!H124","v":2523},1.7228310969988732E-2,{"$f":"CntyQuery!$I124","v":2665},1.7326797045667326E-2,{"$f":"CntyQuery!J124","v":2759},1.7310395020830198E-2,null,0.12835420393559929,5.6282203725723345E-2]
[null,"Concord",null,{"$f":"CntyQuery!$G125","v":40687},0.29867498623600663,{"$f":"CntyQuery!H125","v":42695},0.29154290006487077,{"$f":"CntyQuery!$I125","v":43976},0.28591490689691046,{"$f":"CntyQuery!J125","v":45611},0.28617050644983183,null,4.9352372993830954E-2,3.000351329195456E-2]
[null,"Danbury",null,{"$f":"CntyQuery!$G126","v":1071},7.8619930262433472E-3,{"$f":"CntyQuery!H126","v":1164},7.9483765236095464E-3,{"$f":"CntyQuery!$I126","v":1250},8.1270154998439609E-3,{"$f":"CntyQuery!J126","v":1293},8.1124830597801532E-3,null,8.683473389355742E-2,7.3883161512027493E-2]
[null,"Dunbarton",null,{"$f":"CntyQuery!$G127","v":2226},1.6340612956505782E-2,{"$f":"CntyQuery!H127","v":2758},1.8833008979480349E-2,{"$f":"CntyQuery!$I127","v":3005},1.9537345261624883E-2,{"$f":"CntyQuery!J127","v":3108},1.9500075289865984E-2,null,0.2389937106918239,8.9557650471356054E-2]
[null,"Epsom",null,{"$f":"CntyQuery!$G128","v":4021},2.9517342631675537E-2,{"$f":"CntyQuery!H128","v":4566},3.1178940899313737E-2,{"$f":"CntyQuery!$I128","v":4834},3.1428794340996567E-2,{"$f":"CntyQuery!J128","v":5006},3.1408422426341412E-2,null,0.13553842327779159,5.8694699956197985E-2]
[null,"Franklin",null,{"$f":"CntyQuery!$G129","v":8405},6.1699394384290694E-2,{"$f":"CntyQuery!H129","v":8477},5.7885212878555088E-2,{"$f":"CntyQuery!$I129","v":8741},5.6830593987308851E-2,{"$f":"CntyQuery!J129","v":9055},5.6812478040455756E-2,null,8.5663295657346823E-3,3.1143093075380442E-2]
[null,"Henniker",null,{"$f":"CntyQuery!$G130","v":4433},3.2541750779959626E-2,{"$f":"CntyQuery!H130","v":4836},3.3022636484687083E-2,{"$f":"CntyQuery!$I130","v":6185},4.0212472693227919E-2,{"$f":"CntyQuery!J130","v":6393},4.011067610299654E-2,null,{"$f":"(F42-D42)/D42","v":9.0909090909090912E-2},0.27894954507857733]
[null,"Hill",null,{"$f":"CntyQuery!$G131","v":992},7.2820701046063495E-3,{"$f":"CntyQuery!H131","v":1089},7.4362388610058382E-3,{"$f":"CntyQuery!$I131","v":1017},6.6121398106730473E-3,{"$f":"CntyQuery!J131","v":1054},6.6129598955980522E-3,null,{"$f":"(F43-D43)/D43","v":9.7782258064516125E-2},-6.6115702479338845E-2]
[null,"Hooksett",null,{"$f":"CntyQuery!$G132","v":11721},8.6041475500091766E-2,{"$f":"CntyQuery!H132","v":13451},9.1850182662433E-2,{"$f":"CntyQuery!$I132","v":14871},9.6685477998543642E-2,{"$f":"CntyQuery!J132","v":15430},9.6810219344476228E-2,null,0.14759832778773141,0.10556835922979704]
[null,"Hopkinton",null,{"$f":"CntyQuery!$G133","v":5399},3.9632960176179115E-2,{"$f":"CntyQuery!H133","v":5589},3.8164498617228308E-2,{"$f":"CntyQuery!$I133","v":5914},3.8450535732861751E-2,{"$f":"CntyQuery!J133","v":6128},3.8448024895849017E-2,null,3.5191702167067976E-2,5.8149937376990514E-2]
[null,"Loudon",null,{"$f":"CntyQuery!$G134","v":4481},3.2894109010827677E-2,{"$f":"CntyQuery!H134","v":5317},3.6307146027518861E-2,{"$f":"CntyQuery!$I134","v":5576},3.625299074170394E-2,{"$f":"CntyQuery!J134","v":5767},3.6183054760829191E-2,null,0.1865654987725954,4.8711679518525487E-2]
[null,"Newbury",null,{"$f":"CntyQuery!$G135","v":1702},1.2494035602862911E-2,{"$f":"CntyQuery!H135","v":2072},1.4148656492198436E-2,{"$f":"CntyQuery!$I135","v":2172},1.4121502132528867E-2,{"$f":"CntyQuery!J135","v":4554},2.8572504140942628E-2,null,0.21739130434782608,4.8262548262548263E-2]
[null,"New London",null,{"$f":"CntyQuery!$G136","v":4116},3.0214718296935218E-2,{"$f":"CntyQuery!H136","v":4397},3.0024924032913382E-2,{"$f":"CntyQuery!$I136","v":4400},2.8607094559450742E-2,{"$f":"CntyQuery!J136","v":2253},1.4135672338503238E-2,null,6.827016520894072E-2,6.8228337502842845E-4]
[null,"Northfield",null,{"$f":"CntyQuery!$G137","v":4548},3.3385942374747658E-2,{"$f":"CntyQuery!H137","v":4829},3.2974836969510736E-2,{"$f":"CntyQuery!$I137","v":4872},3.1675855612191821E-2,{"$f":"CntyQuery!J137","v":5049},3.1678211112784217E-2,null,6.1785400175901492E-2,8.9045351004348721E-3]
[null,"Pembroke",null,{"$f":"CntyQuery!$G138","v":6897},5.062947329785282E-2,{"$f":"CntyQuery!H138","v":7115},4.8584792925671756E-2,{"$f":"CntyQuery!$I138","v":7207},4.6857120565900343E-2,{"$f":"CntyQuery!J138","v":7463},4.6824022486573309E-2,null,3.1607945483543572E-2,1.2930428671820099E-2]
[null,"Pittsfield",null,{"$f":"CntyQuery!$G139","v":3931},2.8856670948797944E-2,{"$f":"CntyQuery!H139","v":4106},2.8037829902010994E-2,{"$f":"CntyQuery!$I139","v":4075},2.6494070529491313E-2,{"$f":"CntyQuery!J139","v":4220},2.6476936204386889E-2,null,4.4517934367845333E-2,-7.5499269361909401E-3]
[null,"Salisbury",null,{"$f":"CntyQuery!$G140","v":1137},8.3464855936869146E-3,{"$f":"CntyQuery!H140","v":1382},9.4369899962443229E-3,{"$f":"CntyQuery!$I140","v":1422},9.2452928326224905E-3,{"$f":"CntyQuery!J140","v":1472},9.2355568940420615E-3,null,0.21547933157431839,2.8943560057887119E-2]
[null,"Sutton",null,{"$f":"CntyQuery!$G141","v":1544},1.1334189759588916E-2,{"$f":"CntyQuery!H141","v":1837},1.2543958482706818E-2,{"$f":"CntyQuery!$I141","v":1978},1.2860189326953084E-2,{"$f":"CntyQuery!J141","v":2047},1.2843196305777243E-2,null,0.18976683937823835,7.6755579749591726E-2]
[null,"Warner",null,{"$f":"CntyQuery!$G142","v":2760},2.0260598274912826E-2,{"$f":"CntyQuery!H142","v":2833},1.934514664208406E-2,{"$f":"CntyQuery!$I142","v":2937},1.9095235618433373E-2,{"$f":"CntyQuery!J142","v":3043},1.9092255182452441E-2,null,2.6449275362318839E-2,3.6710201200141193E-2]
[null,"Webster",null,{"$f":"CntyQuery!$G143","v":1579},1.1591117636263535E-2,{"$f":"CntyQuery!H143","v":1872},1.2782956058588549E-2,{"$f":"CntyQuery!$I143","v":1913},1.2437584520961198E-2,{"$f":"CntyQuery!J143","v":1980},1.242282788736636E-2,null,0.18556048131728942,2.19017094017094E-2]
[null,"Wilmot",null,{"$f":"CntyQuery!$G144","v":1144},8.3978711690218394E-3,{"$f":"CntyQuery!H144","v":1358},9.2731059442111366E-3,{"$f":"CntyQuery!$I144","v":1407},9.1477686466243623E-3,{"$f":"CntyQuery!J144","v":1455},9.1288962505646741E-3,null,0.18706293706293706,3.608247422680412E-2]
[]
[]
[null,"Merrimack County",null,{"$f":"SUM(D30:D58)","v":136225},null,{"$f":"SUM(F30:F58)","v":146445},null,{"$f":"SUM(H30:H58)","v":153808},null,{"$f":"SUM(J30:J58)","v":159384},null,null,{"$f":"(H59-F59)/F59","v":5.0278261463348017E-2},{"$f":"(H59-F59)/F59","v":5.0278261463348017E-2}]
[]
[null,"Source: US Census and Office of Planning and Development, NH BEA"]

{"sheet":"HousingComparison","index":73,"n_rows":64,"n_cols":15,"rows_kept":64,"cut":false,"hidden":true,"merged":[[28,3,28,4],[28,5,28,8],[28,9,28,14],[29,5,29,6],[29,7,29,8],[29,9,29,10],[29,11,29,12],[29,13,29,14]]}
[]
[]
[]
[]
[]
[]
[]
[]
[]
[]
[]
[]
[]
[]
[]
[]
[]
[]
[]
[]
[]
[]
[]
[]
[]
[]
[]
[null,"Housing Units",null,"In 2022"]
[null,null,null,"Total Units",null,"Occupied Units",null,null,null,"Vacant Units"]
[null,null,null,null,null,"Owner",null,"Renter",null,"For Sale",null,"For Rent",null,"Seasonal"]
[null,null,null,"#","%","#","%","#","%","#","%","#","%","#","%"]
[]
[null,"Allenstown",null,{"$f":"ACS_Table_B25001!$C$7","v":1881},{"$f":"D33/D$61","v":2.8610975906546605E-2},{"$f":"ACS_Table_B25003!$C$8","v":1439},{"$f":"F33/$F$61","v":3.259121690485358E-2},{"$f":"ACS_Table_B25003!$C$9","v":373},{"$f":"H33/$H$61","v":2.376098866097592E-2},{"$f":"ACS_Table_B25004!$C$10","v":0},{"$f":"J33/$J$61","v":0},{"$f":"ACS_Table_B25004!$C$8","v":0},{"$f":"L33/$L$61","v":0},{"$f":"ACS_Table_B25004!$C$12","v":0},{"$f":"N33/$N$61","v":0}]
[null,"Andover",null,{"$f":"ACS_Table_B25001!$E$7","v":1059},1.6107933803845217E-2,{"$f":"ACS_Table_B25003!$E$8","v":794},1.7982923017688491E-2,{"$f":"ACS_Table_B25003!$E$9","v":84},5.3510001274047645E-3,{"$f":"ACS_Table_B25004!$E$10","v":5},3.5460992907801421E-2,{"$f":"ACS_Table_B25004!$E$8","v":15},2.2658610271903322E-2,{"$f":"ACS_Table_B25004!$E$12","v":146},4.5299410487123798E-2]
[null,"Boscawen",null,{"$f":"ACS_Table_B25001!$G$7","v":1434},2.1811876368946215E-2,{"$f":"ACS_Table_B25003!$G$8","v":1056},2.3916834643172603E-2,{"$f":"ACS_Table_B25003!$G$9","v":324},2.0639571919989809E-2,{"$f":"ACS_Table_B25004!$G$10","v":0},0,{"$f":"ACS_Table_B25004!$G$8","v":0},0,{"$f":"ACS_Table_B25004!$G$12","v":11},3.4129692832764505E-3]
[null,"Bow",null,{"$f":"ACS_Table_B25001!$I$7","v":2922},4.4445120467266973E-2,{"$f":"ACS_Table_B25003!$I$8","v":2630},5.9565601431386318E-2,{"$f":"ACS_Table_B25003!$I$9","v":265},1.6881131354312653E-2,{"$f":"ACS_Table_B25004!$I$10","v":0},0,{"$f":"ACS_Table_B25004!$I$8","v":0},0,{"$f":"ACS_Table_B25004!$I$12","v":0},0]
[null,"Bradford",null,{"$f":"ACS_Table_B25001!$K$7","v":851},1.2944146994402531E-2,{"$f":"ACS_Table_B25003!$K$8","v":564},1.2773763957149005E-2,{"$f":"ACS_Table_B25003!$K$9","v":68},4.3317620078990957E-3,{"$f":"ACS_Table_B25004!$K$10","v":0},0,{"$f":"ACS_Table_B25004!$K$8","v":0},0,{"$f":"ACS_Table_B25004!$K$12","v":204},6.3295066708035988E-2]
[null,"Canterbury",null,{"$f":"ACS_Table_B25001!$M$7","v":990},1.5058408371866634E-2,{"$f":"ACS_Table_B25003!$M$8","v":865},1.9590967771159377E-2,{"$f":"ACS_Table_B25003!$M$9","v":55},3.5036310358007388E-3,{"$f":"ACS_Table_B25004!$M$10","v":0},0,{"$f":"ACS_Table_B25004!$M$8","v":0},0,{"$f":"ACS_Table_B25004!$M$12","v":39},1.2100527458889234E-2]
[null,"Chichester",null,{"$f":"ACS_Table_B25001!$O$7","v":1071},1.6290459965928449E-2,{"$f":"ACS_Table_B25003!$O$8","v":939},2.1266958077593823E-2,{"$f":"ACS_Table_B25003!$O$9","v":72},4.5865715377755127E-3,{"$f":"ACS_Table_B25004!$O$10","v":0},0,{"$f":"ACS_Table_B25004!$O$8","v":0},0,{"$f":"ACS_Table_B25004!$O$12","v":27},8.3772882407694687E-3]
[null,"Concord",null,{"$f":"ACS_Table_B25001!$Q$7","v":18864},0.28693112679484062,{"$f":"ACS_Table_B25003!$Q$8","v":10275},0.23271351890018799,{"$f":"ACS_Table_B25003!$Q$9","v":7680},0.48923429736272139,{"$f":"ACS_Table_B25004!$Q$10","v":5},3.5460992907801421E-2,{"$f":"ACS_Table_B25004!$Q$8","v":226},0.34138972809667673,{"$f":"ACS_Table_B25004!$Q$12","v":109},3.3819422897921191E-2]
[null,"Danbury",null,{"$f":"ACS_Table_B25001!$S$7","v":769},1.1696884886833779E-2,{"$f":"ACS_Table_B25003!$S$8","v":625},1.4155323534074695E-2,{"$f":"ACS_Table_B25003!$S$9","v":47},2.9940119760479044E-3,{"$f":"ACS_Table_B25004!$S$10","v":0},0,{"$f":"ACS_Table_B25004!$S$8","v":0},0,{"$f":"ACS_Table_B25004!$S$12","v":67},2.0788085634502018E-2]
[null,"Dunbarton",null,{"$f":"ACS_Table_B25001!$U$7","v":1089},1.6564249209053299E-2,{"$f":"ACS_Table_B25003!$U$8","v":1018},2.3056190972300862E-2,{"$f":"ACS_Table_B25003!$U$9","v":43},2.739202446171487E-3,{"$f":"ACS_Table_B25004!$U$10","v":0},0,{"$f":"ACS_Table_B25004!$U$8","v":0},0,{"$f":"ACS_Table_B25004!$U$12","v":15},4.6540490226497054E-3]
[null,"Epsom",null,{"$f":"ACS_Table_B25001!$W$7","v":1939},2.9493185689948891E-2,{"$f":"ACS_Table_B25003!$W$8","v":1640},3.7143568953411997E-2,{"$f":"ACS_Table_B25003!$W$9","v":204},1.2995286023697285E-2,{"$f":"ACS_Table_B25004!$W$10","v":31},0.21985815602836881,{"$f":"ACS_Table_B25004!$W$8","v":0},0,{"$f":"ACS_Table_B25004!$W$12","v":35},1.0859447719515979E-2]
[null,"Franklin",null,{"$f":"ACS_Table_B25001!$Y$7","v":4150},6.3123631053784379E-2,{"$f":"ACS_Table_B25003!$Y$8","v":2308},5.2272778746631034E-2,{"$f":"ACS_Table_B25003!$Y$9","v":1409},8.9756656898968015E-2,{"$f":"ACS_Table_B25004!$Y$10","v":40},0.28368794326241137,{"$f":"ACS_Table_B25004!$Y$8","v":62},9.3655589123867067E-2,{"$f":"ACS_Table_B25004!$Y$12","v":170},5.2745888923363328E-2]
[null,"Henniker",null,{"$f":"ACS_Table_B25001!$AA$7","v":2560},3.8938914577756147E-2,{"$f":"ACS_Table_B25003!$AA$8","v":1545},3.4991959776232644E-2,{"$f":"ACS_Table_B25003!$AA$9","v":852},5.42744298636769E-2,{"$f":"ACS_Table_B25004!$AA$10","v":0},0,{"$f":"ACS_Table_B25004!$AA$8","v":24},3.6253776435045321E-2,{"$f":"ACS_Table_B25004!$AA$12","v":87},2.6993484331368292E-2]
[null,"Hill",null,{"$f":"ACS_Table_B25001!$AC$7","v":406},6.1754684838160132E-3,{"$f":"ACS_Table_B25003!$AC$8","v":298},6.7492582610468145E-3,{"$f":"ACS_Table_B25003!$AC$9","v":20},1.2740476493820869E-3,{"$f":"ACS_Table_B25004!$AC$10","v":0},0,{"$f":"ACS_Table_B25004!$AC$8","v":0},0,{"$f":"ACS_Table_B25004!$AC$12","v":73},2.2649705243561899E-2]
[null,"Hooksett",null,{"$f":"ACS_Table_B25001!$AE$7","v":5294},8.0524458505719154E-2,{"$f":"ACS_Table_B25003!$AE$8","v":4044},9.1590605394876901E-2,{"$f":"ACS_Table_B25003!$AE$9","v":1066},6.7906739712065234E-2,{"$f":"ACS_Table_B25004!$AE$10","v":0},0,{"$f":"ACS_Table_B25004!$AE$8","v":79},0.11933534743202417,{"$f":"ACS_Table_B25004!$AE$12","v":0},0]
[null,"Hopkinton",null,{"$f":"ACS_Table_B25001!$AG$7","v":2465},3.7493915794597224E-2,{"$f":"ACS_Table_B25003!$AG$8","v":1912},4.3303965755441307E-2,{"$f":"ACS_Table_B25003!$AG$9","v":256},1.6307809912090711E-2,{"$f":"ACS_Table_B25004!$AG$10","v":46},0.32624113475177308,{"$f":"ACS_Table_B25004!$AG$8","v":0},0,{"$f":"ACS_Table_B25004!$AG$12","v":181},5.6158858206639774E-2]
[null,"Loudon",null,{"$f":"ACS_Table_B25001!$AI$7","v":2442},3.7144073983937695E-2,{"$f":"ACS_Table_B25003!$AI$8","v":1957},4.4323149049894685E-2,{"$f":"ACS_Table_B25003!$AI$9","v":319},2.0321060007644286E-2,{"$f":"ACS_Table_B25004!$AI$10","v":0},0,{"$f":"ACS_Table_B25004!$AI$8","v":0},0,{"$f":"ACS_Table_B25004!$AI$12","v":0},0]
[null,"Newbury",null,{"$f":"ACS_Table_B25001!$AK$7","v":1513},2.301350693599416E-2,{"$f":"ACS_Table_B25003!$AK$8","v":653},1.4789482028401241E-2,{"$f":"ACS_Table_B25003!$AK$9","v":94},5.9880239520958087E-3,{"$f":"ACS_Table_B25004!$AK$10","v":0},0,{"$f":"ACS_Table_B25004!$AK$8","v":28},4.2296072507552872E-2,{"$f":"ACS_Table_B25004!$AK$12","v":679},0.21067328575861]
[null,"New London",null,{"$f":"ACS_Table_B25001!$AM$7","v":2424},3.6870284740812852E-2,{"$f":"ACS_Table_B25003!$AM$8","v":1485},3.3633048716961475E-2,{"$f":"ACS_Table_B25003!$AM$9","v":151},9.6190597528347556E-3,{"$f":"ACS_Table_B25004!$AM$10","v":0},0,{"$f":"ACS_Table_B25004!$AM$8","v":31},4.6827794561933533E-2,{"$f":"ACS_Table_B25004!$AM$12","v":714},0.22153273347812596]
[null,"Northfield",null,{"$f":"ACS_Table_B25001!$AO$7","v":2028},3.0846921392066195E-2,{"$f":"ACS_Table_B25003!$AO$8","v":1410},3.1934409892872509E-2,{"$f":"ACS_Table_B25003!$AO$9","v":496},3.1596381704675755E-2,{"$f":"ACS_Table_B25004!$AO$10","v":10},7.0921985815602842E-2,{"$f":"ACS_Table_B25004!$AO$8","v":48},7.2507552870090641E-2,{"$f":"ACS_Table_B25004!$AO$12","v":38},1.179025752404592E-2]
[null,"Pembroke",null,{"$f":"ACS_Table_B25001!$AQ$7","v":2711},4.1235702117303479E-2,{"$f":"ACS_Table_B25003!$AQ$8","v":1997},4.5229089756075466E-2,{"$f":"ACS_Table_B25003!$AQ$9","v":630},4.0132500955535735E-2,{"$f":"ACS_Table_B25004!$AQ$10","v":0},0,{"$f":"ACS_Table_B25004!$AQ$8","v":27},4.0785498489425982E-2,{"$f":"ACS_Table_B25004!$AQ$12","v":0},0]
[null,"Pittsfield",null,{"$f":"ACS_Table_B25001!$AS$7","v":1970},2.9964711608663909E-2,{"$f":"ACS_Table_B25003!$AS$8","v":1221},2.7653840056168322E-2,{"$f":"ACS_Table_B25003!$AS$9","v":580},3.6947381832080517E-2,{"$f":"ACS_Table_B25004!$AS$10","v":0},0,{"$f":"ACS_Table_B25004!$AS$8","v":26},3.9274924471299093E-2,{"$f":"ACS_Table_B25004!$AS$12","v":50},1.5513496742165685E-2]
[null,"Salisbury",null,{"$f":"ACS_Table_B25001!$AU$7","v":730},1.1103674860063275E-2,{"$f":"ACS_Table_B25003!$AU$8","v":600},1.3589110592711708E-2,{"$f":"ACS_Table_B25003!$AU$9","v":23},1.4651547967893998E-3,{"$f":"ACS_Table_B25004!$AU$10","v":0},0,{"$f":"ACS_Table_B25004!$AU$8","v":17},2.5679758308157101E-2,{"$f":"ACS_Table_B25004!$AU$12","v":86},2.6683214396524976E-2]
[null,"Sutton",null,{"$f":"ACS_Table_B25001!$AW$7","v":1154},1.7552932587004137E-2,{"$f":"ACS_Table_B25003!$AW$8","v":808},1.8300002264851765E-2,{"$f":"ACS_Table_B25003!$AW$9","v":38},2.4206905338259653E-3,{"$f":"ACS_Table_B25004!$AW$10","v":4},2.8368794326241134E-2,{"$f":"ACS_Table_B25004!$AW$8","v":10},1.5105740181268883E-2,{"$f":"ACS_Table_B25004!$AW$12","v":216},6.701830592615575E-2]
[null,"Warner",null,{"$f":"ACS_Table_B25001!$AY$7","v":1426},2.1690192260890726E-2,{"$f":"ACS_Table_B25003!$AY$8","v":824},1.8662378547324079E-2,{"$f":"ACS_Table_B25003!$AY$9","v":376},2.3952095808383235E-2,{"$f":"ACS_Table_B25004!$AY$10","v":0},0,{"$f":"ACS_Table_B25004!$AY$8","v":59},8.9123867069486398E-2,{"$f":"ACS_Table_B25004!$AY$12","v":125},3.8783741855414208E-2]
[null,"Webster",null,{"$f":"ACS_Table_B25001!$BA$7","v":883},1.3430883426624483E-2,{"$f":"ACS_Table_B25003!$BA$8","v":758},1.716757638212579E-2,{"$f":"ACS_Table_B25003!$BA$9","v":37},2.3569881513568606E-3,{"$f":"ACS_Table_B25004!$BA$10","v":0},0,{"$f":"ACS_Table_B25004!$BA$8","v":0},0,{"$f":"ACS_Table_B25004!$BA$12","v":71},2.2029165373875271E-2]
[null,"Wilmot",null,{"$f":"ACS_Table_B25001!$BC$7","v":719},1.093635921148698E-2,{"$f":"ACS_Table_B25003!$BC$8","v":488},1.1052476615405522E-2,{"$f":"ACS_Table_B25003!$BC$9","v":136},8.6635240157981915E-3,{"$f":"ACS_Table_B25004!$BC$10","v":0},0,{"$f":"ACS_Table_B25004!$BC$8","v":10},1.5105740181268883E-2,{"$f":"ACS_Table_B25004!$BC$12","v":80},2.4821594787465096E-2]
[]
[null,"Merrimack County",null,{"$f":"SUM(D33:D60)","v":65744},null,{"$f":"SUM(F33:F60)","v":44153},null,{"$f":"SUM(H33:H60)","v":15698},null,{"$f":"SUM(J33:J60)","v":141},null,{"$f":"SUM(L33:L60)","v":662},null,{"$f":"SUM(N33:N60)","v":3223}]
[]
[null,"Source: 2018-2022 American Community Survey Tables B25001; B25003; and B25004"]
[null,"Margin of error is not displayed.  The American Community Survey data are estimates only."]

{"sheet":"Housing_EmploymentComparison","index":74,"n_rows":66,"n_cols":11,"rows_kept":66,"cut":false,"hidden":true,"merged":[[63,2,63,13],[64,2,64,13],[65,2,65,13],[28,3,28,4],[28,5,28,10],[29,3,29,4],[29,5,29,6],[29,7,29,8],[29,9,29,10],[32,1,32,2],[33,1,33,2],[34,1,34,2],[35,1,35,2],[36,1,36,2],[37,1,37,2],[38,1,38,2],[39,1,39,2],[40,1,40,2],[41,1,41,2],[42,1,42,2],[43,1,43,2],[44,1,44,2],[45,1,45,2],[46,1,46,2],[47,1,47,2],[48,1,48,2],[49,1,49,2],[50,1,50,2],[51,1,51,2],[52,1,52,2],[53,1,53,2],[54,1,54,2],[55,1,55,2],[56,1,56,2],[57,1,57,2],[58,1,58,2]]}
[]
[]
[]
[]
[]
[]
[]
[]
[]
[]
[]
[]
[]
[]
[]
[]
[]
[]
[]
[]
[]
[]
[]
[]
[]
[]
[]
[null,null,null,"In 2022"]
[null,null,null,"Total Units",null,"Employment"]
[null,null,null,null,null,"Total Private",null,"Goods Producing",null,"Service Providing"]
[null,null,null,"#","%","#","%","#","%","#","%"]
[]
[null,"Allenstown",null,{"$f":"ACS_Table_B25001!$C$7","v":1881},{"$f":"D33/D$61","v":2.8610975906546605E-2},{"$f":"CntyQuery!$FB$171","v":391},{"$f":"IF(F33=\"n\",\"n\",F33/$F$61)","v":6.8238538194383847E-3},{"$f":"CntyQuery!$FD$171","v":120},{"$f":"IF(H33=\"n\",\"n\",H33/$H$61)","v":1.2357120790855731E-2},{"$f":"CntyQuery!$FE$171","v":271},{"$f":"IF(J33=\"n\",\"n\",J33/$J$61)","v":5.6948326223548451E-3}]
[null,"Andover",null,{"$f":"ACS_Table_B25001!$E$7","v":1059},1.6107933803845217E-2,{"$f":"CntyQuery!$FB$172","v":481},{"$f":"IF(F34=\"n\",\"n\",F34/$F$61)","v":8.3945618597183191E-3},{"$f":"CntyQuery!$FD$172","v":107},{"$f":"IF(H34=\"n\",\"n\",H34/$H$61)","v":1.1018432705179692E-2},{"$f":"CntyQuery!$FE$172","v":374},{"$f":"IF(J34=\"n\",\"n\",J34/$J$61)","v":7.8592893017000436E-3}]
[null,"Boscawen",null,{"$f":"ACS_Table_B25001!$G$7","v":1434},2.1811876368946215E-2,{"$f":"CntyQuery!$FB$173","v":655},1.1431264070926194E-2,{"$f":"CntyQuery!$FD$173","v":288},2.9657089898053754E-2,{"$f":"CntyQuery!$FE$173","v":367},7.712190304074642E-3]
[null,"Bow",null,{"$f":"ACS_Table_B25001!$I$7","v":2922},4.4445120467266973E-2,{"$f":"CntyQuery!$FB$174","v":3372},5.8849194575821565E-2,{"$f":"CntyQuery!$FD$174","v":1242},0.1278962001853568,{"$f":"CntyQuery!$FE$174","v":2130},4.4760123563158005E-2]
[null,"Bradford",null,{"$f":"ACS_Table_B25001!$K$7","v":851},1.2944146994402531E-2,{"$f":"CntyQuery!$FB$175","v":326},5.6894535681250979E-3,{"$f":"CntyQuery!$FD$175","v":44},4.5309442899804349E-3,{"$f":"CntyQuery!$FE$175","v":282},5.9259881900519049E-3]
[null,"Canterbury",null,{"$f":"ACS_Table_B25001!$M$7","v":990},1.5058408371866634E-2,{"$f":"CntyQuery!$FB$176","v":258},4.5026963821358139E-3,{"$f":"CntyQuery!$FD$176","v":70},7.2083204613325094E-3,{"$f":"CntyQuery!$FE$176","v":188},3.9506587933679366E-3]
[null,"Chichester",null,{"$f":"ACS_Table_B25001!$O$7","v":1071},1.6290459965928449E-2,{"$f":"CntyQuery!$FB$177","v":681},1.1885024171451508E-2,{"$f":"CntyQuery!$FD$177","v":190},1.9565441252188238E-2,{"$f":"CntyQuery!$FE$177","v":491},1.0317943976296047E-2]
[null,"Concord",null,{"$f":"ACS_Table_B25001!$Q$7","v":18864},0.28693112679484062,{"$f":"CntyQuery!$FB$178","v":27365},0.47758250580289358,{"$f":"CntyQuery!$FD$178","v":1512},0.15569972196478221,{"$f":"CntyQuery!$FE$178","v":25853},0.54327862651564507]
[null,"Danbury",null,{"$f":"ACS_Table_B25001!$S$7","v":769},1.1696884886833779E-2,{"$f":"CntyQuery!$FB$179","v":152},2.6527513569172237E-3,{"$f":"CntyQuery!$FD$179","v":61},6.28153640201833E-3,{"$f":"CntyQuery!$FE$179","v":91},1.9122869691302247E-3]
[null,"Dunbarton",null,{"$f":"ACS_Table_B25001!$U$7","v":1089},1.6564249209053299E-2,{"$f":"CntyQuery!$FB$180","v":258},4.5026963821358139E-3,{"$f":"CntyQuery!$FD$180","v":136},1.4004736896303162E-2,{"$f":"CntyQuery!$FE$180","v":122},2.5637253871855759E-3]
[null,"Epsom",null,{"$f":"ACS_Table_B25001!$W$7","v":1939},2.9493185689948891E-2,{"$f":"CntyQuery!$FB$181","v":1038},1.8115499397895252E-2,{"$f":"CntyQuery!$FD$181","v":178},1.8329729173102667E-2,{"$f":"CntyQuery!$FE$181","v":860},1.8072162565406519E-2]
[null,"Franklin",null,{"$f":"ACS_Table_B25001!$Y$7","v":4150},6.3123631053784379E-2,{"$f":"CntyQuery!$FB$182","v":2022},3.5288573971622543E-2,{"$f":"CntyQuery!$FD$182","v":747},7.6923076923076927E-2,{"$f":"CntyQuery!$FE$182","v":1276},2.6814045852858973E-2]
[null,"Henniker",null,{"$f":"ACS_Table_B25001!$AA$7","v":2560},3.8938914577756147E-2,{"$f":"CntyQuery!$FB$183","v":1293},2.2565838845355068E-2,{"$f":"CntyQuery!$FD$183","v":298},3.0686849963958398E-2,{"$f":"CntyQuery!$FE$183","v":996},2.0930085947842899E-2]
[null,"Hill",null,{"$f":"ACS_Table_B25001!$AC$7","v":406},6.1754684838160132E-3,{"$f":"CntyQuery!$FB$184","v":17},2.9668929649732104E-4,{"$f":"CntyQuery!$FD$184","v":0},0,{"$f":"CntyQuery!$FE$184","v":17},3.5724042280454744E-4]
[null,"Hooksett",null,{"$f":"ACS_Table_B25001!$AE$7","v":5294},8.0524458505719154E-2,{"$f":"CntyQuery!$FB$185","v":8910},0.15550009598771358,{"$f":"CntyQuery!$FD$185","v":1856},0.19112346823190196,{"$f":"CntyQuery!$FE$185","v":7054},0.14823376132136928]
[null,"Hopkinton",null,{"$f":"ACS_Table_B25001!$AG$7","v":2465},3.7493915794597224E-2,{"$f":"CntyQuery!$FB$186","v":1375},2.3996928393165674E-2,{"$f":"CntyQuery!$FD$186","v":378},3.8924930491195553E-2,{"$f":"CntyQuery!$FE$186","v":998},2.0972114232878727E-2]
[null,"Loudon",null,{"$f":"ACS_Table_B25001!$AI$7","v":2442},3.7144073983937695E-2,{"$f":"CntyQuery!$FB$187","v":818},1.4275990854988744E-2,{"$f":"CntyQuery!$FD$187","v":401},4.1293378642776234E-2,{"$f":"CntyQuery!$FE$187","v":417},8.7628974299703705E-3]
[null,"Newbury",null,{"$f":"ACS_Table_B25001!$AK$7","v":1513},2.301350693599416E-2,{"$f":"CntyQuery!$FB$188","v":2283},3.9843627288434352E-2,{"$f":"CntyQuery!$FD$188","v":167},1.7196993100607558E-2,{"$f":"CntyQuery!$FE$188","v":2116},4.4465925567907204E-2]
[null,"New London",null,{"$f":"ACS_Table_B25001!$AM$7","v":2424},3.6870284740812852E-2,{"$f":"CntyQuery!$FB$189","v":376},6.5620691460583956E-3,{"$f":"CntyQuery!$FD$189","v":24},2.4714241581711462E-3,{"$f":"CntyQuery!$FE$189","v":352},7.3969781663059241E-3]
[null,"Northfield",null,{"$f":"ACS_Table_B25001!$AO$7","v":2028},3.0846921392066195E-2,{"$f":"CntyQuery!$FB$190","v":1168},2.0384299900521825E-2,{"$f":"CntyQuery!$FD$190","v":616},6.3433220059726084E-2,{"$f":"CntyQuery!$FE$190","v":552},1.1599806669888834E-2]
[null,"Pembroke",null,{"$f":"ACS_Table_B25001!$AQ$7","v":2711},4.1235702117303479E-2,{"$f":"CntyQuery!$FB$191","v":1812},3.1623588544302694E-2,{"$f":"CntyQuery!$FD$191","v":360},3.7071362372567189E-2,{"$f":"CntyQuery!$FE$191","v":1453},3.0533549078529849E-2]
[null,"Pittsfield",null,{"$f":"ACS_Table_B25001!$AS$7","v":1970},2.9964711608663909E-2,{"$f":"CntyQuery!$FB$192","v":1003},1.7504668493341945E-2,{"$f":"CntyQuery!$FD$192","v":547},5.6327875604984042E-2,{"$f":"CntyQuery!$FE$192","v":456},9.5824489881690383E-3]
[null,"Salisbury",null,{"$f":"ACS_Table_B25001!$AU$7","v":730},1.1103674860063275E-2,{"$f":"CntyQuery!$FB$193","v":75},1.308923366899946E-3,{"$f":"CntyQuery!$FD$193","v":32},3.2952322108948614E-3,{"$f":"CntyQuery!$FE$193","v":43},9.0360812827032597E-4]
[null,"Sutton",null,{"$f":"ACS_Table_B25001!$AW$7","v":1154},1.7552932587004137E-2,{"$f":"CntyQuery!$FB$194","v":173},3.0192498996492088E-3,{"$f":"CntyQuery!$FD$194","v":"n"},"n",{"$f":"CntyQuery!$FE$194","v":"n"},"n"]
[null,"Warner",null,{"$f":"ACS_Table_B25001!$AY$7","v":1426},2.1690192260890726E-2,{"$f":"CntyQuery!$FB$195","v":765},1.3351018342379449E-2,{"$f":"CntyQuery!$FD$195","v":159},1.6373185047883845E-2,{"$f":"CntyQuery!$FE$195","v":606},1.2734570365856221E-2]
[null,"Webster",null,{"$f":"ACS_Table_B25001!$BA$7","v":883},1.3430883426624483E-2,{"$f":"CntyQuery!$FB$196","v":116},2.0244681408052496E-3,{"$f":"CntyQuery!$FD$196","v":50},5.1488003295232215E-3,{"$f":"CntyQuery!$FE$196","v":66},1.3869334061823607E-3]
[null,"Wilmot",null,{"$f":"ACS_Table_B25001!$BC$7","v":719},1.093635921148698E-2,{"$f":"CntyQuery!$FB$197","v":114},1.9895635176879179E-3,{"$f":"CntyQuery!$FD$197","v":"n"},"n",{"$f":"CntyQuery!$FE$197","v":"n"},"n"]
[]
[null,"Merrimack County",null,{"$f":"SUM(D33:D60)","v":65744},null,{"$f":"CntyQuery!$FB$241","v":57299},null,{"$f":"CntyQuery!$FD$241","v":9711},null,{"$f":"CntyQuery!$FE$241","v":47587}]
[]
[null,"Source: ","2018-2022 American Community Survey Table B25001"]
[null,null,"Employment data provided by NH Department of Employment Security 2022 Covered Private Employment."]
[null,null,"Margin of error is not displayed.  The American Community Survey data are estimates only. Total Employment "]
[null,null,"at the county level is the number provided by NH Department of Employment Security."]

{"sheet":"DropDownList","index":75,"n_rows":47,"n_cols":3,"rows_kept":47,"cut":false,"hidden":true,"merged":[]}
["List Range for Combo Box on Start Page"]
["Allenstown"]
["Andover"]
["Boscawen"]
["Bow"]
["Bradford"]
["Canterbury"]
["Chichester"]
["Concord"]
["Danbury"]
["Dunbarton"]
["Epsom"]
["Franklin"]
["Henniker"]
["Hill"]
["Hooksett"]
["Hopkinton"]
["Loudon"]
["Newbury"]
["New London"]
["Northfield"]
["Pembroke"]
["Pittsfield"]
["Salisbury"]
["Sutton"]
["Warner"]
["Webster"]
["Wilmot"]
[]
[]
[]
[]
[]
[]
[]
[]
[]
[]
[]
[]
[]
[]
[]
[]
[]
[]
[{"$f":"B47","v":"Allenstown"},"Allenstown","Allenstown"]

{"sheet":"CntyQryCensus","index":76,"n_rows":568,"n_cols":216,"rows_kept":568,"cut":false,"hidden":true,"merged":[]}
[]
["Census 2000 SF1   -           Query Name:  TownAllQuery3"]
["NAME","COUNTY","LOGRECNO","COUSUB","TRACT","AREALAND","AREAWATR","POP100","HU100","P01TotalPopulation","P03PopOfOneRace","P03PopWhite","P03PopBlack","P03PopAmIndian","P03PopAsian","P03PopHawaiian","P03PopOtherRace","P03Pop2orMoreRaces","P04PopHispanicLatino","P04PopNotHispanicLatino","P12PopMale","P12PopMale<15","P12PopMale15to24","P12PopMale25to34","P12PopMale35to44","P12PopMale45to54","P12PopMale55to64","P12PopMale65to74","P12PopMale75to84","P12PopMale85andOver","P12PopFemale","P12PopFemale<15","P12PopFemale15to24","P12PopFemale25to34","P12PopFemale35t44","P12PopFemale45to54","P12PopFemale55to64","P12PopFemale65to74","P12PopFemale75to84","P12PopFemale85andOver","P15Households2000","P16PopInHH","P17AvgHHSize","P18HHs1Person","P18HHs2orMorePerson","P18HHsFamily","P18HHMarriedCoupleFam","P18HHSingleParentFam","P18HHsNonFamily","P31Families","P32PopInFam","P33AvgFamSize","H01TotHsUnits","H04OccHsUnits","H04OwnerOccHU","H04RenterOccHU","H05VctHsUnits","H05VctHUForRent","H05VctHUForSale","H05VctHUSeasonal","H10PopInOccHU","H11PopInOwnOccHU","H11PopInRntOccHU","H12AvgHHSize2","H12AvgHHSizOwnOcc","H12AvgHHSizRntOcc","H14OwnOccWhtHsHldr","H14OwnOccBlkHsHldr","H14OwnOccAmIHsHldr","H14OwnOccAsnHsHldr","H14OwnOccPIsHsHldr","H14OwnOccORHsHldr","H14OwnOcc2RcHsHldr","H14RntOccWhtHsHldr","H14RntOccBlkHsHldr","H14RntOccAmIHsHldr","H14RntOccAsnHsHldr","H14RntOccPIsHsHldr","H14RntOccORHsHldr","H14RntOcc2RcHsHldr","H16OwnOccHH15to24","H16OwnOccHH25to34","H16OwnOccHH35to44","H16OwnOccHH45to54","H16OwnOccHH55to64","H16OwnOccHH65to74","H16OwnOccHH75to84","H16OwnOccHH85Over","H16RntOccHH15to24","H16RntOccHH25to34","H16RntOccHH35to44","H16RntOccHH45to54","H16RntOccHH55to64","H16RntOccHH65to74","H16RntOccHH75to84","H16RntOccHH85Over","P27TotalPop","P27PopInHseHlds","P27PopInGrpQtrs","P13MedianPopTotal","P13MedianPopMale","P13MedianPopFemale"]
["Allenstown","013","0022469","00660","","      53161407","        277792",4843,1962,4843,4804,4738,24,11,18,0,13,39,57,4786,2343,565,266,347,477,318,192,109,62,7,2500,563,251,387,450,313,201,153,127,55,1902,4808,2.5299999999999998,517,1385,1254,965,289,131,1254,3831,3.06,1962,1902,1356,546,60,6,7,23,4808,3736,1072,2.5299999999999998,2.76,1.96,1335,2,3,4,0,3,9,532,4,2,4,0,0,4,27,225,393,294,188,143,68,18,37,133,127,66,43,40,76,24,4843,4808,35,35.5,34.9,36.200000000000003]
["Andover","013","0022558","01460","","     104799192","       2246186",2109,1038,2109,2085,2071,8,3,1,1,1,24,4,2105,1057,218,117,121,166,180,125,81,32,17,1052,206,102,122,186,193,106,75,52,10,823,2095,2.5499999999999998,169,654,609,508,101,45,609,1768,2.9,1038,823,685,138,215,4,12,176,2095,1782,313,2.5499999999999998,2.6,2.27,675,2,0,1,0,0,7,135,0,2,0,0,0,1,9,70,154,183,117,88,46,18,13,37,32,26,15,6,7,2,2109,2095,14,40.1,40,40.200000000000003]
["Boscawen","013","0022713","06260","","      64042395","       1752758",3672,1295,3672,3644,3589,21,11,17,0,6,28,30,3642,1761,343,239,228,333,240,157,118,71,32,1911,358,183,205,306,241,158,156,151,153,1260,3239,2.57,268,992,913,693,220,79,913,2715,2.97,1295,1260,946,314,35,8,3,12,3239,2531,708,2.57,2.68,2.25,929,5,3,1,0,1,7,310,0,1,1,0,0,2,8,95,259,228,153,121,61,21,39,81,73,36,33,24,22,6,3672,3239,433,39.4,37.1,42.1]
["Bow","013","0022817","06500","","      72699841","       1035729",7138,2330,7138,7091,6980,9,7,74,0,21,47,35,7103,3560,993,381,225,670,672,341,186,78,14,3578,909,359,281,775,638,291,196,104,25,2304,7138,3.1,197,2107,2045,1866,179,62,2045,6714,3.28,2330,2304,2195,109,26,0,9,3,7138,6817,321,3.1,3.11,2.94,2168,1,1,15,0,4,6,105,0,1,1,0,1,1,8,165,659,686,344,207,104,22,2,26,39,22,10,4,6,0,7138,7138,0,38.6,38.5,38.6]
["Bradford","013","0022973","06980","","      91472455","       1805381",1454,762,1454,1429,1414,4,5,2,0,4,25,16,1438,726,161,92,70,118,136,66,63,17,3,728,137,81,85,119,135,70,61,30,10,559,1433,2.56,113,446,403,322,81,43,403,1192,2.96,762,559,444,115,203,2,9,183,1433,1175,258,2.56,2.65,2.2400000000000002,439,1,1,0,0,0,3,113,1,0,0,0,0,1,5,38,95,140,60,74,22,10,10,26,27,27,14,3,7,1,1454,1433,21,40.299999999999997,39,41.1]
["Canterbury","013","0023094","09860","","     113551281","       2045384",1979,838,1979,1964,1951,5,0,5,1,2,15,10,1969,955,194,88,79,150,233,115,60,34,2,1024,200,98,81,196,228,112,52,42,15,749,1976,2.64,113,636,590,502,88,46,590,1719,2.91,838,749,674,75,89,2,2,77,1976,1813,163,2.64,2.69,2.17,664,2,0,1,1,1,5,74,0,0,0,0,0,1,4,55,156,240,120,57,40,2,4,10,17,15,7,7,13,2,1979,1976,3,42.4,43.1,41.9]
["Chichester","013","0023228","12420","","      54577768","        277045",2236,849,2236,2214,2195,4,8,3,0,4,22,15,2221,1128,249,101,143,225,201,98,73,31,7,1108,242,106,149,224,178,97,69,32,11,823,2228,2.71,141,682,638,556,82,44,638,1937,3.04,849,823,728,95,26,1,4,10,2228,2014,214,2.71,2.77,2.25,723,0,1,0,0,0,4,93,1,1,0,0,0,0,1,105,201,204,94,79,34,10,8,23,21,17,7,14,2,3,2236,2228,8,38,38.200000000000003,37.799999999999997]
["Concord","013","0023305","14200","","     166511646","       8376307",40687,16881,40687,40154,38863,421,120,598,13,139,533,591,40096,20149,4031,2655,3258,3752,2926,1545,983,721,278,20538,3725,2341,2918,3483,2891,1598,1372,1365,845,16281,37420,2.2999999999999998,5324,10957,9630,7215,2415,1327,9630,28362,2.95,16881,16281,8373,7908,600,237,65,126,37420,21935,15485,2.2999999999999998,2.62,1.96,8235,26,13,43,2,11,43,7486,98,23,181,1,24,95,75,923,2058,2150,1236,1009,724,198,755,2094,1791,1188,671,487,599,323,40687,37420,3267,37,35.4,38.700000000000003]
["Danbury","013","0024146","16980","","      96984343","        735597",1071,596,1071,1069,1066,2,1,0,0,0,2,5,1066,546,95,72,43,117,90,61,46,16,6,525,103,49,61,108,77,58,42,16,11,435,1071,2.46,91,344,310,251,59,34,310,879,2.84,596,435,375,60,161,1,15,121,1071,918,153,2.46,2.4500000000000002,2.5499999999999998,373,1,1,0,0,0,0,60,0,0,0,0,0,0,6,32,101,90,67,49,19,11,6,18,18,10,3,2,3,0,1071,1071,0,41.1,41.2,40.9]
["Dunbarton","013","0024242","19460","","      79999416","       1228113",2226,858,2226,2214,2191,2,10,10,0,1,12,7,2219,1126,272,79,115,263,206,108,63,17,3,1100,261,89,162,235,188,90,48,22,5,814,2226,2.73,115,699,649,601,48,50,649,1965,3.03,858,814,729,85,44,1,3,33,2226,2005,221,2.73,2.75,2.6,720,1,2,2,0,0,4,84,0,1,0,0,0,0,3,92,238,198,109,61,25,3,3,27,26,15,4,7,1,2,2226,2226,0,37.6,38.299999999999997,36.799999999999997]
["Epsom","013","0024318","24900","","      88491778","        521203",4021,1592,4021,3991,3966,4,4,13,0,4,30,18,4003,1928,415,182,247,352,305,198,136,64,29,2093,422,177,268,374,310,207,139,116,80,1491,3904,2.62,294,1197,1104,954,150,93,1104,3327,3.01,1592,1491,1209,282,101,3,7,65,3904,3286,618,2.62,2.72,2.19,1195,1,2,3,0,0,8,275,2,0,1,0,0,4,5,170,308,308,199,135,64,20,19,67,72,30,29,28,29,8,4021,3904,117,38.9,38.4,39.700000000000003]
["Franklin","013","0024443","27380","","      71396822","       4118207",8405,3676,8405,8289,8161,32,23,43,1,29,116,100,8305,4074,970,542,493,675,559,357,272,162,44,4331,815,551,534,682,580,414,336,261,158,3319,8188,2.4700000000000002,896,2423,2195,1538,657,228,2195,6486,2.95,3676,3319,1911,1408,357,63,23,215,8188,5020,3168,2.4700000000000002,2.63,2.25,1890,2,4,3,0,2,10,1364,6,2,7,0,7,22,23,189,454,437,316,276,171,45,183,346,299,199,138,119,94,30,8405,8188,217,37.299999999999997,35.5,38.9]
["Henniker","013","0024673","35540","","     114298938","       1769144",4433,1679,4433,4374,4284,20,8,44,1,17,59,37,4396,2253,480,490,250,395,363,141,82,37,15,2180,427,452,230,405,314,134,106,93,19,1585,4003,2.5299999999999998,416,1169,1019,798,221,150,1019,3153,3.09,1679,1585,1083,502,94,16,7,54,4003,3029,974,2.5299999999999998,2.8,1.94,1066,2,3,3,0,1,8,490,0,0,2,0,1,9,9,106,326,334,143,99,50,16,84,125,114,75,24,28,43,9,4433,4003,430,33.1,31.4,34.4]
["Hill","013","0024861","35860","","      69188101","        405005",992,436,992,989,982,1,1,4,1,0,3,2,990,502,114,57,48,95,90,48,36,9,5,490,99,56,69,98,75,42,21,21,9,382,992,2.6,81,301,272,221,51,29,272,820,3.01,436,382,332,50,54,0,3,47,992,848,144,2.6,2.5499999999999998,2.88,331,1,0,0,0,0,0,50,0,0,0,0,0,0,7,31,86,92,51,37,20,8,6,18,17,5,1,2,1,0,992,992,0,38.700000000000003,39.5,36.799999999999997]
["Hooksett","013","0024909","37300","","      93819360","       2730459",11721,4307,11721,11634,11305,80,28,195,3,23,87,170,11551,5858,1255,1002,735,1123,803,481,273,165,21,5863,1188,839,774,1131,860,468,335,226,42,4147,10897,2.63,812,3335,3033,2514,519,302,3033,9221,3.04,4307,4147,3304,843,160,39,41,17,10897,8996,1901,2.63,2.72,2.2599999999999998,3243,14,5,25,0,6,11,769,16,4,35,0,4,15,22,443,976,791,507,330,204,31,90,215,210,139,63,43,69,14,11721,10897,824,35.299999999999997,34.4,36.1]
["Hopkinton","013","0025155","37540","","     112122752","       4666017",5399,2210,5399,5357,5316,7,14,14,4,2,42,27,5372,2613,615,236,210,424,511,294,185,115,23,2786,565,245,235,501,544,299,210,142,45,2084,5399,2.59,424,1660,1545,1356,189,115,1545,4657,3.01,2210,2084,1799,285,126,7,19,77,5399,4853,546,2.59,2.7,1.92,1785,0,3,3,2,0,6,273,2,2,2,1,1,4,6,133,405,530,321,216,153,35,15,58,69,54,21,27,24,17,5399,5399,0,41.8,41.2,42.3]
["Loudon","013","0025367","43380","","     121237000","       1747027",4481,1684,4481,4447,4402,11,9,20,0,5,34,27,4454,2227,533,246,239,462,378,189,134,42,4,2254,506,245,305,460,364,179,111,59,25,1611,4479,2.78,245,1366,1257,1046,211,109,1257,3869,3.08,1684,1611,1448,163,73,3,9,47,4479,4058,421,2.78,2.8,2.58,1425,1,2,5,0,2,13,163,0,0,0,0,0,0,20,171,445,393,207,137,63,12,12,48,49,30,10,8,4,2,4481,4479,2,36.9,37.1,36.700000000000003]
["New London","013","0025671","52100","","      58291290","       7983338",4116,2085,4116,4098,4048,9,2,30,1,8,18,26,4090,1808,258,329,96,177,225,210,250,197,66,2308,225,532,114,211,258,253,322,250,143,1574,3403,2.16,462,1112,1052,954,98,60,1052,2766,2.63,2085,1574,1297,277,511,17,21,418,3403,2891,512,2.16,2.23,1.85,1288,3,0,2,1,0,3,273,0,0,4,0,0,0,5,39,142,220,235,308,270,78,30,50,53,49,21,25,31,18,4116,3403,713,47.3,46.8,47.8]
["Newbury","013","0025542","50900","","      92724515","       5929456",1702,1311,1702,1689,1674,7,1,2,0,5,13,20,1682,863,172,83,79,147,158,84,88,44,8,839,134,80,94,161,132,102,78,44,14,691,1702,2.46,143,548,508,439,69,40,508,1441,2.84,1311,691,602,89,620,5,10,585,1702,1497,205,2.46,2.4900000000000002,2.2999999999999998,598,1,0,0,0,0,3,86,0,0,1,0,0,2,3,51,143,140,99,93,58,15,9,24,17,21,9,5,4,0,1702,1702,0,42.1,42.1,42]
["Northfield","013","0025821","54260","","      74566902","        675060",4548,1782,4548,4505,4465,6,8,19,0,7,43,42,4506,2261,540,285,291,427,361,181,100,61,15,2287,496,301,274,464,348,183,118,75,28,1706,4489,2.63,345,1361,1212,914,298,149,1212,3671,3.03,1782,1706,1159,547,76,7,9,41,4489,3219,1270,2.63,2.78,2.3199999999999998,1151,1,2,1,0,0,4,532,2,2,3,0,1,7,16,133,338,322,177,98,64,11,68,144,123,87,33,43,32,17,4548,4489,59,36,35.299999999999997,36.6]
["Pembroke","013","0025918","60020","","      59125411","        409204",6897,2734,6897,6820,6748,26,18,26,0,2,77,30,6867,3419,786,423,427,704,508,276,179,96,20,3478,724,403,467,688,524,287,209,130,46,2661,6897,2.59,611,2050,1876,1482,394,174,1876,5742,3.06,2734,2661,1807,854,73,9,11,16,6897,5054,1843,2.59,2.8,2.16,1790,7,2,2,0,0,6,828,6,1,4,0,1,14,13,205,511,460,274,197,115,32,71,236,231,138,65,50,49,14,6897,6897,0,36.700000000000003,36.200000000000003,37.200000000000003]
["Pittsfield","013","0026053","61940","","      61041186","        777055",3931,1569,3931,3862,3828,15,5,4,0,10,69,45,3886,1898,454,239,243,363,271,151,114,53,10,2033,476,258,284,378,245,161,133,76,22,1498,3925,2.62,338,1160,1056,779,277,104,1056,3226,3.05,1569,1498,915,583,71,15,10,16,3925,2590,1335,2.62,2.83,2.29,901,2,0,0,0,2,10,568,3,1,1,0,3,7,13,111,262,211,130,110,66,12,73,147,153,84,47,37,27,15,3931,3925,6,35.1,35.4,34.9]
["Salisbury","013","0026152","66980","","     103492290","        663666",1137,514,1137,1126,1112,8,0,3,1,2,11,8,1129,578,122,69,51,93,113,76,33,16,5,559,92,65,67,110,98,67,35,18,7,435,1137,2.61,74,361,325,300,25,36,325,974,3,514,435,401,34,79,2,4,69,1137,1051,86,2.61,2.62,2.5299999999999998,397,1,0,0,0,0,3,33,1,0,0,0,0,0,4,43,92,113,81,39,20,9,4,8,14,4,3,1,0,0,1137,1137,0,40.4,40,40.799999999999997]
["Sutton","013","0026232","75460","","     109660228","       2069258",1544,826,1544,1526,1506,1,5,7,1,6,18,15,1529,752,135,77,63,124,154,95,72,29,3,792,133,77,60,162,125,95,82,39,19,621,1531,2.4700000000000002,130,491,457,404,53,34,457,1314,2.88,826,621,527,94,205,3,10,172,1531,1316,215,2.4700000000000002,2.5,2.29,517,0,1,2,0,2,5,92,0,0,0,0,0,2,5,32,117,146,95,83,43,6,3,20,29,20,11,7,3,1,1544,1531,13,43.2,43.7,42.8]
["Warner","013","0026361","78580","","     144138480","        633413",2760,1228,2760,2731,2714,1,7,6,0,3,29,20,2740,1371,303,174,134,236,253,132,79,41,19,1389,250,166,142,285,210,137,95,62,42,1048,2633,2.5099999999999998,263,785,728,593,135,57,728,2190,3.01,1228,1048,797,251,180,8,11,152,2633,2135,498,2.5099999999999998,2.68,1.98,792,0,0,0,0,1,4,246,0,1,1,0,0,3,5,74,206,236,124,91,43,18,16,53,62,42,34,17,20,7,2760,2633,127,39.5,38.299999999999997,40.6]
["Webster","013","0026528","80020","","      72263550","       1698357",1579,672,1579,1570,1561,1,1,6,0,1,9,2,1577,765,168,67,104,144,142,74,44,15,7,814,163,93,95,158,135,90,41,31,8,581,1575,2.71,84,497,464,397,67,33,464,1386,2.99,672,581,531,50,91,0,3,81,1575,1438,137,2.71,2.71,2.74,524,0,1,3,0,0,3,49,0,0,0,0,0,1,9,66,139,146,87,50,24,10,4,15,18,6,3,3,1,0,1579,1575,4,38.700000000000003,38.4,39.200000000000003]
["Wilmot","013","0026592","84900","","      76504652","        559995",1144,530,1144,1134,1124,1,1,7,1,0,10,3,1141,553,123,42,51,91,103,63,47,25,8,591,124,58,49,118,97,75,46,18,6,459,1144,2.4900000000000002,103,356,329,278,51,27,329,963,2.93,530,459,392,67,71,1,5,56,1144,1008,136,2.4900000000000002,2.57,2.0299999999999998,385,1,1,0,1,0,4,67,0,0,0,0,0,0,4,26,100,103,72,49,29,9,3,19,12,16,10,5,0,2,1144,1144,0,41.6,42,41.2]
[]
[]
[]
[]
[]
[]
[]
[]
[]
[]
[]
[]
[]
[]
[]
[]
[]
[]
[]
[]
["Census 2000 DemoProfile Sample Data Tables 2&3   -  DPTab23TownQry"]
[]
["TOWN_NAME","COUSUB","AREANAME","PopInSchool","Preschool","Kindergarten","Elementary","HighSchool","College","Pop25andOver","HighSchoolGrad","SomeCollege","AssocDegree","BachelDegree","GradDegree","HSGradorHigher","CollegeGradorHigher","Pop5to20yrs","Pop5to20wDis","Pop21to64","Pop21to64wDis","Pop65over","Pop65overwDis","Pop5yrsOver","SameHUin95","DiffHUinUSin95","HUinSameCountyin95","HUinSameStatein95","TotalPop","NativePop","NatPopBornUS","NatPopBornInStatRes","NatPopBornDiffState","NatPopBornOutUS","FornBornPop","FornPopEnt90to00","FornPopNatCit","FornPopNotCit","Households","HHIncLessThn10k","HHInc10to15K","HHInc15to25K","HHInc25to35K","HHInc35to50K","HHInc50to75K","HHInc75to100K","HHInc100to150K","HHInc150to200K","HHIncOver200K","MedianHHInc","HHwithPubAssistInc","MeanPubAssist","FamilyHH","FHHIncLessThn10k","FHHInc10to15K","FHHInc15to25K","FHHInc25to35K","FHHInc35to50K","FHHInc50to75K","FHHInc75to100K","FHHInc100to150K","FHHInc150to200K","FHHIncOver200K","MedianFHHInc","PerCapitaInc","PovStatFamilies","PovStatFHHwChilUnd18","PovStatFHHwChilUnd5","PovStFmalHH","DP3088","DP3089","PovStatIndiv","PovStatIndiv18yrOver","PovStatIndiv65yrOver","DP3093","DP3094","DP3095","CNTY_NAME"]
["Allenstown","00660","Allenstown town, Merrimack County, New Hampshire",1228,89,44,682,302,111,3202,1283,755,207,219,92,2556,311,1138,140,2853,577,506,219,4524,2494,1996,875,1121,4843,4727,4689,2983,1706,38,116,24,72,44,1901,121,100,208,292,381,497,182,114,6,0,41958,61,1997,1277,5,48,116,195,240,413,165,89,6,0,51659,18851,28,28,8,11,11,0,184,129,24,47,40,94,"Merrimack"]
["Andover","01460","Andover town, Merrimack County, New Hampshire",487,42,14,228,134,69,1468,496,289,108,222,145,1260,367,451,32,1255,168,269,109,1978,1250,706,450,256,2109,2062,2054,1190,864,8,47,6,23,24,814,42,26,95,112,159,225,66,66,17,6,47093,23,1478,600,21,6,49,69,132,181,57,62,17,6,52212,21627,27,19,3,16,14,3,119,80,17,38,35,36,"Merrimack"]
["Boscawen","06260","Boscawen town, Merrimack County, New Hampshire",753,21,53,453,103,123,2549,956,438,226,327,68,2015,395,748,85,1911,370,375,165,3464,2077,1312,842,470,3672,3538,3505,2232,1273,33,134,86,37,97,1251,75,31,196,223,225,290,138,52,16,5,42524,57,2386,908,41,19,85,158,206,214,123,47,10,5,45850,18732,49,44,19,13,13,7,241,159,40,82,68,68,"Merrimack"]
["Bow","06500","Bow town, Merrimack County, New Hampshire",2347,230,79,1233,572,233,4556,945,873,420,1378,692,4308,2070,2064,129,4019,300,599,235,6682,4390,2271,1206,1065,7138,6971,6904,3630,3274,67,167,39,124,43,2291,46,61,82,71,180,604,457,551,136,103,79329,7,1400,2044,13,37,39,75,122,536,467,516,136,103,83567,29557,40,8,8,8,8,8,129,107,25,14,6,43,"Merrimack"]
["Bradford","06980","Bradford town, Merrimack County, New Hampshire",377,22,23,189,85,58,978,286,216,86,209,107,904,316,335,30,862,150,177,62,1375,822,542,281,261,1454,1422,1413,630,783,9,32,14,7,25,557,24,21,67,75,97,158,56,44,12,3,49018,7,1429,407,8,6,36,52,75,121,52,44,10,3,57083,22240,10,6,2,6,4,2,60,48,11,8,4,36,"Merrimack"]
["Canterbury","09860","Canterbury town, Merrimack County, New Hampshire",489,30,19,239,128,73,1402,335,262,110,333,276,1316,609,427,32,1244,131,202,64,1873,1339,532,275,257,1979,1939,1923,983,940,16,40,5,21,19,750,20,20,38,79,131,184,124,114,15,25,58026,10,770,595,7,11,20,56,91,170,108,100,15,17,62583,27374,12,7,0,4,4,0,49,35,4,8,8,21,"Merrimack"]
["Chichester","12420","Chichester town, Merrimack County, New Hampshire",550,33,25,281,135,76,1538,549,275,179,244,143,1390,387,509,32,1355,171,227,52,2099,1380,717,392,325,2236,2214,2194,1435,759,20,22,0,10,12,827,19,29,63,105,120,254,114,83,30,10,56741,10,2070,640,11,12,29,69,104,215,95,65,30,10,60333,24115,15,12,4,8,8,4,67,49,12,18,14,26,"Merrimack"]
["Concord","14200","Concord city, New Hampshire",10525,716,474,4437,2388,2510,27940,7845,6151,2182,5090,3487,24755,8577,8266,835,22423,3864,4826,2007,38356,18332,19530,11077,8453,40687,38950,38575,22061,16514,375,1737,672,787,950,16325,1198,998,2017,2191,3183,3552,1788,899,251,248,42447,564,2322,9748,402,427,814,970,1850,2585,1476,766,244,214,52418,21976,603,523,296,378,341,195,2980,2118,262,845,495,1311,"Merrimack"]
["Danbury","16980","Danbury town, Merrimack County, New Hampshire",254,7,25,103,88,31,750,306,142,40,97,37,622,134,243,23,643,114,140,50,1026,633,387,161,226,1071,1058,1054,610,444,4,13,0,9,4,435,32,28,51,77,88,91,49,13,4,2,38312,17,2665,313,19,13,27,61,69,73,38,9,2,2,40809,18339,28,17,10,11,9,7,118,87,13,28,15,39,"Merrimack"]
["Dunbarton","19460","Dunbarton town, Merrimack County, New Hampshire",523,44,22,282,94,81,1545,385,335,152,372,215,1459,587,465,30,1419,161,163,50,2049,1159,877,303,574,2226,2151,2131,1145,986,20,75,20,49,26,822,26,19,48,48,136,221,158,112,29,25,65081,5,4460,657,12,5,18,52,98,196,134,91,29,22,67448,27892,15,9,3,0,0,0,61,43,8,14,8,21,"Merrimack"]
["Epsom","24900","Epsom town, Merrimack County, New Hampshire",931,65,42,491,209,124,2822,967,548,342,493,140,2490,633,826,90,2394,504,442,189,3780,2349,1427,845,582,4021,3932,3932,2473,1459,0,89,5,61,28,1486,40,39,219,161,264,335,284,113,16,15,50685,56,2652,1098,21,0,132,120,167,287,254,92,10,15,56875,22026,21,16,4,11,11,4,121,81,14,33,29,50,"Merrimack"]
["Franklin","27380","Franklin city, New Hampshire",2020,163,133,961,541,222,5497,2017,1182,464,564,186,4413,750,1921,270,4696,1136,1150,492,7844,3981,3790,2033,1757,8405,8187,8126,5320,2806,61,218,89,127,91,3334,425,205,595,453,572,679,271,100,11,23,34613,240,2513,2213,110,59,451,325,344,601,230,70,0,23,41698,17155,198,165,80,125,118,52,1058,670,112,371,280,366,"Merrimack"]
["Henniker","35540","Henniker town, Merrimack County, New Hampshire",1765,49,85,553,278,800,2577,548,474,215,771,331,2339,1102,1288,127,2571,327,350,148,4209,2137,2015,777,1238,4433,4347,4269,1953,2316,78,86,18,56,30,1586,114,87,198,167,215,361,240,117,32,55,50288,20,695,1034,7,27,81,95,158,278,217,104,17,50,59527,24530,21,13,0,7,7,0,281,259,36,22,22,228,"Merrimack"]
["Hill","35860","Hill town, Merrimack County, New Hampshire",241,13,21,128,60,19,683,299,147,54,66,19,585,85,244,13,599,87,100,35,943,578,363,129,234,992,991,978,557,421,13,1,0,1,0,388,15,17,50,45,85,87,62,15,7,5,48333,11,900,278,8,0,26,35,70,68,50,11,8,2,50000,21004,8,3,0,3,3,0,41,35,0,3,3,26,"Merrimack"]
["Hooksett","37300","Hooksett town, Merrimack County, New Hampshire",3712,205,146,1400,620,1341,7484,2182,1390,858,1520,678,6628,2198,3009,247,6930,927,1053,499,10992,5797,5116,1366,3750,11721,11145,11081,6463,4618,64,576,186,403,173,4140,159,98,309,373,621,1022,822,594,102,40,61491,53,1278,3072,87,59,96,217,421,865,700,496,102,29,68673,24629,97,73,27,48,48,19,437,267,81,170,119,147,"Merrimack"]
["Hopkinton","37540","Hopkinton town, Merrimack County, New Hampshire",1457,97,50,765,297,248,3736,775,684,342,1008,749,3558,1757,1255,32,3138,430,717,256,5116,2909,2096,1127,969,5399,5210,5172,2324,2848,38,189,92,67,122,2084,60,68,165,157,385,491,300,251,85,122,59583,33,568,1560,7,23,56,115,280,406,275,210,78,110,69737,30753,11,11,7,11,11,7,97,55,17,25,21,61,"Merrimack"]
["Loudon","43380","Loudon town, Merrimack County, New Hampshire",1249,63,87,605,272,222,2952,1041,699,285,416,242,2683,658,1086,121,2716,334,374,150,4176,2868,1282,727,555,4481,4416,4408,2719,1689,8,65,25,33,32,1618,50,55,114,151,324,485,267,111,18,43,55185,15,1100,1277,32,27,63,104,246,423,237,95,13,37,59096,24673,53,47,5,35,35,5,270,155,26,110,104,67,"Merrimack"]
["New London","52100","New London town, Merrimack County, New Hampshire",1265,67,35,265,189,709,2770,313,512,185,1080,574,2664,1654,944,35,1839,158,1167,226,4008,2148,1813,440,1373,4116,3954,3942,1159,2783,12,162,29,84,78,1585,40,79,138,179,204,239,227,233,105,141,61520,30,2584,1095,10,11,44,101,131,184,188,201,90,135,82201,37556,16,5,0,5,5,0,81,67,17,14,14,36,"Merrimack"]
["Newbury","50900","Newbury town, Merrimack County, New Hampshire",432,19,13,219,97,84,1228,288,250,103,350,155,1146,505,357,29,984,86,285,79,1626,1035,562,194,368,1705,1597,1596,639,957,1,108,57,40,68,690,15,18,60,85,119,178,88,84,22,21,58026,2,200,492,0,4,34,51,87,144,79,61,17,15,61389,29521,0,0,0,0,0,0,30,30,0,0,0,30,"Merrimack"]
["Northfield","54260","Northfield town, Merrimack County, New Hampshire",1298,73,68,676,285,196,2923,1073,619,251,327,116,2386,443,1103,70,2721,449,402,146,4285,2397,1874,800,1074,4548,4463,4421,2838,1583,42,85,15,45,40,1704,111,56,194,261,369,430,189,82,0,12,44333,55,6688,1211,11,28,114,183,286,338,170,69,0,12,48787,18466,11,6,6,6,6,6,175,164,30,5,0,151,"Merrimack"]
["Pembroke","60020","Pembroke town, Merrimack County, New Hampshire",1951,121,79,922,459,370,4523,1562,933,481,689,275,3940,964,1674,254,4104,682,677,244,6455,3948,2459,1313,1146,6897,6837,6822,4124,2698,15,60,0,50,10,2660,208,83,239,364,452,652,455,174,16,17,49494,61,3035,1885,48,34,165,195,336,516,391,167,16,17,57106,20800,57,40,22,22,22,13,372,314,74,58,36,234,"Merrimack"]
["Pittsfield","61940","Pittsfield town, Merrimack County, New Hampshire",1008,82,75,553,203,95,2497,925,468,248,244,82,1967,326,988,132,2259,431,410,191,3664,2250,1363,779,584,3931,3818,3794,2411,1383,24,113,51,41,72,1496,146,107,201,221,302,256,165,52,19,27,38833,80,2626,1061,48,46,117,177,217,218,154,45,19,20,44233,21082,72,66,40,31,31,18,344,208,27,124,65,114,"Merrimack"]
["Salisbury","66980","Salisbury town, Merrimack County, New Hampshire",277,20,13,135,71,38,792,255,193,70,135,60,713,195,243,25,717,100,109,37,1069,727,332,229,103,1137,1121,1117,667,450,4,16,0,12,4,434,19,11,30,40,104,110,67,42,9,2,55000,7,2271,325,0,4,17,26,82,101,50,35,8,2,62321,23112,2,2,0,2,2,0,22,20,5,2,2,17,"Merrimack"]
["Sutton","75460","Sutton town, Merrimack County, New Hampshire",392,21,17,165,104,85,1113,283,255,102,225,146,1011,371,338,19,906,161,232,77,1478,1014,464,181,283,1541,1493,1471,681,790,22,48,8,24,24,613,30,13,54,83,118,159,83,51,20,2,50924,13,2185,461,8,7,33,60,81,142,69,43,18,0,56685,24432,13,11,5,8,8,5,77,50,11,27,22,30,"Merrimack"]
["Warner","78580","Warner town, Merrimack County, New Hampshire",767,40,41,350,132,204,1865,512,351,158,364,221,1606,585,628,52,1644,259,336,113,2610,1626,925,435,490,2760,2662,2651,1274,1377,11,98,32,48,50,1057,55,52,115,160,221,231,104,87,20,12,44142,28,2132,742,23,16,63,101,158,190,91,79,13,8,50926,21587,37,30,18,24,21,15,179,103,14,74,47,47,"Merrimack"]
["Webster","80020","Webster town, Merrimack County, New Hampshire",364,8,19,193,86,58,1092,433,229,94,189,66,1011,255,340,48,979,151,149,46,1475,997,478,351,127,1579,1559,1549,1028,521,10,20,5,15,5,590,26,18,51,58,101,197,92,35,7,5,54052,15,967,467,10,11,26,51,84,165,79,31,5,5,57396,20852,17,6,6,3,0,0,78,57,8,19,9,24,"Merrimack"]
["Wilmot","84900","Wilmot town, Merrimack County, New Hampshire",295,21,6,151,81,36,796,185,153,67,194,145,744,339,268,17,667,61,144,38,1079,653,424,210,214,1144,1110,1098,476,622,12,34,7,12,22,454,10,24,37,77,82,110,45,45,11,13,49605,8,150,326,3,6,16,55,57,85,40,40,11,13,57143,25629,6,6,6,3,3,3,50,32,2,17,7,20,"Merrimack"]
[]
[]
[]
[]
[]
[]
[]
[]
[]
[]
[]
[]
[]
[]
[]
[]
[]
[]
[]
[]
["Census 2000 DemoProfile Sample Data Table 4   -  DPTab4TownQry"]
[]
["TOWN_NAME","COUSUB","TotHousingUnits","1UnitDet","1UnitAtt","2Units","3to4Units","5to9Units","10to19Units","20orMoreUnits","MobileHomes","BoatRvVan","SingleFamilyUnits","MultiFamUnits","MobileHomeUnits","YearBuilt99to00","YearBuilt95to98","YearBUilt90to94","YearBuilt80to89","YearBuilt70to79","YearBuilt60to69","YearBuilt40to59","YearBuilt39orEarlier","Rooms1","Rooms2","Rooms3","Rooms4","Rooms5","Rooms6","Rooms7","Rooms8","Rooms9orMore","MedianRooms","OccHU1","YrHHMvdIn99to00","YrHHMvdIn95to98","YrHHMvdIn90to94","YrHHMvdIn80to89","YrHHMvdIn70to79","YrHHMvdIn69orBefore","HeatFuelNatGas","HeatFuelBotGas","HeatFuelElectric","HeatFuelOil","HeatFuelCoal","HeatFuelWood","HeatFuelSolar","HeatFuelOther","HeatFuelNone","LackCompPlumb","LackCompKit","NoTelephone","OccHU","OccPerRm1orLess","OccPerRm1to1_5","OccPerRm1_5orMore","SpecOwnOccUnits","Value<50K","Value50to100K","Value100to150K","Value150to200K","Value200to300K","Value300to500K","Value500Kto1mil","Value1MilorMore","MedianValue","WithMortg","MnthOwnCst<300","MnthOwnCst300to500","MnthOwnCst500to700","MnthOwnCst700to1000","MnthOwnCst1000to1500","MnthOwnCst1500to2000","MnthOwnCst2000orMore","MediMnthOwnCst","NotMrtg","NotMrtgMediMnthOwnCst","OwnCst%HHInc<15","OwnCst%HHInc15to20","OwnCst%HHInc20to25","OwnCst%HHInc25to30","OwnCst%HHInc30to35","OwnCst%HHInc35orMor","NotComputed","SpecRntOccUnits","Rnt<200","Rnt200to300","Rnt300to500","Rnt500to750","Rnt750to1000","Rnt1000to1500","Rnt1500orMore","NoRent","MedianRent","Rnt%HHInc<15","Rnt%HHInc15to20","Rnt%HHInc20to25","Rnt%HHInc25to30","Rnt%HHInc30to35","Rnt%HHInc35orMore","Rnt%NotCompute","CNTY_NAME"]
["Allenstown","00660",1962,829,42,136,116,193,6,14,626,0,829,507,626,81,159,75,338,596,258,196,259,0,73,162,419,634,336,197,51,90,5,1902,432,448,247,389,213,173,254,192,161,1233,6,56,0,0,0,15,8,15,1902,1850,45,7,735,14,390,247,63,21,0,0,0,97900,510,0,7,41,179,250,26,7,1041,225,409,201,214,125,63,48,84,0,536,33,14,101,232,91,43,0,22,597,88,89,91,36,69,141,22,"Merrimack"]
["Andover","01460",1038,871,12,25,25,9,2,0,92,2,871,73,94,14,45,54,166,131,78,178,372,15,16,46,180,221,209,170,83,98,5.7,823,67,238,122,192,113,91,2,107,0,595,0,119,0,0,0,9,7,7,823,815,6,2,445,3,199,170,47,22,4,0,0,105500,317,0,7,20,131,122,33,4,1002,128,355,132,79,72,52,20,86,4,123,0,0,22,56,13,12,0,20,590,24,18,11,21,6,23,20,"Merrimack"]
["Boscawen","06260",1295,775,18,87,131,32,26,0,226,0,775,294,226,9,99,70,233,219,177,144,344,0,47,95,280,293,248,148,103,81,5.3,1260,193,341,198,238,135,155,169,167,113,757,7,47,0,0,0,0,0,7,1260,1235,19,6,643,24,289,283,41,6,0,0,0,101100,454,9,0,43,169,182,45,6,1013,189,352,177,116,119,93,35,103,0,312,0,23,56,171,34,10,9,9,567,46,28,61,19,46,103,9,"Merrimack"]
["Bow","06500",2330,2301,11,0,12,0,0,0,6,0,2301,23,6,34,214,163,666,549,367,164,173,0,6,10,77,189,415,655,443,535,7.2,2304,144,666,423,560,331,180,353,240,156,1483,0,72,0,0,0,0,0,12,2304,2298,6,0,2053,0,128,585,635,581,124,0,0,169400,1633,0,11,17,195,669,529,212,1451,420,411,648,427,404,282,74,208,10,110,0,0,0,74,36,0,0,0,720,36,30,0,15,0,29,0,"Merrimack"]
["Bradford","06980",762,673,7,15,24,12,9,0,22,0,673,67,22,3,19,40,96,117,99,96,292,13,13,53,153,146,146,82,82,74,5.5,559,73,158,76,146,67,39,4,106,27,339,2,79,2,0,0,7,2,2,559,554,3,2,283,19,95,100,48,16,5,0,0,110600,208,0,10,9,70,91,24,4,1075,75,427,72,64,40,39,16,47,5,99,0,0,27,37,28,5,0,2,634,16,14,13,9,11,31,5,"Merrimack"]
["Canterbury","09860",838,793,7,23,0,3,0,0,12,0,793,33,12,11,41,64,206,135,112,98,171,0,22,22,83,186,172,147,101,105,6.1,749,65,155,156,224,93,56,22,125,24,460,0,108,10,0,0,2,2,4,749,743,6,0,397,4,81,180,92,40,0,0,0,132900,309,0,4,18,94,129,48,16,1117,88,383,127,92,86,34,16,42,0,55,2,7,7,14,7,2,5,11,617,0,6,14,7,7,8,13,"Merrimack"]
["Chichester","12420",849,707,15,26,19,0,0,0,82,0,707,60,82,32,49,59,208,159,61,58,223,0,14,25,104,173,222,132,89,90,6,823,112,194,147,183,101,86,2,99,18,617,0,79,6,2,0,9,7,0,823,815,8,0,500,6,143,226,95,24,6,0,0,120000,375,0,7,30,115,172,47,4,1079,125,401,163,105,109,37,26,60,0,81,0,0,14,47,2,8,0,10,575,29,9,15,6,6,6,10,"Merrimack"]
["Concord","14200",16881,6874,662,1720,1621,1506,1231,2200,1067,0,6874,8940,1067,153,402,927,3529,2385,1606,1945,5934,310,595,2216,3896,3134,2648,1960,1066,1056,5,16281,3627,5455,2540,2169,1163,1327,7425,764,2861,4765,0,166,0,269,31,37,110,231,16281,16026,160,95,6068,79,2257,2416,741,400,151,24,0,112300,4338,7,49,290,1098,1993,574,327,1150,1730,464,1891,1191,1063,718,430,747,28,7872,321,406,1292,3411,1761,390,125,166,647,1346,1502,1310,891,564,2018,241,"Merrimack"]
["Danbury","16980",596,494,7,6,19,0,0,0,64,6,494,32,70,11,31,32,148,117,74,57,126,9,22,31,99,171,154,33,61,16,5.3,435,59,118,62,112,37,47,3,101,5,251,0,75,0,0,0,12,5,14,435,430,3,2,237,17,157,54,9,0,0,0,0,85300,165,0,8,39,62,45,9,2,926,72,332,70,51,47,22,8,34,5,50,0,3,13,14,12,2,0,6,650,7,6,6,0,5,20,6,"Merrimack"]
["Dunbarton","19460",858,801,15,9,17,0,0,0,16,0,801,41,16,22,124,77,163,138,61,99,174,3,8,23,80,136,221,186,109,92,6.3,814,97,270,141,180,63,63,0,99,17,610,0,88,0,0,0,2,2,2,814,808,6,0,517,2,95,169,177,60,14,0,0,148300,414,0,10,27,89,203,66,19,1159,103,386,182,104,72,57,45,57,0,53,0,0,10,24,2,9,0,8,709,10,9,19,2,2,3,8,"Merrimack"]
["Epsom","24900",1592,1069,25,92,29,8,20,13,326,10,1069,187,336,67,101,129,424,370,112,128,261,23,30,107,318,325,300,254,126,109,5.5,1491,211,490,252,320,177,41,0,254,72,1061,0,96,0,8,0,6,0,21,1491,1484,7,0,807,23,213,427,109,28,0,7,0,115400,653,0,21,58,234,266,67,7,1025,154,353,279,113,220,106,33,51,5,264,28,8,54,98,40,28,0,8,594,65,33,66,21,21,50,8,"Merrimack"]
["Franklin","27380",3676,2090,51,394,321,233,236,176,175,0,2090,1411,175,70,35,124,483,394,305,753,1512,6,131,529,715,613,748,408,243,283,5.2,3319,651,1029,478,547,228,386,774,249,271,1960,0,45,0,11,9,54,27,126,3319,3224,88,7,1587,99,1147,287,45,9,0,0,0,82900,1112,0,17,104,506,414,71,0,967,475,385,427,334,305,173,96,252,0,1390,131,196,289,552,148,37,0,37,524,225,217,147,222,78,435,66,"Merrimack"]
["Henniker","35540",1679,1064,60,98,143,156,41,16,94,7,1064,514,101,20,65,115,417,345,105,111,501,18,74,168,271,322,264,280,121,161,5.5,1585,268,423,258,336,206,94,36,362,124,816,10,232,0,0,5,27,7,18,1585,1557,22,6,708,16,250,243,151,19,22,7,0,113300,591,0,0,38,94,306,110,43,1211,117,497,168,118,110,151,47,101,13,464,38,16,102,161,69,51,0,27,588,72,67,85,95,31,81,33,"Merrimack"]
["Hill","35860",436,364,17,5,0,0,0,0,50,0,364,22,50,8,17,31,68,79,34,93,106,0,2,27,83,76,112,66,25,45,5.8,382,53,78,69,96,55,31,0,41,3,271,0,67,0,0,0,7,0,8,382,374,6,2,212,6,135,54,11,2,2,2,0,88500,165,0,12,36,63,47,5,2,827,47,316,72,39,26,24,9,40,2,37,0,0,0,11,7,3,0,16,696,4,0,11,0,6,0,16,"Merrimack"]
["Hooksett","37300",4307,2641,431,274,245,81,17,352,266,0,2641,1400,266,127,341,346,1232,790,520,455,496,17,111,209,632,934,966,789,503,146,5.8,4147,637,1390,656,780,370,314,1161,284,191,2375,9,67,0,35,25,41,8,9,4147,4093,39,15,2658,6,449,1155,672,343,26,7,0,135700,2128,0,14,93,376,1097,402,146,1227,530,440,836,587,403,414,160,250,8,841,26,22,84,455,125,81,0,48,643,170,153,146,42,44,227,59,"Merrimack"]
["Hopkinton","37540",2210,1829,44,96,34,49,0,35,123,0,1829,258,123,60,193,140,465,343,209,228,572,0,29,93,163,335,550,355,298,387,6.4,2084,259,595,314,517,249,150,18,394,103,1457,0,100,0,12,0,7,12,0,2084,2078,6,0,1350,26,255,423,256,271,113,6,0,146400,965,0,7,34,210,331,227,156,1372,385,517,463,227,202,165,71,215,7,264,0,25,60,84,48,25,6,16,621,80,17,32,36,10,73,16,"Merrimack"]
["Loudon","43380",1684,1306,13,53,29,13,0,0,270,0,1306,108,270,55,103,150,536,227,131,146,336,0,8,72,188,473,367,263,160,153,5.8,1611,179,343,325,462,159,143,59,336,27,1025,6,152,0,6,0,0,0,0,1611,1605,6,0,922,6,311,469,104,32,0,0,0,114800,732,0,6,64,257,332,66,7,1039,190,362,256,183,217,80,59,120,7,138,0,0,20,59,18,5,0,36,588,46,17,0,7,0,32,36,"Merrimack"]
["New London","52100",2085,1636,179,51,53,72,0,88,0,6,1636,443,6,67,196,127,476,279,210,270,460,6,68,114,168,309,443,403,264,310,6.4,1574,323,354,263,360,141,133,33,321,117,1033,8,62,0,0,0,0,0,6,1574,1559,0,15,979,6,21,132,284,338,112,74,12,215500,488,0,6,13,88,136,133,112,1502,491,529,370,161,137,114,16,176,5,277,8,22,61,120,17,0,9,40,546,31,49,28,61,0,68,40,"Merrimack"]
["Newbury","50900",1313,1261,30,7,4,0,0,0,11,0,1261,41,11,24,76,90,245,249,124,215,290,3,20,79,192,262,317,181,132,127,5.8,694,109,186,117,165,57,60,4,194,24,380,2,85,0,5,0,2,1,0,694,694,0,0,495,2,109,156,104,63,38,15,8,143200,354,0,6,42,93,125,58,30,1122,141,396,148,88,89,62,47,61,0,83,0,0,9,24,27,11,2,10,775,14,8,18,8,7,18,10,"Merrimack"]
["Northfield","54260",1782,1081,46,96,92,136,14,107,210,0,1081,491,210,12,60,143,481,344,144,194,404,9,49,62,507,418,347,181,98,111,5.0999999999999996,1706,373,372,266,389,216,90,261,243,126,963,0,106,0,0,7,0,6,15,1706,1667,22,17,801,14,489,258,27,7,6,0,0,93100,640,0,22,66,257,229,66,0,972,161,406,207,205,125,98,54,112,0,548,35,23,27,337,67,13,0,46,595,70,73,116,74,65,97,53,"Merrimack"]
["Pembroke","60020",2734,1578,132,225,267,260,18,108,146,0,1578,1010,146,23,46,81,638,521,260,305,860,8,95,285,391,535,429,433,275,283,5.6,2661,328,741,421,695,226,250,519,341,183,1484,8,88,0,29,9,0,0,0,2661,2615,29,17,1471,8,440,802,190,31,0,0,0,112500,1140,0,0,54,279,593,158,56,1153,331,464,351,317,292,148,120,226,17,853,38,19,197,430,122,19,0,28,562,160,102,193,88,75,207,28,"Merrimack"]
["Pittsfield","61940",1569,878,15,101,137,135,53,132,118,0,878,573,118,40,72,94,321,159,51,134,698,10,74,177,274,324,283,178,44,205,5.3,1498,258,468,228,234,142,168,105,286,42,966,0,99,0,0,0,10,10,46,1498,1474,24,0,604,26,328,183,48,12,0,7,0,92900,438,0,8,24,131,227,20,28,1089,166,468,161,121,67,50,67,138,0,573,36,34,184,224,68,7,0,20,516,74,65,84,144,19,167,20,"Merrimack"]
["Salisbury","66980",514,481,5,10,1,0,0,0,17,0,481,16,17,7,27,25,133,80,62,43,137,2,7,23,77,117,124,57,54,53,5.8,435,62,98,56,127,55,37,2,57,8,271,0,94,0,3,0,2,0,2,435,431,4,0,272,4,127,102,33,6,0,0,0,101500,223,0,9,35,72,86,21,0,984,49,320,81,52,44,33,18,42,2,14,0,0,1,4,6,0,0,3,813,3,2,0,0,2,4,3,"Merrimack"]
["Sutton","75460",824,766,13,30,2,0,0,0,13,0,766,45,13,6,13,58,180,123,75,128,241,25,16,73,106,161,161,133,70,79,5.7,618,69,112,108,200,81,48,7,150,16,340,0,101,4,0,0,11,7,4,618,609,7,2,388,9,100,145,64,43,19,8,0,122100,286,0,8,30,96,106,38,8,1032,102,448,108,60,57,61,27,75,0,81,0,2,9,27,21,12,0,10,719,11,22,7,8,2,19,12,"Merrimack"]
["Warner","78580",1228,921,8,41,58,39,12,15,134,0,921,173,134,17,58,108,207,137,114,123,464,16,34,129,235,234,235,108,113,124,5.4,1048,137,284,174,293,87,73,4,206,30,667,11,117,4,7,2,12,5,15,1048,1024,18,6,496,26,168,188,71,30,11,0,2,112700,341,0,6,39,126,116,30,24,999,155,401,177,85,74,52,30,73,5,225,17,6,54,85,22,24,0,17,573,40,35,28,27,15,63,17,"Merrimack"]
["Webster","80020",672,614,8,0,4,0,0,0,43,3,614,12,46,9,57,53,126,125,126,70,106,3,2,39,74,174,153,101,62,64,5.8,581,53,167,82,146,70,63,2,120,6,358,0,95,0,0,0,10,4,4,581,579,2,0,364,5,146,149,49,15,0,0,0,108200,276,0,3,27,93,115,36,2,1049,88,400,88,91,77,46,29,29,4,38,0,2,4,16,7,4,0,5,629,13,0,5,4,3,6,7,"Merrimack"]
["Wilmot","84900",530,470,8,17,8,12,0,0,15,0,470,45,15,6,29,46,119,69,51,43,167,10,18,26,60,78,136,78,66,58,6,459,59,119,74,124,57,26,0,110,2,317,0,30,0,0,0,5,5,4,459,458,0,1,270,2,41,114,36,59,13,5,0,141300,196,0,3,13,58,82,28,12,1122,74,446,62,55,29,30,27,67,0,56,0,0,12,26,0,10,0,8,575,11,2,3,9,6,17,8,"Merrimack"]
[]
[]
[]
[]
[]
[]
[]
[]
[]
[]
[]
[]
[]
[]
[]
[]
[]
[]
[]
[]
[]
[]
["Census 2000 SummaryFile3 Sample Data  -  SF3TownQry1SocialChar"]
[]
["TOWN_NAME","LOGRECNO","COUSUB","P01TotalPopulation","P02SampleCountOfPop","P03Pop100pctCount","P05UrbanPopulation","P05RuralPopulation","P06WhiteAlone","P06BlackOrAfAm","P06AmIndAlone","P06AsianAlone","P06HawaiianOrPI","P06OtherRace","P06TwoPlusRaces","P07NotHispanicOrLatino","P07HispanicOrLatino","P08MalePop","P08FemalePop","P09PopInHouseholds","P09PopInFamHH","P09PopInNonFamHH","P09PopInGroupQtr","P13TotalHH","P13FamilyHH","P13FamHHolder15to24yrs","P13FamHHolder25to34yrs","P13FamHHolder35to44yrs","P13FamHHolder45to54yrs","P13FamHHolder55to64yrs","P13FamHHolder65to74yrs","P13FamHHolder75to84yrs","P13FamHHolder85yrsOver","P13NonFamilyHH","P13NonFamHHolder15to24yrs","P13NonFamHHolder25to34yrs","P13NonFamHHolder35to44yrs","P13NonFamHHolder45to54yrs","P13NonFamHHolder55to64yrs","P13NonFamHHolder65to74yrs","P13NonFamHHolder75to84yrs","P13NonFamHHolder85yrsOver","P18Pop15yrsOver","P18MaritalStatNeverMarried","P18MaritalStatNowMarried","P18MaritalStatSeparated","P18MaritalStatWidowed","P18MaritalStatWidowFemale","P18MaritalStatDivorced","P18MaritalStatDivorcedFemale","P21NativeBornPop","P21NatPopBornInState","P21NatPopBornOtherState","P021005","P021006","P021007","P021008","P21NatPopBornOutUS","P21ForeignBornPop","P021014","P021015","P24Pop5YrsPlus","P24ResSameHouseIn95","P24ResDiffHouseIn95","P24ResDiffHouseInUSIn95","P24ResDiffHouseSameCountyIn95","P24ResDiffHouseDiffCountyIn95","P24ResDiffHouseDiffCntySamStIn95","P24ResDiffHouseDiffCntyDifStIn95","P24ResDiffHouseDiffCntyNEStIn95","P24ResDiffHouseDiffCntyMWStIn95","P24ResDiffHouseDiffCntySoStIn95","P24ResDiffHouseDiffCntyWstStIn95","P24ResDiffInPR","P24ResDiffElsewhereIn95","P26Workers16yrsOver","P26WorkedInState","P26WorkedInCnty","P26WorkedOutsideCnty","P26WorkedOutsideState","P30Workers16Over","P30TranspToWrkCar","P30TranspToWrkPublic","P30TranspToWrkOther","P30WrkdAtHome","P31WrkrsNotWrkAtHom","P31TravTim<5min","P31TravTim5to9Min","P31TravTim10to14Min","P31TravTim15to19Min","P31TravTim20to24Min","P31TravTim25to29Min","P31TravTim30to34Min","P31TravTim35to39Min","P31TravTim40to44Min","P31TravTim45to59Min","P31TravTim60to89Min","P31TravTim90MinMore","P31WorkAtHome","P36SchEnrlPop3yrOver","P36NurserSchEnrl","P36KinderSchEnrl","P36ElemSchEnrl","P36HighSchEnrl","P36CollGradSchEnrl","P37Pop25yrsOver","P37EduAtain<9grd","P37EduAtainHSnoDip","P37EduAtainHSgrad","P37EduAtainCollNoDeg","P37EduAtainAssocDeg","P37EduAtainBachDeg","P37EduAtainGradProfDeg","P42NIPop5to15","P42NIPop5to15wDisabl","P42NIPop16to20","P42NIPop16to20wDisab","P42NIPop16to20wDisEmp","P42NIPop16to21NoDis","P42NIPop16to21NoDisEmpl","P42NIPop21to64","P42NIPop21to64wDis","P42NIPop21to64wDisEmp","P42NIPop21to64NoDis","P42NIPop21to64NoDisEmp","P42NIPop65to74","P42NIPop65to74wDis","P42NIPop75Over","P42NIPop75OverwDis","P43Pop16YrsOver","P43Pop16OvrInLaborForce","P43Pop16OvrCivlLabFrc","P43Pop16OvrCivlLbrFrcEmp","P48Families","P48MarriedFam","P48MarrFamNoWorkers","P48MarrFam1Worker","P48MarrFam2Worker","P48MarrFamHusbWifeWorked","P48MarrFamOther","P48MarrFam3PlusWorker","P48MarrFam3WorkHsbWif","P48MarrFam3PlsWrkOther","P48OtherFam","P48MaleHHNoWif","P48MaleHHNoWifNoWorker","P48MaleHHNoWif1Worker","P48MaleHHNoWif2Worker","P48MaleHHNoWif3PlusWorker","P48FemaleHHNoHsb","P48FemaleHHNoHsbNoWorker","P48FemaleHHNoHsb1Worker","P48FemaleHHNoHsb2Worker","P48FemaleHHNoHsb3Worker","P49EmpCivPop16YrOver","P49IndustAgricult","P49IndustConst","P49IndustMnftg","P49IndustWhlslTrd","P49IndustRtlTrd","P49IndustTrspWrhsUtlt","P49IndustInfrm","P49IndustFinInsRE","P49IndustPrfsScntfMngmt","P49IndustEduHlthSocSrv","P49IndustArtsEntRec","P49IndustOthrSrvc","P49IndustPubAdm","P50OccupMngmtProfs","P50OccupService","P50OccupSalesOff","P50OccupFarmFishForest","P50OccupConstExtrctMaint","P50OccupPrdctTrnspMatMv"]
["Allenstown","0002575","00660",4843,707,4843,2951,1892,4695,44,7,0,0,16,81,4812,31,2344,2499,4808,4014,794,35,1901,1277,29,259,413,305,121,105,36,9,624,17,99,89,91,101,96,83,48,3705,820,2029,66,311,275,479,245,4727,2983,1706,1484,89,62,71,38,116,72,44,4524,2494,2030,1996,875,1121,900,221,121,16,63,21,0,34,2647,2582,1592,990,65,2647,2537,0,642,74,2573,65,113,213,366,591,167,486,80,63,226,144,59,74,4676,89,44,682,302,111,3202,323,323,1283,755,207,219,92,882,115,256,25,25,231,190,2853,577,425,2276,1964,267,99,239,120,3615,2731,2731,2664,1277,998,107,197,552,533,19,142,124,18,279,102,0,72,27,3,177,4,97,37,39,2664,21,327,506,71,470,46,52,227,191,362,112,90,189,581,376,794,8,417,488]
["Andover","0002590","01460",2109,966,2109,0,2109,2052,25,0,2,0,0,30,2090,19,1057,1052,2095,1826,269,14,814,600,5,107,144,159,94,60,27,4,214,9,13,37,52,34,34,24,11,1696,362,1053,13,88,69,180,81,2062,1190,864,655,86,83,40,8,47,23,24,1978,1250,728,706,450,256,104,152,104,0,14,34,0,22,1140,1107,871,236,33,1140,1024,4,10,62,1078,70,85,115,141,146,70,127,69,72,124,53,6,62,2025,42,14,228,134,69,1468,58,150,496,289,108,222,145,313,24,138,8,3,130,80,1255,168,105,1087,935,156,52,113,57,1665,1210,1207,1161,600,509,43,78,317,313,4,71,71,0,91,34,0,23,11,0,57,10,24,19,4,1161,11,123,150,40,138,32,20,73,67,299,78,68,62,341,169,304,8,190,149]
["Boscawen","0002596","06260",3672,553,3672,1284,2388,3588,23,0,11,25,12,13,3630,42,1731,1941,3242,2812,430,430,1251,908,21,161,243,222,142,58,37,24,343,8,27,112,36,47,61,33,19,2901,548,1657,93,261,204,342,158,3538,2232,1273,978,114,90,91,33,134,37,97,3464,2077,1387,1312,842,470,191,279,94,19,115,51,0,75,1724,1706,1479,227,18,1724,1665,0,9,40,1684,118,187,160,323,346,208,155,27,56,47,47,10,40,3527,21,53,453,103,123,2549,232,302,956,438,226,327,68,598,63,150,22,0,128,123,1911,370,222,1541,1325,207,79,168,86,2866,1776,1776,1741,908,698,37,172,408,394,14,81,73,8,210,59,6,43,10,0,151,23,68,38,22,1741,19,135,327,51,248,61,21,122,124,336,57,51,189,460,221,479,13,181,387]
["Bow","0002606","06500",7138,773,7138,2818,4320,6998,10,0,70,0,7,53,7111,27,3549,3589,7138,6822,316,0,2291,2044,0,166,722,600,344,165,34,13,247,0,9,17,91,25,73,22,10,5237,981,3793,17,235,199,211,115,6971,3630,3274,2363,292,365,254,67,167,124,43,6682,4390,2292,2271,1206,1065,432,633,328,96,59,150,0,21,3654,3492,2501,991,162,3654,3431,0,7,216,3438,21,237,652,733,621,210,349,67,75,212,173,88,216,6939,230,79,1233,572,233,4556,54,194,945,873,420,1378,692,1614,116,450,13,0,437,177,4019,300,171,3719,3261,376,99,223,136,5068,3762,3762,3717,2044,1857,103,311,1203,1102,101,240,240,0,187,45,0,28,17,0,142,24,97,8,13,3717,9,220,381,121,402,125,96,506,464,938,70,131,254,1921,259,1028,21,212,276]
["Bradford","0002617","06980",1454,711,1454,0,1454,1412,8,7,5,0,4,18,1446,8,729,725,1433,1242,191,21,557,407,8,52,105,124,43,57,13,5,150,5,18,15,38,27,31,11,5,1155,267,694,15,55,45,124,74,1422,630,783,605,67,77,34,9,32,7,25,1375,822,553,542,281,261,156,105,50,3,39,13,0,11,813,773,631,142,40,813,731,0,8,56,757,24,49,44,101,114,64,83,52,38,103,44,41,56,1409,22,23,189,85,58,978,14,60,286,216,86,209,107,247,17,88,13,9,75,49,862,150,101,712,619,122,35,55,27,1128,851,850,821,407,334,30,59,179,171,8,66,63,3,73,16,0,16,0,0,57,8,26,20,3,821,14,97,82,21,103,17,6,58,65,171,83,29,75,259,123,199,4,117,119]
["Canterbury","0002622","09860",1979,933,1979,2,1977,1950,5,2,12,0,0,10,1973,6,958,1021,1976,1772,204,3,750,595,3,57,138,217,104,44,30,2,155,2,9,34,38,34,16,18,4,1586,312,1045,25,62,55,142,74,1939,983,940,731,65,96,48,16,40,21,19,1873,1339,534,532,275,257,118,139,83,4,52,0,0,2,1119,1071,854,217,48,1119,973,2,12,113,1006,25,52,91,138,236,92,141,17,65,64,46,39,113,1901,30,19,239,128,73,1402,33,53,335,262,110,333,276,320,10,107,22,7,85,43,1244,131,79,1113,976,108,17,94,47,1553,1174,1174,1147,595,510,41,74,335,322,13,60,57,3,85,26,1,19,6,0,59,0,37,22,0,1147,35,76,122,40,106,18,30,94,138,250,54,59,125,548,127,277,8,94,93]
["Chichester","0002629","12420",2236,976,2236,0,2236,2212,0,2,3,0,0,19,2226,10,1132,1104,2228,1992,236,8,827,640,6,107,197,176,67,61,18,8,187,0,19,27,40,22,55,11,13,1740,317,1174,7,102,78,140,64,2214,1435,759,613,30,87,29,20,22,10,12,2099,1380,719,717,392,325,186,139,113,2,15,9,0,2,1262,1217,962,255,45,1262,1158,9,17,56,1206,39,88,201,176,208,77,157,38,41,107,39,35,56,2154,33,25,281,135,76,1538,29,119,549,275,179,244,143,380,19,129,13,8,116,76,1355,171,108,1184,1046,149,19,78,33,1719,1289,1289,1272,640,559,52,87,319,309,10,101,95,6,81,29,0,17,10,2,52,4,29,17,2,1272,22,120,152,61,161,41,35,107,77,228,58,75,135,430,151,383,11,157,140]
["Concord","0002635","14200",40687,5411,40687,34538,6149,38838,487,43,564,0,97,658,40334,353,20149,20538,37410,29355,8055,3277,16325,9748,303,1734,2771,2238,1156,847,547,152,6577,533,1256,1075,1085,717,694,785,432,32995,9209,16520,515,2570,2147,4181,2443,38950,22061,16514,12001,1568,1708,1237,375,1737,787,950,38356,18332,20024,19530,11077,8453,3976,4477,2547,189,1087,654,6,488,20045,19466,15864,3602,579,20045,18272,245,95,618,19427,896,3328,4223,3641,2061,789,1682,451,433,891,555,477,618,39312,716,474,4437,2388,2510,27940,1064,2121,7845,6151,2182,5090,3487,5920,509,2346,326,182,2020,1126,22423,3864,2376,18559,16070,2258,717,2568,1290,32362,21145,21118,20337,9748,7325,912,1126,4222,4095,127,1065,1021,44,2423,479,46,319,86,28,1944,220,1182,469,73,20337,86,1138,2062,736,2736,493,480,1707,1975,4930,1119,1186,1689,8010,2857,5697,8,1640,2125]
["Danbury","0002701","16980",1071,465,1071,0,1071,1059,0,0,4,0,0,8,1064,7,557,514,1071,912,159,0,435,313,12,31,94,78,44,36,13,5,122,5,11,25,24,21,16,10,10,876,186,528,8,51,42,103,45,1058,610,444,353,32,42,17,4,13,9,4,1026,633,393,387,161,226,119,107,63,2,15,27,0,6,532,503,291,212,29,532,502,0,7,18,514,10,30,43,76,66,22,75,21,28,77,32,34,18,1046,7,25,103,88,31,750,39,89,306,142,40,97,37,160,12,83,11,6,72,32,643,114,61,529,440,87,16,53,34,866,581,581,561,313,260,25,72,133,126,7,30,28,2,53,14,0,12,2,0,39,6,22,11,0,561,7,60,146,8,69,26,5,15,24,89,53,33,26,163,86,89,5,76,142]
["Dunbarton","0002706","19460",2226,963,2226,0,2226,2194,0,13,4,0,2,13,2214,12,1124,1102,2226,1997,229,0,822,657,5,100,244,141,98,57,12,0,165,2,10,33,57,26,13,18,6,1706,265,1235,16,54,43,136,80,2151,1145,986,739,95,98,54,20,75,49,26,2049,1159,890,877,303,574,410,164,85,14,30,35,0,13,1280,1201,575,626,79,1280,1180,8,2,83,1197,30,9,69,143,273,177,193,46,48,103,62,44,83,2137,44,22,282,94,81,1545,20,66,385,335,152,372,215,370,18,95,12,6,83,35,1419,161,119,1258,1098,115,31,48,19,1679,1308,1306,1282,657,614,19,131,396,377,19,68,65,3,43,16,0,13,3,0,27,0,19,2,6,1282,15,93,180,66,136,47,49,94,142,267,38,47,108,545,93,349,11,128,156]
["Epsom","0002712","24900",4021,631,4021,0,4021,3993,11,0,0,0,0,17,4021,0,1892,2129,3903,3399,504,118,1486,1098,10,198,317,249,145,120,35,24,388,18,35,78,121,54,23,45,14,3181,559,2126,14,100,86,382,199,3932,2473,1459,1090,122,151,96,0,89,61,28,3780,2349,1431,1427,845,582,287,295,57,29,128,81,0,4,2112,2040,1551,489,72,2112,2000,9,0,46,2066,63,106,174,405,370,156,266,96,98,175,99,58,46,3890,65,42,491,209,124,2822,87,245,967,548,342,493,140,653,51,173,39,28,134,61,2394,504,368,1890,1599,279,114,163,75,3127,2193,2193,2124,1098,948,111,155,548,527,21,134,131,3,150,29,0,24,0,5,121,23,57,21,20,2124,18,147,266,87,297,141,31,223,155,372,101,99,187,663,214,709,0,251,287]
["Franklin","0002721","27380",8405,957,8405,6934,1471,8042,31,61,85,0,57,129,8205,200,4131,4274,8187,6770,1417,218,3334,2213,121,390,588,519,216,228,132,19,1121,79,152,134,139,216,213,157,31,6649,1567,3426,124,536,417,996,601,8187,5320,2806,2141,162,297,206,61,218,127,91,7844,3981,3863,3790,2033,1757,1034,723,376,10,204,133,0,73,3873,3855,2603,1252,18,3873,3645,7,14,85,3788,262,759,542,392,259,300,632,130,129,149,168,66,85,8051,163,133,961,541,222,5497,405,679,2017,1182,464,564,186,1315,126,606,144,38,462,255,4696,1136,500,3560,3004,600,216,550,276,6529,4300,4300,3949,2213,1550,190,341,758,743,15,261,255,6,663,170,5,112,45,8,493,45,311,125,12,3949,36,276,950,98,629,130,56,223,146,847,224,131,203,919,575,1115,20,410,910]
["Henniker","0002743","35540",4433,624,4433,0,4433,4287,55,0,34,0,0,57,4410,23,2251,2182,3998,3245,753,435,1586,1034,37,119,300,366,118,48,38,8,552,88,53,91,89,81,45,83,22,3551,1071,1950,20,181,160,329,167,4347,1953,2316,1576,258,232,250,78,86,56,30,4209,2137,2072,2015,777,1238,557,681,375,96,107,103,0,57,2270,2232,1520,712,38,2270,1971,10,11,128,2142,246,377,183,157,171,261,235,61,129,159,93,70,128,4291,49,85,553,278,800,2577,71,167,548,474,215,771,331,747,65,541,62,51,479,219,2571,327,178,2244,1780,146,48,204,100,3462,2625,2625,2330,1034,827,27,200,472,472,0,128,110,18,207,49,7,15,27,0,158,24,82,28,24,2330,12,167,217,106,354,82,46,134,232,571,185,52,172,928,307,658,5,192,240]
["Hill","0002754","35860",992,450,992,0,992,986,4,0,2,0,0,0,989,3,502,490,992,845,147,0,388,278,0,50,72,78,42,25,8,3,110,8,6,19,26,16,16,16,3,783,171,470,10,28,17,104,67,991,557,421,322,25,45,29,13,1,1,0,943,578,365,363,129,234,186,48,28,0,10,10,0,2,549,529,312,217,20,549,526,0,5,12,537,13,27,23,75,65,35,72,22,32,99,45,29,12,969,13,21,128,60,19,683,18,80,299,147,54,66,19,176,8,68,5,5,63,42,599,87,50,512,454,56,17,44,18,767,574,574,562,278,233,21,33,149,144,5,30,30,0,45,19,0,7,12,0,26,7,16,3,0,562,17,81,128,9,69,30,2,36,42,72,30,21,25,120,78,144,2,109,109]
["Hooksett","0002759","37300",11721,1215,11721,7990,3731,11223,127,24,255,0,0,92,11671,50,5858,5863,10855,9498,1357,866,4140,3072,56,502,993,705,415,221,135,45,1068,20,150,226,275,137,150,95,15,9300,2002,5879,65,438,375,916,450,11145,6463,4618,3766,431,373,48,64,576,403,173,10992,5797,5195,5116,1366,3750,2415,1335,921,182,121,111,0,79,6285,5770,2026,3744,515,6285,5706,103,1046,224,6061,191,525,793,1053,1210,513,670,112,144,305,364,181,224,11323,205,146,1400,620,1341,7484,300,556,2182,1390,858,1520,678,1847,93,1162,154,69,1008,492,6930,927,622,6003,5072,591,229,462,270,9145,7065,7065,6442,3072,2564,198,467,1554,1497,57,345,345,0,508,136,17,84,17,18,372,19,206,118,29,6442,0,434,944,287,790,373,247,465,517,1355,425,323,282,2233,623,2133,6,650,797]
["Hopkinton","0002799","37540",5399,853,5399,0,5399,5346,5,12,6,0,0,30,5342,57,2571,2828,5399,4745,654,0,2084,1560,16,185,377,447,272,172,69,22,524,0,18,101,133,84,75,78,35,4201,675,2804,57,224,184,441,291,5210,2324,2848,2176,305,210,157,38,189,67,122,5116,2909,2207,2096,1127,969,418,551,335,50,131,35,6,105,2732,2679,2054,625,53,2732,2556,0,7,142,2590,129,244,194,418,656,170,284,67,67,165,138,58,142,5222,97,50,765,297,248,3736,37,141,775,684,342,1008,749,973,22,282,10,10,272,115,3138,430,302,2708,2245,401,109,316,147,4143,2836,2830,2750,1560,1376,152,274,803,749,54,147,134,13,184,39,0,33,6,0,145,0,87,44,14,2750,16,160,258,89,314,60,68,180,377,785,111,113,219,1347,255,725,10,215,198]
["Loudon","0002813","43380",4481,692,4481,0,4481,4430,0,5,4,0,0,42,4465,16,2207,2274,4479,4011,468,2,1618,1277,16,229,427,325,156,98,26,0,341,0,27,51,130,51,39,37,6,3450,727,2114,53,185,141,371,178,4416,2719,1689,1331,117,157,84,8,65,33,32,4176,2868,1308,1282,727,555,255,300,146,24,45,85,0,26,2436,2364,1911,453,72,2436,2220,10,7,177,2259,112,115,262,380,499,99,329,139,60,67,141,56,177,4285,63,87,605,272,222,2952,80,189,1041,699,285,416,242,807,88,279,33,18,246,157,2716,334,169,2382,2123,249,80,125,70,3369,2555,2555,2504,1277,1038,62,192,621,591,30,163,157,6,239,76,0,61,0,15,163,18,90,49,6,2504,49,233,363,103,234,165,27,168,185,456,96,148,277,993,307,545,6,292,361]
["New London","0002826","52100",4116,664,4116,0,4116,4042,0,6,36,0,8,24,4103,13,1820,2296,3406,2876,530,710,1585,1095,9,23,177,230,206,246,178,26,490,18,31,24,93,41,91,139,53,3634,866,2205,7,377,311,179,125,3954,1159,2783,2167,219,242,155,12,162,84,78,4008,2148,1860,1813,440,1373,501,872,623,50,153,46,0,47,1645,1588,1229,359,57,1645,1244,0,5,179,1466,312,327,195,99,72,64,86,56,56,123,30,46,179,4056,67,35,265,189,709,2770,30,76,313,512,185,1080,574,409,3,535,32,6,503,222,1839,158,85,1681,1285,580,90,587,136,3599,1927,1927,1699,1095,999,346,148,415,409,6,90,90,0,96,17,0,17,0,0,79,0,48,23,8,1699,25,84,107,82,203,9,81,124,173,574,141,40,56,889,223,441,11,87,48]
["Newbury","0002820","50900",1705,795,1702,0,1705,1644,4,2,7,0,28,20,1669,36,889,816,1705,1442,263,0,690,492,2,51,130,123,76,78,28,4,198,3,21,24,46,32,37,30,5,1388,266,887,14,89,74,132,74,1597,639,957,801,47,66,43,1,108,40,68,1626,1035,591,562,194,368,176,192,136,0,38,18,0,29,934,881,631,250,53,934,891,0,7,30,904,6,75,102,196,128,38,79,51,77,87,34,31,30,1657,19,13,219,97,84,1228,8,74,288,250,103,350,155,260,12,97,17,11,80,41,984,86,62,898,771,186,39,99,40,1366,979,979,952,492,432,58,84,234,230,4,56,54,2,60,19,0,11,7,1,41,0,22,16,3,952,10,122,100,32,98,28,15,45,82,257,75,49,39,368,145,214,10,138,77]
["Northfield","0002833","54260",4548,673,4548,1774,2774,4491,13,14,0,0,0,30,4538,10,2260,2288,4489,3835,654,59,1704,1211,39,190,390,291,160,70,64,7,493,41,89,63,117,43,56,72,12,3515,898,1912,57,185,163,463,242,4463,2838,1583,1321,44,151,67,42,85,45,40,4285,2397,1888,1874,800,1074,761,313,192,14,85,22,0,14,2437,2373,1228,1145,64,2437,2315,0,25,37,2400,120,252,330,296,410,251,280,37,92,129,148,55,37,4397,73,68,676,285,196,2923,157,380,1073,619,251,327,116,793,39,310,31,16,279,157,2721,449,242,2272,1967,221,44,181,102,3433,2526,2526,2465,1211,940,76,158,546,520,26,160,148,12,271,121,5,96,20,0,150,18,87,31,14,2465,6,196,593,59,403,27,31,74,114,533,192,77,160,607,426,568,6,368,490]
["Pembroke","0002848","60020",6897,760,6897,4561,2336,6771,29,17,0,0,0,80,6877,20,3435,3462,6897,5919,978,0,2660,1885,57,296,605,439,254,156,68,10,775,84,68,154,181,80,77,92,39,5392,1347,3131,36,267,197,611,329,6837,4124,2698,2196,148,249,105,15,60,50,10,6455,3948,2507,2459,1313,1146,878,268,104,0,62,102,0,48,3866,3690,2562,1128,176,3866,3633,14,30,126,3740,144,285,541,735,573,286,554,59,55,260,173,75,126,6647,121,79,922,459,370,4523,234,349,1562,933,481,689,275,1191,132,483,122,76,361,248,4104,682,434,3422,3061,390,144,287,100,5264,4041,4041,3926,1885,1529,121,188,867,841,26,353,339,14,356,160,9,107,40,4,196,32,123,27,14,3926,14,236,584,263,590,155,91,324,350,751,196,129,243,1202,454,1284,0,420,566]
["Pittsfield","0002869","61940",3931,610,3931,0,3931,3805,14,9,0,0,2,101,3876,55,1876,2055,3925,3392,533,6,1496,1061,64,175,355,219,118,84,40,6,435,26,80,37,60,65,89,53,25,3004,726,1763,111,162,133,242,134,3818,2411,1383,1031,55,114,183,24,113,41,72,3664,2250,1414,1363,779,584,301,283,193,12,30,48,0,51,2018,1991,1485,506,27,2018,1902,6,11,35,1983,93,211,185,112,186,148,383,81,167,252,113,52,35,3779,82,75,553,203,95,2497,158,372,925,468,248,244,82,727,80,261,52,37,209,128,2259,431,249,1828,1562,256,78,154,113,2937,2140,2133,2077,1061,843,64,161,515,457,58,103,103,0,218,50,7,42,0,1,168,17,104,41,6,2077,49,157,448,73,265,76,24,154,125,331,88,149,138,464,307,518,21,267,500]
["Salisbury","0002880","66980",1137,510,1137,0,1137,1125,0,2,0,0,0,10,1137,0,576,561,1137,989,148,0,434,325,6,47,90,81,68,23,10,0,109,2,3,14,34,23,19,12,2,917,148,625,4,49,41,91,39,1121,667,450,368,33,36,13,4,16,12,4,1069,727,342,332,229,103,52,51,47,0,2,2,0,10,650,620,487,133,30,650,602,2,5,25,625,11,33,65,39,60,56,149,46,31,77,31,27,25,1100,20,13,135,71,38,792,13,66,255,193,70,135,60,172,15,71,10,6,61,31,717,100,68,617,534,72,17,37,20,897,675,675,664,325,306,12,55,191,180,11,48,42,6,19,5,0,1,1,3,14,0,7,7,0,664,15,40,127,17,63,23,25,28,61,151,20,29,65,185,95,188,11,73,112]
["Sutton","0002885","75460",1541,711,1544,0,1541,1504,2,0,12,2,4,17,1521,20,757,784,1528,1347,181,13,613,461,2,41,132,116,84,63,21,2,152,2,4,27,48,30,15,24,2,1276,216,853,31,52,46,124,65,1493,681,790,580,78,76,56,22,48,24,24,1478,1014,464,464,181,283,121,162,100,21,22,19,0,0,842,783,631,152,59,842,756,10,1,56,786,15,57,118,167,81,55,59,29,49,70,52,34,56,1500,21,17,165,104,85,1113,36,66,283,255,102,225,146,213,9,125,10,7,115,68,906,161,89,745,637,135,24,97,53,1265,885,883,847,461,408,44,92,215,195,20,57,57,0,53,18,0,10,6,2,35,3,24,7,1,847,8,113,101,14,101,31,18,58,70,176,82,50,25,311,104,220,9,104,99]
["Warner","0002891","78580",2760,1211,2760,0,2760,2728,2,0,8,0,12,10,2709,51,1369,1391,2646,2280,366,114,1057,742,4,99,204,214,101,80,33,7,315,9,25,46,56,57,40,62,20,2204,503,1309,31,110,99,251,145,2662,1274,1377,1063,114,108,92,11,98,48,50,2610,1626,984,925,435,490,127,363,197,45,69,52,0,59,1349,1306,1068,238,43,1349,1221,0,5,87,1262,51,117,147,88,192,143,178,41,53,124,78,50,87,2675,40,41,350,132,204,1865,66,193,512,351,158,364,221,454,35,174,17,7,157,44,1644,259,149,1385,1115,188,62,148,51,2156,1440,1438,1377,742,616,64,112,354,339,15,86,79,7,126,32,2,14,16,0,94,12,42,33,7,1377,22,130,212,62,168,33,37,68,103,317,95,64,66,508,177,316,16,152,208]
["Webster","0002897","80020",1579,756,1579,0,1579,1538,0,2,0,0,4,35,1573,6,762,817,1575,1390,185,4,590,467,4,62,128,131,77,42,14,9,123,6,18,24,31,15,8,16,5,1246,232,837,14,54,48,109,61,1559,1028,521,422,55,36,8,10,20,15,5,1475,997,478,478,351,127,60,67,43,4,13,7,0,0,872,854,712,142,18,872,807,3,8,48,824,9,19,52,104,172,117,181,16,28,66,44,16,48,1508,8,19,193,86,58,1092,31,50,433,229,94,189,66,259,33,81,15,13,66,42,979,151,94,828,709,84,16,65,30,1216,912,905,885,467,404,36,66,242,229,13,60,56,4,63,16,0,9,7,0,47,3,9,31,4,885,25,69,113,60,98,27,25,71,50,169,42,49,87,266,132,252,19,75,141]
["Wilmot","0002902","84900",1144,511,1144,0,1144,1126,5,0,10,3,0,0,1142,2,546,598,1144,985,159,0,454,326,5,35,96,83,47,34,17,9,128,0,16,10,36,31,21,12,2,894,152,567,15,35,30,125,75,1110,476,622,488,77,33,24,12,34,12,22,1079,653,426,424,210,214,77,137,98,2,28,9,0,2,590,568,421,147,22,590,533,2,2,46,544,7,47,116,108,51,31,45,20,42,50,12,15,46,1105,21,6,151,81,36,796,14,38,185,153,67,194,145,197,12,71,5,4,66,26,667,61,32,606,502,96,18,48,20,882,613,613,595,326,273,32,51,148,139,9,42,42,0,53,23,3,14,6,0,30,0,17,11,2,595,9,90,53,11,71,12,9,45,71,143,31,31,19,238,81,131,16,84,45]
[]
[]
[]
[]
[]
[]
[]
[]
[]
[]
[]
[]
[]
[]
[]
[]
[]
[]
[]
[]
["Census 2000 SummaryFile3 Sample Data  -  SF3TownQry2aIncomeChar"]
[]
["TOWN_NAME","LOGRECNO","COUSUB","TotalPop","P52Households1","P52HHInc<10K","P52HHInc10to15K","P52HHInc15to20K","P52HHInc20to25K","P52HHInc25to30K","P52HHInc30to35K","P52HHInc35to40K","P52HHInc40to45K","P52HHInc45to50K","P52HHInc50to60K","P52HHInc60to75K","P52HHInc75to100K","P52HHInc100to125K","P52HHInc125to150K","P52HHInc150to200K","P52HHInc>200K","P53MedianHHInc","P54AggregHHInc","P55Households2","P55HHUnder25yrs","P55HH<25HHInc<10K","P55HH<25HHInc10to15K","P55HH<25HHInc15to20K","P55HH<25HHInc20to25K","P55HH<25HHInc25to30K","P55HH<25HHInc30to35K","P55HH<25HHInc35to40K","P55HH<25HHInc40to45K","P55HH<25HHInc45to50K","P55HH<25HHInc50to60K","P55HH<25HHInc60to75K","P55HH<25HHInc75to100K","P55HH<25HHInc100to125K","P55HH<25HHInc125to150K","P55HH<25HHInc150to200K","P55HH<25HHInc>200K","P55HH25to34yrs","P55HH25to34HHInc<10K","P55HH25to34HHInc10to15K","P55HH25to34HHInc15to20K","P55HH25to34HHInc20to25K","P55HH25to34HHInc25to30K","P55HH25to34HHInc30to35K","P55HH25to34HHInc35to40K","P55HH25to34HHInc40to45K","P55HH25to34HHInc45to50K","P55HH25to34HHInc50to60K","P55HH25to34HHInc60to75K","P55HH25to34HHInc75to100K","P55HH25to34HHInc100to125K","P55HH25to34HHInc125to150K","P55HH25to34HHInc150to200K","P55HH25to34HHInc>200K","P55HH35to44yrs","P55HH35to44HHInc<10K","P55HH35to44HHInc10to15K","P55HH35to44HHInc15to20K","P55HH35to44HHInc20to25K","P55HH35to44HHInc25to30K","P55HH35to44HHInc30to35K","P55HH35to44HHInc35to40K","P55HH35to44HHInc40to45K","P55HH35to44HHInc45to50K","P55HH35to44HHInc50to60K","P55HH35to44HHInc60to75K","P55HH35to44HHInc75to100K","P55HH35to44HHInc100to125K","P55HH35to44HHInc125to150K","P55HH35to44HHInc150to200K","P55HH35to44HHInc>200K","P55HH45to54yrs","P55HH45to55HHInc<10K","P55HH45to55HHInc10to15K","P55HH45to55HHInc15to20K","P55HH45to55HHInc20to25K","P55HH45to55HHInc25to30K","P55HH45to55HHInc30to35K","P55HH45to55HHInc35to40K","P55HH45to55HHInc40to45K","P55HH45to55HHInc45to50K","P55HH45to55HHInc50to60K","P55HH45to55HHInc60to75K","P55HH45to55HHInc75to100K","P55HH45to55HHInc100to125K","P55HH45to55HHInc125to150K","P55HH45to55HHInc150to200K","P55HH45to55HHInc>200K","P55HH55to64yrs","P55HH55to64HHInc<10K","P55HH55to64HHInc10to15K","P55HH55to64HHInc15to20K","P55HH55to64HHInc20to25K","P55HH55to64HHInc25to30K","P55HH55to64HHInc30to35K","P55HH55to64HHInc35to40K","P55HH55to64HHInc40to45K","P55HH55to64HHInc45to50K","P55HH55to64HHInc50to60K","P55HH55to64HHInc60to75K","P55HH55to64HHInc75to100K","P55HH55to64HHInc100to125K","P55HH55to64HHInc125to150K","P55HH55to64HHInc150to200K","P55HH55to64HHInc>200K","P55HH65to74yrs","P55HH65to74HHInc<10K","P55HH65to74HHInc10to15K","P55HH65to74HHInc15to20K","P55HH65to74HHInc20to25K","P55HH65to74HHInc25to30K","P55HH65to74HHInc30to35K","P55HH65to74HHInc35to40K","P55HH65to74HHInc40to45K","P55HH65to74HHInc45to50K","P55HH65to74HHInc50to60K","P55HH65to74HHInc60to75K","P55HH65to74HHInc75to100K","P55HH65to74HHInc100to125K","P55HH65to74HHInc125to150K","P55HH65to74HHInc150to200K","P55HH65to74HHInc>200K","P55HH>75yrs","P55HH>75HHInc<10K","P55HH>75HHInc10to15K","P55HH>75HHInc15to20K","P55HH>75HHInc20to25K","P55HH>75HHInc25to30K","P55HH>75HHInc30to35K","P55HH>75HHInc35to40K","P55HH>75HHInc40to45K","P55HH>75HHInc45to50K","P55HH>75HHInc50to60K","P55HH>75HHInc60to75K","P55HH>75HHInc75to100K","P55HH>75HHInc100to125K","P55HH>75HHInc125to150K","P55HH>75HHInc150to200K","P55HH>75HHInc>200K","P56MedHHInc","P56MedHHIncHH<25y","P56MedHHIncHH25to34y","P56MedHHIncHH35to44y","P56MedHHIncHH45to54y","P56MedHHIncHH55to64y","P56MedHHIncHH65to74y","P56MedHHIncHH>75y","P58Households3","P58HHwithEarnings","P58HHNoEarnings","P59HHwWageSalInc","P59HHNoWageSalInc","P60HHwSelfEmpInc","P60HHNoSelfEmpInc","P61HHwIndDivInc","P61HHNoIndDivInc","P62HHwSocSecInc","P62HHNoSocSecInc","P63HHwSSI","P63HHNoSSI","P64HHwPubAssInc","P64HHNoPubAssInc","P65HHwRetInc","P65HHNoRetInc","P66HHwOtherTypInc","P66HHNoOtherTypInc","P67AggregEarnings","P68AggregWageSalInc","P69AggregSelfEmpInc","P70AggregIntDivInc","P71AggregSocSecInc","P72AggregSSIInc","P73AggregPublicAssInc","P74AggregRetireInc","P76Families1","P76FamInc<10K","P76FamInc10to15K","P76FamInc15to20K","P76FamInc20to25K","P76FamInc25to30K","P76FamInc30to35K","P76FamInc35to40K","P76FamInc40to45K","P76FamInc45to50K","P76FamInc50to60K","P76FamInc60to75K","P76FamInc75to100K","P76FamInc100to125K","P76FamInc125to150K","P76FamInc150to200K","P76FamInc>200K","P77MedFamInc","P78AggregFamInc","P79NonFamHH","P79NonFamHHwInc<10K","P79NonFamHHwInc10to15K","P79NonFamHHwInc15to20K","P79NonFamHHwInc20to25K","P79NonFamHHwInc25to30K","P79NonFamHHwInc30to35K","P79NonFamHHwInc35to40K","P79NonFamHHwInc40to45K","P79NonFamHHwInc45to50K","P79NonFamHHwInc50to60K","P79NonFamHHwInc60to75K","P79NonFamHHwInc75to100K","P79NonFamHHwInc100to125K","P79NonFamHHwInc125to150K","P79NonFamHHwInc150to200K","P79NonFamHHwInc200KorMore","P80MedNonFamInc","P82PerCapitaInc"]
["Allenstown","0002575","00660",4843,1901,121,100,91,117,174,118,159,146,76,234,263,182,81,33,6,0,41958,90891700,1901,46,0,0,16,8,0,0,10,0,0,12,0,0,0,0,0,0,358,8,8,0,27,46,19,44,57,10,48,40,51,0,0,0,0,502,17,21,0,24,19,24,55,24,34,91,111,41,35,6,0,0,396,13,7,9,12,37,44,21,37,15,69,48,49,35,0,0,0,222,0,7,0,14,27,23,20,28,4,14,36,20,11,12,6,0,201,12,30,41,20,33,8,9,0,6,0,19,15,0,8,0,0,176,71,27,25,12,12,0,0,0,7,0,9,6,0,7,0,0,41958,22188,41378,52292,50395,44091,24583,12917,1901,1564,337,1512,389,198,1703,534,1367,514,1387,27,1874,61,1840,270,1631,243,1658,76573000,70553900,6019100,1634700,5806400,156000,121800,4808300,1277,5,48,44,72,101,94,92,78,70,196,217,165,56,33,6,0,51659,69787400,624,116,62,53,59,85,30,62,40,6,42,47,15,7,0,0,0,26375,18851]
["Andover","0002590","01460",2109,814,42,26,43,52,50,62,55,41,63,113,112,66,51,15,17,6,47093,44416400,814,14,0,0,2,0,3,2,3,0,4,0,0,0,0,0,0,0,120,2,0,0,9,5,12,14,8,17,25,16,7,2,3,0,0,181,6,2,13,9,10,10,4,7,18,35,35,17,5,4,4,2,211,11,2,8,11,9,8,16,7,10,23,39,31,20,4,8,4,128,4,4,6,11,9,13,3,15,12,9,16,9,11,4,2,0,94,6,8,11,4,8,13,9,4,2,13,4,2,7,0,3,0,66,13,10,3,8,6,4,6,0,0,8,2,0,6,0,0,0,47093,36250,46786,55096,60250,44750,33500,24375,814,693,121,655,159,153,661,367,447,215,599,25,789,23,791,132,682,110,704,35127400,31875300,3252100,3558500,2462300,172800,34000,2117600,600,21,6,21,28,27,42,44,32,56,94,87,57,51,11,17,6,52212,36824900,214,26,20,22,25,25,19,11,7,11,17,21,8,0,2,0,0,27059,21627]
["Boscawen","0002596","06260",3672,1251,75,31,118,78,93,130,55,98,72,161,129,138,41,11,16,5,42524,61035000,1251,29,0,0,4,6,0,14,0,0,5,0,0,0,0,0,0,0,188,7,0,17,5,16,30,18,27,5,39,11,8,0,0,0,5,355,20,0,13,31,32,36,14,36,12,49,56,35,15,0,6,0,258,0,14,25,0,15,27,8,0,25,30,28,59,22,0,5,0,189,23,11,6,12,14,5,10,13,19,14,23,30,4,0,5,0,119,13,0,19,17,10,0,5,16,6,10,11,6,0,6,0,0,113,12,6,34,7,6,18,0,6,0,19,0,0,0,5,0,0,42524,31406,40132,44438,54167,45125,37750,24107,1251,1084,167,1059,192,112,1139,459,792,339,912,71,1180,57,1194,236,1015,186,1065,50404600,49521800,882800,2087200,3627700,481200,136000,3034000,908,41,19,57,28,75,83,53,81,72,108,106,123,41,6,10,5,45850,48524600,343,51,17,66,56,29,49,7,17,0,18,12,15,0,6,0,0,22566,18732]
["Bow","0002606","06500",7138,2291,46,61,44,38,19,52,31,80,69,275,329,457,335,216,136,103,79329,210256700,2291,0,0,0,0,0,0,0,0,0,0,0,0,0,0,0,0,0,175,0,0,0,0,0,13,6,10,9,11,34,54,17,10,11,0,739,0,8,10,16,0,0,8,16,22,115,135,127,160,71,26,25,691,10,0,11,10,0,10,9,18,20,74,59,164,126,81,43,56,369,0,29,0,0,7,0,8,16,11,32,72,56,32,54,43,9,238,25,13,13,12,12,22,0,9,0,43,29,47,0,0,0,13,79,11,11,10,0,0,7,0,11,7,0,0,9,0,0,13,0,79329,0,75672,82148,93660,77877,52321,40114,2291,2073,218,2036,255,396,1895,1430,861,450,1841,64,2227,7,2284,374,1917,229,2062,181606300,170861900,10744400,14559200,5156900,434000,9800,6154500,2044,13,37,23,16,10,65,29,69,24,244,292,467,309,207,136,103,83567,198918500,247,33,24,21,22,19,0,9,11,32,31,20,0,16,9,0,0,38750,29557]
["Bradford","0002617","06980",1454,557,24,21,29,38,45,30,24,47,26,65,93,56,28,16,12,3,49018,32406000,557,13,0,2,0,0,4,0,0,0,0,5,0,2,0,0,0,0,70,0,0,0,10,6,0,4,8,1,9,21,5,4,0,2,0,120,4,2,2,6,9,12,3,11,3,14,23,20,8,3,0,0,162,8,10,6,4,11,3,7,18,14,17,25,18,9,7,5,0,70,3,2,10,7,0,3,7,5,4,8,4,4,3,4,3,3,88,5,3,4,11,13,10,3,5,0,12,11,3,4,2,2,0,34,4,2,7,0,2,2,0,0,4,0,9,4,0,0,0,0,49018,53125,58500,57000,50000,43333,34286,38750,557,467,90,440,117,131,426,268,289,153,404,19,538,7,550,99,458,76,481,26321000,23363700,2957300,2231200,1691800,114400,10000,1397500,407,8,6,15,21,30,22,21,32,22,43,78,52,28,16,10,3,57083,27100700,150,16,17,16,19,20,12,5,12,4,16,9,2,0,0,2,0,27500,22240]
["Canterbury","0002622","09860",1979,750,20,20,17,21,28,51,39,41,51,102,82,124,78,36,15,25,58026,54288700,750,5,0,0,0,0,0,0,0,2,0,3,0,0,0,0,0,0,66,3,0,0,0,3,9,3,0,10,11,8,10,2,2,3,2,172,2,3,2,4,11,9,6,8,20,21,19,35,18,8,2,4,255,2,2,5,2,0,20,6,10,11,42,33,45,35,19,6,17,138,5,3,3,7,3,5,16,11,6,15,14,24,13,7,4,2,60,2,4,3,4,4,8,4,8,2,0,7,9,5,0,0,0,54,6,8,4,4,7,0,4,2,2,10,1,1,5,0,0,0,58026,52917,51786,60000,71719,53750,41250,28750,750,678,72,633,117,192,558,438,312,149,601,21,729,10,740,111,639,115,635,46140400,40678200,5462300,3682300,1892000,157900,7700,1543300,595,7,11,12,8,25,31,31,26,34,88,82,108,72,28,15,17,62583,44912900,155,13,9,8,13,6,17,11,15,15,14,7,14,7,4,0,2,40417,27374]
["Chichester","0002629","12420",2236,827,19,29,19,44,58,47,37,48,35,110,144,114,55,28,30,10,56741,53564200,827,6,0,0,0,0,0,2,0,4,0,0,0,0,0,0,0,0,126,2,0,5,2,11,6,4,7,10,17,33,21,2,2,4,0,224,2,4,2,6,12,15,10,9,14,38,49,28,16,7,9,3,216,5,2,0,8,6,10,6,11,6,27,41,35,26,17,11,5,89,0,6,0,5,5,9,0,6,2,14,6,20,8,0,6,2,116,7,10,7,18,19,5,12,5,3,11,6,10,3,0,0,0,50,3,7,5,5,5,0,5,6,0,3,9,0,0,2,0,0,56741,41250,59583,60000,70833,56458,29250,32500,827,708,119,683,144,138,689,422,405,182,645,27,800,10,817,139,688,81,746,45587100,40588500,4998600,2607500,2253900,258500,20700,1864700,640,11,12,9,20,32,37,42,41,21,91,124,95,46,19,30,10,60333,44656500,187,10,21,13,21,33,12,0,3,14,16,20,11,7,6,0,0,29063,24115]
["Concord","0002635","14200",40687,16325,1198,998,983,1034,1095,1096,1182,1005,996,1770,1782,1788,630,269,251,248,42447,856270100,16325,836,145,88,54,89,97,71,67,63,38,81,30,6,0,7,0,0,2990,225,146,196,200,231,268,269,222,162,337,346,232,103,8,26,19,3846,250,122,147,177,175,219,315,254,319,442,500,594,144,41,85,62,3323,91,157,123,148,137,192,210,162,227,415,466,502,250,111,62,70,1873,98,82,112,104,136,122,122,111,88,212,190,294,75,52,41,34,1541,178,139,142,118,122,125,96,123,69,154,146,39,38,5,11,36,1916,211,264,209,198,197,99,103,70,93,129,104,121,20,45,26,27,42447,27885,39194,49146,54856,48036,32942,26557,16325,13162,3163,12800,3525,1840,14485,6991,9334,4299,12026,561,15764,564,15761,2755,13570,2176,14149,676812800,628275500,48537300,57425800,50249100,3869100,1309700,48662200,9748,402,427,395,419,484,486,615,621,614,1280,1305,1476,568,198,244,214,52418,608031000,6577,898,657,610,638,665,590,532,366,337,438,427,273,62,48,7,29,28380,21976]
["Danbury","0002701","16980",1071,435,32,28,29,22,48,29,43,31,14,51,40,49,11,2,4,2,38313,19494800,435,17,0,6,0,3,0,3,3,0,0,0,2,0,0,0,0,0,42,6,2,1,5,2,2,0,2,1,9,7,3,2,0,0,0,119,3,2,3,2,14,6,18,19,5,15,17,8,7,0,0,0,102,7,0,2,7,9,5,14,4,8,13,9,20,0,2,0,2,65,3,5,6,3,8,9,0,2,0,8,2,15,0,0,4,0,52,5,4,11,2,8,0,7,4,0,6,0,3,2,0,0,0,38,8,9,6,0,7,4,1,0,0,0,3,0,0,0,0,0,38313,22083,50000,42054,47500,34464,28000,16250,435,366,69,339,96,89,346,157,278,94,341,13,422,17,418,66,369,48,387,15861400,13723900,2137500,755400,1035900,115100,45300,1266700,313,19,13,13,14,36,25,31,24,14,39,34,38,7,2,2,2,40809,14777700,122,18,15,18,8,9,2,12,8,0,9,8,9,4,0,2,0,27500,18339]
["Dunbarton","0002706","19460",2226,822,26,19,18,30,22,26,23,64,49,88,133,158,82,30,29,25,65081,60590200,822,7,0,0,0,0,0,0,2,2,3,0,0,0,0,0,0,0,110,0,2,0,8,2,2,4,14,4,8,33,24,3,0,6,0,277,6,3,0,8,11,7,6,21,19,33,43,55,29,11,12,13,198,2,5,0,6,9,3,0,13,8,18,31,38,39,13,6,7,124,9,0,0,3,0,10,2,14,9,12,13,25,11,6,5,5,70,0,6,3,5,0,2,9,0,6,10,13,16,0,0,0,0,36,9,3,15,0,0,2,0,0,0,7,0,0,0,0,0,0,65081,44375,63750,67188,76324,63125,54167,16250,822,766,56,735,87,166,656,491,331,140,682,4,818,5,817,105,717,45,777,53719400,49716300,4003100,2935200,1732300,46700,22300,1580200,657,12,5,3,15,19,33,21,37,40,84,112,134,63,28,29,22,67448,51833800,165,14,14,15,15,3,4,2,23,4,9,23,20,17,2,0,0,43125,27892]
["Epsom","0002712","24900",4021,1486,40,39,104,115,60,101,82,69,113,156,179,284,54,59,16,15,50685,86789800,1486,28,0,0,8,5,10,5,0,0,0,0,0,0,0,0,0,0,233,4,0,6,11,17,0,11,4,19,42,28,69,22,0,0,0,395,10,5,16,27,16,15,23,29,34,34,61,83,4,22,16,0,370,0,0,3,9,5,29,22,30,26,52,68,66,25,29,0,6,199,5,0,17,11,12,25,0,6,18,13,22,58,3,0,0,9,143,8,15,17,28,0,17,26,0,9,15,0,8,0,0,0,0,118,13,19,37,24,0,10,0,0,7,0,0,0,0,8,0,0,50685,25500,60625,56513,63500,52292,31250,18958,1486,1277,209,1241,245,170,1316,633,853,334,1152,22,1464,56,1430,285,1201,204,1282,74854300,69005200,5849100,2188900,4456500,108300,148500,3044300,1098,21,0,55,77,42,78,41,42,84,132,155,254,50,42,10,15,56875,70023900,388,26,39,54,38,18,30,39,32,21,24,24,26,0,17,0,0,33804,22026]
["Franklin","0002721","27380",8405,3334,425,205,287,308,261,192,200,183,189,293,386,271,63,37,11,23,34613,140782100,3334,200,26,17,25,30,21,7,35,0,20,19,0,0,0,0,0,0,542,51,29,35,40,44,89,28,29,42,55,50,50,0,0,0,0,722,37,10,33,48,72,24,33,47,42,70,169,100,18,0,11,8,658,66,17,44,48,76,27,51,24,15,53,101,75,33,28,0,0,432,109,19,48,47,14,15,8,53,23,31,29,30,6,0,0,0,441,72,50,52,45,17,23,21,23,33,52,22,16,0,0,0,15,339,64,63,50,50,17,7,24,7,14,13,15,0,6,9,0,0,34613,27738,33300,51172,40000,24125,25469,17125,3334,2516,818,2463,871,310,3024,984,2350,970,2364,174,3160,240,3094,579,2755,517,2817,112054000,104456800,7597200,6223500,10685100,982700,603200,6153200,2213,110,59,254,197,202,123,116,104,124,262,339,230,50,20,0,23,41698,106458900,1121,345,151,96,94,90,78,58,60,47,8,20,33,13,17,11,0,17684,17155]
["Henniker","0002743","35540",4433,1586,114,87,108,90,87,80,96,49,70,214,147,240,89,28,32,55,50288,104703000,1586,125,35,19,8,12,12,14,0,0,9,16,0,0,0,0,0,0,172,0,0,7,16,8,13,19,15,26,16,13,20,11,0,8,0,391,8,17,13,16,23,19,19,14,11,63,57,69,35,13,0,14,455,15,0,13,20,28,21,22,8,18,71,54,104,30,9,16,26,199,12,6,6,11,16,13,6,5,6,32,23,39,13,6,0,5,93,8,14,23,8,0,0,7,7,0,8,0,8,0,0,0,10,151,36,31,38,7,0,0,23,0,0,8,0,0,0,0,8,0,50288,20208,46053,58958,62212,52875,22969,16328,1586,1373,213,1339,247,260,1326,681,905,322,1264,65,1521,20,1566,225,1361,204,1382,89185500,81951900,7233600,7661200,3433900,497100,13900,2778600,1034,7,27,51,30,67,28,77,29,52,156,122,217,76,28,17,50,59527,83055200,552,107,60,57,66,34,45,18,29,21,58,12,18,7,0,15,5,23833,24530]
["Hill","0002754","35860",992,388,15,17,24,26,15,30,19,30,36,39,48,62,15,0,7,5,48333,20962800,388,8,0,0,4,4,0,0,0,0,0,0,0,0,0,0,0,0,56,3,0,3,3,2,8,4,7,9,3,0,14,0,0,0,0,91,7,2,2,3,0,7,2,9,8,16,18,11,2,0,2,2,104,3,0,3,5,3,3,0,3,17,10,23,15,13,0,3,3,58,0,0,4,0,7,6,9,7,2,5,5,13,0,0,0,0,41,0,5,4,4,2,5,2,4,0,5,2,6,0,0,2,0,30,2,10,4,7,1,1,2,0,0,0,0,3,0,0,0,0,48333,20000,43333,52656,62727,41500,35625,16875,388,326,62,305,83,84,304,161,227,88,300,13,375,11,377,63,325,57,331,17348200,15348300,1999900,1061500,969400,47500,9900,1072800,278,8,0,13,13,15,20,16,20,34,35,33,50,11,0,8,2,50000,16310400,110,10,17,11,12,4,10,4,12,4,4,10,6,4,0,2,0,30417,21004]
["Hooksett","0002759","37300",11721,4140,159,98,132,177,133,240,193,240,188,442,580,822,349,245,102,40,61491,285213400,4140,76,0,11,9,10,9,0,10,27,0,0,0,0,0,0,0,0,652,25,0,8,41,13,49,42,52,12,65,98,165,54,18,10,0,1219,19,0,10,37,31,53,70,58,33,130,219,322,109,78,27,23,980,17,7,9,30,39,41,16,46,78,79,146,177,147,89,42,17,552,14,7,8,15,7,58,12,26,35,110,87,87,23,44,19,0,371,52,10,43,10,7,39,28,22,30,32,30,41,16,7,4,0,290,32,63,45,34,27,0,15,9,0,26,0,30,0,9,0,0,61491,27222,62262,71250,73714,57895,39583,20735,4140,3677,463,3628,512,477,3663,1785,2355,1022,3118,72,4068,53,4087,730,3410,477,3663,246250000,231587200,14662800,11153800,11678100,763100,67700,11100900,3072,87,59,47,49,61,156,141,151,129,360,505,700,293,203,102,29,68673,230483500,1068,106,60,106,113,72,95,52,45,75,82,65,112,39,35,0,11,33636,24629]
["Hopkinton","0002799","37540",5399,2084,60,68,115,50,51,106,134,120,131,215,276,300,179,72,85,122,59583,164473200,2084,16,0,0,0,7,0,0,0,0,5,4,0,0,0,0,0,0,203,0,0,14,0,0,13,0,14,26,31,29,52,15,9,0,0,478,11,4,6,5,6,22,28,42,33,70,92,63,35,11,12,38,580,7,22,53,14,21,26,31,11,16,43,75,99,59,20,51,32,356,0,13,6,7,7,0,38,40,24,38,39,32,44,25,16,27,247,13,12,13,0,6,27,27,7,18,12,24,36,20,7,6,19,204,29,17,23,17,11,18,10,6,9,17,17,18,6,0,0,6,59583,45500,63750,60857,70417,60893,50208,32083,2084,1729,355,1655,429,368,1716,1250,834,597,1487,25,2059,33,2051,428,1656,271,1813,123914200,114286100,9628000,22230400,6989800,230900,18800,7796700,1560,7,23,31,25,37,78,99,83,98,161,245,275,144,66,78,110,69737,134337700,524,60,45,84,18,19,33,39,37,39,50,32,23,20,6,7,12,35375,30753]
["Loudon","0002813","43380",4481,1618,50,55,52,62,55,96,78,135,111,230,255,267,99,12,18,43,55185,107857700,1618,16,0,0,0,0,0,0,0,5,0,11,0,0,0,0,0,0,256,20,0,4,12,0,23,15,18,37,20,42,33,20,6,6,0,478,0,5,11,11,21,20,7,24,41,111,68,115,30,0,7,7,455,18,14,18,5,12,19,28,34,24,49,49,101,49,6,5,24,207,0,0,19,15,16,8,16,16,9,26,64,18,0,0,0,0,137,12,23,0,13,6,19,6,26,0,13,19,0,0,0,0,0,69,0,13,0,6,0,7,6,12,0,0,13,0,0,0,0,12,55185,50682,49643,59091,63125,51406,34135,40521,1618,1460,158,1432,186,306,1312,734,884,301,1317,71,1547,15,1603,189,1429,198,1420,90605900,81220400,9385600,6314700,3886900,992000,16500,4488200,1277,32,27,21,42,48,56,54,99,93,190,233,237,83,12,13,37,59096,90490000,341,23,32,31,27,20,36,24,41,19,26,35,16,0,0,5,6,35625,24673]
["New London","0002826","52100",4116,1585,40,79,58,80,60,119,73,54,77,130,109,227,143,90,105,141,61520,151263800,1585,27,0,6,6,6,0,4,0,0,0,5,0,0,0,0,0,0,54,0,4,0,4,0,5,17,0,0,11,0,4,3,0,6,0,201,12,8,0,0,8,10,7,4,7,9,19,33,26,22,11,25,323,6,0,0,21,11,15,16,14,31,27,18,67,25,26,16,30,247,0,17,6,0,6,0,5,8,5,20,16,52,14,21,41,36,337,0,0,24,16,5,48,17,22,2,32,31,49,31,21,14,25,396,22,44,22,33,30,37,11,6,32,26,25,22,44,0,17,25,61520,20625,38750,86818,80332,93323,61250,37273,1585,985,600,921,664,312,1273,1128,457,737,848,28,1557,30,1555,508,1077,176,1409,84904200,76587600,8316600,38320100,9674700,160900,77500,16442600,1095,10,11,11,33,29,72,40,47,44,82,102,188,126,75,90,135,82201,128854400,490,30,68,47,59,31,55,33,12,21,48,0,39,11,15,15,6,30758,37556]
["Newbury","0002820","50900",1702,690,15,18,26,34,47,38,26,55,38,63,115,88,54,30,22,21,58026,50408600,690,5,0,0,0,0,0,2,0,0,0,1,2,0,0,0,0,0,72,2,0,2,0,6,9,7,2,5,12,15,9,3,0,0,0,154,0,0,2,7,10,2,4,20,4,10,31,32,7,14,9,2,169,2,0,5,2,7,9,6,7,9,26,39,18,23,4,5,7,108,2,0,3,4,8,9,3,9,7,3,17,14,11,8,8,2,115,2,9,7,13,14,0,6,13,8,7,8,11,5,2,0,10,67,7,9,7,8,2,7,0,4,5,4,3,4,5,2,0,0,58026,53750,52500,68750,62212,65833,42321,30625,690,565,125,533,157,146,544,322,368,215,475,8,682,2,688,149,541,63,627,35978000,31276300,4701700,8057100,2983000,38500,400,2891100,492,0,4,10,24,26,25,21,41,25,60,84,79,43,18,17,15,61389,36726300,198,15,16,18,13,21,11,5,16,8,11,27,6,8,12,5,6,40000,29521]
["Northfield","0002833","54260",4548,1704,111,56,66,128,171,90,142,100,127,216,214,189,72,10,0,12,44333,84246700,1704,80,0,8,8,14,23,0,12,0,0,8,7,0,0,0,0,0,279,8,6,11,34,26,9,49,23,16,56,24,6,11,0,0,0,453,0,0,0,26,48,14,6,33,48,98,65,99,8,8,0,0,408,25,7,6,20,19,28,53,28,21,35,87,46,26,0,0,7,203,11,10,0,7,30,12,11,11,31,19,19,27,10,0,0,5,126,36,5,15,9,5,20,4,5,5,0,5,5,10,2,0,0,155,31,20,26,18,20,7,7,0,6,0,7,6,7,0,0,0,44333,26786,39735,53688,48929,45913,23750,20114,1704,1500,204,1448,256,226,1478,540,1164,366,1338,70,1634,55,1649,281,1423,230,1474,71374100,65983700,5390500,4973300,3712800,387000,367800,2042600,1211,11,28,31,83,94,89,111,70,105,178,160,170,61,8,0,12,48787,67521200,493,106,28,42,45,86,28,40,14,11,46,28,6,13,0,0,0,26138,18466]
["Pembroke","0002848","60020",6897,2660,208,83,107,132,128,236,140,139,173,288,364,455,117,57,16,17,49494,143136300,2660,141,0,9,0,22,10,34,0,0,10,12,21,23,0,0,0,0,364,36,11,15,12,30,11,51,45,64,20,24,33,12,0,0,0,759,20,7,23,39,23,66,37,14,23,98,130,202,43,17,9,8,620,29,0,18,26,24,63,0,43,53,65,109,127,38,16,0,9,334,14,0,21,0,10,32,12,20,23,53,48,61,24,9,7,0,233,40,18,0,15,22,11,22,17,0,32,32,9,0,15,0,0,209,69,38,30,18,9,19,18,0,0,8,0,0,0,0,0,0,49494,33125,40889,63576,58382,56000,36875,14653,2660,2279,381,2194,466,350,2310,1133,1527,604,2056,123,2537,61,2599,384,2276,339,2321,122999800,116509200,6490600,4384900,6751700,952000,185100,5989100,1885,48,34,69,96,77,118,150,87,99,232,284,391,110,57,16,17,57106,115484100,775,169,49,58,36,74,133,25,52,32,38,77,25,7,0,0,0,30036,20800]
["Pittsfield","0002869","61940",3931,1496,146,107,43,158,111,110,94,123,85,139,117,165,39,13,19,27,38833,81693500,1496,90,8,5,0,31,0,14,19,0,6,0,7,0,0,0,0,0,255,7,23,14,19,16,19,22,39,30,39,5,22,0,0,0,0,392,40,7,12,35,25,37,22,20,7,24,54,81,22,6,0,0,279,30,6,0,5,28,20,0,20,26,38,21,52,13,1,11,8,183,9,26,0,23,4,14,14,26,10,24,19,2,4,0,8,0,173,24,31,9,30,17,6,11,0,6,14,11,8,0,0,0,6,124,28,9,8,15,21,0,6,18,0,0,0,0,0,6,0,13,38833,30179,41042,44286,52250,40341,24107,25833,1496,1278,218,1258,238,202,1294,399,1097,453,1043,52,1444,80,1416,225,1271,216,1280,58391200,53247500,5143700,9913600,4432500,378800,210100,6072000,1061,48,46,28,89,94,83,65,91,61,117,101,154,33,12,19,20,44233,67439200,435,98,61,31,69,31,27,15,32,18,22,18,0,6,0,0,7,22022,21082]
["Salisbury","0002880","66980",1137,434,19,11,17,13,30,10,36,22,46,31,79,67,33,9,9,2,55000,26127900,434,8,0,0,0,0,0,2,0,0,3,0,3,0,0,0,0,0,50,0,0,0,2,1,0,3,2,8,10,24,0,0,0,0,0,104,2,0,3,7,5,0,5,6,9,9,24,19,11,2,0,2,115,4,8,2,0,8,2,6,2,12,6,16,24,13,7,5,0,91,4,0,2,2,11,2,12,8,8,6,10,17,6,0,3,0,42,4,3,5,2,2,0,10,2,6,0,0,4,3,0,1,0,24,5,0,5,0,3,4,0,2,0,0,2,3,0,0,0,0,55000,49167,59167,62813,70750,47813,38438,27500,434,394,40,385,49,82,352,181,253,107,327,11,423,7,427,79,355,42,392,22500000,20828300,1671700,1288800,1055400,102500,15900,980700,325,0,4,10,7,22,4,26,17,39,27,74,50,26,9,8,2,62321,21415100,109,19,7,7,6,8,6,10,8,7,2,4,17,7,0,1,0,35536,23112]
["Sutton","0002885","75460",1544,613,30,13,20,34,36,47,37,44,37,75,84,83,36,15,20,2,50924,37236900,613,4,4,0,0,0,0,0,0,0,0,0,0,0,0,0,0,0,45,0,0,2,0,4,6,6,3,2,9,3,6,4,0,0,0,159,6,0,6,13,10,14,7,10,9,27,22,17,2,10,6,0,164,5,0,3,6,9,15,6,16,16,15,25,27,15,1,5,0,114,6,7,2,3,6,5,10,11,5,11,19,14,4,4,7,0,78,5,2,0,8,6,2,5,2,2,8,12,14,10,0,0,2,49,4,4,7,4,1,5,3,2,3,5,3,5,1,0,2,0,50924,7500,48750,51250,53000,51667,58750,34375,613,529,84,496,117,142,471,288,325,172,441,13,600,13,600,117,496,83,530,27108600,24010800,3097800,4455600,2121400,101800,28400,2544800,461,8,7,11,22,28,32,26,37,18,62,80,69,28,15,18,0,56685,28933700,152,22,6,9,12,10,19,11,7,17,11,4,12,8,0,2,2,34375,24432]
["Warner","0002891","78580",2760,1057,55,52,46,69,81,79,86,78,57,108,123,104,58,29,20,12,44142,58392800,1057,13,0,3,3,5,1,0,0,0,0,0,1,0,0,0,0,0,124,7,2,6,6,22,5,17,12,2,16,5,13,7,2,0,2,250,6,5,11,9,6,20,22,28,17,32,31,28,19,10,6,0,270,11,7,5,14,13,15,15,17,17,24,51,36,19,17,5,4,158,8,6,0,12,20,9,12,12,2,13,28,22,8,0,4,2,120,2,15,5,10,13,15,17,6,10,17,4,4,0,0,0,2,122,21,14,16,13,6,15,3,3,9,6,3,1,5,0,5,2,44142,20313,39375,50208,59063,46250,35000,23929,1057,882,175,834,223,208,849,461,596,289,768,30,1027,28,1029,164,893,139,918,46429300,40015700,6413600,3115700,3316500,216700,59700,4206400,742,23,16,25,38,46,55,56,60,42,89,101,91,52,27,13,8,50926,44329000,315,34,40,29,34,33,31,27,15,7,20,16,10,8,2,7,2,27135,21588]
["Webster","0002897","80020",1579,590,26,18,23,28,31,27,44,32,25,98,99,92,28,7,7,5,54052,33499600,590,10,0,0,0,0,2,0,0,4,2,2,0,0,0,0,0,0,80,5,0,2,0,7,3,10,2,5,12,14,10,8,0,2,0,152,3,4,4,8,6,5,10,15,5,35,28,20,5,2,2,0,162,6,2,3,5,4,4,8,7,11,24,42,34,9,0,0,3,92,4,3,0,7,8,5,8,4,0,14,7,21,6,3,0,2,50,0,2,9,8,4,5,2,0,2,11,5,2,0,0,0,0,44,8,7,5,0,0,5,6,0,0,0,3,5,0,2,3,0,54052,44375,53333,55000,63438,54688,31000,33500,590,519,71,507,83,103,487,277,313,131,459,19,571,15,575,68,522,96,494,28900600,26682100,2218500,1362000,1471100,140900,14500,1039800,467,10,11,10,16,28,23,39,26,19,82,83,79,24,7,5,5,57396,28171800,123,16,7,13,15,5,5,5,6,4,18,17,8,2,0,2,0,35625,20852]
["Wilmot","0002902","84900",1144,454,10,24,21,16,34,43,37,19,26,49,61,45,26,19,11,13,49605,28616100,454,5,0,0,0,0,0,5,0,0,0,0,0,0,0,0,0,0,51,0,0,2,2,0,3,0,8,10,7,10,5,0,0,1,3,106,0,0,3,6,8,12,16,3,0,9,24,17,2,3,3,0,119,0,4,4,2,7,12,4,3,9,11,11,14,14,11,5,8,78,8,5,4,4,8,8,4,0,2,8,14,7,4,0,0,2,55,0,5,6,2,8,0,7,2,2,14,2,2,3,2,0,0,40,2,10,2,0,3,3,6,3,3,0,0,0,3,3,2,0,49605,32917,57679,56250,63125,37500,39821,35000,454,386,68,343,111,139,315,269,185,113,341,12,442,8,446,67,387,38,416,22866500,19227800,3638700,2328900,1462500,96300,1200,1459800,326,3,6,9,7,18,37,29,13,15,35,50,40,23,17,11,13,57143,23744100,128,10,18,16,11,17,8,6,6,4,15,7,5,3,2,0,0,26500,25629]
[]
[]
[]
[]
[]
[]
[]
[]
[]
[]
[]
[]
[]
[]
[]
[]
[]
[]
[]
[]
["Census 2000 SummaryFile3 Sample Data  -  SF3TownQry2bPovertyChar"]
[]
["TOWN_NAME","LOGRECNO","COUSUB","TotalPop","P52Households1","P82PerCapitaInc","P87PopForPovStatus","P87PopWIncBelowPovStatus","P87PopUnder5yrBelowPoverty","P87Pop5yrBelowPoverty","P87Pop5to11yrBelowPoverty","P87Pop12to17yrBelowPoverty","P87Pop18to64yrBelowPoverty","P87Pop65to74yrBelowPoverty","P87PopOver75yrBelowPoverty","P87PopWIncAbovePovStatus","P87PopUnder5yrAbovePoverty","P87Pop5yrAbovePoverty","P87Pop5to11yrAbovePoverty","P87Pop12to17yrAbovePoverty","P87Pop18to64yrAbovePoverty","P87Pop65to74yrAbovePoverty","P87PopOver75yrAbovePoverty","P90Families","P90FamWIncBelowPov","P90MarCupFamWIncBelowPov","P90MCFamWRltdChld<18WIncBelowPov","P90MCFamWRltdChld<5WIncBelowPov","P90MaleHhlrWIncBelowPov","P90MaleHhlrWRltdChld<18yrWIncBelowPov","P90MaleHhlrWRltdChld<5yrWIncBelowPov","P90FemaleHhlrWIncBelowPov","P90FemaleHhlrWRltdChld<18yWIncBelowPov","P90FemaleHhlrWRltdChld<5yWIncBelowPov","P90FamWIncAbovePov","P90MarCupFamWIncAbovePov","P90MCFamWRltdChld<18WIncAbovePov","P90MCFamWRltdChld<5WIncAbovePov","P90MaleHhlrWIncAbovePov","P90MaleHhlrWRltdChld<18yrWIncAbovePov","P90MaleHhlrWRltdChld<5yrWIncAbovePov","P90FemaleHhlrWIncAbovePov","P90FemaleHhlrWRltdChld<18yWIncAbovePov","P90FemaleHhlrWRltdChld<5yWIncAbovePov","P92Households","P92HHwIncBelowPov","P92FamHHwIncBelowPov","P92MCFamHHwIncBelowPov","P92MaleFamHHwIncBelowPov","P92FemaleFamHHwIncBelowPov","P92NonFamHHwIncBelowPov","P92NonFamMaleHHwIncBelowPov","P92NonFamFemaleHHwIncBelowPov","P92HHwIncAbovePov","P92FamHHwIncAbovePov","P92MCFamHHwIncAbovePov","P92MaleFamHHwIncAbovePov","P92FemaleFamHHwIncAbovePov","P92NonFamHHwIncAbovePov","P92NonFamMaleHHwIncAbovePov","P92NonFamFemaleHHwIncAbovePov"]
["Allenstown","0002575","00660",4843,1901,18851,4772,184,7,8,19,21,105,12,12,4588,312,55,392,443,2904,255,227,1277,28,17,17,0,0,0,0,11,11,0,1249,981,475,82,102,75,23,166,114,12,1901,80,28,17,0,11,52,8,44,1821,1249,981,102,166,572,232,340]
["Andover","0002590","01460",2109,814,21627,2101,119,3,0,22,14,63,4,13,1982,125,20,147,167,1271,152,100,600,27,9,3,0,2,2,0,16,14,3,573,500,223,54,32,20,0,41,23,3,814,47,27,9,2,16,20,9,11,767,573,500,32,41,194,117,77]
["Boscawen","0002596","06260",3672,1251,18732,3232,241,14,0,19,49,119,11,29,2991,190,56,311,194,1905,196,139,908,49,19,14,0,17,17,0,13,13,7,859,679,323,94,42,15,0,138,93,16,1251,94,49,19,17,13,45,13,32,1157,859,679,42,138,298,147,151]
["Bow","0002606","06500",7138,2291,29557,7130,129,8,0,6,8,82,25,0,7001,448,78,905,866,4130,351,223,2044,40,32,0,0,0,0,0,8,8,0,2004,1825,1021,111,45,36,0,134,85,13,2291,59,40,32,0,8,19,9,10,2232,2004,1825,45,134,228,111,117]
["Bradford","0002617","06980",1454,557,22240,1453,60,4,0,2,6,37,5,6,1393,75,26,107,148,871,117,49,407,10,4,2,0,0,0,0,6,4,2,397,330,147,35,16,16,2,51,35,6,557,24,10,4,0,6,14,7,7,533,397,330,16,51,136,72,64]
["Canterbury","0002622","09860",1979,750,27374,1979,49,0,0,2,12,31,4,0,1930,106,25,172,166,1263,104,94,595,12,5,3,0,3,0,0,4,4,0,583,505,212,31,23,8,2,55,34,6,750,19,12,5,3,4,7,0,7,731,583,505,23,55,148,67,81]
["Chichester","0002629","12420",2236,827,24115,2225,67,4,0,10,4,37,7,5,2158,133,21,203,193,1393,142,73,640,15,7,4,0,0,0,0,8,8,2,625,552,263,62,29,13,9,44,37,10,827,23,15,7,0,8,8,8,0,804,625,552,29,44,179,90,89]
["Concord","0002635","14200",40687,16325,21976,37478,2980,350,60,291,161,1856,101,161,34498,1926,409,2870,3045,21684,2157,2407,9748,603,163,120,63,62,62,21,378,341,113,9145,7162,3396,602,417,227,46,1566,1148,197,16325,1396,603,163,62,378,793,364,429,14929,9145,7162,417,1566,5784,2398,3386]
["Danbury","0002701","16980",1071,435,18339,1063,118,13,4,9,5,74,7,6,945,32,17,67,91,611,80,47,313,28,17,8,3,0,0,0,11,9,4,285,243,94,9,14,10,3,28,16,0,435,47,28,17,0,11,19,9,10,388,285,243,14,28,103,72,31]
["Dunbarton","0002706","19460",2226,822,27892,2209,61,6,0,8,4,35,2,6,2148,166,37,202,161,1427,113,42,657,15,15,9,3,0,0,0,0,0,0,642,599,306,84,16,11,3,27,25,2,822,26,15,15,0,0,11,2,9,796,642,599,16,27,154,94,60]
["Epsom","0002712","24900",4021,1486,22026,3891,121,4,4,17,15,67,8,6,3770,237,36,367,297,2405,271,157,1098,21,10,5,0,0,0,0,11,11,0,1077,938,413,68,29,29,13,110,76,23,1486,48,21,10,0,11,27,13,14,1438,1077,938,29,110,361,158,203]
["Franklin","0002721","27380",8405,3334,17155,8230,1058,91,25,175,97,558,62,50,7172,442,90,477,664,4461,538,500,2213,198,44,18,0,29,29,13,125,118,21,2015,1506,650,122,141,95,26,368,252,53,3334,441,198,44,29,125,243,130,113,2893,2015,1506,141,368,878,381,497]
["Henniker","0002743","35540",4433,1586,24530,4005,281,0,0,7,15,223,0,36,3724,224,35,413,372,2366,146,168,1034,21,14,6,0,0,0,0,7,7,0,1013,813,481,82,49,21,8,151,111,0,1586,136,21,14,0,7,115,69,46,1450,1013,813,49,151,437,198,239]
["Hill","0002754","35860",992,388,21004,983,41,0,0,3,3,35,0,0,942,49,13,97,89,594,56,44,278,8,5,0,0,0,0,0,3,3,0,270,228,98,7,19,13,3,23,16,3,388,20,8,5,0,3,12,5,7,368,270,228,19,23,98,51,47]
["Hooksett","0002759","37300",11721,4140,24629,10849,437,51,31,38,50,186,33,48,10412,678,119,939,945,6759,558,414,3072,97,24,0,0,25,25,0,48,48,19,2975,2540,1252,277,111,56,15,324,204,13,4140,203,97,24,25,48,106,45,61,3937,2975,2540,111,324,962,440,522]
["Hopkinton","0002799","37540",5399,2084,30753,5393,97,4,5,16,17,38,6,11,5296,279,74,493,543,3207,395,305,1560,11,0,0,0,0,0,0,11,11,0,1549,1376,669,181,39,26,0,134,87,6,2084,44,11,0,0,11,33,0,33,2040,1549,1376,39,134,491,136,355]
["Loudon","0002813","43380",4481,1618,24673,4451,270,6,14,64,31,129,18,8,4181,299,67,383,350,2734,231,117,1277,53,18,12,0,0,0,0,35,35,0,1224,1020,537,157,76,62,7,128,80,10,1618,91,53,18,0,35,38,27,11,1527,1224,1020,76,128,303,144,159]
["New London","0002826","52100",4116,1585,37556,3443,81,0,0,14,0,50,0,17,3362,108,43,178,236,1647,580,570,1095,16,11,0,0,0,0,0,5,5,0,1079,988,247,43,17,17,0,74,40,0,1585,33,16,11,0,5,17,0,17,1552,1079,988,17,74,473,131,342]
["Newbury","0002820","50900",1702,690,29521,1700,30,0,0,0,0,30,0,0,1670,79,4,147,162,993,186,99,492,0,0,0,0,0,0,0,0,0,0,492,432,175,27,19,5,0,41,25,2,690,11,0,0,0,0,11,7,4,679,492,432,19,41,187,82,105]
["Northfield","0002833","54260",4548,1704,18466,4462,175,5,0,0,6,134,30,0,4287,252,58,390,469,2746,191,181,1211,11,0,0,0,5,0,0,6,6,6,1200,940,498,80,116,87,45,144,101,13,1704,80,11,0,5,6,69,21,48,1624,1200,940,116,144,424,200,224]
["Pembroke","0002848","60020",6897,2660,20800,6841,372,22,0,27,9,240,20,54,6469,407,44,607,683,4125,370,233,1885,57,26,9,9,9,9,0,22,22,0,1828,1503,765,129,151,122,22,174,138,26,2660,203,57,26,9,22,146,38,108,2457,1828,1503,151,174,629,361,268]
["Pittsfield","0002869","61940",3931,1496,21082,3921,344,59,0,49,28,181,11,16,3577,204,76,334,329,2251,245,138,1061,72,26,20,7,15,15,8,31,31,6,989,817,352,19,35,24,1,137,111,14,1496,142,72,26,15,31,70,40,30,1354,989,817,35,137,365,172,193]
["Salisbury","0002880","66980",1137,434,23112,1133,22,0,0,0,2,15,0,5,1111,64,16,100,91,736,72,32,325,2,0,0,0,0,0,0,2,2,0,323,306,127,14,5,2,1,12,6,0,434,19,2,0,0,2,17,3,14,415,323,306,5,12,92,45,47]
["Sutton","0002885","75460",1544,613,24432,1541,77,5,5,10,7,39,3,8,1464,58,16,102,135,932,132,89,461,13,5,3,0,0,0,0,8,8,2,448,403,156,24,18,8,0,27,18,0,613,31,13,5,0,8,18,13,5,582,448,403,18,27,134,58,76]
["Warner","0002891","78580",2760,1057,21588,2646,179,27,4,25,20,89,9,5,2467,123,31,231,216,1544,179,143,742,37,11,7,0,2,2,0,24,21,2,705,605,270,48,30,22,6,70,51,0,1057,60,37,11,2,24,23,8,15,997,705,605,30,70,292,126,166]
["Webster","0002897","80020",1579,590,20852,1558,78,10,0,9,2,49,2,6,1480,94,19,110,142,974,82,59,467,17,14,6,2,0,0,0,3,0,0,450,390,172,36,16,14,3,44,28,5,590,28,17,14,0,3,11,3,8,562,450,390,16,44,112,65,47]
["Wilmot","0002902","84900",1144,454,25629,1141,50,10,4,3,1,30,0,2,1091,54,13,102,105,675,96,46,326,6,3,3,3,0,0,0,3,3,0,320,270,120,22,23,14,2,27,23,1,454,20,6,3,0,3,14,4,10,434,320,270,23,27,114,47,67]
[]
[]
[]
[]
[]
[]
[]
[]
[]
[]
[]
[]
[]
[]
[]
[]
[]
[]
[]
[]
["Census 2000 SummaryFile3 Sample Data  -  SF3TownQry7HousingA"]
[]
["TOWN_NAME","LOGRECNO","COUSUB","TotalPop","H1HousingUnitsTotal","H2SampleHU","H2SampleOccHU","H2SampleVacHU","H3HU100pctCount","H5HUTotal","H5HUUrban","H5HUUrbanInUrbanAreas","H5HUUrbanInUrbanClusters","H5HURural","H5HURuralFarm","H5HURuralNonFarm","H7HUOcc","H7HUOwnrOcc","H7HURentrOcc","H8HUVacant","H8HUVacantForRent","H8HUVacantForSale","H8HUVacRentedorSold","H8HUVacSeasonal","H8HUVacForMigrantWrkrs","H8HUOtherVacant","H14OccHUa","H14OwnerOccHU","H14OwnOccHuHh15to24","H14OwnOccHuHh25to34","H14OwnOccHuHh35to44","H14OwnOccHuHh45to54","H14OwnOccHuHh55to59","H14OwnOccHuHh60to64","H14OwnOccHuHh65to74","H14OwnOccHuHh75to84","H14OwnOccHuHh85Over","H14RenterOccHU1","H14RntrOccHuHh15to24","H14RntrOccHuHh25to34","H14RntrOccHuHh35to44","H14RntrOccHuHh45to54","H14RntrOccHuHh55to59","H14RntrOccHuHh60to64","H14RntrOccHuHh65to74","H14RntrOccHuHh75to84","H14RntrOccHuHh85Over","H15PopInOccHU","H15PopInOwnOccHU1","H15PopInRentOccHU1","H17OccupHUb","H17OwnOccHU2","H17OwnOccHU1PersonHH","H17OwnOccHU2PersonHH","H17OwnOccHU3PersonHH","H17OwnOccHU4PersonHH","H17OwnOccHU5PersonHH","H17OwnOccHU6PersonHH","H17OwnOccHU7PlusPersonHH","H17RentOccHU2","H17RntOccHU1PersonHH","H17RntOccHU2PersonHH","H17RntOccHU3PersonHH","H17RntOccHU4PersonHH","H17RntOccHU5PersonHH","H17RntOccHU6PersonHH","H17RntOccHU7PlusPersonHH","H18AvgHHSize","H18AvgHHSizeOwnOcc","H18AvgHHSizeRentOcc","H23TotHU","H23HU1Room","H23HU2Room","H23HU3Room","H23HU4Room","H23HU5Room","H23HU6Room","H23HU7Room","H23HU8Room","H23HU9orMoreRoom","H24MedianNumRooms","H25AggregNumRooms","H30TotalHU","H30Det1HU","H30Att1HU","H30Units2","H30Units3or4","H30Units5to9","H30Units10to19","H30Units20to49","H30Units50orMore","H30UnitsMobileHome","H30UnitsBoatRv","H32OccHUcTotal","H32OwnerOccHU3","H32OwnOccHU1Det","H32OwnOccHU1Att","H32OwnOccHU2Unit","H32OwnOccHU3to4Unit","H32OwnOccHU5to9Unit","H32OwnOccHU10to19Unit","H32OwnOccHU20to49Unit","H32OwnOccHU50plusUnit","H32OwnOccHUMobHom","H32OwnOccHUBoatRVOth","H32RentrOccHU3","H32RntrOccHU1Det","H32RntrOccHU1Att","H32RntrOccHU2Unit","H32RntrOccHU3to4Unit","H32RntrOccHU5to9Unit","H32RntrOccHU10to19Unit","H32RntrOccHU20to49Unit","H32RntrOccHU50PlusUnit","H32RntrOccHUMobHom","H32RntrOccHUBoatRVOth","H33TotPopInOccHU","H33PopInOwnOccHU2","H33PopInOOHU1Det","H33PopInOOHU1Att","H33PopInOOHU2unit","H33PopInOOHU3to4Unit","H33PopInOOHU5to9Unit","H33PopInOOHU10to19Unit","H33PopInOOHU20to49Unit","H33PopInOOHU50PlusUnit","H33PopInOOHUMobilHome","H33PopInOOHUOtherUnit","H33PopInRentOccHU2","H33PopInROHU1Det","H33PopInROHU1Att","H33PopInROHU2Unit","H33PopInROHU3to4Unit","H33PopInROHU5to9Unit","H33PopInROHU10to19Unit","H33PopInROHU20to49Unit","H33PopInROHU50PlusUnit","H33PopInROHUMobilHome","H33PopInROHUOtherUnit","H36OccHousingUnitsdTotal","H36OwnerOccHU4","H36OOHUBuilt99to0300","H36OOHUBuilt95to98","H36OOHUBuilt90to94","H36OOHUBuilt80to89","H36OOHUBuilt70to79","H36OOHUBuilt60to69","H36OOHUBuilt50to59","H36OOHUBuilt40to49","H36OOHUBuilt39Earlier","H36RentOccHU4","H36ROHUBuilt99to0300","H36ROHUBuilt95to98","H36ROHUBuilt90to94","H36ROHUBuilt80to89","H36ROHUBuilt70to79","H36ROHUBuilt60to69","H36ROHUBuilt50to59","H36ROHUBuilt40to49","H36ROHUBuilt39Earlier","H40OccupHousUnitse","H40HeatFuelUtilGas","H40HeatFuelBotGas","H40HeatFuelElect","H40HeatFuelOilKero","H40HeatFuelCoal","H40HeatFuelWood","H40HeatFuelSolar","H40HeatFuelOther","H40HeatFuelNone","H41TotalHU","H41HUNoBdrm","H41HU1Bdrm","H41HU2Bdrm","H41HU3Bdrm","H41HU4Bdrm","H41HU5MoreBdrm","H42OccuHousUnitf","H42OwnerOccHU5","H42OOHUNoBdrm","H42OOHU1Bdrm","H42OOHU2Bdrm","H42OOHU3Bdrm","H42OOHU4Bdrm","H42OOHU5PlusBdrm","H42RentOccHU5","H42ROHUNoBdrm","H42ROHU1Bdrm","H42ROHU2Bdrm","H42ROHU3Bdrm","H42ROHU4Bdrm","H42ROHU5PlusBdrm","H48OccupHousUnitsg","H48OwnerOccHU6","H48OOHUwCompltPlumFacil","H48OOHULackCompltPlumFacil","H48RentOccHU6","H48ROHUwCompltPlumFacil","H48ROHULackCompltPlumFacil","H51OccupHousUnitf","H51OwnerOccHU7","H51OOHUwCompleteKitFacil","H51OOHULackCompleteKitFacil","H51RenterOccHU7","H51ROHUwCompleteKitFacil","H51ROHULackCompleteKitFacil"]
["Allenstown","0002575","00660",4843,1962,278,274,4,1962,1962,1277,0,1277,685,0,685,1902,1356,546,60,0,15,15,0,0,30,1902,1356,34,204,386,297,86,90,180,60,19,546,10,116,144,87,32,29,28,60,40,4808,3709,1099,1902,1356,276,383,301,288,84,18,6,546,243,176,31,50,28,18,0,3,3,2,1962,0,73,162,419,634,336,197,51,90,5,10181,1962,829,42,136,116,193,6,14,0,626,0,1902,1356,769,13,22,14,25,0,0,0,513,0,546,60,29,114,102,153,6,14,0,68,0,4808,3709,2157,36,56,20,25,0,0,0,1415,0,1099,178,60,223,257,239,6,13,0,123,0,1902,1356,66,114,54,200,417,209,91,52,153,546,0,30,21,138,164,49,24,14,106,1902,254,192,161,1233,6,56,0,0,0,1962,0,245,674,854,163,26,1902,1356,0,34,401,753,142,26,546,0,211,228,86,21,0,1902,1356,1349,7,546,538,8,1902,1356,1356,0,546,538,8]
["Andover","0002590","01460",2109,1038,491,382,109,1038,1038,0,0,0,1038,9,1029,823,682,141,215,2,14,11,174,0,14,823,682,2,79,148,174,64,62,90,49,14,141,10,34,45,24,7,7,8,4,2,2095,1776,319,823,682,119,283,119,109,34,10,8,141,50,29,29,29,4,0,0,3,3,2,1038,15,16,46,180,221,209,170,83,98,6,6098,1038,871,12,25,25,9,2,0,0,92,2,823,682,603,8,2,0,0,0,0,0,69,0,141,70,2,21,20,9,2,0,0,17,0,2095,1776,1603,13,2,0,0,0,0,0,158,0,319,155,5,51,52,15,2,0,0,39,0,823,682,11,36,50,142,93,52,50,42,206,141,0,2,4,17,18,11,11,17,61,823,2,107,0,595,0,119,0,0,0,1038,15,75,331,453,125,39,823,682,4,14,187,346,107,24,141,3,25,59,40,7,7,823,682,676,6,141,138,3,823,682,678,4,141,138,3]
["Boscawen","0002596","06260",3672,1295,202,200,2,1295,1295,550,0,550,745,0,745,1260,948,312,35,17,0,18,0,0,0,1260,948,11,113,271,179,66,109,104,50,45,312,18,104,66,42,31,12,25,14,0,3242,2583,659,1260,948,164,363,180,152,62,20,7,312,110,88,59,49,6,0,0,3,3,2,1295,0,47,95,280,293,248,148,103,81,5,7122,1295,775,18,87,131,32,26,0,0,226,0,1260,948,719,18,31,0,0,0,0,0,180,0,312,39,0,56,113,32,26,0,0,46,0,3242,2583,2019,28,94,0,0,0,0,0,442,0,659,102,0,133,219,80,28,0,0,97,0,1260,948,9,81,38,184,141,137,46,66,246,312,0,0,32,49,78,23,25,7,98,1260,169,167,113,757,7,47,0,0,0,1295,0,153,463,463,178,38,1260,948,0,44,288,405,173,38,312,0,74,175,58,5,0,1260,948,948,0,312,312,0,1260,948,948,0,312,312,0]
["Bow","0002606","06500",7138,2330,249,248,1,2330,2330,966,0,966,1364,9,1355,2304,2194,110,26,0,0,0,26,0,0,2304,2194,0,143,716,651,265,143,200,55,21,110,0,34,46,13,0,17,0,0,0,7138,6896,242,2304,2194,198,742,388,570,214,46,36,110,0,17,40,34,0,0,19,3,3,2,2330,0,6,10,77,189,415,655,443,535,7,17264,2330,2301,11,0,12,0,0,0,0,6,0,2304,2194,2177,11,0,0,0,0,0,0,6,0,110,98,0,0,12,0,0,0,0,0,0,7138,6896,6866,11,0,0,0,0,0,0,19,0,242,220,0,0,22,0,0,0,0,0,0,2304,2194,34,201,163,649,549,297,144,20,137,110,0,13,0,17,0,44,0,0,36,2304,353,240,156,1483,0,72,0,0,0,2330,0,16,193,1274,684,163,2304,2194,0,16,161,1189,684,144,110,0,0,32,59,0,19,2304,2194,2194,0,110,110,0,2304,2194,2194,0,110,110,0]
["Bradford","0002617","06980",1454,762,361,258,103,762,762,0,0,0,762,10,752,559,444,115,203,0,11,2,182,0,8,559,444,2,42,88,151,23,22,82,21,13,115,11,20,27,29,12,4,3,9,0,1433,1205,228,559,444,70,175,84,78,19,6,12,115,45,37,14,15,4,0,0,3,3,2,762,13,13,53,153,146,146,82,82,74,6,4386,762,673,7,15,24,12,9,0,0,22,0,559,444,422,3,3,0,0,0,0,0,16,0,115,60,0,8,24,12,9,0,0,2,0,1433,1205,1127,13,13,0,0,0,0,0,52,0,228,113,0,21,55,16,20,0,0,3,0,559,444,3,19,35,66,74,43,19,15,170,115,0,0,0,17,18,20,12,4,44,559,4,106,27,339,2,79,2,0,0,762,13,86,241,282,94,46,559,444,0,19,138,178,72,37,115,5,39,40,20,6,5,559,444,440,4,115,112,3,559,444,442,2,115,115,0]
["Canterbury","0002622","09860",1979,838,375,352,23,838,838,2,0,2,836,22,814,749,677,72,89,4,3,0,82,0,0,749,677,2,58,155,247,72,34,62,45,2,72,3,2,20,12,7,0,10,12,6,1976,1839,137,749,677,85,292,135,111,37,14,3,72,29,24,9,8,2,0,0,3,3,2,838,0,22,22,83,186,172,147,101,105,6,5291,838,793,7,23,0,3,0,0,0,12,0,749,677,667,4,2,0,0,0,0,0,4,0,72,48,0,17,0,3,0,0,0,4,0,1976,1839,1816,10,6,0,0,0,0,0,7,0,137,102,0,19,0,4,0,0,0,12,0,749,677,11,39,59,198,123,58,35,18,136,72,0,2,2,8,12,7,4,2,35,749,22,125,24,460,0,108,10,0,0,838,2,48,227,381,144,36,749,677,2,14,167,332,130,32,72,0,14,33,14,7,4,749,677,677,0,72,70,2,749,677,675,2,72,72,0]
["Chichester","0002629","12420",2236,849,374,362,12,849,849,0,0,0,849,4,845,823,729,94,26,0,4,3,10,0,9,823,729,2,111,209,210,34,35,90,23,15,94,5,28,13,18,4,0,21,0,5,2228,2019,209,823,729,115,257,149,138,56,14,0,94,30,20,25,14,0,2,3,3,3,2,849,0,14,25,104,173,222,132,89,90,6,5252,849,707,15,26,19,0,0,0,0,82,0,823,729,649,6,12,2,0,0,0,0,60,0,94,36,9,14,17,0,0,0,0,18,0,2228,2019,1829,16,25,12,0,0,0,0,137,0,209,84,19,18,48,0,0,0,0,40,0,823,729,30,49,48,193,154,50,33,20,152,94,0,0,9,11,5,2,5,0,62,823,2,99,18,617,0,79,6,2,0,849,0,43,235,455,92,24,823,729,0,27,189,408,86,19,94,0,14,37,32,6,5,823,729,722,7,94,92,2,823,729,722,7,94,94,0]
["Concord","0002635","14200",40687,16881,2267,2210,57,16881,16881,15141,0,15141,1740,36,1704,16281,8383,7898,600,306,79,63,89,15,48,16281,8383,86,836,2095,2045,731,544,1081,728,237,7898,761,2137,1739,1198,394,234,501,589,345,37410,22259,15151,16281,8383,1789,2940,1439,1409,624,153,29,7898,3529,2401,1105,593,209,42,19,2,3,2,16881,310,595,2216,3896,3134,2648,1960,1066,1056,5,88098,16881,6874,662,1720,1621,1506,1231,1539,661,1067,0,16281,8383,6054,458,502,260,123,79,11,0,896,0,7898,690,197,1145,1286,1292,1064,1451,651,122,0,37410,22259,17234,896,1240,642,285,144,9,0,1809,0,15151,1817,491,2477,2303,2430,1859,2683,826,265,0,16281,8383,133,303,422,1676,1152,671,615,444,2967,7898,20,99,481,1735,1133,863,472,354,2741,16281,7425,764,2861,4765,0,166,0,269,31,16881,421,2867,6487,5103,1613,390,16281,8383,8,241,2355,4052,1380,347,7898,403,2459,3809,971,213,43,16281,8383,8369,14,7898,7875,23,16281,8383,8375,8,7898,7796,102]
["Danbury","0002701","16980",1071,596,281,190,91,596,596,0,0,0,596,6,590,435,375,60,161,0,16,7,125,0,13,435,375,9,32,101,82,30,25,48,29,19,60,6,20,15,9,2,3,2,3,0,1071,915,156,435,375,85,157,63,46,24,0,0,60,9,19,18,9,3,2,0,2,2,3,596,9,22,31,99,171,154,33,61,16,5,3200,596,494,7,6,19,0,0,0,0,64,6,435,375,322,7,2,3,0,0,0,0,38,3,60,35,0,4,9,0,0,0,0,12,0,1071,915,790,15,3,3,0,0,0,0,102,2,156,85,0,9,18,0,0,0,0,44,0,435,375,11,30,16,95,76,35,9,17,86,60,0,0,0,7,10,16,10,0,17,435,3,101,5,251,0,75,0,0,0,596,9,65,204,250,53,15,435,375,0,23,132,159,48,13,60,0,11,21,24,4,0,435,375,363,12,60,60,0,435,375,370,5,60,60,0]
["Dunbarton","0002706","19460",2226,858,355,344,11,858,858,0,0,0,858,15,843,814,735,79,44,2,0,4,34,0,4,814,735,2,90,245,199,62,49,57,25,6,79,6,21,34,10,0,0,3,5,0,2226,2082,144,814,735,97,303,123,154,47,9,2,79,17,23,17,9,13,0,0,3,3,2,858,3,8,23,80,136,221,186,109,92,6,5508,858,801,15,9,17,0,0,0,0,16,0,814,735,709,7,3,0,0,0,0,0,16,0,79,50,8,6,15,0,0,0,0,0,0,2226,2082,2016,23,10,0,0,0,0,0,33,0,144,87,17,13,27,0,0,0,0,0,0,814,735,18,117,77,146,121,45,54,16,141,79,0,7,0,17,9,5,5,8,28,814,0,99,17,610,0,88,0,0,0,858,3,50,203,443,125,34,814,735,0,29,150,407,118,31,79,3,17,30,23,3,3,814,735,733,2,79,79,0,814,735,733,2,79,79,0]
["Epsom","0002712","24900",4021,1592,249,232,17,1592,1592,0,0,0,1592,6,1586,1491,1211,280,101,4,0,0,87,0,10,1491,1211,6,171,374,333,77,76,106,40,28,280,29,67,84,21,23,0,15,34,7,3903,3363,540,1491,1211,176,481,218,233,68,31,4,280,118,77,20,46,14,0,5,3,3,2,1592,23,30,107,318,325,300,254,126,109,6,8977,1592,1069,25,92,29,8,20,0,13,326,10,1491,1211,905,0,30,0,0,0,0,0,276,0,280,94,18,58,29,8,20,0,13,40,0,3903,3363,2691,0,111,0,0,0,0,0,561,0,540,194,59,129,32,5,22,0,13,86,0,1491,1211,34,94,121,340,314,71,54,27,156,280,33,7,8,79,30,19,21,0,83,1491,0,254,72,1061,0,96,0,8,0,1592,23,152,500,707,184,26,1491,1211,8,48,339,618,172,26,280,0,95,100,73,12,0,1491,1211,1205,6,280,280,0,1491,1211,1211,0,280,280,0]
["Franklin","0002721","27380",8405,3676,430,382,48,3676,3676,2947,0,2947,729,12,717,3319,1911,1408,357,50,36,0,237,0,34,3319,1911,19,178,507,474,119,62,305,214,33,1408,164,328,205,196,104,88,167,127,29,8187,4981,3206,3319,1911,352,724,387,241,153,21,33,1408,545,428,173,170,47,14,31,2,3,2,3676,6,131,529,715,613,748,408,243,283,5,19898,3676,2090,51,394,321,233,236,123,53,175,0,3319,1911,1680,16,54,7,15,0,0,0,139,0,1408,160,35,291,284,211,236,123,53,15,0,8187,4981,4488,42,110,34,17,0,0,0,290,0,3206,368,59,823,814,426,389,212,75,40,0,3319,1911,56,28,41,286,193,140,252,237,678,1408,14,0,70,187,185,138,94,104,616,3319,774,249,271,1960,0,45,0,11,9,3676,24,685,1117,1243,420,187,3319,1911,0,70,436,969,306,130,1408,18,566,535,177,93,19,3319,1911,1875,36,1408,1390,18,3319,1911,1902,9,1408,1390,18]
["Henniker","0002743","35540",4433,1679,257,237,20,1679,1679,0,0,0,1679,0,1679,1585,1085,500,94,18,5,14,51,0,6,1585,1085,6,82,336,323,143,62,64,55,14,500,100,99,135,79,12,10,10,45,10,3998,2882,1116,1585,1085,192,375,186,222,90,20,0,500,223,135,72,42,10,18,0,3,3,2,1679,18,74,168,271,322,264,280,121,161,6,9486,1679,1064,60,98,143,156,41,10,6,94,7,1585,1085,911,33,36,5,6,0,0,0,87,7,500,97,27,62,119,138,41,10,6,0,0,3998,2882,2457,91,75,22,4,0,0,0,220,13,1116,293,60,197,225,255,57,11,18,0,0,1585,1085,14,57,86,332,239,68,51,0,238,500,6,8,29,58,77,29,11,27,255,1585,36,362,124,816,10,232,0,0,5,1679,18,251,509,625,244,32,1585,1085,0,64,259,519,220,23,500,12,155,221,81,22,9,1585,1085,1058,27,500,500,0,1585,1085,1078,7,500,500,0]
["Hill","0002754","35860",992,436,194,167,27,436,436,0,0,0,436,5,431,382,332,50,54,0,4,0,50,0,0,382,332,3,31,91,76,27,18,48,30,8,50,4,21,17,3,0,0,0,5,0,992,896,96,382,332,79,123,50,53,17,6,4,50,5,18,8,14,5,0,0,3,3,2,436,0,2,27,83,76,112,66,25,45,6,2581,436,364,17,5,0,0,0,0,0,50,0,382,332,279,13,2,0,0,0,0,0,38,0,50,35,4,3,0,0,0,0,0,8,0,992,896,757,40,4,0,0,0,0,0,95,0,96,64,10,8,0,0,0,0,0,14,0,382,332,8,12,27,56,56,26,40,33,74,50,0,3,4,10,15,4,0,12,2,382,0,41,3,271,0,67,0,0,0,436,0,37,134,188,61,16,382,332,0,25,91,157,45,14,50,0,0,31,15,4,0,382,332,329,3,50,46,4,382,332,332,0,50,50,0]
["Hooksett","0002759","37300",11721,4307,461,453,8,4307,4307,2994,2994,0,1313,7,1306,4147,3306,841,160,48,60,0,16,0,36,4147,3306,11,379,1019,780,340,225,316,187,49,841,85,230,210,146,11,39,67,41,12,10855,9238,1617,4147,3306,491,1234,652,625,220,84,0,841,324,252,126,101,28,10,0,3,3,2,4307,17,111,209,632,934,966,789,503,146,6,24867,4307,2641,431,274,245,81,17,280,72,266,0,4147,3306,2452,404,78,111,32,11,14,0,204,0,841,137,27,136,118,49,6,234,72,62,0,10855,9238,7161,994,211,313,112,31,34,0,382,0,1617,242,89,305,173,89,17,289,286,127,0,4147,3306,127,341,227,960,621,454,227,87,262,841,0,0,103,256,169,50,80,25,158,4147,1161,284,191,2375,9,67,0,35,25,4307,17,313,1477,1996,439,65,4147,3306,0,32,958,1838,420,58,841,17,281,395,122,19,7,4147,3306,3290,16,841,816,25,4147,3306,3298,8,841,841,0]
["Hopkinton","0002799","37540",5399,2210,355,333,22,2210,2210,0,0,0,2210,20,2190,2084,1798,286,126,6,20,0,69,0,31,2084,1798,0,156,444,470,219,104,218,134,53,286,17,29,91,58,12,12,25,30,12,5399,4820,579,2084,1798,303,690,314,306,119,66,0,286,121,94,41,30,0,0,0,3,3,2,2210,0,29,93,163,335,550,355,298,387,6,14703,2210,1829,44,96,34,49,0,35,0,123,0,2084,1798,1599,33,48,0,7,0,0,0,111,0,286,114,11,48,30,36,0,35,0,12,0,5399,4820,4427,50,129,0,11,0,0,0,203,0,579,273,13,75,63,63,0,65,0,27,0,2084,1798,49,170,90,405,310,197,115,64,398,286,0,0,31,52,17,12,18,11,145,2084,18,394,103,1457,0,100,0,12,0,2210,6,144,517,1021,409,113,2084,1798,0,47,372,879,387,113,286,6,90,101,77,12,0,2084,1798,1791,7,286,286,0,2084,1798,1786,12,286,286,0]
["Loudon","0002813","43380",4481,1684,259,251,8,1684,1684,0,0,0,1684,19,1665,1611,1445,166,73,0,12,0,61,0,0,1611,1445,19,201,419,453,107,45,128,67,6,166,0,45,48,45,0,7,21,0,0,4479,4062,417,1611,1445,207,532,283,258,116,39,10,166,38,56,31,31,0,0,10,3,3,3,1684,0,8,72,188,473,367,263,160,153,6,10202,1684,1306,13,53,29,13,0,0,0,270,0,1611,1445,1185,13,14,0,0,0,0,0,233,0,166,80,0,31,29,13,0,0,0,13,0,4479,4062,3372,37,46,0,0,0,0,0,607,0,417,246,0,79,40,15,0,0,0,37,0,1611,1445,51,91,143,518,207,84,60,32,259,166,0,12,7,18,12,27,24,6,60,1611,59,336,27,1025,6,152,0,6,0,1684,0,79,412,877,264,52,1611,1445,0,32,321,819,228,45,166,0,43,51,29,36,7,1611,1445,1445,0,166,166,0,1611,1445,1445,0,166,166,0]
["New London","0002826","52100",4116,2085,355,269,86,2085,2085,0,0,0,2085,13,2072,1574,1297,277,511,4,34,19,426,0,28,1574,1297,4,23,158,234,88,84,348,304,54,277,31,45,54,56,8,15,9,28,31,3406,3038,368,1574,1297,289,677,134,124,61,6,6,277,166,57,34,11,9,0,0,2,2,1,2085,6,68,114,168,309,443,403,264,310,6,13392,2085,1636,179,51,53,72,0,88,0,0,6,1574,1297,1100,101,32,0,20,0,38,0,0,6,277,117,8,14,53,48,0,37,0,0,0,3406,3038,2667,207,51,0,57,0,44,0,0,12,368,184,5,15,57,75,0,32,0,0,0,1574,1297,62,166,91,263,208,140,91,40,236,277,0,0,0,78,22,16,27,24,110,1574,33,321,117,1033,8,62,0,0,0,2085,33,142,482,922,347,159,1574,1297,6,16,246,643,282,104,277,7,91,113,58,0,8,1574,1297,1297,0,277,277,0,1574,1297,1297,0,277,277,0]
["Newbury","0002820","50900",1702,1313,630,327,303,1311,1313,0,0,0,1313,0,1313,694,600,94,619,6,8,8,588,0,9,694,600,2,59,139,139,46,50,111,46,8,94,4,24,13,30,6,5,5,7,0,1705,1506,199,694,600,124,263,93,79,24,11,6,94,30,30,16,9,4,5,0,2,3,2,1313,3,20,79,192,262,317,181,132,127,6,7853,1313,1261,30,7,4,0,0,0,0,11,0,694,600,574,12,7,2,0,0,0,0,5,0,94,92,0,0,2,0,0,0,0,0,0,1705,1506,1458,23,16,3,0,0,0,0,6,0,199,193,0,0,6,0,0,0,0,0,0,694,600,18,41,72,156,119,56,24,12,102,94,0,3,6,18,27,7,0,13,20,694,4,194,24,380,2,85,0,5,0,1313,5,93,363,617,164,71,694,600,0,25,130,323,88,34,94,0,7,20,50,12,5,694,600,598,2,94,94,0,694,600,599,1,94,94,0]
["Northfield","0002833","54260",4548,1782,269,255,14,1782,1782,734,0,734,1048,12,1036,1706,1158,548,76,4,16,16,40,0,0,1706,1158,6,97,362,299,145,47,115,81,6,548,77,131,79,78,52,6,54,57,14,4489,3216,1273,1706,1158,191,432,208,211,76,13,27,548,149,162,131,81,18,7,0,3,3,2,1782,9,49,62,507,418,347,181,98,111,5,9654,1782,1081,46,96,92,136,14,98,9,210,0,1706,1158,914,24,30,13,14,0,6,0,157,0,548,99,22,58,79,122,14,92,9,53,0,4489,3216,2605,52,141,56,20,0,12,0,330,0,1273,259,65,104,167,308,18,178,12,162,0,1706,1158,12,52,112,310,233,95,58,41,245,548,0,8,31,159,102,49,49,22,128,1706,261,243,126,963,0,106,0,0,7,1782,9,143,679,732,173,46,1706,1158,0,52,276,636,153,41,548,9,79,385,55,20,0,1706,1158,1158,0,548,548,0,1706,1158,1152,6,548,548,0]
["Pembroke","0002848","60020",6897,2734,302,297,5,2734,2734,1924,0,1924,810,0,810,2661,1808,853,73,7,43,0,23,0,0,2661,1808,31,184,510,449,197,131,196,80,30,853,145,115,289,123,25,44,36,66,10,6897,5309,1588,2661,1808,284,559,381,390,142,26,26,853,331,284,132,78,28,0,0,3,3,2,2734,8,95,285,391,535,429,433,275,283,6,15927,2734,1578,132,225,267,260,18,44,64,146,0,2661,1808,1478,108,98,53,0,9,0,0,62,0,853,86,17,125,214,253,9,44,64,41,0,6897,5309,4547,232,236,116,0,12,0,0,166,0,1588,182,48,254,371,466,13,76,131,47,0,2661,1808,23,37,72,516,318,206,152,55,429,853,0,9,9,115,146,54,61,35,424,2661,519,341,183,1484,8,88,0,29,9,2734,8,374,876,887,482,107,2661,1808,8,35,390,813,465,97,853,0,337,415,74,17,10,2661,1808,1808,0,853,853,0,2661,1808,1808,0,853,853,0]
["Pittsfield","0002869","61940",3931,1569,231,219,12,1569,1569,0,0,0,1569,0,1569,1498,914,584,71,16,9,16,14,0,16,1498,914,11,109,250,164,97,68,128,82,5,584,77,142,126,87,19,23,53,23,34,3925,2679,1246,1498,914,120,384,143,141,75,47,4,584,219,137,114,82,32,0,0,3,3,2,1569,10,74,177,274,324,283,178,44,205,5,8751,1569,878,15,101,137,135,53,102,30,118,0,1498,914,748,15,39,5,0,0,0,0,107,0,584,86,0,62,120,131,53,102,30,0,0,3925,2679,2291,24,92,15,0,0,0,0,257,0,1246,207,0,137,236,309,103,171,83,0,0,1498,914,17,72,49,213,82,31,40,35,375,584,7,0,38,104,77,11,32,19,296,1498,105,286,42,966,0,99,0,0,0,1569,10,274,459,516,229,81,1498,914,10,26,212,399,193,74,584,0,228,227,86,36,7,1498,914,904,10,584,584,0,1498,914,904,10,584,584,0]
["Salisbury","0002880","66980",1137,514,240,196,44,514,514,0,0,0,514,2,512,435,410,25,79,2,4,2,69,0,2,435,410,8,48,86,102,57,44,38,23,4,25,0,12,8,2,0,3,0,0,0,1137,1075,62,435,410,72,183,48,64,35,6,2,25,2,10,8,3,2,0,0,3,3,2,514,2,7,23,77,117,124,57,54,53,6,3083,514,481,5,10,1,0,0,0,0,17,0,435,410,387,5,2,0,0,0,0,0,16,0,25,18,0,6,0,0,0,0,0,1,0,1137,1075,1030,13,2,0,0,0,0,0,30,0,62,40,0,17,0,0,0,0,0,5,0,435,410,7,23,25,126,68,44,16,8,93,25,0,0,0,5,2,3,0,2,13,435,2,57,8,271,0,94,0,3,0,514,2,24,156,237,73,22,435,410,0,11,106,210,68,15,25,0,0,12,7,3,3,435,410,408,2,25,25,0,435,410,410,0,25,25,0]
["Sutton","0002885","75460",1544,824,391,289,102,826,824,0,0,0,824,4,820,618,527,91,206,4,8,4,174,0,16,618,527,0,29,112,164,52,39,80,48,3,91,5,10,24,26,8,6,4,6,2,1528,1325,203,618,527,90,241,76,72,44,2,2,91,31,25,23,10,2,0,0,2,3,2,824,25,16,73,106,161,161,133,70,79,6,4752,824,766,13,30,2,0,0,0,0,13,0,618,527,506,11,2,0,0,0,0,0,8,0,91,59,2,23,2,0,0,0,0,5,0,1528,1325,1280,28,2,0,0,0,0,0,15,0,203,139,2,40,3,0,0,0,0,19,0,618,527,4,12,36,142,83,36,29,14,171,91,0,0,7,14,12,10,17,6,25,618,7,150,16,340,0,101,4,0,0,824,27,66,230,384,94,23,618,527,0,15,126,288,75,23,91,0,16,29,40,6,0,618,527,520,7,91,87,4,618,527,524,3,91,87,4]
["Warner","0002891","78580",2760,1228,547,477,70,1228,1228,0,0,0,1228,2,1226,1048,797,251,180,8,13,3,153,0,3,1048,797,4,61,183,251,88,51,101,46,12,251,16,61,48,49,14,15,19,20,9,2646,2111,535,1048,797,139,307,145,125,50,18,13,251,117,70,24,24,5,5,6,3,3,2,1228,16,34,129,235,234,235,108,113,124,5,6891,1228,921,8,41,58,39,12,15,0,134,0,1048,797,692,6,6,9,0,3,0,0,81,0,251,98,2,32,49,36,9,15,0,10,0,2646,2111,1851,9,16,21,0,12,0,0,202,0,535,262,2,70,79,61,11,22,0,28,0,1048,797,10,58,52,156,78,59,54,21,309,251,5,0,38,37,40,19,10,13,89,1048,4,206,30,667,11,117,4,7,2,1228,20,175,435,403,156,39,1048,797,4,51,244,333,134,31,251,12,88,93,36,18,4,1048,797,791,6,251,245,6,1048,797,792,5,251,251,0]
["Webster","0002897","80020",1579,672,303,273,30,672,672,0,0,0,672,6,666,581,535,46,91,0,9,3,76,0,3,581,535,8,54,142,160,43,41,47,25,15,46,1,14,10,9,2,4,4,2,0,1575,1444,131,581,535,73,218,99,102,21,16,6,46,10,16,11,9,0,0,0,3,3,3,672,3,2,39,74,174,153,101,62,64,6,4051,672,614,8,0,4,0,0,0,0,43,3,581,535,491,6,0,2,0,0,0,0,36,0,46,38,2,0,2,0,0,0,0,4,0,1575,1444,1343,11,0,7,0,0,0,0,83,0,131,95,15,0,8,0,0,0,0,13,0,581,535,6,47,45,109,103,90,34,6,95,46,0,4,5,8,13,2,7,5,2,581,2,120,6,358,0,95,0,0,0,672,3,48,193,291,105,32,581,535,0,17,145,254,90,29,46,0,10,18,15,3,0,581,535,530,5,46,41,5,581,535,533,2,46,44,2]
["Wilmot","0002902","84900",1144,530,239,206,33,530,530,0,0,0,530,11,519,459,391,68,71,0,6,2,55,0,8,459,391,3,29,81,117,37,41,49,24,10,68,3,23,10,7,8,5,12,0,0,1144,1025,119,459,391,79,162,57,62,24,7,0,68,23,26,11,5,3,0,0,2,3,2,530,10,18,26,60,78,136,78,66,58,6,3224,530,470,8,17,8,12,0,0,0,15,0,459,391,366,3,13,1,0,0,0,0,8,0,68,41,3,4,5,12,0,0,0,3,0,1144,1025,976,7,23,6,0,0,0,0,13,0,119,73,5,9,7,22,0,0,0,3,0,459,391,6,23,39,98,55,31,12,20,107,68,0,2,3,15,5,10,4,0,29,459,0,110,2,317,0,30,0,0,0,530,10,40,129,257,74,20,459,391,2,10,91,209,68,11,68,1,15,19,31,2,0,459,391,387,4,68,67,1,459,391,386,5,68,68,0]
[]
[]
[]
[]
[]
[]
[]
[]
[]
[]
[]
[]
[]
[]
[]
[]
[]
[]
[]
[]
[]
["Census 2000 SummaryFile3 Sample Data  -  SF3TownQry8HousingCostA"]
[]
["TOWN_NAME","LOGRECNO","COUSUB","TotalPop","H62RntrOccHU","H62RntrOccHUwRent","H62ROHUGRent<100","H62ROHUGRent100to149","H62ROHUGRent150to199","H62ROHUGRent200to249","H62ROHUGRent250to299","H62ROHUGRent300to349","H62ROHUGRent350to399","H62ROHUGRent400to449","H62ROHUGRent450to499","H62ROHUGRent500to549","H62ROHUGRent550to599","H62ROHUGRent600to649","H62ROHUGRent650to699","H62ROHUGRent700to749","H62ROHUGRent750to799","H62ROHUGRent800to899","H62ROHUGRent900to999","H62ROHUGRent1000to1249","H62ROHUGRent1250to1499","H62ROHUGRent1500to1999","H62ROHUGRent2000>","H62ROHUNoGRent","H63MedianGrossRnt","H69RenterOccHsU","H69GRnt<10PctHHInc","H69GRnt10to15PctHHInc","H69GRnt15to20PctHHInc","H69GRnt20to25PctHHInc","H69GRnt25to30PctHHInc","H69GRnt30to35PctHHInc","H69GRnt35to40PctHHInc","H69GRnt40to50PctHHInc","H69GRnt>50PctHHInc","H69GRntPctNotcomputed","H73RenterOccHU","H73ROHUHhInc<10k","H73ROHUHhInc<10kRnt<20pct","H73ROHUHhInc<10kRnt20to25pct","H73ROHUHhInc<10kRnt25to30pct","H73ROHUHhInc<10kRnt30to35pct","H73ROHUHhInc<10kRnt>35pct","H73ROHUHhInc<10kPctNotComput","H73ROHUHhInc10to20k","H73ROHUHhInc10to20kRnt<20pct","H73ROHUHhInc10to20kRnt20to25pct","H73ROHUHhInc10to20kRnt25to30pct","H73ROHUHhInc10to20kRnt30to35pct","H73ROHUHhInc10to20kRnt>35pct","H73ROHUHhInc10to20kRntPctNC","H73ROHUHhInc20to35k","H73ROHUHhInc20to35kRnt<20pct","H73ROHUHhInc20to35kRnt20to25pct","H73ROHUHhInc20to35kRnt25to30pct","H73ROHUHhInc20to35kRnt30to35pct","H73ROHUHhInc20to35kRnt>35pct","H73ROHUHhInc20to35kRntPctNC","H73ROHUHhInc35to40k","H73ROHUHhInc35to40kRnt<20pct","H73ROHUHhInc35to40kRnt20to25pct","H73ROHUHhInc35to40kRnt25to30pct","H73ROHUHhInc35to40kRnt30to35pct","H73ROHUHhInc35to40kRnt>35pct","H73ROHUHhInc35to40kRntPctNC","H73ROHUHhInc50to75k","H73ROHUHhInc50to75kRnt<20pct","H73ROHUHhInc50to75kRnt20to25pct","H73ROHUHhInc50to75kRnt25to30pct","H73ROHUHhInc50to75kRnt30to35pct","H73ROHUHhInc50to75kRnt>35pct","H73ROHUHhInc50to75kRntPctNC","H73ROHUHhInc75to100k","H73ROHUHhInc75to100kRnt<20pct","H73ROHUHhInc75to100kRnt20to25pct","H73ROHUHhInc75to100kRnt25to30pct","H73ROHUHhInc75to100kRnt30to35pct","H73ROHUHhInc75to100kRnt>35pct","H73ROHUHhInc75to100kRntPctNC","H73ROHUHhInc>100k","H73ROHUHhInc>100kRnt<20pct","H73ROHUHhInc>100kRnt20to25pct","H73ROHUHhInc>100kRnt25to30pct","H73ROHUHhInc>100kRnt30to35pct","H73ROHUHhInc>100kRnt>35pct","H73ROHUHhInc>100kRntPctNC"]
["Allenstown","0002575","00660",4843,536,514,12,14,7,8,6,0,24,42,35,54,58,49,18,53,46,12,33,36,7,0,0,22,597,536,35,53,89,91,36,69,36,55,50,22,536,82,12,14,0,21,28,7,70,0,0,0,6,64,0,163,17,26,36,35,49,0,104,50,32,0,7,0,15,80,61,19,0,0,0,0,21,21,0,0,0,0,0,16,16,0,0,0,0,0]
["Andover","0002590","01460",2109,123,103,0,0,0,0,0,0,4,9,9,19,13,15,7,2,2,7,4,12,0,0,0,20,590,123,7,17,18,11,21,6,4,5,14,20,123,11,0,0,0,0,9,2,18,0,0,2,4,12,0,28,0,7,15,2,2,2,36,25,0,4,0,0,7,16,5,4,0,0,0,7,10,10,0,0,0,0,0,4,2,0,0,0,0,2]
["Boscawen","0002596","06260",3672,312,303,0,0,0,18,5,0,14,34,8,53,59,27,16,16,18,16,0,0,10,9,0,9,567,312,35,11,28,61,19,46,34,0,69,9,312,50,0,0,0,0,50,0,67,5,0,14,7,32,9,110,8,46,5,39,12,0,39,15,15,0,0,9,0,6,6,0,0,0,0,0,9,9,0,0,0,0,0,31,31,0,0,0,0,0]
["Bow","0002606","06500",7138,110,110,0,0,0,0,0,0,0,0,0,0,17,12,13,32,19,0,17,0,0,0,0,0,720,110,0,36,30,0,15,0,0,17,12,0,110,0,0,0,0,0,0,0,29,0,0,0,0,29,0,15,0,0,15,0,0,0,30,30,0,0,0,0,0,0,0,0,0,0,0,0,36,36,0,0,0,0,0,0,0,0,0,0,0,0]
["Bradford","0002617","06980",1454,99,97,0,0,0,0,0,0,8,15,4,8,4,14,0,11,8,13,7,5,0,0,0,2,634,99,2,14,14,13,9,11,10,7,14,5,99,7,0,0,0,0,4,3,24,0,0,2,2,20,0,29,2,7,4,9,7,0,15,8,6,1,0,0,0,14,10,0,2,0,0,2,8,8,0,0,0,0,0,2,2,0,0,0,0,0]
["Canterbury","0002622","09860",1979,55,44,0,0,2,5,2,5,0,2,0,3,2,3,2,4,5,2,0,0,2,5,0,11,617,55,0,0,6,14,7,7,3,3,2,13,55,9,0,2,2,0,3,2,12,2,5,0,0,2,3,14,0,2,5,5,0,2,12,4,5,0,0,0,3,5,0,0,0,2,3,0,0,0,0,0,0,0,0,3,0,0,0,0,0,3]
["Chichester","0002629","12420",2236,81,71,0,0,0,0,0,0,0,3,11,18,7,4,7,11,0,2,0,8,0,0,0,10,575,81,15,14,9,15,6,6,4,0,2,10,81,7,0,0,0,0,2,5,6,0,0,0,6,0,0,24,6,8,3,0,4,3,12,5,7,0,0,0,0,13,10,0,3,0,0,0,11,9,0,0,0,0,2,8,8,0,0,0,0,0]
["Concord","0002635","14200",40687,7872,7706,15,149,157,232,174,169,178,492,453,525,630,717,777,762,658,732,371,281,109,58,67,166,647,7872,344,1002,1502,1310,891,564,245,502,1271,241,7872,1023,55,58,78,21,729,82,1442,123,97,117,170,894,41,1961,313,425,508,319,363,33,1520,696,608,135,47,16,18,1301,1107,107,39,0,16,32,412,356,0,14,7,0,35,213,198,15,0,0,0,0]
["Danbury","0002701","16980",1071,50,44,0,0,0,3,0,5,0,3,5,3,0,3,2,6,5,5,2,2,0,0,0,6,650,50,0,7,6,6,0,5,5,3,12,6,50,5,0,0,0,0,5,0,15,0,0,0,0,15,0,14,6,0,0,2,0,6,9,2,4,0,3,0,0,7,5,2,0,0,0,0,0,0,0,0,0,0,0,0,0,0,0,0,0,0]
["Dunbarton","0002706","19460",2226,53,45,0,0,0,0,0,0,0,3,7,3,2,0,5,14,0,2,0,9,0,0,0,8,709,53,0,10,9,19,2,2,3,0,0,8,53,5,0,0,0,0,0,5,6,0,0,0,0,3,3,5,0,5,0,0,0,0,24,6,14,2,2,0,0,9,9,0,0,0,0,0,4,4,0,0,0,0,0,0,0,0,0,0,0,0]
["Epsom","0002712","24900",4021,264,256,0,6,22,0,8,20,11,15,8,16,25,8,37,12,0,40,0,28,0,0,0,8,594,264,35,30,33,66,21,21,8,8,34,8,264,6,6,0,0,0,0,0,61,0,21,6,7,27,0,80,7,20,8,14,23,8,48,22,19,7,0,0,0,56,50,6,0,0,0,0,13,13,0,0,0,0,0,0,0,0,0,0,0,0]
["Franklin","0002721","27380",8405,1390,1353,0,36,95,130,66,39,66,62,122,124,182,96,82,68,63,60,25,37,0,0,0,37,524,1390,110,115,217,147,222,78,93,75,267,66,1390,337,0,18,83,19,168,49,330,48,0,51,21,200,10,367,94,73,88,38,67,7,163,133,30,0,0,0,0,118,92,26,0,0,0,0,59,59,0,0,0,0,0,16,16,0,0,0,0,0]
["Henniker","0002743","35540",4433,464,437,0,12,26,5,11,10,11,18,63,25,49,70,12,5,24,29,16,37,14,0,0,27,588,464,32,40,67,85,95,31,12,16,53,33,464,56,0,0,6,0,33,17,83,11,5,23,13,31,0,143,32,46,35,18,12,0,91,26,34,20,0,5,6,52,41,0,11,0,0,0,27,17,0,0,0,0,10,12,12,0,0,0,0,0]
["Hill","0002754","35860",992,37,21,0,0,0,0,0,0,0,0,0,0,0,4,7,0,0,4,3,3,0,0,0,16,696,37,0,4,0,11,0,6,0,0,0,16,37,9,0,0,0,0,0,9,7,0,0,0,0,0,7,7,0,4,0,3,0,0,7,0,4,0,3,0,0,7,4,3,0,0,0,0,0,0,0,0,0,0,0,0,0,0,0,0,0,0]
["Hooksett","0002759","37300",11721,841,793,0,12,14,11,11,20,15,40,9,91,84,105,104,71,11,78,36,60,21,0,0,48,643,841,57,113,153,146,42,44,72,67,88,59,841,87,0,12,0,0,64,11,117,11,0,0,20,77,9,216,23,74,0,24,86,9,189,95,45,30,0,0,19,144,117,15,12,0,0,0,43,32,0,0,0,0,11,45,45,0,0,0,0,0]
["Hopkinton","0002799","37540",5399,264,248,0,0,0,6,19,6,6,11,37,30,4,12,19,19,6,18,24,18,7,6,0,16,621,264,12,68,17,32,36,10,6,29,38,16,264,20,0,0,0,0,20,0,77,0,7,24,4,42,0,23,12,0,0,0,11,0,59,30,6,12,0,0,11,42,17,19,0,6,0,0,30,25,0,0,0,0,5,13,13,0,0,0,0,0]
["Loudon","0002813","43380",4481,138,102,0,0,0,0,0,0,0,7,13,21,13,19,0,6,0,18,0,0,5,0,0,36,588,138,25,21,17,0,7,0,19,6,7,36,138,13,0,0,0,0,0,13,34,0,0,7,0,20,7,23,11,0,0,0,12,0,16,0,0,0,0,0,16,35,35,0,0,0,0,0,6,6,0,0,0,0,0,11,11,0,0,0,0,0]
["New London","0002826","52100",4116,277,237,0,8,0,22,0,7,0,24,30,30,22,12,34,22,0,17,0,0,0,9,0,40,546,277,7,24,49,28,61,0,7,17,44,40,277,38,8,0,15,0,15,0,76,0,7,0,0,46,23,75,8,14,46,0,7,0,32,25,7,0,0,0,0,30,30,0,0,0,0,0,0,0,0,0,0,0,0,26,9,0,0,0,0,17]
["Newbury","0002820","50900",1702,83,73,0,0,0,0,0,0,2,2,5,0,6,9,5,4,7,11,9,9,2,0,2,10,775,83,2,12,8,18,8,7,1,7,10,10,83,10,0,0,0,0,10,0,5,0,0,0,2,3,0,28,3,7,6,5,5,2,9,2,5,2,0,0,0,25,13,4,0,0,0,8,2,2,0,0,0,0,0,4,2,2,0,0,0,0]
["Northfield","0002833","54260",4548,548,502,7,21,7,14,9,7,7,0,13,82,93,67,30,65,28,30,9,6,7,0,0,46,595,548,19,51,73,116,74,65,31,22,44,53,548,85,0,15,7,14,36,13,39,0,9,0,0,30,0,195,28,24,54,44,31,14,156,55,68,13,0,0,20,60,47,0,0,7,0,6,13,13,0,0,0,0,0,0,0,0,0,0,0,0]
["Pembroke","0002848","60020",6897,853,825,0,19,19,0,19,0,38,48,111,135,98,68,76,53,34,55,33,11,8,0,0,28,562,853,53,107,102,193,88,75,21,50,136,28,853,133,0,20,9,0,94,10,116,0,0,0,46,70,0,271,10,122,67,29,43,0,167,105,42,12,0,0,8,114,95,9,0,0,0,10,32,32,0,0,0,0,0,20,20,0,0,0,0,0]
["Pittsfield","0002869","61940",3931,573,553,14,22,0,22,12,31,12,71,70,69,41,50,43,21,22,39,7,7,0,0,0,20,516,573,27,47,65,84,144,19,15,35,117,20,573,123,18,11,11,0,83,0,100,0,0,24,7,69,0,165,0,45,86,12,15,7,133,75,28,23,0,0,7,38,32,0,0,0,0,6,14,14,0,0,0,0,0,0,0,0,0,0,0,0]
["Salisbury","0002880","66980",1137,14,11,0,0,0,0,0,0,0,0,1,0,0,0,2,2,0,4,2,0,0,0,0,3,813,14,0,3,2,0,0,2,2,0,2,3,14,0,0,0,0,0,0,0,2,0,0,0,0,2,0,4,0,0,0,2,2,0,1,1,0,0,0,0,0,4,4,0,0,0,0,0,3,0,0,0,0,0,3,0,0,0,0,0,0,0]
["Sutton","0002885","75460",1544,81,71,0,0,0,0,2,2,0,2,5,0,7,10,6,4,5,11,5,10,2,0,0,10,719,81,7,4,22,7,8,2,4,4,11,12,81,15,0,0,0,0,11,4,7,0,0,0,0,3,4,12,2,0,3,0,5,2,16,9,0,5,2,0,0,17,10,7,0,0,0,0,11,9,0,0,0,0,2,3,3,0,0,0,0,0]
["Warner","0002891","78580",2760,225,208,0,6,11,4,2,7,11,19,17,16,24,24,7,14,0,20,2,19,5,0,0,17,573,225,10,30,35,28,27,15,23,21,19,17,225,21,0,4,8,0,9,0,42,5,0,5,8,24,0,69,14,6,12,5,24,8,52,21,16,2,2,6,5,25,21,2,0,0,0,2,7,7,0,0,0,0,0,9,7,0,0,0,0,2]
["Webster","0002897","80020",1579,38,33,0,0,0,2,0,2,0,0,2,5,2,6,2,1,3,2,2,2,2,0,0,5,629,38,2,11,0,5,4,3,0,0,6,7,38,8,0,0,0,0,4,4,4,0,0,0,0,2,2,11,2,5,1,3,0,0,0,0,0,0,0,0,0,10,6,0,3,0,0,1,2,2,0,0,0,0,0,3,3,0,0,0,0,0]
["Wilmot","0002902","84900",1144,56,48,0,0,0,0,0,0,1,0,11,9,6,0,6,5,0,0,0,10,0,0,0,8,575,56,0,11,2,3,9,6,6,5,6,8,56,5,0,0,0,0,3,2,11,0,0,0,0,11,0,17,0,0,5,6,3,3,8,3,0,2,0,0,3,15,10,3,2,0,0,0,0,0,0,0,0,0,0,0,0,0,0,0,0,0]
[]
[]
[]
[]
[]
[]
[]
[]
[]
[]
[]
[]
[]
[]
[]
[]
[]
[]
[]
[]
[]
["Census 2000 SummaryFile3 Sample Data  -  SF3TownQry8HousingCostB"]
[]
["TOWN_NAME","LOGRECNO","COUSUB","TotalPop","H74SpecOwnerOccHU","H74OOHU<10k","H74OOHU10to15k","H74OOHU15to20k","H74OOHU20to25k","H74OOHU25to30k","H74OOHU30to35k","H74OOHU35to40k","H74OOHU40to50k","H74OOHU50to60k","H74OOHU60to70k","H74OOHU70to80k","H74OOHU80to90k","H74OOHU90to100k","H74OOHU100to125k","H74OOHU125to150k","H74OOHU150to175k","H74OOHU175to200k","H74OOHU200to250k","H74OOHU250to300k","H74OOHU300to400k","H74OOHU400to500k","H74OOHU500to750k","H74OOHU750to1000k","H74OOHU1000kmore","H76OOHUMedianVal","H84OwnerOccHU","H84AllOOHU<10k","H84AllOOHU10to15k","H84AllOOHU15to20k","H84AllOOHU20to25k","H84AllOOHU25to30k","H84AllOOHU30to35k","H84AllOOHU35to40k","H84AllOOHU40to50k","H84AllOOHU50to60k","H84AllOOHU60to70k","H84AllOOHU70to80k","H84AllOOHU80to90k","H84AllOOHU90to100k","H84AllOOHU100to125k","H84AllOOHU125to150k","H84AllOOHU150to175k","H84AllOOHU175to200k","H84AllOOHU200to250k","H84AllOOHU250to300k","H84AllOOHU300to400k","H84AllOOHU400to500k","H84AllOOHU500to750k","H84AllOOHU750to1000k","H84AllOOHU1000kmore","H85OOHUMedVal","H90SOOHU","H90HUwMorgt","H90HUwMtgHC<200","H90HUwMtgHC200to300","H90HUwMtgHC300to400","H90HUwMtgHC400to500","H90HUwMtgHC500to600","H90HUwMtgHC600to700","H90HUwMtgHC700to800","H90HUwMtgHC800to900","H90HUwMtgHC900to1000","H90HUwMtgHC1000to1250","H90HUwMtgHC1250to1500","H90HUwMtgHC1500to2000","H90HUwMtgHC2000to2500","H90HUwMtgHC2500to3000","H90HUwMtgHC3000orMore","H90HUwOutMorgt","H90HUwOutMtgHC<100","H90HUwOutMtgHC100to150","H90HUwOutMtgHC150to200","H90HUwOutMtgHC200to250","H90HUwOutMtgHC250to300","H90HUwOutMtgHC300to350","H90HUwOutMtgHC350to400","H90HUwOutMtgHC400to500","H90HUwOutMtgHC500to600","H90HUwOutMtgHC600to700","H90HUwOutMtgHC700to800","H90HUwOutMtgHC800to900","H90HUwOutMtgHC900to1000","H90HUwOutMtgHC1000orMore","H91MedianOCHUwMtg","H91MedianOCHUwOutMtg","H94SpecOOHU","H94HUwMortg","H94HUwMtgHC<10pct","H94HUwMtgHC10to15pct","H94HUwMtgHC15to20pct","H94HUwMtgHC20to25pct","H94HUwMtgHC25to30pct","H94HUwMtgHC30to35pct","H94HUwMtgHC35to40pct","H94HUwMtgHC40to50pct","H94HUwMtgHC50pctOrMore","H94HUwMtgHCpctNotComp","H94HUWOutMortg","H94HUWOutMortgHC<10pct","H94HUWOutMortgHC10to15pct","H94HUWOutMortgHC15to20pct","H94HUWOutMortgHC20to25pct","H94HUWOutMortgHC25to30pct","H94HUWOutMortgHC30to35pct","H94HUWOutMortgHC35to40pct","H94HUWOutMortgHC40to50pct","H94HUWOutMortgHC50pctOrMore","H94HUWOutMortgHCpctNotComp","H97SpecifOwnOccHU","H97SOOHUInc<10k","H97SOOHUInc<10kHC<20pct","H97SOOHUInc<10kHC20to25pct","H97SOOHUInc<10kHC25to30pct","H97SOOHUInc<10kHC30to35pct","H97SOOHUInc<10kHC>35pct","H97SOOHUInc<10kHCpctNotComput","H97SOOHUInc10to20k","H97SOOHUInc10to20kHC<20pct","H97SOOHUInc10to20kHC20to25pct","H97SOOHUInc10to20kHC25to30pct","H97SOOHUInc10to20kHC30to35pct","H97SOOHUInc10to20kHC>35pct","H97SOOHUInc10to20kHCpctNotComput","H97SOOHUInc20to35k","H97SOOHUInc20to35kRC<20pct","H97SOOHUInc20to35kRC20to25pct","H97SOOHUInc20to35kRC25to30pct","H97SOOHUInc20to35kRC30to35pct","H97SOOHUInc20to35kRC>35pct","H97SOOHUInc20to35kRCpctNotComput","H97SOOHUInc35to50k","H97SOOHUInc35to50kRC<20pct","H97SOOHUInc35to50kRC20to25pct","H97SOOHUInc35to50kRC25to30pct","H97SOOHUInc35to50kRC30to35pct","H97SOOHUInc35to50kRC>35pct","H97SOOHUInc35to50kRCpctNotCompute","H97SOOHUInc50to75k","H97SOOHUInc50to75kRC<20pct","H97SOOHUInc50to75kRC20to25pct","H97SOOHUInc50to75kRC25to30pct","H97SOOHUInc50to75kRC30to35pct","H97SOOHUInc50to75kRC>35pct","H97SOOHUInc50to75kRCpctNotComput","H97SOOHUInc75to100k","H97SOOHUInc75to100kRC<20pct","H97SOOHUInc75to100kRC20to25pct","H97SOOHUInc75to100kRC25to30pct","H97SOOHUInc75to100kRC30to35pct","H97SOOHUInc75to100kRC>35pct","H97SOOHUInc75to100kRCpctNotCompute","H97SOOHUInc100to150k","H97SOOHUInc100to150kRC<20pct","H97SOOHUInc100to150kRC20to25pct","H97SOOHUInc100to150kRC25to30pct","H97SOOHUInc100to150kRC30to35pct","H97SOOHUInc100to150kRC>35pct","H97SOOHUInc100to150kRCpctNotCompute","H97SOOHUInc>150k","H97SOOHUInc>150kRC<20pct","H97SOOHUInc>150kRC20to25pct","H97SOOHUInc>150kRC25to30pct","H97SOOHUInc>150kRC30to35pct","H97SOOHUInc>150kRC>35pct","H97SOOHUInc>150kRCpctNotCompute"]
["Allenstown","0002575","00660",4843,735,0,7,0,0,0,0,0,7,7,33,84,94,172,225,22,28,35,15,6,0,0,0,0,0,97900,1356,92,62,109,66,57,59,43,17,27,73,93,94,172,264,36,36,35,15,6,0,0,0,0,0,77800,735,510,0,0,0,7,13,28,70,60,49,170,80,26,0,7,0,225,0,0,0,0,18,33,57,48,42,15,6,6,0,0,1041,409,735,510,13,70,166,98,57,35,14,19,38,0,225,77,41,48,27,6,13,6,0,7,0,735,9,0,0,0,0,9,0,45,0,13,6,13,13,0,116,52,8,7,0,49,0,124,41,24,18,28,13,0,247,149,66,32,0,0,0,105,91,14,0,0,0,0,89,82,0,0,7,0,0,0,0,0,0,0,0,0]
["Andover","0002590","01460",2109,445,0,0,0,0,0,0,0,3,17,27,56,57,42,94,76,29,18,16,6,2,2,0,0,0,105500,682,0,0,0,5,2,10,2,17,28,54,66,79,51,120,105,48,31,22,13,14,6,4,2,3,105600,445,317,0,0,0,7,10,10,31,58,42,76,46,33,4,0,0,128,0,0,8,12,28,14,20,26,8,7,0,5,0,0,1002,355,445,317,9,42,65,61,46,20,19,23,30,2,128,62,19,14,11,6,0,0,8,6,2,445,20,0,0,2,0,14,4,30,6,4,4,0,16,0,76,18,9,6,4,39,0,78,24,22,16,8,8,0,150,77,32,24,8,9,0,44,41,3,0,0,0,0,36,34,2,0,0,0,0,11,11,0,0,0,0,0]
["Boscawen","0002596","06260",3672,643,0,0,0,6,0,0,0,18,6,26,54,109,94,192,91,32,9,0,6,0,0,0,0,0,101100,948,31,33,19,24,0,28,24,36,15,33,59,123,106,212,109,48,9,16,13,5,0,0,0,5,94600,643,454,0,9,0,0,19,24,36,48,85,113,69,45,6,0,0,189,0,0,0,29,35,29,45,40,6,5,0,0,0,0,1013,352,643,454,15,38,91,113,72,35,32,28,30,0,189,82,42,25,6,21,0,6,0,7,0,643,7,0,0,0,0,7,0,52,14,0,14,0,24,0,126,43,18,19,0,46,0,117,49,20,23,13,12,0,204,82,64,28,16,14,0,101,69,17,9,6,0,0,25,25,0,0,0,0,0,11,11,0,0,0,0,0]
["Bow","0002606","06500",7138,2053,0,0,0,0,0,0,0,0,0,29,31,0,68,225,360,405,230,440,141,99,25,0,0,0,169400,2194,0,0,0,0,0,6,0,0,0,29,31,0,68,233,378,405,247,477,187,99,34,0,0,0,171700,2053,1633,0,0,0,11,0,17,72,77,46,287,382,529,145,25,42,420,0,0,0,22,32,37,107,105,78,30,0,9,0,0,1451,411,2053,1633,116,268,395,365,262,62,78,15,72,0,420,209,55,32,39,20,12,0,11,32,10,2053,43,0,0,0,12,21,10,86,10,12,11,0,53,0,85,31,27,0,0,27,0,147,21,13,41,7,65,0,566,170,182,117,55,42,0,374,212,88,74,0,0,0,530,435,76,19,0,0,0,222,196,6,20,0,0,0]
["Bradford","0002617","06980",1454,283,0,0,3,0,0,2,5,9,11,8,15,30,31,65,35,35,13,14,2,3,2,0,0,0,110600,444,0,3,3,0,0,4,5,9,13,15,15,42,36,96,44,68,27,29,9,10,8,2,3,3,120100,283,208,0,0,2,8,5,4,17,23,30,50,41,24,2,2,0,75,0,0,0,6,12,8,6,20,11,9,0,2,1,0,1075,428,283,208,7,29,50,35,35,11,8,5,28,0,75,29,7,14,5,4,5,0,2,4,5,283,14,0,0,0,0,9,5,13,0,0,4,5,4,0,50,13,8,5,3,21,0,46,13,4,13,3,13,0,96,52,23,16,5,0,0,31,25,5,1,0,0,0,26,26,0,0,0,0,0,7,7,0,0,0,0,0]
["Canterbury","0002622","09860",1979,397,0,0,0,0,0,0,0,4,5,11,10,27,28,83,97,65,27,23,17,0,0,0,0,0,132900,677,0,0,0,0,0,2,0,4,7,11,12,43,42,117,155,98,53,46,49,26,2,8,0,2,141200,397,309,0,0,2,2,6,12,29,29,36,82,47,48,14,2,0,88,0,0,4,3,11,16,15,12,19,6,0,0,2,0,1117,383,397,309,15,49,77,80,32,16,21,6,13,0,88,51,12,15,6,2,0,2,0,0,0,397,2,0,0,0,0,2,0,11,0,4,2,0,5,0,40,15,4,0,9,12,0,63,25,11,11,3,13,0,124,59,40,13,4,8,0,81,53,18,8,0,2,0,62,53,9,0,0,0,0,14,14,0,0,0,0,0]
["Chichester","0002629","12420",2236,500,0,0,0,0,2,0,2,2,5,8,18,59,53,126,100,71,24,24,0,4,2,0,0,0,120000,729,4,7,5,0,4,3,5,7,13,23,23,77,53,158,136,100,40,44,4,11,8,0,0,4,122200,500,375,0,0,0,7,13,17,33,29,53,112,60,47,2,0,2,125,0,2,2,4,6,15,33,48,11,2,0,0,0,2,1079,401,500,375,26,60,92,87,33,22,22,17,16,0,125,40,37,13,22,4,4,2,3,0,0,500,4,0,2,0,2,0,0,23,2,2,2,0,17,0,75,16,19,8,5,27,0,75,31,7,13,15,9,0,167,82,62,12,4,7,0,75,65,8,2,0,0,0,60,51,9,0,0,0,0,21,21,0,0,0,0,0]
["Concord","0002635","14200",40687,6068,0,5,0,12,0,0,22,40,104,198,434,644,877,1414,1002,461,280,262,138,103,48,17,7,0,112300,8383,73,215,154,125,96,111,72,155,181,312,523,760,1021,1716,1183,576,354,344,185,136,48,36,7,0,105700,6068,4338,0,7,6,43,104,186,311,387,400,1206,787,574,248,51,28,1730,0,6,31,35,46,104,285,556,368,136,18,30,43,72,1150,464,6068,4338,247,665,950,888,607,377,196,189,213,6,1730,465,514,241,175,111,53,37,18,94,22,6068,116,0,0,0,0,88,28,306,23,17,56,41,169,0,708,166,155,90,72,225,0,1124,435,183,186,140,180,0,1835,890,444,295,135,71,0,999,700,176,67,42,14,0,597,511,67,19,0,0,0,383,357,21,5,0,0,0]
["Danbury","0002701","16980",1071,237,0,0,3,7,0,5,2,0,14,32,36,37,38,40,14,9,0,0,0,0,0,0,0,0,85300,375,8,0,5,10,7,8,2,7,28,39,45,52,55,59,28,9,0,4,2,5,0,0,0,2,85500,237,165,0,0,0,8,13,26,17,9,36,26,19,9,2,0,0,72,0,2,5,8,8,20,11,18,0,0,0,0,0,0,926,333,237,165,10,23,32,42,20,8,5,7,15,3,72,19,18,19,5,2,0,2,0,5,2,237,18,0,0,0,0,13,5,30,13,5,2,0,10,0,35,17,8,4,2,4,0,54,15,19,12,3,5,0,55,38,10,2,3,2,0,34,27,5,2,0,0,0,9,9,0,0,0,0,0,2,2,0,0,0,0,0]
["Dunbarton","0002706","19460",2226,517,0,0,0,0,0,0,0,2,7,8,15,29,36,60,109,113,64,42,18,12,2,0,0,0,148300,735,0,6,0,0,0,3,0,5,7,8,22,29,42,73,141,151,85,89,41,22,8,3,0,0,155200,517,414,0,0,0,10,7,20,12,16,61,127,76,66,9,2,8,103,0,0,3,7,5,19,24,16,18,6,5,0,0,0,1159,386,517,414,28,75,94,68,51,45,15,17,21,0,103,54,25,10,4,6,0,2,2,0,0,517,11,0,0,3,0,8,0,14,3,4,3,0,4,0,43,16,2,0,2,23,0,85,27,11,10,26,11,0,153,66,35,29,14,9,0,101,70,16,10,3,2,0,68,64,4,0,0,0,0,42,40,0,2,0,0,0]
["Epsom","0002712","24900",4021,807,0,0,0,0,0,8,0,15,6,22,46,36,103,272,155,104,5,14,14,0,0,0,7,0,115400,1211,29,33,18,19,31,20,24,25,37,51,59,56,117,293,189,118,27,23,20,0,7,8,7,0,107400,807,653,0,0,8,13,28,30,49,78,107,137,129,67,7,0,0,154,0,8,7,22,6,31,46,27,0,7,0,0,0,0,1025,353,807,653,58,99,100,208,99,33,24,13,14,5,154,74,48,13,12,7,0,0,0,0,0,807,5,0,0,0,0,0,5,29,0,14,7,0,8,0,92,35,12,17,6,22,0,147,56,15,41,20,15,0,215,82,100,27,0,6,0,212,119,72,14,7,0,0,82,75,7,0,0,0,0,25,25,0,0,0,0,0]
["Franklin","0002721","27380",8405,1587,0,0,8,0,18,16,0,57,82,270,246,329,220,217,70,45,0,0,9,0,0,0,0,0,82900,1911,7,9,38,0,32,34,8,74,133,270,269,338,250,247,96,70,19,0,9,0,0,0,8,0,82400,1587,1112,0,0,7,10,30,74,198,95,213,299,115,71,0,0,0,475,0,0,17,33,42,112,48,141,46,15,9,12,0,0,967,385,1587,1112,44,147,260,224,156,69,55,86,71,0,475,125,111,74,81,17,27,20,0,20,0,1587,28,0,0,0,0,28,0,162,8,49,17,27,61,0,262,65,51,15,23,108,0,370,129,73,76,37,55,0,484,294,116,65,9,0,0,198,182,16,0,0,0,0,57,57,0,0,0,0,0,26,26,0,0,0,0,0]
["Henniker","0002743","35540",4433,708,0,0,0,0,0,0,6,10,0,12,37,63,138,165,78,96,55,12,7,15,7,0,7,0,113300,1085,7,31,30,0,13,7,6,18,0,25,50,81,144,219,129,144,97,31,7,22,7,10,7,0,114900,708,591,0,0,0,0,13,25,34,27,33,194,112,110,37,6,0,117,0,6,0,6,13,7,7,20,26,6,6,13,0,7,1211,498,708,591,35,67,112,98,137,41,20,7,74,0,117,29,37,6,12,14,6,0,0,0,13,708,20,0,0,0,0,7,13,48,0,6,14,0,28,0,86,7,0,19,14,46,0,69,12,12,26,6,13,0,189,54,58,56,21,0,0,192,109,34,36,6,7,0,59,59,0,0,0,0,0,45,45,0,0,0,0,0]
["Hill","0002754","35860",992,212,0,0,0,0,0,0,2,4,10,9,36,53,27,27,27,6,5,0,2,2,0,2,0,0,88500,332,7,0,2,2,0,3,14,12,14,11,48,69,33,39,32,17,9,2,7,5,2,2,2,0,87700,212,165,0,0,0,12,22,14,27,28,8,28,19,5,2,0,0,47,0,0,0,11,10,8,6,8,2,2,0,0,0,0,827,316,212,165,11,34,33,24,19,6,7,12,19,0,47,14,13,6,2,5,3,2,0,0,2,212,7,0,0,0,0,5,2,28,4,0,7,3,14,0,30,7,2,9,0,12,0,43,17,12,3,2,9,0,62,41,12,5,4,0,0,33,33,0,0,0,0,0,9,9,0,0,0,0,0,0,0,0,0,0,0,0]
["Hooksett","0002759","37300",11721,2658,0,6,0,0,0,0,0,0,7,20,96,133,193,664,491,401,271,285,58,21,5,7,0,0,135700,3306,8,36,26,9,36,9,20,20,7,70,107,133,217,795,608,444,310,332,58,33,21,7,0,0,131600,2658,2128,0,0,0,14,67,26,138,149,89,640,457,402,105,27,14,530,0,0,8,0,16,51,97,230,112,0,0,9,0,7,1227,440,2658,2128,139,349,532,361,397,142,39,100,69,0,530,187,161,55,42,17,18,16,18,8,8,2658,60,0,0,0,0,52,8,51,8,10,0,8,25,0,227,86,32,17,26,66,0,358,95,70,55,60,78,0,770,303,139,250,49,29,0,598,401,102,78,17,0,0,469,405,50,14,0,0,0,125,125,0,0,0,0,0]
["Hopkinton","0002799","37540",5399,1350,0,0,0,0,0,0,0,26,14,26,32,115,68,222,201,135,121,208,63,75,38,6,0,0,146400,1798,0,0,0,0,0,6,7,33,40,33,77,147,74,270,274,162,172,258,75,87,49,18,16,0,144300,1350,965,0,0,0,7,6,28,52,76,82,137,194,227,97,30,29,385,0,0,21,0,21,36,31,55,76,69,25,19,14,18,1372,538,1350,965,23,157,185,189,158,71,61,43,78,0,385,183,100,42,13,7,0,20,6,7,7,1350,21,0,0,0,0,14,7,57,5,7,0,0,45,0,122,32,19,13,0,58,0,245,80,30,40,31,64,0,374,142,63,105,35,29,0,190,126,59,0,5,0,0,204,168,24,7,0,5,0,137,137,0,0,0,0,0]
["Loudon","0002813","43380",4481,922,0,0,0,0,0,6,0,0,0,25,41,117,128,243,226,78,26,14,18,0,0,0,0,0,114800,1445,0,19,18,16,31,19,12,72,26,50,54,117,165,309,281,131,68,14,30,8,5,0,0,0,110000,922,732,0,0,6,0,37,27,56,69,132,248,84,66,7,0,0,190,0,0,0,7,27,53,33,38,15,0,0,5,6,6,1039,362,922,732,34,94,157,217,74,53,6,48,42,7,190,92,36,26,0,6,6,0,12,12,0,922,26,0,0,0,0,19,7,48,0,0,6,6,36,0,99,47,0,6,12,34,0,153,25,49,19,35,25,0,317,143,125,37,6,6,0,173,136,25,12,0,0,0,64,46,18,0,0,0,0,42,42,0,0,0,0,0]
["New London","0002826","52100",4116,979,0,0,0,0,0,6,0,0,0,0,6,9,6,51,81,159,125,150,188,101,11,57,17,12,215500,1297,0,0,0,6,0,6,0,0,0,0,6,9,21,67,113,215,141,182,226,143,23,93,28,18,217700,979,488,0,0,6,0,8,5,33,34,21,57,79,133,78,22,12,491,0,0,0,0,28,11,30,120,88,57,68,38,16,35,1503,564,979,488,17,70,74,82,75,16,34,21,99,0,491,188,95,87,55,39,0,0,0,22,5,979,11,0,0,0,0,6,5,57,0,11,0,0,46,0,152,45,27,23,5,52,0,141,42,24,30,0,45,0,170,102,11,28,6,23,0,165,126,19,11,5,4,0,145,84,45,16,0,0,0,138,132,0,6,0,0,0]
["Newbury","0002820","50900",1702,495,0,0,0,0,0,0,0,2,2,11,18,38,40,84,72,75,29,30,33,31,7,13,2,8,143200,600,0,0,0,0,0,0,0,2,9,11,18,47,40,93,78,85,38,36,63,37,9,19,2,13,150600,495,354,0,0,2,4,18,24,24,26,43,74,51,58,18,6,6,141,0,0,2,20,10,22,18,29,11,8,8,4,4,5,1122,396,495,354,19,54,72,74,46,37,16,15,21,0,141,52,23,16,15,16,10,2,5,2,0,495,7,0,0,2,3,2,0,32,1,6,7,2,16,0,81,25,7,9,14,26,0,84,33,17,12,9,13,0,133,59,39,20,13,2,0,78,51,15,10,2,0,0,51,40,5,2,4,0,0,29,27,0,0,0,2,0]
["Northfield","0002833","54260",4548,801,0,0,0,0,0,0,6,8,26,85,121,108,149,153,105,7,20,0,7,6,0,0,0,0,93100,1158,0,0,7,6,12,12,25,48,95,100,141,132,186,197,120,19,27,0,7,12,6,6,0,0,90100,801,640,0,0,7,15,55,11,83,85,89,157,72,66,0,0,0,161,0,0,7,0,33,6,31,55,23,6,0,0,0,0,972,406,801,640,35,72,187,106,92,54,13,37,44,0,161,57,43,18,19,6,0,12,6,0,0,801,13,0,0,0,0,13,0,62,0,13,6,0,43,0,103,26,6,11,23,37,0,169,70,31,37,12,19,0,262,145,60,38,19,0,0,136,115,15,6,0,0,0,50,50,0,0,0,0,0,6,6,0,0,0,0,0]
["Pembroke","0002848","60020",6897,1471,0,0,0,0,0,0,0,8,14,24,72,175,155,576,226,146,44,24,7,0,0,0,0,0,112500,1808,21,16,0,0,10,15,0,16,25,24,80,184,155,642,308,184,80,24,17,7,0,0,0,0,113900,1471,1140,0,0,0,0,36,18,57,119,103,387,206,158,56,0,0,331,0,0,0,7,24,0,70,100,55,43,18,7,7,0,1153,465,1471,1140,35,181,266,238,141,93,40,68,68,10,331,85,50,51,54,7,27,0,33,17,7,1471,43,0,0,0,0,26,17,60,0,0,0,9,51,0,202,45,39,8,36,74,0,213,22,38,30,48,75,0,429,195,119,95,20,0,0,339,247,70,15,7,0,0,150,124,26,0,0,0,0,35,35,0,0,0,0,0]
["Pittsfield","0002869","61940",3931,604,0,0,0,6,0,0,10,10,46,70,64,75,73,120,63,48,0,12,0,0,0,7,0,0,92900,914,6,0,17,30,5,6,16,24,46,102,78,114,102,145,81,62,5,41,22,0,0,12,0,0,91300,604,438,0,0,6,2,0,24,24,57,50,157,70,20,14,7,7,166,0,0,15,0,0,0,32,53,24,6,22,8,0,6,1089,468,604,438,15,56,81,55,50,59,12,32,78,0,166,41,49,40,12,0,8,0,6,10,0,604,20,0,0,0,0,20,0,43,10,0,0,0,33,0,96,16,6,12,8,54,0,134,52,11,20,33,18,0,156,77,37,18,18,6,0,92,70,7,0,8,7,0,38,32,6,0,0,0,0,25,25,0,0,0,0,0]
["Salisbury","0002880","66980",1137,272,0,0,0,0,2,0,0,2,6,10,17,54,40,84,18,27,6,3,3,0,0,0,0,0,101500,410,0,5,0,0,2,0,0,4,11,16,17,57,46,98,46,43,26,16,13,4,4,2,0,0,112000,272,223,0,0,5,4,19,16,14,30,28,53,33,21,0,0,0,49,0,0,4,2,13,14,4,9,0,0,3,0,0,0,984,320,272,223,10,38,52,37,26,18,10,7,23,2,49,23,10,0,7,7,0,0,0,2,0,272,14,0,0,2,0,10,2,20,1,7,5,2,5,0,36,7,4,5,6,14,0,61,19,11,12,6,13,0,82,54,17,7,4,0,0,36,29,5,2,0,0,0,23,23,0,0,0,0,0,0,0,0,0,0,0,0]
["Sutton","0002885","75460",1544,388,0,0,0,0,0,3,0,6,8,9,15,26,42,96,49,24,40,22,21,13,6,8,0,0,122100,527,0,0,0,0,0,3,0,10,16,9,23,31,44,114,62,48,60,37,30,18,8,14,0,0,130400,388,286,0,0,0,8,12,18,39,29,28,71,35,38,8,0,0,102,0,3,6,7,4,9,12,21,20,8,4,4,0,4,1032,448,388,286,18,24,47,52,51,25,16,20,33,0,102,35,31,13,5,10,2,2,2,2,0,388,14,0,0,2,0,12,0,23,5,3,4,5,6,0,81,16,2,17,13,33,0,81,22,13,18,7,21,0,104,53,30,16,2,3,0,43,32,9,2,0,0,0,26,24,0,2,0,0,0,16,16,0,0,0,0,0]
["Warner","0002891","78580",2760,496,0,0,2,0,4,2,5,13,13,23,39,37,56,106,82,49,22,19,11,11,0,0,0,2,112700,797,10,6,13,2,10,15,7,16,29,29,43,60,81,140,102,86,35,45,28,27,2,6,0,5,113800,496,341,0,0,2,4,19,20,42,50,34,73,43,30,19,2,3,155,2,6,4,4,20,16,25,35,27,9,3,2,0,2,999,401,496,341,30,58,62,59,46,20,19,14,30,3,155,55,34,23,15,6,10,8,0,2,2,496,15,0,0,0,0,10,5,33,2,0,2,10,19,0,85,24,17,12,4,28,0,95,49,21,10,4,11,0,126,83,16,15,10,2,0,72,44,15,11,2,0,0,55,45,5,2,0,3,0,15,15,0,0,0,0,0]
["Webster","0002897","80020",1579,364,0,0,0,0,0,0,0,5,9,5,26,51,55,94,55,28,21,13,2,0,0,0,0,0,108200,535,2,0,0,0,0,0,0,11,13,11,33,75,74,119,85,38,31,29,10,2,0,2,0,0,110200,364,276,0,0,0,3,5,22,16,36,41,76,39,36,2,0,0,88,0,0,0,7,9,11,17,27,5,6,4,2,0,0,1049,400,364,276,6,39,76,60,42,24,4,13,10,2,88,31,12,15,17,4,5,2,0,0,2,364,10,0,0,0,3,3,4,15,2,9,0,0,4,0,45,13,10,4,6,12,0,69,19,9,18,15,8,0,130,67,34,22,5,2,0,67,52,13,2,0,0,0,24,22,2,0,0,0,0,4,4,0,0,0,0,0]
["Wilmot","0002902","84900",1144,270,0,0,0,0,0,0,2,0,0,4,8,17,12,51,63,25,11,38,21,13,0,4,1,0,141300,391,0,0,0,2,0,0,2,0,0,6,13,26,12,62,86,39,18,53,29,24,6,9,4,0,146100,270,196,0,0,0,3,2,11,9,35,14,49,33,28,7,4,1,74,2,0,2,0,5,6,11,24,15,1,2,4,2,0,1122,446,270,196,8,12,42,26,23,27,22,21,15,0,74,30,12,13,3,7,0,2,2,5,0,270,2,0,0,0,0,2,0,22,2,0,5,3,12,0,58,13,2,6,9,28,0,48,13,5,9,3,18,0,77,31,19,8,12,7,0,28,25,3,0,0,0,0,27,25,0,2,0,0,0,8,8,0,0,0,0,0]
[]
[]
[]
[]
[]
[]
[]
[]
[]
[]
[]
[]
[]
[]
[]
[]
[]
[]
[]
[]
[]
["Census 2000 SummaryFile3 Sample Data  -  SF3TownQry9HHIncomeByTenure"]
[]
["TOWN_NAME","LOGRECNO","COUSUB","NAME","COUNTY","TotalPop","HCT11OccHU","HCT11OwnOccHU","HCT11OOHUInc<5K","HCT11OOHUInc5to10K","HCT11OOHUInc10to15K","HCT11OOHUInc15to20K","HCT11OOHUInc20to25K","HCT11OOHUInc25to35K","HCT11OOHUInc35to50K","HCT11OOHUInc50to75K","HCT11OOHUInc75to100K","HCT11OOHUInc100to150K","HCT11OOHUInc>150K","HCT11RentOccHU","HCT11ROHUInc<5K","HCT11ROHUInc5to10K","HCT11ROHUInc10to15K","HCT11ROHUInc15to20K","HCT11ROHUInc20to25K","HCT11ROHUInc25to35K","HCT11ROHUInc35to50K","HCT11ROHUInc50to75K","HCT11ROHUInc75to100K","HCT11ROHUInc100to150K","HCT11ROHUInc>150K","HCT12MedHHInc","HCT12MedOwnOccHHInc","HCT12MedRentOccHHInc","SummaryLevel"]
["Allenstown","0002575","00660","Allenstown town","013",4843,1902,1356,6,41,59,61,57,186,278,416,141,103,8,546,7,75,44,26,64,109,104,80,21,16,0,41875,49138,28906,"060"]
["Andover","0002590","01460","Andover town","013",2109,823,682,12,18,20,30,41,90,117,212,58,65,19,141,5,9,7,13,9,19,43,19,13,2,2,47292,50956,38250,"060"]
["Boscawen","0002596","06260","Boscawen town","013",3672,1260,948,20,12,25,59,47,148,189,280,125,32,11,312,19,31,6,61,33,77,39,6,9,21,10,41850,47273,26154,"060"]
["Bow","0002606","06500","Bow town","013",7138,2304,2194,10,33,54,32,38,57,165,601,417,556,231,110,0,0,12,17,0,15,30,0,36,0,0,78752,79624,40917,"060"]
["Bradford","0002617","06980","Bradford town","013",1454,559,444,5,14,9,17,21,60,79,142,44,43,10,115,3,4,16,11,18,17,17,14,13,0,2,47788,54643,27750,"060"]
["Canterbury","0002622","09860","Canterbury town","013",1979,749,677,6,4,16,6,16,60,112,185,128,111,33,72,2,7,8,8,6,13,14,7,0,5,2,58750,61875,30278,"060",null,null,null,null,null,null,null,null,null,null,null,null,null,null,null,null,null,null,null,null,null,null,null,null,null,null,null,null,null,null,null,null,null,null,null,null,null,null,null,null,null,null,null,null,null,null,null,null,null,null,null,null,null,null,null,null,null,null,null,null,null,null,null,"PCT026097","PCT026098","PCT026099","PCT026100","PCT026101","CNTY_NAME"]
["Chichester","0002629","12420","Chichester town","013",2236,823,729,8,4,29,15,38,77,109,235,104,75,35,94,2,5,0,6,2,28,15,17,11,6,2,56394,58352,40625,"060",null,null,null,null,null,null,null,null,null,null,null,null,null,null,null,null,null,null,null,null,null,null,null,null,null,null,null,null,null,null,null,null,null,null,null,null,null,null,null,null,null,null,null,null,null,null,null,null,null,null,null,null,null,null,null,null,null,null,null,null,null,null,null,0,0,0,0,0,"Coos"]
["Concord","0002635","14200","Concord city","013",40687,16281,8383,92,132,215,297,417,867,1606,2256,1302,756,443,7898,333,690,764,678,626,1335,1529,1301,429,133,80,42190,54524,31291,"060",null,null,null,null,null,null,null,null,null,null,null,null,null,null,null,null,null,null,null,null,null,null,null,null,null,null,null,null,null,null,null,null,null,null,null,null,null,null,null,null,null,null,null,null,null,null,null,null,null,null,null,null,null,null,null,null,null,null,null,null,null,null,null,0,0,0,0,0,"Coos"]
["Danbury","0002701","16980","Danbury town","013",1071,435,375,14,14,26,23,20,59,72,83,43,15,6,60,3,2,6,9,0,17,11,10,2,0,0,37708,39297,29167,"060",null,null,null,null,null,null,null,null,null,null,null,null,null,null,null,null,null,null,null,null,null,null,null,null,null,null,null,null,null,null,null,null,null,null,null,null,null,null,null,null,null,null,null,null,null,null,null,null,null,null,null,null,null,null,null,null,null,null,null,null,null,null,null,0,0,0,0,0,"Coos"]
["Dunbarton","0002706","19460","Dunbarton town","013",2226,814,735,6,15,8,14,28,38,105,207,152,109,53,79,0,5,14,0,3,5,27,17,8,0,0,65278,67198,41094,"060",null,null,null,null,null,null,null,null,null,null,null,null,null,null,null,null,null,null,null,null,null,null,null,null,null,null,null,null,null,null,null,null,null,null,null,null,null,null,null,null,null,null,null,null,null,null,null,null,null,null,null,null,null,null,null,null,null,null,null,null,null,null,null,129,324,94,230,647,"Coos"]
["Epsom","0002712","24900","Epsom town","013",4021,1491,1211,23,12,6,63,76,109,224,286,275,106,31,280,0,6,35,34,39,49,48,56,13,0,0,50747,56701,32788,"060",null,null,null,null,null,null,null,null,null,null,null,null,null,null,null,null,null,null,null,null,null,null,null,null,null,null,null,null,null,null,null,null,null,null,null,null,null,null,null,null,null,null,null,null,null,null,null,null,null,null,null,null,null,null,null,null,null,null,null,null,null,null,null,0,0,0,0,0,"Coos"]
["Franklin","0002721","27380","Franklin city","013",8405,3319,1911,42,28,41,144,134,257,404,535,214,78,34,1408,97,240,184,146,176,201,163,126,59,16,0,33983,46121,21101,"060",null,null,null,null,null,null,null,null,null,null,null,null,null,null,null,null,null,null,null,null,null,null,null,null,null,null,null,null,null,null,null,null,null,null,null,null,null,null,null,null,null,null,null,null,null,null,null,null,null,null,null,null,null,null,null,null,null,null,null,null,null,null,null,0,14,6,8,29,"Coos"]
["Henniker","0002743","35540","Henniker town","013",4433,1585,1085,19,27,46,35,40,94,113,317,214,119,61,500,33,23,37,63,53,90,98,52,33,0,18,50517,59482,28269,"060",null,null,null,null,null,null,null,null,null,null,null,null,null,null,null,null,null,null,null,null,null,null,null,null,null,null,null,null,null,null,null,null,null,null,null,null,null,null,null,null,null,null,null,null,null,null,null,null,null,null,null,null,null,null,null,null,null,null,null,null,null,null,null,0,0,0,0,0,"Coos"]
["Hill","0002754","35860","Hill town","013",992,382,332,4,3,21,17,28,33,68,84,52,12,10,50,7,5,0,7,0,7,9,7,4,0,4,47955,48889,34375,"060",null,null,null,null,null,null,null,null,null,null,null,null,null,null,null,null,null,null,null,null,null,null,null,null,null,null,null,null,null,null,null,null,null,null,null,null,null,null,null,null,null,null,null,null,null,null,null,null,null,null,null,null,null,null,null,null,null,null,null,null,null,null,null,0,3,3,0,10,"Coos"]
["Hooksett","0002759","37300","Hooksett town","013",11721,4147,3306,16,67,64,60,68,267,439,907,753,533,132,841,35,52,35,82,124,92,189,144,43,31,14,60156,67990,35054,"060",null,null,null,null,null,null,null,null,null,null,null,null,null,null,null,null,null,null,null,null,null,null,null,null,null,null,null,null,null,null,null,null,null,null,null,null,null,null,null,null,null,null,null,null,null,null,null,null,null,null,null,null,null,null,null,null,null,null,null,null,null,null,null,2,60,8,52,109,"Coos"]
["Hopkinton","0002799","37540","Hopkinton town","013",5399,2084,1798,14,26,33,58,38,143,332,466,256,236,196,286,0,25,36,47,11,17,65,42,30,6,7,58333,62598,36591,"060",null,null,null,null,null,null,null,null,null,null,null,null,null,null,null,null,null,null,null,null,null,null,null,null,null,null,null,null,null,null,null,null,null,null,null,null,null,null,null,null,null,null,null,null,null,null,null,null,null,null,null,null,null,null,null,null,null,null,null,null,null,null,null,3,4,0,4,32,"Coos"]
["Loudon","0002813","43380","Loudon town","013",4481,1611,1445,19,25,43,31,54,137,290,424,263,102,57,166,13,0,21,20,6,17,30,42,6,6,5,53911,56175,37143,"060",null,null,null,null,null,null,null,null,null,null,null,null,null,null,null,null,null,null,null,null,null,null,null,null,null,null,null,null,null,null,null,null,null,null,null,null,null,null,null,null,null,null,null,null,null,null,null,null,null,null,null,null,null,null,null,null,null,null,null,null,null,null,null,0,0,0,0,0,"Coos"]
["New London","0002826","52100","New London town","013",4116,1574,1297,5,6,35,44,55,138,167,228,205,210,204,277,15,23,61,15,31,44,32,30,0,9,17,58226,66845,22679,"060",null,null,null,null,null,null,null,null,null,null,null,null,null,null,null,null,null,null,null,null,null,null,null,null,null,null,null,null,null,null,null,null,null,null,null,null,null,null,null,null,null,null,null,null,null,null,null,null,null,null,null,null,null,null,null,null,null,null,null,null,null,null,null,0,0,0,0,0,"Coos"]
["Newbury","0002820","50900","Newbury town","013",1702,694,600,0,7,17,20,32,62,107,152,86,78,39,94,0,10,0,5,1,30,14,25,2,7,0,56875,59079,40500,"060",null,null,null,null,null,null,null,null,null,null,null,null,null,null,null,null,null,null,null,null,null,null,null,null,null,null,null,null,null,null,null,null,null,null,null,null,null,null,null,null,null,null,null,null,null,null,null,null,null,null,null,null,null,null,null,null,null,null,null,null,null,null,null,2,25,6,19,33,"Coos"]
["Northfield","0002833","54260","Northfield town","013",4548,1706,1158,13,26,37,50,57,136,206,350,182,89,12,548,21,64,23,16,70,125,156,60,13,0,0,44222,53485,30739,"060",null,null,null,null,null,null,null,null,null,null,null,null,null,null,null,null,null,null,null,null,null,null,null,null,null,null,null,null,null,null,null,null,null,null,null,null,null,null,null,null,null,null,null,null,null,null,null,null,null,null,null,null,null,null,null,null,null,null,null,null,null,null,null,0,0,0,0,0,"Coos"]
["Pembroke","0002848","60020","Pembroke town","013",6897,2661,1808,42,25,30,44,58,195,255,536,421,167,35,853,28,105,49,67,81,190,167,114,32,20,0,49809,60640,30918,"060",null,null,null,null,null,null,null,null,null,null,null,null,null,null,null,null,null,null,null,null,null,null,null,null,null,null,null,null,null,null,null,null,null,null,null,null,null,null,null,null,null,null,null,null,null,null,null,null,null,null,null,null,null,null,null,null,null,null,null,null,null,null,null,0,0,0,0,0,"Coos"]
["Pittsfield","0002869","61940","Pittsfield town","013",3931,1498,914,10,17,49,5,75,123,179,230,128,51,47,584,43,80,71,40,89,76,133,38,14,0,0,38333,49861,23013,"060",null,null,null,null,null,null,null,null,null,null,null,null,null,null,null,null,null,null,null,null,null,null,null,null,null,null,null,null,null,null,null,null,null,null,null,null,null,null,null,null,null,null,null,null,null,null,null,null,null,null,null,null,null,null,null,null,null,null,null,null,null,null,null,0,5,3,2,14,"Coos"]
["Salisbury","0002880","66980","Salisbury town","013",1137,435,410,8,12,8,16,9,38,104,105,62,40,8,25,0,0,2,0,2,2,1,9,3,3,3,55268,53571,71875,"060",null,null,null,null,null,null,null,null,null,null,null,null,null,null,null,null,null,null,null,null,null,null,null,null,null,null,null,null,null,null,null,null,null,null,null,null,null,null,null,null,null,null,null,null,null,null,null,null,null,null,null,null,null,null,null,null,null,null,null,null,null,null,null,0,2,0,2,31,"Coos"]
["Sutton","0002885","75460","Sutton town","013",1544,618,527,3,14,11,13,29,67,99,143,75,53,20,91,4,11,2,7,4,10,20,17,13,3,0,51786,54063,39250,"060",null,null,null,null,null,null,null,null,null,null,null,null,null,null,null,null,null,null,null,null,null,null,null,null,null,null,null,null,null,null,null,null,null,null,null,null,null,null,null,null,null,null,null,null,null,null,null,null,null,null,null,null,null,null,null,null,null,null,null,null,null,null,null,0,0,0,0,0,"Coos"]
["Warner","0002891","78580","Warner town","013",2760,1048,797,11,17,27,18,42,116,154,207,95,79,31,251,5,18,24,23,29,45,60,31,7,7,2,44439,51164,30625,"060",null,null,null,null,null,null,null,null,null,null,null,null,null,null,null,null,null,null,null,null,null,null,null,null,null,null,null,null,null,null,null,null,null,null,null,null,null,null,null,null,null,null,null,null,null,null,null,null,null,null,null,null,null,null,null,null,null,null,null,null,null,null,null,0,94,34,60,166,"Coos"]
["Webster","0002897","80020","Webster town","013",1579,581,535,6,10,13,22,22,47,98,190,86,32,9,46,6,2,4,0,4,9,4,12,2,1,2,54023,54556,31667,"060",null,null,null,null,null,null,null,null,null,null,null,null,null,null,null,null,null,null,null,null,null,null,null,null,null,null,null,null,null,null,null,null,null,null,null,null,null,null,null,null,null,null,null,null,null,null,null,null,null,null,null,null,null,null,null,null,null,null,null,null,null,null,null,0,0,0,0,0,"Coos"]
["Wilmot","0002902","84900","Wilmot town","013",1144,459,391,2,4,20,16,9,65,68,96,41,45,25,68,2,3,3,8,8,11,13,17,0,3,0,49688,53594,34583,"060",null,null,null,null,null,null,null,null,null,null,null,null,null,null,null,null,null,null,null,null,null,null,null,null,null,null,null,null,null,null,null,null,null,null,null,null,null,null,null,null,null,null,null,null,null,null,null,null,null,null,null,null,null,null,null,null,null,null,null,null,null,null,null,0,0,0,0,0,"Coos"]
[]
[]
[]
[]
[]
[]
[]
[]
[]
[]
[]
[]
[]
[]
[]
[]
[]
[null,null,null,null,null,null,null,null,null,null,null,null,null,null,null,null,null,null,null,null,null,null,null,null,null,null,null,null,null,null,null,null,null,null,null,null,null,null,null,null,null,null,null,null,null,null,null,null,null,null,null,null,null,null,null,null,null,null,null,null,null,null,null,null,null,null,null,null,null,null,null,null,null,null,null,null,null,null,null,null,null,null,null,null,null,null,null,null,null,null,null,null,null,null,null,null,null,null,null,null,0,7,3,4,28,"Coos"]
[null,null,null,null,null,null,null,null,null,null,null,null,null,null,null,null,null,null,null,null,null,null,null,null,null,null,null,null,null,null,null,null,null,null,null,null,null,null,null,null,null,null,null,null,null,null,null,null,null,null,null,null,null,null,null,null,null,null,null,null,null,null,null,null,null,null,null,null,null,null,null,null,null,null,null,null,null,null,null,null,null,null,null,null,null,null,null,null,null,null,null,null,null,null,null,null,null,null,null,null,3,20,7,13,29,"Coos"]
[null,null,null,null,null,null,null,null,null,null,null,null,null,null,null,null,null,null,null,null,null,null,null,null,null,null,null,null,null,null,null,null,null,null,null,null,null,null,null,null,null,null,null,null,null,null,null,null,null,null,null,null,null,null,null,null,null,null,null,null,null,null,null,null,null,null,null,null,null,null,null,null,null,null,null,null,null,null,null,null,null,null,null,null,null,null,null,null,null,null,null,null,null,null,null,null,null,null,null,null,0,0,0,0,0,"Coos"]
[null,null,null,null,null,null,null,null,null,null,null,null,null,null,null,null,null,null,null,null,null,null,null,null,null,null,null,null,null,null,null,null,null,null,null,null,null,null,null,null,null,null,null,null,null,null,null,null,null,null,null,null,null,null,null,null,null,null,null,null,null,null,null,null,null,null,null,null,null,null,null,null,null,null,null,null,null,null,null,null,null,null,null,null,null,null,null,null,null,null,null,null,null,null,null,null,null,null,null,null,0,0,0,0,0,"Coos"]
["Census 2000 SummaryFile3 Sample Data - SF3TownQry10aDisabil",null,null,null,null,null,null,null,null,null,null,null,null,null,null,null,null,null,null,null,null,null,null,null,null,null,null,null,null,null,null,null,null,null,null,null,null,null,null,null,null,null,null,null,null,null,null,null,null,null,null,null,null,null,null,null,null,null,null,null,null,null,null,null,null,null,null,null,null,null,null,null,null,null,null,null,null,null,null,null,null,null,null,null,null,null,null,null,null,null,null,null,null,null,null,null,null,null,null,null,0,0,0,0,0,"Coos"]
[null,null,null,null,null,null,null,null,null,null,null,null,null,null,null,null,null,null,null,null,null,null,null,null,null,null,null,null,null,null,null,null,null,null,null,null,null,null,null,null,null,null,null,null,null,null,null,null,null,null,null,null,null,null,null,null,null,null,null,null,null,null,null,null,null,null,null,null,null,null,null,null,null,null,null,null,null,null,null,null,null,null,null,null,null,null,null,null,null,null,null,null,null,null,null,null,null,null,null,null,2,38,9,29,98,"Coos"]
["TOWN_NAME","LOGRECNO","COUSUB","TotalPop","PCT026001","PCT026002","PCT026003","PCT026004","PCT026005","PCT026006","PCT026007","PCT026008","PCT026009","PCT026010","PCT026011","PCT026012","PCT026013","PCT026014","PCT026015","PCT026016","PCT026017","PCT026018","PCT026019","PCT026020","PCT026021","PCT026022","PCT026023","PCT026024","PCT026025","PCT026026","PCT026027","PCT026028","PCT026029","PCT026030","PCT026031","PCT026032","PCT026033","PCT026034","PCT026035","PCT026036","PCT026037","PCT026038","PCT026039","PCT026040","PCT026041","PCT026042","PCT026043","PCT026044","PCT026045","PCT026046","PCT026047","PCT026048","PCT026049","PCT026050","PCT026051","PCT026052","PCT026053","PCT026054","PCT026055","PCT026056","PCT026057","PCT026058","PCT026059","PCT026060","PCT026061","PCT026062","PCT026063","PCT026064","PCT026065","PCT026066","PCT026067","PCT026068","PCT026069","PCT026070","PCT026071","PCT026072","PCT026073","PCT026074","PCT026075","PCT026076","PCT026077","PCT026078","PCT026079","PCT026080","PCT026081","PCT026082","PCT026083","PCT026084","PCT026085","PCT026086","PCT026087","PCT026088","PCT026089","PCT026090","PCT026091","PCT026092","PCT026093","PCT026094","PCT026095","PCT026096","PCT026097","PCT026098","PCT026099","PCT026100","PCT026101"]
["Allenstown","0002575","00660",4843,4497,2142,429,52,9,0,43,0,13,7,6,364,133,8,5,0,0,0,0,3,0,0,0,0,0,125,1401,129,30,18,0,0,0,81,165,3,162,46,116,1107,179,7,0,7,0,0,0,57,41,16,115,2355,453,39,7,0,32,0,11,5,6,403,123,17,0,6,0,0,6,5,0,0,0,0,0,106,1452,153,8,73,34,0,7,31,130,29,101,12,89,1169,327,52,6,21,0,0,25,103,26,77,172]
["Andover","0002590","01460",2109,1975,990,163,4,0,0,4,0,2,0,2,157,75,5,0,0,0,0,2,3,0,0,0,0,0,70,622,56,5,15,11,0,2,23,30,6,24,8,16,536,130,26,7,9,2,0,8,39,8,31,65,985,150,14,5,0,9,0,4,4,0,132,63,3,0,0,0,0,3,0,0,0,0,0,0,60,633,40,5,14,2,0,0,19,42,6,36,8,28,551,139,20,6,9,0,0,5,24,12,12,95]
["Boscawen","0002596","06260",3672,3034,1455,264,31,0,0,31,0,9,9,0,224,75,0,0,0,0,0,0,0,12,0,12,0,12,63,946,140,9,33,31,0,6,61,60,5,55,6,49,746,170,18,6,5,7,0,0,23,17,6,129,1579,334,23,9,0,14,0,0,0,0,311,75,10,0,0,0,0,0,10,0,0,0,0,0,65,965,80,0,34,10,0,0,36,90,14,76,13,63,795,205,51,6,27,0,0,18,73,35,38,81]
["Bow","0002606","06500",7138,6682,3300,818,69,8,0,61,0,0,0,0,749,233,13,0,0,7,0,0,6,0,0,0,0,0,220,1974,33,19,8,6,0,0,0,56,37,19,19,0,1885,275,66,31,22,0,0,13,45,13,32,164,3382,796,37,9,0,28,0,10,10,0,749,217,0,0,0,0,0,0,0,0,0,0,0,0,217,2045,111,17,36,9,12,0,37,100,60,40,0,40,1834,324,51,6,23,12,0,10,73,31,42,200]
["Bradford","0002617","06980",1454,1374,689,140,6,0,0,6,0,5,3,2,129,43,4,0,0,2,0,0,2,2,0,2,0,2,37,424,45,14,9,8,0,0,14,35,5,30,6,24,344,82,16,6,8,2,0,0,13,0,13,53,685,107,4,0,0,4,0,2,2,0,101,45,5,0,0,3,0,0,2,2,0,2,0,2,38,438,43,2,11,4,2,0,24,27,0,27,10,17,368,95,21,6,13,2,0,0,12,3,9,62]
["Canterbury","0002622","09860",1979,1873,908,159,10,2,0,8,0,0,0,0,149,52,16,0,0,14,0,0,2,0,0,0,0,0,36,603,47,12,2,8,0,5,20,12,0,12,5,7,544,94,17,3,10,0,2,2,9,2,7,68,965,161,0,0,0,0,0,0,0,0,161,55,4,0,0,4,0,0,0,2,0,2,0,2,49,641,26,7,6,2,0,0,11,46,10,36,4,32,569,108,14,2,2,0,0,10,24,5,19,70]
["Chichester","0002629","12420",2236,2091,1047,187,13,0,0,11,2,6,6,0,168,70,6,0,0,3,0,3,0,1,0,1,0,1,63,675,46,4,24,0,0,3,15,54,8,46,22,24,575,115,15,5,10,0,0,0,12,3,9,88,1044,193,0,0,0,0,0,0,0,0,193,59,6,0,0,2,0,0,4,0,0,0,0,0,53,680,37,8,14,0,0,3,12,34,10,24,11,13,609,112,10,2,6,0,0,2,15,5,10,87]
["Concord","0002635","14200",40687,35515,16795,3029,283,6,8,240,29,29,17,12,2717,1181,162,21,0,83,0,9,49,23,0,23,0,23,996,10753,1189,190,207,188,0,44,560,877,242,635,118,517,8687,1832,352,80,131,53,7,81,354,142,212,1126,18720,2891,136,8,8,120,0,61,40,21,2694,1165,41,16,0,4,0,6,15,100,20,80,0,80,1024,11670,822,100,244,36,0,16,426,976,241,735,168,567,9872,2994,636,162,333,35,8,98,665,139,526,1693]
["Danbury","0002701","16980",1071,1026,541,80,10,0,0,10,0,2,2,0,68,61,6,0,0,3,0,0,3,5,0,5,0,5,50,335,41,11,11,3,0,0,16,24,12,12,0,12,270,65,3,0,3,0,0,0,20,7,13,42,485,80,0,0,0,0,0,0,0,0,80,22,0,0,0,0,0,0,0,0,0,0,0,0,22,308,14,0,5,0,0,0,9,35,3,32,3,29,259,75,9,4,3,0,0,2,18,8,10,48]
["Dunbarton","0002706","19460",2226,2047,1032,190,17,0,0,17,0,0,0,0,173,44,5,0,0,3,0,0,2,0,0,0,0,0,39,714,72,7,8,5,0,2,50,22,2,20,9,11,620,84,18,7,8,3,0,0,9,0,9,57,1015,180,1,0,0,1,0,0,0,0,179,51,7,0,0,3,0,0,4,0,0,0,0,0,44,705,38,4,15,0,0,0,19,29,9,20,6,14,638,79,9,1,5,0,0,3,14,3,11,56]
["Epsom","0002712","24900",4021,3662,1769,321,27,9,0,18,0,6,0,6,288,86,20,0,0,9,0,6,5,12,0,12,4,8,54,1146,123,14,5,15,0,0,89,136,14,122,20,102,887,216,28,15,6,0,0,7,91,33,58,97,1893,332,0,0,0,0,0,18,0,18,314,87,0,0,0,0,0,0,0,7,0,7,7,0,80,1248,149,0,47,20,0,0,82,96,23,73,13,60,1003,226,49,14,14,0,0,21,21,6,15,156]
["Franklin","0002721","27380",8405,7767,3809,739,110,16,0,94,0,0,0,0,629,354,59,12,13,25,0,9,0,27,0,27,8,19,268,2258,234,38,84,28,0,32,52,361,77,284,73,211,1663,458,109,60,5,36,8,0,88,16,72,261,3958,576,16,8,0,8,0,0,0,0,560,252,24,0,0,24,0,0,0,34,9,25,0,25,194,2438,286,30,100,34,0,40,82,255,41,214,58,156,1897,692,175,27,95,0,0,53,120,53,67,397]
["Henniker","0002743","35540",4433,4209,2115,373,53,0,0,53,0,0,0,0,320,270,9,0,0,9,0,0,0,14,8,6,6,0,247,1337,125,31,26,30,0,0,38,51,0,51,0,51,1161,135,23,8,8,7,0,0,24,8,16,88,2094,374,6,0,0,6,0,6,6,0,362,271,39,0,16,6,5,0,12,0,0,0,0,0,232,1234,71,17,5,0,0,0,49,80,51,29,0,29,1083,215,79,0,48,0,0,31,22,8,14,114]
["Hill","0002754","35860",992,943,481,99,0,0,0,0,0,0,0,0,99,27,2,0,0,2,0,0,0,0,0,0,0,0,25,305,28,10,8,3,0,0,7,19,8,11,2,9,258,50,5,3,0,0,0,2,16,2,14,29,462,77,6,0,0,6,0,2,0,2,69,41,3,0,0,0,0,0,3,0,0,0,0,0,38,294,22,2,4,5,0,0,11,18,4,14,4,10,254,50,10,3,7,0,0,0,4,0,4,36]
["Hooksett","0002759","37300",11721,10992,5489,977,60,10,0,50,0,11,11,0,906,562,35,0,0,29,0,0,6,84,0,84,70,14,443,3483,324,50,116,19,0,18,121,233,48,185,70,115,2926,467,163,56,81,0,0,26,77,7,70,227,5503,870,22,0,0,22,0,0,0,0,848,600,18,0,0,9,0,0,9,17,0,17,17,0,565,3447,221,40,57,49,0,0,75,149,36,113,49,64,3077,586,113,34,53,0,7,19,146,52,94,327]
["Hopkinton","0002799","37540",5399,5110,2397,482,22,0,0,22,0,0,0,0,460,116,10,0,0,10,0,0,0,0,0,0,0,0,106,1477,111,13,8,7,0,0,83,81,20,61,7,54,1285,322,44,15,19,0,0,10,40,17,23,238,2713,491,0,0,0,0,0,0,0,0,491,166,0,0,0,0,0,0,0,0,0,0,0,0,166,1661,124,18,6,5,0,8,87,114,25,89,20,69,1423,395,105,21,48,7,7,22,67,6,61,223]
["Loudon","0002813","43380",4481,4176,2061,412,45,0,0,45,0,20,20,0,347,130,12,0,0,0,0,0,12,6,6,0,0,0,112,1344,91,19,26,14,0,8,24,71,12,59,0,59,1182,175,43,14,18,5,0,6,40,9,31,92,2115,395,17,0,0,17,0,6,6,0,372,149,4,0,0,4,0,0,0,11,5,6,0,6,134,1372,89,6,40,18,0,5,20,83,47,36,5,31,1200,199,25,6,13,6,0,0,42,23,19,132]
["Newbury","0002820","50900",1702,1626,848,159,7,0,0,7,0,0,0,0,152,65,10,0,0,10,0,0,0,4,0,4,0,4,51,485,22,0,4,5,0,0,13,15,2,13,0,13,448,139,25,9,8,2,0,6,14,4,10,100,778,101,2,0,0,2,0,3,3,0,96,32,3,3,0,0,0,0,0,0,0,0,0,0,29,499,32,2,12,5,0,0,13,17,4,13,4,9,450,146,27,5,20,0,0,2,13,5,8,106]
["New London","0002826","52100",4116,3950,1753,195,3,0,0,3,0,0,0,0,192,205,11,0,0,0,0,5,6,7,0,7,0,7,187,841,26,7,0,13,0,0,6,49,21,28,9,19,766,512,67,24,19,6,0,18,22,6,16,423,2197,214,0,0,0,0,0,0,0,0,214,330,14,7,0,7,0,0,0,0,0,0,0,0,316,998,38,7,13,7,0,0,11,45,6,39,11,28,915,655,69,29,23,6,0,11,68,41,27,518]
["Northfield","0002833","54260",4548,4226,2077,391,32,0,0,32,0,0,0,0,359,167,31,6,0,17,8,0,0,0,0,0,0,0,136,1339,118,12,25,8,0,0,73,100,17,83,12,71,1121,180,40,11,24,0,0,5,18,7,11,122,2149,402,7,0,0,7,0,0,0,0,395,143,0,0,0,0,0,0,0,0,0,0,0,0,143,1382,131,12,53,6,5,0,55,100,30,70,6,64,1151,222,31,6,20,5,0,0,57,11,46,134]
["Pembroke","0002848","60020",6897,6455,3191,613,93,14,0,79,0,0,0,0,520,259,92,16,0,54,0,0,22,9,9,0,0,0,158,2026,199,35,41,7,0,6,110,135,12,123,18,105,1692,293,88,11,36,9,0,32,16,6,10,189,3264,578,20,10,0,10,0,19,0,19,539,224,9,0,0,0,0,9,0,12,0,12,0,12,203,2078,198,25,85,26,0,0,62,150,51,99,31,68,1730,384,80,14,35,11,0,20,60,32,28,244]
["Pittsfield","0002869","61940",3931,3657,1736,349,24,0,0,24,0,6,0,6,319,106,5,0,0,5,0,0,0,10,0,10,0,10,91,1105,87,10,39,12,0,0,26,114,11,103,23,80,904,176,61,19,31,0,0,11,29,6,23,86,1921,378,44,13,0,31,0,6,6,0,328,155,23,0,8,2,0,0,13,14,0,14,8,6,118,1154,81,0,23,22,0,0,36,149,31,118,32,86,924,234,45,15,22,0,0,8,56,5,51,133]
["Salisbury","0002880","66980",1137,1069,532,92,10,0,0,10,0,0,0,0,82,33,6,0,0,4,0,0,2,2,0,2,0,2,25,359,28,6,8,8,0,0,6,33,6,27,8,19,298,48,4,0,0,2,0,2,12,6,6,32,537,80,5,0,0,5,0,0,0,0,75,38,2,0,0,2,0,0,0,0,0,0,0,0,36,358,27,4,11,4,0,4,4,12,2,10,4,6,319,61,10,4,2,0,0,4,11,6,5,40]
["Sutton","0002885","75460",1544,1476,714,104,7,0,0,7,0,0,0,0,97,69,10,0,0,3,0,0,7,0,0,0,0,0,59,441,49,11,8,10,0,2,18,24,4,20,3,17,368,100,21,10,9,0,0,2,10,1,9,69,762,109,2,0,0,2,0,0,0,0,107,56,0,0,0,0,0,0,0,0,0,0,0,0,56,465,50,2,12,11,0,2,23,38,14,24,4,20,377,132,26,10,8,0,0,8,20,4,16,86]
["Warner","0002891","78580",2760,2608,1278,243,20,0,0,20,0,6,6,0,217,77,4,0,0,0,0,0,4,2,0,2,2,0,71,818,80,24,13,10,0,2,31,66,9,57,10,47,672,140,25,6,14,3,0,2,29,20,9,86,1330,211,7,3,0,4,0,2,2,0,202,97,7,0,1,2,0,0,4,4,0,4,2,2,86,826,61,6,17,4,0,6,28,52,8,44,13,31,713,196,18,0,10,6,0,2,41,7,34,137]
["Webster","0002897","80020",1579,1468,693,118,17,0,0,17,0,1,0,1,100,42,6,0,0,2,0,0,4,5,1,4,2,2,31,471,42,0,0,9,0,0,33,40,6,34,7,27,389,62,12,2,5,0,0,5,10,4,6,40,775,141,14,0,6,8,0,1,0,1,126,39,4,0,0,3,0,0,1,0,0,0,0,0,35,508,56,8,12,5,0,0,31,13,0,13,5,8,439,87,14,3,11,0,0,0,10,7,3,63]
["Wilmot","0002902","84900",1144,1079,510,96,6,0,0,6,0,0,0,0,90,24,1,0,0,0,0,0,1,0,0,0,0,0,23,311,22,7,3,6,0,0,6,13,1,12,0,12,276,79,13,6,7,0,0,0,11,9,2,55,569,101,3,0,0,3,0,3,3,0,95,47,0,0,0,0,0,0,0,4,0,4,2,2,43,356,10,0,5,1,0,0,4,16,2,14,0,14,330,65,10,5,5,0,0,0,4,4,0,51]
[]
[]
[]
["2010 Census Demographic Profile Data -  QRY_CountyState"]
["TownName","LOGRECNO","COUNTY","TotalPop","TotalPop1Race","TotalPopWhite","TotalPopAfricanAmerican","TotalPopAmericanIndAlaska","TotalPopAsian","TotalPopNativeHawaiianPIsland","TotalPopSomeOtherRace","TotalPopTwoOrMoreRaces","TotalPopHispanicLatino","TotalNonHispanicLatino","TotPopUnder15yrs","TotPop15to24yrs","TotPop25to34yrs","TotPop35to44yrs","TotPop45to54yrs","TotPop55to64yrs","TotPop65to74yrs","TotPopOver74yrs","MedianAge","MedianAgeMale","MedianAgeFemale","TotalHH","TotalPopInHouseholds","TotalPopInFamilyHH","TotalPopInNonFamilyHH","AvgHHSize","TotalFamilyHH","TotalFamilyHHSpouse","TotalSingleParentHH","TotalNonFamilyHH","AvgFamilyHHSize","AvgNonFamilyHHSize","AverageHHSizeOwnerOccupied","AverageHHSizeRentalOccupied","TotalHousingUnits","TotalOccupiedHU","TotalOwnerOccupiedHUs","TotalRentalOccupiedHU","TotalVacantHU","VacantHUForRent","VacantHURentNotOccupied","VacantHUForSale","VacantHUsSoldNotOccupied","VacantHUSeasonalRecreational","VacantHUsAllOtherVacants","HomeOwnerVacancyRate","HomeRentalVacancyRate","TotalHousingUnits2010","SingFamHU2010","MultiFamHU2010","MobileHom2010"]
["Allenstown","0000153","013",4322,4245,4142,35,15,34,2,17,77,79,4243,755,513,546,604,798,582,295,229,41,39.799999999999997,42.2,1756,4299,2219,2080,2.4500000000000002,1150,846,304,606,2.93,3.4323432343234321,2.6,1.98,1881,1756,1324,432,125,43,1,32,3,14,32,2.4,9,1881,806,679,396]
["Andover","0000154","013",2371,2334,2288,11,12,21,0,2,37,21,2350,412,353,232,306,405,339,193,131,41.4,39.200000000000003,43.7,890,2202,1190,1012,2.4700000000000002,629,525,104,261,2.89,3.8773946360153255,2.52,2.21,1121,890,755,135,231,13,1,24,4,163,26,3.1,8.6999999999999993,1121,1012,59,51]
["Boscawen","0000155","013",3965,3920,3863,25,11,11,0,10,45,38,3927,623,474,482,518,667,478,260,463,43.1,39.9,46.2,1369,3429,1844,1585,2.5,952,708,244,417,2.94,3.8009592326139088,2.66,2.08,1453,1369,1000,369,84,21,2,16,3,20,22,1.6,5.4,1453,909,329,215]
["Bow","0000156","013",7519,7452,7310,7,8,104,0,23,67,105,7414,1482,965,386,942,1600,1141,520,483,44.9,44.2,45.4,2706,7519,4615,2904,2.78,2205,1926,279,501,3.09,5.7964071856287429,2.87,2,2807,2706,2414,292,101,7,0,55,3,16,20,2.2000000000000002,2.2999999999999998,2807,2631,176,0]
["Bradford","0000157","013",1650,1624,1608,2,6,4,1,3,26,22,1628,267,178,130,216,324,318,127,90,46.3,46.4,46.1,667,1650,874,776,2.4700000000000002,471,385,86,196,2.86,3.9591836734693877,2.4700000000000002,2.48,917,667,545,122,250,6,0,14,1,203,26,2.5,4.7,917,831,59,27]
["Canterbury","0000158","013",2352,2329,2294,12,6,8,2,7,23,39,2313,408,204,190,294,454,469,214,119,46.9,46.6,47.1,913,2340,1295,1045,2.56,692,600,92,221,2.87,4.7285067873303168,2.6,2.2000000000000002,1002,913,824,89,89,6,0,7,1,58,17,0.8,6.3,1002,921,63,18]
["Chichester","0000159","013",2523,2509,2493,5,0,6,0,5,14,27,2496,457,299,195,370,533,384,182,103,43.7,43.5,44,918,2516,1468,1048,2.74,715,598,117,203,3.05,5.1625615763546797,2.8,2.34,963,918,793,125,45,4,2,16,1,10,12,2,3.1,963,856,82,25]
["Concord","0000259","013",42695,41935,39208,950,134,1451,9,183,760,878,41817,7157,5652,6058,5924,6777,5242,2584,3301,39.4,37.6,41.4,17592,39792,19143,20649,2.2599999999999998,10052,7264,2788,7540,2.9,2.7385941644562335,2.5,1.99,18852,17592,9367,8225,1260,681,31,181,27,115,225,1.9,7.6,18852,8003,9949,900]
["Danbury","0000160","013",1164,1158,1149,1,2,3,0,3,6,17,1147,183,123,135,157,225,185,96,60,44,43.9,44.1,490,1164,582,582,2.38,326,258,68,164,2.79,3.5487804878048781,2.38,2.34,684,490,417,73,194,8,0,13,7,149,17,3,9.9,684,565,25,94]
["Dunbarton","0000161","013",2758,2716,2687,8,4,17,0,0,42,36,2722,557,280,235,436,584,419,159,88,42.5,42.9,42.2,1015,2758,1600,1158,2.72,803,700,103,212,2.99,5.4622641509433958,2.75,2.42,1077,1015,907,108,62,7,0,7,4,35,9,0.8,6.1,1077,999,59,19]
["Epsom","0000162","013",4566,4528,4469,18,3,26,0,12,38,28,4538,840,488,389,739,775,662,380,293,43,41.6,44.2,1706,4471,2489,1982,2.62,1267,1025,242,439,2.96,4.5148063781321186,2.67,2.37,1839,1706,1423,283,133,22,0,30,4,63,14,2.1,7.2,1839,1342,87,410]
["Franklin","0000270","013",8477,8329,8155,42,39,66,2,25,148,133,8344,1572,996,1092,1088,1307,1144,640,638,40.200000000000003,38.700000000000003,41.8,3407,8279,4212,4067,2.4300000000000002,2179,1528,651,1228,2.93,3.3118892508143323,2.56,2.23,3938,3407,2058,1349,531,152,9,54,15,193,108,2.5,10.1,3938,2334,1387,217]
["Henniker","0000163","013",4836,4781,4629,60,17,53,0,22,55,81,4755,715,1239,454,519,801,672,257,179,35.200000000000003,33.9,36.6,1780,4289,2146,2143,2.41,1124,875,249,656,2.91,3.2667682926829267,2.61,2.0099999999999998,1928,1780,1196,584,148,46,1,16,6,50,29,1.3,7.3,1928,1183,553,192]
["Hill","0000164","013",1089,1070,1063,4,1,1,0,1,19,8,1081,195,119,115,145,228,175,67,45,43.6,43.2,43.8,413,1089,601,488,2.64,302,242,60,111,2.99,4.3963963963963968,2.63,2.69,512,413,364,49,99,4,2,6,2,66,19,1.6,7.3,512,421,40,52]
["Hooksett","0000165","013",13451,13253,12728,141,23,265,7,89,198,278,13173,2482,2003,1391,1978,2303,1730,988,576,39.799999999999997,39.4,40.200000000000003,4926,12780,7103,5677,2.59,3533,2906,627,1393,3.01,4.075376884422111,2.67,2.2200000000000002,5184,4926,4073,853,258,88,6,62,23,32,47,1.5,9.3000000000000007,5184,3622,1376,186]
["Hopkinton","0000166","013",5589,5522,5459,16,7,32,3,5,67,55,5534,1034,562,399,721,1010,957,511,395,45.8,45.3,46.3,2204,5589,3129,2460,2.54,1631,1391,240,573,2.92,4.2931937172774868,2.61,2.0299999999999998,2381,2204,1910,294,177,15,2,34,8,84,34,1.7,4.8,2381,2103,213,66]
["Loudon","0000167","013",5317,5277,5226,14,14,20,0,3,40,41,5276,980,617,536,767,1026,795,369,227,41.9,41.5,42.5,1966,5317,2989,2328,2.7,1459,1218,241,507,3.05,4.5917159763313613,2.77,2.2400000000000002,2081,1966,1717,249,115,12,1,35,2,34,31,2,4.5999999999999996,2081,1706,105,270]
["New London","0000169","013",4397,4345,4241,49,2,47,2,4,52,64,4333,443,1138,186,255,500,523,570,782,48.7,49.2,48.4,1666,3485,1691,1794,2.09,1037,913,124,629,2.63,2.8521462639109698,2.17,1.77,2303,1666,1345,321,637,33,3,37,10,521,33,2.7,9.1999999999999993,2303,1848,455,0]
["Newbury","0000168","013",2072,2043,2020,4,3,6,4,6,29,25,2047,344,194,155,256,375,392,218,138,47.6,46.9,48.3,869,2072,1127,945,2.38,635,547,88,234,2.77,4.0384615384615383,2.4,2.2200000000000002,1559,869,778,91,690,8,1,19,6,636,20,2.4,8,1559,1487,66,6]
["Northfield","0000170","013",4829,4764,4664,38,15,38,0,9,65,70,4759,945,637,550,718,889,651,279,160,39.200000000000003,39.200000000000003,39.1,1843,4787,2587,2200,2.6,1309,975,334,534,2.98,4.1198501872659179,2.69,2.36,1969,1843,1306,537,126,29,0,28,9,32,28,2.1,5.0999999999999996,1969,1357,457,155]
["Pembroke","0000171","013",7115,7036,6884,43,35,45,0,29,79,116,6999,1378,853,892,1059,1298,872,416,347,39.6,39.299999999999997,39.799999999999997,2710,7062,3901,3161,2.61,1933,1488,445,777,3.02,4.0682110682110686,2.71,2.33,2872,2710,1984,726,162,67,4,22,6,14,49,1.1000000000000001,8.4,2872,1787,1042,42]
["Pittsfield","0000172","013",4106,4047,3977,25,12,24,0,9,59,76,4030,801,504,527,584,700,516,289,185,39.4,38.700000000000003,39.9,1579,4061,2148,1913,2.57,1076,804,272,503,3,3.8031809145129225,2.69,2.33,1769,1579,1056,523,190,91,3,42,2,26,26,3.8,14.7,1769,1051,548,170]
["Salisbury","0000173","013",1382,1348,1339,1,3,4,0,1,34,11,1371,282,140,147,200,225,199,131,58,41.1,40.1,42.2,513,1382,787,595,2.69,388,326,62,125,3.03,4.76,2.68,2.81,598,513,460,53,85,4,0,6,0,68,7,1.3,7,598,571,11,16]
["Sutton","0000174","013",1837,1811,1772,5,5,14,9,6,26,21,1816,317,172,179,224,331,317,179,118,45.8,46.4,45.3,757,1837,991,846,2.4300000000000002,556,482,74,201,2.78,4.2089552238805972,2.4500000000000002,2.2599999999999998,985,757,666,91,228,11,2,14,5,173,23,2,10.6,985,955,30,0]
["Warner","0000175","013",2833,2811,2774,10,12,7,0,8,22,50,2783,436,377,259,367,496,474,243,181,44.5,43.7,44.9,1116,2725,1444,1281,2.44,752,626,126,364,2.92,3.5192307692307692,2.56,2.02,1358,1116,865,251,242,20,0,17,6,175,24,1.9,7.4,1358,1004,274,80]
["Webster","0000176","013",1872,1850,1835,3,0,12,0,0,22,11,1861,329,166,208,271,365,305,154,74,43.7,42.5,45,734,1858,1012,846,2.5299999999999998,539,440,99,195,2.88,4.3384615384615381,2.57,2.2000000000000002,849,734,655,79,115,3,0,12,2,86,12,1.8,3.7,849,817,15,16]
["Wilmot","0000177","013",1358,1343,1332,1,2,6,0,2,15,9,1349,215,146,93,183,274,223,146,78,46.6,46.1,46.9,564,1358,715,643,2.41,389,327,62,175,2.84,3.6742857142857144,2.4500000000000002,2.1800000000000002,659,564,484,80,95,10,0,4,1,73,7,0.8,11.1,659,588,42,28]

{"sheet":"SmallTownEmploymentandWages","index":77,"n_rows":77,"n_cols":23,"rows_kept":77,"cut":false,"hidden":true,"merged":[[66,1,67,3],[35,1,35,2],[73,1,73,2]]}
[]
[null,{"$f":"CntyDataLink!A35","v":"Allenstown"}]
[]
[null,"EMPLOYMENT CHARACTERISTICS"]
[]
[]
[]
[]
[]
[]
[]
[]
[]
[]
[]
[]
[]
[]
[]
[]
[]
[]
[]
[]
[]
[]
[]
[]
[null,"Annual Average Covered Private Employment "]
[null,null,null,"Source: NH Department of Employment Security, Covered Private Employment by location of employment"]
[null,null,2012,{"$f":"C31+1","v":2013},{"$f":"D31+1","v":2014},{"$f":"E31+1","v":2015},{"$f":"F31+1","v":2016},{"$f":"G31+1","v":2017},{"$f":"H31+1","v":2018},{"$f":"I31+1","v":2019},{"$f":"J31+1","v":2020},{"$f":"K31+1","v":2021},{"$f":"L31+1","v":2022},"Total Change  "]
[null,"Goods Producing",{"$f":"IF((CntyDataLink!$CO$25)=\"n\",NA(),IF(VALUE(CntyDataLink!$CO$25)=\"\",NA(),VALUE(CntyDataLink!$CO$25)))","v":157},{"$f":"IF((CntyDataLink!$CW$25)=\"n\",NA(),IF(VALUE(CntyDataLink!$CW$25)=\"\",NA(),VALUE(CntyDataLink!$CW$25)))","v":197},{"$f":"IF((CntyDataLink!$DE$25)=\"n\",NA(),IF(VALUE(CntyDataLink!$DE$25)=\"\",NA(),VALUE(CntyDataLink!$DE$25)))","v":182},{"$f":"IF((CntyDataLink!$DM$25)=\"n\",NA(),IF(VALUE(CntyDataLink!$DM$25)=\"\",NA(),VALUE(CntyDataLink!$DM$25)))","v":170},{"$f":"IF((CntyDataLink!$DU$25)=\"n\",NA(),IF(VALUE(CntyDataLink!$DU$25)=\"\",NA(),VALUE(CntyDataLink!$DU$25)))","v":127},{"$f":"IF((CntyDataLink!$EC$25)=\"n\",NA(),IF(VALUE(CntyDataLink!$EC$25)=\"\",NA(),VALUE(CntyDataLink!$EC$25)))","v":126},{"$f":"IF((CntyDataLink!$EK$25)=\"n\",NA(),IF(VALUE(CntyDataLink!$EK$25)=\"\",NA(),VALUE(CntyDataLink!$EK$25)))","v":114},{"$f":"IF((CntyDataLink!$ET$25)=\"n\",NA(),IF(VALUE(CntyDataLink!$ET$25)=\"\",NA(),VALUE(CntyDataLink!$ET$25)))","v":117},{"$f":"IF((CntyDataLink!$FD$25)=\"n\",NA(),IF(VALUE(CntyDataLink!$FD$25)=\"\",NA(),VALUE(CntyDataLink!$FD$25)))","v":120},{"$f":"IF((CntyDataLink!$FN$25)=\"n\",NA(),IF(VALUE(CntyDataLink!$FN$25)=\"\",NA(),VALUE(CntyDataLink!$FN$25)))","v":123},{"$f":"IF((CntyDataLink!$FN$25)=\"n\",NA(),IF(VALUE(CntyDataLink!$FN$25)=\"\",NA(),VALUE(CntyDataLink!$FX$25)))","v":125},{"$f":"$M32-C32","v":-32}]
[null,"Service Providing",{"$f":"IF((CntyDataLink!$CP$25)=\"n\",NA(),IF(VALUE(CntyDataLink!$CP$25)=\"\",NA(),VALUE(CntyDataLink!$CP$25)))","v":372},{"$f":"IF((CntyDataLink!$CX$25)=\"n\",NA(),IF(VALUE(CntyDataLink!$CX$25)=\"\",NA(),VALUE(CntyDataLink!$CX$25)))","v":379},{"$f":"IF((CntyDataLink!$DF$25)=\"n\",NA(),IF(VALUE(CntyDataLink!$DF$25)=\"\",NA(),VALUE(CntyDataLink!$DF$25)))","v":373},{"$f":"IF((CntyDataLink!$DN$25)=\"n\",NA(),IF(VALUE(CntyDataLink!$DN$25)=\"\",NA(),VALUE(CntyDataLink!$DN$25)))","v":310},{"$f":"IF((CntyDataLink!$DV$25)=\"n\",NA(),IF(VALUE(CntyDataLink!$DV$25)=\"\",NA(),VALUE(CntyDataLink!$DV$25)))","v":320},{"$f":"IF((CntyDataLink!$ED$25)=\"n\",NA(),IF(VALUE(CntyDataLink!$ED$25)=\"\",NA(),VALUE(CntyDataLink!$ED$25)))","v":264},{"$f":"IF((CntyDataLink!$EL$25)=\"n\",NA(),IF(VALUE(CntyDataLink!$EL$25)=\"\",NA(),VALUE(CntyDataLink!$EL$25)))","v":256},{"$f":"IF((CntyDataLink!$EU$25)=\"n\",NA(),IF(VALUE(CntyDataLink!$EU$25)=\"\",NA(),VALUE(CntyDataLink!$EU$25)))","v":277},{"$f":"IF((CntyDataLink!$FE$25)=\"n\",NA(),IF(VALUE(CntyDataLink!$FE$25)=\"\",NA(),VALUE(CntyDataLink!$FE$25)))","v":271},{"$f":"IF((CntyDataLink!$FO$25)=\"n\",NA(),IF(VALUE(CntyDataLink!$FO$25)=\"\",NA(),VALUE(CntyDataLink!$FO$25)))","v":337},{"$f":"IF((CntyDataLink!$FY$25)=\"n\",NA(),IF(VALUE(CntyDataLink!$FY$25)=\"\",NA(),VALUE(CntyDataLink!$FY$25)))","v":378},{"$f":"$M33-C33","v":6}]
[null,"Total Private Emp",{"$f":"IF((CntyDataLink!$CN$25)=\"n\",NA(),IF(VALUE(CntyDataLink!$CN$25)=\"\",NA(),VALUE(CntyDataLink!$CN$25)))","v":528},{"$f":"IF((CntyDataLink!$CV$25)=\"n\",NA(),IF(VALUE(CntyDataLink!$CV$25)=\"\",NA(),VALUE(CntyDataLink!$CV$25)))","v":576},{"$f":"IF((CntyDataLink!$DD$25)=\"n\",NA(),IF(VALUE(CntyDataLink!$DD$25)=\"\",NA(),VALUE(CntyDataLink!$DD$25)))","v":555},{"$f":"IF((CntyDataLink!$DL$25)=\"n\",NA(),IF(VALUE(CntyDataLink!$DL$25)=\"\",NA(),VALUE(CntyDataLink!$DL$25)))","v":480},{"$f":"IF((CntyDataLink!$DT$25)=\"n\",NA(),IF(VALUE(CntyDataLink!$DT$25)=\"\",NA(),VALUE(CntyDataLink!$DT$25)))","v":447},{"$f":"IF((CntyDataLink!$EB$25)=\"n\",NA(),IF(VALUE(CntyDataLink!$EB$25)=\"\",NA(),VALUE(CntyDataLink!$EB$25)))","v":390},{"$f":"IF((CntyDataLink!$EJ$25)=\"n\",NA(),IF(VALUE(CntyDataLink!$EJ$25)=\"\",NA(),VALUE(CntyDataLink!$EJ$25)))","v":370},{"$f":"IF((CntyDataLink!$ER$25)=\"n\",NA(),IF(VALUE(CntyDataLink!$ER$25)=\"\",NA(),VALUE(CntyDataLink!$ER$25)))","v":394},{"$f":"IF((CntyDataLink!$FB$25)=\"n\",NA(),IF(VALUE(CntyDataLink!$FB$25)=\"\",NA(),VALUE(CntyDataLink!$FB$25)))","v":391},{"$f":"IF((CntyDataLink!$FL$25)=\"n\",NA(),IF(VALUE(CntyDataLink!$FL$25)=\"\",NA(),VALUE(CntyDataLink!$FL$25)))","v":460},{"$f":"IF((CntyDataLink!$FV$25)=\"n\",NA(),IF(VALUE(CntyDataLink!$FV$25)=\"\",NA(),VALUE(CntyDataLink!$FV$25)))","v":503},{"$f":"$M34-C34","v":-25}]
[]
[null,"% Change from prior Year",null,"12-13","13-14","14-15","15-16","16-17","17-18","18-19","19-20","20-21","21-22","Total % Change"]
[null,"Goods Producing",null,{"$f":"(D32-C32)/C32","v":0.25477707006369427},-7.6142131979695438E-2,-6.5934065934065936E-2,-0.25294117647058822,-7.874015748031496E-3,{"$f":"(I32-H32)/H32","v":-9.5238095238095233E-2},2.6315789473684209E-2,2.564102564102564E-2,2.5000000000000001E-2,1.6260162601626018E-2,{"$f":"N32/C32","v":-0.20382165605095542}]
[null,"Service Providing",null,1.8817204301075269E-2,-1.5831134564643801E-2,-0.16890080428954424,{"$f":"(G33-F33)/F33","v":3.2258064516129031E-2},-0.17499999999999999,-3.0303030303030304E-2,8.203125E-2,-2.1660649819494584E-2,0.24354243542435425,0.12166172106824925,{"$f":"N33/C33","v":1.6129032258064516E-2}]
[null,"Total Private Emp",null,9.0909090909090912E-2,-3.6458333333333336E-2,-0.13513513513513514,-6.8750000000000006E-2,-0.12751677852348994,-5.128205128205128E-2,6.4864864864864868E-2,-7.6142131979695434E-3,0.17647058823529413,9.3478260869565219E-2,{"$f":"N34/C34","v":-4.7348484848484848E-2}]
[]
[]
[null,"EMPLOYMENT CHARACTERISTICS"]
[]
[]
[]
[]
[]
[]
[]
[]
[]
[]
[]
[]
[]
[]
[]
[]
[]
[null,null,null,null,null,null,null,null,null,null,null,null,null,null,null,null,null,null,null,null,null,null,"on"]
[]
[]
[]
[]
[]
[]
[null,"Covered Private Employment Average Wages",null,null,"Source: NH Department of Employment Security, Covered Private Employment"]
[]
[null,null,2012,{"$f":"C69+1","v":2013},{"$f":"D69+1","v":2014},{"$f":"E69+1","v":2015},2016,2017,2018,2019,2020,2021,2022,"Total $ Change"]
[null,"Goods Producing",{"$f":"IF((CntyDataLink!$CS$25)=\"n\",NA(),IF(VALUE(CntyDataLink!$CS$25)=\"\",NA(),VALUE(CntyDataLink!$CS$25)))","v":653.44000000000005},{"$f":"IF((CntyDataLink!$DA$25)=\"n\",NA(),IF(VALUE(CntyDataLink!$DA$25)=\"\",NA(),VALUE(CntyDataLink!$DA$25)))","v":655.93},{"$f":"IF((CntyDataLink!$DI$25)=\"n\",NA(),IF(VALUE(CntyDataLink!$DI$25)=\"\",NA(),VALUE(CntyDataLink!$DI$25)))","v":730.28},{"$f":"IF((CntyDataLink!$DQ$25)=\"n\",NA(),IF(VALUE(CntyDataLink!$DQ$25)=\"\",NA(),VALUE(CntyDataLink!$DQ$25)))","v":809.33},{"$f":"IF((CntyDataLink!$DY$25)=\"n\",NA(),IF(VALUE(CntyDataLink!$DY$25)=\"\",NA(),VALUE(CntyDataLink!$DY$25)))","v":998.41},{"$f":"IF((CntyDataLink!$EG$25)=\"n\",NA(),IF(VALUE(CntyDataLink!$EG$25)=\"\",NA(),VALUE(CntyDataLink!$EG$25)))","v":985.01},{"$f":"IF((CntyDataLink!$EO$25)=\"n\",NA(),IF(VALUE(CntyDataLink!$EO$25)=\"\",NA(),VALUE(CntyDataLink!$EO$25)))","v":1084.3599999999999},{"$f":"IF((CntyDataLink!$EY$25)=\"n\",NA(),IF(VALUE(CntyDataLink!$EY$25)=\"\",NA(),VALUE(CntyDataLink!$EY$25)))","v":1054.58},{"$f":"IF((CntyDataLink!$FI$25)=\"n\",NA(),IF(VALUE(CntyDataLink!$FI$25)=\"\",NA(),VALUE(CntyDataLink!$FI$25)))","v":1133.03},{"$f":"IF((CntyDataLink!$FS$25)=\"n\",NA(),IF(VALUE(CntyDataLink!$FS$25)=\"\",NA(),VALUE(CntyDataLink!$FS$25)))","v":1184.06},{"$f":"IF((CntyDataLink!$GC$25)=\"n\",NA(),IF(VALUE(CntyDataLink!$GC$25)=\"\",NA(),VALUE(CntyDataLink!GC$25)))","v":1343},{"$f":"M70-C70","v":689.56}]
[null,"Service Providing",{"$f":"IF((CntyDataLink!$CT$25)=\"n\",NA(),IF(VALUE(CntyDataLink!$CT$25)=\"\",NA(),VALUE(CntyDataLink!$CT$25)))","v":663.82},{"$f":"IF((CntyDataLink!$DB$25)=\"n\",NA(),IF(VALUE(CntyDataLink!$DB$25)=\"\",NA(),VALUE(CntyDataLink!$DB$25)))","v":687.74},{"$f":"IF((CntyDataLink!$DJ$25)=\"n\",NA(),IF(VALUE(CntyDataLink!$DJ$25)=\"\",NA(),VALUE(CntyDataLink!$DJ$25)))","v":679.41},{"$f":"IF((CntyDataLink!$DR$25)=\"n\",NA(),IF(VALUE(CntyDataLink!$DR$25)=\"\",NA(),VALUE(CntyDataLink!$DR$25)))","v":651.65},{"$f":"IF((CntyDataLink!$DZ$25)=\"n\",NA(),IF(VALUE(CntyDataLink!$DZ$25)=\"\",NA(),VALUE(CntyDataLink!$DZ$25)))","v":662.94},{"$f":"IF((CntyDataLink!ED$25)=\"n\",NA(),IF(VALUE(CntyDataLink!$EE$25)=\"\",NA(),VALUE(CntyDataLink!$EE$25)))","v":787.98},{"$f":"IF((CntyDataLink!EL$25)=\"n\",NA(),IF(VALUE(CntyDataLink!$EM$25)=\"\",NA(),VALUE(CntyDataLink!$EM$25)))","v":881.97},{"$f":"IF((CntyDataLink!EZW$25)=\"n\",NA(),IF(VALUE(CntyDataLink!$EZ$25)=\"\",NA(),VALUE(CntyDataLink!$EZ$25)))","v":744.63},{"$f":"IF((CntyDataLink!FI$25)=\"n\",NA(),IF(VALUE(CntyDataLink!$FJ$25)=\"\",NA(),VALUE(CntyDataLink!$FJ$25)))","v":859.35},{"$f":"IF((CntyDataLink!FS$25)=\"n\",NA(),IF(VALUE(CntyDataLink!$FT$25)=\"\",NA(),VALUE(CntyDataLink!$FT$25)))","v":789.1},{"$f":"IF((CntyDataLink!GD$25)=\"n\",NA(),IF(VALUE(CntyDataLink!$GDT$25)=\"\",NA(),VALUE(CntyDataLink!$GD$25)))","v":806},{"$f":"M71-C71","v":142.17999999999995}]
[null,"Total Private Emp",{"$f":"IF((CntyDataLink!$CR$25)=\"n\",NA(),IF(VALUE(CntyDataLink!$CR$25)=\"\",NA(),VALUE(CntyDataLink!$CR$25)))","v":660.75},{"$f":"IF((CntyDataLink!$CZ$25)=\"n\",NA(),IF(VALUE(CntyDataLink!$CZ$25)=\"\",NA(),VALUE(CntyDataLink!$CZ$25)))","v":676.87},{"$f":"IF((CntyDataLink!$DH$25)=\"n\",NA(),IF(VALUE(CntyDataLink!$DH$25)=\"\",NA(),VALUE(CntyDataLink!$DH$25)))","v":696.05},{"$f":"IF((CntyDataLink!$DP$25)=\"n\",NA(),IF(VALUE(CntyDataLink!$DP$25)=\"\",NA(),VALUE(CntyDataLink!$DP$25)))","v":707.52},{"$f":"IF((CntyDataLink!$DX$25)=\"n\",NA(),IF(VALUE(CntyDataLink!$DX$25)=\"\",NA(),VALUE(CntyDataLink!$DX$25)))","v":758.48},{"$f":"IF((CntyDataLink!$EF$25)=\"n\",NA(),IF(VALUE(CntyDataLink!$EF$25)=\"\",NA(),VALUE(CntyDataLink!$EF$25)))","v":810.13},{"$f":"IF((CntyDataLink!$EN$25)=\"n\",NA(),IF(VALUE(CntyDataLink!$EN$25)=\"\",NA(),VALUE(CntyDataLink!$EN$25)))","v":877.59},{"$f":"IF((CntyDataLink!$EW$25)=\"n\",NA(),IF(VALUE(CntyDataLink!$EW$25)=\"\",NA(),VALUE(CntyDataLink!$EW$25)))","v":836.77},{"$f":"IF((CntyDataLink!$FG$25)=\"n\",NA(),IF(VALUE(CntyDataLink!$FG$25)=\"\",NA(),VALUE(CntyDataLink!$FG$25)))","v":943.55},{"$f":"IF((CntyDataLink!$FQ$25)=\"n\",NA(),IF(VALUE(CntyDataLink!$FQ$25)=\"\",NA(),VALUE(CntyDataLink!$FQ$25)))","v":895.01},{"$f":"IF((CntyDataLink!$GA$25)=\"n\",NA(),IF(VALUE(CntyDataLink!$GA$25)=\"\",NA(),VALUE(CntyDataLink!$GA$25)))","v":939},{"$f":"M72-C72","v":278.25}]
[]
[null,"% Change from prior Year",null,{"$f":"D36","v":"12-13"},"13-14","14-15","15-16","16-17","17-18","18-19","19-20","20-21","21-22","Total % Change"]
[null,"Goods Producing",null,{"$f":"(D70-C70)/C70","v":3.8106023506364706E-3},{"$f":"(E70-D70)/D70","v":0.11335050996295341},0.10824615216081512,0.23362534442069355,-1.3421339930489455E-2,0.10086192018355135,-2.7463204101958738E-2,7.4389804471922519E-2,4.5038525016989815E-2,{"$f":"(M70-L70)/L70","v":0.13423306251372402},{"$f":"N70/C70","v":1.0552766895200782}]
[null,"Service Providing",null,3.6033864601849833E-2,-1.2112135400005875E-2,-4.0858980586096751E-2,1.7325251285199229E-2,0.18861435424020268,0.11927967714916624,-0.15571958229871768,0.15406309173683577,-8.1747832664222961E-2,2.141680395387147E-2,{"$f":"N71/C71","v":0.21418456810581171}]
[null,"Total Private Emp",null,2.4396519107075298E-2,2.8336312733611993E-2,1.6478701242726854E-2,7.2026232473993715E-2,6.8096719755300045E-2,8.3270586202214503E-2,-4.6513747877710607E-2,0.12760973744278592,-5.1444014625615986E-2,4.9150288823588573E-2,{"$f":"N72/C72","v":0.42111237230419979}]